{"text_format":"1","workbook":"xlsx","n_sheets":74,"sheets":["Sheet1","PARAM","Lookup and lists","Template names","Raw_SA11","Raw_SA14","Raw_SA13b","Raw_SA13a","Raw_SA12b","Raw_SA12a","Raw_SA8","Raw_SA23","START","Instructions","Org structure","Contacts","A1-Sum","A2-FinPerf SC","A2A","A3-FinPerf V","A3A","A4-FinPerf RE","A5-Capex","A5A","A6-FinPos","A7-CFlow","A8-ResRecon","A9-Asset","A10-SerDel","SA1","SA2","SA3","SA4","SA5","SA6","SA7","SA8","SA9","SA10","SA11","SA12a","SA12b","SA13a","SA13b","SA14","SA15","SA16","SA17","SA18","SA19","SA20","SA21","SA22","SA23","SA24","SA25","SA26","SA27","SA28","SA29","SA30","SA31","SA32","SA33","SA34a","SA34b","SA34c","SA34d","SA34e","SA35","SA36","SA37","SA38","LGDB_EXPORT"],"not_rendered":{"charts":0,"images":19,"macros":1,"external_links":6,"defined_names":2356,"comments":0,"pivot_tables":0},"unopened":[],"bounds":{"document_bytes":16777216,"sheet_cells":100000,"rows_first":2000,"rows_last":500,"rows_between":2000,"halvings":0,"cell_chars":16384,"cell_head_chars":4096},"cells_cut":0,"cells_raw":0,"read":"whole","date_system":"1900"}

{"sheet":"Sheet1","index":0,"n_rows":717,"n_cols":86,"rows_kept":717,"cut":false,"hidden":true,"merged":[]}
["S71_Account","S71_AccountExtAccount","S71_AccountExtensionID","S71_AccountLink","S71_ItemSCOAAccount","S71_A4Code","S71_A4Description","S71_A4SubCode","S71_A4SubDescription","S71_SA1SubCode","S71_SA1SubDescription","S71_A2Code","S71_A2Description","S71_A2SubCode","S71_A2SubDescription","S71_A5CapexCode","S71_A5GCode","S71_A5GDescription","S71_ProjectType","S71_ItemType","S71_A6Code","S71_A6Description","S71_A6SubCode","S71_A6SubDescription","S71_A7Code","S71_A7Description","S71_A7SubCode","S71_A7SubDescription","S71_A7CodePayments","S71_A7DescriptionPayments","S71_A7SubCodePayments","S71_A7SubDescriptionPayments","S71_A9Code","S71_A9Description","S71_A9SubCode","S71_A9SubDescription","S71_WIPCode","S71_SA3Code","S71_SA3Description","S71_SA3SubCode","S71_SA3SubDescription","S71_SA30FDSubCode","S71_SA30FDSubDescription","S71_CFCode","S71_SA34aCode","S71_SA34aCode_2","S71_SA34aDescription","S71_SA34aSubDescription","S71_SA34bSubCode","S71_SA34bSubDescription","S71_SA34cCode","S71_SA34cDescription","S71_SA34Code","S71_SA34cSubCode","S71_SA34cSubDescription","S71_RepMaintCode","S71_SA34dCode","S71_SA34dDescription","S71_SA34Description","S71_SA34dSubCode","S71_SA34dSubDescription","S71_DepCode","S71_SA34eCode","S71_SA34eDescription","S71_SA34eSubCode","S71_SA34eSubDescription","S71_StaffCode","S71_MasterVoteMunicipal","S71_SubMunicipalVoteNo","S71_FxVoteDescription","S71_MasterVoteDescription","S71_SA15Ref","S71_SA17Ref","S71_PYearAmount","S71_PPYearAmount","S71_PPPYearAmount","S71_OriginalBudAmnt","S71_AdjustmentBudAmnt","S71_ASBudgetAmount","S71_OY1BudgetAmount","S71_OY2BudgetAmount","S71_PreAuditActual","S71_ConsDepositsCode","S71_NonCurrentInvCode","S71_NonCurrentRecCode","S71_WIPOPBalance"]
["O0001/IE00036/F0041/X049/R0374/001/46","O0001/IE00036/F0041/X049/R0374/001/46",2,11,"Expenditure:Employee Related Cost:Municipal Staff:Salaries, Wages and Allowances:Basic Salary and Wages",2000,"Employee related costs","2000-001","Basic Salaries and Wages",2001,"Basic Salaries and Wages",1200,"Finance and administration",1204,"Finance","_"," _"," _","O","IE"," _ "," _ "," _ "," _ "," _ "," _ ","_","_"," _ "," _ "," _ "," _ "," _ "," _ "," _ "," _ ",null," _ "," _ "," _ "," _ ",null,null,null," _ "," _ "," _ "," _ "," _ "," _ "," _ "," _ "," _ "," _ "," _ ",null," _ "," _ "," _ "," _ "," _ ",null," _ "," _ "," _ "," _ ","MS",2,22,"Finance","Finance and Administration",null,null,4476555,4631552,0,4768200,5026200,5064455,4800000,4636880,4370851,"_","_","_","_"]
["O0001/IE07231/F0041/X044/R0374/001/42","O0001/IE07231/F0041/X044/R0374/001/42",14,12,"Expenditure:Remuneration of Councillors:Total for All Other Councillors:Allowances and Service Related Benefits:Cell phone Allowance",2100,"Remuneration of councillors",210005,"Cellphone Allowance"," _ "," _ ",1100,"Executive and council",1110,"Mayor and Council","_"," _"," _","O","IE"," _ "," _ "," _ "," _ "," _ "," _ ","_","_"," _ "," _ "," _ "," _ "," _ "," _ "," _ "," _ ",null," _ "," _ "," _ "," _ ",null,null,null," _ "," _ "," _ "," _ "," _ "," _ "," _ "," _ "," _ "," _ "," _ ",null," _ "," _ "," _ "," _ "," _ ",null," _ "," _ "," _ "," _ ",null,1,11,"Mayor and Council","Executive and Council",null,null,448383,472300,0,428400,428400,428400,428400,428400,415800,"_","_","_","_"]
["O0001/IE07230/F0041/X044/R0374/001/42","O0001/IE07230/F0041/X044/R0374/001/42",15,13,"Expenditure:Remuneration of Councillors:Total for All Other Councillors:Allowances and Service Related Benefits:Basic Salary",2100,"Remuneration of councillors",210001,"Basic Salaries and Wages"," _ "," _ ",1100,"Executive and council",1110,"Mayor and Council","_"," _"," _","O","IE"," _ "," _ "," _ "," _ "," _ "," _ ","_","_"," _ "," _ "," _ "," _ "," _ "," _ "," _ "," _ ",null," _ "," _ "," _ "," _ ",null,null,null," _ "," _ "," _ "," _ "," _ "," _ "," _ "," _ "," _ "," _ "," _ ",null," _ "," _ "," _ "," _ "," _ ",null," _ "," _ "," _ "," _ ",null,1,11,"Mayor and Council","Executive and Council",null,null,3966433,3929710,0,4013517,4206517,4206517,4506983,4550102,3656176,"_","_","_","_"]
["O0001/IE07241/F0041/X044/R0374/001/42","O0001/IE07241/F0041/X044/R0374/001/42",16,14,"Expenditure:Remuneration of Councillors:Total for All Other Councillors:Social Contributions:Pension Fund Contributions",2100,"Remuneration of councillors",210002,"Pension and UIF Contributions"," _ "," _ ",1100,"Executive and council",1110,"Mayor and Council","_"," _"," _","O","IE"," _ "," _ "," _ "," _ "," _ "," _ ","_","_"," _ "," _ "," _ "," _ "," _ "," _ "," _ "," _ ",null," _ "," _ "," _ "," _ ",null,null,null," _ "," _ "," _ "," _ "," _ "," _ "," _ "," _ "," _ "," _ "," _ ",null," _ "," _ "," _ "," _ "," _ ",null," _ "," _ "," _ "," _ ",null,1,11,"Mayor and Council","Executive and Council",null,null,77499,0,0,68335,68335,68335,68335,68335,65146,"_","_","_","_"]
["O0001/IE00595/F0041/X044/R0374/001/42","O0001/IE00595/F0041/X044/R0374/001/42",17,15,"Expenditure:Operational Cost:Skills Development Fund Levy",2900,"Other expenditure","_","_",2904,"Other Expenditure",1100,"Executive and council",1110,"Mayor and Council","_"," _"," _","O","IE"," _ "," _ "," _ "," _ "," _ "," _ ","_","_"," _ "," _ "," _ "," _ "," _ "," _ "," _ "," _ ",null," _ "," _ "," _ "," _ ",null,null,null," _ "," _ "," _ "," _ "," _ "," _ "," _ "," _ "," _ "," _ "," _ ",null," _ "," _ "," _ "," _ "," _ ",null," _ "," _ "," _ "," _ ",null,1,11,"Mayor and Council","Executive and Council",null,null,45116,44803,0,43931,43931,43931,43931,43931,41734,"_","_","_","_"]
["O0001/IE07240/F0041/X044/R0374/001/42","O0001/IE07240/F0041/X044/R0374/001/42",18,16,"Expenditure:Remuneration of Councillors:Total for All Other Councillors:Social Contributions:Medial Aid Benefits",2100,"Remuneration of councillors",210003,"Medical Aid Contributions"," _ "," _ ",1100,"Executive and council",1110,"Mayor and Council","_"," _"," _","O","IE"," _ "," _ "," _ "," _ "," _ "," _ ","_","_"," _ "," _ "," _ "," _ "," _ "," _ "," _ "," _ ",null," _ "," _ "," _ "," _ ",null,null,null," _ "," _ "," _ "," _ "," _ "," _ "," _ "," _ "," _ "," _ "," _ ",null," _ "," _ "," _ "," _ "," _ ",null," _ "," _ "," _ "," _ ",null,1,11,"Mayor and Council","Executive and Council",null,null,106056,94920,0,112032,112032,112032,112032,112032,105986,"_","_","_","_"]
["O0001/IE00121/F0041/X049/R0374/001/46","O0001/IE00121/F0041/X049/R0374/001/46",19,17,"Expenditure:Employee Related Cost:Municipal Staff:Salaries, Wages and Allowances:Allowances:Cellular and Telephone",2000,"Employee related costs","2000-007","Cellphone Allowance",2007,"Cellphone Allowance",1200,"Finance and administration",1204,"Finance","_"," _"," _","O","IE"," _ "," _ "," _ "," _ "," _ "," _ ","_","_"," _ "," _ "," _ "," _ "," _ "," _ "," _ "," _ ",null," _ "," _ "," _ "," _ ",null,null,null," _ "," _ "," _ "," _ "," _ "," _ "," _ "," _ "," _ "," _ "," _ ",null," _ "," _ "," _ "," _ "," _ ",null," _ "," _ "," _ "," _ ","MS",2,22,"Finance","Finance and Administration",null,null,41762,22888,0,42240,42240,42240,42240,42240,43240,"_","_","_","_"]
["O0001/IE00040/F0041/X049/R0374/001/46","O0001/IE00040/F0041/X049/R0374/001/46",20,18,"Expenditure:Employee Related Cost:Municipal Staff:Social Contributions:Bargaining Council",2000,"Employee related costs","2000-009","Other benefits and allowances",2009,"Other benefits and allowances",1200,"Finance and administration",1204,"Finance","_"," _"," _","O","IE"," _ "," _ "," _ "," _ "," _ "," _ ","_","_"," _ "," _ "," _ "," _ "," _ "," _ "," _ "," _ ",null," _ "," _ "," _ "," _ ",null,null,null," _ "," _ "," _ "," _ "," _ "," _ "," _ "," _ "," _ "," _ "," _ ",null," _ "," _ "," _ "," _ "," _ ",null," _ "," _ "," _ "," _ ","MS",2,22,"Finance","Finance and Administration",null,null,1454,0,0,1454,1454,1544,1454,1454,1416,"_","_","_","_"]
["O0001/IE01521/F0041/X049/R0374/001/46","O0001/IE01521/F0041/X049/R0374/001/46",21,19,"Expenditure:Employee Related Cost:Municipal Staff:Salaries, Wages and Allowances:Allowances:Housing Benefits and Incidental:Housing Benefits",2000,"Employee related costs","2000-008","Housing Allowances",2008,"Housing Allowances",1200,"Finance and administration",1204,"Finance","_"," _"," _","O","IE"," _ "," _ "," _ "," _ "," _ "," _ ","_","_"," _ "," _ "," _ "," _ "," _ "," _ "," _ "," _ ",null," _ "," _ "," _ "," _ ",null,null,null," _ "," _ "," _ "," _ "," _ "," _ "," _ "," _ "," _ "," _ "," _ ",null," _ "," _ "," _ "," _ "," _ ",null," _ "," _ "," _ "," _ ","MS",2,22,"Finance","Finance and Administration",null,null,63443,62613,0,68670,68670,80245,68670,68670,64877,"_","_","_","_"]
["O0001/IE00044/F0041/X049/R0374/001/46","O0001/IE00044/F0041/X049/R0374/001/46",22,20,"Expenditure:Employee Related Cost:Municipal Staff:Social Contributions:Pension",2000,"Employee related costs","2000-002","Pension and UIF Contributions",2002,"Pension and UIF Contributions",1200,"Finance and administration",1204,"Finance","_"," _"," _","O","IE"," _ "," _ "," _ "," _ "," _ "," _ ","_","_"," _ "," _ "," _ "," _ "," _ "," _ "," _ "," _ ",null," _ "," _ "," _ "," _ ",null,null,null," _ "," _ "," _ "," _ "," _ "," _ "," _ "," _ "," _ "," _ "," _ ",null," _ "," _ "," _ "," _ "," _ ",null," _ "," _ "," _ "," _ ","MS",2,22,"Finance","Finance and Administration",null,null,846784,800812,0,858276,858276,976222,858276,858276,421967,"_","_","_","_"]
["O0001/IE01533/F0041/X049/R0374/001/46","O0001/IE01533/F0041/X049/R0374/001/46",23,21,"Expenditure:Employee Related Cost:Municipal Staff:Salaries, Wages and Allowances:Allowances:Service Related Benefits:Long Service Award",2000,"Employee related costs","2000-011","Long service awards",2011,"Long service awards",1200,"Finance and administration",1204,"Finance","_"," _"," _","O","IE"," _ "," _ "," _ "," _ "," _ "," _ ","_","_"," _ "," _ "," _ "," _ "," _ "," _ "," _ "," _ ",null," _ "," _ "," _ "," _ ",null,null,null," _ "," _ "," _ "," _ "," _ "," _ "," _ "," _ "," _ "," _ "," _ ",null," _ "," _ "," _ "," _ "," _ ",null," _ "," _ "," _ "," _ ","MS",2,22,"Finance","Finance and Administration",null,null,30647,19828,0,0,0,0,0,0,12247,"_","_","_","_"]
["O0001/IE00043/F0041/X049/R0374/001/46","O0001/IE00043/F0041/X049/R0374/001/46",24,22,"Expenditure:Employee Related Cost:Municipal Staff:Social Contributions:Medical",2000,"Employee related costs","2000-003","Medical Aid Contributions",2003,"Medical Aid Contributions",1200,"Finance and administration",1204,"Finance","_"," _"," _","O","IE"," _ "," _ "," _ "," _ "," _ "," _ ","_","_"," _ "," _ "," _ "," _ "," _ "," _ "," _ "," _ ",null," _ "," _ "," _ "," _ ",null,null,null," _ "," _ "," _ "," _ "," _ "," _ "," _ "," _ "," _ "," _ "," _ ",null," _ "," _ "," _ "," _ "," _ ",null," _ "," _ "," _ "," _ ","MS",2,22,"Finance","Finance and Administration",null,null,359890,308476,0,371812,371812,412044,371812,371812,363794,"_","_","_","_"]
["O0001/IE00045/F0041/X049/R0374/001/46","O0001/IE00045/F0041/X049/R0374/001/46",25,23,"Expenditure:Employee Related Cost:Municipal Staff:Social Contributions:Unemployment Insurance",2000,"Employee related costs","2000-002","Pension and UIF Contributions",2002,"Pension and UIF Contributions",1200,"Finance and administration",1204,"Finance","_"," _"," _","O","IE"," _ "," _ "," _ "," _ "," _ "," _ ","_","_"," _ "," _ "," _ "," _ "," _ "," _ "," _ "," _ ",null," _ "," _ "," _ "," _ ",null,null,null," _ "," _ "," _ "," _ "," _ "," _ "," _ "," _ "," _ "," _ "," _ ",null," _ "," _ "," _ "," _ "," _ ",null," _ "," _ "," _ "," _ ","MS",2,22,"Finance","Finance and Administration",null,null,23200,24805,0,23200,23200,23200,23200,23200,21267,"_","_","_","_"]
["O0001/IE00595/F0041/X049/R0374/001/46","O0001/IE00595/F0041/X049/R0374/001/46",26,24,"Expenditure:Operational Cost:Skills Development Fund Levy",2900,"Other expenditure","_","_",2904,"Other Expenditure",1200,"Finance and administration",1204,"Finance","_"," _"," _","O","IE"," _ "," _ "," _ "," _ "," _ "," _ ","_","_"," _ "," _ "," _ "," _ "," _ "," _ "," _ "," _ ",null," _ "," _ "," _ "," _ ",null,null,null," _ "," _ "," _ "," _ "," _ "," _ "," _ "," _ "," _ "," _ "," _ ",null," _ "," _ "," _ "," _ "," _ ",null," _ "," _ "," _ "," _ ",null,2,22,"Finance","Finance and Administration",null,null,65227,34090,0,50993,50993,60689,50993,50993,63038,"_","_","_","_"]
["O0001/IE00126/F0041/X049/R0374/001/46","O0001/IE00126/F0041/X049/R0374/001/46",27,25,"Expenditure:Employee Related Cost:Municipal Staff:Salaries, Wages and Allowances:Allowances:Travel or Motor Vehicle",2000,"Employee related costs","2000-006","Motor Vehicle Allowance",2006,"Motor Vehicle Allowance",1200,"Finance and administration",1204,"Finance","_"," _"," _","O","IE"," _ "," _ "," _ "," _ "," _ "," _ ","_","_"," _ "," _ "," _ "," _ "," _ "," _ "," _ "," _ ",null," _ "," _ "," _ "," _ ",null,null,null," _ "," _ "," _ "," _ "," _ "," _ "," _ "," _ "," _ "," _ "," _ ",null," _ "," _ "," _ "," _ "," _ ",null," _ "," _ "," _ "," _ ","MS",2,22,"Finance","Finance and Administration",null,null,525094,615909,0,532923,532923,529319,532923,532923,484756,"_","_","_","_"]
["O0001/IE01526/F0041/X049/R0374/001/46","O0001/IE01526/F0041/X049/R0374/001/46",28,26,"Expenditure:Employee Related Cost:Municipal Staff:Salaries, Wages and Allowances:Allowances:Service Related Benefits:Bonus",2000,"Employee related costs","2000-005","Performance Bonus",2005,"Performance Bonus",1200,"Finance and administration",1204,"Finance","_"," _"," _","O","IE"," _ "," _ "," _ "," _ "," _ "," _ ","_","_"," _ "," _ "," _ "," _ "," _ "," _ "," _ "," _ ",null," _ "," _ "," _ "," _ ",null,null,null," _ "," _ "," _ "," _ "," _ "," _ "," _ "," _ "," _ "," _ "," _ ",null," _ "," _ "," _ "," _ "," _ ",null," _ "," _ "," _ "," _ ","MS",2,22,"Finance","Finance and Administration",null,null,357025,492059,0,397350,397350,422038,397350,397350,397350,"_","_","_","_"]
["O0001/IE00036/F13576/X046/R0374/001/44","O0001/IE00036/F13576/X046/R0374/001/44",29,27,"Expenditure:Employee Related Cost:Municipal Staff:Salaries, Wages and Allowances:Basic Salary and Wages",2000,"Employee related costs","2000-001","Basic Salaries and Wages",2001,"Basic Salaries and Wages",1200,"Finance and administration",1201,"Administrative and Corporate Support","_"," _"," _","O","IE"," _ "," _ "," _ "," _ "," _ "," _ ","_","_"," _ "," _ "," _ "," _ "," _ "," _ "," _ "," _ ",null," _ "," _ "," _ "," _ ",null,null,null," _ "," _ "," _ "," _ "," _ "," _ "," _ "," _ "," _ "," _ "," _ ",null," _ "," _ "," _ "," _ "," _ ",null," _ "," _ "," _ "," _ ","MS",2,21,"Administrative and Corporate Support","Finance and Administration",null,null,11438026,10838065,0,8831091,8398421,8763036,10012375,10317755,10729342,"_","_","_","_"]
["O0001/IE01521/F0041/X046/R0374/001/44","O0001/IE01521/F0041/X046/R0374/001/44",30,28,"Expenditure:Employee Related Cost:Municipal Staff:Salaries, Wages and Allowances:Allowances:Housing Benefits and Incidental:Housing Benefits",2000,"Employee related costs","2000-008","Housing Allowances",2008,"Housing Allowances",1200,"Finance and administration",1201,"Administrative and Corporate Support","_"," _"," _","O","IE"," _ "," _ "," _ "," _ "," _ "," _ ","_","_"," _ "," _ "," _ "," _ "," _ "," _ "," _ "," _ ",null," _ "," _ "," _ "," _ ",null,null,null," _ "," _ "," _ "," _ "," _ "," _ "," _ "," _ "," _ "," _ "," _ ",null," _ "," _ "," _ "," _ "," _ ",null," _ "," _ "," _ "," _ ","MS",2,21,"Administrative and Corporate Support","Finance and Administration",null,null,114594,111970,0,114367,114367,114367,114367,114367,114481,"_","_","_","_"]
["O0001/IE01526/F0041/X046/R0374/001/44","O0001/IE01526/F0041/X046/R0374/001/44",31,29,"Expenditure:Employee Related Cost:Municipal Staff:Salaries, Wages and Allowances:Allowances:Service Related Benefits:Bonus",2000,"Employee related costs","2000-005","Performance Bonus",2005,"Performance Bonus",1200,"Finance and administration",1201,"Administrative and Corporate Support","_"," _"," _","O","IE"," _ "," _ "," _ "," _ "," _ "," _ ","_","_"," _ "," _ "," _ "," _ "," _ "," _ "," _ "," _ ",null," _ "," _ "," _ "," _ ",null,null,null," _ "," _ "," _ "," _ "," _ "," _ "," _ "," _ "," _ "," _ "," _ ",null," _ "," _ "," _ "," _ "," _ ",null," _ "," _ "," _ "," _ ","MS",2,21,"Administrative and Corporate Support","Finance and Administration",null,null,728166,752751,0,735924,735924,730253,735924,735924,689895,"_","_","_","_"]
["O0001/IE00121/F0041/X046/R0374/001/44","O0001/IE00121/F0041/X046/R0374/001/44",32,30,"Expenditure:Employee Related Cost:Municipal Staff:Salaries, Wages and Allowances:Allowances:Cellular and Telephone",2000,"Employee related costs","2000-007","Cellphone Allowance",2007,"Cellphone Allowance",1200,"Finance and administration",1201,"Administrative and Corporate Support","_"," _"," _","O","IE"," _ "," _ "," _ "," _ "," _ "," _ ","_","_"," _ "," _ "," _ "," _ "," _ "," _ "," _ "," _ ",null," _ "," _ "," _ "," _ ",null,null,null," _ "," _ "," _ "," _ "," _ "," _ "," _ "," _ "," _ "," _ "," _ ",null," _ "," _ "," _ "," _ "," _ ",null," _ "," _ "," _ "," _ ","MS",2,21,"Administrative and Corporate Support","Finance and Administration",null,null,108300,191067,0,105164,105164,94556,105164,105164,109591,"_","_","_","_"]
["O0001/IE00126/F0041/X046/R0374/001/44","O0001/IE00126/F0041/X046/R0374/001/44",33,31,"Expenditure:Employee Related Cost:Municipal Staff:Salaries, Wages and Allowances:Allowances:Travel or Motor Vehicle",2000,"Employee related costs","2000-006","Motor Vehicle Allowance",2006,"Motor Vehicle Allowance",1200,"Finance and administration",1201,"Administrative and Corporate Support","_"," _"," _","O","IE"," _ "," _ "," _ "," _ "," _ "," _ ","_","_"," _ "," _ "," _ "," _ "," _ "," _ "," _ "," _ ",null," _ "," _ "," _ "," _ ",null,null,null," _ "," _ "," _ "," _ "," _ "," _ "," _ "," _ "," _ "," _ "," _ ",null," _ "," _ "," _ "," _ "," _ ",null," _ "," _ "," _ "," _ ","MS",2,21,"Administrative and Corporate Support","Finance and Administration",null,null,1131840,1081110,0,1038844,1038844,1022132,1038844,1038844,982683,"_","_","_","_"]
["O0001/IE01533/F0041/X046/R0374/001/44","O0001/IE01533/F0041/X046/R0374/001/44",34,32,"Expenditure:Employee Related Cost:Municipal Staff:Salaries, Wages and Allowances:Allowances:Service Related Benefits:Long Service Award",2000,"Employee related costs","2000-011","Long service awards",2011,"Long service awards",1200,"Finance and administration",1201,"Administrative and Corporate Support","_"," _"," _","O","IE"," _ "," _ "," _ "," _ "," _ "," _ ","_","_"," _ "," _ "," _ "," _ "," _ "," _ "," _ "," _ ",null," _ "," _ "," _ "," _ ",null,null,null," _ "," _ "," _ "," _ "," _ "," _ "," _ "," _ "," _ "," _ "," _ ",null," _ "," _ "," _ "," _ "," _ ",null," _ "," _ "," _ "," _ ","MS",2,21,"Administrative and Corporate Support","Finance and Administration",null,null,183405,0,0,0,0,100780,0,0,6540,"_","_","_","_"]
["O0001/IE00040/F0041/X046/R0374/001/44","O0001/IE00040/F0041/X046/R0374/001/44",35,33,"Expenditure:Employee Related Cost:Municipal Staff:Social Contributions:Bargaining Council",2000,"Employee related costs","2000-009","Other benefits and allowances",2009,"Other benefits and allowances",1200,"Finance and administration",1201,"Administrative and Corporate Support","_"," _"," _","O","IE"," _ "," _ "," _ "," _ "," _ "," _ ","_","_"," _ "," _ "," _ "," _ "," _ "," _ "," _ "," _ ",null," _ "," _ "," _ "," _ ",null,null,null," _ "," _ "," _ "," _ "," _ "," _ "," _ "," _ "," _ "," _ "," _ ",null," _ "," _ "," _ "," _ "," _ ",null," _ "," _ "," _ "," _ ","MS",2,21,"Administrative and Corporate Support","Finance and Administration",null,null,4008,0,0,3132,3132,2851,3132,3132,3792,"_","_","_","_"]
["O0001/IE00043/F0041/X046/R0374/001/44","O0001/IE00043/F0041/X046/R0374/001/44",36,34,"Expenditure:Employee Related Cost:Municipal Staff:Social Contributions:Medical",2000,"Employee related costs","2000-003","Medical Aid Contributions",2003,"Medical Aid Contributions",1200,"Finance and administration",1201,"Administrative and Corporate Support","_"," _"," _","O","IE"," _ "," _ "," _ "," _ "," _ "," _ ","_","_"," _ "," _ "," _ "," _ "," _ "," _ "," _ "," _ ",null," _ "," _ "," _ "," _ ",null,null,null," _ "," _ "," _ "," _ "," _ "," _ "," _ "," _ "," _ "," _ "," _ ",null," _ "," _ "," _ "," _ "," _ ",null," _ "," _ "," _ "," _ ","MS",2,21,"Administrative and Corporate Support","Finance and Administration",null,null,713100,687547,0,620172,619272,750169,619272,619272,678434,"_","_","_","_"]
["O0001/IE00044/F0041/X046/R0374/001/44","O0001/IE00044/F0041/X046/R0374/001/44",37,35,"Expenditure:Employee Related Cost:Municipal Staff:Social Contributions:Pension",2000,"Employee related costs","2000-002","Pension and UIF Contributions",2002,"Pension and UIF Contributions",1200,"Finance and administration",1201,"Administrative and Corporate Support","_"," _"," _","O","IE"," _ "," _ "," _ "," _ "," _ "," _ ","_","_"," _ "," _ "," _ "," _ "," _ "," _ "," _ "," _ ",null," _ "," _ "," _ "," _ ",null,null,null," _ "," _ "," _ "," _ "," _ "," _ "," _ "," _ "," _ "," _ "," _ ",null," _ "," _ "," _ "," _ "," _ ",null," _ "," _ "," _ "," _ ","MS",2,21,"Administrative and Corporate Support","Finance and Administration",null,null,1568983,1531120,0,1589596,1589596,1570455,1589596,1589596,1106926,"_","_","_","_"]
["O0001/IE00045/F0041/X046/R0374/001/44","O0001/IE00045/F0041/X046/R0374/001/44",38,36,"Expenditure:Employee Related Cost:Municipal Staff:Social Contributions:Unemployment Insurance",2000,"Employee related costs","2000-002","Pension and UIF Contributions",2002,"Pension and UIF Contributions",1200,"Finance and administration",1201,"Administrative and Corporate Support","_"," _"," _","O","IE"," _ "," _ "," _ "," _ "," _ "," _ ","_","_"," _ "," _ "," _ "," _ "," _ "," _ "," _ "," _ ",null," _ "," _ "," _ "," _ ",null,null,null," _ "," _ "," _ "," _ "," _ "," _ "," _ "," _ "," _ "," _ "," _ ",null," _ "," _ "," _ "," _ "," _ ",null," _ "," _ "," _ "," _ ","MS",2,21,"Administrative and Corporate Support","Finance and Administration",null,null,63418,65811,0,49670,49670,46401,49670,49670,57191,"_","_","_","_"]
["O0001/IE00595/F0041/X046/R0374/001/44","O0001/IE00595/F0041/X046/R0374/001/44",39,37,"Expenditure:Operational Cost:Skills Development Fund Levy",2900,"Other expenditure","_","_",2904,"Other Expenditure",1200,"Finance and administration",1201,"Administrative and Corporate Support","_"," _"," _","O","IE"," _ "," _ "," _ "," _ "," _ "," _ ","_","_"," _ "," _ "," _ "," _ "," _ "," _ "," _ "," _ ",null," _ "," _ "," _ "," _ ",null,null,null," _ "," _ "," _ "," _ "," _ "," _ "," _ "," _ "," _ "," _ "," _ ",null," _ "," _ "," _ "," _ "," _ ",null," _ "," _ "," _ "," _ ",null,2,21,"Administrative and Corporate Support","Finance and Administration",null,null,135404,0,0,105365,105365,176499,172140,172140,133196,"_","_","_","_"]
["D0001/IR02344/F0041/X045/R0374/001/43","D0001/IR02344/F0041/X045/R0374/001/43",40,38,"Revenue:Non-exchange Revenue:Transfers and Subsidies:Operational:Monetary Allocations:National Revenue Fund:Equitable Share",1500,"Transfers and subsidies",1500,"Transfers and subsidies"," _ "," _ ",1100,"Executive and council",1120,"Municipal Manager, Town Secretary and Chief Executive","_"," _"," _","D","IR"," _ "," _ "," _ "," _ "," _ "," _ ","_","_"," _ "," _ "," _ "," _ "," _ "," _ "," _ "," _ ",null," _ "," _ "," _ "," _ ",null,null,null," _ "," _ "," _ "," _ "," _ "," _ "," _ "," _ "," _ "," _ "," _ ",null," _ "," _ "," _ "," _ "," _ ",null," _ "," _ "," _ "," _ ",null,1,12,"Municipal Manager, Town Secretary and Chief Executive","Executive and Council",null,null,6531205,6081511,0,-4636756,-5086506,-5086506,-9782000,-10022800,7077347,"_","_","_","_"]
["O0001/IE06827/F0041/X045/R0374/001/43","O0001/IE06827/F0041/X045/R0374/001/43",43,39,"Expenditure:Employee Related Cost:Senior Management:Designation:Salaries and Allowances:Allowance:Cellular and Telephone",2000,"Employee related costs","2000-007","Cellphone Allowance",2007,"Cellphone Allowance",1100,"Executive and council",1120,"Municipal Manager, Town Secretary and Chief Executive","_"," _"," _","O","IE"," _ "," _ "," _ "," _ "," _ "," _ ","_","_"," _ "," _ "," _ "," _ "," _ "," _ "," _ "," _ ",null," _ "," _ "," _ "," _ ",null,null,null," _ "," _ "," _ "," _ "," _ "," _ "," _ "," _ "," _ "," _ "," _ ",null," _ "," _ "," _ "," _ "," _ ",null," _ "," _ "," _ "," _ ","SM",1,12,"Municipal Manager, Town Secretary and Chief Executive","Executive and Council",null,null,0,0,0,0,0,0,0,0,0,"_","_","_","_"]
["O0001/IE06230/F0041/X045/R0374/001/43","O0001/IE06230/F0041/X045/R0374/001/43",49,40,"Expenditure:Employee Related Cost:Senior Management:Designation:Social Contributions:Pension",2000,"Employee related costs","2000-002","Pension and UIF Contributions",2002,"Pension and UIF Contributions",1100,"Executive and council",1120,"Municipal Manager, Town Secretary and Chief Executive","_"," _"," _","O","IE"," _ "," _ "," _ "," _ "," _ "," _ ","_","_"," _ "," _ "," _ "," _ "," _ "," _ "," _ "," _ ",null," _ "," _ "," _ "," _ ",null,null,null," _ "," _ "," _ "," _ "," _ "," _ "," _ "," _ "," _ "," _ "," _ ",null," _ "," _ "," _ "," _ "," _ ",null," _ "," _ "," _ "," _ ","SM",1,12,"Municipal Manager, Town Secretary and Chief Executive","Executive and Council",null,null,0,0,0,0,0,0,0,0,0,"_","_","_","_"]
["O0001/IE00711/F0001/X044/R0374/001/42","O0001/IE00711/F0001/X044/R0374/001/42",51,41,"Expenditure:Depreciation and Amortisation:Depreciation:Furniture and Office Equipment",2300,"Depreciation & asset impairment","2300-001","Depreciation of Property, Plant & Equipment",2301,"Depreciation of Property, Plant and Equipment",1100,"Executive and council",1110,"Mayor and Council","_"," _"," _","O","IE"," _ "," _ "," _ "," _ "," _ "," _ ","_","_"," _ "," _ "," _ "," _ "," _ "," _ "," _ "," _ ",null," _ "," _ "," _ "," _ ",null,null,null," _ "," _ "," _ "," _ "," _ "," _ "," _ "," _ "," _ "," _ "," _ ",null,1490,"Furniture and Office Equipment"," _ ",1490,"Furniture and Office Equipment","DP"," _ "," _ "," _ "," _ ",null,1,11,"Mayor and Council","Executive and Council",null,null,0,0,0,0,0,0,0,0,0,"_","_","_","_"]
["O0001/IZ00059/F0041/X044/R0374/001/42","O0001/IZ00059/F0041/X044/R0374/001/42",54,42,"Gains and Losses:Impairment Loss:Trade and Other Receivables from Exchange Transactions:Non Specific Accounts",2200,"Debt impairment",2200,"Debt impairment"," _ "," _ ",1100,"Executive and council",1110,"Mayor and Council","_"," _"," _","O","IE"," _ "," _ "," _ "," _ "," _ "," _ ","_","_"," _ "," _ "," _ "," _ "," _ "," _ "," _ "," _ ",null," _ "," _ "," _ "," _ ",null,null,null," _ "," _ "," _ "," _ "," _ "," _ "," _ "," _ "," _ "," _ "," _ ",null," _ "," _ "," _ "," _ "," _ ",null," _ "," _ "," _ "," _ ",null,1,11,"Mayor and Council","Executive and Council",null,null,0,0,0,0,0,0,0,0,0,"_","_","_","_"]
["O0001/IE00709/F0001/X044/R0374/001/42","O0001/IE00709/F0001/X044/R0374/001/42",55,43,"Expenditure:Depreciation and Amortisation:Depreciation:Computer Equipment",2300,"Depreciation & asset impairment","2300-001","Depreciation of Property, Plant & Equipment",2301,"Depreciation of Property, Plant and Equipment",1100,"Executive and council",1110,"Mayor and Council","_"," _"," _","O","IE"," _ "," _ "," _ "," _ "," _ "," _ ","_","_"," _ "," _ "," _ "," _ "," _ "," _ "," _ "," _ ",null," _ "," _ "," _ "," _ ",null,null,null," _ "," _ "," _ "," _ "," _ "," _ "," _ "," _ "," _ "," _ "," _ ",null,1470,"Computer Equipment"," _ ",1470,"Computer Equipment","DP"," _ "," _ "," _ "," _ ",null,1,11,"Mayor and Council","Executive and Council",null,null,0,0,0,0,0,0,0,0,0,"_","_","_","_"]
["O0001/IE00715/F0001/X044/R0374/001/42","O0001/IE00715/F0001/X044/R0374/001/42",56,44,"Expenditure:Depreciation and Amortisation:Depreciation:Machinery and Equipment",2300,"Depreciation & asset impairment","2300-001","Depreciation of Property, Plant & Equipment",2301,"Depreciation of Property, Plant and Equipment",1100,"Executive and council",1110,"Mayor and Council","_"," _"," _","O","IE"," _ "," _ "," _ "," _ "," _ "," _ ","_","_"," _ "," _ "," _ "," _ "," _ "," _ "," _ "," _ ",null," _ "," _ "," _ "," _ ",null,null,null," _ "," _ "," _ "," _ "," _ "," _ "," _ "," _ "," _ "," _ "," _ ",null,1510,"Machinery and Equipment"," _ ",1510,"Machinery and Equipment","DP"," _ "," _ "," _ "," _ ",null,1,11,"Mayor and Council","Executive and Council",null,null,0,0,0,0,0,0,0,0,0,"_","_","_","_"]
["O0001/IE07625/F0001/X044/R0374/001/42","O0001/IE07625/F0001/X044/R0374/001/42",57,45,"Expenditure:Depreciation and Amortisation:Depreciation:Other Assets:Operational Buildings:Municipal Offices",2300,"Depreciation & asset impairment","2300-001","Depreciation of Property, Plant & Equipment",2301,"Depreciation of Property, Plant and Equipment",1100,"Executive and council",1110,"Mayor and Council","_"," _"," _","O","IE"," _ "," _ "," _ "," _ "," _ "," _ ","_","_"," _ "," _ "," _ "," _ "," _ "," _ "," _ "," _ ",null," _ "," _ "," _ "," _ ",null,null,null," _ "," _ "," _ "," _ "," _ "," _ "," _ "," _ "," _ "," _ "," _ ",null,1200,"Municipal Offices"," _ ",1200,"Municipal Offices","DP"," _ "," _ "," _ "," _ ",null,1,11,"Mayor and Council","Executive and Council",null,null,0,0,0,0,0,0,0,0,0,"_","_","_","_"]
["O0001/IE00778/F0041/X044/R0374/001/42","O0001/IE00778/F0041/X044/R0374/001/42",58,46,"Expenditure:Operational Cost:Communication:Telephone, Fax, Telegraph and Telex",2900,"Other expenditure","_","_",2904,"Other Expenditure",1100,"Executive and council",1110,"Mayor and Council","_"," _"," _","O","IE"," _ "," _ "," _ "," _ "," _ "," _ ","_","_"," _ "," _ "," _ "," _ "," _ "," _ "," _ "," _ ",null," _ "," _ "," _ "," _ ",null,null,null," _ "," _ "," _ "," _ "," _ "," _ "," _ "," _ "," _ "," _ "," _ ",null," _ "," _ "," _ "," _ "," _ ",null," _ "," _ "," _ "," _ ",null,1,11,"Mayor and Council","Executive and Council",null,null,120354,15910,0,0,0,0,0,0,45776,"_","_","_","_"]
["O0001/IE00567/F0041/X044/R0374/001/42","O0001/IE00567/F0041/X044/R0374/001/42",59,47,"Expenditure:Operational Cost:External Audit Fees",2900,"Other expenditure","_","_",2903,"Audit fees",1100,"Executive and council",1110,"Mayor and Council","_"," _"," _","O","IE"," _ "," _ "," _ "," _ "," _ "," _ ","_","_"," _ "," _ "," _ "," _ "," _ "," _ "," _ "," _ ",null," _ "," _ "," _ "," _ ",null,null,null," _ "," _ "," _ "," _ "," _ "," _ "," _ "," _ "," _ "," _ "," _ ",null," _ "," _ "," _ "," _ "," _ ",null," _ "," _ "," _ "," _ ",null,1,11,"Mayor and Council","Executive and Council",null,null,0,0,0,0,0,0,0,0,0,"_","_","_","_"]
["O0001/IE00539/F0041/X044/R0374/001/42","O0001/IE00539/F0041/X044/R0374/001/42",60,48,"Expenditure:Operating Leases:Furniture and Office Equipment",2900,"Other expenditure","_","_",2904,"Other Expenditure",1100,"Executive and council",1110,"Mayor and Council","_"," _"," _","O","IE"," _ "," _ "," _ "," _ "," _ "," _ ","_","_"," _ "," _ "," _ "," _ "," _ "," _ "," _ "," _ ",null," _ "," _ "," _ "," _ ",null,null,null," _ "," _ "," _ "," _ "," _ "," _ "," _ "," _ "," _ "," _ "," _ ",null," _ "," _ "," _ "," _ "," _ ",null," _ "," _ "," _ "," _ ",null,1,11,"Mayor and Council","Executive and Council",null,null,7630,0,0,0,0,0,0,0,507,"_","_","_","_"]
["O0001/IE00546/F0041/X044/R0374/001/42","O0001/IE00546/F0041/X044/R0374/001/42",61,49,"Expenditure:Operating Leases:Other Assets",2900,"Other expenditure","_","_",2904,"Other Expenditure",1100,"Executive and council",1110,"Mayor and Council","_"," _"," _","O","IE"," _ "," _ "," _ "," _ "," _ "," _ ","_","_"," _ "," _ "," _ "," _ "," _ "," _ "," _ "," _ ",null," _ "," _ "," _ "," _ ",null,null,null," _ "," _ "," _ "," _ "," _ "," _ "," _ "," _ "," _ "," _ "," _ ",null," _ "," _ "," _ "," _ "," _ ",null," _ "," _ "," _ "," _ ",null,1,11,"Mayor and Council","Executive and Council",null,null,3010,0,0,0,0,0,0,0,0,"_","_","_","_"]
["O0001/IE00781/F0041/X044/R0374/001/42","O0001/IE00781/F0041/X044/R0374/001/42",62,50,"Expenditure:Operational Cost:Entertainment:Total for All Other Councillors",2900,"Other expenditure","_","_",2904,"Other Expenditure",1100,"Executive and council",1110,"Mayor and Council","_"," _"," _","O","IE"," _ "," _ "," _ "," _ "," _ "," _ ","_","_"," _ "," _ "," _ "," _ "," _ "," _ "," _ "," _ ",null," _ "," _ "," _ "," _ ",null,null,null," _ "," _ "," _ "," _ "," _ "," _ "," _ "," _ "," _ "," _ "," _ ",null," _ "," _ "," _ "," _ "," _ ",null," _ "," _ "," _ "," _ ",null,1,11,"Mayor and Council","Executive and Council",null,null,16256,23558,0,0,25000,5000,31093,32772,23806,"_","_","_","_"]
["O0001/IE00782/F0041/X044/R0374/001/42","O0001/IE00782/F0041/X044/R0374/001/42",63,51,"Expenditure:Operational Cost:Entertainment:Executive Mayor",2900,"Other expenditure","_","_",2904,"Other Expenditure",1100,"Executive and council",1110,"Mayor and Council","_"," _"," _","O","IE"," _ "," _ "," _ "," _ "," _ "," _ ","_","_"," _ "," _ "," _ "," _ "," _ "," _ "," _ "," _ ",null," _ "," _ "," _ "," _ ",null,null,null," _ "," _ "," _ "," _ "," _ "," _ "," _ "," _ "," _ "," _ "," _ ",null," _ "," _ "," _ "," _ "," _ ",null," _ "," _ "," _ "," _ ",null,1,11,"Mayor and Council","Executive and Council",null,null,609,1617,0,5000,5000,0,0,0,1524,"_","_","_","_"]
["O0001/IE00063/F0041/X044/R0374/001/42","O0001/IE00063/F0041/X044/R0374/001/42",64,52,"Expenditure:Operational Cost:Travel and Subsistence:Domestic:Incidental Cost",2900,"Other expenditure","_","_",2904,"Other Expenditure",1100,"Executive and council",1110,"Mayor and Council","_"," _"," _","O","IE"," _ "," _ "," _ "," _ "," _ "," _ ","_","_"," _ "," _ "," _ "," _ "," _ "," _ "," _ "," _ ",null," _ "," _ "," _ "," _ ",null,null,null," _ "," _ "," _ "," _ "," _ "," _ "," _ "," _ "," _ "," _ "," _ ",null," _ "," _ "," _ "," _ "," _ ",null," _ "," _ "," _ "," _ ",null,1,11,"Mayor and Council","Executive and Council",null,null,0,0,0,10000,5000,3000,19982,21061,0,"_","_","_","_"]
["O0001/IE012466/F0041/X044/R0374/001/42","O0001/IE012466/F0041/X044/R0374/001/42",65,53,"Expenditure:Operational Cost:Entertainment:Speaker",2900,"Other expenditure","_","_",2904,"Other Expenditure",1100,"Executive and council",1110,"Mayor and Council","_"," _"," _","O","IE"," _ "," _ "," _ "," _ "," _ "," _ ","_","_"," _ "," _ "," _ "," _ "," _ "," _ "," _ "," _ ",null," _ "," _ "," _ "," _ ",null,null,null," _ "," _ "," _ "," _ "," _ "," _ "," _ "," _ "," _ "," _ "," _ ",null," _ "," _ "," _ "," _ "," _ ",null," _ "," _ "," _ "," _ ",null,1,11,"Mayor and Council","Executive and Council",null,null,8684,2756,0,5000,5000,0,0,0,0,"_","_","_","_"]
["O0001/IE00060/F0041/X044/R0374/001/42","O0001/IE00060/F0041/X044/R0374/001/42",66,54,"Expenditure:Operational Cost:Travel and Subsistence:Domestic:Accommodation",2900,"Other expenditure","_","_",2904,"Other Expenditure",1100,"Executive and council",1110,"Mayor and Council","_"," _"," _","O","IE"," _ "," _ "," _ "," _ "," _ "," _ ","_","_"," _ "," _ "," _ "," _ "," _ "," _ "," _ "," _ ",null," _ "," _ "," _ "," _ ",null,null,null," _ "," _ "," _ "," _ "," _ "," _ "," _ "," _ "," _ "," _ "," _ ",null," _ "," _ "," _ "," _ "," _ ",null," _ "," _ "," _ "," _ ",null,1,11,"Mayor and Council","Executive and Council",null,null,127129,184429,0,130000,89000,35000,81795,86212,31903,"_","_","_","_"]
["O0001/IE00143/F0041/X044/R0374/001/42","O0001/IE00143/F0041/X044/R0374/001/42",67,55,"Expenditure:Operational Cost:Travel and Subsistence:Domestic:Transport without Operator:Car Rental",2900,"Other expenditure","_","_",2904,"Other Expenditure",1100,"Executive and council",1110,"Mayor and Council","_"," _"," _","O","IE"," _ "," _ "," _ "," _ "," _ "," _ ","_","_"," _ "," _ "," _ "," _ "," _ "," _ "," _ "," _ ",null," _ "," _ "," _ "," _ ",null,null,null," _ "," _ "," _ "," _ "," _ "," _ "," _ "," _ "," _ "," _ "," _ ",null," _ "," _ "," _ "," _ "," _ ",null," _ "," _ "," _ "," _ ",null,1,11,"Mayor and Council","Executive and Council",null,null,1395,0,0,0,2000,4000,5418,6035,1500,"_","_","_","_"]
["O0001/IE00061/F0041/X044/R0374/001/42","O0001/IE00061/F0041/X044/R0374/001/42",68,56,"Expenditure:Operational Cost:Travel and Subsistence:Domestic:Daily Allowance",2900,"Other expenditure","_","_",2904,"Other Expenditure",1100,"Executive and council",1110,"Mayor and Council","_"," _"," _","O","IE"," _ "," _ "," _ "," _ "," _ "," _ ","_","_"," _ "," _ "," _ "," _ "," _ "," _ "," _ "," _ ",null," _ "," _ "," _ "," _ ",null,null,null," _ "," _ "," _ "," _ "," _ "," _ "," _ "," _ "," _ "," _ "," _ ",null," _ "," _ "," _ "," _ "," _ ",null," _ "," _ "," _ "," _ ",null,1,11,"Mayor and Council","Executive and Council",null,null,39062,16218,0,15000,7000,5000,12736,13424,4420,"_","_","_","_"]
["O0001/IE00584/F0041/X044/R0374/001/42","O0001/IE00584/F0041/X044/R0374/001/42",69,57,"Expenditure:Operational Cost:Professional Bodies, Membership and Subscription",2900,"Other expenditure","_","_",2904,"Other Expenditure",1100,"Executive and council",1110,"Mayor and Council","_"," _"," _","O","IE"," _ "," _ "," _ "," _ "," _ "," _ ","_","_"," _ "," _ "," _ "," _ "," _ "," _ "," _ "," _ ",null," _ "," _ "," _ "," _ ",null,null,null," _ "," _ "," _ "," _ "," _ "," _ "," _ "," _ "," _ "," _ "," _ ",null," _ "," _ "," _ "," _ "," _ ",null," _ "," _ "," _ "," _ ",null,1,11,"Mayor and Council","Executive and Council",null,null,14892,3450,0,0,0,0,0,0,4821,"_","_","_","_"]
["O0001/IE00144/F0041/X044/R0374/001/42","O0001/IE00144/F0041/X044/R0374/001/42",70,58,"Expenditure:Operational Cost:Travel and Subsistence:Domestic:Transport without Operator:Own Transport",2900,"Other expenditure","_","_",2904,"Other Expenditure",1100,"Executive and council",1110,"Mayor and Council","_"," _"," _","O","IE"," _ "," _ "," _ "," _ "," _ "," _ ","_","_"," _ "," _ "," _ "," _ "," _ "," _ "," _ "," _ ",null," _ "," _ "," _ "," _ ",null,null,null," _ "," _ "," _ "," _ "," _ "," _ "," _ "," _ "," _ "," _ "," _ ",null," _ "," _ "," _ "," _ "," _ ",null," _ "," _ "," _ "," _ ",null,1,11,"Mayor and Council","Executive and Council",null,null,152598,146055,0,130000,60000,40000,93652,98710,7584,"_","_","_","_"]
["O0001/IE01581/F0041/X044/R0374/001/42","O0001/IE01581/F0041/X044/R0374/001/42",71,59,"Expenditure:Operational Cost:Travel and Subsistence:Domestic:Transport with Operator:Public Transport:Air Transport",2900,"Other expenditure","_","_",2904,"Other Expenditure",1100,"Executive and council",1110,"Mayor and Council","_"," _"," _","O","IE"," _ "," _ "," _ "," _ "," _ "," _ ","_","_"," _ "," _ "," _ "," _ "," _ "," _ "," _ "," _ ",null," _ "," _ "," _ "," _ ",null,null,null," _ "," _ "," _ "," _ "," _ "," _ "," _ "," _ "," _ "," _ "," _ ",null," _ "," _ "," _ "," _ "," _ ",null," _ "," _ "," _ "," _ ",null,1,11,"Mayor and Council","Executive and Council",null,null,8745,16630,0,0,7500,18000,10000,20000,0,"_","_","_","_"]
["O0001/IE06194/F0041/X049/R0374/001/46","O0001/IE06194/F0041/X049/R0374/001/46",72,60,"Expenditure:Employee Related Cost:Senior Management:Designation:Social Contributions:Medical",2000,"Employee related costs","2000-003","Medical Aid Contributions",2003,"Medical Aid Contributions",1200,"Finance and administration",1204,"Finance","_"," _"," _","O","IE"," _ "," _ "," _ "," _ "," _ "," _ ","_","_"," _ "," _ "," _ "," _ "," _ "," _ "," _ "," _ ",null," _ "," _ "," _ "," _ ",null,null,null," _ "," _ "," _ "," _ "," _ "," _ "," _ "," _ "," _ "," _ "," _ ",null," _ "," _ "," _ "," _ "," _ ",null," _ "," _ "," _ "," _ ","SM",2,22,"Finance","Finance and Administration",null,null,47570,0,0,49752,49752,52992,49752,49752,46956,"_","_","_","_"]
["O0001/IE06864/F0041/X049/R0374/001/46","O0001/IE06864/F0041/X049/R0374/001/46",73,61,"Expenditure:Employee Related Cost:Senior Management:Designation:Salaries and Allowances:Allowance:Housing Benefits",2000,"Employee related costs","2000-008","Housing Allowances",2008,"Housing Allowances",1200,"Finance and administration",1204,"Finance","_"," _"," _","O","IE"," _ "," _ "," _ "," _ "," _ "," _ ","_","_"," _ "," _ "," _ "," _ "," _ "," _ "," _ "," _ ",null," _ "," _ "," _ "," _ ",null,null,null," _ "," _ "," _ "," _ "," _ "," _ "," _ "," _ "," _ "," _ "," _ ",null," _ "," _ "," _ "," _ "," _ ",null," _ "," _ "," _ "," _ ","SM",2,22,"Finance","Finance and Administration",null,null,0,18600,0,0,0,0,0,0,0,"_","_","_","_"]
["O0001/IE06828/F0041/X049/R0374/001/46","O0001/IE06828/F0041/X049/R0374/001/46",74,62,"Expenditure:Employee Related Cost:Senior Management:Designation:Salaries and Allowances:Allowance:Cellular and Telephone",2000,"Employee related costs","2000-007","Cellphone Allowance",2007,"Cellphone Allowance",1200,"Finance and administration",1204,"Finance","_"," _"," _","O","IE"," _ "," _ "," _ "," _ "," _ "," _ ","_","_"," _ "," _ "," _ "," _ "," _ "," _ "," _ "," _ ",null," _ "," _ "," _ "," _ ",null,null,null," _ "," _ "," _ "," _ "," _ "," _ "," _ "," _ "," _ "," _ "," _ ",null," _ "," _ "," _ "," _ "," _ ",null," _ "," _ "," _ "," _ ","SM",2,22,"Finance","Finance and Administration",null,null,9600,0,0,9600,9600,9600,0,0,8800,"_","_","_","_"]
["O0001/IE06079/F0041/X049/R0374/001/46","O0001/IE06079/F0041/X049/R0374/001/46",75,63,"Expenditure:Employee Related Cost:Senior Management:Designation:Salaries and Allowances:Basic Salary",2000,"Employee related costs","2000-001","Basic Salaries and Wages",2001,"Basic Salaries and Wages",1200,"Finance and administration",1204,"Finance","_"," _"," _","O","IE"," _ "," _ "," _ "," _ "," _ "," _ ","_","_"," _ "," _ "," _ "," _ "," _ "," _ "," _ "," _ ",null," _ "," _ "," _ "," _ ",null,null,null," _ "," _ "," _ "," _ "," _ "," _ "," _ "," _ "," _ "," _ "," _ ",null," _ "," _ "," _ "," _ "," _ ",null," _ "," _ "," _ "," _ ","SM",2,22,"Finance","Finance and Administration",null,null,1045529,345167,0,1032473,1032473,1029727,1227918,1227918,946479,"_","_","_","_"]
["O0001/IE06913/F0041/X049/R0374/001/46","O0001/IE06913/F0041/X049/R0374/001/46",76,64,"Expenditure:Employee Related Cost:Senior Management:Designation:Salaries and Allowances:Allowance:Travel or Motor Vehicle",2000,"Employee related costs","2000-006","Motor Vehicle Allowance",2006,"Motor Vehicle Allowance",1200,"Finance and administration",1204,"Finance","_"," _"," _","O","IE"," _ "," _ "," _ "," _ "," _ "," _ ","_","_"," _ "," _ "," _ "," _ "," _ "," _ "," _ "," _ ",null," _ "," _ "," _ "," _ ",null,null,null," _ "," _ "," _ "," _ "," _ "," _ "," _ "," _ "," _ "," _ "," _ ",null," _ "," _ "," _ "," _ "," _ ",null," _ "," _ "," _ "," _ ","SM",2,22,"Finance","Finance and Administration",null,null,120000,10000,0,120000,120000,120000,120000,120000,110000,"_","_","_","_"]
["O0001/IE06109/F0041/X049/R0374/001/46","O0001/IE06109/F0041/X049/R0374/001/46",77,65,"Expenditure:Employee Related Cost:Senior Management:Designation:Salaries and Allowances:Bonuses",2000,"Employee related costs","2000-005","Performance Bonus",2005,"Performance Bonus",1200,"Finance and administration",1204,"Finance","_"," _"," _","O","IE"," _ "," _ "," _ "," _ "," _ "," _ ","_","_"," _ "," _ "," _ "," _ "," _ "," _ "," _ "," _ ",null," _ "," _ "," _ "," _ ",null,null,null," _ "," _ "," _ "," _ "," _ "," _ "," _ "," _ "," _ "," _ "," _ ",null," _ "," _ "," _ "," _ "," _ ",null," _ "," _ "," _ "," _ ","SM",2,22,"Finance","Finance and Administration",null,null,0,0,0,0,0,0,0,0,0,"_","_","_","_"]
["O0001/IE06223/F0041/X049/R0374/001/46","O0001/IE06223/F0041/X049/R0374/001/46",78,66,"Expenditure:Employee Related Cost:Senior Management:Designation:Social Contributions:Pension",2000,"Employee related costs","2000-002","Pension and UIF Contributions",2002,"Pension and UIF Contributions",1200,"Finance and administration",1204,"Finance","_"," _"," _","O","IE"," _ "," _ "," _ "," _ "," _ "," _ ","_","_"," _ "," _ "," _ "," _ "," _ "," _ "," _ "," _ ",null," _ "," _ "," _ "," _ ",null,null,null," _ "," _ "," _ "," _ "," _ "," _ "," _ "," _ "," _ "," _ "," _ ",null," _ "," _ "," _ "," _ "," _ ",null," _ "," _ "," _ "," _ ","SM",2,22,"Finance","Finance and Administration",null,null,186178,0,0,185845,185845,185350,0,0,170147,"_","_","_","_"]
["O0001/IE00595/F0041/X049/R0373/001/46","O0001/IE00595/F0041/X049/R0373/001/46",79,67,"Expenditure:Operational Cost:Skills Development Fund Levy",2900,"Other expenditure","_","_",2904,"Other Expenditure",1200,"Finance and administration",1204,"Finance","_"," _"," _","O","IE"," _ "," _ "," _ "," _ "," _ "," _ ","_","_"," _ "," _ "," _ "," _ "," _ "," _ "," _ "," _ ",null," _ "," _ "," _ "," _ ",null,null,null," _ "," _ "," _ "," _ "," _ "," _ "," _ "," _ "," _ "," _ "," _ ",null," _ "," _ "," _ "," _ "," _ ",null," _ "," _ "," _ "," _ ",null,2,22,"Finance","Finance and Administration",null,null,0,0,0,0,0,11111,0,0,0,"_","_","_","_"]
["O0001/IE06253/F0041/X049/R0374/001/46","O0001/IE06253/F0041/X049/R0374/001/46",80,68,"Expenditure:Employee Related Cost:Senior Management:Designation:Social Contributions:Unemployment Insurance",2000,"Employee related costs","2000-002","Pension and UIF Contributions",2002,"Pension and UIF Contributions",1200,"Finance and administration",1204,"Finance","_"," _"," _","O","IE"," _ "," _ "," _ "," _ "," _ "," _ ","_","_"," _ "," _ "," _ "," _ "," _ "," _ "," _ "," _ ",null," _ "," _ "," _ "," _ ",null,null,null," _ "," _ "," _ "," _ "," _ "," _ "," _ "," _ "," _ "," _ "," _ ",null," _ "," _ "," _ "," _ "," _ ",null," _ "," _ "," _ "," _ ","SM",2,22,"Finance","Finance and Administration",null,null,1785,2354,0,0,0,1785,0,0,446,"_","_","_","_"]
["O0001/IE06146/F0041/X049/R0374/001/46","O0001/IE06146/F0041/X049/R0374/001/46",81,69,"Expenditure:Employee Related Cost:Senior Management:Designation:Social Contributions:Bargaining Council",2000,"Employee related costs","2000-009","Other benefits and allowances",2009,"Other benefits and allowances",1200,"Finance and administration",1204,"Finance","_"," _"," _","O","IE"," _ "," _ "," _ "," _ "," _ "," _ ","_","_"," _ "," _ "," _ "," _ "," _ "," _ "," _ "," _ ",null," _ "," _ "," _ "," _ ",null,null,null," _ "," _ "," _ "," _ "," _ "," _ "," _ "," _ "," _ "," _ "," _ ",null," _ "," _ "," _ "," _ "," _ ",null," _ "," _ "," _ "," _ ","SM",2,22,"Finance","Finance and Administration",null,null,112,0,0,0,0,119,0,0,109,"_","_","_","_"]
["D0001/IR006912/F13576/X045/R0374/001/43","D0001/IR006912/F13576/X045/R0374/001/43",82,70,"Revenue:Non-exchange Revenue:Transfers and Subsidies:Operational:Monetary Allocations:Provincial Government:Free State:Capacity Building and Other:Specify (Add grant description)",1500,"Transfers and subsidies",1500,"Transfers and subsidies"," _ "," _ ",1100,"Executive and council",1120,"Municipal Manager, Town Secretary and Chief Executive","_"," _"," _","D","IR"," _ "," _ "," _ "," _ "," _ "," _ ","_","_"," _ "," _ "," _ "," _ "," _ "," _ "," _ "," _ ",null," _ "," _ "," _ "," _ ",null,null,null," _ "," _ "," _ "," _ "," _ "," _ "," _ "," _ "," _ "," _ "," _ ",null," _ "," _ "," _ "," _ "," _ ",null," _ "," _ "," _ "," _ ",null,1,12,"Municipal Manager, Town Secretary and Chief Executive","Executive and Council",null,null,2399965,2999956,0,-3593000,-3593000,-1840000,-2880800,-2880800,1388380,"_","_","_","_"]
["O0001/IE06078/F0041/X051/R0374/001/44","O0001/IE06078/F0041/X051/R0374/001/44",83,71,"Expenditure:Employee Related Cost:Senior Management:Designation:Salaries and Allowances:Basic Salary",2000,"Employee related costs","2000-001","Basic Salaries and Wages",2001,"Basic Salaries and Wages",1200,"Finance and administration",1206,"Human Resources","_"," _"," _","O","IE"," _ "," _ "," _ "," _ "," _ "," _ ","_","_"," _ "," _ "," _ "," _ "," _ "," _ "," _ "," _ ",null," _ "," _ "," _ "," _ ",null,null,null," _ "," _ "," _ "," _ "," _ "," _ "," _ "," _ "," _ "," _ "," _ ",null," _ "," _ "," _ "," _ "," _ ",null," _ "," _ "," _ "," _ ","SM",2,23,"Human Resources","Finance and Administration",null,null,1095555,1134172,0,1084805,1084805,1083610,1084805,1084805,994161,"_","_","_","_"]
["O0001/IE06195/F0041/X051/R0374/001/44","O0001/IE06195/F0041/X051/R0374/001/44",84,72,"Expenditure:Employee Related Cost:Senior Management:Designation:Social Contributions:Medical",2000,"Employee related costs","2000-003","Medical Aid Contributions",2003,"Medical Aid Contributions",1200,"Finance and administration",1206,"Human Resources","_"," _"," _","O","IE"," _ "," _ "," _ "," _ "," _ "," _ ","_","_"," _ "," _ "," _ "," _ "," _ "," _ "," _ "," _ ",null," _ "," _ "," _ "," _ ",null,null,null," _ "," _ "," _ "," _ "," _ "," _ "," _ "," _ "," _ "," _ "," _ ",null," _ "," _ "," _ "," _ "," _ ",null," _ "," _ "," _ "," _ ","SM",2,23,"Human Resources","Finance and Administration",null,null,0,0,0,0,0,0,0,0,0,"_","_","_","_"]
["O0001/IE06113/F0041/X051/R0374/001/44","O0001/IE06113/F0041/X051/R0374/001/44",85,73,"Expenditure:Employee Related Cost:Senior Management:Designation:Salaries and Allowances:Bonuses",2000,"Employee related costs","2000-005","Performance Bonus",2005,"Performance Bonus",1200,"Finance and administration",1206,"Human Resources","_"," _"," _","O","IE"," _ "," _ "," _ "," _ "," _ "," _ ","_","_"," _ "," _ "," _ "," _ "," _ "," _ "," _ "," _ ",null," _ "," _ "," _ "," _ ",null,null,null," _ "," _ "," _ "," _ "," _ "," _ "," _ "," _ "," _ "," _ "," _ ",null," _ "," _ "," _ "," _ "," _ ",null," _ "," _ "," _ "," _ ","SM",2,23,"Human Resources","Finance and Administration",null,null,0,0,0,0,0,0,0,0,0,"_","_","_","_"]
["O0001/IE06915/F0041/X051/R0374/001/44","O0001/IE06915/F0041/X051/R0374/001/44",86,74,"Expenditure:Employee Related Cost:Senior Management:Designation:Salaries and Allowances:Allowance:Travel or Motor Vehicle",2000,"Employee related costs","2000-006","Motor Vehicle Allowance",2006,"Motor Vehicle Allowance",1200,"Finance and administration",1206,"Human Resources","_"," _"," _","O","IE"," _ "," _ "," _ "," _ "," _ "," _ ","_","_"," _ "," _ "," _ "," _ "," _ "," _ "," _ "," _ ",null," _ "," _ "," _ "," _ ",null,null,null," _ "," _ "," _ "," _ "," _ "," _ "," _ "," _ "," _ "," _ "," _ ",null," _ "," _ "," _ "," _ "," _ ",null," _ "," _ "," _ "," _ ","SM",2,23,"Human Resources","Finance and Administration",null,null,108000,99595,0,108000,108000,108000,108000,108000,99000,"_","_","_","_"]
["O0001/IE06860/F0041/X051/R0374/001/44","O0001/IE06860/F0041/X051/R0374/001/44",87,75,"Expenditure:Employee Related Cost:Senior Management:Designation:Salaries and Allowances:Allowance:Housing Benefits",2000,"Employee related costs","2000-008","Housing Allowances",2008,"Housing Allowances",1200,"Finance and administration",1206,"Human Resources","_"," _"," _","O","IE"," _ "," _ "," _ "," _ "," _ "," _ ","_","_"," _ "," _ "," _ "," _ "," _ "," _ "," _ "," _ ",null," _ "," _ "," _ "," _ ",null,null,null," _ "," _ "," _ "," _ "," _ "," _ "," _ "," _ "," _ "," _ "," _ ",null," _ "," _ "," _ "," _ "," _ ",null," _ "," _ "," _ "," _ ","SM",2,23,"Human Resources","Finance and Administration",null,null,0,11400,0,0,0,0,0,0,0,"_","_","_","_"]
["O0001/IE06823/F0041/X051/R0374/001/44","O0001/IE06823/F0041/X051/R0374/001/44",88,76,"Expenditure:Employee Related Cost:Senior Management:Designation:Salaries and Allowances:Allowance:Cellular and Telephone",2000,"Employee related costs","2000-007","Cellphone Allowance",2007,"Cellphone Allowance",1200,"Finance and administration",1206,"Human Resources","_"," _"," _","O","IE"," _ "," _ "," _ "," _ "," _ "," _ ","_","_"," _ "," _ "," _ "," _ "," _ "," _ "," _ "," _ ",null," _ "," _ "," _ "," _ ",null,null,null," _ "," _ "," _ "," _ "," _ "," _ "," _ "," _ "," _ "," _ "," _ ",null," _ "," _ "," _ "," _ "," _ ",null," _ "," _ "," _ "," _ ","SM",2,23,"Human Resources","Finance and Administration",null,null,9600,0,0,9600,9600,9600,9600,9600,8800,"_","_","_","_"]
["O0001/IE06257/F0041/X051/R0374/001/44","O0001/IE06257/F0041/X051/R0374/001/44",89,77,"Expenditure:Employee Related Cost:Senior Management:Designation:Social Contributions:Unemployment Insurance",2000,"Employee related costs","2000-002","Pension and UIF Contributions",2002,"Pension and UIF Contributions",1200,"Finance and administration",1206,"Human Resources","_"," _"," _","O","IE"," _ "," _ "," _ "," _ "," _ "," _ ","_","_"," _ "," _ "," _ "," _ "," _ "," _ "," _ "," _ ",null," _ "," _ "," _ "," _ ",null,null,null," _ "," _ "," _ "," _ "," _ "," _ "," _ "," _ "," _ "," _ "," _ ",null," _ "," _ "," _ "," _ "," _ ",null," _ "," _ "," _ "," _ ","SM",2,23,"Human Resources","Finance and Administration",null,null,1785,1933,0,0,0,1785,0,0,1636,"_","_","_","_"]
["O0001/IE06235/F0041/X051/R0374/001/44","O0001/IE06235/F0041/X051/R0374/001/44",90,78,"Expenditure:Employee Related Cost:Senior Management:Designation:Social Contributions:Pension",2000,"Employee related costs","2000-002","Pension and UIF Contributions",2002,"Pension and UIF Contributions",1200,"Finance and administration",1206,"Human Resources","_"," _"," _","O","IE"," _ "," _ "," _ "," _ "," _ "," _ ","_","_"," _ "," _ "," _ "," _ "," _ "," _ "," _ "," _ ",null," _ "," _ "," _ "," _ ",null,null,null," _ "," _ "," _ "," _ "," _ "," _ "," _ "," _ "," _ "," _ "," _ ",null," _ "," _ "," _ "," _ "," _ ",null," _ "," _ "," _ "," _ ","SM",2,23,"Human Resources","Finance and Administration",null,null,195248,0,0,195265,195265,195265,195265,195265,178949,"_","_","_","_"]
["O0001/IE00595/F0041/X051/R0374/001/44","O0001/IE00595/F0041/X051/R0374/001/44",91,79,"Expenditure:Operational Cost:Skills Development Fund Levy",2900,"Other expenditure","_","_",2904,"Other Expenditure",1200,"Finance and administration",1206,"Human Resources","_"," _"," _","O","IE"," _ "," _ "," _ "," _ "," _ "," _ ","_","_"," _ "," _ "," _ "," _ "," _ "," _ "," _ "," _ ",null," _ "," _ "," _ "," _ ",null,null,null," _ "," _ "," _ "," _ "," _ "," _ "," _ "," _ "," _ "," _ "," _ ",null," _ "," _ "," _ "," _ "," _ ",null," _ "," _ "," _ "," _ ",null,2,23,"Human Resources","Finance and Administration",null,null,11116,14384,0,0,0,10983,0,0,10080,"_","_","_","_"]
["O0001/IE06136/F0041/X051/R0374/001/44","O0001/IE06136/F0041/X051/R0374/001/44",92,80,"Expenditure:Employee Related Cost:Senior Management:Designation:Social Contributions:Bargaining Council",2000,"Employee related costs","2000-009","Other benefits and allowances",2009,"Other benefits and allowances",1200,"Finance and administration",1206,"Human Resources","_"," _"," _","O","IE"," _ "," _ "," _ "," _ "," _ "," _ ","_","_"," _ "," _ "," _ "," _ "," _ "," _ "," _ "," _ ",null," _ "," _ "," _ "," _ ",null,null,null," _ "," _ "," _ "," _ "," _ "," _ "," _ "," _ "," _ "," _ "," _ ",null," _ "," _ "," _ "," _ "," _ ",null," _ "," _ "," _ "," _ ","SM",2,23,"Human Resources","Finance and Administration",null,null,112,0,0,0,0,119,0,0,109,"_","_","_","_"]
["O0001/IE06086/F0041/X098/R0374/001/96","O0001/IE06086/F0041/X098/R0374/001/96",93,81,"Expenditure:Employee Related Cost:Senior Management:Designation:Salaries and Allowances:Basic Salary",2000,"Employee related costs","2000-001","Basic Salaries and Wages",2001,"Basic Salaries and Wages",3100,"Planning and development",3105,"Economic Development/Planning","_"," _"," _","O","IE"," _ "," _ "," _ "," _ "," _ "," _ ","_","_"," _ "," _ "," _ "," _ "," _ "," _ "," _ "," _ ",null," _ "," _ "," _ "," _ ",null,null,null," _ "," _ "," _ "," _ "," _ "," _ "," _ "," _ "," _ "," _ "," _ ",null," _ "," _ "," _ "," _ "," _ ",null," _ "," _ "," _ "," _ ","SM",3,33,"Economic Development/Planning","Planning and Development",null,null,1156035,1074394,0,1149263,1149263,1147535,1245035,1245035,1052771,"_","_","_","_"]
["O0001/IE06201/F0041/X098/R0374/001/96","O0001/IE06201/F0041/X098/R0374/001/96",94,82,"Expenditure:Employee Related Cost:Senior Management:Designation:Social Contributions:Medical",2000,"Employee related costs","2000-003","Medical Aid Contributions",2003,"Medical Aid Contributions",3100,"Planning and development",3105,"Economic Development/Planning","_"," _"," _","O","IE"," _ "," _ "," _ "," _ "," _ "," _ ","_","_"," _ "," _ "," _ "," _ "," _ "," _ "," _ "," _ ",null," _ "," _ "," _ "," _ ",null,null,null," _ "," _ "," _ "," _ "," _ "," _ "," _ "," _ "," _ "," _ "," _ ",null," _ "," _ "," _ "," _ "," _ ",null," _ "," _ "," _ "," _ ","SM",3,33,"Economic Development/Planning","Planning and Development",null,null,40266,0,0,41724,41724,43596,41724,41724,39027,"_","_","_","_"]
["O0001/IE06861/F0041/X098/R0374/001/96","O0001/IE06861/F0041/X098/R0374/001/96",95,83,"Expenditure:Employee Related Cost:Senior Management:Designation:Salaries and Allowances:Allowance:Housing Benefits",2000,"Employee related costs","2000-008","Housing Allowances",2008,"Housing Allowances",3100,"Planning and development",3105,"Economic Development/Planning","_"," _"," _","O","IE"," _ "," _ "," _ "," _ "," _ "," _ ","_","_"," _ "," _ "," _ "," _ "," _ "," _ "," _ "," _ ",null," _ "," _ "," _ "," _ ",null,null,null," _ "," _ "," _ "," _ "," _ "," _ "," _ "," _ "," _ "," _ "," _ ",null," _ "," _ "," _ "," _ "," _ ",null," _ "," _ "," _ "," _ ","SM",3,33,"Economic Development/Planning","Planning and Development",null,null,0,3600,0,0,0,0,0,0,0,"_","_","_","_"]
["O0001/IE06830/F0041/X098/R0374/001/96","O0001/IE06830/F0041/X098/R0374/001/96",96,84,"Expenditure:Employee Related Cost:Senior Management:Designation:Salaries and Allowances:Allowance:Cellular and Telephone",2000,"Employee related costs","2000-007","Cellphone Allowance",2007,"Cellphone Allowance",3100,"Planning and development",3105,"Economic Development/Planning","_"," _"," _","O","IE"," _ "," _ "," _ "," _ "," _ "," _ ","_","_"," _ "," _ "," _ "," _ "," _ "," _ "," _ "," _ ",null," _ "," _ "," _ "," _ ",null,null,null," _ "," _ "," _ "," _ "," _ "," _ "," _ "," _ "," _ "," _ "," _ ",null," _ "," _ "," _ "," _ "," _ ",null," _ "," _ "," _ "," _ ","SM",3,33,"Economic Development/Planning","Planning and Development",null,null,0,0,0,0,0,0,0,0,1761,"_","_","_","_"]
["O0001/IE06103/F0041/X098/R0374/001/96","O0001/IE06103/F0041/X098/R0374/001/96",97,85,"Expenditure:Employee Related Cost:Senior Management:Designation:Salaries and Allowances:Bonuses",2000,"Employee related costs","2000-005","Performance Bonus",2005,"Performance Bonus",3100,"Planning and development",3105,"Economic Development/Planning","_"," _"," _","O","IE"," _ "," _ "," _ "," _ "," _ "," _ ","_","_"," _ "," _ "," _ "," _ "," _ "," _ "," _ "," _ ",null," _ "," _ "," _ "," _ ",null,null,null," _ "," _ "," _ "," _ "," _ "," _ "," _ "," _ "," _ "," _ "," _ ",null," _ "," _ "," _ "," _ "," _ ",null," _ "," _ "," _ "," _ ","SM",3,33,"Economic Development/Planning","Planning and Development",null,null,89603,0,0,95772,95772,95772,0,0,91528,"_","_","_","_"]
["O0001/IE06920/F0041/X098/R0374/001/96","O0001/IE06920/F0041/X098/R0374/001/96",98,86,"Expenditure:Employee Related Cost:Senior Management:Designation:Salaries and Allowances:Allowance:Travel or Motor Vehicle",2000,"Employee related costs","2000-006","Motor Vehicle Allowance",2006,"Motor Vehicle Allowance",3100,"Planning and development",3105,"Economic Development/Planning","_"," _"," _","O","IE"," _ "," _ "," _ "," _ "," _ "," _ ","_","_"," _ "," _ "," _ "," _ "," _ "," _ "," _ "," _ ",null," _ "," _ "," _ "," _ ",null,null,null," _ "," _ "," _ "," _ "," _ "," _ "," _ "," _ "," _ "," _ "," _ ",null," _ "," _ "," _ "," _ "," _ ",null," _ "," _ "," _ "," _ ","SM",3,33,"Economic Development/Planning","Planning and Development",null,null,110911,103283,0,110911,110911,110911,110911,110911,101668,"_","_","_","_"]
["O0001/IE06259/F0041/X098/R0374/001/96","O0001/IE06259/F0041/X098/R0374/001/96",99,87,"Expenditure:Employee Related Cost:Senior Management:Designation:Social Contributions:Unemployment Insurance",2000,"Employee related costs","2000-002","Pension and UIF Contributions",2002,"Pension and UIF Contributions",3100,"Planning and development",3105,"Economic Development/Planning","_"," _"," _","O","IE"," _ "," _ "," _ "," _ "," _ "," _ ","_","_"," _ "," _ "," _ "," _ "," _ "," _ "," _ "," _ ",null," _ "," _ "," _ "," _ ",null,null,null," _ "," _ "," _ "," _ "," _ "," _ "," _ "," _ "," _ "," _ "," _ ",null," _ "," _ "," _ "," _ "," _ ",null," _ "," _ "," _ "," _ ","SM",3,33,"Economic Development/Planning","Planning and Development",null,null,1785,14103,0,0,0,1785,0,0,1636,"_","_","_","_"]
["O0001/IE06232/F0041/X098/R0374/001/96","O0001/IE06232/F0041/X098/R0374/001/96",100,88,"Expenditure:Employee Related Cost:Senior Management:Designation:Social Contributions:Pension",2000,"Employee related costs","2000-002","Pension and UIF Contributions",2002,"Pension and UIF Contributions",3100,"Planning and development",3105,"Economic Development/Planning","_"," _"," _","O","IE"," _ "," _ "," _ "," _ "," _ "," _ ","_","_"," _ "," _ "," _ "," _ "," _ "," _ "," _ "," _ ",null," _ "," _ "," _ "," _ ",null,null,null," _ "," _ "," _ "," _ "," _ "," _ "," _ "," _ "," _ "," _ "," _ ",null," _ "," _ "," _ "," _ "," _ ",null," _ "," _ "," _ "," _ ","SM",3,33,"Economic Development/Planning","Planning and Development",null,null,0,0,0,0,0,0,0,0,0,"_","_","_","_"]
["O0001/IE00595/F0041/X098/R0374/001/96","O0001/IE00595/F0041/X098/R0374/001/96",101,89,"Expenditure:Operational Cost:Skills Development Fund Levy",2900,"Other expenditure","_","_",2904,"Other Expenditure",3100,"Planning and development",3105,"Economic Development/Planning","_"," _"," _","O","IE"," _ "," _ "," _ "," _ "," _ "," _ ","_","_"," _ "," _ "," _ "," _ "," _ "," _ "," _ "," _ ",null," _ "," _ "," _ "," _ ",null,null,null," _ "," _ "," _ "," _ "," _ "," _ "," _ "," _ "," _ "," _ "," _ ",null," _ "," _ "," _ "," _ "," _ ",null," _ "," _ "," _ "," _ ",null,3,33,"Economic Development/Planning","Planning and Development",null,null,13778,47655,0,0,0,12799,0,0,12652,"_","_","_","_"]
["O0001/IE06140/F0041/X098/R0374/001/96","O0001/IE06140/F0041/X098/R0374/001/96",102,90,"Expenditure:Employee Related Cost:Senior Management:Designation:Social Contributions:Bargaining Council",2000,"Employee related costs","2000-009","Other benefits and allowances",2009,"Other benefits and allowances",3100,"Planning and development",3105,"Economic Development/Planning","_"," _"," _","O","IE"," _ "," _ "," _ "," _ "," _ "," _ ","_","_"," _ "," _ "," _ "," _ "," _ "," _ "," _ "," _ ",null," _ "," _ "," _ "," _ ",null,null,null," _ "," _ "," _ "," _ "," _ "," _ "," _ "," _ "," _ "," _ "," _ ",null," _ "," _ "," _ "," _ "," _ ",null," _ "," _ "," _ "," _ ","SM",3,33,"Economic Development/Planning","Planning and Development",null,null,112,0,0,0,0,119,0,0,109,"_","_","_","_"]
["O0001/IE00650/F0041/X044/R0374/001/42","O0001/IE00650/F0041/X044/R0374/001/42",103,91,"Expenditure:Contracted Services:Contractors:Maintenance of Equipment",2700,"Contracted services","2700-003","Contractors",2703,"Contractors",1100,"Executive and council",1110,"Mayor and Council","_"," _"," _","O","IE"," _ "," _ "," _ "," _ "," _ "," _ ","_","_"," _ "," _ "," _ "," _ "," _ "," _ "," _ "," _ ",null," _ "," _ "," _ "," _ ",null,null,null," _ "," _ "," _ "," _ "," _ "," _ "," _ "," _ "," _ "," _ "," _ ","RM"," _ "," _ "," _ "," _ "," _ ",null," _ "," _ "," _ "," _ ",null,1,11,"Mayor and Council","Executive and Council",null,null,28497,0,0,0,0,0,0,0,0,"_","_","_","_"]
["O0001/IE00036/F1177/X049/R0374/001/46","O0001/IE00036/F1177/X049/R0374/001/46",104,92,"Expenditure:Employee Related Cost:Municipal Staff:Salaries, Wages and Allowances:Basic Salary and Wages",2000,"Employee related costs","2000-001","Basic Salaries and Wages",2001,"Basic Salaries and Wages",1200,"Finance and administration",1204,"Finance","_"," _"," _","O","IE"," _ "," _ "," _ "," _ "," _ "," _ ","_","_"," _ "," _ "," _ "," _ "," _ "," _ "," _ "," _ ",null," _ "," _ "," _ "," _ ",null,null,null," _ "," _ "," _ "," _ "," _ "," _ "," _ "," _ "," _ "," _ "," _ ",null," _ "," _ "," _ "," _ "," _ ",null," _ "," _ "," _ "," _ ","MS",2,22,"Finance","Finance and Administration",null,null,465457,280177,0,531250,531250,500000,584241,643721,477176,"_","_","_","_"]
["O0001/IE00045/F1177/X049/R0374/001/46","O0001/IE00045/F1177/X049/R0374/001/46",105,93,"Expenditure:Employee Related Cost:Municipal Staff:Social Contributions:Unemployment Insurance",2000,"Employee related costs","2000-002","Pension and UIF Contributions",2002,"Pension and UIF Contributions",1200,"Finance and administration",1204,"Finance","_"," _"," _","O","IE"," _ "," _ "," _ "," _ "," _ "," _ ","_","_"," _ "," _ "," _ "," _ "," _ "," _ "," _ "," _ ",null," _ "," _ "," _ "," _ ",null,null,null," _ "," _ "," _ "," _ "," _ "," _ "," _ "," _ "," _ "," _ "," _ ",null," _ "," _ "," _ "," _ "," _ ",null," _ "," _ "," _ "," _ ","MS",2,22,"Finance","Finance and Administration",null,null,4775,2093,0,5000,5000,5000,5000,5000,4714,"_","_","_","_"]
["O0001/IE00036/F13576/X046/R0373/001/44","O0001/IE00036/F13576/X046/R0373/001/44",106,94,"Expenditure:Employee Related Cost:Municipal Staff:Salaries, Wages and Allowances:Basic Salary and Wages",2000,"Employee related costs","2000-001","Basic Salaries and Wages",2001,"Basic Salaries and Wages",1200,"Finance and administration",1201,"Administrative and Corporate Support","_"," _"," _","O","IE"," _ "," _ "," _ "," _ "," _ "," _ ","_","_"," _ "," _ "," _ "," _ "," _ "," _ "," _ "," _ ",null," _ "," _ "," _ "," _ ",null,null,null," _ "," _ "," _ "," _ "," _ "," _ "," _ "," _ "," _ "," _ "," _ ",null," _ "," _ "," _ "," _ "," _ ",null," _ "," _ "," _ "," _ ","MS",2,21,"Administrative and Corporate Support","Finance and Administration",null,null,0,0,0,2898408,3444019,3554802,3264974,3264974,0,"_","_","_","_"]
["O0001/IE00045/F13576/X046/R0374/001/44","O0001/IE00045/F13576/X046/R0374/001/44",107,95,"Expenditure:Employee Related Cost:Municipal Staff:Social Contributions:Unemployment Insurance",2000,"Employee related costs","2000-002","Pension and UIF Contributions",2002,"Pension and UIF Contributions",1200,"Finance and administration",1201,"Administrative and Corporate Support","_"," _"," _","O","IE"," _ "," _ "," _ "," _ "," _ "," _ ","_","_"," _ "," _ "," _ "," _ "," _ "," _ "," _ "," _ ",null," _ "," _ "," _ "," _ ",null,null,null," _ "," _ "," _ "," _ "," _ "," _ "," _ "," _ "," _ "," _ "," _ ",null," _ "," _ "," _ "," _ "," _ ",null," _ "," _ "," _ "," _ ","MS",2,21,"Administrative and Corporate Support","Finance and Administration",null,null,0,0,0,13273,832,14277,13273,13273,0,"_","_","_","_"]
["O0001/IE00036/F0041/X096/R0374/001/96","O0001/IE00036/F0041/X096/R0374/001/96",108,96,"Expenditure:Employee Related Cost:Municipal Staff:Salaries, Wages and Allowances:Basic Salary and Wages",2000,"Employee related costs","2000-001","Basic Salaries and Wages",2001,"Basic Salaries and Wages",3100,"Planning and development",3102,"Corporate Wide Strategic Planning (IDPs, LEDs)","_"," _"," _","O","IE"," _ "," _ "," _ "," _ "," _ "," _ ","_","_"," _ "," _ "," _ "," _ "," _ "," _ "," _ "," _ ",null," _ "," _ "," _ "," _ ",null,null,null," _ "," _ "," _ "," _ "," _ "," _ "," _ "," _ "," _ "," _ "," _ ",null," _ "," _ "," _ "," _ "," _ ",null," _ "," _ "," _ "," _ ","MS",3,31,"Corporate Wide Strategic Planning (IDPs, LEDs)","Planning and Development",null,null,4766880,5600036,0,4846122,5673415,5983202,6397522,6736880,4971390,"_","_","_","_"]
["O0001/IE01533/F0041/X096/R0374/001/96","O0001/IE01533/F0041/X096/R0374/001/96",109,97,"Expenditure:Employee Related Cost:Municipal Staff:Salaries, Wages and Allowances:Allowances:Service Related Benefits:Long Service Award",2000,"Employee related costs","2000-011","Long service awards",2011,"Long service awards",3100,"Planning and development",3102,"Corporate Wide Strategic Planning (IDPs, LEDs)","_"," _"," _","O","IE"," _ "," _ "," _ "," _ "," _ "," _ ","_","_"," _ "," _ "," _ "," _ "," _ "," _ "," _ "," _ ",null," _ "," _ "," _ "," _ ",null,null,null," _ "," _ "," _ "," _ "," _ "," _ "," _ "," _ "," _ "," _ "," _ ",null," _ "," _ "," _ "," _ "," _ ",null," _ "," _ "," _ "," _ ","MS",3,31,"Corporate Wide Strategic Planning (IDPs, LEDs)","Planning and Development",null,null,49058,9433,0,0,25774,27515,0,0,31278,"_","_","_","_"]
["O0001/IE01521/F0041/X096/R0374/001/96","O0001/IE01521/F0041/X096/R0374/001/96",110,98,"Expenditure:Employee Related Cost:Municipal Staff:Salaries, Wages and Allowances:Allowances:Housing Benefits and Incidental:Housing Benefits",2000,"Employee related costs","2000-008","Housing Allowances",2008,"Housing Allowances",3100,"Planning and development",3102,"Corporate Wide Strategic Planning (IDPs, LEDs)","_"," _"," _","O","IE"," _ "," _ "," _ "," _ "," _ "," _ ","_","_"," _ "," _ "," _ "," _ "," _ "," _ "," _ "," _ ",null," _ "," _ "," _ "," _ ",null,null,null," _ "," _ "," _ "," _ "," _ "," _ "," _ "," _ "," _ "," _ "," _ ",null," _ "," _ "," _ "," _ "," _ ",null," _ "," _ "," _ "," _ ","MS",3,31,"Corporate Wide Strategic Planning (IDPs, LEDs)","Planning and Development",null,null,32680,40914,0,34722,34722,34722,34722,34722,31829,"_","_","_","_"]
["O0001/IE00121/F0041/X096/R0374/001/96","O0001/IE00121/F0041/X096/R0374/001/96",111,99,"Expenditure:Employee Related Cost:Municipal Staff:Salaries, Wages and Allowances:Allowances:Cellular and Telephone",2000,"Employee related costs","2000-007","Cellphone Allowance",2007,"Cellphone Allowance",3100,"Planning and development",3102,"Corporate Wide Strategic Planning (IDPs, LEDs)","_"," _"," _","O","IE"," _ "," _ "," _ "," _ "," _ "," _ ","_","_"," _ "," _ "," _ "," _ "," _ "," _ "," _ "," _ ",null," _ "," _ "," _ "," _ ",null,null,null," _ "," _ "," _ "," _ "," _ "," _ "," _ "," _ "," _ "," _ "," _ ",null," _ "," _ "," _ "," _ "," _ ",null," _ "," _ "," _ "," _ ","MS",3,31,"Corporate Wide Strategic Planning (IDPs, LEDs)","Planning and Development",null,null,69696,34747,0,66144,66144,79344,66144,66144,75061,"_","_","_","_"]
["O0001/IE01526/F0041/X096/R0374/001/96","O0001/IE01526/F0041/X096/R0374/001/96",112,100,"Expenditure:Employee Related Cost:Municipal Staff:Salaries, Wages and Allowances:Allowances:Service Related Benefits:Bonus",2000,"Employee related costs","2000-005","Performance Bonus",2005,"Performance Bonus",3100,"Planning and development",3102,"Corporate Wide Strategic Planning (IDPs, LEDs)","_"," _"," _","O","IE"," _ "," _ "," _ "," _ "," _ "," _ ","_","_"," _ "," _ "," _ "," _ "," _ "," _ "," _ "," _ ",null," _ "," _ "," _ "," _ ",null,null,null," _ "," _ "," _ "," _ "," _ "," _ "," _ "," _ "," _ "," _ "," _ ",null," _ "," _ "," _ "," _ "," _ ",null," _ "," _ "," _ "," _ ","MS",3,31,"Corporate Wide Strategic Planning (IDPs, LEDs)","Planning and Development",null,null,414543,388862,0,403843,403843,498600,403843,403843,384214,"_","_","_","_"]
["O0001/IE00126/F0041/X096/R0374/001/96","O0001/IE00126/F0041/X096/R0374/001/96",113,101,"Expenditure:Employee Related Cost:Municipal Staff:Salaries, Wages and Allowances:Allowances:Travel or Motor Vehicle",2000,"Employee related costs","2000-006","Motor Vehicle Allowance",2006,"Motor Vehicle Allowance",3100,"Planning and development",3102,"Corporate Wide Strategic Planning (IDPs, LEDs)","_"," _"," _","O","IE"," _ "," _ "," _ "," _ "," _ "," _ ","_","_"," _ "," _ "," _ "," _ "," _ "," _ "," _ "," _ ",null," _ "," _ "," _ "," _ ",null,null,null," _ "," _ "," _ "," _ "," _ "," _ "," _ "," _ "," _ "," _ "," _ ",null," _ "," _ "," _ "," _ "," _ ",null," _ "," _ "," _ "," _ ","MS",3,31,"Corporate Wide Strategic Planning (IDPs, LEDs)","Planning and Development",null,null,931881,1082137,0,883746,883746,1040184,883746,883746,929800,"_","_","_","_"]
["O0001/IE00040/F0041/X096/R0374/001/96","O0001/IE00040/F0041/X096/R0374/001/96",114,102,"Expenditure:Employee Related Cost:Municipal Staff:Social Contributions:Bargaining Council",2000,"Employee related costs","2000-009","Other benefits and allowances",2009,"Other benefits and allowances",3100,"Planning and development",3102,"Corporate Wide Strategic Planning (IDPs, LEDs)","_"," _"," _","O","IE"," _ "," _ "," _ "," _ "," _ "," _ ","_","_"," _ "," _ "," _ "," _ "," _ "," _ "," _ "," _ ",null," _ "," _ "," _ "," _ ",null,null,null," _ "," _ "," _ "," _ "," _ "," _ "," _ "," _ "," _ "," _ "," _ ",null," _ "," _ "," _ "," _ "," _ ",null," _ "," _ "," _ "," _ ","MS",3,31,"Corporate Wide Strategic Planning (IDPs, LEDs)","Planning and Development",null,null,1417,0,0,1342,1342,1782,1342,1342,1535,"_","_","_","_"]
["O0001/IE00043/F0041/X096/R0374/001/96","O0001/IE00043/F0041/X096/R0374/001/96",115,103,"Expenditure:Employee Related Cost:Municipal Staff:Social Contributions:Medical",2000,"Employee related costs","2000-003","Medical Aid Contributions",2003,"Medical Aid Contributions",3100,"Planning and development",3102,"Corporate Wide Strategic Planning (IDPs, LEDs)","_"," _"," _","O","IE"," _ "," _ "," _ "," _ "," _ "," _ ","_","_"," _ "," _ "," _ "," _ "," _ "," _ "," _ "," _ ",null," _ "," _ "," _ "," _ ",null,null,null," _ "," _ "," _ "," _ "," _ "," _ "," _ "," _ "," _ "," _ "," _ ",null," _ "," _ "," _ "," _ "," _ ",null," _ "," _ "," _ "," _ ","MS",3,31,"Corporate Wide Strategic Planning (IDPs, LEDs)","Planning and Development",null,null,443403,545359,0,420746,420746,607931,420746,420746,482855,"_","_","_","_"]
["O0001/IE00044/F0041/X096/R0374/001/96","O0001/IE00044/F0041/X096/R0374/001/96",116,104,"Expenditure:Employee Related Cost:Municipal Staff:Social Contributions:Pension",2000,"Employee related costs","2000-002","Pension and UIF Contributions",2002,"Pension and UIF Contributions",3100,"Planning and development",3102,"Corporate Wide Strategic Planning (IDPs, LEDs)","_"," _"," _","O","IE"," _ "," _ "," _ "," _ "," _ "," _ ","_","_"," _ "," _ "," _ "," _ "," _ "," _ "," _ "," _ ",null," _ "," _ "," _ "," _ ",null,null,null," _ "," _ "," _ "," _ "," _ "," _ "," _ "," _ "," _ "," _ "," _ ",null," _ "," _ "," _ "," _ "," _ ",null," _ "," _ "," _ "," _ ","MS",3,31,"Corporate Wide Strategic Planning (IDPs, LEDs)","Planning and Development",null,null,864735,1050133,0,872302,872302,1077294,872302,872302,646540,"_","_","_","_"]
["O0001/IE00045/F0041/X096/R0374/001/96","O0001/IE00045/F0041/X096/R0374/001/96",117,105,"Expenditure:Employee Related Cost:Municipal Staff:Social Contributions:Unemployment Insurance",2000,"Employee related costs","2000-002","Pension and UIF Contributions",2002,"Pension and UIF Contributions",3100,"Planning and development",3102,"Corporate Wide Strategic Planning (IDPs, LEDs)","_"," _"," _","O","IE"," _ "," _ "," _ "," _ "," _ "," _ ","_","_"," _ "," _ "," _ "," _ "," _ "," _ "," _ "," _ ",null," _ "," _ "," _ "," _ ",null,null,null," _ "," _ "," _ "," _ "," _ "," _ "," _ "," _ "," _ "," _ "," _ ",null," _ "," _ "," _ "," _ "," _ ",null," _ "," _ "," _ "," _ ","MS",3,31,"Corporate Wide Strategic Planning (IDPs, LEDs)","Planning and Development",null,null,22605,20013,0,21416,21416,26770,21416,21416,22967,"_","_","_","_"]
["O0001/IE00595/F0041/X096/R0374/001/96","O0001/IE00595/F0041/X096/R0374/001/96",118,106,"Expenditure:Operational Cost:Skills Development Fund Levy",2900,"Other expenditure","_","_",2904,"Other Expenditure",3100,"Planning and development",3102,"Corporate Wide Strategic Planning (IDPs, LEDs)","_"," _"," _","O","IE"," _ "," _ "," _ "," _ "," _ "," _ ","_","_"," _ "," _ "," _ "," _ "," _ "," _ "," _ "," _ ",null," _ "," _ "," _ "," _ ",null,null,null," _ "," _ "," _ "," _ "," _ "," _ "," _ "," _ "," _ "," _ "," _ ",null," _ "," _ "," _ "," _ "," _ ",null," _ "," _ "," _ "," _ ",null,3,31,"Corporate Wide Strategic Planning (IDPs, LEDs)","Planning and Development",null,null,61871,47637,0,58257,58257,67763,58257,58257,63668,"_","_","_","_"]
["O1304-1/IE00671/F0041/X044/R0374/001/42","O1304-1/IE00671/F0041/X044/R0374/001/42",119,107,"Expenditure:Contracted Services:Contractors:Transportation",2700,"Contracted services","2700-003","Contractors",2703,"Contractors",1100,"Executive and council",1110,"Mayor and Council","_"," _"," _","O","IE"," _ "," _ "," _ "," _ "," _ "," _ ","_","_"," _ "," _ "," _ "," _ "," _ "," _ "," _ "," _ ",null," _ "," _ "," _ "," _ ",null,null,null," _ "," _ "," _ "," _ "," _ "," _ "," _ "," _ "," _ "," _ "," _ ",null," _ "," _ "," _ "," _ "," _ ",null," _ "," _ "," _ "," _ ",null,1,11,"Mayor and Council","Executive and Council",null,null,0,0,0,50000,70000,90000,114183,120349,8059,"_","_","_","_"]
["O1304-1/IE00632/F0041/X044/R0374/001/42","O1304-1/IE00632/F0041/X044/R0374/001/42",120,108,"Expenditure:Contracted Services:Contractors:Catering Services",2700,"Contracted services","2700-003","Contractors",2703,"Contractors",1100,"Executive and council",1110,"Mayor and Council","_"," _"," _","O","IE"," _ "," _ "," _ "," _ "," _ "," _ ","_","_"," _ "," _ "," _ "," _ "," _ "," _ "," _ "," _ ",null," _ "," _ "," _ "," _ ",null,null,null," _ "," _ "," _ "," _ "," _ "," _ "," _ "," _ "," _ "," _ "," _ ",null," _ "," _ "," _ "," _ "," _ ",null," _ "," _ "," _ "," _ ",null,1,11,"Mayor and Council","Executive and Council",null,null,3597,31955,0,50000,0,0,0,0,0,"_","_","_","_"]
["O0001/IE00711/F0001/X045/R0374/001/43","O0001/IE00711/F0001/X045/R0374/001/43",121,109,"Expenditure:Depreciation and Amortisation:Depreciation:Furniture and Office Equipment",2300,"Depreciation & asset impairment","2300-001","Depreciation of Property, Plant & Equipment",2301,"Depreciation of Property, Plant and Equipment",1100,"Executive and council",1120,"Municipal Manager, Town Secretary and Chief Executive","_"," _"," _","O","IE"," _ "," _ "," _ "," _ "," _ "," _ ","_","_"," _ "," _ "," _ "," _ "," _ "," _ "," _ "," _ ",null," _ "," _ "," _ "," _ ",null,null,null," _ "," _ "," _ "," _ "," _ "," _ "," _ "," _ "," _ "," _ "," _ ",null,1490,"Furniture and Office Equipment"," _ ",1490,"Furniture and Office Equipment","DP"," _ "," _ "," _ "," _ ",null,1,12,"Municipal Manager, Town Secretary and Chief Executive","Executive and Council",null,null,0,0,0,0,0,0,0,0,0,"_","_","_","_"]
["O0001/IE00709/F0001/X045/R0374/001/43","O0001/IE00709/F0001/X045/R0374/001/43",122,110,"Expenditure:Depreciation and Amortisation:Depreciation:Computer Equipment",2300,"Depreciation & asset impairment","2300-001","Depreciation of Property, Plant & Equipment",2301,"Depreciation of Property, Plant and Equipment",1100,"Executive and council",1120,"Municipal Manager, Town Secretary and Chief Executive","_"," _"," _","O","IE"," _ "," _ "," _ "," _ "," _ "," _ ","_","_"," _ "," _ "," _ "," _ "," _ "," _ "," _ "," _ ",null," _ "," _ "," _ "," _ ",null,null,null," _ "," _ "," _ "," _ "," _ "," _ "," _ "," _ "," _ "," _ "," _ ",null,1470,"Computer Equipment"," _ ",1470,"Computer Equipment","DP"," _ "," _ "," _ "," _ ",null,1,12,"Municipal Manager, Town Secretary and Chief Executive","Executive and Council",null,null,0,0,0,0,0,0,0,0,0,"_","_","_","_"]
["O0001/IE00833/F0041/X045/R0374/001/43","O0001/IE00833/F0041/X045/R0374/001/43",123,111,"Expenditure:Contracted Services:Consultants and Professional Services:Business and Advisory:Audit Committee",2700,"Contracted services","2700-002","Consultants and Professional Services",2702,"Consultants and Professional Services",1100,"Executive and council",1120,"Municipal Manager, Town Secretary and Chief Executive","_"," _"," _","O","IE"," _ "," _ "," _ "," _ "," _ "," _ ","_","_"," _ "," _ "," _ "," _ "," _ "," _ "," _ "," _ ",null," _ "," _ "," _ "," _ ",null,null,null," _ "," _ "," _ "," _ "," _ "," _ "," _ "," _ "," _ "," _ "," _ ",null," _ "," _ "," _ "," _ "," _ ",null," _ "," _ "," _ "," _ ",null,1,12,"Municipal Manager, Town Secretary and Chief Executive","Executive and Council",null,null,59012,145342,0,126000,116000,40000,100000,120000,63985,"_","_","_","_"]
["O0001/IE07625/F0001/X045/R0374/001/43","O0001/IE07625/F0001/X045/R0374/001/43",124,112,"Expenditure:Depreciation and Amortisation:Depreciation:Other Assets:Operational Buildings:Municipal Offices",2300,"Depreciation & asset impairment","2300-001","Depreciation of Property, Plant & Equipment",2301,"Depreciation of Property, Plant and Equipment",1100,"Executive and council",1120,"Municipal Manager, Town Secretary and Chief Executive","_"," _"," _","O","IE"," _ "," _ "," _ "," _ "," _ "," _ ","_","_"," _ "," _ "," _ "," _ "," _ "," _ "," _ "," _ ",null," _ "," _ "," _ "," _ ",null,null,null," _ "," _ "," _ "," _ "," _ "," _ "," _ "," _ "," _ "," _ "," _ ",null,1200,"Municipal Offices"," _ ",1200,"Municipal Offices","DP"," _ "," _ "," _ "," _ ",null,1,12,"Municipal Manager, Town Secretary and Chief Executive","Executive and Council",null,null,0,0,0,0,0,0,0,0,0,"_","_","_","_"]
["O0001/IE00715/F0001/X045/R0374/001/43","O0001/IE00715/F0001/X045/R0374/001/43",125,113,"Expenditure:Depreciation and Amortisation:Depreciation:Machinery and Equipment",2300,"Depreciation & asset impairment","2300-001","Depreciation of Property, Plant & Equipment",2301,"Depreciation of Property, Plant and Equipment",1100,"Executive and council",1120,"Municipal Manager, Town Secretary and Chief Executive","_"," _"," _","O","IE"," _ "," _ "," _ "," _ "," _ "," _ ","_","_"," _ "," _ "," _ "," _ "," _ "," _ "," _ "," _ ",null," _ "," _ "," _ "," _ ",null,null,null," _ "," _ "," _ "," _ "," _ "," _ "," _ "," _ "," _ "," _ "," _ ",null,1510,"Machinery and Equipment"," _ ",1510,"Machinery and Equipment","DP"," _ "," _ "," _ "," _ ",null,1,12,"Municipal Manager, Town Secretary and Chief Executive","Executive and Council",null,null,0,0,0,0,0,0,0,0,0,"_","_","_","_"]
["O0001/IE00516/F0041/X045/R0374/001/43","O0001/IE00516/F0041/X045/R0374/001/43",126,114,"Expenditure:Bad Debts Written Off",2200,"Debt impairment",2200,"Debt impairment"," _ "," _ ",1100,"Executive and council",1120,"Municipal Manager, Town Secretary and Chief Executive","_"," _"," _","O","IE"," _ "," _ "," _ "," _ "," _ "," _ ","_","_"," _ "," _ "," _ "," _ "," _ "," _ "," _ "," _ ",null," _ "," _ "," _ "," _ ",null,null,null," _ "," _ "," _ "," _ "," _ "," _ "," _ "," _ "," _ "," _ "," _ ",null," _ "," _ "," _ "," _ "," _ ",null," _ "," _ "," _ "," _ ",null,1,12,"Municipal Manager, Town Secretary and Chief Executive","Executive and Council",null,null,0,0,0,0,0,0,0,0,0,"_","_","_","_"]
["O0001/IE00567/F0041/X045/R0374/001/43","O0001/IE00567/F0041/X045/R0374/001/43",127,115,"Expenditure:Operational Cost:External Audit Fees",2900,"Other expenditure","_","_",2903,"Audit fees",1100,"Executive and council",1120,"Municipal Manager, Town Secretary and Chief Executive","_"," _"," _","O","IE"," _ "," _ "," _ "," _ "," _ "," _ ","_","_"," _ "," _ "," _ "," _ "," _ "," _ "," _ "," _ ",null," _ "," _ "," _ "," _ ",null,null,null," _ "," _ "," _ "," _ "," _ "," _ "," _ "," _ "," _ "," _ "," _ ",null," _ "," _ "," _ "," _ "," _ ",null," _ "," _ "," _ "," _ ",null,1,12,"Municipal Manager, Town Secretary and Chief Executive","Executive and Council",null,null,2125477,2885674,0,2570000,2595000,1000000,1600000,1434977,2320831,"_","_","_","_"]
["O0001/IE00762/F0041/X045/R0374/001/43","O0001/IE00762/F0041/X045/R0374/001/43",128,116,"Expenditure:Operational Cost:Bank Charges, Facility and Card Fees:Lease Payments",2900,"Other expenditure","_","_",2904,"Other Expenditure",1100,"Executive and council",1120,"Municipal Manager, Town Secretary and Chief Executive","_"," _"," _","O","IE"," _ "," _ "," _ "," _ "," _ "," _ ","_","_"," _ "," _ "," _ "," _ "," _ "," _ "," _ "," _ ",null," _ "," _ "," _ "," _ ",null,null,null," _ "," _ "," _ "," _ "," _ "," _ "," _ "," _ "," _ "," _ "," _ ",null," _ "," _ "," _ "," _ "," _ ",null," _ "," _ "," _ "," _ ",null,1,12,"Municipal Manager, Town Secretary and Chief Executive","Executive and Council",null,null,23589,0,0,0,0,0,0,0,1141,"_","_","_","_"]
["O0001/IE00783/F0041/X045/R0374/001/43","O0001/IE00783/F0041/X045/R0374/001/43",129,117,"Expenditure:Operational Cost:Entertainment:Senior Management",2900,"Other expenditure","_","_",2904,"Other Expenditure",1100,"Executive and council",1120,"Municipal Manager, Town Secretary and Chief Executive","_"," _"," _","O","IE"," _ "," _ "," _ "," _ "," _ "," _ ","_","_"," _ "," _ "," _ "," _ "," _ "," _ "," _ "," _ ",null," _ "," _ "," _ "," _ ",null,null,null," _ "," _ "," _ "," _ "," _ "," _ "," _ "," _ "," _ "," _ "," _ ",null," _ "," _ "," _ "," _ "," _ ",null," _ "," _ "," _ "," _ ",null,1,12,"Municipal Manager, Town Secretary and Chief Executive","Executive and Council",null,null,1400,0,0,4000,3000,0,0,0,874,"_","_","_","_"]
["O0001/IE00770/F0041/X045/R0374/001/43","O0001/IE00770/F0041/X045/R0374/001/43",130,118,"Expenditure:Operational Cost:Communication:Licences (Radio and Television)",2900,"Other expenditure","_","_",2904,"Other Expenditure",1100,"Executive and council",1120,"Municipal Manager, Town Secretary and Chief Executive","_"," _"," _","O","IE"," _ "," _ "," _ "," _ "," _ "," _ ","_","_"," _ "," _ "," _ "," _ "," _ "," _ "," _ "," _ ",null," _ "," _ "," _ "," _ ",null,null,null," _ "," _ "," _ "," _ "," _ "," _ "," _ "," _ "," _ "," _ "," _ ",null," _ "," _ "," _ "," _ "," _ ",null," _ "," _ "," _ "," _ ",null,1,12,"Municipal Manager, Town Secretary and Chief Executive","Executive and Council",null,null,21909,1725,0,0,0,0,0,0,9642,"_","_","_","_"]
["O0001/IE00584/F0041/X045/R0374/001/43","O0001/IE00584/F0041/X045/R0374/001/43",131,119,"Expenditure:Operational Cost:Professional Bodies, Membership and Subscription",2900,"Other expenditure","_","_",2904,"Other Expenditure",1100,"Executive and council",1120,"Municipal Manager, Town Secretary and Chief Executive","_"," _"," _","O","IE"," _ "," _ "," _ "," _ "," _ "," _ ","_","_"," _ "," _ "," _ "," _ "," _ "," _ "," _ "," _ ",null," _ "," _ "," _ "," _ ",null,null,null," _ "," _ "," _ "," _ "," _ "," _ "," _ "," _ "," _ "," _ "," _ ",null," _ "," _ "," _ "," _ "," _ ",null," _ "," _ "," _ "," _ ",null,1,12,"Municipal Manager, Town Secretary and Chief Executive","Executive and Council",null,null,2535,0,0,500000,0,0,0,0,0,"_","_","_","_"]
["O0001/IE00771/F0041/X045/R0374/001/43","O0001/IE00771/F0041/X045/R0374/001/43",132,120,"Expenditure:Operational Cost:Communication:Postage/Stamps/Franking Machines",2900,"Other expenditure","_","_",2904,"Other Expenditure",1100,"Executive and council",1120,"Municipal Manager, Town Secretary and Chief Executive","_"," _"," _","O","IE"," _ "," _ "," _ "," _ "," _ "," _ ","_","_"," _ "," _ "," _ "," _ "," _ "," _ "," _ "," _ ",null," _ "," _ "," _ "," _ ",null,null,null," _ "," _ "," _ "," _ "," _ "," _ "," _ "," _ "," _ "," _ "," _ ",null," _ "," _ "," _ "," _ "," _ ",null," _ "," _ "," _ "," _ ",null,1,12,"Municipal Manager, Town Secretary and Chief Executive","Executive and Council",null,null,0,72,0,1982,1378,0,0,0,0,"_","_","_","_"]
["O0001/IE00060/F0041/X045/R0374/001/43","O0001/IE00060/F0041/X045/R0374/001/43",133,121,"Expenditure:Operational Cost:Travel and Subsistence:Domestic:Accommodation",2900,"Other expenditure","_","_",2904,"Other Expenditure",1100,"Executive and council",1120,"Municipal Manager, Town Secretary and Chief Executive","_"," _"," _","O","IE"," _ "," _ "," _ "," _ "," _ "," _ ","_","_"," _ "," _ "," _ "," _ "," _ "," _ "," _ "," _ ",null," _ "," _ "," _ "," _ ",null,null,null," _ "," _ "," _ "," _ "," _ "," _ "," _ "," _ "," _ "," _ "," _ ",null," _ "," _ "," _ "," _ "," _ ",null," _ "," _ "," _ "," _ ",null,1,12,"Municipal Manager, Town Secretary and Chief Executive","Executive and Council",null,null,23424,10314,0,42000,20000,12500,81795,86212,4386,"_","_","_","_"]
["O0001/IE00063/F0041/X045/R0374/001/43","O0001/IE00063/F0041/X045/R0374/001/43",134,122,"Expenditure:Operational Cost:Travel and Subsistence:Domestic:Incidental Cost",2900,"Other expenditure","_","_",2904,"Other Expenditure",1100,"Executive and council",1120,"Municipal Manager, Town Secretary and Chief Executive","_"," _"," _","O","IE"," _ "," _ "," _ "," _ "," _ "," _ ","_","_"," _ "," _ "," _ "," _ "," _ "," _ "," _ "," _ ",null," _ "," _ "," _ "," _ ",null,null,null," _ "," _ "," _ "," _ "," _ "," _ "," _ "," _ "," _ "," _ "," _ ",null," _ "," _ "," _ "," _ "," _ ",null," _ "," _ "," _ "," _ ",null,1,12,"Municipal Manager, Town Secretary and Chief Executive","Executive and Council",null,null,0,890,0,2650,1500,0,0,0,0,"_","_","_","_"]
["O0001/IE00061/F0041/X045/R0374/001/43","O0001/IE00061/F0041/X045/R0374/001/43",135,123,"Expenditure:Operational Cost:Travel and Subsistence:Domestic:Daily Allowance",2900,"Other expenditure","_","_",2904,"Other Expenditure",1100,"Executive and council",1120,"Municipal Manager, Town Secretary and Chief Executive","_"," _"," _","O","IE"," _ "," _ "," _ "," _ "," _ "," _ ","_","_"," _ "," _ "," _ "," _ "," _ "," _ "," _ "," _ ",null," _ "," _ "," _ "," _ ",null,null,null," _ "," _ "," _ "," _ "," _ "," _ "," _ "," _ "," _ "," _ "," _ ",null," _ "," _ "," _ "," _ "," _ ",null," _ "," _ "," _ "," _ ",null,1,12,"Municipal Manager, Town Secretary and Chief Executive","Executive and Council",null,null,10580,2975,0,10600,7000,5000,12736,13424,3950,"_","_","_","_"]
["O0001/IE00144/F0041/X045/R0374/001/43","O0001/IE00144/F0041/X045/R0374/001/43",136,124,"Expenditure:Operational Cost:Travel and Subsistence:Domestic:Transport without Operator:Own Transport",2900,"Other expenditure","_","_",2904,"Other Expenditure",1100,"Executive and council",1120,"Municipal Manager, Town Secretary and Chief Executive","_"," _"," _","O","IE"," _ "," _ "," _ "," _ "," _ "," _ ","_","_"," _ "," _ "," _ "," _ "," _ "," _ "," _ "," _ ",null," _ "," _ "," _ "," _ ",null,null,null," _ "," _ "," _ "," _ "," _ "," _ "," _ "," _ "," _ "," _ "," _ ",null," _ "," _ "," _ "," _ "," _ ",null," _ "," _ "," _ "," _ ",null,1,12,"Municipal Manager, Town Secretary and Chief Executive","Executive and Council",null,null,38131,46046,0,63600,30000,15000,93652,98710,55090,"_","_","_","_"]
["O0001/IE00143/F0041/X045/R0374/001/43","O0001/IE00143/F0041/X045/R0374/001/43",137,125,"Expenditure:Operational Cost:Travel and Subsistence:Domestic:Transport without Operator:Car Rental",2900,"Other expenditure","_","_",2904,"Other Expenditure",1100,"Executive and council",1120,"Municipal Manager, Town Secretary and Chief Executive","_"," _"," _","O","IE"," _ "," _ "," _ "," _ "," _ "," _ ","_","_"," _ "," _ "," _ "," _ "," _ "," _ "," _ "," _ ",null," _ "," _ "," _ "," _ ",null,null,null," _ "," _ "," _ "," _ "," _ "," _ "," _ "," _ "," _ "," _ "," _ ",null," _ "," _ "," _ "," _ "," _ ",null," _ "," _ "," _ "," _ ",null,1,12,"Municipal Manager, Town Secretary and Chief Executive","Executive and Council",null,null,490,5995,0,10300,3500,2500,6000,6000,2000,"_","_","_","_"]
["O1550-1/IE00650/F0041/X045/R0374/001/43","O1550-1/IE00650/F0041/X045/R0374/001/43",138,126,"Expenditure:Contracted Services:Contractors:Maintenance of Equipment",2700,"Contracted services","2700-003","Contractors",2703,"Contractors",1100,"Executive and council",1120,"Municipal Manager, Town Secretary and Chief Executive","_"," _"," _","O","IE"," _ "," _ "," _ "," _ "," _ "," _ ","_","_"," _ "," _ "," _ "," _ "," _ "," _ "," _ "," _ ",null," _ "," _ "," _ "," _ ",null,null,null," _ "," _ "," _ "," _ "," _ "," _ ",1510,"Machinery and Equipment"," _ ",1510,"Machinery and Equipment","RM"," _ "," _ "," _ "," _ "," _ ",null," _ "," _ "," _ "," _ ",null,1,12,"Municipal Manager, Town Secretary and Chief Executive","Executive and Council",null,null,0,0,0,0,0,0,0,0,0,"_","_","_","_"]
["O1444-1/IE00671/F0041/X044/R0374/001/42","O1444-1/IE00671/F0041/X044/R0374/001/42",139,127,"Expenditure:Contracted Services:Contractors:Transportation",2700,"Contracted services","2700-003","Contractors",2703,"Contractors",1100,"Executive and council",1110,"Mayor and Council","_"," _"," _","O","IE"," _ "," _ "," _ "," _ "," _ "," _ ","_","_"," _ "," _ "," _ "," _ "," _ "," _ "," _ "," _ ",null," _ "," _ "," _ "," _ ",null,null,null," _ "," _ "," _ "," _ "," _ "," _ "," _ "," _ "," _ "," _ "," _ ",null," _ "," _ "," _ "," _ "," _ ",null," _ "," _ "," _ "," _ ",null,1,11,"Mayor and Council","Executive and Council",null,null,0,0,0,20000,80000,90000,45673,48140,27827,"_","_","_","_"]
["O1444-1/IE00632/F0041/X044/R0374/001/42","O1444-1/IE00632/F0041/X044/R0374/001/42",140,128,"Expenditure:Contracted Services:Contractors:Catering Services",2700,"Contracted services","2700-003","Contractors",2703,"Contractors",1100,"Executive and council",1110,"Mayor and Council","_"," _"," _","O","IE"," _ "," _ "," _ "," _ "," _ "," _ ","_","_"," _ "," _ "," _ "," _ "," _ "," _ "," _ "," _ ",null," _ "," _ "," _ "," _ ",null,null,null," _ "," _ "," _ "," _ "," _ "," _ "," _ "," _ "," _ "," _ "," _ ",null," _ "," _ "," _ "," _ "," _ ",null," _ "," _ "," _ "," _ ",null,1,11,"Mayor and Council","Executive and Council",null,null,3499,0,0,20000,0,0,0,0,0,"_","_","_","_"]
["O1293-1/IE00632/F0041/X044/R0374/001/42","O1293-1/IE00632/F0041/X044/R0374/001/42",141,129,"Expenditure:Contracted Services:Contractors:Catering Services",2700,"Contracted services","2700-003","Contractors",2703,"Contractors",1100,"Executive and council",1110,"Mayor and Council","_"," _"," _","O","IE"," _ "," _ "," _ "," _ "," _ "," _ ","_","_"," _ "," _ "," _ "," _ "," _ "," _ "," _ "," _ ",null," _ "," _ "," _ "," _ ",null,null,null," _ "," _ "," _ "," _ "," _ "," _ "," _ "," _ "," _ "," _ "," _ ",null," _ "," _ "," _ "," _ "," _ ",null," _ "," _ "," _ "," _ ",null,1,11,"Mayor and Council","Executive and Council",null,null,26181,39911,0,20000,160000,100000,45673,48140,1700,"_","_","_","_"]
["O1293-1/IE00671/F0041/X044/R0374/001/42","O1293-1/IE00671/F0041/X044/R0374/001/42",142,130,"Expenditure:Contracted Services:Contractors:Transportation",2700,"Contracted services","2700-003","Contractors",2703,"Contractors",1100,"Executive and council",1110,"Mayor and Council","_"," _"," _","O","IE"," _ "," _ "," _ "," _ "," _ "," _ ","_","_"," _ "," _ "," _ "," _ "," _ "," _ "," _ "," _ ",null," _ "," _ "," _ "," _ ",null,null,null," _ "," _ "," _ "," _ "," _ "," _ "," _ "," _ "," _ "," _ "," _ ",null," _ "," _ "," _ "," _ "," _ ",null," _ "," _ "," _ "," _ ",null,1,11,"Mayor and Council","Executive and Council",null,null,0,0,0,20000,0,0,0,0,0,"_","_","_","_"]
["O1345-1/IE00632/F0041/X044/R0374/001/42","O1345-1/IE00632/F0041/X044/R0374/001/42",143,131,"Expenditure:Contracted Services:Contractors:Catering Services",2700,"Contracted services","2700-003","Contractors",2703,"Contractors",1100,"Executive and council",1110,"Mayor and Council","_"," _"," _","O","IE"," _ "," _ "," _ "," _ "," _ "," _ ","_","_"," _ "," _ "," _ "," _ "," _ "," _ "," _ "," _ ",null," _ "," _ "," _ "," _ ",null,null,null," _ "," _ "," _ "," _ "," _ "," _ "," _ "," _ "," _ "," _ "," _ ",null," _ "," _ "," _ "," _ "," _ ",null," _ "," _ "," _ "," _ ",null,1,11,"Mayor and Council","Executive and Council",null,null,1216,2809,0,5000,10000,20000,11418,12035,3217,"_","_","_","_"]
["O1345-1/IE00671/F0041/X044/R0374/001/42","O1345-1/IE00671/F0041/X044/R0374/001/42",144,132,"Expenditure:Contracted Services:Contractors:Transportation",2700,"Contracted services","2700-003","Contractors",2703,"Contractors",1100,"Executive and council",1110,"Mayor and Council","_"," _"," _","O","IE"," _ "," _ "," _ "," _ "," _ "," _ ","_","_"," _ "," _ "," _ "," _ "," _ "," _ "," _ "," _ ",null," _ "," _ "," _ "," _ ",null,null,null," _ "," _ "," _ "," _ "," _ "," _ "," _ "," _ "," _ "," _ "," _ ",null," _ "," _ "," _ "," _ "," _ ",null," _ "," _ "," _ "," _ ",null,1,11,"Mayor and Council","Executive and Council",null,null,0,0,0,5000,0,0,0,0,0,"_","_","_","_"]
["D0001/IL53988/F0041/X049/R0374/001/46","D0001/IL53988/F0041/X049/R0374/001/46",145,133,"Liabilities:Current Liabilities:Trade and Other Payable Exchange Transactions:Control, Clearing and Interface Accounts:Salary Clearing and Control:Salary Control:Withdrawals"," _"," _"," _ "," _ "," _ "," _ ",1200,"Finance and administration",1204,"Finance","_"," _"," _","D","IL",360," Trade and other payables",360,"Trade and other payables"," _ "," _ ","_","_",200,"Cash Payments by Type / Employee related costs",390,"Employee related costs"," _ "," _ "," _ "," _ ",null,361,"Trade Payables",361,"Trade Payables",null,null,null," _ "," _ "," _ "," _ "," _ "," _ "," _ "," _ "," _ "," _ "," _ ",null," _ "," _ "," _ "," _ "," _ ",null," _ "," _ "," _ "," _ ",null,2,22,"Finance","Finance and Administration",null,null,23479181,0,0,0,0,52034810,52747955,53771530,48895803,"_","_","_","_"]
["D0001/IL53987/F0041/X049/R0374/001/46","D0001/IL53987/F0041/X049/R0374/001/46",146,134,"Liabilities:Current Liabilities:Trade and Other Payable Exchange Transactions:Control, Clearing and Interface Accounts:Salary Clearing and Control:Salary Control:Deposits"," _"," _"," _ "," _ "," _ "," _ ",1200,"Finance and administration",1204,"Finance","_"," _"," _","D","IL",360," Trade and other payables",360,"Trade and other payables"," _ "," _ ","_","_"," _ "," _ "," _ "," _ "," _ "," _ "," _ "," _ ",null,361,"Trade Payables",361,"Trade Payables",null,null,null," _ "," _ "," _ "," _ "," _ "," _ "," _ "," _ "," _ "," _ "," _ ",null," _ "," _ "," _ "," _ "," _ ",null," _ "," _ "," _ "," _ ",null,2,22,"Finance","Finance and Administration",null,null,0,0,0,0,0,-52034810,-52747955,-53771530,0,"_","_","_","_"]
["D0001/IL53989/F0001/X049/R0374/001/46","D0001/IL53989/F0001/X049/R0374/001/46",147,135,"Liabilities:Current Liabilities:Trade and Other Payable Exchange Transactions:Control, Clearing and Interface Accounts:Salary Clearing and Control:Travel Control:Deposits"," _"," _"," _ "," _ "," _ "," _ ",1200,"Finance and administration",1204,"Finance","_"," _"," _","D","IL",360," Trade and other payables",360,"Trade and other payables"," _ "," _ ","_","_"," _ "," _ "," _ "," _ "," _ "," _ "," _ "," _ ",null,361,"Trade Payables",361,"Trade Payables",null,null,null," _ "," _ "," _ "," _ "," _ "," _ "," _ "," _ "," _ "," _ "," _ ",null," _ "," _ "," _ "," _ "," _ ",null," _ "," _ "," _ "," _ ",null,2,22,"Finance","Finance and Administration",null,null,0,0,0,0,0,0,0,0,0,"_","_","_","_"]
["D0001/IL53990/F0001/X049/R0374/001/46","D0001/IL53990/F0001/X049/R0374/001/46",148,136,"Liabilities:Current Liabilities:Trade and Other Payable Exchange Transactions:Control, Clearing and Interface Accounts:Salary Clearing and Control:Travel Control:Withdrawals"," _"," _"," _ "," _ "," _ "," _ ",1200,"Finance and administration",1204,"Finance","_"," _"," _","D","IL",360," Trade and other payables",360,"Trade and other payables"," _ "," _ ","_","_"," _ "," _ "," _ "," _ "," _ "," _ "," _ "," _ ",null,361,"Trade Payables",361,"Trade Payables",null,null,null," _ "," _ "," _ "," _ "," _ "," _ "," _ "," _ "," _ "," _ "," _ ",null," _ "," _ "," _ "," _ "," _ ",null," _ "," _ "," _ "," _ ",null,2,22,"Finance","Finance and Administration",null,null,3044919,0,0,0,0,0,0,0,5839436,"_","_","_","_"]
["D0001/IL53948/F0001/X049/R0374/001/46","D0001/IL53948/F0001/X049/R0374/001/46",149,137,"Liabilities:Current Liabilities:Trade and Other Payable Exchange Transactions:Control, Clearing and Interface Accounts:Salary Clearing and Control:Travel Control:Opening Balance"," _"," _"," _ "," _ "," _ "," _ ",1200,"Finance and administration",1204,"Finance","_"," _"," _","D","IL",360," Trade and other payables",360,"Trade and other payables"," _ "," _ ","_","_"," _ "," _ "," _ "," _ "," _ "," _ "," _ "," _ ",null,361,"Trade Payables",361,"Trade Payables",null,null,null," _ "," _ "," _ "," _ "," _ "," _ "," _ "," _ "," _ "," _ "," _ ",null," _ "," _ "," _ "," _ "," _ ",null," _ "," _ "," _ "," _ ",null,2,22,"Finance","Finance and Administration",null,null,-166037,0,0,0,0,0,0,0,-191068,"_","_","_","_"]
["D0001/IL53947/F0001/X049/R0374/001/46","D0001/IL53947/F0001/X049/R0374/001/46",150,138,"Liabilities:Current Liabilities:Trade and Other Payable Exchange Transactions:Control, Clearing and Interface Accounts:Salary Clearing and Control:Salary Control:Opening Balance"," _"," _"," _ "," _ "," _ "," _ ",1200,"Finance and administration",1204,"Finance","_"," _"," _","D","IL",360," Trade and other payables",360,"Trade and other payables"," _ "," _ ","_","_"," _ "," _ "," _ "," _ "," _ "," _ "," _ "," _ ",null,361,"Trade Payables",361,"Trade Payables",null,null,null," _ "," _ "," _ "," _ "," _ "," _ "," _ "," _ "," _ "," _ "," _ ",null," _ "," _ "," _ "," _ "," _ ",null," _ "," _ "," _ "," _ ",null,2,22,"Finance","Finance and Administration",null,null,-25227376,0,0,0,0,0,0,0,-56212439,"_","_","_","_"]
["D0001/IL53994/F0001/X049/R0374/001/46","D0001/IL53994/F0001/X049/R0374/001/46",151,139,"Liabilities:Current Liabilities:Trade and Other Payable Exchange Transactions:Control, Clearing and Interface Accounts:Salary Clearing and Control:Tax Control:Withdrawals"," _"," _"," _ "," _ "," _ "," _ ",1200,"Finance and administration",1204,"Finance","_"," _"," _","D","IL",360," Trade and other payables",360,"Trade and other payables"," _ "," _ ","_","_"," _ "," _ "," _ "," _ "," _ "," _ "," _ "," _ ",null,361,"Trade Payables",361,"Trade Payables",null,null,null," _ "," _ "," _ "," _ "," _ "," _ "," _ "," _ "," _ "," _ "," _ ",null," _ "," _ "," _ "," _ "," _ ",null," _ "," _ "," _ "," _ ",null,2,22,"Finance","Finance and Administration",null,null,6827125,0,0,0,0,0,0,0,13958921,"_","_","_","_"]
["D0001/IL53992/F0001/X049/R0374/001/46","D0001/IL53992/F0001/X049/R0374/001/46",152,140,"Liabilities:Current Liabilities:Trade and Other Payable Exchange Transactions:Control, Clearing and Interface Accounts:Salary Clearing and Control:Leave Control:Withdrawals"," _"," _"," _ "," _ "," _ "," _ ",1200,"Finance and administration",1204,"Finance","_"," _"," _","D","IL",360," Trade and other payables",360,"Trade and other payables"," _ "," _ ","_","_"," _ "," _ "," _ "," _ "," _ "," _ "," _ "," _ ",null,361,"Trade Payables",361,"Trade Payables",null,null,null," _ "," _ "," _ "," _ "," _ "," _ "," _ "," _ "," _ "," _ "," _ ",null," _ "," _ "," _ "," _ "," _ ",null," _ "," _ "," _ "," _ ",null,2,22,"Finance","Finance and Administration",null,null,0,0,0,0,0,0,0,0,0,"_","_","_","_"]
["D0001/IL53896/F0001/X049/R0374/001/46","D0001/IL53896/F0001/X049/R0374/001/46",153,141,"Liabilities:Current Liabilities:Trade and Other Payable Exchange Transactions:Control, Clearing and Interface Accounts:Salary Clearing and Control:Tax Control:Opening Balance"," _"," _"," _ "," _ "," _ "," _ ",1200,"Finance and administration",1204,"Finance","_"," _"," _","D","IL",360," Trade and other payables",360,"Trade and other payables"," _ "," _ ","_","_"," _ "," _ "," _ "," _ "," _ "," _ "," _ "," _ ",null,361,"Trade Payables",361,"Trade Payables",null,null,null," _ "," _ "," _ "," _ "," _ "," _ "," _ "," _ "," _ "," _ "," _ ",null," _ "," _ "," _ "," _ "," _ ",null," _ "," _ "," _ "," _ ",null,2,22,"Finance","Finance and Administration",null,null,-6553081,595930,0,0,0,0,0,0,-14488870,"_","_","_","_"]
["D0001/IL53993/F0001/X049/R0374/001/46","D0001/IL53993/F0001/X049/R0374/001/46",154,142,"Liabilities:Current Liabilities:Trade and Other Payable Exchange Transactions:Control, Clearing and Interface Accounts:Salary Clearing and Control:Tax Control:Deposits"," _"," _"," _ "," _ "," _ "," _ ",1200,"Finance and administration",1204,"Finance","_"," _"," _","D","IL",360," Trade and other payables",360,"Trade and other payables"," _ "," _ ","_","_"," _ "," _ "," _ "," _ "," _ "," _ "," _ "," _ ",null,361,"Trade Payables",361,"Trade Payables",null,null,null," _ "," _ "," _ "," _ "," _ "," _ "," _ "," _ "," _ "," _ "," _ ",null," _ "," _ "," _ "," _ "," _ ",null," _ "," _ "," _ "," _ ",null,2,22,"Finance","Finance and Administration",null,null,0,0,0,0,0,0,0,0,0,"_","_","_","_"]
["D0001/IL53991/F0001/X049/R0374/001/46","D0001/IL53991/F0001/X049/R0374/001/46",155,143,"Liabilities:Current Liabilities:Trade and Other Payable Exchange Transactions:Control, Clearing and Interface Accounts:Salary Clearing and Control:Leave Control:Deposits"," _"," _"," _ "," _ "," _ "," _ ",1200,"Finance and administration",1204,"Finance","_"," _"," _","D","IL",360," Trade and other payables",360,"Trade and other payables"," _ "," _ ","_","_"," _ "," _ "," _ "," _ "," _ "," _ "," _ "," _ ",null,361,"Trade Payables",361,"Trade Payables",null,null,null," _ "," _ "," _ "," _ "," _ "," _ "," _ "," _ "," _ "," _ "," _ ",null," _ "," _ "," _ "," _ "," _ ",null," _ "," _ "," _ "," _ ",null,2,22,"Finance","Finance and Administration",null,null,0,0,0,0,0,0,0,0,0,"_","_","_","_"]
["D0001/IL53895/F0001/X049/R0374/001/46","D0001/IL53895/F0001/X049/R0374/001/46",156,144,"Liabilities:Current Liabilities:Trade and Other Payable Exchange Transactions:Control, Clearing and Interface Accounts:Salary Clearing and Control:Leave Control:Opening Balance"," _"," _"," _ "," _ "," _ "," _ ",1200,"Finance and administration",1204,"Finance","_"," _"," _","D","IL",360," Trade and other payables",360,"Trade and other payables"," _ "," _ ","_","_"," _ "," _ "," _ "," _ "," _ "," _ "," _ "," _ ",null,361,"Trade Payables",361,"Trade Payables",null,null,null," _ "," _ "," _ "," _ "," _ "," _ "," _ "," _ "," _ "," _ "," _ ",null," _ "," _ "," _ "," _ "," _ ",null," _ "," _ "," _ "," _ ",null,2,22,"Finance","Finance and Administration",null,null,0,0,0,0,0,0,0,0,0,"_","_","_","_"]
["D0001/IL53995/F0001/X049/R0374/001/46","D0001/IL53995/F0001/X049/R0374/001/46",157,145,"Liabilities:Current Liabilities:Trade and Other Payable Exchange Transactions:Control, Clearing and Interface Accounts:Salary Clearing and Control:UIF Control:Deposits"," _"," _"," _ "," _ "," _ "," _ ",1200,"Finance and administration",1204,"Finance","_"," _"," _","D","IL",360," Trade and other payables",360,"Trade and other payables"," _ "," _ ","_","_"," _ "," _ "," _ "," _ "," _ "," _ "," _ "," _ ",null,361,"Trade Payables",361,"Trade Payables",null,null,null," _ "," _ "," _ "," _ "," _ "," _ "," _ "," _ "," _ "," _ "," _ ",null," _ "," _ "," _ "," _ "," _ ",null," _ "," _ "," _ "," _ ",null,2,22,"Finance","Finance and Administration",null,null,0,0,0,0,0,0,0,0,0,"_","_","_","_"]
["D0001/IL53997/F0001/X049/R0374/001/46","D0001/IL53997/F0001/X049/R0374/001/46",158,146,"Liabilities:Current Liabilities:Trade and Other Payable Exchange Transactions:Control, Clearing and Interface Accounts:Salary Clearing and Control:Skills Control:Deposits"," _"," _"," _ "," _ "," _ "," _ ",1200,"Finance and administration",1204,"Finance","_"," _"," _","D","IL",360," Trade and other payables",360,"Trade and other payables"," _ "," _ ","_","_"," _ "," _ "," _ "," _ "," _ "," _ "," _ "," _ ",null,361,"Trade Payables",361,"Trade Payables",null,null,null," _ "," _ "," _ "," _ "," _ "," _ "," _ "," _ "," _ "," _ "," _ ",null," _ "," _ "," _ "," _ "," _ ",null," _ "," _ "," _ "," _ ",null,2,22,"Finance","Finance and Administration",null,null,0,0,0,0,0,0,0,0,0,"_","_","_","_"]
["D0001/IL53901/F0001/X049/R0374/001/46","D0001/IL53901/F0001/X049/R0374/001/46",159,147,"Liabilities:Current Liabilities:Trade and Other Payable Exchange Transactions:Control, Clearing and Interface Accounts:Salary Clearing and Control:Skills Control:Opening Balance"," _"," _"," _ "," _ "," _ "," _ ",1200,"Finance and administration",1204,"Finance","_"," _"," _","D","IL",360," Trade and other payables",360,"Trade and other payables"," _ "," _ ","_","_"," _ "," _ "," _ "," _ "," _ "," _ "," _ "," _ ",null,361,"Trade Payables",361,"Trade Payables",null,null,null," _ "," _ "," _ "," _ "," _ "," _ "," _ "," _ "," _ "," _ "," _ ",null," _ "," _ "," _ "," _ "," _ ",null," _ "," _ "," _ "," _ ",null,2,22,"Finance","Finance and Administration",null,null,-128933,0,0,0,0,0,0,0,-445374,"_","_","_","_"]
["D0001/IL53900/F0001/X049/R0374/001/46","D0001/IL53900/F0001/X049/R0374/001/46",160,148,"Liabilities:Current Liabilities:Trade and Other Payable Exchange Transactions:Control, Clearing and Interface Accounts:Salary Clearing and Control:UIF Control:Opening Balance"," _"," _"," _ "," _ "," _ "," _ ",1200,"Finance and administration",1204,"Finance","_"," _"," _","D","IL",360," Trade and other payables",360,"Trade and other payables"," _ "," _ ","_","_"," _ "," _ "," _ "," _ "," _ "," _ "," _ "," _ ",null,361,"Trade Payables",361,"Trade Payables",null,null,null," _ "," _ "," _ "," _ "," _ "," _ "," _ "," _ "," _ "," _ "," _ ",null," _ "," _ "," _ "," _ "," _ ",null," _ "," _ "," _ "," _ ",null,2,22,"Finance","Finance and Administration",null,null,-118696,0,0,0,0,0,0,0,-364307,"_","_","_","_"]
["D0001/IL53998/F0001/X049/R0374/001/46","D0001/IL53998/F0001/X049/R0374/001/46",161,149,"Liabilities:Current Liabilities:Trade and Other Payable Exchange Transactions:Control, Clearing and Interface Accounts:Salary Clearing and Control:Skills Control:Withdrawals"," _"," _"," _ "," _ "," _ "," _ ",1200,"Finance and administration",1204,"Finance","_"," _"," _","D","IL",360," Trade and other payables",360,"Trade and other payables"," _ "," _ ","_","_"," _ "," _ "," _ "," _ "," _ "," _ "," _ "," _ ",null,361,"Trade Payables",361,"Trade Payables",null,null,null," _ "," _ "," _ "," _ "," _ "," _ "," _ "," _ "," _ "," _ "," _ ",null," _ "," _ "," _ "," _ "," _ ",null," _ "," _ "," _ "," _ ",null,2,22,"Finance","Finance and Administration",null,null,338326,0,0,0,0,0,0,0,690841,"_","_","_","_"]
["D0001/IL53996/F0001/X049/R0374/001/46","D0001/IL53996/F0001/X049/R0374/001/46",162,150,"Liabilities:Current Liabilities:Trade and Other Payable Exchange Transactions:Control, Clearing and Interface Accounts:Salary Clearing and Control:UIF Control:Withdrawals"," _"," _"," _ "," _ "," _ "," _ ",1200,"Finance and administration",1204,"Finance","_"," _"," _","D","IL",360," Trade and other payables",360,"Trade and other payables"," _ "," _ ","_","_"," _ "," _ "," _ "," _ "," _ "," _ "," _ "," _ ",null,361,"Trade Payables",361,"Trade Payables",null,null,null," _ "," _ "," _ "," _ "," _ "," _ "," _ "," _ "," _ "," _ "," _ ",null," _ "," _ "," _ "," _ "," _ ",null," _ "," _ "," _ "," _ ",null,2,22,"Finance","Finance and Administration",null,null,266698,0,0,0,0,0,0,0,511932,"_","_","_","_"]
["D0001/IL54000/F0001/X049/R0374/001/46","D0001/IL54000/F0001/X049/R0374/001/46",163,151,"Liabilities:Current Liabilities:Trade and Other Payable Exchange Transactions:Control, Clearing and Interface Accounts:Salary Clearing and Control:Pension Control:Withdrawals"," _"," _"," _ "," _ "," _ "," _ ",1200,"Finance and administration",1204,"Finance","_"," _"," _","D","IL",360," Trade and other payables",360,"Trade and other payables"," _ "," _ ","_","_"," _ "," _ "," _ "," _ "," _ "," _ "," _ "," _ ",null,361,"Trade Payables",361,"Trade Payables",null,null,null," _ "," _ "," _ "," _ "," _ "," _ "," _ "," _ "," _ "," _ "," _ ",null," _ "," _ "," _ "," _ "," _ ",null," _ "," _ "," _ "," _ ",null,2,22,"Finance","Finance and Administration",null,null,4106844,0,0,0,0,0,0,0,8581077,"_","_","_","_"]
["D0001/IL53999/F0001/X049/R0374/001/46","D0001/IL53999/F0001/X049/R0374/001/46",164,152,"Liabilities:Current Liabilities:Trade and Other Payable Exchange Transactions:Control, Clearing and Interface Accounts:Salary Clearing and Control:Pension Control:Deposits"," _"," _"," _ "," _ "," _ "," _ ",1200,"Finance and administration",1204,"Finance","_"," _"," _","D","IL",360," Trade and other payables",360,"Trade and other payables"," _ "," _ ","_","_"," _ "," _ "," _ "," _ "," _ "," _ "," _ "," _ ",null,361,"Trade Payables",361,"Trade Payables",null,null,null," _ "," _ "," _ "," _ "," _ "," _ "," _ "," _ "," _ "," _ "," _ ",null," _ "," _ "," _ "," _ "," _ ",null," _ "," _ "," _ "," _ ",null,2,22,"Finance","Finance and Administration",null,null,0,0,0,0,0,0,0,0,0,"_","_","_","_"]
["D0001/IL54001/F0001/X049/R0374/001/46","D0001/IL54001/F0001/X049/R0374/001/46",165,153,"Liabilities:Current Liabilities:Trade and Other Payable Exchange Transactions:Control, Clearing and Interface Accounts:Salary Clearing and Control:Medical Aid Control:Deposits"," _"," _"," _ "," _ "," _ "," _ ",1200,"Finance and administration",1204,"Finance","_"," _"," _","D","IL",360," Trade and other payables",360,"Trade and other payables"," _ "," _ ","_","_"," _ "," _ "," _ "," _ "," _ "," _ "," _ "," _ ",null,361,"Trade Payables",361,"Trade Payables",null,null,null," _ "," _ "," _ "," _ "," _ "," _ "," _ "," _ "," _ "," _ "," _ ",null," _ "," _ "," _ "," _ "," _ ",null," _ "," _ "," _ "," _ ",null,2,22,"Finance","Finance and Administration",null,null,0,0,0,0,0,0,0,0,0,"_","_","_","_"]
["D0001/IL53907/F0001/X049/R0374/001/46","D0001/IL53907/F0001/X049/R0374/001/46",166,154,"Liabilities:Current Liabilities:Trade and Other Payable Exchange Transactions:Control, Clearing and Interface Accounts:Salary Clearing and Control:Medical Aid Control:Opening Balance"," _"," _"," _ "," _ "," _ "," _ ",1200,"Finance and administration",1204,"Finance","_"," _"," _","D","IL",360," Trade and other payables",360,"Trade and other payables"," _ "," _ ","_","_"," _ "," _ "," _ "," _ "," _ "," _ "," _ "," _ ",null,361,"Trade Payables",361,"Trade Payables",null,null,null," _ "," _ "," _ "," _ "," _ "," _ "," _ "," _ "," _ "," _ "," _ ",null," _ "," _ "," _ "," _ "," _ ",null," _ "," _ "," _ "," _ ",null,2,22,"Finance","Finance and Administration",null,null,-2859490,0,0,0,0,0,0,0,-6695339,"_","_","_","_"]
["D0001/IL53906/F0001/X049/R0374/001/46","D0001/IL53906/F0001/X049/R0374/001/46",167,155,"Liabilities:Current Liabilities:Trade and Other Payable Exchange Transactions:Control, Clearing and Interface Accounts:Salary Clearing and Control:Pension Control:Opening Balance"," _"," _"," _ "," _ "," _ "," _ ",1200,"Finance and administration",1204,"Finance","_"," _"," _","D","IL",360," Trade and other payables",360,"Trade and other payables"," _ "," _ ","_","_"," _ "," _ "," _ "," _ "," _ "," _ "," _ "," _ ",null,361,"Trade Payables",361,"Trade Payables",null,null,null," _ "," _ "," _ "," _ "," _ "," _ "," _ "," _ "," _ "," _ "," _ ",null," _ "," _ "," _ "," _ "," _ ",null," _ "," _ "," _ "," _ ",null,2,22,"Finance","Finance and Administration",null,null,-5148606,0,0,0,0,0,0,0,-11275137,"_","_","_","_"]
["D0001/IL54005/F0001/X049/R0374/001/46","D0001/IL54005/F0001/X049/R0374/001/46",168,156,"Liabilities:Current Liabilities:Trade and Other Payable Exchange Transactions:Control, Clearing and Interface Accounts:Salary Clearing and Control:Medical Aid Control:Withdrawals"," _"," _"," _ "," _ "," _ "," _ ",1200,"Finance and administration",1204,"Finance","_"," _"," _","D","IL",360," Trade and other payables",360,"Trade and other payables"," _ "," _ ","_","_"," _ "," _ "," _ "," _ "," _ "," _ "," _ "," _ ",null,361,"Trade Payables",361,"Trade Payables",null,null,null," _ "," _ "," _ "," _ "," _ "," _ "," _ "," _ "," _ "," _ "," _ ",null," _ "," _ "," _ "," _ "," _ ",null," _ "," _ "," _ "," _ ",null,2,22,"Finance","Finance and Administration",null,null,2859490,0,0,0,0,0,0,0,6294861,"_","_","_","_"]
["D0001/IL54010/F0001/X049/R0374/001/46","D0001/IL54010/F0001/X049/R0374/001/46",169,157,"Liabilities:Current Liabilities:Trade and Other Payable Exchange Transactions:Control, Clearing and Interface Accounts:Salary Clearing and Control:Unions Control:Deposits"," _"," _"," _ "," _ "," _ "," _ ",1200,"Finance and administration",1204,"Finance","_"," _"," _","D","IL",360," Trade and other payables",360,"Trade and other payables"," _ "," _ ","_","_"," _ "," _ "," _ "," _ "," _ "," _ "," _ "," _ ",null,361,"Trade Payables",361,"Trade Payables",null,null,null," _ "," _ "," _ "," _ "," _ "," _ "," _ "," _ "," _ "," _ "," _ ",null," _ "," _ "," _ "," _ "," _ ",null," _ "," _ "," _ "," _ ",null,2,22,"Finance","Finance and Administration",null,null,0,0,0,0,0,0,0,0,0,"_","_","_","_"]
["D0001/IL54007/F0001/X049/R0374/001/46","D0001/IL54007/F0001/X049/R0374/001/46",170,158,"Liabilities:Current Liabilities:Trade and Other Payable Exchange Transactions:Control, Clearing and Interface Accounts:Salary Clearing and Control:Group Life Control:Deposits"," _"," _"," _ "," _ "," _ "," _ ",1200,"Finance and administration",1204,"Finance","_"," _"," _","D","IL",360," Trade and other payables",360,"Trade and other payables"," _ "," _ ","_","_"," _ "," _ "," _ "," _ "," _ "," _ "," _ "," _ ",null,361,"Trade Payables",361,"Trade Payables",null,null,null," _ "," _ "," _ "," _ "," _ "," _ "," _ "," _ "," _ "," _ "," _ ",null," _ "," _ "," _ "," _ "," _ ",null," _ "," _ "," _ "," _ ",null,2,22,"Finance","Finance and Administration",null,null,0,0,0,0,0,0,0,0,0,"_","_","_","_"]
["D0001/IL54008/F0001/X049/R0374/001/46","D0001/IL54008/F0001/X049/R0374/001/46",171,159,"Liabilities:Current Liabilities:Trade and Other Payable Exchange Transactions:Control, Clearing and Interface Accounts:Salary Clearing and Control:Group Life Control:Withdrawals"," _"," _"," _ "," _ "," _ "," _ ",1200,"Finance and administration",1204,"Finance","_"," _"," _","D","IL",360," Trade and other payables",360,"Trade and other payables"," _ "," _ ","_","_"," _ "," _ "," _ "," _ "," _ "," _ "," _ "," _ ",null,361,"Trade Payables",361,"Trade Payables",null,null,null," _ "," _ "," _ "," _ "," _ "," _ "," _ "," _ "," _ "," _ "," _ ",null," _ "," _ "," _ "," _ "," _ ",null," _ "," _ "," _ "," _ ",null,2,22,"Finance","Finance and Administration",null,null,0,0,0,0,0,0,0,0,0,"_","_","_","_"]
["D0001/IL54006/F0001/X049/R0374/001/46","D0001/IL54006/F0001/X049/R0374/001/46",172,160,"Liabilities:Current Liabilities:Trade and Other Payable Exchange Transactions:Control, Clearing and Interface Accounts:Salary Clearing and Control:Group Life Control:Opening Balance"," _"," _"," _ "," _ "," _ "," _ ",1200,"Finance and administration",1204,"Finance","_"," _"," _","D","IL",360," Trade and other payables",360,"Trade and other payables"," _ "," _ ","_","_"," _ "," _ "," _ "," _ "," _ "," _ "," _ "," _ ",null,361,"Trade Payables",361,"Trade Payables",null,null,null," _ "," _ "," _ "," _ "," _ "," _ "," _ "," _ "," _ "," _ "," _ ",null," _ "," _ "," _ "," _ "," _ ",null," _ "," _ "," _ "," _ ",null,2,22,"Finance","Finance and Administration",null,null,0,0,0,0,0,0,0,0,0,"_","_","_","_"]
["D0001/IL54009/F0001/X049/R0374/001/46","D0001/IL54009/F0001/X049/R0374/001/46",173,161,"Liabilities:Current Liabilities:Trade and Other Payable Exchange Transactions:Control, Clearing and Interface Accounts:Salary Clearing and Control:Unions Control:Opening Balance"," _"," _"," _ "," _ "," _ "," _ ",1200,"Finance and administration",1204,"Finance","_"," _"," _","D","IL",360," Trade and other payables",360,"Trade and other payables"," _ "," _ ","_","_"," _ "," _ "," _ "," _ "," _ "," _ "," _ "," _ ",null,361,"Trade Payables",361,"Trade Payables",null,null,null," _ "," _ "," _ "," _ "," _ "," _ "," _ "," _ "," _ "," _ "," _ ",null," _ "," _ "," _ "," _ "," _ ",null," _ "," _ "," _ "," _ ",null,2,22,"Finance","Finance and Administration",null,null,-93012,0,0,0,0,0,0,0,-179159,"_","_","_","_"]
["D0001/IL54011/F0001/X049/R0374/001/46","D0001/IL54011/F0001/X049/R0374/001/46",174,162,"Liabilities:Current Liabilities:Trade and Other Payable Exchange Transactions:Control, Clearing and Interface Accounts:Salary Clearing and Control:Unions Control:Withdrawals"," _"," _"," _ "," _ "," _ "," _ ",1200,"Finance and administration",1204,"Finance","_"," _"," _","D","IL",360," Trade and other payables",360,"Trade and other payables"," _ "," _ ","_","_"," _ "," _ "," _ "," _ "," _ "," _ "," _ "," _ ",null,361,"Trade Payables",361,"Trade Payables",null,null,null," _ "," _ "," _ "," _ "," _ "," _ "," _ "," _ "," _ "," _ "," _ ",null," _ "," _ "," _ "," _ "," _ ",null," _ "," _ "," _ "," _ ",null,2,22,"Finance","Finance and Administration",null,null,37901,0,0,0,0,0,0,0,79116,"_","_","_","_"]
["D0001/IL54013/F0001/X049/R0374/001/46","D0001/IL54013/F0001/X049/R0374/001/46",175,163,"Liabilities:Current Liabilities:Trade and Other Payable Exchange Transactions:Control, Clearing and Interface Accounts:Salary Clearing and Control:Employee Deductions FICS:Deposits"," _"," _"," _ "," _ "," _ "," _ ",1200,"Finance and administration",1204,"Finance","_"," _"," _","D","IL",360," Trade and other payables",360,"Trade and other payables"," _ "," _ ","_","_"," _ "," _ "," _ "," _ "," _ "," _ "," _ "," _ ",null,361,"Trade Payables",361,"Trade Payables",null,null,null," _ "," _ "," _ "," _ "," _ "," _ "," _ "," _ "," _ "," _ "," _ ",null," _ "," _ "," _ "," _ "," _ ",null," _ "," _ "," _ "," _ ",null,2,22,"Finance","Finance and Administration",null,null,0,0,0,0,0,0,0,0,0,"_","_","_","_"]
["D0001/IL54012/F0001/X049/R0374/001/46","D0001/IL54012/F0001/X049/R0374/001/46",176,164,"Liabilities:Current Liabilities:Trade and Other Payable Exchange Transactions:Control, Clearing and Interface Accounts:Salary Clearing and Control:Employee Deductions FICS:Opening Balance"," _"," _"," _ "," _ "," _ "," _ ",1200,"Finance and administration",1204,"Finance","_"," _"," _","D","IL",360," Trade and other payables",360,"Trade and other payables"," _ "," _ ","_","_"," _ "," _ "," _ "," _ "," _ "," _ "," _ "," _ ",null,361,"Trade Payables",361,"Trade Payables",null,null,null," _ "," _ "," _ "," _ "," _ "," _ "," _ "," _ "," _ "," _ "," _ ",null," _ "," _ "," _ "," _ "," _ ",null," _ "," _ "," _ "," _ ",null,2,22,"Finance","Finance and Administration",null,null,0,0,0,0,0,0,0,0,0,"_","_","_","_"]
["D0001/IL54014/F0001/X049/R0374/001/46","D0001/IL54014/F0001/X049/R0374/001/46",177,165,"Liabilities:Current Liabilities:Trade and Other Payable Exchange Transactions:Control, Clearing and Interface Accounts:Salary Clearing and Control:Employee Deductions FICS:Withdrawals"," _"," _"," _ "," _ "," _ "," _ ",1200,"Finance and administration",1204,"Finance","_"," _"," _","D","IL",360," Trade and other payables",360,"Trade and other payables"," _ "," _ ","_","_"," _ "," _ "," _ "," _ "," _ "," _ "," _ "," _ ",null,361,"Trade Payables",361,"Trade Payables",null,null,null," _ "," _ "," _ "," _ "," _ "," _ "," _ "," _ "," _ "," _ "," _ ",null," _ "," _ "," _ "," _ "," _ ",null," _ "," _ "," _ "," _ ",null,2,22,"Finance","Finance and Administration",null,null,0,0,0,0,0,0,0,0,0,"_","_","_","_"]
["D0001/IL082107/F0001/X049/R0374/001/46","D0001/IL082107/F0001/X049/R0374/001/46",178,166,"Liabilities:Current Liabilities:Trade and Other Payable Exchange Transactions:Control, Clearing and Interface Accounts:Salary Clearing and Control:Employee Net Pay and Bond Payment:Withdrawals"," _"," _"," _ "," _ "," _ "," _ ",1200,"Finance and administration",1204,"Finance","_"," _"," _","D","IL",360," Trade and other payables",360,"Trade and other payables"," _ "," _ ","_","_"," _ "," _ "," _ "," _ "," _ "," _ "," _ "," _ ",null,361,"Trade Payables",361,"Trade Payables",null,null,null," _ "," _ "," _ "," _ "," _ "," _ "," _ "," _ "," _ "," _ "," _ ",null," _ "," _ "," _ "," _ "," _ ",null," _ "," _ "," _ "," _ ",null,2,22,"Finance","Finance and Administration",null,null,0,0,0,0,0,0,0,0,0,"_","_","_","_"]
["D0001/IL082106/F0001/X049/R0374/001/46","D0001/IL082106/F0001/X049/R0374/001/46",179,167,"Liabilities:Current Liabilities:Trade and Other Payable Exchange Transactions:Control, Clearing and Interface Accounts:Salary Clearing and Control:Employee Net Pay and Bond Payment:Deposits"," _"," _"," _ "," _ "," _ "," _ ",1200,"Finance and administration",1204,"Finance","_"," _"," _","D","IL",360," Trade and other payables",360,"Trade and other payables"," _ "," _ ","_","_"," _ "," _ "," _ "," _ "," _ "," _ "," _ "," _ ",null,361,"Trade Payables",361,"Trade Payables",null,null,null," _ "," _ "," _ "," _ "," _ "," _ "," _ "," _ "," _ "," _ "," _ ",null," _ "," _ "," _ "," _ "," _ ",null," _ "," _ "," _ "," _ ",null,2,22,"Finance","Finance and Administration",null,null,0,0,0,0,0,0,0,0,0,"_","_","_","_"]
["D0001/IL082104/F0001/X049/R0374/001/46","D0001/IL082104/F0001/X049/R0374/001/46",180,168,"Liabilities:Current Liabilities:Trade and Other Payable Exchange Transactions:Control, Clearing and Interface Accounts:Salary Clearing and Control:Employee Net Pay and Bond Payment:Opening Balance"," _"," _"," _ "," _ "," _ "," _ ",1200,"Finance and administration",1204,"Finance","_"," _"," _","D","IL",360," Trade and other payables",360,"Trade and other payables"," _ "," _ ","_","_"," _ "," _ "," _ "," _ "," _ "," _ "," _ "," _ ",null,361,"Trade Payables",361,"Trade Payables",null,null,null," _ "," _ "," _ "," _ "," _ "," _ "," _ "," _ "," _ "," _ "," _ ",null," _ "," _ "," _ "," _ "," _ ",null," _ "," _ "," _ "," _ ",null,2,22,"Finance","Finance and Administration",null,null,0,0,0,0,0,0,0,0,0,"_","_","_","_"]
["D0001/IL082105/F0001/X049/R0374/001/46","D0001/IL082105/F0001/X049/R0374/001/46",181,169,"Liabilities:Current Liabilities:Trade and Other Payable Exchange Transactions:Control, Clearing and Interface Accounts:Salary Clearing and Control:Garnishee Payments:Opening Balance"," _"," _"," _ "," _ "," _ "," _ ",1200,"Finance and administration",1204,"Finance","_"," _"," _","D","IL",360," Trade and other payables",360,"Trade and other payables"," _ "," _ ","_","_"," _ "," _ "," _ "," _ "," _ "," _ "," _ "," _ ",null,361,"Trade Payables",361,"Trade Payables",null,null,null," _ "," _ "," _ "," _ "," _ "," _ "," _ "," _ "," _ "," _ "," _ ",null," _ "," _ "," _ "," _ "," _ ",null," _ "," _ "," _ "," _ ",null,2,22,"Finance","Finance and Administration",null,null,0,0,0,0,0,0,0,0,0,"_","_","_","_"]
["D0001/IL082108/F0001/X049/R0374/001/46","D0001/IL082108/F0001/X049/R0374/001/46",182,170,"Liabilities:Current Liabilities:Trade and Other Payable Exchange Transactions:Control, Clearing and Interface Accounts:Salary Clearing and Control:Garnishee Payments:Deposits"," _"," _"," _ "," _ "," _ "," _ ",1200,"Finance and administration",1204,"Finance","_"," _"," _","D","IL",360," Trade and other payables",360,"Trade and other payables"," _ "," _ ","_","_"," _ "," _ "," _ "," _ "," _ "," _ "," _ "," _ ",null,361,"Trade Payables",361,"Trade Payables",null,null,null," _ "," _ "," _ "," _ "," _ "," _ "," _ "," _ "," _ "," _ "," _ ",null," _ "," _ "," _ "," _ "," _ ",null," _ "," _ "," _ "," _ ",null,2,22,"Finance","Finance and Administration",null,null,0,0,0,0,0,0,0,0,0,"_","_","_","_"]
["D0001/IL082109/F0001/X049/R0374/001/46","D0001/IL082109/F0001/X049/R0374/001/46",183,171,"Liabilities:Current Liabilities:Trade and Other Payable Exchange Transactions:Control, Clearing and Interface Accounts:Salary Clearing and Control:Garnishee Payments:Withdrawals"," _"," _"," _ "," _ "," _ "," _ ",1200,"Finance and administration",1204,"Finance","_"," _"," _","D","IL",360," Trade and other payables",360,"Trade and other payables"," _ "," _ ","_","_"," _ "," _ "," _ "," _ "," _ "," _ "," _ "," _ ",null,361,"Trade Payables",361,"Trade Payables",null,null,null," _ "," _ "," _ "," _ "," _ "," _ "," _ "," _ "," _ "," _ "," _ ",null," _ "," _ "," _ "," _ "," _ ",null," _ "," _ "," _ "," _ ",null,2,22,"Finance","Finance and Administration",null,null,0,0,0,0,0,0,0,0,0,"_","_","_","_"]
["O1256-1/IE00632/F0041/X044/R0374/001/42","O1256-1/IE00632/F0041/X044/R0374/001/42",184,172,"Expenditure:Contracted Services:Contractors:Catering Services",2700,"Contracted services","2700-003","Contractors",2703,"Contractors",1100,"Executive and council",1110,"Mayor and Council","_"," _"," _","O","IE"," _ "," _ "," _ "," _ "," _ "," _ ","_","_"," _ "," _ "," _ "," _ "," _ "," _ "," _ "," _ ",null," _ "," _ "," _ "," _ ",null,null,null," _ "," _ "," _ "," _ "," _ "," _ "," _ "," _ "," _ "," _ "," _ ",null," _ "," _ "," _ "," _ "," _ ",null," _ "," _ "," _ "," _ ",null,1,11,"Mayor and Council","Executive and Council",null,null,4954,0,0,50000,150000,70000,91347,96279,13973,"_","_","_","_"]
["O1256-1/IE00671/F0041/X044/R0374/001/42","O1256-1/IE00671/F0041/X044/R0374/001/42",185,173,"Expenditure:Contracted Services:Contractors:Transportation",2700,"Contracted services","2700-003","Contractors",2703,"Contractors",1100,"Executive and council",1110,"Mayor and Council","_"," _"," _","O","IE"," _ "," _ "," _ "," _ "," _ "," _ ","_","_"," _ "," _ "," _ "," _ "," _ "," _ "," _ "," _ ",null," _ "," _ "," _ "," _ ",null,null,null," _ "," _ "," _ "," _ "," _ "," _ "," _ "," _ "," _ "," _ "," _ ",null," _ "," _ "," _ "," _ "," _ ",null," _ "," _ "," _ "," _ ",null,1,11,"Mayor and Council","Executive and Council",null,null,0,0,0,50000,0,0,0,0,0,"_","_","_","_"]
["D0001/IA10337/F0001/X049/R0374/001/46","D0001/IA10337/F0001/X049/R0374/001/46",186,174,"Assets:Current Assets:Inventory:Consumables:Standard Rated:Acquisitions"," _"," _"," _ "," _ "," _ "," _ ",1200,"Finance and administration",1204,"Finance","_"," _"," _","D","IA",170,"Inventory","0170-03-01","Standard Rated Acquisitions"," _ "," _ ","_","_"," _ "," _ "," _ "," _ "," _ "," _ "," _ "," _ ",null," _ "," _ "," _ "," _ ",null,null,null," _ "," _ "," _ "," _ "," _ "," _ "," _ "," _ "," _ "," _ "," _ ",null," _ "," _ "," _ "," _ "," _ ",null," _ "," _ "," _ "," _ ",null,2,22,"Finance","Finance and Administration",null,null,0,0,0,0,0,150000,300000,300000,0,"_","_","_","_"]
["D0001/IA10339/F0001/X049/R0374/001/46","D0001/IA10339/F0001/X049/R0374/001/46",187,175,"Assets:Current Assets:Inventory:Consumables:Standard Rated:Adjustments"," _"," _"," _ "," _ "," _ "," _ ",1200,"Finance and administration",1204,"Finance","_"," _"," _","D","IA",170,"Inventory","0170-03-03","Standard Rated Adjustments"," _ "," _ ","_","_"," _ "," _ "," _ "," _ "," _ "," _ "," _ "," _ ",null," _ "," _ "," _ "," _ ",null,null,null," _ "," _ "," _ "," _ "," _ "," _ "," _ "," _ "," _ "," _ "," _ ",null," _ "," _ "," _ "," _ "," _ ",null," _ "," _ "," _ "," _ ",null,2,22,"Finance","Finance and Administration",null,null,0,0,0,0,0,0,0,0,0,"_","_","_","_"]
["D0001/IA10336/F0001/X049/R0374/001/46","D0001/IA10336/F0001/X049/R0374/001/46",188,176,"Assets:Current Assets:Inventory:Consumables:Standard Rated:Opening Balance"," _"," _"," _ "," _ "," _ "," _ ",1200,"Finance and administration",1204,"Finance","_"," _"," _","D","IA",170,"Inventory","0170-03-00","Standard Rated Opening Balance"," _ "," _ ","_","_"," _ "," _ "," _ "," _ "," _ "," _ "," _ "," _ ",null," _ "," _ "," _ "," _ ",null,null,null," _ "," _ "," _ "," _ "," _ "," _ "," _ "," _ "," _ "," _ "," _ ",null," _ "," _ "," _ "," _ "," _ ",null," _ "," _ "," _ "," _ ",null,2,22,"Finance","Finance and Administration",null,null,38986,28995,0,0,0,38986,40506,42208,38986,"_","_","_","_"]
["D0001/IA10343/F0001/X049/R0374/001/46","D0001/IA10343/F0001/X049/R0374/001/46",189,177,"Assets:Current Assets:Inventory:Consumables:Zero Rated:Issues"," _"," _"," _ "," _ "," _ "," _ ",1200,"Finance and administration",1204,"Finance","_"," _"," _","D","IA",170,"Inventory","0170-04-02","Zero Rated Issues"," _ "," _ ","_","_"," _ "," _ "," _ "," _ "," _ "," _ "," _ "," _ ",null," _ "," _ "," _ "," _ ",null,null,null," _ "," _ "," _ "," _ "," _ "," _ "," _ "," _ "," _ "," _ "," _ ",null," _ "," _ "," _ "," _ "," _ ",null," _ "," _ "," _ "," _ ",null,2,22,"Finance","Finance and Administration",null,null,0,0,0,0,0,0,0,0,0,"_","_","_","_"]
["D0001/IA10344/F0001/X049/R0374/001/46","D0001/IA10344/F0001/X049/R0374/001/46",190,178,"Assets:Current Assets:Inventory:Consumables:Zero Rated:Adjustments"," _"," _"," _ "," _ "," _ "," _ ",1200,"Finance and administration",1204,"Finance","_"," _"," _","D","IA",170,"Inventory","0170-04-03","Zero Rated Adjustments"," _ "," _ ","_","_"," _ "," _ "," _ "," _ "," _ "," _ "," _ "," _ ",null," _ "," _ "," _ "," _ ",null,null,null," _ "," _ "," _ "," _ "," _ "," _ "," _ "," _ "," _ "," _ "," _ ",null," _ "," _ "," _ "," _ "," _ ",null," _ "," _ "," _ "," _ ",null,2,22,"Finance","Finance and Administration",null,null,0,0,0,0,0,0,0,0,0,"_","_","_","_"]
["D0001/IA10338/F0001/X049/R0374/001/46","D0001/IA10338/F0001/X049/R0374/001/46",191,179,"Assets:Current Assets:Inventory:Consumables:Standard Rated:Issues"," _"," _"," _ "," _ "," _ "," _ ",1200,"Finance and administration",1204,"Finance","_"," _"," _","D","IA",170,"Inventory","0170-03-02","Standard Rated Issues"," _ "," _ ","_","_"," _ "," _ "," _ "," _ "," _ "," _ "," _ "," _ ",null," _ "," _ "," _ "," _ ",null,null,null," _ "," _ "," _ "," _ "," _ "," _ "," _ "," _ "," _ "," _ "," _ ",null," _ "," _ "," _ "," _ "," _ ",null," _ "," _ "," _ "," _ ",null,2,22,"Finance","Finance and Administration",null,null,0,0,0,0,0,-150000,-300000,-300000,0,"_","_","_","_"]
["D0001/IA10351/F0001/X049/R0374/001/46","D0001/IA10351/F0001/X049/R0374/001/46",192,180,"Assets:Current Assets:Inventory:Materials and Supplies:Opening Balance"," _"," _"," _ "," _ "," _ "," _ ",1200,"Finance and administration",1204,"Finance","_"," _"," _","D","IA",170,"Inventory","0170-06-00","Materials and Supplies Opening Balance"," _ "," _ ","_","_"," _ "," _ "," _ "," _ "," _ "," _ "," _ "," _ ",null," _ "," _ "," _ "," _ ",null,null,null," _ "," _ "," _ "," _ "," _ "," _ "," _ "," _ "," _ "," _ "," _ ",null," _ "," _ "," _ "," _ "," _ ",null," _ "," _ "," _ "," _ ",null,2,22,"Finance","Finance and Administration",null,null,0,0,0,0,0,0,0,0,0,"_","_","_","_"]
["D0001/IA10342/F0001/X049/R0374/001/46","D0001/IA10342/F0001/X049/R0374/001/46",193,181,"Assets:Current Assets:Inventory:Consumables:Zero Rated:Acquisitions"," _"," _"," _ "," _ "," _ "," _ ",1200,"Finance and administration",1204,"Finance","_"," _"," _","D","IA",170,"Inventory","0170-04-01","Zero Rated Acquisitions"," _ "," _ ","_","_"," _ "," _ "," _ "," _ "," _ "," _ "," _ "," _ ",null," _ "," _ "," _ "," _ ",null,null,null," _ "," _ "," _ "," _ "," _ "," _ "," _ "," _ "," _ "," _ "," _ ",null," _ "," _ "," _ "," _ "," _ ",null," _ "," _ "," _ "," _ ",null,2,22,"Finance","Finance and Administration",null,null,0,0,0,0,0,0,0,0,0,"_","_","_","_"]
["D0001/IA10341/F0001/X049/R0374/001/46","D0001/IA10341/F0001/X049/R0374/001/46",194,182,"Assets:Current Assets:Inventory:Consumables:Zero Rated:Opening Balance"," _"," _"," _ "," _ "," _ "," _ ",1200,"Finance and administration",1204,"Finance","_"," _"," _","D","IA",170,"Inventory","0170-04-00","Zero Rated Opening Balance"," _ "," _ ","_","_"," _ "," _ "," _ "," _ "," _ "," _ "," _ "," _ ",null," _ "," _ "," _ "," _ ",null,null,null," _ "," _ "," _ "," _ "," _ "," _ "," _ "," _ "," _ "," _ "," _ ",null," _ "," _ "," _ "," _ "," _ ",null," _ "," _ "," _ "," _ ",null,2,22,"Finance","Finance and Administration",null,null,0,0,0,0,0,0,0,0,0,"_","_","_","_"]
["D0001/IA10352/F0001/X049/R0374/001/46","D0001/IA10352/F0001/X049/R0374/001/46",195,183,"Assets:Current Assets:Inventory:Materials and Supplies:Acquisitions"," _"," _"," _ "," _ "," _ "," _ ",1200,"Finance and administration",1204,"Finance","_"," _"," _","D","IA",170,"Inventory","0170-06-01","Materials and Supplies Acquisitions"," _ "," _ ","_","_"," _ "," _ "," _ "," _ "," _ "," _ "," _ "," _ ",null," _ "," _ "," _ "," _ ",null,null,null," _ "," _ "," _ "," _ "," _ "," _ "," _ "," _ "," _ "," _ "," _ ",null," _ "," _ "," _ "," _ "," _ ",null," _ "," _ "," _ "," _ ",null,2,22,"Finance","Finance and Administration",null,null,0,0,0,0,0,30000,45673,48140,0,"_","_","_","_"]
["O1291-1/IE00671/F0041/X044/R0374/001/42","O1291-1/IE00671/F0041/X044/R0374/001/42",196,184,"Expenditure:Contracted Services:Contractors:Transportation",2700,"Contracted services","2700-003","Contractors",2703,"Contractors",1100,"Executive and council",1110,"Mayor and Council","_"," _"," _","O","IE"," _ "," _ "," _ "," _ "," _ "," _ ","_","_"," _ "," _ "," _ "," _ "," _ "," _ "," _ "," _ ",null," _ "," _ "," _ "," _ ",null,null,null," _ "," _ "," _ "," _ "," _ "," _ "," _ "," _ "," _ "," _ "," _ ",null," _ "," _ "," _ "," _ "," _ ",null," _ "," _ "," _ "," _ ",null,1,11,"Mayor and Council","Executive and Council",null,null,0,0,0,0,0,0,0,0,0,"_","_","_","_"]
["O1291-1/IE00632/F0041/X044/R0374/001/42","O1291-1/IE00632/F0041/X044/R0374/001/42",197,185,"Expenditure:Contracted Services:Contractors:Catering Services",2700,"Contracted services","2700-003","Contractors",2703,"Contractors",1100,"Executive and council",1110,"Mayor and Council","_"," _"," _","O","IE"," _ "," _ "," _ "," _ "," _ "," _ ","_","_"," _ "," _ "," _ "," _ "," _ "," _ "," _ "," _ ",null," _ "," _ "," _ "," _ ",null,null,null," _ "," _ "," _ "," _ "," _ "," _ "," _ "," _ "," _ "," _ "," _ ",null," _ "," _ "," _ "," _ "," _ ",null," _ "," _ "," _ "," _ ",null,1,11,"Mayor and Council","Executive and Council",null,null,0,0,0,0,0,0,0,0,0,"_","_","_","_"]
["D0001/IA10377/F0001/X049/R0374/001/46","D0001/IA10377/F0001/X049/R0374/001/46",198,186,"Assets:Current Assets:VAT Receivable:Input VAT General:Opening Balance"," _"," _"," _ "," _ "," _ "," _ ",1200,"Finance and administration",1204,"Finance","_"," _"," _","D","IA",150,"Other debtors",150,"Other debtors"," _ "," _ ","_","_"," _ "," _ "," _ "," _ "," _ "," _ "," _ "," _ ",null," _ "," _ "," _ "," _ ",null,null,null," _ "," _ "," _ "," _ "," _ "," _ "," _ "," _ "," _ "," _ "," _ ",null," _ "," _ "," _ "," _ "," _ ",null," _ "," _ "," _ "," _ ",null,2,22,"Finance","Finance and Administration",null,null,4845691,4628523,0,0,0,2925045,3047897,3175908,5014237,"_","_","_","_"]
["D0001/IA10379/F0001/X049/R0374/001/46","D0001/IA10379/F0001/X049/R0374/001/46",199,187,"Assets:Current Assets:VAT Receivable:Input VAT General:Transfers"," _"," _"," _ "," _ "," _ "," _ ",1200,"Finance and administration",1204,"Finance","_"," _"," _","D","IA",150,"Other debtors",150,"Other debtors"," _ "," _ ","_","_"," _ "," _ "," _ "," _ "," _ "," _ "," _ "," _ ",null," _ "," _ "," _ "," _ ",null,null,null," _ "," _ "," _ "," _ "," _ "," _ "," _ "," _ "," _ "," _ "," _ ",null," _ "," _ "," _ "," _ "," _ ",null," _ "," _ "," _ "," _ ",null,2,22,"Finance","Finance and Administration",null,null,0,0,0,0,0,0,0,0,0,"_","_","_","_"]
["D0001/IA10378/F0001/X049/R0374/001/46","D0001/IA10378/F0001/X049/R0374/001/46",200,188,"Assets:Current Assets:VAT Receivable:Input VAT General:Recognised"," _"," _"," _ "," _ "," _ "," _ ",1200,"Finance and administration",1204,"Finance","_"," _"," _","D","IA",150,"Other debtors",150,"Other debtors"," _ "," _ ","_","_"," _ "," _ "," _ "," _ "," _ "," _ "," _ "," _ ",null," _ "," _ "," _ "," _ ",null,null,null," _ "," _ "," _ "," _ "," _ "," _ "," _ "," _ "," _ "," _ "," _ ",null," _ "," _ "," _ "," _ "," _ ",null," _ "," _ "," _ "," _ ",null,2,22,"Finance","Finance and Administration",null,null,5533,0,0,0,0,0,0,0,5413,"_","_","_","_"]
["D0001/IA10382/F0001/X049/R0374/001/46","D0001/IA10382/F0001/X049/R0374/001/46",201,189,"Assets:Current Assets:VAT Receivable:VAT Control (Receivable):Receipts"," _"," _"," _ "," _ "," _ "," _ ",1200,"Finance and administration",1204,"Finance","_"," _"," _","D","IA",150,"Other debtors",150,"Other debtors"," _ "," _ ","_","_"," _ "," _ "," _ "," _ "," _ "," _ "," _ "," _ ",null," _ "," _ "," _ "," _ ",null,null,null," _ "," _ "," _ "," _ "," _ "," _ "," _ "," _ "," _ "," _ "," _ ",null," _ "," _ "," _ "," _ "," _ ",null," _ "," _ "," _ "," _ ",null,2,22,"Finance","Finance and Administration",null,null,0,0,0,0,0,0,0,0,0,"_","_","_","_"]
["D0001/IA10373/F0001/X049/R0374/001/46","D0001/IA10373/F0001/X049/R0374/001/46",202,192,"Assets:Current Assets:VAT Receivable:VAT Control (Receivable):Transfers"," _"," _"," _ "," _ "," _ "," _ ",1200,"Finance and administration",1204,"Finance","_"," _"," _","D","IA",150,"Other debtors",150,"Other debtors"," _ "," _ ","_","_"," _ "," _ "," _ "," _ "," _ "," _ "," _ "," _ ",null," _ "," _ "," _ "," _ ",null,null,null," _ "," _ "," _ "," _ "," _ "," _ "," _ "," _ "," _ "," _ "," _ ",null," _ "," _ "," _ "," _ "," _ ",null," _ "," _ "," _ "," _ ",null,2,22,"Finance","Finance and Administration",null,null,0,0,0,0,0,0,0,0,0,"_","_","_","_"]
["D0001/IA10373/F0001/X049/R0374/001/46","D0001/IA10373/F0001/X049/R0374/001/46",202,190,"Assets:Current Assets:VAT Receivable:VAT Control (Receivable):Transfers"," _"," _"," _ "," _ "," _ "," _ ",1200,"Finance and administration",1204,"Finance","_"," _"," _","D","IA",150,"Other debtors",150,"Other debtors"," _ "," _ ","_","_"," _ "," _ "," _ "," _ "," _ "," _ "," _ "," _ ",null," _ "," _ "," _ "," _ ",null,null,null," _ "," _ "," _ "," _ "," _ "," _ "," _ "," _ "," _ "," _ "," _ ",null," _ "," _ "," _ "," _ "," _ ",null," _ "," _ "," _ "," _ ",null,2,22,"Finance","Finance and Administration",null,null,0,0,0,0,0,0,0,0,0,"_","_","_","_"]
["D0001/IA10372/F0001/X049/R0374/001/46","D0001/IA10372/F0001/X049/R0374/001/46",203,191,"Assets:Current Assets:VAT Receivable:VAT Control (Receivable):Opening Balance"," _"," _"," _ "," _ "," _ "," _ ",1200,"Finance and administration",1204,"Finance","_"," _"," _","D","IA",150,"Other debtors",150,"Other debtors"," _ "," _ ","_","_"," _ "," _ "," _ "," _ "," _ "," _ "," _ "," _ ",null," _ "," _ "," _ "," _ ",null,null,null," _ "," _ "," _ "," _ "," _ "," _ "," _ "," _ "," _ "," _ "," _ ",null," _ "," _ "," _ "," _ "," _ ",null," _ "," _ "," _ "," _ ",null,2,22,"Finance","Finance and Administration",null,null,-3081113,-1702260,0,0,0,0,0,0,-4202164,"_","_","_","_"]
["D0001/IA10373/F0001/X049/R0374/001/46","D0001/IA10373/F0001/X049/R0374/001/46",204,192,"Assets:Current Assets:VAT Receivable:VAT Control (Receivable):Transfers"," _"," _"," _ "," _ "," _ "," _ ",1200,"Finance and administration",1204,"Finance","_"," _"," _","D","IA",150,"Other debtors",150,"Other debtors"," _ "," _ ","_","_"," _ "," _ "," _ "," _ "," _ "," _ "," _ "," _ ",null," _ "," _ "," _ "," _ ",null,null,null," _ "," _ "," _ "," _ "," _ "," _ "," _ "," _ "," _ "," _ "," _ ",null," _ "," _ "," _ "," _ "," _ ",null," _ "," _ "," _ "," _ ",null,2,22,"Finance","Finance and Administration",null,null,0,0,0,0,0,0,0,0,0,"_","_","_","_"]
["D0001/IA10373/F0001/X049/R0374/001/46","D0001/IA10373/F0001/X049/R0374/001/46",204,190,"Assets:Current Assets:VAT Receivable:VAT Control (Receivable):Transfers"," _"," _"," _ "," _ "," _ "," _ ",1200,"Finance and administration",1204,"Finance","_"," _"," _","D","IA",150,"Other debtors",150,"Other debtors"," _ "," _ ","_","_"," _ "," _ "," _ "," _ "," _ "," _ "," _ "," _ ",null," _ "," _ "," _ "," _ ",null,null,null," _ "," _ "," _ "," _ "," _ "," _ "," _ "," _ "," _ "," _ "," _ ",null," _ "," _ "," _ "," _ "," _ ",null," _ "," _ "," _ "," _ ",null,2,22,"Finance","Finance and Administration",null,null,0,0,0,0,0,0,0,0,0,"_","_","_","_"]
["D0001/IL37839/F0001/X049/R0374/001/46","D0001/IL37839/F0001/X049/R0374/001/46",205,193,"Liabilities:Current Liabilities:VAT Control (Payable):Opening Balance"," _"," _"," _ "," _ "," _ "," _ ",1200,"Finance and administration",1204,"Finance","_"," _"," _","D","IL",360," Trade and other payables",360,"Trade and other payables"," _ "," _ ","_","_"," _ "," _ "," _ "," _ "," _ "," _ "," _ "," _ ",null,364,"VAT",364,"VAT",null,null,null," _ "," _ "," _ "," _ "," _ "," _ "," _ "," _ "," _ "," _ "," _ ",null," _ "," _ "," _ "," _ "," _ ",null," _ "," _ "," _ "," _ ",null,2,22,"Finance","Finance and Administration",null,null,-1582370,254050,0,0,0,0,0,0,-2803806,"_","_","_","_"]
["D0001/IL37840/F0001/X049/R0374/001/46","D0001/IL37840/F0001/X049/R0374/001/46",206,199,"Liabilities:Current Liabilities:VAT Control (Payable):Transfers"," _"," _"," _ "," _ "," _ "," _ ",1200,"Finance and administration",1204,"Finance","_"," _"," _","D","IL",360," Trade and other payables",360,"Trade and other payables"," _ "," _ ","_","_"," _ "," _ "," _ "," _ "," _ "," _ "," _ "," _ ",null,364,"VAT",364,"VAT",null,null,null," _ "," _ "," _ "," _ "," _ "," _ "," _ "," _ "," _ "," _ "," _ ",null," _ "," _ "," _ "," _ "," _ ",null," _ "," _ "," _ "," _ ",null,2,22,"Finance","Finance and Administration",null,null,0,0,0,0,0,0,0,0,0,"_","_","_","_"]
["D0001/IL37840/F0001/X049/R0374/001/46","D0001/IL37840/F0001/X049/R0374/001/46",206,194,"Liabilities:Current Liabilities:VAT Control (Payable):Transfers"," _"," _"," _ "," _ "," _ "," _ ",1200,"Finance and administration",1204,"Finance","_"," _"," _","D","IL",360," Trade and other payables",360,"Trade and other payables"," _ "," _ ","_","_"," _ "," _ "," _ "," _ "," _ "," _ "," _ "," _ ",null,364,"VAT",364,"VAT",null,null,null," _ "," _ "," _ "," _ "," _ "," _ "," _ "," _ "," _ "," _ "," _ ",null," _ "," _ "," _ "," _ "," _ ",null," _ "," _ "," _ "," _ ",null,2,22,"Finance","Finance and Administration",null,null,0,0,0,0,0,0,0,0,0,"_","_","_","_"]
["D0001/IL27884/F0001/X049/R0374/001/46","D0001/IL27884/F0001/X049/R0374/001/46",207,195,"Liabilities:Current Liabilities:Output VAT:Opening Balance"," _"," _"," _ "," _ "," _ "," _ ",1200,"Finance and administration",1204,"Finance","_"," _"," _","D","IL",360," Trade and other payables",360,"Trade and other payables"," _ "," _ ","_","_"," _ "," _ "," _ "," _ "," _ "," _ "," _ "," _ ",null,364,"VAT",364,"VAT",null,null,null," _ "," _ "," _ "," _ "," _ "," _ "," _ "," _ "," _ "," _ "," _ ",null," _ "," _ "," _ "," _ "," _ ",null," _ "," _ "," _ "," _ ",null,2,22,"Finance","Finance and Administration",null,null,575164,488141,0,0,0,0,0,0,665663,"_","_","_","_"]
["D0001/IL37841/F0001/X049/R0374/001/46","D0001/IL37841/F0001/X049/R0374/001/46",208,196,"Liabilities:Current Liabilities:VAT Control (Payable):Payments"," _"," _"," _ "," _ "," _ "," _ ",1200,"Finance and administration",1204,"Finance","_"," _"," _","D","IL",360," Trade and other payables",360,"Trade and other payables"," _ "," _ ","_","_"," _ "," _ "," _ "," _ "," _ "," _ "," _ "," _ ",null,364,"VAT",364,"VAT",null,null,null," _ "," _ "," _ "," _ "," _ "," _ "," _ "," _ "," _ "," _ "," _ ",null," _ "," _ "," _ "," _ "," _ ",null," _ "," _ "," _ "," _ ",null,2,22,"Finance","Finance and Administration",null,null,0,0,0,0,0,0,0,0,0,"_","_","_","_"]
["D0001/IL37831/F0001/X049/R0374/001/46","D0001/IL37831/F0001/X049/R0374/001/46",209,197,"Liabilities:Current Liabilities:Output VAT:Recognised"," _"," _"," _ "," _ "," _ "," _ ",1200,"Finance and administration",1204,"Finance","_"," _"," _","D","IL",360," Trade and other payables",360,"Trade and other payables"," _ "," _ ","_","_"," _ "," _ "," _ "," _ "," _ "," _ "," _ "," _ ",null,364,"VAT",364,"VAT",null,null,null," _ "," _ "," _ "," _ "," _ "," _ "," _ "," _ "," _ "," _ "," _ ",null," _ "," _ "," _ "," _ "," _ ",null," _ "," _ "," _ "," _ ",null,2,22,"Finance","Finance and Administration",null,null,5488,0,0,0,0,0,0,0,7829,"_","_","_","_"]
["D0001/IL37832/F0001/X049/R0374/001/46","D0001/IL37832/F0001/X049/R0374/001/46",210,198,"Liabilities:Current Liabilities:Output VAT:Transfers"," _"," _"," _ "," _ "," _ "," _ ",1200,"Finance and administration",1204,"Finance","_"," _"," _","D","IL",360," Trade and other payables",360,"Trade and other payables"," _ "," _ ","_","_"," _ "," _ "," _ "," _ "," _ "," _ "," _ "," _ ",null,364,"VAT",364,"VAT",null,null,null," _ "," _ "," _ "," _ "," _ "," _ "," _ "," _ "," _ "," _ "," _ ",null," _ "," _ "," _ "," _ "," _ ",null," _ "," _ "," _ "," _ ",null,2,22,"Finance","Finance and Administration",null,null,-7272,0,0,0,0,0,0,0,-7272,"_","_","_","_"]
["D0001/IL37840/F0001/X049/R0374/001/46","D0001/IL37840/F0001/X049/R0374/001/46",211,199,"Liabilities:Current Liabilities:VAT Control (Payable):Transfers"," _"," _"," _ "," _ "," _ "," _ ",1200,"Finance and administration",1204,"Finance","_"," _"," _","D","IL",360," Trade and other payables",360,"Trade and other payables"," _ "," _ ","_","_"," _ "," _ "," _ "," _ "," _ "," _ "," _ "," _ ",null,364,"VAT",364,"VAT",null,null,null," _ "," _ "," _ "," _ "," _ "," _ "," _ "," _ "," _ "," _ "," _ ",null," _ "," _ "," _ "," _ "," _ ",null," _ "," _ "," _ "," _ ",null,2,22,"Finance","Finance and Administration",null,null,0,0,0,0,0,0,0,0,0,"_","_","_","_"]
["D0001/IL37840/F0001/X049/R0374/001/46","D0001/IL37840/F0001/X049/R0374/001/46",211,194,"Liabilities:Current Liabilities:VAT Control (Payable):Transfers"," _"," _"," _ "," _ "," _ "," _ ",1200,"Finance and administration",1204,"Finance","_"," _"," _","D","IL",360," Trade and other payables",360,"Trade and other payables"," _ "," _ ","_","_"," _ "," _ "," _ "," _ "," _ "," _ "," _ "," _ ",null,364,"VAT",364,"VAT",null,null,null," _ "," _ "," _ "," _ "," _ "," _ "," _ "," _ "," _ "," _ "," _ ",null," _ "," _ "," _ "," _ "," _ ",null," _ "," _ "," _ "," _ ",null,2,22,"Finance","Finance and Administration",null,null,0,0,0,0,0,0,0,0,0,"_","_","_","_"]
["D0001/IL53984/F1182/X049/R0374/001/46","D0001/IL53984/F1182/X049/R0374/001/46",212,200,"Liabilities:Current Liabilities:Trade and Other Payable Exchange Transactions:Retentions:Opening Balance"," _"," _"," _ "," _ "," _ "," _ ",1200,"Finance and administration",1204,"Finance","_"," _"," _","D","IL",360," Trade and other payables",360,"Trade and other payables"," _ "," _ ","_","_"," _ "," _ "," _ "," _ "," _ "," _ "," _ "," _ ",null,361,"Trade Payables",361,"Trade Payables",null,null,null," _ "," _ "," _ "," _ "," _ "," _ "," _ "," _ "," _ "," _ "," _ ",null," _ "," _ "," _ "," _ "," _ ",null," _ "," _ "," _ "," _ ",null,2,22,"Finance","Finance and Administration",null,null,0,135359,0,0,0,0,0,0,0,"_","_","_","_"]
["D0001/IL53986/F1182/X049/R0374/001/46","D0001/IL53986/F1182/X049/R0374/001/46",213,201,"Liabilities:Current Liabilities:Trade and Other Payable Exchange Transactions:Retentions:Withdrawals"," _"," _"," _ "," _ "," _ "," _ ",1200,"Finance and administration",1204,"Finance","_"," _"," _","D","IL",360," Trade and other payables",360,"Trade and other payables"," _ "," _ ","_","_",200,"Cash Payments by Type / Other expenditure",480,"Other expenditure"," _ "," _ "," _ "," _ ",null,361,"Trade Payables",361,"Trade Payables",null,null,null," _ "," _ "," _ "," _ "," _ "," _ "," _ "," _ "," _ "," _ "," _ ",null," _ "," _ "," _ "," _ "," _ ",null," _ "," _ "," _ "," _ ",null,2,22,"Finance","Finance and Administration",null,null,0,0,0,0,0,0,0,0,0,"_","_","_","_"]
["D0001/IL53985/F1182/X049/R0374/001/46","D0001/IL53985/F1182/X049/R0374/001/46",214,202,"Liabilities:Current Liabilities:Trade and Other Payable Exchange Transactions:Retentions:Deposits"," _"," _"," _ "," _ "," _ "," _ ",1200,"Finance and administration",1204,"Finance","_"," _"," _","D","IL",360," Trade and other payables",360,"Trade and other payables"," _ "," _ ","_","_"," _ "," _ "," _ "," _ "," _ "," _ "," _ "," _ ",null,361,"Trade Payables",361,"Trade Payables",null,null,null," _ "," _ "," _ "," _ "," _ "," _ "," _ "," _ "," _ "," _ "," _ ",null," _ "," _ "," _ "," _ "," _ ",null," _ "," _ "," _ "," _ ",null,2,22,"Finance","Finance and Administration",null,null,0,0,0,0,0,0,0,0,0,"_","_","_","_"]
["D0001/IL53984/F13530/X049/R0374/001/46","D0001/IL53984/F13530/X049/R0374/001/46",215,203,"Liabilities:Current Liabilities:Trade and Other Payable Exchange Transactions:Retentions:Opening Balance"," _"," _"," _ "," _ "," _ "," _ ",1200,"Finance and administration",1204,"Finance","_"," _"," _","D","IL",360," Trade and other payables",360,"Trade and other payables"," _ "," _ ","_","_"," _ "," _ "," _ "," _ "," _ "," _ "," _ "," _ ",null,361,"Trade Payables",361,"Trade Payables",null,null,null," _ "," _ "," _ "," _ "," _ "," _ "," _ "," _ "," _ "," _ "," _ ",null," _ "," _ "," _ "," _ "," _ ",null," _ "," _ "," _ "," _ ",null,2,22,"Finance","Finance and Administration",null,null,0,0,0,0,0,0,0,0,0,"_","_","_","_"]
["D0001/IL53986/F13530/X049/R0374/001/46","D0001/IL53986/F13530/X049/R0374/001/46",216,204,"Liabilities:Current Liabilities:Trade and Other Payable Exchange Transactions:Retentions:Withdrawals"," _"," _"," _ "," _ "," _ "," _ ",1200,"Finance and administration",1204,"Finance","_"," _"," _","D","IL",360," Trade and other payables",360,"Trade and other payables"," _ "," _ ","_","_",200,"Cash Payments by Type / Other expenditure",480,"Other expenditure"," _ "," _ "," _ "," _ ",null,361,"Trade Payables",361,"Trade Payables",null,null,null," _ "," _ "," _ "," _ "," _ "," _ "," _ "," _ "," _ "," _ "," _ ",null," _ "," _ "," _ "," _ "," _ ",null," _ "," _ "," _ "," _ ",null,2,22,"Finance","Finance and Administration",null,null,0,0,0,0,0,0,0,0,0,"_","_","_","_"]
["D0001/IL53985/F13530/X049/R0374/001/46","D0001/IL53985/F13530/X049/R0374/001/46",217,205,"Liabilities:Current Liabilities:Trade and Other Payable Exchange Transactions:Retentions:Deposits"," _"," _"," _ "," _ "," _ "," _ ",1200,"Finance and administration",1204,"Finance","_"," _"," _","D","IL",360," Trade and other payables",360,"Trade and other payables"," _ "," _ ","_","_"," _ "," _ "," _ "," _ "," _ "," _ "," _ "," _ ",null,361,"Trade Payables",361,"Trade Payables",null,null,null," _ "," _ "," _ "," _ "," _ "," _ "," _ "," _ "," _ "," _ "," _ ",null," _ "," _ "," _ "," _ "," _ ",null," _ "," _ "," _ "," _ ",null,2,22,"Finance","Finance and Administration",null,null,0,0,0,0,0,0,0,0,0,"_","_","_","_"]
["O1440-1/IE00632/F0041/X044/R0374/001/42","O1440-1/IE00632/F0041/X044/R0374/001/42",218,206,"Expenditure:Contracted Services:Contractors:Catering Services",2700,"Contracted services","2700-003","Contractors",2703,"Contractors",1100,"Executive and council",1110,"Mayor and Council","_"," _"," _","O","IE"," _ "," _ "," _ "," _ "," _ "," _ ","_","_"," _ "," _ "," _ "," _ "," _ "," _ "," _ "," _ ",null," _ "," _ "," _ "," _ ",null,null,null," _ "," _ "," _ "," _ "," _ "," _ "," _ "," _ "," _ "," _ "," _ ",null," _ "," _ "," _ "," _ "," _ ",null," _ "," _ "," _ "," _ ",null,1,11,"Mayor and Council","Executive and Council",null,null,609,0,0,30000,30000,30000,11418,12035,0,"_","_","_","_"]
["O1332-1/IE00632/F0041/X044/R0374/001/42","O1332-1/IE00632/F0041/X044/R0374/001/42",219,207,"Expenditure:Contracted Services:Contractors:Catering Services",2700,"Contracted services","2700-003","Contractors",2703,"Contractors",1100,"Executive and council",1110,"Mayor and Council","_"," _"," _","O","IE"," _ "," _ "," _ "," _ "," _ "," _ ","_","_"," _ "," _ "," _ "," _ "," _ "," _ "," _ "," _ ",null," _ "," _ "," _ "," _ ",null,null,null," _ "," _ "," _ "," _ "," _ "," _ "," _ "," _ "," _ "," _ "," _ ",null," _ "," _ "," _ "," _ "," _ ",null," _ "," _ "," _ "," _ ",null,1,11,"Mayor and Council","Executive and Council",null,null,51139,47760,0,50000,0,0,0,0,0,"_","_","_","_"]
["O1332-1/IE00671/F0041/X044/R0374/001/42","O1332-1/IE00671/F0041/X044/R0374/001/42",220,208,"Expenditure:Contracted Services:Contractors:Transportation",2700,"Contracted services","2700-003","Contractors",2703,"Contractors",1100,"Executive and council",1110,"Mayor and Council","_"," _"," _","O","IE"," _ "," _ "," _ "," _ "," _ "," _ ","_","_"," _ "," _ "," _ "," _ "," _ "," _ "," _ "," _ ",null," _ "," _ "," _ "," _ ",null,null,null," _ "," _ "," _ "," _ "," _ "," _ "," _ "," _ "," _ "," _ "," _ ",null," _ "," _ "," _ "," _ "," _ ",null," _ "," _ "," _ "," _ ",null,1,11,"Mayor and Council","Executive and Council",null,null,108785,0,0,50000,0,0,0,0,10000,"_","_","_","_"]
["C0069-1/IA06253/F0002/X044/R0374/001/42","C0069-1/IA06253/F0002/X044/R0374/001/42",221,209,"Assets:Non-current Assets:Property, Plant and Equipment:Cost Model:Furniture and Office Equipment:In-use:Cost:Acquisitions"," _"," _"," _ "," _ "," _ "," _ ",1100,"Executive and council",1110,"Mayor and Council","CE",2080,"Internally generated funds","C","IA",240," Property, plant and equipment",240,"Property, plant and equipment"," _ "," _ ","_","_"," _ "," _ "," _ "," _ ",1490,"Furniture and Office Equipment",1490,"Furniture and Office Equipment",null,241,"PPE at cost/valuation (excl. finance leases)",241,"PPE at cost/valuation (excl. finance leases)",null,null,null," _ "," _ "," _ "," _ ",1490,"Furniture and Office Equipment"," _ "," _ ",1490," _ "," _ ",null," _ "," _ ","Furniture and Office Equipment"," _ "," _ ",null," _ "," _ "," _ "," _ ",null,1,11,"Mayor and Council","Executive and Council",null,null,0,0,0,10000,0,176000,21958,23144,7321,"_","_","_","_"]
["C0069-2/IA06253/F0002/X045/R0374/001/43","C0069-2/IA06253/F0002/X045/R0374/001/43",222,210,"Assets:Non-current Assets:Property, Plant and Equipment:Cost Model:Furniture and Office Equipment:In-use:Cost:Acquisitions"," _"," _"," _ "," _ "," _ "," _ ",1100,"Executive and council",1120,"Municipal Manager, Town Secretary and Chief Executive","CE",2080,"Internally generated funds","C","IA",240," Property, plant and equipment",240,"Property, plant and equipment"," _ "," _ ","_","_"," _ "," _ "," _ "," _ ",1490,"Furniture and Office Equipment",1490,"Furniture and Office Equipment",null,241,"PPE at cost/valuation (excl. finance leases)",241,"PPE at cost/valuation (excl. finance leases)",null,null,null," _ "," _ "," _ "," _ ",1490,"Furniture and Office Equipment"," _ "," _ ",1490," _ "," _ ",null," _ "," _ ","Furniture and Office Equipment"," _ "," _ ",null," _ "," _ "," _ "," _ ",null,1,12,"Municipal Manager, Town Secretary and Chief Executive","Executive and Council",null,null,12874,0,0,0,0,0,0,0,12874,"_","_","_","_"]
["C0068-1/IA06313/F0002/X045/R0374/001/43","C0068-1/IA06313/F0002/X045/R0374/001/43",223,211,"Assets:Non-current Assets:Property, Plant and Equipment:Cost Model:Machinery and Equipment:In-use:Cost:Acquisitions"," _"," _"," _ "," _ "," _ "," _ ",1100,"Executive and council",1120,"Municipal Manager, Town Secretary and Chief Executive","CE",2080,"Internally generated funds","C","IA",240," Property, plant and equipment",240,"Property, plant and equipment"," _ "," _ ","_","_"," _ "," _ "," _ "," _ ",1510,"Machinery and Equipment",1510,"Machinery and Equipment",null,241,"PPE at cost/valuation (excl. finance leases)",241,"PPE at cost/valuation (excl. finance leases)",null,null,null," _ "," _ "," _ "," _ ",1470,"Computer Equipment"," _ "," _ ",1470," _ "," _ ",null," _ "," _ ","Computer Equipment"," _ "," _ ",null," _ "," _ "," _ "," _ ",null,1,12,"Municipal Manager, Town Secretary and Chief Executive","Executive and Council",null,null,0,0,0,0,0,0,0,0,0,"_","_","_","_"]
["C0068-1/IA06193/F0002/X045/R0374/001/43","C0068-1/IA06193/F0002/X045/R0374/001/43",224,212,"Assets:Non-current Assets:Property, Plant and Equipment:Cost Model:Computer Equipment:In-use:Cost:Acquisitions"," _"," _"," _ "," _ "," _ "," _ ",1100,"Executive and council",1120,"Municipal Manager, Town Secretary and Chief Executive","CE",2080,"Internally generated funds","C","IA",240," Property, plant and equipment",240,"Property, plant and equipment"," _ "," _ ","_","_"," _ "," _ "," _ "," _ ",1470,"Computer Equipment",1470,"Computer Equipment",null,241,"PPE at cost/valuation (excl. finance leases)",241,"PPE at cost/valuation (excl. finance leases)",null,null,null," _ "," _ "," _ "," _ ",1470,"Computer Equipment"," _ "," _ ",1470," _ "," _ ",null," _ "," _ ","Computer Equipment"," _ "," _ ",null," _ "," _ "," _ "," _ ",null,1,12,"Municipal Manager, Town Secretary and Chief Executive","Executive and Council",null,null,0,0,0,20000,50000,0,0,0,84079,"_","_","_","_"]
["O0001/IE00723/F0001/X044/R0374/001/42","O0001/IE00723/F0001/X044/R0374/001/42",225,213,"Expenditure:Depreciation and Amortisation:Depreciation:Transport Assets",2300,"Depreciation & asset impairment","2300-001","Depreciation of Property, Plant & Equipment",2301,"Depreciation of Property, Plant and Equipment",1100,"Executive and council",1110,"Mayor and Council","_"," _"," _","O","IE"," _ "," _ "," _ "," _ "," _ "," _ ","_","_"," _ "," _ "," _ "," _ "," _ "," _ "," _ "," _ ",null," _ "," _ "," _ "," _ ",null,null,null," _ "," _ "," _ "," _ "," _ "," _ "," _ "," _ "," _ "," _ "," _ ",null,1530,"Transport Assets"," _ ",1530,"Transport Assets","DP"," _ "," _ "," _ "," _ ",null,1,11,"Mayor and Council","Executive and Council",null,null,0,0,0,0,0,0,0,0,0,"_","_","_","_"]
["C0068-2/IA06193/F0002/X046/R0374/001/44","C0068-2/IA06193/F0002/X046/R0374/001/44",226,214,"Assets:Non-current Assets:Property, Plant and Equipment:Cost Model:Computer Equipment:In-use:Cost:Acquisitions"," _"," _"," _ "," _ "," _ "," _ ",1200,"Finance and administration",1201,"Administrative and Corporate Support","CE",2080,"Internally generated funds","C","IA",240," Property, plant and equipment",240,"Property, plant and equipment"," _ "," _ ","_","_"," _ "," _ "," _ "," _ ",1470,"Computer Equipment",1470,"Computer Equipment",null,241,"PPE at cost/valuation (excl. finance leases)",241,"PPE at cost/valuation (excl. finance leases)",null,null,null," _ "," _ "," _ "," _ ",1470,"Computer Equipment"," _ "," _ ",1470," _ "," _ ",null," _ "," _ ","Computer Equipment"," _ "," _ ",null," _ "," _ "," _ "," _ ",null,2,21,"Administrative and Corporate Support","Finance and Administration",null,null,88569,0,0,60000,140000,0,0,0,144908,"_","_","_","_"]
["C0004-1/IA06253/F0002/X046/R0374/001/44","C0004-1/IA06253/F0002/X046/R0374/001/44",227,215,"Assets:Non-current Assets:Property, Plant and Equipment:Cost Model:Furniture and Office Equipment:In-use:Cost:Acquisitions"," _"," _"," _ "," _ "," _ "," _ ",1200,"Finance and administration",1201,"Administrative and Corporate Support","CE",2080,"Internally generated funds","C","IA",240," Property, plant and equipment",240,"Property, plant and equipment"," _ "," _ ","_","_"," _ "," _ "," _ "," _ ",1490,"Furniture and Office Equipment",1490,"Furniture and Office Equipment",null,241,"PPE at cost/valuation (excl. finance leases)",241,"PPE at cost/valuation (excl. finance leases)",null,null,null,1490,1490,"Furniture and Office Equipment","Furniture and Office Equipment"," _ "," _ "," _ "," _ "," _ "," _ "," _ ",null," _ "," _ "," _ "," _ "," _ ",null," _ "," _ "," _ "," _ ",null,2,21,"Administrative and Corporate Support","Finance and Administration",null,null,20454,0,0,30000,0,0,0,0,20454,"_","_","_","_"]
["O0001/IE00759/F0041/X045/R0374/001/43","O0001/IE00759/F0041/X045/R0374/001/43",228,216,"Expenditure:Operational Cost:Bank Charges, Facility and Card Fees:Bank Accounts",2900,"Other expenditure","_","_",2904,"Other Expenditure",1100,"Executive and council",1120,"Municipal Manager, Town Secretary and Chief Executive","_"," _"," _","O","IE"," _ "," _ "," _ "," _ "," _ "," _ ","_","_"," _ "," _ "," _ "," _ "," _ "," _ "," _ "," _ ",null," _ "," _ "," _ "," _ ",null,null,null," _ "," _ "," _ "," _ "," _ "," _ "," _ "," _ "," _ "," _ "," _ ",null," _ "," _ "," _ "," _ "," _ ",null," _ "," _ "," _ "," _ ",null,1,12,"Municipal Manager, Town Secretary and Chief Executive","Executive and Council",null,null,0,0,0,0,0,0,0,0,0,"_","_","_","_"]
["O0001/IE00778/F0041/X045/R0374/001/43","O0001/IE00778/F0041/X045/R0374/001/43",229,217,"Expenditure:Operational Cost:Communication:Telephone, Fax, Telegraph and Telex",2900,"Other expenditure","_","_",2904,"Other Expenditure",1100,"Executive and council",1120,"Municipal Manager, Town Secretary and Chief Executive","_"," _"," _","O","IE"," _ "," _ "," _ "," _ "," _ "," _ ","_","_"," _ "," _ "," _ "," _ "," _ "," _ "," _ "," _ ",null," _ "," _ "," _ "," _ ",null,null,null," _ "," _ "," _ "," _ "," _ "," _ "," _ "," _ "," _ "," _ "," _ ",null," _ "," _ "," _ "," _ "," _ ",null," _ "," _ "," _ "," _ ",null,1,12,"Municipal Manager, Town Secretary and Chief Executive","Executive and Council",null,null,67717,57898,0,0,0,0,0,0,10847,"_","_","_","_"]
["O0001/IE00810/F0041/X045/R0374/001/43","O0001/IE00810/F0041/X045/R0374/001/43",230,218,"Expenditure:Operational Cost:Registration Fees:Professional and Regulatory Bodies",2900,"Other expenditure","_","_",2904,"Other Expenditure",1100,"Executive and council",1120,"Municipal Manager, Town Secretary and Chief Executive","_"," _"," _","O","IE"," _ "," _ "," _ "," _ "," _ "," _ ","_","_"," _ "," _ "," _ "," _ "," _ "," _ "," _ "," _ ",null," _ "," _ "," _ "," _ ",null,null,null," _ "," _ "," _ "," _ "," _ "," _ "," _ "," _ "," _ "," _ "," _ ",null," _ "," _ "," _ "," _ "," _ ",null," _ "," _ "," _ "," _ ",null,1,12,"Municipal Manager, Town Secretary and Chief Executive","Executive and Council",null,null,18882,22915,0,0,45592,0,0,0,0,"_","_","_","_"]
["O0001/IE00579/F0041/X045/R0374/001/43","O0001/IE00579/F0041/X045/R0374/001/43",231,219,"Expenditure:Operational Cost:Municipal Services",2900,"Other expenditure","_","_",2904,"Other Expenditure",1100,"Executive and council",1120,"Municipal Manager, Town Secretary and Chief Executive","_"," _"," _","O","IE"," _ "," _ "," _ "," _ "," _ "," _ ","_","_"," _ "," _ "," _ "," _ "," _ "," _ "," _ "," _ ",null," _ "," _ "," _ "," _ ",null,null,null," _ "," _ "," _ "," _ "," _ "," _ "," _ "," _ "," _ "," _ "," _ ",null," _ "," _ "," _ "," _ "," _ ",null," _ "," _ "," _ "," _ ",null,1,12,"Municipal Manager, Town Secretary and Chief Executive","Executive and Council",null,null,48546,508777,0,0,0,0,0,0,0,"_","_","_","_"]
["O0001/IE00059/F0041/X045/R0374/001/43","O0001/IE00059/F0041/X045/R0374/001/43",232,220,"Expenditure:Operational Cost:Registration Fees:Seminars, Conferences, Workshops and Events:National",2900,"Other expenditure","_","_",2904,"Other Expenditure",1100,"Executive and council",1120,"Municipal Manager, Town Secretary and Chief Executive","_"," _"," _","O","IE"," _ "," _ "," _ "," _ "," _ "," _ ","_","_"," _ "," _ "," _ "," _ "," _ "," _ "," _ "," _ ",null," _ "," _ "," _ "," _ ",null,null,null," _ "," _ "," _ "," _ "," _ "," _ "," _ "," _ "," _ "," _ "," _ ",null," _ "," _ "," _ "," _ "," _ ",null," _ "," _ "," _ "," _ ",null,1,12,"Municipal Manager, Town Secretary and Chief Executive","Executive and Council",null,null,0,20497,0,0,18000,10000,38647,40734,0,"_","_","_","_"]
["O0001/IE00805/F0041/X045/R0374/001/43","O0001/IE00805/F0041/X045/R0374/001/43",233,221,"Expenditure:Operational Cost:Insurance Underwriting:Premiums",2900,"Other expenditure","_","_",2904,"Other Expenditure",1100,"Executive and council",1120,"Municipal Manager, Town Secretary and Chief Executive","_"," _"," _","O","IE"," _ "," _ "," _ "," _ "," _ "," _ ","_","_"," _ "," _ "," _ "," _ "," _ "," _ "," _ "," _ ",null," _ "," _ "," _ "," _ ",null,null,null," _ "," _ "," _ "," _ "," _ "," _ "," _ "," _ "," _ "," _ "," _ ",null," _ "," _ "," _ "," _ "," _ ",null," _ "," _ "," _ "," _ ",null,1,12,"Municipal Manager, Town Secretary and Chief Executive","Executive and Council",null,null,0,84908,0,0,0,0,0,0,0,"_","_","_","_"]
["O0001/IE01583/F0041/X045/R0374/001/43","O0001/IE01583/F0041/X045/R0374/001/43",234,222,"Expenditure:Operational Cost:Travel and Subsistence:Domestic:Transport with Operator:Public Transport:Road Transport",2900,"Other expenditure","_","_",2904,"Other Expenditure",1100,"Executive and council",1120,"Municipal Manager, Town Secretary and Chief Executive","_"," _"," _","O","IE"," _ "," _ "," _ "," _ "," _ "," _ ","_","_"," _ "," _ "," _ "," _ "," _ "," _ "," _ "," _ ",null," _ "," _ "," _ "," _ ",null,null,null," _ "," _ "," _ "," _ "," _ "," _ "," _ "," _ "," _ "," _ "," _ ",null," _ "," _ "," _ "," _ "," _ ",null," _ "," _ "," _ "," _ ",null,1,12,"Municipal Manager, Town Secretary and Chief Executive","Executive and Council",null,null,0,0,0,0,0,0,0,0,0,"_","_","_","_"]
["O0001/IE00008/F0041/X045/R0374/001/43","O0001/IE00008/F0041/X045/R0374/001/43",235,223,"Expenditure:Contracted Services:Consultants and Professional Services:Legal Cost:Legal Advice and Litigation",2700,"Contracted services","2700-002","Consultants and Professional Services",2702,"Consultants and Professional Services",1100,"Executive and council",1120,"Municipal Manager, Town Secretary and Chief Executive","_"," _"," _","O","IE"," _ "," _ "," _ "," _ "," _ "," _ ","_","_"," _ "," _ "," _ "," _ "," _ "," _ "," _ "," _ ",null," _ "," _ "," _ "," _ ",null,null,null," _ "," _ "," _ "," _ "," _ "," _ "," _ "," _ "," _ "," _ "," _ ",null," _ "," _ "," _ "," _ "," _ ",null," _ "," _ "," _ "," _ ",null,1,12,"Municipal Manager, Town Secretary and Chief Executive","Executive and Council",null,null,0,68960,0,0,0,0,0,0,0,"_","_","_","_"]
["C0068-3/IA06193/F0002/X098/R0374/001/96","C0068-3/IA06193/F0002/X098/R0374/001/96",236,224,"Assets:Non-current Assets:Property, Plant and Equipment:Cost Model:Computer Equipment:In-use:Cost:Acquisitions"," _"," _"," _ "," _ "," _ "," _ ",3100,"Planning and development",3105,"Economic Development/Planning","CE",2080,"Internally generated funds","C","IA",240," Property, plant and equipment",240,"Property, plant and equipment"," _ "," _ ","_","_"," _ "," _ "," _ "," _ ",1470,"Computer Equipment",1470,"Computer Equipment",null,241,"PPE at cost/valuation (excl. finance leases)",241,"PPE at cost/valuation (excl. finance leases)",null,null,null," _ "," _ "," _ "," _ ",1470,"Computer Equipment"," _ "," _ ",1470," _ "," _ ",null," _ "," _ ","Computer Equipment"," _ "," _ ",null," _ "," _ "," _ "," _ ",null,3,33,"Economic Development/Planning","Planning and Development",null,null,48776,0,0,30000,30000,0,0,0,69643,"_","_","_","_"]
["C0069-3/IA06253/F0002/X049/R0374/001/46","C0069-3/IA06253/F0002/X049/R0374/001/46",237,225,"Assets:Non-current Assets:Property, Plant and Equipment:Cost Model:Furniture and Office Equipment:In-use:Cost:Acquisitions"," _"," _"," _ "," _ "," _ "," _ ",1200,"Finance and administration",1204,"Finance","CE",2080,"Internally generated funds","C","IA",240," Property, plant and equipment",240,"Property, plant and equipment"," _ "," _ ","_","_"," _ "," _ "," _ "," _ ",1490,"Furniture and Office Equipment",1490,"Furniture and Office Equipment",null,241,"PPE at cost/valuation (excl. finance leases)",241,"PPE at cost/valuation (excl. finance leases)",null,null,null," _ "," _ "," _ "," _ ",1490,"Furniture and Office Equipment"," _ "," _ ",1490," _ "," _ ",null," _ "," _ ","Furniture and Office Equipment"," _ "," _ ",null," _ "," _ "," _ "," _ ",null,2,22,"Finance","Finance and Administration",null,null,37173,0,0,34771,0,0,0,0,37173,"_","_","_","_"]
["C0071-1/IA06313/F0002/X049/R0374/001/46","C0071-1/IA06313/F0002/X049/R0374/001/46",238,226,"Assets:Non-current Assets:Property, Plant and Equipment:Cost Model:Machinery and Equipment:In-use:Cost:Acquisitions"," _"," _"," _ "," _ "," _ "," _ ",1200,"Finance and administration",1204,"Finance","CE",2080,"Internally generated funds","C","IA",240," Property, plant and equipment",240,"Property, plant and equipment"," _ "," _ ","_","_"," _ "," _ "," _ "," _ ",1510,"Machinery and Equipment",1510,"Machinery and Equipment",null,241,"PPE at cost/valuation (excl. finance leases)",241,"PPE at cost/valuation (excl. finance leases)",null,null,null," _ "," _ "," _ "," _ ",1510,"Machinery and Equipment"," _ "," _ ",1510," _ "," _ ",null," _ "," _ ","Machinery and Equipment"," _ "," _ ",null," _ "," _ "," _ "," _ ",null,2,22,"Finance","Finance and Administration",null,null,0,0,0,0,0,0,0,0,0,"_","_","_","_"]
["C0068-4/IA06193/F0002/X049/R0374/001/46","C0068-4/IA06193/F0002/X049/R0374/001/46",239,227,"Assets:Non-current Assets:Property, Plant and Equipment:Cost Model:Computer Equipment:In-use:Cost:Acquisitions"," _"," _"," _ "," _ "," _ "," _ ",1200,"Finance and administration",1204,"Finance","CE",2080,"Internally generated funds","C","IA",240," Property, plant and equipment",240,"Property, plant and equipment"," _ "," _ ","_","_"," _ "," _ "," _ "," _ ",1470,"Computer Equipment",1470,"Computer Equipment",null,241,"PPE at cost/valuation (excl. finance leases)",241,"PPE at cost/valuation (excl. finance leases)",null,null,null," _ "," _ "," _ "," _ ",1470,"Computer Equipment"," _ "," _ ",1470," _ "," _ ",null," _ "," _ ","Computer Equipment"," _ "," _ ",null," _ "," _ "," _ "," _ ",null,2,22,"Finance","Finance and Administration",null,null,83648,0,0,0,30000,0,0,0,111472,"_","_","_","_"]
["O0001/IE01581/F0041/X045/R0374/001/43","O0001/IE01581/F0041/X045/R0374/001/43",240,228,"Expenditure:Operational Cost:Travel and Subsistence:Domestic:Transport with Operator:Public Transport:Air Transport",2900,"Other expenditure","_","_",2904,"Other Expenditure",1100,"Executive and council",1120,"Municipal Manager, Town Secretary and Chief Executive","_"," _"," _","O","IE"," _ "," _ "," _ "," _ "," _ "," _ ","_","_"," _ "," _ "," _ "," _ "," _ "," _ "," _ "," _ ",null," _ "," _ "," _ "," _ ",null,null,null," _ "," _ "," _ "," _ "," _ "," _ "," _ "," _ "," _ "," _ "," _ ",null," _ "," _ "," _ "," _ "," _ ",null," _ "," _ "," _ "," _ ",null,1,12,"Municipal Manager, Town Secretary and Chief Executive","Executive and Council",null,null,33177,23662,0,52100,20000,12000,24255,16105,0,"_","_","_","_"]
["O0001/IE00738/F0041/X045/R0374/001/43","O0001/IE00738/F0041/X045/R0374/001/43",241,229,"Expenditure:Inventory Consumed:Consumables:Standard Rated",2600,"Other materials",2600,"Other materials"," _ "," _ ",1100,"Executive and council",1120,"Municipal Manager, Town Secretary and Chief Executive","_"," _"," _","O","IE"," _ "," _ "," _ "," _ "," _ "," _ ","_","_"," _ "," _ "," _ "," _ "," _ "," _ "," _ "," _ ",null," _ "," _ "," _ "," _ ",null,null,null," _ "," _ "," _ "," _ "," _ "," _ "," _ "," _ "," _ "," _ "," _ ",null," _ "," _ "," _ "," _ "," _ ",null," _ "," _ "," _ "," _ ",null,1,12,"Municipal Manager, Town Secretary and Chief Executive","Executive and Council",null,null,3900,0,0,0,0,0,0,0,0,"_","_","_","_"]
["O0001/IE00755/F0041/X045/R0374/001/43","O0001/IE00755/F0041/X045/R0374/001/43",242,230,"Expenditure:Operational Cost:Advertising, Publicity and Marketing:Municipal Newsletters",2900,"Other expenditure","_","_",2904,"Other Expenditure",1100,"Executive and council",1120,"Municipal Manager, Town Secretary and Chief Executive","_"," _"," _","O","IE"," _ "," _ "," _ "," _ "," _ "," _ ","_","_"," _ "," _ "," _ "," _ "," _ "," _ "," _ "," _ ",null," _ "," _ "," _ "," _ ",null,null,null," _ "," _ "," _ "," _ "," _ "," _ "," _ "," _ "," _ "," _ "," _ ",null," _ "," _ "," _ "," _ "," _ ",null," _ "," _ "," _ "," _ ",null,1,12,"Municipal Manager, Town Secretary and Chief Executive","Executive and Council",null,null,0,0,0,15000,15000,15000,15810,16664,0,"_","_","_","_"]
["D0001/IR02344/F0041/X044/R0374/001/42","D0001/IR02344/F0041/X044/R0374/001/42",243,231,"Revenue:Non-exchange Revenue:Transfers and Subsidies:Operational:Monetary Allocations:National Revenue Fund:Equitable Share",1500,"Transfers and subsidies",1500,"Transfers and subsidies"," _ "," _ ",1100,"Executive and council",1110,"Mayor and Council","_"," _"," _","D","IR"," _ "," _ "," _ "," _ "," _ "," _ ","_","_"," _ "," _ "," _ "," _ "," _ "," _ "," _ "," _ ",null," _ "," _ "," _ "," _ ",null,null,null," _ "," _ "," _ "," _ "," _ "," _ "," _ "," _ "," _ "," _ "," _ ",null," _ "," _ "," _ "," _ "," _ ",null," _ "," _ "," _ "," _ ",null,1,11,"Mayor and Council","Executive and Council",null,null,4873399,4537850,0,-4316301,-4316301,-4316301,-9782000,-9856800,5280914,"_","_","_","_"]
["D0001/IR006912/F13576/X044/R0374/001/42","D0001/IR006912/F13576/X044/R0374/001/42",244,232,"Revenue:Non-exchange Revenue:Transfers and Subsidies:Operational:Monetary Allocations:Provincial Government:Free State:Capacity Building and Other:Specify (Add grant description)",1500,"Transfers and subsidies",1500,"Transfers and subsidies"," _ "," _ ",1100,"Executive and council",1110,"Mayor and Council","_"," _"," _","D","IR"," _ "," _ "," _ "," _ "," _ "," _ ","_","_"," _ "," _ "," _ "," _ "," _ "," _ "," _ "," _ ",null," _ "," _ "," _ "," _ ",null,null,null," _ "," _ "," _ "," _ "," _ "," _ "," _ "," _ "," _ "," _ "," _ ",null," _ "," _ "," _ "," _ "," _ ",null," _ "," _ "," _ "," _ ",null,1,11,"Mayor and Council","Executive and Council",null,null,1790785,2238482,0,-2120000,-2120000,-1840000,-2880800,-2880800,1035969,"_","_","_","_"]
["O0001/IE00595/F1177/X049/R0374/001/46","O0001/IE00595/F1177/X049/R0374/001/46",245,233,"Expenditure:Operational Cost:Skills Development Fund Levy",2900,"Other expenditure","_","_",2904,"Other Expenditure",1200,"Finance and administration",1204,"Finance","_"," _"," _","O","IE"," _ "," _ "," _ "," _ "," _ "," _ ","_","_"," _ "," _ "," _ "," _ "," _ "," _ "," _ "," _ ",null," _ "," _ "," _ "," _ ",null,null,null," _ "," _ "," _ "," _ "," _ "," _ "," _ "," _ "," _ "," _ "," _ ",null," _ "," _ "," _ "," _ "," _ ",null," _ "," _ "," _ "," _ ",null,2,22,"Finance","Finance and Administration",null,null,4775,2099,0,5000,5000,5000,5000,5000,4756,"_","_","_","_"]
["O0001/IE00040/F1177/X049/R0374/001/46","O0001/IE00040/F1177/X049/R0374/001/46",246,234,"Expenditure:Employee Related Cost:Municipal Staff:Social Contributions:Bargaining Council",2000,"Employee related costs","2000-009","Other benefits and allowances",2009,"Other benefits and allowances",1200,"Finance and administration",1204,"Finance","_"," _"," _","O","IE"," _ "," _ "," _ "," _ "," _ "," _ ","_","_"," _ "," _ "," _ "," _ "," _ "," _ "," _ "," _ ",null," _ "," _ "," _ "," _ ",null,null,null," _ "," _ "," _ "," _ "," _ "," _ "," _ "," _ "," _ "," _ "," _ ",null," _ "," _ "," _ "," _ "," _ ",null," _ "," _ "," _ "," _ ","MS",2,22,"Finance","Finance and Administration",null,null,529,0,0,559,559,0,0,0,545,"_","_","_","_"]
["O0001/IE01530/F0041/X049/R0374/001/46","O0001/IE01530/F0041/X049/R0374/001/46",247,235,"Expenditure:Employee Related Cost:Municipal Staff:Salaries, Wages and Allowances:Allowances:Service Related Benefits:Leave Pay",2000,"Employee related costs","2000-010","Payments in lieu of leave",2010,"Payments in lieu of leave",1200,"Finance and administration",1204,"Finance","_"," _"," _","O","IE"," _ "," _ "," _ "," _ "," _ "," _ ","_","_"," _ "," _ "," _ "," _ "," _ "," _ "," _ "," _ ",null," _ "," _ "," _ "," _ ",null,null,null," _ "," _ "," _ "," _ "," _ "," _ "," _ "," _ "," _ "," _ "," _ ",null," _ "," _ "," _ "," _ "," _ ",null," _ "," _ "," _ "," _ ","MS",2,22,"Finance","Finance and Administration",null,null,11537,281611,0,0,0,0,0,0,0,"_","_","_","_"]
["O0001/IE01525/F0041/X049/R0374/001/46","O0001/IE01525/F0041/X049/R0374/001/46",248,236,"Expenditure:Employee Related Cost:Municipal Staff:Salaries, Wages and Allowances:Allowances:Service Related Benefits:Acting and Post Related Allowances",2000,"Employee related costs","2000-009","Other benefits and allowances",2001,"Basic Salaries and Wages",1200,"Finance and administration",1204,"Finance","_"," _"," _","O","IE"," _ "," _ "," _ "," _ "," _ "," _ ","_","_"," _ "," _ "," _ "," _ "," _ "," _ "," _ "," _ ",null," _ "," _ "," _ "," _ ",null,null,null," _ "," _ "," _ "," _ "," _ "," _ "," _ "," _ "," _ "," _ "," _ ",null," _ "," _ "," _ "," _ "," _ ",null," _ "," _ "," _ "," _ ","MS",2,22,"Finance","Finance and Administration",null,null,47480,66955,0,68818,26807,10000,68818,68818,21583,"_","_","_","_"]
["O0001/IE06776/F0041/X049/R0374/001/46","O0001/IE06776/F0041/X049/R0374/001/46",249,237,"Expenditure:Employee Related Cost:Senior Management:Chief Financial Officer:Salaries and Allowances:Service Related Benefits:Acting and Post Related Allowances",2000,"Employee related costs","2000-009","Other benefits and allowances",2001,"Basic Salaries and Wages",1200,"Finance and administration",1204,"Finance","_"," _"," _","O","IE"," _ "," _ "," _ "," _ "," _ "," _ ","_","_"," _ "," _ "," _ "," _ "," _ "," _ "," _ "," _ ",null," _ "," _ "," _ "," _ ",null,null,null," _ "," _ "," _ "," _ "," _ "," _ "," _ "," _ "," _ "," _ "," _ ",null," _ "," _ "," _ "," _ "," _ ",null," _ "," _ "," _ "," _ ","SM",2,22,"Finance","Finance and Administration",null,null,0,62349,0,0,0,0,0,0,0,"_","_","_","_"]
["O0001/IE00579/F0041/X044/R0374/001/42","O0001/IE00579/F0041/X044/R0374/001/42",250,238,"Expenditure:Operational Cost:Municipal Services",2900,"Other expenditure","_","_",2904,"Other Expenditure",1100,"Executive and council",1110,"Mayor and Council","_"," _"," _","O","IE"," _ "," _ "," _ "," _ "," _ "," _ ","_","_"," _ "," _ "," _ "," _ "," _ "," _ "," _ "," _ ",null," _ "," _ "," _ "," _ ",null,null,null," _ "," _ "," _ "," _ "," _ "," _ "," _ "," _ "," _ "," _ "," _ ",null," _ "," _ "," _ "," _ "," _ ",null," _ "," _ "," _ "," _ ",null,1,11,"Mayor and Council","Executive and Council",null,null,25840,24578,0,0,0,0,0,0,0,"_","_","_","_"]
["O0001/IE00071/F0041/X044/R0374/001/42","O0001/IE00071/F0041/X044/R0374/001/42",251,239,"Expenditure:Remuneration of Councillors:Speaker:Allowances and Service Related Benefits:Travelling Allowance",2100,"Remuneration of councillors",210007,"Other benefits and allowances"," _ "," _ ",1100,"Executive and council",1110,"Mayor and Council","_"," _"," _","O","IE"," _ "," _ "," _ "," _ "," _ "," _ ","_","_"," _ "," _ "," _ "," _ "," _ "," _ "," _ "," _ ",null," _ "," _ "," _ "," _ ",null,null,null," _ "," _ "," _ "," _ "," _ "," _ "," _ "," _ "," _ "," _ "," _ ",null," _ "," _ "," _ "," _ "," _ ",null," _ "," _ "," _ "," _ ",null,1,11,"Mayor and Council","Executive and Council",null,null,0,0,0,72000,72000,72000,72000,72000,0,"_","_","_","_"]
["O0001/IE07238/F0041/X044/R0374/001/42","O0001/IE07238/F0041/X044/R0374/001/42",252,240,"Expenditure:Remuneration of Councillors:Total for All Other Councillors:Allowances and Service Related Benefits:Travelling Allowance",2100,"Remuneration of councillors",210007,"Other benefits and allowances"," _ "," _ ",1100,"Executive and council",1110,"Mayor and Council","_"," _"," _","O","IE"," _ "," _ "," _ "," _ "," _ "," _ ","_","_"," _ "," _ "," _ "," _ "," _ "," _ "," _ "," _ ",null," _ "," _ "," _ "," _ ",null,null,null," _ "," _ "," _ "," _ "," _ "," _ "," _ "," _ "," _ "," _ "," _ ",null," _ "," _ "," _ "," _ "," _ ",null," _ "," _ "," _ "," _ ",null,1,11,"Mayor and Council","Executive and Council",null,null,66000,165971,0,0,0,0,0,0,90340,"_","_","_","_"]
["O0001/IE07226/F0041/X044/R0374/001/42","O0001/IE07226/F0041/X044/R0374/001/42",253,241,"Expenditure:Remuneration of Councillors:Executive Mayor:Allowances and Service Related Benefits:Travelling Allowance",2100,"Remuneration of councillors",210007,"Other benefits and allowances"," _ "," _ ",1100,"Executive and council",1110,"Mayor and Council","_"," _"," _","O","IE"," _ "," _ "," _ "," _ "," _ "," _ ","_","_"," _ "," _ "," _ "," _ "," _ "," _ "," _ "," _ ",null," _ "," _ "," _ "," _ ",null,null,null," _ "," _ "," _ "," _ "," _ "," _ "," _ "," _ "," _ "," _ "," _ ",null," _ "," _ "," _ "," _ "," _ ",null," _ "," _ "," _ "," _ ",null,1,11,"Mayor and Council","Executive and Council",null,null,0,0,0,0,0,0,0,0,0,"_","_","_","_"]
["O0001/IE00817/F0041/X044/R0374/001/42","O0001/IE00817/F0041/X044/R0374/001/42",254,242,"Expenditure:Remuneration of Councillors:Speaker:Allowances and Service Related Benefits:Cell phone Allowance",2100,"Remuneration of councillors",210005,"Cellphone Allowance"," _ "," _ ",1100,"Executive and council",1110,"Mayor and Council","_"," _"," _","O","IE"," _ "," _ "," _ "," _ "," _ "," _ ","_","_"," _ "," _ "," _ "," _ "," _ "," _ "," _ "," _ ",null," _ "," _ "," _ "," _ ",null,null,null," _ "," _ "," _ "," _ "," _ "," _ "," _ "," _ "," _ "," _ "," _ ",null," _ "," _ "," _ "," _ "," _ ",null," _ "," _ "," _ "," _ ",null,1,11,"Mayor and Council","Executive and Council",null,null,0,0,0,0,0,0,0,0,0,"_","_","_","_"]
["O0001/IE00816/F0041/X044/R0374/001/42","O0001/IE00816/F0041/X044/R0374/001/42",255,243,"Expenditure:Remuneration of Councillors:Speaker:Allowances and Service Related Benefits:Basic Salary",2100,"Remuneration of councillors",210001,"Basic Salaries and Wages"," _ "," _ ",1100,"Executive and council",1110,"Mayor and Council","_"," _"," _","O","IE"," _ "," _ "," _ "," _ "," _ "," _ ","_","_"," _ "," _ "," _ "," _ "," _ "," _ "," _ "," _ ",null," _ "," _ "," _ "," _ ",null,null,null," _ "," _ "," _ "," _ "," _ "," _ "," _ "," _ "," _ "," _ "," _ ",null," _ "," _ "," _ "," _ "," _ ",null," _ "," _ "," _ "," _ ",null,1,11,"Mayor and Council","Executive and Council",null,null,0,0,0,0,0,0,0,0,0,"_","_","_","_"]
["O0001/IE00073/F0041/X044/R0374/001/42","O0001/IE00073/F0041/X044/R0374/001/42",256,244,"Expenditure:Remuneration of Councillors:Speaker:Social Contributions:Medial Aid Benefits",2100,"Remuneration of councillors",210003,"Medical Aid Contributions"," _ "," _ ",1100,"Executive and council",1110,"Mayor and Council","_"," _"," _","O","IE"," _ "," _ "," _ "," _ "," _ "," _ ","_","_"," _ "," _ "," _ "," _ "," _ "," _ "," _ "," _ ",null," _ "," _ "," _ "," _ ",null,null,null," _ "," _ "," _ "," _ "," _ "," _ "," _ "," _ "," _ "," _ "," _ ",null," _ "," _ "," _ "," _ "," _ ",null," _ "," _ "," _ "," _ ",null,1,11,"Mayor and Council","Executive and Council",null,null,0,0,0,0,0,0,0,0,0,"_","_","_","_"]
["O0001/IE07219/F0041/X044/R0374/001/42","O0001/IE07219/F0041/X044/R0374/001/42",257,245,"Expenditure:Remuneration of Councillors:Executive Mayor:Allowances and Service Related Benefits:Cell phone Allowance",2100,"Remuneration of councillors",210005,"Cellphone Allowance"," _ "," _ ",1100,"Executive and council",1110,"Mayor and Council","_"," _"," _","O","IE"," _ "," _ "," _ "," _ "," _ "," _ ","_","_"," _ "," _ "," _ "," _ "," _ "," _ "," _ "," _ ",null," _ "," _ "," _ "," _ ",null,null,null," _ "," _ "," _ "," _ "," _ "," _ "," _ "," _ "," _ "," _ "," _ ",null," _ "," _ "," _ "," _ "," _ ",null," _ "," _ "," _ "," _ ",null,1,11,"Mayor and Council","Executive and Council",null,null,0,0,0,0,0,0,0,0,0,"_","_","_","_"]
["O0001/IE00074/F0041/X044/R0374/001/42","O0001/IE00074/F0041/X044/R0374/001/42",258,246,"Expenditure:Remuneration of Councillors:Speaker:Social Contributions:Pension Fund Contributions",2100,"Remuneration of councillors",210002,"Pension and UIF Contributions"," _ "," _ ",1100,"Executive and council",1110,"Mayor and Council","_"," _"," _","O","IE"," _ "," _ "," _ "," _ "," _ "," _ ","_","_"," _ "," _ "," _ "," _ "," _ "," _ "," _ "," _ ",null," _ "," _ "," _ "," _ ",null,null,null," _ "," _ "," _ "," _ "," _ "," _ "," _ "," _ "," _ "," _ "," _ ",null," _ "," _ "," _ "," _ "," _ ",null," _ "," _ "," _ "," _ ",null,1,11,"Mayor and Council","Executive and Council",null,null,0,144825,0,0,0,0,0,0,0,"_","_","_","_"]
["O0001/IE07218/F0041/X044/R0374/001/42","O0001/IE07218/F0041/X044/R0374/001/42",259,247,"Expenditure:Remuneration of Councillors:Executive Mayor:Allowances and Service Related Benefits:Basic Salary",2100,"Remuneration of councillors",210001,"Basic Salaries and Wages"," _ "," _ ",1100,"Executive and council",1110,"Mayor and Council","_"," _"," _","O","IE"," _ "," _ "," _ "," _ "," _ "," _ ","_","_"," _ "," _ "," _ "," _ "," _ "," _ "," _ "," _ ",null," _ "," _ "," _ "," _ ",null,null,null," _ "," _ "," _ "," _ "," _ "," _ "," _ "," _ "," _ "," _ "," _ ",null," _ "," _ "," _ "," _ "," _ ",null," _ "," _ "," _ "," _ ",null,1,11,"Mayor and Council","Executive and Council",null,null,0,0,0,0,0,0,0,0,0,"_","_","_","_"]
["O0001/IE07229/F0041/X044/R0374/001/42","O0001/IE07229/F0041/X044/R0374/001/42",260,248,"Expenditure:Remuneration of Councillors:Executive Mayor:Social Contributions:Pension Fund Contributions",2100,"Remuneration of councillors",210002,"Pension and UIF Contributions"," _ "," _ ",1100,"Executive and council",1110,"Mayor and Council","_"," _"," _","O","IE"," _ "," _ "," _ "," _ "," _ "," _ ","_","_"," _ "," _ "," _ "," _ "," _ "," _ "," _ "," _ ",null," _ "," _ "," _ "," _ ",null,null,null," _ "," _ "," _ "," _ "," _ "," _ "," _ "," _ "," _ "," _ "," _ ",null," _ "," _ "," _ "," _ "," _ ",null," _ "," _ "," _ "," _ ",null,1,11,"Mayor and Council","Executive and Council",null,null,0,0,0,0,0,0,0,0,0,"_","_","_","_"]
["O0001/IE07228/F0041/X044/R0374/001/42","O0001/IE07228/F0041/X044/R0374/001/42",261,249,"Expenditure:Remuneration of Councillors:Executive Mayor:Social Contributions:Medial Aid Benefits",2100,"Remuneration of councillors",210003,"Medical Aid Contributions"," _ "," _ ",1100,"Executive and council",1110,"Mayor and Council","_"," _"," _","O","IE"," _ "," _ "," _ "," _ "," _ "," _ ","_","_"," _ "," _ "," _ "," _ "," _ "," _ "," _ "," _ ",null," _ "," _ "," _ "," _ ",null,null,null," _ "," _ "," _ "," _ "," _ "," _ "," _ "," _ "," _ "," _ "," _ ",null," _ "," _ "," _ "," _ "," _ ",null," _ "," _ "," _ "," _ ",null,1,11,"Mayor and Council","Executive and Council",null,null,0,0,0,0,0,0,0,0,0,"_","_","_","_"]
["O0001/IE00126/F0041/X045/R0374/001/43","O0001/IE00126/F0041/X045/R0374/001/43",262,250,"Expenditure:Employee Related Cost:Municipal Staff:Salaries, Wages and Allowances:Allowances:Travel or Motor Vehicle",2000,"Employee related costs","2000-006","Motor Vehicle Allowance",2006,"Motor Vehicle Allowance",1100,"Executive and council",1120,"Municipal Manager, Town Secretary and Chief Executive","_"," _"," _","O","IE"," _ "," _ "," _ "," _ "," _ "," _ ","_","_"," _ "," _ "," _ "," _ "," _ "," _ "," _ "," _ ",null," _ "," _ "," _ "," _ ",null,null,null," _ "," _ "," _ "," _ "," _ "," _ "," _ "," _ "," _ "," _ "," _ ",null," _ "," _ "," _ "," _ "," _ ",null," _ "," _ "," _ "," _ ","MS",1,12,"Municipal Manager, Town Secretary and Chief Executive","Executive and Council",null,null,468304,411050,0,468304,468304,468304,468304,468304,429279,"_","_","_","_"]
["O0001/IE01533/F0041/X045/R0374/001/43","O0001/IE01533/F0041/X045/R0374/001/43",263,251,"Expenditure:Employee Related Cost:Municipal Staff:Salaries, Wages and Allowances:Allowances:Service Related Benefits:Long Service Award",2000,"Employee related costs","2000-011","Long service awards",2011,"Long service awards",1100,"Executive and council",1120,"Municipal Manager, Town Secretary and Chief Executive","_"," _"," _","O","IE"," _ "," _ "," _ "," _ "," _ "," _ ","_","_"," _ "," _ "," _ "," _ "," _ "," _ "," _ "," _ ",null," _ "," _ "," _ "," _ ",null,null,null," _ "," _ "," _ "," _ "," _ "," _ "," _ "," _ "," _ "," _ "," _ ",null," _ "," _ "," _ "," _ "," _ ",null," _ "," _ "," _ "," _ ","MS",1,12,"Municipal Manager, Town Secretary and Chief Executive","Executive and Council",null,null,32215,249914,0,0,26622,0,0,0,45679,"_","_","_","_"]
["O0001/IE01525/F0041/X045/R0374/001/43","O0001/IE01525/F0041/X045/R0374/001/43",264,252,"Expenditure:Employee Related Cost:Municipal Staff:Salaries, Wages and Allowances:Allowances:Service Related Benefits:Acting and Post Related Allowances",2000,"Employee related costs","2000-009","Other benefits and allowances",2001,"Basic Salaries and Wages",1100,"Executive and council",1120,"Municipal Manager, Town Secretary and Chief Executive","_"," _"," _","O","IE"," _ "," _ "," _ "," _ "," _ "," _ ","_","_"," _ "," _ "," _ "," _ "," _ "," _ "," _ "," _ ",null," _ "," _ "," _ "," _ ",null,null,null," _ "," _ "," _ "," _ "," _ "," _ "," _ "," _ "," _ "," _ "," _ ",null," _ "," _ "," _ "," _ "," _ ",null," _ "," _ "," _ "," _ ","MS",1,12,"Municipal Manager, Town Secretary and Chief Executive","Executive and Council",null,null,12953,6017,0,68818,36807,10000,68818,68818,10141,"_","_","_","_"]
["O0001/IE00125/F0041/X045/R0374/001/43","O0001/IE00125/F0041/X045/R0374/001/43",265,253,"Expenditure:Employee Related Cost:Municipal Staff:Salaries, Wages and Allowances:Allowances:Non-pensionable",2000,"Employee related costs","2000-009","Other benefits and allowances",2009,"Other benefits and allowances",1100,"Executive and council",1120,"Municipal Manager, Town Secretary and Chief Executive","_"," _"," _","O","IE"," _ "," _ "," _ "," _ "," _ "," _ ","_","_"," _ "," _ "," _ "," _ "," _ "," _ "," _ "," _ ",null," _ "," _ "," _ "," _ ",null,null,null," _ "," _ "," _ "," _ "," _ "," _ "," _ "," _ "," _ "," _ "," _ ",null," _ "," _ "," _ "," _ "," _ ",null," _ "," _ "," _ "," _ ","MS",1,12,"Municipal Manager, Town Secretary and Chief Executive","Executive and Council",null,null,0,0,0,0,0,0,0,0,0,"_","_","_","_"]
["O0001/IE03971/F0041/X045/R0374/001/43","O0001/IE03971/F0041/X045/R0374/001/43",266,254,"Expenditure:Employee Related Cost:Municipal Staff:Salaries, Wages and Allowances:Allowances:Service Related Benefits:Overtime:Structured",2000,"Employee related costs","2000-004","Overtime",2009,"Other benefits and allowances",1100,"Executive and council",1120,"Municipal Manager, Town Secretary and Chief Executive","_"," _"," _","O","IE"," _ "," _ "," _ "," _ "," _ "," _ ","_","_"," _ "," _ "," _ "," _ "," _ "," _ "," _ "," _ ",null," _ "," _ "," _ "," _ ",null,null,null," _ "," _ "," _ "," _ "," _ "," _ "," _ "," _ "," _ "," _ "," _ ",null," _ "," _ "," _ "," _ "," _ ",null," _ "," _ "," _ "," _ ","MS",1,12,"Municipal Manager, Town Secretary and Chief Executive","Executive and Council",null,null,0,0,0,0,0,0,0,0,0,"_","_","_","_"]
["O0001/IE01535/F0041/X045/R0374/001/43","O0001/IE01535/F0041/X045/R0374/001/43",267,255,"Expenditure:Employee Related Cost:Municipal Staff:Salaries, Wages and Allowances:Allowances:Service Related Benefits:Standby Allowance",2000,"Employee related costs","2000-009","Other benefits and allowances",2009,"Other benefits and allowances",1100,"Executive and council",1120,"Municipal Manager, Town Secretary and Chief Executive","_"," _"," _","O","IE"," _ "," _ "," _ "," _ "," _ "," _ ","_","_"," _ "," _ "," _ "," _ "," _ "," _ "," _ "," _ ",null," _ "," _ "," _ "," _ ",null,null,null," _ "," _ "," _ "," _ "," _ "," _ "," _ "," _ "," _ "," _ "," _ ",null," _ "," _ "," _ "," _ "," _ ",null," _ "," _ "," _ "," _ ","MS",1,12,"Municipal Manager, Town Secretary and Chief Executive","Executive and Council",null,null,0,0,0,0,0,0,0,0,0,"_","_","_","_"]
["O0001/IE03970/F0041/X045/R0374/001/43","O0001/IE03970/F0041/X045/R0374/001/43",268,256,"Expenditure:Employee Related Cost:Municipal Staff:Salaries, Wages and Allowances:Allowances:Service Related Benefits:Overtime:Shift Additional Remuneration",2000,"Employee related costs","2000-004","Overtime",2009,"Other benefits and allowances",1100,"Executive and council",1120,"Municipal Manager, Town Secretary and Chief Executive","_"," _"," _","O","IE"," _ "," _ "," _ "," _ "," _ "," _ ","_","_"," _ "," _ "," _ "," _ "," _ "," _ "," _ "," _ ",null," _ "," _ "," _ "," _ ",null,null,null," _ "," _ "," _ "," _ "," _ "," _ "," _ "," _ "," _ "," _ "," _ ",null," _ "," _ "," _ "," _ "," _ ",null," _ "," _ "," _ "," _ ","MS",1,12,"Municipal Manager, Town Secretary and Chief Executive","Executive and Council",null,null,0,0,0,0,0,0,0,0,0,"_","_","_","_"]
["O0001/IE01530/F0041/X045/R0374/001/43","O0001/IE01530/F0041/X045/R0374/001/43",269,257,"Expenditure:Employee Related Cost:Municipal Staff:Salaries, Wages and Allowances:Allowances:Service Related Benefits:Leave Pay",2000,"Employee related costs","2000-010","Payments in lieu of leave",2010,"Payments in lieu of leave",1100,"Executive and council",1120,"Municipal Manager, Town Secretary and Chief Executive","_"," _"," _","O","IE"," _ "," _ "," _ "," _ "," _ "," _ ","_","_"," _ "," _ "," _ "," _ "," _ "," _ "," _ "," _ ",null," _ "," _ "," _ "," _ ",null,null,null," _ "," _ "," _ "," _ "," _ "," _ "," _ "," _ "," _ "," _ "," _ ",null," _ "," _ "," _ "," _ "," _ ",null," _ "," _ "," _ "," _ ","MS",1,12,"Municipal Manager, Town Secretary and Chief Executive","Executive and Council",null,null,0,560398,0,0,0,0,0,0,0,"_","_","_","_"]
["O0001/IE00570/F0041/X045/R0374/001/43","O0001/IE00570/F0041/X045/R0374/001/43",270,258,"Expenditure:Operational Cost:Full Time Union Representative",2900,"Other expenditure","_","_",2904,"Other Expenditure",1100,"Executive and council",1120,"Municipal Manager, Town Secretary and Chief Executive","_"," _"," _","O","IE"," _ "," _ "," _ "," _ "," _ "," _ ","_","_"," _ "," _ "," _ "," _ "," _ "," _ "," _ "," _ ",null," _ "," _ "," _ "," _ ",null,null,null," _ "," _ "," _ "," _ "," _ "," _ "," _ "," _ "," _ "," _ "," _ ",null," _ "," _ "," _ "," _ "," _ ",null," _ "," _ "," _ "," _ ",null,1,12,"Municipal Manager, Town Secretary and Chief Executive","Executive and Council",null,null,0,-150,0,0,0,0,0,0,0,"_","_","_","_"]
["O0001/IE01560/F0041/X045/R0374/001/43","O0001/IE01560/F0041/X045/R0374/001/43",271,259,"Expenditure:Employee Related Cost:Senior Management:Municipal Manager (MM):Salaries and Allowances:Allowance:Housing Benefits",2000,"Employee related costs","2000-008","Housing Allowances",2008,"Housing Allowances",1100,"Executive and council",1120,"Municipal Manager, Town Secretary and Chief Executive","_"," _"," _","O","IE"," _ "," _ "," _ "," _ "," _ "," _ ","_","_"," _ "," _ "," _ "," _ "," _ "," _ "," _ "," _ ",null," _ "," _ "," _ "," _ ",null,null,null," _ "," _ "," _ "," _ "," _ "," _ "," _ "," _ "," _ "," _ "," _ ",null," _ "," _ "," _ "," _ "," _ ",null," _ "," _ "," _ "," _ ","SM",1,12,"Municipal Manager, Town Secretary and Chief Executive","Executive and Council",null,null,0,6000,0,96000,96000,96000,96000,96000,8000,"_","_","_","_"]
["O0001/IE01558/F0041/X045/R0374/001/43","O0001/IE01558/F0041/X045/R0374/001/43",272,260,"Expenditure:Employee Related Cost:Senior Management:Municipal Manager (MM):Salaries and Allowances:Allowance:Cellular and Telephone",2000,"Employee related costs","2000-007","Cellphone Allowance",2007,"Cellphone Allowance",1100,"Executive and council",1120,"Municipal Manager, Town Secretary and Chief Executive","_"," _"," _","O","IE"," _ "," _ "," _ "," _ "," _ "," _ ","_","_"," _ "," _ "," _ "," _ "," _ "," _ "," _ "," _ ",null," _ "," _ "," _ "," _ ",null,null,null," _ "," _ "," _ "," _ "," _ "," _ "," _ "," _ "," _ "," _ "," _ ",null," _ "," _ "," _ "," _ "," _ ",null," _ "," _ "," _ "," _ ","SM",1,12,"Municipal Manager, Town Secretary and Chief Executive","Executive and Council",null,null,0,0,0,0,0,0,0,0,0,"_","_","_","_"]
["O0001/IE01577/F0041/X045/R0374/001/43","O0001/IE01577/F0041/X045/R0374/001/43",273,261,"Expenditure:Employee Related Cost:Senior Management:Municipal Manager (MM):Salaries and Allowances:Service Related Benefits:Overtime",2000,"Employee related costs","2000-004","Overtime",2004,"Overtime",1100,"Executive and council",1120,"Municipal Manager, Town Secretary and Chief Executive","_"," _"," _","O","IE"," _ "," _ "," _ "," _ "," _ "," _ ","_","_"," _ "," _ "," _ "," _ "," _ "," _ "," _ "," _ ",null," _ "," _ "," _ "," _ ",null,null,null," _ "," _ "," _ "," _ "," _ "," _ "," _ "," _ "," _ "," _ "," _ ",null," _ "," _ "," _ "," _ "," _ ",null," _ "," _ "," _ "," _ ","SM",1,12,"Municipal Manager, Town Secretary and Chief Executive","Executive and Council",null,null,0,0,0,0,0,0,0,0,0,"_","_","_","_"]
["O0001/IE00128/F0041/X045/R0374/001/43","O0001/IE00128/F0041/X045/R0374/001/43",274,262,"Expenditure:Employee Related Cost:Senior Management:Municipal Manager (MM):Salaries and Allowances:Basic Salary",2000,"Employee related costs","2000-001","Basic Salaries and Wages",2001,"Basic Salaries and Wages",1100,"Executive and council",1120,"Municipal Manager, Town Secretary and Chief Executive","_"," _"," _","O","IE"," _ "," _ "," _ "," _ "," _ "," _ ","_","_"," _ "," _ "," _ "," _ "," _ "," _ "," _ "," _ ",null," _ "," _ "," _ "," _ ",null,null,null," _ "," _ "," _ "," _ "," _ "," _ "," _ "," _ "," _ "," _ "," _ ",null," _ "," _ "," _ "," _ "," _ ",null," _ "," _ "," _ "," _ ","SM",1,12,"Municipal Manager, Town Secretary and Chief Executive","Executive and Council",null,null,1378110,1178314,0,1273694,1273694,1271075,1379835,1379835,1266926,"_","_","_","_"]
["O0001/IE01575/F0041/X045/R0374/001/43","O0001/IE01575/F0041/X045/R0374/001/43",275,263,"Expenditure:Employee Related Cost:Senior Management:Municipal Manager (MM):Salaries and Allowances:Service Related Benefits:Long Service Award",2000,"Employee related costs","2000-011","Long service awards",2011,"Long service awards",1100,"Executive and council",1120,"Municipal Manager, Town Secretary and Chief Executive","_"," _"," _","O","IE"," _ "," _ "," _ "," _ "," _ "," _ ","_","_"," _ "," _ "," _ "," _ "," _ "," _ "," _ "," _ ",null," _ "," _ "," _ "," _ ",null,null,null," _ "," _ "," _ "," _ "," _ "," _ "," _ "," _ "," _ "," _ "," _ ",null," _ "," _ "," _ "," _ "," _ ",null," _ "," _ "," _ "," _ ","SM",1,12,"Municipal Manager, Town Secretary and Chief Executive","Executive and Council",null,null,0,0,0,0,0,0,0,0,0,"_","_","_","_"]
["O0001/IE01564/F0041/X045/R0374/001/43","O0001/IE01564/F0041/X045/R0374/001/43",276,264,"Expenditure:Employee Related Cost:Senior Management:Municipal Manager (MM):Salaries and Allowances:Allowance:Travel or Motor Vehicle",2000,"Employee related costs","2000-006","Motor Vehicle Allowance",2006,"Motor Vehicle Allowance",1100,"Executive and council",1120,"Municipal Manager, Town Secretary and Chief Executive","_"," _"," _","O","IE"," _ "," _ "," _ "," _ "," _ "," _ ","_","_"," _ "," _ "," _ "," _ "," _ "," _ "," _ "," _ ",null," _ "," _ "," _ "," _ ",null,null,null," _ "," _ "," _ "," _ "," _ "," _ "," _ "," _ "," _ "," _ "," _ ",null," _ "," _ "," _ "," _ "," _ ",null," _ "," _ "," _ "," _ ","SM",1,12,"Municipal Manager, Town Secretary and Chief Executive","Executive and Council",null,null,180000,184510,0,180000,180000,180000,180000,180000,165000,"_","_","_","_"]
["O0001/IE00132/F0041/X045/R0374/001/43","O0001/IE00132/F0041/X045/R0374/001/43",277,265,"Expenditure:Employee Related Cost:Senior Management:Municipal Manager (MM):Social Contributions:Bargaining Council",2000,"Employee related costs","2000-009","Other benefits and allowances",2009,"Other benefits and allowances",1100,"Executive and council",1120,"Municipal Manager, Town Secretary and Chief Executive","_"," _"," _","O","IE"," _ "," _ "," _ "," _ "," _ "," _ ","_","_"," _ "," _ "," _ "," _ "," _ "," _ "," _ "," _ ",null," _ "," _ "," _ "," _ ",null,null,null," _ "," _ "," _ "," _ "," _ "," _ "," _ "," _ "," _ "," _ "," _ ",null," _ "," _ "," _ "," _ "," _ ",null," _ "," _ "," _ "," _ ","SM",1,12,"Municipal Manager, Town Secretary and Chief Executive","Executive and Council",null,null,112,0,0,0,0,0,0,0,109,"_","_","_","_"]
["O0001/IE00140/F0041/X045/R0374/001/43","O0001/IE00140/F0041/X045/R0374/001/43",278,266,"Expenditure:Employee Related Cost:Senior Management:Municipal Manager (MM):Social Contributions:Unemployment Insurance",2000,"Employee related costs","2000-002","Pension and UIF Contributions",2002,"Pension and UIF Contributions",1100,"Executive and council",1120,"Municipal Manager, Town Secretary and Chief Executive","_"," _"," _","O","IE"," _ "," _ "," _ "," _ "," _ "," _ ","_","_"," _ "," _ "," _ "," _ "," _ "," _ "," _ "," _ ",null," _ "," _ "," _ "," _ ",null,null,null," _ "," _ "," _ "," _ "," _ "," _ "," _ "," _ "," _ "," _ "," _ ",null," _ "," _ "," _ "," _ "," _ ",null," _ "," _ "," _ "," _ ","SM",1,12,"Municipal Manager, Town Secretary and Chief Executive","Executive and Council",null,null,1785,4838,0,0,0,0,0,0,1636,"_","_","_","_"]
["O0001/IE01573/F0041/X045/R0374/001/43","O0001/IE01573/F0041/X045/R0374/001/43",279,267,"Expenditure:Employee Related Cost:Senior Management:Municipal Manager (MM):Salaries and Allowances:Service Related Benefits:Leave Pay",2000,"Employee related costs","2000-010","Payments in lieu of leave",2010,"Payments in lieu of leave",1100,"Executive and council",1120,"Municipal Manager, Town Secretary and Chief Executive","_"," _"," _","O","IE"," _ "," _ "," _ "," _ "," _ "," _ ","_","_"," _ "," _ "," _ "," _ "," _ "," _ "," _ "," _ ",null," _ "," _ "," _ "," _ ",null,null,null," _ "," _ "," _ "," _ "," _ "," _ "," _ "," _ "," _ "," _ "," _ ",null," _ "," _ "," _ "," _ "," _ ",null," _ "," _ "," _ "," _ ","SM",1,12,"Municipal Manager, Town Secretary and Chief Executive","Executive and Council",null,null,0,0,0,0,0,0,0,0,0,"_","_","_","_"]
["O0001/IE01567/F0041/X045/R0374/001/43","O0001/IE01567/F0041/X045/R0374/001/43",280,268,"Expenditure:Employee Related Cost:Senior Management:Municipal Manager (MM):Salaries and Allowances:Service Related Benefits:Acting and Post Related Allowances",2000,"Employee related costs","2000-009","Other benefits and allowances",2001,"Basic Salaries and Wages",1100,"Executive and council",1120,"Municipal Manager, Town Secretary and Chief Executive","_"," _"," _","O","IE"," _ "," _ "," _ "," _ "," _ "," _ ","_","_"," _ "," _ "," _ "," _ "," _ "," _ "," _ "," _ ",null," _ "," _ "," _ "," _ ",null,null,null," _ "," _ "," _ "," _ "," _ "," _ "," _ "," _ "," _ "," _ "," _ ",null," _ "," _ "," _ "," _ "," _ ",null," _ "," _ "," _ "," _ ","SM",1,12,"Municipal Manager, Town Secretary and Chief Executive","Executive and Council",null,null,0,0,0,0,0,0,0,0,0,"_","_","_","_"]
["O0001/IE00036/F0041/X045/R0374/001/43","O0001/IE00036/F0041/X045/R0374/001/43",281,269,"Expenditure:Employee Related Cost:Municipal Staff:Salaries, Wages and Allowances:Basic Salary and Wages",2000,"Employee related costs","2000-001","Basic Salaries and Wages",2001,"Basic Salaries and Wages",1100,"Executive and council",1120,"Municipal Manager, Town Secretary and Chief Executive","_"," _"," _","O","IE"," _ "," _ "," _ "," _ "," _ "," _ ","_","_"," _ "," _ "," _ "," _ "," _ "," _ "," _ "," _ ",null," _ "," _ "," _ "," _ ",null,null,null," _ "," _ "," _ "," _ "," _ "," _ "," _ "," _ "," _ "," _ "," _ ",null," _ "," _ "," _ "," _ "," _ ",null," _ "," _ "," _ "," _ ","MS",1,12,"Municipal Manager, Town Secretary and Chief Executive","Executive and Council",null,null,3228557,2373987,0,3430342,3392777,3619011,3897522,4336880,3144480,"_","_","_","_"]
["O0001/IE00044/F0041/X045/R0374/001/43","O0001/IE00044/F0041/X045/R0374/001/43",282,270,"Expenditure:Employee Related Cost:Municipal Staff:Social Contributions:Pension",2000,"Employee related costs","2000-002","Pension and UIF Contributions",2002,"Pension and UIF Contributions",1100,"Executive and council",1120,"Municipal Manager, Town Secretary and Chief Executive","_"," _"," _","O","IE"," _ "," _ "," _ "," _ "," _ "," _ ","_","_"," _ "," _ "," _ "," _ "," _ "," _ "," _ "," _ ",null," _ "," _ "," _ "," _ ",null,null,null," _ "," _ "," _ "," _ "," _ "," _ "," _ "," _ "," _ "," _ "," _ ",null," _ "," _ "," _ "," _ "," _ ",null," _ "," _ "," _ "," _ ","MS",1,12,"Municipal Manager, Town Secretary and Chief Executive","Executive and Council",null,null,602673,563776,0,617462,617462,651864,617462,617462,363132,"_","_","_","_"]
["O0001/IE00121/F0041/X045/R0374/001/43","O0001/IE00121/F0041/X045/R0374/001/43",283,271,"Expenditure:Employee Related Cost:Municipal Staff:Salaries, Wages and Allowances:Allowances:Cellular and Telephone",2000,"Employee related costs","2000-007","Cellphone Allowance",2007,"Cellphone Allowance",1100,"Executive and council",1120,"Municipal Manager, Town Secretary and Chief Executive","_"," _"," _","O","IE"," _ "," _ "," _ "," _ "," _ "," _ ","_","_"," _ "," _ "," _ "," _ "," _ "," _ "," _ "," _ ",null," _ "," _ "," _ "," _ ",null,null,null," _ "," _ "," _ "," _ "," _ "," _ "," _ "," _ "," _ "," _ "," _ ",null," _ "," _ "," _ "," _ "," _ ",null," _ "," _ "," _ "," _ ","MS",1,12,"Municipal Manager, Town Secretary and Chief Executive","Executive and Council",null,null,31632,15175,0,31632,31632,31632,31632,31632,41775,"_","_","_","_"]
["O0001/IE01521/F0041/X045/R0374/001/43","O0001/IE01521/F0041/X045/R0374/001/43",284,272,"Expenditure:Employee Related Cost:Municipal Staff:Salaries, Wages and Allowances:Allowances:Housing Benefits and Incidental:Housing Benefits",2000,"Employee related costs","2000-008","Housing Allowances",2008,"Housing Allowances",1100,"Executive and council",1120,"Municipal Manager, Town Secretary and Chief Executive","_"," _"," _","O","IE"," _ "," _ "," _ "," _ "," _ "," _ ","_","_"," _ "," _ "," _ "," _ "," _ "," _ "," _ "," _ ",null," _ "," _ "," _ "," _ ",null,null,null," _ "," _ "," _ "," _ "," _ "," _ "," _ "," _ "," _ "," _ "," _ ",null," _ "," _ "," _ "," _ "," _ ",null," _ "," _ "," _ "," _ ","MS",1,12,"Municipal Manager, Town Secretary and Chief Executive","Executive and Council",null,null,128586,91428,0,33948,33948,30348,33948,33948,110219,"_","_","_","_"]
["O0001/IE00043/F0041/X045/R0374/001/43","O0001/IE00043/F0041/X045/R0374/001/43",285,273,"Expenditure:Employee Related Cost:Municipal Staff:Social Contributions:Medical",2000,"Employee related costs","2000-003","Medical Aid Contributions",2003,"Medical Aid Contributions",1100,"Executive and council",1120,"Municipal Manager, Town Secretary and Chief Executive","_"," _"," _","O","IE"," _ "," _ "," _ "," _ "," _ "," _ ","_","_"," _ "," _ "," _ "," _ "," _ "," _ "," _ "," _ ",null," _ "," _ "," _ "," _ ",null,null,null," _ "," _ "," _ "," _ "," _ "," _ "," _ "," _ "," _ "," _ "," _ ",null," _ "," _ "," _ "," _ "," _ ",null," _ "," _ "," _ "," _ ","MS",1,12,"Municipal Manager, Town Secretary and Chief Executive","Executive and Council",null,null,280985,287636,0,266458,266458,306167,266458,266458,274626,"_","_","_","_"]
["O0001/IE00040/F0041/X045/R0374/001/43","O0001/IE00040/F0041/X045/R0374/001/43",286,274,"Expenditure:Employee Related Cost:Municipal Staff:Social Contributions:Bargaining Council",2000,"Employee related costs","2000-009","Other benefits and allowances",2009,"Other benefits and allowances",1100,"Executive and council",1120,"Municipal Manager, Town Secretary and Chief Executive","_"," _"," _","O","IE"," _ "," _ "," _ "," _ "," _ "," _ ","_","_"," _ "," _ "," _ "," _ "," _ "," _ "," _ "," _ ",null," _ "," _ "," _ "," _ ",null,null,null," _ "," _ "," _ "," _ "," _ "," _ "," _ "," _ "," _ "," _ "," _ ",null," _ "," _ "," _ "," _ "," _ ",null," _ "," _ "," _ "," _ ","MS",1,12,"Municipal Manager, Town Secretary and Chief Executive","Executive and Council",null,null,895,0,0,895,895,950,895,895,871,"_","_","_","_"]
["O0001/IE00595/F0041/X045/R0374/001/43","O0001/IE00595/F0041/X045/R0374/001/43",287,275,"Expenditure:Operational Cost:Skills Development Fund Levy",2900,"Other expenditure","_","_",2904,"Other Expenditure",1100,"Executive and council",1120,"Municipal Manager, Town Secretary and Chief Executive","_"," _"," _","O","IE"," _ "," _ "," _ "," _ "," _ "," _ ","_","_"," _ "," _ "," _ "," _ "," _ "," _ "," _ "," _ ",null," _ "," _ "," _ "," _ ",null,null,null," _ "," _ "," _ "," _ "," _ "," _ "," _ "," _ "," _ "," _ "," _ ",null," _ "," _ "," _ "," _ "," _ ",null," _ "," _ "," _ "," _ ",null,1,12,"Municipal Manager, Town Secretary and Chief Executive","Executive and Council",null,null,56045,20950,0,37565,37565,0,0,0,54062,"_","_","_","_"]
["O0001/IE00045/F0041/X045/R0374/001/43","O0001/IE00045/F0041/X045/R0374/001/43",288,276,"Expenditure:Employee Related Cost:Municipal Staff:Social Contributions:Unemployment Insurance",2000,"Employee related costs","2000-002","Pension and UIF Contributions",2002,"Pension and UIF Contributions",1100,"Executive and council",1120,"Municipal Manager, Town Secretary and Chief Executive","_"," _"," _","O","IE"," _ "," _ "," _ "," _ "," _ "," _ ","_","_"," _ "," _ "," _ "," _ "," _ "," _ "," _ "," _ ",null," _ "," _ "," _ "," _ ",null,null,null," _ "," _ "," _ "," _ "," _ "," _ "," _ "," _ "," _ "," _ "," _ ",null," _ "," _ "," _ "," _ "," _ ",null," _ "," _ "," _ "," _ ","MS",1,12,"Municipal Manager, Town Secretary and Chief Executive","Executive and Council",null,null,14277,10559,0,14277,14277,14277,14277,14277,13087,"_","_","_","_"]
["O0001/IE00132/F0041/X045/R0374/001/0043","O0001/IE00132/F0041/X045/R0374/001/0043",289,277,"Expenditure:Employee Related Cost:Senior Management:Municipal Manager (MM):Social Contributions:Bargaining Council",2000,"Employee related costs","2000-009","Other benefits and allowances",2009,"Other benefits and allowances",1100,"Executive and council",1120,"Municipal Manager, Town Secretary and Chief Executive","_"," _"," _","O","IE"," _ "," _ "," _ "," _ "," _ "," _ ","_","_"," _ "," _ "," _ "," _ "," _ "," _ "," _ "," _ ",null," _ "," _ "," _ "," _ ",null,null,null," _ "," _ "," _ "," _ "," _ "," _ "," _ "," _ "," _ "," _ "," _ ",null," _ "," _ "," _ "," _ "," _ ",null," _ "," _ "," _ "," _ ","SM",1,12,"Municipal Manager, Town Secretary and Chief Executive","Executive and Council",null,null,0,0,0,106141,106141,0,0,0,0,"_","_","_","_"]
["O0001/IE07625/F0001/X045/R0374/001/0043","O0001/IE07625/F0001/X045/R0374/001/0043",290,278,"Expenditure:Depreciation and Amortisation:Depreciation:Other Assets:Operational Buildings:Municipal Offices",2300,"Depreciation & asset impairment","2300-001","Depreciation of Property, Plant & Equipment",2301,"Depreciation of Property, Plant and Equipment",1100,"Executive and council",1120,"Municipal Manager, Town Secretary and Chief Executive","_"," _"," _","O","IE"," _ "," _ "," _ "," _ "," _ "," _ ","_","_"," _ "," _ "," _ "," _ "," _ "," _ "," _ "," _ ",null," _ "," _ "," _ "," _ ",null,null,null," _ "," _ "," _ "," _ "," _ "," _ "," _ "," _ "," _ "," _ "," _ ",null,1200,"Municipal Offices"," _ ",1200,"Municipal Offices","DP"," _ "," _ "," _ "," _ ",null,1,12,"Municipal Manager, Town Secretary and Chief Executive","Executive and Council",null,null,0,0,0,0,0,0,0,0,0,"_","_","_","_"]
["C0306-1/IA00092/F0002/X049/R0374/001/46","C0306-1/IA00092/F0002/X049/R0374/001/46",291,279,"Assets:Non-current Assets:Property, Plant and Equipment:Cost Model:Other Assets:Cost:Acquisitions"," _"," _"," _ "," _ "," _ "," _ ",1200,"Finance and administration",1204,"Finance","CE",2080,"Internally generated funds","C","IA",240," Property, plant and equipment",240,"Property, plant and equipment"," _ "," _ ","_","_"," _ "," _ "," _ "," _ ",1180,"Other Assets",1180,"Other Assets",null,241,"PPE at cost/valuation (excl. finance leases)",241,"PPE at cost/valuation (excl. finance leases)",null,null,null," _ "," _ "," _ "," _ ",1200,"Municipal Offices"," _ "," _ ",1200," _ "," _ ",null," _ "," _ ","Municipal Offices"," _ "," _ ",null," _ "," _ "," _ "," _ ",null,2,22,"Finance","Finance and Administration",null,null,26990,0,0,0,0,0,0,0,26990,"_","_","_","_"]
["D0001/IL43223/F0001/X049/R0374/001/46","D0001/IL43223/F0001/X049/R0374/001/46",292,280,"Liabilities:Current Liabilities:Trade and Other Payable Exchange Transactions:Payables and Accruals : General:Opening Balance"," _"," _"," _ "," _ "," _ "," _ ",1200,"Finance and administration",1204,"Finance","_"," _"," _","D","IL",360," Trade and other payables",360,"Trade and other payables"," _ "," _ ","_","_"," _ "," _ "," _ "," _ "," _ "," _ "," _ "," _ ",null,361,"Trade Payables",361,"Trade Payables",null,null,null," _ "," _ "," _ "," _ "," _ "," _ "," _ "," _ "," _ "," _ "," _ ",null," _ "," _ "," _ "," _ "," _ ",null," _ "," _ "," _ "," _ ",null,2,22,"Finance","Finance and Administration",null,null,8387764,4194935,0,0,-17273016,-15253696,-15894351,-16561914,6329837,"_","_","_","_"]
["O0001/IE00567/F0041/X049/R0374/001/46","O0001/IE00567/F0041/X049/R0374/001/46",293,292,"Expenditure:Operational Cost:External Audit Fees",2900,"Other expenditure","_","_",2903,"Audit fees",1200,"Finance and administration",1204,"Finance","_"," _"," _","O","IE"," _ "," _ "," _ "," _ "," _ "," _ ","_","_"," _ "," _ "," _ "," _ "," _ "," _ "," _ "," _ ",null," _ "," _ "," _ "," _ ",null,null,null," _ "," _ "," _ "," _ "," _ "," _ "," _ "," _ "," _ "," _ "," _ ",null," _ "," _ "," _ "," _ "," _ ",null," _ "," _ "," _ "," _ ",null,2,22,"Finance","Finance and Administration",null,null,720467,0,0,0,0,0,0,0,451747,"_","_","_","_"]
["O0001/IE00830/F1177/X049/R0374/001/46","O0001/IE00830/F1177/X049/R0374/001/46",294,293,"Expenditure:Contracted Services:Consultants and Professional Services:Business and Advisory:Accounting and Auditing",2700,"Contracted services","2700-002","Consultants and Professional Services",2702,"Consultants and Professional Services",1200,"Finance and administration",1204,"Finance","_"," _"," _","O","IE"," _ "," _ "," _ "," _ "," _ "," _ ","_","_"," _ "," _ "," _ "," _ "," _ "," _ "," _ "," _ ",null," _ "," _ "," _ "," _ ",null,null,null," _ "," _ "," _ "," _ "," _ "," _ "," _ "," _ "," _ "," _ "," _ ",null," _ "," _ "," _ "," _ "," _ ",null," _ "," _ "," _ "," _ ",null,2,22,"Finance","Finance and Administration",null,null,2187661,2090298,0,990000,700000,780000,1000000,1000000,1027682,"_","_","_","_"]
["O0001/IZ00059/F0041/X049/R0374/001/46","O0001/IZ00059/F0041/X049/R0374/001/46",295,294,"Gains and Losses:Impairment Loss:Trade and Other Receivables from Exchange Transactions:Non Specific Accounts",2200,"Debt impairment",2200,"Debt impairment"," _ "," _ ",1200,"Finance and administration",1204,"Finance","_"," _"," _","O","IE"," _ "," _ "," _ "," _ "," _ "," _ ","_","_"," _ "," _ "," _ "," _ "," _ "," _ "," _ "," _ ",null," _ "," _ "," _ "," _ ",null,null,null," _ "," _ "," _ "," _ "," _ "," _ "," _ "," _ "," _ "," _ "," _ ",null," _ "," _ "," _ "," _ "," _ ",null," _ "," _ "," _ "," _ ",null,2,22,"Finance","Finance and Administration",null,null,0,177495,0,0,0,0,0,0,0,"_","_","_","_"]
["O0001/IE00516/F0041/X049/R0374/001/46","O0001/IE00516/F0041/X049/R0374/001/46",296,295,"Expenditure:Bad Debts Written Off",2200,"Debt impairment",2200,"Debt impairment"," _ "," _ ",1200,"Finance and administration",1204,"Finance","_"," _"," _","O","IE"," _ "," _ "," _ "," _ "," _ "," _ ","_","_"," _ "," _ "," _ "," _ "," _ "," _ "," _ "," _ ",null," _ "," _ "," _ "," _ ",null,null,null," _ "," _ "," _ "," _ "," _ "," _ "," _ "," _ "," _ "," _ "," _ ",null," _ "," _ "," _ "," _ "," _ ",null," _ "," _ "," _ "," _ ",null,2,22,"Finance","Finance and Administration",null,null,282163,0,0,0,491000,491000,0,0,0,"_","_","_","_"]
["O0001/IE00008/F0041/X049/R0374/001/46","O0001/IE00008/F0041/X049/R0374/001/46",297,296,"Expenditure:Contracted Services:Consultants and Professional Services:Legal Cost:Legal Advice and Litigation",2700,"Contracted services","2700-002","Consultants and Professional Services",2702,"Consultants and Professional Services",1200,"Finance and administration",1204,"Finance","_"," _"," _","O","IE"," _ "," _ "," _ "," _ "," _ "," _ ","_","_"," _ "," _ "," _ "," _ "," _ "," _ "," _ "," _ ",null," _ "," _ "," _ "," _ ",null,null,null," _ "," _ "," _ "," _ "," _ "," _ "," _ "," _ "," _ "," _ "," _ ",null," _ "," _ "," _ "," _ "," _ ",null," _ "," _ "," _ "," _ ",null,2,22,"Finance","Finance and Administration",null,null,0,0,0,0,0,0,0,0,0,"_","_","_","_"]
["O0001/IE012465/F0041/X049/R0374/001/46","O0001/IE012465/F0041/X049/R0374/001/46",298,297,"Expenditure:Contracted Services:Outsourced Services:Printing Services",2700,"Contracted services","2700-001","Outsourced Services",2701,"Outsourced Services",1200,"Finance and administration",1204,"Finance","_"," _"," _","O","IE"," _ "," _ "," _ "," _ "," _ "," _ ","_","_"," _ "," _ "," _ "," _ "," _ "," _ "," _ "," _ ",null," _ "," _ "," _ "," _ ",null,null,null," _ "," _ "," _ "," _ "," _ "," _ "," _ "," _ "," _ "," _ "," _ ",null," _ "," _ "," _ "," _ "," _ ",null," _ "," _ "," _ "," _ ",null,2,22,"Finance","Finance and Administration",null,null,0,0,0,0,0,0,0,0,0,"_","_","_","_"]
["O0001/IE00738/F0041/X049/R0374/001/46","O0001/IE00738/F0041/X049/R0374/001/46",299,298,"Expenditure:Inventory Consumed:Consumables:Standard Rated",2600,"Other materials",2600,"Other materials"," _ "," _ ",1200,"Finance and administration",1204,"Finance","_"," _"," _","O","IE"," _ "," _ "," _ "," _ "," _ "," _ ","_","_"," _ "," _ "," _ "," _ "," _ "," _ "," _ "," _ ",null," _ "," _ "," _ "," _ ",null,null,null," _ "," _ "," _ "," _ "," _ "," _ "," _ "," _ "," _ "," _ "," _ ",null," _ "," _ "," _ "," _ "," _ ",null," _ "," _ "," _ "," _ ",null,2,22,"Finance","Finance and Administration",null,null,87576,4577,0,11685,0,0,0,0,4731,"_","_","_","_"]
["O0001/IE00539/F0041/X049/R0374/001/46","O0001/IE00539/F0041/X049/R0374/001/46",300,299,"Expenditure:Operating Leases:Furniture and Office Equipment",2900,"Other expenditure","_","_",2904,"Other Expenditure",1200,"Finance and administration",1204,"Finance","_"," _"," _","O","IE"," _ "," _ "," _ "," _ "," _ "," _ ","_","_"," _ "," _ "," _ "," _ "," _ "," _ "," _ "," _ ",null," _ "," _ "," _ "," _ ",null,null,null," _ "," _ "," _ "," _ "," _ "," _ "," _ "," _ "," _ "," _ "," _ ",null," _ "," _ "," _ "," _ "," _ ",null," _ "," _ "," _ "," _ ",null,2,22,"Finance","Finance and Administration",null,null,0,0,0,0,0,0,0,0,0,"_","_","_","_"]
["O0001/IE00751/F0041/X049/R0374/001/46","O0001/IE00751/F0041/X049/R0374/001/46",301,300,"Expenditure:Operational Cost:Advertising, Publicity and Marketing:Corporate and Municipal Activities",2900,"Other expenditure","_","_",2904,"Other Expenditure",1200,"Finance and administration",1204,"Finance","_"," _"," _","O","IE"," _ "," _ "," _ "," _ "," _ "," _ ","_","_"," _ "," _ "," _ "," _ "," _ "," _ "," _ "," _ ",null," _ "," _ "," _ "," _ ",null,null,null," _ "," _ "," _ "," _ "," _ "," _ "," _ "," _ "," _ "," _ "," _ ",null," _ "," _ "," _ "," _ "," _ ",null," _ "," _ "," _ "," _ ",null,2,22,"Finance","Finance and Administration",null,null,0,0,0,0,0,0,0,0,0,"_","_","_","_"]
["O0001/IE00757/F0041/X049/R0374/001/46","O0001/IE00757/F0041/X049/R0374/001/46",302,301,"Expenditure:Operational Cost:Advertising, Publicity and Marketing:Staff Recruitment",2900,"Other expenditure","_","_",2904,"Other Expenditure",1200,"Finance and administration",1204,"Finance","_"," _"," _","O","IE"," _ "," _ "," _ "," _ "," _ "," _ ","_","_"," _ "," _ "," _ "," _ "," _ "," _ "," _ "," _ ",null," _ "," _ "," _ "," _ ",null,null,null," _ "," _ "," _ "," _ "," _ "," _ "," _ "," _ "," _ "," _ "," _ ",null," _ "," _ "," _ "," _ "," _ ",null," _ "," _ "," _ "," _ ",null,2,22,"Finance","Finance and Administration",null,null,0,0,0,0,0,0,0,0,0,"_","_","_","_"]
["O0001/IE00758/F0041/X049/R0374/001/46","O0001/IE00758/F0041/X049/R0374/001/46",303,302,"Expenditure:Operational Cost:Advertising, Publicity and Marketing:Tenders",2900,"Other expenditure","_","_",2904,"Other Expenditure",1200,"Finance and administration",1204,"Finance","_"," _"," _","O","IE"," _ "," _ "," _ "," _ "," _ "," _ ","_","_"," _ "," _ "," _ "," _ "," _ "," _ "," _ "," _ ",null," _ "," _ "," _ "," _ ",null,null,null," _ "," _ "," _ "," _ "," _ "," _ "," _ "," _ "," _ "," _ "," _ ",null," _ "," _ "," _ "," _ "," _ ",null," _ "," _ "," _ "," _ ",null,2,22,"Finance","Finance and Administration",null,null,0,0,0,0,0,0,0,0,0,"_","_","_","_"]
["O0001/IE00759/F0041/X049/R0374/001/46","O0001/IE00759/F0041/X049/R0374/001/46",304,303,"Expenditure:Operational Cost:Bank Charges, Facility and Card Fees:Bank Accounts",2900,"Other expenditure","_","_",2904,"Other Expenditure",1200,"Finance and administration",1204,"Finance","_"," _"," _","O","IE"," _ "," _ "," _ "," _ "," _ "," _ ","_","_"," _ "," _ "," _ "," _ "," _ "," _ "," _ "," _ ",null," _ "," _ "," _ "," _ ",null,null,null," _ "," _ "," _ "," _ "," _ "," _ "," _ "," _ "," _ "," _ "," _ ",null," _ "," _ "," _ "," _ "," _ ",null," _ "," _ "," _ "," _ ",null,2,22,"Finance","Finance and Administration",null,null,84111,89590,0,0,100000,50000,126000,88200,24592,"_","_","_","_"]
["O0001/IE00550/F0041/X049/R0374/001/46","O0001/IE00550/F0041/X049/R0374/001/46",305,304,"Expenditure:Operational Cost:Assets less than the Capitalisation Threshold",2900,"Other expenditure","_","_",2904,"Other Expenditure",1200,"Finance and administration",1204,"Finance","_"," _"," _","O","IE"," _ "," _ "," _ "," _ "," _ "," _ ","_","_"," _ "," _ "," _ "," _ "," _ "," _ "," _ "," _ ",null," _ "," _ "," _ "," _ ",null,null,null," _ "," _ "," _ "," _ "," _ "," _ "," _ "," _ "," _ "," _ "," _ ",null," _ "," _ "," _ "," _ "," _ ",null," _ "," _ "," _ "," _ ",null,2,22,"Finance","Finance and Administration",null,null,6925,0,0,0,0,0,0,0,0,"_","_","_","_"]
["O0001/IE00760/F0041/X049/R0374/001/46","O0001/IE00760/F0041/X049/R0374/001/46",306,305,"Expenditure:Operational Cost:Bank Charges, Facility and Card Fees:Fleet and Other Credit/Debit Cards",2900,"Other expenditure","_","_",2904,"Other Expenditure",1200,"Finance and administration",1204,"Finance","_"," _"," _","O","IE"," _ "," _ "," _ "," _ "," _ "," _ ","_","_"," _ "," _ "," _ "," _ "," _ "," _ "," _ "," _ ",null," _ "," _ "," _ "," _ ",null,null,null," _ "," _ "," _ "," _ "," _ "," _ "," _ "," _ "," _ "," _ "," _ ",null," _ "," _ "," _ "," _ "," _ ",null," _ "," _ "," _ "," _ ",null,2,22,"Finance","Finance and Administration",null,null,0,0,0,0,0,0,0,0,2366,"_","_","_","_"]
["O0001/IE00552/F0041/X049/R0374/001/46","O0001/IE00552/F0041/X049/R0374/001/46",307,306,"Expenditure:Operational Cost:Bargaining Council",2900,"Other expenditure","_","_",2904,"Other Expenditure",1200,"Finance and administration",1204,"Finance","_"," _"," _","O","IE"," _ "," _ "," _ "," _ "," _ "," _ ","_","_"," _ "," _ "," _ "," _ "," _ "," _ "," _ "," _ ",null," _ "," _ "," _ "," _ ",null,null,null," _ "," _ "," _ "," _ "," _ "," _ "," _ "," _ "," _ "," _ "," _ ",null," _ "," _ "," _ "," _ "," _ ",null," _ "," _ "," _ "," _ ",null,2,22,"Finance","Finance and Administration",null,null,0,8216,0,0,0,559,559,559,0,"_","_","_","_"]
["O0001/IE00761/F0041/X049/R0374/001/46","O0001/IE00761/F0041/X049/R0374/001/46",308,307,"Expenditure:Operational Cost:Bank Charges, Facility and Card Fees:Investments",2900,"Other expenditure","_","_",2904,"Other Expenditure",1200,"Finance and administration",1204,"Finance","_"," _"," _","O","IE"," _ "," _ "," _ "," _ "," _ "," _ ","_","_"," _ "," _ "," _ "," _ "," _ "," _ "," _ "," _ ",null," _ "," _ "," _ "," _ ",null,null,null," _ "," _ "," _ "," _ "," _ "," _ "," _ "," _ "," _ "," _ "," _ ",null," _ "," _ "," _ "," _ "," _ ",null," _ "," _ "," _ "," _ ",null,2,22,"Finance","Finance and Administration",null,null,0,0,0,0,0,0,0,0,0,"_","_","_","_"]
["O0001/IE00769/F0041/X049/R0374/001/46","O0001/IE00769/F0041/X049/R0374/001/46",309,308,"Expenditure:Operational Cost:Communication:Cellular Expenditure",2900,"Other expenditure","_","_",2904,"Other Expenditure",1200,"Finance and administration",1204,"Finance","_"," _"," _","O","IE"," _ "," _ "," _ "," _ "," _ "," _ ","_","_"," _ "," _ "," _ "," _ "," _ "," _ "," _ "," _ ",null," _ "," _ "," _ "," _ ",null,null,null," _ "," _ "," _ "," _ "," _ "," _ "," _ "," _ "," _ "," _ "," _ ",null," _ "," _ "," _ "," _ "," _ ",null," _ "," _ "," _ "," _ ",null,2,22,"Finance","Finance and Administration",null,null,0,4557,0,0,0,0,0,0,0,"_","_","_","_"]
["O0001/IE00770/F0041/X049/R0374/001/46","O0001/IE00770/F0041/X049/R0374/001/46",310,309,"Expenditure:Operational Cost:Communication:Licences (Radio and Television)",2900,"Other expenditure","_","_",2904,"Other Expenditure",1200,"Finance and administration",1204,"Finance","_"," _"," _","O","IE"," _ "," _ "," _ "," _ "," _ "," _ ","_","_"," _ "," _ "," _ "," _ "," _ "," _ "," _ "," _ ",null," _ "," _ "," _ "," _ ",null,null,null," _ "," _ "," _ "," _ "," _ "," _ "," _ "," _ "," _ "," _ "," _ ",null," _ "," _ "," _ "," _ "," _ ",null," _ "," _ "," _ "," _ ",null,2,22,"Finance","Finance and Administration",null,null,5624,0,0,0,0,0,0,0,0,"_","_","_","_"]
["O0001/IE00771/F0041/X049/R0374/001/46","O0001/IE00771/F0041/X049/R0374/001/46",311,310,"Expenditure:Operational Cost:Communication:Postage/Stamps/Franking Machines",2900,"Other expenditure","_","_",2904,"Other Expenditure",1200,"Finance and administration",1204,"Finance","_"," _"," _","O","IE"," _ "," _ "," _ "," _ "," _ "," _ ","_","_"," _ "," _ "," _ "," _ "," _ "," _ "," _ "," _ ",null," _ "," _ "," _ "," _ ",null,null,null," _ "," _ "," _ "," _ "," _ "," _ "," _ "," _ "," _ "," _ "," _ ",null," _ "," _ "," _ "," _ "," _ ",null," _ "," _ "," _ "," _ ",null,2,22,"Finance","Finance and Administration",null,null,149,301,0,2500,2500,0,0,0,0,"_","_","_","_"]
["O0001/IE00559/F0041/X049/R0374/001/46","O0001/IE00559/F0041/X049/R0374/001/46",312,311,"Expenditure:Operational Cost:Courier and Delivery Services",2900,"Other expenditure","_","_",2904,"Other Expenditure",1200,"Finance and administration",1204,"Finance","_"," _"," _","O","IE"," _ "," _ "," _ "," _ "," _ "," _ ","_","_"," _ "," _ "," _ "," _ "," _ "," _ "," _ "," _ ",null," _ "," _ "," _ "," _ ",null,null,null," _ "," _ "," _ "," _ "," _ "," _ "," _ "," _ "," _ "," _ "," _ ",null," _ "," _ "," _ "," _ "," _ ",null," _ "," _ "," _ "," _ ",null,2,22,"Finance","Finance and Administration",null,null,0,0,0,0,0,0,0,0,0,"_","_","_","_"]
["O0001/IE00778/F0041/X049/R0374/001/46","O0001/IE00778/F0041/X049/R0374/001/46",313,312,"Expenditure:Operational Cost:Communication:Telephone, Fax, Telegraph and Telex",2900,"Other expenditure","_","_",2904,"Other Expenditure",1200,"Finance and administration",1204,"Finance","_"," _"," _","O","IE"," _ "," _ "," _ "," _ "," _ "," _ ","_","_"," _ "," _ "," _ "," _ "," _ "," _ "," _ "," _ ",null," _ "," _ "," _ "," _ ",null,null,null," _ "," _ "," _ "," _ "," _ "," _ "," _ "," _ "," _ "," _ "," _ ",null," _ "," _ "," _ "," _ "," _ ",null," _ "," _ "," _ "," _ ",null,2,22,"Finance","Finance and Administration",null,null,55835,30254,0,0,0,0,0,0,7100,"_","_","_","_"]
["O0001/IE00783/F0041/X049/R0374/001/46","O0001/IE00783/F0041/X049/R0374/001/46",314,313,"Expenditure:Operational Cost:Entertainment:Senior Management",2900,"Other expenditure","_","_",2904,"Other Expenditure",1200,"Finance and administration",1204,"Finance","_"," _"," _","O","IE"," _ "," _ "," _ "," _ "," _ "," _ ","_","_"," _ "," _ "," _ "," _ "," _ "," _ "," _ "," _ ",null," _ "," _ "," _ "," _ ",null,null,null," _ "," _ "," _ "," _ "," _ "," _ "," _ "," _ "," _ "," _ "," _ ",null," _ "," _ "," _ "," _ "," _ ",null," _ "," _ "," _ "," _ ",null,2,22,"Finance","Finance and Administration",null,null,0,0,0,0,0,0,0,0,0,"_","_","_","_"]
["O0001/IE00561/F0041/X049/R0374/001/46","O0001/IE00561/F0041/X049/R0374/001/46",315,314,"Expenditure:Operational Cost:Drivers Licences and Permits",2900,"Other expenditure","_","_",2904,"Other Expenditure",1200,"Finance and administration",1204,"Finance","_"," _"," _","O","IE"," _ "," _ "," _ "," _ "," _ "," _ ","_","_"," _ "," _ "," _ "," _ "," _ "," _ "," _ "," _ ",null," _ "," _ "," _ "," _ ",null,null,null," _ "," _ "," _ "," _ "," _ "," _ "," _ "," _ "," _ "," _ "," _ ",null," _ "," _ "," _ "," _ "," _ ",null," _ "," _ "," _ "," _ ",null,2,22,"Finance","Finance and Administration",null,null,0,0,0,0,0,0,0,0,0,"_","_","_","_"]
["O0001/IE00787/F0041/X049/R0374/001/46","O0001/IE00787/F0041/X049/R0374/001/46",316,315,"Expenditure:Operational Cost:External Computer Service:Internet Charge",2900,"Other expenditure","_","_",2904,"Other Expenditure",1200,"Finance and administration",1204,"Finance","_"," _"," _","O","IE"," _ "," _ "," _ "," _ "," _ "," _ ","_","_"," _ "," _ "," _ "," _ "," _ "," _ "," _ "," _ ",null," _ "," _ "," _ "," _ ",null,null,null," _ "," _ "," _ "," _ "," _ "," _ "," _ "," _ "," _ "," _ "," _ ",null," _ "," _ "," _ "," _ "," _ ",null," _ "," _ "," _ "," _ ",null,2,22,"Finance","Finance and Administration",null,null,0,0,0,60000,60000,50000,32938,34716,226486,"_","_","_","_"]
["O0001/IE00784/F0041/X049/R0374/001/46","O0001/IE00784/F0041/X049/R0374/001/46",317,316,"Expenditure:Operational Cost:External Computer Service:Data Lines",2900,"Other expenditure","_","_",2904,"Other Expenditure",1200,"Finance and administration",1204,"Finance","_"," _"," _","O","IE"," _ "," _ "," _ "," _ "," _ "," _ ","_","_"," _ "," _ "," _ "," _ "," _ "," _ "," _ "," _ ",null," _ "," _ "," _ "," _ ",null,null,null," _ "," _ "," _ "," _ "," _ "," _ "," _ "," _ "," _ "," _ "," _ ",null," _ "," _ "," _ "," _ "," _ ",null," _ "," _ "," _ "," _ ",null,2,22,"Finance","Finance and Administration",null,null,0,0,0,0,0,0,0,0,72436,"_","_","_","_"]
["O0001/IE00792/F0041/X049/R0374/001/46","O0001/IE00792/F0041/X049/R0374/001/46",318,317,"Expenditure:Operational Cost:External Computer Service:Software Licences",2900,"Other expenditure","_","_",2904,"Other Expenditure",1200,"Finance and administration",1204,"Finance","_"," _"," _","O","IE"," _ "," _ "," _ "," _ "," _ "," _ ","_","_"," _ "," _ "," _ "," _ "," _ "," _ "," _ "," _ ",null," _ "," _ "," _ "," _ ",null,null,null," _ "," _ "," _ "," _ "," _ "," _ "," _ "," _ "," _ "," _ "," _ ",null," _ "," _ "," _ "," _ "," _ ",null," _ "," _ "," _ "," _ ",null,2,22,"Finance","Finance and Administration",null,null,566592,0,0,0,0,0,0,0,143725,"_","_","_","_"]
["O0001/IE00805/F0041/X049/R0374/001/46","O0001/IE00805/F0041/X049/R0374/001/46",319,318,"Expenditure:Operational Cost:Insurance Underwriting:Premiums",2900,"Other expenditure","_","_",2904,"Other Expenditure",1200,"Finance and administration",1204,"Finance","_"," _"," _","O","IE"," _ "," _ "," _ "," _ "," _ "," _ ","_","_"," _ "," _ "," _ "," _ "," _ "," _ "," _ "," _ ",null," _ "," _ "," _ "," _ ",null,null,null," _ "," _ "," _ "," _ "," _ "," _ "," _ "," _ "," _ "," _ "," _ ",null," _ "," _ "," _ "," _ "," _ ",null," _ "," _ "," _ "," _ ",null,2,22,"Finance","Finance and Administration",null,null,666273,0,0,760000,806000,416250,760000,760000,700194,"_","_","_","_"]
["O0001/IE00579/F0041/X049/R0374/001/46","O0001/IE00579/F0041/X049/R0374/001/46",320,319,"Expenditure:Operational Cost:Municipal Services",2900,"Other expenditure","_","_",2904,"Other Expenditure",1200,"Finance and administration",1204,"Finance","_"," _"," _","O","IE"," _ "," _ "," _ "," _ "," _ "," _ ","_","_"," _ "," _ "," _ "," _ "," _ "," _ "," _ "," _ ",null," _ "," _ "," _ "," _ ",null,null,null," _ "," _ "," _ "," _ "," _ "," _ "," _ "," _ "," _ "," _ "," _ ",null," _ "," _ "," _ "," _ "," _ ",null," _ "," _ "," _ "," _ ",null,2,22,"Finance","Finance and Administration",null,null,77822,90017,0,190000,90000,0,0,0,0,"_","_","_","_"]
["O0001/IE00808/F0041/X049/R0374/001/46","O0001/IE00808/F0041/X049/R0374/001/46",321,320,"Expenditure:Operational Cost:Licences:Motor Vehicle Licence and Registrations",2900,"Other expenditure","_","_",2904,"Other Expenditure",1200,"Finance and administration",1204,"Finance","_"," _"," _","O","IE"," _ "," _ "," _ "," _ "," _ "," _ ","_","_"," _ "," _ "," _ "," _ "," _ "," _ "," _ "," _ ",null," _ "," _ "," _ "," _ ",null,null,null," _ "," _ "," _ "," _ "," _ "," _ "," _ "," _ "," _ "," _ "," _ ",null," _ "," _ "," _ "," _ "," _ ",null," _ "," _ "," _ "," _ ",null,2,22,"Finance","Finance and Administration",null,null,0,0,0,0,0,0,0,0,0,"_","_","_","_"]
["O0001/IE00810/F0041/X049/R0374/001/46","O0001/IE00810/F0041/X049/R0374/001/46",322,321,"Expenditure:Operational Cost:Registration Fees:Professional and Regulatory Bodies",2900,"Other expenditure","_","_",2904,"Other Expenditure",1200,"Finance and administration",1204,"Finance","_"," _"," _","O","IE"," _ "," _ "," _ "," _ "," _ "," _ ","_","_"," _ "," _ "," _ "," _ "," _ "," _ "," _ "," _ ",null," _ "," _ "," _ "," _ ",null,null,null," _ "," _ "," _ "," _ "," _ "," _ "," _ "," _ "," _ "," _ "," _ ",null," _ "," _ "," _ "," _ "," _ ",null," _ "," _ "," _ "," _ ",null,2,22,"Finance","Finance and Administration",null,null,0,0,0,25000,0,0,0,0,0,"_","_","_","_"]
["O0001/IE00059/F0041/X049/R0374/001/46","O0001/IE00059/F0041/X049/R0374/001/46",323,322,"Expenditure:Operational Cost:Registration Fees:Seminars, Conferences, Workshops and Events:National",2900,"Other expenditure","_","_",2904,"Other Expenditure",1200,"Finance and administration",1204,"Finance","_"," _"," _","O","IE"," _ "," _ "," _ "," _ "," _ "," _ ","_","_"," _ "," _ "," _ "," _ "," _ "," _ "," _ "," _ ",null," _ "," _ "," _ "," _ ",null,null,null," _ "," _ "," _ "," _ "," _ "," _ "," _ "," _ "," _ "," _ "," _ ",null," _ "," _ "," _ "," _ "," _ ",null," _ "," _ "," _ "," _ ",null,2,22,"Finance","Finance and Administration",null,null,11875,6977,0,80000,0,0,0,0,9562,"_","_","_","_"]
["O0001/IE00584/F0041/X049/R0374/001/46","O0001/IE00584/F0041/X049/R0374/001/46",324,323,"Expenditure:Operational Cost:Professional Bodies, Membership and Subscription",2900,"Other expenditure","_","_",2904,"Other Expenditure",1200,"Finance and administration",1204,"Finance","_"," _"," _","O","IE"," _ "," _ "," _ "," _ "," _ "," _ ","_","_"," _ "," _ "," _ "," _ "," _ "," _ "," _ "," _ ",null," _ "," _ "," _ "," _ ",null,null,null," _ "," _ "," _ "," _ "," _ "," _ "," _ "," _ "," _ "," _ "," _ ",null," _ "," _ "," _ "," _ "," _ ",null," _ "," _ "," _ "," _ ",null,2,22,"Finance","Finance and Administration",null,null,24189,0,0,0,21900,0,0,0,12442,"_","_","_","_"]
["O0001/IE00583/F0041/X049/R0374/001/46","O0001/IE00583/F0041/X049/R0374/001/46",325,324,"Expenditure:Operational Cost:Printing, Publications and Books",2900,"Other expenditure","_","_",2904,"Other Expenditure",1200,"Finance and administration",1204,"Finance","_"," _"," _","O","IE"," _ "," _ "," _ "," _ "," _ "," _ ","_","_"," _ "," _ "," _ "," _ "," _ "," _ "," _ "," _ ",null," _ "," _ "," _ "," _ ",null,null,null," _ "," _ "," _ "," _ "," _ "," _ "," _ "," _ "," _ "," _ "," _ ",null," _ "," _ "," _ "," _ "," _ ",null," _ "," _ "," _ "," _ ",null,2,22,"Finance","Finance and Administration",null,null,0,0,0,70000,55000,35000,45000,35000,35297,"_","_","_","_"]
["O0001/IE00580/F0041/X049/R0374/001/46","O0001/IE00580/F0041/X049/R0374/001/46",326,325,"Expenditure:Operational Cost:Office Decorations",2900,"Other expenditure","_","_",2904,"Other Expenditure",1200,"Finance and administration",1204,"Finance","_"," _"," _","O","IE"," _ "," _ "," _ "," _ "," _ "," _ ","_","_"," _ "," _ "," _ "," _ "," _ "," _ "," _ "," _ ",null," _ "," _ "," _ "," _ ",null,null,null," _ "," _ "," _ "," _ "," _ "," _ "," _ "," _ "," _ "," _ "," _ ",null," _ "," _ "," _ "," _ "," _ ",null," _ "," _ "," _ "," _ ",null,2,22,"Finance","Finance and Administration",null,null,0,0,0,0,0,0,0,0,0,"_","_","_","_"]
["O0001/IE00602/F0041/X049/R0374/001/46","O0001/IE00602/F0041/X049/R0374/001/46",327,326,"Expenditure:Operational Cost:Toll Gate Fees",2900,"Other expenditure","_","_",2904,"Other Expenditure",1200,"Finance and administration",1204,"Finance","_"," _"," _","O","IE"," _ "," _ "," _ "," _ "," _ "," _ ","_","_"," _ "," _ "," _ "," _ "," _ "," _ "," _ "," _ ",null," _ "," _ "," _ "," _ ",null,null,null," _ "," _ "," _ "," _ "," _ "," _ "," _ "," _ "," _ "," _ "," _ ",null," _ "," _ "," _ "," _ "," _ ",null," _ "," _ "," _ "," _ ",null,2,22,"Finance","Finance and Administration",null,null,2561,0,0,0,0,0,0,0,0,"_","_","_","_"]
["O0001/IE00060/F0041/X049/R0374/001/46","O0001/IE00060/F0041/X049/R0374/001/46",328,327,"Expenditure:Operational Cost:Travel and Subsistence:Domestic:Accommodation",2900,"Other expenditure","_","_",2904,"Other Expenditure",1200,"Finance and administration",1204,"Finance","_"," _"," _","O","IE"," _ "," _ "," _ "," _ "," _ "," _ ","_","_"," _ "," _ "," _ "," _ "," _ "," _ "," _ "," _ ",null," _ "," _ "," _ "," _ ",null,null,null," _ "," _ "," _ "," _ "," _ "," _ "," _ "," _ "," _ "," _ "," _ ",null," _ "," _ "," _ "," _ "," _ ",null," _ "," _ "," _ "," _ ",null,2,22,"Finance","Finance and Administration",null,null,16758,82506,0,60000,7000,5000,32169,33906,0,"_","_","_","_"]
["O0001/IE00061/F0041/X049/R0374/001/46","O0001/IE00061/F0041/X049/R0374/001/46",329,328,"Expenditure:Operational Cost:Travel and Subsistence:Domestic:Daily Allowance",2900,"Other expenditure","_","_",2904,"Other Expenditure",1200,"Finance and administration",1204,"Finance","_"," _"," _","O","IE"," _ "," _ "," _ "," _ "," _ "," _ ","_","_"," _ "," _ "," _ "," _ "," _ "," _ "," _ "," _ ",null," _ "," _ "," _ "," _ ",null,null,null," _ "," _ "," _ "," _ "," _ "," _ "," _ "," _ "," _ "," _ "," _ ",null," _ "," _ "," _ "," _ "," _ ",null," _ "," _ "," _ "," _ ",null,2,22,"Finance","Finance and Administration",null,null,12855,30350,0,10000,2850,2000,12736,13424,2635,"_","_","_","_"]
["O0001/IE00143/F0041/X049/R0374/001/46","O0001/IE00143/F0041/X049/R0374/001/46",330,329,"Expenditure:Operational Cost:Travel and Subsistence:Domestic:Transport without Operator:Car Rental",2900,"Other expenditure","_","_",2904,"Other Expenditure",1200,"Finance and administration",1204,"Finance","_"," _"," _","O","IE"," _ "," _ "," _ "," _ "," _ "," _ ","_","_"," _ "," _ "," _ "," _ "," _ "," _ "," _ "," _ ",null," _ "," _ "," _ "," _ ",null,null,null," _ "," _ "," _ "," _ "," _ "," _ "," _ "," _ "," _ "," _ "," _ ",null," _ "," _ "," _ "," _ "," _ ",null," _ "," _ "," _ "," _ ",null,2,22,"Finance","Finance and Administration",null,null,0,0,0,0,0,0,0,0,0,"_","_","_","_"]
["O0001/IE00063/F0041/X049/R0374/001/46","O0001/IE00063/F0041/X049/R0374/001/46",331,330,"Expenditure:Operational Cost:Travel and Subsistence:Domestic:Incidental Cost",2900,"Other expenditure","_","_",2904,"Other Expenditure",1200,"Finance and administration",1204,"Finance","_"," _"," _","O","IE"," _ "," _ "," _ "," _ "," _ "," _ ","_","_"," _ "," _ "," _ "," _ "," _ "," _ "," _ "," _ ",null," _ "," _ "," _ "," _ ",null,null,null," _ "," _ "," _ "," _ "," _ "," _ "," _ "," _ "," _ "," _ "," _ ",null," _ "," _ "," _ "," _ "," _ ",null," _ "," _ "," _ "," _ ",null,2,22,"Finance","Finance and Administration",null,null,0,490,0,0,0,0,0,0,0,"_","_","_","_"]
["O0001/IE00144/F0041/X049/R0374/001/46","O0001/IE00144/F0041/X049/R0374/001/46",332,331,"Expenditure:Operational Cost:Travel and Subsistence:Domestic:Transport without Operator:Own Transport",2900,"Other expenditure","_","_",2904,"Other Expenditure",1200,"Finance and administration",1204,"Finance","_"," _"," _","O","IE"," _ "," _ "," _ "," _ "," _ "," _ ","_","_"," _ "," _ "," _ "," _ "," _ "," _ "," _ "," _ ",null," _ "," _ "," _ "," _ ",null,null,null," _ "," _ "," _ "," _ "," _ "," _ "," _ "," _ "," _ "," _ "," _ ",null," _ "," _ "," _ "," _ "," _ ",null," _ "," _ "," _ "," _ ",null,2,22,"Finance","Finance and Administration",null,null,102231,118228,0,60000,30000,17000,93652,98710,24712,"_","_","_","_"]
["O0001/IE01581/F0041/X049/R0374/001/46","O0001/IE01581/F0041/X049/R0374/001/46",333,332,"Expenditure:Operational Cost:Travel and Subsistence:Domestic:Transport with Operator:Public Transport:Air Transport",2900,"Other expenditure","_","_",2904,"Other Expenditure",1200,"Finance and administration",1204,"Finance","_"," _"," _","O","IE"," _ "," _ "," _ "," _ "," _ "," _ ","_","_"," _ "," _ "," _ "," _ "," _ "," _ "," _ "," _ ",null," _ "," _ "," _ "," _ ",null,null,null," _ "," _ "," _ "," _ "," _ "," _ "," _ "," _ "," _ "," _ "," _ ",null," _ "," _ "," _ "," _ "," _ ",null," _ "," _ "," _ "," _ ",null,2,22,"Finance","Finance and Administration",null,null,0,0,0,0,0,0,0,0,0,"_","_","_","_"]
["O0001/IE00798/F0041/X049/R0374/001/46","O0001/IE00798/F0041/X049/R0374/001/46",334,333,"Expenditure:Operational Cost:Fines and Penalties:Road Traffic and Other Fines",2900,"Other expenditure","_","_",2904,"Other Expenditure",1200,"Finance and administration",1204,"Finance","_"," _"," _","O","IE"," _ "," _ "," _ "," _ "," _ "," _ ","_","_"," _ "," _ "," _ "," _ "," _ "," _ "," _ "," _ ",null," _ "," _ "," _ "," _ ",null,null,null," _ "," _ "," _ "," _ "," _ "," _ "," _ "," _ "," _ "," _ "," _ ",null," _ "," _ "," _ "," _ "," _ ",null," _ "," _ "," _ "," _ ",null,2,22,"Finance","Finance and Administration",null,null,500,0,0,0,0,0,0,0,0,"_","_","_","_"]
["O0001/IE00815/F0041/X049/R0374/001/46","O0001/IE00815/F0041/X049/R0374/001/46",335,334,"Expenditure:Operational Cost:Travel and Subsistence:Non-employees",2900,"Other expenditure","_","_",2904,"Other Expenditure",1200,"Finance and administration",1204,"Finance","_"," _"," _","O","IE"," _ "," _ "," _ "," _ "," _ "," _ ","_","_"," _ "," _ "," _ "," _ "," _ "," _ "," _ "," _ ",null," _ "," _ "," _ "," _ ",null,null,null," _ "," _ "," _ "," _ "," _ "," _ "," _ "," _ "," _ "," _ "," _ ",null," _ "," _ "," _ "," _ "," _ ",null," _ "," _ "," _ "," _ ",null,2,22,"Finance","Finance and Administration",null,null,0,0,0,0,0,0,0,0,0,"_","_","_","_"]
["O0001/IE00797/F0041/X049/R0374/001/46","O0001/IE00797/F0041/X049/R0374/001/46",336,335,"Expenditure:Operational Cost:Fines and Penalties:Breach of Contract",2900,"Other expenditure","_","_",2904,"Other Expenditure",1200,"Finance and administration",1204,"Finance","_"," _"," _","O","IE"," _ "," _ "," _ "," _ "," _ "," _ ","_","_"," _ "," _ "," _ "," _ "," _ "," _ "," _ "," _ ",null," _ "," _ "," _ "," _ ",null,null,null," _ "," _ "," _ "," _ "," _ "," _ "," _ "," _ "," _ "," _ "," _ ",null," _ "," _ "," _ "," _ "," _ ",null," _ "," _ "," _ "," _ ",null,2,22,"Finance","Finance and Administration",null,null,0,0,0,0,0,0,0,0,0,"_","_","_","_"]
["O0001/IE00799/F0041/X049/R0374/001/46","O0001/IE00799/F0041/X049/R0374/001/46",337,336,"Expenditure:Operational Cost:Fines and Penalties:SARS",2900,"Other expenditure","_","_",2904,"Other Expenditure",1200,"Finance and administration",1204,"Finance","_"," _"," _","O","IE"," _ "," _ "," _ "," _ "," _ "," _ ","_","_"," _ "," _ "," _ "," _ "," _ "," _ "," _ "," _ ",null," _ "," _ "," _ "," _ ",null,null,null," _ "," _ "," _ "," _ "," _ "," _ "," _ "," _ "," _ "," _ "," _ ",null," _ "," _ "," _ "," _ "," _ ",null," _ "," _ "," _ "," _ ",null,2,22,"Finance","Finance and Administration",null,null,0,157644,0,80000,100000,60000,189720,199965,14776,"_","_","_","_"]
["O0001/IE07625/F0001/X049/R0374/001/46","O0001/IE07625/F0001/X049/R0374/001/46",338,338,"Expenditure:Depreciation and Amortisation:Depreciation:Other Assets:Operational Buildings:Municipal Offices",2300,"Depreciation & asset impairment","2300-001","Depreciation of Property, Plant & Equipment",2301,"Depreciation of Property, Plant and Equipment",1200,"Finance and administration",1204,"Finance","_"," _"," _","O","IE"," _ "," _ "," _ "," _ "," _ "," _ ","_","_"," _ "," _ "," _ "," _ "," _ "," _ "," _ "," _ ",null," _ "," _ "," _ "," _ ",null,null,null," _ "," _ "," _ "," _ "," _ "," _ "," _ "," _ "," _ "," _ "," _ ",null,1200,"Municipal Offices"," _ ",1200,"Municipal Offices","DP"," _ "," _ "," _ "," _ ",null,2,22,"Finance","Finance and Administration",null,null,559197,558297,0,0,0,0,0,0,0,"_","_","_","_"]
["O0001/IE00709/F0001/X049/R0374/001/46","O0001/IE00709/F0001/X049/R0374/001/46",339,339,"Expenditure:Depreciation and Amortisation:Depreciation:Computer Equipment",2300,"Depreciation & asset impairment","2300-001","Depreciation of Property, Plant & Equipment",2301,"Depreciation of Property, Plant and Equipment",1200,"Finance and administration",1204,"Finance","_"," _"," _","O","IE"," _ "," _ "," _ "," _ "," _ "," _ ","_","_"," _ "," _ "," _ "," _ "," _ "," _ "," _ "," _ ",null," _ "," _ "," _ "," _ ",null,null,null," _ "," _ "," _ "," _ "," _ "," _ "," _ "," _ "," _ "," _ "," _ ",null,1470,"Computer Equipment"," _ ",1470,"Computer Equipment","DP"," _ "," _ "," _ "," _ ",null,2,22,"Finance","Finance and Administration",null,null,240341,168081,0,0,0,0,0,0,0,"_","_","_","_"]
["O0001/IE00711/F0001/X049/R0374/001/46","O0001/IE00711/F0001/X049/R0374/001/46",340,340,"Expenditure:Depreciation and Amortisation:Depreciation:Furniture and Office Equipment",2300,"Depreciation & asset impairment","2300-001","Depreciation of Property, Plant & Equipment",2301,"Depreciation of Property, Plant and Equipment",1200,"Finance and administration",1204,"Finance","_"," _"," _","O","IE"," _ "," _ "," _ "," _ "," _ "," _ ","_","_"," _ "," _ "," _ "," _ "," _ "," _ "," _ "," _ ",null," _ "," _ "," _ "," _ ",null,null,null," _ "," _ "," _ "," _ "," _ "," _ "," _ "," _ "," _ "," _ "," _ ",null,1490,"Furniture and Office Equipment"," _ ",1490,"Furniture and Office Equipment","DP"," _ "," _ "," _ "," _ ",null,2,22,"Finance","Finance and Administration",null,null,326666,514829,0,0,0,0,0,0,0,"_","_","_","_"]
["O0001/IE00723/F0001/X049/R0374/001/46","O0001/IE00723/F0001/X049/R0374/001/46",341,341,"Expenditure:Depreciation and Amortisation:Depreciation:Transport Assets",2300,"Depreciation & asset impairment","2300-001","Depreciation of Property, Plant & Equipment",2301,"Depreciation of Property, Plant and Equipment",1200,"Finance and administration",1204,"Finance","_"," _"," _","O","IE"," _ "," _ "," _ "," _ "," _ "," _ ","_","_"," _ "," _ "," _ "," _ "," _ "," _ "," _ "," _ ",null," _ "," _ "," _ "," _ ",null,null,null," _ "," _ "," _ "," _ "," _ "," _ "," _ "," _ "," _ "," _ "," _ ",null,1530,"Transport Assets"," _ ",1530,"Transport Assets","DP"," _ "," _ "," _ "," _ ",null,2,22,"Finance","Finance and Administration",null,null,290533,290533,0,0,0,0,0,0,0,"_","_","_","_"]
["O0001/IE00715/F0001/X049/R0374/001/46","O0001/IE00715/F0001/X049/R0374/001/46",342,342,"Expenditure:Depreciation and Amortisation:Depreciation:Machinery and Equipment",2300,"Depreciation & asset impairment","2300-001","Depreciation of Property, Plant & Equipment",2301,"Depreciation of Property, Plant and Equipment",1200,"Finance and administration",1204,"Finance","_"," _"," _","O","IE"," _ "," _ "," _ "," _ "," _ "," _ ","_","_"," _ "," _ "," _ "," _ "," _ "," _ "," _ "," _ ",null," _ "," _ "," _ "," _ ",null,null,null," _ "," _ "," _ "," _ "," _ "," _ "," _ "," _ "," _ "," _ "," _ ",null,1510,"Machinery and Equipment"," _ ",1510,"Machinery and Equipment","DP"," _ "," _ "," _ "," _ ",null,2,22,"Finance","Finance and Administration",null,null,273792,662315,0,0,0,0,0,0,0,"_","_","_","_"]
["O0001/IE00030/F0001/X049/R0374/001/46","O0001/IE00030/F0001/X049/R0374/001/46",343,343,"Expenditure:Depreciation and Amortisation:Amortisation:Intangible Assets:Licences and Rights:Computer Software and Applications",2300,"Depreciation & asset impairment","2300-001","Depreciation of Property, Plant & Equipment",2302,"7eb20c30-ee1f-475f-a757-8801dc77ab2d",1200,"Finance and administration",1204,"Finance","_"," _"," _","O","IE"," _ "," _ "," _ "," _ "," _ "," _ ","_","_"," _ "," _ "," _ "," _ "," _ "," _ "," _ "," _ ",null," _ "," _ "," _ "," _ ",null,null,null," _ "," _ "," _ "," _ "," _ "," _ "," _ "," _ "," _ "," _ "," _ ",null,1430,"Computer Software and Applications"," _ ",1430,"Computer Software and Applications","DP"," _ "," _ "," _ "," _ ",null,2,22,"Finance","Finance and Administration",null,null,404759,403859,0,0,0,0,0,0,0,"_","_","_","_"]
["O0001/IE00060/F0041/X098/R0374/001/96","O0001/IE00060/F0041/X098/R0374/001/96",344,281,"Expenditure:Operational Cost:Travel and Subsistence:Domestic:Accommodation",2900,"Other expenditure","_","_",2904,"Other Expenditure",3100,"Planning and development",3105,"Economic Development/Planning","_"," _"," _","O","IE"," _ "," _ "," _ "," _ "," _ "," _ ","_","_"," _ "," _ "," _ "," _ "," _ "," _ "," _ "," _ ",null," _ "," _ "," _ "," _ ",null,null,null," _ "," _ "," _ "," _ "," _ "," _ "," _ "," _ "," _ "," _ "," _ ",null," _ "," _ "," _ "," _ "," _ ",null," _ "," _ "," _ "," _ ",null,3,33,"Economic Development/Planning","Planning and Development",null,null,33237,265,0,15000,7000,5000,32169,33906,0,"_","_","_","_"]
["O0001/IE00770/F0041/X098/R0374/001/96","O0001/IE00770/F0041/X098/R0374/001/96",345,282,"Expenditure:Operational Cost:Communication:Licences (Radio and Television)",2900,"Other expenditure","_","_",2904,"Other Expenditure",3100,"Planning and development",3105,"Economic Development/Planning","_"," _"," _","O","IE"," _ "," _ "," _ "," _ "," _ "," _ ","_","_"," _ "," _ "," _ "," _ "," _ "," _ "," _ "," _ ",null," _ "," _ "," _ "," _ ",null,null,null," _ "," _ "," _ "," _ "," _ "," _ "," _ "," _ "," _ "," _ "," _ ",null," _ "," _ "," _ "," _ "," _ ",null," _ "," _ "," _ "," _ ",null,3,33,"Economic Development/Planning","Planning and Development",null,null,6857,0,0,0,0,0,0,0,0,"_","_","_","_"]
["O0001/IE00778/F0041/X098/R0374/001/96","O0001/IE00778/F0041/X098/R0374/001/96",346,283,"Expenditure:Operational Cost:Communication:Telephone, Fax, Telegraph and Telex",2900,"Other expenditure","_","_",2904,"Other Expenditure",3100,"Planning and development",3105,"Economic Development/Planning","_"," _"," _","O","IE"," _ "," _ "," _ "," _ "," _ "," _ ","_","_"," _ "," _ "," _ "," _ "," _ "," _ "," _ "," _ ",null," _ "," _ "," _ "," _ ",null,null,null," _ "," _ "," _ "," _ "," _ "," _ "," _ "," _ "," _ "," _ "," _ ",null," _ "," _ "," _ "," _ "," _ ",null," _ "," _ "," _ "," _ ",null,3,33,"Economic Development/Planning","Planning and Development",null,null,142702,57296,0,0,0,0,0,0,-5967,"_","_","_","_"]
["O0001/IE00783/F0041/X098/R0374/001/96","O0001/IE00783/F0041/X098/R0374/001/96",347,284,"Expenditure:Operational Cost:Entertainment:Senior Management",2900,"Other expenditure","_","_",2904,"Other Expenditure",3100,"Planning and development",3105,"Economic Development/Planning","_"," _"," _","O","IE"," _ "," _ "," _ "," _ "," _ "," _ ","_","_"," _ "," _ "," _ "," _ "," _ "," _ "," _ "," _ ",null," _ "," _ "," _ "," _ ",null,null,null," _ "," _ "," _ "," _ "," _ "," _ "," _ "," _ "," _ "," _ "," _ ",null," _ "," _ "," _ "," _ "," _ ",null," _ "," _ "," _ "," _ ",null,3,33,"Economic Development/Planning","Planning and Development",null,null,2052,0,0,0,0,0,0,0,0,"_","_","_","_"]
["O0001/IE00579/F0041/X098/R0374/001/96","O0001/IE00579/F0041/X098/R0374/001/96",348,285,"Expenditure:Operational Cost:Municipal Services",2900,"Other expenditure","_","_",2904,"Other Expenditure",3100,"Planning and development",3105,"Economic Development/Planning","_"," _"," _","O","IE"," _ "," _ "," _ "," _ "," _ "," _ ","_","_"," _ "," _ "," _ "," _ "," _ "," _ "," _ "," _ ",null," _ "," _ "," _ "," _ ",null,null,null," _ "," _ "," _ "," _ "," _ "," _ "," _ "," _ "," _ "," _ "," _ ",null," _ "," _ "," _ "," _ "," _ ",null," _ "," _ "," _ "," _ ",null,3,33,"Economic Development/Planning","Planning and Development",null,null,0,13104,0,0,0,0,0,0,0,"_","_","_","_"]
["O0001/IE00584/F0041/X098/R0374/001/96","O0001/IE00584/F0041/X098/R0374/001/96",349,286,"Expenditure:Operational Cost:Professional Bodies, Membership and Subscription",2900,"Other expenditure","_","_",2904,"Other Expenditure",3100,"Planning and development",3105,"Economic Development/Planning","_"," _"," _","O","IE"," _ "," _ "," _ "," _ "," _ "," _ ","_","_"," _ "," _ "," _ "," _ "," _ "," _ "," _ "," _ ",null," _ "," _ "," _ "," _ ",null,null,null," _ "," _ "," _ "," _ "," _ "," _ "," _ "," _ "," _ "," _ "," _ ",null," _ "," _ "," _ "," _ "," _ ",null," _ "," _ "," _ "," _ ",null,3,33,"Economic Development/Planning","Planning and Development",null,null,-9436,0,0,0,0,0,0,0,5000,"_","_","_","_"]
["O0001/IE00061/F0041/X098/R0374/001/96","O0001/IE00061/F0041/X098/R0374/001/96",350,287,"Expenditure:Operational Cost:Travel and Subsistence:Domestic:Daily Allowance",2900,"Other expenditure","_","_",2904,"Other Expenditure",3100,"Planning and development",3105,"Economic Development/Planning","_"," _"," _","O","IE"," _ "," _ "," _ "," _ "," _ "," _ ","_","_"," _ "," _ "," _ "," _ "," _ "," _ "," _ "," _ ",null," _ "," _ "," _ "," _ ",null,null,null," _ "," _ "," _ "," _ "," _ "," _ "," _ "," _ "," _ "," _ "," _ ",null," _ "," _ "," _ "," _ "," _ ",null," _ "," _ "," _ "," _ ",null,3,33,"Economic Development/Planning","Planning and Development",null,null,2040,595,0,47000,40000,20000,53666,56564,1020,"_","_","_","_"]
["O0001/IE00063/F0041/X098/R0374/001/96","O0001/IE00063/F0041/X098/R0374/001/96",351,288,"Expenditure:Operational Cost:Travel and Subsistence:Domestic:Incidental Cost",2900,"Other expenditure","_","_",2904,"Other Expenditure",3100,"Planning and development",3105,"Economic Development/Planning","_"," _"," _","O","IE"," _ "," _ "," _ "," _ "," _ "," _ ","_","_"," _ "," _ "," _ "," _ "," _ "," _ "," _ "," _ ",null," _ "," _ "," _ "," _ ",null,null,null," _ "," _ "," _ "," _ "," _ "," _ "," _ "," _ "," _ "," _ "," _ ",null," _ "," _ "," _ "," _ "," _ ",null," _ "," _ "," _ "," _ ",null,3,33,"Economic Development/Planning","Planning and Development",null,null,247,0,0,2500,1500,0,0,0,0,"_","_","_","_"]
["O0001/IE00144/F0041/X098/R0374/001/96","O0001/IE00144/F0041/X098/R0374/001/96",352,289,"Expenditure:Operational Cost:Travel and Subsistence:Domestic:Transport without Operator:Own Transport",2900,"Other expenditure","_","_",2904,"Other Expenditure",3100,"Planning and development",3105,"Economic Development/Planning","_"," _"," _","O","IE"," _ "," _ "," _ "," _ "," _ "," _ ","_","_"," _ "," _ "," _ "," _ "," _ "," _ "," _ "," _ ",null," _ "," _ "," _ "," _ ",null,null,null," _ "," _ "," _ "," _ "," _ "," _ "," _ "," _ "," _ "," _ "," _ ",null," _ "," _ "," _ "," _ "," _ ",null," _ "," _ "," _ "," _ ",null,3,33,"Economic Development/Planning","Planning and Development",null,null,260082,19379,0,35000,15000,10000,51273,54041,9285,"_","_","_","_"]
["O0001/IE00143/F0041/X098/R0374/001/96","O0001/IE00143/F0041/X098/R0374/001/96",353,290,"Expenditure:Operational Cost:Travel and Subsistence:Domestic:Transport without Operator:Car Rental",2900,"Other expenditure","_","_",2904,"Other Expenditure",3100,"Planning and development",3105,"Economic Development/Planning","_"," _"," _","O","IE"," _ "," _ "," _ "," _ "," _ "," _ ","_","_"," _ "," _ "," _ "," _ "," _ "," _ "," _ "," _ ",null," _ "," _ "," _ "," _ ",null,null,null," _ "," _ "," _ "," _ "," _ "," _ "," _ "," _ "," _ "," _ "," _ ",null," _ "," _ "," _ "," _ "," _ ",null," _ "," _ "," _ "," _ ",null,3,33,"Economic Development/Planning","Planning and Development",null,null,0,0,0,0,0,0,0,0,0,"_","_","_","_"]
["O0001/IE01581/F0041/X098/R0374/001/96","O0001/IE01581/F0041/X098/R0374/001/96",354,291,"Expenditure:Operational Cost:Travel and Subsistence:Domestic:Transport with Operator:Public Transport:Air Transport",2900,"Other expenditure","_","_",2904,"Other Expenditure",3100,"Planning and development",3105,"Economic Development/Planning","_"," _"," _","O","IE"," _ "," _ "," _ "," _ "," _ "," _ ","_","_"," _ "," _ "," _ "," _ "," _ "," _ "," _ "," _ ",null," _ "," _ "," _ "," _ ",null,null,null," _ "," _ "," _ "," _ "," _ "," _ "," _ "," _ "," _ "," _ "," _ ",null," _ "," _ "," _ "," _ "," _ ",null," _ "," _ "," _ "," _ ",null,3,33,"Economic Development/Planning","Planning and Development",null,null,0,0,0,0,0,0,0,0,0,"_","_","_","_"]
["O0001/IE00762/F0041/X049/R0374/001/46","O0001/IE00762/F0041/X049/R0374/001/46",355,337,"Expenditure:Operational Cost:Bank Charges, Facility and Card Fees:Lease Payments",2900,"Other expenditure","_","_",2904,"Other Expenditure",1200,"Finance and administration",1204,"Finance","_"," _"," _","O","IE"," _ "," _ "," _ "," _ "," _ "," _ ","_","_"," _ "," _ "," _ "," _ "," _ "," _ "," _ "," _ ",null," _ "," _ "," _ "," _ ",null,null,null," _ "," _ "," _ "," _ "," _ "," _ "," _ "," _ "," _ "," _ "," _ ",null," _ "," _ "," _ "," _ "," _ ",null," _ "," _ "," _ "," _ ",null,2,22,"Finance","Finance and Administration",null,null,-32959,-176997,0,400000,400000,250000,335523,353642,121415,"_","_","_","_"]
["D0001/IA10321/F0001/X049/R0374/001/46","D0001/IA10321/F0001/X049/R0374/001/46",356,344,"Assets:Current Assets:Control, Clearing and Interface Accounts:Over/Under Banking:Opening Balance"," _"," _"," _ "," _ "," _ "," _ ",1200,"Finance and administration",1204,"Finance","_"," _"," _","D","IA",150,"Other debtors",150,"Other debtors"," _ "," _ ","_","_"," _ "," _ "," _ "," _ "," _ "," _ "," _ "," _ ",null," _ "," _ "," _ "," _ ",null,null,null," _ "," _ "," _ "," _ "," _ "," _ "," _ "," _ "," _ "," _ "," _ ",null," _ "," _ "," _ "," _ "," _ ",null," _ "," _ "," _ "," _ ",null,2,22,"Finance","Finance and Administration",null,null,0,0,0,0,0,1624405,1692630,1763720,0,"_","_","_","_"]
["D0001/IZ00090/F0001/X049/R0374/001/46","D0001/IZ00090/F0001/X049/R0374/001/46",357,357,"Gains and Losses:Disposal of Fixed and Intangible Assets:Property, Plant and Equipment:Computer Equipment:Gains",1700,"Gains on disposal of PPE",1700,"Gains on disposal of PPE"," _ "," _ ",1200,"Finance and administration",1204,"Finance","_"," _"," _","D","IR"," _ "," _ "," _ "," _ "," _ "," _ ","_","_"," _ "," _ "," _ "," _ "," _ "," _ "," _ "," _ ",null," _ "," _ "," _ "," _ ",null,null,null," _ "," _ "," _ "," _ "," _ "," _ "," _ "," _ "," _ "," _ "," _ ",null," _ "," _ "," _ "," _ "," _ ",null," _ "," _ "," _ "," _ ",null,2,22,"Finance","Finance and Administration",null,null,0,0,0,0,0,0,0,0,0,"_","_","_","_"]
["D0001/IZ00091/F0001/X049/R0374/001/46","D0001/IZ00091/F0001/X049/R0374/001/46",358,358,"Gains and Losses:Disposal of Fixed and Intangible Assets:Property, Plant and Equipment:Computer Equipment:Losses",3000,"Loss on disposal of PPE",3000,"Loss on disposal of PPE"," _ "," _ ",1200,"Finance and administration",1204,"Finance","_"," _"," _","D","IE"," _ "," _ "," _ "," _ "," _ "," _ ","_","_"," _ "," _ "," _ "," _ "," _ "," _ "," _ "," _ ",null," _ "," _ "," _ "," _ ",null,null,null," _ "," _ "," _ "," _ "," _ "," _ "," _ "," _ "," _ "," _ "," _ ",null," _ "," _ "," _ "," _ "," _ ",null," _ "," _ "," _ "," _ ",null,2,22,"Finance","Finance and Administration",null,null,0,0,0,0,0,0,0,0,0,"_","_","_","_"]
["D0001/IZ00094/F0001/X049/R0374/001/46","D0001/IZ00094/F0001/X049/R0374/001/46",359,359,"Gains and Losses:Disposal of Fixed and Intangible Assets:Property, Plant and Equipment:Furniture and Office Equipment:Gains",1700,"Gains on disposal of PPE",1700,"Gains on disposal of PPE"," _ "," _ ",1200,"Finance and administration",1204,"Finance","_"," _"," _","D","IR"," _ "," _ "," _ "," _ "," _ "," _ ","_","_"," _ "," _ "," _ "," _ "," _ "," _ "," _ "," _ ",null," _ "," _ "," _ "," _ ",null,null,null," _ "," _ "," _ "," _ "," _ "," _ "," _ "," _ "," _ "," _ "," _ ",null," _ "," _ "," _ "," _ "," _ ",null," _ "," _ "," _ "," _ ",null,2,22,"Finance","Finance and Administration",null,null,0,0,0,0,0,0,0,0,0,"_","_","_","_"]
["D0001/IZ00103/F0001/X049/R0374/001/46","D0001/IZ00103/F0001/X049/R0374/001/46",360,360,"Gains and Losses:Disposal of Fixed and Intangible Assets:Property, Plant and Equipment:Machinery and Equipment:Losses",3000,"Loss on disposal of PPE",3000,"Loss on disposal of PPE"," _ "," _ ",1200,"Finance and administration",1204,"Finance","_"," _"," _","D","IE"," _ "," _ "," _ "," _ "," _ "," _ ","_","_"," _ "," _ "," _ "," _ "," _ "," _ "," _ "," _ ",null," _ "," _ "," _ "," _ ",null,null,null," _ "," _ "," _ "," _ "," _ "," _ "," _ "," _ "," _ "," _ "," _ ",null," _ "," _ "," _ "," _ "," _ ",null," _ "," _ "," _ "," _ ",null,2,22,"Finance","Finance and Administration",null,null,0,0,0,0,0,0,0,0,0,"_","_","_","_"]
["D0001/IZ00118/F0001/X049/R0374/001/46","D0001/IZ00118/F0001/X049/R0374/001/46",361,361,"Gains and Losses:Disposal of Fixed and Intangible Assets:Property, Plant and Equipment:Transport Assets:Gains",1700,"Gains on disposal of PPE",1700,"Gains on disposal of PPE"," _ "," _ ",1200,"Finance and administration",1204,"Finance","_"," _"," _","D","IR"," _ "," _ "," _ "," _ "," _ "," _ ","_","_"," _ "," _ "," _ "," _ "," _ "," _ "," _ "," _ ",null," _ "," _ "," _ "," _ ",null,null,null," _ "," _ "," _ "," _ "," _ "," _ "," _ "," _ "," _ "," _ "," _ ",null," _ "," _ "," _ "," _ "," _ ",null," _ "," _ "," _ "," _ ",null,2,22,"Finance","Finance and Administration",null,null,0,0,0,0,0,0,0,0,0,"_","_","_","_"]
["D0001/IZ00106/F0001/X049/R0374/001/46","D0001/IZ00106/F0001/X049/R0374/001/46",362,362,"Gains and Losses:Disposal of Fixed and Intangible Assets:Property, Plant and Equipment:Other Assets:Gains",1700,"Gains on disposal of PPE",1700,"Gains on disposal of PPE"," _ "," _ ",1200,"Finance and administration",1204,"Finance","_"," _"," _","D","IR"," _ "," _ "," _ "," _ "," _ "," _ ","_","_"," _ "," _ "," _ "," _ "," _ "," _ "," _ "," _ ",null," _ "," _ "," _ "," _ ",null,null,null," _ "," _ "," _ "," _ "," _ "," _ "," _ "," _ "," _ "," _ "," _ ",null," _ "," _ "," _ "," _ "," _ ",null," _ "," _ "," _ "," _ ",null,2,22,"Finance","Finance and Administration",null,null,0,0,0,0,0,0,0,0,0,"_","_","_","_"]
["D0001/IZ00119/F0001/X049/R0374/001/46","D0001/IZ00119/F0001/X049/R0374/001/46",363,363,"Gains and Losses:Disposal of Fixed and Intangible Assets:Property, Plant and Equipment:Transport Assets:Losses",3000,"Loss on disposal of PPE",3000,"Loss on disposal of PPE"," _ "," _ ",1200,"Finance and administration",1204,"Finance","_"," _"," _","D","IE"," _ "," _ "," _ "," _ "," _ "," _ ","_","_"," _ "," _ "," _ "," _ "," _ "," _ "," _ "," _ ",null," _ "," _ "," _ "," _ ",null,null,null," _ "," _ "," _ "," _ "," _ "," _ "," _ "," _ "," _ "," _ "," _ ",null," _ "," _ "," _ "," _ "," _ ",null," _ "," _ "," _ "," _ ",null,2,22,"Finance","Finance and Administration",null,null,0,0,0,0,0,0,0,0,0,"_","_","_","_"]
["D0001/IZ00107/F0001/X049/R0374/001/46","D0001/IZ00107/F0001/X049/R0374/001/46",364,364,"Gains and Losses:Disposal of Fixed and Intangible Assets:Property, Plant and Equipment:Other Assets:Losses",3000,"Loss on disposal of PPE",3000,"Loss on disposal of PPE"," _ "," _ ",1200,"Finance and administration",1204,"Finance","_"," _"," _","D","IE"," _ "," _ "," _ "," _ "," _ "," _ ","_","_"," _ "," _ "," _ "," _ "," _ "," _ "," _ "," _ ",null," _ "," _ "," _ "," _ ",null,null,null," _ "," _ "," _ "," _ "," _ "," _ "," _ "," _ "," _ "," _ "," _ ",null," _ "," _ "," _ "," _ "," _ ",null," _ "," _ "," _ "," _ ",null,2,22,"Finance","Finance and Administration",null,null,0,0,0,0,0,0,0,0,0,"_","_","_","_"]
["D0001/IZ00102/F0001/X049/R0374/001/46","D0001/IZ00102/F0001/X049/R0374/001/46",365,365,"Gains and Losses:Disposal of Fixed and Intangible Assets:Property, Plant and Equipment:Machinery and Equipment:Gains",1700,"Gains on disposal of PPE",1700,"Gains on disposal of PPE"," _ "," _ ",1200,"Finance and administration",1204,"Finance","_"," _"," _","D","IR"," _ "," _ "," _ "," _ "," _ "," _ ","_","_"," _ "," _ "," _ "," _ "," _ "," _ "," _ "," _ ",null," _ "," _ "," _ "," _ ",null,null,null," _ "," _ "," _ "," _ "," _ "," _ "," _ "," _ "," _ "," _ "," _ ",null," _ "," _ "," _ "," _ "," _ ",null," _ "," _ "," _ "," _ ",null,2,22,"Finance","Finance and Administration",null,null,0,0,0,0,0,0,0,0,0,"_","_","_","_"]
["D0001/IZ00095/F0001/X049/R0374/001/46","D0001/IZ00095/F0001/X049/R0374/001/46",366,366,"Gains and Losses:Disposal of Fixed and Intangible Assets:Property, Plant and Equipment:Furniture and Office Equipment:Losses",3000,"Loss on disposal of PPE",3000,"Loss on disposal of PPE"," _ "," _ ",1200,"Finance and administration",1204,"Finance","_"," _"," _","D","IE"," _ "," _ "," _ "," _ "," _ "," _ ","_","_"," _ "," _ "," _ "," _ "," _ "," _ "," _ "," _ ",null," _ "," _ "," _ "," _ ",null,null,null," _ "," _ "," _ "," _ "," _ "," _ "," _ "," _ "," _ "," _ "," _ ",null," _ "," _ "," _ "," _ "," _ ",null," _ "," _ "," _ "," _ ",null,2,22,"Finance","Finance and Administration",null,null,0,0,0,0,0,0,0,0,0,"_","_","_","_"]
["D0001/IZ00042/F0001/X049/R0374/001/46","D0001/IZ00042/F0001/X049/R0374/001/46",367,345,"Gains and Losses:Impairment Loss:Property, Plant and Equipment:Other Assets",2300,"Depreciation & asset impairment","2300-003","Capital asset impairment",2303,"Capital asset impairment",1200,"Finance and administration",1204,"Finance","_"," _"," _","D","IE"," _ "," _ "," _ "," _ "," _ "," _ ","_","_"," _ "," _ "," _ "," _ "," _ "," _ "," _ "," _ ",null," _ "," _ "," _ "," _ ",null,null,null," _ "," _ "," _ "," _ "," _ "," _ "," _ "," _ "," _ "," _ "," _ ",null," _ "," _ "," _ "," _ "," _ ",null," _ "," _ "," _ "," _ ",null,2,22,"Finance","Finance and Administration",null,null,0,0,0,0,0,0,0,0,0,"_","_","_","_"]
["D0001/IZ00044/F0001/X049/R0374/001/46","D0001/IZ00044/F0001/X049/R0374/001/46",368,346,"Gains and Losses:Impairment Loss:Property, Plant and Equipment:Furniture and Office Equipment",2300,"Depreciation & asset impairment","2300-003","Capital asset impairment",2303,"Capital asset impairment",1200,"Finance and administration",1204,"Finance","_"," _"," _","D","IE"," _ "," _ "," _ "," _ "," _ "," _ ","_","_"," _ "," _ "," _ "," _ "," _ "," _ "," _ "," _ ",null," _ "," _ "," _ "," _ ",null,null,null," _ "," _ "," _ "," _ "," _ "," _ "," _ "," _ "," _ "," _ "," _ ",null," _ "," _ "," _ "," _ "," _ ",null," _ "," _ "," _ "," _ ",null,2,22,"Finance","Finance and Administration",null,null,13150,39987,0,0,0,0,0,0,0,"_","_","_","_"]
["D0001/IZ00055/F0001/X049/R0374/001/46","D0001/IZ00055/F0001/X049/R0374/001/46",369,347,"Gains and Losses:Impairment Loss:Property, Plant and Equipment:Machinery and Equipment",2300,"Depreciation & asset impairment","2300-003","Capital asset impairment",2303,"Capital asset impairment",1200,"Finance and administration",1204,"Finance","_"," _"," _","D","IE"," _ "," _ "," _ "," _ "," _ "," _ ","_","_"," _ "," _ "," _ "," _ "," _ "," _ "," _ "," _ ",null," _ "," _ "," _ "," _ ",null,null,null," _ "," _ "," _ "," _ "," _ "," _ "," _ "," _ "," _ "," _ "," _ ",null," _ "," _ "," _ "," _ "," _ ",null," _ "," _ "," _ "," _ ",null,2,22,"Finance","Finance and Administration",null,null,0,0,0,0,0,0,0,0,0,"_","_","_","_"]
["D0001/IZ00056/F0001/X049/R0374/001/46","D0001/IZ00056/F0001/X049/R0374/001/46",370,348,"Gains and Losses:Impairment Loss:Property, Plant and Equipment:Transport Assets",2300,"Depreciation & asset impairment","2300-003","Capital asset impairment",2303,"Capital asset impairment",1200,"Finance and administration",1204,"Finance","_"," _"," _","D","IE"," _ "," _ "," _ "," _ "," _ "," _ ","_","_"," _ "," _ "," _ "," _ "," _ "," _ "," _ "," _ ",null," _ "," _ "," _ "," _ ",null,null,null," _ "," _ "," _ "," _ "," _ "," _ "," _ "," _ "," _ "," _ "," _ ",null," _ "," _ "," _ "," _ "," _ ",null," _ "," _ "," _ "," _ ",null,2,22,"Finance","Finance and Administration",null,null,0,0,0,0,0,0,0,0,0,"_","_","_","_"]
["D0001/IZ00043/F0001/X049/R0374/001/46","D0001/IZ00043/F0001/X049/R0374/001/46",371,349,"Gains and Losses:Impairment Loss:Property, Plant and Equipment:Computer Equipment",2300,"Depreciation & asset impairment","2300-003","Capital asset impairment",2303,"Capital asset impairment",1200,"Finance and administration",1204,"Finance","_"," _"," _","D","IE"," _ "," _ "," _ "," _ "," _ "," _ ","_","_"," _ "," _ "," _ "," _ "," _ "," _ "," _ "," _ ",null," _ "," _ "," _ "," _ ",null,null,null," _ "," _ "," _ "," _ "," _ "," _ "," _ "," _ "," _ "," _ "," _ ",null," _ "," _ "," _ "," _ "," _ ",null," _ "," _ "," _ "," _ ",null,2,22,"Finance","Finance and Administration",null,null,900,13280,0,0,0,0,0,0,0,"_","_","_","_"]
["D0001/IZ00066/F0001/X049/R0374/001/46","D0001/IZ00066/F0001/X049/R0374/001/46",372,367,"Gains and Losses:Reversal of Impairment Loss:Property, Plant and Equipment:Computer Equipment",2300,"Depreciation & asset impairment","2300-003","Capital asset impairment",2303,"Capital asset impairment",1200,"Finance and administration",1204,"Finance","_"," _"," _","D","IE"," _ "," _ "," _ "," _ "," _ "," _ ","_","_"," _ "," _ "," _ "," _ "," _ "," _ "," _ "," _ ",null," _ "," _ "," _ "," _ ",null,null,null," _ "," _ "," _ "," _ "," _ "," _ "," _ "," _ "," _ "," _ "," _ ",null," _ "," _ "," _ "," _ "," _ ",null," _ "," _ "," _ "," _ ",null,2,22,"Finance","Finance and Administration",null,null,0,0,0,0,0,0,0,0,0,"_","_","_","_"]
["D0001/IZ00067/F0001/X049/R0374/001/46","D0001/IZ00067/F0001/X049/R0374/001/46",373,368,"Gains and Losses:Reversal of Impairment Loss:Property, Plant and Equipment:Furniture and Office Equipment",2300,"Depreciation & asset impairment","2300-003","Capital asset impairment",2303,"Capital asset impairment",1200,"Finance and administration",1204,"Finance","_"," _"," _","D","IE"," _ "," _ "," _ "," _ "," _ "," _ ","_","_"," _ "," _ "," _ "," _ "," _ "," _ "," _ "," _ ",null," _ "," _ "," _ "," _ ",null,null,null," _ "," _ "," _ "," _ "," _ "," _ "," _ "," _ "," _ "," _ "," _ ",null," _ "," _ "," _ "," _ "," _ ",null," _ "," _ "," _ "," _ ",null,2,22,"Finance","Finance and Administration",null,null,0,0,0,0,0,0,0,0,0,"_","_","_","_"]
["D0001/IZ00078/F0001/X049/R0374/001/46","D0001/IZ00078/F0001/X049/R0374/001/46",374,369,"Gains and Losses:Reversal of Impairment Loss:Property, Plant and Equipment:Machinery and Equipment",2300,"Depreciation & asset impairment","2300-003","Capital asset impairment",2303,"Capital asset impairment",1200,"Finance and administration",1204,"Finance","_"," _"," _","D","IE"," _ "," _ "," _ "," _ "," _ "," _ ","_","_"," _ "," _ "," _ "," _ "," _ "," _ "," _ "," _ ",null," _ "," _ "," _ "," _ ",null,null,null," _ "," _ "," _ "," _ "," _ "," _ "," _ "," _ "," _ "," _ "," _ ",null," _ "," _ "," _ "," _ "," _ ",null," _ "," _ "," _ "," _ ",null,2,22,"Finance","Finance and Administration",null,null,0,0,0,0,0,0,0,0,0,"_","_","_","_"]
["D0001/IZ00065/F0001/X049/R0374/001/46","D0001/IZ00065/F0001/X049/R0374/001/46",375,370,"Gains and Losses:Reversal of Impairment Loss:Property, Plant and Equipment:Other Assets",2300,"Depreciation & asset impairment","2300-003","Capital asset impairment",2303,"Capital asset impairment",1200,"Finance and administration",1204,"Finance","_"," _"," _","D","IE"," _ "," _ "," _ "," _ "," _ "," _ ","_","_"," _ "," _ "," _ "," _ "," _ "," _ "," _ "," _ ",null," _ "," _ "," _ "," _ ",null,null,null," _ "," _ "," _ "," _ "," _ "," _ "," _ "," _ "," _ "," _ "," _ ",null," _ "," _ "," _ "," _ "," _ ",null," _ "," _ "," _ "," _ ",null,2,22,"Finance","Finance and Administration",null,null,0,0,0,0,0,0,0,0,0,"_","_","_","_"]
["D0001/IZ00079/F0001/X049/R0374/001/46","D0001/IZ00079/F0001/X049/R0374/001/46",376,371,"Gains and Losses:Reversal of Impairment Loss:Property, Plant and Equipment:Transport Assets",2300,"Depreciation & asset impairment","2300-003","Capital asset impairment",2303,"Capital asset impairment",1200,"Finance and administration",1204,"Finance","_"," _"," _","D","IE"," _ "," _ "," _ "," _ "," _ "," _ ","_","_"," _ "," _ "," _ "," _ "," _ "," _ "," _ "," _ ",null," _ "," _ "," _ "," _ ",null,null,null," _ "," _ "," _ "," _ "," _ "," _ "," _ "," _ "," _ "," _ "," _ ",null," _ "," _ "," _ "," _ "," _ ",null," _ "," _ "," _ "," _ ",null,2,22,"Finance","Finance and Administration",null,null,0,0,0,0,0,0,0,0,0,"_","_","_","_"]
["D0001/IR01068/F0001/X046/R0374/001/44","D0001/IR01068/F0001/X046/R0374/001/44",377,350,"Revenue:Exchange Revenue:Interest, Dividend and Rent on Land:Interest:Receivables:Property Rental Debtors",1000,"Interest earned - outstanding debtors",1000,"Interest earned - outstanding debtors"," _ "," _ ",1200,"Finance and administration",1201,"Administrative and Corporate Support","_"," _"," _","D","IR"," _ "," _ "," _ "," _ "," _ "," _ ","_","_"," _ "," _ "," _ "," _ "," _ "," _ "," _ "," _ ",null," _ "," _ "," _ "," _ ",null,null,null," _ "," _ "," _ "," _ "," _ "," _ "," _ "," _ "," _ "," _ "," _ ",null," _ "," _ "," _ "," _ "," _ ",null," _ "," _ "," _ "," _ ",null,2,21,"Administrative and Corporate Support","Finance and Administration",null,null,290931,223809,0,0,0,0,0,0,304986,"_","_","_","_"]
["D0001/IR006912/F13576/X046/R0374/001/44","D0001/IR006912/F13576/X046/R0374/001/44",378,351,"Revenue:Non-exchange Revenue:Transfers and Subsidies:Operational:Monetary Allocations:Provincial Government:Free State:Capacity Building and Other:Specify (Add grant description)",1500,"Transfers and subsidies",1500,"Transfers and subsidies"," _ "," _ ",1200,"Finance and administration",1201,"Administrative and Corporate Support","_"," _"," _","D","IR"," _ "," _ "," _ "," _ "," _ "," _ ","_","_"," _ "," _ "," _ "," _ "," _ "," _ "," _ "," _ ",null," _ "," _ "," _ "," _ ",null,null,null," _ "," _ "," _ "," _ "," _ "," _ "," _ "," _ "," _ "," _ "," _ ",null," _ "," _ "," _ "," _ "," _ ",null," _ "," _ "," _ "," _ ",null,2,21,"Administrative and Corporate Support","Finance and Administration",null,null,5448900,6811125,0,-4768000,-4768000,-1896000,-2880800,-2880800,3152189,"_","_","_","_"]
["D0001/IR02344/F0041/X046/R0374/001/44","D0001/IR02344/F0041/X046/R0374/001/44",379,352,"Revenue:Non-exchange Revenue:Transfers and Subsidies:Operational:Monetary Allocations:National Revenue Fund:Equitable Share",1500,"Transfers and subsidies",1500,"Transfers and subsidies"," _ "," _ ",1200,"Finance and administration",1201,"Administrative and Corporate Support","_"," _"," _","D","IR"," _ "," _ "," _ "," _ "," _ "," _ ","_","_"," _ "," _ "," _ "," _ "," _ "," _ "," _ "," _ ",null," _ "," _ "," _ "," _ ",null,null,null," _ "," _ "," _ "," _ "," _ "," _ "," _ "," _ "," _ "," _ "," _ ",null," _ "," _ "," _ "," _ "," _ ",null," _ "," _ "," _ "," _ ",null,2,21,"Administrative and Corporate Support","Finance and Administration",null,null,14828500,13807512,0,-16800230,-17249980,-17249980,-9782000,-10356800,16068465,"_","_","_","_"]
["D0001/IR03195/F2766/X046/R0374/001/44","D0001/IR03195/F2766/X046/R0374/001/44",380,353,"Revenue:Non-exchange Revenue:Transfers and Subsidies:Operational:Monetary Allocations:Departmental Agencies and Accounts:National Departmental Agencies:Local Government, Water and Related Service SETA",1500,"Transfers and subsidies",1500,"Transfers and subsidies"," _ "," _ ",1200,"Finance and administration",1201,"Administrative and Corporate Support","_"," _"," _","D","IR"," _ "," _ "," _ "," _ "," _ "," _ ","_","_"," _ "," _ "," _ "," _ "," _ "," _ "," _ "," _ ",null," _ "," _ "," _ "," _ ",null,null,null," _ "," _ "," _ "," _ "," _ "," _ "," _ "," _ "," _ "," _ "," _ ",null," _ "," _ "," _ "," _ "," _ ",null," _ "," _ "," _ "," _ ",null,2,21,"Administrative and Corporate Support","Finance and Administration",null,null,92723,91238,0,-98000,-98000,-98000,-98000,-102000,57976,"_","_","_","_"]
["D0001/IR01079/F0001/X046/R0374/001/44","D0001/IR01079/F0001/X046/R0374/001/44",381,354,"Revenue:Exchange Revenue:Interest, Dividend and Rent on Land:Rent on Land:Prospecting, Mining, Royalties:Surface Rental",1600,"Other revenue",1600,"Other Revenue"," _ "," _ ",1200,"Finance and administration",1201,"Administrative and Corporate Support","_"," _"," _","D","IR"," _ "," _ "," _ "," _ "," _ "," _ ","_","_"," _ "," _ "," _ "," _ "," _ "," _ "," _ "," _ ",null," _ "," _ "," _ "," _ ",null,null,null," _ "," _ "," _ "," _ "," _ "," _ "," _ "," _ "," _ "," _ "," _ ",null," _ "," _ "," _ "," _ "," _ ",null," _ "," _ "," _ "," _ ",null,2,21,"Administrative and Corporate Support","Finance and Administration",null,null,543267,0,0,0,0,0,0,0,553266,"_","_","_","_"]
["D0001/IR01425/F0001/X046/R0374/001/44","D0001/IR01425/F0001/X046/R0374/001/44",382,355,"Revenue:Exchange Revenue:Operational Revenue:Staff and Councillors Recoveries",1600,"Other revenue",1610,"Staff Recoveries"," _ "," _ ",1200,"Finance and administration",1201,"Administrative and Corporate Support","_"," _"," _","D","IR"," _ "," _ "," _ "," _ "," _ "," _ ","_","_"," _ "," _ "," _ "," _ "," _ "," _ "," _ "," _ ",null," _ "," _ "," _ "," _ ",null,null,null," _ "," _ "," _ "," _ "," _ "," _ "," _ "," _ "," _ "," _ "," _ ",null," _ "," _ "," _ "," _ "," _ ",null," _ "," _ "," _ "," _ ",null,2,21,"Administrative and Corporate Support","Finance and Administration",null,null,0,150,0,0,0,0,0,0,0,"_","_","_","_"]
["D0001/IR01157/F0001/X046/R0374/001/44","D0001/IR01157/F0001/X046/R0374/001/44",383,356,"Revenue:Exchange Revenue:Rental from Fixed Assets:Market Related:Property Plant and Equipment:Ad-hoc rentals:Other Assets",800,"Rental of facilities and equipment",800,"Rental of facilities and equipment"," _ "," _ ",1200,"Finance and administration",1201,"Administrative and Corporate Support","_"," _"," _","D","IR"," _ "," _ "," _ "," _ "," _ "," _ ","_","_"," _ "," _ "," _ "," _ "," _ "," _ "," _ "," _ ",null," _ "," _ "," _ "," _ ",null,null,null," _ "," _ "," _ "," _ "," _ "," _ "," _ "," _ "," _ "," _ "," _ ",null," _ "," _ "," _ "," _ "," _ ",null," _ "," _ "," _ "," _ ",null,2,21,"Administrative and Corporate Support","Finance and Administration",null,null,0,0,0,0,0,-290000,0,0,0,"_","_","_","_"]
["D0001/IA06305/F0001/X049/R0374/001/46","D0001/IA06305/F0001/X049/R0374/001/46",384,372,"Assets:Non-current Assets:Property, Plant and Equipment:Cost Model:Machinery and Equipment:In-use:Accumulated Depreciation:Opening Balance"," _"," _"," _ "," _ "," _ "," _ ",1200,"Finance and administration",1204,"Finance","_"," _"," _","D","IA",240," Property, plant and equipment",240,"Property, plant and equipment"," _ "," _ ","_","_"," _ "," _ "," _ "," _ ",1510,"Machinery and Equipment",1510,"Machinery and Equipment",null,243,"Less: Accumulated depreciation",243,"Less: Accumulated depreciation",null,null,null," _ "," _ "," _ "," _ "," _ "," _ "," _ "," _ "," _ "," _ "," _ ",null," _ "," _ "," _ "," _ "," _ ",null," _ "," _ "," _ "," _ ",null,2,22,"Finance","Finance and Administration",null,null,-2126410,-1911146,0,0,0,0,0,0,-2126410,"_","_","_","_"]
["D0001/IA05106/F0001/X049/R0374/001/46","D0001/IA05106/F0001/X049/R0374/001/46",385,373,"Assets:Non-current Assets:Intangible Assets:Cost:Other:In-use:Computer Software:Opening Balance"," _"," _"," _ "," _ "," _ "," _ ",1200,"Finance and administration",1204,"Finance","_"," _"," _","D","IA",270," Intangible",270,"Intangible"," _ "," _ ","_","_"," _ "," _ "," _ "," _ ",1370,"Intangible Assets",1370,"Intangible Assets",null," _ "," _ "," _ "," _ ",null,null,null," _ "," _ "," _ "," _ "," _ "," _ "," _ "," _ "," _ "," _ "," _ ",null," _ "," _ "," _ "," _ "," _ ",null," _ "," _ "," _ "," _ ",null,2,22,"Finance","Finance and Administration",null,null,2233584,1212477,0,0,1021107,1021107,1021107,1021107,2233584,"_","_","_","_"]
["D0001/IA06319/F0001/X049/R0374/001/46","D0001/IA06319/F0001/X049/R0374/001/46",386,374,"Assets:Non-current Assets:Property, Plant and Equipment:Cost Model:Machinery and Equipment:In-use:Cost:Opening Balance"," _"," _"," _ "," _ "," _ "," _ ",1200,"Finance and administration",1204,"Finance","_"," _"," _","D","IA",240," Property, plant and equipment",240,"Property, plant and equipment"," _ "," _ ","_","_"," _ "," _ "," _ "," _ ",1510,"Machinery and Equipment",1510,"Machinery and Equipment",null,241,"PPE at cost/valuation (excl. finance leases)",241,"PPE at cost/valuation (excl. finance leases)",null,null,null," _ "," _ "," _ "," _ "," _ "," _ "," _ "," _ "," _ "," _ "," _ ",null," _ "," _ "," _ "," _ "," _ ",null," _ "," _ "," _ "," _ ",null,2,22,"Finance","Finance and Administration",null,null,2408872,2107870,0,0,11542822,194160,201732,210205,2408872,"_","_","_","_"]
["D0001/IA01359/F0001/X049/R0374/001/46","D0001/IA01359/F0001/X049/R0374/001/46",387,375,"Assets:Non-current Assets:Property, Plant and Equipment:Cost Model:Transport Assets:Owned and In-use:Accumulated Depreciation:Opening Balance"," _"," _"," _ "," _ "," _ "," _ ",1200,"Finance and administration",1204,"Finance","_"," _"," _","D","IA",240," Property, plant and equipment",240,"Property, plant and equipment"," _ "," _ ","_","_"," _ "," _ "," _ "," _ ",1530,"Transport Assets",1530,"Transport Assets",null,243,"Less: Accumulated depreciation",243,"Less: Accumulated depreciation",null,null,null," _ "," _ "," _ "," _ "," _ "," _ "," _ "," _ "," _ "," _ "," _ ",null," _ "," _ "," _ "," _ "," _ ",null," _ "," _ "," _ "," _ ",null,2,22,"Finance","Finance and Administration",null,null,-1093676,-803143,0,0,0,0,0,0,-1093676,"_","_","_","_"]
["D0001/IA05095/F0001/X049/R0374/001/46","D0001/IA05095/F0001/X049/R0374/001/46",388,376,"Assets:Non-current Assets:Intangible Assets:Cost:Other:In-use:Computer Software Accumulated Amortisation:Opening Balance"," _"," _"," _ "," _ "," _ "," _ ",1200,"Finance and administration",1204,"Finance","_"," _"," _","D","IA",270," Intangible",270,"Intangible"," _ "," _ ","_","_"," _ "," _ "," _ "," _ ",1370,"Intangible Assets",1370,"Intangible Assets",null," _ "," _ "," _ "," _ ",null,null,null," _ "," _ "," _ "," _ "," _ "," _ "," _ "," _ "," _ "," _ "," _ ",null," _ "," _ "," _ "," _ "," _ ",null," _ "," _ "," _ "," _ ",null,2,22,"Finance","Finance and Administration",null,null,-1212477,-807718,0,0,0,0,0,0,-1212477,"_","_","_","_"]
["D0001/IA01373/F0001/X049/R0374/001/46","D0001/IA01373/F0001/X049/R0374/001/46",389,377,"Assets:Non-current Assets:Property, Plant and Equipment:Cost Model:Transport Assets:Owned and In-use:Cost:Opening Balance"," _"," _"," _ "," _ "," _ "," _ ",1200,"Finance and administration",1204,"Finance","_"," _"," _","D","IA",240," Property, plant and equipment",240,"Property, plant and equipment"," _ "," _ ","_","_"," _ "," _ "," _ "," _ ",1530,"Transport Assets",1530,"Transport Assets",null,241,"PPE at cost/valuation (excl. finance leases)",241,"PPE at cost/valuation (excl. finance leases)",null,null,null," _ "," _ "," _ "," _ "," _ "," _ "," _ "," _ "," _ "," _ "," _ ",null," _ "," _ "," _ "," _ "," _ ",null," _ "," _ "," _ "," _ ",null,2,22,"Finance","Finance and Administration",null,null,2033729,2033729,0,0,0,649520,674851,703195,2033729,"_","_","_","_"]
["D0001/IA06259/F0001/X049/R0374/001/46","D0001/IA06259/F0001/X049/R0374/001/46",390,378,"Assets:Non-current Assets:Property, Plant and Equipment:Cost Model:Furniture and Office Equipment:In-use:Cost:Opening Balance"," _"," _"," _ "," _ "," _ "," _ ",1200,"Finance and administration",1204,"Finance","_"," _"," _","D","IA",240," Property, plant and equipment",240,"Property, plant and equipment"," _ "," _ ","_","_"," _ "," _ "," _ "," _ ",1490,"Furniture and Office Equipment",1490,"Furniture and Office Equipment",null,241,"PPE at cost/valuation (excl. finance leases)",241,"PPE at cost/valuation (excl. finance leases)",null,null,null," _ "," _ "," _ "," _ "," _ "," _ "," _ "," _ "," _ "," _ "," _ ",null," _ "," _ "," _ "," _ "," _ ",null," _ "," _ "," _ "," _ ",null,2,22,"Finance","Finance and Administration",null,null,6151153,6151153,0,0,0,575558,598005,623121,6151153,"_","_","_","_"]
["D0001/IA06185/F0001/X049/R0374/001/46","D0001/IA06185/F0001/X049/R0374/001/46",391,379,"Assets:Non-current Assets:Property, Plant and Equipment:Cost Model:Computer Equipment:In-use:Accumulated Depreciation:Opening Balance"," _"," _"," _ "," _ "," _ "," _ ",1200,"Finance and administration",1204,"Finance","_"," _"," _","D","IA",240," Property, plant and equipment",240,"Property, plant and equipment"," _ "," _ ","_","_"," _ "," _ "," _ "," _ ",1470,"Computer Equipment",1470,"Computer Equipment",null,243,"Less: Accumulated depreciation",243,"Less: Accumulated depreciation",null,null,null," _ "," _ "," _ "," _ "," _ "," _ "," _ "," _ "," _ "," _ "," _ ",null," _ "," _ "," _ "," _ "," _ ",null," _ "," _ "," _ "," _ ",null,2,22,"Finance","Finance and Administration",null,null,-1732922,-1433154,0,0,0,0,0,0,-1732922,"_","_","_","_"]
["D0001/IA00084/F0001/X049/R0374/001/46","D0001/IA00084/F0001/X049/R0374/001/46",392,380,"Assets:Non-current Assets:Property, Plant and Equipment:Cost Model:Other Assets:Accumulated Depreciation:Opening Balance"," _"," _"," _ "," _ "," _ "," _ ",1200,"Finance and administration",1204,"Finance","_"," _"," _","D","IA",240," Property, plant and equipment",240,"Property, plant and equipment"," _ "," _ ","_","_"," _ "," _ "," _ "," _ ",1180,"Other Assets",1180,"Other Assets",null,243,"Less: Accumulated depreciation",243,"Less: Accumulated depreciation",null,null,null," _ "," _ "," _ "," _ "," _ "," _ "," _ "," _ "," _ "," _ "," _ ",null," _ "," _ "," _ "," _ "," _ ",null," _ "," _ "," _ "," _ ",null,2,22,"Finance","Finance and Administration",null,null,-8138202,-7579006,0,0,0,0,0,0,-8138202,"_","_","_","_"]
["D0001/IA00098/F0001/X049/R0374/001/46","D0001/IA00098/F0001/X049/R0374/001/46",393,381,"Assets:Non-current Assets:Property, Plant and Equipment:Cost Model:Other Assets:Cost:Opening Balance"," _"," _"," _ "," _ "," _ "," _ ",1200,"Finance and administration",1204,"Finance","_"," _"," _","D","IA",240," Property, plant and equipment",240,"Property, plant and equipment"," _ "," _ ","_","_"," _ "," _ "," _ "," _ ",1180,"Other Assets",1180,"Other Assets",null,241,"PPE at cost/valuation (excl. finance leases)",241,"PPE at cost/valuation (excl. finance leases)",null,null,null," _ "," _ "," _ "," _ "," _ "," _ "," _ "," _ "," _ "," _ "," _ ",null," _ "," _ "," _ "," _ "," _ ",null," _ "," _ "," _ "," _ ",null,2,22,"Finance","Finance and Administration",null,null,16748905,16748905,0,0,0,8078497,8393558,8746088,16748905,"_","_","_","_"]
["D0001/IA06199/F0001/X049/R0374/001/46","D0001/IA06199/F0001/X049/R0374/001/46",394,382,"Assets:Non-current Assets:Property, Plant and Equipment:Cost Model:Computer Equipment:In-use:Cost:Opening Balance"," _"," _"," _ "," _ "," _ "," _ ",1200,"Finance and administration",1204,"Finance","_"," _"," _","D","IA",240," Property, plant and equipment",240,"Property, plant and equipment"," _ "," _ ","_","_"," _ "," _ "," _ "," _ ",1470,"Computer Equipment",1470,"Computer Equipment",null,241,"PPE at cost/valuation (excl. finance leases)",241,"PPE at cost/valuation (excl. finance leases)",null,null,null," _ "," _ "," _ "," _ "," _ "," _ "," _ "," _ "," _ "," _ "," _ ",null," _ "," _ "," _ "," _ "," _ ",null," _ "," _ "," _ "," _ ",null,2,22,"Finance","Finance and Administration",null,null,1546648,1847650,0,0,0,354576,368404,383877,1546648,"_","_","_","_"]
["D0001/IA06245/F0001/X049/R0374/001/46","D0001/IA06245/F0001/X049/R0374/001/46",395,383,"Assets:Non-current Assets:Property, Plant and Equipment:Cost Model:Furniture and Office Equipment:In-use:Accumulated Depreciation:Opening Balance"," _"," _"," _ "," _ "," _ "," _ ",1200,"Finance and administration",1204,"Finance","_"," _"," _","D","IA",240," Property, plant and equipment",240,"Property, plant and equipment"," _ "," _ ","_","_"," _ "," _ "," _ "," _ ",1490,"Furniture and Office Equipment",1490,"Furniture and Office Equipment",null,243,"Less: Accumulated depreciation",243,"Less: Accumulated depreciation",null,null,null," _ "," _ "," _ "," _ "," _ "," _ "," _ "," _ "," _ "," _ "," _ ",null," _ "," _ "," _ "," _ "," _ ",null," _ "," _ "," _ "," _ ",null,2,22,"Finance","Finance and Administration",null,null,-5319427,-4979611,0,0,0,0,0,0,-5319427,"_","_","_","_"]
["D0001/IA05808/F0001/X049/R0374/001/46","D0001/IA05808/F0001/X049/R0374/001/46",396,384,"Assets:Non-current Assets:Property, Plant and Equipment:Leased Assets:Furniture and Office Equipment:In-use:Cost:Opening Balance"," _"," _"," _ "," _ "," _ "," _ ",1200,"Finance and administration",1204,"Finance","_"," _"," _","D","IA",240," Property, plant and equipment",240,"Property, plant and equipment"," _ "," _ ","_","_"," _ "," _ "," _ "," _ ",1490,"Furniture and Office Equipment",1490,"Furniture and Office Equipment",null,242,"Leases recognised as PPE",242,"Leases recognised as PPE",null,null,null," _ "," _ "," _ "," _ "," _ "," _ "," _ "," _ "," _ "," _ "," _ ",null," _ "," _ "," _ "," _ "," _ ",null," _ "," _ "," _ "," _ ",null,2,22,"Finance","Finance and Administration",null,null,925659,925659,0,0,0,0,0,0,925659,"_","_","_","_"]
["D0001/IA06605/F0001/X049/R0374/001/46","D0001/IA06605/F0001/X049/R0374/001/46",397,385,"Assets:Non-current Assets:Property, Plant and Equipment:Leased Assets:Furniture and Office Equipment:In-use:Accumulated Depreciation:Opening Balance"," _"," _"," _ "," _ "," _ "," _ ",1200,"Finance and administration",1204,"Finance","_"," _"," _","D","IA",240," Property, plant and equipment",240,"Property, plant and equipment"," _ "," _ ","_","_"," _ "," _ "," _ "," _ ",1490,"Furniture and Office Equipment",1490,"Furniture and Office Equipment",null,243,"Less: Accumulated depreciation",243,"Less: Accumulated depreciation",null,null,null," _ "," _ "," _ "," _ "," _ "," _ "," _ "," _ "," _ "," _ "," _ ",null," _ "," _ "," _ "," _ "," _ ",null," _ "," _ "," _ "," _ ",null,2,22,"Finance","Finance and Administration",null,null,-179990,-179990,0,0,0,0,0,0,-179990,"_","_","_","_"]
["D0001/IL53921/F0001/X049/R0374/001/46","D0001/IL53921/F0001/X049/R0374/001/46",398,386,"Liabilities:Current Liabilities:Trade and Other Payable Exchange Transactions:Leave Accrual:Opening Balance"," _"," _"," _ "," _ "," _ "," _ ",1200,"Finance and administration",1204,"Finance","_"," _"," _","D","IL",360," Trade and other payables",360,"Trade and other payables"," _ "," _ ","_","_"," _ "," _ "," _ "," _ "," _ "," _ "," _ "," _ ",null,361,"Trade Payables",361,"Trade Payables",null,null,null," _ "," _ "," _ "," _ "," _ "," _ "," _ "," _ "," _ "," _ "," _ ",null," _ "," _ "," _ "," _ "," _ ",null," _ "," _ "," _ "," _ ",null,2,22,"Finance","Finance and Administration",null,null,3801856,3316263,0,0,0,0,0,0,3801856,"_","_","_","_"]
["D0001/IL53833/F0001/X049/R0374/001/46","D0001/IL53833/F0001/X049/R0374/001/46",399,387,"Liabilities:Current Liabilities:Financial Liabilities:Current portion of Finance Lease Liabilities:Specify (Financial Institution and Account Number):Opening Balance"," _"," _"," _ "," _ "," _ "," _ ",1200,"Finance and administration",1204,"Finance","_"," _"," _","D","IL",340," Borrowing",340,"Borrowing"," _ "," _ ","_","_"," _ "," _ "," _ "," _ "," _ "," _ "," _ "," _ ",null,342,"Current portion of long-term liabilities",342,"Current portion of long-term liabilities",null,null,null," _ "," _ "," _ "," _ "," _ "," _ "," _ "," _ "," _ "," _ "," _ ",null," _ "," _ "," _ "," _ "," _ ",null," _ "," _ "," _ "," _ ",null,2,22,"Finance","Finance and Administration",null,null,232688,0,0,0,0,0,0,0,232688,"_","_","_","_"]
["D0001/IL53774/F0001/X049/R0374/001/46","D0001/IL53774/F0001/X049/R0374/001/46",400,388,"Liabilities:Current Liabilities:Trade and Other Payable Exchange Transactions:Auditor-General of South Africa:Opening Balance"," _"," _"," _ "," _ "," _ "," _ ",1200,"Finance and administration",1204,"Finance","_"," _"," _","D","IL",360," Trade and other payables",360,"Trade and other payables"," _ "," _ ","_","_"," _ "," _ "," _ "," _ "," _ "," _ "," _ "," _ ",null,361,"Trade Payables",361,"Trade Payables",null,null,null," _ "," _ "," _ "," _ "," _ "," _ "," _ "," _ "," _ "," _ "," _ ",null," _ "," _ "," _ "," _ "," _ ",null," _ "," _ "," _ "," _ ",null,2,22,"Finance","Finance and Administration",null,null,1048186,0,0,0,0,0,0,0,1048186,"_","_","_","_"]
["D0001/IL43218/F0001/X049/R0374/001/46","D0001/IL43218/F0001/X049/R0374/001/46",401,389,"Liabilities:Current Liabilities:Trade and Other Payable Exchange Transactions:Advance Payments:Opening Balance"," _"," _"," _ "," _ "," _ "," _ ",1200,"Finance and administration",1204,"Finance","_"," _"," _","D","IL",360," Trade and other payables",360,"Trade and other payables"," _ "," _ ","_","_"," _ "," _ "," _ "," _ "," _ "," _ "," _ "," _ ",null,361,"Trade Payables",361,"Trade Payables",null,null,null," _ "," _ "," _ "," _ "," _ "," _ "," _ "," _ "," _ "," _ "," _ ",null," _ "," _ "," _ "," _ "," _ ",null," _ "," _ "," _ "," _ ",null,2,22,"Finance","Finance and Administration",null,null,413,189,0,0,0,0,0,0,413,"_","_","_","_"]
["D0001/IL65555/F0001/X049/R0374/001/46","D0001/IL65555/F0001/X049/R0374/001/46",402,390,"Liabilities:Non-current Liabilities:Financial Liabilities:Operating Lease Liability:Specify:Repayments"," _"," _"," _ "," _ "," _ "," _ ",1200,"Finance and administration",1204,"Finance","_"," _"," _","D","IL",400,"  Financial liabilities",400,"Financial liabilities"," _ "," _ ","_","_"," _ "," _ "," _ "," _ "," _ "," _ "," _ "," _ ",null,402,"Finance leases (including PPP asset element)",402,"Finance leases (including PPP asset element)",null,null,null," _ "," _ "," _ "," _ "," _ "," _ "," _ "," _ "," _ "," _ "," _ ",null," _ "," _ "," _ "," _ "," _ ",null," _ "," _ "," _ "," _ ",null,2,22,"Finance","Finance and Administration",null,null,104910,545637,0,0,0,0,0,0,104910,"_","_","_","_"]
["D0001/IL53934/F0001/X049/R0374/001/46","D0001/IL53934/F0001/X049/R0374/001/46",403,391,"Liabilities:Current Liabilities:Trade and Other Payable Exchange Transactions:Unallocated Deposits:Opening Balance"," _"," _"," _ "," _ "," _ "," _ ",1200,"Finance and administration",1204,"Finance","_"," _"," _","D","IL",360," Trade and other payables",360,"Trade and other payables"," _ "," _ ","_","_"," _ "," _ "," _ "," _ "," _ "," _ "," _ "," _ ",null,361,"Trade Payables",361,"Trade Payables",null,null,null," _ "," _ "," _ "," _ "," _ "," _ "," _ "," _ "," _ "," _ "," _ ",null," _ "," _ "," _ "," _ "," _ ",null," _ "," _ "," _ "," _ ",null,2,22,"Finance","Finance and Administration",null,null,60230,526644,0,0,0,0,0,0,60230,"_","_","_","_"]
["D0001/IL53713/F0001/X049/R0374/001/46","D0001/IL53713/F0001/X049/R0374/001/46",404,392,"Liabilities:Current Liabilities:Trade and Other Payable Exchange Transactions:Bonus:Opening Balance"," _"," _"," _ "," _ "," _ "," _ ",1200,"Finance and administration",1204,"Finance","_"," _"," _","D","IL",360," Trade and other payables",360,"Trade and other payables"," _ "," _ ","_","_"," _ "," _ "," _ "," _ "," _ "," _ "," _ "," _ ",null,361,"Trade Payables",361,"Trade Payables",null,null,null," _ "," _ "," _ "," _ "," _ "," _ "," _ "," _ "," _ "," _ "," _ ",null," _ "," _ "," _ "," _ "," _ ",null," _ "," _ "," _ "," _ ",null,2,22,"Finance","Finance and Administration",null,null,1005528,1009979,0,0,0,0,0,0,1005528,"_","_","_","_"]
["D0001/IL53739/F0001/X049/R0374/001/46","D0001/IL53739/F0001/X049/R0374/001/46",405,393,"Liabilities:Current Liabilities:Trade and Other Payable Exchange Transactions:Compensation Commission (COID):Opening Balance"," _"," _"," _ "," _ "," _ "," _ ",1200,"Finance and administration",1204,"Finance","_"," _"," _","D","IL",360," Trade and other payables",360,"Trade and other payables"," _ "," _ ","_","_"," _ "," _ "," _ "," _ "," _ "," _ "," _ "," _ ",null,361,"Trade Payables",361,"Trade Payables",null,null,null," _ "," _ "," _ "," _ "," _ "," _ "," _ "," _ "," _ "," _ "," _ ",null," _ "," _ "," _ "," _ "," _ ",null," _ "," _ "," _ "," _ ",null,2,22,"Finance","Finance and Administration",null,null,2293114,2101612,0,0,0,0,0,0,2293114,"_","_","_","_"]
["D0001/IA02356/F0001/X049/R0374/001/46","D0001/IA02356/F0001/X049/R0374/001/46",406,394,"Assets:Current Assets:Trade and other Receivables from Exchange Transactions:Trading Service and Customer Service Debtors:Property Rental Debtors:Monthly Billing"," _"," _"," _ "," _ "," _ "," _ ",1200,"Finance and administration",1204,"Finance","_"," _"," _","D","IA",140,"Consumer debtors",140,"Consumer debtors"," _ "," _ ","_","_"," _ "," _ "," _ "," _ "," _ "," _ "," _ "," _ ",null,141,"Consumer debtors",141,"Consumer debtors",null,null,null," _ "," _ "," _ "," _ "," _ "," _ "," _ "," _ "," _ "," _ "," _ ",null," _ "," _ "," _ "," _ "," _ ",null," _ "," _ "," _ "," _ ",null,2,22,"Finance","Finance and Administration",null,null,5028593,2570936,0,0,0,0,0,0,4894868,"_","_","_","_"]
["D0001/IA10214/F0001/X049/R0374/001/46","D0001/IA10214/F0001/X049/R0374/001/46",407,395,"Assets:Current Assets:Cash and Cash Equivalents:Cash on Hand:Petty Cash:Opening Balance"," _"," _"," _ "," _ "," _ "," _ ",1200,"Finance and administration",1204,"Finance","_"," _"," _","D","IA",120,"Cash",120,"Cash"," _ "," _ ","_","_"," _ "," _ "," _ "," _ "," _ "," _ "," _ "," _ ",null," _ "," _ "," _ "," _ ",null,null,null," _ "," _ "," _ "," _ "," _ "," _ "," _ "," _ "," _ "," _ "," _ ",null," _ "," _ "," _ "," _ "," _ ",null," _ "," _ "," _ "," _ ",null,2,22,"Finance","Finance and Administration",null,null,363,0,0,0,0,0,0,0,84,"_","_","_","_"]
["D0001/IA02282/F0001/X049/R0374/001/46","D0001/IA02282/F0001/X049/R0374/001/46",408,396,"Assets:Current Assets:Trade and other Receivables from Exchange Transactions:Prepayments and Advances:Recoveries from Staff:Opening Balance"," _"," _"," _ "," _ "," _ "," _ ",1200,"Finance and administration",1204,"Finance","_"," _"," _","D","IA",150,"Other debtors",150,"Other debtors"," _ "," _ ","_","_"," _ "," _ "," _ "," _ "," _ "," _ "," _ "," _ ",null," _ "," _ "," _ "," _ ",null,null,null," _ "," _ "," _ "," _ "," _ "," _ "," _ "," _ "," _ "," _ "," _ ",null," _ "," _ "," _ "," _ "," _ ",null," _ "," _ "," _ "," _ ",null,2,22,"Finance","Finance and Administration",null,null,18233,427106,0,0,0,0,0,0,522697,"_","_","_","_"]
["D0001/IA02294/F0001/X049/R0374/001/46","D0001/IA02294/F0001/X049/R0374/001/46",409,397,"Assets:Current Assets:Trade and other Receivables from Exchange Transactions:Prepayments and Advances:Subscriptions:Opening Balance"," _"," _"," _ "," _ "," _ "," _ ",1200,"Finance and administration",1204,"Finance","_"," _"," _","D","IA",150,"Other debtors",150,"Other debtors"," _ "," _ ","_","_"," _ "," _ "," _ "," _ "," _ "," _ "," _ "," _ ",null," _ "," _ "," _ "," _ ",null,null,null," _ "," _ "," _ "," _ "," _ "," _ "," _ "," _ "," _ "," _ "," _ ",null," _ "," _ "," _ "," _ "," _ ",null," _ "," _ "," _ "," _ ",null,2,22,"Finance","Finance and Administration",null,null,0,26546,0,0,3935866,0,0,0,0,"_","_","_","_"]
["D0001/IA02270/F0001/X049/R0374/001/46","D0001/IA02270/F0001/X049/R0374/001/46",410,398,"Assets:Current Assets:Trade and other Receivables from Exchange Transactions:Prepayments and Advances:Interest:Opening Balance"," _"," _"," _ "," _ "," _ "," _ ",1200,"Finance and administration",1204,"Finance","_"," _"," _","D","IA",150,"Other debtors",150,"Other debtors"," _ "," _ ","_","_"," _ "," _ "," _ "," _ "," _ "," _ "," _ "," _ ",null," _ "," _ "," _ "," _ ",null,null,null," _ "," _ "," _ "," _ "," _ "," _ "," _ "," _ "," _ "," _ "," _ ",null," _ "," _ "," _ "," _ "," _ ",null," _ "," _ "," _ "," _ ",null,2,22,"Finance","Finance and Administration",null,null,46962,472,0,0,0,0,0,0,47231,"_","_","_","_"]
["D0001/IA02357/F0001/X049/R0374/001/46","D0001/IA02357/F0001/X049/R0374/001/46",411,399,"Assets:Current Assets:Trade and other Receivables from Exchange Transactions:Trading Service and Customer Service Debtors:Property Rental Debtors:Opening Balance"," _"," _"," _ "," _ "," _ "," _ ",1200,"Finance and administration",1204,"Finance","_"," _"," _","D","IA",140,"Consumer debtors",140,"Consumer debtors"," _ "," _ ","_","_"," _ "," _ "," _ "," _ "," _ "," _ "," _ "," _ ",null,141,"Consumer debtors",141,"Consumer debtors",null,null,null," _ "," _ "," _ "," _ "," _ "," _ "," _ "," _ "," _ "," _ "," _ ",null," _ "," _ "," _ "," _ "," _ ",null," _ "," _ "," _ "," _ ",null,2,22,"Finance","Finance and Administration",null,null,0,0,0,0,0,0,0,0,0,"_","_","_","_"]
["D0001/IA02798/F0001/X049/R0374/001/46","D0001/IA02798/F0001/X049/R0374/001/46",412,400,"Assets:Current Assets:Trade and other Receivables from Exchange Transactions:Trading Service and Customer Service Debtors:Property Rental Debtors:Impairment:Opening Balance"," _"," _"," _ "," _ "," _ "," _ ",1200,"Finance and administration",1204,"Finance","_"," _"," _","D","IA",140,"Consumer debtors",140,"Consumer debtors"," _ "," _ ","_","_"," _ "," _ "," _ "," _ "," _ "," _ "," _ "," _ ",null,145,"Balance at the beginning of the year",145,"Balance at the beginning of the year",null,null,null," _ "," _ "," _ "," _ "," _ "," _ "," _ "," _ "," _ "," _ "," _ ",null," _ "," _ "," _ "," _ "," _ ",null," _ "," _ "," _ "," _ ",null,2,22,"Finance","Finance and Administration",null,null,-2084804,-1588212,0,0,0,0,0,0,-2084804,"_","_","_","_"]
["D0001/IA02354/F0001/X049/R0374/001/46","D0001/IA02354/F0001/X049/R0374/001/46",413,401,"Assets:Current Assets:Trade and other Receivables from Exchange Transactions:Trading Service and Customer Service Debtors:Property Rental Debtors:Collections"," _"," _"," _ "," _ "," _ "," _ ",1200,"Finance and administration",1204,"Finance","_"," _"," _","D","IA",140,"Consumer debtors",140,"Consumer debtors"," _ "," _ ","_","_"," _ "," _ "," _ "," _ "," _ "," _ "," _ "," _ ",null,141,"Consumer debtors",141,"Consumer debtors",null,null,null," _ "," _ "," _ "," _ "," _ "," _ "," _ "," _ "," _ "," _ "," _ ",null," _ "," _ "," _ "," _ "," _ ",null," _ "," _ "," _ "," _ ",null,2,22,"Finance","Finance and Administration",null,null,916212,0,0,0,0,0,0,0,1911676,"_","_","_","_"]
["O0001/IE00060/F0041/X046/R0374/001/44","O0001/IE00060/F0041/X046/R0374/001/44",414,402,"Expenditure:Operational Cost:Travel and Subsistence:Domestic:Accommodation",2900,"Other expenditure","_","_",2904,"Other Expenditure",1200,"Finance and administration",1201,"Administrative and Corporate Support","_"," _"," _","O","IE"," _ "," _ "," _ "," _ "," _ "," _ ","_","_"," _ "," _ "," _ "," _ "," _ "," _ "," _ "," _ ",null," _ "," _ "," _ "," _ ",null,null,null," _ "," _ "," _ "," _ "," _ "," _ "," _ "," _ "," _ "," _ "," _ ",null," _ "," _ "," _ "," _ "," _ ",null," _ "," _ "," _ "," _ ",null,2,21,"Administrative and Corporate Support","Finance and Administration",null,null,77642,198401,0,60000,40000,20000,81795,86212,57151,"_","_","_","_"]
["O0001/IE00770/F0041/X046/R0374/001/44","O0001/IE00770/F0041/X046/R0374/001/44",415,403,"Expenditure:Operational Cost:Communication:Licences (Radio and Television)",2900,"Other expenditure","_","_",2904,"Other Expenditure",1200,"Finance and administration",1201,"Administrative and Corporate Support","_"," _"," _","O","IE"," _ "," _ "," _ "," _ "," _ "," _ ","_","_"," _ "," _ "," _ "," _ "," _ "," _ "," _ "," _ ",null," _ "," _ "," _ "," _ ",null,null,null," _ "," _ "," _ "," _ "," _ "," _ "," _ "," _ "," _ "," _ "," _ ",null," _ "," _ "," _ "," _ "," _ ",null," _ "," _ "," _ "," _ ",null,2,21,"Administrative and Corporate Support","Finance and Administration",null,null,9856,6725,0,0,58500,0,0,0,0,"_","_","_","_"]
["O0001/IE00771/F0041/X046/R0374/001/44","O0001/IE00771/F0041/X046/R0374/001/44",416,404,"Expenditure:Operational Cost:Communication:Postage/Stamps/Franking Machines",2900,"Other expenditure","_","_",2904,"Other Expenditure",1200,"Finance and administration",1201,"Administrative and Corporate Support","_"," _"," _","O","IE"," _ "," _ "," _ "," _ "," _ "," _ ","_","_"," _ "," _ "," _ "," _ "," _ "," _ "," _ "," _ ",null," _ "," _ "," _ "," _ ",null,null,null," _ "," _ "," _ "," _ "," _ "," _ "," _ "," _ "," _ "," _ "," _ ",null," _ "," _ "," _ "," _ "," _ ",null," _ "," _ "," _ "," _ ",null,2,21,"Administrative and Corporate Support","Finance and Administration",null,null,1848,1709,0,2500,2500,2000,2500,2500,41,"_","_","_","_"]
["O0001/IE00778/F0041/X046/R0374/001/44","O0001/IE00778/F0041/X046/R0374/001/44",417,405,"Expenditure:Operational Cost:Communication:Telephone, Fax, Telegraph and Telex",2900,"Other expenditure","_","_",2904,"Other Expenditure",1200,"Finance and administration",1201,"Administrative and Corporate Support","_"," _"," _","O","IE"," _ "," _ "," _ "," _ "," _ "," _ ","_","_"," _ "," _ "," _ "," _ "," _ "," _ "," _ "," _ ",null," _ "," _ "," _ "," _ ",null,null,null," _ "," _ "," _ "," _ "," _ "," _ "," _ "," _ "," _ "," _ "," _ ",null," _ "," _ "," _ "," _ "," _ ",null," _ "," _ "," _ "," _ ",null,2,21,"Administrative and Corporate Support","Finance and Administration",null,null,111449,139871,0,403600,405600,250000,449707,473991,119278,"_","_","_","_"]
["O0001/IE01581/F0041/X046/R0374/001/44","O0001/IE01581/F0041/X046/R0374/001/44",418,406,"Expenditure:Operational Cost:Travel and Subsistence:Domestic:Transport with Operator:Public Transport:Air Transport",2900,"Other expenditure","_","_",2904,"Other Expenditure",1200,"Finance and administration",1201,"Administrative and Corporate Support","_"," _"," _","O","IE"," _ "," _ "," _ "," _ "," _ "," _ ","_","_"," _ "," _ "," _ "," _ "," _ "," _ "," _ "," _ ",null," _ "," _ "," _ "," _ ",null,null,null," _ "," _ "," _ "," _ "," _ "," _ "," _ "," _ "," _ "," _ "," _ ",null," _ "," _ "," _ "," _ "," _ ",null," _ "," _ "," _ "," _ ",null,2,21,"Administrative and Corporate Support","Finance and Administration",null,null,0,0,0,0,0,0,0,0,0,"_","_","_","_"]
["O0001/IE00144/F0041/X046/R0374/001/44","O0001/IE00144/F0041/X046/R0374/001/44",419,407,"Expenditure:Operational Cost:Travel and Subsistence:Domestic:Transport without Operator:Own Transport",2900,"Other expenditure","_","_",2904,"Other Expenditure",1200,"Finance and administration",1201,"Administrative and Corporate Support","_"," _"," _","O","IE"," _ "," _ "," _ "," _ "," _ "," _ ","_","_"," _ "," _ "," _ "," _ "," _ "," _ "," _ "," _ ",null," _ "," _ "," _ "," _ ",null,null,null," _ "," _ "," _ "," _ "," _ "," _ "," _ "," _ "," _ "," _ "," _ ",null," _ "," _ "," _ "," _ "," _ ",null," _ "," _ "," _ "," _ ",null,2,21,"Administrative and Corporate Support","Finance and Administration",null,null,158339,163199,0,100000,100000,40000,93652,98710,122275,"_","_","_","_"]
["O0001/IE00061/F0041/X046/R0374/001/44","O0001/IE00061/F0041/X046/R0374/001/44",420,408,"Expenditure:Operational Cost:Travel and Subsistence:Domestic:Daily Allowance",2900,"Other expenditure","_","_",2904,"Other Expenditure",1200,"Finance and administration",1201,"Administrative and Corporate Support","_"," _"," _","O","IE"," _ "," _ "," _ "," _ "," _ "," _ ","_","_"," _ "," _ "," _ "," _ "," _ "," _ "," _ "," _ ",null," _ "," _ "," _ "," _ ",null,null,null," _ "," _ "," _ "," _ "," _ "," _ "," _ "," _ "," _ "," _ "," _ ",null," _ "," _ "," _ "," _ "," _ ",null," _ "," _ "," _ "," _ ",null,2,21,"Administrative and Corporate Support","Finance and Administration",null,null,21855,24990,0,20000,10000,7500,12736,13424,12750,"_","_","_","_"]
["O0001/IE00063/F0041/X046/R0374/001/44","O0001/IE00063/F0041/X046/R0374/001/44",421,409,"Expenditure:Operational Cost:Travel and Subsistence:Domestic:Incidental Cost",2900,"Other expenditure","_","_",2904,"Other Expenditure",1200,"Finance and administration",1201,"Administrative and Corporate Support","_"," _"," _","O","IE"," _ "," _ "," _ "," _ "," _ "," _ ","_","_"," _ "," _ "," _ "," _ "," _ "," _ "," _ "," _ ",null," _ "," _ "," _ "," _ ",null,null,null," _ "," _ "," _ "," _ "," _ "," _ "," _ "," _ "," _ "," _ "," _ ",null," _ "," _ "," _ "," _ "," _ ",null," _ "," _ "," _ "," _ ",null,2,21,"Administrative and Corporate Support","Finance and Administration",null,null,112,6290,0,5000,1500,0,0,0,380,"_","_","_","_"]
["O0001/IE00808/F0041/X046/R0374/001/44","O0001/IE00808/F0041/X046/R0374/001/44",422,410,"Expenditure:Operational Cost:Licences:Motor Vehicle Licence and Registrations",2900,"Other expenditure","_","_",2904,"Other Expenditure",1200,"Finance and administration",1201,"Administrative and Corporate Support","_"," _"," _","O","IE"," _ "," _ "," _ "," _ "," _ "," _ ","_","_"," _ "," _ "," _ "," _ "," _ "," _ "," _ "," _ ",null," _ "," _ "," _ "," _ ",null,null,null," _ "," _ "," _ "," _ "," _ "," _ "," _ "," _ "," _ "," _ "," _ ",null," _ "," _ "," _ "," _ "," _ ",null," _ "," _ "," _ "," _ ",null,2,21,"Administrative and Corporate Support","Finance and Administration",null,null,1518,3223,0,9000,7000,5000,10567,11814,3203,"_","_","_","_"]
["O0001/IE00805/F0041/X046/R0374/001/44","O0001/IE00805/F0041/X046/R0374/001/44",423,411,"Expenditure:Operational Cost:Insurance Underwriting:Premiums",2900,"Other expenditure","_","_",2904,"Other Expenditure",1200,"Finance and administration",1201,"Administrative and Corporate Support","_"," _"," _","O","IE"," _ "," _ "," _ "," _ "," _ "," _ ","_","_"," _ "," _ "," _ "," _ "," _ "," _ "," _ "," _ ",null," _ "," _ "," _ "," _ ",null,null,null," _ "," _ "," _ "," _ "," _ "," _ "," _ "," _ "," _ "," _ "," _ ",null," _ "," _ "," _ "," _ "," _ ",null," _ "," _ "," _ "," _ ",null,2,21,"Administrative and Corporate Support","Finance and Administration",null,null,270463,0,0,350000,350000,350000,400000,450000,463108,"_","_","_","_"]
["O0001/IE00792/F0041/X046/R0374/001/44","O0001/IE00792/F0041/X046/R0374/001/44",424,412,"Expenditure:Operational Cost:External Computer Service:Software Licences",2900,"Other expenditure","_","_",2904,"Other Expenditure",1200,"Finance and administration",1201,"Administrative and Corporate Support","_"," _"," _","O","IE"," _ "," _ "," _ "," _ "," _ "," _ ","_","_"," _ "," _ "," _ "," _ "," _ "," _ "," _ "," _ ",null," _ "," _ "," _ "," _ ",null,null,null," _ "," _ "," _ "," _ "," _ "," _ "," _ "," _ "," _ "," _ "," _ ",null," _ "," _ "," _ "," _ "," _ ",null," _ "," _ "," _ "," _ ",null,2,21,"Administrative and Corporate Support","Finance and Administration",null,null,239275,0,0,100000,100000,0,0,0,3753,"_","_","_","_"]
["O0001/IE00783/F0041/X046/R0374/001/44","O0001/IE00783/F0041/X046/R0374/001/44",425,413,"Expenditure:Operational Cost:Entertainment:Senior Management",2900,"Other expenditure","_","_",2904,"Other Expenditure",1200,"Finance and administration",1201,"Administrative and Corporate Support","_"," _"," _","O","IE"," _ "," _ "," _ "," _ "," _ "," _ ","_","_"," _ "," _ "," _ "," _ "," _ "," _ "," _ "," _ ",null," _ "," _ "," _ "," _ ",null,null,null," _ "," _ "," _ "," _ "," _ "," _ "," _ "," _ "," _ "," _ "," _ ",null," _ "," _ "," _ "," _ "," _ ",null," _ "," _ "," _ "," _ ",null,2,21,"Administrative and Corporate Support","Finance and Administration",null,null,1435,512,0,0,0,0,0,0,0,"_","_","_","_"]
["O0001/IE00762/F0041/X046/R0374/001/44","O0001/IE00762/F0041/X046/R0374/001/44",426,414,"Expenditure:Operational Cost:Bank Charges, Facility and Card Fees:Lease Payments",2900,"Other expenditure","_","_",2904,"Other Expenditure",1200,"Finance and administration",1201,"Administrative and Corporate Support","_"," _"," _","O","IE"," _ "," _ "," _ "," _ "," _ "," _ ","_","_"," _ "," _ "," _ "," _ "," _ "," _ "," _ "," _ ",null," _ "," _ "," _ "," _ ",null,null,null," _ "," _ "," _ "," _ "," _ "," _ "," _ "," _ "," _ "," _ "," _ ",null," _ "," _ "," _ "," _ "," _ ",null," _ "," _ "," _ "," _ ",null,2,21,"Administrative and Corporate Support","Finance and Administration",null,null,86224,211916,0,0,0,0,0,0,65906,"_","_","_","_"]
["O0001/IE00755/F0041/X046/R0374/001/44","O0001/IE00755/F0041/X046/R0374/001/44",427,415,"Expenditure:Operational Cost:Advertising, Publicity and Marketing:Municipal Newsletters",2900,"Other expenditure","_","_",2904,"Other Expenditure",1200,"Finance and administration",1201,"Administrative and Corporate Support","_"," _"," _","O","IE"," _ "," _ "," _ "," _ "," _ "," _ ","_","_"," _ "," _ "," _ "," _ "," _ "," _ "," _ "," _ ",null," _ "," _ "," _ "," _ ",null,null,null," _ "," _ "," _ "," _ "," _ "," _ "," _ "," _ "," _ "," _ "," _ ",null," _ "," _ "," _ "," _ "," _ ",null," _ "," _ "," _ "," _ ",null,2,21,"Administrative and Corporate Support","Finance and Administration",null,null,0,0,0,0,0,0,0,0,0,"_","_","_","_"]
["O0001/IE00758/F0041/X046/R0374/001/44","O0001/IE00758/F0041/X046/R0374/001/44",428,416,"Expenditure:Operational Cost:Advertising, Publicity and Marketing:Tenders",2900,"Other expenditure","_","_",2904,"Other Expenditure",1200,"Finance and administration",1201,"Administrative and Corporate Support","_"," _"," _","O","IE"," _ "," _ "," _ "," _ "," _ "," _ ","_","_"," _ "," _ "," _ "," _ "," _ "," _ "," _ "," _ ",null," _ "," _ "," _ "," _ ",null,null,null," _ "," _ "," _ "," _ "," _ "," _ "," _ "," _ "," _ "," _ "," _ ",null," _ "," _ "," _ "," _ "," _ ",null," _ "," _ "," _ "," _ ",null,2,21,"Administrative and Corporate Support","Finance and Administration",null,null,0,42416,0,0,0,0,0,0,0,"_","_","_","_"]
["O0001/IE00579/F0041/X046/R0374/001/44","O0001/IE00579/F0041/X046/R0374/001/44",429,417,"Expenditure:Operational Cost:Municipal Services",2900,"Other expenditure","_","_",2904,"Other Expenditure",1200,"Finance and administration",1201,"Administrative and Corporate Support","_"," _"," _","O","IE"," _ "," _ "," _ "," _ "," _ "," _ ","_","_"," _ "," _ "," _ "," _ "," _ "," _ "," _ "," _ ",null," _ "," _ "," _ "," _ ",null,null,null," _ "," _ "," _ "," _ "," _ "," _ "," _ "," _ "," _ "," _ "," _ ",null," _ "," _ "," _ "," _ "," _ ",null," _ "," _ "," _ "," _ ",null,2,21,"Administrative and Corporate Support","Finance and Administration",null,null,1254765,243289,0,174400,534400,50000,213084,224590,413652,"_","_","_","_"]
["O0001/IE00584/F0041/X046/R0374/001/44","O0001/IE00584/F0041/X046/R0374/001/44",430,418,"Expenditure:Operational Cost:Professional Bodies, Membership and Subscription",2900,"Other expenditure","_","_",2904,"Other Expenditure",1200,"Finance and administration",1201,"Administrative and Corporate Support","_"," _"," _","O","IE"," _ "," _ "," _ "," _ "," _ "," _ ","_","_"," _ "," _ "," _ "," _ "," _ "," _ "," _ "," _ ",null," _ "," _ "," _ "," _ ",null,null,null," _ "," _ "," _ "," _ "," _ "," _ "," _ "," _ "," _ "," _ "," _ ",null," _ "," _ "," _ "," _ "," _ ",null," _ "," _ "," _ "," _ ",null,2,21,"Administrative and Corporate Support","Finance and Administration",null,null,552535,482500,0,250000,485000,100000,589362,621187,96605,"_","_","_","_"]
["O0001/IE00604/F0041/X046/R0374/001/44","O0001/IE00604/F0041/X046/R0374/001/44",431,419,"Expenditure:Operational Cost:Uniform and Protective Clothing",2900,"Other expenditure","_","_",2904,"Other Expenditure",1200,"Finance and administration",1201,"Administrative and Corporate Support","_"," _"," _","O","IE"," _ "," _ "," _ "," _ "," _ "," _ ","_","_"," _ "," _ "," _ "," _ "," _ "," _ "," _ "," _ ",null," _ "," _ "," _ "," _ ",null,null,null," _ "," _ "," _ "," _ "," _ "," _ "," _ "," _ "," _ "," _ "," _ ",null," _ "," _ "," _ "," _ "," _ ",null," _ "," _ "," _ "," _ ",null,2,21,"Administrative and Corporate Support","Finance and Administration",null,null,45418,2870,0,10000,10000,0,0,0,0,"_","_","_","_"]
["O0001/IE00607/F0041/X046/R0374/001/44","O0001/IE00607/F0041/X046/R0374/001/44",432,420,"Expenditure:Operational Cost:Wet Fuel",2900,"Other expenditure","_","_",2904,"Other Expenditure",1200,"Finance and administration",1201,"Administrative and Corporate Support","_"," _"," _","O","IE"," _ "," _ "," _ "," _ "," _ "," _ ","_","_"," _ "," _ "," _ "," _ "," _ "," _ "," _ "," _ ",null," _ "," _ "," _ "," _ ",null,null,null," _ "," _ "," _ "," _ "," _ "," _ "," _ "," _ "," _ "," _ "," _ ",null," _ "," _ "," _ "," _ "," _ ",null," _ "," _ "," _ "," _ ",null,2,21,"Administrative and Corporate Support","Finance and Administration",null,null,294928,305766,0,200000,240000,100000,171275,180524,200764,"_","_","_","_"]
["O0001/IE00577/F0041/X046/R0374/001/44","O0001/IE00577/F0041/X046/R0374/001/44",433,436,"Expenditure:Operational Cost:Levies Paid - Water Resource Management Charges",2900,"Other expenditure","_","_",2904,"Other Expenditure",1200,"Finance and administration",1201,"Administrative and Corporate Support","_"," _"," _","O","IE"," _ "," _ "," _ "," _ "," _ "," _ ","_","_"," _ "," _ "," _ "," _ "," _ "," _ "," _ "," _ ",null," _ "," _ "," _ "," _ ",null,null,null," _ "," _ "," _ "," _ "," _ "," _ "," _ "," _ "," _ "," _ "," _ ",null," _ "," _ "," _ "," _ "," _ ",null," _ "," _ "," _ "," _ ",null,2,21,"Administrative and Corporate Support","Finance and Administration",null,null,0,0,0,0,0,0,0,0,0,"_","_","_","_"]
["O0001/IE00584/F0041/X051/R0374/001/44","O0001/IE00584/F0041/X051/R0374/001/44",434,437,"Expenditure:Operational Cost:Professional Bodies, Membership and Subscription",2900,"Other expenditure","_","_",2904,"Other Expenditure",1200,"Finance and administration",1206,"Human Resources","_"," _"," _","O","IE"," _ "," _ "," _ "," _ "," _ "," _ ","_","_"," _ "," _ "," _ "," _ "," _ "," _ "," _ "," _ ",null," _ "," _ "," _ "," _ ",null,null,null," _ "," _ "," _ "," _ "," _ "," _ "," _ "," _ "," _ "," _ "," _ ",null," _ "," _ "," _ "," _ "," _ ",null," _ "," _ "," _ "," _ ",null,2,23,"Human Resources","Finance and Administration",null,null,59980,12936,0,5000,0,0,0,0,0,"_","_","_","_"]
["O0001/IE00059/F0041/X046/R0374/001/44","O0001/IE00059/F0041/X046/R0374/001/44",435,438,"Expenditure:Operational Cost:Registration Fees:Seminars, Conferences, Workshops and Events:National",2900,"Other expenditure","_","_",2904,"Other Expenditure",1200,"Finance and administration",1201,"Administrative and Corporate Support","_"," _"," _","O","IE"," _ "," _ "," _ "," _ "," _ "," _ ","_","_"," _ "," _ "," _ "," _ "," _ "," _ "," _ "," _ ",null," _ "," _ "," _ "," _ ",null,null,null," _ "," _ "," _ "," _ "," _ "," _ "," _ "," _ "," _ "," _ "," _ ",null," _ "," _ "," _ "," _ "," _ ",null," _ "," _ "," _ "," _ ",null,2,21,"Administrative and Corporate Support","Finance and Administration",null,null,0,0,0,0,0,0,0,0,0,"_","_","_","_"]
["O0001/IE00602/F0041/X046/R0374/001/44","O0001/IE00602/F0041/X046/R0374/001/44",436,439,"Expenditure:Operational Cost:Toll Gate Fees",2900,"Other expenditure","_","_",2904,"Other Expenditure",1200,"Finance and administration",1201,"Administrative and Corporate Support","_"," _"," _","O","IE"," _ "," _ "," _ "," _ "," _ "," _ ","_","_"," _ "," _ "," _ "," _ "," _ "," _ "," _ "," _ ",null," _ "," _ "," _ "," _ ",null,null,null," _ "," _ "," _ "," _ "," _ "," _ "," _ "," _ "," _ "," _ "," _ ",null," _ "," _ "," _ "," _ "," _ ",null," _ "," _ "," _ "," _ ",null,2,21,"Administrative and Corporate Support","Finance and Administration",null,null,4418,0,0,0,0,0,0,0,2213,"_","_","_","_"]
["O0001/IE00565/F0041/X046/R0374/001/44","O0001/IE00565/F0041/X046/R0374/001/44",437,440,"Expenditure:Operational Cost:Environmental Levy",2900,"Other expenditure","_","_",2904,"Other Expenditure",1200,"Finance and administration",1201,"Administrative and Corporate Support","_"," _"," _","O","IE"," _ "," _ "," _ "," _ "," _ "," _ ","_","_"," _ "," _ "," _ "," _ "," _ "," _ "," _ "," _ ",null," _ "," _ "," _ "," _ ",null,null,null," _ "," _ "," _ "," _ "," _ "," _ "," _ "," _ "," _ "," _ "," _ ",null," _ "," _ "," _ "," _ "," _ ",null," _ "," _ "," _ "," _ ",null,2,21,"Administrative and Corporate Support","Finance and Administration",null,null,0,0,0,0,0,0,0,0,0,"_","_","_","_"]
["O0001/IE00738/F0041/X046/R0374/001/44","O0001/IE00738/F0041/X046/R0374/001/44",438,441,"Expenditure:Inventory Consumed:Consumables:Standard Rated",2600,"Other materials",2600,"Other materials"," _ "," _ ",1200,"Finance and administration",1201,"Administrative and Corporate Support","_"," _"," _","O","IE"," _ "," _ "," _ "," _ "," _ "," _ ","_","_"," _ "," _ "," _ "," _ "," _ "," _ "," _ "," _ ",null," _ "," _ "," _ "," _ ",null,null,null," _ "," _ "," _ "," _ "," _ "," _ "," _ "," _ "," _ "," _ "," _ ",null," _ "," _ "," _ "," _ "," _ ",null," _ "," _ "," _ "," _ ",null,2,21,"Administrative and Corporate Support","Finance and Administration",null,null,100,20855,0,0,0,0,0,0,0,"_","_","_","_"]
["O0001/IE00694/F0041/X046/R0374/001/44","O0001/IE00694/F0041/X046/R0374/001/44",439,442,"Expenditure:Contracted Services:Outsourced Services:Professional Staff",2700,"Contracted services","2700-001","Outsourced Services",2701,"Outsourced Services",1200,"Finance and administration",1201,"Administrative and Corporate Support","_"," _"," _","O","IE"," _ "," _ "," _ "," _ "," _ "," _ ","_","_"," _ "," _ "," _ "," _ "," _ "," _ "," _ "," _ ",null," _ "," _ "," _ "," _ ",null,null,null," _ "," _ "," _ "," _ "," _ "," _ "," _ "," _ "," _ "," _ "," _ ",null," _ "," _ "," _ "," _ "," _ ",null," _ "," _ "," _ "," _ ",null,2,21,"Administrative and Corporate Support","Finance and Administration",null,null,0,10526,0,0,5000,98000,98000,102000,19109,"_","_","_","_"]
["O0001/IE00534/F0041/X046/R0374/001/44","O0001/IE00534/F0041/X046/R0374/001/44",440,443,"Expenditure:Inventory Consumed:Materials and Supplies",2600,"Other materials",2600,"Other materials"," _ "," _ ",1200,"Finance and administration",1201,"Administrative and Corporate Support","_"," _"," _","O","IE"," _ "," _ "," _ "," _ "," _ "," _ ","_","_"," _ "," _ "," _ "," _ "," _ "," _ "," _ "," _ ",null," _ "," _ "," _ "," _ ",null,null,null," _ "," _ "," _ "," _ "," _ "," _ "," _ "," _ "," _ "," _ "," _ ",null," _ "," _ "," _ "," _ "," _ ",null," _ "," _ "," _ "," _ ",null,2,21,"Administrative and Corporate Support","Finance and Administration",null,null,22795,12665,0,50000,59000,30000,45673,48140,0,"_","_","_","_"]
["O0001/IE00695/F0041/X046/R0374/001/44","O0001/IE00695/F0041/X046/R0374/001/44",441,444,"Expenditure:Contracted Services:Outsourced Services:Refuse Removal",2700,"Contracted services","2700-001","Outsourced Services",2701,"Outsourced Services",1200,"Finance and administration",1201,"Administrative and Corporate Support","_"," _"," _","O","IE"," _ "," _ "," _ "," _ "," _ "," _ ","_","_"," _ "," _ "," _ "," _ "," _ "," _ "," _ "," _ ",null," _ "," _ "," _ "," _ ",null,null,null," _ "," _ "," _ "," _ "," _ "," _ "," _ "," _ "," _ "," _ "," _ ",null," _ "," _ "," _ "," _ "," _ ",null," _ "," _ "," _ "," _ ",null,2,21,"Administrative and Corporate Support","Finance and Administration",null,null,0,0,0,15000,15000,0,0,0,0,"_","_","_","_"]
["O0001/IE00635/F0041/X046/R0374/001/44","O0001/IE00635/F0041/X046/R0374/001/44",442,445,"Expenditure:Contracted Services:Contractors:Employee Wellness",2700,"Contracted services","2700-003","Contractors",2703,"Contractors",1200,"Finance and administration",1201,"Administrative and Corporate Support","_"," _"," _","O","IE"," _ "," _ "," _ "," _ "," _ "," _ ","_","_"," _ "," _ "," _ "," _ "," _ "," _ "," _ "," _ ",null," _ "," _ "," _ "," _ ",null,null,null," _ "," _ "," _ "," _ "," _ "," _ "," _ "," _ "," _ "," _ "," _ ",null," _ "," _ "," _ "," _ "," _ ",null," _ "," _ "," _ "," _ ",null,2,21,"Administrative and Corporate Support","Finance and Administration",null,null,11015,2042,0,15000,15000,5000,17128,18052,579,"_","_","_","_"]
["O0001/IE00008/F0041/X046/R0374/001/44","O0001/IE00008/F0041/X046/R0374/001/44",443,446,"Expenditure:Contracted Services:Consultants and Professional Services:Legal Cost:Legal Advice and Litigation",2700,"Contracted services","2700-002","Consultants and Professional Services",2702,"Consultants and Professional Services",1200,"Finance and administration",1201,"Administrative and Corporate Support","_"," _"," _","O","IE"," _ "," _ "," _ "," _ "," _ "," _ ","_","_"," _ "," _ "," _ "," _ "," _ "," _ "," _ "," _ ",null," _ "," _ "," _ "," _ ",null,null,null," _ "," _ "," _ "," _ "," _ "," _ "," _ "," _ "," _ "," _ "," _ ",null," _ "," _ "," _ "," _ "," _ ",null," _ "," _ "," _ "," _ ",null,2,21,"Administrative and Corporate Support","Finance and Administration",null,null,274717,0,0,150000,310000,60000,100000,105400,134024,"_","_","_","_"]
["O0001/IE00842/F0041/X046/R0374/001/44","O0001/IE00842/F0041/X046/R0374/001/44",444,447,"Expenditure:Contracted Services:Consultants and Professional Services:Business and Advisory:Occupational Health and Safety",2700,"Contracted services","2700-002","Consultants and Professional Services",2702,"Consultants and Professional Services",1200,"Finance and administration",1201,"Administrative and Corporate Support","_"," _"," _","O","IE"," _ "," _ "," _ "," _ "," _ "," _ ","_","_"," _ "," _ "," _ "," _ "," _ "," _ "," _ "," _ ",null," _ "," _ "," _ "," _ ",null,null,null," _ "," _ "," _ "," _ "," _ "," _ "," _ "," _ "," _ "," _ "," _ ",null," _ "," _ "," _ "," _ "," _ ",null," _ "," _ "," _ "," _ ",null,2,21,"Administrative and Corporate Support","Finance and Administration",null,null,191502,215317,0,10000,10000,7000,11418,12035,0,"_","_","_","_"]
["D0001/IA09800/F0791/X049/R0374/001/46","D0001/IA09800/F0791/X049/R0374/001/46",445,421,"Assets:Current Assets:Cash and Cash Equivalents:Cash at Bank:Bank Account:Specify (replace with account description):Withdrawals"," _"," _"," _ "," _ "," _ "," _ ",1200,"Finance and administration",1204,"Finance","_",2010,"National Government","D","IA",120,"Cash",120,"Cash","0160W","Government - capital","0160W","Government - capital"," _ "," _ "," _ "," _ "," _ "," _ "," _ "," _ ",null," _ "," _ "," _ "," _ ",null,null,"W"," _ "," _ "," _ "," _ "," _ "," _ "," _ "," _ "," _ "," _ "," _ ",null," _ "," _ "," _ "," _ "," _ ",null," _ "," _ "," _ "," _ ",null,2,22,"Finance","Finance and Administration",null,null,0,0,0,0,-64739000,0,0,0,0,"_","_","_","_"]
["D0001/IA09572/F0001/X049/R0374/001/46","D0001/IA09572/F0001/X049/R0374/001/46",446,422,"Assets:Current Assets:Cash and Cash Equivalents:Cash at Bank:Bank Account:Specify (replace with account description):Deposits"," _"," _"," _ "," _ "," _ "," _ ",1200,"Finance and administration",1204,"Finance","_"," _"," _","D","IA",120,"Cash",120,"Cash"," _ "," _ ","_","_"," _ "," _ "," _ "," _ "," _ "," _ "," _ "," _ ",null," _ "," _ "," _ "," _ ",null,null,"D"," _ "," _ "," _ "," _ "," _ "," _ "," _ "," _ "," _ "," _ "," _ ",null," _ "," _ "," _ "," _ "," _ ",null," _ "," _ "," _ "," _ ",null,2,22,"Finance","Finance and Administration",null,null,743292,0,0,0,938095,0,0,0,-5237988,"_","_","_","_"]
["D0001/IA09988/F0001/X049/R0374/001/46","D0001/IA09988/F0001/X049/R0374/001/46",447,423,"Assets:Current Assets:Cash and Cash Equivalents:Cash at Bank:Bank Account:Specify (replace with account description):Opening Balance"," _"," _"," _ "," _ "," _ "," _ ",1200,"Finance and administration",1204,"Finance","_"," _"," _","D","IA",120,"Cash",120,"Cash"," _ "," _ ","_","_"," _ "," _ "," _ "," _ "," _ "," _ "," _ "," _ ",null," _ "," _ "," _ "," _ ",null,null,null," _ "," _ "," _ "," _ "," _ "," _ "," _ "," _ "," _ "," _ "," _ ",null," _ "," _ "," _ "," _ "," _ ",null," _ "," _ "," _ "," _ ",null,2,22,"Finance","Finance and Administration",null,null,194803,194803,0,0,0,10176248,10573122,11017193,194804,"_","_","_","_"]
["D0001/IA09656/F2495/X049/R0374/001/46","D0001/IA09656/F2495/X049/R0374/001/46",448,424,"Assets:Current Assets:Cash and Cash Equivalents:Cash at Bank:Bank Account:Specify (replace with account description):Interest Earned"," _"," _"," _ "," _ "," _ "," _ ",1200,"Finance and administration",1204,"Finance","_"," _"," _","D","IA",120,"Cash",120,"Cash","0170I","Interest","0170I","Interest"," _ "," _ "," _ "," _ "," _ "," _ "," _ "," _ ",null," _ "," _ "," _ "," _ ",null,null,"I"," _ "," _ "," _ "," _ "," _ "," _ "," _ "," _ "," _ "," _ "," _ ",null," _ "," _ "," _ "," _ "," _ ",null," _ "," _ "," _ "," _ ",null,2,22,"Finance","Finance and Administration",null,null,0,0,0,0,0,620000,640000,650000,0,"_","_","_","_"]
["D0001/IA02101/F0001/X049/R0374/001/46","D0001/IA02101/F0001/X049/R0374/001/46",449,425,"Assets:Current Assets:Cash and Cash Equivalents:Call Deposits and Investments:Special Deposit for the Payment of Interest:Specify (replace with account description):Opening Balance"," _"," _"," _ "," _ "," _ "," _ ",1200,"Finance and administration",1204,"Finance","_"," _"," _","D","IA",130,"Call deposits and investments",130,"Call deposits and investments"," _ "," _ ","_","_"," _ "," _ "," _ "," _ "," _ "," _ "," _ "," _ ",null," _ "," _ "," _ "," _ ",null,null,null," _ "," _ "," _ "," _ "," _ "," _ "," _ "," _ "," _ "," _ "," _ ",null," _ "," _ "," _ "," _ "," _ ",null," _ "," _ "," _ "," _ ",null,2,22,"Finance","Finance and Administration",null,null,10088318,7088318,0,0,0,0,0,0,10088318,"_","_","_","_"]
["D0001/IA09460/F0001/X049/R0374/001/46","D0001/IA09460/F0001/X049/R0374/001/46",450,426,"Assets:Current Assets:Cash and Cash Equivalents:Cash at Bank:Bank Account:Specify (replace with account description):Charges"," _"," _"," _ "," _ "," _ "," _ ",1200,"Finance and administration",1204,"Finance","_"," _"," _","D","IA",120,"Cash",120,"Cash"," _ "," _ ","_","_"," _ "," _ "," _ "," _ "," _ "," _ "," _ "," _ ",null," _ "," _ "," _ "," _ ",null,null,null," _ "," _ "," _ "," _ "," _ "," _ "," _ "," _ "," _ "," _ "," _ ",null," _ "," _ "," _ "," _ "," _ ",null," _ "," _ "," _ "," _ ",null,2,22,"Finance","Finance and Administration",null,null,0,0,0,0,0,0,0,0,10674,"_","_","_","_"]
["D0001/IA02100/F0001/X049/R0374/001/46","D0001/IA02100/F0001/X049/R0374/001/46",451,427,"Assets:Current Assets:Cash and Cash Equivalents:Call Deposits and Investments:Special Deposit for the Payment of Interest:Specify (replace with account description):Interest Earned"," _"," _"," _ "," _ "," _ "," _ ",1200,"Finance and administration",1204,"Finance","_"," _"," _","D","IA",130,"Call deposits and investments",130,"Call deposits and investments"," _ "," _ ","_","_"," _ "," _ "," _ "," _ "," _ "," _ "," _ "," _ ",null," _ "," _ "," _ "," _ ",null,null,null," _ "," _ "," _ "," _ "," _ "," _ "," _ "," _ "," _ "," _ "," _ ",null," _ "," _ "," _ "," _ "," _ ",null," _ "," _ "," _ "," _ ",null,2,22,"Finance","Finance and Administration",null,null,568754,0,0,0,0,0,0,0,744666,"_","_","_","_"]
["D0001/IA09327/F0001/X049/R0374/001/46","D0001/IA09327/F0001/X049/R0374/001/46",452,428,"Assets:Current Assets:Cash and Cash Equivalents:Call Deposits and Investments:Special Deposit for the Payment of Interest:Specify (replace with account description):Deposits"," _"," _"," _ "," _ "," _ "," _ ",1200,"Finance and administration",1204,"Finance","_"," _"," _","D","IA",130,"Call deposits and investments",130,"Call deposits and investments"," _ "," _ ","_","_"," _ "," _ "," _ "," _ "," _ "," _ "," _ "," _ ",null," _ "," _ "," _ "," _ ",null,null,null," _ "," _ "," _ "," _ "," _ "," _ "," _ "," _ "," _ "," _ "," _ ",null," _ "," _ "," _ "," _ "," _ ",null," _ "," _ "," _ "," _ ",null,2,22,"Finance","Finance and Administration",null,null,20000000,0,0,0,9738153,0,0,0,48017000,"_","_","_","_"]
["D0001/IA02097/F0001/X049/R0374/001/46","D0001/IA02097/F0001/X049/R0374/001/46",453,429,"Assets:Current Assets:Cash and Cash Equivalents:Call Deposits and Investments:Special Deposit for the Payment of Interest:Specify (replace with account description):Charges"," _"," _"," _ "," _ "," _ "," _ ",1200,"Finance and administration",1204,"Finance","_"," _"," _","D","IA",130,"Call deposits and investments",130,"Call deposits and investments"," _ "," _ ","_","_"," _ "," _ "," _ "," _ "," _ "," _ "," _ "," _ ",null," _ "," _ "," _ "," _ ",null,null,null," _ "," _ "," _ "," _ "," _ "," _ "," _ "," _ "," _ "," _ "," _ ",null," _ "," _ "," _ "," _ "," _ ",null," _ "," _ "," _ "," _ ",null,2,22,"Finance","Finance and Administration",null,null,0,0,0,0,0,0,0,0,0,"_","_","_","_"]
["D0001/IA10160/F0001/X049/R0374/001/46","D0001/IA10160/F0001/X049/R0374/001/46",454,430,"Assets:Current Assets:Cash and Cash Equivalents:Call Deposits and Investments:Special Deposit for the Payment of Interest:Specify (replace with account description):Opening Balance"," _"," _"," _ "," _ "," _ "," _ ",1200,"Finance and administration",1204,"Finance","_"," _"," _","D","IA",130,"Call deposits and investments",130,"Call deposits and investments"," _ "," _ ","_","_"," _ "," _ "," _ "," _ "," _ "," _ "," _ "," _ ",null," _ "," _ "," _ "," _ ",null,null,null," _ "," _ "," _ "," _ "," _ "," _ "," _ "," _ "," _ "," _ "," _ ",null," _ "," _ "," _ "," _ "," _ ",null," _ "," _ "," _ "," _ ",null,2,22,"Finance","Finance and Administration",null,null,87581,87581,0,0,0,0,0,0,87581,"_","_","_","_"]
["D0001/IA02102/F0001/X049/R0374/001/46","D0001/IA02102/F0001/X049/R0374/001/46",455,431,"Assets:Current Assets:Cash and Cash Equivalents:Call Deposits and Investments:Special Deposit for the Payment of Interest:Specify (replace with account description):Withdrawals"," _"," _"," _ "," _ "," _ "," _ ",1200,"Finance and administration",1204,"Finance","_"," _"," _","D","IA",130,"Call deposits and investments",130,"Call deposits and investments"," _ "," _ ","_","_"," _ "," _ "," _ "," _ "," _ "," _ "," _ "," _ ",null," _ "," _ "," _ "," _ ",null,null,null," _ "," _ "," _ "," _ "," _ "," _ "," _ "," _ "," _ "," _ "," _ ",null," _ "," _ "," _ "," _ "," _ ",null," _ "," _ "," _ "," _ ",null,2,22,"Finance","Finance and Administration",null,null,-28523983,0,0,0,0,0,0,0,-31123983,"_","_","_","_"]
["D0001/IA02099/F0001/X049/R0374/001/46","D0001/IA02099/F0001/X049/R0374/001/46",456,432,"Assets:Current Assets:Cash and Cash Equivalents:Call Deposits and Investments:Special Deposit for the Payment of Interest:Specify (replace with account description):Deposits"," _"," _"," _ "," _ "," _ "," _ ",1200,"Finance and administration",1204,"Finance","_"," _"," _","D","IA",130,"Call deposits and investments",130,"Call deposits and investments"," _ "," _ ","_","_"," _ "," _ "," _ "," _ "," _ "," _ "," _ "," _ ",null," _ "," _ "," _ "," _ ",null,null,null," _ "," _ "," _ "," _ "," _ "," _ "," _ "," _ "," _ "," _ "," _ ",null," _ "," _ "," _ "," _ "," _ ",null," _ "," _ "," _ "," _ ",null,2,22,"Finance","Finance and Administration",null,null,0,0,0,0,0,0,0,0,0,"_","_","_","_"]
["D0001/IA09351/F0001/X049/R0374/001/46","D0001/IA09351/F0001/X049/R0374/001/46",457,433,"Assets:Current Assets:Cash and Cash Equivalents:Call Deposits and Investments:Special Deposit for the Payment of Interest:Specify (replace with account description):Withdrawals"," _"," _"," _ "," _ "," _ "," _ ",1200,"Finance and administration",1204,"Finance","_"," _"," _","D","IA",130,"Call deposits and investments",130,"Call deposits and investments"," _ "," _ ","_","_"," _ "," _ "," _ "," _ "," _ "," _ "," _ "," _ ",null," _ "," _ "," _ "," _ ",null,null,null," _ "," _ "," _ "," _ "," _ "," _ "," _ "," _ "," _ "," _ "," _ ",null," _ "," _ "," _ "," _ "," _ ",null," _ "," _ "," _ "," _ ",null,2,22,"Finance","Finance and Administration",null,null,0,0,0,0,0,0,0,0,0,"_","_","_","_"]
["D0001/IA09315/F0001/X049/R0374/001/46","D0001/IA09315/F0001/X049/R0374/001/46",458,434,"Assets:Current Assets:Cash and Cash Equivalents:Call Deposits and Investments:Special Deposit for the Payment of Interest:Specify (replace with account description):Charges"," _"," _"," _ "," _ "," _ "," _ ",1200,"Finance and administration",1204,"Finance","_"," _"," _","D","IA",130,"Call deposits and investments",130,"Call deposits and investments"," _ "," _ ","_","_"," _ "," _ "," _ "," _ "," _ "," _ "," _ "," _ ",null," _ "," _ "," _ "," _ ",null,null,null," _ "," _ "," _ "," _ "," _ "," _ "," _ "," _ "," _ "," _ "," _ ",null," _ "," _ "," _ "," _ "," _ ",null," _ "," _ "," _ "," _ ",null,2,22,"Finance","Finance and Administration",null,null,0,0,0,0,0,0,0,0,0,"_","_","_","_"]
["D0001/IA09346/F0001/X049/R0374/001/46","D0001/IA09346/F0001/X049/R0374/001/46",459,435,"Assets:Current Assets:Cash and Cash Equivalents:Call Deposits and Investments:Special Deposit for the Payment of Interest:Specify (replace with account description):Interest Earned"," _"," _"," _ "," _ "," _ "," _ ",1200,"Finance and administration",1204,"Finance","_"," _"," _","D","IA",130,"Call deposits and investments",130,"Call deposits and investments"," _ "," _ ","_","_"," _ "," _ "," _ "," _ "," _ "," _ "," _ "," _ ",null," _ "," _ "," _ "," _ ",null,null,null," _ "," _ "," _ "," _ "," _ "," _ "," _ "," _ "," _ "," _ "," _ ",null," _ "," _ "," _ "," _ "," _ ",null," _ "," _ "," _ "," _ ",null,2,22,"Finance","Finance and Administration",null,null,5323,0,0,0,0,0,0,0,7931,"_","_","_","_"]
["O1555-1/IE00651/F0041/X046/R0374/001/44","O1555-1/IE00651/F0041/X046/R0374/001/44",460,448,"Expenditure:Contracted Services:Contractors:Maintenance of Unspecified Assets",2700,"Contracted services","2700-003","Contractors",2703,"Contractors",1200,"Finance and administration",1201,"Administrative and Corporate Support","_"," _"," _","O","IE"," _ "," _ "," _ "," _ "," _ "," _ ","_","_"," _ "," _ "," _ "," _ "," _ "," _ "," _ "," _ ",null," _ "," _ "," _ "," _ ",null,null,null," _ "," _ "," _ "," _ "," _ "," _ ",1490,"Furniture and Office Equipment"," _ ",1490,"Furniture and Office Equipment","RM"," _ "," _ "," _ "," _ "," _ ",null," _ "," _ "," _ "," _ ",null,2,21,"Administrative and Corporate Support","Finance and Administration",null,null,0,51225,0,0,0,10000,10000,10000,261,"_","_","_","_"]
["O0788-1/IE00649/F0041/X046/R0374/001/44","O0788-1/IE00649/F0041/X046/R0374/001/44",461,449,"Expenditure:Contracted Services:Contractors:Maintenance of Buildings and Facilities",2700,"Contracted services","2700-003","Contractors",2703,"Contractors",1200,"Finance and administration",1201,"Administrative and Corporate Support","_"," _"," _","O","IE"," _ "," _ "," _ "," _ "," _ "," _ ","_","_"," _ "," _ "," _ "," _ "," _ "," _ "," _ "," _ ",null," _ "," _ "," _ "," _ ",null,null,null," _ "," _ "," _ "," _ "," _ "," _ ",1220,"Building Plan Offices"," _ ",1220,"Building Plan Offices","RM"," _ "," _ "," _ "," _ "," _ ",null," _ "," _ "," _ "," _ ",null,2,21,"Administrative and Corporate Support","Finance and Administration",null,null,258922,27028,0,250000,218000,75000,200000,200000,73739,"_","_","_","_"]
["O1557-1/IE00650/F0041/X046/R0374/001/44","O1557-1/IE00650/F0041/X046/R0374/001/44",462,450,"Expenditure:Contracted Services:Contractors:Maintenance of Equipment",2700,"Contracted services","2700-003","Contractors",2703,"Contractors",1200,"Finance and administration",1201,"Administrative and Corporate Support","_"," _"," _","O","IE"," _ "," _ "," _ "," _ "," _ "," _ ","_","_"," _ "," _ "," _ "," _ "," _ "," _ "," _ "," _ ",null," _ "," _ "," _ "," _ ",null,null,null," _ "," _ "," _ "," _ "," _ "," _ ",1510,"Machinery and Equipment"," _ ",1510,"Machinery and Equipment","RM"," _ "," _ "," _ "," _ "," _ ",null," _ "," _ "," _ "," _ ",null,2,21,"Administrative and Corporate Support","Finance and Administration",null,null,0,3384,0,15000,155000,10000,5140,6324,139960,"_","_","_","_"]
["O0788-2/IE00649/F0041/X051/R0374/001/44","O0788-2/IE00649/F0041/X051/R0374/001/44",463,451,"Expenditure:Contracted Services:Contractors:Maintenance of Buildings and Facilities",2700,"Contracted services","2700-003","Contractors",2703,"Contractors",1200,"Finance and administration",1206,"Human Resources","_"," _"," _","O","IE"," _ "," _ "," _ "," _ "," _ "," _ ","_","_"," _ "," _ "," _ "," _ "," _ "," _ "," _ "," _ ",null," _ "," _ "," _ "," _ ",null,null,null," _ "," _ "," _ "," _ "," _ "," _ ",1220,"Building Plan Offices"," _ ",1220,"Building Plan Offices","RM"," _ "," _ "," _ "," _ "," _ ",null," _ "," _ "," _ "," _ ",null,2,23,"Human Resources","Finance and Administration",null,null,2508,0,0,20000,20000,10000,21080,22218,0,"_","_","_","_"]
["O1557-1/IE00650/F0041/X051/R0374/001/44","O1557-1/IE00650/F0041/X051/R0374/001/44",464,452,"Expenditure:Contracted Services:Contractors:Maintenance of Equipment",2700,"Contracted services","2700-003","Contractors",2703,"Contractors",1200,"Finance and administration",1206,"Human Resources","_"," _"," _","O","IE"," _ "," _ "," _ "," _ "," _ "," _ ","_","_"," _ "," _ "," _ "," _ "," _ "," _ "," _ "," _ ",null," _ "," _ "," _ "," _ ",null,null,null," _ "," _ "," _ "," _ "," _ "," _ ",1510,"Machinery and Equipment"," _ ",1510,"Machinery and Equipment","RM"," _ "," _ "," _ "," _ "," _ ",null," _ "," _ "," _ "," _ ",null,2,23,"Human Resources","Finance and Administration",null,null,0,0,0,20000,20000,10000,21080,22218,0,"_","_","_","_"]
["O1551-1/IE00651/F0041/X051/R0374/001/44","O1551-1/IE00651/F0041/X051/R0374/001/44",465,453,"Expenditure:Contracted Services:Contractors:Maintenance of Unspecified Assets",2700,"Contracted services","2700-003","Contractors",2703,"Contractors",1200,"Finance and administration",1206,"Human Resources","_"," _"," _","O","IE"," _ "," _ "," _ "," _ "," _ "," _ ","_","_"," _ "," _ "," _ "," _ "," _ "," _ "," _ "," _ ",null," _ "," _ "," _ "," _ ",null,null,null," _ "," _ "," _ "," _ "," _ "," _ ",1530,"Transport Assets"," _ ",1530,"Transport Assets","RM"," _ "," _ "," _ "," _ "," _ ",null," _ "," _ "," _ "," _ ",null,2,23,"Human Resources","Finance and Administration",null,null,175432,131199,0,150000,250000,100000,190000,350000,222069,"_","_","_","_"]
["O0001/IE00723/F0001/X046/R0374/001/44","O0001/IE00723/F0001/X046/R0374/001/44",466,454,"Expenditure:Depreciation and Amortisation:Depreciation:Transport Assets",2300,"Depreciation & asset impairment","2300-001","Depreciation of Property, Plant & Equipment",2301,"Depreciation of Property, Plant and Equipment",1200,"Finance and administration",1201,"Administrative and Corporate Support","_"," _"," _","O","IE"," _ "," _ "," _ "," _ "," _ "," _ ","_","_"," _ "," _ "," _ "," _ "," _ "," _ "," _ "," _ ",null," _ "," _ "," _ "," _ ",null,null,null," _ "," _ "," _ "," _ "," _ "," _ "," _ "," _ "," _ "," _ "," _ ",null,1530,"Transport Assets"," _ ",1530,"Transport Assets","DP"," _ "," _ "," _ "," _ ",null,2,21,"Administrative and Corporate Support","Finance and Administration",null,null,0,0,0,0,0,2474,2474,2474,0,"_","_","_","_"]
["O0001/IE00742/F0041/X046/R0374/001/44","O0001/IE00742/F0041/X046/R0374/001/44",467,455,"Expenditure:Operating Leases:Infrastructure:Network and Communication Infrastructure",2900,"Other expenditure","_","_",2904,"Other Expenditure",1200,"Finance and administration",1201,"Administrative and Corporate Support","_"," _"," _","O","IE"," _ "," _ "," _ "," _ "," _ "," _ ","_","_"," _ "," _ "," _ "," _ "," _ "," _ "," _ "," _ ",null," _ "," _ "," _ "," _ ",null,null,null," _ "," _ "," _ "," _ "," _ "," _ "," _ "," _ "," _ "," _ "," _ ",null," _ "," _ "," _ "," _ "," _ ",null," _ "," _ "," _ "," _ ",null,2,21,"Administrative and Corporate Support","Finance and Administration",null,null,0,263909,0,30000,40000,0,0,0,13650,"_","_","_","_"]
["D0001/IL65550/F0001/X046/R0374/001/44","D0001/IL65550/F0001/X046/R0374/001/44",468,456,"Liabilities:Non-current Liabilities:Financial Liabilities:Operating Lease Liability:Specify:Repayments"," _"," _"," _ "," _ "," _ "," _ ",1200,"Finance and administration",1201,"Administrative and Corporate Support","_"," _"," _","D","IL",400,"  Financial liabilities",400,"Financial liabilities"," _ "," _ ","_","_"," _ "," _ "," _ "," _ "," _ "," _ "," _ "," _ ",null,402,"Finance leases (including PPP asset element)",402,"Finance leases (including PPP asset element)",null,null,null," _ "," _ "," _ "," _ "," _ "," _ "," _ "," _ "," _ "," _ "," _ ",null," _ "," _ "," _ "," _ "," _ ",null," _ "," _ "," _ "," _ ",null,2,21,"Administrative and Corporate Support","Finance and Administration",null,null,0,0,0,0,0,0,0,0,0,"_","_","_","_"]
["D0001/IL092571/F0001/X046/R0374/001/44","D0001/IL092571/F0001/X046/R0374/001/44",469,457,"Liabilities:Current Liabilities:Trade and Other Payable Non-exchange Transactions:Transfers and Subsidies Unspent:Operational:Monetary Allocations:National Government:Municipal Systems Improvement Grant:Opening Balance"," _"," _"," _ "," _ "," _ "," _ ",1200,"Finance and administration",1201,"Administrative and Corporate Support","_"," _"," _","D","IL",360," Trade and other payables",360,"Trade and other payables"," _ "," _ ","_","_"," _ "," _ "," _ "," _ "," _ "," _ "," _ "," _ ",null,363,"Unspent conditional transfers",363,"Unspent conditional transfers",null,null,null," _ "," _ "," _ "," _ "," _ "," _ "," _ "," _ "," _ "," _ "," _ ",null," _ "," _ "," _ "," _ "," _ ",null," _ "," _ "," _ "," _ ",null,2,21,"Administrative and Corporate Support","Finance and Administration",null,null,149000,0,0,0,0,0,0,0,149000,"_","_","_","_"]
["D0001/IZ00094/F0001/X046/R0374/001/44","D0001/IZ00094/F0001/X046/R0374/001/44",470,458,"Gains and Losses:Disposal of Fixed and Intangible Assets:Property, Plant and Equipment:Furniture and Office Equipment:Gains",1700,"Gains on disposal of PPE",1700,"Gains on disposal of PPE"," _ "," _ ",1200,"Finance and administration",1201,"Administrative and Corporate Support","_"," _"," _","D","IR"," _ "," _ "," _ "," _ "," _ "," _ ","_","_"," _ "," _ "," _ "," _ "," _ "," _ "," _ "," _ ",null," _ "," _ "," _ "," _ ",null,null,null," _ "," _ "," _ "," _ "," _ "," _ "," _ "," _ "," _ "," _ "," _ ",null," _ "," _ "," _ "," _ "," _ ",null," _ "," _ "," _ "," _ ",null,2,21,"Administrative and Corporate Support","Finance and Administration",null,null,0,0,0,0,0,0,0,0,0,"_","_","_","_"]
["D0001/IA10398/F0001/X046/R0374/001/44","D0001/IA10398/F0001/X046/R0374/001/44",471,461,"Assets:Non-current Assets:Intangible Assets:Cost:Other:In-use:Intangible Assets under Development:Opening Balance"," _"," _"," _ "," _ "," _ "," _ ",1200,"Finance and administration",1201,"Administrative and Corporate Support","_"," _"," _","D","IA",270," Intangible",270,"Intangible"," _ "," _ ","_","_"," _ "," _ "," _ "," _ ",1370,"Intangible Assets",1370,"Intangible Assets",null," _ "," _ "," _ "," _ ",null,null,null," _ "," _ "," _ "," _ "," _ "," _ "," _ "," _ "," _ "," _ "," _ ",null," _ "," _ "," _ "," _ "," _ ",null," _ "," _ "," _ "," _ ",null,2,21,"Administrative and Corporate Support","Finance and Administration",null,null,0,0,0,0,0,0,0,0,0,"_","_","_","_"]
["D0001/IA06319/F0001/X046/R0374/001/44","D0001/IA06319/F0001/X046/R0374/001/44",472,462,"Assets:Non-current Assets:Property, Plant and Equipment:Cost Model:Machinery and Equipment:In-use:Cost:Opening Balance"," _"," _"," _ "," _ "," _ "," _ ",1200,"Finance and administration",1201,"Administrative and Corporate Support","_"," _"," _","D","IA",240," Property, plant and equipment",240,"Property, plant and equipment"," _ "," _ ","_","_"," _ "," _ "," _ "," _ ",1510,"Machinery and Equipment",1510,"Machinery and Equipment",null,241,"PPE at cost/valuation (excl. finance leases)",241,"PPE at cost/valuation (excl. finance leases)",null,null,null," _ "," _ "," _ "," _ "," _ "," _ "," _ "," _ "," _ "," _ "," _ ",null," _ "," _ "," _ "," _ "," _ ",null," _ "," _ "," _ "," _ ",null,2,21,"Administrative and Corporate Support","Finance and Administration",null,null,0,0,0,0,0,0,0,0,0,"_","_","_","_"]
["D0001/IL00763/F0001/X049/R0374/001/46","D0001/IL00763/F0001/X049/R0374/001/46",473,463,"Liabilities:Current Liabilities:Provision and Impairment:Long-service Awards:Opening Balance"," _"," _"," _ "," _ "," _ "," _ ",1200,"Finance and administration",1204,"Finance","_"," _"," _","D","IL",370," Provisions",370,"Provisions"," _ "," _ ","_","_"," _ "," _ "," _ "," _ "," _ "," _ "," _ "," _ ",null," _ "," _ "," _ "," _ ",null,null,null," _ "," _ "," _ "," _ "," _ "," _ "," _ "," _ "," _ "," _ "," _ ",null," _ "," _ "," _ "," _ "," _ ",null," _ "," _ "," _ "," _ ",null,2,22,"Finance","Finance and Administration",null,null,157111,2032276,0,0,0,-157111,-163238,-170094,157111,"_","_","_","_"]
["D0001/IL00854/F0001/X049/R0374/001/46","D0001/IL00854/F0001/X049/R0374/001/46",474,464,"Liabilities:Non-current Liabilities:Provision and Impairment:Long-service Awards:Opening Balance"," _"," _"," _ "," _ "," _ "," _ ",1200,"Finance and administration",1204,"Finance","_"," _"," _","D","IL",410,"  Provisions",410,"Provisions"," _ "," _ ","_","_"," _ "," _ "," _ "," _ "," _ "," _ "," _ "," _ ",null,413,"Other",413,"Other",null,null,null," _ "," _ "," _ "," _ "," _ "," _ "," _ "," _ "," _ "," _ "," _ ",null," _ "," _ "," _ "," _ "," _ ",null," _ "," _ "," _ "," _ ",null,2,22,"Finance","Finance and Administration",null,null,1919418,0,0,0,0,-1919418,-1994275,-2078035,1919418,"_","_","_","_"]
["D0001/IR01420/F0001/X046/R0374/001/44","D0001/IR01420/F0001/X046/R0374/001/44",475,465,"Revenue:Exchange Revenue:Operational Revenue:Insurance Refund",1600,"Other revenue",1612,"Insurance Refund"," _ "," _ ",1200,"Finance and administration",1201,"Administrative and Corporate Support","_"," _"," _","D","IR"," _ "," _ "," _ "," _ "," _ "," _ ","_","_"," _ "," _ "," _ "," _ "," _ "," _ "," _ "," _ ",null," _ "," _ "," _ "," _ ",null,null,null," _ "," _ "," _ "," _ "," _ "," _ "," _ "," _ "," _ "," _ "," _ ",null," _ "," _ "," _ "," _ "," _ ",null," _ "," _ "," _ "," _ ",null,2,21,"Administrative and Corporate Support","Finance and Administration",null,null,189084,60614,0,0,0,0,0,0,0,"_","_","_","_"]
["C0072-1/IA01367/F0002/X046/R0374/001/44","C0072-1/IA01367/F0002/X046/R0374/001/44",476,459,"Assets:Non-current Assets:Property, Plant and Equipment:Cost Model:Transport Assets:Owned and In-use:Cost:Acquisitions"," _"," _"," _ "," _ "," _ "," _ ",1200,"Finance and administration",1201,"Administrative and Corporate Support","CE",2080,"Internally generated funds","C","IA",240," Property, plant and equipment",240,"Property, plant and equipment"," _ "," _ ","_","_"," _ "," _ "," _ "," _ ",1530,"Transport Assets",1530,"Transport Assets",null,241,"PPE at cost/valuation (excl. finance leases)",241,"PPE at cost/valuation (excl. finance leases)",null,null,null," _ "," _ "," _ "," _ ",1530,"Transport Assets"," _ "," _ ",1530," _ "," _ ",null," _ "," _ ","Transport Assets"," _ "," _ ",null," _ "," _ "," _ "," _ ",null,2,21,"Administrative and Corporate Support","Finance and Administration",null,null,0,0,0,220000,0,0,0,0,0,"_","_","_","_"]
["O0001/IE00581/F0041/X046/R0374/001/44","O0001/IE00581/F0041/X046/R0374/001/44",477,460,"Expenditure:Operational Cost:Parking Fees",2900,"Other expenditure","_","_",2904,"Other Expenditure",1200,"Finance and administration",1201,"Administrative and Corporate Support","_"," _"," _","O","IE"," _ "," _ "," _ "," _ "," _ "," _ ","_","_"," _ "," _ "," _ "," _ "," _ "," _ "," _ "," _ ",null," _ "," _ "," _ "," _ ",null,null,null," _ "," _ "," _ "," _ "," _ "," _ "," _ "," _ "," _ "," _ "," _ ",null," _ "," _ "," _ "," _ "," _ ",null," _ "," _ "," _ "," _ ",null,2,21,"Administrative and Corporate Support","Finance and Administration",null,null,0,0,0,0,0,0,0,0,0,"_","_","_","_"]
["D0001/IL08800/F0001/X049/R0374/001/46","D0001/IL08800/F0001/X049/R0374/001/46",478,466,"Liabilities:Current Liabilities:Trade and Other Payable Non-exchange Transactions:Transfers and Subsidies Unspent:Operational:Monetary Allocations:National Government:Expanded Public Works Programme Integrated Grant:Opening Balance"," _"," _"," _ "," _ "," _ "," _ ",1200,"Finance and administration",1204,"Finance","_"," _"," _","D","IL",360," Trade and other payables",360,"Trade and other payables"," _ "," _ ","_","_"," _ "," _ "," _ "," _ "," _ "," _ "," _ "," _ ",null,363,"Unspent conditional transfers",363,"Unspent conditional transfers",null,null,null," _ "," _ "," _ "," _ "," _ "," _ "," _ "," _ "," _ "," _ "," _ ",null," _ "," _ "," _ "," _ "," _ ",null," _ "," _ "," _ "," _ ",null,2,22,"Finance","Finance and Administration",null,null,1,1,0,0,0,0,0,0,1,"_","_","_","_"]
["D0001/IL08832/F0001/X049/R0374/001/46","D0001/IL08832/F0001/X049/R0374/001/46",479,467,"Liabilities:Current Liabilities:Trade and Other Payable Non-exchange Transactions:Transfers and Subsidies Unspent:Operational:Monetary Allocations:National Government:Local Government Financial Management Grant:Opening Balance"," _"," _"," _ "," _ "," _ "," _ ",1200,"Finance and administration",1204,"Finance","_"," _"," _","D","IL",360," Trade and other payables",360,"Trade and other payables"," _ "," _ ","_","_"," _ "," _ "," _ "," _ "," _ "," _ "," _ "," _ ",null,363,"Unspent conditional transfers",363,"Unspent conditional transfers",null,null,null," _ "," _ "," _ "," _ "," _ "," _ "," _ "," _ "," _ "," _ "," _ ",null," _ "," _ "," _ "," _ "," _ ",null," _ "," _ "," _ "," _ ",null,2,22,"Finance","Finance and Administration",null,null,0,0,0,0,0,0,0,0,0,"_","_","_","_"]
["D0001/IL08834/F1177/X049/R0374/001/46","D0001/IL08834/F1177/X049/R0374/001/46",480,468,"Liabilities:Current Liabilities:Trade and Other Payable Non-exchange Transactions:Transfers and Subsidies Unspent:Operational:Monetary Allocations:National Government:Local Government Financial Management Grant:Transferred to Revenue/Capital Expenditure"," _"," _"," _ "," _ "," _ "," _ ",1200,"Finance and administration",1204,"Finance","_"," _"," _","D","IL",360," Trade and other payables",360,"Trade and other payables"," _ "," _ ","_","_"," _ "," _ "," _ "," _ "," _ "," _ "," _ "," _ ",null,363,"Unspent conditional transfers",363,"Unspent conditional transfers",null,null,null," _ "," _ "," _ "," _ "," _ "," _ "," _ "," _ "," _ "," _ "," _ ",null," _ "," _ "," _ "," _ "," _ ",null," _ "," _ "," _ "," _ ",null,2,22,"Finance","Finance and Administration",null,null,-1785000,0,0,0,0,0,0,0,-2559529,"_","_","_","_"]
["D0001/IL08833/F1177/X049/R0374/001/46","D0001/IL08833/F1177/X049/R0374/001/46",481,469,"Liabilities:Current Liabilities:Trade and Other Payable Non-exchange Transactions:Transfers and Subsidies Unspent:Operational:Monetary Allocations:National Government:Local Government Financial Management Grant:Receipts"," _"," _"," _ "," _ "," _ "," _ ",1200,"Finance and administration",1204,"Finance","_"," _"," _","D","IL",360," Trade and other payables",360,"Trade and other payables"," _ "," _ ","_","_"," _ "," _ "," _ "," _ "," _ "," _ "," _ "," _ ",null,363,"Unspent conditional transfers",363,"Unspent conditional transfers",null,null,null," _ "," _ "," _ "," _ "," _ "," _ "," _ "," _ "," _ "," _ "," _ ",null," _ "," _ "," _ "," _ "," _ ",null," _ "," _ "," _ "," _ ",null,2,22,"Finance","Finance and Administration",null,null,1785000,0,0,0,0,0,0,0,3285000,"_","_","_","_"]
["D0001/IL08802/F1169/X049/R0374/001/46","D0001/IL08802/F1169/X049/R0374/001/46",482,470,"Liabilities:Current Liabilities:Trade and Other Payable Non-exchange Transactions:Transfers and Subsidies Unspent:Operational:Monetary Allocations:National Government:Expanded Public Works Programme Integrated Grant:Transferred to Revenue/Capital Expenditure"," _"," _"," _ "," _ "," _ "," _ ",1200,"Finance and administration",1204,"Finance","_"," _"," _","D","IL",360," Trade and other payables",360,"Trade and other payables"," _ "," _ ","_","_"," _ "," _ "," _ "," _ "," _ "," _ "," _ "," _ ",null,363,"Unspent conditional transfers",363,"Unspent conditional transfers",null,null,null," _ "," _ "," _ "," _ "," _ "," _ "," _ "," _ "," _ "," _ "," _ ",null," _ "," _ "," _ "," _ "," _ ",null," _ "," _ "," _ "," _ ",null,2,22,"Finance","Finance and Administration",null,null,0,0,0,0,0,0,0,0,0,"_","_","_","_"]
["D0001/IL092591/F0801/X049/R0374/001/46","D0001/IL092591/F0801/X049/R0374/001/46",483,471,"Liabilities:Current Liabilities:Trade and Other Payable Non-exchange Transactions:Transfers and Subsidies Unspent:Operational:Monetary Allocations:National Government:Rural Road Asset Management Systems Grant:Opening Balance"," _"," _"," _ "," _ "," _ "," _ ",1200,"Finance and administration",1204,"Finance","_",2010,"National Government","D","IL",360," Trade and other payables",360,"Trade and other payables"," _ "," _ ","_","_"," _ "," _ "," _ "," _ "," _ "," _ "," _ "," _ ",null,363,"Unspent conditional transfers",363,"Unspent conditional transfers",null,null,null," _ "," _ "," _ "," _ "," _ "," _ "," _ "," _ "," _ "," _ "," _ ",null," _ "," _ "," _ "," _ "," _ ",null," _ "," _ "," _ "," _ ",null,2,22,"Finance","Finance and Administration",null,null,0,0,0,0,0,0,0,0,0,"_","_","_","_"]
["D0001/IL092592/F0801/X049/R0374/001/46","D0001/IL092592/F0801/X049/R0374/001/46",484,472,"Liabilities:Current Liabilities:Trade and Other Payable Non-exchange Transactions:Transfers and Subsidies Unspent:Operational:Monetary Allocations:National Government:Rural Road Asset Management Systems Grant:Receipts"," _"," _"," _ "," _ "," _ "," _ ",1200,"Finance and administration",1204,"Finance","_",2010,"National Government","D","IL",360," Trade and other payables",360,"Trade and other payables"," _ "," _ ","_","_"," _ "," _ "," _ "," _ "," _ "," _ "," _ "," _ ",null,363,"Unspent conditional transfers",363,"Unspent conditional transfers",null,null,null," _ "," _ "," _ "," _ "," _ "," _ "," _ "," _ "," _ "," _ "," _ ",null," _ "," _ "," _ "," _ "," _ ",null," _ "," _ "," _ "," _ ",null,2,22,"Finance","Finance and Administration",null,null,0,0,0,0,0,0,0,0,650000,"_","_","_","_"]
["D0001/IL092593/F0801/X049/R0374/001/46","D0001/IL092593/F0801/X049/R0374/001/46",485,473,"Liabilities:Current Liabilities:Trade and Other Payable Non-exchange Transactions:Transfers and Subsidies Unspent:Operational:Monetary Allocations:National Government:Rural Road Asset Management Systems Grant:Transferred to Revenue/Capital Expenditure"," _"," _"," _ "," _ "," _ "," _ ",1200,"Finance and administration",1204,"Finance","_",2010,"National Government","D","IL",360," Trade and other payables",360,"Trade and other payables"," _ "," _ ","_","_"," _ "," _ "," _ "," _ "," _ "," _ "," _ "," _ ",null,363,"Unspent conditional transfers",363,"Unspent conditional transfers",null,null,null," _ "," _ "," _ "," _ "," _ "," _ "," _ "," _ "," _ "," _ "," _ ",null," _ "," _ "," _ "," _ "," _ ",null," _ "," _ "," _ "," _ ",null,2,22,"Finance","Finance and Administration",null,null,0,0,0,0,0,0,0,0,0,"_","_","_","_"]
["D0001/IL09103/F0001/X049/R0374/001/46","D0001/IL09103/F0001/X049/R0374/001/46",486,474,"Liabilities:Current Liabilities:Trade and Other Payable Non-exchange Transactions:Transfers and Subsidies Unspent:Operational:Monetary Allocations:National Government:Municipal Infrastructure Grant:Opening Balance"," _"," _"," _ "," _ "," _ "," _ ",1200,"Finance and administration",1204,"Finance","_"," _"," _","D","IL",360," Trade and other payables",360,"Trade and other payables"," _ "," _ ","_","_"," _ "," _ "," _ "," _ "," _ "," _ "," _ "," _ ",null,363,"Unspent conditional transfers",363,"Unspent conditional transfers",null,null,null," _ "," _ "," _ "," _ "," _ "," _ "," _ "," _ "," _ "," _ "," _ ",null," _ "," _ "," _ "," _ "," _ ",null," _ "," _ "," _ "," _ ",null,2,22,"Finance","Finance and Administration",null,null,799105,799105,0,0,0,0,0,0,799105,"_","_","_","_"]
["D0001/IL08801/F1169/X049/R0374/001/46","D0001/IL08801/F1169/X049/R0374/001/46",487,475,"Liabilities:Current Liabilities:Trade and Other Payable Non-exchange Transactions:Transfers and Subsidies Unspent:Operational:Monetary Allocations:National Government:Expanded Public Works Programme Integrated Grant:Receipts"," _"," _"," _ "," _ "," _ "," _ ",1200,"Finance and administration",1204,"Finance","_"," _"," _","D","IL",360," Trade and other payables",360,"Trade and other payables"," _ "," _ ","_","_"," _ "," _ "," _ "," _ "," _ "," _ "," _ "," _ ",null,363,"Unspent conditional transfers",363,"Unspent conditional transfers",null,null,null," _ "," _ "," _ "," _ "," _ "," _ "," _ "," _ "," _ "," _ "," _ ",null," _ "," _ "," _ "," _ "," _ ",null," _ "," _ "," _ "," _ ",null,2,22,"Finance","Finance and Administration",null,null,0,0,0,0,0,0,0,0,260000,"_","_","_","_"]
["O0001/IE00595/F0041/X045/R0373/001/43","O0001/IE00595/F0041/X045/R0373/001/43",488,499,"Expenditure:Operational Cost:Skills Development Fund Levy",2900,"Other expenditure","_","_",2904,"Other Expenditure",1100,"Executive and council",1120,"Municipal Manager, Town Secretary and Chief Executive","_"," _"," _","O","IE"," _ "," _ "," _ "," _ "," _ "," _ ","_","_"," _ "," _ "," _ "," _ "," _ "," _ "," _ "," _ ",null," _ "," _ "," _ "," _ ",null,null,null," _ "," _ "," _ "," _ "," _ "," _ "," _ "," _ "," _ "," _ "," _ ",null," _ "," _ "," _ "," _ "," _ ",null," _ "," _ "," _ "," _ ",null,1,12,"Municipal Manager, Town Secretary and Chief Executive","Executive and Council",null,null,0,25220,0,0,0,15111,0,0,0,"_","_","_","_"]
["O0001/IE00136/F0041/X045/R0374/001/43","O0001/IE00136/F0041/X045/R0374/001/43",489,500,"Expenditure:Employee Related Cost:Senior Management:Municipal Manager (MM):Social Contributions:Medical",2000,"Employee related costs","2000-003","Medical Aid Contributions",2003,"Medical Aid Contributions",1100,"Executive and council",1120,"Municipal Manager, Town Secretary and Chief Executive","_"," _"," _","O","IE"," _ "," _ "," _ "," _ "," _ "," _ ","_","_"," _ "," _ "," _ "," _ "," _ "," _ "," _ "," _ ",null," _ "," _ "," _ "," _ ",null,null,null," _ "," _ "," _ "," _ "," _ "," _ "," _ "," _ "," _ "," _ "," _ ",null," _ "," _ "," _ "," _ "," _ ",null," _ "," _ "," _ "," _ ","SM",1,12,"Municipal Manager, Town Secretary and Chief Executive","Executive and Council",null,null,49403,0,0,51530,51530,54367,51530,51530,48897,"_","_","_","_"]
["O0001/IE00595/F13576/X046/R0374/001/44","O0001/IE00595/F13576/X046/R0374/001/44",490,476,"Expenditure:Operational Cost:Skills Development Fund Levy",2900,"Other expenditure","_","_",2904,"Other Expenditure",1200,"Finance and administration",1201,"Administrative and Corporate Support","_"," _"," _","O","IE"," _ "," _ "," _ "," _ "," _ "," _ ","_","_"," _ "," _ "," _ "," _ "," _ "," _ "," _ "," _ ",null," _ "," _ "," _ "," _ ",null,null,null," _ "," _ "," _ "," _ "," _ "," _ "," _ "," _ "," _ "," _ "," _ ",null," _ "," _ "," _ "," _ "," _ ",null," _ "," _ "," _ "," _ ",null,2,21,"Administrative and Corporate Support","Finance and Administration",null,null,0,121144,0,29211,37565,0,0,0,0,"_","_","_","_"]
["O0001/IE00040/F13576/X051/R0374/001/44","O0001/IE00040/F13576/X051/R0374/001/44",491,477,"Expenditure:Employee Related Cost:Municipal Staff:Social Contributions:Bargaining Council",2000,"Employee related costs","2000-009","Other benefits and allowances",2009,"Other benefits and allowances",1200,"Finance and administration",1206,"Human Resources","_"," _"," _","O","IE"," _ "," _ "," _ "," _ "," _ "," _ ","_","_"," _ "," _ "," _ "," _ "," _ "," _ "," _ "," _ ",null," _ "," _ "," _ "," _ ",null,null,null," _ "," _ "," _ "," _ "," _ "," _ "," _ "," _ "," _ "," _ "," _ ",null," _ "," _ "," _ "," _ "," _ ",null," _ "," _ "," _ "," _ ","MS",2,23,"Human Resources","Finance and Administration",null,null,0,0,0,832,13273,832,832,832,0,"_","_","_","_"]
["O0001/IE00043/F13576/X051/R0374/001/44","O0001/IE00043/F13576/X051/R0374/001/44",492,478,"Expenditure:Employee Related Cost:Municipal Staff:Social Contributions:Medical",2000,"Employee related costs","2000-003","Medical Aid Contributions",2003,"Medical Aid Contributions",1200,"Finance and administration",1206,"Human Resources","_"," _"," _","O","IE"," _ "," _ "," _ "," _ "," _ "," _ ","_","_"," _ "," _ "," _ "," _ "," _ "," _ "," _ "," _ ",null," _ "," _ "," _ "," _ ",null,null,null," _ "," _ "," _ "," _ "," _ "," _ "," _ "," _ "," _ "," _ "," _ ",null," _ "," _ "," _ "," _ "," _ ",null," _ "," _ "," _ "," _ ","MS",2,23,"Human Resources","Finance and Administration",null,null,0,0,0,18306,18306,56376,18306,18306,0,"_","_","_","_"]
["D0001/IR01425/F0001/X098/R0374/001/96","D0001/IR01425/F0001/X098/R0374/001/96",493,479,"Revenue:Exchange Revenue:Operational Revenue:Staff and Councillors Recoveries",1600,"Other revenue",1610,"Staff Recoveries"," _ "," _ ",3100,"Planning and development",3105,"Economic Development/Planning","_"," _"," _","D","IR"," _ "," _ "," _ "," _ "," _ "," _ ","_","_"," _ "," _ "," _ "," _ "," _ "," _ "," _ "," _ ",null," _ "," _ "," _ "," _ ",null,null,null," _ "," _ "," _ "," _ "," _ "," _ "," _ "," _ "," _ "," _ "," _ ",null," _ "," _ "," _ "," _ "," _ ",null," _ "," _ "," _ "," _ ",null,3,33,"Economic Development/Planning","Planning and Development",null,null,545542,-50,0,0,0,0,0,0,0,"_","_","_","_"]
["D0001/IR02344/F0041/X098/R0374/001/96","D0001/IR02344/F0041/X098/R0374/001/96",494,480,"Revenue:Non-exchange Revenue:Transfers and Subsidies:Operational:Monetary Allocations:National Revenue Fund:Equitable Share",1500,"Transfers and subsidies",1500,"Transfers and subsidies"," _ "," _ ",3100,"Planning and development",3105,"Economic Development/Planning","_"," _"," _","D","IR"," _ "," _ "," _ "," _ "," _ "," _ ","_","_"," _ "," _ "," _ "," _ "," _ "," _ "," _ "," _ ",null," _ "," _ "," _ "," _ ",null,null,null," _ "," _ "," _ "," _ "," _ "," _ "," _ "," _ "," _ "," _ "," _ ",null," _ "," _ "," _ "," _ "," _ ",null," _ "," _ "," _ "," _ ",null,3,33,"Economic Development/Planning","Planning and Development",null,null,8498867,7991102,0,-8986788,-9436538,-9436538,-9782000,-9856800,9209546,"_","_","_","_"]
["D0001/IR01420/F0001/X098/R0374/001/96","D0001/IR01420/F0001/X098/R0374/001/96",495,481,"Revenue:Exchange Revenue:Operational Revenue:Insurance Refund",1600,"Other revenue",1612,"Insurance Refund"," _ "," _ ",3100,"Planning and development",3105,"Economic Development/Planning","_"," _"," _","D","IR"," _ "," _ "," _ "," _ "," _ "," _ ","_","_"," _ "," _ "," _ "," _ "," _ "," _ "," _ "," _ ",null," _ "," _ "," _ "," _ ",null,null,null," _ "," _ "," _ "," _ "," _ "," _ "," _ "," _ "," _ "," _ "," _ ",null," _ "," _ "," _ "," _ "," _ ",null," _ "," _ "," _ "," _ ",null,3,33,"Economic Development/Planning","Planning and Development",null,null,16499,27670,0,0,0,0,0,0,0,"_","_","_","_"]
["D0001/IR006912/F13576/X098/R0374/001/96","D0001/IR006912/F13576/X098/R0374/001/96",496,482,"Revenue:Non-exchange Revenue:Transfers and Subsidies:Operational:Monetary Allocations:Provincial Government:Free State:Capacity Building and Other:Specify (Add grant description)",1500,"Transfers and subsidies",1500,"Transfers and subsidies"," _ "," _ ",3100,"Planning and development",3105,"Economic Development/Planning","_"," _"," _","D","IR"," _ "," _ "," _ "," _ "," _ "," _ ","_","_"," _ "," _ "," _ "," _ "," _ "," _ "," _ "," _ ",null," _ "," _ "," _ "," _ ",null,null,null," _ "," _ "," _ "," _ "," _ "," _ "," _ "," _ "," _ "," _ "," _ ",null," _ "," _ "," _ "," _ "," _ ",null," _ "," _ "," _ "," _ ",null,3,33,"Economic Development/Planning","Planning and Development",null,null,3123005,3903756,0,-2796000,-2796000,-1840000,-1845524,-2165731,1806658,"_","_","_","_"]
["D0001/IR02310/F1169/X098/R0374/001/96","D0001/IR02310/F1169/X098/R0374/001/96",497,483,"Revenue:Non-exchange Revenue:Transfers and Subsidies:Operational:Monetary Allocations:National Governments:Expanded Public Works Programme Integrated Grant",1500,"Transfers and subsidies",1500,"Transfers and subsidies"," _ "," _ ",3100,"Planning and development",3105,"Economic Development/Planning","_"," _"," _","D","IR"," _ "," _ "," _ "," _ "," _ "," _ ","_","_"," _ "," _ "," _ "," _ "," _ "," _ "," _ "," _ ",null," _ "," _ "," _ "," _ ",null,null,null," _ "," _ "," _ "," _ "," _ "," _ "," _ "," _ "," _ "," _ "," _ ",null," _ "," _ "," _ "," _ "," _ ",null," _ "," _ "," _ "," _ ",null,3,33,"Economic Development/Planning","Planning and Development",null,null,1136000,1029000,0,-1039000,-1039000,-1440000,-1440000,-1440000,917312,"_","_","_","_"]
["D0001/IR006861/F15763/X098/R0374/001/96","D0001/IR006861/F15763/X098/R0374/001/96",498,484,"Revenue:Non-exchange Revenue:Transfers and Subsidies:Operational:Monetary Allocations:National Governments:Rural Road Asset Management Systems Grant",1500,"Transfers and subsidies",1500,"Transfers and subsidies"," _ "," _ ",3100,"Planning and development",3105,"Economic Development/Planning","_"," _"," _","D","IR"," _ "," _ "," _ "," _ "," _ "," _ ","_","_"," _ "," _ "," _ "," _ "," _ "," _ "," _ "," _ ",null," _ "," _ "," _ "," _ ",null,null,null," _ "," _ "," _ "," _ "," _ "," _ "," _ "," _ "," _ "," _ "," _ ",null," _ "," _ "," _ "," _ "," _ ",null," _ "," _ "," _ "," _ ",null,3,33,"Economic Development/Planning","Planning and Development",null,null,2276000,2149000,0,-2167000,-2167000,-2196000,-2304000,-2307000,2114626,"_","_","_","_"]
["D0001/IR01449/F0001/X098/R0374/001/96","D0001/IR01449/F0001/X098/R0374/001/96",499,485,"Revenue:Exchange Revenue:Sales of Goods and Rendering of Services:Laboratory Services",1600,"Other revenue",1600,"Other Revenue"," _ "," _ ",3100,"Planning and development",3105,"Economic Development/Planning","_"," _"," _","D","IR"," _ "," _ "," _ "," _ "," _ "," _ ","_","_"," _ "," _ "," _ "," _ "," _ "," _ "," _ "," _ ",null," _ "," _ "," _ "," _ ",null,null,null," _ "," _ "," _ "," _ "," _ "," _ "," _ "," _ "," _ "," _ "," _ ",null," _ "," _ "," _ "," _ "," _ ",null," _ "," _ "," _ "," _ ",null,3,33,"Economic Development/Planning","Planning and Development",null,null,25256,0,0,0,0,0,0,0,17426,"_","_","_","_"]
["O0001/IE00651/F0041/X098/R0374/001/96","O0001/IE00651/F0041/X098/R0374/001/96",500,487,"Expenditure:Contracted Services:Contractors:Maintenance of Unspecified Assets",2700,"Contracted services","2700-003","Contractors",2703,"Contractors",3100,"Planning and development",3105,"Economic Development/Planning","_"," _"," _","O","IE"," _ "," _ "," _ "," _ "," _ "," _ ","_","_"," _ "," _ "," _ "," _ "," _ "," _ "," _ "," _ ",null," _ "," _ "," _ "," _ ",null,null,null," _ "," _ "," _ "," _ "," _ "," _ "," _ "," _ "," _ "," _ "," _ ","RM"," _ "," _ "," _ "," _ "," _ ",null," _ "," _ "," _ "," _ ",null,3,33,"Economic Development/Planning","Planning and Development",null,null,65257,0,0,0,0,0,0,0,0,"_","_","_","_"]
["O0001/IE00059/F0041/X098/R0374/001/96","O0001/IE00059/F0041/X098/R0374/001/96",501,488,"Expenditure:Operational Cost:Registration Fees:Seminars, Conferences, Workshops and Events:National",2900,"Other expenditure","_","_",2904,"Other Expenditure",3100,"Planning and development",3105,"Economic Development/Planning","_"," _"," _","O","IE"," _ "," _ "," _ "," _ "," _ "," _ ","_","_"," _ "," _ "," _ "," _ "," _ "," _ "," _ "," _ ",null," _ "," _ "," _ "," _ ",null,null,null," _ "," _ "," _ "," _ "," _ "," _ "," _ "," _ "," _ "," _ "," _ ",null," _ "," _ "," _ "," _ "," _ ",null," _ "," _ "," _ "," _ ",null,3,33,"Economic Development/Planning","Planning and Development",null,null,0,79688,0,0,20000,0,0,0,0,"_","_","_","_"]
["O0001/IE00810/F0041/X098/R0374/001/96","O0001/IE00810/F0041/X098/R0374/001/96",502,489,"Expenditure:Operational Cost:Registration Fees:Professional and Regulatory Bodies",2900,"Other expenditure","_","_",2904,"Other Expenditure",3100,"Planning and development",3105,"Economic Development/Planning","_"," _"," _","O","IE"," _ "," _ "," _ "," _ "," _ "," _ ","_","_"," _ "," _ "," _ "," _ "," _ "," _ "," _ "," _ ",null," _ "," _ "," _ "," _ ",null,null,null," _ "," _ "," _ "," _ "," _ "," _ "," _ "," _ "," _ "," _ "," _ ",null," _ "," _ "," _ "," _ "," _ ",null," _ "," _ "," _ "," _ ",null,3,33,"Economic Development/Planning","Planning and Development",null,null,0,0,0,0,0,0,0,0,0,"_","_","_","_"]
["D0001/LN00006/F0001/X049/R0374/001/46","D0001/LN00006/F0001/X049/R0374/001/46",503,486,"Net Assets:Accumulated Surplus/(Deficit):Opening Balance"," _"," _"," _ "," _ "," _ "," _ ",1200,"Finance and administration",1204,"Finance","_"," _"," _","D","LN",460," Accumulated Surplus/(Deficit)",460,"Accumulated Surplus/(Deficit)"," _ "," _ ","_","_"," _ "," _ "," _ "," _ "," _ "," _ "," _ "," _ ",null,461,"Accumulated Surplus/(Deficit) - opening balance",461,"Accumulated Surplus/(Deficit) - opening balance",null,null,null," _ "," _ "," _ "," _ "," _ "," _ "," _ "," _ "," _ "," _ "," _ ",null," _ "," _ "," _ "," _ "," _ ",null," _ "," _ "," _ "," _ ",null,2,22,"Finance","Finance and Administration",null,null,2145463,2145463,0,0,0,-10144632,-10570706,-11014676,2145463,"_","_","_","_"]
["O0001/IE00842/F0041/X098/R0374/001/96","O0001/IE00842/F0041/X098/R0374/001/96",504,490,"Expenditure:Contracted Services:Consultants and Professional Services:Business and Advisory:Occupational Health and Safety",2700,"Contracted services","2700-002","Consultants and Professional Services",2702,"Consultants and Professional Services",3100,"Planning and development",3105,"Economic Development/Planning","_"," _"," _","O","IE"," _ "," _ "," _ "," _ "," _ "," _ ","_","_"," _ "," _ "," _ "," _ "," _ "," _ "," _ "," _ ",null," _ "," _ "," _ "," _ ",null,null,null," _ "," _ "," _ "," _ "," _ "," _ "," _ "," _ "," _ "," _ "," _ ",null," _ "," _ "," _ "," _ "," _ ",null," _ "," _ "," _ "," _ ",null,3,33,"Economic Development/Planning","Planning and Development",null,null,0,0,0,0,180000,50000,70000,80000,47705,"_","_","_","_"]
["O0001/IE00005/F0041/X098/R0374/001/96","O0001/IE00005/F0041/X098/R0374/001/96",505,491,"Expenditure:Contracted Services:Consultants and Professional Services:Laboratory Services:Water",2700,"Contracted services","2700-002","Consultants and Professional Services",2702,"Consultants and Professional Services",3100,"Planning and development",3105,"Economic Development/Planning","_"," _"," _","O","IE"," _ "," _ "," _ "," _ "," _ "," _ ","_","_"," _ "," _ "," _ "," _ "," _ "," _ "," _ "," _ ",null," _ "," _ "," _ "," _ ",null,null,null," _ "," _ "," _ "," _ "," _ "," _ "," _ "," _ "," _ "," _ "," _ ",null," _ "," _ "," _ "," _ "," _ ",null," _ "," _ "," _ "," _ ",null,3,33,"Economic Development/Planning","Planning and Development",null,null,101813,109758,0,0,320000,300000,342550,361048,174573,"_","_","_","_"]
["O0001/IE00002/F0041/X098/R0374/001/96","O0001/IE00002/F0041/X098/R0374/001/96",506,492,"Expenditure:Contracted Services:Consultants and Professional Services:Laboratory Services:Agriculture",2700,"Contracted services","2700-002","Consultants and Professional Services",2702,"Consultants and Professional Services",3100,"Planning and development",3105,"Economic Development/Planning","_"," _"," _","O","IE"," _ "," _ "," _ "," _ "," _ "," _ ","_","_"," _ "," _ "," _ "," _ "," _ "," _ "," _ "," _ ",null," _ "," _ "," _ "," _ ",null,null,null," _ "," _ "," _ "," _ "," _ "," _ "," _ "," _ "," _ "," _ "," _ ",null," _ "," _ "," _ "," _ "," _ ",null," _ "," _ "," _ "," _ ",null,3,33,"Economic Development/Planning","Planning and Development",null,null,0,0,0,0,0,0,0,0,0,"_","_","_","_"]
["O0001/IE05904/F0041/X098/R0374/001/96","O0001/IE05904/F0041/X098/R0374/001/96",507,493,"Expenditure:Transfers and Subsidies:Operational:Monetary Allocations:Households:Other Transfers (Cash):Other (National Housing Programme):EPWP Programme:Skill Development and Training",2800,"Transfers and subsidies",28000105,"Cash Transfers to Groups of Individuals  "," _ "," _ ",3100,"Planning and development",3105,"Economic Development/Planning","_"," _"," _","O","IE"," _ "," _ "," _ "," _ "," _ "," _ ","_","_"," _ "," _ "," _ "," _ "," _ "," _ "," _ "," _ ",null," _ "," _ "," _ "," _ ",null,null,null," _ "," _ "," _ "," _ "," _ "," _ "," _ "," _ "," _ "," _ "," _ ",null," _ "," _ "," _ "," _ "," _ ",null," _ "," _ "," _ "," _ ",null,3,33,"Economic Development/Planning","Planning and Development",null,null,4429,13194,0,0,51950,72000,72000,72000,77111,"_","_","_","_"]
["O0001/IE03418/F0041/X098/R0374/001/96","O0001/IE03418/F0041/X098/R0374/001/96",508,494,"Expenditure:Transfers and Subsidies:Operational:Monetary Allocations:Departmental Agencies and Accounts:National Departmental Agencies:Culture, Arts, Tourism, Hospitality and Sport SETA",2800,"Transfers and subsidies",28000103,"Cash Transfers to other Organs of State  "," _ "," _ ",3100,"Planning and development",3105,"Economic Development/Planning","_"," _"," _","O","IE"," _ "," _ "," _ "," _ "," _ "," _ ","_","_"," _ "," _ "," _ "," _ "," _ "," _ "," _ "," _ ",null," _ "," _ "," _ "," _ ",null,null,null," _ "," _ "," _ "," _ "," _ "," _ "," _ "," _ "," _ "," _ "," _ ",null," _ "," _ "," _ "," _ "," _ ",null," _ "," _ "," _ "," _ ",null,3,33,"Economic Development/Planning","Planning and Development",null,null,13043,0,0,0,130000,0,0,0,0,"_","_","_","_"]
["O0001/IE03438/F0041/X098/R0374/001/96","O0001/IE03438/F0041/X098/R0374/001/96",509,495,"Expenditure:Transfers and Subsidies:Operational:Monetary Allocations:Departmental Agencies and Accounts:National Departmental Agencies:Food and Beverage Manufacturing Industry SETA",2800,"Transfers and subsidies",28000103,"Cash Transfers to other Organs of State  "," _ "," _ ",3100,"Planning and development",3105,"Economic Development/Planning","_"," _"," _","O","IE"," _ "," _ "," _ "," _ "," _ "," _ ","_","_"," _ "," _ "," _ "," _ "," _ "," _ "," _ "," _ ",null," _ "," _ "," _ "," _ ",null,null,null," _ "," _ "," _ "," _ "," _ "," _ "," _ "," _ "," _ "," _ "," _ ",null," _ "," _ "," _ "," _ "," _ ",null," _ "," _ "," _ "," _ ",null,3,33,"Economic Development/Planning","Planning and Development",null,null,0,0,0,0,0,0,0,0,0,"_","_","_","_"]
["C0069-4/IA06253/F0002/X098/R0374/001/96","C0069-4/IA06253/F0002/X098/R0374/001/96",510,501,"Assets:Non-current Assets:Property, Plant and Equipment:Cost Model:Furniture and Office Equipment:In-use:Cost:Acquisitions"," _"," _"," _ "," _ "," _ "," _ ",3100,"Planning and development",3105,"Economic Development/Planning","CE",2080,"Internally generated funds","C","IA",240," Property, plant and equipment",240,"Property, plant and equipment"," _ "," _ ","_","_"," _ "," _ "," _ "," _ ",1490,"Furniture and Office Equipment",1490,"Furniture and Office Equipment",null,241,"PPE at cost/valuation (excl. finance leases)",241,"PPE at cost/valuation (excl. finance leases)",null,null,null," _ "," _ "," _ "," _ ",1490,"Furniture and Office Equipment"," _ "," _ ",1490," _ "," _ ",null," _ "," _ ","Furniture and Office Equipment"," _ "," _ ",null," _ "," _ "," _ "," _ ",null,3,33,"Economic Development/Planning","Planning and Development",null,null,0,0,0,0,0,0,0,0,0,"_","_","_","_"]
["O0001/IE00830/F0041/X098/R0374/001/96","O0001/IE00830/F0041/X098/R0374/001/96",511,496,"Expenditure:Contracted Services:Consultants and Professional Services:Business and Advisory:Accounting and Auditing",2700,"Contracted services","2700-002","Consultants and Professional Services",2702,"Consultants and Professional Services",3100,"Planning and development",3105,"Economic Development/Planning","_"," _"," _","O","IE"," _ "," _ "," _ "," _ "," _ "," _ ","_","_"," _ "," _ "," _ "," _ "," _ "," _ "," _ "," _ ",null," _ "," _ "," _ "," _ ",null,null,null," _ "," _ "," _ "," _ "," _ "," _ "," _ "," _ "," _ "," _ "," _ ",null," _ "," _ "," _ "," _ "," _ ",null," _ "," _ "," _ "," _ ",null,3,33,"Economic Development/Planning","Planning and Development",null,null,0,12906,0,0,0,0,0,0,0,"_","_","_","_"]
["O0001/IE07625/F0001/X098/R0374/001/96","O0001/IE07625/F0001/X098/R0374/001/96",512,497,"Expenditure:Depreciation and Amortisation:Depreciation:Other Assets:Operational Buildings:Municipal Offices",2300,"Depreciation & asset impairment","2300-001","Depreciation of Property, Plant & Equipment",2301,"Depreciation of Property, Plant and Equipment",3100,"Planning and development",3105,"Economic Development/Planning","_"," _"," _","O","IE"," _ "," _ "," _ "," _ "," _ "," _ ","_","_"," _ "," _ "," _ "," _ "," _ "," _ "," _ "," _ ",null," _ "," _ "," _ "," _ ",null,null,null," _ "," _ "," _ "," _ "," _ "," _ "," _ "," _ "," _ "," _ "," _ ",null,1200,"Municipal Offices"," _ ",1200,"Municipal Offices","DP"," _ "," _ "," _ "," _ ",null,3,33,"Economic Development/Planning","Planning and Development",null,null,0,0,0,0,0,0,0,0,0,"_","_","_","_"]
["O0001/IE00059/F0041/X097/R0374/001/96","O0001/IE00059/F0041/X097/R0374/001/96",513,498,"Expenditure:Operational Cost:Registration Fees:Seminars, Conferences, Workshops and Events:National",2900,"Other expenditure","_","_",2904,"Other Expenditure",3100,"Planning and development",3104,"Development Facilitation","_"," _"," _","O","IE"," _ "," _ "," _ "," _ "," _ "," _ ","_","_"," _ "," _ "," _ "," _ "," _ "," _ "," _ "," _ ",null," _ "," _ "," _ "," _ ",null,null,null," _ "," _ "," _ "," _ "," _ "," _ "," _ "," _ "," _ "," _ "," _ ",null," _ "," _ "," _ "," _ "," _ ",null," _ "," _ "," _ "," _ ",null,3,32,"Development Facilitation","Planning and Development",null,null,0,0,0,0,10000,0,0,0,0,"_","_","_","_"]
["O0001/IE00664/F0041/X097/R0374/001/96","O0001/IE00664/F0041/X097/R0374/001/96",514,502,"Expenditure:Contracted Services:Contractors:Sewerage Services",2700,"Contracted services","2700-003","Contractors",2703,"Contractors",3100,"Planning and development",3104,"Development Facilitation","_"," _"," _","O","IE"," _ "," _ "," _ "," _ "," _ "," _ ","_","_"," _ "," _ "," _ "," _ "," _ "," _ "," _ "," _ ",null," _ "," _ "," _ "," _ ",null,null,null," _ "," _ "," _ "," _ "," _ "," _ "," _ "," _ "," _ "," _ "," _ ",null," _ "," _ "," _ "," _ "," _ ",null," _ "," _ "," _ "," _ ",null,3,32,"Development Facilitation","Planning and Development",null,null,0,23896,0,0,0,0,0,0,0,"_","_","_","_"]
["O0001/IE00080/F0041/X097/R0374/001/96","O0001/IE00080/F0041/X097/R0374/001/96",515,503,"Expenditure:Contracted Services:Consultants and Professional Services:Infrastructure and Planning:Engineering:Civil",2700,"Contracted services","2700-002","Consultants and Professional Services",2702,"Consultants and Professional Services",3100,"Planning and development",3104,"Development Facilitation","_"," _"," _","O","IE"," _ "," _ "," _ "," _ "," _ "," _ ","_","_"," _ "," _ "," _ "," _ "," _ "," _ "," _ "," _ ",null," _ "," _ "," _ "," _ ",null,null,null," _ "," _ "," _ "," _ "," _ "," _ "," _ "," _ "," _ "," _ "," _ ",null," _ "," _ "," _ "," _ "," _ ",null," _ "," _ "," _ "," _ ",null,3,32,"Development Facilitation","Planning and Development",null,null,0,0,0,0,30000,100000,0,0,0,"_","_","_","_"]
["O0001/IE00004/F0041/X097/R0374/001/96","O0001/IE00004/F0041/X097/R0374/001/96",516,504,"Expenditure:Contracted Services:Consultants and Professional Services:Laboratory Services:Roads",2700,"Contracted services","2700-002","Consultants and Professional Services",2702,"Consultants and Professional Services",3100,"Planning and development",3104,"Development Facilitation","_"," _"," _","O","IE"," _ "," _ "," _ "," _ "," _ "," _ ","_","_"," _ "," _ "," _ "," _ "," _ "," _ "," _ "," _ ",null," _ "," _ "," _ "," _ ",null,null,null," _ "," _ "," _ "," _ "," _ "," _ "," _ "," _ "," _ "," _ "," _ ",null," _ "," _ "," _ "," _ "," _ ",null," _ "," _ "," _ "," _ ",null,3,32,"Development Facilitation","Planning and Development",null,null,570406,0,0,0,0,0,0,0,297285,"_","_","_","_"]
["O0001/IE00751/F0041/X098/R0374/001/96","O0001/IE00751/F0041/X098/R0374/001/96",517,505,"Expenditure:Operational Cost:Advertising, Publicity and Marketing:Corporate and Municipal Activities",2900,"Other expenditure","_","_",2904,"Other Expenditure",3100,"Planning and development",3105,"Economic Development/Planning","_"," _"," _","O","IE"," _ "," _ "," _ "," _ "," _ "," _ ","_","_"," _ "," _ "," _ "," _ "," _ "," _ "," _ "," _ ",null," _ "," _ "," _ "," _ ",null,null,null," _ "," _ "," _ "," _ "," _ "," _ "," _ "," _ "," _ "," _ "," _ ",null," _ "," _ "," _ "," _ "," _ ",null," _ "," _ "," _ "," _ ",null,3,33,"Economic Development/Planning","Planning and Development",null,null,0,0,0,0,10000,0,0,0,0,"_","_","_","_"]
["O0001/IE00760/F0041/X096/R0374/001/96","O0001/IE00760/F0041/X096/R0374/001/96",518,506,"Expenditure:Operational Cost:Bank Charges, Facility and Card Fees:Fleet and Other Credit/Debit Cards",2900,"Other expenditure","_","_",2904,"Other Expenditure",3100,"Planning and development",3102,"Corporate Wide Strategic Planning (IDPs, LEDs)","_"," _"," _","O","IE"," _ "," _ "," _ "," _ "," _ "," _ ","_","_"," _ "," _ "," _ "," _ "," _ "," _ "," _ "," _ ",null," _ "," _ "," _ "," _ ",null,null,null," _ "," _ "," _ "," _ "," _ "," _ "," _ "," _ "," _ "," _ "," _ ",null," _ "," _ "," _ "," _ "," _ ",null," _ "," _ "," _ "," _ ",null,3,31,"Corporate Wide Strategic Planning (IDPs, LEDs)","Planning and Development",null,null,0,0,0,0,0,0,0,0,0,"_","_","_","_"]
["O0001/IE00759/F0041/X096/R0374/001/96","O0001/IE00759/F0041/X096/R0374/001/96",519,507,"Expenditure:Operational Cost:Bank Charges, Facility and Card Fees:Bank Accounts",2900,"Other expenditure","_","_",2904,"Other Expenditure",3100,"Planning and development",3102,"Corporate Wide Strategic Planning (IDPs, LEDs)","_"," _"," _","O","IE"," _ "," _ "," _ "," _ "," _ "," _ ","_","_"," _ "," _ "," _ "," _ "," _ "," _ "," _ "," _ ",null," _ "," _ "," _ "," _ ",null,null,null," _ "," _ "," _ "," _ "," _ "," _ "," _ "," _ "," _ "," _ "," _ ",null," _ "," _ "," _ "," _ "," _ ",null," _ "," _ "," _ "," _ ",null,3,31,"Corporate Wide Strategic Planning (IDPs, LEDs)","Planning and Development",null,null,0,0,0,0,0,0,0,0,0,"_","_","_","_"]
["O0001/IE00759/F0041/X049/R0374/001/96","O0001/IE00759/F0041/X049/R0374/001/96",520,508,"Expenditure:Operational Cost:Bank Charges, Facility and Card Fees:Bank Accounts",2900,"Other expenditure","_","_",2904,"Other Expenditure",1200,"Finance and administration",1204,"Finance","_"," _"," _","O","IE"," _ "," _ "," _ "," _ "," _ "," _ ","_","_"," _ "," _ "," _ "," _ "," _ "," _ "," _ "," _ ",null," _ "," _ "," _ "," _ ",null,null,null," _ "," _ "," _ "," _ "," _ "," _ "," _ "," _ "," _ "," _ "," _ ",null," _ "," _ "," _ "," _ "," _ ",null," _ "," _ "," _ "," _ ",null,2,22,"Finance","Finance and Administration",null,null,0,0,0,100000,0,0,0,0,2038,"_","_","_","_"]
["O0001/IE00760/F0041/X097/R0374/001/96","O0001/IE00760/F0041/X097/R0374/001/96",521,509,"Expenditure:Operational Cost:Bank Charges, Facility and Card Fees:Fleet and Other Credit/Debit Cards",2900,"Other expenditure","_","_",2904,"Other Expenditure",3100,"Planning and development",3104,"Development Facilitation","_"," _"," _","O","IE"," _ "," _ "," _ "," _ "," _ "," _ ","_","_"," _ "," _ "," _ "," _ "," _ "," _ "," _ "," _ ",null," _ "," _ "," _ "," _ ",null,null,null," _ "," _ "," _ "," _ "," _ "," _ "," _ "," _ "," _ "," _ "," _ ",null," _ "," _ "," _ "," _ "," _ ",null," _ "," _ "," _ "," _ ",null,3,32,"Development Facilitation","Planning and Development",null,null,0,0,0,0,0,0,0,0,0,"_","_","_","_"]
["O0001/IE00806/F0041/X098/R0374/001/96","O0001/IE00806/F0041/X098/R0374/001/96",522,510,"Expenditure:Operational Cost:Insurance Underwriting:Risk Management Programs",2900,"Other expenditure","_","_",2904,"Other Expenditure",3100,"Planning and development",3105,"Economic Development/Planning","_"," _"," _","O","IE"," _ "," _ "," _ "," _ "," _ "," _ ","_","_"," _ "," _ "," _ "," _ "," _ "," _ "," _ "," _ ",null," _ "," _ "," _ "," _ ",null,null,null," _ "," _ "," _ "," _ "," _ "," _ "," _ "," _ "," _ "," _ "," _ ",null," _ "," _ "," _ "," _ "," _ ",null," _ "," _ "," _ "," _ ",null,3,33,"Economic Development/Planning","Planning and Development",null,null,173876,0,0,0,0,0,0,0,163537,"_","_","_","_"]
["O0001/IE00059/F0041/X094/R0374/001/96","O0001/IE00059/F0041/X094/R0374/001/96",523,511,"Expenditure:Operational Cost:Registration Fees:Seminars, Conferences, Workshops and Events:National",2900,"Other expenditure","_","_",2904,"Other Expenditure",3100,"Planning and development",3101,"Billboards","_"," _"," _","O","IE"," _ "," _ "," _ "," _ "," _ "," _ ","_","_"," _ "," _ "," _ "," _ "," _ "," _ "," _ "," _ ",null," _ "," _ "," _ "," _ ",null,null,null," _ "," _ "," _ "," _ "," _ "," _ "," _ "," _ "," _ "," _ "," _ ",null," _ "," _ "," _ "," _ "," _ ",null," _ "," _ "," _ "," _ ",null,3,34,"Billboards","Planning and Development",null,null,0,0,0,0,0,0,0,0,0,"_","_","_","_"]
["O0001/IE00016/F0041/X098/R0374/001/96","O0001/IE00016/F0041/X098/R0374/001/96",524,512,"Expenditure:Contracted Services:Outsourced Services:Business and Advisory:Business and Financial Management",2700,"Contracted services","2700-001","Outsourced Services",2701,"Outsourced Services",3100,"Planning and development",3105,"Economic Development/Planning","_"," _"," _","O","IE"," _ "," _ "," _ "," _ "," _ "," _ ","_","_"," _ "," _ "," _ "," _ "," _ "," _ "," _ "," _ ",null," _ "," _ "," _ "," _ ",null,null,null," _ "," _ "," _ "," _ "," _ "," _ "," _ "," _ "," _ "," _ "," _ ",null," _ "," _ "," _ "," _ "," _ ",null," _ "," _ "," _ "," _ ",null,3,33,"Economic Development/Planning","Planning and Development",null,null,1199,0,0,0,0,0,0,0,0,"_","_","_","_"]
["D0001/IL092591/F0801/X097/R0374/001/96","D0001/IL092591/F0801/X097/R0374/001/96",525,513,"Liabilities:Current Liabilities:Trade and Other Payable Non-exchange Transactions:Transfers and Subsidies Unspent:Operational:Monetary Allocations:National Government:Rural Road Asset Management Systems Grant:Opening Balance"," _"," _"," _ "," _ "," _ "," _ ",3100,"Planning and development",3104,"Development Facilitation","_",2010,"National Government","D","IL",360," Trade and other payables",360,"Trade and other payables"," _ "," _ ","_","_"," _ "," _ "," _ "," _ "," _ "," _ "," _ "," _ ",null,363,"Unspent conditional transfers",363,"Unspent conditional transfers",null,null,null," _ "," _ "," _ "," _ "," _ "," _ "," _ "," _ "," _ "," _ "," _ ",null," _ "," _ "," _ "," _ "," _ ",null," _ "," _ "," _ "," _ ",null,3,32,"Development Facilitation","Planning and Development",null,null,0,0,0,0,0,0,0,0,0,"_","_","_","_"]
["D0001/IL092592/F0801/X097/R0374/001/96","D0001/IL092592/F0801/X097/R0374/001/96",526,514,"Liabilities:Current Liabilities:Trade and Other Payable Non-exchange Transactions:Transfers and Subsidies Unspent:Operational:Monetary Allocations:National Government:Rural Road Asset Management Systems Grant:Receipts"," _"," _"," _ "," _ "," _ "," _ ",3100,"Planning and development",3104,"Development Facilitation","_",2010,"National Government","D","IL",360," Trade and other payables",360,"Trade and other payables"," _ "," _ ","_","_"," _ "," _ "," _ "," _ "," _ "," _ "," _ "," _ ",null,363,"Unspent conditional transfers",363,"Unspent conditional transfers",null,null,null," _ "," _ "," _ "," _ "," _ "," _ "," _ "," _ "," _ "," _ "," _ ",null," _ "," _ "," _ "," _ "," _ ",null," _ "," _ "," _ "," _ ",null,3,32,"Development Facilitation","Planning and Development",null,null,2276000,0,0,0,0,0,0,0,3793000,"_","_","_","_"]
["D0001/IL092593/F0801/X097/R0374/001/96","D0001/IL092593/F0801/X097/R0374/001/96",527,515,"Liabilities:Current Liabilities:Trade and Other Payable Non-exchange Transactions:Transfers and Subsidies Unspent:Operational:Monetary Allocations:National Government:Rural Road Asset Management Systems Grant:Transferred to Revenue/Capital Expenditure"," _"," _"," _ "," _ "," _ "," _ ",3100,"Planning and development",3104,"Development Facilitation","_",2010,"National Government","D","IL",360," Trade and other payables",360,"Trade and other payables"," _ "," _ ","_","_"," _ "," _ "," _ "," _ "," _ "," _ "," _ "," _ ",null,363,"Unspent conditional transfers",363,"Unspent conditional transfers",null,null,null," _ "," _ "," _ "," _ "," _ "," _ "," _ "," _ "," _ "," _ "," _ ",null," _ "," _ "," _ "," _ "," _ ",null," _ "," _ "," _ "," _ ",null,3,32,"Development Facilitation","Planning and Development",null,null,-2276000,0,0,0,0,0,0,0,-4390626,"_","_","_","_"]
["D0001/IL08801/F1169/X098/R0374/001/96","D0001/IL08801/F1169/X098/R0374/001/96",528,516,"Liabilities:Current Liabilities:Trade and Other Payable Non-exchange Transactions:Transfers and Subsidies Unspent:Operational:Monetary Allocations:National Government:Expanded Public Works Programme Integrated Grant:Receipts"," _"," _"," _ "," _ "," _ "," _ ",3100,"Planning and development",3105,"Economic Development/Planning","_"," _"," _","D","IL",360," Trade and other payables",360,"Trade and other payables"," _ "," _ ","_","_"," _ "," _ "," _ "," _ "," _ "," _ "," _ "," _ ",null,363,"Unspent conditional transfers",363,"Unspent conditional transfers",null,null,null," _ "," _ "," _ "," _ "," _ "," _ "," _ "," _ "," _ "," _ "," _ ",null," _ "," _ "," _ "," _ "," _ ",null," _ "," _ "," _ "," _ ",null,3,33,"Economic Development/Planning","Planning and Development",null,null,1136000,0,0,0,0,0,0,0,1915000,"_","_","_","_"]
["D0001/IL08802/F1169/X098/R0374/001/96","D0001/IL08802/F1169/X098/R0374/001/96",529,517,"Liabilities:Current Liabilities:Trade and Other Payable Non-exchange Transactions:Transfers and Subsidies Unspent:Operational:Monetary Allocations:National Government:Expanded Public Works Programme Integrated Grant:Transferred to Revenue/Capital Expenditure"," _"," _"," _ "," _ "," _ "," _ ",3100,"Planning and development",3105,"Economic Development/Planning","_"," _"," _","D","IL",360," Trade and other payables",360,"Trade and other payables"," _ "," _ ","_","_"," _ "," _ "," _ "," _ "," _ "," _ "," _ "," _ ",null,363,"Unspent conditional transfers",363,"Unspent conditional transfers",null,null,null," _ "," _ "," _ "," _ "," _ "," _ "," _ "," _ "," _ "," _ "," _ ",null," _ "," _ "," _ "," _ "," _ ",null," _ "," _ "," _ "," _ ",null,3,33,"Economic Development/Planning","Planning and Development",null,null,-1136000,0,0,0,0,0,0,0,-2053312,"_","_","_","_"]
["D0001/IL08821/F0001/X098/R0374/001/96","D0001/IL08821/F0001/X098/R0374/001/96",530,518,"Liabilities:Current Liabilities:Trade and Other Payable Non-exchange Transactions:Transfers and Subsidies Unspent:Operational:Monetary Allocations:National Government:Infrastructure Skills Development Grant:Receipts"," _"," _"," _ "," _ "," _ "," _ ",3100,"Planning and development",3105,"Economic Development/Planning","_"," _"," _","D","IL",360," Trade and other payables",360,"Trade and other payables"," _ "," _ ","_","_"," _ "," _ "," _ "," _ "," _ "," _ "," _ "," _ ",null,363,"Unspent conditional transfers",363,"Unspent conditional transfers",null,null,null," _ "," _ "," _ "," _ "," _ "," _ "," _ "," _ "," _ "," _ "," _ ",null," _ "," _ "," _ "," _ "," _ ",null," _ "," _ "," _ "," _ ",null,3,33,"Economic Development/Planning","Planning and Development",null,null,0,0,0,0,0,0,0,0,0,"_","_","_","_"]
["D0001/IL092572/F0001/X098/R0374/001/96","D0001/IL092572/F0001/X098/R0374/001/96",531,519,"Liabilities:Current Liabilities:Trade and Other Payable Non-exchange Transactions:Transfers and Subsidies Unspent:Operational:Monetary Allocations:National Government:Municipal Systems Improvement Grant:Receipts"," _"," _"," _ "," _ "," _ "," _ ",3100,"Planning and development",3105,"Economic Development/Planning","_"," _"," _","D","IL",360," Trade and other payables",360,"Trade and other payables"," _ "," _ ","_","_"," _ "," _ "," _ "," _ "," _ "," _ "," _ "," _ ",null,363,"Unspent conditional transfers",363,"Unspent conditional transfers",null,null,null," _ "," _ "," _ "," _ "," _ "," _ "," _ "," _ "," _ "," _ "," _ ",null," _ "," _ "," _ "," _ "," _ ",null," _ "," _ "," _ "," _ ",null,3,33,"Economic Development/Planning","Planning and Development",null,null,0,0,0,0,0,0,0,0,0,"_","_","_","_"]
["O0001/IE00632/F0041/X044/R0374/001/42","O0001/IE00632/F0041/X044/R0374/001/42",532,520,"Expenditure:Contracted Services:Contractors:Catering Services",2700,"Contracted services","2700-003","Contractors",2703,"Contractors",1100,"Executive and council",1110,"Mayor and Council","_"," _"," _","O","IE"," _ "," _ "," _ "," _ "," _ "," _ ","_","_"," _ "," _ "," _ "," _ "," _ "," _ "," _ "," _ ",null," _ "," _ "," _ "," _ ",null,null,null," _ "," _ "," _ "," _ "," _ "," _ "," _ "," _ "," _ "," _ "," _ ",null," _ "," _ "," _ "," _ "," _ ",null," _ "," _ "," _ "," _ ",null,1,11,"Mayor and Council","Executive and Council",null,null,13043,0,0,0,0,0,0,0,32280,"_","_","_","_"]
["O0001/IE00735/F0041/X049/R0374/001/46","O0001/IE00735/F0041/X049/R0374/001/46",533,521,"Expenditure:Interest, Dividends and Rent on Land:Interest Paid:Overdue Accounts",2400,"Finance charges",2400,"Finance charges"," _ "," _ ",1200,"Finance and administration",1204,"Finance","_"," _"," _","O","IE"," _ "," _ "," _ "," _ "," _ "," _ ","_","_"," _ "," _ "," _ "," _ "," _ "," _ "," _ "," _ ",null," _ "," _ "," _ "," _ ",null,null,null," _ "," _ "," _ "," _ "," _ "," _ "," _ "," _ "," _ "," _ "," _ ",null," _ "," _ "," _ "," _ "," _ ",null," _ "," _ "," _ "," _ ",null,2,22,"Finance","Finance and Administration",null,null,412944,114222,0,150000,150000,60000,210800,222183,170681,"_","_","_","_"]
["O0001/IE00728/F0041/X049/R0374/001/46","O0001/IE00728/F0041/X049/R0374/001/46",534,522,"Expenditure:Interest, Dividends and Rent on Land:Interest Paid:Bank Overdraft",2400,"Finance charges",2400,"Finance charges"," _ "," _ ",1200,"Finance and administration",1204,"Finance","_"," _"," _","O","IE"," _ "," _ "," _ "," _ "," _ "," _ ","_","_"," _ "," _ "," _ "," _ "," _ "," _ "," _ "," _ ",null," _ "," _ "," _ "," _ ",null,null,null," _ "," _ "," _ "," _ "," _ "," _ "," _ "," _ "," _ "," _ "," _ ",null," _ "," _ "," _ "," _ "," _ ",null," _ "," _ "," _ "," _ ",null,2,22,"Finance","Finance and Administration",null,null,13975,209194,0,140000,140000,20000,200260,211074,800,"_","_","_","_"]
["O0001/IE00692/F0041/X049/R0374/001/46","O0001/IE00692/F0041/X049/R0374/001/46",535,523,"Expenditure:Contracted Services:Outsourced Services:Personnel and Labour",2700,"Contracted services","2700-001","Outsourced Services",2701,"Outsourced Services",1200,"Finance and administration",1204,"Finance","_"," _"," _","O","IE"," _ "," _ "," _ "," _ "," _ "," _ ","_","_"," _ "," _ "," _ "," _ "," _ "," _ "," _ "," _ ",null," _ "," _ "," _ "," _ ",null,null,null," _ "," _ "," _ "," _ "," _ "," _ "," _ "," _ "," _ "," _ "," _ ",null," _ "," _ "," _ "," _ "," _ ",null," _ "," _ "," _ "," _ ",null,2,22,"Finance","Finance and Administration",null,null,0,1525,0,0,0,0,0,0,0,"_","_","_","_"]
["D0001/IR01059/F0001/X049/R0374/001/46","D0001/IR01059/F0001/X049/R0374/001/46",536,527,"Revenue:Exchange Revenue:Interest, Dividend and Rent on Land:Interest:Current and Non-current Assets:Bank Accounts",900,"Interest earned - external investments",900,"Interest earned - external investments"," _ "," _ ",1200,"Finance and administration",1204,"Finance","_"," _"," _","D","IR"," _ "," _ "," _ "," _ "," _ "," _ ","_","_"," _ "," _ "," _ "," _ "," _ "," _ "," _ "," _ ",null," _ "," _ "," _ "," _ ",null,null,null," _ "," _ "," _ "," _ "," _ "," _ "," _ "," _ "," _ "," _ "," _ ",null," _ "," _ "," _ "," _ "," _ ",null," _ "," _ "," _ "," _ ",null,2,22,"Finance","Finance and Administration",null,null,17373,24236,0,-4,-20000,-20000,-40000,-50000,0,"_","_","_","_"]
["D0001/IR01061/F0001/X049/R0374/001/46","D0001/IR01061/F0001/X049/R0374/001/46",537,528,"Revenue:Exchange Revenue:Interest, Dividend and Rent on Land:Interest:Current and Non-current Assets:Short Term Investments and Call Accounts",900,"Interest earned - external investments",900,"Interest earned - external investments"," _ "," _ ",1200,"Finance and administration",1204,"Finance","_"," _"," _","D","IR"," _ "," _ "," _ "," _ "," _ "," _ ","_","_"," _ "," _ "," _ "," _ "," _ "," _ "," _ "," _ ",null," _ "," _ "," _ "," _ ",null,null,null," _ "," _ "," _ "," _ "," _ "," _ "," _ "," _ "," _ "," _ "," _ ",null," _ "," _ "," _ "," _ "," _ ",null," _ "," _ "," _ "," _ ",null,2,22,"Finance","Finance and Administration",null,null,632727,391262,0,-871300,-840000,-600000,-600000,-600000,617767,"_","_","_","_"]
["D0001/IR01113/F0001/X049/R0374/001/46","D0001/IR01113/F0001/X049/R0374/001/46",538,529,"Revenue:Exchange Revenue:Sales of Goods and Rendering of Services:Sale of Goods:Publications:Tender Documents",1600,"Other revenue",1600,"Other Revenue"," _ "," _ ",1200,"Finance and administration",1204,"Finance","_"," _"," _","D","IR"," _ "," _ "," _ "," _ "," _ "," _ ","_","_"," _ "," _ "," _ "," _ "," _ "," _ "," _ "," _ ",null," _ "," _ "," _ "," _ ",null,null,null," _ "," _ "," _ "," _ "," _ "," _ "," _ "," _ "," _ "," _ "," _ ",null," _ "," _ "," _ "," _ "," _ ",null," _ "," _ "," _ "," _ ",null,2,22,"Finance","Finance and Administration",null,null,16852,12765,0,-10000,-2500,0,0,0,1130,"_","_","_","_"]
["D0001/IR01456/F0001/X049/R0374/001/46","D0001/IR01456/F0001/X049/R0374/001/46",539,530,"Revenue:Exchange Revenue:Sales of Goods and Rendering of Services:Parking Fees",1600,"Other revenue",1600,"Other Revenue"," _ "," _ ",1200,"Finance and administration",1204,"Finance","_"," _"," _","D","IR"," _ "," _ "," _ "," _ "," _ "," _ ","_","_"," _ "," _ "," _ "," _ "," _ "," _ "," _ "," _ ",null," _ "," _ "," _ "," _ ",null,null,null," _ "," _ "," _ "," _ "," _ "," _ "," _ "," _ "," _ "," _ "," _ ",null," _ "," _ "," _ "," _ "," _ ",null," _ "," _ "," _ "," _ ",null,2,22,"Finance","Finance and Administration",null,null,57365,56978,0,-84500,-55500,-60000,-58275,-58275,26972,"_","_","_","_"]
["O0001/IE00798/F0041/X046/R0374/001/46","O0001/IE00798/F0041/X046/R0374/001/46",540,524,"Expenditure:Operational Cost:Fines and Penalties:Road Traffic and Other Fines",2900,"Other expenditure","_","_",2904,"Other Expenditure",1200,"Finance and administration",1201,"Administrative and Corporate Support","_"," _"," _","O","IE"," _ "," _ "," _ "," _ "," _ "," _ ","_","_"," _ "," _ "," _ "," _ "," _ "," _ "," _ "," _ ",null," _ "," _ "," _ "," _ ",null,null,null," _ "," _ "," _ "," _ "," _ "," _ "," _ "," _ "," _ "," _ "," _ ",null," _ "," _ "," _ "," _ "," _ ",null," _ "," _ "," _ "," _ ",null,2,21,"Administrative and Corporate Support","Finance and Administration",null,null,0,0,0,0,0,0,0,0,0,"_","_","_","_"]
["O0001/IE00799/F0041/X046/R0374/001/46","O0001/IE00799/F0041/X046/R0374/001/46",541,525,"Expenditure:Operational Cost:Fines and Penalties:SARS",2900,"Other expenditure","_","_",2904,"Other Expenditure",1200,"Finance and administration",1201,"Administrative and Corporate Support","_"," _"," _","O","IE"," _ "," _ "," _ "," _ "," _ "," _ ","_","_"," _ "," _ "," _ "," _ "," _ "," _ "," _ "," _ ",null," _ "," _ "," _ "," _ ",null,null,null," _ "," _ "," _ "," _ "," _ "," _ "," _ "," _ "," _ "," _ "," _ ",null," _ "," _ "," _ "," _ "," _ ",null," _ "," _ "," _ "," _ ",null,2,21,"Administrative and Corporate Support","Finance and Administration",null,null,0,0,0,0,0,0,0,0,0,"_","_","_","_"]
["O0001/IE00694/F0041/X049/R0374/001/46","O0001/IE00694/F0041/X049/R0374/001/46",542,526,"Expenditure:Contracted Services:Outsourced Services:Professional Staff",2700,"Contracted services","2700-001","Outsourced Services",2701,"Outsourced Services",1200,"Finance and administration",1204,"Finance","_"," _"," _","O","IE"," _ "," _ "," _ "," _ "," _ "," _ ","_","_"," _ "," _ "," _ "," _ "," _ "," _ "," _ "," _ ",null," _ "," _ "," _ "," _ ",null,null,null," _ "," _ "," _ "," _ "," _ "," _ "," _ "," _ "," _ "," _ "," _ ",null," _ "," _ "," _ "," _ "," _ ",null," _ "," _ "," _ "," _ ",null,2,22,"Finance","Finance and Administration",null,null,31187,26298,0,61900,0,0,0,0,16500,"_","_","_","_"]
["O0001/IE00835/F0041/X049/R0374/001/46","O0001/IE00835/F0041/X049/R0374/001/46",543,531,"Expenditure:Contracted Services:Consultants and Professional Services:Business and Advisory:Business and Financial Management",2700,"Contracted services","2700-002","Consultants and Professional Services",2702,"Consultants and Professional Services",1200,"Finance and administration",1204,"Finance","_"," _"," _","O","IE"," _ "," _ "," _ "," _ "," _ "," _ ","_","_"," _ "," _ "," _ "," _ "," _ "," _ "," _ "," _ ",null," _ "," _ "," _ "," _ ",null,null,null," _ "," _ "," _ "," _ "," _ "," _ "," _ "," _ "," _ "," _ "," _ ",null," _ "," _ "," _ "," _ "," _ ",null," _ "," _ "," _ "," _ ",null,2,22,"Finance","Finance and Administration",null,null,359592,2504,0,2600000,2100000,970000,2311464,2382283,1129047,"_","_","_","_"]
["O0001/IE03755-1/F0041/X044/R0374/001/42","O0001/IE03755-1/F0041/X044/R0374/001/42",544,532,"Expenditure:Transfers and Subsidies:Operational:Monetary Allocations:Households:Other Transfers (Cash):Unspecified",2800,"Transfers and subsidies",28000105,"Cash Transfers to Groups of Individuals  "," _ "," _ ",1100,"Executive and council",1110,"Mayor and Council","_"," _"," _","O","IE"," _ "," _ "," _ "," _ "," _ "," _ ","_","_"," _ "," _ "," _ "," _ "," _ "," _ "," _ "," _ ",null," _ "," _ "," _ "," _ ",null,null,null," _ "," _ "," _ "," _ "," _ "," _ "," _ "," _ "," _ "," _ "," _ ",null," _ "," _ "," _ "," _ "," _ ",null," _ "," _ "," _ "," _ ",null,1,11,"Mayor and Council","Executive and Council",null,null,79676,23810,0,10000,0,0,0,0,4000,"_","_","_","_"]
["O0001/IE00671/F0041/X045/R0374/001/43","O0001/IE00671/F0041/X045/R0374/001/43",545,533,"Expenditure:Contracted Services:Contractors:Transportation",2700,"Contracted services","2700-003","Contractors",2703,"Contractors",1100,"Executive and council",1120,"Municipal Manager, Town Secretary and Chief Executive","_"," _"," _","O","IE"," _ "," _ "," _ "," _ "," _ "," _ ","_","_"," _ "," _ "," _ "," _ "," _ "," _ "," _ "," _ ",null," _ "," _ "," _ "," _ ",null,null,null," _ "," _ "," _ "," _ "," _ "," _ "," _ "," _ "," _ "," _ "," _ ",null," _ "," _ "," _ "," _ "," _ ",null," _ "," _ "," _ "," _ ",null,1,12,"Municipal Manager, Town Secretary and Chief Executive","Executive and Council",null,null,1880,0,0,0,0,0,0,0,0,"_","_","_","_"]
["O0001/IE00632/F0041/X045/R0374/001/43","O0001/IE00632/F0041/X045/R0374/001/43",546,534,"Expenditure:Contracted Services:Contractors:Catering Services",2700,"Contracted services","2700-003","Contractors",2703,"Contractors",1100,"Executive and council",1120,"Municipal Manager, Town Secretary and Chief Executive","_"," _"," _","O","IE"," _ "," _ "," _ "," _ "," _ "," _ ","_","_"," _ "," _ "," _ "," _ "," _ "," _ "," _ "," _ ",null," _ "," _ "," _ "," _ ",null,null,null," _ "," _ "," _ "," _ "," _ "," _ "," _ "," _ "," _ "," _ "," _ ",null," _ "," _ "," _ "," _ "," _ ",null," _ "," _ "," _ "," _ ",null,1,12,"Municipal Manager, Town Secretary and Chief Executive","Executive and Council",null,null,4152,0,0,0,0,0,0,0,0,"_","_","_","_"]
["O0001/IE00840/F0041/X045/R0374/001/43","O0001/IE00840/F0041/X045/R0374/001/43",547,535,"Expenditure:Contracted Services:Consultants and Professional Services:Business and Advisory:Human Resources",2700,"Contracted services","2700-002","Consultants and Professional Services",2702,"Consultants and Professional Services",1100,"Executive and council",1120,"Municipal Manager, Town Secretary and Chief Executive","_"," _"," _","O","IE"," _ "," _ "," _ "," _ "," _ "," _ ","_","_"," _ "," _ "," _ "," _ "," _ "," _ "," _ "," _ ",null," _ "," _ "," _ "," _ ",null,null,null," _ "," _ "," _ "," _ "," _ "," _ "," _ "," _ "," _ "," _ "," _ ",null," _ "," _ "," _ "," _ "," _ ",null," _ "," _ "," _ "," _ ",null,1,12,"Municipal Manager, Town Secretary and Chief Executive","Executive and Council",null,null,0,0,0,21200,20000,10000,22837,24070,0,"_","_","_","_"]
["O0001/IE00061/F0041/X049/R0374/001/0046","O0001/IE00061/F0041/X049/R0374/001/0046",548,536,"Expenditure:Operational Cost:Travel and Subsistence:Domestic:Daily Allowance",2900,"Other expenditure","_","_",2904,"Other Expenditure",1200,"Finance and administration",1204,"Finance","_"," _"," _","O","IE"," _ "," _ "," _ "," _ "," _ "," _ ","_","_"," _ "," _ "," _ "," _ "," _ "," _ "," _ "," _ ",null," _ "," _ "," _ "," _ ",null,null,null," _ "," _ "," _ "," _ "," _ "," _ "," _ "," _ "," _ "," _ "," _ ",null," _ "," _ "," _ "," _ "," _ ",null," _ "," _ "," _ "," _ ",null,2,22,"Finance","Finance and Administration",null,null,0,80,0,5000,0,1500,5000,5000,0,"_","_","_","_"]
["O0001/IE00063/F0041/X049/R0374/001/0046","O0001/IE00063/F0041/X049/R0374/001/0046",549,537,"Expenditure:Operational Cost:Travel and Subsistence:Domestic:Incidental Cost",2900,"Other expenditure","_","_",2904,"Other Expenditure",1200,"Finance and administration",1204,"Finance","_"," _"," _","O","IE"," _ "," _ "," _ "," _ "," _ "," _ ","_","_"," _ "," _ "," _ "," _ "," _ "," _ "," _ "," _ ",null," _ "," _ "," _ "," _ ",null,null,null," _ "," _ "," _ "," _ "," _ "," _ "," _ "," _ "," _ "," _ "," _ ",null," _ "," _ "," _ "," _ "," _ ",null," _ "," _ "," _ "," _ ",null,2,22,"Finance","Finance and Administration",null,null,0,0,0,4000,4000,0,0,0,0,"_","_","_","_"]
["O0001/IE00060/F0041/X049/R0374/001/0046","O0001/IE00060/F0041/X049/R0374/001/0046",550,538,"Expenditure:Operational Cost:Travel and Subsistence:Domestic:Accommodation",2900,"Other expenditure","_","_",2904,"Other Expenditure",1200,"Finance and administration",1204,"Finance","_"," _"," _","O","IE"," _ "," _ "," _ "," _ "," _ "," _ ","_","_"," _ "," _ "," _ "," _ "," _ "," _ "," _ "," _ ",null," _ "," _ "," _ "," _ ",null,null,null," _ "," _ "," _ "," _ "," _ "," _ "," _ "," _ "," _ "," _ "," _ ",null," _ "," _ "," _ "," _ "," _ ",null," _ "," _ "," _ "," _ ",null,2,22,"Finance","Finance and Administration",null,null,2060,0,0,15000,0,15000,81795,86212,0,"_","_","_","_"]
["O0001/IE00144/F0041/X049/R0374/001/0046","O0001/IE00144/F0041/X049/R0374/001/0046",551,539,"Expenditure:Operational Cost:Travel and Subsistence:Domestic:Transport without Operator:Own Transport",2900,"Other expenditure","_","_",2904,"Other Expenditure",1200,"Finance and administration",1204,"Finance","_"," _"," _","O","IE"," _ "," _ "," _ "," _ "," _ "," _ ","_","_"," _ "," _ "," _ "," _ "," _ "," _ "," _ "," _ ",null," _ "," _ "," _ "," _ ",null,null,null," _ "," _ "," _ "," _ "," _ "," _ "," _ "," _ "," _ "," _ "," _ ",null," _ "," _ "," _ "," _ "," _ ",null," _ "," _ "," _ "," _ ",null,2,22,"Finance","Finance and Administration",null,null,36820,0,0,35000,0,10000,51273,54041,0,"_","_","_","_"]
["O0001/IE00677/F0041/X049/R0374/001/0046","O0001/IE00677/F0041/X049/R0374/001/0046",552,540,"Expenditure:Contracted Services:Outsourced Services:Catering Services",2700,"Contracted services","2700-001","Outsourced Services",2701,"Outsourced Services",1200,"Finance and administration",1204,"Finance","_"," _"," _","O","IE"," _ "," _ "," _ "," _ "," _ "," _ ","_","_"," _ "," _ "," _ "," _ "," _ "," _ "," _ "," _ ",null," _ "," _ "," _ "," _ ",null,null,null," _ "," _ "," _ "," _ "," _ "," _ "," _ "," _ "," _ "," _ "," _ ",null," _ "," _ "," _ "," _ "," _ ",null," _ "," _ "," _ "," _ ",null,2,22,"Finance","Finance and Administration",null,null,0,0,0,0,0,0,0,0,0,"_","_","_","_"]
["O0001/IE00061/F0041/X046/R0374/001/0044","O0001/IE00061/F0041/X046/R0374/001/0044",553,541,"Expenditure:Operational Cost:Travel and Subsistence:Domestic:Daily Allowance",2900,"Other expenditure","_","_",2904,"Other Expenditure",1200,"Finance and administration",1201,"Administrative and Corporate Support","_"," _"," _","O","IE"," _ "," _ "," _ "," _ "," _ "," _ ","_","_"," _ "," _ "," _ "," _ "," _ "," _ "," _ "," _ ",null," _ "," _ "," _ "," _ ",null,null,null," _ "," _ "," _ "," _ "," _ "," _ "," _ "," _ "," _ "," _ "," _ ",null," _ "," _ "," _ "," _ "," _ ",null," _ "," _ "," _ "," _ ",null,2,21,"Administrative and Corporate Support","Finance and Administration",null,null,1615,0,0,5000,2000,1500,5000,5000,0,"_","_","_","_"]
["O0001/IE00060/F0041/X046/R0374/001/0044","O0001/IE00060/F0041/X046/R0374/001/0044",554,542,"Expenditure:Operational Cost:Travel and Subsistence:Domestic:Accommodation",2900,"Other expenditure","_","_",2904,"Other Expenditure",1200,"Finance and administration",1201,"Administrative and Corporate Support","_"," _"," _","O","IE"," _ "," _ "," _ "," _ "," _ "," _ ","_","_"," _ "," _ "," _ "," _ "," _ "," _ "," _ "," _ ",null," _ "," _ "," _ "," _ ",null,null,null," _ "," _ "," _ "," _ "," _ "," _ "," _ "," _ "," _ "," _ "," _ ",null," _ "," _ "," _ "," _ "," _ ",null," _ "," _ "," _ "," _ ",null,2,21,"Administrative and Corporate Support","Finance and Administration",null,null,0,0,0,15000,7000,5000,32169,33906,0,"_","_","_","_"]
["O0001/IE00063/F0041/X046/R0374/001/0044","O0001/IE00063/F0041/X046/R0374/001/0044",555,543,"Expenditure:Operational Cost:Travel and Subsistence:Domestic:Incidental Cost",2900,"Other expenditure","_","_",2904,"Other Expenditure",1200,"Finance and administration",1201,"Administrative and Corporate Support","_"," _"," _","O","IE"," _ "," _ "," _ "," _ "," _ "," _ ","_","_"," _ "," _ "," _ "," _ "," _ "," _ "," _ "," _ ",null," _ "," _ "," _ "," _ ",null,null,null," _ "," _ "," _ "," _ "," _ "," _ "," _ "," _ "," _ "," _ "," _ ",null," _ "," _ "," _ "," _ "," _ ",null," _ "," _ "," _ "," _ ",null,2,21,"Administrative and Corporate Support","Finance and Administration",null,null,265,0,0,0,1000,0,0,0,0,"_","_","_","_"]
["O0001/IE00144/F0041/X046/R0374/001/0044","O0001/IE00144/F0041/X046/R0374/001/0044",556,544,"Expenditure:Operational Cost:Travel and Subsistence:Domestic:Transport without Operator:Own Transport",2900,"Other expenditure","_","_",2904,"Other Expenditure",1200,"Finance and administration",1201,"Administrative and Corporate Support","_"," _"," _","O","IE"," _ "," _ "," _ "," _ "," _ "," _ ","_","_"," _ "," _ "," _ "," _ "," _ "," _ "," _ "," _ ",null," _ "," _ "," _ "," _ ",null,null,null," _ "," _ "," _ "," _ "," _ "," _ "," _ "," _ "," _ "," _ "," _ ",null," _ "," _ "," _ "," _ "," _ ",null," _ "," _ "," _ "," _ ",null,2,21,"Administrative and Corporate Support","Finance and Administration",null,null,30741,0,0,35000,15000,10000,51273,54041,1577,"_","_","_","_"]
["O0001/IE00677/F0041/X046/R0374/001/0044","O0001/IE00677/F0041/X046/R0374/001/0044",557,545,"Expenditure:Contracted Services:Outsourced Services:Catering Services",2700,"Contracted services","2700-001","Outsourced Services",2701,"Outsourced Services",1200,"Finance and administration",1201,"Administrative and Corporate Support","_"," _"," _","O","IE"," _ "," _ "," _ "," _ "," _ "," _ ","_","_"," _ "," _ "," _ "," _ "," _ "," _ "," _ "," _ ",null," _ "," _ "," _ "," _ ",null,null,null," _ "," _ "," _ "," _ "," _ "," _ "," _ "," _ "," _ "," _ "," _ ",null," _ "," _ "," _ "," _ "," _ ",null," _ "," _ "," _ "," _ ",null,2,21,"Administrative and Corporate Support","Finance and Administration",null,null,0,0,0,0,0,0,0,0,0,"_","_","_","_"]
["O0001/IE00060/F0041/X045/R0374/001/0043","O0001/IE00060/F0041/X045/R0374/001/0043",558,546,"Expenditure:Operational Cost:Travel and Subsistence:Domestic:Accommodation",2900,"Other expenditure","_","_",2904,"Other Expenditure",1100,"Executive and council",1120,"Municipal Manager, Town Secretary and Chief Executive","_"," _"," _","O","IE"," _ "," _ "," _ "," _ "," _ "," _ ","_","_"," _ "," _ "," _ "," _ "," _ "," _ "," _ "," _ ",null," _ "," _ "," _ "," _ ",null,null,null," _ "," _ "," _ "," _ "," _ "," _ "," _ "," _ "," _ "," _ "," _ ",null," _ "," _ "," _ "," _ "," _ ",null," _ "," _ "," _ "," _ ",null,1,12,"Municipal Manager, Town Secretary and Chief Executive","Executive and Council",null,null,942,36556,0,45000,20000,11000,32169,33906,0,"_","_","_","_"]
["O0001/IE00144/F0041/X045/R0374/001/0043","O0001/IE00144/F0041/X045/R0374/001/0043",559,547,"Expenditure:Operational Cost:Travel and Subsistence:Domestic:Transport without Operator:Own Transport",2900,"Other expenditure","_","_",2904,"Other Expenditure",1100,"Executive and council",1120,"Municipal Manager, Town Secretary and Chief Executive","_"," _"," _","O","IE"," _ "," _ "," _ "," _ "," _ "," _ ","_","_"," _ "," _ "," _ "," _ "," _ "," _ "," _ "," _ ",null," _ "," _ "," _ "," _ ",null,null,null," _ "," _ "," _ "," _ "," _ "," _ "," _ "," _ "," _ "," _ "," _ ",null," _ "," _ "," _ "," _ "," _ ",null," _ "," _ "," _ "," _ ",null,1,12,"Municipal Manager, Town Secretary and Chief Executive","Executive and Council",null,null,55442,69192,0,64000,30000,15000,51273,54041,0,"_","_","_","_"]
["O0001/IE00063/F0041/X045/R0374/001/0043","O0001/IE00063/F0041/X045/R0374/001/0043",560,548,"Expenditure:Operational Cost:Travel and Subsistence:Domestic:Incidental Cost",2900,"Other expenditure","_","_",2904,"Other Expenditure",1100,"Executive and council",1120,"Municipal Manager, Town Secretary and Chief Executive","_"," _"," _","O","IE"," _ "," _ "," _ "," _ "," _ "," _ ","_","_"," _ "," _ "," _ "," _ "," _ "," _ "," _ "," _ ",null," _ "," _ "," _ "," _ ",null,null,null," _ "," _ "," _ "," _ "," _ "," _ "," _ "," _ "," _ "," _ "," _ ",null," _ "," _ "," _ "," _ "," _ ",null," _ "," _ "," _ "," _ ",null,1,12,"Municipal Manager, Town Secretary and Chief Executive","Executive and Council",null,null,0,0,0,2120,1500,0,0,0,0,"_","_","_","_"]
["O0001/IE00061/F0041/X045/R0374/001/0043","O0001/IE00061/F0041/X045/R0374/001/0043",561,549,"Expenditure:Operational Cost:Travel and Subsistence:Domestic:Daily Allowance",2900,"Other expenditure","_","_",2904,"Other Expenditure",1100,"Executive and council",1120,"Municipal Manager, Town Secretary and Chief Executive","_"," _"," _","O","IE"," _ "," _ "," _ "," _ "," _ "," _ ","_","_"," _ "," _ "," _ "," _ "," _ "," _ "," _ "," _ ",null," _ "," _ "," _ "," _ ",null,null,null," _ "," _ "," _ "," _ "," _ "," _ "," _ "," _ "," _ "," _ "," _ ",null," _ "," _ "," _ "," _ "," _ ",null," _ "," _ "," _ "," _ ",null,1,12,"Municipal Manager, Town Secretary and Chief Executive","Executive and Council",null,null,5270,23360,0,21000,7000,3500,24086,26196,327,"_","_","_","_"]
["O0001/IE00677/F0041/X045/R0374/001/0043","O0001/IE00677/F0041/X045/R0374/001/0043",562,550,"Expenditure:Contracted Services:Outsourced Services:Catering Services",2700,"Contracted services","2700-001","Outsourced Services",2701,"Outsourced Services",1100,"Executive and council",1120,"Municipal Manager, Town Secretary and Chief Executive","_"," _"," _","O","IE"," _ "," _ "," _ "," _ "," _ "," _ ","_","_"," _ "," _ "," _ "," _ "," _ "," _ "," _ "," _ ",null," _ "," _ "," _ "," _ ",null,null,null," _ "," _ "," _ "," _ "," _ "," _ "," _ "," _ "," _ "," _ "," _ ",null," _ "," _ "," _ "," _ "," _ ",null," _ "," _ "," _ "," _ ",null,1,12,"Municipal Manager, Town Secretary and Chief Executive","Executive and Council",null,null,0,0,0,0,0,0,0,0,0,"_","_","_","_"]
["O0001/IE00677/F0041/X098/R0374/001/0096","O0001/IE00677/F0041/X098/R0374/001/0096",563,551,"Expenditure:Contracted Services:Outsourced Services:Catering Services",2700,"Contracted services","2700-001","Outsourced Services",2701,"Outsourced Services",3100,"Planning and development",3105,"Economic Development/Planning","_"," _"," _","O","IE"," _ "," _ "," _ "," _ "," _ "," _ ","_","_"," _ "," _ "," _ "," _ "," _ "," _ "," _ "," _ ",null," _ "," _ "," _ "," _ ",null,null,null," _ "," _ "," _ "," _ "," _ "," _ "," _ "," _ "," _ "," _ "," _ ",null," _ "," _ "," _ "," _ "," _ ",null," _ "," _ "," _ "," _ ",null,3,33,"Economic Development/Planning","Planning and Development",null,null,0,0,0,0,0,0,0,0,0,"_","_","_","_"]
["O0001/IE00063/F0041/X098/R0374/001/0096","O0001/IE00063/F0041/X098/R0374/001/0096",564,552,"Expenditure:Operational Cost:Travel and Subsistence:Domestic:Incidental Cost",2900,"Other expenditure","_","_",2904,"Other Expenditure",3100,"Planning and development",3105,"Economic Development/Planning","_"," _"," _","O","IE"," _ "," _ "," _ "," _ "," _ "," _ ","_","_"," _ "," _ "," _ "," _ "," _ "," _ "," _ "," _ ",null," _ "," _ "," _ "," _ ",null,null,null," _ "," _ "," _ "," _ "," _ "," _ "," _ "," _ "," _ "," _ "," _ ",null," _ "," _ "," _ "," _ "," _ ",null," _ "," _ "," _ "," _ ",null,3,33,"Economic Development/Planning","Planning and Development",null,null,0,0,0,2000,1000,0,0,0,0,"_","_","_","_"]
["O0001/IE00060/F0041/X098/R0374/001/0096","O0001/IE00060/F0041/X098/R0374/001/0096",565,553,"Expenditure:Operational Cost:Travel and Subsistence:Domestic:Accommodation",2900,"Other expenditure","_","_",2904,"Other Expenditure",3100,"Planning and development",3105,"Economic Development/Planning","_"," _"," _","O","IE"," _ "," _ "," _ "," _ "," _ "," _ ","_","_"," _ "," _ "," _ "," _ "," _ "," _ "," _ "," _ ",null," _ "," _ "," _ "," _ ",null,null,null," _ "," _ "," _ "," _ "," _ "," _ "," _ "," _ "," _ "," _ "," _ ",null," _ "," _ "," _ "," _ "," _ ",null," _ "," _ "," _ "," _ ",null,3,33,"Economic Development/Planning","Planning and Development",null,null,4548,0,0,21000,10000,7500,23979,25273,0,"_","_","_","_"]
["O0001/IE00144/F0041/X098/R0374/001/0096","O0001/IE00144/F0041/X098/R0374/001/0096",566,554,"Expenditure:Operational Cost:Travel and Subsistence:Domestic:Transport without Operator:Own Transport",2900,"Other expenditure","_","_",2904,"Other Expenditure",3100,"Planning and development",3105,"Economic Development/Planning","_"," _"," _","O","IE"," _ "," _ "," _ "," _ "," _ "," _ ","_","_"," _ "," _ "," _ "," _ "," _ "," _ "," _ "," _ ",null," _ "," _ "," _ "," _ ",null,null,null," _ "," _ "," _ "," _ "," _ "," _ "," _ "," _ "," _ "," _ "," _ ",null," _ "," _ "," _ "," _ "," _ ",null," _ "," _ "," _ "," _ ",null,3,33,"Economic Development/Planning","Planning and Development",null,null,15140,238162,0,331000,310000,120000,380414,400956,0,"_","_","_","_"]
["O0001/IE00061/F0041/X098/R0374/001/0096","O0001/IE00061/F0041/X098/R0374/001/0096",567,555,"Expenditure:Operational Cost:Travel and Subsistence:Domestic:Daily Allowance",2900,"Other expenditure","_","_",2904,"Other Expenditure",3100,"Planning and development",3105,"Economic Development/Planning","_"," _"," _","O","IE"," _ "," _ "," _ "," _ "," _ "," _ ","_","_"," _ "," _ "," _ "," _ "," _ "," _ "," _ "," _ ",null," _ "," _ "," _ "," _ ",null,null,null," _ "," _ "," _ "," _ "," _ "," _ "," _ "," _ "," _ "," _ "," _ ",null," _ "," _ "," _ "," _ "," _ ",null," _ "," _ "," _ "," _ ",null,3,33,"Economic Development/Planning","Planning and Development",null,null,1615,29300,0,5000,2500,1500,5000,5000,0,"_","_","_","_"]
["O0001/IE01526/F0041/X045/R0374/001/43","O0001/IE01526/F0041/X045/R0374/001/43",568,556,"Expenditure:Employee Related Cost:Municipal Staff:Salaries, Wages and Allowances:Allowances:Service Related Benefits:Bonus",2000,"Employee related costs","2000-005","Performance Bonus",2005,"Performance Bonus",1100,"Executive and council",1120,"Municipal Manager, Town Secretary and Chief Executive","_"," _"," _","O","IE"," _ "," _ "," _ "," _ "," _ "," _ ","_","_"," _ "," _ "," _ "," _ "," _ "," _ "," _ "," _ ",null," _ "," _ "," _ "," _ ",null,null,null," _ "," _ "," _ "," _ "," _ "," _ "," _ "," _ "," _ "," _ "," _ ",null," _ "," _ "," _ "," _ "," _ ",null," _ "," _ "," _ "," _ ","MS",1,12,"Municipal Manager, Town Secretary and Chief Executive","Executive and Council",null,null,269046,283719,0,285862,0,0,0,0,285862,"_","_","_","_"]
["O0001/IE00121/F0041/X044/R0374/001/42","O0001/IE00121/F0041/X044/R0374/001/42",569,557,"Expenditure:Employee Related Cost:Municipal Staff:Salaries, Wages and Allowances:Allowances:Cellular and Telephone",2000,"Employee related costs","2000-007","Cellphone Allowance",2007,"Cellphone Allowance",1100,"Executive and council",1110,"Mayor and Council","_"," _"," _","O","IE"," _ "," _ "," _ "," _ "," _ "," _ ","_","_"," _ "," _ "," _ "," _ "," _ "," _ "," _ "," _ ",null," _ "," _ "," _ "," _ ",null,null,null," _ "," _ "," _ "," _ "," _ "," _ "," _ "," _ "," _ "," _ "," _ ",null," _ "," _ "," _ "," _ "," _ ",null," _ "," _ "," _ "," _ ","MS",1,11,"Mayor and Council","Executive and Council",null,null,0,2100,0,25200,25200,25200,25200,25200,0,"_","_","_","_"]
["O0001/IE00061/F0041/X019/R0374/001/96","O0001/IE00061/F0041/X019/R0374/001/96",570,558,"Expenditure:Operational Cost:Travel and Subsistence:Domestic:Daily Allowance",2900,"Other expenditure","_","_",2904,"Other Expenditure",2100,"Community and social services",2109,"Disaster Management","_"," _"," _","O","IE"," _ "," _ "," _ "," _ "," _ "," _ ","_","_"," _ "," _ "," _ "," _ "," _ "," _ "," _ "," _ ",null," _ "," _ "," _ "," _ ",null,null,null," _ "," _ "," _ "," _ "," _ "," _ "," _ "," _ "," _ "," _ "," _ ",null," _ "," _ "," _ "," _ "," _ ",null," _ "," _ "," _ "," _ ",null,4,41,"Disaster Management","Community and Social Services",null,null,0,5663,0,0,0,0,0,0,0,"_","_","_","_"]
["O0001/IE00063/F0041/X019/R0374/001/96","O0001/IE00063/F0041/X019/R0374/001/96",571,559,"Expenditure:Operational Cost:Travel and Subsistence:Domestic:Incidental Cost",2900,"Other expenditure","_","_",2904,"Other Expenditure",2100,"Community and social services",2109,"Disaster Management","_"," _"," _","O","IE"," _ "," _ "," _ "," _ "," _ "," _ ","_","_"," _ "," _ "," _ "," _ "," _ "," _ "," _ "," _ ",null," _ "," _ "," _ "," _ ",null,null,null," _ "," _ "," _ "," _ "," _ "," _ "," _ "," _ "," _ "," _ "," _ ",null," _ "," _ "," _ "," _ "," _ ",null," _ "," _ "," _ "," _ ",null,4,41,"Disaster Management","Community and Social Services",null,null,0,0,0,0,0,0,0,0,0,"_","_","_","_"]
["O0001/IE00144/F0041/X019/R0374/001/96","O0001/IE00144/F0041/X019/R0374/001/96",572,560,"Expenditure:Operational Cost:Travel and Subsistence:Domestic:Transport without Operator:Own Transport",2900,"Other expenditure","_","_",2904,"Other Expenditure",2100,"Community and social services",2109,"Disaster Management","_"," _"," _","O","IE"," _ "," _ "," _ "," _ "," _ "," _ ","_","_"," _ "," _ "," _ "," _ "," _ "," _ "," _ "," _ ",null," _ "," _ "," _ "," _ ",null,null,null," _ "," _ "," _ "," _ "," _ "," _ "," _ "," _ "," _ "," _ "," _ ",null," _ "," _ "," _ "," _ "," _ ",null," _ "," _ "," _ "," _ ",null,4,41,"Disaster Management","Community and Social Services",null,null,0,6533,0,500000,0,0,0,0,0,"_","_","_","_"]
["O0001/IE00060/F0041/X019/R0374/001/96","O0001/IE00060/F0041/X019/R0374/001/96",573,561,"Expenditure:Operational Cost:Travel and Subsistence:Domestic:Accommodation",2900,"Other expenditure","_","_",2904,"Other Expenditure",2100,"Community and social services",2109,"Disaster Management","_"," _"," _","O","IE"," _ "," _ "," _ "," _ "," _ "," _ ","_","_"," _ "," _ "," _ "," _ "," _ "," _ "," _ "," _ ",null," _ "," _ "," _ "," _ ",null,null,null," _ "," _ "," _ "," _ "," _ "," _ "," _ "," _ "," _ "," _ "," _ ",null," _ "," _ "," _ "," _ "," _ ",null," _ "," _ "," _ "," _ ",null,4,41,"Disaster Management","Community and Social Services",null,null,670,0,0,0,0,0,0,0,0,"_","_","_","_"]
["O0001/IE00677/F0041/X098/R0374/001/96","O0001/IE00677/F0041/X098/R0374/001/96",574,562,"Expenditure:Contracted Services:Outsourced Services:Catering Services",2700,"Contracted services","2700-001","Outsourced Services",2701,"Outsourced Services",3100,"Planning and development",3105,"Economic Development/Planning","_"," _"," _","O","IE"," _ "," _ "," _ "," _ "," _ "," _ ","_","_"," _ "," _ "," _ "," _ "," _ "," _ "," _ "," _ ",null," _ "," _ "," _ "," _ ",null,null,null," _ "," _ "," _ "," _ "," _ "," _ "," _ "," _ "," _ "," _ "," _ ",null," _ "," _ "," _ "," _ "," _ ",null," _ "," _ "," _ "," _ ",null,3,33,"Economic Development/Planning","Planning and Development",null,null,0,0,0,0,0,0,0,0,0,"_","_","_","_"]
["O0001/IE00061/F0041/X096/R0374/001/96","O0001/IE00061/F0041/X096/R0374/001/96",575,563,"Expenditure:Operational Cost:Travel and Subsistence:Domestic:Daily Allowance",2900,"Other expenditure","_","_",2904,"Other Expenditure",3100,"Planning and development",3102,"Corporate Wide Strategic Planning (IDPs, LEDs)","_"," _"," _","O","IE"," _ "," _ "," _ "," _ "," _ "," _ ","_","_"," _ "," _ "," _ "," _ "," _ "," _ "," _ "," _ ",null," _ "," _ "," _ "," _ ",null,null,null," _ "," _ "," _ "," _ "," _ "," _ "," _ "," _ "," _ "," _ "," _ ",null," _ "," _ "," _ "," _ "," _ ",null," _ "," _ "," _ "," _ ",null,3,31,"Corporate Wide Strategic Planning (IDPs, LEDs)","Planning and Development",null,null,41530,3296,0,0,0,0,0,0,14705,"_","_","_","_"]
["O0001/IE00063/F0041/X096/R0374/001/96","O0001/IE00063/F0041/X096/R0374/001/96",576,564,"Expenditure:Operational Cost:Travel and Subsistence:Domestic:Incidental Cost",2900,"Other expenditure","_","_",2904,"Other Expenditure",3100,"Planning and development",3102,"Corporate Wide Strategic Planning (IDPs, LEDs)","_"," _"," _","O","IE"," _ "," _ "," _ "," _ "," _ "," _ ","_","_"," _ "," _ "," _ "," _ "," _ "," _ "," _ "," _ ",null," _ "," _ "," _ "," _ ",null,null,null," _ "," _ "," _ "," _ "," _ "," _ "," _ "," _ "," _ "," _ "," _ ",null," _ "," _ "," _ "," _ "," _ ",null," _ "," _ "," _ "," _ ",null,3,31,"Corporate Wide Strategic Planning (IDPs, LEDs)","Planning and Development",null,null,0,0,0,0,0,0,0,0,0,"_","_","_","_"]
["O0001/IE00677/F0041/X096/R0374/001/96","O0001/IE00677/F0041/X096/R0374/001/96",577,565,"Expenditure:Contracted Services:Outsourced Services:Catering Services",2700,"Contracted services","2700-001","Outsourced Services",2701,"Outsourced Services",3100,"Planning and development",3102,"Corporate Wide Strategic Planning (IDPs, LEDs)","_"," _"," _","O","IE"," _ "," _ "," _ "," _ "," _ "," _ ","_","_"," _ "," _ "," _ "," _ "," _ "," _ "," _ "," _ ",null," _ "," _ "," _ "," _ ",null,null,null," _ "," _ "," _ "," _ "," _ "," _ "," _ "," _ "," _ "," _ "," _ ",null," _ "," _ "," _ "," _ "," _ ",null," _ "," _ "," _ "," _ ",null,3,31,"Corporate Wide Strategic Planning (IDPs, LEDs)","Planning and Development",null,null,0,0,0,0,0,0,0,0,0,"_","_","_","_"]
["O0001/IE00060/F0041/X096/R0374/001/96","O0001/IE00060/F0041/X096/R0374/001/96",578,566,"Expenditure:Operational Cost:Travel and Subsistence:Domestic:Accommodation",2900,"Other expenditure","_","_",2904,"Other Expenditure",3100,"Planning and development",3102,"Corporate Wide Strategic Planning (IDPs, LEDs)","_"," _"," _","O","IE"," _ "," _ "," _ "," _ "," _ "," _ ","_","_"," _ "," _ "," _ "," _ "," _ "," _ "," _ "," _ ",null," _ "," _ "," _ "," _ ",null,null,null," _ "," _ "," _ "," _ "," _ "," _ "," _ "," _ "," _ "," _ "," _ ",null," _ "," _ "," _ "," _ "," _ ",null," _ "," _ "," _ "," _ ",null,3,31,"Corporate Wide Strategic Planning (IDPs, LEDs)","Planning and Development",null,null,0,2630,0,0,0,0,0,0,0,"_","_","_","_"]
["O0001/IE00144/F0041/X096/R0374/001/96","O0001/IE00144/F0041/X096/R0374/001/96",579,567,"Expenditure:Operational Cost:Travel and Subsistence:Domestic:Transport without Operator:Own Transport",2900,"Other expenditure","_","_",2904,"Other Expenditure",3100,"Planning and development",3102,"Corporate Wide Strategic Planning (IDPs, LEDs)","_"," _"," _","O","IE"," _ "," _ "," _ "," _ "," _ "," _ ","_","_"," _ "," _ "," _ "," _ "," _ "," _ "," _ "," _ ",null," _ "," _ "," _ "," _ ",null,null,null," _ "," _ "," _ "," _ "," _ "," _ "," _ "," _ "," _ "," _ "," _ ",null," _ "," _ "," _ "," _ "," _ ",null," _ "," _ "," _ "," _ ",null,3,31,"Corporate Wide Strategic Planning (IDPs, LEDs)","Planning and Development",null,null,134982,36274,0,500000,0,0,0,0,151468,"_","_","_","_"]
["O0001/IE00060/F0041/X037/R0374/001/96","O0001/IE00060/F0041/X037/R0374/001/96",580,568,"Expenditure:Operational Cost:Travel and Subsistence:Domestic:Accommodation",2900,"Other expenditure","_","_",2904,"Other Expenditure",3300,"Environmental protection",3301,"Biodiversity and Landscape","_"," _"," _","O","IE"," _ "," _ "," _ "," _ "," _ "," _ ","_","_"," _ "," _ "," _ "," _ "," _ "," _ "," _ "," _ ",null," _ "," _ "," _ "," _ ",null,null,null," _ "," _ "," _ "," _ "," _ "," _ "," _ "," _ "," _ "," _ "," _ ",null," _ "," _ "," _ "," _ "," _ ",null," _ "," _ "," _ "," _ ",null,5,51,"Biodiversity and Landscape","Environmental Protection",null,null,0,978,0,0,0,0,0,0,0,"_","_","_","_"]
["O0001/IE00061/F0041/X037/R0374/001/96","O0001/IE00061/F0041/X037/R0374/001/96",581,569,"Expenditure:Operational Cost:Travel and Subsistence:Domestic:Daily Allowance",2900,"Other expenditure","_","_",2904,"Other Expenditure",3300,"Environmental protection",3301,"Biodiversity and Landscape","_"," _"," _","O","IE"," _ "," _ "," _ "," _ "," _ "," _ ","_","_"," _ "," _ "," _ "," _ "," _ "," _ "," _ "," _ ",null," _ "," _ "," _ "," _ ",null,null,null," _ "," _ "," _ "," _ "," _ "," _ "," _ "," _ "," _ "," _ "," _ ",null," _ "," _ "," _ "," _ "," _ ",null," _ "," _ "," _ "," _ ",null,5,51,"Biodiversity and Landscape","Environmental Protection",null,null,0,34409,0,0,0,0,0,0,0,"_","_","_","_"]
["O0001/IE00144/F0041/X037/R0374/001/96","O0001/IE00144/F0041/X037/R0374/001/96",582,570,"Expenditure:Operational Cost:Travel and Subsistence:Domestic:Transport without Operator:Own Transport",2900,"Other expenditure","_","_",2904,"Other Expenditure",3300,"Environmental protection",3301,"Biodiversity and Landscape","_"," _"," _","O","IE"," _ "," _ "," _ "," _ "," _ "," _ ","_","_"," _ "," _ "," _ "," _ "," _ "," _ "," _ "," _ ",null," _ "," _ "," _ "," _ ",null,null,null," _ "," _ "," _ "," _ "," _ "," _ "," _ "," _ "," _ "," _ "," _ ",null," _ "," _ "," _ "," _ "," _ ",null," _ "," _ "," _ "," _ ",null,5,51,"Biodiversity and Landscape","Environmental Protection",null,null,0,11840,0,500000,0,0,0,0,0,"_","_","_","_"]
["O0001/IE00677/F0041/X037/R0374/001/96","O0001/IE00677/F0041/X037/R0374/001/96",583,571,"Expenditure:Contracted Services:Outsourced Services:Catering Services",2700,"Contracted services","2700-001","Outsourced Services",2701,"Outsourced Services",3300,"Environmental protection",3301,"Biodiversity and Landscape","_"," _"," _","O","IE"," _ "," _ "," _ "," _ "," _ "," _ ","_","_"," _ "," _ "," _ "," _ "," _ "," _ "," _ "," _ ",null," _ "," _ "," _ "," _ ",null,null,null," _ "," _ "," _ "," _ "," _ "," _ "," _ "," _ "," _ "," _ "," _ ",null," _ "," _ "," _ "," _ "," _ ",null," _ "," _ "," _ "," _ ",null,5,51,"Biodiversity and Landscape","Environmental Protection",null,null,0,0,0,0,0,0,0,0,0,"_","_","_","_"]
["O0001/IE00063/F0041/X037/R0374/001/96","O0001/IE00063/F0041/X037/R0374/001/96",584,572,"Expenditure:Operational Cost:Travel and Subsistence:Domestic:Incidental Cost",2900,"Other expenditure","_","_",2904,"Other Expenditure",3300,"Environmental protection",3301,"Biodiversity and Landscape","_"," _"," _","O","IE"," _ "," _ "," _ "," _ "," _ "," _ ","_","_"," _ "," _ "," _ "," _ "," _ "," _ "," _ "," _ ",null," _ "," _ "," _ "," _ ",null,null,null," _ "," _ "," _ "," _ "," _ "," _ "," _ "," _ "," _ "," _ "," _ ",null," _ "," _ "," _ "," _ "," _ ",null," _ "," _ "," _ "," _ ",null,5,51,"Biodiversity and Landscape","Environmental Protection",null,null,0,0,0,0,0,0,0,0,0,"_","_","_","_"]
["O0001/IE00677/F1169/X097/R0374/001/96","O0001/IE00677/F1169/X097/R0374/001/96",585,573,"Expenditure:Contracted Services:Outsourced Services:Catering Services",2700,"Contracted services","2700-001","Outsourced Services",2701,"Outsourced Services",3100,"Planning and development",3104,"Development Facilitation","_"," _"," _","O","IE"," _ "," _ "," _ "," _ "," _ "," _ ","_","_"," _ "," _ "," _ "," _ "," _ "," _ "," _ "," _ ",null," _ "," _ "," _ "," _ ",null,null,null," _ "," _ "," _ "," _ "," _ "," _ "," _ "," _ "," _ "," _ "," _ ",null," _ "," _ "," _ "," _ "," _ ",null," _ "," _ "," _ "," _ ",null,3,32,"Development Facilitation","Planning and Development",null,null,0,0,0,0,0,0,0,0,0,"_","_","_","_"]
["O0001/IE00060/F1169/X097/R0374/001/96","O0001/IE00060/F1169/X097/R0374/001/96",586,574,"Expenditure:Operational Cost:Travel and Subsistence:Domestic:Accommodation",2900,"Other expenditure","_","_",2904,"Other Expenditure",3100,"Planning and development",3104,"Development Facilitation","_"," _"," _","O","IE"," _ "," _ "," _ "," _ "," _ "," _ ","_","_"," _ "," _ "," _ "," _ "," _ "," _ "," _ "," _ ",null," _ "," _ "," _ "," _ ",null,null,null," _ "," _ "," _ "," _ "," _ "," _ "," _ "," _ "," _ "," _ "," _ ",null," _ "," _ "," _ "," _ "," _ ",null," _ "," _ "," _ "," _ ",null,3,32,"Development Facilitation","Planning and Development",null,null,0,6025,0,0,0,0,0,0,0,"_","_","_","_"]
["O0001/IE00063/F1169/X097/R0374/001/96","O0001/IE00063/F1169/X097/R0374/001/96",587,575,"Expenditure:Operational Cost:Travel and Subsistence:Domestic:Incidental Cost",2900,"Other expenditure","_","_",2904,"Other Expenditure",3100,"Planning and development",3104,"Development Facilitation","_"," _"," _","O","IE"," _ "," _ "," _ "," _ "," _ "," _ ","_","_"," _ "," _ "," _ "," _ "," _ "," _ "," _ "," _ ",null," _ "," _ "," _ "," _ ",null,null,null," _ "," _ "," _ "," _ "," _ "," _ "," _ "," _ "," _ "," _ "," _ ",null," _ "," _ "," _ "," _ "," _ ",null," _ "," _ "," _ "," _ ",null,3,32,"Development Facilitation","Planning and Development",null,null,0,0,0,0,0,0,0,0,0,"_","_","_","_"]
["O0001/IE00144/F1169/X097/R0374/001/96","O0001/IE00144/F1169/X097/R0374/001/96",588,576,"Expenditure:Operational Cost:Travel and Subsistence:Domestic:Transport without Operator:Own Transport",2900,"Other expenditure","_","_",2904,"Other Expenditure",3100,"Planning and development",3104,"Development Facilitation","_"," _"," _","O","IE"," _ "," _ "," _ "," _ "," _ "," _ ","_","_"," _ "," _ "," _ "," _ "," _ "," _ "," _ "," _ ",null," _ "," _ "," _ "," _ ",null,null,null," _ "," _ "," _ "," _ "," _ "," _ "," _ "," _ "," _ "," _ "," _ ",null," _ "," _ "," _ "," _ "," _ ",null," _ "," _ "," _ "," _ ",null,3,32,"Development Facilitation","Planning and Development",null,null,0,27558,0,0,0,0,0,0,0,"_","_","_","_"]
["O0001/IE00061/F1169/X097/R0374/001/96","O0001/IE00061/F1169/X097/R0374/001/96",589,577,"Expenditure:Operational Cost:Travel and Subsistence:Domestic:Daily Allowance",2900,"Other expenditure","_","_",2904,"Other Expenditure",3100,"Planning and development",3104,"Development Facilitation","_"," _"," _","O","IE"," _ "," _ "," _ "," _ "," _ "," _ ","_","_"," _ "," _ "," _ "," _ "," _ "," _ "," _ "," _ ",null," _ "," _ "," _ "," _ ",null,null,null," _ "," _ "," _ "," _ "," _ "," _ "," _ "," _ "," _ "," _ "," _ ",null," _ "," _ "," _ "," _ "," _ ",null," _ "," _ "," _ "," _ ",null,3,32,"Development Facilitation","Planning and Development",null,null,255,3239,0,0,0,0,0,0,0,"_","_","_","_"]
["O0001/IE00516/F0041/X097/R0374/001/96","O0001/IE00516/F0041/X097/R0374/001/96",590,578,"Expenditure:Bad Debts Written Off",2200,"Debt impairment",2200,"Debt impairment"," _ "," _ ",3100,"Planning and development",3104,"Development Facilitation","_"," _"," _","O","IE"," _ "," _ "," _ "," _ "," _ "," _ ","_","_"," _ "," _ "," _ "," _ "," _ "," _ "," _ "," _ ",null," _ "," _ "," _ "," _ ",null,null,null," _ "," _ "," _ "," _ "," _ "," _ "," _ "," _ "," _ "," _ "," _ ",null," _ "," _ "," _ "," _ "," _ ",null," _ "," _ "," _ "," _ ",null,3,32,"Development Facilitation","Planning and Development",null,null,0,0,0,491000,0,0,0,0,0,"_","_","_","_"]
["O0001/IE00516/F0041/X046/R0374/001/44","O0001/IE00516/F0041/X046/R0374/001/44",591,579,"Expenditure:Bad Debts Written Off",2200,"Debt impairment",2200,"Debt impairment"," _ "," _ ",1200,"Finance and administration",1201,"Administrative and Corporate Support","_"," _"," _","O","IE"," _ "," _ "," _ "," _ "," _ "," _ ","_","_"," _ "," _ "," _ "," _ "," _ "," _ "," _ "," _ ",null," _ "," _ "," _ "," _ ",null,null,null," _ "," _ "," _ "," _ "," _ "," _ "," _ "," _ "," _ "," _ "," _ ",null," _ "," _ "," _ "," _ "," _ ",null," _ "," _ "," _ "," _ ",null,2,21,"Administrative and Corporate Support","Finance and Administration",null,null,0,0,0,0,0,0,0,0,0,"_","_","_","_"]
["O0001/IE00516/F0041/X044/R0374/001/42","O0001/IE00516/F0041/X044/R0374/001/42",592,580,"Expenditure:Bad Debts Written Off",2200,"Debt impairment",2200,"Debt impairment"," _ "," _ ",1100,"Executive and council",1110,"Mayor and Council","_"," _"," _","O","IE"," _ "," _ "," _ "," _ "," _ "," _ ","_","_"," _ "," _ "," _ "," _ "," _ "," _ "," _ "," _ ",null," _ "," _ "," _ "," _ ",null,null,null," _ "," _ "," _ "," _ "," _ "," _ "," _ "," _ "," _ "," _ "," _ ",null," _ "," _ "," _ "," _ "," _ ",null," _ "," _ "," _ "," _ ",null,1,11,"Mayor and Council","Executive and Council",null,null,496592,0,0,0,0,0,0,0,0,"_","_","_","_"]
["D0001/IR01480/F0001/X049/R0374/001/46","D0001/IR01480/F0001/X049/R0374/001/46",593,581,"Revenue:Non-exchange Revenue:Licences or Permits:Trading",1300,"Licences and permits",1300,"Licences and permits"," _ "," _ ",1200,"Finance and administration",1204,"Finance","_"," _"," _","D","IR"," _ "," _ "," _ "," _ "," _ "," _ ","_","_"," _ "," _ "," _ "," _ "," _ "," _ "," _ "," _ ",null," _ "," _ "," _ "," _ ",null,null,null," _ "," _ "," _ "," _ "," _ "," _ "," _ "," _ "," _ "," _ "," _ ",null," _ "," _ "," _ "," _ "," _ ",null," _ "," _ "," _ "," _ ",null,2,22,"Finance","Finance and Administration",null,null,796164,0,0,-30000,-20000,-20000,-35000,-40000,0,"_","_","_","_"]
["D0001/IR006912/F13576/X049/R0374/001/46","D0001/IR006912/F13576/X049/R0374/001/46",594,582,"Revenue:Non-exchange Revenue:Transfers and Subsidies:Operational:Monetary Allocations:Provincial Government:Free State:Capacity Building and Other:Specify (Add grant description)",1500,"Transfers and subsidies",1500,"Transfers and subsidies"," _ "," _ ",1200,"Finance and administration",1204,"Finance","_"," _"," _","D","IR"," _ "," _ "," _ "," _ "," _ "," _ ","_","_"," _ "," _ "," _ "," _ "," _ "," _ "," _ "," _ ",null," _ "," _ "," _ "," _ ",null,null,null," _ "," _ "," _ "," _ "," _ "," _ "," _ "," _ "," _ "," _ "," _ ",null," _ "," _ "," _ "," _ "," _ ",null," _ "," _ "," _ "," _ ",null,2,22,"Finance","Finance and Administration",null,null,3237345,6654502,0,-2723000,-1500000,-1840000,-2880800,-2880800,1872804,"_","_","_","_"]
["D0001/IR01193/F0001/X049/R0374/001/46","D0001/IR01193/F0001/X049/R0374/001/46",595,583,"Revenue:Exchange Revenue:Rental from Fixed Assets:Market Related:Property Plant and Equipment:Straight-lined Operating:Other Assets",800,"Rental of facilities and equipment",800,"Rental of facilities and equipment"," _ "," _ ",1200,"Finance and administration",1204,"Finance","_"," _"," _","D","IR"," _ "," _ "," _ "," _ "," _ "," _ ","_","_"," _ "," _ "," _ "," _ "," _ "," _ "," _ "," _ ",null," _ "," _ "," _ "," _ ",null,null,null," _ "," _ "," _ "," _ "," _ "," _ "," _ "," _ "," _ "," _ "," _ ",null," _ "," _ "," _ "," _ "," _ ",null," _ "," _ "," _ "," _ ",null,2,22,"Finance","Finance and Administration",null,null,0,427266,0,-649183,-649183,-649183,-174001,-191401,46106,"_","_","_","_"]
["D0001/IR02344/F0041/X049/R0374/001/46","D0001/IR02344/F0041/X049/R0374/001/46",596,584,"Revenue:Non-exchange Revenue:Transfers and Subsidies:Operational:Monetary Allocations:National Revenue Fund:Equitable Share",1500,"Transfers and subsidies",1500,"Transfers and subsidies"," _ "," _ ",1200,"Finance and administration",1204,"Finance","_"," _"," _","D","IR"," _ "," _ "," _ "," _ "," _ "," _ ","_","_"," _ "," _ "," _ "," _ "," _ "," _ "," _ "," _ ",null," _ "," _ "," _ "," _ ",null,null,null," _ "," _ "," _ "," _ "," _ "," _ "," _ "," _ "," _ "," _ "," _ ",null," _ "," _ "," _ "," _ "," _ ",null," _ "," _ "," _ "," _ ",null,2,22,"Finance","Finance and Administration",null,null,8810030,8126024,0,-10607925,-11057675,-11102675,-9782000,-9861192,9546728,"_","_","_","_"]
["D0001/IR02318/F1177/X049/R0374/001/46","D0001/IR02318/F1177/X049/R0374/001/46",597,585,"Revenue:Non-exchange Revenue:Transfers and Subsidies:Operational:Monetary Allocations:National Governments:Local Government Financial Management Grant",1500,"Transfers and subsidies",1500,"Transfers and subsidies"," _ "," _ ",1200,"Finance and administration",1204,"Finance","_"," _"," _","D","IR"," _ "," _ "," _ "," _ "," _ "," _ ","_","_"," _ "," _ "," _ "," _ "," _ "," _ "," _ "," _ ",null," _ "," _ "," _ "," _ ",null,null,null," _ "," _ "," _ "," _ "," _ "," _ "," _ "," _ "," _ "," _ "," _ ",null," _ "," _ "," _ "," _ "," _ ",null," _ "," _ "," _ "," _ ",null,2,22,"Finance","Finance and Administration",null,null,1785000,1320000,0,-1500000,-2723000,-1650000,-1720000,-1720000,774529,"_","_","_","_"]
["O1547-1/IE00650/F0041/X049/R0374/001/46","O1547-1/IE00650/F0041/X049/R0374/001/46",598,587,"Expenditure:Contracted Services:Contractors:Maintenance of Equipment",2700,"Contracted services","2700-003","Contractors",2703,"Contractors",1200,"Finance and administration",1204,"Finance","_"," _"," _","O","IE"," _ "," _ "," _ "," _ "," _ "," _ ","_","_"," _ "," _ "," _ "," _ "," _ "," _ "," _ "," _ ",null," _ "," _ "," _ "," _ ",null,null,null," _ "," _ "," _ "," _ "," _ "," _ ",1470,"Computer Equipment"," _ ",1470,"Computer Equipment","RM"," _ "," _ "," _ "," _ "," _ ",null," _ "," _ "," _ "," _ ",null,2,22,"Finance","Finance and Administration",null,null,0,0,0,0,0,0,0,0,0,"_","_","_","_"]
["O0001/IE00769/F0041/X045/R0374/001/43","O0001/IE00769/F0041/X045/R0374/001/43",599,588,"Expenditure:Operational Cost:Communication:Cellular Expenditure",2900,"Other expenditure","_","_",2904,"Other Expenditure",1100,"Executive and council",1120,"Municipal Manager, Town Secretary and Chief Executive","_"," _"," _","O","IE"," _ "," _ "," _ "," _ "," _ "," _ ","_","_"," _ "," _ "," _ "," _ "," _ "," _ "," _ "," _ ",null," _ "," _ "," _ "," _ ",null,null,null," _ "," _ "," _ "," _ "," _ "," _ "," _ "," _ "," _ "," _ "," _ ",null," _ "," _ "," _ "," _ "," _ ",null," _ "," _ "," _ "," _ ",null,1,12,"Municipal Manager, Town Secretary and Chief Executive","Executive and Council",null,null,0,0,0,0,0,0,0,0,0,"_","_","_","_"]
["O0001/IE00723/F0001/X045/R0374/001/43","O0001/IE00723/F0001/X045/R0374/001/43",600,589,"Expenditure:Depreciation and Amortisation:Depreciation:Transport Assets",2300,"Depreciation & asset impairment","2300-001","Depreciation of Property, Plant & Equipment",2301,"Depreciation of Property, Plant and Equipment",1100,"Executive and council",1120,"Municipal Manager, Town Secretary and Chief Executive","_"," _"," _","O","IE"," _ "," _ "," _ "," _ "," _ "," _ ","_","_"," _ "," _ "," _ "," _ "," _ "," _ "," _ "," _ ",null," _ "," _ "," _ "," _ ",null,null,null," _ "," _ "," _ "," _ "," _ "," _ "," _ "," _ "," _ "," _ "," _ ",null,1530,"Transport Assets"," _ ",1530,"Transport Assets","DP"," _ "," _ "," _ "," _ ",null,1,12,"Municipal Manager, Town Secretary and Chief Executive","Executive and Council",null,null,0,0,0,0,0,0,0,0,0,"_","_","_","_"]
["O0001/IE00715/F0001/X098/R0374/001/96","O0001/IE00715/F0001/X098/R0374/001/96",601,586,"Expenditure:Depreciation and Amortisation:Depreciation:Machinery and Equipment",2300,"Depreciation & asset impairment","2300-001","Depreciation of Property, Plant & Equipment",2301,"Depreciation of Property, Plant and Equipment",3100,"Planning and development",3105,"Economic Development/Planning","_"," _"," _","O","IE"," _ "," _ "," _ "," _ "," _ "," _ ","_","_"," _ "," _ "," _ "," _ "," _ "," _ "," _ "," _ ",null," _ "," _ "," _ "," _ ",null,null,null," _ "," _ "," _ "," _ "," _ "," _ "," _ "," _ "," _ "," _ "," _ ",null,1510,"Machinery and Equipment"," _ ",1510,"Machinery and Equipment","DP"," _ "," _ "," _ "," _ ",null,3,33,"Economic Development/Planning","Planning and Development",null,null,0,0,0,0,0,0,0,0,0,"_","_","_","_"]
["O0001/IE00709/F0001/X098/R0374/001/96","O0001/IE00709/F0001/X098/R0374/001/96",602,590,"Expenditure:Depreciation and Amortisation:Depreciation:Computer Equipment",2300,"Depreciation & asset impairment","2300-001","Depreciation of Property, Plant & Equipment",2301,"Depreciation of Property, Plant and Equipment",3100,"Planning and development",3105,"Economic Development/Planning","_"," _"," _","O","IE"," _ "," _ "," _ "," _ "," _ "," _ ","_","_"," _ "," _ "," _ "," _ "," _ "," _ "," _ "," _ ",null," _ "," _ "," _ "," _ ",null,null,null," _ "," _ "," _ "," _ "," _ "," _ "," _ "," _ "," _ "," _ "," _ ",null,1470,"Computer Equipment"," _ ",1470,"Computer Equipment","DP"," _ "," _ "," _ "," _ ",null,3,33,"Economic Development/Planning","Planning and Development",null,null,0,0,0,0,0,0,0,0,0,"_","_","_","_"]
["O0001/IE00711/F0001/X098/R0374/001/96","O0001/IE00711/F0001/X098/R0374/001/96",603,591,"Expenditure:Depreciation and Amortisation:Depreciation:Furniture and Office Equipment",2300,"Depreciation & asset impairment","2300-001","Depreciation of Property, Plant & Equipment",2301,"Depreciation of Property, Plant and Equipment",3100,"Planning and development",3105,"Economic Development/Planning","_"," _"," _","O","IE"," _ "," _ "," _ "," _ "," _ "," _ ","_","_"," _ "," _ "," _ "," _ "," _ "," _ "," _ "," _ ",null," _ "," _ "," _ "," _ ",null,null,null," _ "," _ "," _ "," _ "," _ "," _ "," _ "," _ "," _ "," _ "," _ ",null,1490,"Furniture and Office Equipment"," _ ",1490,"Furniture and Office Equipment","DP"," _ "," _ "," _ "," _ ",null,3,33,"Economic Development/Planning","Planning and Development",null,null,0,0,0,0,0,0,0,0,0,"_","_","_","_"]
["O0001/IE00723/F0001/X098/R0374/001/96","O0001/IE00723/F0001/X098/R0374/001/96",604,592,"Expenditure:Depreciation and Amortisation:Depreciation:Transport Assets",2300,"Depreciation & asset impairment","2300-001","Depreciation of Property, Plant & Equipment",2301,"Depreciation of Property, Plant and Equipment",3100,"Planning and development",3105,"Economic Development/Planning","_"," _"," _","O","IE"," _ "," _ "," _ "," _ "," _ "," _ ","_","_"," _ "," _ "," _ "," _ "," _ "," _ "," _ "," _ ",null," _ "," _ "," _ "," _ ",null,null,null," _ "," _ "," _ "," _ "," _ "," _ "," _ "," _ "," _ "," _ "," _ ",null,1530,"Transport Assets"," _ ",1530,"Transport Assets","DP"," _ "," _ "," _ "," _ ",null,3,33,"Economic Development/Planning","Planning and Development",null,null,0,0,0,0,0,0,0,0,0,"_","_","_","_"]
["O0001/IE00036/F1169/X098/R0374/001/96","O0001/IE00036/F1169/X098/R0374/001/96",605,593,"Expenditure:Employee Related Cost:Municipal Staff:Salaries, Wages and Allowances:Basic Salary and Wages",2000,"Employee related costs","2000-001","Basic Salaries and Wages",2001,"Basic Salaries and Wages",3100,"Planning and development",3105,"Economic Development/Planning","_"," _"," _","O","IE"," _ "," _ "," _ "," _ "," _ "," _ ","_","_"," _ "," _ "," _ "," _ "," _ "," _ "," _ "," _ ",null," _ "," _ "," _ "," _ ",null,null,null," _ "," _ "," _ "," _ "," _ "," _ "," _ "," _ "," _ "," _ "," _ ",null," _ "," _ "," _ "," _ "," _ ",null," _ "," _ "," _ "," _ ","MS",3,33,"Economic Development/Planning","Planning and Development",null,null,1095585,924892,0,1039000,987050,1340640,1340640,1340640,886110,"_","_","_","_"]
["O0001/IE00545/F0041/X098/R0374/001/96","O0001/IE00545/F0041/X098/R0374/001/96",606,594,"Expenditure:Operating Leases:Machinery and Equipment",2900,"Other expenditure","_","_",2904,"Other Expenditure",3100,"Planning and development",3105,"Economic Development/Planning","_"," _"," _","O","IE"," _ "," _ "," _ "," _ "," _ "," _ ","_","_"," _ "," _ "," _ "," _ "," _ "," _ "," _ "," _ ",null," _ "," _ "," _ "," _ ",null,null,null," _ "," _ "," _ "," _ "," _ "," _ "," _ "," _ "," _ "," _ "," _ ",null," _ "," _ "," _ "," _ "," _ ",null," _ "," _ "," _ "," _ ",null,3,33,"Economic Development/Planning","Planning and Development",null,null,45219,0,0,0,0,0,0,0,2155,"_","_","_","_"]
["O0001/IE00045/F1169/X098/R0374/001/96","O0001/IE00045/F1169/X098/R0374/001/96",10606,595,"Expenditure:Employee Related Cost:Municipal Staff:Social Contributions:Unemployment Insurance",2000,"Employee related costs","2000-002","Pension and UIF Contributions",2002,"Pension and UIF Contributions",3100,"Planning and development",3105,"Economic Development/Planning","_"," _"," _","O","IE"," _ "," _ "," _ "," _ "," _ "," _ ","_","_"," _ "," _ "," _ "," _ "," _ "," _ "," _ "," _ ",null," _ "," _ "," _ "," _ ",null,null,null," _ "," _ "," _ "," _ "," _ "," _ "," _ "," _ "," _ "," _ "," _ ",null," _ "," _ "," _ "," _ "," _ ",null," _ "," _ "," _ "," _ ","MS",3,33,"Economic Development/Planning","Planning and Development",null,null,10951,0,0,0,0,13680,13680,13680,8861,"_","_","_","_"]
["O0001/IE00595/F1169/X098/R0374/001/96","O0001/IE00595/F1169/X098/R0374/001/96",10607,596,"Expenditure:Operational Cost:Skills Development Fund Levy",2900,"Other expenditure","_","_",2904,"Other Expenditure",3100,"Planning and development",3105,"Economic Development/Planning","_"," _"," _","O","IE"," _ "," _ "," _ "," _ "," _ "," _ ","_","_"," _ "," _ "," _ "," _ "," _ "," _ "," _ "," _ ",null," _ "," _ "," _ "," _ ",null,null,null," _ "," _ "," _ "," _ "," _ "," _ "," _ "," _ "," _ "," _ "," _ ",null," _ "," _ "," _ "," _ "," _ ",null," _ "," _ "," _ "," _ ",null,3,33,"Economic Development/Planning","Planning and Development",null,null,10951,17996,0,0,0,13680,13680,13680,8861,"_","_","_","_"]
["O0001/IE01525/F0041/X098/R0374/001/96","O0001/IE01525/F0041/X098/R0374/001/96",10608,597,"Expenditure:Employee Related Cost:Municipal Staff:Salaries, Wages and Allowances:Allowances:Service Related Benefits:Acting and Post Related Allowances",2000,"Employee related costs","2000-009","Other benefits and allowances",2001,"Basic Salaries and Wages",3100,"Planning and development",3105,"Economic Development/Planning","_"," _"," _","O","IE"," _ "," _ "," _ "," _ "," _ "," _ ","_","_"," _ "," _ "," _ "," _ "," _ "," _ "," _ "," _ ",null," _ "," _ "," _ "," _ ",null,null,null," _ "," _ "," _ "," _ "," _ "," _ "," _ "," _ "," _ "," _ "," _ ",null," _ "," _ "," _ "," _ "," _ ",null," _ "," _ "," _ "," _ ","MS",3,33,"Economic Development/Planning","Planning and Development",null,null,0,69286,0,68818,76807,10000,68818,68818,39304,"_","_","_","_"]
["O0001/IE06978/F0041/X098/R0374/001/96","O0001/IE06978/F0041/X098/R0374/001/96",10609,598,"Expenditure:Employee Related Cost:Senior Management:Designation:Salaries and Allowances:Service Related Benefits:Acting and Post Related Allowances",2000,"Employee related costs","2000-009","Other benefits and allowances",2001,"Basic Salaries and Wages",3100,"Planning and development",3105,"Economic Development/Planning","_"," _"," _","O","IE"," _ "," _ "," _ "," _ "," _ "," _ ","_","_"," _ "," _ "," _ "," _ "," _ "," _ "," _ "," _ ",null," _ "," _ "," _ "," _ ",null,null,null," _ "," _ "," _ "," _ "," _ "," _ "," _ "," _ "," _ "," _ "," _ ",null," _ "," _ "," _ "," _ "," _ ",null," _ "," _ "," _ "," _ ","SM",3,33,"Economic Development/Planning","Planning and Development",null,null,0,0,0,0,0,0,0,0,0,"_","_","_","_"]
["O0001/IE01525/F0041/X046/R0374/001/44","O0001/IE01525/F0041/X046/R0374/001/44",10610,599,"Expenditure:Employee Related Cost:Municipal Staff:Salaries, Wages and Allowances:Allowances:Service Related Benefits:Acting and Post Related Allowances",2000,"Employee related costs","2000-009","Other benefits and allowances",2001,"Basic Salaries and Wages",1200,"Finance and administration",1201,"Administrative and Corporate Support","_"," _"," _","O","IE"," _ "," _ "," _ "," _ "," _ "," _ ","_","_"," _ "," _ "," _ "," _ "," _ "," _ "," _ "," _ ",null," _ "," _ "," _ "," _ ",null,null,null," _ "," _ "," _ "," _ "," _ "," _ "," _ "," _ "," _ "," _ "," _ ",null," _ "," _ "," _ "," _ "," _ ",null," _ "," _ "," _ "," _ ","MS",2,21,"Administrative and Corporate Support","Finance and Administration",null,null,112993,40012,0,68818,90807,10000,68818,68818,72413,"_","_","_","_"]
["O0001/IE06982/F0041/X046/R0374/001/44","O0001/IE06982/F0041/X046/R0374/001/44",10611,600,"Expenditure:Employee Related Cost:Senior Management:Designation:Salaries and Allowances:Service Related Benefits:Acting and Post Related Allowances",2000,"Employee related costs","2000-009","Other benefits and allowances",2001,"Basic Salaries and Wages",1200,"Finance and administration",1201,"Administrative and Corporate Support","_"," _"," _","O","IE"," _ "," _ "," _ "," _ "," _ "," _ ","_","_"," _ "," _ "," _ "," _ "," _ "," _ "," _ "," _ ",null," _ "," _ "," _ "," _ ",null,null,null," _ "," _ "," _ "," _ "," _ "," _ "," _ "," _ "," _ "," _ "," _ ",null," _ "," _ "," _ "," _ "," _ ",null," _ "," _ "," _ "," _ ","SM",2,21,"Administrative and Corporate Support","Finance and Administration",null,null,0,0,0,0,0,0,0,0,0,"_","_","_","_"]
["O0001/IE00567/F0041/X046/R0374/001/44","O0001/IE00567/F0041/X046/R0374/001/44",10612,601,"Expenditure:Operational Cost:External Audit Fees",2900,"Other expenditure","_","_",2903,"Audit fees",1200,"Finance and administration",1201,"Administrative and Corporate Support","_"," _"," _","O","IE"," _ "," _ "," _ "," _ "," _ "," _ ","_","_"," _ "," _ "," _ "," _ "," _ "," _ "," _ "," _ ",null," _ "," _ "," _ "," _ ",null,null,null," _ "," _ "," _ "," _ "," _ "," _ "," _ "," _ "," _ "," _ "," _ ",null," _ "," _ "," _ "," _ "," _ ",null," _ "," _ "," _ "," _ ",null,2,21,"Administrative and Corporate Support","Finance and Administration",null,null,0,0,0,0,0,0,0,0,0,"_","_","_","_"]
["O0001/IE00715/F0001/X046/R0374/001/44","O0001/IE00715/F0001/X046/R0374/001/44",10613,602,"Expenditure:Depreciation and Amortisation:Depreciation:Machinery and Equipment",2300,"Depreciation & asset impairment","2300-001","Depreciation of Property, Plant & Equipment",2301,"Depreciation of Property, Plant and Equipment",1200,"Finance and administration",1201,"Administrative and Corporate Support","_"," _"," _","O","IE"," _ "," _ "," _ "," _ "," _ "," _ ","_","_"," _ "," _ "," _ "," _ "," _ "," _ "," _ "," _ ",null," _ "," _ "," _ "," _ ",null,null,null," _ "," _ "," _ "," _ "," _ "," _ "," _ "," _ "," _ "," _ "," _ ",null,1510,"Machinery and Equipment"," _ ",1510,"Machinery and Equipment","DP"," _ "," _ "," _ "," _ ",null,2,21,"Administrative and Corporate Support","Finance and Administration",null,null,0,0,0,0,0,144713,144713,144713,0,"_","_","_","_"]
["O0001/IE07625/F0001/X046/R0374/001/44","O0001/IE07625/F0001/X046/R0374/001/44",10614,603,"Expenditure:Depreciation and Amortisation:Depreciation:Other Assets:Operational Buildings:Municipal Offices",2300,"Depreciation & asset impairment","2300-001","Depreciation of Property, Plant & Equipment",2301,"Depreciation of Property, Plant and Equipment",1200,"Finance and administration",1201,"Administrative and Corporate Support","_"," _"," _","O","IE"," _ "," _ "," _ "," _ "," _ "," _ ","_","_"," _ "," _ "," _ "," _ "," _ "," _ "," _ "," _ ",null," _ "," _ "," _ "," _ ",null,null,null," _ "," _ "," _ "," _ "," _ "," _ "," _ "," _ "," _ "," _ "," _ ",null,1200,"Municipal Offices"," _ ",1200,"Municipal Offices","DP"," _ "," _ "," _ "," _ ",null,2,21,"Administrative and Corporate Support","Finance and Administration",null,null,0,0,0,1660850,1810850,92146,92146,92146,0,"_","_","_","_"]
["O0001/IE00709/F0001/X046/R0374/001/44","O0001/IE00709/F0001/X046/R0374/001/44",10615,604,"Expenditure:Depreciation and Amortisation:Depreciation:Computer Equipment",2300,"Depreciation & asset impairment","2300-001","Depreciation of Property, Plant & Equipment",2301,"Depreciation of Property, Plant and Equipment",1200,"Finance and administration",1201,"Administrative and Corporate Support","_"," _"," _","O","IE"," _ "," _ "," _ "," _ "," _ "," _ ","_","_"," _ "," _ "," _ "," _ "," _ "," _ "," _ "," _ ",null," _ "," _ "," _ "," _ ",null,null,null," _ "," _ "," _ "," _ "," _ "," _ "," _ "," _ "," _ "," _ "," _ ",null,1470,"Computer Equipment"," _ ",1470,"Computer Equipment","DP"," _ "," _ "," _ "," _ ",null,2,21,"Administrative and Corporate Support","Finance and Administration",null,null,0,0,0,0,0,141001,141001,141001,0,"_","_","_","_"]
["O0001/IE00550/F0041/X046/R0374/001/44","O0001/IE00550/F0041/X046/R0374/001/44",10616,605,"Expenditure:Operational Cost:Assets less than the Capitalisation Threshold",2900,"Other expenditure","_","_",2904,"Other Expenditure",1200,"Finance and administration",1201,"Administrative and Corporate Support","_"," _"," _","O","IE"," _ "," _ "," _ "," _ "," _ "," _ ","_","_"," _ "," _ "," _ "," _ "," _ "," _ "," _ "," _ ",null," _ "," _ "," _ "," _ ",null,null,null," _ "," _ "," _ "," _ "," _ "," _ "," _ "," _ "," _ "," _ "," _ ",null," _ "," _ "," _ "," _ "," _ ",null," _ "," _ "," _ "," _ ",null,2,21,"Administrative and Corporate Support","Finance and Administration",null,null,8649,3553,0,25000,10000,0,0,0,0,"_","_","_","_"]
["O0001/IE00711/F0001/X046/R0374/001/44","O0001/IE00711/F0001/X046/R0374/001/44",10617,606,"Expenditure:Depreciation and Amortisation:Depreciation:Furniture and Office Equipment",2300,"Depreciation & asset impairment","2300-001","Depreciation of Property, Plant & Equipment",2301,"Depreciation of Property, Plant and Equipment",1200,"Finance and administration",1201,"Administrative and Corporate Support","_"," _"," _","O","IE"," _ "," _ "," _ "," _ "," _ "," _ ","_","_"," _ "," _ "," _ "," _ "," _ "," _ "," _ "," _ ",null," _ "," _ "," _ "," _ ",null,null,null," _ "," _ "," _ "," _ "," _ "," _ "," _ "," _ "," _ "," _ "," _ ",null,1490,"Furniture and Office Equipment"," _ ",1490,"Furniture and Office Equipment","DP"," _ "," _ "," _ "," _ ",null,2,21,"Administrative and Corporate Support","Finance and Administration",null,null,0,0,0,0,0,619666,619666,619666,0,"_","_","_","_"]
["O0001/IE00567/F0041/X097/R0374/001/96","O0001/IE00567/F0041/X097/R0374/001/96",10618,607,"Expenditure:Operational Cost:External Audit Fees",2900,"Other expenditure","_","_",2903,"Audit fees",3100,"Planning and development",3104,"Development Facilitation","_"," _"," _","O","IE"," _ "," _ "," _ "," _ "," _ "," _ ","_","_"," _ "," _ "," _ "," _ "," _ "," _ "," _ "," _ ",null," _ "," _ "," _ "," _ ",null,null,null," _ "," _ "," _ "," _ "," _ "," _ "," _ "," _ "," _ "," _ "," _ ",null," _ "," _ "," _ "," _ "," _ ",null," _ "," _ "," _ "," _ ",null,3,32,"Development Facilitation","Planning and Development",null,null,0,0,0,0,0,0,0,0,0,"_","_","_","_"]
["O0001/IE00080/F15763/X098/R0374/001/96","O0001/IE00080/F15763/X098/R0374/001/96",10619,608,"Expenditure:Contracted Services:Consultants and Professional Services:Infrastructure and Planning:Engineering:Civil",2700,"Contracted services","2700-002","Consultants and Professional Services",2702,"Consultants and Professional Services",3100,"Planning and development",3105,"Economic Development/Planning","_"," _"," _","O","IE"," _ "," _ "," _ "," _ "," _ "," _ ","_","_"," _ "," _ "," _ "," _ "," _ "," _ "," _ "," _ ",null," _ "," _ "," _ "," _ ",null,null,null," _ "," _ "," _ "," _ "," _ "," _ "," _ "," _ "," _ "," _ "," _ ",null," _ "," _ "," _ "," _ "," _ ",null," _ "," _ "," _ "," _ ",null,3,33,"Economic Development/Planning","Planning and Development",null,null,1408724,1868697,0,2167000,2167000,2196000,2304000,2307000,1259826,"_","_","_","_"]
["O0001/IE00130/F0041/X045/R0374/001/43","O0001/IE00130/F0041/X045/R0374/001/43",10620,609,"Expenditure:Employee Related Cost:Senior Management:Municipal Manager (MM):Salaries and Allowances:Bonuses",2000,"Employee related costs","2000-005","Performance Bonus",2005,"Performance Bonus",1100,"Executive and council",1120,"Municipal Manager, Town Secretary and Chief Executive","_"," _"," _","O","IE"," _ "," _ "," _ "," _ "," _ "," _ ","_","_"," _ "," _ "," _ "," _ "," _ "," _ "," _ "," _ ",null," _ "," _ "," _ "," _ ",null,null,null," _ "," _ "," _ "," _ "," _ "," _ "," _ "," _ "," _ "," _ "," _ ",null," _ "," _ "," _ "," _ "," _ ",null," _ "," _ "," _ "," _ ","SM",1,12,"Municipal Manager, Town Secretary and Chief Executive","Executive and Council",null,null,0,0,0,0,285862,301584,285862,285862,0,"_","_","_","_"]
["D0001/LN00008/F0041/X049/R0374/001/46","D0001/LN00008/F0041/X049/R0374/001/46",10621,610,"Net Assets:Accumulated Surplus/(Deficit):Transfers to/from Reserves"," _"," _"," _ "," _ "," _ "," _ ",1200,"Finance and administration",1204,"Finance","_"," _"," _","D","LN",460," Accumulated Surplus/(Deficit)",460,"Accumulated Surplus/(Deficit)"," _ "," _ ","_","_"," _ "," _ "," _ "," _ "," _ "," _ "," _ "," _ ",null,465,"Transfers from Reserves",465,"Transfers from Reserves",null,null,null," _ "," _ "," _ "," _ "," _ "," _ "," _ "," _ "," _ "," _ "," _ ",null," _ "," _ "," _ "," _ "," _ ",null," _ "," _ "," _ "," _ ",null,2,22,"Finance","Finance and Administration",null,null,0,0,0,0,0,0,0,0,0,"_","_","_","_"]
["D0001/LN00006/F0041/X049/R0374/001/46","D0001/LN00006/F0041/X049/R0374/001/46",10622,611,"Net Assets:Accumulated Surplus/(Deficit):Opening Balance"," _"," _"," _ "," _ "," _ "," _ ",1200,"Finance and administration",1204,"Finance","_"," _"," _","D","LN",460," Accumulated Surplus/(Deficit)",460,"Accumulated Surplus/(Deficit)"," _ "," _ ","_","_"," _ "," _ "," _ "," _ "," _ "," _ "," _ "," _ ",null,461,"Accumulated Surplus/(Deficit) - opening balance",461,"Accumulated Surplus/(Deficit) - opening balance",null,null,null," _ "," _ "," _ "," _ "," _ "," _ "," _ "," _ "," _ "," _ "," _ ",null," _ "," _ "," _ "," _ "," _ ",null," _ "," _ "," _ "," _ ",null,2,22,"Finance","Finance and Administration",null,null,0,0,0,0,0,0,0,0,0,"_","_","_","_"]
["D0001/IL37839/F0041/X049/R0374/001/46","D0001/IL37839/F0041/X049/R0374/001/46",10623,612,"Liabilities:Current Liabilities:VAT Control (Payable):Opening Balance"," _"," _"," _ "," _ "," _ "," _ ",1200,"Finance and administration",1204,"Finance","_"," _"," _","D","IL",360," Trade and other payables",360,"Trade and other payables"," _ "," _ ","_","_"," _ "," _ "," _ "," _ "," _ "," _ "," _ "," _ ",null,364,"VAT",364,"VAT",null,null,null," _ "," _ "," _ "," _ "," _ "," _ "," _ "," _ "," _ "," _ "," _ ",null," _ "," _ "," _ "," _ "," _ ",null," _ "," _ "," _ "," _ ",null,2,22,"Finance","Finance and Administration",null,null,0,0,0,0,0,0,0,0,0,"_","_","_","_"]
["O0001/IE00602/F0041/X045/R0374/001/43","O0001/IE00602/F0041/X045/R0374/001/43",10624,613,"Expenditure:Operational Cost:Toll Gate Fees",2900,"Other expenditure","_","_",2904,"Other Expenditure",1100,"Executive and council",1120,"Municipal Manager, Town Secretary and Chief Executive","_"," _"," _","O","IE"," _ "," _ "," _ "," _ "," _ "," _ ","_","_"," _ "," _ "," _ "," _ "," _ "," _ "," _ "," _ ",null," _ "," _ "," _ "," _ ",null,null,null," _ "," _ "," _ "," _ "," _ "," _ "," _ "," _ "," _ "," _ "," _ ",null," _ "," _ "," _ "," _ "," _ ",null," _ "," _ "," _ "," _ ",null,1,12,"Municipal Manager, Town Secretary and Chief Executive","Executive and Council",null,null,524,0,0,0,0,0,0,0,833,"_","_","_","_"]
["O0001/IE00602/F0041/X044/R0374/001/42","O0001/IE00602/F0041/X044/R0374/001/42",10625,614,"Expenditure:Operational Cost:Toll Gate Fees",2900,"Other expenditure","_","_",2904,"Other Expenditure",1100,"Executive and council",1110,"Mayor and Council","_"," _"," _","O","IE"," _ "," _ "," _ "," _ "," _ "," _ ","_","_"," _ "," _ "," _ "," _ "," _ "," _ "," _ "," _ ",null," _ "," _ "," _ "," _ ",null,null,null," _ "," _ "," _ "," _ "," _ "," _ "," _ "," _ "," _ "," _ "," _ ",null," _ "," _ "," _ "," _ "," _ ",null," _ "," _ "," _ "," _ ",null,1,11,"Mayor and Council","Executive and Council",null,null,200,0,0,0,0,0,0,0,760,"_","_","_","_"]
["O0001/IE00602/F0041/X098/R0374/001/96","O0001/IE00602/F0041/X098/R0374/001/96",10626,615,"Expenditure:Operational Cost:Toll Gate Fees",2900,"Other expenditure","_","_",2904,"Other Expenditure",3100,"Planning and development",3105,"Economic Development/Planning","_"," _"," _","O","IE"," _ "," _ "," _ "," _ "," _ "," _ ","_","_"," _ "," _ "," _ "," _ "," _ "," _ "," _ "," _ ",null," _ "," _ "," _ "," _ ",null,null,null," _ "," _ "," _ "," _ "," _ "," _ "," _ "," _ "," _ "," _ "," _ ",null," _ "," _ "," _ "," _ "," _ ",null," _ "," _ "," _ "," _ ",null,3,33,"Economic Development/Planning","Planning and Development",null,null,272,0,0,0,0,0,0,0,0,"_","_","_","_"]
["O0001/IE01530/F0041/X046/R0374/001/44","O0001/IE01530/F0041/X046/R0374/001/44",10627,616,"Expenditure:Employee Related Cost:Municipal Staff:Salaries, Wages and Allowances:Allowances:Service Related Benefits:Leave Pay",2000,"Employee related costs","2000-010","Payments in lieu of leave",2010,"Payments in lieu of leave",1200,"Finance and administration",1201,"Administrative and Corporate Support","_"," _"," _","O","IE"," _ "," _ "," _ "," _ "," _ "," _ ","_","_"," _ "," _ "," _ "," _ "," _ "," _ "," _ "," _ ",null," _ "," _ "," _ "," _ ",null,null,null," _ "," _ "," _ "," _ "," _ "," _ "," _ "," _ "," _ "," _ "," _ ",null," _ "," _ "," _ "," _ "," _ ",null," _ "," _ "," _ "," _ ","MS",2,21,"Administrative and Corporate Support","Finance and Administration",null,null,641430,-566159,0,0,0,0,0,0,241727,"_","_","_","_"]
["O0001/IE01530/F0041/X098/R0374/001/96","O0001/IE01530/F0041/X098/R0374/001/96",10628,617,"Expenditure:Employee Related Cost:Municipal Staff:Salaries, Wages and Allowances:Allowances:Service Related Benefits:Leave Pay",2000,"Employee related costs","2000-010","Payments in lieu of leave",2010,"Payments in lieu of leave",3100,"Planning and development",3105,"Economic Development/Planning","_"," _"," _","O","IE"," _ "," _ "," _ "," _ "," _ "," _ ","_","_"," _ "," _ "," _ "," _ "," _ "," _ "," _ "," _ ",null," _ "," _ "," _ "," _ ",null,null,null," _ "," _ "," _ "," _ "," _ "," _ "," _ "," _ "," _ "," _ "," _ ",null," _ "," _ "," _ "," _ "," _ ",null," _ "," _ "," _ "," _ ","MS",3,33,"Economic Development/Planning","Planning and Development",null,null,37228,102340,0,0,0,0,0,0,33385,"_","_","_","_"]
["D0001/IR02321/F1180/X098/R0374/001/96","D0001/IR02321/F1180/X098/R0374/001/96",10629,618,"Revenue:Non-exchange Revenue:Transfers and Subsidies:Operational:Monetary Allocations:National Governments:Municipal Disaster Relief Grant",1500,"Transfers and subsidies",1500,"Transfers and subsidies"," _ "," _ ",3100,"Planning and development",3105,"Economic Development/Planning","_"," _"," _","D","IR"," _ "," _ "," _ "," _ "," _ "," _ ","_","_"," _ "," _ "," _ "," _ "," _ "," _ "," _ "," _ ",null," _ "," _ "," _ "," _ ",null,null,null," _ "," _ "," _ "," _ "," _ "," _ "," _ "," _ "," _ "," _ "," _ ",null," _ "," _ "," _ "," _ "," _ ",null," _ "," _ "," _ "," _ ",null,3,33,"Economic Development/Planning","Planning and Development",null,null,0,0,0,-150000,-150000,0,0,0,0,"_","_","_","_"]
["D0001/IA10167/F0001/X049/R0374/001/46","D0001/IA10167/F0001/X049/R0374/001/46",10630,619,"Assets:Current Assets:Cash and Cash Equivalents:Call Deposits and Investments:Marketable Securities:Specify (replace with account description):Opening Balance"," _"," _"," _ "," _ "," _ "," _ ",1200,"Finance and administration",1204,"Finance","_"," _"," _","D","IA",130,"Call deposits and investments",130,"Call deposits and investments"," _ "," _ ","_","_"," _ "," _ "," _ "," _ "," _ "," _ "," _ "," _ ",null," _ "," _ "," _ "," _ ",null,null,null," _ "," _ "," _ "," _ "," _ "," _ "," _ "," _ "," _ "," _ "," _ ",null," _ "," _ "," _ "," _ "," _ ",null," _ "," _ "," _ "," _ ",null,2,22,"Finance","Finance and Administration",7,null,0,0,0,0,0,0,0,0,0,"_","_","_","_"]
["D0001/IA09128/F0001/X049/R0374/001/46","D0001/IA09128/F0001/X049/R0374/001/46",10631,620,"Assets:Current Assets:Cash and Cash Equivalents:Call Deposits and Investments:Marketable Securities:Specify (replace with account description):Deposits"," _"," _"," _ "," _ "," _ "," _ ",1200,"Finance and administration",1204,"Finance","_"," _"," _","D","IA",130,"Call deposits and investments",130,"Call deposits and investments"," _ "," _ ","_","_"," _ "," _ "," _ "," _ "," _ "," _ "," _ "," _ ",null," _ "," _ "," _ "," _ ",null,null,null," _ "," _ "," _ "," _ "," _ "," _ "," _ "," _ "," _ "," _ "," _ ",null," _ "," _ "," _ "," _ "," _ ",null," _ "," _ "," _ "," _ ",null,2,22,"Finance","Finance and Administration",7,null,11000000,0,0,0,0,0,0,0,25000000,"_","_","_","_"]
["D0001/IA09139/F0001/X049/R0374/001/46","D0001/IA09139/F0001/X049/R0374/001/46",10632,621,"Assets:Current Assets:Cash and Cash Equivalents:Call Deposits and Investments:Marketable Securities:Specify (replace with account description):Interest Earned"," _"," _"," _ "," _ "," _ "," _ ",1200,"Finance and administration",1204,"Finance","_"," _"," _","D","IA",130,"Call deposits and investments",130,"Call deposits and investments"," _ "," _ ","_","_"," _ "," _ "," _ "," _ "," _ "," _ "," _ "," _ ",null," _ "," _ "," _ "," _ ",null,null,null," _ "," _ "," _ "," _ "," _ "," _ "," _ "," _ "," _ "," _ "," _ ",null," _ "," _ "," _ "," _ "," _ ",null," _ "," _ "," _ "," _ ",null,2,22,"Finance","Finance and Administration",7,null,12160,0,0,0,0,0,0,0,-5048861,"_","_","_","_"]
["D0001/IA09114/F0001/X049/R0374/001/46","D0001/IA09114/F0001/X049/R0374/001/46",10633,622,"Assets:Current Assets:Cash and Cash Equivalents:Call Deposits and Investments:Marketable Securities:Specify (replace with account description):Charges"," _"," _"," _ "," _ "," _ "," _ ",1200,"Finance and administration",1204,"Finance","_"," _"," _","D","IA",130,"Call deposits and investments",130,"Call deposits and investments"," _ "," _ ","_","_"," _ "," _ "," _ "," _ "," _ "," _ "," _ "," _ ",null," _ "," _ "," _ "," _ ",null,null,null," _ "," _ "," _ "," _ "," _ "," _ "," _ "," _ "," _ "," _ "," _ ",null," _ "," _ "," _ "," _ "," _ ",null," _ "," _ "," _ "," _ ",null,2,22,"Finance","Finance and Administration",7,null,0,0,0,0,0,0,0,0,0,"_","_","_","_"]
["D0001/IA09140/F0001/X049/R0374/001/46","D0001/IA09140/F0001/X049/R0374/001/46",10634,623,"Assets:Current Assets:Cash and Cash Equivalents:Call Deposits and Investments:Marketable Securities:Specify (replace with account description):Withdrawals"," _"," _"," _ "," _ "," _ "," _ ",1200,"Finance and administration",1204,"Finance","_"," _"," _","D","IA",130,"Call deposits and investments",130,"Call deposits and investments"," _ "," _ ","_","_"," _ "," _ "," _ "," _ "," _ "," _ "," _ "," _ ",null," _ "," _ "," _ "," _ ",null,null,null," _ "," _ "," _ "," _ "," _ "," _ "," _ "," _ "," _ "," _ "," _ ",null," _ "," _ "," _ "," _ "," _ ",null," _ "," _ "," _ "," _ ",null,2,22,"Finance","Finance and Administration",7,null,-3500000,0,0,0,0,0,0,0,-34900000,"_","_","_","_"]
["D0001/LN00007/F0001/X049/R0373/001/46","D0001/LN00007/F0001/X049/R0373/001/46",10635,624,"Net Assets:Accumulated Surplus/(Deficit):Transfers to/from operating revenue and expenditure"," _"," _"," _ "," _ "," _ "," _ ",1200,"Finance and administration",1204,"Finance","_"," _"," _","D","LN",460," Accumulated Surplus/(Deficit)",460,"Accumulated Surplus/(Deficit)"," _ "," _ ","_","_"," _ "," _ "," _ "," _ "," _ "," _ "," _ "," _ ",null,464,"Appropriations to Reserves",464,"Appropriations to Reserves",null,null,null," _ "," _ "," _ "," _ "," _ "," _ "," _ "," _ "," _ "," _ "," _ ",null," _ "," _ "," _ "," _ "," _ ",null," _ "," _ "," _ "," _ ",null,2,22,"Finance","Finance and Administration",null,null,0,0,0,0,-9202318,0,0,0,0,"_","_","_","_"]
["D0001/IA09564/F13561/X049/R0373/001/46","D0001/IA09564/F13561/X049/R0373/001/46",10636,625,"Assets:Current Assets:Cash and Cash Equivalents:Cash at Bank:Bank Account:Specify (replace with account description):Deposits"," _"," _"," _ "," _ "," _ "," _ ",1200,"Finance and administration",1204,"Finance","_"," _"," _","D","IA",120,"Cash",120,"Cash","0150D","Government - operating","0150D","Government - operating"," _ "," _ "," _ "," _ "," _ "," _ "," _ "," _ ",null," _ "," _ "," _ "," _ ",null,null,"D"," _ "," _ "," _ "," _ "," _ "," _ "," _ "," _ "," _ "," _ "," _ ",null," _ "," _ "," _ "," _ "," _ ",null," _ "," _ "," _ "," _ ",null,2,22,"Finance","Finance and Administration",null,null,0,0,0,0,363,0,0,0,0,"_","_","_","_"]
["D0001/IA09607/F0041/X049/R0373/001/46","D0001/IA09607/F0041/X049/R0373/001/46",10637,626,"Assets:Current Assets:Cash and Cash Equivalents:Cash at Bank:Bank Account:Specify (replace with account description):Deposits"," _"," _"," _ "," _ "," _ "," _ ",1200,"Finance and administration",1204,"Finance","_"," _"," _","D","IA",120,"Cash",120,"Cash","0150D","Government - operating","0150D","Government - operating"," _ "," _ "," _ "," _ "," _ "," _ "," _ "," _ ",null," _ "," _ "," _ "," _ ",null,null,"D"," _ "," _ "," _ "," _ "," _ "," _ "," _ "," _ "," _ "," _ "," _ ",null," _ "," _ "," _ "," _ "," _ ",null," _ "," _ "," _ "," _ ",null,2,22,"Finance","Finance and Administration",null,null,0,0,0,0,0,0,0,0,0,"_","_","_","_"]
["D0001/IA09502/F0041/X049/R0373/001/46","D0001/IA09502/F0041/X049/R0373/001/46",10638,627,"Assets:Current Assets:Cash and Cash Equivalents:Cash at Bank:Bank Account:Specify (replace with account description):Deposits"," _"," _"," _ "," _ "," _ "," _ ",1200,"Finance and administration",1204,"Finance","_"," _"," _","D","IA",120,"Cash",120,"Cash","0150D","Government - operating","0150D","Government - operating"," _ "," _ "," _ "," _ "," _ "," _ "," _ "," _ ",null," _ "," _ "," _ "," _ ",null,null,"D"," _ "," _ "," _ "," _ "," _ "," _ "," _ "," _ "," _ "," _ "," _ ",null," _ "," _ "," _ "," _ "," _ ",null," _ "," _ "," _ "," _ ",null,2,22,"Finance","Finance and Administration",null,null,0,0,0,0,0,0,0,0,0,"_","_","_","_"]
["D0001/IA09548/F0041/X049/R0373/001/46","D0001/IA09548/F0041/X049/R0373/001/46",10639,628,"Assets:Current Assets:Cash and Cash Equivalents:Cash at Bank:Bank Account:Specify (replace with account description):Deposits"," _"," _"," _ "," _ "," _ "," _ ",1200,"Finance and administration",1204,"Finance","_"," _"," _","D","IA",120,"Cash",120,"Cash","0150D","Government - operating","0150D","Government - operating"," _ "," _ "," _ "," _ "," _ "," _ "," _ "," _ ",null," _ "," _ "," _ "," _ ",null,null,"D"," _ "," _ "," _ "," _ "," _ "," _ "," _ "," _ "," _ "," _ "," _ ",null," _ "," _ "," _ "," _ "," _ ",null," _ "," _ "," _ "," _ ",null,2,22,"Finance","Finance and Administration",null,null,0,0,0,0,0,0,0,0,0,"_","_","_","_"]
["D0001/IA09538/F15763/X049/R0373/001/46","D0001/IA09538/F15763/X049/R0373/001/46",10640,629,"Assets:Current Assets:Cash and Cash Equivalents:Cash at Bank:Bank Account:Specify (replace with account description):Deposits"," _"," _"," _ "," _ "," _ "," _ ",1200,"Finance and administration",1204,"Finance","_"," _"," _","D","IA",120,"Cash",120,"Cash","0150D","Government - operating","0150D","Government - operating"," _ "," _ "," _ "," _ "," _ "," _ "," _ "," _ ",null," _ "," _ "," _ "," _ ",null,null,"D"," _ "," _ "," _ "," _ "," _ "," _ "," _ "," _ "," _ "," _ "," _ ",null," _ "," _ "," _ "," _ "," _ ",null," _ "," _ "," _ "," _ ",null,2,22,"Finance","Finance and Administration",null,null,0,0,0,0,64739000,2196000,2304000,2307000,0,"_","_","_","_"]
["D0001/IA09496/F0041/X049/R0373/001/46","D0001/IA09496/F0041/X049/R0373/001/46",10641,630,"Assets:Current Assets:Cash and Cash Equivalents:Cash at Bank:Bank Account:Specify (replace with account description):Deposits"," _"," _"," _ "," _ "," _ "," _ ",1200,"Finance and administration",1204,"Finance","_"," _"," _","D","IA",120,"Cash",120,"Cash","0150D","Government - operating","0150D","Government - operating"," _ "," _ "," _ "," _ "," _ "," _ "," _ "," _ ",null," _ "," _ "," _ "," _ ",null,null,"D"," _ "," _ "," _ "," _ "," _ "," _ "," _ "," _ "," _ "," _ "," _ ",null," _ "," _ "," _ "," _ "," _ ",null," _ "," _ "," _ "," _ ",null,2,22,"Finance","Finance and Administration",null,null,0,0,0,0,0,0,0,0,0,"_","_","_","_"]
["D0001/IA09517/F0041/X049/R0373/001/46","D0001/IA09517/F0041/X049/R0373/001/46",10642,631,"Assets:Current Assets:Cash and Cash Equivalents:Cash at Bank:Bank Account:Specify (replace with account description):Deposits"," _"," _"," _ "," _ "," _ "," _ ",1200,"Finance and administration",1204,"Finance","_"," _"," _","D","IA",120,"Cash",120,"Cash","0150D","Government - operating","0150D","Government - operating"," _ "," _ "," _ "," _ "," _ "," _ "," _ "," _ ",null," _ "," _ "," _ "," _ ",null,null,"D"," _ "," _ "," _ "," _ "," _ "," _ "," _ "," _ "," _ "," _ "," _ ",null," _ "," _ "," _ "," _ "," _ ",null," _ "," _ "," _ "," _ ",null,2,22,"Finance","Finance and Administration",null,null,0,0,0,0,0,0,0,0,0,"_","_","_","_"]
["D0001/IA09525/F0041/X049/R0373/001/46","D0001/IA09525/F0041/X049/R0373/001/46",10643,632,"Assets:Current Assets:Cash and Cash Equivalents:Cash at Bank:Bank Account:Specify (replace with account description):Deposits"," _"," _"," _ "," _ "," _ "," _ ",1200,"Finance and administration",1204,"Finance","_"," _"," _","D","IA",120,"Cash",120,"Cash","0150D","Government - operating","0150D","Government - operating"," _ "," _ "," _ "," _ "," _ "," _ "," _ "," _ ",null," _ "," _ "," _ "," _ ",null,null,"D"," _ "," _ "," _ "," _ "," _ "," _ "," _ "," _ "," _ "," _ "," _ ",null," _ "," _ "," _ "," _ "," _ ",null," _ "," _ "," _ "," _ ",null,2,22,"Finance","Finance and Administration",null,null,0,0,0,0,0,0,0,0,0,"_","_","_","_"]
["D0001/IA09530/F0041/X049/R0373/001/46","D0001/IA09530/F0041/X049/R0373/001/46",10644,633,"Assets:Current Assets:Cash and Cash Equivalents:Cash at Bank:Bank Account:Specify (replace with account description):Deposits"," _"," _"," _ "," _ "," _ "," _ ",1200,"Finance and administration",1204,"Finance","_"," _"," _","D","IA",120,"Cash",120,"Cash","0150D","Government - operating","0150D","Government - operating"," _ "," _ "," _ "," _ "," _ "," _ "," _ "," _ ",null," _ "," _ "," _ "," _ ",null,null,"D"," _ "," _ "," _ "," _ "," _ "," _ "," _ "," _ "," _ "," _ "," _ ",null," _ "," _ "," _ "," _ "," _ ",null," _ "," _ "," _ "," _ ",null,2,22,"Finance","Finance and Administration",null,null,0,0,0,0,0,0,0,0,0,"_","_","_","_"]
["D0001/IA02105/F0041/X049/R0373/001/46","D0001/IA02105/F0041/X049/R0373/001/46",10645,634,"Assets:Current Assets:Cash and Cash Equivalents:Cash at Bank:Bank Account:Specify (replace with account description):Deposits"," _"," _"," _ "," _ "," _ "," _ ",1200,"Finance and administration",1204,"Finance","_"," _"," _","D","IA",120,"Cash",120,"Cash","0150D","Government - operating","0150D","Government - operating"," _ "," _ "," _ "," _ "," _ "," _ "," _ "," _ ",null," _ "," _ "," _ "," _ ",null,null,"D"," _ "," _ "," _ "," _ "," _ "," _ "," _ "," _ "," _ "," _ "," _ ",null," _ "," _ "," _ "," _ "," _ ",null," _ "," _ "," _ "," _ ",null,2,22,"Finance","Finance and Administration",null,null,0,0,0,0,0,0,0,0,0,"_","_","_","_"]
["D0001/IA09497/F0041/X049/R0373/001/46","D0001/IA09497/F0041/X049/R0373/001/46",10646,635,"Assets:Current Assets:Cash and Cash Equivalents:Cash at Bank:Bank Account:Specify (replace with account description):Deposits"," _"," _"," _ "," _ "," _ "," _ ",1200,"Finance and administration",1204,"Finance","_"," _"," _","D","IA",120,"Cash",120,"Cash","0150D","Government - operating","0150D","Government - operating"," _ "," _ "," _ "," _ "," _ "," _ "," _ "," _ ",null," _ "," _ "," _ "," _ ",null,null,"D"," _ "," _ "," _ "," _ "," _ "," _ "," _ "," _ "," _ "," _ "," _ ",null," _ "," _ "," _ "," _ "," _ ",null," _ "," _ "," _ "," _ ",null,2,22,"Finance","Finance and Administration",null,null,0,0,0,0,0,0,0,0,0,"_","_","_","_"]
["D0001/IA02106/F2494/X049/R0373/001/46","D0001/IA02106/F2494/X049/R0373/001/46",10647,636,"Assets:Current Assets:Cash and Cash Equivalents:Cash at Bank:Bank Account:Specify (replace with account description):Interest Earned"," _"," _"," _ "," _ "," _ "," _ ",1200,"Finance and administration",1204,"Finance","_"," _"," _","D","IA",120,"Cash",120,"Cash"," _ "," _ ","_","_"," _ "," _ "," _ "," _ "," _ "," _ "," _ "," _ ",null," _ "," _ "," _ "," _ ",null,null,"I"," _ "," _ "," _ "," _ "," _ "," _ "," _ "," _ "," _ "," _ "," _ ",null," _ "," _ "," _ "," _ "," _ ",null," _ "," _ "," _ "," _ ",null,2,22,"Finance","Finance and Administration",null,null,0,0,0,0,0,0,0,0,0,"_","_","_","_"]
["D0001/IA09588/F1177/X049/R0373/001/46","D0001/IA09588/F1177/X049/R0373/001/46",10648,637,"Assets:Current Assets:Cash and Cash Equivalents:Cash at Bank:Bank Account:Specify (replace with account description):Deposits"," _"," _"," _ "," _ "," _ "," _ ",1200,"Finance and administration",1204,"Finance","_"," _"," _","D","IA",120,"Cash",120,"Cash","0150D","Government - operating","0150D","Government - operating"," _ "," _ "," _ "," _ "," _ "," _ "," _ "," _ ",null," _ "," _ "," _ "," _ ",null,null,"D"," _ "," _ "," _ "," _ "," _ "," _ "," _ "," _ "," _ "," _ "," _ ",null," _ "," _ "," _ "," _ "," _ ",null," _ "," _ "," _ "," _ ",null,2,22,"Finance","Finance and Administration",null,null,0,0,0,0,0,1650000,1720000,1720000,0,"_","_","_","_"]
["D0001/IA09608/F1180/X049/R0373/001/46","D0001/IA09608/F1180/X049/R0373/001/46",10649,638,"Assets:Current Assets:Cash and Cash Equivalents:Cash at Bank:Bank Account:Specify (replace with account description):Deposits"," _"," _"," _ "," _ "," _ "," _ ",1200,"Finance and administration",1204,"Finance","_"," _"," _","D","IA",120,"Cash",120,"Cash","0150D","Government - operating","0150D","Government - operating"," _ "," _ "," _ "," _ "," _ "," _ "," _ "," _ ",null," _ "," _ "," _ "," _ ",null,null,"D"," _ "," _ "," _ "," _ "," _ "," _ "," _ "," _ "," _ "," _ "," _ ",null," _ "," _ "," _ "," _ "," _ ",null," _ "," _ "," _ "," _ ",null,2,22,"Finance","Finance and Administration",null,null,0,0,0,0,0,0,0,0,0,"_","_","_","_"]
["D0001/IA09513/F0041/X049/R0373/001/46","D0001/IA09513/F0041/X049/R0373/001/46",10650,639,"Assets:Current Assets:Cash and Cash Equivalents:Cash at Bank:Bank Account:Specify (replace with account description):Deposits"," _"," _"," _ "," _ "," _ "," _ ",1200,"Finance and administration",1204,"Finance","_"," _"," _","D","IA",120,"Cash",120,"Cash","0150D","Government - operating","0150D","Government - operating"," _ "," _ "," _ "," _ "," _ "," _ "," _ "," _ ",null," _ "," _ "," _ "," _ ",null,null,"D"," _ "," _ "," _ "," _ "," _ "," _ "," _ "," _ "," _ "," _ "," _ ",null," _ "," _ "," _ "," _ "," _ ",null," _ "," _ "," _ "," _ ",null,2,22,"Finance","Finance and Administration",null,null,0,0,0,0,0,47290000,49008000,50056392,0,"_","_","_","_"]
["D0001/IA09499/F13576/X049/R0373/001/46","D0001/IA09499/F13576/X049/R0373/001/46",10651,640,"Assets:Current Assets:Cash and Cash Equivalents:Cash at Bank:Bank Account:Specify (replace with account description):Deposits"," _"," _"," _ "," _ "," _ "," _ ",1200,"Finance and administration",1204,"Finance","_"," _"," _","D","IA",120,"Cash",120,"Cash","0150D","Government - operating","0150D","Government - operating"," _ "," _ "," _ "," _ "," _ "," _ "," _ "," _ ",null," _ "," _ "," _ "," _ ",null,null,"D"," _ "," _ "," _ "," _ "," _ "," _ "," _ "," _ "," _ "," _ "," _ ",null," _ "," _ "," _ "," _ "," _ ",null," _ "," _ "," _ "," _ ",null,2,22,"Finance","Finance and Administration",null,null,0,0,0,0,0,0,0,0,0,"_","_","_","_"]
["D0001/IA09498/F1182/X049/R0373/001/46","D0001/IA09498/F1182/X049/R0373/001/46",10652,641,"Assets:Current Assets:Cash and Cash Equivalents:Cash at Bank:Bank Account:Specify (replace with account description):Deposits"," _"," _"," _ "," _ "," _ "," _ ",1200,"Finance and administration",1204,"Finance","_"," _"," _","D","IA",120,"Cash",120,"Cash","0150D","Government - operating","0150D","Government - operating"," _ "," _ "," _ "," _ "," _ "," _ "," _ "," _ ",null," _ "," _ "," _ "," _ ",null,null,"D"," _ "," _ "," _ "," _ "," _ "," _ "," _ "," _ "," _ "," _ "," _ ",null," _ "," _ "," _ "," _ "," _ ",null," _ "," _ "," _ "," _ ",null,2,22,"Finance","Finance and Administration",null,null,0,0,0,0,0,0,0,0,0,"_","_","_","_"]
["D0001/IA09566/F1169/X049/R0373/001/46","D0001/IA09566/F1169/X049/R0373/001/46",10653,642,"Assets:Current Assets:Cash and Cash Equivalents:Cash at Bank:Bank Account:Specify (replace with account description):Deposits"," _"," _"," _ "," _ "," _ "," _ ",1200,"Finance and administration",1204,"Finance","_"," _"," _","D","IA",120,"Cash",120,"Cash","0150D","Government - operating","0150D","Government - operating"," _ "," _ "," _ "," _ "," _ "," _ "," _ "," _ ",null," _ "," _ "," _ "," _ ",null,null,"D"," _ "," _ "," _ "," _ "," _ "," _ "," _ "," _ "," _ "," _ "," _ ",null," _ "," _ "," _ "," _ "," _ ",null," _ "," _ "," _ "," _ ",null,2,22,"Finance","Finance and Administration",null,null,0,0,0,0,0,1440000,1440000,1440000,0,"_","_","_","_"]
["O0001/IE00738/F1180/X019/R0374/001/96","O0001/IE00738/F1180/X019/R0374/001/96",10654,643,"Expenditure:Inventory Consumed:Consumables:Standard Rated",2600,"Other materials",2600,"Other materials"," _ "," _ ",2100,"Community and social services",2109,"Disaster Management","_"," _"," _","O","IE"," _ "," _ "," _ "," _ "," _ "," _ ","_","_"," _ "," _ "," _ "," _ "," _ "," _ "," _ "," _ ",null," _ "," _ "," _ "," _ ",null,null,null," _ "," _ "," _ "," _ "," _ "," _ "," _ "," _ "," _ "," _ "," _ ",null," _ "," _ "," _ "," _ "," _ ",null," _ "," _ "," _ "," _ ",null,4,41,"Disaster Management","Community and Social Services",null,null,0,0,0,0,600000,150000,300000,300000,69751,"_","_","_","_"]
["O0001/IE00739/F1180/X019/R0374/001/96","O0001/IE00739/F1180/X019/R0374/001/96",10655,644,"Expenditure:Inventory Consumed:Consumables:Zero Rated",2600,"Other materials",2600,"Other materials"," _ "," _ ",2100,"Community and social services",2109,"Disaster Management","_"," _"," _","O","IE"," _ "," _ "," _ "," _ "," _ "," _ ","_","_"," _ "," _ "," _ "," _ "," _ "," _ "," _ "," _ ",null," _ "," _ "," _ "," _ ",null,null,null," _ "," _ "," _ "," _ "," _ "," _ "," _ "," _ "," _ "," _ "," _ ",null," _ "," _ "," _ "," _ "," _ ",null," _ "," _ "," _ "," _ ",null,4,41,"Disaster Management","Community and Social Services",null,null,0,0,0,0,150000,0,0,0,0,"_","_","_","_"]
["D0001/IA09525/F0045/X049/R0373/001/46","D0001/IA09525/F0045/X049/R0373/001/46",10656,645,"Assets:Current Assets:Cash and Cash Equivalents:Cash at Bank:Bank Account:Specify (replace with account description):Deposits"," _"," _"," _ "," _ "," _ "," _ ",1200,"Finance and administration",1204,"Finance","_"," _"," _","D","IA",120,"Cash",120,"Cash","0140D","Other revenue",250,"Other revenue"," _ "," _ "," _ "," _ "," _ "," _ "," _ "," _ ",null," _ "," _ "," _ "," _ ",null,null,"D"," _ "," _ "," _ "," _ "," _ "," _ "," _ "," _ "," _ "," _ "," _ ",null," _ "," _ "," _ "," _ "," _ ",null," _ "," _ "," _ "," _ ",null,2,22,"Finance","Finance and Administration",null,null,0,0,0,0,1777519,1639183,907276,939676,0,"_","_","_","_"]
["D0001/IA09979/F0001/X049/R0373/001/46","D0001/IA09979/F0001/X049/R0373/001/46",10657,646,"Assets:Current Assets:Cash and Cash Equivalents:Cash at Bank:Bank Account:Specify (replace with account description):Opening Balance"," _"," _"," _ "," _ "," _ "," _ ",1200,"Finance and administration",1204,"Finance","_"," _"," _","D","IA",120,"Cash",120,"Cash"," _ "," _ ","_","_"," _ "," _ "," _ "," _ "," _ "," _ "," _ "," _ ",null," _ "," _ "," _ "," _ ",null,null,null," _ "," _ "," _ "," _ "," _ "," _ "," _ "," _ "," _ "," _ "," _ ",null," _ "," _ "," _ "," _ "," _ ",null," _ "," _ "," _ "," _ ",null,2,22,"Finance","Finance and Administration",null,null,0,0,0,0,0,0,0,0,0,"_","_","_","_"]
["D0001/IA09458/F0001/X049/R0373/001/46","D0001/IA09458/F0001/X049/R0373/001/46",10658,647,"Assets:Current Assets:Cash and Cash Equivalents:Cash at Bank:Bank Account:Specify (replace with account description):Charges"," _"," _"," _ "," _ "," _ "," _ ",1200,"Finance and administration",1204,"Finance","_"," _"," _","D","IA",120,"Cash",120,"Cash"," _ "," _ ","_","_"," _ "," _ "," _ "," _ "," _ "," _ "," _ "," _ ",null," _ "," _ "," _ "," _ ",null,null,null," _ "," _ "," _ "," _ "," _ "," _ "," _ "," _ "," _ "," _ "," _ ",null," _ "," _ "," _ "," _ "," _ ",null," _ "," _ "," _ "," _ ",null,2,22,"Finance","Finance and Administration",null,null,0,0,0,0,0,0,0,0,0,"_","_","_","_"]
["D0001/IA09973/F0001/X049/R0373/001/46","D0001/IA09973/F0001/X049/R0373/001/46",10659,648,"Assets:Current Assets:Cash and Cash Equivalents:Cash at Bank:Bank Account:Specify (replace with account description):Opening Balance"," _"," _"," _ "," _ "," _ "," _ ",1200,"Finance and administration",1204,"Finance","_"," _"," _","D","IA",120,"Cash",120,"Cash"," _ "," _ ","_","_"," _ "," _ "," _ "," _ "," _ "," _ "," _ "," _ ",null," _ "," _ "," _ "," _ ",null,null,null," _ "," _ "," _ "," _ "," _ "," _ "," _ "," _ "," _ "," _ "," _ ",null," _ "," _ "," _ "," _ "," _ ",null," _ "," _ "," _ "," _ ",null,2,22,"Finance","Finance and Administration",null,null,0,0,0,0,0,0,0,0,0,"_","_","_","_"]
["D0001/IA09730/F2494/X049/R0373/001/46","D0001/IA09730/F2494/X049/R0373/001/46",10660,649,"Assets:Current Assets:Cash and Cash Equivalents:Cash at Bank:Bank Account:Specify (replace with account description):Interest Earned"," _"," _"," _ "," _ "," _ "," _ ",1200,"Finance and administration",1204,"Finance","_"," _"," _","D","IA",120,"Cash",120,"Cash"," _ "," _ ","_","_"," _ "," _ "," _ "," _ "," _ "," _ "," _ "," _ ",null," _ "," _ "," _ "," _ ",null,null,"I"," _ "," _ "," _ "," _ "," _ "," _ "," _ "," _ "," _ "," _ "," _ ",null," _ "," _ "," _ "," _ "," _ ",null," _ "," _ "," _ "," _ ",null,2,22,"Finance","Finance and Administration",null,null,0,0,0,0,650000,0,0,0,0,"_","_","_","_"]
["D0001/IA09790/F0001/X049/R0373/001/46","D0001/IA09790/F0001/X049/R0373/001/46",10661,650,"Assets:Current Assets:Cash and Cash Equivalents:Cash at Bank:Bank Account:Specify (replace with account description):Withdrawals"," _"," _"," _ "," _ "," _ "," _ ",1200,"Finance and administration",1204,"Finance","_"," _"," _","D","IA",120,"Cash",120,"Cash"," _ "," _ ","_","_"," _ "," _ "," _ "," _ "," _ "," _ "," _ "," _ ",null," _ "," _ "," _ "," _ ",null,null,"W"," _ "," _ "," _ "," _ "," _ "," _ "," _ "," _ "," _ "," _ "," _ ",null," _ "," _ "," _ "," _ "," _ ",null," _ "," _ "," _ "," _ ",null,2,22,"Finance","Finance and Administration",null,null,0,0,0,0,0,0,0,0,0,"_","_","_","_"]
["D0001/IA09674/F0001/X049/R0373/001/46","D0001/IA09674/F0001/X049/R0373/001/46",10662,651,"Assets:Current Assets:Cash and Cash Equivalents:Cash at Bank:Bank Account:Specify (replace with account description):Interest Earned"," _"," _"," _ "," _ "," _ "," _ ",1200,"Finance and administration",1204,"Finance","_"," _"," _","D","IA",120,"Cash",120,"Cash"," _ "," _ ","_","_"," _ "," _ "," _ "," _ "," _ "," _ "," _ "," _ ",null," _ "," _ "," _ "," _ ",null,null,"I"," _ "," _ "," _ "," _ "," _ "," _ "," _ "," _ "," _ "," _ "," _ ",null," _ "," _ "," _ "," _ "," _ ",null," _ "," _ "," _ "," _ ",null,2,22,"Finance","Finance and Administration",null,null,0,0,0,0,0,0,0,0,0,"_","_","_","_"]
["D0001/IA02107/F0001/X049/R0373/001/46","D0001/IA02107/F0001/X049/R0373/001/46",10663,652,"Assets:Current Assets:Cash and Cash Equivalents:Cash at Bank:Bank Account:Specify (replace with account description):Opening Balance"," _"," _"," _ "," _ "," _ "," _ ",1200,"Finance and administration",1204,"Finance","_"," _"," _","D","IA",120,"Cash",120,"Cash"," _ "," _ ","_","_"," _ "," _ "," _ "," _ "," _ "," _ "," _ "," _ ",null," _ "," _ "," _ "," _ ",null,null,null," _ "," _ "," _ "," _ "," _ "," _ "," _ "," _ "," _ "," _ "," _ ",null," _ "," _ "," _ "," _ "," _ ",null," _ "," _ "," _ "," _ ",null,2,22,"Finance","Finance and Administration",null,null,0,0,0,0,0,0,0,0,0,"_","_","_","_"]
["D0001/IA09384/F0001/X049/R0373/001/46","D0001/IA09384/F0001/X049/R0373/001/46",10664,653,"Assets:Current Assets:Cash and Cash Equivalents:Cash at Bank:Bank Account:Specify (replace with account description):Charges"," _"," _"," _ "," _ "," _ "," _ ",1200,"Finance and administration",1204,"Finance","_"," _"," _","D","IA",120,"Cash",120,"Cash"," _ "," _ ","_","_"," _ "," _ "," _ "," _ "," _ "," _ "," _ "," _ ",null," _ "," _ "," _ "," _ ",null,null,null," _ "," _ "," _ "," _ "," _ "," _ "," _ "," _ "," _ "," _ "," _ ",null," _ "," _ "," _ "," _ "," _ ",null," _ "," _ "," _ "," _ ",null,2,22,"Finance","Finance and Administration",null,null,0,0,0,0,0,0,0,0,0,"_","_","_","_"]
["D0001/IA09785/F0001/X049/R0373/001/46","D0001/IA09785/F0001/X049/R0373/001/46",10665,654,"Assets:Current Assets:Cash and Cash Equivalents:Cash at Bank:Bank Account:Specify (replace with account description):Withdrawals"," _"," _"," _ "," _ "," _ "," _ ",1200,"Finance and administration",1204,"Finance","_"," _"," _","D","IA",120,"Cash",120,"Cash"," _ "," _ ","_","_"," _ "," _ "," _ "," _ "," _ "," _ "," _ "," _ ",null," _ "," _ "," _ "," _ ",null,null,"W"," _ "," _ "," _ "," _ "," _ "," _ "," _ "," _ "," _ "," _ "," _ ",null," _ "," _ "," _ "," _ "," _ ",null," _ "," _ "," _ "," _ ",null,2,22,"Finance","Finance and Administration",null,null,0,0,0,0,0,0,0,0,0,"_","_","_","_"]
["D0001/IA10019/F0001/X049/R0373/001/46","D0001/IA10019/F0001/X049/R0373/001/46",10666,655,"Assets:Current Assets:Cash and Cash Equivalents:Cash at Bank:Bank Account:Specify (replace with account description):Opening Balance"," _"," _"," _ "," _ "," _ "," _ ",1200,"Finance and administration",1204,"Finance","_"," _"," _","D","IA",120,"Cash",120,"Cash"," _ "," _ ","_","_"," _ "," _ "," _ "," _ "," _ "," _ "," _ "," _ ",null," _ "," _ "," _ "," _ ",null,null,null," _ "," _ "," _ "," _ "," _ "," _ "," _ "," _ "," _ "," _ "," _ ",null," _ "," _ "," _ "," _ "," _ ",null," _ "," _ "," _ "," _ ",null,2,22,"Finance","Finance and Administration",null,null,0,0,0,0,0,0,0,0,0,"_","_","_","_"]
["D0001/IA09546/F0001/X049/R0373/001/46","D0001/IA09546/F0001/X049/R0373/001/46",10667,656,"Assets:Current Assets:Cash and Cash Equivalents:Cash at Bank:Bank Account:Specify (replace with account description):Deposits"," _"," _"," _ "," _ "," _ "," _ ",1200,"Finance and administration",1204,"Finance","_"," _"," _","D","IA",120,"Cash",120,"Cash"," _ "," _ ","_","_"," _ "," _ "," _ "," _ "," _ "," _ "," _ "," _ ",null," _ "," _ "," _ "," _ ",null,null,"D"," _ "," _ "," _ "," _ "," _ "," _ "," _ "," _ "," _ "," _ "," _ ",null," _ "," _ "," _ "," _ "," _ ",null," _ "," _ "," _ "," _ ",null,2,22,"Finance","Finance and Administration",null,null,0,0,0,0,0,0,0,0,0,"_","_","_","_"]
["D0001/IA09976/F0001/X049/R0373/001/46","D0001/IA09976/F0001/X049/R0373/001/46",10668,657,"Assets:Current Assets:Cash and Cash Equivalents:Cash at Bank:Bank Account:Specify (replace with account description):Opening Balance"," _"," _"," _ "," _ "," _ "," _ ",1200,"Finance and administration",1204,"Finance","_"," _"," _","D","IA",120,"Cash",120,"Cash"," _ "," _ ","_","_"," _ "," _ "," _ "," _ "," _ "," _ "," _ "," _ ",null," _ "," _ "," _ "," _ ",null,null,null," _ "," _ "," _ "," _ "," _ "," _ "," _ "," _ "," _ "," _ "," _ ",null," _ "," _ "," _ "," _ "," _ ",null," _ "," _ "," _ "," _ ",null,2,22,"Finance","Finance and Administration",null,null,0,0,0,0,0,0,0,0,0,"_","_","_","_"]
["D0001/IA09977/F0001/X049/R0373/001/46","D0001/IA09977/F0001/X049/R0373/001/46",10669,658,"Assets:Current Assets:Cash and Cash Equivalents:Cash at Bank:Bank Account:Specify (replace with account description):Opening Balance"," _"," _"," _ "," _ "," _ "," _ ",1200,"Finance and administration",1204,"Finance","_"," _"," _","D","IA",120,"Cash",120,"Cash"," _ "," _ ","_","_"," _ "," _ "," _ "," _ "," _ "," _ "," _ "," _ ",null," _ "," _ "," _ "," _ ",null,null,null," _ "," _ "," _ "," _ "," _ "," _ "," _ "," _ "," _ "," _ "," _ ",null," _ "," _ "," _ "," _ "," _ ",null," _ "," _ "," _ "," _ ",null,2,22,"Finance","Finance and Administration",null,null,0,0,0,0,0,0,0,0,0,"_","_","_","_"]
["D0001/IA09975/F0001/X049/R0373/001/46","D0001/IA09975/F0001/X049/R0373/001/46",10670,659,"Assets:Current Assets:Cash and Cash Equivalents:Cash at Bank:Bank Account:Specify (replace with account description):Opening Balance"," _"," _"," _ "," _ "," _ "," _ ",1200,"Finance and administration",1204,"Finance","_"," _"," _","D","IA",120,"Cash",120,"Cash"," _ "," _ ","_","_"," _ "," _ "," _ "," _ "," _ "," _ "," _ "," _ ",null," _ "," _ "," _ "," _ ",null,null,null," _ "," _ "," _ "," _ "," _ "," _ "," _ "," _ "," _ "," _ "," _ ",null," _ "," _ "," _ "," _ "," _ ",null," _ "," _ "," _ "," _ ",null,2,22,"Finance","Finance and Administration",null,null,0,0,0,0,0,0,0,0,0,"_","_","_","_"]
["D0001/IA09972/F0001/X049/R0373/001/46","D0001/IA09972/F0001/X049/R0373/001/46",10671,660,"Assets:Current Assets:Cash and Cash Equivalents:Cash at Bank:Bank Account:Specify (replace with account description):Opening Balance"," _"," _"," _ "," _ "," _ "," _ ",1200,"Finance and administration",1204,"Finance","_"," _"," _","D","IA",120,"Cash",120,"Cash"," _ "," _ ","_","_"," _ "," _ "," _ "," _ "," _ "," _ "," _ "," _ ",null," _ "," _ "," _ "," _ ",null,null,null," _ "," _ "," _ "," _ "," _ "," _ "," _ "," _ "," _ "," _ "," _ ",null," _ "," _ "," _ "," _ "," _ ",null," _ "," _ "," _ "," _ ",null,2,22,"Finance","Finance and Administration",null,null,0,0,0,0,0,0,0,0,0,"_","_","_","_"]
["D0001/IA09974/F0001/X049/R0373/001/46","D0001/IA09974/F0001/X049/R0373/001/46",10672,661,"Assets:Current Assets:Cash and Cash Equivalents:Cash at Bank:Bank Account:Specify (replace with account description):Opening Balance"," _"," _"," _ "," _ "," _ "," _ ",1200,"Finance and administration",1204,"Finance","_"," _"," _","D","IA",120,"Cash",120,"Cash"," _ "," _ ","_","_"," _ "," _ "," _ "," _ "," _ "," _ "," _ "," _ ",null," _ "," _ "," _ "," _ ",null,null,null," _ "," _ "," _ "," _ "," _ "," _ "," _ "," _ "," _ "," _ "," _ ",null," _ "," _ "," _ "," _ "," _ ",null," _ "," _ "," _ "," _ ",null,2,22,"Finance","Finance and Administration",null,null,0,0,0,0,0,0,0,0,0,"_","_","_","_"]
["D0001/IA09978/F0001/X049/R0373/001/46","D0001/IA09978/F0001/X049/R0373/001/46",10673,662,"Assets:Current Assets:Cash and Cash Equivalents:Cash at Bank:Bank Account:Specify (replace with account description):Opening Balance"," _"," _"," _ "," _ "," _ "," _ ",1200,"Finance and administration",1204,"Finance","_"," _"," _","D","IA",120,"Cash",120,"Cash"," _ "," _ ","_","_"," _ "," _ "," _ "," _ "," _ "," _ "," _ "," _ ",null," _ "," _ "," _ "," _ ",null,null,null," _ "," _ "," _ "," _ "," _ "," _ "," _ "," _ "," _ "," _ "," _ ",null," _ "," _ "," _ "," _ "," _ ",null," _ "," _ "," _ "," _ ",null,2,22,"Finance","Finance and Administration",null,null,0,0,0,0,0,0,0,0,0,"_","_","_","_"]
["D0001/IA09984/F0001/X049/R0373/001/46","D0001/IA09984/F0001/X049/R0373/001/46",10674,663,"Assets:Current Assets:Cash and Cash Equivalents:Cash at Bank:Bank Account:Specify (replace with account description):Opening Balance"," _"," _"," _ "," _ "," _ "," _ ",1200,"Finance and administration",1204,"Finance","_"," _"," _","D","IA",120,"Cash",120,"Cash"," _ "," _ ","_","_"," _ "," _ "," _ "," _ "," _ "," _ "," _ "," _ ",null," _ "," _ "," _ "," _ ",null,null,null," _ "," _ "," _ "," _ "," _ "," _ "," _ "," _ "," _ "," _ "," _ ",null," _ "," _ "," _ "," _ "," _ ",null," _ "," _ "," _ "," _ ",null,2,22,"Finance","Finance and Administration",null,null,0,0,0,0,0,0,0,0,0,"_","_","_","_"]
["D0001/IL08820/F0001/X049/R0373/001/46","D0001/IL08820/F0001/X049/R0373/001/46",10675,664,"Liabilities:Current Liabilities:Trade and Other Payable Non-exchange Transactions:Transfers and Subsidies Unspent:Operational:Monetary Allocations:National Government:Infrastructure Skills Development Grant:Opening Balance"," _"," _"," _ "," _ "," _ "," _ ",1200,"Finance and administration",1204,"Finance","_"," _"," _","D","IL",360," Trade and other payables",360,"Trade and other payables"," _ "," _ ","_","_"," _ "," _ "," _ "," _ "," _ "," _ "," _ "," _ ",null,363,"Unspent conditional transfers",363,"Unspent conditional transfers",null,null,null," _ "," _ "," _ "," _ "," _ "," _ "," _ "," _ "," _ "," _ "," _ ",null," _ "," _ "," _ "," _ "," _ ",null," _ "," _ "," _ "," _ ",null,2,22,"Finance","Finance and Administration",null,null,0,0,0,0,0,0,0,0,0,"_","_","_","_"]
["D0001/IL00798/F0001/X049/R0373/001/46","D0001/IL00798/F0001/X049/R0373/001/46",10676,665,"Liabilities:Non-current Liabilities:Defined Benefit Obligations:Pension:Opening balance"," _"," _"," _ "," _ "," _ "," _ ",1200,"Finance and administration",1204,"Finance","_"," _"," _","D","IL",410,"  Provisions",410,"Provisions"," _ "," _ ","_","_"," _ "," _ "," _ "," _ "," _ "," _ "," _ "," _ ",null,411,"Retirement benefits",411,"Retirement benefits",null,null,null," _ "," _ "," _ "," _ "," _ "," _ "," _ "," _ "," _ "," _ "," _ ",null," _ "," _ "," _ "," _ "," _ ",null," _ "," _ "," _ "," _ ",null,2,22,"Finance","Finance and Administration",null,null,0,0,0,0,0,0,0,0,0,"_","_","_","_"]
["D0001/IA10138/F0001/X049/R0373/001/46","D0001/IA10138/F0001/X049/R0373/001/46",10677,666,"Assets:Current Assets:Cash and Cash Equivalents:Cash at Bank:Bank Account:Specify (replace with account description):Opening Balance"," _"," _"," _ "," _ "," _ "," _ ",1200,"Finance and administration",1204,"Finance","_"," _"," _","D","IA",120,"Cash",120,"Cash"," _ "," _ ","_","_"," _ "," _ "," _ "," _ "," _ "," _ "," _ "," _ ",null," _ "," _ "," _ "," _ ",null,null,null," _ "," _ "," _ "," _ "," _ "," _ "," _ "," _ "," _ "," _ "," _ ",null," _ "," _ "," _ "," _ "," _ ",null," _ "," _ "," _ "," _ ",null,2,22,"Finance","Finance and Administration",null,null,0,0,0,0,0,0,0,0,0,"_","_","_","_"]
["D0001/IA10137/F0001/X049/R0373/001/46","D0001/IA10137/F0001/X049/R0373/001/46",10678,667,"Assets:Current Assets:Cash and Cash Equivalents:Cash at Bank:Bank Account:Specify (replace with account description):Opening Balance"," _"," _"," _ "," _ "," _ "," _ ",1200,"Finance and administration",1204,"Finance","_"," _"," _","D","IA",120,"Cash",120,"Cash"," _ "," _ ","_","_"," _ "," _ "," _ "," _ "," _ "," _ "," _ "," _ ",null," _ "," _ "," _ "," _ ",null,null,null," _ "," _ "," _ "," _ "," _ "," _ "," _ "," _ "," _ "," _ "," _ ",null," _ "," _ "," _ "," _ "," _ ",null," _ "," _ "," _ "," _ ",null,2,22,"Finance","Finance and Administration",null,null,0,0,0,0,0,0,0,0,0,"_","_","_","_"]
["D0001/IA10135/F0001/X049/R0373/001/46","D0001/IA10135/F0001/X049/R0373/001/46",10679,668,"Assets:Current Assets:Cash and Cash Equivalents:Cash at Bank:Bank Account:Specify (replace with account description):Opening Balance"," _"," _"," _ "," _ "," _ "," _ ",1200,"Finance and administration",1204,"Finance","_"," _"," _","D","IA",120,"Cash",120,"Cash"," _ "," _ ","_","_"," _ "," _ "," _ "," _ "," _ "," _ "," _ "," _ ",null," _ "," _ "," _ "," _ ",null,null,null," _ "," _ "," _ "," _ "," _ "," _ "," _ "," _ "," _ "," _ "," _ ",null," _ "," _ "," _ "," _ "," _ ",null," _ "," _ "," _ "," _ ",null,2,22,"Finance","Finance and Administration",null,null,0,0,0,0,0,0,0,0,0,"_","_","_","_"]
["D0001/IA10134/F0001/X049/R0373/001/46","D0001/IA10134/F0001/X049/R0373/001/46",10680,669,"Assets:Current Assets:Cash and Cash Equivalents:Cash at Bank:Bank Account:Specify (replace with account description):Opening Balance"," _"," _"," _ "," _ "," _ "," _ ",1200,"Finance and administration",1204,"Finance","_"," _"," _","D","IA",120,"Cash",120,"Cash"," _ "," _ ","_","_"," _ "," _ "," _ "," _ "," _ "," _ "," _ "," _ ",null," _ "," _ "," _ "," _ ",null,null,null," _ "," _ "," _ "," _ "," _ "," _ "," _ "," _ "," _ "," _ "," _ ",null," _ "," _ "," _ "," _ "," _ ",null," _ "," _ "," _ "," _ ",null,2,22,"Finance","Finance and Administration",null,null,0,0,0,0,0,0,0,0,0,"_","_","_","_"]
["D0001/IA10008/F0001/X049/R0373/001/46","D0001/IA10008/F0001/X049/R0373/001/46",10681,670,"Assets:Current Assets:Cash and Cash Equivalents:Cash at Bank:Bank Account:Specify (replace with account description):Opening Balance"," _"," _"," _ "," _ "," _ "," _ ",1200,"Finance and administration",1204,"Finance","_"," _"," _","D","IA",120,"Cash",120,"Cash"," _ "," _ ","_","_"," _ "," _ "," _ "," _ "," _ "," _ "," _ "," _ ",null," _ "," _ "," _ "," _ ",null,null,null," _ "," _ "," _ "," _ "," _ "," _ "," _ "," _ "," _ "," _ "," _ ",null," _ "," _ "," _ "," _ "," _ ",null," _ "," _ "," _ "," _ ",null,2,22,"Finance","Finance and Administration",null,null,0,0,0,0,0,0,0,0,0,"_","_","_","_"]
["D0001/IA10136/F0001/X049/R0373/001/46","D0001/IA10136/F0001/X049/R0373/001/46",10682,671,"Assets:Current Assets:Cash and Cash Equivalents:Cash at Bank:Bank Account:Specify (replace with account description):Opening Balance"," _"," _"," _ "," _ "," _ "," _ ",1200,"Finance and administration",1204,"Finance","_"," _"," _","D","IA",120,"Cash",120,"Cash"," _ "," _ ","_","_"," _ "," _ "," _ "," _ "," _ "," _ "," _ "," _ ",null," _ "," _ "," _ "," _ ",null,null,null," _ "," _ "," _ "," _ "," _ "," _ "," _ "," _ "," _ "," _ "," _ ",null," _ "," _ "," _ "," _ "," _ ",null," _ "," _ "," _ "," _ ",null,2,22,"Finance","Finance and Administration",null,null,0,0,0,0,0,0,0,0,0,"_","_","_","_"]
["D0001/IA10141/F0001/X049/R0373/001/46","D0001/IA10141/F0001/X049/R0373/001/46",10683,672,"Assets:Current Assets:Cash and Cash Equivalents:Cash at Bank:Bank Account:Specify (replace with account description):Opening Balance"," _"," _"," _ "," _ "," _ "," _ ",1200,"Finance and administration",1204,"Finance","_"," _"," _","D","IA",120,"Cash",120,"Cash"," _ "," _ ","_","_"," _ "," _ "," _ "," _ "," _ "," _ "," _ "," _ ",null," _ "," _ "," _ "," _ ",null,null,null," _ "," _ "," _ "," _ "," _ "," _ "," _ "," _ "," _ "," _ "," _ ",null," _ "," _ "," _ "," _ "," _ ",null," _ "," _ "," _ "," _ ",null,2,22,"Finance","Finance and Administration",null,null,0,0,0,0,0,0,0,0,0,"_","_","_","_"]
["D0001/IA09987/F0001/X049/R0373/001/46","D0001/IA09987/F0001/X049/R0373/001/46",10684,673,"Assets:Current Assets:Cash and Cash Equivalents:Cash at Bank:Bank Account:Specify (replace with account description):Opening Balance"," _"," _"," _ "," _ "," _ "," _ ",1200,"Finance and administration",1204,"Finance","_"," _"," _","D","IA",120,"Cash",120,"Cash"," _ "," _ ","_","_"," _ "," _ "," _ "," _ "," _ "," _ "," _ "," _ ",null," _ "," _ "," _ "," _ ",null,null,null," _ "," _ "," _ "," _ "," _ "," _ "," _ "," _ "," _ "," _ "," _ ",null," _ "," _ "," _ "," _ "," _ ",null," _ "," _ "," _ "," _ ",null,2,22,"Finance","Finance and Administration",null,null,0,0,0,0,0,0,0,0,0,"_","_","_","_"]
["D0001/IA10139/F0001/X049/R0373/001/46","D0001/IA10139/F0001/X049/R0373/001/46",10685,674,"Assets:Current Assets:Cash and Cash Equivalents:Cash at Bank:Bank Account:Specify (replace with account description):Opening Balance"," _"," _"," _ "," _ "," _ "," _ ",1200,"Finance and administration",1204,"Finance","_"," _"," _","D","IA",120,"Cash",120,"Cash"," _ "," _ ","_","_"," _ "," _ "," _ "," _ "," _ "," _ "," _ "," _ ",null," _ "," _ "," _ "," _ ",null,null,null," _ "," _ "," _ "," _ "," _ "," _ "," _ "," _ "," _ "," _ "," _ ",null," _ "," _ "," _ "," _ "," _ ",null," _ "," _ "," _ "," _ ",null,2,22,"Finance","Finance and Administration",null,null,0,0,0,0,0,0,0,0,0,"_","_","_","_"]
["D0001/IA10010/F0001/X049/R0373/001/46","D0001/IA10010/F0001/X049/R0373/001/46",10686,675,"Assets:Current Assets:Cash and Cash Equivalents:Cash at Bank:Bank Account:Specify (replace with account description):Opening Balance"," _"," _"," _ "," _ "," _ "," _ ",1200,"Finance and administration",1204,"Finance","_"," _"," _","D","IA",120,"Cash",120,"Cash"," _ "," _ ","_","_"," _ "," _ "," _ "," _ "," _ "," _ "," _ "," _ ",null," _ "," _ "," _ "," _ ",null,null,null," _ "," _ "," _ "," _ "," _ "," _ "," _ "," _ "," _ "," _ "," _ ",null," _ "," _ "," _ "," _ "," _ ",null," _ "," _ "," _ "," _ ",null,2,22,"Finance","Finance and Administration",null,null,0,0,0,0,0,0,0,0,0,"_","_","_","_"]
["D0001/IA10009/F0001/X049/R0373/001/46","D0001/IA10009/F0001/X049/R0373/001/46",10687,676,"Assets:Current Assets:Cash and Cash Equivalents:Cash at Bank:Bank Account:Specify (replace with account description):Opening Balance"," _"," _"," _ "," _ "," _ "," _ ",1200,"Finance and administration",1204,"Finance","_"," _"," _","D","IA",120,"Cash",120,"Cash"," _ "," _ ","_","_"," _ "," _ "," _ "," _ "," _ "," _ "," _ "," _ ",null," _ "," _ "," _ "," _ ",null,null,null," _ "," _ "," _ "," _ "," _ "," _ "," _ "," _ "," _ "," _ "," _ ",null," _ "," _ "," _ "," _ "," _ ",null," _ "," _ "," _ "," _ ",null,2,22,"Finance","Finance and Administration",null,null,0,0,0,0,0,0,0,0,0,"_","_","_","_"]
["D0001/IA10140/F0001/X049/R0373/001/46","D0001/IA10140/F0001/X049/R0373/001/46",10688,677,"Assets:Current Assets:Cash and Cash Equivalents:Cash at Bank:Bank Account:Specify (replace with account description):Opening Balance"," _"," _"," _ "," _ "," _ "," _ ",1200,"Finance and administration",1204,"Finance","_"," _"," _","D","IA",120,"Cash",120,"Cash"," _ "," _ ","_","_"," _ "," _ "," _ "," _ "," _ "," _ "," _ "," _ ",null," _ "," _ "," _ "," _ ",null,null,null," _ "," _ "," _ "," _ "," _ "," _ "," _ "," _ "," _ "," _ "," _ ",null," _ "," _ "," _ "," _ "," _ ",null," _ "," _ "," _ "," _ ",null,2,22,"Finance","Finance and Administration",null,null,0,0,0,0,0,0,0,0,0,"_","_","_","_"]
["D0001/IA10066/F0001/X049/R0374/001/46","D0001/IA10066/F0001/X049/R0374/001/46",10689,678,"Assets:Current Assets:Cash and Cash Equivalents:Cash at Bank:Bank Account:Specify (replace with account description):Opening Balance"," _"," _"," _ "," _ "," _ "," _ ",1200,"Finance and administration",1204,"Finance","_"," _"," _","D","IA",120,"Cash",120,"Cash"," _ "," _ ","_","_"," _ "," _ "," _ "," _ "," _ "," _ "," _ "," _ ",null," _ "," _ "," _ "," _ ",null,null,null," _ "," _ "," _ "," _ "," _ "," _ "," _ "," _ "," _ "," _ "," _ ",null," _ "," _ "," _ "," _ "," _ ",null," _ "," _ "," _ "," _ ",null,2,22,"Finance","Finance and Administration",null,null,0,0,0,0,0,0,0,0,0,"_","_","_","_"]
["D0001/IA10020/F0001/X049/R0374/001/46","D0001/IA10020/F0001/X049/R0374/001/46",10690,679,"Assets:Current Assets:Cash and Cash Equivalents:Cash at Bank:Bank Account:Specify (replace with account description):Opening Balance"," _"," _"," _ "," _ "," _ "," _ ",1200,"Finance and administration",1204,"Finance","_"," _"," _","D","IA",120,"Cash",120,"Cash"," _ "," _ ","_","_"," _ "," _ "," _ "," _ "," _ "," _ "," _ "," _ ",null," _ "," _ "," _ "," _ ",null,null,null," _ "," _ "," _ "," _ "," _ "," _ "," _ "," _ "," _ "," _ "," _ ",null," _ "," _ "," _ "," _ "," _ ",null," _ "," _ "," _ "," _ ",null,2,22,"Finance","Finance and Administration",null,null,0,0,0,0,0,0,0,0,0,"_","_","_","_"]
["D0001/IA10012/F0001/X049/R0374/001/46","D0001/IA10012/F0001/X049/R0374/001/46",10691,680,"Assets:Current Assets:Cash and Cash Equivalents:Cash at Bank:Bank Account:Specify (replace with account description):Opening Balance"," _"," _"," _ "," _ "," _ "," _ ",1200,"Finance and administration",1204,"Finance","_"," _"," _","D","IA",120,"Cash",120,"Cash"," _ "," _ ","_","_"," _ "," _ "," _ "," _ "," _ "," _ "," _ "," _ ",null," _ "," _ "," _ "," _ ",null,null,null," _ "," _ "," _ "," _ "," _ "," _ "," _ "," _ "," _ "," _ "," _ ",null," _ "," _ "," _ "," _ "," _ ",null," _ "," _ "," _ "," _ ",null,2,22,"Finance","Finance and Administration",null,null,0,0,0,0,0,0,0,0,0,"_","_","_","_"]
["D0001/IA09980/F0001/X049/R0374/001/46","D0001/IA09980/F0001/X049/R0374/001/46",10692,681,"Assets:Current Assets:Cash and Cash Equivalents:Cash at Bank:Bank Account:Specify (replace with account description):Opening Balance"," _"," _"," _ "," _ "," _ "," _ ",1200,"Finance and administration",1204,"Finance","_"," _"," _","D","IA",120,"Cash",120,"Cash"," _ "," _ ","_","_"," _ "," _ "," _ "," _ "," _ "," _ "," _ "," _ ",null," _ "," _ "," _ "," _ ",null,null,null," _ "," _ "," _ "," _ "," _ "," _ "," _ "," _ "," _ "," _ "," _ ",null," _ "," _ "," _ "," _ "," _ ",null," _ "," _ "," _ "," _ ",null,2,22,"Finance","Finance and Administration",null,null,0,0,0,0,0,0,0,0,0,"_","_","_","_"]
["D0001/IA10021/F0001/X049/R0374/001/46","D0001/IA10021/F0001/X049/R0374/001/46",10693,682,"Assets:Current Assets:Cash and Cash Equivalents:Cash at Bank:Bank Account:Specify (replace with account description):Opening Balance"," _"," _"," _ "," _ "," _ "," _ ",1200,"Finance and administration",1204,"Finance","_"," _"," _","D","IA",120,"Cash",120,"Cash"," _ "," _ ","_","_"," _ "," _ "," _ "," _ "," _ "," _ "," _ "," _ ",null," _ "," _ "," _ "," _ ",null,null,null," _ "," _ "," _ "," _ "," _ "," _ "," _ "," _ "," _ "," _ "," _ ",null," _ "," _ "," _ "," _ "," _ ",null," _ "," _ "," _ "," _ ",null,2,22,"Finance","Finance and Administration",null,null,0,0,0,0,0,0,0,0,0,"_","_","_","_"]
["D0001/IA10011/F0001/X049/R0374/001/46","D0001/IA10011/F0001/X049/R0374/001/46",10694,683,"Assets:Current Assets:Cash and Cash Equivalents:Cash at Bank:Bank Account:Specify (replace with account description):Opening Balance"," _"," _"," _ "," _ "," _ "," _ ",1200,"Finance and administration",1204,"Finance","_"," _"," _","D","IA",120,"Cash",120,"Cash"," _ "," _ ","_","_"," _ "," _ "," _ "," _ "," _ "," _ "," _ "," _ ",null," _ "," _ "," _ "," _ ",null,null,null," _ "," _ "," _ "," _ "," _ "," _ "," _ "," _ "," _ "," _ "," _ ",null," _ "," _ "," _ "," _ "," _ ",null," _ "," _ "," _ "," _ ",null,2,22,"Finance","Finance and Administration",null,null,0,0,0,0,0,0,0,0,0,"_","_","_","_"]
["D0001/IA10017/F0001/X049/R0374/001/46","D0001/IA10017/F0001/X049/R0374/001/46",10695,684,"Assets:Current Assets:Cash and Cash Equivalents:Cash at Bank:Bank Account:Specify (replace with account description):Opening Balance"," _"," _"," _ "," _ "," _ "," _ ",1200,"Finance and administration",1204,"Finance","_"," _"," _","D","IA",120,"Cash",120,"Cash"," _ "," _ ","_","_"," _ "," _ "," _ "," _ "," _ "," _ "," _ "," _ ",null," _ "," _ "," _ "," _ ",null,null,null," _ "," _ "," _ "," _ "," _ "," _ "," _ "," _ "," _ "," _ "," _ ",null," _ "," _ "," _ "," _ "," _ ",null," _ "," _ "," _ "," _ ",null,2,22,"Finance","Finance and Administration",null,null,0,0,0,0,0,0,0,0,0,"_","_","_","_"]
["D0001/IA10016/F0001/X049/R0374/001/46","D0001/IA10016/F0001/X049/R0374/001/46",10696,685,"Assets:Current Assets:Cash and Cash Equivalents:Cash at Bank:Bank Account:Specify (replace with account description):Opening Balance"," _"," _"," _ "," _ "," _ "," _ ",1200,"Finance and administration",1204,"Finance","_"," _"," _","D","IA",120,"Cash",120,"Cash"," _ "," _ ","_","_"," _ "," _ "," _ "," _ "," _ "," _ "," _ "," _ ",null," _ "," _ "," _ "," _ ",null,null,null," _ "," _ "," _ "," _ "," _ "," _ "," _ "," _ "," _ "," _ "," _ ",null," _ "," _ "," _ "," _ "," _ ",null," _ "," _ "," _ "," _ ",null,2,22,"Finance","Finance and Administration",null,null,0,0,0,0,0,0,0,0,0,"_","_","_","_"]
["D0001/IA10015/F0001/X049/R0374/001/46","D0001/IA10015/F0001/X049/R0374/001/46",10697,686,"Assets:Current Assets:Cash and Cash Equivalents:Cash at Bank:Bank Account:Specify (replace with account description):Opening Balance"," _"," _"," _ "," _ "," _ "," _ ",1200,"Finance and administration",1204,"Finance","_"," _"," _","D","IA",120,"Cash",120,"Cash"," _ "," _ ","_","_"," _ "," _ "," _ "," _ "," _ "," _ "," _ "," _ ",null," _ "," _ "," _ "," _ ",null,null,null," _ "," _ "," _ "," _ "," _ "," _ "," _ "," _ "," _ "," _ "," _ ",null," _ "," _ "," _ "," _ "," _ ",null," _ "," _ "," _ "," _ ",null,2,22,"Finance","Finance and Administration",null,null,0,0,0,0,0,0,0,0,0,"_","_","_","_"]
["D0001/IA10013/F0001/X049/R0374/001/46","D0001/IA10013/F0001/X049/R0374/001/46",10698,687,"Assets:Current Assets:Cash and Cash Equivalents:Cash at Bank:Bank Account:Specify (replace with account description):Opening Balance"," _"," _"," _ "," _ "," _ "," _ ",1200,"Finance and administration",1204,"Finance","_"," _"," _","D","IA",120,"Cash",120,"Cash"," _ "," _ ","_","_"," _ "," _ "," _ "," _ "," _ "," _ "," _ "," _ ",null," _ "," _ "," _ "," _ ",null,null,null," _ "," _ "," _ "," _ "," _ "," _ "," _ "," _ "," _ "," _ "," _ ",null," _ "," _ "," _ "," _ "," _ ",null," _ "," _ "," _ "," _ ",null,2,22,"Finance","Finance and Administration",null,null,0,0,0,0,0,0,0,0,0,"_","_","_","_"]
["D0001/IA10018/F0001/X049/R0374/001/46","D0001/IA10018/F0001/X049/R0374/001/46",10699,688,"Assets:Current Assets:Cash and Cash Equivalents:Cash at Bank:Bank Account:Specify (replace with account description):Opening Balance"," _"," _"," _ "," _ "," _ "," _ ",1200,"Finance and administration",1204,"Finance","_"," _"," _","D","IA",120,"Cash",120,"Cash"," _ "," _ ","_","_"," _ "," _ "," _ "," _ "," _ "," _ "," _ "," _ ",null," _ "," _ "," _ "," _ ",null,null,null," _ "," _ "," _ "," _ "," _ "," _ "," _ "," _ "," _ "," _ "," _ ",null," _ "," _ "," _ "," _ "," _ ",null," _ "," _ "," _ "," _ ",null,2,22,"Finance","Finance and Administration",null,null,0,0,0,0,0,0,0,0,0,"_","_","_","_"]
["D0001/IA10014/F0001/X049/R0374/001/46","D0001/IA10014/F0001/X049/R0374/001/46",10700,689,"Assets:Current Assets:Cash and Cash Equivalents:Cash at Bank:Bank Account:Specify (replace with account description):Opening Balance"," _"," _"," _ "," _ "," _ "," _ ",1200,"Finance and administration",1204,"Finance","_"," _"," _","D","IA",120,"Cash",120,"Cash"," _ "," _ ","_","_"," _ "," _ "," _ "," _ "," _ "," _ "," _ "," _ ",null," _ "," _ "," _ "," _ ",null,null,null," _ "," _ "," _ "," _ "," _ "," _ "," _ "," _ "," _ "," _ "," _ ",null," _ "," _ "," _ "," _ "," _ ",null," _ "," _ "," _ "," _ ",null,2,22,"Finance","Finance and Administration",null,null,0,0,0,0,0,0,0,0,0,"_","_","_","_"]
["D0001/IL53821/F0041/X049/R0374/001/46","D0001/IL53821/F0041/X049/R0374/001/46",10701,695,"Liabilities:Current Liabilities:Trade and Other Payable Exchange Transactions:Payables and Accruals : General:Withdrawals"," _"," _"," _ "," _ "," _ "," _ ",1200,"Finance and administration",1204,"Finance","_"," _"," _","D","IL",360," Trade and other payables",360,"Trade and other payables"," _ "," _ ","_","_",200,"Cash Payments by Type / Other expenditure",480,"Other expenditure"," _ "," _ "," _ "," _ ",null,361,"Trade Payables",361,"Trade Payables",null,null,null," _ "," _ "," _ "," _ "," _ "," _ "," _ "," _ "," _ "," _ "," _ ",null," _ "," _ "," _ "," _ "," _ ",null," _ "," _ "," _ "," _ ",null,2,22,"Finance","Finance and Administration",null,null,0,0,0,0,0,3646375,7005086,7044198,0,"_","_","_","_"]
["D0001/IL53820/F0041/X049/R0374/001/46","D0001/IL53820/F0041/X049/R0374/001/46",10702,694,"Liabilities:Current Liabilities:Trade and Other Payable Exchange Transactions:Payables and Accruals : General:Deposits"," _"," _"," _ "," _ "," _ "," _ ",1200,"Finance and administration",1204,"Finance","_"," _"," _","D","IL",360," Trade and other payables",360,"Trade and other payables"," _ "," _ ","_","_"," _ "," _ "," _ "," _ "," _ "," _ "," _ "," _ ",null,361,"Trade Payables",361,"Trade Payables",null,null,null," _ "," _ "," _ "," _ "," _ "," _ "," _ "," _ "," _ "," _ "," _ ",null," _ "," _ "," _ "," _ "," _ ",null," _ "," _ "," _ "," _ ",null,2,22,"Finance","Finance and Administration",null,null,0,0,0,0,0,-3646375,-7005086,-7044198,0,"_","_","_","_"]
["O0001/IE00830/F0041/X049/R0374/001/46","O0001/IE00830/F0041/X049/R0374/001/46",10703,690,"Expenditure:Contracted Services:Consultants and Professional Services:Business and Advisory:Accounting and Auditing",2700,"Contracted services","2700-002","Consultants and Professional Services",2702,"Consultants and Professional Services",1200,"Finance and administration",1204,"Finance","_"," _"," _","O","IE"," _ "," _ "," _ "," _ "," _ "," _ ","_","_"," _ "," _ "," _ "," _ "," _ "," _ "," _ "," _ ",null," _ "," _ "," _ "," _ ",null,null,null," _ "," _ "," _ "," _ "," _ "," _ "," _ "," _ "," _ "," _ "," _ ",null," _ "," _ "," _ "," _ "," _ ",null," _ "," _ "," _ "," _ ",null,2,22,"Finance","Finance and Administration",null,null,0,0,0,0,500000,0,0,0,0,"_","_","_","_"]
["O0001/IE00694/F1177/X049/R0374/001/46","O0001/IE00694/F1177/X049/R0374/001/46",10704,691,"Expenditure:Contracted Services:Outsourced Services:Professional Staff",2700,"Contracted services","2700-001","Outsourced Services",2701,"Outsourced Services",1200,"Finance and administration",1204,"Finance","_"," _"," _","O","IE"," _ "," _ "," _ "," _ "," _ "," _ ","_","_"," _ "," _ "," _ "," _ "," _ "," _ "," _ "," _ ",null," _ "," _ "," _ "," _ ",null,null,null," _ "," _ "," _ "," _ "," _ "," _ "," _ "," _ "," _ "," _ "," _ ",null," _ "," _ "," _ "," _ "," _ ",null," _ "," _ "," _ "," _ ",null,2,22,"Finance","Finance and Administration",null,null,0,0,0,0,212000,250000,0,0,0,"_","_","_","_"]
["C0068-4/IA06173/F0002/X049/R0374/001/46","C0068-4/IA06173/F0002/X049/R0374/001/46",10705,692,"Assets:Non-current Assets:Property, Plant and Equipment:Cost Model:Computer Equipment:Future Use:Cost:Acquisitions"," _"," _"," _ "," _ "," _ "," _ ",1200,"Finance and administration",1204,"Finance","CE",2080,"Internally generated funds","C","IA",240," Property, plant and equipment",240,"Property, plant and equipment"," _ "," _ ","_","_"," _ "," _ "," _ "," _ ",1470,"Computer Equipment",1470,"Computer Equipment",null,241,"PPE at cost/valuation (excl. finance leases)",241,"PPE at cost/valuation (excl. finance leases)",null,null,null," _ "," _ "," _ "," _ ",1470,"Computer Equipment"," _ "," _ ",1470," _ "," _ ",null," _ "," _ ","Computer Equipment"," _ "," _ ",null," _ "," _ "," _ "," _ ",null,2,22,"Finance","Finance and Administration",null,null,0,0,0,0,78000,110000,0,0,0,"_","_","_","_"]
["C0072-1/IA01327/F0002/X046/R0374/001/44","C0072-1/IA01327/F0002/X046/R0374/001/44",10706,693,"Assets:Non-current Assets:Property, Plant and Equipment:Cost Model:Transport Assets:Future Use:Cost:Acquisitions"," _"," _"," _ "," _ "," _ "," _ ",1200,"Finance and administration",1201,"Administrative and Corporate Support","CE",2080,"Internally generated funds","C","IA",240," Property, plant and equipment",240,"Property, plant and equipment"," _ "," _ ","_","_"," _ "," _ "," _ "," _ ",1530,"Transport Assets",1530,"Transport Assets",null,241,"PPE at cost/valuation (excl. finance leases)",241,"PPE at cost/valuation (excl. finance leases)",null,null,null," _ "," _ "," _ "," _ ",1530,"Transport Assets"," _ "," _ ",1530," _ "," _ ",null," _ "," _ ","Transport Assets"," _ "," _ ",null," _ "," _ "," _ "," _ ",null,2,21,"Administrative and Corporate Support","Finance and Administration",null,null,0,0,0,0,0,200000,0,0,0,"_","_","_","_"]
["D0001/IL53963/F0045/X049/R0374/001/46","D0001/IL53963/F0045/X049/R0374/001/46",10707,696,"Liabilities:Current Liabilities:Trade and Other Payable Exchange Transactions:Accrued Interest:Withdrawals"," _"," _"," _ "," _ "," _ "," _ ",1200,"Finance and administration",1204,"Finance","_"," _"," _","D","IL",360," Trade and other payables",360,"Trade and other payables"," _ "," _ ","_","_",210,"Cash Payments by Type / Finance charges",410,"Finance charges"," _ "," _ "," _ "," _ ",null,361,"Trade Payables",361,"Trade Payables",null,null,null," _ "," _ "," _ "," _ "," _ "," _ "," _ "," _ "," _ "," _ "," _ ",null," _ "," _ "," _ "," _ "," _ ",null," _ "," _ "," _ "," _ ",null,2,22,"Finance","Finance and Administration",null,null,0,0,0,0,426919,80000,411060,433257,0,"_","_","_","_"]
["D0001/IA10353/F0041/X049/R0373/001/46","D0001/IA10353/F0041/X049/R0373/001/46",20707,1697,"Assets:Current Assets:Inventory:Materials and Supplies:Issues"," _"," _"," _ "," _ "," _ "," _ ",1200,"Finance and administration",1204,"Finance","_"," _"," _","D","IA",170,"Inventory","0170-06-02","Materials and Supplies Issues"," _ "," _ ","_","_"," _ "," _ "," _ "," _ "," _ "," _ "," _ "," _ ",null," _ "," _ "," _ "," _ ",null,null,null," _ "," _ "," _ "," _ "," _ "," _ "," _ "," _ "," _ "," _ "," _ ",null," _ "," _ "," _ "," _ "," _ ",null," _ "," _ "," _ "," _ ",null,2,22,"Finance","Finance and Administration",null,null,0,0,0,0,0,-30000,-45673,-48140,0,"_","_","_","_"]
["D0001/IA10338/F0041/X049/R0373/001/46","D0001/IA10338/F0041/X049/R0373/001/46",20708,1696,"Assets:Current Assets:Inventory:Consumables:Standard Rated:Issues"," _"," _"," _ "," _ "," _ "," _ ",1200,"Finance and administration",1204,"Finance","_"," _"," _","D","IA",170,"Inventory","0170-03-02","Standard Rated Issues"," _ "," _ ","_","_"," _ "," _ "," _ "," _ "," _ "," _ "," _ "," _ ",null," _ "," _ "," _ "," _ ",null,null,null," _ "," _ "," _ "," _ "," _ "," _ "," _ "," _ "," _ "," _ "," _ ",null," _ "," _ "," _ "," _ "," _ ",null," _ "," _ "," _ "," _ ",null,2,22,"Finance","Finance and Administration",null,null,0,0,0,0,0,0,0,0,0,"_","_","_","_"]
["D0001/IA02108/F1169/X049/R0374/001/46","D0001/IA02108/F1169/X049/R0374/001/46",20709,1698,"Assets:Current Assets:Cash and Cash Equivalents:Cash at Bank:Bank Account:Specify (replace with account description):Withdrawals"," _"," _"," _ "," _ "," _ "," _ ",1200,"Finance and administration",1204,"Finance","_"," _"," _","D","IA",120,"Cash",120,"Cash","0150W","Government - operating","0150W","Government - operating"," _ "," _ "," _ "," _ "," _ "," _ "," _ "," _ ",null," _ "," _ "," _ "," _ ",null,null,"W"," _ "," _ "," _ "," _ "," _ "," _ "," _ "," _ "," _ "," _ "," _ ",null," _ "," _ "," _ "," _ "," _ ",null," _ "," _ "," _ "," _ ",null,2,22,"Finance","Finance and Administration",null,null,0,0,0,0,0,-1440000,-1440000,-1440000,0,"_","_","_","_"]
["D0001/IA02108/F1177/X049/R0374/001/46","D0001/IA02108/F1177/X049/R0374/001/46",20710,1701,"Assets:Current Assets:Cash and Cash Equivalents:Cash at Bank:Bank Account:Specify (replace with account description):Withdrawals"," _"," _"," _ "," _ "," _ "," _ ",1200,"Finance and administration",1204,"Finance","_"," _"," _","D","IA",120,"Cash",120,"Cash","0150W","Government - operating","0150W","Government - operating"," _ "," _ "," _ "," _ "," _ "," _ "," _ "," _ ",null," _ "," _ "," _ "," _ ",null,null,"W"," _ "," _ "," _ "," _ "," _ "," _ "," _ "," _ "," _ "," _ "," _ ",null," _ "," _ "," _ "," _ "," _ ",null," _ "," _ "," _ "," _ ",null,2,22,"Finance","Finance and Administration",null,null,0,0,0,0,0,-1650000,-1720000,-1720000,0,"_","_","_","_"]
["D0001/IA02108/F0041/X049/R0374/001/46","D0001/IA02108/F0041/X049/R0374/001/46",20711,1702,"Assets:Current Assets:Cash and Cash Equivalents:Cash at Bank:Bank Account:Specify (replace with account description):Withdrawals"," _"," _"," _ "," _ "," _ "," _ ",1200,"Finance and administration",1204,"Finance","_"," _"," _","D","IA",120,"Cash",120,"Cash","0150W","Government - operating","0150W","Government - operating"," _ "," _ "," _ "," _ "," _ "," _ "," _ "," _ ",null," _ "," _ "," _ "," _ ",null,null,"W"," _ "," _ "," _ "," _ "," _ "," _ "," _ "," _ "," _ "," _ "," _ ",null," _ "," _ "," _ "," _ "," _ ",null," _ "," _ "," _ "," _ ",null,2,22,"Finance","Finance and Administration",null,null,0,0,0,0,0,-47290000,-49008000,-50056392,0,"_","_","_","_"]
["D0001/IA02108/F15763/X049/R0374/001/46","D0001/IA02108/F15763/X049/R0374/001/46",20712,1700,"Assets:Current Assets:Cash and Cash Equivalents:Cash at Bank:Bank Account:Specify (replace with account description):Withdrawals"," _"," _"," _ "," _ "," _ "," _ ",1200,"Finance and administration",1204,"Finance","_"," _"," _","D","IA",120,"Cash",120,"Cash","0150W","Government - operating","0150W","Government - operating"," _ "," _ "," _ "," _ "," _ "," _ "," _ "," _ ",null," _ "," _ "," _ "," _ ",null,null,"W"," _ "," _ "," _ "," _ "," _ "," _ "," _ "," _ "," _ "," _ "," _ ",null," _ "," _ "," _ "," _ "," _ ",null," _ "," _ "," _ "," _ ",null,2,22,"Finance","Finance and Administration",null,null,0,0,0,0,0,-2196000,-2304000,-2307000,0,"_","_","_","_"]
["D0001/IA02108/F2766/X049/R0374/001/46","D0001/IA02108/F2766/X049/R0374/001/46",20713,1699,"Assets:Current Assets:Cash and Cash Equivalents:Cash at Bank:Bank Account:Specify (replace with account description):Withdrawals"," _"," _"," _ "," _ "," _ "," _ ",1200,"Finance and administration",1204,"Finance","_"," _"," _","D","IA",120,"Cash",120,"Cash","0150W","Government - operating","0150W","Government - operating"," _ "," _ "," _ "," _ "," _ "," _ "," _ "," _ ",null," _ "," _ "," _ "," _ ",null,null,"W"," _ "," _ "," _ "," _ "," _ "," _ "," _ "," _ "," _ "," _ "," _ ",null," _ "," _ "," _ "," _ "," _ ",null," _ "," _ "," _ "," _ ",null,2,22,"Finance","Finance and Administration",null,null,0,0,0,0,0,-9256000,-14404000,-14404000,0,"_","_","_","_"]
["D0001/IA10384/F2766/X049/R0374/001/46","D0001/IA10384/F2766/X049/R0374/001/46",20714,1704,"Assets:Current Assets:Deposits:Deposits"," _"," _"," _ "," _ "," _ "," _ ",1200,"Finance and administration",1204,"Finance","_"," _"," _","D","IA",150,"Other debtors",150,"Other debtors"," _ "," _ ","_","_"," _ "," _ "," _ "," _ "," _ "," _ "," _ "," _ ",null," _ "," _ "," _ "," _ ",null,null,null," _ "," _ "," _ "," _ "," _ "," _ "," _ "," _ "," _ "," _ "," _ ",null," _ "," _ "," _ "," _ "," _ ",null," _ "," _ "," _ "," _ ",null,2,22,"Finance","Finance and Administration",null,null,0,0,0,0,0,0,0,0,0,"_","_","_","_"]
["D0001/IA09797/F13576/X049/R0374/001/46","D0001/IA09797/F13576/X049/R0374/001/46",20715,1703,"Assets:Current Assets:Cash and Cash Equivalents:Cash at Bank:Bank Account:Specify (replace with account description):Withdrawals"," _"," _"," _ "," _ "," _ "," _ ",1200,"Finance and administration",1204,"Finance","_"," _"," _","D","IA",120,"Cash",120,"Cash","0150W","Government - operating","0150W","Government - operating"," _ "," _ "," _ "," _ "," _ "," _ "," _ "," _ ",null," _ "," _ "," _ "," _ ",null,null,"W"," _ "," _ "," _ "," _ "," _ "," _ "," _ "," _ "," _ "," _ "," _ ",null," _ "," _ "," _ "," _ "," _ ",null," _ "," _ "," _ "," _ ",null,2,22,"Finance","Finance and Administration",null,null,0,0,0,0,0,0,0,0,0,"_","_","_","_"]
["D0001/IA09797/F0045/X049/R0374/001/46","D0001/IA09797/F0045/X049/R0374/001/46",20716,1705,"Assets:Current Assets:Cash and Cash Equivalents:Cash at Bank:Bank Account:Specify (replace with account description):Withdrawals"," _"," _"," _ "," _ "," _ "," _ ",1200,"Finance and administration",1204,"Finance","_"," _"," _","D","IA",120,"Cash",120,"Cash","0140W","Other revenue","0140W","Other revenue"," _ "," _ "," _ "," _ "," _ "," _ "," _ "," _ ",null," _ "," _ "," _ "," _ ",null,null,"W"," _ "," _ "," _ "," _ "," _ "," _ "," _ "," _ "," _ "," _ "," _ ",null," _ "," _ "," _ "," _ "," _ ",null," _ "," _ "," _ "," _ ",null,2,22,"Finance","Finance and Administration",null,null,0,0,0,0,0,-1639183,-907276,-939676,0,"_","_","_","_"]
["O0001/IE06142/F0041/X045/R0373/001/43","O0001/IE06142/F0041/X045/R0373/001/43",20717,2699,"Expenditure:Employee Related Cost:Senior Management:Designation:Social Contributions:Bargaining Council",2000,"Employee related costs","2000-009","Other benefits and allowances",2009,"Other benefits and allowances",1100,"Executive and council",1120,"Municipal Manager, Town Secretary and Chief Executive","_"," _"," _","O","IE"," _ "," _ "," _ "," _ "," _ "," _ ","_","_"," _ "," _ "," _ "," _ "," _ "," _ "," _ "," _ ",null," _ "," _ "," _ "," _ ",null,null,null," _ "," _ "," _ "," _ "," _ "," _ "," _ "," _ "," _ "," _ "," _ ",null," _ "," _ "," _ "," _ "," _ ",null," _ "," _ "," _ "," _ ","SM",1,12,"Municipal Manager, Town Secretary and Chief Executive","Executive and Council",null,null,0,0,0,0,0,119,0,0,0,"_","_","_","_"]
["O0001/IE06255/F0041/X045/R0373/001/43","O0001/IE06255/F0041/X045/R0373/001/43",20718,2700,"Expenditure:Employee Related Cost:Senior Management:Designation:Social Contributions:Unemployment Insurance",2000,"Employee related costs","2000-002","Pension and UIF Contributions",2002,"Pension and UIF Contributions",1100,"Executive and council",1120,"Municipal Manager, Town Secretary and Chief Executive","_"," _"," _","O","IE"," _ "," _ "," _ "," _ "," _ "," _ ","_","_"," _ "," _ "," _ "," _ "," _ "," _ "," _ "," _ ",null," _ "," _ "," _ "," _ ",null,null,null," _ "," _ "," _ "," _ "," _ "," _ "," _ "," _ "," _ "," _ "," _ ",null," _ "," _ "," _ "," _ "," _ ",null," _ "," _ "," _ "," _ ","SM",1,12,"Municipal Manager, Town Secretary and Chief Executive","Executive and Council",null,null,0,0,0,0,0,1785,0,0,0,"_","_","_","_"]
["O0001/IE06117/F0041/X045/R0373/001/43","O0001/IE06117/F0041/X045/R0373/001/43",20719,2696,"Expenditure:Employee Related Cost:Senior Management:Designation:Salaries and Allowances:Bonuses",2000,"Employee related costs","2000-005","Performance Bonus",2005,"Performance Bonus",1100,"Executive and council",1120,"Municipal Manager, Town Secretary and Chief Executive","_"," _"," _","O","IE"," _ "," _ "," _ "," _ "," _ "," _ ","_","_"," _ "," _ "," _ "," _ "," _ "," _ "," _ "," _ ",null," _ "," _ "," _ "," _ ",null,null,null," _ "," _ "," _ "," _ "," _ "," _ "," _ "," _ "," _ "," _ "," _ ",null," _ "," _ "," _ "," _ "," _ ",null," _ "," _ "," _ "," _ ","SM",1,12,"Municipal Manager, Town Secretary and Chief Executive","Executive and Council",null,null,0,0,0,0,0,106141,0,0,0,"_","_","_","_"]
["O0001/IE06230/F0041/X049/R0373/001/46","O0001/IE06230/F0041/X049/R0373/001/46",20720,2697,"Expenditure:Employee Related Cost:Senior Management:Designation:Social Contributions:Pension",2000,"Employee related costs","2000-002","Pension and UIF Contributions",2002,"Pension and UIF Contributions",1200,"Finance and administration",1204,"Finance","_"," _"," _","O","IE"," _ "," _ "," _ "," _ "," _ "," _ ","_","_"," _ "," _ "," _ "," _ "," _ "," _ "," _ "," _ ",null," _ "," _ "," _ "," _ ",null,null,null," _ "," _ "," _ "," _ "," _ "," _ "," _ "," _ "," _ "," _ "," _ ",null," _ "," _ "," _ "," _ "," _ ",null," _ "," _ "," _ "," _ ","SM",2,22,"Finance","Finance and Administration",null,null,0,0,0,0,0,89400,0,0,0,"_","_","_","_"]
["O0001/IE06827/F0041/X049/R0373/001/46","O0001/IE06827/F0041/X049/R0373/001/46",20721,2698,"Expenditure:Employee Related Cost:Senior Management:Designation:Salaries and Allowances:Allowance:Cellular and Telephone",2000,"Employee related costs","2000-007","Cellphone Allowance",2007,"Cellphone Allowance",1200,"Finance and administration",1204,"Finance","_"," _"," _","O","IE"," _ "," _ "," _ "," _ "," _ "," _ ","_","_"," _ "," _ "," _ "," _ "," _ "," _ "," _ "," _ ",null," _ "," _ "," _ "," _ ",null,null,null," _ "," _ "," _ "," _ "," _ "," _ "," _ "," _ "," _ "," _ "," _ ",null," _ "," _ "," _ "," _ "," _ ",null," _ "," _ "," _ "," _ ","SM",2,22,"Finance","Finance and Administration",null,null,0,0,0,0,0,4800,0,0,0,"_","_","_","_"]
["O0001/IE06858/F0041/X049/R0373/001/46","O0001/IE06858/F0041/X049/R0373/001/46",20722,2701,"Expenditure:Employee Related Cost:Senior Management:Designation:Salaries and Allowances:Allowance:Housing Benefits",2000,"Employee related costs","2000-008","Housing Allowances",2008,"Housing Allowances",1200,"Finance and administration",1204,"Finance","_"," _"," _","O","IE"," _ "," _ "," _ "," _ "," _ "," _ ","_","_"," _ "," _ "," _ "," _ "," _ "," _ "," _ "," _ ",null," _ "," _ "," _ "," _ ",null,null,null," _ "," _ "," _ "," _ "," _ "," _ "," _ "," _ "," _ "," _ "," _ ",null," _ "," _ "," _ "," _ "," _ ",null," _ "," _ "," _ "," _ ","SM",2,22,"Finance","Finance and Administration",null,null,0,0,0,0,0,11574,0,0,0,"_","_","_","_"]
["O0001/IE06922/F0041/X049/R0373/001/46","O0001/IE06922/F0041/X049/R0373/001/46",20723,2702,"Expenditure:Employee Related Cost:Senior Management:Designation:Salaries and Allowances:Allowance:Travel or Motor Vehicle",2000,"Employee related costs","2000-006","Motor Vehicle Allowance",2006,"Motor Vehicle Allowance",1200,"Finance and administration",1204,"Finance","_"," _"," _","O","IE"," _ "," _ "," _ "," _ "," _ "," _ ","_","_"," _ "," _ "," _ "," _ "," _ "," _ "," _ "," _ ",null," _ "," _ "," _ "," _ ",null,null,null," _ "," _ "," _ "," _ "," _ "," _ "," _ "," _ "," _ "," _ "," _ ",null," _ "," _ "," _ "," _ "," _ ",null," _ "," _ "," _ "," _ ","SM",2,22,"Finance","Finance and Administration",null,null,0,0,0,0,0,0,0,0,0,"_","_","_","_"]
["O0001/IE00045/F1169/X098/R0374/001/0096","O0001/IE00045/F1169/X098/R0374/001/0096",20724,2703,"Expenditure:Employee Related Cost:Municipal Staff:Social Contributions:Unemployment Insurance",2000,"Employee related costs","2000-002","Pension and UIF Contributions",2002,"Pension and UIF Contributions",3100,"Planning and development",3105,"Economic Development/Planning","_"," _"," _","O","IE"," _ "," _ "," _ "," _ "," _ "," _ ","_","_"," _ "," _ "," _ "," _ "," _ "," _ "," _ "," _ ",null," _ "," _ "," _ "," _ ",null,null,null," _ "," _ "," _ "," _ "," _ "," _ "," _ "," _ "," _ "," _ "," _ ",null," _ "," _ "," _ "," _ "," _ ",null," _ "," _ "," _ "," _ ","MS",3,33,"Economic Development/Planning","Planning and Development",null,null,0,0,0,0,0,0,0,0,0,"_","_","_","_"]
["O0001/IE00595/F1169/X098/R0374/001/0096","O0001/IE00595/F1169/X098/R0374/001/0096",20725,2704,"Expenditure:Operational Cost:Skills Development Fund Levy",2900,"Other expenditure","_","_",2904,"Other Expenditure",3100,"Planning and development",3105,"Economic Development/Planning","_"," _"," _","O","IE"," _ "," _ "," _ "," _ "," _ "," _ ","_","_"," _ "," _ "," _ "," _ "," _ "," _ "," _ "," _ ",null," _ "," _ "," _ "," _ ",null,null,null," _ "," _ "," _ "," _ "," _ "," _ "," _ "," _ "," _ "," _ "," _ ",null," _ "," _ "," _ "," _ "," _ ",null," _ "," _ "," _ "," _ ",null,3,33,"Economic Development/Planning","Planning and Development",null,null,0,0,0,0,0,0,0,0,0,"_","_","_","_"]
["O0001/IE00126/F0041/X051/R0373/001/44","O0001/IE00126/F0041/X051/R0373/001/44",20726,2705,"Expenditure:Employee Related Cost:Municipal Staff:Salaries, Wages and Allowances:Allowances:Travel or Motor Vehicle",2000,"Employee related costs","2000-006","Motor Vehicle Allowance",2006,"Motor Vehicle Allowance",1200,"Finance and administration",1206,"Human Resources","_"," _"," _","O","IE"," _ "," _ "," _ "," _ "," _ "," _ ","_","_"," _ "," _ "," _ "," _ "," _ "," _ "," _ "," _ ",null," _ "," _ "," _ "," _ ",null,null,null," _ "," _ "," _ "," _ "," _ "," _ "," _ "," _ "," _ "," _ "," _ ",null," _ "," _ "," _ "," _ "," _ ",null," _ "," _ "," _ "," _ ","MS",2,23,"Human Resources","Finance and Administration",null,null,0,0,0,0,0,36000,36000,36000,0,"_","_","_","_"]
["D0001/IA09577/F2766/X049/R0373/001/46","D0001/IA09577/F2766/X049/R0373/001/46",20727,2707,"Assets:Current Assets:Cash and Cash Equivalents:Cash at Bank:Bank Account:Specify (replace with account description):Deposits"," _"," _"," _ "," _ "," _ "," _ ",1200,"Finance and administration",1204,"Finance","_"," _"," _","D","IA",120,"Cash",120,"Cash","0150D","Government - operating","0150D","Government - operating"," _ "," _ "," _ "," _ "," _ "," _ "," _ "," _ ",null," _ "," _ "," _ "," _ ",null,null,"D"," _ "," _ "," _ "," _ "," _ "," _ "," _ "," _ "," _ "," _ "," _ ",null," _ "," _ "," _ "," _ "," _ ",null," _ "," _ "," _ "," _ ",null,2,22,"Finance","Finance and Administration",null,null,0,0,0,0,0,9256000,14404000,14404000,0,"_","_","_","_"]
["D0001/IA09778/F1180/X049/R0373/001/46","D0001/IA09778/F1180/X049/R0373/001/46",20728,2706,"Assets:Current Assets:Cash and Cash Equivalents:Cash at Bank:Bank Account:Specify (replace with account description):Withdrawals"," _"," _"," _ "," _ "," _ "," _ ",1200,"Finance and administration",1204,"Finance","_"," _"," _","D","IA",120,"Cash",120,"Cash","0150W","Government - operating","0150W","Government - operating"," _ "," _ "," _ "," _ "," _ "," _ "," _ "," _ ",null," _ "," _ "," _ "," _ ",null,null,"W"," _ "," _ "," _ "," _ "," _ "," _ "," _ "," _ "," _ "," _ "," _ ",null," _ "," _ "," _ "," _ "," _ ",null," _ "," _ "," _ "," _ ",null,2,22,"Finance","Finance and Administration",null,null,0,0,0,0,0,0,0,0,0,"_","_","_","_"]
["D0001/IL65530/F0041/X049/R0373/001/46","D0001/IL65530/F0041/X049/R0373/001/46",20730,2709,"Liabilities:Current Liabilities:Trade and Other Payable Exchange Transactions:Payables and Accruals : Contractors:Deposits"," _"," _"," _ "," _ "," _ "," _ ",1200,"Finance and administration",1204,"Finance","_"," _"," _","D","IL",360," Trade and other payables",360,"Trade and other payables"," _ "," _ ","_","_"," _ "," _ "," _ "," _ "," _ "," _ "," _ "," _ ",null,361,"Trade Payables",361,"Trade Payables",null,null,null," _ "," _ "," _ "," _ "," _ "," _ "," _ "," _ "," _ "," _ "," _ ",null," _ "," _ "," _ "," _ "," _ ",null," _ "," _ "," _ "," _ ",null,2,22,"Finance","Finance and Administration",null,null,0,0,0,0,0,-5481000,-7144409,-7459626,0,"_","_","_","_"]
["D0001/IL65531/F0041/X049/R0373/001/46","D0001/IL65531/F0041/X049/R0373/001/46",20731,2708,"Liabilities:Current Liabilities:Trade and Other Payable Exchange Transactions:Payables and Accruals : Contractors:Withdrawals"," _"," _"," _ "," _ "," _ "," _ ",1200,"Finance and administration",1204,"Finance","_"," _"," _","D","IL",360," Trade and other payables",360,"Trade and other payables"," _ "," _ ","_","_",200,"Cash Payments by Type / Contracted Services",450,"Cash Payments by Type / Contracted Services"," _ "," _ "," _ "," _ ",null,361,"Trade Payables",361,"Trade Payables",null,null,null," _ "," _ "," _ "," _ "," _ "," _ "," _ "," _ "," _ "," _ "," _ ",null," _ "," _ "," _ "," _ "," _ ",null," _ "," _ "," _ "," _ ",null,2,22,"Finance","Finance and Administration",null,null,0,0,0,0,0,5481000,7144409,7459626,0,"_","_","_","_"]
["D0001/IL65527/F0041/X049/R0373/001/46","D0001/IL65527/F0041/X049/R0373/001/46",20732,2710,"Liabilities:Current Liabilities:Trade and Other Payable Exchange Transactions:Payables and Accruals : Inventory:Deposits"," _"," _"," _ "," _ "," _ "," _ ",1200,"Finance and administration",1204,"Finance","_"," _"," _","D","IL",360," Trade and other payables",360,"Trade and other payables"," _ "," _ ","_","_"," _ "," _ "," _ "," _ "," _ "," _ "," _ "," _ ",null,361,"Trade Payables",361,"Trade Payables",null,null,null," _ "," _ "," _ "," _ "," _ "," _ "," _ "," _ "," _ "," _ "," _ ",null," _ "," _ "," _ "," _ "," _ ",null," _ "," _ "," _ "," _ ",null,2,22,"Finance","Finance and Administration",null,null,0,0,0,0,0,180000,345673,348140,0,"_","_","_","_"]
["D0001/IL65528/F0041/X049/R0373/001/46","D0001/IL65528/F0041/X049/R0373/001/46",20733,2711,"Liabilities:Current Liabilities:Trade and Other Payable Exchange Transactions:Payables and Accruals : Inventory:Withdrawals"," _"," _"," _ "," _ "," _ "," _ ",1200,"Finance and administration",1204,"Finance","_"," _"," _","D","IL",360," Trade and other payables",360,"Trade and other payables"," _ "," _ ","_","_",200,"Cash Payments by Type / Water & Inventory",430,"Cash Payments by Type / Water & Inventory"," _ "," _ "," _ "," _ ",null,361,"Trade Payables",361,"Trade Payables",null,null,null," _ "," _ "," _ "," _ "," _ "," _ "," _ "," _ "," _ "," _ "," _ ",null," _ "," _ "," _ "," _ "," _ ",null," _ "," _ "," _ "," _ ",null,2,22,"Finance","Finance and Administration",null,null,0,0,0,0,0,180000,345673,348140,0,"_","_","_","_"]

{"sheet":"PARAM","index":1,"n_rows":1,"n_cols":6,"rows_kept":1,"cut":false,"hidden":true,"merged":[]}
[null,"Parmaters: -",null,null,null,"Report Info: -"]

{"sheet":"Lookup and lists","index":2,"n_rows":308,"n_cols":35,"rows_kept":308,"cut":false,"hidden":true,"merged":[]}
["Description",2007,2008,2009,2010,2011,2012,2013,2014,2015,2016,2018,2019,2020,2021,2022,2023,2024,2025,2026,null,"Lists",null,null,null,null,null,null,null,"Grants:","National - opex","Provincial - opex","National - capex","Provincial - capex"]
[{"$f":"'Template names'!C2","v":"Prior year -1"},"2005/06","2006/07","2007/08",{"$f":"E1-2&\"/\"&RIGHT(E1,2)-1","v":"2008/9"},"2009/10","2010/11","2011/12","2012/13","2013/14","2014/15","2016/17","2017/18","2018/19","2019/20","2020/21","2021/22","2022/23","2023/24","2024/25",null,"Yes","<1","<4","Market","Land & impr.","Yes","Uniform","Yrs",null,"Local Government Equitable Share","Health subsidy"," Municipal Infrastructure Grant (MIG)","Agriculture"]
[{"$f":"'Template names'!C3","v":"Prior year -2"},"2004/05","2005/06","2006/07",{"$f":"E1-3&\"/\"&RIGHT(E1,2)-2","v":"2007/8"},"2008/9","2009/10","2010/11","2011/12","2012/13","2013/14","2015/16","2016/17","2017/18","2018/19","2019/20","2020/21","2021/22","2022/23","2023/24",null,"No",1,4,"Dep.Replace","Land only","No","Variable","Mths",null,"RSC Levy Replacement ","Ambulance subsidy"," Public Transport and Systems","Education"]
[{"$f":"'Template names'!C4","v":"Prior year -3"},"2003/04","2004/05","2005/06",{"$f":"E1-4&\"/\"&RIGHT(E1,2)-3","v":"2006/7"},"2007/8","2008/9","2009/10","2010/11","2011/12","2012/13","2014/15","2015/16","2016/17","2017/18","2018/19","2019/20","2020/21","2021/22","2022/23",null,null,2,5,"Other","Other",null,null,null,null,"Finance Management ","Housing","Rural Transport Services and Infrastructure","Health"]
[{"$f":"'Template names'!C5","v":"Year in which budget is being prepared"},"Current Year 2006/07","Current Year 2007/08","Current Year 2008/09",{"$f":"\"Current Year \"& E1-1&\"/\"&RIGHT(E1,2)","v":"Current Year 2009/10"},"Current Year 2010/11","Current Year 2011/12","Current Year 2012/13","Current Year 2013/14","Current Year 2014/15","Current Year 2015/16","Current Year 2017/18","Current Year 2018/19","Current Year 2019/20","Current Year 2020/21","Current Year 2021/22","Current Year 2022/23","Current Year 2023/24","Current Year 2024/25","Current Year 2025/26",null,null,3,6,null,null,null,null,null,null,"Municipal Systems Improvement","Sport and Recreation","Regional Bulk Infrastructure","Housing and Local Government "]
[{"$f":"'Template names'!C6","v":"Year in which budget is being prepared"},"2006/07","2007/08","2008/09",{"$f":"E1-1&\"/\"&RIGHT(E1,2)","v":"2009/10"},"2010/11","2011/12","2012/13","2013/14","2014/15","2015/16","2017/18","2018/19","2019/20","2020/21","2021/22","2022/23","2023/24","2024/25","2025/26",null,null,4,"6-10",null,null,null,null,null,null,"Water Services Operating Subsidy ",null,"Rural Households Infrastructure ","Other Departments"]
[{"$f":"'Template names'!C7","v":"MTREF name"},"2007/08 Medium Term Revenue & Expenditure Framework","2008/09 Medium Term Revenue & Expenditure Framework","2009/10 Medium Term Revenue & Expenditure Framework",{"$f":"E1&\"/\"&RIGHT(E1,2)+1&\" Medium Term Revenue & Expenditure Framework\"","v":"2010/11 Medium Term Revenue & Expenditure Framework"},"2011/12 Medium Term Revenue & Expenditure Framework","2012/13 Medium Term Revenue & Expenditure Framework","2013/14 Medium Term Revenue & Expenditure Framework","2014/15 Medium Term Revenue & Expenditure Framework","2015/16 Medium Term Revenue & Expenditure Framework","2016/17 Medium Term Revenue & Expenditure Framework","2018/19 Medium Term Revenue & Expenditure Framework","2019/20 Medium Term Revenue & Expenditure Framework","2020/21 Medium Term Revenue & Expenditure Framework","2021/22 Medium Term Revenue & Expenditure Framework","2022/23 Medium Term Revenue & Expenditure Framework","2023/24 Medium Term Revenue & Expenditure Framework","2024/25 Medium Term Revenue & Expenditure Framework","2025/26 Medium Term Revenue & Expenditure Framework","2026/27 Medium Term Revenue & Expenditure Framework",null,null,5,">10",null,null,null,null,null,null,"Energy Efficiency  and Demand Management",null,"Neighbourhood Development Partnership","Public Works, Roads, Transport "]
[{"$f":"'Template names'!C15","v":"1st year of MTREF"},"Budget Year 2007/08","Budget Year 2008/09","Budget Year 2009/10",{"$f":"\"Budget Year \"&E1&\"/\"&RIGHT(E1,2)+1","v":"Budget Year 2010/11"},"Budget Year 2011/12","Budget Year 2012/13","Budget Year 2013/14","Budget Year 2014/15","Budget Year 2015/16","Budget Year 2016/17","Budget Year 2018/19","Budget Year 2019/20","Budget Year 2020/21","Budget Year 2021/22","Budget Year 2022/23","Budget Year 2023/24","Budget Year 2024/25","Budget Year 2025/26","Budget Year 2026/27",null,null,">5",null,null,null,null,null,null,null,"Integrated National Electrification Programme",null,"2010 FIFA World Cup Stadiums Development","Sport and Recreation"]
[{"$f":"'Template names'!C16","v":"2nd year of MTREF"},"Budget Year +1 2008/09","Budget Year +1 2009/10","Budget Year +1 2010/11",{"$f":"\"Budget Year +1 \"&E1+1&\"/\"&RIGHT(E1,2)+2","v":"Budget Year +1 2011/12"},"Budget Year +1 2012/13","Budget Year +1 2013/14","Budget Year +1 2014/15","Budget Year +1 2015/16","Budget Year +1 2016/17","Budget Year +1 2017/18","Budget Year +1 2019/20","Budget Year +1 2020/21","Budget Year +1 2021/22","Budget Year +1 2022/23","Budget Year +1 2023/24","Budget Year +1 2024/25","Budget Year +1 2025/26","Budget Year +1 2026/27","Budget Year +1 2027/28",null,null,null,null,null,null,null,null,null,null,"Municipal Drought Relief "]
[{"$f":"'Template names'!C17","v":"3rd year of MTREF"},"Budget Year +2 2009/10","Budget Year +2 2010/11","Budget Year +2 2011/12",{"$f":"\"Budget Year +2 \"&E1+2&\"/\"&RIGHT(E1,2)+3","v":"Budget Year +2 2012/13"},"Budget Year +2 2013/14","Budget Year +2 2014/15","Budget Year +2 2015/16","Budget Year +2 2016/17","Budget Year +2 2017/18","Budget Year +2 2018/19","Budget Year +2 2020/21","Budget Year +2 2021/22","Budget Year +2 2022/23","Budget Year +2 2023/24","Budget Year +2 2024/25","Budget Year +2 2025/26","Budget Year +2 2026/27","Budget Year +2 2027/28","Budget Year +2 2028/29",null,null,null,null,null,null,null,null,null,null,"2010 FIFA World Cup Operating"]
[{"$f":"'Template names'!C18","v":"1st yr of long term forecast"},"Forecast 2010/11","Forecast 2011/12","Forecast 2012/13",{"$f":"\"Forecast \"&E1+3&\"/\"&RIGHT(E1,2)+4","v":"Forecast 2013/14"},"Forecast 2014/15","Forecast 2015/16","Forecast 2016/17","Forecast 2017/18","Forecast 2018/19","Forecast 2019/20","Forecast 2021/22","Forecast 2022/23","Forecast 2023/24","Forecast 2024/25","Forecast 2025/26","Forecast 2026/27","Forecast 2027/28","Forecast 2028/29","Forecast 2029/30",null,null,null,null,null,null,null,null,null,null,"Electricity Demand Side Management"]
[{"$f":"'Template names'!C19","v":"Next yr of long term forecast"},"Forecast 2011/12","Forecast 2012/13","Forecast 2013/14",{"$f":"\"Forecast \"&E1+4&\"/\"&RIGHT(E1,2)+5","v":"Forecast 2014/15"},"Forecast 2015/16","Forecast 2016/17","Forecast 2017/18","Forecast 2018/19","Forecast 2019/20","Forecast 2020/21","Forecast 2022/23","Forecast 2023/24","Forecast 2024/25","Forecast 2025/26","Forecast 2026/27","Forecast 2027/28","Forecast 2028/29","Forecast 2029/30","Forecast 2030/31",null,null,null,null,null,null,null,null,null,null,"EPWP Incentive"]
[{"$f":"'Template names'!C20","v":"Next yr of long term forecast"},"Forecast 2012/13","Forecast 2013/14","Forecast 2014/15",{"$f":"\"Forecast \"&E1+5&\"/\"&RIGHT(E1,2)+6","v":"Forecast 2015/16"},"Forecast 2016/17","Forecast 2017/18","Forecast 2018/19","Forecast 2019/20","Forecast 2020/21","Forecast 2021/22","Forecast 2023/24","Forecast 2024/25","Forecast 2025/26","Forecast 2026/27","Forecast 2027/28","Forecast 2028/29","Forecast 2029/30","Forecast 2030/31","Forecast 2031/32"]
[{"$f":"'Template names'!C21","v":"Next yr of long term forecast"},"Forecast 2013/14","Forecast 2014/15","Forecast 2015/16",{"$f":"\"Forecast \"&E1+6&\"/\"&RIGHT(E1,2)+7","v":"Forecast 2016/17"},"Forecast 2017/18","Forecast 2018/19","Forecast 2019/20","Forecast 2020/21","Forecast 2021/22","Forecast 2022/23","Forecast 2024/25","Forecast 2025/26","Forecast 2026/27","Forecast 2027/28","Forecast 2028/29","Forecast 2029/30","Forecast 2030/31","Forecast 2031/32","Forecast 2032/33",null,null,null,null,null,null,null,null,null,null,"Asset Class","Asset sub-class old","Asset sub-class","IUDF","MTSF"]
[{"$f":"'Template names'!C22","v":"Next yr of long term forecast"},"Forecast 2014/15","Forecast 2015/16","Forecast 2016/17",{"$f":"\"Forecast \"&E1+7&\"/\"&RIGHT(E1,2)+8","v":"Forecast 2017/18"},"Forecast 2018/19","Forecast 2019/20","Forecast 2020/21","Forecast 2021/22","Forecast 2022/23","Forecast 2023/24","Forecast 2025/26","Forecast 2026/27","Forecast 2027/28","Forecast 2028/29","Forecast 2029/30","Forecast 2030/31","Forecast 2031/32","Forecast 2032/33","Forecast 2033/34"]
[{"$f":"'Template names'!C23","v":"Next yr of long term forecast"},"Forecast 2015/16","Forecast 2016/17","Forecast 2017/18",{"$f":"\"Forecast \"&E1+8&\"/\"&RIGHT(E1,2)+9","v":"Forecast 2018/19"},"Forecast 2019/20","Forecast 2020/21","Forecast 2021/22","Forecast 2022/23","Forecast 2023/24","Forecast 2024/25","Forecast 2026/27","Forecast 2027/28","Forecast 2028/29","Forecast 2029/30","Forecast 2030/31","Forecast 2031/32","Forecast 2032/33","Forecast 2033/34","Forecast 2034/35",null,null,null,null,null,null,null,null,null,null,"Roads Infrastructure","Roads, Pavements & Bridges","Roads","Spatial integration","Quality basic education"]
[{"$f":"'Template names'!C24","v":"Next yr of long term forecast"},"Forecast 2016/17","Forecast 2017/18","Forecast 2018/19",{"$f":"\"Forecast \"&E1+9&\"/\"&RIGHT(E1,2)+10","v":"Forecast 2019/20"},"Forecast 2020/21","Forecast 2021/22","Forecast 2022/23","Forecast 2023/24","Forecast 2024/25","Forecast 2025/26","Forecast 2027/28","Forecast 2028/29","Forecast 2029/30","Forecast 2030/31","Forecast 2031/32","Forecast 2032/33","Forecast 2033/34","Forecast 2034/35","Forecast 2035/36",null,null,null,null,null,null,null,null,null,null,"Storm water Infrastructure","Storm water","Road Structures","Inclusion and access","A long and healthy life for all South Africans"]
[{"$f":"'Template names'!C25","v":"Next yr of long term forecast"},"Forecast 2017/18","Forecast 2018/19","Forecast 2019/20",{"$f":"\"Forecast \"&E1+10&\"/\"&RIGHT(E1,2)+11","v":"Forecast 2020/21"},"Forecast 2021/22","Forecast 2022/23","Forecast 2023/24","Forecast 2024/25","Forecast 2025/26","Forecast 2026/27","Forecast 2028/29","Forecast 2029/30","Forecast 2030/31","Forecast 2031/32","Forecast 2032/33","Forecast 2033/34","Forecast 2034/35","Forecast 2035/36","Forecast 2036/37",null,null,null,null,null,null,null,null,null,null,"Electrical Infrastructure","Generation","Road Furniture","Growth","All people in South Africa are and feel safe"]
[{"$f":"'Template names'!C26","v":"Next yr of long term forecast"},"Forecast 2018/19","Forecast 2019/20","Forecast 2020/21",{"$f":"\"Forecast \"&E1+11&\"/\"&RIGHT(E1,2)+12","v":"Forecast 2021/22"},"Forecast 2022/23","Forecast 2023/24","Forecast 2024/25","Forecast 2025/26","Forecast 2026/27","Forecast 2027/28","Forecast 2029/30","Forecast 2030/31","Forecast 2031/32","Forecast 2032/33","Forecast 2033/34","Forecast 2034/35","Forecast 2035/36","Forecast 2036/37","Forecast 2037/38",null,null,null,null,null,null,null,null,null,null,"Water Supply Infrastructure","Transmission & Reticulation","Capital Spares","Governance","Decent employment through inclusive growth"]
[{"$f":"'Template names'!C27","v":"Next yr of long term forecast"},"Forecast 2019/20","Forecast 2020/21","Forecast 2021/22",{"$f":"\"Forecast \"&E1+12&\"/\"&RIGHT(E1,2)+13","v":"Forecast 2022/23"},"Forecast 2023/24","Forecast 2024/25","Forecast 2025/26","Forecast 2026/27","Forecast 2027/28","Forecast 2028/29","Forecast 2030/31","Forecast 2031/32","Forecast 2032/33","Forecast 2033/34","Forecast 2034/35","Forecast 2035/36","Forecast 2036/37","Forecast 2037/38","Forecast 2038/39",null,null,null,null,null,null,null,null,null,null,"Sanitation Infrastructure","Street Lighting","Drainage Collection",null,"A skilled and capable workforce to support an inclusive growth path"]
[{"$f":"'Template names'!C28","v":"Next yr of long term forecast"},"Forecast 2020/21","Forecast 2021/22","Forecast 2022/23",{"$f":"\"Forecast \"&E1+13&\"/\"&RIGHT(E1,2)+14","v":"Forecast 2023/24"},"Forecast 2024/25","Forecast 2025/26","Forecast 2026/27","Forecast 2027/28","Forecast 2028/29","Forecast 2029/30","Forecast 2031/32","Forecast 2032/33","Forecast 2033/34","Forecast 2034/35","Forecast 2035/36","Forecast 2036/37","Forecast 2037/38","Forecast 2038/39","Forecast 2039/40",null,null,null,null,null,null,null,null,null,null,"Solid Waste Infrastructure","Dams & Reservoirs","Storm water Conveyance",null,"An efficient, competitive and responsive economic infrastructure network"]
[{"$f":"'Template names'!C29","v":"Next yr of long term forecast"},"Forecast 2021/22","Forecast 2022/23","Forecast 2023/24",{"$f":"\"Forecast \"&E1+14&\"/\"&RIGHT(E1,2)+15","v":"Forecast 2024/25"},"Forecast 2025/26","Forecast 2026/27","Forecast 2027/28","Forecast 2028/29","Forecast 2029/30","Forecast 2030/31","Forecast 2032/33","Forecast 2033/34","Forecast 2034/35","Forecast 2035/36","Forecast 2036/37","Forecast 2037/38","Forecast 2038/39","Forecast 2039/40","Forecast 2040/41",null,null,null,null,null,null,null,null,null,null,"Rail Infrastructure","Water purification","Attenuation",null,"Vibrant, equitable, sustainable rural communities contributing towards food security for all"]
["Adjustments Budget","Annual target 2007/08","Annual target 2008/09","Annual target 2009/10",{"$f":"\"Annual target \" & E1&\"/\"&RIGHT(E1,2)+1","v":"Annual target 2010/11"},"Annual target 2011/12","Annual target 2012/13","Annual target 2013/14","Annual target 2014/15","Annual target 2015/16","Annual target 2016/17","Annual target 2018/19","Annual target 2019/20","Annual target 2020/21","Annual target 2021/22","Annual target 2022/23","Annual target 2023/24","Annual target 2024/25","Annual target 2025/26","Annual target 2026/27",null,null,null,null,null,null,null,null,null,null,"Coastal Infrastructure","Reticulation","Power Plants",null,"Sustainable human settlements and improved quality of household life"]
[{"$f":"A23","v":"Adjustments Budget"},"Revised target 2007/08","Revised target 2008/09","Revised target 2009/10",{"$f":"\"Revised target \"& E1&\"/\"&RIGHT(E1,2)+1","v":"Revised target 2010/11"},"Revised target 2011/12","Revised target 2012/13","Revised target 2013/14","Revised target 2014/15","Revised target 2015/16","Revised target 2016/17","Revised target 2018/19","Revised target 2019/20","Revised target 2020/21","Revised target 2021/22","Revised target 2022/23","Revised target 2023/24","Revised target 2024/25","Revised target 2025/26","Revised target 2026/27",null,null,null,null,null,null,null,null,null,null,"Information and Communication Infrastructure","Sewerage purification","HV Substations",null,"Responsive, accountable, effective and efficient local government"]
["NOTE: This sheet should not be directly amended - select headings from sheet 'S'",null,null,null,null,null,null,null,null,null,null,null,null,null,null,null,null,null,null,null,null,null,null,null,null,null,null,null,null,null,"Community Facilities","Waste Management","HV Switching Station",null,"Protect and enhance our environmental assets and natural resources"]
[null,null,null,null,null,null,null,null,null,null,null,null,null,null,null,null,null,null,null,null,null,null,null,null,null,null,null,null,null,null,"Sport and Recreation Facilities","Transportation","HV Transmission Conductors",null,"Create a better South Africa and contribute to a better Africa and a better world"]
["Name link",45,null,null,null,null,null,null,null,null,null,null,null,null,null,null,null,null,null,null,null,null,null,null,null,null,null,null,null,null,"Heritage assets","Gas","MV Substations",null,"An efficient, effective and development-oriented public service"]
["Name of Muni",{"$f":"INDEX(B29:B307,B27,1)","v":"DC16 Xhariep"},null,null,null,null,null,null,null,null,null,null,null,null,null,null,null,null,null,null,null,null,null,null,null,null,null,null,null,null,"Revenue Generating","Parks & gardens","MV Switching Stations",null,"A comprehensive, responsive and sustainable social protection system"]
[null,"Choose name from list","Set name on 'Instructions' sheet",null,null,null,null,null,null,null,null,null,null,null,null,null,null,null,null,null,null,null,null,null,null,null,null,null,null,null,"Non-revenue Generating","Sportsfields & stadia","MV Networks",null,"A diverse, socially cohesive society with a common national identity"]
[null,"BUF Buffalo City","EC EASTERN CAPE",null,null,null,null,null,null,null,null,null,null,null,null,null,null,null,null,null,null,null,null,null,null,null,null,null,null,null,"Operational Buildings","Swimming pools","LV Networks"]
[null,"NMA Nelson Mandela Bay","EC EASTERN CAPE",null,null,null,null,null,null,null,null,null,null,null,null,null,null,null,null,null,null,null,null,null,null,null,null,null,null,null,"Housing","Community halls","Capital Spares"]
[null,"EC101 Dr Beyers Naude","EC EASTERN CAPE",null,null,null,null,null,null,null,null,null,null,null,null,null,null,null,null,null,null,null,null,null,null,null,null,null,null,null,"Biological or Cultivated Assets","Libraries","Dams and Weirs"]
[null,"EC102 Blue Crane Route","EC EASTERN CAPE",null,null,null,null,null,null,null,null,null,null,null,null,null,null,null,null,null,null,null,null,null,null,null,null,null,null,null,"Servitudes","Recreational facilities","Boreholes"]
[null,"EC104 Makana","EC EASTERN CAPE",null,null,null,null,null,null,null,null,null,null,null,null,null,null,null,null,null,null,null,null,null,null,null,null,null,null,null,"Licences and Rights","Fire, safety & emergency","Reservoirs"]
[null,"EC105 Ndlambe","EC EASTERN CAPE",null,null,null,null,null,null,null,null,null,null,null,null,null,null,null,null,null,null,null,null,null,null,null,null,null,null,null,"Computer Equipment","Security and policing","Pump Stations"]
[null,"EC106 Sundays River Valley","EC EASTERN CAPE",null,null,null,null,null,null,null,null,null,null,null,null,null,null,null,null,null,null,null,null,null,null,null,null,null,null,null,"Furniture and Office Equipment","Buses","Water Treatment Works"]
[null,"EC108 Kouga","EC EASTERN CAPE",null,null,null,null,null,null,null,null,null,null,null,null,null,null,null,null,null,null,null,null,null,null,null,null,null,null,null,"Machinery and Equipment","Clinics","Bulk Mains"]
[null,"EC109 Kou-Kamma","EC EASTERN CAPE",null,null,null,null,null,null,null,null,null,null,null,null,null,null,null,null,null,null,null,null,null,null,null,null,null,null,null,"Transport Assets","Museums & Art Galleries","Distribution"]
[null,"DC10 Sarah Baartman","EC EASTERN CAPE",null,null,null,null,null,null,null,null,null,null,null,null,null,null,null,null,null,null,null,null,null,null,null,null,null,null,null,"Land","Cemeteries","Distribution Points"]
[null,"EC121 Mbhashe","EC EASTERN CAPE",null,null,null,null,null,null,null,null,null,null,null,null,null,null,null,null,null,null,null,null,null,null,null,null,null,null,null,"Zoo's, Marine and Non-biological Animals","Social rental housing","PRV Stations"]
[null,"EC122 Mnquma","EC EASTERN CAPE",null,null,null,null,null,null,null,null,null,null,null,null,null,null,null,null,null,null,null,null,null,null,null,null,null,null,null,null,"Buildings","Capital Spares"]
[null,"EC123 Great Kei","EC EASTERN CAPE",null,null,null,null,null,null,null,null,null,null,null,null,null,null,null,null,null,null,null,null,null,null,null,null,null,null,null,null,"Housing development","Pump Station"]
[null,"EC124 Amahlathi","EC EASTERN CAPE",null,null,null,null,null,null,null,null,null,null,null,null,null,null,null,null,null,null,null,null,null,null,null,null,null,null,null,null,"General vehicles","Reticulation"]
[null,"EC126 Ngqushwa","EC EASTERN CAPE",null,null,null,null,null,null,null,null,null,null,null,null,null,null,null,null,null,null,null,null,null,null,null,null,null,null,null,null,"Specialised vehicles - Refuse","Waste Water Treatment Works"]
[null,"EC129 Raymond Mhlaba","EC EASTERN CAPE",null,null,null,null,null,null,null,null,null,null,null,null,null,null,null,null,null,null,null,null,null,null,null,null,null,null,null,null,"Specialised vehicles - Fire","Outfall Sewers"]
[null,"DC12 Amathole","EC EASTERN CAPE",null,null,null,null,null,null,null,null,null,null,null,null,null,null,null,null,null,null,null,null,null,null,null,null,null,null,null,null,"Specialised vehicles - Conservancy","Toilet Facilities"]
[null,"EC131 Inxuba Yethemba","EC EASTERN CAPE",null,null,null,null,null,null,null,null,null,null,null,null,null,null,null,null,null,null,null,null,null,null,null,null,null,null,null,null,"Specialised vehicles - Ambulances","Capital Spares"]
[null,"EC135 Intsika Yethu","EC EASTERN CAPE",null,null,null,null,null,null,null,null,null,null,null,null,null,null,null,null,null,null,null,null,null,null,null,null,null,null,null,null,"Plant & equipment","Landfill Sites"]
[null,"EC136 Emalahleni (Ec)","EC EASTERN CAPE",null,null,null,null,null,null,null,null,null,null,null,null,null,null,null,null,null,null,null,null,null,null,null,null,null,null,null,null,"Computers - hardware/equipment","Waste Transfer Stations"]
[null,"EC137 Engcobo","EC EASTERN CAPE",null,null,null,null,null,null,null,null,null,null,null,null,null,null,null,null,null,null,null,null,null,null,null,null,null,null,null,null,"Furniture and other office equipment","Waste Processing Facilities"]
[null,"EC138 Sakhisizwe","EC EASTERN CAPE",null,null,null,null,null,null,null,null,null,null,null,null,null,null,null,null,null,null,null,null,null,null,null,null,null,null,null,null,"Abattoirs","Waste Drop-off Points"]
[null,"EC139 Enoch Mgijima","EC EASTERN CAPE",null,null,null,null,null,null,null,null,null,null,null,null,null,null,null,null,null,null,null,null,null,null,null,null,null,null,null,null,"Markets","Waste Separation Facilities"]
[null,"DC13 Chris Hani","EC EASTERN CAPE",null,null,null,null,null,null,null,null,null,null,null,null,null,null,null,null,null,null,null,null,null,null,null,null,null,null,null,null,"Civic Land and Buildings","Electricity Generation Facilities"]
[null,"EC141 Elundini","EC EASTERN CAPE",null,null,null,null,null,null,null,null,null,null,null,null,null,null,null,null,null,null,null,null,null,null,null,null,null,null,null,null,"Other Buildings","Capital Spares"]
[null,"EC142 Senqu","EC EASTERN CAPE",null,null,null,null,null,null,null,null,null,null,null,null,null,null,null,null,null,null,null,null,null,null,null,null,null,null,null,null,"Other Land","Rail Lines"]
[null,"EC145 Walter Sisulu","EC EASTERN CAPE",null,null,null,null,null,null,null,null,null,null,null,null,null,null,null,null,null,null,null,null,null,null,null,null,null,null,null,null,"Surplus Assets - (Investment or Inventory)","Rail Structures"]
[null,"DC14 Joe Gqabi","EC EASTERN CAPE",null,null,null,null,null,null,null,null,null,null,null,null,null,null,null,null,null,null,null,null,null,null,null,null,null,null,null,null,"Computers - software & programming","Rail Furniture"]
[null,"EC153 Ngquza Hills","EC EASTERN CAPE",null,null,null,null,null,null,null,null,null,null,null,null,null,null,null,null,null,null,null,null,null,null,null,null,null,null,null,null,"Other","Drainage Collection"]
[null,"EC154 Port St Johns","EC EASTERN CAPE",null,null,null,null,null,null,null,null,null,null,null,null,null,null,null,null,null,null,null,null,null,null,null,null,null,null,null,null,null,"Storm water Conveyance"]
[null,"EC155 Nyandeni","EC EASTERN CAPE",null,null,null,null,null,null,null,null,null,null,null,null,null,null,null,null,null,null,null,null,null,null,null,null,null,null,null,"SA16 - Investments",null,"Attenuation"]
[null,"EC156 Mhlontlo","EC EASTERN CAPE",null,null,null,null,null,null,null,null,null,null,null,null,null,null,null,null,null,null,null,null,null,null,null,null,null,null,null,"Security","Interest rate","MV Substations"]
[null,"EC157 King Sabata Dalindyebo","EC EASTERN CAPE",null,null,null,null,null,null,null,null,null,null,null,null,null,null,null,null,null,null,null,null,null,null,null,null,null,null,null,"Yes","Fixed","LV Networks"]
[null,"DC15 O .R. Tambo","EC EASTERN CAPE",null,null,null,null,null,null,null,null,null,null,null,null,null,null,null,null,null,null,null,null,null,null,null,null,null,null,null,"No","Variable","Capital Spares"]
[null,"EC441 Matatiele","EC EASTERN CAPE",null,null,null,null,null,null,null,null,null,null,null,null,null,null,null,null,null,null,null,null,null,null,null,null,null,null,null,null,null,"Sand Pumps"]
[null,"EC442 Umzimvubu","EC EASTERN CAPE",null,null,null,null,null,null,null,null,null,null,null,null,null,null,null,null,null,null,null,null,null,null,null,null,null,null,null,null,null,"Piers"]
[null,"EC443 Mbizana","EC EASTERN CAPE",null,null,null,null,null,null,null,null,null,null,null,null,null,null,null,null,null,null,null,null,null,null,null,null,null,null,null,"SA36, SA37 - Capital projects",null,"Revetments"]
[null,"EC444 Ntabankulu","EC EASTERN CAPE",null,null,null,null,null,null,null,null,null,null,null,null,null,null,null,null,null,null,null,null,null,null,null,null,null,null,null,"Yes",null,"Promenades"]
[null,"DC44 Alfred Nzo","EC EASTERN CAPE",null,null,null,null,null,null,null,null,null,null,null,null,null,null,null,null,null,null,null,null,null,null,null,null,null,null,null,"No",null,"Capital Spares"]
[null,"MAN Mangaung","FS FREE STATE",null,null,null,null,null,null,null,null,null,null,null,null,null,null,null,null,null,null,null,null,null,null,null,null,null,null,null,null,null,"Data Centres"]
[null,"FS161 Letsemeng","FS FREE STATE",null,null,null,null,null,null,null,null,null,null,null,null,null,null,null,null,null,null,null,null,null,null,null,null,null,null,null,null,null,"Core Layers"]
[null,"FS162 Kopanong","FS FREE STATE",null,null,null,null,null,null,null,null,null,null,null,null,null,null,null,null,null,null,null,null,null,null,null,null,null,null,null,null,null,"Distribution Layers"]
[null,"FS163 Mohokare","FS FREE STATE",null,null,null,null,null,null,null,null,null,null,null,null,null,null,null,null,null,null,null,null,null,null,null,null,null,null,null,null,null,"Capital Spares"]
[null,"DC16 Xhariep","FS FREE STATE",null,null,null,null,null,null,null,null,null,null,null,null,null,null,null,null,null,null,null,null,null,null,null,null,null,null,null,null,null,"Halls"]
[null,"FS181 Masilonyana","FS FREE STATE",null,null,null,null,null,null,null,null,null,null,null,null,null,null,null,null,null,null,null,null,null,null,null,null,null,null,null,null,null,"Centres"]
[null,"FS182 Tokologo","FS FREE STATE",null,null,null,null,null,null,null,null,null,null,null,null,null,null,null,null,null,null,null,null,null,null,null,null,null,null,null,null,null,"Crèches"]
[null,"FS183 Tswelopele","FS FREE STATE",null,null,null,null,null,null,null,null,null,null,null,null,null,null,null,null,null,null,null,null,null,null,null,null,null,null,null,null,null,"Clinics/Care Centres"]
[null,"FS184 Matjhabeng","FS FREE STATE",null,null,null,null,null,null,null,null,null,null,null,null,null,null,null,null,null,null,null,null,null,null,null,null,null,null,null,null,null,"Fire/Ambulance Stations"]
[null,"FS185 Nala","FS FREE STATE",null,null,null,null,null,null,null,null,null,null,null,null,null,null,null,null,null,null,null,null,null,null,null,null,null,null,null,null,null,"Testing Stations"]
[null,"DC18 Lejweleputswa","FS FREE STATE",null,null,null,null,null,null,null,null,null,null,null,null,null,null,null,null,null,null,null,null,null,null,null,null,null,null,null,null,null,"Museums"]
[null,"FS191 Setsoto","FS FREE STATE",null,null,null,null,null,null,null,null,null,null,null,null,null,null,null,null,null,null,null,null,null,null,null,null,null,null,null,null,null,"Galleries"]
[null,"FS192 Dihlabeng","FS FREE STATE",null,null,null,null,null,null,null,null,null,null,null,null,null,null,null,null,null,null,null,null,null,null,null,null,null,null,null,null,null,"Theatres"]
[null,"FS193 Nketoana","FS FREE STATE",null,null,null,null,null,null,null,null,null,null,null,null,null,null,null,null,null,null,null,null,null,null,null,null,null,null,null,null,null,"Libraries"]
[null,"FS194 Maluti-a-Phofung","FS FREE STATE",null,null,null,null,null,null,null,null,null,null,null,null,null,null,null,null,null,null,null,null,null,null,null,null,null,null,null,null,null,"Cemeteries/Crematoria"]
[null,"FS195 Phumelela","FS FREE STATE",null,null,null,null,null,null,null,null,null,null,null,null,null,null,null,null,null,null,null,null,null,null,null,null,null,null,null,null,null,"Police"]
[null,"FS196 Mantsopa","FS FREE STATE",null,null,null,null,null,null,null,null,null,null,null,null,null,null,null,null,null,null,null,null,null,null,null,null,null,null,null,null,null,"Purls"]
[null,"DC19 Thabo Mofutsanyana","FS FREE STATE",null,null,null,null,null,null,null,null,null,null,null,null,null,null,null,null,null,null,null,null,null,null,null,null,null,null,null,null,null,"Public Open Space"]
[null,"FS201 Moqhaka","FS FREE STATE",null,null,null,null,null,null,null,null,null,null,null,null,null,null,null,null,null,null,null,null,null,null,null,null,null,null,null,null,null,"Nature Reserves"]
[null,"FS203 Ngwathe","FS FREE STATE",null,null,null,null,null,null,null,null,null,null,null,null,null,null,null,null,null,null,null,null,null,null,null,null,null,null,null,null,null,"Public Ablution Facilities"]
[null,"FS204 Metsimaholo","FS FREE STATE",null,null,null,null,null,null,null,null,null,null,null,null,null,null,null,null,null,null,null,null,null,null,null,null,null,null,null,null,null,"Markets"]
[null,"FS205 Mafube","FS FREE STATE",null,null,null,null,null,null,null,null,null,null,null,null,null,null,null,null,null,null,null,null,null,null,null,null,null,null,null,null,null,"Stalls"]
[null,"DC20 Fezile Dabi","FS FREE STATE",null,null,null,null,null,null,null,null,null,null,null,null,null,null,null,null,null,null,null,null,null,null,null,null,null,null,null,null,null,"Abattoirs"]
[null,"EKU City of Ekurhuleni","GT GAUTENG",null,null,null,null,null,null,null,null,null,null,null,null,null,null,null,null,null,null,null,null,null,null,null,null,null,null,null,null,null,"Airports"]
[null,"JHB City Of Johannesburg","GT GAUTENG",null,null,null,null,null,null,null,null,null,null,null,null,null,null,null,null,null,null,null,null,null,null,null,null,null,null,null,null,null,"Taxi Ranks/Bus Terminals"]
[null,"TSH City Of Tshwane","GT GAUTENG",null,null,null,null,null,null,null,null,null,null,null,null,null,null,null,null,null,null,null,null,null,null,null,null,null,null,null,null,null,"Capital Spares"]
[null,"GT421 Emfuleni","GT GAUTENG",null,null,null,null,null,null,null,null,null,null,null,null,null,null,null,null,null,null,null,null,null,null,null,null,null,null,null,null,null,"Indoor Facilities"]
[null,"GT422 Midvaal","GT GAUTENG",null,null,null,null,null,null,null,null,null,null,null,null,null,null,null,null,null,null,null,null,null,null,null,null,null,null,null,null,null,"Outdoor Facilities"]
[null,"GT423 Lesedi","GT GAUTENG",null,null,null,null,null,null,null,null,null,null,null,null,null,null,null,null,null,null,null,null,null,null,null,null,null,null,null,null,null,"Capital Spares"]
[null,"DC42 Sedibeng","GT GAUTENG",null,null,null,null,null,null,null,null,null,null,null,null,null,null,null,null,null,null,null,null,null,null,null,null,null,null,null,null,null,"Monuments"]
[null,"GT481 Mogale City","GT GAUTENG",null,null,null,null,null,null,null,null,null,null,null,null,null,null,null,null,null,null,null,null,null,null,null,null,null,null,null,null,null,"Historic Buildings"]
[null,"GT484 Merafong City","GT GAUTENG",null,null,null,null,null,null,null,null,null,null,null,null,null,null,null,null,null,null,null,null,null,null,null,null,null,null,null,null,null,"Works of Art"]
[null,"GT485 Rand West City","GT GAUTENG",null,null,null,null,null,null,null,null,null,null,null,null,null,null,null,null,null,null,null,null,null,null,null,null,null,null,null,null,null,"Conservation Areas"]
[null,"DC48 West Rand","GT GAUTENG",null,null,null,null,null,null,null,null,null,null,null,null,null,null,null,null,null,null,null,null,null,null,null,null,null,null,null,null,null,"Other Heritage"]
[null,"ETH eThekwini","KZN KWAZULU-NATAL",null,null,null,null,null,null,null,null,null,null,null,null,null,null,null,null,null,null,null,null,null,null,null,null,null,null,null,null,null,"Improved Property"]
[null,"KZN212 Umdoni","KZN KWAZULU-NATAL",null,null,null,null,null,null,null,null,null,null,null,null,null,null,null,null,null,null,null,null,null,null,null,null,null,null,null,null,null,"Unimproved Property"]
[null,"KZN213 Umzumbe","KZN KWAZULU-NATAL",null,null,null,null,null,null,null,null,null,null,null,null,null,null,null,null,null,null,null,null,null,null,null,null,null,null,null,null,null,"Municipal Offices"]
[null,"KZN214 uMuziwabantu","KZN KWAZULU-NATAL",null,null,null,null,null,null,null,null,null,null,null,null,null,null,null,null,null,null,null,null,null,null,null,null,null,null,null,null,null,"Pay/Enquiry Points"]
[null,"KZN216 Ray Nkonyeni","KZN KWAZULU-NATAL",null,null,null,null,null,null,null,null,null,null,null,null,null,null,null,null,null,null,null,null,null,null,null,null,null,null,null,null,null,"Building Plan Offices"]
[null,"DC21 Ugu","KZN KWAZULU-NATAL",null,null,null,null,null,null,null,null,null,null,null,null,null,null,null,null,null,null,null,null,null,null,null,null,null,null,null,null,null,"Workshops"]
[null,"KZN221 uMshwathi","KZN KWAZULU-NATAL",null,null,null,null,null,null,null,null,null,null,null,null,null,null,null,null,null,null,null,null,null,null,null,null,null,null,null,null,null,"Yards"]
[null,"KZN222 uMngeni","KZN KWAZULU-NATAL",null,null,null,null,null,null,null,null,null,null,null,null,null,null,null,null,null,null,null,null,null,null,null,null,null,null,null,null,null,"Stores"]
[null,"KZN223 Mpofana","KZN KWAZULU-NATAL",null,null,null,null,null,null,null,null,null,null,null,null,null,null,null,null,null,null,null,null,null,null,null,null,null,null,null,null,null,"Laboratories"]
[null,"KZN224 Impendle","KZN KWAZULU-NATAL",null,null,null,null,null,null,null,null,null,null,null,null,null,null,null,null,null,null,null,null,null,null,null,null,null,null,null,null,null,"Training Centres"]
[null,"KZN225 Msunduzi","KZN KWAZULU-NATAL",null,null,null,null,null,null,null,null,null,null,null,null,null,null,null,null,null,null,null,null,null,null,null,null,null,null,null,null,null,"Manufacturing Plant"]
[null,"KZN226 Mkhambathini","KZN KWAZULU-NATAL",null,null,null,null,null,null,null,null,null,null,null,null,null,null,null,null,null,null,null,null,null,null,null,null,null,null,null,null,null,"Depots"]
[null,"KZN227 Richmond","KZN KWAZULU-NATAL",null,null,null,null,null,null,null,null,null,null,null,null,null,null,null,null,null,null,null,null,null,null,null,null,null,null,null,null,null,"Capital Spares"]
[null,"DC22 uMgungundlovu","KZN KWAZULU-NATAL",null,null,null,null,null,null,null,null,null,null,null,null,null,null,null,null,null,null,null,null,null,null,null,null,null,null,null,null,null,"Staff Housing"]
[null,"KZN235 Okhahlamba","KZN KWAZULU-NATAL",null,null,null,null,null,null,null,null,null,null,null,null,null,null,null,null,null,null,null,null,null,null,null,null,null,null,null,null,null,"Social Housing"]
[null,"KZN237 Inkosi Langalibalele","KZN KWAZULU-NATAL",null,null,null,null,null,null,null,null,null,null,null,null,null,null,null,null,null,null,null,null,null,null,null,null,null,null,null,null,null,"Capital Spares"]
[null,"KZN238 Alfred Duma","KZN KWAZULU-NATAL",null,null,null,null,null,null,null,null,null,null,null,null,null,null,null,null,null,null,null,null,null,null,null,null,null,null,null,null,null,"Water Rights"]
[null,"DC23 Uthukela","KZN KWAZULU-NATAL",null,null,null,null,null,null,null,null,null,null,null,null,null,null,null,null,null,null,null,null,null,null,null,null,null,null,null,null,null,"Effluent Licenses"]
[null,"KZN241 Endumeni","KZN KWAZULU-NATAL",null,null,null,null,null,null,null,null,null,null,null,null,null,null,null,null,null,null,null,null,null,null,null,null,null,null,null,null,null,"Solid Waste Licenses"]
[null,"KZN242 Nquthu","KZN KWAZULU-NATAL",null,null,null,null,null,null,null,null,null,null,null,null,null,null,null,null,null,null,null,null,null,null,null,null,null,null,null,null,null,"Computer Software and Applications"]
[null,"KZN244 Msinga","KZN KWAZULU-NATAL",null,null,null,null,null,null,null,null,null,null,null,null,null,null,null,null,null,null,null,null,null,null,null,null,null,null,null,null,null,"Load Settlement Software Applications"]
[null,"KZN245 Umvoti","KZN KWAZULU-NATAL",null,null,null,null,null,null,null,null,null,null,null,null,null,null,null,null,null,null,null,null,null,null,null,null,null,null,null,null,null,"Unspecified"]
[null,"DC24 Umzinyathi","KZN KWAZULU-NATAL"]
[null,"KZN252 Newcastle","KZN KWAZULU-NATAL"]
[null,"KZN253 Emadlangeni","KZN KWAZULU-NATAL"]
[null,"KZN254 Dannhauser","KZN KWAZULU-NATAL"]
[null,"DC25 Amajuba","KZN KWAZULU-NATAL"]
[null,"KZN261 eDumbe","KZN KWAZULU-NATAL"]
[null,"KZN262 uPhongolo","KZN KWAZULU-NATAL"]
[null,"KZN263 Abaqulusi","KZN KWAZULU-NATAL"]
[null,"KZN265 Nongoma","KZN KWAZULU-NATAL"]
[null,"KZN266 Ulundi","KZN KWAZULU-NATAL"]
[null,"DC26 Zululand","KZN KWAZULU-NATAL"]
[null,"KZN271 Umhlabuyalingana","KZN KWAZULU-NATAL"]
[null,"KZN272 Jozini","KZN KWAZULU-NATAL"]
[null,"KZN275 Mtubatuba","KZN KWAZULU-NATAL"]
[null,"KZN276 Hlabisa Big Five","KZN KWAZULU-NATAL"]
[null,"DC27 Umkhanyakude","KZN KWAZULU-NATAL"]
[null,"KZN281 Mfolozi","KZN KWAZULU-NATAL"]
[null,"KZN282 uMhlathuze","KZN KWAZULU-NATAL"]
[null,"KZN284 uMlalazi","KZN KWAZULU-NATAL"]
[null,"KZN285 Mthonjaneni","KZN KWAZULU-NATAL"]
[null,"KZN286 Nkandla","KZN KWAZULU-NATAL"]
[null,"DC28 King Cetshwayo","KZN KWAZULU-NATAL"]
[null,"KZN291 Mandeni","KZN KWAZULU-NATAL"]
[null,"KZN292 KwaDukuza","KZN KWAZULU-NATAL"]
[null,"KZN293 Ndwedwe","KZN KWAZULU-NATAL"]
[null,"KZN294 Maphumulo","KZN KWAZULU-NATAL"]
[null,"DC29 iLembe","KZN KWAZULU-NATAL"]
[null,"KZN433 Greater Kokstad","KZN KWAZULU-NATAL"]
[null,"KZN434 Ubuhlebezwe","KZN KWAZULU-NATAL"]
[null,"KZN435 Umzimkhulu","KZN KWAZULU-NATAL"]
[null,"KZN436 Dr Nkosazana Dlamini Zuma","KZN KWAZULU-NATAL"]
[null,"DC43 Harry Gwala","KZN KWAZULU-NATAL"]
[null,"LIM331 Greater Giyani","LIM LIMPOPO"]
[null,"LIM332 Greater Letaba","LIM LIMPOPO"]
[null,"LIM333 Greater Tzaneen","LIM LIMPOPO"]
[null,"LIM334 Ba-Phalaborwa","LIM LIMPOPO"]
[null,"LIM335 Maruleng","LIM LIMPOPO"]
[null,"DC33 Mopani","LIM LIMPOPO"]
[null,"LIM341 Musina","LIM LIMPOPO"]
[null,"LIM343 Thulamela","LIM LIMPOPO"]
[null,"LIM344 Makhado","LIM LIMPOPO"]
[null,"LIM345 Collins Chabane","LIM LIMPOPO"]
[null,"DC34 Vhembe","LIM LIMPOPO"]
[null,"LIM351 Blouberg","LIM LIMPOPO"]
[null,"LIM353 Molemole","LIM LIMPOPO"]
[null,"LIM354 Polokwane","LIM LIMPOPO"]
[null,"LIM355 Lepelle-Nkumpi","LIM LIMPOPO"]
[null,"DC35 Capricorn","LIM LIMPOPO"]
[null,"LIM361 Thabazimbi","LIM LIMPOPO"]
[null,"LIM362 Lephalale","LIM LIMPOPO"]
[null,"LIM366 Bela Bela","LIM LIMPOPO"]
[null,"LIM367 Mogalakwena","LIM LIMPOPO"]
[null,"LIM368 Modimolle-Mookgopong","LIM LIMPOPO"]
[null,"DC36 Waterberg","LIM LIMPOPO"]
[null,"LIM471 Ephraim Mogale","LIM LIMPOPO"]
[null,"LIM472 Elias Motsoaledi","LIM LIMPOPO"]
[null,"LIM473 Makhuduthamaga","LIM LIMPOPO"]
[null,"LIM476 Tubatse Fetakgomo","LIM LIMPOPO"]
[null,"DC47 Sekhukhune","LIM LIMPOPO"]
[null,"MP301 Albert Luthuli","MP MPUMALANGA"]
[null,"MP302 Msukaligwa","MP MPUMALANGA"]
[null,"MP303 Mkhondo","MP MPUMALANGA"]
[null,"MP304 Pixley Ka Seme (MP)","MP MPUMALANGA"]
[null,"MP305 Lekwa","MP MPUMALANGA"]
[null,"MP306 Dipaleseng","MP MPUMALANGA"]
[null,"MP307 Govan Mbeki","MP MPUMALANGA"]
[null,"DC30 Gert Sibande","MP MPUMALANGA"]
[null,"MP311 Victor Khanye","MP MPUMALANGA"]
[null,"MP312 Emalahleni (Mp)","MP MPUMALANGA"]
[null,"MP313 Steve Tshwete","MP MPUMALANGA"]
[null,"MP314 Emakhazeni","MP MPUMALANGA"]
[null,"MP315 Thembisile Hani","MP MPUMALANGA"]
[null,"MP316 Dr J.S. Moroka","MP MPUMALANGA"]
[null,"DC31 Nkangala","MP MPUMALANGA"]
[null,"MP321 Thaba Chweu","MP MPUMALANGA"]
[null,"MP324 Nkomazi","MP MPUMALANGA"]
[null,"MP325 Bushbuckridge","MP MPUMALANGA"]
[null,"MP326 City of Mbombela","MP MPUMALANGA"]
[null,"DC32 Ehlanzeni","MP MPUMALANGA"]
[null,"NC451 Joe Morolong","NC NORTHERN CAPE"]
[null,"NC452 Ga-Segonyana","NC NORTHERN CAPE"]
[null,"NC453 Gamagara","NC NORTHERN CAPE"]
[null,"DC45 John Taolo Gaetsewe","NC NORTHERN CAPE"]
[null,"NC061 Richtersveld","NC NORTHERN CAPE"]
[null,"NC062 Nama Khoi","NC NORTHERN CAPE"]
[null,"NC064 Kamiesberg","NC NORTHERN CAPE"]
[null,"NC065 Hantam","NC NORTHERN CAPE"]
[null,"NC066 Karoo Hoogland","NC NORTHERN CAPE"]
[null,"NC067 Khai-Ma","NC NORTHERN CAPE"]
[null,"DC6 Namakwa","NC NORTHERN CAPE"]
[null,"NC071 Ubuntu","NC NORTHERN CAPE"]
[null,"NC072 Umsobomvu","NC NORTHERN CAPE"]
[null,"NC073 Emthanjeni","NC NORTHERN CAPE"]
[null,"NC074 Kareeberg","NC NORTHERN CAPE"]
[null,"NC075 Renosterberg","NC NORTHERN CAPE"]
[null,"NC076 Thembelihle","NC NORTHERN CAPE"]
[null,"NC077 Siyathemba","NC NORTHERN CAPE"]
[null,"NC078 Siyancuma","NC NORTHERN CAPE"]
[null,"DC7 Pixley Ka Seme (Nc)","NC NORTHERN CAPE"]
[null,"NC082 !Kai! Garib","NC NORTHERN CAPE"]
[null,"NC084 !Kheis","NC NORTHERN CAPE"]
[null,"NC085 Tsantsabane","NC NORTHERN CAPE"]
[null,"NC086 Kgatelopele","NC NORTHERN CAPE"]
[null,"NC087 Dawid Kruiper","NC NORTHERN CAPE"]
[null,"DC8 Z F Mgcawu","NC NORTHERN CAPE"]
[null,"NC091 Sol Plaatje","NC NORTHERN CAPE"]
[null,"NC092 Dikgatlong","NC NORTHERN CAPE"]
[null,"NC093 Magareng","NC NORTHERN CAPE"]
[null,"NC094 Phokwane","NC NORTHERN CAPE"]
[null,"DC9 Frances Baard","NC NORTHERN CAPE"]
[null,"NW371 Moretele","NW NORTH WEST"]
[null,"NW372 Madibeng","NW NORTH WEST"]
[null,"NW373 Rustenburg","NW NORTH WEST"]
[null,"NW374 Kgetlengrivier","NW NORTH WEST"]
[null,"NW375 Moses Kotane","NW NORTH WEST"]
[null,"DC37 Bojanala Platinum","NW NORTH WEST"]
[null,"NW381 Ratlou","NW NORTH WEST"]
[null,"NW382 Tswaing","NW NORTH WEST"]
[null,"NW383 Mafikeng","NW NORTH WEST"]
[null,"NW384 Ditsobotla","NW NORTH WEST"]
[null,"NW385 Ramotshere Moiloa","NW NORTH WEST"]
[null,"DC38 Ngaka Modiri Molema","NW NORTH WEST"]
[null,"NW392 Naledi (Nw)","NW NORTH WEST"]
[null,"NW393 Mamusa","NW NORTH WEST"]
[null,"NW394 Greater Taung","NW NORTH WEST"]
[null,"NW396 Lekwa-Teemane","NW NORTH WEST"]
[null,"NW397 Kagisano-Molopo","NW NORTH WEST"]
[null,"DC39 Dr Ruth Segomotsi Mompati","NW NORTH WEST"]
[null,"NW403 City Of Matlosana","NW NORTH WEST"]
[null,"NW404 Maquassi Hills","NW NORTH WEST"]
[null,"NW405 J B Marks","NW NORTH WEST"]
[null,"DC40 Dr Kenneth Kaunda","NW NORTH WEST"]
[null,"CPT Cape Town","WC WESTERN CAPE"]
[null,"WC011 Matzikama","WC WESTERN CAPE"]
[null,"WC012 Cederberg","WC WESTERN CAPE"]
[null,"WC013 Bergrivier","WC WESTERN CAPE"]
[null,"WC014 Saldanha Bay","WC WESTERN CAPE"]
[null,"WC015 Swartland","WC WESTERN CAPE"]
[null,"DC1 West Coast","WC WESTERN CAPE"]
[null,"WC022 Witzenberg","WC WESTERN CAPE"]
[null,"WC023 Drakenstein","WC WESTERN CAPE"]
[null,"WC024 Stellenbosch","WC WESTERN CAPE"]
[null,"WC025 Breede Valley","WC WESTERN CAPE"]
[null,"WC026 Langeberg","WC WESTERN CAPE"]
[null,"DC2 Cape Winelands DM","WC WESTERN CAPE"]
[null,"WC031 Theewaterskloof","WC WESTERN CAPE"]
[null,"WC032 Overstrand","WC WESTERN CAPE"]
[null,"WC033 Cape Agulhas","WC WESTERN CAPE"]
[null,"WC034 Swellendam","WC WESTERN CAPE"]
[null,"DC3 Overberg","WC WESTERN CAPE"]
[null,"WC041 Kannaland","WC WESTERN CAPE"]
[null,"WC042 Hessequa","WC WESTERN CAPE"]
[null,"WC043 Mossel Bay","WC WESTERN CAPE"]
[null,"WC044 George","WC WESTERN CAPE"]
[null,"WC045 Oudtshoorn","WC WESTERN CAPE"]
[null,"WC047 Bitou","WC WESTERN CAPE"]
[null,"WC048 Knysna","WC WESTERN CAPE"]
[null,"DC4 Garden Route","WC WESTERN CAPE"]
[null,"WC051 Laingsburg","WC WESTERN CAPE"]
[null,"WC052 Prince Albert","WC WESTERN CAPE"]
[null,"WC053 Beaufort West","WC WESTERN CAPE"]
[null,"DC5 Central Karoo","WC WESTERN CAPE"]
[]
[]
[]
[]
[]
[]
[]
[]
[]
[]
[]
[]
[]
[]
[]
[]
[]
[]
[]
[]
[]
[null,{"$f":"COUNTA(B30:B307)","v":257}]

{"sheet":"Template names","index":3,"n_rows":179,"n_cols":6,"rows_kept":179,"cut":false,"hidden":true,"merged":[[0,0,0,3],[86,0,86,1],[109,0,109,1],[98,0,98,1],[91,0,91,3]]}
["Common sheet headings"]
["Head1",{"$f":"HLOOKUP(MTREF,Headings,2)","v":"2019/20"},"Prior year -1"]
["Head1A",{"$f":"HLOOKUP(MTREF,Headings,3)","v":"2018/19"},"Prior year -2"]
["Head1B",{"$f":"HLOOKUP(MTREF,Headings,4)","v":"2017/18"},"Prior year -3"]
["Head2",{"$f":"HLOOKUP(MTREF,Headings,5)","v":"Current Year 2020/21"},"Year in which budget is being prepared"]
["Head2A",{"$f":"HLOOKUP(MTREF,Headings,6)","v":"2020/21"},"Year in which budget is being prepared"]
["Head3",{"$f":"HLOOKUP(MTREF,Headings,7)","v":"2021/22 Medium Term Revenue & Expenditure Framework"},"MTREF name"]
["Head4","LTFS","Long term financial strategy"]
["Head5","Audited Outcome"]
["Head5A","Outcome"]
["Head5B","Pre-audit outcome"]
["Head6","Original Budget"]
["Head7","Adjusted Budget"]
["Head8","Full Year Forecast"]
["Head9",{"$f":"HLOOKUP(MTREF,Headings,8)","v":"Budget Year 2021/22"},"1st year of MTREF","Year1"]
["Head10",{"$f":"HLOOKUP(MTREF,Headings,9)","v":"Budget Year +1 2022/23"},"2nd year of MTREF","Year2"]
["Head11",{"$f":"HLOOKUP(MTREF,Headings,10)","v":"Budget Year +2 2023/24"},"3rd year of MTREF","Year3"]
["Head12",{"$f":"HLOOKUP(MTREF,Headings,11)","v":"Forecast 2024/25"},"1st yr of long term forecast","Year4"]
["Head13",{"$f":"HLOOKUP(MTREF,Headings,12)","v":"Forecast 2025/26"},"Next yr of long term forecast","Year5"]
["Head14",{"$f":"HLOOKUP(MTREF,Headings,13)","v":"Forecast 2026/27"},"Next yr of long term forecast","Year6"]
["Head15",{"$f":"HLOOKUP(MTREF,Headings,14)","v":"Forecast 2027/28"},"Next yr of long term forecast","Year7"]
["Head16",{"$f":"HLOOKUP(MTREF,Headings,15)","v":"Forecast 2028/29"},"Next yr of long term forecast","Year8"]
["Head17",{"$f":"HLOOKUP(MTREF,Headings,16)","v":"Forecast 2029/30"},"Next yr of long term forecast","Year9"]
["Head18",{"$f":"HLOOKUP(MTREF,Headings,17)","v":"Forecast 2030/31"},"Next yr of long term forecast","Year10"]
["Head19",{"$f":"HLOOKUP(MTREF,Headings,18)","v":"Forecast 2031/32"},"Next yr of long term forecast","Year11"]
["Head20",{"$f":"HLOOKUP(MTREF,Headings,19)","v":"Forecast 2032/33"},"Next yr of long term forecast","Year12"]
["Head21",{"$f":"HLOOKUP(MTREF,Headings,20)","v":"Forecast 2033/34"},"Next yr of long term forecast","Year13"]
["Head22",{"$f":"HLOOKUP(MTREF,Headings,21)","v":"Forecast 2034/35"},"Next yr of long term forecast","Year14"]
["Head23",{"$f":"HLOOKUP(MTREF,Headings,22)","v":"Forecast 2035/36"},"Next yr of long term forecast","Year15"]
["Head24","Description"]
["Head25"]
["Head26","Vote Description"]
["Head27","Ref"]
["Head27a","References"]
["Head28","Surplus/(Deficit) for the year",null,"Result"]
["Head29",{"$f":"HLOOKUP(MTREF,Headings,23)","v":"Annual target 2021/22"}]
["Head30",{"$f":"HLOOKUP(MTREF,Headings,24)","v":"Revised target 2021/22"}]
["Head31","Quarter ended 30 September"]
["Head32","Quarter ended 31 December"]
["Head33","Quarter ended 31 March"]
["Head34","Quarter ended 30 June"]
["Head35","Variance explanation"]
["Head36","YTD  Actual 31 Dec"]
["Head37","YTD  Budget 31 Dec"]
["Head38","Monthly actual"]
["Head39","YTD actual"]
["Head40","YTD budget"]
["Head41","YTD variance"]
["Head42","Surplus/ (Deficit) for the yr/period"]
["Head43",{"$f":"Head3&\" Summary\"","v":"2021/22 Medium Term Revenue & Expenditure Framework Summary"}]
["Head44","2001 Census"]
["Head45","2011 Census"]
["Head46"," - Adjustments Budget - January 2007"]
["Head47","Previous target year to complete"]
["Head48","Present value"]
["Head49"]
["Head50","Other Adjusts."]
["Head51","Accum. Funds"]
["Head52","Multi-year capital"]
["Head53","Unfore. Unavoid."]
["Head54","Prior Adjusted"]
["Head55","Nat. or Prov. Govt"]
["Head56","Total Adjusts."]
["SFPerf1","Budgeted Financial Performance"]
["SFPerf2","Forecast Financial Performance"]
["SFPos1","Budgeted Financial Position"]
["SFPos2","Forecast Financial Position"]
["Cash1","Budget Cash Flow"]
["Cash2","Forecast Cash Flow"]
["RandM","Expenditure includes repairs & maintenance of R'000"]
["Depart1","Department 1 - ",null,"DEP1"]
["Depart2","Department 2 - ",null,"DEP2"]
["Depart3","Department 3 - ",null,"DEP3"]
["Depart4","Department 4 - ",null,"DEP4"]
["Depart5","Department 5 - ",null,"DEP5"]
["Depart6","Department 6 - ",null,"DEP6"]
["Depart7","Department 7 - ",null,"DEP7"]
["Depart8","Department 8 - ",null,"DEP8"]
["Depart9","Department 9 - ",null,"DEP9"]
["Depart10","Department 10 - ",null,"DEP10"]
["Depart11","Department 11 - ",null,"DEP11"]
["Depart12","Department 12 - ",null,"DEP12"]
["Depart13","Department 13 - ",null,"DEP13"]
["Depart14","Department 14 - ",null,"DEP14"]
[]
[]
["Base year of forecast column selection names"]
["Choose","ACT"]
[null,"APP"]
[null,"ADJ"]
[]
["Standard nomenclature"]
["Muni",{"$f":"'Lookup and lists'!B28","v":"DC16 Xhariep"}]
["Municipal Entities",2,"Type of report:",1]
[{"$f":"IF((MuniEntities=1)*(MuniType=2),\"YES\",\"NO\")","v":"NO"},"Does this municipality have entities (consolidated budget and entity budgets required)? YES/NO"]
["Entity 1","(Pty) Ltd Example 1 - Municipal entity - ",null,"Ent1"]
["Entity 2","(Pty) Ltd Example 2 - Municipal entity - ",null,"Ent2"]
["Entity 3","Municipal Entity Example 3",null,"Ent3"]
["Budget approval tables",null,"Chart x-ref","Sch/Tab/Ch","Alternative for municipalities without entities","Alternative for municipalities without entities"]
[null,{"$f":"IF(Consolques=\"YES\",E100,F100)","v":"Table A1 Budget Summary"},null,"Table A1 ",{"$f":"D100&\"Consolidated Budget Summary\"","v":"Table A1 Consolidated Budget Summary"},{"$f":"D100&\"Budget Summary\"","v":"Table A1 Budget Summary"}]
[null,"Table A2 Budgeted Financial Performance (revenue and expenditure by functional classification)","Charts 5, 6","Table A2 ",{"$f":"D101&\"Consolidated Budgeted Financial Performance (revenue and expenditure by functional classification)\"","v":"Table A2 Consolidated Budgeted Financial Performance (revenue and expenditure by functional classification)"},{"$f":"D101&\"Budgeted Financial Performance (revenue and expenditure by functional classification)\"","v":"Table A2 Budgeted Financial Performance (revenue and expenditure by functional classification)"}]
[null,"Table A3 Budgeted Financial Performance (revenue and expenditure by municipal vote)",null,"Table A3 ",{"$f":"D102&\"Consolidated Budgeted Financial Performance (revenue and expenditure by municipal vote)\"","v":"Table A3 Consolidated Budgeted Financial Performance (revenue and expenditure by municipal vote)"},{"$f":"D102&\"Budgeted Financial Performance (revenue and expenditure by municipal vote)\"","v":"Table A3 Budgeted Financial Performance (revenue and expenditure by municipal vote)"}]
[null,"Table A4 Budgeted Financial Performance (revenue and expenditure)","Charts 1, 2, 3, 4","Table A4 ",{"$f":"D103&\"Consolidated Budgeted Financial Performance (revenue and expenditure)\"","v":"Table A4 Consolidated Budgeted Financial Performance (revenue and expenditure)"},{"$f":"D103&\"Budgeted Financial Performance (revenue and expenditure)\"","v":"Table A4 Budgeted Financial Performance (revenue and expenditure)"}]
[null,"Table A5 Budgeted Capital Expenditure by vote, functional classification and funding","Charts 7, 8, 9, 10, 20","Table A5 ",{"$f":"D104&\"Consolidated Budgeted Capital Expenditure by vote, functional classification and funding\"","v":"Table A5 Consolidated Budgeted Capital Expenditure by vote, functional classification and funding"},{"$f":"D104&\"Budgeted Capital Expenditure by vote, functional classification and funding\"","v":"Table A5 Budgeted Capital Expenditure by vote, functional classification and funding"}]
[null,"Table A6 Budgeted Financial Position",null,"Table A6 ",{"$f":"D105&\"Consolidated Budgeted Financial Position\"","v":"Table A6 Consolidated Budgeted Financial Position"},{"$f":"D105&\"Budgeted Financial Position\"","v":"Table A6 Budgeted Financial Position"}]
[null,"Table A7 Budgeted Cash Flows",null,"Table A7 ",{"$f":"D106&\"Consolidated Budgeted Cash Flows\"","v":"Table A7 Consolidated Budgeted Cash Flows"},{"$f":"D106&\"Budgeted Cash Flows\"","v":"Table A7 Budgeted Cash Flows"}]
[null,"Table A8 Cash backed reserves/accumulated surplus reconciliation",null,"Table A8 ",{"$f":"D107&\"Consolidated Cash backed reserves/accumulated surplus reconciliation\"","v":"Table A8 Consolidated Cash backed reserves/accumulated surplus reconciliation"},{"$f":"D107&\"Cash backed reserves/accumulated surplus reconciliation\"","v":"Table A8 Cash backed reserves/accumulated surplus reconciliation"}]
[null,"Table A9 Asset Management",null,"Table A9 ",{"$f":"D108&\"Consolidated Asset Management\"","v":"Table A9 Consolidated Asset Management"},{"$f":"D108&\"Asset Management\"","v":"Table A9 Asset Management"}]
[null,"Table A10 Basic service delivery measurement",null,"Table A10 ",{"$f":"D109&\"Consolidated basic service delivery measurement\"","v":"Table A10 Consolidated basic service delivery measurement"},{"$f":"D109&\"Basic service delivery measurement\"","v":"Table A10 Basic service delivery measurement"}]
["Supportinging Tables to the Budget Approval Tables",null,{"$f":"$C$99","v":"Chart x-ref"},{"$f":"$D$99","v":"Sch/Tab/Ch"}]
["Supporting Table SA1",{"$f":"A111&\" Supportinging detail to 'Budgeted Financial Performance'\"","v":"Supporting Table SA1 Supportinging detail to 'Budgeted Financial Performance'"}]
["Supporting Table SA2 ",{"$f":"IF(Consolques=\"YES\",E112,F112)","v":"Supporting Table SA2 Matrix Financial Performance Budget (revenue source/expenditure type and dept.)"},null,null,{"$f":"A112&\"Consolidated Matrix Financial Performance Budget (revenue source/expenditure type & dept.)\"","v":"Supporting Table SA2 Consolidated Matrix Financial Performance Budget (revenue source/expenditure type & dept.)"},{"$f":"A112&\"Matrix Financial Performance Budget (revenue source/expenditure type and dept.)\"","v":"Supporting Table SA2 Matrix Financial Performance Budget (revenue source/expenditure type and dept.)"}]
["Supporting Table SA3 ",{"$f":"A113&\"Supportinging detail to 'Budgeted Financial Position'\"","v":"Supporting Table SA3 Supportinging detail to 'Budgeted Financial Position'"}]
["Supporting Table SA4 ",{"$f":"A114&\"Reconciliation of IDP strategic objectives and budget (revenue)\"","v":"Supporting Table SA4 Reconciliation of IDP strategic objectives and budget (revenue)"},"Chart 11"]
["Supporting Table SA5 ",{"$f":"A115&\"Reconciliation of IDP strategic objectives and budget (operating expenditure)\"","v":"Supporting Table SA5 Reconciliation of IDP strategic objectives and budget (operating expenditure)"},"Chart 12"]
["Supporting Table SA6 ",{"$f":"A116&\"Reconciliation of IDP strategic objectives and budget (capital expenditure)\"","v":"Supporting Table SA6 Reconciliation of IDP strategic objectives and budget (capital expenditure)"},"Chart 13"]
["Supporting Table SA7",{"$f":"A117&\" Measureable performance objectives\"","v":"Supporting Table SA7 Measureable performance objectives"}]
["Supporting Table SA8",{"$f":"A118&\" Performance indicators and benchmarks\"","v":"Supporting Table SA8 Performance indicators and benchmarks"},"Chts 15-19"]
["Supporting Table SA9",{"$f":"A119&\" Social, economic and demographic statistics and assumptions\"","v":"Supporting Table SA9 Social, economic and demographic statistics and assumptions"}]
["Supporting Table SA10",{"$f":"A120&\" Funding measurement\"","v":"Supporting Table SA10 Funding measurement"},"Chart 14"]
["Supporting Table SA11",{"$f":"A121&\" Property rates summary\"","v":"Supporting Table SA11 Property rates summary"}]
["Supporting Table SA12a",{"$f":"A122&\" Property rates by category (current year)\"","v":"Supporting Table SA12a Property rates by category (current year)"}]
["Supporting Table SA12b",{"$f":"A123&\" Property rates by category (budget year)\"","v":"Supporting Table SA12b Property rates by category (budget year)"}]
["Supporting Table SA13a",{"$f":"A124&\" Service Tariffs by category\"","v":"Supporting Table SA13a Service Tariffs by category"}]
["Supporting Table SA13b",{"$f":"A125&\" Service Tariffs by category - explanatory\"","v":"Supporting Table SA13b Service Tariffs by category - explanatory"}]
["Supporting Table SA14",{"$f":"A126&\" Household bills\"","v":"Supporting Table SA14 Household bills"}]
["Supporting Table SA15",{"$f":"A127&\" Investment particulars by type\"","v":"Supporting Table SA15 Investment particulars by type"}]
["Supporting Table SA16",{"$f":"A128&\" Investment particulars by maturity\"","v":"Supporting Table SA16 Investment particulars by maturity"}]
["Supporting Table SA17",{"$f":"A129&\" Borrowing\"","v":"Supporting Table SA17 Borrowing"}]
["Supporting Table SA18",{"$f":"A130&\" Transfers and grant receipts\"","v":"Supporting Table SA18 Transfers and grant receipts"}]
["Supporting Table SA19",{"$f":"A131&\" Expenditure on transfers and grant programme\"","v":"Supporting Table SA19 Expenditure on transfers and grant programme"}]
["Supporting Table SA20",{"$f":"A132&\" Reconciliation of transfers, grant receipts and unspent funds\"","v":"Supporting Table SA20 Reconciliation of transfers, grant receipts and unspent funds"}]
["Supporting Table SA21",{"$f":"A133&\" Transfers and grants made by the municipality\"","v":"Supporting Table SA21 Transfers and grants made by the municipality"}]
["Supporting Table SA22",{"$f":"A134&\" Summary councillor and staff benefits\"","v":"Supporting Table SA22 Summary councillor and staff benefits"}]
["Supporting Table SA23",{"$f":"A135&\" Salaries, allowances & benefits (political office bearers/councillors/senior managers)\"","v":"Supporting Table SA23 Salaries, allowances & benefits (political office bearers/councillors/senior managers)"}]
["Supporting Table SA24",{"$f":"A136&\" Summary of personnel numbers\"","v":"Supporting Table SA24 Summary of personnel numbers"}]
["Supporting Table SA25",{"$f":"IF(Consolques=\"YES\",E137,F137)","v":"Supporting Table SA25 Budgeted monthly revenue and expenditure"},null,null,{"$f":"A137&\" Consolidated budgeted monthly revenue and expenditure\"","v":"Supporting Table SA25 Consolidated budgeted monthly revenue and expenditure"},{"$f":"A137&\" Budgeted monthly revenue and expenditure\"","v":"Supporting Table SA25 Budgeted monthly revenue and expenditure"}]
["Supporting Table SA26","Supporting Table SA26 Budgeted monthly revenue and expenditure (municipal vote)",null,null,{"$f":"A138&\" Consolidated budgeted monthly revenue and expenditure (municipal vote)\"","v":"Supporting Table SA26 Consolidated budgeted monthly revenue and expenditure (municipal vote)"},{"$f":"A138&\" Budgeted monthly revenue and expenditure (municipal vote)\"","v":"Supporting Table SA26 Budgeted monthly revenue and expenditure (municipal vote)"}]
["Supporting Table SA27","Supporting Table SA27 Budgeted monthly revenue and expenditure (functional classification)",null,null,{"$f":"A139&\" Consolidated budgeted monthly revenue and expenditure (functional classification)\"","v":"Supporting Table SA27 Consolidated budgeted monthly revenue and expenditure (functional classification)"},{"$f":"A139&\" Budgeted monthly revenue and expenditure (functional classification)\"","v":"Supporting Table SA27 Budgeted monthly revenue and expenditure (functional classification)"}]
["Supporting Table SA28","Supporting Table SA28 Budgeted monthly capital expenditure (municipal vote)",null,null,{"$f":"A140&\" Consolidated budgeted monthly capital expenditure (municipal vote)\"","v":"Supporting Table SA28 Consolidated budgeted monthly capital expenditure (municipal vote)"},{"$f":"A140&\" Budgeted monthly capital expenditure (municipal vote)\"","v":"Supporting Table SA28 Budgeted monthly capital expenditure (municipal vote)"}]
["Supporting Table SA29","Supporting Table SA29 Budgeted monthly capital expenditure (functional classification)",null,null,{"$f":"A141&\" Consolidated budgeted monthly capital expenditure (functional classification)\"","v":"Supporting Table SA29 Consolidated budgeted monthly capital expenditure (functional classification)"},{"$f":"A141&\" Budgeted monthly capital expenditure (functional classification)\"","v":"Supporting Table SA29 Budgeted monthly capital expenditure (functional classification)"}]
["Supporting Table SA30","Supporting Table SA30 Budgeted monthly cash flow",null,null,{"$f":"A142&\" Consolidated budgeted monthly cash flow\"","v":"Supporting Table SA30 Consolidated budgeted monthly cash flow"},{"$f":"A142&\" Budgeted monthly cash flow\"","v":"Supporting Table SA30 Budgeted monthly cash flow"}]
["Supporting Table SA31","NOT REQUIRED - municipality does not have entities",null,null,{"$f":"A143&\" Aggregated entity budget\"","v":"Supporting Table SA31 Aggregated entity budget"},"NOT REQUIRED - municipality does not have entities"]
["Supporting Table SA32",{"$f":"A144&\" List of external mechanisms\"","v":"Supporting Table SA32 List of external mechanisms"}]
["Supporting Table SA33",{"$f":"A145&\" Contracts having future budgetary implications\"","v":"Supporting Table SA33 Contracts having future budgetary implications"}]
["Supporting Table SA34a",{"$f":"IF(Consolques=\"YES\",E146,F146)","v":"Supporting Table SA34a Capital expenditure on new assets by asset class"},null,null,{"$f":"A146&\" Consolidated capital expenditure on new assets by asset class\"","v":"Supporting Table SA34a Consolidated capital expenditure on new assets by asset class"},{"$f":"A146&\" Capital expenditure on new assets by asset class\"","v":"Supporting Table SA34a Capital expenditure on new assets by asset class"}]
["Supporting Table SA34b","Supporting Table SA34b Capital expenditure on the renewal of existing assets by asset class",null,null,{"$f":"A147&\" Consolidated capital expenditure on the renewal of existing assets by asset class\"","v":"Supporting Table SA34b Consolidated capital expenditure on the renewal of existing assets by asset class"},{"$f":"A147&\" Capital expenditure on the renewal of existing assets by asset class\"","v":"Supporting Table SA34b Capital expenditure on the renewal of existing assets by asset class"}]
["Supporting Table SA34c","Supporting Table SA34c Repairs and maintenance expenditure by asset class",null,null,{"$f":"A148&\" Consolidated repairs and maintenance by asset class\"","v":"Supporting Table SA34c Consolidated repairs and maintenance by asset class"},{"$f":"A148&\" Repairs and maintenance expenditure by asset class\"","v":"Supporting Table SA34c Repairs and maintenance expenditure by asset class"}]
["Supporting Table SA34d",{"$f":"IF(Consolques=\"YES\",E149,F149)","v":"Supporting Table SA34d Depreciation by asset class"},null,null,{"$f":"A149&\" Consolidated Depreciation by asset class\"","v":"Supporting Table SA34d Consolidated Depreciation by asset class"},{"$f":"A149&\" Depreciation by asset class\"","v":"Supporting Table SA34d Depreciation by asset class"}]
["Supporting Table SA34e",{"$f":"IF(Consolques=\"YES\",E150,F150)","v":"Supporting Table SA34e Capital expenditure on the upgrading of existing assets by asset class"},null,null,{"$f":"A150&\" Consolidated capital expenditure on the upgrading of existing assets by asset class\"","v":"Supporting Table SA34e Consolidated capital expenditure on the upgrading of existing assets by asset class"},{"$f":"A150&\" Capital expenditure on the upgrading of existing assets by asset class\"","v":"Supporting Table SA34e Capital expenditure on the upgrading of existing assets by asset class"}]
["Supporting Table SA35","Supporting Table SA35 Future financial implications of the capital budget",null,null,{"$f":"A151&\" Consolidated future financial implications of the capital budget\"","v":"Supporting Table SA35 Consolidated future financial implications of the capital budget"},{"$f":"A151& \" Future financial implications of the capital budget\"","v":"Supporting Table SA35 Future financial implications of the capital budget"}]
["Supporting Table SA36","Supporting Table SA36 Detailed capital budget",null,null,{"$f":"A152&\" Consolidated detailed capital budget\"","v":"Supporting Table SA36 Consolidated detailed capital budget"},{"$f":"A152& \" Detailed capital budget\"","v":"Supporting Table SA36 Detailed capital budget"}]
["Supporting Table SA37","Supporting Table SA37 Projects delayed from previous financial year/s",null,null,{"$f":"A153&\" Consolidated projects delayed from previous financial year/s\"","v":"Supporting Table SA37 Consolidated projects delayed from previous financial year/s"},{"$f":"A153& \" Projects delayed from previous financial year/s\"","v":"Supporting Table SA37 Projects delayed from previous financial year/s"}]
["Supporting Table SA38",{"$f":"IF(Consolques=\"YES\",E154,F154)","v":"Supporting Table SA38 Detailed operational projects"},null,null,{"$f":"A154&\" Consolidated detailed operational projects\"","v":"Supporting Table SA38 Consolidated detailed operational projects"},{"$f":"A154& \" Detailed operational projects\"","v":"Supporting Table SA38 Detailed operational projects"}]
[]
["Budget Charts","Charts","Cross reference"]
["Chart A1 ",{"$f":"A157&\"Revenue by Municipal Vote\"","v":"Chart A1 Revenue by Municipal Vote"}]
["Chart A2 ",{"$f":"A158&\"Expenditure by Municipal Vote\"","v":"Chart A2 Expenditure by Municipal Vote"}]
["Chart A3 ",{"$f":"A159&\"Revenue by Standard Classification\"","v":"Chart A3 Revenue by Standard Classification"},"A2"]
["Chart A4 ",{"$f":"A160&\"Expenditure by Standard Classification\"","v":"Chart A4 Expenditure by Standard Classification"},"A2"]
["Chart A5 ",{"$f":"A161&\"Revenue by Major Source (refer 'Minor' source for 'Other Revenue' allocation\"","v":"Chart A5 Revenue by Major Source (refer 'Minor' source for 'Other Revenue' allocation"},"A3"]
["Chart A6 ",{"$f":"A162&\"Revenue by Minor Source (Other)\"","v":"Chart A6 Revenue by Minor Source (Other)"},"A3"]
["Chart A7 ",{"$f":"A163&\"Expenditure by Major Type\"","v":"Chart A7 Expenditure by Major Type"},"A3"]
["Chart A8 ",{"$f":"A164&\"Expenditure by Minor Type (Other)\"","v":"Chart A8 Expenditure by Minor Type (Other)"},"A3"]
["Chart A9 ",{"$f":"A165&\"Capital Expenditure by Municipal Vote/Appropriation (Major)\"","v":"Chart A9 Capital Expenditure by Municipal Vote/Appropriation (Major)"},"A5"]
["Chart A10 ",{"$f":"A166&\"Capital Expenditure by Municipal Vote/Appropriation (Minor)\"","v":"Chart A10 Capital Expenditure by Municipal Vote/Appropriation (Minor)"},"A5"]
["Chart A11 ",{"$f":"A166&\"Capital Expenditure by Standard Classification\"","v":"Chart A10 Capital Expenditure by Standard Classification"},"A5"]
["Chart A12 ",{"$f":"A168&\"Capital expenditure performance trend\"","v":"Chart A12 Capital expenditure performance trend"},"A5"]
["Chart A13 ",{"$f":"A169&\"Capital funding by Source\"","v":"Chart A13 Capital funding by Source"},"A5"]
["Chart A14 ",{"$f":"A170&\"Cash flow trend\"","v":"Chart A14 Cash flow trend"},"A7"]
["Chart A15 ",{"$f":"A171&\"IDP Strategic Objective - Revenue\"","v":"Chart A15 IDP Strategic Objective - Revenue"},"Table A4"]
["Chart A16 ",{"$f":"A172&\"IDP Strategic Objective - Expenditure\"","v":"Chart A16 IDP Strategic Objective - Expenditure"},"Table A5"]
["Chart A17 ",{"$f":"A173&\"IDP Strategic Objective - Capital Expenditure\"","v":"Chart A17 IDP Strategic Objective - Capital Expenditure"},"Table A6"]
["Chart A18 ",{"$f":"A174&\"Debt (borrowing to Total Revenue)\"","v":"Chart A18 Debt (borrowing to Total Revenue)"},"Table A8"]
["Chart A19 ",{"$f":"A175&\"Debtors' trend analysis\"","v":"Chart A19 Debtors' trend analysis"},"Table A8"]
["Chart A20 ",{"$f":"A176&\"Distribution losses\"","v":"Chart A20 Distribution losses"},"Table A8"]
["Chart A21 ",{"$f":"A177&\"Borrowed funding of capital expenditure\"","v":"Chart A21 Borrowed funding of capital expenditure"},"Table A8"]
["Chart A22 ",{"$f":"A178&\"Expenditure analysis (% of Revenue)\"","v":"Chart A22 Expenditure analysis (% of Revenue)"},"Table A8"]
["Chart A23 ",{"$f":"A179&\"Increases in service charges\"","v":"Chart A23 Increases in service charges"},"Table A10"]

{"sheet":"Raw_SA11","index":4,"n_rows":0,"n_cols":0,"rows_kept":0,"cut":false,"hidden":true,"merged":[]}

{"sheet":"Raw_SA14","index":5,"n_rows":0,"n_cols":0,"rows_kept":0,"cut":false,"hidden":true,"merged":[]}

{"sheet":"Raw_SA13b","index":6,"n_rows":0,"n_cols":0,"rows_kept":0,"cut":false,"hidden":true,"merged":[]}

{"sheet":"Raw_SA13a","index":7,"n_rows":0,"n_cols":0,"rows_kept":0,"cut":false,"hidden":true,"merged":[]}

{"sheet":"Raw_SA12b","index":8,"n_rows":0,"n_cols":0,"rows_kept":0,"cut":false,"hidden":true,"merged":[]}

{"sheet":"Raw_SA12a","index":9,"n_rows":0,"n_cols":0,"rows_kept":0,"cut":false,"hidden":true,"merged":[]}

{"sheet":"Raw_SA8","index":10,"n_rows":0,"n_cols":0,"rows_kept":0,"cut":false,"hidden":true,"merged":[]}

{"sheet":"Raw_SA23","index":11,"n_rows":0,"n_cols":0,"rows_kept":0,"cut":false,"hidden":true,"merged":[]}

{"sheet":"START","index":12,"n_rows":0,"n_cols":0,"rows_kept":0,"cut":false,"hidden":false,"merged":[]}

{"sheet":"Instructions","index":13,"n_rows":77,"n_cols":24,"rows_kept":77,"cut":false,"hidden":false,"merged":[]}
[]
[null,null,null,2020]
[]
[null,null,null,null,null,null,null,null,null,null,null,null,null,null,null,null,null,null,null,null,null,null,null,"Yes"]
[null,null,null,null,null,null,null,null,null,null,null,null,null,null,null,null,null,null,null,null,null,null,null,"No"]
[]
[null,null,null,null,null,null,null,null,null,null,null,null,null,null,null,null,null,null,null,null,null,null,"Type of Entities Range:"]
[null,null,null,null,null,null,null,null,null,null,null,null,null,null,null,null,null,null,null,null,null,null,null,"Parent Municipality"]
[null,null,null,null,null,null,null,null,null,null,null,null,null,null,null,null,null,null,null,null,null,null,null,"Consolidated Information"]
[]
[]
[]
[]
[null,null,null,null,null,"START"]
[null,null,null,null,null,"Instructions"]
[null,null,null,null,null,"Template names"]
[null,null,null,null,null,"Lookup and lists",null,null,null,null,null,null,null,null,null,null,null,null,null,null,null,null,"MTREF Range:",2013]
[null,null,null,null,null,"Org structure",null,null,null,null,null,null,null,null,null,null,null,null,null,null,null,null,null,2014]
[null,null,null,null,null,"Contacts",null,null,null,null,null,null,null,null,null,null,null,null,null,null,null,null,null,2015]
[null,null,null,null,null,"A1-Sum",null,null,null,null,null,null,null,null,null,null,null,null,null,null,null,null,null,2016]
[null,null,null,null,null,"A2-FinPerf SC",null,null,null,null,null,null,null,null,null,null,null,null,null,null,null,null,null,2017]
[null,null,null,null,null,"A2A",null,null,null,null,null,null,null,null,null,null,null,null,null,null,null,null,null,2018]
[null,null,null,null,null,"A3-FinPerf V",null,null,null,null,null,null,null,null,null,null,null,null,null,null,null,null,null,2019]
[null,null,null,null,null,"A3A",null,null,null,null,null,null,null,null,null,null,null,null,null,null,null,null,null,2020]
[null,null,null,null,null,"A4-FinPerf RE",null,null,null,null,null,null,null,null,null,null,null,null,null,null,null,null,null,2021]
[null,null,null,null,null,"A5-Capex",null,null,null,null,null,null,null,null,null,null,null,null,null,null,null,null,null,2022]
[null,null,null,null,null,"A5A",null,null,null,null,null,null,null,null,null,null,null,null,null,null,null,null,null,2023]
[null,null,null,null,null,"A6-FinPos",null,null,null,null,null,null,null,null,null,null,null,null,null,null,null,null,null,2024]
[null,null,null,null,null,"A7-CFlow",null,null,null,null,null,null,null,null,null,null,null,null,null,null,null,null,null,2025]
[null,null,null,null,null,"A8-ResRecon",null,null,null,null,null,null,null,null,null,null,null,null,null,null,null,null,null,2026]
[null,null,null,null,null,"A9-Asset",null,null,null,null,null,null,null,null,null,null,null,null,null,null,null,null,null,2027]
[null,null,null,null,null,"A10-SerDel"]
[null,null,null,null,null,"SA1",null,null,null,null,null,null,null,null,null,null,null,null,null,null,null,null,"MTREF Linked:",9]
[null,null,null,null,null,"SA2",null,null,null,null,null,null,null,null,null,null,null,null,null,null,null,null,"MTREF:",{"$f":"INDEX(X17:X26,X33,1)","v":2021}]
[null,null,null,null,null,"SA3"]
[null,null,null,null,null,"SA4",null,null,null,null,null,null,null,null,null,null,null,null,null,null,null,null,"Fin Year:",{"$f":"MTREF&\"/\"&RIGHT(MTREF,2)+1","v":"2021/22"}]
[null,null,null,null,null,"SA5"]
[null,null,null,null,null,"SA6"]
[null,null,null,null,null,"SA7"]
[null,null,null,null,null,"SA8"]
[null,null,null,null,null,"SA9"]
[null,null,null,null,null,"SA10"]
[null,null,null,null,null,"SA11"]
[null,null,null,null,null,"SA12a"]
[null,null,null,null,null,"SA12b"]
[null,null,null,null,null,"SA13a"]
[null,null,null,null,null,"SA13b"]
[null,null,null,null,null,"SA14"]
[null,null,null,null,null,"SA15"]
[null,null,null,null,null,"SA16"]
[null,null,null,null,null,"SA17"]
[null,null,null,null,null,"SA18"]
[null,null,null,null,null,"SA19"]
[null,null,null,null,null,"SA20"]
[null,null,null,null,null,"SA21"]
[null,null,null,null,null,"SA22"]
[null,null,null,null,null,"SA23"]
[null,null,null,null,null,"SA24"]
[null,null,null,null,null,"SA25"]
[null,null,null,null,null,"SA26"]
[null,null,null,null,null,"SA27"]
[null,null,null,null,null,"SA28"]
[null,null,null,null,null,"SA29"]
[null,null,null,null,null,"SA30"]
[null,null,null,null,null,"SA31"]
[null,null,null,null,null,"SA32"]
[null,null,null,null,null,"SA33"]
[null,null,null,null,null,"SA34a"]
[null,null,null,null,null,"SA34b"]
[null,null,null,null,null,"SA34c"]
[null,null,null,null,null,"SA34d"]
[null,null,null,null,null,"SA34e"]
[null,null,null,null,null,"SA35"]
[null,null,null,null,null,"SA36"]
[null,null,null,null,null,"SA37"]
[null,null,null,null,null,"SA38"]
[null,null,null,null,null,"LGDB_EXPORT"]

{"sheet":"Org structure","index":14,"n_rows":166,"n_cols":8,"rows_kept":166,"cut":false,"hidden":false,"merged":[]}
["Organisational Structure Votes",null,"Organisational Structure Sub-Votes",null,"Display Sub-Votes"]
[{"$f":"B2&\" - \"&C2","v":"Vote 1 - Executive and Council"},"Vote 1",{"$f":"IFERROR(VLOOKUP($H2,MainMunicipalVote,4,0),\"[NAME OF VOTE \"&H2&\"]\")","v":"Executive and Council"},null,null,null,null,1]
[{"$f":"B13&\" - \"& C13","v":"Vote 2 - Finance and Administration"},1.1000000000000001,{"$f":"IFERROR(VLOOKUP($H3,SubMunicipalVote,2,0),\"[Name of sub-vote]\")","v":"Mayor and Council"},{"$f":"CONCATENATE(B3, \" - \", C3)","v":"1.1 - Mayor and Council"},"1.1 - Mayor and Council",null,null,11]
[{"$f":"B24&\" - \"&C24","v":"Vote 3 - Planning and Development"},1.2,{"$f":"IFERROR(VLOOKUP($H4,SubMunicipalVote,2,0),\"[Name of sub-vote]\")","v":"Municipal Manager, Town Secretary and Chief Executive"},"1.2 - Municipal Manager, Town Secretary and Chief Executive","1.2 - Municipal Manager, Town Secretary and Chief Executive",null,null,12]
[{"$f":"B35&\" - \"&C35","v":"Vote 4 - Community and Social Services"},1.3,{"$f":"IFERROR(VLOOKUP($H5,SubMunicipalVote,2,0),\"[Name of sub-vote]\")","v":"[Name of sub-vote]"},"1.3 - [Name of sub-vote]","1.3 - [Name of sub-vote]",null,null,13]
[{"$f":"B46&\" - \"&C46","v":"Vote 5 - Environmental Protection"},1.4,"[Name of sub-vote]","1.4 - [Name of sub-vote]","1.4 - [Name of sub-vote]",null,null,14]
[{"$f":"B57&\" - \"&C57","v":"Vote 6 - [NAME OF VOTE 6]"},1.5,"[Name of sub-vote]","1.5 - [Name of sub-vote]","1.5 - [Name of sub-vote]",null,null,15]
[{"$f":"B68&\" - \"&C68","v":"Vote 7 - [NAME OF VOTE 7]"},1.6,"[Name of sub-vote]","1.6 - [Name of sub-vote]","1.6 - [Name of sub-vote]",null,null,16]
[{"$f":"B79&\" - \"&C79","v":"Vote 8 - [NAME OF VOTE 8]"},1.7,"[Name of sub-vote]","1.7 - [Name of sub-vote]",null,null,null,17]
[{"$f":"B90&\" - \"&C90","v":"Vote 9 - [NAME OF VOTE 9]"},1.8,"[Name of sub-vote]","1.8 - [Name of sub-vote]",null,null,null,18]
[{"$f":"B101&\" - \"&C101","v":"Vote 10 - [NAME OF VOTE 10]"},1.9,"[Name of sub-vote]","1.9 - [Name of sub-vote]",null,null,null,19]
[{"$f":"B112&\" - \"&C112","v":"Vote 11 - [NAME OF VOTE 11]"},"1.10","[Name of sub-vote]","1.10 - [Name of sub-vote]",null,null,null,110]
[{"$f":"B123&\" - \"&C123","v":"Vote 12 - [NAME OF VOTE 12]"},"Vote 2",{"$f":"IFERROR(VLOOKUP($H13,MainMunicipalVote,4,0),\"[NAME OF VOTE \"&H13&\"]\")","v":"Finance and Administration"},null,null,null,null,2]
[{"$f":"B134&\" - \"&C134","v":"Vote 13 - [NAME OF VOTE 13]"},2.1,{"$f":"IFERROR(VLOOKUP($H14,SubMunicipalVote,2,0),\"[Name of sub-vote]\")","v":"Administrative and Corporate Support"},{"$f":"CONCATENATE(B14, \" - \", C14)","v":"2.1 - Administrative and Corporate Support"},"2.1 - Asset Management",null,null,21]
[{"$f":"B145&\" - \"&C145","v":"Vote 14 - [NAME OF VOTE 14]"},2.2000000000000002,"Finance","2.2 - Finance","2.2 - Finance",null,null,22]
[{"$f":"B156&\" - \"&C156","v":"Vote 15 - [NAME OF VOTE 15]"},2.2999999999999998,"Human Resources","2.3 - Human Resources",null,null,null,23]
[null,2.4,"[Name of sub-vote]","2.4 - [Name of sub-vote]",null,null,null,24]
[null,2.5,"[Name of sub-vote]","2.5 - [Name of sub-vote]",null,null,null,25]
[null,2.6,"[Name of sub-vote]","2.6 - [Name of sub-vote]",null,null,null,26]
[null,2.7,"[Name of sub-vote]","2.7 - [Name of sub-vote]",null,null,null,27]
[null,2.8,"[Name of sub-vote]","2.8 - [Name of sub-vote]",null,null,null,28]
[null,2.9,"[Name of sub-vote]","2.9 - [Name of sub-vote]",null,null,null,29]
[null,"2.10","[Name of sub-vote]","2.10 - [Name of sub-vote]",null,null,null,210]
[null,"Vote 3",{"$f":"IFERROR(VLOOKUP($H24,MainMunicipalVote,4,0),\"[NAME OF VOTE \"&H24&\"]\")","v":"Planning and Development"},null,null,null,null,3]
[null,3.1,{"$f":"IFERROR(VLOOKUP($H25,SubMunicipalVote,2,0),\"[Name of sub-vote]\")","v":"Corporate Wide Strategic Planning (IDPs, LEDs)"},{"$f":"CONCATENATE(B25, \" - \", C25)","v":"3.1 - Corporate Wide Strategic Planning (IDPs, LEDs)"},"3.1 - [Name of sub-vote]",null,null,31]
[null,3.2,"Development Facilitation","3.2 - Development Facilitation",null,null,null,32]
[null,3.3,"Economic Development/Planning","3.3 - Economic Development/Planning",null,null,null,33]
[null,3.4,"Billboards","3.4 - Billboards",null,null,null,34]
[null,3.5,"[Name of sub-vote]","3.5 - [Name of sub-vote]",null,null,null,35]
[null,3.6,"[Name of sub-vote]","3.6 - [Name of sub-vote]",null,null,null,36]
[null,3.7,"[Name of sub-vote]","3.7 - [Name of sub-vote]",null,null,null,37]
[null,3.8,"[Name of sub-vote]","3.8 - [Name of sub-vote]",null,null,null,38]
[null,3.9,"[Name of sub-vote]","3.9 - [Name of sub-vote]",null,null,null,39]
[null,"3.10","[Name of sub-vote]","3.10 - [Name of sub-vote]",null,null,null,310]
[null,"Vote 4",{"$f":"IFERROR(VLOOKUP($H35,MainMunicipalVote,4,0),\"[NAME OF VOTE \"&H35&\"]\")","v":"Community and Social Services"},null,null,null,null,4]
[null,4.0999999999999996,{"$f":"IFERROR(VLOOKUP($H36,SubMunicipalVote,2,0),\"[Name of sub-vote]\")","v":"Disaster Management"},{"$f":"CONCATENATE(B36, \" - \", C36)","v":"4.1 - Disaster Management"},"4.1 - [Name of sub-vote]",null,null,41]
[null,4.2,"[Name of sub-vote]","4.2 - [Name of sub-vote]",null,null,null,42]
[null,4.3,"[Name of sub-vote]","4.3 - [Name of sub-vote]",null,null,null,43]
[null,4.4000000000000004,"[Name of sub-vote]","4.4 - [Name of sub-vote]",null,null,null,44]
[null,4.5,"[Name of sub-vote]","4.5 - [Name of sub-vote]",null,null,null,45]
[null,4.5999999999999996,"[Name of sub-vote]","4.6 - [Name of sub-vote]",null,null,null,46]
[null,4.7,"[Name of sub-vote]","4.7 - [Name of sub-vote]",null,null,null,47]
[null,4.8,"[Name of sub-vote]","4.8 - [Name of sub-vote]",null,null,null,48]
[null,4.9000000000000004,"[Name of sub-vote]","4.9 - [Name of sub-vote]",null,null,null,49]
[null,"4.10","[Name of sub-vote]","4.10 - [Name of sub-vote]",null,null,null,410]
[null,"Vote 5",{"$f":"IFERROR(VLOOKUP($H46,MainMunicipalVote,4,0),\"[NAME OF VOTE \"&H46&\"]\")","v":"Environmental Protection"},null,null,null,null,5]
[null,5.0999999999999996,{"$f":"IFERROR(VLOOKUP($H47,SubMunicipalVote,2,0),\"[Name of sub-vote]\")","v":"Biodiversity and Landscape"},{"$f":"CONCATENATE(B47, \" - \", C47)","v":"5.1 - Biodiversity and Landscape"},"5.1 - [Name of sub-vote]",null,null,51]
[null,5.2,"[Name of sub-vote]","5.2 - [Name of sub-vote]",null,null,null,52]
[null,5.3,"[Name of sub-vote]","5.3 - [Name of sub-vote]",null,null,null,53]
[null,5.4,"[Name of sub-vote]","5.4 - [Name of sub-vote]",null,null,null,54]
[null,5.5,"[Name of sub-vote]","5.5 - [Name of sub-vote]",null,null,null,55]
[null,5.6,"[Name of sub-vote]","5.6 - [Name of sub-vote]",null,null,null,56]
[null,5.7,"[Name of sub-vote]","5.7 - [Name of sub-vote]",null,null,null,57]
[null,5.8,"[Name of sub-vote]","5.8 - [Name of sub-vote]",null,null,null,58]
[null,5.9,"[Name of sub-vote]","5.9 - [Name of sub-vote]",null,null,null,59]
[null,"5.10","[Name of sub-vote]","5.10 - [Name of sub-vote]",null,null,null,510]
[null,"Vote 6",{"$f":"IFERROR(VLOOKUP($H57,MainMunicipalVote,4,0),\"[NAME OF VOTE \"&H57&\"]\")","v":"[NAME OF VOTE 6]"},null,null,null,null,6]
[null,6.1,{"$f":"IFERROR(VLOOKUP($H58,SubMunicipalVote,2,0),\"[Name of sub-vote]\")","v":"[Name of sub-vote]"},{"$f":"CONCATENATE(B58, \" - \", C58)","v":"6.1 - [Name of sub-vote]"},"6.1 - [Name of sub-vote]",null,null,61]
[null,6.2,"[Name of sub-vote]","6.2 - [Name of sub-vote]",null,null,null,62]
[null,6.3,"[Name of sub-vote]","6.3 - [Name of sub-vote]",null,null,null,63]
[null,6.4,"[Name of sub-vote]","6.4 - [Name of sub-vote]",null,null,null,64]
[null,6.5,"[Name of sub-vote]","6.5 - [Name of sub-vote]",null,null,null,65]
[null,6.6,"[Name of sub-vote]","6.6 - [Name of sub-vote]",null,null,null,66]
[null,6.7,"[Name of sub-vote]","6.7 - [Name of sub-vote]",null,null,null,67]
[null,6.8,"[Name of sub-vote]","6.8 - [Name of sub-vote]",null,null,null,68]
[null,6.9,"[Name of sub-vote]","6.9 - [Name of sub-vote]",null,null,null,69]
[null,"6.10","[Name of sub-vote]","6.10 - [Name of sub-vote]",null,null,null,610]
[null,"Vote 7",{"$f":"IFERROR(VLOOKUP($H68,MainMunicipalVote,4,0),\"[NAME OF VOTE \"&H68&\"]\")","v":"[NAME OF VOTE 7]"},null,null,null,null,7]
[null,7.1,{"$f":"IFERROR(VLOOKUP($H69,SubMunicipalVote,2,0),\"[Name of sub-vote]\")","v":"[Name of sub-vote]"},{"$f":"CONCATENATE(B69, \" - \", C69)","v":"7.1 - [Name of sub-vote]"},"7.1 - [Name of sub-vote]",null,null,71]
[null,7.2,"[Name of sub-vote]","7.2 - [Name of sub-vote]",null,null,null,72]
[null,7.3,"[Name of sub-vote]","7.3 - [Name of sub-vote]",null,null,null,73]
[null,7.4,"[Name of sub-vote]","7.4 - [Name of sub-vote]",null,null,null,74]
[null,7.5,"[Name of sub-vote]","7.5 - [Name of sub-vote]",null,null,null,75]
[null,7.6,"[Name of sub-vote]","7.6 - [Name of sub-vote]",null,null,null,76]
[null,7.7,"[Name of sub-vote]","7.7 - [Name of sub-vote]",null,null,null,77]
[null,7.8,"[Name of sub-vote]","7.8 - [Name of sub-vote]",null,null,null,78]
[null,7.9,"[Name of sub-vote]","7.9 - [Name of sub-vote]",null,null,null,79]
[null,"7.10","[Name of sub-vote]","7.10 - [Name of sub-vote]",null,null,null,710]
[null,"Vote 8",{"$f":"IFERROR(VLOOKUP($H79,MainMunicipalVote,4,0),\"[NAME OF VOTE \"&H79&\"]\")","v":"[NAME OF VOTE 8]"},null,null,null,null,8]
[null,8.1,{"$f":"IFERROR(VLOOKUP($H80,SubMunicipalVote,2,0),\"[Name of sub-vote]\")","v":"[Name of sub-vote]"},{"$f":"CONCATENATE(B80, \" - \", C80)","v":"8.1 - [Name of sub-vote]"},"8.1 - [Name of sub-vote]",null,null,81]
[null,8.1999999999999993,"[Name of sub-vote]","8.2 - [Name of sub-vote]",null,null,null,82]
[null,8.3000000000000007,"[Name of sub-vote]","8.3 - [Name of sub-vote]",null,null,null,83]
[null,8.4,"[Name of sub-vote]","8.4 - [Name of sub-vote]",null,null,null,84]
[null,8.5,"[Name of sub-vote]","8.5 - [Name of sub-vote]",null,null,null,85]
[null,8.6,"[Name of sub-vote]","8.6 - [Name of sub-vote]",null,null,null,86]
[null,8.6999999999999993,"[Name of sub-vote]","8.7 - [Name of sub-vote]",null,null,null,87]
[null,8.8000000000000007,"[Name of sub-vote]","8.8 - [Name of sub-vote]",null,null,null,88]
[null,8.9,"[Name of sub-vote]","8.9 - [Name of sub-vote]",null,null,null,89]
[null,"8.10","[Name of sub-vote]","8.10 - [Name of sub-vote]",null,null,null,810]
[null,"Vote 9",{"$f":"IFERROR(VLOOKUP($H90,MainMunicipalVote,4,0),\"[NAME OF VOTE \"&H90&\"]\")","v":"[NAME OF VOTE 9]"},null,null,null,null,9]
[null,9.1,{"$f":"IFERROR(VLOOKUP($H91,SubMunicipalVote,2,0),\"[Name of sub-vote]\")","v":"[Name of sub-vote]"},{"$f":"CONCATENATE(B91, \" - \", C91)","v":"9.1 - [Name of sub-vote]"},"9.1 - [Name of sub-vote]",null,null,91]
[null,9.1999999999999993,"[Name of sub-vote]","9.2 - [Name of sub-vote]",null,null,null,92]
[null,9.3000000000000007,"[Name of sub-vote]","9.3 - [Name of sub-vote]",null,null,null,93]
[null,9.4,"[Name of sub-vote]","9.4 - [Name of sub-vote]",null,null,null,94]
[null,9.5,"[Name of sub-vote]","9.5 - [Name of sub-vote]",null,null,null,95]
[null,9.6,"[Name of sub-vote]","9.6 - [Name of sub-vote]",null,null,null,96]
[null,9.6999999999999993,"[Name of sub-vote]","9.7 - [Name of sub-vote]",null,null,null,97]
[null,9.8000000000000007,"[Name of sub-vote]","9.8 - [Name of sub-vote]",null,null,null,98]
[null,9.9,"[Name of sub-vote]","9.9 - [Name of sub-vote]",null,null,null,99]
[null,"9.10","[Name of sub-vote]","9.10 - [Name of sub-vote]",null,null,null,910]
[null,"Vote 10",{"$f":"IFERROR(VLOOKUP($H101,MainMunicipalVote,4,0),\"[NAME OF VOTE \"&H101&\"]\")","v":"[NAME OF VOTE 10]"},null,null,null,null,10]
[null,10.1,{"$f":"IFERROR(VLOOKUP($H102,SubMunicipalVote,2,0),\"[Name of sub-vote]\")","v":"[Name of sub-vote]"},{"$f":"CONCATENATE(B102, \" - \", C102)","v":"10.1 - [Name of sub-vote]"},"10.1 - [Name of sub-vote]",null,null,101]
[null,10.199999999999999,"[Name of sub-vote]","10.2 - [Name of sub-vote]",null,null,null,102]
[null,10.3,"[Name of sub-vote]","10.3 - [Name of sub-vote]",null,null,null,103]
[null,10.4,"[Name of sub-vote]","10.4 - [Name of sub-vote]",null,null,null,104]
[null,10.5,"[Name of sub-vote]","10.5 - [Name of sub-vote]",null,null,null,105]
[null,10.6,"[Name of sub-vote]","10.6 - [Name of sub-vote]",null,null,null,106]
[null,10.7,"[Name of sub-vote]","10.7 - [Name of sub-vote]",null,null,null,107]
[null,10.8,"[Name of sub-vote]","10.8 - [Name of sub-vote]",null,null,null,108]
[null,10.9,"[Name of sub-vote]","10.9 - [Name of sub-vote]",null,null,null,109]
[null,"10.10","[Name of sub-vote]","10.10 - [Name of sub-vote]",null,null,null,1010]
[null,"Vote 11",{"$f":"IFERROR(VLOOKUP($H112,MainMunicipalVote,4,0),\"[NAME OF VOTE \"&H112&\"]\")","v":"[NAME OF VOTE 11]"},null,null,null,null,11]
[null,11.1,{"$f":"IFERROR(VLOOKUP($H113,SubMunicipalVote,2,0),\"[Name of sub-vote]\")","v":"[Name of sub-vote]"},{"$f":"CONCATENATE(B113, \" - \", C113)","v":"11.1 - [Name of sub-vote]"},"11.1 - [Name of sub-vote]",null,null,111]
[null,11.2,"[Name of sub-vote]","11.2 - [Name of sub-vote]",null,null,null,112]
[null,11.3,"[Name of sub-vote]","11.3 - [Name of sub-vote]",null,null,null,113]
[null,11.4,"[Name of sub-vote]","11.4 - [Name of sub-vote]",null,null,null,114]
[null,11.5,"[Name of sub-vote]","11.5 - [Name of sub-vote]",null,null,null,115]
[null,11.6,"[Name of sub-vote]","11.6 - [Name of sub-vote]",null,null,null,116]
[null,11.7,"[Name of sub-vote]","11.7 - [Name of sub-vote]",null,null,null,117]
[null,11.8,"[Name of sub-vote]","11.8 - [Name of sub-vote]",null,null,null,118]
[null,11.9,"[Name of sub-vote]","11.9 - [Name of sub-vote]",null,null,null,119]
[null,"11.10","[Name of sub-vote]","11.10 - [Name of sub-vote]",null,null,null,1110]
[null,"Vote 12",{"$f":"IFERROR(VLOOKUP($H123,MainMunicipalVote,4,0),\"[NAME OF VOTE \"&H123&\"]\")","v":"[NAME OF VOTE 12]"},null,null,null,null,12]
[null,12.1,{"$f":"IFERROR(VLOOKUP($H124,SubMunicipalVote,2,0),\"[Name of sub-vote]\")","v":"[Name of sub-vote]"},{"$f":"CONCATENATE(B124, \" - \", C124)","v":"12.1 - [Name of sub-vote]"},"12.1 - [Name of sub-vote]",null,null,121]
[null,12.2,"[Name of sub-vote]","12.2 - [Name of sub-vote]",null,null,null,122]
[null,12.3,"[Name of sub-vote]","12.3 - [Name of sub-vote]",null,null,null,123]
[null,12.4,"[Name of sub-vote]","12.4 - [Name of sub-vote]",null,null,null,124]
[null,12.5,"[Name of sub-vote]","12.5 - [Name of sub-vote]",null,null,null,125]
[null,12.6,"[Name of sub-vote]","12.6 - [Name of sub-vote]",null,null,null,126]
[null,12.7,"[Name of sub-vote]","12.7 - [Name of sub-vote]",null,null,null,127]
[null,12.8,"[Name of sub-vote]","12.8 - [Name of sub-vote]",null,null,null,128]
[null,12.9,"[Name of sub-vote]","12.9 - [Name of sub-vote]",null,null,null,129]
[null,"12.10","[Name of sub-vote]","12.10 - [Name of sub-vote]",null,null,null,1210]
[null,"Vote 13",{"$f":"IFERROR(VLOOKUP($H134,MainMunicipalVote,4,0),\"[NAME OF VOTE \"&H134&\"]\")","v":"[NAME OF VOTE 13]"},null,null,null,null,13]
[null,13.1,{"$f":"IFERROR(VLOOKUP($H135,SubMunicipalVote,2,0),\"[Name of sub-vote]\")","v":"[Name of sub-vote]"},{"$f":"CONCATENATE(B135, \" - \", C135)","v":"13.1 - [Name of sub-vote]"},"13.1 - [Name of sub-vote]",null,null,131]
[null,13.2,"[Name of sub-vote]","13.2 - [Name of sub-vote]",null,null,null,132]
[null,13.3,"[Name of sub-vote]","13.3 - [Name of sub-vote]",null,null,null,133]
[null,13.4,"[Name of sub-vote]","13.4 - [Name of sub-vote]",null,null,null,134]
[null,13.5,"[Name of sub-vote]","13.5 - [Name of sub-vote]",null,null,null,135]
[null,13.6,"[Name of sub-vote]","13.6 - [Name of sub-vote]",null,null,null,136]
[null,13.7,"[Name of sub-vote]","13.7 - [Name of sub-vote]",null,null,null,137]
[null,13.8,"[Name of sub-vote]","13.8 - [Name of sub-vote]",null,null,null,138]
[null,13.9,"[Name of sub-vote]","13.9 - [Name of sub-vote]",null,null,null,139]
[null,"13.10","[Name of sub-vote]","13.10 - [Name of sub-vote]",null,null,null,1310]
[null,"Vote 14",{"$f":"IFERROR(VLOOKUP($H145,MainMunicipalVote,4,0),\"[NAME OF VOTE \"&H145&\"]\")","v":"[NAME OF VOTE 14]"},null,null,null,null,14]
[null,14.1,{"$f":"IFERROR(VLOOKUP($H146,SubMunicipalVote,2,0),\"[Name of sub-vote]\")","v":"[Name of sub-vote]"},{"$f":"CONCATENATE(B146, \" - \", C146)","v":"14.1 - [Name of sub-vote]"},"14.1 - [Name of sub-vote]",null,null,141]
[null,14.2,"[Name of sub-vote]","14.2 - [Name of sub-vote]",null,null,null,142]
[null,14.3,"[Name of sub-vote]","14.3 - [Name of sub-vote]",null,null,null,143]
[null,14.4,"[Name of sub-vote]","14.4 - [Name of sub-vote]",null,null,null,144]
[null,14.5,"[Name of sub-vote]","14.5 - [Name of sub-vote]",null,null,null,145]
[null,14.6,"[Name of sub-vote]","14.6 - [Name of sub-vote]",null,null,null,146]
[null,14.7,"[Name of sub-vote]","14.7 - [Name of sub-vote]",null,null,null,147]
[null,14.8,"[Name of sub-vote]","14.8 - [Name of sub-vote]",null,null,null,148]
[null,14.9,"[Name of sub-vote]","14.9 - [Name of sub-vote]",null,null,null,149]
[null,"14.10","[Name of sub-vote]","14.10 - [Name of sub-vote]",null,null,null,1410]
[null,"Vote 15",{"$f":"IFERROR(VLOOKUP($H156,MainMunicipalVote,4,0),\"[NAME OF VOTE \"&H156&\"]\")","v":"[NAME OF VOTE 15]"},null,null,null,null,15]
[null,15.1,{"$f":"IFERROR(VLOOKUP($H157,SubMunicipalVote,2,0),\"[Name of sub-vote]\")","v":"[Name of sub-vote]"},{"$f":"CONCATENATE(B157, \" - \", C157)","v":"15.1 - [Name of sub-vote]"},"15.1 - [Name of sub-vote]",null,null,151]
[null,15.2,"[Name of sub-vote]","15.2 - [Name of sub-vote]",null,null,null,152]
[null,15.3,"[Name of sub-vote]","15.3 - [Name of sub-vote]",null,null,null,153]
[null,15.4,"[Name of sub-vote]","15.4 - [Name of sub-vote]",null,null,null,154]
[null,15.5,"[Name of sub-vote]","15.5 - [Name of sub-vote]",null,null,null,155]
[null,15.6,"[Name of sub-vote]","15.6 - [Name of sub-vote]",null,null,null,156]
[null,15.7,"[Name of sub-vote]","15.7 - [Name of sub-vote]",null,null,null,157]
[null,15.8,"[Name of sub-vote]","15.8 - [Name of sub-vote]",null,null,null,158]
[null,15.9,"[Name of sub-vote]","15.9 - [Name of sub-vote]",null,null,null,159]
[null,"15.10","[Name of sub-vote]","15.10 - [Name of sub-vote]",null,null,null,1510]

{"sheet":"Contacts","index":15,"n_rows":140,"n_cols":3,"rows_kept":140,"cut":false,"hidden":false,"merged":[[7,2,7,3],[13,0,13,1],[29,0,29,1],[10,2,10,3],[12,2,12,3],[84,2,84,3],[30,2,30,3],[29,2,29,3],[48,0,48,1],[100,2,100,3],[39,2,39,3],[48,2,48,3],[57,2,57,3],[92,0,92,1],[39,0,39,1],[132,0,132,1],[132,2,132,3],[76,0,76,1],[57,0,57,1],[76,2,76,3],[92,2,92,3],[67,2,67,3],[124,0,124,1],[124,2,124,3],[116,0,116,1],[116,2,116,3],[108,0,108,1],[108,2,108,3],[100,0,100,1],[58,2,58,3],[84,0,84,1]]}
[{"$f":"muni&\" - \"&\" Contact Information\"","v":"DC16 Xhariep -  Contact Information"}]
[]
["A. GENERAL INFORMATION"]
["Municipality",{"$f":"muni","v":"DC16 Xhariep"},{"$f":"IF(B4=\"Choose name from List\",\"Set name on 'Instructions' sheet\", \"\")","v":""}]
[]
["Grade",null,"1 Grade in terms of the Remuneration of Public Office Bearers Act."]
[]
["Province",{"$f":"IF(B4>\" \",VLOOKUP(B4,'Lookup and lists'!B29:C307,2, FALSE),\" \")","v":"FS FREE STATE"}]
[]
["Web Address"]
[]
["e-mail Address"]
[]
["B. CONTACT INFORMATION"]
["Postal address:"]
["P.O. Box"]
["City / Town"]
["Postal Code"]
[]
["Street address"]
["Building"]
["Street No. & Name"]
["City / Town"]
["Postal Code"]
[]
["General Contacts"]
["Telephone number"]
["Fax number"]
[]
["C. POLITICAL LEADERSHIP"]
["Speaker:",null,"Secretary/PA to the Speaker:"]
["ID Number",null,"ID Number"]
["Title",null,"Title"]
["Name",null,"Name"]
["Telephone number",null,"Telephone number"]
["Cell number",null,"Cell number"]
["Fax number",null,"Fax number"]
["E-mail address",null,"E-mail address"]
[]
["Mayor/Executive Mayor:",null,"Secretary/PA to the Mayor/Executive Mayor:"]
["ID Number",null,"ID Number"]
["Title",null,"Title"]
["Name",null,"Name"]
["Telephone number",null,"Telephone number"]
["Cell number",null,"Cell number"]
["Fax number",null,"Fax number"]
["E-mail address",null,"E-mail address"]
[]
["Deputy Mayor/Executive Mayor:",null,"Secretary/PA to the Deputy Mayor/Executive Mayor:"]
["ID Number",null,"ID Number"]
["Title",null,"Title"]
["Name",null,"Name"]
["Telephone number",null,"Telephone number"]
["Cell number",null,"Cell number"]
["Fax number",null,"Fax number"]
["E-mail address",null,"E-mail address"]
[]
["D. MANAGEMENT LEADERSHIP"]
["Municipal Manager:",null,"Secretary/PA to the Municipal Manager:"]
["ID Number",null,"ID Number"]
["Title",null,"Title"]
["Name",null,"Name"]
["Telephone number",null,"Telephone number"]
["Cell number",null,"Cell number"]
["Fax number",null,"Fax number"]
["E-mail address",null,"E-mail address"]
[]
["Chief Financial Officer",null,"Secretary/PA to the Chief Financial Officer"]
["ID Number",null,"ID Number"]
["Title",null,"Title"]
["Name","","Name"]
["Telephone number",null,"Telephone number"]
["Cell number",null,"Cell number"]
["Fax number",null,"Fax number"]
["E-mail address",null,"E-mail address"]
[]
["Official responsible for submitting financial information",null,"Official responsible for submitting financial information"]
["ID Number",null,"ID Number"]
["Title",null,"Title"]
["Name",null,"Name"]
["Telephone number",null,"Telephone number"]
["Cell number",null,"Cell number"]
["Fax number",null,"Fax number"]
["E-mail address",null,"E-mail address"]
["Official responsible for submitting financial information",null,"Official responsible for submitting financial information"]
["ID Number",null,"ID Number"]
["Title",null,"Title"]
["Name",null,"Name"]
["Telephone number",null,"Telephone number"]
["Cell number",null,"Cell number"]
["Fax number",null,"Fax number"]
["E-mail address",null,"E-mail address"]
["Official responsible for submitting financial information",null,"Official responsible for submitting financial information"]
["ID Number",null,"ID Number"]
["Title",null,"Title"]
["Name",null,"Name"]
["Telephone number",null,"Telephone number"]
["Cell number",null,"Cell number"]
["Fax number",null,"Fax number"]
["E-mail address",null,"E-mail address"]
["Official responsible for submitting financial information",null,"Official responsible for submitting financial information"]
["ID Number",null,"ID Number"]
["Title",null,"Title"]
["Name",null,"Name"]
["Telephone number",null,"Telephone number"]
["Cell number",null,"Cell number"]
["Fax number",null,"Fax number"]
["E-mail address",null,"E-mail address"]
["Official responsible for submitting financial information",null,"Official responsible for submitting financial information"]
["ID Number",null,"ID Number"]
["Title",null,"Title"]
["Name",null,"Name"]
["Telephone number",null,"Telephone number"]
["Cell number",null,"Cell number"]
["Fax number",null,"Fax number"]
["E-mail address",null,"E-mail address"]
["Official responsible for submitting financial information",null,"Official responsible for submitting financial information"]
["ID Number",null,"ID Number"]
["Title",null,"Title"]
["Name",null,"Name"]
["Telephone number",null,"Telephone number"]
["Cell number",null,"Cell number"]
["Fax number",null,"Fax number"]
["E-mail address",null,"E-mail address"]
["Official responsible for submitting financial information",null,"Official responsible for submitting financial information"]
["ID Number",null,"ID Number"]
["Title",null,"Title"]
["Name",null,"Name"]
["Telephone number",null,"Telephone number"]
["Cell number",null,"Cell number"]
["Fax number",null,"Fax number"]
["E-mail address",null,"E-mail address"]
["Official responsible for submitting financial information"]
["ID Number"]
["Title"]
["Name"]
["Telephone number"]
["Cell number"]
["Fax number"]
["E-mail address"]

{"sheet":"A1-Sum","index":16,"n_rows":65,"n_cols":11,"rows_kept":65,"cut":false,"hidden":false,"merged":[[1,8,1,10],[1,4,1,7],[0,0,0,2]]}
[{"$f":"muni&\" - \"&Approve1","v":"DC16 Xhariep - Table A1 Budget Summary"}]
[{"$f":"desc","v":"Description"},{"$f":"head1b","v":"2017/18"},{"$f":"head1A","v":"2018/19"},{"$f":"Head1","v":"2019/20"},{"$f":"Head2","v":"Current Year 2020/21"},null,null,null,{"$f":"Head3","v":"2021/22 Medium Term Revenue & Expenditure Framework"}]
["R thousands",{"$f":"Head5","v":"Audited Outcome"},{"$f":"Head5","v":"Audited Outcome"},{"$f":"Head5","v":"Audited Outcome"},{"$f":"Head6","v":"Original Budget"},{"$f":"Head7","v":"Adjusted Budget"},{"$f":"Head8","v":"Full Year Forecast"},{"$f":"Head5b","v":"Pre-audit outcome"},{"$f":"Head9","v":"Budget Year 2021/22"},{"$f":"Head10","v":"Budget Year +1 2022/23"},{"$f":"Head11","v":"Budget Year +2 2023/24"}]
["Financial Performance"]
["Property rates",{"$f":"'A4-FinPerf RE'!C5","v":0},{"$f":"'A4-FinPerf RE'!D5","v":0},{"$f":"'A4-FinPerf RE'!E5","v":0},{"$f":"'A4-FinPerf RE'!F5","v":0},{"$f":"'A4-FinPerf RE'!G5","v":0},{"$f":"'A4-FinPerf RE'!H5","v":0},{"$f":"'A4-FinPerf RE'!I5","v":0},{"$f":"'A4-FinPerf RE'!J5","v":0},{"$f":"'A4-FinPerf RE'!K5","v":0},{"$f":"'A4-FinPerf RE'!L5","v":0}]
["Service charges",{"$f":"SUM('A4-FinPerf RE'!C6:C9)","v":0},{"$f":"SUM('A4-FinPerf RE'!D6:D9)","v":0},{"$f":"SUM('A4-FinPerf RE'!E6:E9)","v":0},{"$f":"SUM('A4-FinPerf RE'!F6:F9)","v":0},{"$f":"SUM('A4-FinPerf RE'!G6:G9)","v":0},{"$f":"SUM('A4-FinPerf RE'!H6:H9)","v":0},{"$f":"SUM('A4-FinPerf RE'!I6:I9)","v":0},{"$f":"SUM('A4-FinPerf RE'!J6:J9)","v":0},{"$f":"SUM('A4-FinPerf RE'!K6:K9)","v":0},{"$f":"SUM('A4-FinPerf RE'!L6:L9)","v":0}]
["Investment revenue",{"$f":"'A4-FinPerf RE'!C12","v":0},{"$f":"'A4-FinPerf RE'!D12","v":415498},{"$f":"'A4-FinPerf RE'!E12","v":650100},{"$f":"'A4-FinPerf RE'!F12","v":871304},{"$f":"'A4-FinPerf RE'!G12","v":860000},{"$f":"'A4-FinPerf RE'!H12","v":860000},{"$f":"'A4-FinPerf RE'!I12","v":617767},{"$f":"'A4-FinPerf RE'!J12","v":620000},{"$f":"'A4-FinPerf RE'!K12","v":640000},{"$f":"'A4-FinPerf RE'!L12","v":650000}]
["Transfers recognised - operational",{"$f":"'A4-FinPerf RE'!C18","v":0},{"$f":"'A4-FinPerf RE'!D18","v":67741058},{"$f":"'A4-FinPerf RE'!E18","v":64831724},{"$f":"'A4-FinPerf RE'!F18","v":66302000},{"$f":"'A4-FinPerf RE'!G18","v":68101000},{"$f":"'A4-FinPerf RE'!H18","v":68101000},{"$f":"'A4-FinPerf RE'!I18","v":60303443},{"$f":"'A4-FinPerf RE'!J18","v":61832000},{"$f":"'A4-FinPerf RE'!K18","v":67840724},{"$f":"'A4-FinPerf RE'!L18","v":69212323}]
["Other own revenue",{"$f":"'A4-FinPerf RE'!C11+'A4-FinPerf RE'!C13+'A4-FinPerf RE'!C14+'A4-FinPerf RE'!C15+'A4-FinPerf RE'!C16+'A4-FinPerf RE'!C17+'A4-FinPerf RE'!C19+'A4-FinPerf RE'!C20","v":0},{"$f":"'A4-FinPerf RE'!D11+'A4-FinPerf RE'!D13+'A4-FinPerf RE'!D14+'A4-FinPerf RE'!D15+'A4-FinPerf RE'!D16+'A4-FinPerf RE'!D17+'A4-FinPerf RE'!D19+'A4-FinPerf RE'!D20","v":809202},{"$f":"'A4-FinPerf RE'!E11+'A4-FinPerf RE'!E13+'A4-FinPerf RE'!E14+'A4-FinPerf RE'!E15+'A4-FinPerf RE'!E16+'A4-FinPerf RE'!E17+'A4-FinPerf RE'!E19+'A4-FinPerf RE'!E20","v":2480960},{"$f":"'A4-FinPerf RE'!F11+'A4-FinPerf RE'!F13+'A4-FinPerf RE'!F14+'A4-FinPerf RE'!F15+'A4-FinPerf RE'!F16+'A4-FinPerf RE'!F17+'A4-FinPerf RE'!F19+'A4-FinPerf RE'!F20","v":773683},{"$f":"'A4-FinPerf RE'!G11+'A4-FinPerf RE'!G13+'A4-FinPerf RE'!G14+'A4-FinPerf RE'!G15+'A4-FinPerf RE'!G16+'A4-FinPerf RE'!G17+'A4-FinPerf RE'!G19+'A4-FinPerf RE'!G20","v":727183},{"$f":"'A4-FinPerf RE'!H11+'A4-FinPerf RE'!H13+'A4-FinPerf RE'!H14+'A4-FinPerf RE'!H15+'A4-FinPerf RE'!H16+'A4-FinPerf RE'!H17+'A4-FinPerf RE'!H19+'A4-FinPerf RE'!H20","v":727183},{"$f":"'A4-FinPerf RE'!I11+'A4-FinPerf RE'!I13+'A4-FinPerf RE'!I14+'A4-FinPerf RE'!I15+'A4-FinPerf RE'!I16+'A4-FinPerf RE'!I17+'A4-FinPerf RE'!I19+'A4-FinPerf RE'!I20","v":949886},{"$f":"'A4-FinPerf RE'!J11+'A4-FinPerf RE'!J13+'A4-FinPerf RE'!J14+'A4-FinPerf RE'!J15+'A4-FinPerf RE'!J16+'A4-FinPerf RE'!J17+'A4-FinPerf RE'!J19+'A4-FinPerf RE'!J20","v":1019183},{"$f":"'A4-FinPerf RE'!K11+'A4-FinPerf RE'!K13+'A4-FinPerf RE'!K14+'A4-FinPerf RE'!K15+'A4-FinPerf RE'!K16+'A4-FinPerf RE'!K17+'A4-FinPerf RE'!K19+'A4-FinPerf RE'!K20","v":267276},{"$f":"'A4-FinPerf RE'!L11+'A4-FinPerf RE'!L13+'A4-FinPerf RE'!L14+'A4-FinPerf RE'!L15+'A4-FinPerf RE'!L16+'A4-FinPerf RE'!L17+'A4-FinPerf RE'!L19+'A4-FinPerf RE'!L20","v":289676}]
[{"$f":"'A4-FinPerf RE'!A21","v":"Total Revenue (excluding capital transfers and contributions)"},{"$f":"SUM(B5:B9)","v":0},68965758,67962784,67946987,69688183,69688183,61871096,63471183,68748000,70151999]
["Employee costs",{"$f":"'A4-FinPerf RE'!C24","v":0},{"$f":"'A4-FinPerf RE'!D24","v":41321595},{"$f":"'A4-FinPerf RE'!E24","v":43703876},{"$f":"'A4-FinPerf RE'!F24","v":43559123},{"$f":"'A4-FinPerf RE'!G24","v":44675294},{"$f":"'A4-FinPerf RE'!H24","v":44675294},{"$f":"'A4-FinPerf RE'!I24","v":40087738},{"$f":"'A4-FinPerf RE'!J24","v":47147526},{"$f":"'A4-FinPerf RE'!K24","v":47560205},{"$f":"'A4-FinPerf RE'!L24","v":48540661}]
["Remuneration of councillors",{"$f":"'A4-FinPerf RE'!C25","v":0},{"$f":"'A4-FinPerf RE'!D25","v":4807726},{"$f":"'A4-FinPerf RE'!E25","v":4664371},{"$f":"'A4-FinPerf RE'!F25","v":4694284},{"$f":"'A4-FinPerf RE'!G25","v":4887284},{"$f":"'A4-FinPerf RE'!H25","v":4887284},{"$f":"'A4-FinPerf RE'!I25","v":4333448},{"$f":"'A4-FinPerf RE'!J25","v":4887284},{"$f":"'A4-FinPerf RE'!K25","v":5187750},{"$f":"'A4-FinPerf RE'!L25","v":5230869}]
["Depreciation & asset impairment",{"$f":"'A4-FinPerf RE'!C27","v":0},{"$f":"'A4-FinPerf RE'!D27","v":2651181},{"$f":"'A4-FinPerf RE'!E27","v":2109338},{"$f":"'A4-FinPerf RE'!F27","v":1660850},{"$f":"'A4-FinPerf RE'!G27","v":1810850},{"$f":"'A4-FinPerf RE'!H27","v":1810850},{"$f":"'A4-FinPerf RE'!I27","v":0},{"$f":"'A4-FinPerf RE'!J27","v":1000000},{"$f":"'A4-FinPerf RE'!K27","v":1000000},{"$f":"'A4-FinPerf RE'!L27","v":1000000}]
["Finance charges",{"$f":"'A4-FinPerf RE'!C28","v":0},{"$f":"'A4-FinPerf RE'!D28","v":323416},{"$f":"'A4-FinPerf RE'!E28","v":426919},{"$f":"'A4-FinPerf RE'!F28","v":290000},{"$f":"'A4-FinPerf RE'!G28","v":290000},{"$f":"'A4-FinPerf RE'!H28","v":290000},{"$f":"'A4-FinPerf RE'!I28","v":171481},{"$f":"'A4-FinPerf RE'!J28","v":80000},{"$f":"'A4-FinPerf RE'!K28","v":411060},{"$f":"'A4-FinPerf RE'!L28","v":433257}]
["Inventory consumed and bulk purchases",{"$f":"'A4-FinPerf RE'!C29+'A4-FinPerf RE'!C30","v":0},{"$f":"'A4-FinPerf RE'!D29+'A4-FinPerf RE'!D30","v":0},{"$f":"'A4-FinPerf RE'!E29+'A4-FinPerf RE'!E30","v":0},{"$f":"'A4-FinPerf RE'!F29+'A4-FinPerf RE'!F30","v":61685},{"$f":"'A4-FinPerf RE'!G29+'A4-FinPerf RE'!G30","v":809000},{"$f":"'A4-FinPerf RE'!H29+'A4-FinPerf RE'!H30","v":809000},{"$f":"'A4-FinPerf RE'!I29+'A4-FinPerf RE'!I30","v":74482},{"$f":"'A4-FinPerf RE'!J29+'A4-FinPerf RE'!J30","v":180000},{"$f":"'A4-FinPerf RE'!K29+'A4-FinPerf RE'!K30","v":345673},{"$f":"'A4-FinPerf RE'!L29+'A4-FinPerf RE'!L30","v":348140}]
["Transfers and grants",{"$f":"'A4-FinPerf RE'!C32","v":0},{"$f":"'A4-FinPerf RE'!D32","v":37004},{"$f":"'A4-FinPerf RE'!E32","v":97148},{"$f":"'A4-FinPerf RE'!F32","v":10000},{"$f":"'A4-FinPerf RE'!G32","v":181950},{"$f":"'A4-FinPerf RE'!H32","v":181950},{"$f":"'A4-FinPerf RE'!I32","v":81111},{"$f":"'A4-FinPerf RE'!J32","v":72000},{"$f":"'A4-FinPerf RE'!K32","v":72000},{"$f":"'A4-FinPerf RE'!L32","v":72000}]
["Other expenditure",{"$f":"'A4-FinPerf RE'!C26+'A4-FinPerf RE'!C31+'A4-FinPerf RE'!C33+'A4-FinPerf RE'!C34","v":0},{"$f":"'A4-FinPerf RE'!D26+'A4-FinPerf RE'!D31+'A4-FinPerf RE'!D33+'A4-FinPerf RE'!D34","v":12835842},{"$f":"'A4-FinPerf RE'!E26+'A4-FinPerf RE'!E31+'A4-FinPerf RE'!E33+'A4-FinPerf RE'!E34","v":16583882},{"$f":"'A4-FinPerf RE'!F26+'A4-FinPerf RE'!F31+'A4-FinPerf RE'!F33+'A4-FinPerf RE'!F34","v":17266274},{"$f":"'A4-FinPerf RE'!G26+'A4-FinPerf RE'!G31+'A4-FinPerf RE'!G33+'A4-FinPerf RE'!G34","v":16242396},{"$f":"'A4-FinPerf RE'!H26+'A4-FinPerf RE'!H31+'A4-FinPerf RE'!H33+'A4-FinPerf RE'!H34","v":16242396},{"$f":"'A4-FinPerf RE'!I26+'A4-FinPerf RE'!I31+'A4-FinPerf RE'!I33+'A4-FinPerf RE'!I34","v":11397001},{"$f":"'A4-FinPerf RE'!J26+'A4-FinPerf RE'!J31+'A4-FinPerf RE'!J33+'A4-FinPerf RE'!J34","v":9618375},{"$f":"'A4-FinPerf RE'!K26+'A4-FinPerf RE'!K31+'A4-FinPerf RE'!K33+'A4-FinPerf RE'!K34","v":14149495},{"$f":"'A4-FinPerf RE'!L26+'A4-FinPerf RE'!L31+'A4-FinPerf RE'!L33+'A4-FinPerf RE'!L34","v":14503824}]
[{"$f":"'A4-FinPerf RE'!A35","v":"Total Expenditure"},{"$f":"SUM(B11:B17)","v":0},{"$f":"SUM(C11:C17)","v":61976764},67585534,67542216,68896774,68896774,56145261,62985185,68726183,70128751]
[{"$f":"'A4-FinPerf RE'!A37","v":"Surplus/(Deficit)"},{"$f":"B10-B18","v":0},6988994,377250,404771,791409,791409,5725835,485998,21817,23248]
[{"$f":"'A4-FinPerf RE'!A38","v":"Transfers and subsidies - capital (monetary allocations) (National / Provincial and District)"},{"$f":"'A4-FinPerf RE'!C38","v":0},{"$f":"'A4-FinPerf RE'!D38","v":0},{"$f":"'A4-FinPerf RE'!E38","v":0},{"$f":"'A4-FinPerf RE'!F38","v":0},{"$f":"'A4-FinPerf RE'!G38","v":0},{"$f":"'A4-FinPerf RE'!H38","v":0},{"$f":"'A4-FinPerf RE'!I38","v":0},{"$f":"'A4-FinPerf RE'!J38","v":0},{"$f":"'A4-FinPerf RE'!K38","v":0},{"$f":"'A4-FinPerf RE'!L38","v":0}]
[{"$f":"'A4-FinPerf RE'!A39&\" & \"&'A4-FinPerf RE'!A40","v":"Transfers and subsidies - capital (monetary allocations) (National / Provincial Departmental Agencies, Households, Non-profit Institutions, Private Enterprises, Public Corporatons, Higher Educational Institutions) & Transfers and subsidies - capital (in-kind - all) "},{"$f":"'A4-FinPerf RE'!C39+'A4-FinPerf RE'!C40","v":0},{"$f":"'A4-FinPerf RE'!D39+'A4-FinPerf RE'!D40","v":0},{"$f":"'A4-FinPerf RE'!E39+'A4-FinPerf RE'!E40","v":0},{"$f":"'A4-FinPerf RE'!F39+'A4-FinPerf RE'!F40","v":0},{"$f":"'A4-FinPerf RE'!G39+'A4-FinPerf RE'!G40","v":0},{"$f":"'A4-FinPerf RE'!H39+'A4-FinPerf RE'!H40","v":0},{"$f":"'A4-FinPerf RE'!I39+'A4-FinPerf RE'!I40","v":0},{"$f":"'A4-FinPerf RE'!J39+'A4-FinPerf RE'!J40","v":0},{"$f":"'A4-FinPerf RE'!K39+'A4-FinPerf RE'!K40","v":0},{"$f":"'A4-FinPerf RE'!L39+'A4-FinPerf RE'!L40","v":0}]
[{"$f":"'A4-FinPerf RE'!A41","v":"Surplus/(Deficit) after capital transfers & contributions"},{"$f":"B19+SUM(B20:B21)","v":0},{"$f":"C19+SUM(C20:C21)","v":6988994},377250,404771,791409,791409,5725835,485998,21817,23248]
[{"$f":"'A4-FinPerf RE'!A46","v":"Share of surplus/ (deficit) of associate"},{"$f":"'A4-FinPerf RE'!C46","v":0},{"$f":"'A4-FinPerf RE'!D46","v":0},{"$f":"'A4-FinPerf RE'!E46","v":0},{"$f":"'A4-FinPerf RE'!F46","v":0},{"$f":"'A4-FinPerf RE'!G46","v":0},{"$f":"'A4-FinPerf RE'!H46","v":0},{"$f":"'A4-FinPerf RE'!I46","v":0},{"$f":"'A4-FinPerf RE'!J46","v":0},{"$f":"'A4-FinPerf RE'!K46","v":0},{"$f":"'A4-FinPerf RE'!L46","v":0}]
[{"$f":"'A4-FinPerf RE'!A47","v":"Surplus/(Deficit) for the year"},{"$f":"B22+B23","v":0},{"$f":"C22+C23","v":6988994},377250,404771,791409,791409,5725835,485998,21817,23248]
[]
["Capital expenditure & funds sources"]
["Capital expenditure",{"$f":"'A5-Capex'!C63","v":0},{"$f":"'A5-Capex'!D63","v":0},{"$f":"'A5-Capex'!E63","v":318484},{"$f":"'A5-Capex'!F63","v":404771},{"$f":"'A5-Capex'!G63","v":328000},{"$f":"'A5-Capex'!H63","v":328000},{"$f":"'A5-Capex'!I63","v":0},{"$f":"'A5-Capex'!J63","v":486000},{"$f":"'A5-Capex'!K63","v":21958},{"$f":"'A5-Capex'!L63","v":23144}]
["Transfers recognised - capital",{"$f":"'A5-Capex'!C70","v":0},{"$f":"'A5-Capex'!D70","v":0},{"$f":"'A5-Capex'!E70","v":0},{"$f":"'A5-Capex'!F70","v":0},{"$f":"'A5-Capex'!G70","v":0},{"$f":"'A5-Capex'!H70","v":0},{"$f":"'A5-Capex'!I70","v":0},{"$f":"'A5-Capex'!J70","v":0},{"$f":"'A5-Capex'!K70","v":0},{"$f":"'A5-Capex'!L70","v":0}]
[]
[{"$f":"'A5-Capex'!A72","v":"Borrowing"},{"$f":"'A5-Capex'!C72","v":0},{"$f":"'A5-Capex'!D72","v":0},{"$f":"'A5-Capex'!E72","v":0},{"$f":"'A5-Capex'!F72","v":0},{"$f":"'A5-Capex'!G72","v":0},{"$f":"'A5-Capex'!H72","v":0},{"$f":"'A5-Capex'!I72","v":0},{"$f":"'A5-Capex'!J72","v":0},{"$f":"'A5-Capex'!K72","v":0},{"$f":"'A5-Capex'!L72","v":0}]
[{"$f":"'A5-Capex'!A73","v":"Internally generated funds"},{"$f":"'A5-Capex'!C73","v":0},{"$f":"'A5-Capex'!D73","v":0},{"$f":"'A5-Capex'!E73","v":318484},{"$f":"'A5-Capex'!F73","v":404771},{"$f":"'A5-Capex'!G73","v":328000},{"$f":"'A5-Capex'!H73","v":328000},{"$f":"'A5-Capex'!I73","v":0},{"$f":"'A5-Capex'!J73","v":486000},{"$f":"'A5-Capex'!K73","v":21958},{"$f":"'A5-Capex'!L73","v":23144}]
["Total sources of capital funds",{"$f":"+B28+B30+B31","v":0},{"$f":"+C28+C30+C31","v":0},318484,404771,328000,328000,0,486000,21958,23144]
[]
["Financial position"]
[{"$f":"'A6-FinPos'!A12","v":"Total current assets"},{"$f":"'A6-FinPos'!C12","v":0},{"$f":"'A6-FinPos'!D12","v":11762808},{"$f":"'A6-FinPos'!E12","v":16410904},{"$f":"'A6-FinPos'!F12","v":0},{"$f":"'A6-FinPos'!G12","v":17039996},{"$f":"'A6-FinPos'!H12","v":17039996},{"$f":"'A6-FinPos'!I12","v":13988366},{"$f":"'A6-FinPos'!J12","v":15384684},{"$f":"'A6-FinPos'!K12","v":15994155},{"$f":"'A6-FinPos'!L12","v":16649029}]
[{"$f":"'A6-FinPos'!A24","v":"Total non current assets"},{"$f":"'A6-FinPos'!C24","v":0},{"$f":"'A6-FinPos'!D24","v":13333675},{"$f":"'A6-FinPos'!E24","v":12563930},{"$f":"'A6-FinPos'!F24","v":404771},{"$f":"'A6-FinPos'!G24","v":12891929},{"$f":"'A6-FinPos'!H24","v":12891929},{"$f":"'A6-FinPos'!I24","v":49941614},{"$f":"'A6-FinPos'!J24","v":11359418},{"$f":"'A6-FinPos'!K24","v":11279615},{"$f":"'A6-FinPos'!L24","v":11710737}]
[{"$f":"'A6-FinPos'!A34","v":"Total current liabilities"},{"$f":"'A6-FinPos'!C34","v":0},{"$f":"'A6-FinPos'!D34","v":15454484},{"$f":"'A6-FinPos'!E34","v":17591259},{"$f":"'A6-FinPos'!F34","v":0},{"$f":"'A6-FinPos'!G34","v":16846097},{"$f":"'A6-FinPos'!H34","v":16846097},{"$f":"'A6-FinPos'!I34","v":-9325088},{"$f":"'A6-FinPos'!J34","v":14970807},{"$f":"'A6-FinPos'!K34","v":14955183},{"$f":"'A6-FinPos'!L34","v":15602471}]
[{"$f":"'A6-FinPos'!A39","v":"Total non current liabilities"},{"$f":"'A6-FinPos'!C39","v":0},{"$f":"'A6-FinPos'!D39","v":545637},{"$f":"'A6-FinPos'!E39","v":2024328},{"$f":"'A6-FinPos'!F39","v":0},{"$f":"'A6-FinPos'!G39","v":0},{"$f":"'A6-FinPos'!H39","v":0},{"$f":"'A6-FinPos'!I39","v":-2024328},{"$f":"'A6-FinPos'!J39","v":1919418},{"$f":"'A6-FinPos'!K39","v":1994275},{"$f":"'A6-FinPos'!L39","v":2078035}]
["Community wealth/Equity",{"$f":"'A6-FinPos'!C48","v":0},{"$f":"'A6-FinPos'!D48","v":2145463},{"$f":"'A6-FinPos'!E48","v":2145463},{"$f":"'A6-FinPos'!F48","v":404771},{"$f":"'A6-FinPos'!G48","v":9993727},{"$f":"'A6-FinPos'!H48","v":9993727},{"$f":"'A6-FinPos'!I48","v":-120161820},{"$f":"'A6-FinPos'!J48","v":10630630},{"$f":"'A6-FinPos'!K48","v":10592523},{"$f":"'A6-FinPos'!L48","v":11037924}]
[]
["Cash flows"]
["Net cash from (used) operating",{"$f":"'A7-CFlow'!C17","v":0},{"$f":"'A7-CFlow'!D17","v":0},{"$f":"'A7-CFlow'!E17","v":23479181},{"$f":"'A7-CFlow'!F17","v":0},{"$f":"'A7-CFlow'!G17","v":66089963},{"$f":"'A7-CFlow'!H17","v":66089963},{"$f":"'A7-CFlow'!I17","v":-48895803},{"$f":"'A7-CFlow'!J17","v":2668998},{"$f":"'A7-CFlow'!K17","v":2769093},{"$f":"'A7-CFlow'!L17","v":2460317}]
["Net cash from (used) investing",{"$f":"'A7-CFlow'!C27","v":0},{"$f":"'A7-CFlow'!D27","v":0},{"$f":"'A7-CFlow'!E27","v":0},{"$f":"'A7-CFlow'!F27","v":0},{"$f":"'A7-CFlow'!G27","v":0},{"$f":"'A7-CFlow'!H27","v":0},{"$f":"'A7-CFlow'!I27","v":0},{"$f":"'A7-CFlow'!J27","v":0},{"$f":"'A7-CFlow'!K27","v":0},{"$f":"'A7-CFlow'!L27","v":0}]
["Net cash from (used) financing",{"$f":"'A7-CFlow'!C36","v":0},{"$f":"'A7-CFlow'!D36","v":0},{"$f":"'A7-CFlow'!E36","v":0},{"$f":"'A7-CFlow'!F36","v":0},{"$f":"'A7-CFlow'!G36","v":0},{"$f":"'A7-CFlow'!H36","v":0},{"$f":"'A7-CFlow'!I36","v":0},{"$f":"'A7-CFlow'!J36","v":0},{"$f":"'A7-CFlow'!K36","v":0},{"$f":"'A7-CFlow'!L36","v":0}]
[{"$f":"LEFT('A7-CFlow'!A40,37)","v":"Cash/cash equivalents at the year end"},{"$f":"'A7-CFlow'!C40","v":0},{"$f":"'A7-CFlow'!D40","v":0},{"$f":"'A7-CFlow'!E40","v":23479181},{"$f":"'A7-CFlow'!F40","v":0},{"$f":"'A7-CFlow'!G40","v":66089963},{"$f":"'A7-CFlow'!H40","v":66089963},{"$f":"'A7-CFlow'!I40","v":-48895803},{"$f":"'A7-CFlow'!J40","v":2668998},{"$f":"'A7-CFlow'!K40","v":5438091},{"$f":"'A7-CFlow'!L40","v":7898408}]
[]
["Cash backing/surplus reconciliation"]
[{"$f":"'A8-ResRecon'!A4","v":"Cash and investments available"},{"$f":"'A8-ResRecon'!C8","v":0},{"$f":"'A8-ResRecon'!D8","v":7370702},{"$f":"'A8-ResRecon'!E8","v":10676611},{"$f":"'A8-ResRecon'!F8","v":0},{"$f":"'A8-ResRecon'!G8","v":13104130},{"$f":"'A8-ResRecon'!H8","v":13104130},{"$f":"'A8-ResRecon'!I8","v":7840226},{"$f":"'A8-ResRecon'!J8","v":10796248},{"$f":"'A8-ResRecon'!K8","v":11213122},{"$f":"'A8-ResRecon'!L8","v":11667193}]
[{"$f":"'A8-ResRecon'!A10","v":"Application of cash and investments"},{"$f":"'A8-ResRecon'!C18","v":0},{"$f":"'A8-ResRecon'!D18","v":14712293},{"$f":"'A8-ResRecon'!E18","v":20286979},{"$f":"'A8-ResRecon'!F18","v":0},{"$f":"'A8-ResRecon'!G18","v":7225097},{"$f":"'A8-ResRecon'!H18","v":7225097},{"$f":"'A8-ResRecon'!I18","v":-13149404},{"$f":"'A8-ResRecon'!J18","v":9573225},{"$f":"'A8-ResRecon'!K18","v":857458},{"$f":"'A8-ResRecon'!L18","v":1656506}]
["Balance - surplus (shortfall)",{"$f":"B48-B49","v":0},{"$f":"C48-C49","v":-7341591},-9610368,0,5879033,5879033,20989630,1223023,10355664,10010687]
[]
["Asset management"]
["Asset register summary (WDV)",{"$f":"'A9-Asset'!C165","v":0},{"$f":"'A9-Asset'!D165","v":13333675},{"$f":"'A9-Asset'!E165","v":12563930},{"$f":"'A9-Asset'!F165","v":404771},{"$f":"'A9-Asset'!G165","v":12891929},{"$f":"'A9-Asset'!H165","v":12891929},{"$f":"'A9-Asset'!H165","v":12891929},{"$f":"'A9-Asset'!I165","v":11359418},{"$f":"'A9-Asset'!J165","v":11279615},{"$f":"'A9-Asset'!K165","v":11710737}]
[{"$f":"'A9-Asset'!A168","v":"Depreciation"},{"$f":"'A9-Asset'!C168","v":0},{"$f":"'A9-Asset'!D168","v":2597914},{"$f":"'A9-Asset'!E168","v":2095288},{"$f":"'A9-Asset'!F168","v":1660850},{"$f":"'A9-Asset'!G168","v":1810850},{"$f":"'A9-Asset'!H168","v":1810850},{"$f":"'A9-Asset'!H168","v":1810850},{"$f":"'A9-Asset'!I168","v":1000000},{"$f":"'A9-Asset'!J168","v":1000000},{"$f":"'A9-Asset'!K168","v":1000000}]
["Renewal and Upgrading of Existing Assets",{"$f":"'A9-Asset'!C37+'A9-Asset'!C69","v":0},{"$f":"'A9-Asset'!D37+'A9-Asset'!D69","v":0},{"$f":"'A9-Asset'!E37+'A9-Asset'!E69","v":298030},{"$f":"'A9-Asset'!F37+'A9-Asset'!F69","v":374771},{"$f":"'A9-Asset'!G37+'A9-Asset'!G69","v":328000},{"$f":"'A9-Asset'!H37+'A9-Asset'!H69","v":328000},{"$f":"'A9-Asset'!H37+'A9-Asset'!H69","v":328000},{"$f":"'A9-Asset'!I37+'A9-Asset'!I69","v":486000},{"$f":"'A9-Asset'!J37+'A9-Asset'!J69","v":21958},{"$f":"'A9-Asset'!K37+'A9-Asset'!K69","v":23144}]
["Repairs and Maintenance",{"$f":"'A9-Asset'!C169","v":0},{"$f":"'A9-Asset'!D169","v":212836},{"$f":"'A9-Asset'!E169","v":436862},{"$f":"'A9-Asset'!F169","v":455000},{"$f":"'A9-Asset'!G169","v":663000},{"$f":"'A9-Asset'!H169","v":663000},{"$f":"'A9-Asset'!H169","v":663000},{"$f":"'A9-Asset'!I169","v":215000},{"$f":"'A9-Asset'!J169","v":447300},{"$f":"'A9-Asset'!K169","v":610760}]
[]
["Free services"]
["Cost of Free Basic Services provided",{"$f":"'A10-SerDel'!C60","v":0},{"$f":"'A10-SerDel'!D60","v":0},{"$f":"'A10-SerDel'!E60","v":0},{"$f":"'A10-SerDel'!F60","v":0},{"$f":"'A10-SerDel'!G60","v":0},{"$f":"'A10-SerDel'!H60","v":0},{"$f":"'A10-SerDel'!I60","v":0},{"$f":"'A10-SerDel'!I60","v":0},{"$f":"'A10-SerDel'!J60","v":0},{"$f":"'A10-SerDel'!K60","v":0}]
["Revenue cost of free services provided",{"$f":"'A10-SerDel'!C79","v":0},{"$f":"'A10-SerDel'!D79","v":0},{"$f":"'A10-SerDel'!E79","v":0},{"$f":"'A10-SerDel'!F79","v":0},{"$f":"'A10-SerDel'!G79","v":0},{"$f":"'A10-SerDel'!H79","v":0},{"$f":"'A10-SerDel'!I79","v":0},{"$f":"'A10-SerDel'!I79","v":0},{"$f":"'A10-SerDel'!J79","v":0},{"$f":"'A10-SerDel'!K79","v":0}]
["Households below minimum service level"]
[{"$f":"'A10-SerDel'!A5","v":"Water:"},{"$f":"'A10-SerDel'!C14","v":0},{"$f":"'A10-SerDel'!D14","v":0},{"$f":"'A10-SerDel'!E14","v":0},{"$f":"'A10-SerDel'!F14","v":0},{"$f":"'A10-SerDel'!G14","v":0},{"$f":"'A10-SerDel'!H14","v":0},{"$f":"'A10-SerDel'!I14","v":0},{"$f":"'A10-SerDel'!I14","v":0},{"$f":"'A10-SerDel'!J14","v":0},{"$f":"'A10-SerDel'!K14","v":0}]
[{"$f":"'A10-SerDel'!A16","v":"Sanitation/sewerage:"},{"$f":"'A10-SerDel'!C26","v":0},{"$f":"'A10-SerDel'!D26","v":0},{"$f":"'A10-SerDel'!E26","v":0},{"$f":"'A10-SerDel'!F26","v":0},{"$f":"'A10-SerDel'!G26","v":0},{"$f":"'A10-SerDel'!H26","v":0},{"$f":"'A10-SerDel'!I26","v":0},{"$f":"'A10-SerDel'!I26","v":0},{"$f":"'A10-SerDel'!J26","v":0},{"$f":"'A10-SerDel'!K26","v":0}]
[{"$f":"'A10-SerDel'!A28","v":"Energy:"},{"$f":"'A10-SerDel'!C35","v":0},{"$f":"'A10-SerDel'!D35","v":0},{"$f":"'A10-SerDel'!E35","v":0},{"$f":"'A10-SerDel'!F35","v":0},{"$f":"'A10-SerDel'!G35","v":0},{"$f":"'A10-SerDel'!H35","v":0},{"$f":"'A10-SerDel'!I35","v":0},{"$f":"'A10-SerDel'!I35","v":0},{"$f":"'A10-SerDel'!J35","v":0},{"$f":"'A10-SerDel'!K35","v":0}]
[{"$f":"'A10-SerDel'!A37","v":"Refuse:"},{"$f":"'A10-SerDel'!C45","v":0},{"$f":"'A10-SerDel'!D45","v":0},{"$f":"'A10-SerDel'!E45","v":0},{"$f":"'A10-SerDel'!F45","v":0},{"$f":"'A10-SerDel'!G45","v":0},{"$f":"'A10-SerDel'!H45","v":0},{"$f":"'A10-SerDel'!I45","v":0},{"$f":"'A10-SerDel'!I45","v":0},{"$f":"'A10-SerDel'!J45","v":0},{"$f":"'A10-SerDel'!K45","v":0}]

{"sheet":"A2-FinPerf SC","index":17,"n_rows":58,"n_cols":11,"rows_kept":58,"cut":false,"hidden":false,"merged":[[53,0,53,10],[1,5,1,7],[1,8,1,10]]}
[{"$f":"muni&\" - \"&Approve3","v":"DC16 Xhariep - Table A2 Budgeted Financial Performance (revenue and expenditure by functional classification)"}]
[{"$f":"\"Functional Classification \"&desc","v":"Functional Classification Description"},{"$f":"head27","v":"Ref"},{"$f":"head1b","v":"2017/18"},{"$f":"head1A","v":"2018/19"},{"$f":"Head1","v":"2019/20"},{"$f":"Head2","v":"Current Year 2020/21"},null,null,{"$f":"Head3","v":"2021/22 Medium Term Revenue & Expenditure Framework"}]
["R thousand",1,{"$f":"Head5","v":"Audited Outcome"},{"$f":"Head5","v":"Audited Outcome"},{"$f":"Head5","v":"Audited Outcome"},{"$f":"Head6","v":"Original Budget"},{"$f":"Head7","v":"Adjusted Budget"},{"$f":"Head8","v":"Full Year Forecast"},{"$f":"Head9","v":"Budget Year 2021/22"},{"$f":"Head10","v":"Budget Year +1 2022/23"},{"$f":"Head11","v":"Budget Year +2 2023/24"}]
["Revenue - Functional"]
["Governance and administration",null,{"$f":"SUM(C6:C8)","v":0},{"$f":"SUM(D6:D8)","v":53865280},52341615,52808199,54099645,54099645,48558645,53376476,54382468]
["Executive and council",null,{"$f":"A2A!C6","v":0},{"$f":"A2A!D6","v":15857799},{"$f":"A2A!E6","v":15595354},{"$f":"A2A!F6","v":14666057},{"$f":"A2A!G6","v":15115807},{"$f":"A2A!H6","v":15115807},{"$f":"A2A!I6","v":13082807},{"$f":"A2A!J6","v":25325600},{"$f":"A2A!K6","v":25641200}]
["Finance and administration",null,{"$f":"A2A!C9","v":0},{"$f":"A2A!D9","v":38007481},{"$f":"A2A!E9","v":36746261},{"$f":"A2A!F9","v":38142142},{"$f":"A2A!G9","v":38983838},{"$f":"A2A!H9","v":38983838},{"$f":"A2A!I9","v":35475838},{"$f":"A2A!J9","v":28050876},{"$f":"A2A!K9","v":28741268}]
["Internal audit",null,{"$f":"A2A!C23","v":0},{"$f":"A2A!D23","v":0},{"$f":"A2A!E23","v":0},{"$f":"A2A!F23","v":0},{"$f":"A2A!G23","v":0},{"$f":"A2A!H23","v":0},{"$f":"A2A!I23","v":0},{"$f":"A2A!J23","v":0},{"$f":"A2A!K23","v":0}]
["Community and public safety",null,{"$f":"SUM(C10:C14)","v":0},{"$f":"SUM(D10:D14)","v":0},0,0,0,0,0,0,0]
["Community and social services",null,{"$f":"A2A!C26","v":0},{"$f":"A2A!D26","v":0},{"$f":"A2A!E26","v":0},{"$f":"A2A!F26","v":0},{"$f":"A2A!G26","v":0},{"$f":"A2A!H26","v":0},{"$f":"A2A!I26","v":0},{"$f":"A2A!J26","v":0},{"$f":"A2A!K26","v":0}]
["Sport and recreation",null,{"$f":"A2A!C48","v":0},{"$f":"A2A!D48","v":0},{"$f":"A2A!E48","v":0},{"$f":"A2A!F48","v":0},{"$f":"A2A!G48","v":0},{"$f":"A2A!H48","v":0},{"$f":"A2A!I48","v":0},{"$f":"A2A!J48","v":0},{"$f":"A2A!K48","v":0}]
["Public safety",null,{"$f":"A2A!C54","v":0},{"$f":"A2A!D54","v":0},{"$f":"A2A!E54","v":0},{"$f":"A2A!F54","v":0},{"$f":"A2A!G54","v":0},{"$f":"A2A!H54","v":0},{"$f":"A2A!I54","v":0},{"$f":"A2A!J54","v":0},{"$f":"A2A!K54","v":0}]
["Housing",null,{"$f":"A2A!C63","v":0},{"$f":"A2A!D63","v":0},{"$f":"A2A!E63","v":0},{"$f":"A2A!F63","v":0},{"$f":"A2A!G63","v":0},{"$f":"A2A!H63","v":0},{"$f":"A2A!I63","v":0},{"$f":"A2A!J63","v":0},{"$f":"A2A!K63","v":0}]
["Health",null,{"$f":"A2A!C66","v":0},{"$f":"A2A!D66","v":0},{"$f":"A2A!E66","v":0},{"$f":"A2A!F66","v":0},{"$f":"A2A!G66","v":0},{"$f":"A2A!H66","v":0},{"$f":"A2A!I66","v":0},{"$f":"A2A!J66","v":0},{"$f":"A2A!K66","v":0}]
["Economic and environmental services",null,{"$f":"SUM(C16:C18)","v":0},{"$f":"SUM(D16:D18)","v":15100478},15621169,15138788,15588538,15588538,14912538,15371524,15769531]
["Planning and development",null,{"$f":"A2A!C76","v":0},{"$f":"A2A!D76","v":15100478},{"$f":"A2A!E76","v":15621169},{"$f":"A2A!F76","v":15138788},{"$f":"A2A!G76","v":15588538},{"$f":"A2A!H76","v":15588538},{"$f":"A2A!I76","v":14912538},{"$f":"A2A!J76","v":15371524},{"$f":"A2A!K76","v":15769531}]
["Road transport",null,{"$f":"A2A!C87","v":0},{"$f":"A2A!D87","v":0},{"$f":"A2A!E87","v":0},{"$f":"A2A!F87","v":0},{"$f":"A2A!G87","v":0},{"$f":"A2A!H87","v":0},{"$f":"A2A!I87","v":0},{"$f":"A2A!J87","v":0},{"$f":"A2A!K87","v":0}]
["Environmental protection",null,{"$f":"A2A!C92","v":0},{"$f":"A2A!D92","v":0},{"$f":"A2A!E92","v":0},{"$f":"A2A!F92","v":0},{"$f":"A2A!G92","v":0},{"$f":"A2A!H92","v":0},{"$f":"A2A!I92","v":0},{"$f":"A2A!J92","v":0},{"$f":"A2A!K92","v":0}]
["Trading services",null,{"$f":"SUM(C20:C23)","v":0},{"$f":"SUM(D20:D23)","v":0},0,0,0,0,0,{"$f":"SUM(J20:J23)","v":0},0]
["Energy sources",null,{"$f":"A2A!C100","v":0},{"$f":"A2A!D100","v":0},{"$f":"A2A!E100","v":0},{"$f":"A2A!F100","v":0},{"$f":"A2A!G100","v":0},{"$f":"A2A!H100","v":0},{"$f":"A2A!I100","v":0},{"$f":"A2A!J100","v":0},{"$f":"A2A!K100","v":0}]
["Water management",null,{"$f":"A2A!C104","v":0},{"$f":"A2A!D104","v":0},{"$f":"A2A!E104","v":0},{"$f":"A2A!F104","v":0},{"$f":"A2A!G104","v":0},{"$f":"A2A!H104","v":0},{"$f":"A2A!I104","v":0},{"$f":"A2A!J104","v":0},{"$f":"A2A!K104","v":0}]
["Waste water management",null,{"$f":"A2A!C108","v":0},{"$f":"A2A!D108","v":0},{"$f":"A2A!E108","v":0},{"$f":"A2A!F108","v":0},{"$f":"A2A!G108","v":0},{"$f":"A2A!H108","v":0},{"$f":"A2A!I108","v":0},{"$f":"A2A!J108","v":0},{"$f":"A2A!K108","v":0}]
["Waste management",null,{"$f":"A2A!C113","v":0},{"$f":"A2A!D113","v":0},{"$f":"A2A!E113","v":0},{"$f":"A2A!F113","v":0},{"$f":"A2A!G113","v":0},{"$f":"A2A!H113","v":0},{"$f":"A2A!I113","v":0},{"$f":"A2A!J113","v":0},{"$f":"A2A!K113","v":0}]
["Other",4,{"$f":"A2A!C118","v":0},{"$f":"A2A!D118","v":0},{"$f":"A2A!E118","v":0},{"$f":"A2A!F118","v":0},{"$f":"A2A!G118","v":0},{"$f":"A2A!H118","v":0},{"$f":"A2A!I118","v":0},{"$f":"A2A!J118","v":0},{"$f":"A2A!K118","v":0}]
[{"$f":"\"Total \"&A4","v":"Total Revenue - Functional"},2,{"$f":"C5+C9+C15+C19+C24","v":0},{"$f":"D5+D9+D15+D19+D24","v":68965758},{"$f":"E5+E9+E15+E19+E24","v":67962784},67946987,69688183,69688183,{"$f":"I5+I9+I15+I19+I24","v":63471183},68748000,70151999]
[]
["Expenditure - Functional"]
["Governance and administration",null,{"$f":"SUM(C29:C31)","v":0},{"$f":"SUM(D29:D31)","v":48233356},54453172,52811588,53917590,53917590,47717561,53096604,54099077]
["Executive and council",null,{"$f":"A2A!C129","v":0},{"$f":"A2A!D129","v":15725174},{"$f":"A2A!E129","v":15336236},{"$f":"A2A!F129","v":16002895},{"$f":"A2A!G129","v":15536359},{"$f":"A2A!H129","v":15536359},{"$f":"A2A!I129","v":13776650},{"$f":"A2A!J129","v":15327072},{"$f":"A2A!K129","v":15718132}]
["Finance and administration",null,{"$f":"A2A!C132","v":0},{"$f":"A2A!D132","v":32508182},{"$f":"A2A!E132","v":39116936},{"$f":"A2A!F132","v":36808693},{"$f":"A2A!G132","v":38381231},{"$f":"A2A!H132","v":38381231},{"$f":"A2A!I132","v":33940911},{"$f":"A2A!J132","v":37769532},{"$f":"A2A!K132","v":38380945}]
["Internal audit",null,{"$f":"A2A!C146","v":0},{"$f":"A2A!D146","v":0},{"$f":"A2A!E146","v":0},{"$f":"A2A!F146","v":0},{"$f":"A2A!G146","v":0},{"$f":"A2A!H146","v":0},{"$f":"A2A!I146","v":0},{"$f":"A2A!J146","v":0},{"$f":"A2A!K146","v":0}]
["Community and public safety",null,{"$f":"SUM(C33:C37)","v":0},{"$f":"SUM(D33:D37)","v":12196},670,500000,750000,750000,150000,300000,300000]
["Community and social services",null,{"$f":"A2A!C149","v":0},{"$f":"A2A!D149","v":12196},{"$f":"A2A!E149","v":670},{"$f":"A2A!F149","v":500000},{"$f":"A2A!G149","v":750000},{"$f":"A2A!H149","v":750000},{"$f":"A2A!I149","v":150000},{"$f":"A2A!J149","v":300000},{"$f":"A2A!K149","v":300000}]
["Sport and recreation",null,{"$f":"A2A!C171","v":0},{"$f":"A2A!D171","v":0},{"$f":"A2A!E171","v":0},{"$f":"A2A!F171","v":0},{"$f":"A2A!G171","v":0},{"$f":"A2A!H171","v":0},{"$f":"A2A!I171","v":0},{"$f":"A2A!J171","v":0},{"$f":"A2A!K171","v":0}]
["Public safety",null,{"$f":"A2A!C177","v":0},{"$f":"A2A!D177","v":0},{"$f":"A2A!E177","v":0},{"$f":"A2A!F177","v":0},{"$f":"A2A!G177","v":0},{"$f":"A2A!H177","v":0},{"$f":"A2A!I177","v":0},{"$f":"A2A!J177","v":0},{"$f":"A2A!K177","v":0}]
["Housing",null,{"$f":"A2A!C186","v":0},{"$f":"A2A!D186","v":0},{"$f":"A2A!E186","v":0},{"$f":"A2A!F186","v":0},{"$f":"A2A!G186","v":0},{"$f":"A2A!H186","v":0},{"$f":"A2A!I186","v":0},{"$f":"A2A!J186","v":0},{"$f":"A2A!K186","v":0}]
["Health",null,{"$f":"A2A!C189","v":0},{"$f":"A2A!D189","v":0},{"$f":"A2A!E189","v":0},{"$f":"A2A!F189","v":0},{"$f":"A2A!G189","v":0},{"$f":"A2A!H189","v":0},{"$f":"A2A!I189","v":0},{"$f":"A2A!J189","v":0},{"$f":"A2A!K189","v":0}]
["Economic and environmental services",null,{"$f":"SUM(C39:C41)","v":0},{"$f":"SUM(D39:D41)","v":13769309},13246063,14230628,14229184,14229184,15117624,15329579,15729674]
["Planning and development",null,{"$f":"A2A!C199","v":0},{"$f":"A2A!D199","v":13722082},{"$f":"A2A!E199","v":13246063},{"$f":"A2A!F199","v":13730628},{"$f":"A2A!G199","v":14229184},{"$f":"A2A!H199","v":14229184},{"$f":"A2A!I199","v":15117624},{"$f":"A2A!J199","v":15329579},{"$f":"A2A!K199","v":15729674}]
["Road transport",null,{"$f":"A2A!C210","v":0},{"$f":"A2A!D210","v":0},{"$f":"A2A!E210","v":0},{"$f":"A2A!F210","v":0},{"$f":"A2A!G210","v":0},{"$f":"A2A!H210","v":0},{"$f":"A2A!I210","v":0},{"$f":"A2A!J210","v":0},{"$f":"A2A!K210","v":0}]
["Environmental protection",null,{"$f":"A2A!C215","v":0},{"$f":"A2A!D215","v":47227},{"$f":"A2A!E215","v":0},{"$f":"A2A!F215","v":500000},{"$f":"A2A!G215","v":0},{"$f":"A2A!H215","v":0},{"$f":"A2A!I215","v":0},{"$f":"A2A!J215","v":0},{"$f":"A2A!K215","v":0}]
["Trading services",null,{"$f":"SUM(C43:C46)","v":0},{"$f":"SUM(D43:D46)","v":0},0,{"$f":"SUM(F43:F46)","v":0},0,0,0,0,{"$f":"SUM(K43:K46)","v":0}]
["Energy sources",null,{"$f":"A2A!C223","v":0},{"$f":"A2A!D223","v":0},{"$f":"A2A!E223","v":0},{"$f":"A2A!F223","v":0},{"$f":"A2A!G223","v":0},{"$f":"A2A!H223","v":0},{"$f":"A2A!I223","v":0},{"$f":"A2A!J223","v":0},{"$f":"A2A!K223","v":0}]
["Water management",null,{"$f":"A2A!C227","v":0},{"$f":"A2A!D227","v":0},{"$f":"A2A!E227","v":0},{"$f":"A2A!F227","v":0},{"$f":"A2A!G227","v":0},{"$f":"A2A!H227","v":0},{"$f":"A2A!I227","v":0},{"$f":"A2A!J227","v":0},{"$f":"A2A!K227","v":0}]
["Waste water management",null,{"$f":"A2A!C231","v":0},{"$f":"A2A!D231","v":0},{"$f":"A2A!E231","v":0},{"$f":"A2A!F231","v":0},{"$f":"A2A!G231","v":0},{"$f":"A2A!H231","v":0},{"$f":"A2A!I231","v":0},{"$f":"A2A!J231","v":0},{"$f":"A2A!K231","v":0}]
["Waste management",null,{"$f":"A2A!C236","v":0},{"$f":"A2A!D236","v":0},{"$f":"A2A!E236","v":0},{"$f":"A2A!F236","v":0},{"$f":"A2A!G236","v":0},{"$f":"A2A!H236","v":0},{"$f":"A2A!I236","v":0},{"$f":"A2A!J236","v":0},{"$f":"A2A!K236","v":0}]
["Other",4,{"$f":"A2A!C241","v":0},{"$f":"A2A!D241","v":0},{"$f":"A2A!E241","v":0},{"$f":"A2A!F241","v":0},{"$f":"A2A!G241","v":0},{"$f":"A2A!H241","v":0},{"$f":"A2A!I241","v":0},{"$f":"A2A!J241","v":0},{"$f":"A2A!K241","v":0}]
[{"$f":"\"Total \"&A27","v":"Total Expenditure - Functional"},3,{"$f":"C28+C32+C38+C42+C47","v":0},{"$f":"D28+D32+D38+D42+D47","v":62014861},{"$f":"E28+E32+E38+E42+E47","v":67699905},{"$f":"F28+F32+F38+F42+F47","v":67542216},68896774,68896774,62985185,68726183,70128751]
[{"$f":"result","v":"Surplus/(Deficit) for the year"},null,{"$f":"C25-C48","v":0},{"$f":"D25-D48","v":6950897},262879,404771,791409,791409,485998,21817,23248]
[{"$f":"head27a","v":"References"}]
["1. Government Finance Statistics Functions and Sub-functions are standardised to assist the compilation of national and international accounts for comparison purposes"]
["2. Total Revenue by functional classification must reconcile to Total Operating Revenue shown in Budgeted Financial Performance (revenue and expenditure)"]
["3. Total Expenditure by Functional Classification must reconcile to Total Operating Expenditure shown in Budgeted Financial Performance (revenue and expenditure)"]
["4. All amounts must be classified under a functional classification . The GFS function 'Other' is only for Abbatoirs, Air Transport,  Forestry, Licensing and Regulation, Markets and Tourism - and if used must be supported by footnotes. Nothing else may be placed under 'Other'. Assign associate share to relevant classification."]
[]
[]
["check oprev balance",null,{"$f":"C25-'A4-FinPerf RE'!C59","v":0},{"$f":"D25-'A4-FinPerf RE'!D59","v":0},{"$f":"E25-'A4-FinPerf RE'!E59","v":0},{"$f":"F25-'A4-FinPerf RE'!F59","v":0},{"$f":"G25-'A4-FinPerf RE'!G59","v":0},{"$f":"H25-'A4-FinPerf RE'!H59","v":0},{"$f":"I25-'A4-FinPerf RE'!J59","v":0},{"$f":"J25-'A4-FinPerf RE'!K59","v":0},{"$f":"K25-'A4-FinPerf RE'!L59","v":0}]
["check opexp balance",null,{"$f":"C48-'A4-FinPerf RE'!C35","v":0},{"$f":"D48-'A4-FinPerf RE'!D35","v":38097},{"$f":"E48-'A4-FinPerf RE'!E35","v":114371},{"$f":"F48-'A4-FinPerf RE'!F35","v":0},{"$f":"G48-'A4-FinPerf RE'!G35","v":0},{"$f":"H48-'A4-FinPerf RE'!H35","v":0},{"$f":"I48-'A4-FinPerf RE'!J35","v":0},{"$f":"J48-'A4-FinPerf RE'!K35","v":0},{"$f":"K48-'A4-FinPerf RE'!L35","v":0}]

{"sheet":"A2A","index":18,"n_rows":258,"n_cols":30,"rows_kept":258,"cut":false,"hidden":false,"merged":[[1,5,1,7],[1,8,1,10],[253,0,253,10]]}
[{"$f":"muni&\" - \"&Approve3","v":"DC16 Xhariep - Table A2 Budgeted Financial Performance (revenue and expenditure by functional classification)"}]
[{"$f":"\"Functional Classification \"&desc","v":"Functional Classification Description"},{"$f":"head27","v":"Ref"},{"$f":"head1b","v":"2017/18"},{"$f":"head1A","v":"2018/19"},{"$f":"Head1","v":"2019/20"},{"$f":"Head2","v":"Current Year 2020/21"},null,null,{"$f":"Head3","v":"2021/22 Medium Term Revenue & Expenditure Framework"}]
["R thousand",1,{"$f":"Head5","v":"Audited Outcome"},{"$f":"Head5","v":"Audited Outcome"},{"$f":"Head5","v":"Audited Outcome"},{"$f":"Head6","v":"Original Budget"},{"$f":"Head7","v":"Adjusted Budget"},{"$f":"Head8","v":"Full Year Forecast"},{"$f":"Head9","v":"Budget Year 2021/22"},{"$f":"Head10","v":"Budget Year +1 2022/23"},{"$f":"Head11","v":"Budget Year +2 2023/24"}]
["Revenue - Functional"]
["Municipal governance and administration",null,{"$f":"C6+C9+C23","v":0},53865280,52341615,52808199,54099645,54099645,48558645,53376476,54382468]
["Executive and council",null,{"$f":"SUM(C7:C8)","v":0},{"$f":"SUM(D7:D8)","v":15857799},15595354,14666057,15115807,15115807,13082807,25325600,25641200]
["Mayor and Council",null,{"$f":"SUMIFS(Sheet1!S71_PPPYearAmount,Sheet1!S71_A2SubCode,$AC:$AC,Sheet1!S71_ItemType,$AD:$AD)","v":0},{"$f":"SUMIFS(Sheet1!S71_PPYearAmount,Sheet1!S71_A2SubCode,$AC:$AC,Sheet1!S71_ItemType,$AD:$AD)","v":6776332},{"$f":"SUMIFS(Sheet1!S71_PYearAmount,Sheet1!S71_A2SubCode,$AC:$AC,Sheet1!S71_ItemType,$AD:$AD)","v":6664184},{"$f":"-SUMIFS(Sheet1!S71_OriginalBudAmnt,Sheet1!S71_A2SubCode,$AC:$AC,Sheet1!S71_ItemType,$AD:$AD)","v":6436301},{"$f":"-SUMIFS(Sheet1!S71_AdjustmentBudAmnt,Sheet1!S71_A2SubCode,$AC:$AC,Sheet1!S71_ItemType,$AD:$AD)","v":6436301},{"$f":"-SUMIFS(Sheet1!S71_AdjustmentBudAmnt,Sheet1!S71_A2SubCode,$AC:$AC,Sheet1!S71_ItemType,$AD:$AD)","v":6436301},{"$f":"-SUMIFS(Sheet1!S71_ASBudgetAmount,Sheet1!S71_A2SubCode,$AC:$AC,Sheet1!S71_ItemType,$AD:$AD)","v":6156301},{"$f":"-SUMIFS(Sheet1!S71_OY1BudgetAmount,Sheet1!S71_A2SubCode,$AC:$AC,Sheet1!S71_ItemType,$AD:$AD)","v":12662800},{"$f":"-SUMIFS(Sheet1!S71_OY2BudgetAmount,Sheet1!S71_A2SubCode,$AC:$AC,Sheet1!S71_ItemType,$AD:$AD)","v":12737600},null,null,null,null,null,null,null,null,null,null,null,null,null,null,null,null,null,1110,"IR"]
["Municipal Manager, Town Secretary and Chief Executive",null,{"$f":"SUMIFS(Sheet1!S71_PPPYearAmount,Sheet1!S71_A2SubCode,$AC:$AC,Sheet1!S71_ItemType,$AD:$AD)","v":0},{"$f":"SUMIFS(Sheet1!S71_PPYearAmount,Sheet1!S71_A2SubCode,$AC:$AC,Sheet1!S71_ItemType,$AD:$AD)","v":9081467},{"$f":"SUMIFS(Sheet1!S71_PYearAmount,Sheet1!S71_A2SubCode,$AC:$AC,Sheet1!S71_ItemType,$AD:$AD)","v":8931170},{"$f":"-SUMIFS(Sheet1!S71_OriginalBudAmnt,Sheet1!S71_A2SubCode,$AC:$AC,Sheet1!S71_ItemType,$AD:$AD)","v":8229756},{"$f":"-SUMIFS(Sheet1!S71_AdjustmentBudAmnt,Sheet1!S71_A2SubCode,$AC:$AC,Sheet1!S71_ItemType,$AD:$AD)","v":8679506},{"$f":"-SUMIFS(Sheet1!S71_AdjustmentBudAmnt,Sheet1!S71_A2SubCode,$AC:$AC,Sheet1!S71_ItemType,$AD:$AD)","v":8679506},{"$f":"-SUMIFS(Sheet1!S71_ASBudgetAmount,Sheet1!S71_A2SubCode,$AC:$AC,Sheet1!S71_ItemType,$AD:$AD)","v":6926506},{"$f":"-SUMIFS(Sheet1!S71_OY1BudgetAmount,Sheet1!S71_A2SubCode,$AC:$AC,Sheet1!S71_ItemType,$AD:$AD)","v":12662800},{"$f":"-SUMIFS(Sheet1!S71_OY2BudgetAmount,Sheet1!S71_A2SubCode,$AC:$AC,Sheet1!S71_ItemType,$AD:$AD)","v":12903600},null,null,null,null,null,null,null,null,null,null,null,null,null,null,null,null,null,1120,"IR"]
["Finance and administration",null,{"$f":"SUM(C10:C22)","v":0},38007481,36746261,38142142,38983838,38983838,35475838,28050876,28741268]
["Administrative and Corporate Support",null,{"$f":"SUMIFS(Sheet1!S71_PPPYearAmount,Sheet1!S71_A2SubCode,$AC:$AC,Sheet1!S71_ItemType,$AD:$AD)","v":0},{"$f":"SUMIFS(Sheet1!S71_PPYearAmount,Sheet1!S71_A2SubCode,$AC:$AC,Sheet1!S71_ItemType,$AD:$AD)","v":20994448},{"$f":"SUMIFS(Sheet1!S71_PYearAmount,Sheet1!S71_A2SubCode,$AC:$AC,Sheet1!S71_ItemType,$AD:$AD)","v":21393405},{"$f":"-SUMIFS(Sheet1!S71_OriginalBudAmnt,Sheet1!S71_A2SubCode,$AC:$AC,Sheet1!S71_ItemType,$AD:$AD)","v":21666230},{"$f":"-SUMIFS(Sheet1!S71_AdjustmentBudAmnt,Sheet1!S71_A2SubCode,$AC:$AC,Sheet1!S71_ItemType,$AD:$AD)","v":22115980},{"$f":"-SUMIFS(Sheet1!S71_AdjustmentBudAmnt,Sheet1!S71_A2SubCode,$AC:$AC,Sheet1!S71_ItemType,$AD:$AD)","v":22115980},{"$f":"-SUMIFS(Sheet1!S71_ASBudgetAmount,Sheet1!S71_A2SubCode,$AC:$AC,Sheet1!S71_ItemType,$AD:$AD)","v":19533980},{"$f":"-SUMIFS(Sheet1!S71_OY1BudgetAmount,Sheet1!S71_A2SubCode,$AC:$AC,Sheet1!S71_ItemType,$AD:$AD)","v":12760800},{"$f":"-SUMIFS(Sheet1!S71_OY2BudgetAmount,Sheet1!S71_A2SubCode,$AC:$AC,Sheet1!S71_ItemType,$AD:$AD)","v":13339600},null,null,null,null,null,null,null,null,null,null,null,null,null,null,null,null,null,1201,"IR"]
["Asset Management",null,{"$f":"SUMIFS(Sheet1!S71_PPPYearAmount,Sheet1!S71_A2SubCode,$AC:$AC,Sheet1!S71_ItemType,$AD:$AD)","v":0},{"$f":"SUMIFS(Sheet1!S71_PPYearAmount,Sheet1!S71_A2SubCode,$AC:$AC,Sheet1!S71_ItemType,$AD:$AD)","v":0},{"$f":"SUMIFS(Sheet1!S71_PYearAmount,Sheet1!S71_A2SubCode,$AC:$AC,Sheet1!S71_ItemType,$AD:$AD)","v":0},{"$f":"-SUMIFS(Sheet1!S71_OriginalBudAmnt,Sheet1!S71_A2SubCode,$AC:$AC,Sheet1!S71_ItemType,$AD:$AD)","v":0},{"$f":"-SUMIFS(Sheet1!S71_AdjustmentBudAmnt,Sheet1!S71_A2SubCode,$AC:$AC,Sheet1!S71_ItemType,$AD:$AD)","v":0},{"$f":"-SUMIFS(Sheet1!S71_AdjustmentBudAmnt,Sheet1!S71_A2SubCode,$AC:$AC,Sheet1!S71_ItemType,$AD:$AD)","v":0},{"$f":"-SUMIFS(Sheet1!S71_ASBudgetAmount,Sheet1!S71_A2SubCode,$AC:$AC,Sheet1!S71_ItemType,$AD:$AD)","v":0},{"$f":"-SUMIFS(Sheet1!S71_OY1BudgetAmount,Sheet1!S71_A2SubCode,$AC:$AC,Sheet1!S71_ItemType,$AD:$AD)","v":0},{"$f":"-SUMIFS(Sheet1!S71_OY2BudgetAmount,Sheet1!S71_A2SubCode,$AC:$AC,Sheet1!S71_ItemType,$AD:$AD)","v":0},null,null,null,null,null,null,null,null,null,null,null,null,null,null,null,null,null,1202,"IR"]
["Finance",null,{"$f":"SUMIFS(Sheet1!S71_PPPYearAmount,Sheet1!S71_A2SubCode,$AC:$AC,Sheet1!S71_ItemType,$AD:$AD)","v":0},{"$f":"SUMIFS(Sheet1!S71_PPYearAmount,Sheet1!S71_A2SubCode,$AC:$AC,Sheet1!S71_ItemType,$AD:$AD)","v":17013033},{"$f":"SUMIFS(Sheet1!S71_PYearAmount,Sheet1!S71_A2SubCode,$AC:$AC,Sheet1!S71_ItemType,$AD:$AD)","v":15352856},{"$f":"-SUMIFS(Sheet1!S71_OriginalBudAmnt,Sheet1!S71_A2SubCode,$AC:$AC,Sheet1!S71_ItemType,$AD:$AD)","v":16475912},{"$f":"-SUMIFS(Sheet1!S71_AdjustmentBudAmnt,Sheet1!S71_A2SubCode,$AC:$AC,Sheet1!S71_ItemType,$AD:$AD)","v":16867858},{"$f":"-SUMIFS(Sheet1!S71_AdjustmentBudAmnt,Sheet1!S71_A2SubCode,$AC:$AC,Sheet1!S71_ItemType,$AD:$AD)","v":16867858},{"$f":"-SUMIFS(Sheet1!S71_ASBudgetAmount,Sheet1!S71_A2SubCode,$AC:$AC,Sheet1!S71_ItemType,$AD:$AD)","v":15941858},{"$f":"-SUMIFS(Sheet1!S71_OY1BudgetAmount,Sheet1!S71_A2SubCode,$AC:$AC,Sheet1!S71_ItemType,$AD:$AD)","v":15290076},{"$f":"-SUMIFS(Sheet1!S71_OY2BudgetAmount,Sheet1!S71_A2SubCode,$AC:$AC,Sheet1!S71_ItemType,$AD:$AD)","v":15401668},null,null,null,null,null,null,null,null,null,null,null,null,null,null,null,null,null,1204,"IR"]
["Fleet Management",null,{"$f":"SUMIFS(Sheet1!S71_PPPYearAmount,Sheet1!S71_A2SubCode,$AC:$AC,Sheet1!S71_ItemType,$AD:$AD)","v":0},{"$f":"SUMIFS(Sheet1!S71_PPYearAmount,Sheet1!S71_A2SubCode,$AC:$AC,Sheet1!S71_ItemType,$AD:$AD)","v":0},{"$f":"SUMIFS(Sheet1!S71_PYearAmount,Sheet1!S71_A2SubCode,$AC:$AC,Sheet1!S71_ItemType,$AD:$AD)","v":0},{"$f":"-SUMIFS(Sheet1!S71_OriginalBudAmnt,Sheet1!S71_A2SubCode,$AC:$AC,Sheet1!S71_ItemType,$AD:$AD)","v":0},{"$f":"-SUMIFS(Sheet1!S71_AdjustmentBudAmnt,Sheet1!S71_A2SubCode,$AC:$AC,Sheet1!S71_ItemType,$AD:$AD)","v":0},{"$f":"-SUMIFS(Sheet1!S71_AdjustmentBudAmnt,Sheet1!S71_A2SubCode,$AC:$AC,Sheet1!S71_ItemType,$AD:$AD)","v":0},{"$f":"-SUMIFS(Sheet1!S71_ASBudgetAmount,Sheet1!S71_A2SubCode,$AC:$AC,Sheet1!S71_ItemType,$AD:$AD)","v":0},{"$f":"-SUMIFS(Sheet1!S71_OY1BudgetAmount,Sheet1!S71_A2SubCode,$AC:$AC,Sheet1!S71_ItemType,$AD:$AD)","v":0},{"$f":"-SUMIFS(Sheet1!S71_OY2BudgetAmount,Sheet1!S71_A2SubCode,$AC:$AC,Sheet1!S71_ItemType,$AD:$AD)","v":0},null,null,null,null,null,null,null,null,null,null,null,null,null,null,null,null,null,1205,"IR"]
["Human Resources",null,{"$f":"SUMIFS(Sheet1!S71_PPPYearAmount,Sheet1!S71_A2SubCode,$AC:$AC,Sheet1!S71_ItemType,$AD:$AD)","v":0},{"$f":"SUMIFS(Sheet1!S71_PPYearAmount,Sheet1!S71_A2SubCode,$AC:$AC,Sheet1!S71_ItemType,$AD:$AD)","v":0},{"$f":"SUMIFS(Sheet1!S71_PYearAmount,Sheet1!S71_A2SubCode,$AC:$AC,Sheet1!S71_ItemType,$AD:$AD)","v":0},{"$f":"-SUMIFS(Sheet1!S71_OriginalBudAmnt,Sheet1!S71_A2SubCode,$AC:$AC,Sheet1!S71_ItemType,$AD:$AD)","v":0},{"$f":"-SUMIFS(Sheet1!S71_AdjustmentBudAmnt,Sheet1!S71_A2SubCode,$AC:$AC,Sheet1!S71_ItemType,$AD:$AD)","v":0},{"$f":"-SUMIFS(Sheet1!S71_AdjustmentBudAmnt,Sheet1!S71_A2SubCode,$AC:$AC,Sheet1!S71_ItemType,$AD:$AD)","v":0},{"$f":"-SUMIFS(Sheet1!S71_ASBudgetAmount,Sheet1!S71_A2SubCode,$AC:$AC,Sheet1!S71_ItemType,$AD:$AD)","v":0},{"$f":"-SUMIFS(Sheet1!S71_OY1BudgetAmount,Sheet1!S71_A2SubCode,$AC:$AC,Sheet1!S71_ItemType,$AD:$AD)","v":0},{"$f":"-SUMIFS(Sheet1!S71_OY2BudgetAmount,Sheet1!S71_A2SubCode,$AC:$AC,Sheet1!S71_ItemType,$AD:$AD)","v":0},null,null,null,null,null,null,null,null,null,null,null,null,null,null,null,null,null,1206,"IR"]
["Information Technology",null,{"$f":"SUMIFS(Sheet1!S71_PPPYearAmount,Sheet1!S71_A2SubCode,$AC:$AC,Sheet1!S71_ItemType,$AD:$AD)","v":0},{"$f":"SUMIFS(Sheet1!S71_PPYearAmount,Sheet1!S71_A2SubCode,$AC:$AC,Sheet1!S71_ItemType,$AD:$AD)","v":0},{"$f":"SUMIFS(Sheet1!S71_PYearAmount,Sheet1!S71_A2SubCode,$AC:$AC,Sheet1!S71_ItemType,$AD:$AD)","v":0},{"$f":"-SUMIFS(Sheet1!S71_OriginalBudAmnt,Sheet1!S71_A2SubCode,$AC:$AC,Sheet1!S71_ItemType,$AD:$AD)","v":0},{"$f":"-SUMIFS(Sheet1!S71_AdjustmentBudAmnt,Sheet1!S71_A2SubCode,$AC:$AC,Sheet1!S71_ItemType,$AD:$AD)","v":0},{"$f":"-SUMIFS(Sheet1!S71_AdjustmentBudAmnt,Sheet1!S71_A2SubCode,$AC:$AC,Sheet1!S71_ItemType,$AD:$AD)","v":0},{"$f":"-SUMIFS(Sheet1!S71_ASBudgetAmount,Sheet1!S71_A2SubCode,$AC:$AC,Sheet1!S71_ItemType,$AD:$AD)","v":0},{"$f":"-SUMIFS(Sheet1!S71_OY1BudgetAmount,Sheet1!S71_A2SubCode,$AC:$AC,Sheet1!S71_ItemType,$AD:$AD)","v":0},{"$f":"-SUMIFS(Sheet1!S71_OY2BudgetAmount,Sheet1!S71_A2SubCode,$AC:$AC,Sheet1!S71_ItemType,$AD:$AD)","v":0},null,null,null,null,null,null,null,null,null,null,null,null,null,null,null,null,null,1207,"IR"]
["Legal Services",null,{"$f":"SUMIFS(Sheet1!S71_PPPYearAmount,Sheet1!S71_A2SubCode,$AC:$AC,Sheet1!S71_ItemType,$AD:$AD)","v":0},{"$f":"SUMIFS(Sheet1!S71_PPYearAmount,Sheet1!S71_A2SubCode,$AC:$AC,Sheet1!S71_ItemType,$AD:$AD)","v":0},{"$f":"SUMIFS(Sheet1!S71_PYearAmount,Sheet1!S71_A2SubCode,$AC:$AC,Sheet1!S71_ItemType,$AD:$AD)","v":0},{"$f":"-SUMIFS(Sheet1!S71_OriginalBudAmnt,Sheet1!S71_A2SubCode,$AC:$AC,Sheet1!S71_ItemType,$AD:$AD)","v":0},{"$f":"-SUMIFS(Sheet1!S71_AdjustmentBudAmnt,Sheet1!S71_A2SubCode,$AC:$AC,Sheet1!S71_ItemType,$AD:$AD)","v":0},{"$f":"-SUMIFS(Sheet1!S71_AdjustmentBudAmnt,Sheet1!S71_A2SubCode,$AC:$AC,Sheet1!S71_ItemType,$AD:$AD)","v":0},{"$f":"-SUMIFS(Sheet1!S71_ASBudgetAmount,Sheet1!S71_A2SubCode,$AC:$AC,Sheet1!S71_ItemType,$AD:$AD)","v":0},{"$f":"-SUMIFS(Sheet1!S71_OY1BudgetAmount,Sheet1!S71_A2SubCode,$AC:$AC,Sheet1!S71_ItemType,$AD:$AD)","v":0},{"$f":"-SUMIFS(Sheet1!S71_OY2BudgetAmount,Sheet1!S71_A2SubCode,$AC:$AC,Sheet1!S71_ItemType,$AD:$AD)","v":0},null,null,null,null,null,null,null,null,null,null,null,null,null,null,null,null,null,1208,"IR"]
["Marketing, Customer Relations, Publicity and Media Co-ordination",null,{"$f":"SUMIFS(Sheet1!S71_PPPYearAmount,Sheet1!S71_A2SubCode,$AC:$AC,Sheet1!S71_ItemType,$AD:$AD)","v":0},{"$f":"SUMIFS(Sheet1!S71_PPYearAmount,Sheet1!S71_A2SubCode,$AC:$AC,Sheet1!S71_ItemType,$AD:$AD)","v":0},{"$f":"SUMIFS(Sheet1!S71_PYearAmount,Sheet1!S71_A2SubCode,$AC:$AC,Sheet1!S71_ItemType,$AD:$AD)","v":0},{"$f":"-SUMIFS(Sheet1!S71_OriginalBudAmnt,Sheet1!S71_A2SubCode,$AC:$AC,Sheet1!S71_ItemType,$AD:$AD)","v":0},{"$f":"-SUMIFS(Sheet1!S71_AdjustmentBudAmnt,Sheet1!S71_A2SubCode,$AC:$AC,Sheet1!S71_ItemType,$AD:$AD)","v":0},{"$f":"-SUMIFS(Sheet1!S71_AdjustmentBudAmnt,Sheet1!S71_A2SubCode,$AC:$AC,Sheet1!S71_ItemType,$AD:$AD)","v":0},{"$f":"-SUMIFS(Sheet1!S71_ASBudgetAmount,Sheet1!S71_A2SubCode,$AC:$AC,Sheet1!S71_ItemType,$AD:$AD)","v":0},{"$f":"-SUMIFS(Sheet1!S71_OY1BudgetAmount,Sheet1!S71_A2SubCode,$AC:$AC,Sheet1!S71_ItemType,$AD:$AD)","v":0},{"$f":"-SUMIFS(Sheet1!S71_OY2BudgetAmount,Sheet1!S71_A2SubCode,$AC:$AC,Sheet1!S71_ItemType,$AD:$AD)","v":0},null,null,null,null,null,null,null,null,null,null,null,null,null,null,null,null,null,1209,"IR"]
["Property Services",null,{"$f":"SUMIFS(Sheet1!S71_PPPYearAmount,Sheet1!S71_A2SubCode,$AC:$AC,Sheet1!S71_ItemType,$AD:$AD)","v":0},{"$f":"SUMIFS(Sheet1!S71_PPYearAmount,Sheet1!S71_A2SubCode,$AC:$AC,Sheet1!S71_ItemType,$AD:$AD)","v":0},{"$f":"SUMIFS(Sheet1!S71_PYearAmount,Sheet1!S71_A2SubCode,$AC:$AC,Sheet1!S71_ItemType,$AD:$AD)","v":0},{"$f":"-SUMIFS(Sheet1!S71_OriginalBudAmnt,Sheet1!S71_A2SubCode,$AC:$AC,Sheet1!S71_ItemType,$AD:$AD)","v":0},{"$f":"-SUMIFS(Sheet1!S71_AdjustmentBudAmnt,Sheet1!S71_A2SubCode,$AC:$AC,Sheet1!S71_ItemType,$AD:$AD)","v":0},{"$f":"-SUMIFS(Sheet1!S71_AdjustmentBudAmnt,Sheet1!S71_A2SubCode,$AC:$AC,Sheet1!S71_ItemType,$AD:$AD)","v":0},{"$f":"-SUMIFS(Sheet1!S71_ASBudgetAmount,Sheet1!S71_A2SubCode,$AC:$AC,Sheet1!S71_ItemType,$AD:$AD)","v":0},{"$f":"-SUMIFS(Sheet1!S71_OY1BudgetAmount,Sheet1!S71_A2SubCode,$AC:$AC,Sheet1!S71_ItemType,$AD:$AD)","v":0},{"$f":"-SUMIFS(Sheet1!S71_OY2BudgetAmount,Sheet1!S71_A2SubCode,$AC:$AC,Sheet1!S71_ItemType,$AD:$AD)","v":0},null,null,null,null,null,null,null,null,null,null,null,null,null,null,null,null,null,1210,"IR"]
["Risk Management",null,{"$f":"SUMIFS(Sheet1!S71_PPPYearAmount,Sheet1!S71_A2SubCode,$AC:$AC,Sheet1!S71_ItemType,$AD:$AD)","v":0},{"$f":"SUMIFS(Sheet1!S71_PPYearAmount,Sheet1!S71_A2SubCode,$AC:$AC,Sheet1!S71_ItemType,$AD:$AD)","v":0},{"$f":"SUMIFS(Sheet1!S71_PYearAmount,Sheet1!S71_A2SubCode,$AC:$AC,Sheet1!S71_ItemType,$AD:$AD)","v":0},{"$f":"-SUMIFS(Sheet1!S71_OriginalBudAmnt,Sheet1!S71_A2SubCode,$AC:$AC,Sheet1!S71_ItemType,$AD:$AD)","v":0},{"$f":"-SUMIFS(Sheet1!S71_AdjustmentBudAmnt,Sheet1!S71_A2SubCode,$AC:$AC,Sheet1!S71_ItemType,$AD:$AD)","v":0},{"$f":"-SUMIFS(Sheet1!S71_AdjustmentBudAmnt,Sheet1!S71_A2SubCode,$AC:$AC,Sheet1!S71_ItemType,$AD:$AD)","v":0},{"$f":"-SUMIFS(Sheet1!S71_ASBudgetAmount,Sheet1!S71_A2SubCode,$AC:$AC,Sheet1!S71_ItemType,$AD:$AD)","v":0},{"$f":"-SUMIFS(Sheet1!S71_OY1BudgetAmount,Sheet1!S71_A2SubCode,$AC:$AC,Sheet1!S71_ItemType,$AD:$AD)","v":0},{"$f":"-SUMIFS(Sheet1!S71_OY2BudgetAmount,Sheet1!S71_A2SubCode,$AC:$AC,Sheet1!S71_ItemType,$AD:$AD)","v":0},null,null,null,null,null,null,null,null,null,null,null,null,null,null,null,null,null,1211,"IR"]
["Security Services",null,{"$f":"SUMIFS(Sheet1!S71_PPPYearAmount,Sheet1!S71_A2SubCode,$AC:$AC,Sheet1!S71_ItemType,$AD:$AD)","v":0},{"$f":"SUMIFS(Sheet1!S71_PPYearAmount,Sheet1!S71_A2SubCode,$AC:$AC,Sheet1!S71_ItemType,$AD:$AD)","v":0},{"$f":"SUMIFS(Sheet1!S71_PYearAmount,Sheet1!S71_A2SubCode,$AC:$AC,Sheet1!S71_ItemType,$AD:$AD)","v":0},{"$f":"-SUMIFS(Sheet1!S71_OriginalBudAmnt,Sheet1!S71_A2SubCode,$AC:$AC,Sheet1!S71_ItemType,$AD:$AD)","v":0},{"$f":"-SUMIFS(Sheet1!S71_AdjustmentBudAmnt,Sheet1!S71_A2SubCode,$AC:$AC,Sheet1!S71_ItemType,$AD:$AD)","v":0},{"$f":"-SUMIFS(Sheet1!S71_AdjustmentBudAmnt,Sheet1!S71_A2SubCode,$AC:$AC,Sheet1!S71_ItemType,$AD:$AD)","v":0},{"$f":"-SUMIFS(Sheet1!S71_ASBudgetAmount,Sheet1!S71_A2SubCode,$AC:$AC,Sheet1!S71_ItemType,$AD:$AD)","v":0},{"$f":"-SUMIFS(Sheet1!S71_OY1BudgetAmount,Sheet1!S71_A2SubCode,$AC:$AC,Sheet1!S71_ItemType,$AD:$AD)","v":0},{"$f":"-SUMIFS(Sheet1!S71_OY2BudgetAmount,Sheet1!S71_A2SubCode,$AC:$AC,Sheet1!S71_ItemType,$AD:$AD)","v":0},null,null,null,null,null,null,null,null,null,null,null,null,null,null,null,null,null,1212,"IR"]
["Supply Chain Management ",null,{"$f":"SUMIFS(Sheet1!S71_PPPYearAmount,Sheet1!S71_A2SubCode,$AC:$AC,Sheet1!S71_ItemType,$AD:$AD)","v":0},{"$f":"SUMIFS(Sheet1!S71_PPYearAmount,Sheet1!S71_A2SubCode,$AC:$AC,Sheet1!S71_ItemType,$AD:$AD)","v":0},{"$f":"SUMIFS(Sheet1!S71_PYearAmount,Sheet1!S71_A2SubCode,$AC:$AC,Sheet1!S71_ItemType,$AD:$AD)","v":0},{"$f":"-SUMIFS(Sheet1!S71_OriginalBudAmnt,Sheet1!S71_A2SubCode,$AC:$AC,Sheet1!S71_ItemType,$AD:$AD)","v":0},{"$f":"-SUMIFS(Sheet1!S71_AdjustmentBudAmnt,Sheet1!S71_A2SubCode,$AC:$AC,Sheet1!S71_ItemType,$AD:$AD)","v":0},{"$f":"-SUMIFS(Sheet1!S71_AdjustmentBudAmnt,Sheet1!S71_A2SubCode,$AC:$AC,Sheet1!S71_ItemType,$AD:$AD)","v":0},{"$f":"-SUMIFS(Sheet1!S71_ASBudgetAmount,Sheet1!S71_A2SubCode,$AC:$AC,Sheet1!S71_ItemType,$AD:$AD)","v":0},{"$f":"-SUMIFS(Sheet1!S71_OY1BudgetAmount,Sheet1!S71_A2SubCode,$AC:$AC,Sheet1!S71_ItemType,$AD:$AD)","v":0},{"$f":"-SUMIFS(Sheet1!S71_OY2BudgetAmount,Sheet1!S71_A2SubCode,$AC:$AC,Sheet1!S71_ItemType,$AD:$AD)","v":0},null,null,null,null,null,null,null,null,null,null,null,null,null,null,null,null,null,1213,"IR"]
["Valuation Service",null,{"$f":"SUMIFS(Sheet1!S71_PPPYearAmount,Sheet1!S71_A2SubCode,$AC:$AC,Sheet1!S71_ItemType,$AD:$AD)","v":0},{"$f":"SUMIFS(Sheet1!S71_PPYearAmount,Sheet1!S71_A2SubCode,$AC:$AC,Sheet1!S71_ItemType,$AD:$AD)","v":0},{"$f":"SUMIFS(Sheet1!S71_PYearAmount,Sheet1!S71_A2SubCode,$AC:$AC,Sheet1!S71_ItemType,$AD:$AD)","v":0},{"$f":"-SUMIFS(Sheet1!S71_OriginalBudAmnt,Sheet1!S71_A2SubCode,$AC:$AC,Sheet1!S71_ItemType,$AD:$AD)","v":0},{"$f":"-SUMIFS(Sheet1!S71_AdjustmentBudAmnt,Sheet1!S71_A2SubCode,$AC:$AC,Sheet1!S71_ItemType,$AD:$AD)","v":0},{"$f":"-SUMIFS(Sheet1!S71_AdjustmentBudAmnt,Sheet1!S71_A2SubCode,$AC:$AC,Sheet1!S71_ItemType,$AD:$AD)","v":0},{"$f":"-SUMIFS(Sheet1!S71_ASBudgetAmount,Sheet1!S71_A2SubCode,$AC:$AC,Sheet1!S71_ItemType,$AD:$AD)","v":0},{"$f":"-SUMIFS(Sheet1!S71_OY1BudgetAmount,Sheet1!S71_A2SubCode,$AC:$AC,Sheet1!S71_ItemType,$AD:$AD)","v":0},{"$f":"-SUMIFS(Sheet1!S71_OY2BudgetAmount,Sheet1!S71_A2SubCode,$AC:$AC,Sheet1!S71_ItemType,$AD:$AD)","v":0},null,null,null,null,null,null,null,null,null,null,null,null,null,null,null,null,null,1214,"IR"]
["Internal audit",null,{"$f":"SUM(C24:C24)","v":0},0,0,0,0,0,0,0,0]
["Governance Function",null,{"$f":"SUMIFS(Sheet1!S71_PPPYearAmount,Sheet1!S71_A2SubCode,$AC:$AC,Sheet1!S71_ItemType,$AD:$AD)","v":0},{"$f":"SUMIFS(Sheet1!S71_PPYearAmount,Sheet1!S71_A2SubCode,$AC:$AC,Sheet1!S71_ItemType,$AD:$AD)","v":0},{"$f":"SUMIFS(Sheet1!S71_PYearAmount,Sheet1!S71_A2SubCode,$AC:$AC,Sheet1!S71_ItemType,$AD:$AD)","v":0},{"$f":"-SUMIFS(Sheet1!S71_OriginalBudAmnt,Sheet1!S71_A2SubCode,$AC:$AC,Sheet1!S71_ItemType,$AD:$AD)","v":0},{"$f":"-SUMIFS(Sheet1!S71_AdjustmentBudAmnt,Sheet1!S71_A2SubCode,$AC:$AC,Sheet1!S71_ItemType,$AD:$AD)","v":0},{"$f":"-SUMIFS(Sheet1!S71_AdjustmentBudAmnt,Sheet1!S71_A2SubCode,$AC:$AC,Sheet1!S71_ItemType,$AD:$AD)","v":0},{"$f":"-SUMIFS(Sheet1!S71_ASBudgetAmount,Sheet1!S71_A2SubCode,$AC:$AC,Sheet1!S71_ItemType,$AD:$AD)","v":0},{"$f":"-SUMIFS(Sheet1!S71_OY1BudgetAmount,Sheet1!S71_A2SubCode,$AC:$AC,Sheet1!S71_ItemType,$AD:$AD)","v":0},{"$f":"-SUMIFS(Sheet1!S71_OY2BudgetAmount,Sheet1!S71_A2SubCode,$AC:$AC,Sheet1!S71_ItemType,$AD:$AD)","v":0},null,null,null,null,null,null,null,null,null,null,null,null,null,null,null,null,null,1301,"IR"]
["Community and public safety",null,{"$f":"C26+C48+C54+C63+C66","v":0},0,0,0,0,0,0,0,0]
["Community and social services",null,{"$f":"SUM(C27:C47)","v":0},{"$f":"SUM(D27:D47)","v":0},0,0,0,0,0,0,0]
["Aged Care",null,{"$f":"SUMIFS(Sheet1!S71_PPPYearAmount,Sheet1!S71_A2SubCode,$AC:$AC,Sheet1!S71_ItemType,$AD:$AD)","v":0},{"$f":"SUMIFS(Sheet1!S71_PPYearAmount,Sheet1!S71_A2SubCode,$AC:$AC,Sheet1!S71_ItemType,$AD:$AD)","v":0},{"$f":"SUMIFS(Sheet1!S71_PYearAmount,Sheet1!S71_A2SubCode,$AC:$AC,Sheet1!S71_ItemType,$AD:$AD)","v":0},{"$f":"-SUMIFS(Sheet1!S71_OriginalBudAmnt,Sheet1!S71_A2SubCode,$AC:$AC,Sheet1!S71_ItemType,$AD:$AD)","v":0},{"$f":"-SUMIFS(Sheet1!S71_AdjustmentBudAmnt,Sheet1!S71_A2SubCode,$AC:$AC,Sheet1!S71_ItemType,$AD:$AD)","v":0},{"$f":"-SUMIFS(Sheet1!S71_AdjustmentBudAmnt,Sheet1!S71_A2SubCode,$AC:$AC,Sheet1!S71_ItemType,$AD:$AD)","v":0},{"$f":"-SUMIFS(Sheet1!S71_ASBudgetAmount,Sheet1!S71_A2SubCode,$AC:$AC,Sheet1!S71_ItemType,$AD:$AD)","v":0},{"$f":"-SUMIFS(Sheet1!S71_OY1BudgetAmount,Sheet1!S71_A2SubCode,$AC:$AC,Sheet1!S71_ItemType,$AD:$AD)","v":0},{"$f":"-SUMIFS(Sheet1!S71_OY2BudgetAmount,Sheet1!S71_A2SubCode,$AC:$AC,Sheet1!S71_ItemType,$AD:$AD)","v":0},null,null,null,null,null,null,null,null,null,null,null,null,null,null,null,null,null,2101,"IR"]
["Agricultural",null,{"$f":"SUMIFS(Sheet1!S71_PPPYearAmount,Sheet1!S71_A2SubCode,$AC:$AC,Sheet1!S71_ItemType,$AD:$AD)","v":0},{"$f":"SUMIFS(Sheet1!S71_PPYearAmount,Sheet1!S71_A2SubCode,$AC:$AC,Sheet1!S71_ItemType,$AD:$AD)","v":0},{"$f":"SUMIFS(Sheet1!S71_PYearAmount,Sheet1!S71_A2SubCode,$AC:$AC,Sheet1!S71_ItemType,$AD:$AD)","v":0},{"$f":"-SUMIFS(Sheet1!S71_OriginalBudAmnt,Sheet1!S71_A2SubCode,$AC:$AC,Sheet1!S71_ItemType,$AD:$AD)","v":0},{"$f":"-SUMIFS(Sheet1!S71_AdjustmentBudAmnt,Sheet1!S71_A2SubCode,$AC:$AC,Sheet1!S71_ItemType,$AD:$AD)","v":0},{"$f":"-SUMIFS(Sheet1!S71_AdjustmentBudAmnt,Sheet1!S71_A2SubCode,$AC:$AC,Sheet1!S71_ItemType,$AD:$AD)","v":0},{"$f":"-SUMIFS(Sheet1!S71_ASBudgetAmount,Sheet1!S71_A2SubCode,$AC:$AC,Sheet1!S71_ItemType,$AD:$AD)","v":0},{"$f":"-SUMIFS(Sheet1!S71_OY1BudgetAmount,Sheet1!S71_A2SubCode,$AC:$AC,Sheet1!S71_ItemType,$AD:$AD)","v":0},{"$f":"-SUMIFS(Sheet1!S71_OY2BudgetAmount,Sheet1!S71_A2SubCode,$AC:$AC,Sheet1!S71_ItemType,$AD:$AD)","v":0},null,null,null,null,null,null,null,null,null,null,null,null,null,null,null,null,null,2102,"IR"]
["Animal Care and Diseases",null,{"$f":"SUMIFS(Sheet1!S71_PPPYearAmount,Sheet1!S71_A2SubCode,$AC:$AC,Sheet1!S71_ItemType,$AD:$AD)","v":0},{"$f":"SUMIFS(Sheet1!S71_PPYearAmount,Sheet1!S71_A2SubCode,$AC:$AC,Sheet1!S71_ItemType,$AD:$AD)","v":0},{"$f":"SUMIFS(Sheet1!S71_PYearAmount,Sheet1!S71_A2SubCode,$AC:$AC,Sheet1!S71_ItemType,$AD:$AD)","v":0},{"$f":"-SUMIFS(Sheet1!S71_OriginalBudAmnt,Sheet1!S71_A2SubCode,$AC:$AC,Sheet1!S71_ItemType,$AD:$AD)","v":0},{"$f":"-SUMIFS(Sheet1!S71_AdjustmentBudAmnt,Sheet1!S71_A2SubCode,$AC:$AC,Sheet1!S71_ItemType,$AD:$AD)","v":0},{"$f":"-SUMIFS(Sheet1!S71_AdjustmentBudAmnt,Sheet1!S71_A2SubCode,$AC:$AC,Sheet1!S71_ItemType,$AD:$AD)","v":0},{"$f":"-SUMIFS(Sheet1!S71_ASBudgetAmount,Sheet1!S71_A2SubCode,$AC:$AC,Sheet1!S71_ItemType,$AD:$AD)","v":0},{"$f":"-SUMIFS(Sheet1!S71_OY1BudgetAmount,Sheet1!S71_A2SubCode,$AC:$AC,Sheet1!S71_ItemType,$AD:$AD)","v":0},{"$f":"-SUMIFS(Sheet1!S71_OY2BudgetAmount,Sheet1!S71_A2SubCode,$AC:$AC,Sheet1!S71_ItemType,$AD:$AD)","v":0},null,null,null,null,null,null,null,null,null,null,null,null,null,null,null,null,null,2103,"IR"]
["Cemeteries, Funeral Parlours and Crematoriums",null,{"$f":"SUMIFS(Sheet1!S71_PPPYearAmount,Sheet1!S71_A2SubCode,$AC:$AC,Sheet1!S71_ItemType,$AD:$AD)","v":0},{"$f":"SUMIFS(Sheet1!S71_PPYearAmount,Sheet1!S71_A2SubCode,$AC:$AC,Sheet1!S71_ItemType,$AD:$AD)","v":0},{"$f":"SUMIFS(Sheet1!S71_PYearAmount,Sheet1!S71_A2SubCode,$AC:$AC,Sheet1!S71_ItemType,$AD:$AD)","v":0},{"$f":"-SUMIFS(Sheet1!S71_OriginalBudAmnt,Sheet1!S71_A2SubCode,$AC:$AC,Sheet1!S71_ItemType,$AD:$AD)","v":0},{"$f":"-SUMIFS(Sheet1!S71_AdjustmentBudAmnt,Sheet1!S71_A2SubCode,$AC:$AC,Sheet1!S71_ItemType,$AD:$AD)","v":0},{"$f":"-SUMIFS(Sheet1!S71_AdjustmentBudAmnt,Sheet1!S71_A2SubCode,$AC:$AC,Sheet1!S71_ItemType,$AD:$AD)","v":0},{"$f":"-SUMIFS(Sheet1!S71_ASBudgetAmount,Sheet1!S71_A2SubCode,$AC:$AC,Sheet1!S71_ItemType,$AD:$AD)","v":0},{"$f":"-SUMIFS(Sheet1!S71_OY1BudgetAmount,Sheet1!S71_A2SubCode,$AC:$AC,Sheet1!S71_ItemType,$AD:$AD)","v":0},{"$f":"-SUMIFS(Sheet1!S71_OY2BudgetAmount,Sheet1!S71_A2SubCode,$AC:$AC,Sheet1!S71_ItemType,$AD:$AD)","v":0},null,null,null,null,null,null,null,null,null,null,null,null,null,null,null,null,null,2104,"IR"]
["Child Care Facilities",null,{"$f":"SUMIFS(Sheet1!S71_PPPYearAmount,Sheet1!S71_A2SubCode,$AC:$AC,Sheet1!S71_ItemType,$AD:$AD)","v":0},{"$f":"SUMIFS(Sheet1!S71_PPYearAmount,Sheet1!S71_A2SubCode,$AC:$AC,Sheet1!S71_ItemType,$AD:$AD)","v":0},{"$f":"SUMIFS(Sheet1!S71_PYearAmount,Sheet1!S71_A2SubCode,$AC:$AC,Sheet1!S71_ItemType,$AD:$AD)","v":0},{"$f":"-SUMIFS(Sheet1!S71_OriginalBudAmnt,Sheet1!S71_A2SubCode,$AC:$AC,Sheet1!S71_ItemType,$AD:$AD)","v":0},{"$f":"-SUMIFS(Sheet1!S71_AdjustmentBudAmnt,Sheet1!S71_A2SubCode,$AC:$AC,Sheet1!S71_ItemType,$AD:$AD)","v":0},{"$f":"-SUMIFS(Sheet1!S71_AdjustmentBudAmnt,Sheet1!S71_A2SubCode,$AC:$AC,Sheet1!S71_ItemType,$AD:$AD)","v":0},{"$f":"-SUMIFS(Sheet1!S71_ASBudgetAmount,Sheet1!S71_A2SubCode,$AC:$AC,Sheet1!S71_ItemType,$AD:$AD)","v":0},{"$f":"-SUMIFS(Sheet1!S71_OY1BudgetAmount,Sheet1!S71_A2SubCode,$AC:$AC,Sheet1!S71_ItemType,$AD:$AD)","v":0},{"$f":"-SUMIFS(Sheet1!S71_OY2BudgetAmount,Sheet1!S71_A2SubCode,$AC:$AC,Sheet1!S71_ItemType,$AD:$AD)","v":0},null,null,null,null,null,null,null,null,null,null,null,null,null,null,null,null,null,2105,"IR"]
["Community Halls and Facilities",null,{"$f":"SUMIFS(Sheet1!S71_PPPYearAmount,Sheet1!S71_A2SubCode,$AC:$AC,Sheet1!S71_ItemType,$AD:$AD)","v":0},{"$f":"SUMIFS(Sheet1!S71_PPYearAmount,Sheet1!S71_A2SubCode,$AC:$AC,Sheet1!S71_ItemType,$AD:$AD)","v":0},{"$f":"SUMIFS(Sheet1!S71_PYearAmount,Sheet1!S71_A2SubCode,$AC:$AC,Sheet1!S71_ItemType,$AD:$AD)","v":0},{"$f":"-SUMIFS(Sheet1!S71_OriginalBudAmnt,Sheet1!S71_A2SubCode,$AC:$AC,Sheet1!S71_ItemType,$AD:$AD)","v":0},{"$f":"-SUMIFS(Sheet1!S71_AdjustmentBudAmnt,Sheet1!S71_A2SubCode,$AC:$AC,Sheet1!S71_ItemType,$AD:$AD)","v":0},{"$f":"-SUMIFS(Sheet1!S71_AdjustmentBudAmnt,Sheet1!S71_A2SubCode,$AC:$AC,Sheet1!S71_ItemType,$AD:$AD)","v":0},{"$f":"-SUMIFS(Sheet1!S71_ASBudgetAmount,Sheet1!S71_A2SubCode,$AC:$AC,Sheet1!S71_ItemType,$AD:$AD)","v":0},{"$f":"-SUMIFS(Sheet1!S71_OY1BudgetAmount,Sheet1!S71_A2SubCode,$AC:$AC,Sheet1!S71_ItemType,$AD:$AD)","v":0},{"$f":"-SUMIFS(Sheet1!S71_OY2BudgetAmount,Sheet1!S71_A2SubCode,$AC:$AC,Sheet1!S71_ItemType,$AD:$AD)","v":0},null,null,null,null,null,null,null,null,null,null,null,null,null,null,null,null,null,2106,"IR"]
["Consumer Protection",null,{"$f":"SUMIFS(Sheet1!S71_PPPYearAmount,Sheet1!S71_A2SubCode,$AC:$AC,Sheet1!S71_ItemType,$AD:$AD)","v":0},{"$f":"SUMIFS(Sheet1!S71_PPYearAmount,Sheet1!S71_A2SubCode,$AC:$AC,Sheet1!S71_ItemType,$AD:$AD)","v":0},{"$f":"SUMIFS(Sheet1!S71_PYearAmount,Sheet1!S71_A2SubCode,$AC:$AC,Sheet1!S71_ItemType,$AD:$AD)","v":0},{"$f":"-SUMIFS(Sheet1!S71_OriginalBudAmnt,Sheet1!S71_A2SubCode,$AC:$AC,Sheet1!S71_ItemType,$AD:$AD)","v":0},{"$f":"-SUMIFS(Sheet1!S71_AdjustmentBudAmnt,Sheet1!S71_A2SubCode,$AC:$AC,Sheet1!S71_ItemType,$AD:$AD)","v":0},{"$f":"-SUMIFS(Sheet1!S71_AdjustmentBudAmnt,Sheet1!S71_A2SubCode,$AC:$AC,Sheet1!S71_ItemType,$AD:$AD)","v":0},{"$f":"-SUMIFS(Sheet1!S71_ASBudgetAmount,Sheet1!S71_A2SubCode,$AC:$AC,Sheet1!S71_ItemType,$AD:$AD)","v":0},{"$f":"-SUMIFS(Sheet1!S71_OY1BudgetAmount,Sheet1!S71_A2SubCode,$AC:$AC,Sheet1!S71_ItemType,$AD:$AD)","v":0},{"$f":"-SUMIFS(Sheet1!S71_OY2BudgetAmount,Sheet1!S71_A2SubCode,$AC:$AC,Sheet1!S71_ItemType,$AD:$AD)","v":0},null,null,null,null,null,null,null,null,null,null,null,null,null,null,null,null,null,2107,"IR"]
["Cultural Matters",null,{"$f":"SUMIFS(Sheet1!S71_PPPYearAmount,Sheet1!S71_A2SubCode,$AC:$AC,Sheet1!S71_ItemType,$AD:$AD)","v":0},{"$f":"SUMIFS(Sheet1!S71_PPYearAmount,Sheet1!S71_A2SubCode,$AC:$AC,Sheet1!S71_ItemType,$AD:$AD)","v":0},{"$f":"SUMIFS(Sheet1!S71_PYearAmount,Sheet1!S71_A2SubCode,$AC:$AC,Sheet1!S71_ItemType,$AD:$AD)","v":0},{"$f":"-SUMIFS(Sheet1!S71_OriginalBudAmnt,Sheet1!S71_A2SubCode,$AC:$AC,Sheet1!S71_ItemType,$AD:$AD)","v":0},{"$f":"-SUMIFS(Sheet1!S71_AdjustmentBudAmnt,Sheet1!S71_A2SubCode,$AC:$AC,Sheet1!S71_ItemType,$AD:$AD)","v":0},{"$f":"-SUMIFS(Sheet1!S71_AdjustmentBudAmnt,Sheet1!S71_A2SubCode,$AC:$AC,Sheet1!S71_ItemType,$AD:$AD)","v":0},{"$f":"-SUMIFS(Sheet1!S71_ASBudgetAmount,Sheet1!S71_A2SubCode,$AC:$AC,Sheet1!S71_ItemType,$AD:$AD)","v":0},{"$f":"-SUMIFS(Sheet1!S71_OY1BudgetAmount,Sheet1!S71_A2SubCode,$AC:$AC,Sheet1!S71_ItemType,$AD:$AD)","v":0},{"$f":"-SUMIFS(Sheet1!S71_OY2BudgetAmount,Sheet1!S71_A2SubCode,$AC:$AC,Sheet1!S71_ItemType,$AD:$AD)","v":0},null,null,null,null,null,null,null,null,null,null,null,null,null,null,null,null,null,2108,"IR"]
["Disaster Management",null,{"$f":"SUMIFS(Sheet1!S71_PPPYearAmount,Sheet1!S71_A2SubCode,$AC:$AC,Sheet1!S71_ItemType,$AD:$AD)","v":0},{"$f":"SUMIFS(Sheet1!S71_PPYearAmount,Sheet1!S71_A2SubCode,$AC:$AC,Sheet1!S71_ItemType,$AD:$AD)","v":0},{"$f":"SUMIFS(Sheet1!S71_PYearAmount,Sheet1!S71_A2SubCode,$AC:$AC,Sheet1!S71_ItemType,$AD:$AD)","v":0},{"$f":"-SUMIFS(Sheet1!S71_OriginalBudAmnt,Sheet1!S71_A2SubCode,$AC:$AC,Sheet1!S71_ItemType,$AD:$AD)","v":0},{"$f":"-SUMIFS(Sheet1!S71_AdjustmentBudAmnt,Sheet1!S71_A2SubCode,$AC:$AC,Sheet1!S71_ItemType,$AD:$AD)","v":0},{"$f":"-SUMIFS(Sheet1!S71_AdjustmentBudAmnt,Sheet1!S71_A2SubCode,$AC:$AC,Sheet1!S71_ItemType,$AD:$AD)","v":0},{"$f":"-SUMIFS(Sheet1!S71_ASBudgetAmount,Sheet1!S71_A2SubCode,$AC:$AC,Sheet1!S71_ItemType,$AD:$AD)","v":0},{"$f":"-SUMIFS(Sheet1!S71_OY1BudgetAmount,Sheet1!S71_A2SubCode,$AC:$AC,Sheet1!S71_ItemType,$AD:$AD)","v":0},{"$f":"-SUMIFS(Sheet1!S71_OY2BudgetAmount,Sheet1!S71_A2SubCode,$AC:$AC,Sheet1!S71_ItemType,$AD:$AD)","v":0},null,null,null,null,null,null,null,null,null,null,null,null,null,null,null,null,null,2109,"IR"]
["Education",null,{"$f":"SUMIFS(Sheet1!S71_PPPYearAmount,Sheet1!S71_A2SubCode,$AC:$AC,Sheet1!S71_ItemType,$AD:$AD)","v":0},{"$f":"SUMIFS(Sheet1!S71_PPYearAmount,Sheet1!S71_A2SubCode,$AC:$AC,Sheet1!S71_ItemType,$AD:$AD)","v":0},{"$f":"SUMIFS(Sheet1!S71_PYearAmount,Sheet1!S71_A2SubCode,$AC:$AC,Sheet1!S71_ItemType,$AD:$AD)","v":0},{"$f":"-SUMIFS(Sheet1!S71_OriginalBudAmnt,Sheet1!S71_A2SubCode,$AC:$AC,Sheet1!S71_ItemType,$AD:$AD)","v":0},{"$f":"-SUMIFS(Sheet1!S71_AdjustmentBudAmnt,Sheet1!S71_A2SubCode,$AC:$AC,Sheet1!S71_ItemType,$AD:$AD)","v":0},{"$f":"-SUMIFS(Sheet1!S71_AdjustmentBudAmnt,Sheet1!S71_A2SubCode,$AC:$AC,Sheet1!S71_ItemType,$AD:$AD)","v":0},{"$f":"-SUMIFS(Sheet1!S71_ASBudgetAmount,Sheet1!S71_A2SubCode,$AC:$AC,Sheet1!S71_ItemType,$AD:$AD)","v":0},{"$f":"-SUMIFS(Sheet1!S71_OY1BudgetAmount,Sheet1!S71_A2SubCode,$AC:$AC,Sheet1!S71_ItemType,$AD:$AD)","v":0},{"$f":"-SUMIFS(Sheet1!S71_OY2BudgetAmount,Sheet1!S71_A2SubCode,$AC:$AC,Sheet1!S71_ItemType,$AD:$AD)","v":0},null,null,null,null,null,null,null,null,null,null,null,null,null,null,null,null,null,2110,"IR"]
["Indigenous and Customary Law",null,{"$f":"SUMIFS(Sheet1!S71_PPPYearAmount,Sheet1!S71_A2SubCode,$AC:$AC,Sheet1!S71_ItemType,$AD:$AD)","v":0},{"$f":"SUMIFS(Sheet1!S71_PPYearAmount,Sheet1!S71_A2SubCode,$AC:$AC,Sheet1!S71_ItemType,$AD:$AD)","v":0},{"$f":"SUMIFS(Sheet1!S71_PYearAmount,Sheet1!S71_A2SubCode,$AC:$AC,Sheet1!S71_ItemType,$AD:$AD)","v":0},{"$f":"-SUMIFS(Sheet1!S71_OriginalBudAmnt,Sheet1!S71_A2SubCode,$AC:$AC,Sheet1!S71_ItemType,$AD:$AD)","v":0},{"$f":"-SUMIFS(Sheet1!S71_AdjustmentBudAmnt,Sheet1!S71_A2SubCode,$AC:$AC,Sheet1!S71_ItemType,$AD:$AD)","v":0},{"$f":"-SUMIFS(Sheet1!S71_AdjustmentBudAmnt,Sheet1!S71_A2SubCode,$AC:$AC,Sheet1!S71_ItemType,$AD:$AD)","v":0},{"$f":"-SUMIFS(Sheet1!S71_ASBudgetAmount,Sheet1!S71_A2SubCode,$AC:$AC,Sheet1!S71_ItemType,$AD:$AD)","v":0},{"$f":"-SUMIFS(Sheet1!S71_OY1BudgetAmount,Sheet1!S71_A2SubCode,$AC:$AC,Sheet1!S71_ItemType,$AD:$AD)","v":0},{"$f":"-SUMIFS(Sheet1!S71_OY2BudgetAmount,Sheet1!S71_A2SubCode,$AC:$AC,Sheet1!S71_ItemType,$AD:$AD)","v":0},null,null,null,null,null,null,null,null,null,null,null,null,null,null,null,null,null,2111,"IR"]
["Industrial Promotion",null,{"$f":"SUMIFS(Sheet1!S71_PPPYearAmount,Sheet1!S71_A2SubCode,$AC:$AC,Sheet1!S71_ItemType,$AD:$AD)","v":0},{"$f":"SUMIFS(Sheet1!S71_PPYearAmount,Sheet1!S71_A2SubCode,$AC:$AC,Sheet1!S71_ItemType,$AD:$AD)","v":0},{"$f":"SUMIFS(Sheet1!S71_PYearAmount,Sheet1!S71_A2SubCode,$AC:$AC,Sheet1!S71_ItemType,$AD:$AD)","v":0},{"$f":"-SUMIFS(Sheet1!S71_OriginalBudAmnt,Sheet1!S71_A2SubCode,$AC:$AC,Sheet1!S71_ItemType,$AD:$AD)","v":0},{"$f":"-SUMIFS(Sheet1!S71_AdjustmentBudAmnt,Sheet1!S71_A2SubCode,$AC:$AC,Sheet1!S71_ItemType,$AD:$AD)","v":0},{"$f":"-SUMIFS(Sheet1!S71_AdjustmentBudAmnt,Sheet1!S71_A2SubCode,$AC:$AC,Sheet1!S71_ItemType,$AD:$AD)","v":0},{"$f":"-SUMIFS(Sheet1!S71_ASBudgetAmount,Sheet1!S71_A2SubCode,$AC:$AC,Sheet1!S71_ItemType,$AD:$AD)","v":0},{"$f":"-SUMIFS(Sheet1!S71_OY1BudgetAmount,Sheet1!S71_A2SubCode,$AC:$AC,Sheet1!S71_ItemType,$AD:$AD)","v":0},{"$f":"-SUMIFS(Sheet1!S71_OY2BudgetAmount,Sheet1!S71_A2SubCode,$AC:$AC,Sheet1!S71_ItemType,$AD:$AD)","v":0},null,null,null,null,null,null,null,null,null,null,null,null,null,null,null,null,null,2112,"IR"]
["Language Policy",null,{"$f":"SUMIFS(Sheet1!S71_PPPYearAmount,Sheet1!S71_A2SubCode,$AC:$AC,Sheet1!S71_ItemType,$AD:$AD)","v":0},{"$f":"SUMIFS(Sheet1!S71_PPYearAmount,Sheet1!S71_A2SubCode,$AC:$AC,Sheet1!S71_ItemType,$AD:$AD)","v":0},{"$f":"SUMIFS(Sheet1!S71_PYearAmount,Sheet1!S71_A2SubCode,$AC:$AC,Sheet1!S71_ItemType,$AD:$AD)","v":0},{"$f":"-SUMIFS(Sheet1!S71_OriginalBudAmnt,Sheet1!S71_A2SubCode,$AC:$AC,Sheet1!S71_ItemType,$AD:$AD)","v":0},{"$f":"-SUMIFS(Sheet1!S71_AdjustmentBudAmnt,Sheet1!S71_A2SubCode,$AC:$AC,Sheet1!S71_ItemType,$AD:$AD)","v":0},{"$f":"-SUMIFS(Sheet1!S71_AdjustmentBudAmnt,Sheet1!S71_A2SubCode,$AC:$AC,Sheet1!S71_ItemType,$AD:$AD)","v":0},{"$f":"-SUMIFS(Sheet1!S71_ASBudgetAmount,Sheet1!S71_A2SubCode,$AC:$AC,Sheet1!S71_ItemType,$AD:$AD)","v":0},{"$f":"-SUMIFS(Sheet1!S71_OY1BudgetAmount,Sheet1!S71_A2SubCode,$AC:$AC,Sheet1!S71_ItemType,$AD:$AD)","v":0},{"$f":"-SUMIFS(Sheet1!S71_OY2BudgetAmount,Sheet1!S71_A2SubCode,$AC:$AC,Sheet1!S71_ItemType,$AD:$AD)","v":0},null,null,null,null,null,null,null,null,null,null,null,null,null,null,null,null,null,2113,"IR"]
["Libraries and Archives",null,{"$f":"SUMIFS(Sheet1!S71_PPPYearAmount,Sheet1!S71_A2SubCode,$AC:$AC,Sheet1!S71_ItemType,$AD:$AD)","v":0},{"$f":"SUMIFS(Sheet1!S71_PPYearAmount,Sheet1!S71_A2SubCode,$AC:$AC,Sheet1!S71_ItemType,$AD:$AD)","v":0},{"$f":"SUMIFS(Sheet1!S71_PYearAmount,Sheet1!S71_A2SubCode,$AC:$AC,Sheet1!S71_ItemType,$AD:$AD)","v":0},{"$f":"-SUMIFS(Sheet1!S71_OriginalBudAmnt,Sheet1!S71_A2SubCode,$AC:$AC,Sheet1!S71_ItemType,$AD:$AD)","v":0},{"$f":"-SUMIFS(Sheet1!S71_AdjustmentBudAmnt,Sheet1!S71_A2SubCode,$AC:$AC,Sheet1!S71_ItemType,$AD:$AD)","v":0},{"$f":"-SUMIFS(Sheet1!S71_AdjustmentBudAmnt,Sheet1!S71_A2SubCode,$AC:$AC,Sheet1!S71_ItemType,$AD:$AD)","v":0},{"$f":"-SUMIFS(Sheet1!S71_ASBudgetAmount,Sheet1!S71_A2SubCode,$AC:$AC,Sheet1!S71_ItemType,$AD:$AD)","v":0},{"$f":"-SUMIFS(Sheet1!S71_OY1BudgetAmount,Sheet1!S71_A2SubCode,$AC:$AC,Sheet1!S71_ItemType,$AD:$AD)","v":0},{"$f":"-SUMIFS(Sheet1!S71_OY2BudgetAmount,Sheet1!S71_A2SubCode,$AC:$AC,Sheet1!S71_ItemType,$AD:$AD)","v":0},null,null,null,null,null,null,null,null,null,null,null,null,null,null,null,null,null,2114,"IR"]
["Literacy Programmes",null,{"$f":"SUMIFS(Sheet1!S71_PPPYearAmount,Sheet1!S71_A2SubCode,$AC:$AC,Sheet1!S71_ItemType,$AD:$AD)","v":0},{"$f":"SUMIFS(Sheet1!S71_PPYearAmount,Sheet1!S71_A2SubCode,$AC:$AC,Sheet1!S71_ItemType,$AD:$AD)","v":0},{"$f":"SUMIFS(Sheet1!S71_PYearAmount,Sheet1!S71_A2SubCode,$AC:$AC,Sheet1!S71_ItemType,$AD:$AD)","v":0},{"$f":"-SUMIFS(Sheet1!S71_OriginalBudAmnt,Sheet1!S71_A2SubCode,$AC:$AC,Sheet1!S71_ItemType,$AD:$AD)","v":0},{"$f":"-SUMIFS(Sheet1!S71_AdjustmentBudAmnt,Sheet1!S71_A2SubCode,$AC:$AC,Sheet1!S71_ItemType,$AD:$AD)","v":0},{"$f":"-SUMIFS(Sheet1!S71_AdjustmentBudAmnt,Sheet1!S71_A2SubCode,$AC:$AC,Sheet1!S71_ItemType,$AD:$AD)","v":0},{"$f":"-SUMIFS(Sheet1!S71_ASBudgetAmount,Sheet1!S71_A2SubCode,$AC:$AC,Sheet1!S71_ItemType,$AD:$AD)","v":0},{"$f":"-SUMIFS(Sheet1!S71_OY1BudgetAmount,Sheet1!S71_A2SubCode,$AC:$AC,Sheet1!S71_ItemType,$AD:$AD)","v":0},{"$f":"-SUMIFS(Sheet1!S71_OY2BudgetAmount,Sheet1!S71_A2SubCode,$AC:$AC,Sheet1!S71_ItemType,$AD:$AD)","v":0},null,null,null,null,null,null,null,null,null,null,null,null,null,null,null,null,null,2115,"IR"]
["Media Services",null,{"$f":"SUMIFS(Sheet1!S71_PPPYearAmount,Sheet1!S71_A2SubCode,$AC:$AC,Sheet1!S71_ItemType,$AD:$AD)","v":0},{"$f":"SUMIFS(Sheet1!S71_PPYearAmount,Sheet1!S71_A2SubCode,$AC:$AC,Sheet1!S71_ItemType,$AD:$AD)","v":0},{"$f":"SUMIFS(Sheet1!S71_PYearAmount,Sheet1!S71_A2SubCode,$AC:$AC,Sheet1!S71_ItemType,$AD:$AD)","v":0},{"$f":"-SUMIFS(Sheet1!S71_OriginalBudAmnt,Sheet1!S71_A2SubCode,$AC:$AC,Sheet1!S71_ItemType,$AD:$AD)","v":0},{"$f":"-SUMIFS(Sheet1!S71_AdjustmentBudAmnt,Sheet1!S71_A2SubCode,$AC:$AC,Sheet1!S71_ItemType,$AD:$AD)","v":0},{"$f":"-SUMIFS(Sheet1!S71_AdjustmentBudAmnt,Sheet1!S71_A2SubCode,$AC:$AC,Sheet1!S71_ItemType,$AD:$AD)","v":0},{"$f":"-SUMIFS(Sheet1!S71_ASBudgetAmount,Sheet1!S71_A2SubCode,$AC:$AC,Sheet1!S71_ItemType,$AD:$AD)","v":0},{"$f":"-SUMIFS(Sheet1!S71_OY1BudgetAmount,Sheet1!S71_A2SubCode,$AC:$AC,Sheet1!S71_ItemType,$AD:$AD)","v":0},{"$f":"-SUMIFS(Sheet1!S71_OY2BudgetAmount,Sheet1!S71_A2SubCode,$AC:$AC,Sheet1!S71_ItemType,$AD:$AD)","v":0},null,null,null,null,null,null,null,null,null,null,null,null,null,null,null,null,null,2116,"IR"]
["Museums and Art Galleries",null,{"$f":"SUMIFS(Sheet1!S71_PPPYearAmount,Sheet1!S71_A2SubCode,$AC:$AC,Sheet1!S71_ItemType,$AD:$AD)","v":0},{"$f":"SUMIFS(Sheet1!S71_PPYearAmount,Sheet1!S71_A2SubCode,$AC:$AC,Sheet1!S71_ItemType,$AD:$AD)","v":0},{"$f":"SUMIFS(Sheet1!S71_PYearAmount,Sheet1!S71_A2SubCode,$AC:$AC,Sheet1!S71_ItemType,$AD:$AD)","v":0},{"$f":"-SUMIFS(Sheet1!S71_OriginalBudAmnt,Sheet1!S71_A2SubCode,$AC:$AC,Sheet1!S71_ItemType,$AD:$AD)","v":0},{"$f":"-SUMIFS(Sheet1!S71_AdjustmentBudAmnt,Sheet1!S71_A2SubCode,$AC:$AC,Sheet1!S71_ItemType,$AD:$AD)","v":0},{"$f":"-SUMIFS(Sheet1!S71_AdjustmentBudAmnt,Sheet1!S71_A2SubCode,$AC:$AC,Sheet1!S71_ItemType,$AD:$AD)","v":0},{"$f":"-SUMIFS(Sheet1!S71_ASBudgetAmount,Sheet1!S71_A2SubCode,$AC:$AC,Sheet1!S71_ItemType,$AD:$AD)","v":0},{"$f":"-SUMIFS(Sheet1!S71_OY1BudgetAmount,Sheet1!S71_A2SubCode,$AC:$AC,Sheet1!S71_ItemType,$AD:$AD)","v":0},{"$f":"-SUMIFS(Sheet1!S71_OY2BudgetAmount,Sheet1!S71_A2SubCode,$AC:$AC,Sheet1!S71_ItemType,$AD:$AD)","v":0},null,null,null,null,null,null,null,null,null,null,null,null,null,null,null,null,null,2117,"IR"]
["Population Development",null,{"$f":"SUMIFS(Sheet1!S71_PPPYearAmount,Sheet1!S71_A2SubCode,$AC:$AC,Sheet1!S71_ItemType,$AD:$AD)","v":0},{"$f":"SUMIFS(Sheet1!S71_PPYearAmount,Sheet1!S71_A2SubCode,$AC:$AC,Sheet1!S71_ItemType,$AD:$AD)","v":0},{"$f":"SUMIFS(Sheet1!S71_PYearAmount,Sheet1!S71_A2SubCode,$AC:$AC,Sheet1!S71_ItemType,$AD:$AD)","v":0},{"$f":"-SUMIFS(Sheet1!S71_OriginalBudAmnt,Sheet1!S71_A2SubCode,$AC:$AC,Sheet1!S71_ItemType,$AD:$AD)","v":0},{"$f":"-SUMIFS(Sheet1!S71_AdjustmentBudAmnt,Sheet1!S71_A2SubCode,$AC:$AC,Sheet1!S71_ItemType,$AD:$AD)","v":0},{"$f":"-SUMIFS(Sheet1!S71_AdjustmentBudAmnt,Sheet1!S71_A2SubCode,$AC:$AC,Sheet1!S71_ItemType,$AD:$AD)","v":0},{"$f":"-SUMIFS(Sheet1!S71_ASBudgetAmount,Sheet1!S71_A2SubCode,$AC:$AC,Sheet1!S71_ItemType,$AD:$AD)","v":0},{"$f":"-SUMIFS(Sheet1!S71_OY1BudgetAmount,Sheet1!S71_A2SubCode,$AC:$AC,Sheet1!S71_ItemType,$AD:$AD)","v":0},{"$f":"-SUMIFS(Sheet1!S71_OY2BudgetAmount,Sheet1!S71_A2SubCode,$AC:$AC,Sheet1!S71_ItemType,$AD:$AD)","v":0},null,null,null,null,null,null,null,null,null,null,null,null,null,null,null,null,null,2118,"IR"]
["Provincial Cultural Matters",null,{"$f":"SUMIFS(Sheet1!S71_PPPYearAmount,Sheet1!S71_A2SubCode,$AC:$AC,Sheet1!S71_ItemType,$AD:$AD)","v":0},{"$f":"SUMIFS(Sheet1!S71_PPYearAmount,Sheet1!S71_A2SubCode,$AC:$AC,Sheet1!S71_ItemType,$AD:$AD)","v":0},{"$f":"SUMIFS(Sheet1!S71_PYearAmount,Sheet1!S71_A2SubCode,$AC:$AC,Sheet1!S71_ItemType,$AD:$AD)","v":0},{"$f":"-SUMIFS(Sheet1!S71_OriginalBudAmnt,Sheet1!S71_A2SubCode,$AC:$AC,Sheet1!S71_ItemType,$AD:$AD)","v":0},{"$f":"-SUMIFS(Sheet1!S71_AdjustmentBudAmnt,Sheet1!S71_A2SubCode,$AC:$AC,Sheet1!S71_ItemType,$AD:$AD)","v":0},{"$f":"-SUMIFS(Sheet1!S71_AdjustmentBudAmnt,Sheet1!S71_A2SubCode,$AC:$AC,Sheet1!S71_ItemType,$AD:$AD)","v":0},{"$f":"-SUMIFS(Sheet1!S71_ASBudgetAmount,Sheet1!S71_A2SubCode,$AC:$AC,Sheet1!S71_ItemType,$AD:$AD)","v":0},{"$f":"-SUMIFS(Sheet1!S71_OY1BudgetAmount,Sheet1!S71_A2SubCode,$AC:$AC,Sheet1!S71_ItemType,$AD:$AD)","v":0},{"$f":"-SUMIFS(Sheet1!S71_OY2BudgetAmount,Sheet1!S71_A2SubCode,$AC:$AC,Sheet1!S71_ItemType,$AD:$AD)","v":0},null,null,null,null,null,null,null,null,null,null,null,null,null,null,null,null,null,2119,"IR"]
["Theatres",null,{"$f":"SUMIFS(Sheet1!S71_PPPYearAmount,Sheet1!S71_A2SubCode,$AC:$AC,Sheet1!S71_ItemType,$AD:$AD)","v":0},{"$f":"SUMIFS(Sheet1!S71_PPYearAmount,Sheet1!S71_A2SubCode,$AC:$AC,Sheet1!S71_ItemType,$AD:$AD)","v":0},{"$f":"SUMIFS(Sheet1!S71_PYearAmount,Sheet1!S71_A2SubCode,$AC:$AC,Sheet1!S71_ItemType,$AD:$AD)","v":0},{"$f":"-SUMIFS(Sheet1!S71_OriginalBudAmnt,Sheet1!S71_A2SubCode,$AC:$AC,Sheet1!S71_ItemType,$AD:$AD)","v":0},{"$f":"-SUMIFS(Sheet1!S71_AdjustmentBudAmnt,Sheet1!S71_A2SubCode,$AC:$AC,Sheet1!S71_ItemType,$AD:$AD)","v":0},{"$f":"-SUMIFS(Sheet1!S71_AdjustmentBudAmnt,Sheet1!S71_A2SubCode,$AC:$AC,Sheet1!S71_ItemType,$AD:$AD)","v":0},{"$f":"-SUMIFS(Sheet1!S71_ASBudgetAmount,Sheet1!S71_A2SubCode,$AC:$AC,Sheet1!S71_ItemType,$AD:$AD)","v":0},{"$f":"-SUMIFS(Sheet1!S71_OY1BudgetAmount,Sheet1!S71_A2SubCode,$AC:$AC,Sheet1!S71_ItemType,$AD:$AD)","v":0},{"$f":"-SUMIFS(Sheet1!S71_OY2BudgetAmount,Sheet1!S71_A2SubCode,$AC:$AC,Sheet1!S71_ItemType,$AD:$AD)","v":0},null,null,null,null,null,null,null,null,null,null,null,null,null,null,null,null,null,2120,"IR"]
["Zoo's",null,{"$f":"SUMIFS(Sheet1!S71_PPPYearAmount,Sheet1!S71_A2SubCode,$AC:$AC,Sheet1!S71_ItemType,$AD:$AD)","v":0},{"$f":"SUMIFS(Sheet1!S71_PPYearAmount,Sheet1!S71_A2SubCode,$AC:$AC,Sheet1!S71_ItemType,$AD:$AD)","v":0},{"$f":"SUMIFS(Sheet1!S71_PYearAmount,Sheet1!S71_A2SubCode,$AC:$AC,Sheet1!S71_ItemType,$AD:$AD)","v":0},{"$f":"-SUMIFS(Sheet1!S71_OriginalBudAmnt,Sheet1!S71_A2SubCode,$AC:$AC,Sheet1!S71_ItemType,$AD:$AD)","v":0},{"$f":"-SUMIFS(Sheet1!S71_AdjustmentBudAmnt,Sheet1!S71_A2SubCode,$AC:$AC,Sheet1!S71_ItemType,$AD:$AD)","v":0},{"$f":"-SUMIFS(Sheet1!S71_AdjustmentBudAmnt,Sheet1!S71_A2SubCode,$AC:$AC,Sheet1!S71_ItemType,$AD:$AD)","v":0},{"$f":"-SUMIFS(Sheet1!S71_ASBudgetAmount,Sheet1!S71_A2SubCode,$AC:$AC,Sheet1!S71_ItemType,$AD:$AD)","v":0},{"$f":"-SUMIFS(Sheet1!S71_OY1BudgetAmount,Sheet1!S71_A2SubCode,$AC:$AC,Sheet1!S71_ItemType,$AD:$AD)","v":0},{"$f":"-SUMIFS(Sheet1!S71_OY2BudgetAmount,Sheet1!S71_A2SubCode,$AC:$AC,Sheet1!S71_ItemType,$AD:$AD)","v":0},null,null,null,null,null,null,null,null,null,null,null,null,null,null,null,null,null,2121,"IR"]
["Sport and recreation",null,{"$f":"SUM(C49:C53)","v":0},{"$f":"SUM(D49:D53)","v":0},0,0,0,0,0,0,0]
["Beaches and Jetties ",null,{"$f":"SUMIFS(Sheet1!S71_PPPYearAmount,Sheet1!S71_A2SubCode,$AC:$AC,Sheet1!S71_ItemType,$AD:$AD)","v":0},{"$f":"SUMIFS(Sheet1!S71_PPYearAmount,Sheet1!S71_A2SubCode,$AC:$AC,Sheet1!S71_ItemType,$AD:$AD)","v":0},{"$f":"SUMIFS(Sheet1!S71_PYearAmount,Sheet1!S71_A2SubCode,$AC:$AC,Sheet1!S71_ItemType,$AD:$AD)","v":0},{"$f":"-SUMIFS(Sheet1!S71_OriginalBudAmnt,Sheet1!S71_A2SubCode,$AC:$AC,Sheet1!S71_ItemType,$AD:$AD)","v":0},{"$f":"-SUMIFS(Sheet1!S71_AdjustmentBudAmnt,Sheet1!S71_A2SubCode,$AC:$AC,Sheet1!S71_ItemType,$AD:$AD)","v":0},{"$f":"-SUMIFS(Sheet1!S71_AdjustmentBudAmnt,Sheet1!S71_A2SubCode,$AC:$AC,Sheet1!S71_ItemType,$AD:$AD)","v":0},{"$f":"-SUMIFS(Sheet1!S71_ASBudgetAmount,Sheet1!S71_A2SubCode,$AC:$AC,Sheet1!S71_ItemType,$AD:$AD)","v":0},{"$f":"-SUMIFS(Sheet1!S71_OY1BudgetAmount,Sheet1!S71_A2SubCode,$AC:$AC,Sheet1!S71_ItemType,$AD:$AD)","v":0},{"$f":"-SUMIFS(Sheet1!S71_OY2BudgetAmount,Sheet1!S71_A2SubCode,$AC:$AC,Sheet1!S71_ItemType,$AD:$AD)","v":0},null,null,null,null,null,null,null,null,null,null,null,null,null,null,null,null,null,2201,"IR"]
["Casinos, Racing, Gambling, Wagering",null,{"$f":"SUMIFS(Sheet1!S71_PPPYearAmount,Sheet1!S71_A2SubCode,$AC:$AC,Sheet1!S71_ItemType,$AD:$AD)","v":0},{"$f":"SUMIFS(Sheet1!S71_PPYearAmount,Sheet1!S71_A2SubCode,$AC:$AC,Sheet1!S71_ItemType,$AD:$AD)","v":0},{"$f":"SUMIFS(Sheet1!S71_PYearAmount,Sheet1!S71_A2SubCode,$AC:$AC,Sheet1!S71_ItemType,$AD:$AD)","v":0},{"$f":"-SUMIFS(Sheet1!S71_OriginalBudAmnt,Sheet1!S71_A2SubCode,$AC:$AC,Sheet1!S71_ItemType,$AD:$AD)","v":0},{"$f":"-SUMIFS(Sheet1!S71_AdjustmentBudAmnt,Sheet1!S71_A2SubCode,$AC:$AC,Sheet1!S71_ItemType,$AD:$AD)","v":0},{"$f":"-SUMIFS(Sheet1!S71_AdjustmentBudAmnt,Sheet1!S71_A2SubCode,$AC:$AC,Sheet1!S71_ItemType,$AD:$AD)","v":0},{"$f":"-SUMIFS(Sheet1!S71_ASBudgetAmount,Sheet1!S71_A2SubCode,$AC:$AC,Sheet1!S71_ItemType,$AD:$AD)","v":0},{"$f":"-SUMIFS(Sheet1!S71_OY1BudgetAmount,Sheet1!S71_A2SubCode,$AC:$AC,Sheet1!S71_ItemType,$AD:$AD)","v":0},{"$f":"-SUMIFS(Sheet1!S71_OY2BudgetAmount,Sheet1!S71_A2SubCode,$AC:$AC,Sheet1!S71_ItemType,$AD:$AD)","v":0},null,null,null,null,null,null,null,null,null,null,null,null,null,null,null,null,null,2202,"IR"]
["Community Parks (including Nurseries)",null,{"$f":"SUMIFS(Sheet1!S71_PPPYearAmount,Sheet1!S71_A2SubCode,$AC:$AC,Sheet1!S71_ItemType,$AD:$AD)","v":0},{"$f":"SUMIFS(Sheet1!S71_PPYearAmount,Sheet1!S71_A2SubCode,$AC:$AC,Sheet1!S71_ItemType,$AD:$AD)","v":0},{"$f":"SUMIFS(Sheet1!S71_PYearAmount,Sheet1!S71_A2SubCode,$AC:$AC,Sheet1!S71_ItemType,$AD:$AD)","v":0},{"$f":"-SUMIFS(Sheet1!S71_OriginalBudAmnt,Sheet1!S71_A2SubCode,$AC:$AC,Sheet1!S71_ItemType,$AD:$AD)","v":0},{"$f":"-SUMIFS(Sheet1!S71_AdjustmentBudAmnt,Sheet1!S71_A2SubCode,$AC:$AC,Sheet1!S71_ItemType,$AD:$AD)","v":0},{"$f":"-SUMIFS(Sheet1!S71_AdjustmentBudAmnt,Sheet1!S71_A2SubCode,$AC:$AC,Sheet1!S71_ItemType,$AD:$AD)","v":0},{"$f":"-SUMIFS(Sheet1!S71_ASBudgetAmount,Sheet1!S71_A2SubCode,$AC:$AC,Sheet1!S71_ItemType,$AD:$AD)","v":0},{"$f":"-SUMIFS(Sheet1!S71_OY1BudgetAmount,Sheet1!S71_A2SubCode,$AC:$AC,Sheet1!S71_ItemType,$AD:$AD)","v":0},{"$f":"-SUMIFS(Sheet1!S71_OY2BudgetAmount,Sheet1!S71_A2SubCode,$AC:$AC,Sheet1!S71_ItemType,$AD:$AD)","v":0},null,null,null,null,null,null,null,null,null,null,null,null,null,null,null,null,null,2203,"IR"]
["Recreational Facilities",null,{"$f":"SUMIFS(Sheet1!S71_PPPYearAmount,Sheet1!S71_A2SubCode,$AC:$AC,Sheet1!S71_ItemType,$AD:$AD)","v":0},{"$f":"SUMIFS(Sheet1!S71_PPYearAmount,Sheet1!S71_A2SubCode,$AC:$AC,Sheet1!S71_ItemType,$AD:$AD)","v":0},{"$f":"SUMIFS(Sheet1!S71_PYearAmount,Sheet1!S71_A2SubCode,$AC:$AC,Sheet1!S71_ItemType,$AD:$AD)","v":0},{"$f":"-SUMIFS(Sheet1!S71_OriginalBudAmnt,Sheet1!S71_A2SubCode,$AC:$AC,Sheet1!S71_ItemType,$AD:$AD)","v":0},{"$f":"-SUMIFS(Sheet1!S71_AdjustmentBudAmnt,Sheet1!S71_A2SubCode,$AC:$AC,Sheet1!S71_ItemType,$AD:$AD)","v":0},{"$f":"-SUMIFS(Sheet1!S71_AdjustmentBudAmnt,Sheet1!S71_A2SubCode,$AC:$AC,Sheet1!S71_ItemType,$AD:$AD)","v":0},{"$f":"-SUMIFS(Sheet1!S71_ASBudgetAmount,Sheet1!S71_A2SubCode,$AC:$AC,Sheet1!S71_ItemType,$AD:$AD)","v":0},{"$f":"-SUMIFS(Sheet1!S71_OY1BudgetAmount,Sheet1!S71_A2SubCode,$AC:$AC,Sheet1!S71_ItemType,$AD:$AD)","v":0},{"$f":"-SUMIFS(Sheet1!S71_OY2BudgetAmount,Sheet1!S71_A2SubCode,$AC:$AC,Sheet1!S71_ItemType,$AD:$AD)","v":0},null,null,null,null,null,null,null,null,null,null,null,null,null,null,null,null,null,2204,"IR"]
["Sports Grounds and Stadiums",null,{"$f":"SUMIFS(Sheet1!S71_PPPYearAmount,Sheet1!S71_A2SubCode,$AC:$AC,Sheet1!S71_ItemType,$AD:$AD)","v":0},{"$f":"SUMIFS(Sheet1!S71_PPYearAmount,Sheet1!S71_A2SubCode,$AC:$AC,Sheet1!S71_ItemType,$AD:$AD)","v":0},{"$f":"SUMIFS(Sheet1!S71_PYearAmount,Sheet1!S71_A2SubCode,$AC:$AC,Sheet1!S71_ItemType,$AD:$AD)","v":0},{"$f":"-SUMIFS(Sheet1!S71_OriginalBudAmnt,Sheet1!S71_A2SubCode,$AC:$AC,Sheet1!S71_ItemType,$AD:$AD)","v":0},{"$f":"-SUMIFS(Sheet1!S71_AdjustmentBudAmnt,Sheet1!S71_A2SubCode,$AC:$AC,Sheet1!S71_ItemType,$AD:$AD)","v":0},{"$f":"-SUMIFS(Sheet1!S71_AdjustmentBudAmnt,Sheet1!S71_A2SubCode,$AC:$AC,Sheet1!S71_ItemType,$AD:$AD)","v":0},{"$f":"-SUMIFS(Sheet1!S71_ASBudgetAmount,Sheet1!S71_A2SubCode,$AC:$AC,Sheet1!S71_ItemType,$AD:$AD)","v":0},{"$f":"-SUMIFS(Sheet1!S71_OY1BudgetAmount,Sheet1!S71_A2SubCode,$AC:$AC,Sheet1!S71_ItemType,$AD:$AD)","v":0},{"$f":"-SUMIFS(Sheet1!S71_OY2BudgetAmount,Sheet1!S71_A2SubCode,$AC:$AC,Sheet1!S71_ItemType,$AD:$AD)","v":0},null,null,null,null,null,null,null,null,null,null,null,null,null,null,null,null,null,2205,"IR"]
["Public safety",null,{"$f":"SUM(C55:C62)","v":0},0,0,0,0,0,0,0,0]
["Civil Defence",null,{"$f":"SUMIFS(Sheet1!S71_PPPYearAmount,Sheet1!S71_A2SubCode,$AC:$AC,Sheet1!S71_ItemType,$AD:$AD)","v":0},{"$f":"SUMIFS(Sheet1!S71_PPYearAmount,Sheet1!S71_A2SubCode,$AC:$AC,Sheet1!S71_ItemType,$AD:$AD)","v":0},{"$f":"SUMIFS(Sheet1!S71_PYearAmount,Sheet1!S71_A2SubCode,$AC:$AC,Sheet1!S71_ItemType,$AD:$AD)","v":0},{"$f":"-SUMIFS(Sheet1!S71_OriginalBudAmnt,Sheet1!S71_A2SubCode,$AC:$AC,Sheet1!S71_ItemType,$AD:$AD)","v":0},{"$f":"-SUMIFS(Sheet1!S71_AdjustmentBudAmnt,Sheet1!S71_A2SubCode,$AC:$AC,Sheet1!S71_ItemType,$AD:$AD)","v":0},{"$f":"-SUMIFS(Sheet1!S71_AdjustmentBudAmnt,Sheet1!S71_A2SubCode,$AC:$AC,Sheet1!S71_ItemType,$AD:$AD)","v":0},{"$f":"-SUMIFS(Sheet1!S71_ASBudgetAmount,Sheet1!S71_A2SubCode,$AC:$AC,Sheet1!S71_ItemType,$AD:$AD)","v":0},{"$f":"-SUMIFS(Sheet1!S71_OY1BudgetAmount,Sheet1!S71_A2SubCode,$AC:$AC,Sheet1!S71_ItemType,$AD:$AD)","v":0},{"$f":"-SUMIFS(Sheet1!S71_OY2BudgetAmount,Sheet1!S71_A2SubCode,$AC:$AC,Sheet1!S71_ItemType,$AD:$AD)","v":0},null,null,null,null,null,null,null,null,null,null,null,null,null,null,null,null,null,2301,"IR"]
["Cleansing",null,{"$f":"SUMIFS(Sheet1!S71_PPPYearAmount,Sheet1!S71_A2SubCode,$AC:$AC,Sheet1!S71_ItemType,$AD:$AD)","v":0},{"$f":"SUMIFS(Sheet1!S71_PPYearAmount,Sheet1!S71_A2SubCode,$AC:$AC,Sheet1!S71_ItemType,$AD:$AD)","v":0},{"$f":"SUMIFS(Sheet1!S71_PYearAmount,Sheet1!S71_A2SubCode,$AC:$AC,Sheet1!S71_ItemType,$AD:$AD)","v":0},{"$f":"-SUMIFS(Sheet1!S71_OriginalBudAmnt,Sheet1!S71_A2SubCode,$AC:$AC,Sheet1!S71_ItemType,$AD:$AD)","v":0},{"$f":"-SUMIFS(Sheet1!S71_AdjustmentBudAmnt,Sheet1!S71_A2SubCode,$AC:$AC,Sheet1!S71_ItemType,$AD:$AD)","v":0},{"$f":"-SUMIFS(Sheet1!S71_AdjustmentBudAmnt,Sheet1!S71_A2SubCode,$AC:$AC,Sheet1!S71_ItemType,$AD:$AD)","v":0},{"$f":"-SUMIFS(Sheet1!S71_ASBudgetAmount,Sheet1!S71_A2SubCode,$AC:$AC,Sheet1!S71_ItemType,$AD:$AD)","v":0},{"$f":"-SUMIFS(Sheet1!S71_OY1BudgetAmount,Sheet1!S71_A2SubCode,$AC:$AC,Sheet1!S71_ItemType,$AD:$AD)","v":0},{"$f":"-SUMIFS(Sheet1!S71_OY2BudgetAmount,Sheet1!S71_A2SubCode,$AC:$AC,Sheet1!S71_ItemType,$AD:$AD)","v":0},null,null,null,null,null,null,null,null,null,null,null,null,null,null,null,null,null,2302,"IR"]
["Control of Public Nuisances",null,{"$f":"SUMIFS(Sheet1!S71_PPPYearAmount,Sheet1!S71_A2SubCode,$AC:$AC,Sheet1!S71_ItemType,$AD:$AD)","v":0},{"$f":"SUMIFS(Sheet1!S71_PPYearAmount,Sheet1!S71_A2SubCode,$AC:$AC,Sheet1!S71_ItemType,$AD:$AD)","v":0},{"$f":"SUMIFS(Sheet1!S71_PYearAmount,Sheet1!S71_A2SubCode,$AC:$AC,Sheet1!S71_ItemType,$AD:$AD)","v":0},{"$f":"-SUMIFS(Sheet1!S71_OriginalBudAmnt,Sheet1!S71_A2SubCode,$AC:$AC,Sheet1!S71_ItemType,$AD:$AD)","v":0},{"$f":"-SUMIFS(Sheet1!S71_AdjustmentBudAmnt,Sheet1!S71_A2SubCode,$AC:$AC,Sheet1!S71_ItemType,$AD:$AD)","v":0},{"$f":"-SUMIFS(Sheet1!S71_AdjustmentBudAmnt,Sheet1!S71_A2SubCode,$AC:$AC,Sheet1!S71_ItemType,$AD:$AD)","v":0},{"$f":"-SUMIFS(Sheet1!S71_ASBudgetAmount,Sheet1!S71_A2SubCode,$AC:$AC,Sheet1!S71_ItemType,$AD:$AD)","v":0},{"$f":"-SUMIFS(Sheet1!S71_OY1BudgetAmount,Sheet1!S71_A2SubCode,$AC:$AC,Sheet1!S71_ItemType,$AD:$AD)","v":0},{"$f":"-SUMIFS(Sheet1!S71_OY2BudgetAmount,Sheet1!S71_A2SubCode,$AC:$AC,Sheet1!S71_ItemType,$AD:$AD)","v":0},null,null,null,null,null,null,null,null,null,null,null,null,null,null,null,null,null,2303,"IR"]
["Fencing and Fences ",null,{"$f":"SUMIFS(Sheet1!S71_PPPYearAmount,Sheet1!S71_A2SubCode,$AC:$AC,Sheet1!S71_ItemType,$AD:$AD)","v":0},{"$f":"SUMIFS(Sheet1!S71_PPYearAmount,Sheet1!S71_A2SubCode,$AC:$AC,Sheet1!S71_ItemType,$AD:$AD)","v":0},{"$f":"SUMIFS(Sheet1!S71_PYearAmount,Sheet1!S71_A2SubCode,$AC:$AC,Sheet1!S71_ItemType,$AD:$AD)","v":0},{"$f":"-SUMIFS(Sheet1!S71_OriginalBudAmnt,Sheet1!S71_A2SubCode,$AC:$AC,Sheet1!S71_ItemType,$AD:$AD)","v":0},{"$f":"-SUMIFS(Sheet1!S71_AdjustmentBudAmnt,Sheet1!S71_A2SubCode,$AC:$AC,Sheet1!S71_ItemType,$AD:$AD)","v":0},{"$f":"-SUMIFS(Sheet1!S71_AdjustmentBudAmnt,Sheet1!S71_A2SubCode,$AC:$AC,Sheet1!S71_ItemType,$AD:$AD)","v":0},{"$f":"-SUMIFS(Sheet1!S71_ASBudgetAmount,Sheet1!S71_A2SubCode,$AC:$AC,Sheet1!S71_ItemType,$AD:$AD)","v":0},{"$f":"-SUMIFS(Sheet1!S71_OY1BudgetAmount,Sheet1!S71_A2SubCode,$AC:$AC,Sheet1!S71_ItemType,$AD:$AD)","v":0},{"$f":"-SUMIFS(Sheet1!S71_OY2BudgetAmount,Sheet1!S71_A2SubCode,$AC:$AC,Sheet1!S71_ItemType,$AD:$AD)","v":0},null,null,null,null,null,null,null,null,null,null,null,null,null,null,null,null,null,2304,"IR"]
["Fire Fighting and Protection",null,{"$f":"SUMIFS(Sheet1!S71_PPPYearAmount,Sheet1!S71_A2SubCode,$AC:$AC,Sheet1!S71_ItemType,$AD:$AD)","v":0},{"$f":"SUMIFS(Sheet1!S71_PPYearAmount,Sheet1!S71_A2SubCode,$AC:$AC,Sheet1!S71_ItemType,$AD:$AD)","v":0},{"$f":"SUMIFS(Sheet1!S71_PYearAmount,Sheet1!S71_A2SubCode,$AC:$AC,Sheet1!S71_ItemType,$AD:$AD)","v":0},{"$f":"-SUMIFS(Sheet1!S71_OriginalBudAmnt,Sheet1!S71_A2SubCode,$AC:$AC,Sheet1!S71_ItemType,$AD:$AD)","v":0},{"$f":"-SUMIFS(Sheet1!S71_AdjustmentBudAmnt,Sheet1!S71_A2SubCode,$AC:$AC,Sheet1!S71_ItemType,$AD:$AD)","v":0},{"$f":"-SUMIFS(Sheet1!S71_AdjustmentBudAmnt,Sheet1!S71_A2SubCode,$AC:$AC,Sheet1!S71_ItemType,$AD:$AD)","v":0},{"$f":"-SUMIFS(Sheet1!S71_ASBudgetAmount,Sheet1!S71_A2SubCode,$AC:$AC,Sheet1!S71_ItemType,$AD:$AD)","v":0},{"$f":"-SUMIFS(Sheet1!S71_OY1BudgetAmount,Sheet1!S71_A2SubCode,$AC:$AC,Sheet1!S71_ItemType,$AD:$AD)","v":0},{"$f":"-SUMIFS(Sheet1!S71_OY2BudgetAmount,Sheet1!S71_A2SubCode,$AC:$AC,Sheet1!S71_ItemType,$AD:$AD)","v":0},null,null,null,null,null,null,null,null,null,null,null,null,null,null,null,null,null,2305,"IR"]
["Licensing and Control of Animals",null,{"$f":"SUMIFS(Sheet1!S71_PPPYearAmount,Sheet1!S71_A2SubCode,$AC:$AC,Sheet1!S71_ItemType,$AD:$AD)","v":0},{"$f":"SUMIFS(Sheet1!S71_PPYearAmount,Sheet1!S71_A2SubCode,$AC:$AC,Sheet1!S71_ItemType,$AD:$AD)","v":0},{"$f":"SUMIFS(Sheet1!S71_PYearAmount,Sheet1!S71_A2SubCode,$AC:$AC,Sheet1!S71_ItemType,$AD:$AD)","v":0},{"$f":"-SUMIFS(Sheet1!S71_OriginalBudAmnt,Sheet1!S71_A2SubCode,$AC:$AC,Sheet1!S71_ItemType,$AD:$AD)","v":0},{"$f":"-SUMIFS(Sheet1!S71_AdjustmentBudAmnt,Sheet1!S71_A2SubCode,$AC:$AC,Sheet1!S71_ItemType,$AD:$AD)","v":0},{"$f":"-SUMIFS(Sheet1!S71_AdjustmentBudAmnt,Sheet1!S71_A2SubCode,$AC:$AC,Sheet1!S71_ItemType,$AD:$AD)","v":0},{"$f":"-SUMIFS(Sheet1!S71_ASBudgetAmount,Sheet1!S71_A2SubCode,$AC:$AC,Sheet1!S71_ItemType,$AD:$AD)","v":0},{"$f":"-SUMIFS(Sheet1!S71_OY1BudgetAmount,Sheet1!S71_A2SubCode,$AC:$AC,Sheet1!S71_ItemType,$AD:$AD)","v":0},{"$f":"-SUMIFS(Sheet1!S71_OY2BudgetAmount,Sheet1!S71_A2SubCode,$AC:$AC,Sheet1!S71_ItemType,$AD:$AD)","v":0},null,null,null,null,null,null,null,null,null,null,null,null,null,null,null,null,null,2306,"IR"]
["Police Forces, Traffic and Street Parking Control",null,{"$f":"SUMIFS(Sheet1!S71_PPPYearAmount,Sheet1!S71_A2SubCode,$AC:$AC,Sheet1!S71_ItemType,$AD:$AD)","v":0},{"$f":"SUMIFS(Sheet1!S71_PPYearAmount,Sheet1!S71_A2SubCode,$AC:$AC,Sheet1!S71_ItemType,$AD:$AD)","v":0},{"$f":"SUMIFS(Sheet1!S71_PYearAmount,Sheet1!S71_A2SubCode,$AC:$AC,Sheet1!S71_ItemType,$AD:$AD)","v":0},{"$f":"-SUMIFS(Sheet1!S71_OriginalBudAmnt,Sheet1!S71_A2SubCode,$AC:$AC,Sheet1!S71_ItemType,$AD:$AD)","v":0},{"$f":"-SUMIFS(Sheet1!S71_AdjustmentBudAmnt,Sheet1!S71_A2SubCode,$AC:$AC,Sheet1!S71_ItemType,$AD:$AD)","v":0},{"$f":"-SUMIFS(Sheet1!S71_AdjustmentBudAmnt,Sheet1!S71_A2SubCode,$AC:$AC,Sheet1!S71_ItemType,$AD:$AD)","v":0},{"$f":"-SUMIFS(Sheet1!S71_ASBudgetAmount,Sheet1!S71_A2SubCode,$AC:$AC,Sheet1!S71_ItemType,$AD:$AD)","v":0},{"$f":"-SUMIFS(Sheet1!S71_OY1BudgetAmount,Sheet1!S71_A2SubCode,$AC:$AC,Sheet1!S71_ItemType,$AD:$AD)","v":0},{"$f":"-SUMIFS(Sheet1!S71_OY2BudgetAmount,Sheet1!S71_A2SubCode,$AC:$AC,Sheet1!S71_ItemType,$AD:$AD)","v":0},null,null,null,null,null,null,null,null,null,null,null,null,null,null,null,null,null,2307,"IR"]
["Pounds",null,{"$f":"SUMIFS(Sheet1!S71_PPPYearAmount,Sheet1!S71_A2SubCode,$AC:$AC,Sheet1!S71_ItemType,$AD:$AD)","v":0},{"$f":"SUMIFS(Sheet1!S71_PPYearAmount,Sheet1!S71_A2SubCode,$AC:$AC,Sheet1!S71_ItemType,$AD:$AD)","v":0},{"$f":"SUMIFS(Sheet1!S71_PYearAmount,Sheet1!S71_A2SubCode,$AC:$AC,Sheet1!S71_ItemType,$AD:$AD)","v":0},{"$f":"-SUMIFS(Sheet1!S71_OriginalBudAmnt,Sheet1!S71_A2SubCode,$AC:$AC,Sheet1!S71_ItemType,$AD:$AD)","v":0},{"$f":"-SUMIFS(Sheet1!S71_AdjustmentBudAmnt,Sheet1!S71_A2SubCode,$AC:$AC,Sheet1!S71_ItemType,$AD:$AD)","v":0},{"$f":"-SUMIFS(Sheet1!S71_AdjustmentBudAmnt,Sheet1!S71_A2SubCode,$AC:$AC,Sheet1!S71_ItemType,$AD:$AD)","v":0},{"$f":"-SUMIFS(Sheet1!S71_ASBudgetAmount,Sheet1!S71_A2SubCode,$AC:$AC,Sheet1!S71_ItemType,$AD:$AD)","v":0},{"$f":"-SUMIFS(Sheet1!S71_OY1BudgetAmount,Sheet1!S71_A2SubCode,$AC:$AC,Sheet1!S71_ItemType,$AD:$AD)","v":0},{"$f":"-SUMIFS(Sheet1!S71_OY2BudgetAmount,Sheet1!S71_A2SubCode,$AC:$AC,Sheet1!S71_ItemType,$AD:$AD)","v":0},null,null,null,null,null,null,null,null,null,null,null,null,null,null,null,null,null,2308,"IR"]
["Housing",null,{"$f":"SUM(C64:C65)","v":0},{"$f":"SUM(D64:D65)","v":0},0,0,0,0,0,0,0]
["Housing",null,{"$f":"SUMIFS(Sheet1!S71_PPPYearAmount,Sheet1!S71_A2SubCode,$AC:$AC,Sheet1!S71_ItemType,$AD:$AD)","v":0},{"$f":"SUMIFS(Sheet1!S71_PPYearAmount,Sheet1!S71_A2SubCode,$AC:$AC,Sheet1!S71_ItemType,$AD:$AD)","v":0},{"$f":"SUMIFS(Sheet1!S71_PYearAmount,Sheet1!S71_A2SubCode,$AC:$AC,Sheet1!S71_ItemType,$AD:$AD)","v":0},{"$f":"-SUMIFS(Sheet1!S71_OriginalBudAmnt,Sheet1!S71_A2SubCode,$AC:$AC,Sheet1!S71_ItemType,$AD:$AD)","v":0},{"$f":"-SUMIFS(Sheet1!S71_AdjustmentBudAmnt,Sheet1!S71_A2SubCode,$AC:$AC,Sheet1!S71_ItemType,$AD:$AD)","v":0},{"$f":"-SUMIFS(Sheet1!S71_AdjustmentBudAmnt,Sheet1!S71_A2SubCode,$AC:$AC,Sheet1!S71_ItemType,$AD:$AD)","v":0},{"$f":"-SUMIFS(Sheet1!S71_ASBudgetAmount,Sheet1!S71_A2SubCode,$AC:$AC,Sheet1!S71_ItemType,$AD:$AD)","v":0},{"$f":"-SUMIFS(Sheet1!S71_OY1BudgetAmount,Sheet1!S71_A2SubCode,$AC:$AC,Sheet1!S71_ItemType,$AD:$AD)","v":0},{"$f":"-SUMIFS(Sheet1!S71_OY2BudgetAmount,Sheet1!S71_A2SubCode,$AC:$AC,Sheet1!S71_ItemType,$AD:$AD)","v":0},null,null,null,null,null,null,null,null,null,null,null,null,null,null,null,null,null,2401,"IR"]
["Informal Settlements",null,{"$f":"SUMIFS(Sheet1!S71_PPPYearAmount,Sheet1!S71_A2SubCode,$AC:$AC,Sheet1!S71_ItemType,$AD:$AD)","v":0},{"$f":"SUMIFS(Sheet1!S71_PPYearAmount,Sheet1!S71_A2SubCode,$AC:$AC,Sheet1!S71_ItemType,$AD:$AD)","v":0},{"$f":"SUMIFS(Sheet1!S71_PYearAmount,Sheet1!S71_A2SubCode,$AC:$AC,Sheet1!S71_ItemType,$AD:$AD)","v":0},{"$f":"-SUMIFS(Sheet1!S71_OriginalBudAmnt,Sheet1!S71_A2SubCode,$AC:$AC,Sheet1!S71_ItemType,$AD:$AD)","v":0},{"$f":"-SUMIFS(Sheet1!S71_AdjustmentBudAmnt,Sheet1!S71_A2SubCode,$AC:$AC,Sheet1!S71_ItemType,$AD:$AD)","v":0},{"$f":"-SUMIFS(Sheet1!S71_AdjustmentBudAmnt,Sheet1!S71_A2SubCode,$AC:$AC,Sheet1!S71_ItemType,$AD:$AD)","v":0},{"$f":"-SUMIFS(Sheet1!S71_ASBudgetAmount,Sheet1!S71_A2SubCode,$AC:$AC,Sheet1!S71_ItemType,$AD:$AD)","v":0},{"$f":"-SUMIFS(Sheet1!S71_OY1BudgetAmount,Sheet1!S71_A2SubCode,$AC:$AC,Sheet1!S71_ItemType,$AD:$AD)","v":0},{"$f":"-SUMIFS(Sheet1!S71_OY2BudgetAmount,Sheet1!S71_A2SubCode,$AC:$AC,Sheet1!S71_ItemType,$AD:$AD)","v":0},null,null,null,null,null,null,null,null,null,null,null,null,null,null,null,null,null,2402,"IR"]
["Health",null,{"$f":"SUM(C67:C73)","v":0},{"$f":"SUM(D67:D73)","v":0},0,0,0,0,0,0,0]
["Ambulance",null,{"$f":"SUMIFS(Sheet1!S71_PPPYearAmount,Sheet1!S71_A2SubCode,$AC:$AC,Sheet1!S71_ItemType,$AD:$AD)","v":0},{"$f":"SUMIFS(Sheet1!S71_PPYearAmount,Sheet1!S71_A2SubCode,$AC:$AC,Sheet1!S71_ItemType,$AD:$AD)","v":0},{"$f":"SUMIFS(Sheet1!S71_PYearAmount,Sheet1!S71_A2SubCode,$AC:$AC,Sheet1!S71_ItemType,$AD:$AD)","v":0},{"$f":"-SUMIFS(Sheet1!S71_OriginalBudAmnt,Sheet1!S71_A2SubCode,$AC:$AC,Sheet1!S71_ItemType,$AD:$AD)","v":0},{"$f":"-SUMIFS(Sheet1!S71_AdjustmentBudAmnt,Sheet1!S71_A2SubCode,$AC:$AC,Sheet1!S71_ItemType,$AD:$AD)","v":0},{"$f":"-SUMIFS(Sheet1!S71_AdjustmentBudAmnt,Sheet1!S71_A2SubCode,$AC:$AC,Sheet1!S71_ItemType,$AD:$AD)","v":0},{"$f":"-SUMIFS(Sheet1!S71_ASBudgetAmount,Sheet1!S71_A2SubCode,$AC:$AC,Sheet1!S71_ItemType,$AD:$AD)","v":0},{"$f":"-SUMIFS(Sheet1!S71_OY1BudgetAmount,Sheet1!S71_A2SubCode,$AC:$AC,Sheet1!S71_ItemType,$AD:$AD)","v":0},{"$f":"-SUMIFS(Sheet1!S71_OY2BudgetAmount,Sheet1!S71_A2SubCode,$AC:$AC,Sheet1!S71_ItemType,$AD:$AD)","v":0},null,null,null,null,null,null,null,null,null,null,null,null,null,null,null,null,null,2501,"IR"]
["Health Services",null,{"$f":"SUMIFS(Sheet1!S71_PPPYearAmount,Sheet1!S71_A2SubCode,$AC:$AC,Sheet1!S71_ItemType,$AD:$AD)","v":0},{"$f":"SUMIFS(Sheet1!S71_PPYearAmount,Sheet1!S71_A2SubCode,$AC:$AC,Sheet1!S71_ItemType,$AD:$AD)","v":0},{"$f":"SUMIFS(Sheet1!S71_PYearAmount,Sheet1!S71_A2SubCode,$AC:$AC,Sheet1!S71_ItemType,$AD:$AD)","v":0},{"$f":"-SUMIFS(Sheet1!S71_OriginalBudAmnt,Sheet1!S71_A2SubCode,$AC:$AC,Sheet1!S71_ItemType,$AD:$AD)","v":0},{"$f":"-SUMIFS(Sheet1!S71_AdjustmentBudAmnt,Sheet1!S71_A2SubCode,$AC:$AC,Sheet1!S71_ItemType,$AD:$AD)","v":0},{"$f":"-SUMIFS(Sheet1!S71_AdjustmentBudAmnt,Sheet1!S71_A2SubCode,$AC:$AC,Sheet1!S71_ItemType,$AD:$AD)","v":0},{"$f":"-SUMIFS(Sheet1!S71_ASBudgetAmount,Sheet1!S71_A2SubCode,$AC:$AC,Sheet1!S71_ItemType,$AD:$AD)","v":0},{"$f":"-SUMIFS(Sheet1!S71_OY1BudgetAmount,Sheet1!S71_A2SubCode,$AC:$AC,Sheet1!S71_ItemType,$AD:$AD)","v":0},{"$f":"-SUMIFS(Sheet1!S71_OY2BudgetAmount,Sheet1!S71_A2SubCode,$AC:$AC,Sheet1!S71_ItemType,$AD:$AD)","v":0},null,null,null,null,null,null,null,null,null,null,null,null,null,null,null,null,null,2502,"IR"]
["Laboratory Services",null,{"$f":"SUMIFS(Sheet1!S71_PPPYearAmount,Sheet1!S71_A2SubCode,$AC:$AC,Sheet1!S71_ItemType,$AD:$AD)","v":0},{"$f":"SUMIFS(Sheet1!S71_PPYearAmount,Sheet1!S71_A2SubCode,$AC:$AC,Sheet1!S71_ItemType,$AD:$AD)","v":0},{"$f":"SUMIFS(Sheet1!S71_PYearAmount,Sheet1!S71_A2SubCode,$AC:$AC,Sheet1!S71_ItemType,$AD:$AD)","v":0},{"$f":"-SUMIFS(Sheet1!S71_OriginalBudAmnt,Sheet1!S71_A2SubCode,$AC:$AC,Sheet1!S71_ItemType,$AD:$AD)","v":0},{"$f":"-SUMIFS(Sheet1!S71_AdjustmentBudAmnt,Sheet1!S71_A2SubCode,$AC:$AC,Sheet1!S71_ItemType,$AD:$AD)","v":0},{"$f":"-SUMIFS(Sheet1!S71_AdjustmentBudAmnt,Sheet1!S71_A2SubCode,$AC:$AC,Sheet1!S71_ItemType,$AD:$AD)","v":0},{"$f":"-SUMIFS(Sheet1!S71_ASBudgetAmount,Sheet1!S71_A2SubCode,$AC:$AC,Sheet1!S71_ItemType,$AD:$AD)","v":0},{"$f":"-SUMIFS(Sheet1!S71_OY1BudgetAmount,Sheet1!S71_A2SubCode,$AC:$AC,Sheet1!S71_ItemType,$AD:$AD)","v":0},{"$f":"-SUMIFS(Sheet1!S71_OY2BudgetAmount,Sheet1!S71_A2SubCode,$AC:$AC,Sheet1!S71_ItemType,$AD:$AD)","v":0},null,null,null,null,null,null,null,null,null,null,null,null,null,null,null,null,null,2503,"IR"]
["Food Control",null,{"$f":"SUMIFS(Sheet1!S71_PPPYearAmount,Sheet1!S71_A2SubCode,$AC:$AC,Sheet1!S71_ItemType,$AD:$AD)","v":0},{"$f":"SUMIFS(Sheet1!S71_PPYearAmount,Sheet1!S71_A2SubCode,$AC:$AC,Sheet1!S71_ItemType,$AD:$AD)","v":0},{"$f":"SUMIFS(Sheet1!S71_PYearAmount,Sheet1!S71_A2SubCode,$AC:$AC,Sheet1!S71_ItemType,$AD:$AD)","v":0},{"$f":"-SUMIFS(Sheet1!S71_OriginalBudAmnt,Sheet1!S71_A2SubCode,$AC:$AC,Sheet1!S71_ItemType,$AD:$AD)","v":0},{"$f":"-SUMIFS(Sheet1!S71_AdjustmentBudAmnt,Sheet1!S71_A2SubCode,$AC:$AC,Sheet1!S71_ItemType,$AD:$AD)","v":0},{"$f":"-SUMIFS(Sheet1!S71_AdjustmentBudAmnt,Sheet1!S71_A2SubCode,$AC:$AC,Sheet1!S71_ItemType,$AD:$AD)","v":0},{"$f":"-SUMIFS(Sheet1!S71_ASBudgetAmount,Sheet1!S71_A2SubCode,$AC:$AC,Sheet1!S71_ItemType,$AD:$AD)","v":0},{"$f":"-SUMIFS(Sheet1!S71_OY1BudgetAmount,Sheet1!S71_A2SubCode,$AC:$AC,Sheet1!S71_ItemType,$AD:$AD)","v":0},{"$f":"-SUMIFS(Sheet1!S71_OY2BudgetAmount,Sheet1!S71_A2SubCode,$AC:$AC,Sheet1!S71_ItemType,$AD:$AD)","v":0},null,null,null,null,null,null,null,null,null,null,null,null,null,null,null,null,null,2504,"IR"]
["Health Surveillance and Prevention of Communicable Diseases including immunizations",null,{"$f":"SUMIFS(Sheet1!S71_PPPYearAmount,Sheet1!S71_A2SubCode,$AC:$AC,Sheet1!S71_ItemType,$AD:$AD)","v":0},{"$f":"SUMIFS(Sheet1!S71_PPYearAmount,Sheet1!S71_A2SubCode,$AC:$AC,Sheet1!S71_ItemType,$AD:$AD)","v":0},{"$f":"SUMIFS(Sheet1!S71_PYearAmount,Sheet1!S71_A2SubCode,$AC:$AC,Sheet1!S71_ItemType,$AD:$AD)","v":0},{"$f":"-SUMIFS(Sheet1!S71_OriginalBudAmnt,Sheet1!S71_A2SubCode,$AC:$AC,Sheet1!S71_ItemType,$AD:$AD)","v":0},{"$f":"-SUMIFS(Sheet1!S71_AdjustmentBudAmnt,Sheet1!S71_A2SubCode,$AC:$AC,Sheet1!S71_ItemType,$AD:$AD)","v":0},{"$f":"-SUMIFS(Sheet1!S71_AdjustmentBudAmnt,Sheet1!S71_A2SubCode,$AC:$AC,Sheet1!S71_ItemType,$AD:$AD)","v":0},{"$f":"-SUMIFS(Sheet1!S71_ASBudgetAmount,Sheet1!S71_A2SubCode,$AC:$AC,Sheet1!S71_ItemType,$AD:$AD)","v":0},{"$f":"-SUMIFS(Sheet1!S71_OY1BudgetAmount,Sheet1!S71_A2SubCode,$AC:$AC,Sheet1!S71_ItemType,$AD:$AD)","v":0},{"$f":"-SUMIFS(Sheet1!S71_OY2BudgetAmount,Sheet1!S71_A2SubCode,$AC:$AC,Sheet1!S71_ItemType,$AD:$AD)","v":0},null,null,null,null,null,null,null,null,null,null,null,null,null,null,null,null,null,2505,"IR"]
["Vector Control",null,{"$f":"SUMIFS(Sheet1!S71_PPPYearAmount,Sheet1!S71_A2SubCode,$AC:$AC,Sheet1!S71_ItemType,$AD:$AD)","v":0},{"$f":"SUMIFS(Sheet1!S71_PPYearAmount,Sheet1!S71_A2SubCode,$AC:$AC,Sheet1!S71_ItemType,$AD:$AD)","v":0},{"$f":"SUMIFS(Sheet1!S71_PYearAmount,Sheet1!S71_A2SubCode,$AC:$AC,Sheet1!S71_ItemType,$AD:$AD)","v":0},{"$f":"-SUMIFS(Sheet1!S71_OriginalBudAmnt,Sheet1!S71_A2SubCode,$AC:$AC,Sheet1!S71_ItemType,$AD:$AD)","v":0},{"$f":"-SUMIFS(Sheet1!S71_AdjustmentBudAmnt,Sheet1!S71_A2SubCode,$AC:$AC,Sheet1!S71_ItemType,$AD:$AD)","v":0},{"$f":"-SUMIFS(Sheet1!S71_AdjustmentBudAmnt,Sheet1!S71_A2SubCode,$AC:$AC,Sheet1!S71_ItemType,$AD:$AD)","v":0},{"$f":"-SUMIFS(Sheet1!S71_ASBudgetAmount,Sheet1!S71_A2SubCode,$AC:$AC,Sheet1!S71_ItemType,$AD:$AD)","v":0},{"$f":"-SUMIFS(Sheet1!S71_OY1BudgetAmount,Sheet1!S71_A2SubCode,$AC:$AC,Sheet1!S71_ItemType,$AD:$AD)","v":0},{"$f":"-SUMIFS(Sheet1!S71_OY2BudgetAmount,Sheet1!S71_A2SubCode,$AC:$AC,Sheet1!S71_ItemType,$AD:$AD)","v":0},null,null,null,null,null,null,null,null,null,null,null,null,null,null,null,null,null,2506,"IR"]
["Chemical Safety",null,{"$f":"SUMIFS(Sheet1!S71_PPPYearAmount,Sheet1!S71_A2SubCode,$AC:$AC,Sheet1!S71_ItemType,$AD:$AD)","v":0},{"$f":"SUMIFS(Sheet1!S71_PPYearAmount,Sheet1!S71_A2SubCode,$AC:$AC,Sheet1!S71_ItemType,$AD:$AD)","v":0},{"$f":"SUMIFS(Sheet1!S71_PYearAmount,Sheet1!S71_A2SubCode,$AC:$AC,Sheet1!S71_ItemType,$AD:$AD)","v":0},{"$f":"-SUMIFS(Sheet1!S71_OriginalBudAmnt,Sheet1!S71_A2SubCode,$AC:$AC,Sheet1!S71_ItemType,$AD:$AD)","v":0},{"$f":"-SUMIFS(Sheet1!S71_AdjustmentBudAmnt,Sheet1!S71_A2SubCode,$AC:$AC,Sheet1!S71_ItemType,$AD:$AD)","v":0},{"$f":"-SUMIFS(Sheet1!S71_AdjustmentBudAmnt,Sheet1!S71_A2SubCode,$AC:$AC,Sheet1!S71_ItemType,$AD:$AD)","v":0},{"$f":"-SUMIFS(Sheet1!S71_ASBudgetAmount,Sheet1!S71_A2SubCode,$AC:$AC,Sheet1!S71_ItemType,$AD:$AD)","v":0},{"$f":"-SUMIFS(Sheet1!S71_OY1BudgetAmount,Sheet1!S71_A2SubCode,$AC:$AC,Sheet1!S71_ItemType,$AD:$AD)","v":0},{"$f":"-SUMIFS(Sheet1!S71_OY2BudgetAmount,Sheet1!S71_A2SubCode,$AC:$AC,Sheet1!S71_ItemType,$AD:$AD)","v":0},null,null,null,null,null,null,null,null,null,null,null,null,null,null,null,null,null,2507,"IR"]
[]
["Economic and environmental services",null,{"$f":"C76+C87+C92","v":0},15100478,15621169,15138788,15588538,15588538,14912538,15371524,15769531]
["Planning and development",null,{"$f":"SUM(C77:C86)","v":0},{"$f":"SUM(D77:D86)","v":15100478},15621169,15138788,15588538,15588538,14912538,15371524,15769531]
["Billboards",null,{"$f":"SUMIFS(Sheet1!S71_PPPYearAmount,Sheet1!S71_A2SubCode,$AC:$AC,Sheet1!S71_ItemType,$AD:$AD)","v":0},{"$f":"SUMIFS(Sheet1!S71_PPYearAmount,Sheet1!S71_A2SubCode,$AC:$AC,Sheet1!S71_ItemType,$AD:$AD)","v":0},{"$f":"SUMIFS(Sheet1!S71_PYearAmount,Sheet1!S71_A2SubCode,$AC:$AC,Sheet1!S71_ItemType,$AD:$AD)","v":0},{"$f":"-SUMIFS(Sheet1!S71_OriginalBudAmnt,Sheet1!S71_A2SubCode,$AC:$AC,Sheet1!S71_ItemType,$AD:$AD)","v":0},{"$f":"-SUMIFS(Sheet1!S71_AdjustmentBudAmnt,Sheet1!S71_A2SubCode,$AC:$AC,Sheet1!S71_ItemType,$AD:$AD)","v":0},{"$f":"-SUMIFS(Sheet1!S71_AdjustmentBudAmnt,Sheet1!S71_A2SubCode,$AC:$AC,Sheet1!S71_ItemType,$AD:$AD)","v":0},{"$f":"-SUMIFS(Sheet1!S71_ASBudgetAmount,Sheet1!S71_A2SubCode,$AC:$AC,Sheet1!S71_ItemType,$AD:$AD)","v":0},{"$f":"-SUMIFS(Sheet1!S71_OY1BudgetAmount,Sheet1!S71_A2SubCode,$AC:$AC,Sheet1!S71_ItemType,$AD:$AD)","v":0},{"$f":"-SUMIFS(Sheet1!S71_OY2BudgetAmount,Sheet1!S71_A2SubCode,$AC:$AC,Sheet1!S71_ItemType,$AD:$AD)","v":0},null,null,null,null,null,null,null,null,null,null,null,null,null,null,null,null,null,3101,"IR"]
["Corporate Wide Strategic Planning (IDPs, LEDs)",null,{"$f":"SUMIFS(Sheet1!S71_PPPYearAmount,Sheet1!S71_A2SubCode,$AC:$AC,Sheet1!S71_ItemType,$AD:$AD)","v":0},{"$f":"SUMIFS(Sheet1!S71_PPYearAmount,Sheet1!S71_A2SubCode,$AC:$AC,Sheet1!S71_ItemType,$AD:$AD)","v":0},{"$f":"SUMIFS(Sheet1!S71_PYearAmount,Sheet1!S71_A2SubCode,$AC:$AC,Sheet1!S71_ItemType,$AD:$AD)","v":0},{"$f":"-SUMIFS(Sheet1!S71_OriginalBudAmnt,Sheet1!S71_A2SubCode,$AC:$AC,Sheet1!S71_ItemType,$AD:$AD)","v":0},{"$f":"-SUMIFS(Sheet1!S71_AdjustmentBudAmnt,Sheet1!S71_A2SubCode,$AC:$AC,Sheet1!S71_ItemType,$AD:$AD)","v":0},{"$f":"-SUMIFS(Sheet1!S71_AdjustmentBudAmnt,Sheet1!S71_A2SubCode,$AC:$AC,Sheet1!S71_ItemType,$AD:$AD)","v":0},{"$f":"-SUMIFS(Sheet1!S71_ASBudgetAmount,Sheet1!S71_A2SubCode,$AC:$AC,Sheet1!S71_ItemType,$AD:$AD)","v":0},{"$f":"-SUMIFS(Sheet1!S71_OY1BudgetAmount,Sheet1!S71_A2SubCode,$AC:$AC,Sheet1!S71_ItemType,$AD:$AD)","v":0},{"$f":"-SUMIFS(Sheet1!S71_OY2BudgetAmount,Sheet1!S71_A2SubCode,$AC:$AC,Sheet1!S71_ItemType,$AD:$AD)","v":0},null,null,null,null,null,null,null,null,null,null,null,null,null,null,null,null,null,3102,"IR"]
["Central City Improvement District",null,{"$f":"SUMIFS(Sheet1!S71_PPPYearAmount,Sheet1!S71_A2SubCode,$AC:$AC,Sheet1!S71_ItemType,$AD:$AD)","v":0},{"$f":"SUMIFS(Sheet1!S71_PPYearAmount,Sheet1!S71_A2SubCode,$AC:$AC,Sheet1!S71_ItemType,$AD:$AD)","v":0},{"$f":"SUMIFS(Sheet1!S71_PYearAmount,Sheet1!S71_A2SubCode,$AC:$AC,Sheet1!S71_ItemType,$AD:$AD)","v":0},{"$f":"-SUMIFS(Sheet1!S71_OriginalBudAmnt,Sheet1!S71_A2SubCode,$AC:$AC,Sheet1!S71_ItemType,$AD:$AD)","v":0},{"$f":"-SUMIFS(Sheet1!S71_AdjustmentBudAmnt,Sheet1!S71_A2SubCode,$AC:$AC,Sheet1!S71_ItemType,$AD:$AD)","v":0},{"$f":"-SUMIFS(Sheet1!S71_AdjustmentBudAmnt,Sheet1!S71_A2SubCode,$AC:$AC,Sheet1!S71_ItemType,$AD:$AD)","v":0},{"$f":"-SUMIFS(Sheet1!S71_ASBudgetAmount,Sheet1!S71_A2SubCode,$AC:$AC,Sheet1!S71_ItemType,$AD:$AD)","v":0},{"$f":"-SUMIFS(Sheet1!S71_OY1BudgetAmount,Sheet1!S71_A2SubCode,$AC:$AC,Sheet1!S71_ItemType,$AD:$AD)","v":0},{"$f":"-SUMIFS(Sheet1!S71_OY2BudgetAmount,Sheet1!S71_A2SubCode,$AC:$AC,Sheet1!S71_ItemType,$AD:$AD)","v":0},null,null,null,null,null,null,null,null,null,null,null,null,null,null,null,null,null,3103,"IR"]
["Development Facilitation",null,{"$f":"SUMIFS(Sheet1!S71_PPPYearAmount,Sheet1!S71_A2SubCode,$AC:$AC,Sheet1!S71_ItemType,$AD:$AD)","v":0},{"$f":"SUMIFS(Sheet1!S71_PPYearAmount,Sheet1!S71_A2SubCode,$AC:$AC,Sheet1!S71_ItemType,$AD:$AD)","v":0},{"$f":"SUMIFS(Sheet1!S71_PYearAmount,Sheet1!S71_A2SubCode,$AC:$AC,Sheet1!S71_ItemType,$AD:$AD)","v":0},{"$f":"-SUMIFS(Sheet1!S71_OriginalBudAmnt,Sheet1!S71_A2SubCode,$AC:$AC,Sheet1!S71_ItemType,$AD:$AD)","v":0},{"$f":"-SUMIFS(Sheet1!S71_AdjustmentBudAmnt,Sheet1!S71_A2SubCode,$AC:$AC,Sheet1!S71_ItemType,$AD:$AD)","v":0},{"$f":"-SUMIFS(Sheet1!S71_AdjustmentBudAmnt,Sheet1!S71_A2SubCode,$AC:$AC,Sheet1!S71_ItemType,$AD:$AD)","v":0},{"$f":"-SUMIFS(Sheet1!S71_ASBudgetAmount,Sheet1!S71_A2SubCode,$AC:$AC,Sheet1!S71_ItemType,$AD:$AD)","v":0},{"$f":"-SUMIFS(Sheet1!S71_OY1BudgetAmount,Sheet1!S71_A2SubCode,$AC:$AC,Sheet1!S71_ItemType,$AD:$AD)","v":0},{"$f":"-SUMIFS(Sheet1!S71_OY2BudgetAmount,Sheet1!S71_A2SubCode,$AC:$AC,Sheet1!S71_ItemType,$AD:$AD)","v":0},null,null,null,null,null,null,null,null,null,null,null,null,null,null,null,null,null,3104,"IR"]
["Economic Development/Planning",null,{"$f":"SUMIFS(Sheet1!S71_PPPYearAmount,Sheet1!S71_A2SubCode,$AC:$AC,Sheet1!S71_ItemType,$AD:$AD)","v":0},{"$f":"SUMIFS(Sheet1!S71_PPYearAmount,Sheet1!S71_A2SubCode,$AC:$AC,Sheet1!S71_ItemType,$AD:$AD)","v":15100478},{"$f":"SUMIFS(Sheet1!S71_PYearAmount,Sheet1!S71_A2SubCode,$AC:$AC,Sheet1!S71_ItemType,$AD:$AD)","v":15621169},{"$f":"-SUMIFS(Sheet1!S71_OriginalBudAmnt,Sheet1!S71_A2SubCode,$AC:$AC,Sheet1!S71_ItemType,$AD:$AD)","v":15138788},{"$f":"-SUMIFS(Sheet1!S71_AdjustmentBudAmnt,Sheet1!S71_A2SubCode,$AC:$AC,Sheet1!S71_ItemType,$AD:$AD)","v":15588538},{"$f":"-SUMIFS(Sheet1!S71_AdjustmentBudAmnt,Sheet1!S71_A2SubCode,$AC:$AC,Sheet1!S71_ItemType,$AD:$AD)","v":15588538},{"$f":"-SUMIFS(Sheet1!S71_ASBudgetAmount,Sheet1!S71_A2SubCode,$AC:$AC,Sheet1!S71_ItemType,$AD:$AD)","v":14912538},{"$f":"-SUMIFS(Sheet1!S71_OY1BudgetAmount,Sheet1!S71_A2SubCode,$AC:$AC,Sheet1!S71_ItemType,$AD:$AD)","v":15371524},{"$f":"-SUMIFS(Sheet1!S71_OY2BudgetAmount,Sheet1!S71_A2SubCode,$AC:$AC,Sheet1!S71_ItemType,$AD:$AD)","v":15769531},null,null,null,null,null,null,null,null,null,null,null,null,null,null,null,null,null,3105,"IR"]
["Regional Planning and Development",null,{"$f":"SUMIFS(Sheet1!S71_PPPYearAmount,Sheet1!S71_A2SubCode,$AC:$AC,Sheet1!S71_ItemType,$AD:$AD)","v":0},{"$f":"SUMIFS(Sheet1!S71_PPYearAmount,Sheet1!S71_A2SubCode,$AC:$AC,Sheet1!S71_ItemType,$AD:$AD)","v":0},{"$f":"SUMIFS(Sheet1!S71_PYearAmount,Sheet1!S71_A2SubCode,$AC:$AC,Sheet1!S71_ItemType,$AD:$AD)","v":0},{"$f":"-SUMIFS(Sheet1!S71_OriginalBudAmnt,Sheet1!S71_A2SubCode,$AC:$AC,Sheet1!S71_ItemType,$AD:$AD)","v":0},{"$f":"-SUMIFS(Sheet1!S71_AdjustmentBudAmnt,Sheet1!S71_A2SubCode,$AC:$AC,Sheet1!S71_ItemType,$AD:$AD)","v":0},{"$f":"-SUMIFS(Sheet1!S71_AdjustmentBudAmnt,Sheet1!S71_A2SubCode,$AC:$AC,Sheet1!S71_ItemType,$AD:$AD)","v":0},{"$f":"-SUMIFS(Sheet1!S71_ASBudgetAmount,Sheet1!S71_A2SubCode,$AC:$AC,Sheet1!S71_ItemType,$AD:$AD)","v":0},{"$f":"-SUMIFS(Sheet1!S71_OY1BudgetAmount,Sheet1!S71_A2SubCode,$AC:$AC,Sheet1!S71_ItemType,$AD:$AD)","v":0},{"$f":"-SUMIFS(Sheet1!S71_OY2BudgetAmount,Sheet1!S71_A2SubCode,$AC:$AC,Sheet1!S71_ItemType,$AD:$AD)","v":0},null,null,null,null,null,null,null,null,null,null,null,null,null,null,null,null,null,3106,"IR"]
["Town Planning, Building Regulations and Enforcement, and City Engineer",null,{"$f":"SUMIFS(Sheet1!S71_PPPYearAmount,Sheet1!S71_A2SubCode,$AC:$AC,Sheet1!S71_ItemType,$AD:$AD)","v":0},{"$f":"SUMIFS(Sheet1!S71_PPYearAmount,Sheet1!S71_A2SubCode,$AC:$AC,Sheet1!S71_ItemType,$AD:$AD)","v":0},{"$f":"SUMIFS(Sheet1!S71_PYearAmount,Sheet1!S71_A2SubCode,$AC:$AC,Sheet1!S71_ItemType,$AD:$AD)","v":0},{"$f":"-SUMIFS(Sheet1!S71_OriginalBudAmnt,Sheet1!S71_A2SubCode,$AC:$AC,Sheet1!S71_ItemType,$AD:$AD)","v":0},{"$f":"-SUMIFS(Sheet1!S71_AdjustmentBudAmnt,Sheet1!S71_A2SubCode,$AC:$AC,Sheet1!S71_ItemType,$AD:$AD)","v":0},{"$f":"-SUMIFS(Sheet1!S71_AdjustmentBudAmnt,Sheet1!S71_A2SubCode,$AC:$AC,Sheet1!S71_ItemType,$AD:$AD)","v":0},{"$f":"-SUMIFS(Sheet1!S71_ASBudgetAmount,Sheet1!S71_A2SubCode,$AC:$AC,Sheet1!S71_ItemType,$AD:$AD)","v":0},{"$f":"-SUMIFS(Sheet1!S71_OY1BudgetAmount,Sheet1!S71_A2SubCode,$AC:$AC,Sheet1!S71_ItemType,$AD:$AD)","v":0},{"$f":"-SUMIFS(Sheet1!S71_OY2BudgetAmount,Sheet1!S71_A2SubCode,$AC:$AC,Sheet1!S71_ItemType,$AD:$AD)","v":0},null,null,null,null,null,null,null,null,null,null,null,null,null,null,null,null,null,3107,"IR"]
["Project Management Unit",null,{"$f":"SUMIFS(Sheet1!S71_PPPYearAmount,Sheet1!S71_A2SubCode,$AC:$AC,Sheet1!S71_ItemType,$AD:$AD)","v":0},{"$f":"SUMIFS(Sheet1!S71_PPYearAmount,Sheet1!S71_A2SubCode,$AC:$AC,Sheet1!S71_ItemType,$AD:$AD)","v":0},{"$f":"SUMIFS(Sheet1!S71_PYearAmount,Sheet1!S71_A2SubCode,$AC:$AC,Sheet1!S71_ItemType,$AD:$AD)","v":0},{"$f":"-SUMIFS(Sheet1!S71_OriginalBudAmnt,Sheet1!S71_A2SubCode,$AC:$AC,Sheet1!S71_ItemType,$AD:$AD)","v":0},{"$f":"-SUMIFS(Sheet1!S71_AdjustmentBudAmnt,Sheet1!S71_A2SubCode,$AC:$AC,Sheet1!S71_ItemType,$AD:$AD)","v":0},{"$f":"-SUMIFS(Sheet1!S71_AdjustmentBudAmnt,Sheet1!S71_A2SubCode,$AC:$AC,Sheet1!S71_ItemType,$AD:$AD)","v":0},{"$f":"-SUMIFS(Sheet1!S71_ASBudgetAmount,Sheet1!S71_A2SubCode,$AC:$AC,Sheet1!S71_ItemType,$AD:$AD)","v":0},{"$f":"-SUMIFS(Sheet1!S71_OY1BudgetAmount,Sheet1!S71_A2SubCode,$AC:$AC,Sheet1!S71_ItemType,$AD:$AD)","v":0},{"$f":"-SUMIFS(Sheet1!S71_OY2BudgetAmount,Sheet1!S71_A2SubCode,$AC:$AC,Sheet1!S71_ItemType,$AD:$AD)","v":0},null,null,null,null,null,null,null,null,null,null,null,null,null,null,null,null,null,3108,"IR"]
["Provincial Planning",null,{"$f":"SUMIFS(Sheet1!S71_PPPYearAmount,Sheet1!S71_A2SubCode,$AC:$AC,Sheet1!S71_ItemType,$AD:$AD)","v":0},{"$f":"SUMIFS(Sheet1!S71_PPYearAmount,Sheet1!S71_A2SubCode,$AC:$AC,Sheet1!S71_ItemType,$AD:$AD)","v":0},{"$f":"SUMIFS(Sheet1!S71_PYearAmount,Sheet1!S71_A2SubCode,$AC:$AC,Sheet1!S71_ItemType,$AD:$AD)","v":0},{"$f":"-SUMIFS(Sheet1!S71_OriginalBudAmnt,Sheet1!S71_A2SubCode,$AC:$AC,Sheet1!S71_ItemType,$AD:$AD)","v":0},{"$f":"-SUMIFS(Sheet1!S71_AdjustmentBudAmnt,Sheet1!S71_A2SubCode,$AC:$AC,Sheet1!S71_ItemType,$AD:$AD)","v":0},{"$f":"-SUMIFS(Sheet1!S71_AdjustmentBudAmnt,Sheet1!S71_A2SubCode,$AC:$AC,Sheet1!S71_ItemType,$AD:$AD)","v":0},{"$f":"-SUMIFS(Sheet1!S71_ASBudgetAmount,Sheet1!S71_A2SubCode,$AC:$AC,Sheet1!S71_ItemType,$AD:$AD)","v":0},{"$f":"-SUMIFS(Sheet1!S71_OY1BudgetAmount,Sheet1!S71_A2SubCode,$AC:$AC,Sheet1!S71_ItemType,$AD:$AD)","v":0},{"$f":"-SUMIFS(Sheet1!S71_OY2BudgetAmount,Sheet1!S71_A2SubCode,$AC:$AC,Sheet1!S71_ItemType,$AD:$AD)","v":0},null,null,null,null,null,null,null,null,null,null,null,null,null,null,null,null,null,3109,"IR"]
["Support to Local Municipalities",null,{"$f":"SUMIFS(Sheet1!S71_PPPYearAmount,Sheet1!S71_A2SubCode,$AC:$AC,Sheet1!S71_ItemType,$AD:$AD)","v":0},{"$f":"SUMIFS(Sheet1!S71_PPYearAmount,Sheet1!S71_A2SubCode,$AC:$AC,Sheet1!S71_ItemType,$AD:$AD)","v":0},{"$f":"SUMIFS(Sheet1!S71_PYearAmount,Sheet1!S71_A2SubCode,$AC:$AC,Sheet1!S71_ItemType,$AD:$AD)","v":0},{"$f":"-SUMIFS(Sheet1!S71_OriginalBudAmnt,Sheet1!S71_A2SubCode,$AC:$AC,Sheet1!S71_ItemType,$AD:$AD)","v":0},{"$f":"-SUMIFS(Sheet1!S71_AdjustmentBudAmnt,Sheet1!S71_A2SubCode,$AC:$AC,Sheet1!S71_ItemType,$AD:$AD)","v":0},{"$f":"-SUMIFS(Sheet1!S71_AdjustmentBudAmnt,Sheet1!S71_A2SubCode,$AC:$AC,Sheet1!S71_ItemType,$AD:$AD)","v":0},{"$f":"-SUMIFS(Sheet1!S71_ASBudgetAmount,Sheet1!S71_A2SubCode,$AC:$AC,Sheet1!S71_ItemType,$AD:$AD)","v":0},{"$f":"-SUMIFS(Sheet1!S71_OY1BudgetAmount,Sheet1!S71_A2SubCode,$AC:$AC,Sheet1!S71_ItemType,$AD:$AD)","v":0},{"$f":"-SUMIFS(Sheet1!S71_OY2BudgetAmount,Sheet1!S71_A2SubCode,$AC:$AC,Sheet1!S71_ItemType,$AD:$AD)","v":0},null,null,null,null,null,null,null,null,null,null,null,null,null,null,null,null,null,3110,"IR"]
["Road transport",null,{"$f":"SUM(C88:C91)","v":0},0,0,0,0,0,0,0,0]
["Public Transport",null,{"$f":"SUMIFS(Sheet1!S71_PPPYearAmount,Sheet1!S71_A2SubCode,$AC:$AC,Sheet1!S71_ItemType,$AD:$AD)","v":0},{"$f":"SUMIFS(Sheet1!S71_PPYearAmount,Sheet1!S71_A2SubCode,$AC:$AC,Sheet1!S71_ItemType,$AD:$AD)","v":0},{"$f":"SUMIFS(Sheet1!S71_PYearAmount,Sheet1!S71_A2SubCode,$AC:$AC,Sheet1!S71_ItemType,$AD:$AD)","v":0},{"$f":"-SUMIFS(Sheet1!S71_OriginalBudAmnt,Sheet1!S71_A2SubCode,$AC:$AC,Sheet1!S71_ItemType,$AD:$AD)","v":0},{"$f":"-SUMIFS(Sheet1!S71_AdjustmentBudAmnt,Sheet1!S71_A2SubCode,$AC:$AC,Sheet1!S71_ItemType,$AD:$AD)","v":0},{"$f":"-SUMIFS(Sheet1!S71_AdjustmentBudAmnt,Sheet1!S71_A2SubCode,$AC:$AC,Sheet1!S71_ItemType,$AD:$AD)","v":0},{"$f":"-SUMIFS(Sheet1!S71_ASBudgetAmount,Sheet1!S71_A2SubCode,$AC:$AC,Sheet1!S71_ItemType,$AD:$AD)","v":0},{"$f":"-SUMIFS(Sheet1!S71_OY1BudgetAmount,Sheet1!S71_A2SubCode,$AC:$AC,Sheet1!S71_ItemType,$AD:$AD)","v":0},{"$f":"-SUMIFS(Sheet1!S71_OY2BudgetAmount,Sheet1!S71_A2SubCode,$AC:$AC,Sheet1!S71_ItemType,$AD:$AD)","v":0},null,null,null,null,null,null,null,null,null,null,null,null,null,null,null,null,null,"3203","IR"]
["Road and Traffic Regulation",null,{"$f":"SUMIFS(Sheet1!S71_PPPYearAmount,Sheet1!S71_A2SubCode,$AC:$AC,Sheet1!S71_ItemType,$AD:$AD)","v":0},{"$f":"SUMIFS(Sheet1!S71_PPYearAmount,Sheet1!S71_A2SubCode,$AC:$AC,Sheet1!S71_ItemType,$AD:$AD)","v":0},{"$f":"SUMIFS(Sheet1!S71_PYearAmount,Sheet1!S71_A2SubCode,$AC:$AC,Sheet1!S71_ItemType,$AD:$AD)","v":0},{"$f":"-SUMIFS(Sheet1!S71_OriginalBudAmnt,Sheet1!S71_A2SubCode,$AC:$AC,Sheet1!S71_ItemType,$AD:$AD)","v":0},{"$f":"-SUMIFS(Sheet1!S71_AdjustmentBudAmnt,Sheet1!S71_A2SubCode,$AC:$AC,Sheet1!S71_ItemType,$AD:$AD)","v":0},{"$f":"-SUMIFS(Sheet1!S71_AdjustmentBudAmnt,Sheet1!S71_A2SubCode,$AC:$AC,Sheet1!S71_ItemType,$AD:$AD)","v":0},{"$f":"-SUMIFS(Sheet1!S71_ASBudgetAmount,Sheet1!S71_A2SubCode,$AC:$AC,Sheet1!S71_ItemType,$AD:$AD)","v":0},{"$f":"-SUMIFS(Sheet1!S71_OY1BudgetAmount,Sheet1!S71_A2SubCode,$AC:$AC,Sheet1!S71_ItemType,$AD:$AD)","v":0},{"$f":"-SUMIFS(Sheet1!S71_OY2BudgetAmount,Sheet1!S71_A2SubCode,$AC:$AC,Sheet1!S71_ItemType,$AD:$AD)","v":0},null,null,null,null,null,null,null,null,null,null,null,null,null,null,null,null,null,"3204","IR"]
["Roads",null,{"$f":"SUMIFS(Sheet1!S71_PPPYearAmount,Sheet1!S71_A2SubCode,$AC:$AC,Sheet1!S71_ItemType,$AD:$AD)","v":0},{"$f":"SUMIFS(Sheet1!S71_PPYearAmount,Sheet1!S71_A2SubCode,$AC:$AC,Sheet1!S71_ItemType,$AD:$AD)","v":0},{"$f":"SUMIFS(Sheet1!S71_PYearAmount,Sheet1!S71_A2SubCode,$AC:$AC,Sheet1!S71_ItemType,$AD:$AD)","v":0},{"$f":"-SUMIFS(Sheet1!S71_OriginalBudAmnt,Sheet1!S71_A2SubCode,$AC:$AC,Sheet1!S71_ItemType,$AD:$AD)","v":0},{"$f":"-SUMIFS(Sheet1!S71_AdjustmentBudAmnt,Sheet1!S71_A2SubCode,$AC:$AC,Sheet1!S71_ItemType,$AD:$AD)","v":0},{"$f":"-SUMIFS(Sheet1!S71_AdjustmentBudAmnt,Sheet1!S71_A2SubCode,$AC:$AC,Sheet1!S71_ItemType,$AD:$AD)","v":0},{"$f":"-SUMIFS(Sheet1!S71_ASBudgetAmount,Sheet1!S71_A2SubCode,$AC:$AC,Sheet1!S71_ItemType,$AD:$AD)","v":0},{"$f":"-SUMIFS(Sheet1!S71_OY1BudgetAmount,Sheet1!S71_A2SubCode,$AC:$AC,Sheet1!S71_ItemType,$AD:$AD)","v":0},{"$f":"-SUMIFS(Sheet1!S71_OY2BudgetAmount,Sheet1!S71_A2SubCode,$AC:$AC,Sheet1!S71_ItemType,$AD:$AD)","v":0},null,null,null,null,null,null,null,null,null,null,null,null,null,null,null,null,null,"3205","IR"]
["Taxi Ranks",null,{"$f":"SUMIFS(Sheet1!S71_PPPYearAmount,Sheet1!S71_A2SubCode,$AC:$AC,Sheet1!S71_ItemType,$AD:$AD)","v":0},{"$f":"SUMIFS(Sheet1!S71_PPYearAmount,Sheet1!S71_A2SubCode,$AC:$AC,Sheet1!S71_ItemType,$AD:$AD)","v":0},{"$f":"SUMIFS(Sheet1!S71_PYearAmount,Sheet1!S71_A2SubCode,$AC:$AC,Sheet1!S71_ItemType,$AD:$AD)","v":0},{"$f":"-SUMIFS(Sheet1!S71_OriginalBudAmnt,Sheet1!S71_A2SubCode,$AC:$AC,Sheet1!S71_ItemType,$AD:$AD)","v":0},{"$f":"-SUMIFS(Sheet1!S71_AdjustmentBudAmnt,Sheet1!S71_A2SubCode,$AC:$AC,Sheet1!S71_ItemType,$AD:$AD)","v":0},{"$f":"-SUMIFS(Sheet1!S71_AdjustmentBudAmnt,Sheet1!S71_A2SubCode,$AC:$AC,Sheet1!S71_ItemType,$AD:$AD)","v":0},{"$f":"-SUMIFS(Sheet1!S71_ASBudgetAmount,Sheet1!S71_A2SubCode,$AC:$AC,Sheet1!S71_ItemType,$AD:$AD)","v":0},{"$f":"-SUMIFS(Sheet1!S71_OY1BudgetAmount,Sheet1!S71_A2SubCode,$AC:$AC,Sheet1!S71_ItemType,$AD:$AD)","v":0},{"$f":"-SUMIFS(Sheet1!S71_OY2BudgetAmount,Sheet1!S71_A2SubCode,$AC:$AC,Sheet1!S71_ItemType,$AD:$AD)","v":0},null,null,null,null,null,null,null,null,null,null,null,null,null,null,null,null,null,"3206","IR"]
["Environmental protection",null,{"$f":"SUM(C93:C98)","v":0},{"$f":"SUM(D93:D98)","v":0},0,0,0,0,0,0,0]
["Biodiversity and Landscape",null,{"$f":"SUMIFS(Sheet1!S71_PPPYearAmount,Sheet1!S71_A2SubCode,$AC:$AC,Sheet1!S71_ItemType,$AD:$AD)","v":0},{"$f":"SUMIFS(Sheet1!S71_PPYearAmount,Sheet1!S71_A2SubCode,$AC:$AC,Sheet1!S71_ItemType,$AD:$AD)","v":0},{"$f":"SUMIFS(Sheet1!S71_PYearAmount,Sheet1!S71_A2SubCode,$AC:$AC,Sheet1!S71_ItemType,$AD:$AD)","v":0},{"$f":"-SUMIFS(Sheet1!S71_OriginalBudAmnt,Sheet1!S71_A2SubCode,$AC:$AC,Sheet1!S71_ItemType,$AD:$AD)","v":0},{"$f":"-SUMIFS(Sheet1!S71_AdjustmentBudAmnt,Sheet1!S71_A2SubCode,$AC:$AC,Sheet1!S71_ItemType,$AD:$AD)","v":0},{"$f":"-SUMIFS(Sheet1!S71_AdjustmentBudAmnt,Sheet1!S71_A2SubCode,$AC:$AC,Sheet1!S71_ItemType,$AD:$AD)","v":0},{"$f":"-SUMIFS(Sheet1!S71_ASBudgetAmount,Sheet1!S71_A2SubCode,$AC:$AC,Sheet1!S71_ItemType,$AD:$AD)","v":0},{"$f":"-SUMIFS(Sheet1!S71_OY1BudgetAmount,Sheet1!S71_A2SubCode,$AC:$AC,Sheet1!S71_ItemType,$AD:$AD)","v":0},{"$f":"-SUMIFS(Sheet1!S71_OY2BudgetAmount,Sheet1!S71_A2SubCode,$AC:$AC,Sheet1!S71_ItemType,$AD:$AD)","v":0},null,null,null,null,null,null,null,null,null,null,null,null,null,null,null,null,null,3301,"IR"]
["Coastal Protection",null,{"$f":"SUMIFS(Sheet1!S71_PPPYearAmount,Sheet1!S71_A2SubCode,$AC:$AC,Sheet1!S71_ItemType,$AD:$AD)","v":0},{"$f":"SUMIFS(Sheet1!S71_PPYearAmount,Sheet1!S71_A2SubCode,$AC:$AC,Sheet1!S71_ItemType,$AD:$AD)","v":0},{"$f":"SUMIFS(Sheet1!S71_PYearAmount,Sheet1!S71_A2SubCode,$AC:$AC,Sheet1!S71_ItemType,$AD:$AD)","v":0},{"$f":"-SUMIFS(Sheet1!S71_OriginalBudAmnt,Sheet1!S71_A2SubCode,$AC:$AC,Sheet1!S71_ItemType,$AD:$AD)","v":0},{"$f":"-SUMIFS(Sheet1!S71_AdjustmentBudAmnt,Sheet1!S71_A2SubCode,$AC:$AC,Sheet1!S71_ItemType,$AD:$AD)","v":0},{"$f":"-SUMIFS(Sheet1!S71_AdjustmentBudAmnt,Sheet1!S71_A2SubCode,$AC:$AC,Sheet1!S71_ItemType,$AD:$AD)","v":0},{"$f":"-SUMIFS(Sheet1!S71_ASBudgetAmount,Sheet1!S71_A2SubCode,$AC:$AC,Sheet1!S71_ItemType,$AD:$AD)","v":0},{"$f":"-SUMIFS(Sheet1!S71_OY1BudgetAmount,Sheet1!S71_A2SubCode,$AC:$AC,Sheet1!S71_ItemType,$AD:$AD)","v":0},{"$f":"-SUMIFS(Sheet1!S71_OY2BudgetAmount,Sheet1!S71_A2SubCode,$AC:$AC,Sheet1!S71_ItemType,$AD:$AD)","v":0},null,null,null,null,null,null,null,null,null,null,null,null,null,null,null,null,null,3302,"IR"]
["Indigenous Forests",null,{"$f":"SUMIFS(Sheet1!S71_PPPYearAmount,Sheet1!S71_A2SubCode,$AC:$AC,Sheet1!S71_ItemType,$AD:$AD)","v":0},{"$f":"SUMIFS(Sheet1!S71_PPYearAmount,Sheet1!S71_A2SubCode,$AC:$AC,Sheet1!S71_ItemType,$AD:$AD)","v":0},{"$f":"SUMIFS(Sheet1!S71_PYearAmount,Sheet1!S71_A2SubCode,$AC:$AC,Sheet1!S71_ItemType,$AD:$AD)","v":0},{"$f":"-SUMIFS(Sheet1!S71_OriginalBudAmnt,Sheet1!S71_A2SubCode,$AC:$AC,Sheet1!S71_ItemType,$AD:$AD)","v":0},{"$f":"-SUMIFS(Sheet1!S71_AdjustmentBudAmnt,Sheet1!S71_A2SubCode,$AC:$AC,Sheet1!S71_ItemType,$AD:$AD)","v":0},{"$f":"-SUMIFS(Sheet1!S71_AdjustmentBudAmnt,Sheet1!S71_A2SubCode,$AC:$AC,Sheet1!S71_ItemType,$AD:$AD)","v":0},{"$f":"-SUMIFS(Sheet1!S71_ASBudgetAmount,Sheet1!S71_A2SubCode,$AC:$AC,Sheet1!S71_ItemType,$AD:$AD)","v":0},{"$f":"-SUMIFS(Sheet1!S71_OY1BudgetAmount,Sheet1!S71_A2SubCode,$AC:$AC,Sheet1!S71_ItemType,$AD:$AD)","v":0},{"$f":"-SUMIFS(Sheet1!S71_OY2BudgetAmount,Sheet1!S71_A2SubCode,$AC:$AC,Sheet1!S71_ItemType,$AD:$AD)","v":0},null,null,null,null,null,null,null,null,null,null,null,null,null,null,null,null,null,3303,"IR"]
["Nature Conservation",null,{"$f":"SUMIFS(Sheet1!S71_PPPYearAmount,Sheet1!S71_A2SubCode,$AC:$AC,Sheet1!S71_ItemType,$AD:$AD)","v":0},{"$f":"SUMIFS(Sheet1!S71_PPYearAmount,Sheet1!S71_A2SubCode,$AC:$AC,Sheet1!S71_ItemType,$AD:$AD)","v":0},{"$f":"SUMIFS(Sheet1!S71_PYearAmount,Sheet1!S71_A2SubCode,$AC:$AC,Sheet1!S71_ItemType,$AD:$AD)","v":0},{"$f":"-SUMIFS(Sheet1!S71_OriginalBudAmnt,Sheet1!S71_A2SubCode,$AC:$AC,Sheet1!S71_ItemType,$AD:$AD)","v":0},{"$f":"-SUMIFS(Sheet1!S71_AdjustmentBudAmnt,Sheet1!S71_A2SubCode,$AC:$AC,Sheet1!S71_ItemType,$AD:$AD)","v":0},{"$f":"-SUMIFS(Sheet1!S71_AdjustmentBudAmnt,Sheet1!S71_A2SubCode,$AC:$AC,Sheet1!S71_ItemType,$AD:$AD)","v":0},{"$f":"-SUMIFS(Sheet1!S71_ASBudgetAmount,Sheet1!S71_A2SubCode,$AC:$AC,Sheet1!S71_ItemType,$AD:$AD)","v":0},{"$f":"-SUMIFS(Sheet1!S71_OY1BudgetAmount,Sheet1!S71_A2SubCode,$AC:$AC,Sheet1!S71_ItemType,$AD:$AD)","v":0},{"$f":"-SUMIFS(Sheet1!S71_OY2BudgetAmount,Sheet1!S71_A2SubCode,$AC:$AC,Sheet1!S71_ItemType,$AD:$AD)","v":0},null,null,null,null,null,null,null,null,null,null,null,null,null,null,null,null,null,3304,"IR"]
["Pollution Control",null,{"$f":"SUMIFS(Sheet1!S71_PPPYearAmount,Sheet1!S71_A2SubCode,$AC:$AC,Sheet1!S71_ItemType,$AD:$AD)","v":0},{"$f":"SUMIFS(Sheet1!S71_PPYearAmount,Sheet1!S71_A2SubCode,$AC:$AC,Sheet1!S71_ItemType,$AD:$AD)","v":0},{"$f":"SUMIFS(Sheet1!S71_PYearAmount,Sheet1!S71_A2SubCode,$AC:$AC,Sheet1!S71_ItemType,$AD:$AD)","v":0},{"$f":"-SUMIFS(Sheet1!S71_OriginalBudAmnt,Sheet1!S71_A2SubCode,$AC:$AC,Sheet1!S71_ItemType,$AD:$AD)","v":0},{"$f":"-SUMIFS(Sheet1!S71_AdjustmentBudAmnt,Sheet1!S71_A2SubCode,$AC:$AC,Sheet1!S71_ItemType,$AD:$AD)","v":0},{"$f":"-SUMIFS(Sheet1!S71_AdjustmentBudAmnt,Sheet1!S71_A2SubCode,$AC:$AC,Sheet1!S71_ItemType,$AD:$AD)","v":0},{"$f":"-SUMIFS(Sheet1!S71_ASBudgetAmount,Sheet1!S71_A2SubCode,$AC:$AC,Sheet1!S71_ItemType,$AD:$AD)","v":0},{"$f":"-SUMIFS(Sheet1!S71_OY1BudgetAmount,Sheet1!S71_A2SubCode,$AC:$AC,Sheet1!S71_ItemType,$AD:$AD)","v":0},{"$f":"-SUMIFS(Sheet1!S71_OY2BudgetAmount,Sheet1!S71_A2SubCode,$AC:$AC,Sheet1!S71_ItemType,$AD:$AD)","v":0},null,null,null,null,null,null,null,null,null,null,null,null,null,null,null,null,null,3305,"IR"]
["Soil Conservation",null,{"$f":"SUMIFS(Sheet1!S71_PPPYearAmount,Sheet1!S71_A2SubCode,$AC:$AC,Sheet1!S71_ItemType,$AD:$AD)","v":0},{"$f":"SUMIFS(Sheet1!S71_PPYearAmount,Sheet1!S71_A2SubCode,$AC:$AC,Sheet1!S71_ItemType,$AD:$AD)","v":0},{"$f":"SUMIFS(Sheet1!S71_PYearAmount,Sheet1!S71_A2SubCode,$AC:$AC,Sheet1!S71_ItemType,$AD:$AD)","v":0},{"$f":"-SUMIFS(Sheet1!S71_OriginalBudAmnt,Sheet1!S71_A2SubCode,$AC:$AC,Sheet1!S71_ItemType,$AD:$AD)","v":0},{"$f":"-SUMIFS(Sheet1!S71_AdjustmentBudAmnt,Sheet1!S71_A2SubCode,$AC:$AC,Sheet1!S71_ItemType,$AD:$AD)","v":0},{"$f":"-SUMIFS(Sheet1!S71_AdjustmentBudAmnt,Sheet1!S71_A2SubCode,$AC:$AC,Sheet1!S71_ItemType,$AD:$AD)","v":0},{"$f":"-SUMIFS(Sheet1!S71_ASBudgetAmount,Sheet1!S71_A2SubCode,$AC:$AC,Sheet1!S71_ItemType,$AD:$AD)","v":0},{"$f":"-SUMIFS(Sheet1!S71_OY1BudgetAmount,Sheet1!S71_A2SubCode,$AC:$AC,Sheet1!S71_ItemType,$AD:$AD)","v":0},{"$f":"-SUMIFS(Sheet1!S71_OY2BudgetAmount,Sheet1!S71_A2SubCode,$AC:$AC,Sheet1!S71_ItemType,$AD:$AD)","v":0},null,null,null,null,null,null,null,null,null,null,null,null,null,null,null,null,null,3306,"IR"]
["Trading services",null,{"$f":"C100+C104+C108+C113","v":0},{"$f":"D100+D104+D108+D113","v":0},0,0,0,0,0,0,{"$f":"K100+K104+K108+K113","v":0}]
["Energy sources",null,{"$f":"SUM(C101:C103)","v":0},{"$f":"SUM(D101:D103)","v":0},0,0,0,0,0,0,0]
["Electricity ",null,{"$f":"SUMIFS(Sheet1!S71_PPPYearAmount,Sheet1!S71_A2SubCode,$AC:$AC,Sheet1!S71_ItemType,$AD:$AD)","v":0},{"$f":"SUMIFS(Sheet1!S71_PPYearAmount,Sheet1!S71_A2SubCode,$AC:$AC,Sheet1!S71_ItemType,$AD:$AD)","v":0},{"$f":"SUMIFS(Sheet1!S71_PYearAmount,Sheet1!S71_A2SubCode,$AC:$AC,Sheet1!S71_ItemType,$AD:$AD)","v":0},{"$f":"-SUMIFS(Sheet1!S71_OriginalBudAmnt,Sheet1!S71_A2SubCode,$AC:$AC,Sheet1!S71_ItemType,$AD:$AD)","v":0},{"$f":"-SUMIFS(Sheet1!S71_AdjustmentBudAmnt,Sheet1!S71_A2SubCode,$AC:$AC,Sheet1!S71_ItemType,$AD:$AD)","v":0},{"$f":"-SUMIFS(Sheet1!S71_AdjustmentBudAmnt,Sheet1!S71_A2SubCode,$AC:$AC,Sheet1!S71_ItemType,$AD:$AD)","v":0},{"$f":"-SUMIFS(Sheet1!S71_ASBudgetAmount,Sheet1!S71_A2SubCode,$AC:$AC,Sheet1!S71_ItemType,$AD:$AD)","v":0},{"$f":"-SUMIFS(Sheet1!S71_OY1BudgetAmount,Sheet1!S71_A2SubCode,$AC:$AC,Sheet1!S71_ItemType,$AD:$AD)","v":0},{"$f":"-SUMIFS(Sheet1!S71_OY2BudgetAmount,Sheet1!S71_A2SubCode,$AC:$AC,Sheet1!S71_ItemType,$AD:$AD)","v":0},null,null,null,null,null,null,null,null,null,null,null,null,null,null,null,null,null,4101,"IR"]
["Street Lighting and Signal Systems",null,{"$f":"SUMIFS(Sheet1!S71_PPPYearAmount,Sheet1!S71_A2SubCode,$AC:$AC,Sheet1!S71_ItemType,$AD:$AD)","v":0},{"$f":"SUMIFS(Sheet1!S71_PPYearAmount,Sheet1!S71_A2SubCode,$AC:$AC,Sheet1!S71_ItemType,$AD:$AD)","v":0},{"$f":"SUMIFS(Sheet1!S71_PYearAmount,Sheet1!S71_A2SubCode,$AC:$AC,Sheet1!S71_ItemType,$AD:$AD)","v":0},{"$f":"-SUMIFS(Sheet1!S71_OriginalBudAmnt,Sheet1!S71_A2SubCode,$AC:$AC,Sheet1!S71_ItemType,$AD:$AD)","v":0},{"$f":"-SUMIFS(Sheet1!S71_AdjustmentBudAmnt,Sheet1!S71_A2SubCode,$AC:$AC,Sheet1!S71_ItemType,$AD:$AD)","v":0},{"$f":"-SUMIFS(Sheet1!S71_AdjustmentBudAmnt,Sheet1!S71_A2SubCode,$AC:$AC,Sheet1!S71_ItemType,$AD:$AD)","v":0},{"$f":"-SUMIFS(Sheet1!S71_ASBudgetAmount,Sheet1!S71_A2SubCode,$AC:$AC,Sheet1!S71_ItemType,$AD:$AD)","v":0},{"$f":"-SUMIFS(Sheet1!S71_OY1BudgetAmount,Sheet1!S71_A2SubCode,$AC:$AC,Sheet1!S71_ItemType,$AD:$AD)","v":0},{"$f":"-SUMIFS(Sheet1!S71_OY2BudgetAmount,Sheet1!S71_A2SubCode,$AC:$AC,Sheet1!S71_ItemType,$AD:$AD)","v":0},null,null,null,null,null,null,null,null,null,null,null,null,null,null,null,null,null,4102,"IR"]
["Nonelectric Energy",null,{"$f":"SUMIFS(Sheet1!S71_PPPYearAmount,Sheet1!S71_A2SubCode,$AC:$AC,Sheet1!S71_ItemType,$AD:$AD)","v":0},{"$f":"SUMIFS(Sheet1!S71_PPYearAmount,Sheet1!S71_A2SubCode,$AC:$AC,Sheet1!S71_ItemType,$AD:$AD)","v":0},{"$f":"SUMIFS(Sheet1!S71_PYearAmount,Sheet1!S71_A2SubCode,$AC:$AC,Sheet1!S71_ItemType,$AD:$AD)","v":0},{"$f":"-SUMIFS(Sheet1!S71_OriginalBudAmnt,Sheet1!S71_A2SubCode,$AC:$AC,Sheet1!S71_ItemType,$AD:$AD)","v":0},{"$f":"-SUMIFS(Sheet1!S71_AdjustmentBudAmnt,Sheet1!S71_A2SubCode,$AC:$AC,Sheet1!S71_ItemType,$AD:$AD)","v":0},{"$f":"-SUMIFS(Sheet1!S71_AdjustmentBudAmnt,Sheet1!S71_A2SubCode,$AC:$AC,Sheet1!S71_ItemType,$AD:$AD)","v":0},{"$f":"-SUMIFS(Sheet1!S71_ASBudgetAmount,Sheet1!S71_A2SubCode,$AC:$AC,Sheet1!S71_ItemType,$AD:$AD)","v":0},{"$f":"-SUMIFS(Sheet1!S71_OY1BudgetAmount,Sheet1!S71_A2SubCode,$AC:$AC,Sheet1!S71_ItemType,$AD:$AD)","v":0},{"$f":"-SUMIFS(Sheet1!S71_OY2BudgetAmount,Sheet1!S71_A2SubCode,$AC:$AC,Sheet1!S71_ItemType,$AD:$AD)","v":0},null,null,null,null,null,null,null,null,null,null,null,null,null,null,null,null,null,4103,"IR"]
["Water management",null,{"$f":"SUM(C105:C107)","v":0},{"$f":"SUM(D105:D107)","v":0},0,0,0,0,0,0,0]
["Water Treatment",null,{"$f":"SUMIFS(Sheet1!S71_PPPYearAmount,Sheet1!S71_A2SubCode,$AC:$AC,Sheet1!S71_ItemType,$AD:$AD)","v":0},{"$f":"SUMIFS(Sheet1!S71_PPYearAmount,Sheet1!S71_A2SubCode,$AC:$AC,Sheet1!S71_ItemType,$AD:$AD)","v":0},{"$f":"SUMIFS(Sheet1!S71_PYearAmount,Sheet1!S71_A2SubCode,$AC:$AC,Sheet1!S71_ItemType,$AD:$AD)","v":0},{"$f":"-SUMIFS(Sheet1!S71_OriginalBudAmnt,Sheet1!S71_A2SubCode,$AC:$AC,Sheet1!S71_ItemType,$AD:$AD)","v":0},{"$f":"-SUMIFS(Sheet1!S71_AdjustmentBudAmnt,Sheet1!S71_A2SubCode,$AC:$AC,Sheet1!S71_ItemType,$AD:$AD)","v":0},{"$f":"-SUMIFS(Sheet1!S71_AdjustmentBudAmnt,Sheet1!S71_A2SubCode,$AC:$AC,Sheet1!S71_ItemType,$AD:$AD)","v":0},{"$f":"-SUMIFS(Sheet1!S71_ASBudgetAmount,Sheet1!S71_A2SubCode,$AC:$AC,Sheet1!S71_ItemType,$AD:$AD)","v":0},{"$f":"-SUMIFS(Sheet1!S71_OY1BudgetAmount,Sheet1!S71_A2SubCode,$AC:$AC,Sheet1!S71_ItemType,$AD:$AD)","v":0},{"$f":"-SUMIFS(Sheet1!S71_OY2BudgetAmount,Sheet1!S71_A2SubCode,$AC:$AC,Sheet1!S71_ItemType,$AD:$AD)","v":0},null,null,null,null,null,null,null,null,null,null,null,null,null,null,null,null,null,4201,"IR"]
["Water Distribution",null,{"$f":"SUMIFS(Sheet1!S71_PPPYearAmount,Sheet1!S71_A2SubCode,$AC:$AC,Sheet1!S71_ItemType,$AD:$AD)","v":0},{"$f":"SUMIFS(Sheet1!S71_PPYearAmount,Sheet1!S71_A2SubCode,$AC:$AC,Sheet1!S71_ItemType,$AD:$AD)","v":0},{"$f":"SUMIFS(Sheet1!S71_PYearAmount,Sheet1!S71_A2SubCode,$AC:$AC,Sheet1!S71_ItemType,$AD:$AD)","v":0},{"$f":"-SUMIFS(Sheet1!S71_OriginalBudAmnt,Sheet1!S71_A2SubCode,$AC:$AC,Sheet1!S71_ItemType,$AD:$AD)","v":0},{"$f":"-SUMIFS(Sheet1!S71_AdjustmentBudAmnt,Sheet1!S71_A2SubCode,$AC:$AC,Sheet1!S71_ItemType,$AD:$AD)","v":0},{"$f":"-SUMIFS(Sheet1!S71_AdjustmentBudAmnt,Sheet1!S71_A2SubCode,$AC:$AC,Sheet1!S71_ItemType,$AD:$AD)","v":0},{"$f":"-SUMIFS(Sheet1!S71_ASBudgetAmount,Sheet1!S71_A2SubCode,$AC:$AC,Sheet1!S71_ItemType,$AD:$AD)","v":0},{"$f":"-SUMIFS(Sheet1!S71_OY1BudgetAmount,Sheet1!S71_A2SubCode,$AC:$AC,Sheet1!S71_ItemType,$AD:$AD)","v":0},{"$f":"-SUMIFS(Sheet1!S71_OY2BudgetAmount,Sheet1!S71_A2SubCode,$AC:$AC,Sheet1!S71_ItemType,$AD:$AD)","v":0},null,null,null,null,null,null,null,null,null,null,null,null,null,null,null,null,null,4202,"IR"]
["Water Storage",null,{"$f":"SUMIFS(Sheet1!S71_PPPYearAmount,Sheet1!S71_A2SubCode,$AC:$AC,Sheet1!S71_ItemType,$AD:$AD)","v":0},{"$f":"SUMIFS(Sheet1!S71_PPYearAmount,Sheet1!S71_A2SubCode,$AC:$AC,Sheet1!S71_ItemType,$AD:$AD)","v":0},{"$f":"SUMIFS(Sheet1!S71_PYearAmount,Sheet1!S71_A2SubCode,$AC:$AC,Sheet1!S71_ItemType,$AD:$AD)","v":0},{"$f":"-SUMIFS(Sheet1!S71_OriginalBudAmnt,Sheet1!S71_A2SubCode,$AC:$AC,Sheet1!S71_ItemType,$AD:$AD)","v":0},{"$f":"-SUMIFS(Sheet1!S71_AdjustmentBudAmnt,Sheet1!S71_A2SubCode,$AC:$AC,Sheet1!S71_ItemType,$AD:$AD)","v":0},{"$f":"-SUMIFS(Sheet1!S71_AdjustmentBudAmnt,Sheet1!S71_A2SubCode,$AC:$AC,Sheet1!S71_ItemType,$AD:$AD)","v":0},{"$f":"-SUMIFS(Sheet1!S71_ASBudgetAmount,Sheet1!S71_A2SubCode,$AC:$AC,Sheet1!S71_ItemType,$AD:$AD)","v":0},{"$f":"-SUMIFS(Sheet1!S71_OY1BudgetAmount,Sheet1!S71_A2SubCode,$AC:$AC,Sheet1!S71_ItemType,$AD:$AD)","v":0},{"$f":"-SUMIFS(Sheet1!S71_OY2BudgetAmount,Sheet1!S71_A2SubCode,$AC:$AC,Sheet1!S71_ItemType,$AD:$AD)","v":0},null,null,null,null,null,null,null,null,null,null,null,null,null,null,null,null,null,4203,"IR"]
["Waste water management",null,{"$f":"SUM(C109:C112)","v":0},{"$f":"SUM(D109:D112)","v":0},0,0,0,0,0,0,0]
["Public Toilets",null,{"$f":"SUMIFS(Sheet1!S71_PPPYearAmount,Sheet1!S71_A2SubCode,$AC:$AC,Sheet1!S71_ItemType,$AD:$AD)","v":0},{"$f":"SUMIFS(Sheet1!S71_PPYearAmount,Sheet1!S71_A2SubCode,$AC:$AC,Sheet1!S71_ItemType,$AD:$AD)","v":0},{"$f":"SUMIFS(Sheet1!S71_PYearAmount,Sheet1!S71_A2SubCode,$AC:$AC,Sheet1!S71_ItemType,$AD:$AD)","v":0},{"$f":"-SUMIFS(Sheet1!S71_OriginalBudAmnt,Sheet1!S71_A2SubCode,$AC:$AC,Sheet1!S71_ItemType,$AD:$AD)","v":0},{"$f":"-SUMIFS(Sheet1!S71_AdjustmentBudAmnt,Sheet1!S71_A2SubCode,$AC:$AC,Sheet1!S71_ItemType,$AD:$AD)","v":0},{"$f":"-SUMIFS(Sheet1!S71_AdjustmentBudAmnt,Sheet1!S71_A2SubCode,$AC:$AC,Sheet1!S71_ItemType,$AD:$AD)","v":0},{"$f":"-SUMIFS(Sheet1!S71_ASBudgetAmount,Sheet1!S71_A2SubCode,$AC:$AC,Sheet1!S71_ItemType,$AD:$AD)","v":0},{"$f":"-SUMIFS(Sheet1!S71_OY1BudgetAmount,Sheet1!S71_A2SubCode,$AC:$AC,Sheet1!S71_ItemType,$AD:$AD)","v":0},{"$f":"-SUMIFS(Sheet1!S71_OY2BudgetAmount,Sheet1!S71_A2SubCode,$AC:$AC,Sheet1!S71_ItemType,$AD:$AD)","v":0},null,null,null,null,null,null,null,null,null,null,null,null,null,null,null,null,null,4301,"IR"]
["Sewerage",null,{"$f":"SUMIFS(Sheet1!S71_PPPYearAmount,Sheet1!S71_A2SubCode,$AC:$AC,Sheet1!S71_ItemType,$AD:$AD)","v":0},{"$f":"SUMIFS(Sheet1!S71_PPYearAmount,Sheet1!S71_A2SubCode,$AC:$AC,Sheet1!S71_ItemType,$AD:$AD)","v":0},{"$f":"SUMIFS(Sheet1!S71_PYearAmount,Sheet1!S71_A2SubCode,$AC:$AC,Sheet1!S71_ItemType,$AD:$AD)","v":0},{"$f":"-SUMIFS(Sheet1!S71_OriginalBudAmnt,Sheet1!S71_A2SubCode,$AC:$AC,Sheet1!S71_ItemType,$AD:$AD)","v":0},{"$f":"-SUMIFS(Sheet1!S71_AdjustmentBudAmnt,Sheet1!S71_A2SubCode,$AC:$AC,Sheet1!S71_ItemType,$AD:$AD)","v":0},{"$f":"-SUMIFS(Sheet1!S71_AdjustmentBudAmnt,Sheet1!S71_A2SubCode,$AC:$AC,Sheet1!S71_ItemType,$AD:$AD)","v":0},{"$f":"-SUMIFS(Sheet1!S71_ASBudgetAmount,Sheet1!S71_A2SubCode,$AC:$AC,Sheet1!S71_ItemType,$AD:$AD)","v":0},{"$f":"-SUMIFS(Sheet1!S71_OY1BudgetAmount,Sheet1!S71_A2SubCode,$AC:$AC,Sheet1!S71_ItemType,$AD:$AD)","v":0},{"$f":"-SUMIFS(Sheet1!S71_OY2BudgetAmount,Sheet1!S71_A2SubCode,$AC:$AC,Sheet1!S71_ItemType,$AD:$AD)","v":0},null,null,null,null,null,null,null,null,null,null,null,null,null,null,null,null,null,4302,"IR"]
["Storm Water Management",null,{"$f":"SUMIFS(Sheet1!S71_PPPYearAmount,Sheet1!S71_A2SubCode,$AC:$AC,Sheet1!S71_ItemType,$AD:$AD)","v":0},{"$f":"SUMIFS(Sheet1!S71_PPYearAmount,Sheet1!S71_A2SubCode,$AC:$AC,Sheet1!S71_ItemType,$AD:$AD)","v":0},{"$f":"SUMIFS(Sheet1!S71_PYearAmount,Sheet1!S71_A2SubCode,$AC:$AC,Sheet1!S71_ItemType,$AD:$AD)","v":0},{"$f":"-SUMIFS(Sheet1!S71_OriginalBudAmnt,Sheet1!S71_A2SubCode,$AC:$AC,Sheet1!S71_ItemType,$AD:$AD)","v":0},{"$f":"-SUMIFS(Sheet1!S71_AdjustmentBudAmnt,Sheet1!S71_A2SubCode,$AC:$AC,Sheet1!S71_ItemType,$AD:$AD)","v":0},{"$f":"-SUMIFS(Sheet1!S71_AdjustmentBudAmnt,Sheet1!S71_A2SubCode,$AC:$AC,Sheet1!S71_ItemType,$AD:$AD)","v":0},{"$f":"-SUMIFS(Sheet1!S71_ASBudgetAmount,Sheet1!S71_A2SubCode,$AC:$AC,Sheet1!S71_ItemType,$AD:$AD)","v":0},{"$f":"-SUMIFS(Sheet1!S71_OY1BudgetAmount,Sheet1!S71_A2SubCode,$AC:$AC,Sheet1!S71_ItemType,$AD:$AD)","v":0},{"$f":"-SUMIFS(Sheet1!S71_OY2BudgetAmount,Sheet1!S71_A2SubCode,$AC:$AC,Sheet1!S71_ItemType,$AD:$AD)","v":0},null,null,null,null,null,null,null,null,null,null,null,null,null,null,null,null,null,4303,"IR"]
["Waste Water Treatment",null,{"$f":"SUMIFS(Sheet1!S71_PPPYearAmount,Sheet1!S71_A2SubCode,$AC:$AC,Sheet1!S71_ItemType,$AD:$AD)","v":0},{"$f":"SUMIFS(Sheet1!S71_PPYearAmount,Sheet1!S71_A2SubCode,$AC:$AC,Sheet1!S71_ItemType,$AD:$AD)","v":0},{"$f":"SUMIFS(Sheet1!S71_PYearAmount,Sheet1!S71_A2SubCode,$AC:$AC,Sheet1!S71_ItemType,$AD:$AD)","v":0},{"$f":"-SUMIFS(Sheet1!S71_OriginalBudAmnt,Sheet1!S71_A2SubCode,$AC:$AC,Sheet1!S71_ItemType,$AD:$AD)","v":0},{"$f":"-SUMIFS(Sheet1!S71_AdjustmentBudAmnt,Sheet1!S71_A2SubCode,$AC:$AC,Sheet1!S71_ItemType,$AD:$AD)","v":0},{"$f":"-SUMIFS(Sheet1!S71_AdjustmentBudAmnt,Sheet1!S71_A2SubCode,$AC:$AC,Sheet1!S71_ItemType,$AD:$AD)","v":0},{"$f":"-SUMIFS(Sheet1!S71_ASBudgetAmount,Sheet1!S71_A2SubCode,$AC:$AC,Sheet1!S71_ItemType,$AD:$AD)","v":0},{"$f":"-SUMIFS(Sheet1!S71_OY1BudgetAmount,Sheet1!S71_A2SubCode,$AC:$AC,Sheet1!S71_ItemType,$AD:$AD)","v":0},{"$f":"-SUMIFS(Sheet1!S71_OY2BudgetAmount,Sheet1!S71_A2SubCode,$AC:$AC,Sheet1!S71_ItemType,$AD:$AD)","v":0},null,null,null,null,null,null,null,null,null,null,null,null,null,null,null,null,null,4304,"IR"]
["Waste management",null,{"$f":"SUM(C114:C117)","v":0},{"$f":"SUM(D114:D117)","v":0},0,0,0,0,0,0,0]
["Recycling",null,{"$f":"SUMIFS(Sheet1!S71_PPPYearAmount,Sheet1!S71_A2SubCode,$AC:$AC,Sheet1!S71_ItemType,$AD:$AD)","v":0},{"$f":"SUMIFS(Sheet1!S71_PPYearAmount,Sheet1!S71_A2SubCode,$AC:$AC,Sheet1!S71_ItemType,$AD:$AD)","v":0},{"$f":"SUMIFS(Sheet1!S71_PYearAmount,Sheet1!S71_A2SubCode,$AC:$AC,Sheet1!S71_ItemType,$AD:$AD)","v":0},{"$f":"-SUMIFS(Sheet1!S71_OriginalBudAmnt,Sheet1!S71_A2SubCode,$AC:$AC,Sheet1!S71_ItemType,$AD:$AD)","v":0},{"$f":"-SUMIFS(Sheet1!S71_AdjustmentBudAmnt,Sheet1!S71_A2SubCode,$AC:$AC,Sheet1!S71_ItemType,$AD:$AD)","v":0},{"$f":"-SUMIFS(Sheet1!S71_AdjustmentBudAmnt,Sheet1!S71_A2SubCode,$AC:$AC,Sheet1!S71_ItemType,$AD:$AD)","v":0},{"$f":"-SUMIFS(Sheet1!S71_ASBudgetAmount,Sheet1!S71_A2SubCode,$AC:$AC,Sheet1!S71_ItemType,$AD:$AD)","v":0},{"$f":"-SUMIFS(Sheet1!S71_OY1BudgetAmount,Sheet1!S71_A2SubCode,$AC:$AC,Sheet1!S71_ItemType,$AD:$AD)","v":0},{"$f":"-SUMIFS(Sheet1!S71_OY2BudgetAmount,Sheet1!S71_A2SubCode,$AC:$AC,Sheet1!S71_ItemType,$AD:$AD)","v":0},null,null,null,null,null,null,null,null,null,null,null,null,null,null,null,null,null,4401,"IR"]
["Solid Waste Disposal (Landfill Sites)",null,{"$f":"SUMIFS(Sheet1!S71_PPPYearAmount,Sheet1!S71_A2SubCode,$AC:$AC,Sheet1!S71_ItemType,$AD:$AD)","v":0},{"$f":"SUMIFS(Sheet1!S71_PPYearAmount,Sheet1!S71_A2SubCode,$AC:$AC,Sheet1!S71_ItemType,$AD:$AD)","v":0},{"$f":"SUMIFS(Sheet1!S71_PYearAmount,Sheet1!S71_A2SubCode,$AC:$AC,Sheet1!S71_ItemType,$AD:$AD)","v":0},{"$f":"-SUMIFS(Sheet1!S71_OriginalBudAmnt,Sheet1!S71_A2SubCode,$AC:$AC,Sheet1!S71_ItemType,$AD:$AD)","v":0},{"$f":"-SUMIFS(Sheet1!S71_AdjustmentBudAmnt,Sheet1!S71_A2SubCode,$AC:$AC,Sheet1!S71_ItemType,$AD:$AD)","v":0},{"$f":"-SUMIFS(Sheet1!S71_AdjustmentBudAmnt,Sheet1!S71_A2SubCode,$AC:$AC,Sheet1!S71_ItemType,$AD:$AD)","v":0},{"$f":"-SUMIFS(Sheet1!S71_ASBudgetAmount,Sheet1!S71_A2SubCode,$AC:$AC,Sheet1!S71_ItemType,$AD:$AD)","v":0},{"$f":"-SUMIFS(Sheet1!S71_OY1BudgetAmount,Sheet1!S71_A2SubCode,$AC:$AC,Sheet1!S71_ItemType,$AD:$AD)","v":0},{"$f":"-SUMIFS(Sheet1!S71_OY2BudgetAmount,Sheet1!S71_A2SubCode,$AC:$AC,Sheet1!S71_ItemType,$AD:$AD)","v":0},null,null,null,null,null,null,null,null,null,null,null,null,null,null,null,null,null,4402,"IR"]
["Solid Waste Removal",null,{"$f":"SUMIFS(Sheet1!S71_PPPYearAmount,Sheet1!S71_A2SubCode,$AC:$AC,Sheet1!S71_ItemType,$AD:$AD)","v":0},{"$f":"SUMIFS(Sheet1!S71_PPYearAmount,Sheet1!S71_A2SubCode,$AC:$AC,Sheet1!S71_ItemType,$AD:$AD)","v":0},{"$f":"SUMIFS(Sheet1!S71_PYearAmount,Sheet1!S71_A2SubCode,$AC:$AC,Sheet1!S71_ItemType,$AD:$AD)","v":0},{"$f":"-SUMIFS(Sheet1!S71_OriginalBudAmnt,Sheet1!S71_A2SubCode,$AC:$AC,Sheet1!S71_ItemType,$AD:$AD)","v":0},{"$f":"-SUMIFS(Sheet1!S71_AdjustmentBudAmnt,Sheet1!S71_A2SubCode,$AC:$AC,Sheet1!S71_ItemType,$AD:$AD)","v":0},{"$f":"-SUMIFS(Sheet1!S71_AdjustmentBudAmnt,Sheet1!S71_A2SubCode,$AC:$AC,Sheet1!S71_ItemType,$AD:$AD)","v":0},{"$f":"-SUMIFS(Sheet1!S71_ASBudgetAmount,Sheet1!S71_A2SubCode,$AC:$AC,Sheet1!S71_ItemType,$AD:$AD)","v":0},{"$f":"-SUMIFS(Sheet1!S71_OY1BudgetAmount,Sheet1!S71_A2SubCode,$AC:$AC,Sheet1!S71_ItemType,$AD:$AD)","v":0},{"$f":"-SUMIFS(Sheet1!S71_OY2BudgetAmount,Sheet1!S71_A2SubCode,$AC:$AC,Sheet1!S71_ItemType,$AD:$AD)","v":0},null,null,null,null,null,null,null,null,null,null,null,null,null,null,null,null,null,4403,"IR"]
["Street Cleaning",null,{"$f":"SUMIFS(Sheet1!S71_PPPYearAmount,Sheet1!S71_A2SubCode,$AC:$AC,Sheet1!S71_ItemType,$AD:$AD)","v":0},{"$f":"SUMIFS(Sheet1!S71_PPYearAmount,Sheet1!S71_A2SubCode,$AC:$AC,Sheet1!S71_ItemType,$AD:$AD)","v":0},{"$f":"SUMIFS(Sheet1!S71_PYearAmount,Sheet1!S71_A2SubCode,$AC:$AC,Sheet1!S71_ItemType,$AD:$AD)","v":0},{"$f":"-SUMIFS(Sheet1!S71_OriginalBudAmnt,Sheet1!S71_A2SubCode,$AC:$AC,Sheet1!S71_ItemType,$AD:$AD)","v":0},{"$f":"-SUMIFS(Sheet1!S71_AdjustmentBudAmnt,Sheet1!S71_A2SubCode,$AC:$AC,Sheet1!S71_ItemType,$AD:$AD)","v":0},{"$f":"-SUMIFS(Sheet1!S71_AdjustmentBudAmnt,Sheet1!S71_A2SubCode,$AC:$AC,Sheet1!S71_ItemType,$AD:$AD)","v":0},{"$f":"-SUMIFS(Sheet1!S71_ASBudgetAmount,Sheet1!S71_A2SubCode,$AC:$AC,Sheet1!S71_ItemType,$AD:$AD)","v":0},{"$f":"-SUMIFS(Sheet1!S71_OY1BudgetAmount,Sheet1!S71_A2SubCode,$AC:$AC,Sheet1!S71_ItemType,$AD:$AD)","v":0},{"$f":"-SUMIFS(Sheet1!S71_OY2BudgetAmount,Sheet1!S71_A2SubCode,$AC:$AC,Sheet1!S71_ItemType,$AD:$AD)","v":0},null,null,null,null,null,null,null,null,null,null,null,null,null,null,null,null,null,4404,"IR"]
["Other",null,{"$f":"SUM(C119:C124)","v":0},{"$f":"SUM(D119:D124)","v":0},0,0,0,0,0,0,0]
["Abattoirs",null,{"$f":"SUMIFS(Sheet1!S71_PPPYearAmount,Sheet1!S71_A2SubCode,$AC:$AC,Sheet1!S71_ItemType,$AD:$AD)","v":0},{"$f":"SUMIFS(Sheet1!S71_PPYearAmount,Sheet1!S71_A2SubCode,$AC:$AC,Sheet1!S71_ItemType,$AD:$AD)","v":0},{"$f":"SUMIFS(Sheet1!S71_PYearAmount,Sheet1!S71_A2SubCode,$AC:$AC,Sheet1!S71_ItemType,$AD:$AD)","v":0},{"$f":"-SUMIFS(Sheet1!S71_OriginalBudAmnt,Sheet1!S71_A2SubCode,$AC:$AC,Sheet1!S71_ItemType,$AD:$AD)","v":0},{"$f":"-SUMIFS(Sheet1!S71_AdjustmentBudAmnt,Sheet1!S71_A2SubCode,$AC:$AC,Sheet1!S71_ItemType,$AD:$AD)","v":0},{"$f":"-SUMIFS(Sheet1!S71_AdjustmentBudAmnt,Sheet1!S71_A2SubCode,$AC:$AC,Sheet1!S71_ItemType,$AD:$AD)","v":0},{"$f":"-SUMIFS(Sheet1!S71_ASBudgetAmount,Sheet1!S71_A2SubCode,$AC:$AC,Sheet1!S71_ItemType,$AD:$AD)","v":0},{"$f":"-SUMIFS(Sheet1!S71_OY1BudgetAmount,Sheet1!S71_A2SubCode,$AC:$AC,Sheet1!S71_ItemType,$AD:$AD)","v":0},{"$f":"-SUMIFS(Sheet1!S71_OY2BudgetAmount,Sheet1!S71_A2SubCode,$AC:$AC,Sheet1!S71_ItemType,$AD:$AD)","v":0},null,null,null,null,null,null,null,null,null,null,null,null,null,null,null,null,null,5001,"IR"]
["Air Transport",null,{"$f":"SUMIFS(Sheet1!S71_PPPYearAmount,Sheet1!S71_A2SubCode,$AC:$AC,Sheet1!S71_ItemType,$AD:$AD)","v":0},{"$f":"SUMIFS(Sheet1!S71_PPYearAmount,Sheet1!S71_A2SubCode,$AC:$AC,Sheet1!S71_ItemType,$AD:$AD)","v":0},{"$f":"SUMIFS(Sheet1!S71_PYearAmount,Sheet1!S71_A2SubCode,$AC:$AC,Sheet1!S71_ItemType,$AD:$AD)","v":0},{"$f":"-SUMIFS(Sheet1!S71_OriginalBudAmnt,Sheet1!S71_A2SubCode,$AC:$AC,Sheet1!S71_ItemType,$AD:$AD)","v":0},{"$f":"-SUMIFS(Sheet1!S71_AdjustmentBudAmnt,Sheet1!S71_A2SubCode,$AC:$AC,Sheet1!S71_ItemType,$AD:$AD)","v":0},{"$f":"-SUMIFS(Sheet1!S71_AdjustmentBudAmnt,Sheet1!S71_A2SubCode,$AC:$AC,Sheet1!S71_ItemType,$AD:$AD)","v":0},{"$f":"-SUMIFS(Sheet1!S71_ASBudgetAmount,Sheet1!S71_A2SubCode,$AC:$AC,Sheet1!S71_ItemType,$AD:$AD)","v":0},{"$f":"-SUMIFS(Sheet1!S71_OY1BudgetAmount,Sheet1!S71_A2SubCode,$AC:$AC,Sheet1!S71_ItemType,$AD:$AD)","v":0},{"$f":"-SUMIFS(Sheet1!S71_OY2BudgetAmount,Sheet1!S71_A2SubCode,$AC:$AC,Sheet1!S71_ItemType,$AD:$AD)","v":0},null,null,null,null,null,null,null,null,null,null,null,null,null,null,null,null,null,5002,"IR"]
["Forestry ",null,{"$f":"SUMIFS(Sheet1!S71_PPPYearAmount,Sheet1!S71_A2SubCode,$AC:$AC,Sheet1!S71_ItemType,$AD:$AD)","v":0},{"$f":"SUMIFS(Sheet1!S71_PPYearAmount,Sheet1!S71_A2SubCode,$AC:$AC,Sheet1!S71_ItemType,$AD:$AD)","v":0},{"$f":"SUMIFS(Sheet1!S71_PYearAmount,Sheet1!S71_A2SubCode,$AC:$AC,Sheet1!S71_ItemType,$AD:$AD)","v":0},{"$f":"-SUMIFS(Sheet1!S71_OriginalBudAmnt,Sheet1!S71_A2SubCode,$AC:$AC,Sheet1!S71_ItemType,$AD:$AD)","v":0},{"$f":"-SUMIFS(Sheet1!S71_AdjustmentBudAmnt,Sheet1!S71_A2SubCode,$AC:$AC,Sheet1!S71_ItemType,$AD:$AD)","v":0},{"$f":"-SUMIFS(Sheet1!S71_AdjustmentBudAmnt,Sheet1!S71_A2SubCode,$AC:$AC,Sheet1!S71_ItemType,$AD:$AD)","v":0},{"$f":"-SUMIFS(Sheet1!S71_ASBudgetAmount,Sheet1!S71_A2SubCode,$AC:$AC,Sheet1!S71_ItemType,$AD:$AD)","v":0},{"$f":"-SUMIFS(Sheet1!S71_OY1BudgetAmount,Sheet1!S71_A2SubCode,$AC:$AC,Sheet1!S71_ItemType,$AD:$AD)","v":0},{"$f":"-SUMIFS(Sheet1!S71_OY2BudgetAmount,Sheet1!S71_A2SubCode,$AC:$AC,Sheet1!S71_ItemType,$AD:$AD)","v":0},null,null,null,null,null,null,null,null,null,null,null,null,null,null,null,null,null,5003,"IR"]
["Licensing and Regulation",null,{"$f":"SUMIFS(Sheet1!S71_PPPYearAmount,Sheet1!S71_A2SubCode,$AC:$AC,Sheet1!S71_ItemType,$AD:$AD)","v":0},{"$f":"SUMIFS(Sheet1!S71_PPYearAmount,Sheet1!S71_A2SubCode,$AC:$AC,Sheet1!S71_ItemType,$AD:$AD)","v":0},{"$f":"SUMIFS(Sheet1!S71_PYearAmount,Sheet1!S71_A2SubCode,$AC:$AC,Sheet1!S71_ItemType,$AD:$AD)","v":0},{"$f":"-SUMIFS(Sheet1!S71_OriginalBudAmnt,Sheet1!S71_A2SubCode,$AC:$AC,Sheet1!S71_ItemType,$AD:$AD)","v":0},{"$f":"-SUMIFS(Sheet1!S71_AdjustmentBudAmnt,Sheet1!S71_A2SubCode,$AC:$AC,Sheet1!S71_ItemType,$AD:$AD)","v":0},{"$f":"-SUMIFS(Sheet1!S71_AdjustmentBudAmnt,Sheet1!S71_A2SubCode,$AC:$AC,Sheet1!S71_ItemType,$AD:$AD)","v":0},{"$f":"-SUMIFS(Sheet1!S71_ASBudgetAmount,Sheet1!S71_A2SubCode,$AC:$AC,Sheet1!S71_ItemType,$AD:$AD)","v":0},{"$f":"-SUMIFS(Sheet1!S71_OY1BudgetAmount,Sheet1!S71_A2SubCode,$AC:$AC,Sheet1!S71_ItemType,$AD:$AD)","v":0},{"$f":"-SUMIFS(Sheet1!S71_OY2BudgetAmount,Sheet1!S71_A2SubCode,$AC:$AC,Sheet1!S71_ItemType,$AD:$AD)","v":0},null,null,null,null,null,null,null,null,null,null,null,null,null,null,null,null,null,5004,"IR"]
["Markets",null,{"$f":"SUMIFS(Sheet1!S71_PPPYearAmount,Sheet1!S71_A2SubCode,$AC:$AC,Sheet1!S71_ItemType,$AD:$AD)","v":0},{"$f":"SUMIFS(Sheet1!S71_PPYearAmount,Sheet1!S71_A2SubCode,$AC:$AC,Sheet1!S71_ItemType,$AD:$AD)","v":0},{"$f":"SUMIFS(Sheet1!S71_PYearAmount,Sheet1!S71_A2SubCode,$AC:$AC,Sheet1!S71_ItemType,$AD:$AD)","v":0},{"$f":"-SUMIFS(Sheet1!S71_OriginalBudAmnt,Sheet1!S71_A2SubCode,$AC:$AC,Sheet1!S71_ItemType,$AD:$AD)","v":0},{"$f":"-SUMIFS(Sheet1!S71_AdjustmentBudAmnt,Sheet1!S71_A2SubCode,$AC:$AC,Sheet1!S71_ItemType,$AD:$AD)","v":0},{"$f":"-SUMIFS(Sheet1!S71_AdjustmentBudAmnt,Sheet1!S71_A2SubCode,$AC:$AC,Sheet1!S71_ItemType,$AD:$AD)","v":0},{"$f":"-SUMIFS(Sheet1!S71_ASBudgetAmount,Sheet1!S71_A2SubCode,$AC:$AC,Sheet1!S71_ItemType,$AD:$AD)","v":0},{"$f":"-SUMIFS(Sheet1!S71_OY1BudgetAmount,Sheet1!S71_A2SubCode,$AC:$AC,Sheet1!S71_ItemType,$AD:$AD)","v":0},{"$f":"-SUMIFS(Sheet1!S71_OY2BudgetAmount,Sheet1!S71_A2SubCode,$AC:$AC,Sheet1!S71_ItemType,$AD:$AD)","v":0},null,null,null,null,null,null,null,null,null,null,null,null,null,null,null,null,null,5005,"IR"]
["Tourism",null,{"$f":"SUMIFS(Sheet1!S71_PPPYearAmount,Sheet1!S71_A2SubCode,$AC:$AC,Sheet1!S71_ItemType,$AD:$AD)","v":0},{"$f":"SUMIFS(Sheet1!S71_PPYearAmount,Sheet1!S71_A2SubCode,$AC:$AC,Sheet1!S71_ItemType,$AD:$AD)","v":0},{"$f":"SUMIFS(Sheet1!S71_PYearAmount,Sheet1!S71_A2SubCode,$AC:$AC,Sheet1!S71_ItemType,$AD:$AD)","v":0},{"$f":"-SUMIFS(Sheet1!S71_OriginalBudAmnt,Sheet1!S71_A2SubCode,$AC:$AC,Sheet1!S71_ItemType,$AD:$AD)","v":0},{"$f":"-SUMIFS(Sheet1!S71_AdjustmentBudAmnt,Sheet1!S71_A2SubCode,$AC:$AC,Sheet1!S71_ItemType,$AD:$AD)","v":0},{"$f":"-SUMIFS(Sheet1!S71_AdjustmentBudAmnt,Sheet1!S71_A2SubCode,$AC:$AC,Sheet1!S71_ItemType,$AD:$AD)","v":0},{"$f":"-SUMIFS(Sheet1!S71_ASBudgetAmount,Sheet1!S71_A2SubCode,$AC:$AC,Sheet1!S71_ItemType,$AD:$AD)","v":0},{"$f":"-SUMIFS(Sheet1!S71_OY1BudgetAmount,Sheet1!S71_A2SubCode,$AC:$AC,Sheet1!S71_ItemType,$AD:$AD)","v":0},{"$f":"-SUMIFS(Sheet1!S71_OY2BudgetAmount,Sheet1!S71_A2SubCode,$AC:$AC,Sheet1!S71_ItemType,$AD:$AD)","v":0},null,null,null,null,null,null,null,null,null,null,null,null,null,null,null,null,null,5006,"IR"]
[{"$f":"\"Total \"&A4","v":"Total Revenue - Functional"},2,{"$f":"C5+C25+C75+C99+C118","v":0},68965758,67962784,67946987,69688183,69688183,63471183,68748000,70151999]
[]
["Expenditure - Functional"]
[{"$f":"A5","v":"Municipal governance and administration"},null,{"$f":"C129+C132+C146","v":0},48233356,54453172,52811588,53917590,53917590,47717561,53096604,54099077]
["Executive and council",null,{"$f":"SUM(C130:C131)","v":0},15725174,15336236,16002895,15536359,15536359,13776650,15327072,15718132]
["Mayor and Council",null,{"$f":"SUMIFS(Sheet1!S71_PPPYearAmount,Sheet1!S71_A2SubCode,$AC:$AC,Sheet1!S71_ItemType,$AD:$AD)","v":0},{"$f":"SUMIFS(Sheet1!S71_PPYearAmount,Sheet1!S71_A2SubCode,$AC:$AC,Sheet1!S71_ItemType,$AD:$AD)","v":5436075},{"$f":"SUMIFS(Sheet1!S71_PYearAmount,Sheet1!S71_A2SubCode,$AC:$AC,Sheet1!S71_ItemType,$AD:$AD)","v":6053679},{"$f":"SUMIFS(Sheet1!S71_OriginalBudAmnt,Sheet1!S71_A2SubCode,$AC:$AC,Sheet1!S71_ItemType,$AD:$AD)","v":5488415},{"$f":"SUMIFS(Sheet1!S71_AdjustmentBudAmnt,Sheet1!S71_A2SubCode,$AC:$AC,Sheet1!S71_ItemType,$AD:$AD)","v":5661915},{"$f":"SUMIFS(Sheet1!S71_AdjustmentBudAmnt,Sheet1!S71_A2SubCode,$AC:$AC,Sheet1!S71_ItemType,$AD:$AD)","v":5661915},{"$f":"SUMIFS(Sheet1!S71_ASBudgetAmount,Sheet1!S71_A2SubCode,$AC:$AC,Sheet1!S71_ItemType,$AD:$AD)","v":5466415},{"$f":"SUMIFS(Sheet1!S71_OY1BudgetAmount,Sheet1!S71_A2SubCode,$AC:$AC,Sheet1!S71_ItemType,$AD:$AD)","v":5831269},{"$f":"SUMIFS(Sheet1!S71_OY2BudgetAmount,Sheet1!S71_A2SubCode,$AC:$AC,Sheet1!S71_ItemType,$AD:$AD)","v":5915192},null,null,null,null,null,null,null,null,null,null,null,null,null,null,null,null,null,1110,"IE"]
["Municipal Manager, Town Secretary and Chief Executive",null,{"$f":"SUMIFS(Sheet1!S71_PPPYearAmount,Sheet1!S71_A2SubCode,$AC:$AC,Sheet1!S71_ItemType,$AD:$AD)","v":0},{"$f":"SUMIFS(Sheet1!S71_PPYearAmount,Sheet1!S71_A2SubCode,$AC:$AC,Sheet1!S71_ItemType,$AD:$AD)","v":10289099},{"$f":"SUMIFS(Sheet1!S71_PYearAmount,Sheet1!S71_A2SubCode,$AC:$AC,Sheet1!S71_ItemType,$AD:$AD)","v":9282557},{"$f":"SUMIFS(Sheet1!S71_OriginalBudAmnt,Sheet1!S71_A2SubCode,$AC:$AC,Sheet1!S71_ItemType,$AD:$AD)","v":10514480},{"$f":"SUMIFS(Sheet1!S71_AdjustmentBudAmnt,Sheet1!S71_A2SubCode,$AC:$AC,Sheet1!S71_ItemType,$AD:$AD)","v":9874444},{"$f":"SUMIFS(Sheet1!S71_AdjustmentBudAmnt,Sheet1!S71_A2SubCode,$AC:$AC,Sheet1!S71_ItemType,$AD:$AD)","v":9874444},{"$f":"SUMIFS(Sheet1!S71_ASBudgetAmount,Sheet1!S71_A2SubCode,$AC:$AC,Sheet1!S71_ItemType,$AD:$AD)","v":8310235},{"$f":"SUMIFS(Sheet1!S71_OY1BudgetAmount,Sheet1!S71_A2SubCode,$AC:$AC,Sheet1!S71_ItemType,$AD:$AD)","v":9495803},{"$f":"SUMIFS(Sheet1!S71_OY2BudgetAmount,Sheet1!S71_A2SubCode,$AC:$AC,Sheet1!S71_ItemType,$AD:$AD)","v":9802940},null,null,null,null,null,null,null,null,null,null,null,null,null,null,null,null,null,1120,"IE"]
["Finance and administration",null,{"$f":"SUM(C133:C145)","v":0},32508182,39116936,36808693,38381231,38381231,33940911,37769532,38380945]
["Administrative and Corporate Support",null,{"$f":"SUMIFS(Sheet1!S71_PPPYearAmount,Sheet1!S71_A2SubCode,$AC:$AC,Sheet1!S71_ItemType,$AD:$AD)","v":0},{"$f":"SUMIFS(Sheet1!S71_PPYearAmount,Sheet1!S71_A2SubCode,$AC:$AC,Sheet1!S71_ItemType,$AD:$AD)","v":17298619},{"$f":"SUMIFS(Sheet1!S71_PYearAmount,Sheet1!S71_A2SubCode,$AC:$AC,Sheet1!S71_ItemType,$AD:$AD)","v":20876068},{"$f":"SUMIFS(Sheet1!S71_OriginalBudAmnt,Sheet1!S71_A2SubCode,$AC:$AC,Sheet1!S71_ItemType,$AD:$AD)","v":20163385},{"$f":"SUMIFS(Sheet1!S71_AdjustmentBudAmnt,Sheet1!S71_A2SubCode,$AC:$AC,Sheet1!S71_ItemType,$AD:$AD)","v":21350328},{"$f":"SUMIFS(Sheet1!S71_AdjustmentBudAmnt,Sheet1!S71_A2SubCode,$AC:$AC,Sheet1!S71_ItemType,$AD:$AD)","v":21350328},{"$f":"SUMIFS(Sheet1!S71_ASBudgetAmount,Sheet1!S71_A2SubCode,$AC:$AC,Sheet1!S71_ItemType,$AD:$AD)","v":19186578},{"$f":"SUMIFS(Sheet1!S71_OY1BudgetAmount,Sheet1!S71_A2SubCode,$AC:$AC,Sheet1!S71_ItemType,$AD:$AD)","v":21388028},{"$f":"SUMIFS(Sheet1!S71_OY2BudgetAmount,Sheet1!S71_A2SubCode,$AC:$AC,Sheet1!S71_ItemType,$AD:$AD)","v":21850779},null,null,null,null,null,null,null,null,null,null,null,null,null,null,null,null,null,1201,"IE"]
["Asset Management",null,{"$f":"SUMIFS(Sheet1!S71_PPPYearAmount,Sheet1!S71_A2SubCode,$AC:$AC,Sheet1!S71_ItemType,$AD:$AD)","v":0},{"$f":"SUMIFS(Sheet1!S71_PPYearAmount,Sheet1!S71_A2SubCode,$AC:$AC,Sheet1!S71_ItemType,$AD:$AD)","v":0},{"$f":"SUMIFS(Sheet1!S71_PYearAmount,Sheet1!S71_A2SubCode,$AC:$AC,Sheet1!S71_ItemType,$AD:$AD)","v":0},{"$f":"SUMIFS(Sheet1!S71_OriginalBudAmnt,Sheet1!S71_A2SubCode,$AC:$AC,Sheet1!S71_ItemType,$AD:$AD)","v":0},{"$f":"SUMIFS(Sheet1!S71_AdjustmentBudAmnt,Sheet1!S71_A2SubCode,$AC:$AC,Sheet1!S71_ItemType,$AD:$AD)","v":0},{"$f":"SUMIFS(Sheet1!S71_AdjustmentBudAmnt,Sheet1!S71_A2SubCode,$AC:$AC,Sheet1!S71_ItemType,$AD:$AD)","v":0},{"$f":"SUMIFS(Sheet1!S71_ASBudgetAmount,Sheet1!S71_A2SubCode,$AC:$AC,Sheet1!S71_ItemType,$AD:$AD)","v":0},{"$f":"SUMIFS(Sheet1!S71_OY1BudgetAmount,Sheet1!S71_A2SubCode,$AC:$AC,Sheet1!S71_ItemType,$AD:$AD)","v":0},{"$f":"SUMIFS(Sheet1!S71_OY2BudgetAmount,Sheet1!S71_A2SubCode,$AC:$AC,Sheet1!S71_ItemType,$AD:$AD)","v":0},null,null,null,null,null,null,null,null,null,null,null,null,null,null,null,null,null,1202,"IE"]
["Finance",null,{"$f":"SUMIFS(Sheet1!S71_PPPYearAmount,Sheet1!S71_A2SubCode,$AC:$AC,Sheet1!S71_ItemType,$AD:$AD)","v":0},{"$f":"SUMIFS(Sheet1!S71_PPYearAmount,Sheet1!S71_A2SubCode,$AC:$AC,Sheet1!S71_ItemType,$AD:$AD)","v":13803944},{"$f":"SUMIFS(Sheet1!S71_PYearAmount,Sheet1!S71_A2SubCode,$AC:$AC,Sheet1!S71_ItemType,$AD:$AD)","v":16581532},{"$f":"SUMIFS(Sheet1!S71_OriginalBudAmnt,Sheet1!S71_A2SubCode,$AC:$AC,Sheet1!S71_ItemType,$AD:$AD)","v":15033500},{"$f":"SUMIFS(Sheet1!S71_AdjustmentBudAmnt,Sheet1!S71_A2SubCode,$AC:$AC,Sheet1!S71_ItemType,$AD:$AD)","v":15311654},{"$f":"SUMIFS(Sheet1!S71_AdjustmentBudAmnt,Sheet1!S71_A2SubCode,$AC:$AC,Sheet1!S71_ItemType,$AD:$AD)","v":15311654},{"$f":"SUMIFS(Sheet1!S71_ASBudgetAmount,Sheet1!S71_A2SubCode,$AC:$AC,Sheet1!S71_ItemType,$AD:$AD)","v":13131763},{"$f":"SUMIFS(Sheet1!S71_OY1BudgetAmount,Sheet1!S71_A2SubCode,$AC:$AC,Sheet1!S71_ItemType,$AD:$AD)","v":14696536},{"$f":"SUMIFS(Sheet1!S71_OY2BudgetAmount,Sheet1!S71_A2SubCode,$AC:$AC,Sheet1!S71_ItemType,$AD:$AD)","v":14682922},null,null,null,null,null,null,null,null,null,null,null,null,null,null,null,null,null,1204,"IE"]
["Fleet Management",null,{"$f":"SUMIFS(Sheet1!S71_PPPYearAmount,Sheet1!S71_A2SubCode,$AC:$AC,Sheet1!S71_ItemType,$AD:$AD)","v":0},{"$f":"SUMIFS(Sheet1!S71_PPYearAmount,Sheet1!S71_A2SubCode,$AC:$AC,Sheet1!S71_ItemType,$AD:$AD)","v":0},{"$f":"SUMIFS(Sheet1!S71_PYearAmount,Sheet1!S71_A2SubCode,$AC:$AC,Sheet1!S71_ItemType,$AD:$AD)","v":0},{"$f":"SUMIFS(Sheet1!S71_OriginalBudAmnt,Sheet1!S71_A2SubCode,$AC:$AC,Sheet1!S71_ItemType,$AD:$AD)","v":0},{"$f":"SUMIFS(Sheet1!S71_AdjustmentBudAmnt,Sheet1!S71_A2SubCode,$AC:$AC,Sheet1!S71_ItemType,$AD:$AD)","v":0},{"$f":"SUMIFS(Sheet1!S71_AdjustmentBudAmnt,Sheet1!S71_A2SubCode,$AC:$AC,Sheet1!S71_ItemType,$AD:$AD)","v":0},{"$f":"SUMIFS(Sheet1!S71_ASBudgetAmount,Sheet1!S71_A2SubCode,$AC:$AC,Sheet1!S71_ItemType,$AD:$AD)","v":0},{"$f":"SUMIFS(Sheet1!S71_OY1BudgetAmount,Sheet1!S71_A2SubCode,$AC:$AC,Sheet1!S71_ItemType,$AD:$AD)","v":0},{"$f":"SUMIFS(Sheet1!S71_OY2BudgetAmount,Sheet1!S71_A2SubCode,$AC:$AC,Sheet1!S71_ItemType,$AD:$AD)","v":0},null,null,null,null,null,null,null,null,null,null,null,null,null,null,null,null,null,1205,"IE"]
["Human Resources",null,{"$f":"SUMIFS(Sheet1!S71_PPPYearAmount,Sheet1!S71_A2SubCode,$AC:$AC,Sheet1!S71_ItemType,$AD:$AD)","v":0},{"$f":"SUMIFS(Sheet1!S71_PPYearAmount,Sheet1!S71_A2SubCode,$AC:$AC,Sheet1!S71_ItemType,$AD:$AD)","v":1405619},{"$f":"SUMIFS(Sheet1!S71_PYearAmount,Sheet1!S71_A2SubCode,$AC:$AC,Sheet1!S71_ItemType,$AD:$AD)","v":1659336},{"$f":"SUMIFS(Sheet1!S71_OriginalBudAmnt,Sheet1!S71_A2SubCode,$AC:$AC,Sheet1!S71_ItemType,$AD:$AD)","v":1611808},{"$f":"SUMIFS(Sheet1!S71_AdjustmentBudAmnt,Sheet1!S71_A2SubCode,$AC:$AC,Sheet1!S71_ItemType,$AD:$AD)","v":1719249},{"$f":"SUMIFS(Sheet1!S71_AdjustmentBudAmnt,Sheet1!S71_A2SubCode,$AC:$AC,Sheet1!S71_ItemType,$AD:$AD)","v":1719249},{"$f":"SUMIFS(Sheet1!S71_ASBudgetAmount,Sheet1!S71_A2SubCode,$AC:$AC,Sheet1!S71_ItemType,$AD:$AD)","v":1622570},{"$f":"SUMIFS(Sheet1!S71_OY1BudgetAmount,Sheet1!S71_A2SubCode,$AC:$AC,Sheet1!S71_ItemType,$AD:$AD)","v":1684968},{"$f":"SUMIFS(Sheet1!S71_OY2BudgetAmount,Sheet1!S71_A2SubCode,$AC:$AC,Sheet1!S71_ItemType,$AD:$AD)","v":1847244},null,null,null,null,null,null,null,null,null,null,null,null,null,null,null,null,null,1206,"IE"]
["Information Technology",null,{"$f":"SUMIFS(Sheet1!S71_PPPYearAmount,Sheet1!S71_A2SubCode,$AC:$AC,Sheet1!S71_ItemType,$AD:$AD)","v":0},{"$f":"SUMIFS(Sheet1!S71_PPYearAmount,Sheet1!S71_A2SubCode,$AC:$AC,Sheet1!S71_ItemType,$AD:$AD)","v":0},{"$f":"SUMIFS(Sheet1!S71_PYearAmount,Sheet1!S71_A2SubCode,$AC:$AC,Sheet1!S71_ItemType,$AD:$AD)","v":0},{"$f":"SUMIFS(Sheet1!S71_OriginalBudAmnt,Sheet1!S71_A2SubCode,$AC:$AC,Sheet1!S71_ItemType,$AD:$AD)","v":0},{"$f":"SUMIFS(Sheet1!S71_AdjustmentBudAmnt,Sheet1!S71_A2SubCode,$AC:$AC,Sheet1!S71_ItemType,$AD:$AD)","v":0},{"$f":"SUMIFS(Sheet1!S71_AdjustmentBudAmnt,Sheet1!S71_A2SubCode,$AC:$AC,Sheet1!S71_ItemType,$AD:$AD)","v":0},{"$f":"SUMIFS(Sheet1!S71_ASBudgetAmount,Sheet1!S71_A2SubCode,$AC:$AC,Sheet1!S71_ItemType,$AD:$AD)","v":0},{"$f":"SUMIFS(Sheet1!S71_OY1BudgetAmount,Sheet1!S71_A2SubCode,$AC:$AC,Sheet1!S71_ItemType,$AD:$AD)","v":0},{"$f":"SUMIFS(Sheet1!S71_OY2BudgetAmount,Sheet1!S71_A2SubCode,$AC:$AC,Sheet1!S71_ItemType,$AD:$AD)","v":0},null,null,null,null,null,null,null,null,null,null,null,null,null,null,null,null,null,1207,"IE"]
["Legal Services",null,{"$f":"SUMIFS(Sheet1!S71_PPPYearAmount,Sheet1!S71_A2SubCode,$AC:$AC,Sheet1!S71_ItemType,$AD:$AD)","v":0},{"$f":"SUMIFS(Sheet1!S71_PPYearAmount,Sheet1!S71_A2SubCode,$AC:$AC,Sheet1!S71_ItemType,$AD:$AD)","v":0},{"$f":"SUMIFS(Sheet1!S71_PYearAmount,Sheet1!S71_A2SubCode,$AC:$AC,Sheet1!S71_ItemType,$AD:$AD)","v":0},{"$f":"SUMIFS(Sheet1!S71_OriginalBudAmnt,Sheet1!S71_A2SubCode,$AC:$AC,Sheet1!S71_ItemType,$AD:$AD)","v":0},{"$f":"SUMIFS(Sheet1!S71_AdjustmentBudAmnt,Sheet1!S71_A2SubCode,$AC:$AC,Sheet1!S71_ItemType,$AD:$AD)","v":0},{"$f":"SUMIFS(Sheet1!S71_AdjustmentBudAmnt,Sheet1!S71_A2SubCode,$AC:$AC,Sheet1!S71_ItemType,$AD:$AD)","v":0},{"$f":"SUMIFS(Sheet1!S71_ASBudgetAmount,Sheet1!S71_A2SubCode,$AC:$AC,Sheet1!S71_ItemType,$AD:$AD)","v":0},{"$f":"SUMIFS(Sheet1!S71_OY1BudgetAmount,Sheet1!S71_A2SubCode,$AC:$AC,Sheet1!S71_ItemType,$AD:$AD)","v":0},{"$f":"SUMIFS(Sheet1!S71_OY2BudgetAmount,Sheet1!S71_A2SubCode,$AC:$AC,Sheet1!S71_ItemType,$AD:$AD)","v":0},null,null,null,null,null,null,null,null,null,null,null,null,null,null,null,null,null,1208,"IE"]
["Marketing, Customer Relations, Publicity and Media Co-ordination",null,{"$f":"SUMIFS(Sheet1!S71_PPPYearAmount,Sheet1!S71_A2SubCode,$AC:$AC,Sheet1!S71_ItemType,$AD:$AD)","v":0},{"$f":"SUMIFS(Sheet1!S71_PPYearAmount,Sheet1!S71_A2SubCode,$AC:$AC,Sheet1!S71_ItemType,$AD:$AD)","v":0},{"$f":"SUMIFS(Sheet1!S71_PYearAmount,Sheet1!S71_A2SubCode,$AC:$AC,Sheet1!S71_ItemType,$AD:$AD)","v":0},{"$f":"SUMIFS(Sheet1!S71_OriginalBudAmnt,Sheet1!S71_A2SubCode,$AC:$AC,Sheet1!S71_ItemType,$AD:$AD)","v":0},{"$f":"SUMIFS(Sheet1!S71_AdjustmentBudAmnt,Sheet1!S71_A2SubCode,$AC:$AC,Sheet1!S71_ItemType,$AD:$AD)","v":0},{"$f":"SUMIFS(Sheet1!S71_AdjustmentBudAmnt,Sheet1!S71_A2SubCode,$AC:$AC,Sheet1!S71_ItemType,$AD:$AD)","v":0},{"$f":"SUMIFS(Sheet1!S71_ASBudgetAmount,Sheet1!S71_A2SubCode,$AC:$AC,Sheet1!S71_ItemType,$AD:$AD)","v":0},{"$f":"SUMIFS(Sheet1!S71_OY1BudgetAmount,Sheet1!S71_A2SubCode,$AC:$AC,Sheet1!S71_ItemType,$AD:$AD)","v":0},{"$f":"SUMIFS(Sheet1!S71_OY2BudgetAmount,Sheet1!S71_A2SubCode,$AC:$AC,Sheet1!S71_ItemType,$AD:$AD)","v":0},null,null,null,null,null,null,null,null,null,null,null,null,null,null,null,null,null,1209,"IE"]
["Property Services",null,{"$f":"SUMIFS(Sheet1!S71_PPPYearAmount,Sheet1!S71_A2SubCode,$AC:$AC,Sheet1!S71_ItemType,$AD:$AD)","v":0},{"$f":"SUMIFS(Sheet1!S71_PPYearAmount,Sheet1!S71_A2SubCode,$AC:$AC,Sheet1!S71_ItemType,$AD:$AD)","v":0},{"$f":"SUMIFS(Sheet1!S71_PYearAmount,Sheet1!S71_A2SubCode,$AC:$AC,Sheet1!S71_ItemType,$AD:$AD)","v":0},{"$f":"SUMIFS(Sheet1!S71_OriginalBudAmnt,Sheet1!S71_A2SubCode,$AC:$AC,Sheet1!S71_ItemType,$AD:$AD)","v":0},{"$f":"SUMIFS(Sheet1!S71_AdjustmentBudAmnt,Sheet1!S71_A2SubCode,$AC:$AC,Sheet1!S71_ItemType,$AD:$AD)","v":0},{"$f":"SUMIFS(Sheet1!S71_AdjustmentBudAmnt,Sheet1!S71_A2SubCode,$AC:$AC,Sheet1!S71_ItemType,$AD:$AD)","v":0},{"$f":"SUMIFS(Sheet1!S71_ASBudgetAmount,Sheet1!S71_A2SubCode,$AC:$AC,Sheet1!S71_ItemType,$AD:$AD)","v":0},{"$f":"SUMIFS(Sheet1!S71_OY1BudgetAmount,Sheet1!S71_A2SubCode,$AC:$AC,Sheet1!S71_ItemType,$AD:$AD)","v":0},{"$f":"SUMIFS(Sheet1!S71_OY2BudgetAmount,Sheet1!S71_A2SubCode,$AC:$AC,Sheet1!S71_ItemType,$AD:$AD)","v":0},null,null,null,null,null,null,null,null,null,null,null,null,null,null,null,null,null,1210,"IE"]
["Risk Management",null,{"$f":"SUMIFS(Sheet1!S71_PPPYearAmount,Sheet1!S71_A2SubCode,$AC:$AC,Sheet1!S71_ItemType,$AD:$AD)","v":0},{"$f":"SUMIFS(Sheet1!S71_PPYearAmount,Sheet1!S71_A2SubCode,$AC:$AC,Sheet1!S71_ItemType,$AD:$AD)","v":0},{"$f":"SUMIFS(Sheet1!S71_PYearAmount,Sheet1!S71_A2SubCode,$AC:$AC,Sheet1!S71_ItemType,$AD:$AD)","v":0},{"$f":"SUMIFS(Sheet1!S71_OriginalBudAmnt,Sheet1!S71_A2SubCode,$AC:$AC,Sheet1!S71_ItemType,$AD:$AD)","v":0},{"$f":"SUMIFS(Sheet1!S71_AdjustmentBudAmnt,Sheet1!S71_A2SubCode,$AC:$AC,Sheet1!S71_ItemType,$AD:$AD)","v":0},{"$f":"SUMIFS(Sheet1!S71_AdjustmentBudAmnt,Sheet1!S71_A2SubCode,$AC:$AC,Sheet1!S71_ItemType,$AD:$AD)","v":0},{"$f":"SUMIFS(Sheet1!S71_ASBudgetAmount,Sheet1!S71_A2SubCode,$AC:$AC,Sheet1!S71_ItemType,$AD:$AD)","v":0},{"$f":"SUMIFS(Sheet1!S71_OY1BudgetAmount,Sheet1!S71_A2SubCode,$AC:$AC,Sheet1!S71_ItemType,$AD:$AD)","v":0},{"$f":"SUMIFS(Sheet1!S71_OY2BudgetAmount,Sheet1!S71_A2SubCode,$AC:$AC,Sheet1!S71_ItemType,$AD:$AD)","v":0},null,null,null,null,null,null,null,null,null,null,null,null,null,null,null,null,null,1211,"IE"]
["Security Services",null,{"$f":"SUMIFS(Sheet1!S71_PPPYearAmount,Sheet1!S71_A2SubCode,$AC:$AC,Sheet1!S71_ItemType,$AD:$AD)","v":0},{"$f":"SUMIFS(Sheet1!S71_PPYearAmount,Sheet1!S71_A2SubCode,$AC:$AC,Sheet1!S71_ItemType,$AD:$AD)","v":0},{"$f":"SUMIFS(Sheet1!S71_PYearAmount,Sheet1!S71_A2SubCode,$AC:$AC,Sheet1!S71_ItemType,$AD:$AD)","v":0},{"$f":"SUMIFS(Sheet1!S71_OriginalBudAmnt,Sheet1!S71_A2SubCode,$AC:$AC,Sheet1!S71_ItemType,$AD:$AD)","v":0},{"$f":"SUMIFS(Sheet1!S71_AdjustmentBudAmnt,Sheet1!S71_A2SubCode,$AC:$AC,Sheet1!S71_ItemType,$AD:$AD)","v":0},{"$f":"SUMIFS(Sheet1!S71_AdjustmentBudAmnt,Sheet1!S71_A2SubCode,$AC:$AC,Sheet1!S71_ItemType,$AD:$AD)","v":0},{"$f":"SUMIFS(Sheet1!S71_ASBudgetAmount,Sheet1!S71_A2SubCode,$AC:$AC,Sheet1!S71_ItemType,$AD:$AD)","v":0},{"$f":"SUMIFS(Sheet1!S71_OY1BudgetAmount,Sheet1!S71_A2SubCode,$AC:$AC,Sheet1!S71_ItemType,$AD:$AD)","v":0},{"$f":"SUMIFS(Sheet1!S71_OY2BudgetAmount,Sheet1!S71_A2SubCode,$AC:$AC,Sheet1!S71_ItemType,$AD:$AD)","v":0},null,null,null,null,null,null,null,null,null,null,null,null,null,null,null,null,null,1212,"IE"]
["Supply Chain Management ",null,{"$f":"SUMIFS(Sheet1!S71_PPPYearAmount,Sheet1!S71_A2SubCode,$AC:$AC,Sheet1!S71_ItemType,$AD:$AD)","v":0},{"$f":"SUMIFS(Sheet1!S71_PPYearAmount,Sheet1!S71_A2SubCode,$AC:$AC,Sheet1!S71_ItemType,$AD:$AD)","v":0},{"$f":"SUMIFS(Sheet1!S71_PYearAmount,Sheet1!S71_A2SubCode,$AC:$AC,Sheet1!S71_ItemType,$AD:$AD)","v":0},{"$f":"SUMIFS(Sheet1!S71_OriginalBudAmnt,Sheet1!S71_A2SubCode,$AC:$AC,Sheet1!S71_ItemType,$AD:$AD)","v":0},{"$f":"SUMIFS(Sheet1!S71_AdjustmentBudAmnt,Sheet1!S71_A2SubCode,$AC:$AC,Sheet1!S71_ItemType,$AD:$AD)","v":0},{"$f":"SUMIFS(Sheet1!S71_AdjustmentBudAmnt,Sheet1!S71_A2SubCode,$AC:$AC,Sheet1!S71_ItemType,$AD:$AD)","v":0},{"$f":"SUMIFS(Sheet1!S71_ASBudgetAmount,Sheet1!S71_A2SubCode,$AC:$AC,Sheet1!S71_ItemType,$AD:$AD)","v":0},{"$f":"SUMIFS(Sheet1!S71_OY1BudgetAmount,Sheet1!S71_A2SubCode,$AC:$AC,Sheet1!S71_ItemType,$AD:$AD)","v":0},{"$f":"SUMIFS(Sheet1!S71_OY2BudgetAmount,Sheet1!S71_A2SubCode,$AC:$AC,Sheet1!S71_ItemType,$AD:$AD)","v":0},null,null,null,null,null,null,null,null,null,null,null,null,null,null,null,null,null,1213,"IE"]
["Valuation Service",null,{"$f":"SUMIFS(Sheet1!S71_PPPYearAmount,Sheet1!S71_A2SubCode,$AC:$AC,Sheet1!S71_ItemType,$AD:$AD)","v":0},{"$f":"SUMIFS(Sheet1!S71_PPYearAmount,Sheet1!S71_A2SubCode,$AC:$AC,Sheet1!S71_ItemType,$AD:$AD)","v":0},{"$f":"SUMIFS(Sheet1!S71_PYearAmount,Sheet1!S71_A2SubCode,$AC:$AC,Sheet1!S71_ItemType,$AD:$AD)","v":0},{"$f":"SUMIFS(Sheet1!S71_OriginalBudAmnt,Sheet1!S71_A2SubCode,$AC:$AC,Sheet1!S71_ItemType,$AD:$AD)","v":0},{"$f":"SUMIFS(Sheet1!S71_AdjustmentBudAmnt,Sheet1!S71_A2SubCode,$AC:$AC,Sheet1!S71_ItemType,$AD:$AD)","v":0},{"$f":"SUMIFS(Sheet1!S71_AdjustmentBudAmnt,Sheet1!S71_A2SubCode,$AC:$AC,Sheet1!S71_ItemType,$AD:$AD)","v":0},{"$f":"SUMIFS(Sheet1!S71_ASBudgetAmount,Sheet1!S71_A2SubCode,$AC:$AC,Sheet1!S71_ItemType,$AD:$AD)","v":0},{"$f":"SUMIFS(Sheet1!S71_OY1BudgetAmount,Sheet1!S71_A2SubCode,$AC:$AC,Sheet1!S71_ItemType,$AD:$AD)","v":0},{"$f":"SUMIFS(Sheet1!S71_OY2BudgetAmount,Sheet1!S71_A2SubCode,$AC:$AC,Sheet1!S71_ItemType,$AD:$AD)","v":0},null,null,null,null,null,null,null,null,null,null,null,null,null,null,null,null,null,1214,"IE"]
["Internal audit",null,{"$f":"SUM(C147:C147)","v":0},0,0,0,0,0,0,0,0,null,null,null,null,null,null,null,null,null,null,null,null,null,null,null,null,null,null,""]
["Governance Function",null,{"$f":"SUMIFS(Sheet1!S71_PPPYearAmount,Sheet1!S71_A2SubCode,$AC:$AC,Sheet1!S71_ItemType,$AD:$AD)","v":0},{"$f":"SUMIFS(Sheet1!S71_PPYearAmount,Sheet1!S71_A2SubCode,$AC:$AC,Sheet1!S71_ItemType,$AD:$AD)","v":0},{"$f":"SUMIFS(Sheet1!S71_PYearAmount,Sheet1!S71_A2SubCode,$AC:$AC,Sheet1!S71_ItemType,$AD:$AD)","v":0},{"$f":"SUMIFS(Sheet1!S71_OriginalBudAmnt,Sheet1!S71_A2SubCode,$AC:$AC,Sheet1!S71_ItemType,$AD:$AD)","v":0},{"$f":"SUMIFS(Sheet1!S71_AdjustmentBudAmnt,Sheet1!S71_A2SubCode,$AC:$AC,Sheet1!S71_ItemType,$AD:$AD)","v":0},{"$f":"SUMIFS(Sheet1!S71_AdjustmentBudAmnt,Sheet1!S71_A2SubCode,$AC:$AC,Sheet1!S71_ItemType,$AD:$AD)","v":0},{"$f":"SUMIFS(Sheet1!S71_ASBudgetAmount,Sheet1!S71_A2SubCode,$AC:$AC,Sheet1!S71_ItemType,$AD:$AD)","v":0},{"$f":"SUMIFS(Sheet1!S71_OY1BudgetAmount,Sheet1!S71_A2SubCode,$AC:$AC,Sheet1!S71_ItemType,$AD:$AD)","v":0},{"$f":"SUMIFS(Sheet1!S71_OY2BudgetAmount,Sheet1!S71_A2SubCode,$AC:$AC,Sheet1!S71_ItemType,$AD:$AD)","v":0},null,null,null,null,null,null,null,null,null,null,null,null,null,null,null,null,null,1301,"IE"]
["Community and public safety",null,{"$f":"C149+C171+C177+C186+C189","v":0},12196,670,500000,750000,750000,150000,300000,300000,null,null,null,null,null,null,null,null,null,null,null,null,null,null,null,null,null,null,""]
["Community and social services",null,{"$f":"SUM(C150:C170)","v":0},{"$f":"SUM(D150:D170)","v":12196},670,500000,750000,750000,150000,300000,300000,null,null,null,null,null,null,null,null,null,null,null,null,null,null,null,null,null,null,""]
["Aged Care",null,{"$f":"SUMIFS(Sheet1!S71_PPPYearAmount,Sheet1!S71_A2SubCode,$AC:$AC,Sheet1!S71_ItemType,$AD:$AD)","v":0},{"$f":"SUMIFS(Sheet1!S71_PPYearAmount,Sheet1!S71_A2SubCode,$AC:$AC,Sheet1!S71_ItemType,$AD:$AD)","v":0},{"$f":"SUMIFS(Sheet1!S71_PYearAmount,Sheet1!S71_A2SubCode,$AC:$AC,Sheet1!S71_ItemType,$AD:$AD)","v":0},{"$f":"SUMIFS(Sheet1!S71_OriginalBudAmnt,Sheet1!S71_A2SubCode,$AC:$AC,Sheet1!S71_ItemType,$AD:$AD)","v":0},{"$f":"SUMIFS(Sheet1!S71_AdjustmentBudAmnt,Sheet1!S71_A2SubCode,$AC:$AC,Sheet1!S71_ItemType,$AD:$AD)","v":0},{"$f":"SUMIFS(Sheet1!S71_AdjustmentBudAmnt,Sheet1!S71_A2SubCode,$AC:$AC,Sheet1!S71_ItemType,$AD:$AD)","v":0},{"$f":"SUMIFS(Sheet1!S71_ASBudgetAmount,Sheet1!S71_A2SubCode,$AC:$AC,Sheet1!S71_ItemType,$AD:$AD)","v":0},{"$f":"SUMIFS(Sheet1!S71_OY1BudgetAmount,Sheet1!S71_A2SubCode,$AC:$AC,Sheet1!S71_ItemType,$AD:$AD)","v":0},{"$f":"SUMIFS(Sheet1!S71_OY2BudgetAmount,Sheet1!S71_A2SubCode,$AC:$AC,Sheet1!S71_ItemType,$AD:$AD)","v":0},null,null,null,null,null,null,null,null,null,null,null,null,null,null,null,null,null,2101,"IE"]
["Agricultural",null,{"$f":"SUMIFS(Sheet1!S71_PPPYearAmount,Sheet1!S71_A2SubCode,$AC:$AC,Sheet1!S71_ItemType,$AD:$AD)","v":0},{"$f":"SUMIFS(Sheet1!S71_PPYearAmount,Sheet1!S71_A2SubCode,$AC:$AC,Sheet1!S71_ItemType,$AD:$AD)","v":0},{"$f":"SUMIFS(Sheet1!S71_PYearAmount,Sheet1!S71_A2SubCode,$AC:$AC,Sheet1!S71_ItemType,$AD:$AD)","v":0},{"$f":"SUMIFS(Sheet1!S71_OriginalBudAmnt,Sheet1!S71_A2SubCode,$AC:$AC,Sheet1!S71_ItemType,$AD:$AD)","v":0},{"$f":"SUMIFS(Sheet1!S71_AdjustmentBudAmnt,Sheet1!S71_A2SubCode,$AC:$AC,Sheet1!S71_ItemType,$AD:$AD)","v":0},{"$f":"SUMIFS(Sheet1!S71_AdjustmentBudAmnt,Sheet1!S71_A2SubCode,$AC:$AC,Sheet1!S71_ItemType,$AD:$AD)","v":0},{"$f":"SUMIFS(Sheet1!S71_ASBudgetAmount,Sheet1!S71_A2SubCode,$AC:$AC,Sheet1!S71_ItemType,$AD:$AD)","v":0},{"$f":"SUMIFS(Sheet1!S71_OY1BudgetAmount,Sheet1!S71_A2SubCode,$AC:$AC,Sheet1!S71_ItemType,$AD:$AD)","v":0},{"$f":"SUMIFS(Sheet1!S71_OY2BudgetAmount,Sheet1!S71_A2SubCode,$AC:$AC,Sheet1!S71_ItemType,$AD:$AD)","v":0},null,null,null,null,null,null,null,null,null,null,null,null,null,null,null,null,null,2102,"IE"]
["Animal Care and Diseases",null,{"$f":"SUMIFS(Sheet1!S71_PPPYearAmount,Sheet1!S71_A2SubCode,$AC:$AC,Sheet1!S71_ItemType,$AD:$AD)","v":0},{"$f":"SUMIFS(Sheet1!S71_PPYearAmount,Sheet1!S71_A2SubCode,$AC:$AC,Sheet1!S71_ItemType,$AD:$AD)","v":0},{"$f":"SUMIFS(Sheet1!S71_PYearAmount,Sheet1!S71_A2SubCode,$AC:$AC,Sheet1!S71_ItemType,$AD:$AD)","v":0},{"$f":"SUMIFS(Sheet1!S71_OriginalBudAmnt,Sheet1!S71_A2SubCode,$AC:$AC,Sheet1!S71_ItemType,$AD:$AD)","v":0},{"$f":"SUMIFS(Sheet1!S71_AdjustmentBudAmnt,Sheet1!S71_A2SubCode,$AC:$AC,Sheet1!S71_ItemType,$AD:$AD)","v":0},{"$f":"SUMIFS(Sheet1!S71_AdjustmentBudAmnt,Sheet1!S71_A2SubCode,$AC:$AC,Sheet1!S71_ItemType,$AD:$AD)","v":0},{"$f":"SUMIFS(Sheet1!S71_ASBudgetAmount,Sheet1!S71_A2SubCode,$AC:$AC,Sheet1!S71_ItemType,$AD:$AD)","v":0},{"$f":"SUMIFS(Sheet1!S71_OY1BudgetAmount,Sheet1!S71_A2SubCode,$AC:$AC,Sheet1!S71_ItemType,$AD:$AD)","v":0},{"$f":"SUMIFS(Sheet1!S71_OY2BudgetAmount,Sheet1!S71_A2SubCode,$AC:$AC,Sheet1!S71_ItemType,$AD:$AD)","v":0},null,null,null,null,null,null,null,null,null,null,null,null,null,null,null,null,null,2103,"IE"]
["Cemeteries, Funeral Parlours and Crematoriums",null,{"$f":"SUMIFS(Sheet1!S71_PPPYearAmount,Sheet1!S71_A2SubCode,$AC:$AC,Sheet1!S71_ItemType,$AD:$AD)","v":0},{"$f":"SUMIFS(Sheet1!S71_PPYearAmount,Sheet1!S71_A2SubCode,$AC:$AC,Sheet1!S71_ItemType,$AD:$AD)","v":0},{"$f":"SUMIFS(Sheet1!S71_PYearAmount,Sheet1!S71_A2SubCode,$AC:$AC,Sheet1!S71_ItemType,$AD:$AD)","v":0},{"$f":"SUMIFS(Sheet1!S71_OriginalBudAmnt,Sheet1!S71_A2SubCode,$AC:$AC,Sheet1!S71_ItemType,$AD:$AD)","v":0},{"$f":"SUMIFS(Sheet1!S71_AdjustmentBudAmnt,Sheet1!S71_A2SubCode,$AC:$AC,Sheet1!S71_ItemType,$AD:$AD)","v":0},{"$f":"SUMIFS(Sheet1!S71_AdjustmentBudAmnt,Sheet1!S71_A2SubCode,$AC:$AC,Sheet1!S71_ItemType,$AD:$AD)","v":0},{"$f":"SUMIFS(Sheet1!S71_ASBudgetAmount,Sheet1!S71_A2SubCode,$AC:$AC,Sheet1!S71_ItemType,$AD:$AD)","v":0},{"$f":"SUMIFS(Sheet1!S71_OY1BudgetAmount,Sheet1!S71_A2SubCode,$AC:$AC,Sheet1!S71_ItemType,$AD:$AD)","v":0},{"$f":"SUMIFS(Sheet1!S71_OY2BudgetAmount,Sheet1!S71_A2SubCode,$AC:$AC,Sheet1!S71_ItemType,$AD:$AD)","v":0},null,null,null,null,null,null,null,null,null,null,null,null,null,null,null,null,null,2104,"IE"]
["Child Care Facilities",null,{"$f":"SUMIFS(Sheet1!S71_PPPYearAmount,Sheet1!S71_A2SubCode,$AC:$AC,Sheet1!S71_ItemType,$AD:$AD)","v":0},{"$f":"SUMIFS(Sheet1!S71_PPYearAmount,Sheet1!S71_A2SubCode,$AC:$AC,Sheet1!S71_ItemType,$AD:$AD)","v":0},{"$f":"SUMIFS(Sheet1!S71_PYearAmount,Sheet1!S71_A2SubCode,$AC:$AC,Sheet1!S71_ItemType,$AD:$AD)","v":0},{"$f":"SUMIFS(Sheet1!S71_OriginalBudAmnt,Sheet1!S71_A2SubCode,$AC:$AC,Sheet1!S71_ItemType,$AD:$AD)","v":0},{"$f":"SUMIFS(Sheet1!S71_AdjustmentBudAmnt,Sheet1!S71_A2SubCode,$AC:$AC,Sheet1!S71_ItemType,$AD:$AD)","v":0},{"$f":"SUMIFS(Sheet1!S71_AdjustmentBudAmnt,Sheet1!S71_A2SubCode,$AC:$AC,Sheet1!S71_ItemType,$AD:$AD)","v":0},{"$f":"SUMIFS(Sheet1!S71_ASBudgetAmount,Sheet1!S71_A2SubCode,$AC:$AC,Sheet1!S71_ItemType,$AD:$AD)","v":0},{"$f":"SUMIFS(Sheet1!S71_OY1BudgetAmount,Sheet1!S71_A2SubCode,$AC:$AC,Sheet1!S71_ItemType,$AD:$AD)","v":0},{"$f":"SUMIFS(Sheet1!S71_OY2BudgetAmount,Sheet1!S71_A2SubCode,$AC:$AC,Sheet1!S71_ItemType,$AD:$AD)","v":0},null,null,null,null,null,null,null,null,null,null,null,null,null,null,null,null,null,2105,"IE"]
["Community Halls and Facilities",null,{"$f":"SUMIFS(Sheet1!S71_PPPYearAmount,Sheet1!S71_A2SubCode,$AC:$AC,Sheet1!S71_ItemType,$AD:$AD)","v":0},{"$f":"SUMIFS(Sheet1!S71_PPYearAmount,Sheet1!S71_A2SubCode,$AC:$AC,Sheet1!S71_ItemType,$AD:$AD)","v":0},{"$f":"SUMIFS(Sheet1!S71_PYearAmount,Sheet1!S71_A2SubCode,$AC:$AC,Sheet1!S71_ItemType,$AD:$AD)","v":0},{"$f":"SUMIFS(Sheet1!S71_OriginalBudAmnt,Sheet1!S71_A2SubCode,$AC:$AC,Sheet1!S71_ItemType,$AD:$AD)","v":0},{"$f":"SUMIFS(Sheet1!S71_AdjustmentBudAmnt,Sheet1!S71_A2SubCode,$AC:$AC,Sheet1!S71_ItemType,$AD:$AD)","v":0},{"$f":"SUMIFS(Sheet1!S71_AdjustmentBudAmnt,Sheet1!S71_A2SubCode,$AC:$AC,Sheet1!S71_ItemType,$AD:$AD)","v":0},{"$f":"SUMIFS(Sheet1!S71_ASBudgetAmount,Sheet1!S71_A2SubCode,$AC:$AC,Sheet1!S71_ItemType,$AD:$AD)","v":0},{"$f":"SUMIFS(Sheet1!S71_OY1BudgetAmount,Sheet1!S71_A2SubCode,$AC:$AC,Sheet1!S71_ItemType,$AD:$AD)","v":0},{"$f":"SUMIFS(Sheet1!S71_OY2BudgetAmount,Sheet1!S71_A2SubCode,$AC:$AC,Sheet1!S71_ItemType,$AD:$AD)","v":0},null,null,null,null,null,null,null,null,null,null,null,null,null,null,null,null,null,2106,"IE"]
["Consumer Protection",null,{"$f":"SUMIFS(Sheet1!S71_PPPYearAmount,Sheet1!S71_A2SubCode,$AC:$AC,Sheet1!S71_ItemType,$AD:$AD)","v":0},{"$f":"SUMIFS(Sheet1!S71_PPYearAmount,Sheet1!S71_A2SubCode,$AC:$AC,Sheet1!S71_ItemType,$AD:$AD)","v":0},{"$f":"SUMIFS(Sheet1!S71_PYearAmount,Sheet1!S71_A2SubCode,$AC:$AC,Sheet1!S71_ItemType,$AD:$AD)","v":0},{"$f":"SUMIFS(Sheet1!S71_OriginalBudAmnt,Sheet1!S71_A2SubCode,$AC:$AC,Sheet1!S71_ItemType,$AD:$AD)","v":0},{"$f":"SUMIFS(Sheet1!S71_AdjustmentBudAmnt,Sheet1!S71_A2SubCode,$AC:$AC,Sheet1!S71_ItemType,$AD:$AD)","v":0},{"$f":"SUMIFS(Sheet1!S71_AdjustmentBudAmnt,Sheet1!S71_A2SubCode,$AC:$AC,Sheet1!S71_ItemType,$AD:$AD)","v":0},{"$f":"SUMIFS(Sheet1!S71_ASBudgetAmount,Sheet1!S71_A2SubCode,$AC:$AC,Sheet1!S71_ItemType,$AD:$AD)","v":0},{"$f":"SUMIFS(Sheet1!S71_OY1BudgetAmount,Sheet1!S71_A2SubCode,$AC:$AC,Sheet1!S71_ItemType,$AD:$AD)","v":0},{"$f":"SUMIFS(Sheet1!S71_OY2BudgetAmount,Sheet1!S71_A2SubCode,$AC:$AC,Sheet1!S71_ItemType,$AD:$AD)","v":0},null,null,null,null,null,null,null,null,null,null,null,null,null,null,null,null,null,2107,"IE"]
["Cultural Matters",null,{"$f":"SUMIFS(Sheet1!S71_PPPYearAmount,Sheet1!S71_A2SubCode,$AC:$AC,Sheet1!S71_ItemType,$AD:$AD)","v":0},{"$f":"SUMIFS(Sheet1!S71_PPYearAmount,Sheet1!S71_A2SubCode,$AC:$AC,Sheet1!S71_ItemType,$AD:$AD)","v":0},{"$f":"SUMIFS(Sheet1!S71_PYearAmount,Sheet1!S71_A2SubCode,$AC:$AC,Sheet1!S71_ItemType,$AD:$AD)","v":0},{"$f":"SUMIFS(Sheet1!S71_OriginalBudAmnt,Sheet1!S71_A2SubCode,$AC:$AC,Sheet1!S71_ItemType,$AD:$AD)","v":0},{"$f":"SUMIFS(Sheet1!S71_AdjustmentBudAmnt,Sheet1!S71_A2SubCode,$AC:$AC,Sheet1!S71_ItemType,$AD:$AD)","v":0},{"$f":"SUMIFS(Sheet1!S71_AdjustmentBudAmnt,Sheet1!S71_A2SubCode,$AC:$AC,Sheet1!S71_ItemType,$AD:$AD)","v":0},{"$f":"SUMIFS(Sheet1!S71_ASBudgetAmount,Sheet1!S71_A2SubCode,$AC:$AC,Sheet1!S71_ItemType,$AD:$AD)","v":0},{"$f":"SUMIFS(Sheet1!S71_OY1BudgetAmount,Sheet1!S71_A2SubCode,$AC:$AC,Sheet1!S71_ItemType,$AD:$AD)","v":0},{"$f":"SUMIFS(Sheet1!S71_OY2BudgetAmount,Sheet1!S71_A2SubCode,$AC:$AC,Sheet1!S71_ItemType,$AD:$AD)","v":0},null,null,null,null,null,null,null,null,null,null,null,null,null,null,null,null,null,2108,"IE"]
["Disaster Management",null,{"$f":"SUMIFS(Sheet1!S71_PPPYearAmount,Sheet1!S71_A2SubCode,$AC:$AC,Sheet1!S71_ItemType,$AD:$AD)","v":0},{"$f":"SUMIFS(Sheet1!S71_PPYearAmount,Sheet1!S71_A2SubCode,$AC:$AC,Sheet1!S71_ItemType,$AD:$AD)","v":12196},{"$f":"SUMIFS(Sheet1!S71_PYearAmount,Sheet1!S71_A2SubCode,$AC:$AC,Sheet1!S71_ItemType,$AD:$AD)","v":670},{"$f":"SUMIFS(Sheet1!S71_OriginalBudAmnt,Sheet1!S71_A2SubCode,$AC:$AC,Sheet1!S71_ItemType,$AD:$AD)","v":500000},{"$f":"SUMIFS(Sheet1!S71_AdjustmentBudAmnt,Sheet1!S71_A2SubCode,$AC:$AC,Sheet1!S71_ItemType,$AD:$AD)","v":750000},{"$f":"SUMIFS(Sheet1!S71_AdjustmentBudAmnt,Sheet1!S71_A2SubCode,$AC:$AC,Sheet1!S71_ItemType,$AD:$AD)","v":750000},{"$f":"SUMIFS(Sheet1!S71_ASBudgetAmount,Sheet1!S71_A2SubCode,$AC:$AC,Sheet1!S71_ItemType,$AD:$AD)","v":150000},{"$f":"SUMIFS(Sheet1!S71_OY1BudgetAmount,Sheet1!S71_A2SubCode,$AC:$AC,Sheet1!S71_ItemType,$AD:$AD)","v":300000},{"$f":"SUMIFS(Sheet1!S71_OY2BudgetAmount,Sheet1!S71_A2SubCode,$AC:$AC,Sheet1!S71_ItemType,$AD:$AD)","v":300000},null,null,null,null,null,null,null,null,null,null,null,null,null,null,null,null,null,2109,"IE"]
["Education",null,{"$f":"SUMIFS(Sheet1!S71_PPPYearAmount,Sheet1!S71_A2SubCode,$AC:$AC,Sheet1!S71_ItemType,$AD:$AD)","v":0},{"$f":"SUMIFS(Sheet1!S71_PPYearAmount,Sheet1!S71_A2SubCode,$AC:$AC,Sheet1!S71_ItemType,$AD:$AD)","v":0},{"$f":"SUMIFS(Sheet1!S71_PYearAmount,Sheet1!S71_A2SubCode,$AC:$AC,Sheet1!S71_ItemType,$AD:$AD)","v":0},{"$f":"SUMIFS(Sheet1!S71_OriginalBudAmnt,Sheet1!S71_A2SubCode,$AC:$AC,Sheet1!S71_ItemType,$AD:$AD)","v":0},{"$f":"SUMIFS(Sheet1!S71_AdjustmentBudAmnt,Sheet1!S71_A2SubCode,$AC:$AC,Sheet1!S71_ItemType,$AD:$AD)","v":0},{"$f":"SUMIFS(Sheet1!S71_AdjustmentBudAmnt,Sheet1!S71_A2SubCode,$AC:$AC,Sheet1!S71_ItemType,$AD:$AD)","v":0},{"$f":"SUMIFS(Sheet1!S71_ASBudgetAmount,Sheet1!S71_A2SubCode,$AC:$AC,Sheet1!S71_ItemType,$AD:$AD)","v":0},{"$f":"SUMIFS(Sheet1!S71_OY1BudgetAmount,Sheet1!S71_A2SubCode,$AC:$AC,Sheet1!S71_ItemType,$AD:$AD)","v":0},{"$f":"SUMIFS(Sheet1!S71_OY2BudgetAmount,Sheet1!S71_A2SubCode,$AC:$AC,Sheet1!S71_ItemType,$AD:$AD)","v":0},null,null,null,null,null,null,null,null,null,null,null,null,null,null,null,null,null,2110,"IE"]
[{"$f":"A37","v":"Indigenous and Customary Law"},null,{"$f":"SUMIFS(Sheet1!S71_PPPYearAmount,Sheet1!S71_A2SubCode,$AC:$AC,Sheet1!S71_ItemType,$AD:$AD)","v":0},{"$f":"SUMIFS(Sheet1!S71_PPYearAmount,Sheet1!S71_A2SubCode,$AC:$AC,Sheet1!S71_ItemType,$AD:$AD)","v":0},{"$f":"SUMIFS(Sheet1!S71_PYearAmount,Sheet1!S71_A2SubCode,$AC:$AC,Sheet1!S71_ItemType,$AD:$AD)","v":0},{"$f":"SUMIFS(Sheet1!S71_OriginalBudAmnt,Sheet1!S71_A2SubCode,$AC:$AC,Sheet1!S71_ItemType,$AD:$AD)","v":0},{"$f":"SUMIFS(Sheet1!S71_AdjustmentBudAmnt,Sheet1!S71_A2SubCode,$AC:$AC,Sheet1!S71_ItemType,$AD:$AD)","v":0},{"$f":"SUMIFS(Sheet1!S71_AdjustmentBudAmnt,Sheet1!S71_A2SubCode,$AC:$AC,Sheet1!S71_ItemType,$AD:$AD)","v":0},{"$f":"SUMIFS(Sheet1!S71_ASBudgetAmount,Sheet1!S71_A2SubCode,$AC:$AC,Sheet1!S71_ItemType,$AD:$AD)","v":0},{"$f":"SUMIFS(Sheet1!S71_OY1BudgetAmount,Sheet1!S71_A2SubCode,$AC:$AC,Sheet1!S71_ItemType,$AD:$AD)","v":0},{"$f":"SUMIFS(Sheet1!S71_OY2BudgetAmount,Sheet1!S71_A2SubCode,$AC:$AC,Sheet1!S71_ItemType,$AD:$AD)","v":0},null,null,null,null,null,null,null,null,null,null,null,null,null,null,null,null,null,2111,"IE"]
["Industrial Promotion",null,{"$f":"SUMIFS(Sheet1!S71_PPPYearAmount,Sheet1!S71_A2SubCode,$AC:$AC,Sheet1!S71_ItemType,$AD:$AD)","v":0},{"$f":"SUMIFS(Sheet1!S71_PPYearAmount,Sheet1!S71_A2SubCode,$AC:$AC,Sheet1!S71_ItemType,$AD:$AD)","v":0},{"$f":"SUMIFS(Sheet1!S71_PYearAmount,Sheet1!S71_A2SubCode,$AC:$AC,Sheet1!S71_ItemType,$AD:$AD)","v":0},{"$f":"SUMIFS(Sheet1!S71_OriginalBudAmnt,Sheet1!S71_A2SubCode,$AC:$AC,Sheet1!S71_ItemType,$AD:$AD)","v":0},{"$f":"SUMIFS(Sheet1!S71_AdjustmentBudAmnt,Sheet1!S71_A2SubCode,$AC:$AC,Sheet1!S71_ItemType,$AD:$AD)","v":0},{"$f":"SUMIFS(Sheet1!S71_AdjustmentBudAmnt,Sheet1!S71_A2SubCode,$AC:$AC,Sheet1!S71_ItemType,$AD:$AD)","v":0},{"$f":"SUMIFS(Sheet1!S71_ASBudgetAmount,Sheet1!S71_A2SubCode,$AC:$AC,Sheet1!S71_ItemType,$AD:$AD)","v":0},{"$f":"SUMIFS(Sheet1!S71_OY1BudgetAmount,Sheet1!S71_A2SubCode,$AC:$AC,Sheet1!S71_ItemType,$AD:$AD)","v":0},{"$f":"SUMIFS(Sheet1!S71_OY2BudgetAmount,Sheet1!S71_A2SubCode,$AC:$AC,Sheet1!S71_ItemType,$AD:$AD)","v":0},null,null,null,null,null,null,null,null,null,null,null,null,null,null,null,null,null,2112,"IE"]
["Language Policy",null,{"$f":"SUMIFS(Sheet1!S71_PPPYearAmount,Sheet1!S71_A2SubCode,$AC:$AC,Sheet1!S71_ItemType,$AD:$AD)","v":0},{"$f":"SUMIFS(Sheet1!S71_PPYearAmount,Sheet1!S71_A2SubCode,$AC:$AC,Sheet1!S71_ItemType,$AD:$AD)","v":0},{"$f":"SUMIFS(Sheet1!S71_PYearAmount,Sheet1!S71_A2SubCode,$AC:$AC,Sheet1!S71_ItemType,$AD:$AD)","v":0},{"$f":"SUMIFS(Sheet1!S71_OriginalBudAmnt,Sheet1!S71_A2SubCode,$AC:$AC,Sheet1!S71_ItemType,$AD:$AD)","v":0},{"$f":"SUMIFS(Sheet1!S71_AdjustmentBudAmnt,Sheet1!S71_A2SubCode,$AC:$AC,Sheet1!S71_ItemType,$AD:$AD)","v":0},{"$f":"SUMIFS(Sheet1!S71_AdjustmentBudAmnt,Sheet1!S71_A2SubCode,$AC:$AC,Sheet1!S71_ItemType,$AD:$AD)","v":0},{"$f":"SUMIFS(Sheet1!S71_ASBudgetAmount,Sheet1!S71_A2SubCode,$AC:$AC,Sheet1!S71_ItemType,$AD:$AD)","v":0},{"$f":"SUMIFS(Sheet1!S71_OY1BudgetAmount,Sheet1!S71_A2SubCode,$AC:$AC,Sheet1!S71_ItemType,$AD:$AD)","v":0},{"$f":"SUMIFS(Sheet1!S71_OY2BudgetAmount,Sheet1!S71_A2SubCode,$AC:$AC,Sheet1!S71_ItemType,$AD:$AD)","v":0},null,null,null,null,null,null,null,null,null,null,null,null,null,null,null,null,null,2113,"IE"]
["Libraries and Archives",null,{"$f":"SUMIFS(Sheet1!S71_PPPYearAmount,Sheet1!S71_A2SubCode,$AC:$AC,Sheet1!S71_ItemType,$AD:$AD)","v":0},{"$f":"SUMIFS(Sheet1!S71_PPYearAmount,Sheet1!S71_A2SubCode,$AC:$AC,Sheet1!S71_ItemType,$AD:$AD)","v":0},{"$f":"SUMIFS(Sheet1!S71_PYearAmount,Sheet1!S71_A2SubCode,$AC:$AC,Sheet1!S71_ItemType,$AD:$AD)","v":0},{"$f":"SUMIFS(Sheet1!S71_OriginalBudAmnt,Sheet1!S71_A2SubCode,$AC:$AC,Sheet1!S71_ItemType,$AD:$AD)","v":0},{"$f":"SUMIFS(Sheet1!S71_AdjustmentBudAmnt,Sheet1!S71_A2SubCode,$AC:$AC,Sheet1!S71_ItemType,$AD:$AD)","v":0},{"$f":"SUMIFS(Sheet1!S71_AdjustmentBudAmnt,Sheet1!S71_A2SubCode,$AC:$AC,Sheet1!S71_ItemType,$AD:$AD)","v":0},{"$f":"SUMIFS(Sheet1!S71_ASBudgetAmount,Sheet1!S71_A2SubCode,$AC:$AC,Sheet1!S71_ItemType,$AD:$AD)","v":0},{"$f":"SUMIFS(Sheet1!S71_OY1BudgetAmount,Sheet1!S71_A2SubCode,$AC:$AC,Sheet1!S71_ItemType,$AD:$AD)","v":0},{"$f":"SUMIFS(Sheet1!S71_OY2BudgetAmount,Sheet1!S71_A2SubCode,$AC:$AC,Sheet1!S71_ItemType,$AD:$AD)","v":0},null,null,null,null,null,null,null,null,null,null,null,null,null,null,null,null,null,2114,"IE"]
["Literacy Programmes",null,{"$f":"SUMIFS(Sheet1!S71_PPPYearAmount,Sheet1!S71_A2SubCode,$AC:$AC,Sheet1!S71_ItemType,$AD:$AD)","v":0},{"$f":"SUMIFS(Sheet1!S71_PPYearAmount,Sheet1!S71_A2SubCode,$AC:$AC,Sheet1!S71_ItemType,$AD:$AD)","v":0},{"$f":"SUMIFS(Sheet1!S71_PYearAmount,Sheet1!S71_A2SubCode,$AC:$AC,Sheet1!S71_ItemType,$AD:$AD)","v":0},{"$f":"SUMIFS(Sheet1!S71_OriginalBudAmnt,Sheet1!S71_A2SubCode,$AC:$AC,Sheet1!S71_ItemType,$AD:$AD)","v":0},{"$f":"SUMIFS(Sheet1!S71_AdjustmentBudAmnt,Sheet1!S71_A2SubCode,$AC:$AC,Sheet1!S71_ItemType,$AD:$AD)","v":0},{"$f":"SUMIFS(Sheet1!S71_AdjustmentBudAmnt,Sheet1!S71_A2SubCode,$AC:$AC,Sheet1!S71_ItemType,$AD:$AD)","v":0},{"$f":"SUMIFS(Sheet1!S71_ASBudgetAmount,Sheet1!S71_A2SubCode,$AC:$AC,Sheet1!S71_ItemType,$AD:$AD)","v":0},{"$f":"SUMIFS(Sheet1!S71_OY1BudgetAmount,Sheet1!S71_A2SubCode,$AC:$AC,Sheet1!S71_ItemType,$AD:$AD)","v":0},{"$f":"SUMIFS(Sheet1!S71_OY2BudgetAmount,Sheet1!S71_A2SubCode,$AC:$AC,Sheet1!S71_ItemType,$AD:$AD)","v":0},null,null,null,null,null,null,null,null,null,null,null,null,null,null,null,null,null,2115,"IE"]
["Media Services",null,{"$f":"SUMIFS(Sheet1!S71_PPPYearAmount,Sheet1!S71_A2SubCode,$AC:$AC,Sheet1!S71_ItemType,$AD:$AD)","v":0},{"$f":"SUMIFS(Sheet1!S71_PPYearAmount,Sheet1!S71_A2SubCode,$AC:$AC,Sheet1!S71_ItemType,$AD:$AD)","v":0},{"$f":"SUMIFS(Sheet1!S71_PYearAmount,Sheet1!S71_A2SubCode,$AC:$AC,Sheet1!S71_ItemType,$AD:$AD)","v":0},{"$f":"SUMIFS(Sheet1!S71_OriginalBudAmnt,Sheet1!S71_A2SubCode,$AC:$AC,Sheet1!S71_ItemType,$AD:$AD)","v":0},{"$f":"SUMIFS(Sheet1!S71_AdjustmentBudAmnt,Sheet1!S71_A2SubCode,$AC:$AC,Sheet1!S71_ItemType,$AD:$AD)","v":0},{"$f":"SUMIFS(Sheet1!S71_AdjustmentBudAmnt,Sheet1!S71_A2SubCode,$AC:$AC,Sheet1!S71_ItemType,$AD:$AD)","v":0},{"$f":"SUMIFS(Sheet1!S71_ASBudgetAmount,Sheet1!S71_A2SubCode,$AC:$AC,Sheet1!S71_ItemType,$AD:$AD)","v":0},{"$f":"SUMIFS(Sheet1!S71_OY1BudgetAmount,Sheet1!S71_A2SubCode,$AC:$AC,Sheet1!S71_ItemType,$AD:$AD)","v":0},{"$f":"SUMIFS(Sheet1!S71_OY2BudgetAmount,Sheet1!S71_A2SubCode,$AC:$AC,Sheet1!S71_ItemType,$AD:$AD)","v":0},null,null,null,null,null,null,null,null,null,null,null,null,null,null,null,null,null,2116,"IE"]
["Museums and Art Galleries",null,{"$f":"SUMIFS(Sheet1!S71_PPPYearAmount,Sheet1!S71_A2SubCode,$AC:$AC,Sheet1!S71_ItemType,$AD:$AD)","v":0},{"$f":"SUMIFS(Sheet1!S71_PPYearAmount,Sheet1!S71_A2SubCode,$AC:$AC,Sheet1!S71_ItemType,$AD:$AD)","v":0},{"$f":"SUMIFS(Sheet1!S71_PYearAmount,Sheet1!S71_A2SubCode,$AC:$AC,Sheet1!S71_ItemType,$AD:$AD)","v":0},{"$f":"SUMIFS(Sheet1!S71_OriginalBudAmnt,Sheet1!S71_A2SubCode,$AC:$AC,Sheet1!S71_ItemType,$AD:$AD)","v":0},{"$f":"SUMIFS(Sheet1!S71_AdjustmentBudAmnt,Sheet1!S71_A2SubCode,$AC:$AC,Sheet1!S71_ItemType,$AD:$AD)","v":0},{"$f":"SUMIFS(Sheet1!S71_AdjustmentBudAmnt,Sheet1!S71_A2SubCode,$AC:$AC,Sheet1!S71_ItemType,$AD:$AD)","v":0},{"$f":"SUMIFS(Sheet1!S71_ASBudgetAmount,Sheet1!S71_A2SubCode,$AC:$AC,Sheet1!S71_ItemType,$AD:$AD)","v":0},{"$f":"SUMIFS(Sheet1!S71_OY1BudgetAmount,Sheet1!S71_A2SubCode,$AC:$AC,Sheet1!S71_ItemType,$AD:$AD)","v":0},{"$f":"SUMIFS(Sheet1!S71_OY2BudgetAmount,Sheet1!S71_A2SubCode,$AC:$AC,Sheet1!S71_ItemType,$AD:$AD)","v":0},null,null,null,null,null,null,null,null,null,null,null,null,null,null,null,null,null,2117,"IE"]
["Population Development",null,{"$f":"SUMIFS(Sheet1!S71_PPPYearAmount,Sheet1!S71_A2SubCode,$AC:$AC,Sheet1!S71_ItemType,$AD:$AD)","v":0},{"$f":"SUMIFS(Sheet1!S71_PPYearAmount,Sheet1!S71_A2SubCode,$AC:$AC,Sheet1!S71_ItemType,$AD:$AD)","v":0},{"$f":"SUMIFS(Sheet1!S71_PYearAmount,Sheet1!S71_A2SubCode,$AC:$AC,Sheet1!S71_ItemType,$AD:$AD)","v":0},{"$f":"SUMIFS(Sheet1!S71_OriginalBudAmnt,Sheet1!S71_A2SubCode,$AC:$AC,Sheet1!S71_ItemType,$AD:$AD)","v":0},{"$f":"SUMIFS(Sheet1!S71_AdjustmentBudAmnt,Sheet1!S71_A2SubCode,$AC:$AC,Sheet1!S71_ItemType,$AD:$AD)","v":0},{"$f":"SUMIFS(Sheet1!S71_AdjustmentBudAmnt,Sheet1!S71_A2SubCode,$AC:$AC,Sheet1!S71_ItemType,$AD:$AD)","v":0},{"$f":"SUMIFS(Sheet1!S71_ASBudgetAmount,Sheet1!S71_A2SubCode,$AC:$AC,Sheet1!S71_ItemType,$AD:$AD)","v":0},{"$f":"SUMIFS(Sheet1!S71_OY1BudgetAmount,Sheet1!S71_A2SubCode,$AC:$AC,Sheet1!S71_ItemType,$AD:$AD)","v":0},{"$f":"SUMIFS(Sheet1!S71_OY2BudgetAmount,Sheet1!S71_A2SubCode,$AC:$AC,Sheet1!S71_ItemType,$AD:$AD)","v":0},null,null,null,null,null,null,null,null,null,null,null,null,null,null,null,null,null,2118,"IE"]
["Provincial Cultural Matters",null,{"$f":"SUMIFS(Sheet1!S71_PPPYearAmount,Sheet1!S71_A2SubCode,$AC:$AC,Sheet1!S71_ItemType,$AD:$AD)","v":0},{"$f":"SUMIFS(Sheet1!S71_PPYearAmount,Sheet1!S71_A2SubCode,$AC:$AC,Sheet1!S71_ItemType,$AD:$AD)","v":0},{"$f":"SUMIFS(Sheet1!S71_PYearAmount,Sheet1!S71_A2SubCode,$AC:$AC,Sheet1!S71_ItemType,$AD:$AD)","v":0},{"$f":"SUMIFS(Sheet1!S71_OriginalBudAmnt,Sheet1!S71_A2SubCode,$AC:$AC,Sheet1!S71_ItemType,$AD:$AD)","v":0},{"$f":"SUMIFS(Sheet1!S71_AdjustmentBudAmnt,Sheet1!S71_A2SubCode,$AC:$AC,Sheet1!S71_ItemType,$AD:$AD)","v":0},{"$f":"SUMIFS(Sheet1!S71_AdjustmentBudAmnt,Sheet1!S71_A2SubCode,$AC:$AC,Sheet1!S71_ItemType,$AD:$AD)","v":0},{"$f":"SUMIFS(Sheet1!S71_ASBudgetAmount,Sheet1!S71_A2SubCode,$AC:$AC,Sheet1!S71_ItemType,$AD:$AD)","v":0},{"$f":"SUMIFS(Sheet1!S71_OY1BudgetAmount,Sheet1!S71_A2SubCode,$AC:$AC,Sheet1!S71_ItemType,$AD:$AD)","v":0},{"$f":"SUMIFS(Sheet1!S71_OY2BudgetAmount,Sheet1!S71_A2SubCode,$AC:$AC,Sheet1!S71_ItemType,$AD:$AD)","v":0},null,null,null,null,null,null,null,null,null,null,null,null,null,null,null,null,null,2119,"IE"]
["Theatres",null,{"$f":"SUMIFS(Sheet1!S71_PPPYearAmount,Sheet1!S71_A2SubCode,$AC:$AC,Sheet1!S71_ItemType,$AD:$AD)","v":0},{"$f":"SUMIFS(Sheet1!S71_PPYearAmount,Sheet1!S71_A2SubCode,$AC:$AC,Sheet1!S71_ItemType,$AD:$AD)","v":0},{"$f":"SUMIFS(Sheet1!S71_PYearAmount,Sheet1!S71_A2SubCode,$AC:$AC,Sheet1!S71_ItemType,$AD:$AD)","v":0},{"$f":"SUMIFS(Sheet1!S71_OriginalBudAmnt,Sheet1!S71_A2SubCode,$AC:$AC,Sheet1!S71_ItemType,$AD:$AD)","v":0},{"$f":"SUMIFS(Sheet1!S71_AdjustmentBudAmnt,Sheet1!S71_A2SubCode,$AC:$AC,Sheet1!S71_ItemType,$AD:$AD)","v":0},{"$f":"SUMIFS(Sheet1!S71_AdjustmentBudAmnt,Sheet1!S71_A2SubCode,$AC:$AC,Sheet1!S71_ItemType,$AD:$AD)","v":0},{"$f":"SUMIFS(Sheet1!S71_ASBudgetAmount,Sheet1!S71_A2SubCode,$AC:$AC,Sheet1!S71_ItemType,$AD:$AD)","v":0},{"$f":"SUMIFS(Sheet1!S71_OY1BudgetAmount,Sheet1!S71_A2SubCode,$AC:$AC,Sheet1!S71_ItemType,$AD:$AD)","v":0},{"$f":"SUMIFS(Sheet1!S71_OY2BudgetAmount,Sheet1!S71_A2SubCode,$AC:$AC,Sheet1!S71_ItemType,$AD:$AD)","v":0},null,null,null,null,null,null,null,null,null,null,null,null,null,null,null,null,null,2120,"IE"]
["Zoo's",null,{"$f":"SUMIFS(Sheet1!S71_PPPYearAmount,Sheet1!S71_A2SubCode,$AC:$AC,Sheet1!S71_ItemType,$AD:$AD)","v":0},{"$f":"SUMIFS(Sheet1!S71_PPYearAmount,Sheet1!S71_A2SubCode,$AC:$AC,Sheet1!S71_ItemType,$AD:$AD)","v":0},{"$f":"SUMIFS(Sheet1!S71_PYearAmount,Sheet1!S71_A2SubCode,$AC:$AC,Sheet1!S71_ItemType,$AD:$AD)","v":0},{"$f":"SUMIFS(Sheet1!S71_OriginalBudAmnt,Sheet1!S71_A2SubCode,$AC:$AC,Sheet1!S71_ItemType,$AD:$AD)","v":0},{"$f":"SUMIFS(Sheet1!S71_AdjustmentBudAmnt,Sheet1!S71_A2SubCode,$AC:$AC,Sheet1!S71_ItemType,$AD:$AD)","v":0},{"$f":"SUMIFS(Sheet1!S71_AdjustmentBudAmnt,Sheet1!S71_A2SubCode,$AC:$AC,Sheet1!S71_ItemType,$AD:$AD)","v":0},{"$f":"SUMIFS(Sheet1!S71_ASBudgetAmount,Sheet1!S71_A2SubCode,$AC:$AC,Sheet1!S71_ItemType,$AD:$AD)","v":0},{"$f":"SUMIFS(Sheet1!S71_OY1BudgetAmount,Sheet1!S71_A2SubCode,$AC:$AC,Sheet1!S71_ItemType,$AD:$AD)","v":0},{"$f":"SUMIFS(Sheet1!S71_OY2BudgetAmount,Sheet1!S71_A2SubCode,$AC:$AC,Sheet1!S71_ItemType,$AD:$AD)","v":0},null,null,null,null,null,null,null,null,null,null,null,null,null,null,null,null,null,2121,"IE"]
["Sport and recreation",null,{"$f":"SUM(C172:C176)","v":0},0,0,0,0,0,0,0,0,null,null,null,null,null,null,null,null,null,null,null,null,null,null,null,null,null,null,""]
["Beaches and Jetties ",null,{"$f":"SUMIFS(Sheet1!S71_PPPYearAmount,Sheet1!S71_A2SubCode,$AC:$AC,Sheet1!S71_ItemType,$AD:$AD)","v":0},{"$f":"SUMIFS(Sheet1!S71_PPYearAmount,Sheet1!S71_A2SubCode,$AC:$AC,Sheet1!S71_ItemType,$AD:$AD)","v":0},{"$f":"SUMIFS(Sheet1!S71_PYearAmount,Sheet1!S71_A2SubCode,$AC:$AC,Sheet1!S71_ItemType,$AD:$AD)","v":0},{"$f":"SUMIFS(Sheet1!S71_OriginalBudAmnt,Sheet1!S71_A2SubCode,$AC:$AC,Sheet1!S71_ItemType,$AD:$AD)","v":0},{"$f":"SUMIFS(Sheet1!S71_AdjustmentBudAmnt,Sheet1!S71_A2SubCode,$AC:$AC,Sheet1!S71_ItemType,$AD:$AD)","v":0},{"$f":"SUMIFS(Sheet1!S71_AdjustmentBudAmnt,Sheet1!S71_A2SubCode,$AC:$AC,Sheet1!S71_ItemType,$AD:$AD)","v":0},{"$f":"SUMIFS(Sheet1!S71_ASBudgetAmount,Sheet1!S71_A2SubCode,$AC:$AC,Sheet1!S71_ItemType,$AD:$AD)","v":0},{"$f":"SUMIFS(Sheet1!S71_OY1BudgetAmount,Sheet1!S71_A2SubCode,$AC:$AC,Sheet1!S71_ItemType,$AD:$AD)","v":0},{"$f":"SUMIFS(Sheet1!S71_OY2BudgetAmount,Sheet1!S71_A2SubCode,$AC:$AC,Sheet1!S71_ItemType,$AD:$AD)","v":0},null,null,null,null,null,null,null,null,null,null,null,null,null,null,null,null,null,2201,"IE"]
["Casinos, Racing, Gambling, Wagering",null,{"$f":"SUMIFS(Sheet1!S71_PPPYearAmount,Sheet1!S71_A2SubCode,$AC:$AC,Sheet1!S71_ItemType,$AD:$AD)","v":0},{"$f":"SUMIFS(Sheet1!S71_PPYearAmount,Sheet1!S71_A2SubCode,$AC:$AC,Sheet1!S71_ItemType,$AD:$AD)","v":0},{"$f":"SUMIFS(Sheet1!S71_PYearAmount,Sheet1!S71_A2SubCode,$AC:$AC,Sheet1!S71_ItemType,$AD:$AD)","v":0},{"$f":"SUMIFS(Sheet1!S71_OriginalBudAmnt,Sheet1!S71_A2SubCode,$AC:$AC,Sheet1!S71_ItemType,$AD:$AD)","v":0},{"$f":"SUMIFS(Sheet1!S71_AdjustmentBudAmnt,Sheet1!S71_A2SubCode,$AC:$AC,Sheet1!S71_ItemType,$AD:$AD)","v":0},{"$f":"SUMIFS(Sheet1!S71_AdjustmentBudAmnt,Sheet1!S71_A2SubCode,$AC:$AC,Sheet1!S71_ItemType,$AD:$AD)","v":0},{"$f":"SUMIFS(Sheet1!S71_ASBudgetAmount,Sheet1!S71_A2SubCode,$AC:$AC,Sheet1!S71_ItemType,$AD:$AD)","v":0},{"$f":"SUMIFS(Sheet1!S71_OY1BudgetAmount,Sheet1!S71_A2SubCode,$AC:$AC,Sheet1!S71_ItemType,$AD:$AD)","v":0},{"$f":"SUMIFS(Sheet1!S71_OY2BudgetAmount,Sheet1!S71_A2SubCode,$AC:$AC,Sheet1!S71_ItemType,$AD:$AD)","v":0},null,null,null,null,null,null,null,null,null,null,null,null,null,null,null,null,null,2202,"IE"]
["Community Parks (including Nurseries)",null,{"$f":"SUMIFS(Sheet1!S71_PPPYearAmount,Sheet1!S71_A2SubCode,$AC:$AC,Sheet1!S71_ItemType,$AD:$AD)","v":0},{"$f":"SUMIFS(Sheet1!S71_PPYearAmount,Sheet1!S71_A2SubCode,$AC:$AC,Sheet1!S71_ItemType,$AD:$AD)","v":0},{"$f":"SUMIFS(Sheet1!S71_PYearAmount,Sheet1!S71_A2SubCode,$AC:$AC,Sheet1!S71_ItemType,$AD:$AD)","v":0},{"$f":"SUMIFS(Sheet1!S71_OriginalBudAmnt,Sheet1!S71_A2SubCode,$AC:$AC,Sheet1!S71_ItemType,$AD:$AD)","v":0},{"$f":"SUMIFS(Sheet1!S71_AdjustmentBudAmnt,Sheet1!S71_A2SubCode,$AC:$AC,Sheet1!S71_ItemType,$AD:$AD)","v":0},{"$f":"SUMIFS(Sheet1!S71_AdjustmentBudAmnt,Sheet1!S71_A2SubCode,$AC:$AC,Sheet1!S71_ItemType,$AD:$AD)","v":0},{"$f":"SUMIFS(Sheet1!S71_ASBudgetAmount,Sheet1!S71_A2SubCode,$AC:$AC,Sheet1!S71_ItemType,$AD:$AD)","v":0},{"$f":"SUMIFS(Sheet1!S71_OY1BudgetAmount,Sheet1!S71_A2SubCode,$AC:$AC,Sheet1!S71_ItemType,$AD:$AD)","v":0},{"$f":"SUMIFS(Sheet1!S71_OY2BudgetAmount,Sheet1!S71_A2SubCode,$AC:$AC,Sheet1!S71_ItemType,$AD:$AD)","v":0},null,null,null,null,null,null,null,null,null,null,null,null,null,null,null,null,null,2203,"IE"]
["Recreational Facilities",null,{"$f":"SUMIFS(Sheet1!S71_PPPYearAmount,Sheet1!S71_A2SubCode,$AC:$AC,Sheet1!S71_ItemType,$AD:$AD)","v":0},{"$f":"SUMIFS(Sheet1!S71_PPYearAmount,Sheet1!S71_A2SubCode,$AC:$AC,Sheet1!S71_ItemType,$AD:$AD)","v":0},{"$f":"SUMIFS(Sheet1!S71_PYearAmount,Sheet1!S71_A2SubCode,$AC:$AC,Sheet1!S71_ItemType,$AD:$AD)","v":0},{"$f":"SUMIFS(Sheet1!S71_OriginalBudAmnt,Sheet1!S71_A2SubCode,$AC:$AC,Sheet1!S71_ItemType,$AD:$AD)","v":0},{"$f":"SUMIFS(Sheet1!S71_AdjustmentBudAmnt,Sheet1!S71_A2SubCode,$AC:$AC,Sheet1!S71_ItemType,$AD:$AD)","v":0},{"$f":"SUMIFS(Sheet1!S71_AdjustmentBudAmnt,Sheet1!S71_A2SubCode,$AC:$AC,Sheet1!S71_ItemType,$AD:$AD)","v":0},{"$f":"SUMIFS(Sheet1!S71_ASBudgetAmount,Sheet1!S71_A2SubCode,$AC:$AC,Sheet1!S71_ItemType,$AD:$AD)","v":0},{"$f":"SUMIFS(Sheet1!S71_OY1BudgetAmount,Sheet1!S71_A2SubCode,$AC:$AC,Sheet1!S71_ItemType,$AD:$AD)","v":0},{"$f":"SUMIFS(Sheet1!S71_OY2BudgetAmount,Sheet1!S71_A2SubCode,$AC:$AC,Sheet1!S71_ItemType,$AD:$AD)","v":0},null,null,null,null,null,null,null,null,null,null,null,null,null,null,null,null,null,2204,"IE"]
["Sports Grounds and Stadiums",null,{"$f":"SUMIFS(Sheet1!S71_PPPYearAmount,Sheet1!S71_A2SubCode,$AC:$AC,Sheet1!S71_ItemType,$AD:$AD)","v":0},{"$f":"SUMIFS(Sheet1!S71_PPYearAmount,Sheet1!S71_A2SubCode,$AC:$AC,Sheet1!S71_ItemType,$AD:$AD)","v":0},{"$f":"SUMIFS(Sheet1!S71_PYearAmount,Sheet1!S71_A2SubCode,$AC:$AC,Sheet1!S71_ItemType,$AD:$AD)","v":0},{"$f":"SUMIFS(Sheet1!S71_OriginalBudAmnt,Sheet1!S71_A2SubCode,$AC:$AC,Sheet1!S71_ItemType,$AD:$AD)","v":0},{"$f":"SUMIFS(Sheet1!S71_AdjustmentBudAmnt,Sheet1!S71_A2SubCode,$AC:$AC,Sheet1!S71_ItemType,$AD:$AD)","v":0},{"$f":"SUMIFS(Sheet1!S71_AdjustmentBudAmnt,Sheet1!S71_A2SubCode,$AC:$AC,Sheet1!S71_ItemType,$AD:$AD)","v":0},{"$f":"SUMIFS(Sheet1!S71_ASBudgetAmount,Sheet1!S71_A2SubCode,$AC:$AC,Sheet1!S71_ItemType,$AD:$AD)","v":0},{"$f":"SUMIFS(Sheet1!S71_OY1BudgetAmount,Sheet1!S71_A2SubCode,$AC:$AC,Sheet1!S71_ItemType,$AD:$AD)","v":0},{"$f":"SUMIFS(Sheet1!S71_OY2BudgetAmount,Sheet1!S71_A2SubCode,$AC:$AC,Sheet1!S71_ItemType,$AD:$AD)","v":0},null,null,null,null,null,null,null,null,null,null,null,null,null,null,null,null,null,2205,"IE"]
["Public safety",null,{"$f":"SUM(C178:C185)","v":0},0,0,0,0,0,0,0,0,null,null,null,null,null,null,null,null,null,null,null,null,null,null,null,null,null,null,""]
["Civil Defence",null,{"$f":"SUMIFS(Sheet1!S71_PPPYearAmount,Sheet1!S71_A2SubCode,$AC:$AC,Sheet1!S71_ItemType,$AD:$AD)","v":0},{"$f":"SUMIFS(Sheet1!S71_PPYearAmount,Sheet1!S71_A2SubCode,$AC:$AC,Sheet1!S71_ItemType,$AD:$AD)","v":0},{"$f":"SUMIFS(Sheet1!S71_PYearAmount,Sheet1!S71_A2SubCode,$AC:$AC,Sheet1!S71_ItemType,$AD:$AD)","v":0},{"$f":"SUMIFS(Sheet1!S71_OriginalBudAmnt,Sheet1!S71_A2SubCode,$AC:$AC,Sheet1!S71_ItemType,$AD:$AD)","v":0},{"$f":"SUMIFS(Sheet1!S71_AdjustmentBudAmnt,Sheet1!S71_A2SubCode,$AC:$AC,Sheet1!S71_ItemType,$AD:$AD)","v":0},{"$f":"SUMIFS(Sheet1!S71_AdjustmentBudAmnt,Sheet1!S71_A2SubCode,$AC:$AC,Sheet1!S71_ItemType,$AD:$AD)","v":0},{"$f":"SUMIFS(Sheet1!S71_ASBudgetAmount,Sheet1!S71_A2SubCode,$AC:$AC,Sheet1!S71_ItemType,$AD:$AD)","v":0},{"$f":"SUMIFS(Sheet1!S71_OY1BudgetAmount,Sheet1!S71_A2SubCode,$AC:$AC,Sheet1!S71_ItemType,$AD:$AD)","v":0},{"$f":"SUMIFS(Sheet1!S71_OY2BudgetAmount,Sheet1!S71_A2SubCode,$AC:$AC,Sheet1!S71_ItemType,$AD:$AD)","v":0},null,null,null,null,null,null,null,null,null,null,null,null,null,null,null,null,null,2301,"IE"]
["Cleansing",null,{"$f":"SUMIFS(Sheet1!S71_PPPYearAmount,Sheet1!S71_A2SubCode,$AC:$AC,Sheet1!S71_ItemType,$AD:$AD)","v":0},{"$f":"SUMIFS(Sheet1!S71_PPYearAmount,Sheet1!S71_A2SubCode,$AC:$AC,Sheet1!S71_ItemType,$AD:$AD)","v":0},{"$f":"SUMIFS(Sheet1!S71_PYearAmount,Sheet1!S71_A2SubCode,$AC:$AC,Sheet1!S71_ItemType,$AD:$AD)","v":0},{"$f":"SUMIFS(Sheet1!S71_OriginalBudAmnt,Sheet1!S71_A2SubCode,$AC:$AC,Sheet1!S71_ItemType,$AD:$AD)","v":0},{"$f":"SUMIFS(Sheet1!S71_AdjustmentBudAmnt,Sheet1!S71_A2SubCode,$AC:$AC,Sheet1!S71_ItemType,$AD:$AD)","v":0},{"$f":"SUMIFS(Sheet1!S71_AdjustmentBudAmnt,Sheet1!S71_A2SubCode,$AC:$AC,Sheet1!S71_ItemType,$AD:$AD)","v":0},{"$f":"SUMIFS(Sheet1!S71_ASBudgetAmount,Sheet1!S71_A2SubCode,$AC:$AC,Sheet1!S71_ItemType,$AD:$AD)","v":0},{"$f":"SUMIFS(Sheet1!S71_OY1BudgetAmount,Sheet1!S71_A2SubCode,$AC:$AC,Sheet1!S71_ItemType,$AD:$AD)","v":0},{"$f":"SUMIFS(Sheet1!S71_OY2BudgetAmount,Sheet1!S71_A2SubCode,$AC:$AC,Sheet1!S71_ItemType,$AD:$AD)","v":0},null,null,null,null,null,null,null,null,null,null,null,null,null,null,null,null,null,2302,"IE"]
["Control of Public Nuisances",null,{"$f":"SUMIFS(Sheet1!S71_PPPYearAmount,Sheet1!S71_A2SubCode,$AC:$AC,Sheet1!S71_ItemType,$AD:$AD)","v":0},{"$f":"SUMIFS(Sheet1!S71_PPYearAmount,Sheet1!S71_A2SubCode,$AC:$AC,Sheet1!S71_ItemType,$AD:$AD)","v":0},{"$f":"SUMIFS(Sheet1!S71_PYearAmount,Sheet1!S71_A2SubCode,$AC:$AC,Sheet1!S71_ItemType,$AD:$AD)","v":0},{"$f":"SUMIFS(Sheet1!S71_OriginalBudAmnt,Sheet1!S71_A2SubCode,$AC:$AC,Sheet1!S71_ItemType,$AD:$AD)","v":0},{"$f":"SUMIFS(Sheet1!S71_AdjustmentBudAmnt,Sheet1!S71_A2SubCode,$AC:$AC,Sheet1!S71_ItemType,$AD:$AD)","v":0},{"$f":"SUMIFS(Sheet1!S71_AdjustmentBudAmnt,Sheet1!S71_A2SubCode,$AC:$AC,Sheet1!S71_ItemType,$AD:$AD)","v":0},{"$f":"SUMIFS(Sheet1!S71_ASBudgetAmount,Sheet1!S71_A2SubCode,$AC:$AC,Sheet1!S71_ItemType,$AD:$AD)","v":0},{"$f":"SUMIFS(Sheet1!S71_OY1BudgetAmount,Sheet1!S71_A2SubCode,$AC:$AC,Sheet1!S71_ItemType,$AD:$AD)","v":0},{"$f":"SUMIFS(Sheet1!S71_OY2BudgetAmount,Sheet1!S71_A2SubCode,$AC:$AC,Sheet1!S71_ItemType,$AD:$AD)","v":0},null,null,null,null,null,null,null,null,null,null,null,null,null,null,null,null,null,2303,"IE"]
["Fencing and Fences ",null,{"$f":"SUMIFS(Sheet1!S71_PPPYearAmount,Sheet1!S71_A2SubCode,$AC:$AC,Sheet1!S71_ItemType,$AD:$AD)","v":0},{"$f":"SUMIFS(Sheet1!S71_PPYearAmount,Sheet1!S71_A2SubCode,$AC:$AC,Sheet1!S71_ItemType,$AD:$AD)","v":0},{"$f":"SUMIFS(Sheet1!S71_PYearAmount,Sheet1!S71_A2SubCode,$AC:$AC,Sheet1!S71_ItemType,$AD:$AD)","v":0},{"$f":"SUMIFS(Sheet1!S71_OriginalBudAmnt,Sheet1!S71_A2SubCode,$AC:$AC,Sheet1!S71_ItemType,$AD:$AD)","v":0},{"$f":"SUMIFS(Sheet1!S71_AdjustmentBudAmnt,Sheet1!S71_A2SubCode,$AC:$AC,Sheet1!S71_ItemType,$AD:$AD)","v":0},{"$f":"SUMIFS(Sheet1!S71_AdjustmentBudAmnt,Sheet1!S71_A2SubCode,$AC:$AC,Sheet1!S71_ItemType,$AD:$AD)","v":0},{"$f":"SUMIFS(Sheet1!S71_ASBudgetAmount,Sheet1!S71_A2SubCode,$AC:$AC,Sheet1!S71_ItemType,$AD:$AD)","v":0},{"$f":"SUMIFS(Sheet1!S71_OY1BudgetAmount,Sheet1!S71_A2SubCode,$AC:$AC,Sheet1!S71_ItemType,$AD:$AD)","v":0},{"$f":"SUMIFS(Sheet1!S71_OY2BudgetAmount,Sheet1!S71_A2SubCode,$AC:$AC,Sheet1!S71_ItemType,$AD:$AD)","v":0},null,null,null,null,null,null,null,null,null,null,null,null,null,null,null,null,null,2304,"IE"]
["Fire Fighting and Protection",null,{"$f":"SUMIFS(Sheet1!S71_PPPYearAmount,Sheet1!S71_A2SubCode,$AC:$AC,Sheet1!S71_ItemType,$AD:$AD)","v":0},{"$f":"SUMIFS(Sheet1!S71_PPYearAmount,Sheet1!S71_A2SubCode,$AC:$AC,Sheet1!S71_ItemType,$AD:$AD)","v":0},{"$f":"SUMIFS(Sheet1!S71_PYearAmount,Sheet1!S71_A2SubCode,$AC:$AC,Sheet1!S71_ItemType,$AD:$AD)","v":0},{"$f":"SUMIFS(Sheet1!S71_OriginalBudAmnt,Sheet1!S71_A2SubCode,$AC:$AC,Sheet1!S71_ItemType,$AD:$AD)","v":0},{"$f":"SUMIFS(Sheet1!S71_AdjustmentBudAmnt,Sheet1!S71_A2SubCode,$AC:$AC,Sheet1!S71_ItemType,$AD:$AD)","v":0},{"$f":"SUMIFS(Sheet1!S71_AdjustmentBudAmnt,Sheet1!S71_A2SubCode,$AC:$AC,Sheet1!S71_ItemType,$AD:$AD)","v":0},{"$f":"SUMIFS(Sheet1!S71_ASBudgetAmount,Sheet1!S71_A2SubCode,$AC:$AC,Sheet1!S71_ItemType,$AD:$AD)","v":0},{"$f":"SUMIFS(Sheet1!S71_OY1BudgetAmount,Sheet1!S71_A2SubCode,$AC:$AC,Sheet1!S71_ItemType,$AD:$AD)","v":0},{"$f":"SUMIFS(Sheet1!S71_OY2BudgetAmount,Sheet1!S71_A2SubCode,$AC:$AC,Sheet1!S71_ItemType,$AD:$AD)","v":0},null,null,null,null,null,null,null,null,null,null,null,null,null,null,null,null,null,2305,"IE"]
["Licensing and Control of Animals",null,{"$f":"SUMIFS(Sheet1!S71_PPPYearAmount,Sheet1!S71_A2SubCode,$AC:$AC,Sheet1!S71_ItemType,$AD:$AD)","v":0},{"$f":"SUMIFS(Sheet1!S71_PPYearAmount,Sheet1!S71_A2SubCode,$AC:$AC,Sheet1!S71_ItemType,$AD:$AD)","v":0},{"$f":"SUMIFS(Sheet1!S71_PYearAmount,Sheet1!S71_A2SubCode,$AC:$AC,Sheet1!S71_ItemType,$AD:$AD)","v":0},{"$f":"SUMIFS(Sheet1!S71_OriginalBudAmnt,Sheet1!S71_A2SubCode,$AC:$AC,Sheet1!S71_ItemType,$AD:$AD)","v":0},{"$f":"SUMIFS(Sheet1!S71_AdjustmentBudAmnt,Sheet1!S71_A2SubCode,$AC:$AC,Sheet1!S71_ItemType,$AD:$AD)","v":0},{"$f":"SUMIFS(Sheet1!S71_AdjustmentBudAmnt,Sheet1!S71_A2SubCode,$AC:$AC,Sheet1!S71_ItemType,$AD:$AD)","v":0},{"$f":"SUMIFS(Sheet1!S71_ASBudgetAmount,Sheet1!S71_A2SubCode,$AC:$AC,Sheet1!S71_ItemType,$AD:$AD)","v":0},{"$f":"SUMIFS(Sheet1!S71_OY1BudgetAmount,Sheet1!S71_A2SubCode,$AC:$AC,Sheet1!S71_ItemType,$AD:$AD)","v":0},{"$f":"SUMIFS(Sheet1!S71_OY2BudgetAmount,Sheet1!S71_A2SubCode,$AC:$AC,Sheet1!S71_ItemType,$AD:$AD)","v":0},null,null,null,null,null,null,null,null,null,null,null,null,null,null,null,null,null,2306,"IE"]
["Police Forces, Traffic and Street Parking Control",null,{"$f":"SUMIFS(Sheet1!S71_PPPYearAmount,Sheet1!S71_A2SubCode,$AC:$AC,Sheet1!S71_ItemType,$AD:$AD)","v":0},{"$f":"SUMIFS(Sheet1!S71_PPYearAmount,Sheet1!S71_A2SubCode,$AC:$AC,Sheet1!S71_ItemType,$AD:$AD)","v":0},{"$f":"SUMIFS(Sheet1!S71_PYearAmount,Sheet1!S71_A2SubCode,$AC:$AC,Sheet1!S71_ItemType,$AD:$AD)","v":0},{"$f":"SUMIFS(Sheet1!S71_OriginalBudAmnt,Sheet1!S71_A2SubCode,$AC:$AC,Sheet1!S71_ItemType,$AD:$AD)","v":0},{"$f":"SUMIFS(Sheet1!S71_AdjustmentBudAmnt,Sheet1!S71_A2SubCode,$AC:$AC,Sheet1!S71_ItemType,$AD:$AD)","v":0},{"$f":"SUMIFS(Sheet1!S71_AdjustmentBudAmnt,Sheet1!S71_A2SubCode,$AC:$AC,Sheet1!S71_ItemType,$AD:$AD)","v":0},{"$f":"SUMIFS(Sheet1!S71_ASBudgetAmount,Sheet1!S71_A2SubCode,$AC:$AC,Sheet1!S71_ItemType,$AD:$AD)","v":0},{"$f":"SUMIFS(Sheet1!S71_OY1BudgetAmount,Sheet1!S71_A2SubCode,$AC:$AC,Sheet1!S71_ItemType,$AD:$AD)","v":0},{"$f":"SUMIFS(Sheet1!S71_OY2BudgetAmount,Sheet1!S71_A2SubCode,$AC:$AC,Sheet1!S71_ItemType,$AD:$AD)","v":0},null,null,null,null,null,null,null,null,null,null,null,null,null,null,null,null,null,2307,"IE"]
["Pounds",null,{"$f":"SUMIFS(Sheet1!S71_PPPYearAmount,Sheet1!S71_A2SubCode,$AC:$AC,Sheet1!S71_ItemType,$AD:$AD)","v":0},{"$f":"SUMIFS(Sheet1!S71_PPYearAmount,Sheet1!S71_A2SubCode,$AC:$AC,Sheet1!S71_ItemType,$AD:$AD)","v":0},{"$f":"SUMIFS(Sheet1!S71_PYearAmount,Sheet1!S71_A2SubCode,$AC:$AC,Sheet1!S71_ItemType,$AD:$AD)","v":0},{"$f":"SUMIFS(Sheet1!S71_OriginalBudAmnt,Sheet1!S71_A2SubCode,$AC:$AC,Sheet1!S71_ItemType,$AD:$AD)","v":0},{"$f":"SUMIFS(Sheet1!S71_AdjustmentBudAmnt,Sheet1!S71_A2SubCode,$AC:$AC,Sheet1!S71_ItemType,$AD:$AD)","v":0},{"$f":"SUMIFS(Sheet1!S71_AdjustmentBudAmnt,Sheet1!S71_A2SubCode,$AC:$AC,Sheet1!S71_ItemType,$AD:$AD)","v":0},{"$f":"SUMIFS(Sheet1!S71_ASBudgetAmount,Sheet1!S71_A2SubCode,$AC:$AC,Sheet1!S71_ItemType,$AD:$AD)","v":0},{"$f":"SUMIFS(Sheet1!S71_OY1BudgetAmount,Sheet1!S71_A2SubCode,$AC:$AC,Sheet1!S71_ItemType,$AD:$AD)","v":0},{"$f":"SUMIFS(Sheet1!S71_OY2BudgetAmount,Sheet1!S71_A2SubCode,$AC:$AC,Sheet1!S71_ItemType,$AD:$AD)","v":0},null,null,null,null,null,null,null,null,null,null,null,null,null,null,null,null,null,2308,"IE"]
["Housing",null,{"$f":"SUM(C187:C188)","v":0},0,0,0,0,0,0,0,0,null,null,null,null,null,null,null,null,null,null,null,null,null,null,null,null,null,null,""]
["Housing",null,{"$f":"SUMIFS(Sheet1!S71_PPPYearAmount,Sheet1!S71_A2SubCode,$AC:$AC,Sheet1!S71_ItemType,$AD:$AD)","v":0},{"$f":"SUMIFS(Sheet1!S71_PPYearAmount,Sheet1!S71_A2SubCode,$AC:$AC,Sheet1!S71_ItemType,$AD:$AD)","v":0},{"$f":"SUMIFS(Sheet1!S71_PYearAmount,Sheet1!S71_A2SubCode,$AC:$AC,Sheet1!S71_ItemType,$AD:$AD)","v":0},{"$f":"SUMIFS(Sheet1!S71_OriginalBudAmnt,Sheet1!S71_A2SubCode,$AC:$AC,Sheet1!S71_ItemType,$AD:$AD)","v":0},{"$f":"SUMIFS(Sheet1!S71_AdjustmentBudAmnt,Sheet1!S71_A2SubCode,$AC:$AC,Sheet1!S71_ItemType,$AD:$AD)","v":0},{"$f":"SUMIFS(Sheet1!S71_AdjustmentBudAmnt,Sheet1!S71_A2SubCode,$AC:$AC,Sheet1!S71_ItemType,$AD:$AD)","v":0},{"$f":"SUMIFS(Sheet1!S71_ASBudgetAmount,Sheet1!S71_A2SubCode,$AC:$AC,Sheet1!S71_ItemType,$AD:$AD)","v":0},{"$f":"SUMIFS(Sheet1!S71_OY1BudgetAmount,Sheet1!S71_A2SubCode,$AC:$AC,Sheet1!S71_ItemType,$AD:$AD)","v":0},{"$f":"SUMIFS(Sheet1!S71_OY2BudgetAmount,Sheet1!S71_A2SubCode,$AC:$AC,Sheet1!S71_ItemType,$AD:$AD)","v":0},null,null,null,null,null,null,null,null,null,null,null,null,null,null,null,null,null,2401,"IE"]
["Informal Settlements",null,{"$f":"SUMIFS(Sheet1!S71_PPPYearAmount,Sheet1!S71_A2SubCode,$AC:$AC,Sheet1!S71_ItemType,$AD:$AD)","v":0},{"$f":"SUMIFS(Sheet1!S71_PPYearAmount,Sheet1!S71_A2SubCode,$AC:$AC,Sheet1!S71_ItemType,$AD:$AD)","v":0},{"$f":"SUMIFS(Sheet1!S71_PYearAmount,Sheet1!S71_A2SubCode,$AC:$AC,Sheet1!S71_ItemType,$AD:$AD)","v":0},{"$f":"SUMIFS(Sheet1!S71_OriginalBudAmnt,Sheet1!S71_A2SubCode,$AC:$AC,Sheet1!S71_ItemType,$AD:$AD)","v":0},{"$f":"SUMIFS(Sheet1!S71_AdjustmentBudAmnt,Sheet1!S71_A2SubCode,$AC:$AC,Sheet1!S71_ItemType,$AD:$AD)","v":0},{"$f":"SUMIFS(Sheet1!S71_AdjustmentBudAmnt,Sheet1!S71_A2SubCode,$AC:$AC,Sheet1!S71_ItemType,$AD:$AD)","v":0},{"$f":"SUMIFS(Sheet1!S71_ASBudgetAmount,Sheet1!S71_A2SubCode,$AC:$AC,Sheet1!S71_ItemType,$AD:$AD)","v":0},{"$f":"SUMIFS(Sheet1!S71_OY1BudgetAmount,Sheet1!S71_A2SubCode,$AC:$AC,Sheet1!S71_ItemType,$AD:$AD)","v":0},{"$f":"SUMIFS(Sheet1!S71_OY2BudgetAmount,Sheet1!S71_A2SubCode,$AC:$AC,Sheet1!S71_ItemType,$AD:$AD)","v":0},null,null,null,null,null,null,null,null,null,null,null,null,null,null,null,null,null,2402,"IE"]
["Health",null,{"$f":"SUM(C190:C196)","v":0},{"$f":"SUM(D190:D196)","v":0},0,0,0,0,0,0,0,null,null,null,null,null,null,null,null,null,null,null,null,null,null,null,null,null,null,""]
["Ambulance",null,{"$f":"SUMIFS(Sheet1!S71_PPPYearAmount,Sheet1!S71_A2SubCode,$AC:$AC,Sheet1!S71_ItemType,$AD:$AD)","v":0},{"$f":"SUMIFS(Sheet1!S71_PPYearAmount,Sheet1!S71_A2SubCode,$AC:$AC,Sheet1!S71_ItemType,$AD:$AD)","v":0},{"$f":"SUMIFS(Sheet1!S71_PYearAmount,Sheet1!S71_A2SubCode,$AC:$AC,Sheet1!S71_ItemType,$AD:$AD)","v":0},{"$f":"SUMIFS(Sheet1!S71_OriginalBudAmnt,Sheet1!S71_A2SubCode,$AC:$AC,Sheet1!S71_ItemType,$AD:$AD)","v":0},{"$f":"SUMIFS(Sheet1!S71_AdjustmentBudAmnt,Sheet1!S71_A2SubCode,$AC:$AC,Sheet1!S71_ItemType,$AD:$AD)","v":0},{"$f":"SUMIFS(Sheet1!S71_AdjustmentBudAmnt,Sheet1!S71_A2SubCode,$AC:$AC,Sheet1!S71_ItemType,$AD:$AD)","v":0},{"$f":"SUMIFS(Sheet1!S71_ASBudgetAmount,Sheet1!S71_A2SubCode,$AC:$AC,Sheet1!S71_ItemType,$AD:$AD)","v":0},{"$f":"SUMIFS(Sheet1!S71_OY1BudgetAmount,Sheet1!S71_A2SubCode,$AC:$AC,Sheet1!S71_ItemType,$AD:$AD)","v":0},{"$f":"SUMIFS(Sheet1!S71_OY2BudgetAmount,Sheet1!S71_A2SubCode,$AC:$AC,Sheet1!S71_ItemType,$AD:$AD)","v":0},null,null,null,null,null,null,null,null,null,null,null,null,null,null,null,null,null,2501,"IE"]
["Health Services",null,{"$f":"SUMIFS(Sheet1!S71_PPPYearAmount,Sheet1!S71_A2SubCode,$AC:$AC,Sheet1!S71_ItemType,$AD:$AD)","v":0},{"$f":"SUMIFS(Sheet1!S71_PPYearAmount,Sheet1!S71_A2SubCode,$AC:$AC,Sheet1!S71_ItemType,$AD:$AD)","v":0},{"$f":"SUMIFS(Sheet1!S71_PYearAmount,Sheet1!S71_A2SubCode,$AC:$AC,Sheet1!S71_ItemType,$AD:$AD)","v":0},{"$f":"SUMIFS(Sheet1!S71_OriginalBudAmnt,Sheet1!S71_A2SubCode,$AC:$AC,Sheet1!S71_ItemType,$AD:$AD)","v":0},{"$f":"SUMIFS(Sheet1!S71_AdjustmentBudAmnt,Sheet1!S71_A2SubCode,$AC:$AC,Sheet1!S71_ItemType,$AD:$AD)","v":0},{"$f":"SUMIFS(Sheet1!S71_AdjustmentBudAmnt,Sheet1!S71_A2SubCode,$AC:$AC,Sheet1!S71_ItemType,$AD:$AD)","v":0},{"$f":"SUMIFS(Sheet1!S71_ASBudgetAmount,Sheet1!S71_A2SubCode,$AC:$AC,Sheet1!S71_ItemType,$AD:$AD)","v":0},{"$f":"SUMIFS(Sheet1!S71_OY1BudgetAmount,Sheet1!S71_A2SubCode,$AC:$AC,Sheet1!S71_ItemType,$AD:$AD)","v":0},{"$f":"SUMIFS(Sheet1!S71_OY2BudgetAmount,Sheet1!S71_A2SubCode,$AC:$AC,Sheet1!S71_ItemType,$AD:$AD)","v":0},null,null,null,null,null,null,null,null,null,null,null,null,null,null,null,null,null,2502,"IE"]
[{"$f":"A69","v":"Laboratory Services"},null,{"$f":"SUMIFS(Sheet1!S71_PPPYearAmount,Sheet1!S71_A2SubCode,$AC:$AC,Sheet1!S71_ItemType,$AD:$AD)","v":0},{"$f":"SUMIFS(Sheet1!S71_PPYearAmount,Sheet1!S71_A2SubCode,$AC:$AC,Sheet1!S71_ItemType,$AD:$AD)","v":0},{"$f":"SUMIFS(Sheet1!S71_PYearAmount,Sheet1!S71_A2SubCode,$AC:$AC,Sheet1!S71_ItemType,$AD:$AD)","v":0},{"$f":"SUMIFS(Sheet1!S71_OriginalBudAmnt,Sheet1!S71_A2SubCode,$AC:$AC,Sheet1!S71_ItemType,$AD:$AD)","v":0},{"$f":"SUMIFS(Sheet1!S71_AdjustmentBudAmnt,Sheet1!S71_A2SubCode,$AC:$AC,Sheet1!S71_ItemType,$AD:$AD)","v":0},{"$f":"SUMIFS(Sheet1!S71_AdjustmentBudAmnt,Sheet1!S71_A2SubCode,$AC:$AC,Sheet1!S71_ItemType,$AD:$AD)","v":0},{"$f":"SUMIFS(Sheet1!S71_ASBudgetAmount,Sheet1!S71_A2SubCode,$AC:$AC,Sheet1!S71_ItemType,$AD:$AD)","v":0},{"$f":"SUMIFS(Sheet1!S71_OY1BudgetAmount,Sheet1!S71_A2SubCode,$AC:$AC,Sheet1!S71_ItemType,$AD:$AD)","v":0},{"$f":"SUMIFS(Sheet1!S71_OY2BudgetAmount,Sheet1!S71_A2SubCode,$AC:$AC,Sheet1!S71_ItemType,$AD:$AD)","v":0},null,null,null,null,null,null,null,null,null,null,null,null,null,null,null,null,null,2503,"IE"]
["Food Control",null,{"$f":"SUMIFS(Sheet1!S71_PPPYearAmount,Sheet1!S71_A2SubCode,$AC:$AC,Sheet1!S71_ItemType,$AD:$AD)","v":0},{"$f":"SUMIFS(Sheet1!S71_PPYearAmount,Sheet1!S71_A2SubCode,$AC:$AC,Sheet1!S71_ItemType,$AD:$AD)","v":0},{"$f":"SUMIFS(Sheet1!S71_PYearAmount,Sheet1!S71_A2SubCode,$AC:$AC,Sheet1!S71_ItemType,$AD:$AD)","v":0},{"$f":"SUMIFS(Sheet1!S71_OriginalBudAmnt,Sheet1!S71_A2SubCode,$AC:$AC,Sheet1!S71_ItemType,$AD:$AD)","v":0},{"$f":"SUMIFS(Sheet1!S71_AdjustmentBudAmnt,Sheet1!S71_A2SubCode,$AC:$AC,Sheet1!S71_ItemType,$AD:$AD)","v":0},{"$f":"SUMIFS(Sheet1!S71_AdjustmentBudAmnt,Sheet1!S71_A2SubCode,$AC:$AC,Sheet1!S71_ItemType,$AD:$AD)","v":0},{"$f":"SUMIFS(Sheet1!S71_ASBudgetAmount,Sheet1!S71_A2SubCode,$AC:$AC,Sheet1!S71_ItemType,$AD:$AD)","v":0},{"$f":"SUMIFS(Sheet1!S71_OY1BudgetAmount,Sheet1!S71_A2SubCode,$AC:$AC,Sheet1!S71_ItemType,$AD:$AD)","v":0},{"$f":"SUMIFS(Sheet1!S71_OY2BudgetAmount,Sheet1!S71_A2SubCode,$AC:$AC,Sheet1!S71_ItemType,$AD:$AD)","v":0},null,null,null,null,null,null,null,null,null,null,null,null,null,null,null,null,null,2504,"IE"]
["Health Surveillance and Prevention of Communicable Diseases including immunizations",null,{"$f":"SUMIFS(Sheet1!S71_PPPYearAmount,Sheet1!S71_A2SubCode,$AC:$AC,Sheet1!S71_ItemType,$AD:$AD)","v":0},{"$f":"SUMIFS(Sheet1!S71_PPYearAmount,Sheet1!S71_A2SubCode,$AC:$AC,Sheet1!S71_ItemType,$AD:$AD)","v":0},{"$f":"SUMIFS(Sheet1!S71_PYearAmount,Sheet1!S71_A2SubCode,$AC:$AC,Sheet1!S71_ItemType,$AD:$AD)","v":0},{"$f":"SUMIFS(Sheet1!S71_OriginalBudAmnt,Sheet1!S71_A2SubCode,$AC:$AC,Sheet1!S71_ItemType,$AD:$AD)","v":0},{"$f":"SUMIFS(Sheet1!S71_AdjustmentBudAmnt,Sheet1!S71_A2SubCode,$AC:$AC,Sheet1!S71_ItemType,$AD:$AD)","v":0},{"$f":"SUMIFS(Sheet1!S71_AdjustmentBudAmnt,Sheet1!S71_A2SubCode,$AC:$AC,Sheet1!S71_ItemType,$AD:$AD)","v":0},{"$f":"SUMIFS(Sheet1!S71_ASBudgetAmount,Sheet1!S71_A2SubCode,$AC:$AC,Sheet1!S71_ItemType,$AD:$AD)","v":0},{"$f":"SUMIFS(Sheet1!S71_OY1BudgetAmount,Sheet1!S71_A2SubCode,$AC:$AC,Sheet1!S71_ItemType,$AD:$AD)","v":0},{"$f":"SUMIFS(Sheet1!S71_OY2BudgetAmount,Sheet1!S71_A2SubCode,$AC:$AC,Sheet1!S71_ItemType,$AD:$AD)","v":0},null,null,null,null,null,null,null,null,null,null,null,null,null,null,null,null,null,2505,"IE"]
["Vector Control",null,{"$f":"SUMIFS(Sheet1!S71_PPPYearAmount,Sheet1!S71_A2SubCode,$AC:$AC,Sheet1!S71_ItemType,$AD:$AD)","v":0},{"$f":"SUMIFS(Sheet1!S71_PPYearAmount,Sheet1!S71_A2SubCode,$AC:$AC,Sheet1!S71_ItemType,$AD:$AD)","v":0},{"$f":"SUMIFS(Sheet1!S71_PYearAmount,Sheet1!S71_A2SubCode,$AC:$AC,Sheet1!S71_ItemType,$AD:$AD)","v":0},{"$f":"SUMIFS(Sheet1!S71_OriginalBudAmnt,Sheet1!S71_A2SubCode,$AC:$AC,Sheet1!S71_ItemType,$AD:$AD)","v":0},{"$f":"SUMIFS(Sheet1!S71_AdjustmentBudAmnt,Sheet1!S71_A2SubCode,$AC:$AC,Sheet1!S71_ItemType,$AD:$AD)","v":0},{"$f":"SUMIFS(Sheet1!S71_AdjustmentBudAmnt,Sheet1!S71_A2SubCode,$AC:$AC,Sheet1!S71_ItemType,$AD:$AD)","v":0},{"$f":"SUMIFS(Sheet1!S71_ASBudgetAmount,Sheet1!S71_A2SubCode,$AC:$AC,Sheet1!S71_ItemType,$AD:$AD)","v":0},{"$f":"SUMIFS(Sheet1!S71_OY1BudgetAmount,Sheet1!S71_A2SubCode,$AC:$AC,Sheet1!S71_ItemType,$AD:$AD)","v":0},{"$f":"SUMIFS(Sheet1!S71_OY2BudgetAmount,Sheet1!S71_A2SubCode,$AC:$AC,Sheet1!S71_ItemType,$AD:$AD)","v":0},null,null,null,null,null,null,null,null,null,null,null,null,null,null,null,null,null,2506,"IE"]
["Chemical Safety",null,{"$f":"SUMIFS(Sheet1!S71_PPPYearAmount,Sheet1!S71_A2SubCode,$AC:$AC,Sheet1!S71_ItemType,$AD:$AD)","v":0},{"$f":"SUMIFS(Sheet1!S71_PPYearAmount,Sheet1!S71_A2SubCode,$AC:$AC,Sheet1!S71_ItemType,$AD:$AD)","v":0},{"$f":"SUMIFS(Sheet1!S71_PYearAmount,Sheet1!S71_A2SubCode,$AC:$AC,Sheet1!S71_ItemType,$AD:$AD)","v":0},{"$f":"SUMIFS(Sheet1!S71_OriginalBudAmnt,Sheet1!S71_A2SubCode,$AC:$AC,Sheet1!S71_ItemType,$AD:$AD)","v":0},{"$f":"SUMIFS(Sheet1!S71_AdjustmentBudAmnt,Sheet1!S71_A2SubCode,$AC:$AC,Sheet1!S71_ItemType,$AD:$AD)","v":0},{"$f":"SUMIFS(Sheet1!S71_AdjustmentBudAmnt,Sheet1!S71_A2SubCode,$AC:$AC,Sheet1!S71_ItemType,$AD:$AD)","v":0},{"$f":"SUMIFS(Sheet1!S71_ASBudgetAmount,Sheet1!S71_A2SubCode,$AC:$AC,Sheet1!S71_ItemType,$AD:$AD)","v":0},{"$f":"SUMIFS(Sheet1!S71_OY1BudgetAmount,Sheet1!S71_A2SubCode,$AC:$AC,Sheet1!S71_ItemType,$AD:$AD)","v":0},{"$f":"SUMIFS(Sheet1!S71_OY2BudgetAmount,Sheet1!S71_A2SubCode,$AC:$AC,Sheet1!S71_ItemType,$AD:$AD)","v":0},null,null,null,null,null,null,null,null,null,null,null,null,null,null,null,null,null,2507,"IE"]
[]
[{"$f":"A75","v":"Economic and environmental services"},null,{"$f":"C199+C210+C215","v":0},13769309,13246063,14230628,14229184,14229184,15117624,15329579,15729674,null,null,null,null,null,null,null,null,null,null,null,null,null,null,null,null,null,null,""]
["Planning and development",null,{"$f":"SUM(C200:C209)","v":0},{"$f":"SUM(D200:D209)","v":13722082},13246063,13730628,14229184,14229184,15117624,15329579,15729674,null,null,null,null,null,null,null,null,null,null,null,null,null,null,null,null,null,null,""]
["Billboards",null,{"$f":"SUMIFS(Sheet1!S71_PPPYearAmount,Sheet1!S71_A2SubCode,$AC:$AC,Sheet1!S71_ItemType,$AD:$AD)","v":0},{"$f":"SUMIFS(Sheet1!S71_PPYearAmount,Sheet1!S71_A2SubCode,$AC:$AC,Sheet1!S71_ItemType,$AD:$AD)","v":0},{"$f":"SUMIFS(Sheet1!S71_PYearAmount,Sheet1!S71_A2SubCode,$AC:$AC,Sheet1!S71_ItemType,$AD:$AD)","v":0},{"$f":"SUMIFS(Sheet1!S71_OriginalBudAmnt,Sheet1!S71_A2SubCode,$AC:$AC,Sheet1!S71_ItemType,$AD:$AD)","v":0},{"$f":"SUMIFS(Sheet1!S71_AdjustmentBudAmnt,Sheet1!S71_A2SubCode,$AC:$AC,Sheet1!S71_ItemType,$AD:$AD)","v":0},{"$f":"SUMIFS(Sheet1!S71_AdjustmentBudAmnt,Sheet1!S71_A2SubCode,$AC:$AC,Sheet1!S71_ItemType,$AD:$AD)","v":0},{"$f":"SUMIFS(Sheet1!S71_ASBudgetAmount,Sheet1!S71_A2SubCode,$AC:$AC,Sheet1!S71_ItemType,$AD:$AD)","v":0},{"$f":"SUMIFS(Sheet1!S71_OY1BudgetAmount,Sheet1!S71_A2SubCode,$AC:$AC,Sheet1!S71_ItemType,$AD:$AD)","v":0},{"$f":"SUMIFS(Sheet1!S71_OY2BudgetAmount,Sheet1!S71_A2SubCode,$AC:$AC,Sheet1!S71_ItemType,$AD:$AD)","v":0},null,null,null,null,null,null,null,null,null,null,null,null,null,null,null,null,null,3101,"IE"]
["Corporate Wide Strategic Planning (IDPs, LEDs)",null,{"$f":"SUMIFS(Sheet1!S71_PPPYearAmount,Sheet1!S71_A2SubCode,$AC:$AC,Sheet1!S71_ItemType,$AD:$AD)","v":0},{"$f":"SUMIFS(Sheet1!S71_PPYearAmount,Sheet1!S71_A2SubCode,$AC:$AC,Sheet1!S71_ItemType,$AD:$AD)","v":8861471},{"$f":"SUMIFS(Sheet1!S71_PYearAmount,Sheet1!S71_A2SubCode,$AC:$AC,Sheet1!S71_ItemType,$AD:$AD)","v":7835281},{"$f":"SUMIFS(Sheet1!S71_OriginalBudAmnt,Sheet1!S71_A2SubCode,$AC:$AC,Sheet1!S71_ItemType,$AD:$AD)","v":8108640},{"$f":"SUMIFS(Sheet1!S71_AdjustmentBudAmnt,Sheet1!S71_A2SubCode,$AC:$AC,Sheet1!S71_ItemType,$AD:$AD)","v":8461707},{"$f":"SUMIFS(Sheet1!S71_AdjustmentBudAmnt,Sheet1!S71_A2SubCode,$AC:$AC,Sheet1!S71_ItemType,$AD:$AD)","v":8461707},{"$f":"SUMIFS(Sheet1!S71_ASBudgetAmount,Sheet1!S71_A2SubCode,$AC:$AC,Sheet1!S71_ItemType,$AD:$AD)","v":9445107},{"$f":"SUMIFS(Sheet1!S71_OY1BudgetAmount,Sheet1!S71_A2SubCode,$AC:$AC,Sheet1!S71_ItemType,$AD:$AD)","v":9160040},{"$f":"SUMIFS(Sheet1!S71_OY2BudgetAmount,Sheet1!S71_A2SubCode,$AC:$AC,Sheet1!S71_ItemType,$AD:$AD)","v":9499398},null,null,null,null,null,null,null,null,null,null,null,null,null,null,null,null,null,3102,"IE"]
["Central City Improvement District",null,{"$f":"SUMIFS(Sheet1!S71_PPPYearAmount,Sheet1!S71_A2SubCode,$AC:$AC,Sheet1!S71_ItemType,$AD:$AD)","v":0},{"$f":"SUMIFS(Sheet1!S71_PPYearAmount,Sheet1!S71_A2SubCode,$AC:$AC,Sheet1!S71_ItemType,$AD:$AD)","v":0},{"$f":"SUMIFS(Sheet1!S71_PYearAmount,Sheet1!S71_A2SubCode,$AC:$AC,Sheet1!S71_ItemType,$AD:$AD)","v":0},{"$f":"SUMIFS(Sheet1!S71_OriginalBudAmnt,Sheet1!S71_A2SubCode,$AC:$AC,Sheet1!S71_ItemType,$AD:$AD)","v":0},{"$f":"SUMIFS(Sheet1!S71_AdjustmentBudAmnt,Sheet1!S71_A2SubCode,$AC:$AC,Sheet1!S71_ItemType,$AD:$AD)","v":0},{"$f":"SUMIFS(Sheet1!S71_AdjustmentBudAmnt,Sheet1!S71_A2SubCode,$AC:$AC,Sheet1!S71_ItemType,$AD:$AD)","v":0},{"$f":"SUMIFS(Sheet1!S71_ASBudgetAmount,Sheet1!S71_A2SubCode,$AC:$AC,Sheet1!S71_ItemType,$AD:$AD)","v":0},{"$f":"SUMIFS(Sheet1!S71_OY1BudgetAmount,Sheet1!S71_A2SubCode,$AC:$AC,Sheet1!S71_ItemType,$AD:$AD)","v":0},{"$f":"SUMIFS(Sheet1!S71_OY2BudgetAmount,Sheet1!S71_A2SubCode,$AC:$AC,Sheet1!S71_ItemType,$AD:$AD)","v":0},null,null,null,null,null,null,null,null,null,null,null,null,null,null,null,null,null,3103,"IE"]
["Development Facilitation",null,{"$f":"SUMIFS(Sheet1!S71_PPPYearAmount,Sheet1!S71_A2SubCode,$AC:$AC,Sheet1!S71_ItemType,$AD:$AD)","v":0},{"$f":"SUMIFS(Sheet1!S71_PPYearAmount,Sheet1!S71_A2SubCode,$AC:$AC,Sheet1!S71_ItemType,$AD:$AD)","v":60718},{"$f":"SUMIFS(Sheet1!S71_PYearAmount,Sheet1!S71_A2SubCode,$AC:$AC,Sheet1!S71_ItemType,$AD:$AD)","v":570661},{"$f":"SUMIFS(Sheet1!S71_OriginalBudAmnt,Sheet1!S71_A2SubCode,$AC:$AC,Sheet1!S71_ItemType,$AD:$AD)","v":491000},{"$f":"SUMIFS(Sheet1!S71_AdjustmentBudAmnt,Sheet1!S71_A2SubCode,$AC:$AC,Sheet1!S71_ItemType,$AD:$AD)","v":40000},{"$f":"SUMIFS(Sheet1!S71_AdjustmentBudAmnt,Sheet1!S71_A2SubCode,$AC:$AC,Sheet1!S71_ItemType,$AD:$AD)","v":40000},{"$f":"SUMIFS(Sheet1!S71_ASBudgetAmount,Sheet1!S71_A2SubCode,$AC:$AC,Sheet1!S71_ItemType,$AD:$AD)","v":100000},{"$f":"SUMIFS(Sheet1!S71_OY1BudgetAmount,Sheet1!S71_A2SubCode,$AC:$AC,Sheet1!S71_ItemType,$AD:$AD)","v":0},{"$f":"SUMIFS(Sheet1!S71_OY2BudgetAmount,Sheet1!S71_A2SubCode,$AC:$AC,Sheet1!S71_ItemType,$AD:$AD)","v":0},null,null,null,null,null,null,null,null,null,null,null,null,null,null,null,null,null,3104,"IE"]
["Economic Development/Planning",null,{"$f":"SUMIFS(Sheet1!S71_PPPYearAmount,Sheet1!S71_A2SubCode,$AC:$AC,Sheet1!S71_ItemType,$AD:$AD)","v":0},{"$f":"SUMIFS(Sheet1!S71_PPYearAmount,Sheet1!S71_A2SubCode,$AC:$AC,Sheet1!S71_ItemType,$AD:$AD)","v":4799893},{"$f":"SUMIFS(Sheet1!S71_PYearAmount,Sheet1!S71_A2SubCode,$AC:$AC,Sheet1!S71_ItemType,$AD:$AD)","v":4840121},{"$f":"SUMIFS(Sheet1!S71_OriginalBudAmnt,Sheet1!S71_A2SubCode,$AC:$AC,Sheet1!S71_ItemType,$AD:$AD)","v":5130988},{"$f":"SUMIFS(Sheet1!S71_AdjustmentBudAmnt,Sheet1!S71_A2SubCode,$AC:$AC,Sheet1!S71_ItemType,$AD:$AD)","v":5727477},{"$f":"SUMIFS(Sheet1!S71_AdjustmentBudAmnt,Sheet1!S71_A2SubCode,$AC:$AC,Sheet1!S71_ItemType,$AD:$AD)","v":5727477},{"$f":"SUMIFS(Sheet1!S71_ASBudgetAmount,Sheet1!S71_A2SubCode,$AC:$AC,Sheet1!S71_ItemType,$AD:$AD)","v":5572517},{"$f":"SUMIFS(Sheet1!S71_OY1BudgetAmount,Sheet1!S71_A2SubCode,$AC:$AC,Sheet1!S71_ItemType,$AD:$AD)","v":6169539},{"$f":"SUMIFS(Sheet1!S71_OY2BudgetAmount,Sheet1!S71_A2SubCode,$AC:$AC,Sheet1!S71_ItemType,$AD:$AD)","v":6230276},null,null,null,null,null,null,null,null,null,null,null,null,null,null,null,null,null,3105,"IE"]
["Regional Planning and Development",null,{"$f":"SUMIFS(Sheet1!S71_PPPYearAmount,Sheet1!S71_A2SubCode,$AC:$AC,Sheet1!S71_ItemType,$AD:$AD)","v":0},{"$f":"SUMIFS(Sheet1!S71_PPYearAmount,Sheet1!S71_A2SubCode,$AC:$AC,Sheet1!S71_ItemType,$AD:$AD)","v":0},{"$f":"SUMIFS(Sheet1!S71_PYearAmount,Sheet1!S71_A2SubCode,$AC:$AC,Sheet1!S71_ItemType,$AD:$AD)","v":0},{"$f":"SUMIFS(Sheet1!S71_OriginalBudAmnt,Sheet1!S71_A2SubCode,$AC:$AC,Sheet1!S71_ItemType,$AD:$AD)","v":0},{"$f":"SUMIFS(Sheet1!S71_AdjustmentBudAmnt,Sheet1!S71_A2SubCode,$AC:$AC,Sheet1!S71_ItemType,$AD:$AD)","v":0},{"$f":"SUMIFS(Sheet1!S71_AdjustmentBudAmnt,Sheet1!S71_A2SubCode,$AC:$AC,Sheet1!S71_ItemType,$AD:$AD)","v":0},{"$f":"SUMIFS(Sheet1!S71_ASBudgetAmount,Sheet1!S71_A2SubCode,$AC:$AC,Sheet1!S71_ItemType,$AD:$AD)","v":0},{"$f":"SUMIFS(Sheet1!S71_OY1BudgetAmount,Sheet1!S71_A2SubCode,$AC:$AC,Sheet1!S71_ItemType,$AD:$AD)","v":0},{"$f":"SUMIFS(Sheet1!S71_OY2BudgetAmount,Sheet1!S71_A2SubCode,$AC:$AC,Sheet1!S71_ItemType,$AD:$AD)","v":0},null,null,null,null,null,null,null,null,null,null,null,null,null,null,null,null,null,3106,"IE"]
["Town Planning, Building Regulations and Enforcement, and City Engineer",null,{"$f":"SUMIFS(Sheet1!S71_PPPYearAmount,Sheet1!S71_A2SubCode,$AC:$AC,Sheet1!S71_ItemType,$AD:$AD)","v":0},{"$f":"SUMIFS(Sheet1!S71_PPYearAmount,Sheet1!S71_A2SubCode,$AC:$AC,Sheet1!S71_ItemType,$AD:$AD)","v":0},{"$f":"SUMIFS(Sheet1!S71_PYearAmount,Sheet1!S71_A2SubCode,$AC:$AC,Sheet1!S71_ItemType,$AD:$AD)","v":0},{"$f":"SUMIFS(Sheet1!S71_OriginalBudAmnt,Sheet1!S71_A2SubCode,$AC:$AC,Sheet1!S71_ItemType,$AD:$AD)","v":0},{"$f":"SUMIFS(Sheet1!S71_AdjustmentBudAmnt,Sheet1!S71_A2SubCode,$AC:$AC,Sheet1!S71_ItemType,$AD:$AD)","v":0},{"$f":"SUMIFS(Sheet1!S71_AdjustmentBudAmnt,Sheet1!S71_A2SubCode,$AC:$AC,Sheet1!S71_ItemType,$AD:$AD)","v":0},{"$f":"SUMIFS(Sheet1!S71_ASBudgetAmount,Sheet1!S71_A2SubCode,$AC:$AC,Sheet1!S71_ItemType,$AD:$AD)","v":0},{"$f":"SUMIFS(Sheet1!S71_OY1BudgetAmount,Sheet1!S71_A2SubCode,$AC:$AC,Sheet1!S71_ItemType,$AD:$AD)","v":0},{"$f":"SUMIFS(Sheet1!S71_OY2BudgetAmount,Sheet1!S71_A2SubCode,$AC:$AC,Sheet1!S71_ItemType,$AD:$AD)","v":0},null,null,null,null,null,null,null,null,null,null,null,null,null,null,null,null,null,3107,"IE"]
["Project Management Unit",null,{"$f":"SUMIFS(Sheet1!S71_PPPYearAmount,Sheet1!S71_A2SubCode,$AC:$AC,Sheet1!S71_ItemType,$AD:$AD)","v":0},{"$f":"SUMIFS(Sheet1!S71_PPYearAmount,Sheet1!S71_A2SubCode,$AC:$AC,Sheet1!S71_ItemType,$AD:$AD)","v":0},{"$f":"SUMIFS(Sheet1!S71_PYearAmount,Sheet1!S71_A2SubCode,$AC:$AC,Sheet1!S71_ItemType,$AD:$AD)","v":0},{"$f":"SUMIFS(Sheet1!S71_OriginalBudAmnt,Sheet1!S71_A2SubCode,$AC:$AC,Sheet1!S71_ItemType,$AD:$AD)","v":0},{"$f":"SUMIFS(Sheet1!S71_AdjustmentBudAmnt,Sheet1!S71_A2SubCode,$AC:$AC,Sheet1!S71_ItemType,$AD:$AD)","v":0},{"$f":"SUMIFS(Sheet1!S71_AdjustmentBudAmnt,Sheet1!S71_A2SubCode,$AC:$AC,Sheet1!S71_ItemType,$AD:$AD)","v":0},{"$f":"SUMIFS(Sheet1!S71_ASBudgetAmount,Sheet1!S71_A2SubCode,$AC:$AC,Sheet1!S71_ItemType,$AD:$AD)","v":0},{"$f":"SUMIFS(Sheet1!S71_OY1BudgetAmount,Sheet1!S71_A2SubCode,$AC:$AC,Sheet1!S71_ItemType,$AD:$AD)","v":0},{"$f":"SUMIFS(Sheet1!S71_OY2BudgetAmount,Sheet1!S71_A2SubCode,$AC:$AC,Sheet1!S71_ItemType,$AD:$AD)","v":0},null,null,null,null,null,null,null,null,null,null,null,null,null,null,null,null,null,3108,"IE"]
["Provincial Planning",null,{"$f":"SUMIFS(Sheet1!S71_PPPYearAmount,Sheet1!S71_A2SubCode,$AC:$AC,Sheet1!S71_ItemType,$AD:$AD)","v":0},{"$f":"SUMIFS(Sheet1!S71_PPYearAmount,Sheet1!S71_A2SubCode,$AC:$AC,Sheet1!S71_ItemType,$AD:$AD)","v":0},{"$f":"SUMIFS(Sheet1!S71_PYearAmount,Sheet1!S71_A2SubCode,$AC:$AC,Sheet1!S71_ItemType,$AD:$AD)","v":0},{"$f":"SUMIFS(Sheet1!S71_OriginalBudAmnt,Sheet1!S71_A2SubCode,$AC:$AC,Sheet1!S71_ItemType,$AD:$AD)","v":0},{"$f":"SUMIFS(Sheet1!S71_AdjustmentBudAmnt,Sheet1!S71_A2SubCode,$AC:$AC,Sheet1!S71_ItemType,$AD:$AD)","v":0},{"$f":"SUMIFS(Sheet1!S71_AdjustmentBudAmnt,Sheet1!S71_A2SubCode,$AC:$AC,Sheet1!S71_ItemType,$AD:$AD)","v":0},{"$f":"SUMIFS(Sheet1!S71_ASBudgetAmount,Sheet1!S71_A2SubCode,$AC:$AC,Sheet1!S71_ItemType,$AD:$AD)","v":0},{"$f":"SUMIFS(Sheet1!S71_OY1BudgetAmount,Sheet1!S71_A2SubCode,$AC:$AC,Sheet1!S71_ItemType,$AD:$AD)","v":0},{"$f":"SUMIFS(Sheet1!S71_OY2BudgetAmount,Sheet1!S71_A2SubCode,$AC:$AC,Sheet1!S71_ItemType,$AD:$AD)","v":0},null,null,null,null,null,null,null,null,null,null,null,null,null,null,null,null,null,3109,"IE"]
["Support to Local Municipalities",null,{"$f":"SUMIFS(Sheet1!S71_PPPYearAmount,Sheet1!S71_A2SubCode,$AC:$AC,Sheet1!S71_ItemType,$AD:$AD)","v":0},{"$f":"SUMIFS(Sheet1!S71_PPYearAmount,Sheet1!S71_A2SubCode,$AC:$AC,Sheet1!S71_ItemType,$AD:$AD)","v":0},{"$f":"SUMIFS(Sheet1!S71_PYearAmount,Sheet1!S71_A2SubCode,$AC:$AC,Sheet1!S71_ItemType,$AD:$AD)","v":0},{"$f":"SUMIFS(Sheet1!S71_OriginalBudAmnt,Sheet1!S71_A2SubCode,$AC:$AC,Sheet1!S71_ItemType,$AD:$AD)","v":0},{"$f":"SUMIFS(Sheet1!S71_AdjustmentBudAmnt,Sheet1!S71_A2SubCode,$AC:$AC,Sheet1!S71_ItemType,$AD:$AD)","v":0},{"$f":"SUMIFS(Sheet1!S71_AdjustmentBudAmnt,Sheet1!S71_A2SubCode,$AC:$AC,Sheet1!S71_ItemType,$AD:$AD)","v":0},{"$f":"SUMIFS(Sheet1!S71_ASBudgetAmount,Sheet1!S71_A2SubCode,$AC:$AC,Sheet1!S71_ItemType,$AD:$AD)","v":0},{"$f":"SUMIFS(Sheet1!S71_OY1BudgetAmount,Sheet1!S71_A2SubCode,$AC:$AC,Sheet1!S71_ItemType,$AD:$AD)","v":0},{"$f":"SUMIFS(Sheet1!S71_OY2BudgetAmount,Sheet1!S71_A2SubCode,$AC:$AC,Sheet1!S71_ItemType,$AD:$AD)","v":0},null,null,null,null,null,null,null,null,null,null,null,null,null,null,null,null,null,3110,"IE"]
["Road transport",null,{"$f":"SUM(C211:C214)","v":0},0,0,0,0,0,0,0,0,null,null,null,null,null,null,null,null,null,null,null,null,null,null,null,null,null,null,""]
["Public Transport",null,{"$f":"SUMIFS(Sheet1!S71_PPPYearAmount,Sheet1!S71_A2SubCode,$AC:$AC,Sheet1!S71_ItemType,$AD:$AD)","v":0},{"$f":"SUMIFS(Sheet1!S71_PPYearAmount,Sheet1!S71_A2SubCode,$AC:$AC,Sheet1!S71_ItemType,$AD:$AD)","v":0},{"$f":"SUMIFS(Sheet1!S71_PYearAmount,Sheet1!S71_A2SubCode,$AC:$AC,Sheet1!S71_ItemType,$AD:$AD)","v":0},{"$f":"SUMIFS(Sheet1!S71_OriginalBudAmnt,Sheet1!S71_A2SubCode,$AC:$AC,Sheet1!S71_ItemType,$AD:$AD)","v":0},{"$f":"SUMIFS(Sheet1!S71_AdjustmentBudAmnt,Sheet1!S71_A2SubCode,$AC:$AC,Sheet1!S71_ItemType,$AD:$AD)","v":0},{"$f":"SUMIFS(Sheet1!S71_AdjustmentBudAmnt,Sheet1!S71_A2SubCode,$AC:$AC,Sheet1!S71_ItemType,$AD:$AD)","v":0},{"$f":"SUMIFS(Sheet1!S71_ASBudgetAmount,Sheet1!S71_A2SubCode,$AC:$AC,Sheet1!S71_ItemType,$AD:$AD)","v":0},{"$f":"SUMIFS(Sheet1!S71_OY1BudgetAmount,Sheet1!S71_A2SubCode,$AC:$AC,Sheet1!S71_ItemType,$AD:$AD)","v":0},{"$f":"SUMIFS(Sheet1!S71_OY2BudgetAmount,Sheet1!S71_A2SubCode,$AC:$AC,Sheet1!S71_ItemType,$AD:$AD)","v":0},null,null,null,null,null,null,null,null,null,null,null,null,null,null,null,null,null,"3203","IE"]
["Road and Traffic Regulation",null,{"$f":"SUMIFS(Sheet1!S71_PPPYearAmount,Sheet1!S71_A2SubCode,$AC:$AC,Sheet1!S71_ItemType,$AD:$AD)","v":0},{"$f":"SUMIFS(Sheet1!S71_PPYearAmount,Sheet1!S71_A2SubCode,$AC:$AC,Sheet1!S71_ItemType,$AD:$AD)","v":0},{"$f":"SUMIFS(Sheet1!S71_PYearAmount,Sheet1!S71_A2SubCode,$AC:$AC,Sheet1!S71_ItemType,$AD:$AD)","v":0},{"$f":"SUMIFS(Sheet1!S71_OriginalBudAmnt,Sheet1!S71_A2SubCode,$AC:$AC,Sheet1!S71_ItemType,$AD:$AD)","v":0},{"$f":"SUMIFS(Sheet1!S71_AdjustmentBudAmnt,Sheet1!S71_A2SubCode,$AC:$AC,Sheet1!S71_ItemType,$AD:$AD)","v":0},{"$f":"SUMIFS(Sheet1!S71_AdjustmentBudAmnt,Sheet1!S71_A2SubCode,$AC:$AC,Sheet1!S71_ItemType,$AD:$AD)","v":0},{"$f":"SUMIFS(Sheet1!S71_ASBudgetAmount,Sheet1!S71_A2SubCode,$AC:$AC,Sheet1!S71_ItemType,$AD:$AD)","v":0},{"$f":"SUMIFS(Sheet1!S71_OY1BudgetAmount,Sheet1!S71_A2SubCode,$AC:$AC,Sheet1!S71_ItemType,$AD:$AD)","v":0},{"$f":"SUMIFS(Sheet1!S71_OY2BudgetAmount,Sheet1!S71_A2SubCode,$AC:$AC,Sheet1!S71_ItemType,$AD:$AD)","v":0},null,null,null,null,null,null,null,null,null,null,null,null,null,null,null,null,null,"3204","IE"]
["Roads",null,{"$f":"SUMIFS(Sheet1!S71_PPPYearAmount,Sheet1!S71_A2SubCode,$AC:$AC,Sheet1!S71_ItemType,$AD:$AD)","v":0},{"$f":"SUMIFS(Sheet1!S71_PPYearAmount,Sheet1!S71_A2SubCode,$AC:$AC,Sheet1!S71_ItemType,$AD:$AD)","v":0},{"$f":"SUMIFS(Sheet1!S71_PYearAmount,Sheet1!S71_A2SubCode,$AC:$AC,Sheet1!S71_ItemType,$AD:$AD)","v":0},{"$f":"SUMIFS(Sheet1!S71_OriginalBudAmnt,Sheet1!S71_A2SubCode,$AC:$AC,Sheet1!S71_ItemType,$AD:$AD)","v":0},{"$f":"SUMIFS(Sheet1!S71_AdjustmentBudAmnt,Sheet1!S71_A2SubCode,$AC:$AC,Sheet1!S71_ItemType,$AD:$AD)","v":0},{"$f":"SUMIFS(Sheet1!S71_AdjustmentBudAmnt,Sheet1!S71_A2SubCode,$AC:$AC,Sheet1!S71_ItemType,$AD:$AD)","v":0},{"$f":"SUMIFS(Sheet1!S71_ASBudgetAmount,Sheet1!S71_A2SubCode,$AC:$AC,Sheet1!S71_ItemType,$AD:$AD)","v":0},{"$f":"SUMIFS(Sheet1!S71_OY1BudgetAmount,Sheet1!S71_A2SubCode,$AC:$AC,Sheet1!S71_ItemType,$AD:$AD)","v":0},{"$f":"SUMIFS(Sheet1!S71_OY2BudgetAmount,Sheet1!S71_A2SubCode,$AC:$AC,Sheet1!S71_ItemType,$AD:$AD)","v":0},null,null,null,null,null,null,null,null,null,null,null,null,null,null,null,null,null,"3205","IE"]
["Taxi Ranks",null,{"$f":"SUMIFS(Sheet1!S71_PPPYearAmount,Sheet1!S71_A2SubCode,$AC:$AC,Sheet1!S71_ItemType,$AD:$AD)","v":0},{"$f":"SUMIFS(Sheet1!S71_PPYearAmount,Sheet1!S71_A2SubCode,$AC:$AC,Sheet1!S71_ItemType,$AD:$AD)","v":0},{"$f":"SUMIFS(Sheet1!S71_PYearAmount,Sheet1!S71_A2SubCode,$AC:$AC,Sheet1!S71_ItemType,$AD:$AD)","v":0},{"$f":"SUMIFS(Sheet1!S71_OriginalBudAmnt,Sheet1!S71_A2SubCode,$AC:$AC,Sheet1!S71_ItemType,$AD:$AD)","v":0},{"$f":"SUMIFS(Sheet1!S71_AdjustmentBudAmnt,Sheet1!S71_A2SubCode,$AC:$AC,Sheet1!S71_ItemType,$AD:$AD)","v":0},{"$f":"SUMIFS(Sheet1!S71_AdjustmentBudAmnt,Sheet1!S71_A2SubCode,$AC:$AC,Sheet1!S71_ItemType,$AD:$AD)","v":0},{"$f":"SUMIFS(Sheet1!S71_ASBudgetAmount,Sheet1!S71_A2SubCode,$AC:$AC,Sheet1!S71_ItemType,$AD:$AD)","v":0},{"$f":"SUMIFS(Sheet1!S71_OY1BudgetAmount,Sheet1!S71_A2SubCode,$AC:$AC,Sheet1!S71_ItemType,$AD:$AD)","v":0},{"$f":"SUMIFS(Sheet1!S71_OY2BudgetAmount,Sheet1!S71_A2SubCode,$AC:$AC,Sheet1!S71_ItemType,$AD:$AD)","v":0},null,null,null,null,null,null,null,null,null,null,null,null,null,null,null,null,null,"3206","IE"]
["Environmental protection",null,{"$f":"SUM(C216:C221)","v":0},{"$f":"SUM(D216:D221)","v":47227},0,500000,0,0,0,0,0,null,null,null,null,null,null,null,null,null,null,null,null,null,null,null,null,null,null,""]
["Biodiversity and Landscape",null,{"$f":"SUMIFS(Sheet1!S71_PPPYearAmount,Sheet1!S71_A2SubCode,$AC:$AC,Sheet1!S71_ItemType,$AD:$AD)","v":0},{"$f":"SUMIFS(Sheet1!S71_PPYearAmount,Sheet1!S71_A2SubCode,$AC:$AC,Sheet1!S71_ItemType,$AD:$AD)","v":47227},{"$f":"SUMIFS(Sheet1!S71_PYearAmount,Sheet1!S71_A2SubCode,$AC:$AC,Sheet1!S71_ItemType,$AD:$AD)","v":0},{"$f":"SUMIFS(Sheet1!S71_OriginalBudAmnt,Sheet1!S71_A2SubCode,$AC:$AC,Sheet1!S71_ItemType,$AD:$AD)","v":500000},{"$f":"SUMIFS(Sheet1!S71_AdjustmentBudAmnt,Sheet1!S71_A2SubCode,$AC:$AC,Sheet1!S71_ItemType,$AD:$AD)","v":0},{"$f":"SUMIFS(Sheet1!S71_AdjustmentBudAmnt,Sheet1!S71_A2SubCode,$AC:$AC,Sheet1!S71_ItemType,$AD:$AD)","v":0},{"$f":"SUMIFS(Sheet1!S71_ASBudgetAmount,Sheet1!S71_A2SubCode,$AC:$AC,Sheet1!S71_ItemType,$AD:$AD)","v":0},{"$f":"SUMIFS(Sheet1!S71_OY1BudgetAmount,Sheet1!S71_A2SubCode,$AC:$AC,Sheet1!S71_ItemType,$AD:$AD)","v":0},{"$f":"SUMIFS(Sheet1!S71_OY2BudgetAmount,Sheet1!S71_A2SubCode,$AC:$AC,Sheet1!S71_ItemType,$AD:$AD)","v":0},null,null,null,null,null,null,null,null,null,null,null,null,null,null,null,null,null,3301,"IE"]
["Coastal Protection",null,{"$f":"SUMIFS(Sheet1!S71_PPPYearAmount,Sheet1!S71_A2SubCode,$AC:$AC,Sheet1!S71_ItemType,$AD:$AD)","v":0},{"$f":"SUMIFS(Sheet1!S71_PPYearAmount,Sheet1!S71_A2SubCode,$AC:$AC,Sheet1!S71_ItemType,$AD:$AD)","v":0},{"$f":"SUMIFS(Sheet1!S71_PYearAmount,Sheet1!S71_A2SubCode,$AC:$AC,Sheet1!S71_ItemType,$AD:$AD)","v":0},{"$f":"SUMIFS(Sheet1!S71_OriginalBudAmnt,Sheet1!S71_A2SubCode,$AC:$AC,Sheet1!S71_ItemType,$AD:$AD)","v":0},{"$f":"SUMIFS(Sheet1!S71_AdjustmentBudAmnt,Sheet1!S71_A2SubCode,$AC:$AC,Sheet1!S71_ItemType,$AD:$AD)","v":0},{"$f":"SUMIFS(Sheet1!S71_AdjustmentBudAmnt,Sheet1!S71_A2SubCode,$AC:$AC,Sheet1!S71_ItemType,$AD:$AD)","v":0},{"$f":"SUMIFS(Sheet1!S71_ASBudgetAmount,Sheet1!S71_A2SubCode,$AC:$AC,Sheet1!S71_ItemType,$AD:$AD)","v":0},{"$f":"SUMIFS(Sheet1!S71_OY1BudgetAmount,Sheet1!S71_A2SubCode,$AC:$AC,Sheet1!S71_ItemType,$AD:$AD)","v":0},{"$f":"SUMIFS(Sheet1!S71_OY2BudgetAmount,Sheet1!S71_A2SubCode,$AC:$AC,Sheet1!S71_ItemType,$AD:$AD)","v":0},null,null,null,null,null,null,null,null,null,null,null,null,null,null,null,null,null,3302,"IE"]
["Indigenous Forests",null,{"$f":"SUMIFS(Sheet1!S71_PPPYearAmount,Sheet1!S71_A2SubCode,$AC:$AC,Sheet1!S71_ItemType,$AD:$AD)","v":0},{"$f":"SUMIFS(Sheet1!S71_PPYearAmount,Sheet1!S71_A2SubCode,$AC:$AC,Sheet1!S71_ItemType,$AD:$AD)","v":0},{"$f":"SUMIFS(Sheet1!S71_PYearAmount,Sheet1!S71_A2SubCode,$AC:$AC,Sheet1!S71_ItemType,$AD:$AD)","v":0},{"$f":"SUMIFS(Sheet1!S71_OriginalBudAmnt,Sheet1!S71_A2SubCode,$AC:$AC,Sheet1!S71_ItemType,$AD:$AD)","v":0},{"$f":"SUMIFS(Sheet1!S71_AdjustmentBudAmnt,Sheet1!S71_A2SubCode,$AC:$AC,Sheet1!S71_ItemType,$AD:$AD)","v":0},{"$f":"SUMIFS(Sheet1!S71_AdjustmentBudAmnt,Sheet1!S71_A2SubCode,$AC:$AC,Sheet1!S71_ItemType,$AD:$AD)","v":0},{"$f":"SUMIFS(Sheet1!S71_ASBudgetAmount,Sheet1!S71_A2SubCode,$AC:$AC,Sheet1!S71_ItemType,$AD:$AD)","v":0},{"$f":"SUMIFS(Sheet1!S71_OY1BudgetAmount,Sheet1!S71_A2SubCode,$AC:$AC,Sheet1!S71_ItemType,$AD:$AD)","v":0},{"$f":"SUMIFS(Sheet1!S71_OY2BudgetAmount,Sheet1!S71_A2SubCode,$AC:$AC,Sheet1!S71_ItemType,$AD:$AD)","v":0},null,null,null,null,null,null,null,null,null,null,null,null,null,null,null,null,null,3303,"IE"]
["Nature Conservation",null,{"$f":"SUMIFS(Sheet1!S71_PPPYearAmount,Sheet1!S71_A2SubCode,$AC:$AC,Sheet1!S71_ItemType,$AD:$AD)","v":0},{"$f":"SUMIFS(Sheet1!S71_PPYearAmount,Sheet1!S71_A2SubCode,$AC:$AC,Sheet1!S71_ItemType,$AD:$AD)","v":0},{"$f":"SUMIFS(Sheet1!S71_PYearAmount,Sheet1!S71_A2SubCode,$AC:$AC,Sheet1!S71_ItemType,$AD:$AD)","v":0},{"$f":"SUMIFS(Sheet1!S71_OriginalBudAmnt,Sheet1!S71_A2SubCode,$AC:$AC,Sheet1!S71_ItemType,$AD:$AD)","v":0},{"$f":"SUMIFS(Sheet1!S71_AdjustmentBudAmnt,Sheet1!S71_A2SubCode,$AC:$AC,Sheet1!S71_ItemType,$AD:$AD)","v":0},{"$f":"SUMIFS(Sheet1!S71_AdjustmentBudAmnt,Sheet1!S71_A2SubCode,$AC:$AC,Sheet1!S71_ItemType,$AD:$AD)","v":0},{"$f":"SUMIFS(Sheet1!S71_ASBudgetAmount,Sheet1!S71_A2SubCode,$AC:$AC,Sheet1!S71_ItemType,$AD:$AD)","v":0},{"$f":"SUMIFS(Sheet1!S71_OY1BudgetAmount,Sheet1!S71_A2SubCode,$AC:$AC,Sheet1!S71_ItemType,$AD:$AD)","v":0},{"$f":"SUMIFS(Sheet1!S71_OY2BudgetAmount,Sheet1!S71_A2SubCode,$AC:$AC,Sheet1!S71_ItemType,$AD:$AD)","v":0},null,null,null,null,null,null,null,null,null,null,null,null,null,null,null,null,null,3304,"IE"]
["Pollution Control",null,{"$f":"SUMIFS(Sheet1!S71_PPPYearAmount,Sheet1!S71_A2SubCode,$AC:$AC,Sheet1!S71_ItemType,$AD:$AD)","v":0},{"$f":"SUMIFS(Sheet1!S71_PPYearAmount,Sheet1!S71_A2SubCode,$AC:$AC,Sheet1!S71_ItemType,$AD:$AD)","v":0},{"$f":"SUMIFS(Sheet1!S71_PYearAmount,Sheet1!S71_A2SubCode,$AC:$AC,Sheet1!S71_ItemType,$AD:$AD)","v":0},{"$f":"SUMIFS(Sheet1!S71_OriginalBudAmnt,Sheet1!S71_A2SubCode,$AC:$AC,Sheet1!S71_ItemType,$AD:$AD)","v":0},{"$f":"SUMIFS(Sheet1!S71_AdjustmentBudAmnt,Sheet1!S71_A2SubCode,$AC:$AC,Sheet1!S71_ItemType,$AD:$AD)","v":0},{"$f":"SUMIFS(Sheet1!S71_AdjustmentBudAmnt,Sheet1!S71_A2SubCode,$AC:$AC,Sheet1!S71_ItemType,$AD:$AD)","v":0},{"$f":"SUMIFS(Sheet1!S71_ASBudgetAmount,Sheet1!S71_A2SubCode,$AC:$AC,Sheet1!S71_ItemType,$AD:$AD)","v":0},{"$f":"SUMIFS(Sheet1!S71_OY1BudgetAmount,Sheet1!S71_A2SubCode,$AC:$AC,Sheet1!S71_ItemType,$AD:$AD)","v":0},{"$f":"SUMIFS(Sheet1!S71_OY2BudgetAmount,Sheet1!S71_A2SubCode,$AC:$AC,Sheet1!S71_ItemType,$AD:$AD)","v":0},null,null,null,null,null,null,null,null,null,null,null,null,null,null,null,null,null,3305,"IE"]
["Soil Conservation",null,{"$f":"SUMIFS(Sheet1!S71_PPPYearAmount,Sheet1!S71_A2SubCode,$AC:$AC,Sheet1!S71_ItemType,$AD:$AD)","v":0},{"$f":"SUMIFS(Sheet1!S71_PPYearAmount,Sheet1!S71_A2SubCode,$AC:$AC,Sheet1!S71_ItemType,$AD:$AD)","v":0},{"$f":"SUMIFS(Sheet1!S71_PYearAmount,Sheet1!S71_A2SubCode,$AC:$AC,Sheet1!S71_ItemType,$AD:$AD)","v":0},{"$f":"SUMIFS(Sheet1!S71_OriginalBudAmnt,Sheet1!S71_A2SubCode,$AC:$AC,Sheet1!S71_ItemType,$AD:$AD)","v":0},{"$f":"SUMIFS(Sheet1!S71_AdjustmentBudAmnt,Sheet1!S71_A2SubCode,$AC:$AC,Sheet1!S71_ItemType,$AD:$AD)","v":0},{"$f":"SUMIFS(Sheet1!S71_AdjustmentBudAmnt,Sheet1!S71_A2SubCode,$AC:$AC,Sheet1!S71_ItemType,$AD:$AD)","v":0},{"$f":"SUMIFS(Sheet1!S71_ASBudgetAmount,Sheet1!S71_A2SubCode,$AC:$AC,Sheet1!S71_ItemType,$AD:$AD)","v":0},{"$f":"SUMIFS(Sheet1!S71_OY1BudgetAmount,Sheet1!S71_A2SubCode,$AC:$AC,Sheet1!S71_ItemType,$AD:$AD)","v":0},{"$f":"SUMIFS(Sheet1!S71_OY2BudgetAmount,Sheet1!S71_A2SubCode,$AC:$AC,Sheet1!S71_ItemType,$AD:$AD)","v":0},null,null,null,null,null,null,null,null,null,null,null,null,null,null,null,null,null,3306,"IE"]
["Trading services",null,{"$f":"C223+C227+C231+C236","v":0},{"$f":"D223+D227+D231+D236","v":0},0,0,0,0,0,0,0,null,null,null,null,null,null,null,null,null,null,null,null,null,null,null,null,null,null,""]
["Energy sources",null,{"$f":"SUM(C224:C226)","v":0},{"$f":"SUM(D224:D226)","v":0},0,0,0,0,0,0,0,null,null,null,null,null,null,null,null,null,null,null,null,null,null,null,null,null,null,""]
["Electricity ",null,{"$f":"SUMIFS(Sheet1!S71_PPPYearAmount,Sheet1!S71_A2SubCode,$AC:$AC,Sheet1!S71_ItemType,$AD:$AD)","v":0},{"$f":"SUMIFS(Sheet1!S71_PPYearAmount,Sheet1!S71_A2SubCode,$AC:$AC,Sheet1!S71_ItemType,$AD:$AD)","v":0},{"$f":"SUMIFS(Sheet1!S71_PYearAmount,Sheet1!S71_A2SubCode,$AC:$AC,Sheet1!S71_ItemType,$AD:$AD)","v":0},{"$f":"SUMIFS(Sheet1!S71_OriginalBudAmnt,Sheet1!S71_A2SubCode,$AC:$AC,Sheet1!S71_ItemType,$AD:$AD)","v":0},{"$f":"SUMIFS(Sheet1!S71_AdjustmentBudAmnt,Sheet1!S71_A2SubCode,$AC:$AC,Sheet1!S71_ItemType,$AD:$AD)","v":0},{"$f":"SUMIFS(Sheet1!S71_AdjustmentBudAmnt,Sheet1!S71_A2SubCode,$AC:$AC,Sheet1!S71_ItemType,$AD:$AD)","v":0},{"$f":"SUMIFS(Sheet1!S71_ASBudgetAmount,Sheet1!S71_A2SubCode,$AC:$AC,Sheet1!S71_ItemType,$AD:$AD)","v":0},{"$f":"SUMIFS(Sheet1!S71_OY1BudgetAmount,Sheet1!S71_A2SubCode,$AC:$AC,Sheet1!S71_ItemType,$AD:$AD)","v":0},{"$f":"SUMIFS(Sheet1!S71_OY2BudgetAmount,Sheet1!S71_A2SubCode,$AC:$AC,Sheet1!S71_ItemType,$AD:$AD)","v":0},null,null,null,null,null,null,null,null,null,null,null,null,null,null,null,null,null,4101,"IE"]
["Street Lighting and Signal Systems",null,{"$f":"SUMIFS(Sheet1!S71_PPPYearAmount,Sheet1!S71_A2SubCode,$AC:$AC,Sheet1!S71_ItemType,$AD:$AD)","v":0},{"$f":"SUMIFS(Sheet1!S71_PPYearAmount,Sheet1!S71_A2SubCode,$AC:$AC,Sheet1!S71_ItemType,$AD:$AD)","v":0},{"$f":"SUMIFS(Sheet1!S71_PYearAmount,Sheet1!S71_A2SubCode,$AC:$AC,Sheet1!S71_ItemType,$AD:$AD)","v":0},{"$f":"SUMIFS(Sheet1!S71_OriginalBudAmnt,Sheet1!S71_A2SubCode,$AC:$AC,Sheet1!S71_ItemType,$AD:$AD)","v":0},{"$f":"SUMIFS(Sheet1!S71_AdjustmentBudAmnt,Sheet1!S71_A2SubCode,$AC:$AC,Sheet1!S71_ItemType,$AD:$AD)","v":0},{"$f":"SUMIFS(Sheet1!S71_AdjustmentBudAmnt,Sheet1!S71_A2SubCode,$AC:$AC,Sheet1!S71_ItemType,$AD:$AD)","v":0},{"$f":"SUMIFS(Sheet1!S71_ASBudgetAmount,Sheet1!S71_A2SubCode,$AC:$AC,Sheet1!S71_ItemType,$AD:$AD)","v":0},{"$f":"SUMIFS(Sheet1!S71_OY1BudgetAmount,Sheet1!S71_A2SubCode,$AC:$AC,Sheet1!S71_ItemType,$AD:$AD)","v":0},{"$f":"SUMIFS(Sheet1!S71_OY2BudgetAmount,Sheet1!S71_A2SubCode,$AC:$AC,Sheet1!S71_ItemType,$AD:$AD)","v":0},null,null,null,null,null,null,null,null,null,null,null,null,null,null,null,null,null,4102,"IE"]
["Nonelectric Energy",null,{"$f":"SUMIFS(Sheet1!S71_PPPYearAmount,Sheet1!S71_A2SubCode,$AC:$AC,Sheet1!S71_ItemType,$AD:$AD)","v":0},{"$f":"SUMIFS(Sheet1!S71_PPYearAmount,Sheet1!S71_A2SubCode,$AC:$AC,Sheet1!S71_ItemType,$AD:$AD)","v":0},{"$f":"SUMIFS(Sheet1!S71_PYearAmount,Sheet1!S71_A2SubCode,$AC:$AC,Sheet1!S71_ItemType,$AD:$AD)","v":0},{"$f":"SUMIFS(Sheet1!S71_OriginalBudAmnt,Sheet1!S71_A2SubCode,$AC:$AC,Sheet1!S71_ItemType,$AD:$AD)","v":0},{"$f":"SUMIFS(Sheet1!S71_AdjustmentBudAmnt,Sheet1!S71_A2SubCode,$AC:$AC,Sheet1!S71_ItemType,$AD:$AD)","v":0},{"$f":"SUMIFS(Sheet1!S71_AdjustmentBudAmnt,Sheet1!S71_A2SubCode,$AC:$AC,Sheet1!S71_ItemType,$AD:$AD)","v":0},{"$f":"SUMIFS(Sheet1!S71_ASBudgetAmount,Sheet1!S71_A2SubCode,$AC:$AC,Sheet1!S71_ItemType,$AD:$AD)","v":0},{"$f":"SUMIFS(Sheet1!S71_OY1BudgetAmount,Sheet1!S71_A2SubCode,$AC:$AC,Sheet1!S71_ItemType,$AD:$AD)","v":0},{"$f":"SUMIFS(Sheet1!S71_OY2BudgetAmount,Sheet1!S71_A2SubCode,$AC:$AC,Sheet1!S71_ItemType,$AD:$AD)","v":0},null,null,null,null,null,null,null,null,null,null,null,null,null,null,null,null,null,4103,"IE"]
["Water management",null,{"$f":"SUM(C228:C230)","v":0},{"$f":"SUM(D228:D230)","v":0},0,0,0,0,0,0,0,null,null,null,null,null,null,null,null,null,null,null,null,null,null,null,null,null,null,""]
["Water Treatment",null,{"$f":"SUMIFS(Sheet1!S71_PPPYearAmount,Sheet1!S71_A2SubCode,$AC:$AC,Sheet1!S71_ItemType,$AD:$AD)","v":0},{"$f":"SUMIFS(Sheet1!S71_PPYearAmount,Sheet1!S71_A2SubCode,$AC:$AC,Sheet1!S71_ItemType,$AD:$AD)","v":0},{"$f":"SUMIFS(Sheet1!S71_PYearAmount,Sheet1!S71_A2SubCode,$AC:$AC,Sheet1!S71_ItemType,$AD:$AD)","v":0},{"$f":"SUMIFS(Sheet1!S71_OriginalBudAmnt,Sheet1!S71_A2SubCode,$AC:$AC,Sheet1!S71_ItemType,$AD:$AD)","v":0},{"$f":"SUMIFS(Sheet1!S71_AdjustmentBudAmnt,Sheet1!S71_A2SubCode,$AC:$AC,Sheet1!S71_ItemType,$AD:$AD)","v":0},{"$f":"SUMIFS(Sheet1!S71_AdjustmentBudAmnt,Sheet1!S71_A2SubCode,$AC:$AC,Sheet1!S71_ItemType,$AD:$AD)","v":0},{"$f":"SUMIFS(Sheet1!S71_ASBudgetAmount,Sheet1!S71_A2SubCode,$AC:$AC,Sheet1!S71_ItemType,$AD:$AD)","v":0},{"$f":"SUMIFS(Sheet1!S71_OY1BudgetAmount,Sheet1!S71_A2SubCode,$AC:$AC,Sheet1!S71_ItemType,$AD:$AD)","v":0},{"$f":"SUMIFS(Sheet1!S71_OY2BudgetAmount,Sheet1!S71_A2SubCode,$AC:$AC,Sheet1!S71_ItemType,$AD:$AD)","v":0},null,null,null,null,null,null,null,null,null,null,null,null,null,null,null,null,null,4201,"IE"]
["Water Distribution",null,{"$f":"SUMIFS(Sheet1!S71_PPPYearAmount,Sheet1!S71_A2SubCode,$AC:$AC,Sheet1!S71_ItemType,$AD:$AD)","v":0},{"$f":"SUMIFS(Sheet1!S71_PPYearAmount,Sheet1!S71_A2SubCode,$AC:$AC,Sheet1!S71_ItemType,$AD:$AD)","v":0},{"$f":"SUMIFS(Sheet1!S71_PYearAmount,Sheet1!S71_A2SubCode,$AC:$AC,Sheet1!S71_ItemType,$AD:$AD)","v":0},{"$f":"SUMIFS(Sheet1!S71_OriginalBudAmnt,Sheet1!S71_A2SubCode,$AC:$AC,Sheet1!S71_ItemType,$AD:$AD)","v":0},{"$f":"SUMIFS(Sheet1!S71_AdjustmentBudAmnt,Sheet1!S71_A2SubCode,$AC:$AC,Sheet1!S71_ItemType,$AD:$AD)","v":0},{"$f":"SUMIFS(Sheet1!S71_AdjustmentBudAmnt,Sheet1!S71_A2SubCode,$AC:$AC,Sheet1!S71_ItemType,$AD:$AD)","v":0},{"$f":"SUMIFS(Sheet1!S71_ASBudgetAmount,Sheet1!S71_A2SubCode,$AC:$AC,Sheet1!S71_ItemType,$AD:$AD)","v":0},{"$f":"SUMIFS(Sheet1!S71_OY1BudgetAmount,Sheet1!S71_A2SubCode,$AC:$AC,Sheet1!S71_ItemType,$AD:$AD)","v":0},{"$f":"SUMIFS(Sheet1!S71_OY2BudgetAmount,Sheet1!S71_A2SubCode,$AC:$AC,Sheet1!S71_ItemType,$AD:$AD)","v":0},null,null,null,null,null,null,null,null,null,null,null,null,null,null,null,null,null,4202,"IE"]
[{"$f":"A107","v":"Water Storage"},null,{"$f":"SUMIFS(Sheet1!S71_PPPYearAmount,Sheet1!S71_A2SubCode,$AC:$AC,Sheet1!S71_ItemType,$AD:$AD)","v":0},{"$f":"SUMIFS(Sheet1!S71_PPYearAmount,Sheet1!S71_A2SubCode,$AC:$AC,Sheet1!S71_ItemType,$AD:$AD)","v":0},{"$f":"SUMIFS(Sheet1!S71_PYearAmount,Sheet1!S71_A2SubCode,$AC:$AC,Sheet1!S71_ItemType,$AD:$AD)","v":0},{"$f":"SUMIFS(Sheet1!S71_OriginalBudAmnt,Sheet1!S71_A2SubCode,$AC:$AC,Sheet1!S71_ItemType,$AD:$AD)","v":0},{"$f":"SUMIFS(Sheet1!S71_AdjustmentBudAmnt,Sheet1!S71_A2SubCode,$AC:$AC,Sheet1!S71_ItemType,$AD:$AD)","v":0},{"$f":"SUMIFS(Sheet1!S71_AdjustmentBudAmnt,Sheet1!S71_A2SubCode,$AC:$AC,Sheet1!S71_ItemType,$AD:$AD)","v":0},{"$f":"SUMIFS(Sheet1!S71_ASBudgetAmount,Sheet1!S71_A2SubCode,$AC:$AC,Sheet1!S71_ItemType,$AD:$AD)","v":0},{"$f":"SUMIFS(Sheet1!S71_OY1BudgetAmount,Sheet1!S71_A2SubCode,$AC:$AC,Sheet1!S71_ItemType,$AD:$AD)","v":0},{"$f":"SUMIFS(Sheet1!S71_OY2BudgetAmount,Sheet1!S71_A2SubCode,$AC:$AC,Sheet1!S71_ItemType,$AD:$AD)","v":0},null,null,null,null,null,null,null,null,null,null,null,null,null,null,null,null,null,4203,"IE"]
["Waste water management",null,{"$f":"SUM(C232:C235)","v":0},{"$f":"SUM(D232:D235)","v":0},0,0,0,0,0,0,0,null,null,null,null,null,null,null,null,null,null,null,null,null,null,null,null,null,null,""]
["Public Toilets",null,{"$f":"SUMIFS(Sheet1!S71_PPPYearAmount,Sheet1!S71_A2SubCode,$AC:$AC,Sheet1!S71_ItemType,$AD:$AD)","v":0},{"$f":"SUMIFS(Sheet1!S71_PPYearAmount,Sheet1!S71_A2SubCode,$AC:$AC,Sheet1!S71_ItemType,$AD:$AD)","v":0},{"$f":"SUMIFS(Sheet1!S71_PYearAmount,Sheet1!S71_A2SubCode,$AC:$AC,Sheet1!S71_ItemType,$AD:$AD)","v":0},{"$f":"SUMIFS(Sheet1!S71_OriginalBudAmnt,Sheet1!S71_A2SubCode,$AC:$AC,Sheet1!S71_ItemType,$AD:$AD)","v":0},{"$f":"SUMIFS(Sheet1!S71_AdjustmentBudAmnt,Sheet1!S71_A2SubCode,$AC:$AC,Sheet1!S71_ItemType,$AD:$AD)","v":0},{"$f":"SUMIFS(Sheet1!S71_AdjustmentBudAmnt,Sheet1!S71_A2SubCode,$AC:$AC,Sheet1!S71_ItemType,$AD:$AD)","v":0},{"$f":"SUMIFS(Sheet1!S71_ASBudgetAmount,Sheet1!S71_A2SubCode,$AC:$AC,Sheet1!S71_ItemType,$AD:$AD)","v":0},{"$f":"SUMIFS(Sheet1!S71_OY1BudgetAmount,Sheet1!S71_A2SubCode,$AC:$AC,Sheet1!S71_ItemType,$AD:$AD)","v":0},{"$f":"SUMIFS(Sheet1!S71_OY2BudgetAmount,Sheet1!S71_A2SubCode,$AC:$AC,Sheet1!S71_ItemType,$AD:$AD)","v":0},null,null,null,null,null,null,null,null,null,null,null,null,null,null,null,null,null,4301,"IE"]
["Sewerage",null,{"$f":"SUMIFS(Sheet1!S71_PPPYearAmount,Sheet1!S71_A2SubCode,$AC:$AC,Sheet1!S71_ItemType,$AD:$AD)","v":0},{"$f":"SUMIFS(Sheet1!S71_PPYearAmount,Sheet1!S71_A2SubCode,$AC:$AC,Sheet1!S71_ItemType,$AD:$AD)","v":0},{"$f":"SUMIFS(Sheet1!S71_PYearAmount,Sheet1!S71_A2SubCode,$AC:$AC,Sheet1!S71_ItemType,$AD:$AD)","v":0},{"$f":"SUMIFS(Sheet1!S71_OriginalBudAmnt,Sheet1!S71_A2SubCode,$AC:$AC,Sheet1!S71_ItemType,$AD:$AD)","v":0},{"$f":"SUMIFS(Sheet1!S71_AdjustmentBudAmnt,Sheet1!S71_A2SubCode,$AC:$AC,Sheet1!S71_ItemType,$AD:$AD)","v":0},{"$f":"SUMIFS(Sheet1!S71_AdjustmentBudAmnt,Sheet1!S71_A2SubCode,$AC:$AC,Sheet1!S71_ItemType,$AD:$AD)","v":0},{"$f":"SUMIFS(Sheet1!S71_ASBudgetAmount,Sheet1!S71_A2SubCode,$AC:$AC,Sheet1!S71_ItemType,$AD:$AD)","v":0},{"$f":"SUMIFS(Sheet1!S71_OY1BudgetAmount,Sheet1!S71_A2SubCode,$AC:$AC,Sheet1!S71_ItemType,$AD:$AD)","v":0},{"$f":"SUMIFS(Sheet1!S71_OY2BudgetAmount,Sheet1!S71_A2SubCode,$AC:$AC,Sheet1!S71_ItemType,$AD:$AD)","v":0},null,null,null,null,null,null,null,null,null,null,null,null,null,null,null,null,null,4302,"IE"]
["Storm Water Management",null,{"$f":"SUMIFS(Sheet1!S71_PPPYearAmount,Sheet1!S71_A2SubCode,$AC:$AC,Sheet1!S71_ItemType,$AD:$AD)","v":0},{"$f":"SUMIFS(Sheet1!S71_PPYearAmount,Sheet1!S71_A2SubCode,$AC:$AC,Sheet1!S71_ItemType,$AD:$AD)","v":0},{"$f":"SUMIFS(Sheet1!S71_PYearAmount,Sheet1!S71_A2SubCode,$AC:$AC,Sheet1!S71_ItemType,$AD:$AD)","v":0},{"$f":"SUMIFS(Sheet1!S71_OriginalBudAmnt,Sheet1!S71_A2SubCode,$AC:$AC,Sheet1!S71_ItemType,$AD:$AD)","v":0},{"$f":"SUMIFS(Sheet1!S71_AdjustmentBudAmnt,Sheet1!S71_A2SubCode,$AC:$AC,Sheet1!S71_ItemType,$AD:$AD)","v":0},{"$f":"SUMIFS(Sheet1!S71_AdjustmentBudAmnt,Sheet1!S71_A2SubCode,$AC:$AC,Sheet1!S71_ItemType,$AD:$AD)","v":0},{"$f":"SUMIFS(Sheet1!S71_ASBudgetAmount,Sheet1!S71_A2SubCode,$AC:$AC,Sheet1!S71_ItemType,$AD:$AD)","v":0},{"$f":"SUMIFS(Sheet1!S71_OY1BudgetAmount,Sheet1!S71_A2SubCode,$AC:$AC,Sheet1!S71_ItemType,$AD:$AD)","v":0},{"$f":"SUMIFS(Sheet1!S71_OY2BudgetAmount,Sheet1!S71_A2SubCode,$AC:$AC,Sheet1!S71_ItemType,$AD:$AD)","v":0},null,null,null,null,null,null,null,null,null,null,null,null,null,null,null,null,null,4303,"IE"]
["Waste Water Treatment",null,{"$f":"SUMIFS(Sheet1!S71_PPPYearAmount,Sheet1!S71_A2SubCode,$AC:$AC,Sheet1!S71_ItemType,$AD:$AD)","v":0},{"$f":"SUMIFS(Sheet1!S71_PPYearAmount,Sheet1!S71_A2SubCode,$AC:$AC,Sheet1!S71_ItemType,$AD:$AD)","v":0},{"$f":"SUMIFS(Sheet1!S71_PYearAmount,Sheet1!S71_A2SubCode,$AC:$AC,Sheet1!S71_ItemType,$AD:$AD)","v":0},{"$f":"SUMIFS(Sheet1!S71_OriginalBudAmnt,Sheet1!S71_A2SubCode,$AC:$AC,Sheet1!S71_ItemType,$AD:$AD)","v":0},{"$f":"SUMIFS(Sheet1!S71_AdjustmentBudAmnt,Sheet1!S71_A2SubCode,$AC:$AC,Sheet1!S71_ItemType,$AD:$AD)","v":0},{"$f":"SUMIFS(Sheet1!S71_AdjustmentBudAmnt,Sheet1!S71_A2SubCode,$AC:$AC,Sheet1!S71_ItemType,$AD:$AD)","v":0},{"$f":"SUMIFS(Sheet1!S71_ASBudgetAmount,Sheet1!S71_A2SubCode,$AC:$AC,Sheet1!S71_ItemType,$AD:$AD)","v":0},{"$f":"SUMIFS(Sheet1!S71_OY1BudgetAmount,Sheet1!S71_A2SubCode,$AC:$AC,Sheet1!S71_ItemType,$AD:$AD)","v":0},{"$f":"SUMIFS(Sheet1!S71_OY2BudgetAmount,Sheet1!S71_A2SubCode,$AC:$AC,Sheet1!S71_ItemType,$AD:$AD)","v":0},null,null,null,null,null,null,null,null,null,null,null,null,null,null,null,null,null,4304,"IE"]
["Waste management",null,{"$f":"SUM(C237:C240)","v":0},{"$f":"SUM(D237:D240)","v":0},0,0,0,0,0,0,0,null,null,null,null,null,null,null,null,null,null,null,null,null,null,null,null,null,null,""]
["Recycling",null,{"$f":"SUMIFS(Sheet1!S71_PPPYearAmount,Sheet1!S71_A2SubCode,$AC:$AC,Sheet1!S71_ItemType,$AD:$AD)","v":0},{"$f":"SUMIFS(Sheet1!S71_PPYearAmount,Sheet1!S71_A2SubCode,$AC:$AC,Sheet1!S71_ItemType,$AD:$AD)","v":0},{"$f":"SUMIFS(Sheet1!S71_PYearAmount,Sheet1!S71_A2SubCode,$AC:$AC,Sheet1!S71_ItemType,$AD:$AD)","v":0},{"$f":"SUMIFS(Sheet1!S71_OriginalBudAmnt,Sheet1!S71_A2SubCode,$AC:$AC,Sheet1!S71_ItemType,$AD:$AD)","v":0},{"$f":"SUMIFS(Sheet1!S71_AdjustmentBudAmnt,Sheet1!S71_A2SubCode,$AC:$AC,Sheet1!S71_ItemType,$AD:$AD)","v":0},{"$f":"SUMIFS(Sheet1!S71_AdjustmentBudAmnt,Sheet1!S71_A2SubCode,$AC:$AC,Sheet1!S71_ItemType,$AD:$AD)","v":0},{"$f":"SUMIFS(Sheet1!S71_ASBudgetAmount,Sheet1!S71_A2SubCode,$AC:$AC,Sheet1!S71_ItemType,$AD:$AD)","v":0},{"$f":"SUMIFS(Sheet1!S71_OY1BudgetAmount,Sheet1!S71_A2SubCode,$AC:$AC,Sheet1!S71_ItemType,$AD:$AD)","v":0},{"$f":"SUMIFS(Sheet1!S71_OY2BudgetAmount,Sheet1!S71_A2SubCode,$AC:$AC,Sheet1!S71_ItemType,$AD:$AD)","v":0},null,null,null,null,null,null,null,null,null,null,null,null,null,null,null,null,null,4401,"IE"]
["Solid Waste Disposal (Landfill Sites)",null,{"$f":"SUMIFS(Sheet1!S71_PPPYearAmount,Sheet1!S71_A2SubCode,$AC:$AC,Sheet1!S71_ItemType,$AD:$AD)","v":0},{"$f":"SUMIFS(Sheet1!S71_PPYearAmount,Sheet1!S71_A2SubCode,$AC:$AC,Sheet1!S71_ItemType,$AD:$AD)","v":0},{"$f":"SUMIFS(Sheet1!S71_PYearAmount,Sheet1!S71_A2SubCode,$AC:$AC,Sheet1!S71_ItemType,$AD:$AD)","v":0},{"$f":"SUMIFS(Sheet1!S71_OriginalBudAmnt,Sheet1!S71_A2SubCode,$AC:$AC,Sheet1!S71_ItemType,$AD:$AD)","v":0},{"$f":"SUMIFS(Sheet1!S71_AdjustmentBudAmnt,Sheet1!S71_A2SubCode,$AC:$AC,Sheet1!S71_ItemType,$AD:$AD)","v":0},{"$f":"SUMIFS(Sheet1!S71_AdjustmentBudAmnt,Sheet1!S71_A2SubCode,$AC:$AC,Sheet1!S71_ItemType,$AD:$AD)","v":0},{"$f":"SUMIFS(Sheet1!S71_ASBudgetAmount,Sheet1!S71_A2SubCode,$AC:$AC,Sheet1!S71_ItemType,$AD:$AD)","v":0},{"$f":"SUMIFS(Sheet1!S71_OY1BudgetAmount,Sheet1!S71_A2SubCode,$AC:$AC,Sheet1!S71_ItemType,$AD:$AD)","v":0},{"$f":"SUMIFS(Sheet1!S71_OY2BudgetAmount,Sheet1!S71_A2SubCode,$AC:$AC,Sheet1!S71_ItemType,$AD:$AD)","v":0},null,null,null,null,null,null,null,null,null,null,null,null,null,null,null,null,null,4402,"IE"]
["Solid Waste Removal",null,{"$f":"SUMIFS(Sheet1!S71_PPPYearAmount,Sheet1!S71_A2SubCode,$AC:$AC,Sheet1!S71_ItemType,$AD:$AD)","v":0},{"$f":"SUMIFS(Sheet1!S71_PPYearAmount,Sheet1!S71_A2SubCode,$AC:$AC,Sheet1!S71_ItemType,$AD:$AD)","v":0},{"$f":"SUMIFS(Sheet1!S71_PYearAmount,Sheet1!S71_A2SubCode,$AC:$AC,Sheet1!S71_ItemType,$AD:$AD)","v":0},{"$f":"SUMIFS(Sheet1!S71_OriginalBudAmnt,Sheet1!S71_A2SubCode,$AC:$AC,Sheet1!S71_ItemType,$AD:$AD)","v":0},{"$f":"SUMIFS(Sheet1!S71_AdjustmentBudAmnt,Sheet1!S71_A2SubCode,$AC:$AC,Sheet1!S71_ItemType,$AD:$AD)","v":0},{"$f":"SUMIFS(Sheet1!S71_AdjustmentBudAmnt,Sheet1!S71_A2SubCode,$AC:$AC,Sheet1!S71_ItemType,$AD:$AD)","v":0},{"$f":"SUMIFS(Sheet1!S71_ASBudgetAmount,Sheet1!S71_A2SubCode,$AC:$AC,Sheet1!S71_ItemType,$AD:$AD)","v":0},{"$f":"SUMIFS(Sheet1!S71_OY1BudgetAmount,Sheet1!S71_A2SubCode,$AC:$AC,Sheet1!S71_ItemType,$AD:$AD)","v":0},{"$f":"SUMIFS(Sheet1!S71_OY2BudgetAmount,Sheet1!S71_A2SubCode,$AC:$AC,Sheet1!S71_ItemType,$AD:$AD)","v":0},null,null,null,null,null,null,null,null,null,null,null,null,null,null,null,null,null,4403,"IE"]
["Street Cleaning",null,{"$f":"SUMIFS(Sheet1!S71_PPPYearAmount,Sheet1!S71_A2SubCode,$AC:$AC,Sheet1!S71_ItemType,$AD:$AD)","v":0},{"$f":"SUMIFS(Sheet1!S71_PPYearAmount,Sheet1!S71_A2SubCode,$AC:$AC,Sheet1!S71_ItemType,$AD:$AD)","v":0},{"$f":"SUMIFS(Sheet1!S71_PYearAmount,Sheet1!S71_A2SubCode,$AC:$AC,Sheet1!S71_ItemType,$AD:$AD)","v":0},{"$f":"SUMIFS(Sheet1!S71_OriginalBudAmnt,Sheet1!S71_A2SubCode,$AC:$AC,Sheet1!S71_ItemType,$AD:$AD)","v":0},{"$f":"SUMIFS(Sheet1!S71_AdjustmentBudAmnt,Sheet1!S71_A2SubCode,$AC:$AC,Sheet1!S71_ItemType,$AD:$AD)","v":0},{"$f":"SUMIFS(Sheet1!S71_AdjustmentBudAmnt,Sheet1!S71_A2SubCode,$AC:$AC,Sheet1!S71_ItemType,$AD:$AD)","v":0},{"$f":"SUMIFS(Sheet1!S71_ASBudgetAmount,Sheet1!S71_A2SubCode,$AC:$AC,Sheet1!S71_ItemType,$AD:$AD)","v":0},{"$f":"SUMIFS(Sheet1!S71_OY1BudgetAmount,Sheet1!S71_A2SubCode,$AC:$AC,Sheet1!S71_ItemType,$AD:$AD)","v":0},{"$f":"SUMIFS(Sheet1!S71_OY2BudgetAmount,Sheet1!S71_A2SubCode,$AC:$AC,Sheet1!S71_ItemType,$AD:$AD)","v":0},null,null,null,null,null,null,null,null,null,null,null,null,null,null,null,null,null,4404,"IE"]
["Other",null,{"$f":"SUM(C242:C247)","v":0},{"$f":"SUM(D242:D247)","v":0},0,0,0,0,0,0,0,null,null,null,null,null,null,null,null,null,null,null,null,null,null,null,null,null,null,""]
["Abattoirs",null,{"$f":"SUMIFS(Sheet1!S71_PPPYearAmount,Sheet1!S71_A2SubCode,$AC:$AC,Sheet1!S71_ItemType,$AD:$AD)","v":0},{"$f":"SUMIFS(Sheet1!S71_PPYearAmount,Sheet1!S71_A2SubCode,$AC:$AC,Sheet1!S71_ItemType,$AD:$AD)","v":0},{"$f":"SUMIFS(Sheet1!S71_PYearAmount,Sheet1!S71_A2SubCode,$AC:$AC,Sheet1!S71_ItemType,$AD:$AD)","v":0},{"$f":"SUMIFS(Sheet1!S71_OriginalBudAmnt,Sheet1!S71_A2SubCode,$AC:$AC,Sheet1!S71_ItemType,$AD:$AD)","v":0},{"$f":"SUMIFS(Sheet1!S71_AdjustmentBudAmnt,Sheet1!S71_A2SubCode,$AC:$AC,Sheet1!S71_ItemType,$AD:$AD)","v":0},{"$f":"SUMIFS(Sheet1!S71_AdjustmentBudAmnt,Sheet1!S71_A2SubCode,$AC:$AC,Sheet1!S71_ItemType,$AD:$AD)","v":0},{"$f":"SUMIFS(Sheet1!S71_ASBudgetAmount,Sheet1!S71_A2SubCode,$AC:$AC,Sheet1!S71_ItemType,$AD:$AD)","v":0},{"$f":"SUMIFS(Sheet1!S71_OY1BudgetAmount,Sheet1!S71_A2SubCode,$AC:$AC,Sheet1!S71_ItemType,$AD:$AD)","v":0},{"$f":"SUMIFS(Sheet1!S71_OY2BudgetAmount,Sheet1!S71_A2SubCode,$AC:$AC,Sheet1!S71_ItemType,$AD:$AD)","v":0},null,null,null,null,null,null,null,null,null,null,null,null,null,null,null,null,null,5001,"IE"]
["Air Transport",null,{"$f":"SUMIFS(Sheet1!S71_PPPYearAmount,Sheet1!S71_A2SubCode,$AC:$AC,Sheet1!S71_ItemType,$AD:$AD)","v":0},{"$f":"SUMIFS(Sheet1!S71_PPYearAmount,Sheet1!S71_A2SubCode,$AC:$AC,Sheet1!S71_ItemType,$AD:$AD)","v":0},{"$f":"SUMIFS(Sheet1!S71_PYearAmount,Sheet1!S71_A2SubCode,$AC:$AC,Sheet1!S71_ItemType,$AD:$AD)","v":0},{"$f":"SUMIFS(Sheet1!S71_OriginalBudAmnt,Sheet1!S71_A2SubCode,$AC:$AC,Sheet1!S71_ItemType,$AD:$AD)","v":0},{"$f":"SUMIFS(Sheet1!S71_AdjustmentBudAmnt,Sheet1!S71_A2SubCode,$AC:$AC,Sheet1!S71_ItemType,$AD:$AD)","v":0},{"$f":"SUMIFS(Sheet1!S71_AdjustmentBudAmnt,Sheet1!S71_A2SubCode,$AC:$AC,Sheet1!S71_ItemType,$AD:$AD)","v":0},{"$f":"SUMIFS(Sheet1!S71_ASBudgetAmount,Sheet1!S71_A2SubCode,$AC:$AC,Sheet1!S71_ItemType,$AD:$AD)","v":0},{"$f":"SUMIFS(Sheet1!S71_OY1BudgetAmount,Sheet1!S71_A2SubCode,$AC:$AC,Sheet1!S71_ItemType,$AD:$AD)","v":0},{"$f":"SUMIFS(Sheet1!S71_OY2BudgetAmount,Sheet1!S71_A2SubCode,$AC:$AC,Sheet1!S71_ItemType,$AD:$AD)","v":0},null,null,null,null,null,null,null,null,null,null,null,null,null,null,null,null,null,5002,"IE"]
["Forestry ",null,{"$f":"SUMIFS(Sheet1!S71_PPPYearAmount,Sheet1!S71_A2SubCode,$AC:$AC,Sheet1!S71_ItemType,$AD:$AD)","v":0},{"$f":"SUMIFS(Sheet1!S71_PPYearAmount,Sheet1!S71_A2SubCode,$AC:$AC,Sheet1!S71_ItemType,$AD:$AD)","v":0},{"$f":"SUMIFS(Sheet1!S71_PYearAmount,Sheet1!S71_A2SubCode,$AC:$AC,Sheet1!S71_ItemType,$AD:$AD)","v":0},{"$f":"SUMIFS(Sheet1!S71_OriginalBudAmnt,Sheet1!S71_A2SubCode,$AC:$AC,Sheet1!S71_ItemType,$AD:$AD)","v":0},{"$f":"SUMIFS(Sheet1!S71_AdjustmentBudAmnt,Sheet1!S71_A2SubCode,$AC:$AC,Sheet1!S71_ItemType,$AD:$AD)","v":0},{"$f":"SUMIFS(Sheet1!S71_AdjustmentBudAmnt,Sheet1!S71_A2SubCode,$AC:$AC,Sheet1!S71_ItemType,$AD:$AD)","v":0},{"$f":"SUMIFS(Sheet1!S71_ASBudgetAmount,Sheet1!S71_A2SubCode,$AC:$AC,Sheet1!S71_ItemType,$AD:$AD)","v":0},{"$f":"SUMIFS(Sheet1!S71_OY1BudgetAmount,Sheet1!S71_A2SubCode,$AC:$AC,Sheet1!S71_ItemType,$AD:$AD)","v":0},{"$f":"SUMIFS(Sheet1!S71_OY2BudgetAmount,Sheet1!S71_A2SubCode,$AC:$AC,Sheet1!S71_ItemType,$AD:$AD)","v":0},null,null,null,null,null,null,null,null,null,null,null,null,null,null,null,null,null,5003,"IE"]
["Licensing and Regulation",null,{"$f":"SUMIFS(Sheet1!S71_PPPYearAmount,Sheet1!S71_A2SubCode,$AC:$AC,Sheet1!S71_ItemType,$AD:$AD)","v":0},{"$f":"SUMIFS(Sheet1!S71_PPYearAmount,Sheet1!S71_A2SubCode,$AC:$AC,Sheet1!S71_ItemType,$AD:$AD)","v":0},{"$f":"SUMIFS(Sheet1!S71_PYearAmount,Sheet1!S71_A2SubCode,$AC:$AC,Sheet1!S71_ItemType,$AD:$AD)","v":0},{"$f":"SUMIFS(Sheet1!S71_OriginalBudAmnt,Sheet1!S71_A2SubCode,$AC:$AC,Sheet1!S71_ItemType,$AD:$AD)","v":0},{"$f":"SUMIFS(Sheet1!S71_AdjustmentBudAmnt,Sheet1!S71_A2SubCode,$AC:$AC,Sheet1!S71_ItemType,$AD:$AD)","v":0},{"$f":"SUMIFS(Sheet1!S71_AdjustmentBudAmnt,Sheet1!S71_A2SubCode,$AC:$AC,Sheet1!S71_ItemType,$AD:$AD)","v":0},{"$f":"SUMIFS(Sheet1!S71_ASBudgetAmount,Sheet1!S71_A2SubCode,$AC:$AC,Sheet1!S71_ItemType,$AD:$AD)","v":0},{"$f":"SUMIFS(Sheet1!S71_OY1BudgetAmount,Sheet1!S71_A2SubCode,$AC:$AC,Sheet1!S71_ItemType,$AD:$AD)","v":0},{"$f":"SUMIFS(Sheet1!S71_OY2BudgetAmount,Sheet1!S71_A2SubCode,$AC:$AC,Sheet1!S71_ItemType,$AD:$AD)","v":0},null,null,null,null,null,null,null,null,null,null,null,null,null,null,null,null,null,5004,"IE"]
["Markets",null,{"$f":"SUMIFS(Sheet1!S71_PPPYearAmount,Sheet1!S71_A2SubCode,$AC:$AC,Sheet1!S71_ItemType,$AD:$AD)","v":0},{"$f":"SUMIFS(Sheet1!S71_PPYearAmount,Sheet1!S71_A2SubCode,$AC:$AC,Sheet1!S71_ItemType,$AD:$AD)","v":0},{"$f":"SUMIFS(Sheet1!S71_PYearAmount,Sheet1!S71_A2SubCode,$AC:$AC,Sheet1!S71_ItemType,$AD:$AD)","v":0},{"$f":"SUMIFS(Sheet1!S71_OriginalBudAmnt,Sheet1!S71_A2SubCode,$AC:$AC,Sheet1!S71_ItemType,$AD:$AD)","v":0},{"$f":"SUMIFS(Sheet1!S71_AdjustmentBudAmnt,Sheet1!S71_A2SubCode,$AC:$AC,Sheet1!S71_ItemType,$AD:$AD)","v":0},{"$f":"SUMIFS(Sheet1!S71_AdjustmentBudAmnt,Sheet1!S71_A2SubCode,$AC:$AC,Sheet1!S71_ItemType,$AD:$AD)","v":0},{"$f":"SUMIFS(Sheet1!S71_ASBudgetAmount,Sheet1!S71_A2SubCode,$AC:$AC,Sheet1!S71_ItemType,$AD:$AD)","v":0},{"$f":"SUMIFS(Sheet1!S71_OY1BudgetAmount,Sheet1!S71_A2SubCode,$AC:$AC,Sheet1!S71_ItemType,$AD:$AD)","v":0},{"$f":"SUMIFS(Sheet1!S71_OY2BudgetAmount,Sheet1!S71_A2SubCode,$AC:$AC,Sheet1!S71_ItemType,$AD:$AD)","v":0},null,null,null,null,null,null,null,null,null,null,null,null,null,null,null,null,null,5005,"IE"]
["Tourism",null,{"$f":"SUMIFS(Sheet1!S71_PPPYearAmount,Sheet1!S71_A2SubCode,$AC:$AC,Sheet1!S71_ItemType,$AD:$AD)","v":0},{"$f":"SUMIFS(Sheet1!S71_PPYearAmount,Sheet1!S71_A2SubCode,$AC:$AC,Sheet1!S71_ItemType,$AD:$AD)","v":0},{"$f":"SUMIFS(Sheet1!S71_PYearAmount,Sheet1!S71_A2SubCode,$AC:$AC,Sheet1!S71_ItemType,$AD:$AD)","v":0},{"$f":"SUMIFS(Sheet1!S71_OriginalBudAmnt,Sheet1!S71_A2SubCode,$AC:$AC,Sheet1!S71_ItemType,$AD:$AD)","v":0},{"$f":"SUMIFS(Sheet1!S71_AdjustmentBudAmnt,Sheet1!S71_A2SubCode,$AC:$AC,Sheet1!S71_ItemType,$AD:$AD)","v":0},{"$f":"SUMIFS(Sheet1!S71_AdjustmentBudAmnt,Sheet1!S71_A2SubCode,$AC:$AC,Sheet1!S71_ItemType,$AD:$AD)","v":0},{"$f":"SUMIFS(Sheet1!S71_ASBudgetAmount,Sheet1!S71_A2SubCode,$AC:$AC,Sheet1!S71_ItemType,$AD:$AD)","v":0},{"$f":"SUMIFS(Sheet1!S71_OY1BudgetAmount,Sheet1!S71_A2SubCode,$AC:$AC,Sheet1!S71_ItemType,$AD:$AD)","v":0},{"$f":"SUMIFS(Sheet1!S71_OY2BudgetAmount,Sheet1!S71_A2SubCode,$AC:$AC,Sheet1!S71_ItemType,$AD:$AD)","v":0},null,null,null,null,null,null,null,null,null,null,null,null,null,null,null,null,null,5006,"IE"]
[{"$f":"\"Total \"&A127","v":"Total Expenditure - Functional"},3,{"$f":"C128+C148+C198+C222+C241","v":0},62014861,67699905,67542216,68896774,68896774,62985185,68726183,70128751]
[{"$f":"result","v":"Surplus/(Deficit) for the year"},null,{"$f":"C125-C248","v":0},6950897,262879,404771,791409,791409,485998,21817,23248]
[{"$f":"head27a","v":"References"}]
["1. Government Finance Statistics Functions and Sub-functions are standardised to assist national and international accounts and comparison"]
["2. Total Revenue by Functional Classification must reconcile to total operating revenue shown in Financial Performance (revenue and expenditure)"]
["3. Total Expenditure by Functional Classification must reconcile to total operating expenditure shown in Financial Performance (revenue and expenditure)"]
["4. All amounts must be classified under a Functional classification. The GFS function 'Other' is only for Abbatoirs, Air Transport,  Forestry, Licensing and Regulation, Markets and Tourism - and if used must be supported by footnotes. Nothing else may be placed under 'Other'. Assign associate share to relevant classification"]
[]
[]
["check oprev balance",null,{"$f":"C125-'A4-FinPerf RE'!C59","v":0},{"$f":"D125-'A4-FinPerf RE'!D59","v":0},{"$f":"E125-'A4-FinPerf RE'!E59","v":0},{"$f":"F125-'A4-FinPerf RE'!F59","v":0},{"$f":"G125-'A4-FinPerf RE'!G59","v":0},{"$f":"H125-'A4-FinPerf RE'!H59","v":0},{"$f":"I125-'A4-FinPerf RE'!J59","v":0},{"$f":"J125-'A4-FinPerf RE'!K59","v":0},{"$f":"K125-'A4-FinPerf RE'!L59","v":0}]
["check opexp balance",null,{"$f":"C248-'A4-FinPerf RE'!C35","v":0},{"$f":"D248-'A4-FinPerf RE'!D35","v":38097},{"$f":"E248-'A4-FinPerf RE'!E35","v":114371},{"$f":"F248-'A4-FinPerf RE'!F35","v":0},{"$f":"G248-'A4-FinPerf RE'!G35","v":0},{"$f":"H248-'A4-FinPerf RE'!H35","v":0},{"$f":"I248-'A4-FinPerf RE'!J35","v":0},{"$f":"J248-'A4-FinPerf RE'!K35","v":0},{"$f":"K248-'A4-FinPerf RE'!L35","v":0}]

{"sheet":"A3-FinPerf V","index":19,"n_rows":45,"n_cols":23,"rows_kept":45,"cut":false,"hidden":false,"merged":[[1,5,1,7],[1,8,1,10],[1,11,1,22]]}
[{"$f":"muni&\" - \"&Approve2","v":"DC16 Xhariep - Table A3 Budgeted Financial Performance (revenue and expenditure by municipal vote)"}]
[{"$f":"Vdesc","v":"Vote Description"},{"$f":"head27","v":"Ref"},{"$f":"head1b","v":"2017/18"},{"$f":"head1A","v":"2018/19"},{"$f":"Head1","v":"2019/20"},{"$f":"Head2","v":"Current Year 2020/21"},null,null,{"$f":"Head3","v":"2021/22 Medium Term Revenue & Expenditure Framework"},null,null,{"$f":"Head4","v":"LTFS"}]
["R thousand",null,{"$f":"Head5","v":"Audited Outcome"},{"$f":"Head5","v":"Audited Outcome"},{"$f":"Head5","v":"Audited Outcome"},{"$f":"Head6","v":"Original Budget"},{"$f":"Head7","v":"Adjusted Budget"},{"$f":"Head8","v":"Full Year Forecast"},{"$f":"Head9","v":"Budget Year 2021/22"},{"$f":"Head10","v":"Budget Year +1 2022/23"},{"$f":"Head11","v":"Budget Year +2 2023/24"},{"$f":"Head12","v":"Forecast 2024/25"},{"$f":"Head13","v":"Forecast 2025/26"},{"$f":"Head14","v":"Forecast 2026/27"},{"$f":"Head15","v":"Forecast 2027/28"},{"$f":"Head16","v":"Forecast 2028/29"},{"$f":"Head17","v":"Forecast 2029/30"},{"$f":"Head18","v":"Forecast 2030/31"},{"$f":"Head19","v":"Forecast 2031/32"},{"$f":"Head20","v":"Forecast 2032/33"},{"$f":"Head21","v":"Forecast 2033/34"},{"$f":"Head22","v":"Forecast 2034/35"},{"$f":"Head23","v":"Forecast 2035/36"}]
["Revenue by Vote",1]
[{"$f":"A3A!A5","v":"Vote 1 - Executive and Council"},null,{"$f":"A3A!C5","v":0},{"$f":"A3A!D5","v":15857799},{"$f":"A3A!E5","v":15595354},{"$f":"A3A!F5","v":14666057},{"$f":"A3A!G5","v":15115807},{"$f":"A3A!H5","v":15115807},{"$f":"A3A!I5","v":13082807},{"$f":"A3A!J5","v":25325600},{"$f":"A3A!K5","v":25641200}]
[{"$f":"A3A!A16","v":"Vote 2 - Finance and Administration"},null,{"$f":"A3A!C16","v":0},{"$f":"A3A!D16","v":38007481},{"$f":"A3A!E16","v":36746261},{"$f":"A3A!F16","v":38142142},{"$f":"A3A!G16","v":38983838},{"$f":"A3A!H16","v":38983838},{"$f":"A3A!I16","v":35475838},{"$f":"A3A!J16","v":28050876},{"$f":"A3A!K16","v":28741268}]
[{"$f":"A3A!A27","v":"Vote 3 - Planning and Development"},null,{"$f":"A3A!C27","v":0},{"$f":"A3A!D27","v":15100478},{"$f":"A3A!E27","v":15621169},{"$f":"A3A!F27","v":15138788},{"$f":"A3A!G27","v":15588538},{"$f":"A3A!H27","v":15588538},{"$f":"A3A!I27","v":14912538},{"$f":"A3A!J27","v":15371524},{"$f":"A3A!K27","v":15769531}]
[{"$f":"A3A!A38","v":"Vote 4 - Community and Social Services"},null,{"$f":"A3A!C38","v":0},{"$f":"A3A!D38","v":0},{"$f":"A3A!E38","v":0},{"$f":"A3A!F38","v":0},{"$f":"A3A!G38","v":0},{"$f":"A3A!H38","v":0},{"$f":"A3A!I38","v":0},{"$f":"A3A!J38","v":0},{"$f":"A3A!K38","v":0}]
[{"$f":"A3A!A49","v":"Vote 5 - Environmental Protection"},null,{"$f":"A3A!C49","v":0},{"$f":"A3A!D49","v":0},{"$f":"A3A!E49","v":0},{"$f":"A3A!F49","v":0},{"$f":"A3A!G49","v":0},{"$f":"A3A!H49","v":0},{"$f":"A3A!I49","v":0},{"$f":"A3A!J49","v":0},{"$f":"A3A!K49","v":0}]
[{"$f":"A3A!A60","v":"Vote 6 - [NAME OF VOTE 6]"},null,{"$f":"A3A!C60","v":0},{"$f":"A3A!D60","v":0},{"$f":"A3A!E60","v":0},{"$f":"A3A!F60","v":0},{"$f":"A3A!G60","v":0},{"$f":"A3A!H60","v":0},{"$f":"A3A!I60","v":0},{"$f":"A3A!J60","v":0},{"$f":"A3A!K60","v":0}]
[{"$f":"A3A!A71","v":"Vote 7 - [NAME OF VOTE 7]"},null,{"$f":"A3A!C71","v":0},{"$f":"A3A!D71","v":0},{"$f":"A3A!E71","v":0},{"$f":"A3A!F71","v":0},{"$f":"A3A!G71","v":0},{"$f":"A3A!H71","v":0},{"$f":"A3A!I71","v":0},{"$f":"A3A!J71","v":0},{"$f":"A3A!K71","v":0}]
[{"$f":"A3A!A82","v":"Vote 8 - [NAME OF VOTE 8]"},null,{"$f":"A3A!C82","v":0},{"$f":"A3A!D82","v":0},{"$f":"A3A!E82","v":0},{"$f":"A3A!F82","v":0},{"$f":"A3A!G82","v":0},{"$f":"A3A!H82","v":0},{"$f":"A3A!I82","v":0},{"$f":"A3A!J82","v":0},{"$f":"A3A!K82","v":0}]
[{"$f":"A3A!A93","v":"Vote 9 - [NAME OF VOTE 9]"},null,{"$f":"A3A!C93","v":0},{"$f":"A3A!D93","v":0},{"$f":"A3A!E93","v":0},{"$f":"A3A!F93","v":0},{"$f":"A3A!G93","v":0},{"$f":"A3A!H93","v":0},{"$f":"A3A!I93","v":0},{"$f":"A3A!J93","v":0},{"$f":"A3A!K93","v":0}]
[{"$f":"A3A!A104","v":"Vote 10 - [NAME OF VOTE 10]"},null,{"$f":"A3A!C104","v":0},{"$f":"A3A!D104","v":0},{"$f":"A3A!E104","v":0},{"$f":"A3A!F104","v":0},{"$f":"A3A!G104","v":0},{"$f":"A3A!H104","v":0},{"$f":"A3A!I104","v":0},{"$f":"A3A!J104","v":0},{"$f":"A3A!K104","v":0}]
[{"$f":"A3A!A115","v":"Vote 11 - [NAME OF VOTE 11]"},null,{"$f":"A3A!C115","v":0},{"$f":"A3A!D115","v":0},{"$f":"A3A!E115","v":0},{"$f":"A3A!F115","v":0},{"$f":"A3A!G115","v":0},{"$f":"A3A!H115","v":0},{"$f":"A3A!I115","v":0},{"$f":"A3A!J115","v":0},{"$f":"A3A!K115","v":0},{"$f":"A5A!L115","v":0}]
[{"$f":"A3A!A126","v":"Vote 12 - [NAME OF VOTE 12]"},null,{"$f":"A3A!C126","v":0},{"$f":"A3A!D126","v":0},{"$f":"A3A!E126","v":0},{"$f":"A3A!F126","v":0},{"$f":"A3A!G126","v":0},{"$f":"A3A!H126","v":0},{"$f":"A3A!I126","v":0},{"$f":"A3A!J126","v":0},{"$f":"A3A!K126","v":0},{"$f":"A5A!L126","v":0}]
[{"$f":"A3A!A137","v":"Vote 13 - [NAME OF VOTE 13]"},null,{"$f":"A3A!C137","v":0},{"$f":"A3A!D137","v":0},{"$f":"A3A!E137","v":0},{"$f":"A3A!F137","v":0},{"$f":"A3A!G137","v":0},{"$f":"A3A!H137","v":0},{"$f":"A3A!I137","v":0},{"$f":"A3A!J137","v":0},{"$f":"A3A!K137","v":0},{"$f":"A5A!L137","v":0}]
[{"$f":"A3A!A148","v":"Vote 14 - [NAME OF VOTE 14]"},null,{"$f":"A3A!C148","v":0},{"$f":"A3A!D148","v":0},{"$f":"A3A!E148","v":0},{"$f":"A3A!F148","v":0},{"$f":"A3A!G148","v":0},{"$f":"A3A!H148","v":0},{"$f":"A3A!I148","v":0},{"$f":"A3A!J148","v":0},{"$f":"A3A!K148","v":0},{"$f":"A5A!L148","v":0}]
[{"$f":"A3A!A159","v":"Vote 15 - [NAME OF VOTE 15]"},null,{"$f":"A3A!C159","v":0},{"$f":"A3A!D159","v":0},{"$f":"A3A!E159","v":0},{"$f":"A3A!F159","v":0},{"$f":"A3A!G159","v":0},{"$f":"A3A!H159","v":0},{"$f":"A3A!I159","v":0},{"$f":"A3A!J159","v":0},{"$f":"A3A!K159","v":0},{"$f":"A5A!L159","v":0}]
["Total Revenue by Vote",2,{"$f":"SUM(C5:C19)","v":0},{"$f":"SUM(D5:D19)","v":68965758},67962784,67946987,69688183,69688183,63471183,68748000,70151999]
[]
["Expenditure by Vote to be appropriated",1]
[{"$f":"A3A!A173","v":"Vote 1 - Executive and Council"},null,{"$f":"A3A!C173","v":0},{"$f":"A3A!D173","v":15725174},{"$f":"A3A!E173","v":15336236},{"$f":"A3A!F173","v":16002895},{"$f":"A3A!G173","v":15536359},{"$f":"A3A!H173","v":15536359},{"$f":"A3A!I173","v":13776650},{"$f":"A3A!J173","v":15327072},{"$f":"A3A!K173","v":15718132}]
[{"$f":"A3A!A184","v":"Vote 2 - Finance and Administration"},null,{"$f":"A3A!C184","v":0},{"$f":"A3A!D184","v":32508182},{"$f":"A3A!E184","v":39116936},{"$f":"A3A!F184","v":36808693},{"$f":"A3A!G184","v":38381231},{"$f":"A3A!H184","v":38381231},{"$f":"A3A!I184","v":33940911},{"$f":"A3A!J184","v":37769532},{"$f":"A3A!K184","v":38380945}]
[{"$f":"A3A!A195","v":"Vote 3 - Planning and Development"},null,{"$f":"A3A!C195","v":0},{"$f":"A3A!D195","v":13722082},{"$f":"A3A!E195","v":13246063},{"$f":"A3A!F195","v":13730628},{"$f":"A3A!G195","v":14229184},{"$f":"A3A!H195","v":14229184},{"$f":"A3A!I195","v":15117624},{"$f":"A3A!J195","v":15329579},{"$f":"A3A!K195","v":15729674}]
[{"$f":"A3A!A206","v":"Vote 4 - Community and Social Services"},null,{"$f":"A3A!C206","v":0},{"$f":"A3A!D206","v":12196},{"$f":"A3A!E206","v":670},{"$f":"A3A!F206","v":500000},{"$f":"A3A!G206","v":750000},{"$f":"A3A!H206","v":750000},{"$f":"A3A!I206","v":150000},{"$f":"A3A!J206","v":300000},{"$f":"A3A!K206","v":300000}]
[{"$f":"A3A!A217","v":"Vote 5 - Environmental Protection"},null,{"$f":"A3A!C217","v":0},{"$f":"A3A!D217","v":47227},{"$f":"A3A!E217","v":0},{"$f":"A3A!F217","v":500000},{"$f":"A3A!G217","v":0},{"$f":"A3A!H217","v":0},{"$f":"A3A!I217","v":0},{"$f":"A3A!J217","v":0},{"$f":"A3A!K217","v":0}]
[{"$f":"A3A!A228","v":"Vote 6 - [NAME OF VOTE 6]"},null,{"$f":"A3A!C228","v":0},{"$f":"A3A!D228","v":0},{"$f":"A3A!E228","v":0},{"$f":"A3A!F228","v":0},{"$f":"A3A!G228","v":0},{"$f":"A3A!H228","v":0},{"$f":"A3A!I228","v":0},{"$f":"A3A!J228","v":0},{"$f":"A3A!K228","v":0}]
[{"$f":"A3A!A239","v":"Vote 7 - [NAME OF VOTE 7]"},null,{"$f":"A3A!C239","v":0},{"$f":"A3A!D239","v":0},{"$f":"A3A!E239","v":0},{"$f":"A3A!F239","v":0},{"$f":"A3A!G239","v":0},{"$f":"A3A!H239","v":0},{"$f":"A3A!I239","v":0},{"$f":"A3A!J239","v":0},{"$f":"A3A!K239","v":0}]
[{"$f":"A3A!A250","v":"Vote 8 - [NAME OF VOTE 8]"},null,{"$f":"A3A!C250","v":0},{"$f":"A3A!D250","v":0},{"$f":"A3A!E250","v":0},{"$f":"A3A!F250","v":0},{"$f":"A3A!G250","v":0},{"$f":"A3A!H250","v":0},{"$f":"A3A!I250","v":0},{"$f":"A3A!J250","v":0},{"$f":"A3A!K250","v":0}]
[{"$f":"A3A!A261","v":"Vote 9 - [NAME OF VOTE 9]"},null,{"$f":"A3A!C261","v":0},{"$f":"A3A!D261","v":0},{"$f":"A3A!E261","v":0},{"$f":"A3A!F261","v":0},{"$f":"A3A!G261","v":0},{"$f":"A3A!H261","v":0},{"$f":"A3A!I261","v":0},{"$f":"A3A!J261","v":0},{"$f":"A3A!K261","v":0}]
[{"$f":"A3A!A272","v":"Vote 10 - [NAME OF VOTE 10]"},null,{"$f":"A3A!C272","v":0},{"$f":"A3A!D272","v":0},{"$f":"A3A!E272","v":0},{"$f":"A3A!F272","v":0},{"$f":"A3A!G272","v":0},{"$f":"A3A!H272","v":0},{"$f":"A3A!I272","v":0},{"$f":"A3A!J272","v":0},{"$f":"A3A!K272","v":0}]
[{"$f":"A3A!A283","v":"Vote 11 - [NAME OF VOTE 11]"},null,{"$f":"A3A!C283","v":0},{"$f":"A3A!D283","v":0},{"$f":"A3A!E283","v":0},{"$f":"A3A!F283","v":0},{"$f":"A3A!G283","v":0},{"$f":"A3A!H283","v":0},{"$f":"A3A!I283","v":0},{"$f":"A3A!J283","v":0},{"$f":"A3A!K283","v":0},{"$f":"A3A!L284","v":0}]
[{"$f":"A3A!A294","v":"Vote 12 - [NAME OF VOTE 12]"},null,{"$f":"A3A!C294","v":0},{"$f":"A3A!D294","v":0},{"$f":"A3A!E294","v":0},{"$f":"A3A!F294","v":0},{"$f":"A3A!G294","v":0},{"$f":"A3A!H294","v":0},{"$f":"A3A!I294","v":0},{"$f":"A3A!J294","v":0},{"$f":"A3A!K294","v":0},{"$f":"A3A!L295","v":0}]
[{"$f":"A3A!A305","v":"Vote 13 - [NAME OF VOTE 13]"},null,{"$f":"A3A!C305","v":0},{"$f":"A3A!D305","v":0},{"$f":"A3A!E305","v":0},{"$f":"A3A!F305","v":0},{"$f":"A3A!G305","v":0},{"$f":"A3A!H305","v":0},{"$f":"A3A!I305","v":0},{"$f":"A3A!J305","v":0},{"$f":"A3A!K305","v":0},{"$f":"A3A!L306","v":0}]
[{"$f":"A3A!A316","v":"Vote 14 - [NAME OF VOTE 14]"},null,{"$f":"A3A!C316","v":0},{"$f":"A3A!D316","v":0},{"$f":"A3A!E316","v":0},{"$f":"A3A!F316","v":0},{"$f":"A3A!G316","v":0},{"$f":"A3A!H316","v":0},{"$f":"A3A!I316","v":0},{"$f":"A3A!J316","v":0},{"$f":"A3A!K316","v":0},{"$f":"A3A!L317","v":0}]
[{"$f":"A3A!A327","v":"Vote 15 - [NAME OF VOTE 15]"},null,{"$f":"A3A!C327","v":0},{"$f":"A3A!D327","v":0},{"$f":"A3A!E327","v":0},{"$f":"A3A!F327","v":0},{"$f":"A3A!G327","v":0},{"$f":"A3A!H327","v":0},{"$f":"A3A!I327","v":0},{"$f":"A3A!J327","v":0},{"$f":"A3A!K327","v":0},{"$f":"A3A!L328","v":0}]
["Total Expenditure by Vote",2,{"$f":"SUM(C23:C37)","v":0},{"$f":"SUM(D23:D37)","v":62014861},67699905,67542216,68896774,68896774,62985185,68726183,70128751,{"$f":"SUM(L23:L29)","v":0},0,0,0,0,0,0,0,0,0,0,0]
[{"$f":"result","v":"Surplus/(Deficit) for the year"},2,{"$f":"C20-C38","v":0},6950897,262879,404771,791409,791409,485998,21817,23248,0,0,0,0,0,0,0,0,0,0,0,0]
[{"$f":"head27a","v":"References"}]
["1. Insert 'Vote'; e.g. department, if different to functional classification structure"]
["2. Must reconcile to Budgeted Financial Performance (revenue and expenditure)"]
["3. Assign share in 'associate' to relevant Vote"]
[]
[{"$f":"\"check \"&A39","v":"check Surplus/(Deficit) for the year"},null,{"$f":"C39-A3A!C340","v":0},{"$f":"D39-A3A!D340","v":0},{"$f":"E39-A3A!E340","v":0},{"$f":"F39-A3A!F340","v":0},{"$f":"G39-A3A!G340","v":0},{"$f":"H39-A3A!H340","v":0},{"$f":"I39-A3A!I340","v":0},{"$f":"J39-A3A!J340","v":0},{"$f":"K39-A3A!K340","v":0}]

{"sheet":"A3A","index":20,"n_rows":347,"n_cols":30,"rows_kept":347,"cut":false,"hidden":false,"merged":[[1,11,1,22],[1,5,1,7],[1,8,1,10]]}
[{"$f":"muni&\" - \"&Approve2&\"A\"","v":"DC16 Xhariep - Table A3 Budgeted Financial Performance (revenue and expenditure by municipal vote)A"}]
[{"$f":"Vdesc","v":"Vote Description"},{"$f":"head27","v":"Ref"},{"$f":"head1b","v":"2017/18"},{"$f":"head1A","v":"2018/19"},{"$f":"Head1","v":"2019/20"},{"$f":"Head2","v":"Current Year 2020/21"},null,null,{"$f":"Head3","v":"2021/22 Medium Term Revenue & Expenditure Framework"},null,null,{"$f":"Head4","v":"LTFS"}]
["R thousand",null,{"$f":"Head5","v":"Audited Outcome"},{"$f":"Head5","v":"Audited Outcome"},{"$f":"Head5","v":"Audited Outcome"},{"$f":"Head6","v":"Original Budget"},{"$f":"Head7","v":"Adjusted Budget"},{"$f":"Head8","v":"Full Year Forecast"},{"$f":"Head9","v":"Budget Year 2021/22"},{"$f":"Head10","v":"Budget Year +1 2022/23"},{"$f":"Head11","v":"Budget Year +2 2023/24"},{"$f":"Head12","v":"Forecast 2024/25"},{"$f":"Head13","v":"Forecast 2025/26"},{"$f":"Head14","v":"Forecast 2026/27"},{"$f":"Head15","v":"Forecast 2027/28"},{"$f":"Head16","v":"Forecast 2028/29"},{"$f":"Head17","v":"Forecast 2029/30"},{"$f":"Head18","v":"Forecast 2030/31"},{"$f":"Head19","v":"Forecast 2031/32"},{"$f":"Head20","v":"Forecast 2032/33"},{"$f":"Head21","v":"Forecast 2033/34"},{"$f":"Head22","v":"Forecast 2034/35"},{"$f":"Head23","v":"Forecast 2035/36"}]
["Revenue by Vote",1]
[{"$f":"'Org structure'!A2","v":"Vote 1 - Executive and Council"},null,{"$f":"SUM(C6:C15)","v":0},{"$f":"SUM(D6:D15)","v":15857799},15595354,14666057,15115807,15115807,13082807,25325600,25641200]
[{"$f":"IF(RIGHT('Org structure'!D3,18)<>\"[Name of sub-vote]\",'Org structure'!D3,\"\")","v":"1.1 - Mayor and Council"},null,{"$f":"SUMIFS(Sheet1!S71_PPPYearAmount,Sheet1!S71_SubMunicipalVoteNo,$AC:$AC,Sheet1!S71_ItemType,$AD:$AD)","v":0},{"$f":"SUMIFS(Sheet1!S71_PPYearAmount,Sheet1!S71_SubMunicipalVoteNo,$AC:$AC,Sheet1!S71_ItemType,$AD:$AD)","v":6776332},{"$f":"SUMIFS(Sheet1!S71_PYearAmount,Sheet1!S71_SubMunicipalVoteNo,$AC:$AC,Sheet1!S71_ItemType,$AD:$AD)","v":6664184},{"$f":"-SUMIFS(Sheet1!S71_OriginalBudAmnt,Sheet1!S71_SubMunicipalVoteNo,$AC:$AC,Sheet1!S71_ItemType,$AD:$AD)","v":6436301},{"$f":"-SUMIFS(Sheet1!S71_AdjustmentBudAmnt,Sheet1!S71_SubMunicipalVoteNo,$AC:$AC,Sheet1!S71_ItemType,$AD:$AD)","v":6436301},{"$f":"-SUMIFS(Sheet1!S71_AdjustmentBudAmnt,Sheet1!S71_SubMunicipalVoteNo,$AC:$AC,Sheet1!S71_ItemType,$AD:$AD)","v":6436301},{"$f":"-SUMIFS(Sheet1!S71_ASBudgetAmount,Sheet1!S71_SubMunicipalVoteNo,$AC:$AC,Sheet1!S71_ItemType,$AD:$AD)","v":6156301},{"$f":"-SUMIFS(Sheet1!S71_OY1BudgetAmount,Sheet1!S71_SubMunicipalVoteNo,$AC:$AC,Sheet1!S71_ItemType,$AD:$AD)","v":12662800},{"$f":"-SUMIFS(Sheet1!S71_OY2BudgetAmount,Sheet1!S71_SubMunicipalVoteNo,$AC:$AC,Sheet1!S71_ItemType,$AD:$AD)","v":12737600},null,null,null,null,null,null,null,null,null,null,null,null,null,null,null,null,null,11,"IR"]
[{"$f":"IF(RIGHT('Org structure'!D4,18)<>\"[Name of sub-vote]\",'Org structure'!D4,\"\")","v":"1.2 - Municipal Manager, Town Secretary and Chief Executive"},null,{"$f":"SUMIFS(Sheet1!S71_PPPYearAmount,Sheet1!S71_SubMunicipalVoteNo,$AC:$AC,Sheet1!S71_ItemType,$AD:$AD)","v":0},{"$f":"SUMIFS(Sheet1!S71_PPYearAmount,Sheet1!S71_SubMunicipalVoteNo,$AC:$AC,Sheet1!S71_ItemType,$AD:$AD)","v":9081467},{"$f":"SUMIFS(Sheet1!S71_PYearAmount,Sheet1!S71_SubMunicipalVoteNo,$AC:$AC,Sheet1!S71_ItemType,$AD:$AD)","v":8931170},{"$f":"-SUMIFS(Sheet1!S71_OriginalBudAmnt,Sheet1!S71_SubMunicipalVoteNo,$AC:$AC,Sheet1!S71_ItemType,$AD:$AD)","v":8229756},{"$f":"-SUMIFS(Sheet1!S71_AdjustmentBudAmnt,Sheet1!S71_SubMunicipalVoteNo,$AC:$AC,Sheet1!S71_ItemType,$AD:$AD)","v":8679506},{"$f":"-SUMIFS(Sheet1!S71_AdjustmentBudAmnt,Sheet1!S71_SubMunicipalVoteNo,$AC:$AC,Sheet1!S71_ItemType,$AD:$AD)","v":8679506},{"$f":"-SUMIFS(Sheet1!S71_ASBudgetAmount,Sheet1!S71_SubMunicipalVoteNo,$AC:$AC,Sheet1!S71_ItemType,$AD:$AD)","v":6926506},{"$f":"-SUMIFS(Sheet1!S71_OY1BudgetAmount,Sheet1!S71_SubMunicipalVoteNo,$AC:$AC,Sheet1!S71_ItemType,$AD:$AD)","v":12662800},{"$f":"-SUMIFS(Sheet1!S71_OY2BudgetAmount,Sheet1!S71_SubMunicipalVoteNo,$AC:$AC,Sheet1!S71_ItemType,$AD:$AD)","v":12903600},null,null,null,null,null,null,null,null,null,null,null,null,null,null,null,null,null,12,"IR"]
[{"$f":"IF(RIGHT('Org structure'!D5,18)<>\"[Name of sub-vote]\",'Org structure'!D5,\"\")","v":""},null,{"$f":"SUMIFS(Sheet1!S71_PPPYearAmount,Sheet1!S71_SubMunicipalVoteNo,$AC:$AC,Sheet1!S71_ItemType,$AD:$AD)","v":0},{"$f":"SUMIFS(Sheet1!S71_PPYearAmount,Sheet1!S71_SubMunicipalVoteNo,$AC:$AC,Sheet1!S71_ItemType,$AD:$AD)","v":0},{"$f":"SUMIFS(Sheet1!S71_PYearAmount,Sheet1!S71_SubMunicipalVoteNo,$AC:$AC,Sheet1!S71_ItemType,$AD:$AD)","v":0},{"$f":"-SUMIFS(Sheet1!S71_OriginalBudAmnt,Sheet1!S71_SubMunicipalVoteNo,$AC:$AC,Sheet1!S71_ItemType,$AD:$AD)","v":0},{"$f":"-SUMIFS(Sheet1!S71_AdjustmentBudAmnt,Sheet1!S71_SubMunicipalVoteNo,$AC:$AC,Sheet1!S71_ItemType,$AD:$AD)","v":0},{"$f":"-SUMIFS(Sheet1!S71_AdjustmentBudAmnt,Sheet1!S71_SubMunicipalVoteNo,$AC:$AC,Sheet1!S71_ItemType,$AD:$AD)","v":0},{"$f":"-SUMIFS(Sheet1!S71_ASBudgetAmount,Sheet1!S71_SubMunicipalVoteNo,$AC:$AC,Sheet1!S71_ItemType,$AD:$AD)","v":0},{"$f":"-SUMIFS(Sheet1!S71_OY1BudgetAmount,Sheet1!S71_SubMunicipalVoteNo,$AC:$AC,Sheet1!S71_ItemType,$AD:$AD)","v":0},{"$f":"-SUMIFS(Sheet1!S71_OY2BudgetAmount,Sheet1!S71_SubMunicipalVoteNo,$AC:$AC,Sheet1!S71_ItemType,$AD:$AD)","v":0},null,null,null,null,null,null,null,null,null,null,null,null,null,null,null,null,null,13,"IR"]
[{"$f":"IF(RIGHT('Org structure'!D6,18)<>\"[Name of sub-vote]\",'Org structure'!D6,\"\")","v":""},null,{"$f":"SUMIFS(Sheet1!S71_PPPYearAmount,Sheet1!S71_SubMunicipalVoteNo,$AC:$AC,Sheet1!S71_ItemType,$AD:$AD)","v":0},{"$f":"SUMIFS(Sheet1!S71_PPYearAmount,Sheet1!S71_SubMunicipalVoteNo,$AC:$AC,Sheet1!S71_ItemType,$AD:$AD)","v":0},{"$f":"SUMIFS(Sheet1!S71_PYearAmount,Sheet1!S71_SubMunicipalVoteNo,$AC:$AC,Sheet1!S71_ItemType,$AD:$AD)","v":0},{"$f":"-SUMIFS(Sheet1!S71_OriginalBudAmnt,Sheet1!S71_SubMunicipalVoteNo,$AC:$AC,Sheet1!S71_ItemType,$AD:$AD)","v":0},{"$f":"-SUMIFS(Sheet1!S71_AdjustmentBudAmnt,Sheet1!S71_SubMunicipalVoteNo,$AC:$AC,Sheet1!S71_ItemType,$AD:$AD)","v":0},{"$f":"-SUMIFS(Sheet1!S71_AdjustmentBudAmnt,Sheet1!S71_SubMunicipalVoteNo,$AC:$AC,Sheet1!S71_ItemType,$AD:$AD)","v":0},{"$f":"-SUMIFS(Sheet1!S71_ASBudgetAmount,Sheet1!S71_SubMunicipalVoteNo,$AC:$AC,Sheet1!S71_ItemType,$AD:$AD)","v":0},{"$f":"-SUMIFS(Sheet1!S71_OY1BudgetAmount,Sheet1!S71_SubMunicipalVoteNo,$AC:$AC,Sheet1!S71_ItemType,$AD:$AD)","v":0},{"$f":"-SUMIFS(Sheet1!S71_OY2BudgetAmount,Sheet1!S71_SubMunicipalVoteNo,$AC:$AC,Sheet1!S71_ItemType,$AD:$AD)","v":0},null,null,null,null,null,null,null,null,null,null,null,null,null,null,null,null,null,14,"IR"]
[{"$f":"IF(RIGHT('Org structure'!D7,18)<>\"[Name of sub-vote]\",'Org structure'!D7,\"\")","v":""},null,{"$f":"SUMIFS(Sheet1!S71_PPPYearAmount,Sheet1!S71_SubMunicipalVoteNo,$AC:$AC,Sheet1!S71_ItemType,$AD:$AD)","v":0},{"$f":"SUMIFS(Sheet1!S71_PPYearAmount,Sheet1!S71_SubMunicipalVoteNo,$AC:$AC,Sheet1!S71_ItemType,$AD:$AD)","v":0},{"$f":"SUMIFS(Sheet1!S71_PYearAmount,Sheet1!S71_SubMunicipalVoteNo,$AC:$AC,Sheet1!S71_ItemType,$AD:$AD)","v":0},{"$f":"-SUMIFS(Sheet1!S71_OriginalBudAmnt,Sheet1!S71_SubMunicipalVoteNo,$AC:$AC,Sheet1!S71_ItemType,$AD:$AD)","v":0},{"$f":"-SUMIFS(Sheet1!S71_AdjustmentBudAmnt,Sheet1!S71_SubMunicipalVoteNo,$AC:$AC,Sheet1!S71_ItemType,$AD:$AD)","v":0},{"$f":"-SUMIFS(Sheet1!S71_AdjustmentBudAmnt,Sheet1!S71_SubMunicipalVoteNo,$AC:$AC,Sheet1!S71_ItemType,$AD:$AD)","v":0},{"$f":"-SUMIFS(Sheet1!S71_ASBudgetAmount,Sheet1!S71_SubMunicipalVoteNo,$AC:$AC,Sheet1!S71_ItemType,$AD:$AD)","v":0},{"$f":"-SUMIFS(Sheet1!S71_OY1BudgetAmount,Sheet1!S71_SubMunicipalVoteNo,$AC:$AC,Sheet1!S71_ItemType,$AD:$AD)","v":0},{"$f":"-SUMIFS(Sheet1!S71_OY2BudgetAmount,Sheet1!S71_SubMunicipalVoteNo,$AC:$AC,Sheet1!S71_ItemType,$AD:$AD)","v":0},null,null,null,null,null,null,null,null,null,null,null,null,null,null,null,null,null,15,"IR"]
[{"$f":"IF(RIGHT('Org structure'!D8,18)<>\"[Name of sub-vote]\",'Org structure'!D8,\"\")","v":""},null,{"$f":"SUMIFS(Sheet1!S71_PPPYearAmount,Sheet1!S71_SubMunicipalVoteNo,$AC:$AC,Sheet1!S71_ItemType,$AD:$AD)","v":0},{"$f":"SUMIFS(Sheet1!S71_PPYearAmount,Sheet1!S71_SubMunicipalVoteNo,$AC:$AC,Sheet1!S71_ItemType,$AD:$AD)","v":0},{"$f":"SUMIFS(Sheet1!S71_PYearAmount,Sheet1!S71_SubMunicipalVoteNo,$AC:$AC,Sheet1!S71_ItemType,$AD:$AD)","v":0},{"$f":"-SUMIFS(Sheet1!S71_OriginalBudAmnt,Sheet1!S71_SubMunicipalVoteNo,$AC:$AC,Sheet1!S71_ItemType,$AD:$AD)","v":0},{"$f":"-SUMIFS(Sheet1!S71_AdjustmentBudAmnt,Sheet1!S71_SubMunicipalVoteNo,$AC:$AC,Sheet1!S71_ItemType,$AD:$AD)","v":0},{"$f":"-SUMIFS(Sheet1!S71_AdjustmentBudAmnt,Sheet1!S71_SubMunicipalVoteNo,$AC:$AC,Sheet1!S71_ItemType,$AD:$AD)","v":0},{"$f":"-SUMIFS(Sheet1!S71_ASBudgetAmount,Sheet1!S71_SubMunicipalVoteNo,$AC:$AC,Sheet1!S71_ItemType,$AD:$AD)","v":0},{"$f":"-SUMIFS(Sheet1!S71_OY1BudgetAmount,Sheet1!S71_SubMunicipalVoteNo,$AC:$AC,Sheet1!S71_ItemType,$AD:$AD)","v":0},{"$f":"-SUMIFS(Sheet1!S71_OY2BudgetAmount,Sheet1!S71_SubMunicipalVoteNo,$AC:$AC,Sheet1!S71_ItemType,$AD:$AD)","v":0},null,null,null,null,null,null,null,null,null,null,null,null,null,null,null,null,null,16,"IR"]
[{"$f":"IF(RIGHT('Org structure'!D9,18)<>\"[Name of sub-vote]\",'Org structure'!D9,\"\")","v":""},null,{"$f":"SUMIFS(Sheet1!S71_PPPYearAmount,Sheet1!S71_SubMunicipalVoteNo,$AC:$AC,Sheet1!S71_ItemType,$AD:$AD)","v":0},{"$f":"SUMIFS(Sheet1!S71_PPYearAmount,Sheet1!S71_SubMunicipalVoteNo,$AC:$AC,Sheet1!S71_ItemType,$AD:$AD)","v":0},{"$f":"SUMIFS(Sheet1!S71_PYearAmount,Sheet1!S71_SubMunicipalVoteNo,$AC:$AC,Sheet1!S71_ItemType,$AD:$AD)","v":0},{"$f":"-SUMIFS(Sheet1!S71_OriginalBudAmnt,Sheet1!S71_SubMunicipalVoteNo,$AC:$AC,Sheet1!S71_ItemType,$AD:$AD)","v":0},{"$f":"-SUMIFS(Sheet1!S71_AdjustmentBudAmnt,Sheet1!S71_SubMunicipalVoteNo,$AC:$AC,Sheet1!S71_ItemType,$AD:$AD)","v":0},{"$f":"-SUMIFS(Sheet1!S71_AdjustmentBudAmnt,Sheet1!S71_SubMunicipalVoteNo,$AC:$AC,Sheet1!S71_ItemType,$AD:$AD)","v":0},{"$f":"-SUMIFS(Sheet1!S71_ASBudgetAmount,Sheet1!S71_SubMunicipalVoteNo,$AC:$AC,Sheet1!S71_ItemType,$AD:$AD)","v":0},{"$f":"-SUMIFS(Sheet1!S71_OY1BudgetAmount,Sheet1!S71_SubMunicipalVoteNo,$AC:$AC,Sheet1!S71_ItemType,$AD:$AD)","v":0},{"$f":"-SUMIFS(Sheet1!S71_OY2BudgetAmount,Sheet1!S71_SubMunicipalVoteNo,$AC:$AC,Sheet1!S71_ItemType,$AD:$AD)","v":0},null,null,null,null,null,null,null,null,null,null,null,null,null,null,null,null,null,17,"IR"]
[{"$f":"IF(RIGHT('Org structure'!D10,18)<>\"[Name of sub-vote]\",'Org structure'!D10,\"\")","v":""},null,{"$f":"SUMIFS(Sheet1!S71_PPPYearAmount,Sheet1!S71_SubMunicipalVoteNo,$AC:$AC,Sheet1!S71_ItemType,$AD:$AD)","v":0},{"$f":"SUMIFS(Sheet1!S71_PPYearAmount,Sheet1!S71_SubMunicipalVoteNo,$AC:$AC,Sheet1!S71_ItemType,$AD:$AD)","v":0},{"$f":"SUMIFS(Sheet1!S71_PYearAmount,Sheet1!S71_SubMunicipalVoteNo,$AC:$AC,Sheet1!S71_ItemType,$AD:$AD)","v":0},{"$f":"-SUMIFS(Sheet1!S71_OriginalBudAmnt,Sheet1!S71_SubMunicipalVoteNo,$AC:$AC,Sheet1!S71_ItemType,$AD:$AD)","v":0},{"$f":"-SUMIFS(Sheet1!S71_AdjustmentBudAmnt,Sheet1!S71_SubMunicipalVoteNo,$AC:$AC,Sheet1!S71_ItemType,$AD:$AD)","v":0},{"$f":"-SUMIFS(Sheet1!S71_AdjustmentBudAmnt,Sheet1!S71_SubMunicipalVoteNo,$AC:$AC,Sheet1!S71_ItemType,$AD:$AD)","v":0},{"$f":"-SUMIFS(Sheet1!S71_ASBudgetAmount,Sheet1!S71_SubMunicipalVoteNo,$AC:$AC,Sheet1!S71_ItemType,$AD:$AD)","v":0},{"$f":"-SUMIFS(Sheet1!S71_OY1BudgetAmount,Sheet1!S71_SubMunicipalVoteNo,$AC:$AC,Sheet1!S71_ItemType,$AD:$AD)","v":0},{"$f":"-SUMIFS(Sheet1!S71_OY2BudgetAmount,Sheet1!S71_SubMunicipalVoteNo,$AC:$AC,Sheet1!S71_ItemType,$AD:$AD)","v":0},null,null,null,null,null,null,null,null,null,null,null,null,null,null,null,null,null,18,"IR"]
[{"$f":"IF(RIGHT('Org structure'!D11,18)<>\"[Name of sub-vote]\",'Org structure'!D11,\"\")","v":""},null,{"$f":"SUMIFS(Sheet1!S71_PPPYearAmount,Sheet1!S71_SubMunicipalVoteNo,$AC:$AC,Sheet1!S71_ItemType,$AD:$AD)","v":0},{"$f":"SUMIFS(Sheet1!S71_PPYearAmount,Sheet1!S71_SubMunicipalVoteNo,$AC:$AC,Sheet1!S71_ItemType,$AD:$AD)","v":0},{"$f":"SUMIFS(Sheet1!S71_PYearAmount,Sheet1!S71_SubMunicipalVoteNo,$AC:$AC,Sheet1!S71_ItemType,$AD:$AD)","v":0},{"$f":"-SUMIFS(Sheet1!S71_OriginalBudAmnt,Sheet1!S71_SubMunicipalVoteNo,$AC:$AC,Sheet1!S71_ItemType,$AD:$AD)","v":0},{"$f":"-SUMIFS(Sheet1!S71_AdjustmentBudAmnt,Sheet1!S71_SubMunicipalVoteNo,$AC:$AC,Sheet1!S71_ItemType,$AD:$AD)","v":0},{"$f":"-SUMIFS(Sheet1!S71_AdjustmentBudAmnt,Sheet1!S71_SubMunicipalVoteNo,$AC:$AC,Sheet1!S71_ItemType,$AD:$AD)","v":0},{"$f":"-SUMIFS(Sheet1!S71_ASBudgetAmount,Sheet1!S71_SubMunicipalVoteNo,$AC:$AC,Sheet1!S71_ItemType,$AD:$AD)","v":0},{"$f":"-SUMIFS(Sheet1!S71_OY1BudgetAmount,Sheet1!S71_SubMunicipalVoteNo,$AC:$AC,Sheet1!S71_ItemType,$AD:$AD)","v":0},{"$f":"-SUMIFS(Sheet1!S71_OY2BudgetAmount,Sheet1!S71_SubMunicipalVoteNo,$AC:$AC,Sheet1!S71_ItemType,$AD:$AD)","v":0},null,null,null,null,null,null,null,null,null,null,null,null,null,null,null,null,null,19,"IR"]
[{"$f":"IF(RIGHT('Org structure'!D12,18)<>\"[Name of sub-vote]\",'Org structure'!D12,\"\")","v":""},null,{"$f":"SUMIFS(Sheet1!S71_PPPYearAmount,Sheet1!S71_SubMunicipalVoteNo,$AC:$AC,Sheet1!S71_ItemType,$AD:$AD)","v":0},{"$f":"SUMIFS(Sheet1!S71_PPYearAmount,Sheet1!S71_SubMunicipalVoteNo,$AC:$AC,Sheet1!S71_ItemType,$AD:$AD)","v":0},{"$f":"SUMIFS(Sheet1!S71_PYearAmount,Sheet1!S71_SubMunicipalVoteNo,$AC:$AC,Sheet1!S71_ItemType,$AD:$AD)","v":0},{"$f":"-SUMIFS(Sheet1!S71_OriginalBudAmnt,Sheet1!S71_SubMunicipalVoteNo,$AC:$AC,Sheet1!S71_ItemType,$AD:$AD)","v":0},{"$f":"-SUMIFS(Sheet1!S71_AdjustmentBudAmnt,Sheet1!S71_SubMunicipalVoteNo,$AC:$AC,Sheet1!S71_ItemType,$AD:$AD)","v":0},{"$f":"-SUMIFS(Sheet1!S71_AdjustmentBudAmnt,Sheet1!S71_SubMunicipalVoteNo,$AC:$AC,Sheet1!S71_ItemType,$AD:$AD)","v":0},{"$f":"-SUMIFS(Sheet1!S71_ASBudgetAmount,Sheet1!S71_SubMunicipalVoteNo,$AC:$AC,Sheet1!S71_ItemType,$AD:$AD)","v":0},{"$f":"-SUMIFS(Sheet1!S71_OY1BudgetAmount,Sheet1!S71_SubMunicipalVoteNo,$AC:$AC,Sheet1!S71_ItemType,$AD:$AD)","v":0},{"$f":"-SUMIFS(Sheet1!S71_OY2BudgetAmount,Sheet1!S71_SubMunicipalVoteNo,$AC:$AC,Sheet1!S71_ItemType,$AD:$AD)","v":0},null,null,null,null,null,null,null,null,null,null,null,null,null,null,null,null,null,110,"IR"]
[{"$f":"'Org structure'!A3","v":"Vote 2 - Finance and Administration"},null,{"$f":"SUM(C17:C26)","v":0},{"$f":"SUM(D17:D26)","v":38007481},36746261,38142142,38983838,38983838,35475838,28050876,28741268]
[{"$f":"IF(RIGHT('Org structure'!D14,18)<>\"[Name of sub-vote]\",'Org structure'!D14,\"\")","v":"2.1 - Administrative and Corporate Support"},null,{"$f":"SUMIFS(Sheet1!S71_PPPYearAmount,Sheet1!S71_SubMunicipalVoteNo,$AC:$AC,Sheet1!S71_ItemType,$AD:$AD)","v":0},{"$f":"SUMIFS(Sheet1!S71_PPYearAmount,Sheet1!S71_SubMunicipalVoteNo,$AC:$AC,Sheet1!S71_ItemType,$AD:$AD)","v":20994448},{"$f":"SUMIFS(Sheet1!S71_PYearAmount,Sheet1!S71_SubMunicipalVoteNo,$AC:$AC,Sheet1!S71_ItemType,$AD:$AD)","v":21393405},{"$f":"-SUMIFS(Sheet1!S71_OriginalBudAmnt,Sheet1!S71_SubMunicipalVoteNo,$AC:$AC,Sheet1!S71_ItemType,$AD:$AD)","v":21666230},{"$f":"-SUMIFS(Sheet1!S71_AdjustmentBudAmnt,Sheet1!S71_SubMunicipalVoteNo,$AC:$AC,Sheet1!S71_ItemType,$AD:$AD)","v":22115980},{"$f":"-SUMIFS(Sheet1!S71_AdjustmentBudAmnt,Sheet1!S71_SubMunicipalVoteNo,$AC:$AC,Sheet1!S71_ItemType,$AD:$AD)","v":22115980},{"$f":"-SUMIFS(Sheet1!S71_ASBudgetAmount,Sheet1!S71_SubMunicipalVoteNo,$AC:$AC,Sheet1!S71_ItemType,$AD:$AD)","v":19533980},{"$f":"-SUMIFS(Sheet1!S71_OY1BudgetAmount,Sheet1!S71_SubMunicipalVoteNo,$AC:$AC,Sheet1!S71_ItemType,$AD:$AD)","v":12760800},{"$f":"-SUMIFS(Sheet1!S71_OY2BudgetAmount,Sheet1!S71_SubMunicipalVoteNo,$AC:$AC,Sheet1!S71_ItemType,$AD:$AD)","v":13339600},null,null,null,null,null,null,null,null,null,null,null,null,null,null,null,null,null,21,"IR"]
[{"$f":"IF(RIGHT('Org structure'!D15,18)<>\"[Name of sub-vote]\",'Org structure'!D15,\"\")","v":"2.2 - Finance"},null,{"$f":"SUMIFS(Sheet1!S71_PPPYearAmount,Sheet1!S71_SubMunicipalVoteNo,$AC:$AC,Sheet1!S71_ItemType,$AD:$AD)","v":0},{"$f":"SUMIFS(Sheet1!S71_PPYearAmount,Sheet1!S71_SubMunicipalVoteNo,$AC:$AC,Sheet1!S71_ItemType,$AD:$AD)","v":17013033},{"$f":"SUMIFS(Sheet1!S71_PYearAmount,Sheet1!S71_SubMunicipalVoteNo,$AC:$AC,Sheet1!S71_ItemType,$AD:$AD)","v":15352856},{"$f":"-SUMIFS(Sheet1!S71_OriginalBudAmnt,Sheet1!S71_SubMunicipalVoteNo,$AC:$AC,Sheet1!S71_ItemType,$AD:$AD)","v":16475912},{"$f":"-SUMIFS(Sheet1!S71_AdjustmentBudAmnt,Sheet1!S71_SubMunicipalVoteNo,$AC:$AC,Sheet1!S71_ItemType,$AD:$AD)","v":16867858},{"$f":"-SUMIFS(Sheet1!S71_AdjustmentBudAmnt,Sheet1!S71_SubMunicipalVoteNo,$AC:$AC,Sheet1!S71_ItemType,$AD:$AD)","v":16867858},{"$f":"-SUMIFS(Sheet1!S71_ASBudgetAmount,Sheet1!S71_SubMunicipalVoteNo,$AC:$AC,Sheet1!S71_ItemType,$AD:$AD)","v":15941858},{"$f":"-SUMIFS(Sheet1!S71_OY1BudgetAmount,Sheet1!S71_SubMunicipalVoteNo,$AC:$AC,Sheet1!S71_ItemType,$AD:$AD)","v":15290076},{"$f":"-SUMIFS(Sheet1!S71_OY2BudgetAmount,Sheet1!S71_SubMunicipalVoteNo,$AC:$AC,Sheet1!S71_ItemType,$AD:$AD)","v":15401668},null,null,null,null,null,null,null,null,null,null,null,null,null,null,null,null,null,22,"IR"]
[{"$f":"IF(RIGHT('Org structure'!D16,18)<>\"[Name of sub-vote]\",'Org structure'!D16,\"\")","v":"2.3 - Human Resources"},null,{"$f":"SUMIFS(Sheet1!S71_PPPYearAmount,Sheet1!S71_SubMunicipalVoteNo,$AC:$AC,Sheet1!S71_ItemType,$AD:$AD)","v":0},{"$f":"SUMIFS(Sheet1!S71_PPYearAmount,Sheet1!S71_SubMunicipalVoteNo,$AC:$AC,Sheet1!S71_ItemType,$AD:$AD)","v":0},{"$f":"SUMIFS(Sheet1!S71_PYearAmount,Sheet1!S71_SubMunicipalVoteNo,$AC:$AC,Sheet1!S71_ItemType,$AD:$AD)","v":0},{"$f":"-SUMIFS(Sheet1!S71_OriginalBudAmnt,Sheet1!S71_SubMunicipalVoteNo,$AC:$AC,Sheet1!S71_ItemType,$AD:$AD)","v":0},{"$f":"-SUMIFS(Sheet1!S71_AdjustmentBudAmnt,Sheet1!S71_SubMunicipalVoteNo,$AC:$AC,Sheet1!S71_ItemType,$AD:$AD)","v":0},{"$f":"-SUMIFS(Sheet1!S71_AdjustmentBudAmnt,Sheet1!S71_SubMunicipalVoteNo,$AC:$AC,Sheet1!S71_ItemType,$AD:$AD)","v":0},{"$f":"-SUMIFS(Sheet1!S71_ASBudgetAmount,Sheet1!S71_SubMunicipalVoteNo,$AC:$AC,Sheet1!S71_ItemType,$AD:$AD)","v":0},{"$f":"-SUMIFS(Sheet1!S71_OY1BudgetAmount,Sheet1!S71_SubMunicipalVoteNo,$AC:$AC,Sheet1!S71_ItemType,$AD:$AD)","v":0},{"$f":"-SUMIFS(Sheet1!S71_OY2BudgetAmount,Sheet1!S71_SubMunicipalVoteNo,$AC:$AC,Sheet1!S71_ItemType,$AD:$AD)","v":0},null,null,null,null,null,null,null,null,null,null,null,null,null,null,null,null,null,23,"IR"]
[{"$f":"IF(RIGHT('Org structure'!D17,18)<>\"[Name of sub-vote]\",'Org structure'!D17,\"\")","v":""},null,{"$f":"SUMIFS(Sheet1!S71_PPPYearAmount,Sheet1!S71_SubMunicipalVoteNo,$AC:$AC,Sheet1!S71_ItemType,$AD:$AD)","v":0},{"$f":"SUMIFS(Sheet1!S71_PPYearAmount,Sheet1!S71_SubMunicipalVoteNo,$AC:$AC,Sheet1!S71_ItemType,$AD:$AD)","v":0},{"$f":"SUMIFS(Sheet1!S71_PYearAmount,Sheet1!S71_SubMunicipalVoteNo,$AC:$AC,Sheet1!S71_ItemType,$AD:$AD)","v":0},{"$f":"-SUMIFS(Sheet1!S71_OriginalBudAmnt,Sheet1!S71_SubMunicipalVoteNo,$AC:$AC,Sheet1!S71_ItemType,$AD:$AD)","v":0},{"$f":"-SUMIFS(Sheet1!S71_AdjustmentBudAmnt,Sheet1!S71_SubMunicipalVoteNo,$AC:$AC,Sheet1!S71_ItemType,$AD:$AD)","v":0},{"$f":"-SUMIFS(Sheet1!S71_AdjustmentBudAmnt,Sheet1!S71_SubMunicipalVoteNo,$AC:$AC,Sheet1!S71_ItemType,$AD:$AD)","v":0},{"$f":"-SUMIFS(Sheet1!S71_ASBudgetAmount,Sheet1!S71_SubMunicipalVoteNo,$AC:$AC,Sheet1!S71_ItemType,$AD:$AD)","v":0},{"$f":"-SUMIFS(Sheet1!S71_OY1BudgetAmount,Sheet1!S71_SubMunicipalVoteNo,$AC:$AC,Sheet1!S71_ItemType,$AD:$AD)","v":0},{"$f":"-SUMIFS(Sheet1!S71_OY2BudgetAmount,Sheet1!S71_SubMunicipalVoteNo,$AC:$AC,Sheet1!S71_ItemType,$AD:$AD)","v":0},null,null,null,null,null,null,null,null,null,null,null,null,null,null,null,null,null,24,"IR"]
[{"$f":"IF(RIGHT('Org structure'!D18,18)<>\"[Name of sub-vote]\",'Org structure'!D18,\"\")","v":""},null,{"$f":"SUMIFS(Sheet1!S71_PPPYearAmount,Sheet1!S71_SubMunicipalVoteNo,$AC:$AC,Sheet1!S71_ItemType,$AD:$AD)","v":0},{"$f":"SUMIFS(Sheet1!S71_PPYearAmount,Sheet1!S71_SubMunicipalVoteNo,$AC:$AC,Sheet1!S71_ItemType,$AD:$AD)","v":0},{"$f":"SUMIFS(Sheet1!S71_PYearAmount,Sheet1!S71_SubMunicipalVoteNo,$AC:$AC,Sheet1!S71_ItemType,$AD:$AD)","v":0},{"$f":"-SUMIFS(Sheet1!S71_OriginalBudAmnt,Sheet1!S71_SubMunicipalVoteNo,$AC:$AC,Sheet1!S71_ItemType,$AD:$AD)","v":0},{"$f":"-SUMIFS(Sheet1!S71_AdjustmentBudAmnt,Sheet1!S71_SubMunicipalVoteNo,$AC:$AC,Sheet1!S71_ItemType,$AD:$AD)","v":0},{"$f":"-SUMIFS(Sheet1!S71_AdjustmentBudAmnt,Sheet1!S71_SubMunicipalVoteNo,$AC:$AC,Sheet1!S71_ItemType,$AD:$AD)","v":0},{"$f":"-SUMIFS(Sheet1!S71_ASBudgetAmount,Sheet1!S71_SubMunicipalVoteNo,$AC:$AC,Sheet1!S71_ItemType,$AD:$AD)","v":0},{"$f":"-SUMIFS(Sheet1!S71_OY1BudgetAmount,Sheet1!S71_SubMunicipalVoteNo,$AC:$AC,Sheet1!S71_ItemType,$AD:$AD)","v":0},{"$f":"-SUMIFS(Sheet1!S71_OY2BudgetAmount,Sheet1!S71_SubMunicipalVoteNo,$AC:$AC,Sheet1!S71_ItemType,$AD:$AD)","v":0},null,null,null,null,null,null,null,null,null,null,null,null,null,null,null,null,null,25,"IR"]
[{"$f":"IF(RIGHT('Org structure'!D19,18)<>\"[Name of sub-vote]\",'Org structure'!D19,\"\")","v":""},null,{"$f":"SUMIFS(Sheet1!S71_PPPYearAmount,Sheet1!S71_SubMunicipalVoteNo,$AC:$AC,Sheet1!S71_ItemType,$AD:$AD)","v":0},{"$f":"SUMIFS(Sheet1!S71_PPYearAmount,Sheet1!S71_SubMunicipalVoteNo,$AC:$AC,Sheet1!S71_ItemType,$AD:$AD)","v":0},{"$f":"SUMIFS(Sheet1!S71_PYearAmount,Sheet1!S71_SubMunicipalVoteNo,$AC:$AC,Sheet1!S71_ItemType,$AD:$AD)","v":0},{"$f":"-SUMIFS(Sheet1!S71_OriginalBudAmnt,Sheet1!S71_SubMunicipalVoteNo,$AC:$AC,Sheet1!S71_ItemType,$AD:$AD)","v":0},{"$f":"-SUMIFS(Sheet1!S71_AdjustmentBudAmnt,Sheet1!S71_SubMunicipalVoteNo,$AC:$AC,Sheet1!S71_ItemType,$AD:$AD)","v":0},{"$f":"-SUMIFS(Sheet1!S71_AdjustmentBudAmnt,Sheet1!S71_SubMunicipalVoteNo,$AC:$AC,Sheet1!S71_ItemType,$AD:$AD)","v":0},{"$f":"-SUMIFS(Sheet1!S71_ASBudgetAmount,Sheet1!S71_SubMunicipalVoteNo,$AC:$AC,Sheet1!S71_ItemType,$AD:$AD)","v":0},{"$f":"-SUMIFS(Sheet1!S71_OY1BudgetAmount,Sheet1!S71_SubMunicipalVoteNo,$AC:$AC,Sheet1!S71_ItemType,$AD:$AD)","v":0},{"$f":"-SUMIFS(Sheet1!S71_OY2BudgetAmount,Sheet1!S71_SubMunicipalVoteNo,$AC:$AC,Sheet1!S71_ItemType,$AD:$AD)","v":0},null,null,null,null,null,null,null,null,null,null,null,null,null,null,null,null,null,26,"IR"]
[{"$f":"IF(RIGHT('Org structure'!D20,18)<>\"[Name of sub-vote]\",'Org structure'!D20,\"\")","v":""},null,{"$f":"SUMIFS(Sheet1!S71_PPPYearAmount,Sheet1!S71_SubMunicipalVoteNo,$AC:$AC,Sheet1!S71_ItemType,$AD:$AD)","v":0},{"$f":"SUMIFS(Sheet1!S71_PPYearAmount,Sheet1!S71_SubMunicipalVoteNo,$AC:$AC,Sheet1!S71_ItemType,$AD:$AD)","v":0},{"$f":"SUMIFS(Sheet1!S71_PYearAmount,Sheet1!S71_SubMunicipalVoteNo,$AC:$AC,Sheet1!S71_ItemType,$AD:$AD)","v":0},{"$f":"-SUMIFS(Sheet1!S71_OriginalBudAmnt,Sheet1!S71_SubMunicipalVoteNo,$AC:$AC,Sheet1!S71_ItemType,$AD:$AD)","v":0},{"$f":"-SUMIFS(Sheet1!S71_AdjustmentBudAmnt,Sheet1!S71_SubMunicipalVoteNo,$AC:$AC,Sheet1!S71_ItemType,$AD:$AD)","v":0},{"$f":"-SUMIFS(Sheet1!S71_AdjustmentBudAmnt,Sheet1!S71_SubMunicipalVoteNo,$AC:$AC,Sheet1!S71_ItemType,$AD:$AD)","v":0},{"$f":"-SUMIFS(Sheet1!S71_ASBudgetAmount,Sheet1!S71_SubMunicipalVoteNo,$AC:$AC,Sheet1!S71_ItemType,$AD:$AD)","v":0},{"$f":"-SUMIFS(Sheet1!S71_OY1BudgetAmount,Sheet1!S71_SubMunicipalVoteNo,$AC:$AC,Sheet1!S71_ItemType,$AD:$AD)","v":0},{"$f":"-SUMIFS(Sheet1!S71_OY2BudgetAmount,Sheet1!S71_SubMunicipalVoteNo,$AC:$AC,Sheet1!S71_ItemType,$AD:$AD)","v":0},null,null,null,null,null,null,null,null,null,null,null,null,null,null,null,null,null,27,"IR"]
[{"$f":"IF(RIGHT('Org structure'!D21,18)<>\"[Name of sub-vote]\",'Org structure'!D21,\"\")","v":""},null,{"$f":"SUMIFS(Sheet1!S71_PPPYearAmount,Sheet1!S71_SubMunicipalVoteNo,$AC:$AC,Sheet1!S71_ItemType,$AD:$AD)","v":0},{"$f":"SUMIFS(Sheet1!S71_PPYearAmount,Sheet1!S71_SubMunicipalVoteNo,$AC:$AC,Sheet1!S71_ItemType,$AD:$AD)","v":0},{"$f":"SUMIFS(Sheet1!S71_PYearAmount,Sheet1!S71_SubMunicipalVoteNo,$AC:$AC,Sheet1!S71_ItemType,$AD:$AD)","v":0},{"$f":"-SUMIFS(Sheet1!S71_OriginalBudAmnt,Sheet1!S71_SubMunicipalVoteNo,$AC:$AC,Sheet1!S71_ItemType,$AD:$AD)","v":0},{"$f":"-SUMIFS(Sheet1!S71_AdjustmentBudAmnt,Sheet1!S71_SubMunicipalVoteNo,$AC:$AC,Sheet1!S71_ItemType,$AD:$AD)","v":0},{"$f":"-SUMIFS(Sheet1!S71_AdjustmentBudAmnt,Sheet1!S71_SubMunicipalVoteNo,$AC:$AC,Sheet1!S71_ItemType,$AD:$AD)","v":0},{"$f":"-SUMIFS(Sheet1!S71_ASBudgetAmount,Sheet1!S71_SubMunicipalVoteNo,$AC:$AC,Sheet1!S71_ItemType,$AD:$AD)","v":0},{"$f":"-SUMIFS(Sheet1!S71_OY1BudgetAmount,Sheet1!S71_SubMunicipalVoteNo,$AC:$AC,Sheet1!S71_ItemType,$AD:$AD)","v":0},{"$f":"-SUMIFS(Sheet1!S71_OY2BudgetAmount,Sheet1!S71_SubMunicipalVoteNo,$AC:$AC,Sheet1!S71_ItemType,$AD:$AD)","v":0},null,null,null,null,null,null,null,null,null,null,null,null,null,null,null,null,null,28,"IR"]
[{"$f":"IF(RIGHT('Org structure'!D22,18)<>\"[Name of sub-vote]\",'Org structure'!D22,\"\")","v":""},null,{"$f":"SUMIFS(Sheet1!S71_PPPYearAmount,Sheet1!S71_SubMunicipalVoteNo,$AC:$AC,Sheet1!S71_ItemType,$AD:$AD)","v":0},{"$f":"SUMIFS(Sheet1!S71_PPYearAmount,Sheet1!S71_SubMunicipalVoteNo,$AC:$AC,Sheet1!S71_ItemType,$AD:$AD)","v":0},{"$f":"SUMIFS(Sheet1!S71_PYearAmount,Sheet1!S71_SubMunicipalVoteNo,$AC:$AC,Sheet1!S71_ItemType,$AD:$AD)","v":0},{"$f":"-SUMIFS(Sheet1!S71_OriginalBudAmnt,Sheet1!S71_SubMunicipalVoteNo,$AC:$AC,Sheet1!S71_ItemType,$AD:$AD)","v":0},{"$f":"-SUMIFS(Sheet1!S71_AdjustmentBudAmnt,Sheet1!S71_SubMunicipalVoteNo,$AC:$AC,Sheet1!S71_ItemType,$AD:$AD)","v":0},{"$f":"-SUMIFS(Sheet1!S71_AdjustmentBudAmnt,Sheet1!S71_SubMunicipalVoteNo,$AC:$AC,Sheet1!S71_ItemType,$AD:$AD)","v":0},{"$f":"-SUMIFS(Sheet1!S71_ASBudgetAmount,Sheet1!S71_SubMunicipalVoteNo,$AC:$AC,Sheet1!S71_ItemType,$AD:$AD)","v":0},{"$f":"-SUMIFS(Sheet1!S71_OY1BudgetAmount,Sheet1!S71_SubMunicipalVoteNo,$AC:$AC,Sheet1!S71_ItemType,$AD:$AD)","v":0},{"$f":"-SUMIFS(Sheet1!S71_OY2BudgetAmount,Sheet1!S71_SubMunicipalVoteNo,$AC:$AC,Sheet1!S71_ItemType,$AD:$AD)","v":0},null,null,null,null,null,null,null,null,null,null,null,null,null,null,null,null,null,29,"IR"]
[{"$f":"IF(RIGHT('Org structure'!D23,18)<>\"[Name of sub-vote]\",'Org structure'!D23,\"\")","v":""},null,{"$f":"SUMIFS(Sheet1!S71_PPPYearAmount,Sheet1!S71_SubMunicipalVoteNo,$AC:$AC,Sheet1!S71_ItemType,$AD:$AD)","v":0},{"$f":"SUMIFS(Sheet1!S71_PPYearAmount,Sheet1!S71_SubMunicipalVoteNo,$AC:$AC,Sheet1!S71_ItemType,$AD:$AD)","v":0},{"$f":"SUMIFS(Sheet1!S71_PYearAmount,Sheet1!S71_SubMunicipalVoteNo,$AC:$AC,Sheet1!S71_ItemType,$AD:$AD)","v":0},{"$f":"-SUMIFS(Sheet1!S71_OriginalBudAmnt,Sheet1!S71_SubMunicipalVoteNo,$AC:$AC,Sheet1!S71_ItemType,$AD:$AD)","v":0},{"$f":"-SUMIFS(Sheet1!S71_AdjustmentBudAmnt,Sheet1!S71_SubMunicipalVoteNo,$AC:$AC,Sheet1!S71_ItemType,$AD:$AD)","v":0},{"$f":"-SUMIFS(Sheet1!S71_AdjustmentBudAmnt,Sheet1!S71_SubMunicipalVoteNo,$AC:$AC,Sheet1!S71_ItemType,$AD:$AD)","v":0},{"$f":"-SUMIFS(Sheet1!S71_ASBudgetAmount,Sheet1!S71_SubMunicipalVoteNo,$AC:$AC,Sheet1!S71_ItemType,$AD:$AD)","v":0},{"$f":"-SUMIFS(Sheet1!S71_OY1BudgetAmount,Sheet1!S71_SubMunicipalVoteNo,$AC:$AC,Sheet1!S71_ItemType,$AD:$AD)","v":0},{"$f":"-SUMIFS(Sheet1!S71_OY2BudgetAmount,Sheet1!S71_SubMunicipalVoteNo,$AC:$AC,Sheet1!S71_ItemType,$AD:$AD)","v":0},null,null,null,null,null,null,null,null,null,null,null,null,null,null,null,null,null,210,"IR"]
[{"$f":"'Org structure'!A4","v":"Vote 3 - Planning and Development"},null,{"$f":"SUM(C28:C37)","v":0},15100478,15621169,15138788,15588538,15588538,14912538,15371524,15769531]
[{"$f":"IF(RIGHT('Org structure'!D25,18)<>\"[Name of sub-vote]\",'Org structure'!D25,\"\")","v":"3.1 - Corporate Wide Strategic Planning (IDPs, LEDs)"},null,{"$f":"SUMIFS(Sheet1!S71_PPPYearAmount,Sheet1!S71_SubMunicipalVoteNo,$AC:$AC,Sheet1!S71_ItemType,$AD:$AD)","v":0},{"$f":"SUMIFS(Sheet1!S71_PPYearAmount,Sheet1!S71_SubMunicipalVoteNo,$AC:$AC,Sheet1!S71_ItemType,$AD:$AD)","v":0},{"$f":"SUMIFS(Sheet1!S71_PYearAmount,Sheet1!S71_SubMunicipalVoteNo,$AC:$AC,Sheet1!S71_ItemType,$AD:$AD)","v":0},{"$f":"-SUMIFS(Sheet1!S71_OriginalBudAmnt,Sheet1!S71_SubMunicipalVoteNo,$AC:$AC,Sheet1!S71_ItemType,$AD:$AD)","v":0},{"$f":"-SUMIFS(Sheet1!S71_AdjustmentBudAmnt,Sheet1!S71_SubMunicipalVoteNo,$AC:$AC,Sheet1!S71_ItemType,$AD:$AD)","v":0},{"$f":"-SUMIFS(Sheet1!S71_AdjustmentBudAmnt,Sheet1!S71_SubMunicipalVoteNo,$AC:$AC,Sheet1!S71_ItemType,$AD:$AD)","v":0},{"$f":"-SUMIFS(Sheet1!S71_ASBudgetAmount,Sheet1!S71_SubMunicipalVoteNo,$AC:$AC,Sheet1!S71_ItemType,$AD:$AD)","v":0},{"$f":"-SUMIFS(Sheet1!S71_OY1BudgetAmount,Sheet1!S71_SubMunicipalVoteNo,$AC:$AC,Sheet1!S71_ItemType,$AD:$AD)","v":0},{"$f":"-SUMIFS(Sheet1!S71_OY2BudgetAmount,Sheet1!S71_SubMunicipalVoteNo,$AC:$AC,Sheet1!S71_ItemType,$AD:$AD)","v":0},null,null,null,null,null,null,null,null,null,null,null,null,null,null,null,null,null,31,"IR"]
[{"$f":"IF(RIGHT('Org structure'!D26,18)<>\"[Name of sub-vote]\",'Org structure'!D26,\"\")","v":"3.2 - Development Facilitation"},null,{"$f":"SUMIFS(Sheet1!S71_PPPYearAmount,Sheet1!S71_SubMunicipalVoteNo,$AC:$AC,Sheet1!S71_ItemType,$AD:$AD)","v":0},{"$f":"SUMIFS(Sheet1!S71_PPYearAmount,Sheet1!S71_SubMunicipalVoteNo,$AC:$AC,Sheet1!S71_ItemType,$AD:$AD)","v":0},{"$f":"SUMIFS(Sheet1!S71_PYearAmount,Sheet1!S71_SubMunicipalVoteNo,$AC:$AC,Sheet1!S71_ItemType,$AD:$AD)","v":0},{"$f":"-SUMIFS(Sheet1!S71_OriginalBudAmnt,Sheet1!S71_SubMunicipalVoteNo,$AC:$AC,Sheet1!S71_ItemType,$AD:$AD)","v":0},{"$f":"-SUMIFS(Sheet1!S71_AdjustmentBudAmnt,Sheet1!S71_SubMunicipalVoteNo,$AC:$AC,Sheet1!S71_ItemType,$AD:$AD)","v":0},{"$f":"-SUMIFS(Sheet1!S71_AdjustmentBudAmnt,Sheet1!S71_SubMunicipalVoteNo,$AC:$AC,Sheet1!S71_ItemType,$AD:$AD)","v":0},{"$f":"-SUMIFS(Sheet1!S71_ASBudgetAmount,Sheet1!S71_SubMunicipalVoteNo,$AC:$AC,Sheet1!S71_ItemType,$AD:$AD)","v":0},{"$f":"-SUMIFS(Sheet1!S71_OY1BudgetAmount,Sheet1!S71_SubMunicipalVoteNo,$AC:$AC,Sheet1!S71_ItemType,$AD:$AD)","v":0},{"$f":"-SUMIFS(Sheet1!S71_OY2BudgetAmount,Sheet1!S71_SubMunicipalVoteNo,$AC:$AC,Sheet1!S71_ItemType,$AD:$AD)","v":0},null,null,null,null,null,null,null,null,null,null,null,null,null,null,null,null,null,32,"IR"]
[{"$f":"IF(RIGHT('Org structure'!D27,18)<>\"[Name of sub-vote]\",'Org structure'!D27,\"\")","v":"3.3 - Economic Development/Planning"},null,{"$f":"SUMIFS(Sheet1!S71_PPPYearAmount,Sheet1!S71_SubMunicipalVoteNo,$AC:$AC,Sheet1!S71_ItemType,$AD:$AD)","v":0},{"$f":"SUMIFS(Sheet1!S71_PPYearAmount,Sheet1!S71_SubMunicipalVoteNo,$AC:$AC,Sheet1!S71_ItemType,$AD:$AD)","v":15100478},{"$f":"SUMIFS(Sheet1!S71_PYearAmount,Sheet1!S71_SubMunicipalVoteNo,$AC:$AC,Sheet1!S71_ItemType,$AD:$AD)","v":15621169},{"$f":"-SUMIFS(Sheet1!S71_OriginalBudAmnt,Sheet1!S71_SubMunicipalVoteNo,$AC:$AC,Sheet1!S71_ItemType,$AD:$AD)","v":15138788},{"$f":"-SUMIFS(Sheet1!S71_AdjustmentBudAmnt,Sheet1!S71_SubMunicipalVoteNo,$AC:$AC,Sheet1!S71_ItemType,$AD:$AD)","v":15588538},{"$f":"-SUMIFS(Sheet1!S71_AdjustmentBudAmnt,Sheet1!S71_SubMunicipalVoteNo,$AC:$AC,Sheet1!S71_ItemType,$AD:$AD)","v":15588538},{"$f":"-SUMIFS(Sheet1!S71_ASBudgetAmount,Sheet1!S71_SubMunicipalVoteNo,$AC:$AC,Sheet1!S71_ItemType,$AD:$AD)","v":14912538},{"$f":"-SUMIFS(Sheet1!S71_OY1BudgetAmount,Sheet1!S71_SubMunicipalVoteNo,$AC:$AC,Sheet1!S71_ItemType,$AD:$AD)","v":15371524},{"$f":"-SUMIFS(Sheet1!S71_OY2BudgetAmount,Sheet1!S71_SubMunicipalVoteNo,$AC:$AC,Sheet1!S71_ItemType,$AD:$AD)","v":15769531},null,null,null,null,null,null,null,null,null,null,null,null,null,null,null,null,null,33,"IR"]
[{"$f":"IF(RIGHT('Org structure'!D28,18)<>\"[Name of sub-vote]\",'Org structure'!D28,\"\")","v":"3.4 - Billboards"},null,{"$f":"SUMIFS(Sheet1!S71_PPPYearAmount,Sheet1!S71_SubMunicipalVoteNo,$AC:$AC,Sheet1!S71_ItemType,$AD:$AD)","v":0},{"$f":"SUMIFS(Sheet1!S71_PPYearAmount,Sheet1!S71_SubMunicipalVoteNo,$AC:$AC,Sheet1!S71_ItemType,$AD:$AD)","v":0},{"$f":"SUMIFS(Sheet1!S71_PYearAmount,Sheet1!S71_SubMunicipalVoteNo,$AC:$AC,Sheet1!S71_ItemType,$AD:$AD)","v":0},{"$f":"-SUMIFS(Sheet1!S71_OriginalBudAmnt,Sheet1!S71_SubMunicipalVoteNo,$AC:$AC,Sheet1!S71_ItemType,$AD:$AD)","v":0},{"$f":"-SUMIFS(Sheet1!S71_AdjustmentBudAmnt,Sheet1!S71_SubMunicipalVoteNo,$AC:$AC,Sheet1!S71_ItemType,$AD:$AD)","v":0},{"$f":"-SUMIFS(Sheet1!S71_AdjustmentBudAmnt,Sheet1!S71_SubMunicipalVoteNo,$AC:$AC,Sheet1!S71_ItemType,$AD:$AD)","v":0},{"$f":"-SUMIFS(Sheet1!S71_ASBudgetAmount,Sheet1!S71_SubMunicipalVoteNo,$AC:$AC,Sheet1!S71_ItemType,$AD:$AD)","v":0},{"$f":"-SUMIFS(Sheet1!S71_OY1BudgetAmount,Sheet1!S71_SubMunicipalVoteNo,$AC:$AC,Sheet1!S71_ItemType,$AD:$AD)","v":0},{"$f":"-SUMIFS(Sheet1!S71_OY2BudgetAmount,Sheet1!S71_SubMunicipalVoteNo,$AC:$AC,Sheet1!S71_ItemType,$AD:$AD)","v":0},null,null,null,null,null,null,null,null,null,null,null,null,null,null,null,null,null,34,"IR"]
[{"$f":"IF(RIGHT('Org structure'!D29,18)<>\"[Name of sub-vote]\",'Org structure'!D29,\"\")","v":""},null,{"$f":"SUMIFS(Sheet1!S71_PPPYearAmount,Sheet1!S71_SubMunicipalVoteNo,$AC:$AC,Sheet1!S71_ItemType,$AD:$AD)","v":0},{"$f":"SUMIFS(Sheet1!S71_PPYearAmount,Sheet1!S71_SubMunicipalVoteNo,$AC:$AC,Sheet1!S71_ItemType,$AD:$AD)","v":0},{"$f":"SUMIFS(Sheet1!S71_PYearAmount,Sheet1!S71_SubMunicipalVoteNo,$AC:$AC,Sheet1!S71_ItemType,$AD:$AD)","v":0},{"$f":"-SUMIFS(Sheet1!S71_OriginalBudAmnt,Sheet1!S71_SubMunicipalVoteNo,$AC:$AC,Sheet1!S71_ItemType,$AD:$AD)","v":0},{"$f":"-SUMIFS(Sheet1!S71_AdjustmentBudAmnt,Sheet1!S71_SubMunicipalVoteNo,$AC:$AC,Sheet1!S71_ItemType,$AD:$AD)","v":0},{"$f":"-SUMIFS(Sheet1!S71_AdjustmentBudAmnt,Sheet1!S71_SubMunicipalVoteNo,$AC:$AC,Sheet1!S71_ItemType,$AD:$AD)","v":0},{"$f":"-SUMIFS(Sheet1!S71_ASBudgetAmount,Sheet1!S71_SubMunicipalVoteNo,$AC:$AC,Sheet1!S71_ItemType,$AD:$AD)","v":0},{"$f":"-SUMIFS(Sheet1!S71_OY1BudgetAmount,Sheet1!S71_SubMunicipalVoteNo,$AC:$AC,Sheet1!S71_ItemType,$AD:$AD)","v":0},{"$f":"-SUMIFS(Sheet1!S71_OY2BudgetAmount,Sheet1!S71_SubMunicipalVoteNo,$AC:$AC,Sheet1!S71_ItemType,$AD:$AD)","v":0},null,null,null,null,null,null,null,null,null,null,null,null,null,null,null,null,null,35,"IR"]
[{"$f":"IF(RIGHT('Org structure'!D30,18)<>\"[Name of sub-vote]\",'Org structure'!D30,\"\")","v":""},null,{"$f":"SUMIFS(Sheet1!S71_PPPYearAmount,Sheet1!S71_SubMunicipalVoteNo,$AC:$AC,Sheet1!S71_ItemType,$AD:$AD)","v":0},{"$f":"SUMIFS(Sheet1!S71_PPYearAmount,Sheet1!S71_SubMunicipalVoteNo,$AC:$AC,Sheet1!S71_ItemType,$AD:$AD)","v":0},{"$f":"SUMIFS(Sheet1!S71_PYearAmount,Sheet1!S71_SubMunicipalVoteNo,$AC:$AC,Sheet1!S71_ItemType,$AD:$AD)","v":0},{"$f":"-SUMIFS(Sheet1!S71_OriginalBudAmnt,Sheet1!S71_SubMunicipalVoteNo,$AC:$AC,Sheet1!S71_ItemType,$AD:$AD)","v":0},{"$f":"-SUMIFS(Sheet1!S71_AdjustmentBudAmnt,Sheet1!S71_SubMunicipalVoteNo,$AC:$AC,Sheet1!S71_ItemType,$AD:$AD)","v":0},{"$f":"-SUMIFS(Sheet1!S71_AdjustmentBudAmnt,Sheet1!S71_SubMunicipalVoteNo,$AC:$AC,Sheet1!S71_ItemType,$AD:$AD)","v":0},{"$f":"-SUMIFS(Sheet1!S71_ASBudgetAmount,Sheet1!S71_SubMunicipalVoteNo,$AC:$AC,Sheet1!S71_ItemType,$AD:$AD)","v":0},{"$f":"-SUMIFS(Sheet1!S71_OY1BudgetAmount,Sheet1!S71_SubMunicipalVoteNo,$AC:$AC,Sheet1!S71_ItemType,$AD:$AD)","v":0},{"$f":"-SUMIFS(Sheet1!S71_OY2BudgetAmount,Sheet1!S71_SubMunicipalVoteNo,$AC:$AC,Sheet1!S71_ItemType,$AD:$AD)","v":0},null,null,null,null,null,null,null,null,null,null,null,null,null,null,null,null,null,36,"IR"]
[{"$f":"IF(RIGHT('Org structure'!D31,18)<>\"[Name of sub-vote]\",'Org structure'!D31,\"\")","v":""},null,{"$f":"SUMIFS(Sheet1!S71_PPPYearAmount,Sheet1!S71_SubMunicipalVoteNo,$AC:$AC,Sheet1!S71_ItemType,$AD:$AD)","v":0},{"$f":"SUMIFS(Sheet1!S71_PPYearAmount,Sheet1!S71_SubMunicipalVoteNo,$AC:$AC,Sheet1!S71_ItemType,$AD:$AD)","v":0},{"$f":"SUMIFS(Sheet1!S71_PYearAmount,Sheet1!S71_SubMunicipalVoteNo,$AC:$AC,Sheet1!S71_ItemType,$AD:$AD)","v":0},{"$f":"-SUMIFS(Sheet1!S71_OriginalBudAmnt,Sheet1!S71_SubMunicipalVoteNo,$AC:$AC,Sheet1!S71_ItemType,$AD:$AD)","v":0},{"$f":"-SUMIFS(Sheet1!S71_AdjustmentBudAmnt,Sheet1!S71_SubMunicipalVoteNo,$AC:$AC,Sheet1!S71_ItemType,$AD:$AD)","v":0},{"$f":"-SUMIFS(Sheet1!S71_AdjustmentBudAmnt,Sheet1!S71_SubMunicipalVoteNo,$AC:$AC,Sheet1!S71_ItemType,$AD:$AD)","v":0},{"$f":"-SUMIFS(Sheet1!S71_ASBudgetAmount,Sheet1!S71_SubMunicipalVoteNo,$AC:$AC,Sheet1!S71_ItemType,$AD:$AD)","v":0},{"$f":"-SUMIFS(Sheet1!S71_OY1BudgetAmount,Sheet1!S71_SubMunicipalVoteNo,$AC:$AC,Sheet1!S71_ItemType,$AD:$AD)","v":0},{"$f":"-SUMIFS(Sheet1!S71_OY2BudgetAmount,Sheet1!S71_SubMunicipalVoteNo,$AC:$AC,Sheet1!S71_ItemType,$AD:$AD)","v":0},null,null,null,null,null,null,null,null,null,null,null,null,null,null,null,null,null,37,"IR"]
[{"$f":"IF(RIGHT('Org structure'!D32,18)<>\"[Name of sub-vote]\",'Org structure'!D32,\"\")","v":""},null,{"$f":"SUMIFS(Sheet1!S71_PPPYearAmount,Sheet1!S71_SubMunicipalVoteNo,$AC:$AC,Sheet1!S71_ItemType,$AD:$AD)","v":0},{"$f":"SUMIFS(Sheet1!S71_PPYearAmount,Sheet1!S71_SubMunicipalVoteNo,$AC:$AC,Sheet1!S71_ItemType,$AD:$AD)","v":0},{"$f":"SUMIFS(Sheet1!S71_PYearAmount,Sheet1!S71_SubMunicipalVoteNo,$AC:$AC,Sheet1!S71_ItemType,$AD:$AD)","v":0},{"$f":"-SUMIFS(Sheet1!S71_OriginalBudAmnt,Sheet1!S71_SubMunicipalVoteNo,$AC:$AC,Sheet1!S71_ItemType,$AD:$AD)","v":0},{"$f":"-SUMIFS(Sheet1!S71_AdjustmentBudAmnt,Sheet1!S71_SubMunicipalVoteNo,$AC:$AC,Sheet1!S71_ItemType,$AD:$AD)","v":0},{"$f":"-SUMIFS(Sheet1!S71_AdjustmentBudAmnt,Sheet1!S71_SubMunicipalVoteNo,$AC:$AC,Sheet1!S71_ItemType,$AD:$AD)","v":0},{"$f":"-SUMIFS(Sheet1!S71_ASBudgetAmount,Sheet1!S71_SubMunicipalVoteNo,$AC:$AC,Sheet1!S71_ItemType,$AD:$AD)","v":0},{"$f":"-SUMIFS(Sheet1!S71_OY1BudgetAmount,Sheet1!S71_SubMunicipalVoteNo,$AC:$AC,Sheet1!S71_ItemType,$AD:$AD)","v":0},{"$f":"-SUMIFS(Sheet1!S71_OY2BudgetAmount,Sheet1!S71_SubMunicipalVoteNo,$AC:$AC,Sheet1!S71_ItemType,$AD:$AD)","v":0},null,null,null,null,null,null,null,null,null,null,null,null,null,null,null,null,null,38,"IR"]
[{"$f":"IF(RIGHT('Org structure'!D33,18)<>\"[Name of sub-vote]\",'Org structure'!D33,\"\")","v":""},null,{"$f":"SUMIFS(Sheet1!S71_PPPYearAmount,Sheet1!S71_SubMunicipalVoteNo,$AC:$AC,Sheet1!S71_ItemType,$AD:$AD)","v":0},{"$f":"SUMIFS(Sheet1!S71_PPYearAmount,Sheet1!S71_SubMunicipalVoteNo,$AC:$AC,Sheet1!S71_ItemType,$AD:$AD)","v":0},{"$f":"SUMIFS(Sheet1!S71_PYearAmount,Sheet1!S71_SubMunicipalVoteNo,$AC:$AC,Sheet1!S71_ItemType,$AD:$AD)","v":0},{"$f":"-SUMIFS(Sheet1!S71_OriginalBudAmnt,Sheet1!S71_SubMunicipalVoteNo,$AC:$AC,Sheet1!S71_ItemType,$AD:$AD)","v":0},{"$f":"-SUMIFS(Sheet1!S71_AdjustmentBudAmnt,Sheet1!S71_SubMunicipalVoteNo,$AC:$AC,Sheet1!S71_ItemType,$AD:$AD)","v":0},{"$f":"-SUMIFS(Sheet1!S71_AdjustmentBudAmnt,Sheet1!S71_SubMunicipalVoteNo,$AC:$AC,Sheet1!S71_ItemType,$AD:$AD)","v":0},{"$f":"-SUMIFS(Sheet1!S71_ASBudgetAmount,Sheet1!S71_SubMunicipalVoteNo,$AC:$AC,Sheet1!S71_ItemType,$AD:$AD)","v":0},{"$f":"-SUMIFS(Sheet1!S71_OY1BudgetAmount,Sheet1!S71_SubMunicipalVoteNo,$AC:$AC,Sheet1!S71_ItemType,$AD:$AD)","v":0},{"$f":"-SUMIFS(Sheet1!S71_OY2BudgetAmount,Sheet1!S71_SubMunicipalVoteNo,$AC:$AC,Sheet1!S71_ItemType,$AD:$AD)","v":0},null,null,null,null,null,null,null,null,null,null,null,null,null,null,null,null,null,39,"IR"]
[{"$f":"IF(RIGHT('Org structure'!D34,18)<>\"[Name of sub-vote]\",'Org structure'!D34,\"\")","v":""},null,{"$f":"SUMIFS(Sheet1!S71_PPPYearAmount,Sheet1!S71_SubMunicipalVoteNo,$AC:$AC,Sheet1!S71_ItemType,$AD:$AD)","v":0},{"$f":"SUMIFS(Sheet1!S71_PPYearAmount,Sheet1!S71_SubMunicipalVoteNo,$AC:$AC,Sheet1!S71_ItemType,$AD:$AD)","v":0},{"$f":"SUMIFS(Sheet1!S71_PYearAmount,Sheet1!S71_SubMunicipalVoteNo,$AC:$AC,Sheet1!S71_ItemType,$AD:$AD)","v":0},{"$f":"-SUMIFS(Sheet1!S71_OriginalBudAmnt,Sheet1!S71_SubMunicipalVoteNo,$AC:$AC,Sheet1!S71_ItemType,$AD:$AD)","v":0},{"$f":"-SUMIFS(Sheet1!S71_AdjustmentBudAmnt,Sheet1!S71_SubMunicipalVoteNo,$AC:$AC,Sheet1!S71_ItemType,$AD:$AD)","v":0},{"$f":"-SUMIFS(Sheet1!S71_AdjustmentBudAmnt,Sheet1!S71_SubMunicipalVoteNo,$AC:$AC,Sheet1!S71_ItemType,$AD:$AD)","v":0},{"$f":"-SUMIFS(Sheet1!S71_ASBudgetAmount,Sheet1!S71_SubMunicipalVoteNo,$AC:$AC,Sheet1!S71_ItemType,$AD:$AD)","v":0},{"$f":"-SUMIFS(Sheet1!S71_OY1BudgetAmount,Sheet1!S71_SubMunicipalVoteNo,$AC:$AC,Sheet1!S71_ItemType,$AD:$AD)","v":0},{"$f":"-SUMIFS(Sheet1!S71_OY2BudgetAmount,Sheet1!S71_SubMunicipalVoteNo,$AC:$AC,Sheet1!S71_ItemType,$AD:$AD)","v":0},null,null,null,null,null,null,null,null,null,null,null,null,null,null,null,null,null,310,"IR"]
[{"$f":"'Org structure'!A5","v":"Vote 4 - Community and Social Services"},null,{"$f":"SUM(C39:C48)","v":0},0,0,0,0,0,0,0,0]
[{"$f":"IF(RIGHT('Org structure'!D36,18)<>\"[Name of sub-vote]\",'Org structure'!D36,\"\")","v":"4.1 - Disaster Management"},null,{"$f":"SUMIFS(Sheet1!S71_PPPYearAmount,Sheet1!S71_SubMunicipalVoteNo,$AC:$AC,Sheet1!S71_ItemType,$AD:$AD)","v":0},{"$f":"SUMIFS(Sheet1!S71_PPYearAmount,Sheet1!S71_SubMunicipalVoteNo,$AC:$AC,Sheet1!S71_ItemType,$AD:$AD)","v":0},{"$f":"SUMIFS(Sheet1!S71_PYearAmount,Sheet1!S71_SubMunicipalVoteNo,$AC:$AC,Sheet1!S71_ItemType,$AD:$AD)","v":0},{"$f":"-SUMIFS(Sheet1!S71_OriginalBudAmnt,Sheet1!S71_SubMunicipalVoteNo,$AC:$AC,Sheet1!S71_ItemType,$AD:$AD)","v":0},{"$f":"-SUMIFS(Sheet1!S71_AdjustmentBudAmnt,Sheet1!S71_SubMunicipalVoteNo,$AC:$AC,Sheet1!S71_ItemType,$AD:$AD)","v":0},{"$f":"-SUMIFS(Sheet1!S71_AdjustmentBudAmnt,Sheet1!S71_SubMunicipalVoteNo,$AC:$AC,Sheet1!S71_ItemType,$AD:$AD)","v":0},{"$f":"-SUMIFS(Sheet1!S71_ASBudgetAmount,Sheet1!S71_SubMunicipalVoteNo,$AC:$AC,Sheet1!S71_ItemType,$AD:$AD)","v":0},{"$f":"-SUMIFS(Sheet1!S71_OY1BudgetAmount,Sheet1!S71_SubMunicipalVoteNo,$AC:$AC,Sheet1!S71_ItemType,$AD:$AD)","v":0},{"$f":"-SUMIFS(Sheet1!S71_OY2BudgetAmount,Sheet1!S71_SubMunicipalVoteNo,$AC:$AC,Sheet1!S71_ItemType,$AD:$AD)","v":0},null,null,null,null,null,null,null,null,null,null,null,null,null,null,null,null,null,41,"IR"]
[{"$f":"IF(RIGHT('Org structure'!D37,18)<>\"[Name of sub-vote]\",'Org structure'!D37,\"\")","v":""},null,{"$f":"SUMIFS(Sheet1!S71_PPPYearAmount,Sheet1!S71_SubMunicipalVoteNo,$AC:$AC,Sheet1!S71_ItemType,$AD:$AD)","v":0},{"$f":"SUMIFS(Sheet1!S71_PPYearAmount,Sheet1!S71_SubMunicipalVoteNo,$AC:$AC,Sheet1!S71_ItemType,$AD:$AD)","v":0},{"$f":"SUMIFS(Sheet1!S71_PYearAmount,Sheet1!S71_SubMunicipalVoteNo,$AC:$AC,Sheet1!S71_ItemType,$AD:$AD)","v":0},{"$f":"-SUMIFS(Sheet1!S71_OriginalBudAmnt,Sheet1!S71_SubMunicipalVoteNo,$AC:$AC,Sheet1!S71_ItemType,$AD:$AD)","v":0},{"$f":"-SUMIFS(Sheet1!S71_AdjustmentBudAmnt,Sheet1!S71_SubMunicipalVoteNo,$AC:$AC,Sheet1!S71_ItemType,$AD:$AD)","v":0},{"$f":"-SUMIFS(Sheet1!S71_AdjustmentBudAmnt,Sheet1!S71_SubMunicipalVoteNo,$AC:$AC,Sheet1!S71_ItemType,$AD:$AD)","v":0},{"$f":"-SUMIFS(Sheet1!S71_ASBudgetAmount,Sheet1!S71_SubMunicipalVoteNo,$AC:$AC,Sheet1!S71_ItemType,$AD:$AD)","v":0},{"$f":"-SUMIFS(Sheet1!S71_OY1BudgetAmount,Sheet1!S71_SubMunicipalVoteNo,$AC:$AC,Sheet1!S71_ItemType,$AD:$AD)","v":0},{"$f":"-SUMIFS(Sheet1!S71_OY2BudgetAmount,Sheet1!S71_SubMunicipalVoteNo,$AC:$AC,Sheet1!S71_ItemType,$AD:$AD)","v":0},null,null,null,null,null,null,null,null,null,null,null,null,null,null,null,null,null,42,"IR"]
[{"$f":"IF(RIGHT('Org structure'!D38,18)<>\"[Name of sub-vote]\",'Org structure'!D38,\"\")","v":""},null,{"$f":"SUMIFS(Sheet1!S71_PPPYearAmount,Sheet1!S71_SubMunicipalVoteNo,$AC:$AC,Sheet1!S71_ItemType,$AD:$AD)","v":0},{"$f":"SUMIFS(Sheet1!S71_PPYearAmount,Sheet1!S71_SubMunicipalVoteNo,$AC:$AC,Sheet1!S71_ItemType,$AD:$AD)","v":0},{"$f":"SUMIFS(Sheet1!S71_PYearAmount,Sheet1!S71_SubMunicipalVoteNo,$AC:$AC,Sheet1!S71_ItemType,$AD:$AD)","v":0},{"$f":"-SUMIFS(Sheet1!S71_OriginalBudAmnt,Sheet1!S71_SubMunicipalVoteNo,$AC:$AC,Sheet1!S71_ItemType,$AD:$AD)","v":0},{"$f":"-SUMIFS(Sheet1!S71_AdjustmentBudAmnt,Sheet1!S71_SubMunicipalVoteNo,$AC:$AC,Sheet1!S71_ItemType,$AD:$AD)","v":0},{"$f":"-SUMIFS(Sheet1!S71_AdjustmentBudAmnt,Sheet1!S71_SubMunicipalVoteNo,$AC:$AC,Sheet1!S71_ItemType,$AD:$AD)","v":0},{"$f":"-SUMIFS(Sheet1!S71_ASBudgetAmount,Sheet1!S71_SubMunicipalVoteNo,$AC:$AC,Sheet1!S71_ItemType,$AD:$AD)","v":0},{"$f":"-SUMIFS(Sheet1!S71_OY1BudgetAmount,Sheet1!S71_SubMunicipalVoteNo,$AC:$AC,Sheet1!S71_ItemType,$AD:$AD)","v":0},{"$f":"-SUMIFS(Sheet1!S71_OY2BudgetAmount,Sheet1!S71_SubMunicipalVoteNo,$AC:$AC,Sheet1!S71_ItemType,$AD:$AD)","v":0},null,null,null,null,null,null,null,null,null,null,null,null,null,null,null,null,null,43,"IR"]
[{"$f":"IF(RIGHT('Org structure'!D39,18)<>\"[Name of sub-vote]\",'Org structure'!D39,\"\")","v":""},null,{"$f":"SUMIFS(Sheet1!S71_PPPYearAmount,Sheet1!S71_SubMunicipalVoteNo,$AC:$AC,Sheet1!S71_ItemType,$AD:$AD)","v":0},{"$f":"SUMIFS(Sheet1!S71_PPYearAmount,Sheet1!S71_SubMunicipalVoteNo,$AC:$AC,Sheet1!S71_ItemType,$AD:$AD)","v":0},{"$f":"SUMIFS(Sheet1!S71_PYearAmount,Sheet1!S71_SubMunicipalVoteNo,$AC:$AC,Sheet1!S71_ItemType,$AD:$AD)","v":0},{"$f":"-SUMIFS(Sheet1!S71_OriginalBudAmnt,Sheet1!S71_SubMunicipalVoteNo,$AC:$AC,Sheet1!S71_ItemType,$AD:$AD)","v":0},{"$f":"-SUMIFS(Sheet1!S71_AdjustmentBudAmnt,Sheet1!S71_SubMunicipalVoteNo,$AC:$AC,Sheet1!S71_ItemType,$AD:$AD)","v":0},{"$f":"-SUMIFS(Sheet1!S71_AdjustmentBudAmnt,Sheet1!S71_SubMunicipalVoteNo,$AC:$AC,Sheet1!S71_ItemType,$AD:$AD)","v":0},{"$f":"-SUMIFS(Sheet1!S71_ASBudgetAmount,Sheet1!S71_SubMunicipalVoteNo,$AC:$AC,Sheet1!S71_ItemType,$AD:$AD)","v":0},{"$f":"-SUMIFS(Sheet1!S71_OY1BudgetAmount,Sheet1!S71_SubMunicipalVoteNo,$AC:$AC,Sheet1!S71_ItemType,$AD:$AD)","v":0},{"$f":"-SUMIFS(Sheet1!S71_OY2BudgetAmount,Sheet1!S71_SubMunicipalVoteNo,$AC:$AC,Sheet1!S71_ItemType,$AD:$AD)","v":0},null,null,null,null,null,null,null,null,null,null,null,null,null,null,null,null,null,44,"IR"]
[{"$f":"IF(RIGHT('Org structure'!D40,18)<>\"[Name of sub-vote]\",'Org structure'!D40,\"\")","v":""},null,{"$f":"SUMIFS(Sheet1!S71_PPPYearAmount,Sheet1!S71_SubMunicipalVoteNo,$AC:$AC,Sheet1!S71_ItemType,$AD:$AD)","v":0},{"$f":"SUMIFS(Sheet1!S71_PPYearAmount,Sheet1!S71_SubMunicipalVoteNo,$AC:$AC,Sheet1!S71_ItemType,$AD:$AD)","v":0},{"$f":"SUMIFS(Sheet1!S71_PYearAmount,Sheet1!S71_SubMunicipalVoteNo,$AC:$AC,Sheet1!S71_ItemType,$AD:$AD)","v":0},{"$f":"-SUMIFS(Sheet1!S71_OriginalBudAmnt,Sheet1!S71_SubMunicipalVoteNo,$AC:$AC,Sheet1!S71_ItemType,$AD:$AD)","v":0},{"$f":"-SUMIFS(Sheet1!S71_AdjustmentBudAmnt,Sheet1!S71_SubMunicipalVoteNo,$AC:$AC,Sheet1!S71_ItemType,$AD:$AD)","v":0},{"$f":"-SUMIFS(Sheet1!S71_AdjustmentBudAmnt,Sheet1!S71_SubMunicipalVoteNo,$AC:$AC,Sheet1!S71_ItemType,$AD:$AD)","v":0},{"$f":"-SUMIFS(Sheet1!S71_ASBudgetAmount,Sheet1!S71_SubMunicipalVoteNo,$AC:$AC,Sheet1!S71_ItemType,$AD:$AD)","v":0},{"$f":"-SUMIFS(Sheet1!S71_OY1BudgetAmount,Sheet1!S71_SubMunicipalVoteNo,$AC:$AC,Sheet1!S71_ItemType,$AD:$AD)","v":0},{"$f":"-SUMIFS(Sheet1!S71_OY2BudgetAmount,Sheet1!S71_SubMunicipalVoteNo,$AC:$AC,Sheet1!S71_ItemType,$AD:$AD)","v":0},null,null,null,null,null,null,null,null,null,null,null,null,null,null,null,null,null,45,"IR"]
[{"$f":"IF(RIGHT('Org structure'!D41,18)<>\"[Name of sub-vote]\",'Org structure'!D41,\"\")","v":""},null,{"$f":"SUMIFS(Sheet1!S71_PPPYearAmount,Sheet1!S71_SubMunicipalVoteNo,$AC:$AC,Sheet1!S71_ItemType,$AD:$AD)","v":0},{"$f":"SUMIFS(Sheet1!S71_PPYearAmount,Sheet1!S71_SubMunicipalVoteNo,$AC:$AC,Sheet1!S71_ItemType,$AD:$AD)","v":0},{"$f":"SUMIFS(Sheet1!S71_PYearAmount,Sheet1!S71_SubMunicipalVoteNo,$AC:$AC,Sheet1!S71_ItemType,$AD:$AD)","v":0},{"$f":"-SUMIFS(Sheet1!S71_OriginalBudAmnt,Sheet1!S71_SubMunicipalVoteNo,$AC:$AC,Sheet1!S71_ItemType,$AD:$AD)","v":0},{"$f":"-SUMIFS(Sheet1!S71_AdjustmentBudAmnt,Sheet1!S71_SubMunicipalVoteNo,$AC:$AC,Sheet1!S71_ItemType,$AD:$AD)","v":0},{"$f":"-SUMIFS(Sheet1!S71_AdjustmentBudAmnt,Sheet1!S71_SubMunicipalVoteNo,$AC:$AC,Sheet1!S71_ItemType,$AD:$AD)","v":0},{"$f":"-SUMIFS(Sheet1!S71_ASBudgetAmount,Sheet1!S71_SubMunicipalVoteNo,$AC:$AC,Sheet1!S71_ItemType,$AD:$AD)","v":0},{"$f":"-SUMIFS(Sheet1!S71_OY1BudgetAmount,Sheet1!S71_SubMunicipalVoteNo,$AC:$AC,Sheet1!S71_ItemType,$AD:$AD)","v":0},{"$f":"-SUMIFS(Sheet1!S71_OY2BudgetAmount,Sheet1!S71_SubMunicipalVoteNo,$AC:$AC,Sheet1!S71_ItemType,$AD:$AD)","v":0},null,null,null,null,null,null,null,null,null,null,null,null,null,null,null,null,null,46,"IR"]
[{"$f":"IF(RIGHT('Org structure'!D42,18)<>\"[Name of sub-vote]\",'Org structure'!D42,\"\")","v":""},null,{"$f":"SUMIFS(Sheet1!S71_PPPYearAmount,Sheet1!S71_SubMunicipalVoteNo,$AC:$AC,Sheet1!S71_ItemType,$AD:$AD)","v":0},{"$f":"SUMIFS(Sheet1!S71_PPYearAmount,Sheet1!S71_SubMunicipalVoteNo,$AC:$AC,Sheet1!S71_ItemType,$AD:$AD)","v":0},{"$f":"SUMIFS(Sheet1!S71_PYearAmount,Sheet1!S71_SubMunicipalVoteNo,$AC:$AC,Sheet1!S71_ItemType,$AD:$AD)","v":0},{"$f":"-SUMIFS(Sheet1!S71_OriginalBudAmnt,Sheet1!S71_SubMunicipalVoteNo,$AC:$AC,Sheet1!S71_ItemType,$AD:$AD)","v":0},{"$f":"-SUMIFS(Sheet1!S71_AdjustmentBudAmnt,Sheet1!S71_SubMunicipalVoteNo,$AC:$AC,Sheet1!S71_ItemType,$AD:$AD)","v":0},{"$f":"-SUMIFS(Sheet1!S71_AdjustmentBudAmnt,Sheet1!S71_SubMunicipalVoteNo,$AC:$AC,Sheet1!S71_ItemType,$AD:$AD)","v":0},{"$f":"-SUMIFS(Sheet1!S71_ASBudgetAmount,Sheet1!S71_SubMunicipalVoteNo,$AC:$AC,Sheet1!S71_ItemType,$AD:$AD)","v":0},{"$f":"-SUMIFS(Sheet1!S71_OY1BudgetAmount,Sheet1!S71_SubMunicipalVoteNo,$AC:$AC,Sheet1!S71_ItemType,$AD:$AD)","v":0},{"$f":"-SUMIFS(Sheet1!S71_OY2BudgetAmount,Sheet1!S71_SubMunicipalVoteNo,$AC:$AC,Sheet1!S71_ItemType,$AD:$AD)","v":0},null,null,null,null,null,null,null,null,null,null,null,null,null,null,null,null,null,47,"IR"]
[{"$f":"IF(RIGHT('Org structure'!D43,18)<>\"[Name of sub-vote]\",'Org structure'!D43,\"\")","v":""},null,{"$f":"SUMIFS(Sheet1!S71_PPPYearAmount,Sheet1!S71_SubMunicipalVoteNo,$AC:$AC,Sheet1!S71_ItemType,$AD:$AD)","v":0},{"$f":"SUMIFS(Sheet1!S71_PPYearAmount,Sheet1!S71_SubMunicipalVoteNo,$AC:$AC,Sheet1!S71_ItemType,$AD:$AD)","v":0},{"$f":"SUMIFS(Sheet1!S71_PYearAmount,Sheet1!S71_SubMunicipalVoteNo,$AC:$AC,Sheet1!S71_ItemType,$AD:$AD)","v":0},{"$f":"-SUMIFS(Sheet1!S71_OriginalBudAmnt,Sheet1!S71_SubMunicipalVoteNo,$AC:$AC,Sheet1!S71_ItemType,$AD:$AD)","v":0},{"$f":"-SUMIFS(Sheet1!S71_AdjustmentBudAmnt,Sheet1!S71_SubMunicipalVoteNo,$AC:$AC,Sheet1!S71_ItemType,$AD:$AD)","v":0},{"$f":"-SUMIFS(Sheet1!S71_AdjustmentBudAmnt,Sheet1!S71_SubMunicipalVoteNo,$AC:$AC,Sheet1!S71_ItemType,$AD:$AD)","v":0},{"$f":"-SUMIFS(Sheet1!S71_ASBudgetAmount,Sheet1!S71_SubMunicipalVoteNo,$AC:$AC,Sheet1!S71_ItemType,$AD:$AD)","v":0},{"$f":"-SUMIFS(Sheet1!S71_OY1BudgetAmount,Sheet1!S71_SubMunicipalVoteNo,$AC:$AC,Sheet1!S71_ItemType,$AD:$AD)","v":0},{"$f":"-SUMIFS(Sheet1!S71_OY2BudgetAmount,Sheet1!S71_SubMunicipalVoteNo,$AC:$AC,Sheet1!S71_ItemType,$AD:$AD)","v":0},null,null,null,null,null,null,null,null,null,null,null,null,null,null,null,null,null,48,"IR"]
[{"$f":"IF(RIGHT('Org structure'!D44,18)<>\"[Name of sub-vote]\",'Org structure'!D44,\"\")","v":""},null,{"$f":"SUMIFS(Sheet1!S71_PPPYearAmount,Sheet1!S71_SubMunicipalVoteNo,$AC:$AC,Sheet1!S71_ItemType,$AD:$AD)","v":0},{"$f":"SUMIFS(Sheet1!S71_PPYearAmount,Sheet1!S71_SubMunicipalVoteNo,$AC:$AC,Sheet1!S71_ItemType,$AD:$AD)","v":0},{"$f":"SUMIFS(Sheet1!S71_PYearAmount,Sheet1!S71_SubMunicipalVoteNo,$AC:$AC,Sheet1!S71_ItemType,$AD:$AD)","v":0},{"$f":"-SUMIFS(Sheet1!S71_OriginalBudAmnt,Sheet1!S71_SubMunicipalVoteNo,$AC:$AC,Sheet1!S71_ItemType,$AD:$AD)","v":0},{"$f":"-SUMIFS(Sheet1!S71_AdjustmentBudAmnt,Sheet1!S71_SubMunicipalVoteNo,$AC:$AC,Sheet1!S71_ItemType,$AD:$AD)","v":0},{"$f":"-SUMIFS(Sheet1!S71_AdjustmentBudAmnt,Sheet1!S71_SubMunicipalVoteNo,$AC:$AC,Sheet1!S71_ItemType,$AD:$AD)","v":0},{"$f":"-SUMIFS(Sheet1!S71_ASBudgetAmount,Sheet1!S71_SubMunicipalVoteNo,$AC:$AC,Sheet1!S71_ItemType,$AD:$AD)","v":0},{"$f":"-SUMIFS(Sheet1!S71_OY1BudgetAmount,Sheet1!S71_SubMunicipalVoteNo,$AC:$AC,Sheet1!S71_ItemType,$AD:$AD)","v":0},{"$f":"-SUMIFS(Sheet1!S71_OY2BudgetAmount,Sheet1!S71_SubMunicipalVoteNo,$AC:$AC,Sheet1!S71_ItemType,$AD:$AD)","v":0},null,null,null,null,null,null,null,null,null,null,null,null,null,null,null,null,null,49,"IR"]
[{"$f":"IF(RIGHT('Org structure'!D45,18)<>\"[Name of sub-vote]\",'Org structure'!D45,\"\")","v":""},null,{"$f":"SUMIFS(Sheet1!S71_PPPYearAmount,Sheet1!S71_SubMunicipalVoteNo,$AC:$AC,Sheet1!S71_ItemType,$AD:$AD)","v":0},{"$f":"SUMIFS(Sheet1!S71_PPYearAmount,Sheet1!S71_SubMunicipalVoteNo,$AC:$AC,Sheet1!S71_ItemType,$AD:$AD)","v":0},{"$f":"SUMIFS(Sheet1!S71_PYearAmount,Sheet1!S71_SubMunicipalVoteNo,$AC:$AC,Sheet1!S71_ItemType,$AD:$AD)","v":0},{"$f":"-SUMIFS(Sheet1!S71_OriginalBudAmnt,Sheet1!S71_SubMunicipalVoteNo,$AC:$AC,Sheet1!S71_ItemType,$AD:$AD)","v":0},{"$f":"-SUMIFS(Sheet1!S71_AdjustmentBudAmnt,Sheet1!S71_SubMunicipalVoteNo,$AC:$AC,Sheet1!S71_ItemType,$AD:$AD)","v":0},{"$f":"-SUMIFS(Sheet1!S71_AdjustmentBudAmnt,Sheet1!S71_SubMunicipalVoteNo,$AC:$AC,Sheet1!S71_ItemType,$AD:$AD)","v":0},{"$f":"-SUMIFS(Sheet1!S71_ASBudgetAmount,Sheet1!S71_SubMunicipalVoteNo,$AC:$AC,Sheet1!S71_ItemType,$AD:$AD)","v":0},{"$f":"-SUMIFS(Sheet1!S71_OY1BudgetAmount,Sheet1!S71_SubMunicipalVoteNo,$AC:$AC,Sheet1!S71_ItemType,$AD:$AD)","v":0},{"$f":"-SUMIFS(Sheet1!S71_OY2BudgetAmount,Sheet1!S71_SubMunicipalVoteNo,$AC:$AC,Sheet1!S71_ItemType,$AD:$AD)","v":0},null,null,null,null,null,null,null,null,null,null,null,null,null,null,null,null,null,410,"IR"]
[{"$f":"'Org structure'!A6","v":"Vote 5 - Environmental Protection"},null,{"$f":"SUM(C50:C59)","v":0},{"$f":"SUM(D50:D59)","v":0},0,0,0,0,0,0,0]
[{"$f":"IF(RIGHT('Org structure'!D47,18)<>\"[Name of sub-vote]\",'Org structure'!D47,\"\")","v":"5.1 - Biodiversity and Landscape"},null,{"$f":"SUMIFS(Sheet1!S71_PPPYearAmount,Sheet1!S71_SubMunicipalVoteNo,$AC:$AC,Sheet1!S71_ItemType,$AD:$AD)","v":0},{"$f":"SUMIFS(Sheet1!S71_PPYearAmount,Sheet1!S71_SubMunicipalVoteNo,$AC:$AC,Sheet1!S71_ItemType,$AD:$AD)","v":0},{"$f":"SUMIFS(Sheet1!S71_PYearAmount,Sheet1!S71_SubMunicipalVoteNo,$AC:$AC,Sheet1!S71_ItemType,$AD:$AD)","v":0},{"$f":"-SUMIFS(Sheet1!S71_OriginalBudAmnt,Sheet1!S71_SubMunicipalVoteNo,$AC:$AC,Sheet1!S71_ItemType,$AD:$AD)","v":0},{"$f":"-SUMIFS(Sheet1!S71_AdjustmentBudAmnt,Sheet1!S71_SubMunicipalVoteNo,$AC:$AC,Sheet1!S71_ItemType,$AD:$AD)","v":0},{"$f":"-SUMIFS(Sheet1!S71_AdjustmentBudAmnt,Sheet1!S71_SubMunicipalVoteNo,$AC:$AC,Sheet1!S71_ItemType,$AD:$AD)","v":0},{"$f":"-SUMIFS(Sheet1!S71_ASBudgetAmount,Sheet1!S71_SubMunicipalVoteNo,$AC:$AC,Sheet1!S71_ItemType,$AD:$AD)","v":0},{"$f":"-SUMIFS(Sheet1!S71_OY1BudgetAmount,Sheet1!S71_SubMunicipalVoteNo,$AC:$AC,Sheet1!S71_ItemType,$AD:$AD)","v":0},{"$f":"-SUMIFS(Sheet1!S71_OY2BudgetAmount,Sheet1!S71_SubMunicipalVoteNo,$AC:$AC,Sheet1!S71_ItemType,$AD:$AD)","v":0},null,null,null,null,null,null,null,null,null,null,null,null,null,null,null,null,null,51,"IR"]
[{"$f":"IF(RIGHT('Org structure'!D48,18)<>\"[Name of sub-vote]\",'Org structure'!D48,\"\")","v":""},null,{"$f":"SUMIFS(Sheet1!S71_PPPYearAmount,Sheet1!S71_SubMunicipalVoteNo,$AC:$AC,Sheet1!S71_ItemType,$AD:$AD)","v":0},{"$f":"SUMIFS(Sheet1!S71_PPYearAmount,Sheet1!S71_SubMunicipalVoteNo,$AC:$AC,Sheet1!S71_ItemType,$AD:$AD)","v":0},{"$f":"SUMIFS(Sheet1!S71_PYearAmount,Sheet1!S71_SubMunicipalVoteNo,$AC:$AC,Sheet1!S71_ItemType,$AD:$AD)","v":0},{"$f":"-SUMIFS(Sheet1!S71_OriginalBudAmnt,Sheet1!S71_SubMunicipalVoteNo,$AC:$AC,Sheet1!S71_ItemType,$AD:$AD)","v":0},{"$f":"-SUMIFS(Sheet1!S71_AdjustmentBudAmnt,Sheet1!S71_SubMunicipalVoteNo,$AC:$AC,Sheet1!S71_ItemType,$AD:$AD)","v":0},{"$f":"-SUMIFS(Sheet1!S71_AdjustmentBudAmnt,Sheet1!S71_SubMunicipalVoteNo,$AC:$AC,Sheet1!S71_ItemType,$AD:$AD)","v":0},{"$f":"-SUMIFS(Sheet1!S71_ASBudgetAmount,Sheet1!S71_SubMunicipalVoteNo,$AC:$AC,Sheet1!S71_ItemType,$AD:$AD)","v":0},{"$f":"-SUMIFS(Sheet1!S71_OY1BudgetAmount,Sheet1!S71_SubMunicipalVoteNo,$AC:$AC,Sheet1!S71_ItemType,$AD:$AD)","v":0},{"$f":"-SUMIFS(Sheet1!S71_OY2BudgetAmount,Sheet1!S71_SubMunicipalVoteNo,$AC:$AC,Sheet1!S71_ItemType,$AD:$AD)","v":0},null,null,null,null,null,null,null,null,null,null,null,null,null,null,null,null,null,52,"IR"]
[{"$f":"IF(RIGHT('Org structure'!D49,18)<>\"[Name of sub-vote]\",'Org structure'!D49,\"\")","v":""},null,{"$f":"SUMIFS(Sheet1!S71_PPPYearAmount,Sheet1!S71_SubMunicipalVoteNo,$AC:$AC,Sheet1!S71_ItemType,$AD:$AD)","v":0},{"$f":"SUMIFS(Sheet1!S71_PPYearAmount,Sheet1!S71_SubMunicipalVoteNo,$AC:$AC,Sheet1!S71_ItemType,$AD:$AD)","v":0},{"$f":"SUMIFS(Sheet1!S71_PYearAmount,Sheet1!S71_SubMunicipalVoteNo,$AC:$AC,Sheet1!S71_ItemType,$AD:$AD)","v":0},{"$f":"-SUMIFS(Sheet1!S71_OriginalBudAmnt,Sheet1!S71_SubMunicipalVoteNo,$AC:$AC,Sheet1!S71_ItemType,$AD:$AD)","v":0},{"$f":"-SUMIFS(Sheet1!S71_AdjustmentBudAmnt,Sheet1!S71_SubMunicipalVoteNo,$AC:$AC,Sheet1!S71_ItemType,$AD:$AD)","v":0},{"$f":"-SUMIFS(Sheet1!S71_AdjustmentBudAmnt,Sheet1!S71_SubMunicipalVoteNo,$AC:$AC,Sheet1!S71_ItemType,$AD:$AD)","v":0},{"$f":"-SUMIFS(Sheet1!S71_ASBudgetAmount,Sheet1!S71_SubMunicipalVoteNo,$AC:$AC,Sheet1!S71_ItemType,$AD:$AD)","v":0},{"$f":"-SUMIFS(Sheet1!S71_OY1BudgetAmount,Sheet1!S71_SubMunicipalVoteNo,$AC:$AC,Sheet1!S71_ItemType,$AD:$AD)","v":0},{"$f":"-SUMIFS(Sheet1!S71_OY2BudgetAmount,Sheet1!S71_SubMunicipalVoteNo,$AC:$AC,Sheet1!S71_ItemType,$AD:$AD)","v":0},null,null,null,null,null,null,null,null,null,null,null,null,null,null,null,null,null,53,"IR"]
[{"$f":"IF(RIGHT('Org structure'!D50,18)<>\"[Name of sub-vote]\",'Org structure'!D50,\"\")","v":""},null,{"$f":"SUMIFS(Sheet1!S71_PPPYearAmount,Sheet1!S71_SubMunicipalVoteNo,$AC:$AC,Sheet1!S71_ItemType,$AD:$AD)","v":0},{"$f":"SUMIFS(Sheet1!S71_PPYearAmount,Sheet1!S71_SubMunicipalVoteNo,$AC:$AC,Sheet1!S71_ItemType,$AD:$AD)","v":0},{"$f":"SUMIFS(Sheet1!S71_PYearAmount,Sheet1!S71_SubMunicipalVoteNo,$AC:$AC,Sheet1!S71_ItemType,$AD:$AD)","v":0},{"$f":"-SUMIFS(Sheet1!S71_OriginalBudAmnt,Sheet1!S71_SubMunicipalVoteNo,$AC:$AC,Sheet1!S71_ItemType,$AD:$AD)","v":0},{"$f":"-SUMIFS(Sheet1!S71_AdjustmentBudAmnt,Sheet1!S71_SubMunicipalVoteNo,$AC:$AC,Sheet1!S71_ItemType,$AD:$AD)","v":0},{"$f":"-SUMIFS(Sheet1!S71_AdjustmentBudAmnt,Sheet1!S71_SubMunicipalVoteNo,$AC:$AC,Sheet1!S71_ItemType,$AD:$AD)","v":0},{"$f":"-SUMIFS(Sheet1!S71_ASBudgetAmount,Sheet1!S71_SubMunicipalVoteNo,$AC:$AC,Sheet1!S71_ItemType,$AD:$AD)","v":0},{"$f":"-SUMIFS(Sheet1!S71_OY1BudgetAmount,Sheet1!S71_SubMunicipalVoteNo,$AC:$AC,Sheet1!S71_ItemType,$AD:$AD)","v":0},{"$f":"-SUMIFS(Sheet1!S71_OY2BudgetAmount,Sheet1!S71_SubMunicipalVoteNo,$AC:$AC,Sheet1!S71_ItemType,$AD:$AD)","v":0},null,null,null,null,null,null,null,null,null,null,null,null,null,null,null,null,null,54,"IR"]
[{"$f":"IF(RIGHT('Org structure'!D51,18)<>\"[Name of sub-vote]\",'Org structure'!D51,\"\")","v":""},null,{"$f":"SUMIFS(Sheet1!S71_PPPYearAmount,Sheet1!S71_SubMunicipalVoteNo,$AC:$AC,Sheet1!S71_ItemType,$AD:$AD)","v":0},{"$f":"SUMIFS(Sheet1!S71_PPYearAmount,Sheet1!S71_SubMunicipalVoteNo,$AC:$AC,Sheet1!S71_ItemType,$AD:$AD)","v":0},{"$f":"SUMIFS(Sheet1!S71_PYearAmount,Sheet1!S71_SubMunicipalVoteNo,$AC:$AC,Sheet1!S71_ItemType,$AD:$AD)","v":0},{"$f":"-SUMIFS(Sheet1!S71_OriginalBudAmnt,Sheet1!S71_SubMunicipalVoteNo,$AC:$AC,Sheet1!S71_ItemType,$AD:$AD)","v":0},{"$f":"-SUMIFS(Sheet1!S71_AdjustmentBudAmnt,Sheet1!S71_SubMunicipalVoteNo,$AC:$AC,Sheet1!S71_ItemType,$AD:$AD)","v":0},{"$f":"-SUMIFS(Sheet1!S71_AdjustmentBudAmnt,Sheet1!S71_SubMunicipalVoteNo,$AC:$AC,Sheet1!S71_ItemType,$AD:$AD)","v":0},{"$f":"-SUMIFS(Sheet1!S71_ASBudgetAmount,Sheet1!S71_SubMunicipalVoteNo,$AC:$AC,Sheet1!S71_ItemType,$AD:$AD)","v":0},{"$f":"-SUMIFS(Sheet1!S71_OY1BudgetAmount,Sheet1!S71_SubMunicipalVoteNo,$AC:$AC,Sheet1!S71_ItemType,$AD:$AD)","v":0},{"$f":"-SUMIFS(Sheet1!S71_OY2BudgetAmount,Sheet1!S71_SubMunicipalVoteNo,$AC:$AC,Sheet1!S71_ItemType,$AD:$AD)","v":0},null,null,null,null,null,null,null,null,null,null,null,null,null,null,null,null,null,55,"IR"]
[{"$f":"IF(RIGHT('Org structure'!D52,18)<>\"[Name of sub-vote]\",'Org structure'!D52,\"\")","v":""},null,{"$f":"SUMIFS(Sheet1!S71_PPPYearAmount,Sheet1!S71_SubMunicipalVoteNo,$AC:$AC,Sheet1!S71_ItemType,$AD:$AD)","v":0},{"$f":"SUMIFS(Sheet1!S71_PPYearAmount,Sheet1!S71_SubMunicipalVoteNo,$AC:$AC,Sheet1!S71_ItemType,$AD:$AD)","v":0},{"$f":"SUMIFS(Sheet1!S71_PYearAmount,Sheet1!S71_SubMunicipalVoteNo,$AC:$AC,Sheet1!S71_ItemType,$AD:$AD)","v":0},{"$f":"-SUMIFS(Sheet1!S71_OriginalBudAmnt,Sheet1!S71_SubMunicipalVoteNo,$AC:$AC,Sheet1!S71_ItemType,$AD:$AD)","v":0},{"$f":"-SUMIFS(Sheet1!S71_AdjustmentBudAmnt,Sheet1!S71_SubMunicipalVoteNo,$AC:$AC,Sheet1!S71_ItemType,$AD:$AD)","v":0},{"$f":"-SUMIFS(Sheet1!S71_AdjustmentBudAmnt,Sheet1!S71_SubMunicipalVoteNo,$AC:$AC,Sheet1!S71_ItemType,$AD:$AD)","v":0},{"$f":"-SUMIFS(Sheet1!S71_ASBudgetAmount,Sheet1!S71_SubMunicipalVoteNo,$AC:$AC,Sheet1!S71_ItemType,$AD:$AD)","v":0},{"$f":"-SUMIFS(Sheet1!S71_OY1BudgetAmount,Sheet1!S71_SubMunicipalVoteNo,$AC:$AC,Sheet1!S71_ItemType,$AD:$AD)","v":0},{"$f":"-SUMIFS(Sheet1!S71_OY2BudgetAmount,Sheet1!S71_SubMunicipalVoteNo,$AC:$AC,Sheet1!S71_ItemType,$AD:$AD)","v":0},null,null,null,null,null,null,null,null,null,null,null,null,null,null,null,null,null,56,"IR"]
[{"$f":"IF(RIGHT('Org structure'!D53,18)<>\"[Name of sub-vote]\",'Org structure'!D53,\"\")","v":""},null,{"$f":"SUMIFS(Sheet1!S71_PPPYearAmount,Sheet1!S71_SubMunicipalVoteNo,$AC:$AC,Sheet1!S71_ItemType,$AD:$AD)","v":0},{"$f":"SUMIFS(Sheet1!S71_PPYearAmount,Sheet1!S71_SubMunicipalVoteNo,$AC:$AC,Sheet1!S71_ItemType,$AD:$AD)","v":0},{"$f":"SUMIFS(Sheet1!S71_PYearAmount,Sheet1!S71_SubMunicipalVoteNo,$AC:$AC,Sheet1!S71_ItemType,$AD:$AD)","v":0},{"$f":"-SUMIFS(Sheet1!S71_OriginalBudAmnt,Sheet1!S71_SubMunicipalVoteNo,$AC:$AC,Sheet1!S71_ItemType,$AD:$AD)","v":0},{"$f":"-SUMIFS(Sheet1!S71_AdjustmentBudAmnt,Sheet1!S71_SubMunicipalVoteNo,$AC:$AC,Sheet1!S71_ItemType,$AD:$AD)","v":0},{"$f":"-SUMIFS(Sheet1!S71_AdjustmentBudAmnt,Sheet1!S71_SubMunicipalVoteNo,$AC:$AC,Sheet1!S71_ItemType,$AD:$AD)","v":0},{"$f":"-SUMIFS(Sheet1!S71_ASBudgetAmount,Sheet1!S71_SubMunicipalVoteNo,$AC:$AC,Sheet1!S71_ItemType,$AD:$AD)","v":0},{"$f":"-SUMIFS(Sheet1!S71_OY1BudgetAmount,Sheet1!S71_SubMunicipalVoteNo,$AC:$AC,Sheet1!S71_ItemType,$AD:$AD)","v":0},{"$f":"-SUMIFS(Sheet1!S71_OY2BudgetAmount,Sheet1!S71_SubMunicipalVoteNo,$AC:$AC,Sheet1!S71_ItemType,$AD:$AD)","v":0},null,null,null,null,null,null,null,null,null,null,null,null,null,null,null,null,null,57,"IR"]
[{"$f":"IF(RIGHT('Org structure'!D54,18)<>\"[Name of sub-vote]\",'Org structure'!D54,\"\")","v":""},null,{"$f":"SUMIFS(Sheet1!S71_PPPYearAmount,Sheet1!S71_SubMunicipalVoteNo,$AC:$AC,Sheet1!S71_ItemType,$AD:$AD)","v":0},{"$f":"SUMIFS(Sheet1!S71_PPYearAmount,Sheet1!S71_SubMunicipalVoteNo,$AC:$AC,Sheet1!S71_ItemType,$AD:$AD)","v":0},{"$f":"SUMIFS(Sheet1!S71_PYearAmount,Sheet1!S71_SubMunicipalVoteNo,$AC:$AC,Sheet1!S71_ItemType,$AD:$AD)","v":0},{"$f":"-SUMIFS(Sheet1!S71_OriginalBudAmnt,Sheet1!S71_SubMunicipalVoteNo,$AC:$AC,Sheet1!S71_ItemType,$AD:$AD)","v":0},{"$f":"-SUMIFS(Sheet1!S71_AdjustmentBudAmnt,Sheet1!S71_SubMunicipalVoteNo,$AC:$AC,Sheet1!S71_ItemType,$AD:$AD)","v":0},{"$f":"-SUMIFS(Sheet1!S71_AdjustmentBudAmnt,Sheet1!S71_SubMunicipalVoteNo,$AC:$AC,Sheet1!S71_ItemType,$AD:$AD)","v":0},{"$f":"-SUMIFS(Sheet1!S71_ASBudgetAmount,Sheet1!S71_SubMunicipalVoteNo,$AC:$AC,Sheet1!S71_ItemType,$AD:$AD)","v":0},{"$f":"-SUMIFS(Sheet1!S71_OY1BudgetAmount,Sheet1!S71_SubMunicipalVoteNo,$AC:$AC,Sheet1!S71_ItemType,$AD:$AD)","v":0},{"$f":"-SUMIFS(Sheet1!S71_OY2BudgetAmount,Sheet1!S71_SubMunicipalVoteNo,$AC:$AC,Sheet1!S71_ItemType,$AD:$AD)","v":0},null,null,null,null,null,null,null,null,null,null,null,null,null,null,null,null,null,58,"IR"]
[{"$f":"IF(RIGHT('Org structure'!D55,18)<>\"[Name of sub-vote]\",'Org structure'!D55,\"\")","v":""},null,{"$f":"SUMIFS(Sheet1!S71_PPPYearAmount,Sheet1!S71_SubMunicipalVoteNo,$AC:$AC,Sheet1!S71_ItemType,$AD:$AD)","v":0},{"$f":"SUMIFS(Sheet1!S71_PPYearAmount,Sheet1!S71_SubMunicipalVoteNo,$AC:$AC,Sheet1!S71_ItemType,$AD:$AD)","v":0},{"$f":"SUMIFS(Sheet1!S71_PYearAmount,Sheet1!S71_SubMunicipalVoteNo,$AC:$AC,Sheet1!S71_ItemType,$AD:$AD)","v":0},{"$f":"-SUMIFS(Sheet1!S71_OriginalBudAmnt,Sheet1!S71_SubMunicipalVoteNo,$AC:$AC,Sheet1!S71_ItemType,$AD:$AD)","v":0},{"$f":"-SUMIFS(Sheet1!S71_AdjustmentBudAmnt,Sheet1!S71_SubMunicipalVoteNo,$AC:$AC,Sheet1!S71_ItemType,$AD:$AD)","v":0},{"$f":"-SUMIFS(Sheet1!S71_AdjustmentBudAmnt,Sheet1!S71_SubMunicipalVoteNo,$AC:$AC,Sheet1!S71_ItemType,$AD:$AD)","v":0},{"$f":"-SUMIFS(Sheet1!S71_ASBudgetAmount,Sheet1!S71_SubMunicipalVoteNo,$AC:$AC,Sheet1!S71_ItemType,$AD:$AD)","v":0},{"$f":"-SUMIFS(Sheet1!S71_OY1BudgetAmount,Sheet1!S71_SubMunicipalVoteNo,$AC:$AC,Sheet1!S71_ItemType,$AD:$AD)","v":0},{"$f":"-SUMIFS(Sheet1!S71_OY2BudgetAmount,Sheet1!S71_SubMunicipalVoteNo,$AC:$AC,Sheet1!S71_ItemType,$AD:$AD)","v":0},null,null,null,null,null,null,null,null,null,null,null,null,null,null,null,null,null,59,"IR"]
[{"$f":"IF(RIGHT('Org structure'!D56,18)<>\"[Name of sub-vote]\",'Org structure'!D56,\"\")","v":""},null,{"$f":"SUMIFS(Sheet1!S71_PPPYearAmount,Sheet1!S71_SubMunicipalVoteNo,$AC:$AC,Sheet1!S71_ItemType,$AD:$AD)","v":0},{"$f":"SUMIFS(Sheet1!S71_PPYearAmount,Sheet1!S71_SubMunicipalVoteNo,$AC:$AC,Sheet1!S71_ItemType,$AD:$AD)","v":0},{"$f":"SUMIFS(Sheet1!S71_PYearAmount,Sheet1!S71_SubMunicipalVoteNo,$AC:$AC,Sheet1!S71_ItemType,$AD:$AD)","v":0},{"$f":"-SUMIFS(Sheet1!S71_OriginalBudAmnt,Sheet1!S71_SubMunicipalVoteNo,$AC:$AC,Sheet1!S71_ItemType,$AD:$AD)","v":0},{"$f":"-SUMIFS(Sheet1!S71_AdjustmentBudAmnt,Sheet1!S71_SubMunicipalVoteNo,$AC:$AC,Sheet1!S71_ItemType,$AD:$AD)","v":0},{"$f":"-SUMIFS(Sheet1!S71_AdjustmentBudAmnt,Sheet1!S71_SubMunicipalVoteNo,$AC:$AC,Sheet1!S71_ItemType,$AD:$AD)","v":0},{"$f":"-SUMIFS(Sheet1!S71_ASBudgetAmount,Sheet1!S71_SubMunicipalVoteNo,$AC:$AC,Sheet1!S71_ItemType,$AD:$AD)","v":0},{"$f":"-SUMIFS(Sheet1!S71_OY1BudgetAmount,Sheet1!S71_SubMunicipalVoteNo,$AC:$AC,Sheet1!S71_ItemType,$AD:$AD)","v":0},{"$f":"-SUMIFS(Sheet1!S71_OY2BudgetAmount,Sheet1!S71_SubMunicipalVoteNo,$AC:$AC,Sheet1!S71_ItemType,$AD:$AD)","v":0},null,null,null,null,null,null,null,null,null,null,null,null,null,null,null,null,null,510,"IR"]
[{"$f":"'Org structure'!A7","v":"Vote 6 - [NAME OF VOTE 6]"},null,{"$f":"SUM(C61:C70)","v":0},{"$f":"SUM(D61:D70)","v":0},0,0,0,0,0,0,0]
[{"$f":"IF(RIGHT('Org structure'!D58,18)<>\"[Name of sub-vote]\",'Org structure'!D58,\"\")","v":""},null,{"$f":"SUMIFS(Sheet1!S71_PPPYearAmount,Sheet1!S71_SubMunicipalVoteNo,$AC:$AC,Sheet1!S71_ItemType,$AD:$AD)","v":0},{"$f":"SUMIFS(Sheet1!S71_PPYearAmount,Sheet1!S71_SubMunicipalVoteNo,$AC:$AC,Sheet1!S71_ItemType,$AD:$AD)","v":0},{"$f":"SUMIFS(Sheet1!S71_PYearAmount,Sheet1!S71_SubMunicipalVoteNo,$AC:$AC,Sheet1!S71_ItemType,$AD:$AD)","v":0},{"$f":"-SUMIFS(Sheet1!S71_OriginalBudAmnt,Sheet1!S71_SubMunicipalVoteNo,$AC:$AC,Sheet1!S71_ItemType,$AD:$AD)","v":0},{"$f":"-SUMIFS(Sheet1!S71_AdjustmentBudAmnt,Sheet1!S71_SubMunicipalVoteNo,$AC:$AC,Sheet1!S71_ItemType,$AD:$AD)","v":0},{"$f":"-SUMIFS(Sheet1!S71_AdjustmentBudAmnt,Sheet1!S71_SubMunicipalVoteNo,$AC:$AC,Sheet1!S71_ItemType,$AD:$AD)","v":0},{"$f":"-SUMIFS(Sheet1!S71_ASBudgetAmount,Sheet1!S71_SubMunicipalVoteNo,$AC:$AC,Sheet1!S71_ItemType,$AD:$AD)","v":0},{"$f":"-SUMIFS(Sheet1!S71_OY1BudgetAmount,Sheet1!S71_SubMunicipalVoteNo,$AC:$AC,Sheet1!S71_ItemType,$AD:$AD)","v":0},{"$f":"-SUMIFS(Sheet1!S71_OY2BudgetAmount,Sheet1!S71_SubMunicipalVoteNo,$AC:$AC,Sheet1!S71_ItemType,$AD:$AD)","v":0},null,null,null,null,null,null,null,null,null,null,null,null,null,null,null,null,null,61,"IR"]
[{"$f":"IF(RIGHT('Org structure'!D59,18)<>\"[Name of sub-vote]\",'Org structure'!D59,\"\")","v":""},null,{"$f":"SUMIFS(Sheet1!S71_PPPYearAmount,Sheet1!S71_SubMunicipalVoteNo,$AC:$AC,Sheet1!S71_ItemType,$AD:$AD)","v":0},{"$f":"SUMIFS(Sheet1!S71_PPYearAmount,Sheet1!S71_SubMunicipalVoteNo,$AC:$AC,Sheet1!S71_ItemType,$AD:$AD)","v":0},{"$f":"SUMIFS(Sheet1!S71_PYearAmount,Sheet1!S71_SubMunicipalVoteNo,$AC:$AC,Sheet1!S71_ItemType,$AD:$AD)","v":0},{"$f":"-SUMIFS(Sheet1!S71_OriginalBudAmnt,Sheet1!S71_SubMunicipalVoteNo,$AC:$AC,Sheet1!S71_ItemType,$AD:$AD)","v":0},{"$f":"-SUMIFS(Sheet1!S71_AdjustmentBudAmnt,Sheet1!S71_SubMunicipalVoteNo,$AC:$AC,Sheet1!S71_ItemType,$AD:$AD)","v":0},{"$f":"-SUMIFS(Sheet1!S71_AdjustmentBudAmnt,Sheet1!S71_SubMunicipalVoteNo,$AC:$AC,Sheet1!S71_ItemType,$AD:$AD)","v":0},{"$f":"-SUMIFS(Sheet1!S71_ASBudgetAmount,Sheet1!S71_SubMunicipalVoteNo,$AC:$AC,Sheet1!S71_ItemType,$AD:$AD)","v":0},{"$f":"-SUMIFS(Sheet1!S71_OY1BudgetAmount,Sheet1!S71_SubMunicipalVoteNo,$AC:$AC,Sheet1!S71_ItemType,$AD:$AD)","v":0},{"$f":"-SUMIFS(Sheet1!S71_OY2BudgetAmount,Sheet1!S71_SubMunicipalVoteNo,$AC:$AC,Sheet1!S71_ItemType,$AD:$AD)","v":0},null,null,null,null,null,null,null,null,null,null,null,null,null,null,null,null,null,62,"IR"]
[{"$f":"IF(RIGHT('Org structure'!D60,18)<>\"[Name of sub-vote]\",'Org structure'!D60,\"\")","v":""},null,{"$f":"SUMIFS(Sheet1!S71_PPPYearAmount,Sheet1!S71_SubMunicipalVoteNo,$AC:$AC,Sheet1!S71_ItemType,$AD:$AD)","v":0},{"$f":"SUMIFS(Sheet1!S71_PPYearAmount,Sheet1!S71_SubMunicipalVoteNo,$AC:$AC,Sheet1!S71_ItemType,$AD:$AD)","v":0},{"$f":"SUMIFS(Sheet1!S71_PYearAmount,Sheet1!S71_SubMunicipalVoteNo,$AC:$AC,Sheet1!S71_ItemType,$AD:$AD)","v":0},{"$f":"-SUMIFS(Sheet1!S71_OriginalBudAmnt,Sheet1!S71_SubMunicipalVoteNo,$AC:$AC,Sheet1!S71_ItemType,$AD:$AD)","v":0},{"$f":"-SUMIFS(Sheet1!S71_AdjustmentBudAmnt,Sheet1!S71_SubMunicipalVoteNo,$AC:$AC,Sheet1!S71_ItemType,$AD:$AD)","v":0},{"$f":"-SUMIFS(Sheet1!S71_AdjustmentBudAmnt,Sheet1!S71_SubMunicipalVoteNo,$AC:$AC,Sheet1!S71_ItemType,$AD:$AD)","v":0},{"$f":"-SUMIFS(Sheet1!S71_ASBudgetAmount,Sheet1!S71_SubMunicipalVoteNo,$AC:$AC,Sheet1!S71_ItemType,$AD:$AD)","v":0},{"$f":"-SUMIFS(Sheet1!S71_OY1BudgetAmount,Sheet1!S71_SubMunicipalVoteNo,$AC:$AC,Sheet1!S71_ItemType,$AD:$AD)","v":0},{"$f":"-SUMIFS(Sheet1!S71_OY2BudgetAmount,Sheet1!S71_SubMunicipalVoteNo,$AC:$AC,Sheet1!S71_ItemType,$AD:$AD)","v":0},null,null,null,null,null,null,null,null,null,null,null,null,null,null,null,null,null,63,"IR"]
[{"$f":"IF(RIGHT('Org structure'!D61,18)<>\"[Name of sub-vote]\",'Org structure'!D61,\"\")","v":""},null,{"$f":"SUMIFS(Sheet1!S71_PPPYearAmount,Sheet1!S71_SubMunicipalVoteNo,$AC:$AC,Sheet1!S71_ItemType,$AD:$AD)","v":0},{"$f":"SUMIFS(Sheet1!S71_PPYearAmount,Sheet1!S71_SubMunicipalVoteNo,$AC:$AC,Sheet1!S71_ItemType,$AD:$AD)","v":0},{"$f":"SUMIFS(Sheet1!S71_PYearAmount,Sheet1!S71_SubMunicipalVoteNo,$AC:$AC,Sheet1!S71_ItemType,$AD:$AD)","v":0},{"$f":"-SUMIFS(Sheet1!S71_OriginalBudAmnt,Sheet1!S71_SubMunicipalVoteNo,$AC:$AC,Sheet1!S71_ItemType,$AD:$AD)","v":0},{"$f":"-SUMIFS(Sheet1!S71_AdjustmentBudAmnt,Sheet1!S71_SubMunicipalVoteNo,$AC:$AC,Sheet1!S71_ItemType,$AD:$AD)","v":0},{"$f":"-SUMIFS(Sheet1!S71_AdjustmentBudAmnt,Sheet1!S71_SubMunicipalVoteNo,$AC:$AC,Sheet1!S71_ItemType,$AD:$AD)","v":0},{"$f":"-SUMIFS(Sheet1!S71_ASBudgetAmount,Sheet1!S71_SubMunicipalVoteNo,$AC:$AC,Sheet1!S71_ItemType,$AD:$AD)","v":0},{"$f":"-SUMIFS(Sheet1!S71_OY1BudgetAmount,Sheet1!S71_SubMunicipalVoteNo,$AC:$AC,Sheet1!S71_ItemType,$AD:$AD)","v":0},{"$f":"-SUMIFS(Sheet1!S71_OY2BudgetAmount,Sheet1!S71_SubMunicipalVoteNo,$AC:$AC,Sheet1!S71_ItemType,$AD:$AD)","v":0},null,null,null,null,null,null,null,null,null,null,null,null,null,null,null,null,null,64,"IR"]
[{"$f":"IF(RIGHT('Org structure'!D62,18)<>\"[Name of sub-vote]\",'Org structure'!D62,\"\")","v":""},null,{"$f":"SUMIFS(Sheet1!S71_PPPYearAmount,Sheet1!S71_SubMunicipalVoteNo,$AC:$AC,Sheet1!S71_ItemType,$AD:$AD)","v":0},{"$f":"SUMIFS(Sheet1!S71_PPYearAmount,Sheet1!S71_SubMunicipalVoteNo,$AC:$AC,Sheet1!S71_ItemType,$AD:$AD)","v":0},{"$f":"SUMIFS(Sheet1!S71_PYearAmount,Sheet1!S71_SubMunicipalVoteNo,$AC:$AC,Sheet1!S71_ItemType,$AD:$AD)","v":0},{"$f":"-SUMIFS(Sheet1!S71_OriginalBudAmnt,Sheet1!S71_SubMunicipalVoteNo,$AC:$AC,Sheet1!S71_ItemType,$AD:$AD)","v":0},{"$f":"-SUMIFS(Sheet1!S71_AdjustmentBudAmnt,Sheet1!S71_SubMunicipalVoteNo,$AC:$AC,Sheet1!S71_ItemType,$AD:$AD)","v":0},{"$f":"-SUMIFS(Sheet1!S71_AdjustmentBudAmnt,Sheet1!S71_SubMunicipalVoteNo,$AC:$AC,Sheet1!S71_ItemType,$AD:$AD)","v":0},{"$f":"-SUMIFS(Sheet1!S71_ASBudgetAmount,Sheet1!S71_SubMunicipalVoteNo,$AC:$AC,Sheet1!S71_ItemType,$AD:$AD)","v":0},{"$f":"-SUMIFS(Sheet1!S71_OY1BudgetAmount,Sheet1!S71_SubMunicipalVoteNo,$AC:$AC,Sheet1!S71_ItemType,$AD:$AD)","v":0},{"$f":"-SUMIFS(Sheet1!S71_OY2BudgetAmount,Sheet1!S71_SubMunicipalVoteNo,$AC:$AC,Sheet1!S71_ItemType,$AD:$AD)","v":0},null,null,null,null,null,null,null,null,null,null,null,null,null,null,null,null,null,65,"IR"]
[{"$f":"IF(RIGHT('Org structure'!D63,18)<>\"[Name of sub-vote]\",'Org structure'!D63,\"\")","v":""},null,{"$f":"SUMIFS(Sheet1!S71_PPPYearAmount,Sheet1!S71_SubMunicipalVoteNo,$AC:$AC,Sheet1!S71_ItemType,$AD:$AD)","v":0},{"$f":"SUMIFS(Sheet1!S71_PPYearAmount,Sheet1!S71_SubMunicipalVoteNo,$AC:$AC,Sheet1!S71_ItemType,$AD:$AD)","v":0},{"$f":"SUMIFS(Sheet1!S71_PYearAmount,Sheet1!S71_SubMunicipalVoteNo,$AC:$AC,Sheet1!S71_ItemType,$AD:$AD)","v":0},{"$f":"-SUMIFS(Sheet1!S71_OriginalBudAmnt,Sheet1!S71_SubMunicipalVoteNo,$AC:$AC,Sheet1!S71_ItemType,$AD:$AD)","v":0},{"$f":"-SUMIFS(Sheet1!S71_AdjustmentBudAmnt,Sheet1!S71_SubMunicipalVoteNo,$AC:$AC,Sheet1!S71_ItemType,$AD:$AD)","v":0},{"$f":"-SUMIFS(Sheet1!S71_AdjustmentBudAmnt,Sheet1!S71_SubMunicipalVoteNo,$AC:$AC,Sheet1!S71_ItemType,$AD:$AD)","v":0},{"$f":"-SUMIFS(Sheet1!S71_ASBudgetAmount,Sheet1!S71_SubMunicipalVoteNo,$AC:$AC,Sheet1!S71_ItemType,$AD:$AD)","v":0},{"$f":"-SUMIFS(Sheet1!S71_OY1BudgetAmount,Sheet1!S71_SubMunicipalVoteNo,$AC:$AC,Sheet1!S71_ItemType,$AD:$AD)","v":0},{"$f":"-SUMIFS(Sheet1!S71_OY2BudgetAmount,Sheet1!S71_SubMunicipalVoteNo,$AC:$AC,Sheet1!S71_ItemType,$AD:$AD)","v":0},null,null,null,null,null,null,null,null,null,null,null,null,null,null,null,null,null,66,"IR"]
[{"$f":"IF(RIGHT('Org structure'!D64,18)<>\"[Name of sub-vote]\",'Org structure'!D64,\"\")","v":""},null,{"$f":"SUMIFS(Sheet1!S71_PPPYearAmount,Sheet1!S71_SubMunicipalVoteNo,$AC:$AC,Sheet1!S71_ItemType,$AD:$AD)","v":0},{"$f":"SUMIFS(Sheet1!S71_PPYearAmount,Sheet1!S71_SubMunicipalVoteNo,$AC:$AC,Sheet1!S71_ItemType,$AD:$AD)","v":0},{"$f":"SUMIFS(Sheet1!S71_PYearAmount,Sheet1!S71_SubMunicipalVoteNo,$AC:$AC,Sheet1!S71_ItemType,$AD:$AD)","v":0},{"$f":"-SUMIFS(Sheet1!S71_OriginalBudAmnt,Sheet1!S71_SubMunicipalVoteNo,$AC:$AC,Sheet1!S71_ItemType,$AD:$AD)","v":0},{"$f":"-SUMIFS(Sheet1!S71_AdjustmentBudAmnt,Sheet1!S71_SubMunicipalVoteNo,$AC:$AC,Sheet1!S71_ItemType,$AD:$AD)","v":0},{"$f":"-SUMIFS(Sheet1!S71_AdjustmentBudAmnt,Sheet1!S71_SubMunicipalVoteNo,$AC:$AC,Sheet1!S71_ItemType,$AD:$AD)","v":0},{"$f":"-SUMIFS(Sheet1!S71_ASBudgetAmount,Sheet1!S71_SubMunicipalVoteNo,$AC:$AC,Sheet1!S71_ItemType,$AD:$AD)","v":0},{"$f":"-SUMIFS(Sheet1!S71_OY1BudgetAmount,Sheet1!S71_SubMunicipalVoteNo,$AC:$AC,Sheet1!S71_ItemType,$AD:$AD)","v":0},{"$f":"-SUMIFS(Sheet1!S71_OY2BudgetAmount,Sheet1!S71_SubMunicipalVoteNo,$AC:$AC,Sheet1!S71_ItemType,$AD:$AD)","v":0},null,null,null,null,null,null,null,null,null,null,null,null,null,null,null,null,null,67,"IR"]
[{"$f":"IF(RIGHT('Org structure'!D65,18)<>\"[Name of sub-vote]\",'Org structure'!D65,\"\")","v":""},null,{"$f":"SUMIFS(Sheet1!S71_PPPYearAmount,Sheet1!S71_SubMunicipalVoteNo,$AC:$AC,Sheet1!S71_ItemType,$AD:$AD)","v":0},{"$f":"SUMIFS(Sheet1!S71_PPYearAmount,Sheet1!S71_SubMunicipalVoteNo,$AC:$AC,Sheet1!S71_ItemType,$AD:$AD)","v":0},{"$f":"SUMIFS(Sheet1!S71_PYearAmount,Sheet1!S71_SubMunicipalVoteNo,$AC:$AC,Sheet1!S71_ItemType,$AD:$AD)","v":0},{"$f":"-SUMIFS(Sheet1!S71_OriginalBudAmnt,Sheet1!S71_SubMunicipalVoteNo,$AC:$AC,Sheet1!S71_ItemType,$AD:$AD)","v":0},{"$f":"-SUMIFS(Sheet1!S71_AdjustmentBudAmnt,Sheet1!S71_SubMunicipalVoteNo,$AC:$AC,Sheet1!S71_ItemType,$AD:$AD)","v":0},{"$f":"-SUMIFS(Sheet1!S71_AdjustmentBudAmnt,Sheet1!S71_SubMunicipalVoteNo,$AC:$AC,Sheet1!S71_ItemType,$AD:$AD)","v":0},{"$f":"-SUMIFS(Sheet1!S71_ASBudgetAmount,Sheet1!S71_SubMunicipalVoteNo,$AC:$AC,Sheet1!S71_ItemType,$AD:$AD)","v":0},{"$f":"-SUMIFS(Sheet1!S71_OY1BudgetAmount,Sheet1!S71_SubMunicipalVoteNo,$AC:$AC,Sheet1!S71_ItemType,$AD:$AD)","v":0},{"$f":"-SUMIFS(Sheet1!S71_OY2BudgetAmount,Sheet1!S71_SubMunicipalVoteNo,$AC:$AC,Sheet1!S71_ItemType,$AD:$AD)","v":0},null,null,null,null,null,null,null,null,null,null,null,null,null,null,null,null,null,68,"IR"]
[{"$f":"IF(RIGHT('Org structure'!D66,18)<>\"[Name of sub-vote]\",'Org structure'!D66,\"\")","v":""},null,{"$f":"SUMIFS(Sheet1!S71_PPPYearAmount,Sheet1!S71_SubMunicipalVoteNo,$AC:$AC,Sheet1!S71_ItemType,$AD:$AD)","v":0},{"$f":"SUMIFS(Sheet1!S71_PPYearAmount,Sheet1!S71_SubMunicipalVoteNo,$AC:$AC,Sheet1!S71_ItemType,$AD:$AD)","v":0},{"$f":"SUMIFS(Sheet1!S71_PYearAmount,Sheet1!S71_SubMunicipalVoteNo,$AC:$AC,Sheet1!S71_ItemType,$AD:$AD)","v":0},{"$f":"-SUMIFS(Sheet1!S71_OriginalBudAmnt,Sheet1!S71_SubMunicipalVoteNo,$AC:$AC,Sheet1!S71_ItemType,$AD:$AD)","v":0},{"$f":"-SUMIFS(Sheet1!S71_AdjustmentBudAmnt,Sheet1!S71_SubMunicipalVoteNo,$AC:$AC,Sheet1!S71_ItemType,$AD:$AD)","v":0},{"$f":"-SUMIFS(Sheet1!S71_AdjustmentBudAmnt,Sheet1!S71_SubMunicipalVoteNo,$AC:$AC,Sheet1!S71_ItemType,$AD:$AD)","v":0},{"$f":"-SUMIFS(Sheet1!S71_ASBudgetAmount,Sheet1!S71_SubMunicipalVoteNo,$AC:$AC,Sheet1!S71_ItemType,$AD:$AD)","v":0},{"$f":"-SUMIFS(Sheet1!S71_OY1BudgetAmount,Sheet1!S71_SubMunicipalVoteNo,$AC:$AC,Sheet1!S71_ItemType,$AD:$AD)","v":0},{"$f":"-SUMIFS(Sheet1!S71_OY2BudgetAmount,Sheet1!S71_SubMunicipalVoteNo,$AC:$AC,Sheet1!S71_ItemType,$AD:$AD)","v":0},null,null,null,null,null,null,null,null,null,null,null,null,null,null,null,null,null,69,"IR"]
[{"$f":"IF(RIGHT('Org structure'!D67,18)<>\"[Name of sub-vote]\",'Org structure'!D67,\"\")","v":""},null,{"$f":"SUMIFS(Sheet1!S71_PPPYearAmount,Sheet1!S71_SubMunicipalVoteNo,$AC:$AC,Sheet1!S71_ItemType,$AD:$AD)","v":0},{"$f":"SUMIFS(Sheet1!S71_PPYearAmount,Sheet1!S71_SubMunicipalVoteNo,$AC:$AC,Sheet1!S71_ItemType,$AD:$AD)","v":0},{"$f":"SUMIFS(Sheet1!S71_PYearAmount,Sheet1!S71_SubMunicipalVoteNo,$AC:$AC,Sheet1!S71_ItemType,$AD:$AD)","v":0},{"$f":"-SUMIFS(Sheet1!S71_OriginalBudAmnt,Sheet1!S71_SubMunicipalVoteNo,$AC:$AC,Sheet1!S71_ItemType,$AD:$AD)","v":0},{"$f":"-SUMIFS(Sheet1!S71_AdjustmentBudAmnt,Sheet1!S71_SubMunicipalVoteNo,$AC:$AC,Sheet1!S71_ItemType,$AD:$AD)","v":0},{"$f":"-SUMIFS(Sheet1!S71_AdjustmentBudAmnt,Sheet1!S71_SubMunicipalVoteNo,$AC:$AC,Sheet1!S71_ItemType,$AD:$AD)","v":0},{"$f":"-SUMIFS(Sheet1!S71_ASBudgetAmount,Sheet1!S71_SubMunicipalVoteNo,$AC:$AC,Sheet1!S71_ItemType,$AD:$AD)","v":0},{"$f":"-SUMIFS(Sheet1!S71_OY1BudgetAmount,Sheet1!S71_SubMunicipalVoteNo,$AC:$AC,Sheet1!S71_ItemType,$AD:$AD)","v":0},{"$f":"-SUMIFS(Sheet1!S71_OY2BudgetAmount,Sheet1!S71_SubMunicipalVoteNo,$AC:$AC,Sheet1!S71_ItemType,$AD:$AD)","v":0},null,null,null,null,null,null,null,null,null,null,null,null,null,null,null,null,null,610,"IR"]
[{"$f":"'Org structure'!A8","v":"Vote 7 - [NAME OF VOTE 7]"},null,{"$f":"SUM(C72:C81)","v":0},0,0,0,0,0,0,0,0]
[{"$f":"IF(RIGHT('Org structure'!D69,18)<>\"[Name of sub-vote]\",'Org structure'!D69,\"\")","v":""},null,{"$f":"SUMIFS(Sheet1!S71_PPPYearAmount,Sheet1!S71_SubMunicipalVoteNo,$AC:$AC,Sheet1!S71_ItemType,$AD:$AD)","v":0},{"$f":"SUMIFS(Sheet1!S71_PPYearAmount,Sheet1!S71_SubMunicipalVoteNo,$AC:$AC,Sheet1!S71_ItemType,$AD:$AD)","v":0},{"$f":"SUMIFS(Sheet1!S71_PYearAmount,Sheet1!S71_SubMunicipalVoteNo,$AC:$AC,Sheet1!S71_ItemType,$AD:$AD)","v":0},{"$f":"-SUMIFS(Sheet1!S71_OriginalBudAmnt,Sheet1!S71_SubMunicipalVoteNo,$AC:$AC,Sheet1!S71_ItemType,$AD:$AD)","v":0},{"$f":"-SUMIFS(Sheet1!S71_AdjustmentBudAmnt,Sheet1!S71_SubMunicipalVoteNo,$AC:$AC,Sheet1!S71_ItemType,$AD:$AD)","v":0},{"$f":"-SUMIFS(Sheet1!S71_AdjustmentBudAmnt,Sheet1!S71_SubMunicipalVoteNo,$AC:$AC,Sheet1!S71_ItemType,$AD:$AD)","v":0},{"$f":"-SUMIFS(Sheet1!S71_ASBudgetAmount,Sheet1!S71_SubMunicipalVoteNo,$AC:$AC,Sheet1!S71_ItemType,$AD:$AD)","v":0},{"$f":"-SUMIFS(Sheet1!S71_OY1BudgetAmount,Sheet1!S71_SubMunicipalVoteNo,$AC:$AC,Sheet1!S71_ItemType,$AD:$AD)","v":0},{"$f":"-SUMIFS(Sheet1!S71_OY2BudgetAmount,Sheet1!S71_SubMunicipalVoteNo,$AC:$AC,Sheet1!S71_ItemType,$AD:$AD)","v":0},null,null,null,null,null,null,null,null,null,null,null,null,null,null,null,null,null,71,"IR"]
[{"$f":"IF(RIGHT('Org structure'!D70,18)<>\"[Name of sub-vote]\",'Org structure'!D70,\"\")","v":""},null,{"$f":"SUMIFS(Sheet1!S71_PPPYearAmount,Sheet1!S71_SubMunicipalVoteNo,$AC:$AC,Sheet1!S71_ItemType,$AD:$AD)","v":0},{"$f":"SUMIFS(Sheet1!S71_PPYearAmount,Sheet1!S71_SubMunicipalVoteNo,$AC:$AC,Sheet1!S71_ItemType,$AD:$AD)","v":0},{"$f":"SUMIFS(Sheet1!S71_PYearAmount,Sheet1!S71_SubMunicipalVoteNo,$AC:$AC,Sheet1!S71_ItemType,$AD:$AD)","v":0},{"$f":"-SUMIFS(Sheet1!S71_OriginalBudAmnt,Sheet1!S71_SubMunicipalVoteNo,$AC:$AC,Sheet1!S71_ItemType,$AD:$AD)","v":0},{"$f":"-SUMIFS(Sheet1!S71_AdjustmentBudAmnt,Sheet1!S71_SubMunicipalVoteNo,$AC:$AC,Sheet1!S71_ItemType,$AD:$AD)","v":0},{"$f":"-SUMIFS(Sheet1!S71_AdjustmentBudAmnt,Sheet1!S71_SubMunicipalVoteNo,$AC:$AC,Sheet1!S71_ItemType,$AD:$AD)","v":0},{"$f":"-SUMIFS(Sheet1!S71_ASBudgetAmount,Sheet1!S71_SubMunicipalVoteNo,$AC:$AC,Sheet1!S71_ItemType,$AD:$AD)","v":0},{"$f":"-SUMIFS(Sheet1!S71_OY1BudgetAmount,Sheet1!S71_SubMunicipalVoteNo,$AC:$AC,Sheet1!S71_ItemType,$AD:$AD)","v":0},{"$f":"-SUMIFS(Sheet1!S71_OY2BudgetAmount,Sheet1!S71_SubMunicipalVoteNo,$AC:$AC,Sheet1!S71_ItemType,$AD:$AD)","v":0},null,null,null,null,null,null,null,null,null,null,null,null,null,null,null,null,null,72,"IR"]
[{"$f":"IF(RIGHT('Org structure'!D71,18)<>\"[Name of sub-vote]\",'Org structure'!D71,\"\")","v":""},null,{"$f":"SUMIFS(Sheet1!S71_PPPYearAmount,Sheet1!S71_SubMunicipalVoteNo,$AC:$AC,Sheet1!S71_ItemType,$AD:$AD)","v":0},{"$f":"SUMIFS(Sheet1!S71_PPYearAmount,Sheet1!S71_SubMunicipalVoteNo,$AC:$AC,Sheet1!S71_ItemType,$AD:$AD)","v":0},{"$f":"SUMIFS(Sheet1!S71_PYearAmount,Sheet1!S71_SubMunicipalVoteNo,$AC:$AC,Sheet1!S71_ItemType,$AD:$AD)","v":0},{"$f":"-SUMIFS(Sheet1!S71_OriginalBudAmnt,Sheet1!S71_SubMunicipalVoteNo,$AC:$AC,Sheet1!S71_ItemType,$AD:$AD)","v":0},{"$f":"-SUMIFS(Sheet1!S71_AdjustmentBudAmnt,Sheet1!S71_SubMunicipalVoteNo,$AC:$AC,Sheet1!S71_ItemType,$AD:$AD)","v":0},{"$f":"-SUMIFS(Sheet1!S71_AdjustmentBudAmnt,Sheet1!S71_SubMunicipalVoteNo,$AC:$AC,Sheet1!S71_ItemType,$AD:$AD)","v":0},{"$f":"-SUMIFS(Sheet1!S71_ASBudgetAmount,Sheet1!S71_SubMunicipalVoteNo,$AC:$AC,Sheet1!S71_ItemType,$AD:$AD)","v":0},{"$f":"-SUMIFS(Sheet1!S71_OY1BudgetAmount,Sheet1!S71_SubMunicipalVoteNo,$AC:$AC,Sheet1!S71_ItemType,$AD:$AD)","v":0},{"$f":"-SUMIFS(Sheet1!S71_OY2BudgetAmount,Sheet1!S71_SubMunicipalVoteNo,$AC:$AC,Sheet1!S71_ItemType,$AD:$AD)","v":0},null,null,null,null,null,null,null,null,null,null,null,null,null,null,null,null,null,73,"IR"]
[{"$f":"IF(RIGHT('Org structure'!D72,18)<>\"[Name of sub-vote]\",'Org structure'!D72,\"\")","v":""},null,{"$f":"SUMIFS(Sheet1!S71_PPPYearAmount,Sheet1!S71_SubMunicipalVoteNo,$AC:$AC,Sheet1!S71_ItemType,$AD:$AD)","v":0},{"$f":"SUMIFS(Sheet1!S71_PPYearAmount,Sheet1!S71_SubMunicipalVoteNo,$AC:$AC,Sheet1!S71_ItemType,$AD:$AD)","v":0},{"$f":"SUMIFS(Sheet1!S71_PYearAmount,Sheet1!S71_SubMunicipalVoteNo,$AC:$AC,Sheet1!S71_ItemType,$AD:$AD)","v":0},{"$f":"-SUMIFS(Sheet1!S71_OriginalBudAmnt,Sheet1!S71_SubMunicipalVoteNo,$AC:$AC,Sheet1!S71_ItemType,$AD:$AD)","v":0},{"$f":"-SUMIFS(Sheet1!S71_AdjustmentBudAmnt,Sheet1!S71_SubMunicipalVoteNo,$AC:$AC,Sheet1!S71_ItemType,$AD:$AD)","v":0},{"$f":"-SUMIFS(Sheet1!S71_AdjustmentBudAmnt,Sheet1!S71_SubMunicipalVoteNo,$AC:$AC,Sheet1!S71_ItemType,$AD:$AD)","v":0},{"$f":"-SUMIFS(Sheet1!S71_ASBudgetAmount,Sheet1!S71_SubMunicipalVoteNo,$AC:$AC,Sheet1!S71_ItemType,$AD:$AD)","v":0},{"$f":"-SUMIFS(Sheet1!S71_OY1BudgetAmount,Sheet1!S71_SubMunicipalVoteNo,$AC:$AC,Sheet1!S71_ItemType,$AD:$AD)","v":0},{"$f":"-SUMIFS(Sheet1!S71_OY2BudgetAmount,Sheet1!S71_SubMunicipalVoteNo,$AC:$AC,Sheet1!S71_ItemType,$AD:$AD)","v":0},null,null,null,null,null,null,null,null,null,null,null,null,null,null,null,null,null,74,"IR"]
[{"$f":"IF(RIGHT('Org structure'!D73,18)<>\"[Name of sub-vote]\",'Org structure'!D73,\"\")","v":""},null,{"$f":"SUMIFS(Sheet1!S71_PPPYearAmount,Sheet1!S71_SubMunicipalVoteNo,$AC:$AC,Sheet1!S71_ItemType,$AD:$AD)","v":0},{"$f":"SUMIFS(Sheet1!S71_PPYearAmount,Sheet1!S71_SubMunicipalVoteNo,$AC:$AC,Sheet1!S71_ItemType,$AD:$AD)","v":0},{"$f":"SUMIFS(Sheet1!S71_PYearAmount,Sheet1!S71_SubMunicipalVoteNo,$AC:$AC,Sheet1!S71_ItemType,$AD:$AD)","v":0},{"$f":"-SUMIFS(Sheet1!S71_OriginalBudAmnt,Sheet1!S71_SubMunicipalVoteNo,$AC:$AC,Sheet1!S71_ItemType,$AD:$AD)","v":0},{"$f":"-SUMIFS(Sheet1!S71_AdjustmentBudAmnt,Sheet1!S71_SubMunicipalVoteNo,$AC:$AC,Sheet1!S71_ItemType,$AD:$AD)","v":0},{"$f":"-SUMIFS(Sheet1!S71_AdjustmentBudAmnt,Sheet1!S71_SubMunicipalVoteNo,$AC:$AC,Sheet1!S71_ItemType,$AD:$AD)","v":0},{"$f":"-SUMIFS(Sheet1!S71_ASBudgetAmount,Sheet1!S71_SubMunicipalVoteNo,$AC:$AC,Sheet1!S71_ItemType,$AD:$AD)","v":0},{"$f":"-SUMIFS(Sheet1!S71_OY1BudgetAmount,Sheet1!S71_SubMunicipalVoteNo,$AC:$AC,Sheet1!S71_ItemType,$AD:$AD)","v":0},{"$f":"-SUMIFS(Sheet1!S71_OY2BudgetAmount,Sheet1!S71_SubMunicipalVoteNo,$AC:$AC,Sheet1!S71_ItemType,$AD:$AD)","v":0},null,null,null,null,null,null,null,null,null,null,null,null,null,null,null,null,null,75,"IR"]
[{"$f":"IF(RIGHT('Org structure'!D74,18)<>\"[Name of sub-vote]\",'Org structure'!D74,\"\")","v":""},null,{"$f":"SUMIFS(Sheet1!S71_PPPYearAmount,Sheet1!S71_SubMunicipalVoteNo,$AC:$AC,Sheet1!S71_ItemType,$AD:$AD)","v":0},{"$f":"SUMIFS(Sheet1!S71_PPYearAmount,Sheet1!S71_SubMunicipalVoteNo,$AC:$AC,Sheet1!S71_ItemType,$AD:$AD)","v":0},{"$f":"SUMIFS(Sheet1!S71_PYearAmount,Sheet1!S71_SubMunicipalVoteNo,$AC:$AC,Sheet1!S71_ItemType,$AD:$AD)","v":0},{"$f":"-SUMIFS(Sheet1!S71_OriginalBudAmnt,Sheet1!S71_SubMunicipalVoteNo,$AC:$AC,Sheet1!S71_ItemType,$AD:$AD)","v":0},{"$f":"-SUMIFS(Sheet1!S71_AdjustmentBudAmnt,Sheet1!S71_SubMunicipalVoteNo,$AC:$AC,Sheet1!S71_ItemType,$AD:$AD)","v":0},{"$f":"-SUMIFS(Sheet1!S71_AdjustmentBudAmnt,Sheet1!S71_SubMunicipalVoteNo,$AC:$AC,Sheet1!S71_ItemType,$AD:$AD)","v":0},{"$f":"-SUMIFS(Sheet1!S71_ASBudgetAmount,Sheet1!S71_SubMunicipalVoteNo,$AC:$AC,Sheet1!S71_ItemType,$AD:$AD)","v":0},{"$f":"-SUMIFS(Sheet1!S71_OY1BudgetAmount,Sheet1!S71_SubMunicipalVoteNo,$AC:$AC,Sheet1!S71_ItemType,$AD:$AD)","v":0},{"$f":"-SUMIFS(Sheet1!S71_OY2BudgetAmount,Sheet1!S71_SubMunicipalVoteNo,$AC:$AC,Sheet1!S71_ItemType,$AD:$AD)","v":0},null,null,null,null,null,null,null,null,null,null,null,null,null,null,null,null,null,76,"IR"]
[{"$f":"IF(RIGHT('Org structure'!D75,18)<>\"[Name of sub-vote]\",'Org structure'!D75,\"\")","v":""},null,{"$f":"SUMIFS(Sheet1!S71_PPPYearAmount,Sheet1!S71_SubMunicipalVoteNo,$AC:$AC,Sheet1!S71_ItemType,$AD:$AD)","v":0},{"$f":"SUMIFS(Sheet1!S71_PPYearAmount,Sheet1!S71_SubMunicipalVoteNo,$AC:$AC,Sheet1!S71_ItemType,$AD:$AD)","v":0},{"$f":"SUMIFS(Sheet1!S71_PYearAmount,Sheet1!S71_SubMunicipalVoteNo,$AC:$AC,Sheet1!S71_ItemType,$AD:$AD)","v":0},{"$f":"-SUMIFS(Sheet1!S71_OriginalBudAmnt,Sheet1!S71_SubMunicipalVoteNo,$AC:$AC,Sheet1!S71_ItemType,$AD:$AD)","v":0},{"$f":"-SUMIFS(Sheet1!S71_AdjustmentBudAmnt,Sheet1!S71_SubMunicipalVoteNo,$AC:$AC,Sheet1!S71_ItemType,$AD:$AD)","v":0},{"$f":"-SUMIFS(Sheet1!S71_AdjustmentBudAmnt,Sheet1!S71_SubMunicipalVoteNo,$AC:$AC,Sheet1!S71_ItemType,$AD:$AD)","v":0},{"$f":"-SUMIFS(Sheet1!S71_ASBudgetAmount,Sheet1!S71_SubMunicipalVoteNo,$AC:$AC,Sheet1!S71_ItemType,$AD:$AD)","v":0},{"$f":"-SUMIFS(Sheet1!S71_OY1BudgetAmount,Sheet1!S71_SubMunicipalVoteNo,$AC:$AC,Sheet1!S71_ItemType,$AD:$AD)","v":0},{"$f":"-SUMIFS(Sheet1!S71_OY2BudgetAmount,Sheet1!S71_SubMunicipalVoteNo,$AC:$AC,Sheet1!S71_ItemType,$AD:$AD)","v":0},null,null,null,null,null,null,null,null,null,null,null,null,null,null,null,null,null,77,"IR"]
[{"$f":"IF(RIGHT('Org structure'!D76,18)<>\"[Name of sub-vote]\",'Org structure'!D76,\"\")","v":""},null,{"$f":"SUMIFS(Sheet1!S71_PPPYearAmount,Sheet1!S71_SubMunicipalVoteNo,$AC:$AC,Sheet1!S71_ItemType,$AD:$AD)","v":0},{"$f":"SUMIFS(Sheet1!S71_PPYearAmount,Sheet1!S71_SubMunicipalVoteNo,$AC:$AC,Sheet1!S71_ItemType,$AD:$AD)","v":0},{"$f":"SUMIFS(Sheet1!S71_PYearAmount,Sheet1!S71_SubMunicipalVoteNo,$AC:$AC,Sheet1!S71_ItemType,$AD:$AD)","v":0},{"$f":"-SUMIFS(Sheet1!S71_OriginalBudAmnt,Sheet1!S71_SubMunicipalVoteNo,$AC:$AC,Sheet1!S71_ItemType,$AD:$AD)","v":0},{"$f":"-SUMIFS(Sheet1!S71_AdjustmentBudAmnt,Sheet1!S71_SubMunicipalVoteNo,$AC:$AC,Sheet1!S71_ItemType,$AD:$AD)","v":0},{"$f":"-SUMIFS(Sheet1!S71_AdjustmentBudAmnt,Sheet1!S71_SubMunicipalVoteNo,$AC:$AC,Sheet1!S71_ItemType,$AD:$AD)","v":0},{"$f":"-SUMIFS(Sheet1!S71_ASBudgetAmount,Sheet1!S71_SubMunicipalVoteNo,$AC:$AC,Sheet1!S71_ItemType,$AD:$AD)","v":0},{"$f":"-SUMIFS(Sheet1!S71_OY1BudgetAmount,Sheet1!S71_SubMunicipalVoteNo,$AC:$AC,Sheet1!S71_ItemType,$AD:$AD)","v":0},{"$f":"-SUMIFS(Sheet1!S71_OY2BudgetAmount,Sheet1!S71_SubMunicipalVoteNo,$AC:$AC,Sheet1!S71_ItemType,$AD:$AD)","v":0},null,null,null,null,null,null,null,null,null,null,null,null,null,null,null,null,null,78,"IR"]
[{"$f":"IF(RIGHT('Org structure'!D77,18)<>\"[Name of sub-vote]\",'Org structure'!D77,\"\")","v":""},null,{"$f":"SUMIFS(Sheet1!S71_PPPYearAmount,Sheet1!S71_SubMunicipalVoteNo,$AC:$AC,Sheet1!S71_ItemType,$AD:$AD)","v":0},{"$f":"SUMIFS(Sheet1!S71_PPYearAmount,Sheet1!S71_SubMunicipalVoteNo,$AC:$AC,Sheet1!S71_ItemType,$AD:$AD)","v":0},{"$f":"SUMIFS(Sheet1!S71_PYearAmount,Sheet1!S71_SubMunicipalVoteNo,$AC:$AC,Sheet1!S71_ItemType,$AD:$AD)","v":0},{"$f":"-SUMIFS(Sheet1!S71_OriginalBudAmnt,Sheet1!S71_SubMunicipalVoteNo,$AC:$AC,Sheet1!S71_ItemType,$AD:$AD)","v":0},{"$f":"-SUMIFS(Sheet1!S71_AdjustmentBudAmnt,Sheet1!S71_SubMunicipalVoteNo,$AC:$AC,Sheet1!S71_ItemType,$AD:$AD)","v":0},{"$f":"-SUMIFS(Sheet1!S71_AdjustmentBudAmnt,Sheet1!S71_SubMunicipalVoteNo,$AC:$AC,Sheet1!S71_ItemType,$AD:$AD)","v":0},{"$f":"-SUMIFS(Sheet1!S71_ASBudgetAmount,Sheet1!S71_SubMunicipalVoteNo,$AC:$AC,Sheet1!S71_ItemType,$AD:$AD)","v":0},{"$f":"-SUMIFS(Sheet1!S71_OY1BudgetAmount,Sheet1!S71_SubMunicipalVoteNo,$AC:$AC,Sheet1!S71_ItemType,$AD:$AD)","v":0},{"$f":"-SUMIFS(Sheet1!S71_OY2BudgetAmount,Sheet1!S71_SubMunicipalVoteNo,$AC:$AC,Sheet1!S71_ItemType,$AD:$AD)","v":0},null,null,null,null,null,null,null,null,null,null,null,null,null,null,null,null,null,79,"IR"]
[{"$f":"IF(RIGHT('Org structure'!D78,18)<>\"[Name of sub-vote]\",'Org structure'!D78,\"\")","v":""},null,{"$f":"SUMIFS(Sheet1!S71_PPPYearAmount,Sheet1!S71_SubMunicipalVoteNo,$AC:$AC,Sheet1!S71_ItemType,$AD:$AD)","v":0},{"$f":"SUMIFS(Sheet1!S71_PPYearAmount,Sheet1!S71_SubMunicipalVoteNo,$AC:$AC,Sheet1!S71_ItemType,$AD:$AD)","v":0},{"$f":"SUMIFS(Sheet1!S71_PYearAmount,Sheet1!S71_SubMunicipalVoteNo,$AC:$AC,Sheet1!S71_ItemType,$AD:$AD)","v":0},{"$f":"-SUMIFS(Sheet1!S71_OriginalBudAmnt,Sheet1!S71_SubMunicipalVoteNo,$AC:$AC,Sheet1!S71_ItemType,$AD:$AD)","v":0},{"$f":"-SUMIFS(Sheet1!S71_AdjustmentBudAmnt,Sheet1!S71_SubMunicipalVoteNo,$AC:$AC,Sheet1!S71_ItemType,$AD:$AD)","v":0},{"$f":"-SUMIFS(Sheet1!S71_AdjustmentBudAmnt,Sheet1!S71_SubMunicipalVoteNo,$AC:$AC,Sheet1!S71_ItemType,$AD:$AD)","v":0},{"$f":"-SUMIFS(Sheet1!S71_ASBudgetAmount,Sheet1!S71_SubMunicipalVoteNo,$AC:$AC,Sheet1!S71_ItemType,$AD:$AD)","v":0},{"$f":"-SUMIFS(Sheet1!S71_OY1BudgetAmount,Sheet1!S71_SubMunicipalVoteNo,$AC:$AC,Sheet1!S71_ItemType,$AD:$AD)","v":0},{"$f":"-SUMIFS(Sheet1!S71_OY2BudgetAmount,Sheet1!S71_SubMunicipalVoteNo,$AC:$AC,Sheet1!S71_ItemType,$AD:$AD)","v":0},null,null,null,null,null,null,null,null,null,null,null,null,null,null,null,null,null,710,"IR"]
[{"$f":"'Org structure'!A9","v":"Vote 8 - [NAME OF VOTE 8]"},null,{"$f":"SUM(C83:C92)","v":0},{"$f":"SUM(D83:D92)","v":0},0,0,0,0,0,0,0]
[{"$f":"IF(RIGHT('Org structure'!D80,18)<>\"[Name of sub-vote]\",'Org structure'!D80,\"\")","v":""},null,{"$f":"SUMIFS(Sheet1!S71_PPPYearAmount,Sheet1!S71_SubMunicipalVoteNo,$AC:$AC,Sheet1!S71_ItemType,$AD:$AD)","v":0},{"$f":"SUMIFS(Sheet1!S71_PPYearAmount,Sheet1!S71_SubMunicipalVoteNo,$AC:$AC,Sheet1!S71_ItemType,$AD:$AD)","v":0},{"$f":"SUMIFS(Sheet1!S71_PYearAmount,Sheet1!S71_SubMunicipalVoteNo,$AC:$AC,Sheet1!S71_ItemType,$AD:$AD)","v":0},{"$f":"-SUMIFS(Sheet1!S71_OriginalBudAmnt,Sheet1!S71_SubMunicipalVoteNo,$AC:$AC,Sheet1!S71_ItemType,$AD:$AD)","v":0},{"$f":"-SUMIFS(Sheet1!S71_AdjustmentBudAmnt,Sheet1!S71_SubMunicipalVoteNo,$AC:$AC,Sheet1!S71_ItemType,$AD:$AD)","v":0},{"$f":"-SUMIFS(Sheet1!S71_AdjustmentBudAmnt,Sheet1!S71_SubMunicipalVoteNo,$AC:$AC,Sheet1!S71_ItemType,$AD:$AD)","v":0},{"$f":"-SUMIFS(Sheet1!S71_ASBudgetAmount,Sheet1!S71_SubMunicipalVoteNo,$AC:$AC,Sheet1!S71_ItemType,$AD:$AD)","v":0},{"$f":"-SUMIFS(Sheet1!S71_OY1BudgetAmount,Sheet1!S71_SubMunicipalVoteNo,$AC:$AC,Sheet1!S71_ItemType,$AD:$AD)","v":0},{"$f":"-SUMIFS(Sheet1!S71_OY2BudgetAmount,Sheet1!S71_SubMunicipalVoteNo,$AC:$AC,Sheet1!S71_ItemType,$AD:$AD)","v":0},null,null,null,null,null,null,null,null,null,null,null,null,null,null,null,null,null,81,"IR"]
[{"$f":"IF(RIGHT('Org structure'!D81,18)<>\"[Name of sub-vote]\",'Org structure'!D81,\"\")","v":""},null,{"$f":"SUMIFS(Sheet1!S71_PPPYearAmount,Sheet1!S71_SubMunicipalVoteNo,$AC:$AC,Sheet1!S71_ItemType,$AD:$AD)","v":0},{"$f":"SUMIFS(Sheet1!S71_PPYearAmount,Sheet1!S71_SubMunicipalVoteNo,$AC:$AC,Sheet1!S71_ItemType,$AD:$AD)","v":0},{"$f":"SUMIFS(Sheet1!S71_PYearAmount,Sheet1!S71_SubMunicipalVoteNo,$AC:$AC,Sheet1!S71_ItemType,$AD:$AD)","v":0},{"$f":"-SUMIFS(Sheet1!S71_OriginalBudAmnt,Sheet1!S71_SubMunicipalVoteNo,$AC:$AC,Sheet1!S71_ItemType,$AD:$AD)","v":0},{"$f":"-SUMIFS(Sheet1!S71_AdjustmentBudAmnt,Sheet1!S71_SubMunicipalVoteNo,$AC:$AC,Sheet1!S71_ItemType,$AD:$AD)","v":0},{"$f":"-SUMIFS(Sheet1!S71_AdjustmentBudAmnt,Sheet1!S71_SubMunicipalVoteNo,$AC:$AC,Sheet1!S71_ItemType,$AD:$AD)","v":0},{"$f":"-SUMIFS(Sheet1!S71_ASBudgetAmount,Sheet1!S71_SubMunicipalVoteNo,$AC:$AC,Sheet1!S71_ItemType,$AD:$AD)","v":0},{"$f":"-SUMIFS(Sheet1!S71_OY1BudgetAmount,Sheet1!S71_SubMunicipalVoteNo,$AC:$AC,Sheet1!S71_ItemType,$AD:$AD)","v":0},{"$f":"-SUMIFS(Sheet1!S71_OY2BudgetAmount,Sheet1!S71_SubMunicipalVoteNo,$AC:$AC,Sheet1!S71_ItemType,$AD:$AD)","v":0},null,null,null,null,null,null,null,null,null,null,null,null,null,null,null,null,null,82,"IR"]
[{"$f":"IF(RIGHT('Org structure'!D82,18)<>\"[Name of sub-vote]\",'Org structure'!D82,\"\")","v":""},null,{"$f":"SUMIFS(Sheet1!S71_PPPYearAmount,Sheet1!S71_SubMunicipalVoteNo,$AC:$AC,Sheet1!S71_ItemType,$AD:$AD)","v":0},{"$f":"SUMIFS(Sheet1!S71_PPYearAmount,Sheet1!S71_SubMunicipalVoteNo,$AC:$AC,Sheet1!S71_ItemType,$AD:$AD)","v":0},{"$f":"SUMIFS(Sheet1!S71_PYearAmount,Sheet1!S71_SubMunicipalVoteNo,$AC:$AC,Sheet1!S71_ItemType,$AD:$AD)","v":0},{"$f":"-SUMIFS(Sheet1!S71_OriginalBudAmnt,Sheet1!S71_SubMunicipalVoteNo,$AC:$AC,Sheet1!S71_ItemType,$AD:$AD)","v":0},{"$f":"-SUMIFS(Sheet1!S71_AdjustmentBudAmnt,Sheet1!S71_SubMunicipalVoteNo,$AC:$AC,Sheet1!S71_ItemType,$AD:$AD)","v":0},{"$f":"-SUMIFS(Sheet1!S71_AdjustmentBudAmnt,Sheet1!S71_SubMunicipalVoteNo,$AC:$AC,Sheet1!S71_ItemType,$AD:$AD)","v":0},{"$f":"-SUMIFS(Sheet1!S71_ASBudgetAmount,Sheet1!S71_SubMunicipalVoteNo,$AC:$AC,Sheet1!S71_ItemType,$AD:$AD)","v":0},{"$f":"-SUMIFS(Sheet1!S71_OY1BudgetAmount,Sheet1!S71_SubMunicipalVoteNo,$AC:$AC,Sheet1!S71_ItemType,$AD:$AD)","v":0},{"$f":"-SUMIFS(Sheet1!S71_OY2BudgetAmount,Sheet1!S71_SubMunicipalVoteNo,$AC:$AC,Sheet1!S71_ItemType,$AD:$AD)","v":0},null,null,null,null,null,null,null,null,null,null,null,null,null,null,null,null,null,83,"IR"]
[{"$f":"IF(RIGHT('Org structure'!D83,18)<>\"[Name of sub-vote]\",'Org structure'!D83,\"\")","v":""},null,{"$f":"SUMIFS(Sheet1!S71_PPPYearAmount,Sheet1!S71_SubMunicipalVoteNo,$AC:$AC,Sheet1!S71_ItemType,$AD:$AD)","v":0},{"$f":"SUMIFS(Sheet1!S71_PPYearAmount,Sheet1!S71_SubMunicipalVoteNo,$AC:$AC,Sheet1!S71_ItemType,$AD:$AD)","v":0},{"$f":"SUMIFS(Sheet1!S71_PYearAmount,Sheet1!S71_SubMunicipalVoteNo,$AC:$AC,Sheet1!S71_ItemType,$AD:$AD)","v":0},{"$f":"-SUMIFS(Sheet1!S71_OriginalBudAmnt,Sheet1!S71_SubMunicipalVoteNo,$AC:$AC,Sheet1!S71_ItemType,$AD:$AD)","v":0},{"$f":"-SUMIFS(Sheet1!S71_AdjustmentBudAmnt,Sheet1!S71_SubMunicipalVoteNo,$AC:$AC,Sheet1!S71_ItemType,$AD:$AD)","v":0},{"$f":"-SUMIFS(Sheet1!S71_AdjustmentBudAmnt,Sheet1!S71_SubMunicipalVoteNo,$AC:$AC,Sheet1!S71_ItemType,$AD:$AD)","v":0},{"$f":"-SUMIFS(Sheet1!S71_ASBudgetAmount,Sheet1!S71_SubMunicipalVoteNo,$AC:$AC,Sheet1!S71_ItemType,$AD:$AD)","v":0},{"$f":"-SUMIFS(Sheet1!S71_OY1BudgetAmount,Sheet1!S71_SubMunicipalVoteNo,$AC:$AC,Sheet1!S71_ItemType,$AD:$AD)","v":0},{"$f":"-SUMIFS(Sheet1!S71_OY2BudgetAmount,Sheet1!S71_SubMunicipalVoteNo,$AC:$AC,Sheet1!S71_ItemType,$AD:$AD)","v":0},null,null,null,null,null,null,null,null,null,null,null,null,null,null,null,null,null,84,"IR"]
[{"$f":"IF(RIGHT('Org structure'!D84,18)<>\"[Name of sub-vote]\",'Org structure'!D84,\"\")","v":""},null,{"$f":"SUMIFS(Sheet1!S71_PPPYearAmount,Sheet1!S71_SubMunicipalVoteNo,$AC:$AC,Sheet1!S71_ItemType,$AD:$AD)","v":0},{"$f":"SUMIFS(Sheet1!S71_PPYearAmount,Sheet1!S71_SubMunicipalVoteNo,$AC:$AC,Sheet1!S71_ItemType,$AD:$AD)","v":0},{"$f":"SUMIFS(Sheet1!S71_PYearAmount,Sheet1!S71_SubMunicipalVoteNo,$AC:$AC,Sheet1!S71_ItemType,$AD:$AD)","v":0},{"$f":"-SUMIFS(Sheet1!S71_OriginalBudAmnt,Sheet1!S71_SubMunicipalVoteNo,$AC:$AC,Sheet1!S71_ItemType,$AD:$AD)","v":0},{"$f":"-SUMIFS(Sheet1!S71_AdjustmentBudAmnt,Sheet1!S71_SubMunicipalVoteNo,$AC:$AC,Sheet1!S71_ItemType,$AD:$AD)","v":0},{"$f":"-SUMIFS(Sheet1!S71_AdjustmentBudAmnt,Sheet1!S71_SubMunicipalVoteNo,$AC:$AC,Sheet1!S71_ItemType,$AD:$AD)","v":0},{"$f":"-SUMIFS(Sheet1!S71_ASBudgetAmount,Sheet1!S71_SubMunicipalVoteNo,$AC:$AC,Sheet1!S71_ItemType,$AD:$AD)","v":0},{"$f":"-SUMIFS(Sheet1!S71_OY1BudgetAmount,Sheet1!S71_SubMunicipalVoteNo,$AC:$AC,Sheet1!S71_ItemType,$AD:$AD)","v":0},{"$f":"-SUMIFS(Sheet1!S71_OY2BudgetAmount,Sheet1!S71_SubMunicipalVoteNo,$AC:$AC,Sheet1!S71_ItemType,$AD:$AD)","v":0},null,null,null,null,null,null,null,null,null,null,null,null,null,null,null,null,null,85,"IR"]
[{"$f":"IF(RIGHT('Org structure'!D85,18)<>\"[Name of sub-vote]\",'Org structure'!D85,\"\")","v":""},null,{"$f":"SUMIFS(Sheet1!S71_PPPYearAmount,Sheet1!S71_SubMunicipalVoteNo,$AC:$AC,Sheet1!S71_ItemType,$AD:$AD)","v":0},{"$f":"SUMIFS(Sheet1!S71_PPYearAmount,Sheet1!S71_SubMunicipalVoteNo,$AC:$AC,Sheet1!S71_ItemType,$AD:$AD)","v":0},{"$f":"SUMIFS(Sheet1!S71_PYearAmount,Sheet1!S71_SubMunicipalVoteNo,$AC:$AC,Sheet1!S71_ItemType,$AD:$AD)","v":0},{"$f":"-SUMIFS(Sheet1!S71_OriginalBudAmnt,Sheet1!S71_SubMunicipalVoteNo,$AC:$AC,Sheet1!S71_ItemType,$AD:$AD)","v":0},{"$f":"-SUMIFS(Sheet1!S71_AdjustmentBudAmnt,Sheet1!S71_SubMunicipalVoteNo,$AC:$AC,Sheet1!S71_ItemType,$AD:$AD)","v":0},{"$f":"-SUMIFS(Sheet1!S71_AdjustmentBudAmnt,Sheet1!S71_SubMunicipalVoteNo,$AC:$AC,Sheet1!S71_ItemType,$AD:$AD)","v":0},{"$f":"-SUMIFS(Sheet1!S71_ASBudgetAmount,Sheet1!S71_SubMunicipalVoteNo,$AC:$AC,Sheet1!S71_ItemType,$AD:$AD)","v":0},{"$f":"-SUMIFS(Sheet1!S71_OY1BudgetAmount,Sheet1!S71_SubMunicipalVoteNo,$AC:$AC,Sheet1!S71_ItemType,$AD:$AD)","v":0},{"$f":"-SUMIFS(Sheet1!S71_OY2BudgetAmount,Sheet1!S71_SubMunicipalVoteNo,$AC:$AC,Sheet1!S71_ItemType,$AD:$AD)","v":0},null,null,null,null,null,null,null,null,null,null,null,null,null,null,null,null,null,86,"IR"]
[{"$f":"IF(RIGHT('Org structure'!D86,18)<>\"[Name of sub-vote]\",'Org structure'!D86,\"\")","v":""},null,{"$f":"SUMIFS(Sheet1!S71_PPPYearAmount,Sheet1!S71_SubMunicipalVoteNo,$AC:$AC,Sheet1!S71_ItemType,$AD:$AD)","v":0},{"$f":"SUMIFS(Sheet1!S71_PPYearAmount,Sheet1!S71_SubMunicipalVoteNo,$AC:$AC,Sheet1!S71_ItemType,$AD:$AD)","v":0},{"$f":"SUMIFS(Sheet1!S71_PYearAmount,Sheet1!S71_SubMunicipalVoteNo,$AC:$AC,Sheet1!S71_ItemType,$AD:$AD)","v":0},{"$f":"-SUMIFS(Sheet1!S71_OriginalBudAmnt,Sheet1!S71_SubMunicipalVoteNo,$AC:$AC,Sheet1!S71_ItemType,$AD:$AD)","v":0},{"$f":"-SUMIFS(Sheet1!S71_AdjustmentBudAmnt,Sheet1!S71_SubMunicipalVoteNo,$AC:$AC,Sheet1!S71_ItemType,$AD:$AD)","v":0},{"$f":"-SUMIFS(Sheet1!S71_AdjustmentBudAmnt,Sheet1!S71_SubMunicipalVoteNo,$AC:$AC,Sheet1!S71_ItemType,$AD:$AD)","v":0},{"$f":"-SUMIFS(Sheet1!S71_ASBudgetAmount,Sheet1!S71_SubMunicipalVoteNo,$AC:$AC,Sheet1!S71_ItemType,$AD:$AD)","v":0},{"$f":"-SUMIFS(Sheet1!S71_OY1BudgetAmount,Sheet1!S71_SubMunicipalVoteNo,$AC:$AC,Sheet1!S71_ItemType,$AD:$AD)","v":0},{"$f":"-SUMIFS(Sheet1!S71_OY2BudgetAmount,Sheet1!S71_SubMunicipalVoteNo,$AC:$AC,Sheet1!S71_ItemType,$AD:$AD)","v":0},null,null,null,null,null,null,null,null,null,null,null,null,null,null,null,null,null,87,"IR"]
[{"$f":"IF(RIGHT('Org structure'!D87,18)<>\"[Name of sub-vote]\",'Org structure'!D87,\"\")","v":""},null,{"$f":"SUMIFS(Sheet1!S71_PPPYearAmount,Sheet1!S71_SubMunicipalVoteNo,$AC:$AC,Sheet1!S71_ItemType,$AD:$AD)","v":0},{"$f":"SUMIFS(Sheet1!S71_PPYearAmount,Sheet1!S71_SubMunicipalVoteNo,$AC:$AC,Sheet1!S71_ItemType,$AD:$AD)","v":0},{"$f":"SUMIFS(Sheet1!S71_PYearAmount,Sheet1!S71_SubMunicipalVoteNo,$AC:$AC,Sheet1!S71_ItemType,$AD:$AD)","v":0},{"$f":"-SUMIFS(Sheet1!S71_OriginalBudAmnt,Sheet1!S71_SubMunicipalVoteNo,$AC:$AC,Sheet1!S71_ItemType,$AD:$AD)","v":0},{"$f":"-SUMIFS(Sheet1!S71_AdjustmentBudAmnt,Sheet1!S71_SubMunicipalVoteNo,$AC:$AC,Sheet1!S71_ItemType,$AD:$AD)","v":0},{"$f":"-SUMIFS(Sheet1!S71_AdjustmentBudAmnt,Sheet1!S71_SubMunicipalVoteNo,$AC:$AC,Sheet1!S71_ItemType,$AD:$AD)","v":0},{"$f":"-SUMIFS(Sheet1!S71_ASBudgetAmount,Sheet1!S71_SubMunicipalVoteNo,$AC:$AC,Sheet1!S71_ItemType,$AD:$AD)","v":0},{"$f":"-SUMIFS(Sheet1!S71_OY1BudgetAmount,Sheet1!S71_SubMunicipalVoteNo,$AC:$AC,Sheet1!S71_ItemType,$AD:$AD)","v":0},{"$f":"-SUMIFS(Sheet1!S71_OY2BudgetAmount,Sheet1!S71_SubMunicipalVoteNo,$AC:$AC,Sheet1!S71_ItemType,$AD:$AD)","v":0},null,null,null,null,null,null,null,null,null,null,null,null,null,null,null,null,null,88,"IR"]
[{"$f":"IF(RIGHT('Org structure'!D88,18)<>\"[Name of sub-vote]\",'Org structure'!D88,\"\")","v":""},null,{"$f":"SUMIFS(Sheet1!S71_PPPYearAmount,Sheet1!S71_SubMunicipalVoteNo,$AC:$AC,Sheet1!S71_ItemType,$AD:$AD)","v":0},{"$f":"SUMIFS(Sheet1!S71_PPYearAmount,Sheet1!S71_SubMunicipalVoteNo,$AC:$AC,Sheet1!S71_ItemType,$AD:$AD)","v":0},{"$f":"SUMIFS(Sheet1!S71_PYearAmount,Sheet1!S71_SubMunicipalVoteNo,$AC:$AC,Sheet1!S71_ItemType,$AD:$AD)","v":0},{"$f":"-SUMIFS(Sheet1!S71_OriginalBudAmnt,Sheet1!S71_SubMunicipalVoteNo,$AC:$AC,Sheet1!S71_ItemType,$AD:$AD)","v":0},{"$f":"-SUMIFS(Sheet1!S71_AdjustmentBudAmnt,Sheet1!S71_SubMunicipalVoteNo,$AC:$AC,Sheet1!S71_ItemType,$AD:$AD)","v":0},{"$f":"-SUMIFS(Sheet1!S71_AdjustmentBudAmnt,Sheet1!S71_SubMunicipalVoteNo,$AC:$AC,Sheet1!S71_ItemType,$AD:$AD)","v":0},{"$f":"-SUMIFS(Sheet1!S71_ASBudgetAmount,Sheet1!S71_SubMunicipalVoteNo,$AC:$AC,Sheet1!S71_ItemType,$AD:$AD)","v":0},{"$f":"-SUMIFS(Sheet1!S71_OY1BudgetAmount,Sheet1!S71_SubMunicipalVoteNo,$AC:$AC,Sheet1!S71_ItemType,$AD:$AD)","v":0},{"$f":"-SUMIFS(Sheet1!S71_OY2BudgetAmount,Sheet1!S71_SubMunicipalVoteNo,$AC:$AC,Sheet1!S71_ItemType,$AD:$AD)","v":0},null,null,null,null,null,null,null,null,null,null,null,null,null,null,null,null,null,89,"IR"]
[{"$f":"IF(RIGHT('Org structure'!D89,18)<>\"[Name of sub-vote]\",'Org structure'!D89,\"\")","v":""},null,{"$f":"SUMIFS(Sheet1!S71_PPPYearAmount,Sheet1!S71_SubMunicipalVoteNo,$AC:$AC,Sheet1!S71_ItemType,$AD:$AD)","v":0},{"$f":"SUMIFS(Sheet1!S71_PPYearAmount,Sheet1!S71_SubMunicipalVoteNo,$AC:$AC,Sheet1!S71_ItemType,$AD:$AD)","v":0},{"$f":"SUMIFS(Sheet1!S71_PYearAmount,Sheet1!S71_SubMunicipalVoteNo,$AC:$AC,Sheet1!S71_ItemType,$AD:$AD)","v":0},{"$f":"-SUMIFS(Sheet1!S71_OriginalBudAmnt,Sheet1!S71_SubMunicipalVoteNo,$AC:$AC,Sheet1!S71_ItemType,$AD:$AD)","v":0},{"$f":"-SUMIFS(Sheet1!S71_AdjustmentBudAmnt,Sheet1!S71_SubMunicipalVoteNo,$AC:$AC,Sheet1!S71_ItemType,$AD:$AD)","v":0},{"$f":"-SUMIFS(Sheet1!S71_AdjustmentBudAmnt,Sheet1!S71_SubMunicipalVoteNo,$AC:$AC,Sheet1!S71_ItemType,$AD:$AD)","v":0},{"$f":"-SUMIFS(Sheet1!S71_ASBudgetAmount,Sheet1!S71_SubMunicipalVoteNo,$AC:$AC,Sheet1!S71_ItemType,$AD:$AD)","v":0},{"$f":"-SUMIFS(Sheet1!S71_OY1BudgetAmount,Sheet1!S71_SubMunicipalVoteNo,$AC:$AC,Sheet1!S71_ItemType,$AD:$AD)","v":0},{"$f":"-SUMIFS(Sheet1!S71_OY2BudgetAmount,Sheet1!S71_SubMunicipalVoteNo,$AC:$AC,Sheet1!S71_ItemType,$AD:$AD)","v":0},null,null,null,null,null,null,null,null,null,null,null,null,null,null,null,null,null,810,"IR"]
[{"$f":"'Org structure'!A10","v":"Vote 9 - [NAME OF VOTE 9]"},null,{"$f":"SUM(C94:C103)","v":0},{"$f":"SUM(D94:D103)","v":0},0,0,0,0,0,0,0]
[{"$f":"IF(RIGHT('Org structure'!D91,18)<>\"[Name of sub-vote]\",'Org structure'!D91,\"\")","v":""},null,{"$f":"SUMIFS(Sheet1!S71_PPPYearAmount,Sheet1!S71_SubMunicipalVoteNo,$AC:$AC,Sheet1!S71_ItemType,$AD:$AD)","v":0},{"$f":"SUMIFS(Sheet1!S71_PPYearAmount,Sheet1!S71_SubMunicipalVoteNo,$AC:$AC,Sheet1!S71_ItemType,$AD:$AD)","v":0},{"$f":"SUMIFS(Sheet1!S71_PYearAmount,Sheet1!S71_SubMunicipalVoteNo,$AC:$AC,Sheet1!S71_ItemType,$AD:$AD)","v":0},{"$f":"-SUMIFS(Sheet1!S71_OriginalBudAmnt,Sheet1!S71_SubMunicipalVoteNo,$AC:$AC,Sheet1!S71_ItemType,$AD:$AD)","v":0},{"$f":"-SUMIFS(Sheet1!S71_AdjustmentBudAmnt,Sheet1!S71_SubMunicipalVoteNo,$AC:$AC,Sheet1!S71_ItemType,$AD:$AD)","v":0},{"$f":"-SUMIFS(Sheet1!S71_AdjustmentBudAmnt,Sheet1!S71_SubMunicipalVoteNo,$AC:$AC,Sheet1!S71_ItemType,$AD:$AD)","v":0},{"$f":"-SUMIFS(Sheet1!S71_ASBudgetAmount,Sheet1!S71_SubMunicipalVoteNo,$AC:$AC,Sheet1!S71_ItemType,$AD:$AD)","v":0},{"$f":"-SUMIFS(Sheet1!S71_OY1BudgetAmount,Sheet1!S71_SubMunicipalVoteNo,$AC:$AC,Sheet1!S71_ItemType,$AD:$AD)","v":0},{"$f":"-SUMIFS(Sheet1!S71_OY2BudgetAmount,Sheet1!S71_SubMunicipalVoteNo,$AC:$AC,Sheet1!S71_ItemType,$AD:$AD)","v":0},null,null,null,null,null,null,null,null,null,null,null,null,null,null,null,null,null,91,"IR"]
[{"$f":"IF(RIGHT('Org structure'!D92,18)<>\"[Name of sub-vote]\",'Org structure'!D92,\"\")","v":""},null,{"$f":"SUMIFS(Sheet1!S71_PPPYearAmount,Sheet1!S71_SubMunicipalVoteNo,$AC:$AC,Sheet1!S71_ItemType,$AD:$AD)","v":0},{"$f":"SUMIFS(Sheet1!S71_PPYearAmount,Sheet1!S71_SubMunicipalVoteNo,$AC:$AC,Sheet1!S71_ItemType,$AD:$AD)","v":0},{"$f":"SUMIFS(Sheet1!S71_PYearAmount,Sheet1!S71_SubMunicipalVoteNo,$AC:$AC,Sheet1!S71_ItemType,$AD:$AD)","v":0},{"$f":"-SUMIFS(Sheet1!S71_OriginalBudAmnt,Sheet1!S71_SubMunicipalVoteNo,$AC:$AC,Sheet1!S71_ItemType,$AD:$AD)","v":0},{"$f":"-SUMIFS(Sheet1!S71_AdjustmentBudAmnt,Sheet1!S71_SubMunicipalVoteNo,$AC:$AC,Sheet1!S71_ItemType,$AD:$AD)","v":0},{"$f":"-SUMIFS(Sheet1!S71_AdjustmentBudAmnt,Sheet1!S71_SubMunicipalVoteNo,$AC:$AC,Sheet1!S71_ItemType,$AD:$AD)","v":0},{"$f":"-SUMIFS(Sheet1!S71_ASBudgetAmount,Sheet1!S71_SubMunicipalVoteNo,$AC:$AC,Sheet1!S71_ItemType,$AD:$AD)","v":0},{"$f":"-SUMIFS(Sheet1!S71_OY1BudgetAmount,Sheet1!S71_SubMunicipalVoteNo,$AC:$AC,Sheet1!S71_ItemType,$AD:$AD)","v":0},{"$f":"-SUMIFS(Sheet1!S71_OY2BudgetAmount,Sheet1!S71_SubMunicipalVoteNo,$AC:$AC,Sheet1!S71_ItemType,$AD:$AD)","v":0},null,null,null,null,null,null,null,null,null,null,null,null,null,null,null,null,null,92,"IR"]
[{"$f":"IF(RIGHT('Org structure'!D93,18)<>\"[Name of sub-vote]\",'Org structure'!D93,\"\")","v":""},null,{"$f":"SUMIFS(Sheet1!S71_PPPYearAmount,Sheet1!S71_SubMunicipalVoteNo,$AC:$AC,Sheet1!S71_ItemType,$AD:$AD)","v":0},{"$f":"SUMIFS(Sheet1!S71_PPYearAmount,Sheet1!S71_SubMunicipalVoteNo,$AC:$AC,Sheet1!S71_ItemType,$AD:$AD)","v":0},{"$f":"SUMIFS(Sheet1!S71_PYearAmount,Sheet1!S71_SubMunicipalVoteNo,$AC:$AC,Sheet1!S71_ItemType,$AD:$AD)","v":0},{"$f":"-SUMIFS(Sheet1!S71_OriginalBudAmnt,Sheet1!S71_SubMunicipalVoteNo,$AC:$AC,Sheet1!S71_ItemType,$AD:$AD)","v":0},{"$f":"-SUMIFS(Sheet1!S71_AdjustmentBudAmnt,Sheet1!S71_SubMunicipalVoteNo,$AC:$AC,Sheet1!S71_ItemType,$AD:$AD)","v":0},{"$f":"-SUMIFS(Sheet1!S71_AdjustmentBudAmnt,Sheet1!S71_SubMunicipalVoteNo,$AC:$AC,Sheet1!S71_ItemType,$AD:$AD)","v":0},{"$f":"-SUMIFS(Sheet1!S71_ASBudgetAmount,Sheet1!S71_SubMunicipalVoteNo,$AC:$AC,Sheet1!S71_ItemType,$AD:$AD)","v":0},{"$f":"-SUMIFS(Sheet1!S71_OY1BudgetAmount,Sheet1!S71_SubMunicipalVoteNo,$AC:$AC,Sheet1!S71_ItemType,$AD:$AD)","v":0},{"$f":"-SUMIFS(Sheet1!S71_OY2BudgetAmount,Sheet1!S71_SubMunicipalVoteNo,$AC:$AC,Sheet1!S71_ItemType,$AD:$AD)","v":0},null,null,null,null,null,null,null,null,null,null,null,null,null,null,null,null,null,93,"IR"]
[{"$f":"IF(RIGHT('Org structure'!D94,18)<>\"[Name of sub-vote]\",'Org structure'!D94,\"\")","v":""},null,{"$f":"SUMIFS(Sheet1!S71_PPPYearAmount,Sheet1!S71_SubMunicipalVoteNo,$AC:$AC,Sheet1!S71_ItemType,$AD:$AD)","v":0},{"$f":"SUMIFS(Sheet1!S71_PPYearAmount,Sheet1!S71_SubMunicipalVoteNo,$AC:$AC,Sheet1!S71_ItemType,$AD:$AD)","v":0},{"$f":"SUMIFS(Sheet1!S71_PYearAmount,Sheet1!S71_SubMunicipalVoteNo,$AC:$AC,Sheet1!S71_ItemType,$AD:$AD)","v":0},{"$f":"-SUMIFS(Sheet1!S71_OriginalBudAmnt,Sheet1!S71_SubMunicipalVoteNo,$AC:$AC,Sheet1!S71_ItemType,$AD:$AD)","v":0},{"$f":"-SUMIFS(Sheet1!S71_AdjustmentBudAmnt,Sheet1!S71_SubMunicipalVoteNo,$AC:$AC,Sheet1!S71_ItemType,$AD:$AD)","v":0},{"$f":"-SUMIFS(Sheet1!S71_AdjustmentBudAmnt,Sheet1!S71_SubMunicipalVoteNo,$AC:$AC,Sheet1!S71_ItemType,$AD:$AD)","v":0},{"$f":"-SUMIFS(Sheet1!S71_ASBudgetAmount,Sheet1!S71_SubMunicipalVoteNo,$AC:$AC,Sheet1!S71_ItemType,$AD:$AD)","v":0},{"$f":"-SUMIFS(Sheet1!S71_OY1BudgetAmount,Sheet1!S71_SubMunicipalVoteNo,$AC:$AC,Sheet1!S71_ItemType,$AD:$AD)","v":0},{"$f":"-SUMIFS(Sheet1!S71_OY2BudgetAmount,Sheet1!S71_SubMunicipalVoteNo,$AC:$AC,Sheet1!S71_ItemType,$AD:$AD)","v":0},null,null,null,null,null,null,null,null,null,null,null,null,null,null,null,null,null,94,"IR"]
[{"$f":"IF(RIGHT('Org structure'!D95,18)<>\"[Name of sub-vote]\",'Org structure'!D95,\"\")","v":""},null,{"$f":"SUMIFS(Sheet1!S71_PPPYearAmount,Sheet1!S71_SubMunicipalVoteNo,$AC:$AC,Sheet1!S71_ItemType,$AD:$AD)","v":0},{"$f":"SUMIFS(Sheet1!S71_PPYearAmount,Sheet1!S71_SubMunicipalVoteNo,$AC:$AC,Sheet1!S71_ItemType,$AD:$AD)","v":0},{"$f":"SUMIFS(Sheet1!S71_PYearAmount,Sheet1!S71_SubMunicipalVoteNo,$AC:$AC,Sheet1!S71_ItemType,$AD:$AD)","v":0},{"$f":"-SUMIFS(Sheet1!S71_OriginalBudAmnt,Sheet1!S71_SubMunicipalVoteNo,$AC:$AC,Sheet1!S71_ItemType,$AD:$AD)","v":0},{"$f":"-SUMIFS(Sheet1!S71_AdjustmentBudAmnt,Sheet1!S71_SubMunicipalVoteNo,$AC:$AC,Sheet1!S71_ItemType,$AD:$AD)","v":0},{"$f":"-SUMIFS(Sheet1!S71_AdjustmentBudAmnt,Sheet1!S71_SubMunicipalVoteNo,$AC:$AC,Sheet1!S71_ItemType,$AD:$AD)","v":0},{"$f":"-SUMIFS(Sheet1!S71_ASBudgetAmount,Sheet1!S71_SubMunicipalVoteNo,$AC:$AC,Sheet1!S71_ItemType,$AD:$AD)","v":0},{"$f":"-SUMIFS(Sheet1!S71_OY1BudgetAmount,Sheet1!S71_SubMunicipalVoteNo,$AC:$AC,Sheet1!S71_ItemType,$AD:$AD)","v":0},{"$f":"-SUMIFS(Sheet1!S71_OY2BudgetAmount,Sheet1!S71_SubMunicipalVoteNo,$AC:$AC,Sheet1!S71_ItemType,$AD:$AD)","v":0},null,null,null,null,null,null,null,null,null,null,null,null,null,null,null,null,null,95,"IR"]
[{"$f":"IF(RIGHT('Org structure'!D96,18)<>\"[Name of sub-vote]\",'Org structure'!D96,\"\")","v":""},null,{"$f":"SUMIFS(Sheet1!S71_PPPYearAmount,Sheet1!S71_SubMunicipalVoteNo,$AC:$AC,Sheet1!S71_ItemType,$AD:$AD)","v":0},{"$f":"SUMIFS(Sheet1!S71_PPYearAmount,Sheet1!S71_SubMunicipalVoteNo,$AC:$AC,Sheet1!S71_ItemType,$AD:$AD)","v":0},{"$f":"SUMIFS(Sheet1!S71_PYearAmount,Sheet1!S71_SubMunicipalVoteNo,$AC:$AC,Sheet1!S71_ItemType,$AD:$AD)","v":0},{"$f":"-SUMIFS(Sheet1!S71_OriginalBudAmnt,Sheet1!S71_SubMunicipalVoteNo,$AC:$AC,Sheet1!S71_ItemType,$AD:$AD)","v":0},{"$f":"-SUMIFS(Sheet1!S71_AdjustmentBudAmnt,Sheet1!S71_SubMunicipalVoteNo,$AC:$AC,Sheet1!S71_ItemType,$AD:$AD)","v":0},{"$f":"-SUMIFS(Sheet1!S71_AdjustmentBudAmnt,Sheet1!S71_SubMunicipalVoteNo,$AC:$AC,Sheet1!S71_ItemType,$AD:$AD)","v":0},{"$f":"-SUMIFS(Sheet1!S71_ASBudgetAmount,Sheet1!S71_SubMunicipalVoteNo,$AC:$AC,Sheet1!S71_ItemType,$AD:$AD)","v":0},{"$f":"-SUMIFS(Sheet1!S71_OY1BudgetAmount,Sheet1!S71_SubMunicipalVoteNo,$AC:$AC,Sheet1!S71_ItemType,$AD:$AD)","v":0},{"$f":"-SUMIFS(Sheet1!S71_OY2BudgetAmount,Sheet1!S71_SubMunicipalVoteNo,$AC:$AC,Sheet1!S71_ItemType,$AD:$AD)","v":0},null,null,null,null,null,null,null,null,null,null,null,null,null,null,null,null,null,96,"IR"]
[{"$f":"IF(RIGHT('Org structure'!D97,18)<>\"[Name of sub-vote]\",'Org structure'!D97,\"\")","v":""},null,{"$f":"SUMIFS(Sheet1!S71_PPPYearAmount,Sheet1!S71_SubMunicipalVoteNo,$AC:$AC,Sheet1!S71_ItemType,$AD:$AD)","v":0},{"$f":"SUMIFS(Sheet1!S71_PPYearAmount,Sheet1!S71_SubMunicipalVoteNo,$AC:$AC,Sheet1!S71_ItemType,$AD:$AD)","v":0},{"$f":"SUMIFS(Sheet1!S71_PYearAmount,Sheet1!S71_SubMunicipalVoteNo,$AC:$AC,Sheet1!S71_ItemType,$AD:$AD)","v":0},{"$f":"-SUMIFS(Sheet1!S71_OriginalBudAmnt,Sheet1!S71_SubMunicipalVoteNo,$AC:$AC,Sheet1!S71_ItemType,$AD:$AD)","v":0},{"$f":"-SUMIFS(Sheet1!S71_AdjustmentBudAmnt,Sheet1!S71_SubMunicipalVoteNo,$AC:$AC,Sheet1!S71_ItemType,$AD:$AD)","v":0},{"$f":"-SUMIFS(Sheet1!S71_AdjustmentBudAmnt,Sheet1!S71_SubMunicipalVoteNo,$AC:$AC,Sheet1!S71_ItemType,$AD:$AD)","v":0},{"$f":"-SUMIFS(Sheet1!S71_ASBudgetAmount,Sheet1!S71_SubMunicipalVoteNo,$AC:$AC,Sheet1!S71_ItemType,$AD:$AD)","v":0},{"$f":"-SUMIFS(Sheet1!S71_OY1BudgetAmount,Sheet1!S71_SubMunicipalVoteNo,$AC:$AC,Sheet1!S71_ItemType,$AD:$AD)","v":0},{"$f":"-SUMIFS(Sheet1!S71_OY2BudgetAmount,Sheet1!S71_SubMunicipalVoteNo,$AC:$AC,Sheet1!S71_ItemType,$AD:$AD)","v":0},null,null,null,null,null,null,null,null,null,null,null,null,null,null,null,null,null,97,"IR"]
[{"$f":"IF(RIGHT('Org structure'!D98,18)<>\"[Name of sub-vote]\",'Org structure'!D98,\"\")","v":""},null,{"$f":"SUMIFS(Sheet1!S71_PPPYearAmount,Sheet1!S71_SubMunicipalVoteNo,$AC:$AC,Sheet1!S71_ItemType,$AD:$AD)","v":0},{"$f":"SUMIFS(Sheet1!S71_PPYearAmount,Sheet1!S71_SubMunicipalVoteNo,$AC:$AC,Sheet1!S71_ItemType,$AD:$AD)","v":0},{"$f":"SUMIFS(Sheet1!S71_PYearAmount,Sheet1!S71_SubMunicipalVoteNo,$AC:$AC,Sheet1!S71_ItemType,$AD:$AD)","v":0},{"$f":"-SUMIFS(Sheet1!S71_OriginalBudAmnt,Sheet1!S71_SubMunicipalVoteNo,$AC:$AC,Sheet1!S71_ItemType,$AD:$AD)","v":0},{"$f":"-SUMIFS(Sheet1!S71_AdjustmentBudAmnt,Sheet1!S71_SubMunicipalVoteNo,$AC:$AC,Sheet1!S71_ItemType,$AD:$AD)","v":0},{"$f":"-SUMIFS(Sheet1!S71_AdjustmentBudAmnt,Sheet1!S71_SubMunicipalVoteNo,$AC:$AC,Sheet1!S71_ItemType,$AD:$AD)","v":0},{"$f":"-SUMIFS(Sheet1!S71_ASBudgetAmount,Sheet1!S71_SubMunicipalVoteNo,$AC:$AC,Sheet1!S71_ItemType,$AD:$AD)","v":0},{"$f":"-SUMIFS(Sheet1!S71_OY1BudgetAmount,Sheet1!S71_SubMunicipalVoteNo,$AC:$AC,Sheet1!S71_ItemType,$AD:$AD)","v":0},{"$f":"-SUMIFS(Sheet1!S71_OY2BudgetAmount,Sheet1!S71_SubMunicipalVoteNo,$AC:$AC,Sheet1!S71_ItemType,$AD:$AD)","v":0},null,null,null,null,null,null,null,null,null,null,null,null,null,null,null,null,null,98,"IR"]
[{"$f":"IF(RIGHT('Org structure'!D99,18)<>\"[Name of sub-vote]\",'Org structure'!D99,\"\")","v":""},null,{"$f":"SUMIFS(Sheet1!S71_PPPYearAmount,Sheet1!S71_SubMunicipalVoteNo,$AC:$AC,Sheet1!S71_ItemType,$AD:$AD)","v":0},{"$f":"SUMIFS(Sheet1!S71_PPYearAmount,Sheet1!S71_SubMunicipalVoteNo,$AC:$AC,Sheet1!S71_ItemType,$AD:$AD)","v":0},{"$f":"SUMIFS(Sheet1!S71_PYearAmount,Sheet1!S71_SubMunicipalVoteNo,$AC:$AC,Sheet1!S71_ItemType,$AD:$AD)","v":0},{"$f":"-SUMIFS(Sheet1!S71_OriginalBudAmnt,Sheet1!S71_SubMunicipalVoteNo,$AC:$AC,Sheet1!S71_ItemType,$AD:$AD)","v":0},{"$f":"-SUMIFS(Sheet1!S71_AdjustmentBudAmnt,Sheet1!S71_SubMunicipalVoteNo,$AC:$AC,Sheet1!S71_ItemType,$AD:$AD)","v":0},{"$f":"-SUMIFS(Sheet1!S71_AdjustmentBudAmnt,Sheet1!S71_SubMunicipalVoteNo,$AC:$AC,Sheet1!S71_ItemType,$AD:$AD)","v":0},{"$f":"-SUMIFS(Sheet1!S71_ASBudgetAmount,Sheet1!S71_SubMunicipalVoteNo,$AC:$AC,Sheet1!S71_ItemType,$AD:$AD)","v":0},{"$f":"-SUMIFS(Sheet1!S71_OY1BudgetAmount,Sheet1!S71_SubMunicipalVoteNo,$AC:$AC,Sheet1!S71_ItemType,$AD:$AD)","v":0},{"$f":"-SUMIFS(Sheet1!S71_OY2BudgetAmount,Sheet1!S71_SubMunicipalVoteNo,$AC:$AC,Sheet1!S71_ItemType,$AD:$AD)","v":0},null,null,null,null,null,null,null,null,null,null,null,null,null,null,null,null,null,99,"IR"]
[{"$f":"IF(RIGHT('Org structure'!D100,18)<>\"[Name of sub-vote]\",'Org structure'!D100,\"\")","v":""},null,{"$f":"SUMIFS(Sheet1!S71_PPPYearAmount,Sheet1!S71_SubMunicipalVoteNo,$AC:$AC,Sheet1!S71_ItemType,$AD:$AD)","v":0},{"$f":"SUMIFS(Sheet1!S71_PPYearAmount,Sheet1!S71_SubMunicipalVoteNo,$AC:$AC,Sheet1!S71_ItemType,$AD:$AD)","v":0},{"$f":"SUMIFS(Sheet1!S71_PYearAmount,Sheet1!S71_SubMunicipalVoteNo,$AC:$AC,Sheet1!S71_ItemType,$AD:$AD)","v":0},{"$f":"-SUMIFS(Sheet1!S71_OriginalBudAmnt,Sheet1!S71_SubMunicipalVoteNo,$AC:$AC,Sheet1!S71_ItemType,$AD:$AD)","v":0},{"$f":"-SUMIFS(Sheet1!S71_AdjustmentBudAmnt,Sheet1!S71_SubMunicipalVoteNo,$AC:$AC,Sheet1!S71_ItemType,$AD:$AD)","v":0},{"$f":"-SUMIFS(Sheet1!S71_AdjustmentBudAmnt,Sheet1!S71_SubMunicipalVoteNo,$AC:$AC,Sheet1!S71_ItemType,$AD:$AD)","v":0},{"$f":"-SUMIFS(Sheet1!S71_ASBudgetAmount,Sheet1!S71_SubMunicipalVoteNo,$AC:$AC,Sheet1!S71_ItemType,$AD:$AD)","v":0},{"$f":"-SUMIFS(Sheet1!S71_OY1BudgetAmount,Sheet1!S71_SubMunicipalVoteNo,$AC:$AC,Sheet1!S71_ItemType,$AD:$AD)","v":0},{"$f":"-SUMIFS(Sheet1!S71_OY2BudgetAmount,Sheet1!S71_SubMunicipalVoteNo,$AC:$AC,Sheet1!S71_ItemType,$AD:$AD)","v":0},null,null,null,null,null,null,null,null,null,null,null,null,null,null,null,null,null,910,"IR"]
[{"$f":"'Org structure'!A11","v":"Vote 10 - [NAME OF VOTE 10]"},null,{"$f":"SUM(C105:C114)","v":0},{"$f":"SUM(D105:D114)","v":0},0,0,0,0,0,0,0]
[{"$f":"IF(RIGHT('Org structure'!D102,18)<>\"[Name of sub-vote]\",'Org structure'!D102,\"\")","v":""},null,{"$f":"SUMIFS(Sheet1!S71_PPPYearAmount,Sheet1!S71_SubMunicipalVoteNo,$AC:$AC,Sheet1!S71_ItemType,$AD:$AD)","v":0},{"$f":"SUMIFS(Sheet1!S71_PPYearAmount,Sheet1!S71_SubMunicipalVoteNo,$AC:$AC,Sheet1!S71_ItemType,$AD:$AD)","v":0},{"$f":"SUMIFS(Sheet1!S71_PYearAmount,Sheet1!S71_SubMunicipalVoteNo,$AC:$AC,Sheet1!S71_ItemType,$AD:$AD)","v":0},{"$f":"-SUMIFS(Sheet1!S71_OriginalBudAmnt,Sheet1!S71_SubMunicipalVoteNo,$AC:$AC,Sheet1!S71_ItemType,$AD:$AD)","v":0},{"$f":"-SUMIFS(Sheet1!S71_AdjustmentBudAmnt,Sheet1!S71_SubMunicipalVoteNo,$AC:$AC,Sheet1!S71_ItemType,$AD:$AD)","v":0},{"$f":"-SUMIFS(Sheet1!S71_AdjustmentBudAmnt,Sheet1!S71_SubMunicipalVoteNo,$AC:$AC,Sheet1!S71_ItemType,$AD:$AD)","v":0},{"$f":"-SUMIFS(Sheet1!S71_ASBudgetAmount,Sheet1!S71_SubMunicipalVoteNo,$AC:$AC,Sheet1!S71_ItemType,$AD:$AD)","v":0},{"$f":"-SUMIFS(Sheet1!S71_OY1BudgetAmount,Sheet1!S71_SubMunicipalVoteNo,$AC:$AC,Sheet1!S71_ItemType,$AD:$AD)","v":0},{"$f":"-SUMIFS(Sheet1!S71_OY2BudgetAmount,Sheet1!S71_SubMunicipalVoteNo,$AC:$AC,Sheet1!S71_ItemType,$AD:$AD)","v":0},null,null,null,null,null,null,null,null,null,null,null,null,null,null,null,null,null,101,"IR"]
[{"$f":"IF(RIGHT('Org structure'!D103,18)<>\"[Name of sub-vote]\",'Org structure'!D103,\"\")","v":""},null,{"$f":"SUMIFS(Sheet1!S71_PPPYearAmount,Sheet1!S71_SubMunicipalVoteNo,$AC:$AC,Sheet1!S71_ItemType,$AD:$AD)","v":0},{"$f":"SUMIFS(Sheet1!S71_PPYearAmount,Sheet1!S71_SubMunicipalVoteNo,$AC:$AC,Sheet1!S71_ItemType,$AD:$AD)","v":0},{"$f":"SUMIFS(Sheet1!S71_PYearAmount,Sheet1!S71_SubMunicipalVoteNo,$AC:$AC,Sheet1!S71_ItemType,$AD:$AD)","v":0},{"$f":"-SUMIFS(Sheet1!S71_OriginalBudAmnt,Sheet1!S71_SubMunicipalVoteNo,$AC:$AC,Sheet1!S71_ItemType,$AD:$AD)","v":0},{"$f":"-SUMIFS(Sheet1!S71_AdjustmentBudAmnt,Sheet1!S71_SubMunicipalVoteNo,$AC:$AC,Sheet1!S71_ItemType,$AD:$AD)","v":0},{"$f":"-SUMIFS(Sheet1!S71_AdjustmentBudAmnt,Sheet1!S71_SubMunicipalVoteNo,$AC:$AC,Sheet1!S71_ItemType,$AD:$AD)","v":0},{"$f":"-SUMIFS(Sheet1!S71_ASBudgetAmount,Sheet1!S71_SubMunicipalVoteNo,$AC:$AC,Sheet1!S71_ItemType,$AD:$AD)","v":0},{"$f":"-SUMIFS(Sheet1!S71_OY1BudgetAmount,Sheet1!S71_SubMunicipalVoteNo,$AC:$AC,Sheet1!S71_ItemType,$AD:$AD)","v":0},{"$f":"-SUMIFS(Sheet1!S71_OY2BudgetAmount,Sheet1!S71_SubMunicipalVoteNo,$AC:$AC,Sheet1!S71_ItemType,$AD:$AD)","v":0},null,null,null,null,null,null,null,null,null,null,null,null,null,null,null,null,null,102,"IR"]
[{"$f":"IF(RIGHT('Org structure'!D104,18)<>\"[Name of sub-vote]\",'Org structure'!D104,\"\")","v":""},null,{"$f":"SUMIFS(Sheet1!S71_PPPYearAmount,Sheet1!S71_SubMunicipalVoteNo,$AC:$AC,Sheet1!S71_ItemType,$AD:$AD)","v":0},{"$f":"SUMIFS(Sheet1!S71_PPYearAmount,Sheet1!S71_SubMunicipalVoteNo,$AC:$AC,Sheet1!S71_ItemType,$AD:$AD)","v":0},{"$f":"SUMIFS(Sheet1!S71_PYearAmount,Sheet1!S71_SubMunicipalVoteNo,$AC:$AC,Sheet1!S71_ItemType,$AD:$AD)","v":0},{"$f":"-SUMIFS(Sheet1!S71_OriginalBudAmnt,Sheet1!S71_SubMunicipalVoteNo,$AC:$AC,Sheet1!S71_ItemType,$AD:$AD)","v":0},{"$f":"-SUMIFS(Sheet1!S71_AdjustmentBudAmnt,Sheet1!S71_SubMunicipalVoteNo,$AC:$AC,Sheet1!S71_ItemType,$AD:$AD)","v":0},{"$f":"-SUMIFS(Sheet1!S71_AdjustmentBudAmnt,Sheet1!S71_SubMunicipalVoteNo,$AC:$AC,Sheet1!S71_ItemType,$AD:$AD)","v":0},{"$f":"-SUMIFS(Sheet1!S71_ASBudgetAmount,Sheet1!S71_SubMunicipalVoteNo,$AC:$AC,Sheet1!S71_ItemType,$AD:$AD)","v":0},{"$f":"-SUMIFS(Sheet1!S71_OY1BudgetAmount,Sheet1!S71_SubMunicipalVoteNo,$AC:$AC,Sheet1!S71_ItemType,$AD:$AD)","v":0},{"$f":"-SUMIFS(Sheet1!S71_OY2BudgetAmount,Sheet1!S71_SubMunicipalVoteNo,$AC:$AC,Sheet1!S71_ItemType,$AD:$AD)","v":0},null,null,null,null,null,null,null,null,null,null,null,null,null,null,null,null,null,103,"IR"]
[{"$f":"IF(RIGHT('Org structure'!D105,18)<>\"[Name of sub-vote]\",'Org structure'!D105,\"\")","v":""},null,{"$f":"SUMIFS(Sheet1!S71_PPPYearAmount,Sheet1!S71_SubMunicipalVoteNo,$AC:$AC,Sheet1!S71_ItemType,$AD:$AD)","v":0},{"$f":"SUMIFS(Sheet1!S71_PPYearAmount,Sheet1!S71_SubMunicipalVoteNo,$AC:$AC,Sheet1!S71_ItemType,$AD:$AD)","v":0},{"$f":"SUMIFS(Sheet1!S71_PYearAmount,Sheet1!S71_SubMunicipalVoteNo,$AC:$AC,Sheet1!S71_ItemType,$AD:$AD)","v":0},{"$f":"-SUMIFS(Sheet1!S71_OriginalBudAmnt,Sheet1!S71_SubMunicipalVoteNo,$AC:$AC,Sheet1!S71_ItemType,$AD:$AD)","v":0},{"$f":"-SUMIFS(Sheet1!S71_AdjustmentBudAmnt,Sheet1!S71_SubMunicipalVoteNo,$AC:$AC,Sheet1!S71_ItemType,$AD:$AD)","v":0},{"$f":"-SUMIFS(Sheet1!S71_AdjustmentBudAmnt,Sheet1!S71_SubMunicipalVoteNo,$AC:$AC,Sheet1!S71_ItemType,$AD:$AD)","v":0},{"$f":"-SUMIFS(Sheet1!S71_ASBudgetAmount,Sheet1!S71_SubMunicipalVoteNo,$AC:$AC,Sheet1!S71_ItemType,$AD:$AD)","v":0},{"$f":"-SUMIFS(Sheet1!S71_OY1BudgetAmount,Sheet1!S71_SubMunicipalVoteNo,$AC:$AC,Sheet1!S71_ItemType,$AD:$AD)","v":0},{"$f":"-SUMIFS(Sheet1!S71_OY2BudgetAmount,Sheet1!S71_SubMunicipalVoteNo,$AC:$AC,Sheet1!S71_ItemType,$AD:$AD)","v":0},null,null,null,null,null,null,null,null,null,null,null,null,null,null,null,null,null,104,"IR"]
[{"$f":"IF(RIGHT('Org structure'!D106,18)<>\"[Name of sub-vote]\",'Org structure'!D106,\"\")","v":""},null,{"$f":"SUMIFS(Sheet1!S71_PPPYearAmount,Sheet1!S71_SubMunicipalVoteNo,$AC:$AC,Sheet1!S71_ItemType,$AD:$AD)","v":0},{"$f":"SUMIFS(Sheet1!S71_PPYearAmount,Sheet1!S71_SubMunicipalVoteNo,$AC:$AC,Sheet1!S71_ItemType,$AD:$AD)","v":0},{"$f":"SUMIFS(Sheet1!S71_PYearAmount,Sheet1!S71_SubMunicipalVoteNo,$AC:$AC,Sheet1!S71_ItemType,$AD:$AD)","v":0},{"$f":"-SUMIFS(Sheet1!S71_OriginalBudAmnt,Sheet1!S71_SubMunicipalVoteNo,$AC:$AC,Sheet1!S71_ItemType,$AD:$AD)","v":0},{"$f":"-SUMIFS(Sheet1!S71_AdjustmentBudAmnt,Sheet1!S71_SubMunicipalVoteNo,$AC:$AC,Sheet1!S71_ItemType,$AD:$AD)","v":0},{"$f":"-SUMIFS(Sheet1!S71_AdjustmentBudAmnt,Sheet1!S71_SubMunicipalVoteNo,$AC:$AC,Sheet1!S71_ItemType,$AD:$AD)","v":0},{"$f":"-SUMIFS(Sheet1!S71_ASBudgetAmount,Sheet1!S71_SubMunicipalVoteNo,$AC:$AC,Sheet1!S71_ItemType,$AD:$AD)","v":0},{"$f":"-SUMIFS(Sheet1!S71_OY1BudgetAmount,Sheet1!S71_SubMunicipalVoteNo,$AC:$AC,Sheet1!S71_ItemType,$AD:$AD)","v":0},{"$f":"-SUMIFS(Sheet1!S71_OY2BudgetAmount,Sheet1!S71_SubMunicipalVoteNo,$AC:$AC,Sheet1!S71_ItemType,$AD:$AD)","v":0},null,null,null,null,null,null,null,null,null,null,null,null,null,null,null,null,null,105,"IR"]
[{"$f":"IF(RIGHT('Org structure'!D107,18)<>\"[Name of sub-vote]\",'Org structure'!D107,\"\")","v":""},null,{"$f":"SUMIFS(Sheet1!S71_PPPYearAmount,Sheet1!S71_SubMunicipalVoteNo,$AC:$AC,Sheet1!S71_ItemType,$AD:$AD)","v":0},{"$f":"SUMIFS(Sheet1!S71_PPYearAmount,Sheet1!S71_SubMunicipalVoteNo,$AC:$AC,Sheet1!S71_ItemType,$AD:$AD)","v":0},{"$f":"SUMIFS(Sheet1!S71_PYearAmount,Sheet1!S71_SubMunicipalVoteNo,$AC:$AC,Sheet1!S71_ItemType,$AD:$AD)","v":0},{"$f":"-SUMIFS(Sheet1!S71_OriginalBudAmnt,Sheet1!S71_SubMunicipalVoteNo,$AC:$AC,Sheet1!S71_ItemType,$AD:$AD)","v":0},{"$f":"-SUMIFS(Sheet1!S71_AdjustmentBudAmnt,Sheet1!S71_SubMunicipalVoteNo,$AC:$AC,Sheet1!S71_ItemType,$AD:$AD)","v":0},{"$f":"-SUMIFS(Sheet1!S71_AdjustmentBudAmnt,Sheet1!S71_SubMunicipalVoteNo,$AC:$AC,Sheet1!S71_ItemType,$AD:$AD)","v":0},{"$f":"-SUMIFS(Sheet1!S71_ASBudgetAmount,Sheet1!S71_SubMunicipalVoteNo,$AC:$AC,Sheet1!S71_ItemType,$AD:$AD)","v":0},{"$f":"-SUMIFS(Sheet1!S71_OY1BudgetAmount,Sheet1!S71_SubMunicipalVoteNo,$AC:$AC,Sheet1!S71_ItemType,$AD:$AD)","v":0},{"$f":"-SUMIFS(Sheet1!S71_OY2BudgetAmount,Sheet1!S71_SubMunicipalVoteNo,$AC:$AC,Sheet1!S71_ItemType,$AD:$AD)","v":0},null,null,null,null,null,null,null,null,null,null,null,null,null,null,null,null,null,106,"IR"]
[{"$f":"IF(RIGHT('Org structure'!D108,18)<>\"[Name of sub-vote]\",'Org structure'!D108,\"\")","v":""},null,{"$f":"SUMIFS(Sheet1!S71_PPPYearAmount,Sheet1!S71_SubMunicipalVoteNo,$AC:$AC,Sheet1!S71_ItemType,$AD:$AD)","v":0},{"$f":"SUMIFS(Sheet1!S71_PPYearAmount,Sheet1!S71_SubMunicipalVoteNo,$AC:$AC,Sheet1!S71_ItemType,$AD:$AD)","v":0},{"$f":"SUMIFS(Sheet1!S71_PYearAmount,Sheet1!S71_SubMunicipalVoteNo,$AC:$AC,Sheet1!S71_ItemType,$AD:$AD)","v":0},{"$f":"-SUMIFS(Sheet1!S71_OriginalBudAmnt,Sheet1!S71_SubMunicipalVoteNo,$AC:$AC,Sheet1!S71_ItemType,$AD:$AD)","v":0},{"$f":"-SUMIFS(Sheet1!S71_AdjustmentBudAmnt,Sheet1!S71_SubMunicipalVoteNo,$AC:$AC,Sheet1!S71_ItemType,$AD:$AD)","v":0},{"$f":"-SUMIFS(Sheet1!S71_AdjustmentBudAmnt,Sheet1!S71_SubMunicipalVoteNo,$AC:$AC,Sheet1!S71_ItemType,$AD:$AD)","v":0},{"$f":"-SUMIFS(Sheet1!S71_ASBudgetAmount,Sheet1!S71_SubMunicipalVoteNo,$AC:$AC,Sheet1!S71_ItemType,$AD:$AD)","v":0},{"$f":"-SUMIFS(Sheet1!S71_OY1BudgetAmount,Sheet1!S71_SubMunicipalVoteNo,$AC:$AC,Sheet1!S71_ItemType,$AD:$AD)","v":0},{"$f":"-SUMIFS(Sheet1!S71_OY2BudgetAmount,Sheet1!S71_SubMunicipalVoteNo,$AC:$AC,Sheet1!S71_ItemType,$AD:$AD)","v":0},null,null,null,null,null,null,null,null,null,null,null,null,null,null,null,null,null,107,"IR"]
[{"$f":"IF(RIGHT('Org structure'!D109,18)<>\"[Name of sub-vote]\",'Org structure'!D109,\"\")","v":""},null,{"$f":"SUMIFS(Sheet1!S71_PPPYearAmount,Sheet1!S71_SubMunicipalVoteNo,$AC:$AC,Sheet1!S71_ItemType,$AD:$AD)","v":0},{"$f":"SUMIFS(Sheet1!S71_PPYearAmount,Sheet1!S71_SubMunicipalVoteNo,$AC:$AC,Sheet1!S71_ItemType,$AD:$AD)","v":0},{"$f":"SUMIFS(Sheet1!S71_PYearAmount,Sheet1!S71_SubMunicipalVoteNo,$AC:$AC,Sheet1!S71_ItemType,$AD:$AD)","v":0},{"$f":"-SUMIFS(Sheet1!S71_OriginalBudAmnt,Sheet1!S71_SubMunicipalVoteNo,$AC:$AC,Sheet1!S71_ItemType,$AD:$AD)","v":0},{"$f":"-SUMIFS(Sheet1!S71_AdjustmentBudAmnt,Sheet1!S71_SubMunicipalVoteNo,$AC:$AC,Sheet1!S71_ItemType,$AD:$AD)","v":0},{"$f":"-SUMIFS(Sheet1!S71_AdjustmentBudAmnt,Sheet1!S71_SubMunicipalVoteNo,$AC:$AC,Sheet1!S71_ItemType,$AD:$AD)","v":0},{"$f":"-SUMIFS(Sheet1!S71_ASBudgetAmount,Sheet1!S71_SubMunicipalVoteNo,$AC:$AC,Sheet1!S71_ItemType,$AD:$AD)","v":0},{"$f":"-SUMIFS(Sheet1!S71_OY1BudgetAmount,Sheet1!S71_SubMunicipalVoteNo,$AC:$AC,Sheet1!S71_ItemType,$AD:$AD)","v":0},{"$f":"-SUMIFS(Sheet1!S71_OY2BudgetAmount,Sheet1!S71_SubMunicipalVoteNo,$AC:$AC,Sheet1!S71_ItemType,$AD:$AD)","v":0},null,null,null,null,null,null,null,null,null,null,null,null,null,null,null,null,null,108,"IR"]
[{"$f":"IF(RIGHT('Org structure'!D110,18)<>\"[Name of sub-vote]\",'Org structure'!D110,\"\")","v":""},null,{"$f":"SUMIFS(Sheet1!S71_PPPYearAmount,Sheet1!S71_SubMunicipalVoteNo,$AC:$AC,Sheet1!S71_ItemType,$AD:$AD)","v":0},{"$f":"SUMIFS(Sheet1!S71_PPYearAmount,Sheet1!S71_SubMunicipalVoteNo,$AC:$AC,Sheet1!S71_ItemType,$AD:$AD)","v":0},{"$f":"SUMIFS(Sheet1!S71_PYearAmount,Sheet1!S71_SubMunicipalVoteNo,$AC:$AC,Sheet1!S71_ItemType,$AD:$AD)","v":0},{"$f":"-SUMIFS(Sheet1!S71_OriginalBudAmnt,Sheet1!S71_SubMunicipalVoteNo,$AC:$AC,Sheet1!S71_ItemType,$AD:$AD)","v":0},{"$f":"-SUMIFS(Sheet1!S71_AdjustmentBudAmnt,Sheet1!S71_SubMunicipalVoteNo,$AC:$AC,Sheet1!S71_ItemType,$AD:$AD)","v":0},{"$f":"-SUMIFS(Sheet1!S71_AdjustmentBudAmnt,Sheet1!S71_SubMunicipalVoteNo,$AC:$AC,Sheet1!S71_ItemType,$AD:$AD)","v":0},{"$f":"-SUMIFS(Sheet1!S71_ASBudgetAmount,Sheet1!S71_SubMunicipalVoteNo,$AC:$AC,Sheet1!S71_ItemType,$AD:$AD)","v":0},{"$f":"-SUMIFS(Sheet1!S71_OY1BudgetAmount,Sheet1!S71_SubMunicipalVoteNo,$AC:$AC,Sheet1!S71_ItemType,$AD:$AD)","v":0},{"$f":"-SUMIFS(Sheet1!S71_OY2BudgetAmount,Sheet1!S71_SubMunicipalVoteNo,$AC:$AC,Sheet1!S71_ItemType,$AD:$AD)","v":0},null,null,null,null,null,null,null,null,null,null,null,null,null,null,null,null,null,109,"IR"]
[{"$f":"IF(RIGHT('Org structure'!D111,18)<>\"[Name of sub-vote]\",'Org structure'!D111,\"\")","v":""},null,{"$f":"SUMIFS(Sheet1!S71_PPPYearAmount,Sheet1!S71_SubMunicipalVoteNo,$AC:$AC,Sheet1!S71_ItemType,$AD:$AD)","v":0},{"$f":"SUMIFS(Sheet1!S71_PPYearAmount,Sheet1!S71_SubMunicipalVoteNo,$AC:$AC,Sheet1!S71_ItemType,$AD:$AD)","v":0},{"$f":"SUMIFS(Sheet1!S71_PYearAmount,Sheet1!S71_SubMunicipalVoteNo,$AC:$AC,Sheet1!S71_ItemType,$AD:$AD)","v":0},{"$f":"-SUMIFS(Sheet1!S71_OriginalBudAmnt,Sheet1!S71_SubMunicipalVoteNo,$AC:$AC,Sheet1!S71_ItemType,$AD:$AD)","v":0},{"$f":"-SUMIFS(Sheet1!S71_AdjustmentBudAmnt,Sheet1!S71_SubMunicipalVoteNo,$AC:$AC,Sheet1!S71_ItemType,$AD:$AD)","v":0},{"$f":"-SUMIFS(Sheet1!S71_AdjustmentBudAmnt,Sheet1!S71_SubMunicipalVoteNo,$AC:$AC,Sheet1!S71_ItemType,$AD:$AD)","v":0},{"$f":"-SUMIFS(Sheet1!S71_ASBudgetAmount,Sheet1!S71_SubMunicipalVoteNo,$AC:$AC,Sheet1!S71_ItemType,$AD:$AD)","v":0},{"$f":"-SUMIFS(Sheet1!S71_OY1BudgetAmount,Sheet1!S71_SubMunicipalVoteNo,$AC:$AC,Sheet1!S71_ItemType,$AD:$AD)","v":0},{"$f":"-SUMIFS(Sheet1!S71_OY2BudgetAmount,Sheet1!S71_SubMunicipalVoteNo,$AC:$AC,Sheet1!S71_ItemType,$AD:$AD)","v":0},null,null,null,null,null,null,null,null,null,null,null,null,null,null,null,null,null,1010,"IR"]
[{"$f":"'Org structure'!A12","v":"Vote 11 - [NAME OF VOTE 11]"},null,{"$f":"SUM(C116:C125)","v":0},{"$f":"SUM(D116:D125)","v":0},0,0,0,0,0,0,0]
[{"$f":"IF(RIGHT('Org structure'!D113,18)<>\"[Name of sub-vote]\",'Org structure'!D113,\"\")","v":""},null,{"$f":"SUMIFS(Sheet1!S71_PPPYearAmount,Sheet1!S71_SubMunicipalVoteNo,$AC:$AC,Sheet1!S71_ItemType,$AD:$AD)","v":0},{"$f":"SUMIFS(Sheet1!S71_PPYearAmount,Sheet1!S71_SubMunicipalVoteNo,$AC:$AC,Sheet1!S71_ItemType,$AD:$AD)","v":0},{"$f":"SUMIFS(Sheet1!S71_PYearAmount,Sheet1!S71_SubMunicipalVoteNo,$AC:$AC,Sheet1!S71_ItemType,$AD:$AD)","v":0},{"$f":"-SUMIFS(Sheet1!S71_OriginalBudAmnt,Sheet1!S71_SubMunicipalVoteNo,$AC:$AC,Sheet1!S71_ItemType,$AD:$AD)","v":0},{"$f":"-SUMIFS(Sheet1!S71_AdjustmentBudAmnt,Sheet1!S71_SubMunicipalVoteNo,$AC:$AC,Sheet1!S71_ItemType,$AD:$AD)","v":0},{"$f":"-SUMIFS(Sheet1!S71_AdjustmentBudAmnt,Sheet1!S71_SubMunicipalVoteNo,$AC:$AC,Sheet1!S71_ItemType,$AD:$AD)","v":0},{"$f":"-SUMIFS(Sheet1!S71_ASBudgetAmount,Sheet1!S71_SubMunicipalVoteNo,$AC:$AC,Sheet1!S71_ItemType,$AD:$AD)","v":0},{"$f":"-SUMIFS(Sheet1!S71_OY1BudgetAmount,Sheet1!S71_SubMunicipalVoteNo,$AC:$AC,Sheet1!S71_ItemType,$AD:$AD)","v":0},{"$f":"-SUMIFS(Sheet1!S71_OY2BudgetAmount,Sheet1!S71_SubMunicipalVoteNo,$AC:$AC,Sheet1!S71_ItemType,$AD:$AD)","v":0},null,null,null,null,null,null,null,null,null,null,null,null,null,null,null,null,null,111,"IR"]
[{"$f":"IF(RIGHT('Org structure'!D114,18)<>\"[Name of sub-vote]\",'Org structure'!D114,\"\")","v":""},null,{"$f":"SUMIFS(Sheet1!S71_PPPYearAmount,Sheet1!S71_SubMunicipalVoteNo,$AC:$AC,Sheet1!S71_ItemType,$AD:$AD)","v":0},{"$f":"SUMIFS(Sheet1!S71_PPYearAmount,Sheet1!S71_SubMunicipalVoteNo,$AC:$AC,Sheet1!S71_ItemType,$AD:$AD)","v":0},{"$f":"SUMIFS(Sheet1!S71_PYearAmount,Sheet1!S71_SubMunicipalVoteNo,$AC:$AC,Sheet1!S71_ItemType,$AD:$AD)","v":0},{"$f":"-SUMIFS(Sheet1!S71_OriginalBudAmnt,Sheet1!S71_SubMunicipalVoteNo,$AC:$AC,Sheet1!S71_ItemType,$AD:$AD)","v":0},{"$f":"-SUMIFS(Sheet1!S71_AdjustmentBudAmnt,Sheet1!S71_SubMunicipalVoteNo,$AC:$AC,Sheet1!S71_ItemType,$AD:$AD)","v":0},{"$f":"-SUMIFS(Sheet1!S71_AdjustmentBudAmnt,Sheet1!S71_SubMunicipalVoteNo,$AC:$AC,Sheet1!S71_ItemType,$AD:$AD)","v":0},{"$f":"-SUMIFS(Sheet1!S71_ASBudgetAmount,Sheet1!S71_SubMunicipalVoteNo,$AC:$AC,Sheet1!S71_ItemType,$AD:$AD)","v":0},{"$f":"-SUMIFS(Sheet1!S71_OY1BudgetAmount,Sheet1!S71_SubMunicipalVoteNo,$AC:$AC,Sheet1!S71_ItemType,$AD:$AD)","v":0},{"$f":"-SUMIFS(Sheet1!S71_OY2BudgetAmount,Sheet1!S71_SubMunicipalVoteNo,$AC:$AC,Sheet1!S71_ItemType,$AD:$AD)","v":0},null,null,null,null,null,null,null,null,null,null,null,null,null,null,null,null,null,112,"IR"]
[{"$f":"IF(RIGHT('Org structure'!D115,18)<>\"[Name of sub-vote]\",'Org structure'!D115,\"\")","v":""},null,{"$f":"SUMIFS(Sheet1!S71_PPPYearAmount,Sheet1!S71_SubMunicipalVoteNo,$AC:$AC,Sheet1!S71_ItemType,$AD:$AD)","v":0},{"$f":"SUMIFS(Sheet1!S71_PPYearAmount,Sheet1!S71_SubMunicipalVoteNo,$AC:$AC,Sheet1!S71_ItemType,$AD:$AD)","v":0},{"$f":"SUMIFS(Sheet1!S71_PYearAmount,Sheet1!S71_SubMunicipalVoteNo,$AC:$AC,Sheet1!S71_ItemType,$AD:$AD)","v":0},{"$f":"-SUMIFS(Sheet1!S71_OriginalBudAmnt,Sheet1!S71_SubMunicipalVoteNo,$AC:$AC,Sheet1!S71_ItemType,$AD:$AD)","v":0},{"$f":"-SUMIFS(Sheet1!S71_AdjustmentBudAmnt,Sheet1!S71_SubMunicipalVoteNo,$AC:$AC,Sheet1!S71_ItemType,$AD:$AD)","v":0},{"$f":"-SUMIFS(Sheet1!S71_AdjustmentBudAmnt,Sheet1!S71_SubMunicipalVoteNo,$AC:$AC,Sheet1!S71_ItemType,$AD:$AD)","v":0},{"$f":"-SUMIFS(Sheet1!S71_ASBudgetAmount,Sheet1!S71_SubMunicipalVoteNo,$AC:$AC,Sheet1!S71_ItemType,$AD:$AD)","v":0},{"$f":"-SUMIFS(Sheet1!S71_OY1BudgetAmount,Sheet1!S71_SubMunicipalVoteNo,$AC:$AC,Sheet1!S71_ItemType,$AD:$AD)","v":0},{"$f":"-SUMIFS(Sheet1!S71_OY2BudgetAmount,Sheet1!S71_SubMunicipalVoteNo,$AC:$AC,Sheet1!S71_ItemType,$AD:$AD)","v":0},null,null,null,null,null,null,null,null,null,null,null,null,null,null,null,null,null,113,"IR"]
[{"$f":"IF(RIGHT('Org structure'!D116,18)<>\"[Name of sub-vote]\",'Org structure'!D116,\"\")","v":""},null,{"$f":"SUMIFS(Sheet1!S71_PPPYearAmount,Sheet1!S71_SubMunicipalVoteNo,$AC:$AC,Sheet1!S71_ItemType,$AD:$AD)","v":0},{"$f":"SUMIFS(Sheet1!S71_PPYearAmount,Sheet1!S71_SubMunicipalVoteNo,$AC:$AC,Sheet1!S71_ItemType,$AD:$AD)","v":0},{"$f":"SUMIFS(Sheet1!S71_PYearAmount,Sheet1!S71_SubMunicipalVoteNo,$AC:$AC,Sheet1!S71_ItemType,$AD:$AD)","v":0},{"$f":"-SUMIFS(Sheet1!S71_OriginalBudAmnt,Sheet1!S71_SubMunicipalVoteNo,$AC:$AC,Sheet1!S71_ItemType,$AD:$AD)","v":0},{"$f":"-SUMIFS(Sheet1!S71_AdjustmentBudAmnt,Sheet1!S71_SubMunicipalVoteNo,$AC:$AC,Sheet1!S71_ItemType,$AD:$AD)","v":0},{"$f":"-SUMIFS(Sheet1!S71_AdjustmentBudAmnt,Sheet1!S71_SubMunicipalVoteNo,$AC:$AC,Sheet1!S71_ItemType,$AD:$AD)","v":0},{"$f":"-SUMIFS(Sheet1!S71_ASBudgetAmount,Sheet1!S71_SubMunicipalVoteNo,$AC:$AC,Sheet1!S71_ItemType,$AD:$AD)","v":0},{"$f":"-SUMIFS(Sheet1!S71_OY1BudgetAmount,Sheet1!S71_SubMunicipalVoteNo,$AC:$AC,Sheet1!S71_ItemType,$AD:$AD)","v":0},{"$f":"-SUMIFS(Sheet1!S71_OY2BudgetAmount,Sheet1!S71_SubMunicipalVoteNo,$AC:$AC,Sheet1!S71_ItemType,$AD:$AD)","v":0},null,null,null,null,null,null,null,null,null,null,null,null,null,null,null,null,null,114,"IR"]
[{"$f":"IF(RIGHT('Org structure'!D117,18)<>\"[Name of sub-vote]\",'Org structure'!D117,\"\")","v":""},null,{"$f":"SUMIFS(Sheet1!S71_PPPYearAmount,Sheet1!S71_SubMunicipalVoteNo,$AC:$AC,Sheet1!S71_ItemType,$AD:$AD)","v":0},{"$f":"SUMIFS(Sheet1!S71_PPYearAmount,Sheet1!S71_SubMunicipalVoteNo,$AC:$AC,Sheet1!S71_ItemType,$AD:$AD)","v":0},{"$f":"SUMIFS(Sheet1!S71_PYearAmount,Sheet1!S71_SubMunicipalVoteNo,$AC:$AC,Sheet1!S71_ItemType,$AD:$AD)","v":0},{"$f":"-SUMIFS(Sheet1!S71_OriginalBudAmnt,Sheet1!S71_SubMunicipalVoteNo,$AC:$AC,Sheet1!S71_ItemType,$AD:$AD)","v":0},{"$f":"-SUMIFS(Sheet1!S71_AdjustmentBudAmnt,Sheet1!S71_SubMunicipalVoteNo,$AC:$AC,Sheet1!S71_ItemType,$AD:$AD)","v":0},{"$f":"-SUMIFS(Sheet1!S71_AdjustmentBudAmnt,Sheet1!S71_SubMunicipalVoteNo,$AC:$AC,Sheet1!S71_ItemType,$AD:$AD)","v":0},{"$f":"-SUMIFS(Sheet1!S71_ASBudgetAmount,Sheet1!S71_SubMunicipalVoteNo,$AC:$AC,Sheet1!S71_ItemType,$AD:$AD)","v":0},{"$f":"-SUMIFS(Sheet1!S71_OY1BudgetAmount,Sheet1!S71_SubMunicipalVoteNo,$AC:$AC,Sheet1!S71_ItemType,$AD:$AD)","v":0},{"$f":"-SUMIFS(Sheet1!S71_OY2BudgetAmount,Sheet1!S71_SubMunicipalVoteNo,$AC:$AC,Sheet1!S71_ItemType,$AD:$AD)","v":0},null,null,null,null,null,null,null,null,null,null,null,null,null,null,null,null,null,115,"IR"]
[{"$f":"IF(RIGHT('Org structure'!D118,18)<>\"[Name of sub-vote]\",'Org structure'!D118,\"\")","v":""},null,{"$f":"SUMIFS(Sheet1!S71_PPPYearAmount,Sheet1!S71_SubMunicipalVoteNo,$AC:$AC,Sheet1!S71_ItemType,$AD:$AD)","v":0},{"$f":"SUMIFS(Sheet1!S71_PPYearAmount,Sheet1!S71_SubMunicipalVoteNo,$AC:$AC,Sheet1!S71_ItemType,$AD:$AD)","v":0},{"$f":"SUMIFS(Sheet1!S71_PYearAmount,Sheet1!S71_SubMunicipalVoteNo,$AC:$AC,Sheet1!S71_ItemType,$AD:$AD)","v":0},{"$f":"-SUMIFS(Sheet1!S71_OriginalBudAmnt,Sheet1!S71_SubMunicipalVoteNo,$AC:$AC,Sheet1!S71_ItemType,$AD:$AD)","v":0},{"$f":"-SUMIFS(Sheet1!S71_AdjustmentBudAmnt,Sheet1!S71_SubMunicipalVoteNo,$AC:$AC,Sheet1!S71_ItemType,$AD:$AD)","v":0},{"$f":"-SUMIFS(Sheet1!S71_AdjustmentBudAmnt,Sheet1!S71_SubMunicipalVoteNo,$AC:$AC,Sheet1!S71_ItemType,$AD:$AD)","v":0},{"$f":"-SUMIFS(Sheet1!S71_ASBudgetAmount,Sheet1!S71_SubMunicipalVoteNo,$AC:$AC,Sheet1!S71_ItemType,$AD:$AD)","v":0},{"$f":"-SUMIFS(Sheet1!S71_OY1BudgetAmount,Sheet1!S71_SubMunicipalVoteNo,$AC:$AC,Sheet1!S71_ItemType,$AD:$AD)","v":0},{"$f":"-SUMIFS(Sheet1!S71_OY2BudgetAmount,Sheet1!S71_SubMunicipalVoteNo,$AC:$AC,Sheet1!S71_ItemType,$AD:$AD)","v":0},null,null,null,null,null,null,null,null,null,null,null,null,null,null,null,null,null,116,"IR"]
[{"$f":"IF(RIGHT('Org structure'!D119,18)<>\"[Name of sub-vote]\",'Org structure'!D119,\"\")","v":""},null,{"$f":"SUMIFS(Sheet1!S71_PPPYearAmount,Sheet1!S71_SubMunicipalVoteNo,$AC:$AC,Sheet1!S71_ItemType,$AD:$AD)","v":0},{"$f":"SUMIFS(Sheet1!S71_PPYearAmount,Sheet1!S71_SubMunicipalVoteNo,$AC:$AC,Sheet1!S71_ItemType,$AD:$AD)","v":0},{"$f":"SUMIFS(Sheet1!S71_PYearAmount,Sheet1!S71_SubMunicipalVoteNo,$AC:$AC,Sheet1!S71_ItemType,$AD:$AD)","v":0},{"$f":"-SUMIFS(Sheet1!S71_OriginalBudAmnt,Sheet1!S71_SubMunicipalVoteNo,$AC:$AC,Sheet1!S71_ItemType,$AD:$AD)","v":0},{"$f":"-SUMIFS(Sheet1!S71_AdjustmentBudAmnt,Sheet1!S71_SubMunicipalVoteNo,$AC:$AC,Sheet1!S71_ItemType,$AD:$AD)","v":0},{"$f":"-SUMIFS(Sheet1!S71_AdjustmentBudAmnt,Sheet1!S71_SubMunicipalVoteNo,$AC:$AC,Sheet1!S71_ItemType,$AD:$AD)","v":0},{"$f":"-SUMIFS(Sheet1!S71_ASBudgetAmount,Sheet1!S71_SubMunicipalVoteNo,$AC:$AC,Sheet1!S71_ItemType,$AD:$AD)","v":0},{"$f":"-SUMIFS(Sheet1!S71_OY1BudgetAmount,Sheet1!S71_SubMunicipalVoteNo,$AC:$AC,Sheet1!S71_ItemType,$AD:$AD)","v":0},{"$f":"-SUMIFS(Sheet1!S71_OY2BudgetAmount,Sheet1!S71_SubMunicipalVoteNo,$AC:$AC,Sheet1!S71_ItemType,$AD:$AD)","v":0},null,null,null,null,null,null,null,null,null,null,null,null,null,null,null,null,null,117,"IR"]
[{"$f":"IF(RIGHT('Org structure'!D120,18)<>\"[Name of sub-vote]\",'Org structure'!D120,\"\")","v":""},null,{"$f":"SUMIFS(Sheet1!S71_PPPYearAmount,Sheet1!S71_SubMunicipalVoteNo,$AC:$AC,Sheet1!S71_ItemType,$AD:$AD)","v":0},{"$f":"SUMIFS(Sheet1!S71_PPYearAmount,Sheet1!S71_SubMunicipalVoteNo,$AC:$AC,Sheet1!S71_ItemType,$AD:$AD)","v":0},{"$f":"SUMIFS(Sheet1!S71_PYearAmount,Sheet1!S71_SubMunicipalVoteNo,$AC:$AC,Sheet1!S71_ItemType,$AD:$AD)","v":0},{"$f":"-SUMIFS(Sheet1!S71_OriginalBudAmnt,Sheet1!S71_SubMunicipalVoteNo,$AC:$AC,Sheet1!S71_ItemType,$AD:$AD)","v":0},{"$f":"-SUMIFS(Sheet1!S71_AdjustmentBudAmnt,Sheet1!S71_SubMunicipalVoteNo,$AC:$AC,Sheet1!S71_ItemType,$AD:$AD)","v":0},{"$f":"-SUMIFS(Sheet1!S71_AdjustmentBudAmnt,Sheet1!S71_SubMunicipalVoteNo,$AC:$AC,Sheet1!S71_ItemType,$AD:$AD)","v":0},{"$f":"-SUMIFS(Sheet1!S71_ASBudgetAmount,Sheet1!S71_SubMunicipalVoteNo,$AC:$AC,Sheet1!S71_ItemType,$AD:$AD)","v":0},{"$f":"-SUMIFS(Sheet1!S71_OY1BudgetAmount,Sheet1!S71_SubMunicipalVoteNo,$AC:$AC,Sheet1!S71_ItemType,$AD:$AD)","v":0},{"$f":"-SUMIFS(Sheet1!S71_OY2BudgetAmount,Sheet1!S71_SubMunicipalVoteNo,$AC:$AC,Sheet1!S71_ItemType,$AD:$AD)","v":0},null,null,null,null,null,null,null,null,null,null,null,null,null,null,null,null,null,118,"IR"]
[{"$f":"IF(RIGHT('Org structure'!D121,18)<>\"[Name of sub-vote]\",'Org structure'!D121,\"\")","v":""},null,{"$f":"SUMIFS(Sheet1!S71_PPPYearAmount,Sheet1!S71_SubMunicipalVoteNo,$AC:$AC,Sheet1!S71_ItemType,$AD:$AD)","v":0},{"$f":"SUMIFS(Sheet1!S71_PPYearAmount,Sheet1!S71_SubMunicipalVoteNo,$AC:$AC,Sheet1!S71_ItemType,$AD:$AD)","v":0},{"$f":"SUMIFS(Sheet1!S71_PYearAmount,Sheet1!S71_SubMunicipalVoteNo,$AC:$AC,Sheet1!S71_ItemType,$AD:$AD)","v":0},{"$f":"-SUMIFS(Sheet1!S71_OriginalBudAmnt,Sheet1!S71_SubMunicipalVoteNo,$AC:$AC,Sheet1!S71_ItemType,$AD:$AD)","v":0},{"$f":"-SUMIFS(Sheet1!S71_AdjustmentBudAmnt,Sheet1!S71_SubMunicipalVoteNo,$AC:$AC,Sheet1!S71_ItemType,$AD:$AD)","v":0},{"$f":"-SUMIFS(Sheet1!S71_AdjustmentBudAmnt,Sheet1!S71_SubMunicipalVoteNo,$AC:$AC,Sheet1!S71_ItemType,$AD:$AD)","v":0},{"$f":"-SUMIFS(Sheet1!S71_ASBudgetAmount,Sheet1!S71_SubMunicipalVoteNo,$AC:$AC,Sheet1!S71_ItemType,$AD:$AD)","v":0},{"$f":"-SUMIFS(Sheet1!S71_OY1BudgetAmount,Sheet1!S71_SubMunicipalVoteNo,$AC:$AC,Sheet1!S71_ItemType,$AD:$AD)","v":0},{"$f":"-SUMIFS(Sheet1!S71_OY2BudgetAmount,Sheet1!S71_SubMunicipalVoteNo,$AC:$AC,Sheet1!S71_ItemType,$AD:$AD)","v":0},null,null,null,null,null,null,null,null,null,null,null,null,null,null,null,null,null,119,"IR"]
[{"$f":"IF(RIGHT('Org structure'!D122,18)<>\"[Name of sub-vote]\",'Org structure'!D122,\"\")","v":""},null,{"$f":"SUMIFS(Sheet1!S71_PPPYearAmount,Sheet1!S71_SubMunicipalVoteNo,$AC:$AC,Sheet1!S71_ItemType,$AD:$AD)","v":0},{"$f":"SUMIFS(Sheet1!S71_PPYearAmount,Sheet1!S71_SubMunicipalVoteNo,$AC:$AC,Sheet1!S71_ItemType,$AD:$AD)","v":0},{"$f":"SUMIFS(Sheet1!S71_PYearAmount,Sheet1!S71_SubMunicipalVoteNo,$AC:$AC,Sheet1!S71_ItemType,$AD:$AD)","v":0},{"$f":"-SUMIFS(Sheet1!S71_OriginalBudAmnt,Sheet1!S71_SubMunicipalVoteNo,$AC:$AC,Sheet1!S71_ItemType,$AD:$AD)","v":0},{"$f":"-SUMIFS(Sheet1!S71_AdjustmentBudAmnt,Sheet1!S71_SubMunicipalVoteNo,$AC:$AC,Sheet1!S71_ItemType,$AD:$AD)","v":0},{"$f":"-SUMIFS(Sheet1!S71_AdjustmentBudAmnt,Sheet1!S71_SubMunicipalVoteNo,$AC:$AC,Sheet1!S71_ItemType,$AD:$AD)","v":0},{"$f":"-SUMIFS(Sheet1!S71_ASBudgetAmount,Sheet1!S71_SubMunicipalVoteNo,$AC:$AC,Sheet1!S71_ItemType,$AD:$AD)","v":0},{"$f":"-SUMIFS(Sheet1!S71_OY1BudgetAmount,Sheet1!S71_SubMunicipalVoteNo,$AC:$AC,Sheet1!S71_ItemType,$AD:$AD)","v":0},{"$f":"-SUMIFS(Sheet1!S71_OY2BudgetAmount,Sheet1!S71_SubMunicipalVoteNo,$AC:$AC,Sheet1!S71_ItemType,$AD:$AD)","v":0},null,null,null,null,null,null,null,null,null,null,null,null,null,null,null,null,null,1110,"IR"]
[{"$f":"'Org structure'!A13","v":"Vote 12 - [NAME OF VOTE 12]"},null,{"$f":"SUM(C127:C136)","v":0},{"$f":"SUM(D127:D136)","v":0},0,0,0,0,0,0,0]
[{"$f":"IF(RIGHT('Org structure'!D124,18)<>\"[Name of sub-vote]\",'Org structure'!D124,\"\")","v":""},null,{"$f":"SUMIFS(Sheet1!S71_PPPYearAmount,Sheet1!S71_SubMunicipalVoteNo,$AC:$AC,Sheet1!S71_ItemType,$AD:$AD)","v":0},{"$f":"SUMIFS(Sheet1!S71_PPYearAmount,Sheet1!S71_SubMunicipalVoteNo,$AC:$AC,Sheet1!S71_ItemType,$AD:$AD)","v":0},{"$f":"SUMIFS(Sheet1!S71_PYearAmount,Sheet1!S71_SubMunicipalVoteNo,$AC:$AC,Sheet1!S71_ItemType,$AD:$AD)","v":0},{"$f":"-SUMIFS(Sheet1!S71_OriginalBudAmnt,Sheet1!S71_SubMunicipalVoteNo,$AC:$AC,Sheet1!S71_ItemType,$AD:$AD)","v":0},{"$f":"-SUMIFS(Sheet1!S71_AdjustmentBudAmnt,Sheet1!S71_SubMunicipalVoteNo,$AC:$AC,Sheet1!S71_ItemType,$AD:$AD)","v":0},{"$f":"-SUMIFS(Sheet1!S71_AdjustmentBudAmnt,Sheet1!S71_SubMunicipalVoteNo,$AC:$AC,Sheet1!S71_ItemType,$AD:$AD)","v":0},{"$f":"-SUMIFS(Sheet1!S71_ASBudgetAmount,Sheet1!S71_SubMunicipalVoteNo,$AC:$AC,Sheet1!S71_ItemType,$AD:$AD)","v":0},{"$f":"-SUMIFS(Sheet1!S71_OY1BudgetAmount,Sheet1!S71_SubMunicipalVoteNo,$AC:$AC,Sheet1!S71_ItemType,$AD:$AD)","v":0},{"$f":"-SUMIFS(Sheet1!S71_OY2BudgetAmount,Sheet1!S71_SubMunicipalVoteNo,$AC:$AC,Sheet1!S71_ItemType,$AD:$AD)","v":0},null,null,null,null,null,null,null,null,null,null,null,null,null,null,null,null,null,121,"IR"]
[{"$f":"IF(RIGHT('Org structure'!D125,18)<>\"[Name of sub-vote]\",'Org structure'!D125,\"\")","v":""},null,{"$f":"SUMIFS(Sheet1!S71_PPPYearAmount,Sheet1!S71_SubMunicipalVoteNo,$AC:$AC,Sheet1!S71_ItemType,$AD:$AD)","v":0},{"$f":"SUMIFS(Sheet1!S71_PPYearAmount,Sheet1!S71_SubMunicipalVoteNo,$AC:$AC,Sheet1!S71_ItemType,$AD:$AD)","v":0},{"$f":"SUMIFS(Sheet1!S71_PYearAmount,Sheet1!S71_SubMunicipalVoteNo,$AC:$AC,Sheet1!S71_ItemType,$AD:$AD)","v":0},{"$f":"-SUMIFS(Sheet1!S71_OriginalBudAmnt,Sheet1!S71_SubMunicipalVoteNo,$AC:$AC,Sheet1!S71_ItemType,$AD:$AD)","v":0},{"$f":"-SUMIFS(Sheet1!S71_AdjustmentBudAmnt,Sheet1!S71_SubMunicipalVoteNo,$AC:$AC,Sheet1!S71_ItemType,$AD:$AD)","v":0},{"$f":"-SUMIFS(Sheet1!S71_AdjustmentBudAmnt,Sheet1!S71_SubMunicipalVoteNo,$AC:$AC,Sheet1!S71_ItemType,$AD:$AD)","v":0},{"$f":"-SUMIFS(Sheet1!S71_ASBudgetAmount,Sheet1!S71_SubMunicipalVoteNo,$AC:$AC,Sheet1!S71_ItemType,$AD:$AD)","v":0},{"$f":"-SUMIFS(Sheet1!S71_OY1BudgetAmount,Sheet1!S71_SubMunicipalVoteNo,$AC:$AC,Sheet1!S71_ItemType,$AD:$AD)","v":0},{"$f":"-SUMIFS(Sheet1!S71_OY2BudgetAmount,Sheet1!S71_SubMunicipalVoteNo,$AC:$AC,Sheet1!S71_ItemType,$AD:$AD)","v":0},null,null,null,null,null,null,null,null,null,null,null,null,null,null,null,null,null,122,"IR"]
[{"$f":"IF(RIGHT('Org structure'!D126,18)<>\"[Name of sub-vote]\",'Org structure'!D126,\"\")","v":""},null,{"$f":"SUMIFS(Sheet1!S71_PPPYearAmount,Sheet1!S71_SubMunicipalVoteNo,$AC:$AC,Sheet1!S71_ItemType,$AD:$AD)","v":0},{"$f":"SUMIFS(Sheet1!S71_PPYearAmount,Sheet1!S71_SubMunicipalVoteNo,$AC:$AC,Sheet1!S71_ItemType,$AD:$AD)","v":0},{"$f":"SUMIFS(Sheet1!S71_PYearAmount,Sheet1!S71_SubMunicipalVoteNo,$AC:$AC,Sheet1!S71_ItemType,$AD:$AD)","v":0},{"$f":"-SUMIFS(Sheet1!S71_OriginalBudAmnt,Sheet1!S71_SubMunicipalVoteNo,$AC:$AC,Sheet1!S71_ItemType,$AD:$AD)","v":0},{"$f":"-SUMIFS(Sheet1!S71_AdjustmentBudAmnt,Sheet1!S71_SubMunicipalVoteNo,$AC:$AC,Sheet1!S71_ItemType,$AD:$AD)","v":0},{"$f":"-SUMIFS(Sheet1!S71_AdjustmentBudAmnt,Sheet1!S71_SubMunicipalVoteNo,$AC:$AC,Sheet1!S71_ItemType,$AD:$AD)","v":0},{"$f":"-SUMIFS(Sheet1!S71_ASBudgetAmount,Sheet1!S71_SubMunicipalVoteNo,$AC:$AC,Sheet1!S71_ItemType,$AD:$AD)","v":0},{"$f":"-SUMIFS(Sheet1!S71_OY1BudgetAmount,Sheet1!S71_SubMunicipalVoteNo,$AC:$AC,Sheet1!S71_ItemType,$AD:$AD)","v":0},{"$f":"-SUMIFS(Sheet1!S71_OY2BudgetAmount,Sheet1!S71_SubMunicipalVoteNo,$AC:$AC,Sheet1!S71_ItemType,$AD:$AD)","v":0},null,null,null,null,null,null,null,null,null,null,null,null,null,null,null,null,null,123,"IR"]
[{"$f":"IF(RIGHT('Org structure'!D127,18)<>\"[Name of sub-vote]\",'Org structure'!D127,\"\")","v":""},null,{"$f":"SUMIFS(Sheet1!S71_PPPYearAmount,Sheet1!S71_SubMunicipalVoteNo,$AC:$AC,Sheet1!S71_ItemType,$AD:$AD)","v":0},{"$f":"SUMIFS(Sheet1!S71_PPYearAmount,Sheet1!S71_SubMunicipalVoteNo,$AC:$AC,Sheet1!S71_ItemType,$AD:$AD)","v":0},{"$f":"SUMIFS(Sheet1!S71_PYearAmount,Sheet1!S71_SubMunicipalVoteNo,$AC:$AC,Sheet1!S71_ItemType,$AD:$AD)","v":0},{"$f":"-SUMIFS(Sheet1!S71_OriginalBudAmnt,Sheet1!S71_SubMunicipalVoteNo,$AC:$AC,Sheet1!S71_ItemType,$AD:$AD)","v":0},{"$f":"-SUMIFS(Sheet1!S71_AdjustmentBudAmnt,Sheet1!S71_SubMunicipalVoteNo,$AC:$AC,Sheet1!S71_ItemType,$AD:$AD)","v":0},{"$f":"-SUMIFS(Sheet1!S71_AdjustmentBudAmnt,Sheet1!S71_SubMunicipalVoteNo,$AC:$AC,Sheet1!S71_ItemType,$AD:$AD)","v":0},{"$f":"-SUMIFS(Sheet1!S71_ASBudgetAmount,Sheet1!S71_SubMunicipalVoteNo,$AC:$AC,Sheet1!S71_ItemType,$AD:$AD)","v":0},{"$f":"-SUMIFS(Sheet1!S71_OY1BudgetAmount,Sheet1!S71_SubMunicipalVoteNo,$AC:$AC,Sheet1!S71_ItemType,$AD:$AD)","v":0},{"$f":"-SUMIFS(Sheet1!S71_OY2BudgetAmount,Sheet1!S71_SubMunicipalVoteNo,$AC:$AC,Sheet1!S71_ItemType,$AD:$AD)","v":0},null,null,null,null,null,null,null,null,null,null,null,null,null,null,null,null,null,124,"IR"]
[{"$f":"IF(RIGHT('Org structure'!D128,18)<>\"[Name of sub-vote]\",'Org structure'!D128,\"\")","v":""},null,{"$f":"SUMIFS(Sheet1!S71_PPPYearAmount,Sheet1!S71_SubMunicipalVoteNo,$AC:$AC,Sheet1!S71_ItemType,$AD:$AD)","v":0},{"$f":"SUMIFS(Sheet1!S71_PPYearAmount,Sheet1!S71_SubMunicipalVoteNo,$AC:$AC,Sheet1!S71_ItemType,$AD:$AD)","v":0},{"$f":"SUMIFS(Sheet1!S71_PYearAmount,Sheet1!S71_SubMunicipalVoteNo,$AC:$AC,Sheet1!S71_ItemType,$AD:$AD)","v":0},{"$f":"-SUMIFS(Sheet1!S71_OriginalBudAmnt,Sheet1!S71_SubMunicipalVoteNo,$AC:$AC,Sheet1!S71_ItemType,$AD:$AD)","v":0},{"$f":"-SUMIFS(Sheet1!S71_AdjustmentBudAmnt,Sheet1!S71_SubMunicipalVoteNo,$AC:$AC,Sheet1!S71_ItemType,$AD:$AD)","v":0},{"$f":"-SUMIFS(Sheet1!S71_AdjustmentBudAmnt,Sheet1!S71_SubMunicipalVoteNo,$AC:$AC,Sheet1!S71_ItemType,$AD:$AD)","v":0},{"$f":"-SUMIFS(Sheet1!S71_ASBudgetAmount,Sheet1!S71_SubMunicipalVoteNo,$AC:$AC,Sheet1!S71_ItemType,$AD:$AD)","v":0},{"$f":"-SUMIFS(Sheet1!S71_OY1BudgetAmount,Sheet1!S71_SubMunicipalVoteNo,$AC:$AC,Sheet1!S71_ItemType,$AD:$AD)","v":0},{"$f":"-SUMIFS(Sheet1!S71_OY2BudgetAmount,Sheet1!S71_SubMunicipalVoteNo,$AC:$AC,Sheet1!S71_ItemType,$AD:$AD)","v":0},null,null,null,null,null,null,null,null,null,null,null,null,null,null,null,null,null,125,"IR"]
[{"$f":"IF(RIGHT('Org structure'!D129,18)<>\"[Name of sub-vote]\",'Org structure'!D129,\"\")","v":""},null,{"$f":"SUMIFS(Sheet1!S71_PPPYearAmount,Sheet1!S71_SubMunicipalVoteNo,$AC:$AC,Sheet1!S71_ItemType,$AD:$AD)","v":0},{"$f":"SUMIFS(Sheet1!S71_PPYearAmount,Sheet1!S71_SubMunicipalVoteNo,$AC:$AC,Sheet1!S71_ItemType,$AD:$AD)","v":0},{"$f":"SUMIFS(Sheet1!S71_PYearAmount,Sheet1!S71_SubMunicipalVoteNo,$AC:$AC,Sheet1!S71_ItemType,$AD:$AD)","v":0},{"$f":"-SUMIFS(Sheet1!S71_OriginalBudAmnt,Sheet1!S71_SubMunicipalVoteNo,$AC:$AC,Sheet1!S71_ItemType,$AD:$AD)","v":0},{"$f":"-SUMIFS(Sheet1!S71_AdjustmentBudAmnt,Sheet1!S71_SubMunicipalVoteNo,$AC:$AC,Sheet1!S71_ItemType,$AD:$AD)","v":0},{"$f":"-SUMIFS(Sheet1!S71_AdjustmentBudAmnt,Sheet1!S71_SubMunicipalVoteNo,$AC:$AC,Sheet1!S71_ItemType,$AD:$AD)","v":0},{"$f":"-SUMIFS(Sheet1!S71_ASBudgetAmount,Sheet1!S71_SubMunicipalVoteNo,$AC:$AC,Sheet1!S71_ItemType,$AD:$AD)","v":0},{"$f":"-SUMIFS(Sheet1!S71_OY1BudgetAmount,Sheet1!S71_SubMunicipalVoteNo,$AC:$AC,Sheet1!S71_ItemType,$AD:$AD)","v":0},{"$f":"-SUMIFS(Sheet1!S71_OY2BudgetAmount,Sheet1!S71_SubMunicipalVoteNo,$AC:$AC,Sheet1!S71_ItemType,$AD:$AD)","v":0},null,null,null,null,null,null,null,null,null,null,null,null,null,null,null,null,null,126,"IR"]
[{"$f":"IF(RIGHT('Org structure'!D130,18)<>\"[Name of sub-vote]\",'Org structure'!D130,\"\")","v":""},null,{"$f":"SUMIFS(Sheet1!S71_PPPYearAmount,Sheet1!S71_SubMunicipalVoteNo,$AC:$AC,Sheet1!S71_ItemType,$AD:$AD)","v":0},{"$f":"SUMIFS(Sheet1!S71_PPYearAmount,Sheet1!S71_SubMunicipalVoteNo,$AC:$AC,Sheet1!S71_ItemType,$AD:$AD)","v":0},{"$f":"SUMIFS(Sheet1!S71_PYearAmount,Sheet1!S71_SubMunicipalVoteNo,$AC:$AC,Sheet1!S71_ItemType,$AD:$AD)","v":0},{"$f":"-SUMIFS(Sheet1!S71_OriginalBudAmnt,Sheet1!S71_SubMunicipalVoteNo,$AC:$AC,Sheet1!S71_ItemType,$AD:$AD)","v":0},{"$f":"-SUMIFS(Sheet1!S71_AdjustmentBudAmnt,Sheet1!S71_SubMunicipalVoteNo,$AC:$AC,Sheet1!S71_ItemType,$AD:$AD)","v":0},{"$f":"-SUMIFS(Sheet1!S71_AdjustmentBudAmnt,Sheet1!S71_SubMunicipalVoteNo,$AC:$AC,Sheet1!S71_ItemType,$AD:$AD)","v":0},{"$f":"-SUMIFS(Sheet1!S71_ASBudgetAmount,Sheet1!S71_SubMunicipalVoteNo,$AC:$AC,Sheet1!S71_ItemType,$AD:$AD)","v":0},{"$f":"-SUMIFS(Sheet1!S71_OY1BudgetAmount,Sheet1!S71_SubMunicipalVoteNo,$AC:$AC,Sheet1!S71_ItemType,$AD:$AD)","v":0},{"$f":"-SUMIFS(Sheet1!S71_OY2BudgetAmount,Sheet1!S71_SubMunicipalVoteNo,$AC:$AC,Sheet1!S71_ItemType,$AD:$AD)","v":0},null,null,null,null,null,null,null,null,null,null,null,null,null,null,null,null,null,127,"IR"]
[{"$f":"IF(RIGHT('Org structure'!D131,18)<>\"[Name of sub-vote]\",'Org structure'!D131,\"\")","v":""},null,{"$f":"SUMIFS(Sheet1!S71_PPPYearAmount,Sheet1!S71_SubMunicipalVoteNo,$AC:$AC,Sheet1!S71_ItemType,$AD:$AD)","v":0},{"$f":"SUMIFS(Sheet1!S71_PPYearAmount,Sheet1!S71_SubMunicipalVoteNo,$AC:$AC,Sheet1!S71_ItemType,$AD:$AD)","v":0},{"$f":"SUMIFS(Sheet1!S71_PYearAmount,Sheet1!S71_SubMunicipalVoteNo,$AC:$AC,Sheet1!S71_ItemType,$AD:$AD)","v":0},{"$f":"-SUMIFS(Sheet1!S71_OriginalBudAmnt,Sheet1!S71_SubMunicipalVoteNo,$AC:$AC,Sheet1!S71_ItemType,$AD:$AD)","v":0},{"$f":"-SUMIFS(Sheet1!S71_AdjustmentBudAmnt,Sheet1!S71_SubMunicipalVoteNo,$AC:$AC,Sheet1!S71_ItemType,$AD:$AD)","v":0},{"$f":"-SUMIFS(Sheet1!S71_AdjustmentBudAmnt,Sheet1!S71_SubMunicipalVoteNo,$AC:$AC,Sheet1!S71_ItemType,$AD:$AD)","v":0},{"$f":"-SUMIFS(Sheet1!S71_ASBudgetAmount,Sheet1!S71_SubMunicipalVoteNo,$AC:$AC,Sheet1!S71_ItemType,$AD:$AD)","v":0},{"$f":"-SUMIFS(Sheet1!S71_OY1BudgetAmount,Sheet1!S71_SubMunicipalVoteNo,$AC:$AC,Sheet1!S71_ItemType,$AD:$AD)","v":0},{"$f":"-SUMIFS(Sheet1!S71_OY2BudgetAmount,Sheet1!S71_SubMunicipalVoteNo,$AC:$AC,Sheet1!S71_ItemType,$AD:$AD)","v":0},null,null,null,null,null,null,null,null,null,null,null,null,null,null,null,null,null,128,"IR"]
[{"$f":"IF(RIGHT('Org structure'!D132,18)<>\"[Name of sub-vote]\",'Org structure'!D132,\"\")","v":""},null,{"$f":"SUMIFS(Sheet1!S71_PPPYearAmount,Sheet1!S71_SubMunicipalVoteNo,$AC:$AC,Sheet1!S71_ItemType,$AD:$AD)","v":0},{"$f":"SUMIFS(Sheet1!S71_PPYearAmount,Sheet1!S71_SubMunicipalVoteNo,$AC:$AC,Sheet1!S71_ItemType,$AD:$AD)","v":0},{"$f":"SUMIFS(Sheet1!S71_PYearAmount,Sheet1!S71_SubMunicipalVoteNo,$AC:$AC,Sheet1!S71_ItemType,$AD:$AD)","v":0},{"$f":"-SUMIFS(Sheet1!S71_OriginalBudAmnt,Sheet1!S71_SubMunicipalVoteNo,$AC:$AC,Sheet1!S71_ItemType,$AD:$AD)","v":0},{"$f":"-SUMIFS(Sheet1!S71_AdjustmentBudAmnt,Sheet1!S71_SubMunicipalVoteNo,$AC:$AC,Sheet1!S71_ItemType,$AD:$AD)","v":0},{"$f":"-SUMIFS(Sheet1!S71_AdjustmentBudAmnt,Sheet1!S71_SubMunicipalVoteNo,$AC:$AC,Sheet1!S71_ItemType,$AD:$AD)","v":0},{"$f":"-SUMIFS(Sheet1!S71_ASBudgetAmount,Sheet1!S71_SubMunicipalVoteNo,$AC:$AC,Sheet1!S71_ItemType,$AD:$AD)","v":0},{"$f":"-SUMIFS(Sheet1!S71_OY1BudgetAmount,Sheet1!S71_SubMunicipalVoteNo,$AC:$AC,Sheet1!S71_ItemType,$AD:$AD)","v":0},{"$f":"-SUMIFS(Sheet1!S71_OY2BudgetAmount,Sheet1!S71_SubMunicipalVoteNo,$AC:$AC,Sheet1!S71_ItemType,$AD:$AD)","v":0},null,null,null,null,null,null,null,null,null,null,null,null,null,null,null,null,null,129,"IR"]
[{"$f":"IF(RIGHT('Org structure'!D133,18)<>\"[Name of sub-vote]\",'Org structure'!D133,\"\")","v":""},null,{"$f":"SUMIFS(Sheet1!S71_PPPYearAmount,Sheet1!S71_SubMunicipalVoteNo,$AC:$AC,Sheet1!S71_ItemType,$AD:$AD)","v":0},{"$f":"SUMIFS(Sheet1!S71_PPYearAmount,Sheet1!S71_SubMunicipalVoteNo,$AC:$AC,Sheet1!S71_ItemType,$AD:$AD)","v":0},{"$f":"SUMIFS(Sheet1!S71_PYearAmount,Sheet1!S71_SubMunicipalVoteNo,$AC:$AC,Sheet1!S71_ItemType,$AD:$AD)","v":0},{"$f":"-SUMIFS(Sheet1!S71_OriginalBudAmnt,Sheet1!S71_SubMunicipalVoteNo,$AC:$AC,Sheet1!S71_ItemType,$AD:$AD)","v":0},{"$f":"-SUMIFS(Sheet1!S71_AdjustmentBudAmnt,Sheet1!S71_SubMunicipalVoteNo,$AC:$AC,Sheet1!S71_ItemType,$AD:$AD)","v":0},{"$f":"-SUMIFS(Sheet1!S71_AdjustmentBudAmnt,Sheet1!S71_SubMunicipalVoteNo,$AC:$AC,Sheet1!S71_ItemType,$AD:$AD)","v":0},{"$f":"-SUMIFS(Sheet1!S71_ASBudgetAmount,Sheet1!S71_SubMunicipalVoteNo,$AC:$AC,Sheet1!S71_ItemType,$AD:$AD)","v":0},{"$f":"-SUMIFS(Sheet1!S71_OY1BudgetAmount,Sheet1!S71_SubMunicipalVoteNo,$AC:$AC,Sheet1!S71_ItemType,$AD:$AD)","v":0},{"$f":"-SUMIFS(Sheet1!S71_OY2BudgetAmount,Sheet1!S71_SubMunicipalVoteNo,$AC:$AC,Sheet1!S71_ItemType,$AD:$AD)","v":0},null,null,null,null,null,null,null,null,null,null,null,null,null,null,null,null,null,1210,"IR"]
[{"$f":"'Org structure'!A14","v":"Vote 13 - [NAME OF VOTE 13]"},null,{"$f":"SUM(C138:C147)","v":0},{"$f":"SUM(D138:D147)","v":0},0,0,0,0,0,0,0]
[{"$f":"IF(RIGHT('Org structure'!D135,18)<>\"[Name of sub-vote]\",'Org structure'!D135,\"\")","v":""},null,{"$f":"SUMIFS(Sheet1!S71_PPPYearAmount,Sheet1!S71_SubMunicipalVoteNo,$AC:$AC,Sheet1!S71_ItemType,$AD:$AD)","v":0},{"$f":"SUMIFS(Sheet1!S71_PPYearAmount,Sheet1!S71_SubMunicipalVoteNo,$AC:$AC,Sheet1!S71_ItemType,$AD:$AD)","v":0},{"$f":"SUMIFS(Sheet1!S71_PYearAmount,Sheet1!S71_SubMunicipalVoteNo,$AC:$AC,Sheet1!S71_ItemType,$AD:$AD)","v":0},{"$f":"-SUMIFS(Sheet1!S71_OriginalBudAmnt,Sheet1!S71_SubMunicipalVoteNo,$AC:$AC,Sheet1!S71_ItemType,$AD:$AD)","v":0},{"$f":"-SUMIFS(Sheet1!S71_AdjustmentBudAmnt,Sheet1!S71_SubMunicipalVoteNo,$AC:$AC,Sheet1!S71_ItemType,$AD:$AD)","v":0},{"$f":"-SUMIFS(Sheet1!S71_AdjustmentBudAmnt,Sheet1!S71_SubMunicipalVoteNo,$AC:$AC,Sheet1!S71_ItemType,$AD:$AD)","v":0},{"$f":"-SUMIFS(Sheet1!S71_ASBudgetAmount,Sheet1!S71_SubMunicipalVoteNo,$AC:$AC,Sheet1!S71_ItemType,$AD:$AD)","v":0},{"$f":"-SUMIFS(Sheet1!S71_OY1BudgetAmount,Sheet1!S71_SubMunicipalVoteNo,$AC:$AC,Sheet1!S71_ItemType,$AD:$AD)","v":0},{"$f":"-SUMIFS(Sheet1!S71_OY2BudgetAmount,Sheet1!S71_SubMunicipalVoteNo,$AC:$AC,Sheet1!S71_ItemType,$AD:$AD)","v":0},null,null,null,null,null,null,null,null,null,null,null,null,null,null,null,null,null,131,"IR"]
[{"$f":"IF(RIGHT('Org structure'!D136,18)<>\"[Name of sub-vote]\",'Org structure'!D136,\"\")","v":""},null,{"$f":"SUMIFS(Sheet1!S71_PPPYearAmount,Sheet1!S71_SubMunicipalVoteNo,$AC:$AC,Sheet1!S71_ItemType,$AD:$AD)","v":0},{"$f":"SUMIFS(Sheet1!S71_PPYearAmount,Sheet1!S71_SubMunicipalVoteNo,$AC:$AC,Sheet1!S71_ItemType,$AD:$AD)","v":0},{"$f":"SUMIFS(Sheet1!S71_PYearAmount,Sheet1!S71_SubMunicipalVoteNo,$AC:$AC,Sheet1!S71_ItemType,$AD:$AD)","v":0},{"$f":"-SUMIFS(Sheet1!S71_OriginalBudAmnt,Sheet1!S71_SubMunicipalVoteNo,$AC:$AC,Sheet1!S71_ItemType,$AD:$AD)","v":0},{"$f":"-SUMIFS(Sheet1!S71_AdjustmentBudAmnt,Sheet1!S71_SubMunicipalVoteNo,$AC:$AC,Sheet1!S71_ItemType,$AD:$AD)","v":0},{"$f":"-SUMIFS(Sheet1!S71_AdjustmentBudAmnt,Sheet1!S71_SubMunicipalVoteNo,$AC:$AC,Sheet1!S71_ItemType,$AD:$AD)","v":0},{"$f":"-SUMIFS(Sheet1!S71_ASBudgetAmount,Sheet1!S71_SubMunicipalVoteNo,$AC:$AC,Sheet1!S71_ItemType,$AD:$AD)","v":0},{"$f":"-SUMIFS(Sheet1!S71_OY1BudgetAmount,Sheet1!S71_SubMunicipalVoteNo,$AC:$AC,Sheet1!S71_ItemType,$AD:$AD)","v":0},{"$f":"-SUMIFS(Sheet1!S71_OY2BudgetAmount,Sheet1!S71_SubMunicipalVoteNo,$AC:$AC,Sheet1!S71_ItemType,$AD:$AD)","v":0},null,null,null,null,null,null,null,null,null,null,null,null,null,null,null,null,null,132,"IR"]
[{"$f":"IF(RIGHT('Org structure'!D137,18)<>\"[Name of sub-vote]\",'Org structure'!D137,\"\")","v":""},null,{"$f":"SUMIFS(Sheet1!S71_PPPYearAmount,Sheet1!S71_SubMunicipalVoteNo,$AC:$AC,Sheet1!S71_ItemType,$AD:$AD)","v":0},{"$f":"SUMIFS(Sheet1!S71_PPYearAmount,Sheet1!S71_SubMunicipalVoteNo,$AC:$AC,Sheet1!S71_ItemType,$AD:$AD)","v":0},{"$f":"SUMIFS(Sheet1!S71_PYearAmount,Sheet1!S71_SubMunicipalVoteNo,$AC:$AC,Sheet1!S71_ItemType,$AD:$AD)","v":0},{"$f":"-SUMIFS(Sheet1!S71_OriginalBudAmnt,Sheet1!S71_SubMunicipalVoteNo,$AC:$AC,Sheet1!S71_ItemType,$AD:$AD)","v":0},{"$f":"-SUMIFS(Sheet1!S71_AdjustmentBudAmnt,Sheet1!S71_SubMunicipalVoteNo,$AC:$AC,Sheet1!S71_ItemType,$AD:$AD)","v":0},{"$f":"-SUMIFS(Sheet1!S71_AdjustmentBudAmnt,Sheet1!S71_SubMunicipalVoteNo,$AC:$AC,Sheet1!S71_ItemType,$AD:$AD)","v":0},{"$f":"-SUMIFS(Sheet1!S71_ASBudgetAmount,Sheet1!S71_SubMunicipalVoteNo,$AC:$AC,Sheet1!S71_ItemType,$AD:$AD)","v":0},{"$f":"-SUMIFS(Sheet1!S71_OY1BudgetAmount,Sheet1!S71_SubMunicipalVoteNo,$AC:$AC,Sheet1!S71_ItemType,$AD:$AD)","v":0},{"$f":"-SUMIFS(Sheet1!S71_OY2BudgetAmount,Sheet1!S71_SubMunicipalVoteNo,$AC:$AC,Sheet1!S71_ItemType,$AD:$AD)","v":0},null,null,null,null,null,null,null,null,null,null,null,null,null,null,null,null,null,133,"IR"]
[{"$f":"IF(RIGHT('Org structure'!D138,18)<>\"[Name of sub-vote]\",'Org structure'!D138,\"\")","v":""},null,{"$f":"SUMIFS(Sheet1!S71_PPPYearAmount,Sheet1!S71_SubMunicipalVoteNo,$AC:$AC,Sheet1!S71_ItemType,$AD:$AD)","v":0},{"$f":"SUMIFS(Sheet1!S71_PPYearAmount,Sheet1!S71_SubMunicipalVoteNo,$AC:$AC,Sheet1!S71_ItemType,$AD:$AD)","v":0},{"$f":"SUMIFS(Sheet1!S71_PYearAmount,Sheet1!S71_SubMunicipalVoteNo,$AC:$AC,Sheet1!S71_ItemType,$AD:$AD)","v":0},{"$f":"-SUMIFS(Sheet1!S71_OriginalBudAmnt,Sheet1!S71_SubMunicipalVoteNo,$AC:$AC,Sheet1!S71_ItemType,$AD:$AD)","v":0},{"$f":"-SUMIFS(Sheet1!S71_AdjustmentBudAmnt,Sheet1!S71_SubMunicipalVoteNo,$AC:$AC,Sheet1!S71_ItemType,$AD:$AD)","v":0},{"$f":"-SUMIFS(Sheet1!S71_AdjustmentBudAmnt,Sheet1!S71_SubMunicipalVoteNo,$AC:$AC,Sheet1!S71_ItemType,$AD:$AD)","v":0},{"$f":"-SUMIFS(Sheet1!S71_ASBudgetAmount,Sheet1!S71_SubMunicipalVoteNo,$AC:$AC,Sheet1!S71_ItemType,$AD:$AD)","v":0},{"$f":"-SUMIFS(Sheet1!S71_OY1BudgetAmount,Sheet1!S71_SubMunicipalVoteNo,$AC:$AC,Sheet1!S71_ItemType,$AD:$AD)","v":0},{"$f":"-SUMIFS(Sheet1!S71_OY2BudgetAmount,Sheet1!S71_SubMunicipalVoteNo,$AC:$AC,Sheet1!S71_ItemType,$AD:$AD)","v":0},null,null,null,null,null,null,null,null,null,null,null,null,null,null,null,null,null,134,"IR"]
[{"$f":"IF(RIGHT('Org structure'!D139,18)<>\"[Name of sub-vote]\",'Org structure'!D139,\"\")","v":""},null,{"$f":"SUMIFS(Sheet1!S71_PPPYearAmount,Sheet1!S71_SubMunicipalVoteNo,$AC:$AC,Sheet1!S71_ItemType,$AD:$AD)","v":0},{"$f":"SUMIFS(Sheet1!S71_PPYearAmount,Sheet1!S71_SubMunicipalVoteNo,$AC:$AC,Sheet1!S71_ItemType,$AD:$AD)","v":0},{"$f":"SUMIFS(Sheet1!S71_PYearAmount,Sheet1!S71_SubMunicipalVoteNo,$AC:$AC,Sheet1!S71_ItemType,$AD:$AD)","v":0},{"$f":"-SUMIFS(Sheet1!S71_OriginalBudAmnt,Sheet1!S71_SubMunicipalVoteNo,$AC:$AC,Sheet1!S71_ItemType,$AD:$AD)","v":0},{"$f":"-SUMIFS(Sheet1!S71_AdjustmentBudAmnt,Sheet1!S71_SubMunicipalVoteNo,$AC:$AC,Sheet1!S71_ItemType,$AD:$AD)","v":0},{"$f":"-SUMIFS(Sheet1!S71_AdjustmentBudAmnt,Sheet1!S71_SubMunicipalVoteNo,$AC:$AC,Sheet1!S71_ItemType,$AD:$AD)","v":0},{"$f":"-SUMIFS(Sheet1!S71_ASBudgetAmount,Sheet1!S71_SubMunicipalVoteNo,$AC:$AC,Sheet1!S71_ItemType,$AD:$AD)","v":0},{"$f":"-SUMIFS(Sheet1!S71_OY1BudgetAmount,Sheet1!S71_SubMunicipalVoteNo,$AC:$AC,Sheet1!S71_ItemType,$AD:$AD)","v":0},{"$f":"-SUMIFS(Sheet1!S71_OY2BudgetAmount,Sheet1!S71_SubMunicipalVoteNo,$AC:$AC,Sheet1!S71_ItemType,$AD:$AD)","v":0},null,null,null,null,null,null,null,null,null,null,null,null,null,null,null,null,null,135,"IR"]
[{"$f":"IF(RIGHT('Org structure'!D140,18)<>\"[Name of sub-vote]\",'Org structure'!D140,\"\")","v":""},null,{"$f":"SUMIFS(Sheet1!S71_PPPYearAmount,Sheet1!S71_SubMunicipalVoteNo,$AC:$AC,Sheet1!S71_ItemType,$AD:$AD)","v":0},{"$f":"SUMIFS(Sheet1!S71_PPYearAmount,Sheet1!S71_SubMunicipalVoteNo,$AC:$AC,Sheet1!S71_ItemType,$AD:$AD)","v":0},{"$f":"SUMIFS(Sheet1!S71_PYearAmount,Sheet1!S71_SubMunicipalVoteNo,$AC:$AC,Sheet1!S71_ItemType,$AD:$AD)","v":0},{"$f":"-SUMIFS(Sheet1!S71_OriginalBudAmnt,Sheet1!S71_SubMunicipalVoteNo,$AC:$AC,Sheet1!S71_ItemType,$AD:$AD)","v":0},{"$f":"-SUMIFS(Sheet1!S71_AdjustmentBudAmnt,Sheet1!S71_SubMunicipalVoteNo,$AC:$AC,Sheet1!S71_ItemType,$AD:$AD)","v":0},{"$f":"-SUMIFS(Sheet1!S71_AdjustmentBudAmnt,Sheet1!S71_SubMunicipalVoteNo,$AC:$AC,Sheet1!S71_ItemType,$AD:$AD)","v":0},{"$f":"-SUMIFS(Sheet1!S71_ASBudgetAmount,Sheet1!S71_SubMunicipalVoteNo,$AC:$AC,Sheet1!S71_ItemType,$AD:$AD)","v":0},{"$f":"-SUMIFS(Sheet1!S71_OY1BudgetAmount,Sheet1!S71_SubMunicipalVoteNo,$AC:$AC,Sheet1!S71_ItemType,$AD:$AD)","v":0},{"$f":"-SUMIFS(Sheet1!S71_OY2BudgetAmount,Sheet1!S71_SubMunicipalVoteNo,$AC:$AC,Sheet1!S71_ItemType,$AD:$AD)","v":0},null,null,null,null,null,null,null,null,null,null,null,null,null,null,null,null,null,136,"IR"]
[{"$f":"IF(RIGHT('Org structure'!D141,18)<>\"[Name of sub-vote]\",'Org structure'!D141,\"\")","v":""},null,{"$f":"SUMIFS(Sheet1!S71_PPPYearAmount,Sheet1!S71_SubMunicipalVoteNo,$AC:$AC,Sheet1!S71_ItemType,$AD:$AD)","v":0},{"$f":"SUMIFS(Sheet1!S71_PPYearAmount,Sheet1!S71_SubMunicipalVoteNo,$AC:$AC,Sheet1!S71_ItemType,$AD:$AD)","v":0},{"$f":"SUMIFS(Sheet1!S71_PYearAmount,Sheet1!S71_SubMunicipalVoteNo,$AC:$AC,Sheet1!S71_ItemType,$AD:$AD)","v":0},{"$f":"-SUMIFS(Sheet1!S71_OriginalBudAmnt,Sheet1!S71_SubMunicipalVoteNo,$AC:$AC,Sheet1!S71_ItemType,$AD:$AD)","v":0},{"$f":"-SUMIFS(Sheet1!S71_AdjustmentBudAmnt,Sheet1!S71_SubMunicipalVoteNo,$AC:$AC,Sheet1!S71_ItemType,$AD:$AD)","v":0},{"$f":"-SUMIFS(Sheet1!S71_AdjustmentBudAmnt,Sheet1!S71_SubMunicipalVoteNo,$AC:$AC,Sheet1!S71_ItemType,$AD:$AD)","v":0},{"$f":"-SUMIFS(Sheet1!S71_ASBudgetAmount,Sheet1!S71_SubMunicipalVoteNo,$AC:$AC,Sheet1!S71_ItemType,$AD:$AD)","v":0},{"$f":"-SUMIFS(Sheet1!S71_OY1BudgetAmount,Sheet1!S71_SubMunicipalVoteNo,$AC:$AC,Sheet1!S71_ItemType,$AD:$AD)","v":0},{"$f":"-SUMIFS(Sheet1!S71_OY2BudgetAmount,Sheet1!S71_SubMunicipalVoteNo,$AC:$AC,Sheet1!S71_ItemType,$AD:$AD)","v":0},null,null,null,null,null,null,null,null,null,null,null,null,null,null,null,null,null,137,"IR"]
[{"$f":"IF(RIGHT('Org structure'!D142,18)<>\"[Name of sub-vote]\",'Org structure'!D142,\"\")","v":""},null,{"$f":"SUMIFS(Sheet1!S71_PPPYearAmount,Sheet1!S71_SubMunicipalVoteNo,$AC:$AC,Sheet1!S71_ItemType,$AD:$AD)","v":0},{"$f":"SUMIFS(Sheet1!S71_PPYearAmount,Sheet1!S71_SubMunicipalVoteNo,$AC:$AC,Sheet1!S71_ItemType,$AD:$AD)","v":0},{"$f":"SUMIFS(Sheet1!S71_PYearAmount,Sheet1!S71_SubMunicipalVoteNo,$AC:$AC,Sheet1!S71_ItemType,$AD:$AD)","v":0},{"$f":"-SUMIFS(Sheet1!S71_OriginalBudAmnt,Sheet1!S71_SubMunicipalVoteNo,$AC:$AC,Sheet1!S71_ItemType,$AD:$AD)","v":0},{"$f":"-SUMIFS(Sheet1!S71_AdjustmentBudAmnt,Sheet1!S71_SubMunicipalVoteNo,$AC:$AC,Sheet1!S71_ItemType,$AD:$AD)","v":0},{"$f":"-SUMIFS(Sheet1!S71_AdjustmentBudAmnt,Sheet1!S71_SubMunicipalVoteNo,$AC:$AC,Sheet1!S71_ItemType,$AD:$AD)","v":0},{"$f":"-SUMIFS(Sheet1!S71_ASBudgetAmount,Sheet1!S71_SubMunicipalVoteNo,$AC:$AC,Sheet1!S71_ItemType,$AD:$AD)","v":0},{"$f":"-SUMIFS(Sheet1!S71_OY1BudgetAmount,Sheet1!S71_SubMunicipalVoteNo,$AC:$AC,Sheet1!S71_ItemType,$AD:$AD)","v":0},{"$f":"-SUMIFS(Sheet1!S71_OY2BudgetAmount,Sheet1!S71_SubMunicipalVoteNo,$AC:$AC,Sheet1!S71_ItemType,$AD:$AD)","v":0},null,null,null,null,null,null,null,null,null,null,null,null,null,null,null,null,null,138,"IR"]
[{"$f":"IF(RIGHT('Org structure'!D143,18)<>\"[Name of sub-vote]\",'Org structure'!D143,\"\")","v":""},null,{"$f":"SUMIFS(Sheet1!S71_PPPYearAmount,Sheet1!S71_SubMunicipalVoteNo,$AC:$AC,Sheet1!S71_ItemType,$AD:$AD)","v":0},{"$f":"SUMIFS(Sheet1!S71_PPYearAmount,Sheet1!S71_SubMunicipalVoteNo,$AC:$AC,Sheet1!S71_ItemType,$AD:$AD)","v":0},{"$f":"SUMIFS(Sheet1!S71_PYearAmount,Sheet1!S71_SubMunicipalVoteNo,$AC:$AC,Sheet1!S71_ItemType,$AD:$AD)","v":0},{"$f":"-SUMIFS(Sheet1!S71_OriginalBudAmnt,Sheet1!S71_SubMunicipalVoteNo,$AC:$AC,Sheet1!S71_ItemType,$AD:$AD)","v":0},{"$f":"-SUMIFS(Sheet1!S71_AdjustmentBudAmnt,Sheet1!S71_SubMunicipalVoteNo,$AC:$AC,Sheet1!S71_ItemType,$AD:$AD)","v":0},{"$f":"-SUMIFS(Sheet1!S71_AdjustmentBudAmnt,Sheet1!S71_SubMunicipalVoteNo,$AC:$AC,Sheet1!S71_ItemType,$AD:$AD)","v":0},{"$f":"-SUMIFS(Sheet1!S71_ASBudgetAmount,Sheet1!S71_SubMunicipalVoteNo,$AC:$AC,Sheet1!S71_ItemType,$AD:$AD)","v":0},{"$f":"-SUMIFS(Sheet1!S71_OY1BudgetAmount,Sheet1!S71_SubMunicipalVoteNo,$AC:$AC,Sheet1!S71_ItemType,$AD:$AD)","v":0},{"$f":"-SUMIFS(Sheet1!S71_OY2BudgetAmount,Sheet1!S71_SubMunicipalVoteNo,$AC:$AC,Sheet1!S71_ItemType,$AD:$AD)","v":0},null,null,null,null,null,null,null,null,null,null,null,null,null,null,null,null,null,139,"IR"]
[{"$f":"IF(RIGHT('Org structure'!D144,18)<>\"[Name of sub-vote]\",'Org structure'!D144,\"\")","v":""},null,{"$f":"SUMIFS(Sheet1!S71_PPPYearAmount,Sheet1!S71_SubMunicipalVoteNo,$AC:$AC,Sheet1!S71_ItemType,$AD:$AD)","v":0},{"$f":"SUMIFS(Sheet1!S71_PPYearAmount,Sheet1!S71_SubMunicipalVoteNo,$AC:$AC,Sheet1!S71_ItemType,$AD:$AD)","v":0},{"$f":"SUMIFS(Sheet1!S71_PYearAmount,Sheet1!S71_SubMunicipalVoteNo,$AC:$AC,Sheet1!S71_ItemType,$AD:$AD)","v":0},{"$f":"-SUMIFS(Sheet1!S71_OriginalBudAmnt,Sheet1!S71_SubMunicipalVoteNo,$AC:$AC,Sheet1!S71_ItemType,$AD:$AD)","v":0},{"$f":"-SUMIFS(Sheet1!S71_AdjustmentBudAmnt,Sheet1!S71_SubMunicipalVoteNo,$AC:$AC,Sheet1!S71_ItemType,$AD:$AD)","v":0},{"$f":"-SUMIFS(Sheet1!S71_AdjustmentBudAmnt,Sheet1!S71_SubMunicipalVoteNo,$AC:$AC,Sheet1!S71_ItemType,$AD:$AD)","v":0},{"$f":"-SUMIFS(Sheet1!S71_ASBudgetAmount,Sheet1!S71_SubMunicipalVoteNo,$AC:$AC,Sheet1!S71_ItemType,$AD:$AD)","v":0},{"$f":"-SUMIFS(Sheet1!S71_OY1BudgetAmount,Sheet1!S71_SubMunicipalVoteNo,$AC:$AC,Sheet1!S71_ItemType,$AD:$AD)","v":0},{"$f":"-SUMIFS(Sheet1!S71_OY2BudgetAmount,Sheet1!S71_SubMunicipalVoteNo,$AC:$AC,Sheet1!S71_ItemType,$AD:$AD)","v":0},null,null,null,null,null,null,null,null,null,null,null,null,null,null,null,null,null,1310,"IR"]
[{"$f":"'Org structure'!A15","v":"Vote 14 - [NAME OF VOTE 14]"},null,{"$f":"SUM(C149:C158)","v":0},{"$f":"SUM(D149:D158)","v":0},0,0,0,0,0,0,0]
[{"$f":"IF(RIGHT('Org structure'!D146,18)<>\"[Name of sub-vote]\",'Org structure'!D146,\"\")","v":""},null,{"$f":"SUMIFS(Sheet1!S71_PPPYearAmount,Sheet1!S71_SubMunicipalVoteNo,$AC:$AC,Sheet1!S71_ItemType,$AD:$AD)","v":0},{"$f":"SUMIFS(Sheet1!S71_PPYearAmount,Sheet1!S71_SubMunicipalVoteNo,$AC:$AC,Sheet1!S71_ItemType,$AD:$AD)","v":0},{"$f":"SUMIFS(Sheet1!S71_PYearAmount,Sheet1!S71_SubMunicipalVoteNo,$AC:$AC,Sheet1!S71_ItemType,$AD:$AD)","v":0},{"$f":"-SUMIFS(Sheet1!S71_OriginalBudAmnt,Sheet1!S71_SubMunicipalVoteNo,$AC:$AC,Sheet1!S71_ItemType,$AD:$AD)","v":0},{"$f":"-SUMIFS(Sheet1!S71_AdjustmentBudAmnt,Sheet1!S71_SubMunicipalVoteNo,$AC:$AC,Sheet1!S71_ItemType,$AD:$AD)","v":0},{"$f":"-SUMIFS(Sheet1!S71_AdjustmentBudAmnt,Sheet1!S71_SubMunicipalVoteNo,$AC:$AC,Sheet1!S71_ItemType,$AD:$AD)","v":0},{"$f":"-SUMIFS(Sheet1!S71_ASBudgetAmount,Sheet1!S71_SubMunicipalVoteNo,$AC:$AC,Sheet1!S71_ItemType,$AD:$AD)","v":0},{"$f":"-SUMIFS(Sheet1!S71_OY1BudgetAmount,Sheet1!S71_SubMunicipalVoteNo,$AC:$AC,Sheet1!S71_ItemType,$AD:$AD)","v":0},{"$f":"-SUMIFS(Sheet1!S71_OY2BudgetAmount,Sheet1!S71_SubMunicipalVoteNo,$AC:$AC,Sheet1!S71_ItemType,$AD:$AD)","v":0},null,null,null,null,null,null,null,null,null,null,null,null,null,null,null,null,null,141,"IR"]
[{"$f":"IF(RIGHT('Org structure'!D147,18)<>\"[Name of sub-vote]\",'Org structure'!D147,\"\")","v":""},null,{"$f":"SUMIFS(Sheet1!S71_PPPYearAmount,Sheet1!S71_SubMunicipalVoteNo,$AC:$AC,Sheet1!S71_ItemType,$AD:$AD)","v":0},{"$f":"SUMIFS(Sheet1!S71_PPYearAmount,Sheet1!S71_SubMunicipalVoteNo,$AC:$AC,Sheet1!S71_ItemType,$AD:$AD)","v":0},{"$f":"SUMIFS(Sheet1!S71_PYearAmount,Sheet1!S71_SubMunicipalVoteNo,$AC:$AC,Sheet1!S71_ItemType,$AD:$AD)","v":0},{"$f":"-SUMIFS(Sheet1!S71_OriginalBudAmnt,Sheet1!S71_SubMunicipalVoteNo,$AC:$AC,Sheet1!S71_ItemType,$AD:$AD)","v":0},{"$f":"-SUMIFS(Sheet1!S71_AdjustmentBudAmnt,Sheet1!S71_SubMunicipalVoteNo,$AC:$AC,Sheet1!S71_ItemType,$AD:$AD)","v":0},{"$f":"-SUMIFS(Sheet1!S71_AdjustmentBudAmnt,Sheet1!S71_SubMunicipalVoteNo,$AC:$AC,Sheet1!S71_ItemType,$AD:$AD)","v":0},{"$f":"-SUMIFS(Sheet1!S71_ASBudgetAmount,Sheet1!S71_SubMunicipalVoteNo,$AC:$AC,Sheet1!S71_ItemType,$AD:$AD)","v":0},{"$f":"-SUMIFS(Sheet1!S71_OY1BudgetAmount,Sheet1!S71_SubMunicipalVoteNo,$AC:$AC,Sheet1!S71_ItemType,$AD:$AD)","v":0},{"$f":"-SUMIFS(Sheet1!S71_OY2BudgetAmount,Sheet1!S71_SubMunicipalVoteNo,$AC:$AC,Sheet1!S71_ItemType,$AD:$AD)","v":0},null,null,null,null,null,null,null,null,null,null,null,null,null,null,null,null,null,142,"IR"]
[{"$f":"IF(RIGHT('Org structure'!D148,18)<>\"[Name of sub-vote]\",'Org structure'!D148,\"\")","v":""},null,{"$f":"SUMIFS(Sheet1!S71_PPPYearAmount,Sheet1!S71_SubMunicipalVoteNo,$AC:$AC,Sheet1!S71_ItemType,$AD:$AD)","v":0},{"$f":"SUMIFS(Sheet1!S71_PPYearAmount,Sheet1!S71_SubMunicipalVoteNo,$AC:$AC,Sheet1!S71_ItemType,$AD:$AD)","v":0},{"$f":"SUMIFS(Sheet1!S71_PYearAmount,Sheet1!S71_SubMunicipalVoteNo,$AC:$AC,Sheet1!S71_ItemType,$AD:$AD)","v":0},{"$f":"-SUMIFS(Sheet1!S71_OriginalBudAmnt,Sheet1!S71_SubMunicipalVoteNo,$AC:$AC,Sheet1!S71_ItemType,$AD:$AD)","v":0},{"$f":"-SUMIFS(Sheet1!S71_AdjustmentBudAmnt,Sheet1!S71_SubMunicipalVoteNo,$AC:$AC,Sheet1!S71_ItemType,$AD:$AD)","v":0},{"$f":"-SUMIFS(Sheet1!S71_AdjustmentBudAmnt,Sheet1!S71_SubMunicipalVoteNo,$AC:$AC,Sheet1!S71_ItemType,$AD:$AD)","v":0},{"$f":"-SUMIFS(Sheet1!S71_ASBudgetAmount,Sheet1!S71_SubMunicipalVoteNo,$AC:$AC,Sheet1!S71_ItemType,$AD:$AD)","v":0},{"$f":"-SUMIFS(Sheet1!S71_OY1BudgetAmount,Sheet1!S71_SubMunicipalVoteNo,$AC:$AC,Sheet1!S71_ItemType,$AD:$AD)","v":0},{"$f":"-SUMIFS(Sheet1!S71_OY2BudgetAmount,Sheet1!S71_SubMunicipalVoteNo,$AC:$AC,Sheet1!S71_ItemType,$AD:$AD)","v":0},null,null,null,null,null,null,null,null,null,null,null,null,null,null,null,null,null,143,"IR"]
[{"$f":"IF(RIGHT('Org structure'!D149,18)<>\"[Name of sub-vote]\",'Org structure'!D149,\"\")","v":""},null,{"$f":"SUMIFS(Sheet1!S71_PPPYearAmount,Sheet1!S71_SubMunicipalVoteNo,$AC:$AC,Sheet1!S71_ItemType,$AD:$AD)","v":0},{"$f":"SUMIFS(Sheet1!S71_PPYearAmount,Sheet1!S71_SubMunicipalVoteNo,$AC:$AC,Sheet1!S71_ItemType,$AD:$AD)","v":0},{"$f":"SUMIFS(Sheet1!S71_PYearAmount,Sheet1!S71_SubMunicipalVoteNo,$AC:$AC,Sheet1!S71_ItemType,$AD:$AD)","v":0},{"$f":"-SUMIFS(Sheet1!S71_OriginalBudAmnt,Sheet1!S71_SubMunicipalVoteNo,$AC:$AC,Sheet1!S71_ItemType,$AD:$AD)","v":0},{"$f":"-SUMIFS(Sheet1!S71_AdjustmentBudAmnt,Sheet1!S71_SubMunicipalVoteNo,$AC:$AC,Sheet1!S71_ItemType,$AD:$AD)","v":0},{"$f":"-SUMIFS(Sheet1!S71_AdjustmentBudAmnt,Sheet1!S71_SubMunicipalVoteNo,$AC:$AC,Sheet1!S71_ItemType,$AD:$AD)","v":0},{"$f":"-SUMIFS(Sheet1!S71_ASBudgetAmount,Sheet1!S71_SubMunicipalVoteNo,$AC:$AC,Sheet1!S71_ItemType,$AD:$AD)","v":0},{"$f":"-SUMIFS(Sheet1!S71_OY1BudgetAmount,Sheet1!S71_SubMunicipalVoteNo,$AC:$AC,Sheet1!S71_ItemType,$AD:$AD)","v":0},{"$f":"-SUMIFS(Sheet1!S71_OY2BudgetAmount,Sheet1!S71_SubMunicipalVoteNo,$AC:$AC,Sheet1!S71_ItemType,$AD:$AD)","v":0},null,null,null,null,null,null,null,null,null,null,null,null,null,null,null,null,null,144,"IR"]
[{"$f":"IF(RIGHT('Org structure'!D150,18)<>\"[Name of sub-vote]\",'Org structure'!D150,\"\")","v":""},null,{"$f":"SUMIFS(Sheet1!S71_PPPYearAmount,Sheet1!S71_SubMunicipalVoteNo,$AC:$AC,Sheet1!S71_ItemType,$AD:$AD)","v":0},{"$f":"SUMIFS(Sheet1!S71_PPYearAmount,Sheet1!S71_SubMunicipalVoteNo,$AC:$AC,Sheet1!S71_ItemType,$AD:$AD)","v":0},{"$f":"SUMIFS(Sheet1!S71_PYearAmount,Sheet1!S71_SubMunicipalVoteNo,$AC:$AC,Sheet1!S71_ItemType,$AD:$AD)","v":0},{"$f":"-SUMIFS(Sheet1!S71_OriginalBudAmnt,Sheet1!S71_SubMunicipalVoteNo,$AC:$AC,Sheet1!S71_ItemType,$AD:$AD)","v":0},{"$f":"-SUMIFS(Sheet1!S71_AdjustmentBudAmnt,Sheet1!S71_SubMunicipalVoteNo,$AC:$AC,Sheet1!S71_ItemType,$AD:$AD)","v":0},{"$f":"-SUMIFS(Sheet1!S71_AdjustmentBudAmnt,Sheet1!S71_SubMunicipalVoteNo,$AC:$AC,Sheet1!S71_ItemType,$AD:$AD)","v":0},{"$f":"-SUMIFS(Sheet1!S71_ASBudgetAmount,Sheet1!S71_SubMunicipalVoteNo,$AC:$AC,Sheet1!S71_ItemType,$AD:$AD)","v":0},{"$f":"-SUMIFS(Sheet1!S71_OY1BudgetAmount,Sheet1!S71_SubMunicipalVoteNo,$AC:$AC,Sheet1!S71_ItemType,$AD:$AD)","v":0},{"$f":"-SUMIFS(Sheet1!S71_OY2BudgetAmount,Sheet1!S71_SubMunicipalVoteNo,$AC:$AC,Sheet1!S71_ItemType,$AD:$AD)","v":0},null,null,null,null,null,null,null,null,null,null,null,null,null,null,null,null,null,145,"IR"]
[{"$f":"IF(RIGHT('Org structure'!D151,18)<>\"[Name of sub-vote]\",'Org structure'!D151,\"\")","v":""},null,{"$f":"SUMIFS(Sheet1!S71_PPPYearAmount,Sheet1!S71_SubMunicipalVoteNo,$AC:$AC,Sheet1!S71_ItemType,$AD:$AD)","v":0},{"$f":"SUMIFS(Sheet1!S71_PPYearAmount,Sheet1!S71_SubMunicipalVoteNo,$AC:$AC,Sheet1!S71_ItemType,$AD:$AD)","v":0},{"$f":"SUMIFS(Sheet1!S71_PYearAmount,Sheet1!S71_SubMunicipalVoteNo,$AC:$AC,Sheet1!S71_ItemType,$AD:$AD)","v":0},{"$f":"-SUMIFS(Sheet1!S71_OriginalBudAmnt,Sheet1!S71_SubMunicipalVoteNo,$AC:$AC,Sheet1!S71_ItemType,$AD:$AD)","v":0},{"$f":"-SUMIFS(Sheet1!S71_AdjustmentBudAmnt,Sheet1!S71_SubMunicipalVoteNo,$AC:$AC,Sheet1!S71_ItemType,$AD:$AD)","v":0},{"$f":"-SUMIFS(Sheet1!S71_AdjustmentBudAmnt,Sheet1!S71_SubMunicipalVoteNo,$AC:$AC,Sheet1!S71_ItemType,$AD:$AD)","v":0},{"$f":"-SUMIFS(Sheet1!S71_ASBudgetAmount,Sheet1!S71_SubMunicipalVoteNo,$AC:$AC,Sheet1!S71_ItemType,$AD:$AD)","v":0},{"$f":"-SUMIFS(Sheet1!S71_OY1BudgetAmount,Sheet1!S71_SubMunicipalVoteNo,$AC:$AC,Sheet1!S71_ItemType,$AD:$AD)","v":0},{"$f":"-SUMIFS(Sheet1!S71_OY2BudgetAmount,Sheet1!S71_SubMunicipalVoteNo,$AC:$AC,Sheet1!S71_ItemType,$AD:$AD)","v":0},null,null,null,null,null,null,null,null,null,null,null,null,null,null,null,null,null,146,"IR"]
[{"$f":"IF(RIGHT('Org structure'!D152,18)<>\"[Name of sub-vote]\",'Org structure'!D152,\"\")","v":""},null,{"$f":"SUMIFS(Sheet1!S71_PPPYearAmount,Sheet1!S71_SubMunicipalVoteNo,$AC:$AC,Sheet1!S71_ItemType,$AD:$AD)","v":0},{"$f":"SUMIFS(Sheet1!S71_PPYearAmount,Sheet1!S71_SubMunicipalVoteNo,$AC:$AC,Sheet1!S71_ItemType,$AD:$AD)","v":0},{"$f":"SUMIFS(Sheet1!S71_PYearAmount,Sheet1!S71_SubMunicipalVoteNo,$AC:$AC,Sheet1!S71_ItemType,$AD:$AD)","v":0},{"$f":"-SUMIFS(Sheet1!S71_OriginalBudAmnt,Sheet1!S71_SubMunicipalVoteNo,$AC:$AC,Sheet1!S71_ItemType,$AD:$AD)","v":0},{"$f":"-SUMIFS(Sheet1!S71_AdjustmentBudAmnt,Sheet1!S71_SubMunicipalVoteNo,$AC:$AC,Sheet1!S71_ItemType,$AD:$AD)","v":0},{"$f":"-SUMIFS(Sheet1!S71_AdjustmentBudAmnt,Sheet1!S71_SubMunicipalVoteNo,$AC:$AC,Sheet1!S71_ItemType,$AD:$AD)","v":0},{"$f":"-SUMIFS(Sheet1!S71_ASBudgetAmount,Sheet1!S71_SubMunicipalVoteNo,$AC:$AC,Sheet1!S71_ItemType,$AD:$AD)","v":0},{"$f":"-SUMIFS(Sheet1!S71_OY1BudgetAmount,Sheet1!S71_SubMunicipalVoteNo,$AC:$AC,Sheet1!S71_ItemType,$AD:$AD)","v":0},{"$f":"-SUMIFS(Sheet1!S71_OY2BudgetAmount,Sheet1!S71_SubMunicipalVoteNo,$AC:$AC,Sheet1!S71_ItemType,$AD:$AD)","v":0},null,null,null,null,null,null,null,null,null,null,null,null,null,null,null,null,null,147,"IR"]
[{"$f":"IF(RIGHT('Org structure'!D153,18)<>\"[Name of sub-vote]\",'Org structure'!D153,\"\")","v":""},null,{"$f":"SUMIFS(Sheet1!S71_PPPYearAmount,Sheet1!S71_SubMunicipalVoteNo,$AC:$AC,Sheet1!S71_ItemType,$AD:$AD)","v":0},{"$f":"SUMIFS(Sheet1!S71_PPYearAmount,Sheet1!S71_SubMunicipalVoteNo,$AC:$AC,Sheet1!S71_ItemType,$AD:$AD)","v":0},{"$f":"SUMIFS(Sheet1!S71_PYearAmount,Sheet1!S71_SubMunicipalVoteNo,$AC:$AC,Sheet1!S71_ItemType,$AD:$AD)","v":0},{"$f":"-SUMIFS(Sheet1!S71_OriginalBudAmnt,Sheet1!S71_SubMunicipalVoteNo,$AC:$AC,Sheet1!S71_ItemType,$AD:$AD)","v":0},{"$f":"-SUMIFS(Sheet1!S71_AdjustmentBudAmnt,Sheet1!S71_SubMunicipalVoteNo,$AC:$AC,Sheet1!S71_ItemType,$AD:$AD)","v":0},{"$f":"-SUMIFS(Sheet1!S71_AdjustmentBudAmnt,Sheet1!S71_SubMunicipalVoteNo,$AC:$AC,Sheet1!S71_ItemType,$AD:$AD)","v":0},{"$f":"-SUMIFS(Sheet1!S71_ASBudgetAmount,Sheet1!S71_SubMunicipalVoteNo,$AC:$AC,Sheet1!S71_ItemType,$AD:$AD)","v":0},{"$f":"-SUMIFS(Sheet1!S71_OY1BudgetAmount,Sheet1!S71_SubMunicipalVoteNo,$AC:$AC,Sheet1!S71_ItemType,$AD:$AD)","v":0},{"$f":"-SUMIFS(Sheet1!S71_OY2BudgetAmount,Sheet1!S71_SubMunicipalVoteNo,$AC:$AC,Sheet1!S71_ItemType,$AD:$AD)","v":0},null,null,null,null,null,null,null,null,null,null,null,null,null,null,null,null,null,148,"IR"]
[{"$f":"IF(RIGHT('Org structure'!D154,18)<>\"[Name of sub-vote]\",'Org structure'!D154,\"\")","v":""},null,{"$f":"SUMIFS(Sheet1!S71_PPPYearAmount,Sheet1!S71_SubMunicipalVoteNo,$AC:$AC,Sheet1!S71_ItemType,$AD:$AD)","v":0},{"$f":"SUMIFS(Sheet1!S71_PPYearAmount,Sheet1!S71_SubMunicipalVoteNo,$AC:$AC,Sheet1!S71_ItemType,$AD:$AD)","v":0},{"$f":"SUMIFS(Sheet1!S71_PYearAmount,Sheet1!S71_SubMunicipalVoteNo,$AC:$AC,Sheet1!S71_ItemType,$AD:$AD)","v":0},{"$f":"-SUMIFS(Sheet1!S71_OriginalBudAmnt,Sheet1!S71_SubMunicipalVoteNo,$AC:$AC,Sheet1!S71_ItemType,$AD:$AD)","v":0},{"$f":"-SUMIFS(Sheet1!S71_AdjustmentBudAmnt,Sheet1!S71_SubMunicipalVoteNo,$AC:$AC,Sheet1!S71_ItemType,$AD:$AD)","v":0},{"$f":"-SUMIFS(Sheet1!S71_AdjustmentBudAmnt,Sheet1!S71_SubMunicipalVoteNo,$AC:$AC,Sheet1!S71_ItemType,$AD:$AD)","v":0},{"$f":"-SUMIFS(Sheet1!S71_ASBudgetAmount,Sheet1!S71_SubMunicipalVoteNo,$AC:$AC,Sheet1!S71_ItemType,$AD:$AD)","v":0},{"$f":"-SUMIFS(Sheet1!S71_OY1BudgetAmount,Sheet1!S71_SubMunicipalVoteNo,$AC:$AC,Sheet1!S71_ItemType,$AD:$AD)","v":0},{"$f":"-SUMIFS(Sheet1!S71_OY2BudgetAmount,Sheet1!S71_SubMunicipalVoteNo,$AC:$AC,Sheet1!S71_ItemType,$AD:$AD)","v":0},null,null,null,null,null,null,null,null,null,null,null,null,null,null,null,null,null,149,"IR"]
[{"$f":"IF(RIGHT('Org structure'!D155,18)<>\"[Name of sub-vote]\",'Org structure'!D155,\"\")","v":""},null,{"$f":"SUMIFS(Sheet1!S71_PPPYearAmount,Sheet1!S71_SubMunicipalVoteNo,$AC:$AC,Sheet1!S71_ItemType,$AD:$AD)","v":0},{"$f":"SUMIFS(Sheet1!S71_PPYearAmount,Sheet1!S71_SubMunicipalVoteNo,$AC:$AC,Sheet1!S71_ItemType,$AD:$AD)","v":0},{"$f":"SUMIFS(Sheet1!S71_PYearAmount,Sheet1!S71_SubMunicipalVoteNo,$AC:$AC,Sheet1!S71_ItemType,$AD:$AD)","v":0},{"$f":"-SUMIFS(Sheet1!S71_OriginalBudAmnt,Sheet1!S71_SubMunicipalVoteNo,$AC:$AC,Sheet1!S71_ItemType,$AD:$AD)","v":0},{"$f":"-SUMIFS(Sheet1!S71_AdjustmentBudAmnt,Sheet1!S71_SubMunicipalVoteNo,$AC:$AC,Sheet1!S71_ItemType,$AD:$AD)","v":0},{"$f":"-SUMIFS(Sheet1!S71_AdjustmentBudAmnt,Sheet1!S71_SubMunicipalVoteNo,$AC:$AC,Sheet1!S71_ItemType,$AD:$AD)","v":0},{"$f":"-SUMIFS(Sheet1!S71_ASBudgetAmount,Sheet1!S71_SubMunicipalVoteNo,$AC:$AC,Sheet1!S71_ItemType,$AD:$AD)","v":0},{"$f":"-SUMIFS(Sheet1!S71_OY1BudgetAmount,Sheet1!S71_SubMunicipalVoteNo,$AC:$AC,Sheet1!S71_ItemType,$AD:$AD)","v":0},{"$f":"-SUMIFS(Sheet1!S71_OY2BudgetAmount,Sheet1!S71_SubMunicipalVoteNo,$AC:$AC,Sheet1!S71_ItemType,$AD:$AD)","v":0},null,null,null,null,null,null,null,null,null,null,null,null,null,null,null,null,null,1410,"IR"]
[{"$f":"'Org structure'!A16","v":"Vote 15 - [NAME OF VOTE 15]"},null,{"$f":"SUM(C160:C169)","v":0},{"$f":"SUM(D160:D169)","v":0},0,0,0,0,0,0,0]
[{"$f":"IF(RIGHT('Org structure'!D157,18)<>\"[Name of sub-vote]\",'Org structure'!D157,\"\")","v":""},null,{"$f":"SUMIFS(Sheet1!S71_PPPYearAmount,Sheet1!S71_SubMunicipalVoteNo,$AC:$AC,Sheet1!S71_ItemType,$AD:$AD)","v":0},{"$f":"SUMIFS(Sheet1!S71_PPYearAmount,Sheet1!S71_SubMunicipalVoteNo,$AC:$AC,Sheet1!S71_ItemType,$AD:$AD)","v":0},{"$f":"SUMIFS(Sheet1!S71_PYearAmount,Sheet1!S71_SubMunicipalVoteNo,$AC:$AC,Sheet1!S71_ItemType,$AD:$AD)","v":0},{"$f":"-SUMIFS(Sheet1!S71_OriginalBudAmnt,Sheet1!S71_SubMunicipalVoteNo,$AC:$AC,Sheet1!S71_ItemType,$AD:$AD)","v":0},{"$f":"-SUMIFS(Sheet1!S71_AdjustmentBudAmnt,Sheet1!S71_SubMunicipalVoteNo,$AC:$AC,Sheet1!S71_ItemType,$AD:$AD)","v":0},{"$f":"-SUMIFS(Sheet1!S71_AdjustmentBudAmnt,Sheet1!S71_SubMunicipalVoteNo,$AC:$AC,Sheet1!S71_ItemType,$AD:$AD)","v":0},{"$f":"-SUMIFS(Sheet1!S71_ASBudgetAmount,Sheet1!S71_SubMunicipalVoteNo,$AC:$AC,Sheet1!S71_ItemType,$AD:$AD)","v":0},{"$f":"-SUMIFS(Sheet1!S71_OY1BudgetAmount,Sheet1!S71_SubMunicipalVoteNo,$AC:$AC,Sheet1!S71_ItemType,$AD:$AD)","v":0},{"$f":"-SUMIFS(Sheet1!S71_OY2BudgetAmount,Sheet1!S71_SubMunicipalVoteNo,$AC:$AC,Sheet1!S71_ItemType,$AD:$AD)","v":0},null,null,null,null,null,null,null,null,null,null,null,null,null,null,null,null,null,151,"IR"]
[{"$f":"IF(RIGHT('Org structure'!D158,18)<>\"[Name of sub-vote]\",'Org structure'!D158,\"\")","v":""},null,{"$f":"SUMIFS(Sheet1!S71_PPPYearAmount,Sheet1!S71_SubMunicipalVoteNo,$AC:$AC,Sheet1!S71_ItemType,$AD:$AD)","v":0},{"$f":"SUMIFS(Sheet1!S71_PPYearAmount,Sheet1!S71_SubMunicipalVoteNo,$AC:$AC,Sheet1!S71_ItemType,$AD:$AD)","v":0},{"$f":"SUMIFS(Sheet1!S71_PYearAmount,Sheet1!S71_SubMunicipalVoteNo,$AC:$AC,Sheet1!S71_ItemType,$AD:$AD)","v":0},{"$f":"-SUMIFS(Sheet1!S71_OriginalBudAmnt,Sheet1!S71_SubMunicipalVoteNo,$AC:$AC,Sheet1!S71_ItemType,$AD:$AD)","v":0},{"$f":"-SUMIFS(Sheet1!S71_AdjustmentBudAmnt,Sheet1!S71_SubMunicipalVoteNo,$AC:$AC,Sheet1!S71_ItemType,$AD:$AD)","v":0},{"$f":"-SUMIFS(Sheet1!S71_AdjustmentBudAmnt,Sheet1!S71_SubMunicipalVoteNo,$AC:$AC,Sheet1!S71_ItemType,$AD:$AD)","v":0},{"$f":"-SUMIFS(Sheet1!S71_ASBudgetAmount,Sheet1!S71_SubMunicipalVoteNo,$AC:$AC,Sheet1!S71_ItemType,$AD:$AD)","v":0},{"$f":"-SUMIFS(Sheet1!S71_OY1BudgetAmount,Sheet1!S71_SubMunicipalVoteNo,$AC:$AC,Sheet1!S71_ItemType,$AD:$AD)","v":0},{"$f":"-SUMIFS(Sheet1!S71_OY2BudgetAmount,Sheet1!S71_SubMunicipalVoteNo,$AC:$AC,Sheet1!S71_ItemType,$AD:$AD)","v":0},null,null,null,null,null,null,null,null,null,null,null,null,null,null,null,null,null,152,"IR"]
[{"$f":"IF(RIGHT('Org structure'!D159,18)<>\"[Name of sub-vote]\",'Org structure'!D159,\"\")","v":""},null,{"$f":"SUMIFS(Sheet1!S71_PPPYearAmount,Sheet1!S71_SubMunicipalVoteNo,$AC:$AC,Sheet1!S71_ItemType,$AD:$AD)","v":0},{"$f":"SUMIFS(Sheet1!S71_PPYearAmount,Sheet1!S71_SubMunicipalVoteNo,$AC:$AC,Sheet1!S71_ItemType,$AD:$AD)","v":0},{"$f":"SUMIFS(Sheet1!S71_PYearAmount,Sheet1!S71_SubMunicipalVoteNo,$AC:$AC,Sheet1!S71_ItemType,$AD:$AD)","v":0},{"$f":"-SUMIFS(Sheet1!S71_OriginalBudAmnt,Sheet1!S71_SubMunicipalVoteNo,$AC:$AC,Sheet1!S71_ItemType,$AD:$AD)","v":0},{"$f":"-SUMIFS(Sheet1!S71_AdjustmentBudAmnt,Sheet1!S71_SubMunicipalVoteNo,$AC:$AC,Sheet1!S71_ItemType,$AD:$AD)","v":0},{"$f":"-SUMIFS(Sheet1!S71_AdjustmentBudAmnt,Sheet1!S71_SubMunicipalVoteNo,$AC:$AC,Sheet1!S71_ItemType,$AD:$AD)","v":0},{"$f":"-SUMIFS(Sheet1!S71_ASBudgetAmount,Sheet1!S71_SubMunicipalVoteNo,$AC:$AC,Sheet1!S71_ItemType,$AD:$AD)","v":0},{"$f":"-SUMIFS(Sheet1!S71_OY1BudgetAmount,Sheet1!S71_SubMunicipalVoteNo,$AC:$AC,Sheet1!S71_ItemType,$AD:$AD)","v":0},{"$f":"-SUMIFS(Sheet1!S71_OY2BudgetAmount,Sheet1!S71_SubMunicipalVoteNo,$AC:$AC,Sheet1!S71_ItemType,$AD:$AD)","v":0},null,null,null,null,null,null,null,null,null,null,null,null,null,null,null,null,null,153,"IR"]
[{"$f":"IF(RIGHT('Org structure'!D160,18)<>\"[Name of sub-vote]\",'Org structure'!D160,\"\")","v":""},null,{"$f":"SUMIFS(Sheet1!S71_PPPYearAmount,Sheet1!S71_SubMunicipalVoteNo,$AC:$AC,Sheet1!S71_ItemType,$AD:$AD)","v":0},{"$f":"SUMIFS(Sheet1!S71_PPYearAmount,Sheet1!S71_SubMunicipalVoteNo,$AC:$AC,Sheet1!S71_ItemType,$AD:$AD)","v":0},{"$f":"SUMIFS(Sheet1!S71_PYearAmount,Sheet1!S71_SubMunicipalVoteNo,$AC:$AC,Sheet1!S71_ItemType,$AD:$AD)","v":0},{"$f":"-SUMIFS(Sheet1!S71_OriginalBudAmnt,Sheet1!S71_SubMunicipalVoteNo,$AC:$AC,Sheet1!S71_ItemType,$AD:$AD)","v":0},{"$f":"-SUMIFS(Sheet1!S71_AdjustmentBudAmnt,Sheet1!S71_SubMunicipalVoteNo,$AC:$AC,Sheet1!S71_ItemType,$AD:$AD)","v":0},{"$f":"-SUMIFS(Sheet1!S71_AdjustmentBudAmnt,Sheet1!S71_SubMunicipalVoteNo,$AC:$AC,Sheet1!S71_ItemType,$AD:$AD)","v":0},{"$f":"-SUMIFS(Sheet1!S71_ASBudgetAmount,Sheet1!S71_SubMunicipalVoteNo,$AC:$AC,Sheet1!S71_ItemType,$AD:$AD)","v":0},{"$f":"-SUMIFS(Sheet1!S71_OY1BudgetAmount,Sheet1!S71_SubMunicipalVoteNo,$AC:$AC,Sheet1!S71_ItemType,$AD:$AD)","v":0},{"$f":"-SUMIFS(Sheet1!S71_OY2BudgetAmount,Sheet1!S71_SubMunicipalVoteNo,$AC:$AC,Sheet1!S71_ItemType,$AD:$AD)","v":0},null,null,null,null,null,null,null,null,null,null,null,null,null,null,null,null,null,154,"IR"]
[{"$f":"IF(RIGHT('Org structure'!D161,18)<>\"[Name of sub-vote]\",'Org structure'!D161,\"\")","v":""},null,{"$f":"SUMIFS(Sheet1!S71_PPPYearAmount,Sheet1!S71_SubMunicipalVoteNo,$AC:$AC,Sheet1!S71_ItemType,$AD:$AD)","v":0},{"$f":"SUMIFS(Sheet1!S71_PPYearAmount,Sheet1!S71_SubMunicipalVoteNo,$AC:$AC,Sheet1!S71_ItemType,$AD:$AD)","v":0},{"$f":"SUMIFS(Sheet1!S71_PYearAmount,Sheet1!S71_SubMunicipalVoteNo,$AC:$AC,Sheet1!S71_ItemType,$AD:$AD)","v":0},{"$f":"-SUMIFS(Sheet1!S71_OriginalBudAmnt,Sheet1!S71_SubMunicipalVoteNo,$AC:$AC,Sheet1!S71_ItemType,$AD:$AD)","v":0},{"$f":"-SUMIFS(Sheet1!S71_AdjustmentBudAmnt,Sheet1!S71_SubMunicipalVoteNo,$AC:$AC,Sheet1!S71_ItemType,$AD:$AD)","v":0},{"$f":"-SUMIFS(Sheet1!S71_AdjustmentBudAmnt,Sheet1!S71_SubMunicipalVoteNo,$AC:$AC,Sheet1!S71_ItemType,$AD:$AD)","v":0},{"$f":"-SUMIFS(Sheet1!S71_ASBudgetAmount,Sheet1!S71_SubMunicipalVoteNo,$AC:$AC,Sheet1!S71_ItemType,$AD:$AD)","v":0},{"$f":"-SUMIFS(Sheet1!S71_OY1BudgetAmount,Sheet1!S71_SubMunicipalVoteNo,$AC:$AC,Sheet1!S71_ItemType,$AD:$AD)","v":0},{"$f":"-SUMIFS(Sheet1!S71_OY2BudgetAmount,Sheet1!S71_SubMunicipalVoteNo,$AC:$AC,Sheet1!S71_ItemType,$AD:$AD)","v":0},null,null,null,null,null,null,null,null,null,null,null,null,null,null,null,null,null,155,"IR"]
[{"$f":"IF(RIGHT('Org structure'!D162,18)<>\"[Name of sub-vote]\",'Org structure'!D162,\"\")","v":""},null,{"$f":"SUMIFS(Sheet1!S71_PPPYearAmount,Sheet1!S71_SubMunicipalVoteNo,$AC:$AC,Sheet1!S71_ItemType,$AD:$AD)","v":0},{"$f":"SUMIFS(Sheet1!S71_PPYearAmount,Sheet1!S71_SubMunicipalVoteNo,$AC:$AC,Sheet1!S71_ItemType,$AD:$AD)","v":0},{"$f":"SUMIFS(Sheet1!S71_PYearAmount,Sheet1!S71_SubMunicipalVoteNo,$AC:$AC,Sheet1!S71_ItemType,$AD:$AD)","v":0},{"$f":"-SUMIFS(Sheet1!S71_OriginalBudAmnt,Sheet1!S71_SubMunicipalVoteNo,$AC:$AC,Sheet1!S71_ItemType,$AD:$AD)","v":0},{"$f":"-SUMIFS(Sheet1!S71_AdjustmentBudAmnt,Sheet1!S71_SubMunicipalVoteNo,$AC:$AC,Sheet1!S71_ItemType,$AD:$AD)","v":0},{"$f":"-SUMIFS(Sheet1!S71_AdjustmentBudAmnt,Sheet1!S71_SubMunicipalVoteNo,$AC:$AC,Sheet1!S71_ItemType,$AD:$AD)","v":0},{"$f":"-SUMIFS(Sheet1!S71_ASBudgetAmount,Sheet1!S71_SubMunicipalVoteNo,$AC:$AC,Sheet1!S71_ItemType,$AD:$AD)","v":0},{"$f":"-SUMIFS(Sheet1!S71_OY1BudgetAmount,Sheet1!S71_SubMunicipalVoteNo,$AC:$AC,Sheet1!S71_ItemType,$AD:$AD)","v":0},{"$f":"-SUMIFS(Sheet1!S71_OY2BudgetAmount,Sheet1!S71_SubMunicipalVoteNo,$AC:$AC,Sheet1!S71_ItemType,$AD:$AD)","v":0},null,null,null,null,null,null,null,null,null,null,null,null,null,null,null,null,null,156,"IR"]
[{"$f":"IF(RIGHT('Org structure'!D163,18)<>\"[Name of sub-vote]\",'Org structure'!D163,\"\")","v":""},null,{"$f":"SUMIFS(Sheet1!S71_PPPYearAmount,Sheet1!S71_SubMunicipalVoteNo,$AC:$AC,Sheet1!S71_ItemType,$AD:$AD)","v":0},{"$f":"SUMIFS(Sheet1!S71_PPYearAmount,Sheet1!S71_SubMunicipalVoteNo,$AC:$AC,Sheet1!S71_ItemType,$AD:$AD)","v":0},{"$f":"SUMIFS(Sheet1!S71_PYearAmount,Sheet1!S71_SubMunicipalVoteNo,$AC:$AC,Sheet1!S71_ItemType,$AD:$AD)","v":0},{"$f":"-SUMIFS(Sheet1!S71_OriginalBudAmnt,Sheet1!S71_SubMunicipalVoteNo,$AC:$AC,Sheet1!S71_ItemType,$AD:$AD)","v":0},{"$f":"-SUMIFS(Sheet1!S71_AdjustmentBudAmnt,Sheet1!S71_SubMunicipalVoteNo,$AC:$AC,Sheet1!S71_ItemType,$AD:$AD)","v":0},{"$f":"-SUMIFS(Sheet1!S71_AdjustmentBudAmnt,Sheet1!S71_SubMunicipalVoteNo,$AC:$AC,Sheet1!S71_ItemType,$AD:$AD)","v":0},{"$f":"-SUMIFS(Sheet1!S71_ASBudgetAmount,Sheet1!S71_SubMunicipalVoteNo,$AC:$AC,Sheet1!S71_ItemType,$AD:$AD)","v":0},{"$f":"-SUMIFS(Sheet1!S71_OY1BudgetAmount,Sheet1!S71_SubMunicipalVoteNo,$AC:$AC,Sheet1!S71_ItemType,$AD:$AD)","v":0},{"$f":"-SUMIFS(Sheet1!S71_OY2BudgetAmount,Sheet1!S71_SubMunicipalVoteNo,$AC:$AC,Sheet1!S71_ItemType,$AD:$AD)","v":0},null,null,null,null,null,null,null,null,null,null,null,null,null,null,null,null,null,157,"IR"]
[{"$f":"IF(RIGHT('Org structure'!D164,18)<>\"[Name of sub-vote]\",'Org structure'!D164,\"\")","v":""},null,{"$f":"SUMIFS(Sheet1!S71_PPPYearAmount,Sheet1!S71_SubMunicipalVoteNo,$AC:$AC,Sheet1!S71_ItemType,$AD:$AD)","v":0},{"$f":"SUMIFS(Sheet1!S71_PPYearAmount,Sheet1!S71_SubMunicipalVoteNo,$AC:$AC,Sheet1!S71_ItemType,$AD:$AD)","v":0},{"$f":"SUMIFS(Sheet1!S71_PYearAmount,Sheet1!S71_SubMunicipalVoteNo,$AC:$AC,Sheet1!S71_ItemType,$AD:$AD)","v":0},{"$f":"-SUMIFS(Sheet1!S71_OriginalBudAmnt,Sheet1!S71_SubMunicipalVoteNo,$AC:$AC,Sheet1!S71_ItemType,$AD:$AD)","v":0},{"$f":"-SUMIFS(Sheet1!S71_AdjustmentBudAmnt,Sheet1!S71_SubMunicipalVoteNo,$AC:$AC,Sheet1!S71_ItemType,$AD:$AD)","v":0},{"$f":"-SUMIFS(Sheet1!S71_AdjustmentBudAmnt,Sheet1!S71_SubMunicipalVoteNo,$AC:$AC,Sheet1!S71_ItemType,$AD:$AD)","v":0},{"$f":"-SUMIFS(Sheet1!S71_ASBudgetAmount,Sheet1!S71_SubMunicipalVoteNo,$AC:$AC,Sheet1!S71_ItemType,$AD:$AD)","v":0},{"$f":"-SUMIFS(Sheet1!S71_OY1BudgetAmount,Sheet1!S71_SubMunicipalVoteNo,$AC:$AC,Sheet1!S71_ItemType,$AD:$AD)","v":0},{"$f":"-SUMIFS(Sheet1!S71_OY2BudgetAmount,Sheet1!S71_SubMunicipalVoteNo,$AC:$AC,Sheet1!S71_ItemType,$AD:$AD)","v":0},null,null,null,null,null,null,null,null,null,null,null,null,null,null,null,null,null,158,"IR"]
[{"$f":"IF(RIGHT('Org structure'!D165,18)<>\"[Name of sub-vote]\",'Org structure'!D165,\"\")","v":""},null,{"$f":"SUMIFS(Sheet1!S71_PPPYearAmount,Sheet1!S71_SubMunicipalVoteNo,$AC:$AC,Sheet1!S71_ItemType,$AD:$AD)","v":0},{"$f":"SUMIFS(Sheet1!S71_PPYearAmount,Sheet1!S71_SubMunicipalVoteNo,$AC:$AC,Sheet1!S71_ItemType,$AD:$AD)","v":0},{"$f":"SUMIFS(Sheet1!S71_PYearAmount,Sheet1!S71_SubMunicipalVoteNo,$AC:$AC,Sheet1!S71_ItemType,$AD:$AD)","v":0},{"$f":"-SUMIFS(Sheet1!S71_OriginalBudAmnt,Sheet1!S71_SubMunicipalVoteNo,$AC:$AC,Sheet1!S71_ItemType,$AD:$AD)","v":0},{"$f":"-SUMIFS(Sheet1!S71_AdjustmentBudAmnt,Sheet1!S71_SubMunicipalVoteNo,$AC:$AC,Sheet1!S71_ItemType,$AD:$AD)","v":0},{"$f":"-SUMIFS(Sheet1!S71_AdjustmentBudAmnt,Sheet1!S71_SubMunicipalVoteNo,$AC:$AC,Sheet1!S71_ItemType,$AD:$AD)","v":0},{"$f":"-SUMIFS(Sheet1!S71_ASBudgetAmount,Sheet1!S71_SubMunicipalVoteNo,$AC:$AC,Sheet1!S71_ItemType,$AD:$AD)","v":0},{"$f":"-SUMIFS(Sheet1!S71_OY1BudgetAmount,Sheet1!S71_SubMunicipalVoteNo,$AC:$AC,Sheet1!S71_ItemType,$AD:$AD)","v":0},{"$f":"-SUMIFS(Sheet1!S71_OY2BudgetAmount,Sheet1!S71_SubMunicipalVoteNo,$AC:$AC,Sheet1!S71_ItemType,$AD:$AD)","v":0},null,null,null,null,null,null,null,null,null,null,null,null,null,null,null,null,null,159,"IR"]
[{"$f":"IF(RIGHT('Org structure'!D166,18)<>\"[Name of sub-vote]\",'Org structure'!D166,\"\")","v":""},null,{"$f":"SUMIFS(Sheet1!S71_PPPYearAmount,Sheet1!S71_SubMunicipalVoteNo,$AC:$AC,Sheet1!S71_ItemType,$AD:$AD)","v":0},{"$f":"SUMIFS(Sheet1!S71_PPYearAmount,Sheet1!S71_SubMunicipalVoteNo,$AC:$AC,Sheet1!S71_ItemType,$AD:$AD)","v":0},{"$f":"SUMIFS(Sheet1!S71_PYearAmount,Sheet1!S71_SubMunicipalVoteNo,$AC:$AC,Sheet1!S71_ItemType,$AD:$AD)","v":0},{"$f":"-SUMIFS(Sheet1!S71_OriginalBudAmnt,Sheet1!S71_SubMunicipalVoteNo,$AC:$AC,Sheet1!S71_ItemType,$AD:$AD)","v":0},{"$f":"-SUMIFS(Sheet1!S71_AdjustmentBudAmnt,Sheet1!S71_SubMunicipalVoteNo,$AC:$AC,Sheet1!S71_ItemType,$AD:$AD)","v":0},{"$f":"-SUMIFS(Sheet1!S71_AdjustmentBudAmnt,Sheet1!S71_SubMunicipalVoteNo,$AC:$AC,Sheet1!S71_ItemType,$AD:$AD)","v":0},{"$f":"-SUMIFS(Sheet1!S71_ASBudgetAmount,Sheet1!S71_SubMunicipalVoteNo,$AC:$AC,Sheet1!S71_ItemType,$AD:$AD)","v":0},{"$f":"-SUMIFS(Sheet1!S71_OY1BudgetAmount,Sheet1!S71_SubMunicipalVoteNo,$AC:$AC,Sheet1!S71_ItemType,$AD:$AD)","v":0},{"$f":"-SUMIFS(Sheet1!S71_OY2BudgetAmount,Sheet1!S71_SubMunicipalVoteNo,$AC:$AC,Sheet1!S71_ItemType,$AD:$AD)","v":0},null,null,null,null,null,null,null,null,null,null,null,null,null,null,null,null,null,1510,"IR"]
["Total Revenue by Vote",2,{"$f":"C5+C16+C27+C38+C49+C60+C71+C82+C93+C104+C115+C126+C137+C148+C159","v":0},68965758,67962784,67946987,69688183,69688183,63471183,68748000,70151999,{"$f":"SUM(L78:L81)","v":0},0,0,0,0,0,0,0,0,0,0,0]
[]
["Expenditure by Vote",1]
[{"$f":"A5","v":"Vote 1 - Executive and Council"},null,{"$f":"SUM(C174:C183)","v":0},15725174,15336236,16002895,15536359,15536359,13776650,15327072,15718132]
["1.1 - Mayor and Council",null,{"$f":"SUMIFS(Sheet1!S71_PPPYearAmount,Sheet1!S71_SubMunicipalVoteNo,$AC:$AC,Sheet1!S71_ItemType,$AD:$AD)","v":0},{"$f":"SUMIFS(Sheet1!S71_PPYearAmount,Sheet1!S71_SubMunicipalVoteNo,$AC:$AC,Sheet1!S71_ItemType,$AD:$AD)","v":5436075},{"$f":"SUMIFS(Sheet1!S71_PYearAmount,Sheet1!S71_SubMunicipalVoteNo,$AC:$AC,Sheet1!S71_ItemType,$AD:$AD)","v":6053679},{"$f":"SUMIFS(Sheet1!S71_OriginalBudAmnt,Sheet1!S71_SubMunicipalVoteNo,$AC:$AC,Sheet1!S71_ItemType,$AD:$AD)","v":5488415},{"$f":"SUMIFS(Sheet1!S71_AdjustmentBudAmnt,Sheet1!S71_SubMunicipalVoteNo,$AC:$AC,Sheet1!S71_ItemType,$AD:$AD)","v":5661915},{"$f":"SUMIFS(Sheet1!S71_AdjustmentBudAmnt,Sheet1!S71_SubMunicipalVoteNo,$AC:$AC,Sheet1!S71_ItemType,$AD:$AD)","v":5661915},{"$f":"SUMIFS(Sheet1!S71_ASBudgetAmount,Sheet1!S71_SubMunicipalVoteNo,$AC:$AC,Sheet1!S71_ItemType,$AD:$AD)","v":5466415},{"$f":"SUMIFS(Sheet1!S71_OY1BudgetAmount,Sheet1!S71_SubMunicipalVoteNo,$AC:$AC,Sheet1!S71_ItemType,$AD:$AD)","v":5831269},{"$f":"SUMIFS(Sheet1!S71_OY2BudgetAmount,Sheet1!S71_SubMunicipalVoteNo,$AC:$AC,Sheet1!S71_ItemType,$AD:$AD)","v":5915192},null,null,null,null,null,null,null,null,null,null,null,null,null,null,null,null,null,11,"IE"]
["1.2 - Municipal Manager, Town Secretary and Chief Executive",null,{"$f":"SUMIFS(Sheet1!S71_PPPYearAmount,Sheet1!S71_SubMunicipalVoteNo,$AC:$AC,Sheet1!S71_ItemType,$AD:$AD)","v":0},{"$f":"SUMIFS(Sheet1!S71_PPYearAmount,Sheet1!S71_SubMunicipalVoteNo,$AC:$AC,Sheet1!S71_ItemType,$AD:$AD)","v":10289099},{"$f":"SUMIFS(Sheet1!S71_PYearAmount,Sheet1!S71_SubMunicipalVoteNo,$AC:$AC,Sheet1!S71_ItemType,$AD:$AD)","v":9282557},{"$f":"SUMIFS(Sheet1!S71_OriginalBudAmnt,Sheet1!S71_SubMunicipalVoteNo,$AC:$AC,Sheet1!S71_ItemType,$AD:$AD)","v":10514480},{"$f":"SUMIFS(Sheet1!S71_AdjustmentBudAmnt,Sheet1!S71_SubMunicipalVoteNo,$AC:$AC,Sheet1!S71_ItemType,$AD:$AD)","v":9874444},{"$f":"SUMIFS(Sheet1!S71_AdjustmentBudAmnt,Sheet1!S71_SubMunicipalVoteNo,$AC:$AC,Sheet1!S71_ItemType,$AD:$AD)","v":9874444},{"$f":"SUMIFS(Sheet1!S71_ASBudgetAmount,Sheet1!S71_SubMunicipalVoteNo,$AC:$AC,Sheet1!S71_ItemType,$AD:$AD)","v":8310235},{"$f":"SUMIFS(Sheet1!S71_OY1BudgetAmount,Sheet1!S71_SubMunicipalVoteNo,$AC:$AC,Sheet1!S71_ItemType,$AD:$AD)","v":9495803},{"$f":"SUMIFS(Sheet1!S71_OY2BudgetAmount,Sheet1!S71_SubMunicipalVoteNo,$AC:$AC,Sheet1!S71_ItemType,$AD:$AD)","v":9802940},null,null,null,null,null,null,null,null,null,null,null,null,null,null,null,null,null,12,"IE"]
["",null,{"$f":"SUMIFS(Sheet1!S71_PPPYearAmount,Sheet1!S71_SubMunicipalVoteNo,$AC:$AC,Sheet1!S71_ItemType,$AD:$AD)","v":0},{"$f":"SUMIFS(Sheet1!S71_PPYearAmount,Sheet1!S71_SubMunicipalVoteNo,$AC:$AC,Sheet1!S71_ItemType,$AD:$AD)","v":0},{"$f":"SUMIFS(Sheet1!S71_PYearAmount,Sheet1!S71_SubMunicipalVoteNo,$AC:$AC,Sheet1!S71_ItemType,$AD:$AD)","v":0},{"$f":"SUMIFS(Sheet1!S71_OriginalBudAmnt,Sheet1!S71_SubMunicipalVoteNo,$AC:$AC,Sheet1!S71_ItemType,$AD:$AD)","v":0},{"$f":"SUMIFS(Sheet1!S71_AdjustmentBudAmnt,Sheet1!S71_SubMunicipalVoteNo,$AC:$AC,Sheet1!S71_ItemType,$AD:$AD)","v":0},{"$f":"SUMIFS(Sheet1!S71_AdjustmentBudAmnt,Sheet1!S71_SubMunicipalVoteNo,$AC:$AC,Sheet1!S71_ItemType,$AD:$AD)","v":0},{"$f":"SUMIFS(Sheet1!S71_ASBudgetAmount,Sheet1!S71_SubMunicipalVoteNo,$AC:$AC,Sheet1!S71_ItemType,$AD:$AD)","v":0},{"$f":"SUMIFS(Sheet1!S71_OY1BudgetAmount,Sheet1!S71_SubMunicipalVoteNo,$AC:$AC,Sheet1!S71_ItemType,$AD:$AD)","v":0},{"$f":"SUMIFS(Sheet1!S71_OY2BudgetAmount,Sheet1!S71_SubMunicipalVoteNo,$AC:$AC,Sheet1!S71_ItemType,$AD:$AD)","v":0},null,null,null,null,null,null,null,null,null,null,null,null,null,null,null,null,null,13,"IE"]
["",null,{"$f":"SUMIFS(Sheet1!S71_PPPYearAmount,Sheet1!S71_SubMunicipalVoteNo,$AC:$AC,Sheet1!S71_ItemType,$AD:$AD)","v":0},{"$f":"SUMIFS(Sheet1!S71_PPYearAmount,Sheet1!S71_SubMunicipalVoteNo,$AC:$AC,Sheet1!S71_ItemType,$AD:$AD)","v":0},{"$f":"SUMIFS(Sheet1!S71_PYearAmount,Sheet1!S71_SubMunicipalVoteNo,$AC:$AC,Sheet1!S71_ItemType,$AD:$AD)","v":0},{"$f":"SUMIFS(Sheet1!S71_OriginalBudAmnt,Sheet1!S71_SubMunicipalVoteNo,$AC:$AC,Sheet1!S71_ItemType,$AD:$AD)","v":0},{"$f":"SUMIFS(Sheet1!S71_AdjustmentBudAmnt,Sheet1!S71_SubMunicipalVoteNo,$AC:$AC,Sheet1!S71_ItemType,$AD:$AD)","v":0},{"$f":"SUMIFS(Sheet1!S71_AdjustmentBudAmnt,Sheet1!S71_SubMunicipalVoteNo,$AC:$AC,Sheet1!S71_ItemType,$AD:$AD)","v":0},{"$f":"SUMIFS(Sheet1!S71_ASBudgetAmount,Sheet1!S71_SubMunicipalVoteNo,$AC:$AC,Sheet1!S71_ItemType,$AD:$AD)","v":0},{"$f":"SUMIFS(Sheet1!S71_OY1BudgetAmount,Sheet1!S71_SubMunicipalVoteNo,$AC:$AC,Sheet1!S71_ItemType,$AD:$AD)","v":0},{"$f":"SUMIFS(Sheet1!S71_OY2BudgetAmount,Sheet1!S71_SubMunicipalVoteNo,$AC:$AC,Sheet1!S71_ItemType,$AD:$AD)","v":0},null,null,null,null,null,null,null,null,null,null,null,null,null,null,null,null,null,14,"IE"]
["",null,{"$f":"SUMIFS(Sheet1!S71_PPPYearAmount,Sheet1!S71_SubMunicipalVoteNo,$AC:$AC,Sheet1!S71_ItemType,$AD:$AD)","v":0},{"$f":"SUMIFS(Sheet1!S71_PPYearAmount,Sheet1!S71_SubMunicipalVoteNo,$AC:$AC,Sheet1!S71_ItemType,$AD:$AD)","v":0},{"$f":"SUMIFS(Sheet1!S71_PYearAmount,Sheet1!S71_SubMunicipalVoteNo,$AC:$AC,Sheet1!S71_ItemType,$AD:$AD)","v":0},{"$f":"SUMIFS(Sheet1!S71_OriginalBudAmnt,Sheet1!S71_SubMunicipalVoteNo,$AC:$AC,Sheet1!S71_ItemType,$AD:$AD)","v":0},{"$f":"SUMIFS(Sheet1!S71_AdjustmentBudAmnt,Sheet1!S71_SubMunicipalVoteNo,$AC:$AC,Sheet1!S71_ItemType,$AD:$AD)","v":0},{"$f":"SUMIFS(Sheet1!S71_AdjustmentBudAmnt,Sheet1!S71_SubMunicipalVoteNo,$AC:$AC,Sheet1!S71_ItemType,$AD:$AD)","v":0},{"$f":"SUMIFS(Sheet1!S71_ASBudgetAmount,Sheet1!S71_SubMunicipalVoteNo,$AC:$AC,Sheet1!S71_ItemType,$AD:$AD)","v":0},{"$f":"SUMIFS(Sheet1!S71_OY1BudgetAmount,Sheet1!S71_SubMunicipalVoteNo,$AC:$AC,Sheet1!S71_ItemType,$AD:$AD)","v":0},{"$f":"SUMIFS(Sheet1!S71_OY2BudgetAmount,Sheet1!S71_SubMunicipalVoteNo,$AC:$AC,Sheet1!S71_ItemType,$AD:$AD)","v":0},null,null,null,null,null,null,null,null,null,null,null,null,null,null,null,null,null,15,"IE"]
["",null,{"$f":"SUMIFS(Sheet1!S71_PPPYearAmount,Sheet1!S71_SubMunicipalVoteNo,$AC:$AC,Sheet1!S71_ItemType,$AD:$AD)","v":0},{"$f":"SUMIFS(Sheet1!S71_PPYearAmount,Sheet1!S71_SubMunicipalVoteNo,$AC:$AC,Sheet1!S71_ItemType,$AD:$AD)","v":0},{"$f":"SUMIFS(Sheet1!S71_PYearAmount,Sheet1!S71_SubMunicipalVoteNo,$AC:$AC,Sheet1!S71_ItemType,$AD:$AD)","v":0},{"$f":"SUMIFS(Sheet1!S71_OriginalBudAmnt,Sheet1!S71_SubMunicipalVoteNo,$AC:$AC,Sheet1!S71_ItemType,$AD:$AD)","v":0},{"$f":"SUMIFS(Sheet1!S71_AdjustmentBudAmnt,Sheet1!S71_SubMunicipalVoteNo,$AC:$AC,Sheet1!S71_ItemType,$AD:$AD)","v":0},{"$f":"SUMIFS(Sheet1!S71_AdjustmentBudAmnt,Sheet1!S71_SubMunicipalVoteNo,$AC:$AC,Sheet1!S71_ItemType,$AD:$AD)","v":0},{"$f":"SUMIFS(Sheet1!S71_ASBudgetAmount,Sheet1!S71_SubMunicipalVoteNo,$AC:$AC,Sheet1!S71_ItemType,$AD:$AD)","v":0},{"$f":"SUMIFS(Sheet1!S71_OY1BudgetAmount,Sheet1!S71_SubMunicipalVoteNo,$AC:$AC,Sheet1!S71_ItemType,$AD:$AD)","v":0},{"$f":"SUMIFS(Sheet1!S71_OY2BudgetAmount,Sheet1!S71_SubMunicipalVoteNo,$AC:$AC,Sheet1!S71_ItemType,$AD:$AD)","v":0},null,null,null,null,null,null,null,null,null,null,null,null,null,null,null,null,null,16,"IE"]
["",null,{"$f":"SUMIFS(Sheet1!S71_PPPYearAmount,Sheet1!S71_SubMunicipalVoteNo,$AC:$AC,Sheet1!S71_ItemType,$AD:$AD)","v":0},{"$f":"SUMIFS(Sheet1!S71_PPYearAmount,Sheet1!S71_SubMunicipalVoteNo,$AC:$AC,Sheet1!S71_ItemType,$AD:$AD)","v":0},{"$f":"SUMIFS(Sheet1!S71_PYearAmount,Sheet1!S71_SubMunicipalVoteNo,$AC:$AC,Sheet1!S71_ItemType,$AD:$AD)","v":0},{"$f":"SUMIFS(Sheet1!S71_OriginalBudAmnt,Sheet1!S71_SubMunicipalVoteNo,$AC:$AC,Sheet1!S71_ItemType,$AD:$AD)","v":0},{"$f":"SUMIFS(Sheet1!S71_AdjustmentBudAmnt,Sheet1!S71_SubMunicipalVoteNo,$AC:$AC,Sheet1!S71_ItemType,$AD:$AD)","v":0},{"$f":"SUMIFS(Sheet1!S71_AdjustmentBudAmnt,Sheet1!S71_SubMunicipalVoteNo,$AC:$AC,Sheet1!S71_ItemType,$AD:$AD)","v":0},{"$f":"SUMIFS(Sheet1!S71_ASBudgetAmount,Sheet1!S71_SubMunicipalVoteNo,$AC:$AC,Sheet1!S71_ItemType,$AD:$AD)","v":0},{"$f":"SUMIFS(Sheet1!S71_OY1BudgetAmount,Sheet1!S71_SubMunicipalVoteNo,$AC:$AC,Sheet1!S71_ItemType,$AD:$AD)","v":0},{"$f":"SUMIFS(Sheet1!S71_OY2BudgetAmount,Sheet1!S71_SubMunicipalVoteNo,$AC:$AC,Sheet1!S71_ItemType,$AD:$AD)","v":0},null,null,null,null,null,null,null,null,null,null,null,null,null,null,null,null,null,17,"IE"]
["",null,{"$f":"SUMIFS(Sheet1!S71_PPPYearAmount,Sheet1!S71_SubMunicipalVoteNo,$AC:$AC,Sheet1!S71_ItemType,$AD:$AD)","v":0},{"$f":"SUMIFS(Sheet1!S71_PPYearAmount,Sheet1!S71_SubMunicipalVoteNo,$AC:$AC,Sheet1!S71_ItemType,$AD:$AD)","v":0},{"$f":"SUMIFS(Sheet1!S71_PYearAmount,Sheet1!S71_SubMunicipalVoteNo,$AC:$AC,Sheet1!S71_ItemType,$AD:$AD)","v":0},{"$f":"SUMIFS(Sheet1!S71_OriginalBudAmnt,Sheet1!S71_SubMunicipalVoteNo,$AC:$AC,Sheet1!S71_ItemType,$AD:$AD)","v":0},{"$f":"SUMIFS(Sheet1!S71_AdjustmentBudAmnt,Sheet1!S71_SubMunicipalVoteNo,$AC:$AC,Sheet1!S71_ItemType,$AD:$AD)","v":0},{"$f":"SUMIFS(Sheet1!S71_AdjustmentBudAmnt,Sheet1!S71_SubMunicipalVoteNo,$AC:$AC,Sheet1!S71_ItemType,$AD:$AD)","v":0},{"$f":"SUMIFS(Sheet1!S71_ASBudgetAmount,Sheet1!S71_SubMunicipalVoteNo,$AC:$AC,Sheet1!S71_ItemType,$AD:$AD)","v":0},{"$f":"SUMIFS(Sheet1!S71_OY1BudgetAmount,Sheet1!S71_SubMunicipalVoteNo,$AC:$AC,Sheet1!S71_ItemType,$AD:$AD)","v":0},{"$f":"SUMIFS(Sheet1!S71_OY2BudgetAmount,Sheet1!S71_SubMunicipalVoteNo,$AC:$AC,Sheet1!S71_ItemType,$AD:$AD)","v":0},null,null,null,null,null,null,null,null,null,null,null,null,null,null,null,null,null,18,"IE"]
["",null,{"$f":"SUMIFS(Sheet1!S71_PPPYearAmount,Sheet1!S71_SubMunicipalVoteNo,$AC:$AC,Sheet1!S71_ItemType,$AD:$AD)","v":0},{"$f":"SUMIFS(Sheet1!S71_PPYearAmount,Sheet1!S71_SubMunicipalVoteNo,$AC:$AC,Sheet1!S71_ItemType,$AD:$AD)","v":0},{"$f":"SUMIFS(Sheet1!S71_PYearAmount,Sheet1!S71_SubMunicipalVoteNo,$AC:$AC,Sheet1!S71_ItemType,$AD:$AD)","v":0},{"$f":"SUMIFS(Sheet1!S71_OriginalBudAmnt,Sheet1!S71_SubMunicipalVoteNo,$AC:$AC,Sheet1!S71_ItemType,$AD:$AD)","v":0},{"$f":"SUMIFS(Sheet1!S71_AdjustmentBudAmnt,Sheet1!S71_SubMunicipalVoteNo,$AC:$AC,Sheet1!S71_ItemType,$AD:$AD)","v":0},{"$f":"SUMIFS(Sheet1!S71_AdjustmentBudAmnt,Sheet1!S71_SubMunicipalVoteNo,$AC:$AC,Sheet1!S71_ItemType,$AD:$AD)","v":0},{"$f":"SUMIFS(Sheet1!S71_ASBudgetAmount,Sheet1!S71_SubMunicipalVoteNo,$AC:$AC,Sheet1!S71_ItemType,$AD:$AD)","v":0},{"$f":"SUMIFS(Sheet1!S71_OY1BudgetAmount,Sheet1!S71_SubMunicipalVoteNo,$AC:$AC,Sheet1!S71_ItemType,$AD:$AD)","v":0},{"$f":"SUMIFS(Sheet1!S71_OY2BudgetAmount,Sheet1!S71_SubMunicipalVoteNo,$AC:$AC,Sheet1!S71_ItemType,$AD:$AD)","v":0},null,null,null,null,null,null,null,null,null,null,null,null,null,null,null,null,null,19,"IE"]
["",null,{"$f":"SUMIFS(Sheet1!S71_PPPYearAmount,Sheet1!S71_SubMunicipalVoteNo,$AC:$AC,Sheet1!S71_ItemType,$AD:$AD)","v":0},{"$f":"SUMIFS(Sheet1!S71_PPYearAmount,Sheet1!S71_SubMunicipalVoteNo,$AC:$AC,Sheet1!S71_ItemType,$AD:$AD)","v":0},{"$f":"SUMIFS(Sheet1!S71_PYearAmount,Sheet1!S71_SubMunicipalVoteNo,$AC:$AC,Sheet1!S71_ItemType,$AD:$AD)","v":0},{"$f":"SUMIFS(Sheet1!S71_OriginalBudAmnt,Sheet1!S71_SubMunicipalVoteNo,$AC:$AC,Sheet1!S71_ItemType,$AD:$AD)","v":0},{"$f":"SUMIFS(Sheet1!S71_AdjustmentBudAmnt,Sheet1!S71_SubMunicipalVoteNo,$AC:$AC,Sheet1!S71_ItemType,$AD:$AD)","v":0},{"$f":"SUMIFS(Sheet1!S71_AdjustmentBudAmnt,Sheet1!S71_SubMunicipalVoteNo,$AC:$AC,Sheet1!S71_ItemType,$AD:$AD)","v":0},{"$f":"SUMIFS(Sheet1!S71_ASBudgetAmount,Sheet1!S71_SubMunicipalVoteNo,$AC:$AC,Sheet1!S71_ItemType,$AD:$AD)","v":0},{"$f":"SUMIFS(Sheet1!S71_OY1BudgetAmount,Sheet1!S71_SubMunicipalVoteNo,$AC:$AC,Sheet1!S71_ItemType,$AD:$AD)","v":0},{"$f":"SUMIFS(Sheet1!S71_OY2BudgetAmount,Sheet1!S71_SubMunicipalVoteNo,$AC:$AC,Sheet1!S71_ItemType,$AD:$AD)","v":0},null,null,null,null,null,null,null,null,null,null,null,null,null,null,null,null,null,110,"IE"]
["Vote 2 - Finance and Administration",null,{"$f":"SUM(C185:C194)","v":0},{"$f":"SUM(D185:D194)","v":32508182},{"$f":"SUM(E185:E194)","v":39116936},36808693,38381231,38381231,33940911,37769532,38380945]
["2.1 - Administrative and Corporate Support",null,{"$f":"SUMIFS(Sheet1!S71_PPPYearAmount,Sheet1!S71_SubMunicipalVoteNo,$AC:$AC,Sheet1!S71_ItemType,$AD:$AD)","v":0},{"$f":"SUMIFS(Sheet1!S71_PPYearAmount,Sheet1!S71_SubMunicipalVoteNo,$AC:$AC,Sheet1!S71_ItemType,$AD:$AD)","v":17298619},{"$f":"SUMIFS(Sheet1!S71_PYearAmount,Sheet1!S71_SubMunicipalVoteNo,$AC:$AC,Sheet1!S71_ItemType,$AD:$AD)","v":20876068},{"$f":"SUMIFS(Sheet1!S71_OriginalBudAmnt,Sheet1!S71_SubMunicipalVoteNo,$AC:$AC,Sheet1!S71_ItemType,$AD:$AD)","v":20163385},{"$f":"SUMIFS(Sheet1!S71_AdjustmentBudAmnt,Sheet1!S71_SubMunicipalVoteNo,$AC:$AC,Sheet1!S71_ItemType,$AD:$AD)","v":21350328},{"$f":"SUMIFS(Sheet1!S71_AdjustmentBudAmnt,Sheet1!S71_SubMunicipalVoteNo,$AC:$AC,Sheet1!S71_ItemType,$AD:$AD)","v":21350328},{"$f":"SUMIFS(Sheet1!S71_ASBudgetAmount,Sheet1!S71_SubMunicipalVoteNo,$AC:$AC,Sheet1!S71_ItemType,$AD:$AD)","v":19186578},{"$f":"SUMIFS(Sheet1!S71_OY1BudgetAmount,Sheet1!S71_SubMunicipalVoteNo,$AC:$AC,Sheet1!S71_ItemType,$AD:$AD)","v":21388028},{"$f":"SUMIFS(Sheet1!S71_OY2BudgetAmount,Sheet1!S71_SubMunicipalVoteNo,$AC:$AC,Sheet1!S71_ItemType,$AD:$AD)","v":21850779},null,null,null,null,null,null,null,null,null,null,null,null,null,null,null,null,null,21,"IE"]
["2.2 - Finance",null,{"$f":"SUMIFS(Sheet1!S71_PPPYearAmount,Sheet1!S71_SubMunicipalVoteNo,$AC:$AC,Sheet1!S71_ItemType,$AD:$AD)","v":0},{"$f":"SUMIFS(Sheet1!S71_PPYearAmount,Sheet1!S71_SubMunicipalVoteNo,$AC:$AC,Sheet1!S71_ItemType,$AD:$AD)","v":13803944},{"$f":"SUMIFS(Sheet1!S71_PYearAmount,Sheet1!S71_SubMunicipalVoteNo,$AC:$AC,Sheet1!S71_ItemType,$AD:$AD)","v":16581532},{"$f":"SUMIFS(Sheet1!S71_OriginalBudAmnt,Sheet1!S71_SubMunicipalVoteNo,$AC:$AC,Sheet1!S71_ItemType,$AD:$AD)","v":15033500},{"$f":"SUMIFS(Sheet1!S71_AdjustmentBudAmnt,Sheet1!S71_SubMunicipalVoteNo,$AC:$AC,Sheet1!S71_ItemType,$AD:$AD)","v":15311654},{"$f":"SUMIFS(Sheet1!S71_AdjustmentBudAmnt,Sheet1!S71_SubMunicipalVoteNo,$AC:$AC,Sheet1!S71_ItemType,$AD:$AD)","v":15311654},{"$f":"SUMIFS(Sheet1!S71_ASBudgetAmount,Sheet1!S71_SubMunicipalVoteNo,$AC:$AC,Sheet1!S71_ItemType,$AD:$AD)","v":13131763},{"$f":"SUMIFS(Sheet1!S71_OY1BudgetAmount,Sheet1!S71_SubMunicipalVoteNo,$AC:$AC,Sheet1!S71_ItemType,$AD:$AD)","v":14696536},{"$f":"SUMIFS(Sheet1!S71_OY2BudgetAmount,Sheet1!S71_SubMunicipalVoteNo,$AC:$AC,Sheet1!S71_ItemType,$AD:$AD)","v":14682922},null,null,null,null,null,null,null,null,null,null,null,null,null,null,null,null,null,22,"IE"]
["2.3 - Human Resources",null,{"$f":"SUMIFS(Sheet1!S71_PPPYearAmount,Sheet1!S71_SubMunicipalVoteNo,$AC:$AC,Sheet1!S71_ItemType,$AD:$AD)","v":0},{"$f":"SUMIFS(Sheet1!S71_PPYearAmount,Sheet1!S71_SubMunicipalVoteNo,$AC:$AC,Sheet1!S71_ItemType,$AD:$AD)","v":1405619},{"$f":"SUMIFS(Sheet1!S71_PYearAmount,Sheet1!S71_SubMunicipalVoteNo,$AC:$AC,Sheet1!S71_ItemType,$AD:$AD)","v":1659336},{"$f":"SUMIFS(Sheet1!S71_OriginalBudAmnt,Sheet1!S71_SubMunicipalVoteNo,$AC:$AC,Sheet1!S71_ItemType,$AD:$AD)","v":1611808},{"$f":"SUMIFS(Sheet1!S71_AdjustmentBudAmnt,Sheet1!S71_SubMunicipalVoteNo,$AC:$AC,Sheet1!S71_ItemType,$AD:$AD)","v":1719249},{"$f":"SUMIFS(Sheet1!S71_AdjustmentBudAmnt,Sheet1!S71_SubMunicipalVoteNo,$AC:$AC,Sheet1!S71_ItemType,$AD:$AD)","v":1719249},{"$f":"SUMIFS(Sheet1!S71_ASBudgetAmount,Sheet1!S71_SubMunicipalVoteNo,$AC:$AC,Sheet1!S71_ItemType,$AD:$AD)","v":1622570},{"$f":"SUMIFS(Sheet1!S71_OY1BudgetAmount,Sheet1!S71_SubMunicipalVoteNo,$AC:$AC,Sheet1!S71_ItemType,$AD:$AD)","v":1684968},{"$f":"SUMIFS(Sheet1!S71_OY2BudgetAmount,Sheet1!S71_SubMunicipalVoteNo,$AC:$AC,Sheet1!S71_ItemType,$AD:$AD)","v":1847244},null,null,null,null,null,null,null,null,null,null,null,null,null,null,null,null,null,23,"IE"]
["",null,{"$f":"SUMIFS(Sheet1!S71_PPPYearAmount,Sheet1!S71_SubMunicipalVoteNo,$AC:$AC,Sheet1!S71_ItemType,$AD:$AD)","v":0},{"$f":"SUMIFS(Sheet1!S71_PPYearAmount,Sheet1!S71_SubMunicipalVoteNo,$AC:$AC,Sheet1!S71_ItemType,$AD:$AD)","v":0},{"$f":"SUMIFS(Sheet1!S71_PYearAmount,Sheet1!S71_SubMunicipalVoteNo,$AC:$AC,Sheet1!S71_ItemType,$AD:$AD)","v":0},{"$f":"SUMIFS(Sheet1!S71_OriginalBudAmnt,Sheet1!S71_SubMunicipalVoteNo,$AC:$AC,Sheet1!S71_ItemType,$AD:$AD)","v":0},{"$f":"SUMIFS(Sheet1!S71_AdjustmentBudAmnt,Sheet1!S71_SubMunicipalVoteNo,$AC:$AC,Sheet1!S71_ItemType,$AD:$AD)","v":0},{"$f":"SUMIFS(Sheet1!S71_AdjustmentBudAmnt,Sheet1!S71_SubMunicipalVoteNo,$AC:$AC,Sheet1!S71_ItemType,$AD:$AD)","v":0},{"$f":"SUMIFS(Sheet1!S71_ASBudgetAmount,Sheet1!S71_SubMunicipalVoteNo,$AC:$AC,Sheet1!S71_ItemType,$AD:$AD)","v":0},{"$f":"SUMIFS(Sheet1!S71_OY1BudgetAmount,Sheet1!S71_SubMunicipalVoteNo,$AC:$AC,Sheet1!S71_ItemType,$AD:$AD)","v":0},{"$f":"SUMIFS(Sheet1!S71_OY2BudgetAmount,Sheet1!S71_SubMunicipalVoteNo,$AC:$AC,Sheet1!S71_ItemType,$AD:$AD)","v":0},null,null,null,null,null,null,null,null,null,null,null,null,null,null,null,null,null,24,"IE"]
["",null,{"$f":"SUMIFS(Sheet1!S71_PPPYearAmount,Sheet1!S71_SubMunicipalVoteNo,$AC:$AC,Sheet1!S71_ItemType,$AD:$AD)","v":0},{"$f":"SUMIFS(Sheet1!S71_PPYearAmount,Sheet1!S71_SubMunicipalVoteNo,$AC:$AC,Sheet1!S71_ItemType,$AD:$AD)","v":0},{"$f":"SUMIFS(Sheet1!S71_PYearAmount,Sheet1!S71_SubMunicipalVoteNo,$AC:$AC,Sheet1!S71_ItemType,$AD:$AD)","v":0},{"$f":"SUMIFS(Sheet1!S71_OriginalBudAmnt,Sheet1!S71_SubMunicipalVoteNo,$AC:$AC,Sheet1!S71_ItemType,$AD:$AD)","v":0},{"$f":"SUMIFS(Sheet1!S71_AdjustmentBudAmnt,Sheet1!S71_SubMunicipalVoteNo,$AC:$AC,Sheet1!S71_ItemType,$AD:$AD)","v":0},{"$f":"SUMIFS(Sheet1!S71_AdjustmentBudAmnt,Sheet1!S71_SubMunicipalVoteNo,$AC:$AC,Sheet1!S71_ItemType,$AD:$AD)","v":0},{"$f":"SUMIFS(Sheet1!S71_ASBudgetAmount,Sheet1!S71_SubMunicipalVoteNo,$AC:$AC,Sheet1!S71_ItemType,$AD:$AD)","v":0},{"$f":"SUMIFS(Sheet1!S71_OY1BudgetAmount,Sheet1!S71_SubMunicipalVoteNo,$AC:$AC,Sheet1!S71_ItemType,$AD:$AD)","v":0},{"$f":"SUMIFS(Sheet1!S71_OY2BudgetAmount,Sheet1!S71_SubMunicipalVoteNo,$AC:$AC,Sheet1!S71_ItemType,$AD:$AD)","v":0},null,null,null,null,null,null,null,null,null,null,null,null,null,null,null,null,null,25,"IE"]
["",null,{"$f":"SUMIFS(Sheet1!S71_PPPYearAmount,Sheet1!S71_SubMunicipalVoteNo,$AC:$AC,Sheet1!S71_ItemType,$AD:$AD)","v":0},{"$f":"SUMIFS(Sheet1!S71_PPYearAmount,Sheet1!S71_SubMunicipalVoteNo,$AC:$AC,Sheet1!S71_ItemType,$AD:$AD)","v":0},{"$f":"SUMIFS(Sheet1!S71_PYearAmount,Sheet1!S71_SubMunicipalVoteNo,$AC:$AC,Sheet1!S71_ItemType,$AD:$AD)","v":0},{"$f":"SUMIFS(Sheet1!S71_OriginalBudAmnt,Sheet1!S71_SubMunicipalVoteNo,$AC:$AC,Sheet1!S71_ItemType,$AD:$AD)","v":0},{"$f":"SUMIFS(Sheet1!S71_AdjustmentBudAmnt,Sheet1!S71_SubMunicipalVoteNo,$AC:$AC,Sheet1!S71_ItemType,$AD:$AD)","v":0},{"$f":"SUMIFS(Sheet1!S71_AdjustmentBudAmnt,Sheet1!S71_SubMunicipalVoteNo,$AC:$AC,Sheet1!S71_ItemType,$AD:$AD)","v":0},{"$f":"SUMIFS(Sheet1!S71_ASBudgetAmount,Sheet1!S71_SubMunicipalVoteNo,$AC:$AC,Sheet1!S71_ItemType,$AD:$AD)","v":0},{"$f":"SUMIFS(Sheet1!S71_OY1BudgetAmount,Sheet1!S71_SubMunicipalVoteNo,$AC:$AC,Sheet1!S71_ItemType,$AD:$AD)","v":0},{"$f":"SUMIFS(Sheet1!S71_OY2BudgetAmount,Sheet1!S71_SubMunicipalVoteNo,$AC:$AC,Sheet1!S71_ItemType,$AD:$AD)","v":0},null,null,null,null,null,null,null,null,null,null,null,null,null,null,null,null,null,26,"IE"]
["",null,{"$f":"SUMIFS(Sheet1!S71_PPPYearAmount,Sheet1!S71_SubMunicipalVoteNo,$AC:$AC,Sheet1!S71_ItemType,$AD:$AD)","v":0},{"$f":"SUMIFS(Sheet1!S71_PPYearAmount,Sheet1!S71_SubMunicipalVoteNo,$AC:$AC,Sheet1!S71_ItemType,$AD:$AD)","v":0},{"$f":"SUMIFS(Sheet1!S71_PYearAmount,Sheet1!S71_SubMunicipalVoteNo,$AC:$AC,Sheet1!S71_ItemType,$AD:$AD)","v":0},{"$f":"SUMIFS(Sheet1!S71_OriginalBudAmnt,Sheet1!S71_SubMunicipalVoteNo,$AC:$AC,Sheet1!S71_ItemType,$AD:$AD)","v":0},{"$f":"SUMIFS(Sheet1!S71_AdjustmentBudAmnt,Sheet1!S71_SubMunicipalVoteNo,$AC:$AC,Sheet1!S71_ItemType,$AD:$AD)","v":0},{"$f":"SUMIFS(Sheet1!S71_AdjustmentBudAmnt,Sheet1!S71_SubMunicipalVoteNo,$AC:$AC,Sheet1!S71_ItemType,$AD:$AD)","v":0},{"$f":"SUMIFS(Sheet1!S71_ASBudgetAmount,Sheet1!S71_SubMunicipalVoteNo,$AC:$AC,Sheet1!S71_ItemType,$AD:$AD)","v":0},{"$f":"SUMIFS(Sheet1!S71_OY1BudgetAmount,Sheet1!S71_SubMunicipalVoteNo,$AC:$AC,Sheet1!S71_ItemType,$AD:$AD)","v":0},{"$f":"SUMIFS(Sheet1!S71_OY2BudgetAmount,Sheet1!S71_SubMunicipalVoteNo,$AC:$AC,Sheet1!S71_ItemType,$AD:$AD)","v":0},null,null,null,null,null,null,null,null,null,null,null,null,null,null,null,null,null,27,"IE"]
["",null,{"$f":"SUMIFS(Sheet1!S71_PPPYearAmount,Sheet1!S71_SubMunicipalVoteNo,$AC:$AC,Sheet1!S71_ItemType,$AD:$AD)","v":0},{"$f":"SUMIFS(Sheet1!S71_PPYearAmount,Sheet1!S71_SubMunicipalVoteNo,$AC:$AC,Sheet1!S71_ItemType,$AD:$AD)","v":0},{"$f":"SUMIFS(Sheet1!S71_PYearAmount,Sheet1!S71_SubMunicipalVoteNo,$AC:$AC,Sheet1!S71_ItemType,$AD:$AD)","v":0},{"$f":"SUMIFS(Sheet1!S71_OriginalBudAmnt,Sheet1!S71_SubMunicipalVoteNo,$AC:$AC,Sheet1!S71_ItemType,$AD:$AD)","v":0},{"$f":"SUMIFS(Sheet1!S71_AdjustmentBudAmnt,Sheet1!S71_SubMunicipalVoteNo,$AC:$AC,Sheet1!S71_ItemType,$AD:$AD)","v":0},{"$f":"SUMIFS(Sheet1!S71_AdjustmentBudAmnt,Sheet1!S71_SubMunicipalVoteNo,$AC:$AC,Sheet1!S71_ItemType,$AD:$AD)","v":0},{"$f":"SUMIFS(Sheet1!S71_ASBudgetAmount,Sheet1!S71_SubMunicipalVoteNo,$AC:$AC,Sheet1!S71_ItemType,$AD:$AD)","v":0},{"$f":"SUMIFS(Sheet1!S71_OY1BudgetAmount,Sheet1!S71_SubMunicipalVoteNo,$AC:$AC,Sheet1!S71_ItemType,$AD:$AD)","v":0},{"$f":"SUMIFS(Sheet1!S71_OY2BudgetAmount,Sheet1!S71_SubMunicipalVoteNo,$AC:$AC,Sheet1!S71_ItemType,$AD:$AD)","v":0},null,null,null,null,null,null,null,null,null,null,null,null,null,null,null,null,null,28,"IE"]
["",null,{"$f":"SUMIFS(Sheet1!S71_PPPYearAmount,Sheet1!S71_SubMunicipalVoteNo,$AC:$AC,Sheet1!S71_ItemType,$AD:$AD)","v":0},{"$f":"SUMIFS(Sheet1!S71_PPYearAmount,Sheet1!S71_SubMunicipalVoteNo,$AC:$AC,Sheet1!S71_ItemType,$AD:$AD)","v":0},{"$f":"SUMIFS(Sheet1!S71_PYearAmount,Sheet1!S71_SubMunicipalVoteNo,$AC:$AC,Sheet1!S71_ItemType,$AD:$AD)","v":0},{"$f":"SUMIFS(Sheet1!S71_OriginalBudAmnt,Sheet1!S71_SubMunicipalVoteNo,$AC:$AC,Sheet1!S71_ItemType,$AD:$AD)","v":0},{"$f":"SUMIFS(Sheet1!S71_AdjustmentBudAmnt,Sheet1!S71_SubMunicipalVoteNo,$AC:$AC,Sheet1!S71_ItemType,$AD:$AD)","v":0},{"$f":"SUMIFS(Sheet1!S71_AdjustmentBudAmnt,Sheet1!S71_SubMunicipalVoteNo,$AC:$AC,Sheet1!S71_ItemType,$AD:$AD)","v":0},{"$f":"SUMIFS(Sheet1!S71_ASBudgetAmount,Sheet1!S71_SubMunicipalVoteNo,$AC:$AC,Sheet1!S71_ItemType,$AD:$AD)","v":0},{"$f":"SUMIFS(Sheet1!S71_OY1BudgetAmount,Sheet1!S71_SubMunicipalVoteNo,$AC:$AC,Sheet1!S71_ItemType,$AD:$AD)","v":0},{"$f":"SUMIFS(Sheet1!S71_OY2BudgetAmount,Sheet1!S71_SubMunicipalVoteNo,$AC:$AC,Sheet1!S71_ItemType,$AD:$AD)","v":0},null,null,null,null,null,null,null,null,null,null,null,null,null,null,null,null,null,29,"IE"]
["",null,{"$f":"SUMIFS(Sheet1!S71_PPPYearAmount,Sheet1!S71_SubMunicipalVoteNo,$AC:$AC,Sheet1!S71_ItemType,$AD:$AD)","v":0},{"$f":"SUMIFS(Sheet1!S71_PPYearAmount,Sheet1!S71_SubMunicipalVoteNo,$AC:$AC,Sheet1!S71_ItemType,$AD:$AD)","v":0},{"$f":"SUMIFS(Sheet1!S71_PYearAmount,Sheet1!S71_SubMunicipalVoteNo,$AC:$AC,Sheet1!S71_ItemType,$AD:$AD)","v":0},{"$f":"SUMIFS(Sheet1!S71_OriginalBudAmnt,Sheet1!S71_SubMunicipalVoteNo,$AC:$AC,Sheet1!S71_ItemType,$AD:$AD)","v":0},{"$f":"SUMIFS(Sheet1!S71_AdjustmentBudAmnt,Sheet1!S71_SubMunicipalVoteNo,$AC:$AC,Sheet1!S71_ItemType,$AD:$AD)","v":0},{"$f":"SUMIFS(Sheet1!S71_AdjustmentBudAmnt,Sheet1!S71_SubMunicipalVoteNo,$AC:$AC,Sheet1!S71_ItemType,$AD:$AD)","v":0},{"$f":"SUMIFS(Sheet1!S71_ASBudgetAmount,Sheet1!S71_SubMunicipalVoteNo,$AC:$AC,Sheet1!S71_ItemType,$AD:$AD)","v":0},{"$f":"SUMIFS(Sheet1!S71_OY1BudgetAmount,Sheet1!S71_SubMunicipalVoteNo,$AC:$AC,Sheet1!S71_ItemType,$AD:$AD)","v":0},{"$f":"SUMIFS(Sheet1!S71_OY2BudgetAmount,Sheet1!S71_SubMunicipalVoteNo,$AC:$AC,Sheet1!S71_ItemType,$AD:$AD)","v":0},null,null,null,null,null,null,null,null,null,null,null,null,null,null,null,null,null,210,"IE"]
["Vote 3 - Planning and Development",null,{"$f":"SUM(C196:C205)","v":0},13722082,13246063,13730628,14229184,14229184,15117624,15329579,15729674]
["3.1 - Corporate Wide Strategic Planning (IDPs, LEDs)",null,{"$f":"SUMIFS(Sheet1!S71_PPPYearAmount,Sheet1!S71_SubMunicipalVoteNo,$AC:$AC,Sheet1!S71_ItemType,$AD:$AD)","v":0},{"$f":"SUMIFS(Sheet1!S71_PPYearAmount,Sheet1!S71_SubMunicipalVoteNo,$AC:$AC,Sheet1!S71_ItemType,$AD:$AD)","v":8861471},{"$f":"SUMIFS(Sheet1!S71_PYearAmount,Sheet1!S71_SubMunicipalVoteNo,$AC:$AC,Sheet1!S71_ItemType,$AD:$AD)","v":7835281},{"$f":"SUMIFS(Sheet1!S71_OriginalBudAmnt,Sheet1!S71_SubMunicipalVoteNo,$AC:$AC,Sheet1!S71_ItemType,$AD:$AD)","v":8108640},{"$f":"SUMIFS(Sheet1!S71_AdjustmentBudAmnt,Sheet1!S71_SubMunicipalVoteNo,$AC:$AC,Sheet1!S71_ItemType,$AD:$AD)","v":8461707},{"$f":"SUMIFS(Sheet1!S71_AdjustmentBudAmnt,Sheet1!S71_SubMunicipalVoteNo,$AC:$AC,Sheet1!S71_ItemType,$AD:$AD)","v":8461707},{"$f":"SUMIFS(Sheet1!S71_ASBudgetAmount,Sheet1!S71_SubMunicipalVoteNo,$AC:$AC,Sheet1!S71_ItemType,$AD:$AD)","v":9445107},{"$f":"SUMIFS(Sheet1!S71_OY1BudgetAmount,Sheet1!S71_SubMunicipalVoteNo,$AC:$AC,Sheet1!S71_ItemType,$AD:$AD)","v":9160040},{"$f":"SUMIFS(Sheet1!S71_OY2BudgetAmount,Sheet1!S71_SubMunicipalVoteNo,$AC:$AC,Sheet1!S71_ItemType,$AD:$AD)","v":9499398},null,null,null,null,null,null,null,null,null,null,null,null,null,null,null,null,null,31,"IE"]
["3.2 - Development Facilitation",null,{"$f":"SUMIFS(Sheet1!S71_PPPYearAmount,Sheet1!S71_SubMunicipalVoteNo,$AC:$AC,Sheet1!S71_ItemType,$AD:$AD)","v":0},{"$f":"SUMIFS(Sheet1!S71_PPYearAmount,Sheet1!S71_SubMunicipalVoteNo,$AC:$AC,Sheet1!S71_ItemType,$AD:$AD)","v":60718},{"$f":"SUMIFS(Sheet1!S71_PYearAmount,Sheet1!S71_SubMunicipalVoteNo,$AC:$AC,Sheet1!S71_ItemType,$AD:$AD)","v":570661},{"$f":"SUMIFS(Sheet1!S71_OriginalBudAmnt,Sheet1!S71_SubMunicipalVoteNo,$AC:$AC,Sheet1!S71_ItemType,$AD:$AD)","v":491000},{"$f":"SUMIFS(Sheet1!S71_AdjustmentBudAmnt,Sheet1!S71_SubMunicipalVoteNo,$AC:$AC,Sheet1!S71_ItemType,$AD:$AD)","v":40000},{"$f":"SUMIFS(Sheet1!S71_AdjustmentBudAmnt,Sheet1!S71_SubMunicipalVoteNo,$AC:$AC,Sheet1!S71_ItemType,$AD:$AD)","v":40000},{"$f":"SUMIFS(Sheet1!S71_ASBudgetAmount,Sheet1!S71_SubMunicipalVoteNo,$AC:$AC,Sheet1!S71_ItemType,$AD:$AD)","v":100000},{"$f":"SUMIFS(Sheet1!S71_OY1BudgetAmount,Sheet1!S71_SubMunicipalVoteNo,$AC:$AC,Sheet1!S71_ItemType,$AD:$AD)","v":0},{"$f":"SUMIFS(Sheet1!S71_OY2BudgetAmount,Sheet1!S71_SubMunicipalVoteNo,$AC:$AC,Sheet1!S71_ItemType,$AD:$AD)","v":0},null,null,null,null,null,null,null,null,null,null,null,null,null,null,null,null,null,32,"IE"]
["3.3 - Economic Development/Planning",null,{"$f":"SUMIFS(Sheet1!S71_PPPYearAmount,Sheet1!S71_SubMunicipalVoteNo,$AC:$AC,Sheet1!S71_ItemType,$AD:$AD)","v":0},{"$f":"SUMIFS(Sheet1!S71_PPYearAmount,Sheet1!S71_SubMunicipalVoteNo,$AC:$AC,Sheet1!S71_ItemType,$AD:$AD)","v":4799893},{"$f":"SUMIFS(Sheet1!S71_PYearAmount,Sheet1!S71_SubMunicipalVoteNo,$AC:$AC,Sheet1!S71_ItemType,$AD:$AD)","v":4840121},{"$f":"SUMIFS(Sheet1!S71_OriginalBudAmnt,Sheet1!S71_SubMunicipalVoteNo,$AC:$AC,Sheet1!S71_ItemType,$AD:$AD)","v":5130988},{"$f":"SUMIFS(Sheet1!S71_AdjustmentBudAmnt,Sheet1!S71_SubMunicipalVoteNo,$AC:$AC,Sheet1!S71_ItemType,$AD:$AD)","v":5727477},{"$f":"SUMIFS(Sheet1!S71_AdjustmentBudAmnt,Sheet1!S71_SubMunicipalVoteNo,$AC:$AC,Sheet1!S71_ItemType,$AD:$AD)","v":5727477},{"$f":"SUMIFS(Sheet1!S71_ASBudgetAmount,Sheet1!S71_SubMunicipalVoteNo,$AC:$AC,Sheet1!S71_ItemType,$AD:$AD)","v":5572517},{"$f":"SUMIFS(Sheet1!S71_OY1BudgetAmount,Sheet1!S71_SubMunicipalVoteNo,$AC:$AC,Sheet1!S71_ItemType,$AD:$AD)","v":6169539},{"$f":"SUMIFS(Sheet1!S71_OY2BudgetAmount,Sheet1!S71_SubMunicipalVoteNo,$AC:$AC,Sheet1!S71_ItemType,$AD:$AD)","v":6230276},null,null,null,null,null,null,null,null,null,null,null,null,null,null,null,null,null,33,"IE"]
["3.4 - Billboards",null,{"$f":"SUMIFS(Sheet1!S71_PPPYearAmount,Sheet1!S71_SubMunicipalVoteNo,$AC:$AC,Sheet1!S71_ItemType,$AD:$AD)","v":0},{"$f":"SUMIFS(Sheet1!S71_PPYearAmount,Sheet1!S71_SubMunicipalVoteNo,$AC:$AC,Sheet1!S71_ItemType,$AD:$AD)","v":0},{"$f":"SUMIFS(Sheet1!S71_PYearAmount,Sheet1!S71_SubMunicipalVoteNo,$AC:$AC,Sheet1!S71_ItemType,$AD:$AD)","v":0},{"$f":"SUMIFS(Sheet1!S71_OriginalBudAmnt,Sheet1!S71_SubMunicipalVoteNo,$AC:$AC,Sheet1!S71_ItemType,$AD:$AD)","v":0},{"$f":"SUMIFS(Sheet1!S71_AdjustmentBudAmnt,Sheet1!S71_SubMunicipalVoteNo,$AC:$AC,Sheet1!S71_ItemType,$AD:$AD)","v":0},{"$f":"SUMIFS(Sheet1!S71_AdjustmentBudAmnt,Sheet1!S71_SubMunicipalVoteNo,$AC:$AC,Sheet1!S71_ItemType,$AD:$AD)","v":0},{"$f":"SUMIFS(Sheet1!S71_ASBudgetAmount,Sheet1!S71_SubMunicipalVoteNo,$AC:$AC,Sheet1!S71_ItemType,$AD:$AD)","v":0},{"$f":"SUMIFS(Sheet1!S71_OY1BudgetAmount,Sheet1!S71_SubMunicipalVoteNo,$AC:$AC,Sheet1!S71_ItemType,$AD:$AD)","v":0},{"$f":"SUMIFS(Sheet1!S71_OY2BudgetAmount,Sheet1!S71_SubMunicipalVoteNo,$AC:$AC,Sheet1!S71_ItemType,$AD:$AD)","v":0},null,null,null,null,null,null,null,null,null,null,null,null,null,null,null,null,null,34,"IE"]
["",null,{"$f":"SUMIFS(Sheet1!S71_PPPYearAmount,Sheet1!S71_SubMunicipalVoteNo,$AC:$AC,Sheet1!S71_ItemType,$AD:$AD)","v":0},{"$f":"SUMIFS(Sheet1!S71_PPYearAmount,Sheet1!S71_SubMunicipalVoteNo,$AC:$AC,Sheet1!S71_ItemType,$AD:$AD)","v":0},{"$f":"SUMIFS(Sheet1!S71_PYearAmount,Sheet1!S71_SubMunicipalVoteNo,$AC:$AC,Sheet1!S71_ItemType,$AD:$AD)","v":0},{"$f":"SUMIFS(Sheet1!S71_OriginalBudAmnt,Sheet1!S71_SubMunicipalVoteNo,$AC:$AC,Sheet1!S71_ItemType,$AD:$AD)","v":0},{"$f":"SUMIFS(Sheet1!S71_AdjustmentBudAmnt,Sheet1!S71_SubMunicipalVoteNo,$AC:$AC,Sheet1!S71_ItemType,$AD:$AD)","v":0},{"$f":"SUMIFS(Sheet1!S71_AdjustmentBudAmnt,Sheet1!S71_SubMunicipalVoteNo,$AC:$AC,Sheet1!S71_ItemType,$AD:$AD)","v":0},{"$f":"SUMIFS(Sheet1!S71_ASBudgetAmount,Sheet1!S71_SubMunicipalVoteNo,$AC:$AC,Sheet1!S71_ItemType,$AD:$AD)","v":0},{"$f":"SUMIFS(Sheet1!S71_OY1BudgetAmount,Sheet1!S71_SubMunicipalVoteNo,$AC:$AC,Sheet1!S71_ItemType,$AD:$AD)","v":0},{"$f":"SUMIFS(Sheet1!S71_OY2BudgetAmount,Sheet1!S71_SubMunicipalVoteNo,$AC:$AC,Sheet1!S71_ItemType,$AD:$AD)","v":0},null,null,null,null,null,null,null,null,null,null,null,null,null,null,null,null,null,35,"IE"]
["",null,{"$f":"SUMIFS(Sheet1!S71_PPPYearAmount,Sheet1!S71_SubMunicipalVoteNo,$AC:$AC,Sheet1!S71_ItemType,$AD:$AD)","v":0},{"$f":"SUMIFS(Sheet1!S71_PPYearAmount,Sheet1!S71_SubMunicipalVoteNo,$AC:$AC,Sheet1!S71_ItemType,$AD:$AD)","v":0},{"$f":"SUMIFS(Sheet1!S71_PYearAmount,Sheet1!S71_SubMunicipalVoteNo,$AC:$AC,Sheet1!S71_ItemType,$AD:$AD)","v":0},{"$f":"SUMIFS(Sheet1!S71_OriginalBudAmnt,Sheet1!S71_SubMunicipalVoteNo,$AC:$AC,Sheet1!S71_ItemType,$AD:$AD)","v":0},{"$f":"SUMIFS(Sheet1!S71_AdjustmentBudAmnt,Sheet1!S71_SubMunicipalVoteNo,$AC:$AC,Sheet1!S71_ItemType,$AD:$AD)","v":0},{"$f":"SUMIFS(Sheet1!S71_AdjustmentBudAmnt,Sheet1!S71_SubMunicipalVoteNo,$AC:$AC,Sheet1!S71_ItemType,$AD:$AD)","v":0},{"$f":"SUMIFS(Sheet1!S71_ASBudgetAmount,Sheet1!S71_SubMunicipalVoteNo,$AC:$AC,Sheet1!S71_ItemType,$AD:$AD)","v":0},{"$f":"SUMIFS(Sheet1!S71_OY1BudgetAmount,Sheet1!S71_SubMunicipalVoteNo,$AC:$AC,Sheet1!S71_ItemType,$AD:$AD)","v":0},{"$f":"SUMIFS(Sheet1!S71_OY2BudgetAmount,Sheet1!S71_SubMunicipalVoteNo,$AC:$AC,Sheet1!S71_ItemType,$AD:$AD)","v":0},null,null,null,null,null,null,null,null,null,null,null,null,null,null,null,null,null,36,"IE"]
["",null,{"$f":"SUMIFS(Sheet1!S71_PPPYearAmount,Sheet1!S71_SubMunicipalVoteNo,$AC:$AC,Sheet1!S71_ItemType,$AD:$AD)","v":0},{"$f":"SUMIFS(Sheet1!S71_PPYearAmount,Sheet1!S71_SubMunicipalVoteNo,$AC:$AC,Sheet1!S71_ItemType,$AD:$AD)","v":0},{"$f":"SUMIFS(Sheet1!S71_PYearAmount,Sheet1!S71_SubMunicipalVoteNo,$AC:$AC,Sheet1!S71_ItemType,$AD:$AD)","v":0},{"$f":"SUMIFS(Sheet1!S71_OriginalBudAmnt,Sheet1!S71_SubMunicipalVoteNo,$AC:$AC,Sheet1!S71_ItemType,$AD:$AD)","v":0},{"$f":"SUMIFS(Sheet1!S71_AdjustmentBudAmnt,Sheet1!S71_SubMunicipalVoteNo,$AC:$AC,Sheet1!S71_ItemType,$AD:$AD)","v":0},{"$f":"SUMIFS(Sheet1!S71_AdjustmentBudAmnt,Sheet1!S71_SubMunicipalVoteNo,$AC:$AC,Sheet1!S71_ItemType,$AD:$AD)","v":0},{"$f":"SUMIFS(Sheet1!S71_ASBudgetAmount,Sheet1!S71_SubMunicipalVoteNo,$AC:$AC,Sheet1!S71_ItemType,$AD:$AD)","v":0},{"$f":"SUMIFS(Sheet1!S71_OY1BudgetAmount,Sheet1!S71_SubMunicipalVoteNo,$AC:$AC,Sheet1!S71_ItemType,$AD:$AD)","v":0},{"$f":"SUMIFS(Sheet1!S71_OY2BudgetAmount,Sheet1!S71_SubMunicipalVoteNo,$AC:$AC,Sheet1!S71_ItemType,$AD:$AD)","v":0},null,null,null,null,null,null,null,null,null,null,null,null,null,null,null,null,null,37,"IE"]
["",null,{"$f":"SUMIFS(Sheet1!S71_PPPYearAmount,Sheet1!S71_SubMunicipalVoteNo,$AC:$AC,Sheet1!S71_ItemType,$AD:$AD)","v":0},{"$f":"SUMIFS(Sheet1!S71_PPYearAmount,Sheet1!S71_SubMunicipalVoteNo,$AC:$AC,Sheet1!S71_ItemType,$AD:$AD)","v":0},{"$f":"SUMIFS(Sheet1!S71_PYearAmount,Sheet1!S71_SubMunicipalVoteNo,$AC:$AC,Sheet1!S71_ItemType,$AD:$AD)","v":0},{"$f":"SUMIFS(Sheet1!S71_OriginalBudAmnt,Sheet1!S71_SubMunicipalVoteNo,$AC:$AC,Sheet1!S71_ItemType,$AD:$AD)","v":0},{"$f":"SUMIFS(Sheet1!S71_AdjustmentBudAmnt,Sheet1!S71_SubMunicipalVoteNo,$AC:$AC,Sheet1!S71_ItemType,$AD:$AD)","v":0},{"$f":"SUMIFS(Sheet1!S71_AdjustmentBudAmnt,Sheet1!S71_SubMunicipalVoteNo,$AC:$AC,Sheet1!S71_ItemType,$AD:$AD)","v":0},{"$f":"SUMIFS(Sheet1!S71_ASBudgetAmount,Sheet1!S71_SubMunicipalVoteNo,$AC:$AC,Sheet1!S71_ItemType,$AD:$AD)","v":0},{"$f":"SUMIFS(Sheet1!S71_OY1BudgetAmount,Sheet1!S71_SubMunicipalVoteNo,$AC:$AC,Sheet1!S71_ItemType,$AD:$AD)","v":0},{"$f":"SUMIFS(Sheet1!S71_OY2BudgetAmount,Sheet1!S71_SubMunicipalVoteNo,$AC:$AC,Sheet1!S71_ItemType,$AD:$AD)","v":0},null,null,null,null,null,null,null,null,null,null,null,null,null,null,null,null,null,38,"IE"]
["",null,{"$f":"SUMIFS(Sheet1!S71_PPPYearAmount,Sheet1!S71_SubMunicipalVoteNo,$AC:$AC,Sheet1!S71_ItemType,$AD:$AD)","v":0},{"$f":"SUMIFS(Sheet1!S71_PPYearAmount,Sheet1!S71_SubMunicipalVoteNo,$AC:$AC,Sheet1!S71_ItemType,$AD:$AD)","v":0},{"$f":"SUMIFS(Sheet1!S71_PYearAmount,Sheet1!S71_SubMunicipalVoteNo,$AC:$AC,Sheet1!S71_ItemType,$AD:$AD)","v":0},{"$f":"SUMIFS(Sheet1!S71_OriginalBudAmnt,Sheet1!S71_SubMunicipalVoteNo,$AC:$AC,Sheet1!S71_ItemType,$AD:$AD)","v":0},{"$f":"SUMIFS(Sheet1!S71_AdjustmentBudAmnt,Sheet1!S71_SubMunicipalVoteNo,$AC:$AC,Sheet1!S71_ItemType,$AD:$AD)","v":0},{"$f":"SUMIFS(Sheet1!S71_AdjustmentBudAmnt,Sheet1!S71_SubMunicipalVoteNo,$AC:$AC,Sheet1!S71_ItemType,$AD:$AD)","v":0},{"$f":"SUMIFS(Sheet1!S71_ASBudgetAmount,Sheet1!S71_SubMunicipalVoteNo,$AC:$AC,Sheet1!S71_ItemType,$AD:$AD)","v":0},{"$f":"SUMIFS(Sheet1!S71_OY1BudgetAmount,Sheet1!S71_SubMunicipalVoteNo,$AC:$AC,Sheet1!S71_ItemType,$AD:$AD)","v":0},{"$f":"SUMIFS(Sheet1!S71_OY2BudgetAmount,Sheet1!S71_SubMunicipalVoteNo,$AC:$AC,Sheet1!S71_ItemType,$AD:$AD)","v":0},null,null,null,null,null,null,null,null,null,null,null,null,null,null,null,null,null,39,"IE"]
[{"$f":"A37","v":""},null,{"$f":"SUMIFS(Sheet1!S71_PPPYearAmount,Sheet1!S71_SubMunicipalVoteNo,$AC:$AC,Sheet1!S71_ItemType,$AD:$AD)","v":0},{"$f":"SUMIFS(Sheet1!S71_PPYearAmount,Sheet1!S71_SubMunicipalVoteNo,$AC:$AC,Sheet1!S71_ItemType,$AD:$AD)","v":0},{"$f":"SUMIFS(Sheet1!S71_PYearAmount,Sheet1!S71_SubMunicipalVoteNo,$AC:$AC,Sheet1!S71_ItemType,$AD:$AD)","v":0},{"$f":"SUMIFS(Sheet1!S71_OriginalBudAmnt,Sheet1!S71_SubMunicipalVoteNo,$AC:$AC,Sheet1!S71_ItemType,$AD:$AD)","v":0},{"$f":"SUMIFS(Sheet1!S71_AdjustmentBudAmnt,Sheet1!S71_SubMunicipalVoteNo,$AC:$AC,Sheet1!S71_ItemType,$AD:$AD)","v":0},{"$f":"SUMIFS(Sheet1!S71_AdjustmentBudAmnt,Sheet1!S71_SubMunicipalVoteNo,$AC:$AC,Sheet1!S71_ItemType,$AD:$AD)","v":0},{"$f":"SUMIFS(Sheet1!S71_ASBudgetAmount,Sheet1!S71_SubMunicipalVoteNo,$AC:$AC,Sheet1!S71_ItemType,$AD:$AD)","v":0},{"$f":"SUMIFS(Sheet1!S71_OY1BudgetAmount,Sheet1!S71_SubMunicipalVoteNo,$AC:$AC,Sheet1!S71_ItemType,$AD:$AD)","v":0},{"$f":"SUMIFS(Sheet1!S71_OY2BudgetAmount,Sheet1!S71_SubMunicipalVoteNo,$AC:$AC,Sheet1!S71_ItemType,$AD:$AD)","v":0},null,null,null,null,null,null,null,null,null,null,null,null,null,null,null,null,null,310,"IE"]
["Vote 4 - Community and Social Services",null,{"$f":"SUM(C207:C216)","v":0},12196,670,500000,750000,750000,150000,300000,300000]
["4.1 - Disaster Management",null,{"$f":"SUMIFS(Sheet1!S71_PPPYearAmount,Sheet1!S71_SubMunicipalVoteNo,$AC:$AC,Sheet1!S71_ItemType,$AD:$AD)","v":0},{"$f":"SUMIFS(Sheet1!S71_PPYearAmount,Sheet1!S71_SubMunicipalVoteNo,$AC:$AC,Sheet1!S71_ItemType,$AD:$AD)","v":12196},{"$f":"SUMIFS(Sheet1!S71_PYearAmount,Sheet1!S71_SubMunicipalVoteNo,$AC:$AC,Sheet1!S71_ItemType,$AD:$AD)","v":670},{"$f":"SUMIFS(Sheet1!S71_OriginalBudAmnt,Sheet1!S71_SubMunicipalVoteNo,$AC:$AC,Sheet1!S71_ItemType,$AD:$AD)","v":500000},{"$f":"SUMIFS(Sheet1!S71_AdjustmentBudAmnt,Sheet1!S71_SubMunicipalVoteNo,$AC:$AC,Sheet1!S71_ItemType,$AD:$AD)","v":750000},{"$f":"SUMIFS(Sheet1!S71_AdjustmentBudAmnt,Sheet1!S71_SubMunicipalVoteNo,$AC:$AC,Sheet1!S71_ItemType,$AD:$AD)","v":750000},{"$f":"SUMIFS(Sheet1!S71_ASBudgetAmount,Sheet1!S71_SubMunicipalVoteNo,$AC:$AC,Sheet1!S71_ItemType,$AD:$AD)","v":150000},{"$f":"SUMIFS(Sheet1!S71_OY1BudgetAmount,Sheet1!S71_SubMunicipalVoteNo,$AC:$AC,Sheet1!S71_ItemType,$AD:$AD)","v":300000},{"$f":"SUMIFS(Sheet1!S71_OY2BudgetAmount,Sheet1!S71_SubMunicipalVoteNo,$AC:$AC,Sheet1!S71_ItemType,$AD:$AD)","v":300000},null,null,null,null,null,null,null,null,null,null,null,null,null,null,null,null,null,41,"IE"]
["",null,{"$f":"SUMIFS(Sheet1!S71_PPPYearAmount,Sheet1!S71_SubMunicipalVoteNo,$AC:$AC,Sheet1!S71_ItemType,$AD:$AD)","v":0},{"$f":"SUMIFS(Sheet1!S71_PPYearAmount,Sheet1!S71_SubMunicipalVoteNo,$AC:$AC,Sheet1!S71_ItemType,$AD:$AD)","v":0},{"$f":"SUMIFS(Sheet1!S71_PYearAmount,Sheet1!S71_SubMunicipalVoteNo,$AC:$AC,Sheet1!S71_ItemType,$AD:$AD)","v":0},{"$f":"SUMIFS(Sheet1!S71_OriginalBudAmnt,Sheet1!S71_SubMunicipalVoteNo,$AC:$AC,Sheet1!S71_ItemType,$AD:$AD)","v":0},{"$f":"SUMIFS(Sheet1!S71_AdjustmentBudAmnt,Sheet1!S71_SubMunicipalVoteNo,$AC:$AC,Sheet1!S71_ItemType,$AD:$AD)","v":0},{"$f":"SUMIFS(Sheet1!S71_AdjustmentBudAmnt,Sheet1!S71_SubMunicipalVoteNo,$AC:$AC,Sheet1!S71_ItemType,$AD:$AD)","v":0},{"$f":"SUMIFS(Sheet1!S71_ASBudgetAmount,Sheet1!S71_SubMunicipalVoteNo,$AC:$AC,Sheet1!S71_ItemType,$AD:$AD)","v":0},{"$f":"SUMIFS(Sheet1!S71_OY1BudgetAmount,Sheet1!S71_SubMunicipalVoteNo,$AC:$AC,Sheet1!S71_ItemType,$AD:$AD)","v":0},{"$f":"SUMIFS(Sheet1!S71_OY2BudgetAmount,Sheet1!S71_SubMunicipalVoteNo,$AC:$AC,Sheet1!S71_ItemType,$AD:$AD)","v":0},null,null,null,null,null,null,null,null,null,null,null,null,null,null,null,null,null,42,"IE"]
["",null,{"$f":"SUMIFS(Sheet1!S71_PPPYearAmount,Sheet1!S71_SubMunicipalVoteNo,$AC:$AC,Sheet1!S71_ItemType,$AD:$AD)","v":0},{"$f":"SUMIFS(Sheet1!S71_PPYearAmount,Sheet1!S71_SubMunicipalVoteNo,$AC:$AC,Sheet1!S71_ItemType,$AD:$AD)","v":0},{"$f":"SUMIFS(Sheet1!S71_PYearAmount,Sheet1!S71_SubMunicipalVoteNo,$AC:$AC,Sheet1!S71_ItemType,$AD:$AD)","v":0},{"$f":"SUMIFS(Sheet1!S71_OriginalBudAmnt,Sheet1!S71_SubMunicipalVoteNo,$AC:$AC,Sheet1!S71_ItemType,$AD:$AD)","v":0},{"$f":"SUMIFS(Sheet1!S71_AdjustmentBudAmnt,Sheet1!S71_SubMunicipalVoteNo,$AC:$AC,Sheet1!S71_ItemType,$AD:$AD)","v":0},{"$f":"SUMIFS(Sheet1!S71_AdjustmentBudAmnt,Sheet1!S71_SubMunicipalVoteNo,$AC:$AC,Sheet1!S71_ItemType,$AD:$AD)","v":0},{"$f":"SUMIFS(Sheet1!S71_ASBudgetAmount,Sheet1!S71_SubMunicipalVoteNo,$AC:$AC,Sheet1!S71_ItemType,$AD:$AD)","v":0},{"$f":"SUMIFS(Sheet1!S71_OY1BudgetAmount,Sheet1!S71_SubMunicipalVoteNo,$AC:$AC,Sheet1!S71_ItemType,$AD:$AD)","v":0},{"$f":"SUMIFS(Sheet1!S71_OY2BudgetAmount,Sheet1!S71_SubMunicipalVoteNo,$AC:$AC,Sheet1!S71_ItemType,$AD:$AD)","v":0},null,null,null,null,null,null,null,null,null,null,null,null,null,null,null,null,null,43,"IE"]
["",null,{"$f":"SUMIFS(Sheet1!S71_PPPYearAmount,Sheet1!S71_SubMunicipalVoteNo,$AC:$AC,Sheet1!S71_ItemType,$AD:$AD)","v":0},{"$f":"SUMIFS(Sheet1!S71_PPYearAmount,Sheet1!S71_SubMunicipalVoteNo,$AC:$AC,Sheet1!S71_ItemType,$AD:$AD)","v":0},{"$f":"SUMIFS(Sheet1!S71_PYearAmount,Sheet1!S71_SubMunicipalVoteNo,$AC:$AC,Sheet1!S71_ItemType,$AD:$AD)","v":0},{"$f":"SUMIFS(Sheet1!S71_OriginalBudAmnt,Sheet1!S71_SubMunicipalVoteNo,$AC:$AC,Sheet1!S71_ItemType,$AD:$AD)","v":0},{"$f":"SUMIFS(Sheet1!S71_AdjustmentBudAmnt,Sheet1!S71_SubMunicipalVoteNo,$AC:$AC,Sheet1!S71_ItemType,$AD:$AD)","v":0},{"$f":"SUMIFS(Sheet1!S71_AdjustmentBudAmnt,Sheet1!S71_SubMunicipalVoteNo,$AC:$AC,Sheet1!S71_ItemType,$AD:$AD)","v":0},{"$f":"SUMIFS(Sheet1!S71_ASBudgetAmount,Sheet1!S71_SubMunicipalVoteNo,$AC:$AC,Sheet1!S71_ItemType,$AD:$AD)","v":0},{"$f":"SUMIFS(Sheet1!S71_OY1BudgetAmount,Sheet1!S71_SubMunicipalVoteNo,$AC:$AC,Sheet1!S71_ItemType,$AD:$AD)","v":0},{"$f":"SUMIFS(Sheet1!S71_OY2BudgetAmount,Sheet1!S71_SubMunicipalVoteNo,$AC:$AC,Sheet1!S71_ItemType,$AD:$AD)","v":0},null,null,null,null,null,null,null,null,null,null,null,null,null,null,null,null,null,44,"IE"]
["",null,{"$f":"SUMIFS(Sheet1!S71_PPPYearAmount,Sheet1!S71_SubMunicipalVoteNo,$AC:$AC,Sheet1!S71_ItemType,$AD:$AD)","v":0},{"$f":"SUMIFS(Sheet1!S71_PPYearAmount,Sheet1!S71_SubMunicipalVoteNo,$AC:$AC,Sheet1!S71_ItemType,$AD:$AD)","v":0},{"$f":"SUMIFS(Sheet1!S71_PYearAmount,Sheet1!S71_SubMunicipalVoteNo,$AC:$AC,Sheet1!S71_ItemType,$AD:$AD)","v":0},{"$f":"SUMIFS(Sheet1!S71_OriginalBudAmnt,Sheet1!S71_SubMunicipalVoteNo,$AC:$AC,Sheet1!S71_ItemType,$AD:$AD)","v":0},{"$f":"SUMIFS(Sheet1!S71_AdjustmentBudAmnt,Sheet1!S71_SubMunicipalVoteNo,$AC:$AC,Sheet1!S71_ItemType,$AD:$AD)","v":0},{"$f":"SUMIFS(Sheet1!S71_AdjustmentBudAmnt,Sheet1!S71_SubMunicipalVoteNo,$AC:$AC,Sheet1!S71_ItemType,$AD:$AD)","v":0},{"$f":"SUMIFS(Sheet1!S71_ASBudgetAmount,Sheet1!S71_SubMunicipalVoteNo,$AC:$AC,Sheet1!S71_ItemType,$AD:$AD)","v":0},{"$f":"SUMIFS(Sheet1!S71_OY1BudgetAmount,Sheet1!S71_SubMunicipalVoteNo,$AC:$AC,Sheet1!S71_ItemType,$AD:$AD)","v":0},{"$f":"SUMIFS(Sheet1!S71_OY2BudgetAmount,Sheet1!S71_SubMunicipalVoteNo,$AC:$AC,Sheet1!S71_ItemType,$AD:$AD)","v":0},null,null,null,null,null,null,null,null,null,null,null,null,null,null,null,null,null,45,"IE"]
["",null,{"$f":"SUMIFS(Sheet1!S71_PPPYearAmount,Sheet1!S71_SubMunicipalVoteNo,$AC:$AC,Sheet1!S71_ItemType,$AD:$AD)","v":0},{"$f":"SUMIFS(Sheet1!S71_PPYearAmount,Sheet1!S71_SubMunicipalVoteNo,$AC:$AC,Sheet1!S71_ItemType,$AD:$AD)","v":0},{"$f":"SUMIFS(Sheet1!S71_PYearAmount,Sheet1!S71_SubMunicipalVoteNo,$AC:$AC,Sheet1!S71_ItemType,$AD:$AD)","v":0},{"$f":"SUMIFS(Sheet1!S71_OriginalBudAmnt,Sheet1!S71_SubMunicipalVoteNo,$AC:$AC,Sheet1!S71_ItemType,$AD:$AD)","v":0},{"$f":"SUMIFS(Sheet1!S71_AdjustmentBudAmnt,Sheet1!S71_SubMunicipalVoteNo,$AC:$AC,Sheet1!S71_ItemType,$AD:$AD)","v":0},{"$f":"SUMIFS(Sheet1!S71_AdjustmentBudAmnt,Sheet1!S71_SubMunicipalVoteNo,$AC:$AC,Sheet1!S71_ItemType,$AD:$AD)","v":0},{"$f":"SUMIFS(Sheet1!S71_ASBudgetAmount,Sheet1!S71_SubMunicipalVoteNo,$AC:$AC,Sheet1!S71_ItemType,$AD:$AD)","v":0},{"$f":"SUMIFS(Sheet1!S71_OY1BudgetAmount,Sheet1!S71_SubMunicipalVoteNo,$AC:$AC,Sheet1!S71_ItemType,$AD:$AD)","v":0},{"$f":"SUMIFS(Sheet1!S71_OY2BudgetAmount,Sheet1!S71_SubMunicipalVoteNo,$AC:$AC,Sheet1!S71_ItemType,$AD:$AD)","v":0},null,null,null,null,null,null,null,null,null,null,null,null,null,null,null,null,null,46,"IE"]
["",null,{"$f":"SUMIFS(Sheet1!S71_PPPYearAmount,Sheet1!S71_SubMunicipalVoteNo,$AC:$AC,Sheet1!S71_ItemType,$AD:$AD)","v":0},{"$f":"SUMIFS(Sheet1!S71_PPYearAmount,Sheet1!S71_SubMunicipalVoteNo,$AC:$AC,Sheet1!S71_ItemType,$AD:$AD)","v":0},{"$f":"SUMIFS(Sheet1!S71_PYearAmount,Sheet1!S71_SubMunicipalVoteNo,$AC:$AC,Sheet1!S71_ItemType,$AD:$AD)","v":0},{"$f":"SUMIFS(Sheet1!S71_OriginalBudAmnt,Sheet1!S71_SubMunicipalVoteNo,$AC:$AC,Sheet1!S71_ItemType,$AD:$AD)","v":0},{"$f":"SUMIFS(Sheet1!S71_AdjustmentBudAmnt,Sheet1!S71_SubMunicipalVoteNo,$AC:$AC,Sheet1!S71_ItemType,$AD:$AD)","v":0},{"$f":"SUMIFS(Sheet1!S71_AdjustmentBudAmnt,Sheet1!S71_SubMunicipalVoteNo,$AC:$AC,Sheet1!S71_ItemType,$AD:$AD)","v":0},{"$f":"SUMIFS(Sheet1!S71_ASBudgetAmount,Sheet1!S71_SubMunicipalVoteNo,$AC:$AC,Sheet1!S71_ItemType,$AD:$AD)","v":0},{"$f":"SUMIFS(Sheet1!S71_OY1BudgetAmount,Sheet1!S71_SubMunicipalVoteNo,$AC:$AC,Sheet1!S71_ItemType,$AD:$AD)","v":0},{"$f":"SUMIFS(Sheet1!S71_OY2BudgetAmount,Sheet1!S71_SubMunicipalVoteNo,$AC:$AC,Sheet1!S71_ItemType,$AD:$AD)","v":0},null,null,null,null,null,null,null,null,null,null,null,null,null,null,null,null,null,47,"IE"]
["",null,{"$f":"SUMIFS(Sheet1!S71_PPPYearAmount,Sheet1!S71_SubMunicipalVoteNo,$AC:$AC,Sheet1!S71_ItemType,$AD:$AD)","v":0},{"$f":"SUMIFS(Sheet1!S71_PPYearAmount,Sheet1!S71_SubMunicipalVoteNo,$AC:$AC,Sheet1!S71_ItemType,$AD:$AD)","v":0},{"$f":"SUMIFS(Sheet1!S71_PYearAmount,Sheet1!S71_SubMunicipalVoteNo,$AC:$AC,Sheet1!S71_ItemType,$AD:$AD)","v":0},{"$f":"SUMIFS(Sheet1!S71_OriginalBudAmnt,Sheet1!S71_SubMunicipalVoteNo,$AC:$AC,Sheet1!S71_ItemType,$AD:$AD)","v":0},{"$f":"SUMIFS(Sheet1!S71_AdjustmentBudAmnt,Sheet1!S71_SubMunicipalVoteNo,$AC:$AC,Sheet1!S71_ItemType,$AD:$AD)","v":0},{"$f":"SUMIFS(Sheet1!S71_AdjustmentBudAmnt,Sheet1!S71_SubMunicipalVoteNo,$AC:$AC,Sheet1!S71_ItemType,$AD:$AD)","v":0},{"$f":"SUMIFS(Sheet1!S71_ASBudgetAmount,Sheet1!S71_SubMunicipalVoteNo,$AC:$AC,Sheet1!S71_ItemType,$AD:$AD)","v":0},{"$f":"SUMIFS(Sheet1!S71_OY1BudgetAmount,Sheet1!S71_SubMunicipalVoteNo,$AC:$AC,Sheet1!S71_ItemType,$AD:$AD)","v":0},{"$f":"SUMIFS(Sheet1!S71_OY2BudgetAmount,Sheet1!S71_SubMunicipalVoteNo,$AC:$AC,Sheet1!S71_ItemType,$AD:$AD)","v":0},null,null,null,null,null,null,null,null,null,null,null,null,null,null,null,null,null,48,"IE"]
["",null,{"$f":"SUMIFS(Sheet1!S71_PPPYearAmount,Sheet1!S71_SubMunicipalVoteNo,$AC:$AC,Sheet1!S71_ItemType,$AD:$AD)","v":0},{"$f":"SUMIFS(Sheet1!S71_PPYearAmount,Sheet1!S71_SubMunicipalVoteNo,$AC:$AC,Sheet1!S71_ItemType,$AD:$AD)","v":0},{"$f":"SUMIFS(Sheet1!S71_PYearAmount,Sheet1!S71_SubMunicipalVoteNo,$AC:$AC,Sheet1!S71_ItemType,$AD:$AD)","v":0},{"$f":"SUMIFS(Sheet1!S71_OriginalBudAmnt,Sheet1!S71_SubMunicipalVoteNo,$AC:$AC,Sheet1!S71_ItemType,$AD:$AD)","v":0},{"$f":"SUMIFS(Sheet1!S71_AdjustmentBudAmnt,Sheet1!S71_SubMunicipalVoteNo,$AC:$AC,Sheet1!S71_ItemType,$AD:$AD)","v":0},{"$f":"SUMIFS(Sheet1!S71_AdjustmentBudAmnt,Sheet1!S71_SubMunicipalVoteNo,$AC:$AC,Sheet1!S71_ItemType,$AD:$AD)","v":0},{"$f":"SUMIFS(Sheet1!S71_ASBudgetAmount,Sheet1!S71_SubMunicipalVoteNo,$AC:$AC,Sheet1!S71_ItemType,$AD:$AD)","v":0},{"$f":"SUMIFS(Sheet1!S71_OY1BudgetAmount,Sheet1!S71_SubMunicipalVoteNo,$AC:$AC,Sheet1!S71_ItemType,$AD:$AD)","v":0},{"$f":"SUMIFS(Sheet1!S71_OY2BudgetAmount,Sheet1!S71_SubMunicipalVoteNo,$AC:$AC,Sheet1!S71_ItemType,$AD:$AD)","v":0},null,null,null,null,null,null,null,null,null,null,null,null,null,null,null,null,null,49,"IE"]
["",null,{"$f":"SUMIFS(Sheet1!S71_PPPYearAmount,Sheet1!S71_SubMunicipalVoteNo,$AC:$AC,Sheet1!S71_ItemType,$AD:$AD)","v":0},{"$f":"SUMIFS(Sheet1!S71_PPYearAmount,Sheet1!S71_SubMunicipalVoteNo,$AC:$AC,Sheet1!S71_ItemType,$AD:$AD)","v":0},{"$f":"SUMIFS(Sheet1!S71_PYearAmount,Sheet1!S71_SubMunicipalVoteNo,$AC:$AC,Sheet1!S71_ItemType,$AD:$AD)","v":0},{"$f":"SUMIFS(Sheet1!S71_OriginalBudAmnt,Sheet1!S71_SubMunicipalVoteNo,$AC:$AC,Sheet1!S71_ItemType,$AD:$AD)","v":0},{"$f":"SUMIFS(Sheet1!S71_AdjustmentBudAmnt,Sheet1!S71_SubMunicipalVoteNo,$AC:$AC,Sheet1!S71_ItemType,$AD:$AD)","v":0},{"$f":"SUMIFS(Sheet1!S71_AdjustmentBudAmnt,Sheet1!S71_SubMunicipalVoteNo,$AC:$AC,Sheet1!S71_ItemType,$AD:$AD)","v":0},{"$f":"SUMIFS(Sheet1!S71_ASBudgetAmount,Sheet1!S71_SubMunicipalVoteNo,$AC:$AC,Sheet1!S71_ItemType,$AD:$AD)","v":0},{"$f":"SUMIFS(Sheet1!S71_OY1BudgetAmount,Sheet1!S71_SubMunicipalVoteNo,$AC:$AC,Sheet1!S71_ItemType,$AD:$AD)","v":0},{"$f":"SUMIFS(Sheet1!S71_OY2BudgetAmount,Sheet1!S71_SubMunicipalVoteNo,$AC:$AC,Sheet1!S71_ItemType,$AD:$AD)","v":0},null,null,null,null,null,null,null,null,null,null,null,null,null,null,null,null,null,410,"IE"]
["Vote 5 - Environmental Protection",null,{"$f":"SUM(C218:C227)","v":0},47227,0,500000,0,0,0,0,0]
["5.1 - Biodiversity and Landscape",null,{"$f":"SUMIFS(Sheet1!S71_PPPYearAmount,Sheet1!S71_SubMunicipalVoteNo,$AC:$AC,Sheet1!S71_ItemType,$AD:$AD)","v":0},{"$f":"SUMIFS(Sheet1!S71_PPYearAmount,Sheet1!S71_SubMunicipalVoteNo,$AC:$AC,Sheet1!S71_ItemType,$AD:$AD)","v":47227},{"$f":"SUMIFS(Sheet1!S71_PYearAmount,Sheet1!S71_SubMunicipalVoteNo,$AC:$AC,Sheet1!S71_ItemType,$AD:$AD)","v":0},{"$f":"SUMIFS(Sheet1!S71_OriginalBudAmnt,Sheet1!S71_SubMunicipalVoteNo,$AC:$AC,Sheet1!S71_ItemType,$AD:$AD)","v":500000},{"$f":"SUMIFS(Sheet1!S71_AdjustmentBudAmnt,Sheet1!S71_SubMunicipalVoteNo,$AC:$AC,Sheet1!S71_ItemType,$AD:$AD)","v":0},{"$f":"SUMIFS(Sheet1!S71_AdjustmentBudAmnt,Sheet1!S71_SubMunicipalVoteNo,$AC:$AC,Sheet1!S71_ItemType,$AD:$AD)","v":0},{"$f":"SUMIFS(Sheet1!S71_ASBudgetAmount,Sheet1!S71_SubMunicipalVoteNo,$AC:$AC,Sheet1!S71_ItemType,$AD:$AD)","v":0},{"$f":"SUMIFS(Sheet1!S71_OY1BudgetAmount,Sheet1!S71_SubMunicipalVoteNo,$AC:$AC,Sheet1!S71_ItemType,$AD:$AD)","v":0},{"$f":"SUMIFS(Sheet1!S71_OY2BudgetAmount,Sheet1!S71_SubMunicipalVoteNo,$AC:$AC,Sheet1!S71_ItemType,$AD:$AD)","v":0},null,null,null,null,null,null,null,null,null,null,null,null,null,null,null,null,null,51,"IE"]
["",null,{"$f":"SUMIFS(Sheet1!S71_PPPYearAmount,Sheet1!S71_SubMunicipalVoteNo,$AC:$AC,Sheet1!S71_ItemType,$AD:$AD)","v":0},{"$f":"SUMIFS(Sheet1!S71_PPYearAmount,Sheet1!S71_SubMunicipalVoteNo,$AC:$AC,Sheet1!S71_ItemType,$AD:$AD)","v":0},{"$f":"SUMIFS(Sheet1!S71_PYearAmount,Sheet1!S71_SubMunicipalVoteNo,$AC:$AC,Sheet1!S71_ItemType,$AD:$AD)","v":0},{"$f":"SUMIFS(Sheet1!S71_OriginalBudAmnt,Sheet1!S71_SubMunicipalVoteNo,$AC:$AC,Sheet1!S71_ItemType,$AD:$AD)","v":0},{"$f":"SUMIFS(Sheet1!S71_AdjustmentBudAmnt,Sheet1!S71_SubMunicipalVoteNo,$AC:$AC,Sheet1!S71_ItemType,$AD:$AD)","v":0},{"$f":"SUMIFS(Sheet1!S71_AdjustmentBudAmnt,Sheet1!S71_SubMunicipalVoteNo,$AC:$AC,Sheet1!S71_ItemType,$AD:$AD)","v":0},{"$f":"SUMIFS(Sheet1!S71_ASBudgetAmount,Sheet1!S71_SubMunicipalVoteNo,$AC:$AC,Sheet1!S71_ItemType,$AD:$AD)","v":0},{"$f":"SUMIFS(Sheet1!S71_OY1BudgetAmount,Sheet1!S71_SubMunicipalVoteNo,$AC:$AC,Sheet1!S71_ItemType,$AD:$AD)","v":0},{"$f":"SUMIFS(Sheet1!S71_OY2BudgetAmount,Sheet1!S71_SubMunicipalVoteNo,$AC:$AC,Sheet1!S71_ItemType,$AD:$AD)","v":0},null,null,null,null,null,null,null,null,null,null,null,null,null,null,null,null,null,52,"IE"]
["",null,{"$f":"SUMIFS(Sheet1!S71_PPPYearAmount,Sheet1!S71_SubMunicipalVoteNo,$AC:$AC,Sheet1!S71_ItemType,$AD:$AD)","v":0},{"$f":"SUMIFS(Sheet1!S71_PPYearAmount,Sheet1!S71_SubMunicipalVoteNo,$AC:$AC,Sheet1!S71_ItemType,$AD:$AD)","v":0},{"$f":"SUMIFS(Sheet1!S71_PYearAmount,Sheet1!S71_SubMunicipalVoteNo,$AC:$AC,Sheet1!S71_ItemType,$AD:$AD)","v":0},{"$f":"SUMIFS(Sheet1!S71_OriginalBudAmnt,Sheet1!S71_SubMunicipalVoteNo,$AC:$AC,Sheet1!S71_ItemType,$AD:$AD)","v":0},{"$f":"SUMIFS(Sheet1!S71_AdjustmentBudAmnt,Sheet1!S71_SubMunicipalVoteNo,$AC:$AC,Sheet1!S71_ItemType,$AD:$AD)","v":0},{"$f":"SUMIFS(Sheet1!S71_AdjustmentBudAmnt,Sheet1!S71_SubMunicipalVoteNo,$AC:$AC,Sheet1!S71_ItemType,$AD:$AD)","v":0},{"$f":"SUMIFS(Sheet1!S71_ASBudgetAmount,Sheet1!S71_SubMunicipalVoteNo,$AC:$AC,Sheet1!S71_ItemType,$AD:$AD)","v":0},{"$f":"SUMIFS(Sheet1!S71_OY1BudgetAmount,Sheet1!S71_SubMunicipalVoteNo,$AC:$AC,Sheet1!S71_ItemType,$AD:$AD)","v":0},{"$f":"SUMIFS(Sheet1!S71_OY2BudgetAmount,Sheet1!S71_SubMunicipalVoteNo,$AC:$AC,Sheet1!S71_ItemType,$AD:$AD)","v":0},null,null,null,null,null,null,null,null,null,null,null,null,null,null,null,null,null,53,"IE"]
["",null,{"$f":"SUMIFS(Sheet1!S71_PPPYearAmount,Sheet1!S71_SubMunicipalVoteNo,$AC:$AC,Sheet1!S71_ItemType,$AD:$AD)","v":0},{"$f":"SUMIFS(Sheet1!S71_PPYearAmount,Sheet1!S71_SubMunicipalVoteNo,$AC:$AC,Sheet1!S71_ItemType,$AD:$AD)","v":0},{"$f":"SUMIFS(Sheet1!S71_PYearAmount,Sheet1!S71_SubMunicipalVoteNo,$AC:$AC,Sheet1!S71_ItemType,$AD:$AD)","v":0},{"$f":"SUMIFS(Sheet1!S71_OriginalBudAmnt,Sheet1!S71_SubMunicipalVoteNo,$AC:$AC,Sheet1!S71_ItemType,$AD:$AD)","v":0},{"$f":"SUMIFS(Sheet1!S71_AdjustmentBudAmnt,Sheet1!S71_SubMunicipalVoteNo,$AC:$AC,Sheet1!S71_ItemType,$AD:$AD)","v":0},{"$f":"SUMIFS(Sheet1!S71_AdjustmentBudAmnt,Sheet1!S71_SubMunicipalVoteNo,$AC:$AC,Sheet1!S71_ItemType,$AD:$AD)","v":0},{"$f":"SUMIFS(Sheet1!S71_ASBudgetAmount,Sheet1!S71_SubMunicipalVoteNo,$AC:$AC,Sheet1!S71_ItemType,$AD:$AD)","v":0},{"$f":"SUMIFS(Sheet1!S71_OY1BudgetAmount,Sheet1!S71_SubMunicipalVoteNo,$AC:$AC,Sheet1!S71_ItemType,$AD:$AD)","v":0},{"$f":"SUMIFS(Sheet1!S71_OY2BudgetAmount,Sheet1!S71_SubMunicipalVoteNo,$AC:$AC,Sheet1!S71_ItemType,$AD:$AD)","v":0},null,null,null,null,null,null,null,null,null,null,null,null,null,null,null,null,null,54,"IE"]
["",null,{"$f":"SUMIFS(Sheet1!S71_PPPYearAmount,Sheet1!S71_SubMunicipalVoteNo,$AC:$AC,Sheet1!S71_ItemType,$AD:$AD)","v":0},{"$f":"SUMIFS(Sheet1!S71_PPYearAmount,Sheet1!S71_SubMunicipalVoteNo,$AC:$AC,Sheet1!S71_ItemType,$AD:$AD)","v":0},{"$f":"SUMIFS(Sheet1!S71_PYearAmount,Sheet1!S71_SubMunicipalVoteNo,$AC:$AC,Sheet1!S71_ItemType,$AD:$AD)","v":0},{"$f":"SUMIFS(Sheet1!S71_OriginalBudAmnt,Sheet1!S71_SubMunicipalVoteNo,$AC:$AC,Sheet1!S71_ItemType,$AD:$AD)","v":0},{"$f":"SUMIFS(Sheet1!S71_AdjustmentBudAmnt,Sheet1!S71_SubMunicipalVoteNo,$AC:$AC,Sheet1!S71_ItemType,$AD:$AD)","v":0},{"$f":"SUMIFS(Sheet1!S71_AdjustmentBudAmnt,Sheet1!S71_SubMunicipalVoteNo,$AC:$AC,Sheet1!S71_ItemType,$AD:$AD)","v":0},{"$f":"SUMIFS(Sheet1!S71_ASBudgetAmount,Sheet1!S71_SubMunicipalVoteNo,$AC:$AC,Sheet1!S71_ItemType,$AD:$AD)","v":0},{"$f":"SUMIFS(Sheet1!S71_OY1BudgetAmount,Sheet1!S71_SubMunicipalVoteNo,$AC:$AC,Sheet1!S71_ItemType,$AD:$AD)","v":0},{"$f":"SUMIFS(Sheet1!S71_OY2BudgetAmount,Sheet1!S71_SubMunicipalVoteNo,$AC:$AC,Sheet1!S71_ItemType,$AD:$AD)","v":0},null,null,null,null,null,null,null,null,null,null,null,null,null,null,null,null,null,55,"IE"]
["",null,{"$f":"SUMIFS(Sheet1!S71_PPPYearAmount,Sheet1!S71_SubMunicipalVoteNo,$AC:$AC,Sheet1!S71_ItemType,$AD:$AD)","v":0},{"$f":"SUMIFS(Sheet1!S71_PPYearAmount,Sheet1!S71_SubMunicipalVoteNo,$AC:$AC,Sheet1!S71_ItemType,$AD:$AD)","v":0},{"$f":"SUMIFS(Sheet1!S71_PYearAmount,Sheet1!S71_SubMunicipalVoteNo,$AC:$AC,Sheet1!S71_ItemType,$AD:$AD)","v":0},{"$f":"SUMIFS(Sheet1!S71_OriginalBudAmnt,Sheet1!S71_SubMunicipalVoteNo,$AC:$AC,Sheet1!S71_ItemType,$AD:$AD)","v":0},{"$f":"SUMIFS(Sheet1!S71_AdjustmentBudAmnt,Sheet1!S71_SubMunicipalVoteNo,$AC:$AC,Sheet1!S71_ItemType,$AD:$AD)","v":0},{"$f":"SUMIFS(Sheet1!S71_AdjustmentBudAmnt,Sheet1!S71_SubMunicipalVoteNo,$AC:$AC,Sheet1!S71_ItemType,$AD:$AD)","v":0},{"$f":"SUMIFS(Sheet1!S71_ASBudgetAmount,Sheet1!S71_SubMunicipalVoteNo,$AC:$AC,Sheet1!S71_ItemType,$AD:$AD)","v":0},{"$f":"SUMIFS(Sheet1!S71_OY1BudgetAmount,Sheet1!S71_SubMunicipalVoteNo,$AC:$AC,Sheet1!S71_ItemType,$AD:$AD)","v":0},{"$f":"SUMIFS(Sheet1!S71_OY2BudgetAmount,Sheet1!S71_SubMunicipalVoteNo,$AC:$AC,Sheet1!S71_ItemType,$AD:$AD)","v":0},null,null,null,null,null,null,null,null,null,null,null,null,null,null,null,null,null,56,"IE"]
["",null,{"$f":"SUMIFS(Sheet1!S71_PPPYearAmount,Sheet1!S71_SubMunicipalVoteNo,$AC:$AC,Sheet1!S71_ItemType,$AD:$AD)","v":0},{"$f":"SUMIFS(Sheet1!S71_PPYearAmount,Sheet1!S71_SubMunicipalVoteNo,$AC:$AC,Sheet1!S71_ItemType,$AD:$AD)","v":0},{"$f":"SUMIFS(Sheet1!S71_PYearAmount,Sheet1!S71_SubMunicipalVoteNo,$AC:$AC,Sheet1!S71_ItemType,$AD:$AD)","v":0},{"$f":"SUMIFS(Sheet1!S71_OriginalBudAmnt,Sheet1!S71_SubMunicipalVoteNo,$AC:$AC,Sheet1!S71_ItemType,$AD:$AD)","v":0},{"$f":"SUMIFS(Sheet1!S71_AdjustmentBudAmnt,Sheet1!S71_SubMunicipalVoteNo,$AC:$AC,Sheet1!S71_ItemType,$AD:$AD)","v":0},{"$f":"SUMIFS(Sheet1!S71_AdjustmentBudAmnt,Sheet1!S71_SubMunicipalVoteNo,$AC:$AC,Sheet1!S71_ItemType,$AD:$AD)","v":0},{"$f":"SUMIFS(Sheet1!S71_ASBudgetAmount,Sheet1!S71_SubMunicipalVoteNo,$AC:$AC,Sheet1!S71_ItemType,$AD:$AD)","v":0},{"$f":"SUMIFS(Sheet1!S71_OY1BudgetAmount,Sheet1!S71_SubMunicipalVoteNo,$AC:$AC,Sheet1!S71_ItemType,$AD:$AD)","v":0},{"$f":"SUMIFS(Sheet1!S71_OY2BudgetAmount,Sheet1!S71_SubMunicipalVoteNo,$AC:$AC,Sheet1!S71_ItemType,$AD:$AD)","v":0},null,null,null,null,null,null,null,null,null,null,null,null,null,null,null,null,null,57,"IE"]
["",null,{"$f":"SUMIFS(Sheet1!S71_PPPYearAmount,Sheet1!S71_SubMunicipalVoteNo,$AC:$AC,Sheet1!S71_ItemType,$AD:$AD)","v":0},{"$f":"SUMIFS(Sheet1!S71_PPYearAmount,Sheet1!S71_SubMunicipalVoteNo,$AC:$AC,Sheet1!S71_ItemType,$AD:$AD)","v":0},{"$f":"SUMIFS(Sheet1!S71_PYearAmount,Sheet1!S71_SubMunicipalVoteNo,$AC:$AC,Sheet1!S71_ItemType,$AD:$AD)","v":0},{"$f":"SUMIFS(Sheet1!S71_OriginalBudAmnt,Sheet1!S71_SubMunicipalVoteNo,$AC:$AC,Sheet1!S71_ItemType,$AD:$AD)","v":0},{"$f":"SUMIFS(Sheet1!S71_AdjustmentBudAmnt,Sheet1!S71_SubMunicipalVoteNo,$AC:$AC,Sheet1!S71_ItemType,$AD:$AD)","v":0},{"$f":"SUMIFS(Sheet1!S71_AdjustmentBudAmnt,Sheet1!S71_SubMunicipalVoteNo,$AC:$AC,Sheet1!S71_ItemType,$AD:$AD)","v":0},{"$f":"SUMIFS(Sheet1!S71_ASBudgetAmount,Sheet1!S71_SubMunicipalVoteNo,$AC:$AC,Sheet1!S71_ItemType,$AD:$AD)","v":0},{"$f":"SUMIFS(Sheet1!S71_OY1BudgetAmount,Sheet1!S71_SubMunicipalVoteNo,$AC:$AC,Sheet1!S71_ItemType,$AD:$AD)","v":0},{"$f":"SUMIFS(Sheet1!S71_OY2BudgetAmount,Sheet1!S71_SubMunicipalVoteNo,$AC:$AC,Sheet1!S71_ItemType,$AD:$AD)","v":0},null,null,null,null,null,null,null,null,null,null,null,null,null,null,null,null,null,58,"IE"]
["",null,{"$f":"SUMIFS(Sheet1!S71_PPPYearAmount,Sheet1!S71_SubMunicipalVoteNo,$AC:$AC,Sheet1!S71_ItemType,$AD:$AD)","v":0},{"$f":"SUMIFS(Sheet1!S71_PPYearAmount,Sheet1!S71_SubMunicipalVoteNo,$AC:$AC,Sheet1!S71_ItemType,$AD:$AD)","v":0},{"$f":"SUMIFS(Sheet1!S71_PYearAmount,Sheet1!S71_SubMunicipalVoteNo,$AC:$AC,Sheet1!S71_ItemType,$AD:$AD)","v":0},{"$f":"SUMIFS(Sheet1!S71_OriginalBudAmnt,Sheet1!S71_SubMunicipalVoteNo,$AC:$AC,Sheet1!S71_ItemType,$AD:$AD)","v":0},{"$f":"SUMIFS(Sheet1!S71_AdjustmentBudAmnt,Sheet1!S71_SubMunicipalVoteNo,$AC:$AC,Sheet1!S71_ItemType,$AD:$AD)","v":0},{"$f":"SUMIFS(Sheet1!S71_AdjustmentBudAmnt,Sheet1!S71_SubMunicipalVoteNo,$AC:$AC,Sheet1!S71_ItemType,$AD:$AD)","v":0},{"$f":"SUMIFS(Sheet1!S71_ASBudgetAmount,Sheet1!S71_SubMunicipalVoteNo,$AC:$AC,Sheet1!S71_ItemType,$AD:$AD)","v":0},{"$f":"SUMIFS(Sheet1!S71_OY1BudgetAmount,Sheet1!S71_SubMunicipalVoteNo,$AC:$AC,Sheet1!S71_ItemType,$AD:$AD)","v":0},{"$f":"SUMIFS(Sheet1!S71_OY2BudgetAmount,Sheet1!S71_SubMunicipalVoteNo,$AC:$AC,Sheet1!S71_ItemType,$AD:$AD)","v":0},null,null,null,null,null,null,null,null,null,null,null,null,null,null,null,null,null,59,"IE"]
["",null,{"$f":"SUMIFS(Sheet1!S71_PPPYearAmount,Sheet1!S71_SubMunicipalVoteNo,$AC:$AC,Sheet1!S71_ItemType,$AD:$AD)","v":0},{"$f":"SUMIFS(Sheet1!S71_PPYearAmount,Sheet1!S71_SubMunicipalVoteNo,$AC:$AC,Sheet1!S71_ItemType,$AD:$AD)","v":0},{"$f":"SUMIFS(Sheet1!S71_PYearAmount,Sheet1!S71_SubMunicipalVoteNo,$AC:$AC,Sheet1!S71_ItemType,$AD:$AD)","v":0},{"$f":"SUMIFS(Sheet1!S71_OriginalBudAmnt,Sheet1!S71_SubMunicipalVoteNo,$AC:$AC,Sheet1!S71_ItemType,$AD:$AD)","v":0},{"$f":"SUMIFS(Sheet1!S71_AdjustmentBudAmnt,Sheet1!S71_SubMunicipalVoteNo,$AC:$AC,Sheet1!S71_ItemType,$AD:$AD)","v":0},{"$f":"SUMIFS(Sheet1!S71_AdjustmentBudAmnt,Sheet1!S71_SubMunicipalVoteNo,$AC:$AC,Sheet1!S71_ItemType,$AD:$AD)","v":0},{"$f":"SUMIFS(Sheet1!S71_ASBudgetAmount,Sheet1!S71_SubMunicipalVoteNo,$AC:$AC,Sheet1!S71_ItemType,$AD:$AD)","v":0},{"$f":"SUMIFS(Sheet1!S71_OY1BudgetAmount,Sheet1!S71_SubMunicipalVoteNo,$AC:$AC,Sheet1!S71_ItemType,$AD:$AD)","v":0},{"$f":"SUMIFS(Sheet1!S71_OY2BudgetAmount,Sheet1!S71_SubMunicipalVoteNo,$AC:$AC,Sheet1!S71_ItemType,$AD:$AD)","v":0},null,null,null,null,null,null,null,null,null,null,null,null,null,null,null,null,null,510,"IE"]
["Vote 6 - [NAME OF VOTE 6]",null,{"$f":"SUM(C229:C238)","v":0},0,0,0,0,0,0,0,0]
["",null,{"$f":"SUMIFS(Sheet1!S71_PPPYearAmount,Sheet1!S71_SubMunicipalVoteNo,$AC:$AC,Sheet1!S71_ItemType,$AD:$AD)","v":0},{"$f":"SUMIFS(Sheet1!S71_PPYearAmount,Sheet1!S71_SubMunicipalVoteNo,$AC:$AC,Sheet1!S71_ItemType,$AD:$AD)","v":0},{"$f":"SUMIFS(Sheet1!S71_PYearAmount,Sheet1!S71_SubMunicipalVoteNo,$AC:$AC,Sheet1!S71_ItemType,$AD:$AD)","v":0},{"$f":"SUMIFS(Sheet1!S71_OriginalBudAmnt,Sheet1!S71_SubMunicipalVoteNo,$AC:$AC,Sheet1!S71_ItemType,$AD:$AD)","v":0},{"$f":"SUMIFS(Sheet1!S71_AdjustmentBudAmnt,Sheet1!S71_SubMunicipalVoteNo,$AC:$AC,Sheet1!S71_ItemType,$AD:$AD)","v":0},{"$f":"SUMIFS(Sheet1!S71_AdjustmentBudAmnt,Sheet1!S71_SubMunicipalVoteNo,$AC:$AC,Sheet1!S71_ItemType,$AD:$AD)","v":0},{"$f":"SUMIFS(Sheet1!S71_ASBudgetAmount,Sheet1!S71_SubMunicipalVoteNo,$AC:$AC,Sheet1!S71_ItemType,$AD:$AD)","v":0},{"$f":"SUMIFS(Sheet1!S71_OY1BudgetAmount,Sheet1!S71_SubMunicipalVoteNo,$AC:$AC,Sheet1!S71_ItemType,$AD:$AD)","v":0},{"$f":"SUMIFS(Sheet1!S71_OY2BudgetAmount,Sheet1!S71_SubMunicipalVoteNo,$AC:$AC,Sheet1!S71_ItemType,$AD:$AD)","v":0},null,null,null,null,null,null,null,null,null,null,null,null,null,null,null,null,null,61,"IE"]
["",null,{"$f":"SUMIFS(Sheet1!S71_PPPYearAmount,Sheet1!S71_SubMunicipalVoteNo,$AC:$AC,Sheet1!S71_ItemType,$AD:$AD)","v":0},{"$f":"SUMIFS(Sheet1!S71_PPYearAmount,Sheet1!S71_SubMunicipalVoteNo,$AC:$AC,Sheet1!S71_ItemType,$AD:$AD)","v":0},{"$f":"SUMIFS(Sheet1!S71_PYearAmount,Sheet1!S71_SubMunicipalVoteNo,$AC:$AC,Sheet1!S71_ItemType,$AD:$AD)","v":0},{"$f":"SUMIFS(Sheet1!S71_OriginalBudAmnt,Sheet1!S71_SubMunicipalVoteNo,$AC:$AC,Sheet1!S71_ItemType,$AD:$AD)","v":0},{"$f":"SUMIFS(Sheet1!S71_AdjustmentBudAmnt,Sheet1!S71_SubMunicipalVoteNo,$AC:$AC,Sheet1!S71_ItemType,$AD:$AD)","v":0},{"$f":"SUMIFS(Sheet1!S71_AdjustmentBudAmnt,Sheet1!S71_SubMunicipalVoteNo,$AC:$AC,Sheet1!S71_ItemType,$AD:$AD)","v":0},{"$f":"SUMIFS(Sheet1!S71_ASBudgetAmount,Sheet1!S71_SubMunicipalVoteNo,$AC:$AC,Sheet1!S71_ItemType,$AD:$AD)","v":0},{"$f":"SUMIFS(Sheet1!S71_OY1BudgetAmount,Sheet1!S71_SubMunicipalVoteNo,$AC:$AC,Sheet1!S71_ItemType,$AD:$AD)","v":0},{"$f":"SUMIFS(Sheet1!S71_OY2BudgetAmount,Sheet1!S71_SubMunicipalVoteNo,$AC:$AC,Sheet1!S71_ItemType,$AD:$AD)","v":0},null,null,null,null,null,null,null,null,null,null,null,null,null,null,null,null,null,62,"IE"]
["",null,{"$f":"SUMIFS(Sheet1!S71_PPPYearAmount,Sheet1!S71_SubMunicipalVoteNo,$AC:$AC,Sheet1!S71_ItemType,$AD:$AD)","v":0},{"$f":"SUMIFS(Sheet1!S71_PPYearAmount,Sheet1!S71_SubMunicipalVoteNo,$AC:$AC,Sheet1!S71_ItemType,$AD:$AD)","v":0},{"$f":"SUMIFS(Sheet1!S71_PYearAmount,Sheet1!S71_SubMunicipalVoteNo,$AC:$AC,Sheet1!S71_ItemType,$AD:$AD)","v":0},{"$f":"SUMIFS(Sheet1!S71_OriginalBudAmnt,Sheet1!S71_SubMunicipalVoteNo,$AC:$AC,Sheet1!S71_ItemType,$AD:$AD)","v":0},{"$f":"SUMIFS(Sheet1!S71_AdjustmentBudAmnt,Sheet1!S71_SubMunicipalVoteNo,$AC:$AC,Sheet1!S71_ItemType,$AD:$AD)","v":0},{"$f":"SUMIFS(Sheet1!S71_AdjustmentBudAmnt,Sheet1!S71_SubMunicipalVoteNo,$AC:$AC,Sheet1!S71_ItemType,$AD:$AD)","v":0},{"$f":"SUMIFS(Sheet1!S71_ASBudgetAmount,Sheet1!S71_SubMunicipalVoteNo,$AC:$AC,Sheet1!S71_ItemType,$AD:$AD)","v":0},{"$f":"SUMIFS(Sheet1!S71_OY1BudgetAmount,Sheet1!S71_SubMunicipalVoteNo,$AC:$AC,Sheet1!S71_ItemType,$AD:$AD)","v":0},{"$f":"SUMIFS(Sheet1!S71_OY2BudgetAmount,Sheet1!S71_SubMunicipalVoteNo,$AC:$AC,Sheet1!S71_ItemType,$AD:$AD)","v":0},null,null,null,null,null,null,null,null,null,null,null,null,null,null,null,null,null,63,"IE"]
["",null,{"$f":"SUMIFS(Sheet1!S71_PPPYearAmount,Sheet1!S71_SubMunicipalVoteNo,$AC:$AC,Sheet1!S71_ItemType,$AD:$AD)","v":0},{"$f":"SUMIFS(Sheet1!S71_PPYearAmount,Sheet1!S71_SubMunicipalVoteNo,$AC:$AC,Sheet1!S71_ItemType,$AD:$AD)","v":0},{"$f":"SUMIFS(Sheet1!S71_PYearAmount,Sheet1!S71_SubMunicipalVoteNo,$AC:$AC,Sheet1!S71_ItemType,$AD:$AD)","v":0},{"$f":"SUMIFS(Sheet1!S71_OriginalBudAmnt,Sheet1!S71_SubMunicipalVoteNo,$AC:$AC,Sheet1!S71_ItemType,$AD:$AD)","v":0},{"$f":"SUMIFS(Sheet1!S71_AdjustmentBudAmnt,Sheet1!S71_SubMunicipalVoteNo,$AC:$AC,Sheet1!S71_ItemType,$AD:$AD)","v":0},{"$f":"SUMIFS(Sheet1!S71_AdjustmentBudAmnt,Sheet1!S71_SubMunicipalVoteNo,$AC:$AC,Sheet1!S71_ItemType,$AD:$AD)","v":0},{"$f":"SUMIFS(Sheet1!S71_ASBudgetAmount,Sheet1!S71_SubMunicipalVoteNo,$AC:$AC,Sheet1!S71_ItemType,$AD:$AD)","v":0},{"$f":"SUMIFS(Sheet1!S71_OY1BudgetAmount,Sheet1!S71_SubMunicipalVoteNo,$AC:$AC,Sheet1!S71_ItemType,$AD:$AD)","v":0},{"$f":"SUMIFS(Sheet1!S71_OY2BudgetAmount,Sheet1!S71_SubMunicipalVoteNo,$AC:$AC,Sheet1!S71_ItemType,$AD:$AD)","v":0},null,null,null,null,null,null,null,null,null,null,null,null,null,null,null,null,null,64,"IE"]
["",null,{"$f":"SUMIFS(Sheet1!S71_PPPYearAmount,Sheet1!S71_SubMunicipalVoteNo,$AC:$AC,Sheet1!S71_ItemType,$AD:$AD)","v":0},{"$f":"SUMIFS(Sheet1!S71_PPYearAmount,Sheet1!S71_SubMunicipalVoteNo,$AC:$AC,Sheet1!S71_ItemType,$AD:$AD)","v":0},{"$f":"SUMIFS(Sheet1!S71_PYearAmount,Sheet1!S71_SubMunicipalVoteNo,$AC:$AC,Sheet1!S71_ItemType,$AD:$AD)","v":0},{"$f":"SUMIFS(Sheet1!S71_OriginalBudAmnt,Sheet1!S71_SubMunicipalVoteNo,$AC:$AC,Sheet1!S71_ItemType,$AD:$AD)","v":0},{"$f":"SUMIFS(Sheet1!S71_AdjustmentBudAmnt,Sheet1!S71_SubMunicipalVoteNo,$AC:$AC,Sheet1!S71_ItemType,$AD:$AD)","v":0},{"$f":"SUMIFS(Sheet1!S71_AdjustmentBudAmnt,Sheet1!S71_SubMunicipalVoteNo,$AC:$AC,Sheet1!S71_ItemType,$AD:$AD)","v":0},{"$f":"SUMIFS(Sheet1!S71_ASBudgetAmount,Sheet1!S71_SubMunicipalVoteNo,$AC:$AC,Sheet1!S71_ItemType,$AD:$AD)","v":0},{"$f":"SUMIFS(Sheet1!S71_OY1BudgetAmount,Sheet1!S71_SubMunicipalVoteNo,$AC:$AC,Sheet1!S71_ItemType,$AD:$AD)","v":0},{"$f":"SUMIFS(Sheet1!S71_OY2BudgetAmount,Sheet1!S71_SubMunicipalVoteNo,$AC:$AC,Sheet1!S71_ItemType,$AD:$AD)","v":0},null,null,null,null,null,null,null,null,null,null,null,null,null,null,null,null,null,65,"IE"]
["",null,{"$f":"SUMIFS(Sheet1!S71_PPPYearAmount,Sheet1!S71_SubMunicipalVoteNo,$AC:$AC,Sheet1!S71_ItemType,$AD:$AD)","v":0},{"$f":"SUMIFS(Sheet1!S71_PPYearAmount,Sheet1!S71_SubMunicipalVoteNo,$AC:$AC,Sheet1!S71_ItemType,$AD:$AD)","v":0},{"$f":"SUMIFS(Sheet1!S71_PYearAmount,Sheet1!S71_SubMunicipalVoteNo,$AC:$AC,Sheet1!S71_ItemType,$AD:$AD)","v":0},{"$f":"SUMIFS(Sheet1!S71_OriginalBudAmnt,Sheet1!S71_SubMunicipalVoteNo,$AC:$AC,Sheet1!S71_ItemType,$AD:$AD)","v":0},{"$f":"SUMIFS(Sheet1!S71_AdjustmentBudAmnt,Sheet1!S71_SubMunicipalVoteNo,$AC:$AC,Sheet1!S71_ItemType,$AD:$AD)","v":0},{"$f":"SUMIFS(Sheet1!S71_AdjustmentBudAmnt,Sheet1!S71_SubMunicipalVoteNo,$AC:$AC,Sheet1!S71_ItemType,$AD:$AD)","v":0},{"$f":"SUMIFS(Sheet1!S71_ASBudgetAmount,Sheet1!S71_SubMunicipalVoteNo,$AC:$AC,Sheet1!S71_ItemType,$AD:$AD)","v":0},{"$f":"SUMIFS(Sheet1!S71_OY1BudgetAmount,Sheet1!S71_SubMunicipalVoteNo,$AC:$AC,Sheet1!S71_ItemType,$AD:$AD)","v":0},{"$f":"SUMIFS(Sheet1!S71_OY2BudgetAmount,Sheet1!S71_SubMunicipalVoteNo,$AC:$AC,Sheet1!S71_ItemType,$AD:$AD)","v":0},null,null,null,null,null,null,null,null,null,null,null,null,null,null,null,null,null,66,"IE"]
["",null,{"$f":"SUMIFS(Sheet1!S71_PPPYearAmount,Sheet1!S71_SubMunicipalVoteNo,$AC:$AC,Sheet1!S71_ItemType,$AD:$AD)","v":0},{"$f":"SUMIFS(Sheet1!S71_PPYearAmount,Sheet1!S71_SubMunicipalVoteNo,$AC:$AC,Sheet1!S71_ItemType,$AD:$AD)","v":0},{"$f":"SUMIFS(Sheet1!S71_PYearAmount,Sheet1!S71_SubMunicipalVoteNo,$AC:$AC,Sheet1!S71_ItemType,$AD:$AD)","v":0},{"$f":"SUMIFS(Sheet1!S71_OriginalBudAmnt,Sheet1!S71_SubMunicipalVoteNo,$AC:$AC,Sheet1!S71_ItemType,$AD:$AD)","v":0},{"$f":"SUMIFS(Sheet1!S71_AdjustmentBudAmnt,Sheet1!S71_SubMunicipalVoteNo,$AC:$AC,Sheet1!S71_ItemType,$AD:$AD)","v":0},{"$f":"SUMIFS(Sheet1!S71_AdjustmentBudAmnt,Sheet1!S71_SubMunicipalVoteNo,$AC:$AC,Sheet1!S71_ItemType,$AD:$AD)","v":0},{"$f":"SUMIFS(Sheet1!S71_ASBudgetAmount,Sheet1!S71_SubMunicipalVoteNo,$AC:$AC,Sheet1!S71_ItemType,$AD:$AD)","v":0},{"$f":"SUMIFS(Sheet1!S71_OY1BudgetAmount,Sheet1!S71_SubMunicipalVoteNo,$AC:$AC,Sheet1!S71_ItemType,$AD:$AD)","v":0},{"$f":"SUMIFS(Sheet1!S71_OY2BudgetAmount,Sheet1!S71_SubMunicipalVoteNo,$AC:$AC,Sheet1!S71_ItemType,$AD:$AD)","v":0},null,null,null,null,null,null,null,null,null,null,null,null,null,null,null,null,null,67,"IE"]
["",null,{"$f":"SUMIFS(Sheet1!S71_PPPYearAmount,Sheet1!S71_SubMunicipalVoteNo,$AC:$AC,Sheet1!S71_ItemType,$AD:$AD)","v":0},{"$f":"SUMIFS(Sheet1!S71_PPYearAmount,Sheet1!S71_SubMunicipalVoteNo,$AC:$AC,Sheet1!S71_ItemType,$AD:$AD)","v":0},{"$f":"SUMIFS(Sheet1!S71_PYearAmount,Sheet1!S71_SubMunicipalVoteNo,$AC:$AC,Sheet1!S71_ItemType,$AD:$AD)","v":0},{"$f":"SUMIFS(Sheet1!S71_OriginalBudAmnt,Sheet1!S71_SubMunicipalVoteNo,$AC:$AC,Sheet1!S71_ItemType,$AD:$AD)","v":0},{"$f":"SUMIFS(Sheet1!S71_AdjustmentBudAmnt,Sheet1!S71_SubMunicipalVoteNo,$AC:$AC,Sheet1!S71_ItemType,$AD:$AD)","v":0},{"$f":"SUMIFS(Sheet1!S71_AdjustmentBudAmnt,Sheet1!S71_SubMunicipalVoteNo,$AC:$AC,Sheet1!S71_ItemType,$AD:$AD)","v":0},{"$f":"SUMIFS(Sheet1!S71_ASBudgetAmount,Sheet1!S71_SubMunicipalVoteNo,$AC:$AC,Sheet1!S71_ItemType,$AD:$AD)","v":0},{"$f":"SUMIFS(Sheet1!S71_OY1BudgetAmount,Sheet1!S71_SubMunicipalVoteNo,$AC:$AC,Sheet1!S71_ItemType,$AD:$AD)","v":0},{"$f":"SUMIFS(Sheet1!S71_OY2BudgetAmount,Sheet1!S71_SubMunicipalVoteNo,$AC:$AC,Sheet1!S71_ItemType,$AD:$AD)","v":0},null,null,null,null,null,null,null,null,null,null,null,null,null,null,null,null,null,68,"IE"]
[{"$f":"A69","v":""},null,{"$f":"SUMIFS(Sheet1!S71_PPPYearAmount,Sheet1!S71_SubMunicipalVoteNo,$AC:$AC,Sheet1!S71_ItemType,$AD:$AD)","v":0},{"$f":"SUMIFS(Sheet1!S71_PPYearAmount,Sheet1!S71_SubMunicipalVoteNo,$AC:$AC,Sheet1!S71_ItemType,$AD:$AD)","v":0},{"$f":"SUMIFS(Sheet1!S71_PYearAmount,Sheet1!S71_SubMunicipalVoteNo,$AC:$AC,Sheet1!S71_ItemType,$AD:$AD)","v":0},{"$f":"SUMIFS(Sheet1!S71_OriginalBudAmnt,Sheet1!S71_SubMunicipalVoteNo,$AC:$AC,Sheet1!S71_ItemType,$AD:$AD)","v":0},{"$f":"SUMIFS(Sheet1!S71_AdjustmentBudAmnt,Sheet1!S71_SubMunicipalVoteNo,$AC:$AC,Sheet1!S71_ItemType,$AD:$AD)","v":0},{"$f":"SUMIFS(Sheet1!S71_AdjustmentBudAmnt,Sheet1!S71_SubMunicipalVoteNo,$AC:$AC,Sheet1!S71_ItemType,$AD:$AD)","v":0},{"$f":"SUMIFS(Sheet1!S71_ASBudgetAmount,Sheet1!S71_SubMunicipalVoteNo,$AC:$AC,Sheet1!S71_ItemType,$AD:$AD)","v":0},{"$f":"SUMIFS(Sheet1!S71_OY1BudgetAmount,Sheet1!S71_SubMunicipalVoteNo,$AC:$AC,Sheet1!S71_ItemType,$AD:$AD)","v":0},{"$f":"SUMIFS(Sheet1!S71_OY2BudgetAmount,Sheet1!S71_SubMunicipalVoteNo,$AC:$AC,Sheet1!S71_ItemType,$AD:$AD)","v":0},null,null,null,null,null,null,null,null,null,null,null,null,null,null,null,null,null,69,"IE"]
["",null,{"$f":"SUMIFS(Sheet1!S71_PPPYearAmount,Sheet1!S71_SubMunicipalVoteNo,$AC:$AC,Sheet1!S71_ItemType,$AD:$AD)","v":0},{"$f":"SUMIFS(Sheet1!S71_PPYearAmount,Sheet1!S71_SubMunicipalVoteNo,$AC:$AC,Sheet1!S71_ItemType,$AD:$AD)","v":0},{"$f":"SUMIFS(Sheet1!S71_PYearAmount,Sheet1!S71_SubMunicipalVoteNo,$AC:$AC,Sheet1!S71_ItemType,$AD:$AD)","v":0},{"$f":"SUMIFS(Sheet1!S71_OriginalBudAmnt,Sheet1!S71_SubMunicipalVoteNo,$AC:$AC,Sheet1!S71_ItemType,$AD:$AD)","v":0},{"$f":"SUMIFS(Sheet1!S71_AdjustmentBudAmnt,Sheet1!S71_SubMunicipalVoteNo,$AC:$AC,Sheet1!S71_ItemType,$AD:$AD)","v":0},{"$f":"SUMIFS(Sheet1!S71_AdjustmentBudAmnt,Sheet1!S71_SubMunicipalVoteNo,$AC:$AC,Sheet1!S71_ItemType,$AD:$AD)","v":0},{"$f":"SUMIFS(Sheet1!S71_ASBudgetAmount,Sheet1!S71_SubMunicipalVoteNo,$AC:$AC,Sheet1!S71_ItemType,$AD:$AD)","v":0},{"$f":"SUMIFS(Sheet1!S71_OY1BudgetAmount,Sheet1!S71_SubMunicipalVoteNo,$AC:$AC,Sheet1!S71_ItemType,$AD:$AD)","v":0},{"$f":"SUMIFS(Sheet1!S71_OY2BudgetAmount,Sheet1!S71_SubMunicipalVoteNo,$AC:$AC,Sheet1!S71_ItemType,$AD:$AD)","v":0},null,null,null,null,null,null,null,null,null,null,null,null,null,null,null,null,null,610,"IE"]
["Vote 7 - [NAME OF VOTE 7]",null,{"$f":"SUM(C240:C249)","v":0},0,0,0,0,0,0,0,0]
["",null,{"$f":"SUMIFS(Sheet1!S71_PPPYearAmount,Sheet1!S71_SubMunicipalVoteNo,$AC:$AC,Sheet1!S71_ItemType,$AD:$AD)","v":0},{"$f":"SUMIFS(Sheet1!S71_PPYearAmount,Sheet1!S71_SubMunicipalVoteNo,$AC:$AC,Sheet1!S71_ItemType,$AD:$AD)","v":0},{"$f":"SUMIFS(Sheet1!S71_PYearAmount,Sheet1!S71_SubMunicipalVoteNo,$AC:$AC,Sheet1!S71_ItemType,$AD:$AD)","v":0},{"$f":"SUMIFS(Sheet1!S71_OriginalBudAmnt,Sheet1!S71_SubMunicipalVoteNo,$AC:$AC,Sheet1!S71_ItemType,$AD:$AD)","v":0},{"$f":"SUMIFS(Sheet1!S71_AdjustmentBudAmnt,Sheet1!S71_SubMunicipalVoteNo,$AC:$AC,Sheet1!S71_ItemType,$AD:$AD)","v":0},{"$f":"SUMIFS(Sheet1!S71_AdjustmentBudAmnt,Sheet1!S71_SubMunicipalVoteNo,$AC:$AC,Sheet1!S71_ItemType,$AD:$AD)","v":0},{"$f":"SUMIFS(Sheet1!S71_ASBudgetAmount,Sheet1!S71_SubMunicipalVoteNo,$AC:$AC,Sheet1!S71_ItemType,$AD:$AD)","v":0},{"$f":"SUMIFS(Sheet1!S71_OY1BudgetAmount,Sheet1!S71_SubMunicipalVoteNo,$AC:$AC,Sheet1!S71_ItemType,$AD:$AD)","v":0},{"$f":"SUMIFS(Sheet1!S71_OY2BudgetAmount,Sheet1!S71_SubMunicipalVoteNo,$AC:$AC,Sheet1!S71_ItemType,$AD:$AD)","v":0},null,null,null,null,null,null,null,null,null,null,null,null,null,null,null,null,null,71,"IE"]
["",null,{"$f":"SUMIFS(Sheet1!S71_PPPYearAmount,Sheet1!S71_SubMunicipalVoteNo,$AC:$AC,Sheet1!S71_ItemType,$AD:$AD)","v":0},{"$f":"SUMIFS(Sheet1!S71_PPYearAmount,Sheet1!S71_SubMunicipalVoteNo,$AC:$AC,Sheet1!S71_ItemType,$AD:$AD)","v":0},{"$f":"SUMIFS(Sheet1!S71_PYearAmount,Sheet1!S71_SubMunicipalVoteNo,$AC:$AC,Sheet1!S71_ItemType,$AD:$AD)","v":0},{"$f":"SUMIFS(Sheet1!S71_OriginalBudAmnt,Sheet1!S71_SubMunicipalVoteNo,$AC:$AC,Sheet1!S71_ItemType,$AD:$AD)","v":0},{"$f":"SUMIFS(Sheet1!S71_AdjustmentBudAmnt,Sheet1!S71_SubMunicipalVoteNo,$AC:$AC,Sheet1!S71_ItemType,$AD:$AD)","v":0},{"$f":"SUMIFS(Sheet1!S71_AdjustmentBudAmnt,Sheet1!S71_SubMunicipalVoteNo,$AC:$AC,Sheet1!S71_ItemType,$AD:$AD)","v":0},{"$f":"SUMIFS(Sheet1!S71_ASBudgetAmount,Sheet1!S71_SubMunicipalVoteNo,$AC:$AC,Sheet1!S71_ItemType,$AD:$AD)","v":0},{"$f":"SUMIFS(Sheet1!S71_OY1BudgetAmount,Sheet1!S71_SubMunicipalVoteNo,$AC:$AC,Sheet1!S71_ItemType,$AD:$AD)","v":0},{"$f":"SUMIFS(Sheet1!S71_OY2BudgetAmount,Sheet1!S71_SubMunicipalVoteNo,$AC:$AC,Sheet1!S71_ItemType,$AD:$AD)","v":0},null,null,null,null,null,null,null,null,null,null,null,null,null,null,null,null,null,72,"IE"]
["",null,{"$f":"SUMIFS(Sheet1!S71_PPPYearAmount,Sheet1!S71_SubMunicipalVoteNo,$AC:$AC,Sheet1!S71_ItemType,$AD:$AD)","v":0},{"$f":"SUMIFS(Sheet1!S71_PPYearAmount,Sheet1!S71_SubMunicipalVoteNo,$AC:$AC,Sheet1!S71_ItemType,$AD:$AD)","v":0},{"$f":"SUMIFS(Sheet1!S71_PYearAmount,Sheet1!S71_SubMunicipalVoteNo,$AC:$AC,Sheet1!S71_ItemType,$AD:$AD)","v":0},{"$f":"SUMIFS(Sheet1!S71_OriginalBudAmnt,Sheet1!S71_SubMunicipalVoteNo,$AC:$AC,Sheet1!S71_ItemType,$AD:$AD)","v":0},{"$f":"SUMIFS(Sheet1!S71_AdjustmentBudAmnt,Sheet1!S71_SubMunicipalVoteNo,$AC:$AC,Sheet1!S71_ItemType,$AD:$AD)","v":0},{"$f":"SUMIFS(Sheet1!S71_AdjustmentBudAmnt,Sheet1!S71_SubMunicipalVoteNo,$AC:$AC,Sheet1!S71_ItemType,$AD:$AD)","v":0},{"$f":"SUMIFS(Sheet1!S71_ASBudgetAmount,Sheet1!S71_SubMunicipalVoteNo,$AC:$AC,Sheet1!S71_ItemType,$AD:$AD)","v":0},{"$f":"SUMIFS(Sheet1!S71_OY1BudgetAmount,Sheet1!S71_SubMunicipalVoteNo,$AC:$AC,Sheet1!S71_ItemType,$AD:$AD)","v":0},{"$f":"SUMIFS(Sheet1!S71_OY2BudgetAmount,Sheet1!S71_SubMunicipalVoteNo,$AC:$AC,Sheet1!S71_ItemType,$AD:$AD)","v":0},null,null,null,null,null,null,null,null,null,null,null,null,null,null,null,null,null,73,"IE"]
["",null,{"$f":"SUMIFS(Sheet1!S71_PPPYearAmount,Sheet1!S71_SubMunicipalVoteNo,$AC:$AC,Sheet1!S71_ItemType,$AD:$AD)","v":0},{"$f":"SUMIFS(Sheet1!S71_PPYearAmount,Sheet1!S71_SubMunicipalVoteNo,$AC:$AC,Sheet1!S71_ItemType,$AD:$AD)","v":0},{"$f":"SUMIFS(Sheet1!S71_PYearAmount,Sheet1!S71_SubMunicipalVoteNo,$AC:$AC,Sheet1!S71_ItemType,$AD:$AD)","v":0},{"$f":"SUMIFS(Sheet1!S71_OriginalBudAmnt,Sheet1!S71_SubMunicipalVoteNo,$AC:$AC,Sheet1!S71_ItemType,$AD:$AD)","v":0},{"$f":"SUMIFS(Sheet1!S71_AdjustmentBudAmnt,Sheet1!S71_SubMunicipalVoteNo,$AC:$AC,Sheet1!S71_ItemType,$AD:$AD)","v":0},{"$f":"SUMIFS(Sheet1!S71_AdjustmentBudAmnt,Sheet1!S71_SubMunicipalVoteNo,$AC:$AC,Sheet1!S71_ItemType,$AD:$AD)","v":0},{"$f":"SUMIFS(Sheet1!S71_ASBudgetAmount,Sheet1!S71_SubMunicipalVoteNo,$AC:$AC,Sheet1!S71_ItemType,$AD:$AD)","v":0},{"$f":"SUMIFS(Sheet1!S71_OY1BudgetAmount,Sheet1!S71_SubMunicipalVoteNo,$AC:$AC,Sheet1!S71_ItemType,$AD:$AD)","v":0},{"$f":"SUMIFS(Sheet1!S71_OY2BudgetAmount,Sheet1!S71_SubMunicipalVoteNo,$AC:$AC,Sheet1!S71_ItemType,$AD:$AD)","v":0},null,null,null,null,null,null,null,null,null,null,null,null,null,null,null,null,null,74,"IE"]
["",null,{"$f":"SUMIFS(Sheet1!S71_PPPYearAmount,Sheet1!S71_SubMunicipalVoteNo,$AC:$AC,Sheet1!S71_ItemType,$AD:$AD)","v":0},{"$f":"SUMIFS(Sheet1!S71_PPYearAmount,Sheet1!S71_SubMunicipalVoteNo,$AC:$AC,Sheet1!S71_ItemType,$AD:$AD)","v":0},{"$f":"SUMIFS(Sheet1!S71_PYearAmount,Sheet1!S71_SubMunicipalVoteNo,$AC:$AC,Sheet1!S71_ItemType,$AD:$AD)","v":0},{"$f":"SUMIFS(Sheet1!S71_OriginalBudAmnt,Sheet1!S71_SubMunicipalVoteNo,$AC:$AC,Sheet1!S71_ItemType,$AD:$AD)","v":0},{"$f":"SUMIFS(Sheet1!S71_AdjustmentBudAmnt,Sheet1!S71_SubMunicipalVoteNo,$AC:$AC,Sheet1!S71_ItemType,$AD:$AD)","v":0},{"$f":"SUMIFS(Sheet1!S71_AdjustmentBudAmnt,Sheet1!S71_SubMunicipalVoteNo,$AC:$AC,Sheet1!S71_ItemType,$AD:$AD)","v":0},{"$f":"SUMIFS(Sheet1!S71_ASBudgetAmount,Sheet1!S71_SubMunicipalVoteNo,$AC:$AC,Sheet1!S71_ItemType,$AD:$AD)","v":0},{"$f":"SUMIFS(Sheet1!S71_OY1BudgetAmount,Sheet1!S71_SubMunicipalVoteNo,$AC:$AC,Sheet1!S71_ItemType,$AD:$AD)","v":0},{"$f":"SUMIFS(Sheet1!S71_OY2BudgetAmount,Sheet1!S71_SubMunicipalVoteNo,$AC:$AC,Sheet1!S71_ItemType,$AD:$AD)","v":0},null,null,null,null,null,null,null,null,null,null,null,null,null,null,null,null,null,75,"IE"]
["",null,{"$f":"SUMIFS(Sheet1!S71_PPPYearAmount,Sheet1!S71_SubMunicipalVoteNo,$AC:$AC,Sheet1!S71_ItemType,$AD:$AD)","v":0},{"$f":"SUMIFS(Sheet1!S71_PPYearAmount,Sheet1!S71_SubMunicipalVoteNo,$AC:$AC,Sheet1!S71_ItemType,$AD:$AD)","v":0},{"$f":"SUMIFS(Sheet1!S71_PYearAmount,Sheet1!S71_SubMunicipalVoteNo,$AC:$AC,Sheet1!S71_ItemType,$AD:$AD)","v":0},{"$f":"SUMIFS(Sheet1!S71_OriginalBudAmnt,Sheet1!S71_SubMunicipalVoteNo,$AC:$AC,Sheet1!S71_ItemType,$AD:$AD)","v":0},{"$f":"SUMIFS(Sheet1!S71_AdjustmentBudAmnt,Sheet1!S71_SubMunicipalVoteNo,$AC:$AC,Sheet1!S71_ItemType,$AD:$AD)","v":0},{"$f":"SUMIFS(Sheet1!S71_AdjustmentBudAmnt,Sheet1!S71_SubMunicipalVoteNo,$AC:$AC,Sheet1!S71_ItemType,$AD:$AD)","v":0},{"$f":"SUMIFS(Sheet1!S71_ASBudgetAmount,Sheet1!S71_SubMunicipalVoteNo,$AC:$AC,Sheet1!S71_ItemType,$AD:$AD)","v":0},{"$f":"SUMIFS(Sheet1!S71_OY1BudgetAmount,Sheet1!S71_SubMunicipalVoteNo,$AC:$AC,Sheet1!S71_ItemType,$AD:$AD)","v":0},{"$f":"SUMIFS(Sheet1!S71_OY2BudgetAmount,Sheet1!S71_SubMunicipalVoteNo,$AC:$AC,Sheet1!S71_ItemType,$AD:$AD)","v":0},null,null,null,null,null,null,null,null,null,null,null,null,null,null,null,null,null,76,"IE"]
["",null,{"$f":"SUMIFS(Sheet1!S71_PPPYearAmount,Sheet1!S71_SubMunicipalVoteNo,$AC:$AC,Sheet1!S71_ItemType,$AD:$AD)","v":0},{"$f":"SUMIFS(Sheet1!S71_PPYearAmount,Sheet1!S71_SubMunicipalVoteNo,$AC:$AC,Sheet1!S71_ItemType,$AD:$AD)","v":0},{"$f":"SUMIFS(Sheet1!S71_PYearAmount,Sheet1!S71_SubMunicipalVoteNo,$AC:$AC,Sheet1!S71_ItemType,$AD:$AD)","v":0},{"$f":"SUMIFS(Sheet1!S71_OriginalBudAmnt,Sheet1!S71_SubMunicipalVoteNo,$AC:$AC,Sheet1!S71_ItemType,$AD:$AD)","v":0},{"$f":"SUMIFS(Sheet1!S71_AdjustmentBudAmnt,Sheet1!S71_SubMunicipalVoteNo,$AC:$AC,Sheet1!S71_ItemType,$AD:$AD)","v":0},{"$f":"SUMIFS(Sheet1!S71_AdjustmentBudAmnt,Sheet1!S71_SubMunicipalVoteNo,$AC:$AC,Sheet1!S71_ItemType,$AD:$AD)","v":0},{"$f":"SUMIFS(Sheet1!S71_ASBudgetAmount,Sheet1!S71_SubMunicipalVoteNo,$AC:$AC,Sheet1!S71_ItemType,$AD:$AD)","v":0},{"$f":"SUMIFS(Sheet1!S71_OY1BudgetAmount,Sheet1!S71_SubMunicipalVoteNo,$AC:$AC,Sheet1!S71_ItemType,$AD:$AD)","v":0},{"$f":"SUMIFS(Sheet1!S71_OY2BudgetAmount,Sheet1!S71_SubMunicipalVoteNo,$AC:$AC,Sheet1!S71_ItemType,$AD:$AD)","v":0},null,null,null,null,null,null,null,null,null,null,null,null,null,null,null,null,null,77,"IE"]
["",null,{"$f":"SUMIFS(Sheet1!S71_PPPYearAmount,Sheet1!S71_SubMunicipalVoteNo,$AC:$AC,Sheet1!S71_ItemType,$AD:$AD)","v":0},{"$f":"SUMIFS(Sheet1!S71_PPYearAmount,Sheet1!S71_SubMunicipalVoteNo,$AC:$AC,Sheet1!S71_ItemType,$AD:$AD)","v":0},{"$f":"SUMIFS(Sheet1!S71_PYearAmount,Sheet1!S71_SubMunicipalVoteNo,$AC:$AC,Sheet1!S71_ItemType,$AD:$AD)","v":0},{"$f":"SUMIFS(Sheet1!S71_OriginalBudAmnt,Sheet1!S71_SubMunicipalVoteNo,$AC:$AC,Sheet1!S71_ItemType,$AD:$AD)","v":0},{"$f":"SUMIFS(Sheet1!S71_AdjustmentBudAmnt,Sheet1!S71_SubMunicipalVoteNo,$AC:$AC,Sheet1!S71_ItemType,$AD:$AD)","v":0},{"$f":"SUMIFS(Sheet1!S71_AdjustmentBudAmnt,Sheet1!S71_SubMunicipalVoteNo,$AC:$AC,Sheet1!S71_ItemType,$AD:$AD)","v":0},{"$f":"SUMIFS(Sheet1!S71_ASBudgetAmount,Sheet1!S71_SubMunicipalVoteNo,$AC:$AC,Sheet1!S71_ItemType,$AD:$AD)","v":0},{"$f":"SUMIFS(Sheet1!S71_OY1BudgetAmount,Sheet1!S71_SubMunicipalVoteNo,$AC:$AC,Sheet1!S71_ItemType,$AD:$AD)","v":0},{"$f":"SUMIFS(Sheet1!S71_OY2BudgetAmount,Sheet1!S71_SubMunicipalVoteNo,$AC:$AC,Sheet1!S71_ItemType,$AD:$AD)","v":0},null,null,null,null,null,null,null,null,null,null,null,null,null,null,null,null,null,78,"IE"]
["",null,{"$f":"SUMIFS(Sheet1!S71_PPPYearAmount,Sheet1!S71_SubMunicipalVoteNo,$AC:$AC,Sheet1!S71_ItemType,$AD:$AD)","v":0},{"$f":"SUMIFS(Sheet1!S71_PPYearAmount,Sheet1!S71_SubMunicipalVoteNo,$AC:$AC,Sheet1!S71_ItemType,$AD:$AD)","v":0},{"$f":"SUMIFS(Sheet1!S71_PYearAmount,Sheet1!S71_SubMunicipalVoteNo,$AC:$AC,Sheet1!S71_ItemType,$AD:$AD)","v":0},{"$f":"SUMIFS(Sheet1!S71_OriginalBudAmnt,Sheet1!S71_SubMunicipalVoteNo,$AC:$AC,Sheet1!S71_ItemType,$AD:$AD)","v":0},{"$f":"SUMIFS(Sheet1!S71_AdjustmentBudAmnt,Sheet1!S71_SubMunicipalVoteNo,$AC:$AC,Sheet1!S71_ItemType,$AD:$AD)","v":0},{"$f":"SUMIFS(Sheet1!S71_AdjustmentBudAmnt,Sheet1!S71_SubMunicipalVoteNo,$AC:$AC,Sheet1!S71_ItemType,$AD:$AD)","v":0},{"$f":"SUMIFS(Sheet1!S71_ASBudgetAmount,Sheet1!S71_SubMunicipalVoteNo,$AC:$AC,Sheet1!S71_ItemType,$AD:$AD)","v":0},{"$f":"SUMIFS(Sheet1!S71_OY1BudgetAmount,Sheet1!S71_SubMunicipalVoteNo,$AC:$AC,Sheet1!S71_ItemType,$AD:$AD)","v":0},{"$f":"SUMIFS(Sheet1!S71_OY2BudgetAmount,Sheet1!S71_SubMunicipalVoteNo,$AC:$AC,Sheet1!S71_ItemType,$AD:$AD)","v":0},null,null,null,null,null,null,null,null,null,null,null,null,null,null,null,null,null,79,"IE"]
["",null,{"$f":"SUMIFS(Sheet1!S71_PPPYearAmount,Sheet1!S71_SubMunicipalVoteNo,$AC:$AC,Sheet1!S71_ItemType,$AD:$AD)","v":0},{"$f":"SUMIFS(Sheet1!S71_PPYearAmount,Sheet1!S71_SubMunicipalVoteNo,$AC:$AC,Sheet1!S71_ItemType,$AD:$AD)","v":0},{"$f":"SUMIFS(Sheet1!S71_PYearAmount,Sheet1!S71_SubMunicipalVoteNo,$AC:$AC,Sheet1!S71_ItemType,$AD:$AD)","v":0},{"$f":"SUMIFS(Sheet1!S71_OriginalBudAmnt,Sheet1!S71_SubMunicipalVoteNo,$AC:$AC,Sheet1!S71_ItemType,$AD:$AD)","v":0},{"$f":"SUMIFS(Sheet1!S71_AdjustmentBudAmnt,Sheet1!S71_SubMunicipalVoteNo,$AC:$AC,Sheet1!S71_ItemType,$AD:$AD)","v":0},{"$f":"SUMIFS(Sheet1!S71_AdjustmentBudAmnt,Sheet1!S71_SubMunicipalVoteNo,$AC:$AC,Sheet1!S71_ItemType,$AD:$AD)","v":0},{"$f":"SUMIFS(Sheet1!S71_ASBudgetAmount,Sheet1!S71_SubMunicipalVoteNo,$AC:$AC,Sheet1!S71_ItemType,$AD:$AD)","v":0},{"$f":"SUMIFS(Sheet1!S71_OY1BudgetAmount,Sheet1!S71_SubMunicipalVoteNo,$AC:$AC,Sheet1!S71_ItemType,$AD:$AD)","v":0},{"$f":"SUMIFS(Sheet1!S71_OY2BudgetAmount,Sheet1!S71_SubMunicipalVoteNo,$AC:$AC,Sheet1!S71_ItemType,$AD:$AD)","v":0},null,null,null,null,null,null,null,null,null,null,null,null,null,null,null,null,null,710,"IE"]
["Vote 8 - [NAME OF VOTE 8]",null,{"$f":"SUM(C251:C260)","v":0},0,0,0,0,0,0,0,0]
[{"$f":"A83","v":""},null,{"$f":"SUMIFS(Sheet1!S71_PPPYearAmount,Sheet1!S71_SubMunicipalVoteNo,$AC:$AC,Sheet1!S71_ItemType,$AD:$AD)","v":0},{"$f":"SUMIFS(Sheet1!S71_PPYearAmount,Sheet1!S71_SubMunicipalVoteNo,$AC:$AC,Sheet1!S71_ItemType,$AD:$AD)","v":0},{"$f":"SUMIFS(Sheet1!S71_PYearAmount,Sheet1!S71_SubMunicipalVoteNo,$AC:$AC,Sheet1!S71_ItemType,$AD:$AD)","v":0},{"$f":"SUMIFS(Sheet1!S71_OriginalBudAmnt,Sheet1!S71_SubMunicipalVoteNo,$AC:$AC,Sheet1!S71_ItemType,$AD:$AD)","v":0},{"$f":"SUMIFS(Sheet1!S71_AdjustmentBudAmnt,Sheet1!S71_SubMunicipalVoteNo,$AC:$AC,Sheet1!S71_ItemType,$AD:$AD)","v":0},{"$f":"SUMIFS(Sheet1!S71_AdjustmentBudAmnt,Sheet1!S71_SubMunicipalVoteNo,$AC:$AC,Sheet1!S71_ItemType,$AD:$AD)","v":0},{"$f":"SUMIFS(Sheet1!S71_ASBudgetAmount,Sheet1!S71_SubMunicipalVoteNo,$AC:$AC,Sheet1!S71_ItemType,$AD:$AD)","v":0},{"$f":"SUMIFS(Sheet1!S71_OY1BudgetAmount,Sheet1!S71_SubMunicipalVoteNo,$AC:$AC,Sheet1!S71_ItemType,$AD:$AD)","v":0},{"$f":"SUMIFS(Sheet1!S71_OY2BudgetAmount,Sheet1!S71_SubMunicipalVoteNo,$AC:$AC,Sheet1!S71_ItemType,$AD:$AD)","v":0},null,null,null,null,null,null,null,null,null,null,null,null,null,null,null,null,null,81,"IE"]
["",null,{"$f":"SUMIFS(Sheet1!S71_PPPYearAmount,Sheet1!S71_SubMunicipalVoteNo,$AC:$AC,Sheet1!S71_ItemType,$AD:$AD)","v":0},{"$f":"SUMIFS(Sheet1!S71_PPYearAmount,Sheet1!S71_SubMunicipalVoteNo,$AC:$AC,Sheet1!S71_ItemType,$AD:$AD)","v":0},{"$f":"SUMIFS(Sheet1!S71_PYearAmount,Sheet1!S71_SubMunicipalVoteNo,$AC:$AC,Sheet1!S71_ItemType,$AD:$AD)","v":0},{"$f":"SUMIFS(Sheet1!S71_OriginalBudAmnt,Sheet1!S71_SubMunicipalVoteNo,$AC:$AC,Sheet1!S71_ItemType,$AD:$AD)","v":0},{"$f":"SUMIFS(Sheet1!S71_AdjustmentBudAmnt,Sheet1!S71_SubMunicipalVoteNo,$AC:$AC,Sheet1!S71_ItemType,$AD:$AD)","v":0},{"$f":"SUMIFS(Sheet1!S71_AdjustmentBudAmnt,Sheet1!S71_SubMunicipalVoteNo,$AC:$AC,Sheet1!S71_ItemType,$AD:$AD)","v":0},{"$f":"SUMIFS(Sheet1!S71_ASBudgetAmount,Sheet1!S71_SubMunicipalVoteNo,$AC:$AC,Sheet1!S71_ItemType,$AD:$AD)","v":0},{"$f":"SUMIFS(Sheet1!S71_OY1BudgetAmount,Sheet1!S71_SubMunicipalVoteNo,$AC:$AC,Sheet1!S71_ItemType,$AD:$AD)","v":0},{"$f":"SUMIFS(Sheet1!S71_OY2BudgetAmount,Sheet1!S71_SubMunicipalVoteNo,$AC:$AC,Sheet1!S71_ItemType,$AD:$AD)","v":0},null,null,null,null,null,null,null,null,null,null,null,null,null,null,null,null,null,82,"IE"]
["",null,{"$f":"SUMIFS(Sheet1!S71_PPPYearAmount,Sheet1!S71_SubMunicipalVoteNo,$AC:$AC,Sheet1!S71_ItemType,$AD:$AD)","v":0},{"$f":"SUMIFS(Sheet1!S71_PPYearAmount,Sheet1!S71_SubMunicipalVoteNo,$AC:$AC,Sheet1!S71_ItemType,$AD:$AD)","v":0},{"$f":"SUMIFS(Sheet1!S71_PYearAmount,Sheet1!S71_SubMunicipalVoteNo,$AC:$AC,Sheet1!S71_ItemType,$AD:$AD)","v":0},{"$f":"SUMIFS(Sheet1!S71_OriginalBudAmnt,Sheet1!S71_SubMunicipalVoteNo,$AC:$AC,Sheet1!S71_ItemType,$AD:$AD)","v":0},{"$f":"SUMIFS(Sheet1!S71_AdjustmentBudAmnt,Sheet1!S71_SubMunicipalVoteNo,$AC:$AC,Sheet1!S71_ItemType,$AD:$AD)","v":0},{"$f":"SUMIFS(Sheet1!S71_AdjustmentBudAmnt,Sheet1!S71_SubMunicipalVoteNo,$AC:$AC,Sheet1!S71_ItemType,$AD:$AD)","v":0},{"$f":"SUMIFS(Sheet1!S71_ASBudgetAmount,Sheet1!S71_SubMunicipalVoteNo,$AC:$AC,Sheet1!S71_ItemType,$AD:$AD)","v":0},{"$f":"SUMIFS(Sheet1!S71_OY1BudgetAmount,Sheet1!S71_SubMunicipalVoteNo,$AC:$AC,Sheet1!S71_ItemType,$AD:$AD)","v":0},{"$f":"SUMIFS(Sheet1!S71_OY2BudgetAmount,Sheet1!S71_SubMunicipalVoteNo,$AC:$AC,Sheet1!S71_ItemType,$AD:$AD)","v":0},null,null,null,null,null,null,null,null,null,null,null,null,null,null,null,null,null,83,"IE"]
["",null,{"$f":"SUMIFS(Sheet1!S71_PPPYearAmount,Sheet1!S71_SubMunicipalVoteNo,$AC:$AC,Sheet1!S71_ItemType,$AD:$AD)","v":0},{"$f":"SUMIFS(Sheet1!S71_PPYearAmount,Sheet1!S71_SubMunicipalVoteNo,$AC:$AC,Sheet1!S71_ItemType,$AD:$AD)","v":0},{"$f":"SUMIFS(Sheet1!S71_PYearAmount,Sheet1!S71_SubMunicipalVoteNo,$AC:$AC,Sheet1!S71_ItemType,$AD:$AD)","v":0},{"$f":"SUMIFS(Sheet1!S71_OriginalBudAmnt,Sheet1!S71_SubMunicipalVoteNo,$AC:$AC,Sheet1!S71_ItemType,$AD:$AD)","v":0},{"$f":"SUMIFS(Sheet1!S71_AdjustmentBudAmnt,Sheet1!S71_SubMunicipalVoteNo,$AC:$AC,Sheet1!S71_ItemType,$AD:$AD)","v":0},{"$f":"SUMIFS(Sheet1!S71_AdjustmentBudAmnt,Sheet1!S71_SubMunicipalVoteNo,$AC:$AC,Sheet1!S71_ItemType,$AD:$AD)","v":0},{"$f":"SUMIFS(Sheet1!S71_ASBudgetAmount,Sheet1!S71_SubMunicipalVoteNo,$AC:$AC,Sheet1!S71_ItemType,$AD:$AD)","v":0},{"$f":"SUMIFS(Sheet1!S71_OY1BudgetAmount,Sheet1!S71_SubMunicipalVoteNo,$AC:$AC,Sheet1!S71_ItemType,$AD:$AD)","v":0},{"$f":"SUMIFS(Sheet1!S71_OY2BudgetAmount,Sheet1!S71_SubMunicipalVoteNo,$AC:$AC,Sheet1!S71_ItemType,$AD:$AD)","v":0},null,null,null,null,null,null,null,null,null,null,null,null,null,null,null,null,null,84,"IE"]
["",null,{"$f":"SUMIFS(Sheet1!S71_PPPYearAmount,Sheet1!S71_SubMunicipalVoteNo,$AC:$AC,Sheet1!S71_ItemType,$AD:$AD)","v":0},{"$f":"SUMIFS(Sheet1!S71_PPYearAmount,Sheet1!S71_SubMunicipalVoteNo,$AC:$AC,Sheet1!S71_ItemType,$AD:$AD)","v":0},{"$f":"SUMIFS(Sheet1!S71_PYearAmount,Sheet1!S71_SubMunicipalVoteNo,$AC:$AC,Sheet1!S71_ItemType,$AD:$AD)","v":0},{"$f":"SUMIFS(Sheet1!S71_OriginalBudAmnt,Sheet1!S71_SubMunicipalVoteNo,$AC:$AC,Sheet1!S71_ItemType,$AD:$AD)","v":0},{"$f":"SUMIFS(Sheet1!S71_AdjustmentBudAmnt,Sheet1!S71_SubMunicipalVoteNo,$AC:$AC,Sheet1!S71_ItemType,$AD:$AD)","v":0},{"$f":"SUMIFS(Sheet1!S71_AdjustmentBudAmnt,Sheet1!S71_SubMunicipalVoteNo,$AC:$AC,Sheet1!S71_ItemType,$AD:$AD)","v":0},{"$f":"SUMIFS(Sheet1!S71_ASBudgetAmount,Sheet1!S71_SubMunicipalVoteNo,$AC:$AC,Sheet1!S71_ItemType,$AD:$AD)","v":0},{"$f":"SUMIFS(Sheet1!S71_OY1BudgetAmount,Sheet1!S71_SubMunicipalVoteNo,$AC:$AC,Sheet1!S71_ItemType,$AD:$AD)","v":0},{"$f":"SUMIFS(Sheet1!S71_OY2BudgetAmount,Sheet1!S71_SubMunicipalVoteNo,$AC:$AC,Sheet1!S71_ItemType,$AD:$AD)","v":0},null,null,null,null,null,null,null,null,null,null,null,null,null,null,null,null,null,85,"IE"]
["",null,{"$f":"SUMIFS(Sheet1!S71_PPPYearAmount,Sheet1!S71_SubMunicipalVoteNo,$AC:$AC,Sheet1!S71_ItemType,$AD:$AD)","v":0},{"$f":"SUMIFS(Sheet1!S71_PPYearAmount,Sheet1!S71_SubMunicipalVoteNo,$AC:$AC,Sheet1!S71_ItemType,$AD:$AD)","v":0},{"$f":"SUMIFS(Sheet1!S71_PYearAmount,Sheet1!S71_SubMunicipalVoteNo,$AC:$AC,Sheet1!S71_ItemType,$AD:$AD)","v":0},{"$f":"SUMIFS(Sheet1!S71_OriginalBudAmnt,Sheet1!S71_SubMunicipalVoteNo,$AC:$AC,Sheet1!S71_ItemType,$AD:$AD)","v":0},{"$f":"SUMIFS(Sheet1!S71_AdjustmentBudAmnt,Sheet1!S71_SubMunicipalVoteNo,$AC:$AC,Sheet1!S71_ItemType,$AD:$AD)","v":0},{"$f":"SUMIFS(Sheet1!S71_AdjustmentBudAmnt,Sheet1!S71_SubMunicipalVoteNo,$AC:$AC,Sheet1!S71_ItemType,$AD:$AD)","v":0},{"$f":"SUMIFS(Sheet1!S71_ASBudgetAmount,Sheet1!S71_SubMunicipalVoteNo,$AC:$AC,Sheet1!S71_ItemType,$AD:$AD)","v":0},{"$f":"SUMIFS(Sheet1!S71_OY1BudgetAmount,Sheet1!S71_SubMunicipalVoteNo,$AC:$AC,Sheet1!S71_ItemType,$AD:$AD)","v":0},{"$f":"SUMIFS(Sheet1!S71_OY2BudgetAmount,Sheet1!S71_SubMunicipalVoteNo,$AC:$AC,Sheet1!S71_ItemType,$AD:$AD)","v":0},null,null,null,null,null,null,null,null,null,null,null,null,null,null,null,null,null,86,"IE"]
["",null,{"$f":"SUMIFS(Sheet1!S71_PPPYearAmount,Sheet1!S71_SubMunicipalVoteNo,$AC:$AC,Sheet1!S71_ItemType,$AD:$AD)","v":0},{"$f":"SUMIFS(Sheet1!S71_PPYearAmount,Sheet1!S71_SubMunicipalVoteNo,$AC:$AC,Sheet1!S71_ItemType,$AD:$AD)","v":0},{"$f":"SUMIFS(Sheet1!S71_PYearAmount,Sheet1!S71_SubMunicipalVoteNo,$AC:$AC,Sheet1!S71_ItemType,$AD:$AD)","v":0},{"$f":"SUMIFS(Sheet1!S71_OriginalBudAmnt,Sheet1!S71_SubMunicipalVoteNo,$AC:$AC,Sheet1!S71_ItemType,$AD:$AD)","v":0},{"$f":"SUMIFS(Sheet1!S71_AdjustmentBudAmnt,Sheet1!S71_SubMunicipalVoteNo,$AC:$AC,Sheet1!S71_ItemType,$AD:$AD)","v":0},{"$f":"SUMIFS(Sheet1!S71_AdjustmentBudAmnt,Sheet1!S71_SubMunicipalVoteNo,$AC:$AC,Sheet1!S71_ItemType,$AD:$AD)","v":0},{"$f":"SUMIFS(Sheet1!S71_ASBudgetAmount,Sheet1!S71_SubMunicipalVoteNo,$AC:$AC,Sheet1!S71_ItemType,$AD:$AD)","v":0},{"$f":"SUMIFS(Sheet1!S71_OY1BudgetAmount,Sheet1!S71_SubMunicipalVoteNo,$AC:$AC,Sheet1!S71_ItemType,$AD:$AD)","v":0},{"$f":"SUMIFS(Sheet1!S71_OY2BudgetAmount,Sheet1!S71_SubMunicipalVoteNo,$AC:$AC,Sheet1!S71_ItemType,$AD:$AD)","v":0},null,null,null,null,null,null,null,null,null,null,null,null,null,null,null,null,null,87,"IE"]
["",null,{"$f":"SUMIFS(Sheet1!S71_PPPYearAmount,Sheet1!S71_SubMunicipalVoteNo,$AC:$AC,Sheet1!S71_ItemType,$AD:$AD)","v":0},{"$f":"SUMIFS(Sheet1!S71_PPYearAmount,Sheet1!S71_SubMunicipalVoteNo,$AC:$AC,Sheet1!S71_ItemType,$AD:$AD)","v":0},{"$f":"SUMIFS(Sheet1!S71_PYearAmount,Sheet1!S71_SubMunicipalVoteNo,$AC:$AC,Sheet1!S71_ItemType,$AD:$AD)","v":0},{"$f":"SUMIFS(Sheet1!S71_OriginalBudAmnt,Sheet1!S71_SubMunicipalVoteNo,$AC:$AC,Sheet1!S71_ItemType,$AD:$AD)","v":0},{"$f":"SUMIFS(Sheet1!S71_AdjustmentBudAmnt,Sheet1!S71_SubMunicipalVoteNo,$AC:$AC,Sheet1!S71_ItemType,$AD:$AD)","v":0},{"$f":"SUMIFS(Sheet1!S71_AdjustmentBudAmnt,Sheet1!S71_SubMunicipalVoteNo,$AC:$AC,Sheet1!S71_ItemType,$AD:$AD)","v":0},{"$f":"SUMIFS(Sheet1!S71_ASBudgetAmount,Sheet1!S71_SubMunicipalVoteNo,$AC:$AC,Sheet1!S71_ItemType,$AD:$AD)","v":0},{"$f":"SUMIFS(Sheet1!S71_OY1BudgetAmount,Sheet1!S71_SubMunicipalVoteNo,$AC:$AC,Sheet1!S71_ItemType,$AD:$AD)","v":0},{"$f":"SUMIFS(Sheet1!S71_OY2BudgetAmount,Sheet1!S71_SubMunicipalVoteNo,$AC:$AC,Sheet1!S71_ItemType,$AD:$AD)","v":0},null,null,null,null,null,null,null,null,null,null,null,null,null,null,null,null,null,88,"IE"]
["",null,{"$f":"SUMIFS(Sheet1!S71_PPPYearAmount,Sheet1!S71_SubMunicipalVoteNo,$AC:$AC,Sheet1!S71_ItemType,$AD:$AD)","v":0},{"$f":"SUMIFS(Sheet1!S71_PPYearAmount,Sheet1!S71_SubMunicipalVoteNo,$AC:$AC,Sheet1!S71_ItemType,$AD:$AD)","v":0},{"$f":"SUMIFS(Sheet1!S71_PYearAmount,Sheet1!S71_SubMunicipalVoteNo,$AC:$AC,Sheet1!S71_ItemType,$AD:$AD)","v":0},{"$f":"SUMIFS(Sheet1!S71_OriginalBudAmnt,Sheet1!S71_SubMunicipalVoteNo,$AC:$AC,Sheet1!S71_ItemType,$AD:$AD)","v":0},{"$f":"SUMIFS(Sheet1!S71_AdjustmentBudAmnt,Sheet1!S71_SubMunicipalVoteNo,$AC:$AC,Sheet1!S71_ItemType,$AD:$AD)","v":0},{"$f":"SUMIFS(Sheet1!S71_AdjustmentBudAmnt,Sheet1!S71_SubMunicipalVoteNo,$AC:$AC,Sheet1!S71_ItemType,$AD:$AD)","v":0},{"$f":"SUMIFS(Sheet1!S71_ASBudgetAmount,Sheet1!S71_SubMunicipalVoteNo,$AC:$AC,Sheet1!S71_ItemType,$AD:$AD)","v":0},{"$f":"SUMIFS(Sheet1!S71_OY1BudgetAmount,Sheet1!S71_SubMunicipalVoteNo,$AC:$AC,Sheet1!S71_ItemType,$AD:$AD)","v":0},{"$f":"SUMIFS(Sheet1!S71_OY2BudgetAmount,Sheet1!S71_SubMunicipalVoteNo,$AC:$AC,Sheet1!S71_ItemType,$AD:$AD)","v":0},null,null,null,null,null,null,null,null,null,null,null,null,null,null,null,null,null,89,"IE"]
["",null,{"$f":"SUMIFS(Sheet1!S71_PPPYearAmount,Sheet1!S71_SubMunicipalVoteNo,$AC:$AC,Sheet1!S71_ItemType,$AD:$AD)","v":0},{"$f":"SUMIFS(Sheet1!S71_PPYearAmount,Sheet1!S71_SubMunicipalVoteNo,$AC:$AC,Sheet1!S71_ItemType,$AD:$AD)","v":0},{"$f":"SUMIFS(Sheet1!S71_PYearAmount,Sheet1!S71_SubMunicipalVoteNo,$AC:$AC,Sheet1!S71_ItemType,$AD:$AD)","v":0},{"$f":"SUMIFS(Sheet1!S71_OriginalBudAmnt,Sheet1!S71_SubMunicipalVoteNo,$AC:$AC,Sheet1!S71_ItemType,$AD:$AD)","v":0},{"$f":"SUMIFS(Sheet1!S71_AdjustmentBudAmnt,Sheet1!S71_SubMunicipalVoteNo,$AC:$AC,Sheet1!S71_ItemType,$AD:$AD)","v":0},{"$f":"SUMIFS(Sheet1!S71_AdjustmentBudAmnt,Sheet1!S71_SubMunicipalVoteNo,$AC:$AC,Sheet1!S71_ItemType,$AD:$AD)","v":0},{"$f":"SUMIFS(Sheet1!S71_ASBudgetAmount,Sheet1!S71_SubMunicipalVoteNo,$AC:$AC,Sheet1!S71_ItemType,$AD:$AD)","v":0},{"$f":"SUMIFS(Sheet1!S71_OY1BudgetAmount,Sheet1!S71_SubMunicipalVoteNo,$AC:$AC,Sheet1!S71_ItemType,$AD:$AD)","v":0},{"$f":"SUMIFS(Sheet1!S71_OY2BudgetAmount,Sheet1!S71_SubMunicipalVoteNo,$AC:$AC,Sheet1!S71_ItemType,$AD:$AD)","v":0},null,null,null,null,null,null,null,null,null,null,null,null,null,null,null,null,null,810,"IE"]
["Vote 9 - [NAME OF VOTE 9]",null,{"$f":"SUM(C262:C271)","v":0},0,0,0,0,0,0,0,0]
["",null,{"$f":"SUMIFS(Sheet1!S71_PPPYearAmount,Sheet1!S71_SubMunicipalVoteNo,$AC:$AC,Sheet1!S71_ItemType,$AD:$AD)","v":0},{"$f":"SUMIFS(Sheet1!S71_PPYearAmount,Sheet1!S71_SubMunicipalVoteNo,$AC:$AC,Sheet1!S71_ItemType,$AD:$AD)","v":0},{"$f":"SUMIFS(Sheet1!S71_PYearAmount,Sheet1!S71_SubMunicipalVoteNo,$AC:$AC,Sheet1!S71_ItemType,$AD:$AD)","v":0},{"$f":"SUMIFS(Sheet1!S71_OriginalBudAmnt,Sheet1!S71_SubMunicipalVoteNo,$AC:$AC,Sheet1!S71_ItemType,$AD:$AD)","v":0},{"$f":"SUMIFS(Sheet1!S71_AdjustmentBudAmnt,Sheet1!S71_SubMunicipalVoteNo,$AC:$AC,Sheet1!S71_ItemType,$AD:$AD)","v":0},{"$f":"SUMIFS(Sheet1!S71_AdjustmentBudAmnt,Sheet1!S71_SubMunicipalVoteNo,$AC:$AC,Sheet1!S71_ItemType,$AD:$AD)","v":0},{"$f":"SUMIFS(Sheet1!S71_ASBudgetAmount,Sheet1!S71_SubMunicipalVoteNo,$AC:$AC,Sheet1!S71_ItemType,$AD:$AD)","v":0},{"$f":"SUMIFS(Sheet1!S71_OY1BudgetAmount,Sheet1!S71_SubMunicipalVoteNo,$AC:$AC,Sheet1!S71_ItemType,$AD:$AD)","v":0},{"$f":"SUMIFS(Sheet1!S71_OY2BudgetAmount,Sheet1!S71_SubMunicipalVoteNo,$AC:$AC,Sheet1!S71_ItemType,$AD:$AD)","v":0},null,null,null,null,null,null,null,null,null,null,null,null,null,null,null,null,null,91,"IE"]
["",null,{"$f":"SUMIFS(Sheet1!S71_PPPYearAmount,Sheet1!S71_SubMunicipalVoteNo,$AC:$AC,Sheet1!S71_ItemType,$AD:$AD)","v":0},{"$f":"SUMIFS(Sheet1!S71_PPYearAmount,Sheet1!S71_SubMunicipalVoteNo,$AC:$AC,Sheet1!S71_ItemType,$AD:$AD)","v":0},{"$f":"SUMIFS(Sheet1!S71_PYearAmount,Sheet1!S71_SubMunicipalVoteNo,$AC:$AC,Sheet1!S71_ItemType,$AD:$AD)","v":0},{"$f":"SUMIFS(Sheet1!S71_OriginalBudAmnt,Sheet1!S71_SubMunicipalVoteNo,$AC:$AC,Sheet1!S71_ItemType,$AD:$AD)","v":0},{"$f":"SUMIFS(Sheet1!S71_AdjustmentBudAmnt,Sheet1!S71_SubMunicipalVoteNo,$AC:$AC,Sheet1!S71_ItemType,$AD:$AD)","v":0},{"$f":"SUMIFS(Sheet1!S71_AdjustmentBudAmnt,Sheet1!S71_SubMunicipalVoteNo,$AC:$AC,Sheet1!S71_ItemType,$AD:$AD)","v":0},{"$f":"SUMIFS(Sheet1!S71_ASBudgetAmount,Sheet1!S71_SubMunicipalVoteNo,$AC:$AC,Sheet1!S71_ItemType,$AD:$AD)","v":0},{"$f":"SUMIFS(Sheet1!S71_OY1BudgetAmount,Sheet1!S71_SubMunicipalVoteNo,$AC:$AC,Sheet1!S71_ItemType,$AD:$AD)","v":0},{"$f":"SUMIFS(Sheet1!S71_OY2BudgetAmount,Sheet1!S71_SubMunicipalVoteNo,$AC:$AC,Sheet1!S71_ItemType,$AD:$AD)","v":0},null,null,null,null,null,null,null,null,null,null,null,null,null,null,null,null,null,92,"IE"]
["",null,{"$f":"SUMIFS(Sheet1!S71_PPPYearAmount,Sheet1!S71_SubMunicipalVoteNo,$AC:$AC,Sheet1!S71_ItemType,$AD:$AD)","v":0},{"$f":"SUMIFS(Sheet1!S71_PPYearAmount,Sheet1!S71_SubMunicipalVoteNo,$AC:$AC,Sheet1!S71_ItemType,$AD:$AD)","v":0},{"$f":"SUMIFS(Sheet1!S71_PYearAmount,Sheet1!S71_SubMunicipalVoteNo,$AC:$AC,Sheet1!S71_ItemType,$AD:$AD)","v":0},{"$f":"SUMIFS(Sheet1!S71_OriginalBudAmnt,Sheet1!S71_SubMunicipalVoteNo,$AC:$AC,Sheet1!S71_ItemType,$AD:$AD)","v":0},{"$f":"SUMIFS(Sheet1!S71_AdjustmentBudAmnt,Sheet1!S71_SubMunicipalVoteNo,$AC:$AC,Sheet1!S71_ItemType,$AD:$AD)","v":0},{"$f":"SUMIFS(Sheet1!S71_AdjustmentBudAmnt,Sheet1!S71_SubMunicipalVoteNo,$AC:$AC,Sheet1!S71_ItemType,$AD:$AD)","v":0},{"$f":"SUMIFS(Sheet1!S71_ASBudgetAmount,Sheet1!S71_SubMunicipalVoteNo,$AC:$AC,Sheet1!S71_ItemType,$AD:$AD)","v":0},{"$f":"SUMIFS(Sheet1!S71_OY1BudgetAmount,Sheet1!S71_SubMunicipalVoteNo,$AC:$AC,Sheet1!S71_ItemType,$AD:$AD)","v":0},{"$f":"SUMIFS(Sheet1!S71_OY2BudgetAmount,Sheet1!S71_SubMunicipalVoteNo,$AC:$AC,Sheet1!S71_ItemType,$AD:$AD)","v":0},null,null,null,null,null,null,null,null,null,null,null,null,null,null,null,null,null,93,"IE"]
["",null,{"$f":"SUMIFS(Sheet1!S71_PPPYearAmount,Sheet1!S71_SubMunicipalVoteNo,$AC:$AC,Sheet1!S71_ItemType,$AD:$AD)","v":0},{"$f":"SUMIFS(Sheet1!S71_PPYearAmount,Sheet1!S71_SubMunicipalVoteNo,$AC:$AC,Sheet1!S71_ItemType,$AD:$AD)","v":0},{"$f":"SUMIFS(Sheet1!S71_PYearAmount,Sheet1!S71_SubMunicipalVoteNo,$AC:$AC,Sheet1!S71_ItemType,$AD:$AD)","v":0},{"$f":"SUMIFS(Sheet1!S71_OriginalBudAmnt,Sheet1!S71_SubMunicipalVoteNo,$AC:$AC,Sheet1!S71_ItemType,$AD:$AD)","v":0},{"$f":"SUMIFS(Sheet1!S71_AdjustmentBudAmnt,Sheet1!S71_SubMunicipalVoteNo,$AC:$AC,Sheet1!S71_ItemType,$AD:$AD)","v":0},{"$f":"SUMIFS(Sheet1!S71_AdjustmentBudAmnt,Sheet1!S71_SubMunicipalVoteNo,$AC:$AC,Sheet1!S71_ItemType,$AD:$AD)","v":0},{"$f":"SUMIFS(Sheet1!S71_ASBudgetAmount,Sheet1!S71_SubMunicipalVoteNo,$AC:$AC,Sheet1!S71_ItemType,$AD:$AD)","v":0},{"$f":"SUMIFS(Sheet1!S71_OY1BudgetAmount,Sheet1!S71_SubMunicipalVoteNo,$AC:$AC,Sheet1!S71_ItemType,$AD:$AD)","v":0},{"$f":"SUMIFS(Sheet1!S71_OY2BudgetAmount,Sheet1!S71_SubMunicipalVoteNo,$AC:$AC,Sheet1!S71_ItemType,$AD:$AD)","v":0},null,null,null,null,null,null,null,null,null,null,null,null,null,null,null,null,null,94,"IE"]
["",null,{"$f":"SUMIFS(Sheet1!S71_PPPYearAmount,Sheet1!S71_SubMunicipalVoteNo,$AC:$AC,Sheet1!S71_ItemType,$AD:$AD)","v":0},{"$f":"SUMIFS(Sheet1!S71_PPYearAmount,Sheet1!S71_SubMunicipalVoteNo,$AC:$AC,Sheet1!S71_ItemType,$AD:$AD)","v":0},{"$f":"SUMIFS(Sheet1!S71_PYearAmount,Sheet1!S71_SubMunicipalVoteNo,$AC:$AC,Sheet1!S71_ItemType,$AD:$AD)","v":0},{"$f":"SUMIFS(Sheet1!S71_OriginalBudAmnt,Sheet1!S71_SubMunicipalVoteNo,$AC:$AC,Sheet1!S71_ItemType,$AD:$AD)","v":0},{"$f":"SUMIFS(Sheet1!S71_AdjustmentBudAmnt,Sheet1!S71_SubMunicipalVoteNo,$AC:$AC,Sheet1!S71_ItemType,$AD:$AD)","v":0},{"$f":"SUMIFS(Sheet1!S71_AdjustmentBudAmnt,Sheet1!S71_SubMunicipalVoteNo,$AC:$AC,Sheet1!S71_ItemType,$AD:$AD)","v":0},{"$f":"SUMIFS(Sheet1!S71_ASBudgetAmount,Sheet1!S71_SubMunicipalVoteNo,$AC:$AC,Sheet1!S71_ItemType,$AD:$AD)","v":0},{"$f":"SUMIFS(Sheet1!S71_OY1BudgetAmount,Sheet1!S71_SubMunicipalVoteNo,$AC:$AC,Sheet1!S71_ItemType,$AD:$AD)","v":0},{"$f":"SUMIFS(Sheet1!S71_OY2BudgetAmount,Sheet1!S71_SubMunicipalVoteNo,$AC:$AC,Sheet1!S71_ItemType,$AD:$AD)","v":0},null,null,null,null,null,null,null,null,null,null,null,null,null,null,null,null,null,95,"IE"]
["",null,{"$f":"SUMIFS(Sheet1!S71_PPPYearAmount,Sheet1!S71_SubMunicipalVoteNo,$AC:$AC,Sheet1!S71_ItemType,$AD:$AD)","v":0},{"$f":"SUMIFS(Sheet1!S71_PPYearAmount,Sheet1!S71_SubMunicipalVoteNo,$AC:$AC,Sheet1!S71_ItemType,$AD:$AD)","v":0},{"$f":"SUMIFS(Sheet1!S71_PYearAmount,Sheet1!S71_SubMunicipalVoteNo,$AC:$AC,Sheet1!S71_ItemType,$AD:$AD)","v":0},{"$f":"SUMIFS(Sheet1!S71_OriginalBudAmnt,Sheet1!S71_SubMunicipalVoteNo,$AC:$AC,Sheet1!S71_ItemType,$AD:$AD)","v":0},{"$f":"SUMIFS(Sheet1!S71_AdjustmentBudAmnt,Sheet1!S71_SubMunicipalVoteNo,$AC:$AC,Sheet1!S71_ItemType,$AD:$AD)","v":0},{"$f":"SUMIFS(Sheet1!S71_AdjustmentBudAmnt,Sheet1!S71_SubMunicipalVoteNo,$AC:$AC,Sheet1!S71_ItemType,$AD:$AD)","v":0},{"$f":"SUMIFS(Sheet1!S71_ASBudgetAmount,Sheet1!S71_SubMunicipalVoteNo,$AC:$AC,Sheet1!S71_ItemType,$AD:$AD)","v":0},{"$f":"SUMIFS(Sheet1!S71_OY1BudgetAmount,Sheet1!S71_SubMunicipalVoteNo,$AC:$AC,Sheet1!S71_ItemType,$AD:$AD)","v":0},{"$f":"SUMIFS(Sheet1!S71_OY2BudgetAmount,Sheet1!S71_SubMunicipalVoteNo,$AC:$AC,Sheet1!S71_ItemType,$AD:$AD)","v":0},null,null,null,null,null,null,null,null,null,null,null,null,null,null,null,null,null,96,"IE"]
["",null,{"$f":"SUMIFS(Sheet1!S71_PPPYearAmount,Sheet1!S71_SubMunicipalVoteNo,$AC:$AC,Sheet1!S71_ItemType,$AD:$AD)","v":0},{"$f":"SUMIFS(Sheet1!S71_PPYearAmount,Sheet1!S71_SubMunicipalVoteNo,$AC:$AC,Sheet1!S71_ItemType,$AD:$AD)","v":0},{"$f":"SUMIFS(Sheet1!S71_PYearAmount,Sheet1!S71_SubMunicipalVoteNo,$AC:$AC,Sheet1!S71_ItemType,$AD:$AD)","v":0},{"$f":"SUMIFS(Sheet1!S71_OriginalBudAmnt,Sheet1!S71_SubMunicipalVoteNo,$AC:$AC,Sheet1!S71_ItemType,$AD:$AD)","v":0},{"$f":"SUMIFS(Sheet1!S71_AdjustmentBudAmnt,Sheet1!S71_SubMunicipalVoteNo,$AC:$AC,Sheet1!S71_ItemType,$AD:$AD)","v":0},{"$f":"SUMIFS(Sheet1!S71_AdjustmentBudAmnt,Sheet1!S71_SubMunicipalVoteNo,$AC:$AC,Sheet1!S71_ItemType,$AD:$AD)","v":0},{"$f":"SUMIFS(Sheet1!S71_ASBudgetAmount,Sheet1!S71_SubMunicipalVoteNo,$AC:$AC,Sheet1!S71_ItemType,$AD:$AD)","v":0},{"$f":"SUMIFS(Sheet1!S71_OY1BudgetAmount,Sheet1!S71_SubMunicipalVoteNo,$AC:$AC,Sheet1!S71_ItemType,$AD:$AD)","v":0},{"$f":"SUMIFS(Sheet1!S71_OY2BudgetAmount,Sheet1!S71_SubMunicipalVoteNo,$AC:$AC,Sheet1!S71_ItemType,$AD:$AD)","v":0},null,null,null,null,null,null,null,null,null,null,null,null,null,null,null,null,null,97,"IE"]
["",null,{"$f":"SUMIFS(Sheet1!S71_PPPYearAmount,Sheet1!S71_SubMunicipalVoteNo,$AC:$AC,Sheet1!S71_ItemType,$AD:$AD)","v":0},{"$f":"SUMIFS(Sheet1!S71_PPYearAmount,Sheet1!S71_SubMunicipalVoteNo,$AC:$AC,Sheet1!S71_ItemType,$AD:$AD)","v":0},{"$f":"SUMIFS(Sheet1!S71_PYearAmount,Sheet1!S71_SubMunicipalVoteNo,$AC:$AC,Sheet1!S71_ItemType,$AD:$AD)","v":0},{"$f":"SUMIFS(Sheet1!S71_OriginalBudAmnt,Sheet1!S71_SubMunicipalVoteNo,$AC:$AC,Sheet1!S71_ItemType,$AD:$AD)","v":0},{"$f":"SUMIFS(Sheet1!S71_AdjustmentBudAmnt,Sheet1!S71_SubMunicipalVoteNo,$AC:$AC,Sheet1!S71_ItemType,$AD:$AD)","v":0},{"$f":"SUMIFS(Sheet1!S71_AdjustmentBudAmnt,Sheet1!S71_SubMunicipalVoteNo,$AC:$AC,Sheet1!S71_ItemType,$AD:$AD)","v":0},{"$f":"SUMIFS(Sheet1!S71_ASBudgetAmount,Sheet1!S71_SubMunicipalVoteNo,$AC:$AC,Sheet1!S71_ItemType,$AD:$AD)","v":0},{"$f":"SUMIFS(Sheet1!S71_OY1BudgetAmount,Sheet1!S71_SubMunicipalVoteNo,$AC:$AC,Sheet1!S71_ItemType,$AD:$AD)","v":0},{"$f":"SUMIFS(Sheet1!S71_OY2BudgetAmount,Sheet1!S71_SubMunicipalVoteNo,$AC:$AC,Sheet1!S71_ItemType,$AD:$AD)","v":0},null,null,null,null,null,null,null,null,null,null,null,null,null,null,null,null,null,98,"IE"]
["",null,{"$f":"SUMIFS(Sheet1!S71_PPPYearAmount,Sheet1!S71_SubMunicipalVoteNo,$AC:$AC,Sheet1!S71_ItemType,$AD:$AD)","v":0},{"$f":"SUMIFS(Sheet1!S71_PPYearAmount,Sheet1!S71_SubMunicipalVoteNo,$AC:$AC,Sheet1!S71_ItemType,$AD:$AD)","v":0},{"$f":"SUMIFS(Sheet1!S71_PYearAmount,Sheet1!S71_SubMunicipalVoteNo,$AC:$AC,Sheet1!S71_ItemType,$AD:$AD)","v":0},{"$f":"SUMIFS(Sheet1!S71_OriginalBudAmnt,Sheet1!S71_SubMunicipalVoteNo,$AC:$AC,Sheet1!S71_ItemType,$AD:$AD)","v":0},{"$f":"SUMIFS(Sheet1!S71_AdjustmentBudAmnt,Sheet1!S71_SubMunicipalVoteNo,$AC:$AC,Sheet1!S71_ItemType,$AD:$AD)","v":0},{"$f":"SUMIFS(Sheet1!S71_AdjustmentBudAmnt,Sheet1!S71_SubMunicipalVoteNo,$AC:$AC,Sheet1!S71_ItemType,$AD:$AD)","v":0},{"$f":"SUMIFS(Sheet1!S71_ASBudgetAmount,Sheet1!S71_SubMunicipalVoteNo,$AC:$AC,Sheet1!S71_ItemType,$AD:$AD)","v":0},{"$f":"SUMIFS(Sheet1!S71_OY1BudgetAmount,Sheet1!S71_SubMunicipalVoteNo,$AC:$AC,Sheet1!S71_ItemType,$AD:$AD)","v":0},{"$f":"SUMIFS(Sheet1!S71_OY2BudgetAmount,Sheet1!S71_SubMunicipalVoteNo,$AC:$AC,Sheet1!S71_ItemType,$AD:$AD)","v":0},null,null,null,null,null,null,null,null,null,null,null,null,null,null,null,null,null,99,"IE"]
["",null,{"$f":"SUMIFS(Sheet1!S71_PPPYearAmount,Sheet1!S71_SubMunicipalVoteNo,$AC:$AC,Sheet1!S71_ItemType,$AD:$AD)","v":0},{"$f":"SUMIFS(Sheet1!S71_PPYearAmount,Sheet1!S71_SubMunicipalVoteNo,$AC:$AC,Sheet1!S71_ItemType,$AD:$AD)","v":0},{"$f":"SUMIFS(Sheet1!S71_PYearAmount,Sheet1!S71_SubMunicipalVoteNo,$AC:$AC,Sheet1!S71_ItemType,$AD:$AD)","v":0},{"$f":"SUMIFS(Sheet1!S71_OriginalBudAmnt,Sheet1!S71_SubMunicipalVoteNo,$AC:$AC,Sheet1!S71_ItemType,$AD:$AD)","v":0},{"$f":"SUMIFS(Sheet1!S71_AdjustmentBudAmnt,Sheet1!S71_SubMunicipalVoteNo,$AC:$AC,Sheet1!S71_ItemType,$AD:$AD)","v":0},{"$f":"SUMIFS(Sheet1!S71_AdjustmentBudAmnt,Sheet1!S71_SubMunicipalVoteNo,$AC:$AC,Sheet1!S71_ItemType,$AD:$AD)","v":0},{"$f":"SUMIFS(Sheet1!S71_ASBudgetAmount,Sheet1!S71_SubMunicipalVoteNo,$AC:$AC,Sheet1!S71_ItemType,$AD:$AD)","v":0},{"$f":"SUMIFS(Sheet1!S71_OY1BudgetAmount,Sheet1!S71_SubMunicipalVoteNo,$AC:$AC,Sheet1!S71_ItemType,$AD:$AD)","v":0},{"$f":"SUMIFS(Sheet1!S71_OY2BudgetAmount,Sheet1!S71_SubMunicipalVoteNo,$AC:$AC,Sheet1!S71_ItemType,$AD:$AD)","v":0},null,null,null,null,null,null,null,null,null,null,null,null,null,null,null,null,null,910,"IE"]
[{"$f":"A104","v":"Vote 10 - [NAME OF VOTE 10]"},null,{"$f":"SUM(C273:C282)","v":0},0,0,0,0,0,0,0,0]
[{"$f":"A105","v":""},null,{"$f":"SUMIFS(Sheet1!S71_PPPYearAmount,Sheet1!S71_SubMunicipalVoteNo,$AC:$AC,Sheet1!S71_ItemType,$AD:$AD)","v":0},{"$f":"SUMIFS(Sheet1!S71_PPYearAmount,Sheet1!S71_SubMunicipalVoteNo,$AC:$AC,Sheet1!S71_ItemType,$AD:$AD)","v":0},{"$f":"SUMIFS(Sheet1!S71_PYearAmount,Sheet1!S71_SubMunicipalVoteNo,$AC:$AC,Sheet1!S71_ItemType,$AD:$AD)","v":0},{"$f":"SUMIFS(Sheet1!S71_OriginalBudAmnt,Sheet1!S71_SubMunicipalVoteNo,$AC:$AC,Sheet1!S71_ItemType,$AD:$AD)","v":0},{"$f":"SUMIFS(Sheet1!S71_AdjustmentBudAmnt,Sheet1!S71_SubMunicipalVoteNo,$AC:$AC,Sheet1!S71_ItemType,$AD:$AD)","v":0},{"$f":"SUMIFS(Sheet1!S71_AdjustmentBudAmnt,Sheet1!S71_SubMunicipalVoteNo,$AC:$AC,Sheet1!S71_ItemType,$AD:$AD)","v":0},{"$f":"SUMIFS(Sheet1!S71_ASBudgetAmount,Sheet1!S71_SubMunicipalVoteNo,$AC:$AC,Sheet1!S71_ItemType,$AD:$AD)","v":0},{"$f":"SUMIFS(Sheet1!S71_OY1BudgetAmount,Sheet1!S71_SubMunicipalVoteNo,$AC:$AC,Sheet1!S71_ItemType,$AD:$AD)","v":0},{"$f":"SUMIFS(Sheet1!S71_OY2BudgetAmount,Sheet1!S71_SubMunicipalVoteNo,$AC:$AC,Sheet1!S71_ItemType,$AD:$AD)","v":0},null,null,null,null,null,null,null,null,null,null,null,null,null,null,null,null,null,101,"IE"]
[{"$f":"A106","v":""},null,{"$f":"SUMIFS(Sheet1!S71_PPPYearAmount,Sheet1!S71_SubMunicipalVoteNo,$AC:$AC,Sheet1!S71_ItemType,$AD:$AD)","v":0},{"$f":"SUMIFS(Sheet1!S71_PPYearAmount,Sheet1!S71_SubMunicipalVoteNo,$AC:$AC,Sheet1!S71_ItemType,$AD:$AD)","v":0},{"$f":"SUMIFS(Sheet1!S71_PYearAmount,Sheet1!S71_SubMunicipalVoteNo,$AC:$AC,Sheet1!S71_ItemType,$AD:$AD)","v":0},{"$f":"SUMIFS(Sheet1!S71_OriginalBudAmnt,Sheet1!S71_SubMunicipalVoteNo,$AC:$AC,Sheet1!S71_ItemType,$AD:$AD)","v":0},{"$f":"SUMIFS(Sheet1!S71_AdjustmentBudAmnt,Sheet1!S71_SubMunicipalVoteNo,$AC:$AC,Sheet1!S71_ItemType,$AD:$AD)","v":0},{"$f":"SUMIFS(Sheet1!S71_AdjustmentBudAmnt,Sheet1!S71_SubMunicipalVoteNo,$AC:$AC,Sheet1!S71_ItemType,$AD:$AD)","v":0},{"$f":"SUMIFS(Sheet1!S71_ASBudgetAmount,Sheet1!S71_SubMunicipalVoteNo,$AC:$AC,Sheet1!S71_ItemType,$AD:$AD)","v":0},{"$f":"SUMIFS(Sheet1!S71_OY1BudgetAmount,Sheet1!S71_SubMunicipalVoteNo,$AC:$AC,Sheet1!S71_ItemType,$AD:$AD)","v":0},{"$f":"SUMIFS(Sheet1!S71_OY2BudgetAmount,Sheet1!S71_SubMunicipalVoteNo,$AC:$AC,Sheet1!S71_ItemType,$AD:$AD)","v":0},null,null,null,null,null,null,null,null,null,null,null,null,null,null,null,null,null,102,"IE"]
["",null,{"$f":"SUMIFS(Sheet1!S71_PPPYearAmount,Sheet1!S71_SubMunicipalVoteNo,$AC:$AC,Sheet1!S71_ItemType,$AD:$AD)","v":0},{"$f":"SUMIFS(Sheet1!S71_PPYearAmount,Sheet1!S71_SubMunicipalVoteNo,$AC:$AC,Sheet1!S71_ItemType,$AD:$AD)","v":0},{"$f":"SUMIFS(Sheet1!S71_PYearAmount,Sheet1!S71_SubMunicipalVoteNo,$AC:$AC,Sheet1!S71_ItemType,$AD:$AD)","v":0},{"$f":"SUMIFS(Sheet1!S71_OriginalBudAmnt,Sheet1!S71_SubMunicipalVoteNo,$AC:$AC,Sheet1!S71_ItemType,$AD:$AD)","v":0},{"$f":"SUMIFS(Sheet1!S71_AdjustmentBudAmnt,Sheet1!S71_SubMunicipalVoteNo,$AC:$AC,Sheet1!S71_ItemType,$AD:$AD)","v":0},{"$f":"SUMIFS(Sheet1!S71_AdjustmentBudAmnt,Sheet1!S71_SubMunicipalVoteNo,$AC:$AC,Sheet1!S71_ItemType,$AD:$AD)","v":0},{"$f":"SUMIFS(Sheet1!S71_ASBudgetAmount,Sheet1!S71_SubMunicipalVoteNo,$AC:$AC,Sheet1!S71_ItemType,$AD:$AD)","v":0},{"$f":"SUMIFS(Sheet1!S71_OY1BudgetAmount,Sheet1!S71_SubMunicipalVoteNo,$AC:$AC,Sheet1!S71_ItemType,$AD:$AD)","v":0},{"$f":"SUMIFS(Sheet1!S71_OY2BudgetAmount,Sheet1!S71_SubMunicipalVoteNo,$AC:$AC,Sheet1!S71_ItemType,$AD:$AD)","v":0},null,null,null,null,null,null,null,null,null,null,null,null,null,null,null,null,null,103,"IE"]
["",null,{"$f":"SUMIFS(Sheet1!S71_PPPYearAmount,Sheet1!S71_SubMunicipalVoteNo,$AC:$AC,Sheet1!S71_ItemType,$AD:$AD)","v":0},{"$f":"SUMIFS(Sheet1!S71_PPYearAmount,Sheet1!S71_SubMunicipalVoteNo,$AC:$AC,Sheet1!S71_ItemType,$AD:$AD)","v":0},{"$f":"SUMIFS(Sheet1!S71_PYearAmount,Sheet1!S71_SubMunicipalVoteNo,$AC:$AC,Sheet1!S71_ItemType,$AD:$AD)","v":0},{"$f":"SUMIFS(Sheet1!S71_OriginalBudAmnt,Sheet1!S71_SubMunicipalVoteNo,$AC:$AC,Sheet1!S71_ItemType,$AD:$AD)","v":0},{"$f":"SUMIFS(Sheet1!S71_AdjustmentBudAmnt,Sheet1!S71_SubMunicipalVoteNo,$AC:$AC,Sheet1!S71_ItemType,$AD:$AD)","v":0},{"$f":"SUMIFS(Sheet1!S71_AdjustmentBudAmnt,Sheet1!S71_SubMunicipalVoteNo,$AC:$AC,Sheet1!S71_ItemType,$AD:$AD)","v":0},{"$f":"SUMIFS(Sheet1!S71_ASBudgetAmount,Sheet1!S71_SubMunicipalVoteNo,$AC:$AC,Sheet1!S71_ItemType,$AD:$AD)","v":0},{"$f":"SUMIFS(Sheet1!S71_OY1BudgetAmount,Sheet1!S71_SubMunicipalVoteNo,$AC:$AC,Sheet1!S71_ItemType,$AD:$AD)","v":0},{"$f":"SUMIFS(Sheet1!S71_OY2BudgetAmount,Sheet1!S71_SubMunicipalVoteNo,$AC:$AC,Sheet1!S71_ItemType,$AD:$AD)","v":0},null,null,null,null,null,null,null,null,null,null,null,null,null,null,null,null,null,104,"IE"]
["",null,{"$f":"SUMIFS(Sheet1!S71_PPPYearAmount,Sheet1!S71_SubMunicipalVoteNo,$AC:$AC,Sheet1!S71_ItemType,$AD:$AD)","v":0},{"$f":"SUMIFS(Sheet1!S71_PPYearAmount,Sheet1!S71_SubMunicipalVoteNo,$AC:$AC,Sheet1!S71_ItemType,$AD:$AD)","v":0},{"$f":"SUMIFS(Sheet1!S71_PYearAmount,Sheet1!S71_SubMunicipalVoteNo,$AC:$AC,Sheet1!S71_ItemType,$AD:$AD)","v":0},{"$f":"SUMIFS(Sheet1!S71_OriginalBudAmnt,Sheet1!S71_SubMunicipalVoteNo,$AC:$AC,Sheet1!S71_ItemType,$AD:$AD)","v":0},{"$f":"SUMIFS(Sheet1!S71_AdjustmentBudAmnt,Sheet1!S71_SubMunicipalVoteNo,$AC:$AC,Sheet1!S71_ItemType,$AD:$AD)","v":0},{"$f":"SUMIFS(Sheet1!S71_AdjustmentBudAmnt,Sheet1!S71_SubMunicipalVoteNo,$AC:$AC,Sheet1!S71_ItemType,$AD:$AD)","v":0},{"$f":"SUMIFS(Sheet1!S71_ASBudgetAmount,Sheet1!S71_SubMunicipalVoteNo,$AC:$AC,Sheet1!S71_ItemType,$AD:$AD)","v":0},{"$f":"SUMIFS(Sheet1!S71_OY1BudgetAmount,Sheet1!S71_SubMunicipalVoteNo,$AC:$AC,Sheet1!S71_ItemType,$AD:$AD)","v":0},{"$f":"SUMIFS(Sheet1!S71_OY2BudgetAmount,Sheet1!S71_SubMunicipalVoteNo,$AC:$AC,Sheet1!S71_ItemType,$AD:$AD)","v":0},null,null,null,null,null,null,null,null,null,null,null,null,null,null,null,null,null,105,"IE"]
["",null,{"$f":"SUMIFS(Sheet1!S71_PPPYearAmount,Sheet1!S71_SubMunicipalVoteNo,$AC:$AC,Sheet1!S71_ItemType,$AD:$AD)","v":0},{"$f":"SUMIFS(Sheet1!S71_PPYearAmount,Sheet1!S71_SubMunicipalVoteNo,$AC:$AC,Sheet1!S71_ItemType,$AD:$AD)","v":0},{"$f":"SUMIFS(Sheet1!S71_PYearAmount,Sheet1!S71_SubMunicipalVoteNo,$AC:$AC,Sheet1!S71_ItemType,$AD:$AD)","v":0},{"$f":"SUMIFS(Sheet1!S71_OriginalBudAmnt,Sheet1!S71_SubMunicipalVoteNo,$AC:$AC,Sheet1!S71_ItemType,$AD:$AD)","v":0},{"$f":"SUMIFS(Sheet1!S71_AdjustmentBudAmnt,Sheet1!S71_SubMunicipalVoteNo,$AC:$AC,Sheet1!S71_ItemType,$AD:$AD)","v":0},{"$f":"SUMIFS(Sheet1!S71_AdjustmentBudAmnt,Sheet1!S71_SubMunicipalVoteNo,$AC:$AC,Sheet1!S71_ItemType,$AD:$AD)","v":0},{"$f":"SUMIFS(Sheet1!S71_ASBudgetAmount,Sheet1!S71_SubMunicipalVoteNo,$AC:$AC,Sheet1!S71_ItemType,$AD:$AD)","v":0},{"$f":"SUMIFS(Sheet1!S71_OY1BudgetAmount,Sheet1!S71_SubMunicipalVoteNo,$AC:$AC,Sheet1!S71_ItemType,$AD:$AD)","v":0},{"$f":"SUMIFS(Sheet1!S71_OY2BudgetAmount,Sheet1!S71_SubMunicipalVoteNo,$AC:$AC,Sheet1!S71_ItemType,$AD:$AD)","v":0},null,null,null,null,null,null,null,null,null,null,null,null,null,null,null,null,null,106,"IE"]
["",null,{"$f":"SUMIFS(Sheet1!S71_PPPYearAmount,Sheet1!S71_SubMunicipalVoteNo,$AC:$AC,Sheet1!S71_ItemType,$AD:$AD)","v":0},{"$f":"SUMIFS(Sheet1!S71_PPYearAmount,Sheet1!S71_SubMunicipalVoteNo,$AC:$AC,Sheet1!S71_ItemType,$AD:$AD)","v":0},{"$f":"SUMIFS(Sheet1!S71_PYearAmount,Sheet1!S71_SubMunicipalVoteNo,$AC:$AC,Sheet1!S71_ItemType,$AD:$AD)","v":0},{"$f":"SUMIFS(Sheet1!S71_OriginalBudAmnt,Sheet1!S71_SubMunicipalVoteNo,$AC:$AC,Sheet1!S71_ItemType,$AD:$AD)","v":0},{"$f":"SUMIFS(Sheet1!S71_AdjustmentBudAmnt,Sheet1!S71_SubMunicipalVoteNo,$AC:$AC,Sheet1!S71_ItemType,$AD:$AD)","v":0},{"$f":"SUMIFS(Sheet1!S71_AdjustmentBudAmnt,Sheet1!S71_SubMunicipalVoteNo,$AC:$AC,Sheet1!S71_ItemType,$AD:$AD)","v":0},{"$f":"SUMIFS(Sheet1!S71_ASBudgetAmount,Sheet1!S71_SubMunicipalVoteNo,$AC:$AC,Sheet1!S71_ItemType,$AD:$AD)","v":0},{"$f":"SUMIFS(Sheet1!S71_OY1BudgetAmount,Sheet1!S71_SubMunicipalVoteNo,$AC:$AC,Sheet1!S71_ItemType,$AD:$AD)","v":0},{"$f":"SUMIFS(Sheet1!S71_OY2BudgetAmount,Sheet1!S71_SubMunicipalVoteNo,$AC:$AC,Sheet1!S71_ItemType,$AD:$AD)","v":0},null,null,null,null,null,null,null,null,null,null,null,null,null,null,null,null,null,107,"IE"]
["",null,{"$f":"SUMIFS(Sheet1!S71_PPPYearAmount,Sheet1!S71_SubMunicipalVoteNo,$AC:$AC,Sheet1!S71_ItemType,$AD:$AD)","v":0},{"$f":"SUMIFS(Sheet1!S71_PPYearAmount,Sheet1!S71_SubMunicipalVoteNo,$AC:$AC,Sheet1!S71_ItemType,$AD:$AD)","v":0},{"$f":"SUMIFS(Sheet1!S71_PYearAmount,Sheet1!S71_SubMunicipalVoteNo,$AC:$AC,Sheet1!S71_ItemType,$AD:$AD)","v":0},{"$f":"SUMIFS(Sheet1!S71_OriginalBudAmnt,Sheet1!S71_SubMunicipalVoteNo,$AC:$AC,Sheet1!S71_ItemType,$AD:$AD)","v":0},{"$f":"SUMIFS(Sheet1!S71_AdjustmentBudAmnt,Sheet1!S71_SubMunicipalVoteNo,$AC:$AC,Sheet1!S71_ItemType,$AD:$AD)","v":0},{"$f":"SUMIFS(Sheet1!S71_AdjustmentBudAmnt,Sheet1!S71_SubMunicipalVoteNo,$AC:$AC,Sheet1!S71_ItemType,$AD:$AD)","v":0},{"$f":"SUMIFS(Sheet1!S71_ASBudgetAmount,Sheet1!S71_SubMunicipalVoteNo,$AC:$AC,Sheet1!S71_ItemType,$AD:$AD)","v":0},{"$f":"SUMIFS(Sheet1!S71_OY1BudgetAmount,Sheet1!S71_SubMunicipalVoteNo,$AC:$AC,Sheet1!S71_ItemType,$AD:$AD)","v":0},{"$f":"SUMIFS(Sheet1!S71_OY2BudgetAmount,Sheet1!S71_SubMunicipalVoteNo,$AC:$AC,Sheet1!S71_ItemType,$AD:$AD)","v":0},null,null,null,null,null,null,null,null,null,null,null,null,null,null,null,null,null,108,"IE"]
["",null,{"$f":"SUMIFS(Sheet1!S71_PPPYearAmount,Sheet1!S71_SubMunicipalVoteNo,$AC:$AC,Sheet1!S71_ItemType,$AD:$AD)","v":0},{"$f":"SUMIFS(Sheet1!S71_PPYearAmount,Sheet1!S71_SubMunicipalVoteNo,$AC:$AC,Sheet1!S71_ItemType,$AD:$AD)","v":0},{"$f":"SUMIFS(Sheet1!S71_PYearAmount,Sheet1!S71_SubMunicipalVoteNo,$AC:$AC,Sheet1!S71_ItemType,$AD:$AD)","v":0},{"$f":"SUMIFS(Sheet1!S71_OriginalBudAmnt,Sheet1!S71_SubMunicipalVoteNo,$AC:$AC,Sheet1!S71_ItemType,$AD:$AD)","v":0},{"$f":"SUMIFS(Sheet1!S71_AdjustmentBudAmnt,Sheet1!S71_SubMunicipalVoteNo,$AC:$AC,Sheet1!S71_ItemType,$AD:$AD)","v":0},{"$f":"SUMIFS(Sheet1!S71_AdjustmentBudAmnt,Sheet1!S71_SubMunicipalVoteNo,$AC:$AC,Sheet1!S71_ItemType,$AD:$AD)","v":0},{"$f":"SUMIFS(Sheet1!S71_ASBudgetAmount,Sheet1!S71_SubMunicipalVoteNo,$AC:$AC,Sheet1!S71_ItemType,$AD:$AD)","v":0},{"$f":"SUMIFS(Sheet1!S71_OY1BudgetAmount,Sheet1!S71_SubMunicipalVoteNo,$AC:$AC,Sheet1!S71_ItemType,$AD:$AD)","v":0},{"$f":"SUMIFS(Sheet1!S71_OY2BudgetAmount,Sheet1!S71_SubMunicipalVoteNo,$AC:$AC,Sheet1!S71_ItemType,$AD:$AD)","v":0},null,null,null,null,null,null,null,null,null,null,null,null,null,null,null,null,null,109,"IE"]
[{"$f":"A114","v":""},null,{"$f":"SUMIFS(Sheet1!S71_PPPYearAmount,Sheet1!S71_SubMunicipalVoteNo,$AC:$AC,Sheet1!S71_ItemType,$AD:$AD)","v":0},{"$f":"SUMIFS(Sheet1!S71_PPYearAmount,Sheet1!S71_SubMunicipalVoteNo,$AC:$AC,Sheet1!S71_ItemType,$AD:$AD)","v":0},{"$f":"SUMIFS(Sheet1!S71_PYearAmount,Sheet1!S71_SubMunicipalVoteNo,$AC:$AC,Sheet1!S71_ItemType,$AD:$AD)","v":0},{"$f":"SUMIFS(Sheet1!S71_OriginalBudAmnt,Sheet1!S71_SubMunicipalVoteNo,$AC:$AC,Sheet1!S71_ItemType,$AD:$AD)","v":0},{"$f":"SUMIFS(Sheet1!S71_AdjustmentBudAmnt,Sheet1!S71_SubMunicipalVoteNo,$AC:$AC,Sheet1!S71_ItemType,$AD:$AD)","v":0},{"$f":"SUMIFS(Sheet1!S71_AdjustmentBudAmnt,Sheet1!S71_SubMunicipalVoteNo,$AC:$AC,Sheet1!S71_ItemType,$AD:$AD)","v":0},{"$f":"SUMIFS(Sheet1!S71_ASBudgetAmount,Sheet1!S71_SubMunicipalVoteNo,$AC:$AC,Sheet1!S71_ItemType,$AD:$AD)","v":0},{"$f":"SUMIFS(Sheet1!S71_OY1BudgetAmount,Sheet1!S71_SubMunicipalVoteNo,$AC:$AC,Sheet1!S71_ItemType,$AD:$AD)","v":0},{"$f":"SUMIFS(Sheet1!S71_OY2BudgetAmount,Sheet1!S71_SubMunicipalVoteNo,$AC:$AC,Sheet1!S71_ItemType,$AD:$AD)","v":0},null,null,null,null,null,null,null,null,null,null,null,null,null,null,null,null,null,1010,"IE"]
[{"$f":"A115","v":"Vote 11 - [NAME OF VOTE 11]"},null,{"$f":"SUM(C284:C293)","v":0},0,0,0,0,0,0,0,0]
[{"$f":"A116","v":""},null,{"$f":"SUMIFS(Sheet1!S71_PPPYearAmount,Sheet1!S71_SubMunicipalVoteNo,$AC:$AC,Sheet1!S71_ItemType,$AD:$AD)","v":0},{"$f":"SUMIFS(Sheet1!S71_PPYearAmount,Sheet1!S71_SubMunicipalVoteNo,$AC:$AC,Sheet1!S71_ItemType,$AD:$AD)","v":0},{"$f":"SUMIFS(Sheet1!S71_PYearAmount,Sheet1!S71_SubMunicipalVoteNo,$AC:$AC,Sheet1!S71_ItemType,$AD:$AD)","v":0},{"$f":"SUMIFS(Sheet1!S71_OriginalBudAmnt,Sheet1!S71_SubMunicipalVoteNo,$AC:$AC,Sheet1!S71_ItemType,$AD:$AD)","v":0},{"$f":"SUMIFS(Sheet1!S71_AdjustmentBudAmnt,Sheet1!S71_SubMunicipalVoteNo,$AC:$AC,Sheet1!S71_ItemType,$AD:$AD)","v":0},{"$f":"SUMIFS(Sheet1!S71_AdjustmentBudAmnt,Sheet1!S71_SubMunicipalVoteNo,$AC:$AC,Sheet1!S71_ItemType,$AD:$AD)","v":0},{"$f":"SUMIFS(Sheet1!S71_ASBudgetAmount,Sheet1!S71_SubMunicipalVoteNo,$AC:$AC,Sheet1!S71_ItemType,$AD:$AD)","v":0},{"$f":"SUMIFS(Sheet1!S71_OY1BudgetAmount,Sheet1!S71_SubMunicipalVoteNo,$AC:$AC,Sheet1!S71_ItemType,$AD:$AD)","v":0},{"$f":"SUMIFS(Sheet1!S71_OY2BudgetAmount,Sheet1!S71_SubMunicipalVoteNo,$AC:$AC,Sheet1!S71_ItemType,$AD:$AD)","v":0},null,null,null,null,null,null,null,null,null,null,null,null,null,null,null,null,null,111,"IE"]
[{"$f":"A117","v":""},null,{"$f":"SUMIFS(Sheet1!S71_PPPYearAmount,Sheet1!S71_SubMunicipalVoteNo,$AC:$AC,Sheet1!S71_ItemType,$AD:$AD)","v":0},{"$f":"SUMIFS(Sheet1!S71_PPYearAmount,Sheet1!S71_SubMunicipalVoteNo,$AC:$AC,Sheet1!S71_ItemType,$AD:$AD)","v":0},{"$f":"SUMIFS(Sheet1!S71_PYearAmount,Sheet1!S71_SubMunicipalVoteNo,$AC:$AC,Sheet1!S71_ItemType,$AD:$AD)","v":0},{"$f":"SUMIFS(Sheet1!S71_OriginalBudAmnt,Sheet1!S71_SubMunicipalVoteNo,$AC:$AC,Sheet1!S71_ItemType,$AD:$AD)","v":0},{"$f":"SUMIFS(Sheet1!S71_AdjustmentBudAmnt,Sheet1!S71_SubMunicipalVoteNo,$AC:$AC,Sheet1!S71_ItemType,$AD:$AD)","v":0},{"$f":"SUMIFS(Sheet1!S71_AdjustmentBudAmnt,Sheet1!S71_SubMunicipalVoteNo,$AC:$AC,Sheet1!S71_ItemType,$AD:$AD)","v":0},{"$f":"SUMIFS(Sheet1!S71_ASBudgetAmount,Sheet1!S71_SubMunicipalVoteNo,$AC:$AC,Sheet1!S71_ItemType,$AD:$AD)","v":0},{"$f":"SUMIFS(Sheet1!S71_OY1BudgetAmount,Sheet1!S71_SubMunicipalVoteNo,$AC:$AC,Sheet1!S71_ItemType,$AD:$AD)","v":0},{"$f":"SUMIFS(Sheet1!S71_OY2BudgetAmount,Sheet1!S71_SubMunicipalVoteNo,$AC:$AC,Sheet1!S71_ItemType,$AD:$AD)","v":0},null,null,null,null,null,null,null,null,null,null,null,null,null,null,null,null,null,112,"IE"]
["",null,{"$f":"SUMIFS(Sheet1!S71_PPPYearAmount,Sheet1!S71_SubMunicipalVoteNo,$AC:$AC,Sheet1!S71_ItemType,$AD:$AD)","v":0},{"$f":"SUMIFS(Sheet1!S71_PPYearAmount,Sheet1!S71_SubMunicipalVoteNo,$AC:$AC,Sheet1!S71_ItemType,$AD:$AD)","v":0},{"$f":"SUMIFS(Sheet1!S71_PYearAmount,Sheet1!S71_SubMunicipalVoteNo,$AC:$AC,Sheet1!S71_ItemType,$AD:$AD)","v":0},{"$f":"SUMIFS(Sheet1!S71_OriginalBudAmnt,Sheet1!S71_SubMunicipalVoteNo,$AC:$AC,Sheet1!S71_ItemType,$AD:$AD)","v":0},{"$f":"SUMIFS(Sheet1!S71_AdjustmentBudAmnt,Sheet1!S71_SubMunicipalVoteNo,$AC:$AC,Sheet1!S71_ItemType,$AD:$AD)","v":0},{"$f":"SUMIFS(Sheet1!S71_AdjustmentBudAmnt,Sheet1!S71_SubMunicipalVoteNo,$AC:$AC,Sheet1!S71_ItemType,$AD:$AD)","v":0},{"$f":"SUMIFS(Sheet1!S71_ASBudgetAmount,Sheet1!S71_SubMunicipalVoteNo,$AC:$AC,Sheet1!S71_ItemType,$AD:$AD)","v":0},{"$f":"SUMIFS(Sheet1!S71_OY1BudgetAmount,Sheet1!S71_SubMunicipalVoteNo,$AC:$AC,Sheet1!S71_ItemType,$AD:$AD)","v":0},{"$f":"SUMIFS(Sheet1!S71_OY2BudgetAmount,Sheet1!S71_SubMunicipalVoteNo,$AC:$AC,Sheet1!S71_ItemType,$AD:$AD)","v":0},null,null,null,null,null,null,null,null,null,null,null,null,null,null,null,null,null,113,"IE"]
["",null,{"$f":"SUMIFS(Sheet1!S71_PPPYearAmount,Sheet1!S71_SubMunicipalVoteNo,$AC:$AC,Sheet1!S71_ItemType,$AD:$AD)","v":0},{"$f":"SUMIFS(Sheet1!S71_PPYearAmount,Sheet1!S71_SubMunicipalVoteNo,$AC:$AC,Sheet1!S71_ItemType,$AD:$AD)","v":0},{"$f":"SUMIFS(Sheet1!S71_PYearAmount,Sheet1!S71_SubMunicipalVoteNo,$AC:$AC,Sheet1!S71_ItemType,$AD:$AD)","v":0},{"$f":"SUMIFS(Sheet1!S71_OriginalBudAmnt,Sheet1!S71_SubMunicipalVoteNo,$AC:$AC,Sheet1!S71_ItemType,$AD:$AD)","v":0},{"$f":"SUMIFS(Sheet1!S71_AdjustmentBudAmnt,Sheet1!S71_SubMunicipalVoteNo,$AC:$AC,Sheet1!S71_ItemType,$AD:$AD)","v":0},{"$f":"SUMIFS(Sheet1!S71_AdjustmentBudAmnt,Sheet1!S71_SubMunicipalVoteNo,$AC:$AC,Sheet1!S71_ItemType,$AD:$AD)","v":0},{"$f":"SUMIFS(Sheet1!S71_ASBudgetAmount,Sheet1!S71_SubMunicipalVoteNo,$AC:$AC,Sheet1!S71_ItemType,$AD:$AD)","v":0},{"$f":"SUMIFS(Sheet1!S71_OY1BudgetAmount,Sheet1!S71_SubMunicipalVoteNo,$AC:$AC,Sheet1!S71_ItemType,$AD:$AD)","v":0},{"$f":"SUMIFS(Sheet1!S71_OY2BudgetAmount,Sheet1!S71_SubMunicipalVoteNo,$AC:$AC,Sheet1!S71_ItemType,$AD:$AD)","v":0},null,null,null,null,null,null,null,null,null,null,null,null,null,null,null,null,null,114,"IE"]
["",null,{"$f":"SUMIFS(Sheet1!S71_PPPYearAmount,Sheet1!S71_SubMunicipalVoteNo,$AC:$AC,Sheet1!S71_ItemType,$AD:$AD)","v":0},{"$f":"SUMIFS(Sheet1!S71_PPYearAmount,Sheet1!S71_SubMunicipalVoteNo,$AC:$AC,Sheet1!S71_ItemType,$AD:$AD)","v":0},{"$f":"SUMIFS(Sheet1!S71_PYearAmount,Sheet1!S71_SubMunicipalVoteNo,$AC:$AC,Sheet1!S71_ItemType,$AD:$AD)","v":0},{"$f":"SUMIFS(Sheet1!S71_OriginalBudAmnt,Sheet1!S71_SubMunicipalVoteNo,$AC:$AC,Sheet1!S71_ItemType,$AD:$AD)","v":0},{"$f":"SUMIFS(Sheet1!S71_AdjustmentBudAmnt,Sheet1!S71_SubMunicipalVoteNo,$AC:$AC,Sheet1!S71_ItemType,$AD:$AD)","v":0},{"$f":"SUMIFS(Sheet1!S71_AdjustmentBudAmnt,Sheet1!S71_SubMunicipalVoteNo,$AC:$AC,Sheet1!S71_ItemType,$AD:$AD)","v":0},{"$f":"SUMIFS(Sheet1!S71_ASBudgetAmount,Sheet1!S71_SubMunicipalVoteNo,$AC:$AC,Sheet1!S71_ItemType,$AD:$AD)","v":0},{"$f":"SUMIFS(Sheet1!S71_OY1BudgetAmount,Sheet1!S71_SubMunicipalVoteNo,$AC:$AC,Sheet1!S71_ItemType,$AD:$AD)","v":0},{"$f":"SUMIFS(Sheet1!S71_OY2BudgetAmount,Sheet1!S71_SubMunicipalVoteNo,$AC:$AC,Sheet1!S71_ItemType,$AD:$AD)","v":0},null,null,null,null,null,null,null,null,null,null,null,null,null,null,null,null,null,115,"IE"]
["",null,{"$f":"SUMIFS(Sheet1!S71_PPPYearAmount,Sheet1!S71_SubMunicipalVoteNo,$AC:$AC,Sheet1!S71_ItemType,$AD:$AD)","v":0},{"$f":"SUMIFS(Sheet1!S71_PPYearAmount,Sheet1!S71_SubMunicipalVoteNo,$AC:$AC,Sheet1!S71_ItemType,$AD:$AD)","v":0},{"$f":"SUMIFS(Sheet1!S71_PYearAmount,Sheet1!S71_SubMunicipalVoteNo,$AC:$AC,Sheet1!S71_ItemType,$AD:$AD)","v":0},{"$f":"SUMIFS(Sheet1!S71_OriginalBudAmnt,Sheet1!S71_SubMunicipalVoteNo,$AC:$AC,Sheet1!S71_ItemType,$AD:$AD)","v":0},{"$f":"SUMIFS(Sheet1!S71_AdjustmentBudAmnt,Sheet1!S71_SubMunicipalVoteNo,$AC:$AC,Sheet1!S71_ItemType,$AD:$AD)","v":0},{"$f":"SUMIFS(Sheet1!S71_AdjustmentBudAmnt,Sheet1!S71_SubMunicipalVoteNo,$AC:$AC,Sheet1!S71_ItemType,$AD:$AD)","v":0},{"$f":"SUMIFS(Sheet1!S71_ASBudgetAmount,Sheet1!S71_SubMunicipalVoteNo,$AC:$AC,Sheet1!S71_ItemType,$AD:$AD)","v":0},{"$f":"SUMIFS(Sheet1!S71_OY1BudgetAmount,Sheet1!S71_SubMunicipalVoteNo,$AC:$AC,Sheet1!S71_ItemType,$AD:$AD)","v":0},{"$f":"SUMIFS(Sheet1!S71_OY2BudgetAmount,Sheet1!S71_SubMunicipalVoteNo,$AC:$AC,Sheet1!S71_ItemType,$AD:$AD)","v":0},null,null,null,null,null,null,null,null,null,null,null,null,null,null,null,null,null,116,"IE"]
["",null,{"$f":"SUMIFS(Sheet1!S71_PPPYearAmount,Sheet1!S71_SubMunicipalVoteNo,$AC:$AC,Sheet1!S71_ItemType,$AD:$AD)","v":0},{"$f":"SUMIFS(Sheet1!S71_PPYearAmount,Sheet1!S71_SubMunicipalVoteNo,$AC:$AC,Sheet1!S71_ItemType,$AD:$AD)","v":0},{"$f":"SUMIFS(Sheet1!S71_PYearAmount,Sheet1!S71_SubMunicipalVoteNo,$AC:$AC,Sheet1!S71_ItemType,$AD:$AD)","v":0},{"$f":"SUMIFS(Sheet1!S71_OriginalBudAmnt,Sheet1!S71_SubMunicipalVoteNo,$AC:$AC,Sheet1!S71_ItemType,$AD:$AD)","v":0},{"$f":"SUMIFS(Sheet1!S71_AdjustmentBudAmnt,Sheet1!S71_SubMunicipalVoteNo,$AC:$AC,Sheet1!S71_ItemType,$AD:$AD)","v":0},{"$f":"SUMIFS(Sheet1!S71_AdjustmentBudAmnt,Sheet1!S71_SubMunicipalVoteNo,$AC:$AC,Sheet1!S71_ItemType,$AD:$AD)","v":0},{"$f":"SUMIFS(Sheet1!S71_ASBudgetAmount,Sheet1!S71_SubMunicipalVoteNo,$AC:$AC,Sheet1!S71_ItemType,$AD:$AD)","v":0},{"$f":"SUMIFS(Sheet1!S71_OY1BudgetAmount,Sheet1!S71_SubMunicipalVoteNo,$AC:$AC,Sheet1!S71_ItemType,$AD:$AD)","v":0},{"$f":"SUMIFS(Sheet1!S71_OY2BudgetAmount,Sheet1!S71_SubMunicipalVoteNo,$AC:$AC,Sheet1!S71_ItemType,$AD:$AD)","v":0},null,null,null,null,null,null,null,null,null,null,null,null,null,null,null,null,null,117,"IE"]
["",null,{"$f":"SUMIFS(Sheet1!S71_PPPYearAmount,Sheet1!S71_SubMunicipalVoteNo,$AC:$AC,Sheet1!S71_ItemType,$AD:$AD)","v":0},{"$f":"SUMIFS(Sheet1!S71_PPYearAmount,Sheet1!S71_SubMunicipalVoteNo,$AC:$AC,Sheet1!S71_ItemType,$AD:$AD)","v":0},{"$f":"SUMIFS(Sheet1!S71_PYearAmount,Sheet1!S71_SubMunicipalVoteNo,$AC:$AC,Sheet1!S71_ItemType,$AD:$AD)","v":0},{"$f":"SUMIFS(Sheet1!S71_OriginalBudAmnt,Sheet1!S71_SubMunicipalVoteNo,$AC:$AC,Sheet1!S71_ItemType,$AD:$AD)","v":0},{"$f":"SUMIFS(Sheet1!S71_AdjustmentBudAmnt,Sheet1!S71_SubMunicipalVoteNo,$AC:$AC,Sheet1!S71_ItemType,$AD:$AD)","v":0},{"$f":"SUMIFS(Sheet1!S71_AdjustmentBudAmnt,Sheet1!S71_SubMunicipalVoteNo,$AC:$AC,Sheet1!S71_ItemType,$AD:$AD)","v":0},{"$f":"SUMIFS(Sheet1!S71_ASBudgetAmount,Sheet1!S71_SubMunicipalVoteNo,$AC:$AC,Sheet1!S71_ItemType,$AD:$AD)","v":0},{"$f":"SUMIFS(Sheet1!S71_OY1BudgetAmount,Sheet1!S71_SubMunicipalVoteNo,$AC:$AC,Sheet1!S71_ItemType,$AD:$AD)","v":0},{"$f":"SUMIFS(Sheet1!S71_OY2BudgetAmount,Sheet1!S71_SubMunicipalVoteNo,$AC:$AC,Sheet1!S71_ItemType,$AD:$AD)","v":0},null,null,null,null,null,null,null,null,null,null,null,null,null,null,null,null,null,118,"IE"]
["",null,{"$f":"SUMIFS(Sheet1!S71_PPPYearAmount,Sheet1!S71_SubMunicipalVoteNo,$AC:$AC,Sheet1!S71_ItemType,$AD:$AD)","v":0},{"$f":"SUMIFS(Sheet1!S71_PPYearAmount,Sheet1!S71_SubMunicipalVoteNo,$AC:$AC,Sheet1!S71_ItemType,$AD:$AD)","v":0},{"$f":"SUMIFS(Sheet1!S71_PYearAmount,Sheet1!S71_SubMunicipalVoteNo,$AC:$AC,Sheet1!S71_ItemType,$AD:$AD)","v":0},{"$f":"SUMIFS(Sheet1!S71_OriginalBudAmnt,Sheet1!S71_SubMunicipalVoteNo,$AC:$AC,Sheet1!S71_ItemType,$AD:$AD)","v":0},{"$f":"SUMIFS(Sheet1!S71_AdjustmentBudAmnt,Sheet1!S71_SubMunicipalVoteNo,$AC:$AC,Sheet1!S71_ItemType,$AD:$AD)","v":0},{"$f":"SUMIFS(Sheet1!S71_AdjustmentBudAmnt,Sheet1!S71_SubMunicipalVoteNo,$AC:$AC,Sheet1!S71_ItemType,$AD:$AD)","v":0},{"$f":"SUMIFS(Sheet1!S71_ASBudgetAmount,Sheet1!S71_SubMunicipalVoteNo,$AC:$AC,Sheet1!S71_ItemType,$AD:$AD)","v":0},{"$f":"SUMIFS(Sheet1!S71_OY1BudgetAmount,Sheet1!S71_SubMunicipalVoteNo,$AC:$AC,Sheet1!S71_ItemType,$AD:$AD)","v":0},{"$f":"SUMIFS(Sheet1!S71_OY2BudgetAmount,Sheet1!S71_SubMunicipalVoteNo,$AC:$AC,Sheet1!S71_ItemType,$AD:$AD)","v":0},null,null,null,null,null,null,null,null,null,null,null,null,null,null,null,null,null,119,"IE"]
["",null,{"$f":"SUMIFS(Sheet1!S71_PPPYearAmount,Sheet1!S71_SubMunicipalVoteNo,$AC:$AC,Sheet1!S71_ItemType,$AD:$AD)","v":0},{"$f":"SUMIFS(Sheet1!S71_PPYearAmount,Sheet1!S71_SubMunicipalVoteNo,$AC:$AC,Sheet1!S71_ItemType,$AD:$AD)","v":0},{"$f":"SUMIFS(Sheet1!S71_PYearAmount,Sheet1!S71_SubMunicipalVoteNo,$AC:$AC,Sheet1!S71_ItemType,$AD:$AD)","v":0},{"$f":"SUMIFS(Sheet1!S71_OriginalBudAmnt,Sheet1!S71_SubMunicipalVoteNo,$AC:$AC,Sheet1!S71_ItemType,$AD:$AD)","v":0},{"$f":"SUMIFS(Sheet1!S71_AdjustmentBudAmnt,Sheet1!S71_SubMunicipalVoteNo,$AC:$AC,Sheet1!S71_ItemType,$AD:$AD)","v":0},{"$f":"SUMIFS(Sheet1!S71_AdjustmentBudAmnt,Sheet1!S71_SubMunicipalVoteNo,$AC:$AC,Sheet1!S71_ItemType,$AD:$AD)","v":0},{"$f":"SUMIFS(Sheet1!S71_ASBudgetAmount,Sheet1!S71_SubMunicipalVoteNo,$AC:$AC,Sheet1!S71_ItemType,$AD:$AD)","v":0},{"$f":"SUMIFS(Sheet1!S71_OY1BudgetAmount,Sheet1!S71_SubMunicipalVoteNo,$AC:$AC,Sheet1!S71_ItemType,$AD:$AD)","v":0},{"$f":"SUMIFS(Sheet1!S71_OY2BudgetAmount,Sheet1!S71_SubMunicipalVoteNo,$AC:$AC,Sheet1!S71_ItemType,$AD:$AD)","v":0},null,null,null,null,null,null,null,null,null,null,null,null,null,null,null,null,null,1110,"IE"]
["Vote 12 - [NAME OF VOTE 12]",null,{"$f":"SUM(C295:C304)","v":0},0,0,0,0,0,0,0,0]
["",null,{"$f":"SUMIFS(Sheet1!S71_PPPYearAmount,Sheet1!S71_SubMunicipalVoteNo,$AC:$AC,Sheet1!S71_ItemType,$AD:$AD)","v":0},{"$f":"SUMIFS(Sheet1!S71_PPYearAmount,Sheet1!S71_SubMunicipalVoteNo,$AC:$AC,Sheet1!S71_ItemType,$AD:$AD)","v":0},{"$f":"SUMIFS(Sheet1!S71_PYearAmount,Sheet1!S71_SubMunicipalVoteNo,$AC:$AC,Sheet1!S71_ItemType,$AD:$AD)","v":0},{"$f":"SUMIFS(Sheet1!S71_OriginalBudAmnt,Sheet1!S71_SubMunicipalVoteNo,$AC:$AC,Sheet1!S71_ItemType,$AD:$AD)","v":0},{"$f":"SUMIFS(Sheet1!S71_AdjustmentBudAmnt,Sheet1!S71_SubMunicipalVoteNo,$AC:$AC,Sheet1!S71_ItemType,$AD:$AD)","v":0},{"$f":"SUMIFS(Sheet1!S71_AdjustmentBudAmnt,Sheet1!S71_SubMunicipalVoteNo,$AC:$AC,Sheet1!S71_ItemType,$AD:$AD)","v":0},{"$f":"SUMIFS(Sheet1!S71_ASBudgetAmount,Sheet1!S71_SubMunicipalVoteNo,$AC:$AC,Sheet1!S71_ItemType,$AD:$AD)","v":0},{"$f":"SUMIFS(Sheet1!S71_OY1BudgetAmount,Sheet1!S71_SubMunicipalVoteNo,$AC:$AC,Sheet1!S71_ItemType,$AD:$AD)","v":0},{"$f":"SUMIFS(Sheet1!S71_OY2BudgetAmount,Sheet1!S71_SubMunicipalVoteNo,$AC:$AC,Sheet1!S71_ItemType,$AD:$AD)","v":0},null,null,null,null,null,null,null,null,null,null,null,null,null,null,null,null,null,121,"IE"]
["",null,{"$f":"SUMIFS(Sheet1!S71_PPPYearAmount,Sheet1!S71_SubMunicipalVoteNo,$AC:$AC,Sheet1!S71_ItemType,$AD:$AD)","v":0},{"$f":"SUMIFS(Sheet1!S71_PPYearAmount,Sheet1!S71_SubMunicipalVoteNo,$AC:$AC,Sheet1!S71_ItemType,$AD:$AD)","v":0},{"$f":"SUMIFS(Sheet1!S71_PYearAmount,Sheet1!S71_SubMunicipalVoteNo,$AC:$AC,Sheet1!S71_ItemType,$AD:$AD)","v":0},{"$f":"SUMIFS(Sheet1!S71_OriginalBudAmnt,Sheet1!S71_SubMunicipalVoteNo,$AC:$AC,Sheet1!S71_ItemType,$AD:$AD)","v":0},{"$f":"SUMIFS(Sheet1!S71_AdjustmentBudAmnt,Sheet1!S71_SubMunicipalVoteNo,$AC:$AC,Sheet1!S71_ItemType,$AD:$AD)","v":0},{"$f":"SUMIFS(Sheet1!S71_AdjustmentBudAmnt,Sheet1!S71_SubMunicipalVoteNo,$AC:$AC,Sheet1!S71_ItemType,$AD:$AD)","v":0},{"$f":"SUMIFS(Sheet1!S71_ASBudgetAmount,Sheet1!S71_SubMunicipalVoteNo,$AC:$AC,Sheet1!S71_ItemType,$AD:$AD)","v":0},{"$f":"SUMIFS(Sheet1!S71_OY1BudgetAmount,Sheet1!S71_SubMunicipalVoteNo,$AC:$AC,Sheet1!S71_ItemType,$AD:$AD)","v":0},{"$f":"SUMIFS(Sheet1!S71_OY2BudgetAmount,Sheet1!S71_SubMunicipalVoteNo,$AC:$AC,Sheet1!S71_ItemType,$AD:$AD)","v":0},null,null,null,null,null,null,null,null,null,null,null,null,null,null,null,null,null,122,"IE"]
["",null,{"$f":"SUMIFS(Sheet1!S71_PPPYearAmount,Sheet1!S71_SubMunicipalVoteNo,$AC:$AC,Sheet1!S71_ItemType,$AD:$AD)","v":0},{"$f":"SUMIFS(Sheet1!S71_PPYearAmount,Sheet1!S71_SubMunicipalVoteNo,$AC:$AC,Sheet1!S71_ItemType,$AD:$AD)","v":0},{"$f":"SUMIFS(Sheet1!S71_PYearAmount,Sheet1!S71_SubMunicipalVoteNo,$AC:$AC,Sheet1!S71_ItemType,$AD:$AD)","v":0},{"$f":"SUMIFS(Sheet1!S71_OriginalBudAmnt,Sheet1!S71_SubMunicipalVoteNo,$AC:$AC,Sheet1!S71_ItemType,$AD:$AD)","v":0},{"$f":"SUMIFS(Sheet1!S71_AdjustmentBudAmnt,Sheet1!S71_SubMunicipalVoteNo,$AC:$AC,Sheet1!S71_ItemType,$AD:$AD)","v":0},{"$f":"SUMIFS(Sheet1!S71_AdjustmentBudAmnt,Sheet1!S71_SubMunicipalVoteNo,$AC:$AC,Sheet1!S71_ItemType,$AD:$AD)","v":0},{"$f":"SUMIFS(Sheet1!S71_ASBudgetAmount,Sheet1!S71_SubMunicipalVoteNo,$AC:$AC,Sheet1!S71_ItemType,$AD:$AD)","v":0},{"$f":"SUMIFS(Sheet1!S71_OY1BudgetAmount,Sheet1!S71_SubMunicipalVoteNo,$AC:$AC,Sheet1!S71_ItemType,$AD:$AD)","v":0},{"$f":"SUMIFS(Sheet1!S71_OY2BudgetAmount,Sheet1!S71_SubMunicipalVoteNo,$AC:$AC,Sheet1!S71_ItemType,$AD:$AD)","v":0},null,null,null,null,null,null,null,null,null,null,null,null,null,null,null,null,null,123,"IE"]
["",null,{"$f":"SUMIFS(Sheet1!S71_PPPYearAmount,Sheet1!S71_SubMunicipalVoteNo,$AC:$AC,Sheet1!S71_ItemType,$AD:$AD)","v":0},{"$f":"SUMIFS(Sheet1!S71_PPYearAmount,Sheet1!S71_SubMunicipalVoteNo,$AC:$AC,Sheet1!S71_ItemType,$AD:$AD)","v":0},{"$f":"SUMIFS(Sheet1!S71_PYearAmount,Sheet1!S71_SubMunicipalVoteNo,$AC:$AC,Sheet1!S71_ItemType,$AD:$AD)","v":0},{"$f":"SUMIFS(Sheet1!S71_OriginalBudAmnt,Sheet1!S71_SubMunicipalVoteNo,$AC:$AC,Sheet1!S71_ItemType,$AD:$AD)","v":0},{"$f":"SUMIFS(Sheet1!S71_AdjustmentBudAmnt,Sheet1!S71_SubMunicipalVoteNo,$AC:$AC,Sheet1!S71_ItemType,$AD:$AD)","v":0},{"$f":"SUMIFS(Sheet1!S71_AdjustmentBudAmnt,Sheet1!S71_SubMunicipalVoteNo,$AC:$AC,Sheet1!S71_ItemType,$AD:$AD)","v":0},{"$f":"SUMIFS(Sheet1!S71_ASBudgetAmount,Sheet1!S71_SubMunicipalVoteNo,$AC:$AC,Sheet1!S71_ItemType,$AD:$AD)","v":0},{"$f":"SUMIFS(Sheet1!S71_OY1BudgetAmount,Sheet1!S71_SubMunicipalVoteNo,$AC:$AC,Sheet1!S71_ItemType,$AD:$AD)","v":0},{"$f":"SUMIFS(Sheet1!S71_OY2BudgetAmount,Sheet1!S71_SubMunicipalVoteNo,$AC:$AC,Sheet1!S71_ItemType,$AD:$AD)","v":0},null,null,null,null,null,null,null,null,null,null,null,null,null,null,null,null,null,124,"IE"]
["",null,{"$f":"SUMIFS(Sheet1!S71_PPPYearAmount,Sheet1!S71_SubMunicipalVoteNo,$AC:$AC,Sheet1!S71_ItemType,$AD:$AD)","v":0},{"$f":"SUMIFS(Sheet1!S71_PPYearAmount,Sheet1!S71_SubMunicipalVoteNo,$AC:$AC,Sheet1!S71_ItemType,$AD:$AD)","v":0},{"$f":"SUMIFS(Sheet1!S71_PYearAmount,Sheet1!S71_SubMunicipalVoteNo,$AC:$AC,Sheet1!S71_ItemType,$AD:$AD)","v":0},{"$f":"SUMIFS(Sheet1!S71_OriginalBudAmnt,Sheet1!S71_SubMunicipalVoteNo,$AC:$AC,Sheet1!S71_ItemType,$AD:$AD)","v":0},{"$f":"SUMIFS(Sheet1!S71_AdjustmentBudAmnt,Sheet1!S71_SubMunicipalVoteNo,$AC:$AC,Sheet1!S71_ItemType,$AD:$AD)","v":0},{"$f":"SUMIFS(Sheet1!S71_AdjustmentBudAmnt,Sheet1!S71_SubMunicipalVoteNo,$AC:$AC,Sheet1!S71_ItemType,$AD:$AD)","v":0},{"$f":"SUMIFS(Sheet1!S71_ASBudgetAmount,Sheet1!S71_SubMunicipalVoteNo,$AC:$AC,Sheet1!S71_ItemType,$AD:$AD)","v":0},{"$f":"SUMIFS(Sheet1!S71_OY1BudgetAmount,Sheet1!S71_SubMunicipalVoteNo,$AC:$AC,Sheet1!S71_ItemType,$AD:$AD)","v":0},{"$f":"SUMIFS(Sheet1!S71_OY2BudgetAmount,Sheet1!S71_SubMunicipalVoteNo,$AC:$AC,Sheet1!S71_ItemType,$AD:$AD)","v":0},null,null,null,null,null,null,null,null,null,null,null,null,null,null,null,null,null,125,"IE"]
["",null,{"$f":"SUMIFS(Sheet1!S71_PPPYearAmount,Sheet1!S71_SubMunicipalVoteNo,$AC:$AC,Sheet1!S71_ItemType,$AD:$AD)","v":0},{"$f":"SUMIFS(Sheet1!S71_PPYearAmount,Sheet1!S71_SubMunicipalVoteNo,$AC:$AC,Sheet1!S71_ItemType,$AD:$AD)","v":0},{"$f":"SUMIFS(Sheet1!S71_PYearAmount,Sheet1!S71_SubMunicipalVoteNo,$AC:$AC,Sheet1!S71_ItemType,$AD:$AD)","v":0},{"$f":"SUMIFS(Sheet1!S71_OriginalBudAmnt,Sheet1!S71_SubMunicipalVoteNo,$AC:$AC,Sheet1!S71_ItemType,$AD:$AD)","v":0},{"$f":"SUMIFS(Sheet1!S71_AdjustmentBudAmnt,Sheet1!S71_SubMunicipalVoteNo,$AC:$AC,Sheet1!S71_ItemType,$AD:$AD)","v":0},{"$f":"SUMIFS(Sheet1!S71_AdjustmentBudAmnt,Sheet1!S71_SubMunicipalVoteNo,$AC:$AC,Sheet1!S71_ItemType,$AD:$AD)","v":0},{"$f":"SUMIFS(Sheet1!S71_ASBudgetAmount,Sheet1!S71_SubMunicipalVoteNo,$AC:$AC,Sheet1!S71_ItemType,$AD:$AD)","v":0},{"$f":"SUMIFS(Sheet1!S71_OY1BudgetAmount,Sheet1!S71_SubMunicipalVoteNo,$AC:$AC,Sheet1!S71_ItemType,$AD:$AD)","v":0},{"$f":"SUMIFS(Sheet1!S71_OY2BudgetAmount,Sheet1!S71_SubMunicipalVoteNo,$AC:$AC,Sheet1!S71_ItemType,$AD:$AD)","v":0},null,null,null,null,null,null,null,null,null,null,null,null,null,null,null,null,null,126,"IE"]
["",null,{"$f":"SUMIFS(Sheet1!S71_PPPYearAmount,Sheet1!S71_SubMunicipalVoteNo,$AC:$AC,Sheet1!S71_ItemType,$AD:$AD)","v":0},{"$f":"SUMIFS(Sheet1!S71_PPYearAmount,Sheet1!S71_SubMunicipalVoteNo,$AC:$AC,Sheet1!S71_ItemType,$AD:$AD)","v":0},{"$f":"SUMIFS(Sheet1!S71_PYearAmount,Sheet1!S71_SubMunicipalVoteNo,$AC:$AC,Sheet1!S71_ItemType,$AD:$AD)","v":0},{"$f":"SUMIFS(Sheet1!S71_OriginalBudAmnt,Sheet1!S71_SubMunicipalVoteNo,$AC:$AC,Sheet1!S71_ItemType,$AD:$AD)","v":0},{"$f":"SUMIFS(Sheet1!S71_AdjustmentBudAmnt,Sheet1!S71_SubMunicipalVoteNo,$AC:$AC,Sheet1!S71_ItemType,$AD:$AD)","v":0},{"$f":"SUMIFS(Sheet1!S71_AdjustmentBudAmnt,Sheet1!S71_SubMunicipalVoteNo,$AC:$AC,Sheet1!S71_ItemType,$AD:$AD)","v":0},{"$f":"SUMIFS(Sheet1!S71_ASBudgetAmount,Sheet1!S71_SubMunicipalVoteNo,$AC:$AC,Sheet1!S71_ItemType,$AD:$AD)","v":0},{"$f":"SUMIFS(Sheet1!S71_OY1BudgetAmount,Sheet1!S71_SubMunicipalVoteNo,$AC:$AC,Sheet1!S71_ItemType,$AD:$AD)","v":0},{"$f":"SUMIFS(Sheet1!S71_OY2BudgetAmount,Sheet1!S71_SubMunicipalVoteNo,$AC:$AC,Sheet1!S71_ItemType,$AD:$AD)","v":0},null,null,null,null,null,null,null,null,null,null,null,null,null,null,null,null,null,127,"IE"]
["",null,{"$f":"SUMIFS(Sheet1!S71_PPPYearAmount,Sheet1!S71_SubMunicipalVoteNo,$AC:$AC,Sheet1!S71_ItemType,$AD:$AD)","v":0},{"$f":"SUMIFS(Sheet1!S71_PPYearAmount,Sheet1!S71_SubMunicipalVoteNo,$AC:$AC,Sheet1!S71_ItemType,$AD:$AD)","v":0},{"$f":"SUMIFS(Sheet1!S71_PYearAmount,Sheet1!S71_SubMunicipalVoteNo,$AC:$AC,Sheet1!S71_ItemType,$AD:$AD)","v":0},{"$f":"SUMIFS(Sheet1!S71_OriginalBudAmnt,Sheet1!S71_SubMunicipalVoteNo,$AC:$AC,Sheet1!S71_ItemType,$AD:$AD)","v":0},{"$f":"SUMIFS(Sheet1!S71_AdjustmentBudAmnt,Sheet1!S71_SubMunicipalVoteNo,$AC:$AC,Sheet1!S71_ItemType,$AD:$AD)","v":0},{"$f":"SUMIFS(Sheet1!S71_AdjustmentBudAmnt,Sheet1!S71_SubMunicipalVoteNo,$AC:$AC,Sheet1!S71_ItemType,$AD:$AD)","v":0},{"$f":"SUMIFS(Sheet1!S71_ASBudgetAmount,Sheet1!S71_SubMunicipalVoteNo,$AC:$AC,Sheet1!S71_ItemType,$AD:$AD)","v":0},{"$f":"SUMIFS(Sheet1!S71_OY1BudgetAmount,Sheet1!S71_SubMunicipalVoteNo,$AC:$AC,Sheet1!S71_ItemType,$AD:$AD)","v":0},{"$f":"SUMIFS(Sheet1!S71_OY2BudgetAmount,Sheet1!S71_SubMunicipalVoteNo,$AC:$AC,Sheet1!S71_ItemType,$AD:$AD)","v":0},null,null,null,null,null,null,null,null,null,null,null,null,null,null,null,null,null,128,"IE"]
["",null,{"$f":"SUMIFS(Sheet1!S71_PPPYearAmount,Sheet1!S71_SubMunicipalVoteNo,$AC:$AC,Sheet1!S71_ItemType,$AD:$AD)","v":0},{"$f":"SUMIFS(Sheet1!S71_PPYearAmount,Sheet1!S71_SubMunicipalVoteNo,$AC:$AC,Sheet1!S71_ItemType,$AD:$AD)","v":0},{"$f":"SUMIFS(Sheet1!S71_PYearAmount,Sheet1!S71_SubMunicipalVoteNo,$AC:$AC,Sheet1!S71_ItemType,$AD:$AD)","v":0},{"$f":"SUMIFS(Sheet1!S71_OriginalBudAmnt,Sheet1!S71_SubMunicipalVoteNo,$AC:$AC,Sheet1!S71_ItemType,$AD:$AD)","v":0},{"$f":"SUMIFS(Sheet1!S71_AdjustmentBudAmnt,Sheet1!S71_SubMunicipalVoteNo,$AC:$AC,Sheet1!S71_ItemType,$AD:$AD)","v":0},{"$f":"SUMIFS(Sheet1!S71_AdjustmentBudAmnt,Sheet1!S71_SubMunicipalVoteNo,$AC:$AC,Sheet1!S71_ItemType,$AD:$AD)","v":0},{"$f":"SUMIFS(Sheet1!S71_ASBudgetAmount,Sheet1!S71_SubMunicipalVoteNo,$AC:$AC,Sheet1!S71_ItemType,$AD:$AD)","v":0},{"$f":"SUMIFS(Sheet1!S71_OY1BudgetAmount,Sheet1!S71_SubMunicipalVoteNo,$AC:$AC,Sheet1!S71_ItemType,$AD:$AD)","v":0},{"$f":"SUMIFS(Sheet1!S71_OY2BudgetAmount,Sheet1!S71_SubMunicipalVoteNo,$AC:$AC,Sheet1!S71_ItemType,$AD:$AD)","v":0},null,null,null,null,null,null,null,null,null,null,null,null,null,null,null,null,null,129,"IE"]
["",null,{"$f":"SUMIFS(Sheet1!S71_PPPYearAmount,Sheet1!S71_SubMunicipalVoteNo,$AC:$AC,Sheet1!S71_ItemType,$AD:$AD)","v":0},{"$f":"SUMIFS(Sheet1!S71_PPYearAmount,Sheet1!S71_SubMunicipalVoteNo,$AC:$AC,Sheet1!S71_ItemType,$AD:$AD)","v":0},{"$f":"SUMIFS(Sheet1!S71_PYearAmount,Sheet1!S71_SubMunicipalVoteNo,$AC:$AC,Sheet1!S71_ItemType,$AD:$AD)","v":0},{"$f":"SUMIFS(Sheet1!S71_OriginalBudAmnt,Sheet1!S71_SubMunicipalVoteNo,$AC:$AC,Sheet1!S71_ItemType,$AD:$AD)","v":0},{"$f":"SUMIFS(Sheet1!S71_AdjustmentBudAmnt,Sheet1!S71_SubMunicipalVoteNo,$AC:$AC,Sheet1!S71_ItemType,$AD:$AD)","v":0},{"$f":"SUMIFS(Sheet1!S71_AdjustmentBudAmnt,Sheet1!S71_SubMunicipalVoteNo,$AC:$AC,Sheet1!S71_ItemType,$AD:$AD)","v":0},{"$f":"SUMIFS(Sheet1!S71_ASBudgetAmount,Sheet1!S71_SubMunicipalVoteNo,$AC:$AC,Sheet1!S71_ItemType,$AD:$AD)","v":0},{"$f":"SUMIFS(Sheet1!S71_OY1BudgetAmount,Sheet1!S71_SubMunicipalVoteNo,$AC:$AC,Sheet1!S71_ItemType,$AD:$AD)","v":0},{"$f":"SUMIFS(Sheet1!S71_OY2BudgetAmount,Sheet1!S71_SubMunicipalVoteNo,$AC:$AC,Sheet1!S71_ItemType,$AD:$AD)","v":0},null,null,null,null,null,null,null,null,null,null,null,null,null,null,null,null,null,1210,"IE"]
["Vote 13 - [NAME OF VOTE 13]",null,{"$f":"SUM(C306:C315)","v":0},0,0,0,0,0,0,0,0]
["",null,{"$f":"SUMIFS(Sheet1!S71_PPPYearAmount,Sheet1!S71_SubMunicipalVoteNo,$AC:$AC,Sheet1!S71_ItemType,$AD:$AD)","v":0},{"$f":"SUMIFS(Sheet1!S71_PPYearAmount,Sheet1!S71_SubMunicipalVoteNo,$AC:$AC,Sheet1!S71_ItemType,$AD:$AD)","v":0},{"$f":"SUMIFS(Sheet1!S71_PYearAmount,Sheet1!S71_SubMunicipalVoteNo,$AC:$AC,Sheet1!S71_ItemType,$AD:$AD)","v":0},{"$f":"SUMIFS(Sheet1!S71_OriginalBudAmnt,Sheet1!S71_SubMunicipalVoteNo,$AC:$AC,Sheet1!S71_ItemType,$AD:$AD)","v":0},{"$f":"SUMIFS(Sheet1!S71_AdjustmentBudAmnt,Sheet1!S71_SubMunicipalVoteNo,$AC:$AC,Sheet1!S71_ItemType,$AD:$AD)","v":0},{"$f":"SUMIFS(Sheet1!S71_AdjustmentBudAmnt,Sheet1!S71_SubMunicipalVoteNo,$AC:$AC,Sheet1!S71_ItemType,$AD:$AD)","v":0},{"$f":"SUMIFS(Sheet1!S71_ASBudgetAmount,Sheet1!S71_SubMunicipalVoteNo,$AC:$AC,Sheet1!S71_ItemType,$AD:$AD)","v":0},{"$f":"SUMIFS(Sheet1!S71_OY1BudgetAmount,Sheet1!S71_SubMunicipalVoteNo,$AC:$AC,Sheet1!S71_ItemType,$AD:$AD)","v":0},{"$f":"SUMIFS(Sheet1!S71_OY2BudgetAmount,Sheet1!S71_SubMunicipalVoteNo,$AC:$AC,Sheet1!S71_ItemType,$AD:$AD)","v":0},null,null,null,null,null,null,null,null,null,null,null,null,null,null,null,null,null,131,"IE"]
["",null,{"$f":"SUMIFS(Sheet1!S71_PPPYearAmount,Sheet1!S71_SubMunicipalVoteNo,$AC:$AC,Sheet1!S71_ItemType,$AD:$AD)","v":0},{"$f":"SUMIFS(Sheet1!S71_PPYearAmount,Sheet1!S71_SubMunicipalVoteNo,$AC:$AC,Sheet1!S71_ItemType,$AD:$AD)","v":0},{"$f":"SUMIFS(Sheet1!S71_PYearAmount,Sheet1!S71_SubMunicipalVoteNo,$AC:$AC,Sheet1!S71_ItemType,$AD:$AD)","v":0},{"$f":"SUMIFS(Sheet1!S71_OriginalBudAmnt,Sheet1!S71_SubMunicipalVoteNo,$AC:$AC,Sheet1!S71_ItemType,$AD:$AD)","v":0},{"$f":"SUMIFS(Sheet1!S71_AdjustmentBudAmnt,Sheet1!S71_SubMunicipalVoteNo,$AC:$AC,Sheet1!S71_ItemType,$AD:$AD)","v":0},{"$f":"SUMIFS(Sheet1!S71_AdjustmentBudAmnt,Sheet1!S71_SubMunicipalVoteNo,$AC:$AC,Sheet1!S71_ItemType,$AD:$AD)","v":0},{"$f":"SUMIFS(Sheet1!S71_ASBudgetAmount,Sheet1!S71_SubMunicipalVoteNo,$AC:$AC,Sheet1!S71_ItemType,$AD:$AD)","v":0},{"$f":"SUMIFS(Sheet1!S71_OY1BudgetAmount,Sheet1!S71_SubMunicipalVoteNo,$AC:$AC,Sheet1!S71_ItemType,$AD:$AD)","v":0},{"$f":"SUMIFS(Sheet1!S71_OY2BudgetAmount,Sheet1!S71_SubMunicipalVoteNo,$AC:$AC,Sheet1!S71_ItemType,$AD:$AD)","v":0},null,null,null,null,null,null,null,null,null,null,null,null,null,null,null,null,null,132,"IE"]
["",null,{"$f":"SUMIFS(Sheet1!S71_PPPYearAmount,Sheet1!S71_SubMunicipalVoteNo,$AC:$AC,Sheet1!S71_ItemType,$AD:$AD)","v":0},{"$f":"SUMIFS(Sheet1!S71_PPYearAmount,Sheet1!S71_SubMunicipalVoteNo,$AC:$AC,Sheet1!S71_ItemType,$AD:$AD)","v":0},{"$f":"SUMIFS(Sheet1!S71_PYearAmount,Sheet1!S71_SubMunicipalVoteNo,$AC:$AC,Sheet1!S71_ItemType,$AD:$AD)","v":0},{"$f":"SUMIFS(Sheet1!S71_OriginalBudAmnt,Sheet1!S71_SubMunicipalVoteNo,$AC:$AC,Sheet1!S71_ItemType,$AD:$AD)","v":0},{"$f":"SUMIFS(Sheet1!S71_AdjustmentBudAmnt,Sheet1!S71_SubMunicipalVoteNo,$AC:$AC,Sheet1!S71_ItemType,$AD:$AD)","v":0},{"$f":"SUMIFS(Sheet1!S71_AdjustmentBudAmnt,Sheet1!S71_SubMunicipalVoteNo,$AC:$AC,Sheet1!S71_ItemType,$AD:$AD)","v":0},{"$f":"SUMIFS(Sheet1!S71_ASBudgetAmount,Sheet1!S71_SubMunicipalVoteNo,$AC:$AC,Sheet1!S71_ItemType,$AD:$AD)","v":0},{"$f":"SUMIFS(Sheet1!S71_OY1BudgetAmount,Sheet1!S71_SubMunicipalVoteNo,$AC:$AC,Sheet1!S71_ItemType,$AD:$AD)","v":0},{"$f":"SUMIFS(Sheet1!S71_OY2BudgetAmount,Sheet1!S71_SubMunicipalVoteNo,$AC:$AC,Sheet1!S71_ItemType,$AD:$AD)","v":0},null,null,null,null,null,null,null,null,null,null,null,null,null,null,null,null,null,133,"IE"]
["",null,{"$f":"SUMIFS(Sheet1!S71_PPPYearAmount,Sheet1!S71_SubMunicipalVoteNo,$AC:$AC,Sheet1!S71_ItemType,$AD:$AD)","v":0},{"$f":"SUMIFS(Sheet1!S71_PPYearAmount,Sheet1!S71_SubMunicipalVoteNo,$AC:$AC,Sheet1!S71_ItemType,$AD:$AD)","v":0},{"$f":"SUMIFS(Sheet1!S71_PYearAmount,Sheet1!S71_SubMunicipalVoteNo,$AC:$AC,Sheet1!S71_ItemType,$AD:$AD)","v":0},{"$f":"SUMIFS(Sheet1!S71_OriginalBudAmnt,Sheet1!S71_SubMunicipalVoteNo,$AC:$AC,Sheet1!S71_ItemType,$AD:$AD)","v":0},{"$f":"SUMIFS(Sheet1!S71_AdjustmentBudAmnt,Sheet1!S71_SubMunicipalVoteNo,$AC:$AC,Sheet1!S71_ItemType,$AD:$AD)","v":0},{"$f":"SUMIFS(Sheet1!S71_AdjustmentBudAmnt,Sheet1!S71_SubMunicipalVoteNo,$AC:$AC,Sheet1!S71_ItemType,$AD:$AD)","v":0},{"$f":"SUMIFS(Sheet1!S71_ASBudgetAmount,Sheet1!S71_SubMunicipalVoteNo,$AC:$AC,Sheet1!S71_ItemType,$AD:$AD)","v":0},{"$f":"SUMIFS(Sheet1!S71_OY1BudgetAmount,Sheet1!S71_SubMunicipalVoteNo,$AC:$AC,Sheet1!S71_ItemType,$AD:$AD)","v":0},{"$f":"SUMIFS(Sheet1!S71_OY2BudgetAmount,Sheet1!S71_SubMunicipalVoteNo,$AC:$AC,Sheet1!S71_ItemType,$AD:$AD)","v":0},null,null,null,null,null,null,null,null,null,null,null,null,null,null,null,null,null,134,"IE"]
["",null,{"$f":"SUMIFS(Sheet1!S71_PPPYearAmount,Sheet1!S71_SubMunicipalVoteNo,$AC:$AC,Sheet1!S71_ItemType,$AD:$AD)","v":0},{"$f":"SUMIFS(Sheet1!S71_PPYearAmount,Sheet1!S71_SubMunicipalVoteNo,$AC:$AC,Sheet1!S71_ItemType,$AD:$AD)","v":0},{"$f":"SUMIFS(Sheet1!S71_PYearAmount,Sheet1!S71_SubMunicipalVoteNo,$AC:$AC,Sheet1!S71_ItemType,$AD:$AD)","v":0},{"$f":"SUMIFS(Sheet1!S71_OriginalBudAmnt,Sheet1!S71_SubMunicipalVoteNo,$AC:$AC,Sheet1!S71_ItemType,$AD:$AD)","v":0},{"$f":"SUMIFS(Sheet1!S71_AdjustmentBudAmnt,Sheet1!S71_SubMunicipalVoteNo,$AC:$AC,Sheet1!S71_ItemType,$AD:$AD)","v":0},{"$f":"SUMIFS(Sheet1!S71_AdjustmentBudAmnt,Sheet1!S71_SubMunicipalVoteNo,$AC:$AC,Sheet1!S71_ItemType,$AD:$AD)","v":0},{"$f":"SUMIFS(Sheet1!S71_ASBudgetAmount,Sheet1!S71_SubMunicipalVoteNo,$AC:$AC,Sheet1!S71_ItemType,$AD:$AD)","v":0},{"$f":"SUMIFS(Sheet1!S71_OY1BudgetAmount,Sheet1!S71_SubMunicipalVoteNo,$AC:$AC,Sheet1!S71_ItemType,$AD:$AD)","v":0},{"$f":"SUMIFS(Sheet1!S71_OY2BudgetAmount,Sheet1!S71_SubMunicipalVoteNo,$AC:$AC,Sheet1!S71_ItemType,$AD:$AD)","v":0},null,null,null,null,null,null,null,null,null,null,null,null,null,null,null,null,null,135,"IE"]
["",null,{"$f":"SUMIFS(Sheet1!S71_PPPYearAmount,Sheet1!S71_SubMunicipalVoteNo,$AC:$AC,Sheet1!S71_ItemType,$AD:$AD)","v":0},{"$f":"SUMIFS(Sheet1!S71_PPYearAmount,Sheet1!S71_SubMunicipalVoteNo,$AC:$AC,Sheet1!S71_ItemType,$AD:$AD)","v":0},{"$f":"SUMIFS(Sheet1!S71_PYearAmount,Sheet1!S71_SubMunicipalVoteNo,$AC:$AC,Sheet1!S71_ItemType,$AD:$AD)","v":0},{"$f":"SUMIFS(Sheet1!S71_OriginalBudAmnt,Sheet1!S71_SubMunicipalVoteNo,$AC:$AC,Sheet1!S71_ItemType,$AD:$AD)","v":0},{"$f":"SUMIFS(Sheet1!S71_AdjustmentBudAmnt,Sheet1!S71_SubMunicipalVoteNo,$AC:$AC,Sheet1!S71_ItemType,$AD:$AD)","v":0},{"$f":"SUMIFS(Sheet1!S71_AdjustmentBudAmnt,Sheet1!S71_SubMunicipalVoteNo,$AC:$AC,Sheet1!S71_ItemType,$AD:$AD)","v":0},{"$f":"SUMIFS(Sheet1!S71_ASBudgetAmount,Sheet1!S71_SubMunicipalVoteNo,$AC:$AC,Sheet1!S71_ItemType,$AD:$AD)","v":0},{"$f":"SUMIFS(Sheet1!S71_OY1BudgetAmount,Sheet1!S71_SubMunicipalVoteNo,$AC:$AC,Sheet1!S71_ItemType,$AD:$AD)","v":0},{"$f":"SUMIFS(Sheet1!S71_OY2BudgetAmount,Sheet1!S71_SubMunicipalVoteNo,$AC:$AC,Sheet1!S71_ItemType,$AD:$AD)","v":0},null,null,null,null,null,null,null,null,null,null,null,null,null,null,null,null,null,136,"IE"]
["",null,{"$f":"SUMIFS(Sheet1!S71_PPPYearAmount,Sheet1!S71_SubMunicipalVoteNo,$AC:$AC,Sheet1!S71_ItemType,$AD:$AD)","v":0},{"$f":"SUMIFS(Sheet1!S71_PPYearAmount,Sheet1!S71_SubMunicipalVoteNo,$AC:$AC,Sheet1!S71_ItemType,$AD:$AD)","v":0},{"$f":"SUMIFS(Sheet1!S71_PYearAmount,Sheet1!S71_SubMunicipalVoteNo,$AC:$AC,Sheet1!S71_ItemType,$AD:$AD)","v":0},{"$f":"SUMIFS(Sheet1!S71_OriginalBudAmnt,Sheet1!S71_SubMunicipalVoteNo,$AC:$AC,Sheet1!S71_ItemType,$AD:$AD)","v":0},{"$f":"SUMIFS(Sheet1!S71_AdjustmentBudAmnt,Sheet1!S71_SubMunicipalVoteNo,$AC:$AC,Sheet1!S71_ItemType,$AD:$AD)","v":0},{"$f":"SUMIFS(Sheet1!S71_AdjustmentBudAmnt,Sheet1!S71_SubMunicipalVoteNo,$AC:$AC,Sheet1!S71_ItemType,$AD:$AD)","v":0},{"$f":"SUMIFS(Sheet1!S71_ASBudgetAmount,Sheet1!S71_SubMunicipalVoteNo,$AC:$AC,Sheet1!S71_ItemType,$AD:$AD)","v":0},{"$f":"SUMIFS(Sheet1!S71_OY1BudgetAmount,Sheet1!S71_SubMunicipalVoteNo,$AC:$AC,Sheet1!S71_ItemType,$AD:$AD)","v":0},{"$f":"SUMIFS(Sheet1!S71_OY2BudgetAmount,Sheet1!S71_SubMunicipalVoteNo,$AC:$AC,Sheet1!S71_ItemType,$AD:$AD)","v":0},null,null,null,null,null,null,null,null,null,null,null,null,null,null,null,null,null,137,"IE"]
["",null,{"$f":"SUMIFS(Sheet1!S71_PPPYearAmount,Sheet1!S71_SubMunicipalVoteNo,$AC:$AC,Sheet1!S71_ItemType,$AD:$AD)","v":0},{"$f":"SUMIFS(Sheet1!S71_PPYearAmount,Sheet1!S71_SubMunicipalVoteNo,$AC:$AC,Sheet1!S71_ItemType,$AD:$AD)","v":0},{"$f":"SUMIFS(Sheet1!S71_PYearAmount,Sheet1!S71_SubMunicipalVoteNo,$AC:$AC,Sheet1!S71_ItemType,$AD:$AD)","v":0},{"$f":"SUMIFS(Sheet1!S71_OriginalBudAmnt,Sheet1!S71_SubMunicipalVoteNo,$AC:$AC,Sheet1!S71_ItemType,$AD:$AD)","v":0},{"$f":"SUMIFS(Sheet1!S71_AdjustmentBudAmnt,Sheet1!S71_SubMunicipalVoteNo,$AC:$AC,Sheet1!S71_ItemType,$AD:$AD)","v":0},{"$f":"SUMIFS(Sheet1!S71_AdjustmentBudAmnt,Sheet1!S71_SubMunicipalVoteNo,$AC:$AC,Sheet1!S71_ItemType,$AD:$AD)","v":0},{"$f":"SUMIFS(Sheet1!S71_ASBudgetAmount,Sheet1!S71_SubMunicipalVoteNo,$AC:$AC,Sheet1!S71_ItemType,$AD:$AD)","v":0},{"$f":"SUMIFS(Sheet1!S71_OY1BudgetAmount,Sheet1!S71_SubMunicipalVoteNo,$AC:$AC,Sheet1!S71_ItemType,$AD:$AD)","v":0},{"$f":"SUMIFS(Sheet1!S71_OY2BudgetAmount,Sheet1!S71_SubMunicipalVoteNo,$AC:$AC,Sheet1!S71_ItemType,$AD:$AD)","v":0},null,null,null,null,null,null,null,null,null,null,null,null,null,null,null,null,null,138,"IE"]
["",null,{"$f":"SUMIFS(Sheet1!S71_PPPYearAmount,Sheet1!S71_SubMunicipalVoteNo,$AC:$AC,Sheet1!S71_ItemType,$AD:$AD)","v":0},{"$f":"SUMIFS(Sheet1!S71_PPYearAmount,Sheet1!S71_SubMunicipalVoteNo,$AC:$AC,Sheet1!S71_ItemType,$AD:$AD)","v":0},{"$f":"SUMIFS(Sheet1!S71_PYearAmount,Sheet1!S71_SubMunicipalVoteNo,$AC:$AC,Sheet1!S71_ItemType,$AD:$AD)","v":0},{"$f":"SUMIFS(Sheet1!S71_OriginalBudAmnt,Sheet1!S71_SubMunicipalVoteNo,$AC:$AC,Sheet1!S71_ItemType,$AD:$AD)","v":0},{"$f":"SUMIFS(Sheet1!S71_AdjustmentBudAmnt,Sheet1!S71_SubMunicipalVoteNo,$AC:$AC,Sheet1!S71_ItemType,$AD:$AD)","v":0},{"$f":"SUMIFS(Sheet1!S71_AdjustmentBudAmnt,Sheet1!S71_SubMunicipalVoteNo,$AC:$AC,Sheet1!S71_ItemType,$AD:$AD)","v":0},{"$f":"SUMIFS(Sheet1!S71_ASBudgetAmount,Sheet1!S71_SubMunicipalVoteNo,$AC:$AC,Sheet1!S71_ItemType,$AD:$AD)","v":0},{"$f":"SUMIFS(Sheet1!S71_OY1BudgetAmount,Sheet1!S71_SubMunicipalVoteNo,$AC:$AC,Sheet1!S71_ItemType,$AD:$AD)","v":0},{"$f":"SUMIFS(Sheet1!S71_OY2BudgetAmount,Sheet1!S71_SubMunicipalVoteNo,$AC:$AC,Sheet1!S71_ItemType,$AD:$AD)","v":0},null,null,null,null,null,null,null,null,null,null,null,null,null,null,null,null,null,139,"IE"]
["",null,{"$f":"SUMIFS(Sheet1!S71_PPPYearAmount,Sheet1!S71_SubMunicipalVoteNo,$AC:$AC,Sheet1!S71_ItemType,$AD:$AD)","v":0},{"$f":"SUMIFS(Sheet1!S71_PPYearAmount,Sheet1!S71_SubMunicipalVoteNo,$AC:$AC,Sheet1!S71_ItemType,$AD:$AD)","v":0},{"$f":"SUMIFS(Sheet1!S71_PYearAmount,Sheet1!S71_SubMunicipalVoteNo,$AC:$AC,Sheet1!S71_ItemType,$AD:$AD)","v":0},{"$f":"SUMIFS(Sheet1!S71_OriginalBudAmnt,Sheet1!S71_SubMunicipalVoteNo,$AC:$AC,Sheet1!S71_ItemType,$AD:$AD)","v":0},{"$f":"SUMIFS(Sheet1!S71_AdjustmentBudAmnt,Sheet1!S71_SubMunicipalVoteNo,$AC:$AC,Sheet1!S71_ItemType,$AD:$AD)","v":0},{"$f":"SUMIFS(Sheet1!S71_AdjustmentBudAmnt,Sheet1!S71_SubMunicipalVoteNo,$AC:$AC,Sheet1!S71_ItemType,$AD:$AD)","v":0},{"$f":"SUMIFS(Sheet1!S71_ASBudgetAmount,Sheet1!S71_SubMunicipalVoteNo,$AC:$AC,Sheet1!S71_ItemType,$AD:$AD)","v":0},{"$f":"SUMIFS(Sheet1!S71_OY1BudgetAmount,Sheet1!S71_SubMunicipalVoteNo,$AC:$AC,Sheet1!S71_ItemType,$AD:$AD)","v":0},{"$f":"SUMIFS(Sheet1!S71_OY2BudgetAmount,Sheet1!S71_SubMunicipalVoteNo,$AC:$AC,Sheet1!S71_ItemType,$AD:$AD)","v":0},null,null,null,null,null,null,null,null,null,null,null,null,null,null,null,null,null,1310,"IE"]
["Vote 14 - [NAME OF VOTE 14]",null,{"$f":"SUM(C317:C326)","v":0},0,0,0,0,0,0,0,0]
["",null,{"$f":"SUMIFS(Sheet1!S71_PPPYearAmount,Sheet1!S71_SubMunicipalVoteNo,$AC:$AC,Sheet1!S71_ItemType,$AD:$AD)","v":0},{"$f":"SUMIFS(Sheet1!S71_PPYearAmount,Sheet1!S71_SubMunicipalVoteNo,$AC:$AC,Sheet1!S71_ItemType,$AD:$AD)","v":0},{"$f":"SUMIFS(Sheet1!S71_PYearAmount,Sheet1!S71_SubMunicipalVoteNo,$AC:$AC,Sheet1!S71_ItemType,$AD:$AD)","v":0},{"$f":"SUMIFS(Sheet1!S71_OriginalBudAmnt,Sheet1!S71_SubMunicipalVoteNo,$AC:$AC,Sheet1!S71_ItemType,$AD:$AD)","v":0},{"$f":"SUMIFS(Sheet1!S71_AdjustmentBudAmnt,Sheet1!S71_SubMunicipalVoteNo,$AC:$AC,Sheet1!S71_ItemType,$AD:$AD)","v":0},{"$f":"SUMIFS(Sheet1!S71_AdjustmentBudAmnt,Sheet1!S71_SubMunicipalVoteNo,$AC:$AC,Sheet1!S71_ItemType,$AD:$AD)","v":0},{"$f":"SUMIFS(Sheet1!S71_ASBudgetAmount,Sheet1!S71_SubMunicipalVoteNo,$AC:$AC,Sheet1!S71_ItemType,$AD:$AD)","v":0},{"$f":"SUMIFS(Sheet1!S71_OY1BudgetAmount,Sheet1!S71_SubMunicipalVoteNo,$AC:$AC,Sheet1!S71_ItemType,$AD:$AD)","v":0},{"$f":"SUMIFS(Sheet1!S71_OY2BudgetAmount,Sheet1!S71_SubMunicipalVoteNo,$AC:$AC,Sheet1!S71_ItemType,$AD:$AD)","v":0},null,null,null,null,null,null,null,null,null,null,null,null,null,null,null,null,null,141,"IE"]
["",null,{"$f":"SUMIFS(Sheet1!S71_PPPYearAmount,Sheet1!S71_SubMunicipalVoteNo,$AC:$AC,Sheet1!S71_ItemType,$AD:$AD)","v":0},{"$f":"SUMIFS(Sheet1!S71_PPYearAmount,Sheet1!S71_SubMunicipalVoteNo,$AC:$AC,Sheet1!S71_ItemType,$AD:$AD)","v":0},{"$f":"SUMIFS(Sheet1!S71_PYearAmount,Sheet1!S71_SubMunicipalVoteNo,$AC:$AC,Sheet1!S71_ItemType,$AD:$AD)","v":0},{"$f":"SUMIFS(Sheet1!S71_OriginalBudAmnt,Sheet1!S71_SubMunicipalVoteNo,$AC:$AC,Sheet1!S71_ItemType,$AD:$AD)","v":0},{"$f":"SUMIFS(Sheet1!S71_AdjustmentBudAmnt,Sheet1!S71_SubMunicipalVoteNo,$AC:$AC,Sheet1!S71_ItemType,$AD:$AD)","v":0},{"$f":"SUMIFS(Sheet1!S71_AdjustmentBudAmnt,Sheet1!S71_SubMunicipalVoteNo,$AC:$AC,Sheet1!S71_ItemType,$AD:$AD)","v":0},{"$f":"SUMIFS(Sheet1!S71_ASBudgetAmount,Sheet1!S71_SubMunicipalVoteNo,$AC:$AC,Sheet1!S71_ItemType,$AD:$AD)","v":0},{"$f":"SUMIFS(Sheet1!S71_OY1BudgetAmount,Sheet1!S71_SubMunicipalVoteNo,$AC:$AC,Sheet1!S71_ItemType,$AD:$AD)","v":0},{"$f":"SUMIFS(Sheet1!S71_OY2BudgetAmount,Sheet1!S71_SubMunicipalVoteNo,$AC:$AC,Sheet1!S71_ItemType,$AD:$AD)","v":0},null,null,null,null,null,null,null,null,null,null,null,null,null,null,null,null,null,142,"IE"]
["",null,{"$f":"SUMIFS(Sheet1!S71_PPPYearAmount,Sheet1!S71_SubMunicipalVoteNo,$AC:$AC,Sheet1!S71_ItemType,$AD:$AD)","v":0},{"$f":"SUMIFS(Sheet1!S71_PPYearAmount,Sheet1!S71_SubMunicipalVoteNo,$AC:$AC,Sheet1!S71_ItemType,$AD:$AD)","v":0},{"$f":"SUMIFS(Sheet1!S71_PYearAmount,Sheet1!S71_SubMunicipalVoteNo,$AC:$AC,Sheet1!S71_ItemType,$AD:$AD)","v":0},{"$f":"SUMIFS(Sheet1!S71_OriginalBudAmnt,Sheet1!S71_SubMunicipalVoteNo,$AC:$AC,Sheet1!S71_ItemType,$AD:$AD)","v":0},{"$f":"SUMIFS(Sheet1!S71_AdjustmentBudAmnt,Sheet1!S71_SubMunicipalVoteNo,$AC:$AC,Sheet1!S71_ItemType,$AD:$AD)","v":0},{"$f":"SUMIFS(Sheet1!S71_AdjustmentBudAmnt,Sheet1!S71_SubMunicipalVoteNo,$AC:$AC,Sheet1!S71_ItemType,$AD:$AD)","v":0},{"$f":"SUMIFS(Sheet1!S71_ASBudgetAmount,Sheet1!S71_SubMunicipalVoteNo,$AC:$AC,Sheet1!S71_ItemType,$AD:$AD)","v":0},{"$f":"SUMIFS(Sheet1!S71_OY1BudgetAmount,Sheet1!S71_SubMunicipalVoteNo,$AC:$AC,Sheet1!S71_ItemType,$AD:$AD)","v":0},{"$f":"SUMIFS(Sheet1!S71_OY2BudgetAmount,Sheet1!S71_SubMunicipalVoteNo,$AC:$AC,Sheet1!S71_ItemType,$AD:$AD)","v":0},null,null,null,null,null,null,null,null,null,null,null,null,null,null,null,null,null,143,"IE"]
["",null,{"$f":"SUMIFS(Sheet1!S71_PPPYearAmount,Sheet1!S71_SubMunicipalVoteNo,$AC:$AC,Sheet1!S71_ItemType,$AD:$AD)","v":0},{"$f":"SUMIFS(Sheet1!S71_PPYearAmount,Sheet1!S71_SubMunicipalVoteNo,$AC:$AC,Sheet1!S71_ItemType,$AD:$AD)","v":0},{"$f":"SUMIFS(Sheet1!S71_PYearAmount,Sheet1!S71_SubMunicipalVoteNo,$AC:$AC,Sheet1!S71_ItemType,$AD:$AD)","v":0},{"$f":"SUMIFS(Sheet1!S71_OriginalBudAmnt,Sheet1!S71_SubMunicipalVoteNo,$AC:$AC,Sheet1!S71_ItemType,$AD:$AD)","v":0},{"$f":"SUMIFS(Sheet1!S71_AdjustmentBudAmnt,Sheet1!S71_SubMunicipalVoteNo,$AC:$AC,Sheet1!S71_ItemType,$AD:$AD)","v":0},{"$f":"SUMIFS(Sheet1!S71_AdjustmentBudAmnt,Sheet1!S71_SubMunicipalVoteNo,$AC:$AC,Sheet1!S71_ItemType,$AD:$AD)","v":0},{"$f":"SUMIFS(Sheet1!S71_ASBudgetAmount,Sheet1!S71_SubMunicipalVoteNo,$AC:$AC,Sheet1!S71_ItemType,$AD:$AD)","v":0},{"$f":"SUMIFS(Sheet1!S71_OY1BudgetAmount,Sheet1!S71_SubMunicipalVoteNo,$AC:$AC,Sheet1!S71_ItemType,$AD:$AD)","v":0},{"$f":"SUMIFS(Sheet1!S71_OY2BudgetAmount,Sheet1!S71_SubMunicipalVoteNo,$AC:$AC,Sheet1!S71_ItemType,$AD:$AD)","v":0},null,null,null,null,null,null,null,null,null,null,null,null,null,null,null,null,null,144,"IE"]
["",null,{"$f":"SUMIFS(Sheet1!S71_PPPYearAmount,Sheet1!S71_SubMunicipalVoteNo,$AC:$AC,Sheet1!S71_ItemType,$AD:$AD)","v":0},{"$f":"SUMIFS(Sheet1!S71_PPYearAmount,Sheet1!S71_SubMunicipalVoteNo,$AC:$AC,Sheet1!S71_ItemType,$AD:$AD)","v":0},{"$f":"SUMIFS(Sheet1!S71_PYearAmount,Sheet1!S71_SubMunicipalVoteNo,$AC:$AC,Sheet1!S71_ItemType,$AD:$AD)","v":0},{"$f":"SUMIFS(Sheet1!S71_OriginalBudAmnt,Sheet1!S71_SubMunicipalVoteNo,$AC:$AC,Sheet1!S71_ItemType,$AD:$AD)","v":0},{"$f":"SUMIFS(Sheet1!S71_AdjustmentBudAmnt,Sheet1!S71_SubMunicipalVoteNo,$AC:$AC,Sheet1!S71_ItemType,$AD:$AD)","v":0},{"$f":"SUMIFS(Sheet1!S71_AdjustmentBudAmnt,Sheet1!S71_SubMunicipalVoteNo,$AC:$AC,Sheet1!S71_ItemType,$AD:$AD)","v":0},{"$f":"SUMIFS(Sheet1!S71_ASBudgetAmount,Sheet1!S71_SubMunicipalVoteNo,$AC:$AC,Sheet1!S71_ItemType,$AD:$AD)","v":0},{"$f":"SUMIFS(Sheet1!S71_OY1BudgetAmount,Sheet1!S71_SubMunicipalVoteNo,$AC:$AC,Sheet1!S71_ItemType,$AD:$AD)","v":0},{"$f":"SUMIFS(Sheet1!S71_OY2BudgetAmount,Sheet1!S71_SubMunicipalVoteNo,$AC:$AC,Sheet1!S71_ItemType,$AD:$AD)","v":0},null,null,null,null,null,null,null,null,null,null,null,null,null,null,null,null,null,145,"IE"]
["",null,{"$f":"SUMIFS(Sheet1!S71_PPPYearAmount,Sheet1!S71_SubMunicipalVoteNo,$AC:$AC,Sheet1!S71_ItemType,$AD:$AD)","v":0},{"$f":"SUMIFS(Sheet1!S71_PPYearAmount,Sheet1!S71_SubMunicipalVoteNo,$AC:$AC,Sheet1!S71_ItemType,$AD:$AD)","v":0},{"$f":"SUMIFS(Sheet1!S71_PYearAmount,Sheet1!S71_SubMunicipalVoteNo,$AC:$AC,Sheet1!S71_ItemType,$AD:$AD)","v":0},{"$f":"SUMIFS(Sheet1!S71_OriginalBudAmnt,Sheet1!S71_SubMunicipalVoteNo,$AC:$AC,Sheet1!S71_ItemType,$AD:$AD)","v":0},{"$f":"SUMIFS(Sheet1!S71_AdjustmentBudAmnt,Sheet1!S71_SubMunicipalVoteNo,$AC:$AC,Sheet1!S71_ItemType,$AD:$AD)","v":0},{"$f":"SUMIFS(Sheet1!S71_AdjustmentBudAmnt,Sheet1!S71_SubMunicipalVoteNo,$AC:$AC,Sheet1!S71_ItemType,$AD:$AD)","v":0},{"$f":"SUMIFS(Sheet1!S71_ASBudgetAmount,Sheet1!S71_SubMunicipalVoteNo,$AC:$AC,Sheet1!S71_ItemType,$AD:$AD)","v":0},{"$f":"SUMIFS(Sheet1!S71_OY1BudgetAmount,Sheet1!S71_SubMunicipalVoteNo,$AC:$AC,Sheet1!S71_ItemType,$AD:$AD)","v":0},{"$f":"SUMIFS(Sheet1!S71_OY2BudgetAmount,Sheet1!S71_SubMunicipalVoteNo,$AC:$AC,Sheet1!S71_ItemType,$AD:$AD)","v":0},null,null,null,null,null,null,null,null,null,null,null,null,null,null,null,null,null,146,"IE"]
["",null,{"$f":"SUMIFS(Sheet1!S71_PPPYearAmount,Sheet1!S71_SubMunicipalVoteNo,$AC:$AC,Sheet1!S71_ItemType,$AD:$AD)","v":0},{"$f":"SUMIFS(Sheet1!S71_PPYearAmount,Sheet1!S71_SubMunicipalVoteNo,$AC:$AC,Sheet1!S71_ItemType,$AD:$AD)","v":0},{"$f":"SUMIFS(Sheet1!S71_PYearAmount,Sheet1!S71_SubMunicipalVoteNo,$AC:$AC,Sheet1!S71_ItemType,$AD:$AD)","v":0},{"$f":"SUMIFS(Sheet1!S71_OriginalBudAmnt,Sheet1!S71_SubMunicipalVoteNo,$AC:$AC,Sheet1!S71_ItemType,$AD:$AD)","v":0},{"$f":"SUMIFS(Sheet1!S71_AdjustmentBudAmnt,Sheet1!S71_SubMunicipalVoteNo,$AC:$AC,Sheet1!S71_ItemType,$AD:$AD)","v":0},{"$f":"SUMIFS(Sheet1!S71_AdjustmentBudAmnt,Sheet1!S71_SubMunicipalVoteNo,$AC:$AC,Sheet1!S71_ItemType,$AD:$AD)","v":0},{"$f":"SUMIFS(Sheet1!S71_ASBudgetAmount,Sheet1!S71_SubMunicipalVoteNo,$AC:$AC,Sheet1!S71_ItemType,$AD:$AD)","v":0},{"$f":"SUMIFS(Sheet1!S71_OY1BudgetAmount,Sheet1!S71_SubMunicipalVoteNo,$AC:$AC,Sheet1!S71_ItemType,$AD:$AD)","v":0},{"$f":"SUMIFS(Sheet1!S71_OY2BudgetAmount,Sheet1!S71_SubMunicipalVoteNo,$AC:$AC,Sheet1!S71_ItemType,$AD:$AD)","v":0},null,null,null,null,null,null,null,null,null,null,null,null,null,null,null,null,null,147,"IE"]
["",null,{"$f":"SUMIFS(Sheet1!S71_PPPYearAmount,Sheet1!S71_SubMunicipalVoteNo,$AC:$AC,Sheet1!S71_ItemType,$AD:$AD)","v":0},{"$f":"SUMIFS(Sheet1!S71_PPYearAmount,Sheet1!S71_SubMunicipalVoteNo,$AC:$AC,Sheet1!S71_ItemType,$AD:$AD)","v":0},{"$f":"SUMIFS(Sheet1!S71_PYearAmount,Sheet1!S71_SubMunicipalVoteNo,$AC:$AC,Sheet1!S71_ItemType,$AD:$AD)","v":0},{"$f":"SUMIFS(Sheet1!S71_OriginalBudAmnt,Sheet1!S71_SubMunicipalVoteNo,$AC:$AC,Sheet1!S71_ItemType,$AD:$AD)","v":0},{"$f":"SUMIFS(Sheet1!S71_AdjustmentBudAmnt,Sheet1!S71_SubMunicipalVoteNo,$AC:$AC,Sheet1!S71_ItemType,$AD:$AD)","v":0},{"$f":"SUMIFS(Sheet1!S71_AdjustmentBudAmnt,Sheet1!S71_SubMunicipalVoteNo,$AC:$AC,Sheet1!S71_ItemType,$AD:$AD)","v":0},{"$f":"SUMIFS(Sheet1!S71_ASBudgetAmount,Sheet1!S71_SubMunicipalVoteNo,$AC:$AC,Sheet1!S71_ItemType,$AD:$AD)","v":0},{"$f":"SUMIFS(Sheet1!S71_OY1BudgetAmount,Sheet1!S71_SubMunicipalVoteNo,$AC:$AC,Sheet1!S71_ItemType,$AD:$AD)","v":0},{"$f":"SUMIFS(Sheet1!S71_OY2BudgetAmount,Sheet1!S71_SubMunicipalVoteNo,$AC:$AC,Sheet1!S71_ItemType,$AD:$AD)","v":0},null,null,null,null,null,null,null,null,null,null,null,null,null,null,null,null,null,148,"IE"]
["",null,{"$f":"SUMIFS(Sheet1!S71_PPPYearAmount,Sheet1!S71_SubMunicipalVoteNo,$AC:$AC,Sheet1!S71_ItemType,$AD:$AD)","v":0},{"$f":"SUMIFS(Sheet1!S71_PPYearAmount,Sheet1!S71_SubMunicipalVoteNo,$AC:$AC,Sheet1!S71_ItemType,$AD:$AD)","v":0},{"$f":"SUMIFS(Sheet1!S71_PYearAmount,Sheet1!S71_SubMunicipalVoteNo,$AC:$AC,Sheet1!S71_ItemType,$AD:$AD)","v":0},{"$f":"SUMIFS(Sheet1!S71_OriginalBudAmnt,Sheet1!S71_SubMunicipalVoteNo,$AC:$AC,Sheet1!S71_ItemType,$AD:$AD)","v":0},{"$f":"SUMIFS(Sheet1!S71_AdjustmentBudAmnt,Sheet1!S71_SubMunicipalVoteNo,$AC:$AC,Sheet1!S71_ItemType,$AD:$AD)","v":0},{"$f":"SUMIFS(Sheet1!S71_AdjustmentBudAmnt,Sheet1!S71_SubMunicipalVoteNo,$AC:$AC,Sheet1!S71_ItemType,$AD:$AD)","v":0},{"$f":"SUMIFS(Sheet1!S71_ASBudgetAmount,Sheet1!S71_SubMunicipalVoteNo,$AC:$AC,Sheet1!S71_ItemType,$AD:$AD)","v":0},{"$f":"SUMIFS(Sheet1!S71_OY1BudgetAmount,Sheet1!S71_SubMunicipalVoteNo,$AC:$AC,Sheet1!S71_ItemType,$AD:$AD)","v":0},{"$f":"SUMIFS(Sheet1!S71_OY2BudgetAmount,Sheet1!S71_SubMunicipalVoteNo,$AC:$AC,Sheet1!S71_ItemType,$AD:$AD)","v":0},null,null,null,null,null,null,null,null,null,null,null,null,null,null,null,null,null,149,"IE"]
["",null,{"$f":"SUMIFS(Sheet1!S71_PPPYearAmount,Sheet1!S71_SubMunicipalVoteNo,$AC:$AC,Sheet1!S71_ItemType,$AD:$AD)","v":0},{"$f":"SUMIFS(Sheet1!S71_PPYearAmount,Sheet1!S71_SubMunicipalVoteNo,$AC:$AC,Sheet1!S71_ItemType,$AD:$AD)","v":0},{"$f":"SUMIFS(Sheet1!S71_PYearAmount,Sheet1!S71_SubMunicipalVoteNo,$AC:$AC,Sheet1!S71_ItemType,$AD:$AD)","v":0},{"$f":"SUMIFS(Sheet1!S71_OriginalBudAmnt,Sheet1!S71_SubMunicipalVoteNo,$AC:$AC,Sheet1!S71_ItemType,$AD:$AD)","v":0},{"$f":"SUMIFS(Sheet1!S71_AdjustmentBudAmnt,Sheet1!S71_SubMunicipalVoteNo,$AC:$AC,Sheet1!S71_ItemType,$AD:$AD)","v":0},{"$f":"SUMIFS(Sheet1!S71_AdjustmentBudAmnt,Sheet1!S71_SubMunicipalVoteNo,$AC:$AC,Sheet1!S71_ItemType,$AD:$AD)","v":0},{"$f":"SUMIFS(Sheet1!S71_ASBudgetAmount,Sheet1!S71_SubMunicipalVoteNo,$AC:$AC,Sheet1!S71_ItemType,$AD:$AD)","v":0},{"$f":"SUMIFS(Sheet1!S71_OY1BudgetAmount,Sheet1!S71_SubMunicipalVoteNo,$AC:$AC,Sheet1!S71_ItemType,$AD:$AD)","v":0},{"$f":"SUMIFS(Sheet1!S71_OY2BudgetAmount,Sheet1!S71_SubMunicipalVoteNo,$AC:$AC,Sheet1!S71_ItemType,$AD:$AD)","v":0},null,null,null,null,null,null,null,null,null,null,null,null,null,null,null,null,null,1410,"IE"]
["Vote 15 - [NAME OF VOTE 15]",null,{"$f":"SUM(C328:C337)","v":0},0,0,0,0,0,0,0,0]
["",null,{"$f":"SUMIFS(Sheet1!S71_PPPYearAmount,Sheet1!S71_SubMunicipalVoteNo,$AC:$AC,Sheet1!S71_ItemType,$AD:$AD)","v":0},{"$f":"SUMIFS(Sheet1!S71_PPYearAmount,Sheet1!S71_SubMunicipalVoteNo,$AC:$AC,Sheet1!S71_ItemType,$AD:$AD)","v":0},{"$f":"SUMIFS(Sheet1!S71_PYearAmount,Sheet1!S71_SubMunicipalVoteNo,$AC:$AC,Sheet1!S71_ItemType,$AD:$AD)","v":0},{"$f":"SUMIFS(Sheet1!S71_OriginalBudAmnt,Sheet1!S71_SubMunicipalVoteNo,$AC:$AC,Sheet1!S71_ItemType,$AD:$AD)","v":0},{"$f":"SUMIFS(Sheet1!S71_AdjustmentBudAmnt,Sheet1!S71_SubMunicipalVoteNo,$AC:$AC,Sheet1!S71_ItemType,$AD:$AD)","v":0},{"$f":"SUMIFS(Sheet1!S71_AdjustmentBudAmnt,Sheet1!S71_SubMunicipalVoteNo,$AC:$AC,Sheet1!S71_ItemType,$AD:$AD)","v":0},{"$f":"SUMIFS(Sheet1!S71_ASBudgetAmount,Sheet1!S71_SubMunicipalVoteNo,$AC:$AC,Sheet1!S71_ItemType,$AD:$AD)","v":0},{"$f":"SUMIFS(Sheet1!S71_OY1BudgetAmount,Sheet1!S71_SubMunicipalVoteNo,$AC:$AC,Sheet1!S71_ItemType,$AD:$AD)","v":0},{"$f":"SUMIFS(Sheet1!S71_OY2BudgetAmount,Sheet1!S71_SubMunicipalVoteNo,$AC:$AC,Sheet1!S71_ItemType,$AD:$AD)","v":0},null,null,null,null,null,null,null,null,null,null,null,null,null,null,null,null,null,151,"IE"]
["",null,{"$f":"SUMIFS(Sheet1!S71_PPPYearAmount,Sheet1!S71_SubMunicipalVoteNo,$AC:$AC,Sheet1!S71_ItemType,$AD:$AD)","v":0},{"$f":"SUMIFS(Sheet1!S71_PPYearAmount,Sheet1!S71_SubMunicipalVoteNo,$AC:$AC,Sheet1!S71_ItemType,$AD:$AD)","v":0},{"$f":"SUMIFS(Sheet1!S71_PYearAmount,Sheet1!S71_SubMunicipalVoteNo,$AC:$AC,Sheet1!S71_ItemType,$AD:$AD)","v":0},{"$f":"SUMIFS(Sheet1!S71_OriginalBudAmnt,Sheet1!S71_SubMunicipalVoteNo,$AC:$AC,Sheet1!S71_ItemType,$AD:$AD)","v":0},{"$f":"SUMIFS(Sheet1!S71_AdjustmentBudAmnt,Sheet1!S71_SubMunicipalVoteNo,$AC:$AC,Sheet1!S71_ItemType,$AD:$AD)","v":0},{"$f":"SUMIFS(Sheet1!S71_AdjustmentBudAmnt,Sheet1!S71_SubMunicipalVoteNo,$AC:$AC,Sheet1!S71_ItemType,$AD:$AD)","v":0},{"$f":"SUMIFS(Sheet1!S71_ASBudgetAmount,Sheet1!S71_SubMunicipalVoteNo,$AC:$AC,Sheet1!S71_ItemType,$AD:$AD)","v":0},{"$f":"SUMIFS(Sheet1!S71_OY1BudgetAmount,Sheet1!S71_SubMunicipalVoteNo,$AC:$AC,Sheet1!S71_ItemType,$AD:$AD)","v":0},{"$f":"SUMIFS(Sheet1!S71_OY2BudgetAmount,Sheet1!S71_SubMunicipalVoteNo,$AC:$AC,Sheet1!S71_ItemType,$AD:$AD)","v":0},null,null,null,null,null,null,null,null,null,null,null,null,null,null,null,null,null,152,"IE"]
["",null,{"$f":"SUMIFS(Sheet1!S71_PPPYearAmount,Sheet1!S71_SubMunicipalVoteNo,$AC:$AC,Sheet1!S71_ItemType,$AD:$AD)","v":0},{"$f":"SUMIFS(Sheet1!S71_PPYearAmount,Sheet1!S71_SubMunicipalVoteNo,$AC:$AC,Sheet1!S71_ItemType,$AD:$AD)","v":0},{"$f":"SUMIFS(Sheet1!S71_PYearAmount,Sheet1!S71_SubMunicipalVoteNo,$AC:$AC,Sheet1!S71_ItemType,$AD:$AD)","v":0},{"$f":"SUMIFS(Sheet1!S71_OriginalBudAmnt,Sheet1!S71_SubMunicipalVoteNo,$AC:$AC,Sheet1!S71_ItemType,$AD:$AD)","v":0},{"$f":"SUMIFS(Sheet1!S71_AdjustmentBudAmnt,Sheet1!S71_SubMunicipalVoteNo,$AC:$AC,Sheet1!S71_ItemType,$AD:$AD)","v":0},{"$f":"SUMIFS(Sheet1!S71_AdjustmentBudAmnt,Sheet1!S71_SubMunicipalVoteNo,$AC:$AC,Sheet1!S71_ItemType,$AD:$AD)","v":0},{"$f":"SUMIFS(Sheet1!S71_ASBudgetAmount,Sheet1!S71_SubMunicipalVoteNo,$AC:$AC,Sheet1!S71_ItemType,$AD:$AD)","v":0},{"$f":"SUMIFS(Sheet1!S71_OY1BudgetAmount,Sheet1!S71_SubMunicipalVoteNo,$AC:$AC,Sheet1!S71_ItemType,$AD:$AD)","v":0},{"$f":"SUMIFS(Sheet1!S71_OY2BudgetAmount,Sheet1!S71_SubMunicipalVoteNo,$AC:$AC,Sheet1!S71_ItemType,$AD:$AD)","v":0},null,null,null,null,null,null,null,null,null,null,null,null,null,null,null,null,null,153,"IE"]
["",null,{"$f":"SUMIFS(Sheet1!S71_PPPYearAmount,Sheet1!S71_SubMunicipalVoteNo,$AC:$AC,Sheet1!S71_ItemType,$AD:$AD)","v":0},{"$f":"SUMIFS(Sheet1!S71_PPYearAmount,Sheet1!S71_SubMunicipalVoteNo,$AC:$AC,Sheet1!S71_ItemType,$AD:$AD)","v":0},{"$f":"SUMIFS(Sheet1!S71_PYearAmount,Sheet1!S71_SubMunicipalVoteNo,$AC:$AC,Sheet1!S71_ItemType,$AD:$AD)","v":0},{"$f":"SUMIFS(Sheet1!S71_OriginalBudAmnt,Sheet1!S71_SubMunicipalVoteNo,$AC:$AC,Sheet1!S71_ItemType,$AD:$AD)","v":0},{"$f":"SUMIFS(Sheet1!S71_AdjustmentBudAmnt,Sheet1!S71_SubMunicipalVoteNo,$AC:$AC,Sheet1!S71_ItemType,$AD:$AD)","v":0},{"$f":"SUMIFS(Sheet1!S71_AdjustmentBudAmnt,Sheet1!S71_SubMunicipalVoteNo,$AC:$AC,Sheet1!S71_ItemType,$AD:$AD)","v":0},{"$f":"SUMIFS(Sheet1!S71_ASBudgetAmount,Sheet1!S71_SubMunicipalVoteNo,$AC:$AC,Sheet1!S71_ItemType,$AD:$AD)","v":0},{"$f":"SUMIFS(Sheet1!S71_OY1BudgetAmount,Sheet1!S71_SubMunicipalVoteNo,$AC:$AC,Sheet1!S71_ItemType,$AD:$AD)","v":0},{"$f":"SUMIFS(Sheet1!S71_OY2BudgetAmount,Sheet1!S71_SubMunicipalVoteNo,$AC:$AC,Sheet1!S71_ItemType,$AD:$AD)","v":0},null,null,null,null,null,null,null,null,null,null,null,null,null,null,null,null,null,154,"IE"]
["",null,{"$f":"SUMIFS(Sheet1!S71_PPPYearAmount,Sheet1!S71_SubMunicipalVoteNo,$AC:$AC,Sheet1!S71_ItemType,$AD:$AD)","v":0},{"$f":"SUMIFS(Sheet1!S71_PPYearAmount,Sheet1!S71_SubMunicipalVoteNo,$AC:$AC,Sheet1!S71_ItemType,$AD:$AD)","v":0},{"$f":"SUMIFS(Sheet1!S71_PYearAmount,Sheet1!S71_SubMunicipalVoteNo,$AC:$AC,Sheet1!S71_ItemType,$AD:$AD)","v":0},{"$f":"SUMIFS(Sheet1!S71_OriginalBudAmnt,Sheet1!S71_SubMunicipalVoteNo,$AC:$AC,Sheet1!S71_ItemType,$AD:$AD)","v":0},{"$f":"SUMIFS(Sheet1!S71_AdjustmentBudAmnt,Sheet1!S71_SubMunicipalVoteNo,$AC:$AC,Sheet1!S71_ItemType,$AD:$AD)","v":0},{"$f":"SUMIFS(Sheet1!S71_AdjustmentBudAmnt,Sheet1!S71_SubMunicipalVoteNo,$AC:$AC,Sheet1!S71_ItemType,$AD:$AD)","v":0},{"$f":"SUMIFS(Sheet1!S71_ASBudgetAmount,Sheet1!S71_SubMunicipalVoteNo,$AC:$AC,Sheet1!S71_ItemType,$AD:$AD)","v":0},{"$f":"SUMIFS(Sheet1!S71_OY1BudgetAmount,Sheet1!S71_SubMunicipalVoteNo,$AC:$AC,Sheet1!S71_ItemType,$AD:$AD)","v":0},{"$f":"SUMIFS(Sheet1!S71_OY2BudgetAmount,Sheet1!S71_SubMunicipalVoteNo,$AC:$AC,Sheet1!S71_ItemType,$AD:$AD)","v":0},null,null,null,null,null,null,null,null,null,null,null,null,null,null,null,null,null,155,"IE"]
["",null,{"$f":"SUMIFS(Sheet1!S71_PPPYearAmount,Sheet1!S71_SubMunicipalVoteNo,$AC:$AC,Sheet1!S71_ItemType,$AD:$AD)","v":0},{"$f":"SUMIFS(Sheet1!S71_PPYearAmount,Sheet1!S71_SubMunicipalVoteNo,$AC:$AC,Sheet1!S71_ItemType,$AD:$AD)","v":0},{"$f":"SUMIFS(Sheet1!S71_PYearAmount,Sheet1!S71_SubMunicipalVoteNo,$AC:$AC,Sheet1!S71_ItemType,$AD:$AD)","v":0},{"$f":"SUMIFS(Sheet1!S71_OriginalBudAmnt,Sheet1!S71_SubMunicipalVoteNo,$AC:$AC,Sheet1!S71_ItemType,$AD:$AD)","v":0},{"$f":"SUMIFS(Sheet1!S71_AdjustmentBudAmnt,Sheet1!S71_SubMunicipalVoteNo,$AC:$AC,Sheet1!S71_ItemType,$AD:$AD)","v":0},{"$f":"SUMIFS(Sheet1!S71_AdjustmentBudAmnt,Sheet1!S71_SubMunicipalVoteNo,$AC:$AC,Sheet1!S71_ItemType,$AD:$AD)","v":0},{"$f":"SUMIFS(Sheet1!S71_ASBudgetAmount,Sheet1!S71_SubMunicipalVoteNo,$AC:$AC,Sheet1!S71_ItemType,$AD:$AD)","v":0},{"$f":"SUMIFS(Sheet1!S71_OY1BudgetAmount,Sheet1!S71_SubMunicipalVoteNo,$AC:$AC,Sheet1!S71_ItemType,$AD:$AD)","v":0},{"$f":"SUMIFS(Sheet1!S71_OY2BudgetAmount,Sheet1!S71_SubMunicipalVoteNo,$AC:$AC,Sheet1!S71_ItemType,$AD:$AD)","v":0},null,null,null,null,null,null,null,null,null,null,null,null,null,null,null,null,null,156,"IE"]
["",null,{"$f":"SUMIFS(Sheet1!S71_PPPYearAmount,Sheet1!S71_SubMunicipalVoteNo,$AC:$AC,Sheet1!S71_ItemType,$AD:$AD)","v":0},{"$f":"SUMIFS(Sheet1!S71_PPYearAmount,Sheet1!S71_SubMunicipalVoteNo,$AC:$AC,Sheet1!S71_ItemType,$AD:$AD)","v":0},{"$f":"SUMIFS(Sheet1!S71_PYearAmount,Sheet1!S71_SubMunicipalVoteNo,$AC:$AC,Sheet1!S71_ItemType,$AD:$AD)","v":0},{"$f":"SUMIFS(Sheet1!S71_OriginalBudAmnt,Sheet1!S71_SubMunicipalVoteNo,$AC:$AC,Sheet1!S71_ItemType,$AD:$AD)","v":0},{"$f":"SUMIFS(Sheet1!S71_AdjustmentBudAmnt,Sheet1!S71_SubMunicipalVoteNo,$AC:$AC,Sheet1!S71_ItemType,$AD:$AD)","v":0},{"$f":"SUMIFS(Sheet1!S71_AdjustmentBudAmnt,Sheet1!S71_SubMunicipalVoteNo,$AC:$AC,Sheet1!S71_ItemType,$AD:$AD)","v":0},{"$f":"SUMIFS(Sheet1!S71_ASBudgetAmount,Sheet1!S71_SubMunicipalVoteNo,$AC:$AC,Sheet1!S71_ItemType,$AD:$AD)","v":0},{"$f":"SUMIFS(Sheet1!S71_OY1BudgetAmount,Sheet1!S71_SubMunicipalVoteNo,$AC:$AC,Sheet1!S71_ItemType,$AD:$AD)","v":0},{"$f":"SUMIFS(Sheet1!S71_OY2BudgetAmount,Sheet1!S71_SubMunicipalVoteNo,$AC:$AC,Sheet1!S71_ItemType,$AD:$AD)","v":0},null,null,null,null,null,null,null,null,null,null,null,null,null,null,null,null,null,157,"IE"]
["",null,{"$f":"SUMIFS(Sheet1!S71_PPPYearAmount,Sheet1!S71_SubMunicipalVoteNo,$AC:$AC,Sheet1!S71_ItemType,$AD:$AD)","v":0},{"$f":"SUMIFS(Sheet1!S71_PPYearAmount,Sheet1!S71_SubMunicipalVoteNo,$AC:$AC,Sheet1!S71_ItemType,$AD:$AD)","v":0},{"$f":"SUMIFS(Sheet1!S71_PYearAmount,Sheet1!S71_SubMunicipalVoteNo,$AC:$AC,Sheet1!S71_ItemType,$AD:$AD)","v":0},{"$f":"SUMIFS(Sheet1!S71_OriginalBudAmnt,Sheet1!S71_SubMunicipalVoteNo,$AC:$AC,Sheet1!S71_ItemType,$AD:$AD)","v":0},{"$f":"SUMIFS(Sheet1!S71_AdjustmentBudAmnt,Sheet1!S71_SubMunicipalVoteNo,$AC:$AC,Sheet1!S71_ItemType,$AD:$AD)","v":0},{"$f":"SUMIFS(Sheet1!S71_AdjustmentBudAmnt,Sheet1!S71_SubMunicipalVoteNo,$AC:$AC,Sheet1!S71_ItemType,$AD:$AD)","v":0},{"$f":"SUMIFS(Sheet1!S71_ASBudgetAmount,Sheet1!S71_SubMunicipalVoteNo,$AC:$AC,Sheet1!S71_ItemType,$AD:$AD)","v":0},{"$f":"SUMIFS(Sheet1!S71_OY1BudgetAmount,Sheet1!S71_SubMunicipalVoteNo,$AC:$AC,Sheet1!S71_ItemType,$AD:$AD)","v":0},{"$f":"SUMIFS(Sheet1!S71_OY2BudgetAmount,Sheet1!S71_SubMunicipalVoteNo,$AC:$AC,Sheet1!S71_ItemType,$AD:$AD)","v":0},null,null,null,null,null,null,null,null,null,null,null,null,null,null,null,null,null,158,"IE"]
["",null,{"$f":"SUMIFS(Sheet1!S71_PPPYearAmount,Sheet1!S71_SubMunicipalVoteNo,$AC:$AC,Sheet1!S71_ItemType,$AD:$AD)","v":0},{"$f":"SUMIFS(Sheet1!S71_PPYearAmount,Sheet1!S71_SubMunicipalVoteNo,$AC:$AC,Sheet1!S71_ItemType,$AD:$AD)","v":0},{"$f":"SUMIFS(Sheet1!S71_PYearAmount,Sheet1!S71_SubMunicipalVoteNo,$AC:$AC,Sheet1!S71_ItemType,$AD:$AD)","v":0},{"$f":"SUMIFS(Sheet1!S71_OriginalBudAmnt,Sheet1!S71_SubMunicipalVoteNo,$AC:$AC,Sheet1!S71_ItemType,$AD:$AD)","v":0},{"$f":"SUMIFS(Sheet1!S71_AdjustmentBudAmnt,Sheet1!S71_SubMunicipalVoteNo,$AC:$AC,Sheet1!S71_ItemType,$AD:$AD)","v":0},{"$f":"SUMIFS(Sheet1!S71_AdjustmentBudAmnt,Sheet1!S71_SubMunicipalVoteNo,$AC:$AC,Sheet1!S71_ItemType,$AD:$AD)","v":0},{"$f":"SUMIFS(Sheet1!S71_ASBudgetAmount,Sheet1!S71_SubMunicipalVoteNo,$AC:$AC,Sheet1!S71_ItemType,$AD:$AD)","v":0},{"$f":"SUMIFS(Sheet1!S71_OY1BudgetAmount,Sheet1!S71_SubMunicipalVoteNo,$AC:$AC,Sheet1!S71_ItemType,$AD:$AD)","v":0},{"$f":"SUMIFS(Sheet1!S71_OY2BudgetAmount,Sheet1!S71_SubMunicipalVoteNo,$AC:$AC,Sheet1!S71_ItemType,$AD:$AD)","v":0},null,null,null,null,null,null,null,null,null,null,null,null,null,null,null,null,null,159,"IE"]
["",null,{"$f":"SUMIFS(Sheet1!S71_PPPYearAmount,Sheet1!S71_SubMunicipalVoteNo,$AC:$AC,Sheet1!S71_ItemType,$AD:$AD)","v":0},{"$f":"SUMIFS(Sheet1!S71_PPYearAmount,Sheet1!S71_SubMunicipalVoteNo,$AC:$AC,Sheet1!S71_ItemType,$AD:$AD)","v":0},{"$f":"SUMIFS(Sheet1!S71_PYearAmount,Sheet1!S71_SubMunicipalVoteNo,$AC:$AC,Sheet1!S71_ItemType,$AD:$AD)","v":0},{"$f":"SUMIFS(Sheet1!S71_OriginalBudAmnt,Sheet1!S71_SubMunicipalVoteNo,$AC:$AC,Sheet1!S71_ItemType,$AD:$AD)","v":0},{"$f":"SUMIFS(Sheet1!S71_AdjustmentBudAmnt,Sheet1!S71_SubMunicipalVoteNo,$AC:$AC,Sheet1!S71_ItemType,$AD:$AD)","v":0},{"$f":"SUMIFS(Sheet1!S71_AdjustmentBudAmnt,Sheet1!S71_SubMunicipalVoteNo,$AC:$AC,Sheet1!S71_ItemType,$AD:$AD)","v":0},{"$f":"SUMIFS(Sheet1!S71_ASBudgetAmount,Sheet1!S71_SubMunicipalVoteNo,$AC:$AC,Sheet1!S71_ItemType,$AD:$AD)","v":0},{"$f":"SUMIFS(Sheet1!S71_OY1BudgetAmount,Sheet1!S71_SubMunicipalVoteNo,$AC:$AC,Sheet1!S71_ItemType,$AD:$AD)","v":0},{"$f":"SUMIFS(Sheet1!S71_OY2BudgetAmount,Sheet1!S71_SubMunicipalVoteNo,$AC:$AC,Sheet1!S71_ItemType,$AD:$AD)","v":0},null,null,null,null,null,null,null,null,null,null,null,null,null,null,null,null,null,1510,"IE"]
["Total Expenditure by Vote",2,{"$f":"C173+C184+C195+C206+C217+C228+C239+C250+C261+C283+C294+C305+C316+C327+C272","v":0},{"$f":"D173+D184+D195+D206+D217+D228+D239+D250+D261+D283+D294+D305+D316+D327+D272","v":62014861},{"$f":"E173+E184+E195+E206+E217+E228+E239+E250+E261+E283+E294+E305+E316+E327+E272","v":67699905},67542216,68896774,68896774,62985185,68726183,70128751,{"$f":"SUM(L173:L249)","v":0},0,0,0,0,0,0,0,0,0,0,0]
[]
[{"$f":"result","v":"Surplus/(Deficit) for the year"},2,{"$f":"C170-C338","v":0},6950897,262879,404771,791409,791409,485998,21817,23248,0,0,0,0,0,0,0,0,0,0,0,0]
[{"$f":"head27a","v":"References"}]
["1. Insert 'Vote'; e.g. Department, if different to Functional structure"]
["2. Must reconcile to Financial Performance ('Revenue and Expenditure by Functional Classification' and 'Revenue and Expenditure')"]
["3. Assign share in 'associate' to relevant Vote"]
[]
["check revenue",null,{"$f":"C170-'A4-FinPerf RE'!C59","v":0},{"$f":"D170-'A4-FinPerf RE'!D59","v":0},{"$f":"E170-'A4-FinPerf RE'!E59","v":0},{"$f":"F170-'A4-FinPerf RE'!F59","v":0},{"$f":"G170-'A4-FinPerf RE'!G59","v":0},{"$f":"H170-'A4-FinPerf RE'!H59","v":0},{"$f":"I170-'A4-FinPerf RE'!J59","v":0},{"$f":"J170-'A4-FinPerf RE'!K59","v":0},{"$f":"K170-'A4-FinPerf RE'!L59","v":0}]
["check expenditure",null,{"$f":"C338-'A4-FinPerf RE'!C35","v":0},{"$f":"D338-'A4-FinPerf RE'!D35","v":38097},{"$f":"E338-'A4-FinPerf RE'!E35","v":114371},{"$f":"F338-'A4-FinPerf RE'!F35","v":0},{"$f":"G338-'A4-FinPerf RE'!G35","v":0},{"$f":"H338-'A4-FinPerf RE'!H35","v":0},{"$f":"I338-'A4-FinPerf RE'!J35","v":0},{"$f":"J338-'A4-FinPerf RE'!K35","v":0},{"$f":"K338-'A4-FinPerf RE'!L35","v":0}]

{"sheet":"A4-FinPerf RE","index":21,"n_rows":59,"n_cols":29,"rows_kept":59,"cut":false,"hidden":false,"merged":[[1,12,1,23],[1,9,1,11],[1,5,1,8]]}
[{"$f":"muni&\" - \"&Approve4","v":"DC16 Xhariep - Table A4 Budgeted Financial Performance (revenue and expenditure)"}]
[{"$f":"desc","v":"Description"},{"$f":"head27","v":"Ref"},{"$f":"head1b","v":"2017/18"},{"$f":"head1A","v":"2018/19"},{"$f":"Head1","v":"2019/20"},{"$f":"Head2","v":"Current Year 2020/21"},null,null,null,{"$f":"Head3","v":"2021/22 Medium Term Revenue & Expenditure Framework"},null,null,{"$f":"Head4","v":"LTFS"},null,null,null,null,null,null,null,null,null,null,null,null,null,null,null,"Code"]
["R thousand",1,{"$f":"Head5","v":"Audited Outcome"},{"$f":"Head5","v":"Audited Outcome"},{"$f":"Head5","v":"Audited Outcome"},{"$f":"Head6","v":"Original Budget"},{"$f":"Head7","v":"Adjusted Budget"},{"$f":"Head8","v":"Full Year Forecast"},{"$f":"Head5b","v":"Pre-audit outcome"},{"$f":"Head9","v":"Budget Year 2021/22"},{"$f":"Head10","v":"Budget Year +1 2022/23"},{"$f":"Head11","v":"Budget Year +2 2023/24"},{"$f":"Head12","v":"Forecast 2024/25"},{"$f":"Head13","v":"Forecast 2025/26"},{"$f":"Head14","v":"Forecast 2026/27"},{"$f":"Head15","v":"Forecast 2027/28"},{"$f":"Head16","v":"Forecast 2028/29"},{"$f":"Head17","v":"Forecast 2029/30"},{"$f":"Head18","v":"Forecast 2030/31"},{"$f":"Head19","v":"Forecast 2031/32"},{"$f":"Head20","v":"Forecast 2032/33"},{"$f":"Head21","v":"Forecast 2033/34"},{"$f":"Head22","v":"Forecast 2034/35"},{"$f":"Head23","v":"Forecast 2035/36"}]
["Revenue By Source"]
["Property rates",2,{"$f":"'SA1'!C9","v":0},{"$f":"'SA1'!D9","v":0},{"$f":"'SA1'!E9","v":0},{"$f":"'SA1'!F9","v":0},{"$f":"'SA1'!G9","v":0},{"$f":"'SA1'!H9","v":0},{"$f":"'SA1'!I9","v":0},{"$f":"'SA1'!J9","v":0},{"$f":"'SA1'!K9","v":0},{"$f":"'SA1'!L9","v":0},null,null,null,null,null,null,null,null,null,null,null,null,null,null,null,null,"0200"]
["Service charges - electricity revenue",2,{"$f":"'SA1'!C15","v":0},{"$f":"'SA1'!D15","v":0},{"$f":"'SA1'!E15","v":0},{"$f":"'SA1'!F15","v":0},{"$f":"'SA1'!G15","v":0},{"$f":"'SA1'!H15","v":0},{"$f":"'SA1'!I15","v":0},{"$f":"'SA1'!J15","v":0},{"$f":"'SA1'!K15","v":0},{"$f":"'SA1'!L15","v":0},null,null,null,null,null,null,null,null,null,null,null,null,null,null,null,null,"0300"]
["Service charges - water revenue",2,{"$f":"'SA1'!C21","v":0},{"$f":"'SA1'!D21","v":0},{"$f":"'SA1'!E21","v":0},{"$f":"'SA1'!F21","v":0},{"$f":"'SA1'!G21","v":0},{"$f":"'SA1'!H21","v":0},{"$f":"'SA1'!I21","v":0},{"$f":"'SA1'!J21","v":0},{"$f":"'SA1'!K21","v":0},{"$f":"'SA1'!L21","v":0},null,null,null,null,null,null,null,null,null,null,null,null,null,null,null,null,"0400"]
["Service charges - sanitation revenue",2,{"$f":"'SA1'!C27","v":0},{"$f":"'SA1'!D27","v":0},{"$f":"'SA1'!E27","v":0},{"$f":"'SA1'!F27","v":0},{"$f":"'SA1'!G27","v":0},{"$f":"'SA1'!H27","v":0},{"$f":"'SA1'!I27","v":0},{"$f":"'SA1'!J27","v":0},{"$f":"'SA1'!K27","v":0},{"$f":"'SA1'!L27","v":0},null,null,null,null,null,null,null,null,null,null,null,null,null,null,null,null,"0500"]
["Service charges - refuse revenue",2,{"$f":"'SA1'!C34","v":0},{"$f":"'SA1'!D34","v":0},{"$f":"'SA1'!E34","v":0},{"$f":"'SA1'!F34","v":0},{"$f":"'SA1'!G34","v":0},{"$f":"'SA1'!H34","v":0},{"$f":"'SA1'!I34","v":0},{"$f":"'SA1'!J34","v":0},{"$f":"'SA1'!K34","v":0},{"$f":"'SA1'!L34","v":0},null,null,null,null,null,null,null,null,null,null,null,null,null,null,null,null,"0600"]
[]
["Rental of facilities and equipment",null,{"$f":"SUMIFS(Sheet1!S71_PPPYearAmount,Sheet1!S71_A4Code,$AC:$AC)","v":0},{"$f":"SUMIFS(Sheet1!S71_PPYearAmount,Sheet1!S71_A4Code,$AC:$AC)","v":427266},{"$f":"SUMIFS(Sheet1!S71_PYearAmount,Sheet1!S71_A4Code,$AC:$AC)","v":0},{"$f":"-SUMIFS(Sheet1!S71_OriginalBudAmnt,Sheet1!S71_A4Code,$AC:$AC)","v":649183},{"$f":"-SUMIFS(Sheet1!S71_AdjustmentBudAmnt,Sheet1!S71_A4Code,$AC:$AC)","v":649183},{"$f":"-SUMIFS(Sheet1!S71_AdjustmentBudAmnt,Sheet1!S71_A4Code,$AC:$AC)","v":649183},{"$f":"SUMIFS(Sheet1!CD:CD,Sheet1!S71_A4Code,$AC:$AC)","v":46106},{"$f":"-SUMIFS(Sheet1!S71_ASBudgetAmount,Sheet1!S71_A4Code,$AC:$AC)","v":939183},{"$f":"-SUMIFS(Sheet1!S71_OY1BudgetAmount,Sheet1!S71_A4Code,$AC:$AC)","v":174001},{"$f":"-SUMIFS(Sheet1!S71_OY2BudgetAmount,Sheet1!S71_A4Code,$AC:$AC)","v":191401},null,null,null,null,null,null,null,null,null,null,null,null,null,null,null,null,"0800"]
["Interest earned - external investments",null,{"$f":"SUMIFS(Sheet1!S71_PPPYearAmount,Sheet1!S71_A4Code,$AC:$AC)","v":0},{"$f":"SUMIFS(Sheet1!S71_PPYearAmount,Sheet1!S71_A4Code,$AC:$AC)","v":415498},{"$f":"SUMIFS(Sheet1!S71_PYearAmount,Sheet1!S71_A4Code,$AC:$AC)","v":650100},{"$f":"-SUMIFS(Sheet1!S71_OriginalBudAmnt,Sheet1!S71_A4Code,$AC:$AC)","v":871304},{"$f":"-SUMIFS(Sheet1!S71_AdjustmentBudAmnt,Sheet1!S71_A4Code,$AC:$AC)","v":860000},{"$f":"-SUMIFS(Sheet1!S71_AdjustmentBudAmnt,Sheet1!S71_A4Code,$AC:$AC)","v":860000},{"$f":"SUMIFS(Sheet1!CD:CD,Sheet1!S71_A4Code,$AC:$AC)","v":617767},{"$f":"-SUMIFS(Sheet1!S71_ASBudgetAmount,Sheet1!S71_A4Code,$AC:$AC)","v":620000},{"$f":"-SUMIFS(Sheet1!S71_OY1BudgetAmount,Sheet1!S71_A4Code,$AC:$AC)","v":640000},{"$f":"-SUMIFS(Sheet1!S71_OY2BudgetAmount,Sheet1!S71_A4Code,$AC:$AC)","v":650000},null,null,null,null,null,null,null,null,null,null,null,null,null,null,null,null,"0900"]
["Interest earned - outstanding debtors",null,{"$f":"SUMIFS(Sheet1!S71_PPPYearAmount,Sheet1!S71_A4Code,$AC:$AC)","v":0},{"$f":"SUMIFS(Sheet1!S71_PPYearAmount,Sheet1!S71_A4Code,$AC:$AC)","v":223809},{"$f":"SUMIFS(Sheet1!S71_PYearAmount,Sheet1!S71_A4Code,$AC:$AC)","v":290931},{"$f":"-SUMIFS(Sheet1!S71_OriginalBudAmnt,Sheet1!S71_A4Code,$AC:$AC)","v":0},{"$f":"-SUMIFS(Sheet1!S71_AdjustmentBudAmnt,Sheet1!S71_A4Code,$AC:$AC)","v":0},{"$f":"-SUMIFS(Sheet1!S71_AdjustmentBudAmnt,Sheet1!S71_A4Code,$AC:$AC)","v":0},{"$f":"SUMIFS(Sheet1!CD:CD,Sheet1!S71_A4Code,$AC:$AC)","v":304986},{"$f":"-SUMIFS(Sheet1!S71_ASBudgetAmount,Sheet1!S71_A4Code,$AC:$AC)","v":0},{"$f":"-SUMIFS(Sheet1!S71_OY1BudgetAmount,Sheet1!S71_A4Code,$AC:$AC)","v":0},{"$f":"-SUMIFS(Sheet1!S71_OY2BudgetAmount,Sheet1!S71_A4Code,$AC:$AC)","v":0},null,null,null,null,null,null,null,null,null,null,null,null,null,null,null,null,"1000"]
["Dividends received",null,{"$f":"SUMIFS(Sheet1!S71_PPPYearAmount,Sheet1!S71_A4Code,$AC:$AC)","v":0},{"$f":"SUMIFS(Sheet1!S71_PPYearAmount,Sheet1!S71_A4Code,$AC:$AC)","v":0},{"$f":"SUMIFS(Sheet1!S71_PYearAmount,Sheet1!S71_A4Code,$AC:$AC)","v":0},{"$f":"-SUMIFS(Sheet1!S71_OriginalBudAmnt,Sheet1!S71_A4Code,$AC:$AC)","v":0},{"$f":"-SUMIFS(Sheet1!S71_AdjustmentBudAmnt,Sheet1!S71_A4Code,$AC:$AC)","v":0},{"$f":"-SUMIFS(Sheet1!S71_AdjustmentBudAmnt,Sheet1!S71_A4Code,$AC:$AC)","v":0},{"$f":"SUMIFS(Sheet1!CD:CD,Sheet1!S71_A4Code,$AC:$AC)","v":0},{"$f":"-SUMIFS(Sheet1!S71_ASBudgetAmount,Sheet1!S71_A4Code,$AC:$AC)","v":0},{"$f":"-SUMIFS(Sheet1!S71_OY1BudgetAmount,Sheet1!S71_A4Code,$AC:$AC)","v":0},{"$f":"-SUMIFS(Sheet1!S71_OY2BudgetAmount,Sheet1!S71_A4Code,$AC:$AC)","v":0},null,null,null,null,null,null,null,null,null,null,null,null,null,null,null,null,"1100"]
["Fines, penalties and forfeits",null,{"$f":"SUMIFS(Sheet1!S71_PPPYearAmount,Sheet1!S71_A4Code,$AC:$AC)","v":0},{"$f":"SUMIFS(Sheet1!S71_PPYearAmount,Sheet1!S71_A4Code,$AC:$AC)","v":0},{"$f":"SUMIFS(Sheet1!S71_PYearAmount,Sheet1!S71_A4Code,$AC:$AC)","v":0},{"$f":"-SUMIFS(Sheet1!S71_OriginalBudAmnt,Sheet1!S71_A4Code,$AC:$AC)","v":0},{"$f":"-SUMIFS(Sheet1!S71_AdjustmentBudAmnt,Sheet1!S71_A4Code,$AC:$AC)","v":0},{"$f":"-SUMIFS(Sheet1!S71_AdjustmentBudAmnt,Sheet1!S71_A4Code,$AC:$AC)","v":0},{"$f":"SUMIFS(Sheet1!CD:CD,Sheet1!S71_A4Code,$AC:$AC)","v":0},{"$f":"-SUMIFS(Sheet1!S71_ASBudgetAmount,Sheet1!S71_A4Code,$AC:$AC)","v":0},{"$f":"-SUMIFS(Sheet1!S71_OY1BudgetAmount,Sheet1!S71_A4Code,$AC:$AC)","v":0},{"$f":"-SUMIFS(Sheet1!S71_OY2BudgetAmount,Sheet1!S71_A4Code,$AC:$AC)","v":0},null,null,null,null,null,null,null,null,null,null,null,null,null,null,null,null,"1200"]
["Licences and permits",null,{"$f":"SUMIFS(Sheet1!S71_PPPYearAmount,Sheet1!S71_A4Code,$AC:$AC)","v":0},{"$f":"SUMIFS(Sheet1!S71_PPYearAmount,Sheet1!S71_A4Code,$AC:$AC)","v":0},{"$f":"SUMIFS(Sheet1!S71_PYearAmount,Sheet1!S71_A4Code,$AC:$AC)","v":796164},{"$f":"-SUMIFS(Sheet1!S71_OriginalBudAmnt,Sheet1!S71_A4Code,$AC:$AC)","v":30000},{"$f":"-SUMIFS(Sheet1!S71_AdjustmentBudAmnt,Sheet1!S71_A4Code,$AC:$AC)","v":20000},{"$f":"-SUMIFS(Sheet1!S71_AdjustmentBudAmnt,Sheet1!S71_A4Code,$AC:$AC)","v":20000},{"$f":"SUMIFS(Sheet1!CD:CD,Sheet1!S71_A4Code,$AC:$AC)","v":0},{"$f":"-SUMIFS(Sheet1!S71_ASBudgetAmount,Sheet1!S71_A4Code,$AC:$AC)","v":20000},{"$f":"-SUMIFS(Sheet1!S71_OY1BudgetAmount,Sheet1!S71_A4Code,$AC:$AC)","v":35000},{"$f":"-SUMIFS(Sheet1!S71_OY2BudgetAmount,Sheet1!S71_A4Code,$AC:$AC)","v":40000},null,null,null,null,null,null,null,null,null,null,null,null,null,null,null,null,"1300"]
["Agency services",null,{"$f":"SUMIFS(Sheet1!S71_PPPYearAmount,Sheet1!S71_A4Code,$AC:$AC)","v":0},{"$f":"SUMIFS(Sheet1!S71_PPYearAmount,Sheet1!S71_A4Code,$AC:$AC)","v":0},{"$f":"SUMIFS(Sheet1!S71_PYearAmount,Sheet1!S71_A4Code,$AC:$AC)","v":0},{"$f":"-SUMIFS(Sheet1!S71_OriginalBudAmnt,Sheet1!S71_A4Code,$AC:$AC)","v":0},{"$f":"-SUMIFS(Sheet1!S71_AdjustmentBudAmnt,Sheet1!S71_A4Code,$AC:$AC)","v":0},{"$f":"-SUMIFS(Sheet1!S71_AdjustmentBudAmnt,Sheet1!S71_A4Code,$AC:$AC)","v":0},{"$f":"SUMIFS(Sheet1!CD:CD,Sheet1!S71_A4Code,$AC:$AC)","v":0},{"$f":"-SUMIFS(Sheet1!S71_ASBudgetAmount,Sheet1!S71_A4Code,$AC:$AC)","v":0},{"$f":"-SUMIFS(Sheet1!S71_OY1BudgetAmount,Sheet1!S71_A4Code,$AC:$AC)","v":0},{"$f":"-SUMIFS(Sheet1!S71_OY2BudgetAmount,Sheet1!S71_A4Code,$AC:$AC)","v":0},null,null,null,null,null,null,null,null,null,null,null,null,null,null,null,null,"1400"]
["Transfers and subsidies",null,{"$f":"SUMIFS(Sheet1!S71_PPPYearAmount,Sheet1!S71_A4Code,$AC:$AC)","v":0},{"$f":"SUMIFS(Sheet1!S71_PPYearAmount,Sheet1!S71_A4Code,$AC:$AC)","v":67741058},{"$f":"SUMIFS(Sheet1!S71_PYearAmount,Sheet1!S71_A4Code,$AC:$AC)","v":64831724},{"$f":"-SUMIFS(Sheet1!S71_OriginalBudAmnt,Sheet1!S71_A4Code,$AC:$AC)","v":66302000},{"$f":"-SUMIFS(Sheet1!S71_AdjustmentBudAmnt,Sheet1!S71_A4Code,$AC:$AC)","v":68101000},{"$f":"-SUMIFS(Sheet1!S71_AdjustmentBudAmnt,Sheet1!S71_A4Code,$AC:$AC)","v":68101000},{"$f":"SUMIFS(Sheet1!CD:CD,Sheet1!S71_A4Code,$AC:$AC)","v":60303443},{"$f":"-SUMIFS(Sheet1!S71_ASBudgetAmount,Sheet1!S71_A4Code,$AC:$AC)","v":61832000},{"$f":"-SUMIFS(Sheet1!S71_OY1BudgetAmount,Sheet1!S71_A4Code,$AC:$AC)","v":67840724},{"$f":"-SUMIFS(Sheet1!S71_OY2BudgetAmount,Sheet1!S71_A4Code,$AC:$AC)","v":69212323},null,null,null,null,null,null,null,null,null,null,null,null,null,null,null,null,"1500"]
["Other revenue",2,{"$f":"'SA1'!C66","v":0},{"$f":"'SA1'!D66","v":158127},{"$f":"'SA1'!E66","v":1393865},{"$f":"'SA1'!F66","v":94500},{"$f":"'SA1'!G66","v":58000},{"$f":"'SA1'!H66","v":58000},{"$f":"'SA1'!I66","v":598794},{"$f":"'SA1'!J66","v":60000},{"$f":"'SA1'!K66","v":58275},{"$f":"'SA1'!L66","v":58275},null,null,null,null,null,null,null,null,null,null,null,null,null,null,null,null,"1600"]
["Gains",null,{"$f":"SUMIFS(Sheet1!S71_PPPYearAmount,Sheet1!S71_A4Code,$AC:$AC)","v":0},{"$f":"SUMIFS(Sheet1!S71_PPYearAmount,Sheet1!S71_A4Code,$AC:$AC)","v":0},{"$f":"SUMIFS(Sheet1!S71_PYearAmount,Sheet1!S71_A4Code,$AC:$AC)","v":0},{"$f":"-SUMIFS(Sheet1!S71_OriginalBudAmnt,Sheet1!S71_A4Code,$AC:$AC)","v":0},{"$f":"-SUMIFS(Sheet1!S71_AdjustmentBudAmnt,Sheet1!S71_A4Code,$AC:$AC)","v":0},{"$f":"-SUMIFS(Sheet1!S71_AdjustmentBudAmnt,Sheet1!S71_A4Code,$AC:$AC)","v":0},{"$f":"SUMIFS(Sheet1!CD:CD,Sheet1!S71_A4Code,$AC:$AC)","v":0},{"$f":"-SUMIFS(Sheet1!S71_ASBudgetAmount,Sheet1!S71_A4Code,$AC:$AC)","v":0},{"$f":"-SUMIFS(Sheet1!S71_OY1BudgetAmount,Sheet1!S71_A4Code,$AC:$AC)","v":0},{"$f":"-SUMIFS(Sheet1!S71_OY2BudgetAmount,Sheet1!S71_A4Code,$AC:$AC)","v":0},null,null,null,null,null,null,null,null,null,null,null,null,null,null,null,null,"1700"]
["Total Revenue (excluding capital transfers and contributions)",null,{"$f":"SUM(C5:C9)+SUM(C11:C20)","v":0},{"$f":"SUM(D5:D9)+SUM(D11:D20)","v":68965758},67962784,67946987,69688183,69688183,61871096,63471183,68748000,70151999,{"$f":"SUM(M5:M20)","v":0},0,0,0,0,0,0,0,0,0,0,0]
[]
["Expenditure By Type"]
["Employee related costs",2,{"$f":"'SA1'!C84","v":0},{"$f":"'SA1'!D84","v":41321595},{"$f":"'SA1'!E84","v":43703876},{"$f":"'SA1'!F84","v":43559123},{"$f":"'SA1'!G84","v":44675294},{"$f":"'SA1'!H84","v":44675294},{"$f":"'SA1'!I84","v":40087738},{"$f":"'SA1'!J84","v":47147526},{"$f":"'SA1'!K84","v":47560205},{"$f":"'SA1'!L84","v":48540661},null,null,null,null,null,null,null,null,null,null,null,null,null,null,null,null,"2000"]
["Remuneration of councillors",null,{"$f":"SUMIFS(Sheet1!S71_PPPYearAmount,Sheet1!S71_A4Code,$AC:$AC)","v":0},{"$f":"SUMIFS(Sheet1!S71_PPYearAmount,Sheet1!S71_A4Code,$AC:$AC)","v":4807726},{"$f":"SUMIFS(Sheet1!S71_PYearAmount,Sheet1!S71_A4Code,$AC:$AC)","v":4664371},{"$f":"SUMIFS(Sheet1!S71_OriginalBudAmnt,Sheet1!S71_A4Code,$AC:$AC)","v":4694284},{"$f":"SUMIFS(Sheet1!S71_AdjustmentBudAmnt,Sheet1!S71_A4Code,$AC:$AC)","v":4887284},{"$f":"SUMIFS(Sheet1!S71_AdjustmentBudAmnt,Sheet1!S71_A4Code,$AC:$AC)","v":4887284},{"$f":"SUMIFS(Sheet1!CD:CD,Sheet1!S71_A4Code,$AC:$AC)","v":4333448},{"$f":"SUMIFS(Sheet1!S71_ASBudgetAmount,Sheet1!S71_A4Code,$AC:$AC)","v":4887284},{"$f":"SUMIFS(Sheet1!S71_OY1BudgetAmount,Sheet1!S71_A4Code,$AC:$AC)","v":5187750},{"$f":"SUMIFS(Sheet1!S71_OY2BudgetAmount,Sheet1!S71_A4Code,$AC:$AC)","v":5230869},null,null,null,null,null,null,null,null,null,null,null,null,null,null,null,null,"2100"]
["Debt impairment",3,{"$f":"SUMIFS(Sheet1!S71_PPPYearAmount,Sheet1!S71_A4Code,$AC:$AC)","v":0},{"$f":"SUMIFS(Sheet1!S71_PPYearAmount,Sheet1!S71_A4Code,$AC:$AC)","v":177495},{"$f":"SUMIFS(Sheet1!S71_PYearAmount,Sheet1!S71_A4Code,$AC:$AC)","v":778755},{"$f":"SUMIFS(Sheet1!S71_OriginalBudAmnt,Sheet1!S71_A4Code,$AC:$AC)","v":491000},{"$f":"SUMIFS(Sheet1!S71_AdjustmentBudAmnt,Sheet1!S71_A4Code,$AC:$AC)","v":491000},{"$f":"SUMIFS(Sheet1!S71_AdjustmentBudAmnt,Sheet1!S71_A4Code,$AC:$AC)","v":491000},{"$f":"SUMIFS(Sheet1!CD:CD,Sheet1!S71_A4Code,$AC:$AC)","v":0},{"$f":"SUMIFS(Sheet1!S71_ASBudgetAmount,Sheet1!S71_A4Code,$AC:$AC)","v":491000},{"$f":"SUMIFS(Sheet1!S71_OY1BudgetAmount,Sheet1!S71_A4Code,$AC:$AC)","v":0},{"$f":"SUMIFS(Sheet1!S71_OY2BudgetAmount,Sheet1!S71_A4Code,$AC:$AC)","v":0},null,null,null,null,null,null,null,null,null,null,null,null,null,null,null,null,"2200"]
["Depreciation & asset impairment",2,{"$f":"'SA1'!C100","v":0},{"$f":"'SA1'!D100","v":2651181},{"$f":"'SA1'!E100","v":2109338},{"$f":"'SA1'!F100","v":1660850},{"$f":"'SA1'!G100","v":1810850},{"$f":"'SA1'!H100","v":1810850},{"$f":"'SA1'!I100","v":0},{"$f":"'SA1'!J100","v":1000000},{"$f":"'SA1'!K100","v":1000000},{"$f":"'SA1'!L100","v":1000000},null,null,null,null,null,null,null,null,null,null,null,null,null,null,null,null,"2300"]
["Finance charges",null,{"$f":"SUMIFS(Sheet1!S71_PPPYearAmount,Sheet1!S71_A4Code,$AC:$AC)","v":0},{"$f":"SUMIFS(Sheet1!S71_PPYearAmount,Sheet1!S71_A4Code,$AC:$AC)","v":323416},{"$f":"SUMIFS(Sheet1!S71_PYearAmount,Sheet1!S71_A4Code,$AC:$AC)","v":426919},{"$f":"SUMIFS(Sheet1!S71_OriginalBudAmnt,Sheet1!S71_A4Code,$AC:$AC)","v":290000},{"$f":"SUMIFS(Sheet1!S71_AdjustmentBudAmnt,Sheet1!S71_A4Code,$AC:$AC)","v":290000},{"$f":"SUMIFS(Sheet1!S71_AdjustmentBudAmnt,Sheet1!S71_A4Code,$AC:$AC)","v":290000},{"$f":"SUMIFS(Sheet1!CD:CD,Sheet1!S71_A4Code,$AC:$AC)","v":171481},{"$f":"SUMIFS(Sheet1!S71_ASBudgetAmount,Sheet1!S71_A4Code,$AC:$AC)","v":80000},{"$f":"SUMIFS(Sheet1!S71_OY1BudgetAmount,Sheet1!S71_A4Code,$AC:$AC)","v":411060},{"$f":"SUMIFS(Sheet1!S71_OY2BudgetAmount,Sheet1!S71_A4Code,$AC:$AC)","v":433257},null,null,null,null,null,null,null,null,null,null,null,null,null,null,null,null,"2400"]
["Bulk purchases - electricity",2,{"$f":"'SA1'!C105","v":0},{"$f":"'SA1'!D105","v":0},{"$f":"'SA1'!E105","v":0},{"$f":"'SA1'!F105","v":0},{"$f":"'SA1'!G105","v":0},{"$f":"'SA1'!H105","v":0},{"$f":"'SA1'!I105","v":0},{"$f":"'SA1'!J105","v":0},{"$f":"'SA1'!K105","v":0},{"$f":"'SA1'!L105","v":0},null,null,null,null,null,null,null,null,null,null,null,null,null,null,null,null,"2500"]
["Inventory consumed",8,{"$f":"'SA1'!C186","v":0},{"$f":"'SA1'!D186","v":0},{"$f":"'SA1'!E186","v":0},{"$f":"SUMIFS(Sheet1!S71_OriginalBudAmnt,Sheet1!S71_A4Code,$AC:$AC)","v":61685},{"$f":"SUMIFS(Sheet1!S71_AdjustmentBudAmnt,Sheet1!S71_A4Code,$AC:$AC)","v":809000},{"$f":"SUMIFS(Sheet1!S71_AdjustmentBudAmnt,Sheet1!S71_A4Code,$AC:$AC)","v":809000},{"$f":"SUMIFS(Sheet1!CD:CD,Sheet1!S71_A4Code,$AC:$AC)","v":74482},{"$f":"'SA1'!J186","v":180000},{"$f":"'SA1'!K186","v":345673},{"$f":"'SA1'!L186","v":348140},null,null,null,null,null,null,null,null,null,null,null,null,null,null,null,null,"2600"]
["Contracted services",null,{"$f":"'SA1'!C144","v":0},{"$f":"'SA1'!D144","v":4913340},{"$f":"'SA1'!E144","v":5946499},{"$f":"'SA1'!F144","v":7031100},{"$f":"'SA1'!G144","v":7863000},{"$f":"'SA1'!H144","v":7863000},{"$f":"'SA1'!I144","v":4703400},{"$f":"'SA1'!J144","v":5481000},{"$f":"'SA1'!K144","v":7144409},{"$f":"'SA1'!L144","v":7459626},null,null,null,null,null,null,null,null,null,null,null,null,null,null,null,null,"2700"]
["Transfers and subsidies",null,{"$f":"'SA1'!C110","v":0},{"$f":"'SA1'!D110","v":37004},{"$f":"'SA1'!E110","v":97148},{"$f":"'SA1'!F110","v":10000},{"$f":"'SA1'!G110","v":181950},{"$f":"'SA1'!H110","v":181950},{"$f":"'SA1'!I110","v":81111},{"$f":"'SA1'!J110","v":72000},{"$f":"'SA1'!K110","v":72000},{"$f":"'SA1'!L110","v":72000},null,null,null,null,null,null,null,null,null,null,null,null,null,null,null,null,"2800"]
["Other expenditure","4, 5",{"$f":"'SA1'!C174","v":0},{"$f":"'SA1'!D174","v":7745007},{"$f":"'SA1'!E174","v":9858628},{"$f":"'SA1'!F174","v":9744174},{"$f":"'SA1'!G174","v":7888396},{"$f":"'SA1'!H174","v":7888396},{"$f":"'SA1'!I174","v":6693601},{"$f":"'SA1'!J174","v":3646375},{"$f":"'SA1'!K174","v":7005086},{"$f":"'SA1'!L174","v":7044198},null,null,null,null,null,null,null,null,null,null,null,null,null,null,null,null,"2900"]
["Losses",null,{"$f":"SUMIFS(Sheet1!S71_PPPYearAmount,Sheet1!S71_A4Code,$AC:$AC)","v":0},{"$f":"SUMIFS(Sheet1!S71_PPYearAmount,Sheet1!S71_A4Code,$AC:$AC)","v":0},{"$f":"SUMIFS(Sheet1!S71_PYearAmount,Sheet1!S71_A4Code,$AC:$AC)","v":0},{"$f":"SUMIFS(Sheet1!S71_OriginalBudAmnt,Sheet1!S71_A4Code,$AC:$AC)","v":0},{"$f":"SUMIFS(Sheet1!S71_AdjustmentBudAmnt,Sheet1!S71_A4Code,$AC:$AC)","v":0},{"$f":"SUMIFS(Sheet1!S71_AdjustmentBudAmnt,Sheet1!S71_A4Code,$AC:$AC)","v":0},{"$f":"SUMIFS(Sheet1!S71_AdjustmentBudAmnt,Sheet1!S71_A4Code,$AC:$AC)","v":0},{"$f":"SUMIFS(Sheet1!S71_ASBudgetAmount,Sheet1!S71_A4Code,$AC:$AC)","v":0},{"$f":"SUMIFS(Sheet1!S71_OY1BudgetAmount,Sheet1!S71_A4Code,$AC:$AC)","v":0},{"$f":"SUMIFS(Sheet1!S71_OY2BudgetAmount,Sheet1!S71_A4Code,$AC:$AC)","v":0},null,null,null,null,null,null,null,null,null,null,null,null,null,null,null,null,"3000"]
["Total Expenditure",null,{"$f":"SUM(C24:C34)","v":0},{"$f":"SUM(D24:D34)","v":61976764},67585534,67542216,68896774,68896774,56145261,62985185,68726183,70128751,{"$f":"SUM(M24:M34)","v":0},0,0,0,0,0,0,0,0,0,0,0]
[]
["Surplus/(Deficit)",null,{"$f":"C21-C35","v":0},6988994,377250,404771,791409,791409,{"$f":"I21-I35","v":5725835},485998,21817,23248,{"$f":"M21+M35","v":0},0,0,0,0,0,0,0,0,0,0,0]
["Transfers and subsidies - capital (monetary allocations) (National / Provincial and District)",null,{"$f":"SUMIFS(Sheet1!S71_PPPYearAmount,Sheet1!S71_A4Code,$AC:$AC)","v":0},{"$f":"SUMIFS(Sheet1!S71_PPYearAmount,Sheet1!S71_A4Code,$AC:$AC)","v":0},{"$f":"SUMIFS(Sheet1!S71_PYearAmount,Sheet1!S71_A4Code,$AC:$AC)","v":0},{"$f":"-SUMIFS(Sheet1!S71_OriginalBudAmnt,Sheet1!S71_A4Code,$AC:$AC)","v":0},{"$f":"-SUMIFS(Sheet1!S71_AdjustmentBudAmnt,Sheet1!S71_A4Code,$AC:$AC)","v":0},{"$f":"-SUMIFS(Sheet1!S71_AdjustmentBudAmnt,Sheet1!S71_A4Code,$AC:$AC)","v":0},{"$f":"SUMIFS(Sheet1!CD:CD,Sheet1!S71_A4Code,$AC:$AC)","v":0},{"$f":"-SUMIFS(Sheet1!S71_ASBudgetAmount,Sheet1!S71_A4Code,$AC:$AC)","v":0},{"$f":"-SUMIFS(Sheet1!S71_OY1BudgetAmount,Sheet1!S71_A4Code,$AC:$AC)","v":0},{"$f":"-SUMIFS(Sheet1!S71_OY2BudgetAmount,Sheet1!S71_A4Code,$AC:$AC)","v":0},null,null,null,null,null,null,null,null,null,null,null,null,null,null,null,null,"3300"]
["Transfers and subsidies - capital (monetary allocations) (National / Provincial Departmental Agencies, Households, Non-profit Institutions, Private Enterprises, Public Corporatons, Higher Educational Institutions)",6,{"$f":"'SA1'!C93","v":0},{"$f":"SUMIFS(Sheet1!S71_PPYearAmount,Sheet1!S71_A4Code,$AC:$AC)","v":0},{"$f":"SUMIFS(Sheet1!S71_PYearAmount,Sheet1!S71_A4Code,$AC:$AC)","v":0},{"$f":"-SUMIFS(Sheet1!S71_OriginalBudAmnt,Sheet1!S71_A4Code,$AC:$AC)","v":0},{"$f":"-SUMIFS(Sheet1!S71_AdjustmentBudAmnt,Sheet1!S71_A4Code,$AC:$AC)","v":0},{"$f":"-SUMIFS(Sheet1!S71_AdjustmentBudAmnt,Sheet1!S71_A4Code,$AC:$AC)","v":0},{"$f":"SUMIFS(Sheet1!CD:CD,Sheet1!S71_A4Code,$AC:$AC)","v":0},{"$f":"-SUMIFS(Sheet1!S71_ASBudgetAmount,Sheet1!S71_A4Code,$AC:$AC)","v":0},{"$f":"-SUMIFS(Sheet1!S71_OY1BudgetAmount,Sheet1!S71_A4Code,$AC:$AC)","v":0},{"$f":"-SUMIFS(Sheet1!S71_OY2BudgetAmount,Sheet1!S71_A4Code,$AC:$AC)","v":0},null,null,null,null,null,null,null,null,null,null,null,null,null,null,null,null,"3400"]
["Transfers and subsidies - capital (in-kind - all) ",null,{"$f":"SUMIFS(Sheet1!S71_PPPYearAmount,Sheet1!S71_A4Code,$AC:$AC)","v":0},{"$f":"SUMIFS(Sheet1!S71_PPYearAmount,Sheet1!S71_A4Code,$AC:$AC)","v":0},{"$f":"SUMIFS(Sheet1!S71_PYearAmount,Sheet1!S71_A4Code,$AC:$AC)","v":0},{"$f":"-SUMIFS(Sheet1!S71_OriginalBudAmnt,Sheet1!S71_A4Code,$AC:$AC)","v":0},{"$f":"-SUMIFS(Sheet1!S71_AdjustmentBudAmnt,Sheet1!S71_A4Code,$AC:$AC)","v":0},{"$f":"-SUMIFS(Sheet1!S71_AdjustmentBudAmnt,Sheet1!S71_A4Code,$AC:$AC)","v":0},{"$f":"SUMIFS(Sheet1!CD:CD,Sheet1!S71_A4Code,$AC:$AC)","v":0},{"$f":"-SUMIFS(Sheet1!S71_ASBudgetAmount,Sheet1!S71_A4Code,$AC:$AC)","v":0},{"$f":"-SUMIFS(Sheet1!S71_OY1BudgetAmount,Sheet1!S71_A4Code,$AC:$AC)","v":0},{"$f":"-SUMIFS(Sheet1!S71_OY2BudgetAmount,Sheet1!S71_A4Code,$AC:$AC)","v":0},null,null,null,null,null,null,null,null,null,null,null,null,null,null,null,null,"3500"]
["Surplus/(Deficit) after capital transfers & contributions",null,{"$f":"SUM(C37:C40)","v":0},6988994,377250,404771,791409,791409,{"$f":"SUM(I37:I40)","v":5725835},{"$f":"SUM(J37:J40)","v":485998},21817,23248]
["Taxation",null,{"$f":"SUMIFS(Sheet1!S71_PPPYearAmount,Sheet1!S71_A4Code,$AC:$AC)","v":0},{"$f":"SUMIFS(Sheet1!S71_PPYearAmount,Sheet1!S71_A4Code,$AC:$AC)","v":0},{"$f":"SUMIFS(Sheet1!S71_PYearAmount,Sheet1!S71_A4Code,$AC:$AC)","v":0},{"$f":"-SUMIFS(Sheet1!S71_OriginalBudAmnt,Sheet1!S71_A4Code,$AC:$AC)","v":0},{"$f":"-SUMIFS(Sheet1!S71_AdjustmentBudAmnt,Sheet1!S71_A4Code,$AC:$AC)","v":0},{"$f":"-SUMIFS(Sheet1!S71_AdjustmentBudAmnt,Sheet1!S71_A4Code,$AC:$AC)","v":0},{"$f":"SUMIFS(Sheet1!CD:CD,Sheet1!S71_A4Code,$AC:$AC)","v":0},{"$f":"-SUMIFS(Sheet1!S71_ASBudgetAmount,Sheet1!S71_A4Code,$AC:$AC)","v":0},{"$f":"-SUMIFS(Sheet1!S71_OY1BudgetAmount,Sheet1!S71_A4Code,$AC:$AC)","v":0},{"$f":"-SUMIFS(Sheet1!S71_OY2BudgetAmount,Sheet1!S71_A4Code,$AC:$AC)","v":0},null,null,null,null,null,null,null,null,null,null,null,null,null,null,null,null,"3700"]
["Surplus/(Deficit) after taxation",null,{"$f":"C41-C42","v":0},6988994,377250,404771,791409,791409,{"$f":"I41-I42","v":5725835},485998,21817,23248]
["Attributable to minorities",null,{"$f":"SUMIFS(Sheet1!S71_PPPYearAmount,Sheet1!S71_A4Code,$AC:$AC)","v":0},{"$f":"SUMIFS(Sheet1!S71_PPYearAmount,Sheet1!S71_A4Code,$AC:$AC)","v":0},{"$f":"SUMIFS(Sheet1!S71_PYearAmount,Sheet1!S71_A4Code,$AC:$AC)","v":0},{"$f":"-SUMIFS(Sheet1!S71_OriginalBudAmnt,Sheet1!S71_A4Code,$AC:$AC)","v":0},{"$f":"-SUMIFS(Sheet1!S71_AdjustmentBudAmnt,Sheet1!S71_A4Code,$AC:$AC)","v":0},{"$f":"-SUMIFS(Sheet1!S71_AdjustmentBudAmnt,Sheet1!S71_A4Code,$AC:$AC)","v":0},{"$f":"SUMIFS(Sheet1!CD:CD,Sheet1!S71_A4Code,$AC:$AC)","v":0},{"$f":"-SUMIFS(Sheet1!S71_ASBudgetAmount,Sheet1!S71_A4Code,$AC:$AC)","v":0},{"$f":"-SUMIFS(Sheet1!S71_OY1BudgetAmount,Sheet1!S71_A4Code,$AC:$AC)","v":0},{"$f":"-SUMIFS(Sheet1!S71_OY2BudgetAmount,Sheet1!S71_A4Code,$AC:$AC)","v":0},null,null,null,null,null,null,null,null,null,null,null,null,null,null,null,null,"3900"]
["Surplus/(Deficit) attributable to municipality",null,{"$f":"SUM(C43:C44)","v":0},6988994,377250,404771,791409,791409,5725835,485998,21817,23248]
["Share of surplus/ (deficit) of associate",7,{"$f":"SUMIFS(Sheet1!S71_PPPYearAmount,Sheet1!S71_A4Code,$AC:$AC)","v":0},{"$f":"SUMIFS(Sheet1!S71_PPYearAmount,Sheet1!S71_A4Code,$AC:$AC)","v":0},{"$f":"SUMIFS(Sheet1!S71_PYearAmount,Sheet1!S71_A4Code,$AC:$AC)","v":0},{"$f":"-SUMIFS(Sheet1!S71_OriginalBudAmnt,Sheet1!S71_A4Code,$AC:$AC)","v":0},{"$f":"-SUMIFS(Sheet1!S71_AdjustmentBudAmnt,Sheet1!S71_A4Code,$AC:$AC)","v":0},{"$f":"-SUMIFS(Sheet1!S71_AdjustmentBudAmnt,Sheet1!S71_A4Code,$AC:$AC)","v":0},{"$f":"SUMIFS(Sheet1!CD:CD,Sheet1!S71_A4Code,$AC:$AC)","v":0},{"$f":"-SUMIFS(Sheet1!S71_ASBudgetAmount,Sheet1!S71_A4Code,$AC:$AC)","v":0},{"$f":"-SUMIFS(Sheet1!S71_OY1BudgetAmount,Sheet1!S71_A4Code,$AC:$AC)","v":0},{"$f":"-SUMIFS(Sheet1!S71_OY2BudgetAmount,Sheet1!S71_A4Code,$AC:$AC)","v":0},null,null,null,null,null,null,null,null,null,null,null,null,null,null,null,null,"4100"]
[{"$f":"result","v":"Surplus/(Deficit) for the year"},null,{"$f":"SUM(C45:C46)","v":0},6988994,377250,404771,791409,791409,5725835,{"$f":"SUM(J45:J46)","v":485998},21817,23248,{"$f":"M25+M46","v":0},0,0,0,0,0,0,0,0,0,0,0]
[{"$f":"head27a","v":"References"}]
["1. Classifications are revenue sources and expenditure type"]
["2. Detail to be provided in Table SA1"]
["3. Previously described as 'bad or doubtful debts' - amounts shown should reflect the change in the provision for debt impairment"]
["4. Expenditure type components previously shown under repairs and maintenance should be allocated back to the originating expenditure group/item; e.g. employee costs"]
["5. Repairs & maintenance detailed in Table A9 and Table SA34c"]
["6. Contributions are funds provided by external organisations to assist with infrastructure development; e.g. developer contributions (detail to be provided in Table SA1)"]
["7. Equity method ( Includes Joint Ventures)"]
["8. All materials not part of 'bulk' e.g  road making materials, pipe, cable etc."]
["check balance",null,{"$f":"C45-'A3-FinPerf V'!C39","v":0},{"$f":"D45-'A3-FinPerf V'!D39","v":38097},{"$f":"E45-'A3-FinPerf V'!E39","v":114371},{"$f":"F45-'A3-FinPerf V'!F39","v":0},{"$f":"G45-'A3-FinPerf V'!G39","v":0},{"$f":"H45-'A3-FinPerf V'!H39","v":0},null,{"$f":"J45-'A3-FinPerf V'!I39","v":0},{"$f":"K45-'A3-FinPerf V'!J39","v":0},{"$f":"L45-'A3-FinPerf V'!K39","v":0}]
[]
["Total revenue",null,{"$f":"C21+SUM(C38:C40)","v":0},68965758,67962784,67946987,69688183,69688183,61871096,63471183,68748000,70151999]

{"sheet":"A5-Capex","index":22,"n_rows":85,"n_cols":30,"rows_kept":85,"cut":false,"hidden":false,"merged":[[1,9,1,11],[1,5,1,8],[82,0,82,11],[77,0,77,11],[76,0,76,11],[78,0,78,11]]}
[" "]
[{"$f":"Vdesc","v":"Vote Description"},{"$f":"head27","v":"Ref"},{"$f":"head1b","v":"2017/18"},{"$f":"head1A","v":"2018/19"},{"$f":"Head1","v":"2019/20"},{"$f":"Head2","v":"Current Year 2020/21"},null,null,null,{"$f":"Head3","v":"2021/22 Medium Term Revenue & Expenditure Framework"}]
["R thousand",1,{"$f":"Head5","v":"Audited Outcome"},{"$f":"Head5","v":"Audited Outcome"},{"$f":"Head5","v":"Audited Outcome"},{"$f":"Head6","v":"Original Budget"},{"$f":"Head7","v":"Adjusted Budget"},{"$f":"Head8","v":"Full Year Forecast"},{"$f":"Head5b","v":"Pre-audit outcome"},{"$f":"Head9","v":"Budget Year 2021/22"},{"$f":"Head10","v":"Budget Year +1 2022/23"},{"$f":"Head11","v":"Budget Year +2 2023/24"}]
["Capital expenditure - Vote"]
["Multi-year expenditure  to be appropriated",2]
[{"$f":"A5A!A6","v":"Vote 1 - Executive and Council"},null,{"$f":"A5A!C6","v":0},{"$f":"A5A!D6","v":0},{"$f":"A5A!E6","v":0},{"$f":"A5A!F6","v":0},{"$f":"A5A!G6","v":0},{"$f":"A5A!H6","v":0},{"$f":"A5A!I6","v":0},{"$f":"A5A!J6","v":0},{"$f":"A5A!K6","v":0},{"$f":"A5A!L6","v":0}]
[{"$f":"A5A!A17","v":"Vote 2 - Finance and Administration"},null,{"$f":"A5A!C17","v":0},{"$f":"A5A!D17","v":0},{"$f":"A5A!E17","v":0},{"$f":"A5A!F17","v":0},{"$f":"A5A!G17","v":0},{"$f":"A5A!H17","v":0},{"$f":"A5A!I17","v":0},{"$f":"A5A!J17","v":0},{"$f":"A5A!K17","v":0},{"$f":"A5A!L17","v":0}]
[{"$f":"A5A!A28","v":"Vote 3 - Planning and Development"},null,{"$f":"A5A!C28","v":0},{"$f":"A5A!D28","v":0},{"$f":"A5A!E28","v":0},{"$f":"A5A!F28","v":0},{"$f":"A5A!G28","v":0},{"$f":"A5A!H28","v":0},{"$f":"A5A!I28","v":0},{"$f":"A5A!J28","v":0},{"$f":"A5A!K28","v":0},{"$f":"A5A!L28","v":0}]
[{"$f":"A5A!A39","v":"Vote 4 - Community and Social Services"},null,{"$f":"A5A!C39","v":0},{"$f":"A5A!D39","v":0},{"$f":"A5A!E39","v":0},{"$f":"A5A!F39","v":0},{"$f":"A5A!G39","v":0},{"$f":"A5A!H39","v":0},{"$f":"A5A!I39","v":0},{"$f":"A5A!J39","v":0},{"$f":"A5A!K39","v":0},{"$f":"A5A!L39","v":0}]
[{"$f":"A5A!A50","v":"Vote 5 - Environmental Protection"},null,{"$f":"A5A!C50","v":0},{"$f":"A5A!D50","v":0},{"$f":"A5A!E50","v":0},{"$f":"A5A!F50","v":0},{"$f":"A5A!G50","v":0},{"$f":"A5A!H50","v":0},{"$f":"A5A!I50","v":0},{"$f":"A5A!J50","v":0},{"$f":"A5A!K50","v":0},{"$f":"A5A!L50","v":0}]
[{"$f":"A5A!A61","v":"Vote 6 - [NAME OF VOTE 6]"},null,{"$f":"A5A!C61","v":0},{"$f":"A5A!D61","v":0},{"$f":"A5A!E61","v":0},{"$f":"A5A!F61","v":0},{"$f":"A5A!G61","v":0},{"$f":"A5A!H61","v":0},{"$f":"A5A!I61","v":0},{"$f":"A5A!J61","v":0},{"$f":"A5A!K61","v":0},{"$f":"A5A!L61","v":0}]
[{"$f":"A5A!A72","v":"Vote 7 - [NAME OF VOTE 7]"},null,{"$f":"A5A!C72","v":0},{"$f":"A5A!D72","v":0},{"$f":"A5A!E72","v":0},{"$f":"A5A!F72","v":0},{"$f":"A5A!G72","v":0},{"$f":"A5A!H72","v":0},{"$f":"A5A!I72","v":0},{"$f":"A5A!J72","v":0},{"$f":"A5A!K72","v":0},{"$f":"A5A!L72","v":0}]
[{"$f":"A5A!A83","v":"Vote 8 - [NAME OF VOTE 8]"},null,{"$f":"A5A!C83","v":0},{"$f":"A5A!D83","v":0},{"$f":"A5A!E83","v":0},{"$f":"A5A!F83","v":0},{"$f":"A5A!G83","v":0},{"$f":"A5A!H83","v":0},{"$f":"A5A!I83","v":0},{"$f":"A5A!J83","v":0},{"$f":"A5A!K83","v":0},{"$f":"A5A!L83","v":0}]
[{"$f":"A5A!A94","v":"Vote 9 - [NAME OF VOTE 9]"},null,{"$f":"A5A!C94","v":0},{"$f":"A5A!D94","v":0},{"$f":"A5A!E94","v":0},{"$f":"A5A!F94","v":0},{"$f":"A5A!G94","v":0},{"$f":"A5A!H94","v":0},{"$f":"A5A!I94","v":0},{"$f":"A5A!J94","v":0},{"$f":"A5A!K94","v":0},{"$f":"A5A!L94","v":0}]
[{"$f":"A5A!A105","v":"Vote 10 - [NAME OF VOTE 10]"},null,{"$f":"A5A!C105","v":0},{"$f":"A5A!D105","v":0},{"$f":"A5A!E105","v":0},{"$f":"A5A!F105","v":0},{"$f":"A5A!G105","v":0},{"$f":"A5A!H105","v":0},{"$f":"A5A!I105","v":0},{"$f":"A5A!J105","v":0},{"$f":"A5A!K105","v":0},{"$f":"A5A!L105","v":0}]
[{"$f":"A5A!A116","v":"Vote 11 - [NAME OF VOTE 11]"},null,{"$f":"A5A!C116","v":0},{"$f":"A5A!D116","v":0},{"$f":"A5A!E116","v":0},{"$f":"A5A!F116","v":0},{"$f":"A5A!G116","v":0},{"$f":"A5A!H116","v":0},{"$f":"A5A!I116","v":0},{"$f":"A5A!J116","v":0},{"$f":"A5A!K116","v":0},{"$f":"A5A!L116","v":0}]
[{"$f":"A5A!A127","v":"Vote 12 - [NAME OF VOTE 12]"},null,{"$f":"A5A!C127","v":0},{"$f":"A5A!D127","v":0},{"$f":"A5A!E127","v":0},{"$f":"A5A!F127","v":0},{"$f":"A5A!G127","v":0},{"$f":"A5A!H127","v":0},{"$f":"A5A!I127","v":0},{"$f":"A5A!J127","v":0},{"$f":"A5A!K127","v":0},{"$f":"A5A!L127","v":0}]
[{"$f":"A5A!A138","v":"Vote 13 - [NAME OF VOTE 13]"},null,{"$f":"A5A!C138","v":0},{"$f":"A5A!D138","v":0},{"$f":"A5A!E138","v":0},{"$f":"A5A!F138","v":0},{"$f":"A5A!G138","v":0},{"$f":"A5A!H138","v":0},{"$f":"A5A!I138","v":0},{"$f":"A5A!J138","v":0},{"$f":"A5A!K138","v":0},{"$f":"A5A!L138","v":0}]
[{"$f":"A5A!A149","v":"Vote 14 - [NAME OF VOTE 14]"},null,{"$f":"A5A!C149","v":0},{"$f":"A5A!D149","v":0},{"$f":"A5A!E149","v":0},{"$f":"A5A!F149","v":0},{"$f":"A5A!G149","v":0},{"$f":"A5A!H149","v":0},{"$f":"A5A!I149","v":0},{"$f":"A5A!J149","v":0},{"$f":"A5A!K149","v":0},{"$f":"A5A!L149","v":0}]
[{"$f":"A5A!A160","v":"Vote 15 - [NAME OF VOTE 15]"},null,{"$f":"A5A!C160","v":0},{"$f":"A5A!D160","v":0},{"$f":"A5A!E160","v":0},{"$f":"A5A!F160","v":0},{"$f":"A5A!G160","v":0},{"$f":"A5A!H160","v":0},{"$f":"A5A!I160","v":0},{"$f":"A5A!J160","v":0},{"$f":"A5A!K160","v":0},{"$f":"A5A!L160","v":0}]
["Capital multi-year expenditure sub-total",7,{"$f":"SUM(C6:C20)","v":0},{"$f":"SUM(D6:D20)","v":0},0,0,0,{"$f":"SUM(H6:H20)","v":0},0,0,0,0]
[]
["Single-year expenditure to be appropriated",2]
[{"$f":"A6","v":"Vote 1 - Executive and Council"},null,{"$f":"A5A!C175","v":0},{"$f":"A5A!D175","v":0},{"$f":"A5A!E175","v":12874},{"$f":"A5A!F175","v":30000},{"$f":"A5A!G175","v":50000},{"$f":"A5A!H175","v":50000},{"$f":"A5A!I175","v":104274},{"$f":"A5A!J175","v":176000},{"$f":"A5A!K175","v":21958},{"$f":"A5A!L175","v":23144}]
[{"$f":"A7","v":"Vote 2 - Finance and Administration"},null,{"$f":"A5A!C186","v":0},{"$f":"A5A!D186","v":0},{"$f":"A5A!E186","v":256834},{"$f":"A5A!F186","v":344771},{"$f":"A5A!G186","v":248000},{"$f":"A5A!H186","v":248000},{"$f":"A5A!I186","v":340997},{"$f":"A5A!J186","v":310000},{"$f":"A5A!K186","v":0},{"$f":"A5A!L186","v":0}]
["Vote 3 - Planning and Development",null,{"$f":"A5A!C197","v":0},{"$f":"A5A!D197","v":0},{"$f":"A5A!E197","v":48776},{"$f":"A5A!F197","v":30000},{"$f":"A5A!G197","v":30000},{"$f":"A5A!H197","v":30000},{"$f":"A5A!I197","v":69643},{"$f":"A5A!J197","v":0},{"$f":"A5A!K197","v":0},{"$f":"A5A!L197","v":0}]
["Vote 4 - Community and Social Services",null,{"$f":"A5A!C208","v":0},{"$f":"A5A!D208","v":0},{"$f":"A5A!E208","v":0},{"$f":"A5A!F208","v":0},{"$f":"A5A!G208","v":0},{"$f":"A5A!H208","v":0},{"$f":"A5A!I208","v":0},{"$f":"A5A!J208","v":0},{"$f":"A5A!K208","v":0},{"$f":"A5A!L208","v":0}]
["Vote 5 - Environmental Protection",null,{"$f":"A5A!C219","v":0},{"$f":"A5A!D219","v":0},{"$f":"A5A!E219","v":0},{"$f":"A5A!F219","v":0},{"$f":"A5A!G219","v":0},{"$f":"A5A!H219","v":0},{"$f":"A5A!I219","v":0},{"$f":"A5A!J219","v":0},{"$f":"A5A!K219","v":0},{"$f":"A5A!L219","v":0}]
["Vote 6 - [NAME OF VOTE 6]",null,{"$f":"A5A!C230","v":0},{"$f":"A5A!D230","v":0},{"$f":"A5A!E230","v":0},{"$f":"A5A!F230","v":0},{"$f":"A5A!G230","v":0},{"$f":"A5A!H230","v":0},{"$f":"A5A!I230","v":0},{"$f":"A5A!J230","v":0},{"$f":"A5A!K230","v":0},{"$f":"A5A!L230","v":0}]
["Vote 7 - [NAME OF VOTE 7]",null,{"$f":"A5A!C241","v":0},{"$f":"A5A!D241","v":0},{"$f":"A5A!E241","v":0},{"$f":"A5A!F241","v":0},{"$f":"A5A!G241","v":0},{"$f":"A5A!H241","v":0},{"$f":"A5A!I241","v":0},{"$f":"A5A!J241","v":0},{"$f":"A5A!K241","v":0},{"$f":"A5A!L241","v":0}]
["Vote 8 - [NAME OF VOTE 8]",null,{"$f":"A5A!C252","v":0},{"$f":"A5A!D252","v":0},{"$f":"A5A!E252","v":0},{"$f":"A5A!F252","v":0},{"$f":"A5A!G252","v":0},{"$f":"A5A!H252","v":0},{"$f":"A5A!I252","v":0},{"$f":"A5A!J252","v":0},{"$f":"A5A!K252","v":0},{"$f":"A5A!L252","v":0}]
["Vote 9 - [NAME OF VOTE 9]",null,{"$f":"A5A!C263","v":0},{"$f":"A5A!D263","v":0},{"$f":"A5A!E263","v":0},{"$f":"A5A!F263","v":0},{"$f":"A5A!G263","v":0},{"$f":"A5A!H263","v":0},{"$f":"A5A!I263","v":0},{"$f":"A5A!J263","v":0},{"$f":"A5A!K263","v":0},{"$f":"A5A!L263","v":0}]
["Vote 10 - [NAME OF VOTE 10]",null,{"$f":"A5A!C274","v":0},{"$f":"A5A!D274","v":0},{"$f":"A5A!E274","v":0},{"$f":"A5A!F274","v":0},{"$f":"A5A!G274","v":0},{"$f":"A5A!H274","v":0},{"$f":"A5A!I274","v":0},{"$f":"A5A!J274","v":0},{"$f":"A5A!K274","v":0},{"$f":"A5A!L274","v":0}]
["Vote 11 - [NAME OF VOTE 11]",null,{"$f":"A5A!C285","v":0},{"$f":"A5A!D285","v":0},{"$f":"A5A!E285","v":0},{"$f":"A5A!F285","v":0},{"$f":"A5A!G285","v":0},{"$f":"A5A!H285","v":0},{"$f":"A5A!I285","v":0},{"$f":"A5A!J285","v":0},{"$f":"A5A!K285","v":0},{"$f":"A5A!L285","v":0}]
["Vote 12 - [NAME OF VOTE 12]",null,{"$f":"A5A!C296","v":0},{"$f":"A5A!D296","v":0},{"$f":"A5A!E296","v":0},{"$f":"A5A!F296","v":0},{"$f":"A5A!G296","v":0},{"$f":"A5A!H296","v":0},{"$f":"A5A!I296","v":0},{"$f":"A5A!J296","v":0},{"$f":"A5A!K296","v":0},{"$f":"A5A!L296","v":0}]
["Vote 13 - [NAME OF VOTE 13]",null,{"$f":"A5A!C307","v":0},{"$f":"A5A!D307","v":0},{"$f":"A5A!E307","v":0},{"$f":"A5A!F307","v":0},{"$f":"A5A!G307","v":0},{"$f":"A5A!H307","v":0},{"$f":"A5A!I307","v":0},{"$f":"A5A!J307","v":0},{"$f":"A5A!K307","v":0},{"$f":"A5A!L307","v":0}]
["Vote 14 - [NAME OF VOTE 14]",null,{"$f":"A5A!C318","v":0},{"$f":"A5A!D318","v":0},{"$f":"A5A!E318","v":0},{"$f":"A5A!F318","v":0},{"$f":"A5A!G318","v":0},{"$f":"A5A!H318","v":0},{"$f":"A5A!I318","v":0},{"$f":"A5A!J318","v":0},{"$f":"A5A!K318","v":0},{"$f":"A5A!L318","v":0}]
[{"$f":"A20","v":"Vote 15 - [NAME OF VOTE 15]"},null,{"$f":"A5A!C329","v":0},{"$f":"A5A!D329","v":0},{"$f":"A5A!E329","v":0},{"$f":"A5A!F329","v":0},{"$f":"A5A!G329","v":0},{"$f":"A5A!H329","v":0},{"$f":"A5A!I329","v":0},{"$f":"A5A!J329","v":0},{"$f":"A5A!K329","v":0},{"$f":"A5A!L329","v":0}]
["Capital single-year expenditure sub-total",null,{"$f":"SUM(C24:C38)","v":0},{"$f":"SUM(D24:D38)","v":0},318484,404771,328000,328000,514914,486000,21958,23144]
["Total Capital Expenditure - Vote",null,{"$f":"C39+C21","v":0},{"$f":"D39+D21","v":0},318484,404771,328000,328000,514914,486000,21958,23144]
[]
["Capital Expenditure - Functional"]
["Governance and administration",null,{"$f":"SUM(C44:C46)","v":0},{"$f":"SUM(D44:D46)","v":0},269708,374771,298000,298000,0,486000,21958,23144]
["Executive and council",null,{"$f":"SUMIFS(Sheet1!S71_PPPYearAmount,Sheet1!S71_A2Code,$AC:$AC,Sheet1!S71_A5CapexCode,$AD:$AD)","v":0},{"$f":"SUMIFS(Sheet1!S71_PPYearAmount,Sheet1!S71_A2Code,$AC:$AC,Sheet1!S71_A5CapexCode,$AD:$AD)","v":0},{"$f":"SUMIFS(Sheet1!S71_PYearAmount,Sheet1!S71_A2Code,$AC:$AC,Sheet1!S71_A5CapexCode,$AD:$AD)","v":12874},{"$f":"SUMIFS(Sheet1!S71_OriginalBudAmnt,Sheet1!S71_A2Code,$AC:$AC,Sheet1!S71_A5CapexCode,$AD:$AD)","v":30000},{"$f":"SUMIFS(Sheet1!S71_AdjustmentBudAmnt,Sheet1!S71_A2Code,$AC:$AC,Sheet1!S71_A5CapexCode,$AD:$AD)","v":50000},{"$f":"SUMIFS(Sheet1!S71_AdjustmentBudAmnt,Sheet1!S71_A2Code,$AC:$AC,Sheet1!S71_A5CapexCode,$AD:$AD)","v":50000},{"$f":"SUMIFS(Sheet1!S71_PreAuditActual,Sheet1!S71_A2Code,_xlfn.SINGLE($AC:$AC),Sheet1!S71_A5CapexCode,_xlfn.SINGLE($AD:$AD))","v":0},{"$f":"SUMIFS(Sheet1!S71_ASBudgetAmount,Sheet1!S71_A2Code,$AC:$AC,Sheet1!S71_A5CapexCode,$AD:$AD)","v":176000},{"$f":"SUMIFS(Sheet1!S71_OY1BudgetAmount,Sheet1!S71_A2Code,$AC:$AC,Sheet1!S71_A5CapexCode,$AD:$AD)","v":21958},{"$f":"SUMIFS(Sheet1!S71_OY2BudgetAmount,Sheet1!S71_A2Code,$AC:$AC,Sheet1!S71_A5CapexCode,$AD:$AD)","v":23144},null,null,null,null,null,null,null,null,null,null,null,null,null,null,null,null,"1100","CE"]
["Finance and administration",null,{"$f":"SUMIFS(Sheet1!S71_PPPYearAmount,Sheet1!S71_A2Code,$AC:$AC,Sheet1!S71_A5CapexCode,$AD:$AD)","v":0},{"$f":"SUMIFS(Sheet1!S71_PPYearAmount,Sheet1!S71_A2Code,$AC:$AC,Sheet1!S71_A5CapexCode,$AD:$AD)","v":0},{"$f":"SUMIFS(Sheet1!S71_PYearAmount,Sheet1!S71_A2Code,$AC:$AC,Sheet1!S71_A5CapexCode,$AD:$AD)","v":256834},{"$f":"SUMIFS(Sheet1!S71_OriginalBudAmnt,Sheet1!S71_A2Code,$AC:$AC,Sheet1!S71_A5CapexCode,$AD:$AD)","v":344771},{"$f":"SUMIFS(Sheet1!S71_AdjustmentBudAmnt,Sheet1!S71_A2Code,$AC:$AC,Sheet1!S71_A5CapexCode,$AD:$AD)","v":248000},{"$f":"SUMIFS(Sheet1!S71_AdjustmentBudAmnt,Sheet1!S71_A2Code,$AC:$AC,Sheet1!S71_A5CapexCode,$AD:$AD)","v":248000},{"$f":"SUMIFS(Sheet1!S71_PreAuditActual,Sheet1!S71_A2Code,_xlfn.SINGLE($AC:$AC),Sheet1!S71_A5CapexCode,_xlfn.SINGLE($AD:$AD))","v":0},{"$f":"SUMIFS(Sheet1!S71_ASBudgetAmount,Sheet1!S71_A2Code,$AC:$AC,Sheet1!S71_A5CapexCode,$AD:$AD)","v":310000},{"$f":"SUMIFS(Sheet1!S71_OY1BudgetAmount,Sheet1!S71_A2Code,$AC:$AC,Sheet1!S71_A5CapexCode,$AD:$AD)","v":0},{"$f":"SUMIFS(Sheet1!S71_OY2BudgetAmount,Sheet1!S71_A2Code,$AC:$AC,Sheet1!S71_A5CapexCode,$AD:$AD)","v":0},null,null,null,null,null,null,null,null,null,null,null,null,null,null,null,null,"1200","CE"]
["Internal audit",null,{"$f":"SUMIFS(Sheet1!S71_PPPYearAmount,Sheet1!S71_A2Code,$AC:$AC,Sheet1!S71_A5CapexCode,$AD:$AD)","v":0},{"$f":"SUMIFS(Sheet1!S71_PPYearAmount,Sheet1!S71_A2Code,$AC:$AC,Sheet1!S71_A5CapexCode,$AD:$AD)","v":0},{"$f":"SUMIFS(Sheet1!S71_PYearAmount,Sheet1!S71_A2Code,$AC:$AC,Sheet1!S71_A5CapexCode,$AD:$AD)","v":0},{"$f":"SUMIFS(Sheet1!S71_OriginalBudAmnt,Sheet1!S71_A2Code,$AC:$AC,Sheet1!S71_A5CapexCode,$AD:$AD)","v":0},{"$f":"SUMIFS(Sheet1!S71_AdjustmentBudAmnt,Sheet1!S71_A2Code,$AC:$AC,Sheet1!S71_A5CapexCode,$AD:$AD)","v":0},{"$f":"SUMIFS(Sheet1!S71_AdjustmentBudAmnt,Sheet1!S71_A2Code,$AC:$AC,Sheet1!S71_A5CapexCode,$AD:$AD)","v":0},{"$f":"SUMIFS(Sheet1!S71_PreAuditActual,Sheet1!S71_A2Code,_xlfn.SINGLE($AC:$AC),Sheet1!S71_A5CapexCode,_xlfn.SINGLE($AD:$AD))","v":0},{"$f":"SUMIFS(Sheet1!S71_ASBudgetAmount,Sheet1!S71_A2Code,$AC:$AC,Sheet1!S71_A5CapexCode,$AD:$AD)","v":0},{"$f":"SUMIFS(Sheet1!S71_OY1BudgetAmount,Sheet1!S71_A2Code,$AC:$AC,Sheet1!S71_A5CapexCode,$AD:$AD)","v":0},{"$f":"SUMIFS(Sheet1!S71_OY2BudgetAmount,Sheet1!S71_A2Code,$AC:$AC,Sheet1!S71_A5CapexCode,$AD:$AD)","v":0},null,null,null,null,null,null,null,null,null,null,null,null,null,null,null,null,"1300","CE"]
["Community and public safety",null,{"$f":"SUM(C48:C52)","v":0},{"$f":"SUM(D48:D52)","v":0},0,0,0,0,0,0,0,0]
["Community and social services",null,{"$f":"SUMIFS(Sheet1!S71_PPPYearAmount,Sheet1!S71_A2Code,$AC:$AC,Sheet1!S71_A5CapexCode,$AD:$AD)","v":0},{"$f":"SUMIFS(Sheet1!S71_PPYearAmount,Sheet1!S71_A2Code,$AC:$AC,Sheet1!S71_A5CapexCode,$AD:$AD)","v":0},{"$f":"SUMIFS(Sheet1!S71_PYearAmount,Sheet1!S71_A2Code,$AC:$AC,Sheet1!S71_A5CapexCode,$AD:$AD)","v":0},{"$f":"SUMIFS(Sheet1!S71_OriginalBudAmnt,Sheet1!S71_A2Code,$AC:$AC,Sheet1!S71_A5CapexCode,$AD:$AD)","v":0},{"$f":"SUMIFS(Sheet1!S71_AdjustmentBudAmnt,Sheet1!S71_A2Code,$AC:$AC,Sheet1!S71_A5CapexCode,$AD:$AD)","v":0},{"$f":"SUMIFS(Sheet1!S71_AdjustmentBudAmnt,Sheet1!S71_A2Code,$AC:$AC,Sheet1!S71_A5CapexCode,$AD:$AD)","v":0},{"$f":"SUMIFS(Sheet1!S71_PreAuditActual,Sheet1!S71_A2Code,_xlfn.SINGLE($AC:$AC),Sheet1!S71_A5CapexCode,_xlfn.SINGLE($AD:$AD))","v":0},{"$f":"SUMIFS(Sheet1!S71_ASBudgetAmount,Sheet1!S71_A2Code,$AC:$AC,Sheet1!S71_A5CapexCode,$AD:$AD)","v":0},{"$f":"SUMIFS(Sheet1!S71_OY1BudgetAmount,Sheet1!S71_A2Code,$AC:$AC,Sheet1!S71_A5CapexCode,$AD:$AD)","v":0},{"$f":"SUMIFS(Sheet1!S71_OY2BudgetAmount,Sheet1!S71_A2Code,$AC:$AC,Sheet1!S71_A5CapexCode,$AD:$AD)","v":0},null,null,null,null,null,null,null,null,null,null,null,null,null,null,null,null,"2100","CE"]
["Sport and recreation",null,{"$f":"SUMIFS(Sheet1!S71_PPPYearAmount,Sheet1!S71_A2Code,$AC:$AC,Sheet1!S71_A5CapexCode,$AD:$AD)","v":0},{"$f":"SUMIFS(Sheet1!S71_PPYearAmount,Sheet1!S71_A2Code,$AC:$AC,Sheet1!S71_A5CapexCode,$AD:$AD)","v":0},{"$f":"SUMIFS(Sheet1!S71_PYearAmount,Sheet1!S71_A2Code,$AC:$AC,Sheet1!S71_A5CapexCode,$AD:$AD)","v":0},{"$f":"SUMIFS(Sheet1!S71_OriginalBudAmnt,Sheet1!S71_A2Code,$AC:$AC,Sheet1!S71_A5CapexCode,$AD:$AD)","v":0},{"$f":"SUMIFS(Sheet1!S71_AdjustmentBudAmnt,Sheet1!S71_A2Code,$AC:$AC,Sheet1!S71_A5CapexCode,$AD:$AD)","v":0},{"$f":"SUMIFS(Sheet1!S71_AdjustmentBudAmnt,Sheet1!S71_A2Code,$AC:$AC,Sheet1!S71_A5CapexCode,$AD:$AD)","v":0},{"$f":"SUMIFS(Sheet1!S71_PreAuditActual,Sheet1!S71_A2Code,_xlfn.SINGLE($AC:$AC),Sheet1!S71_A5CapexCode,_xlfn.SINGLE($AD:$AD))","v":0},{"$f":"SUMIFS(Sheet1!S71_ASBudgetAmount,Sheet1!S71_A2Code,$AC:$AC,Sheet1!S71_A5CapexCode,$AD:$AD)","v":0},{"$f":"SUMIFS(Sheet1!S71_OY1BudgetAmount,Sheet1!S71_A2Code,$AC:$AC,Sheet1!S71_A5CapexCode,$AD:$AD)","v":0},{"$f":"SUMIFS(Sheet1!S71_OY2BudgetAmount,Sheet1!S71_A2Code,$AC:$AC,Sheet1!S71_A5CapexCode,$AD:$AD)","v":0},null,null,null,null,null,null,null,null,null,null,null,null,null,null,null,null,"2200","CE"]
["Public safety",null,{"$f":"SUMIFS(Sheet1!S71_PPPYearAmount,Sheet1!S71_A2Code,$AC:$AC,Sheet1!S71_A5CapexCode,$AD:$AD)","v":0},{"$f":"SUMIFS(Sheet1!S71_PPYearAmount,Sheet1!S71_A2Code,$AC:$AC,Sheet1!S71_A5CapexCode,$AD:$AD)","v":0},{"$f":"SUMIFS(Sheet1!S71_PYearAmount,Sheet1!S71_A2Code,$AC:$AC,Sheet1!S71_A5CapexCode,$AD:$AD)","v":0},{"$f":"SUMIFS(Sheet1!S71_OriginalBudAmnt,Sheet1!S71_A2Code,$AC:$AC,Sheet1!S71_A5CapexCode,$AD:$AD)","v":0},{"$f":"SUMIFS(Sheet1!S71_AdjustmentBudAmnt,Sheet1!S71_A2Code,$AC:$AC,Sheet1!S71_A5CapexCode,$AD:$AD)","v":0},{"$f":"SUMIFS(Sheet1!S71_AdjustmentBudAmnt,Sheet1!S71_A2Code,$AC:$AC,Sheet1!S71_A5CapexCode,$AD:$AD)","v":0},{"$f":"SUMIFS(Sheet1!S71_PreAuditActual,Sheet1!S71_A2Code,_xlfn.SINGLE($AC:$AC),Sheet1!S71_A5CapexCode,_xlfn.SINGLE($AD:$AD))","v":0},{"$f":"SUMIFS(Sheet1!S71_ASBudgetAmount,Sheet1!S71_A2Code,$AC:$AC,Sheet1!S71_A5CapexCode,$AD:$AD)","v":0},{"$f":"SUMIFS(Sheet1!S71_OY1BudgetAmount,Sheet1!S71_A2Code,$AC:$AC,Sheet1!S71_A5CapexCode,$AD:$AD)","v":0},{"$f":"SUMIFS(Sheet1!S71_OY2BudgetAmount,Sheet1!S71_A2Code,$AC:$AC,Sheet1!S71_A5CapexCode,$AD:$AD)","v":0},null,null,null,null,null,null,null,null,null,null,null,null,null,null,null,null,"2300","CE"]
["Housing",null,{"$f":"SUMIFS(Sheet1!S71_PPPYearAmount,Sheet1!S71_A2Code,$AC:$AC,Sheet1!S71_A5CapexCode,$AD:$AD)","v":0},{"$f":"SUMIFS(Sheet1!S71_PPYearAmount,Sheet1!S71_A2Code,$AC:$AC,Sheet1!S71_A5CapexCode,$AD:$AD)","v":0},{"$f":"SUMIFS(Sheet1!S71_PYearAmount,Sheet1!S71_A2Code,$AC:$AC,Sheet1!S71_A5CapexCode,$AD:$AD)","v":0},{"$f":"SUMIFS(Sheet1!S71_OriginalBudAmnt,Sheet1!S71_A2Code,$AC:$AC,Sheet1!S71_A5CapexCode,$AD:$AD)","v":0},{"$f":"SUMIFS(Sheet1!S71_AdjustmentBudAmnt,Sheet1!S71_A2Code,$AC:$AC,Sheet1!S71_A5CapexCode,$AD:$AD)","v":0},{"$f":"SUMIFS(Sheet1!S71_AdjustmentBudAmnt,Sheet1!S71_A2Code,$AC:$AC,Sheet1!S71_A5CapexCode,$AD:$AD)","v":0},{"$f":"SUMIFS(Sheet1!S71_PreAuditActual,Sheet1!S71_A2Code,_xlfn.SINGLE($AC:$AC),Sheet1!S71_A5CapexCode,_xlfn.SINGLE($AD:$AD))","v":0},{"$f":"SUMIFS(Sheet1!S71_ASBudgetAmount,Sheet1!S71_A2Code,$AC:$AC,Sheet1!S71_A5CapexCode,$AD:$AD)","v":0},{"$f":"SUMIFS(Sheet1!S71_OY1BudgetAmount,Sheet1!S71_A2Code,$AC:$AC,Sheet1!S71_A5CapexCode,$AD:$AD)","v":0},{"$f":"SUMIFS(Sheet1!S71_OY2BudgetAmount,Sheet1!S71_A2Code,$AC:$AC,Sheet1!S71_A5CapexCode,$AD:$AD)","v":0},null,null,null,null,null,null,null,null,null,null,null,null,null,null,null,null,"2400","CE"]
["Health",null,{"$f":"SUMIFS(Sheet1!S71_PPPYearAmount,Sheet1!S71_A2Code,$AC:$AC,Sheet1!S71_A5CapexCode,$AD:$AD)","v":0},{"$f":"SUMIFS(Sheet1!S71_PPYearAmount,Sheet1!S71_A2Code,$AC:$AC,Sheet1!S71_A5CapexCode,$AD:$AD)","v":0},{"$f":"SUMIFS(Sheet1!S71_PYearAmount,Sheet1!S71_A2Code,$AC:$AC,Sheet1!S71_A5CapexCode,$AD:$AD)","v":0},{"$f":"SUMIFS(Sheet1!S71_OriginalBudAmnt,Sheet1!S71_A2Code,$AC:$AC,Sheet1!S71_A5CapexCode,$AD:$AD)","v":0},{"$f":"SUMIFS(Sheet1!S71_AdjustmentBudAmnt,Sheet1!S71_A2Code,$AC:$AC,Sheet1!S71_A5CapexCode,$AD:$AD)","v":0},{"$f":"SUMIFS(Sheet1!S71_AdjustmentBudAmnt,Sheet1!S71_A2Code,$AC:$AC,Sheet1!S71_A5CapexCode,$AD:$AD)","v":0},{"$f":"SUMIFS(Sheet1!S71_PreAuditActual,Sheet1!S71_A2Code,_xlfn.SINGLE($AC:$AC),Sheet1!S71_A5CapexCode,_xlfn.SINGLE($AD:$AD))","v":0},{"$f":"SUMIFS(Sheet1!S71_ASBudgetAmount,Sheet1!S71_A2Code,$AC:$AC,Sheet1!S71_A5CapexCode,$AD:$AD)","v":0},{"$f":"SUMIFS(Sheet1!S71_OY1BudgetAmount,Sheet1!S71_A2Code,$AC:$AC,Sheet1!S71_A5CapexCode,$AD:$AD)","v":0},{"$f":"SUMIFS(Sheet1!S71_OY2BudgetAmount,Sheet1!S71_A2Code,$AC:$AC,Sheet1!S71_A5CapexCode,$AD:$AD)","v":0},null,null,null,null,null,null,null,null,null,null,null,null,null,null,null,null,"2500","CE"]
["Economic and environmental services",null,{"$f":"SUM(C54:C56)","v":0},{"$f":"SUM(D54:D56)","v":0},48776,30000,30000,30000,0,0,0,0]
["Planning and development",null,{"$f":"SUMIFS(Sheet1!S71_PPPYearAmount,Sheet1!S71_A2Code,$AC:$AC,Sheet1!S71_A5CapexCode,$AD:$AD)","v":0},{"$f":"SUMIFS(Sheet1!S71_PPYearAmount,Sheet1!S71_A2Code,$AC:$AC,Sheet1!S71_A5CapexCode,$AD:$AD)","v":0},{"$f":"SUMIFS(Sheet1!S71_PYearAmount,Sheet1!S71_A2Code,$AC:$AC,Sheet1!S71_A5CapexCode,$AD:$AD)","v":48776},{"$f":"SUMIFS(Sheet1!S71_OriginalBudAmnt,Sheet1!S71_A2Code,$AC:$AC,Sheet1!S71_A5CapexCode,$AD:$AD)","v":30000},{"$f":"SUMIFS(Sheet1!S71_AdjustmentBudAmnt,Sheet1!S71_A2Code,$AC:$AC,Sheet1!S71_A5CapexCode,$AD:$AD)","v":30000},{"$f":"SUMIFS(Sheet1!S71_AdjustmentBudAmnt,Sheet1!S71_A2Code,$AC:$AC,Sheet1!S71_A5CapexCode,$AD:$AD)","v":30000},{"$f":"SUMIFS(Sheet1!S71_PreAuditActual,Sheet1!S71_A2Code,_xlfn.SINGLE($AC:$AC),Sheet1!S71_A5CapexCode,_xlfn.SINGLE($AD:$AD))","v":0},{"$f":"SUMIFS(Sheet1!S71_ASBudgetAmount,Sheet1!S71_A2Code,$AC:$AC,Sheet1!S71_A5CapexCode,$AD:$AD)","v":0},{"$f":"SUMIFS(Sheet1!S71_OY1BudgetAmount,Sheet1!S71_A2Code,$AC:$AC,Sheet1!S71_A5CapexCode,$AD:$AD)","v":0},{"$f":"SUMIFS(Sheet1!S71_OY2BudgetAmount,Sheet1!S71_A2Code,$AC:$AC,Sheet1!S71_A5CapexCode,$AD:$AD)","v":0},null,null,null,null,null,null,null,null,null,null,null,null,null,null,null,null,"3100","CE"]
["Road transport",null,{"$f":"SUMIFS(Sheet1!S71_PPPYearAmount,Sheet1!S71_A2Code,$AC:$AC,Sheet1!S71_A5CapexCode,$AD:$AD)","v":0},{"$f":"SUMIFS(Sheet1!S71_PPYearAmount,Sheet1!S71_A2Code,$AC:$AC,Sheet1!S71_A5CapexCode,$AD:$AD)","v":0},{"$f":"SUMIFS(Sheet1!S71_PYearAmount,Sheet1!S71_A2Code,$AC:$AC,Sheet1!S71_A5CapexCode,$AD:$AD)","v":0},{"$f":"SUMIFS(Sheet1!S71_OriginalBudAmnt,Sheet1!S71_A2Code,$AC:$AC,Sheet1!S71_A5CapexCode,$AD:$AD)","v":0},{"$f":"SUMIFS(Sheet1!S71_AdjustmentBudAmnt,Sheet1!S71_A2Code,$AC:$AC,Sheet1!S71_A5CapexCode,$AD:$AD)","v":0},{"$f":"SUMIFS(Sheet1!S71_AdjustmentBudAmnt,Sheet1!S71_A2Code,$AC:$AC,Sheet1!S71_A5CapexCode,$AD:$AD)","v":0},{"$f":"SUMIFS(Sheet1!S71_PreAuditActual,Sheet1!S71_A2Code,_xlfn.SINGLE($AC:$AC),Sheet1!S71_A5CapexCode,_xlfn.SINGLE($AD:$AD))","v":0},{"$f":"SUMIFS(Sheet1!S71_ASBudgetAmount,Sheet1!S71_A2Code,$AC:$AC,Sheet1!S71_A5CapexCode,$AD:$AD)","v":0},{"$f":"SUMIFS(Sheet1!S71_OY1BudgetAmount,Sheet1!S71_A2Code,$AC:$AC,Sheet1!S71_A5CapexCode,$AD:$AD)","v":0},{"$f":"SUMIFS(Sheet1!S71_OY2BudgetAmount,Sheet1!S71_A2Code,$AC:$AC,Sheet1!S71_A5CapexCode,$AD:$AD)","v":0},null,null,null,null,null,null,null,null,null,null,null,null,null,null,null,null,"3200","CE"]
["Environmental protection",null,{"$f":"SUMIFS(Sheet1!S71_PPPYearAmount,Sheet1!S71_A2Code,$AC:$AC,Sheet1!S71_A5CapexCode,$AD:$AD)","v":0},{"$f":"SUMIFS(Sheet1!S71_PPYearAmount,Sheet1!S71_A2Code,$AC:$AC,Sheet1!S71_A5CapexCode,$AD:$AD)","v":0},{"$f":"SUMIFS(Sheet1!S71_PYearAmount,Sheet1!S71_A2Code,$AC:$AC,Sheet1!S71_A5CapexCode,$AD:$AD)","v":0},{"$f":"SUMIFS(Sheet1!S71_OriginalBudAmnt,Sheet1!S71_A2Code,$AC:$AC,Sheet1!S71_A5CapexCode,$AD:$AD)","v":0},{"$f":"SUMIFS(Sheet1!S71_AdjustmentBudAmnt,Sheet1!S71_A2Code,$AC:$AC,Sheet1!S71_A5CapexCode,$AD:$AD)","v":0},{"$f":"SUMIFS(Sheet1!S71_AdjustmentBudAmnt,Sheet1!S71_A2Code,$AC:$AC,Sheet1!S71_A5CapexCode,$AD:$AD)","v":0},{"$f":"SUMIFS(Sheet1!S71_PreAuditActual,Sheet1!S71_A2Code,_xlfn.SINGLE($AC:$AC),Sheet1!S71_A5CapexCode,_xlfn.SINGLE($AD:$AD))","v":0},{"$f":"SUMIFS(Sheet1!S71_ASBudgetAmount,Sheet1!S71_A2Code,$AC:$AC,Sheet1!S71_A5CapexCode,$AD:$AD)","v":0},{"$f":"SUMIFS(Sheet1!S71_OY1BudgetAmount,Sheet1!S71_A2Code,$AC:$AC,Sheet1!S71_A5CapexCode,$AD:$AD)","v":0},{"$f":"SUMIFS(Sheet1!S71_OY2BudgetAmount,Sheet1!S71_A2Code,$AC:$AC,Sheet1!S71_A5CapexCode,$AD:$AD)","v":0},null,null,null,null,null,null,null,null,null,null,null,null,null,null,null,null,"3300","CE"]
["Trading services",null,{"$f":"SUM(C58:C61)","v":0},{"$f":"SUM(D58:D61)","v":0},0,0,0,0,0,0,0,0,null,null,null,null,null,null,null,null,null,null,null,null,null,null,null,null,null,"CE"]
["Energy sources",null,{"$f":"SUMIFS(Sheet1!S71_PPPYearAmount,Sheet1!S71_A2Code,$AC:$AC,Sheet1!S71_A5CapexCode,$AD:$AD)","v":0},{"$f":"SUMIFS(Sheet1!S71_PPYearAmount,Sheet1!S71_A2Code,$AC:$AC,Sheet1!S71_A5CapexCode,$AD:$AD)","v":0},{"$f":"SUMIFS(Sheet1!S71_PYearAmount,Sheet1!S71_A2Code,$AC:$AC,Sheet1!S71_A5CapexCode,$AD:$AD)","v":0},{"$f":"SUMIFS(Sheet1!S71_OriginalBudAmnt,Sheet1!S71_A2Code,$AC:$AC,Sheet1!S71_A5CapexCode,$AD:$AD)","v":0},{"$f":"SUMIFS(Sheet1!S71_AdjustmentBudAmnt,Sheet1!S71_A2Code,$AC:$AC,Sheet1!S71_A5CapexCode,$AD:$AD)","v":0},{"$f":"SUMIFS(Sheet1!S71_AdjustmentBudAmnt,Sheet1!S71_A2Code,$AC:$AC,Sheet1!S71_A5CapexCode,$AD:$AD)","v":0},{"$f":"SUMIFS(Sheet1!S71_PreAuditActual,Sheet1!S71_A2Code,_xlfn.SINGLE($AC:$AC),Sheet1!S71_A5CapexCode,_xlfn.SINGLE($AD:$AD))","v":0},{"$f":"SUMIFS(Sheet1!S71_ASBudgetAmount,Sheet1!S71_A2Code,$AC:$AC,Sheet1!S71_A5CapexCode,$AD:$AD)","v":0},{"$f":"SUMIFS(Sheet1!S71_OY1BudgetAmount,Sheet1!S71_A2Code,$AC:$AC,Sheet1!S71_A5CapexCode,$AD:$AD)","v":0},{"$f":"SUMIFS(Sheet1!S71_OY2BudgetAmount,Sheet1!S71_A2Code,$AC:$AC,Sheet1!S71_A5CapexCode,$AD:$AD)","v":0},null,null,null,null,null,null,null,null,null,null,null,null,null,null,null,null,"4100","CE"]
["Water management",null,{"$f":"SUMIFS(Sheet1!S71_PPPYearAmount,Sheet1!S71_A2Code,$AC:$AC,Sheet1!S71_A5CapexCode,$AD:$AD)","v":0},{"$f":"SUMIFS(Sheet1!S71_PPYearAmount,Sheet1!S71_A2Code,$AC:$AC,Sheet1!S71_A5CapexCode,$AD:$AD)","v":0},{"$f":"SUMIFS(Sheet1!S71_PYearAmount,Sheet1!S71_A2Code,$AC:$AC,Sheet1!S71_A5CapexCode,$AD:$AD)","v":0},{"$f":"SUMIFS(Sheet1!S71_OriginalBudAmnt,Sheet1!S71_A2Code,$AC:$AC,Sheet1!S71_A5CapexCode,$AD:$AD)","v":0},{"$f":"SUMIFS(Sheet1!S71_AdjustmentBudAmnt,Sheet1!S71_A2Code,$AC:$AC,Sheet1!S71_A5CapexCode,$AD:$AD)","v":0},{"$f":"SUMIFS(Sheet1!S71_AdjustmentBudAmnt,Sheet1!S71_A2Code,$AC:$AC,Sheet1!S71_A5CapexCode,$AD:$AD)","v":0},{"$f":"SUMIFS(Sheet1!S71_PreAuditActual,Sheet1!S71_A2Code,_xlfn.SINGLE($AC:$AC),Sheet1!S71_A5CapexCode,_xlfn.SINGLE($AD:$AD))","v":0},{"$f":"SUMIFS(Sheet1!S71_ASBudgetAmount,Sheet1!S71_A2Code,$AC:$AC,Sheet1!S71_A5CapexCode,$AD:$AD)","v":0},{"$f":"SUMIFS(Sheet1!S71_OY1BudgetAmount,Sheet1!S71_A2Code,$AC:$AC,Sheet1!S71_A5CapexCode,$AD:$AD)","v":0},{"$f":"SUMIFS(Sheet1!S71_OY2BudgetAmount,Sheet1!S71_A2Code,$AC:$AC,Sheet1!S71_A5CapexCode,$AD:$AD)","v":0},null,null,null,null,null,null,null,null,null,null,null,null,null,null,null,null,"4200","CE"]
["Waste water management",null,{"$f":"SUMIFS(Sheet1!S71_PPPYearAmount,Sheet1!S71_A2Code,$AC:$AC,Sheet1!S71_A5CapexCode,$AD:$AD)","v":0},{"$f":"SUMIFS(Sheet1!S71_PPYearAmount,Sheet1!S71_A2Code,$AC:$AC,Sheet1!S71_A5CapexCode,$AD:$AD)","v":0},{"$f":"SUMIFS(Sheet1!S71_PYearAmount,Sheet1!S71_A2Code,$AC:$AC,Sheet1!S71_A5CapexCode,$AD:$AD)","v":0},{"$f":"SUMIFS(Sheet1!S71_OriginalBudAmnt,Sheet1!S71_A2Code,$AC:$AC,Sheet1!S71_A5CapexCode,$AD:$AD)","v":0},{"$f":"SUMIFS(Sheet1!S71_AdjustmentBudAmnt,Sheet1!S71_A2Code,$AC:$AC,Sheet1!S71_A5CapexCode,$AD:$AD)","v":0},{"$f":"SUMIFS(Sheet1!S71_AdjustmentBudAmnt,Sheet1!S71_A2Code,$AC:$AC,Sheet1!S71_A5CapexCode,$AD:$AD)","v":0},{"$f":"SUMIFS(Sheet1!S71_PreAuditActual,Sheet1!S71_A2Code,_xlfn.SINGLE($AC:$AC),Sheet1!S71_A5CapexCode,_xlfn.SINGLE($AD:$AD))","v":0},{"$f":"SUMIFS(Sheet1!S71_ASBudgetAmount,Sheet1!S71_A2Code,$AC:$AC,Sheet1!S71_A5CapexCode,$AD:$AD)","v":0},{"$f":"SUMIFS(Sheet1!S71_OY1BudgetAmount,Sheet1!S71_A2Code,$AC:$AC,Sheet1!S71_A5CapexCode,$AD:$AD)","v":0},{"$f":"SUMIFS(Sheet1!S71_OY2BudgetAmount,Sheet1!S71_A2Code,$AC:$AC,Sheet1!S71_A5CapexCode,$AD:$AD)","v":0},null,null,null,null,null,null,null,null,null,null,null,null,null,null,null,null,"4300","CE"]
["Waste management",null,{"$f":"SUMIFS(Sheet1!S71_PPPYearAmount,Sheet1!S71_A2Code,$AC:$AC,Sheet1!S71_A5CapexCode,$AD:$AD)","v":0},{"$f":"SUMIFS(Sheet1!S71_PPYearAmount,Sheet1!S71_A2Code,$AC:$AC,Sheet1!S71_A5CapexCode,$AD:$AD)","v":0},{"$f":"SUMIFS(Sheet1!S71_PYearAmount,Sheet1!S71_A2Code,$AC:$AC,Sheet1!S71_A5CapexCode,$AD:$AD)","v":0},{"$f":"SUMIFS(Sheet1!S71_OriginalBudAmnt,Sheet1!S71_A2Code,$AC:$AC,Sheet1!S71_A5CapexCode,$AD:$AD)","v":0},{"$f":"SUMIFS(Sheet1!S71_AdjustmentBudAmnt,Sheet1!S71_A2Code,$AC:$AC,Sheet1!S71_A5CapexCode,$AD:$AD)","v":0},{"$f":"SUMIFS(Sheet1!S71_AdjustmentBudAmnt,Sheet1!S71_A2Code,$AC:$AC,Sheet1!S71_A5CapexCode,$AD:$AD)","v":0},{"$f":"SUMIFS(Sheet1!S71_PreAuditActual,Sheet1!S71_A2Code,_xlfn.SINGLE($AC:$AC),Sheet1!S71_A5CapexCode,_xlfn.SINGLE($AD:$AD))","v":0},{"$f":"SUMIFS(Sheet1!S71_ASBudgetAmount,Sheet1!S71_A2Code,$AC:$AC,Sheet1!S71_A5CapexCode,$AD:$AD)","v":0},{"$f":"SUMIFS(Sheet1!S71_OY1BudgetAmount,Sheet1!S71_A2Code,$AC:$AC,Sheet1!S71_A5CapexCode,$AD:$AD)","v":0},{"$f":"SUMIFS(Sheet1!S71_OY2BudgetAmount,Sheet1!S71_A2Code,$AC:$AC,Sheet1!S71_A5CapexCode,$AD:$AD)","v":0},null,null,null,null,null,null,null,null,null,null,null,null,null,null,null,null,"4400","CE"]
["Other",null,{"$f":"SUMIFS(Sheet1!S71_PPPYearAmount,Sheet1!S71_A2Code,$AC:$AC,Sheet1!S71_A5CapexCode,$AD:$AD)","v":0},{"$f":"SUMIFS(Sheet1!S71_PPYearAmount,Sheet1!S71_A2Code,$AC:$AC,Sheet1!S71_A5CapexCode,$AD:$AD)","v":0},{"$f":"SUMIFS(Sheet1!S71_PYearAmount,Sheet1!S71_A2Code,$AC:$AC,Sheet1!S71_A5CapexCode,$AD:$AD)","v":0},{"$f":"SUMIFS(Sheet1!S71_OriginalBudAmnt,Sheet1!S71_A2Code,$AC:$AC,Sheet1!S71_A5CapexCode,$AD:$AD)","v":0},{"$f":"SUMIFS(Sheet1!S71_AdjustmentBudAmnt,Sheet1!S71_A2Code,$AC:$AC,Sheet1!S71_A5CapexCode,$AD:$AD)","v":0},{"$f":"SUMIFS(Sheet1!S71_AdjustmentBudAmnt,Sheet1!S71_A2Code,$AC:$AC,Sheet1!S71_A5CapexCode,$AD:$AD)","v":0},{"$f":"SUMIFS(Sheet1!S71_PreAuditActual,Sheet1!S71_A2Code,_xlfn.SINGLE($AC:$AC),Sheet1!S71_A5CapexCode,_xlfn.SINGLE($AD:$AD))","v":0},{"$f":"SUMIFS(Sheet1!S71_ASBudgetAmount,Sheet1!S71_A2Code,$AC:$AC,Sheet1!S71_A5CapexCode,$AD:$AD)","v":0},{"$f":"SUMIFS(Sheet1!S71_OY1BudgetAmount,Sheet1!S71_A2Code,$AC:$AC,Sheet1!S71_A5CapexCode,$AD:$AD)","v":0},{"$f":"SUMIFS(Sheet1!S71_OY2BudgetAmount,Sheet1!S71_A2Code,$AC:$AC,Sheet1!S71_A5CapexCode,$AD:$AD)","v":0},null,null,null,null,null,null,null,null,null,null,null,null,null,null,null,null,"5000","CE"]
["Total Capital Expenditure - Functional",3,{"$f":"C43+C47+C53+C57+C62","v":0},{"$f":"D43+D47+D53+D57+D62","v":0},318484,404771,328000,328000,0,486000,21958,{"$f":"L43+L47+L53+L57+L62","v":23144}]
[]
["Funded by:"]
["National Government",null,{"$f":"SUMIFS(Sheet1!S71_PPPYearAmount,Sheet1!S71_A5GCode,$AC:$AC,Sheet1!S71_A5CapexCode,$AD:$AD)","v":0},{"$f":"SUMIFS(Sheet1!S71_PPYearAmount,Sheet1!S71_A5GCode,$AC:$AC,Sheet1!S71_A5CapexCode,$AD:$AD)","v":0},{"$f":"SUMIFS(Sheet1!S71_PYearAmount,Sheet1!S71_A5GCode,$AC:$AC,Sheet1!S71_A5CapexCode,$AD:$AD)","v":0},{"$f":"SUMIFS(Sheet1!S71_OriginalBudAmnt,Sheet1!S71_A5GCode,$AC:$AC,Sheet1!S71_A5CapexCode,$AD:$AD)","v":0},{"$f":"SUMIFS(Sheet1!S71_AdjustmentBudAmnt,Sheet1!S71_A5GCode,$AC:$AC,Sheet1!S71_A5CapexCode,$AD:$AD)","v":0},{"$f":"SUMIFS(Sheet1!S71_AdjustmentBudAmnt,Sheet1!S71_A5GCode,$AC:$AC,Sheet1!S71_A5CapexCode,$AD:$AD)","v":0},{"$f":"SUMIFS(Sheet1!S71_PreAuditActual,Sheet1!S71_A5GCode,_xlfn.SINGLE($AC:$AC),Sheet1!S71_A5CapexCode,_xlfn.SINGLE($AD:$AD))","v":0},{"$f":"SUMIFS(Sheet1!S71_ASBudgetAmount,Sheet1!S71_A5GCode,$AC:$AC,Sheet1!S71_A5CapexCode,$AD:$AD)","v":0},{"$f":"SUMIFS(Sheet1!S71_OY1BudgetAmount,Sheet1!S71_A5GCode,$AC:$AC,Sheet1!S71_A5CapexCode,$AD:$AD)","v":0},{"$f":"SUMIFS(Sheet1!S71_OY2BudgetAmount,Sheet1!S71_A5GCode,$AC:$AC,Sheet1!S71_A5CapexCode,$AD:$AD)","v":0},null,null,null,null,null,null,null,null,null,null,null,null,null,null,null,null,"2010","CE"]
["Provincial Government",null,{"$f":"SUMIFS(Sheet1!S71_PPPYearAmount,Sheet1!S71_A5GCode,$AC:$AC,Sheet1!S71_A5CapexCode,$AD:$AD)","v":0},{"$f":"SUMIFS(Sheet1!S71_PPYearAmount,Sheet1!S71_A5GCode,$AC:$AC,Sheet1!S71_A5CapexCode,$AD:$AD)","v":0},{"$f":"SUMIFS(Sheet1!S71_PYearAmount,Sheet1!S71_A5GCode,$AC:$AC,Sheet1!S71_A5CapexCode,$AD:$AD)","v":0},{"$f":"SUMIFS(Sheet1!S71_OriginalBudAmnt,Sheet1!S71_A5GCode,$AC:$AC,Sheet1!S71_A5CapexCode,$AD:$AD)","v":0},{"$f":"SUMIFS(Sheet1!S71_AdjustmentBudAmnt,Sheet1!S71_A5GCode,$AC:$AC,Sheet1!S71_A5CapexCode,$AD:$AD)","v":0},{"$f":"SUMIFS(Sheet1!S71_AdjustmentBudAmnt,Sheet1!S71_A5GCode,$AC:$AC,Sheet1!S71_A5CapexCode,$AD:$AD)","v":0},{"$f":"SUMIFS(Sheet1!S71_PreAuditActual,Sheet1!S71_A5GCode,_xlfn.SINGLE($AC:$AC),Sheet1!S71_A5CapexCode,_xlfn.SINGLE($AD:$AD))","v":0},{"$f":"SUMIFS(Sheet1!S71_ASBudgetAmount,Sheet1!S71_A5GCode,$AC:$AC,Sheet1!S71_A5CapexCode,$AD:$AD)","v":0},{"$f":"SUMIFS(Sheet1!S71_OY1BudgetAmount,Sheet1!S71_A5GCode,$AC:$AC,Sheet1!S71_A5CapexCode,$AD:$AD)","v":0},{"$f":"SUMIFS(Sheet1!S71_OY2BudgetAmount,Sheet1!S71_A5GCode,$AC:$AC,Sheet1!S71_A5CapexCode,$AD:$AD)","v":0},null,null,null,null,null,null,null,null,null,null,null,null,null,null,null,null,"2020","CE"]
["District Municipality",null,{"$f":"SUMIFS(Sheet1!S71_PPPYearAmount,Sheet1!S71_A5GCode,$AC:$AC,Sheet1!S71_A5CapexCode,$AD:$AD)","v":0},{"$f":"SUMIFS(Sheet1!S71_PPYearAmount,Sheet1!S71_A5GCode,$AC:$AC,Sheet1!S71_A5CapexCode,$AD:$AD)","v":0},{"$f":"SUMIFS(Sheet1!S71_PYearAmount,Sheet1!S71_A5GCode,$AC:$AC,Sheet1!S71_A5CapexCode,$AD:$AD)","v":0},{"$f":"SUMIFS(Sheet1!S71_OriginalBudAmnt,Sheet1!S71_A5GCode,$AC:$AC,Sheet1!S71_A5CapexCode,$AD:$AD)","v":0},{"$f":"SUMIFS(Sheet1!S71_AdjustmentBudAmnt,Sheet1!S71_A5GCode,$AC:$AC,Sheet1!S71_A5CapexCode,$AD:$AD)","v":0},{"$f":"SUMIFS(Sheet1!S71_AdjustmentBudAmnt,Sheet1!S71_A5GCode,$AC:$AC,Sheet1!S71_A5CapexCode,$AD:$AD)","v":0},{"$f":"SUMIFS(Sheet1!S71_PreAuditActual,Sheet1!S71_A5GCode,_xlfn.SINGLE($AC:$AC),Sheet1!S71_A5CapexCode,_xlfn.SINGLE($AD:$AD))","v":0},{"$f":"SUMIFS(Sheet1!S71_ASBudgetAmount,Sheet1!S71_A5GCode,$AC:$AC,Sheet1!S71_A5CapexCode,$AD:$AD)","v":0},{"$f":"SUMIFS(Sheet1!S71_OY1BudgetAmount,Sheet1!S71_A5GCode,$AC:$AC,Sheet1!S71_A5CapexCode,$AD:$AD)","v":0},{"$f":"SUMIFS(Sheet1!S71_OY2BudgetAmount,Sheet1!S71_A5GCode,$AC:$AC,Sheet1!S71_A5CapexCode,$AD:$AD)","v":0},null,null,null,null,null,null,null,null,null,null,null,null,null,null,null,null,"2030","CE"]
[{"$f":"'A4-FinPerf RE'!A39","v":"Transfers and subsidies - capital (monetary allocations) (National / Provincial Departmental Agencies, Households, Non-profit Institutions, Private Enterprises, Public Corporatons, Higher Educational Institutions)"},null,{"$f":"SUMIFS(Sheet1!S71_PPPYearAmount,Sheet1!S71_A5GCode,$AC:$AC,Sheet1!S71_A5CapexCode,$AD:$AD)","v":0},{"$f":"SUMIFS(Sheet1!S71_PPYearAmount,Sheet1!S71_A5GCode,$AC:$AC,Sheet1!S71_A5CapexCode,$AD:$AD)","v":0},{"$f":"SUMIFS(Sheet1!S71_PYearAmount,Sheet1!S71_A5GCode,$AC:$AC,Sheet1!S71_A5CapexCode,$AD:$AD)","v":0},{"$f":"SUMIFS(Sheet1!S71_OriginalBudAmnt,Sheet1!S71_A5GCode,$AC:$AC,Sheet1!S71_A5CapexCode,$AD:$AD)","v":0},{"$f":"SUMIFS(Sheet1!S71_AdjustmentBudAmnt,Sheet1!S71_A5GCode,$AC:$AC,Sheet1!S71_A5CapexCode,$AD:$AD)","v":0},{"$f":"SUMIFS(Sheet1!S71_AdjustmentBudAmnt,Sheet1!S71_A5GCode,$AC:$AC,Sheet1!S71_A5CapexCode,$AD:$AD)","v":0},{"$f":"SUMIFS(Sheet1!S71_PreAuditActual,Sheet1!S71_A5GCode,_xlfn.SINGLE($AC:$AC),Sheet1!S71_A5CapexCode,_xlfn.SINGLE($AD:$AD))","v":0},{"$f":"SUMIFS(Sheet1!S71_ASBudgetAmount,Sheet1!S71_A5GCode,$AC:$AC,Sheet1!S71_A5CapexCode,$AD:$AD)","v":0},{"$f":"SUMIFS(Sheet1!S71_OY1BudgetAmount,Sheet1!S71_A5GCode,$AC:$AC,Sheet1!S71_A5CapexCode,$AD:$AD)","v":0},{"$f":"SUMIFS(Sheet1!S71_OY2BudgetAmount,Sheet1!S71_A5GCode,$AC:$AC,Sheet1!S71_A5CapexCode,$AD:$AD)","v":0},null,null,null,null,null,null,null,null,null,null,null,null,null,null,null,null,"2040","CE"]
["Transfers recognised - capital",4,{"$f":"SUM(C66:C69)","v":0},0,0,0,0,0,0,0,0,0]
[]
["Borrowing",6,{"$f":"SUMIFS(Sheet1!S71_PPPYearAmount,Sheet1!S71_A5GCode,$AC:$AC,Sheet1!S71_A5CapexCode,$AD:$AD)","v":0},{"$f":"SUMIFS(Sheet1!S71_PPYearAmount,Sheet1!S71_A5GCode,$AC:$AC,Sheet1!S71_A5CapexCode,$AD:$AD)","v":0},{"$f":"SUMIFS(Sheet1!S71_PYearAmount,Sheet1!S71_A5GCode,$AC:$AC,Sheet1!S71_A5CapexCode,$AD:$AD)","v":0},{"$f":"SUMIFS(Sheet1!S71_OriginalBudAmnt,Sheet1!S71_A5GCode,$AC:$AC,Sheet1!S71_A5CapexCode,$AD:$AD)","v":0},{"$f":"SUMIFS(Sheet1!S71_AdjustmentBudAmnt,Sheet1!S71_A5GCode,$AC:$AC,Sheet1!S71_A5CapexCode,$AD:$AD)","v":0},{"$f":"SUMIFS(Sheet1!S71_AdjustmentBudAmnt,Sheet1!S71_A5GCode,$AC:$AC,Sheet1!S71_A5CapexCode,$AD:$AD)","v":0},{"$f":"SUMIFS(Sheet1!S71_PreAuditActual,Sheet1!S71_A5GCode,_xlfn.SINGLE($AC:$AC),Sheet1!S71_A5CapexCode,_xlfn.SINGLE($AD:$AD))","v":0},{"$f":"SUMIFS(Sheet1!S71_ASBudgetAmount,Sheet1!S71_A5GCode,$AC:$AC,Sheet1!S71_A5CapexCode,$AD:$AD)","v":0},{"$f":"SUMIFS(Sheet1!S71_OY1BudgetAmount,Sheet1!S71_A5GCode,$AC:$AC,Sheet1!S71_A5CapexCode,$AD:$AD)","v":0},{"$f":"SUMIFS(Sheet1!S71_OY2BudgetAmount,Sheet1!S71_A5GCode,$AC:$AC,Sheet1!S71_A5CapexCode,$AD:$AD)","v":0},null,null,null,null,null,null,null,null,null,null,null,null,null,null,null,null,"2070","CE"]
["Internally generated funds",null,{"$f":"SUMIFS(Sheet1!S71_PPPYearAmount,Sheet1!S71_A5GCode,$AC:$AC,Sheet1!S71_A5CapexCode,$AD:$AD)","v":0},{"$f":"SUMIFS(Sheet1!S71_PPYearAmount,Sheet1!S71_A5GCode,$AC:$AC,Sheet1!S71_A5CapexCode,$AD:$AD)","v":0},{"$f":"SUMIFS(Sheet1!S71_PYearAmount,Sheet1!S71_A5GCode,$AC:$AC,Sheet1!S71_A5CapexCode,$AD:$AD)","v":318484},{"$f":"SUMIFS(Sheet1!S71_OriginalBudAmnt,Sheet1!S71_A5GCode,$AC:$AC,Sheet1!S71_A5CapexCode,$AD:$AD)","v":404771},{"$f":"SUMIFS(Sheet1!S71_AdjustmentBudAmnt,Sheet1!S71_A5GCode,$AC:$AC,Sheet1!S71_A5CapexCode,$AD:$AD)","v":328000},{"$f":"SUMIFS(Sheet1!S71_AdjustmentBudAmnt,Sheet1!S71_A5GCode,$AC:$AC,Sheet1!S71_A5CapexCode,$AD:$AD)","v":328000},{"$f":"SUMIFS(Sheet1!S71_PreAuditActual,Sheet1!S71_A5GCode,_xlfn.SINGLE($AC:$AC),Sheet1!S71_A5CapexCode,_xlfn.SINGLE($AD:$AD))","v":0},{"$f":"SUMIFS(Sheet1!S71_ASBudgetAmount,Sheet1!S71_A5GCode,$AC:$AC,Sheet1!S71_A5CapexCode,$AD:$AD)","v":486000},{"$f":"SUMIFS(Sheet1!S71_OY1BudgetAmount,Sheet1!S71_A5GCode,$AC:$AC,Sheet1!S71_A5CapexCode,$AD:$AD)","v":21958},{"$f":"SUMIFS(Sheet1!S71_OY2BudgetAmount,Sheet1!S71_A5GCode,$AC:$AC,Sheet1!S71_A5CapexCode,$AD:$AD)","v":23144},null,null,null,null,null,null,null,null,null,null,null,null,null,null,null,null,"2080","CE"]
["Total Capital Funding",7,{"$f":"+C70+C72+C73","v":0},{"$f":"+D70+D72+D73","v":0},318484,404771,328000,328000,0,486000,21958,23144]
[{"$f":"head27a","v":"References"}]
["1. Municipalities may choose to appropriate for capital expenditure for three years or for one year (if one year appropriation projected expenditure required for yr2 and yr3)."]
["2. Include capital component of PPP unitary payment. Note that capital transfers are only appropriated to municipalities for the budget year"]
["3. Capital expenditure by functional classification must reconcile to the appropriations by vote"]
["4. Must reconcile to supporting table SA20 and to Budgeted Financial Performance (revenue and expenditure)"]
[]
["6. Include finance leases and PPP capital funding component of unitary payment - total borrowing/repayments to reconcile to changes in Table SA17"]
["7. Total Capital Funding must balance with Total Capital Expenditure"]
["8. Include any capitalised interest (MFMA section 46) as part of relevant capital budget"]
[]
["check balance",null,{"$f":"IF((C63-C74)=0,0,\"Unbalanced\")","v":0},{"$f":"IF((D63-D74)=0,0,\"Unbalanced\")","v":0},0,0,0,0,0,0,0,0]

{"sheet":"A5A","index":23,"n_rows":341,"n_cols":30,"rows_kept":341,"cut":false,"hidden":false,"merged":[[1,5,1,8],[1,9,1,11],[1,13,1,16],[1,17,1,20],[1,21,1,23]]}
[{"$f":"muni&\" - \"&Approve5","v":"DC16 Xhariep - Table A5 Budgeted Capital Expenditure by vote, functional classification and funding"}]
[{"$f":"Vdesc","v":"Vote Description"},{"$f":"head27","v":"Ref"},{"$f":"head1b","v":"2017/18"},{"$f":"head1A","v":"2018/19"},{"$f":"Head1","v":"2019/20"},{"$f":"Head2","v":"Current Year 2020/21"},null,null,null,{"$f":"Head3","v":"2021/22 Medium Term Revenue & Expenditure Framework"},null,null,null,{"$f":"\"Multi-year appropriation for \"&Head9&\n\"\n in the \"&Head2A&\" Annual Budget\"","v":"Multi-year appropriation for Budget Year 2021/22\n in the 2020/21 Annual Budget"},null,null,null,{"$f":"\"Multi-year appropriation for \"&RIGHT(Head10,7)&\n\"\n in the \"&Head2A&\" Annual Budget\"","v":"Multi-year appropriation for 2022/23\n in the 2020/21 Annual Budget"},null,null,null,"New multi-year appropriations \n(funds for new and existing projects) "]
["R thousand",1,{"$f":"Head5","v":"Audited Outcome"},{"$f":"Head5","v":"Audited Outcome"},{"$f":"Head5","v":"Audited Outcome"},{"$f":"Head6","v":"Original Budget"},{"$f":"Head7","v":"Adjusted Budget"},{"$f":"Head8","v":"Full Year Forecast"},{"$f":"Head5b","v":"Pre-audit outcome"},{"$f":"Head9","v":"Budget Year 2021/22"},{"$f":"Head10","v":"Budget Year +1 2022/23"},{"$f":"Head11","v":"Budget Year +2 2023/24"},null,{"$f":"\"Appropriation for \"&RIGHT(Head9,7)","v":"Appropriation for 2021/22"},{"$f":"\"Adjustments in \"&Head2A","v":"Adjustments in 2020/21"},{"$f":"\"Downward adjustments for \"&RIGHT(Head9,7)","v":"Downward adjustments for 2021/22"},"Appropriation carried forward",{"$f":"\"Appropriation for \"&RIGHT(Head9,7)","v":"Appropriation for 2021/22"},{"$f":"\"Adjustments in \"&Head2A","v":"Adjustments in 2020/21"},{"$f":"\"Downward adjustments for \"&RIGHT(Head9,7)","v":"Downward adjustments for 2021/22"},"Appropriation carried forward",{"$f":"Head9","v":"Budget Year 2021/22"},{"$f":"Head10","v":"Budget Year +1 2022/23"},{"$f":"Head11","v":"Budget Year +2 2023/24"}]
["Capital expenditure - Municipal Vote"]
["Multi-year expenditure appropriation",2]
[{"$f":"'Org structure'!A2","v":"Vote 1 - Executive and Council"},null,{"$f":"SUM(C7:C16)","v":0},{"$f":"SUM(D7:D16)","v":0},0,0,0,0,{"$f":"SUM(I7:I16)","v":0},0,0,0,null,{"$f":"SUM(N7:N16)","v":0},0,0,0,0,0,0,0,{"$f":"SUM(V7:V16)","v":0},{"$f":"SUM(W7:W16)","v":0},{"$f":"SUM(X7:X16)","v":0}]
[{"$f":"IF(RIGHT('Org structure'!D3,18)<>\"[Name of sub-vote]\",'Org structure'!D3,\"\")","v":"1.1 - Mayor and Council"},null,null,null,null,null,null,null,null,{"$f":"Q7+V7","v":0},{"$f":"U7+W7","v":0},{"$f":"X7","v":0},null,null,null,null,{"$f":"SUM(N7:P7)","v":0},null,null,null,{"$f":"SUM(R7:T7)","v":0},null,null,null,null,null,null,null,11,"CE"]
[{"$f":"IF(RIGHT('Org structure'!D4,18)<>\"[Name of sub-vote]\",'Org structure'!D4,\"\")","v":"1.2 - Municipal Manager, Town Secretary and Chief Executive"},null,null,null,null,null,null,null,null,{"$f":"Q8+V8","v":0},{"$f":"U8+W8","v":0},{"$f":"X8","v":0},null,null,null,null,{"$f":"SUM(N8:P8)","v":0},null,null,null,{"$f":"SUM(R8:T8)","v":0},null,null,null,null,null,null,null,12,"CE"]
[{"$f":"IF(RIGHT('Org structure'!D5,18)<>\"[Name of sub-vote]\",'Org structure'!D5,\"\")","v":""},null,null,null,null,null,null,null,null,{"$f":"Q9+V9","v":0},{"$f":"U9+W9","v":0},0,null,null,null,null,0,null,null,null,0,null,null,null,null,null,null,null,13,"CE"]
[{"$f":"IF(RIGHT('Org structure'!D6,18)<>\"[Name of sub-vote]\",'Org structure'!D6,\"\")","v":""},null,null,null,null,null,null,null,null,0,0,0,null,null,null,null,0,null,null,null,0,null,null,null,null,null,null,null,14,"CE"]
[{"$f":"IF(RIGHT('Org structure'!D7,18)<>\"[Name of sub-vote]\",'Org structure'!D7,\"\")","v":""},null,null,null,null,null,null,null,null,0,0,{"$f":"X11","v":0},null,null,null,null,0,null,null,null,0,null,null,null,null,null,null,null,15,"CE"]
[{"$f":"IF(RIGHT('Org structure'!D8,18)<>\"[Name of sub-vote]\",'Org structure'!D8,\"\")","v":""},null,null,null,null,null,null,null,null,0,0,0,null,null,null,null,0,null,null,null,0,null,null,null,null,null,null,null,16,"CE"]
[{"$f":"IF(RIGHT('Org structure'!D9,18)<>\"[Name of sub-vote]\",'Org structure'!D9,\"\")","v":""},null,null,null,null,null,null,null,null,0,0,0,null,null,null,null,0,null,null,null,0,null,null,null,null,null,null,null,17,"CE"]
[{"$f":"IF(RIGHT('Org structure'!D10,18)<>\"[Name of sub-vote]\",'Org structure'!D10,\"\")","v":""},null,null,null,null,null,null,null,null,0,0,0,null,null,null,null,0,null,null,null,0,null,null,null,null,null,null,null,18,"CE"]
[{"$f":"IF(RIGHT('Org structure'!D11,18)<>\"[Name of sub-vote]\",'Org structure'!D11,\"\")","v":""},null,null,null,null,null,null,null,null,0,0,0,null,null,null,null,0,null,null,null,0,null,null,null,null,null,null,null,19,"CE"]
[{"$f":"IF(RIGHT('Org structure'!D12,18)<>\"[Name of sub-vote]\",'Org structure'!D12,\"\")","v":""},null,null,null,null,null,null,null,null,0,0,0,null,null,null,null,0,null,null,null,0,null,null,null,null,null,null,null,110,"CE"]
[{"$f":"'Org structure'!A3","v":"Vote 2 - Finance and Administration"},null,{"$f":"SUM(C18:C27)","v":0},{"$f":"SUM(D18:D27)","v":0},0,0,0,0,{"$f":"SUM(I18:I27)","v":0},0,0,0,null,{"$f":"SUM(N18:N27)","v":0},0,0,0,0,0,0,0,0,0,0]
[{"$f":"IF(RIGHT('Org structure'!D14,18)<>\"[Name of sub-vote]\",'Org structure'!D14,\"\")","v":"2.1 - Administrative and Corporate Support"},null,null,null,null,null,null,null,null,{"$f":"Q18+V18","v":0},{"$f":"U18+W18","v":0},{"$f":"X18","v":0},null,null,null,null,{"$f":"SUM(N18:P18)","v":0},null,null,null,0,null,null,null,null,null,null,null,21,"CE"]
[{"$f":"IF(RIGHT('Org structure'!D15,18)<>\"[Name of sub-vote]\",'Org structure'!D15,\"\")","v":"2.2 - Finance"},null,null,null,null,null,null,null,null,{"$f":"Q19+V19","v":0},{"$f":"U19+W19","v":0},0,null,null,null,null,0,null,null,null,0,null,null,null,null,null,null,null,22,"CE"]
[{"$f":"IF(RIGHT('Org structure'!D16,18)<>\"[Name of sub-vote]\",'Org structure'!D16,\"\")","v":"2.3 - Human Resources"},null,null,null,null,null,null,null,null,0,0,0,null,null,null,null,0,null,null,null,0,null,null,null,null,null,null,null,23,"CE"]
[{"$f":"IF(RIGHT('Org structure'!D17,18)<>\"[Name of sub-vote]\",'Org structure'!D17,\"\")","v":""},null,null,null,null,null,null,null,null,0,{"$f":"U21+W21","v":0},0,null,null,null,null,0,null,null,null,0,null,null,null,null,null,null,null,24,"CE"]
[{"$f":"IF(RIGHT('Org structure'!D18,18)<>\"[Name of sub-vote]\",'Org structure'!D18,\"\")","v":""},null,null,null,null,null,null,null,null,0,0,0,null,null,null,null,0,null,null,null,0,null,null,null,null,null,null,null,25,"CE"]
[{"$f":"IF(RIGHT('Org structure'!D19,18)<>\"[Name of sub-vote]\",'Org structure'!D19,\"\")","v":""},null,null,null,null,null,null,null,null,0,0,0,null,null,null,null,0,null,null,null,0,null,null,null,null,null,null,null,26,"CE"]
[{"$f":"IF(RIGHT('Org structure'!D20,18)<>\"[Name of sub-vote]\",'Org structure'!D20,\"\")","v":""},null,null,null,null,null,null,null,null,0,0,0,null,null,null,null,0,null,null,null,0,null,null,null,null,null,null,null,27,"CE"]
[{"$f":"IF(RIGHT('Org structure'!D21,18)<>\"[Name of sub-vote]\",'Org structure'!D21,\"\")","v":""},null,null,null,null,null,null,null,null,0,0,0,null,null,null,null,0,null,null,null,0,null,null,null,null,null,null,null,28,"CE"]
[{"$f":"IF(RIGHT('Org structure'!D22,18)<>\"[Name of sub-vote]\",'Org structure'!D22,\"\")","v":""},null,null,null,null,null,null,null,null,0,0,0,null,null,null,null,0,null,null,null,0,null,null,null,null,null,null,null,29,"CE"]
[{"$f":"IF(RIGHT('Org structure'!D23,18)<>\"[Name of sub-vote]\",'Org structure'!D23,\"\")","v":""},null,null,null,null,null,null,null,null,0,0,0,null,null,null,null,0,null,null,null,0,null,null,null,null,null,null,null,210,"CE"]
[{"$f":"'Org structure'!A4","v":"Vote 3 - Planning and Development"},null,{"$f":"SUM(C29:C38)","v":0},{"$f":"SUM(D29:D38)","v":0},0,0,0,0,{"$f":"SUM(I29:I38)","v":0},0,0,0,null,{"$f":"SUM(N29:N38)","v":0},0,0,0,0,0,0,0,0,0,0]
[{"$f":"IF(RIGHT('Org structure'!D25,18)<>\"[Name of sub-vote]\",'Org structure'!D25,\"\")","v":"3.1 - Corporate Wide Strategic Planning (IDPs, LEDs)"},null,null,null,null,null,null,null,null,{"$f":"Q29+V29","v":0},{"$f":"U29+W29","v":0},{"$f":"X29","v":0},null,null,null,null,{"$f":"SUM(N29:P29)","v":0},null,null,null,0,null,null,null,null,null,null,null,31,"CE"]
[{"$f":"IF(RIGHT('Org structure'!D26,18)<>\"[Name of sub-vote]\",'Org structure'!D26,\"\")","v":"3.2 - Development Facilitation"},null,null,null,null,null,null,null,null,0,0,0,null,null,null,null,0,null,null,null,0,null,null,null,null,null,null,null,32,"CE"]
[{"$f":"IF(RIGHT('Org structure'!D27,18)<>\"[Name of sub-vote]\",'Org structure'!D27,\"\")","v":"3.3 - Economic Development/Planning"},null,null,null,null,null,null,null,null,0,0,0,null,null,null,null,0,null,null,null,{"$f":"SUM(R31:T31)","v":0},null,null,null,null,null,null,null,33,"CE"]
[{"$f":"IF(RIGHT('Org structure'!D28,18)<>\"[Name of sub-vote]\",'Org structure'!D28,\"\")","v":"3.4 - Billboards"},null,null,null,null,null,null,null,null,0,{"$f":"U32+W32","v":0},0,null,null,null,null,0,null,null,null,0,null,null,null,null,null,null,null,34,"CE"]
[{"$f":"IF(RIGHT('Org structure'!D29,18)<>\"[Name of sub-vote]\",'Org structure'!D29,\"\")","v":""},null,null,null,null,null,null,null,null,{"$f":"Q33+V33","v":0},0,0,null,null,null,null,0,null,null,null,0,null,null,null,null,null,null,null,35,"CE"]
[{"$f":"IF(RIGHT('Org structure'!D30,18)<>\"[Name of sub-vote]\",'Org structure'!D30,\"\")","v":""},null,null,null,null,null,null,null,null,0,0,0,null,null,null,null,0,null,null,null,0,null,null,null,null,null,null,null,36,"CE"]
[{"$f":"IF(RIGHT('Org structure'!D31,18)<>\"[Name of sub-vote]\",'Org structure'!D31,\"\")","v":""},null,null,null,null,null,null,null,null,0,0,0,null,null,null,null,0,null,null,null,0,null,null,null,null,null,null,null,37,"CE"]
[{"$f":"IF(RIGHT('Org structure'!D32,18)<>\"[Name of sub-vote]\",'Org structure'!D32,\"\")","v":""},null,null,null,null,null,null,null,null,0,0,0,null,null,null,null,0,null,null,null,0,null,null,null,null,null,null,null,38,"CE"]
[{"$f":"IF(RIGHT('Org structure'!D33,18)<>\"[Name of sub-vote]\",'Org structure'!D33,\"\")","v":""},null,null,null,null,null,null,null,null,0,0,0,null,null,null,null,0,null,null,null,0,null,null,null,null,null,null,null,39,"CE"]
[{"$f":"IF(RIGHT('Org structure'!D34,18)<>\"[Name of sub-vote]\",'Org structure'!D34,\"\")","v":""},null,null,null,null,null,null,null,null,0,0,0,null,null,null,null,0,null,null,null,0,null,null,null,null,null,null,null,310,"CE"]
[{"$f":"'Org structure'!A5","v":"Vote 4 - Community and Social Services"},null,{"$f":"SUM(C40:C49)","v":0},{"$f":"SUM(D40:D49)","v":0},0,0,0,0,{"$f":"SUM(I40:I49)","v":0},0,0,0,null,{"$f":"SUM(N40:N49)","v":0},0,0,0,0,0,0,0,0,0,0]
[{"$f":"IF(RIGHT('Org structure'!D36,18)<>\"[Name of sub-vote]\",'Org structure'!D36,\"\")","v":"4.1 - Disaster Management"},null,null,null,null,null,null,null,null,{"$f":"Q40+V40","v":0},{"$f":"U40+W40","v":0},{"$f":"X40","v":0},null,null,null,null,{"$f":"SUM(N40:P40)","v":0},null,null,null,0,null,null,null,null,null,null,null,41,"CE"]
[{"$f":"IF(RIGHT('Org structure'!D37,18)<>\"[Name of sub-vote]\",'Org structure'!D37,\"\")","v":""},null,null,null,null,null,null,null,null,0,0,0,null,null,null,null,0,null,null,null,0,null,null,null,null,null,null,null,42,"CE"]
[{"$f":"IF(RIGHT('Org structure'!D38,18)<>\"[Name of sub-vote]\",'Org structure'!D38,\"\")","v":""},null,null,null,null,null,null,null,null,0,0,0,null,null,null,null,0,null,null,null,0,null,null,null,null,null,null,null,43,"CE"]
[{"$f":"IF(RIGHT('Org structure'!D39,18)<>\"[Name of sub-vote]\",'Org structure'!D39,\"\")","v":""},null,null,null,null,null,null,null,null,0,0,0,null,null,null,null,0,null,null,null,0,null,null,null,null,null,null,null,44,"CE"]
[{"$f":"IF(RIGHT('Org structure'!D40,18)<>\"[Name of sub-vote]\",'Org structure'!D40,\"\")","v":""},null,null,null,null,null,null,null,null,0,0,0,null,null,null,null,0,null,null,null,0,null,null,null,null,null,null,null,45,"CE"]
[{"$f":"IF(RIGHT('Org structure'!D41,18)<>\"[Name of sub-vote]\",'Org structure'!D41,\"\")","v":""},null,null,null,null,null,null,null,null,0,0,0,null,null,null,null,0,null,null,null,0,null,null,null,null,null,null,null,46,"CE"]
[{"$f":"IF(RIGHT('Org structure'!D42,18)<>\"[Name of sub-vote]\",'Org structure'!D42,\"\")","v":""},null,null,null,null,null,null,null,null,0,0,0,null,null,null,null,0,null,null,null,0,null,null,null,null,null,null,null,47,"CE"]
[{"$f":"IF(RIGHT('Org structure'!D43,18)<>\"[Name of sub-vote]\",'Org structure'!D43,\"\")","v":""},null,null,null,null,null,null,null,null,0,0,0,null,null,null,null,0,null,null,null,0,null,null,null,null,null,null,null,48,"CE"]
[{"$f":"IF(RIGHT('Org structure'!D44,18)<>\"[Name of sub-vote]\",'Org structure'!D44,\"\")","v":""},null,null,null,null,null,null,null,null,0,0,0,null,null,null,null,0,null,null,null,0,null,null,null,null,null,null,null,49,"CE"]
[{"$f":"IF(RIGHT('Org structure'!D45,18)<>\"[Name of sub-vote]\",'Org structure'!D45,\"\")","v":""},null,null,null,null,null,null,null,null,0,0,0,null,null,null,null,0,null,null,null,0,null,null,null,null,null,null,null,410,"CE"]
[{"$f":"'Org structure'!A6","v":"Vote 5 - Environmental Protection"},null,{"$f":"SUM(C51:C60)","v":0},{"$f":"SUM(D51:D60)","v":0},0,0,0,0,{"$f":"SUM(I51:I60)","v":0},0,0,0,null,{"$f":"SUM(N51:N60)","v":0},0,0,0,0,0,0,0,0,0,0]
[{"$f":"IF(RIGHT('Org structure'!D47,18)<>\"[Name of sub-vote]\",'Org structure'!D47,\"\")","v":"5.1 - Biodiversity and Landscape"},null,null,null,null,null,null,null,null,{"$f":"Q51+V51","v":0},{"$f":"U51+W51","v":0},{"$f":"X51","v":0},null,null,null,null,{"$f":"SUM(N51:P51)","v":0},null,null,null,0,null,null,null,null,null,null,null,51,"CE"]
[{"$f":"IF(RIGHT('Org structure'!D48,18)<>\"[Name of sub-vote]\",'Org structure'!D48,\"\")","v":""},null,null,null,null,null,null,null,null,0,0,0,null,null,null,null,0,null,null,null,0,null,null,null,null,null,null,null,52,"CE"]
[{"$f":"IF(RIGHT('Org structure'!D49,18)<>\"[Name of sub-vote]\",'Org structure'!D49,\"\")","v":""},null,null,null,null,null,null,null,null,0,0,0,null,null,null,null,0,null,null,null,0,null,null,null,null,null,null,null,53,"CE"]
[{"$f":"IF(RIGHT('Org structure'!D50,18)<>\"[Name of sub-vote]\",'Org structure'!D50,\"\")","v":""},null,null,null,null,null,null,null,null,0,0,0,null,null,null,null,0,null,null,null,0,null,null,null,null,null,null,null,54,"CE"]
[{"$f":"IF(RIGHT('Org structure'!D51,18)<>\"[Name of sub-vote]\",'Org structure'!D51,\"\")","v":""},null,null,null,null,null,null,null,null,0,0,0,null,null,null,null,0,null,null,null,0,null,null,null,null,null,null,null,55,"CE"]
[{"$f":"IF(RIGHT('Org structure'!D52,18)<>\"[Name of sub-vote]\",'Org structure'!D52,\"\")","v":""},null,null,null,null,null,null,null,null,0,0,0,null,null,null,null,0,null,null,null,0,null,null,null,null,null,null,null,56,"CE"]
[{"$f":"IF(RIGHT('Org structure'!D53,18)<>\"[Name of sub-vote]\",'Org structure'!D53,\"\")","v":""},null,null,null,null,null,null,null,null,0,0,0,null,null,null,null,0,null,null,null,0,null,null,null,null,null,null,null,57,"CE"]
[{"$f":"IF(RIGHT('Org structure'!D54,18)<>\"[Name of sub-vote]\",'Org structure'!D54,\"\")","v":""},null,null,null,null,null,null,null,null,0,0,0,null,null,null,null,0,null,null,null,0,null,null,null,null,null,null,null,58,"CE"]
[{"$f":"IF(RIGHT('Org structure'!D55,18)<>\"[Name of sub-vote]\",'Org structure'!D55,\"\")","v":""},null,null,null,null,null,null,null,null,0,0,0,null,null,null,null,0,null,null,null,0,null,null,null,null,null,null,null,59,"CE"]
[{"$f":"IF(RIGHT('Org structure'!D56,18)<>\"[Name of sub-vote]\",'Org structure'!D56,\"\")","v":""},null,null,null,null,null,null,null,null,0,0,0,null,null,null,null,0,null,null,null,0,null,null,null,null,null,null,null,510,"CE"]
[{"$f":"'Org structure'!A7","v":"Vote 6 - [NAME OF VOTE 6]"},null,{"$f":"SUM(C62:C71)","v":0},{"$f":"SUM(D62:D71)","v":0},0,0,0,0,{"$f":"SUM(I62:I71)","v":0},0,0,0,null,{"$f":"SUM(N62:N71)","v":0},0,0,0,0,0,0,0,0,0,0]
[{"$f":"IF(RIGHT('Org structure'!D58,18)<>\"[Name of sub-vote]\",'Org structure'!D58,\"\")","v":""},null,null,null,null,null,null,null,null,{"$f":"Q62+V62","v":0},{"$f":"U62+W62","v":0},{"$f":"X62","v":0},null,null,null,null,{"$f":"SUM(N62:P62)","v":0},null,null,null,0,null,null,null,null,null,null,null,61,"CE"]
[{"$f":"IF(RIGHT('Org structure'!D59,18)<>\"[Name of sub-vote]\",'Org structure'!D59,\"\")","v":""},null,null,null,null,null,null,null,null,0,0,0,null,null,null,null,0,null,null,null,0,null,null,null,null,null,null,null,62,"CE"]
[{"$f":"IF(RIGHT('Org structure'!D60,18)<>\"[Name of sub-vote]\",'Org structure'!D60,\"\")","v":""},null,null,null,null,null,null,null,null,0,0,0,null,null,null,null,0,null,null,null,0,null,null,null,null,null,null,null,63,"CE"]
[{"$f":"IF(RIGHT('Org structure'!D61,18)<>\"[Name of sub-vote]\",'Org structure'!D61,\"\")","v":""},null,null,null,null,null,null,null,null,0,0,0,null,null,null,null,0,null,null,null,0,null,null,null,null,null,null,null,64,"CE"]
[{"$f":"IF(RIGHT('Org structure'!D62,18)<>\"[Name of sub-vote]\",'Org structure'!D62,\"\")","v":""},null,null,null,null,null,null,null,null,0,0,0,null,null,null,null,0,null,null,null,0,null,null,null,null,null,null,null,65,"CE"]
[{"$f":"IF(RIGHT('Org structure'!D63,18)<>\"[Name of sub-vote]\",'Org structure'!D63,\"\")","v":""},null,null,null,null,null,null,null,null,0,0,0,null,null,null,null,0,null,null,null,0,null,null,null,null,null,null,null,66,"CE"]
[{"$f":"IF(RIGHT('Org structure'!D64,18)<>\"[Name of sub-vote]\",'Org structure'!D64,\"\")","v":""},null,null,null,null,null,null,null,null,0,0,0,null,null,null,null,0,null,null,null,0,null,null,null,null,null,null,null,67,"CE"]
[{"$f":"IF(RIGHT('Org structure'!D65,18)<>\"[Name of sub-vote]\",'Org structure'!D65,\"\")","v":""},null,null,null,null,null,null,null,null,0,0,0,null,null,null,null,0,null,null,null,0,null,null,null,null,null,null,null,68,"CE"]
[{"$f":"IF(RIGHT('Org structure'!D66,18)<>\"[Name of sub-vote]\",'Org structure'!D66,\"\")","v":""},null,null,null,null,null,null,null,null,0,0,0,null,null,null,null,0,null,null,null,0,null,null,null,null,null,null,null,69,"CE"]
[{"$f":"IF(RIGHT('Org structure'!D67,18)<>\"[Name of sub-vote]\",'Org structure'!D67,\"\")","v":""},null,null,null,null,null,null,null,null,0,0,0,null,null,null,null,0,null,null,null,0,null,null,null,null,null,null,null,610,"CE"]
[{"$f":"'Org structure'!A8","v":"Vote 7 - [NAME OF VOTE 7]"},null,{"$f":"SUM(C73:C82)","v":0},0,0,0,0,0,0,0,0,0,null,{"$f":"SUM(N73:N82)","v":0},0,0,0,0,0,0,0,0,0,0]
[{"$f":"IF(RIGHT('Org structure'!D69,18)<>\"[Name of sub-vote]\",'Org structure'!D69,\"\")","v":""},null,null,null,null,null,null,null,null,{"$f":"Q73+V73","v":0},{"$f":"U73+W73","v":0},{"$f":"X73","v":0},null,null,null,null,{"$f":"SUM(N73:P73)","v":0},null,null,null,{"$f":"SUM(R73:T73)","v":0},null,null,null,null,null,null,null,71,"CE"]
[{"$f":"IF(RIGHT('Org structure'!D70,18)<>\"[Name of sub-vote]\",'Org structure'!D70,\"\")","v":""},null,null,null,null,null,null,null,null,0,0,0,null,null,null,null,0,null,null,null,0,null,null,null,null,null,null,null,72,"CE"]
[{"$f":"IF(RIGHT('Org structure'!D71,18)<>\"[Name of sub-vote]\",'Org structure'!D71,\"\")","v":""},null,null,null,null,null,null,null,null,0,0,0,null,null,null,null,0,null,null,null,0,null,null,null,null,null,null,null,73,"CE"]
[{"$f":"IF(RIGHT('Org structure'!D72,18)<>\"[Name of sub-vote]\",'Org structure'!D72,\"\")","v":""},null,null,null,null,null,null,null,null,0,0,0,null,null,null,null,0,null,null,null,0,null,null,null,null,null,null,null,74,"CE"]
[{"$f":"IF(RIGHT('Org structure'!D73,18)<>\"[Name of sub-vote]\",'Org structure'!D73,\"\")","v":""},null,null,null,null,null,null,null,null,0,0,0,null,null,null,null,0,null,null,null,0,null,null,null,null,null,null,null,75,"CE"]
[{"$f":"IF(RIGHT('Org structure'!D74,18)<>\"[Name of sub-vote]\",'Org structure'!D74,\"\")","v":""},null,null,null,null,null,null,null,null,0,0,0,null,null,null,null,0,null,null,null,0,null,null,null,null,null,null,null,76,"CE"]
[{"$f":"IF(RIGHT('Org structure'!D75,18)<>\"[Name of sub-vote]\",'Org structure'!D75,\"\")","v":""},null,null,null,null,null,null,null,null,0,0,0,null,null,null,null,0,null,null,null,0,null,null,null,null,null,null,null,77,"CE"]
[{"$f":"IF(RIGHT('Org structure'!D76,18)<>\"[Name of sub-vote]\",'Org structure'!D76,\"\")","v":""},null,null,null,null,null,null,null,null,0,0,0,null,null,null,null,0,null,null,null,0,null,null,null,null,null,null,null,78,"CE"]
[{"$f":"IF(RIGHT('Org structure'!D77,18)<>\"[Name of sub-vote]\",'Org structure'!D77,\"\")","v":""},null,null,null,null,null,null,null,null,0,0,0,null,null,null,null,0,null,null,null,0,null,null,null,null,null,null,null,79,"CE"]
[{"$f":"IF(RIGHT('Org structure'!D78,18)<>\"[Name of sub-vote]\",'Org structure'!D78,\"\")","v":""},null,null,null,null,null,null,null,null,0,0,0,null,null,null,null,0,null,null,null,0,null,null,null,null,null,null,null,710,"CE"]
[{"$f":"'Org structure'!A9","v":"Vote 8 - [NAME OF VOTE 8]"},null,{"$f":"SUM(C84:C93)","v":0},0,0,0,0,0,0,0,0,0,null,{"$f":"SUM(N84:N93)","v":0},0,0,0,0,0,0,0,0,0,0]
[{"$f":"IF(RIGHT('Org structure'!D80,18)<>\"[Name of sub-vote]\",'Org structure'!D80,\"\")","v":""},null,null,null,null,null,null,null,null,{"$f":"Q84+V84","v":0},{"$f":"U84+W84","v":0},{"$f":"X84","v":0},null,null,null,null,{"$f":"SUM(N84:P84)","v":0},null,null,null,0,null,null,null,null,null,null,null,81,"CE"]
[{"$f":"IF(RIGHT('Org structure'!D81,18)<>\"[Name of sub-vote]\",'Org structure'!D81,\"\")","v":""},null,null,null,null,null,null,null,null,0,0,0,null,null,null,null,0,null,null,null,0,null,null,null,null,null,null,null,82,"CE"]
[{"$f":"IF(RIGHT('Org structure'!D82,18)<>\"[Name of sub-vote]\",'Org structure'!D82,\"\")","v":""},null,null,null,null,null,null,null,null,0,0,0,null,null,null,null,0,null,null,null,0,null,null,null,null,null,null,null,83,"CE"]
[{"$f":"IF(RIGHT('Org structure'!D83,18)<>\"[Name of sub-vote]\",'Org structure'!D83,\"\")","v":""},null,null,null,null,null,null,null,null,0,0,0,null,null,null,null,0,null,null,null,0,null,null,null,null,null,null,null,84,"CE"]
[{"$f":"IF(RIGHT('Org structure'!D84,18)<>\"[Name of sub-vote]\",'Org structure'!D84,\"\")","v":""},null,null,null,null,null,null,null,null,0,0,0,null,null,null,null,0,null,null,null,0,null,null,null,null,null,null,null,85,"CE"]
[{"$f":"IF(RIGHT('Org structure'!D85,18)<>\"[Name of sub-vote]\",'Org structure'!D85,\"\")","v":""},null,null,null,null,null,null,null,null,0,0,0,null,null,null,null,0,null,null,null,0,null,null,null,null,null,null,null,86,"CE"]
[{"$f":"IF(RIGHT('Org structure'!D86,18)<>\"[Name of sub-vote]\",'Org structure'!D86,\"\")","v":""},null,null,null,null,null,null,null,null,0,0,0,null,null,null,null,0,null,null,null,0,null,null,null,null,null,null,null,87,"CE"]
[{"$f":"IF(RIGHT('Org structure'!D87,18)<>\"[Name of sub-vote]\",'Org structure'!D87,\"\")","v":""},null,null,null,null,null,null,null,null,0,0,0,null,null,null,null,0,null,null,null,0,null,null,null,null,null,null,null,88,"CE"]
[{"$f":"IF(RIGHT('Org structure'!D88,18)<>\"[Name of sub-vote]\",'Org structure'!D88,\"\")","v":""},null,null,null,null,null,null,null,null,0,0,0,null,null,null,null,0,null,null,null,0,null,null,null,null,null,null,null,89,"CE"]
[{"$f":"IF(RIGHT('Org structure'!D89,18)<>\"[Name of sub-vote]\",'Org structure'!D89,\"\")","v":""},null,null,null,null,null,null,null,null,0,0,0,null,null,null,null,0,null,null,null,0,null,null,null,null,null,null,null,810,"CE"]
[{"$f":"'Org structure'!A10","v":"Vote 9 - [NAME OF VOTE 9]"},null,{"$f":"SUM(C95:C104)","v":0},{"$f":"SUM(D95:D104)","v":0},0,0,0,0,0,0,0,0,null,{"$f":"SUM(N95:N104)","v":0},0,0,0,0,0,0,0,0,0,0]
[{"$f":"IF(RIGHT('Org structure'!D91,18)<>\"[Name of sub-vote]\",'Org structure'!D91,\"\")","v":""},null,null,null,null,null,null,null,null,{"$f":"Q95+V95","v":0},{"$f":"U95+W95","v":0},{"$f":"X95","v":0},null,null,null,null,{"$f":"SUM(N95:P95)","v":0},null,null,null,0,null,null,null,null,null,null,null,91,"CE"]
[{"$f":"IF(RIGHT('Org structure'!D92,18)<>\"[Name of sub-vote]\",'Org structure'!D92,\"\")","v":""},null,null,null,null,null,null,null,null,0,0,0,null,null,null,null,0,null,null,null,0,null,null,null,null,null,null,null,92,"CE"]
[{"$f":"IF(RIGHT('Org structure'!D93,18)<>\"[Name of sub-vote]\",'Org structure'!D93,\"\")","v":""},null,null,null,null,null,null,null,null,0,0,0,null,null,null,null,0,null,null,null,0,null,null,null,null,null,null,null,93,"CE"]
[{"$f":"IF(RIGHT('Org structure'!D94,18)<>\"[Name of sub-vote]\",'Org structure'!D94,\"\")","v":""},null,null,null,null,null,null,null,null,0,0,0,null,null,null,null,0,null,null,null,0,null,null,null,null,null,null,null,94,"CE"]
[{"$f":"IF(RIGHT('Org structure'!D95,18)<>\"[Name of sub-vote]\",'Org structure'!D95,\"\")","v":""},null,null,null,null,null,null,null,null,0,0,0,null,null,null,null,0,null,null,null,0,null,null,null,null,null,null,null,95,"CE"]
[{"$f":"IF(RIGHT('Org structure'!D96,18)<>\"[Name of sub-vote]\",'Org structure'!D96,\"\")","v":""},null,null,null,null,null,null,null,null,0,0,0,null,null,null,null,0,null,null,null,0,null,null,null,null,null,null,null,96,"CE"]
[{"$f":"IF(RIGHT('Org structure'!D97,18)<>\"[Name of sub-vote]\",'Org structure'!D97,\"\")","v":""},null,null,null,null,null,null,null,null,0,0,0,null,null,null,null,0,null,null,null,0,null,null,null,null,null,null,null,97,"CE"]
[{"$f":"IF(RIGHT('Org structure'!D98,18)<>\"[Name of sub-vote]\",'Org structure'!D98,\"\")","v":""},null,null,null,null,null,null,null,null,0,0,0,null,null,null,null,0,null,null,null,0,null,null,null,null,null,null,null,98,"CE"]
[{"$f":"IF(RIGHT('Org structure'!D99,18)<>\"[Name of sub-vote]\",'Org structure'!D99,\"\")","v":""},null,null,null,null,null,null,null,null,0,0,0,null,null,null,null,0,null,null,null,0,null,null,null,null,null,null,null,99,"CE"]
[{"$f":"IF(RIGHT('Org structure'!D100,18)<>\"[Name of sub-vote]\",'Org structure'!D100,\"\")","v":""},null,null,null,null,null,null,null,null,0,0,0,null,null,null,null,0,null,null,null,0,null,null,null,null,null,null,null,910,"CE"]
[{"$f":"'Org structure'!A11","v":"Vote 10 - [NAME OF VOTE 10]"},null,{"$f":"SUM(C106:C115)","v":0},{"$f":"SUM(D106:D115)","v":0},0,0,0,0,0,0,0,0,null,{"$f":"SUM(N106:N115)","v":0},0,0,0,0,0,0,0,0,0,0]
[{"$f":"IF(RIGHT('Org structure'!D102,18)<>\"[Name of sub-vote]\",'Org structure'!D102,\"\")","v":""},null,null,null,null,null,null,null,null,{"$f":"Q106+V106","v":0},{"$f":"U106+W106","v":0},{"$f":"X106","v":0},null,null,null,null,{"$f":"SUM(N106:P106)","v":0},null,null,null,0,null,null,null,null,null,null,null,101,"CE"]
[{"$f":"IF(RIGHT('Org structure'!D103,18)<>\"[Name of sub-vote]\",'Org structure'!D103,\"\")","v":""},null,null,null,null,null,null,null,null,0,0,0,null,null,null,null,0,null,null,null,0,null,null,null,null,null,null,null,102,"CE"]
[{"$f":"IF(RIGHT('Org structure'!D104,18)<>\"[Name of sub-vote]\",'Org structure'!D104,\"\")","v":""},null,null,null,null,null,null,null,null,0,0,0,null,null,null,null,0,null,null,null,0,null,null,null,null,null,null,null,103,"CE"]
[{"$f":"IF(RIGHT('Org structure'!D105,18)<>\"[Name of sub-vote]\",'Org structure'!D105,\"\")","v":""},null,null,null,null,null,null,null,null,0,0,0,null,null,null,null,0,null,null,null,0,null,null,null,null,null,null,null,104,"CE"]
[{"$f":"IF(RIGHT('Org structure'!D106,18)<>\"[Name of sub-vote]\",'Org structure'!D106,\"\")","v":""},null,null,null,null,null,null,null,null,0,0,0,null,null,null,null,0,null,null,null,0,null,null,null,null,null,null,null,105,"CE"]
[{"$f":"IF(RIGHT('Org structure'!D107,18)<>\"[Name of sub-vote]\",'Org structure'!D107,\"\")","v":""},null,null,null,null,null,null,null,null,0,0,0,null,null,null,null,0,null,null,null,0,null,null,null,null,null,null,null,106,"CE"]
[{"$f":"IF(RIGHT('Org structure'!D108,18)<>\"[Name of sub-vote]\",'Org structure'!D108,\"\")","v":""},null,null,null,null,null,null,null,null,0,0,0,null,null,null,null,0,null,null,null,0,null,null,null,null,null,null,null,107,"CE"]
[{"$f":"IF(RIGHT('Org structure'!D109,18)<>\"[Name of sub-vote]\",'Org structure'!D109,\"\")","v":""},null,null,null,null,null,null,null,null,0,0,0,null,null,null,null,0,null,null,null,0,null,null,null,null,null,null,null,108,"CE"]
[{"$f":"IF(RIGHT('Org structure'!D110,18)<>\"[Name of sub-vote]\",'Org structure'!D110,\"\")","v":""},null,null,null,null,null,null,null,null,0,0,0,null,null,null,null,0,null,null,null,0,null,null,null,null,null,null,null,109,"CE"]
[{"$f":"IF(RIGHT('Org structure'!D111,18)<>\"[Name of sub-vote]\",'Org structure'!D111,\"\")","v":""},null,null,null,null,null,null,null,null,0,0,0,null,null,null,null,0,null,null,null,0,null,null,null,null,null,null,null,1010,"CE"]
[{"$f":"'Org structure'!A12","v":"Vote 11 - [NAME OF VOTE 11]"},null,{"$f":"SUM(C117:C126)","v":0},0,0,0,0,0,0,0,0,0,null,{"$f":"SUM(N117:N126)","v":0},0,0,0,0,0,0,0,0,0,0]
[{"$f":"IF(RIGHT('Org structure'!D113,18)<>\"[Name of sub-vote]\",'Org structure'!D113,\"\")","v":""},null,null,null,null,null,null,null,null,{"$f":"Q117+V117","v":0},{"$f":"U117+W117","v":0},{"$f":"X117","v":0},null,null,null,null,{"$f":"SUM(N117:P117)","v":0},null,null,null,0,null,null,null,null,null,null,null,111,"CE"]
[{"$f":"IF(RIGHT('Org structure'!D114,18)<>\"[Name of sub-vote]\",'Org structure'!D114,\"\")","v":""},null,null,null,null,null,null,null,null,0,0,0,null,null,null,null,0,null,null,null,0,null,null,null,null,null,null,null,112,"CE"]
[{"$f":"IF(RIGHT('Org structure'!D115,18)<>\"[Name of sub-vote]\",'Org structure'!D115,\"\")","v":""},null,null,null,null,null,null,null,null,0,0,0,null,null,null,null,0,null,null,null,0,null,null,null,null,null,null,null,113,"CE"]
[{"$f":"IF(RIGHT('Org structure'!D116,18)<>\"[Name of sub-vote]\",'Org structure'!D116,\"\")","v":""},null,null,null,null,null,null,null,null,0,0,0,null,null,null,null,0,null,null,null,0,null,null,null,null,null,null,null,114,"CE"]
[{"$f":"IF(RIGHT('Org structure'!D117,18)<>\"[Name of sub-vote]\",'Org structure'!D117,\"\")","v":""},null,null,null,null,null,null,null,null,0,0,0,null,null,null,null,0,null,null,null,0,null,null,null,null,null,null,null,115,"CE"]
[{"$f":"IF(RIGHT('Org structure'!D118,18)<>\"[Name of sub-vote]\",'Org structure'!D118,\"\")","v":""},null,null,null,null,null,null,null,null,0,0,0,null,null,null,null,0,null,null,null,0,null,null,null,null,null,null,null,116,"CE"]
[{"$f":"IF(RIGHT('Org structure'!D119,18)<>\"[Name of sub-vote]\",'Org structure'!D119,\"\")","v":""},null,null,null,null,null,null,null,null,0,0,0,null,null,null,null,0,null,null,null,0,null,null,null,null,null,null,null,117,"CE"]
[{"$f":"IF(RIGHT('Org structure'!D120,18)<>\"[Name of sub-vote]\",'Org structure'!D120,\"\")","v":""},null,null,null,null,null,null,null,null,0,0,0,null,null,null,null,0,null,null,null,0,null,null,null,null,null,null,null,118,"CE"]
[{"$f":"IF(RIGHT('Org structure'!D121,18)<>\"[Name of sub-vote]\",'Org structure'!D121,\"\")","v":""},null,null,null,null,null,null,null,null,0,0,0,null,null,null,null,0,null,null,null,0,null,null,null,null,null,null,null,119,"CE"]
[{"$f":"IF(RIGHT('Org structure'!D122,18)<>\"[Name of sub-vote]\",'Org structure'!D122,\"\")","v":""},null,null,null,null,null,null,null,null,0,0,0,null,null,null,null,0,null,null,null,0,null,null,null,null,null,null,null,1110,"CE"]
[{"$f":"'Org structure'!A13","v":"Vote 12 - [NAME OF VOTE 12]"},null,{"$f":"SUM(C128:C137)","v":0},0,0,0,0,0,0,0,0,0,null,{"$f":"SUM(N128:N137)","v":0},0,0,0,0,0,0,0,0,0,0]
[{"$f":"IF(RIGHT('Org structure'!D124,18)<>\"[Name of sub-vote]\",'Org structure'!D124,\"\")","v":""},null,null,null,null,null,null,null,null,{"$f":"Q128+V128","v":0},{"$f":"U128+W128","v":0},{"$f":"X128","v":0},null,null,null,null,{"$f":"SUM(N128:P128)","v":0},null,null,null,0,null,null,null,null,null,null,null,121,"CE"]
[{"$f":"IF(RIGHT('Org structure'!D125,18)<>\"[Name of sub-vote]\",'Org structure'!D125,\"\")","v":""},null,null,null,null,null,null,null,null,0,0,0,null,null,null,null,0,null,null,null,0,null,null,null,null,null,null,null,122,"CE"]
[{"$f":"IF(RIGHT('Org structure'!D126,18)<>\"[Name of sub-vote]\",'Org structure'!D126,\"\")","v":""},null,null,null,null,null,null,null,null,0,0,0,null,null,null,null,0,null,null,null,0,null,null,null,null,null,null,null,123,"CE"]
[{"$f":"IF(RIGHT('Org structure'!D127,18)<>\"[Name of sub-vote]\",'Org structure'!D127,\"\")","v":""},null,null,null,null,null,null,null,null,0,0,0,null,null,null,null,0,null,null,null,0,null,null,null,null,null,null,null,124,"CE"]
[{"$f":"IF(RIGHT('Org structure'!D128,18)<>\"[Name of sub-vote]\",'Org structure'!D128,\"\")","v":""},null,null,null,null,null,null,null,null,0,0,0,null,null,null,null,0,null,null,null,0,null,null,null,null,null,null,null,125,"CE"]
[{"$f":"IF(RIGHT('Org structure'!D129,18)<>\"[Name of sub-vote]\",'Org structure'!D129,\"\")","v":""},null,null,null,null,null,null,null,null,{"$f":"Q133+V133","v":0},0,0,null,null,null,null,0,null,null,null,0,null,null,null,null,null,null,null,126,"CE"]
[{"$f":"IF(RIGHT('Org structure'!D130,18)<>\"[Name of sub-vote]\",'Org structure'!D130,\"\")","v":""},null,null,null,null,null,null,null,null,0,0,0,null,null,null,null,0,null,null,null,0,null,null,null,null,null,null,null,127,"CE"]
[{"$f":"IF(RIGHT('Org structure'!D131,18)<>\"[Name of sub-vote]\",'Org structure'!D131,\"\")","v":""},null,null,null,null,null,null,null,null,0,0,0,null,null,null,null,0,null,null,null,0,null,null,null,null,null,null,null,128,"CE"]
[{"$f":"IF(RIGHT('Org structure'!D132,18)<>\"[Name of sub-vote]\",'Org structure'!D132,\"\")","v":""},null,null,null,null,null,null,null,null,0,0,0,null,null,null,null,0,null,null,null,{"$f":"SUM(R136:T136)","v":0},null,null,null,null,null,null,null,129,"CE"]
[{"$f":"IF(RIGHT('Org structure'!D133,18)<>\"[Name of sub-vote]\",'Org structure'!D133,\"\")","v":""},null,null,null,null,null,null,null,null,0,0,0,null,null,null,null,0,null,null,null,0,null,null,null,null,null,null,null,1210,"CE"]
[{"$f":"'Org structure'!A14","v":"Vote 13 - [NAME OF VOTE 13]"},null,{"$f":"SUM(C139:C148)","v":0},0,0,0,0,0,0,0,0,0,null,{"$f":"SUM(N139:N148)","v":0},0,0,0,0,0,0,0,0,0,0]
[{"$f":"IF(RIGHT('Org structure'!D135,18)<>\"[Name of sub-vote]\",'Org structure'!D135,\"\")","v":""},null,null,null,null,null,null,null,null,{"$f":"Q139+V139","v":0},{"$f":"U139+W139","v":0},{"$f":"X139","v":0},null,null,null,null,{"$f":"SUM(N139:P139)","v":0},null,null,null,0,null,null,null,null,null,null,null,131,"CE"]
[{"$f":"IF(RIGHT('Org structure'!D136,18)<>\"[Name of sub-vote]\",'Org structure'!D136,\"\")","v":""},null,null,null,null,null,null,null,null,0,0,0,null,null,null,null,0,null,null,null,0,null,null,null,null,null,null,null,132,"CE"]
[{"$f":"IF(RIGHT('Org structure'!D137,18)<>\"[Name of sub-vote]\",'Org structure'!D137,\"\")","v":""},null,null,null,null,null,null,null,null,0,0,0,null,null,null,null,0,null,null,null,0,null,null,null,null,null,null,null,133,"CE"]
[{"$f":"IF(RIGHT('Org structure'!D138,18)<>\"[Name of sub-vote]\",'Org structure'!D138,\"\")","v":""},null,null,null,null,null,null,null,null,0,0,0,null,null,null,null,0,null,null,null,0,null,null,null,null,null,null,null,134,"CE"]
[{"$f":"IF(RIGHT('Org structure'!D139,18)<>\"[Name of sub-vote]\",'Org structure'!D139,\"\")","v":""},null,null,null,null,null,null,null,null,0,0,0,null,null,null,null,0,null,null,null,0,null,null,null,null,null,null,null,135,"CE"]
[{"$f":"IF(RIGHT('Org structure'!D140,18)<>\"[Name of sub-vote]\",'Org structure'!D140,\"\")","v":""},null,null,null,null,null,null,null,null,0,0,0,null,null,null,null,0,null,null,null,0,null,null,null,null,null,null,null,136,"CE"]
[{"$f":"IF(RIGHT('Org structure'!D141,18)<>\"[Name of sub-vote]\",'Org structure'!D141,\"\")","v":""},null,null,null,null,null,null,null,null,0,0,0,null,null,null,null,0,null,null,null,0,null,null,null,null,null,null,null,137,"CE"]
[{"$f":"IF(RIGHT('Org structure'!D142,18)<>\"[Name of sub-vote]\",'Org structure'!D142,\"\")","v":""},null,null,null,null,null,null,null,null,0,0,0,null,null,null,null,0,null,null,null,0,null,null,null,null,null,null,null,138,"CE"]
[{"$f":"IF(RIGHT('Org structure'!D143,18)<>\"[Name of sub-vote]\",'Org structure'!D143,\"\")","v":""},null,null,null,null,null,null,null,null,0,0,0,null,null,null,null,0,null,null,null,0,null,null,null,null,null,null,null,139,"CE"]
[{"$f":"IF(RIGHT('Org structure'!D144,18)<>\"[Name of sub-vote]\",'Org structure'!D144,\"\")","v":""},null,null,null,null,null,null,null,null,0,0,0,null,null,null,null,0,null,null,null,0,null,null,null,null,null,null,null,1310,"CE"]
[{"$f":"'Org structure'!A15","v":"Vote 14 - [NAME OF VOTE 14]"},null,{"$f":"SUM(C150:C159)","v":0},0,0,0,0,0,0,0,0,0,null,{"$f":"SUM(N150:N159)","v":0},0,0,0,0,0,0,0,0,0,0]
[{"$f":"IF(RIGHT('Org structure'!D146,18)<>\"[Name of sub-vote]\",'Org structure'!D146,\"\")","v":""},null,null,null,null,null,null,null,null,{"$f":"Q150+V150","v":0},{"$f":"U150+W150","v":0},{"$f":"X150","v":0},null,null,null,null,{"$f":"SUM(N150:P150)","v":0},null,null,null,0,null,null,null,null,null,null,null,141,"CE"]
[{"$f":"IF(RIGHT('Org structure'!D147,18)<>\"[Name of sub-vote]\",'Org structure'!D147,\"\")","v":""},null,null,null,null,null,null,null,null,0,0,0,null,null,null,null,0,null,null,null,0,null,null,null,null,null,null,null,142,"CE"]
[{"$f":"IF(RIGHT('Org structure'!D148,18)<>\"[Name of sub-vote]\",'Org structure'!D148,\"\")","v":""},null,null,null,null,null,null,null,null,0,0,0,null,null,null,null,0,null,null,null,0,null,null,null,null,null,null,null,143,"CE"]
[{"$f":"IF(RIGHT('Org structure'!D149,18)<>\"[Name of sub-vote]\",'Org structure'!D149,\"\")","v":""},null,null,null,null,null,null,null,null,0,0,0,null,null,null,null,0,null,null,null,0,null,null,null,null,null,null,null,144,"CE"]
[{"$f":"IF(RIGHT('Org structure'!D150,18)<>\"[Name of sub-vote]\",'Org structure'!D150,\"\")","v":""},null,null,null,null,null,null,null,null,0,0,0,null,null,null,null,0,null,null,null,0,null,null,null,null,null,null,null,145,"CE"]
[{"$f":"IF(RIGHT('Org structure'!D151,18)<>\"[Name of sub-vote]\",'Org structure'!D151,\"\")","v":""},null,null,null,null,null,null,null,null,0,0,0,null,null,null,null,0,null,null,null,0,null,null,null,null,null,null,null,146,"CE"]
[{"$f":"IF(RIGHT('Org structure'!D152,18)<>\"[Name of sub-vote]\",'Org structure'!D152,\"\")","v":""},null,null,null,null,null,null,null,null,0,0,0,null,null,null,null,0,null,null,null,0,null,null,null,null,null,null,null,147,"CE"]
[{"$f":"IF(RIGHT('Org structure'!D153,18)<>\"[Name of sub-vote]\",'Org structure'!D153,\"\")","v":""},null,null,null,null,null,null,null,null,0,0,0,null,null,null,null,0,null,null,null,0,null,null,null,null,null,null,null,148,"CE"]
[{"$f":"IF(RIGHT('Org structure'!D154,18)<>\"[Name of sub-vote]\",'Org structure'!D154,\"\")","v":""},null,null,null,null,null,null,null,null,0,0,0,null,null,null,null,0,null,null,null,0,null,null,null,null,null,null,null,149,"CE"]
[{"$f":"IF(RIGHT('Org structure'!D155,18)<>\"[Name of sub-vote]\",'Org structure'!D155,\"\")","v":""},null,null,null,null,null,null,null,null,0,0,0,null,null,null,null,0,null,null,null,0,null,null,null,null,null,null,null,1410,"CE"]
[{"$f":"'Org structure'!A16","v":"Vote 15 - [NAME OF VOTE 15]"},null,{"$f":"SUM(C161:C170)","v":0},0,0,0,0,0,0,0,0,0,null,{"$f":"SUM(N161:N170)","v":0},0,0,0,0,0,0,0,0,0,0]
[{"$f":"IF(RIGHT('Org structure'!D157,18)<>\"[Name of sub-vote]\",'Org structure'!D157,\"\")","v":""},null,null,null,null,null,null,null,null,{"$f":"Q161+V161","v":0},{"$f":"U161+W161","v":0},{"$f":"X161","v":0},null,null,null,null,{"$f":"SUM(N161:P161)","v":0},null,null,null,0,null,null,null,null,null,null,null,151,"CE"]
[{"$f":"IF(RIGHT('Org structure'!D158,18)<>\"[Name of sub-vote]\",'Org structure'!D158,\"\")","v":""},null,null,null,null,null,null,null,null,0,0,0,null,null,null,null,0,null,null,null,0,null,null,null,null,null,null,null,152,"CE"]
[{"$f":"IF(RIGHT('Org structure'!D159,18)<>\"[Name of sub-vote]\",'Org structure'!D159,\"\")","v":""},null,null,null,null,null,null,null,null,0,0,0,null,null,null,null,0,null,null,null,0,null,null,null,null,null,null,null,153,"CE"]
[{"$f":"IF(RIGHT('Org structure'!D160,18)<>\"[Name of sub-vote]\",'Org structure'!D160,\"\")","v":""},null,null,null,null,null,null,null,null,0,0,0,null,null,null,null,0,null,null,null,0,null,null,null,null,null,null,null,154,"CE"]
[{"$f":"IF(RIGHT('Org structure'!D161,18)<>\"[Name of sub-vote]\",'Org structure'!D161,\"\")","v":""},null,null,null,null,null,null,null,null,0,0,0,null,null,null,null,0,null,null,null,0,null,null,null,null,null,null,null,155,"CE"]
[{"$f":"IF(RIGHT('Org structure'!D162,18)<>\"[Name of sub-vote]\",'Org structure'!D162,\"\")","v":""},null,null,null,null,null,null,null,null,0,0,0,null,null,null,null,0,null,null,null,0,null,null,null,null,null,null,null,156,"CE"]
[{"$f":"IF(RIGHT('Org structure'!D163,18)<>\"[Name of sub-vote]\",'Org structure'!D163,\"\")","v":""},null,null,null,null,null,null,null,null,0,0,0,null,null,null,null,0,null,null,null,0,null,null,null,null,null,null,null,157,"CE"]
[{"$f":"IF(RIGHT('Org structure'!D164,18)<>\"[Name of sub-vote]\",'Org structure'!D164,\"\")","v":""},null,null,null,null,null,null,null,null,0,0,0,null,null,null,null,0,null,null,null,0,null,null,null,null,null,null,null,158,"CE"]
[{"$f":"IF(RIGHT('Org structure'!D165,18)<>\"[Name of sub-vote]\",'Org structure'!D165,\"\")","v":""},null,null,null,null,null,null,null,null,0,0,0,null,null,null,null,0,null,null,null,0,null,null,null,null,null,null,null,159,"CE"]
[{"$f":"IF(RIGHT('Org structure'!D166,18)<>\"[Name of sub-vote]\",'Org structure'!D166,\"\")","v":""},null,null,null,null,null,null,null,null,0,0,0,null,null,null,null,0,null,null,null,0,null,null,null,null,null,null,null,1510,"CE"]
["Capital multi-year expenditure sub-total",null,{"$f":"C6+C17+C28+C39+C50+C61+C72+C83+C94+C105+C116+C127+C138+C149+C160","v":0},{"$f":"D6+D17+D28+D39+D50+D61+D72+D83+D94+D105+D116+D127+D138+D149+D160","v":0},0,0,0,0,0,0,0,0,null,{"$f":"N6+N17+N28+N39+N50+N61+N72+N83+N94+N105+N116+N127+N138+N149+N160","v":0},0,0,0,0,0,null,0,{"$f":"V6+V17+V28+V39+V50+V61+V72+V83+V94+V105+V116+V127+V138+V149+V160","v":0},{"$f":"W6+W17+W28+W39+W50+W61+W72+W83+W94+W105+W116+W127+W138+W149+W160","v":0}]
[]
["Capital expenditure - Municipal Vote"]
["Single-year expenditure appropriation",2]
[{"$f":"A6","v":"Vote 1 - Executive and Council"},null,{"$f":"SUM(C176:C185)","v":0},0,12874,30000,50000,50000,104274,176000,21958,23144]
[{"$f":"A7","v":"1.1 - Mayor and Council"},null,{"$f":"SUMIFS(Sheet1!S71_PPPYearAmount,Sheet1!S71_SubMunicipalVoteNo,$AC:$AC,Sheet1!S71_A5CapexCode,$AD:$AD)","v":0},{"$f":"SUMIFS(Sheet1!S71_PPYearAmount,Sheet1!S71_SubMunicipalVoteNo,$AC:$AC,Sheet1!S71_A5CapexCode,$AD:$AD)","v":0},{"$f":"SUMIFS(Sheet1!S71_PYearAmount,Sheet1!S71_SubMunicipalVoteNo,$AC:$AC,Sheet1!S71_A5CapexCode,$AD:$AD)","v":0},{"$f":"SUMIFS(Sheet1!S71_OriginalBudAmnt,Sheet1!S71_SubMunicipalVoteNo,$AC:$AC,Sheet1!S71_A5CapexCode,$AD:$AD)","v":10000},{"$f":"SUMIFS(Sheet1!S71_AdjustmentBudAmnt,Sheet1!S71_SubMunicipalVoteNo,$AC:$AC,Sheet1!S71_A5CapexCode,$AD:$AD)","v":0},{"$f":"SUMIFS(Sheet1!S71_AdjustmentBudAmnt,Sheet1!S71_SubMunicipalVoteNo,$AC:$AC,Sheet1!S71_A5CapexCode,$AD:$AD)","v":0},{"$f":"SUMIFS(Sheet1!CD:CD,Sheet1!S71_SubMunicipalVoteNo,$AC:$AC,Sheet1!S71_A5CapexCode,$AD:$AD)","v":7321},{"$f":"SUMIFS(Sheet1!S71_ASBudgetAmount,Sheet1!S71_SubMunicipalVoteNo,$AC:$AC,Sheet1!S71_A5CapexCode,$AD:$AD)","v":176000},{"$f":"SUMIFS(Sheet1!S71_OY1BudgetAmount,Sheet1!S71_SubMunicipalVoteNo,$AC:$AC,Sheet1!S71_A5CapexCode,$AD:$AD)","v":21958},{"$f":"SUMIFS(Sheet1!S71_OY2BudgetAmount,Sheet1!S71_SubMunicipalVoteNo,$AC:$AC,Sheet1!S71_A5CapexCode,$AD:$AD)","v":23144},null,null,null,null,null,null,null,null,null,null,null,null,null,null,null,null,11,"CE"]
[{"$f":"A8","v":"1.2 - Municipal Manager, Town Secretary and Chief Executive"},null,{"$f":"SUMIFS(Sheet1!S71_PPPYearAmount,Sheet1!S71_SubMunicipalVoteNo,$AC:$AC,Sheet1!S71_A5CapexCode,$AD:$AD)","v":0},{"$f":"SUMIFS(Sheet1!S71_PPYearAmount,Sheet1!S71_SubMunicipalVoteNo,$AC:$AC,Sheet1!S71_A5CapexCode,$AD:$AD)","v":0},{"$f":"SUMIFS(Sheet1!S71_PYearAmount,Sheet1!S71_SubMunicipalVoteNo,$AC:$AC,Sheet1!S71_A5CapexCode,$AD:$AD)","v":12874},{"$f":"SUMIFS(Sheet1!S71_OriginalBudAmnt,Sheet1!S71_SubMunicipalVoteNo,$AC:$AC,Sheet1!S71_A5CapexCode,$AD:$AD)","v":20000},{"$f":"SUMIFS(Sheet1!S71_AdjustmentBudAmnt,Sheet1!S71_SubMunicipalVoteNo,$AC:$AC,Sheet1!S71_A5CapexCode,$AD:$AD)","v":50000},{"$f":"SUMIFS(Sheet1!S71_AdjustmentBudAmnt,Sheet1!S71_SubMunicipalVoteNo,$AC:$AC,Sheet1!S71_A5CapexCode,$AD:$AD)","v":50000},{"$f":"SUMIFS(Sheet1!CD:CD,Sheet1!S71_SubMunicipalVoteNo,$AC:$AC,Sheet1!S71_A5CapexCode,$AD:$AD)","v":96953},{"$f":"SUMIFS(Sheet1!S71_ASBudgetAmount,Sheet1!S71_SubMunicipalVoteNo,$AC:$AC,Sheet1!S71_A5CapexCode,$AD:$AD)","v":0},{"$f":"SUMIFS(Sheet1!S71_OY1BudgetAmount,Sheet1!S71_SubMunicipalVoteNo,$AC:$AC,Sheet1!S71_A5CapexCode,$AD:$AD)","v":0},{"$f":"SUMIFS(Sheet1!S71_OY2BudgetAmount,Sheet1!S71_SubMunicipalVoteNo,$AC:$AC,Sheet1!S71_A5CapexCode,$AD:$AD)","v":0},null,null,null,null,null,null,null,null,null,null,null,null,null,null,null,null,12,"CE"]
["",null,{"$f":"SUMIFS(Sheet1!S71_PPPYearAmount,Sheet1!S71_SubMunicipalVoteNo,$AC:$AC,Sheet1!S71_A5CapexCode,$AD:$AD)","v":0},{"$f":"SUMIFS(Sheet1!S71_PPYearAmount,Sheet1!S71_SubMunicipalVoteNo,$AC:$AC,Sheet1!S71_A5CapexCode,$AD:$AD)","v":0},{"$f":"SUMIFS(Sheet1!S71_PYearAmount,Sheet1!S71_SubMunicipalVoteNo,$AC:$AC,Sheet1!S71_A5CapexCode,$AD:$AD)","v":0},{"$f":"SUMIFS(Sheet1!S71_OriginalBudAmnt,Sheet1!S71_SubMunicipalVoteNo,$AC:$AC,Sheet1!S71_A5CapexCode,$AD:$AD)","v":0},{"$f":"SUMIFS(Sheet1!S71_AdjustmentBudAmnt,Sheet1!S71_SubMunicipalVoteNo,$AC:$AC,Sheet1!S71_A5CapexCode,$AD:$AD)","v":0},{"$f":"SUMIFS(Sheet1!S71_AdjustmentBudAmnt,Sheet1!S71_SubMunicipalVoteNo,$AC:$AC,Sheet1!S71_A5CapexCode,$AD:$AD)","v":0},{"$f":"SUMIFS(Sheet1!CD:CD,Sheet1!S71_SubMunicipalVoteNo,$AC:$AC,Sheet1!S71_A5CapexCode,$AD:$AD)","v":0},{"$f":"SUMIFS(Sheet1!S71_ASBudgetAmount,Sheet1!S71_SubMunicipalVoteNo,$AC:$AC,Sheet1!S71_A5CapexCode,$AD:$AD)","v":0},{"$f":"SUMIFS(Sheet1!S71_OY1BudgetAmount,Sheet1!S71_SubMunicipalVoteNo,$AC:$AC,Sheet1!S71_A5CapexCode,$AD:$AD)","v":0},{"$f":"SUMIFS(Sheet1!S71_OY2BudgetAmount,Sheet1!S71_SubMunicipalVoteNo,$AC:$AC,Sheet1!S71_A5CapexCode,$AD:$AD)","v":0},null,null,null,null,null,null,null,null,null,null,null,null,null,null,null,null,13,"CE"]
["",null,{"$f":"SUMIFS(Sheet1!S71_PPPYearAmount,Sheet1!S71_SubMunicipalVoteNo,$AC:$AC,Sheet1!S71_A5CapexCode,$AD:$AD)","v":0},{"$f":"SUMIFS(Sheet1!S71_PPYearAmount,Sheet1!S71_SubMunicipalVoteNo,$AC:$AC,Sheet1!S71_A5CapexCode,$AD:$AD)","v":0},{"$f":"SUMIFS(Sheet1!S71_PYearAmount,Sheet1!S71_SubMunicipalVoteNo,$AC:$AC,Sheet1!S71_A5CapexCode,$AD:$AD)","v":0},{"$f":"SUMIFS(Sheet1!S71_OriginalBudAmnt,Sheet1!S71_SubMunicipalVoteNo,$AC:$AC,Sheet1!S71_A5CapexCode,$AD:$AD)","v":0},{"$f":"SUMIFS(Sheet1!S71_AdjustmentBudAmnt,Sheet1!S71_SubMunicipalVoteNo,$AC:$AC,Sheet1!S71_A5CapexCode,$AD:$AD)","v":0},{"$f":"SUMIFS(Sheet1!S71_AdjustmentBudAmnt,Sheet1!S71_SubMunicipalVoteNo,$AC:$AC,Sheet1!S71_A5CapexCode,$AD:$AD)","v":0},{"$f":"SUMIFS(Sheet1!CD:CD,Sheet1!S71_SubMunicipalVoteNo,$AC:$AC,Sheet1!S71_A5CapexCode,$AD:$AD)","v":0},{"$f":"SUMIFS(Sheet1!S71_ASBudgetAmount,Sheet1!S71_SubMunicipalVoteNo,$AC:$AC,Sheet1!S71_A5CapexCode,$AD:$AD)","v":0},{"$f":"SUMIFS(Sheet1!S71_OY1BudgetAmount,Sheet1!S71_SubMunicipalVoteNo,$AC:$AC,Sheet1!S71_A5CapexCode,$AD:$AD)","v":0},{"$f":"SUMIFS(Sheet1!S71_OY2BudgetAmount,Sheet1!S71_SubMunicipalVoteNo,$AC:$AC,Sheet1!S71_A5CapexCode,$AD:$AD)","v":0},null,null,null,null,null,null,null,null,null,null,null,null,null,null,null,null,14,"CE"]
["",null,{"$f":"SUMIFS(Sheet1!S71_PPPYearAmount,Sheet1!S71_SubMunicipalVoteNo,$AC:$AC,Sheet1!S71_A5CapexCode,$AD:$AD)","v":0},{"$f":"SUMIFS(Sheet1!S71_PPYearAmount,Sheet1!S71_SubMunicipalVoteNo,$AC:$AC,Sheet1!S71_A5CapexCode,$AD:$AD)","v":0},{"$f":"SUMIFS(Sheet1!S71_PYearAmount,Sheet1!S71_SubMunicipalVoteNo,$AC:$AC,Sheet1!S71_A5CapexCode,$AD:$AD)","v":0},{"$f":"SUMIFS(Sheet1!S71_OriginalBudAmnt,Sheet1!S71_SubMunicipalVoteNo,$AC:$AC,Sheet1!S71_A5CapexCode,$AD:$AD)","v":0},{"$f":"SUMIFS(Sheet1!S71_AdjustmentBudAmnt,Sheet1!S71_SubMunicipalVoteNo,$AC:$AC,Sheet1!S71_A5CapexCode,$AD:$AD)","v":0},{"$f":"SUMIFS(Sheet1!S71_AdjustmentBudAmnt,Sheet1!S71_SubMunicipalVoteNo,$AC:$AC,Sheet1!S71_A5CapexCode,$AD:$AD)","v":0},{"$f":"SUMIFS(Sheet1!CD:CD,Sheet1!S71_SubMunicipalVoteNo,$AC:$AC,Sheet1!S71_A5CapexCode,$AD:$AD)","v":0},{"$f":"SUMIFS(Sheet1!S71_ASBudgetAmount,Sheet1!S71_SubMunicipalVoteNo,$AC:$AC,Sheet1!S71_A5CapexCode,$AD:$AD)","v":0},{"$f":"SUMIFS(Sheet1!S71_OY1BudgetAmount,Sheet1!S71_SubMunicipalVoteNo,$AC:$AC,Sheet1!S71_A5CapexCode,$AD:$AD)","v":0},{"$f":"SUMIFS(Sheet1!S71_OY2BudgetAmount,Sheet1!S71_SubMunicipalVoteNo,$AC:$AC,Sheet1!S71_A5CapexCode,$AD:$AD)","v":0},null,null,null,null,null,null,null,null,null,null,null,null,null,null,null,null,15,"CE"]
["",null,{"$f":"SUMIFS(Sheet1!S71_PPPYearAmount,Sheet1!S71_SubMunicipalVoteNo,$AC:$AC,Sheet1!S71_A5CapexCode,$AD:$AD)","v":0},{"$f":"SUMIFS(Sheet1!S71_PPYearAmount,Sheet1!S71_SubMunicipalVoteNo,$AC:$AC,Sheet1!S71_A5CapexCode,$AD:$AD)","v":0},{"$f":"SUMIFS(Sheet1!S71_PYearAmount,Sheet1!S71_SubMunicipalVoteNo,$AC:$AC,Sheet1!S71_A5CapexCode,$AD:$AD)","v":0},{"$f":"SUMIFS(Sheet1!S71_OriginalBudAmnt,Sheet1!S71_SubMunicipalVoteNo,$AC:$AC,Sheet1!S71_A5CapexCode,$AD:$AD)","v":0},{"$f":"SUMIFS(Sheet1!S71_AdjustmentBudAmnt,Sheet1!S71_SubMunicipalVoteNo,$AC:$AC,Sheet1!S71_A5CapexCode,$AD:$AD)","v":0},{"$f":"SUMIFS(Sheet1!S71_AdjustmentBudAmnt,Sheet1!S71_SubMunicipalVoteNo,$AC:$AC,Sheet1!S71_A5CapexCode,$AD:$AD)","v":0},{"$f":"SUMIFS(Sheet1!CD:CD,Sheet1!S71_SubMunicipalVoteNo,$AC:$AC,Sheet1!S71_A5CapexCode,$AD:$AD)","v":0},{"$f":"SUMIFS(Sheet1!S71_ASBudgetAmount,Sheet1!S71_SubMunicipalVoteNo,$AC:$AC,Sheet1!S71_A5CapexCode,$AD:$AD)","v":0},{"$f":"SUMIFS(Sheet1!S71_OY1BudgetAmount,Sheet1!S71_SubMunicipalVoteNo,$AC:$AC,Sheet1!S71_A5CapexCode,$AD:$AD)","v":0},{"$f":"SUMIFS(Sheet1!S71_OY2BudgetAmount,Sheet1!S71_SubMunicipalVoteNo,$AC:$AC,Sheet1!S71_A5CapexCode,$AD:$AD)","v":0},null,null,null,null,null,null,null,null,null,null,null,null,null,null,null,null,16,"CE"]
["",null,{"$f":"SUMIFS(Sheet1!S71_PPPYearAmount,Sheet1!S71_SubMunicipalVoteNo,$AC:$AC,Sheet1!S71_A5CapexCode,$AD:$AD)","v":0},{"$f":"SUMIFS(Sheet1!S71_PPYearAmount,Sheet1!S71_SubMunicipalVoteNo,$AC:$AC,Sheet1!S71_A5CapexCode,$AD:$AD)","v":0},{"$f":"SUMIFS(Sheet1!S71_PYearAmount,Sheet1!S71_SubMunicipalVoteNo,$AC:$AC,Sheet1!S71_A5CapexCode,$AD:$AD)","v":0},{"$f":"SUMIFS(Sheet1!S71_OriginalBudAmnt,Sheet1!S71_SubMunicipalVoteNo,$AC:$AC,Sheet1!S71_A5CapexCode,$AD:$AD)","v":0},{"$f":"SUMIFS(Sheet1!S71_AdjustmentBudAmnt,Sheet1!S71_SubMunicipalVoteNo,$AC:$AC,Sheet1!S71_A5CapexCode,$AD:$AD)","v":0},{"$f":"SUMIFS(Sheet1!S71_AdjustmentBudAmnt,Sheet1!S71_SubMunicipalVoteNo,$AC:$AC,Sheet1!S71_A5CapexCode,$AD:$AD)","v":0},{"$f":"SUMIFS(Sheet1!CD:CD,Sheet1!S71_SubMunicipalVoteNo,$AC:$AC,Sheet1!S71_A5CapexCode,$AD:$AD)","v":0},{"$f":"SUMIFS(Sheet1!S71_ASBudgetAmount,Sheet1!S71_SubMunicipalVoteNo,$AC:$AC,Sheet1!S71_A5CapexCode,$AD:$AD)","v":0},{"$f":"SUMIFS(Sheet1!S71_OY1BudgetAmount,Sheet1!S71_SubMunicipalVoteNo,$AC:$AC,Sheet1!S71_A5CapexCode,$AD:$AD)","v":0},{"$f":"SUMIFS(Sheet1!S71_OY2BudgetAmount,Sheet1!S71_SubMunicipalVoteNo,$AC:$AC,Sheet1!S71_A5CapexCode,$AD:$AD)","v":0},null,null,null,null,null,null,null,null,null,null,null,null,null,null,null,null,17,"CE"]
["",null,{"$f":"SUMIFS(Sheet1!S71_PPPYearAmount,Sheet1!S71_SubMunicipalVoteNo,$AC:$AC,Sheet1!S71_A5CapexCode,$AD:$AD)","v":0},{"$f":"SUMIFS(Sheet1!S71_PPYearAmount,Sheet1!S71_SubMunicipalVoteNo,$AC:$AC,Sheet1!S71_A5CapexCode,$AD:$AD)","v":0},{"$f":"SUMIFS(Sheet1!S71_PYearAmount,Sheet1!S71_SubMunicipalVoteNo,$AC:$AC,Sheet1!S71_A5CapexCode,$AD:$AD)","v":0},{"$f":"SUMIFS(Sheet1!S71_OriginalBudAmnt,Sheet1!S71_SubMunicipalVoteNo,$AC:$AC,Sheet1!S71_A5CapexCode,$AD:$AD)","v":0},{"$f":"SUMIFS(Sheet1!S71_AdjustmentBudAmnt,Sheet1!S71_SubMunicipalVoteNo,$AC:$AC,Sheet1!S71_A5CapexCode,$AD:$AD)","v":0},{"$f":"SUMIFS(Sheet1!S71_AdjustmentBudAmnt,Sheet1!S71_SubMunicipalVoteNo,$AC:$AC,Sheet1!S71_A5CapexCode,$AD:$AD)","v":0},{"$f":"SUMIFS(Sheet1!CD:CD,Sheet1!S71_SubMunicipalVoteNo,$AC:$AC,Sheet1!S71_A5CapexCode,$AD:$AD)","v":0},{"$f":"SUMIFS(Sheet1!S71_ASBudgetAmount,Sheet1!S71_SubMunicipalVoteNo,$AC:$AC,Sheet1!S71_A5CapexCode,$AD:$AD)","v":0},{"$f":"SUMIFS(Sheet1!S71_OY1BudgetAmount,Sheet1!S71_SubMunicipalVoteNo,$AC:$AC,Sheet1!S71_A5CapexCode,$AD:$AD)","v":0},{"$f":"SUMIFS(Sheet1!S71_OY2BudgetAmount,Sheet1!S71_SubMunicipalVoteNo,$AC:$AC,Sheet1!S71_A5CapexCode,$AD:$AD)","v":0},null,null,null,null,null,null,null,null,null,null,null,null,null,null,null,null,18,"CE"]
["",null,{"$f":"SUMIFS(Sheet1!S71_PPPYearAmount,Sheet1!S71_SubMunicipalVoteNo,$AC:$AC,Sheet1!S71_A5CapexCode,$AD:$AD)","v":0},{"$f":"SUMIFS(Sheet1!S71_PPYearAmount,Sheet1!S71_SubMunicipalVoteNo,$AC:$AC,Sheet1!S71_A5CapexCode,$AD:$AD)","v":0},{"$f":"SUMIFS(Sheet1!S71_PYearAmount,Sheet1!S71_SubMunicipalVoteNo,$AC:$AC,Sheet1!S71_A5CapexCode,$AD:$AD)","v":0},{"$f":"SUMIFS(Sheet1!S71_OriginalBudAmnt,Sheet1!S71_SubMunicipalVoteNo,$AC:$AC,Sheet1!S71_A5CapexCode,$AD:$AD)","v":0},{"$f":"SUMIFS(Sheet1!S71_AdjustmentBudAmnt,Sheet1!S71_SubMunicipalVoteNo,$AC:$AC,Sheet1!S71_A5CapexCode,$AD:$AD)","v":0},{"$f":"SUMIFS(Sheet1!S71_AdjustmentBudAmnt,Sheet1!S71_SubMunicipalVoteNo,$AC:$AC,Sheet1!S71_A5CapexCode,$AD:$AD)","v":0},{"$f":"SUMIFS(Sheet1!CD:CD,Sheet1!S71_SubMunicipalVoteNo,$AC:$AC,Sheet1!S71_A5CapexCode,$AD:$AD)","v":0},{"$f":"SUMIFS(Sheet1!S71_ASBudgetAmount,Sheet1!S71_SubMunicipalVoteNo,$AC:$AC,Sheet1!S71_A5CapexCode,$AD:$AD)","v":0},{"$f":"SUMIFS(Sheet1!S71_OY1BudgetAmount,Sheet1!S71_SubMunicipalVoteNo,$AC:$AC,Sheet1!S71_A5CapexCode,$AD:$AD)","v":0},{"$f":"SUMIFS(Sheet1!S71_OY2BudgetAmount,Sheet1!S71_SubMunicipalVoteNo,$AC:$AC,Sheet1!S71_A5CapexCode,$AD:$AD)","v":0},null,null,null,null,null,null,null,null,null,null,null,null,null,null,null,null,19,"CE"]
["",null,{"$f":"SUMIFS(Sheet1!S71_PPPYearAmount,Sheet1!S71_SubMunicipalVoteNo,$AC:$AC,Sheet1!S71_A5CapexCode,$AD:$AD)","v":0},{"$f":"SUMIFS(Sheet1!S71_PPYearAmount,Sheet1!S71_SubMunicipalVoteNo,$AC:$AC,Sheet1!S71_A5CapexCode,$AD:$AD)","v":0},{"$f":"SUMIFS(Sheet1!S71_PYearAmount,Sheet1!S71_SubMunicipalVoteNo,$AC:$AC,Sheet1!S71_A5CapexCode,$AD:$AD)","v":0},{"$f":"SUMIFS(Sheet1!S71_OriginalBudAmnt,Sheet1!S71_SubMunicipalVoteNo,$AC:$AC,Sheet1!S71_A5CapexCode,$AD:$AD)","v":0},{"$f":"SUMIFS(Sheet1!S71_AdjustmentBudAmnt,Sheet1!S71_SubMunicipalVoteNo,$AC:$AC,Sheet1!S71_A5CapexCode,$AD:$AD)","v":0},{"$f":"SUMIFS(Sheet1!S71_AdjustmentBudAmnt,Sheet1!S71_SubMunicipalVoteNo,$AC:$AC,Sheet1!S71_A5CapexCode,$AD:$AD)","v":0},{"$f":"SUMIFS(Sheet1!CD:CD,Sheet1!S71_SubMunicipalVoteNo,$AC:$AC,Sheet1!S71_A5CapexCode,$AD:$AD)","v":0},{"$f":"SUMIFS(Sheet1!S71_ASBudgetAmount,Sheet1!S71_SubMunicipalVoteNo,$AC:$AC,Sheet1!S71_A5CapexCode,$AD:$AD)","v":0},{"$f":"SUMIFS(Sheet1!S71_OY1BudgetAmount,Sheet1!S71_SubMunicipalVoteNo,$AC:$AC,Sheet1!S71_A5CapexCode,$AD:$AD)","v":0},{"$f":"SUMIFS(Sheet1!S71_OY2BudgetAmount,Sheet1!S71_SubMunicipalVoteNo,$AC:$AC,Sheet1!S71_A5CapexCode,$AD:$AD)","v":0},null,null,null,null,null,null,null,null,null,null,null,null,null,null,null,null,110,"CE"]
["Vote 2 - Finance and Administration",null,{"$f":"SUM(C187:C196)","v":0},0,256834,344771,248000,248000,340997,310000,0,0]
["2.1 - Administrative and Corporate Support",null,{"$f":"SUMIFS(Sheet1!S71_PPPYearAmount,Sheet1!S71_SubMunicipalVoteNo,$AC:$AC,Sheet1!S71_A5CapexCode,$AD:$AD)","v":0},{"$f":"SUMIFS(Sheet1!S71_PPYearAmount,Sheet1!S71_SubMunicipalVoteNo,$AC:$AC,Sheet1!S71_A5CapexCode,$AD:$AD)","v":0},{"$f":"SUMIFS(Sheet1!S71_PYearAmount,Sheet1!S71_SubMunicipalVoteNo,$AC:$AC,Sheet1!S71_A5CapexCode,$AD:$AD)","v":109023},{"$f":"SUMIFS(Sheet1!S71_OriginalBudAmnt,Sheet1!S71_SubMunicipalVoteNo,$AC:$AC,Sheet1!S71_A5CapexCode,$AD:$AD)","v":310000},{"$f":"SUMIFS(Sheet1!S71_AdjustmentBudAmnt,Sheet1!S71_SubMunicipalVoteNo,$AC:$AC,Sheet1!S71_A5CapexCode,$AD:$AD)","v":140000},{"$f":"SUMIFS(Sheet1!S71_AdjustmentBudAmnt,Sheet1!S71_SubMunicipalVoteNo,$AC:$AC,Sheet1!S71_A5CapexCode,$AD:$AD)","v":140000},{"$f":"SUMIFS(Sheet1!CD:CD,Sheet1!S71_SubMunicipalVoteNo,$AC:$AC,Sheet1!S71_A5CapexCode,$AD:$AD)","v":165362},{"$f":"SUMIFS(Sheet1!S71_ASBudgetAmount,Sheet1!S71_SubMunicipalVoteNo,$AC:$AC,Sheet1!S71_A5CapexCode,$AD:$AD)","v":200000},{"$f":"SUMIFS(Sheet1!S71_OY1BudgetAmount,Sheet1!S71_SubMunicipalVoteNo,$AC:$AC,Sheet1!S71_A5CapexCode,$AD:$AD)","v":0},{"$f":"SUMIFS(Sheet1!S71_OY2BudgetAmount,Sheet1!S71_SubMunicipalVoteNo,$AC:$AC,Sheet1!S71_A5CapexCode,$AD:$AD)","v":0},null,null,null,null,null,null,null,null,null,null,null,null,null,null,null,null,21,"CE"]
["2.2 - Finance",null,{"$f":"SUMIFS(Sheet1!S71_PPPYearAmount,Sheet1!S71_SubMunicipalVoteNo,$AC:$AC,Sheet1!S71_A5CapexCode,$AD:$AD)","v":0},{"$f":"SUMIFS(Sheet1!S71_PPYearAmount,Sheet1!S71_SubMunicipalVoteNo,$AC:$AC,Sheet1!S71_A5CapexCode,$AD:$AD)","v":0},{"$f":"SUMIFS(Sheet1!S71_PYearAmount,Sheet1!S71_SubMunicipalVoteNo,$AC:$AC,Sheet1!S71_A5CapexCode,$AD:$AD)","v":147811},{"$f":"SUMIFS(Sheet1!S71_OriginalBudAmnt,Sheet1!S71_SubMunicipalVoteNo,$AC:$AC,Sheet1!S71_A5CapexCode,$AD:$AD)","v":34771},{"$f":"SUMIFS(Sheet1!S71_AdjustmentBudAmnt,Sheet1!S71_SubMunicipalVoteNo,$AC:$AC,Sheet1!S71_A5CapexCode,$AD:$AD)","v":108000},{"$f":"SUMIFS(Sheet1!S71_AdjustmentBudAmnt,Sheet1!S71_SubMunicipalVoteNo,$AC:$AC,Sheet1!S71_A5CapexCode,$AD:$AD)","v":108000},{"$f":"SUMIFS(Sheet1!CD:CD,Sheet1!S71_SubMunicipalVoteNo,$AC:$AC,Sheet1!S71_A5CapexCode,$AD:$AD)","v":175635},{"$f":"SUMIFS(Sheet1!S71_ASBudgetAmount,Sheet1!S71_SubMunicipalVoteNo,$AC:$AC,Sheet1!S71_A5CapexCode,$AD:$AD)","v":110000},{"$f":"SUMIFS(Sheet1!S71_OY1BudgetAmount,Sheet1!S71_SubMunicipalVoteNo,$AC:$AC,Sheet1!S71_A5CapexCode,$AD:$AD)","v":0},{"$f":"SUMIFS(Sheet1!S71_OY2BudgetAmount,Sheet1!S71_SubMunicipalVoteNo,$AC:$AC,Sheet1!S71_A5CapexCode,$AD:$AD)","v":0},null,null,null,null,null,null,null,null,null,null,null,null,null,null,null,null,22,"CE"]
["2.3 - Human Resources",null,{"$f":"SUMIFS(Sheet1!S71_PPPYearAmount,Sheet1!S71_SubMunicipalVoteNo,$AC:$AC,Sheet1!S71_A5CapexCode,$AD:$AD)","v":0},{"$f":"SUMIFS(Sheet1!S71_PPYearAmount,Sheet1!S71_SubMunicipalVoteNo,$AC:$AC,Sheet1!S71_A5CapexCode,$AD:$AD)","v":0},{"$f":"SUMIFS(Sheet1!S71_PYearAmount,Sheet1!S71_SubMunicipalVoteNo,$AC:$AC,Sheet1!S71_A5CapexCode,$AD:$AD)","v":0},{"$f":"SUMIFS(Sheet1!S71_OriginalBudAmnt,Sheet1!S71_SubMunicipalVoteNo,$AC:$AC,Sheet1!S71_A5CapexCode,$AD:$AD)","v":0},{"$f":"SUMIFS(Sheet1!S71_AdjustmentBudAmnt,Sheet1!S71_SubMunicipalVoteNo,$AC:$AC,Sheet1!S71_A5CapexCode,$AD:$AD)","v":0},{"$f":"SUMIFS(Sheet1!S71_AdjustmentBudAmnt,Sheet1!S71_SubMunicipalVoteNo,$AC:$AC,Sheet1!S71_A5CapexCode,$AD:$AD)","v":0},{"$f":"SUMIFS(Sheet1!CD:CD,Sheet1!S71_SubMunicipalVoteNo,$AC:$AC,Sheet1!S71_A5CapexCode,$AD:$AD)","v":0},{"$f":"SUMIFS(Sheet1!S71_ASBudgetAmount,Sheet1!S71_SubMunicipalVoteNo,$AC:$AC,Sheet1!S71_A5CapexCode,$AD:$AD)","v":0},{"$f":"SUMIFS(Sheet1!S71_OY1BudgetAmount,Sheet1!S71_SubMunicipalVoteNo,$AC:$AC,Sheet1!S71_A5CapexCode,$AD:$AD)","v":0},{"$f":"SUMIFS(Sheet1!S71_OY2BudgetAmount,Sheet1!S71_SubMunicipalVoteNo,$AC:$AC,Sheet1!S71_A5CapexCode,$AD:$AD)","v":0},null,null,null,null,null,null,null,null,null,null,null,null,null,null,null,null,23,"CE"]
["",null,{"$f":"SUMIFS(Sheet1!S71_PPPYearAmount,Sheet1!S71_SubMunicipalVoteNo,$AC:$AC,Sheet1!S71_A5CapexCode,$AD:$AD)","v":0},{"$f":"SUMIFS(Sheet1!S71_PPYearAmount,Sheet1!S71_SubMunicipalVoteNo,$AC:$AC,Sheet1!S71_A5CapexCode,$AD:$AD)","v":0},{"$f":"SUMIFS(Sheet1!S71_PYearAmount,Sheet1!S71_SubMunicipalVoteNo,$AC:$AC,Sheet1!S71_A5CapexCode,$AD:$AD)","v":0},{"$f":"SUMIFS(Sheet1!S71_OriginalBudAmnt,Sheet1!S71_SubMunicipalVoteNo,$AC:$AC,Sheet1!S71_A5CapexCode,$AD:$AD)","v":0},{"$f":"SUMIFS(Sheet1!S71_AdjustmentBudAmnt,Sheet1!S71_SubMunicipalVoteNo,$AC:$AC,Sheet1!S71_A5CapexCode,$AD:$AD)","v":0},{"$f":"SUMIFS(Sheet1!S71_AdjustmentBudAmnt,Sheet1!S71_SubMunicipalVoteNo,$AC:$AC,Sheet1!S71_A5CapexCode,$AD:$AD)","v":0},{"$f":"SUMIFS(Sheet1!CD:CD,Sheet1!S71_SubMunicipalVoteNo,$AC:$AC,Sheet1!S71_A5CapexCode,$AD:$AD)","v":0},{"$f":"SUMIFS(Sheet1!S71_ASBudgetAmount,Sheet1!S71_SubMunicipalVoteNo,$AC:$AC,Sheet1!S71_A5CapexCode,$AD:$AD)","v":0},{"$f":"SUMIFS(Sheet1!S71_OY1BudgetAmount,Sheet1!S71_SubMunicipalVoteNo,$AC:$AC,Sheet1!S71_A5CapexCode,$AD:$AD)","v":0},{"$f":"SUMIFS(Sheet1!S71_OY2BudgetAmount,Sheet1!S71_SubMunicipalVoteNo,$AC:$AC,Sheet1!S71_A5CapexCode,$AD:$AD)","v":0},null,null,null,null,null,null,null,null,null,null,null,null,null,null,null,null,24,"CE"]
["",null,{"$f":"SUMIFS(Sheet1!S71_PPPYearAmount,Sheet1!S71_SubMunicipalVoteNo,$AC:$AC,Sheet1!S71_A5CapexCode,$AD:$AD)","v":0},{"$f":"SUMIFS(Sheet1!S71_PPYearAmount,Sheet1!S71_SubMunicipalVoteNo,$AC:$AC,Sheet1!S71_A5CapexCode,$AD:$AD)","v":0},{"$f":"SUMIFS(Sheet1!S71_PYearAmount,Sheet1!S71_SubMunicipalVoteNo,$AC:$AC,Sheet1!S71_A5CapexCode,$AD:$AD)","v":0},{"$f":"SUMIFS(Sheet1!S71_OriginalBudAmnt,Sheet1!S71_SubMunicipalVoteNo,$AC:$AC,Sheet1!S71_A5CapexCode,$AD:$AD)","v":0},{"$f":"SUMIFS(Sheet1!S71_AdjustmentBudAmnt,Sheet1!S71_SubMunicipalVoteNo,$AC:$AC,Sheet1!S71_A5CapexCode,$AD:$AD)","v":0},{"$f":"SUMIFS(Sheet1!S71_AdjustmentBudAmnt,Sheet1!S71_SubMunicipalVoteNo,$AC:$AC,Sheet1!S71_A5CapexCode,$AD:$AD)","v":0},{"$f":"SUMIFS(Sheet1!CD:CD,Sheet1!S71_SubMunicipalVoteNo,$AC:$AC,Sheet1!S71_A5CapexCode,$AD:$AD)","v":0},{"$f":"SUMIFS(Sheet1!S71_ASBudgetAmount,Sheet1!S71_SubMunicipalVoteNo,$AC:$AC,Sheet1!S71_A5CapexCode,$AD:$AD)","v":0},{"$f":"SUMIFS(Sheet1!S71_OY1BudgetAmount,Sheet1!S71_SubMunicipalVoteNo,$AC:$AC,Sheet1!S71_A5CapexCode,$AD:$AD)","v":0},{"$f":"SUMIFS(Sheet1!S71_OY2BudgetAmount,Sheet1!S71_SubMunicipalVoteNo,$AC:$AC,Sheet1!S71_A5CapexCode,$AD:$AD)","v":0},null,null,null,null,null,null,null,null,null,null,null,null,null,null,null,null,25,"CE"]
["",null,{"$f":"SUMIFS(Sheet1!S71_PPPYearAmount,Sheet1!S71_SubMunicipalVoteNo,$AC:$AC,Sheet1!S71_A5CapexCode,$AD:$AD)","v":0},{"$f":"SUMIFS(Sheet1!S71_PPYearAmount,Sheet1!S71_SubMunicipalVoteNo,$AC:$AC,Sheet1!S71_A5CapexCode,$AD:$AD)","v":0},{"$f":"SUMIFS(Sheet1!S71_PYearAmount,Sheet1!S71_SubMunicipalVoteNo,$AC:$AC,Sheet1!S71_A5CapexCode,$AD:$AD)","v":0},{"$f":"SUMIFS(Sheet1!S71_OriginalBudAmnt,Sheet1!S71_SubMunicipalVoteNo,$AC:$AC,Sheet1!S71_A5CapexCode,$AD:$AD)","v":0},{"$f":"SUMIFS(Sheet1!S71_AdjustmentBudAmnt,Sheet1!S71_SubMunicipalVoteNo,$AC:$AC,Sheet1!S71_A5CapexCode,$AD:$AD)","v":0},{"$f":"SUMIFS(Sheet1!S71_AdjustmentBudAmnt,Sheet1!S71_SubMunicipalVoteNo,$AC:$AC,Sheet1!S71_A5CapexCode,$AD:$AD)","v":0},{"$f":"SUMIFS(Sheet1!CD:CD,Sheet1!S71_SubMunicipalVoteNo,$AC:$AC,Sheet1!S71_A5CapexCode,$AD:$AD)","v":0},{"$f":"SUMIFS(Sheet1!S71_ASBudgetAmount,Sheet1!S71_SubMunicipalVoteNo,$AC:$AC,Sheet1!S71_A5CapexCode,$AD:$AD)","v":0},{"$f":"SUMIFS(Sheet1!S71_OY1BudgetAmount,Sheet1!S71_SubMunicipalVoteNo,$AC:$AC,Sheet1!S71_A5CapexCode,$AD:$AD)","v":0},{"$f":"SUMIFS(Sheet1!S71_OY2BudgetAmount,Sheet1!S71_SubMunicipalVoteNo,$AC:$AC,Sheet1!S71_A5CapexCode,$AD:$AD)","v":0},null,null,null,null,null,null,null,null,null,null,null,null,null,null,null,null,26,"CE"]
["",null,{"$f":"SUMIFS(Sheet1!S71_PPPYearAmount,Sheet1!S71_SubMunicipalVoteNo,$AC:$AC,Sheet1!S71_A5CapexCode,$AD:$AD)","v":0},{"$f":"SUMIFS(Sheet1!S71_PPYearAmount,Sheet1!S71_SubMunicipalVoteNo,$AC:$AC,Sheet1!S71_A5CapexCode,$AD:$AD)","v":0},{"$f":"SUMIFS(Sheet1!S71_PYearAmount,Sheet1!S71_SubMunicipalVoteNo,$AC:$AC,Sheet1!S71_A5CapexCode,$AD:$AD)","v":0},{"$f":"SUMIFS(Sheet1!S71_OriginalBudAmnt,Sheet1!S71_SubMunicipalVoteNo,$AC:$AC,Sheet1!S71_A5CapexCode,$AD:$AD)","v":0},{"$f":"SUMIFS(Sheet1!S71_AdjustmentBudAmnt,Sheet1!S71_SubMunicipalVoteNo,$AC:$AC,Sheet1!S71_A5CapexCode,$AD:$AD)","v":0},{"$f":"SUMIFS(Sheet1!S71_AdjustmentBudAmnt,Sheet1!S71_SubMunicipalVoteNo,$AC:$AC,Sheet1!S71_A5CapexCode,$AD:$AD)","v":0},{"$f":"SUMIFS(Sheet1!CD:CD,Sheet1!S71_SubMunicipalVoteNo,$AC:$AC,Sheet1!S71_A5CapexCode,$AD:$AD)","v":0},{"$f":"SUMIFS(Sheet1!S71_ASBudgetAmount,Sheet1!S71_SubMunicipalVoteNo,$AC:$AC,Sheet1!S71_A5CapexCode,$AD:$AD)","v":0},{"$f":"SUMIFS(Sheet1!S71_OY1BudgetAmount,Sheet1!S71_SubMunicipalVoteNo,$AC:$AC,Sheet1!S71_A5CapexCode,$AD:$AD)","v":0},{"$f":"SUMIFS(Sheet1!S71_OY2BudgetAmount,Sheet1!S71_SubMunicipalVoteNo,$AC:$AC,Sheet1!S71_A5CapexCode,$AD:$AD)","v":0},null,null,null,null,null,null,null,null,null,null,null,null,null,null,null,null,27,"CE"]
["",null,{"$f":"SUMIFS(Sheet1!S71_PPPYearAmount,Sheet1!S71_SubMunicipalVoteNo,$AC:$AC,Sheet1!S71_A5CapexCode,$AD:$AD)","v":0},{"$f":"SUMIFS(Sheet1!S71_PPYearAmount,Sheet1!S71_SubMunicipalVoteNo,$AC:$AC,Sheet1!S71_A5CapexCode,$AD:$AD)","v":0},{"$f":"SUMIFS(Sheet1!S71_PYearAmount,Sheet1!S71_SubMunicipalVoteNo,$AC:$AC,Sheet1!S71_A5CapexCode,$AD:$AD)","v":0},{"$f":"SUMIFS(Sheet1!S71_OriginalBudAmnt,Sheet1!S71_SubMunicipalVoteNo,$AC:$AC,Sheet1!S71_A5CapexCode,$AD:$AD)","v":0},{"$f":"SUMIFS(Sheet1!S71_AdjustmentBudAmnt,Sheet1!S71_SubMunicipalVoteNo,$AC:$AC,Sheet1!S71_A5CapexCode,$AD:$AD)","v":0},{"$f":"SUMIFS(Sheet1!S71_AdjustmentBudAmnt,Sheet1!S71_SubMunicipalVoteNo,$AC:$AC,Sheet1!S71_A5CapexCode,$AD:$AD)","v":0},{"$f":"SUMIFS(Sheet1!CD:CD,Sheet1!S71_SubMunicipalVoteNo,$AC:$AC,Sheet1!S71_A5CapexCode,$AD:$AD)","v":0},{"$f":"SUMIFS(Sheet1!S71_ASBudgetAmount,Sheet1!S71_SubMunicipalVoteNo,$AC:$AC,Sheet1!S71_A5CapexCode,$AD:$AD)","v":0},{"$f":"SUMIFS(Sheet1!S71_OY1BudgetAmount,Sheet1!S71_SubMunicipalVoteNo,$AC:$AC,Sheet1!S71_A5CapexCode,$AD:$AD)","v":0},{"$f":"SUMIFS(Sheet1!S71_OY2BudgetAmount,Sheet1!S71_SubMunicipalVoteNo,$AC:$AC,Sheet1!S71_A5CapexCode,$AD:$AD)","v":0},null,null,null,null,null,null,null,null,null,null,null,null,null,null,null,null,28,"CE"]
["",null,{"$f":"SUMIFS(Sheet1!S71_PPPYearAmount,Sheet1!S71_SubMunicipalVoteNo,$AC:$AC,Sheet1!S71_A5CapexCode,$AD:$AD)","v":0},{"$f":"SUMIFS(Sheet1!S71_PPYearAmount,Sheet1!S71_SubMunicipalVoteNo,$AC:$AC,Sheet1!S71_A5CapexCode,$AD:$AD)","v":0},{"$f":"SUMIFS(Sheet1!S71_PYearAmount,Sheet1!S71_SubMunicipalVoteNo,$AC:$AC,Sheet1!S71_A5CapexCode,$AD:$AD)","v":0},{"$f":"SUMIFS(Sheet1!S71_OriginalBudAmnt,Sheet1!S71_SubMunicipalVoteNo,$AC:$AC,Sheet1!S71_A5CapexCode,$AD:$AD)","v":0},{"$f":"SUMIFS(Sheet1!S71_AdjustmentBudAmnt,Sheet1!S71_SubMunicipalVoteNo,$AC:$AC,Sheet1!S71_A5CapexCode,$AD:$AD)","v":0},{"$f":"SUMIFS(Sheet1!S71_AdjustmentBudAmnt,Sheet1!S71_SubMunicipalVoteNo,$AC:$AC,Sheet1!S71_A5CapexCode,$AD:$AD)","v":0},{"$f":"SUMIFS(Sheet1!CD:CD,Sheet1!S71_SubMunicipalVoteNo,$AC:$AC,Sheet1!S71_A5CapexCode,$AD:$AD)","v":0},{"$f":"SUMIFS(Sheet1!S71_ASBudgetAmount,Sheet1!S71_SubMunicipalVoteNo,$AC:$AC,Sheet1!S71_A5CapexCode,$AD:$AD)","v":0},{"$f":"SUMIFS(Sheet1!S71_OY1BudgetAmount,Sheet1!S71_SubMunicipalVoteNo,$AC:$AC,Sheet1!S71_A5CapexCode,$AD:$AD)","v":0},{"$f":"SUMIFS(Sheet1!S71_OY2BudgetAmount,Sheet1!S71_SubMunicipalVoteNo,$AC:$AC,Sheet1!S71_A5CapexCode,$AD:$AD)","v":0},null,null,null,null,null,null,null,null,null,null,null,null,null,null,null,null,29,"CE"]
["",null,{"$f":"SUMIFS(Sheet1!S71_PPPYearAmount,Sheet1!S71_SubMunicipalVoteNo,$AC:$AC,Sheet1!S71_A5CapexCode,$AD:$AD)","v":0},{"$f":"SUMIFS(Sheet1!S71_PPYearAmount,Sheet1!S71_SubMunicipalVoteNo,$AC:$AC,Sheet1!S71_A5CapexCode,$AD:$AD)","v":0},{"$f":"SUMIFS(Sheet1!S71_PYearAmount,Sheet1!S71_SubMunicipalVoteNo,$AC:$AC,Sheet1!S71_A5CapexCode,$AD:$AD)","v":0},{"$f":"SUMIFS(Sheet1!S71_OriginalBudAmnt,Sheet1!S71_SubMunicipalVoteNo,$AC:$AC,Sheet1!S71_A5CapexCode,$AD:$AD)","v":0},{"$f":"SUMIFS(Sheet1!S71_AdjustmentBudAmnt,Sheet1!S71_SubMunicipalVoteNo,$AC:$AC,Sheet1!S71_A5CapexCode,$AD:$AD)","v":0},{"$f":"SUMIFS(Sheet1!S71_AdjustmentBudAmnt,Sheet1!S71_SubMunicipalVoteNo,$AC:$AC,Sheet1!S71_A5CapexCode,$AD:$AD)","v":0},{"$f":"SUMIFS(Sheet1!CD:CD,Sheet1!S71_SubMunicipalVoteNo,$AC:$AC,Sheet1!S71_A5CapexCode,$AD:$AD)","v":0},{"$f":"SUMIFS(Sheet1!S71_ASBudgetAmount,Sheet1!S71_SubMunicipalVoteNo,$AC:$AC,Sheet1!S71_A5CapexCode,$AD:$AD)","v":0},{"$f":"SUMIFS(Sheet1!S71_OY1BudgetAmount,Sheet1!S71_SubMunicipalVoteNo,$AC:$AC,Sheet1!S71_A5CapexCode,$AD:$AD)","v":0},{"$f":"SUMIFS(Sheet1!S71_OY2BudgetAmount,Sheet1!S71_SubMunicipalVoteNo,$AC:$AC,Sheet1!S71_A5CapexCode,$AD:$AD)","v":0},null,null,null,null,null,null,null,null,null,null,null,null,null,null,null,null,210,"CE"]
["Vote 3 - Planning and Development",null,{"$f":"SUM(C198:C207)","v":0},0,48776,30000,30000,30000,69643,0,0,0]
["3.1 - Corporate Wide Strategic Planning (IDPs, LEDs)",null,{"$f":"SUMIFS(Sheet1!S71_PPPYearAmount,Sheet1!S71_SubMunicipalVoteNo,$AC:$AC,Sheet1!S71_A5CapexCode,$AD:$AD)","v":0},{"$f":"SUMIFS(Sheet1!S71_PPYearAmount,Sheet1!S71_SubMunicipalVoteNo,$AC:$AC,Sheet1!S71_A5CapexCode,$AD:$AD)","v":0},{"$f":"SUMIFS(Sheet1!S71_PYearAmount,Sheet1!S71_SubMunicipalVoteNo,$AC:$AC,Sheet1!S71_A5CapexCode,$AD:$AD)","v":0},{"$f":"SUMIFS(Sheet1!S71_OriginalBudAmnt,Sheet1!S71_SubMunicipalVoteNo,$AC:$AC,Sheet1!S71_A5CapexCode,$AD:$AD)","v":0},{"$f":"SUMIFS(Sheet1!S71_AdjustmentBudAmnt,Sheet1!S71_SubMunicipalVoteNo,$AC:$AC,Sheet1!S71_A5CapexCode,$AD:$AD)","v":0},{"$f":"SUMIFS(Sheet1!S71_AdjustmentBudAmnt,Sheet1!S71_SubMunicipalVoteNo,$AC:$AC,Sheet1!S71_A5CapexCode,$AD:$AD)","v":0},{"$f":"SUMIFS(Sheet1!CD:CD,Sheet1!S71_SubMunicipalVoteNo,$AC:$AC,Sheet1!S71_A5CapexCode,$AD:$AD)","v":0},{"$f":"SUMIFS(Sheet1!S71_ASBudgetAmount,Sheet1!S71_SubMunicipalVoteNo,$AC:$AC,Sheet1!S71_A5CapexCode,$AD:$AD)","v":0},{"$f":"SUMIFS(Sheet1!S71_OY1BudgetAmount,Sheet1!S71_SubMunicipalVoteNo,$AC:$AC,Sheet1!S71_A5CapexCode,$AD:$AD)","v":0},{"$f":"SUMIFS(Sheet1!S71_OY2BudgetAmount,Sheet1!S71_SubMunicipalVoteNo,$AC:$AC,Sheet1!S71_A5CapexCode,$AD:$AD)","v":0},null,null,null,null,null,null,null,null,null,null,null,null,null,null,null,null,31,"CE"]
["3.2 - Development Facilitation",null,{"$f":"SUMIFS(Sheet1!S71_PPPYearAmount,Sheet1!S71_SubMunicipalVoteNo,$AC:$AC,Sheet1!S71_A5CapexCode,$AD:$AD)","v":0},{"$f":"SUMIFS(Sheet1!S71_PPYearAmount,Sheet1!S71_SubMunicipalVoteNo,$AC:$AC,Sheet1!S71_A5CapexCode,$AD:$AD)","v":0},{"$f":"SUMIFS(Sheet1!S71_PYearAmount,Sheet1!S71_SubMunicipalVoteNo,$AC:$AC,Sheet1!S71_A5CapexCode,$AD:$AD)","v":0},{"$f":"SUMIFS(Sheet1!S71_OriginalBudAmnt,Sheet1!S71_SubMunicipalVoteNo,$AC:$AC,Sheet1!S71_A5CapexCode,$AD:$AD)","v":0},{"$f":"SUMIFS(Sheet1!S71_AdjustmentBudAmnt,Sheet1!S71_SubMunicipalVoteNo,$AC:$AC,Sheet1!S71_A5CapexCode,$AD:$AD)","v":0},{"$f":"SUMIFS(Sheet1!S71_AdjustmentBudAmnt,Sheet1!S71_SubMunicipalVoteNo,$AC:$AC,Sheet1!S71_A5CapexCode,$AD:$AD)","v":0},{"$f":"SUMIFS(Sheet1!CD:CD,Sheet1!S71_SubMunicipalVoteNo,$AC:$AC,Sheet1!S71_A5CapexCode,$AD:$AD)","v":0},{"$f":"SUMIFS(Sheet1!S71_ASBudgetAmount,Sheet1!S71_SubMunicipalVoteNo,$AC:$AC,Sheet1!S71_A5CapexCode,$AD:$AD)","v":0},{"$f":"SUMIFS(Sheet1!S71_OY1BudgetAmount,Sheet1!S71_SubMunicipalVoteNo,$AC:$AC,Sheet1!S71_A5CapexCode,$AD:$AD)","v":0},{"$f":"SUMIFS(Sheet1!S71_OY2BudgetAmount,Sheet1!S71_SubMunicipalVoteNo,$AC:$AC,Sheet1!S71_A5CapexCode,$AD:$AD)","v":0},null,null,null,null,null,null,null,null,null,null,null,null,null,null,null,null,32,"CE"]
["3.3 - Economic Development/Planning",null,{"$f":"SUMIFS(Sheet1!S71_PPPYearAmount,Sheet1!S71_SubMunicipalVoteNo,$AC:$AC,Sheet1!S71_A5CapexCode,$AD:$AD)","v":0},{"$f":"SUMIFS(Sheet1!S71_PPYearAmount,Sheet1!S71_SubMunicipalVoteNo,$AC:$AC,Sheet1!S71_A5CapexCode,$AD:$AD)","v":0},{"$f":"SUMIFS(Sheet1!S71_PYearAmount,Sheet1!S71_SubMunicipalVoteNo,$AC:$AC,Sheet1!S71_A5CapexCode,$AD:$AD)","v":48776},{"$f":"SUMIFS(Sheet1!S71_OriginalBudAmnt,Sheet1!S71_SubMunicipalVoteNo,$AC:$AC,Sheet1!S71_A5CapexCode,$AD:$AD)","v":30000},{"$f":"SUMIFS(Sheet1!S71_AdjustmentBudAmnt,Sheet1!S71_SubMunicipalVoteNo,$AC:$AC,Sheet1!S71_A5CapexCode,$AD:$AD)","v":30000},{"$f":"SUMIFS(Sheet1!S71_AdjustmentBudAmnt,Sheet1!S71_SubMunicipalVoteNo,$AC:$AC,Sheet1!S71_A5CapexCode,$AD:$AD)","v":30000},{"$f":"SUMIFS(Sheet1!CD:CD,Sheet1!S71_SubMunicipalVoteNo,$AC:$AC,Sheet1!S71_A5CapexCode,$AD:$AD)","v":69643},{"$f":"SUMIFS(Sheet1!S71_ASBudgetAmount,Sheet1!S71_SubMunicipalVoteNo,$AC:$AC,Sheet1!S71_A5CapexCode,$AD:$AD)","v":0},{"$f":"SUMIFS(Sheet1!S71_OY1BudgetAmount,Sheet1!S71_SubMunicipalVoteNo,$AC:$AC,Sheet1!S71_A5CapexCode,$AD:$AD)","v":0},{"$f":"SUMIFS(Sheet1!S71_OY2BudgetAmount,Sheet1!S71_SubMunicipalVoteNo,$AC:$AC,Sheet1!S71_A5CapexCode,$AD:$AD)","v":0},null,null,null,null,null,null,null,null,null,null,null,null,null,null,null,null,33,"CE"]
["3.4 - Billboards",null,{"$f":"SUMIFS(Sheet1!S71_PPPYearAmount,Sheet1!S71_SubMunicipalVoteNo,$AC:$AC,Sheet1!S71_A5CapexCode,$AD:$AD)","v":0},{"$f":"SUMIFS(Sheet1!S71_PPYearAmount,Sheet1!S71_SubMunicipalVoteNo,$AC:$AC,Sheet1!S71_A5CapexCode,$AD:$AD)","v":0},{"$f":"SUMIFS(Sheet1!S71_PYearAmount,Sheet1!S71_SubMunicipalVoteNo,$AC:$AC,Sheet1!S71_A5CapexCode,$AD:$AD)","v":0},{"$f":"SUMIFS(Sheet1!S71_OriginalBudAmnt,Sheet1!S71_SubMunicipalVoteNo,$AC:$AC,Sheet1!S71_A5CapexCode,$AD:$AD)","v":0},{"$f":"SUMIFS(Sheet1!S71_AdjustmentBudAmnt,Sheet1!S71_SubMunicipalVoteNo,$AC:$AC,Sheet1!S71_A5CapexCode,$AD:$AD)","v":0},{"$f":"SUMIFS(Sheet1!S71_AdjustmentBudAmnt,Sheet1!S71_SubMunicipalVoteNo,$AC:$AC,Sheet1!S71_A5CapexCode,$AD:$AD)","v":0},{"$f":"SUMIFS(Sheet1!CD:CD,Sheet1!S71_SubMunicipalVoteNo,$AC:$AC,Sheet1!S71_A5CapexCode,$AD:$AD)","v":0},{"$f":"SUMIFS(Sheet1!S71_ASBudgetAmount,Sheet1!S71_SubMunicipalVoteNo,$AC:$AC,Sheet1!S71_A5CapexCode,$AD:$AD)","v":0},{"$f":"SUMIFS(Sheet1!S71_OY1BudgetAmount,Sheet1!S71_SubMunicipalVoteNo,$AC:$AC,Sheet1!S71_A5CapexCode,$AD:$AD)","v":0},{"$f":"SUMIFS(Sheet1!S71_OY2BudgetAmount,Sheet1!S71_SubMunicipalVoteNo,$AC:$AC,Sheet1!S71_A5CapexCode,$AD:$AD)","v":0},null,null,null,null,null,null,null,null,null,null,null,null,null,null,null,null,34,"CE"]
["",null,{"$f":"SUMIFS(Sheet1!S71_PPPYearAmount,Sheet1!S71_SubMunicipalVoteNo,$AC:$AC,Sheet1!S71_A5CapexCode,$AD:$AD)","v":0},{"$f":"SUMIFS(Sheet1!S71_PPYearAmount,Sheet1!S71_SubMunicipalVoteNo,$AC:$AC,Sheet1!S71_A5CapexCode,$AD:$AD)","v":0},{"$f":"SUMIFS(Sheet1!S71_PYearAmount,Sheet1!S71_SubMunicipalVoteNo,$AC:$AC,Sheet1!S71_A5CapexCode,$AD:$AD)","v":0},{"$f":"SUMIFS(Sheet1!S71_OriginalBudAmnt,Sheet1!S71_SubMunicipalVoteNo,$AC:$AC,Sheet1!S71_A5CapexCode,$AD:$AD)","v":0},{"$f":"SUMIFS(Sheet1!S71_AdjustmentBudAmnt,Sheet1!S71_SubMunicipalVoteNo,$AC:$AC,Sheet1!S71_A5CapexCode,$AD:$AD)","v":0},{"$f":"SUMIFS(Sheet1!S71_AdjustmentBudAmnt,Sheet1!S71_SubMunicipalVoteNo,$AC:$AC,Sheet1!S71_A5CapexCode,$AD:$AD)","v":0},{"$f":"SUMIFS(Sheet1!CD:CD,Sheet1!S71_SubMunicipalVoteNo,$AC:$AC,Sheet1!S71_A5CapexCode,$AD:$AD)","v":0},{"$f":"SUMIFS(Sheet1!S71_ASBudgetAmount,Sheet1!S71_SubMunicipalVoteNo,$AC:$AC,Sheet1!S71_A5CapexCode,$AD:$AD)","v":0},{"$f":"SUMIFS(Sheet1!S71_OY1BudgetAmount,Sheet1!S71_SubMunicipalVoteNo,$AC:$AC,Sheet1!S71_A5CapexCode,$AD:$AD)","v":0},{"$f":"SUMIFS(Sheet1!S71_OY2BudgetAmount,Sheet1!S71_SubMunicipalVoteNo,$AC:$AC,Sheet1!S71_A5CapexCode,$AD:$AD)","v":0},null,null,null,null,null,null,null,null,null,null,null,null,null,null,null,null,35,"CE"]
["",null,{"$f":"SUMIFS(Sheet1!S71_PPPYearAmount,Sheet1!S71_SubMunicipalVoteNo,$AC:$AC,Sheet1!S71_A5CapexCode,$AD:$AD)","v":0},{"$f":"SUMIFS(Sheet1!S71_PPYearAmount,Sheet1!S71_SubMunicipalVoteNo,$AC:$AC,Sheet1!S71_A5CapexCode,$AD:$AD)","v":0},{"$f":"SUMIFS(Sheet1!S71_PYearAmount,Sheet1!S71_SubMunicipalVoteNo,$AC:$AC,Sheet1!S71_A5CapexCode,$AD:$AD)","v":0},{"$f":"SUMIFS(Sheet1!S71_OriginalBudAmnt,Sheet1!S71_SubMunicipalVoteNo,$AC:$AC,Sheet1!S71_A5CapexCode,$AD:$AD)","v":0},{"$f":"SUMIFS(Sheet1!S71_AdjustmentBudAmnt,Sheet1!S71_SubMunicipalVoteNo,$AC:$AC,Sheet1!S71_A5CapexCode,$AD:$AD)","v":0},{"$f":"SUMIFS(Sheet1!S71_AdjustmentBudAmnt,Sheet1!S71_SubMunicipalVoteNo,$AC:$AC,Sheet1!S71_A5CapexCode,$AD:$AD)","v":0},{"$f":"SUMIFS(Sheet1!CD:CD,Sheet1!S71_SubMunicipalVoteNo,$AC:$AC,Sheet1!S71_A5CapexCode,$AD:$AD)","v":0},{"$f":"SUMIFS(Sheet1!S71_ASBudgetAmount,Sheet1!S71_SubMunicipalVoteNo,$AC:$AC,Sheet1!S71_A5CapexCode,$AD:$AD)","v":0},{"$f":"SUMIFS(Sheet1!S71_OY1BudgetAmount,Sheet1!S71_SubMunicipalVoteNo,$AC:$AC,Sheet1!S71_A5CapexCode,$AD:$AD)","v":0},{"$f":"SUMIFS(Sheet1!S71_OY2BudgetAmount,Sheet1!S71_SubMunicipalVoteNo,$AC:$AC,Sheet1!S71_A5CapexCode,$AD:$AD)","v":0},null,null,null,null,null,null,null,null,null,null,null,null,null,null,null,null,36,"CE"]
["",null,{"$f":"SUMIFS(Sheet1!S71_PPPYearAmount,Sheet1!S71_SubMunicipalVoteNo,$AC:$AC,Sheet1!S71_A5CapexCode,$AD:$AD)","v":0},{"$f":"SUMIFS(Sheet1!S71_PPYearAmount,Sheet1!S71_SubMunicipalVoteNo,$AC:$AC,Sheet1!S71_A5CapexCode,$AD:$AD)","v":0},{"$f":"SUMIFS(Sheet1!S71_PYearAmount,Sheet1!S71_SubMunicipalVoteNo,$AC:$AC,Sheet1!S71_A5CapexCode,$AD:$AD)","v":0},{"$f":"SUMIFS(Sheet1!S71_OriginalBudAmnt,Sheet1!S71_SubMunicipalVoteNo,$AC:$AC,Sheet1!S71_A5CapexCode,$AD:$AD)","v":0},{"$f":"SUMIFS(Sheet1!S71_AdjustmentBudAmnt,Sheet1!S71_SubMunicipalVoteNo,$AC:$AC,Sheet1!S71_A5CapexCode,$AD:$AD)","v":0},{"$f":"SUMIFS(Sheet1!S71_AdjustmentBudAmnt,Sheet1!S71_SubMunicipalVoteNo,$AC:$AC,Sheet1!S71_A5CapexCode,$AD:$AD)","v":0},{"$f":"SUMIFS(Sheet1!CD:CD,Sheet1!S71_SubMunicipalVoteNo,$AC:$AC,Sheet1!S71_A5CapexCode,$AD:$AD)","v":0},{"$f":"SUMIFS(Sheet1!S71_ASBudgetAmount,Sheet1!S71_SubMunicipalVoteNo,$AC:$AC,Sheet1!S71_A5CapexCode,$AD:$AD)","v":0},{"$f":"SUMIFS(Sheet1!S71_OY1BudgetAmount,Sheet1!S71_SubMunicipalVoteNo,$AC:$AC,Sheet1!S71_A5CapexCode,$AD:$AD)","v":0},{"$f":"SUMIFS(Sheet1!S71_OY2BudgetAmount,Sheet1!S71_SubMunicipalVoteNo,$AC:$AC,Sheet1!S71_A5CapexCode,$AD:$AD)","v":0},null,null,null,null,null,null,null,null,null,null,null,null,null,null,null,null,37,"CE"]
["",null,{"$f":"SUMIFS(Sheet1!S71_PPPYearAmount,Sheet1!S71_SubMunicipalVoteNo,$AC:$AC,Sheet1!S71_A5CapexCode,$AD:$AD)","v":0},{"$f":"SUMIFS(Sheet1!S71_PPYearAmount,Sheet1!S71_SubMunicipalVoteNo,$AC:$AC,Sheet1!S71_A5CapexCode,$AD:$AD)","v":0},{"$f":"SUMIFS(Sheet1!S71_PYearAmount,Sheet1!S71_SubMunicipalVoteNo,$AC:$AC,Sheet1!S71_A5CapexCode,$AD:$AD)","v":0},{"$f":"SUMIFS(Sheet1!S71_OriginalBudAmnt,Sheet1!S71_SubMunicipalVoteNo,$AC:$AC,Sheet1!S71_A5CapexCode,$AD:$AD)","v":0},{"$f":"SUMIFS(Sheet1!S71_AdjustmentBudAmnt,Sheet1!S71_SubMunicipalVoteNo,$AC:$AC,Sheet1!S71_A5CapexCode,$AD:$AD)","v":0},{"$f":"SUMIFS(Sheet1!S71_AdjustmentBudAmnt,Sheet1!S71_SubMunicipalVoteNo,$AC:$AC,Sheet1!S71_A5CapexCode,$AD:$AD)","v":0},{"$f":"SUMIFS(Sheet1!CD:CD,Sheet1!S71_SubMunicipalVoteNo,$AC:$AC,Sheet1!S71_A5CapexCode,$AD:$AD)","v":0},{"$f":"SUMIFS(Sheet1!S71_ASBudgetAmount,Sheet1!S71_SubMunicipalVoteNo,$AC:$AC,Sheet1!S71_A5CapexCode,$AD:$AD)","v":0},{"$f":"SUMIFS(Sheet1!S71_OY1BudgetAmount,Sheet1!S71_SubMunicipalVoteNo,$AC:$AC,Sheet1!S71_A5CapexCode,$AD:$AD)","v":0},{"$f":"SUMIFS(Sheet1!S71_OY2BudgetAmount,Sheet1!S71_SubMunicipalVoteNo,$AC:$AC,Sheet1!S71_A5CapexCode,$AD:$AD)","v":0},null,null,null,null,null,null,null,null,null,null,null,null,null,null,null,null,38,"CE"]
["",null,{"$f":"SUMIFS(Sheet1!S71_PPPYearAmount,Sheet1!S71_SubMunicipalVoteNo,$AC:$AC,Sheet1!S71_A5CapexCode,$AD:$AD)","v":0},{"$f":"SUMIFS(Sheet1!S71_PPYearAmount,Sheet1!S71_SubMunicipalVoteNo,$AC:$AC,Sheet1!S71_A5CapexCode,$AD:$AD)","v":0},{"$f":"SUMIFS(Sheet1!S71_PYearAmount,Sheet1!S71_SubMunicipalVoteNo,$AC:$AC,Sheet1!S71_A5CapexCode,$AD:$AD)","v":0},{"$f":"SUMIFS(Sheet1!S71_OriginalBudAmnt,Sheet1!S71_SubMunicipalVoteNo,$AC:$AC,Sheet1!S71_A5CapexCode,$AD:$AD)","v":0},{"$f":"SUMIFS(Sheet1!S71_AdjustmentBudAmnt,Sheet1!S71_SubMunicipalVoteNo,$AC:$AC,Sheet1!S71_A5CapexCode,$AD:$AD)","v":0},{"$f":"SUMIFS(Sheet1!S71_AdjustmentBudAmnt,Sheet1!S71_SubMunicipalVoteNo,$AC:$AC,Sheet1!S71_A5CapexCode,$AD:$AD)","v":0},{"$f":"SUMIFS(Sheet1!CD:CD,Sheet1!S71_SubMunicipalVoteNo,$AC:$AC,Sheet1!S71_A5CapexCode,$AD:$AD)","v":0},{"$f":"SUMIFS(Sheet1!S71_ASBudgetAmount,Sheet1!S71_SubMunicipalVoteNo,$AC:$AC,Sheet1!S71_A5CapexCode,$AD:$AD)","v":0},{"$f":"SUMIFS(Sheet1!S71_OY1BudgetAmount,Sheet1!S71_SubMunicipalVoteNo,$AC:$AC,Sheet1!S71_A5CapexCode,$AD:$AD)","v":0},{"$f":"SUMIFS(Sheet1!S71_OY2BudgetAmount,Sheet1!S71_SubMunicipalVoteNo,$AC:$AC,Sheet1!S71_A5CapexCode,$AD:$AD)","v":0},null,null,null,null,null,null,null,null,null,null,null,null,null,null,null,null,39,"CE"]
["",null,{"$f":"SUMIFS(Sheet1!S71_PPPYearAmount,Sheet1!S71_SubMunicipalVoteNo,$AC:$AC,Sheet1!S71_A5CapexCode,$AD:$AD)","v":0},{"$f":"SUMIFS(Sheet1!S71_PPYearAmount,Sheet1!S71_SubMunicipalVoteNo,$AC:$AC,Sheet1!S71_A5CapexCode,$AD:$AD)","v":0},{"$f":"SUMIFS(Sheet1!S71_PYearAmount,Sheet1!S71_SubMunicipalVoteNo,$AC:$AC,Sheet1!S71_A5CapexCode,$AD:$AD)","v":0},{"$f":"SUMIFS(Sheet1!S71_OriginalBudAmnt,Sheet1!S71_SubMunicipalVoteNo,$AC:$AC,Sheet1!S71_A5CapexCode,$AD:$AD)","v":0},{"$f":"SUMIFS(Sheet1!S71_AdjustmentBudAmnt,Sheet1!S71_SubMunicipalVoteNo,$AC:$AC,Sheet1!S71_A5CapexCode,$AD:$AD)","v":0},{"$f":"SUMIFS(Sheet1!S71_AdjustmentBudAmnt,Sheet1!S71_SubMunicipalVoteNo,$AC:$AC,Sheet1!S71_A5CapexCode,$AD:$AD)","v":0},{"$f":"SUMIFS(Sheet1!CD:CD,Sheet1!S71_SubMunicipalVoteNo,$AC:$AC,Sheet1!S71_A5CapexCode,$AD:$AD)","v":0},{"$f":"SUMIFS(Sheet1!S71_ASBudgetAmount,Sheet1!S71_SubMunicipalVoteNo,$AC:$AC,Sheet1!S71_A5CapexCode,$AD:$AD)","v":0},{"$f":"SUMIFS(Sheet1!S71_OY1BudgetAmount,Sheet1!S71_SubMunicipalVoteNo,$AC:$AC,Sheet1!S71_A5CapexCode,$AD:$AD)","v":0},{"$f":"SUMIFS(Sheet1!S71_OY2BudgetAmount,Sheet1!S71_SubMunicipalVoteNo,$AC:$AC,Sheet1!S71_A5CapexCode,$AD:$AD)","v":0},null,null,null,null,null,null,null,null,null,null,null,null,null,null,null,null,310,"CE"]
["Vote 4 - Community and Social Services",null,{"$f":"SUM(C209:C218)","v":0},0,0,0,0,0,0,0,0,0]
["4.1 - Disaster Management",null,{"$f":"SUMIFS(Sheet1!S71_PPPYearAmount,Sheet1!S71_SubMunicipalVoteNo,$AC:$AC,Sheet1!S71_A5CapexCode,$AD:$AD)","v":0},{"$f":"SUMIFS(Sheet1!S71_PPYearAmount,Sheet1!S71_SubMunicipalVoteNo,$AC:$AC,Sheet1!S71_A5CapexCode,$AD:$AD)","v":0},{"$f":"SUMIFS(Sheet1!S71_PYearAmount,Sheet1!S71_SubMunicipalVoteNo,$AC:$AC,Sheet1!S71_A5CapexCode,$AD:$AD)","v":0},{"$f":"SUMIFS(Sheet1!S71_OriginalBudAmnt,Sheet1!S71_SubMunicipalVoteNo,$AC:$AC,Sheet1!S71_A5CapexCode,$AD:$AD)","v":0},{"$f":"SUMIFS(Sheet1!S71_AdjustmentBudAmnt,Sheet1!S71_SubMunicipalVoteNo,$AC:$AC,Sheet1!S71_A5CapexCode,$AD:$AD)","v":0},{"$f":"SUMIFS(Sheet1!S71_AdjustmentBudAmnt,Sheet1!S71_SubMunicipalVoteNo,$AC:$AC,Sheet1!S71_A5CapexCode,$AD:$AD)","v":0},{"$f":"SUMIFS(Sheet1!CD:CD,Sheet1!S71_SubMunicipalVoteNo,$AC:$AC,Sheet1!S71_A5CapexCode,$AD:$AD)","v":0},{"$f":"SUMIFS(Sheet1!S71_ASBudgetAmount,Sheet1!S71_SubMunicipalVoteNo,$AC:$AC,Sheet1!S71_A5CapexCode,$AD:$AD)","v":0},{"$f":"SUMIFS(Sheet1!S71_OY1BudgetAmount,Sheet1!S71_SubMunicipalVoteNo,$AC:$AC,Sheet1!S71_A5CapexCode,$AD:$AD)","v":0},{"$f":"SUMIFS(Sheet1!S71_OY2BudgetAmount,Sheet1!S71_SubMunicipalVoteNo,$AC:$AC,Sheet1!S71_A5CapexCode,$AD:$AD)","v":0},null,null,null,null,null,null,null,null,null,null,null,null,null,null,null,null,41,"CE"]
["",null,{"$f":"SUMIFS(Sheet1!S71_PPPYearAmount,Sheet1!S71_SubMunicipalVoteNo,$AC:$AC,Sheet1!S71_A5CapexCode,$AD:$AD)","v":0},{"$f":"SUMIFS(Sheet1!S71_PPYearAmount,Sheet1!S71_SubMunicipalVoteNo,$AC:$AC,Sheet1!S71_A5CapexCode,$AD:$AD)","v":0},{"$f":"SUMIFS(Sheet1!S71_PYearAmount,Sheet1!S71_SubMunicipalVoteNo,$AC:$AC,Sheet1!S71_A5CapexCode,$AD:$AD)","v":0},{"$f":"SUMIFS(Sheet1!S71_OriginalBudAmnt,Sheet1!S71_SubMunicipalVoteNo,$AC:$AC,Sheet1!S71_A5CapexCode,$AD:$AD)","v":0},{"$f":"SUMIFS(Sheet1!S71_AdjustmentBudAmnt,Sheet1!S71_SubMunicipalVoteNo,$AC:$AC,Sheet1!S71_A5CapexCode,$AD:$AD)","v":0},{"$f":"SUMIFS(Sheet1!S71_AdjustmentBudAmnt,Sheet1!S71_SubMunicipalVoteNo,$AC:$AC,Sheet1!S71_A5CapexCode,$AD:$AD)","v":0},{"$f":"SUMIFS(Sheet1!CD:CD,Sheet1!S71_SubMunicipalVoteNo,$AC:$AC,Sheet1!S71_A5CapexCode,$AD:$AD)","v":0},{"$f":"SUMIFS(Sheet1!S71_ASBudgetAmount,Sheet1!S71_SubMunicipalVoteNo,$AC:$AC,Sheet1!S71_A5CapexCode,$AD:$AD)","v":0},{"$f":"SUMIFS(Sheet1!S71_OY1BudgetAmount,Sheet1!S71_SubMunicipalVoteNo,$AC:$AC,Sheet1!S71_A5CapexCode,$AD:$AD)","v":0},{"$f":"SUMIFS(Sheet1!S71_OY2BudgetAmount,Sheet1!S71_SubMunicipalVoteNo,$AC:$AC,Sheet1!S71_A5CapexCode,$AD:$AD)","v":0},null,null,null,null,null,null,null,null,null,null,null,null,null,null,null,null,42,"CE"]
["",null,{"$f":"SUMIFS(Sheet1!S71_PPPYearAmount,Sheet1!S71_SubMunicipalVoteNo,$AC:$AC,Sheet1!S71_A5CapexCode,$AD:$AD)","v":0},{"$f":"SUMIFS(Sheet1!S71_PPYearAmount,Sheet1!S71_SubMunicipalVoteNo,$AC:$AC,Sheet1!S71_A5CapexCode,$AD:$AD)","v":0},{"$f":"SUMIFS(Sheet1!S71_PYearAmount,Sheet1!S71_SubMunicipalVoteNo,$AC:$AC,Sheet1!S71_A5CapexCode,$AD:$AD)","v":0},{"$f":"SUMIFS(Sheet1!S71_OriginalBudAmnt,Sheet1!S71_SubMunicipalVoteNo,$AC:$AC,Sheet1!S71_A5CapexCode,$AD:$AD)","v":0},{"$f":"SUMIFS(Sheet1!S71_AdjustmentBudAmnt,Sheet1!S71_SubMunicipalVoteNo,$AC:$AC,Sheet1!S71_A5CapexCode,$AD:$AD)","v":0},{"$f":"SUMIFS(Sheet1!S71_AdjustmentBudAmnt,Sheet1!S71_SubMunicipalVoteNo,$AC:$AC,Sheet1!S71_A5CapexCode,$AD:$AD)","v":0},{"$f":"SUMIFS(Sheet1!CD:CD,Sheet1!S71_SubMunicipalVoteNo,$AC:$AC,Sheet1!S71_A5CapexCode,$AD:$AD)","v":0},{"$f":"SUMIFS(Sheet1!S71_ASBudgetAmount,Sheet1!S71_SubMunicipalVoteNo,$AC:$AC,Sheet1!S71_A5CapexCode,$AD:$AD)","v":0},{"$f":"SUMIFS(Sheet1!S71_OY1BudgetAmount,Sheet1!S71_SubMunicipalVoteNo,$AC:$AC,Sheet1!S71_A5CapexCode,$AD:$AD)","v":0},{"$f":"SUMIFS(Sheet1!S71_OY2BudgetAmount,Sheet1!S71_SubMunicipalVoteNo,$AC:$AC,Sheet1!S71_A5CapexCode,$AD:$AD)","v":0},null,null,null,null,null,null,null,null,null,null,null,null,null,null,null,null,43,"CE"]
["",null,{"$f":"SUMIFS(Sheet1!S71_PPPYearAmount,Sheet1!S71_SubMunicipalVoteNo,$AC:$AC,Sheet1!S71_A5CapexCode,$AD:$AD)","v":0},{"$f":"SUMIFS(Sheet1!S71_PPYearAmount,Sheet1!S71_SubMunicipalVoteNo,$AC:$AC,Sheet1!S71_A5CapexCode,$AD:$AD)","v":0},{"$f":"SUMIFS(Sheet1!S71_PYearAmount,Sheet1!S71_SubMunicipalVoteNo,$AC:$AC,Sheet1!S71_A5CapexCode,$AD:$AD)","v":0},{"$f":"SUMIFS(Sheet1!S71_OriginalBudAmnt,Sheet1!S71_SubMunicipalVoteNo,$AC:$AC,Sheet1!S71_A5CapexCode,$AD:$AD)","v":0},{"$f":"SUMIFS(Sheet1!S71_AdjustmentBudAmnt,Sheet1!S71_SubMunicipalVoteNo,$AC:$AC,Sheet1!S71_A5CapexCode,$AD:$AD)","v":0},{"$f":"SUMIFS(Sheet1!S71_AdjustmentBudAmnt,Sheet1!S71_SubMunicipalVoteNo,$AC:$AC,Sheet1!S71_A5CapexCode,$AD:$AD)","v":0},{"$f":"SUMIFS(Sheet1!CD:CD,Sheet1!S71_SubMunicipalVoteNo,$AC:$AC,Sheet1!S71_A5CapexCode,$AD:$AD)","v":0},{"$f":"SUMIFS(Sheet1!S71_ASBudgetAmount,Sheet1!S71_SubMunicipalVoteNo,$AC:$AC,Sheet1!S71_A5CapexCode,$AD:$AD)","v":0},{"$f":"SUMIFS(Sheet1!S71_OY1BudgetAmount,Sheet1!S71_SubMunicipalVoteNo,$AC:$AC,Sheet1!S71_A5CapexCode,$AD:$AD)","v":0},{"$f":"SUMIFS(Sheet1!S71_OY2BudgetAmount,Sheet1!S71_SubMunicipalVoteNo,$AC:$AC,Sheet1!S71_A5CapexCode,$AD:$AD)","v":0},null,null,null,null,null,null,null,null,null,null,null,null,null,null,null,null,44,"CE"]
["",null,{"$f":"SUMIFS(Sheet1!S71_PPPYearAmount,Sheet1!S71_SubMunicipalVoteNo,$AC:$AC,Sheet1!S71_A5CapexCode,$AD:$AD)","v":0},{"$f":"SUMIFS(Sheet1!S71_PPYearAmount,Sheet1!S71_SubMunicipalVoteNo,$AC:$AC,Sheet1!S71_A5CapexCode,$AD:$AD)","v":0},{"$f":"SUMIFS(Sheet1!S71_PYearAmount,Sheet1!S71_SubMunicipalVoteNo,$AC:$AC,Sheet1!S71_A5CapexCode,$AD:$AD)","v":0},{"$f":"SUMIFS(Sheet1!S71_OriginalBudAmnt,Sheet1!S71_SubMunicipalVoteNo,$AC:$AC,Sheet1!S71_A5CapexCode,$AD:$AD)","v":0},{"$f":"SUMIFS(Sheet1!S71_AdjustmentBudAmnt,Sheet1!S71_SubMunicipalVoteNo,$AC:$AC,Sheet1!S71_A5CapexCode,$AD:$AD)","v":0},{"$f":"SUMIFS(Sheet1!S71_AdjustmentBudAmnt,Sheet1!S71_SubMunicipalVoteNo,$AC:$AC,Sheet1!S71_A5CapexCode,$AD:$AD)","v":0},{"$f":"SUMIFS(Sheet1!CD:CD,Sheet1!S71_SubMunicipalVoteNo,$AC:$AC,Sheet1!S71_A5CapexCode,$AD:$AD)","v":0},{"$f":"SUMIFS(Sheet1!S71_ASBudgetAmount,Sheet1!S71_SubMunicipalVoteNo,$AC:$AC,Sheet1!S71_A5CapexCode,$AD:$AD)","v":0},{"$f":"SUMIFS(Sheet1!S71_OY1BudgetAmount,Sheet1!S71_SubMunicipalVoteNo,$AC:$AC,Sheet1!S71_A5CapexCode,$AD:$AD)","v":0},{"$f":"SUMIFS(Sheet1!S71_OY2BudgetAmount,Sheet1!S71_SubMunicipalVoteNo,$AC:$AC,Sheet1!S71_A5CapexCode,$AD:$AD)","v":0},null,null,null,null,null,null,null,null,null,null,null,null,null,null,null,null,45,"CE"]
["",null,{"$f":"SUMIFS(Sheet1!S71_PPPYearAmount,Sheet1!S71_SubMunicipalVoteNo,$AC:$AC,Sheet1!S71_A5CapexCode,$AD:$AD)","v":0},{"$f":"SUMIFS(Sheet1!S71_PPYearAmount,Sheet1!S71_SubMunicipalVoteNo,$AC:$AC,Sheet1!S71_A5CapexCode,$AD:$AD)","v":0},{"$f":"SUMIFS(Sheet1!S71_PYearAmount,Sheet1!S71_SubMunicipalVoteNo,$AC:$AC,Sheet1!S71_A5CapexCode,$AD:$AD)","v":0},{"$f":"SUMIFS(Sheet1!S71_OriginalBudAmnt,Sheet1!S71_SubMunicipalVoteNo,$AC:$AC,Sheet1!S71_A5CapexCode,$AD:$AD)","v":0},{"$f":"SUMIFS(Sheet1!S71_AdjustmentBudAmnt,Sheet1!S71_SubMunicipalVoteNo,$AC:$AC,Sheet1!S71_A5CapexCode,$AD:$AD)","v":0},{"$f":"SUMIFS(Sheet1!S71_AdjustmentBudAmnt,Sheet1!S71_SubMunicipalVoteNo,$AC:$AC,Sheet1!S71_A5CapexCode,$AD:$AD)","v":0},{"$f":"SUMIFS(Sheet1!CD:CD,Sheet1!S71_SubMunicipalVoteNo,$AC:$AC,Sheet1!S71_A5CapexCode,$AD:$AD)","v":0},{"$f":"SUMIFS(Sheet1!S71_ASBudgetAmount,Sheet1!S71_SubMunicipalVoteNo,$AC:$AC,Sheet1!S71_A5CapexCode,$AD:$AD)","v":0},{"$f":"SUMIFS(Sheet1!S71_OY1BudgetAmount,Sheet1!S71_SubMunicipalVoteNo,$AC:$AC,Sheet1!S71_A5CapexCode,$AD:$AD)","v":0},{"$f":"SUMIFS(Sheet1!S71_OY2BudgetAmount,Sheet1!S71_SubMunicipalVoteNo,$AC:$AC,Sheet1!S71_A5CapexCode,$AD:$AD)","v":0},null,null,null,null,null,null,null,null,null,null,null,null,null,null,null,null,46,"CE"]
["",null,{"$f":"SUMIFS(Sheet1!S71_PPPYearAmount,Sheet1!S71_SubMunicipalVoteNo,$AC:$AC,Sheet1!S71_A5CapexCode,$AD:$AD)","v":0},{"$f":"SUMIFS(Sheet1!S71_PPYearAmount,Sheet1!S71_SubMunicipalVoteNo,$AC:$AC,Sheet1!S71_A5CapexCode,$AD:$AD)","v":0},{"$f":"SUMIFS(Sheet1!S71_PYearAmount,Sheet1!S71_SubMunicipalVoteNo,$AC:$AC,Sheet1!S71_A5CapexCode,$AD:$AD)","v":0},{"$f":"SUMIFS(Sheet1!S71_OriginalBudAmnt,Sheet1!S71_SubMunicipalVoteNo,$AC:$AC,Sheet1!S71_A5CapexCode,$AD:$AD)","v":0},{"$f":"SUMIFS(Sheet1!S71_AdjustmentBudAmnt,Sheet1!S71_SubMunicipalVoteNo,$AC:$AC,Sheet1!S71_A5CapexCode,$AD:$AD)","v":0},{"$f":"SUMIFS(Sheet1!S71_AdjustmentBudAmnt,Sheet1!S71_SubMunicipalVoteNo,$AC:$AC,Sheet1!S71_A5CapexCode,$AD:$AD)","v":0},{"$f":"SUMIFS(Sheet1!CD:CD,Sheet1!S71_SubMunicipalVoteNo,$AC:$AC,Sheet1!S71_A5CapexCode,$AD:$AD)","v":0},{"$f":"SUMIFS(Sheet1!S71_ASBudgetAmount,Sheet1!S71_SubMunicipalVoteNo,$AC:$AC,Sheet1!S71_A5CapexCode,$AD:$AD)","v":0},{"$f":"SUMIFS(Sheet1!S71_OY1BudgetAmount,Sheet1!S71_SubMunicipalVoteNo,$AC:$AC,Sheet1!S71_A5CapexCode,$AD:$AD)","v":0},{"$f":"SUMIFS(Sheet1!S71_OY2BudgetAmount,Sheet1!S71_SubMunicipalVoteNo,$AC:$AC,Sheet1!S71_A5CapexCode,$AD:$AD)","v":0},null,null,null,null,null,null,null,null,null,null,null,null,null,null,null,null,47,"CE"]
["",null,{"$f":"SUMIFS(Sheet1!S71_PPPYearAmount,Sheet1!S71_SubMunicipalVoteNo,$AC:$AC,Sheet1!S71_A5CapexCode,$AD:$AD)","v":0},{"$f":"SUMIFS(Sheet1!S71_PPYearAmount,Sheet1!S71_SubMunicipalVoteNo,$AC:$AC,Sheet1!S71_A5CapexCode,$AD:$AD)","v":0},{"$f":"SUMIFS(Sheet1!S71_PYearAmount,Sheet1!S71_SubMunicipalVoteNo,$AC:$AC,Sheet1!S71_A5CapexCode,$AD:$AD)","v":0},{"$f":"SUMIFS(Sheet1!S71_OriginalBudAmnt,Sheet1!S71_SubMunicipalVoteNo,$AC:$AC,Sheet1!S71_A5CapexCode,$AD:$AD)","v":0},{"$f":"SUMIFS(Sheet1!S71_AdjustmentBudAmnt,Sheet1!S71_SubMunicipalVoteNo,$AC:$AC,Sheet1!S71_A5CapexCode,$AD:$AD)","v":0},{"$f":"SUMIFS(Sheet1!S71_AdjustmentBudAmnt,Sheet1!S71_SubMunicipalVoteNo,$AC:$AC,Sheet1!S71_A5CapexCode,$AD:$AD)","v":0},{"$f":"SUMIFS(Sheet1!CD:CD,Sheet1!S71_SubMunicipalVoteNo,$AC:$AC,Sheet1!S71_A5CapexCode,$AD:$AD)","v":0},{"$f":"SUMIFS(Sheet1!S71_ASBudgetAmount,Sheet1!S71_SubMunicipalVoteNo,$AC:$AC,Sheet1!S71_A5CapexCode,$AD:$AD)","v":0},{"$f":"SUMIFS(Sheet1!S71_OY1BudgetAmount,Sheet1!S71_SubMunicipalVoteNo,$AC:$AC,Sheet1!S71_A5CapexCode,$AD:$AD)","v":0},{"$f":"SUMIFS(Sheet1!S71_OY2BudgetAmount,Sheet1!S71_SubMunicipalVoteNo,$AC:$AC,Sheet1!S71_A5CapexCode,$AD:$AD)","v":0},null,null,null,null,null,null,null,null,null,null,null,null,null,null,null,null,48,"CE"]
["",null,{"$f":"SUMIFS(Sheet1!S71_PPPYearAmount,Sheet1!S71_SubMunicipalVoteNo,$AC:$AC,Sheet1!S71_A5CapexCode,$AD:$AD)","v":0},{"$f":"SUMIFS(Sheet1!S71_PPYearAmount,Sheet1!S71_SubMunicipalVoteNo,$AC:$AC,Sheet1!S71_A5CapexCode,$AD:$AD)","v":0},{"$f":"SUMIFS(Sheet1!S71_PYearAmount,Sheet1!S71_SubMunicipalVoteNo,$AC:$AC,Sheet1!S71_A5CapexCode,$AD:$AD)","v":0},{"$f":"SUMIFS(Sheet1!S71_OriginalBudAmnt,Sheet1!S71_SubMunicipalVoteNo,$AC:$AC,Sheet1!S71_A5CapexCode,$AD:$AD)","v":0},{"$f":"SUMIFS(Sheet1!S71_AdjustmentBudAmnt,Sheet1!S71_SubMunicipalVoteNo,$AC:$AC,Sheet1!S71_A5CapexCode,$AD:$AD)","v":0},{"$f":"SUMIFS(Sheet1!S71_AdjustmentBudAmnt,Sheet1!S71_SubMunicipalVoteNo,$AC:$AC,Sheet1!S71_A5CapexCode,$AD:$AD)","v":0},{"$f":"SUMIFS(Sheet1!CD:CD,Sheet1!S71_SubMunicipalVoteNo,$AC:$AC,Sheet1!S71_A5CapexCode,$AD:$AD)","v":0},{"$f":"SUMIFS(Sheet1!S71_ASBudgetAmount,Sheet1!S71_SubMunicipalVoteNo,$AC:$AC,Sheet1!S71_A5CapexCode,$AD:$AD)","v":0},{"$f":"SUMIFS(Sheet1!S71_OY1BudgetAmount,Sheet1!S71_SubMunicipalVoteNo,$AC:$AC,Sheet1!S71_A5CapexCode,$AD:$AD)","v":0},{"$f":"SUMIFS(Sheet1!S71_OY2BudgetAmount,Sheet1!S71_SubMunicipalVoteNo,$AC:$AC,Sheet1!S71_A5CapexCode,$AD:$AD)","v":0},null,null,null,null,null,null,null,null,null,null,null,null,null,null,null,null,49,"CE"]
["",null,{"$f":"SUMIFS(Sheet1!S71_PPPYearAmount,Sheet1!S71_SubMunicipalVoteNo,$AC:$AC,Sheet1!S71_A5CapexCode,$AD:$AD)","v":0},{"$f":"SUMIFS(Sheet1!S71_PPYearAmount,Sheet1!S71_SubMunicipalVoteNo,$AC:$AC,Sheet1!S71_A5CapexCode,$AD:$AD)","v":0},{"$f":"SUMIFS(Sheet1!S71_PYearAmount,Sheet1!S71_SubMunicipalVoteNo,$AC:$AC,Sheet1!S71_A5CapexCode,$AD:$AD)","v":0},{"$f":"SUMIFS(Sheet1!S71_OriginalBudAmnt,Sheet1!S71_SubMunicipalVoteNo,$AC:$AC,Sheet1!S71_A5CapexCode,$AD:$AD)","v":0},{"$f":"SUMIFS(Sheet1!S71_AdjustmentBudAmnt,Sheet1!S71_SubMunicipalVoteNo,$AC:$AC,Sheet1!S71_A5CapexCode,$AD:$AD)","v":0},{"$f":"SUMIFS(Sheet1!S71_AdjustmentBudAmnt,Sheet1!S71_SubMunicipalVoteNo,$AC:$AC,Sheet1!S71_A5CapexCode,$AD:$AD)","v":0},{"$f":"SUMIFS(Sheet1!CD:CD,Sheet1!S71_SubMunicipalVoteNo,$AC:$AC,Sheet1!S71_A5CapexCode,$AD:$AD)","v":0},{"$f":"SUMIFS(Sheet1!S71_ASBudgetAmount,Sheet1!S71_SubMunicipalVoteNo,$AC:$AC,Sheet1!S71_A5CapexCode,$AD:$AD)","v":0},{"$f":"SUMIFS(Sheet1!S71_OY1BudgetAmount,Sheet1!S71_SubMunicipalVoteNo,$AC:$AC,Sheet1!S71_A5CapexCode,$AD:$AD)","v":0},{"$f":"SUMIFS(Sheet1!S71_OY2BudgetAmount,Sheet1!S71_SubMunicipalVoteNo,$AC:$AC,Sheet1!S71_A5CapexCode,$AD:$AD)","v":0},null,null,null,null,null,null,null,null,null,null,null,null,null,null,null,null,410,"CE"]
["Vote 5 - Environmental Protection",null,{"$f":"SUM(C220:C229)","v":0},0,0,0,0,0,0,0,0,0]
["5.1 - Biodiversity and Landscape",null,{"$f":"SUMIFS(Sheet1!S71_PPPYearAmount,Sheet1!S71_SubMunicipalVoteNo,$AC:$AC,Sheet1!S71_A5CapexCode,$AD:$AD)","v":0},{"$f":"SUMIFS(Sheet1!S71_PPYearAmount,Sheet1!S71_SubMunicipalVoteNo,$AC:$AC,Sheet1!S71_A5CapexCode,$AD:$AD)","v":0},{"$f":"SUMIFS(Sheet1!S71_PYearAmount,Sheet1!S71_SubMunicipalVoteNo,$AC:$AC,Sheet1!S71_A5CapexCode,$AD:$AD)","v":0},{"$f":"SUMIFS(Sheet1!S71_OriginalBudAmnt,Sheet1!S71_SubMunicipalVoteNo,$AC:$AC,Sheet1!S71_A5CapexCode,$AD:$AD)","v":0},{"$f":"SUMIFS(Sheet1!S71_AdjustmentBudAmnt,Sheet1!S71_SubMunicipalVoteNo,$AC:$AC,Sheet1!S71_A5CapexCode,$AD:$AD)","v":0},{"$f":"SUMIFS(Sheet1!S71_AdjustmentBudAmnt,Sheet1!S71_SubMunicipalVoteNo,$AC:$AC,Sheet1!S71_A5CapexCode,$AD:$AD)","v":0},{"$f":"SUMIFS(Sheet1!CD:CD,Sheet1!S71_SubMunicipalVoteNo,$AC:$AC,Sheet1!S71_A5CapexCode,$AD:$AD)","v":0},{"$f":"SUMIFS(Sheet1!S71_ASBudgetAmount,Sheet1!S71_SubMunicipalVoteNo,$AC:$AC,Sheet1!S71_A5CapexCode,$AD:$AD)","v":0},{"$f":"SUMIFS(Sheet1!S71_OY1BudgetAmount,Sheet1!S71_SubMunicipalVoteNo,$AC:$AC,Sheet1!S71_A5CapexCode,$AD:$AD)","v":0},{"$f":"SUMIFS(Sheet1!S71_OY2BudgetAmount,Sheet1!S71_SubMunicipalVoteNo,$AC:$AC,Sheet1!S71_A5CapexCode,$AD:$AD)","v":0},null,null,null,null,null,null,null,null,null,null,null,null,null,null,null,null,51,"CE"]
["",null,{"$f":"SUMIFS(Sheet1!S71_PPPYearAmount,Sheet1!S71_SubMunicipalVoteNo,$AC:$AC,Sheet1!S71_A5CapexCode,$AD:$AD)","v":0},{"$f":"SUMIFS(Sheet1!S71_PPYearAmount,Sheet1!S71_SubMunicipalVoteNo,$AC:$AC,Sheet1!S71_A5CapexCode,$AD:$AD)","v":0},{"$f":"SUMIFS(Sheet1!S71_PYearAmount,Sheet1!S71_SubMunicipalVoteNo,$AC:$AC,Sheet1!S71_A5CapexCode,$AD:$AD)","v":0},{"$f":"SUMIFS(Sheet1!S71_OriginalBudAmnt,Sheet1!S71_SubMunicipalVoteNo,$AC:$AC,Sheet1!S71_A5CapexCode,$AD:$AD)","v":0},{"$f":"SUMIFS(Sheet1!S71_AdjustmentBudAmnt,Sheet1!S71_SubMunicipalVoteNo,$AC:$AC,Sheet1!S71_A5CapexCode,$AD:$AD)","v":0},{"$f":"SUMIFS(Sheet1!S71_AdjustmentBudAmnt,Sheet1!S71_SubMunicipalVoteNo,$AC:$AC,Sheet1!S71_A5CapexCode,$AD:$AD)","v":0},{"$f":"SUMIFS(Sheet1!CD:CD,Sheet1!S71_SubMunicipalVoteNo,$AC:$AC,Sheet1!S71_A5CapexCode,$AD:$AD)","v":0},{"$f":"SUMIFS(Sheet1!S71_ASBudgetAmount,Sheet1!S71_SubMunicipalVoteNo,$AC:$AC,Sheet1!S71_A5CapexCode,$AD:$AD)","v":0},{"$f":"SUMIFS(Sheet1!S71_OY1BudgetAmount,Sheet1!S71_SubMunicipalVoteNo,$AC:$AC,Sheet1!S71_A5CapexCode,$AD:$AD)","v":0},{"$f":"SUMIFS(Sheet1!S71_OY2BudgetAmount,Sheet1!S71_SubMunicipalVoteNo,$AC:$AC,Sheet1!S71_A5CapexCode,$AD:$AD)","v":0},null,null,null,null,null,null,null,null,null,null,null,null,null,null,null,null,52,"CE"]
["",null,{"$f":"SUMIFS(Sheet1!S71_PPPYearAmount,Sheet1!S71_SubMunicipalVoteNo,$AC:$AC,Sheet1!S71_A5CapexCode,$AD:$AD)","v":0},{"$f":"SUMIFS(Sheet1!S71_PPYearAmount,Sheet1!S71_SubMunicipalVoteNo,$AC:$AC,Sheet1!S71_A5CapexCode,$AD:$AD)","v":0},{"$f":"SUMIFS(Sheet1!S71_PYearAmount,Sheet1!S71_SubMunicipalVoteNo,$AC:$AC,Sheet1!S71_A5CapexCode,$AD:$AD)","v":0},{"$f":"SUMIFS(Sheet1!S71_OriginalBudAmnt,Sheet1!S71_SubMunicipalVoteNo,$AC:$AC,Sheet1!S71_A5CapexCode,$AD:$AD)","v":0},{"$f":"SUMIFS(Sheet1!S71_AdjustmentBudAmnt,Sheet1!S71_SubMunicipalVoteNo,$AC:$AC,Sheet1!S71_A5CapexCode,$AD:$AD)","v":0},{"$f":"SUMIFS(Sheet1!S71_AdjustmentBudAmnt,Sheet1!S71_SubMunicipalVoteNo,$AC:$AC,Sheet1!S71_A5CapexCode,$AD:$AD)","v":0},{"$f":"SUMIFS(Sheet1!CD:CD,Sheet1!S71_SubMunicipalVoteNo,$AC:$AC,Sheet1!S71_A5CapexCode,$AD:$AD)","v":0},{"$f":"SUMIFS(Sheet1!S71_ASBudgetAmount,Sheet1!S71_SubMunicipalVoteNo,$AC:$AC,Sheet1!S71_A5CapexCode,$AD:$AD)","v":0},{"$f":"SUMIFS(Sheet1!S71_OY1BudgetAmount,Sheet1!S71_SubMunicipalVoteNo,$AC:$AC,Sheet1!S71_A5CapexCode,$AD:$AD)","v":0},{"$f":"SUMIFS(Sheet1!S71_OY2BudgetAmount,Sheet1!S71_SubMunicipalVoteNo,$AC:$AC,Sheet1!S71_A5CapexCode,$AD:$AD)","v":0},null,null,null,null,null,null,null,null,null,null,null,null,null,null,null,null,53,"CE"]
["",null,{"$f":"SUMIFS(Sheet1!S71_PPPYearAmount,Sheet1!S71_SubMunicipalVoteNo,$AC:$AC,Sheet1!S71_A5CapexCode,$AD:$AD)","v":0},{"$f":"SUMIFS(Sheet1!S71_PPYearAmount,Sheet1!S71_SubMunicipalVoteNo,$AC:$AC,Sheet1!S71_A5CapexCode,$AD:$AD)","v":0},{"$f":"SUMIFS(Sheet1!S71_PYearAmount,Sheet1!S71_SubMunicipalVoteNo,$AC:$AC,Sheet1!S71_A5CapexCode,$AD:$AD)","v":0},{"$f":"SUMIFS(Sheet1!S71_OriginalBudAmnt,Sheet1!S71_SubMunicipalVoteNo,$AC:$AC,Sheet1!S71_A5CapexCode,$AD:$AD)","v":0},{"$f":"SUMIFS(Sheet1!S71_AdjustmentBudAmnt,Sheet1!S71_SubMunicipalVoteNo,$AC:$AC,Sheet1!S71_A5CapexCode,$AD:$AD)","v":0},{"$f":"SUMIFS(Sheet1!S71_AdjustmentBudAmnt,Sheet1!S71_SubMunicipalVoteNo,$AC:$AC,Sheet1!S71_A5CapexCode,$AD:$AD)","v":0},{"$f":"SUMIFS(Sheet1!CD:CD,Sheet1!S71_SubMunicipalVoteNo,$AC:$AC,Sheet1!S71_A5CapexCode,$AD:$AD)","v":0},{"$f":"SUMIFS(Sheet1!S71_ASBudgetAmount,Sheet1!S71_SubMunicipalVoteNo,$AC:$AC,Sheet1!S71_A5CapexCode,$AD:$AD)","v":0},{"$f":"SUMIFS(Sheet1!S71_OY1BudgetAmount,Sheet1!S71_SubMunicipalVoteNo,$AC:$AC,Sheet1!S71_A5CapexCode,$AD:$AD)","v":0},{"$f":"SUMIFS(Sheet1!S71_OY2BudgetAmount,Sheet1!S71_SubMunicipalVoteNo,$AC:$AC,Sheet1!S71_A5CapexCode,$AD:$AD)","v":0},null,null,null,null,null,null,null,null,null,null,null,null,null,null,null,null,54,"CE"]
["",null,{"$f":"SUMIFS(Sheet1!S71_PPPYearAmount,Sheet1!S71_SubMunicipalVoteNo,$AC:$AC,Sheet1!S71_A5CapexCode,$AD:$AD)","v":0},{"$f":"SUMIFS(Sheet1!S71_PPYearAmount,Sheet1!S71_SubMunicipalVoteNo,$AC:$AC,Sheet1!S71_A5CapexCode,$AD:$AD)","v":0},{"$f":"SUMIFS(Sheet1!S71_PYearAmount,Sheet1!S71_SubMunicipalVoteNo,$AC:$AC,Sheet1!S71_A5CapexCode,$AD:$AD)","v":0},{"$f":"SUMIFS(Sheet1!S71_OriginalBudAmnt,Sheet1!S71_SubMunicipalVoteNo,$AC:$AC,Sheet1!S71_A5CapexCode,$AD:$AD)","v":0},{"$f":"SUMIFS(Sheet1!S71_AdjustmentBudAmnt,Sheet1!S71_SubMunicipalVoteNo,$AC:$AC,Sheet1!S71_A5CapexCode,$AD:$AD)","v":0},{"$f":"SUMIFS(Sheet1!S71_AdjustmentBudAmnt,Sheet1!S71_SubMunicipalVoteNo,$AC:$AC,Sheet1!S71_A5CapexCode,$AD:$AD)","v":0},{"$f":"SUMIFS(Sheet1!CD:CD,Sheet1!S71_SubMunicipalVoteNo,$AC:$AC,Sheet1!S71_A5CapexCode,$AD:$AD)","v":0},{"$f":"SUMIFS(Sheet1!S71_ASBudgetAmount,Sheet1!S71_SubMunicipalVoteNo,$AC:$AC,Sheet1!S71_A5CapexCode,$AD:$AD)","v":0},{"$f":"SUMIFS(Sheet1!S71_OY1BudgetAmount,Sheet1!S71_SubMunicipalVoteNo,$AC:$AC,Sheet1!S71_A5CapexCode,$AD:$AD)","v":0},{"$f":"SUMIFS(Sheet1!S71_OY2BudgetAmount,Sheet1!S71_SubMunicipalVoteNo,$AC:$AC,Sheet1!S71_A5CapexCode,$AD:$AD)","v":0},null,null,null,null,null,null,null,null,null,null,null,null,null,null,null,null,55,"CE"]
["",null,{"$f":"SUMIFS(Sheet1!S71_PPPYearAmount,Sheet1!S71_SubMunicipalVoteNo,$AC:$AC,Sheet1!S71_A5CapexCode,$AD:$AD)","v":0},{"$f":"SUMIFS(Sheet1!S71_PPYearAmount,Sheet1!S71_SubMunicipalVoteNo,$AC:$AC,Sheet1!S71_A5CapexCode,$AD:$AD)","v":0},{"$f":"SUMIFS(Sheet1!S71_PYearAmount,Sheet1!S71_SubMunicipalVoteNo,$AC:$AC,Sheet1!S71_A5CapexCode,$AD:$AD)","v":0},{"$f":"SUMIFS(Sheet1!S71_OriginalBudAmnt,Sheet1!S71_SubMunicipalVoteNo,$AC:$AC,Sheet1!S71_A5CapexCode,$AD:$AD)","v":0},{"$f":"SUMIFS(Sheet1!S71_AdjustmentBudAmnt,Sheet1!S71_SubMunicipalVoteNo,$AC:$AC,Sheet1!S71_A5CapexCode,$AD:$AD)","v":0},{"$f":"SUMIFS(Sheet1!S71_AdjustmentBudAmnt,Sheet1!S71_SubMunicipalVoteNo,$AC:$AC,Sheet1!S71_A5CapexCode,$AD:$AD)","v":0},{"$f":"SUMIFS(Sheet1!CD:CD,Sheet1!S71_SubMunicipalVoteNo,$AC:$AC,Sheet1!S71_A5CapexCode,$AD:$AD)","v":0},{"$f":"SUMIFS(Sheet1!S71_ASBudgetAmount,Sheet1!S71_SubMunicipalVoteNo,$AC:$AC,Sheet1!S71_A5CapexCode,$AD:$AD)","v":0},{"$f":"SUMIFS(Sheet1!S71_OY1BudgetAmount,Sheet1!S71_SubMunicipalVoteNo,$AC:$AC,Sheet1!S71_A5CapexCode,$AD:$AD)","v":0},{"$f":"SUMIFS(Sheet1!S71_OY2BudgetAmount,Sheet1!S71_SubMunicipalVoteNo,$AC:$AC,Sheet1!S71_A5CapexCode,$AD:$AD)","v":0},null,null,null,null,null,null,null,null,null,null,null,null,null,null,null,null,56,"CE"]
["",null,{"$f":"SUMIFS(Sheet1!S71_PPPYearAmount,Sheet1!S71_SubMunicipalVoteNo,$AC:$AC,Sheet1!S71_A5CapexCode,$AD:$AD)","v":0},{"$f":"SUMIFS(Sheet1!S71_PPYearAmount,Sheet1!S71_SubMunicipalVoteNo,$AC:$AC,Sheet1!S71_A5CapexCode,$AD:$AD)","v":0},{"$f":"SUMIFS(Sheet1!S71_PYearAmount,Sheet1!S71_SubMunicipalVoteNo,$AC:$AC,Sheet1!S71_A5CapexCode,$AD:$AD)","v":0},{"$f":"SUMIFS(Sheet1!S71_OriginalBudAmnt,Sheet1!S71_SubMunicipalVoteNo,$AC:$AC,Sheet1!S71_A5CapexCode,$AD:$AD)","v":0},{"$f":"SUMIFS(Sheet1!S71_AdjustmentBudAmnt,Sheet1!S71_SubMunicipalVoteNo,$AC:$AC,Sheet1!S71_A5CapexCode,$AD:$AD)","v":0},{"$f":"SUMIFS(Sheet1!S71_AdjustmentBudAmnt,Sheet1!S71_SubMunicipalVoteNo,$AC:$AC,Sheet1!S71_A5CapexCode,$AD:$AD)","v":0},{"$f":"SUMIFS(Sheet1!CD:CD,Sheet1!S71_SubMunicipalVoteNo,$AC:$AC,Sheet1!S71_A5CapexCode,$AD:$AD)","v":0},{"$f":"SUMIFS(Sheet1!S71_ASBudgetAmount,Sheet1!S71_SubMunicipalVoteNo,$AC:$AC,Sheet1!S71_A5CapexCode,$AD:$AD)","v":0},{"$f":"SUMIFS(Sheet1!S71_OY1BudgetAmount,Sheet1!S71_SubMunicipalVoteNo,$AC:$AC,Sheet1!S71_A5CapexCode,$AD:$AD)","v":0},{"$f":"SUMIFS(Sheet1!S71_OY2BudgetAmount,Sheet1!S71_SubMunicipalVoteNo,$AC:$AC,Sheet1!S71_A5CapexCode,$AD:$AD)","v":0},null,null,null,null,null,null,null,null,null,null,null,null,null,null,null,null,57,"CE"]
["",null,{"$f":"SUMIFS(Sheet1!S71_PPPYearAmount,Sheet1!S71_SubMunicipalVoteNo,$AC:$AC,Sheet1!S71_A5CapexCode,$AD:$AD)","v":0},{"$f":"SUMIFS(Sheet1!S71_PPYearAmount,Sheet1!S71_SubMunicipalVoteNo,$AC:$AC,Sheet1!S71_A5CapexCode,$AD:$AD)","v":0},{"$f":"SUMIFS(Sheet1!S71_PYearAmount,Sheet1!S71_SubMunicipalVoteNo,$AC:$AC,Sheet1!S71_A5CapexCode,$AD:$AD)","v":0},{"$f":"SUMIFS(Sheet1!S71_OriginalBudAmnt,Sheet1!S71_SubMunicipalVoteNo,$AC:$AC,Sheet1!S71_A5CapexCode,$AD:$AD)","v":0},{"$f":"SUMIFS(Sheet1!S71_AdjustmentBudAmnt,Sheet1!S71_SubMunicipalVoteNo,$AC:$AC,Sheet1!S71_A5CapexCode,$AD:$AD)","v":0},{"$f":"SUMIFS(Sheet1!S71_AdjustmentBudAmnt,Sheet1!S71_SubMunicipalVoteNo,$AC:$AC,Sheet1!S71_A5CapexCode,$AD:$AD)","v":0},{"$f":"SUMIFS(Sheet1!CD:CD,Sheet1!S71_SubMunicipalVoteNo,$AC:$AC,Sheet1!S71_A5CapexCode,$AD:$AD)","v":0},{"$f":"SUMIFS(Sheet1!S71_ASBudgetAmount,Sheet1!S71_SubMunicipalVoteNo,$AC:$AC,Sheet1!S71_A5CapexCode,$AD:$AD)","v":0},{"$f":"SUMIFS(Sheet1!S71_OY1BudgetAmount,Sheet1!S71_SubMunicipalVoteNo,$AC:$AC,Sheet1!S71_A5CapexCode,$AD:$AD)","v":0},{"$f":"SUMIFS(Sheet1!S71_OY2BudgetAmount,Sheet1!S71_SubMunicipalVoteNo,$AC:$AC,Sheet1!S71_A5CapexCode,$AD:$AD)","v":0},null,null,null,null,null,null,null,null,null,null,null,null,null,null,null,null,58,"CE"]
["",null,{"$f":"SUMIFS(Sheet1!S71_PPPYearAmount,Sheet1!S71_SubMunicipalVoteNo,$AC:$AC,Sheet1!S71_A5CapexCode,$AD:$AD)","v":0},{"$f":"SUMIFS(Sheet1!S71_PPYearAmount,Sheet1!S71_SubMunicipalVoteNo,$AC:$AC,Sheet1!S71_A5CapexCode,$AD:$AD)","v":0},{"$f":"SUMIFS(Sheet1!S71_PYearAmount,Sheet1!S71_SubMunicipalVoteNo,$AC:$AC,Sheet1!S71_A5CapexCode,$AD:$AD)","v":0},{"$f":"SUMIFS(Sheet1!S71_OriginalBudAmnt,Sheet1!S71_SubMunicipalVoteNo,$AC:$AC,Sheet1!S71_A5CapexCode,$AD:$AD)","v":0},{"$f":"SUMIFS(Sheet1!S71_AdjustmentBudAmnt,Sheet1!S71_SubMunicipalVoteNo,$AC:$AC,Sheet1!S71_A5CapexCode,$AD:$AD)","v":0},{"$f":"SUMIFS(Sheet1!S71_AdjustmentBudAmnt,Sheet1!S71_SubMunicipalVoteNo,$AC:$AC,Sheet1!S71_A5CapexCode,$AD:$AD)","v":0},{"$f":"SUMIFS(Sheet1!CD:CD,Sheet1!S71_SubMunicipalVoteNo,$AC:$AC,Sheet1!S71_A5CapexCode,$AD:$AD)","v":0},{"$f":"SUMIFS(Sheet1!S71_ASBudgetAmount,Sheet1!S71_SubMunicipalVoteNo,$AC:$AC,Sheet1!S71_A5CapexCode,$AD:$AD)","v":0},{"$f":"SUMIFS(Sheet1!S71_OY1BudgetAmount,Sheet1!S71_SubMunicipalVoteNo,$AC:$AC,Sheet1!S71_A5CapexCode,$AD:$AD)","v":0},{"$f":"SUMIFS(Sheet1!S71_OY2BudgetAmount,Sheet1!S71_SubMunicipalVoteNo,$AC:$AC,Sheet1!S71_A5CapexCode,$AD:$AD)","v":0},null,null,null,null,null,null,null,null,null,null,null,null,null,null,null,null,59,"CE"]
["",null,{"$f":"SUMIFS(Sheet1!S71_PPPYearAmount,Sheet1!S71_SubMunicipalVoteNo,$AC:$AC,Sheet1!S71_A5CapexCode,$AD:$AD)","v":0},{"$f":"SUMIFS(Sheet1!S71_PPYearAmount,Sheet1!S71_SubMunicipalVoteNo,$AC:$AC,Sheet1!S71_A5CapexCode,$AD:$AD)","v":0},{"$f":"SUMIFS(Sheet1!S71_PYearAmount,Sheet1!S71_SubMunicipalVoteNo,$AC:$AC,Sheet1!S71_A5CapexCode,$AD:$AD)","v":0},{"$f":"SUMIFS(Sheet1!S71_OriginalBudAmnt,Sheet1!S71_SubMunicipalVoteNo,$AC:$AC,Sheet1!S71_A5CapexCode,$AD:$AD)","v":0},{"$f":"SUMIFS(Sheet1!S71_AdjustmentBudAmnt,Sheet1!S71_SubMunicipalVoteNo,$AC:$AC,Sheet1!S71_A5CapexCode,$AD:$AD)","v":0},{"$f":"SUMIFS(Sheet1!S71_AdjustmentBudAmnt,Sheet1!S71_SubMunicipalVoteNo,$AC:$AC,Sheet1!S71_A5CapexCode,$AD:$AD)","v":0},{"$f":"SUMIFS(Sheet1!CD:CD,Sheet1!S71_SubMunicipalVoteNo,$AC:$AC,Sheet1!S71_A5CapexCode,$AD:$AD)","v":0},{"$f":"SUMIFS(Sheet1!S71_ASBudgetAmount,Sheet1!S71_SubMunicipalVoteNo,$AC:$AC,Sheet1!S71_A5CapexCode,$AD:$AD)","v":0},{"$f":"SUMIFS(Sheet1!S71_OY1BudgetAmount,Sheet1!S71_SubMunicipalVoteNo,$AC:$AC,Sheet1!S71_A5CapexCode,$AD:$AD)","v":0},{"$f":"SUMIFS(Sheet1!S71_OY2BudgetAmount,Sheet1!S71_SubMunicipalVoteNo,$AC:$AC,Sheet1!S71_A5CapexCode,$AD:$AD)","v":0},null,null,null,null,null,null,null,null,null,null,null,null,null,null,null,null,510,"CE"]
["Vote 6 - [NAME OF VOTE 6]",null,{"$f":"SUM(C231:C240)","v":0},0,0,0,0,0,0,0,0,0]
["",null,{"$f":"SUMIFS(Sheet1!S71_PPPYearAmount,Sheet1!S71_SubMunicipalVoteNo,$AC:$AC,Sheet1!S71_A5CapexCode,$AD:$AD)","v":0},{"$f":"SUMIFS(Sheet1!S71_PPYearAmount,Sheet1!S71_SubMunicipalVoteNo,$AC:$AC,Sheet1!S71_A5CapexCode,$AD:$AD)","v":0},{"$f":"SUMIFS(Sheet1!S71_PYearAmount,Sheet1!S71_SubMunicipalVoteNo,$AC:$AC,Sheet1!S71_A5CapexCode,$AD:$AD)","v":0},{"$f":"SUMIFS(Sheet1!S71_OriginalBudAmnt,Sheet1!S71_SubMunicipalVoteNo,$AC:$AC,Sheet1!S71_A5CapexCode,$AD:$AD)","v":0},{"$f":"SUMIFS(Sheet1!S71_AdjustmentBudAmnt,Sheet1!S71_SubMunicipalVoteNo,$AC:$AC,Sheet1!S71_A5CapexCode,$AD:$AD)","v":0},{"$f":"SUMIFS(Sheet1!S71_AdjustmentBudAmnt,Sheet1!S71_SubMunicipalVoteNo,$AC:$AC,Sheet1!S71_A5CapexCode,$AD:$AD)","v":0},{"$f":"SUMIFS(Sheet1!CD:CD,Sheet1!S71_SubMunicipalVoteNo,$AC:$AC,Sheet1!S71_A5CapexCode,$AD:$AD)","v":0},{"$f":"SUMIFS(Sheet1!S71_ASBudgetAmount,Sheet1!S71_SubMunicipalVoteNo,$AC:$AC,Sheet1!S71_A5CapexCode,$AD:$AD)","v":0},{"$f":"SUMIFS(Sheet1!S71_OY1BudgetAmount,Sheet1!S71_SubMunicipalVoteNo,$AC:$AC,Sheet1!S71_A5CapexCode,$AD:$AD)","v":0},{"$f":"SUMIFS(Sheet1!S71_OY2BudgetAmount,Sheet1!S71_SubMunicipalVoteNo,$AC:$AC,Sheet1!S71_A5CapexCode,$AD:$AD)","v":0},null,null,null,null,null,null,null,null,null,null,null,null,null,null,null,null,61,"CE"]
["",null,{"$f":"SUMIFS(Sheet1!S71_PPPYearAmount,Sheet1!S71_SubMunicipalVoteNo,$AC:$AC,Sheet1!S71_A5CapexCode,$AD:$AD)","v":0},{"$f":"SUMIFS(Sheet1!S71_PPYearAmount,Sheet1!S71_SubMunicipalVoteNo,$AC:$AC,Sheet1!S71_A5CapexCode,$AD:$AD)","v":0},{"$f":"SUMIFS(Sheet1!S71_PYearAmount,Sheet1!S71_SubMunicipalVoteNo,$AC:$AC,Sheet1!S71_A5CapexCode,$AD:$AD)","v":0},{"$f":"SUMIFS(Sheet1!S71_OriginalBudAmnt,Sheet1!S71_SubMunicipalVoteNo,$AC:$AC,Sheet1!S71_A5CapexCode,$AD:$AD)","v":0},{"$f":"SUMIFS(Sheet1!S71_AdjustmentBudAmnt,Sheet1!S71_SubMunicipalVoteNo,$AC:$AC,Sheet1!S71_A5CapexCode,$AD:$AD)","v":0},{"$f":"SUMIFS(Sheet1!S71_AdjustmentBudAmnt,Sheet1!S71_SubMunicipalVoteNo,$AC:$AC,Sheet1!S71_A5CapexCode,$AD:$AD)","v":0},{"$f":"SUMIFS(Sheet1!CD:CD,Sheet1!S71_SubMunicipalVoteNo,$AC:$AC,Sheet1!S71_A5CapexCode,$AD:$AD)","v":0},{"$f":"SUMIFS(Sheet1!S71_ASBudgetAmount,Sheet1!S71_SubMunicipalVoteNo,$AC:$AC,Sheet1!S71_A5CapexCode,$AD:$AD)","v":0},{"$f":"SUMIFS(Sheet1!S71_OY1BudgetAmount,Sheet1!S71_SubMunicipalVoteNo,$AC:$AC,Sheet1!S71_A5CapexCode,$AD:$AD)","v":0},{"$f":"SUMIFS(Sheet1!S71_OY2BudgetAmount,Sheet1!S71_SubMunicipalVoteNo,$AC:$AC,Sheet1!S71_A5CapexCode,$AD:$AD)","v":0},null,null,null,null,null,null,null,null,null,null,null,null,null,null,null,null,62,"CE"]
["",null,{"$f":"SUMIFS(Sheet1!S71_PPPYearAmount,Sheet1!S71_SubMunicipalVoteNo,$AC:$AC,Sheet1!S71_A5CapexCode,$AD:$AD)","v":0},{"$f":"SUMIFS(Sheet1!S71_PPYearAmount,Sheet1!S71_SubMunicipalVoteNo,$AC:$AC,Sheet1!S71_A5CapexCode,$AD:$AD)","v":0},{"$f":"SUMIFS(Sheet1!S71_PYearAmount,Sheet1!S71_SubMunicipalVoteNo,$AC:$AC,Sheet1!S71_A5CapexCode,$AD:$AD)","v":0},{"$f":"SUMIFS(Sheet1!S71_OriginalBudAmnt,Sheet1!S71_SubMunicipalVoteNo,$AC:$AC,Sheet1!S71_A5CapexCode,$AD:$AD)","v":0},{"$f":"SUMIFS(Sheet1!S71_AdjustmentBudAmnt,Sheet1!S71_SubMunicipalVoteNo,$AC:$AC,Sheet1!S71_A5CapexCode,$AD:$AD)","v":0},{"$f":"SUMIFS(Sheet1!S71_AdjustmentBudAmnt,Sheet1!S71_SubMunicipalVoteNo,$AC:$AC,Sheet1!S71_A5CapexCode,$AD:$AD)","v":0},{"$f":"SUMIFS(Sheet1!CD:CD,Sheet1!S71_SubMunicipalVoteNo,$AC:$AC,Sheet1!S71_A5CapexCode,$AD:$AD)","v":0},{"$f":"SUMIFS(Sheet1!S71_ASBudgetAmount,Sheet1!S71_SubMunicipalVoteNo,$AC:$AC,Sheet1!S71_A5CapexCode,$AD:$AD)","v":0},{"$f":"SUMIFS(Sheet1!S71_OY1BudgetAmount,Sheet1!S71_SubMunicipalVoteNo,$AC:$AC,Sheet1!S71_A5CapexCode,$AD:$AD)","v":0},{"$f":"SUMIFS(Sheet1!S71_OY2BudgetAmount,Sheet1!S71_SubMunicipalVoteNo,$AC:$AC,Sheet1!S71_A5CapexCode,$AD:$AD)","v":0},null,null,null,null,null,null,null,null,null,null,null,null,null,null,null,null,63,"CE"]
["",null,{"$f":"SUMIFS(Sheet1!S71_PPPYearAmount,Sheet1!S71_SubMunicipalVoteNo,$AC:$AC,Sheet1!S71_A5CapexCode,$AD:$AD)","v":0},{"$f":"SUMIFS(Sheet1!S71_PPYearAmount,Sheet1!S71_SubMunicipalVoteNo,$AC:$AC,Sheet1!S71_A5CapexCode,$AD:$AD)","v":0},{"$f":"SUMIFS(Sheet1!S71_PYearAmount,Sheet1!S71_SubMunicipalVoteNo,$AC:$AC,Sheet1!S71_A5CapexCode,$AD:$AD)","v":0},{"$f":"SUMIFS(Sheet1!S71_OriginalBudAmnt,Sheet1!S71_SubMunicipalVoteNo,$AC:$AC,Sheet1!S71_A5CapexCode,$AD:$AD)","v":0},{"$f":"SUMIFS(Sheet1!S71_AdjustmentBudAmnt,Sheet1!S71_SubMunicipalVoteNo,$AC:$AC,Sheet1!S71_A5CapexCode,$AD:$AD)","v":0},{"$f":"SUMIFS(Sheet1!S71_AdjustmentBudAmnt,Sheet1!S71_SubMunicipalVoteNo,$AC:$AC,Sheet1!S71_A5CapexCode,$AD:$AD)","v":0},{"$f":"SUMIFS(Sheet1!CD:CD,Sheet1!S71_SubMunicipalVoteNo,$AC:$AC,Sheet1!S71_A5CapexCode,$AD:$AD)","v":0},{"$f":"SUMIFS(Sheet1!S71_ASBudgetAmount,Sheet1!S71_SubMunicipalVoteNo,$AC:$AC,Sheet1!S71_A5CapexCode,$AD:$AD)","v":0},{"$f":"SUMIFS(Sheet1!S71_OY1BudgetAmount,Sheet1!S71_SubMunicipalVoteNo,$AC:$AC,Sheet1!S71_A5CapexCode,$AD:$AD)","v":0},{"$f":"SUMIFS(Sheet1!S71_OY2BudgetAmount,Sheet1!S71_SubMunicipalVoteNo,$AC:$AC,Sheet1!S71_A5CapexCode,$AD:$AD)","v":0},null,null,null,null,null,null,null,null,null,null,null,null,null,null,null,null,64,"CE"]
["",null,{"$f":"SUMIFS(Sheet1!S71_PPPYearAmount,Sheet1!S71_SubMunicipalVoteNo,$AC:$AC,Sheet1!S71_A5CapexCode,$AD:$AD)","v":0},{"$f":"SUMIFS(Sheet1!S71_PPYearAmount,Sheet1!S71_SubMunicipalVoteNo,$AC:$AC,Sheet1!S71_A5CapexCode,$AD:$AD)","v":0},{"$f":"SUMIFS(Sheet1!S71_PYearAmount,Sheet1!S71_SubMunicipalVoteNo,$AC:$AC,Sheet1!S71_A5CapexCode,$AD:$AD)","v":0},{"$f":"SUMIFS(Sheet1!S71_OriginalBudAmnt,Sheet1!S71_SubMunicipalVoteNo,$AC:$AC,Sheet1!S71_A5CapexCode,$AD:$AD)","v":0},{"$f":"SUMIFS(Sheet1!S71_AdjustmentBudAmnt,Sheet1!S71_SubMunicipalVoteNo,$AC:$AC,Sheet1!S71_A5CapexCode,$AD:$AD)","v":0},{"$f":"SUMIFS(Sheet1!S71_AdjustmentBudAmnt,Sheet1!S71_SubMunicipalVoteNo,$AC:$AC,Sheet1!S71_A5CapexCode,$AD:$AD)","v":0},{"$f":"SUMIFS(Sheet1!CD:CD,Sheet1!S71_SubMunicipalVoteNo,$AC:$AC,Sheet1!S71_A5CapexCode,$AD:$AD)","v":0},{"$f":"SUMIFS(Sheet1!S71_ASBudgetAmount,Sheet1!S71_SubMunicipalVoteNo,$AC:$AC,Sheet1!S71_A5CapexCode,$AD:$AD)","v":0},{"$f":"SUMIFS(Sheet1!S71_OY1BudgetAmount,Sheet1!S71_SubMunicipalVoteNo,$AC:$AC,Sheet1!S71_A5CapexCode,$AD:$AD)","v":0},{"$f":"SUMIFS(Sheet1!S71_OY2BudgetAmount,Sheet1!S71_SubMunicipalVoteNo,$AC:$AC,Sheet1!S71_A5CapexCode,$AD:$AD)","v":0},null,null,null,null,null,null,null,null,null,null,null,null,null,null,null,null,65,"CE"]
["",null,{"$f":"SUMIFS(Sheet1!S71_PPPYearAmount,Sheet1!S71_SubMunicipalVoteNo,$AC:$AC,Sheet1!S71_A5CapexCode,$AD:$AD)","v":0},{"$f":"SUMIFS(Sheet1!S71_PPYearAmount,Sheet1!S71_SubMunicipalVoteNo,$AC:$AC,Sheet1!S71_A5CapexCode,$AD:$AD)","v":0},{"$f":"SUMIFS(Sheet1!S71_PYearAmount,Sheet1!S71_SubMunicipalVoteNo,$AC:$AC,Sheet1!S71_A5CapexCode,$AD:$AD)","v":0},{"$f":"SUMIFS(Sheet1!S71_OriginalBudAmnt,Sheet1!S71_SubMunicipalVoteNo,$AC:$AC,Sheet1!S71_A5CapexCode,$AD:$AD)","v":0},{"$f":"SUMIFS(Sheet1!S71_AdjustmentBudAmnt,Sheet1!S71_SubMunicipalVoteNo,$AC:$AC,Sheet1!S71_A5CapexCode,$AD:$AD)","v":0},{"$f":"SUMIFS(Sheet1!S71_AdjustmentBudAmnt,Sheet1!S71_SubMunicipalVoteNo,$AC:$AC,Sheet1!S71_A5CapexCode,$AD:$AD)","v":0},{"$f":"SUMIFS(Sheet1!CD:CD,Sheet1!S71_SubMunicipalVoteNo,$AC:$AC,Sheet1!S71_A5CapexCode,$AD:$AD)","v":0},{"$f":"SUMIFS(Sheet1!S71_ASBudgetAmount,Sheet1!S71_SubMunicipalVoteNo,$AC:$AC,Sheet1!S71_A5CapexCode,$AD:$AD)","v":0},{"$f":"SUMIFS(Sheet1!S71_OY1BudgetAmount,Sheet1!S71_SubMunicipalVoteNo,$AC:$AC,Sheet1!S71_A5CapexCode,$AD:$AD)","v":0},{"$f":"SUMIFS(Sheet1!S71_OY2BudgetAmount,Sheet1!S71_SubMunicipalVoteNo,$AC:$AC,Sheet1!S71_A5CapexCode,$AD:$AD)","v":0},null,null,null,null,null,null,null,null,null,null,null,null,null,null,null,null,66,"CE"]
["",null,{"$f":"SUMIFS(Sheet1!S71_PPPYearAmount,Sheet1!S71_SubMunicipalVoteNo,$AC:$AC,Sheet1!S71_A5CapexCode,$AD:$AD)","v":0},{"$f":"SUMIFS(Sheet1!S71_PPYearAmount,Sheet1!S71_SubMunicipalVoteNo,$AC:$AC,Sheet1!S71_A5CapexCode,$AD:$AD)","v":0},{"$f":"SUMIFS(Sheet1!S71_PYearAmount,Sheet1!S71_SubMunicipalVoteNo,$AC:$AC,Sheet1!S71_A5CapexCode,$AD:$AD)","v":0},{"$f":"SUMIFS(Sheet1!S71_OriginalBudAmnt,Sheet1!S71_SubMunicipalVoteNo,$AC:$AC,Sheet1!S71_A5CapexCode,$AD:$AD)","v":0},{"$f":"SUMIFS(Sheet1!S71_AdjustmentBudAmnt,Sheet1!S71_SubMunicipalVoteNo,$AC:$AC,Sheet1!S71_A5CapexCode,$AD:$AD)","v":0},{"$f":"SUMIFS(Sheet1!S71_AdjustmentBudAmnt,Sheet1!S71_SubMunicipalVoteNo,$AC:$AC,Sheet1!S71_A5CapexCode,$AD:$AD)","v":0},{"$f":"SUMIFS(Sheet1!CD:CD,Sheet1!S71_SubMunicipalVoteNo,$AC:$AC,Sheet1!S71_A5CapexCode,$AD:$AD)","v":0},{"$f":"SUMIFS(Sheet1!S71_ASBudgetAmount,Sheet1!S71_SubMunicipalVoteNo,$AC:$AC,Sheet1!S71_A5CapexCode,$AD:$AD)","v":0},{"$f":"SUMIFS(Sheet1!S71_OY1BudgetAmount,Sheet1!S71_SubMunicipalVoteNo,$AC:$AC,Sheet1!S71_A5CapexCode,$AD:$AD)","v":0},{"$f":"SUMIFS(Sheet1!S71_OY2BudgetAmount,Sheet1!S71_SubMunicipalVoteNo,$AC:$AC,Sheet1!S71_A5CapexCode,$AD:$AD)","v":0},null,null,null,null,null,null,null,null,null,null,null,null,null,null,null,null,67,"CE"]
["",null,{"$f":"SUMIFS(Sheet1!S71_PPPYearAmount,Sheet1!S71_SubMunicipalVoteNo,$AC:$AC,Sheet1!S71_A5CapexCode,$AD:$AD)","v":0},{"$f":"SUMIFS(Sheet1!S71_PPYearAmount,Sheet1!S71_SubMunicipalVoteNo,$AC:$AC,Sheet1!S71_A5CapexCode,$AD:$AD)","v":0},{"$f":"SUMIFS(Sheet1!S71_PYearAmount,Sheet1!S71_SubMunicipalVoteNo,$AC:$AC,Sheet1!S71_A5CapexCode,$AD:$AD)","v":0},{"$f":"SUMIFS(Sheet1!S71_OriginalBudAmnt,Sheet1!S71_SubMunicipalVoteNo,$AC:$AC,Sheet1!S71_A5CapexCode,$AD:$AD)","v":0},{"$f":"SUMIFS(Sheet1!S71_AdjustmentBudAmnt,Sheet1!S71_SubMunicipalVoteNo,$AC:$AC,Sheet1!S71_A5CapexCode,$AD:$AD)","v":0},{"$f":"SUMIFS(Sheet1!S71_AdjustmentBudAmnt,Sheet1!S71_SubMunicipalVoteNo,$AC:$AC,Sheet1!S71_A5CapexCode,$AD:$AD)","v":0},{"$f":"SUMIFS(Sheet1!CD:CD,Sheet1!S71_SubMunicipalVoteNo,$AC:$AC,Sheet1!S71_A5CapexCode,$AD:$AD)","v":0},{"$f":"SUMIFS(Sheet1!S71_ASBudgetAmount,Sheet1!S71_SubMunicipalVoteNo,$AC:$AC,Sheet1!S71_A5CapexCode,$AD:$AD)","v":0},{"$f":"SUMIFS(Sheet1!S71_OY1BudgetAmount,Sheet1!S71_SubMunicipalVoteNo,$AC:$AC,Sheet1!S71_A5CapexCode,$AD:$AD)","v":0},{"$f":"SUMIFS(Sheet1!S71_OY2BudgetAmount,Sheet1!S71_SubMunicipalVoteNo,$AC:$AC,Sheet1!S71_A5CapexCode,$AD:$AD)","v":0},null,null,null,null,null,null,null,null,null,null,null,null,null,null,null,null,68,"CE"]
["",null,{"$f":"SUMIFS(Sheet1!S71_PPPYearAmount,Sheet1!S71_SubMunicipalVoteNo,$AC:$AC,Sheet1!S71_A5CapexCode,$AD:$AD)","v":0},{"$f":"SUMIFS(Sheet1!S71_PPYearAmount,Sheet1!S71_SubMunicipalVoteNo,$AC:$AC,Sheet1!S71_A5CapexCode,$AD:$AD)","v":0},{"$f":"SUMIFS(Sheet1!S71_PYearAmount,Sheet1!S71_SubMunicipalVoteNo,$AC:$AC,Sheet1!S71_A5CapexCode,$AD:$AD)","v":0},{"$f":"SUMIFS(Sheet1!S71_OriginalBudAmnt,Sheet1!S71_SubMunicipalVoteNo,$AC:$AC,Sheet1!S71_A5CapexCode,$AD:$AD)","v":0},{"$f":"SUMIFS(Sheet1!S71_AdjustmentBudAmnt,Sheet1!S71_SubMunicipalVoteNo,$AC:$AC,Sheet1!S71_A5CapexCode,$AD:$AD)","v":0},{"$f":"SUMIFS(Sheet1!S71_AdjustmentBudAmnt,Sheet1!S71_SubMunicipalVoteNo,$AC:$AC,Sheet1!S71_A5CapexCode,$AD:$AD)","v":0},{"$f":"SUMIFS(Sheet1!CD:CD,Sheet1!S71_SubMunicipalVoteNo,$AC:$AC,Sheet1!S71_A5CapexCode,$AD:$AD)","v":0},{"$f":"SUMIFS(Sheet1!S71_ASBudgetAmount,Sheet1!S71_SubMunicipalVoteNo,$AC:$AC,Sheet1!S71_A5CapexCode,$AD:$AD)","v":0},{"$f":"SUMIFS(Sheet1!S71_OY1BudgetAmount,Sheet1!S71_SubMunicipalVoteNo,$AC:$AC,Sheet1!S71_A5CapexCode,$AD:$AD)","v":0},{"$f":"SUMIFS(Sheet1!S71_OY2BudgetAmount,Sheet1!S71_SubMunicipalVoteNo,$AC:$AC,Sheet1!S71_A5CapexCode,$AD:$AD)","v":0},null,null,null,null,null,null,null,null,null,null,null,null,null,null,null,null,69,"CE"]
[{"$f":"A71","v":""},null,{"$f":"SUMIFS(Sheet1!S71_PPPYearAmount,Sheet1!S71_SubMunicipalVoteNo,$AC:$AC,Sheet1!S71_A5CapexCode,$AD:$AD)","v":0},{"$f":"SUMIFS(Sheet1!S71_PPYearAmount,Sheet1!S71_SubMunicipalVoteNo,$AC:$AC,Sheet1!S71_A5CapexCode,$AD:$AD)","v":0},{"$f":"SUMIFS(Sheet1!S71_PYearAmount,Sheet1!S71_SubMunicipalVoteNo,$AC:$AC,Sheet1!S71_A5CapexCode,$AD:$AD)","v":0},{"$f":"SUMIFS(Sheet1!S71_OriginalBudAmnt,Sheet1!S71_SubMunicipalVoteNo,$AC:$AC,Sheet1!S71_A5CapexCode,$AD:$AD)","v":0},{"$f":"SUMIFS(Sheet1!S71_AdjustmentBudAmnt,Sheet1!S71_SubMunicipalVoteNo,$AC:$AC,Sheet1!S71_A5CapexCode,$AD:$AD)","v":0},{"$f":"SUMIFS(Sheet1!S71_AdjustmentBudAmnt,Sheet1!S71_SubMunicipalVoteNo,$AC:$AC,Sheet1!S71_A5CapexCode,$AD:$AD)","v":0},{"$f":"SUMIFS(Sheet1!CD:CD,Sheet1!S71_SubMunicipalVoteNo,$AC:$AC,Sheet1!S71_A5CapexCode,$AD:$AD)","v":0},{"$f":"SUMIFS(Sheet1!S71_ASBudgetAmount,Sheet1!S71_SubMunicipalVoteNo,$AC:$AC,Sheet1!S71_A5CapexCode,$AD:$AD)","v":0},{"$f":"SUMIFS(Sheet1!S71_OY1BudgetAmount,Sheet1!S71_SubMunicipalVoteNo,$AC:$AC,Sheet1!S71_A5CapexCode,$AD:$AD)","v":0},{"$f":"SUMIFS(Sheet1!S71_OY2BudgetAmount,Sheet1!S71_SubMunicipalVoteNo,$AC:$AC,Sheet1!S71_A5CapexCode,$AD:$AD)","v":0},null,null,null,null,null,null,null,null,null,null,null,null,null,null,null,null,610,"CE"]
["Vote 7 - [NAME OF VOTE 7]",null,{"$f":"SUM(C242:C251)","v":0},0,0,0,0,0,0,0,0,0]
["",null,{"$f":"SUMIFS(Sheet1!S71_PPPYearAmount,Sheet1!S71_SubMunicipalVoteNo,$AC:$AC,Sheet1!S71_A5CapexCode,$AD:$AD)","v":0},{"$f":"SUMIFS(Sheet1!S71_PPYearAmount,Sheet1!S71_SubMunicipalVoteNo,$AC:$AC,Sheet1!S71_A5CapexCode,$AD:$AD)","v":0},{"$f":"SUMIFS(Sheet1!S71_PYearAmount,Sheet1!S71_SubMunicipalVoteNo,$AC:$AC,Sheet1!S71_A5CapexCode,$AD:$AD)","v":0},{"$f":"SUMIFS(Sheet1!S71_OriginalBudAmnt,Sheet1!S71_SubMunicipalVoteNo,$AC:$AC,Sheet1!S71_A5CapexCode,$AD:$AD)","v":0},{"$f":"SUMIFS(Sheet1!S71_AdjustmentBudAmnt,Sheet1!S71_SubMunicipalVoteNo,$AC:$AC,Sheet1!S71_A5CapexCode,$AD:$AD)","v":0},{"$f":"SUMIFS(Sheet1!S71_AdjustmentBudAmnt,Sheet1!S71_SubMunicipalVoteNo,$AC:$AC,Sheet1!S71_A5CapexCode,$AD:$AD)","v":0},{"$f":"SUMIFS(Sheet1!CD:CD,Sheet1!S71_SubMunicipalVoteNo,$AC:$AC,Sheet1!S71_A5CapexCode,$AD:$AD)","v":0},{"$f":"SUMIFS(Sheet1!S71_ASBudgetAmount,Sheet1!S71_SubMunicipalVoteNo,$AC:$AC,Sheet1!S71_A5CapexCode,$AD:$AD)","v":0},{"$f":"SUMIFS(Sheet1!S71_OY1BudgetAmount,Sheet1!S71_SubMunicipalVoteNo,$AC:$AC,Sheet1!S71_A5CapexCode,$AD:$AD)","v":0},{"$f":"SUMIFS(Sheet1!S71_OY2BudgetAmount,Sheet1!S71_SubMunicipalVoteNo,$AC:$AC,Sheet1!S71_A5CapexCode,$AD:$AD)","v":0},null,null,null,null,null,null,null,null,null,null,null,null,null,null,null,null,71,"CE"]
["",null,{"$f":"SUMIFS(Sheet1!S71_PPPYearAmount,Sheet1!S71_SubMunicipalVoteNo,$AC:$AC,Sheet1!S71_A5CapexCode,$AD:$AD)","v":0},{"$f":"SUMIFS(Sheet1!S71_PPYearAmount,Sheet1!S71_SubMunicipalVoteNo,$AC:$AC,Sheet1!S71_A5CapexCode,$AD:$AD)","v":0},{"$f":"SUMIFS(Sheet1!S71_PYearAmount,Sheet1!S71_SubMunicipalVoteNo,$AC:$AC,Sheet1!S71_A5CapexCode,$AD:$AD)","v":0},{"$f":"SUMIFS(Sheet1!S71_OriginalBudAmnt,Sheet1!S71_SubMunicipalVoteNo,$AC:$AC,Sheet1!S71_A5CapexCode,$AD:$AD)","v":0},{"$f":"SUMIFS(Sheet1!S71_AdjustmentBudAmnt,Sheet1!S71_SubMunicipalVoteNo,$AC:$AC,Sheet1!S71_A5CapexCode,$AD:$AD)","v":0},{"$f":"SUMIFS(Sheet1!S71_AdjustmentBudAmnt,Sheet1!S71_SubMunicipalVoteNo,$AC:$AC,Sheet1!S71_A5CapexCode,$AD:$AD)","v":0},{"$f":"SUMIFS(Sheet1!CD:CD,Sheet1!S71_SubMunicipalVoteNo,$AC:$AC,Sheet1!S71_A5CapexCode,$AD:$AD)","v":0},{"$f":"SUMIFS(Sheet1!S71_ASBudgetAmount,Sheet1!S71_SubMunicipalVoteNo,$AC:$AC,Sheet1!S71_A5CapexCode,$AD:$AD)","v":0},{"$f":"SUMIFS(Sheet1!S71_OY1BudgetAmount,Sheet1!S71_SubMunicipalVoteNo,$AC:$AC,Sheet1!S71_A5CapexCode,$AD:$AD)","v":0},{"$f":"SUMIFS(Sheet1!S71_OY2BudgetAmount,Sheet1!S71_SubMunicipalVoteNo,$AC:$AC,Sheet1!S71_A5CapexCode,$AD:$AD)","v":0},null,null,null,null,null,null,null,null,null,null,null,null,null,null,null,null,72,"CE"]
["",null,{"$f":"SUMIFS(Sheet1!S71_PPPYearAmount,Sheet1!S71_SubMunicipalVoteNo,$AC:$AC,Sheet1!S71_A5CapexCode,$AD:$AD)","v":0},{"$f":"SUMIFS(Sheet1!S71_PPYearAmount,Sheet1!S71_SubMunicipalVoteNo,$AC:$AC,Sheet1!S71_A5CapexCode,$AD:$AD)","v":0},{"$f":"SUMIFS(Sheet1!S71_PYearAmount,Sheet1!S71_SubMunicipalVoteNo,$AC:$AC,Sheet1!S71_A5CapexCode,$AD:$AD)","v":0},{"$f":"SUMIFS(Sheet1!S71_OriginalBudAmnt,Sheet1!S71_SubMunicipalVoteNo,$AC:$AC,Sheet1!S71_A5CapexCode,$AD:$AD)","v":0},{"$f":"SUMIFS(Sheet1!S71_AdjustmentBudAmnt,Sheet1!S71_SubMunicipalVoteNo,$AC:$AC,Sheet1!S71_A5CapexCode,$AD:$AD)","v":0},{"$f":"SUMIFS(Sheet1!S71_AdjustmentBudAmnt,Sheet1!S71_SubMunicipalVoteNo,$AC:$AC,Sheet1!S71_A5CapexCode,$AD:$AD)","v":0},{"$f":"SUMIFS(Sheet1!CD:CD,Sheet1!S71_SubMunicipalVoteNo,$AC:$AC,Sheet1!S71_A5CapexCode,$AD:$AD)","v":0},{"$f":"SUMIFS(Sheet1!S71_ASBudgetAmount,Sheet1!S71_SubMunicipalVoteNo,$AC:$AC,Sheet1!S71_A5CapexCode,$AD:$AD)","v":0},{"$f":"SUMIFS(Sheet1!S71_OY1BudgetAmount,Sheet1!S71_SubMunicipalVoteNo,$AC:$AC,Sheet1!S71_A5CapexCode,$AD:$AD)","v":0},{"$f":"SUMIFS(Sheet1!S71_OY2BudgetAmount,Sheet1!S71_SubMunicipalVoteNo,$AC:$AC,Sheet1!S71_A5CapexCode,$AD:$AD)","v":0},null,null,null,null,null,null,null,null,null,null,null,null,null,null,null,null,73,"CE"]
["",null,{"$f":"SUMIFS(Sheet1!S71_PPPYearAmount,Sheet1!S71_SubMunicipalVoteNo,$AC:$AC,Sheet1!S71_A5CapexCode,$AD:$AD)","v":0},{"$f":"SUMIFS(Sheet1!S71_PPYearAmount,Sheet1!S71_SubMunicipalVoteNo,$AC:$AC,Sheet1!S71_A5CapexCode,$AD:$AD)","v":0},{"$f":"SUMIFS(Sheet1!S71_PYearAmount,Sheet1!S71_SubMunicipalVoteNo,$AC:$AC,Sheet1!S71_A5CapexCode,$AD:$AD)","v":0},{"$f":"SUMIFS(Sheet1!S71_OriginalBudAmnt,Sheet1!S71_SubMunicipalVoteNo,$AC:$AC,Sheet1!S71_A5CapexCode,$AD:$AD)","v":0},{"$f":"SUMIFS(Sheet1!S71_AdjustmentBudAmnt,Sheet1!S71_SubMunicipalVoteNo,$AC:$AC,Sheet1!S71_A5CapexCode,$AD:$AD)","v":0},{"$f":"SUMIFS(Sheet1!S71_AdjustmentBudAmnt,Sheet1!S71_SubMunicipalVoteNo,$AC:$AC,Sheet1!S71_A5CapexCode,$AD:$AD)","v":0},{"$f":"SUMIFS(Sheet1!CD:CD,Sheet1!S71_SubMunicipalVoteNo,$AC:$AC,Sheet1!S71_A5CapexCode,$AD:$AD)","v":0},{"$f":"SUMIFS(Sheet1!S71_ASBudgetAmount,Sheet1!S71_SubMunicipalVoteNo,$AC:$AC,Sheet1!S71_A5CapexCode,$AD:$AD)","v":0},{"$f":"SUMIFS(Sheet1!S71_OY1BudgetAmount,Sheet1!S71_SubMunicipalVoteNo,$AC:$AC,Sheet1!S71_A5CapexCode,$AD:$AD)","v":0},{"$f":"SUMIFS(Sheet1!S71_OY2BudgetAmount,Sheet1!S71_SubMunicipalVoteNo,$AC:$AC,Sheet1!S71_A5CapexCode,$AD:$AD)","v":0},null,null,null,null,null,null,null,null,null,null,null,null,null,null,null,null,74,"CE"]
["",null,{"$f":"SUMIFS(Sheet1!S71_PPPYearAmount,Sheet1!S71_SubMunicipalVoteNo,$AC:$AC,Sheet1!S71_A5CapexCode,$AD:$AD)","v":0},{"$f":"SUMIFS(Sheet1!S71_PPYearAmount,Sheet1!S71_SubMunicipalVoteNo,$AC:$AC,Sheet1!S71_A5CapexCode,$AD:$AD)","v":0},{"$f":"SUMIFS(Sheet1!S71_PYearAmount,Sheet1!S71_SubMunicipalVoteNo,$AC:$AC,Sheet1!S71_A5CapexCode,$AD:$AD)","v":0},{"$f":"SUMIFS(Sheet1!S71_OriginalBudAmnt,Sheet1!S71_SubMunicipalVoteNo,$AC:$AC,Sheet1!S71_A5CapexCode,$AD:$AD)","v":0},{"$f":"SUMIFS(Sheet1!S71_AdjustmentBudAmnt,Sheet1!S71_SubMunicipalVoteNo,$AC:$AC,Sheet1!S71_A5CapexCode,$AD:$AD)","v":0},{"$f":"SUMIFS(Sheet1!S71_AdjustmentBudAmnt,Sheet1!S71_SubMunicipalVoteNo,$AC:$AC,Sheet1!S71_A5CapexCode,$AD:$AD)","v":0},{"$f":"SUMIFS(Sheet1!CD:CD,Sheet1!S71_SubMunicipalVoteNo,$AC:$AC,Sheet1!S71_A5CapexCode,$AD:$AD)","v":0},{"$f":"SUMIFS(Sheet1!S71_ASBudgetAmount,Sheet1!S71_SubMunicipalVoteNo,$AC:$AC,Sheet1!S71_A5CapexCode,$AD:$AD)","v":0},{"$f":"SUMIFS(Sheet1!S71_OY1BudgetAmount,Sheet1!S71_SubMunicipalVoteNo,$AC:$AC,Sheet1!S71_A5CapexCode,$AD:$AD)","v":0},{"$f":"SUMIFS(Sheet1!S71_OY2BudgetAmount,Sheet1!S71_SubMunicipalVoteNo,$AC:$AC,Sheet1!S71_A5CapexCode,$AD:$AD)","v":0},null,null,null,null,null,null,null,null,null,null,null,null,null,null,null,null,75,"CE"]
["",null,{"$f":"SUMIFS(Sheet1!S71_PPPYearAmount,Sheet1!S71_SubMunicipalVoteNo,$AC:$AC,Sheet1!S71_A5CapexCode,$AD:$AD)","v":0},{"$f":"SUMIFS(Sheet1!S71_PPYearAmount,Sheet1!S71_SubMunicipalVoteNo,$AC:$AC,Sheet1!S71_A5CapexCode,$AD:$AD)","v":0},{"$f":"SUMIFS(Sheet1!S71_PYearAmount,Sheet1!S71_SubMunicipalVoteNo,$AC:$AC,Sheet1!S71_A5CapexCode,$AD:$AD)","v":0},{"$f":"SUMIFS(Sheet1!S71_OriginalBudAmnt,Sheet1!S71_SubMunicipalVoteNo,$AC:$AC,Sheet1!S71_A5CapexCode,$AD:$AD)","v":0},{"$f":"SUMIFS(Sheet1!S71_AdjustmentBudAmnt,Sheet1!S71_SubMunicipalVoteNo,$AC:$AC,Sheet1!S71_A5CapexCode,$AD:$AD)","v":0},{"$f":"SUMIFS(Sheet1!S71_AdjustmentBudAmnt,Sheet1!S71_SubMunicipalVoteNo,$AC:$AC,Sheet1!S71_A5CapexCode,$AD:$AD)","v":0},{"$f":"SUMIFS(Sheet1!CD:CD,Sheet1!S71_SubMunicipalVoteNo,$AC:$AC,Sheet1!S71_A5CapexCode,$AD:$AD)","v":0},{"$f":"SUMIFS(Sheet1!S71_ASBudgetAmount,Sheet1!S71_SubMunicipalVoteNo,$AC:$AC,Sheet1!S71_A5CapexCode,$AD:$AD)","v":0},{"$f":"SUMIFS(Sheet1!S71_OY1BudgetAmount,Sheet1!S71_SubMunicipalVoteNo,$AC:$AC,Sheet1!S71_A5CapexCode,$AD:$AD)","v":0},{"$f":"SUMIFS(Sheet1!S71_OY2BudgetAmount,Sheet1!S71_SubMunicipalVoteNo,$AC:$AC,Sheet1!S71_A5CapexCode,$AD:$AD)","v":0},null,null,null,null,null,null,null,null,null,null,null,null,null,null,null,null,76,"CE"]
["",null,{"$f":"SUMIFS(Sheet1!S71_PPPYearAmount,Sheet1!S71_SubMunicipalVoteNo,$AC:$AC,Sheet1!S71_A5CapexCode,$AD:$AD)","v":0},{"$f":"SUMIFS(Sheet1!S71_PPYearAmount,Sheet1!S71_SubMunicipalVoteNo,$AC:$AC,Sheet1!S71_A5CapexCode,$AD:$AD)","v":0},{"$f":"SUMIFS(Sheet1!S71_PYearAmount,Sheet1!S71_SubMunicipalVoteNo,$AC:$AC,Sheet1!S71_A5CapexCode,$AD:$AD)","v":0},{"$f":"SUMIFS(Sheet1!S71_OriginalBudAmnt,Sheet1!S71_SubMunicipalVoteNo,$AC:$AC,Sheet1!S71_A5CapexCode,$AD:$AD)","v":0},{"$f":"SUMIFS(Sheet1!S71_AdjustmentBudAmnt,Sheet1!S71_SubMunicipalVoteNo,$AC:$AC,Sheet1!S71_A5CapexCode,$AD:$AD)","v":0},{"$f":"SUMIFS(Sheet1!S71_AdjustmentBudAmnt,Sheet1!S71_SubMunicipalVoteNo,$AC:$AC,Sheet1!S71_A5CapexCode,$AD:$AD)","v":0},{"$f":"SUMIFS(Sheet1!CD:CD,Sheet1!S71_SubMunicipalVoteNo,$AC:$AC,Sheet1!S71_A5CapexCode,$AD:$AD)","v":0},{"$f":"SUMIFS(Sheet1!S71_ASBudgetAmount,Sheet1!S71_SubMunicipalVoteNo,$AC:$AC,Sheet1!S71_A5CapexCode,$AD:$AD)","v":0},{"$f":"SUMIFS(Sheet1!S71_OY1BudgetAmount,Sheet1!S71_SubMunicipalVoteNo,$AC:$AC,Sheet1!S71_A5CapexCode,$AD:$AD)","v":0},{"$f":"SUMIFS(Sheet1!S71_OY2BudgetAmount,Sheet1!S71_SubMunicipalVoteNo,$AC:$AC,Sheet1!S71_A5CapexCode,$AD:$AD)","v":0},null,null,null,null,null,null,null,null,null,null,null,null,null,null,null,null,77,"CE"]
["",null,{"$f":"SUMIFS(Sheet1!S71_PPPYearAmount,Sheet1!S71_SubMunicipalVoteNo,$AC:$AC,Sheet1!S71_A5CapexCode,$AD:$AD)","v":0},{"$f":"SUMIFS(Sheet1!S71_PPYearAmount,Sheet1!S71_SubMunicipalVoteNo,$AC:$AC,Sheet1!S71_A5CapexCode,$AD:$AD)","v":0},{"$f":"SUMIFS(Sheet1!S71_PYearAmount,Sheet1!S71_SubMunicipalVoteNo,$AC:$AC,Sheet1!S71_A5CapexCode,$AD:$AD)","v":0},{"$f":"SUMIFS(Sheet1!S71_OriginalBudAmnt,Sheet1!S71_SubMunicipalVoteNo,$AC:$AC,Sheet1!S71_A5CapexCode,$AD:$AD)","v":0},{"$f":"SUMIFS(Sheet1!S71_AdjustmentBudAmnt,Sheet1!S71_SubMunicipalVoteNo,$AC:$AC,Sheet1!S71_A5CapexCode,$AD:$AD)","v":0},{"$f":"SUMIFS(Sheet1!S71_AdjustmentBudAmnt,Sheet1!S71_SubMunicipalVoteNo,$AC:$AC,Sheet1!S71_A5CapexCode,$AD:$AD)","v":0},{"$f":"SUMIFS(Sheet1!CD:CD,Sheet1!S71_SubMunicipalVoteNo,$AC:$AC,Sheet1!S71_A5CapexCode,$AD:$AD)","v":0},{"$f":"SUMIFS(Sheet1!S71_ASBudgetAmount,Sheet1!S71_SubMunicipalVoteNo,$AC:$AC,Sheet1!S71_A5CapexCode,$AD:$AD)","v":0},{"$f":"SUMIFS(Sheet1!S71_OY1BudgetAmount,Sheet1!S71_SubMunicipalVoteNo,$AC:$AC,Sheet1!S71_A5CapexCode,$AD:$AD)","v":0},{"$f":"SUMIFS(Sheet1!S71_OY2BudgetAmount,Sheet1!S71_SubMunicipalVoteNo,$AC:$AC,Sheet1!S71_A5CapexCode,$AD:$AD)","v":0},null,null,null,null,null,null,null,null,null,null,null,null,null,null,null,null,78,"CE"]
["",null,{"$f":"SUMIFS(Sheet1!S71_PPPYearAmount,Sheet1!S71_SubMunicipalVoteNo,$AC:$AC,Sheet1!S71_A5CapexCode,$AD:$AD)","v":0},{"$f":"SUMIFS(Sheet1!S71_PPYearAmount,Sheet1!S71_SubMunicipalVoteNo,$AC:$AC,Sheet1!S71_A5CapexCode,$AD:$AD)","v":0},{"$f":"SUMIFS(Sheet1!S71_PYearAmount,Sheet1!S71_SubMunicipalVoteNo,$AC:$AC,Sheet1!S71_A5CapexCode,$AD:$AD)","v":0},{"$f":"SUMIFS(Sheet1!S71_OriginalBudAmnt,Sheet1!S71_SubMunicipalVoteNo,$AC:$AC,Sheet1!S71_A5CapexCode,$AD:$AD)","v":0},{"$f":"SUMIFS(Sheet1!S71_AdjustmentBudAmnt,Sheet1!S71_SubMunicipalVoteNo,$AC:$AC,Sheet1!S71_A5CapexCode,$AD:$AD)","v":0},{"$f":"SUMIFS(Sheet1!S71_AdjustmentBudAmnt,Sheet1!S71_SubMunicipalVoteNo,$AC:$AC,Sheet1!S71_A5CapexCode,$AD:$AD)","v":0},{"$f":"SUMIFS(Sheet1!CD:CD,Sheet1!S71_SubMunicipalVoteNo,$AC:$AC,Sheet1!S71_A5CapexCode,$AD:$AD)","v":0},{"$f":"SUMIFS(Sheet1!S71_ASBudgetAmount,Sheet1!S71_SubMunicipalVoteNo,$AC:$AC,Sheet1!S71_A5CapexCode,$AD:$AD)","v":0},{"$f":"SUMIFS(Sheet1!S71_OY1BudgetAmount,Sheet1!S71_SubMunicipalVoteNo,$AC:$AC,Sheet1!S71_A5CapexCode,$AD:$AD)","v":0},{"$f":"SUMIFS(Sheet1!S71_OY2BudgetAmount,Sheet1!S71_SubMunicipalVoteNo,$AC:$AC,Sheet1!S71_A5CapexCode,$AD:$AD)","v":0},null,null,null,null,null,null,null,null,null,null,null,null,null,null,null,null,79,"CE"]
["",null,{"$f":"SUMIFS(Sheet1!S71_PPPYearAmount,Sheet1!S71_SubMunicipalVoteNo,$AC:$AC,Sheet1!S71_A5CapexCode,$AD:$AD)","v":0},{"$f":"SUMIFS(Sheet1!S71_PPYearAmount,Sheet1!S71_SubMunicipalVoteNo,$AC:$AC,Sheet1!S71_A5CapexCode,$AD:$AD)","v":0},{"$f":"SUMIFS(Sheet1!S71_PYearAmount,Sheet1!S71_SubMunicipalVoteNo,$AC:$AC,Sheet1!S71_A5CapexCode,$AD:$AD)","v":0},{"$f":"SUMIFS(Sheet1!S71_OriginalBudAmnt,Sheet1!S71_SubMunicipalVoteNo,$AC:$AC,Sheet1!S71_A5CapexCode,$AD:$AD)","v":0},{"$f":"SUMIFS(Sheet1!S71_AdjustmentBudAmnt,Sheet1!S71_SubMunicipalVoteNo,$AC:$AC,Sheet1!S71_A5CapexCode,$AD:$AD)","v":0},{"$f":"SUMIFS(Sheet1!S71_AdjustmentBudAmnt,Sheet1!S71_SubMunicipalVoteNo,$AC:$AC,Sheet1!S71_A5CapexCode,$AD:$AD)","v":0},{"$f":"SUMIFS(Sheet1!CD:CD,Sheet1!S71_SubMunicipalVoteNo,$AC:$AC,Sheet1!S71_A5CapexCode,$AD:$AD)","v":0},{"$f":"SUMIFS(Sheet1!S71_ASBudgetAmount,Sheet1!S71_SubMunicipalVoteNo,$AC:$AC,Sheet1!S71_A5CapexCode,$AD:$AD)","v":0},{"$f":"SUMIFS(Sheet1!S71_OY1BudgetAmount,Sheet1!S71_SubMunicipalVoteNo,$AC:$AC,Sheet1!S71_A5CapexCode,$AD:$AD)","v":0},{"$f":"SUMIFS(Sheet1!S71_OY2BudgetAmount,Sheet1!S71_SubMunicipalVoteNo,$AC:$AC,Sheet1!S71_A5CapexCode,$AD:$AD)","v":0},null,null,null,null,null,null,null,null,null,null,null,null,null,null,null,null,710,"CE"]
["Vote 8 - [NAME OF VOTE 8]",null,{"$f":"SUM(C253:C262)","v":0},0,0,0,0,0,0,0,0,0]
["",null,{"$f":"SUMIFS(Sheet1!S71_PPPYearAmount,Sheet1!S71_SubMunicipalVoteNo,$AC:$AC,Sheet1!S71_A5CapexCode,$AD:$AD)","v":0},{"$f":"SUMIFS(Sheet1!S71_PPYearAmount,Sheet1!S71_SubMunicipalVoteNo,$AC:$AC,Sheet1!S71_A5CapexCode,$AD:$AD)","v":0},{"$f":"SUMIFS(Sheet1!S71_PYearAmount,Sheet1!S71_SubMunicipalVoteNo,$AC:$AC,Sheet1!S71_A5CapexCode,$AD:$AD)","v":0},{"$f":"SUMIFS(Sheet1!S71_OriginalBudAmnt,Sheet1!S71_SubMunicipalVoteNo,$AC:$AC,Sheet1!S71_A5CapexCode,$AD:$AD)","v":0},{"$f":"SUMIFS(Sheet1!S71_AdjustmentBudAmnt,Sheet1!S71_SubMunicipalVoteNo,$AC:$AC,Sheet1!S71_A5CapexCode,$AD:$AD)","v":0},{"$f":"SUMIFS(Sheet1!S71_AdjustmentBudAmnt,Sheet1!S71_SubMunicipalVoteNo,$AC:$AC,Sheet1!S71_A5CapexCode,$AD:$AD)","v":0},{"$f":"SUMIFS(Sheet1!CD:CD,Sheet1!S71_SubMunicipalVoteNo,$AC:$AC,Sheet1!S71_A5CapexCode,$AD:$AD)","v":0},{"$f":"SUMIFS(Sheet1!S71_ASBudgetAmount,Sheet1!S71_SubMunicipalVoteNo,$AC:$AC,Sheet1!S71_A5CapexCode,$AD:$AD)","v":0},{"$f":"SUMIFS(Sheet1!S71_OY1BudgetAmount,Sheet1!S71_SubMunicipalVoteNo,$AC:$AC,Sheet1!S71_A5CapexCode,$AD:$AD)","v":0},{"$f":"SUMIFS(Sheet1!S71_OY2BudgetAmount,Sheet1!S71_SubMunicipalVoteNo,$AC:$AC,Sheet1!S71_A5CapexCode,$AD:$AD)","v":0},null,null,null,null,null,null,null,null,null,null,null,null,null,null,null,null,81,"CE"]
["",null,{"$f":"SUMIFS(Sheet1!S71_PPPYearAmount,Sheet1!S71_SubMunicipalVoteNo,$AC:$AC,Sheet1!S71_A5CapexCode,$AD:$AD)","v":0},{"$f":"SUMIFS(Sheet1!S71_PPYearAmount,Sheet1!S71_SubMunicipalVoteNo,$AC:$AC,Sheet1!S71_A5CapexCode,$AD:$AD)","v":0},{"$f":"SUMIFS(Sheet1!S71_PYearAmount,Sheet1!S71_SubMunicipalVoteNo,$AC:$AC,Sheet1!S71_A5CapexCode,$AD:$AD)","v":0},{"$f":"SUMIFS(Sheet1!S71_OriginalBudAmnt,Sheet1!S71_SubMunicipalVoteNo,$AC:$AC,Sheet1!S71_A5CapexCode,$AD:$AD)","v":0},{"$f":"SUMIFS(Sheet1!S71_AdjustmentBudAmnt,Sheet1!S71_SubMunicipalVoteNo,$AC:$AC,Sheet1!S71_A5CapexCode,$AD:$AD)","v":0},{"$f":"SUMIFS(Sheet1!S71_AdjustmentBudAmnt,Sheet1!S71_SubMunicipalVoteNo,$AC:$AC,Sheet1!S71_A5CapexCode,$AD:$AD)","v":0},{"$f":"SUMIFS(Sheet1!CD:CD,Sheet1!S71_SubMunicipalVoteNo,$AC:$AC,Sheet1!S71_A5CapexCode,$AD:$AD)","v":0},{"$f":"SUMIFS(Sheet1!S71_ASBudgetAmount,Sheet1!S71_SubMunicipalVoteNo,$AC:$AC,Sheet1!S71_A5CapexCode,$AD:$AD)","v":0},{"$f":"SUMIFS(Sheet1!S71_OY1BudgetAmount,Sheet1!S71_SubMunicipalVoteNo,$AC:$AC,Sheet1!S71_A5CapexCode,$AD:$AD)","v":0},{"$f":"SUMIFS(Sheet1!S71_OY2BudgetAmount,Sheet1!S71_SubMunicipalVoteNo,$AC:$AC,Sheet1!S71_A5CapexCode,$AD:$AD)","v":0},null,null,null,null,null,null,null,null,null,null,null,null,null,null,null,null,82,"CE"]
["",null,{"$f":"SUMIFS(Sheet1!S71_PPPYearAmount,Sheet1!S71_SubMunicipalVoteNo,$AC:$AC,Sheet1!S71_A5CapexCode,$AD:$AD)","v":0},{"$f":"SUMIFS(Sheet1!S71_PPYearAmount,Sheet1!S71_SubMunicipalVoteNo,$AC:$AC,Sheet1!S71_A5CapexCode,$AD:$AD)","v":0},{"$f":"SUMIFS(Sheet1!S71_PYearAmount,Sheet1!S71_SubMunicipalVoteNo,$AC:$AC,Sheet1!S71_A5CapexCode,$AD:$AD)","v":0},{"$f":"SUMIFS(Sheet1!S71_OriginalBudAmnt,Sheet1!S71_SubMunicipalVoteNo,$AC:$AC,Sheet1!S71_A5CapexCode,$AD:$AD)","v":0},{"$f":"SUMIFS(Sheet1!S71_AdjustmentBudAmnt,Sheet1!S71_SubMunicipalVoteNo,$AC:$AC,Sheet1!S71_A5CapexCode,$AD:$AD)","v":0},{"$f":"SUMIFS(Sheet1!S71_AdjustmentBudAmnt,Sheet1!S71_SubMunicipalVoteNo,$AC:$AC,Sheet1!S71_A5CapexCode,$AD:$AD)","v":0},{"$f":"SUMIFS(Sheet1!CD:CD,Sheet1!S71_SubMunicipalVoteNo,$AC:$AC,Sheet1!S71_A5CapexCode,$AD:$AD)","v":0},{"$f":"SUMIFS(Sheet1!S71_ASBudgetAmount,Sheet1!S71_SubMunicipalVoteNo,$AC:$AC,Sheet1!S71_A5CapexCode,$AD:$AD)","v":0},{"$f":"SUMIFS(Sheet1!S71_OY1BudgetAmount,Sheet1!S71_SubMunicipalVoteNo,$AC:$AC,Sheet1!S71_A5CapexCode,$AD:$AD)","v":0},{"$f":"SUMIFS(Sheet1!S71_OY2BudgetAmount,Sheet1!S71_SubMunicipalVoteNo,$AC:$AC,Sheet1!S71_A5CapexCode,$AD:$AD)","v":0},null,null,null,null,null,null,null,null,null,null,null,null,null,null,null,null,83,"CE"]
["",null,{"$f":"SUMIFS(Sheet1!S71_PPPYearAmount,Sheet1!S71_SubMunicipalVoteNo,$AC:$AC,Sheet1!S71_A5CapexCode,$AD:$AD)","v":0},{"$f":"SUMIFS(Sheet1!S71_PPYearAmount,Sheet1!S71_SubMunicipalVoteNo,$AC:$AC,Sheet1!S71_A5CapexCode,$AD:$AD)","v":0},{"$f":"SUMIFS(Sheet1!S71_PYearAmount,Sheet1!S71_SubMunicipalVoteNo,$AC:$AC,Sheet1!S71_A5CapexCode,$AD:$AD)","v":0},{"$f":"SUMIFS(Sheet1!S71_OriginalBudAmnt,Sheet1!S71_SubMunicipalVoteNo,$AC:$AC,Sheet1!S71_A5CapexCode,$AD:$AD)","v":0},{"$f":"SUMIFS(Sheet1!S71_AdjustmentBudAmnt,Sheet1!S71_SubMunicipalVoteNo,$AC:$AC,Sheet1!S71_A5CapexCode,$AD:$AD)","v":0},{"$f":"SUMIFS(Sheet1!S71_AdjustmentBudAmnt,Sheet1!S71_SubMunicipalVoteNo,$AC:$AC,Sheet1!S71_A5CapexCode,$AD:$AD)","v":0},{"$f":"SUMIFS(Sheet1!CD:CD,Sheet1!S71_SubMunicipalVoteNo,$AC:$AC,Sheet1!S71_A5CapexCode,$AD:$AD)","v":0},{"$f":"SUMIFS(Sheet1!S71_ASBudgetAmount,Sheet1!S71_SubMunicipalVoteNo,$AC:$AC,Sheet1!S71_A5CapexCode,$AD:$AD)","v":0},{"$f":"SUMIFS(Sheet1!S71_OY1BudgetAmount,Sheet1!S71_SubMunicipalVoteNo,$AC:$AC,Sheet1!S71_A5CapexCode,$AD:$AD)","v":0},{"$f":"SUMIFS(Sheet1!S71_OY2BudgetAmount,Sheet1!S71_SubMunicipalVoteNo,$AC:$AC,Sheet1!S71_A5CapexCode,$AD:$AD)","v":0},null,null,null,null,null,null,null,null,null,null,null,null,null,null,null,null,84,"CE"]
["",null,{"$f":"SUMIFS(Sheet1!S71_PPPYearAmount,Sheet1!S71_SubMunicipalVoteNo,$AC:$AC,Sheet1!S71_A5CapexCode,$AD:$AD)","v":0},{"$f":"SUMIFS(Sheet1!S71_PPYearAmount,Sheet1!S71_SubMunicipalVoteNo,$AC:$AC,Sheet1!S71_A5CapexCode,$AD:$AD)","v":0},{"$f":"SUMIFS(Sheet1!S71_PYearAmount,Sheet1!S71_SubMunicipalVoteNo,$AC:$AC,Sheet1!S71_A5CapexCode,$AD:$AD)","v":0},{"$f":"SUMIFS(Sheet1!S71_OriginalBudAmnt,Sheet1!S71_SubMunicipalVoteNo,$AC:$AC,Sheet1!S71_A5CapexCode,$AD:$AD)","v":0},{"$f":"SUMIFS(Sheet1!S71_AdjustmentBudAmnt,Sheet1!S71_SubMunicipalVoteNo,$AC:$AC,Sheet1!S71_A5CapexCode,$AD:$AD)","v":0},{"$f":"SUMIFS(Sheet1!S71_AdjustmentBudAmnt,Sheet1!S71_SubMunicipalVoteNo,$AC:$AC,Sheet1!S71_A5CapexCode,$AD:$AD)","v":0},{"$f":"SUMIFS(Sheet1!CD:CD,Sheet1!S71_SubMunicipalVoteNo,$AC:$AC,Sheet1!S71_A5CapexCode,$AD:$AD)","v":0},{"$f":"SUMIFS(Sheet1!S71_ASBudgetAmount,Sheet1!S71_SubMunicipalVoteNo,$AC:$AC,Sheet1!S71_A5CapexCode,$AD:$AD)","v":0},{"$f":"SUMIFS(Sheet1!S71_OY1BudgetAmount,Sheet1!S71_SubMunicipalVoteNo,$AC:$AC,Sheet1!S71_A5CapexCode,$AD:$AD)","v":0},{"$f":"SUMIFS(Sheet1!S71_OY2BudgetAmount,Sheet1!S71_SubMunicipalVoteNo,$AC:$AC,Sheet1!S71_A5CapexCode,$AD:$AD)","v":0},null,null,null,null,null,null,null,null,null,null,null,null,null,null,null,null,85,"CE"]
["",null,{"$f":"SUMIFS(Sheet1!S71_PPPYearAmount,Sheet1!S71_SubMunicipalVoteNo,$AC:$AC,Sheet1!S71_A5CapexCode,$AD:$AD)","v":0},{"$f":"SUMIFS(Sheet1!S71_PPYearAmount,Sheet1!S71_SubMunicipalVoteNo,$AC:$AC,Sheet1!S71_A5CapexCode,$AD:$AD)","v":0},{"$f":"SUMIFS(Sheet1!S71_PYearAmount,Sheet1!S71_SubMunicipalVoteNo,$AC:$AC,Sheet1!S71_A5CapexCode,$AD:$AD)","v":0},{"$f":"SUMIFS(Sheet1!S71_OriginalBudAmnt,Sheet1!S71_SubMunicipalVoteNo,$AC:$AC,Sheet1!S71_A5CapexCode,$AD:$AD)","v":0},{"$f":"SUMIFS(Sheet1!S71_AdjustmentBudAmnt,Sheet1!S71_SubMunicipalVoteNo,$AC:$AC,Sheet1!S71_A5CapexCode,$AD:$AD)","v":0},{"$f":"SUMIFS(Sheet1!S71_AdjustmentBudAmnt,Sheet1!S71_SubMunicipalVoteNo,$AC:$AC,Sheet1!S71_A5CapexCode,$AD:$AD)","v":0},{"$f":"SUMIFS(Sheet1!CD:CD,Sheet1!S71_SubMunicipalVoteNo,$AC:$AC,Sheet1!S71_A5CapexCode,$AD:$AD)","v":0},{"$f":"SUMIFS(Sheet1!S71_ASBudgetAmount,Sheet1!S71_SubMunicipalVoteNo,$AC:$AC,Sheet1!S71_A5CapexCode,$AD:$AD)","v":0},{"$f":"SUMIFS(Sheet1!S71_OY1BudgetAmount,Sheet1!S71_SubMunicipalVoteNo,$AC:$AC,Sheet1!S71_A5CapexCode,$AD:$AD)","v":0},{"$f":"SUMIFS(Sheet1!S71_OY2BudgetAmount,Sheet1!S71_SubMunicipalVoteNo,$AC:$AC,Sheet1!S71_A5CapexCode,$AD:$AD)","v":0},null,null,null,null,null,null,null,null,null,null,null,null,null,null,null,null,86,"CE"]
["",null,{"$f":"SUMIFS(Sheet1!S71_PPPYearAmount,Sheet1!S71_SubMunicipalVoteNo,$AC:$AC,Sheet1!S71_A5CapexCode,$AD:$AD)","v":0},{"$f":"SUMIFS(Sheet1!S71_PPYearAmount,Sheet1!S71_SubMunicipalVoteNo,$AC:$AC,Sheet1!S71_A5CapexCode,$AD:$AD)","v":0},{"$f":"SUMIFS(Sheet1!S71_PYearAmount,Sheet1!S71_SubMunicipalVoteNo,$AC:$AC,Sheet1!S71_A5CapexCode,$AD:$AD)","v":0},{"$f":"SUMIFS(Sheet1!S71_OriginalBudAmnt,Sheet1!S71_SubMunicipalVoteNo,$AC:$AC,Sheet1!S71_A5CapexCode,$AD:$AD)","v":0},{"$f":"SUMIFS(Sheet1!S71_AdjustmentBudAmnt,Sheet1!S71_SubMunicipalVoteNo,$AC:$AC,Sheet1!S71_A5CapexCode,$AD:$AD)","v":0},{"$f":"SUMIFS(Sheet1!S71_AdjustmentBudAmnt,Sheet1!S71_SubMunicipalVoteNo,$AC:$AC,Sheet1!S71_A5CapexCode,$AD:$AD)","v":0},{"$f":"SUMIFS(Sheet1!CD:CD,Sheet1!S71_SubMunicipalVoteNo,$AC:$AC,Sheet1!S71_A5CapexCode,$AD:$AD)","v":0},{"$f":"SUMIFS(Sheet1!S71_ASBudgetAmount,Sheet1!S71_SubMunicipalVoteNo,$AC:$AC,Sheet1!S71_A5CapexCode,$AD:$AD)","v":0},{"$f":"SUMIFS(Sheet1!S71_OY1BudgetAmount,Sheet1!S71_SubMunicipalVoteNo,$AC:$AC,Sheet1!S71_A5CapexCode,$AD:$AD)","v":0},{"$f":"SUMIFS(Sheet1!S71_OY2BudgetAmount,Sheet1!S71_SubMunicipalVoteNo,$AC:$AC,Sheet1!S71_A5CapexCode,$AD:$AD)","v":0},null,null,null,null,null,null,null,null,null,null,null,null,null,null,null,null,87,"CE"]
["",null,{"$f":"SUMIFS(Sheet1!S71_PPPYearAmount,Sheet1!S71_SubMunicipalVoteNo,$AC:$AC,Sheet1!S71_A5CapexCode,$AD:$AD)","v":0},{"$f":"SUMIFS(Sheet1!S71_PPYearAmount,Sheet1!S71_SubMunicipalVoteNo,$AC:$AC,Sheet1!S71_A5CapexCode,$AD:$AD)","v":0},{"$f":"SUMIFS(Sheet1!S71_PYearAmount,Sheet1!S71_SubMunicipalVoteNo,$AC:$AC,Sheet1!S71_A5CapexCode,$AD:$AD)","v":0},{"$f":"SUMIFS(Sheet1!S71_OriginalBudAmnt,Sheet1!S71_SubMunicipalVoteNo,$AC:$AC,Sheet1!S71_A5CapexCode,$AD:$AD)","v":0},{"$f":"SUMIFS(Sheet1!S71_AdjustmentBudAmnt,Sheet1!S71_SubMunicipalVoteNo,$AC:$AC,Sheet1!S71_A5CapexCode,$AD:$AD)","v":0},{"$f":"SUMIFS(Sheet1!S71_AdjustmentBudAmnt,Sheet1!S71_SubMunicipalVoteNo,$AC:$AC,Sheet1!S71_A5CapexCode,$AD:$AD)","v":0},{"$f":"SUMIFS(Sheet1!CD:CD,Sheet1!S71_SubMunicipalVoteNo,$AC:$AC,Sheet1!S71_A5CapexCode,$AD:$AD)","v":0},{"$f":"SUMIFS(Sheet1!S71_ASBudgetAmount,Sheet1!S71_SubMunicipalVoteNo,$AC:$AC,Sheet1!S71_A5CapexCode,$AD:$AD)","v":0},{"$f":"SUMIFS(Sheet1!S71_OY1BudgetAmount,Sheet1!S71_SubMunicipalVoteNo,$AC:$AC,Sheet1!S71_A5CapexCode,$AD:$AD)","v":0},{"$f":"SUMIFS(Sheet1!S71_OY2BudgetAmount,Sheet1!S71_SubMunicipalVoteNo,$AC:$AC,Sheet1!S71_A5CapexCode,$AD:$AD)","v":0},null,null,null,null,null,null,null,null,null,null,null,null,null,null,null,null,88,"CE"]
["",null,{"$f":"SUMIFS(Sheet1!S71_PPPYearAmount,Sheet1!S71_SubMunicipalVoteNo,$AC:$AC,Sheet1!S71_A5CapexCode,$AD:$AD)","v":0},{"$f":"SUMIFS(Sheet1!S71_PPYearAmount,Sheet1!S71_SubMunicipalVoteNo,$AC:$AC,Sheet1!S71_A5CapexCode,$AD:$AD)","v":0},{"$f":"SUMIFS(Sheet1!S71_PYearAmount,Sheet1!S71_SubMunicipalVoteNo,$AC:$AC,Sheet1!S71_A5CapexCode,$AD:$AD)","v":0},{"$f":"SUMIFS(Sheet1!S71_OriginalBudAmnt,Sheet1!S71_SubMunicipalVoteNo,$AC:$AC,Sheet1!S71_A5CapexCode,$AD:$AD)","v":0},{"$f":"SUMIFS(Sheet1!S71_AdjustmentBudAmnt,Sheet1!S71_SubMunicipalVoteNo,$AC:$AC,Sheet1!S71_A5CapexCode,$AD:$AD)","v":0},{"$f":"SUMIFS(Sheet1!S71_AdjustmentBudAmnt,Sheet1!S71_SubMunicipalVoteNo,$AC:$AC,Sheet1!S71_A5CapexCode,$AD:$AD)","v":0},{"$f":"SUMIFS(Sheet1!CD:CD,Sheet1!S71_SubMunicipalVoteNo,$AC:$AC,Sheet1!S71_A5CapexCode,$AD:$AD)","v":0},{"$f":"SUMIFS(Sheet1!S71_ASBudgetAmount,Sheet1!S71_SubMunicipalVoteNo,$AC:$AC,Sheet1!S71_A5CapexCode,$AD:$AD)","v":0},{"$f":"SUMIFS(Sheet1!S71_OY1BudgetAmount,Sheet1!S71_SubMunicipalVoteNo,$AC:$AC,Sheet1!S71_A5CapexCode,$AD:$AD)","v":0},{"$f":"SUMIFS(Sheet1!S71_OY2BudgetAmount,Sheet1!S71_SubMunicipalVoteNo,$AC:$AC,Sheet1!S71_A5CapexCode,$AD:$AD)","v":0},null,null,null,null,null,null,null,null,null,null,null,null,null,null,null,null,89,"CE"]
["",null,{"$f":"SUMIFS(Sheet1!S71_PPPYearAmount,Sheet1!S71_SubMunicipalVoteNo,$AC:$AC,Sheet1!S71_A5CapexCode,$AD:$AD)","v":0},{"$f":"SUMIFS(Sheet1!S71_PPYearAmount,Sheet1!S71_SubMunicipalVoteNo,$AC:$AC,Sheet1!S71_A5CapexCode,$AD:$AD)","v":0},{"$f":"SUMIFS(Sheet1!S71_PYearAmount,Sheet1!S71_SubMunicipalVoteNo,$AC:$AC,Sheet1!S71_A5CapexCode,$AD:$AD)","v":0},{"$f":"SUMIFS(Sheet1!S71_OriginalBudAmnt,Sheet1!S71_SubMunicipalVoteNo,$AC:$AC,Sheet1!S71_A5CapexCode,$AD:$AD)","v":0},{"$f":"SUMIFS(Sheet1!S71_AdjustmentBudAmnt,Sheet1!S71_SubMunicipalVoteNo,$AC:$AC,Sheet1!S71_A5CapexCode,$AD:$AD)","v":0},{"$f":"SUMIFS(Sheet1!S71_AdjustmentBudAmnt,Sheet1!S71_SubMunicipalVoteNo,$AC:$AC,Sheet1!S71_A5CapexCode,$AD:$AD)","v":0},{"$f":"SUMIFS(Sheet1!CD:CD,Sheet1!S71_SubMunicipalVoteNo,$AC:$AC,Sheet1!S71_A5CapexCode,$AD:$AD)","v":0},{"$f":"SUMIFS(Sheet1!S71_ASBudgetAmount,Sheet1!S71_SubMunicipalVoteNo,$AC:$AC,Sheet1!S71_A5CapexCode,$AD:$AD)","v":0},{"$f":"SUMIFS(Sheet1!S71_OY1BudgetAmount,Sheet1!S71_SubMunicipalVoteNo,$AC:$AC,Sheet1!S71_A5CapexCode,$AD:$AD)","v":0},{"$f":"SUMIFS(Sheet1!S71_OY2BudgetAmount,Sheet1!S71_SubMunicipalVoteNo,$AC:$AC,Sheet1!S71_A5CapexCode,$AD:$AD)","v":0},null,null,null,null,null,null,null,null,null,null,null,null,null,null,null,null,810,"CE"]
["Vote 9 - [NAME OF VOTE 9]",null,{"$f":"SUM(C264:C273)","v":0},0,0,0,0,0,0,0,0,0]
["",null,{"$f":"SUMIFS(Sheet1!S71_PPPYearAmount,Sheet1!S71_SubMunicipalVoteNo,$AC:$AC,Sheet1!S71_A5CapexCode,$AD:$AD)","v":0},{"$f":"SUMIFS(Sheet1!S71_PPYearAmount,Sheet1!S71_SubMunicipalVoteNo,$AC:$AC,Sheet1!S71_A5CapexCode,$AD:$AD)","v":0},{"$f":"SUMIFS(Sheet1!S71_PYearAmount,Sheet1!S71_SubMunicipalVoteNo,$AC:$AC,Sheet1!S71_A5CapexCode,$AD:$AD)","v":0},{"$f":"SUMIFS(Sheet1!S71_OriginalBudAmnt,Sheet1!S71_SubMunicipalVoteNo,$AC:$AC,Sheet1!S71_A5CapexCode,$AD:$AD)","v":0},{"$f":"SUMIFS(Sheet1!S71_AdjustmentBudAmnt,Sheet1!S71_SubMunicipalVoteNo,$AC:$AC,Sheet1!S71_A5CapexCode,$AD:$AD)","v":0},{"$f":"SUMIFS(Sheet1!S71_AdjustmentBudAmnt,Sheet1!S71_SubMunicipalVoteNo,$AC:$AC,Sheet1!S71_A5CapexCode,$AD:$AD)","v":0},{"$f":"SUMIFS(Sheet1!CD:CD,Sheet1!S71_SubMunicipalVoteNo,$AC:$AC,Sheet1!S71_A5CapexCode,$AD:$AD)","v":0},{"$f":"SUMIFS(Sheet1!S71_ASBudgetAmount,Sheet1!S71_SubMunicipalVoteNo,$AC:$AC,Sheet1!S71_A5CapexCode,$AD:$AD)","v":0},{"$f":"SUMIFS(Sheet1!S71_OY1BudgetAmount,Sheet1!S71_SubMunicipalVoteNo,$AC:$AC,Sheet1!S71_A5CapexCode,$AD:$AD)","v":0},{"$f":"SUMIFS(Sheet1!S71_OY2BudgetAmount,Sheet1!S71_SubMunicipalVoteNo,$AC:$AC,Sheet1!S71_A5CapexCode,$AD:$AD)","v":0},null,null,null,null,null,null,null,null,null,null,null,null,null,null,null,null,91,"CE"]
["",null,{"$f":"SUMIFS(Sheet1!S71_PPPYearAmount,Sheet1!S71_SubMunicipalVoteNo,$AC:$AC,Sheet1!S71_A5CapexCode,$AD:$AD)","v":0},{"$f":"SUMIFS(Sheet1!S71_PPYearAmount,Sheet1!S71_SubMunicipalVoteNo,$AC:$AC,Sheet1!S71_A5CapexCode,$AD:$AD)","v":0},{"$f":"SUMIFS(Sheet1!S71_PYearAmount,Sheet1!S71_SubMunicipalVoteNo,$AC:$AC,Sheet1!S71_A5CapexCode,$AD:$AD)","v":0},{"$f":"SUMIFS(Sheet1!S71_OriginalBudAmnt,Sheet1!S71_SubMunicipalVoteNo,$AC:$AC,Sheet1!S71_A5CapexCode,$AD:$AD)","v":0},{"$f":"SUMIFS(Sheet1!S71_AdjustmentBudAmnt,Sheet1!S71_SubMunicipalVoteNo,$AC:$AC,Sheet1!S71_A5CapexCode,$AD:$AD)","v":0},{"$f":"SUMIFS(Sheet1!S71_AdjustmentBudAmnt,Sheet1!S71_SubMunicipalVoteNo,$AC:$AC,Sheet1!S71_A5CapexCode,$AD:$AD)","v":0},{"$f":"SUMIFS(Sheet1!CD:CD,Sheet1!S71_SubMunicipalVoteNo,$AC:$AC,Sheet1!S71_A5CapexCode,$AD:$AD)","v":0},{"$f":"SUMIFS(Sheet1!S71_ASBudgetAmount,Sheet1!S71_SubMunicipalVoteNo,$AC:$AC,Sheet1!S71_A5CapexCode,$AD:$AD)","v":0},{"$f":"SUMIFS(Sheet1!S71_OY1BudgetAmount,Sheet1!S71_SubMunicipalVoteNo,$AC:$AC,Sheet1!S71_A5CapexCode,$AD:$AD)","v":0},{"$f":"SUMIFS(Sheet1!S71_OY2BudgetAmount,Sheet1!S71_SubMunicipalVoteNo,$AC:$AC,Sheet1!S71_A5CapexCode,$AD:$AD)","v":0},null,null,null,null,null,null,null,null,null,null,null,null,null,null,null,null,92,"CE"]
["",null,{"$f":"SUMIFS(Sheet1!S71_PPPYearAmount,Sheet1!S71_SubMunicipalVoteNo,$AC:$AC,Sheet1!S71_A5CapexCode,$AD:$AD)","v":0},{"$f":"SUMIFS(Sheet1!S71_PPYearAmount,Sheet1!S71_SubMunicipalVoteNo,$AC:$AC,Sheet1!S71_A5CapexCode,$AD:$AD)","v":0},{"$f":"SUMIFS(Sheet1!S71_PYearAmount,Sheet1!S71_SubMunicipalVoteNo,$AC:$AC,Sheet1!S71_A5CapexCode,$AD:$AD)","v":0},{"$f":"SUMIFS(Sheet1!S71_OriginalBudAmnt,Sheet1!S71_SubMunicipalVoteNo,$AC:$AC,Sheet1!S71_A5CapexCode,$AD:$AD)","v":0},{"$f":"SUMIFS(Sheet1!S71_AdjustmentBudAmnt,Sheet1!S71_SubMunicipalVoteNo,$AC:$AC,Sheet1!S71_A5CapexCode,$AD:$AD)","v":0},{"$f":"SUMIFS(Sheet1!S71_AdjustmentBudAmnt,Sheet1!S71_SubMunicipalVoteNo,$AC:$AC,Sheet1!S71_A5CapexCode,$AD:$AD)","v":0},{"$f":"SUMIFS(Sheet1!CD:CD,Sheet1!S71_SubMunicipalVoteNo,$AC:$AC,Sheet1!S71_A5CapexCode,$AD:$AD)","v":0},{"$f":"SUMIFS(Sheet1!S71_ASBudgetAmount,Sheet1!S71_SubMunicipalVoteNo,$AC:$AC,Sheet1!S71_A5CapexCode,$AD:$AD)","v":0},{"$f":"SUMIFS(Sheet1!S71_OY1BudgetAmount,Sheet1!S71_SubMunicipalVoteNo,$AC:$AC,Sheet1!S71_A5CapexCode,$AD:$AD)","v":0},{"$f":"SUMIFS(Sheet1!S71_OY2BudgetAmount,Sheet1!S71_SubMunicipalVoteNo,$AC:$AC,Sheet1!S71_A5CapexCode,$AD:$AD)","v":0},null,null,null,null,null,null,null,null,null,null,null,null,null,null,null,null,93,"CE"]
["",null,{"$f":"SUMIFS(Sheet1!S71_PPPYearAmount,Sheet1!S71_SubMunicipalVoteNo,$AC:$AC,Sheet1!S71_A5CapexCode,$AD:$AD)","v":0},{"$f":"SUMIFS(Sheet1!S71_PPYearAmount,Sheet1!S71_SubMunicipalVoteNo,$AC:$AC,Sheet1!S71_A5CapexCode,$AD:$AD)","v":0},{"$f":"SUMIFS(Sheet1!S71_PYearAmount,Sheet1!S71_SubMunicipalVoteNo,$AC:$AC,Sheet1!S71_A5CapexCode,$AD:$AD)","v":0},{"$f":"SUMIFS(Sheet1!S71_OriginalBudAmnt,Sheet1!S71_SubMunicipalVoteNo,$AC:$AC,Sheet1!S71_A5CapexCode,$AD:$AD)","v":0},{"$f":"SUMIFS(Sheet1!S71_AdjustmentBudAmnt,Sheet1!S71_SubMunicipalVoteNo,$AC:$AC,Sheet1!S71_A5CapexCode,$AD:$AD)","v":0},{"$f":"SUMIFS(Sheet1!S71_AdjustmentBudAmnt,Sheet1!S71_SubMunicipalVoteNo,$AC:$AC,Sheet1!S71_A5CapexCode,$AD:$AD)","v":0},{"$f":"SUMIFS(Sheet1!CD:CD,Sheet1!S71_SubMunicipalVoteNo,$AC:$AC,Sheet1!S71_A5CapexCode,$AD:$AD)","v":0},{"$f":"SUMIFS(Sheet1!S71_ASBudgetAmount,Sheet1!S71_SubMunicipalVoteNo,$AC:$AC,Sheet1!S71_A5CapexCode,$AD:$AD)","v":0},{"$f":"SUMIFS(Sheet1!S71_OY1BudgetAmount,Sheet1!S71_SubMunicipalVoteNo,$AC:$AC,Sheet1!S71_A5CapexCode,$AD:$AD)","v":0},{"$f":"SUMIFS(Sheet1!S71_OY2BudgetAmount,Sheet1!S71_SubMunicipalVoteNo,$AC:$AC,Sheet1!S71_A5CapexCode,$AD:$AD)","v":0},null,null,null,null,null,null,null,null,null,null,null,null,null,null,null,null,94,"CE"]
["",null,{"$f":"SUMIFS(Sheet1!S71_PPPYearAmount,Sheet1!S71_SubMunicipalVoteNo,$AC:$AC,Sheet1!S71_A5CapexCode,$AD:$AD)","v":0},{"$f":"SUMIFS(Sheet1!S71_PPYearAmount,Sheet1!S71_SubMunicipalVoteNo,$AC:$AC,Sheet1!S71_A5CapexCode,$AD:$AD)","v":0},{"$f":"SUMIFS(Sheet1!S71_PYearAmount,Sheet1!S71_SubMunicipalVoteNo,$AC:$AC,Sheet1!S71_A5CapexCode,$AD:$AD)","v":0},{"$f":"SUMIFS(Sheet1!S71_OriginalBudAmnt,Sheet1!S71_SubMunicipalVoteNo,$AC:$AC,Sheet1!S71_A5CapexCode,$AD:$AD)","v":0},{"$f":"SUMIFS(Sheet1!S71_AdjustmentBudAmnt,Sheet1!S71_SubMunicipalVoteNo,$AC:$AC,Sheet1!S71_A5CapexCode,$AD:$AD)","v":0},{"$f":"SUMIFS(Sheet1!S71_AdjustmentBudAmnt,Sheet1!S71_SubMunicipalVoteNo,$AC:$AC,Sheet1!S71_A5CapexCode,$AD:$AD)","v":0},{"$f":"SUMIFS(Sheet1!CD:CD,Sheet1!S71_SubMunicipalVoteNo,$AC:$AC,Sheet1!S71_A5CapexCode,$AD:$AD)","v":0},{"$f":"SUMIFS(Sheet1!S71_ASBudgetAmount,Sheet1!S71_SubMunicipalVoteNo,$AC:$AC,Sheet1!S71_A5CapexCode,$AD:$AD)","v":0},{"$f":"SUMIFS(Sheet1!S71_OY1BudgetAmount,Sheet1!S71_SubMunicipalVoteNo,$AC:$AC,Sheet1!S71_A5CapexCode,$AD:$AD)","v":0},{"$f":"SUMIFS(Sheet1!S71_OY2BudgetAmount,Sheet1!S71_SubMunicipalVoteNo,$AC:$AC,Sheet1!S71_A5CapexCode,$AD:$AD)","v":0},null,null,null,null,null,null,null,null,null,null,null,null,null,null,null,null,95,"CE"]
["",null,{"$f":"SUMIFS(Sheet1!S71_PPPYearAmount,Sheet1!S71_SubMunicipalVoteNo,$AC:$AC,Sheet1!S71_A5CapexCode,$AD:$AD)","v":0},{"$f":"SUMIFS(Sheet1!S71_PPYearAmount,Sheet1!S71_SubMunicipalVoteNo,$AC:$AC,Sheet1!S71_A5CapexCode,$AD:$AD)","v":0},{"$f":"SUMIFS(Sheet1!S71_PYearAmount,Sheet1!S71_SubMunicipalVoteNo,$AC:$AC,Sheet1!S71_A5CapexCode,$AD:$AD)","v":0},{"$f":"SUMIFS(Sheet1!S71_OriginalBudAmnt,Sheet1!S71_SubMunicipalVoteNo,$AC:$AC,Sheet1!S71_A5CapexCode,$AD:$AD)","v":0},{"$f":"SUMIFS(Sheet1!S71_AdjustmentBudAmnt,Sheet1!S71_SubMunicipalVoteNo,$AC:$AC,Sheet1!S71_A5CapexCode,$AD:$AD)","v":0},{"$f":"SUMIFS(Sheet1!S71_AdjustmentBudAmnt,Sheet1!S71_SubMunicipalVoteNo,$AC:$AC,Sheet1!S71_A5CapexCode,$AD:$AD)","v":0},{"$f":"SUMIFS(Sheet1!CD:CD,Sheet1!S71_SubMunicipalVoteNo,$AC:$AC,Sheet1!S71_A5CapexCode,$AD:$AD)","v":0},{"$f":"SUMIFS(Sheet1!S71_ASBudgetAmount,Sheet1!S71_SubMunicipalVoteNo,$AC:$AC,Sheet1!S71_A5CapexCode,$AD:$AD)","v":0},{"$f":"SUMIFS(Sheet1!S71_OY1BudgetAmount,Sheet1!S71_SubMunicipalVoteNo,$AC:$AC,Sheet1!S71_A5CapexCode,$AD:$AD)","v":0},{"$f":"SUMIFS(Sheet1!S71_OY2BudgetAmount,Sheet1!S71_SubMunicipalVoteNo,$AC:$AC,Sheet1!S71_A5CapexCode,$AD:$AD)","v":0},null,null,null,null,null,null,null,null,null,null,null,null,null,null,null,null,96,"CE"]
["",null,{"$f":"SUMIFS(Sheet1!S71_PPPYearAmount,Sheet1!S71_SubMunicipalVoteNo,$AC:$AC,Sheet1!S71_A5CapexCode,$AD:$AD)","v":0},{"$f":"SUMIFS(Sheet1!S71_PPYearAmount,Sheet1!S71_SubMunicipalVoteNo,$AC:$AC,Sheet1!S71_A5CapexCode,$AD:$AD)","v":0},{"$f":"SUMIFS(Sheet1!S71_PYearAmount,Sheet1!S71_SubMunicipalVoteNo,$AC:$AC,Sheet1!S71_A5CapexCode,$AD:$AD)","v":0},{"$f":"SUMIFS(Sheet1!S71_OriginalBudAmnt,Sheet1!S71_SubMunicipalVoteNo,$AC:$AC,Sheet1!S71_A5CapexCode,$AD:$AD)","v":0},{"$f":"SUMIFS(Sheet1!S71_AdjustmentBudAmnt,Sheet1!S71_SubMunicipalVoteNo,$AC:$AC,Sheet1!S71_A5CapexCode,$AD:$AD)","v":0},{"$f":"SUMIFS(Sheet1!S71_AdjustmentBudAmnt,Sheet1!S71_SubMunicipalVoteNo,$AC:$AC,Sheet1!S71_A5CapexCode,$AD:$AD)","v":0},{"$f":"SUMIFS(Sheet1!CD:CD,Sheet1!S71_SubMunicipalVoteNo,$AC:$AC,Sheet1!S71_A5CapexCode,$AD:$AD)","v":0},{"$f":"SUMIFS(Sheet1!S71_ASBudgetAmount,Sheet1!S71_SubMunicipalVoteNo,$AC:$AC,Sheet1!S71_A5CapexCode,$AD:$AD)","v":0},{"$f":"SUMIFS(Sheet1!S71_OY1BudgetAmount,Sheet1!S71_SubMunicipalVoteNo,$AC:$AC,Sheet1!S71_A5CapexCode,$AD:$AD)","v":0},{"$f":"SUMIFS(Sheet1!S71_OY2BudgetAmount,Sheet1!S71_SubMunicipalVoteNo,$AC:$AC,Sheet1!S71_A5CapexCode,$AD:$AD)","v":0},null,null,null,null,null,null,null,null,null,null,null,null,null,null,null,null,97,"CE"]
["",null,{"$f":"SUMIFS(Sheet1!S71_PPPYearAmount,Sheet1!S71_SubMunicipalVoteNo,$AC:$AC,Sheet1!S71_A5CapexCode,$AD:$AD)","v":0},{"$f":"SUMIFS(Sheet1!S71_PPYearAmount,Sheet1!S71_SubMunicipalVoteNo,$AC:$AC,Sheet1!S71_A5CapexCode,$AD:$AD)","v":0},{"$f":"SUMIFS(Sheet1!S71_PYearAmount,Sheet1!S71_SubMunicipalVoteNo,$AC:$AC,Sheet1!S71_A5CapexCode,$AD:$AD)","v":0},{"$f":"SUMIFS(Sheet1!S71_OriginalBudAmnt,Sheet1!S71_SubMunicipalVoteNo,$AC:$AC,Sheet1!S71_A5CapexCode,$AD:$AD)","v":0},{"$f":"SUMIFS(Sheet1!S71_AdjustmentBudAmnt,Sheet1!S71_SubMunicipalVoteNo,$AC:$AC,Sheet1!S71_A5CapexCode,$AD:$AD)","v":0},{"$f":"SUMIFS(Sheet1!S71_AdjustmentBudAmnt,Sheet1!S71_SubMunicipalVoteNo,$AC:$AC,Sheet1!S71_A5CapexCode,$AD:$AD)","v":0},{"$f":"SUMIFS(Sheet1!CD:CD,Sheet1!S71_SubMunicipalVoteNo,$AC:$AC,Sheet1!S71_A5CapexCode,$AD:$AD)","v":0},{"$f":"SUMIFS(Sheet1!S71_ASBudgetAmount,Sheet1!S71_SubMunicipalVoteNo,$AC:$AC,Sheet1!S71_A5CapexCode,$AD:$AD)","v":0},{"$f":"SUMIFS(Sheet1!S71_OY1BudgetAmount,Sheet1!S71_SubMunicipalVoteNo,$AC:$AC,Sheet1!S71_A5CapexCode,$AD:$AD)","v":0},{"$f":"SUMIFS(Sheet1!S71_OY2BudgetAmount,Sheet1!S71_SubMunicipalVoteNo,$AC:$AC,Sheet1!S71_A5CapexCode,$AD:$AD)","v":0},null,null,null,null,null,null,null,null,null,null,null,null,null,null,null,null,98,"CE"]
["",null,{"$f":"SUMIFS(Sheet1!S71_PPPYearAmount,Sheet1!S71_SubMunicipalVoteNo,$AC:$AC,Sheet1!S71_A5CapexCode,$AD:$AD)","v":0},{"$f":"SUMIFS(Sheet1!S71_PPYearAmount,Sheet1!S71_SubMunicipalVoteNo,$AC:$AC,Sheet1!S71_A5CapexCode,$AD:$AD)","v":0},{"$f":"SUMIFS(Sheet1!S71_PYearAmount,Sheet1!S71_SubMunicipalVoteNo,$AC:$AC,Sheet1!S71_A5CapexCode,$AD:$AD)","v":0},{"$f":"SUMIFS(Sheet1!S71_OriginalBudAmnt,Sheet1!S71_SubMunicipalVoteNo,$AC:$AC,Sheet1!S71_A5CapexCode,$AD:$AD)","v":0},{"$f":"SUMIFS(Sheet1!S71_AdjustmentBudAmnt,Sheet1!S71_SubMunicipalVoteNo,$AC:$AC,Sheet1!S71_A5CapexCode,$AD:$AD)","v":0},{"$f":"SUMIFS(Sheet1!S71_AdjustmentBudAmnt,Sheet1!S71_SubMunicipalVoteNo,$AC:$AC,Sheet1!S71_A5CapexCode,$AD:$AD)","v":0},{"$f":"SUMIFS(Sheet1!CD:CD,Sheet1!S71_SubMunicipalVoteNo,$AC:$AC,Sheet1!S71_A5CapexCode,$AD:$AD)","v":0},{"$f":"SUMIFS(Sheet1!S71_ASBudgetAmount,Sheet1!S71_SubMunicipalVoteNo,$AC:$AC,Sheet1!S71_A5CapexCode,$AD:$AD)","v":0},{"$f":"SUMIFS(Sheet1!S71_OY1BudgetAmount,Sheet1!S71_SubMunicipalVoteNo,$AC:$AC,Sheet1!S71_A5CapexCode,$AD:$AD)","v":0},{"$f":"SUMIFS(Sheet1!S71_OY2BudgetAmount,Sheet1!S71_SubMunicipalVoteNo,$AC:$AC,Sheet1!S71_A5CapexCode,$AD:$AD)","v":0},null,null,null,null,null,null,null,null,null,null,null,null,null,null,null,null,99,"CE"]
["",null,{"$f":"SUMIFS(Sheet1!S71_PPPYearAmount,Sheet1!S71_SubMunicipalVoteNo,$AC:$AC,Sheet1!S71_A5CapexCode,$AD:$AD)","v":0},{"$f":"SUMIFS(Sheet1!S71_PPYearAmount,Sheet1!S71_SubMunicipalVoteNo,$AC:$AC,Sheet1!S71_A5CapexCode,$AD:$AD)","v":0},{"$f":"SUMIFS(Sheet1!S71_PYearAmount,Sheet1!S71_SubMunicipalVoteNo,$AC:$AC,Sheet1!S71_A5CapexCode,$AD:$AD)","v":0},{"$f":"SUMIFS(Sheet1!S71_OriginalBudAmnt,Sheet1!S71_SubMunicipalVoteNo,$AC:$AC,Sheet1!S71_A5CapexCode,$AD:$AD)","v":0},{"$f":"SUMIFS(Sheet1!S71_AdjustmentBudAmnt,Sheet1!S71_SubMunicipalVoteNo,$AC:$AC,Sheet1!S71_A5CapexCode,$AD:$AD)","v":0},{"$f":"SUMIFS(Sheet1!S71_AdjustmentBudAmnt,Sheet1!S71_SubMunicipalVoteNo,$AC:$AC,Sheet1!S71_A5CapexCode,$AD:$AD)","v":0},{"$f":"SUMIFS(Sheet1!CD:CD,Sheet1!S71_SubMunicipalVoteNo,$AC:$AC,Sheet1!S71_A5CapexCode,$AD:$AD)","v":0},{"$f":"SUMIFS(Sheet1!S71_ASBudgetAmount,Sheet1!S71_SubMunicipalVoteNo,$AC:$AC,Sheet1!S71_A5CapexCode,$AD:$AD)","v":0},{"$f":"SUMIFS(Sheet1!S71_OY1BudgetAmount,Sheet1!S71_SubMunicipalVoteNo,$AC:$AC,Sheet1!S71_A5CapexCode,$AD:$AD)","v":0},{"$f":"SUMIFS(Sheet1!S71_OY2BudgetAmount,Sheet1!S71_SubMunicipalVoteNo,$AC:$AC,Sheet1!S71_A5CapexCode,$AD:$AD)","v":0},null,null,null,null,null,null,null,null,null,null,null,null,null,null,null,null,910,"CE"]
["Vote 10 - [NAME OF VOTE 10]",null,{"$f":"SUM(C275:C284)","v":0},0,0,0,0,0,0,0,0,0]
["",null,{"$f":"SUMIFS(Sheet1!S71_PPPYearAmount,Sheet1!S71_SubMunicipalVoteNo,$AC:$AC,Sheet1!S71_A5CapexCode,$AD:$AD)","v":0},{"$f":"SUMIFS(Sheet1!S71_PPYearAmount,Sheet1!S71_SubMunicipalVoteNo,$AC:$AC,Sheet1!S71_A5CapexCode,$AD:$AD)","v":0},{"$f":"SUMIFS(Sheet1!S71_PYearAmount,Sheet1!S71_SubMunicipalVoteNo,$AC:$AC,Sheet1!S71_A5CapexCode,$AD:$AD)","v":0},{"$f":"SUMIFS(Sheet1!S71_OriginalBudAmnt,Sheet1!S71_SubMunicipalVoteNo,$AC:$AC,Sheet1!S71_A5CapexCode,$AD:$AD)","v":0},{"$f":"SUMIFS(Sheet1!S71_AdjustmentBudAmnt,Sheet1!S71_SubMunicipalVoteNo,$AC:$AC,Sheet1!S71_A5CapexCode,$AD:$AD)","v":0},{"$f":"SUMIFS(Sheet1!S71_AdjustmentBudAmnt,Sheet1!S71_SubMunicipalVoteNo,$AC:$AC,Sheet1!S71_A5CapexCode,$AD:$AD)","v":0},{"$f":"SUMIFS(Sheet1!CD:CD,Sheet1!S71_SubMunicipalVoteNo,$AC:$AC,Sheet1!S71_A5CapexCode,$AD:$AD)","v":0},{"$f":"SUMIFS(Sheet1!S71_ASBudgetAmount,Sheet1!S71_SubMunicipalVoteNo,$AC:$AC,Sheet1!S71_A5CapexCode,$AD:$AD)","v":0},{"$f":"SUMIFS(Sheet1!S71_OY1BudgetAmount,Sheet1!S71_SubMunicipalVoteNo,$AC:$AC,Sheet1!S71_A5CapexCode,$AD:$AD)","v":0},{"$f":"SUMIFS(Sheet1!S71_OY2BudgetAmount,Sheet1!S71_SubMunicipalVoteNo,$AC:$AC,Sheet1!S71_A5CapexCode,$AD:$AD)","v":0},null,null,null,null,null,null,null,null,null,null,null,null,null,null,null,null,101,"CE"]
["",null,{"$f":"SUMIFS(Sheet1!S71_PPPYearAmount,Sheet1!S71_SubMunicipalVoteNo,$AC:$AC,Sheet1!S71_A5CapexCode,$AD:$AD)","v":0},{"$f":"SUMIFS(Sheet1!S71_PPYearAmount,Sheet1!S71_SubMunicipalVoteNo,$AC:$AC,Sheet1!S71_A5CapexCode,$AD:$AD)","v":0},{"$f":"SUMIFS(Sheet1!S71_PYearAmount,Sheet1!S71_SubMunicipalVoteNo,$AC:$AC,Sheet1!S71_A5CapexCode,$AD:$AD)","v":0},{"$f":"SUMIFS(Sheet1!S71_OriginalBudAmnt,Sheet1!S71_SubMunicipalVoteNo,$AC:$AC,Sheet1!S71_A5CapexCode,$AD:$AD)","v":0},{"$f":"SUMIFS(Sheet1!S71_AdjustmentBudAmnt,Sheet1!S71_SubMunicipalVoteNo,$AC:$AC,Sheet1!S71_A5CapexCode,$AD:$AD)","v":0},{"$f":"SUMIFS(Sheet1!S71_AdjustmentBudAmnt,Sheet1!S71_SubMunicipalVoteNo,$AC:$AC,Sheet1!S71_A5CapexCode,$AD:$AD)","v":0},{"$f":"SUMIFS(Sheet1!CD:CD,Sheet1!S71_SubMunicipalVoteNo,$AC:$AC,Sheet1!S71_A5CapexCode,$AD:$AD)","v":0},{"$f":"SUMIFS(Sheet1!S71_ASBudgetAmount,Sheet1!S71_SubMunicipalVoteNo,$AC:$AC,Sheet1!S71_A5CapexCode,$AD:$AD)","v":0},{"$f":"SUMIFS(Sheet1!S71_OY1BudgetAmount,Sheet1!S71_SubMunicipalVoteNo,$AC:$AC,Sheet1!S71_A5CapexCode,$AD:$AD)","v":0},{"$f":"SUMIFS(Sheet1!S71_OY2BudgetAmount,Sheet1!S71_SubMunicipalVoteNo,$AC:$AC,Sheet1!S71_A5CapexCode,$AD:$AD)","v":0},null,null,null,null,null,null,null,null,null,null,null,null,null,null,null,null,102,"CE"]
["",null,{"$f":"SUMIFS(Sheet1!S71_PPPYearAmount,Sheet1!S71_SubMunicipalVoteNo,$AC:$AC,Sheet1!S71_A5CapexCode,$AD:$AD)","v":0},{"$f":"SUMIFS(Sheet1!S71_PPYearAmount,Sheet1!S71_SubMunicipalVoteNo,$AC:$AC,Sheet1!S71_A5CapexCode,$AD:$AD)","v":0},{"$f":"SUMIFS(Sheet1!S71_PYearAmount,Sheet1!S71_SubMunicipalVoteNo,$AC:$AC,Sheet1!S71_A5CapexCode,$AD:$AD)","v":0},{"$f":"SUMIFS(Sheet1!S71_OriginalBudAmnt,Sheet1!S71_SubMunicipalVoteNo,$AC:$AC,Sheet1!S71_A5CapexCode,$AD:$AD)","v":0},{"$f":"SUMIFS(Sheet1!S71_AdjustmentBudAmnt,Sheet1!S71_SubMunicipalVoteNo,$AC:$AC,Sheet1!S71_A5CapexCode,$AD:$AD)","v":0},{"$f":"SUMIFS(Sheet1!S71_AdjustmentBudAmnt,Sheet1!S71_SubMunicipalVoteNo,$AC:$AC,Sheet1!S71_A5CapexCode,$AD:$AD)","v":0},{"$f":"SUMIFS(Sheet1!CD:CD,Sheet1!S71_SubMunicipalVoteNo,$AC:$AC,Sheet1!S71_A5CapexCode,$AD:$AD)","v":0},{"$f":"SUMIFS(Sheet1!S71_ASBudgetAmount,Sheet1!S71_SubMunicipalVoteNo,$AC:$AC,Sheet1!S71_A5CapexCode,$AD:$AD)","v":0},{"$f":"SUMIFS(Sheet1!S71_OY1BudgetAmount,Sheet1!S71_SubMunicipalVoteNo,$AC:$AC,Sheet1!S71_A5CapexCode,$AD:$AD)","v":0},{"$f":"SUMIFS(Sheet1!S71_OY2BudgetAmount,Sheet1!S71_SubMunicipalVoteNo,$AC:$AC,Sheet1!S71_A5CapexCode,$AD:$AD)","v":0},null,null,null,null,null,null,null,null,null,null,null,null,null,null,null,null,103,"CE"]
["",null,{"$f":"SUMIFS(Sheet1!S71_PPPYearAmount,Sheet1!S71_SubMunicipalVoteNo,$AC:$AC,Sheet1!S71_A5CapexCode,$AD:$AD)","v":0},{"$f":"SUMIFS(Sheet1!S71_PPYearAmount,Sheet1!S71_SubMunicipalVoteNo,$AC:$AC,Sheet1!S71_A5CapexCode,$AD:$AD)","v":0},{"$f":"SUMIFS(Sheet1!S71_PYearAmount,Sheet1!S71_SubMunicipalVoteNo,$AC:$AC,Sheet1!S71_A5CapexCode,$AD:$AD)","v":0},{"$f":"SUMIFS(Sheet1!S71_OriginalBudAmnt,Sheet1!S71_SubMunicipalVoteNo,$AC:$AC,Sheet1!S71_A5CapexCode,$AD:$AD)","v":0},{"$f":"SUMIFS(Sheet1!S71_AdjustmentBudAmnt,Sheet1!S71_SubMunicipalVoteNo,$AC:$AC,Sheet1!S71_A5CapexCode,$AD:$AD)","v":0},{"$f":"SUMIFS(Sheet1!S71_AdjustmentBudAmnt,Sheet1!S71_SubMunicipalVoteNo,$AC:$AC,Sheet1!S71_A5CapexCode,$AD:$AD)","v":0},{"$f":"SUMIFS(Sheet1!CD:CD,Sheet1!S71_SubMunicipalVoteNo,$AC:$AC,Sheet1!S71_A5CapexCode,$AD:$AD)","v":0},{"$f":"SUMIFS(Sheet1!S71_ASBudgetAmount,Sheet1!S71_SubMunicipalVoteNo,$AC:$AC,Sheet1!S71_A5CapexCode,$AD:$AD)","v":0},{"$f":"SUMIFS(Sheet1!S71_OY1BudgetAmount,Sheet1!S71_SubMunicipalVoteNo,$AC:$AC,Sheet1!S71_A5CapexCode,$AD:$AD)","v":0},{"$f":"SUMIFS(Sheet1!S71_OY2BudgetAmount,Sheet1!S71_SubMunicipalVoteNo,$AC:$AC,Sheet1!S71_A5CapexCode,$AD:$AD)","v":0},null,null,null,null,null,null,null,null,null,null,null,null,null,null,null,null,104,"CE"]
["",null,{"$f":"SUMIFS(Sheet1!S71_PPPYearAmount,Sheet1!S71_SubMunicipalVoteNo,$AC:$AC,Sheet1!S71_A5CapexCode,$AD:$AD)","v":0},{"$f":"SUMIFS(Sheet1!S71_PPYearAmount,Sheet1!S71_SubMunicipalVoteNo,$AC:$AC,Sheet1!S71_A5CapexCode,$AD:$AD)","v":0},{"$f":"SUMIFS(Sheet1!S71_PYearAmount,Sheet1!S71_SubMunicipalVoteNo,$AC:$AC,Sheet1!S71_A5CapexCode,$AD:$AD)","v":0},{"$f":"SUMIFS(Sheet1!S71_OriginalBudAmnt,Sheet1!S71_SubMunicipalVoteNo,$AC:$AC,Sheet1!S71_A5CapexCode,$AD:$AD)","v":0},{"$f":"SUMIFS(Sheet1!S71_AdjustmentBudAmnt,Sheet1!S71_SubMunicipalVoteNo,$AC:$AC,Sheet1!S71_A5CapexCode,$AD:$AD)","v":0},{"$f":"SUMIFS(Sheet1!S71_AdjustmentBudAmnt,Sheet1!S71_SubMunicipalVoteNo,$AC:$AC,Sheet1!S71_A5CapexCode,$AD:$AD)","v":0},{"$f":"SUMIFS(Sheet1!CD:CD,Sheet1!S71_SubMunicipalVoteNo,$AC:$AC,Sheet1!S71_A5CapexCode,$AD:$AD)","v":0},{"$f":"SUMIFS(Sheet1!S71_ASBudgetAmount,Sheet1!S71_SubMunicipalVoteNo,$AC:$AC,Sheet1!S71_A5CapexCode,$AD:$AD)","v":0},{"$f":"SUMIFS(Sheet1!S71_OY1BudgetAmount,Sheet1!S71_SubMunicipalVoteNo,$AC:$AC,Sheet1!S71_A5CapexCode,$AD:$AD)","v":0},{"$f":"SUMIFS(Sheet1!S71_OY2BudgetAmount,Sheet1!S71_SubMunicipalVoteNo,$AC:$AC,Sheet1!S71_A5CapexCode,$AD:$AD)","v":0},null,null,null,null,null,null,null,null,null,null,null,null,null,null,null,null,105,"CE"]
["",null,{"$f":"SUMIFS(Sheet1!S71_PPPYearAmount,Sheet1!S71_SubMunicipalVoteNo,$AC:$AC,Sheet1!S71_A5CapexCode,$AD:$AD)","v":0},{"$f":"SUMIFS(Sheet1!S71_PPYearAmount,Sheet1!S71_SubMunicipalVoteNo,$AC:$AC,Sheet1!S71_A5CapexCode,$AD:$AD)","v":0},{"$f":"SUMIFS(Sheet1!S71_PYearAmount,Sheet1!S71_SubMunicipalVoteNo,$AC:$AC,Sheet1!S71_A5CapexCode,$AD:$AD)","v":0},{"$f":"SUMIFS(Sheet1!S71_OriginalBudAmnt,Sheet1!S71_SubMunicipalVoteNo,$AC:$AC,Sheet1!S71_A5CapexCode,$AD:$AD)","v":0},{"$f":"SUMIFS(Sheet1!S71_AdjustmentBudAmnt,Sheet1!S71_SubMunicipalVoteNo,$AC:$AC,Sheet1!S71_A5CapexCode,$AD:$AD)","v":0},{"$f":"SUMIFS(Sheet1!S71_AdjustmentBudAmnt,Sheet1!S71_SubMunicipalVoteNo,$AC:$AC,Sheet1!S71_A5CapexCode,$AD:$AD)","v":0},{"$f":"SUMIFS(Sheet1!CD:CD,Sheet1!S71_SubMunicipalVoteNo,$AC:$AC,Sheet1!S71_A5CapexCode,$AD:$AD)","v":0},{"$f":"SUMIFS(Sheet1!S71_ASBudgetAmount,Sheet1!S71_SubMunicipalVoteNo,$AC:$AC,Sheet1!S71_A5CapexCode,$AD:$AD)","v":0},{"$f":"SUMIFS(Sheet1!S71_OY1BudgetAmount,Sheet1!S71_SubMunicipalVoteNo,$AC:$AC,Sheet1!S71_A5CapexCode,$AD:$AD)","v":0},{"$f":"SUMIFS(Sheet1!S71_OY2BudgetAmount,Sheet1!S71_SubMunicipalVoteNo,$AC:$AC,Sheet1!S71_A5CapexCode,$AD:$AD)","v":0},null,null,null,null,null,null,null,null,null,null,null,null,null,null,null,null,106,"CE"]
["",null,{"$f":"SUMIFS(Sheet1!S71_PPPYearAmount,Sheet1!S71_SubMunicipalVoteNo,$AC:$AC,Sheet1!S71_A5CapexCode,$AD:$AD)","v":0},{"$f":"SUMIFS(Sheet1!S71_PPYearAmount,Sheet1!S71_SubMunicipalVoteNo,$AC:$AC,Sheet1!S71_A5CapexCode,$AD:$AD)","v":0},{"$f":"SUMIFS(Sheet1!S71_PYearAmount,Sheet1!S71_SubMunicipalVoteNo,$AC:$AC,Sheet1!S71_A5CapexCode,$AD:$AD)","v":0},{"$f":"SUMIFS(Sheet1!S71_OriginalBudAmnt,Sheet1!S71_SubMunicipalVoteNo,$AC:$AC,Sheet1!S71_A5CapexCode,$AD:$AD)","v":0},{"$f":"SUMIFS(Sheet1!S71_AdjustmentBudAmnt,Sheet1!S71_SubMunicipalVoteNo,$AC:$AC,Sheet1!S71_A5CapexCode,$AD:$AD)","v":0},{"$f":"SUMIFS(Sheet1!S71_AdjustmentBudAmnt,Sheet1!S71_SubMunicipalVoteNo,$AC:$AC,Sheet1!S71_A5CapexCode,$AD:$AD)","v":0},{"$f":"SUMIFS(Sheet1!CD:CD,Sheet1!S71_SubMunicipalVoteNo,$AC:$AC,Sheet1!S71_A5CapexCode,$AD:$AD)","v":0},{"$f":"SUMIFS(Sheet1!S71_ASBudgetAmount,Sheet1!S71_SubMunicipalVoteNo,$AC:$AC,Sheet1!S71_A5CapexCode,$AD:$AD)","v":0},{"$f":"SUMIFS(Sheet1!S71_OY1BudgetAmount,Sheet1!S71_SubMunicipalVoteNo,$AC:$AC,Sheet1!S71_A5CapexCode,$AD:$AD)","v":0},{"$f":"SUMIFS(Sheet1!S71_OY2BudgetAmount,Sheet1!S71_SubMunicipalVoteNo,$AC:$AC,Sheet1!S71_A5CapexCode,$AD:$AD)","v":0},null,null,null,null,null,null,null,null,null,null,null,null,null,null,null,null,107,"CE"]
["",null,{"$f":"SUMIFS(Sheet1!S71_PPPYearAmount,Sheet1!S71_SubMunicipalVoteNo,$AC:$AC,Sheet1!S71_A5CapexCode,$AD:$AD)","v":0},{"$f":"SUMIFS(Sheet1!S71_PPYearAmount,Sheet1!S71_SubMunicipalVoteNo,$AC:$AC,Sheet1!S71_A5CapexCode,$AD:$AD)","v":0},{"$f":"SUMIFS(Sheet1!S71_PYearAmount,Sheet1!S71_SubMunicipalVoteNo,$AC:$AC,Sheet1!S71_A5CapexCode,$AD:$AD)","v":0},{"$f":"SUMIFS(Sheet1!S71_OriginalBudAmnt,Sheet1!S71_SubMunicipalVoteNo,$AC:$AC,Sheet1!S71_A5CapexCode,$AD:$AD)","v":0},{"$f":"SUMIFS(Sheet1!S71_AdjustmentBudAmnt,Sheet1!S71_SubMunicipalVoteNo,$AC:$AC,Sheet1!S71_A5CapexCode,$AD:$AD)","v":0},{"$f":"SUMIFS(Sheet1!S71_AdjustmentBudAmnt,Sheet1!S71_SubMunicipalVoteNo,$AC:$AC,Sheet1!S71_A5CapexCode,$AD:$AD)","v":0},{"$f":"SUMIFS(Sheet1!CD:CD,Sheet1!S71_SubMunicipalVoteNo,$AC:$AC,Sheet1!S71_A5CapexCode,$AD:$AD)","v":0},{"$f":"SUMIFS(Sheet1!S71_ASBudgetAmount,Sheet1!S71_SubMunicipalVoteNo,$AC:$AC,Sheet1!S71_A5CapexCode,$AD:$AD)","v":0},{"$f":"SUMIFS(Sheet1!S71_OY1BudgetAmount,Sheet1!S71_SubMunicipalVoteNo,$AC:$AC,Sheet1!S71_A5CapexCode,$AD:$AD)","v":0},{"$f":"SUMIFS(Sheet1!S71_OY2BudgetAmount,Sheet1!S71_SubMunicipalVoteNo,$AC:$AC,Sheet1!S71_A5CapexCode,$AD:$AD)","v":0},null,null,null,null,null,null,null,null,null,null,null,null,null,null,null,null,108,"CE"]
["",null,{"$f":"SUMIFS(Sheet1!S71_PPPYearAmount,Sheet1!S71_SubMunicipalVoteNo,$AC:$AC,Sheet1!S71_A5CapexCode,$AD:$AD)","v":0},{"$f":"SUMIFS(Sheet1!S71_PPYearAmount,Sheet1!S71_SubMunicipalVoteNo,$AC:$AC,Sheet1!S71_A5CapexCode,$AD:$AD)","v":0},{"$f":"SUMIFS(Sheet1!S71_PYearAmount,Sheet1!S71_SubMunicipalVoteNo,$AC:$AC,Sheet1!S71_A5CapexCode,$AD:$AD)","v":0},{"$f":"SUMIFS(Sheet1!S71_OriginalBudAmnt,Sheet1!S71_SubMunicipalVoteNo,$AC:$AC,Sheet1!S71_A5CapexCode,$AD:$AD)","v":0},{"$f":"SUMIFS(Sheet1!S71_AdjustmentBudAmnt,Sheet1!S71_SubMunicipalVoteNo,$AC:$AC,Sheet1!S71_A5CapexCode,$AD:$AD)","v":0},{"$f":"SUMIFS(Sheet1!S71_AdjustmentBudAmnt,Sheet1!S71_SubMunicipalVoteNo,$AC:$AC,Sheet1!S71_A5CapexCode,$AD:$AD)","v":0},{"$f":"SUMIFS(Sheet1!CD:CD,Sheet1!S71_SubMunicipalVoteNo,$AC:$AC,Sheet1!S71_A5CapexCode,$AD:$AD)","v":0},{"$f":"SUMIFS(Sheet1!S71_ASBudgetAmount,Sheet1!S71_SubMunicipalVoteNo,$AC:$AC,Sheet1!S71_A5CapexCode,$AD:$AD)","v":0},{"$f":"SUMIFS(Sheet1!S71_OY1BudgetAmount,Sheet1!S71_SubMunicipalVoteNo,$AC:$AC,Sheet1!S71_A5CapexCode,$AD:$AD)","v":0},{"$f":"SUMIFS(Sheet1!S71_OY2BudgetAmount,Sheet1!S71_SubMunicipalVoteNo,$AC:$AC,Sheet1!S71_A5CapexCode,$AD:$AD)","v":0},null,null,null,null,null,null,null,null,null,null,null,null,null,null,null,null,109,"CE"]
["",null,{"$f":"SUMIFS(Sheet1!S71_PPPYearAmount,Sheet1!S71_SubMunicipalVoteNo,$AC:$AC,Sheet1!S71_A5CapexCode,$AD:$AD)","v":0},{"$f":"SUMIFS(Sheet1!S71_PPYearAmount,Sheet1!S71_SubMunicipalVoteNo,$AC:$AC,Sheet1!S71_A5CapexCode,$AD:$AD)","v":0},{"$f":"SUMIFS(Sheet1!S71_PYearAmount,Sheet1!S71_SubMunicipalVoteNo,$AC:$AC,Sheet1!S71_A5CapexCode,$AD:$AD)","v":0},{"$f":"SUMIFS(Sheet1!S71_OriginalBudAmnt,Sheet1!S71_SubMunicipalVoteNo,$AC:$AC,Sheet1!S71_A5CapexCode,$AD:$AD)","v":0},{"$f":"SUMIFS(Sheet1!S71_AdjustmentBudAmnt,Sheet1!S71_SubMunicipalVoteNo,$AC:$AC,Sheet1!S71_A5CapexCode,$AD:$AD)","v":0},{"$f":"SUMIFS(Sheet1!S71_AdjustmentBudAmnt,Sheet1!S71_SubMunicipalVoteNo,$AC:$AC,Sheet1!S71_A5CapexCode,$AD:$AD)","v":0},{"$f":"SUMIFS(Sheet1!CD:CD,Sheet1!S71_SubMunicipalVoteNo,$AC:$AC,Sheet1!S71_A5CapexCode,$AD:$AD)","v":0},{"$f":"SUMIFS(Sheet1!S71_ASBudgetAmount,Sheet1!S71_SubMunicipalVoteNo,$AC:$AC,Sheet1!S71_A5CapexCode,$AD:$AD)","v":0},{"$f":"SUMIFS(Sheet1!S71_OY1BudgetAmount,Sheet1!S71_SubMunicipalVoteNo,$AC:$AC,Sheet1!S71_A5CapexCode,$AD:$AD)","v":0},{"$f":"SUMIFS(Sheet1!S71_OY2BudgetAmount,Sheet1!S71_SubMunicipalVoteNo,$AC:$AC,Sheet1!S71_A5CapexCode,$AD:$AD)","v":0},null,null,null,null,null,null,null,null,null,null,null,null,null,null,null,null,1010,"CE"]
["Vote 11 - [NAME OF VOTE 11]",null,{"$f":"SUM(C286:C295)","v":0},0,0,0,0,0,0,0,0,0]
["",null,{"$f":"SUMIFS(Sheet1!S71_PPPYearAmount,Sheet1!S71_SubMunicipalVoteNo,$AC:$AC,Sheet1!S71_A5CapexCode,$AD:$AD)","v":0},{"$f":"SUMIFS(Sheet1!S71_PPYearAmount,Sheet1!S71_SubMunicipalVoteNo,$AC:$AC,Sheet1!S71_A5CapexCode,$AD:$AD)","v":0},{"$f":"SUMIFS(Sheet1!S71_PYearAmount,Sheet1!S71_SubMunicipalVoteNo,$AC:$AC,Sheet1!S71_A5CapexCode,$AD:$AD)","v":0},{"$f":"SUMIFS(Sheet1!S71_OriginalBudAmnt,Sheet1!S71_SubMunicipalVoteNo,$AC:$AC,Sheet1!S71_A5CapexCode,$AD:$AD)","v":0},{"$f":"SUMIFS(Sheet1!S71_AdjustmentBudAmnt,Sheet1!S71_SubMunicipalVoteNo,$AC:$AC,Sheet1!S71_A5CapexCode,$AD:$AD)","v":0},{"$f":"SUMIFS(Sheet1!S71_AdjustmentBudAmnt,Sheet1!S71_SubMunicipalVoteNo,$AC:$AC,Sheet1!S71_A5CapexCode,$AD:$AD)","v":0},{"$f":"SUMIFS(Sheet1!CD:CD,Sheet1!S71_SubMunicipalVoteNo,$AC:$AC,Sheet1!S71_A5CapexCode,$AD:$AD)","v":0},{"$f":"SUMIFS(Sheet1!S71_ASBudgetAmount,Sheet1!S71_SubMunicipalVoteNo,$AC:$AC,Sheet1!S71_A5CapexCode,$AD:$AD)","v":0},{"$f":"SUMIFS(Sheet1!S71_OY1BudgetAmount,Sheet1!S71_SubMunicipalVoteNo,$AC:$AC,Sheet1!S71_A5CapexCode,$AD:$AD)","v":0},{"$f":"SUMIFS(Sheet1!S71_OY2BudgetAmount,Sheet1!S71_SubMunicipalVoteNo,$AC:$AC,Sheet1!S71_A5CapexCode,$AD:$AD)","v":0},null,null,null,null,null,null,null,null,null,null,null,null,null,null,null,null,111,"CE"]
["",null,{"$f":"SUMIFS(Sheet1!S71_PPPYearAmount,Sheet1!S71_SubMunicipalVoteNo,$AC:$AC,Sheet1!S71_A5CapexCode,$AD:$AD)","v":0},{"$f":"SUMIFS(Sheet1!S71_PPYearAmount,Sheet1!S71_SubMunicipalVoteNo,$AC:$AC,Sheet1!S71_A5CapexCode,$AD:$AD)","v":0},{"$f":"SUMIFS(Sheet1!S71_PYearAmount,Sheet1!S71_SubMunicipalVoteNo,$AC:$AC,Sheet1!S71_A5CapexCode,$AD:$AD)","v":0},{"$f":"SUMIFS(Sheet1!S71_OriginalBudAmnt,Sheet1!S71_SubMunicipalVoteNo,$AC:$AC,Sheet1!S71_A5CapexCode,$AD:$AD)","v":0},{"$f":"SUMIFS(Sheet1!S71_AdjustmentBudAmnt,Sheet1!S71_SubMunicipalVoteNo,$AC:$AC,Sheet1!S71_A5CapexCode,$AD:$AD)","v":0},{"$f":"SUMIFS(Sheet1!S71_AdjustmentBudAmnt,Sheet1!S71_SubMunicipalVoteNo,$AC:$AC,Sheet1!S71_A5CapexCode,$AD:$AD)","v":0},{"$f":"SUMIFS(Sheet1!CD:CD,Sheet1!S71_SubMunicipalVoteNo,$AC:$AC,Sheet1!S71_A5CapexCode,$AD:$AD)","v":0},{"$f":"SUMIFS(Sheet1!S71_ASBudgetAmount,Sheet1!S71_SubMunicipalVoteNo,$AC:$AC,Sheet1!S71_A5CapexCode,$AD:$AD)","v":0},{"$f":"SUMIFS(Sheet1!S71_OY1BudgetAmount,Sheet1!S71_SubMunicipalVoteNo,$AC:$AC,Sheet1!S71_A5CapexCode,$AD:$AD)","v":0},{"$f":"SUMIFS(Sheet1!S71_OY2BudgetAmount,Sheet1!S71_SubMunicipalVoteNo,$AC:$AC,Sheet1!S71_A5CapexCode,$AD:$AD)","v":0},null,null,null,null,null,null,null,null,null,null,null,null,null,null,null,null,112,"CE"]
["",null,{"$f":"SUMIFS(Sheet1!S71_PPPYearAmount,Sheet1!S71_SubMunicipalVoteNo,$AC:$AC,Sheet1!S71_A5CapexCode,$AD:$AD)","v":0},{"$f":"SUMIFS(Sheet1!S71_PPYearAmount,Sheet1!S71_SubMunicipalVoteNo,$AC:$AC,Sheet1!S71_A5CapexCode,$AD:$AD)","v":0},{"$f":"SUMIFS(Sheet1!S71_PYearAmount,Sheet1!S71_SubMunicipalVoteNo,$AC:$AC,Sheet1!S71_A5CapexCode,$AD:$AD)","v":0},{"$f":"SUMIFS(Sheet1!S71_OriginalBudAmnt,Sheet1!S71_SubMunicipalVoteNo,$AC:$AC,Sheet1!S71_A5CapexCode,$AD:$AD)","v":0},{"$f":"SUMIFS(Sheet1!S71_AdjustmentBudAmnt,Sheet1!S71_SubMunicipalVoteNo,$AC:$AC,Sheet1!S71_A5CapexCode,$AD:$AD)","v":0},{"$f":"SUMIFS(Sheet1!S71_AdjustmentBudAmnt,Sheet1!S71_SubMunicipalVoteNo,$AC:$AC,Sheet1!S71_A5CapexCode,$AD:$AD)","v":0},{"$f":"SUMIFS(Sheet1!CD:CD,Sheet1!S71_SubMunicipalVoteNo,$AC:$AC,Sheet1!S71_A5CapexCode,$AD:$AD)","v":0},{"$f":"SUMIFS(Sheet1!S71_ASBudgetAmount,Sheet1!S71_SubMunicipalVoteNo,$AC:$AC,Sheet1!S71_A5CapexCode,$AD:$AD)","v":0},{"$f":"SUMIFS(Sheet1!S71_OY1BudgetAmount,Sheet1!S71_SubMunicipalVoteNo,$AC:$AC,Sheet1!S71_A5CapexCode,$AD:$AD)","v":0},{"$f":"SUMIFS(Sheet1!S71_OY2BudgetAmount,Sheet1!S71_SubMunicipalVoteNo,$AC:$AC,Sheet1!S71_A5CapexCode,$AD:$AD)","v":0},null,null,null,null,null,null,null,null,null,null,null,null,null,null,null,null,113,"CE"]
["",null,{"$f":"SUMIFS(Sheet1!S71_PPPYearAmount,Sheet1!S71_SubMunicipalVoteNo,$AC:$AC,Sheet1!S71_A5CapexCode,$AD:$AD)","v":0},{"$f":"SUMIFS(Sheet1!S71_PPYearAmount,Sheet1!S71_SubMunicipalVoteNo,$AC:$AC,Sheet1!S71_A5CapexCode,$AD:$AD)","v":0},{"$f":"SUMIFS(Sheet1!S71_PYearAmount,Sheet1!S71_SubMunicipalVoteNo,$AC:$AC,Sheet1!S71_A5CapexCode,$AD:$AD)","v":0},{"$f":"SUMIFS(Sheet1!S71_OriginalBudAmnt,Sheet1!S71_SubMunicipalVoteNo,$AC:$AC,Sheet1!S71_A5CapexCode,$AD:$AD)","v":0},{"$f":"SUMIFS(Sheet1!S71_AdjustmentBudAmnt,Sheet1!S71_SubMunicipalVoteNo,$AC:$AC,Sheet1!S71_A5CapexCode,$AD:$AD)","v":0},{"$f":"SUMIFS(Sheet1!S71_AdjustmentBudAmnt,Sheet1!S71_SubMunicipalVoteNo,$AC:$AC,Sheet1!S71_A5CapexCode,$AD:$AD)","v":0},{"$f":"SUMIFS(Sheet1!CD:CD,Sheet1!S71_SubMunicipalVoteNo,$AC:$AC,Sheet1!S71_A5CapexCode,$AD:$AD)","v":0},{"$f":"SUMIFS(Sheet1!S71_ASBudgetAmount,Sheet1!S71_SubMunicipalVoteNo,$AC:$AC,Sheet1!S71_A5CapexCode,$AD:$AD)","v":0},{"$f":"SUMIFS(Sheet1!S71_OY1BudgetAmount,Sheet1!S71_SubMunicipalVoteNo,$AC:$AC,Sheet1!S71_A5CapexCode,$AD:$AD)","v":0},{"$f":"SUMIFS(Sheet1!S71_OY2BudgetAmount,Sheet1!S71_SubMunicipalVoteNo,$AC:$AC,Sheet1!S71_A5CapexCode,$AD:$AD)","v":0},null,null,null,null,null,null,null,null,null,null,null,null,null,null,null,null,114,"CE"]
["",null,{"$f":"SUMIFS(Sheet1!S71_PPPYearAmount,Sheet1!S71_SubMunicipalVoteNo,$AC:$AC,Sheet1!S71_A5CapexCode,$AD:$AD)","v":0},{"$f":"SUMIFS(Sheet1!S71_PPYearAmount,Sheet1!S71_SubMunicipalVoteNo,$AC:$AC,Sheet1!S71_A5CapexCode,$AD:$AD)","v":0},{"$f":"SUMIFS(Sheet1!S71_PYearAmount,Sheet1!S71_SubMunicipalVoteNo,$AC:$AC,Sheet1!S71_A5CapexCode,$AD:$AD)","v":0},{"$f":"SUMIFS(Sheet1!S71_OriginalBudAmnt,Sheet1!S71_SubMunicipalVoteNo,$AC:$AC,Sheet1!S71_A5CapexCode,$AD:$AD)","v":0},{"$f":"SUMIFS(Sheet1!S71_AdjustmentBudAmnt,Sheet1!S71_SubMunicipalVoteNo,$AC:$AC,Sheet1!S71_A5CapexCode,$AD:$AD)","v":0},{"$f":"SUMIFS(Sheet1!S71_AdjustmentBudAmnt,Sheet1!S71_SubMunicipalVoteNo,$AC:$AC,Sheet1!S71_A5CapexCode,$AD:$AD)","v":0},{"$f":"SUMIFS(Sheet1!CD:CD,Sheet1!S71_SubMunicipalVoteNo,$AC:$AC,Sheet1!S71_A5CapexCode,$AD:$AD)","v":0},{"$f":"SUMIFS(Sheet1!S71_ASBudgetAmount,Sheet1!S71_SubMunicipalVoteNo,$AC:$AC,Sheet1!S71_A5CapexCode,$AD:$AD)","v":0},{"$f":"SUMIFS(Sheet1!S71_OY1BudgetAmount,Sheet1!S71_SubMunicipalVoteNo,$AC:$AC,Sheet1!S71_A5CapexCode,$AD:$AD)","v":0},{"$f":"SUMIFS(Sheet1!S71_OY2BudgetAmount,Sheet1!S71_SubMunicipalVoteNo,$AC:$AC,Sheet1!S71_A5CapexCode,$AD:$AD)","v":0},null,null,null,null,null,null,null,null,null,null,null,null,null,null,null,null,115,"CE"]
["",null,{"$f":"SUMIFS(Sheet1!S71_PPPYearAmount,Sheet1!S71_SubMunicipalVoteNo,$AC:$AC,Sheet1!S71_A5CapexCode,$AD:$AD)","v":0},{"$f":"SUMIFS(Sheet1!S71_PPYearAmount,Sheet1!S71_SubMunicipalVoteNo,$AC:$AC,Sheet1!S71_A5CapexCode,$AD:$AD)","v":0},{"$f":"SUMIFS(Sheet1!S71_PYearAmount,Sheet1!S71_SubMunicipalVoteNo,$AC:$AC,Sheet1!S71_A5CapexCode,$AD:$AD)","v":0},{"$f":"SUMIFS(Sheet1!S71_OriginalBudAmnt,Sheet1!S71_SubMunicipalVoteNo,$AC:$AC,Sheet1!S71_A5CapexCode,$AD:$AD)","v":0},{"$f":"SUMIFS(Sheet1!S71_AdjustmentBudAmnt,Sheet1!S71_SubMunicipalVoteNo,$AC:$AC,Sheet1!S71_A5CapexCode,$AD:$AD)","v":0},{"$f":"SUMIFS(Sheet1!S71_AdjustmentBudAmnt,Sheet1!S71_SubMunicipalVoteNo,$AC:$AC,Sheet1!S71_A5CapexCode,$AD:$AD)","v":0},{"$f":"SUMIFS(Sheet1!CD:CD,Sheet1!S71_SubMunicipalVoteNo,$AC:$AC,Sheet1!S71_A5CapexCode,$AD:$AD)","v":0},{"$f":"SUMIFS(Sheet1!S71_ASBudgetAmount,Sheet1!S71_SubMunicipalVoteNo,$AC:$AC,Sheet1!S71_A5CapexCode,$AD:$AD)","v":0},{"$f":"SUMIFS(Sheet1!S71_OY1BudgetAmount,Sheet1!S71_SubMunicipalVoteNo,$AC:$AC,Sheet1!S71_A5CapexCode,$AD:$AD)","v":0},{"$f":"SUMIFS(Sheet1!S71_OY2BudgetAmount,Sheet1!S71_SubMunicipalVoteNo,$AC:$AC,Sheet1!S71_A5CapexCode,$AD:$AD)","v":0},null,null,null,null,null,null,null,null,null,null,null,null,null,null,null,null,116,"CE"]
["",null,{"$f":"SUMIFS(Sheet1!S71_PPPYearAmount,Sheet1!S71_SubMunicipalVoteNo,$AC:$AC,Sheet1!S71_A5CapexCode,$AD:$AD)","v":0},{"$f":"SUMIFS(Sheet1!S71_PPYearAmount,Sheet1!S71_SubMunicipalVoteNo,$AC:$AC,Sheet1!S71_A5CapexCode,$AD:$AD)","v":0},{"$f":"SUMIFS(Sheet1!S71_PYearAmount,Sheet1!S71_SubMunicipalVoteNo,$AC:$AC,Sheet1!S71_A5CapexCode,$AD:$AD)","v":0},{"$f":"SUMIFS(Sheet1!S71_OriginalBudAmnt,Sheet1!S71_SubMunicipalVoteNo,$AC:$AC,Sheet1!S71_A5CapexCode,$AD:$AD)","v":0},{"$f":"SUMIFS(Sheet1!S71_AdjustmentBudAmnt,Sheet1!S71_SubMunicipalVoteNo,$AC:$AC,Sheet1!S71_A5CapexCode,$AD:$AD)","v":0},{"$f":"SUMIFS(Sheet1!S71_AdjustmentBudAmnt,Sheet1!S71_SubMunicipalVoteNo,$AC:$AC,Sheet1!S71_A5CapexCode,$AD:$AD)","v":0},{"$f":"SUMIFS(Sheet1!CD:CD,Sheet1!S71_SubMunicipalVoteNo,$AC:$AC,Sheet1!S71_A5CapexCode,$AD:$AD)","v":0},{"$f":"SUMIFS(Sheet1!S71_ASBudgetAmount,Sheet1!S71_SubMunicipalVoteNo,$AC:$AC,Sheet1!S71_A5CapexCode,$AD:$AD)","v":0},{"$f":"SUMIFS(Sheet1!S71_OY1BudgetAmount,Sheet1!S71_SubMunicipalVoteNo,$AC:$AC,Sheet1!S71_A5CapexCode,$AD:$AD)","v":0},{"$f":"SUMIFS(Sheet1!S71_OY2BudgetAmount,Sheet1!S71_SubMunicipalVoteNo,$AC:$AC,Sheet1!S71_A5CapexCode,$AD:$AD)","v":0},null,null,null,null,null,null,null,null,null,null,null,null,null,null,null,null,117,"CE"]
["",null,{"$f":"SUMIFS(Sheet1!S71_PPPYearAmount,Sheet1!S71_SubMunicipalVoteNo,$AC:$AC,Sheet1!S71_A5CapexCode,$AD:$AD)","v":0},{"$f":"SUMIFS(Sheet1!S71_PPYearAmount,Sheet1!S71_SubMunicipalVoteNo,$AC:$AC,Sheet1!S71_A5CapexCode,$AD:$AD)","v":0},{"$f":"SUMIFS(Sheet1!S71_PYearAmount,Sheet1!S71_SubMunicipalVoteNo,$AC:$AC,Sheet1!S71_A5CapexCode,$AD:$AD)","v":0},{"$f":"SUMIFS(Sheet1!S71_OriginalBudAmnt,Sheet1!S71_SubMunicipalVoteNo,$AC:$AC,Sheet1!S71_A5CapexCode,$AD:$AD)","v":0},{"$f":"SUMIFS(Sheet1!S71_AdjustmentBudAmnt,Sheet1!S71_SubMunicipalVoteNo,$AC:$AC,Sheet1!S71_A5CapexCode,$AD:$AD)","v":0},{"$f":"SUMIFS(Sheet1!S71_AdjustmentBudAmnt,Sheet1!S71_SubMunicipalVoteNo,$AC:$AC,Sheet1!S71_A5CapexCode,$AD:$AD)","v":0},{"$f":"SUMIFS(Sheet1!CD:CD,Sheet1!S71_SubMunicipalVoteNo,$AC:$AC,Sheet1!S71_A5CapexCode,$AD:$AD)","v":0},{"$f":"SUMIFS(Sheet1!S71_ASBudgetAmount,Sheet1!S71_SubMunicipalVoteNo,$AC:$AC,Sheet1!S71_A5CapexCode,$AD:$AD)","v":0},{"$f":"SUMIFS(Sheet1!S71_OY1BudgetAmount,Sheet1!S71_SubMunicipalVoteNo,$AC:$AC,Sheet1!S71_A5CapexCode,$AD:$AD)","v":0},{"$f":"SUMIFS(Sheet1!S71_OY2BudgetAmount,Sheet1!S71_SubMunicipalVoteNo,$AC:$AC,Sheet1!S71_A5CapexCode,$AD:$AD)","v":0},null,null,null,null,null,null,null,null,null,null,null,null,null,null,null,null,118,"CE"]
["",null,{"$f":"SUMIFS(Sheet1!S71_PPPYearAmount,Sheet1!S71_SubMunicipalVoteNo,$AC:$AC,Sheet1!S71_A5CapexCode,$AD:$AD)","v":0},{"$f":"SUMIFS(Sheet1!S71_PPYearAmount,Sheet1!S71_SubMunicipalVoteNo,$AC:$AC,Sheet1!S71_A5CapexCode,$AD:$AD)","v":0},{"$f":"SUMIFS(Sheet1!S71_PYearAmount,Sheet1!S71_SubMunicipalVoteNo,$AC:$AC,Sheet1!S71_A5CapexCode,$AD:$AD)","v":0},{"$f":"SUMIFS(Sheet1!S71_OriginalBudAmnt,Sheet1!S71_SubMunicipalVoteNo,$AC:$AC,Sheet1!S71_A5CapexCode,$AD:$AD)","v":0},{"$f":"SUMIFS(Sheet1!S71_AdjustmentBudAmnt,Sheet1!S71_SubMunicipalVoteNo,$AC:$AC,Sheet1!S71_A5CapexCode,$AD:$AD)","v":0},{"$f":"SUMIFS(Sheet1!S71_AdjustmentBudAmnt,Sheet1!S71_SubMunicipalVoteNo,$AC:$AC,Sheet1!S71_A5CapexCode,$AD:$AD)","v":0},{"$f":"SUMIFS(Sheet1!CD:CD,Sheet1!S71_SubMunicipalVoteNo,$AC:$AC,Sheet1!S71_A5CapexCode,$AD:$AD)","v":0},{"$f":"SUMIFS(Sheet1!S71_ASBudgetAmount,Sheet1!S71_SubMunicipalVoteNo,$AC:$AC,Sheet1!S71_A5CapexCode,$AD:$AD)","v":0},{"$f":"SUMIFS(Sheet1!S71_OY1BudgetAmount,Sheet1!S71_SubMunicipalVoteNo,$AC:$AC,Sheet1!S71_A5CapexCode,$AD:$AD)","v":0},{"$f":"SUMIFS(Sheet1!S71_OY2BudgetAmount,Sheet1!S71_SubMunicipalVoteNo,$AC:$AC,Sheet1!S71_A5CapexCode,$AD:$AD)","v":0},null,null,null,null,null,null,null,null,null,null,null,null,null,null,null,null,119,"CE"]
["",null,{"$f":"SUMIFS(Sheet1!S71_PPPYearAmount,Sheet1!S71_SubMunicipalVoteNo,$AC:$AC,Sheet1!S71_A5CapexCode,$AD:$AD)","v":0},{"$f":"SUMIFS(Sheet1!S71_PPYearAmount,Sheet1!S71_SubMunicipalVoteNo,$AC:$AC,Sheet1!S71_A5CapexCode,$AD:$AD)","v":0},{"$f":"SUMIFS(Sheet1!S71_PYearAmount,Sheet1!S71_SubMunicipalVoteNo,$AC:$AC,Sheet1!S71_A5CapexCode,$AD:$AD)","v":0},{"$f":"SUMIFS(Sheet1!S71_OriginalBudAmnt,Sheet1!S71_SubMunicipalVoteNo,$AC:$AC,Sheet1!S71_A5CapexCode,$AD:$AD)","v":0},{"$f":"SUMIFS(Sheet1!S71_AdjustmentBudAmnt,Sheet1!S71_SubMunicipalVoteNo,$AC:$AC,Sheet1!S71_A5CapexCode,$AD:$AD)","v":0},{"$f":"SUMIFS(Sheet1!S71_AdjustmentBudAmnt,Sheet1!S71_SubMunicipalVoteNo,$AC:$AC,Sheet1!S71_A5CapexCode,$AD:$AD)","v":0},{"$f":"SUMIFS(Sheet1!CD:CD,Sheet1!S71_SubMunicipalVoteNo,$AC:$AC,Sheet1!S71_A5CapexCode,$AD:$AD)","v":0},{"$f":"SUMIFS(Sheet1!S71_ASBudgetAmount,Sheet1!S71_SubMunicipalVoteNo,$AC:$AC,Sheet1!S71_A5CapexCode,$AD:$AD)","v":0},{"$f":"SUMIFS(Sheet1!S71_OY1BudgetAmount,Sheet1!S71_SubMunicipalVoteNo,$AC:$AC,Sheet1!S71_A5CapexCode,$AD:$AD)","v":0},{"$f":"SUMIFS(Sheet1!S71_OY2BudgetAmount,Sheet1!S71_SubMunicipalVoteNo,$AC:$AC,Sheet1!S71_A5CapexCode,$AD:$AD)","v":0},null,null,null,null,null,null,null,null,null,null,null,null,null,null,null,null,1110,"CE"]
["Vote 12 - [NAME OF VOTE 12]",null,{"$f":"SUM(C297:C306)","v":0},0,0,0,0,0,0,0,0,0]
["",null,{"$f":"SUMIFS(Sheet1!S71_PPPYearAmount,Sheet1!S71_SubMunicipalVoteNo,$AC:$AC,Sheet1!S71_A5CapexCode,$AD:$AD)","v":0},{"$f":"SUMIFS(Sheet1!S71_PPYearAmount,Sheet1!S71_SubMunicipalVoteNo,$AC:$AC,Sheet1!S71_A5CapexCode,$AD:$AD)","v":0},{"$f":"SUMIFS(Sheet1!S71_PYearAmount,Sheet1!S71_SubMunicipalVoteNo,$AC:$AC,Sheet1!S71_A5CapexCode,$AD:$AD)","v":0},{"$f":"SUMIFS(Sheet1!S71_OriginalBudAmnt,Sheet1!S71_SubMunicipalVoteNo,$AC:$AC,Sheet1!S71_A5CapexCode,$AD:$AD)","v":0},{"$f":"SUMIFS(Sheet1!S71_AdjustmentBudAmnt,Sheet1!S71_SubMunicipalVoteNo,$AC:$AC,Sheet1!S71_A5CapexCode,$AD:$AD)","v":0},{"$f":"SUMIFS(Sheet1!S71_AdjustmentBudAmnt,Sheet1!S71_SubMunicipalVoteNo,$AC:$AC,Sheet1!S71_A5CapexCode,$AD:$AD)","v":0},{"$f":"SUMIFS(Sheet1!CD:CD,Sheet1!S71_SubMunicipalVoteNo,$AC:$AC,Sheet1!S71_A5CapexCode,$AD:$AD)","v":0},{"$f":"SUMIFS(Sheet1!S71_ASBudgetAmount,Sheet1!S71_SubMunicipalVoteNo,$AC:$AC,Sheet1!S71_A5CapexCode,$AD:$AD)","v":0},{"$f":"SUMIFS(Sheet1!S71_OY1BudgetAmount,Sheet1!S71_SubMunicipalVoteNo,$AC:$AC,Sheet1!S71_A5CapexCode,$AD:$AD)","v":0},{"$f":"SUMIFS(Sheet1!S71_OY2BudgetAmount,Sheet1!S71_SubMunicipalVoteNo,$AC:$AC,Sheet1!S71_A5CapexCode,$AD:$AD)","v":0},null,null,null,null,null,null,null,null,null,null,null,null,null,null,null,null,121,"CE"]
["",null,{"$f":"SUMIFS(Sheet1!S71_PPPYearAmount,Sheet1!S71_SubMunicipalVoteNo,$AC:$AC,Sheet1!S71_A5CapexCode,$AD:$AD)","v":0},{"$f":"SUMIFS(Sheet1!S71_PPYearAmount,Sheet1!S71_SubMunicipalVoteNo,$AC:$AC,Sheet1!S71_A5CapexCode,$AD:$AD)","v":0},{"$f":"SUMIFS(Sheet1!S71_PYearAmount,Sheet1!S71_SubMunicipalVoteNo,$AC:$AC,Sheet1!S71_A5CapexCode,$AD:$AD)","v":0},{"$f":"SUMIFS(Sheet1!S71_OriginalBudAmnt,Sheet1!S71_SubMunicipalVoteNo,$AC:$AC,Sheet1!S71_A5CapexCode,$AD:$AD)","v":0},{"$f":"SUMIFS(Sheet1!S71_AdjustmentBudAmnt,Sheet1!S71_SubMunicipalVoteNo,$AC:$AC,Sheet1!S71_A5CapexCode,$AD:$AD)","v":0},{"$f":"SUMIFS(Sheet1!S71_AdjustmentBudAmnt,Sheet1!S71_SubMunicipalVoteNo,$AC:$AC,Sheet1!S71_A5CapexCode,$AD:$AD)","v":0},{"$f":"SUMIFS(Sheet1!CD:CD,Sheet1!S71_SubMunicipalVoteNo,$AC:$AC,Sheet1!S71_A5CapexCode,$AD:$AD)","v":0},{"$f":"SUMIFS(Sheet1!S71_ASBudgetAmount,Sheet1!S71_SubMunicipalVoteNo,$AC:$AC,Sheet1!S71_A5CapexCode,$AD:$AD)","v":0},{"$f":"SUMIFS(Sheet1!S71_OY1BudgetAmount,Sheet1!S71_SubMunicipalVoteNo,$AC:$AC,Sheet1!S71_A5CapexCode,$AD:$AD)","v":0},{"$f":"SUMIFS(Sheet1!S71_OY2BudgetAmount,Sheet1!S71_SubMunicipalVoteNo,$AC:$AC,Sheet1!S71_A5CapexCode,$AD:$AD)","v":0},null,null,null,null,null,null,null,null,null,null,null,null,null,null,null,null,122,"CE"]
["",null,{"$f":"SUMIFS(Sheet1!S71_PPPYearAmount,Sheet1!S71_SubMunicipalVoteNo,$AC:$AC,Sheet1!S71_A5CapexCode,$AD:$AD)","v":0},{"$f":"SUMIFS(Sheet1!S71_PPYearAmount,Sheet1!S71_SubMunicipalVoteNo,$AC:$AC,Sheet1!S71_A5CapexCode,$AD:$AD)","v":0},{"$f":"SUMIFS(Sheet1!S71_PYearAmount,Sheet1!S71_SubMunicipalVoteNo,$AC:$AC,Sheet1!S71_A5CapexCode,$AD:$AD)","v":0},{"$f":"SUMIFS(Sheet1!S71_OriginalBudAmnt,Sheet1!S71_SubMunicipalVoteNo,$AC:$AC,Sheet1!S71_A5CapexCode,$AD:$AD)","v":0},{"$f":"SUMIFS(Sheet1!S71_AdjustmentBudAmnt,Sheet1!S71_SubMunicipalVoteNo,$AC:$AC,Sheet1!S71_A5CapexCode,$AD:$AD)","v":0},{"$f":"SUMIFS(Sheet1!S71_AdjustmentBudAmnt,Sheet1!S71_SubMunicipalVoteNo,$AC:$AC,Sheet1!S71_A5CapexCode,$AD:$AD)","v":0},{"$f":"SUMIFS(Sheet1!CD:CD,Sheet1!S71_SubMunicipalVoteNo,$AC:$AC,Sheet1!S71_A5CapexCode,$AD:$AD)","v":0},{"$f":"SUMIFS(Sheet1!S71_ASBudgetAmount,Sheet1!S71_SubMunicipalVoteNo,$AC:$AC,Sheet1!S71_A5CapexCode,$AD:$AD)","v":0},{"$f":"SUMIFS(Sheet1!S71_OY1BudgetAmount,Sheet1!S71_SubMunicipalVoteNo,$AC:$AC,Sheet1!S71_A5CapexCode,$AD:$AD)","v":0},{"$f":"SUMIFS(Sheet1!S71_OY2BudgetAmount,Sheet1!S71_SubMunicipalVoteNo,$AC:$AC,Sheet1!S71_A5CapexCode,$AD:$AD)","v":0},null,null,null,null,null,null,null,null,null,null,null,null,null,null,null,null,123,"CE"]
["",null,{"$f":"SUMIFS(Sheet1!S71_PPPYearAmount,Sheet1!S71_SubMunicipalVoteNo,$AC:$AC,Sheet1!S71_A5CapexCode,$AD:$AD)","v":0},{"$f":"SUMIFS(Sheet1!S71_PPYearAmount,Sheet1!S71_SubMunicipalVoteNo,$AC:$AC,Sheet1!S71_A5CapexCode,$AD:$AD)","v":0},{"$f":"SUMIFS(Sheet1!S71_PYearAmount,Sheet1!S71_SubMunicipalVoteNo,$AC:$AC,Sheet1!S71_A5CapexCode,$AD:$AD)","v":0},{"$f":"SUMIFS(Sheet1!S71_OriginalBudAmnt,Sheet1!S71_SubMunicipalVoteNo,$AC:$AC,Sheet1!S71_A5CapexCode,$AD:$AD)","v":0},{"$f":"SUMIFS(Sheet1!S71_AdjustmentBudAmnt,Sheet1!S71_SubMunicipalVoteNo,$AC:$AC,Sheet1!S71_A5CapexCode,$AD:$AD)","v":0},{"$f":"SUMIFS(Sheet1!S71_AdjustmentBudAmnt,Sheet1!S71_SubMunicipalVoteNo,$AC:$AC,Sheet1!S71_A5CapexCode,$AD:$AD)","v":0},{"$f":"SUMIFS(Sheet1!CD:CD,Sheet1!S71_SubMunicipalVoteNo,$AC:$AC,Sheet1!S71_A5CapexCode,$AD:$AD)","v":0},{"$f":"SUMIFS(Sheet1!S71_ASBudgetAmount,Sheet1!S71_SubMunicipalVoteNo,$AC:$AC,Sheet1!S71_A5CapexCode,$AD:$AD)","v":0},{"$f":"SUMIFS(Sheet1!S71_OY1BudgetAmount,Sheet1!S71_SubMunicipalVoteNo,$AC:$AC,Sheet1!S71_A5CapexCode,$AD:$AD)","v":0},{"$f":"SUMIFS(Sheet1!S71_OY2BudgetAmount,Sheet1!S71_SubMunicipalVoteNo,$AC:$AC,Sheet1!S71_A5CapexCode,$AD:$AD)","v":0},null,null,null,null,null,null,null,null,null,null,null,null,null,null,null,null,124,"CE"]
["",null,{"$f":"SUMIFS(Sheet1!S71_PPPYearAmount,Sheet1!S71_SubMunicipalVoteNo,$AC:$AC,Sheet1!S71_A5CapexCode,$AD:$AD)","v":0},{"$f":"SUMIFS(Sheet1!S71_PPYearAmount,Sheet1!S71_SubMunicipalVoteNo,$AC:$AC,Sheet1!S71_A5CapexCode,$AD:$AD)","v":0},{"$f":"SUMIFS(Sheet1!S71_PYearAmount,Sheet1!S71_SubMunicipalVoteNo,$AC:$AC,Sheet1!S71_A5CapexCode,$AD:$AD)","v":0},{"$f":"SUMIFS(Sheet1!S71_OriginalBudAmnt,Sheet1!S71_SubMunicipalVoteNo,$AC:$AC,Sheet1!S71_A5CapexCode,$AD:$AD)","v":0},{"$f":"SUMIFS(Sheet1!S71_AdjustmentBudAmnt,Sheet1!S71_SubMunicipalVoteNo,$AC:$AC,Sheet1!S71_A5CapexCode,$AD:$AD)","v":0},{"$f":"SUMIFS(Sheet1!S71_AdjustmentBudAmnt,Sheet1!S71_SubMunicipalVoteNo,$AC:$AC,Sheet1!S71_A5CapexCode,$AD:$AD)","v":0},{"$f":"SUMIFS(Sheet1!CD:CD,Sheet1!S71_SubMunicipalVoteNo,$AC:$AC,Sheet1!S71_A5CapexCode,$AD:$AD)","v":0},{"$f":"SUMIFS(Sheet1!S71_ASBudgetAmount,Sheet1!S71_SubMunicipalVoteNo,$AC:$AC,Sheet1!S71_A5CapexCode,$AD:$AD)","v":0},{"$f":"SUMIFS(Sheet1!S71_OY1BudgetAmount,Sheet1!S71_SubMunicipalVoteNo,$AC:$AC,Sheet1!S71_A5CapexCode,$AD:$AD)","v":0},{"$f":"SUMIFS(Sheet1!S71_OY2BudgetAmount,Sheet1!S71_SubMunicipalVoteNo,$AC:$AC,Sheet1!S71_A5CapexCode,$AD:$AD)","v":0},null,null,null,null,null,null,null,null,null,null,null,null,null,null,null,null,125,"CE"]
["",null,{"$f":"SUMIFS(Sheet1!S71_PPPYearAmount,Sheet1!S71_SubMunicipalVoteNo,$AC:$AC,Sheet1!S71_A5CapexCode,$AD:$AD)","v":0},{"$f":"SUMIFS(Sheet1!S71_PPYearAmount,Sheet1!S71_SubMunicipalVoteNo,$AC:$AC,Sheet1!S71_A5CapexCode,$AD:$AD)","v":0},{"$f":"SUMIFS(Sheet1!S71_PYearAmount,Sheet1!S71_SubMunicipalVoteNo,$AC:$AC,Sheet1!S71_A5CapexCode,$AD:$AD)","v":0},{"$f":"SUMIFS(Sheet1!S71_OriginalBudAmnt,Sheet1!S71_SubMunicipalVoteNo,$AC:$AC,Sheet1!S71_A5CapexCode,$AD:$AD)","v":0},{"$f":"SUMIFS(Sheet1!S71_AdjustmentBudAmnt,Sheet1!S71_SubMunicipalVoteNo,$AC:$AC,Sheet1!S71_A5CapexCode,$AD:$AD)","v":0},{"$f":"SUMIFS(Sheet1!S71_AdjustmentBudAmnt,Sheet1!S71_SubMunicipalVoteNo,$AC:$AC,Sheet1!S71_A5CapexCode,$AD:$AD)","v":0},{"$f":"SUMIFS(Sheet1!CD:CD,Sheet1!S71_SubMunicipalVoteNo,$AC:$AC,Sheet1!S71_A5CapexCode,$AD:$AD)","v":0},{"$f":"SUMIFS(Sheet1!S71_ASBudgetAmount,Sheet1!S71_SubMunicipalVoteNo,$AC:$AC,Sheet1!S71_A5CapexCode,$AD:$AD)","v":0},{"$f":"SUMIFS(Sheet1!S71_OY1BudgetAmount,Sheet1!S71_SubMunicipalVoteNo,$AC:$AC,Sheet1!S71_A5CapexCode,$AD:$AD)","v":0},{"$f":"SUMIFS(Sheet1!S71_OY2BudgetAmount,Sheet1!S71_SubMunicipalVoteNo,$AC:$AC,Sheet1!S71_A5CapexCode,$AD:$AD)","v":0},null,null,null,null,null,null,null,null,null,null,null,null,null,null,null,null,126,"CE"]
["",null,{"$f":"SUMIFS(Sheet1!S71_PPPYearAmount,Sheet1!S71_SubMunicipalVoteNo,$AC:$AC,Sheet1!S71_A5CapexCode,$AD:$AD)","v":0},{"$f":"SUMIFS(Sheet1!S71_PPYearAmount,Sheet1!S71_SubMunicipalVoteNo,$AC:$AC,Sheet1!S71_A5CapexCode,$AD:$AD)","v":0},{"$f":"SUMIFS(Sheet1!S71_PYearAmount,Sheet1!S71_SubMunicipalVoteNo,$AC:$AC,Sheet1!S71_A5CapexCode,$AD:$AD)","v":0},{"$f":"SUMIFS(Sheet1!S71_OriginalBudAmnt,Sheet1!S71_SubMunicipalVoteNo,$AC:$AC,Sheet1!S71_A5CapexCode,$AD:$AD)","v":0},{"$f":"SUMIFS(Sheet1!S71_AdjustmentBudAmnt,Sheet1!S71_SubMunicipalVoteNo,$AC:$AC,Sheet1!S71_A5CapexCode,$AD:$AD)","v":0},{"$f":"SUMIFS(Sheet1!S71_AdjustmentBudAmnt,Sheet1!S71_SubMunicipalVoteNo,$AC:$AC,Sheet1!S71_A5CapexCode,$AD:$AD)","v":0},{"$f":"SUMIFS(Sheet1!CD:CD,Sheet1!S71_SubMunicipalVoteNo,$AC:$AC,Sheet1!S71_A5CapexCode,$AD:$AD)","v":0},{"$f":"SUMIFS(Sheet1!S71_ASBudgetAmount,Sheet1!S71_SubMunicipalVoteNo,$AC:$AC,Sheet1!S71_A5CapexCode,$AD:$AD)","v":0},{"$f":"SUMIFS(Sheet1!S71_OY1BudgetAmount,Sheet1!S71_SubMunicipalVoteNo,$AC:$AC,Sheet1!S71_A5CapexCode,$AD:$AD)","v":0},{"$f":"SUMIFS(Sheet1!S71_OY2BudgetAmount,Sheet1!S71_SubMunicipalVoteNo,$AC:$AC,Sheet1!S71_A5CapexCode,$AD:$AD)","v":0},null,null,null,null,null,null,null,null,null,null,null,null,null,null,null,null,127,"CE"]
[{"$f":"A135","v":""},null,{"$f":"SUMIFS(Sheet1!S71_PPPYearAmount,Sheet1!S71_SubMunicipalVoteNo,$AC:$AC,Sheet1!S71_A5CapexCode,$AD:$AD)","v":0},{"$f":"SUMIFS(Sheet1!S71_PPYearAmount,Sheet1!S71_SubMunicipalVoteNo,$AC:$AC,Sheet1!S71_A5CapexCode,$AD:$AD)","v":0},{"$f":"SUMIFS(Sheet1!S71_PYearAmount,Sheet1!S71_SubMunicipalVoteNo,$AC:$AC,Sheet1!S71_A5CapexCode,$AD:$AD)","v":0},{"$f":"SUMIFS(Sheet1!S71_OriginalBudAmnt,Sheet1!S71_SubMunicipalVoteNo,$AC:$AC,Sheet1!S71_A5CapexCode,$AD:$AD)","v":0},{"$f":"SUMIFS(Sheet1!S71_AdjustmentBudAmnt,Sheet1!S71_SubMunicipalVoteNo,$AC:$AC,Sheet1!S71_A5CapexCode,$AD:$AD)","v":0},{"$f":"SUMIFS(Sheet1!S71_AdjustmentBudAmnt,Sheet1!S71_SubMunicipalVoteNo,$AC:$AC,Sheet1!S71_A5CapexCode,$AD:$AD)","v":0},{"$f":"SUMIFS(Sheet1!CD:CD,Sheet1!S71_SubMunicipalVoteNo,$AC:$AC,Sheet1!S71_A5CapexCode,$AD:$AD)","v":0},{"$f":"SUMIFS(Sheet1!S71_ASBudgetAmount,Sheet1!S71_SubMunicipalVoteNo,$AC:$AC,Sheet1!S71_A5CapexCode,$AD:$AD)","v":0},{"$f":"SUMIFS(Sheet1!S71_OY1BudgetAmount,Sheet1!S71_SubMunicipalVoteNo,$AC:$AC,Sheet1!S71_A5CapexCode,$AD:$AD)","v":0},{"$f":"SUMIFS(Sheet1!S71_OY2BudgetAmount,Sheet1!S71_SubMunicipalVoteNo,$AC:$AC,Sheet1!S71_A5CapexCode,$AD:$AD)","v":0},null,null,null,null,null,null,null,null,null,null,null,null,null,null,null,null,128,"CE"]
["",null,{"$f":"SUMIFS(Sheet1!S71_PPPYearAmount,Sheet1!S71_SubMunicipalVoteNo,$AC:$AC,Sheet1!S71_A5CapexCode,$AD:$AD)","v":0},{"$f":"SUMIFS(Sheet1!S71_PPYearAmount,Sheet1!S71_SubMunicipalVoteNo,$AC:$AC,Sheet1!S71_A5CapexCode,$AD:$AD)","v":0},{"$f":"SUMIFS(Sheet1!S71_PYearAmount,Sheet1!S71_SubMunicipalVoteNo,$AC:$AC,Sheet1!S71_A5CapexCode,$AD:$AD)","v":0},{"$f":"SUMIFS(Sheet1!S71_OriginalBudAmnt,Sheet1!S71_SubMunicipalVoteNo,$AC:$AC,Sheet1!S71_A5CapexCode,$AD:$AD)","v":0},{"$f":"SUMIFS(Sheet1!S71_AdjustmentBudAmnt,Sheet1!S71_SubMunicipalVoteNo,$AC:$AC,Sheet1!S71_A5CapexCode,$AD:$AD)","v":0},{"$f":"SUMIFS(Sheet1!S71_AdjustmentBudAmnt,Sheet1!S71_SubMunicipalVoteNo,$AC:$AC,Sheet1!S71_A5CapexCode,$AD:$AD)","v":0},{"$f":"SUMIFS(Sheet1!CD:CD,Sheet1!S71_SubMunicipalVoteNo,$AC:$AC,Sheet1!S71_A5CapexCode,$AD:$AD)","v":0},{"$f":"SUMIFS(Sheet1!S71_ASBudgetAmount,Sheet1!S71_SubMunicipalVoteNo,$AC:$AC,Sheet1!S71_A5CapexCode,$AD:$AD)","v":0},{"$f":"SUMIFS(Sheet1!S71_OY1BudgetAmount,Sheet1!S71_SubMunicipalVoteNo,$AC:$AC,Sheet1!S71_A5CapexCode,$AD:$AD)","v":0},{"$f":"SUMIFS(Sheet1!S71_OY2BudgetAmount,Sheet1!S71_SubMunicipalVoteNo,$AC:$AC,Sheet1!S71_A5CapexCode,$AD:$AD)","v":0},null,null,null,null,null,null,null,null,null,null,null,null,null,null,null,null,129,"CE"]
["",null,{"$f":"SUMIFS(Sheet1!S71_PPPYearAmount,Sheet1!S71_SubMunicipalVoteNo,$AC:$AC,Sheet1!S71_A5CapexCode,$AD:$AD)","v":0},{"$f":"SUMIFS(Sheet1!S71_PPYearAmount,Sheet1!S71_SubMunicipalVoteNo,$AC:$AC,Sheet1!S71_A5CapexCode,$AD:$AD)","v":0},{"$f":"SUMIFS(Sheet1!S71_PYearAmount,Sheet1!S71_SubMunicipalVoteNo,$AC:$AC,Sheet1!S71_A5CapexCode,$AD:$AD)","v":0},{"$f":"SUMIFS(Sheet1!S71_OriginalBudAmnt,Sheet1!S71_SubMunicipalVoteNo,$AC:$AC,Sheet1!S71_A5CapexCode,$AD:$AD)","v":0},{"$f":"SUMIFS(Sheet1!S71_AdjustmentBudAmnt,Sheet1!S71_SubMunicipalVoteNo,$AC:$AC,Sheet1!S71_A5CapexCode,$AD:$AD)","v":0},{"$f":"SUMIFS(Sheet1!S71_AdjustmentBudAmnt,Sheet1!S71_SubMunicipalVoteNo,$AC:$AC,Sheet1!S71_A5CapexCode,$AD:$AD)","v":0},{"$f":"SUMIFS(Sheet1!CD:CD,Sheet1!S71_SubMunicipalVoteNo,$AC:$AC,Sheet1!S71_A5CapexCode,$AD:$AD)","v":0},{"$f":"SUMIFS(Sheet1!S71_ASBudgetAmount,Sheet1!S71_SubMunicipalVoteNo,$AC:$AC,Sheet1!S71_A5CapexCode,$AD:$AD)","v":0},{"$f":"SUMIFS(Sheet1!S71_OY1BudgetAmount,Sheet1!S71_SubMunicipalVoteNo,$AC:$AC,Sheet1!S71_A5CapexCode,$AD:$AD)","v":0},{"$f":"SUMIFS(Sheet1!S71_OY2BudgetAmount,Sheet1!S71_SubMunicipalVoteNo,$AC:$AC,Sheet1!S71_A5CapexCode,$AD:$AD)","v":0},null,null,null,null,null,null,null,null,null,null,null,null,null,null,null,null,1210,"CE"]
["Vote 13 - [NAME OF VOTE 13]",null,{"$f":"SUM(C308:C317)","v":0},0,0,0,0,0,0,0,0,0]
["",null,{"$f":"SUMIFS(Sheet1!S71_PPPYearAmount,Sheet1!S71_SubMunicipalVoteNo,$AC:$AC,Sheet1!S71_A5CapexCode,$AD:$AD)","v":0},{"$f":"SUMIFS(Sheet1!S71_PPYearAmount,Sheet1!S71_SubMunicipalVoteNo,$AC:$AC,Sheet1!S71_A5CapexCode,$AD:$AD)","v":0},{"$f":"SUMIFS(Sheet1!S71_PYearAmount,Sheet1!S71_SubMunicipalVoteNo,$AC:$AC,Sheet1!S71_A5CapexCode,$AD:$AD)","v":0},{"$f":"SUMIFS(Sheet1!S71_OriginalBudAmnt,Sheet1!S71_SubMunicipalVoteNo,$AC:$AC,Sheet1!S71_A5CapexCode,$AD:$AD)","v":0},{"$f":"SUMIFS(Sheet1!S71_AdjustmentBudAmnt,Sheet1!S71_SubMunicipalVoteNo,$AC:$AC,Sheet1!S71_A5CapexCode,$AD:$AD)","v":0},{"$f":"SUMIFS(Sheet1!S71_AdjustmentBudAmnt,Sheet1!S71_SubMunicipalVoteNo,$AC:$AC,Sheet1!S71_A5CapexCode,$AD:$AD)","v":0},{"$f":"SUMIFS(Sheet1!CD:CD,Sheet1!S71_SubMunicipalVoteNo,$AC:$AC,Sheet1!S71_A5CapexCode,$AD:$AD)","v":0},{"$f":"SUMIFS(Sheet1!S71_ASBudgetAmount,Sheet1!S71_SubMunicipalVoteNo,$AC:$AC,Sheet1!S71_A5CapexCode,$AD:$AD)","v":0},{"$f":"SUMIFS(Sheet1!S71_OY1BudgetAmount,Sheet1!S71_SubMunicipalVoteNo,$AC:$AC,Sheet1!S71_A5CapexCode,$AD:$AD)","v":0},{"$f":"SUMIFS(Sheet1!S71_OY2BudgetAmount,Sheet1!S71_SubMunicipalVoteNo,$AC:$AC,Sheet1!S71_A5CapexCode,$AD:$AD)","v":0},null,null,null,null,null,null,null,null,null,null,null,null,null,null,null,null,131,"CE"]
["",null,{"$f":"SUMIFS(Sheet1!S71_PPPYearAmount,Sheet1!S71_SubMunicipalVoteNo,$AC:$AC,Sheet1!S71_A5CapexCode,$AD:$AD)","v":0},{"$f":"SUMIFS(Sheet1!S71_PPYearAmount,Sheet1!S71_SubMunicipalVoteNo,$AC:$AC,Sheet1!S71_A5CapexCode,$AD:$AD)","v":0},{"$f":"SUMIFS(Sheet1!S71_PYearAmount,Sheet1!S71_SubMunicipalVoteNo,$AC:$AC,Sheet1!S71_A5CapexCode,$AD:$AD)","v":0},{"$f":"SUMIFS(Sheet1!S71_OriginalBudAmnt,Sheet1!S71_SubMunicipalVoteNo,$AC:$AC,Sheet1!S71_A5CapexCode,$AD:$AD)","v":0},{"$f":"SUMIFS(Sheet1!S71_AdjustmentBudAmnt,Sheet1!S71_SubMunicipalVoteNo,$AC:$AC,Sheet1!S71_A5CapexCode,$AD:$AD)","v":0},{"$f":"SUMIFS(Sheet1!S71_AdjustmentBudAmnt,Sheet1!S71_SubMunicipalVoteNo,$AC:$AC,Sheet1!S71_A5CapexCode,$AD:$AD)","v":0},{"$f":"SUMIFS(Sheet1!CD:CD,Sheet1!S71_SubMunicipalVoteNo,$AC:$AC,Sheet1!S71_A5CapexCode,$AD:$AD)","v":0},{"$f":"SUMIFS(Sheet1!S71_ASBudgetAmount,Sheet1!S71_SubMunicipalVoteNo,$AC:$AC,Sheet1!S71_A5CapexCode,$AD:$AD)","v":0},{"$f":"SUMIFS(Sheet1!S71_OY1BudgetAmount,Sheet1!S71_SubMunicipalVoteNo,$AC:$AC,Sheet1!S71_A5CapexCode,$AD:$AD)","v":0},{"$f":"SUMIFS(Sheet1!S71_OY2BudgetAmount,Sheet1!S71_SubMunicipalVoteNo,$AC:$AC,Sheet1!S71_A5CapexCode,$AD:$AD)","v":0},null,null,null,null,null,null,null,null,null,null,null,null,null,null,null,null,132,"CE"]
["",null,{"$f":"SUMIFS(Sheet1!S71_PPPYearAmount,Sheet1!S71_SubMunicipalVoteNo,$AC:$AC,Sheet1!S71_A5CapexCode,$AD:$AD)","v":0},{"$f":"SUMIFS(Sheet1!S71_PPYearAmount,Sheet1!S71_SubMunicipalVoteNo,$AC:$AC,Sheet1!S71_A5CapexCode,$AD:$AD)","v":0},{"$f":"SUMIFS(Sheet1!S71_PYearAmount,Sheet1!S71_SubMunicipalVoteNo,$AC:$AC,Sheet1!S71_A5CapexCode,$AD:$AD)","v":0},{"$f":"SUMIFS(Sheet1!S71_OriginalBudAmnt,Sheet1!S71_SubMunicipalVoteNo,$AC:$AC,Sheet1!S71_A5CapexCode,$AD:$AD)","v":0},{"$f":"SUMIFS(Sheet1!S71_AdjustmentBudAmnt,Sheet1!S71_SubMunicipalVoteNo,$AC:$AC,Sheet1!S71_A5CapexCode,$AD:$AD)","v":0},{"$f":"SUMIFS(Sheet1!S71_AdjustmentBudAmnt,Sheet1!S71_SubMunicipalVoteNo,$AC:$AC,Sheet1!S71_A5CapexCode,$AD:$AD)","v":0},{"$f":"SUMIFS(Sheet1!CD:CD,Sheet1!S71_SubMunicipalVoteNo,$AC:$AC,Sheet1!S71_A5CapexCode,$AD:$AD)","v":0},{"$f":"SUMIFS(Sheet1!S71_ASBudgetAmount,Sheet1!S71_SubMunicipalVoteNo,$AC:$AC,Sheet1!S71_A5CapexCode,$AD:$AD)","v":0},{"$f":"SUMIFS(Sheet1!S71_OY1BudgetAmount,Sheet1!S71_SubMunicipalVoteNo,$AC:$AC,Sheet1!S71_A5CapexCode,$AD:$AD)","v":0},{"$f":"SUMIFS(Sheet1!S71_OY2BudgetAmount,Sheet1!S71_SubMunicipalVoteNo,$AC:$AC,Sheet1!S71_A5CapexCode,$AD:$AD)","v":0},null,null,null,null,null,null,null,null,null,null,null,null,null,null,null,null,133,"CE"]
["",null,{"$f":"SUMIFS(Sheet1!S71_PPPYearAmount,Sheet1!S71_SubMunicipalVoteNo,$AC:$AC,Sheet1!S71_A5CapexCode,$AD:$AD)","v":0},{"$f":"SUMIFS(Sheet1!S71_PPYearAmount,Sheet1!S71_SubMunicipalVoteNo,$AC:$AC,Sheet1!S71_A5CapexCode,$AD:$AD)","v":0},{"$f":"SUMIFS(Sheet1!S71_PYearAmount,Sheet1!S71_SubMunicipalVoteNo,$AC:$AC,Sheet1!S71_A5CapexCode,$AD:$AD)","v":0},{"$f":"SUMIFS(Sheet1!S71_OriginalBudAmnt,Sheet1!S71_SubMunicipalVoteNo,$AC:$AC,Sheet1!S71_A5CapexCode,$AD:$AD)","v":0},{"$f":"SUMIFS(Sheet1!S71_AdjustmentBudAmnt,Sheet1!S71_SubMunicipalVoteNo,$AC:$AC,Sheet1!S71_A5CapexCode,$AD:$AD)","v":0},{"$f":"SUMIFS(Sheet1!S71_AdjustmentBudAmnt,Sheet1!S71_SubMunicipalVoteNo,$AC:$AC,Sheet1!S71_A5CapexCode,$AD:$AD)","v":0},{"$f":"SUMIFS(Sheet1!CD:CD,Sheet1!S71_SubMunicipalVoteNo,$AC:$AC,Sheet1!S71_A5CapexCode,$AD:$AD)","v":0},{"$f":"SUMIFS(Sheet1!S71_ASBudgetAmount,Sheet1!S71_SubMunicipalVoteNo,$AC:$AC,Sheet1!S71_A5CapexCode,$AD:$AD)","v":0},{"$f":"SUMIFS(Sheet1!S71_OY1BudgetAmount,Sheet1!S71_SubMunicipalVoteNo,$AC:$AC,Sheet1!S71_A5CapexCode,$AD:$AD)","v":0},{"$f":"SUMIFS(Sheet1!S71_OY2BudgetAmount,Sheet1!S71_SubMunicipalVoteNo,$AC:$AC,Sheet1!S71_A5CapexCode,$AD:$AD)","v":0},null,null,null,null,null,null,null,null,null,null,null,null,null,null,null,null,134,"CE"]
["",null,{"$f":"SUMIFS(Sheet1!S71_PPPYearAmount,Sheet1!S71_SubMunicipalVoteNo,$AC:$AC,Sheet1!S71_A5CapexCode,$AD:$AD)","v":0},{"$f":"SUMIFS(Sheet1!S71_PPYearAmount,Sheet1!S71_SubMunicipalVoteNo,$AC:$AC,Sheet1!S71_A5CapexCode,$AD:$AD)","v":0},{"$f":"SUMIFS(Sheet1!S71_PYearAmount,Sheet1!S71_SubMunicipalVoteNo,$AC:$AC,Sheet1!S71_A5CapexCode,$AD:$AD)","v":0},{"$f":"SUMIFS(Sheet1!S71_OriginalBudAmnt,Sheet1!S71_SubMunicipalVoteNo,$AC:$AC,Sheet1!S71_A5CapexCode,$AD:$AD)","v":0},{"$f":"SUMIFS(Sheet1!S71_AdjustmentBudAmnt,Sheet1!S71_SubMunicipalVoteNo,$AC:$AC,Sheet1!S71_A5CapexCode,$AD:$AD)","v":0},{"$f":"SUMIFS(Sheet1!S71_AdjustmentBudAmnt,Sheet1!S71_SubMunicipalVoteNo,$AC:$AC,Sheet1!S71_A5CapexCode,$AD:$AD)","v":0},{"$f":"SUMIFS(Sheet1!CD:CD,Sheet1!S71_SubMunicipalVoteNo,$AC:$AC,Sheet1!S71_A5CapexCode,$AD:$AD)","v":0},{"$f":"SUMIFS(Sheet1!S71_ASBudgetAmount,Sheet1!S71_SubMunicipalVoteNo,$AC:$AC,Sheet1!S71_A5CapexCode,$AD:$AD)","v":0},{"$f":"SUMIFS(Sheet1!S71_OY1BudgetAmount,Sheet1!S71_SubMunicipalVoteNo,$AC:$AC,Sheet1!S71_A5CapexCode,$AD:$AD)","v":0},{"$f":"SUMIFS(Sheet1!S71_OY2BudgetAmount,Sheet1!S71_SubMunicipalVoteNo,$AC:$AC,Sheet1!S71_A5CapexCode,$AD:$AD)","v":0},null,null,null,null,null,null,null,null,null,null,null,null,null,null,null,null,135,"CE"]
["",null,{"$f":"SUMIFS(Sheet1!S71_PPPYearAmount,Sheet1!S71_SubMunicipalVoteNo,$AC:$AC,Sheet1!S71_A5CapexCode,$AD:$AD)","v":0},{"$f":"SUMIFS(Sheet1!S71_PPYearAmount,Sheet1!S71_SubMunicipalVoteNo,$AC:$AC,Sheet1!S71_A5CapexCode,$AD:$AD)","v":0},{"$f":"SUMIFS(Sheet1!S71_PYearAmount,Sheet1!S71_SubMunicipalVoteNo,$AC:$AC,Sheet1!S71_A5CapexCode,$AD:$AD)","v":0},{"$f":"SUMIFS(Sheet1!S71_OriginalBudAmnt,Sheet1!S71_SubMunicipalVoteNo,$AC:$AC,Sheet1!S71_A5CapexCode,$AD:$AD)","v":0},{"$f":"SUMIFS(Sheet1!S71_AdjustmentBudAmnt,Sheet1!S71_SubMunicipalVoteNo,$AC:$AC,Sheet1!S71_A5CapexCode,$AD:$AD)","v":0},{"$f":"SUMIFS(Sheet1!S71_AdjustmentBudAmnt,Sheet1!S71_SubMunicipalVoteNo,$AC:$AC,Sheet1!S71_A5CapexCode,$AD:$AD)","v":0},{"$f":"SUMIFS(Sheet1!CD:CD,Sheet1!S71_SubMunicipalVoteNo,$AC:$AC,Sheet1!S71_A5CapexCode,$AD:$AD)","v":0},{"$f":"SUMIFS(Sheet1!S71_ASBudgetAmount,Sheet1!S71_SubMunicipalVoteNo,$AC:$AC,Sheet1!S71_A5CapexCode,$AD:$AD)","v":0},{"$f":"SUMIFS(Sheet1!S71_OY1BudgetAmount,Sheet1!S71_SubMunicipalVoteNo,$AC:$AC,Sheet1!S71_A5CapexCode,$AD:$AD)","v":0},{"$f":"SUMIFS(Sheet1!S71_OY2BudgetAmount,Sheet1!S71_SubMunicipalVoteNo,$AC:$AC,Sheet1!S71_A5CapexCode,$AD:$AD)","v":0},null,null,null,null,null,null,null,null,null,null,null,null,null,null,null,null,136,"CE"]
["",null,{"$f":"SUMIFS(Sheet1!S71_PPPYearAmount,Sheet1!S71_SubMunicipalVoteNo,$AC:$AC,Sheet1!S71_A5CapexCode,$AD:$AD)","v":0},{"$f":"SUMIFS(Sheet1!S71_PPYearAmount,Sheet1!S71_SubMunicipalVoteNo,$AC:$AC,Sheet1!S71_A5CapexCode,$AD:$AD)","v":0},{"$f":"SUMIFS(Sheet1!S71_PYearAmount,Sheet1!S71_SubMunicipalVoteNo,$AC:$AC,Sheet1!S71_A5CapexCode,$AD:$AD)","v":0},{"$f":"SUMIFS(Sheet1!S71_OriginalBudAmnt,Sheet1!S71_SubMunicipalVoteNo,$AC:$AC,Sheet1!S71_A5CapexCode,$AD:$AD)","v":0},{"$f":"SUMIFS(Sheet1!S71_AdjustmentBudAmnt,Sheet1!S71_SubMunicipalVoteNo,$AC:$AC,Sheet1!S71_A5CapexCode,$AD:$AD)","v":0},{"$f":"SUMIFS(Sheet1!S71_AdjustmentBudAmnt,Sheet1!S71_SubMunicipalVoteNo,$AC:$AC,Sheet1!S71_A5CapexCode,$AD:$AD)","v":0},{"$f":"SUMIFS(Sheet1!CD:CD,Sheet1!S71_SubMunicipalVoteNo,$AC:$AC,Sheet1!S71_A5CapexCode,$AD:$AD)","v":0},{"$f":"SUMIFS(Sheet1!S71_ASBudgetAmount,Sheet1!S71_SubMunicipalVoteNo,$AC:$AC,Sheet1!S71_A5CapexCode,$AD:$AD)","v":0},{"$f":"SUMIFS(Sheet1!S71_OY1BudgetAmount,Sheet1!S71_SubMunicipalVoteNo,$AC:$AC,Sheet1!S71_A5CapexCode,$AD:$AD)","v":0},{"$f":"SUMIFS(Sheet1!S71_OY2BudgetAmount,Sheet1!S71_SubMunicipalVoteNo,$AC:$AC,Sheet1!S71_A5CapexCode,$AD:$AD)","v":0},null,null,null,null,null,null,null,null,null,null,null,null,null,null,null,null,137,"CE"]
["",null,{"$f":"SUMIFS(Sheet1!S71_PPPYearAmount,Sheet1!S71_SubMunicipalVoteNo,$AC:$AC,Sheet1!S71_A5CapexCode,$AD:$AD)","v":0},{"$f":"SUMIFS(Sheet1!S71_PPYearAmount,Sheet1!S71_SubMunicipalVoteNo,$AC:$AC,Sheet1!S71_A5CapexCode,$AD:$AD)","v":0},{"$f":"SUMIFS(Sheet1!S71_PYearAmount,Sheet1!S71_SubMunicipalVoteNo,$AC:$AC,Sheet1!S71_A5CapexCode,$AD:$AD)","v":0},{"$f":"SUMIFS(Sheet1!S71_OriginalBudAmnt,Sheet1!S71_SubMunicipalVoteNo,$AC:$AC,Sheet1!S71_A5CapexCode,$AD:$AD)","v":0},{"$f":"SUMIFS(Sheet1!S71_AdjustmentBudAmnt,Sheet1!S71_SubMunicipalVoteNo,$AC:$AC,Sheet1!S71_A5CapexCode,$AD:$AD)","v":0},{"$f":"SUMIFS(Sheet1!S71_AdjustmentBudAmnt,Sheet1!S71_SubMunicipalVoteNo,$AC:$AC,Sheet1!S71_A5CapexCode,$AD:$AD)","v":0},{"$f":"SUMIFS(Sheet1!CD:CD,Sheet1!S71_SubMunicipalVoteNo,$AC:$AC,Sheet1!S71_A5CapexCode,$AD:$AD)","v":0},{"$f":"SUMIFS(Sheet1!S71_ASBudgetAmount,Sheet1!S71_SubMunicipalVoteNo,$AC:$AC,Sheet1!S71_A5CapexCode,$AD:$AD)","v":0},{"$f":"SUMIFS(Sheet1!S71_OY1BudgetAmount,Sheet1!S71_SubMunicipalVoteNo,$AC:$AC,Sheet1!S71_A5CapexCode,$AD:$AD)","v":0},{"$f":"SUMIFS(Sheet1!S71_OY2BudgetAmount,Sheet1!S71_SubMunicipalVoteNo,$AC:$AC,Sheet1!S71_A5CapexCode,$AD:$AD)","v":0},null,null,null,null,null,null,null,null,null,null,null,null,null,null,null,null,138,"CE"]
["",null,{"$f":"SUMIFS(Sheet1!S71_PPPYearAmount,Sheet1!S71_SubMunicipalVoteNo,$AC:$AC,Sheet1!S71_A5CapexCode,$AD:$AD)","v":0},{"$f":"SUMIFS(Sheet1!S71_PPYearAmount,Sheet1!S71_SubMunicipalVoteNo,$AC:$AC,Sheet1!S71_A5CapexCode,$AD:$AD)","v":0},{"$f":"SUMIFS(Sheet1!S71_PYearAmount,Sheet1!S71_SubMunicipalVoteNo,$AC:$AC,Sheet1!S71_A5CapexCode,$AD:$AD)","v":0},{"$f":"SUMIFS(Sheet1!S71_OriginalBudAmnt,Sheet1!S71_SubMunicipalVoteNo,$AC:$AC,Sheet1!S71_A5CapexCode,$AD:$AD)","v":0},{"$f":"SUMIFS(Sheet1!S71_AdjustmentBudAmnt,Sheet1!S71_SubMunicipalVoteNo,$AC:$AC,Sheet1!S71_A5CapexCode,$AD:$AD)","v":0},{"$f":"SUMIFS(Sheet1!S71_AdjustmentBudAmnt,Sheet1!S71_SubMunicipalVoteNo,$AC:$AC,Sheet1!S71_A5CapexCode,$AD:$AD)","v":0},{"$f":"SUMIFS(Sheet1!CD:CD,Sheet1!S71_SubMunicipalVoteNo,$AC:$AC,Sheet1!S71_A5CapexCode,$AD:$AD)","v":0},{"$f":"SUMIFS(Sheet1!S71_ASBudgetAmount,Sheet1!S71_SubMunicipalVoteNo,$AC:$AC,Sheet1!S71_A5CapexCode,$AD:$AD)","v":0},{"$f":"SUMIFS(Sheet1!S71_OY1BudgetAmount,Sheet1!S71_SubMunicipalVoteNo,$AC:$AC,Sheet1!S71_A5CapexCode,$AD:$AD)","v":0},{"$f":"SUMIFS(Sheet1!S71_OY2BudgetAmount,Sheet1!S71_SubMunicipalVoteNo,$AC:$AC,Sheet1!S71_A5CapexCode,$AD:$AD)","v":0},null,null,null,null,null,null,null,null,null,null,null,null,null,null,null,null,139,"CE"]
["",null,{"$f":"SUMIFS(Sheet1!S71_PPPYearAmount,Sheet1!S71_SubMunicipalVoteNo,$AC:$AC,Sheet1!S71_A5CapexCode,$AD:$AD)","v":0},{"$f":"SUMIFS(Sheet1!S71_PPYearAmount,Sheet1!S71_SubMunicipalVoteNo,$AC:$AC,Sheet1!S71_A5CapexCode,$AD:$AD)","v":0},{"$f":"SUMIFS(Sheet1!S71_PYearAmount,Sheet1!S71_SubMunicipalVoteNo,$AC:$AC,Sheet1!S71_A5CapexCode,$AD:$AD)","v":0},{"$f":"SUMIFS(Sheet1!S71_OriginalBudAmnt,Sheet1!S71_SubMunicipalVoteNo,$AC:$AC,Sheet1!S71_A5CapexCode,$AD:$AD)","v":0},{"$f":"SUMIFS(Sheet1!S71_AdjustmentBudAmnt,Sheet1!S71_SubMunicipalVoteNo,$AC:$AC,Sheet1!S71_A5CapexCode,$AD:$AD)","v":0},{"$f":"SUMIFS(Sheet1!S71_AdjustmentBudAmnt,Sheet1!S71_SubMunicipalVoteNo,$AC:$AC,Sheet1!S71_A5CapexCode,$AD:$AD)","v":0},{"$f":"SUMIFS(Sheet1!CD:CD,Sheet1!S71_SubMunicipalVoteNo,$AC:$AC,Sheet1!S71_A5CapexCode,$AD:$AD)","v":0},{"$f":"SUMIFS(Sheet1!S71_ASBudgetAmount,Sheet1!S71_SubMunicipalVoteNo,$AC:$AC,Sheet1!S71_A5CapexCode,$AD:$AD)","v":0},{"$f":"SUMIFS(Sheet1!S71_OY1BudgetAmount,Sheet1!S71_SubMunicipalVoteNo,$AC:$AC,Sheet1!S71_A5CapexCode,$AD:$AD)","v":0},{"$f":"SUMIFS(Sheet1!S71_OY2BudgetAmount,Sheet1!S71_SubMunicipalVoteNo,$AC:$AC,Sheet1!S71_A5CapexCode,$AD:$AD)","v":0},null,null,null,null,null,null,null,null,null,null,null,null,null,null,null,null,1310,"CE"]
["Vote 14 - [NAME OF VOTE 14]",null,{"$f":"SUM(C319:C328)","v":0},0,0,0,0,0,0,0,0,0]
["",null,{"$f":"SUMIFS(Sheet1!S71_PPPYearAmount,Sheet1!S71_SubMunicipalVoteNo,$AC:$AC,Sheet1!S71_A5CapexCode,$AD:$AD)","v":0},{"$f":"SUMIFS(Sheet1!S71_PPYearAmount,Sheet1!S71_SubMunicipalVoteNo,$AC:$AC,Sheet1!S71_A5CapexCode,$AD:$AD)","v":0},{"$f":"SUMIFS(Sheet1!S71_PYearAmount,Sheet1!S71_SubMunicipalVoteNo,$AC:$AC,Sheet1!S71_A5CapexCode,$AD:$AD)","v":0},{"$f":"SUMIFS(Sheet1!S71_OriginalBudAmnt,Sheet1!S71_SubMunicipalVoteNo,$AC:$AC,Sheet1!S71_A5CapexCode,$AD:$AD)","v":0},{"$f":"SUMIFS(Sheet1!S71_AdjustmentBudAmnt,Sheet1!S71_SubMunicipalVoteNo,$AC:$AC,Sheet1!S71_A5CapexCode,$AD:$AD)","v":0},{"$f":"SUMIFS(Sheet1!S71_AdjustmentBudAmnt,Sheet1!S71_SubMunicipalVoteNo,$AC:$AC,Sheet1!S71_A5CapexCode,$AD:$AD)","v":0},{"$f":"SUMIFS(Sheet1!CD:CD,Sheet1!S71_SubMunicipalVoteNo,$AC:$AC,Sheet1!S71_A5CapexCode,$AD:$AD)","v":0},{"$f":"SUMIFS(Sheet1!S71_ASBudgetAmount,Sheet1!S71_SubMunicipalVoteNo,$AC:$AC,Sheet1!S71_A5CapexCode,$AD:$AD)","v":0},{"$f":"SUMIFS(Sheet1!S71_OY1BudgetAmount,Sheet1!S71_SubMunicipalVoteNo,$AC:$AC,Sheet1!S71_A5CapexCode,$AD:$AD)","v":0},{"$f":"SUMIFS(Sheet1!S71_OY2BudgetAmount,Sheet1!S71_SubMunicipalVoteNo,$AC:$AC,Sheet1!S71_A5CapexCode,$AD:$AD)","v":0},null,null,null,null,null,null,null,null,null,null,null,null,null,null,null,null,141,"CE"]
["",null,{"$f":"SUMIFS(Sheet1!S71_PPPYearAmount,Sheet1!S71_SubMunicipalVoteNo,$AC:$AC,Sheet1!S71_A5CapexCode,$AD:$AD)","v":0},{"$f":"SUMIFS(Sheet1!S71_PPYearAmount,Sheet1!S71_SubMunicipalVoteNo,$AC:$AC,Sheet1!S71_A5CapexCode,$AD:$AD)","v":0},{"$f":"SUMIFS(Sheet1!S71_PYearAmount,Sheet1!S71_SubMunicipalVoteNo,$AC:$AC,Sheet1!S71_A5CapexCode,$AD:$AD)","v":0},{"$f":"SUMIFS(Sheet1!S71_OriginalBudAmnt,Sheet1!S71_SubMunicipalVoteNo,$AC:$AC,Sheet1!S71_A5CapexCode,$AD:$AD)","v":0},{"$f":"SUMIFS(Sheet1!S71_AdjustmentBudAmnt,Sheet1!S71_SubMunicipalVoteNo,$AC:$AC,Sheet1!S71_A5CapexCode,$AD:$AD)","v":0},{"$f":"SUMIFS(Sheet1!S71_AdjustmentBudAmnt,Sheet1!S71_SubMunicipalVoteNo,$AC:$AC,Sheet1!S71_A5CapexCode,$AD:$AD)","v":0},{"$f":"SUMIFS(Sheet1!CD:CD,Sheet1!S71_SubMunicipalVoteNo,$AC:$AC,Sheet1!S71_A5CapexCode,$AD:$AD)","v":0},{"$f":"SUMIFS(Sheet1!S71_ASBudgetAmount,Sheet1!S71_SubMunicipalVoteNo,$AC:$AC,Sheet1!S71_A5CapexCode,$AD:$AD)","v":0},{"$f":"SUMIFS(Sheet1!S71_OY1BudgetAmount,Sheet1!S71_SubMunicipalVoteNo,$AC:$AC,Sheet1!S71_A5CapexCode,$AD:$AD)","v":0},{"$f":"SUMIFS(Sheet1!S71_OY2BudgetAmount,Sheet1!S71_SubMunicipalVoteNo,$AC:$AC,Sheet1!S71_A5CapexCode,$AD:$AD)","v":0},null,null,null,null,null,null,null,null,null,null,null,null,null,null,null,null,142,"CE"]
["",null,{"$f":"SUMIFS(Sheet1!S71_PPPYearAmount,Sheet1!S71_SubMunicipalVoteNo,$AC:$AC,Sheet1!S71_A5CapexCode,$AD:$AD)","v":0},{"$f":"SUMIFS(Sheet1!S71_PPYearAmount,Sheet1!S71_SubMunicipalVoteNo,$AC:$AC,Sheet1!S71_A5CapexCode,$AD:$AD)","v":0},{"$f":"SUMIFS(Sheet1!S71_PYearAmount,Sheet1!S71_SubMunicipalVoteNo,$AC:$AC,Sheet1!S71_A5CapexCode,$AD:$AD)","v":0},{"$f":"SUMIFS(Sheet1!S71_OriginalBudAmnt,Sheet1!S71_SubMunicipalVoteNo,$AC:$AC,Sheet1!S71_A5CapexCode,$AD:$AD)","v":0},{"$f":"SUMIFS(Sheet1!S71_AdjustmentBudAmnt,Sheet1!S71_SubMunicipalVoteNo,$AC:$AC,Sheet1!S71_A5CapexCode,$AD:$AD)","v":0},{"$f":"SUMIFS(Sheet1!S71_AdjustmentBudAmnt,Sheet1!S71_SubMunicipalVoteNo,$AC:$AC,Sheet1!S71_A5CapexCode,$AD:$AD)","v":0},{"$f":"SUMIFS(Sheet1!CD:CD,Sheet1!S71_SubMunicipalVoteNo,$AC:$AC,Sheet1!S71_A5CapexCode,$AD:$AD)","v":0},{"$f":"SUMIFS(Sheet1!S71_ASBudgetAmount,Sheet1!S71_SubMunicipalVoteNo,$AC:$AC,Sheet1!S71_A5CapexCode,$AD:$AD)","v":0},{"$f":"SUMIFS(Sheet1!S71_OY1BudgetAmount,Sheet1!S71_SubMunicipalVoteNo,$AC:$AC,Sheet1!S71_A5CapexCode,$AD:$AD)","v":0},{"$f":"SUMIFS(Sheet1!S71_OY2BudgetAmount,Sheet1!S71_SubMunicipalVoteNo,$AC:$AC,Sheet1!S71_A5CapexCode,$AD:$AD)","v":0},null,null,null,null,null,null,null,null,null,null,null,null,null,null,null,null,143,"CE"]
["",null,{"$f":"SUMIFS(Sheet1!S71_PPPYearAmount,Sheet1!S71_SubMunicipalVoteNo,$AC:$AC,Sheet1!S71_A5CapexCode,$AD:$AD)","v":0},{"$f":"SUMIFS(Sheet1!S71_PPYearAmount,Sheet1!S71_SubMunicipalVoteNo,$AC:$AC,Sheet1!S71_A5CapexCode,$AD:$AD)","v":0},{"$f":"SUMIFS(Sheet1!S71_PYearAmount,Sheet1!S71_SubMunicipalVoteNo,$AC:$AC,Sheet1!S71_A5CapexCode,$AD:$AD)","v":0},{"$f":"SUMIFS(Sheet1!S71_OriginalBudAmnt,Sheet1!S71_SubMunicipalVoteNo,$AC:$AC,Sheet1!S71_A5CapexCode,$AD:$AD)","v":0},{"$f":"SUMIFS(Sheet1!S71_AdjustmentBudAmnt,Sheet1!S71_SubMunicipalVoteNo,$AC:$AC,Sheet1!S71_A5CapexCode,$AD:$AD)","v":0},{"$f":"SUMIFS(Sheet1!S71_AdjustmentBudAmnt,Sheet1!S71_SubMunicipalVoteNo,$AC:$AC,Sheet1!S71_A5CapexCode,$AD:$AD)","v":0},{"$f":"SUMIFS(Sheet1!CD:CD,Sheet1!S71_SubMunicipalVoteNo,$AC:$AC,Sheet1!S71_A5CapexCode,$AD:$AD)","v":0},{"$f":"SUMIFS(Sheet1!S71_ASBudgetAmount,Sheet1!S71_SubMunicipalVoteNo,$AC:$AC,Sheet1!S71_A5CapexCode,$AD:$AD)","v":0},{"$f":"SUMIFS(Sheet1!S71_OY1BudgetAmount,Sheet1!S71_SubMunicipalVoteNo,$AC:$AC,Sheet1!S71_A5CapexCode,$AD:$AD)","v":0},{"$f":"SUMIFS(Sheet1!S71_OY2BudgetAmount,Sheet1!S71_SubMunicipalVoteNo,$AC:$AC,Sheet1!S71_A5CapexCode,$AD:$AD)","v":0},null,null,null,null,null,null,null,null,null,null,null,null,null,null,null,null,144,"CE"]
["",null,{"$f":"SUMIFS(Sheet1!S71_PPPYearAmount,Sheet1!S71_SubMunicipalVoteNo,$AC:$AC,Sheet1!S71_A5CapexCode,$AD:$AD)","v":0},{"$f":"SUMIFS(Sheet1!S71_PPYearAmount,Sheet1!S71_SubMunicipalVoteNo,$AC:$AC,Sheet1!S71_A5CapexCode,$AD:$AD)","v":0},{"$f":"SUMIFS(Sheet1!S71_PYearAmount,Sheet1!S71_SubMunicipalVoteNo,$AC:$AC,Sheet1!S71_A5CapexCode,$AD:$AD)","v":0},{"$f":"SUMIFS(Sheet1!S71_OriginalBudAmnt,Sheet1!S71_SubMunicipalVoteNo,$AC:$AC,Sheet1!S71_A5CapexCode,$AD:$AD)","v":0},{"$f":"SUMIFS(Sheet1!S71_AdjustmentBudAmnt,Sheet1!S71_SubMunicipalVoteNo,$AC:$AC,Sheet1!S71_A5CapexCode,$AD:$AD)","v":0},{"$f":"SUMIFS(Sheet1!S71_AdjustmentBudAmnt,Sheet1!S71_SubMunicipalVoteNo,$AC:$AC,Sheet1!S71_A5CapexCode,$AD:$AD)","v":0},{"$f":"SUMIFS(Sheet1!CD:CD,Sheet1!S71_SubMunicipalVoteNo,$AC:$AC,Sheet1!S71_A5CapexCode,$AD:$AD)","v":0},{"$f":"SUMIFS(Sheet1!S71_ASBudgetAmount,Sheet1!S71_SubMunicipalVoteNo,$AC:$AC,Sheet1!S71_A5CapexCode,$AD:$AD)","v":0},{"$f":"SUMIFS(Sheet1!S71_OY1BudgetAmount,Sheet1!S71_SubMunicipalVoteNo,$AC:$AC,Sheet1!S71_A5CapexCode,$AD:$AD)","v":0},{"$f":"SUMIFS(Sheet1!S71_OY2BudgetAmount,Sheet1!S71_SubMunicipalVoteNo,$AC:$AC,Sheet1!S71_A5CapexCode,$AD:$AD)","v":0},null,null,null,null,null,null,null,null,null,null,null,null,null,null,null,null,145,"CE"]
["",null,{"$f":"SUMIFS(Sheet1!S71_PPPYearAmount,Sheet1!S71_SubMunicipalVoteNo,$AC:$AC,Sheet1!S71_A5CapexCode,$AD:$AD)","v":0},{"$f":"SUMIFS(Sheet1!S71_PPYearAmount,Sheet1!S71_SubMunicipalVoteNo,$AC:$AC,Sheet1!S71_A5CapexCode,$AD:$AD)","v":0},{"$f":"SUMIFS(Sheet1!S71_PYearAmount,Sheet1!S71_SubMunicipalVoteNo,$AC:$AC,Sheet1!S71_A5CapexCode,$AD:$AD)","v":0},{"$f":"SUMIFS(Sheet1!S71_OriginalBudAmnt,Sheet1!S71_SubMunicipalVoteNo,$AC:$AC,Sheet1!S71_A5CapexCode,$AD:$AD)","v":0},{"$f":"SUMIFS(Sheet1!S71_AdjustmentBudAmnt,Sheet1!S71_SubMunicipalVoteNo,$AC:$AC,Sheet1!S71_A5CapexCode,$AD:$AD)","v":0},{"$f":"SUMIFS(Sheet1!S71_AdjustmentBudAmnt,Sheet1!S71_SubMunicipalVoteNo,$AC:$AC,Sheet1!S71_A5CapexCode,$AD:$AD)","v":0},{"$f":"SUMIFS(Sheet1!CD:CD,Sheet1!S71_SubMunicipalVoteNo,$AC:$AC,Sheet1!S71_A5CapexCode,$AD:$AD)","v":0},{"$f":"SUMIFS(Sheet1!S71_ASBudgetAmount,Sheet1!S71_SubMunicipalVoteNo,$AC:$AC,Sheet1!S71_A5CapexCode,$AD:$AD)","v":0},{"$f":"SUMIFS(Sheet1!S71_OY1BudgetAmount,Sheet1!S71_SubMunicipalVoteNo,$AC:$AC,Sheet1!S71_A5CapexCode,$AD:$AD)","v":0},{"$f":"SUMIFS(Sheet1!S71_OY2BudgetAmount,Sheet1!S71_SubMunicipalVoteNo,$AC:$AC,Sheet1!S71_A5CapexCode,$AD:$AD)","v":0},null,null,null,null,null,null,null,null,null,null,null,null,null,null,null,null,146,"CE"]
["",null,{"$f":"SUMIFS(Sheet1!S71_PPPYearAmount,Sheet1!S71_SubMunicipalVoteNo,$AC:$AC,Sheet1!S71_A5CapexCode,$AD:$AD)","v":0},{"$f":"SUMIFS(Sheet1!S71_PPYearAmount,Sheet1!S71_SubMunicipalVoteNo,$AC:$AC,Sheet1!S71_A5CapexCode,$AD:$AD)","v":0},{"$f":"SUMIFS(Sheet1!S71_PYearAmount,Sheet1!S71_SubMunicipalVoteNo,$AC:$AC,Sheet1!S71_A5CapexCode,$AD:$AD)","v":0},{"$f":"SUMIFS(Sheet1!S71_OriginalBudAmnt,Sheet1!S71_SubMunicipalVoteNo,$AC:$AC,Sheet1!S71_A5CapexCode,$AD:$AD)","v":0},{"$f":"SUMIFS(Sheet1!S71_AdjustmentBudAmnt,Sheet1!S71_SubMunicipalVoteNo,$AC:$AC,Sheet1!S71_A5CapexCode,$AD:$AD)","v":0},{"$f":"SUMIFS(Sheet1!S71_AdjustmentBudAmnt,Sheet1!S71_SubMunicipalVoteNo,$AC:$AC,Sheet1!S71_A5CapexCode,$AD:$AD)","v":0},{"$f":"SUMIFS(Sheet1!CD:CD,Sheet1!S71_SubMunicipalVoteNo,$AC:$AC,Sheet1!S71_A5CapexCode,$AD:$AD)","v":0},{"$f":"SUMIFS(Sheet1!S71_ASBudgetAmount,Sheet1!S71_SubMunicipalVoteNo,$AC:$AC,Sheet1!S71_A5CapexCode,$AD:$AD)","v":0},{"$f":"SUMIFS(Sheet1!S71_OY1BudgetAmount,Sheet1!S71_SubMunicipalVoteNo,$AC:$AC,Sheet1!S71_A5CapexCode,$AD:$AD)","v":0},{"$f":"SUMIFS(Sheet1!S71_OY2BudgetAmount,Sheet1!S71_SubMunicipalVoteNo,$AC:$AC,Sheet1!S71_A5CapexCode,$AD:$AD)","v":0},null,null,null,null,null,null,null,null,null,null,null,null,null,null,null,null,147,"CE"]
["",null,{"$f":"SUMIFS(Sheet1!S71_PPPYearAmount,Sheet1!S71_SubMunicipalVoteNo,$AC:$AC,Sheet1!S71_A5CapexCode,$AD:$AD)","v":0},{"$f":"SUMIFS(Sheet1!S71_PPYearAmount,Sheet1!S71_SubMunicipalVoteNo,$AC:$AC,Sheet1!S71_A5CapexCode,$AD:$AD)","v":0},{"$f":"SUMIFS(Sheet1!S71_PYearAmount,Sheet1!S71_SubMunicipalVoteNo,$AC:$AC,Sheet1!S71_A5CapexCode,$AD:$AD)","v":0},{"$f":"SUMIFS(Sheet1!S71_OriginalBudAmnt,Sheet1!S71_SubMunicipalVoteNo,$AC:$AC,Sheet1!S71_A5CapexCode,$AD:$AD)","v":0},{"$f":"SUMIFS(Sheet1!S71_AdjustmentBudAmnt,Sheet1!S71_SubMunicipalVoteNo,$AC:$AC,Sheet1!S71_A5CapexCode,$AD:$AD)","v":0},{"$f":"SUMIFS(Sheet1!S71_AdjustmentBudAmnt,Sheet1!S71_SubMunicipalVoteNo,$AC:$AC,Sheet1!S71_A5CapexCode,$AD:$AD)","v":0},{"$f":"SUMIFS(Sheet1!CD:CD,Sheet1!S71_SubMunicipalVoteNo,$AC:$AC,Sheet1!S71_A5CapexCode,$AD:$AD)","v":0},{"$f":"SUMIFS(Sheet1!S71_ASBudgetAmount,Sheet1!S71_SubMunicipalVoteNo,$AC:$AC,Sheet1!S71_A5CapexCode,$AD:$AD)","v":0},{"$f":"SUMIFS(Sheet1!S71_OY1BudgetAmount,Sheet1!S71_SubMunicipalVoteNo,$AC:$AC,Sheet1!S71_A5CapexCode,$AD:$AD)","v":0},{"$f":"SUMIFS(Sheet1!S71_OY2BudgetAmount,Sheet1!S71_SubMunicipalVoteNo,$AC:$AC,Sheet1!S71_A5CapexCode,$AD:$AD)","v":0},null,null,null,null,null,null,null,null,null,null,null,null,null,null,null,null,148,"CE"]
["",null,{"$f":"SUMIFS(Sheet1!S71_PPPYearAmount,Sheet1!S71_SubMunicipalVoteNo,$AC:$AC,Sheet1!S71_A5CapexCode,$AD:$AD)","v":0},{"$f":"SUMIFS(Sheet1!S71_PPYearAmount,Sheet1!S71_SubMunicipalVoteNo,$AC:$AC,Sheet1!S71_A5CapexCode,$AD:$AD)","v":0},{"$f":"SUMIFS(Sheet1!S71_PYearAmount,Sheet1!S71_SubMunicipalVoteNo,$AC:$AC,Sheet1!S71_A5CapexCode,$AD:$AD)","v":0},{"$f":"SUMIFS(Sheet1!S71_OriginalBudAmnt,Sheet1!S71_SubMunicipalVoteNo,$AC:$AC,Sheet1!S71_A5CapexCode,$AD:$AD)","v":0},{"$f":"SUMIFS(Sheet1!S71_AdjustmentBudAmnt,Sheet1!S71_SubMunicipalVoteNo,$AC:$AC,Sheet1!S71_A5CapexCode,$AD:$AD)","v":0},{"$f":"SUMIFS(Sheet1!S71_AdjustmentBudAmnt,Sheet1!S71_SubMunicipalVoteNo,$AC:$AC,Sheet1!S71_A5CapexCode,$AD:$AD)","v":0},{"$f":"SUMIFS(Sheet1!CD:CD,Sheet1!S71_SubMunicipalVoteNo,$AC:$AC,Sheet1!S71_A5CapexCode,$AD:$AD)","v":0},{"$f":"SUMIFS(Sheet1!S71_ASBudgetAmount,Sheet1!S71_SubMunicipalVoteNo,$AC:$AC,Sheet1!S71_A5CapexCode,$AD:$AD)","v":0},{"$f":"SUMIFS(Sheet1!S71_OY1BudgetAmount,Sheet1!S71_SubMunicipalVoteNo,$AC:$AC,Sheet1!S71_A5CapexCode,$AD:$AD)","v":0},{"$f":"SUMIFS(Sheet1!S71_OY2BudgetAmount,Sheet1!S71_SubMunicipalVoteNo,$AC:$AC,Sheet1!S71_A5CapexCode,$AD:$AD)","v":0},null,null,null,null,null,null,null,null,null,null,null,null,null,null,null,null,149,"CE"]
["",null,{"$f":"SUMIFS(Sheet1!S71_PPPYearAmount,Sheet1!S71_SubMunicipalVoteNo,$AC:$AC,Sheet1!S71_A5CapexCode,$AD:$AD)","v":0},{"$f":"SUMIFS(Sheet1!S71_PPYearAmount,Sheet1!S71_SubMunicipalVoteNo,$AC:$AC,Sheet1!S71_A5CapexCode,$AD:$AD)","v":0},{"$f":"SUMIFS(Sheet1!S71_PYearAmount,Sheet1!S71_SubMunicipalVoteNo,$AC:$AC,Sheet1!S71_A5CapexCode,$AD:$AD)","v":0},{"$f":"SUMIFS(Sheet1!S71_OriginalBudAmnt,Sheet1!S71_SubMunicipalVoteNo,$AC:$AC,Sheet1!S71_A5CapexCode,$AD:$AD)","v":0},{"$f":"SUMIFS(Sheet1!S71_AdjustmentBudAmnt,Sheet1!S71_SubMunicipalVoteNo,$AC:$AC,Sheet1!S71_A5CapexCode,$AD:$AD)","v":0},{"$f":"SUMIFS(Sheet1!S71_AdjustmentBudAmnt,Sheet1!S71_SubMunicipalVoteNo,$AC:$AC,Sheet1!S71_A5CapexCode,$AD:$AD)","v":0},{"$f":"SUMIFS(Sheet1!CD:CD,Sheet1!S71_SubMunicipalVoteNo,$AC:$AC,Sheet1!S71_A5CapexCode,$AD:$AD)","v":0},{"$f":"SUMIFS(Sheet1!S71_ASBudgetAmount,Sheet1!S71_SubMunicipalVoteNo,$AC:$AC,Sheet1!S71_A5CapexCode,$AD:$AD)","v":0},{"$f":"SUMIFS(Sheet1!S71_OY1BudgetAmount,Sheet1!S71_SubMunicipalVoteNo,$AC:$AC,Sheet1!S71_A5CapexCode,$AD:$AD)","v":0},{"$f":"SUMIFS(Sheet1!S71_OY2BudgetAmount,Sheet1!S71_SubMunicipalVoteNo,$AC:$AC,Sheet1!S71_A5CapexCode,$AD:$AD)","v":0},null,null,null,null,null,null,null,null,null,null,null,null,null,null,null,null,1410,"CE"]
["Vote 15 - [NAME OF VOTE 15]",null,{"$f":"SUM(C330:C339)","v":0},0,0,0,0,0,0,0,0,0]
["",null,{"$f":"SUMIFS(Sheet1!S71_PPPYearAmount,Sheet1!S71_SubMunicipalVoteNo,$AC:$AC,Sheet1!S71_A5CapexCode,$AD:$AD)","v":0},{"$f":"SUMIFS(Sheet1!S71_PPYearAmount,Sheet1!S71_SubMunicipalVoteNo,$AC:$AC,Sheet1!S71_A5CapexCode,$AD:$AD)","v":0},{"$f":"SUMIFS(Sheet1!S71_PYearAmount,Sheet1!S71_SubMunicipalVoteNo,$AC:$AC,Sheet1!S71_A5CapexCode,$AD:$AD)","v":0},{"$f":"SUMIFS(Sheet1!S71_OriginalBudAmnt,Sheet1!S71_SubMunicipalVoteNo,$AC:$AC,Sheet1!S71_A5CapexCode,$AD:$AD)","v":0},{"$f":"SUMIFS(Sheet1!S71_AdjustmentBudAmnt,Sheet1!S71_SubMunicipalVoteNo,$AC:$AC,Sheet1!S71_A5CapexCode,$AD:$AD)","v":0},{"$f":"SUMIFS(Sheet1!S71_AdjustmentBudAmnt,Sheet1!S71_SubMunicipalVoteNo,$AC:$AC,Sheet1!S71_A5CapexCode,$AD:$AD)","v":0},{"$f":"SUMIFS(Sheet1!CD:CD,Sheet1!S71_SubMunicipalVoteNo,$AC:$AC,Sheet1!S71_A5CapexCode,$AD:$AD)","v":0},{"$f":"SUMIFS(Sheet1!S71_ASBudgetAmount,Sheet1!S71_SubMunicipalVoteNo,$AC:$AC,Sheet1!S71_A5CapexCode,$AD:$AD)","v":0},{"$f":"SUMIFS(Sheet1!S71_OY1BudgetAmount,Sheet1!S71_SubMunicipalVoteNo,$AC:$AC,Sheet1!S71_A5CapexCode,$AD:$AD)","v":0},{"$f":"SUMIFS(Sheet1!S71_OY2BudgetAmount,Sheet1!S71_SubMunicipalVoteNo,$AC:$AC,Sheet1!S71_A5CapexCode,$AD:$AD)","v":0},null,null,null,null,null,null,null,null,null,null,null,null,null,null,null,null,151,"CE"]
["",null,{"$f":"SUMIFS(Sheet1!S71_PPPYearAmount,Sheet1!S71_SubMunicipalVoteNo,$AC:$AC,Sheet1!S71_A5CapexCode,$AD:$AD)","v":0},{"$f":"SUMIFS(Sheet1!S71_PPYearAmount,Sheet1!S71_SubMunicipalVoteNo,$AC:$AC,Sheet1!S71_A5CapexCode,$AD:$AD)","v":0},{"$f":"SUMIFS(Sheet1!S71_PYearAmount,Sheet1!S71_SubMunicipalVoteNo,$AC:$AC,Sheet1!S71_A5CapexCode,$AD:$AD)","v":0},{"$f":"SUMIFS(Sheet1!S71_OriginalBudAmnt,Sheet1!S71_SubMunicipalVoteNo,$AC:$AC,Sheet1!S71_A5CapexCode,$AD:$AD)","v":0},{"$f":"SUMIFS(Sheet1!S71_AdjustmentBudAmnt,Sheet1!S71_SubMunicipalVoteNo,$AC:$AC,Sheet1!S71_A5CapexCode,$AD:$AD)","v":0},{"$f":"SUMIFS(Sheet1!S71_AdjustmentBudAmnt,Sheet1!S71_SubMunicipalVoteNo,$AC:$AC,Sheet1!S71_A5CapexCode,$AD:$AD)","v":0},{"$f":"SUMIFS(Sheet1!CD:CD,Sheet1!S71_SubMunicipalVoteNo,$AC:$AC,Sheet1!S71_A5CapexCode,$AD:$AD)","v":0},{"$f":"SUMIFS(Sheet1!S71_ASBudgetAmount,Sheet1!S71_SubMunicipalVoteNo,$AC:$AC,Sheet1!S71_A5CapexCode,$AD:$AD)","v":0},{"$f":"SUMIFS(Sheet1!S71_OY1BudgetAmount,Sheet1!S71_SubMunicipalVoteNo,$AC:$AC,Sheet1!S71_A5CapexCode,$AD:$AD)","v":0},{"$f":"SUMIFS(Sheet1!S71_OY2BudgetAmount,Sheet1!S71_SubMunicipalVoteNo,$AC:$AC,Sheet1!S71_A5CapexCode,$AD:$AD)","v":0},null,null,null,null,null,null,null,null,null,null,null,null,null,null,null,null,152,"CE"]
["",null,{"$f":"SUMIFS(Sheet1!S71_PPPYearAmount,Sheet1!S71_SubMunicipalVoteNo,$AC:$AC,Sheet1!S71_A5CapexCode,$AD:$AD)","v":0},{"$f":"SUMIFS(Sheet1!S71_PPYearAmount,Sheet1!S71_SubMunicipalVoteNo,$AC:$AC,Sheet1!S71_A5CapexCode,$AD:$AD)","v":0},{"$f":"SUMIFS(Sheet1!S71_PYearAmount,Sheet1!S71_SubMunicipalVoteNo,$AC:$AC,Sheet1!S71_A5CapexCode,$AD:$AD)","v":0},{"$f":"SUMIFS(Sheet1!S71_OriginalBudAmnt,Sheet1!S71_SubMunicipalVoteNo,$AC:$AC,Sheet1!S71_A5CapexCode,$AD:$AD)","v":0},{"$f":"SUMIFS(Sheet1!S71_AdjustmentBudAmnt,Sheet1!S71_SubMunicipalVoteNo,$AC:$AC,Sheet1!S71_A5CapexCode,$AD:$AD)","v":0},{"$f":"SUMIFS(Sheet1!S71_AdjustmentBudAmnt,Sheet1!S71_SubMunicipalVoteNo,$AC:$AC,Sheet1!S71_A5CapexCode,$AD:$AD)","v":0},{"$f":"SUMIFS(Sheet1!CD:CD,Sheet1!S71_SubMunicipalVoteNo,$AC:$AC,Sheet1!S71_A5CapexCode,$AD:$AD)","v":0},{"$f":"SUMIFS(Sheet1!S71_ASBudgetAmount,Sheet1!S71_SubMunicipalVoteNo,$AC:$AC,Sheet1!S71_A5CapexCode,$AD:$AD)","v":0},{"$f":"SUMIFS(Sheet1!S71_OY1BudgetAmount,Sheet1!S71_SubMunicipalVoteNo,$AC:$AC,Sheet1!S71_A5CapexCode,$AD:$AD)","v":0},{"$f":"SUMIFS(Sheet1!S71_OY2BudgetAmount,Sheet1!S71_SubMunicipalVoteNo,$AC:$AC,Sheet1!S71_A5CapexCode,$AD:$AD)","v":0},null,null,null,null,null,null,null,null,null,null,null,null,null,null,null,null,153,"CE"]
["",null,{"$f":"SUMIFS(Sheet1!S71_PPPYearAmount,Sheet1!S71_SubMunicipalVoteNo,$AC:$AC,Sheet1!S71_A5CapexCode,$AD:$AD)","v":0},{"$f":"SUMIFS(Sheet1!S71_PPYearAmount,Sheet1!S71_SubMunicipalVoteNo,$AC:$AC,Sheet1!S71_A5CapexCode,$AD:$AD)","v":0},{"$f":"SUMIFS(Sheet1!S71_PYearAmount,Sheet1!S71_SubMunicipalVoteNo,$AC:$AC,Sheet1!S71_A5CapexCode,$AD:$AD)","v":0},{"$f":"SUMIFS(Sheet1!S71_OriginalBudAmnt,Sheet1!S71_SubMunicipalVoteNo,$AC:$AC,Sheet1!S71_A5CapexCode,$AD:$AD)","v":0},{"$f":"SUMIFS(Sheet1!S71_AdjustmentBudAmnt,Sheet1!S71_SubMunicipalVoteNo,$AC:$AC,Sheet1!S71_A5CapexCode,$AD:$AD)","v":0},{"$f":"SUMIFS(Sheet1!S71_AdjustmentBudAmnt,Sheet1!S71_SubMunicipalVoteNo,$AC:$AC,Sheet1!S71_A5CapexCode,$AD:$AD)","v":0},{"$f":"SUMIFS(Sheet1!CD:CD,Sheet1!S71_SubMunicipalVoteNo,$AC:$AC,Sheet1!S71_A5CapexCode,$AD:$AD)","v":0},{"$f":"SUMIFS(Sheet1!S71_ASBudgetAmount,Sheet1!S71_SubMunicipalVoteNo,$AC:$AC,Sheet1!S71_A5CapexCode,$AD:$AD)","v":0},{"$f":"SUMIFS(Sheet1!S71_OY1BudgetAmount,Sheet1!S71_SubMunicipalVoteNo,$AC:$AC,Sheet1!S71_A5CapexCode,$AD:$AD)","v":0},{"$f":"SUMIFS(Sheet1!S71_OY2BudgetAmount,Sheet1!S71_SubMunicipalVoteNo,$AC:$AC,Sheet1!S71_A5CapexCode,$AD:$AD)","v":0},null,null,null,null,null,null,null,null,null,null,null,null,null,null,null,null,154,"CE"]
["",null,{"$f":"SUMIFS(Sheet1!S71_PPPYearAmount,Sheet1!S71_SubMunicipalVoteNo,$AC:$AC,Sheet1!S71_A5CapexCode,$AD:$AD)","v":0},{"$f":"SUMIFS(Sheet1!S71_PPYearAmount,Sheet1!S71_SubMunicipalVoteNo,$AC:$AC,Sheet1!S71_A5CapexCode,$AD:$AD)","v":0},{"$f":"SUMIFS(Sheet1!S71_PYearAmount,Sheet1!S71_SubMunicipalVoteNo,$AC:$AC,Sheet1!S71_A5CapexCode,$AD:$AD)","v":0},{"$f":"SUMIFS(Sheet1!S71_OriginalBudAmnt,Sheet1!S71_SubMunicipalVoteNo,$AC:$AC,Sheet1!S71_A5CapexCode,$AD:$AD)","v":0},{"$f":"SUMIFS(Sheet1!S71_AdjustmentBudAmnt,Sheet1!S71_SubMunicipalVoteNo,$AC:$AC,Sheet1!S71_A5CapexCode,$AD:$AD)","v":0},{"$f":"SUMIFS(Sheet1!S71_AdjustmentBudAmnt,Sheet1!S71_SubMunicipalVoteNo,$AC:$AC,Sheet1!S71_A5CapexCode,$AD:$AD)","v":0},{"$f":"SUMIFS(Sheet1!CD:CD,Sheet1!S71_SubMunicipalVoteNo,$AC:$AC,Sheet1!S71_A5CapexCode,$AD:$AD)","v":0},{"$f":"SUMIFS(Sheet1!S71_ASBudgetAmount,Sheet1!S71_SubMunicipalVoteNo,$AC:$AC,Sheet1!S71_A5CapexCode,$AD:$AD)","v":0},{"$f":"SUMIFS(Sheet1!S71_OY1BudgetAmount,Sheet1!S71_SubMunicipalVoteNo,$AC:$AC,Sheet1!S71_A5CapexCode,$AD:$AD)","v":0},{"$f":"SUMIFS(Sheet1!S71_OY2BudgetAmount,Sheet1!S71_SubMunicipalVoteNo,$AC:$AC,Sheet1!S71_A5CapexCode,$AD:$AD)","v":0},null,null,null,null,null,null,null,null,null,null,null,null,null,null,null,null,155,"CE"]
["",null,{"$f":"SUMIFS(Sheet1!S71_PPPYearAmount,Sheet1!S71_SubMunicipalVoteNo,$AC:$AC,Sheet1!S71_A5CapexCode,$AD:$AD)","v":0},{"$f":"SUMIFS(Sheet1!S71_PPYearAmount,Sheet1!S71_SubMunicipalVoteNo,$AC:$AC,Sheet1!S71_A5CapexCode,$AD:$AD)","v":0},{"$f":"SUMIFS(Sheet1!S71_PYearAmount,Sheet1!S71_SubMunicipalVoteNo,$AC:$AC,Sheet1!S71_A5CapexCode,$AD:$AD)","v":0},{"$f":"SUMIFS(Sheet1!S71_OriginalBudAmnt,Sheet1!S71_SubMunicipalVoteNo,$AC:$AC,Sheet1!S71_A5CapexCode,$AD:$AD)","v":0},{"$f":"SUMIFS(Sheet1!S71_AdjustmentBudAmnt,Sheet1!S71_SubMunicipalVoteNo,$AC:$AC,Sheet1!S71_A5CapexCode,$AD:$AD)","v":0},{"$f":"SUMIFS(Sheet1!S71_AdjustmentBudAmnt,Sheet1!S71_SubMunicipalVoteNo,$AC:$AC,Sheet1!S71_A5CapexCode,$AD:$AD)","v":0},{"$f":"SUMIFS(Sheet1!CD:CD,Sheet1!S71_SubMunicipalVoteNo,$AC:$AC,Sheet1!S71_A5CapexCode,$AD:$AD)","v":0},{"$f":"SUMIFS(Sheet1!S71_ASBudgetAmount,Sheet1!S71_SubMunicipalVoteNo,$AC:$AC,Sheet1!S71_A5CapexCode,$AD:$AD)","v":0},{"$f":"SUMIFS(Sheet1!S71_OY1BudgetAmount,Sheet1!S71_SubMunicipalVoteNo,$AC:$AC,Sheet1!S71_A5CapexCode,$AD:$AD)","v":0},{"$f":"SUMIFS(Sheet1!S71_OY2BudgetAmount,Sheet1!S71_SubMunicipalVoteNo,$AC:$AC,Sheet1!S71_A5CapexCode,$AD:$AD)","v":0},null,null,null,null,null,null,null,null,null,null,null,null,null,null,null,null,156,"CE"]
["",null,{"$f":"SUMIFS(Sheet1!S71_PPPYearAmount,Sheet1!S71_SubMunicipalVoteNo,$AC:$AC,Sheet1!S71_A5CapexCode,$AD:$AD)","v":0},{"$f":"SUMIFS(Sheet1!S71_PPYearAmount,Sheet1!S71_SubMunicipalVoteNo,$AC:$AC,Sheet1!S71_A5CapexCode,$AD:$AD)","v":0},{"$f":"SUMIFS(Sheet1!S71_PYearAmount,Sheet1!S71_SubMunicipalVoteNo,$AC:$AC,Sheet1!S71_A5CapexCode,$AD:$AD)","v":0},{"$f":"SUMIFS(Sheet1!S71_OriginalBudAmnt,Sheet1!S71_SubMunicipalVoteNo,$AC:$AC,Sheet1!S71_A5CapexCode,$AD:$AD)","v":0},{"$f":"SUMIFS(Sheet1!S71_AdjustmentBudAmnt,Sheet1!S71_SubMunicipalVoteNo,$AC:$AC,Sheet1!S71_A5CapexCode,$AD:$AD)","v":0},{"$f":"SUMIFS(Sheet1!S71_AdjustmentBudAmnt,Sheet1!S71_SubMunicipalVoteNo,$AC:$AC,Sheet1!S71_A5CapexCode,$AD:$AD)","v":0},{"$f":"SUMIFS(Sheet1!CD:CD,Sheet1!S71_SubMunicipalVoteNo,$AC:$AC,Sheet1!S71_A5CapexCode,$AD:$AD)","v":0},{"$f":"SUMIFS(Sheet1!S71_ASBudgetAmount,Sheet1!S71_SubMunicipalVoteNo,$AC:$AC,Sheet1!S71_A5CapexCode,$AD:$AD)","v":0},{"$f":"SUMIFS(Sheet1!S71_OY1BudgetAmount,Sheet1!S71_SubMunicipalVoteNo,$AC:$AC,Sheet1!S71_A5CapexCode,$AD:$AD)","v":0},{"$f":"SUMIFS(Sheet1!S71_OY2BudgetAmount,Sheet1!S71_SubMunicipalVoteNo,$AC:$AC,Sheet1!S71_A5CapexCode,$AD:$AD)","v":0},null,null,null,null,null,null,null,null,null,null,null,null,null,null,null,null,157,"CE"]
["",null,{"$f":"SUMIFS(Sheet1!S71_PPPYearAmount,Sheet1!S71_SubMunicipalVoteNo,$AC:$AC,Sheet1!S71_A5CapexCode,$AD:$AD)","v":0},{"$f":"SUMIFS(Sheet1!S71_PPYearAmount,Sheet1!S71_SubMunicipalVoteNo,$AC:$AC,Sheet1!S71_A5CapexCode,$AD:$AD)","v":0},{"$f":"SUMIFS(Sheet1!S71_PYearAmount,Sheet1!S71_SubMunicipalVoteNo,$AC:$AC,Sheet1!S71_A5CapexCode,$AD:$AD)","v":0},{"$f":"SUMIFS(Sheet1!S71_OriginalBudAmnt,Sheet1!S71_SubMunicipalVoteNo,$AC:$AC,Sheet1!S71_A5CapexCode,$AD:$AD)","v":0},{"$f":"SUMIFS(Sheet1!S71_AdjustmentBudAmnt,Sheet1!S71_SubMunicipalVoteNo,$AC:$AC,Sheet1!S71_A5CapexCode,$AD:$AD)","v":0},{"$f":"SUMIFS(Sheet1!S71_AdjustmentBudAmnt,Sheet1!S71_SubMunicipalVoteNo,$AC:$AC,Sheet1!S71_A5CapexCode,$AD:$AD)","v":0},{"$f":"SUMIFS(Sheet1!CD:CD,Sheet1!S71_SubMunicipalVoteNo,$AC:$AC,Sheet1!S71_A5CapexCode,$AD:$AD)","v":0},{"$f":"SUMIFS(Sheet1!S71_ASBudgetAmount,Sheet1!S71_SubMunicipalVoteNo,$AC:$AC,Sheet1!S71_A5CapexCode,$AD:$AD)","v":0},{"$f":"SUMIFS(Sheet1!S71_OY1BudgetAmount,Sheet1!S71_SubMunicipalVoteNo,$AC:$AC,Sheet1!S71_A5CapexCode,$AD:$AD)","v":0},{"$f":"SUMIFS(Sheet1!S71_OY2BudgetAmount,Sheet1!S71_SubMunicipalVoteNo,$AC:$AC,Sheet1!S71_A5CapexCode,$AD:$AD)","v":0},null,null,null,null,null,null,null,null,null,null,null,null,null,null,null,null,158,"CE"]
["",null,{"$f":"SUMIFS(Sheet1!S71_PPPYearAmount,Sheet1!S71_SubMunicipalVoteNo,$AC:$AC,Sheet1!S71_A5CapexCode,$AD:$AD)","v":0},{"$f":"SUMIFS(Sheet1!S71_PPYearAmount,Sheet1!S71_SubMunicipalVoteNo,$AC:$AC,Sheet1!S71_A5CapexCode,$AD:$AD)","v":0},{"$f":"SUMIFS(Sheet1!S71_PYearAmount,Sheet1!S71_SubMunicipalVoteNo,$AC:$AC,Sheet1!S71_A5CapexCode,$AD:$AD)","v":0},{"$f":"SUMIFS(Sheet1!S71_OriginalBudAmnt,Sheet1!S71_SubMunicipalVoteNo,$AC:$AC,Sheet1!S71_A5CapexCode,$AD:$AD)","v":0},{"$f":"SUMIFS(Sheet1!S71_AdjustmentBudAmnt,Sheet1!S71_SubMunicipalVoteNo,$AC:$AC,Sheet1!S71_A5CapexCode,$AD:$AD)","v":0},{"$f":"SUMIFS(Sheet1!S71_AdjustmentBudAmnt,Sheet1!S71_SubMunicipalVoteNo,$AC:$AC,Sheet1!S71_A5CapexCode,$AD:$AD)","v":0},{"$f":"SUMIFS(Sheet1!CD:CD,Sheet1!S71_SubMunicipalVoteNo,$AC:$AC,Sheet1!S71_A5CapexCode,$AD:$AD)","v":0},{"$f":"SUMIFS(Sheet1!S71_ASBudgetAmount,Sheet1!S71_SubMunicipalVoteNo,$AC:$AC,Sheet1!S71_A5CapexCode,$AD:$AD)","v":0},{"$f":"SUMIFS(Sheet1!S71_OY1BudgetAmount,Sheet1!S71_SubMunicipalVoteNo,$AC:$AC,Sheet1!S71_A5CapexCode,$AD:$AD)","v":0},{"$f":"SUMIFS(Sheet1!S71_OY2BudgetAmount,Sheet1!S71_SubMunicipalVoteNo,$AC:$AC,Sheet1!S71_A5CapexCode,$AD:$AD)","v":0},null,null,null,null,null,null,null,null,null,null,null,null,null,null,null,null,159,"CE"]
["",null,{"$f":"SUMIFS(Sheet1!S71_PPPYearAmount,Sheet1!S71_SubMunicipalVoteNo,$AC:$AC,Sheet1!S71_A5CapexCode,$AD:$AD)","v":0},{"$f":"SUMIFS(Sheet1!S71_PPYearAmount,Sheet1!S71_SubMunicipalVoteNo,$AC:$AC,Sheet1!S71_A5CapexCode,$AD:$AD)","v":0},{"$f":"SUMIFS(Sheet1!S71_PYearAmount,Sheet1!S71_SubMunicipalVoteNo,$AC:$AC,Sheet1!S71_A5CapexCode,$AD:$AD)","v":0},{"$f":"SUMIFS(Sheet1!S71_OriginalBudAmnt,Sheet1!S71_SubMunicipalVoteNo,$AC:$AC,Sheet1!S71_A5CapexCode,$AD:$AD)","v":0},{"$f":"SUMIFS(Sheet1!S71_AdjustmentBudAmnt,Sheet1!S71_SubMunicipalVoteNo,$AC:$AC,Sheet1!S71_A5CapexCode,$AD:$AD)","v":0},{"$f":"SUMIFS(Sheet1!S71_AdjustmentBudAmnt,Sheet1!S71_SubMunicipalVoteNo,$AC:$AC,Sheet1!S71_A5CapexCode,$AD:$AD)","v":0},{"$f":"SUMIFS(Sheet1!CD:CD,Sheet1!S71_SubMunicipalVoteNo,$AC:$AC,Sheet1!S71_A5CapexCode,$AD:$AD)","v":0},{"$f":"SUMIFS(Sheet1!S71_ASBudgetAmount,Sheet1!S71_SubMunicipalVoteNo,$AC:$AC,Sheet1!S71_A5CapexCode,$AD:$AD)","v":0},{"$f":"SUMIFS(Sheet1!S71_OY1BudgetAmount,Sheet1!S71_SubMunicipalVoteNo,$AC:$AC,Sheet1!S71_A5CapexCode,$AD:$AD)","v":0},{"$f":"SUMIFS(Sheet1!S71_OY2BudgetAmount,Sheet1!S71_SubMunicipalVoteNo,$AC:$AC,Sheet1!S71_A5CapexCode,$AD:$AD)","v":0},null,null,null,null,null,null,null,null,null,null,null,null,null,null,null,null,1510,"CE"]
["Capital single-year expenditure sub-total",null,{"$f":"C175+C186+C197+C208+C219+C230+C241+C252+C263+C274+C285+C296+C307+C318+C329","v":0},{"$f":"D175+D186+D197+D208+D219+D230+D241+D252+D263+D274+D285+D296+D307+D318+D329","v":0},318484,404771,328000,328000,514914,486000,21958,23144]
["Total Capital Expenditure",null,{"$f":"C171+C340","v":0},{"$f":"D171+D340","v":0},318484,404771,328000,328000,514914,486000,21958,23144]

{"sheet":"A6-FinPos","index":24,"n_rows":55,"n_cols":30,"rows_kept":55,"cut":false,"hidden":false,"merged":[[49,0,49,11],[1,9,1,11],[1,5,1,8]]}
[{"$f":"muni&\" - \"&Approve6","v":"DC16 Xhariep - Table A6 Budgeted Financial Position"}]
[{"$f":"desc","v":"Description"},{"$f":"head27","v":"Ref"},{"$f":"head1b","v":"2017/18"},{"$f":"head1A","v":"2018/19"},{"$f":"Head1","v":"2019/20"},{"$f":"Head2","v":"Current Year 2020/21"},null,null,null,{"$f":"Head3","v":"2021/22 Medium Term Revenue & Expenditure Framework"}]
["R thousand",null,{"$f":"Head5","v":"Audited Outcome"},{"$f":"Head5","v":"Audited Outcome"},{"$f":"Head5","v":"Audited Outcome"},{"$f":"Head6","v":"Original Budget"},{"$f":"Head7","v":"Adjusted Budget"},{"$f":"Head8","v":"Full Year Forecast"},{"$f":"Head5b","v":"Pre-audit outcome"},{"$f":"Head9","v":"Budget Year 2021/22"},{"$f":"Head10","v":"Budget Year +1 2022/23"},{"$f":"Head11","v":"Budget Year +2 2023/24"}]
["ASSETS"]
["Current assets"]
["Cash",null,{"$f":"SUMIFS(Sheet1!S71_PPPYearAmount,Sheet1!S71_A6Code,$AC:$AC)","v":0},{"$f":"SUMIFS(Sheet1!S71_PPYearAmount,Sheet1!S71_A6Code,$AC:$AC)","v":194803},{"$f":"SUMIFS(Sheet1!S71_PYearAmount,Sheet1!S71_A6Code,$AC:$AC)","v":938458},{"$f":"SUMIFS(Sheet1!S71_OriginalBudAmnt,Sheet1!S71_A6Code,$AC:$AC)","v":0},{"$f":"SUMIFS(Sheet1!S71_AdjustmentBudAmnt,Sheet1!S71_A6Code,$AC:$AC)","v":3365977},{"$f":"SUMIFS(Sheet1!S71_AdjustmentBudAmnt,Sheet1!S71_A6Code,$AC:$AC)","v":3365977},{"$f":"SUMIFS(Sheet1!CD:CD,Sheet1!S71_A6Code,$AC:$AC)","v":-5032426},{"$f":"SUMIFS(Sheet1!S71_ASBudgetAmount,Sheet1!S71_A6Code,$AC:$AC)","v":10796248},{"$f":"SUMIFS(Sheet1!S71_OY1BudgetAmount,Sheet1!S71_A6Code,$AC:$AC)","v":11213122},{"$f":"SUMIFS(Sheet1!S71_OY2BudgetAmount,Sheet1!S71_A6Code,$AC:$AC)","v":11667193},null,null,null,null,null,null,null,null,null,null,null,null,null,null,null,null,"0120","IR"]
["Call investment deposits",1,{"$f":"SUMIFS(Sheet1!S71_PPPYearAmount,Sheet1!S71_A6Code,$AC:$AC)","v":0},{"$f":"SUMIFS(Sheet1!S71_PPYearAmount,Sheet1!S71_A6Code,$AC:$AC)","v":7175899},{"$f":"SUMIFS(Sheet1!S71_PYearAmount,Sheet1!S71_A6Code,$AC:$AC)","v":9738153},{"$f":"SUMIFS(Sheet1!S71_OriginalBudAmnt,Sheet1!S71_A6Code,$AC:$AC)","v":0},{"$f":"SUMIFS(Sheet1!S71_AdjustmentBudAmnt,Sheet1!S71_A6Code,$AC:$AC)","v":9738153},{"$f":"SUMIFS(Sheet1!S71_AdjustmentBudAmnt,Sheet1!S71_A6Code,$AC:$AC)","v":9738153},{"$f":"SUMIFS(Sheet1!CD:CD,Sheet1!S71_A6Code,$AC:$AC)","v":12872652},{"$f":"SUMIFS(Sheet1!S71_ASBudgetAmount,Sheet1!S71_A6Code,$AC:$AC)","v":0},{"$f":"SUMIFS(Sheet1!S71_OY1BudgetAmount,Sheet1!S71_A6Code,$AC:$AC)","v":0},{"$f":"SUMIFS(Sheet1!S71_OY2BudgetAmount,Sheet1!S71_A6Code,$AC:$AC)","v":0},null,null,null,null,null,null,null,null,null,null,null,null,null,null,null,null,"0130","IE"]
["Consumer debtors",1,{"$f":"'SA3'!C14","v":0},{"$f":"'SA3'!D14","v":982724},{"$f":"'SA3'!E14","v":3860001},{"$f":"'SA3'!F14","v":0},{"$f":"'SA3'!G14","v":0},{"$f":"'SA3'!H14","v":0},{"$f":"'SA3'!I14","v":4721740},{"$f":"'SA3'!J14","v":0},{"$f":"'SA3'!K14","v":0},{"$f":"'SA3'!L14","v":0},null,null,null,null,null,null,null,null,null,null,null,null,null,null,null,null,"0140"]
["Other debtors",null,{"$f":"SUMIFS(Sheet1!S71_PPPYearAmount,Sheet1!S71_A6Code,$AC:$AC)","v":0},{"$f":"SUMIFS(Sheet1!S71_PPYearAmount,Sheet1!S71_A6Code,$AC:$AC)","v":3380387},{"$f":"SUMIFS(Sheet1!S71_PYearAmount,Sheet1!S71_A6Code,$AC:$AC)","v":1835306},{"$f":"SUMIFS(Sheet1!S71_OriginalBudAmnt,Sheet1!S71_A6Code,$AC:$AC)","v":0},{"$f":"SUMIFS(Sheet1!S71_AdjustmentBudAmnt,Sheet1!S71_A6Code,$AC:$AC)","v":3935866},{"$f":"SUMIFS(Sheet1!S71_AdjustmentBudAmnt,Sheet1!S71_A6Code,$AC:$AC)","v":3935866},{"$f":"SUMIFS(Sheet1!CD:CD,Sheet1!S71_A6Code,$AC:$AC)","v":1387414},{"$f":"SUMIFS(Sheet1!S71_ASBudgetAmount,Sheet1!S71_A6Code,$AC:$AC)","v":4549450},{"$f":"SUMIFS(Sheet1!S71_OY1BudgetAmount,Sheet1!S71_A6Code,$AC:$AC)","v":4740527},{"$f":"SUMIFS(Sheet1!S71_OY2BudgetAmount,Sheet1!S71_A6Code,$AC:$AC)","v":4939628},null,null,null,null,null,null,null,null,null,null,null,null,null,null,null,null,"0150"]
["Current portion of long-term receivables",null,{"$f":"SUMIFS(Sheet1!S71_PPPYearAmount,Sheet1!S71_A6Code,$AC:$AC)","v":0},{"$f":"SUMIFS(Sheet1!S71_PPYearAmount,Sheet1!S71_A6Code,$AC:$AC)","v":0},{"$f":"SUMIFS(Sheet1!S71_PYearAmount,Sheet1!S71_A6Code,$AC:$AC)","v":0},{"$f":"SUMIFS(Sheet1!S71_OriginalBudAmnt,Sheet1!S71_A6Code,$AC:$AC)","v":0},{"$f":"SUMIFS(Sheet1!S71_AdjustmentBudAmnt,Sheet1!S71_A6Code,$AC:$AC)","v":0},{"$f":"SUMIFS(Sheet1!S71_AdjustmentBudAmnt,Sheet1!S71_A6Code,$AC:$AC)","v":0},{"$f":"SUMIFS(Sheet1!CD:CD,Sheet1!S71_A6Code,$AC:$AC)","v":0},{"$f":"SUMIFS(Sheet1!S71_ASBudgetAmount,Sheet1!S71_A6Code,$AC:$AC)","v":0},{"$f":"SUMIFS(Sheet1!S71_OY1BudgetAmount,Sheet1!S71_A6Code,$AC:$AC)","v":0},{"$f":"SUMIFS(Sheet1!S71_OY2BudgetAmount,Sheet1!S71_A6Code,$AC:$AC)","v":0},null,null,null,null,null,null,null,null,null,null,null,null,null,null,null,null,"0160"]
["Inventory",2,{"$f":"'SA3'!C115","v":0},{"$f":"'SA3'!D115","v":28995},{"$f":"'SA3'!E115","v":38986},{"$f":"'SA3'!F115","v":0},{"$f":"'SA3'!G115","v":0},{"$f":"'SA3'!H115","v":0},{"$f":"'SA3'!I115","v":38986},{"$f":"'SA3'!J115","v":38986},{"$f":"'SA3'!K115","v":40506},{"$f":"'SA3'!L115","v":42208},null,null,null,null,null,null,null,null,null,null,null,null,null,null,null,null,"0170"]
["Total current assets",null,{"$f":"SUM(C6:C11)","v":0},11762808,16410904,0,17039996,17039996,13988366,15384684,15994155,16649029]
[]
["Non current assets"]
["Long-term receivables",null,{"$f":"SUMIFS(Sheet1!S71_PPPYearAmount,Sheet1!S71_A6Code,$AC:$AC)","v":0},{"$f":"SUMIFS(Sheet1!S71_PPYearAmount,Sheet1!S71_A6Code,$AC:$AC)","v":0},{"$f":"SUMIFS(Sheet1!S71_PYearAmount,Sheet1!S71_A6Code,$AC:$AC)","v":0},{"$f":"SUMIFS(Sheet1!S71_OriginalBudAmnt,Sheet1!S71_A6Code,$AC:$AC)","v":0},{"$f":"SUMIFS(Sheet1!S71_AdjustmentBudAmnt,Sheet1!S71_A6Code,$AC:$AC)","v":0},{"$f":"SUMIFS(Sheet1!S71_AdjustmentBudAmnt,Sheet1!S71_A6Code,$AC:$AC)","v":0},{"$f":"SUMIFS(Sheet1!CD:CD,Sheet1!S71_A6Code,$AC:$AC)","v":0},{"$f":"SUMIFS(Sheet1!S71_ASBudgetAmount,Sheet1!S71_A6Code,$AC:$AC)","v":0},{"$f":"SUMIFS(Sheet1!S71_OY1BudgetAmount,Sheet1!S71_A6Code,$AC:$AC)","v":0},{"$f":"SUMIFS(Sheet1!S71_OY2BudgetAmount,Sheet1!S71_A6Code,$AC:$AC)","v":0},null,null,null,null,null,null,null,null,null,null,null,null,null,null,null,null,"0200"]
["Investments",null,{"$f":"SUMIFS(Sheet1!S71_PPPYearAmount,Sheet1!S71_A6Code,$AC:$AC)","v":0},{"$f":"SUMIFS(Sheet1!S71_PPYearAmount,Sheet1!S71_A6Code,$AC:$AC)","v":0},{"$f":"SUMIFS(Sheet1!S71_PYearAmount,Sheet1!S71_A6Code,$AC:$AC)","v":0},{"$f":"SUMIFS(Sheet1!S71_OriginalBudAmnt,Sheet1!S71_A6Code,$AC:$AC)","v":0},{"$f":"SUMIFS(Sheet1!S71_AdjustmentBudAmnt,Sheet1!S71_A6Code,$AC:$AC)","v":0},{"$f":"SUMIFS(Sheet1!S71_AdjustmentBudAmnt,Sheet1!S71_A6Code,$AC:$AC)","v":0},{"$f":"SUMIFS(Sheet1!CD:CD,Sheet1!S71_A6Code,$AC:$AC)","v":0},{"$f":"SUMIFS(Sheet1!S71_ASBudgetAmount,Sheet1!S71_A6Code,$AC:$AC)","v":0},{"$f":"SUMIFS(Sheet1!S71_OY1BudgetAmount,Sheet1!S71_A6Code,$AC:$AC)","v":0},{"$f":"SUMIFS(Sheet1!S71_OY2BudgetAmount,Sheet1!S71_A6Code,$AC:$AC)","v":0},null,null,null,null,null,null,null,null,null,null,null,null,null,null,null,null,"0210"]
["Investment property",null,{"$f":"SUMIFS(Sheet1!S71_PPPYearAmount,Sheet1!S71_A6Code,$AC:$AC)","v":0},{"$f":"SUMIFS(Sheet1!S71_PPYearAmount,Sheet1!S71_A6Code,$AC:$AC)","v":0},{"$f":"SUMIFS(Sheet1!S71_PYearAmount,Sheet1!S71_A6Code,$AC:$AC)","v":0},{"$f":"SUMIFS(Sheet1!S71_OriginalBudAmnt,Sheet1!S71_A6Code,$AC:$AC)","v":0},{"$f":"SUMIFS(Sheet1!S71_AdjustmentBudAmnt,Sheet1!S71_A6Code,$AC:$AC)","v":0},{"$f":"SUMIFS(Sheet1!S71_AdjustmentBudAmnt,Sheet1!S71_A6Code,$AC:$AC)","v":0},{"$f":"SUMIFS(Sheet1!CD:CD,Sheet1!S71_A6Code,$AC:$AC)","v":0},{"$f":"SUMIFS(Sheet1!S71_ASBudgetAmount,Sheet1!S71_A6Code,$AC:$AC)","v":0},{"$f":"SUMIFS(Sheet1!S71_OY1BudgetAmount,Sheet1!S71_A6Code,$AC:$AC)","v":0},{"$f":"SUMIFS(Sheet1!S71_OY2BudgetAmount,Sheet1!S71_A6Code,$AC:$AC)","v":0},null,null,null,null,null,null,null,null,null,null,null,null,null,null,null,null,"0220"]
["Investment in Associate",null,{"$f":"SUMIFS(Sheet1!S71_PPPYearAmount,Sheet1!S71_A6Code,$AC:$AC)","v":0},{"$f":"SUMIFS(Sheet1!S71_PPYearAmount,Sheet1!S71_A6Code,$AC:$AC)","v":0},{"$f":"SUMIFS(Sheet1!S71_PYearAmount,Sheet1!S71_A6Code,$AC:$AC)","v":0},{"$f":"SUMIFS(Sheet1!S71_OriginalBudAmnt,Sheet1!S71_A6Code,$AC:$AC)","v":0},{"$f":"SUMIFS(Sheet1!S71_AdjustmentBudAmnt,Sheet1!S71_A6Code,$AC:$AC)","v":0},{"$f":"SUMIFS(Sheet1!S71_AdjustmentBudAmnt,Sheet1!S71_A6Code,$AC:$AC)","v":0},{"$f":"SUMIFS(Sheet1!CD:CD,Sheet1!S71_A6Code,$AC:$AC)","v":0},{"$f":"SUMIFS(Sheet1!S71_ASBudgetAmount,Sheet1!S71_A6Code,$AC:$AC)","v":0},{"$f":"SUMIFS(Sheet1!S71_OY1BudgetAmount,Sheet1!S71_A6Code,$AC:$AC)","v":0},{"$f":"SUMIFS(Sheet1!S71_OY2BudgetAmount,Sheet1!S71_A6Code,$AC:$AC)","v":0},null,null,null,null,null,null,null,null,null,null,null,null,null,null,null,null,"0230"]
["Property, plant and equipment",3,{"$f":"'SA3'!C121","v":0},{"$f":"'SA3'!D121","v":12928916},{"$f":"'SA3'!E121","v":11542823},{"$f":"'SA3'!F121","v":404771},{"$f":"'SA3'!G121","v":11870822},{"$f":"'SA3'!H121","v":11870822},{"$f":"'SA3'!I121","v":48920507},{"$f":"'SA3'!J121","v":10338311},{"$f":"'SA3'!K121","v":10258508},{"$f":"'SA3'!L121","v":10689630},null,null,null,null,null,null,null,null,null,null,null,null,null,null,null,null,"0240"]
[]
["Biological",null,{"$f":"SUMIFS(Sheet1!S71_PPPYearAmount,Sheet1!S71_A6Code,$AC:$AC)","v":0},{"$f":"SUMIFS(Sheet1!S71_PPYearAmount,Sheet1!S71_A6Code,$AC:$AC)","v":0},{"$f":"SUMIFS(Sheet1!S71_PYearAmount,Sheet1!S71_A6Code,$AC:$AC)","v":0},{"$f":"SUMIFS(Sheet1!S71_OriginalBudAmnt,Sheet1!S71_A6Code,$AC:$AC)","v":0},{"$f":"SUMIFS(Sheet1!S71_AdjustmentBudAmnt,Sheet1!S71_A6Code,$AC:$AC)","v":0},{"$f":"SUMIFS(Sheet1!S71_AdjustmentBudAmnt,Sheet1!S71_A6Code,$AC:$AC)","v":0},{"$f":"SUMIFS(Sheet1!CD:CD,Sheet1!S71_A6Code,$AC:$AC)","v":0},{"$f":"SUMIFS(Sheet1!S71_ASBudgetAmount,Sheet1!S71_A6Code,$AC:$AC)","v":0},{"$f":"SUMIFS(Sheet1!S71_OY1BudgetAmount,Sheet1!S71_A6Code,$AC:$AC)","v":0},{"$f":"SUMIFS(Sheet1!S71_OY2BudgetAmount,Sheet1!S71_A6Code,$AC:$AC)","v":0},null,null,null,null,null,null,null,null,null,null,null,null,null,null,null,null,"0260"]
["Intangible",null,{"$f":"SUMIFS(Sheet1!S71_PPPYearAmount,Sheet1!S71_A6Code,$AC:$AC)","v":0},{"$f":"SUMIFS(Sheet1!S71_PPYearAmount,Sheet1!S71_A6Code,$AC:$AC)","v":404759},{"$f":"SUMIFS(Sheet1!S71_PYearAmount,Sheet1!S71_A6Code,$AC:$AC)","v":1021107},{"$f":"SUMIFS(Sheet1!S71_OriginalBudAmnt,Sheet1!S71_A6Code,$AC:$AC)","v":0},{"$f":"SUMIFS(Sheet1!S71_AdjustmentBudAmnt,Sheet1!S71_A6Code,$AC:$AC)","v":1021107},{"$f":"SUMIFS(Sheet1!S71_AdjustmentBudAmnt,Sheet1!S71_A6Code,$AC:$AC)","v":1021107},{"$f":"SUMIFS(Sheet1!CD:CD,Sheet1!S71_A6Code,$AC:$AC)","v":1021107},{"$f":"SUMIFS(Sheet1!S71_ASBudgetAmount,Sheet1!S71_A6Code,$AC:$AC)","v":1021107},{"$f":"SUMIFS(Sheet1!S71_OY1BudgetAmount,Sheet1!S71_A6Code,$AC:$AC)","v":1021107},{"$f":"SUMIFS(Sheet1!S71_OY2BudgetAmount,Sheet1!S71_A6Code,$AC:$AC)","v":1021107},null,null,null,null,null,null,null,null,null,null,null,null,null,null,null,null,"0270"]
["Other non-current assets",null,{"$f":"SUMIFS(Sheet1!S71_PPPYearAmount,Sheet1!S71_A6Code,$AC:$AC)","v":0},{"$f":"SUMIFS(Sheet1!S71_PPYearAmount,Sheet1!S71_A6Code,$AC:$AC)","v":0},{"$f":"SUMIFS(Sheet1!S71_PYearAmount,Sheet1!S71_A6Code,$AC:$AC)","v":0},{"$f":"SUMIFS(Sheet1!S71_OriginalBudAmnt,Sheet1!S71_A6Code,$AC:$AC)","v":0},{"$f":"SUMIFS(Sheet1!S71_AdjustmentBudAmnt,Sheet1!S71_A6Code,$AC:$AC)","v":0},{"$f":"SUMIFS(Sheet1!S71_AdjustmentBudAmnt,Sheet1!S71_A6Code,$AC:$AC)","v":0},{"$f":"SUMIFS(Sheet1!CD:CD,Sheet1!S71_A6Code,$AC:$AC)","v":0},{"$f":"SUMIFS(Sheet1!S71_ASBudgetAmount,Sheet1!S71_A6Code,$AC:$AC)","v":0},{"$f":"SUMIFS(Sheet1!S71_OY1BudgetAmount,Sheet1!S71_A6Code,$AC:$AC)","v":0},{"$f":"SUMIFS(Sheet1!S71_OY2BudgetAmount,Sheet1!S71_A6Code,$AC:$AC)","v":0},null,null,null,null,null,null,null,null,null,null,null,null,null,null,null,null,"0280"]
["Total non current assets",null,{"$f":"SUM(C15:C19)+SUM(C21:C23)","v":0},{"$f":"SUM(D15:D19)+SUM(D21:D23)","v":13333675},12563930,404771,12891929,12891929,49941614,11359418,11279615,11710737]
["TOTAL ASSETS",null,{"$f":"C12+C24","v":0},{"$f":"D12+D24","v":25096483},{"$f":"E12+E24","v":28974834},{"$f":"F12+F24","v":404771},29931925,29931925,63929980,26744102,27273770,28359766]
[]
["LIABILITIES"]
["Current liabilities"]
["Bank overdraft",1,{"$f":"SUMIFS(Sheet1!S71_PPPYearAmount,Sheet1!S71_A6Code,$AC:$AC)","v":0},{"$f":"SUMIFS(Sheet1!S71_PPYearAmount,Sheet1!S71_A6Code,$AC:$AC)","v":0},{"$f":"SUMIFS(Sheet1!S71_PYearAmount,Sheet1!S71_A6Code,$AC:$AC)","v":0},{"$f":"SUMIFS(Sheet1!S71_OriginalBudAmnt,Sheet1!S71_A6Code,$AC:$AC)","v":0},{"$f":"SUMIFS(Sheet1!S71_AdjustmentBudAmnt,Sheet1!S71_A6Code,$AC:$AC)","v":0},{"$f":"SUMIFS(Sheet1!S71_AdjustmentBudAmnt,Sheet1!S71_A6Code,$AC:$AC)","v":0},{"$f":"SUMIFS(Sheet1!CD:CD,Sheet1!S71_A6Code,$AC:$AC)","v":0},{"$f":"SUMIFS(Sheet1!S71_ASBudgetAmount,Sheet1!S71_A6Code,$AC:$AC)","v":0},{"$f":"SUMIFS(Sheet1!S71_OY1BudgetAmount,Sheet1!S71_A6Code,$AC:$AC)","v":0},{"$f":"SUMIFS(Sheet1!S71_OY2BudgetAmount,Sheet1!S71_A6Code,$AC:$AC)","v":0},null,null,null,null,null,null,null,null,null,null,null,null,null,null,null,null,"0330"]
["Borrowing",4,{"$f":"'SA3'!C127","v":0},{"$f":"'SA3'!D127","v":0},{"$f":"'SA3'!E127","v":232688},{"$f":"'SA3'!F127","v":0},{"$f":"'SA3'!G127","v":0},{"$f":"'SA3'!H127","v":0},{"$f":"'SA3'!I127","v":-232688},{"$f":"'SA3'!J127","v":0},{"$f":"'SA3'!K127","v":0},{"$f":"'SA3'!L127","v":0},null,null,null,null,null,null,null,null,null,null,null,null,null,null,null,null,"0340"]
["Consumer deposits",null,{"$f":"SUMIFS(Sheet1!S71_PPPYearAmount,Sheet1!S71_A6Code,$AC:$AC)","v":0},{"$f":"SUMIFS(Sheet1!S71_PPYearAmount,Sheet1!S71_A6Code,$AC:$AC)","v":0},{"$f":"SUMIFS(Sheet1!S71_PYearAmount,Sheet1!S71_A6Code,$AC:$AC)","v":0},{"$f":"-SUMIFS(Sheet1!S71_OriginalBudAmnt,Sheet1!S71_A6Code,$AC:$AC)","v":0},{"$f":"-SUMIFS(Sheet1!S71_AdjustmentBudAmnt,Sheet1!S71_A6Code,$AC:$AC)","v":0},{"$f":"-SUMIFS(Sheet1!S71_AdjustmentBudAmnt,Sheet1!S71_A6Code,$AC:$AC)","v":0},{"$f":"SUMIFS(Sheet1!CD:CD,Sheet1!S71_A6Code,$AC:$AC)","v":0},{"$f":"-SUMIFS(Sheet1!S71_ASBudgetAmount,Sheet1!S71_A6Code,$AC:$AC)","v":0},{"$f":"-SUMIFS(Sheet1!S71_OY1BudgetAmount,Sheet1!S71_A6Code,$AC:$AC)","v":0},{"$f":"-SUMIFS(Sheet1!S71_OY2BudgetAmount,Sheet1!S71_A6Code,$AC:$AC)","v":0},null,null,null,null,null,null,null,null,null,null,null,null,null,null,null,null,"0350"]
["Trade and other payables",4,{"$f":"'SA3'!C134","v":0},{"$f":"'SA3'!D134","v":13422208},{"$f":"'SA3'!E134","v":17201460},{"$f":"'SA3'!F134","v":0},{"$f":"'SA3'!G134","v":16846097},{"$f":"'SA3'!H134","v":16846097},{"$f":"'SA3'!I134","v":-9249511},{"$f":"'SA3'!J134","v":14813696},{"$f":"'SA3'!K134","v":14791945},{"$f":"'SA3'!L134","v":15432377},null,null,null,null,null,null,null,null,null,null,null,null,null,null,null,null,"0360"]
["Provisions",null,{"$f":"SUMIFS(Sheet1!S71_PPPYearAmount,Sheet1!S71_A6Code,$AC:$AC)","v":0},{"$f":"SUMIFS(Sheet1!S71_PPYearAmount,Sheet1!S71_A6Code,$AC:$AC)","v":2032276},{"$f":"SUMIFS(Sheet1!S71_PYearAmount,Sheet1!S71_A6Code,$AC:$AC)","v":157111},{"$f":"-SUMIFS(Sheet1!S71_OriginalBudAmnt,Sheet1!S71_A6Code,$AC:$AC)","v":0},{"$f":"-SUMIFS(Sheet1!S71_AdjustmentBudAmnt,Sheet1!S71_A6Code,$AC:$AC)","v":0},{"$f":"-SUMIFS(Sheet1!S71_AdjustmentBudAmnt,Sheet1!S71_A6Code,$AC:$AC)","v":0},{"$f":"SUMIFS(Sheet1!CD:CD,Sheet1!S71_A6Code,$AC:$AC)","v":157111},{"$f":"-SUMIFS(Sheet1!S71_ASBudgetAmount,Sheet1!S71_A6Code,$AC:$AC)","v":157111},{"$f":"-SUMIFS(Sheet1!S71_OY1BudgetAmount,Sheet1!S71_A6Code,$AC:$AC)","v":163238},{"$f":"-SUMIFS(Sheet1!S71_OY2BudgetAmount,Sheet1!S71_A6Code,$AC:$AC)","v":170094},null,null,null,null,null,null,null,null,null,null,null,null,null,null,null,null,"0370"]
["Total current liabilities",null,{"$f":"SUM(C29:C33)","v":0},15454484,17591259,0,16846097,16846097,-9325088,14970807,14955183,15602471]
[]
["Non current liabilities"]
["Borrowing",null,{"$f":"'SA3'!C139","v":0},{"$f":"'SA3'!D139","v":545637},{"$f":"'SA3'!E139","v":104910},{"$f":"'SA3'!F139","v":0},{"$f":"'SA3'!G139","v":0},{"$f":"'SA3'!H139","v":0},{"$f":"'SA3'!I139","v":-104910},{"$f":"'SA3'!J139","v":0},{"$f":"'SA3'!K139","v":0},{"$f":"'SA3'!L139","v":0},null,null,null,null,null,null,null,null,null,null,null,null,null,null,null,null,"0400"]
["Provisions",null,{"$f":"'SA3'!C146","v":0},{"$f":"'SA3'!D146","v":0},{"$f":"'SA3'!E146","v":1919418},{"$f":"'SA3'!F146","v":0},{"$f":"'SA3'!G146","v":0},{"$f":"'SA3'!H146","v":0},{"$f":"'SA3'!I146","v":-1919418},{"$f":"'SA3'!J146","v":1919418},{"$f":"'SA3'!K146","v":1994275},{"$f":"'SA3'!L146","v":2078035},null,null,null,null,null,null,null,null,null,null,null,null,null,null,null,null,"0410"]
["Total non current liabilities",null,{"$f":"SUM(C37:C38)","v":0},{"$f":"SUM(D37:D38)","v":545637},{"$f":"SUM(E37:E38)","v":2024328},{"$f":"SUM(F37:F38)","v":0},0,0,-2024328,1919418,{"$f":"SUM(K37:K38)","v":1994275},2078035]
["TOTAL LIABILITIES",null,{"$f":"C34+C39","v":0},{"$f":"D34+D39","v":16000121},{"$f":"E34+E39","v":19615587},{"$f":"F34+F39","v":0},16846097,16846097,-11349416,16890225,{"$f":"K34+K39","v":16949458},17680506]
[]
["NET ASSETS",5,{"$f":"C25-C40","v":0},9096362,9359247,404771,13085828,13085828,75279396,9853877,10324312,10679260]
[]
["COMMUNITY WEALTH/EQUITY"]
["Accumulated Surplus/(Deficit)",null,{"$f":"SUMIFS(Sheet1!S71_PPPYearAmount,Sheet1!S71_A6Code,$AC:$AC)","v":0},{"$f":"SUMIFS(Sheet1!S71_PPYearAmount,Sheet1!S71_A6Code,$AC:$AC)","v":2145463},{"$f":"SUMIFS(Sheet1!S71_PYearAmount,Sheet1!S71_A6Code,$AC:$AC)","v":2145463},{"$f":"-SUMIFS(Sheet1!S71_OriginalBudAmnt,Sheet1!S71_A6Code,$AC:$AC)-SUMIFS(Sheet1!S71_OriginalBudAmnt,Sheet1!S71_ItemType,$AD$6)-SUMIFS(Sheet1!S71_OriginalBudAmnt,Sheet1!S71_ItemType,$AD$7)","v":404771},{"$f":"-SUMIFS(Sheet1!S71_AdjustmentBudAmnt,Sheet1!S71_A6Code,$AC:$AC)-SUMIFS(Sheet1!S71_AdjustmentBudAmnt,Sheet1!S71_ItemType,$AD$6)-SUMIFS(Sheet1!S71_AdjustmentBudAmnt,Sheet1!S71_ItemType,$AD$7)","v":9993727},{"$f":"-SUMIFS(Sheet1!S71_AdjustmentBudAmnt,Sheet1!S71_A6Code,$AC:$AC)-SUMIFS(Sheet1!S71_AdjustmentBudAmnt,Sheet1!S71_ItemType,$AD$6)-SUMIFS(Sheet1!S71_AdjustmentBudAmnt,Sheet1!S71_ItemType,$AD$7)","v":9993727},{"$f":"-SUMIFS(Sheet1!CD:CD,Sheet1!S71_A6Code,$AC:$AC)-SUMIFS(Sheet1!CD:CD,Sheet1!S71_ItemType,$AD$6)-SUMIFS(Sheet1!CD:CD,Sheet1!S71_ItemType,$AD$7)","v":-120161820},{"$f":"-SUMIFS(Sheet1!S71_ASBudgetAmount,Sheet1!S71_A6Code,$AC:$AC)-SUMIFS(Sheet1!S71_ASBudgetAmount,Sheet1!S71_ItemType,$AD$6)-SUMIFS(Sheet1!S71_ASBudgetAmount,Sheet1!S71_ItemType,$AD$7)","v":10630630},{"$f":"-SUMIFS(Sheet1!S71_OY1BudgetAmount,Sheet1!S71_A6Code,$AC:$AC)-SUMIFS(Sheet1!S71_OY1BudgetAmount,Sheet1!S71_ItemType,$AD$6)-SUMIFS(Sheet1!S71_OY1BudgetAmount,Sheet1!S71_ItemType,$AD$7)","v":10592523},{"$f":"-SUMIFS(Sheet1!S71_OY2BudgetAmount,Sheet1!S71_A6Code,$AC:$AC)-SUMIFS(Sheet1!S71_OY2BudgetAmount,Sheet1!S71_ItemType,$AD$6)-SUMIFS(Sheet1!S71_OY2BudgetAmount,Sheet1!S71_ItemType,$AD$7)","v":11037924},null,null,null,null,null,null,null,null,null,null,null,null,null,null,null,null,"0460"]
["Reserves",4,{"$f":"'SA3'!C165","v":0},{"$f":"'SA3'!D165","v":0},{"$f":"'SA3'!E165","v":0},{"$f":"'SA3'!F165","v":0},{"$f":"'SA3'!G165","v":0},{"$f":"'SA3'!H165","v":0},{"$f":"'SA3'!I165","v":0},{"$f":"'SA3'!J165","v":0},{"$f":"'SA3'!K165","v":0},{"$f":"'SA3'!L165","v":0},null,null,null,null,null,null,null,null,null,null,null,null,null,null,null,null,"0470"]
[]
["TOTAL COMMUNITY WEALTH/EQUITY",5,{"$f":"SUM(C45:C46)","v":0},{"$f":"SUM(D45:D46)","v":2145463},2145463,404771,9993727,9993727,-120161820,10630630,10592523,11037924]
[{"$f":"head27a","v":"References"}]
["1. Detail to be provided in Table SA3"]
["2. Include completed low cost housing to be transferred to beneficiaries within 12 months"]
["3. Include 'Construction-work-in-progress' (disclosed separately in annual financial statements)"]
["4. Detail to be provided in Table SA3. Includes reserves to be funded by statute."]
["5. Net assets must balance with Total Community Wealth/Equity"]
["check balance",null,{"$f":"IF((C42-C48)=0,0,\"Unbalanced\")","v":0},{"$f":"IF((D42-D48)=0,0,\"Unbalanced\")","v":"Unbalanced"},"Unbalanced",0,"Unbalanced","Unbalanced","Unbalanced","Unbalanced","Unbalanced","Unbalanced"]

{"sheet":"A7-CFlow","index":25,"n_rows":51,"n_cols":30,"rows_kept":51,"cut":false,"hidden":false,"merged":[[1,9,1,11],[1,5,1,8]]}
[{"$f":"muni&\" - \"&Approve7","v":"DC16 Xhariep - Table A7 Budgeted Cash Flows"}]
[{"$f":"desc","v":"Description"},{"$f":"head27","v":"Ref"},{"$f":"head1b","v":"2017/18"},{"$f":"head1A","v":"2018/19"},{"$f":"Head1","v":"2019/20"},{"$f":"Head2","v":"Current Year 2020/21"},null,null,null,{"$f":"Head3","v":"2021/22 Medium Term Revenue & Expenditure Framework"}]
["R thousand",null,{"$f":"Head5","v":"Audited Outcome"},{"$f":"Head5","v":"Audited Outcome"},{"$f":"Head5","v":"Audited Outcome"},{"$f":"Head6","v":"Original Budget"},{"$f":"Head7","v":"Adjusted Budget"},{"$f":"Head8","v":"Full Year Forecast"},{"$f":"Head5b","v":"Pre-audit outcome"},{"$f":"Head9","v":"Budget Year 2021/22"},{"$f":"Head10","v":"Budget Year +1 2022/23"},{"$f":"Head11","v":"Budget Year +2 2023/24"}]
["CASH FLOW FROM OPERATING ACTIVITIES"]
["Receipts"]
["Property rates",null,{"$f":"SUMIFS(Sheet1!S71_PPPYearAmount,Sheet1!S71_A7Code,$AC:$AC)","v":0},{"$f":"SUMIFS(Sheet1!S71_PPYearAmount,Sheet1!S71_A7Code,$AC:$AC)","v":0},{"$f":"SUMIFS(Sheet1!S71_PYearAmount,Sheet1!S71_A7Code,$AC:$AC)","v":0},{"$f":"SUMIFS(Sheet1!S71_OriginalBudAmnt,Sheet1!S71_A7Code,$AC:$AC)","v":0},{"$f":"SUMIFS(Sheet1!S71_AdjustmentBudAmnt,Sheet1!S71_A7Code,$AC:$AC)","v":0},{"$f":"SUMIFS(Sheet1!S71_AdjustmentBudAmnt,Sheet1!S71_A7Code,$AC:$AC)","v":0},{"$f":"SUMIFS(Sheet1!CD:CD,Sheet1!S71_A7Code,$AC:$AC)","v":0},{"$f":"'SA30'!N5","v":0},{"$f":"'SA30'!O5","v":0},{"$f":"'SA30'!P5","v":0},null,null,null,null,null,null,null,null,null,null,null,null,null,null,null,null,"0120D"]
["Service charges",null,{"$f":"SUMIFS(Sheet1!S71_PPPYearAmount,Sheet1!S71_A7Code,$AC:$AC)","v":0},{"$f":"SUMIFS(Sheet1!S71_PPYearAmount,Sheet1!S71_A7Code,$AC:$AC)","v":0},{"$f":"SUMIFS(Sheet1!S71_PYearAmount,Sheet1!S71_A7Code,$AC:$AC)","v":0},{"$f":"SUMIFS(Sheet1!S71_OriginalBudAmnt,Sheet1!S71_A7Code,$AC:$AC)","v":0},{"$f":"SUMIFS(Sheet1!S71_AdjustmentBudAmnt,Sheet1!S71_A7Code,$AC:$AC)","v":0},{"$f":"SUMIFS(Sheet1!S71_AdjustmentBudAmnt,Sheet1!S71_A7Code,$AC:$AC)","v":0},{"$f":"SUMIFS(Sheet1!CD:CD,Sheet1!S71_A7Code,$AC:$AC)","v":0},{"$f":"'SA30'!N6+'SA30'!N7+'SA30'!N8+'SA30'!N9","v":0},{"$f":"'SA30'!O6+'SA30'!O7+'SA30'!O8+'SA30'!O9","v":0},{"$f":"'SA30'!P6+'SA30'!P7+'SA30'!P8+'SA30'!P9","v":0},null,null,null,null,null,null,null,null,null,null,null,null,null,null,null,null,"0130D"]
["Other revenue",null,{"$f":"SUMIFS(Sheet1!S71_PPPYearAmount,Sheet1!S71_A7Code,$AC:$AC)","v":0},{"$f":"SUMIFS(Sheet1!S71_PPYearAmount,Sheet1!S71_A7Code,$AC:$AC)","v":0},{"$f":"SUMIFS(Sheet1!S71_PYearAmount,Sheet1!S71_A7Code,$AC:$AC)","v":0},{"$f":"SUMIFS(Sheet1!S71_OriginalBudAmnt,Sheet1!S71_A7Code,$AC:$AC)","v":0},{"$f":"SUMIFS(Sheet1!S71_AdjustmentBudAmnt,Sheet1!S71_A7Code,$AC:$AC)","v":1777519},{"$f":"SUMIFS(Sheet1!S71_AdjustmentBudAmnt,Sheet1!S71_A7Code,$AC:$AC)","v":1777519},{"$f":"SUMIFS(Sheet1!CD:CD,Sheet1!S71_A7Code,$AC:$AC)","v":0},{"$f":"'SA30'!N11+'SA30'!N15+'SA30'!N16+'SA30'!N17+'SA30'!N19","v":1639183},{"$f":"'SA30'!O11+'SA30'!O15+'SA30'!O16+'SA30'!O17+'SA30'!O19","v":907276},{"$f":"'SA30'!P11+'SA30'!P15+'SA30'!P16+'SA30'!P17+'SA30'!P19","v":939676},null,null,null,null,null,null,null,null,null,null,null,null,null,null,null,null,"0140D"]
["Transfers and Subsidies - Operational",1,{"$f":"SUMIFS(Sheet1!S71_PPPYearAmount,Sheet1!S71_A7Code,$AC:$AC)","v":0},{"$f":"SUMIFS(Sheet1!S71_PPYearAmount,Sheet1!S71_A7Code,$AC:$AC)","v":0},{"$f":"SUMIFS(Sheet1!S71_PYearAmount,Sheet1!S71_A7Code,$AC:$AC)","v":0},{"$f":"SUMIFS(Sheet1!S71_OriginalBudAmnt,Sheet1!S71_A7Code,$AC:$AC)","v":0},{"$f":"SUMIFS(Sheet1!S71_AdjustmentBudAmnt,Sheet1!S71_A7Code,$AC:$AC)","v":64739363},{"$f":"SUMIFS(Sheet1!S71_AdjustmentBudAmnt,Sheet1!S71_A7Code,$AC:$AC)","v":64739363},{"$f":"SUMIFS(Sheet1!CD:CD,Sheet1!S71_A7Code,$AC:$AC)","v":0},{"$f":"'SA30'!N18","v":61832000},{"$f":"'SA30'!O18","v":68876000},{"$f":"'SA30'!P18","v":69927392},null,null,null,null,null,null,null,null,null,null,null,null,null,null,null,null,"0150D"]
["Transfers and Subsidies - Capital",1,{"$f":"SUMIFS(Sheet1!S71_PPPYearAmount,Sheet1!S71_A7Code,$AC:$AC)","v":0},{"$f":"SUMIFS(Sheet1!S71_PPYearAmount,Sheet1!S71_A7Code,$AC:$AC)","v":0},{"$f":"SUMIFS(Sheet1!S71_PYearAmount,Sheet1!S71_A7Code,$AC:$AC)","v":0},{"$f":"SUMIFS(Sheet1!S71_OriginalBudAmnt,Sheet1!S71_A7Code,$AC:$AC)","v":0},{"$f":"SUMIFS(Sheet1!S71_AdjustmentBudAmnt,Sheet1!S71_A7Code,$AC:$AC)","v":0},{"$f":"SUMIFS(Sheet1!S71_AdjustmentBudAmnt,Sheet1!S71_A7Code,$AC:$AC)","v":0},{"$f":"SUMIFS(Sheet1!CD:CD,Sheet1!S71_A7Code,$AC:$AC)","v":0},{"$f":"'SA30'!N23","v":0},{"$f":"'SA30'!O23","v":0},{"$f":"'SA30'!P23","v":0},null,null,null,null,null,null,null,null,null,null,null,null,null,null,null,null,"0160D"]
["Interest",null,{"$f":"SUMIFS(Sheet1!S71_PPPYearAmount,Sheet1!S71_A7Code,$AC:$AC)","v":0},{"$f":"SUMIFS(Sheet1!S71_PPYearAmount,Sheet1!S71_A7Code,$AC:$AC)","v":0},{"$f":"SUMIFS(Sheet1!S71_PYearAmount,Sheet1!S71_A7Code,$AC:$AC)","v":0},{"$f":"SUMIFS(Sheet1!S71_OriginalBudAmnt,Sheet1!S71_A7Code,$AC:$AC)","v":0},{"$f":"SUMIFS(Sheet1!S71_AdjustmentBudAmnt,Sheet1!S71_A7Code,$AC:$AC)","v":0},{"$f":"SUMIFS(Sheet1!S71_AdjustmentBudAmnt,Sheet1!S71_A7Code,$AC:$AC)","v":0},{"$f":"SUMIFS(Sheet1!CD:CD,Sheet1!S71_A7Code,$AC:$AC)","v":0},{"$f":"'SA30'!N12+'SA30'!N13","v":620000},{"$f":"'SA30'!O12+'SA30'!O13","v":640000},{"$f":"'SA30'!P12+'SA30'!P13","v":650000},null,null,null,null,null,null,null,null,null,null,null,null,null,null,null,null,"0170I"]
["Dividends",null,{"$f":"SUMIFS(Sheet1!S71_PPPYearAmount,Sheet1!S71_A7Code,$AC:$AC)","v":0},{"$f":"SUMIFS(Sheet1!S71_PPYearAmount,Sheet1!S71_A7Code,$AC:$AC)","v":0},{"$f":"SUMIFS(Sheet1!S71_PYearAmount,Sheet1!S71_A7Code,$AC:$AC)","v":0},{"$f":"SUMIFS(Sheet1!S71_OriginalBudAmnt,Sheet1!S71_A7Code,$AC:$AC)","v":0},{"$f":"SUMIFS(Sheet1!S71_AdjustmentBudAmnt,Sheet1!S71_A7Code,$AC:$AC)","v":0},{"$f":"SUMIFS(Sheet1!S71_AdjustmentBudAmnt,Sheet1!S71_A7Code,$AC:$AC)","v":0},{"$f":"SUMIFS(Sheet1!CD:CD,Sheet1!S71_A7Code,$AC:$AC)","v":0},{"$f":"'SA30'!N14","v":0},{"$f":"'SA30'!O14","v":0},{"$f":"'SA30'!P14","v":0},null,null,null,null,null,null,null,null,null,null,null,null,null,null,null,null,"0180D"]
["Payments"]
["Suppliers and employees",null,{"$f":"SUMIFS(Sheet1!S71_PPPYearAmount,Sheet1!S71_A7CodePayments,$AC:$AC)","v":0},{"$f":"SUMIFS(Sheet1!S71_PPYearAmount,Sheet1!S71_A7CodePayments,$AC:$AC)","v":0},{"$f":"SUMIFS(Sheet1!S71_PYearAmount,Sheet1!S71_A7CodePayments,$AC:$AC)","v":23479181},{"$f":"-SUMIFS(Sheet1!S71_OriginalBudAmnt,Sheet1!S71_A7CodePayments,$AC:$AC)","v":0},{"$f":"-SUMIFS(Sheet1!S71_AdjustmentBudAmnt,Sheet1!S71_A7CodePayments,$AC:$AC)","v":0},{"$f":"-SUMIFS(Sheet1!S71_AdjustmentBudAmnt,Sheet1!S71_A7CodePayments,$AC:$AC)","v":0},{"$f":"-SUMIFS(Sheet1!CD:CD,Sheet1!S71_A7CodePayments,$AC:$AC)","v":-48895803},{"$f":"-('SA30'!N35+'SA30'!N36+'SA30'!N38+'SA30'!N39+'SA30'!N40+'SA30'!N41+'SA30'!N44+'SA30'!N50)","v":-61342185},{"$f":"-('SA30'!O35+'SA30'!O36+'SA30'!O38+'SA30'!O39+'SA30'!O40+'SA30'!O41+'SA30'!O44+'SA30'!O50)","v":-67243123},{"$f":"-('SA30'!P35+'SA30'!P36+'SA30'!P38+'SA30'!P39+'SA30'!P40+'SA30'!P41+'SA30'!P44+'SA30'!P50)","v":-68623494},null,null,null,null,null,null,null,null,null,null,null,null,null,null,null,null,"0200"]
["Finance charges",null,{"$f":"SUMIFS(Sheet1!S71_PPPYearAmount,Sheet1!S71_A7CodePayments,$AC:$AC)","v":0},{"$f":"SUMIFS(Sheet1!S71_PPYearAmount,Sheet1!S71_A7CodePayments,$AC:$AC)","v":0},{"$f":"SUMIFS(Sheet1!S71_PYearAmount,Sheet1!S71_A7CodePayments,$AC:$AC)","v":0},{"$f":"-SUMIFS(Sheet1!S71_OriginalBudAmnt,Sheet1!S71_A7CodePayments,$AC:$AC)","v":0},{"$f":"-SUMIFS(Sheet1!S71_AdjustmentBudAmnt,Sheet1!S71_A7CodePayments,$AC:$AC)","v":-426919},{"$f":"-SUMIFS(Sheet1!S71_AdjustmentBudAmnt,Sheet1!S71_A7CodePayments,$AC:$AC)","v":-426919},{"$f":"-SUMIFS(Sheet1!CD:CD,Sheet1!S71_A7CodePayments,$AC:$AC)","v":0},{"$f":"-('SA30'!N37)","v":-80000},{"$f":"-('SA30'!O37)","v":-411060},{"$f":"-('SA30'!P37)","v":-433257},null,null,null,null,null,null,null,null,null,null,null,null,null,null,null,null,"0210"]
["Transfers and Grants",1,{"$f":"SUMIFS(Sheet1!S71_PPPYearAmount,Sheet1!S71_A7CodePayments,$AC:$AC)","v":0},{"$f":"SUMIFS(Sheet1!S71_PPYearAmount,Sheet1!S71_A7CodePayments,$AC:$AC)","v":0},{"$f":"SUMIFS(Sheet1!S71_PYearAmount,Sheet1!S71_A7CodePayments,$AC:$AC)","v":0},{"$f":"-SUMIFS(Sheet1!S71_OriginalBudAmnt,Sheet1!S71_A7CodePayments,$AC:$AC)","v":0},{"$f":"-SUMIFS(Sheet1!S71_AdjustmentBudAmnt,Sheet1!S71_A7CodePayments,$AC:$AC)","v":0},{"$f":"-SUMIFS(Sheet1!S71_AdjustmentBudAmnt,Sheet1!S71_A7CodePayments,$AC:$AC)","v":0},{"$f":"-SUMIFS(Sheet1!CD:CD,Sheet1!S71_A7CodePayments,$AC:$AC)","v":0},{"$f":"-('SA30'!N42+'SA30'!N43)","v":0},{"$f":"-('SA30'!O42+'SA30'!O43)","v":0},{"$f":"-('SA30'!P42+'SA30'!P43)","v":0},null,null,null,null,null,null,null,null,null,null,null,null,null,null,null,null,"0220"]
["NET CASH FROM/(USED) OPERATING ACTIVITIES",null,{"$f":"SUM(C6:C12)+SUM(C14:C16)","v":0},0,23479181,0,66089963,66089963,-48895803,2668998,2769093,2460317]
[]
["CASH FLOWS FROM INVESTING ACTIVITIES"]
["Receipts"]
["Proceeds on disposal of PPE",null,{"$f":"SUMIFS(Sheet1!S71_PPPYearAmount,Sheet1!S71_A7Code,$AC:$AC)","v":0},{"$f":"SUMIFS(Sheet1!S71_PPYearAmount,Sheet1!S71_A7Code,$AC:$AC)","v":0},{"$f":"SUMIFS(Sheet1!S71_PYearAmount,Sheet1!S71_A7Code,$AC:$AC)","v":0},{"$f":"SUMIFS(Sheet1!S71_OriginalBudAmnt,Sheet1!S71_A7Code,$AC:$AC)","v":0},{"$f":"SUMIFS(Sheet1!S71_AdjustmentBudAmnt,Sheet1!S71_A7Code,$AC:$AC)","v":0},{"$f":"SUMIFS(Sheet1!S71_AdjustmentBudAmnt,Sheet1!S71_A7Code,$AC:$AC)","v":0},{"$f":"SUMIFS(Sheet1!CD:CD,Sheet1!S71_A7Code,$AC:$AC)","v":0},{"$f":"'SA30'!N25","v":0},{"$f":"'SA30'!O25","v":0},{"$f":"'SA30'!P25","v":0},null,null,null,null,null,null,null,null,null,null,null,null,null,null,null,null,"0260D"]
[]
["Decrease (increase) in non-current receivables",null,null,null,null,null,null,null,null,{"$f":"'SA30'!N30","v":0},{"$f":"'SA30'!O30","v":0},{"$f":"'SA30'!P30","v":0}]
["Decrease (increase) in non-current investments",null,null,null,null,null,null,null,null,{"$f":"'SA30'!N31","v":0},{"$f":"'SA30'!O31","v":0},{"$f":"'SA30'!P31","v":0}]
["Payments"]
["Capital assets",null,{"$f":"SUMIFS(Sheet1!S71_PPPYearAmount,Sheet1!S71_A7CodePayments,$AC:$AC)","v":0},{"$f":"SUMIFS(Sheet1!S71_PPYearAmount,Sheet1!S71_A7CodePayments,$AC:$AC)","v":0},{"$f":"SUMIFS(Sheet1!S71_PYearAmount,Sheet1!S71_A7CodePayments,$AC:$AC)","v":0},{"$f":"SUMIFS(Sheet1!S71_OriginalBudAmnt,Sheet1!S71_A7CodePayments,$AC:$AC)","v":0},{"$f":"SUMIFS(Sheet1!S71_AdjustmentBudAmnt,Sheet1!S71_A7CodePayments,$AC:$AC)","v":0},{"$f":"SUMIFS(Sheet1!S71_AdjustmentBudAmnt,Sheet1!S71_A7CodePayments,$AC:$AC)","v":0},{"$f":"SUMIFS(Sheet1!CD:CD,Sheet1!S71_A7CodePayments,$AC:$AC)","v":0},{"$f":"-('SA30'!N48)","v":0},{"$f":"-('SA30'!O48)","v":0},{"$f":"-('SA30'!P48)","v":0},null,null,null,null,null,null,null,null,null,null,null,null,null,null,null,null,"0310"]
["NET CASH FROM/(USED) INVESTING ACTIVITIES",null,{"$f":"+C21+C23+C24+C26","v":0},{"$f":"+D21+D23+D24+D26","v":0},0,0,0,0,0,0,0,0]
[]
["CASH FLOWS FROM FINANCING ACTIVITIES"]
["Receipts"]
["Short term loans",null,{"$f":"SUMIFS(Sheet1!S71_PPPYearAmount,Sheet1!S71_SA30FDSubCode,$AC:$AC,Sheet1!S71_CFCode,$AD:$AD)","v":0},{"$f":"SUMIFS(Sheet1!S71_PPYearAmount,Sheet1!S71_SA30FDSubCode,$AC:$AC,Sheet1!S71_CFCode,$AD:$AD)","v":0},{"$f":"SUMIFS(Sheet1!S71_PYearAmount,Sheet1!S71_SA30FDSubCode,$AC:$AC,Sheet1!S71_CFCode,$AD:$AD)","v":0},{"$f":"SUMIFS(Sheet1!S71_OriginalBudAmnt,Sheet1!S71_SA30FDSubCode,$AC:$AC,Sheet1!S71_CFCode,$AD:$AD)","v":0},{"$f":"SUMIFS(Sheet1!S71_AdjustmentBudAmnt,Sheet1!S71_SA30FDSubCode,$AC:$AC,Sheet1!S71_CFCode,$AD:$AD)","v":0},{"$f":"SUMIFS(Sheet1!S71_AdjustmentBudAmnt,Sheet1!S71_SA30FDSubCode,$AC:$AC,Sheet1!S71_CFCode,$AD:$AD)","v":0},{"$f":"SUMIFS(Sheet1!CD:CD,Sheet1!S71_SA30FDSubCode,$AC:$AC,Sheet1!S71_CFCode,$AD:$AD)","v":0},{"$f":"'SA30'!N26","v":0},{"$f":"'SA30'!O26","v":0},{"$f":"'SA30'!P26","v":0},null,null,null,null,null,null,null,null,null,null,null,null,null,null,null,null,"0350","D"]
["Borrowing long term/refinancing",null,{"$f":"SUMIFS(Sheet1!S71_PPPYearAmount,Sheet1!S71_A7SubCode,$AC:$AC,Sheet1!S71_CFCode,$AD:$AD)","v":0},{"$f":"SUMIFS(Sheet1!S71_PPYearAmount,Sheet1!S71_A7SubCode,$AC:$AC,Sheet1!S71_CFCode,$AD:$AD)","v":0},{"$f":"SUMIFS(Sheet1!S71_PYearAmount,Sheet1!S71_A7SubCode,$AC:$AC,Sheet1!S71_CFCode,$AD:$AD)","v":0},{"$f":"SUMIFS(Sheet1!S71_OriginalBudAmnt,Sheet1!S71_A7SubCode,$AC:$AC,Sheet1!S71_CFCode,$AD:$AD)","v":0},{"$f":"SUMIFS(Sheet1!S71_AdjustmentBudAmnt,Sheet1!S71_A7SubCode,$AC:$AC,Sheet1!S71_CFCode,$AD:$AD)","v":0},{"$f":"SUMIFS(Sheet1!S71_AdjustmentBudAmnt,Sheet1!S71_A7SubCode,$AC:$AC,Sheet1!S71_CFCode,$AD:$AD)","v":0},{"$f":"SUMIFS(Sheet1!CD:CD,Sheet1!S71_A7SubCode,$AC:$AC,Sheet1!S71_CFCode,$AD:$AD)","v":0},{"$f":"'SA30'!N27","v":0},{"$f":"'SA30'!O27","v":0},{"$f":"'SA30'!P27","v":0},null,null,null,null,null,null,null,null,null,null,null,null,null,null,null,null,"0360","D"]
["Increase (decrease) in consumer deposits",null,{"$f":"SUMIFS(Sheet1!S71_PPPYearAmount,Sheet1!S71_A7Code,$AC:$AC)","v":0},{"$f":"SUMIFS(Sheet1!S71_PPYearAmount,Sheet1!S71_A7Code,$AC:$AC)","v":0},{"$f":"SUMIFS(Sheet1!S71_PYearAmount,Sheet1!S71_A7Code,$AC:$AC)","v":0},{"$f":"SUMIFS(Sheet1!S71_OriginalBudAmnt,Sheet1!S71_A7Code,$AC:$AC)","v":0},{"$f":"SUMIFS(Sheet1!S71_AdjustmentBudAmnt,Sheet1!S71_A7Code,$AC:$AC)","v":0},{"$f":"SUMIFS(Sheet1!S71_AdjustmentBudAmnt,Sheet1!S71_A7Code,$AC:$AC)","v":0},{"$f":"SUMIFS(Sheet1!CD:CD,Sheet1!S71_SA30FDSubCode,$AC:$AC,Sheet1!S71_CFCode,$AD:$AD)","v":0},{"$f":"'SA30'!N28","v":0},{"$f":"'SA30'!O28","v":0},{"$f":"'SA30'!P28","v":0}]
["Payments"]
["Repayment of borrowing",null,{"$f":"SUMIFS(Sheet1!S71_PPPYearAmount,Sheet1!S71_A7CodePayments,$AC:$AC)","v":0},{"$f":"SUMIFS(Sheet1!S71_PPYearAmount,Sheet1!S71_A7CodePayments,$AC:$AC)","v":0},{"$f":"SUMIFS(Sheet1!S71_PYearAmount,Sheet1!S71_A7CodePayments,$AC:$AC)","v":0},{"$f":"-SUMIFS(Sheet1!S71_OriginalBudAmnt,Sheet1!S71_A7CodePayments,$AC:$AC)","v":0},{"$f":"-SUMIFS(Sheet1!S71_AdjustmentBudAmnt,Sheet1!S71_A7CodePayments,$AC:$AC)","v":0},{"$f":"-SUMIFS(Sheet1!S71_AdjustmentBudAmnt,Sheet1!S71_A7CodePayments,$AC:$AC)","v":0},{"$f":"SUMIFS(Sheet1!CD:CD,Sheet1!S71_A7CodePayments,$AC:$AC)","v":0},{"$f":"-('SA30'!N49)","v":0},{"$f":"-('SA30'!O49)","v":0},{"$f":"-('SA30'!P49)","v":0},null,null,null,null,null,null,null,null,null,null,null,null,null,null,null,null,"0390"]
["NET CASH FROM/(USED) FINANCING ACTIVITIES",null,{"$f":"SUM(C31:C33)+C35","v":0},{"$f":"SUM(D31:D33)+D35","v":0},0,0,0,0,0,0,0,0]
[]
["NET INCREASE/ (DECREASE) IN CASH HELD",null,{"$f":"C17+C27+C36","v":0},{"$f":"D17+D27+D36","v":0},23479181,0,66089963,66089963,-48895803,2668998,2769093,2460317]
["Cash/cash equivalents at the year begin:",2,{"$f":"SUMIFS(Sheet1!S71_PPPYearAmount,Sheet1!S71_A7CodePayments,$AC:$AC)","v":0},{"$f":"SUMIFS(Sheet1!S71_PPYearAmount,Sheet1!S71_A7CodePayments,$AC:$AC)","v":0},{"$f":"SUMIFS(Sheet1!S71_PYearAmount,Sheet1!S71_A7CodePayments,$AC:$AC)","v":0},{"$f":"SUMIFS(Sheet1!S71_OriginalBudAmnt,Sheet1!S71_A7CodePayments,$AC:$AC)","v":0},{"$f":"SUMIFS(Sheet1!S71_AdjustmentBudAmnt,Sheet1!S71_A7CodePayments,$AC:$AC)","v":0},{"$f":"SUMIFS(Sheet1!S71_AdjustmentBudAmnt,Sheet1!S71_A7CodePayments,$AC:$AC)","v":0},{"$f":"SUMIFS(Sheet1!CD:CD,Sheet1!S71_A7CodePayments,$AC:$AC)","v":0},{"$f":"'SA30'!N54","v":0},{"$f":"J40","v":2668998},{"$f":"K40","v":5438091},null,null,null,null,null,null,null,null,null,null,null,null,null,null,null,null,"0420"]
["Cash/cash equivalents at the year end:",2,{"$f":"C38+C39","v":0},{"$f":"D38+D39","v":0},{"$f":"E38+E39","v":23479181},{"$f":"F38+F39","v":0},66089963,66089963,-48895803,2668998,5438091,7898408]
[{"$f":"head27a","v":"References"}]
["1. Local/District municipalities to include transfers from/to District/Local Municipalities"]
["2. Cash equivalents includes investments with maturities of 3 months or less"]
["3. The MTREF is populated directly from SA30."]
["Total receipts",null,{"$f":"SUM(C6:C12)+SUM(C21:C23)","v":0},0,0,0,66516882,66516882,0,64091183,70423276,71517068]
["Total payments",null,{"$f":"SUM(C14:C16)+C26","v":0},{"$f":"SUM(D14:D16)+D26","v":0},23479181,0,-426919,-426919,-48895803,-61422185,-67654183,-69056751]
[null,null,{"$f":"C45+C46","v":0},{"$f":"D45+D46","v":0},23479181,0,66089963,66089963,-48895803,2668998,2769093,2460317]
["Borrowings & investments & c.deposits",null,{"$f":"C24+C32+C33","v":0},{"$f":"D24+D32+D33","v":0},0,0,0,0,0,0,0,0]
[{"$f":"A35","v":"Repayment of borrowing"},null,{"$f":"C35","v":0},{"$f":"D35","v":0},0,0,0,0,{"$f":"I35","v":0},0,0,0]
[null,null,{"$f":"C47+C48+C49","v":0},{"$f":"D47+D48+D49","v":0},23479181,0,66089963,66089963,-48895803,2668998,2769093,2460317]
[null,null,{"$f":"C38-C50","v":0},0,0,0,0,0,0,0,0,0]

{"sheet":"A8-ResRecon","index":26,"n_rows":67,"n_cols":12,"rows_kept":67,"cut":false,"hidden":false,"merged":[[1,9,1,11],[1,5,1,8]]}
[{"$f":"muni&\" - \"&Approve8","v":"DC16 Xhariep - Table A8 Cash backed reserves/accumulated surplus reconciliation"}]
[{"$f":"desc","v":"Description"},{"$f":"head27","v":"Ref"},{"$f":"head1b","v":"2017/18"},{"$f":"head1A","v":"2018/19"},{"$f":"Head1","v":"2019/20"},{"$f":"Head2","v":"Current Year 2020/21"},null,null,null,{"$f":"Head3","v":"2021/22 Medium Term Revenue & Expenditure Framework"}]
["R thousand",null,{"$f":"Head5","v":"Audited Outcome"},{"$f":"Head5","v":"Audited Outcome"},{"$f":"Head5","v":"Audited Outcome"},{"$f":"Head6","v":"Original Budget"},{"$f":"Head7","v":"Adjusted Budget"},{"$f":"Head8","v":"Full Year Forecast"},{"$f":"Head5b","v":"Pre-audit outcome"},{"$f":"Head9","v":"Budget Year 2021/22"},{"$f":"Head10","v":"Budget Year +1 2022/23"},{"$f":"Head11","v":"Budget Year +2 2023/24"}]
["Cash and investments available"]
[{"$f":"LEFT('A7-CFlow'!A40,37)","v":"Cash/cash equivalents at the year end"},1,{"$f":"'A7-CFlow'!C40","v":0},{"$f":"'A7-CFlow'!D40","v":0},{"$f":"'A7-CFlow'!E40","v":23479181},{"$f":"'A7-CFlow'!F40","v":0},{"$f":"'A7-CFlow'!G40","v":66089963},{"$f":"'A7-CFlow'!H40","v":66089963},{"$f":"'A7-CFlow'!I40","v":-48895803},{"$f":"'A7-CFlow'!J40","v":2668998},{"$f":"'A7-CFlow'!K40","v":5438091},{"$f":"'A7-CFlow'!L40","v":7898408}]
["Other current investments  > 90 days",null,{"$f":"'A6-FinPos'!C6+'A6-FinPos'!C7-'A6-FinPos'!C29-'A8-ResRecon'!C5","v":0},{"$f":"'A6-FinPos'!D6+'A6-FinPos'!D7-'A6-FinPos'!D29-'A8-ResRecon'!D5","v":7370702},{"$f":"'A6-FinPos'!E6+'A6-FinPos'!E7-'A6-FinPos'!E29-'A8-ResRecon'!E5","v":-12802570},{"$f":"'A6-FinPos'!F6+'A6-FinPos'!F7-'A6-FinPos'!F29-'A8-ResRecon'!F5","v":0},{"$f":"'A6-FinPos'!G6+'A6-FinPos'!G7-'A6-FinPos'!G29-'A8-ResRecon'!G5","v":-52985833},{"$f":"'A6-FinPos'!H6+'A6-FinPos'!H7-'A6-FinPos'!H29-'A8-ResRecon'!H5","v":-52985833},{"$f":"'A6-FinPos'!I6+'A6-FinPos'!I7-'A6-FinPos'!I29-'A8-ResRecon'!I5","v":56736029},{"$f":"'A6-FinPos'!J6+'A6-FinPos'!J7-'A6-FinPos'!J29-'A8-ResRecon'!J5","v":8127250},{"$f":"'A6-FinPos'!K6+'A6-FinPos'!K7-'A6-FinPos'!K29-'A8-ResRecon'!K5","v":5775031},{"$f":"'A6-FinPos'!L6+'A6-FinPos'!L7-'A6-FinPos'!L29-'A8-ResRecon'!L5","v":3768785}]
[{"$f":"'A6-FinPos'!A14&\" - \"&'A6-FinPos'!A16","v":"Non current assets - Investments"},1,{"$f":"'A6-FinPos'!C16","v":0},{"$f":"'A6-FinPos'!D16","v":0},{"$f":"'A6-FinPos'!E16","v":0},{"$f":"'A6-FinPos'!F16","v":0},{"$f":"'A6-FinPos'!G16","v":0},{"$f":"'A6-FinPos'!H16","v":0},{"$f":"'A6-FinPos'!I16","v":0},{"$f":"'A6-FinPos'!J16","v":0},{"$f":"'A6-FinPos'!K16","v":0},{"$f":"'A6-FinPos'!L16","v":0}]
["Cash and investments available:",null,{"$f":"SUM(C5:C7)","v":0},{"$f":"SUM(D5:D7)","v":7370702},10676611,0,13104130,13104130,7840226,10796248,11213122,11667193]
[]
["Application of cash and investments"]
[{"$f":"'SA3'!A132","v":"Unspent conditional transfers"},null,{"$f":"'SA3'!C132","v":0},{"$f":"'SA3'!D132","v":799106},{"$f":"'SA3'!E132","v":948106},{"$f":"'SA3'!F132","v":0},{"$f":"'SA3'!G132","v":0},{"$f":"'SA3'!H132","v":0},{"$f":"'SA3'!I132","v":-1847639},{"$f":"'SA3'!J132","v":0},{"$f":"'SA3'!K132","v":0},{"$f":"'SA3'!L132","v":0}]
["Unspent borrowing",null,{"$f":"'SA17'!C67","v":0},{"$f":"'SA17'!D67","v":0},{"$f":"'SA17'!E67","v":0},{"$f":"'SA17'!F67","v":0},{"$f":"'SA17'!G67","v":0},{"$f":"'SA17'!H67","v":0},null,{"$f":"'SA17'!I67","v":0},{"$f":"'SA17'!J67","v":0},{"$f":"'SA17'!K67","v":0}]
["Statutory requirements",2]
["Other working capital requirements",3,{"$f":"-C32","v":0},{"$f":"-D32","v":11880911},17262344,{"$f":"-F32","v":0},7225097,7225097,-9539458,7496696,-1300055,-591623]
["Other provisions",null,{"$f":"'A6-FinPos'!C33+'A6-FinPos'!C38","v":0},{"$f":"'A6-FinPos'!D33+'A6-FinPos'!D38","v":2032276},{"$f":"'A6-FinPos'!E33+'A6-FinPos'!E38","v":2076529},{"$f":"'A6-FinPos'!F33+'A6-FinPos'!F38","v":0},{"$f":"'A6-FinPos'!G33+'A6-FinPos'!G38","v":0},{"$f":"'A6-FinPos'!H33+'A6-FinPos'!H38","v":0},{"$f":"'A6-FinPos'!I33+'A6-FinPos'!I38","v":-1762307},{"$f":"'A6-FinPos'!J33+'A6-FinPos'!J38","v":2076529},{"$f":"'A6-FinPos'!K33+'A6-FinPos'!K38","v":2157513},{"$f":"'A6-FinPos'!L33+'A6-FinPos'!L38","v":2248129}]
["Long term investments committed",4,{"$f":"C52","v":0},{"$f":"D52","v":0},0,0,0,0,0,0,0,0]
["Reserves to be backed by cash/investments",5]
[{"$f":"\"Total \"&A10&\":\"","v":"Total Application of cash and investments:"},null,{"$f":"SUM(C11:C17)","v":0},{"$f":"SUM(D11:D17)","v":14712293},20286979,0,7225097,7225097,-13149404,9573225,857458,1656506]
["Surplus(shortfall)",null,{"$f":"C8-C18","v":0},{"$f":"D8-D18","v":-7341591},-9610368,0,5879033,5879033,20989630,1223023,10355664,10010687]
[{"$f":"head27a","v":"References"}]
["1. Must reconcile with Budgeted Cash Flows"]
["2. For example: VAT, taxation"]
["3. Council approval for policy required - include sufficient working capital (e.g. allowing for a % of current debtors > 90 days as uncollectable)"]
["4. For example: sinking fund requirements for borrowing"]
["5. Council approval required for each reserve created and basis of cash backing of reserves"]
[]
[]
["Other working capital requirements"]
["Debtors",null,{"$f":"IF(ISERROR(ROUND(C35*C36,-3)),0,(ROUND(C35*C36,-3)))","v":0},{"$f":"IF(ISERROR(ROUND(D35*D36,-3)),0,(ROUND(D35*D36,-3)))","v":0},0,0,9621000,9621000,0,7317000,16092000,16024000]
[]
["Creditors due",null,{"$f":"'SA3'!C130+'SA3'!C131","v":0},{"$f":"'SA3'!D130+'SA3'!D131","v":11880911},{"$f":"'SA3'!E130+'SA3'!E131","v":17262344},{"$f":"'SA3'!F130+'SA3'!F131","v":0},{"$f":"'SA3'!G130+'SA3'!G131","v":16846097},{"$f":"'SA3'!H130+'SA3'!H131","v":16846097},{"$f":"'SA3'!I130+'SA3'!I131","v":-9539458},{"$f":"'SA3'!J130+'SA3'!J131","v":14813696},{"$f":"'SA3'!K130+'SA3'!K131","v":14791945},{"$f":"'SA3'!L130+'SA3'!L131","v":15432377}]
["Total",null,{"$f":"C29-C31","v":0},{"$f":"D29-D31","v":-11880911},-17262344,0,-7225097,-7225097,9539458,-7496696,1300055,591623]
[]
["Debtors collection assumptions"]
["Balance outstanding - debtors",null,{"$f":"'A6-FinPos'!C8+'A6-FinPos'!C9+'A6-FinPos'!C15","v":0},{"$f":"'A6-FinPos'!D8+'A6-FinPos'!D9+'A6-FinPos'!D15","v":4363111},{"$f":"'A6-FinPos'!E8+'A6-FinPos'!E9+'A6-FinPos'!E15","v":5695307},{"$f":"'A6-FinPos'!F8+'A6-FinPos'!F9+'A6-FinPos'!F15","v":0},{"$f":"'A6-FinPos'!G8+'A6-FinPos'!G9+'A6-FinPos'!G15","v":3935866},{"$f":"'A6-FinPos'!H8+'A6-FinPos'!H9+'A6-FinPos'!H15","v":3935866},{"$f":"'A6-FinPos'!I8+'A6-FinPos'!I9+'A6-FinPos'!I15","v":6109154},{"$f":"'A6-FinPos'!J8+'A6-FinPos'!J9+'A6-FinPos'!J15","v":4549450},{"$f":"'A6-FinPos'!K8+'A6-FinPos'!K9+'A6-FinPos'!K15","v":4740527},{"$f":"'A6-FinPos'!L8+'A6-FinPos'!L9+'A6-FinPos'!L15","v":4939628}]
["Estimate of debtors collection rate",null,{"$f":"IF(ISERROR('SA10'!D10),0,('SA10'!D10))","v":0},{"$f":"IF(ISERROR('SA10'!E10),0,('SA10'!E10))","v":0},{"$f":"IF(ISERROR('SA10'!F10),0,('SA10'!F10))","v":0},{"$f":"IF(ISERROR('SA10'!G10),0,('SA10'!G10))","v":0},{"$f":"IF(ISERROR('SA10'!H10),0,('SA10'!H10))","v":2.4443902016411276},{"$f":"IF(ISERROR('SA10'!I10),0,('SA10'!I10))","v":2.4443902016411276},{"$f":"IF(ISERROR('SA10'!J10),0,('SA10'!J10))","v":0},{"$f":"IF(ISERROR('SA10'!K10),0,('SA10'!K10))","v":1.6083303979756334},{"$f":"IF(ISERROR('SA10'!L10),0,('SA10'!L10))","v":3.3945285023720797},{"$f":"IF(ISERROR('SA10'!M10),0,('SA10'!M10))","v":3.243886272939422}]
[]
[]
[null,null,null,null,null,null,null,null,null,null,"`"]
[{"$f":"A16","v":"Long term investments committed"}]
["Balance (Insert description; eg sinking fund)"]
[]
[]
[]
[]
[]
[]
[]
[]
[]
[]
[null,null,{"$f":"SUM(C41:C51)","v":0},{"$f":"SUM(D41:D51)","v":0},0,0,0,0,0,0,0,0]
[{"$f":"A17","v":"Reserves to be backed by cash/investments"}]
[{"$f":"'SA3'!A160","v":"Housing Development Fund"},null,{"$f":"'SA3'!C160","v":0},{"$f":"'SA3'!D160","v":0},{"$f":"'SA3'!E160","v":0},{"$f":"'SA3'!F160","v":0},{"$f":"'SA3'!G160","v":0},{"$f":"'SA3'!H160","v":0},{"$f":"'SA3'!I160","v":0},{"$f":"'SA3'!J160","v":0},{"$f":"'SA3'!K160","v":0},{"$f":"'SA3'!L160","v":0}]
[{"$f":"'SA3'!A161","v":"Capital replacement"}]
[{"$f":"'SA3'!A162","v":"Self-insurance"}]
["Other (list)"]
[]
[]
[]
[]
[]
[]
[]
[]
[]
[null,null,{"$f":"SUM(C54:C65)","v":0},0,0,0,0,0,0,0,0,0]

{"sheet":"A9-Asset","index":27,"n_rows":217,"n_cols":31,"rows_kept":217,"cut":false,"hidden":false,"merged":[[1,5,1,7],[1,8,1,10]]}
[{"$f":"muni&\" - \"&Approve9","v":"DC16 Xhariep - Table A9 Asset Management"}]
[{"$f":"desc","v":"Description"},{"$f":"head27","v":"Ref"},{"$f":"head1b","v":"2017/18"},{"$f":"head1A","v":"2018/19"},{"$f":"Head1","v":"2019/20"},{"$f":"Head2","v":"Current Year 2020/21"},null,null,{"$f":"Head3","v":"2021/22 Medium Term Revenue & Expenditure Framework"}]
["R thousand",null,{"$f":"Head5","v":"Audited Outcome"},{"$f":"Head5","v":"Audited Outcome"},{"$f":"Head5","v":"Audited Outcome"},{"$f":"Head6","v":"Original Budget"},{"$f":"Head7","v":"Adjusted Budget"},{"$f":"Head8","v":"Full Year Forecast"},{"$f":"Head9","v":"Budget Year 2021/22"},{"$f":"Head10","v":"Budget Year +1 2022/23"},{"$f":"Head11","v":"Budget Year +2 2023/24"}]
["CAPITAL EXPENDITURE"]
["Total New Assets",1,{"$f":"C15+C18+C19+C22+C25+C26+SUM(C29:C35)","v":0},{"$f":"D15+D18+D19+D22+D25+D26+SUM(D29:D35)","v":0},20454,30000,0,0,0,0,0]
["Roads Infrastructure",null,{"$f":"SA34a!C7","v":0},{"$f":"SA34a!D7","v":0},{"$f":"SA34a!E7","v":0},{"$f":"SA34a!F7","v":0},{"$f":"SA34a!G7","v":0},{"$f":"SA34a!H7","v":0},{"$f":"SA34a!I7","v":0},{"$f":"SA34a!J7","v":0},{"$f":"SA34a!K7","v":0}]
["Storm water Infrastructure",null,{"$f":"SA34a!C12","v":0},{"$f":"SA34a!D12","v":0},{"$f":"SA34a!E12","v":0},{"$f":"SA34a!F12","v":0},{"$f":"SA34a!G12","v":0},{"$f":"SA34a!H12","v":0},{"$f":"SA34a!I12","v":0},{"$f":"SA34a!J12","v":0},{"$f":"SA34a!K12","v":0}]
["Electrical Infrastructure",null,{"$f":"SA34a!C16","v":0},{"$f":"SA34a!D16","v":0},{"$f":"SA34a!E16","v":0},{"$f":"SA34a!F16","v":0},{"$f":"SA34a!G16","v":0},{"$f":"SA34a!H16","v":0},{"$f":"SA34a!I16","v":0},{"$f":"SA34a!J16","v":0},{"$f":"SA34a!K16","v":0}]
["Water Supply Infrastructure",null,{"$f":"SA34a!C26","v":0},{"$f":"SA34a!D26","v":0},{"$f":"SA34a!E26","v":0},{"$f":"SA34a!F26","v":0},{"$f":"SA34a!G26","v":0},{"$f":"SA34a!H26","v":0},{"$f":"SA34a!I26","v":0},{"$f":"SA34a!J26","v":0},{"$f":"SA34a!K26","v":0}]
["Sanitation Infrastructure",null,{"$f":"SA34a!C37","v":0},{"$f":"SA34a!D37","v":0},{"$f":"SA34a!E37","v":0},{"$f":"SA34a!F37","v":0},{"$f":"SA34a!G37","v":0},{"$f":"SA34a!H37","v":0},{"$f":"SA34a!I37","v":0},{"$f":"SA34a!J37","v":0},{"$f":"SA34a!K37","v":0}]
["Solid Waste Infrastructure",null,{"$f":"SA34a!C44","v":0},{"$f":"SA34a!D44","v":0},{"$f":"SA34a!E44","v":0},{"$f":"SA34a!F44","v":0},{"$f":"SA34a!G44","v":0},{"$f":"SA34a!H44","v":0},{"$f":"SA34a!I44","v":0},{"$f":"SA34a!J44","v":0},{"$f":"SA34a!K44","v":0}]
["Rail Infrastructure",null,{"$f":"SA34a!C52","v":0},{"$f":"SA34a!D52","v":0},{"$f":"SA34a!E52","v":0},{"$f":"SA34a!F52","v":0},{"$f":"SA34a!G52","v":0},{"$f":"SA34a!H52","v":0},{"$f":"SA34a!I52","v":0},{"$f":"SA34a!J52","v":0},{"$f":"SA34a!K52","v":0}]
["Coastal Infrastructure",null,{"$f":"SA34a!C62","v":0},{"$f":"SA34a!D62","v":0},{"$f":"SA34a!E62","v":0},{"$f":"SA34a!F62","v":0},{"$f":"SA34a!G62","v":0},{"$f":"SA34a!H62","v":0},{"$f":"SA34a!I62","v":0},{"$f":"SA34a!J62","v":0},{"$f":"SA34a!K62","v":0}]
["Information and Communication Infrastructure",null,{"$f":"SA34a!C68","v":0},{"$f":"SA34a!D68","v":0},{"$f":"SA34a!E68","v":0},{"$f":"SA34a!F68","v":0},{"$f":"SA34a!G68","v":0},{"$f":"SA34a!H68","v":0},{"$f":"SA34a!I68","v":0},{"$f":"SA34a!J68","v":0},{"$f":"SA34a!K68","v":0}]
["Infrastructure",null,{"$f":"SUM(C6:C14)","v":0},{"$f":"SUM(D6:D14)","v":0},0,0,0,0,0,0,0]
["Community Facilities",null,{"$f":"SA34a!C75","v":0},{"$f":"SA34a!D75","v":0},{"$f":"SA34a!E75","v":0},{"$f":"SA34a!F75","v":0},{"$f":"SA34a!G75","v":0},{"$f":"SA34a!H75","v":0},{"$f":"SA34a!I75","v":0},{"$f":"SA34a!J75","v":0},{"$f":"SA34a!K75","v":0}]
["Sport and Recreation Facilities",null,{"$f":"SA34a!C98","v":0},{"$f":"SA34a!D98","v":0},{"$f":"SA34a!E98","v":0},{"$f":"SA34a!F98","v":0},{"$f":"SA34a!G98","v":0},{"$f":"SA34a!H98","v":0},{"$f":"SA34a!I98","v":0},{"$f":"SA34a!J98","v":0},{"$f":"SA34a!K98","v":0}]
["Community Assets",null,{"$f":"SUM(C16:C17)","v":0},{"$f":"SUM(D16:D17)","v":0},0,0,0,0,0,0,0]
["Heritage Assets",null,{"$f":"SA34a!C103","v":0},{"$f":"SA34a!D103","v":0},{"$f":"SA34a!E103","v":0},{"$f":"SA34a!F103","v":0},{"$f":"SA34a!G103","v":0},{"$f":"SA34a!H103","v":0},{"$f":"SA34a!I103","v":0},{"$f":"SA34a!J103","v":0},{"$f":"SA34a!K103","v":0}]
["Revenue Generating",null,{"$f":"SA34a!C111","v":0},{"$f":"SA34a!D111","v":0},{"$f":"SA34a!E111","v":0},{"$f":"SA34a!F111","v":0},{"$f":"SA34a!G111","v":0},{"$f":"SA34a!H111","v":0},{"$f":"SA34a!I111","v":0},{"$f":"SA34a!J111","v":0},{"$f":"SA34a!K111","v":0}]
["Non-revenue Generating",null,{"$f":"SA34a!C114","v":0},{"$f":"SA34a!D114","v":0},{"$f":"SA34a!E114","v":0},{"$f":"SA34a!F114","v":0},{"$f":"SA34a!G114","v":0},{"$f":"SA34a!H114","v":0},{"$f":"SA34a!I114","v":0},{"$f":"SA34a!J114","v":0},{"$f":"SA34a!K114","v":0}]
["Investment properties",null,{"$f":"SUM(C20:C21)","v":0},{"$f":"SUM(D20:D21)","v":0},0,0,0,0,0,0,0]
["Operational Buildings",null,{"$f":"SA34a!C119","v":0},{"$f":"SA34a!D119","v":0},{"$f":"SA34a!E119","v":0},{"$f":"SA34a!F119","v":0},{"$f":"SA34a!G119","v":0},{"$f":"SA34a!H119","v":0},{"$f":"SA34a!I119","v":0},{"$f":"SA34a!J119","v":0},{"$f":"SA34a!K119","v":0}]
["Housing",null,{"$f":"SA34a!C131","v":0},{"$f":"SA34a!D131","v":0},{"$f":"SA34a!E131","v":0},{"$f":"SA34a!F131","v":0},{"$f":"SA34a!G131","v":0},{"$f":"SA34a!H131","v":0},{"$f":"SA34a!I131","v":0},{"$f":"SA34a!J131","v":0},{"$f":"SA34a!K131","v":0}]
["Other Assets",null,{"$f":"SUM(C23:C24)","v":0},{"$f":"SUM(D23:D24)","v":0},0,0,0,0,0,0,0]
["Biological or Cultivated Assets",null,{"$f":"SA34a!C136","v":0},{"$f":"SA34a!D136","v":0},{"$f":"SA34a!E136","v":0},{"$f":"SA34a!F136","v":0},{"$f":"SA34a!G136","v":0},{"$f":"SA34a!H136","v":0},{"$f":"SA34a!I136","v":0},{"$f":"SA34a!J136","v":0},{"$f":"SA34a!K136","v":0}]
["Servitudes",null,{"$f":"SA34a!C140","v":0},{"$f":"SA34a!D140","v":0},{"$f":"SA34a!E140","v":0},{"$f":"SA34a!F140","v":0},{"$f":"SA34a!G140","v":0},{"$f":"SA34a!H140","v":0},{"$f":"SA34a!I140","v":0},{"$f":"SA34a!J140","v":0},{"$f":"SA34a!K140","v":0}]
["Licences and Rights",null,{"$f":"SA34a!C141","v":0},{"$f":"SA34a!D141","v":0},{"$f":"SA34a!E141","v":0},{"$f":"SA34a!F141","v":0},{"$f":"SA34a!G141","v":0},{"$f":"SA34a!H141","v":0},{"$f":"SA34a!I141","v":0},{"$f":"SA34a!J141","v":0},{"$f":"SA34a!K141","v":0}]
["Intangible Assets",null,{"$f":"SUM(C27:C28)","v":0},{"$f":"SUM(D27:D28)","v":0},0,0,0,0,0,0,0]
["Computer Equipment",null,{"$f":"SA34a!C149","v":0},{"$f":"SA34a!D149","v":0},{"$f":"SA34a!E149","v":0},{"$f":"SA34a!F149","v":0},{"$f":"SA34a!G149","v":0},{"$f":"SA34a!H149","v":0},{"$f":"SA34a!I149","v":0},{"$f":"SA34a!J149","v":0},{"$f":"SA34a!K149","v":0}]
["Furniture and Office Equipment",null,{"$f":"SA34a!C152","v":0},{"$f":"SA34a!D152","v":0},{"$f":"SA34a!E152","v":20454},{"$f":"SA34a!F152","v":30000},{"$f":"SA34a!G152","v":0},{"$f":"SA34a!H152","v":0},{"$f":"SA34a!I152","v":0},{"$f":"SA34a!J152","v":0},{"$f":"SA34a!K152","v":0}]
["Machinery and Equipment",null,{"$f":"SA34a!C155","v":0},{"$f":"SA34a!D155","v":0},{"$f":"SA34a!E155","v":0},{"$f":"SA34a!F155","v":0},{"$f":"SA34a!G155","v":0},{"$f":"SA34a!H155","v":0},{"$f":"SA34a!I155","v":0},{"$f":"SA34a!J155","v":0},{"$f":"SA34a!K155","v":0}]
["Transport Assets",null,{"$f":"SA34a!C158","v":0},{"$f":"SA34a!D158","v":0},{"$f":"SA34a!E158","v":0},{"$f":"SA34a!F158","v":0},{"$f":"SA34a!G158","v":0},{"$f":"SA34a!H158","v":0},{"$f":"SA34a!I158","v":0},{"$f":"SA34a!J158","v":0},{"$f":"SA34a!K158","v":0}]
["Land",null,{"$f":"SA34a!C161","v":0},{"$f":"SA34a!D161","v":0},{"$f":"SA34a!E161","v":0},{"$f":"SA34a!F161","v":0},{"$f":"SA34a!G161","v":0},{"$f":"SA34a!H161","v":0},{"$f":"SA34a!I161","v":0},{"$f":"SA34a!J161","v":0},{"$f":"SA34a!K161","v":0}]
["Zoo's, Marine and Non-biological Animals",null,{"$f":"SA34a!C164","v":0},{"$f":"SA34a!D164","v":0},{"$f":"SA34a!E164","v":0},{"$f":"SA34a!F164","v":0},{"$f":"SA34a!G164","v":0},{"$f":"SA34a!H164","v":0},{"$f":"SA34a!I164","v":0},{"$f":"SA34a!J164","v":0},{"$f":"SA34a!K164","v":0}]
[]
["Total Renewal of Existing Assets",2,{"$f":"C47+C50+C51+C54+C57+C58+SUM(C61:C67)","v":0},{"$f":"D47+D50+D51+D54+D57+D58+SUM(D61:D67)","v":0},298030,374771,328000,328000,486000,21958,23144]
["Roads Infrastructure",null,{"$f":"SA34b!C7","v":0},{"$f":"SA34b!D7","v":0},{"$f":"SA34b!E7","v":0},{"$f":"SA34b!F7","v":0},{"$f":"SA34b!G7","v":0},{"$f":"SA34b!H7","v":0},{"$f":"SA34b!I7","v":0},{"$f":"SA34b!J7","v":0},{"$f":"SA34b!K7","v":0}]
["Storm water Infrastructure",null,{"$f":"SA34b!C12","v":0},{"$f":"SA34b!D12","v":0},{"$f":"SA34b!E12","v":0},{"$f":"SA34b!F12","v":0},{"$f":"SA34b!G12","v":0},{"$f":"SA34b!H12","v":0},{"$f":"SA34b!I12","v":0},{"$f":"SA34b!J12","v":0},{"$f":"SA34b!K12","v":0}]
["Electrical Infrastructure",null,{"$f":"SA34b!C16","v":0},{"$f":"SA34b!D16","v":0},{"$f":"SA34b!E16","v":0},{"$f":"SA34b!F16","v":0},{"$f":"SA34b!G16","v":0},{"$f":"SA34b!H16","v":0},{"$f":"SA34b!I16","v":0},{"$f":"SA34b!J16","v":0},{"$f":"SA34b!K16","v":0}]
["Water Supply Infrastructure",null,{"$f":"SA34b!C26","v":0},{"$f":"SA34b!D26","v":0},{"$f":"SA34b!E26","v":0},{"$f":"SA34b!F26","v":0},{"$f":"SA34b!G26","v":0},{"$f":"SA34b!H26","v":0},{"$f":"SA34b!I26","v":0},{"$f":"SA34b!J26","v":0},{"$f":"SA34b!K26","v":0}]
["Sanitation Infrastructure",null,{"$f":"SA34b!C37","v":0},{"$f":"SA34b!D37","v":0},{"$f":"SA34b!E37","v":0},{"$f":"SA34b!F37","v":0},{"$f":"SA34b!G37","v":0},{"$f":"SA34b!H37","v":0},{"$f":"SA34b!I37","v":0},{"$f":"SA34b!J37","v":0},{"$f":"SA34b!K37","v":0}]
["Solid Waste Infrastructure",null,{"$f":"SA34b!C44","v":0},{"$f":"SA34b!D44","v":0},{"$f":"SA34b!E44","v":0},{"$f":"SA34b!F44","v":0},{"$f":"SA34b!G44","v":0},{"$f":"SA34b!H44","v":0},{"$f":"SA34b!I44","v":0},{"$f":"SA34b!J44","v":0},{"$f":"SA34b!K44","v":0}]
["Rail Infrastructure",null,{"$f":"SA34b!C52","v":0},{"$f":"SA34b!D52","v":0},{"$f":"SA34b!E52","v":0},{"$f":"SA34b!F52","v":0},{"$f":"SA34b!G52","v":0},{"$f":"SA34b!H52","v":0},{"$f":"SA34b!I52","v":0},{"$f":"SA34b!J52","v":0},{"$f":"SA34b!K52","v":0}]
["Coastal Infrastructure",null,{"$f":"SA34b!C62","v":0},{"$f":"SA34b!D62","v":0},{"$f":"SA34b!E62","v":0},{"$f":"SA34b!F62","v":0},{"$f":"SA34b!G62","v":0},{"$f":"SA34b!H62","v":0},{"$f":"SA34b!I62","v":0},{"$f":"SA34b!J62","v":0},{"$f":"SA34b!K62","v":0}]
["Information and Communication Infrastructure",null,{"$f":"SA34b!C68","v":0},{"$f":"SA34b!D68","v":0},{"$f":"SA34b!E68","v":0},{"$f":"SA34b!F68","v":0},{"$f":"SA34b!G68","v":0},{"$f":"SA34b!H68","v":0},{"$f":"SA34b!I68","v":0},{"$f":"SA34b!J68","v":0},{"$f":"SA34b!K68","v":0}]
["Infrastructure",null,{"$f":"SUM(C38:C46)","v":0},{"$f":"SUM(D38:D46)","v":0},0,0,0,0,0,0,0]
["Community Facilities",null,{"$f":"SA34b!C75","v":0},{"$f":"SA34b!D75","v":0},{"$f":"SA34b!E75","v":0},{"$f":"SA34b!F75","v":0},{"$f":"SA34b!G75","v":0},{"$f":"SA34b!H75","v":0},{"$f":"SA34b!I75","v":0},{"$f":"SA34b!J75","v":0},{"$f":"SA34b!K75","v":0}]
["Sport and Recreation Facilities",null,{"$f":"SA34b!C98","v":0},{"$f":"SA34b!D98","v":0},{"$f":"SA34b!E98","v":0},{"$f":"SA34b!F98","v":0},{"$f":"SA34b!G98","v":0},{"$f":"SA34b!H98","v":0},{"$f":"SA34b!I98","v":0},{"$f":"SA34b!J98","v":0},{"$f":"SA34b!K98","v":0}]
["Community Assets",null,{"$f":"SUM(C48:C49)","v":0},{"$f":"SUM(D48:D49)","v":0},0,0,0,0,0,0,0]
["Heritage Assets",null,{"$f":"SA34b!C103","v":0},{"$f":"SA34b!D103","v":0},{"$f":"SA34b!E103","v":0},{"$f":"SA34b!F103","v":0},{"$f":"SA34b!G103","v":0},{"$f":"SA34b!H103","v":0},{"$f":"SA34b!I103","v":0},{"$f":"SA34b!J103","v":0},{"$f":"SA34b!K103","v":0}]
["Revenue Generating",null,{"$f":"SA34b!C111","v":0},{"$f":"SA34b!D111","v":0},{"$f":"SA34b!E111","v":0},{"$f":"SA34b!F111","v":0},{"$f":"SA34b!G111","v":0},{"$f":"SA34b!H111","v":0},{"$f":"SA34b!I111","v":0},{"$f":"SA34b!J111","v":0},{"$f":"SA34b!K111","v":0}]
["Non-revenue Generating",null,{"$f":"SA34b!C114","v":0},{"$f":"SA34b!D114","v":0},{"$f":"SA34b!E114","v":0},{"$f":"SA34b!F114","v":0},{"$f":"SA34b!G114","v":0},{"$f":"SA34b!H114","v":0},{"$f":"SA34b!I114","v":0},{"$f":"SA34b!J114","v":0},{"$f":"SA34b!K114","v":0}]
["Investment properties",null,{"$f":"SUM(C52:C53)","v":0},{"$f":"SUM(D52:D53)","v":0},0,0,0,0,0,0,0]
["Operational Buildings",null,{"$f":"SA34b!C119","v":0},{"$f":"SA34b!D119","v":0},{"$f":"SA34b!E119","v":26990},{"$f":"SA34b!F119","v":0},{"$f":"SA34b!G119","v":0},{"$f":"SA34b!H119","v":0},{"$f":"SA34b!I119","v":0},{"$f":"SA34b!J119","v":0},{"$f":"SA34b!K119","v":0}]
["Housing",null,{"$f":"SA34b!C131","v":0},{"$f":"SA34b!D131","v":0},{"$f":"SA34b!E131","v":0},{"$f":"SA34b!F131","v":0},{"$f":"SA34b!G131","v":0},{"$f":"SA34b!H131","v":0},{"$f":"SA34b!I131","v":0},{"$f":"SA34b!J131","v":0},{"$f":"SA34b!K131","v":0}]
["Other Assets",null,{"$f":"SUM(C55:C56)","v":0},{"$f":"SUM(D55:D56)","v":0},26990,0,0,0,0,0,0]
["Biological or Cultivated Assets",null,{"$f":"SA34b!C136","v":0},{"$f":"SA34b!D136","v":0},{"$f":"SA34b!E136","v":0},{"$f":"SA34b!F136","v":0},{"$f":"SA34b!G136","v":0},{"$f":"SA34b!H136","v":0},{"$f":"SA34b!I136","v":0},{"$f":"SA34b!J136","v":0},{"$f":"SA34b!K136","v":0}]
["Servitudes",null,{"$f":"SA34b!C140","v":0},{"$f":"SA34b!D140","v":0},{"$f":"SA34b!E140","v":0},{"$f":"SA34b!F140","v":0},{"$f":"SA34b!G140","v":0},{"$f":"SA34b!H140","v":0},{"$f":"SA34b!I140","v":0},{"$f":"SA34b!J140","v":0},{"$f":"SA34b!K140","v":0}]
["Licences and Rights",null,{"$f":"SA34b!C141","v":0},{"$f":"SA34b!D141","v":0},{"$f":"SA34b!E141","v":0},{"$f":"SA34b!F141","v":0},{"$f":"SA34b!G141","v":0},{"$f":"SA34b!H141","v":0},{"$f":"SA34b!I141","v":0},{"$f":"SA34b!J141","v":0},{"$f":"SA34b!K141","v":0}]
["Intangible Assets",null,{"$f":"SUM(C59:C60)","v":0},{"$f":"SUM(D59:D60)","v":0},0,0,0,0,0,0,0]
["Computer Equipment",null,{"$f":"SA34b!C149","v":0},{"$f":"SA34b!D149","v":0},{"$f":"SA34b!E149","v":220993},{"$f":"SA34b!F149","v":110000},{"$f":"SA34b!G149","v":328000},{"$f":"SA34b!H149","v":328000},{"$f":"SA34b!I149","v":110000},{"$f":"SA34b!J149","v":0},{"$f":"SA34b!K149","v":0}]
["Furniture and Office Equipment",null,{"$f":"SA34b!C152","v":0},{"$f":"SA34b!D152","v":0},{"$f":"SA34b!E152","v":50047},{"$f":"SA34b!F152","v":44771},{"$f":"SA34b!G152","v":0},{"$f":"SA34b!H152","v":0},{"$f":"SA34b!I152","v":176000},{"$f":"SA34b!J152","v":21958},{"$f":"SA34b!K152","v":23144}]
["Machinery and Equipment",null,{"$f":"SA34b!C155","v":0},{"$f":"SA34b!D155","v":0},{"$f":"SA34b!E155","v":0},{"$f":"SA34b!F155","v":0},{"$f":"SA34b!G155","v":0},{"$f":"SA34b!H155","v":0},{"$f":"SA34b!I155","v":0},{"$f":"SA34b!J155","v":0},{"$f":"SA34b!K155","v":0}]
["Transport Assets",null,{"$f":"SA34b!C158","v":0},{"$f":"SA34b!D158","v":0},{"$f":"SA34b!E158","v":0},{"$f":"SA34b!F158","v":220000},{"$f":"SA34b!G158","v":0},{"$f":"SA34b!H158","v":0},{"$f":"SA34b!I158","v":200000},{"$f":"SA34b!J158","v":0},{"$f":"SA34b!K158","v":0}]
["Land",null,{"$f":"SA34b!C161","v":0},{"$f":"SA34b!D161","v":0},{"$f":"SA34b!E161","v":0},{"$f":"SA34b!F161","v":0},{"$f":"SA34b!G161","v":0},{"$f":"SA34b!H161","v":0},{"$f":"SA34b!I161","v":0},{"$f":"SA34b!J161","v":0},{"$f":"SA34b!K161","v":0}]
["Zoo's, Marine and Non-biological Animals",null,{"$f":"SA34b!C164","v":0},{"$f":"SA34b!D164","v":0},{"$f":"SA34b!E164","v":0},{"$f":"SA34b!F164","v":0},{"$f":"SA34b!G164","v":0},{"$f":"SA34b!H164","v":0},{"$f":"SA34b!I164","v":0},{"$f":"SA34b!J164","v":0},{"$f":"SA34b!K164","v":0}]
[]
["Total Upgrading of Existing Assets",6,{"$f":"C79+C82+C83+C86+C89+C90+SUM(C93:C99)","v":0},{"$f":"D79+D82+D83+D86+D89+D90+SUM(D93:D99)","v":0},0,0,0,0,0,0,0]
["Roads Infrastructure",null,{"$f":"SA34e!C7","v":0},{"$f":"SA34e!D7","v":0},{"$f":"SA34e!E7","v":0},{"$f":"SA34e!F7","v":0},{"$f":"SA34e!G7","v":0},{"$f":"SA34e!H7","v":0},{"$f":"SA34e!I7","v":0},{"$f":"SA34e!J7","v":0},{"$f":"SA34e!K7","v":0}]
["Storm water Infrastructure",null,{"$f":"SA34e!C12","v":0},{"$f":"SA34e!D12","v":0},{"$f":"SA34e!E12","v":0},{"$f":"SA34e!F12","v":0},{"$f":"SA34e!G12","v":0},{"$f":"SA34e!H12","v":0},{"$f":"SA34e!I12","v":0},{"$f":"SA34e!J12","v":0},{"$f":"SA34e!K12","v":0}]
["Electrical Infrastructure",null,{"$f":"SA34e!C16","v":0},{"$f":"SA34e!D16","v":0},{"$f":"SA34e!E16","v":0},{"$f":"SA34e!F16","v":0},{"$f":"SA34e!G16","v":0},{"$f":"SA34e!H16","v":0},{"$f":"SA34e!I16","v":0},{"$f":"SA34e!J16","v":0},{"$f":"SA34e!K16","v":0}]
["Water Supply Infrastructure",null,{"$f":"SA34e!C26","v":0},{"$f":"SA34e!D26","v":0},{"$f":"SA34e!E26","v":0},{"$f":"SA34e!F26","v":0},{"$f":"SA34e!G26","v":0},{"$f":"SA34e!H26","v":0},{"$f":"SA34e!I26","v":0},{"$f":"SA34e!J26","v":0},{"$f":"SA34e!K26","v":0}]
["Sanitation Infrastructure",null,{"$f":"SA34e!C37","v":0},{"$f":"SA34e!D37","v":0},{"$f":"SA34e!E37","v":0},{"$f":"SA34e!F37","v":0},{"$f":"SA34e!G37","v":0},{"$f":"SA34e!H37","v":0},{"$f":"SA34e!I37","v":0},{"$f":"SA34e!J37","v":0},{"$f":"SA34e!K37","v":0}]
["Solid Waste Infrastructure",null,{"$f":"SA34e!C44","v":0},{"$f":"SA34e!D44","v":0},{"$f":"SA34e!E44","v":0},{"$f":"SA34e!F44","v":0},{"$f":"SA34e!G44","v":0},{"$f":"SA34e!H44","v":0},{"$f":"SA34e!I44","v":0},{"$f":"SA34e!J44","v":0},{"$f":"SA34e!K44","v":0}]
["Rail Infrastructure",null,{"$f":"SA34e!C52","v":0},{"$f":"SA34e!D52","v":0},{"$f":"SA34e!E52","v":0},{"$f":"SA34e!F52","v":0},{"$f":"SA34e!G52","v":0},{"$f":"SA34e!H52","v":0},{"$f":"SA34e!I52","v":0},{"$f":"SA34e!J52","v":0},{"$f":"SA34e!K52","v":0}]
["Coastal Infrastructure",null,{"$f":"SA34e!C62","v":0},{"$f":"SA34e!D62","v":0},{"$f":"SA34e!E62","v":0},{"$f":"SA34e!F62","v":0},{"$f":"SA34e!G62","v":0},{"$f":"SA34e!H62","v":0},{"$f":"SA34e!I62","v":0},{"$f":"SA34e!J62","v":0},{"$f":"SA34e!K62","v":0}]
["Information and Communication Infrastructure",null,{"$f":"SA34e!C68","v":0},{"$f":"SA34e!D68","v":0},{"$f":"SA34e!E68","v":0},{"$f":"SA34e!F68","v":0},{"$f":"SA34e!G68","v":0},{"$f":"SA34e!H68","v":0},{"$f":"SA34e!I68","v":0},{"$f":"SA34e!J68","v":0},{"$f":"SA34e!K68","v":0}]
["Infrastructure",null,{"$f":"SUM(C70:C78)","v":0},0,0,0,0,0,0,0,0]
["Community Facilities",null,{"$f":"SA34e!C75","v":0},{"$f":"SA34e!D75","v":0},{"$f":"SA34e!E75","v":0},{"$f":"SA34e!F75","v":0},{"$f":"SA34e!G75","v":0},{"$f":"SA34e!H75","v":0},{"$f":"SA34e!I75","v":0},{"$f":"SA34e!J75","v":0},{"$f":"SA34e!K75","v":0}]
["Sport and Recreation Facilities",null,{"$f":"SA34e!C98","v":0},{"$f":"SA34e!D98","v":0},{"$f":"SA34e!E98","v":0},{"$f":"SA34e!F98","v":0},{"$f":"SA34e!G98","v":0},{"$f":"SA34e!H98","v":0},{"$f":"SA34e!I98","v":0},{"$f":"SA34e!J98","v":0},{"$f":"SA34e!K98","v":0}]
["Community Assets",null,{"$f":"SUM(C80:C81)","v":0},0,0,0,0,0,0,0,0]
["Heritage Assets",null,{"$f":"SA34e!C103","v":0},{"$f":"SA34e!D103","v":0},{"$f":"SA34e!E103","v":0},{"$f":"SA34e!F103","v":0},{"$f":"SA34e!G103","v":0},{"$f":"SA34e!H103","v":0},{"$f":"SA34e!I103","v":0},{"$f":"SA34e!J103","v":0},{"$f":"SA34e!K103","v":0}]
["Revenue Generating",null,{"$f":"SA34e!C111","v":0},{"$f":"SA34e!D111","v":0},{"$f":"SA34e!E111","v":0},{"$f":"SA34e!F111","v":0},{"$f":"SA34e!G111","v":0},{"$f":"SA34e!H111","v":0},{"$f":"SA34e!I111","v":0},{"$f":"SA34e!J111","v":0},{"$f":"SA34e!K111","v":0}]
["Non-revenue Generating",null,{"$f":"SA34e!C114","v":0},{"$f":"SA34e!D114","v":0},{"$f":"SA34e!E114","v":0},{"$f":"SA34e!F114","v":0},{"$f":"SA34e!G114","v":0},{"$f":"SA34e!H114","v":0},{"$f":"SA34e!I114","v":0},{"$f":"SA34e!J114","v":0},{"$f":"SA34e!K114","v":0}]
["Investment properties",null,{"$f":"SUM(C84:C85)","v":0},0,0,0,0,0,0,0,0]
["Operational Buildings",null,{"$f":"SA34e!C119","v":0},{"$f":"SA34e!D119","v":0},{"$f":"SA34e!E119","v":0},{"$f":"SA34e!F119","v":0},{"$f":"SA34e!G119","v":0},{"$f":"SA34e!H119","v":0},{"$f":"SA34e!I119","v":0},{"$f":"SA34e!J119","v":0},{"$f":"SA34e!K119","v":0}]
["Housing",null,{"$f":"SA34e!C131","v":0},{"$f":"SA34e!D131","v":0},{"$f":"SA34e!E131","v":0},{"$f":"SA34e!F131","v":0},{"$f":"SA34e!G131","v":0},{"$f":"SA34e!H131","v":0},{"$f":"SA34e!I131","v":0},{"$f":"SA34e!J131","v":0},{"$f":"SA34e!K131","v":0}]
["Other Assets",null,{"$f":"SUM(C87:C88)","v":0},0,0,0,0,0,0,0,0]
["Biological or Cultivated Assets",null,{"$f":"SA34e!C136","v":0},{"$f":"SA34e!D136","v":0},{"$f":"SA34e!E136","v":0},{"$f":"SA34e!F136","v":0},{"$f":"SA34e!G136","v":0},{"$f":"SA34e!H136","v":0},{"$f":"SA34e!I136","v":0},{"$f":"SA34e!J136","v":0},{"$f":"SA34e!K136","v":0}]
["Servitudes",null,{"$f":"SA34e!C140","v":0},{"$f":"SA34e!D140","v":0},{"$f":"SA34e!E140","v":0},{"$f":"SA34e!F140","v":0},{"$f":"SA34e!G140","v":0},{"$f":"SA34e!H140","v":0},{"$f":"SA34e!I140","v":0},{"$f":"SA34e!J140","v":0},{"$f":"SA34e!K140","v":0}]
["Licences and Rights",null,{"$f":"SA34e!C141","v":0},{"$f":"SA34e!D141","v":0},{"$f":"SA34e!E141","v":0},{"$f":"SA34e!F141","v":0},{"$f":"SA34e!G141","v":0},{"$f":"SA34e!H141","v":0},{"$f":"SA34e!I141","v":0},{"$f":"SA34e!J141","v":0},{"$f":"SA34e!K141","v":0}]
["Intangible Assets",null,{"$f":"SUM(C91:C92)","v":0},0,0,0,0,0,0,0,0]
["Computer Equipment",null,{"$f":"SA34e!C149","v":0},{"$f":"SA34e!D149","v":0},{"$f":"SA34e!E149","v":0},{"$f":"SA34e!F149","v":0},{"$f":"SA34e!G149","v":0},{"$f":"SA34e!H149","v":0},{"$f":"SA34e!I149","v":0},{"$f":"SA34e!J149","v":0},{"$f":"SA34e!K149","v":0}]
["Furniture and Office Equipment",null,{"$f":"SA34e!C152","v":0},{"$f":"SA34e!D152","v":0},{"$f":"SA34e!E152","v":0},{"$f":"SA34e!F152","v":0},{"$f":"SA34e!G152","v":0},{"$f":"SA34e!H152","v":0},{"$f":"SA34e!I152","v":0},{"$f":"SA34e!J152","v":0},{"$f":"SA34e!K152","v":0}]
["Machinery and Equipment",null,{"$f":"SA34e!C155","v":0},{"$f":"SA34e!D155","v":0},{"$f":"SA34e!E155","v":0},{"$f":"SA34e!F155","v":0},{"$f":"SA34e!G155","v":0},{"$f":"SA34e!H155","v":0},{"$f":"SA34e!I155","v":0},{"$f":"SA34e!J155","v":0},{"$f":"SA34e!K155","v":0}]
["Transport Assets",null,{"$f":"SA34e!C158","v":0},{"$f":"SA34e!D158","v":0},{"$f":"SA34e!E158","v":0},{"$f":"SA34e!F158","v":0},{"$f":"SA34e!G158","v":0},{"$f":"SA34e!H158","v":0},{"$f":"SA34e!I158","v":0},{"$f":"SA34e!J158","v":0},{"$f":"SA34e!K158","v":0}]
["Land",null,{"$f":"SA34e!C161","v":0},{"$f":"SA34e!D161","v":0},{"$f":"SA34e!E161","v":0},{"$f":"SA34e!F161","v":0},{"$f":"SA34e!G161","v":0},{"$f":"SA34e!H161","v":0},{"$f":"SA34e!I161","v":0},{"$f":"SA34e!J161","v":0},{"$f":"SA34e!K161","v":0}]
["Zoo's, Marine and Non-biological Animals",null,{"$f":"SA34e!C164","v":0},{"$f":"SA34e!D164","v":0},{"$f":"SA34e!E164","v":0},{"$f":"SA34e!F164","v":0},{"$f":"SA34e!G164","v":0},{"$f":"SA34e!H164","v":0},{"$f":"SA34e!I164","v":0},{"$f":"SA34e!J164","v":0},{"$f":"SA34e!K164","v":0}]
[]
["Total Capital Expenditure",4,{"$f":"+C5+C37+C69","v":0},{"$f":"+D5+D37+D69","v":0},318484,404771,328000,328000,486000,21958,23144]
["Roads Infrastructure",null,{"$f":"+C6+C38+C70","v":0},{"$f":"+D6+D38+D70","v":0},0,0,0,0,0,0,0]
["Storm water Infrastructure",null,{"$f":"+C7+C39+C71","v":0},0,0,0,0,0,0,0,0]
["Electrical Infrastructure",null,0,0,0,0,0,0,0,0,0]
["Water Supply Infrastructure",null,0,0,0,0,0,0,0,0,0]
["Sanitation Infrastructure",null,0,0,0,0,0,0,0,0,0]
["Solid Waste Infrastructure",null,0,0,0,0,0,0,0,0,0]
["Rail Infrastructure",null,0,0,0,0,0,0,0,0,0]
["Coastal Infrastructure",null,0,0,0,0,0,0,0,0,0]
["Information and Communication Infrastructure",null,0,0,0,0,0,0,0,0,0]
["Infrastructure",null,{"$f":"SUM(C102:C110)","v":0},{"$f":"SUM(D102:D110)","v":0},0,0,0,0,0,0,0]
["Community Facilities",null,{"$f":"+C16+C48+C80","v":0},{"$f":"+D16+D48+D80","v":0},0,0,0,0,0,0,0]
["Sport and Recreation Facilities",null,{"$f":"+C17+C49+C81","v":0},{"$f":"+D17+D49+D81","v":0},0,0,0,0,0,0,0]
["Community Assets",null,{"$f":"SUM(C112:C113)","v":0},{"$f":"SUM(D112:D113)","v":0},0,0,0,0,0,0,0]
["Heritage Assets",null,{"$f":"+C19+C51+C83","v":0},{"$f":"+D19+D51+D83","v":0},0,0,0,0,0,0,0]
["Revenue Generating",null,{"$f":"+C20+C52+C84","v":0},{"$f":"+D20+D52+D84","v":0},0,0,0,0,0,0,0]
["Non-revenue Generating",null,{"$f":"+C21+C53+C85","v":0},{"$f":"+D21+D53+D85","v":0},0,0,0,0,0,0,0]
["Investment properties",null,{"$f":"SUM(C116:C117)","v":0},{"$f":"SUM(D116:D117)","v":0},0,0,0,0,0,0,0]
["Operational Buildings",null,{"$f":"+C23+C55+C87","v":0},{"$f":"+D23+D55+D87","v":0},26990,0,0,0,0,0,0]
["Housing",null,{"$f":"+C24+C56+C88","v":0},{"$f":"+D24+D56+D88","v":0},0,0,0,0,0,0,0]
["Other Assets",null,{"$f":"SUM(C119:C120)","v":0},0,26990,0,0,0,0,0,0]
["Biological or Cultivated Assets",null,{"$f":"+C26+C58+C90","v":0},{"$f":"+D26+D58+D90","v":0},0,0,0,0,0,0,0]
["Servitudes",null,{"$f":"+C27+C59+C91","v":0},{"$f":"+D27+D59+D91","v":0},0,0,0,0,0,0,0]
["Licences and Rights",null,{"$f":"+C28+C60+C92","v":0},{"$f":"+D28+D60+D92","v":0},0,0,0,0,0,0,0]
["Intangible Assets",null,{"$f":"SUM(C123:C124)","v":0},{"$f":"SUM(D123:D124)","v":0},0,0,0,0,0,0,0]
["Computer Equipment",null,{"$f":"+C30+C62+C94","v":0},{"$f":"+D30+D62+D94","v":0},220993,110000,328000,328000,110000,0,0]
["Furniture and Office Equipment",null,{"$f":"+C31+C63+C95","v":0},0,70501,74771,0,0,176000,21958,23144]
["Machinery and Equipment",null,0,0,0,0,0,0,0,0,0]
["Transport Assets",null,0,0,0,220000,0,0,200000,0,0]
["Land",null,0,0,0,0,0,0,0,0,0]
["Zoo's, Marine and Non-biological Animals",null,0,0,0,0,0,0,0,0,0]
["TOTAL CAPITAL EXPENDITURE - Asset class",null,{"$f":"+C5+C37+C69","v":0},{"$f":"+D5+D37+D69","v":0},318484,404771,328000,328000,486000,21958,23144]
[]
["ASSET REGISTER SUMMARY - PPE (WDV)",5,{"$f":"C144+C147+C148+C151+C154+C155+C158+C159+C160+C161+C162+C163+C164","v":0},{"$f":"D144+D147+D148+D151+D154+D155+D158+D159+D160+D161+D162+D163+D164","v":13333675},12563930,404771,12891929,12891929,11359418,11279615,11710737]
["Roads Infrastructure",null,{"$f":"SUMIFS(Sheet1!S71_PPPYearAmount,Sheet1!S71_A9Code,$AC:$AC)+SUMIFS(Sheet1!S71_PPPYearAmount,Sheet1!S71_WIPCode,$AC:$AC)+SUMIFS(Sheet1!S71_PPPYearAmount,Sheet1!S71_WIPOPBalance,$AE:$AE)","v":0},{"$f":"SUMIFS(Sheet1!S71_PPYearAmount,Sheet1!S71_A9Code,$AC:$AC)+SUMIFS(Sheet1!S71_PPYearAmount,Sheet1!S71_WIPCode,$AC:$AC)+SUMIFS(Sheet1!S71_PPYearAmount,Sheet1!S71_WIPOPBalance,$AE:$AE)","v":0},{"$f":"SUMIFS(Sheet1!S71_PYearAmount,Sheet1!S71_A9Code,$AC:$AC)+SUMIFS(Sheet1!S71_PYearAmount,Sheet1!S71_WIPCode,$AC:$AC)+SUMIFS(Sheet1!S71_PYearAmount,Sheet1!S71_WIPOPBalance,$AE:$AE)","v":0},{"$f":"SUMIFS(Sheet1!S71_OriginalBudAmnt,Sheet1!S71_A9Code,$AC:$AC)+SUMIFS(Sheet1!S71_OriginalBudAmnt,Sheet1!S71_WIPCode,$AC:$AC)+SUMIFS(Sheet1!S71_OriginalBudAmnt,Sheet1!S71_WIPOPBalance,$AE:$AE)","v":0},{"$f":"SUMIFS(Sheet1!S71_AdjustmentBudAmnt,Sheet1!S71_A9Code,$AC:$AC)+SUMIFS(Sheet1!S71_AdjustmentBudAmnt,Sheet1!S71_WIPCode,$AC:$AC)+SUMIFS(Sheet1!S71_ASBudgetAmount,Sheet1!S71_WIPOPBalance,$AE:$AE)","v":0},{"$f":"SUMIFS(Sheet1!S71_AdjustmentBudAmnt,Sheet1!S71_A9Code,$AC:$AC)+SUMIFS(Sheet1!S71_AdjustmentBudAmnt,Sheet1!S71_WIPCode,$AC:$AC)++SUMIFS(Sheet1!S71_ASBudgetAmount,Sheet1!S71_WIPOPBalance,$AE:$AE)","v":0},{"$f":"SUMIFS(Sheet1!S71_ASBudgetAmount,Sheet1!S71_A9Code,$AC:$AC)+SUMIFS(Sheet1!S71_ASBudgetAmount,Sheet1!S71_WIPCode,$AC:$AC)+SUMIFS(Sheet1!S71_ASBudgetAmount,Sheet1!S71_WIPOPBalance,$AE:$AE)","v":0},{"$f":"SUMIFS(Sheet1!S71_OY1BudgetAmount,Sheet1!S71_A9Code,$AC:$AC)+SUMIFS(Sheet1!S71_OY1BudgetAmount,Sheet1!S71_WIPCode,$AC:$AC)++SUMIFS(Sheet1!S71_OY1BudgetAmount,Sheet1!S71_WIPOPBalance,$AE:$AE)","v":0},{"$f":"SUMIFS(Sheet1!S71_OY2BudgetAmount,Sheet1!S71_A9Code,$AC:$AC)+SUMIFS(Sheet1!S71_OY2BudgetAmount,Sheet1!S71_WIPCode,$AC:$AC)+SUMIFS(Sheet1!S71_OY2BudgetAmount,Sheet1!S71_WIPOPBalance,$AE:$AE)","v":0},null,null,null,null,null,null,null,null,null,null,null,null,null,null,null,null,null,"0110",null,"WIP"]
["Storm water Infrastructure",null,{"$f":"SUMIFS(Sheet1!S71_PPPYearAmount,Sheet1!S71_A9Code,$AC:$AC)+SUMIFS(Sheet1!S71_PPPYearAmount,Sheet1!S71_WIPCode,$AC:$AC)","v":0},{"$f":"SUMIFS(Sheet1!S71_PPYearAmount,Sheet1!S71_A9Code,$AC:$AC)+SUMIFS(Sheet1!S71_PPYearAmount,Sheet1!S71_WIPCode,$AC:$AC)","v":0},{"$f":"SUMIFS(Sheet1!S71_PYearAmount,Sheet1!S71_A9Code,$AC:$AC)+SUMIFS(Sheet1!S71_PYearAmount,Sheet1!S71_WIPCode,$AC:$AC)","v":0},{"$f":"SUMIFS(Sheet1!S71_OriginalBudAmnt,Sheet1!S71_A9Code,$AC:$AC)+SUMIFS(Sheet1!S71_OriginalBudAmnt,Sheet1!S71_WIPCode,$AC:$AC)","v":0},{"$f":"SUMIFS(Sheet1!S71_AdjustmentBudAmnt,Sheet1!S71_A9Code,$AC:$AC)+SUMIFS(Sheet1!S71_AdjustmentBudAmnt,Sheet1!S71_WIPCode,$AC:$AC)","v":0},{"$f":"SUMIFS(Sheet1!S71_AdjustmentBudAmnt,Sheet1!S71_A9Code,$AC:$AC)+SUMIFS(Sheet1!S71_AdjustmentBudAmnt,Sheet1!S71_WIPCode,$AC:$AC)","v":0},{"$f":"SUMIFS(Sheet1!S71_ASBudgetAmount,Sheet1!S71_A9Code,$AC:$AC)+SUMIFS(Sheet1!S71_ASBudgetAmount,Sheet1!S71_WIPCode,$AC:$AC)","v":0},{"$f":"SUMIFS(Sheet1!S71_OY1BudgetAmount,Sheet1!S71_A9Code,$AC:$AC)+SUMIFS(Sheet1!S71_OY1BudgetAmount,Sheet1!S71_WIPCode,$AC:$AC)","v":0},{"$f":"SUMIFS(Sheet1!S71_OY2BudgetAmount,Sheet1!S71_A9Code,$AC:$AC)+SUMIFS(Sheet1!S71_OY2BudgetAmount,Sheet1!S71_WIPCode,$AC:$AC)","v":0},null,null,null,null,null,null,null,null,null,null,null,null,null,null,null,null,null,"0160"]
["Electrical Infrastructure",null,{"$f":"SUMIFS(Sheet1!S71_PPPYearAmount,Sheet1!S71_A9Code,$AC:$AC)+SUMIFS(Sheet1!S71_PPPYearAmount,Sheet1!S71_WIPCode,$AC:$AC)","v":0},{"$f":"SUMIFS(Sheet1!S71_PPYearAmount,Sheet1!S71_A9Code,$AC:$AC)+SUMIFS(Sheet1!S71_PPYearAmount,Sheet1!S71_WIPCode,$AC:$AC)","v":0},{"$f":"SUMIFS(Sheet1!S71_PYearAmount,Sheet1!S71_A9Code,$AC:$AC)+SUMIFS(Sheet1!S71_PYearAmount,Sheet1!S71_WIPCode,$AC:$AC)","v":0},{"$f":"SUMIFS(Sheet1!S71_OriginalBudAmnt,Sheet1!S71_A9Code,$AC:$AC)+SUMIFS(Sheet1!S71_OriginalBudAmnt,Sheet1!S71_WIPCode,$AC:$AC)","v":0},{"$f":"SUMIFS(Sheet1!S71_AdjustmentBudAmnt,Sheet1!S71_A9Code,$AC:$AC)+SUMIFS(Sheet1!S71_AdjustmentBudAmnt,Sheet1!S71_WIPCode,$AC:$AC)","v":0},{"$f":"SUMIFS(Sheet1!S71_AdjustmentBudAmnt,Sheet1!S71_A9Code,$AC:$AC)+SUMIFS(Sheet1!S71_AdjustmentBudAmnt,Sheet1!S71_WIPCode,$AC:$AC)","v":0},{"$f":"SUMIFS(Sheet1!S71_ASBudgetAmount,Sheet1!S71_A9Code,$AC:$AC)+SUMIFS(Sheet1!S71_ASBudgetAmount,Sheet1!S71_WIPCode,$AC:$AC)","v":0},{"$f":"SUMIFS(Sheet1!S71_OY1BudgetAmount,Sheet1!S71_A9Code,$AC:$AC)+SUMIFS(Sheet1!S71_OY1BudgetAmount,Sheet1!S71_WIPCode,$AC:$AC)","v":0},{"$f":"SUMIFS(Sheet1!S71_OY2BudgetAmount,Sheet1!S71_A9Code,$AC:$AC)+SUMIFS(Sheet1!S71_OY2BudgetAmount,Sheet1!S71_WIPCode,$AC:$AC)","v":0},null,null,null,null,null,null,null,null,null,null,null,null,null,null,null,null,null,"0200"]
["Water Supply Infrastructure",null,{"$f":"SUMIFS(Sheet1!S71_PPPYearAmount,Sheet1!S71_A9Code,$AC:$AC)+SUMIFS(Sheet1!S71_PPPYearAmount,Sheet1!S71_WIPCode,$AC:$AC)","v":0},{"$f":"SUMIFS(Sheet1!S71_PPYearAmount,Sheet1!S71_A9Code,$AC:$AC)+SUMIFS(Sheet1!S71_PPYearAmount,Sheet1!S71_WIPCode,$AC:$AC)","v":0},{"$f":"SUMIFS(Sheet1!S71_PYearAmount,Sheet1!S71_A9Code,$AC:$AC)+SUMIFS(Sheet1!S71_PYearAmount,Sheet1!S71_WIPCode,$AC:$AC)","v":0},{"$f":"SUMIFS(Sheet1!S71_OriginalBudAmnt,Sheet1!S71_A9Code,$AC:$AC)+SUMIFS(Sheet1!S71_OriginalBudAmnt,Sheet1!S71_WIPCode,$AC:$AC)","v":0},{"$f":"SUMIFS(Sheet1!S71_AdjustmentBudAmnt,Sheet1!S71_A9Code,$AC:$AC)+SUMIFS(Sheet1!S71_AdjustmentBudAmnt,Sheet1!S71_WIPCode,$AC:$AC)","v":0},{"$f":"SUMIFS(Sheet1!S71_AdjustmentBudAmnt,Sheet1!S71_A9Code,$AC:$AC)+SUMIFS(Sheet1!S71_AdjustmentBudAmnt,Sheet1!S71_WIPCode,$AC:$AC)","v":0},{"$f":"SUMIFS(Sheet1!S71_ASBudgetAmount,Sheet1!S71_A9Code,$AC:$AC)+SUMIFS(Sheet1!S71_ASBudgetAmount,Sheet1!S71_WIPCode,$AC:$AC)","v":0},{"$f":"SUMIFS(Sheet1!S71_OY1BudgetAmount,Sheet1!S71_A9Code,$AC:$AC)+SUMIFS(Sheet1!S71_OY1BudgetAmount,Sheet1!S71_WIPCode,$AC:$AC)","v":0},{"$f":"SUMIFS(Sheet1!S71_OY2BudgetAmount,Sheet1!S71_A9Code,$AC:$AC)+SUMIFS(Sheet1!S71_OY2BudgetAmount,Sheet1!S71_WIPCode,$AC:$AC)","v":0},null,null,null,null,null,null,null,null,null,null,null,null,null,null,null,null,null,"0300"]
["Sanitation Infrastructure",null,{"$f":"SUMIFS(Sheet1!S71_PPPYearAmount,Sheet1!S71_A9Code,$AC:$AC)+SUMIFS(Sheet1!S71_PPPYearAmount,Sheet1!S71_WIPCode,$AC:$AC)","v":0},{"$f":"SUMIFS(Sheet1!S71_PPYearAmount,Sheet1!S71_A9Code,$AC:$AC)+SUMIFS(Sheet1!S71_PPYearAmount,Sheet1!S71_WIPCode,$AC:$AC)","v":0},{"$f":"SUMIFS(Sheet1!S71_PYearAmount,Sheet1!S71_A9Code,$AC:$AC)+SUMIFS(Sheet1!S71_PYearAmount,Sheet1!S71_WIPCode,$AC:$AC)","v":0},{"$f":"SUMIFS(Sheet1!S71_OriginalBudAmnt,Sheet1!S71_A9Code,$AC:$AC)+SUMIFS(Sheet1!S71_OriginalBudAmnt,Sheet1!S71_WIPCode,$AC:$AC)","v":0},{"$f":"SUMIFS(Sheet1!S71_AdjustmentBudAmnt,Sheet1!S71_A9Code,$AC:$AC)+SUMIFS(Sheet1!S71_AdjustmentBudAmnt,Sheet1!S71_WIPCode,$AC:$AC)","v":0},{"$f":"SUMIFS(Sheet1!S71_AdjustmentBudAmnt,Sheet1!S71_A9Code,$AC:$AC)+SUMIFS(Sheet1!S71_AdjustmentBudAmnt,Sheet1!S71_WIPCode,$AC:$AC)","v":0},{"$f":"SUMIFS(Sheet1!S71_ASBudgetAmount,Sheet1!S71_A9Code,$AC:$AC)+SUMIFS(Sheet1!S71_ASBudgetAmount,Sheet1!S71_WIPCode,$AC:$AC)","v":0},{"$f":"SUMIFS(Sheet1!S71_OY1BudgetAmount,Sheet1!S71_A9Code,$AC:$AC)+SUMIFS(Sheet1!S71_OY1BudgetAmount,Sheet1!S71_WIPCode,$AC:$AC)","v":0},{"$f":"SUMIFS(Sheet1!S71_OY2BudgetAmount,Sheet1!S71_A9Code,$AC:$AC)+SUMIFS(Sheet1!S71_OY2BudgetAmount,Sheet1!S71_WIPCode,$AC:$AC)","v":0},null,null,null,null,null,null,null,null,null,null,null,null,null,null,null,null,null,"0410"]
["Solid Waste Infrastructure",null,{"$f":"SUMIFS(Sheet1!S71_PPPYearAmount,Sheet1!S71_A9Code,$AC:$AC)+SUMIFS(Sheet1!S71_PPPYearAmount,Sheet1!S71_WIPCode,$AC:$AC)","v":0},{"$f":"SUMIFS(Sheet1!S71_PPYearAmount,Sheet1!S71_A9Code,$AC:$AC)+SUMIFS(Sheet1!S71_PPYearAmount,Sheet1!S71_WIPCode,$AC:$AC)","v":0},{"$f":"SUMIFS(Sheet1!S71_PYearAmount,Sheet1!S71_A9Code,$AC:$AC)+SUMIFS(Sheet1!S71_PYearAmount,Sheet1!S71_WIPCode,$AC:$AC)","v":0},{"$f":"SUMIFS(Sheet1!S71_OriginalBudAmnt,Sheet1!S71_A9Code,$AC:$AC)+SUMIFS(Sheet1!S71_OriginalBudAmnt,Sheet1!S71_WIPCode,$AC:$AC)","v":0},{"$f":"SUMIFS(Sheet1!S71_AdjustmentBudAmnt,Sheet1!S71_A9Code,$AC:$AC)+SUMIFS(Sheet1!S71_AdjustmentBudAmnt,Sheet1!S71_WIPCode,$AC:$AC)","v":0},{"$f":"SUMIFS(Sheet1!S71_AdjustmentBudAmnt,Sheet1!S71_A9Code,$AC:$AC)+SUMIFS(Sheet1!S71_AdjustmentBudAmnt,Sheet1!S71_WIPCode,$AC:$AC)","v":0},{"$f":"SUMIFS(Sheet1!S71_ASBudgetAmount,Sheet1!S71_A9Code,$AC:$AC)+SUMIFS(Sheet1!S71_ASBudgetAmount,Sheet1!S71_WIPCode,$AC:$AC)","v":0},{"$f":"SUMIFS(Sheet1!S71_OY1BudgetAmount,Sheet1!S71_A9Code,$AC:$AC)+SUMIFS(Sheet1!S71_OY1BudgetAmount,Sheet1!S71_WIPCode,$AC:$AC)","v":0},{"$f":"SUMIFS(Sheet1!S71_OY2BudgetAmount,Sheet1!S71_A9Code,$AC:$AC)+SUMIFS(Sheet1!S71_OY2BudgetAmount,Sheet1!S71_WIPCode,$AC:$AC)","v":0},null,null,null,null,null,null,null,null,null,null,null,null,null,null,null,null,null,"0480"]
["Rail Infrastructure",null,{"$f":"SUMIFS(Sheet1!S71_PPPYearAmount,Sheet1!S71_A9Code,$AC:$AC)+SUMIFS(Sheet1!S71_PPPYearAmount,Sheet1!S71_WIPCode,$AC:$AC)","v":0},{"$f":"SUMIFS(Sheet1!S71_PPYearAmount,Sheet1!S71_A9Code,$AC:$AC)+SUMIFS(Sheet1!S71_PPYearAmount,Sheet1!S71_WIPCode,$AC:$AC)","v":0},{"$f":"SUMIFS(Sheet1!S71_PYearAmount,Sheet1!S71_A9Code,$AC:$AC)+SUMIFS(Sheet1!S71_PYearAmount,Sheet1!S71_WIPCode,$AC:$AC)","v":0},{"$f":"SUMIFS(Sheet1!S71_OriginalBudAmnt,Sheet1!S71_A9Code,$AC:$AC)+SUMIFS(Sheet1!S71_OriginalBudAmnt,Sheet1!S71_WIPCode,$AC:$AC)","v":0},{"$f":"SUMIFS(Sheet1!S71_AdjustmentBudAmnt,Sheet1!S71_A9Code,$AC:$AC)+SUMIFS(Sheet1!S71_AdjustmentBudAmnt,Sheet1!S71_WIPCode,$AC:$AC)","v":0},{"$f":"SUMIFS(Sheet1!S71_AdjustmentBudAmnt,Sheet1!S71_A9Code,$AC:$AC)+SUMIFS(Sheet1!S71_AdjustmentBudAmnt,Sheet1!S71_WIPCode,$AC:$AC)","v":0},{"$f":"SUMIFS(Sheet1!S71_ASBudgetAmount,Sheet1!S71_A9Code,$AC:$AC)+SUMIFS(Sheet1!S71_ASBudgetAmount,Sheet1!S71_WIPCode,$AC:$AC)","v":0},{"$f":"SUMIFS(Sheet1!S71_OY1BudgetAmount,Sheet1!S71_A9Code,$AC:$AC)+SUMIFS(Sheet1!S71_OY1BudgetAmount,Sheet1!S71_WIPCode,$AC:$AC)","v":0},{"$f":"SUMIFS(Sheet1!S71_OY2BudgetAmount,Sheet1!S71_A9Code,$AC:$AC)+SUMIFS(Sheet1!S71_OY2BudgetAmount,Sheet1!S71_WIPCode,$AC:$AC)","v":0},null,null,null,null,null,null,null,null,null,null,null,null,null,null,null,null,null,"0560"]
["Coastal Infrastructure",null,{"$f":"SUMIFS(Sheet1!S71_PPPYearAmount,Sheet1!S71_A9Code,$AC:$AC)+SUMIFS(Sheet1!S71_PPPYearAmount,Sheet1!S71_WIPCode,$AC:$AC)","v":0},{"$f":"SUMIFS(Sheet1!S71_PPYearAmount,Sheet1!S71_A9Code,$AC:$AC)+SUMIFS(Sheet1!S71_PPYearAmount,Sheet1!S71_WIPCode,$AC:$AC)","v":0},{"$f":"SUMIFS(Sheet1!S71_PYearAmount,Sheet1!S71_A9Code,$AC:$AC)+SUMIFS(Sheet1!S71_PYearAmount,Sheet1!S71_WIPCode,$AC:$AC)","v":0},{"$f":"SUMIFS(Sheet1!S71_OriginalBudAmnt,Sheet1!S71_A9Code,$AC:$AC)+SUMIFS(Sheet1!S71_OriginalBudAmnt,Sheet1!S71_WIPCode,$AC:$AC)","v":0},{"$f":"SUMIFS(Sheet1!S71_AdjustmentBudAmnt,Sheet1!S71_A9Code,$AC:$AC)+SUMIFS(Sheet1!S71_AdjustmentBudAmnt,Sheet1!S71_WIPCode,$AC:$AC)","v":0},{"$f":"SUMIFS(Sheet1!S71_AdjustmentBudAmnt,Sheet1!S71_A9Code,$AC:$AC)+SUMIFS(Sheet1!S71_AdjustmentBudAmnt,Sheet1!S71_WIPCode,$AC:$AC)","v":0},{"$f":"SUMIFS(Sheet1!S71_ASBudgetAmount,Sheet1!S71_A9Code,$AC:$AC)+SUMIFS(Sheet1!S71_ASBudgetAmount,Sheet1!S71_WIPCode,$AC:$AC)","v":0},{"$f":"SUMIFS(Sheet1!S71_OY1BudgetAmount,Sheet1!S71_A9Code,$AC:$AC)+SUMIFS(Sheet1!S71_OY1BudgetAmount,Sheet1!S71_WIPCode,$AC:$AC)","v":0},{"$f":"SUMIFS(Sheet1!S71_OY2BudgetAmount,Sheet1!S71_A9Code,$AC:$AC)+SUMIFS(Sheet1!S71_OY2BudgetAmount,Sheet1!S71_WIPCode,$AC:$AC)","v":0},null,null,null,null,null,null,null,null,null,null,null,null,null,null,null,null,null,"0660"]
["Information and Communication Infrastructure",null,{"$f":"SUMIFS(Sheet1!S71_PPPYearAmount,Sheet1!S71_A9Code,$AC:$AC)+SUMIFS(Sheet1!S71_PPPYearAmount,Sheet1!S71_WIPCode,$AC:$AC)","v":0},{"$f":"SUMIFS(Sheet1!S71_PPYearAmount,Sheet1!S71_A9Code,$AC:$AC)+SUMIFS(Sheet1!S71_PPYearAmount,Sheet1!S71_WIPCode,$AC:$AC)","v":0},{"$f":"SUMIFS(Sheet1!S71_PYearAmount,Sheet1!S71_A9Code,$AC:$AC)+SUMIFS(Sheet1!S71_PYearAmount,Sheet1!S71_WIPCode,$AC:$AC)","v":0},{"$f":"SUMIFS(Sheet1!S71_OriginalBudAmnt,Sheet1!S71_A9Code,$AC:$AC)+SUMIFS(Sheet1!S71_OriginalBudAmnt,Sheet1!S71_WIPCode,$AC:$AC)","v":0},{"$f":"SUMIFS(Sheet1!S71_AdjustmentBudAmnt,Sheet1!S71_A9Code,$AC:$AC)+SUMIFS(Sheet1!S71_AdjustmentBudAmnt,Sheet1!S71_WIPCode,$AC:$AC)","v":0},{"$f":"SUMIFS(Sheet1!S71_AdjustmentBudAmnt,Sheet1!S71_A9Code,$AC:$AC)+SUMIFS(Sheet1!S71_AdjustmentBudAmnt,Sheet1!S71_WIPCode,$AC:$AC)","v":0},{"$f":"SUMIFS(Sheet1!S71_ASBudgetAmount,Sheet1!S71_A9Code,$AC:$AC)+SUMIFS(Sheet1!S71_ASBudgetAmount,Sheet1!S71_WIPCode,$AC:$AC)","v":0},{"$f":"SUMIFS(Sheet1!S71_OY1BudgetAmount,Sheet1!S71_A9Code,$AC:$AC)+SUMIFS(Sheet1!S71_OY1BudgetAmount,Sheet1!S71_WIPCode,$AC:$AC)","v":0},{"$f":"SUMIFS(Sheet1!S71_OY2BudgetAmount,Sheet1!S71_A9Code,$AC:$AC)+SUMIFS(Sheet1!S71_OY2BudgetAmount,Sheet1!S71_WIPCode,$AC:$AC)","v":0},null,null,null,null,null,null,null,null,null,null,null,null,null,null,null,null,null,"0720"]
["Infrastructure",null,{"$f":"SUM(C135:C143)","v":0},{"$f":"SUM(D135:D143)","v":0},0,0,0,0,0,0,0]
[]
[]
["Community Assets",null,{"$f":"SUMIFS(Sheet1!S71_PPPYearAmount,Sheet1!S71_A9Code,$AC:$AC)+SUMIFS(Sheet1!S71_PPPYearAmount,Sheet1!S71_WIPCode,$AC:$AC)","v":0},{"$f":"SUMIFS(Sheet1!S71_PPYearAmount,Sheet1!S71_A9Code,$AC:$AC)+SUMIFS(Sheet1!S71_PPYearAmount,Sheet1!S71_WIPCode,$AC:$AC)","v":0},{"$f":"SUMIFS(Sheet1!S71_PYearAmount,Sheet1!S71_A9Code,$AC:$AC)+SUMIFS(Sheet1!S71_PYearAmount,Sheet1!S71_WIPCode,$AC:$AC)","v":0},{"$f":"SUMIFS(Sheet1!S71_OriginalBudAmnt,Sheet1!S71_A9Code,$AC:$AC)+SUMIFS(Sheet1!S71_OriginalBudAmnt,Sheet1!S71_WIPCode,$AC:$AC)","v":0},{"$f":"SUMIFS(Sheet1!S71_AdjustmentBudAmnt,Sheet1!S71_A9Code,$AC:$AC)+SUMIFS(Sheet1!S71_AdjustmentBudAmnt,Sheet1!S71_WIPCode,$AC:$AC)","v":0},{"$f":"SUMIFS(Sheet1!S71_AdjustmentBudAmnt,Sheet1!S71_A9Code,$AC:$AC)+SUMIFS(Sheet1!S71_AdjustmentBudAmnt,Sheet1!S71_WIPCode,$AC:$AC)","v":0},{"$f":"SUMIFS(Sheet1!S71_ASBudgetAmount,Sheet1!S71_A9Code,$AC:$AC)+SUMIFS(Sheet1!S71_ASBudgetAmount,Sheet1!S71_WIPCode,$AC:$AC)","v":0},{"$f":"SUMIFS(Sheet1!S71_OY1BudgetAmount,Sheet1!S71_A9Code,$AC:$AC)+SUMIFS(Sheet1!S71_OY1BudgetAmount,Sheet1!S71_WIPCode,$AC:$AC)","v":0},{"$f":"SUMIFS(Sheet1!S71_OY2BudgetAmount,Sheet1!S71_A9Code,$AC:$AC)+SUMIFS(Sheet1!S71_OY2BudgetAmount,Sheet1!S71_WIPCode,$AC:$AC)","v":0},null,null,null,null,null,null,null,null,null,null,null,null,null,null,null,null,null,"0770"]
["Heritage Assets",null,{"$f":"SUMIFS(Sheet1!S71_PPPYearAmount,Sheet1!S71_A9Code,$AC:$AC)+SUMIFS(Sheet1!S71_PPPYearAmount,Sheet1!S71_WIPCode,$AC:$AC)","v":0},{"$f":"SUMIFS(Sheet1!S71_PPYearAmount,Sheet1!S71_A9Code,$AC:$AC)+SUMIFS(Sheet1!S71_PPYearAmount,Sheet1!S71_WIPCode,$AC:$AC)","v":0},{"$f":"SUMIFS(Sheet1!S71_PYearAmount,Sheet1!S71_A9Code,$AC:$AC)+SUMIFS(Sheet1!S71_PYearAmount,Sheet1!S71_WIPCode,$AC:$AC)","v":0},{"$f":"SUMIFS(Sheet1!S71_OriginalBudAmnt,Sheet1!S71_A9Code,$AC:$AC)+SUMIFS(Sheet1!S71_OriginalBudAmnt,Sheet1!S71_WIPCode,$AC:$AC)","v":0},{"$f":"SUMIFS(Sheet1!S71_AdjustmentBudAmnt,Sheet1!S71_A9Code,$AC:$AC)+SUMIFS(Sheet1!S71_AdjustmentBudAmnt,Sheet1!S71_WIPCode,$AC:$AC)","v":0},{"$f":"SUMIFS(Sheet1!S71_AdjustmentBudAmnt,Sheet1!S71_A9Code,$AC:$AC)+SUMIFS(Sheet1!S71_AdjustmentBudAmnt,Sheet1!S71_WIPCode,$AC:$AC)","v":0},{"$f":"SUMIFS(Sheet1!S71_ASBudgetAmount,Sheet1!S71_A9Code,$AC:$AC)+SUMIFS(Sheet1!S71_ASBudgetAmount,Sheet1!S71_WIPCode,$AC:$AC)","v":0},{"$f":"SUMIFS(Sheet1!S71_OY1BudgetAmount,Sheet1!S71_A9Code,$AC:$AC)+SUMIFS(Sheet1!S71_OY1BudgetAmount,Sheet1!S71_WIPCode,$AC:$AC)","v":0},{"$f":"SUMIFS(Sheet1!S71_OY2BudgetAmount,Sheet1!S71_A9Code,$AC:$AC)+SUMIFS(Sheet1!S71_OY2BudgetAmount,Sheet1!S71_WIPCode,$AC:$AC)","v":0},null,null,null,null,null,null,null,null,null,null,null,null,null,null,null,null,null,"1050"]
[]
[]
["Investment properties",null,{"$f":"SUMIFS(Sheet1!S71_PPPYearAmount,Sheet1!S71_A9Code,$AC:$AC)+SUMIFS(Sheet1!S71_PPPYearAmount,Sheet1!S71_WIPCode,$AC:$AC)","v":0},{"$f":"SUMIFS(Sheet1!S71_PPYearAmount,Sheet1!S71_A9Code,$AC:$AC)+SUMIFS(Sheet1!S71_PPYearAmount,Sheet1!S71_WIPCode,$AC:$AC)","v":0},{"$f":"SUMIFS(Sheet1!S71_PYearAmount,Sheet1!S71_A9Code,$AC:$AC)+SUMIFS(Sheet1!S71_PYearAmount,Sheet1!S71_WIPCode,$AC:$AC)","v":0},{"$f":"SUMIFS(Sheet1!S71_OriginalBudAmnt,Sheet1!S71_A9Code,$AC:$AC)+SUMIFS(Sheet1!S71_OriginalBudAmnt,Sheet1!S71_WIPCode,$AC:$AC)","v":0},{"$f":"SUMIFS(Sheet1!S71_AdjustmentBudAmnt,Sheet1!S71_A9Code,$AC:$AC)+SUMIFS(Sheet1!S71_AdjustmentBudAmnt,Sheet1!S71_WIPCode,$AC:$AC)","v":0},{"$f":"SUMIFS(Sheet1!S71_AdjustmentBudAmnt,Sheet1!S71_A9Code,$AC:$AC)+SUMIFS(Sheet1!S71_AdjustmentBudAmnt,Sheet1!S71_WIPCode,$AC:$AC)","v":0},{"$f":"SUMIFS(Sheet1!S71_ASBudgetAmount,Sheet1!S71_A9Code,$AC:$AC)+SUMIFS(Sheet1!S71_ASBudgetAmount,Sheet1!S71_WIPCode,$AC:$AC)","v":0},{"$f":"SUMIFS(Sheet1!S71_OY1BudgetAmount,Sheet1!S71_A9Code,$AC:$AC)+SUMIFS(Sheet1!S71_OY1BudgetAmount,Sheet1!S71_WIPCode,$AC:$AC)","v":0},{"$f":"SUMIFS(Sheet1!S71_OY2BudgetAmount,Sheet1!S71_A9Code,$AC:$AC)+SUMIFS(Sheet1!S71_OY2BudgetAmount,Sheet1!S71_WIPCode,$AC:$AC)","v":0},null,null,null,null,null,null,null,null,null,null,null,null,null,null,null,null,null,"1110"]
[]
[]
["Other Assets",null,{"$f":"SUMIFS(Sheet1!S71_PPPYearAmount,Sheet1!S71_A9Code,$AC:$AC)+SUMIFS(Sheet1!S71_PPPYearAmount,Sheet1!S71_WIPCode,$AC:$AC)","v":0},{"$f":"SUMIFS(Sheet1!S71_PPYearAmount,Sheet1!S71_A9Code,$AC:$AC)+SUMIFS(Sheet1!S71_PPYearAmount,Sheet1!S71_WIPCode,$AC:$AC)","v":9169899},{"$f":"SUMIFS(Sheet1!S71_PYearAmount,Sheet1!S71_A9Code,$AC:$AC)+SUMIFS(Sheet1!S71_PYearAmount,Sheet1!S71_WIPCode,$AC:$AC)","v":8637693},{"$f":"SUMIFS(Sheet1!S71_OriginalBudAmnt,Sheet1!S71_A9Code,$AC:$AC)+SUMIFS(Sheet1!S71_OriginalBudAmnt,Sheet1!S71_WIPCode,$AC:$AC)","v":0},{"$f":"SUMIFS(Sheet1!S71_AdjustmentBudAmnt,Sheet1!S71_A9Code,$AC:$AC)+SUMIFS(Sheet1!S71_AdjustmentBudAmnt,Sheet1!S71_WIPCode,$AC:$AC)","v":0},{"$f":"SUMIFS(Sheet1!S71_AdjustmentBudAmnt,Sheet1!S71_A9Code,$AC:$AC)+SUMIFS(Sheet1!S71_AdjustmentBudAmnt,Sheet1!S71_WIPCode,$AC:$AC)","v":0},{"$f":"SUMIFS(Sheet1!S71_ASBudgetAmount,Sheet1!S71_A9Code,$AC:$AC)+SUMIFS(Sheet1!S71_ASBudgetAmount,Sheet1!S71_WIPCode,$AC:$AC)","v":8078497},{"$f":"SUMIFS(Sheet1!S71_OY1BudgetAmount,Sheet1!S71_A9Code,$AC:$AC)+SUMIFS(Sheet1!S71_OY1BudgetAmount,Sheet1!S71_WIPCode,$AC:$AC)","v":8393558},{"$f":"SUMIFS(Sheet1!S71_OY2BudgetAmount,Sheet1!S71_A9Code,$AC:$AC)+SUMIFS(Sheet1!S71_OY2BudgetAmount,Sheet1!S71_WIPCode,$AC:$AC)","v":8746088},null,null,null,null,null,null,null,null,null,null,null,null,null,null,null,null,null,"1180"]
["Biological or Cultivated Assets",null,{"$f":"SUMIFS(Sheet1!S71_PPPYearAmount,Sheet1!S71_A9Code,$AC:$AC)+SUMIFS(Sheet1!S71_PPPYearAmount,Sheet1!S71_WIPCode,$AC:$AC)","v":0},{"$f":"SUMIFS(Sheet1!S71_PPYearAmount,Sheet1!S71_A9Code,$AC:$AC)+SUMIFS(Sheet1!S71_PPYearAmount,Sheet1!S71_WIPCode,$AC:$AC)","v":0},{"$f":"SUMIFS(Sheet1!S71_PYearAmount,Sheet1!S71_A9Code,$AC:$AC)+SUMIFS(Sheet1!S71_PYearAmount,Sheet1!S71_WIPCode,$AC:$AC)","v":0},{"$f":"SUMIFS(Sheet1!S71_OriginalBudAmnt,Sheet1!S71_A9Code,$AC:$AC)+SUMIFS(Sheet1!S71_OriginalBudAmnt,Sheet1!S71_WIPCode,$AC:$AC)","v":0},{"$f":"SUMIFS(Sheet1!S71_AdjustmentBudAmnt,Sheet1!S71_A9Code,$AC:$AC)+SUMIFS(Sheet1!S71_AdjustmentBudAmnt,Sheet1!S71_WIPCode,$AC:$AC)","v":0},{"$f":"SUMIFS(Sheet1!S71_AdjustmentBudAmnt,Sheet1!S71_A9Code,$AC:$AC)+SUMIFS(Sheet1!S71_AdjustmentBudAmnt,Sheet1!S71_WIPCode,$AC:$AC)","v":0},{"$f":"SUMIFS(Sheet1!S71_ASBudgetAmount,Sheet1!S71_A9Code,$AC:$AC)+SUMIFS(Sheet1!S71_ASBudgetAmount,Sheet1!S71_WIPCode,$AC:$AC)","v":0},{"$f":"SUMIFS(Sheet1!S71_OY1BudgetAmount,Sheet1!S71_A9Code,$AC:$AC)+SUMIFS(Sheet1!S71_OY1BudgetAmount,Sheet1!S71_WIPCode,$AC:$AC)","v":0},{"$f":"SUMIFS(Sheet1!S71_OY2BudgetAmount,Sheet1!S71_A9Code,$AC:$AC)+SUMIFS(Sheet1!S71_OY2BudgetAmount,Sheet1!S71_WIPCode,$AC:$AC)","v":0},null,null,null,null,null,null,null,null,null,null,null,null,null,null,null,null,null,"1360"]
[]
[]
["Intangible Assets",null,{"$f":"SUMIFS(Sheet1!S71_PPPYearAmount,Sheet1!S71_A9Code,$AC:$AC)+SUMIFS(Sheet1!S71_PPPYearAmount,Sheet1!S71_WIPCode,$AC:$AC)","v":0},{"$f":"SUMIFS(Sheet1!S71_PPYearAmount,Sheet1!S71_A9Code,$AC:$AC)+SUMIFS(Sheet1!S71_PPYearAmount,Sheet1!S71_WIPCode,$AC:$AC)","v":404759},{"$f":"SUMIFS(Sheet1!S71_PYearAmount,Sheet1!S71_A9Code,$AC:$AC)+SUMIFS(Sheet1!S71_PYearAmount,Sheet1!S71_WIPCode,$AC:$AC)","v":1021107},{"$f":"SUMIFS(Sheet1!S71_OriginalBudAmnt,Sheet1!S71_A9Code,$AC:$AC)+SUMIFS(Sheet1!S71_OriginalBudAmnt,Sheet1!S71_WIPCode,$AC:$AC)","v":0},{"$f":"SUMIFS(Sheet1!S71_AdjustmentBudAmnt,Sheet1!S71_A9Code,$AC:$AC)+SUMIFS(Sheet1!S71_AdjustmentBudAmnt,Sheet1!S71_WIPCode,$AC:$AC)","v":1021107},{"$f":"SUMIFS(Sheet1!S71_AdjustmentBudAmnt,Sheet1!S71_A9Code,$AC:$AC)+SUMIFS(Sheet1!S71_AdjustmentBudAmnt,Sheet1!S71_WIPCode,$AC:$AC)","v":1021107},{"$f":"SUMIFS(Sheet1!S71_ASBudgetAmount,Sheet1!S71_A9Code,$AC:$AC)+SUMIFS(Sheet1!S71_ASBudgetAmount,Sheet1!S71_WIPCode,$AC:$AC)","v":1021107},{"$f":"SUMIFS(Sheet1!S71_OY1BudgetAmount,Sheet1!S71_A9Code,$AC:$AC)+SUMIFS(Sheet1!S71_OY1BudgetAmount,Sheet1!S71_WIPCode,$AC:$AC)","v":1021107},{"$f":"SUMIFS(Sheet1!S71_OY2BudgetAmount,Sheet1!S71_A9Code,$AC:$AC)+SUMIFS(Sheet1!S71_OY2BudgetAmount,Sheet1!S71_WIPCode,$AC:$AC)","v":1021107},null,null,null,null,null,null,null,null,null,null,null,null,null,null,null,null,null,"1370"]
["Computer Equipment",null,{"$f":"SUMIFS(Sheet1!S71_PPPYearAmount,Sheet1!S71_A9Code,$AC:$AC)+SUMIFS(Sheet1!S71_PPPYearAmount,Sheet1!S71_WIPCode,$AC:$AC)","v":0},{"$f":"SUMIFS(Sheet1!S71_PPYearAmount,Sheet1!S71_A9Code,$AC:$AC)+SUMIFS(Sheet1!S71_PPYearAmount,Sheet1!S71_WIPCode,$AC:$AC)","v":414496},{"$f":"SUMIFS(Sheet1!S71_PYearAmount,Sheet1!S71_A9Code,$AC:$AC)+SUMIFS(Sheet1!S71_PYearAmount,Sheet1!S71_WIPCode,$AC:$AC)","v":34719},{"$f":"SUMIFS(Sheet1!S71_OriginalBudAmnt,Sheet1!S71_A9Code,$AC:$AC)+SUMIFS(Sheet1!S71_OriginalBudAmnt,Sheet1!S71_WIPCode,$AC:$AC)","v":110000},{"$f":"SUMIFS(Sheet1!S71_AdjustmentBudAmnt,Sheet1!S71_A9Code,$AC:$AC)+SUMIFS(Sheet1!S71_AdjustmentBudAmnt,Sheet1!S71_WIPCode,$AC:$AC)","v":328000},{"$f":"SUMIFS(Sheet1!S71_AdjustmentBudAmnt,Sheet1!S71_A9Code,$AC:$AC)+SUMIFS(Sheet1!S71_AdjustmentBudAmnt,Sheet1!S71_WIPCode,$AC:$AC)","v":328000},{"$f":"SUMIFS(Sheet1!S71_ASBudgetAmount,Sheet1!S71_A9Code,$AC:$AC)+SUMIFS(Sheet1!S71_ASBudgetAmount,Sheet1!S71_WIPCode,$AC:$AC)","v":464576},{"$f":"SUMIFS(Sheet1!S71_OY1BudgetAmount,Sheet1!S71_A9Code,$AC:$AC)+SUMIFS(Sheet1!S71_OY1BudgetAmount,Sheet1!S71_WIPCode,$AC:$AC)","v":368404},{"$f":"SUMIFS(Sheet1!S71_OY2BudgetAmount,Sheet1!S71_A9Code,$AC:$AC)+SUMIFS(Sheet1!S71_OY2BudgetAmount,Sheet1!S71_WIPCode,$AC:$AC)","v":383877},null,null,null,null,null,null,null,null,null,null,null,null,null,null,null,null,null,"1470"]
["Furniture and Office Equipment",null,{"$f":"SUMIFS(Sheet1!S71_PPPYearAmount,Sheet1!S71_A9Code,$AC:$AC)+SUMIFS(Sheet1!S71_PPPYearAmount,Sheet1!S71_WIPCode,$AC:$AC)","v":0},{"$f":"SUMIFS(Sheet1!S71_PPYearAmount,Sheet1!S71_A9Code,$AC:$AC)+SUMIFS(Sheet1!S71_PPYearAmount,Sheet1!S71_WIPCode,$AC:$AC)","v":1917211},{"$f":"SUMIFS(Sheet1!S71_PYearAmount,Sheet1!S71_A9Code,$AC:$AC)+SUMIFS(Sheet1!S71_PYearAmount,Sheet1!S71_WIPCode,$AC:$AC)","v":1647896},{"$f":"SUMIFS(Sheet1!S71_OriginalBudAmnt,Sheet1!S71_A9Code,$AC:$AC)+SUMIFS(Sheet1!S71_OriginalBudAmnt,Sheet1!S71_WIPCode,$AC:$AC)","v":74771},{"$f":"SUMIFS(Sheet1!S71_AdjustmentBudAmnt,Sheet1!S71_A9Code,$AC:$AC)+SUMIFS(Sheet1!S71_AdjustmentBudAmnt,Sheet1!S71_WIPCode,$AC:$AC)","v":0},{"$f":"SUMIFS(Sheet1!S71_AdjustmentBudAmnt,Sheet1!S71_A9Code,$AC:$AC)+SUMIFS(Sheet1!S71_AdjustmentBudAmnt,Sheet1!S71_WIPCode,$AC:$AC)","v":0},{"$f":"SUMIFS(Sheet1!S71_ASBudgetAmount,Sheet1!S71_A9Code,$AC:$AC)+SUMIFS(Sheet1!S71_ASBudgetAmount,Sheet1!S71_WIPCode,$AC:$AC)","v":751558},{"$f":"SUMIFS(Sheet1!S71_OY1BudgetAmount,Sheet1!S71_A9Code,$AC:$AC)+SUMIFS(Sheet1!S71_OY1BudgetAmount,Sheet1!S71_WIPCode,$AC:$AC)","v":619963},{"$f":"SUMIFS(Sheet1!S71_OY2BudgetAmount,Sheet1!S71_A9Code,$AC:$AC)+SUMIFS(Sheet1!S71_OY2BudgetAmount,Sheet1!S71_WIPCode,$AC:$AC)","v":646265},null,null,null,null,null,null,null,null,null,null,null,null,null,null,null,null,null,"1490"]
["Machinery and Equipment",null,{"$f":"SUMIFS(Sheet1!S71_PPPYearAmount,Sheet1!S71_A9Code,$AC:$AC)+SUMIFS(Sheet1!S71_PPPYearAmount,Sheet1!S71_WIPCode,$AC:$AC)","v":0},{"$f":"SUMIFS(Sheet1!S71_PPYearAmount,Sheet1!S71_A9Code,$AC:$AC)+SUMIFS(Sheet1!S71_PPYearAmount,Sheet1!S71_WIPCode,$AC:$AC)","v":196724},{"$f":"SUMIFS(Sheet1!S71_PYearAmount,Sheet1!S71_A9Code,$AC:$AC)+SUMIFS(Sheet1!S71_PYearAmount,Sheet1!S71_WIPCode,$AC:$AC)","v":282462},{"$f":"SUMIFS(Sheet1!S71_OriginalBudAmnt,Sheet1!S71_A9Code,$AC:$AC)+SUMIFS(Sheet1!S71_OriginalBudAmnt,Sheet1!S71_WIPCode,$AC:$AC)","v":0},{"$f":"SUMIFS(Sheet1!S71_AdjustmentBudAmnt,Sheet1!S71_A9Code,$AC:$AC)+SUMIFS(Sheet1!S71_AdjustmentBudAmnt,Sheet1!S71_WIPCode,$AC:$AC)","v":11542822},{"$f":"SUMIFS(Sheet1!S71_AdjustmentBudAmnt,Sheet1!S71_A9Code,$AC:$AC)+SUMIFS(Sheet1!S71_AdjustmentBudAmnt,Sheet1!S71_WIPCode,$AC:$AC)","v":11542822},{"$f":"SUMIFS(Sheet1!S71_ASBudgetAmount,Sheet1!S71_A9Code,$AC:$AC)+SUMIFS(Sheet1!S71_ASBudgetAmount,Sheet1!S71_WIPCode,$AC:$AC)","v":194160},{"$f":"SUMIFS(Sheet1!S71_OY1BudgetAmount,Sheet1!S71_A9Code,$AC:$AC)+SUMIFS(Sheet1!S71_OY1BudgetAmount,Sheet1!S71_WIPCode,$AC:$AC)","v":201732},{"$f":"SUMIFS(Sheet1!S71_OY2BudgetAmount,Sheet1!S71_A9Code,$AC:$AC)+SUMIFS(Sheet1!S71_OY2BudgetAmount,Sheet1!S71_WIPCode,$AC:$AC)","v":210205},null,null,null,null,null,null,null,null,null,null,null,null,null,null,null,null,null,"1510"]
["Transport Assets",null,{"$f":"SUMIFS(Sheet1!S71_PPPYearAmount,Sheet1!S71_A9Code,$AC:$AC)+SUMIFS(Sheet1!S71_PPPYearAmount,Sheet1!S71_WIPCode,$AC:$AC)","v":0},{"$f":"SUMIFS(Sheet1!S71_PPYearAmount,Sheet1!S71_A9Code,$AC:$AC)+SUMIFS(Sheet1!S71_PPYearAmount,Sheet1!S71_WIPCode,$AC:$AC)","v":1230586},{"$f":"SUMIFS(Sheet1!S71_PYearAmount,Sheet1!S71_A9Code,$AC:$AC)+SUMIFS(Sheet1!S71_PYearAmount,Sheet1!S71_WIPCode,$AC:$AC)","v":940053},{"$f":"SUMIFS(Sheet1!S71_OriginalBudAmnt,Sheet1!S71_A9Code,$AC:$AC)+SUMIFS(Sheet1!S71_OriginalBudAmnt,Sheet1!S71_WIPCode,$AC:$AC)","v":220000},{"$f":"SUMIFS(Sheet1!S71_AdjustmentBudAmnt,Sheet1!S71_A9Code,$AC:$AC)+SUMIFS(Sheet1!S71_AdjustmentBudAmnt,Sheet1!S71_WIPCode,$AC:$AC)","v":0},{"$f":"SUMIFS(Sheet1!S71_AdjustmentBudAmnt,Sheet1!S71_A9Code,$AC:$AC)+SUMIFS(Sheet1!S71_AdjustmentBudAmnt,Sheet1!S71_WIPCode,$AC:$AC)","v":0},{"$f":"SUMIFS(Sheet1!S71_ASBudgetAmount,Sheet1!S71_A9Code,$AC:$AC)+SUMIFS(Sheet1!S71_ASBudgetAmount,Sheet1!S71_WIPCode,$AC:$AC)","v":849520},{"$f":"SUMIFS(Sheet1!S71_OY1BudgetAmount,Sheet1!S71_A9Code,$AC:$AC)+SUMIFS(Sheet1!S71_OY1BudgetAmount,Sheet1!S71_WIPCode,$AC:$AC)","v":674851},{"$f":"SUMIFS(Sheet1!S71_OY2BudgetAmount,Sheet1!S71_A9Code,$AC:$AC)+SUMIFS(Sheet1!S71_OY2BudgetAmount,Sheet1!S71_WIPCode,$AC:$AC)","v":703195},null,null,null,null,null,null,null,null,null,null,null,null,null,null,null,null,null,"1530"]
["Land",null,{"$f":"SUMIFS(Sheet1!S71_PPPYearAmount,Sheet1!S71_A9Code,$AC:$AC)+SUMIFS(Sheet1!S71_PPPYearAmount,Sheet1!S71_WIPCode,$AC:$AC)","v":0},{"$f":"SUMIFS(Sheet1!S71_PPYearAmount,Sheet1!S71_A9Code,$AC:$AC)+SUMIFS(Sheet1!S71_PPYearAmount,Sheet1!S71_WIPCode,$AC:$AC)","v":0},{"$f":"SUMIFS(Sheet1!S71_PYearAmount,Sheet1!S71_A9Code,$AC:$AC)+SUMIFS(Sheet1!S71_PYearAmount,Sheet1!S71_WIPCode,$AC:$AC)","v":0},{"$f":"SUMIFS(Sheet1!S71_OriginalBudAmnt,Sheet1!S71_A9Code,$AC:$AC)+SUMIFS(Sheet1!S71_OriginalBudAmnt,Sheet1!S71_WIPCode,$AC:$AC)","v":0},{"$f":"SUMIFS(Sheet1!S71_AdjustmentBudAmnt,Sheet1!S71_A9Code,$AC:$AC)+SUMIFS(Sheet1!S71_AdjustmentBudAmnt,Sheet1!S71_WIPCode,$AC:$AC)","v":0},{"$f":"SUMIFS(Sheet1!S71_AdjustmentBudAmnt,Sheet1!S71_A9Code,$AC:$AC)+SUMIFS(Sheet1!S71_AdjustmentBudAmnt,Sheet1!S71_WIPCode,$AC:$AC)","v":0},{"$f":"SUMIFS(Sheet1!S71_ASBudgetAmount,Sheet1!S71_A9Code,$AC:$AC)+SUMIFS(Sheet1!S71_ASBudgetAmount,Sheet1!S71_WIPCode,$AC:$AC)","v":0},{"$f":"SUMIFS(Sheet1!S71_OY1BudgetAmount,Sheet1!S71_A9Code,$AC:$AC)+SUMIFS(Sheet1!S71_OY1BudgetAmount,Sheet1!S71_WIPCode,$AC:$AC)","v":0},{"$f":"SUMIFS(Sheet1!S71_OY2BudgetAmount,Sheet1!S71_A9Code,$AC:$AC)+SUMIFS(Sheet1!S71_OY2BudgetAmount,Sheet1!S71_WIPCode,$AC:$AC)","v":0},null,null,null,null,null,null,null,null,null,null,null,null,null,null,null,null,null,"1550"]
["Zoo's, Marine and Non-biological Animals",null,{"$f":"SUMIFS(Sheet1!S71_PPPYearAmount,Sheet1!S71_A9Code,$AC:$AC)+SUMIFS(Sheet1!S71_PPPYearAmount,Sheet1!S71_WIPCode,$AC:$AC)","v":0},{"$f":"SUMIFS(Sheet1!S71_PPYearAmount,Sheet1!S71_A9Code,$AC:$AC)+SUMIFS(Sheet1!S71_PPYearAmount,Sheet1!S71_WIPCode,$AC:$AC)","v":0},{"$f":"SUMIFS(Sheet1!S71_PYearAmount,Sheet1!S71_A9Code,$AC:$AC)+SUMIFS(Sheet1!S71_PYearAmount,Sheet1!S71_WIPCode,$AC:$AC)","v":0},{"$f":"SUMIFS(Sheet1!S71_OriginalBudAmnt,Sheet1!S71_A9Code,$AC:$AC)+SUMIFS(Sheet1!S71_OriginalBudAmnt,Sheet1!S71_WIPCode,$AC:$AC)","v":0},{"$f":"SUMIFS(Sheet1!S71_AdjustmentBudAmnt,Sheet1!S71_A9Code,$AC:$AC)+SUMIFS(Sheet1!S71_AdjustmentBudAmnt,Sheet1!S71_WIPCode,$AC:$AC)","v":0},{"$f":"SUMIFS(Sheet1!S71_AdjustmentBudAmnt,Sheet1!S71_A9Code,$AC:$AC)+SUMIFS(Sheet1!S71_AdjustmentBudAmnt,Sheet1!S71_WIPCode,$AC:$AC)","v":0},{"$f":"SUMIFS(Sheet1!S71_ASBudgetAmount,Sheet1!S71_A9Code,$AC:$AC)+SUMIFS(Sheet1!S71_ASBudgetAmount,Sheet1!S71_WIPCode,$AC:$AC)","v":0},{"$f":"SUMIFS(Sheet1!S71_OY1BudgetAmount,Sheet1!S71_A9Code,$AC:$AC)+SUMIFS(Sheet1!S71_OY1BudgetAmount,Sheet1!S71_WIPCode,$AC:$AC)","v":0},{"$f":"SUMIFS(Sheet1!S71_OY2BudgetAmount,Sheet1!S71_A9Code,$AC:$AC)+SUMIFS(Sheet1!S71_OY2BudgetAmount,Sheet1!S71_WIPCode,$AC:$AC)","v":0},null,null,null,null,null,null,null,null,null,null,null,null,null,null,null,null,null,"1570"]
["TOTAL ASSET REGISTER SUMMARY - PPE (WDV)",5,{"$f":"C144+C147+C148+C151+C154+C155+C158+C159+C160+C161+C162+C163+C164","v":0},{"$f":"D144+D147+D148+D151+D154+D155+D158+D159+D160+D161+D162+D163+D164","v":13333675},12563930,404771,12891929,12891929,11359418,11279615,11710737]
[]
["EXPENDITURE OTHER ITEMS",null,{"$f":"SUM(C168:C169)","v":0},{"$f":"SUM(D168:D169)","v":2810750},2532150,2115850,2473850,2473850,1215000,1447300,1610760]
["Depreciation",7,{"$f":"SA34d!C167","v":0},{"$f":"SA34d!D167","v":2597914},{"$f":"SA34d!E167","v":2095288},{"$f":"SA34d!F167","v":1660850},{"$f":"SA34d!G167","v":1810850},{"$f":"SA34d!H167","v":1810850},{"$f":"SA34d!I167","v":1000000},{"$f":"SA34d!J167","v":1000000},{"$f":"SA34d!K167","v":1000000}]
["Repairs and Maintenance by Asset Class",3,{"$f":"C179+C182+C183+C186+C189+C190+SUM(C193:C199)","v":0},{"$f":"D179+D182+D183+D186+D189+D190+SUM(D193:D199)","v":212836},436862,455000,663000,663000,215000,447300,610760]
["Roads Infrastructure",null,{"$f":"SA34c!C7","v":0},{"$f":"SA34c!D7","v":0},{"$f":"SA34c!E7","v":0},{"$f":"SA34c!F7","v":0},{"$f":"SA34c!G7","v":0},{"$f":"SA34c!H7","v":0},{"$f":"SA34c!I7","v":0},{"$f":"SA34c!J7","v":0},{"$f":"SA34c!K7","v":0}]
["Storm water Infrastructure",null,{"$f":"SA34c!C12","v":0},{"$f":"SA34c!D12","v":0},{"$f":"SA34c!E12","v":0},{"$f":"SA34c!F12","v":0},{"$f":"SA34c!G12","v":0},{"$f":"SA34c!H12","v":0},{"$f":"SA34c!I12","v":0},{"$f":"SA34c!J12","v":0},{"$f":"SA34c!K12","v":0}]
["Electrical Infrastructure",null,{"$f":"SA34c!C16","v":0},{"$f":"SA34c!D16","v":0},{"$f":"SA34c!E16","v":0},{"$f":"SA34c!F16","v":0},{"$f":"SA34c!G16","v":0},{"$f":"SA34c!H16","v":0},{"$f":"SA34c!I16","v":0},{"$f":"SA34c!J16","v":0},{"$f":"SA34c!K16","v":0}]
["Water Supply Infrastructure",null,{"$f":"SA34c!C26","v":0},{"$f":"SA34c!D26","v":0},{"$f":"SA34c!E26","v":0},{"$f":"SA34c!F26","v":0},{"$f":"SA34c!G26","v":0},{"$f":"SA34c!H26","v":0},{"$f":"SA34c!I26","v":0},{"$f":"SA34c!J26","v":0},{"$f":"SA34c!K26","v":0}]
["Sanitation Infrastructure",null,{"$f":"SA34c!C37","v":0},{"$f":"SA34c!D37","v":0},{"$f":"SA34c!E37","v":0},{"$f":"SA34c!F37","v":0},{"$f":"SA34c!G37","v":0},{"$f":"SA34c!H37","v":0},{"$f":"SA34c!I37","v":0},{"$f":"SA34c!J37","v":0},{"$f":"SA34c!K37","v":0}]
["Solid Waste Infrastructure",null,{"$f":"SA34c!C44","v":0},{"$f":"SA34c!D44","v":0},{"$f":"SA34c!E44","v":0},{"$f":"SA34c!F44","v":0},{"$f":"SA34c!G44","v":0},{"$f":"SA34c!H44","v":0},{"$f":"SA34c!I44","v":0},{"$f":"SA34c!J44","v":0},{"$f":"SA34c!K44","v":0}]
["Rail Infrastructure",null,{"$f":"SA34c!C52","v":0},{"$f":"SA34c!D52","v":0},{"$f":"SA34c!E52","v":0},{"$f":"SA34c!F52","v":0},{"$f":"SA34c!G52","v":0},{"$f":"SA34c!H52","v":0},{"$f":"SA34c!I52","v":0},{"$f":"SA34c!J52","v":0},{"$f":"SA34c!K52","v":0}]
["Coastal Infrastructure",null,{"$f":"SA34c!C62","v":0},{"$f":"SA34c!D62","v":0},{"$f":"SA34c!E62","v":0},{"$f":"SA34c!F62","v":0},{"$f":"SA34c!G62","v":0},{"$f":"SA34c!H62","v":0},{"$f":"SA34c!I62","v":0},{"$f":"SA34c!J62","v":0},{"$f":"SA34c!K62","v":0}]
["Information and Communication Infrastructure",null,{"$f":"SA34c!C68","v":0},{"$f":"SA34c!D68","v":0},{"$f":"SA34c!E68","v":0},{"$f":"SA34c!F68","v":0},{"$f":"SA34c!G68","v":0},{"$f":"SA34c!H68","v":0},{"$f":"SA34c!I68","v":0},{"$f":"SA34c!J68","v":0},{"$f":"SA34c!K68","v":0}]
["Infrastructure",null,{"$f":"SUM(C170:C178)","v":0},{"$f":"SUM(D170:D178)","v":0},0,0,0,0,0,0,0]
["Community Facilities",null,{"$f":"SA34c!C75","v":0},{"$f":"SA34c!D75","v":0},{"$f":"SA34c!E75","v":0},{"$f":"SA34c!F75","v":0},{"$f":"SA34c!G75","v":0},{"$f":"SA34c!H75","v":0},{"$f":"SA34c!I75","v":0},{"$f":"SA34c!J75","v":0},{"$f":"SA34c!K75","v":0}]
["Sport and Recreation Facilities",null,{"$f":"SA34c!C98","v":0},{"$f":"SA34c!D98","v":0},{"$f":"SA34c!E98","v":0},{"$f":"SA34c!F98","v":0},{"$f":"SA34c!G98","v":0},{"$f":"SA34c!H98","v":0},{"$f":"SA34c!I98","v":0},{"$f":"SA34c!J98","v":0},{"$f":"SA34c!K98","v":0}]
["Community Assets",null,{"$f":"SUM(C180:C181)","v":0},0,0,0,0,0,0,0,0]
["Heritage Assets",null,{"$f":"SA34c!C103","v":0},{"$f":"SA34c!D103","v":0},{"$f":"SA34c!E103","v":0},{"$f":"SA34c!F103","v":0},{"$f":"SA34c!G103","v":0},{"$f":"SA34c!H103","v":0},{"$f":"SA34c!I103","v":0},{"$f":"SA34c!J103","v":0},{"$f":"SA34c!K103","v":0}]
["Revenue Generating",null,{"$f":"SA34c!C111","v":0},{"$f":"SA34c!D111","v":0},{"$f":"SA34c!E111","v":0},{"$f":"SA34c!F111","v":0},{"$f":"SA34c!G111","v":0},{"$f":"SA34c!H111","v":0},{"$f":"SA34c!I111","v":0},{"$f":"SA34c!J111","v":0},{"$f":"SA34c!K111","v":0}]
["Non-revenue Generating",null,{"$f":"SA34c!C114","v":0},{"$f":"SA34c!D114","v":0},{"$f":"SA34c!E114","v":0},{"$f":"SA34c!F114","v":0},{"$f":"SA34c!G114","v":0},{"$f":"SA34c!H114","v":0},{"$f":"SA34c!I114","v":0},{"$f":"SA34c!J114","v":0},{"$f":"SA34c!K114","v":0}]
["Investment properties",null,{"$f":"SUM(C184:C185)","v":0},0,0,0,0,0,0,0,0]
["Operational Buildings",null,{"$f":"SA34c!C119","v":0},{"$f":"SA34c!D119","v":27028},{"$f":"SA34c!E119","v":261430},{"$f":"SA34c!F119","v":270000},{"$f":"SA34c!G119","v":238000},{"$f":"SA34c!H119","v":238000},{"$f":"SA34c!I119","v":85000},{"$f":"SA34c!J119","v":221080},{"$f":"SA34c!K119","v":222218}]
["Housing",null,{"$f":"SA34c!C131","v":0},{"$f":"SA34c!D131","v":0},{"$f":"SA34c!E131","v":0},{"$f":"SA34c!F131","v":0},{"$f":"SA34c!G131","v":0},{"$f":"SA34c!H131","v":0},{"$f":"SA34c!I131","v":0},{"$f":"SA34c!J131","v":0},{"$f":"SA34c!K131","v":0}]
["Other Assets",null,{"$f":"SUM(C187:C188)","v":0},27028,261430,270000,238000,238000,85000,221080,222218]
["Biological or Cultivated Assets",null,{"$f":"SA34c!C136","v":0},{"$f":"SA34c!D136","v":0},{"$f":"SA34c!E136","v":0},{"$f":"SA34c!F136","v":0},{"$f":"SA34c!G136","v":0},{"$f":"SA34c!H136","v":0},{"$f":"SA34c!I136","v":0},{"$f":"SA34c!J136","v":0},{"$f":"SA34c!K136","v":0}]
["Servitudes",null,{"$f":"SA34c!C140","v":0},{"$f":"SA34c!D140","v":0},{"$f":"SA34c!E140","v":0},{"$f":"SA34c!F140","v":0},{"$f":"SA34c!G140","v":0},{"$f":"SA34c!H140","v":0},{"$f":"SA34c!I140","v":0},{"$f":"SA34c!J140","v":0},{"$f":"SA34c!K140","v":0}]
["Licences and Rights",null,{"$f":"SA34c!C141","v":0},{"$f":"SA34c!D141","v":0},{"$f":"SA34c!E141","v":0},{"$f":"SA34c!F141","v":0},{"$f":"SA34c!G141","v":0},{"$f":"SA34c!H141","v":0},{"$f":"SA34c!I141","v":0},{"$f":"SA34c!J141","v":0},{"$f":"SA34c!K141","v":0}]
["Intangible Assets",null,{"$f":"SUM(C191:C192)","v":0},0,0,0,0,0,0,0,0]
["Computer Equipment",null,{"$f":"SA34c!C149","v":0},{"$f":"SA34c!D149","v":0},{"$f":"SA34c!E149","v":0},{"$f":"SA34c!F149","v":0},{"$f":"SA34c!G149","v":0},{"$f":"SA34c!H149","v":0},{"$f":"SA34c!I149","v":0},{"$f":"SA34c!J149","v":0},{"$f":"SA34c!K149","v":0}]
["Furniture and Office Equipment",null,{"$f":"SA34c!C152","v":0},{"$f":"SA34c!D152","v":51225},{"$f":"SA34c!E152","v":0},{"$f":"SA34c!F152","v":0},{"$f":"SA34c!G152","v":0},{"$f":"SA34c!H152","v":0},{"$f":"SA34c!I152","v":10000},{"$f":"SA34c!J152","v":10000},{"$f":"SA34c!K152","v":10000}]
["Machinery and Equipment",null,{"$f":"SA34c!C155","v":0},{"$f":"SA34c!D155","v":3384},{"$f":"SA34c!E155","v":0},{"$f":"SA34c!F155","v":35000},{"$f":"SA34c!G155","v":175000},{"$f":"SA34c!H155","v":175000},{"$f":"SA34c!I155","v":20000},{"$f":"SA34c!J155","v":26220},{"$f":"SA34c!K155","v":28542}]
["Transport Assets",null,{"$f":"SA34c!C158","v":0},{"$f":"SA34c!D158","v":131199},{"$f":"SA34c!E158","v":175432},{"$f":"SA34c!F158","v":150000},{"$f":"SA34c!G158","v":250000},{"$f":"SA34c!H158","v":250000},{"$f":"SA34c!I158","v":100000},{"$f":"SA34c!J158","v":190000},{"$f":"SA34c!K158","v":350000}]
["Land",null,{"$f":"SA34c!C161","v":0},{"$f":"SA34c!D161","v":0},{"$f":"SA34c!E161","v":0},{"$f":"SA34c!F161","v":0},{"$f":"SA34c!G161","v":0},{"$f":"SA34c!H161","v":0},{"$f":"SA34c!I161","v":0},{"$f":"SA34c!J161","v":0},{"$f":"SA34c!K161","v":0}]
["Zoo's, Marine and Non-biological Animals",null,{"$f":"SA34c!C164","v":0},{"$f":"SA34c!D164","v":0},{"$f":"SA34c!E164","v":0},{"$f":"SA34c!F164","v":0},{"$f":"SA34c!G164","v":0},{"$f":"SA34c!H164","v":0},{"$f":"SA34c!I164","v":0},{"$f":"SA34c!J164","v":0},{"$f":"SA34c!K164","v":0}]
[]
["TOTAL EXPENDITURE OTHER ITEMS",null,{"$f":"SUM(C168:C169)","v":0},2810750,2532150,2115850,2473850,2473850,1215000,1447300,1610760]
[]
["Renewal and upgrading of Existing Assets as % of total capex",null,{"$f":"IF(ISERROR((C37+C69)/C132),0,((C37+C69)/C132))","v":0},{"$f":"IF(ISERROR((D37+D69)/D132),0,((D37+D69)/D132))","v":0},0.93577699350673815,0.9258840183708813,1,1,1,1,1]
["Renewal and upgrading of Existing Assets as % of deprecn",null,{"$f":"IF(ISERROR((C37+C69)/C168),0,((C37+C69)/C168))","v":0},{"$f":"IF(ISERROR((D37+D69)/D168),0,((D37+D69)/D168))","v":0},0.14223820305370907,0.22565011891501341,0.18113040837175912,0.18113040837175912,0.48599999999999999,2.1957999999999998E-2,2.3144000000000001E-2]
["R&M as a % of PPE",null,{"$f":"IF(ISERROR(ROUND(C169/'A6-FinPos'!C19,3)),0,(ROUND(C169/'A6-FinPos'!C19,3)))","v":0},{"$f":"IF(ISERROR(ROUND(D169/'A6-FinPos'!D19,3)),0,(ROUND(D169/'A6-FinPos'!D19,3)))","v":1.6E-2},{"$f":"IF(ISERROR(ROUND(E169/'A6-FinPos'!E19,3)),0,(ROUND(E169/'A6-FinPos'!E19,3)))","v":3.7999999999999999E-2},{"$f":"IF(ISERROR(ROUND(F169/'A6-FinPos'!F19,3)),0,(ROUND(F169/'A6-FinPos'!F19,3)))","v":1.1240000000000001},{"$f":"IF(ISERROR(ROUND(G169/'A6-FinPos'!G19,3)),0,(ROUND(G169/'A6-FinPos'!G19,3)))","v":5.6000000000000001E-2},{"$f":"IF(ISERROR(ROUND(H169/'A6-FinPos'!H19,3)),0,(ROUND(H169/'A6-FinPos'!H19,3)))","v":5.6000000000000001E-2},{"$f":"IF(ISERROR(ROUND(I169/'A6-FinPos'!J19,3)),0,(ROUND(I169/'A6-FinPos'!J19,3)))","v":2.1000000000000001E-2},{"$f":"IF(ISERROR(ROUND(J169/'A6-FinPos'!K19,3)),0,(ROUND(J169/'A6-FinPos'!K19,3)))","v":4.3999999999999997E-2},{"$f":"IF(ISERROR(ROUND(K169/'A6-FinPos'!L19,3)),0,(ROUND(K169/'A6-FinPos'!L19,3)))","v":5.7000000000000002E-2}]
["Renewal and upgrading and R&M as a % of PPE",null,{"$f":"IF(ISERROR(ROUND((C37+C69+C169)/C165,2)),0,(ROUND((C37+C69+C169)/C165,2)))","v":0},{"$f":"IF(ISERROR(ROUND((D37+D69+D169)/D165,2)),0,(ROUND((D37+D69+D169)/D165,2)))","v":0.02},0.06,2.0499999999999998,0.08,0.08,0.06,0.04,0.05]
[]
[{"$f":"head27a","v":"References"}]
["1. Detail of new assets provided in Table SA34a"]
["2. Detail of renewal of existing assets provided in Table SA34b"]
["3. Detail of Repairs and Maintenance by Asset Class provided in Table SA34c"]
["4. Must reconcile to total capital expenditure on Budgeted Capital Expenditure"]
["5. Must reconcile to 'Budgeted Financial Position' (written down value)"]
["6. Detail of upgrading of existing assets provided in Table SA34e"]
["7. Detail of depreciation provided in Table SA34d"]
[]
["Check balance to A6",null,{"$f":"C165-'A6-FinPos'!D17-'A6-FinPos'!D19-'A6-FinPos'!D20-'A6-FinPos'!D21-'A6-FinPos'!D22-C148","v":-13333675},{"$f":"D165-'A6-FinPos'!E17-'A6-FinPos'!E19-'A6-FinPos'!E20-'A6-FinPos'!E21-'A6-FinPos'!E22-D148","v":769745},{"$f":"E165-'A6-FinPos'!F17-'A6-FinPos'!F19-'A6-FinPos'!F20-'A6-FinPos'!F21-'A6-FinPos'!F22-E148","v":12159159},{"$f":"F165-'A6-FinPos'!G17-'A6-FinPos'!G19-'A6-FinPos'!G20-'A6-FinPos'!G21-'A6-FinPos'!G22-F148","v":-12487158},{"$f":"G165-'A6-FinPos'!H17-'A6-FinPos'!H19-'A6-FinPos'!H20-'A6-FinPos'!H21-'A6-FinPos'!H22-G148","v":0},{"$f":"H165-'A6-FinPos'!I17-'A6-FinPos'!I19-'A6-FinPos'!I20-'A6-FinPos'!I21-'A6-FinPos'!I22-H148","v":-37049685},{"$f":"I165-'A6-FinPos'!J17-'A6-FinPos'!J19-'A6-FinPos'!J20-'A6-FinPos'!J21-'A6-FinPos'!J22-I148","v":0},{"$f":"J165-'A6-FinPos'!K17-'A6-FinPos'!K19-'A6-FinPos'!K20-'A6-FinPos'!K21-'A6-FinPos'!K22-J148","v":0},{"$f":"K165-'A6-FinPos'!L17-'A6-FinPos'!L19-'A6-FinPos'!L20-'A6-FinPos'!L21-'A6-FinPos'!L22-K148","v":0}]

{"sheet":"A10-SerDel","index":28,"n_rows":89,"n_cols":11,"rows_kept":89,"cut":false,"hidden":false,"merged":[[1,5,1,7],[1,8,1,10],[1,0,2,0],[1,1,2,1]]}
[{"$f":"muni&\" - \"&Approve10","v":"DC16 Xhariep - Table A10 Basic service delivery measurement"}]
[{"$f":"desc","v":"Description"},{"$f":"head27","v":"Ref"},{"$f":"head1b","v":"2017/18"},{"$f":"head1A","v":"2018/19"},{"$f":"Head1","v":"2019/20"},{"$f":"Head2","v":"Current Year 2020/21"},null,null,{"$f":"Head3","v":"2021/22 Medium Term Revenue & Expenditure Framework"}]
[null,null,{"$f":"Head5A","v":"Outcome"},{"$f":"Head5A","v":"Outcome"},{"$f":"Head5A","v":"Outcome"},{"$f":"Head6","v":"Original Budget"},{"$f":"Head7","v":"Adjusted Budget"},{"$f":"Head8","v":"Full Year Forecast"},{"$f":"Head9","v":"Budget Year 2021/22"},{"$f":"Head10","v":"Budget Year +1 2022/23"},{"$f":"Head11","v":"Budget Year +2 2023/24"}]
["Household service targets",1]
["Water:"]
["Piped water inside dwelling",null,{"$f":"'SA9'!E67","v":0},{"$f":"'SA9'!F67","v":0},{"$f":"'SA9'!G67","v":0},{"$f":"'SA9'!H67","v":0},{"$f":"'SA9'!I67","v":0},{"$f":"'SA9'!J67","v":0},{"$f":"'SA9'!K67","v":0},{"$f":"'SA9'!L67","v":0},{"$f":"'SA9'!M67","v":0}]
["Piped water inside yard (but not in dwelling)",null,{"$f":"'SA9'!E68","v":0},{"$f":"'SA9'!F68","v":0},{"$f":"'SA9'!G68","v":0},{"$f":"'SA9'!H68","v":0},{"$f":"'SA9'!I68","v":0},{"$f":"'SA9'!J68","v":0},{"$f":"'SA9'!K68","v":0},{"$f":"'SA9'!L68","v":0},{"$f":"'SA9'!M68","v":0}]
["Using public tap (at least min.service level)",2,{"$f":"'SA9'!E69","v":0},{"$f":"'SA9'!F69","v":0},{"$f":"'SA9'!G69","v":0},{"$f":"'SA9'!H69","v":0},{"$f":"'SA9'!I69","v":0},{"$f":"'SA9'!J69","v":0},{"$f":"'SA9'!K69","v":0},{"$f":"'SA9'!L69","v":0},{"$f":"'SA9'!M69","v":0}]
["Other water supply (at least min.service level)",4,{"$f":"'SA9'!E70","v":0},{"$f":"'SA9'!F70","v":0},{"$f":"'SA9'!G70","v":0},{"$f":"'SA9'!H70","v":0},{"$f":"'SA9'!I70","v":0},{"$f":"'SA9'!J70","v":0},{"$f":"'SA9'!K70","v":0},{"$f":"'SA9'!L70","v":0},{"$f":"'SA9'!M70","v":0}]
["Minimum Service Level and Above sub-total",null,{"$f":"SUM(C6:C9)","v":0},{"$f":"SUM(D6:D9)","v":0},0,0,0,0,0,0,0]
["Using public tap (< min.service level)",3,{"$f":"'SA9'!E72","v":0},{"$f":"'SA9'!F72","v":0},{"$f":"'SA9'!G72","v":0},{"$f":"'SA9'!H72","v":0},{"$f":"'SA9'!I72","v":0},{"$f":"'SA9'!J72","v":0},{"$f":"'SA9'!K72","v":0},{"$f":"'SA9'!L72","v":0},{"$f":"'SA9'!M72","v":0}]
["Other water supply (< min.service level)",{"$f":"B9","v":4},{"$f":"'SA9'!E73","v":0},{"$f":"'SA9'!F73","v":0},{"$f":"'SA9'!G73","v":0},{"$f":"'SA9'!H73","v":0},{"$f":"'SA9'!I73","v":0},{"$f":"'SA9'!J73","v":0},{"$f":"'SA9'!K73","v":0},{"$f":"'SA9'!L73","v":0},{"$f":"'SA9'!M73","v":0}]
["No water supply",null,{"$f":"'SA9'!E74","v":0},{"$f":"'SA9'!F74","v":0},{"$f":"'SA9'!G74","v":0},{"$f":"'SA9'!H74","v":0},{"$f":"'SA9'!I74","v":0},{"$f":"'SA9'!J74","v":0},{"$f":"'SA9'!K74","v":0},{"$f":"'SA9'!L74","v":0},{"$f":"'SA9'!M74","v":0}]
["Below Minimum Service Level sub-total",null,{"$f":"SUM(C11:C13)","v":0},{"$f":"SUM(D11:D13)","v":0},0,0,0,0,0,0,0]
["Total number of households",5,{"$f":"C10+C14","v":0},{"$f":"D10+D14","v":0},0,0,0,0,0,0,0]
["Sanitation/sewerage:"]
["Flush toilet (connected to sewerage)",null,{"$f":"'SA9'!E78","v":0},{"$f":"'SA9'!F78","v":0},{"$f":"'SA9'!G78","v":0},{"$f":"'SA9'!H78","v":0},{"$f":"'SA9'!I78","v":0},{"$f":"'SA9'!J78","v":0},{"$f":"'SA9'!K78","v":0},{"$f":"'SA9'!L78","v":0},{"$f":"'SA9'!M78","v":0}]
["Flush toilet (with septic tank)",null,{"$f":"'SA9'!E79","v":0},{"$f":"'SA9'!F79","v":0},{"$f":"'SA9'!G79","v":0},{"$f":"'SA9'!H79","v":0},{"$f":"'SA9'!I79","v":0},{"$f":"'SA9'!J79","v":0},{"$f":"'SA9'!K79","v":0},{"$f":"'SA9'!L79","v":0},{"$f":"'SA9'!M79","v":0}]
["Chemical toilet",null,{"$f":"'SA9'!E80","v":0},{"$f":"'SA9'!F80","v":0},{"$f":"'SA9'!G80","v":0},{"$f":"'SA9'!H80","v":0},{"$f":"'SA9'!I80","v":0},{"$f":"'SA9'!J80","v":0},{"$f":"'SA9'!K80","v":0},{"$f":"'SA9'!L80","v":0},{"$f":"'SA9'!M80","v":0}]
["Pit toilet (ventilated)",null,{"$f":"'SA9'!E81","v":0},{"$f":"'SA9'!F81","v":0},{"$f":"'SA9'!G81","v":0},{"$f":"'SA9'!H81","v":0},{"$f":"'SA9'!I81","v":0},{"$f":"'SA9'!J81","v":0},{"$f":"'SA9'!K81","v":0},{"$f":"'SA9'!L81","v":0},{"$f":"'SA9'!M81","v":0}]
["Other toilet provisions (> min.service level)",null,{"$f":"'SA9'!E82","v":0},{"$f":"'SA9'!F82","v":0},{"$f":"'SA9'!G82","v":0},{"$f":"'SA9'!H82","v":0},{"$f":"'SA9'!I82","v":0},{"$f":"'SA9'!J82","v":0},{"$f":"'SA9'!K82","v":0},{"$f":"'SA9'!L82","v":0},{"$f":"'SA9'!M82","v":0}]
[{"$f":"$A$10","v":"Minimum Service Level and Above sub-total"},null,{"$f":"SUM(C17:C21)","v":0},{"$f":"SUM(D17:D21)","v":0},0,0,0,0,0,0,0]
["Bucket toilet",null,{"$f":"'SA9'!E84","v":0},{"$f":"'SA9'!F84","v":0},{"$f":"'SA9'!G84","v":0},{"$f":"'SA9'!H84","v":0},{"$f":"'SA9'!I84","v":0},{"$f":"'SA9'!J84","v":0},{"$f":"'SA9'!K84","v":0},{"$f":"'SA9'!L84","v":0},{"$f":"'SA9'!M84","v":0}]
["Other toilet provisions (< min.service level)",null,{"$f":"'SA9'!E85","v":0},{"$f":"'SA9'!F85","v":0},{"$f":"'SA9'!G85","v":0},{"$f":"'SA9'!H85","v":0},{"$f":"'SA9'!I85","v":0},{"$f":"'SA9'!J85","v":0},{"$f":"'SA9'!K85","v":0},{"$f":"'SA9'!L85","v":0},{"$f":"'SA9'!M85","v":0}]
["No toilet provisions",null,{"$f":"'SA9'!E86","v":0},{"$f":"'SA9'!F86","v":0},{"$f":"'SA9'!G86","v":0},{"$f":"'SA9'!H86","v":0},{"$f":"'SA9'!I86","v":0},{"$f":"'SA9'!J86","v":0},{"$f":"'SA9'!K86","v":0},{"$f":"'SA9'!L86","v":0},{"$f":"'SA9'!M86","v":0}]
[{"$f":"$A$14","v":"Below Minimum Service Level sub-total"},null,{"$f":"SUM(C23:C25)","v":0},{"$f":"SUM(D23:D25)","v":0},0,0,0,0,0,0,0]
[{"$f":"$A$15","v":"Total number of households"},{"$f":"$B$15","v":5},{"$f":"C22+C26","v":0},{"$f":"D22+D26","v":0},0,0,0,0,0,0,0]
["Energy:"]
["Electricity (at least min.service level)",null,{"$f":"'SA9'!E90","v":0},{"$f":"'SA9'!F90","v":0},{"$f":"'SA9'!G90","v":0},{"$f":"'SA9'!H90","v":0},{"$f":"'SA9'!I90","v":0},{"$f":"'SA9'!J90","v":0},{"$f":"'SA9'!K90","v":0},{"$f":"'SA9'!L90","v":0},{"$f":"'SA9'!M90","v":0}]
["Electricity - prepaid (min.service level)",null,{"$f":"'SA9'!E91","v":0},{"$f":"'SA9'!F91","v":0},{"$f":"'SA9'!G91","v":0},{"$f":"'SA9'!H91","v":0},{"$f":"'SA9'!I91","v":0},{"$f":"'SA9'!J91","v":0},{"$f":"'SA9'!K91","v":0},{"$f":"'SA9'!L91","v":0},{"$f":"'SA9'!M91","v":0}]
[{"$f":"$A$10","v":"Minimum Service Level and Above sub-total"},null,{"$f":"SUM(C29:C30)","v":0},{"$f":"SUM(D29:D30)","v":0},0,0,0,0,0,0,0]
["Electricity (< min.service level)",null,{"$f":"'SA9'!E93","v":0},{"$f":"'SA9'!F93","v":0},{"$f":"'SA9'!G93","v":0},{"$f":"'SA9'!H93","v":0},{"$f":"'SA9'!I93","v":0},{"$f":"'SA9'!J93","v":0},{"$f":"'SA9'!K93","v":0},{"$f":"'SA9'!L93","v":0},{"$f":"'SA9'!M93","v":0}]
["Electricity - prepaid (< min. service level)",null,{"$f":"'SA9'!E94","v":0},{"$f":"'SA9'!F94","v":0},{"$f":"'SA9'!G94","v":0},{"$f":"'SA9'!H94","v":0},{"$f":"'SA9'!I94","v":0},{"$f":"'SA9'!J94","v":0},{"$f":"'SA9'!K94","v":0},{"$f":"'SA9'!L94","v":0},{"$f":"'SA9'!M94","v":0}]
["Other energy sources",null,{"$f":"'SA9'!E95","v":0},{"$f":"'SA9'!F95","v":0},{"$f":"'SA9'!G95","v":0},{"$f":"'SA9'!H95","v":0},{"$f":"'SA9'!I95","v":0},{"$f":"'SA9'!J95","v":0},{"$f":"'SA9'!K95","v":0},{"$f":"'SA9'!L95","v":0},{"$f":"'SA9'!M95","v":0}]
[{"$f":"$A$14","v":"Below Minimum Service Level sub-total"},null,{"$f":"SUM(C32:C34)","v":0},{"$f":"SUM(D32:D34)","v":0},0,0,0,0,0,0,0]
[{"$f":"$A$15","v":"Total number of households"},{"$f":"$B$15","v":5},{"$f":"C31+C35","v":0},{"$f":"D31+D35","v":0},0,0,0,0,0,0,0]
["Refuse:"]
["Removed at least once a week",null,{"$f":"'SA9'!E99","v":0},{"$f":"'SA9'!F99","v":0},{"$f":"'SA9'!G99","v":0},{"$f":"'SA9'!H99","v":0},{"$f":"'SA9'!I99","v":0},{"$f":"'SA9'!J99","v":0},{"$f":"'SA9'!K99","v":0},{"$f":"'SA9'!L99","v":0},{"$f":"'SA9'!M99","v":0}]
[{"$f":"$A$10","v":"Minimum Service Level and Above sub-total"},null,{"$f":"SUM(C38)","v":0},{"$f":"SUM(D38)","v":0},0,0,0,0,0,0,0]
["Removed less frequently than once a week",null,{"$f":"'SA9'!E101","v":0},{"$f":"'SA9'!F101","v":0},{"$f":"'SA9'!G101","v":0},{"$f":"'SA9'!H101","v":0},{"$f":"'SA9'!I101","v":0},{"$f":"'SA9'!J101","v":0},{"$f":"'SA9'!K101","v":0},{"$f":"'SA9'!L101","v":0},{"$f":"'SA9'!M101","v":0}]
["Using communal refuse dump",null,{"$f":"'SA9'!E102","v":0},{"$f":"'SA9'!F102","v":0},{"$f":"'SA9'!G102","v":0},{"$f":"'SA9'!H102","v":0},{"$f":"'SA9'!I102","v":0},{"$f":"'SA9'!J102","v":0},{"$f":"'SA9'!K102","v":0},{"$f":"'SA9'!L102","v":0},{"$f":"'SA9'!M102","v":0}]
["Using own refuse dump",null,{"$f":"'SA9'!E103","v":0},{"$f":"'SA9'!F103","v":0},{"$f":"'SA9'!G103","v":0},{"$f":"'SA9'!H103","v":0},{"$f":"'SA9'!I103","v":0},{"$f":"'SA9'!J103","v":0},{"$f":"'SA9'!K103","v":0},{"$f":"'SA9'!L103","v":0},{"$f":"'SA9'!M103","v":0}]
["Other rubbish disposal",null,{"$f":"'SA9'!E104","v":0},{"$f":"'SA9'!F104","v":0},{"$f":"'SA9'!G104","v":0},{"$f":"'SA9'!H104","v":0},{"$f":"'SA9'!I104","v":0},{"$f":"'SA9'!J104","v":0},{"$f":"'SA9'!K104","v":0},{"$f":"'SA9'!L104","v":0},{"$f":"'SA9'!M104","v":0}]
["No rubbish disposal",null,{"$f":"'SA9'!E105","v":0},{"$f":"'SA9'!F105","v":0},{"$f":"'SA9'!G105","v":0},{"$f":"'SA9'!H105","v":0},{"$f":"'SA9'!I105","v":0},{"$f":"'SA9'!J105","v":0},{"$f":"'SA9'!K105","v":0},{"$f":"'SA9'!L105","v":0},{"$f":"'SA9'!M105","v":0}]
[{"$f":"$A$14","v":"Below Minimum Service Level sub-total"},null,{"$f":"SUM(C40:C44)","v":0},0,0,0,0,0,0,0,0]
[{"$f":"$A$15","v":"Total number of households"},{"$f":"$B$15","v":5},{"$f":"C39+C45","v":0},{"$f":"D39+D45","v":0},0,0,0,0,0,0,0]
[]
["Households receiving Free Basic Service",7]
["Water (6 kilolitres per household per month)",null,{"$f":"'SA9'!E263","v":0},{"$f":"'SA9'!F263","v":0},{"$f":"'SA9'!G263","v":0},{"$f":"'SA9'!H263","v":0},{"$f":"'SA9'!I263","v":0},{"$f":"'SA9'!J263","v":0},{"$f":"'SA9'!K263","v":0},{"$f":"'SA9'!L263","v":0},{"$f":"'SA9'!M263","v":0}]
["Sanitation (free minimum level service)",null,{"$f":"'SA9'!E275","v":0},{"$f":"'SA9'!F275","v":0},{"$f":"'SA9'!G275","v":0},{"$f":"'SA9'!H275","v":0},{"$f":"'SA9'!I275","v":0},{"$f":"'SA9'!J275","v":0},{"$f":"'SA9'!K275","v":0},{"$f":"'SA9'!L275","v":0},{"$f":"'SA9'!M275","v":0}]
["Electricity/other energy (50kwh per household per month)",null,{"$f":"'SA9'!E251","v":0},{"$f":"'SA9'!F251","v":0},{"$f":"'SA9'!G251","v":0},{"$f":"'SA9'!H251","v":0},{"$f":"'SA9'!I251","v":0},{"$f":"'SA9'!J251","v":0},{"$f":"'SA9'!K251","v":0},{"$f":"'SA9'!L251","v":0},{"$f":"'SA9'!M251","v":0}]
["Refuse (removed at least once a week)",null,{"$f":"'SA9'!E287","v":0},{"$f":"'SA9'!F287","v":0},{"$f":"'SA9'!G287","v":0},{"$f":"'SA9'!H287","v":0},{"$f":"'SA9'!I287","v":0},{"$f":"'SA9'!J287","v":0},{"$f":"'SA9'!K287","v":0},{"$f":"'SA9'!L287","v":0},{"$f":"'SA9'!M287","v":0}]
[]
["Cost of Free Basic Services provided - Formal Settlements (R'000)",8]
["Water (6 kilolitres per indigent household per month)",null,{"$f":"'SA1'!C20","v":0},{"$f":"'SA1'!D20","v":0},{"$f":"'SA1'!E20","v":0},{"$f":"'SA1'!F20","v":0},{"$f":"'SA1'!G20","v":0},{"$f":"'SA1'!H20","v":0},{"$f":"'SA1'!J20","v":0},{"$f":"'SA1'!K20","v":0},{"$f":"'SA1'!L20","v":0}]
["Sanitation (free sanitation service to indigent households)",null,{"$f":"'SA1'!C26","v":0},{"$f":"'SA1'!D26","v":0},{"$f":"'SA1'!E26","v":0},{"$f":"'SA1'!F26","v":0},{"$f":"'SA1'!G26","v":0},{"$f":"'SA1'!H26","v":0},{"$f":"'SA1'!J26","v":0},{"$f":"'SA1'!K26","v":0},{"$f":"'SA1'!L26","v":0}]
["Electricity/other energy (50kwh per indigent household per month)",null,{"$f":"'SA1'!C14","v":0},{"$f":"'SA1'!D14","v":0},{"$f":"'SA1'!E14","v":0},{"$f":"'SA1'!F14","v":0},{"$f":"'SA1'!G14","v":0},{"$f":"'SA1'!H14","v":0},{"$f":"'SA1'!J14","v":0},{"$f":"'SA1'!K14","v":0},{"$f":"'SA1'!L14","v":0}]
["Refuse (removed once a week for indigent households)",null,{"$f":"'SA1'!C33","v":0},{"$f":"'SA1'!D33","v":0},{"$f":"'SA1'!E33","v":0},{"$f":"'SA1'!F33","v":0},{"$f":"'SA1'!G33","v":0},{"$f":"'SA1'!H33","v":0},{"$f":"'SA1'!J33","v":0},{"$f":"'SA1'!K33","v":0},{"$f":"'SA1'!L33","v":0}]
["Cost of Free Basic Services provided - Informal Formal Settlements (R'000)",null,{"$f":"'SA9'!E260+'SA9'!E272+'SA9'!E284+'SA9'!E296","v":0},{"$f":"'SA9'!F260+'SA9'!F272+'SA9'!F284+'SA9'!F296","v":0},{"$f":"'SA9'!G260+'SA9'!G272+'SA9'!G284+'SA9'!G296","v":0},{"$f":"'SA9'!H260+'SA9'!H272+'SA9'!H284+'SA9'!H296","v":0},{"$f":"'SA9'!I260+'SA9'!I272+'SA9'!I284+'SA9'!I296","v":0},{"$f":"'SA9'!J260+'SA9'!J272+'SA9'!J284+'SA9'!J296","v":0},{"$f":"'SA9'!K260+'SA9'!K272+'SA9'!K284+'SA9'!K296","v":0},{"$f":"'SA9'!L260+'SA9'!L272+'SA9'!L284+'SA9'!L296","v":0},{"$f":"'SA9'!M260+'SA9'!M272+'SA9'!M284+'SA9'!M296","v":0}]
["Total cost of FBS provided  ",null,{"$f":"SUM(C55:C59)","v":0},0,0,0,0,0,0,0,0]
[]
["Highest level of free service provided per household"]
["Property rates (R value threshold)"]
["Water (kilolitres per household per month)"]
["Sanitation (kilolitres per household per month)"]
["Sanitation (Rand per household per month)"]
["Electricity (kwh per household per month)"]
["Refuse (average litres per week)"]
["Revenue  cost of subsidised services provided (R'000)",9]
["Property rates (tariff adjustment) ( impermissable values per section 17 of MPRA)"]
["Property rates  exemptions, reductions and rebates and impermissable values in excess of section 17 of MPRA)",null,{"$f":"'SA1'!C8","v":0},{"$f":"'SA1'!D8","v":0},{"$f":"'SA1'!E8","v":0},{"$f":"'SA1'!F8","v":0},{"$f":"'SA1'!G8","v":0},{"$f":"'SA1'!H8","v":0},{"$f":"'SA1'!J8","v":0},{"$f":"'SA1'!K8","v":0},{"$f":"'SA1'!L8","v":0}]
["Water (in excess of 6 kilolitres per indigent household per month)",null,{"$f":"'SA1'!C19","v":0},{"$f":"'SA1'!D19","v":0},{"$f":"'SA1'!E19","v":0},{"$f":"'SA1'!F19","v":0},{"$f":"'SA1'!G19","v":0},{"$f":"'SA1'!H19","v":0},{"$f":"'SA1'!J19","v":0},{"$f":"'SA1'!K19","v":0},{"$f":"'SA1'!L19","v":0}]
["Sanitation (in excess of free sanitation service to indigent households)",null,{"$f":"'SA1'!C25","v":0},{"$f":"'SA1'!D25","v":0},{"$f":"'SA1'!E25","v":0},{"$f":"'SA1'!F25","v":0},{"$f":"'SA1'!G25","v":0},{"$f":"'SA1'!H25","v":0},{"$f":"'SA1'!J25","v":0},{"$f":"'SA1'!K25","v":0},{"$f":"'SA1'!L25","v":0}]
["Electricity/other energy (in excess of 50 kwh per indigent household per month)",null,{"$f":"'SA1'!C13","v":0},{"$f":"'SA1'!D13","v":0},{"$f":"'SA1'!E13","v":0},{"$f":"'SA1'!F13","v":0},{"$f":"'SA1'!G13","v":0},{"$f":"'SA1'!H13","v":0},{"$f":"'SA1'!J13","v":0},{"$f":"'SA1'!K13","v":0},{"$f":"'SA1'!L13","v":0}]
["Refuse (in excess of one removal a week for indigent households)",null,{"$f":"'SA1'!C32","v":0},{"$f":"'SA1'!D32","v":0},{"$f":"'SA1'!E32","v":0},{"$f":"'SA1'!F32","v":0},{"$f":"'SA1'!G32","v":0},{"$f":"'SA1'!H32","v":0},{"$f":"'SA1'!J32","v":0},{"$f":"'SA1'!K32","v":0},{"$f":"'SA1'!L32","v":0}]
["Municipal Housing - rental rebates"]
["Housing - top structure subsidies",6]
["Other"]
["Total revenue cost of subsidised services provided ",null,{"$f":"SUM(C70:C78)","v":0},{"$f":"SUM(D70:D78)","v":0},0,0,0,0,0,{"$f":"SUM(J70:J78)","v":0},{"$f":"SUM(K70:K78)","v":0}]
[{"$f":"head27a","v":"References"}]
["1. Include services provided by another entity; e.g. Eskom"]
["2. Stand distance <= 200m from dwelling"]
["3. Stand distance > 200m from dwelling"]
["4. Borehole, spring, rain-water tank etc."]
["5. Must agree to total number of households in municipal area (informal settlements receiving services must be included)"]
["6. Include value of subsidy provided by municipality above provincial subsidy level"]
["7. Show number of households receiving at least these levels of services completely free (informal settlements must be included)"]
["8. Must reflect the cost to the municipality of providing the Free Basic Service"]
["9. Reflect the cost to the municipality in terms of 'revenue foregone' of providing free services (note this will not equal 'Revenue Foregone' on SA1)"]

{"sheet":"SA1","index":29,"n_rows":199,"n_cols":30,"rows_kept":199,"cut":false,"hidden":false,"merged":[[1,9,1,11],[1,5,1,8],[1,0,2,0],[1,1,2,1]]}
[{"$f":"muni&\" - \"&TableA1","v":"DC16 Xhariep - Supporting Table SA1 Supportinging detail to 'Budgeted Financial Performance'"}]
[{"$f":"desc","v":"Description"},{"$f":"head27","v":"Ref"},{"$f":"head1b","v":"2017/18"},{"$f":"head1A","v":"2018/19"},{"$f":"Head1","v":"2019/20"},{"$f":"Head2","v":"Current Year 2020/21"},null,null,null,{"$f":"Head3","v":"2021/22 Medium Term Revenue & Expenditure Framework"}]
[null,null,{"$f":"Head5","v":"Audited Outcome"},{"$f":"Head5","v":"Audited Outcome"},{"$f":"Head5","v":"Audited Outcome"},{"$f":"Head6","v":"Original Budget"},{"$f":"Head7","v":"Adjusted Budget"},{"$f":"Head8","v":"Full Year Forecast"},{"$f":"Head5b","v":"Pre-audit outcome"},{"$f":"Head9","v":"Budget Year 2021/22"},{"$f":"Head10","v":"Budget Year +1 2022/23"},{"$f":"Head11","v":"Budget Year +2 2023/24"}]
["R thousand"]
["REVENUE ITEMS:"]
[{"$f":"'A4-FinPerf RE'!A5","v":"Property rates"},6]
["Total Property Rates",null,{"$f":"SUMIFS(Sheet1!S71_PPPYearAmount,Sheet1!S71_A4Code,$AC:$AC,Sheet1!S71_ProjectType,$AD:$AD)","v":0},{"$f":"SUMIFS(Sheet1!S71_PPYearAmount,Sheet1!S71_A4Code,$AC:$AC,Sheet1!S71_ProjectType,$AD:$AD)","v":0},{"$f":"SUMIFS(Sheet1!S71_PYearAmount,Sheet1!S71_A4Code,$AC:$AC,Sheet1!S71_ProjectType,$AD:$AD)","v":0},{"$f":"-SUMIFS(Sheet1!S71_OriginalBudAmnt,Sheet1!S71_A4Code,$AC:$AC,Sheet1!S71_ProjectType,$AD:$AD)","v":0},{"$f":"-SUMIFS(Sheet1!S71_AdjustmentBudAmnt,Sheet1!S71_A4Code,$AC:$AC,Sheet1!S71_ProjectType,$AD:$AD)","v":0},{"$f":"-SUMIFS(Sheet1!S71_AdjustmentBudAmnt,Sheet1!S71_A4Code,$AC:$AC,Sheet1!S71_ProjectType,$AD:$AD)","v":0},{"$f":"SUMIFS(Sheet1!CD:CD,Sheet1!S71_A4Code,$AC:$AC,Sheet1!S71_ProjectType,$AD:$AD)","v":0},{"$f":"-SUMIFS(Sheet1!S71_ASBudgetAmount,Sheet1!S71_A4Code,$AC:$AC,Sheet1!S71_ProjectType,$AD:$AD)","v":0},{"$f":"-SUMIFS(Sheet1!S71_OY1BudgetAmount,Sheet1!S71_A4Code,$AC:$AC,Sheet1!S71_ProjectType,$AD:$AD)","v":0},{"$f":"-SUMIFS(Sheet1!S71_OY2BudgetAmount,Sheet1!S71_A4Code,$AC:$AC,Sheet1!S71_ProjectType,$AD:$AD)","v":0},null,null,null,null,null,null,null,null,null,null,null,null,null,null,null,null,"0200","D"]
["Less Revenue Foregone (exemptions, reductions and rebates and impermissable values in excess of section 17 of MPRA)",null,{"$f":"SUMIFS(Sheet1!S71_PPPYearAmount,Sheet1!S71_A4Code,$AC:$AC,Sheet1!S71_ProjectType,$AD:$AD)","v":0},{"$f":"SUMIFS(Sheet1!S71_PPYearAmount,Sheet1!S71_A4Code,$AC:$AC,Sheet1!S71_ProjectType,$AD:$AD)","v":0},{"$f":"SUMIFS(Sheet1!S71_PYearAmount,Sheet1!S71_A4Code,$AC:$AC,Sheet1!S71_ProjectType,$AD:$AD)","v":0},{"$f":"SUMIFS(Sheet1!S71_OriginalBudAmnt,Sheet1!S71_A4Code,$AC:$AC,Sheet1!S71_ProjectType,$AD:$AD)","v":0},{"$f":"SUMIFS(Sheet1!S71_AdjustmentBudAmnt,Sheet1!S71_A4Code,$AC:$AC,Sheet1!S71_ProjectType,$AD:$AD)","v":0},{"$f":"SUMIFS(Sheet1!S71_AdjustmentBudAmnt,Sheet1!S71_A4Code,$AC:$AC,Sheet1!S71_ProjectType,$AD:$AD)","v":0},{"$f":"SUMIFS(Sheet1!CD:CD,Sheet1!S71_A4Code,$AC:$AC,Sheet1!S71_ProjectType,$AD:$AD)","v":0},{"$f":"SUMIFS(Sheet1!S71_ASBudgetAmount,Sheet1!S71_A4Code,$AC:$AC,Sheet1!S71_ProjectType,$AD:$AD)","v":0},{"$f":"SUMIFS(Sheet1!S71_OY1BudgetAmount,Sheet1!S71_A4Code,$AC:$AC,Sheet1!S71_ProjectType,$AD:$AD)","v":0},{"$f":"SUMIFS(Sheet1!S71_OY2BudgetAmount,Sheet1!S71_A4Code,$AC:$AC,Sheet1!S71_ProjectType,$AD:$AD)","v":0},null,null,null,null,null,null,null,null,null,null,null,null,null,null,null,null,"0200","O"]
["Net Property Rates",null,{"$f":"C7-C8","v":0},{"$f":"D7-D8","v":0},0,0,0,0,0,0,0,0]
[]
[{"$f":"'A4-FinPerf RE'!A6","v":"Service charges - electricity revenue"},6]
[{"$f":"\"Total \"&A11","v":"Total Service charges - electricity revenue"},null,{"$f":"SUMIFS(Sheet1!S71_PPPYearAmount,Sheet1!S71_A4Code,$AC:$AC,Sheet1!S71_ProjectType,$AD:$AD)","v":0},{"$f":"SUMIFS(Sheet1!S71_PPYearAmount,Sheet1!S71_A4Code,$AC:$AC,Sheet1!S71_ProjectType,$AD:$AD)","v":0},{"$f":"SUMIFS(Sheet1!S71_PYearAmount,Sheet1!S71_A4Code,$AC:$AC,Sheet1!S71_ProjectType,$AD:$AD)","v":0},{"$f":"-SUMIFS(Sheet1!S71_OriginalBudAmnt,Sheet1!S71_A4Code,$AC:$AC,Sheet1!S71_ProjectType,$AD:$AD)","v":0},{"$f":"-SUMIFS(Sheet1!S71_AdjustmentBudAmnt,Sheet1!S71_A4Code,$AC:$AC,Sheet1!S71_ProjectType,$AD:$AD)","v":0},{"$f":"-SUMIFS(Sheet1!S71_AdjustmentBudAmnt,Sheet1!S71_A4Code,$AC:$AC,Sheet1!S71_ProjectType,$AD:$AD)","v":0},{"$f":"SUMIFS(Sheet1!CD:CD,Sheet1!S71_A4Code,$AC:$AC,Sheet1!S71_ProjectType,$AD:$AD)","v":0},{"$f":"-SUMIFS(Sheet1!S71_ASBudgetAmount,Sheet1!S71_A4Code,$AC:$AC,Sheet1!S71_ProjectType,$AD:$AD)","v":0},{"$f":"-SUMIFS(Sheet1!S71_OY1BudgetAmount,Sheet1!S71_A4Code,$AC:$AC,Sheet1!S71_ProjectType,$AD:$AD)","v":0},{"$f":"-SUMIFS(Sheet1!S71_OY2BudgetAmount,Sheet1!S71_A4Code,$AC:$AC,Sheet1!S71_ProjectType,$AD:$AD)","v":0},null,null,null,null,null,null,null,null,null,null,null,null,null,null,null,null,"0300","D"]
["Less Revenue Foregone (in excess of 50 kwh per indigent household per month)",null,{"$f":"SUMIFS(Sheet1!S71_PPPYearAmount,Sheet1!S71_A4Code,$AC:$AC,Sheet1!S71_ProjectType,$AD:$AD)","v":0},{"$f":"SUMIFS(Sheet1!S71_PPYearAmount,Sheet1!S71_A4Code,$AC:$AC,Sheet1!S71_ProjectType,$AD:$AD)","v":0},{"$f":"SUMIFS(Sheet1!S71_PYearAmount,Sheet1!S71_A4Code,$AC:$AC,Sheet1!S71_ProjectType,$AD:$AD)","v":0},{"$f":"SUMIFS(Sheet1!S71_OriginalBudAmnt,Sheet1!S71_A4Code,$AC:$AC,Sheet1!S71_ProjectType,$AD:$AD)","v":0},{"$f":"SUMIFS(Sheet1!S71_AdjustmentBudAmnt,Sheet1!S71_A4Code,$AC:$AC,Sheet1!S71_ProjectType,$AD:$AD)","v":0},{"$f":"SUMIFS(Sheet1!S71_AdjustmentBudAmnt,Sheet1!S71_A4Code,$AC:$AC,Sheet1!S71_ProjectType,$AD:$AD)","v":0},{"$f":"SUMIFS(Sheet1!CD:CD,Sheet1!S71_A4Code,$AC:$AC,Sheet1!S71_ProjectType,$AD:$AD)","v":0},{"$f":"SUMIFS(Sheet1!S71_ASBudgetAmount,Sheet1!S71_A4Code,$AC:$AC,Sheet1!S71_ProjectType,$AD:$AD)","v":0},{"$f":"SUMIFS(Sheet1!S71_OY1BudgetAmount,Sheet1!S71_A4Code,$AC:$AC,Sheet1!S71_ProjectType,$AD:$AD)","v":0},{"$f":"SUMIFS(Sheet1!S71_OY2BudgetAmount,Sheet1!S71_A4Code,$AC:$AC,Sheet1!S71_ProjectType,$AD:$AD)","v":0},null,null,null,null,null,null,null,null,null,null,null,null,null,null,null,null,"0300","O"]
["Less Cost of Free Basis Services (50 kwh per indigent household per month)",null,{"$f":"'SA9'!E250","v":0},{"$f":"'SA9'!F250","v":0},{"$f":"'SA9'!G250","v":0},{"$f":"'SA9'!H250","v":0},{"$f":"'SA9'!I250","v":0},{"$f":"'SA9'!J250","v":0},null,{"$f":"'SA9'!K250","v":0},{"$f":"'SA9'!L250","v":0},{"$f":"'SA9'!M250","v":0},null,null,null,null,null,null,null,null,null,null,null,null,null,null,null,null,"0300","??"]
[{"$f":"\"Net \"& A11","v":"Net Service charges - electricity revenue"},null,{"$f":"C12-C13-C14","v":0},{"$f":"D12-D13-D14","v":0},0,0,0,0,0,0,0,0]
[]
[{"$f":"'A4-FinPerf RE'!A7","v":"Service charges - water revenue"},6]
[{"$f":"\"Total \"&A17","v":"Total Service charges - water revenue"},null,{"$f":"SUMIFS(Sheet1!S71_PPPYearAmount,Sheet1!S71_A4Code,$AC:$AC,Sheet1!S71_ProjectType,$AD:$AD)","v":0},{"$f":"SUMIFS(Sheet1!S71_PPYearAmount,Sheet1!S71_A4Code,$AC:$AC,Sheet1!S71_ProjectType,$AD:$AD)","v":0},{"$f":"SUMIFS(Sheet1!S71_PYearAmount,Sheet1!S71_A4Code,$AC:$AC,Sheet1!S71_ProjectType,$AD:$AD)","v":0},{"$f":"-SUMIFS(Sheet1!S71_OriginalBudAmnt,Sheet1!S71_A4Code,$AC:$AC,Sheet1!S71_ProjectType,$AD:$AD)","v":0},{"$f":"-SUMIFS(Sheet1!S71_AdjustmentBudAmnt,Sheet1!S71_A4Code,$AC:$AC,Sheet1!S71_ProjectType,$AD:$AD)","v":0},{"$f":"-SUMIFS(Sheet1!S71_AdjustmentBudAmnt,Sheet1!S71_A4Code,$AC:$AC,Sheet1!S71_ProjectType,$AD:$AD)","v":0},{"$f":"SUMIFS(Sheet1!CD:CD,Sheet1!S71_A4Code,$AC:$AC,Sheet1!S71_ProjectType,$AD:$AD)","v":0},{"$f":"-SUMIFS(Sheet1!S71_ASBudgetAmount,Sheet1!S71_A4Code,$AC:$AC,Sheet1!S71_ProjectType,$AD:$AD)","v":0},{"$f":"-SUMIFS(Sheet1!S71_OY1BudgetAmount,Sheet1!S71_A4Code,$AC:$AC,Sheet1!S71_ProjectType,$AD:$AD)","v":0},{"$f":"-SUMIFS(Sheet1!S71_OY2BudgetAmount,Sheet1!S71_A4Code,$AC:$AC,Sheet1!S71_ProjectType,$AD:$AD)","v":0},null,null,null,null,null,null,null,null,null,null,null,null,null,null,null,null,"0400","D"]
["Less Revenue Foregone (in excess of 6 kilolitres per indigent household per month)",null,{"$f":"SUMIFS(Sheet1!S71_PPPYearAmount,Sheet1!S71_A4Code,$AC:$AC,Sheet1!S71_ProjectType,$AD:$AD)","v":0},{"$f":"SUMIFS(Sheet1!S71_PPYearAmount,Sheet1!S71_A4Code,$AC:$AC,Sheet1!S71_ProjectType,$AD:$AD)","v":0},{"$f":"SUMIFS(Sheet1!S71_PYearAmount,Sheet1!S71_A4Code,$AC:$AC,Sheet1!S71_ProjectType,$AD:$AD)","v":0},{"$f":"SUMIFS(Sheet1!S71_OriginalBudAmnt,Sheet1!S71_A4Code,$AC:$AC,Sheet1!S71_ProjectType,$AD:$AD)","v":0},{"$f":"SUMIFS(Sheet1!S71_AdjustmentBudAmnt,Sheet1!S71_A4Code,$AC:$AC,Sheet1!S71_ProjectType,$AD:$AD)","v":0},{"$f":"SUMIFS(Sheet1!S71_AdjustmentBudAmnt,Sheet1!S71_A4Code,$AC:$AC,Sheet1!S71_ProjectType,$AD:$AD)","v":0},{"$f":"SUMIFS(Sheet1!CD:CD,Sheet1!S71_A4Code,$AC:$AC,Sheet1!S71_ProjectType,$AD:$AD)","v":0},{"$f":"SUMIFS(Sheet1!S71_ASBudgetAmount,Sheet1!S71_A4Code,$AC:$AC,Sheet1!S71_ProjectType,$AD:$AD)","v":0},{"$f":"SUMIFS(Sheet1!S71_OY1BudgetAmount,Sheet1!S71_A4Code,$AC:$AC,Sheet1!S71_ProjectType,$AD:$AD)","v":0},{"$f":"SUMIFS(Sheet1!S71_OY2BudgetAmount,Sheet1!S71_A4Code,$AC:$AC,Sheet1!S71_ProjectType,$AD:$AD)","v":0},null,null,null,null,null,null,null,null,null,null,null,null,null,null,null,null,"0400","O"]
["Less Cost of Free Basis Services (6 kilolitres per indigent household per month)",null,{"$f":"'SA9'!E262","v":0},{"$f":"'SA9'!F262","v":0},{"$f":"'SA9'!G262","v":0},{"$f":"'SA9'!H262","v":0},{"$f":"'SA9'!I262","v":0},{"$f":"'SA9'!J262","v":0},null,{"$f":"'SA9'!K262","v":0},{"$f":"'SA9'!L262","v":0},{"$f":"'SA9'!M262","v":0},null,null,null,null,null,null,null,null,null,null,null,null,null,null,null,null,"0400","??"]
[{"$f":"\"Net \"& A17","v":"Net Service charges - water revenue"},null,{"$f":"C18-C19-C20","v":0},{"$f":"D18-D19-D20","v":0},0,0,0,0,0,0,0,0]
[]
[{"$f":"'A4-FinPerf RE'!A8","v":"Service charges - sanitation revenue"}]
[{"$f":"\"Total \"&A23","v":"Total Service charges - sanitation revenue"},null,{"$f":"SUMIFS(Sheet1!S71_PPPYearAmount,Sheet1!S71_A4Code,$AC:$AC,Sheet1!S71_ProjectType,$AD:$AD)","v":0},{"$f":"SUMIFS(Sheet1!S71_PPYearAmount,Sheet1!S71_A4Code,$AC:$AC,Sheet1!S71_ProjectType,$AD:$AD)","v":0},{"$f":"SUMIFS(Sheet1!S71_PYearAmount,Sheet1!S71_A4Code,$AC:$AC,Sheet1!S71_ProjectType,$AD:$AD)","v":0},{"$f":"-SUMIFS(Sheet1!S71_OriginalBudAmnt,Sheet1!S71_A4Code,$AC:$AC,Sheet1!S71_ProjectType,$AD:$AD)","v":0},{"$f":"-SUMIFS(Sheet1!S71_AdjustmentBudAmnt,Sheet1!S71_A4Code,$AC:$AC,Sheet1!S71_ProjectType,$AD:$AD)","v":0},{"$f":"-SUMIFS(Sheet1!S71_AdjustmentBudAmnt,Sheet1!S71_A4Code,$AC:$AC,Sheet1!S71_ProjectType,$AD:$AD)","v":0},{"$f":"SUMIFS(Sheet1!CD:CD,Sheet1!S71_A4Code,$AC:$AC,Sheet1!S71_ProjectType,$AD:$AD)","v":0},{"$f":"-SUMIFS(Sheet1!S71_ASBudgetAmount,Sheet1!S71_A4Code,$AC:$AC,Sheet1!S71_ProjectType,$AD:$AD)","v":0},{"$f":"-SUMIFS(Sheet1!S71_OY1BudgetAmount,Sheet1!S71_A4Code,$AC:$AC,Sheet1!S71_ProjectType,$AD:$AD)","v":0},{"$f":"-SUMIFS(Sheet1!S71_OY2BudgetAmount,Sheet1!S71_A4Code,$AC:$AC,Sheet1!S71_ProjectType,$AD:$AD)","v":0},null,null,null,null,null,null,null,null,null,null,null,null,null,null,null,null,"0500","D"]
["Less Revenue Foregone (in excess of free sanitation service to indigent households)",null,{"$f":"SUMIFS(Sheet1!S71_PPPYearAmount,Sheet1!S71_A4Code,$AC:$AC,Sheet1!S71_ProjectType,$AD:$AD)","v":0},{"$f":"SUMIFS(Sheet1!S71_PPYearAmount,Sheet1!S71_A4Code,$AC:$AC,Sheet1!S71_ProjectType,$AD:$AD)","v":0},{"$f":"SUMIFS(Sheet1!S71_PYearAmount,Sheet1!S71_A4Code,$AC:$AC,Sheet1!S71_ProjectType,$AD:$AD)","v":0},{"$f":"SUMIFS(Sheet1!S71_OriginalBudAmnt,Sheet1!S71_A4Code,$AC:$AC,Sheet1!S71_ProjectType,$AD:$AD)","v":0},{"$f":"SUMIFS(Sheet1!S71_AdjustmentBudAmnt,Sheet1!S71_A4Code,$AC:$AC,Sheet1!S71_ProjectType,$AD:$AD)","v":0},{"$f":"SUMIFS(Sheet1!S71_AdjustmentBudAmnt,Sheet1!S71_A4Code,$AC:$AC,Sheet1!S71_ProjectType,$AD:$AD)","v":0},{"$f":"SUMIFS(Sheet1!CD:CD,Sheet1!S71_A4Code,$AC:$AC,Sheet1!S71_ProjectType,$AD:$AD)","v":0},{"$f":"SUMIFS(Sheet1!S71_ASBudgetAmount,Sheet1!S71_A4Code,$AC:$AC,Sheet1!S71_ProjectType,$AD:$AD)","v":0},{"$f":"SUMIFS(Sheet1!S71_OY1BudgetAmount,Sheet1!S71_A4Code,$AC:$AC,Sheet1!S71_ProjectType,$AD:$AD)","v":0},{"$f":"SUMIFS(Sheet1!S71_OY2BudgetAmount,Sheet1!S71_A4Code,$AC:$AC,Sheet1!S71_ProjectType,$AD:$AD)","v":0},null,null,null,null,null,null,null,null,null,null,null,null,null,null,null,null,"0500","O"]
["Less Cost of Free Basis Services (free sanitation service to indigent households)",null,{"$f":"'SA9'!E274","v":0},{"$f":"'SA9'!F274","v":0},{"$f":"'SA9'!G274","v":0},{"$f":"'SA9'!H274","v":0},{"$f":"'SA9'!I274","v":0},{"$f":"'SA9'!J274","v":0},{"$f":"SUMIFS(Sheet1!CD:CD,Sheet1!S71_A4Code,$AC:$AC,Sheet1!S71_ProjectType,$AD:$AD)","v":0},{"$f":"'SA9'!K274","v":0},{"$f":"'SA9'!L274","v":0},{"$f":"'SA9'!M274","v":0},null,null,null,null,null,null,null,null,null,null,null,null,null,null,null,null,"0500","??"]
[{"$f":"\"Net \"& A23","v":"Net Service charges - sanitation revenue"},null,{"$f":"C24-C25-C26","v":0},{"$f":"D24-D25-D26","v":0},0,0,0,0,0,0,0,0]
[]
[{"$f":"'A4-FinPerf RE'!A9","v":"Service charges - refuse revenue"},6]
["Total refuse removal revenue",null,{"$f":"SUMIFS(Sheet1!S71_PPPYearAmount,Sheet1!S71_A4Code,$AC:$AC,Sheet1!S71_ProjectType,$AD:$AD)","v":0},{"$f":"SUMIFS(Sheet1!S71_PPYearAmount,Sheet1!S71_A4Code,$AC:$AC,Sheet1!S71_ProjectType,$AD:$AD)","v":0},{"$f":"SUMIFS(Sheet1!S71_PYearAmount,Sheet1!S71_A4Code,$AC:$AC,Sheet1!S71_ProjectType,$AD:$AD)","v":0},{"$f":"-SUMIFS(Sheet1!S71_OriginalBudAmnt,Sheet1!S71_A4Code,$AC:$AC,Sheet1!S71_ProjectType,$AD:$AD)","v":0},{"$f":"-SUMIFS(Sheet1!S71_AdjustmentBudAmnt,Sheet1!S71_A4Code,$AC:$AC,Sheet1!S71_ProjectType,$AD:$AD)","v":0},{"$f":"-SUMIFS(Sheet1!S71_AdjustmentBudAmnt,Sheet1!S71_A4Code,$AC:$AC,Sheet1!S71_ProjectType,$AD:$AD)","v":0},{"$f":"SUMIFS(Sheet1!CD:CD,Sheet1!S71_A4Code,$AC:$AC,Sheet1!S71_ProjectType,$AD:$AD)","v":0},{"$f":"-SUMIFS(Sheet1!S71_ASBudgetAmount,Sheet1!S71_A4Code,$AC:$AC,Sheet1!S71_ProjectType,$AD:$AD)","v":0},{"$f":"-SUMIFS(Sheet1!S71_OY1BudgetAmount,Sheet1!S71_A4Code,$AC:$AC,Sheet1!S71_ProjectType,$AD:$AD)","v":0},{"$f":"-SUMIFS(Sheet1!S71_OY2BudgetAmount,Sheet1!S71_A4Code,$AC:$AC,Sheet1!S71_ProjectType,$AD:$AD)","v":0},null,null,null,null,null,null,null,null,null,null,null,null,null,null,null,null,"0600","D"]
["Total landfill revenue",null,{"$f":"SUMIFS(Sheet1!S71_PPPYearAmount,Sheet1!S71_A4Code,$AC:$AC,Sheet1!S71_ProjectType,$AD:$AD)","v":0},{"$f":"SUMIFS(Sheet1!S71_PPYearAmount,Sheet1!S71_A4Code,$AC:$AC,Sheet1!S71_ProjectType,$AD:$AD)","v":0},{"$f":"SUMIFS(Sheet1!S71_PYearAmount,Sheet1!S71_A4Code,$AC:$AC,Sheet1!S71_ProjectType,$AD:$AD)","v":0},{"$f":"-SUMIFS(Sheet1!S71_OriginalBudAmnt,Sheet1!S71_A4Code,$AC:$AC,Sheet1!S71_ProjectType,$AD:$AD)","v":0},{"$f":"-SUMIFS(Sheet1!S71_AdjustmentBudAmnt,Sheet1!S71_A4Code,$AC:$AC,Sheet1!S71_ProjectType,$AD:$AD)","v":0},{"$f":"-SUMIFS(Sheet1!S71_AdjustmentBudAmnt,Sheet1!S71_A4Code,$AC:$AC,Sheet1!S71_ProjectType,$AD:$AD)","v":0},{"$f":"-SUMIFS(Sheet1!CD:CD,Sheet1!S71_A4Code,$AC:$AC,Sheet1!S71_ProjectType,$AD:$AD)","v":0},{"$f":"-SUMIFS(Sheet1!S71_ASBudgetAmount,Sheet1!S71_A4Code,$AC:$AC,Sheet1!S71_ProjectType,$AD:$AD)","v":0},{"$f":"-SUMIFS(Sheet1!S71_OY1BudgetAmount,Sheet1!S71_A4Code,$AC:$AC,Sheet1!S71_ProjectType,$AD:$AD)","v":0},{"$f":"-SUMIFS(Sheet1!S71_OY2BudgetAmount,Sheet1!S71_A4Code,$AC:$AC,Sheet1!S71_ProjectType,$AD:$AD)","v":0},null,null,null,null,null,null,null,null,null,null,null,null,null,null,null,null,"0600","??"]
["Less Revenue Foregone (in excess of one removal a week to indigent households)",null,{"$f":"SUMIFS(Sheet1!S71_PPPYearAmount,Sheet1!S71_A4Code,$AC:$AC,Sheet1!S71_ProjectType,$AD:$AD)","v":0},{"$f":"SUMIFS(Sheet1!S71_PPYearAmount,Sheet1!S71_A4Code,$AC:$AC,Sheet1!S71_ProjectType,$AD:$AD)","v":0},{"$f":"SUMIFS(Sheet1!S71_PYearAmount,Sheet1!S71_A4Code,$AC:$AC,Sheet1!S71_ProjectType,$AD:$AD)","v":0},{"$f":"SUMIFS(Sheet1!S71_OriginalBudAmnt,Sheet1!S71_A4Code,$AC:$AC,Sheet1!S71_ProjectType,$AD:$AD)","v":0},{"$f":"SUMIFS(Sheet1!S71_AdjustmentBudAmnt,Sheet1!S71_A4Code,$AC:$AC,Sheet1!S71_ProjectType,$AD:$AD)","v":0},{"$f":"SUMIFS(Sheet1!S71_AdjustmentBudAmnt,Sheet1!S71_A4Code,$AC:$AC,Sheet1!S71_ProjectType,$AD:$AD)","v":0},{"$f":"SUMIFS(Sheet1!CD:CD,Sheet1!S71_A4Code,$AC:$AC,Sheet1!S71_ProjectType,$AD:$AD)","v":0},{"$f":"SUMIFS(Sheet1!S71_ASBudgetAmount,Sheet1!S71_A4Code,$AC:$AC,Sheet1!S71_ProjectType,$AD:$AD)","v":0},{"$f":"SUMIFS(Sheet1!S71_OY1BudgetAmount,Sheet1!S71_A4Code,$AC:$AC,Sheet1!S71_ProjectType,$AD:$AD)","v":0},{"$f":"SUMIFS(Sheet1!S71_OY2BudgetAmount,Sheet1!S71_A4Code,$AC:$AC,Sheet1!S71_ProjectType,$AD:$AD)","v":0},null,null,null,null,null,null,null,null,null,null,null,null,null,null,null,null,"0600","O"]
["Less Cost of Free Basis Services  (removed once a week to indigent households)",null,{"$f":"'SA9'!E286","v":0},{"$f":"'SA9'!F286","v":0},{"$f":"'SA9'!G286","v":0},{"$f":"'SA9'!H286","v":0},{"$f":"'SA9'!I286","v":0},{"$f":"'SA9'!J286","v":0},{"$f":"SUMIFS(Sheet1!CD:CD,Sheet1!S71_A4Code,$AC:$AC,Sheet1!S71_ProjectType,$AD:$AD)","v":0},{"$f":"'SA9'!K286","v":0},{"$f":"'SA9'!L286","v":0},{"$f":"'SA9'!M286","v":0},null,null,null,null,null,null,null,null,null,null,null,null,null,null,null,null,"0600","??"]
[{"$f":"\"Net \"& A29","v":"Net Service charges - refuse revenue"},null,{"$f":"SUM(C30:C31)-C32-C33","v":0},{"$f":"SUM(D30:D31)-D32-D33","v":0},0,0,0,0,0,0,0,0]
[]
["Other Revenue by source"]
["Administrative Handling Fees",null,{"$f":"SUMIFS(Sheet1!S71_PPPYearAmount,Sheet1!S71_A4SubCode,$AC:$AC)","v":0},{"$f":"SUMIFS(Sheet1!S71_PPYearAmount,Sheet1!S71_A4SubCode,$AC:$AC)","v":0},{"$f":"SUMIFS(Sheet1!S71_PYearAmount,Sheet1!S71_A4SubCode,$AC:$AC)","v":0},{"$f":"-SUMIFS(Sheet1!S71_OriginalBudAmnt,Sheet1!S71_A4SubCode,$AC:$AC)","v":0},{"$f":"-SUMIFS(Sheet1!S71_AdjustmentBudAmnt,Sheet1!S71_A4SubCode,$AC:$AC)","v":0},{"$f":"-SUMIFS(Sheet1!S71_AdjustmentBudAmnt,Sheet1!S71_A4SubCode,$AC:$AC)","v":0},{"$f":"SUMIFS(Sheet1!CD:CD,Sheet1!S71_A4SubCode,$AC:$AC)","v":0},{"$f":"-SUMIFS(Sheet1!S71_ASBudgetAmount,Sheet1!S71_A4SubCode,$AC:$AC)","v":0},{"$f":"-SUMIFS(Sheet1!S71_OY1BudgetAmount,Sheet1!S71_A4SubCode,$AC:$AC)","v":0},{"$f":"-SUMIFS(Sheet1!S71_OY2BudgetAmount,Sheet1!S71_A4SubCode,$AC:$AC)","v":0},null,null,null,null,null,null,null,null,null,null,null,null,null,null,null,null,"1601"]
["Bad Debts Recovered",null,{"$f":"SUMIFS(Sheet1!S71_PPPYearAmount,Sheet1!S71_A4SubCode,$AC:$AC)","v":0},{"$f":"SUMIFS(Sheet1!S71_PPYearAmount,Sheet1!S71_A4SubCode,$AC:$AC)","v":0},{"$f":"SUMIFS(Sheet1!S71_PYearAmount,Sheet1!S71_A4SubCode,$AC:$AC)","v":0},{"$f":"-SUMIFS(Sheet1!S71_OriginalBudAmnt,Sheet1!S71_A4SubCode,$AC:$AC)","v":0},{"$f":"-SUMIFS(Sheet1!S71_AdjustmentBudAmnt,Sheet1!S71_A4SubCode,$AC:$AC)","v":0},{"$f":"-SUMIFS(Sheet1!S71_AdjustmentBudAmnt,Sheet1!S71_A4SubCode,$AC:$AC)","v":0},{"$f":"SUMIFS(Sheet1!CD:CD,Sheet1!S71_A4SubCode,$AC:$AC)","v":0},{"$f":"-SUMIFS(Sheet1!S71_ASBudgetAmount,Sheet1!S71_A4SubCode,$AC:$AC)","v":0},{"$f":"-SUMIFS(Sheet1!S71_OY1BudgetAmount,Sheet1!S71_A4SubCode,$AC:$AC)","v":0},{"$f":"-SUMIFS(Sheet1!S71_OY2BudgetAmount,Sheet1!S71_A4SubCode,$AC:$AC)","v":0},null,null,null,null,null,null,null,null,null,null,null,null,null,null,null,null,"1602"]
["Breakages and Losses Recovered",null,{"$f":"SUMIFS(Sheet1!S71_PPPYearAmount,Sheet1!S71_A4SubCode,$AC:$AC)","v":0},{"$f":"SUMIFS(Sheet1!S71_PPYearAmount,Sheet1!S71_A4SubCode,$AC:$AC)","v":0},{"$f":"SUMIFS(Sheet1!S71_PYearAmount,Sheet1!S71_A4SubCode,$AC:$AC)","v":0},{"$f":"-SUMIFS(Sheet1!S71_OriginalBudAmnt,Sheet1!S71_A4SubCode,$AC:$AC)","v":0},{"$f":"-SUMIFS(Sheet1!S71_AdjustmentBudAmnt,Sheet1!S71_A4SubCode,$AC:$AC)","v":0},{"$f":"-SUMIFS(Sheet1!S71_AdjustmentBudAmnt,Sheet1!S71_A4SubCode,$AC:$AC)","v":0},{"$f":"SUMIFS(Sheet1!CD:CD,Sheet1!S71_A4SubCode,$AC:$AC)","v":0},{"$f":"-SUMIFS(Sheet1!S71_ASBudgetAmount,Sheet1!S71_A4SubCode,$AC:$AC)","v":0},{"$f":"-SUMIFS(Sheet1!S71_OY1BudgetAmount,Sheet1!S71_A4SubCode,$AC:$AC)","v":0},{"$f":"-SUMIFS(Sheet1!S71_OY2BudgetAmount,Sheet1!S71_A4SubCode,$AC:$AC)","v":0},null,null,null,null,null,null,null,null,null,null,null,null,null,null,null,null,"1603"]
["Collection Charges",null,{"$f":"SUMIFS(Sheet1!S71_PPPYearAmount,Sheet1!S71_A4SubCode,$AC:$AC)","v":0},{"$f":"SUMIFS(Sheet1!S71_PPYearAmount,Sheet1!S71_A4SubCode,$AC:$AC)","v":0},{"$f":"SUMIFS(Sheet1!S71_PYearAmount,Sheet1!S71_A4SubCode,$AC:$AC)","v":0},{"$f":"-SUMIFS(Sheet1!S71_OriginalBudAmnt,Sheet1!S71_A4SubCode,$AC:$AC)","v":0},{"$f":"-SUMIFS(Sheet1!S71_AdjustmentBudAmnt,Sheet1!S71_A4SubCode,$AC:$AC)","v":0},{"$f":"-SUMIFS(Sheet1!S71_AdjustmentBudAmnt,Sheet1!S71_A4SubCode,$AC:$AC)","v":0},{"$f":"SUMIFS(Sheet1!CD:CD,Sheet1!S71_A4SubCode,$AC:$AC)","v":0},{"$f":"-SUMIFS(Sheet1!S71_ASBudgetAmount,Sheet1!S71_A4SubCode,$AC:$AC)","v":0},{"$f":"-SUMIFS(Sheet1!S71_OY1BudgetAmount,Sheet1!S71_A4SubCode,$AC:$AC)","v":0},{"$f":"-SUMIFS(Sheet1!S71_OY2BudgetAmount,Sheet1!S71_A4SubCode,$AC:$AC)","v":0},null,null,null,null,null,null,null,null,null,null,null,null,null,null,null,null,"1604"]
["Commission",null,{"$f":"SUMIFS(Sheet1!S71_PPPYearAmount,Sheet1!S71_A4SubCode,$AC:$AC)","v":0},{"$f":"SUMIFS(Sheet1!S71_PPYearAmount,Sheet1!S71_A4SubCode,$AC:$AC)","v":0},{"$f":"SUMIFS(Sheet1!S71_PYearAmount,Sheet1!S71_A4SubCode,$AC:$AC)","v":0},{"$f":"-SUMIFS(Sheet1!S71_OriginalBudAmnt,Sheet1!S71_A4SubCode,$AC:$AC)","v":0},{"$f":"-SUMIFS(Sheet1!S71_AdjustmentBudAmnt,Sheet1!S71_A4SubCode,$AC:$AC)","v":0},{"$f":"-SUMIFS(Sheet1!S71_AdjustmentBudAmnt,Sheet1!S71_A4SubCode,$AC:$AC)","v":0},{"$f":"SUMIFS(Sheet1!CD:CD,Sheet1!S71_A4SubCode,$AC:$AC)","v":0},{"$f":"-SUMIFS(Sheet1!S71_ASBudgetAmount,Sheet1!S71_A4SubCode,$AC:$AC)","v":0},{"$f":"-SUMIFS(Sheet1!S71_OY1BudgetAmount,Sheet1!S71_A4SubCode,$AC:$AC)","v":0},{"$f":"-SUMIFS(Sheet1!S71_OY2BudgetAmount,Sheet1!S71_A4SubCode,$AC:$AC)","v":0},null,null,null,null,null,null,null,null,null,null,null,null,null,null,null,null,"1605"]
["Discounts and Early Settlements",null,{"$f":"SUMIFS(Sheet1!S71_PPPYearAmount,Sheet1!S71_A4SubCode,$AC:$AC)","v":0},{"$f":"SUMIFS(Sheet1!S71_PPYearAmount,Sheet1!S71_A4SubCode,$AC:$AC)","v":0},{"$f":"SUMIFS(Sheet1!S71_PYearAmount,Sheet1!S71_A4SubCode,$AC:$AC)","v":0},{"$f":"-SUMIFS(Sheet1!S71_OriginalBudAmnt,Sheet1!S71_A4SubCode,$AC:$AC)","v":0},{"$f":"-SUMIFS(Sheet1!S71_AdjustmentBudAmnt,Sheet1!S71_A4SubCode,$AC:$AC)","v":0},{"$f":"-SUMIFS(Sheet1!S71_AdjustmentBudAmnt,Sheet1!S71_A4SubCode,$AC:$AC)","v":0},{"$f":"SUMIFS(Sheet1!CD:CD,Sheet1!S71_A4SubCode,$AC:$AC)","v":0},{"$f":"-SUMIFS(Sheet1!S71_ASBudgetAmount,Sheet1!S71_A4SubCode,$AC:$AC)","v":0},{"$f":"-SUMIFS(Sheet1!S71_OY1BudgetAmount,Sheet1!S71_A4SubCode,$AC:$AC)","v":0},{"$f":"-SUMIFS(Sheet1!S71_OY2BudgetAmount,Sheet1!S71_A4SubCode,$AC:$AC)","v":0},null,null,null,null,null,null,null,null,null,null,null,null,null,null,null,null,"1606"]
["Incidental Cash Surpluses",null,{"$f":"SUMIFS(Sheet1!S71_PPPYearAmount,Sheet1!S71_A4SubCode,$AC:$AC)","v":0},{"$f":"SUMIFS(Sheet1!S71_PPYearAmount,Sheet1!S71_A4SubCode,$AC:$AC)","v":0},{"$f":"SUMIFS(Sheet1!S71_PYearAmount,Sheet1!S71_A4SubCode,$AC:$AC)","v":0},{"$f":"-SUMIFS(Sheet1!S71_OriginalBudAmnt,Sheet1!S71_A4SubCode,$AC:$AC)","v":0},{"$f":"-SUMIFS(Sheet1!S71_AdjustmentBudAmnt,Sheet1!S71_A4SubCode,$AC:$AC)","v":0},{"$f":"-SUMIFS(Sheet1!S71_AdjustmentBudAmnt,Sheet1!S71_A4SubCode,$AC:$AC)","v":0},{"$f":"SUMIFS(Sheet1!CD:CD,Sheet1!S71_A4SubCode,$AC:$AC)","v":0},{"$f":"-SUMIFS(Sheet1!S71_ASBudgetAmount,Sheet1!S71_A4SubCode,$AC:$AC)","v":0},{"$f":"-SUMIFS(Sheet1!S71_OY1BudgetAmount,Sheet1!S71_A4SubCode,$AC:$AC)","v":0},{"$f":"-SUMIFS(Sheet1!S71_OY2BudgetAmount,Sheet1!S71_A4SubCode,$AC:$AC)","v":0},null,null,null,null,null,null,null,null,null,null,null,null,null,null,null,null,"1607"]
["Inspection Fees",null,{"$f":"SUMIFS(Sheet1!S71_PPPYearAmount,Sheet1!S71_A4SubCode,$AC:$AC)","v":0},{"$f":"SUMIFS(Sheet1!S71_PPYearAmount,Sheet1!S71_A4SubCode,$AC:$AC)","v":0},{"$f":"SUMIFS(Sheet1!S71_PYearAmount,Sheet1!S71_A4SubCode,$AC:$AC)","v":0},{"$f":"-SUMIFS(Sheet1!S71_OriginalBudAmnt,Sheet1!S71_A4SubCode,$AC:$AC)","v":0},{"$f":"-SUMIFS(Sheet1!S71_AdjustmentBudAmnt,Sheet1!S71_A4SubCode,$AC:$AC)","v":0},{"$f":"-SUMIFS(Sheet1!S71_AdjustmentBudAmnt,Sheet1!S71_A4SubCode,$AC:$AC)","v":0},{"$f":"SUMIFS(Sheet1!CD:CD,Sheet1!S71_A4SubCode,$AC:$AC)","v":0},{"$f":"-SUMIFS(Sheet1!S71_ASBudgetAmount,Sheet1!S71_A4SubCode,$AC:$AC)","v":0},{"$f":"-SUMIFS(Sheet1!S71_OY1BudgetAmount,Sheet1!S71_A4SubCode,$AC:$AC)","v":0},{"$f":"-SUMIFS(Sheet1!S71_OY2BudgetAmount,Sheet1!S71_A4SubCode,$AC:$AC)","v":0},null,null,null,null,null,null,null,null,null,null,null,null,null,null,null,null,"1608"]
["Registration Fees",null,{"$f":"SUMIFS(Sheet1!S71_PPPYearAmount,Sheet1!S71_A4SubCode,$AC:$AC)","v":0},{"$f":"SUMIFS(Sheet1!S71_PPYearAmount,Sheet1!S71_A4SubCode,$AC:$AC)","v":0},{"$f":"SUMIFS(Sheet1!S71_PYearAmount,Sheet1!S71_A4SubCode,$AC:$AC)","v":0},{"$f":"-SUMIFS(Sheet1!S71_OriginalBudAmnt,Sheet1!S71_A4SubCode,$AC:$AC)","v":0},{"$f":"-SUMIFS(Sheet1!S71_AdjustmentBudAmnt,Sheet1!S71_A4SubCode,$AC:$AC)","v":0},{"$f":"-SUMIFS(Sheet1!S71_AdjustmentBudAmnt,Sheet1!S71_A4SubCode,$AC:$AC)","v":0},{"$f":"SUMIFS(Sheet1!CD:CD,Sheet1!S71_A4SubCode,$AC:$AC)","v":0},{"$f":"-SUMIFS(Sheet1!S71_ASBudgetAmount,Sheet1!S71_A4SubCode,$AC:$AC)","v":0},{"$f":"-SUMIFS(Sheet1!S71_OY1BudgetAmount,Sheet1!S71_A4SubCode,$AC:$AC)","v":0},{"$f":"-SUMIFS(Sheet1!S71_OY2BudgetAmount,Sheet1!S71_A4SubCode,$AC:$AC)","v":0},null,null,null,null,null,null,null,null,null,null,null,null,null,null,null,null,"1609"]
["Staff Recoveries",null,{"$f":"SUMIFS(Sheet1!S71_PPPYearAmount,Sheet1!S71_A4SubCode,$AC:$AC)","v":0},{"$f":"SUMIFS(Sheet1!S71_PPYearAmount,Sheet1!S71_A4SubCode,$AC:$AC)","v":100},{"$f":"SUMIFS(Sheet1!S71_PYearAmount,Sheet1!S71_A4SubCode,$AC:$AC)","v":545542},{"$f":"-SUMIFS(Sheet1!S71_OriginalBudAmnt,Sheet1!S71_A4SubCode,$AC:$AC)","v":0},{"$f":"-SUMIFS(Sheet1!S71_AdjustmentBudAmnt,Sheet1!S71_A4SubCode,$AC:$AC)","v":0},{"$f":"-SUMIFS(Sheet1!S71_AdjustmentBudAmnt,Sheet1!S71_A4SubCode,$AC:$AC)","v":0},{"$f":"SUMIFS(Sheet1!CD:CD,Sheet1!S71_A4SubCode,$AC:$AC)","v":0},{"$f":"-SUMIFS(Sheet1!S71_ASBudgetAmount,Sheet1!S71_A4SubCode,$AC:$AC)","v":0},{"$f":"-SUMIFS(Sheet1!S71_OY1BudgetAmount,Sheet1!S71_A4SubCode,$AC:$AC)","v":0},{"$f":"-SUMIFS(Sheet1!S71_OY2BudgetAmount,Sheet1!S71_A4SubCode,$AC:$AC)","v":0},null,null,null,null,null,null,null,null,null,null,null,null,null,null,null,null,"1610"]
["Request for Information",null,{"$f":"SUMIFS(Sheet1!S71_PPPYearAmount,Sheet1!S71_A4SubCode,$AC:$AC)","v":0},{"$f":"SUMIFS(Sheet1!S71_PPYearAmount,Sheet1!S71_A4SubCode,$AC:$AC)","v":0},{"$f":"SUMIFS(Sheet1!S71_PYearAmount,Sheet1!S71_A4SubCode,$AC:$AC)","v":0},{"$f":"-SUMIFS(Sheet1!S71_OriginalBudAmnt,Sheet1!S71_A4SubCode,$AC:$AC)","v":0},{"$f":"-SUMIFS(Sheet1!S71_AdjustmentBudAmnt,Sheet1!S71_A4SubCode,$AC:$AC)","v":0},{"$f":"-SUMIFS(Sheet1!S71_AdjustmentBudAmnt,Sheet1!S71_A4SubCode,$AC:$AC)","v":0},{"$f":"SUMIFS(Sheet1!CD:CD,Sheet1!S71_A4SubCode,$AC:$AC)","v":0},{"$f":"-SUMIFS(Sheet1!S71_ASBudgetAmount,Sheet1!S71_A4SubCode,$AC:$AC)","v":0},{"$f":"-SUMIFS(Sheet1!S71_OY1BudgetAmount,Sheet1!S71_A4SubCode,$AC:$AC)","v":0},{"$f":"-SUMIFS(Sheet1!S71_OY2BudgetAmount,Sheet1!S71_A4SubCode,$AC:$AC)","v":0},null,null,null,null,null,null,null,null,null,null,null,null,null,null,null,null,"1611"]
["Insurance Refund",null,{"$f":"SUMIFS(Sheet1!S71_PPPYearAmount,Sheet1!S71_A4SubCode,$AC:$AC)","v":0},{"$f":"SUMIFS(Sheet1!S71_PPYearAmount,Sheet1!S71_A4SubCode,$AC:$AC)","v":88284},{"$f":"SUMIFS(Sheet1!S71_PYearAmount,Sheet1!S71_A4SubCode,$AC:$AC)","v":205583},{"$f":"-SUMIFS(Sheet1!S71_OriginalBudAmnt,Sheet1!S71_A4SubCode,$AC:$AC)","v":0},{"$f":"-SUMIFS(Sheet1!S71_AdjustmentBudAmnt,Sheet1!S71_A4SubCode,$AC:$AC)","v":0},{"$f":"-SUMIFS(Sheet1!S71_AdjustmentBudAmnt,Sheet1!S71_A4SubCode,$AC:$AC)","v":0},{"$f":"SUMIFS(Sheet1!CD:CD,Sheet1!S71_A4SubCode,$AC:$AC)","v":0},{"$f":"-SUMIFS(Sheet1!S71_ASBudgetAmount,Sheet1!S71_A4SubCode,$AC:$AC)","v":0},{"$f":"-SUMIFS(Sheet1!S71_OY1BudgetAmount,Sheet1!S71_A4SubCode,$AC:$AC)","v":0},{"$f":"-SUMIFS(Sheet1!S71_OY2BudgetAmount,Sheet1!S71_A4SubCode,$AC:$AC)","v":0},null,null,null,null,null,null,null,null,null,null,null,null,null,null,null,null,"1612"]
["Sale of Property",null,{"$f":"SUMIFS(Sheet1!S71_PPPYearAmount,Sheet1!S71_A4SubCode,$AC:$AC)","v":0},{"$f":"SUMIFS(Sheet1!S71_PPYearAmount,Sheet1!S71_A4SubCode,$AC:$AC)","v":0},{"$f":"SUMIFS(Sheet1!S71_PYearAmount,Sheet1!S71_A4SubCode,$AC:$AC)","v":0},{"$f":"-SUMIFS(Sheet1!S71_OriginalBudAmnt,Sheet1!S71_A4SubCode,$AC:$AC)","v":0},{"$f":"-SUMIFS(Sheet1!S71_AdjustmentBudAmnt,Sheet1!S71_A4SubCode,$AC:$AC)","v":0},{"$f":"-SUMIFS(Sheet1!S71_AdjustmentBudAmnt,Sheet1!S71_A4SubCode,$AC:$AC)","v":0},{"$f":"SUMIFS(Sheet1!CD:CD,Sheet1!S71_A4SubCode,$AC:$AC)","v":0},{"$f":"-SUMIFS(Sheet1!S71_ASBudgetAmount,Sheet1!S71_A4SubCode,$AC:$AC)","v":0},{"$f":"-SUMIFS(Sheet1!S71_OY1BudgetAmount,Sheet1!S71_A4SubCode,$AC:$AC)","v":0},{"$f":"-SUMIFS(Sheet1!S71_OY2BudgetAmount,Sheet1!S71_A4SubCode,$AC:$AC)","v":0},null,null,null,null,null,null,null,null,null,null,null,null,null,null,null,null,"1613"]
["Merchandising, Jobbing and Contracts",null,{"$f":"SUMIFS(Sheet1!S71_PPPYearAmount,Sheet1!S71_A4SubCode,$AC:$AC)","v":0},{"$f":"SUMIFS(Sheet1!S71_PPYearAmount,Sheet1!S71_A4SubCode,$AC:$AC)","v":0},{"$f":"SUMIFS(Sheet1!S71_PYearAmount,Sheet1!S71_A4SubCode,$AC:$AC)","v":0},{"$f":"-SUMIFS(Sheet1!S71_OriginalBudAmnt,Sheet1!S71_A4SubCode,$AC:$AC)","v":0},{"$f":"-SUMIFS(Sheet1!S71_AdjustmentBudAmnt,Sheet1!S71_A4SubCode,$AC:$AC)","v":0},{"$f":"-SUMIFS(Sheet1!S71_AdjustmentBudAmnt,Sheet1!S71_A4SubCode,$AC:$AC)","v":0},{"$f":"SUMIFS(Sheet1!CD:CD,Sheet1!S71_A4SubCode,$AC:$AC)","v":0},{"$f":"-SUMIFS(Sheet1!S71_ASBudgetAmount,Sheet1!S71_A4SubCode,$AC:$AC)","v":0},{"$f":"-SUMIFS(Sheet1!S71_OY1BudgetAmount,Sheet1!S71_A4SubCode,$AC:$AC)","v":0},{"$f":"-SUMIFS(Sheet1!S71_OY2BudgetAmount,Sheet1!S71_A4SubCode,$AC:$AC)","v":0},null,null,null,null,null,null,null,null,null,null,null,null,null,null,null,null,"1614"]
["Bursary Repayment",null,{"$f":"SUMIFS(Sheet1!S71_PPPYearAmount,Sheet1!S71_A4SubCode,$AC:$AC)","v":0},{"$f":"SUMIFS(Sheet1!S71_PPYearAmount,Sheet1!S71_A4SubCode,$AC:$AC)","v":0},{"$f":"SUMIFS(Sheet1!S71_PYearAmount,Sheet1!S71_A4SubCode,$AC:$AC)","v":0},{"$f":"-SUMIFS(Sheet1!S71_OriginalBudAmnt,Sheet1!S71_A4SubCode,$AC:$AC)","v":0},{"$f":"-SUMIFS(Sheet1!S71_AdjustmentBudAmnt,Sheet1!S71_A4SubCode,$AC:$AC)","v":0},{"$f":"-SUMIFS(Sheet1!S71_AdjustmentBudAmnt,Sheet1!S71_A4SubCode,$AC:$AC)","v":0},{"$f":"SUMIFS(Sheet1!CD:CD,Sheet1!S71_A4SubCode,$AC:$AC)","v":0},{"$f":"-SUMIFS(Sheet1!S71_ASBudgetAmount,Sheet1!S71_A4SubCode,$AC:$AC)","v":0},{"$f":"-SUMIFS(Sheet1!S71_OY1BudgetAmount,Sheet1!S71_A4SubCode,$AC:$AC)","v":0},{"$f":"-SUMIFS(Sheet1!S71_OY2BudgetAmount,Sheet1!S71_A4SubCode,$AC:$AC)","v":0},null,null,null,null,null,null,null,null,null,null,null,null,null,null,null,null,"1615"]
["Recovery Infrastructure Maintenance",null,{"$f":"SUMIFS(Sheet1!S71_PPPYearAmount,Sheet1!S71_A4SubCode,$AC:$AC)","v":0},{"$f":"SUMIFS(Sheet1!S71_PPYearAmount,Sheet1!S71_A4SubCode,$AC:$AC)","v":0},{"$f":"SUMIFS(Sheet1!S71_PYearAmount,Sheet1!S71_A4SubCode,$AC:$AC)","v":0},{"$f":"-SUMIFS(Sheet1!S71_OriginalBudAmnt,Sheet1!S71_A4SubCode,$AC:$AC)","v":0},{"$f":"-SUMIFS(Sheet1!S71_AdjustmentBudAmnt,Sheet1!S71_A4SubCode,$AC:$AC)","v":0},{"$f":"-SUMIFS(Sheet1!S71_AdjustmentBudAmnt,Sheet1!S71_A4SubCode,$AC:$AC)","v":0},{"$f":"SUMIFS(Sheet1!CD:CD,Sheet1!S71_A4SubCode,$AC:$AC)","v":0},{"$f":"-SUMIFS(Sheet1!S71_ASBudgetAmount,Sheet1!S71_A4SubCode,$AC:$AC)","v":0},{"$f":"-SUMIFS(Sheet1!S71_OY1BudgetAmount,Sheet1!S71_A4SubCode,$AC:$AC)","v":0},{"$f":"-SUMIFS(Sheet1!S71_OY2BudgetAmount,Sheet1!S71_A4SubCode,$AC:$AC)","v":0},null,null,null,null,null,null,null,null,null,null,null,null,null,null,null,null,"1616"]
["Skills Development Levy Refund",null,{"$f":"SUMIFS(Sheet1!S71_PPPYearAmount,Sheet1!S71_A4SubCode,$AC:$AC)","v":0},{"$f":"SUMIFS(Sheet1!S71_PPYearAmount,Sheet1!S71_A4SubCode,$AC:$AC)","v":0},{"$f":"SUMIFS(Sheet1!S71_PYearAmount,Sheet1!S71_A4SubCode,$AC:$AC)","v":0},{"$f":"-SUMIFS(Sheet1!S71_OriginalBudAmnt,Sheet1!S71_A4SubCode,$AC:$AC)","v":0},{"$f":"-SUMIFS(Sheet1!S71_AdjustmentBudAmnt,Sheet1!S71_A4SubCode,$AC:$AC)","v":0},{"$f":"-SUMIFS(Sheet1!S71_AdjustmentBudAmnt,Sheet1!S71_A4SubCode,$AC:$AC)","v":0},{"$f":"SUMIFS(Sheet1!CD:CD,Sheet1!S71_A4SubCode,$AC:$AC)","v":0},{"$f":"-SUMIFS(Sheet1!S71_ASBudgetAmount,Sheet1!S71_A4SubCode,$AC:$AC)","v":0},{"$f":"-SUMIFS(Sheet1!S71_OY1BudgetAmount,Sheet1!S71_A4SubCode,$AC:$AC)","v":0},{"$f":"-SUMIFS(Sheet1!S71_OY2BudgetAmount,Sheet1!S71_A4SubCode,$AC:$AC)","v":0},null,null,null,null,null,null,null,null,null,null,null,null,null,null,null,null,"1617"]
["Arbor City Awards Competition",null,{"$f":"SUMIFS(Sheet1!S71_PPPYearAmount,Sheet1!S71_A4SubCode,$AC:$AC)","v":0},{"$f":"SUMIFS(Sheet1!S71_PPYearAmount,Sheet1!S71_A4SubCode,$AC:$AC)","v":0},{"$f":"SUMIFS(Sheet1!S71_PYearAmount,Sheet1!S71_A4SubCode,$AC:$AC)","v":0},{"$f":"-SUMIFS(Sheet1!S71_OriginalBudAmnt,Sheet1!S71_A4SubCode,$AC:$AC)","v":0},{"$f":"-SUMIFS(Sheet1!S71_AdjustmentBudAmnt,Sheet1!S71_A4SubCode,$AC:$AC)","v":0},{"$f":"-SUMIFS(Sheet1!S71_AdjustmentBudAmnt,Sheet1!S71_A4SubCode,$AC:$AC)","v":0},{"$f":"SUMIFS(Sheet1!CD:CD,Sheet1!S71_A4SubCode,$AC:$AC)","v":0},{"$f":"-SUMIFS(Sheet1!S71_ASBudgetAmount,Sheet1!S71_A4SubCode,$AC:$AC)","v":0},{"$f":"-SUMIFS(Sheet1!S71_OY1BudgetAmount,Sheet1!S71_A4SubCode,$AC:$AC)","v":0},{"$f":"-SUMIFS(Sheet1!S71_OY2BudgetAmount,Sheet1!S71_A4SubCode,$AC:$AC)","v":0},null,null,null,null,null,null,null,null,null,null,null,null,null,null,null,null,"1618"]
["Other Revenue",null,{"$f":"SUMIFS(Sheet1!S71_PPPYearAmount,Sheet1!S71_A4SubCode,$AC:$AC)","v":0},{"$f":"SUMIFS(Sheet1!S71_PPYearAmount,Sheet1!S71_A4SubCode,$AC:$AC)","v":69743},{"$f":"SUMIFS(Sheet1!S71_PYearAmount,Sheet1!S71_A4SubCode,$AC:$AC)","v":642740},{"$f":"-SUMIFS(Sheet1!S71_OriginalBudAmnt,Sheet1!S71_A4SubCode,$AC:$AC)","v":94500},{"$f":"-SUMIFS(Sheet1!S71_AdjustmentBudAmnt,Sheet1!S71_A4SubCode,$AC:$AC)","v":58000},{"$f":"-SUMIFS(Sheet1!S71_AdjustmentBudAmnt,Sheet1!S71_A4SubCode,$AC:$AC)","v":58000},{"$f":"SUMIFS(Sheet1!CD:CD,Sheet1!S71_A4SubCode,$AC:$AC)","v":598794},{"$f":"-SUMIFS(Sheet1!S71_ASBudgetAmount,Sheet1!S71_A4SubCode,$AC:$AC)","v":60000},{"$f":"-SUMIFS(Sheet1!S71_OY1BudgetAmount,Sheet1!S71_A4SubCode,$AC:$AC)","v":58275},{"$f":"-SUMIFS(Sheet1!S71_OY2BudgetAmount,Sheet1!S71_A4SubCode,$AC:$AC)","v":58275},null,null,null,null,null,null,null,null,null,null,null,null,null,null,null,null,"1600"]
["Other Revenue"]
[]
[]
[]
[]
[]
[]
[]
[]
[]
["Total 'Other' Revenue",1,{"$f":"SUM(C37:C55)","v":0},{"$f":"SUM(D37:D55)","v":158127},{"$f":"SUM(E37:E55)","v":1393865},94500,58000,58000,598794,60000,58275,58275]
[]
["EXPENDITURE ITEMS:"]
[{"$f":"'A4-FinPerf RE'!A24","v":"Employee related costs"}]
["Basic Salaries and Wages",2,{"$f":"SUMIFS(Sheet1!S71_PPPYearAmount,Sheet1!S71_SA1SubCode,$AC:$AC)","v":0},{"$f":"SUMIFS(Sheet1!S71_PPYearAmount,Sheet1!S71_SA1SubCode,$AC:$AC)","v":28625375},{"$f":"SUMIFS(Sheet1!S71_PYearAmount,Sheet1!S71_SA1SubCode,$AC:$AC)","v":30319715},{"$f":"SUMIFS(Sheet1!S71_OriginalBudAmnt,Sheet1!S71_SA1SubCode,$AC:$AC)","v":31159920},{"$f":"SUMIFS(Sheet1!S71_AdjustmentBudAmnt,Sheet1!S71_SA1SubCode,$AC:$AC)","v":32224595},{"$f":"SUMIFS(Sheet1!S71_AdjustmentBudAmnt,Sheet1!S71_SA1SubCode,$AC:$AC)","v":32224595},{"$f":"SUMIFS(Sheet1!CD:CD,Sheet1!S71_SA1SubCode,$AC:$AC)","v":28983127},{"$f":"SUMIFS(Sheet1!S71_ASBudgetAmount,Sheet1!S71_SA1SubCode,$AC:$AC)","v":33397093},{"$f":"SUMIFS(Sheet1!S71_OY1BudgetAmount,Sheet1!S71_SA1SubCode,$AC:$AC)","v":35510139},{"$f":"SUMIFS(Sheet1!S71_OY2BudgetAmount,Sheet1!S71_SA1SubCode,$AC:$AC)","v":36490595},null,null,null,null,null,null,null,null,null,null,null,null,null,null,null,null,"2001"]
["Pension and UIF Contributions",null,{"$f":"SUMIFS(Sheet1!S71_PPPYearAmount,Sheet1!S71_SA1SubCode,$AC:$AC)","v":0},{"$f":"SUMIFS(Sheet1!S71_PPYearAmount,Sheet1!S71_SA1SubCode,$AC:$AC)","v":4092350},{"$f":"SUMIFS(Sheet1!S71_PYearAmount,Sheet1!S71_SA1SubCode,$AC:$AC)","v":4410967},{"$f":"SUMIFS(Sheet1!S71_OriginalBudAmnt,Sheet1!S71_SA1SubCode,$AC:$AC)","v":4445582},{"$f":"SUMIFS(Sheet1!S71_AdjustmentBudAmnt,Sheet1!S71_SA1SubCode,$AC:$AC)","v":4433141},{"$f":"SUMIFS(Sheet1!S71_AdjustmentBudAmnt,Sheet1!S71_SA1SubCode,$AC:$AC)","v":4433141},{"$f":"SUMIFS(Sheet1!CD:CD,Sheet1!S71_SA1SubCode,$AC:$AC)","v":3021102},{"$f":"SUMIFS(Sheet1!S71_ASBudgetAmount,Sheet1!S71_SA1SubCode,$AC:$AC)","v":4896595},{"$f":"SUMIFS(Sheet1!S71_OY1BudgetAmount,Sheet1!S71_SA1SubCode,$AC:$AC)","v":4273417},{"$f":"SUMIFS(Sheet1!S71_OY2BudgetAmount,Sheet1!S71_SA1SubCode,$AC:$AC)","v":4273417},null,null,null,null,null,null,null,null,null,null,null,null,null,null,null,null,"2002"]
["Medical Aid Contributions",null,{"$f":"SUMIFS(Sheet1!S71_PPPYearAmount,Sheet1!S71_SA1SubCode,$AC:$AC)","v":0},{"$f":"SUMIFS(Sheet1!S71_PPYearAmount,Sheet1!S71_SA1SubCode,$AC:$AC)","v":1829018},{"$f":"SUMIFS(Sheet1!S71_PYearAmount,Sheet1!S71_SA1SubCode,$AC:$AC)","v":1934617},{"$f":"SUMIFS(Sheet1!S71_OriginalBudAmnt,Sheet1!S71_SA1SubCode,$AC:$AC)","v":1840500},{"$f":"SUMIFS(Sheet1!S71_AdjustmentBudAmnt,Sheet1!S71_SA1SubCode,$AC:$AC)","v":1839600},{"$f":"SUMIFS(Sheet1!S71_AdjustmentBudAmnt,Sheet1!S71_SA1SubCode,$AC:$AC)","v":1839600},{"$f":"SUMIFS(Sheet1!CD:CD,Sheet1!S71_SA1SubCode,$AC:$AC)","v":1934589},{"$f":"SUMIFS(Sheet1!S71_ASBudgetAmount,Sheet1!S71_SA1SubCode,$AC:$AC)","v":2283642},{"$f":"SUMIFS(Sheet1!S71_OY1BudgetAmount,Sheet1!S71_SA1SubCode,$AC:$AC)","v":1839600},{"$f":"SUMIFS(Sheet1!S71_OY2BudgetAmount,Sheet1!S71_SA1SubCode,$AC:$AC)","v":1839600},null,null,null,null,null,null,null,null,null,null,null,null,null,null,null,null,"2003"]
["Overtime",null,{"$f":"SUMIFS(Sheet1!S71_PPPYearAmount,Sheet1!S71_SA1SubCode,$AC:$AC)","v":0},{"$f":"SUMIFS(Sheet1!S71_PPYearAmount,Sheet1!S71_SA1SubCode,$AC:$AC)","v":0},{"$f":"SUMIFS(Sheet1!S71_PYearAmount,Sheet1!S71_SA1SubCode,$AC:$AC)","v":0},{"$f":"SUMIFS(Sheet1!S71_OriginalBudAmnt,Sheet1!S71_SA1SubCode,$AC:$AC)","v":0},{"$f":"SUMIFS(Sheet1!S71_AdjustmentBudAmnt,Sheet1!S71_SA1SubCode,$AC:$AC)","v":0},{"$f":"SUMIFS(Sheet1!S71_AdjustmentBudAmnt,Sheet1!S71_SA1SubCode,$AC:$AC)","v":0},{"$f":"SUMIFS(Sheet1!CD:CD,Sheet1!S71_SA1SubCode,$AC:$AC)","v":0},{"$f":"SUMIFS(Sheet1!S71_ASBudgetAmount,Sheet1!S71_SA1SubCode,$AC:$AC)","v":0},{"$f":"SUMIFS(Sheet1!S71_OY1BudgetAmount,Sheet1!S71_SA1SubCode,$AC:$AC)","v":0},{"$f":"SUMIFS(Sheet1!S71_OY2BudgetAmount,Sheet1!S71_SA1SubCode,$AC:$AC)","v":0},null,null,null,null,null,null,null,null,null,null,null,null,null,null,null,null,"2004"]
["Performance Bonus",null,{"$f":"SUMIFS(Sheet1!S71_PPPYearAmount,Sheet1!S71_SA1SubCode,$AC:$AC)","v":0},{"$f":"SUMIFS(Sheet1!S71_PPYearAmount,Sheet1!S71_SA1SubCode,$AC:$AC)","v":1917391},{"$f":"SUMIFS(Sheet1!S71_PYearAmount,Sheet1!S71_SA1SubCode,$AC:$AC)","v":1858383},{"$f":"SUMIFS(Sheet1!S71_OriginalBudAmnt,Sheet1!S71_SA1SubCode,$AC:$AC)","v":1918751},{"$f":"SUMIFS(Sheet1!S71_AdjustmentBudAmnt,Sheet1!S71_SA1SubCode,$AC:$AC)","v":1918751},{"$f":"SUMIFS(Sheet1!S71_AdjustmentBudAmnt,Sheet1!S71_SA1SubCode,$AC:$AC)","v":1918751},{"$f":"SUMIFS(Sheet1!CD:CD,Sheet1!S71_SA1SubCode,$AC:$AC)","v":1848849},{"$f":"SUMIFS(Sheet1!S71_ASBudgetAmount,Sheet1!S71_SA1SubCode,$AC:$AC)","v":2154388},{"$f":"SUMIFS(Sheet1!S71_OY1BudgetAmount,Sheet1!S71_SA1SubCode,$AC:$AC)","v":1822979},{"$f":"SUMIFS(Sheet1!S71_OY2BudgetAmount,Sheet1!S71_SA1SubCode,$AC:$AC)","v":1822979},null,null,null,null,null,null,null,null,null,null,null,null,null,null,null,null,"2005"]
["Motor Vehicle Allowance",null,{"$f":"SUMIFS(Sheet1!S71_PPPYearAmount,Sheet1!S71_SA1SubCode,$AC:$AC)","v":0},{"$f":"SUMIFS(Sheet1!S71_PPYearAmount,Sheet1!S71_SA1SubCode,$AC:$AC)","v":3587594},{"$f":"SUMIFS(Sheet1!S71_PYearAmount,Sheet1!S71_SA1SubCode,$AC:$AC)","v":3576030},{"$f":"SUMIFS(Sheet1!S71_OriginalBudAmnt,Sheet1!S71_SA1SubCode,$AC:$AC)","v":3442728},{"$f":"SUMIFS(Sheet1!S71_AdjustmentBudAmnt,Sheet1!S71_SA1SubCode,$AC:$AC)","v":3442728},{"$f":"SUMIFS(Sheet1!S71_AdjustmentBudAmnt,Sheet1!S71_SA1SubCode,$AC:$AC)","v":3442728},{"$f":"SUMIFS(Sheet1!CD:CD,Sheet1!S71_SA1SubCode,$AC:$AC)","v":3302186},{"$f":"SUMIFS(Sheet1!S71_ASBudgetAmount,Sheet1!S71_SA1SubCode,$AC:$AC)","v":3614850},{"$f":"SUMIFS(Sheet1!S71_OY1BudgetAmount,Sheet1!S71_SA1SubCode,$AC:$AC)","v":3478728},{"$f":"SUMIFS(Sheet1!S71_OY2BudgetAmount,Sheet1!S71_SA1SubCode,$AC:$AC)","v":3478728},null,null,null,null,null,null,null,null,null,null,null,null,null,null,null,null,"2006"]
["Cellphone Allowance",null,{"$f":"SUMIFS(Sheet1!S71_PPPYearAmount,Sheet1!S71_SA1SubCode,$AC:$AC)","v":0},{"$f":"SUMIFS(Sheet1!S71_PPYearAmount,Sheet1!S71_SA1SubCode,$AC:$AC)","v":265977},{"$f":"SUMIFS(Sheet1!S71_PYearAmount,Sheet1!S71_SA1SubCode,$AC:$AC)","v":270590},{"$f":"SUMIFS(Sheet1!S71_OriginalBudAmnt,Sheet1!S71_SA1SubCode,$AC:$AC)","v":289580},{"$f":"SUMIFS(Sheet1!S71_AdjustmentBudAmnt,Sheet1!S71_SA1SubCode,$AC:$AC)","v":289580},{"$f":"SUMIFS(Sheet1!S71_AdjustmentBudAmnt,Sheet1!S71_SA1SubCode,$AC:$AC)","v":289580},{"$f":"SUMIFS(Sheet1!CD:CD,Sheet1!S71_SA1SubCode,$AC:$AC)","v":289028},{"$f":"SUMIFS(Sheet1!S71_ASBudgetAmount,Sheet1!S71_SA1SubCode,$AC:$AC)","v":296972},{"$f":"SUMIFS(Sheet1!S71_OY1BudgetAmount,Sheet1!S71_SA1SubCode,$AC:$AC)","v":279980},{"$f":"SUMIFS(Sheet1!S71_OY2BudgetAmount,Sheet1!S71_SA1SubCode,$AC:$AC)","v":279980},null,null,null,null,null,null,null,null,null,null,null,null,null,null,null,null,"2007"]
["Housing Allowances",null,{"$f":"SUMIFS(Sheet1!S71_PPPYearAmount,Sheet1!S71_SA1SubCode,$AC:$AC)","v":0},{"$f":"SUMIFS(Sheet1!S71_PPYearAmount,Sheet1!S71_SA1SubCode,$AC:$AC)","v":346525},{"$f":"SUMIFS(Sheet1!S71_PYearAmount,Sheet1!S71_SA1SubCode,$AC:$AC)","v":339303},{"$f":"SUMIFS(Sheet1!S71_OriginalBudAmnt,Sheet1!S71_SA1SubCode,$AC:$AC)","v":347707},{"$f":"SUMIFS(Sheet1!S71_AdjustmentBudAmnt,Sheet1!S71_SA1SubCode,$AC:$AC)","v":347707},{"$f":"SUMIFS(Sheet1!S71_AdjustmentBudAmnt,Sheet1!S71_SA1SubCode,$AC:$AC)","v":347707},{"$f":"SUMIFS(Sheet1!CD:CD,Sheet1!S71_SA1SubCode,$AC:$AC)","v":329406},{"$f":"SUMIFS(Sheet1!S71_ASBudgetAmount,Sheet1!S71_SA1SubCode,$AC:$AC)","v":367256},{"$f":"SUMIFS(Sheet1!S71_OY1BudgetAmount,Sheet1!S71_SA1SubCode,$AC:$AC)","v":347707},{"$f":"SUMIFS(Sheet1!S71_OY2BudgetAmount,Sheet1!S71_SA1SubCode,$AC:$AC)","v":347707},null,null,null,null,null,null,null,null,null,null,null,null,null,null,null,null,"2008"]
["Other benefits and allowances",null,{"$f":"SUMIFS(Sheet1!S71_PPPYearAmount,Sheet1!S71_SA1SubCode,$AC:$AC)","v":0},{"$f":"SUMIFS(Sheet1!S71_PPYearAmount,Sheet1!S71_SA1SubCode,$AC:$AC)","v":0},{"$f":"SUMIFS(Sheet1!S71_PYearAmount,Sheet1!S71_SA1SubCode,$AC:$AC)","v":8751},{"$f":"SUMIFS(Sheet1!S71_OriginalBudAmnt,Sheet1!S71_SA1SubCode,$AC:$AC)","v":114355},{"$f":"SUMIFS(Sheet1!S71_AdjustmentBudAmnt,Sheet1!S71_SA1SubCode,$AC:$AC)","v":126796},{"$f":"SUMIFS(Sheet1!S71_AdjustmentBudAmnt,Sheet1!S71_SA1SubCode,$AC:$AC)","v":126796},{"$f":"SUMIFS(Sheet1!CD:CD,Sheet1!S71_SA1SubCode,$AC:$AC)","v":8595},{"$f":"SUMIFS(Sheet1!S71_ASBudgetAmount,Sheet1!S71_SA1SubCode,$AC:$AC)","v":8435},{"$f":"SUMIFS(Sheet1!S71_OY1BudgetAmount,Sheet1!S71_SA1SubCode,$AC:$AC)","v":7655},{"$f":"SUMIFS(Sheet1!S71_OY2BudgetAmount,Sheet1!S71_SA1SubCode,$AC:$AC)","v":7655},null,null,null,null,null,null,null,null,null,null,null,null,null,null,null,null,"2009"]
["Payments in lieu of leave",null,{"$f":"SUMIFS(Sheet1!S71_PPPYearAmount,Sheet1!S71_SA1SubCode,$AC:$AC)","v":0},{"$f":"SUMIFS(Sheet1!S71_PPYearAmount,Sheet1!S71_SA1SubCode,$AC:$AC)","v":378190},{"$f":"SUMIFS(Sheet1!S71_PYearAmount,Sheet1!S71_SA1SubCode,$AC:$AC)","v":690195},{"$f":"SUMIFS(Sheet1!S71_OriginalBudAmnt,Sheet1!S71_SA1SubCode,$AC:$AC)","v":0},{"$f":"SUMIFS(Sheet1!S71_AdjustmentBudAmnt,Sheet1!S71_SA1SubCode,$AC:$AC)","v":0},{"$f":"SUMIFS(Sheet1!S71_AdjustmentBudAmnt,Sheet1!S71_SA1SubCode,$AC:$AC)","v":0},{"$f":"SUMIFS(Sheet1!CD:CD,Sheet1!S71_SA1SubCode,$AC:$AC)","v":275112},{"$f":"SUMIFS(Sheet1!S71_ASBudgetAmount,Sheet1!S71_SA1SubCode,$AC:$AC)","v":0},{"$f":"SUMIFS(Sheet1!S71_OY1BudgetAmount,Sheet1!S71_SA1SubCode,$AC:$AC)","v":0},{"$f":"SUMIFS(Sheet1!S71_OY2BudgetAmount,Sheet1!S71_SA1SubCode,$AC:$AC)","v":0},null,null,null,null,null,null,null,null,null,null,null,null,null,null,null,null,"2010"]
["Long service awards",null,{"$f":"SUMIFS(Sheet1!S71_PPPYearAmount,Sheet1!S71_SA1SubCode,$AC:$AC)","v":0},{"$f":"SUMIFS(Sheet1!S71_PPYearAmount,Sheet1!S71_SA1SubCode,$AC:$AC)","v":279175},{"$f":"SUMIFS(Sheet1!S71_PYearAmount,Sheet1!S71_SA1SubCode,$AC:$AC)","v":295325},{"$f":"SUMIFS(Sheet1!S71_OriginalBudAmnt,Sheet1!S71_SA1SubCode,$AC:$AC)","v":0},{"$f":"SUMIFS(Sheet1!S71_AdjustmentBudAmnt,Sheet1!S71_SA1SubCode,$AC:$AC)","v":52396},{"$f":"SUMIFS(Sheet1!S71_AdjustmentBudAmnt,Sheet1!S71_SA1SubCode,$AC:$AC)","v":52396},{"$f":"SUMIFS(Sheet1!CD:CD,Sheet1!S71_SA1SubCode,$AC:$AC)","v":95744},{"$f":"SUMIFS(Sheet1!S71_ASBudgetAmount,Sheet1!S71_SA1SubCode,$AC:$AC)","v":128295},{"$f":"SUMIFS(Sheet1!S71_OY1BudgetAmount,Sheet1!S71_SA1SubCode,$AC:$AC)","v":0},{"$f":"SUMIFS(Sheet1!S71_OY2BudgetAmount,Sheet1!S71_SA1SubCode,$AC:$AC)","v":0},null,null,null,null,null,null,null,null,null,null,null,null,null,null,null,null,"2011"]
["Post-retirement benefit obligations",4,{"$f":"SUMIFS(Sheet1!S71_PPPYearAmount,Sheet1!S71_SA1SubCode,$AC:$AC)","v":0},{"$f":"SUMIFS(Sheet1!S71_PPYearAmount,Sheet1!S71_SA1SubCode,$AC:$AC)","v":0},{"$f":"SUMIFS(Sheet1!S71_PYearAmount,Sheet1!S71_SA1SubCode,$AC:$AC)","v":0},{"$f":"SUMIFS(Sheet1!S71_OriginalBudAmnt,Sheet1!S71_SA1SubCode,$AC:$AC)","v":0},{"$f":"SUMIFS(Sheet1!S71_AdjustmentBudAmnt,Sheet1!S71_SA1SubCode,$AC:$AC)","v":0},{"$f":"SUMIFS(Sheet1!S71_AdjustmentBudAmnt,Sheet1!S71_SA1SubCode,$AC:$AC)","v":0},{"$f":"SUMIFS(Sheet1!CD:CD,Sheet1!S71_SA1SubCode,$AC:$AC)","v":0},{"$f":"SUMIFS(Sheet1!S71_ASBudgetAmount,Sheet1!S71_SA1SubCode,$AC:$AC)","v":0},{"$f":"SUMIFS(Sheet1!S71_OY1BudgetAmount,Sheet1!S71_SA1SubCode,$AC:$AC)","v":0},{"$f":"SUMIFS(Sheet1!S71_OY2BudgetAmount,Sheet1!S71_SA1SubCode,$AC:$AC)","v":0},null,null,null,null,null,null,null,null,null,null,null,null,null,null,null,null,"2012"]
["sub-total",5,{"$f":"SUM(C70:C81)","v":0},{"$f":"SUM(D70:D81)","v":41321595},43703876,43559123,44675294,44675294,40087738,47147526,47560205,48540661]
["Less: Employees costs capitalised to PPE",null,{"$f":"SUMIFS(Sheet1!S71_PPPYearAmount,Sheet1!S71_SA1SubCode,$AC:$AC)","v":0},{"$f":"SUMIFS(Sheet1!S71_PPYearAmount,Sheet1!S71_SA1SubCode,$AC:$AC)","v":0},{"$f":"SUMIFS(Sheet1!S71_PYearAmount,Sheet1!S71_SA1SubCode,$AC:$AC)","v":0},{"$f":"SUMIFS(Sheet1!S71_OriginalBudAmnt,Sheet1!S71_SA1SubCode,$AC:$AC)","v":0},{"$f":"SUMIFS(Sheet1!S71_AdjustmentBudAmnt,Sheet1!S71_SA1SubCode,$AC:$AC)","v":0},{"$f":"SUMIFS(Sheet1!S71_AdjustmentBudAmnt,Sheet1!S71_SA1SubCode,$AC:$AC)","v":0},{"$f":"SUMIFS(Sheet1!CD:CD,Sheet1!S71_SA1SubCode,$AC:$AC)","v":0},{"$f":"SUMIFS(Sheet1!S71_ASBudgetAmount,Sheet1!S71_SA1SubCode,$AC:$AC)","v":0},{"$f":"SUMIFS(Sheet1!S71_OY1BudgetAmount,Sheet1!S71_SA1SubCode,$AC:$AC)","v":0},{"$f":"SUMIFS(Sheet1!S71_OY2BudgetAmount,Sheet1!S71_SA1SubCode,$AC:$AC)","v":0},null,null,null,null,null,null,null,null,null,null,null,null,null,null,null,null,"2090"]
[{"$f":"\"Total \"&A69","v":"Total Employee related costs"},1,{"$f":"C82-C83","v":0},{"$f":"D82-D83","v":41321595},43703876,43559123,44675294,44675294,40087738,47147526,47560205,48540661]
[null,null,null,null,null,null,null,null,null,null,null,null,null,null,null,null,null,null,null,null,null,null,null,null,null,null,null,null,"0"]
[]
[null,null,null,null,null,null,null,null,null,null,null,null,null,null,null,null,null,null,null,null,null,null,null,null,null,null,null,null,"3400"]
[]
[]
[]
[]
[]
[]
[]
[{"$f":"'A4-FinPerf RE'!A27","v":"Depreciation & asset impairment"}]
["Depreciation of Property, Plant & Equipment",null,{"$f":"SUMIFS(Sheet1!S71_PPPYearAmount,Sheet1!S71_SA1SubCode,$AC:$AC)","v":0},{"$f":"SUMIFS(Sheet1!S71_PPYearAmount,Sheet1!S71_SA1SubCode,$AC:$AC)","v":2194055},{"$f":"SUMIFS(Sheet1!S71_PYearAmount,Sheet1!S71_SA1SubCode,$AC:$AC)","v":1690529},{"$f":"SUMIFS(Sheet1!S71_OriginalBudAmnt,Sheet1!S71_SA1SubCode,$AC:$AC)","v":1660850},{"$f":"SUMIFS(Sheet1!S71_AdjustmentBudAmnt,Sheet1!S71_SA1SubCode,$AC:$AC)","v":1810850},{"$f":"SUMIFS(Sheet1!S71_AdjustmentBudAmnt,Sheet1!S71_SA1SubCode,$AC:$AC)","v":1810850},{"$f":"SUMIFS(Sheet1!CD:CD,Sheet1!S71_SA1SubCode,$AC:$AC)","v":0},{"$f":"SUMIFS(Sheet1!S71_ASBudgetAmount,Sheet1!S71_SA1SubCode,$AC:$AC)","v":1000000},{"$f":"SUMIFS(Sheet1!S71_OY1BudgetAmount,Sheet1!S71_SA1SubCode,$AC:$AC)","v":1000000},{"$f":"SUMIFS(Sheet1!S71_OY2BudgetAmount,Sheet1!S71_SA1SubCode,$AC:$AC)","v":1000000},null,null,null,null,null,null,null,null,null,null,null,null,null,null,null,null,"2301"]
["Lease amortisation",null,{"$f":"SUMIFS(Sheet1!S71_PPPYearAmount,Sheet1!S71_SA1SubCode,$AC:$AC)","v":0},{"$f":"SUMIFS(Sheet1!S71_PPYearAmount,Sheet1!S71_SA1SubCode,$AC:$AC)","v":403859},{"$f":"SUMIFS(Sheet1!S71_PYearAmount,Sheet1!S71_SA1SubCode,$AC:$AC)","v":404759},{"$f":"SUMIFS(Sheet1!S71_OriginalBudAmnt,Sheet1!S71_SA1SubCode,$AC:$AC)","v":0},{"$f":"SUMIFS(Sheet1!S71_AdjustmentBudAmnt,Sheet1!S71_SA1SubCode,$AC:$AC)","v":0},{"$f":"SUMIFS(Sheet1!S71_AdjustmentBudAmnt,Sheet1!S71_SA1SubCode,$AC:$AC)","v":0},{"$f":"SUMIFS(Sheet1!CD:CD,Sheet1!S71_SA1SubCode,$AC:$AC)","v":0},{"$f":"SUMIFS(Sheet1!S71_ASBudgetAmount,Sheet1!S71_SA1SubCode,$AC:$AC)","v":0},{"$f":"SUMIFS(Sheet1!S71_OY1BudgetAmount,Sheet1!S71_SA1SubCode,$AC:$AC)","v":0},{"$f":"SUMIFS(Sheet1!S71_OY2BudgetAmount,Sheet1!S71_SA1SubCode,$AC:$AC)","v":0},null,null,null,null,null,null,null,null,null,null,null,null,null,null,null,null,"2302"]
["Capital asset impairment",null,{"$f":"SUMIFS(Sheet1!S71_PPPYearAmount,Sheet1!S71_SA1SubCode,$AC:$AC)","v":0},{"$f":"SUMIFS(Sheet1!S71_PPYearAmount,Sheet1!S71_SA1SubCode,$AC:$AC)","v":53267},{"$f":"SUMIFS(Sheet1!S71_PYearAmount,Sheet1!S71_SA1SubCode,$AC:$AC)","v":14050},{"$f":"SUMIFS(Sheet1!S71_OriginalBudAmnt,Sheet1!S71_SA1SubCode,$AC:$AC)","v":0},{"$f":"SUMIFS(Sheet1!S71_AdjustmentBudAmnt,Sheet1!S71_SA1SubCode,$AC:$AC)","v":0},{"$f":"SUMIFS(Sheet1!S71_AdjustmentBudAmnt,Sheet1!S71_SA1SubCode,$AC:$AC)","v":0},{"$f":"SUMIFS(Sheet1!CD:CD,Sheet1!S71_SA1SubCode,$AC:$AC)","v":0},{"$f":"SUMIFS(Sheet1!S71_ASBudgetAmount,Sheet1!S71_SA1SubCode,$AC:$AC)","v":0},{"$f":"SUMIFS(Sheet1!S71_OY1BudgetAmount,Sheet1!S71_SA1SubCode,$AC:$AC)","v":0},{"$f":"SUMIFS(Sheet1!S71_OY2BudgetAmount,Sheet1!S71_SA1SubCode,$AC:$AC)","v":0},null,null,null,null,null,null,null,null,null,null,null,null,null,null,null,null,"2303"]
[]
[{"$f":"\"Total \"&LEFT(A95,35)","v":"Total Depreciation & asset impairment"},1,{"$f":"SUM(C96:C98)","v":0},{"$f":"SUM(D96:D98)","v":2651181},2109338,1660850,1810850,1810850,0,1000000,1000000,1000000]
[]
["Bulk purchases - electricity"]
["Electricity bulk purchases",null,{"$f":"SUMIFS(Sheet1!S71_PPPYearAmount,Sheet1!S71_SA1SubCode,$AC:$AC)","v":0},{"$f":"SUMIFS(Sheet1!S71_PPYearAmount,Sheet1!S71_SA1SubCode,$AC:$AC)","v":0},{"$f":"SUMIFS(Sheet1!S71_PYearAmount,Sheet1!S71_SA1SubCode,$AC:$AC)","v":0},{"$f":"SUMIFS(Sheet1!S71_OriginalBudAmnt,Sheet1!S71_SA1SubCode,$AC:$AC)","v":0},{"$f":"SUMIFS(Sheet1!S71_AdjustmentBudAmnt,Sheet1!S71_SA1SubCode,$AC:$AC)","v":0},{"$f":"SUMIFS(Sheet1!S71_AdjustmentBudAmnt,Sheet1!S71_SA1SubCode,$AC:$AC)","v":0},{"$f":"SUMIFS(Sheet1!CD:CD,Sheet1!S71_SA1SubCode,$AC:$AC)","v":0},{"$f":"SUMIFS(Sheet1!S71_ASBudgetAmount,Sheet1!S71_SA1SubCode,$AC:$AC)","v":0},{"$f":"SUMIFS(Sheet1!S71_OY1BudgetAmount,Sheet1!S71_SA1SubCode,$AC:$AC)","v":0},{"$f":"SUMIFS(Sheet1!S71_OY2BudgetAmount,Sheet1!S71_SA1SubCode,$AC:$AC)","v":0},null,null,null,null,null,null,null,null,null,null,null,null,null,null,null,null,"2501"]
[null,null,null,null,null,null,null,null,null,null,null,null,null,null,null,null,null,null,null,null,null,null,null,null,null,null,null,null,"2502"]
["Total bulk purchases",1,{"$f":"SUM(C103:C104)","v":0},{"$f":"SUM(D103:D104)","v":0},0,0,0,0,0,0,0,0]
[]
["Transfers and grants"]
["Cash transfers and grants",null,{"$f":"'SA21'!C32","v":0},{"$f":"'SA21'!D32","v":37004},{"$f":"'SA21'!E32","v":97148},{"$f":"'SA21'!F32","v":10000},{"$f":"'SA21'!G32","v":181950},{"$f":"'SA21'!H32","v":181950},{"$f":"'SA21'!I32","v":81111},{"$f":"'SA21'!J32","v":72000},{"$f":"'SA21'!K32","v":72000},{"$f":"'SA21'!L32","v":72000},null,null,null,null,null,null,null,null,null,null,null,null,null,null,null,null,"2801"]
["Non-cash transfers and grants",null,{"$f":"'SA21'!C63","v":0},{"$f":"'SA21'!D63","v":0},{"$f":"'SA21'!E63","v":0},{"$f":"'SA21'!F63","v":0},{"$f":"'SA21'!G63","v":0},{"$f":"'SA21'!H63","v":0},{"$f":"'SA21'!I63","v":0},{"$f":"'SA21'!J63","v":0},{"$f":"'SA21'!K63","v":0},{"$f":"'SA21'!L63","v":0},null,null,null,null,null,null,null,null,null,null,null,null,null,null,null,null,"2802"]
["Total transfers and grants",1,{"$f":"SUM(C108:C109)","v":0},{"$f":"SUM(D108:D109)","v":37004},97148,10000,181950,181950,81111,72000,72000,72000]
[]
[{"$f":"'A4-FinPerf RE'!A31","v":"Contracted services"}]
["Outsourced Services",null,{"$f":"SUMIFS(Sheet1!S71_PPPYearAmount,Sheet1!S71_SA1SubCode,$AC:$AC)","v":0},{"$f":"SUMIFS(Sheet1!S71_PPYearAmount,Sheet1!S71_SA1SubCode,$AC:$AC)","v":38349},{"$f":"SUMIFS(Sheet1!S71_PYearAmount,Sheet1!S71_SA1SubCode,$AC:$AC)","v":32386},{"$f":"SUMIFS(Sheet1!S71_OriginalBudAmnt,Sheet1!S71_SA1SubCode,$AC:$AC)","v":76900},{"$f":"SUMIFS(Sheet1!S71_AdjustmentBudAmnt,Sheet1!S71_SA1SubCode,$AC:$AC)","v":232000},{"$f":"SUMIFS(Sheet1!S71_AdjustmentBudAmnt,Sheet1!S71_SA1SubCode,$AC:$AC)","v":232000},{"$f":"SUMIFS(Sheet1!CD:CD,Sheet1!S71_SA1SubCode,$AC:$AC)","v":35609},{"$f":"SUMIFS(Sheet1!S71_ASBudgetAmount,Sheet1!S71_SA1SubCode,$AC:$AC)","v":348000},{"$f":"SUMIFS(Sheet1!S71_OY1BudgetAmount,Sheet1!S71_SA1SubCode,$AC:$AC)","v":98000},{"$f":"SUMIFS(Sheet1!S71_OY2BudgetAmount,Sheet1!S71_SA1SubCode,$AC:$AC)","v":102000},null,null,null,null,null,null,null,null,null,null,null,null,null,null,null,null,2701]
["Consultants and Professional Services",null,{"$f":"SUMIFS(Sheet1!S71_PPPYearAmount,Sheet1!S71_SA1SubCode,$AC:$AC)","v":0},{"$f":"SUMIFS(Sheet1!S71_PPYearAmount,Sheet1!S71_SA1SubCode,$AC:$AC)","v":4513782},{"$f":"SUMIFS(Sheet1!S71_PYearAmount,Sheet1!S71_SA1SubCode,$AC:$AC)","v":5153427},{"$f":"SUMIFS(Sheet1!S71_OriginalBudAmnt,Sheet1!S71_SA1SubCode,$AC:$AC)","v":6064200},{"$f":"SUMIFS(Sheet1!S71_AdjustmentBudAmnt,Sheet1!S71_SA1SubCode,$AC:$AC)","v":6453000},{"$f":"SUMIFS(Sheet1!S71_AdjustmentBudAmnt,Sheet1!S71_SA1SubCode,$AC:$AC)","v":6453000},{"$f":"SUMIFS(Sheet1!CD:CD,Sheet1!S71_SA1SubCode,$AC:$AC)","v":4134127},{"$f":"SUMIFS(Sheet1!S71_ASBudgetAmount,Sheet1!S71_SA1SubCode,$AC:$AC)","v":4513000},{"$f":"SUMIFS(Sheet1!S71_OY1BudgetAmount,Sheet1!S71_SA1SubCode,$AC:$AC)","v":6262269},{"$f":"SUMIFS(Sheet1!S71_OY2BudgetAmount,Sheet1!S71_SA1SubCode,$AC:$AC)","v":6391836},null,null,null,null,null,null,null,null,null,null,null,null,null,null,null,null,"2702"]
["Contractors",null,{"$f":"SUMIFS(Sheet1!S71_PPPYearAmount,Sheet1!S71_SA1SubCode,$AC:$AC)","v":0},{"$f":"SUMIFS(Sheet1!S71_PPYearAmount,Sheet1!S71_SA1SubCode,$AC:$AC)","v":361209},{"$f":"SUMIFS(Sheet1!S71_PYearAmount,Sheet1!S71_SA1SubCode,$AC:$AC)","v":760686},{"$f":"SUMIFS(Sheet1!S71_OriginalBudAmnt,Sheet1!S71_SA1SubCode,$AC:$AC)","v":890000},{"$f":"SUMIFS(Sheet1!S71_AdjustmentBudAmnt,Sheet1!S71_SA1SubCode,$AC:$AC)","v":1178000},{"$f":"SUMIFS(Sheet1!S71_AdjustmentBudAmnt,Sheet1!S71_SA1SubCode,$AC:$AC)","v":1178000},{"$f":"SUMIFS(Sheet1!CD:CD,Sheet1!S71_SA1SubCode,$AC:$AC)","v":533664},{"$f":"SUMIFS(Sheet1!S71_ASBudgetAmount,Sheet1!S71_SA1SubCode,$AC:$AC)","v":620000},{"$f":"SUMIFS(Sheet1!S71_OY1BudgetAmount,Sheet1!S71_SA1SubCode,$AC:$AC)","v":784140},{"$f":"SUMIFS(Sheet1!S71_OY2BudgetAmount,Sheet1!S71_SA1SubCode,$AC:$AC)","v":965790},null,null,null,null,null,null,null,null,null,null,null,null,null,null,null,null,"2703"]
[null,null,null,null,null,null,null,null,null,null,null,null,null,null,null,null,null,null,null,null,null,null,null,null,null,null,null,null,"2703"]
[]
[]
[]
[]
[]
[]
[]
[]
[]
[]
[]
[]
[]
[]
[]
[]
[]
[]
[]
[]
[]
[]
[]
[]
[]
[]
[]
["Total contracted services",null,{"$f":"SUM(C113:C115)","v":0},{"$f":"SUM(D113:D115)","v":4913340},5946499,7031100,7863000,7863000,4703400,5481000,7144409,7459626]
[]
["Other Expenditure By Type"]
["Collection costs",null,{"$f":"SUMIFS(Sheet1!S71_PPPYearAmount,Sheet1!S71_SA1SubCode,$AC:$AC)","v":0},{"$f":"SUMIFS(Sheet1!S71_PPYearAmount,Sheet1!S71_SA1SubCode,$AC:$AC)","v":0},{"$f":"SUMIFS(Sheet1!S71_PYearAmount,Sheet1!S71_SA1SubCode,$AC:$AC)","v":0},{"$f":"SUMIFS(Sheet1!S71_OriginalBudAmnt,Sheet1!S71_SA1SubCode,$AC:$AC)","v":0},{"$f":"SUMIFS(Sheet1!S71_AdjustmentBudAmnt,Sheet1!S71_SA1SubCode,$AC:$AC)","v":0},{"$f":"SUMIFS(Sheet1!S71_AdjustmentBudAmnt,Sheet1!S71_SA1SubCode,$AC:$AC)","v":0},{"$f":"SUMIFS(Sheet1!CD:CD,Sheet1!S71_SA1SubCode,$AC:$AC)","v":0},{"$f":"SUMIFS(Sheet1!S71_ASBudgetAmount,Sheet1!S71_SA1SubCode,$AC:$AC)","v":0},{"$f":"SUMIFS(Sheet1!S71_OY1BudgetAmount,Sheet1!S71_SA1SubCode,$AC:$AC)","v":0},{"$f":"SUMIFS(Sheet1!S71_OY2BudgetAmount,Sheet1!S71_SA1SubCode,$AC:$AC)","v":0},null,null,null,null,null,null,null,null,null,null,null,null,null,null,null,null,2901]
["Contributions to 'other' provisions",null,{"$f":"SUMIFS(Sheet1!S71_PPPYearAmount,Sheet1!S71_SA1SubCode,$AC:$AC)","v":0},{"$f":"SUMIFS(Sheet1!S71_PPYearAmount,Sheet1!S71_SA1SubCode,$AC:$AC)","v":0},{"$f":"SUMIFS(Sheet1!S71_PYearAmount,Sheet1!S71_SA1SubCode,$AC:$AC)","v":0},{"$f":"SUMIFS(Sheet1!S71_OriginalBudAmnt,Sheet1!S71_SA1SubCode,$AC:$AC)","v":0},{"$f":"SUMIFS(Sheet1!S71_AdjustmentBudAmnt,Sheet1!S71_SA1SubCode,$AC:$AC)","v":0},{"$f":"SUMIFS(Sheet1!S71_AdjustmentBudAmnt,Sheet1!S71_SA1SubCode,$AC:$AC)","v":0},{"$f":"SUMIFS(Sheet1!CD:CD,Sheet1!S71_SA1SubCode,$AC:$AC)","v":0},{"$f":"SUMIFS(Sheet1!S71_ASBudgetAmount,Sheet1!S71_SA1SubCode,$AC:$AC)","v":0},{"$f":"SUMIFS(Sheet1!S71_OY1BudgetAmount,Sheet1!S71_SA1SubCode,$AC:$AC)","v":0},{"$f":"SUMIFS(Sheet1!S71_OY2BudgetAmount,Sheet1!S71_SA1SubCode,$AC:$AC)","v":0},null,null,null,null,null,null,null,null,null,null,null,null,null,null,null,null,2902]
["Consultant fees",null,{"$f":"SUMIFS(Sheet1!S71_PPPYearAmount,Sheet1!S71_SA1SubCode,$AC:$AC)","v":0},{"$f":"SUMIFS(Sheet1!S71_PPYearAmount,Sheet1!S71_SA1SubCode,$AC:$AC)","v":0},{"$f":"SUMIFS(Sheet1!S71_PYearAmount,Sheet1!S71_SA1SubCode,$AC:$AC)","v":0},{"$f":"SUMIFS(Sheet1!S71_OriginalBudAmnt,Sheet1!S71_SA1SubCode,$AC:$AC)","v":0},{"$f":"SUMIFS(Sheet1!S71_AdjustmentBudAmnt,Sheet1!S71_SA1SubCode,$AC:$AC)","v":0},{"$f":"SUMIFS(Sheet1!S71_AdjustmentBudAmnt,Sheet1!S71_SA1SubCode,$AC:$AC)","v":0},{"$f":"SUMIFS(Sheet1!CD:CD,Sheet1!S71_SA1SubCode,$AC:$AC)","v":0},{"$f":"SUMIFS(Sheet1!S71_ASBudgetAmount,Sheet1!S71_SA1SubCode,$AC:$AC)","v":0},{"$f":"SUMIFS(Sheet1!S71_OY1BudgetAmount,Sheet1!S71_SA1SubCode,$AC:$AC)","v":0},{"$f":"SUMIFS(Sheet1!S71_OY2BudgetAmount,Sheet1!S71_SA1SubCode,$AC:$AC)","v":0}]
["Audit fees",null,{"$f":"SUMIFS(Sheet1!S71_PPPYearAmount,Sheet1!S71_SA1SubCode,$AC:$AC)","v":0},{"$f":"SUMIFS(Sheet1!S71_PPYearAmount,Sheet1!S71_SA1SubCode,$AC:$AC)","v":2885674},{"$f":"SUMIFS(Sheet1!S71_PYearAmount,Sheet1!S71_SA1SubCode,$AC:$AC)","v":2845944},{"$f":"SUMIFS(Sheet1!S71_OriginalBudAmnt,Sheet1!S71_SA1SubCode,$AC:$AC)","v":2570000},{"$f":"SUMIFS(Sheet1!S71_AdjustmentBudAmnt,Sheet1!S71_SA1SubCode,$AC:$AC)","v":2595000},{"$f":"SUMIFS(Sheet1!S71_AdjustmentBudAmnt,Sheet1!S71_SA1SubCode,$AC:$AC)","v":2595000},{"$f":"SUMIFS(Sheet1!CD:CD,Sheet1!S71_SA1SubCode,$AC:$AC)","v":2772578},{"$f":"SUMIFS(Sheet1!S71_ASBudgetAmount,Sheet1!S71_SA1SubCode,$AC:$AC)","v":1000000},{"$f":"SUMIFS(Sheet1!S71_OY1BudgetAmount,Sheet1!S71_SA1SubCode,$AC:$AC)","v":1600000},{"$f":"SUMIFS(Sheet1!S71_OY2BudgetAmount,Sheet1!S71_SA1SubCode,$AC:$AC)","v":1434977},null,null,null,null,null,null,null,null,null,null,null,null,null,null,null,null,"2903"]
["General expenses",null,{"$f":"SUMIFS(Sheet1!S71_PPPYearAmount,Sheet1!S71_SA1SubCode,$AC:$AC)","v":0},{"$f":"SUMIFS(Sheet1!S71_PPYearAmount,Sheet1!S71_SA1SubCode,$AC:$AC)","v":0},{"$f":"SUMIFS(Sheet1!S71_PYearAmount,Sheet1!S71_SA1SubCode,$AC:$AC)","v":0},{"$f":"SUMIFS(Sheet1!S71_OriginalBudAmnt,Sheet1!S71_SA1SubCode,$AC:$AC)","v":0},{"$f":"SUMIFS(Sheet1!S71_AdjustmentBudAmnt,Sheet1!S71_SA1SubCode,$AC:$AC)","v":0},{"$f":"SUMIFS(Sheet1!S71_AdjustmentBudAmnt,Sheet1!S71_SA1SubCode,$AC:$AC)","v":0},{"$f":"SUMIFS(Sheet1!CD:CD,Sheet1!S71_SA1SubCode,$AC:$AC)","v":0},{"$f":"SUMIFS(Sheet1!S71_ASBudgetAmount,Sheet1!S71_SA1SubCode,$AC:$AC)","v":0},{"$f":"SUMIFS(Sheet1!S71_OY1BudgetAmount,Sheet1!S71_SA1SubCode,$AC:$AC)","v":0},{"$f":"SUMIFS(Sheet1!S71_OY2BudgetAmount,Sheet1!S71_SA1SubCode,$AC:$AC)","v":0},null,null,null,null,null,null,null,null,null,null,null,null,null,null,null,null,"2905"]
[null,null,{"$f":"SUMIFS(Sheet1!S71_PPPYearAmount,Sheet1!S71_SA1SubCode,$AC:$AC)","v":0},{"$f":"SUMIFS(Sheet1!S71_PPYearAmount,Sheet1!S71_SA1SubCode,$AC:$AC)","v":0},{"$f":"SUMIFS(Sheet1!S71_PYearAmount,Sheet1!S71_SA1SubCode,$AC:$AC)","v":0},{"$f":"SUMIFS(Sheet1!S71_OriginalBudAmnt,Sheet1!S71_SA1SubCode,$AC:$AC)","v":0},{"$f":"SUMIFS(Sheet1!S71_AdjustmentBudAmnt,Sheet1!S71_SA1SubCode,$AC:$AC)","v":0},{"$f":"SUMIFS(Sheet1!S71_AdjustmentBudAmnt,Sheet1!S71_SA1SubCode,$AC:$AC)","v":0},{"$f":"SUMIFS(Sheet1!CD:CD,Sheet1!S71_SA1SubCode,$AC:$AC)","v":0},{"$f":"SUMIFS(Sheet1!S71_ASBudgetAmount,Sheet1!S71_SA1SubCode,$AC:$AC)","v":0},{"$f":"SUMIFS(Sheet1!S71_OY1BudgetAmount,Sheet1!S71_SA1SubCode,$AC:$AC)","v":0},{"$f":"SUMIFS(Sheet1!S71_OY2BudgetAmount,Sheet1!S71_SA1SubCode,$AC:$AC)","v":0}]
["Other Expenditure",null,{"$f":"SUMIFS(Sheet1!S71_PPPYearAmount,Sheet1!S71_SA1SubCode,$AC:$AC)","v":0},{"$f":"SUMIFS(Sheet1!S71_PPYearAmount,Sheet1!S71_SA1SubCode,$AC:$AC)","v":4859333},{"$f":"SUMIFS(Sheet1!S71_PYearAmount,Sheet1!S71_SA1SubCode,$AC:$AC)","v":7012684},{"$f":"SUMIFS(Sheet1!S71_OriginalBudAmnt,Sheet1!S71_SA1SubCode,$AC:$AC)","v":7174174},{"$f":"SUMIFS(Sheet1!S71_AdjustmentBudAmnt,Sheet1!S71_SA1SubCode,$AC:$AC)","v":5293396},{"$f":"SUMIFS(Sheet1!S71_AdjustmentBudAmnt,Sheet1!S71_SA1SubCode,$AC:$AC)","v":5293396},{"$f":"SUMIFS(Sheet1!CD:CD,Sheet1!S71_SA1SubCode,$AC:$AC)","v":3921023},{"$f":"SUMIFS(Sheet1!S71_ASBudgetAmount,Sheet1!S71_SA1SubCode,$AC:$AC)","v":2646375},{"$f":"SUMIFS(Sheet1!S71_OY1BudgetAmount,Sheet1!S71_SA1SubCode,$AC:$AC)","v":5405086},{"$f":"SUMIFS(Sheet1!S71_OY2BudgetAmount,Sheet1!S71_SA1SubCode,$AC:$AC)","v":5609221},null,null,null,null,null,null,null,null,null,null,null,null,null,null,null,null,"2904"]
[]
[]
[]
[]
[]
[]
[]
[]
[]
[]
[]
[]
[]
[]
[]
[]
[]
[]
[]
[]
["Total 'Other' Expenditure",1,{"$f":"+C147+C148+C150+C153","v":0},{"$f":"+D147+D148+D150+D153","v":7745007},9858628,9744174,7888396,7888396,6693601,3646375,7005086,7044198]
[]
["Repairs and Maintenance \nby Expenditure Item",8]
["Employee related costs"]
["Inventory Consumed (Project Maintenance)"]
["Contracted Services",null,{"$f":"SA34c!C167","v":0},{"$f":"SA34c!D167","v":212836},{"$f":"SA34c!E167","v":436862},{"$f":"SA34c!F167","v":455000},{"$f":"SA34c!G167","v":663000},{"$f":"SA34c!H167","v":663000},{"$f":"SA34c!AE167","v":0},{"$f":"SA34c!I167","v":215000},{"$f":"SA34c!J167","v":447300},{"$f":"SA34c!K167","v":610760}]
["Other Expenditure"]
["Total Repairs and Maintenance Expenditure",9,{"$f":"SUM(C177:C180)","v":0},{"$f":"SUM(D177:D180)","v":212836},436862,455000,663000,663000,0,215000,447300,610760]
[]
[" Inventory Consumed"]
["Inventory Consumed - Water",null,{"$f":"-'SA3'!C29","v":0},{"$f":"-'SA3'!D29","v":0},{"$f":"-'SA3'!E29","v":0},{"$f":"-'SA3'!F29","v":0},{"$f":"ABS('SA3'!G29)","v":0},{"$f":"-'SA3'!H29","v":0},{"$f":"-'SA3'!I29","v":0},{"$f":"ABS('SA3'!J29)","v":0},{"$f":"-'SA3'!K29","v":0},{"$f":"-'SA3'!L29","v":0}]
["Inventory Consumed - Other",null,{"$f":"-'SA3'!C58-'SA3'!C67-'SA3'!C74-'SA3'!C82-'SA3'!C90","v":0},{"$f":"-'SA3'!D58-'SA3'!D67-'SA3'!D74-'SA3'!D82-'SA3'!D90","v":0},{"$f":"-'SA3'!E58-'SA3'!E67-'SA3'!E74-'SA3'!E82-'SA3'!E90","v":0},{"$f":"-'SA3'!F58-'SA3'!F67-'SA3'!F74-'SA3'!F82-'SA3'!F90","v":0},{"$f":"-'SA3'!G58-'SA3'!G67-'SA3'!G74-'SA3'!G82-'SA3'!G90","v":0},{"$f":"-'SA3'!H58-'SA3'!H67-'SA3'!H74-'SA3'!H82-'SA3'!H90","v":0},{"$f":"-'SA3'!I58-'SA3'!I67-'SA3'!I74-'SA3'!I82-'SA3'!I90","v":0},{"$f":"-'SA3'!J58-'SA3'!J67-'SA3'!J74-'SA3'!J82-'SA3'!J90","v":180000},{"$f":"-'SA3'!K58-'SA3'!K67-'SA3'!K74-'SA3'!K82-'SA3'!K90","v":345673},{"$f":"-'SA3'!L58-'SA3'!L67-'SA3'!L74-'SA3'!L82-'SA3'!L90","v":348140}]
["Total Inventory Consumed & Other Material",null,{"$f":"SUM(C184:C185)","v":0},0,0,0,0,0,0,180000,345673,348140]
[]
["check",null,{"$f":"C181-SA34c!C167","v":0},{"$f":"D181-SA34c!D167","v":0},{"$f":"E181-SA34c!E167","v":0},{"$f":"F181-SA34c!F167","v":0},{"$f":"G181-SA34c!G167","v":0},{"$f":"H181-SA34c!H167","v":0},null,{"$f":"J181-SA34c!I167","v":0},{"$f":"K181-SA34c!J167","v":0},{"$f":"L181-SA34c!K167","v":0}]
[{"$f":"head27a","v":"References"}]
["1. Must reconcile with 'Budgeted Financial Performance (Revenue and Expenditure)"]
["2. Must reconcile to supporting documentation on staff salaries"]
[]
["4. Expenditure to meet any 'unfunded obligations'"]
["5 This sub-total must agree with the total on SA22, but excluding councillor and board member items"]
["6. Include a note for each revenue item that is affected by 'revenue foregone'"]
["7. Special consideration may have to be given to including 'goodwill arising' or 'joint venture' budgets where circumstances require this (include separately under relevant notes)"]
["8. Repairs and Maintenance is not a GRAP item. However to facilitate transparency, municipalities must provide a breakdown of the amounts included in the relevant GRAP items that will be spent on Repairs and Maintenance."]
["9. Must reconcile with Repairs and Maintenance by Asset Class (Total Repairs and Maintenance) on Table SA34c."]
["10. Only applicable to municipalities that have adopted the 'revaluation method' in GRAP 17. The aim is to prevent overstating 'depreciation and asset impairment'"]

{"sheet":"SA2","index":30,"n_rows":47,"n_cols":30,"rows_kept":47,"cut":false,"hidden":false,"merged":[[1,6,2,6],[1,7,2,7],[1,2,2,2],[1,3,2,3],[1,4,2,4],[1,5,2,5],[1,16,2,16],[1,17,2,17],[1,8,2,8],[1,9,2,9],[1,10,2,10],[1,11,2,11],[1,12,2,12],[1,13,2,13],[1,14,2,14],[1,15,2,15]]}
[{"$f":"muni&\" - \"&TableA2","v":"DC16 Xhariep - Supporting Table SA2 Matrix Financial Performance Budget (revenue source/expenditure type and dept.)"}]
[{"$f":"desc","v":"Description"},{"$f":"head27","v":"Ref"},{"$f":"'A3-FinPerf V'!A5","v":"Vote 1 - Executive and Council"},{"$f":"'A3-FinPerf V'!A6","v":"Vote 2 - Finance and Administration"},{"$f":"'A3-FinPerf V'!A7","v":"Vote 3 - Planning and Development"},{"$f":"'A3-FinPerf V'!A8","v":"Vote 4 - Community and Social Services"},{"$f":"'A3-FinPerf V'!A9","v":"Vote 5 - Environmental Protection"},{"$f":"'A3-FinPerf V'!A10","v":"Vote 6 - [NAME OF VOTE 6]"},{"$f":"'A3-FinPerf V'!A11","v":"Vote 7 - [NAME OF VOTE 7]"},{"$f":"'A3-FinPerf V'!A12","v":"Vote 8 - [NAME OF VOTE 8]"},{"$f":"'A3-FinPerf V'!A13","v":"Vote 9 - [NAME OF VOTE 9]"},{"$f":"'A3-FinPerf V'!A14","v":"Vote 10 - [NAME OF VOTE 10]"},{"$f":"'A3-FinPerf V'!A15","v":"Vote 11 - [NAME OF VOTE 11]"},{"$f":"'A3-FinPerf V'!A16","v":"Vote 12 - [NAME OF VOTE 12]"},{"$f":"'A3-FinPerf V'!A17","v":"Vote 13 - [NAME OF VOTE 13]"},{"$f":"'A3-FinPerf V'!A18","v":"Vote 14 - [NAME OF VOTE 14]"},{"$f":"'A3-FinPerf V'!A19","v":"Vote 15 - [NAME OF VOTE 15]"},"Total"]
["R thousand",1,"R'000","R'000","R'000","R'000","R'000","R'000",null,null,null,null,null,null,null,null,"R'000","R'000"]
[{"$f":"'A4-FinPerf RE'!A4","v":"Revenue By Source"}]
[{"$f":"'A4-FinPerf RE'!A5","v":"Property rates"},null,{"$f":"-SUMIFS(Sheet1!S71_ASBudgetAmount,Sheet1!S71_A4Code,$AC:$AC,Sheet1!S71_ItemType,$AD:$AD,Sheet1!S71_MasterVoteMunicipal,C$47)","v":0},{"$f":"-SUMIFS(Sheet1!S71_ASBudgetAmount,Sheet1!S71_A4Code,$AC:$AC,Sheet1!S71_ItemType,$AD:$AD,Sheet1!S71_MasterVoteMunicipal,D$47)","v":0},{"$f":"-SUMIFS(Sheet1!S71_ASBudgetAmount,Sheet1!S71_A4Code,$AC:$AC,Sheet1!S71_ItemType,$AD:$AD,Sheet1!S71_MasterVoteMunicipal,E$47)","v":0},{"$f":"-SUMIFS(Sheet1!S71_ASBudgetAmount,Sheet1!S71_A4Code,$AC:$AC,Sheet1!S71_ItemType,$AD:$AD,Sheet1!S71_MasterVoteMunicipal,F$47)","v":0},{"$f":"-SUMIFS(Sheet1!S71_ASBudgetAmount,Sheet1!S71_A4Code,$AC:$AC,Sheet1!S71_ItemType,$AD:$AD,Sheet1!S71_MasterVoteMunicipal,G$47)","v":0},{"$f":"-SUMIFS(Sheet1!S71_ASBudgetAmount,Sheet1!S71_A4Code,$AC:$AC,Sheet1!S71_ItemType,$AD:$AD,Sheet1!S71_MasterVoteMunicipal,H$47)","v":0},{"$f":"-SUMIFS(Sheet1!S71_ASBudgetAmount,Sheet1!S71_A4Code,$AC:$AC,Sheet1!S71_ItemType,$AD:$AD,Sheet1!S71_MasterVoteMunicipal,I$47)","v":0},{"$f":"-SUMIFS(Sheet1!S71_ASBudgetAmount,Sheet1!S71_A4Code,$AC:$AC,Sheet1!S71_ItemType,$AD:$AD,Sheet1!S71_MasterVoteMunicipal,J$47)","v":0},{"$f":"-SUMIFS(Sheet1!S71_ASBudgetAmount,Sheet1!S71_A4Code,$AC:$AC,Sheet1!S71_ItemType,$AD:$AD,Sheet1!S71_MasterVoteMunicipal,K$47)","v":0},{"$f":"-SUMIFS(Sheet1!S71_ASBudgetAmount,Sheet1!S71_A4Code,$AC:$AC,Sheet1!S71_ItemType,$AD:$AD,Sheet1!S71_MasterVoteMunicipal,L$47)","v":0},{"$f":"-SUMIFS(Sheet1!S71_ASBudgetAmount,Sheet1!S71_A4Code,$AC:$AC,Sheet1!S71_ItemType,$AD:$AD,Sheet1!S71_MasterVoteMunicipal,M$47)","v":0},{"$f":"-SUMIFS(Sheet1!S71_ASBudgetAmount,Sheet1!S71_A4Code,$AC:$AC,Sheet1!S71_ItemType,$AD:$AD,Sheet1!S71_MasterVoteMunicipal,N$47)","v":0},{"$f":"-SUMIFS(Sheet1!S71_ASBudgetAmount,Sheet1!S71_A4Code,$AC:$AC,Sheet1!S71_ItemType,$AD:$AD,Sheet1!S71_MasterVoteMunicipal,O$47)","v":0},{"$f":"-SUMIFS(Sheet1!S71_ASBudgetAmount,Sheet1!S71_A4Code,$AC:$AC,Sheet1!S71_ItemType,$AD:$AD,Sheet1!S71_MasterVoteMunicipal,P$47)","v":0},{"$f":"-SUMIFS(Sheet1!S71_ASBudgetAmount,Sheet1!S71_A4Code,$AC:$AC,Sheet1!S71_ItemType,$AD:$AD,Sheet1!S71_MasterVoteMunicipal,Q$47)","v":0},{"$f":"SUM(C5:Q5)","v":0},null,null,null,null,null,null,null,null,null,null,"0200","IR"]
[{"$f":"'A4-FinPerf RE'!A6","v":"Service charges - electricity revenue"},null,{"$f":"-SUMIFS(Sheet1!S71_ASBudgetAmount,Sheet1!S71_A4Code,$AC:$AC,Sheet1!S71_ItemType,$AD:$AD,Sheet1!S71_MasterVoteMunicipal,C$47)","v":0},{"$f":"-SUMIFS(Sheet1!S71_ASBudgetAmount,Sheet1!S71_A4Code,$AC:$AC,Sheet1!S71_ItemType,$AD:$AD,Sheet1!S71_MasterVoteMunicipal,D$47)","v":0},{"$f":"-SUMIFS(Sheet1!S71_ASBudgetAmount,Sheet1!S71_A4Code,$AC:$AC,Sheet1!S71_ItemType,$AD:$AD,Sheet1!S71_MasterVoteMunicipal,E$47)","v":0},{"$f":"-SUMIFS(Sheet1!S71_ASBudgetAmount,Sheet1!S71_A4Code,$AC:$AC,Sheet1!S71_ItemType,$AD:$AD,Sheet1!S71_MasterVoteMunicipal,F$47)","v":0},{"$f":"-SUMIFS(Sheet1!S71_ASBudgetAmount,Sheet1!S71_A4Code,$AC:$AC,Sheet1!S71_ItemType,$AD:$AD,Sheet1!S71_MasterVoteMunicipal,G$47)","v":0},{"$f":"-SUMIFS(Sheet1!S71_ASBudgetAmount,Sheet1!S71_A4Code,$AC:$AC,Sheet1!S71_ItemType,$AD:$AD,Sheet1!S71_MasterVoteMunicipal,H$47)","v":0},{"$f":"-SUMIFS(Sheet1!S71_ASBudgetAmount,Sheet1!S71_A4Code,$AC:$AC,Sheet1!S71_ItemType,$AD:$AD,Sheet1!S71_MasterVoteMunicipal,I$47)","v":0},{"$f":"-SUMIFS(Sheet1!S71_ASBudgetAmount,Sheet1!S71_A4Code,$AC:$AC,Sheet1!S71_ItemType,$AD:$AD,Sheet1!S71_MasterVoteMunicipal,J$47)","v":0},{"$f":"-SUMIFS(Sheet1!S71_ASBudgetAmount,Sheet1!S71_A4Code,$AC:$AC,Sheet1!S71_ItemType,$AD:$AD,Sheet1!S71_MasterVoteMunicipal,K$47)","v":0},{"$f":"-SUMIFS(Sheet1!S71_ASBudgetAmount,Sheet1!S71_A4Code,$AC:$AC,Sheet1!S71_ItemType,$AD:$AD,Sheet1!S71_MasterVoteMunicipal,L$47)","v":0},{"$f":"-SUMIFS(Sheet1!S71_ASBudgetAmount,Sheet1!S71_A4Code,$AC:$AC,Sheet1!S71_ItemType,$AD:$AD,Sheet1!S71_MasterVoteMunicipal,M$47)","v":0},{"$f":"-SUMIFS(Sheet1!S71_ASBudgetAmount,Sheet1!S71_A4Code,$AC:$AC,Sheet1!S71_ItemType,$AD:$AD,Sheet1!S71_MasterVoteMunicipal,N$47)","v":0},{"$f":"-SUMIFS(Sheet1!S71_ASBudgetAmount,Sheet1!S71_A4Code,$AC:$AC,Sheet1!S71_ItemType,$AD:$AD,Sheet1!S71_MasterVoteMunicipal,O$47)","v":0},{"$f":"-SUMIFS(Sheet1!S71_ASBudgetAmount,Sheet1!S71_A4Code,$AC:$AC,Sheet1!S71_ItemType,$AD:$AD,Sheet1!S71_MasterVoteMunicipal,P$47)","v":0},{"$f":"-SUMIFS(Sheet1!S71_ASBudgetAmount,Sheet1!S71_A4Code,$AC:$AC,Sheet1!S71_ItemType,$AD:$AD,Sheet1!S71_MasterVoteMunicipal,Q$47)","v":0},{"$f":"SUM(C6:Q6)","v":0},null,null,null,null,null,null,null,null,null,null,"0300","IR"]
[{"$f":"'A4-FinPerf RE'!A7","v":"Service charges - water revenue"},null,{"$f":"-SUMIFS(Sheet1!S71_ASBudgetAmount,Sheet1!S71_A4Code,$AC:$AC,Sheet1!S71_ItemType,$AD:$AD,Sheet1!S71_MasterVoteMunicipal,C$47)","v":0},{"$f":"-SUMIFS(Sheet1!S71_ASBudgetAmount,Sheet1!S71_A4Code,$AC:$AC,Sheet1!S71_ItemType,$AD:$AD,Sheet1!S71_MasterVoteMunicipal,D$47)","v":0},{"$f":"-SUMIFS(Sheet1!S71_ASBudgetAmount,Sheet1!S71_A4Code,$AC:$AC,Sheet1!S71_ItemType,$AD:$AD,Sheet1!S71_MasterVoteMunicipal,E$47)","v":0},{"$f":"-SUMIFS(Sheet1!S71_ASBudgetAmount,Sheet1!S71_A4Code,$AC:$AC,Sheet1!S71_ItemType,$AD:$AD,Sheet1!S71_MasterVoteMunicipal,F$47)","v":0},{"$f":"-SUMIFS(Sheet1!S71_ASBudgetAmount,Sheet1!S71_A4Code,$AC:$AC,Sheet1!S71_ItemType,$AD:$AD,Sheet1!S71_MasterVoteMunicipal,G$47)","v":0},{"$f":"-SUMIFS(Sheet1!S71_ASBudgetAmount,Sheet1!S71_A4Code,$AC:$AC,Sheet1!S71_ItemType,$AD:$AD,Sheet1!S71_MasterVoteMunicipal,H$47)","v":0},{"$f":"-SUMIFS(Sheet1!S71_ASBudgetAmount,Sheet1!S71_A4Code,$AC:$AC,Sheet1!S71_ItemType,$AD:$AD,Sheet1!S71_MasterVoteMunicipal,I$47)","v":0},{"$f":"-SUMIFS(Sheet1!S71_ASBudgetAmount,Sheet1!S71_A4Code,$AC:$AC,Sheet1!S71_ItemType,$AD:$AD,Sheet1!S71_MasterVoteMunicipal,J$47)","v":0},{"$f":"-SUMIFS(Sheet1!S71_ASBudgetAmount,Sheet1!S71_A4Code,$AC:$AC,Sheet1!S71_ItemType,$AD:$AD,Sheet1!S71_MasterVoteMunicipal,K$47)","v":0},{"$f":"-SUMIFS(Sheet1!S71_ASBudgetAmount,Sheet1!S71_A4Code,$AC:$AC,Sheet1!S71_ItemType,$AD:$AD,Sheet1!S71_MasterVoteMunicipal,L$47)","v":0},{"$f":"-SUMIFS(Sheet1!S71_ASBudgetAmount,Sheet1!S71_A4Code,$AC:$AC,Sheet1!S71_ItemType,$AD:$AD,Sheet1!S71_MasterVoteMunicipal,M$47)","v":0},{"$f":"-SUMIFS(Sheet1!S71_ASBudgetAmount,Sheet1!S71_A4Code,$AC:$AC,Sheet1!S71_ItemType,$AD:$AD,Sheet1!S71_MasterVoteMunicipal,N$47)","v":0},{"$f":"-SUMIFS(Sheet1!S71_ASBudgetAmount,Sheet1!S71_A4Code,$AC:$AC,Sheet1!S71_ItemType,$AD:$AD,Sheet1!S71_MasterVoteMunicipal,O$47)","v":0},{"$f":"-SUMIFS(Sheet1!S71_ASBudgetAmount,Sheet1!S71_A4Code,$AC:$AC,Sheet1!S71_ItemType,$AD:$AD,Sheet1!S71_MasterVoteMunicipal,P$47)","v":0},{"$f":"-SUMIFS(Sheet1!S71_ASBudgetAmount,Sheet1!S71_A4Code,$AC:$AC,Sheet1!S71_ItemType,$AD:$AD,Sheet1!S71_MasterVoteMunicipal,Q$47)","v":0},0,null,null,null,null,null,null,null,null,null,null,"0400","IR"]
[{"$f":"'A4-FinPerf RE'!A8","v":"Service charges - sanitation revenue"},null,{"$f":"-SUMIFS(Sheet1!S71_ASBudgetAmount,Sheet1!S71_A4Code,$AC:$AC,Sheet1!S71_ItemType,$AD:$AD,Sheet1!S71_MasterVoteMunicipal,C$47)","v":0},{"$f":"-SUMIFS(Sheet1!S71_ASBudgetAmount,Sheet1!S71_A4Code,$AC:$AC,Sheet1!S71_ItemType,$AD:$AD,Sheet1!S71_MasterVoteMunicipal,D$47)","v":0},{"$f":"-SUMIFS(Sheet1!S71_ASBudgetAmount,Sheet1!S71_A4Code,$AC:$AC,Sheet1!S71_ItemType,$AD:$AD,Sheet1!S71_MasterVoteMunicipal,E$47)","v":0},{"$f":"-SUMIFS(Sheet1!S71_ASBudgetAmount,Sheet1!S71_A4Code,$AC:$AC,Sheet1!S71_ItemType,$AD:$AD,Sheet1!S71_MasterVoteMunicipal,F$47)","v":0},{"$f":"-SUMIFS(Sheet1!S71_ASBudgetAmount,Sheet1!S71_A4Code,$AC:$AC,Sheet1!S71_ItemType,$AD:$AD,Sheet1!S71_MasterVoteMunicipal,G$47)","v":0},{"$f":"-SUMIFS(Sheet1!S71_ASBudgetAmount,Sheet1!S71_A4Code,$AC:$AC,Sheet1!S71_ItemType,$AD:$AD,Sheet1!S71_MasterVoteMunicipal,H$47)","v":0},{"$f":"-SUMIFS(Sheet1!S71_ASBudgetAmount,Sheet1!S71_A4Code,$AC:$AC,Sheet1!S71_ItemType,$AD:$AD,Sheet1!S71_MasterVoteMunicipal,I$47)","v":0},{"$f":"-SUMIFS(Sheet1!S71_ASBudgetAmount,Sheet1!S71_A4Code,$AC:$AC,Sheet1!S71_ItemType,$AD:$AD,Sheet1!S71_MasterVoteMunicipal,J$47)","v":0},{"$f":"-SUMIFS(Sheet1!S71_ASBudgetAmount,Sheet1!S71_A4Code,$AC:$AC,Sheet1!S71_ItemType,$AD:$AD,Sheet1!S71_MasterVoteMunicipal,K$47)","v":0},{"$f":"-SUMIFS(Sheet1!S71_ASBudgetAmount,Sheet1!S71_A4Code,$AC:$AC,Sheet1!S71_ItemType,$AD:$AD,Sheet1!S71_MasterVoteMunicipal,L$47)","v":0},{"$f":"-SUMIFS(Sheet1!S71_ASBudgetAmount,Sheet1!S71_A4Code,$AC:$AC,Sheet1!S71_ItemType,$AD:$AD,Sheet1!S71_MasterVoteMunicipal,M$47)","v":0},{"$f":"-SUMIFS(Sheet1!S71_ASBudgetAmount,Sheet1!S71_A4Code,$AC:$AC,Sheet1!S71_ItemType,$AD:$AD,Sheet1!S71_MasterVoteMunicipal,N$47)","v":0},{"$f":"-SUMIFS(Sheet1!S71_ASBudgetAmount,Sheet1!S71_A4Code,$AC:$AC,Sheet1!S71_ItemType,$AD:$AD,Sheet1!S71_MasterVoteMunicipal,O$47)","v":0},{"$f":"-SUMIFS(Sheet1!S71_ASBudgetAmount,Sheet1!S71_A4Code,$AC:$AC,Sheet1!S71_ItemType,$AD:$AD,Sheet1!S71_MasterVoteMunicipal,P$47)","v":0},{"$f":"-SUMIFS(Sheet1!S71_ASBudgetAmount,Sheet1!S71_A4Code,$AC:$AC,Sheet1!S71_ItemType,$AD:$AD,Sheet1!S71_MasterVoteMunicipal,Q$47)","v":0},0,null,null,null,null,null,null,null,null,null,null,"0500","IR"]
[{"$f":"'A4-FinPerf RE'!A9","v":"Service charges - refuse revenue"},null,{"$f":"-SUMIFS(Sheet1!S71_ASBudgetAmount,Sheet1!S71_A4Code,$AC:$AC,Sheet1!S71_ItemType,$AD:$AD,Sheet1!S71_MasterVoteMunicipal,C$47)","v":0},{"$f":"-SUMIFS(Sheet1!S71_ASBudgetAmount,Sheet1!S71_A4Code,$AC:$AC,Sheet1!S71_ItemType,$AD:$AD,Sheet1!S71_MasterVoteMunicipal,D$47)","v":0},{"$f":"-SUMIFS(Sheet1!S71_ASBudgetAmount,Sheet1!S71_A4Code,$AC:$AC,Sheet1!S71_ItemType,$AD:$AD,Sheet1!S71_MasterVoteMunicipal,E$47)","v":0},{"$f":"-SUMIFS(Sheet1!S71_ASBudgetAmount,Sheet1!S71_A4Code,$AC:$AC,Sheet1!S71_ItemType,$AD:$AD,Sheet1!S71_MasterVoteMunicipal,F$47)","v":0},{"$f":"-SUMIFS(Sheet1!S71_ASBudgetAmount,Sheet1!S71_A4Code,$AC:$AC,Sheet1!S71_ItemType,$AD:$AD,Sheet1!S71_MasterVoteMunicipal,G$47)","v":0},{"$f":"-SUMIFS(Sheet1!S71_ASBudgetAmount,Sheet1!S71_A4Code,$AC:$AC,Sheet1!S71_ItemType,$AD:$AD,Sheet1!S71_MasterVoteMunicipal,H$47)","v":0},{"$f":"-SUMIFS(Sheet1!S71_ASBudgetAmount,Sheet1!S71_A4Code,$AC:$AC,Sheet1!S71_ItemType,$AD:$AD,Sheet1!S71_MasterVoteMunicipal,I$47)","v":0},{"$f":"-SUMIFS(Sheet1!S71_ASBudgetAmount,Sheet1!S71_A4Code,$AC:$AC,Sheet1!S71_ItemType,$AD:$AD,Sheet1!S71_MasterVoteMunicipal,J$47)","v":0},{"$f":"-SUMIFS(Sheet1!S71_ASBudgetAmount,Sheet1!S71_A4Code,$AC:$AC,Sheet1!S71_ItemType,$AD:$AD,Sheet1!S71_MasterVoteMunicipal,K$47)","v":0},{"$f":"-SUMIFS(Sheet1!S71_ASBudgetAmount,Sheet1!S71_A4Code,$AC:$AC,Sheet1!S71_ItemType,$AD:$AD,Sheet1!S71_MasterVoteMunicipal,L$47)","v":0},{"$f":"-SUMIFS(Sheet1!S71_ASBudgetAmount,Sheet1!S71_A4Code,$AC:$AC,Sheet1!S71_ItemType,$AD:$AD,Sheet1!S71_MasterVoteMunicipal,M$47)","v":0},{"$f":"-SUMIFS(Sheet1!S71_ASBudgetAmount,Sheet1!S71_A4Code,$AC:$AC,Sheet1!S71_ItemType,$AD:$AD,Sheet1!S71_MasterVoteMunicipal,N$47)","v":0},{"$f":"-SUMIFS(Sheet1!S71_ASBudgetAmount,Sheet1!S71_A4Code,$AC:$AC,Sheet1!S71_ItemType,$AD:$AD,Sheet1!S71_MasterVoteMunicipal,O$47)","v":0},{"$f":"-SUMIFS(Sheet1!S71_ASBudgetAmount,Sheet1!S71_A4Code,$AC:$AC,Sheet1!S71_ItemType,$AD:$AD,Sheet1!S71_MasterVoteMunicipal,P$47)","v":0},{"$f":"-SUMIFS(Sheet1!S71_ASBudgetAmount,Sheet1!S71_A4Code,$AC:$AC,Sheet1!S71_ItemType,$AD:$AD,Sheet1!S71_MasterVoteMunicipal,Q$47)","v":0},0,null,null,null,null,null,null,null,null,null,null,"0600","IR"]
[null,null,{"$f":"-SUMIFS(Sheet1!S71_ASBudgetAmount,Sheet1!S71_A4Code,$AC:$AC,Sheet1!S71_ItemType,$AD:$AD,Sheet1!S71_MasterVoteMunicipal,C$47)","v":0},{"$f":"-SUMIFS(Sheet1!S71_ASBudgetAmount,Sheet1!S71_A4Code,$AC:$AC,Sheet1!S71_ItemType,$AD:$AD,Sheet1!S71_MasterVoteMunicipal,D$47)","v":0},{"$f":"-SUMIFS(Sheet1!S71_ASBudgetAmount,Sheet1!S71_A4Code,$AC:$AC,Sheet1!S71_ItemType,$AD:$AD,Sheet1!S71_MasterVoteMunicipal,E$47)","v":0},{"$f":"-SUMIFS(Sheet1!S71_ASBudgetAmount,Sheet1!S71_A4Code,$AC:$AC,Sheet1!S71_ItemType,$AD:$AD,Sheet1!S71_MasterVoteMunicipal,F$47)","v":0},{"$f":"-SUMIFS(Sheet1!S71_ASBudgetAmount,Sheet1!S71_A4Code,$AC:$AC,Sheet1!S71_ItemType,$AD:$AD,Sheet1!S71_MasterVoteMunicipal,G$47)","v":0},{"$f":"-SUMIFS(Sheet1!S71_ASBudgetAmount,Sheet1!S71_A4Code,$AC:$AC,Sheet1!S71_ItemType,$AD:$AD,Sheet1!S71_MasterVoteMunicipal,H$47)","v":0},{"$f":"-SUMIFS(Sheet1!S71_ASBudgetAmount,Sheet1!S71_A4Code,$AC:$AC,Sheet1!S71_ItemType,$AD:$AD,Sheet1!S71_MasterVoteMunicipal,I$47)","v":0},{"$f":"-SUMIFS(Sheet1!S71_ASBudgetAmount,Sheet1!S71_A4Code,$AC:$AC,Sheet1!S71_ItemType,$AD:$AD,Sheet1!S71_MasterVoteMunicipal,J$47)","v":0},{"$f":"-SUMIFS(Sheet1!S71_ASBudgetAmount,Sheet1!S71_A4Code,$AC:$AC,Sheet1!S71_ItemType,$AD:$AD,Sheet1!S71_MasterVoteMunicipal,K$47)","v":0},{"$f":"-SUMIFS(Sheet1!S71_ASBudgetAmount,Sheet1!S71_A4Code,$AC:$AC,Sheet1!S71_ItemType,$AD:$AD,Sheet1!S71_MasterVoteMunicipal,L$47)","v":0},{"$f":"-SUMIFS(Sheet1!S71_ASBudgetAmount,Sheet1!S71_A4Code,$AC:$AC,Sheet1!S71_ItemType,$AD:$AD,Sheet1!S71_MasterVoteMunicipal,M$47)","v":0},{"$f":"-SUMIFS(Sheet1!S71_ASBudgetAmount,Sheet1!S71_A4Code,$AC:$AC,Sheet1!S71_ItemType,$AD:$AD,Sheet1!S71_MasterVoteMunicipal,N$47)","v":0},{"$f":"-SUMIFS(Sheet1!S71_ASBudgetAmount,Sheet1!S71_A4Code,$AC:$AC,Sheet1!S71_ItemType,$AD:$AD,Sheet1!S71_MasterVoteMunicipal,O$47)","v":0},{"$f":"-SUMIFS(Sheet1!S71_ASBudgetAmount,Sheet1!S71_A4Code,$AC:$AC,Sheet1!S71_ItemType,$AD:$AD,Sheet1!S71_MasterVoteMunicipal,P$47)","v":0},{"$f":"-SUMIFS(Sheet1!S71_ASBudgetAmount,Sheet1!S71_A4Code,$AC:$AC,Sheet1!S71_ItemType,$AD:$AD,Sheet1!S71_MasterVoteMunicipal,Q$47)","v":0},null,null,null,null,null,null,null,null,null,null,null,"030002","IR"]
[{"$f":"'A4-FinPerf RE'!A11","v":"Rental of facilities and equipment"},null,{"$f":"-SUMIFS(Sheet1!S71_ASBudgetAmount,Sheet1!S71_A4Code,$AC:$AC,Sheet1!S71_ItemType,$AD:$AD,Sheet1!S71_MasterVoteMunicipal,C$47)","v":0},{"$f":"-SUMIFS(Sheet1!S71_ASBudgetAmount,Sheet1!S71_A4Code,$AC:$AC,Sheet1!S71_ItemType,$AD:$AD,Sheet1!S71_MasterVoteMunicipal,D$47)","v":939183},{"$f":"-SUMIFS(Sheet1!S71_ASBudgetAmount,Sheet1!S71_A4Code,$AC:$AC,Sheet1!S71_ItemType,$AD:$AD,Sheet1!S71_MasterVoteMunicipal,E$47)","v":0},{"$f":"-SUMIFS(Sheet1!S71_ASBudgetAmount,Sheet1!S71_A4Code,$AC:$AC,Sheet1!S71_ItemType,$AD:$AD,Sheet1!S71_MasterVoteMunicipal,F$47)","v":0},{"$f":"-SUMIFS(Sheet1!S71_ASBudgetAmount,Sheet1!S71_A4Code,$AC:$AC,Sheet1!S71_ItemType,$AD:$AD,Sheet1!S71_MasterVoteMunicipal,G$47)","v":0},{"$f":"-SUMIFS(Sheet1!S71_ASBudgetAmount,Sheet1!S71_A4Code,$AC:$AC,Sheet1!S71_ItemType,$AD:$AD,Sheet1!S71_MasterVoteMunicipal,H$47)","v":0},{"$f":"-SUMIFS(Sheet1!S71_ASBudgetAmount,Sheet1!S71_A4Code,$AC:$AC,Sheet1!S71_ItemType,$AD:$AD,Sheet1!S71_MasterVoteMunicipal,I$47)","v":0},{"$f":"-SUMIFS(Sheet1!S71_ASBudgetAmount,Sheet1!S71_A4Code,$AC:$AC,Sheet1!S71_ItemType,$AD:$AD,Sheet1!S71_MasterVoteMunicipal,J$47)","v":0},{"$f":"-SUMIFS(Sheet1!S71_ASBudgetAmount,Sheet1!S71_A4Code,$AC:$AC,Sheet1!S71_ItemType,$AD:$AD,Sheet1!S71_MasterVoteMunicipal,K$47)","v":0},{"$f":"-SUMIFS(Sheet1!S71_ASBudgetAmount,Sheet1!S71_A4Code,$AC:$AC,Sheet1!S71_ItemType,$AD:$AD,Sheet1!S71_MasterVoteMunicipal,L$47)","v":0},{"$f":"-SUMIFS(Sheet1!S71_ASBudgetAmount,Sheet1!S71_A4Code,$AC:$AC,Sheet1!S71_ItemType,$AD:$AD,Sheet1!S71_MasterVoteMunicipal,M$47)","v":0},{"$f":"-SUMIFS(Sheet1!S71_ASBudgetAmount,Sheet1!S71_A4Code,$AC:$AC,Sheet1!S71_ItemType,$AD:$AD,Sheet1!S71_MasterVoteMunicipal,N$47)","v":0},{"$f":"-SUMIFS(Sheet1!S71_ASBudgetAmount,Sheet1!S71_A4Code,$AC:$AC,Sheet1!S71_ItemType,$AD:$AD,Sheet1!S71_MasterVoteMunicipal,O$47)","v":0},{"$f":"-SUMIFS(Sheet1!S71_ASBudgetAmount,Sheet1!S71_A4Code,$AC:$AC,Sheet1!S71_ItemType,$AD:$AD,Sheet1!S71_MasterVoteMunicipal,P$47)","v":0},{"$f":"-SUMIFS(Sheet1!S71_ASBudgetAmount,Sheet1!S71_A4Code,$AC:$AC,Sheet1!S71_ItemType,$AD:$AD,Sheet1!S71_MasterVoteMunicipal,Q$47)","v":0},939183,null,null,null,null,null,null,null,null,null,null,"0800","IR"]
[{"$f":"'A4-FinPerf RE'!A12","v":"Interest earned - external investments"},null,{"$f":"-SUMIFS(Sheet1!S71_ASBudgetAmount,Sheet1!S71_A4Code,$AC:$AC,Sheet1!S71_ItemType,$AD:$AD,Sheet1!S71_MasterVoteMunicipal,C$47)","v":0},{"$f":"-SUMIFS(Sheet1!S71_ASBudgetAmount,Sheet1!S71_A4Code,$AC:$AC,Sheet1!S71_ItemType,$AD:$AD,Sheet1!S71_MasterVoteMunicipal,D$47)","v":620000},{"$f":"-SUMIFS(Sheet1!S71_ASBudgetAmount,Sheet1!S71_A4Code,$AC:$AC,Sheet1!S71_ItemType,$AD:$AD,Sheet1!S71_MasterVoteMunicipal,E$47)","v":0},{"$f":"-SUMIFS(Sheet1!S71_ASBudgetAmount,Sheet1!S71_A4Code,$AC:$AC,Sheet1!S71_ItemType,$AD:$AD,Sheet1!S71_MasterVoteMunicipal,F$47)","v":0},{"$f":"-SUMIFS(Sheet1!S71_ASBudgetAmount,Sheet1!S71_A4Code,$AC:$AC,Sheet1!S71_ItemType,$AD:$AD,Sheet1!S71_MasterVoteMunicipal,G$47)","v":0},{"$f":"-SUMIFS(Sheet1!S71_ASBudgetAmount,Sheet1!S71_A4Code,$AC:$AC,Sheet1!S71_ItemType,$AD:$AD,Sheet1!S71_MasterVoteMunicipal,H$47)","v":0},{"$f":"-SUMIFS(Sheet1!S71_ASBudgetAmount,Sheet1!S71_A4Code,$AC:$AC,Sheet1!S71_ItemType,$AD:$AD,Sheet1!S71_MasterVoteMunicipal,I$47)","v":0},{"$f":"-SUMIFS(Sheet1!S71_ASBudgetAmount,Sheet1!S71_A4Code,$AC:$AC,Sheet1!S71_ItemType,$AD:$AD,Sheet1!S71_MasterVoteMunicipal,J$47)","v":0},{"$f":"-SUMIFS(Sheet1!S71_ASBudgetAmount,Sheet1!S71_A4Code,$AC:$AC,Sheet1!S71_ItemType,$AD:$AD,Sheet1!S71_MasterVoteMunicipal,K$47)","v":0},{"$f":"-SUMIFS(Sheet1!S71_ASBudgetAmount,Sheet1!S71_A4Code,$AC:$AC,Sheet1!S71_ItemType,$AD:$AD,Sheet1!S71_MasterVoteMunicipal,L$47)","v":0},{"$f":"-SUMIFS(Sheet1!S71_ASBudgetAmount,Sheet1!S71_A4Code,$AC:$AC,Sheet1!S71_ItemType,$AD:$AD,Sheet1!S71_MasterVoteMunicipal,M$47)","v":0},{"$f":"-SUMIFS(Sheet1!S71_ASBudgetAmount,Sheet1!S71_A4Code,$AC:$AC,Sheet1!S71_ItemType,$AD:$AD,Sheet1!S71_MasterVoteMunicipal,N$47)","v":0},{"$f":"-SUMIFS(Sheet1!S71_ASBudgetAmount,Sheet1!S71_A4Code,$AC:$AC,Sheet1!S71_ItemType,$AD:$AD,Sheet1!S71_MasterVoteMunicipal,O$47)","v":0},{"$f":"-SUMIFS(Sheet1!S71_ASBudgetAmount,Sheet1!S71_A4Code,$AC:$AC,Sheet1!S71_ItemType,$AD:$AD,Sheet1!S71_MasterVoteMunicipal,P$47)","v":0},{"$f":"-SUMIFS(Sheet1!S71_ASBudgetAmount,Sheet1!S71_A4Code,$AC:$AC,Sheet1!S71_ItemType,$AD:$AD,Sheet1!S71_MasterVoteMunicipal,Q$47)","v":0},620000,null,null,null,null,null,null,null,null,null,null,"0900","IR"]
[{"$f":"'A4-FinPerf RE'!A13","v":"Interest earned - outstanding debtors"},null,{"$f":"-SUMIFS(Sheet1!S71_ASBudgetAmount,Sheet1!S71_A4Code,$AC:$AC,Sheet1!S71_ItemType,$AD:$AD,Sheet1!S71_MasterVoteMunicipal,C$47)","v":0},{"$f":"-SUMIFS(Sheet1!S71_ASBudgetAmount,Sheet1!S71_A4Code,$AC:$AC,Sheet1!S71_ItemType,$AD:$AD,Sheet1!S71_MasterVoteMunicipal,D$47)","v":0},{"$f":"-SUMIFS(Sheet1!S71_ASBudgetAmount,Sheet1!S71_A4Code,$AC:$AC,Sheet1!S71_ItemType,$AD:$AD,Sheet1!S71_MasterVoteMunicipal,E$47)","v":0},{"$f":"-SUMIFS(Sheet1!S71_ASBudgetAmount,Sheet1!S71_A4Code,$AC:$AC,Sheet1!S71_ItemType,$AD:$AD,Sheet1!S71_MasterVoteMunicipal,F$47)","v":0},{"$f":"-SUMIFS(Sheet1!S71_ASBudgetAmount,Sheet1!S71_A4Code,$AC:$AC,Sheet1!S71_ItemType,$AD:$AD,Sheet1!S71_MasterVoteMunicipal,G$47)","v":0},{"$f":"-SUMIFS(Sheet1!S71_ASBudgetAmount,Sheet1!S71_A4Code,$AC:$AC,Sheet1!S71_ItemType,$AD:$AD,Sheet1!S71_MasterVoteMunicipal,H$47)","v":0},{"$f":"-SUMIFS(Sheet1!S71_ASBudgetAmount,Sheet1!S71_A4Code,$AC:$AC,Sheet1!S71_ItemType,$AD:$AD,Sheet1!S71_MasterVoteMunicipal,I$47)","v":0},{"$f":"-SUMIFS(Sheet1!S71_ASBudgetAmount,Sheet1!S71_A4Code,$AC:$AC,Sheet1!S71_ItemType,$AD:$AD,Sheet1!S71_MasterVoteMunicipal,J$47)","v":0},{"$f":"-SUMIFS(Sheet1!S71_ASBudgetAmount,Sheet1!S71_A4Code,$AC:$AC,Sheet1!S71_ItemType,$AD:$AD,Sheet1!S71_MasterVoteMunicipal,K$47)","v":0},{"$f":"-SUMIFS(Sheet1!S71_ASBudgetAmount,Sheet1!S71_A4Code,$AC:$AC,Sheet1!S71_ItemType,$AD:$AD,Sheet1!S71_MasterVoteMunicipal,L$47)","v":0},{"$f":"-SUMIFS(Sheet1!S71_ASBudgetAmount,Sheet1!S71_A4Code,$AC:$AC,Sheet1!S71_ItemType,$AD:$AD,Sheet1!S71_MasterVoteMunicipal,M$47)","v":0},{"$f":"-SUMIFS(Sheet1!S71_ASBudgetAmount,Sheet1!S71_A4Code,$AC:$AC,Sheet1!S71_ItemType,$AD:$AD,Sheet1!S71_MasterVoteMunicipal,N$47)","v":0},{"$f":"-SUMIFS(Sheet1!S71_ASBudgetAmount,Sheet1!S71_A4Code,$AC:$AC,Sheet1!S71_ItemType,$AD:$AD,Sheet1!S71_MasterVoteMunicipal,O$47)","v":0},{"$f":"-SUMIFS(Sheet1!S71_ASBudgetAmount,Sheet1!S71_A4Code,$AC:$AC,Sheet1!S71_ItemType,$AD:$AD,Sheet1!S71_MasterVoteMunicipal,P$47)","v":0},{"$f":"-SUMIFS(Sheet1!S71_ASBudgetAmount,Sheet1!S71_A4Code,$AC:$AC,Sheet1!S71_ItemType,$AD:$AD,Sheet1!S71_MasterVoteMunicipal,Q$47)","v":0},0,null,null,null,null,null,null,null,null,null,null,"1000","IR"]
[{"$f":"'A4-FinPerf RE'!A14","v":"Dividends received"},null,{"$f":"-SUMIFS(Sheet1!S71_ASBudgetAmount,Sheet1!S71_A4Code,$AC:$AC,Sheet1!S71_ItemType,$AD:$AD,Sheet1!S71_MasterVoteMunicipal,C$47)","v":0},{"$f":"-SUMIFS(Sheet1!S71_ASBudgetAmount,Sheet1!S71_A4Code,$AC:$AC,Sheet1!S71_ItemType,$AD:$AD,Sheet1!S71_MasterVoteMunicipal,D$47)","v":0},{"$f":"-SUMIFS(Sheet1!S71_ASBudgetAmount,Sheet1!S71_A4Code,$AC:$AC,Sheet1!S71_ItemType,$AD:$AD,Sheet1!S71_MasterVoteMunicipal,E$47)","v":0},{"$f":"-SUMIFS(Sheet1!S71_ASBudgetAmount,Sheet1!S71_A4Code,$AC:$AC,Sheet1!S71_ItemType,$AD:$AD,Sheet1!S71_MasterVoteMunicipal,F$47)","v":0},{"$f":"-SUMIFS(Sheet1!S71_ASBudgetAmount,Sheet1!S71_A4Code,$AC:$AC,Sheet1!S71_ItemType,$AD:$AD,Sheet1!S71_MasterVoteMunicipal,G$47)","v":0},{"$f":"-SUMIFS(Sheet1!S71_ASBudgetAmount,Sheet1!S71_A4Code,$AC:$AC,Sheet1!S71_ItemType,$AD:$AD,Sheet1!S71_MasterVoteMunicipal,H$47)","v":0},{"$f":"-SUMIFS(Sheet1!S71_ASBudgetAmount,Sheet1!S71_A4Code,$AC:$AC,Sheet1!S71_ItemType,$AD:$AD,Sheet1!S71_MasterVoteMunicipal,I$47)","v":0},{"$f":"-SUMIFS(Sheet1!S71_ASBudgetAmount,Sheet1!S71_A4Code,$AC:$AC,Sheet1!S71_ItemType,$AD:$AD,Sheet1!S71_MasterVoteMunicipal,J$47)","v":0},{"$f":"-SUMIFS(Sheet1!S71_ASBudgetAmount,Sheet1!S71_A4Code,$AC:$AC,Sheet1!S71_ItemType,$AD:$AD,Sheet1!S71_MasterVoteMunicipal,K$47)","v":0},{"$f":"-SUMIFS(Sheet1!S71_ASBudgetAmount,Sheet1!S71_A4Code,$AC:$AC,Sheet1!S71_ItemType,$AD:$AD,Sheet1!S71_MasterVoteMunicipal,L$47)","v":0},{"$f":"-SUMIFS(Sheet1!S71_ASBudgetAmount,Sheet1!S71_A4Code,$AC:$AC,Sheet1!S71_ItemType,$AD:$AD,Sheet1!S71_MasterVoteMunicipal,M$47)","v":0},{"$f":"-SUMIFS(Sheet1!S71_ASBudgetAmount,Sheet1!S71_A4Code,$AC:$AC,Sheet1!S71_ItemType,$AD:$AD,Sheet1!S71_MasterVoteMunicipal,N$47)","v":0},{"$f":"-SUMIFS(Sheet1!S71_ASBudgetAmount,Sheet1!S71_A4Code,$AC:$AC,Sheet1!S71_ItemType,$AD:$AD,Sheet1!S71_MasterVoteMunicipal,O$47)","v":0},{"$f":"-SUMIFS(Sheet1!S71_ASBudgetAmount,Sheet1!S71_A4Code,$AC:$AC,Sheet1!S71_ItemType,$AD:$AD,Sheet1!S71_MasterVoteMunicipal,P$47)","v":0},{"$f":"-SUMIFS(Sheet1!S71_ASBudgetAmount,Sheet1!S71_A4Code,$AC:$AC,Sheet1!S71_ItemType,$AD:$AD,Sheet1!S71_MasterVoteMunicipal,Q$47)","v":0},0,null,null,null,null,null,null,null,null,null,null,"1100","IR"]
[{"$f":"'A4-FinPerf RE'!A15","v":"Fines, penalties and forfeits"},null,{"$f":"-SUMIFS(Sheet1!S71_ASBudgetAmount,Sheet1!S71_A4Code,$AC:$AC,Sheet1!S71_ItemType,$AD:$AD,Sheet1!S71_MasterVoteMunicipal,C$47)","v":0},{"$f":"-SUMIFS(Sheet1!S71_ASBudgetAmount,Sheet1!S71_A4Code,$AC:$AC,Sheet1!S71_ItemType,$AD:$AD,Sheet1!S71_MasterVoteMunicipal,D$47)","v":0},{"$f":"-SUMIFS(Sheet1!S71_ASBudgetAmount,Sheet1!S71_A4Code,$AC:$AC,Sheet1!S71_ItemType,$AD:$AD,Sheet1!S71_MasterVoteMunicipal,E$47)","v":0},{"$f":"-SUMIFS(Sheet1!S71_ASBudgetAmount,Sheet1!S71_A4Code,$AC:$AC,Sheet1!S71_ItemType,$AD:$AD,Sheet1!S71_MasterVoteMunicipal,F$47)","v":0},{"$f":"-SUMIFS(Sheet1!S71_ASBudgetAmount,Sheet1!S71_A4Code,$AC:$AC,Sheet1!S71_ItemType,$AD:$AD,Sheet1!S71_MasterVoteMunicipal,G$47)","v":0},{"$f":"-SUMIFS(Sheet1!S71_ASBudgetAmount,Sheet1!S71_A4Code,$AC:$AC,Sheet1!S71_ItemType,$AD:$AD,Sheet1!S71_MasterVoteMunicipal,H$47)","v":0},{"$f":"-SUMIFS(Sheet1!S71_ASBudgetAmount,Sheet1!S71_A4Code,$AC:$AC,Sheet1!S71_ItemType,$AD:$AD,Sheet1!S71_MasterVoteMunicipal,I$47)","v":0},{"$f":"-SUMIFS(Sheet1!S71_ASBudgetAmount,Sheet1!S71_A4Code,$AC:$AC,Sheet1!S71_ItemType,$AD:$AD,Sheet1!S71_MasterVoteMunicipal,J$47)","v":0},{"$f":"-SUMIFS(Sheet1!S71_ASBudgetAmount,Sheet1!S71_A4Code,$AC:$AC,Sheet1!S71_ItemType,$AD:$AD,Sheet1!S71_MasterVoteMunicipal,K$47)","v":0},{"$f":"-SUMIFS(Sheet1!S71_ASBudgetAmount,Sheet1!S71_A4Code,$AC:$AC,Sheet1!S71_ItemType,$AD:$AD,Sheet1!S71_MasterVoteMunicipal,L$47)","v":0},{"$f":"-SUMIFS(Sheet1!S71_ASBudgetAmount,Sheet1!S71_A4Code,$AC:$AC,Sheet1!S71_ItemType,$AD:$AD,Sheet1!S71_MasterVoteMunicipal,M$47)","v":0},{"$f":"-SUMIFS(Sheet1!S71_ASBudgetAmount,Sheet1!S71_A4Code,$AC:$AC,Sheet1!S71_ItemType,$AD:$AD,Sheet1!S71_MasterVoteMunicipal,N$47)","v":0},{"$f":"-SUMIFS(Sheet1!S71_ASBudgetAmount,Sheet1!S71_A4Code,$AC:$AC,Sheet1!S71_ItemType,$AD:$AD,Sheet1!S71_MasterVoteMunicipal,O$47)","v":0},{"$f":"-SUMIFS(Sheet1!S71_ASBudgetAmount,Sheet1!S71_A4Code,$AC:$AC,Sheet1!S71_ItemType,$AD:$AD,Sheet1!S71_MasterVoteMunicipal,P$47)","v":0},{"$f":"-SUMIFS(Sheet1!S71_ASBudgetAmount,Sheet1!S71_A4Code,$AC:$AC,Sheet1!S71_ItemType,$AD:$AD,Sheet1!S71_MasterVoteMunicipal,Q$47)","v":0},0,null,null,null,null,null,null,null,null,null,null,"1200","IR"]
[{"$f":"'A4-FinPerf RE'!A16","v":"Licences and permits"},null,{"$f":"-SUMIFS(Sheet1!S71_ASBudgetAmount,Sheet1!S71_A4Code,$AC:$AC,Sheet1!S71_ItemType,$AD:$AD,Sheet1!S71_MasterVoteMunicipal,C$47)","v":0},{"$f":"-SUMIFS(Sheet1!S71_ASBudgetAmount,Sheet1!S71_A4Code,$AC:$AC,Sheet1!S71_ItemType,$AD:$AD,Sheet1!S71_MasterVoteMunicipal,D$47)","v":20000},{"$f":"-SUMIFS(Sheet1!S71_ASBudgetAmount,Sheet1!S71_A4Code,$AC:$AC,Sheet1!S71_ItemType,$AD:$AD,Sheet1!S71_MasterVoteMunicipal,E$47)","v":0},{"$f":"-SUMIFS(Sheet1!S71_ASBudgetAmount,Sheet1!S71_A4Code,$AC:$AC,Sheet1!S71_ItemType,$AD:$AD,Sheet1!S71_MasterVoteMunicipal,F$47)","v":0},{"$f":"-SUMIFS(Sheet1!S71_ASBudgetAmount,Sheet1!S71_A4Code,$AC:$AC,Sheet1!S71_ItemType,$AD:$AD,Sheet1!S71_MasterVoteMunicipal,G$47)","v":0},{"$f":"-SUMIFS(Sheet1!S71_ASBudgetAmount,Sheet1!S71_A4Code,$AC:$AC,Sheet1!S71_ItemType,$AD:$AD,Sheet1!S71_MasterVoteMunicipal,H$47)","v":0},{"$f":"-SUMIFS(Sheet1!S71_ASBudgetAmount,Sheet1!S71_A4Code,$AC:$AC,Sheet1!S71_ItemType,$AD:$AD,Sheet1!S71_MasterVoteMunicipal,I$47)","v":0},{"$f":"-SUMIFS(Sheet1!S71_ASBudgetAmount,Sheet1!S71_A4Code,$AC:$AC,Sheet1!S71_ItemType,$AD:$AD,Sheet1!S71_MasterVoteMunicipal,J$47)","v":0},{"$f":"-SUMIFS(Sheet1!S71_ASBudgetAmount,Sheet1!S71_A4Code,$AC:$AC,Sheet1!S71_ItemType,$AD:$AD,Sheet1!S71_MasterVoteMunicipal,K$47)","v":0},{"$f":"-SUMIFS(Sheet1!S71_ASBudgetAmount,Sheet1!S71_A4Code,$AC:$AC,Sheet1!S71_ItemType,$AD:$AD,Sheet1!S71_MasterVoteMunicipal,L$47)","v":0},{"$f":"-SUMIFS(Sheet1!S71_ASBudgetAmount,Sheet1!S71_A4Code,$AC:$AC,Sheet1!S71_ItemType,$AD:$AD,Sheet1!S71_MasterVoteMunicipal,M$47)","v":0},{"$f":"-SUMIFS(Sheet1!S71_ASBudgetAmount,Sheet1!S71_A4Code,$AC:$AC,Sheet1!S71_ItemType,$AD:$AD,Sheet1!S71_MasterVoteMunicipal,N$47)","v":0},{"$f":"-SUMIFS(Sheet1!S71_ASBudgetAmount,Sheet1!S71_A4Code,$AC:$AC,Sheet1!S71_ItemType,$AD:$AD,Sheet1!S71_MasterVoteMunicipal,O$47)","v":0},{"$f":"-SUMIFS(Sheet1!S71_ASBudgetAmount,Sheet1!S71_A4Code,$AC:$AC,Sheet1!S71_ItemType,$AD:$AD,Sheet1!S71_MasterVoteMunicipal,P$47)","v":0},{"$f":"-SUMIFS(Sheet1!S71_ASBudgetAmount,Sheet1!S71_A4Code,$AC:$AC,Sheet1!S71_ItemType,$AD:$AD,Sheet1!S71_MasterVoteMunicipal,Q$47)","v":0},20000,null,null,null,null,null,null,null,null,null,null,"1300","IR"]
[{"$f":"'A4-FinPerf RE'!A17","v":"Agency services"},null,{"$f":"-SUMIFS(Sheet1!S71_ASBudgetAmount,Sheet1!S71_A4Code,$AC:$AC,Sheet1!S71_ItemType,$AD:$AD,Sheet1!S71_MasterVoteMunicipal,C$47)","v":0},{"$f":"-SUMIFS(Sheet1!S71_ASBudgetAmount,Sheet1!S71_A4Code,$AC:$AC,Sheet1!S71_ItemType,$AD:$AD,Sheet1!S71_MasterVoteMunicipal,D$47)","v":0},{"$f":"-SUMIFS(Sheet1!S71_ASBudgetAmount,Sheet1!S71_A4Code,$AC:$AC,Sheet1!S71_ItemType,$AD:$AD,Sheet1!S71_MasterVoteMunicipal,E$47)","v":0},{"$f":"-SUMIFS(Sheet1!S71_ASBudgetAmount,Sheet1!S71_A4Code,$AC:$AC,Sheet1!S71_ItemType,$AD:$AD,Sheet1!S71_MasterVoteMunicipal,F$47)","v":0},{"$f":"-SUMIFS(Sheet1!S71_ASBudgetAmount,Sheet1!S71_A4Code,$AC:$AC,Sheet1!S71_ItemType,$AD:$AD,Sheet1!S71_MasterVoteMunicipal,G$47)","v":0},{"$f":"-SUMIFS(Sheet1!S71_ASBudgetAmount,Sheet1!S71_A4Code,$AC:$AC,Sheet1!S71_ItemType,$AD:$AD,Sheet1!S71_MasterVoteMunicipal,H$47)","v":0},{"$f":"-SUMIFS(Sheet1!S71_ASBudgetAmount,Sheet1!S71_A4Code,$AC:$AC,Sheet1!S71_ItemType,$AD:$AD,Sheet1!S71_MasterVoteMunicipal,I$47)","v":0},{"$f":"-SUMIFS(Sheet1!S71_ASBudgetAmount,Sheet1!S71_A4Code,$AC:$AC,Sheet1!S71_ItemType,$AD:$AD,Sheet1!S71_MasterVoteMunicipal,J$47)","v":0},{"$f":"-SUMIFS(Sheet1!S71_ASBudgetAmount,Sheet1!S71_A4Code,$AC:$AC,Sheet1!S71_ItemType,$AD:$AD,Sheet1!S71_MasterVoteMunicipal,K$47)","v":0},{"$f":"-SUMIFS(Sheet1!S71_ASBudgetAmount,Sheet1!S71_A4Code,$AC:$AC,Sheet1!S71_ItemType,$AD:$AD,Sheet1!S71_MasterVoteMunicipal,L$47)","v":0},{"$f":"-SUMIFS(Sheet1!S71_ASBudgetAmount,Sheet1!S71_A4Code,$AC:$AC,Sheet1!S71_ItemType,$AD:$AD,Sheet1!S71_MasterVoteMunicipal,M$47)","v":0},{"$f":"-SUMIFS(Sheet1!S71_ASBudgetAmount,Sheet1!S71_A4Code,$AC:$AC,Sheet1!S71_ItemType,$AD:$AD,Sheet1!S71_MasterVoteMunicipal,N$47)","v":0},{"$f":"-SUMIFS(Sheet1!S71_ASBudgetAmount,Sheet1!S71_A4Code,$AC:$AC,Sheet1!S71_ItemType,$AD:$AD,Sheet1!S71_MasterVoteMunicipal,O$47)","v":0},{"$f":"-SUMIFS(Sheet1!S71_ASBudgetAmount,Sheet1!S71_A4Code,$AC:$AC,Sheet1!S71_ItemType,$AD:$AD,Sheet1!S71_MasterVoteMunicipal,P$47)","v":0},{"$f":"-SUMIFS(Sheet1!S71_ASBudgetAmount,Sheet1!S71_A4Code,$AC:$AC,Sheet1!S71_ItemType,$AD:$AD,Sheet1!S71_MasterVoteMunicipal,Q$47)","v":0},0,null,null,null,null,null,null,null,null,null,null,"1400","IR"]
[{"$f":"'A4-FinPerf RE'!A19","v":"Other revenue"},null,{"$f":"-SUMIFS(Sheet1!S71_ASBudgetAmount,Sheet1!S71_A4Code,$AC:$AC,Sheet1!S71_ItemType,$AD:$AD,Sheet1!S71_MasterVoteMunicipal,C$47)","v":13082807},{"$f":"-SUMIFS(Sheet1!S71_ASBudgetAmount,Sheet1!S71_A4Code,$AC:$AC,Sheet1!S71_ItemType,$AD:$AD,Sheet1!S71_MasterVoteMunicipal,D$47)","v":33836655},{"$f":"-SUMIFS(Sheet1!S71_ASBudgetAmount,Sheet1!S71_A4Code,$AC:$AC,Sheet1!S71_ItemType,$AD:$AD,Sheet1!S71_MasterVoteMunicipal,E$47)","v":14912538},{"$f":"-SUMIFS(Sheet1!S71_ASBudgetAmount,Sheet1!S71_A4Code,$AC:$AC,Sheet1!S71_ItemType,$AD:$AD,Sheet1!S71_MasterVoteMunicipal,F$47)","v":0},{"$f":"-SUMIFS(Sheet1!S71_ASBudgetAmount,Sheet1!S71_A4Code,$AC:$AC,Sheet1!S71_ItemType,$AD:$AD,Sheet1!S71_MasterVoteMunicipal,G$47)","v":0},{"$f":"-SUMIFS(Sheet1!S71_ASBudgetAmount,Sheet1!S71_A4Code,$AC:$AC,Sheet1!S71_ItemType,$AD:$AD,Sheet1!S71_MasterVoteMunicipal,H$47)","v":0},{"$f":"-SUMIFS(Sheet1!S71_ASBudgetAmount,Sheet1!S71_A4Code,$AC:$AC,Sheet1!S71_ItemType,$AD:$AD,Sheet1!S71_MasterVoteMunicipal,I$47)","v":0},{"$f":"-SUMIFS(Sheet1!S71_ASBudgetAmount,Sheet1!S71_A4Code,$AC:$AC,Sheet1!S71_ItemType,$AD:$AD,Sheet1!S71_MasterVoteMunicipal,J$47)","v":0},{"$f":"-SUMIFS(Sheet1!S71_ASBudgetAmount,Sheet1!S71_A4Code,$AC:$AC,Sheet1!S71_ItemType,$AD:$AD,Sheet1!S71_MasterVoteMunicipal,K$47)","v":0},{"$f":"-SUMIFS(Sheet1!S71_ASBudgetAmount,Sheet1!S71_A4Code,$AC:$AC,Sheet1!S71_ItemType,$AD:$AD,Sheet1!S71_MasterVoteMunicipal,L$47)","v":0},{"$f":"-SUMIFS(Sheet1!S71_ASBudgetAmount,Sheet1!S71_A4Code,$AC:$AC,Sheet1!S71_ItemType,$AD:$AD,Sheet1!S71_MasterVoteMunicipal,M$47)","v":0},{"$f":"-SUMIFS(Sheet1!S71_ASBudgetAmount,Sheet1!S71_A4Code,$AC:$AC,Sheet1!S71_ItemType,$AD:$AD,Sheet1!S71_MasterVoteMunicipal,N$47)","v":0},{"$f":"-SUMIFS(Sheet1!S71_ASBudgetAmount,Sheet1!S71_A4Code,$AC:$AC,Sheet1!S71_ItemType,$AD:$AD,Sheet1!S71_MasterVoteMunicipal,O$47)","v":0},{"$f":"-SUMIFS(Sheet1!S71_ASBudgetAmount,Sheet1!S71_A4Code,$AC:$AC,Sheet1!S71_ItemType,$AD:$AD,Sheet1!S71_MasterVoteMunicipal,P$47)","v":0},{"$f":"-SUMIFS(Sheet1!S71_ASBudgetAmount,Sheet1!S71_A4Code,$AC:$AC,Sheet1!S71_ItemType,$AD:$AD,Sheet1!S71_MasterVoteMunicipal,Q$47)","v":0},61832000,null,null,null,null,null,null,null,null,null,null,"1500","IR"]
[{"$f":"'A4-FinPerf RE'!A18","v":"Transfers and subsidies"},null,{"$f":"-SUMIFS(Sheet1!S71_ASBudgetAmount,Sheet1!S71_A4Code,$AC:$AC,Sheet1!S71_ItemType,$AD:$AD,Sheet1!S71_MasterVoteMunicipal,C$47)","v":0},{"$f":"-SUMIFS(Sheet1!S71_ASBudgetAmount,Sheet1!S71_A4Code,$AC:$AC,Sheet1!S71_ItemType,$AD:$AD,Sheet1!S71_MasterVoteMunicipal,D$47)","v":60000},{"$f":"-SUMIFS(Sheet1!S71_ASBudgetAmount,Sheet1!S71_A4Code,$AC:$AC,Sheet1!S71_ItemType,$AD:$AD,Sheet1!S71_MasterVoteMunicipal,E$47)","v":0},{"$f":"-SUMIFS(Sheet1!S71_ASBudgetAmount,Sheet1!S71_A4Code,$AC:$AC,Sheet1!S71_ItemType,$AD:$AD,Sheet1!S71_MasterVoteMunicipal,F$47)","v":0},{"$f":"-SUMIFS(Sheet1!S71_ASBudgetAmount,Sheet1!S71_A4Code,$AC:$AC,Sheet1!S71_ItemType,$AD:$AD,Sheet1!S71_MasterVoteMunicipal,G$47)","v":0},{"$f":"-SUMIFS(Sheet1!S71_ASBudgetAmount,Sheet1!S71_A4Code,$AC:$AC,Sheet1!S71_ItemType,$AD:$AD,Sheet1!S71_MasterVoteMunicipal,H$47)","v":0},{"$f":"-SUMIFS(Sheet1!S71_ASBudgetAmount,Sheet1!S71_A4Code,$AC:$AC,Sheet1!S71_ItemType,$AD:$AD,Sheet1!S71_MasterVoteMunicipal,I$47)","v":0},{"$f":"-SUMIFS(Sheet1!S71_ASBudgetAmount,Sheet1!S71_A4Code,$AC:$AC,Sheet1!S71_ItemType,$AD:$AD,Sheet1!S71_MasterVoteMunicipal,J$47)","v":0},{"$f":"-SUMIFS(Sheet1!S71_ASBudgetAmount,Sheet1!S71_A4Code,$AC:$AC,Sheet1!S71_ItemType,$AD:$AD,Sheet1!S71_MasterVoteMunicipal,K$47)","v":0},{"$f":"-SUMIFS(Sheet1!S71_ASBudgetAmount,Sheet1!S71_A4Code,$AC:$AC,Sheet1!S71_ItemType,$AD:$AD,Sheet1!S71_MasterVoteMunicipal,L$47)","v":0},{"$f":"-SUMIFS(Sheet1!S71_ASBudgetAmount,Sheet1!S71_A4Code,$AC:$AC,Sheet1!S71_ItemType,$AD:$AD,Sheet1!S71_MasterVoteMunicipal,M$47)","v":0},{"$f":"-SUMIFS(Sheet1!S71_ASBudgetAmount,Sheet1!S71_A4Code,$AC:$AC,Sheet1!S71_ItemType,$AD:$AD,Sheet1!S71_MasterVoteMunicipal,N$47)","v":0},{"$f":"-SUMIFS(Sheet1!S71_ASBudgetAmount,Sheet1!S71_A4Code,$AC:$AC,Sheet1!S71_ItemType,$AD:$AD,Sheet1!S71_MasterVoteMunicipal,O$47)","v":0},{"$f":"-SUMIFS(Sheet1!S71_ASBudgetAmount,Sheet1!S71_A4Code,$AC:$AC,Sheet1!S71_ItemType,$AD:$AD,Sheet1!S71_MasterVoteMunicipal,P$47)","v":0},{"$f":"-SUMIFS(Sheet1!S71_ASBudgetAmount,Sheet1!S71_A4Code,$AC:$AC,Sheet1!S71_ItemType,$AD:$AD,Sheet1!S71_MasterVoteMunicipal,Q$47)","v":0},60000,null,null,null,null,null,null,null,null,null,null,"1600","IR"]
[{"$f":"'A4-FinPerf RE'!A20","v":"Gains"},null,{"$f":"-SUMIFS(Sheet1!S71_ASBudgetAmount,Sheet1!S71_A4Code,$AC:$AC,Sheet1!S71_ItemType,$AD:$AD,Sheet1!S71_MasterVoteMunicipal,C$47)","v":0},{"$f":"-SUMIFS(Sheet1!S71_ASBudgetAmount,Sheet1!S71_A4Code,$AC:$AC,Sheet1!S71_ItemType,$AD:$AD,Sheet1!S71_MasterVoteMunicipal,D$47)","v":0},{"$f":"-SUMIFS(Sheet1!S71_ASBudgetAmount,Sheet1!S71_A4Code,$AC:$AC,Sheet1!S71_ItemType,$AD:$AD,Sheet1!S71_MasterVoteMunicipal,E$47)","v":0},{"$f":"-SUMIFS(Sheet1!S71_ASBudgetAmount,Sheet1!S71_A4Code,$AC:$AC,Sheet1!S71_ItemType,$AD:$AD,Sheet1!S71_MasterVoteMunicipal,F$47)","v":0},{"$f":"-SUMIFS(Sheet1!S71_ASBudgetAmount,Sheet1!S71_A4Code,$AC:$AC,Sheet1!S71_ItemType,$AD:$AD,Sheet1!S71_MasterVoteMunicipal,G$47)","v":0},{"$f":"-SUMIFS(Sheet1!S71_ASBudgetAmount,Sheet1!S71_A4Code,$AC:$AC,Sheet1!S71_ItemType,$AD:$AD,Sheet1!S71_MasterVoteMunicipal,H$47)","v":0},{"$f":"-SUMIFS(Sheet1!S71_ASBudgetAmount,Sheet1!S71_A4Code,$AC:$AC,Sheet1!S71_ItemType,$AD:$AD,Sheet1!S71_MasterVoteMunicipal,I$47)","v":0},{"$f":"-SUMIFS(Sheet1!S71_ASBudgetAmount,Sheet1!S71_A4Code,$AC:$AC,Sheet1!S71_ItemType,$AD:$AD,Sheet1!S71_MasterVoteMunicipal,J$47)","v":0},{"$f":"-SUMIFS(Sheet1!S71_ASBudgetAmount,Sheet1!S71_A4Code,$AC:$AC,Sheet1!S71_ItemType,$AD:$AD,Sheet1!S71_MasterVoteMunicipal,K$47)","v":0},{"$f":"-SUMIFS(Sheet1!S71_ASBudgetAmount,Sheet1!S71_A4Code,$AC:$AC,Sheet1!S71_ItemType,$AD:$AD,Sheet1!S71_MasterVoteMunicipal,L$47)","v":0},{"$f":"-SUMIFS(Sheet1!S71_ASBudgetAmount,Sheet1!S71_A4Code,$AC:$AC,Sheet1!S71_ItemType,$AD:$AD,Sheet1!S71_MasterVoteMunicipal,M$47)","v":0},{"$f":"-SUMIFS(Sheet1!S71_ASBudgetAmount,Sheet1!S71_A4Code,$AC:$AC,Sheet1!S71_ItemType,$AD:$AD,Sheet1!S71_MasterVoteMunicipal,N$47)","v":0},{"$f":"-SUMIFS(Sheet1!S71_ASBudgetAmount,Sheet1!S71_A4Code,$AC:$AC,Sheet1!S71_ItemType,$AD:$AD,Sheet1!S71_MasterVoteMunicipal,O$47)","v":0},{"$f":"-SUMIFS(Sheet1!S71_ASBudgetAmount,Sheet1!S71_A4Code,$AC:$AC,Sheet1!S71_ItemType,$AD:$AD,Sheet1!S71_MasterVoteMunicipal,P$47)","v":0},{"$f":"-SUMIFS(Sheet1!S71_ASBudgetAmount,Sheet1!S71_A4Code,$AC:$AC,Sheet1!S71_ItemType,$AD:$AD,Sheet1!S71_MasterVoteMunicipal,Q$47)","v":0},0,null,null,null,null,null,null,null,null,null,null,"1700","IR"]
[{"$f":"'A4-FinPerf RE'!A21","v":"Total Revenue (excluding capital transfers and contributions)"},null,{"$f":"SUM(C5:C9)+SUM(C11:C20)","v":13082807},{"$f":"SUM(D5:D9)+SUM(D11:D20)","v":35475838},14912538,0,0,0,0,0,0,0,0,0,0,0,0,{"$f":"SUM(R5:R9)+SUM(R11:R20)","v":63471183}]
[]
[{"$f":"'A4-FinPerf RE'!A23","v":"Expenditure By Type"}]
[{"$f":"'A4-FinPerf RE'!A24","v":"Employee related costs"},null,{"$f":"SUMIFS(Sheet1!S71_ASBudgetAmount,Sheet1!S71_A4Code,$AC:$AC,Sheet1!S71_ItemType,$AD:$AD,Sheet1!S71_MasterVoteMunicipal,C$47)","v":7168824},{"$f":"SUMIFS(Sheet1!S71_ASBudgetAmount,Sheet1!S71_A4Code,$AC:$AC,Sheet1!S71_ItemType,$AD:$AD,Sheet1!S71_MasterVoteMunicipal,D$47)","v":27837320},{"$f":"SUMIFS(Sheet1!S71_ASBudgetAmount,Sheet1!S71_A4Code,$AC:$AC,Sheet1!S71_ItemType,$AD:$AD,Sheet1!S71_MasterVoteMunicipal,E$47)","v":12141382},{"$f":"SUMIFS(Sheet1!S71_ASBudgetAmount,Sheet1!S71_A4Code,$AC:$AC,Sheet1!S71_ItemType,$AD:$AD,Sheet1!S71_MasterVoteMunicipal,F$47)","v":0},{"$f":"SUMIFS(Sheet1!S71_ASBudgetAmount,Sheet1!S71_A4Code,$AC:$AC,Sheet1!S71_ItemType,$AD:$AD,Sheet1!S71_MasterVoteMunicipal,G$47)","v":0},{"$f":"SUMIFS(Sheet1!S71_ASBudgetAmount,Sheet1!S71_A4Code,$AC:$AC,Sheet1!S71_ItemType,$AD:$AD,Sheet1!S71_MasterVoteMunicipal,H$47)","v":0},{"$f":"SUMIFS(Sheet1!S71_ASBudgetAmount,Sheet1!S71_A4Code,$AC:$AC,Sheet1!S71_ItemType,$AD:$AD,Sheet1!S71_MasterVoteMunicipal,I$47)","v":0},{"$f":"SUMIFS(Sheet1!S71_ASBudgetAmount,Sheet1!S71_A4Code,$AC:$AC,Sheet1!S71_ItemType,$AD:$AD,Sheet1!S71_MasterVoteMunicipal,J$47)","v":0},{"$f":"SUMIFS(Sheet1!S71_ASBudgetAmount,Sheet1!S71_A4Code,$AC:$AC,Sheet1!S71_ItemType,$AD:$AD,Sheet1!S71_MasterVoteMunicipal,K$47)","v":0},{"$f":"SUMIFS(Sheet1!S71_ASBudgetAmount,Sheet1!S71_A4Code,$AC:$AC,Sheet1!S71_ItemType,$AD:$AD,Sheet1!S71_MasterVoteMunicipal,L$47)","v":0},{"$f":"SUMIFS(Sheet1!S71_ASBudgetAmount,Sheet1!S71_A4Code,$AC:$AC,Sheet1!S71_ItemType,$AD:$AD,Sheet1!S71_MasterVoteMunicipal,M$47)","v":0},{"$f":"SUMIFS(Sheet1!S71_ASBudgetAmount,Sheet1!S71_A4Code,$AC:$AC,Sheet1!S71_ItemType,$AD:$AD,Sheet1!S71_MasterVoteMunicipal,N$47)","v":0},{"$f":"SUMIFS(Sheet1!S71_ASBudgetAmount,Sheet1!S71_A4Code,$AC:$AC,Sheet1!S71_ItemType,$AD:$AD,Sheet1!S71_MasterVoteMunicipal,O$47)","v":0},{"$f":"SUMIFS(Sheet1!S71_ASBudgetAmount,Sheet1!S71_A4Code,$AC:$AC,Sheet1!S71_ItemType,$AD:$AD,Sheet1!S71_MasterVoteMunicipal,P$47)","v":0},{"$f":"SUMIFS(Sheet1!S71_ASBudgetAmount,Sheet1!S71_A4Code,$AC:$AC,Sheet1!S71_ItemType,$AD:$AD,Sheet1!S71_MasterVoteMunicipal,Q$47)","v":0},{"$f":"SUM(C24:Q24)","v":47147526},null,null,null,null,null,null,null,null,null,null,"2000","IE"]
[{"$f":"'A4-FinPerf RE'!A25","v":"Remuneration of councillors"},null,{"$f":"SUMIFS(Sheet1!S71_ASBudgetAmount,Sheet1!S71_A4Code,$AC:$AC,Sheet1!S71_ItemType,$AD:$AD,Sheet1!S71_MasterVoteMunicipal,C$47)","v":4887284},{"$f":"SUMIFS(Sheet1!S71_ASBudgetAmount,Sheet1!S71_A4Code,$AC:$AC,Sheet1!S71_ItemType,$AD:$AD,Sheet1!S71_MasterVoteMunicipal,D$47)","v":0},{"$f":"SUMIFS(Sheet1!S71_ASBudgetAmount,Sheet1!S71_A4Code,$AC:$AC,Sheet1!S71_ItemType,$AD:$AD,Sheet1!S71_MasterVoteMunicipal,E$47)","v":0},{"$f":"SUMIFS(Sheet1!S71_ASBudgetAmount,Sheet1!S71_A4Code,$AC:$AC,Sheet1!S71_ItemType,$AD:$AD,Sheet1!S71_MasterVoteMunicipal,F$47)","v":0},{"$f":"SUMIFS(Sheet1!S71_ASBudgetAmount,Sheet1!S71_A4Code,$AC:$AC,Sheet1!S71_ItemType,$AD:$AD,Sheet1!S71_MasterVoteMunicipal,G$47)","v":0},{"$f":"SUMIFS(Sheet1!S71_ASBudgetAmount,Sheet1!S71_A4Code,$AC:$AC,Sheet1!S71_ItemType,$AD:$AD,Sheet1!S71_MasterVoteMunicipal,H$47)","v":0},{"$f":"SUMIFS(Sheet1!S71_ASBudgetAmount,Sheet1!S71_A4Code,$AC:$AC,Sheet1!S71_ItemType,$AD:$AD,Sheet1!S71_MasterVoteMunicipal,I$47)","v":0},{"$f":"SUMIFS(Sheet1!S71_ASBudgetAmount,Sheet1!S71_A4Code,$AC:$AC,Sheet1!S71_ItemType,$AD:$AD,Sheet1!S71_MasterVoteMunicipal,J$47)","v":0},{"$f":"SUMIFS(Sheet1!S71_ASBudgetAmount,Sheet1!S71_A4Code,$AC:$AC,Sheet1!S71_ItemType,$AD:$AD,Sheet1!S71_MasterVoteMunicipal,K$47)","v":0},{"$f":"SUMIFS(Sheet1!S71_ASBudgetAmount,Sheet1!S71_A4Code,$AC:$AC,Sheet1!S71_ItemType,$AD:$AD,Sheet1!S71_MasterVoteMunicipal,L$47)","v":0},{"$f":"SUMIFS(Sheet1!S71_ASBudgetAmount,Sheet1!S71_A4Code,$AC:$AC,Sheet1!S71_ItemType,$AD:$AD,Sheet1!S71_MasterVoteMunicipal,M$47)","v":0},{"$f":"SUMIFS(Sheet1!S71_ASBudgetAmount,Sheet1!S71_A4Code,$AC:$AC,Sheet1!S71_ItemType,$AD:$AD,Sheet1!S71_MasterVoteMunicipal,N$47)","v":0},{"$f":"SUMIFS(Sheet1!S71_ASBudgetAmount,Sheet1!S71_A4Code,$AC:$AC,Sheet1!S71_ItemType,$AD:$AD,Sheet1!S71_MasterVoteMunicipal,O$47)","v":0},{"$f":"SUMIFS(Sheet1!S71_ASBudgetAmount,Sheet1!S71_A4Code,$AC:$AC,Sheet1!S71_ItemType,$AD:$AD,Sheet1!S71_MasterVoteMunicipal,P$47)","v":0},{"$f":"SUMIFS(Sheet1!S71_ASBudgetAmount,Sheet1!S71_A4Code,$AC:$AC,Sheet1!S71_ItemType,$AD:$AD,Sheet1!S71_MasterVoteMunicipal,Q$47)","v":0},{"$f":"SUM(C25:Q25)","v":4887284},null,null,null,null,null,null,null,null,null,null,"2100","IE"]
[{"$f":"'A4-FinPerf RE'!A26","v":"Debt impairment"},null,{"$f":"SUMIFS(Sheet1!S71_ASBudgetAmount,Sheet1!S71_A4Code,$AC:$AC,Sheet1!S71_ItemType,$AD:$AD,Sheet1!S71_MasterVoteMunicipal,C$47)","v":0},{"$f":"SUMIFS(Sheet1!S71_ASBudgetAmount,Sheet1!S71_A4Code,$AC:$AC,Sheet1!S71_ItemType,$AD:$AD,Sheet1!S71_MasterVoteMunicipal,D$47)","v":491000},{"$f":"SUMIFS(Sheet1!S71_ASBudgetAmount,Sheet1!S71_A4Code,$AC:$AC,Sheet1!S71_ItemType,$AD:$AD,Sheet1!S71_MasterVoteMunicipal,E$47)","v":0},{"$f":"SUMIFS(Sheet1!S71_ASBudgetAmount,Sheet1!S71_A4Code,$AC:$AC,Sheet1!S71_ItemType,$AD:$AD,Sheet1!S71_MasterVoteMunicipal,F$47)","v":0},{"$f":"SUMIFS(Sheet1!S71_ASBudgetAmount,Sheet1!S71_A4Code,$AC:$AC,Sheet1!S71_ItemType,$AD:$AD,Sheet1!S71_MasterVoteMunicipal,G$47)","v":0},{"$f":"SUMIFS(Sheet1!S71_ASBudgetAmount,Sheet1!S71_A4Code,$AC:$AC,Sheet1!S71_ItemType,$AD:$AD,Sheet1!S71_MasterVoteMunicipal,H$47)","v":0},{"$f":"SUMIFS(Sheet1!S71_ASBudgetAmount,Sheet1!S71_A4Code,$AC:$AC,Sheet1!S71_ItemType,$AD:$AD,Sheet1!S71_MasterVoteMunicipal,I$47)","v":0},{"$f":"SUMIFS(Sheet1!S71_ASBudgetAmount,Sheet1!S71_A4Code,$AC:$AC,Sheet1!S71_ItemType,$AD:$AD,Sheet1!S71_MasterVoteMunicipal,J$47)","v":0},{"$f":"SUMIFS(Sheet1!S71_ASBudgetAmount,Sheet1!S71_A4Code,$AC:$AC,Sheet1!S71_ItemType,$AD:$AD,Sheet1!S71_MasterVoteMunicipal,K$47)","v":0},{"$f":"SUMIFS(Sheet1!S71_ASBudgetAmount,Sheet1!S71_A4Code,$AC:$AC,Sheet1!S71_ItemType,$AD:$AD,Sheet1!S71_MasterVoteMunicipal,L$47)","v":0},{"$f":"SUMIFS(Sheet1!S71_ASBudgetAmount,Sheet1!S71_A4Code,$AC:$AC,Sheet1!S71_ItemType,$AD:$AD,Sheet1!S71_MasterVoteMunicipal,M$47)","v":0},{"$f":"SUMIFS(Sheet1!S71_ASBudgetAmount,Sheet1!S71_A4Code,$AC:$AC,Sheet1!S71_ItemType,$AD:$AD,Sheet1!S71_MasterVoteMunicipal,N$47)","v":0},{"$f":"SUMIFS(Sheet1!S71_ASBudgetAmount,Sheet1!S71_A4Code,$AC:$AC,Sheet1!S71_ItemType,$AD:$AD,Sheet1!S71_MasterVoteMunicipal,O$47)","v":0},{"$f":"SUMIFS(Sheet1!S71_ASBudgetAmount,Sheet1!S71_A4Code,$AC:$AC,Sheet1!S71_ItemType,$AD:$AD,Sheet1!S71_MasterVoteMunicipal,P$47)","v":0},{"$f":"SUMIFS(Sheet1!S71_ASBudgetAmount,Sheet1!S71_A4Code,$AC:$AC,Sheet1!S71_ItemType,$AD:$AD,Sheet1!S71_MasterVoteMunicipal,Q$47)","v":0},491000,null,null,null,null,null,null,null,null,null,null,"2200","IE"]
[{"$f":"'A4-FinPerf RE'!A27","v":"Depreciation & asset impairment"},null,{"$f":"SUMIFS(Sheet1!S71_ASBudgetAmount,Sheet1!S71_A4Code,$AC:$AC,Sheet1!S71_ItemType,$AD:$AD,Sheet1!S71_MasterVoteMunicipal,C$47)","v":0},{"$f":"SUMIFS(Sheet1!S71_ASBudgetAmount,Sheet1!S71_A4Code,$AC:$AC,Sheet1!S71_ItemType,$AD:$AD,Sheet1!S71_MasterVoteMunicipal,D$47)","v":1000000},{"$f":"SUMIFS(Sheet1!S71_ASBudgetAmount,Sheet1!S71_A4Code,$AC:$AC,Sheet1!S71_ItemType,$AD:$AD,Sheet1!S71_MasterVoteMunicipal,E$47)","v":0},{"$f":"SUMIFS(Sheet1!S71_ASBudgetAmount,Sheet1!S71_A4Code,$AC:$AC,Sheet1!S71_ItemType,$AD:$AD,Sheet1!S71_MasterVoteMunicipal,F$47)","v":0},{"$f":"SUMIFS(Sheet1!S71_ASBudgetAmount,Sheet1!S71_A4Code,$AC:$AC,Sheet1!S71_ItemType,$AD:$AD,Sheet1!S71_MasterVoteMunicipal,G$47)","v":0},{"$f":"SUMIFS(Sheet1!S71_ASBudgetAmount,Sheet1!S71_A4Code,$AC:$AC,Sheet1!S71_ItemType,$AD:$AD,Sheet1!S71_MasterVoteMunicipal,H$47)","v":0},{"$f":"SUMIFS(Sheet1!S71_ASBudgetAmount,Sheet1!S71_A4Code,$AC:$AC,Sheet1!S71_ItemType,$AD:$AD,Sheet1!S71_MasterVoteMunicipal,I$47)","v":0},{"$f":"SUMIFS(Sheet1!S71_ASBudgetAmount,Sheet1!S71_A4Code,$AC:$AC,Sheet1!S71_ItemType,$AD:$AD,Sheet1!S71_MasterVoteMunicipal,J$47)","v":0},{"$f":"SUMIFS(Sheet1!S71_ASBudgetAmount,Sheet1!S71_A4Code,$AC:$AC,Sheet1!S71_ItemType,$AD:$AD,Sheet1!S71_MasterVoteMunicipal,K$47)","v":0},{"$f":"SUMIFS(Sheet1!S71_ASBudgetAmount,Sheet1!S71_A4Code,$AC:$AC,Sheet1!S71_ItemType,$AD:$AD,Sheet1!S71_MasterVoteMunicipal,L$47)","v":0},{"$f":"SUMIFS(Sheet1!S71_ASBudgetAmount,Sheet1!S71_A4Code,$AC:$AC,Sheet1!S71_ItemType,$AD:$AD,Sheet1!S71_MasterVoteMunicipal,M$47)","v":0},{"$f":"SUMIFS(Sheet1!S71_ASBudgetAmount,Sheet1!S71_A4Code,$AC:$AC,Sheet1!S71_ItemType,$AD:$AD,Sheet1!S71_MasterVoteMunicipal,N$47)","v":0},{"$f":"SUMIFS(Sheet1!S71_ASBudgetAmount,Sheet1!S71_A4Code,$AC:$AC,Sheet1!S71_ItemType,$AD:$AD,Sheet1!S71_MasterVoteMunicipal,O$47)","v":0},{"$f":"SUMIFS(Sheet1!S71_ASBudgetAmount,Sheet1!S71_A4Code,$AC:$AC,Sheet1!S71_ItemType,$AD:$AD,Sheet1!S71_MasterVoteMunicipal,P$47)","v":0},{"$f":"SUMIFS(Sheet1!S71_ASBudgetAmount,Sheet1!S71_A4Code,$AC:$AC,Sheet1!S71_ItemType,$AD:$AD,Sheet1!S71_MasterVoteMunicipal,Q$47)","v":0},1000000,null,null,null,null,null,null,null,null,null,null,"2300","IE"]
[{"$f":"'A4-FinPerf RE'!A28","v":"Finance charges"},null,{"$f":"SUMIFS(Sheet1!S71_ASBudgetAmount,Sheet1!S71_A4Code,$AC:$AC,Sheet1!S71_ItemType,$AD:$AD,Sheet1!S71_MasterVoteMunicipal,C$47)","v":0},{"$f":"SUMIFS(Sheet1!S71_ASBudgetAmount,Sheet1!S71_A4Code,$AC:$AC,Sheet1!S71_ItemType,$AD:$AD,Sheet1!S71_MasterVoteMunicipal,D$47)","v":80000},{"$f":"SUMIFS(Sheet1!S71_ASBudgetAmount,Sheet1!S71_A4Code,$AC:$AC,Sheet1!S71_ItemType,$AD:$AD,Sheet1!S71_MasterVoteMunicipal,E$47)","v":0},{"$f":"SUMIFS(Sheet1!S71_ASBudgetAmount,Sheet1!S71_A4Code,$AC:$AC,Sheet1!S71_ItemType,$AD:$AD,Sheet1!S71_MasterVoteMunicipal,F$47)","v":0},{"$f":"SUMIFS(Sheet1!S71_ASBudgetAmount,Sheet1!S71_A4Code,$AC:$AC,Sheet1!S71_ItemType,$AD:$AD,Sheet1!S71_MasterVoteMunicipal,G$47)","v":0},{"$f":"SUMIFS(Sheet1!S71_ASBudgetAmount,Sheet1!S71_A4Code,$AC:$AC,Sheet1!S71_ItemType,$AD:$AD,Sheet1!S71_MasterVoteMunicipal,H$47)","v":0},{"$f":"SUMIFS(Sheet1!S71_ASBudgetAmount,Sheet1!S71_A4Code,$AC:$AC,Sheet1!S71_ItemType,$AD:$AD,Sheet1!S71_MasterVoteMunicipal,I$47)","v":0},{"$f":"SUMIFS(Sheet1!S71_ASBudgetAmount,Sheet1!S71_A4Code,$AC:$AC,Sheet1!S71_ItemType,$AD:$AD,Sheet1!S71_MasterVoteMunicipal,J$47)","v":0},{"$f":"SUMIFS(Sheet1!S71_ASBudgetAmount,Sheet1!S71_A4Code,$AC:$AC,Sheet1!S71_ItemType,$AD:$AD,Sheet1!S71_MasterVoteMunicipal,K$47)","v":0},{"$f":"SUMIFS(Sheet1!S71_ASBudgetAmount,Sheet1!S71_A4Code,$AC:$AC,Sheet1!S71_ItemType,$AD:$AD,Sheet1!S71_MasterVoteMunicipal,L$47)","v":0},{"$f":"SUMIFS(Sheet1!S71_ASBudgetAmount,Sheet1!S71_A4Code,$AC:$AC,Sheet1!S71_ItemType,$AD:$AD,Sheet1!S71_MasterVoteMunicipal,M$47)","v":0},{"$f":"SUMIFS(Sheet1!S71_ASBudgetAmount,Sheet1!S71_A4Code,$AC:$AC,Sheet1!S71_ItemType,$AD:$AD,Sheet1!S71_MasterVoteMunicipal,N$47)","v":0},{"$f":"SUMIFS(Sheet1!S71_ASBudgetAmount,Sheet1!S71_A4Code,$AC:$AC,Sheet1!S71_ItemType,$AD:$AD,Sheet1!S71_MasterVoteMunicipal,O$47)","v":0},{"$f":"SUMIFS(Sheet1!S71_ASBudgetAmount,Sheet1!S71_A4Code,$AC:$AC,Sheet1!S71_ItemType,$AD:$AD,Sheet1!S71_MasterVoteMunicipal,P$47)","v":0},{"$f":"SUMIFS(Sheet1!S71_ASBudgetAmount,Sheet1!S71_A4Code,$AC:$AC,Sheet1!S71_ItemType,$AD:$AD,Sheet1!S71_MasterVoteMunicipal,Q$47)","v":0},80000,null,null,null,null,null,null,null,null,null,null,"2400","IE"]
[{"$f":"'A4-FinPerf RE'!A29","v":"Bulk purchases - electricity"},null,{"$f":"SUMIFS(Sheet1!S71_ASBudgetAmount,Sheet1!S71_A4Code,$AC:$AC,Sheet1!S71_ItemType,$AD:$AD,Sheet1!S71_MasterVoteMunicipal,C$47)","v":0},{"$f":"SUMIFS(Sheet1!S71_ASBudgetAmount,Sheet1!S71_A4Code,$AC:$AC,Sheet1!S71_ItemType,$AD:$AD,Sheet1!S71_MasterVoteMunicipal,D$47)","v":0},{"$f":"SUMIFS(Sheet1!S71_ASBudgetAmount,Sheet1!S71_A4Code,$AC:$AC,Sheet1!S71_ItemType,$AD:$AD,Sheet1!S71_MasterVoteMunicipal,E$47)","v":0},{"$f":"SUMIFS(Sheet1!S71_ASBudgetAmount,Sheet1!S71_A4Code,$AC:$AC,Sheet1!S71_ItemType,$AD:$AD,Sheet1!S71_MasterVoteMunicipal,F$47)","v":0},{"$f":"SUMIFS(Sheet1!S71_ASBudgetAmount,Sheet1!S71_A4Code,$AC:$AC,Sheet1!S71_ItemType,$AD:$AD,Sheet1!S71_MasterVoteMunicipal,G$47)","v":0},{"$f":"SUMIFS(Sheet1!S71_ASBudgetAmount,Sheet1!S71_A4Code,$AC:$AC,Sheet1!S71_ItemType,$AD:$AD,Sheet1!S71_MasterVoteMunicipal,H$47)","v":0},{"$f":"SUMIFS(Sheet1!S71_ASBudgetAmount,Sheet1!S71_A4Code,$AC:$AC,Sheet1!S71_ItemType,$AD:$AD,Sheet1!S71_MasterVoteMunicipal,I$47)","v":0},{"$f":"SUMIFS(Sheet1!S71_ASBudgetAmount,Sheet1!S71_A4Code,$AC:$AC,Sheet1!S71_ItemType,$AD:$AD,Sheet1!S71_MasterVoteMunicipal,J$47)","v":0},{"$f":"SUMIFS(Sheet1!S71_ASBudgetAmount,Sheet1!S71_A4Code,$AC:$AC,Sheet1!S71_ItemType,$AD:$AD,Sheet1!S71_MasterVoteMunicipal,K$47)","v":0},{"$f":"SUMIFS(Sheet1!S71_ASBudgetAmount,Sheet1!S71_A4Code,$AC:$AC,Sheet1!S71_ItemType,$AD:$AD,Sheet1!S71_MasterVoteMunicipal,L$47)","v":0},{"$f":"SUMIFS(Sheet1!S71_ASBudgetAmount,Sheet1!S71_A4Code,$AC:$AC,Sheet1!S71_ItemType,$AD:$AD,Sheet1!S71_MasterVoteMunicipal,M$47)","v":0},{"$f":"SUMIFS(Sheet1!S71_ASBudgetAmount,Sheet1!S71_A4Code,$AC:$AC,Sheet1!S71_ItemType,$AD:$AD,Sheet1!S71_MasterVoteMunicipal,N$47)","v":0},{"$f":"SUMIFS(Sheet1!S71_ASBudgetAmount,Sheet1!S71_A4Code,$AC:$AC,Sheet1!S71_ItemType,$AD:$AD,Sheet1!S71_MasterVoteMunicipal,O$47)","v":0},{"$f":"SUMIFS(Sheet1!S71_ASBudgetAmount,Sheet1!S71_A4Code,$AC:$AC,Sheet1!S71_ItemType,$AD:$AD,Sheet1!S71_MasterVoteMunicipal,P$47)","v":0},{"$f":"SUMIFS(Sheet1!S71_ASBudgetAmount,Sheet1!S71_A4Code,$AC:$AC,Sheet1!S71_ItemType,$AD:$AD,Sheet1!S71_MasterVoteMunicipal,Q$47)","v":0},0,null,null,null,null,null,null,null,null,null,null,"2500","IE"]
[{"$f":"'A4-FinPerf RE'!A30","v":"Inventory consumed"},null,{"$f":"SUMIFS(Sheet1!S71_ASBudgetAmount,Sheet1!S71_A4Code,$AC:$AC,Sheet1!S71_ItemType,$AD:$AD,Sheet1!S71_MasterVoteMunicipal,C$47)","v":0},{"$f":"SUMIFS(Sheet1!S71_ASBudgetAmount,Sheet1!S71_A4Code,$AC:$AC,Sheet1!S71_ItemType,$AD:$AD,Sheet1!S71_MasterVoteMunicipal,D$47)","v":30000},{"$f":"SUMIFS(Sheet1!S71_ASBudgetAmount,Sheet1!S71_A4Code,$AC:$AC,Sheet1!S71_ItemType,$AD:$AD,Sheet1!S71_MasterVoteMunicipal,E$47)","v":0},{"$f":"SUMIFS(Sheet1!S71_ASBudgetAmount,Sheet1!S71_A4Code,$AC:$AC,Sheet1!S71_ItemType,$AD:$AD,Sheet1!S71_MasterVoteMunicipal,F$47)","v":150000},{"$f":"SUMIFS(Sheet1!S71_ASBudgetAmount,Sheet1!S71_A4Code,$AC:$AC,Sheet1!S71_ItemType,$AD:$AD,Sheet1!S71_MasterVoteMunicipal,G$47)","v":0},{"$f":"SUMIFS(Sheet1!S71_ASBudgetAmount,Sheet1!S71_A4Code,$AC:$AC,Sheet1!S71_ItemType,$AD:$AD,Sheet1!S71_MasterVoteMunicipal,H$47)","v":0},{"$f":"SUMIFS(Sheet1!S71_ASBudgetAmount,Sheet1!S71_A4Code,$AC:$AC,Sheet1!S71_ItemType,$AD:$AD,Sheet1!S71_MasterVoteMunicipal,I$47)","v":0},{"$f":"SUMIFS(Sheet1!S71_ASBudgetAmount,Sheet1!S71_A4Code,$AC:$AC,Sheet1!S71_ItemType,$AD:$AD,Sheet1!S71_MasterVoteMunicipal,J$47)","v":0},{"$f":"SUMIFS(Sheet1!S71_ASBudgetAmount,Sheet1!S71_A4Code,$AC:$AC,Sheet1!S71_ItemType,$AD:$AD,Sheet1!S71_MasterVoteMunicipal,K$47)","v":0},{"$f":"SUMIFS(Sheet1!S71_ASBudgetAmount,Sheet1!S71_A4Code,$AC:$AC,Sheet1!S71_ItemType,$AD:$AD,Sheet1!S71_MasterVoteMunicipal,L$47)","v":0},{"$f":"SUMIFS(Sheet1!S71_ASBudgetAmount,Sheet1!S71_A4Code,$AC:$AC,Sheet1!S71_ItemType,$AD:$AD,Sheet1!S71_MasterVoteMunicipal,M$47)","v":0},{"$f":"SUMIFS(Sheet1!S71_ASBudgetAmount,Sheet1!S71_A4Code,$AC:$AC,Sheet1!S71_ItemType,$AD:$AD,Sheet1!S71_MasterVoteMunicipal,N$47)","v":0},{"$f":"SUMIFS(Sheet1!S71_ASBudgetAmount,Sheet1!S71_A4Code,$AC:$AC,Sheet1!S71_ItemType,$AD:$AD,Sheet1!S71_MasterVoteMunicipal,O$47)","v":0},{"$f":"SUMIFS(Sheet1!S71_ASBudgetAmount,Sheet1!S71_A4Code,$AC:$AC,Sheet1!S71_ItemType,$AD:$AD,Sheet1!S71_MasterVoteMunicipal,P$47)","v":0},{"$f":"SUMIFS(Sheet1!S71_ASBudgetAmount,Sheet1!S71_A4Code,$AC:$AC,Sheet1!S71_ItemType,$AD:$AD,Sheet1!S71_MasterVoteMunicipal,Q$47)","v":0},180000,null,null,null,null,null,null,null,null,null,null,"2600","IE"]
[{"$f":"'A4-FinPerf RE'!A31","v":"Contracted services"},null,{"$f":"SUMIFS(Sheet1!S71_ASBudgetAmount,Sheet1!S71_A4Code,$AC:$AC,Sheet1!S71_ItemType,$AD:$AD,Sheet1!S71_MasterVoteMunicipal,C$47)","v":450000},{"$f":"SUMIFS(Sheet1!S71_ASBudgetAmount,Sheet1!S71_A4Code,$AC:$AC,Sheet1!S71_ItemType,$AD:$AD,Sheet1!S71_MasterVoteMunicipal,D$47)","v":2385000},{"$f":"SUMIFS(Sheet1!S71_ASBudgetAmount,Sheet1!S71_A4Code,$AC:$AC,Sheet1!S71_ItemType,$AD:$AD,Sheet1!S71_MasterVoteMunicipal,E$47)","v":2646000},{"$f":"SUMIFS(Sheet1!S71_ASBudgetAmount,Sheet1!S71_A4Code,$AC:$AC,Sheet1!S71_ItemType,$AD:$AD,Sheet1!S71_MasterVoteMunicipal,F$47)","v":0},{"$f":"SUMIFS(Sheet1!S71_ASBudgetAmount,Sheet1!S71_A4Code,$AC:$AC,Sheet1!S71_ItemType,$AD:$AD,Sheet1!S71_MasterVoteMunicipal,G$47)","v":0},{"$f":"SUMIFS(Sheet1!S71_ASBudgetAmount,Sheet1!S71_A4Code,$AC:$AC,Sheet1!S71_ItemType,$AD:$AD,Sheet1!S71_MasterVoteMunicipal,H$47)","v":0},{"$f":"SUMIFS(Sheet1!S71_ASBudgetAmount,Sheet1!S71_A4Code,$AC:$AC,Sheet1!S71_ItemType,$AD:$AD,Sheet1!S71_MasterVoteMunicipal,I$47)","v":0},{"$f":"SUMIFS(Sheet1!S71_ASBudgetAmount,Sheet1!S71_A4Code,$AC:$AC,Sheet1!S71_ItemType,$AD:$AD,Sheet1!S71_MasterVoteMunicipal,J$47)","v":0},{"$f":"SUMIFS(Sheet1!S71_ASBudgetAmount,Sheet1!S71_A4Code,$AC:$AC,Sheet1!S71_ItemType,$AD:$AD,Sheet1!S71_MasterVoteMunicipal,K$47)","v":0},{"$f":"SUMIFS(Sheet1!S71_ASBudgetAmount,Sheet1!S71_A4Code,$AC:$AC,Sheet1!S71_ItemType,$AD:$AD,Sheet1!S71_MasterVoteMunicipal,L$47)","v":0},{"$f":"SUMIFS(Sheet1!S71_ASBudgetAmount,Sheet1!S71_A4Code,$AC:$AC,Sheet1!S71_ItemType,$AD:$AD,Sheet1!S71_MasterVoteMunicipal,M$47)","v":0},{"$f":"SUMIFS(Sheet1!S71_ASBudgetAmount,Sheet1!S71_A4Code,$AC:$AC,Sheet1!S71_ItemType,$AD:$AD,Sheet1!S71_MasterVoteMunicipal,N$47)","v":0},{"$f":"SUMIFS(Sheet1!S71_ASBudgetAmount,Sheet1!S71_A4Code,$AC:$AC,Sheet1!S71_ItemType,$AD:$AD,Sheet1!S71_MasterVoteMunicipal,O$47)","v":0},{"$f":"SUMIFS(Sheet1!S71_ASBudgetAmount,Sheet1!S71_A4Code,$AC:$AC,Sheet1!S71_ItemType,$AD:$AD,Sheet1!S71_MasterVoteMunicipal,P$47)","v":0},{"$f":"SUMIFS(Sheet1!S71_ASBudgetAmount,Sheet1!S71_A4Code,$AC:$AC,Sheet1!S71_ItemType,$AD:$AD,Sheet1!S71_MasterVoteMunicipal,Q$47)","v":0},5481000,null,null,null,null,null,null,null,null,null,null,"2700","IE"]
[{"$f":"'A4-FinPerf RE'!A32","v":"Transfers and subsidies"},null,{"$f":"SUMIFS(Sheet1!S71_ASBudgetAmount,Sheet1!S71_A4Code,$AC:$AC,Sheet1!S71_ItemType,$AD:$AD,Sheet1!S71_MasterVoteMunicipal,C$47)","v":0},{"$f":"SUMIFS(Sheet1!S71_ASBudgetAmount,Sheet1!S71_A4Code,$AC:$AC,Sheet1!S71_ItemType,$AD:$AD,Sheet1!S71_MasterVoteMunicipal,D$47)","v":0},{"$f":"SUMIFS(Sheet1!S71_ASBudgetAmount,Sheet1!S71_A4Code,$AC:$AC,Sheet1!S71_ItemType,$AD:$AD,Sheet1!S71_MasterVoteMunicipal,E$47)","v":72000},{"$f":"SUMIFS(Sheet1!S71_ASBudgetAmount,Sheet1!S71_A4Code,$AC:$AC,Sheet1!S71_ItemType,$AD:$AD,Sheet1!S71_MasterVoteMunicipal,F$47)","v":0},{"$f":"SUMIFS(Sheet1!S71_ASBudgetAmount,Sheet1!S71_A4Code,$AC:$AC,Sheet1!S71_ItemType,$AD:$AD,Sheet1!S71_MasterVoteMunicipal,G$47)","v":0},{"$f":"SUMIFS(Sheet1!S71_ASBudgetAmount,Sheet1!S71_A4Code,$AC:$AC,Sheet1!S71_ItemType,$AD:$AD,Sheet1!S71_MasterVoteMunicipal,H$47)","v":0},{"$f":"SUMIFS(Sheet1!S71_ASBudgetAmount,Sheet1!S71_A4Code,$AC:$AC,Sheet1!S71_ItemType,$AD:$AD,Sheet1!S71_MasterVoteMunicipal,I$47)","v":0},{"$f":"SUMIFS(Sheet1!S71_ASBudgetAmount,Sheet1!S71_A4Code,$AC:$AC,Sheet1!S71_ItemType,$AD:$AD,Sheet1!S71_MasterVoteMunicipal,J$47)","v":0},{"$f":"SUMIFS(Sheet1!S71_ASBudgetAmount,Sheet1!S71_A4Code,$AC:$AC,Sheet1!S71_ItemType,$AD:$AD,Sheet1!S71_MasterVoteMunicipal,K$47)","v":0},{"$f":"SUMIFS(Sheet1!S71_ASBudgetAmount,Sheet1!S71_A4Code,$AC:$AC,Sheet1!S71_ItemType,$AD:$AD,Sheet1!S71_MasterVoteMunicipal,L$47)","v":0},{"$f":"SUMIFS(Sheet1!S71_ASBudgetAmount,Sheet1!S71_A4Code,$AC:$AC,Sheet1!S71_ItemType,$AD:$AD,Sheet1!S71_MasterVoteMunicipal,M$47)","v":0},{"$f":"SUMIFS(Sheet1!S71_ASBudgetAmount,Sheet1!S71_A4Code,$AC:$AC,Sheet1!S71_ItemType,$AD:$AD,Sheet1!S71_MasterVoteMunicipal,N$47)","v":0},{"$f":"SUMIFS(Sheet1!S71_ASBudgetAmount,Sheet1!S71_A4Code,$AC:$AC,Sheet1!S71_ItemType,$AD:$AD,Sheet1!S71_MasterVoteMunicipal,O$47)","v":0},{"$f":"SUMIFS(Sheet1!S71_ASBudgetAmount,Sheet1!S71_A4Code,$AC:$AC,Sheet1!S71_ItemType,$AD:$AD,Sheet1!S71_MasterVoteMunicipal,P$47)","v":0},{"$f":"SUMIFS(Sheet1!S71_ASBudgetAmount,Sheet1!S71_A4Code,$AC:$AC,Sheet1!S71_ItemType,$AD:$AD,Sheet1!S71_MasterVoteMunicipal,Q$47)","v":0},72000,null,null,null,null,null,null,null,null,null,null,"2800","IE"]
[{"$f":"'A4-FinPerf RE'!A33","v":"Other expenditure"},null,{"$f":"SUMIFS(Sheet1!S71_ASBudgetAmount,Sheet1!S71_A4Code,$AC:$AC,Sheet1!S71_ItemType,$AD:$AD,Sheet1!S71_MasterVoteMunicipal,C$47)","v":1270542},{"$f":"SUMIFS(Sheet1!S71_ASBudgetAmount,Sheet1!S71_A4Code,$AC:$AC,Sheet1!S71_ItemType,$AD:$AD,Sheet1!S71_MasterVoteMunicipal,D$47)","v":2117591},{"$f":"SUMIFS(Sheet1!S71_ASBudgetAmount,Sheet1!S71_A4Code,$AC:$AC,Sheet1!S71_ItemType,$AD:$AD,Sheet1!S71_MasterVoteMunicipal,E$47)","v":258242},{"$f":"SUMIFS(Sheet1!S71_ASBudgetAmount,Sheet1!S71_A4Code,$AC:$AC,Sheet1!S71_ItemType,$AD:$AD,Sheet1!S71_MasterVoteMunicipal,F$47)","v":0},{"$f":"SUMIFS(Sheet1!S71_ASBudgetAmount,Sheet1!S71_A4Code,$AC:$AC,Sheet1!S71_ItemType,$AD:$AD,Sheet1!S71_MasterVoteMunicipal,G$47)","v":0},{"$f":"SUMIFS(Sheet1!S71_ASBudgetAmount,Sheet1!S71_A4Code,$AC:$AC,Sheet1!S71_ItemType,$AD:$AD,Sheet1!S71_MasterVoteMunicipal,H$47)","v":0},{"$f":"SUMIFS(Sheet1!S71_ASBudgetAmount,Sheet1!S71_A4Code,$AC:$AC,Sheet1!S71_ItemType,$AD:$AD,Sheet1!S71_MasterVoteMunicipal,I$47)","v":0},{"$f":"SUMIFS(Sheet1!S71_ASBudgetAmount,Sheet1!S71_A4Code,$AC:$AC,Sheet1!S71_ItemType,$AD:$AD,Sheet1!S71_MasterVoteMunicipal,J$47)","v":0},{"$f":"SUMIFS(Sheet1!S71_ASBudgetAmount,Sheet1!S71_A4Code,$AC:$AC,Sheet1!S71_ItemType,$AD:$AD,Sheet1!S71_MasterVoteMunicipal,K$47)","v":0},{"$f":"SUMIFS(Sheet1!S71_ASBudgetAmount,Sheet1!S71_A4Code,$AC:$AC,Sheet1!S71_ItemType,$AD:$AD,Sheet1!S71_MasterVoteMunicipal,L$47)","v":0},{"$f":"SUMIFS(Sheet1!S71_ASBudgetAmount,Sheet1!S71_A4Code,$AC:$AC,Sheet1!S71_ItemType,$AD:$AD,Sheet1!S71_MasterVoteMunicipal,M$47)","v":0},{"$f":"SUMIFS(Sheet1!S71_ASBudgetAmount,Sheet1!S71_A4Code,$AC:$AC,Sheet1!S71_ItemType,$AD:$AD,Sheet1!S71_MasterVoteMunicipal,N$47)","v":0},{"$f":"SUMIFS(Sheet1!S71_ASBudgetAmount,Sheet1!S71_A4Code,$AC:$AC,Sheet1!S71_ItemType,$AD:$AD,Sheet1!S71_MasterVoteMunicipal,O$47)","v":0},{"$f":"SUMIFS(Sheet1!S71_ASBudgetAmount,Sheet1!S71_A4Code,$AC:$AC,Sheet1!S71_ItemType,$AD:$AD,Sheet1!S71_MasterVoteMunicipal,P$47)","v":0},{"$f":"SUMIFS(Sheet1!S71_ASBudgetAmount,Sheet1!S71_A4Code,$AC:$AC,Sheet1!S71_ItemType,$AD:$AD,Sheet1!S71_MasterVoteMunicipal,Q$47)","v":0},3646375,null,null,null,null,null,null,null,null,null,null,"2900","IE"]
[{"$f":"'A4-FinPerf RE'!A34","v":"Losses"},null,{"$f":"SUMIFS(Sheet1!S71_ASBudgetAmount,Sheet1!S71_A4Code,$AC:$AC,Sheet1!S71_ItemType,$AD:$AD,Sheet1!S71_MasterVoteMunicipal,C$47)","v":0},{"$f":"SUMIFS(Sheet1!S71_ASBudgetAmount,Sheet1!S71_A4Code,$AC:$AC,Sheet1!S71_ItemType,$AD:$AD,Sheet1!S71_MasterVoteMunicipal,D$47)","v":0},{"$f":"SUMIFS(Sheet1!S71_ASBudgetAmount,Sheet1!S71_A4Code,$AC:$AC,Sheet1!S71_ItemType,$AD:$AD,Sheet1!S71_MasterVoteMunicipal,E$47)","v":0},{"$f":"SUMIFS(Sheet1!S71_ASBudgetAmount,Sheet1!S71_A4Code,$AC:$AC,Sheet1!S71_ItemType,$AD:$AD,Sheet1!S71_MasterVoteMunicipal,F$47)","v":0},{"$f":"SUMIFS(Sheet1!S71_ASBudgetAmount,Sheet1!S71_A4Code,$AC:$AC,Sheet1!S71_ItemType,$AD:$AD,Sheet1!S71_MasterVoteMunicipal,G$47)","v":0},{"$f":"SUMIFS(Sheet1!S71_ASBudgetAmount,Sheet1!S71_A4Code,$AC:$AC,Sheet1!S71_ItemType,$AD:$AD,Sheet1!S71_MasterVoteMunicipal,H$47)","v":0},{"$f":"SUMIFS(Sheet1!S71_ASBudgetAmount,Sheet1!S71_A4Code,$AC:$AC,Sheet1!S71_ItemType,$AD:$AD,Sheet1!S71_MasterVoteMunicipal,I$47)","v":0},{"$f":"SUMIFS(Sheet1!S71_ASBudgetAmount,Sheet1!S71_A4Code,$AC:$AC,Sheet1!S71_ItemType,$AD:$AD,Sheet1!S71_MasterVoteMunicipal,J$47)","v":0},{"$f":"SUMIFS(Sheet1!S71_ASBudgetAmount,Sheet1!S71_A4Code,$AC:$AC,Sheet1!S71_ItemType,$AD:$AD,Sheet1!S71_MasterVoteMunicipal,K$47)","v":0},{"$f":"SUMIFS(Sheet1!S71_ASBudgetAmount,Sheet1!S71_A4Code,$AC:$AC,Sheet1!S71_ItemType,$AD:$AD,Sheet1!S71_MasterVoteMunicipal,L$47)","v":0},{"$f":"SUMIFS(Sheet1!S71_ASBudgetAmount,Sheet1!S71_A4Code,$AC:$AC,Sheet1!S71_ItemType,$AD:$AD,Sheet1!S71_MasterVoteMunicipal,M$47)","v":0},{"$f":"SUMIFS(Sheet1!S71_ASBudgetAmount,Sheet1!S71_A4Code,$AC:$AC,Sheet1!S71_ItemType,$AD:$AD,Sheet1!S71_MasterVoteMunicipal,N$47)","v":0},{"$f":"SUMIFS(Sheet1!S71_ASBudgetAmount,Sheet1!S71_A4Code,$AC:$AC,Sheet1!S71_ItemType,$AD:$AD,Sheet1!S71_MasterVoteMunicipal,O$47)","v":0},{"$f":"SUMIFS(Sheet1!S71_ASBudgetAmount,Sheet1!S71_A4Code,$AC:$AC,Sheet1!S71_ItemType,$AD:$AD,Sheet1!S71_MasterVoteMunicipal,P$47)","v":0},{"$f":"SUMIFS(Sheet1!S71_ASBudgetAmount,Sheet1!S71_A4Code,$AC:$AC,Sheet1!S71_ItemType,$AD:$AD,Sheet1!S71_MasterVoteMunicipal,Q$47)","v":0},0,null,null,null,null,null,null,null,null,null,null,"3000","IE"]
["Total Expenditure",null,{"$f":"SUM(C24:C34)","v":13776650},33940911,15117624,150000,0,0,0,0,0,0,0,0,0,0,0,62985185]
[]
[{"$f":"'A4-FinPerf RE'!A37","v":"Surplus/(Deficit)"},null,{"$f":"C21-C35","v":-693843},1534927,-205086,-150000,0,0,{"$f":"I21-I35","v":0},0,0,0,0,0,0,0,0,{"$f":"R21-R35","v":485998}]
[{"$f":"'A4-FinPerf RE'!A38","v":"Transfers and subsidies - capital (monetary allocations) (National / Provincial and District)"},null,{"$f":"-SUMIFS(Sheet1!S71_ASBudgetAmount,Sheet1!S71_A4Code,$AC:$AC,Sheet1!S71_ItemType,$AD:$AD,Sheet1!S71_MasterVoteMunicipal,C$47)","v":0},{"$f":"-SUMIFS(Sheet1!S71_ASBudgetAmount,Sheet1!S71_A4Code,$AC:$AC,Sheet1!S71_ItemType,$AD:$AD,Sheet1!S71_MasterVoteMunicipal,D$47)","v":0},{"$f":"-SUMIFS(Sheet1!S71_ASBudgetAmount,Sheet1!S71_A4Code,$AC:$AC,Sheet1!S71_ItemType,$AD:$AD,Sheet1!S71_MasterVoteMunicipal,E$47)","v":0},{"$f":"-SUMIFS(Sheet1!S71_ASBudgetAmount,Sheet1!S71_A4Code,$AC:$AC,Sheet1!S71_ItemType,$AD:$AD,Sheet1!S71_MasterVoteMunicipal,F$47)","v":0},{"$f":"-SUMIFS(Sheet1!S71_ASBudgetAmount,Sheet1!S71_A4Code,$AC:$AC,Sheet1!S71_ItemType,$AD:$AD,Sheet1!S71_MasterVoteMunicipal,G$47)","v":0},{"$f":"-SUMIFS(Sheet1!S71_ASBudgetAmount,Sheet1!S71_A4Code,$AC:$AC,Sheet1!S71_ItemType,$AD:$AD,Sheet1!S71_MasterVoteMunicipal,H$47)","v":0},{"$f":"-SUMIFS(Sheet1!S71_ASBudgetAmount,Sheet1!S71_A4Code,$AC:$AC,Sheet1!S71_ItemType,$AD:$AD,Sheet1!S71_MasterVoteMunicipal,I$47)","v":0},{"$f":"-SUMIFS(Sheet1!S71_ASBudgetAmount,Sheet1!S71_A4Code,$AC:$AC,Sheet1!S71_ItemType,$AD:$AD,Sheet1!S71_MasterVoteMunicipal,J$47)","v":0},{"$f":"-SUMIFS(Sheet1!S71_ASBudgetAmount,Sheet1!S71_A4Code,$AC:$AC,Sheet1!S71_ItemType,$AD:$AD,Sheet1!S71_MasterVoteMunicipal,K$47)","v":0},{"$f":"-SUMIFS(Sheet1!S71_ASBudgetAmount,Sheet1!S71_A4Code,$AC:$AC,Sheet1!S71_ItemType,$AD:$AD,Sheet1!S71_MasterVoteMunicipal,L$47)","v":0},{"$f":"-SUMIFS(Sheet1!S71_ASBudgetAmount,Sheet1!S71_A4Code,$AC:$AC,Sheet1!S71_ItemType,$AD:$AD,Sheet1!S71_MasterVoteMunicipal,M$47)","v":0},{"$f":"-SUMIFS(Sheet1!S71_ASBudgetAmount,Sheet1!S71_A4Code,$AC:$AC,Sheet1!S71_ItemType,$AD:$AD,Sheet1!S71_MasterVoteMunicipal,N$47)","v":0},{"$f":"-SUMIFS(Sheet1!S71_ASBudgetAmount,Sheet1!S71_A4Code,$AC:$AC,Sheet1!S71_ItemType,$AD:$AD,Sheet1!S71_MasterVoteMunicipal,O$47)","v":0},{"$f":"-SUMIFS(Sheet1!S71_ASBudgetAmount,Sheet1!S71_A4Code,$AC:$AC,Sheet1!S71_ItemType,$AD:$AD,Sheet1!S71_MasterVoteMunicipal,P$47)","v":0},{"$f":"-SUMIFS(Sheet1!S71_ASBudgetAmount,Sheet1!S71_A4Code,$AC:$AC,Sheet1!S71_ItemType,$AD:$AD,Sheet1!S71_MasterVoteMunicipal,Q$47)","v":0},{"$f":"SUM(C38:Q38)","v":0},null,null,null,null,null,null,null,null,null,null,"3300","IR"]
[{"$f":"'A4-FinPerf RE'!A39","v":"Transfers and subsidies - capital (monetary allocations) (National / Provincial Departmental Agencies, Households, Non-profit Institutions, Private Enterprises, Public Corporatons, Higher Educational Institutions)"},null,{"$f":"-SUMIFS(Sheet1!S71_ASBudgetAmount,Sheet1!S71_A4Code,$AC:$AC,Sheet1!S71_ItemType,$AD:$AD,Sheet1!S71_MasterVoteMunicipal,C$47)","v":0},{"$f":"-SUMIFS(Sheet1!S71_ASBudgetAmount,Sheet1!S71_A4Code,$AC:$AC,Sheet1!S71_ItemType,$AD:$AD,Sheet1!S71_MasterVoteMunicipal,D$47)","v":0},{"$f":"-SUMIFS(Sheet1!S71_ASBudgetAmount,Sheet1!S71_A4Code,$AC:$AC,Sheet1!S71_ItemType,$AD:$AD,Sheet1!S71_MasterVoteMunicipal,E$47)","v":0},{"$f":"-SUMIFS(Sheet1!S71_ASBudgetAmount,Sheet1!S71_A4Code,$AC:$AC,Sheet1!S71_ItemType,$AD:$AD,Sheet1!S71_MasterVoteMunicipal,F$47)","v":0},{"$f":"-SUMIFS(Sheet1!S71_ASBudgetAmount,Sheet1!S71_A4Code,$AC:$AC,Sheet1!S71_ItemType,$AD:$AD,Sheet1!S71_MasterVoteMunicipal,G$47)","v":0},{"$f":"-SUMIFS(Sheet1!S71_ASBudgetAmount,Sheet1!S71_A4Code,$AC:$AC,Sheet1!S71_ItemType,$AD:$AD,Sheet1!S71_MasterVoteMunicipal,H$47)","v":0},{"$f":"-SUMIFS(Sheet1!S71_ASBudgetAmount,Sheet1!S71_A4Code,$AC:$AC,Sheet1!S71_ItemType,$AD:$AD,Sheet1!S71_MasterVoteMunicipal,I$47)","v":0},{"$f":"-SUMIFS(Sheet1!S71_ASBudgetAmount,Sheet1!S71_A4Code,$AC:$AC,Sheet1!S71_ItemType,$AD:$AD,Sheet1!S71_MasterVoteMunicipal,J$47)","v":0},{"$f":"-SUMIFS(Sheet1!S71_ASBudgetAmount,Sheet1!S71_A4Code,$AC:$AC,Sheet1!S71_ItemType,$AD:$AD,Sheet1!S71_MasterVoteMunicipal,K$47)","v":0},{"$f":"-SUMIFS(Sheet1!S71_ASBudgetAmount,Sheet1!S71_A4Code,$AC:$AC,Sheet1!S71_ItemType,$AD:$AD,Sheet1!S71_MasterVoteMunicipal,L$47)","v":0},{"$f":"-SUMIFS(Sheet1!S71_ASBudgetAmount,Sheet1!S71_A4Code,$AC:$AC,Sheet1!S71_ItemType,$AD:$AD,Sheet1!S71_MasterVoteMunicipal,M$47)","v":0},{"$f":"-SUMIFS(Sheet1!S71_ASBudgetAmount,Sheet1!S71_A4Code,$AC:$AC,Sheet1!S71_ItemType,$AD:$AD,Sheet1!S71_MasterVoteMunicipal,N$47)","v":0},{"$f":"-SUMIFS(Sheet1!S71_ASBudgetAmount,Sheet1!S71_A4Code,$AC:$AC,Sheet1!S71_ItemType,$AD:$AD,Sheet1!S71_MasterVoteMunicipal,O$47)","v":0},{"$f":"-SUMIFS(Sheet1!S71_ASBudgetAmount,Sheet1!S71_A4Code,$AC:$AC,Sheet1!S71_ItemType,$AD:$AD,Sheet1!S71_MasterVoteMunicipal,P$47)","v":0},{"$f":"-SUMIFS(Sheet1!S71_ASBudgetAmount,Sheet1!S71_A4Code,$AC:$AC,Sheet1!S71_ItemType,$AD:$AD,Sheet1!S71_MasterVoteMunicipal,Q$47)","v":0},{"$f":"SUM(C39:Q39)","v":0},null,null,null,null,null,null,null,null,null,null,"3400","IR"]
[{"$f":"'A4-FinPerf RE'!A40","v":"Transfers and subsidies - capital (in-kind - all) "},null,{"$f":"-SUMIFS(Sheet1!S71_ASBudgetAmount,Sheet1!S71_A4Code,$AC:$AC,Sheet1!S71_ItemType,$AD:$AD,Sheet1!S71_MasterVoteMunicipal,C$47)","v":0},{"$f":"-SUMIFS(Sheet1!S71_ASBudgetAmount,Sheet1!S71_A4Code,$AC:$AC,Sheet1!S71_ItemType,$AD:$AD,Sheet1!S71_MasterVoteMunicipal,D$47)","v":0},{"$f":"-SUMIFS(Sheet1!S71_ASBudgetAmount,Sheet1!S71_A4Code,$AC:$AC,Sheet1!S71_ItemType,$AD:$AD,Sheet1!S71_MasterVoteMunicipal,E$47)","v":0},{"$f":"-SUMIFS(Sheet1!S71_ASBudgetAmount,Sheet1!S71_A4Code,$AC:$AC,Sheet1!S71_ItemType,$AD:$AD,Sheet1!S71_MasterVoteMunicipal,F$47)","v":0},{"$f":"-SUMIFS(Sheet1!S71_ASBudgetAmount,Sheet1!S71_A4Code,$AC:$AC,Sheet1!S71_ItemType,$AD:$AD,Sheet1!S71_MasterVoteMunicipal,G$47)","v":0},{"$f":"-SUMIFS(Sheet1!S71_ASBudgetAmount,Sheet1!S71_A4Code,$AC:$AC,Sheet1!S71_ItemType,$AD:$AD,Sheet1!S71_MasterVoteMunicipal,H$47)","v":0},{"$f":"-SUMIFS(Sheet1!S71_ASBudgetAmount,Sheet1!S71_A4Code,$AC:$AC,Sheet1!S71_ItemType,$AD:$AD,Sheet1!S71_MasterVoteMunicipal,I$47)","v":0},{"$f":"-SUMIFS(Sheet1!S71_ASBudgetAmount,Sheet1!S71_A4Code,$AC:$AC,Sheet1!S71_ItemType,$AD:$AD,Sheet1!S71_MasterVoteMunicipal,J$47)","v":0},{"$f":"-SUMIFS(Sheet1!S71_ASBudgetAmount,Sheet1!S71_A4Code,$AC:$AC,Sheet1!S71_ItemType,$AD:$AD,Sheet1!S71_MasterVoteMunicipal,K$47)","v":0},{"$f":"-SUMIFS(Sheet1!S71_ASBudgetAmount,Sheet1!S71_A4Code,$AC:$AC,Sheet1!S71_ItemType,$AD:$AD,Sheet1!S71_MasterVoteMunicipal,L$47)","v":0},{"$f":"-SUMIFS(Sheet1!S71_ASBudgetAmount,Sheet1!S71_A4Code,$AC:$AC,Sheet1!S71_ItemType,$AD:$AD,Sheet1!S71_MasterVoteMunicipal,M$47)","v":0},{"$f":"-SUMIFS(Sheet1!S71_ASBudgetAmount,Sheet1!S71_A4Code,$AC:$AC,Sheet1!S71_ItemType,$AD:$AD,Sheet1!S71_MasterVoteMunicipal,N$47)","v":0},{"$f":"-SUMIFS(Sheet1!S71_ASBudgetAmount,Sheet1!S71_A4Code,$AC:$AC,Sheet1!S71_ItemType,$AD:$AD,Sheet1!S71_MasterVoteMunicipal,O$47)","v":0},{"$f":"-SUMIFS(Sheet1!S71_ASBudgetAmount,Sheet1!S71_A4Code,$AC:$AC,Sheet1!S71_ItemType,$AD:$AD,Sheet1!S71_MasterVoteMunicipal,P$47)","v":0},{"$f":"-SUMIFS(Sheet1!S71_ASBudgetAmount,Sheet1!S71_A4Code,$AC:$AC,Sheet1!S71_ItemType,$AD:$AD,Sheet1!S71_MasterVoteMunicipal,Q$47)","v":0},{"$f":"SUM(C40:Q40)","v":0},null,null,null,null,null,null,null,null,null,null,"3500","IR"]
[{"$f":"'A4-FinPerf RE'!A41","v":"Surplus/(Deficit) after capital transfers & contributions"},null,{"$f":"SUM(C37:C40)","v":-693843},1534927,-205086,-150000,0,0,0,0,0,0,0,0,0,0,{"$f":"SUM(Q37:Q40)","v":0},{"$f":"SUM(R37:R40)","v":485998}]
[{"$f":"head27a","v":"References"}]
["1. Departmental columns to be based on municipal organisation structure"]
["check balance",null,null,null,null,null,null,null,null,null,null,null,null,null,null,null,null,{"$f":"'A4-FinPerf RE'!J41-'SA2'!R41","v":0}]
[]
[]
[null,null,1,2,3,4,5,6,7,8,9,10,11,12,13,14,15]

{"sheet":"SA3","index":31,"n_rows":184,"n_cols":29,"rows_kept":184,"cut":false,"hidden":false,"merged":[[1,0,2,0],[1,1,2,1],[1,9,1,11],[1,5,1,8]]}
[{"$f":"muni&\" - \"&TableA3","v":"DC16 Xhariep - Supporting Table SA3 Supportinging detail to 'Budgeted Financial Position'"}]
[{"$f":"desc","v":"Description"},{"$f":"head27","v":"Ref"},{"$f":"head1b","v":"2017/18"},{"$f":"head1A","v":"2018/19"},{"$f":"Head1","v":"2019/20"},{"$f":"Head2","v":"Current Year 2020/21"},null,null,null,{"$f":"Head3","v":"2021/22 Medium Term Revenue & Expenditure Framework"}]
[null,null,{"$f":"Head5","v":"Audited Outcome"},{"$f":"Head5","v":"Audited Outcome"},{"$f":"Head5","v":"Audited Outcome"},{"$f":"Head6","v":"Original Budget"},{"$f":"Head7","v":"Adjusted Budget"},{"$f":"Head8","v":"Full Year Forecast"},{"$f":"Head5b","v":"Pre-audit outcome"},{"$f":"Head9","v":"Budget Year 2021/22"},{"$f":"Head10","v":"Budget Year +1 2022/23"},{"$f":"Head11","v":"Budget Year +2 2023/24"}]
["R thousand"]
["ASSETS"]
[]
[]
[]
[]
[]
[{"$f":"'A6-FinPos'!A8","v":"Consumer debtors"}]
[{"$f":"A11","v":"Consumer debtors"},null,{"$f":"SUMIFS(Sheet1!S71_PPPYearAmount,Sheet1!S71_SA3Code,$AC:$AC)","v":0},{"$f":"SUMIFS(Sheet1!S71_PPYearAmount,Sheet1!S71_SA3Code,$AC:$AC)","v":2570936},{"$f":"SUMIFS(Sheet1!S71_PYearAmount,Sheet1!S71_SA3Code,$AC:$AC)","v":5944805},{"$f":"SUMIFS(Sheet1!S71_OriginalBudAmnt,Sheet1!S71_SA3Code,$AC:$AC)","v":0},{"$f":"SUMIFS(Sheet1!S71_AdjustmentBudAmnt,Sheet1!S71_SA3Code,$AC:$AC)","v":0},{"$f":"SUMIFS(Sheet1!S71_AdjustmentBudAmnt,Sheet1!S71_SA3Code,$AC:$AC)","v":0},{"$f":"SUMIFS(Sheet1!CD:CD,Sheet1!S71_SA3Code,$AC:$AC)","v":6806544},{"$f":"SUMIFS(Sheet1!S71_ASBudgetAmount,Sheet1!S71_SA3Code,$AC:$AC)","v":0},{"$f":"SUMIFS(Sheet1!S71_OY1BudgetAmount,Sheet1!S71_SA3Code,$AC:$AC)","v":0},{"$f":"SUMIFS(Sheet1!S71_OY2BudgetAmount,Sheet1!S71_SA3Code,$AC:$AC)","v":0},null,null,null,null,null,null,null,null,null,null,null,null,null,null,null,null,"0141"]
["Less: Provision for debt impairment",null,{"$f":"SUMIFS(Sheet1!S71_PPPYearAmount,Sheet1!S71_SA3Code,\"0145\")+SUMIFS(Sheet1!S71_PPPYearAmount,Sheet1!S71_SA3Code,\"0146\")+SUMIFS(Sheet1!S71_PPPYearAmount,Sheet1!S71_SA3Code,\"0147\")","v":0},{"$f":"SUMIFS(Sheet1!S71_PPYearAmount,Sheet1!S71_SA3Code,\"0145\")+SUMIFS(Sheet1!S71_PPYearAmount,Sheet1!S71_SA3Code,\"0146\")+SUMIFS(Sheet1!S71_PPYearAmount,Sheet1!S71_SA3Code,\"0147\")","v":-1588212},{"$f":"SUMIFS(Sheet1!S71_PYearAmount,Sheet1!S71_SA3Code,\"0145\")+SUMIFS(Sheet1!S71_PYearAmount,Sheet1!S71_SA3Code,\"0146\")+SUMIFS(Sheet1!S71_PYearAmount,Sheet1!S71_SA3Code,\"0147\")","v":-2084804},{"$f":"SUMIFS(Sheet1!S71_OriginalBudAmnt,Sheet1!S71_SA3Code,\"0145\")+SUMIFS(Sheet1!S71_OriginalBudAmnt,Sheet1!S71_SA3Code,\"0146\")+SUMIFS(Sheet1!S71_OriginalBudAmnt,Sheet1!S71_SA3Code,\"0147\")","v":0},{"$f":"SUMIFS(Sheet1!S71_AdjustmentBudAmnt,Sheet1!S71_SA3Code,\"0145\")+SUMIFS(Sheet1!S71_AdjustmentBudAmnt,Sheet1!S71_SA3Code,\"0146\")+SUMIFS(Sheet1!S71_AdjustmentBudAmnt,Sheet1!S71_SA3Code,\"0147\")","v":0},{"$f":"SUMIFS(Sheet1!S71_AdjustmentBudAmnt,Sheet1!S71_SA3Code,\"0145\")+SUMIFS(Sheet1!S71_AdjustmentBudAmnt,Sheet1!S71_SA3Code,\"0146\")+SUMIFS(Sheet1!S71_AdjustmentBudAmnt,Sheet1!S71_SA3Code,\"0147\")","v":0},{"$f":"SUMIFS(Sheet1!CD:CD,Sheet1!S71_SA3Code,\"0145\")+SUMIFS(Sheet1!CD:CD,Sheet1!S71_SA3Code,\"0146\")+SUMIFS(Sheet1!CD:CD,Sheet1!S71_SA3Code,\"0147\")","v":-2084804},{"$f":"SUMIFS(Sheet1!S71_ASBudgetAmount,Sheet1!S71_SA3Code,\"0145\")+SUMIFS(Sheet1!S71_ASBudgetAmount,Sheet1!S71_SA3Code,\"0146\")+SUMIFS(Sheet1!S71_ASBudgetAmount,Sheet1!S71_SA3Code,\"0147\")","v":0},{"$f":"SUMIFS(Sheet1!S71_OY1BudgetAmount,Sheet1!S71_SA3Code,\"0145\")+SUMIFS(Sheet1!S71_OY1BudgetAmount,Sheet1!S71_SA3Code,\"0146\")+SUMIFS(Sheet1!S71_OY1BudgetAmount,Sheet1!S71_SA3Code,\"0147\")","v":0},{"$f":"SUMIFS(Sheet1!S71_OY2BudgetAmount,Sheet1!S71_SA3Code,\"0145\")+SUMIFS(Sheet1!S71_OY2BudgetAmount,Sheet1!S71_SA3Code,\"0146\")+SUMIFS(Sheet1!S71_OY2BudgetAmount,Sheet1!S71_SA3Code,\"0147\")","v":0}]
[{"$f":"\"Total \"&A11","v":"Total Consumer debtors"},2,{"$f":"SUM(C12:C13)","v":0},{"$f":"SUM(D12:D13)","v":982724},3860001,{"$f":"SUM(F12:F13)","v":0},0,0,4721740,0,0,0]
[]
["Debt impairment provision"]
["Balance at the beginning of the year",null,{"$f":"SUMIFS(Sheet1!S71_PPPYearAmount,Sheet1!S71_SA3Code,$AC:$AC)","v":0},{"$f":"SUMIFS(Sheet1!S71_PPYearAmount,Sheet1!S71_SA3Code,$AC:$AC)","v":-1588212},{"$f":"SUMIFS(Sheet1!S71_PYearAmount,Sheet1!S71_SA3Code,$AC:$AC)","v":-2084804},{"$f":"SUMIFS(Sheet1!S71_OriginalBudAmnt,Sheet1!S71_SA3Code,$AC:$AC)","v":0},{"$f":"SUMIFS(Sheet1!S71_AdjustmentBudAmnt,Sheet1!S71_SA3Code,$AC:$AC)","v":0},{"$f":"SUMIFS(Sheet1!S71_AdjustmentBudAmnt,Sheet1!S71_SA3Code,$AC:$AC)","v":0},{"$f":"SUMIFS(Sheet1!CD:CD,Sheet1!S71_SA3Code,$AC:$AC)","v":-2084804},{"$f":"SUMIFS(Sheet1!S71_ASBudgetAmount,Sheet1!S71_SA3Code,$AC:$AC)","v":0},{"$f":"SUMIFS(Sheet1!S71_OY1BudgetAmount,Sheet1!S71_SA3Code,$AC:$AC)","v":0},{"$f":"SUMIFS(Sheet1!S71_OY2BudgetAmount,Sheet1!S71_SA3Code,$AC:$AC)","v":0},null,null,null,null,null,null,null,null,null,null,null,null,null,null,null,null,"0145"]
["Contributions to the provision",null,{"$f":"SUMIFS(Sheet1!S71_PPPYearAmount,Sheet1!S71_SA3Code,$AC:$AC)","v":0},{"$f":"SUMIFS(Sheet1!S71_PPYearAmount,Sheet1!S71_SA3Code,$AC:$AC)","v":0},{"$f":"SUMIFS(Sheet1!S71_PYearAmount,Sheet1!S71_SA3Code,$AC:$AC)","v":0},{"$f":"SUMIFS(Sheet1!S71_OriginalBudAmnt,Sheet1!S71_SA3Code,$AC:$AC)","v":0},{"$f":"SUMIFS(Sheet1!S71_AdjustmentBudAmnt,Sheet1!S71_SA3Code,$AC:$AC)","v":0},{"$f":"SUMIFS(Sheet1!S71_AdjustmentBudAmnt,Sheet1!S71_SA3Code,$AC:$AC)","v":0},{"$f":"SUMIFS(Sheet1!CD:CD,Sheet1!S71_SA3Code,$AC:$AC)","v":0},{"$f":"SUMIFS(Sheet1!S71_ASBudgetAmount,Sheet1!S71_SA3Code,$AC:$AC)","v":0},{"$f":"SUMIFS(Sheet1!S71_OY1BudgetAmount,Sheet1!S71_SA3Code,$AC:$AC)","v":0},{"$f":"SUMIFS(Sheet1!S71_OY2BudgetAmount,Sheet1!S71_SA3Code,$AC:$AC)","v":0},null,null,null,null,null,null,null,null,null,null,null,null,null,null,null,null,"0146"]
["Bad debts written off",null,{"$f":"SUMIFS(Sheet1!S71_PPPYearAmount,Sheet1!S71_SA3Code,$AC:$AC)","v":0},{"$f":"SUMIFS(Sheet1!S71_PPYearAmount,Sheet1!S71_SA3Code,$AC:$AC)","v":0},{"$f":"SUMIFS(Sheet1!S71_PYearAmount,Sheet1!S71_SA3Code,$AC:$AC)","v":0},{"$f":"SUMIFS(Sheet1!S71_OriginalBudAmnt,Sheet1!S71_SA3Code,$AC:$AC)","v":0},{"$f":"SUMIFS(Sheet1!S71_AdjustmentBudAmnt,Sheet1!S71_SA3Code,$AC:$AC)","v":0},{"$f":"SUMIFS(Sheet1!S71_AdjustmentBudAmnt,Sheet1!S71_SA3Code,$AC:$AC)","v":0},{"$f":"SUMIFS(Sheet1!CD:CD,Sheet1!S71_SA3Code,$AC:$AC)","v":0},{"$f":"SUMIFS(Sheet1!S71_ASBudgetAmount,Sheet1!S71_SA3Code,$AC:$AC)","v":0},{"$f":"SUMIFS(Sheet1!S71_OY1BudgetAmount,Sheet1!S71_SA3Code,$AC:$AC)","v":0},{"$f":"SUMIFS(Sheet1!S71_OY2BudgetAmount,Sheet1!S71_SA3Code,$AC:$AC)","v":0},null,null,null,null,null,null,null,null,null,null,null,null,null,null,null,null,"0147"]
["Balance at end of year",null,{"$f":"SUM(C17:C19)","v":0},{"$f":"SUM(D17:D19)","v":-1588212},-2084804,0,0,0,-2084804,0,0,0]
[]
["Inventory"]
["Water"]
["  Opening Balance",null,{"$f":"SUMIFS(Sheet1!S71_PPPYearAmount,Sheet1!S71_A6SubCode,$AC:$AC)","v":0},{"$f":"C53","v":0},{"$f":"D53","v":0},{"$f":"E53","v":0},{"$f":"E53","v":0},{"$f":"E53","v":0},{"$f":"E53","v":0},{"$f":"SUMIFS(Sheet1!S71_ASBudgetAmount,Sheet1!S71_A6SubCode,$AC:$AC)","v":0},{"$f":"SUMIFS(Sheet1!S71_OY1BudgetAmount,Sheet1!S71_A6SubCode,$AC:$AC)","v":0},{"$f":"SUMIFS(Sheet1!S71_OY2BudgetAmount,Sheet1!S71_A6SubCode,$AC:$AC)","v":0},null,null,null,null,null,null,null,null,null,null,null,null,null,null,null,null,"0170-01-00"]
["  System Input Volume",null,{"$f":"(SUM(C26:C28))","v":0},{"$f":"(SUM(D26:D28))","v":0},0,0,0,0,0,0,0,0]
["      Water Treatment Works",null,{"$f":"SUMIFS(Sheet1!S71_PPPYearAmount,Sheet1!S71_A6SubCode,$AC:$AC)","v":0},{"$f":"SUMIFS(Sheet1!S71_PPYearAmount,Sheet1!S71_A6SubCode,$AC:$AC)","v":0},{"$f":"SUMIFS(Sheet1!S71_PYearAmount,Sheet1!S71_A6SubCode,$AC:$AC)","v":0},{"$f":"SUMIFS(Sheet1!S71_OriginalBudAmnt,Sheet1!S71_A6SubCode,$AC:$AC)","v":0},{"$f":"SUMIFS(Sheet1!S71_AdjustmentBudAmnt,Sheet1!S71_A6SubCode,$AC:$AC)","v":0},{"$f":"SUMIFS(Sheet1!S71_AdjustmentBudAmnt,Sheet1!S71_A6SubCode,$AC:$AC)","v":0},{"$f":"SUMIFS(Sheet1!CD:CD,Sheet1!S71_A6SubCode,$AC:$AC)","v":0},{"$f":"SUMIFS(Sheet1!S71_ASBudgetAmount,Sheet1!S71_A6SubCode,$AC:$AC)","v":0},{"$f":"SUMIFS(Sheet1!S71_OY1BudgetAmount,Sheet1!S71_A6SubCode,$AC:$AC)","v":0},{"$f":"SUMIFS(Sheet1!S71_OY2BudgetAmount,Sheet1!S71_A6SubCode,$AC:$AC)","v":0},null,null,null,null,null,null,null,null,null,null,null,null,null,null,null,null,"0170-01-01"]
["      Bulk Purchases",null,{"$f":"SUMIFS(Sheet1!S71_PPPYearAmount,Sheet1!S71_A6SubCode,$AC:$AC)","v":0},{"$f":"SUMIFS(Sheet1!S71_PPYearAmount,Sheet1!S71_A6SubCode,$AC:$AC)","v":0},{"$f":"SUMIFS(Sheet1!S71_PYearAmount,Sheet1!S71_A6SubCode,$AC:$AC)","v":0},{"$f":"SUMIFS(Sheet1!S71_OriginalBudAmnt,Sheet1!S71_A6SubCode,$AC:$AC)","v":0},{"$f":"SUMIFS(Sheet1!S71_AdjustmentBudAmnt,Sheet1!S71_A6SubCode,$AC:$AC)","v":0},{"$f":"SUMIFS(Sheet1!S71_AdjustmentBudAmnt,Sheet1!S71_A6SubCode,$AC:$AC)","v":0},{"$f":"SUMIFS(Sheet1!CD:CD,Sheet1!S71_A6SubCode,$AC:$AC)","v":0},{"$f":"SUMIFS(Sheet1!S71_ASBudgetAmount,Sheet1!S71_A6SubCode,$AC:$AC)","v":0},{"$f":"SUMIFS(Sheet1!S71_OY1BudgetAmount,Sheet1!S71_A6SubCode,$AC:$AC)","v":0},{"$f":"SUMIFS(Sheet1!S71_OY2BudgetAmount,Sheet1!S71_A6SubCode,$AC:$AC)","v":0},null,null,null,null,null,null,null,null,null,null,null,null,null,null,null,null,"0170-01-02"]
["      Natural Sources",null,{"$f":"SUMIFS(Sheet1!S71_PPPYearAmount,Sheet1!S71_A6SubCode,$AC:$AC)","v":0},{"$f":"SUMIFS(Sheet1!S71_PPYearAmount,Sheet1!S71_A6SubCode,$AC:$AC)","v":0},{"$f":"SUMIFS(Sheet1!S71_PYearAmount,Sheet1!S71_A6SubCode,$AC:$AC)","v":0},{"$f":"SUMIFS(Sheet1!S71_OriginalBudAmnt,Sheet1!S71_A6SubCode,$AC:$AC)","v":0},{"$f":"SUMIFS(Sheet1!S71_AdjustmentBudAmnt,Sheet1!S71_A6SubCode,$AC:$AC)","v":0},{"$f":"SUMIFS(Sheet1!S71_AdjustmentBudAmnt,Sheet1!S71_A6SubCode,$AC:$AC)","v":0},{"$f":"SUMIFS(Sheet1!CD:CD,Sheet1!S71_A6SubCode,$AC:$AC)","v":0},{"$f":"SUMIFS(Sheet1!S71_ASBudgetAmount,Sheet1!S71_A6SubCode,$AC:$AC)","v":0},{"$f":"SUMIFS(Sheet1!S71_OY1BudgetAmount,Sheet1!S71_A6SubCode,$AC:$AC)","v":0},{"$f":"SUMIFS(Sheet1!S71_OY2BudgetAmount,Sheet1!S71_A6SubCode,$AC:$AC)","v":0},null,null,null,null,null,null,null,null,null,null,null,null,null,null,null,null,"0170-01-03"]
["  Authorised Consumption",6,{"$f":"C30+C39","v":0},{"$f":"D30+D39","v":0},0,0,{"$f":"G30+G39","v":0},0,0,0,0,0]
["      Billed Authorised Consumption",null,{"$f":"C35+C31","v":0},{"$f":"D35+D31","v":0},0,0,0,0,0,0,0,0]
["         Billed Metered Consumption",null,{"$f":"SUM(C32:C34)","v":0},{"$f":"SUM(D32:D34)","v":0},0,0,0,0,0,0,0,0]
["          Free Basic Water",null,{"$f":"SUMIFS(Sheet1!S71_PPPYearAmount,Sheet1!S71_A6SubCode,$AC:$AC)","v":0},{"$f":"SUMIFS(Sheet1!S71_PPYearAmount,Sheet1!S71_A6SubCode,$AC:$AC)","v":0},{"$f":"SUMIFS(Sheet1!S71_PYearAmount,Sheet1!S71_A6SubCode,$AC:$AC)","v":0},{"$f":"SUMIFS(Sheet1!S71_OriginalBudAmnt,Sheet1!S71_A6SubCode,$AC:$AC)","v":0},{"$f":"SUMIFS(Sheet1!S71_AdjustmentBudAmnt,Sheet1!S71_A6SubCode,$AC:$AC)","v":0},{"$f":"SUMIFS(Sheet1!S71_AdjustmentBudAmnt,Sheet1!S71_A6SubCode,$AC:$AC)","v":0},{"$f":"SUMIFS(Sheet1!CD:CD,Sheet1!S71_A6SubCode,$AC:$AC)","v":0},{"$f":"SUMIFS(Sheet1!S71_ASBudgetAmount,Sheet1!S71_A6SubCode,$AC:$AC)","v":0},{"$f":"SUMIFS(Sheet1!S71_OY1BudgetAmount,Sheet1!S71_A6SubCode,$AC:$AC)","v":0},{"$f":"SUMIFS(Sheet1!S71_OY2BudgetAmount,Sheet1!S71_A6SubCode,$AC:$AC)","v":0},null,null,null,null,null,null,null,null,null,null,null,null,null,null,null,null,"0170-01-04"]
["          Subsidised Water",null,{"$f":"SUMIFS(Sheet1!S71_PPPYearAmount,Sheet1!S71_A6SubCode,$AC:$AC)","v":0},{"$f":"SUMIFS(Sheet1!S71_PPYearAmount,Sheet1!S71_A6SubCode,$AC:$AC)","v":0},{"$f":"SUMIFS(Sheet1!S71_PYearAmount,Sheet1!S71_A6SubCode,$AC:$AC)","v":0},{"$f":"SUMIFS(Sheet1!S71_OriginalBudAmnt,Sheet1!S71_A6SubCode,$AC:$AC)","v":0},{"$f":"SUMIFS(Sheet1!S71_AdjustmentBudAmnt,Sheet1!S71_A6SubCode,$AC:$AC)","v":0},{"$f":"SUMIFS(Sheet1!S71_AdjustmentBudAmnt,Sheet1!S71_A6SubCode,$AC:$AC)","v":0},{"$f":"SUMIFS(Sheet1!CD:CD,Sheet1!S71_A6SubCode,$AC:$AC)","v":0},{"$f":"SUMIFS(Sheet1!S71_ASBudgetAmount,Sheet1!S71_A6SubCode,$AC:$AC)","v":0},{"$f":"SUMIFS(Sheet1!S71_OY1BudgetAmount,Sheet1!S71_A6SubCode,$AC:$AC)","v":0},{"$f":"SUMIFS(Sheet1!S71_OY2BudgetAmount,Sheet1!S71_A6SubCode,$AC:$AC)","v":0},null,null,null,null,null,null,null,null,null,null,null,null,null,null,null,null,"0170-01-05"]
["          Revenue Water",null,{"$f":"SUMIFS(Sheet1!S71_PPPYearAmount,Sheet1!S71_A6SubCode,$AC:$AC)","v":0},{"$f":"SUMIFS(Sheet1!S71_PPYearAmount,Sheet1!S71_A6SubCode,$AC:$AC)","v":0},{"$f":"SUMIFS(Sheet1!S71_PYearAmount,Sheet1!S71_A6SubCode,$AC:$AC)","v":0},{"$f":"SUMIFS(Sheet1!S71_OriginalBudAmnt,Sheet1!S71_A6SubCode,$AC:$AC)","v":0},{"$f":"SUMIFS(Sheet1!S71_AdjustmentBudAmnt,Sheet1!S71_A6SubCode,$AC:$AC)","v":0},{"$f":"SUMIFS(Sheet1!S71_AdjustmentBudAmnt,Sheet1!S71_A6SubCode,$AC:$AC)","v":0},{"$f":"SUMIFS(Sheet1!CD:CD,Sheet1!S71_A6SubCode,$AC:$AC)","v":0},{"$f":"SUMIFS(Sheet1!S71_ASBudgetAmount,Sheet1!S71_A6SubCode,$AC:$AC)","v":0},{"$f":"SUMIFS(Sheet1!S71_OY1BudgetAmount,Sheet1!S71_A6SubCode,$AC:$AC)","v":0},{"$f":"SUMIFS(Sheet1!S71_OY2BudgetAmount,Sheet1!S71_A6SubCode,$AC:$AC)","v":0},null,null,null,null,null,null,null,null,null,null,null,null,null,null,null,null,"0170-01-06"]
["         Billed Unmetered Consumption",null,{"$f":"SUM(C36:C38)","v":0},{"$f":"SUM(D36:D38)","v":0},0,0,0,0,0,0,0,0]
["          Free Basic Water",null,{"$f":"SUMIFS(Sheet1!S71_PPPYearAmount,Sheet1!S71_A6SubCode,$AC:$AC)","v":0},{"$f":"SUMIFS(Sheet1!S71_PPYearAmount,Sheet1!S71_A6SubCode,$AC:$AC)","v":0},{"$f":"SUMIFS(Sheet1!S71_PYearAmount,Sheet1!S71_A6SubCode,$AC:$AC)","v":0},{"$f":"SUMIFS(Sheet1!S71_OriginalBudAmnt,Sheet1!S71_A6SubCode,$AC:$AC)","v":0},{"$f":"SUMIFS(Sheet1!S71_AdjustmentBudAmnt,Sheet1!S71_A6SubCode,$AC:$AC)","v":0},{"$f":"SUMIFS(Sheet1!S71_AdjustmentBudAmnt,Sheet1!S71_A6SubCode,$AC:$AC)","v":0},{"$f":"SUMIFS(Sheet1!CD:CD,Sheet1!S71_A6SubCode,$AC:$AC)","v":0},{"$f":"SUMIFS(Sheet1!S71_ASBudgetAmount,Sheet1!S71_A6SubCode,$AC:$AC)","v":0},{"$f":"SUMIFS(Sheet1!S71_OY1BudgetAmount,Sheet1!S71_A6SubCode,$AC:$AC)","v":0},{"$f":"SUMIFS(Sheet1!S71_OY2BudgetAmount,Sheet1!S71_A6SubCode,$AC:$AC)","v":0},null,null,null,null,null,null,null,null,null,null,null,null,null,null,null,null,"0170-01-07"]
["          Subsidised Water",null,{"$f":"SUMIFS(Sheet1!S71_PPPYearAmount,Sheet1!S71_A6SubCode,$AC:$AC)","v":0},{"$f":"SUMIFS(Sheet1!S71_PPYearAmount,Sheet1!S71_A6SubCode,$AC:$AC)","v":0},{"$f":"SUMIFS(Sheet1!S71_PYearAmount,Sheet1!S71_A6SubCode,$AC:$AC)","v":0},{"$f":"SUMIFS(Sheet1!S71_OriginalBudAmnt,Sheet1!S71_A6SubCode,$AC:$AC)","v":0},{"$f":"SUMIFS(Sheet1!S71_AdjustmentBudAmnt,Sheet1!S71_A6SubCode,$AC:$AC)","v":0},{"$f":"SUMIFS(Sheet1!S71_AdjustmentBudAmnt,Sheet1!S71_A6SubCode,$AC:$AC)","v":0},{"$f":"SUMIFS(Sheet1!CD:CD,Sheet1!S71_A6SubCode,$AC:$AC)","v":0},{"$f":"SUMIFS(Sheet1!S71_ASBudgetAmount,Sheet1!S71_A6SubCode,$AC:$AC)","v":0},{"$f":"SUMIFS(Sheet1!S71_OY1BudgetAmount,Sheet1!S71_A6SubCode,$AC:$AC)","v":0},{"$f":"SUMIFS(Sheet1!S71_OY2BudgetAmount,Sheet1!S71_A6SubCode,$AC:$AC)","v":0},null,null,null,null,null,null,null,null,null,null,null,null,null,null,null,null,"0170-01-08"]
["          Revenue Water",null,{"$f":"SUMIFS(Sheet1!S71_PPPYearAmount,Sheet1!S71_A6SubCode,$AC:$AC)","v":0},{"$f":"SUMIFS(Sheet1!S71_PPYearAmount,Sheet1!S71_A6SubCode,$AC:$AC)","v":0},{"$f":"SUMIFS(Sheet1!S71_PYearAmount,Sheet1!S71_A6SubCode,$AC:$AC)","v":0},{"$f":"SUMIFS(Sheet1!S71_OriginalBudAmnt,Sheet1!S71_A6SubCode,$AC:$AC)","v":0},{"$f":"SUMIFS(Sheet1!S71_AdjustmentBudAmnt,Sheet1!S71_A6SubCode,$AC:$AC)","v":0},{"$f":"SUMIFS(Sheet1!S71_AdjustmentBudAmnt,Sheet1!S71_A6SubCode,$AC:$AC)","v":0},{"$f":"SUMIFS(Sheet1!CD:CD,Sheet1!S71_A6SubCode,$AC:$AC)","v":0},{"$f":"SUMIFS(Sheet1!S71_ASBudgetAmount,Sheet1!S71_A6SubCode,$AC:$AC)","v":0},{"$f":"SUMIFS(Sheet1!S71_OY1BudgetAmount,Sheet1!S71_A6SubCode,$AC:$AC)","v":0},{"$f":"SUMIFS(Sheet1!S71_OY2BudgetAmount,Sheet1!S71_A6SubCode,$AC:$AC)","v":0},null,null,null,null,null,null,null,null,null,null,null,null,null,null,null,null,"0170-01-09"]
["     UnBilled Authorised Consumption",null,{"$f":"SUM(C40:C41)","v":0},{"$f":"SUM(D40:D41)","v":0},0,0,{"$f":"SUM(G40:G41)","v":0},0,0,0,0,0]
["          Unbilled Metered Consumption",null,{"$f":"SUMIFS(Sheet1!S71_PPPYearAmount,Sheet1!S71_A6SubCode,$AC:$AC)","v":0},{"$f":"SUMIFS(Sheet1!S71_PPYearAmount,Sheet1!S71_A6SubCode,$AC:$AC)","v":0},{"$f":"SUMIFS(Sheet1!S71_PYearAmount,Sheet1!S71_A6SubCode,$AC:$AC)","v":0},{"$f":"SUMIFS(Sheet1!S71_OriginalBudAmnt,Sheet1!S71_A6SubCode,$AC:$AC)","v":0},{"$f":"SUMIFS(Sheet1!S71_AdjustmentBudAmnt,Sheet1!S71_A6SubCode,$AC:$AC)","v":0},{"$f":"SUMIFS(Sheet1!S71_AdjustmentBudAmnt,Sheet1!S71_A6SubCode,$AC:$AC)","v":0},{"$f":"SUMIFS(Sheet1!CD:CD,Sheet1!S71_A6SubCode,$AC:$AC)","v":0},{"$f":"SUMIFS(Sheet1!S71_ASBudgetAmount,Sheet1!S71_A6SubCode,$AC:$AC)","v":0},{"$f":"SUMIFS(Sheet1!S71_OY1BudgetAmount,Sheet1!S71_A6SubCode,$AC:$AC)","v":0},{"$f":"SUMIFS(Sheet1!S71_OY2BudgetAmount,Sheet1!S71_A6SubCode,$AC:$AC)","v":0},null,null,null,null,null,null,null,null,null,null,null,null,null,null,null,null,"0170-01-10"]
["          Unbilled Unmetered Consumption",null,{"$f":"SUMIFS(Sheet1!S71_PPPYearAmount,Sheet1!S71_A6SubCode,$AC:$AC)","v":0},{"$f":"SUMIFS(Sheet1!S71_PPYearAmount,Sheet1!S71_A6SubCode,$AC:$AC)","v":0},{"$f":"SUMIFS(Sheet1!S71_PYearAmount,Sheet1!S71_A6SubCode,$AC:$AC)","v":0},{"$f":"SUMIFS(Sheet1!S71_OriginalBudAmnt,Sheet1!S71_A6SubCode,$AC:$AC)","v":0},{"$f":"SUMIFS(Sheet1!S71_AdjustmentBudAmnt,Sheet1!S71_A6SubCode,$AC:$AC)","v":0},{"$f":"SUMIFS(Sheet1!S71_AdjustmentBudAmnt,Sheet1!S71_A6SubCode,$AC:$AC)","v":0},{"$f":"SUMIFS(Sheet1!CD:CD,Sheet1!S71_A6SubCode,$AC:$AC)","v":0},{"$f":"SUMIFS(Sheet1!S71_ASBudgetAmount,Sheet1!S71_A6SubCode,$AC:$AC)","v":0},{"$f":"SUMIFS(Sheet1!S71_OY1BudgetAmount,Sheet1!S71_A6SubCode,$AC:$AC)","v":0},{"$f":"SUMIFS(Sheet1!S71_OY2BudgetAmount,Sheet1!S71_A6SubCode,$AC:$AC)","v":0},null,null,null,null,null,null,null,null,null,null,null,null,null,null,null,null,"0170-01-11"]
["     Water Losses",null,{"$f":"C43+C46","v":0},{"$f":"D43+D46","v":0},0,0,0,0,0,0,0,0]
["         Apparent losses",null,{"$f":"SUM(C44:C45)","v":0},{"$f":"SUM(D44:D45)","v":0},0,0,0,0,0,0,0,0]
["           Unauthorised Consumption",null,{"$f":"SUMIFS(Sheet1!S71_PPPYearAmount,Sheet1!S71_A6SubCode,$AC:$AC)","v":0},{"$f":"SUMIFS(Sheet1!S71_PPYearAmount,Sheet1!S71_A6SubCode,$AC:$AC)","v":0},{"$f":"SUMIFS(Sheet1!S71_PYearAmount,Sheet1!S71_A6SubCode,$AC:$AC)","v":0},{"$f":"SUMIFS(Sheet1!S71_OriginalBudAmnt,Sheet1!S71_A6SubCode,$AC:$AC)","v":0},{"$f":"SUMIFS(Sheet1!S71_AdjustmentBudAmnt,Sheet1!S71_A6SubCode,$AC:$AC)","v":0},{"$f":"SUMIFS(Sheet1!S71_AdjustmentBudAmnt,Sheet1!S71_A6SubCode,$AC:$AC)","v":0},{"$f":"SUMIFS(Sheet1!CD:CD,Sheet1!S71_A6SubCode,$AC:$AC)","v":0},{"$f":"SUMIFS(Sheet1!S71_ASBudgetAmount,Sheet1!S71_A6SubCode,$AC:$AC)","v":0},{"$f":"SUMIFS(Sheet1!S71_OY1BudgetAmount,Sheet1!S71_A6SubCode,$AC:$AC)","v":0},{"$f":"SUMIFS(Sheet1!S71_OY2BudgetAmount,Sheet1!S71_A6SubCode,$AC:$AC)","v":0},null,null,null,null,null,null,null,null,null,null,null,null,null,null,null,null,"0170-01-12"]
["           Customer Meter Inaccuracies",null,{"$f":"SUMIFS(Sheet1!S71_PPPYearAmount,Sheet1!S71_A6SubCode,$AC:$AC)","v":0},{"$f":"SUMIFS(Sheet1!S71_PPYearAmount,Sheet1!S71_A6SubCode,$AC:$AC)","v":0},{"$f":"SUMIFS(Sheet1!S71_PYearAmount,Sheet1!S71_A6SubCode,$AC:$AC)","v":0},{"$f":"SUMIFS(Sheet1!S71_OriginalBudAmnt,Sheet1!S71_A6SubCode,$AC:$AC)","v":0},{"$f":"SUMIFS(Sheet1!S71_AdjustmentBudAmnt,Sheet1!S71_A6SubCode,$AC:$AC)","v":0},{"$f":"SUMIFS(Sheet1!S71_AdjustmentBudAmnt,Sheet1!S71_A6SubCode,$AC:$AC)","v":0},{"$f":"SUMIFS(Sheet1!CD:CD,Sheet1!S71_A6SubCode,$AC:$AC)","v":0},{"$f":"SUMIFS(Sheet1!S71_ASBudgetAmount,Sheet1!S71_A6SubCode,$AC:$AC)","v":0},{"$f":"SUMIFS(Sheet1!S71_OY1BudgetAmount,Sheet1!S71_A6SubCode,$AC:$AC)","v":0},{"$f":"SUMIFS(Sheet1!S71_OY2BudgetAmount,Sheet1!S71_A6SubCode,$AC:$AC)","v":0},null,null,null,null,null,null,null,null,null,null,null,null,null,null,null,null,"0170-01-13"]
["         Real losses",null,{"$f":"SUM(C47:C51)","v":0},{"$f":"SUM(D47:D51)","v":0},0,0,0,0,0,0,0,0]
["           Leakage on Transmission and Distribution Mains",null,{"$f":"SUMIFS(Sheet1!S71_PPPYearAmount,Sheet1!S71_A6SubCode,$AC:$AC)","v":0},{"$f":"SUMIFS(Sheet1!S71_PPYearAmount,Sheet1!S71_A6SubCode,$AC:$AC)","v":0},{"$f":"SUMIFS(Sheet1!S71_PYearAmount,Sheet1!S71_A6SubCode,$AC:$AC)","v":0},{"$f":"SUMIFS(Sheet1!S71_OriginalBudAmnt,Sheet1!S71_A6SubCode,$AC:$AC)","v":0},{"$f":"SUMIFS(Sheet1!S71_AdjustmentBudAmnt,Sheet1!S71_A6SubCode,$AC:$AC)","v":0},{"$f":"SUMIFS(Sheet1!S71_AdjustmentBudAmnt,Sheet1!S71_A6SubCode,$AC:$AC)","v":0},{"$f":"SUMIFS(Sheet1!CD:CD,Sheet1!S71_A6SubCode,$AC:$AC)","v":0},{"$f":"SUMIFS(Sheet1!S71_ASBudgetAmount,Sheet1!S71_A6SubCode,$AC:$AC)","v":0},{"$f":"SUMIFS(Sheet1!S71_OY1BudgetAmount,Sheet1!S71_A6SubCode,$AC:$AC)","v":0},{"$f":"SUMIFS(Sheet1!S71_OY2BudgetAmount,Sheet1!S71_A6SubCode,$AC:$AC)","v":0},null,null,null,null,null,null,null,null,null,null,null,null,null,null,null,null,"0170-01-14"]
["           Leakage and Overflows at Storage Tanks/Reservoirs",null,{"$f":"SUMIFS(Sheet1!S71_PPPYearAmount,Sheet1!S71_A6SubCode,$AC:$AC)","v":0},{"$f":"SUMIFS(Sheet1!S71_PPYearAmount,Sheet1!S71_A6SubCode,$AC:$AC)","v":0},{"$f":"SUMIFS(Sheet1!S71_PYearAmount,Sheet1!S71_A6SubCode,$AC:$AC)","v":0},{"$f":"SUMIFS(Sheet1!S71_OriginalBudAmnt,Sheet1!S71_A6SubCode,$AC:$AC)","v":0},{"$f":"SUMIFS(Sheet1!S71_AdjustmentBudAmnt,Sheet1!S71_A6SubCode,$AC:$AC)","v":0},{"$f":"SUMIFS(Sheet1!S71_AdjustmentBudAmnt,Sheet1!S71_A6SubCode,$AC:$AC)","v":0},{"$f":"SUMIFS(Sheet1!CD:CD,Sheet1!S71_A6SubCode,$AC:$AC)","v":0},{"$f":"SUMIFS(Sheet1!S71_ASBudgetAmount,Sheet1!S71_A6SubCode,$AC:$AC)","v":0},{"$f":"SUMIFS(Sheet1!S71_OY1BudgetAmount,Sheet1!S71_A6SubCode,$AC:$AC)","v":0},{"$f":"SUMIFS(Sheet1!S71_OY2BudgetAmount,Sheet1!S71_A6SubCode,$AC:$AC)","v":0},null,null,null,null,null,null,null,null,null,null,null,null,null,null,null,null,"0170-01-15"]
["           Leakage on Service Connections up to the point of Customer Meter",null,{"$f":"SUMIFS(Sheet1!S71_PPPYearAmount,Sheet1!S71_A6SubCode,$AC:$AC)","v":0},{"$f":"SUMIFS(Sheet1!S71_PPYearAmount,Sheet1!S71_A6SubCode,$AC:$AC)","v":0},{"$f":"SUMIFS(Sheet1!S71_PYearAmount,Sheet1!S71_A6SubCode,$AC:$AC)","v":0},{"$f":"SUMIFS(Sheet1!S71_OriginalBudAmnt,Sheet1!S71_A6SubCode,$AC:$AC)","v":0},{"$f":"SUMIFS(Sheet1!S71_AdjustmentBudAmnt,Sheet1!S71_A6SubCode,$AC:$AC)","v":0},{"$f":"SUMIFS(Sheet1!S71_AdjustmentBudAmnt,Sheet1!S71_A6SubCode,$AC:$AC)","v":0},{"$f":"SUMIFS(Sheet1!CD:CD,Sheet1!S71_A6SubCode,$AC:$AC)","v":0},{"$f":"SUMIFS(Sheet1!S71_ASBudgetAmount,Sheet1!S71_A6SubCode,$AC:$AC)","v":0},{"$f":"SUMIFS(Sheet1!S71_OY1BudgetAmount,Sheet1!S71_A6SubCode,$AC:$AC)","v":0},{"$f":"SUMIFS(Sheet1!S71_OY2BudgetAmount,Sheet1!S71_A6SubCode,$AC:$AC)","v":0},null,null,null,null,null,null,null,null,null,null,null,null,null,null,null,null,"0170-01-16"]
["           Data Transfer and Management Errors",null,{"$f":"SUMIFS(Sheet1!S71_PPPYearAmount,Sheet1!S71_A6SubCode,$AC:$AC)","v":0},{"$f":"SUMIFS(Sheet1!S71_PPYearAmount,Sheet1!S71_A6SubCode,$AC:$AC)","v":0},{"$f":"SUMIFS(Sheet1!S71_PYearAmount,Sheet1!S71_A6SubCode,$AC:$AC)","v":0},{"$f":"SUMIFS(Sheet1!S71_OriginalBudAmnt,Sheet1!S71_A6SubCode,$AC:$AC)","v":0},{"$f":"SUMIFS(Sheet1!S71_AdjustmentBudAmnt,Sheet1!S71_A6SubCode,$AC:$AC)","v":0},{"$f":"SUMIFS(Sheet1!S71_AdjustmentBudAmnt,Sheet1!S71_A6SubCode,$AC:$AC)","v":0},{"$f":"SUMIFS(Sheet1!CD:CD,Sheet1!S71_A6SubCode,$AC:$AC)","v":0},{"$f":"SUMIFS(Sheet1!S71_ASBudgetAmount,Sheet1!S71_A6SubCode,$AC:$AC)","v":0},{"$f":"SUMIFS(Sheet1!S71_OY1BudgetAmount,Sheet1!S71_A6SubCode,$AC:$AC)","v":0},{"$f":"SUMIFS(Sheet1!S71_OY2BudgetAmount,Sheet1!S71_A6SubCode,$AC:$AC)","v":0},null,null,null,null,null,null,null,null,null,null,null,null,null,null,null,null,"0170-01-17"]
["           Unavoidable Annual Real Losses",null,{"$f":"SUMIFS(Sheet1!S71_PPPYearAmount,Sheet1!S71_A6SubCode,$AC:$AC)","v":0},{"$f":"SUMIFS(Sheet1!S71_PPYearAmount,Sheet1!S71_A6SubCode,$AC:$AC)","v":0},{"$f":"SUMIFS(Sheet1!S71_PYearAmount,Sheet1!S71_A6SubCode,$AC:$AC)","v":0},{"$f":"SUMIFS(Sheet1!S71_OriginalBudAmnt,Sheet1!S71_A6SubCode,$AC:$AC)","v":0},{"$f":"SUMIFS(Sheet1!S71_AdjustmentBudAmnt,Sheet1!S71_A6SubCode,$AC:$AC)","v":0},{"$f":"SUMIFS(Sheet1!S71_AdjustmentBudAmnt,Sheet1!S71_A6SubCode,$AC:$AC)","v":0},{"$f":"SUMIFS(Sheet1!CD:CD,Sheet1!S71_A6SubCode,$AC:$AC)","v":0},{"$f":"SUMIFS(Sheet1!S71_ASBudgetAmount,Sheet1!S71_A6SubCode,$AC:$AC)","v":0},{"$f":"SUMIFS(Sheet1!S71_OY1BudgetAmount,Sheet1!S71_A6SubCode,$AC:$AC)","v":0},{"$f":"SUMIFS(Sheet1!S71_OY2BudgetAmount,Sheet1!S71_A6SubCode,$AC:$AC)","v":0},null,null,null,null,null,null,null,null,null,null,null,null,null,null,null,null,"0170-01-18"]
["  Non-revenue Water",null,{"$f":"C39+C42","v":0},{"$f":"D39+D42","v":0},0,0,0,0,0,0,0,0]
["  Closing Balance Water",null,{"$f":"C24+C25+C29+C42","v":0},{"$f":"D24+D25+D29+D42","v":0},0,0,0,0,0,0,0,0]
[]
["Agricultural"]
["  Opening Balance",null,{"$f":"SUMIFS(Sheet1!S71_PPPYearAmount,Sheet1!S71_A6SubCode,$AC:$AC)","v":0},{"$f":"C61","v":0},{"$f":"D61","v":0},{"$f":"E61","v":0},{"$f":"E61","v":0},{"$f":"E61","v":0},{"$f":"E61","v":0},{"$f":"SUMIFS(Sheet1!S71_ASBudgetAmount,Sheet1!S71_A6SubCode,$AC:$AC)","v":0},{"$f":"SUMIFS(Sheet1!S71_OY1BudgetAmount,Sheet1!S71_A6SubCode,$AC:$AC)","v":0},{"$f":"SUMIFS(Sheet1!S71_OY2BudgetAmount,Sheet1!S71_A6SubCode,$AC:$AC)","v":0},null,null,null,null,null,null,null,null,null,null,null,null,null,null,null,null,"0170-02-00"]
["      Acquisitions",null,{"$f":"SUMIFS(Sheet1!S71_PPPYearAmount,Sheet1!S71_A6SubCode,$AC:$AC)","v":0},{"$f":"SUMIFS(Sheet1!S71_PPYearAmount,Sheet1!S71_A6SubCode,$AC:$AC)","v":0},{"$f":"SUMIFS(Sheet1!S71_PYearAmount,Sheet1!S71_A6SubCode,$AC:$AC)","v":0},{"$f":"SUMIFS(Sheet1!S71_OriginalBudAmnt,Sheet1!S71_A6SubCode,$AC:$AC)","v":0},{"$f":"SUMIFS(Sheet1!S71_AdjustmentBudAmnt,Sheet1!S71_A6SubCode,$AC:$AC)","v":0},{"$f":"SUMIFS(Sheet1!S71_AdjustmentBudAmnt,Sheet1!S71_A6SubCode,$AC:$AC)","v":0},{"$f":"SUMIFS(Sheet1!CD:CD,Sheet1!S71_A6SubCode,$AC:$AC)","v":0},{"$f":"SUMIFS(Sheet1!S71_ASBudgetAmount,Sheet1!S71_A6SubCode,$AC:$AC)","v":0},{"$f":"SUMIFS(Sheet1!S71_OY1BudgetAmount,Sheet1!S71_A6SubCode,$AC:$AC)","v":0},{"$f":"SUMIFS(Sheet1!S71_OY2BudgetAmount,Sheet1!S71_A6SubCode,$AC:$AC)","v":0},null,null,null,null,null,null,null,null,null,null,null,null,null,null,null,null,"0170-02-01"]
["      Issues",7,{"$f":"SUMIFS(Sheet1!S71_PPPYearAmount,Sheet1!S71_A6SubCode,$AC:$AC)","v":0},{"$f":"SUMIFS(Sheet1!S71_PPYearAmount,Sheet1!S71_A6SubCode,$AC:$AC)","v":0},{"$f":"SUMIFS(Sheet1!S71_PYearAmount,Sheet1!S71_A6SubCode,$AC:$AC)","v":0},{"$f":"SUMIFS(Sheet1!S71_OriginalBudAmnt,Sheet1!S71_A6SubCode,$AC:$AC)","v":0},{"$f":"SUMIFS(Sheet1!S71_AdjustmentBudAmnt,Sheet1!S71_A6SubCode,$AC:$AC)","v":0},{"$f":"SUMIFS(Sheet1!S71_AdjustmentBudAmnt,Sheet1!S71_A6SubCode,$AC:$AC)","v":0},{"$f":"SUMIFS(Sheet1!CD:CD,Sheet1!S71_A6SubCode,$AC:$AC)","v":0},{"$f":"SUMIFS(Sheet1!S71_ASBudgetAmount,Sheet1!S71_A6SubCode,$AC:$AC)","v":0},{"$f":"SUMIFS(Sheet1!S71_OY1BudgetAmount,Sheet1!S71_A6SubCode,$AC:$AC)","v":0},{"$f":"SUMIFS(Sheet1!S71_OY2BudgetAmount,Sheet1!S71_A6SubCode,$AC:$AC)","v":0},null,null,null,null,null,null,null,null,null,null,null,null,null,null,null,null,"0170-02-02"]
["      Adjustments",8,{"$f":"SUMIFS(Sheet1!S71_PPPYearAmount,Sheet1!S71_A6SubCode,$AC:$AC)","v":0},{"$f":"SUMIFS(Sheet1!S71_PPYearAmount,Sheet1!S71_A6SubCode,$AC:$AC)","v":0},{"$f":"SUMIFS(Sheet1!S71_PYearAmount,Sheet1!S71_A6SubCode,$AC:$AC)","v":0},{"$f":"SUMIFS(Sheet1!S71_OriginalBudAmnt,Sheet1!S71_A6SubCode,$AC:$AC)","v":0},{"$f":"SUMIFS(Sheet1!S71_AdjustmentBudAmnt,Sheet1!S71_A6SubCode,$AC:$AC)","v":0},{"$f":"SUMIFS(Sheet1!S71_AdjustmentBudAmnt,Sheet1!S71_A6SubCode,$AC:$AC)","v":0},{"$f":"SUMIFS(Sheet1!CD:CD,Sheet1!S71_A6SubCode,$AC:$AC)","v":0},{"$f":"SUMIFS(Sheet1!S71_ASBudgetAmount,Sheet1!S71_A6SubCode,$AC:$AC)","v":0},{"$f":"SUMIFS(Sheet1!S71_OY1BudgetAmount,Sheet1!S71_A6SubCode,$AC:$AC)","v":0},{"$f":"SUMIFS(Sheet1!S71_OY2BudgetAmount,Sheet1!S71_A6SubCode,$AC:$AC)","v":0},null,null,null,null,null,null,null,null,null,null,null,null,null,null,null,null,"0170-02-03"]
["      Write-offs",9,{"$f":"SUMIFS(Sheet1!S71_PPPYearAmount,Sheet1!S71_A6SubCode,$AC:$AC)","v":0},{"$f":"SUMIFS(Sheet1!S71_PPYearAmount,Sheet1!S71_A6SubCode,$AC:$AC)","v":0},{"$f":"SUMIFS(Sheet1!S71_PYearAmount,Sheet1!S71_A6SubCode,$AC:$AC)","v":0},{"$f":"SUMIFS(Sheet1!S71_OriginalBudAmnt,Sheet1!S71_A6SubCode,$AC:$AC)","v":0},{"$f":"SUMIFS(Sheet1!S71_AdjustmentBudAmnt,Sheet1!S71_A6SubCode,$AC:$AC)","v":0},{"$f":"SUMIFS(Sheet1!S71_AdjustmentBudAmnt,Sheet1!S71_A6SubCode,$AC:$AC)","v":0},{"$f":"SUMIFS(Sheet1!CD:CD,Sheet1!S71_A6SubCode,$AC:$AC)","v":0},{"$f":"SUMIFS(Sheet1!S71_ASBudgetAmount,Sheet1!S71_A6SubCode,$AC:$AC)","v":0},{"$f":"SUMIFS(Sheet1!S71_OY1BudgetAmount,Sheet1!S71_A6SubCode,$AC:$AC)","v":0},{"$f":"SUMIFS(Sheet1!S71_OY2BudgetAmount,Sheet1!S71_A6SubCode,$AC:$AC)","v":0},null,null,null,null,null,null,null,null,null,null,null,null,null,null,null,null,"0170-02-04"]
["  Closing balance - Agricultural",null,{"$f":"SUM(C56:C60)","v":0},0,0,0,0,0,0,0,0,0]
[]
["Consumables"]
["Standard Rated"]
["  Opening Balance",null,{"$f":"SUMIFS(Sheet1!S71_PPPYearAmount,Sheet1!S71_A6SubCode,$AC:$AC)","v":0},{"$f":"SUMIFS(Sheet1!S71_PPYearAmount,Sheet1!S71_A6SubCode,$AC:$AC)","v":28995},{"$f":"SUMIFS(Sheet1!S71_PYearAmount,Sheet1!S71_A6SubCode,$AC:$AC)","v":38986},{"$f":"SUMIFS(Sheet1!S71_OriginalBudAmnt,Sheet1!S71_A6SubCode,$AC:$AC)","v":0},{"$f":"SUMIFS(Sheet1!S71_AdjustmentBudAmnt,Sheet1!S71_A6SubCode,$AC:$AC)","v":0},{"$f":"SUMIFS(Sheet1!S71_AdjustmentBudAmnt,Sheet1!S71_A6SubCode,$AC:$AC)","v":0},{"$f":"SUMIFS(Sheet1!CD:CD,Sheet1!S71_A6SubCode,$AC:$AC)","v":38986},{"$f":"SUMIFS(Sheet1!S71_ASBudgetAmount,Sheet1!S71_A6SubCode,$AC:$AC)","v":38986},{"$f":"SUMIFS(Sheet1!S71_OY1BudgetAmount,Sheet1!S71_A6SubCode,$AC:$AC)","v":40506},{"$f":"SUMIFS(Sheet1!S71_OY2BudgetAmount,Sheet1!S71_A6SubCode,$AC:$AC)","v":42208},null,null,null,null,null,null,null,null,null,null,null,null,null,null,null,null,"0170-03-00"]
["      Acquisitions",null,{"$f":"SUMIFS(Sheet1!S71_PPPYearAmount,Sheet1!S71_A6SubCode,$AC:$AC)","v":0},{"$f":"SUMIFS(Sheet1!S71_PPYearAmount,Sheet1!S71_A6SubCode,$AC:$AC)","v":0},{"$f":"SUMIFS(Sheet1!S71_PYearAmount,Sheet1!S71_A6SubCode,$AC:$AC)","v":0},{"$f":"SUMIFS(Sheet1!S71_OriginalBudAmnt,Sheet1!S71_A6SubCode,$AC:$AC)","v":0},{"$f":"SUMIFS(Sheet1!S71_AdjustmentBudAmnt,Sheet1!S71_A6SubCode,$AC:$AC)","v":0},{"$f":"SUMIFS(Sheet1!S71_AdjustmentBudAmnt,Sheet1!S71_A6SubCode,$AC:$AC)","v":0},{"$f":"SUMIFS(Sheet1!CD:CD,Sheet1!S71_A6SubCode,$AC:$AC)","v":0},{"$f":"SUMIFS(Sheet1!S71_ASBudgetAmount,Sheet1!S71_A6SubCode,$AC:$AC)","v":150000},{"$f":"SUMIFS(Sheet1!S71_OY1BudgetAmount,Sheet1!S71_A6SubCode,$AC:$AC)","v":300000},{"$f":"SUMIFS(Sheet1!S71_OY2BudgetAmount,Sheet1!S71_A6SubCode,$AC:$AC)","v":300000},null,null,null,null,null,null,null,null,null,null,null,null,null,null,null,null,"0170-03-01"]
["      Issues",7,{"$f":"SUMIFS(Sheet1!S71_PPPYearAmount,Sheet1!S71_A6SubCode,$AC:$AC)","v":0},{"$f":"SUMIFS(Sheet1!S71_PPYearAmount,Sheet1!S71_A6SubCode,$AC:$AC)","v":0},{"$f":"SUMIFS(Sheet1!S71_PYearAmount,Sheet1!S71_A6SubCode,$AC:$AC)","v":0},{"$f":"SUMIFS(Sheet1!S71_OriginalBudAmnt,Sheet1!S71_A6SubCode,$AC:$AC)","v":0},{"$f":"SUMIFS(Sheet1!S71_AdjustmentBudAmnt,Sheet1!S71_A6SubCode,$AC:$AC)","v":0},{"$f":"SUMIFS(Sheet1!S71_AdjustmentBudAmnt,Sheet1!S71_A6SubCode,$AC:$AC)","v":0},{"$f":"SUMIFS(Sheet1!CD:CD,Sheet1!S71_A6SubCode,$AC:$AC)","v":0},{"$f":"SUMIFS(Sheet1!S71_ASBudgetAmount,Sheet1!S71_A6SubCode,$AC:$AC)","v":-150000},{"$f":"SUMIFS(Sheet1!S71_OY1BudgetAmount,Sheet1!S71_A6SubCode,$AC:$AC)","v":-300000},{"$f":"SUMIFS(Sheet1!S71_OY2BudgetAmount,Sheet1!S71_A6SubCode,$AC:$AC)","v":-300000},null,null,null,null,null,null,null,null,null,null,null,null,null,null,null,null,"0170-03-02"]
["      Adjustments",8,{"$f":"SUMIFS(Sheet1!S71_PPPYearAmount,Sheet1!S71_A6SubCode,$AC:$AC)","v":0},{"$f":"SUMIFS(Sheet1!S71_PPYearAmount,Sheet1!S71_A6SubCode,$AC:$AC)","v":0},{"$f":"SUMIFS(Sheet1!S71_PYearAmount,Sheet1!S71_A6SubCode,$AC:$AC)","v":0},{"$f":"SUMIFS(Sheet1!S71_OriginalBudAmnt,Sheet1!S71_A6SubCode,$AC:$AC)","v":0},{"$f":"SUMIFS(Sheet1!S71_AdjustmentBudAmnt,Sheet1!S71_A6SubCode,$AC:$AC)","v":0},{"$f":"SUMIFS(Sheet1!S71_AdjustmentBudAmnt,Sheet1!S71_A6SubCode,$AC:$AC)","v":0},{"$f":"SUMIFS(Sheet1!CD:CD,Sheet1!S71_A6SubCode,$AC:$AC)","v":0},{"$f":"SUMIFS(Sheet1!S71_ASBudgetAmount,Sheet1!S71_A6SubCode,$AC:$AC)","v":0},{"$f":"SUMIFS(Sheet1!S71_OY1BudgetAmount,Sheet1!S71_A6SubCode,$AC:$AC)","v":0},{"$f":"SUMIFS(Sheet1!S71_OY2BudgetAmount,Sheet1!S71_A6SubCode,$AC:$AC)","v":0},null,null,null,null,null,null,null,null,null,null,null,null,null,null,null,null,"0170-03-03"]
["      Write-offs",9,{"$f":"SUMIFS(Sheet1!S71_PPPYearAmount,Sheet1!S71_A6SubCode,$AC:$AC)","v":0},{"$f":"SUMIFS(Sheet1!S71_PPYearAmount,Sheet1!S71_A6SubCode,$AC:$AC)","v":0},{"$f":"SUMIFS(Sheet1!S71_PYearAmount,Sheet1!S71_A6SubCode,$AC:$AC)","v":0},{"$f":"SUMIFS(Sheet1!S71_OriginalBudAmnt,Sheet1!S71_A6SubCode,$AC:$AC)","v":0},{"$f":"SUMIFS(Sheet1!S71_AdjustmentBudAmnt,Sheet1!S71_A6SubCode,$AC:$AC)","v":0},{"$f":"SUMIFS(Sheet1!S71_AdjustmentBudAmnt,Sheet1!S71_A6SubCode,$AC:$AC)","v":0},{"$f":"SUMIFS(Sheet1!CD:CD,Sheet1!S71_A6SubCode,$AC:$AC)","v":0},{"$f":"SUMIFS(Sheet1!S71_ASBudgetAmount,Sheet1!S71_A6SubCode,$AC:$AC)","v":0},{"$f":"SUMIFS(Sheet1!S71_OY1BudgetAmount,Sheet1!S71_A6SubCode,$AC:$AC)","v":0},{"$f":"SUMIFS(Sheet1!S71_OY2BudgetAmount,Sheet1!S71_A6SubCode,$AC:$AC)","v":0},null,null,null,null,null,null,null,null,null,null,null,null,null,null,null,null,"0170-03-04"]
["  Closing balance - Consumables Standard Rated",null,{"$f":"SUM(C65:C69)","v":0},{"$f":"SUM(D65:D69)","v":28995},38986,0,0,0,38986,38986,40506,42208]
["Zero Rated"]
["  Opening Balance",null,{"$f":"SUMIFS(Sheet1!S71_PPPYearAmount,Sheet1!S71_A6SubCode,$AC:$AC)","v":0},{"$f":"SUMIFS(Sheet1!S71_PPYearAmount,Sheet1!S71_A6SubCode,$AC:$AC)","v":0},{"$f":"SUMIFS(Sheet1!S71_PYearAmount,Sheet1!S71_A6SubCode,$AC:$AC)","v":0},{"$f":"SUMIFS(Sheet1!S71_OriginalBudAmnt,Sheet1!S71_A6SubCode,$AC:$AC)","v":0},{"$f":"SUMIFS(Sheet1!S71_AdjustmentBudAmnt,Sheet1!S71_A6SubCode,$AC:$AC)","v":0},{"$f":"SUMIFS(Sheet1!S71_AdjustmentBudAmnt,Sheet1!S71_A6SubCode,$AC:$AC)","v":0},{"$f":"SUMIFS(Sheet1!CD:CD,Sheet1!S71_A6SubCode,$AC:$AC)","v":0},{"$f":"SUMIFS(Sheet1!S71_ASBudgetAmount,Sheet1!S71_A6SubCode,$AC:$AC)","v":0},{"$f":"SUMIFS(Sheet1!S71_OY1BudgetAmount,Sheet1!S71_A6SubCode,$AC:$AC)","v":0},{"$f":"SUMIFS(Sheet1!S71_OY2BudgetAmount,Sheet1!S71_A6SubCode,$AC:$AC)","v":0},null,null,null,null,null,null,null,null,null,null,null,null,null,null,null,null,"0170-04-00"]
["      Acquisitions",null,{"$f":"SUMIFS(Sheet1!S71_PPPYearAmount,Sheet1!S71_A6SubCode,$AC:$AC)","v":0},{"$f":"SUMIFS(Sheet1!S71_PPYearAmount,Sheet1!S71_A6SubCode,$AC:$AC)","v":0},{"$f":"SUMIFS(Sheet1!S71_PYearAmount,Sheet1!S71_A6SubCode,$AC:$AC)","v":0},{"$f":"SUMIFS(Sheet1!S71_OriginalBudAmnt,Sheet1!S71_A6SubCode,$AC:$AC)","v":0},{"$f":"SUMIFS(Sheet1!S71_AdjustmentBudAmnt,Sheet1!S71_A6SubCode,$AC:$AC)","v":0},{"$f":"SUMIFS(Sheet1!S71_AdjustmentBudAmnt,Sheet1!S71_A6SubCode,$AC:$AC)","v":0},{"$f":"SUMIFS(Sheet1!CD:CD,Sheet1!S71_A6SubCode,$AC:$AC)","v":0},{"$f":"SUMIFS(Sheet1!S71_ASBudgetAmount,Sheet1!S71_A6SubCode,$AC:$AC)","v":0},{"$f":"SUMIFS(Sheet1!S71_OY1BudgetAmount,Sheet1!S71_A6SubCode,$AC:$AC)","v":0},{"$f":"SUMIFS(Sheet1!S71_OY2BudgetAmount,Sheet1!S71_A6SubCode,$AC:$AC)","v":0},null,null,null,null,null,null,null,null,null,null,null,null,null,null,null,null,"0170-04-01"]
["      Issues",7,{"$f":"SUMIFS(Sheet1!S71_PPPYearAmount,Sheet1!S71_A6SubCode,$AC:$AC)","v":0},{"$f":"SUMIFS(Sheet1!S71_PPYearAmount,Sheet1!S71_A6SubCode,$AC:$AC)","v":0},{"$f":"SUMIFS(Sheet1!S71_PYearAmount,Sheet1!S71_A6SubCode,$AC:$AC)","v":0},{"$f":"SUMIFS(Sheet1!S71_OriginalBudAmnt,Sheet1!S71_A6SubCode,$AC:$AC)","v":0},{"$f":"SUMIFS(Sheet1!S71_AdjustmentBudAmnt,Sheet1!S71_A6SubCode,$AC:$AC)","v":0},{"$f":"SUMIFS(Sheet1!S71_AdjustmentBudAmnt,Sheet1!S71_A6SubCode,$AC:$AC)","v":0},{"$f":"SUMIFS(Sheet1!CD:CD,Sheet1!S71_A6SubCode,$AC:$AC)","v":0},{"$f":"SUMIFS(Sheet1!S71_ASBudgetAmount,Sheet1!S71_A6SubCode,$AC:$AC)","v":0},{"$f":"SUMIFS(Sheet1!S71_OY1BudgetAmount,Sheet1!S71_A6SubCode,$AC:$AC)","v":0},{"$f":"SUMIFS(Sheet1!S71_OY2BudgetAmount,Sheet1!S71_A6SubCode,$AC:$AC)","v":0},null,null,null,null,null,null,null,null,null,null,null,null,null,null,null,null,"0170-04-02"]
["      Adjustments",8,{"$f":"SUMIFS(Sheet1!S71_PPPYearAmount,Sheet1!S71_A6SubCode,$AC:$AC)","v":0},{"$f":"SUMIFS(Sheet1!S71_PPYearAmount,Sheet1!S71_A6SubCode,$AC:$AC)","v":0},{"$f":"SUMIFS(Sheet1!S71_PYearAmount,Sheet1!S71_A6SubCode,$AC:$AC)","v":0},{"$f":"SUMIFS(Sheet1!S71_OriginalBudAmnt,Sheet1!S71_A6SubCode,$AC:$AC)","v":0},{"$f":"SUMIFS(Sheet1!S71_AdjustmentBudAmnt,Sheet1!S71_A6SubCode,$AC:$AC)","v":0},{"$f":"SUMIFS(Sheet1!S71_AdjustmentBudAmnt,Sheet1!S71_A6SubCode,$AC:$AC)","v":0},{"$f":"SUMIFS(Sheet1!CD:CD,Sheet1!S71_A6SubCode,$AC:$AC)","v":0},{"$f":"SUMIFS(Sheet1!S71_ASBudgetAmount,Sheet1!S71_A6SubCode,$AC:$AC)","v":0},{"$f":"SUMIFS(Sheet1!S71_OY1BudgetAmount,Sheet1!S71_A6SubCode,$AC:$AC)","v":0},{"$f":"SUMIFS(Sheet1!S71_OY2BudgetAmount,Sheet1!S71_A6SubCode,$AC:$AC)","v":0},null,null,null,null,null,null,null,null,null,null,null,null,null,null,null,null,"0170-04-03"]
["      Write-offs",9,{"$f":"SUMIFS(Sheet1!S71_PPPYearAmount,Sheet1!S71_A6SubCode,$AC:$AC)","v":0},{"$f":"SUMIFS(Sheet1!S71_PPYearAmount,Sheet1!S71_A6SubCode,$AC:$AC)","v":0},{"$f":"SUMIFS(Sheet1!S71_PYearAmount,Sheet1!S71_A6SubCode,$AC:$AC)","v":0},{"$f":"SUMIFS(Sheet1!S71_OriginalBudAmnt,Sheet1!S71_A6SubCode,$AC:$AC)","v":0},{"$f":"SUMIFS(Sheet1!S71_AdjustmentBudAmnt,Sheet1!S71_A6SubCode,$AC:$AC)","v":0},{"$f":"SUMIFS(Sheet1!S71_AdjustmentBudAmnt,Sheet1!S71_A6SubCode,$AC:$AC)","v":0},{"$f":"SUMIFS(Sheet1!CD:CD,Sheet1!S71_A6SubCode,$AC:$AC)","v":0},{"$f":"SUMIFS(Sheet1!S71_ASBudgetAmount,Sheet1!S71_A6SubCode,$AC:$AC)","v":0},{"$f":"SUMIFS(Sheet1!S71_OY1BudgetAmount,Sheet1!S71_A6SubCode,$AC:$AC)","v":0},{"$f":"SUMIFS(Sheet1!S71_OY2BudgetAmount,Sheet1!S71_A6SubCode,$AC:$AC)","v":0},null,null,null,null,null,null,null,null,null,null,null,null,null,null,null,null,"0170-04-04"]
["  Closing balance - Consumables Zero Rated",null,{"$f":"SUM(C72:C76)","v":0},{"$f":"SUM(D72:D76)","v":0},0,0,0,0,0,0,0,0]
[]
["Finished Goods"]
["  Opening Balance",null,{"$f":"SUMIFS(Sheet1!S71_PPPYearAmount,Sheet1!S71_A6SubCode,$AC:$AC)","v":0},{"$f":"SUMIFS(Sheet1!S71_PPYearAmount,Sheet1!S71_A6SubCode,$AC:$AC)","v":0},{"$f":"SUMIFS(Sheet1!S71_PYearAmount,Sheet1!S71_A6SubCode,$AC:$AC)","v":0},{"$f":"SUMIFS(Sheet1!S71_OriginalBudAmnt,Sheet1!S71_A6SubCode,$AC:$AC)","v":0},{"$f":"SUMIFS(Sheet1!S71_AdjustmentBudAmnt,Sheet1!S71_A6SubCode,$AC:$AC)","v":0},{"$f":"SUMIFS(Sheet1!S71_AdjustmentBudAmnt,Sheet1!S71_A6SubCode,$AC:$AC)","v":0},{"$f":"SUMIFS(Sheet1!CD:CD,Sheet1!S71_A6SubCode,$AC:$AC)","v":0},{"$f":"SUMIFS(Sheet1!S71_ASBudgetAmount,Sheet1!S71_A6SubCode,$AC:$AC)","v":0},{"$f":"SUMIFS(Sheet1!S71_OY1BudgetAmount,Sheet1!S71_A6SubCode,$AC:$AC)","v":0},{"$f":"SUMIFS(Sheet1!S71_OY2BudgetAmount,Sheet1!S71_A6SubCode,$AC:$AC)","v":0},null,null,null,null,null,null,null,null,null,null,null,null,null,null,null,null,"0170-05-00"]
["      Acquisitions",null,{"$f":"SUMIFS(Sheet1!S71_PPPYearAmount,Sheet1!S71_A6SubCode,$AC:$AC)","v":0},{"$f":"SUMIFS(Sheet1!S71_PPYearAmount,Sheet1!S71_A6SubCode,$AC:$AC)","v":0},{"$f":"SUMIFS(Sheet1!S71_PYearAmount,Sheet1!S71_A6SubCode,$AC:$AC)","v":0},{"$f":"SUMIFS(Sheet1!S71_OriginalBudAmnt,Sheet1!S71_A6SubCode,$AC:$AC)","v":0},{"$f":"SUMIFS(Sheet1!S71_AdjustmentBudAmnt,Sheet1!S71_A6SubCode,$AC:$AC)","v":0},{"$f":"SUMIFS(Sheet1!S71_AdjustmentBudAmnt,Sheet1!S71_A6SubCode,$AC:$AC)","v":0},{"$f":"SUMIFS(Sheet1!CD:CD,Sheet1!S71_A6SubCode,$AC:$AC)","v":0},{"$f":"SUMIFS(Sheet1!S71_ASBudgetAmount,Sheet1!S71_A6SubCode,$AC:$AC)","v":0},{"$f":"SUMIFS(Sheet1!S71_OY1BudgetAmount,Sheet1!S71_A6SubCode,$AC:$AC)","v":0},{"$f":"SUMIFS(Sheet1!S71_OY2BudgetAmount,Sheet1!S71_A6SubCode,$AC:$AC)","v":0},null,null,null,null,null,null,null,null,null,null,null,null,null,null,null,null,"0170-05-01"]
["      Issues",7,{"$f":"SUMIFS(Sheet1!S71_PPPYearAmount,Sheet1!S71_A6SubCode,$AC:$AC)","v":0},{"$f":"SUMIFS(Sheet1!S71_PPYearAmount,Sheet1!S71_A6SubCode,$AC:$AC)","v":0},{"$f":"SUMIFS(Sheet1!S71_PYearAmount,Sheet1!S71_A6SubCode,$AC:$AC)","v":0},{"$f":"SUMIFS(Sheet1!S71_OriginalBudAmnt,Sheet1!S71_A6SubCode,$AC:$AC)","v":0},{"$f":"SUMIFS(Sheet1!S71_AdjustmentBudAmnt,Sheet1!S71_A6SubCode,$AC:$AC)","v":0},{"$f":"SUMIFS(Sheet1!S71_AdjustmentBudAmnt,Sheet1!S71_A6SubCode,$AC:$AC)","v":0},{"$f":"SUMIFS(Sheet1!CD:CD,Sheet1!S71_A6SubCode,$AC:$AC)","v":0},{"$f":"SUMIFS(Sheet1!S71_ASBudgetAmount,Sheet1!S71_A6SubCode,$AC:$AC)","v":0},{"$f":"SUMIFS(Sheet1!S71_OY1BudgetAmount,Sheet1!S71_A6SubCode,$AC:$AC)","v":0},{"$f":"SUMIFS(Sheet1!S71_OY2BudgetAmount,Sheet1!S71_A6SubCode,$AC:$AC)","v":0},null,null,null,null,null,null,null,null,null,null,null,null,null,null,null,null,"0170-05-02"]
["      Adjustments",8,{"$f":"SUMIFS(Sheet1!S71_PPPYearAmount,Sheet1!S71_A6SubCode,$AC:$AC)","v":0},{"$f":"SUMIFS(Sheet1!S71_PPYearAmount,Sheet1!S71_A6SubCode,$AC:$AC)","v":0},{"$f":"SUMIFS(Sheet1!S71_PYearAmount,Sheet1!S71_A6SubCode,$AC:$AC)","v":0},{"$f":"SUMIFS(Sheet1!S71_OriginalBudAmnt,Sheet1!S71_A6SubCode,$AC:$AC)","v":0},{"$f":"SUMIFS(Sheet1!S71_AdjustmentBudAmnt,Sheet1!S71_A6SubCode,$AC:$AC)","v":0},{"$f":"SUMIFS(Sheet1!S71_AdjustmentBudAmnt,Sheet1!S71_A6SubCode,$AC:$AC)","v":0},{"$f":"SUMIFS(Sheet1!CD:CD,Sheet1!S71_A6SubCode,$AC:$AC)","v":0},{"$f":"SUMIFS(Sheet1!S71_ASBudgetAmount,Sheet1!S71_A6SubCode,$AC:$AC)","v":0},{"$f":"SUMIFS(Sheet1!S71_OY1BudgetAmount,Sheet1!S71_A6SubCode,$AC:$AC)","v":0},{"$f":"SUMIFS(Sheet1!S71_OY2BudgetAmount,Sheet1!S71_A6SubCode,$AC:$AC)","v":0},null,null,null,null,null,null,null,null,null,null,null,null,null,null,null,null,"0170-05-03"]
["      Write-offs",9,{"$f":"SUMIFS(Sheet1!S71_PPPYearAmount,Sheet1!S71_A6SubCode,$AC:$AC)","v":0},{"$f":"SUMIFS(Sheet1!S71_PPYearAmount,Sheet1!S71_A6SubCode,$AC:$AC)","v":0},{"$f":"SUMIFS(Sheet1!S71_PYearAmount,Sheet1!S71_A6SubCode,$AC:$AC)","v":0},{"$f":"SUMIFS(Sheet1!S71_OriginalBudAmnt,Sheet1!S71_A6SubCode,$AC:$AC)","v":0},{"$f":"SUMIFS(Sheet1!S71_AdjustmentBudAmnt,Sheet1!S71_A6SubCode,$AC:$AC)","v":0},{"$f":"SUMIFS(Sheet1!S71_AdjustmentBudAmnt,Sheet1!S71_A6SubCode,$AC:$AC)","v":0},{"$f":"SUMIFS(Sheet1!CD:CD,Sheet1!S71_A6SubCode,$AC:$AC)","v":0},{"$f":"SUMIFS(Sheet1!S71_ASBudgetAmount,Sheet1!S71_A6SubCode,$AC:$AC)","v":0},{"$f":"SUMIFS(Sheet1!S71_OY1BudgetAmount,Sheet1!S71_A6SubCode,$AC:$AC)","v":0},{"$f":"SUMIFS(Sheet1!S71_OY2BudgetAmount,Sheet1!S71_A6SubCode,$AC:$AC)","v":0},null,null,null,null,null,null,null,null,null,null,null,null,null,null,null,null,"0170-05-04"]
["  Closing balance - Finished Goods",null,{"$f":"SUM(C80:C84)","v":0},{"$f":"SUM(D80:D84)","v":0},0,0,0,0,0,0,0,0]
[]
["Materials and Supplies"]
["  Opening Balance",null,{"$f":"SUMIFS(Sheet1!S71_PPPYearAmount,Sheet1!S71_A6SubCode,$AC:$AC)","v":0},{"$f":"SUMIFS(Sheet1!S71_PPYearAmount,Sheet1!S71_A6SubCode,$AC:$AC)","v":0},{"$f":"SUMIFS(Sheet1!S71_PYearAmount,Sheet1!S71_A6SubCode,$AC:$AC)","v":0},{"$f":"SUMIFS(Sheet1!S71_OriginalBudAmnt,Sheet1!S71_A6SubCode,$AC:$AC)","v":0},{"$f":"SUMIFS(Sheet1!S71_AdjustmentBudAmnt,Sheet1!S71_A6SubCode,$AC:$AC)","v":0},{"$f":"SUMIFS(Sheet1!S71_AdjustmentBudAmnt,Sheet1!S71_A6SubCode,$AC:$AC)","v":0},{"$f":"SUMIFS(Sheet1!CD:CD,Sheet1!S71_A6SubCode,$AC:$AC)","v":0},{"$f":"SUMIFS(Sheet1!S71_ASBudgetAmount,Sheet1!S71_A6SubCode,$AC:$AC)","v":0},{"$f":"SUMIFS(Sheet1!S71_OY1BudgetAmount,Sheet1!S71_A6SubCode,$AC:$AC)","v":0},{"$f":"SUMIFS(Sheet1!S71_OY2BudgetAmount,Sheet1!S71_A6SubCode,$AC:$AC)","v":0},null,null,null,null,null,null,null,null,null,null,null,null,null,null,null,null,"0170-06-00"]
["      Acquisitions",null,{"$f":"SUMIFS(Sheet1!S71_PPPYearAmount,Sheet1!S71_A6SubCode,$AC:$AC)","v":0},{"$f":"SUMIFS(Sheet1!S71_PPYearAmount,Sheet1!S71_A6SubCode,$AC:$AC)","v":0},{"$f":"SUMIFS(Sheet1!S71_PYearAmount,Sheet1!S71_A6SubCode,$AC:$AC)","v":0},{"$f":"SUMIFS(Sheet1!S71_OriginalBudAmnt,Sheet1!S71_A6SubCode,$AC:$AC)","v":0},{"$f":"SUMIFS(Sheet1!S71_AdjustmentBudAmnt,Sheet1!S71_A6SubCode,$AC:$AC)","v":0},{"$f":"SUMIFS(Sheet1!S71_AdjustmentBudAmnt,Sheet1!S71_A6SubCode,$AC:$AC)","v":0},{"$f":"SUMIFS(Sheet1!CD:CD,Sheet1!S71_A6SubCode,$AC:$AC)","v":0},{"$f":"SUMIFS(Sheet1!S71_ASBudgetAmount,Sheet1!S71_A6SubCode,$AC:$AC)","v":30000},{"$f":"SUMIFS(Sheet1!S71_OY1BudgetAmount,Sheet1!S71_A6SubCode,$AC:$AC)","v":45673},{"$f":"SUMIFS(Sheet1!S71_OY2BudgetAmount,Sheet1!S71_A6SubCode,$AC:$AC)","v":48140},null,null,null,null,null,null,null,null,null,null,null,null,null,null,null,null,"0170-06-01"]
["      Issues",7,{"$f":"SUMIFS(Sheet1!S71_PPPYearAmount,Sheet1!S71_A6SubCode,$AC:$AC)","v":0},{"$f":"SUMIFS(Sheet1!S71_PPYearAmount,Sheet1!S71_A6SubCode,$AC:$AC)","v":0},{"$f":"SUMIFS(Sheet1!S71_PYearAmount,Sheet1!S71_A6SubCode,$AC:$AC)","v":0},{"$f":"SUMIFS(Sheet1!S71_OriginalBudAmnt,Sheet1!S71_A6SubCode,$AC:$AC)","v":0},{"$f":"SUMIFS(Sheet1!S71_AdjustmentBudAmnt,Sheet1!S71_A6SubCode,$AC:$AC)","v":0},{"$f":"SUMIFS(Sheet1!S71_AdjustmentBudAmnt,Sheet1!S71_A6SubCode,$AC:$AC)","v":0},{"$f":"SUMIFS(Sheet1!CD:CD,Sheet1!S71_A6SubCode,$AC:$AC)","v":0},{"$f":"SUMIFS(Sheet1!S71_ASBudgetAmount,Sheet1!S71_A6SubCode,$AC:$AC)","v":-30000},{"$f":"SUMIFS(Sheet1!S71_OY1BudgetAmount,Sheet1!S71_A6SubCode,$AC:$AC)","v":-45673},{"$f":"SUMIFS(Sheet1!S71_OY2BudgetAmount,Sheet1!S71_A6SubCode,$AC:$AC)","v":-48140},null,null,null,null,null,null,null,null,null,null,null,null,null,null,null,null,"0170-06-02"]
["      Adjustments",8,{"$f":"SUMIFS(Sheet1!S71_PPPYearAmount,Sheet1!S71_A6SubCode,$AC:$AC)","v":0},{"$f":"SUMIFS(Sheet1!S71_PPYearAmount,Sheet1!S71_A6SubCode,$AC:$AC)","v":0},{"$f":"SUMIFS(Sheet1!S71_PYearAmount,Sheet1!S71_A6SubCode,$AC:$AC)","v":0},{"$f":"SUMIFS(Sheet1!S71_OriginalBudAmnt,Sheet1!S71_A6SubCode,$AC:$AC)","v":0},{"$f":"SUMIFS(Sheet1!S71_AdjustmentBudAmnt,Sheet1!S71_A6SubCode,$AC:$AC)","v":0},{"$f":"SUMIFS(Sheet1!S71_AdjustmentBudAmnt,Sheet1!S71_A6SubCode,$AC:$AC)","v":0},{"$f":"SUMIFS(Sheet1!CD:CD,Sheet1!S71_A6SubCode,$AC:$AC)","v":0},{"$f":"SUMIFS(Sheet1!S71_ASBudgetAmount,Sheet1!S71_A6SubCode,$AC:$AC)","v":0},{"$f":"SUMIFS(Sheet1!S71_OY1BudgetAmount,Sheet1!S71_A6SubCode,$AC:$AC)","v":0},{"$f":"SUMIFS(Sheet1!S71_OY2BudgetAmount,Sheet1!S71_A6SubCode,$AC:$AC)","v":0},null,null,null,null,null,null,null,null,null,null,null,null,null,null,null,null,"0170-06-03"]
["      Write-offs",9,{"$f":"SUMIFS(Sheet1!S71_PPPYearAmount,Sheet1!S71_A6SubCode,$AC:$AC)","v":0},{"$f":"SUMIFS(Sheet1!S71_PPYearAmount,Sheet1!S71_A6SubCode,$AC:$AC)","v":0},{"$f":"SUMIFS(Sheet1!S71_PYearAmount,Sheet1!S71_A6SubCode,$AC:$AC)","v":0},{"$f":"SUMIFS(Sheet1!S71_OriginalBudAmnt,Sheet1!S71_A6SubCode,$AC:$AC)","v":0},{"$f":"SUMIFS(Sheet1!S71_AdjustmentBudAmnt,Sheet1!S71_A6SubCode,$AC:$AC)","v":0},{"$f":"SUMIFS(Sheet1!S71_AdjustmentBudAmnt,Sheet1!S71_A6SubCode,$AC:$AC)","v":0},{"$f":"SUMIFS(Sheet1!CD:CD,Sheet1!S71_A6SubCode,$AC:$AC)","v":0},{"$f":"SUMIFS(Sheet1!S71_ASBudgetAmount,Sheet1!S71_A6SubCode,$AC:$AC)","v":0},{"$f":"SUMIFS(Sheet1!S71_OY1BudgetAmount,Sheet1!S71_A6SubCode,$AC:$AC)","v":0},{"$f":"SUMIFS(Sheet1!S71_OY2BudgetAmount,Sheet1!S71_A6SubCode,$AC:$AC)","v":0},null,null,null,null,null,null,null,null,null,null,null,null,null,null,null,null,"0170-06-04"]
["  Closing balance - Materials and Supplies",null,{"$f":"SUM(C88:C92)","v":0},{"$f":"SUM(D88:D92)","v":0},0,0,0,0,0,0,0,0]
[]
["Work-in-progress"]
["  Opening Balance",null,{"$f":"SUMIFS(Sheet1!S71_PPPYearAmount,Sheet1!S71_A6SubCode,$AC:$AC)","v":0},{"$f":"SUMIFS(Sheet1!S71_PPYearAmount,Sheet1!S71_A6SubCode,$AC:$AC)","v":0},{"$f":"SUMIFS(Sheet1!S71_PYearAmount,Sheet1!S71_A6SubCode,$AC:$AC)","v":0},{"$f":"SUMIFS(Sheet1!S71_OriginalBudAmnt,Sheet1!S71_A6SubCode,$AC:$AC)","v":0},{"$f":"SUMIFS(Sheet1!S71_AdjustmentBudAmnt,Sheet1!S71_A6SubCode,$AC:$AC)","v":0},{"$f":"SUMIFS(Sheet1!S71_AdjustmentBudAmnt,Sheet1!S71_A6SubCode,$AC:$AC)","v":0},{"$f":"SUMIFS(Sheet1!CD:CD,Sheet1!S71_A6SubCode,$AC:$AC)","v":0},{"$f":"SUMIFS(Sheet1!S71_ASBudgetAmount,Sheet1!S71_A6SubCode,$AC:$AC)","v":0},{"$f":"SUMIFS(Sheet1!S71_OY1BudgetAmount,Sheet1!S71_A6SubCode,$AC:$AC)","v":0},{"$f":"SUMIFS(Sheet1!S71_OY2BudgetAmount,Sheet1!S71_A6SubCode,$AC:$AC)","v":0},null,null,null,null,null,null,null,null,null,null,null,null,null,null,null,null,"0170-07-00"]
["      Materials",null,{"$f":"SUMIFS(Sheet1!S71_PPPYearAmount,Sheet1!S71_A6SubCode,$AC:$AC)","v":0},{"$f":"SUMIFS(Sheet1!S71_PPYearAmount,Sheet1!S71_A6SubCode,$AC:$AC)","v":0},{"$f":"SUMIFS(Sheet1!S71_PYearAmount,Sheet1!S71_A6SubCode,$AC:$AC)","v":0},{"$f":"SUMIFS(Sheet1!S71_OriginalBudAmnt,Sheet1!S71_A6SubCode,$AC:$AC)","v":0},{"$f":"SUMIFS(Sheet1!S71_AdjustmentBudAmnt,Sheet1!S71_A6SubCode,$AC:$AC)","v":0},{"$f":"SUMIFS(Sheet1!S71_AdjustmentBudAmnt,Sheet1!S71_A6SubCode,$AC:$AC)","v":0},{"$f":"SUMIFS(Sheet1!CD:CD,Sheet1!S71_A6SubCode,$AC:$AC)","v":0},{"$f":"SUMIFS(Sheet1!S71_ASBudgetAmount,Sheet1!S71_A6SubCode,$AC:$AC)","v":0},{"$f":"SUMIFS(Sheet1!S71_OY1BudgetAmount,Sheet1!S71_A6SubCode,$AC:$AC)","v":0},{"$f":"SUMIFS(Sheet1!S71_OY2BudgetAmount,Sheet1!S71_A6SubCode,$AC:$AC)","v":0},null,null,null,null,null,null,null,null,null,null,null,null,null,null,null,null,"0170-07-01"]
["      Transfers",null,{"$f":"SUMIFS(Sheet1!S71_PPPYearAmount,Sheet1!S71_A6SubCode,$AC:$AC)","v":0},{"$f":"SUMIFS(Sheet1!S71_PPYearAmount,Sheet1!S71_A6SubCode,$AC:$AC)","v":0},{"$f":"SUMIFS(Sheet1!S71_PYearAmount,Sheet1!S71_A6SubCode,$AC:$AC)","v":0},{"$f":"SUMIFS(Sheet1!S71_OriginalBudAmnt,Sheet1!S71_A6SubCode,$AC:$AC)","v":0},{"$f":"SUMIFS(Sheet1!S71_AdjustmentBudAmnt,Sheet1!S71_A6SubCode,$AC:$AC)","v":0},{"$f":"SUMIFS(Sheet1!S71_AdjustmentBudAmnt,Sheet1!S71_A6SubCode,$AC:$AC)","v":0},{"$f":"SUMIFS(Sheet1!CD:CD,Sheet1!S71_A6SubCode,$AC:$AC)","v":0},{"$f":"SUMIFS(Sheet1!S71_ASBudgetAmount,Sheet1!S71_A6SubCode,$AC:$AC)","v":0},{"$f":"SUMIFS(Sheet1!S71_OY1BudgetAmount,Sheet1!S71_A6SubCode,$AC:$AC)","v":0},{"$f":"SUMIFS(Sheet1!S71_OY2BudgetAmount,Sheet1!S71_A6SubCode,$AC:$AC)","v":0},null,null,null,null,null,null,null,null,null,null,null,null,null,null,null,null,"0170-07-02"]
["  Closing balance - Work-in-progress",null,{"$f":"SUM(C96:C98)","v":0},{"$f":"SUM(D96:D98)","v":0},0,0,0,0,0,0,0,0]
[]
["Housing Stock"]
["  Opening Balance",null,{"$f":"SUMIFS(Sheet1!S71_PPPYearAmount,Sheet1!S71_A6SubCode,$AC:$AC)","v":0},{"$f":"SUMIFS(Sheet1!S71_PPYearAmount,Sheet1!S71_A6SubCode,$AC:$AC)","v":0},{"$f":"SUMIFS(Sheet1!S71_PYearAmount,Sheet1!S71_A6SubCode,$AC:$AC)","v":0},{"$f":"SUMIFS(Sheet1!S71_OriginalBudAmnt,Sheet1!S71_A6SubCode,$AC:$AC)","v":0},{"$f":"SUMIFS(Sheet1!S71_AdjustmentBudAmnt,Sheet1!S71_A6SubCode,$AC:$AC)","v":0},{"$f":"SUMIFS(Sheet1!S71_AdjustmentBudAmnt,Sheet1!S71_A6SubCode,$AC:$AC)","v":0},{"$f":"SUMIFS(Sheet1!CD:CD,Sheet1!S71_A6SubCode,$AC:$AC)","v":0},{"$f":"SUMIFS(Sheet1!S71_ASBudgetAmount,Sheet1!S71_A6SubCode,$AC:$AC)","v":0},{"$f":"SUMIFS(Sheet1!S71_OY1BudgetAmount,Sheet1!S71_A6SubCode,$AC:$AC)","v":0},{"$f":"SUMIFS(Sheet1!S71_OY2BudgetAmount,Sheet1!S71_A6SubCode,$AC:$AC)","v":0},null,null,null,null,null,null,null,null,null,null,null,null,null,null,null,null,"0170-08-00"]
["      Acquisitions",null,{"$f":"SUMIFS(Sheet1!S71_PPPYearAmount,Sheet1!S71_A6SubCode,$AC:$AC)","v":0},{"$f":"SUMIFS(Sheet1!S71_PPYearAmount,Sheet1!S71_A6SubCode,$AC:$AC)","v":0},{"$f":"SUMIFS(Sheet1!S71_PYearAmount,Sheet1!S71_A6SubCode,$AC:$AC)","v":0},{"$f":"SUMIFS(Sheet1!S71_OriginalBudAmnt,Sheet1!S71_A6SubCode,$AC:$AC)","v":0},{"$f":"SUMIFS(Sheet1!S71_AdjustmentBudAmnt,Sheet1!S71_A6SubCode,$AC:$AC)","v":0},{"$f":"SUMIFS(Sheet1!S71_AdjustmentBudAmnt,Sheet1!S71_A6SubCode,$AC:$AC)","v":0},{"$f":"SUMIFS(Sheet1!CD:CD,Sheet1!S71_A6SubCode,$AC:$AC)","v":0},{"$f":"SUMIFS(Sheet1!S71_ASBudgetAmount,Sheet1!S71_A6SubCode,$AC:$AC)","v":0},{"$f":"SUMIFS(Sheet1!S71_OY1BudgetAmount,Sheet1!S71_A6SubCode,$AC:$AC)","v":0},{"$f":"SUMIFS(Sheet1!S71_OY2BudgetAmount,Sheet1!S71_A6SubCode,$AC:$AC)","v":0},null,null,null,null,null,null,null,null,null,null,null,null,null,null,null,null,"0170-08-01"]
["      Transfers",null,{"$f":"SUMIFS(Sheet1!S71_PPPYearAmount,Sheet1!S71_A6SubCode,$AC:$AC)","v":0},{"$f":"SUMIFS(Sheet1!S71_PPYearAmount,Sheet1!S71_A6SubCode,$AC:$AC)","v":0},{"$f":"SUMIFS(Sheet1!S71_PYearAmount,Sheet1!S71_A6SubCode,$AC:$AC)","v":0},{"$f":"SUMIFS(Sheet1!S71_OriginalBudAmnt,Sheet1!S71_A6SubCode,$AC:$AC)","v":0},{"$f":"SUMIFS(Sheet1!S71_AdjustmentBudAmnt,Sheet1!S71_A6SubCode,$AC:$AC)","v":0},{"$f":"SUMIFS(Sheet1!S71_AdjustmentBudAmnt,Sheet1!S71_A6SubCode,$AC:$AC)","v":0},{"$f":"SUMIFS(Sheet1!CD:CD,Sheet1!S71_A6SubCode,$AC:$AC)","v":0},{"$f":"SUMIFS(Sheet1!S71_ASBudgetAmount,Sheet1!S71_A6SubCode,$AC:$AC)","v":0},{"$f":"SUMIFS(Sheet1!S71_OY1BudgetAmount,Sheet1!S71_A6SubCode,$AC:$AC)","v":0},{"$f":"SUMIFS(Sheet1!S71_OY2BudgetAmount,Sheet1!S71_A6SubCode,$AC:$AC)","v":0},null,null,null,null,null,null,null,null,null,null,null,null,null,null,null,null,"0170-08-02"]
["      Sales",null,{"$f":"SUMIFS(Sheet1!S71_PPPYearAmount,Sheet1!S71_A6SubCode,$AC:$AC)","v":0},{"$f":"SUMIFS(Sheet1!S71_PPYearAmount,Sheet1!S71_A6SubCode,$AC:$AC)","v":0},{"$f":"SUMIFS(Sheet1!S71_PYearAmount,Sheet1!S71_A6SubCode,$AC:$AC)","v":0},{"$f":"SUMIFS(Sheet1!S71_OriginalBudAmnt,Sheet1!S71_A6SubCode,$AC:$AC)","v":0},{"$f":"SUMIFS(Sheet1!S71_AdjustmentBudAmnt,Sheet1!S71_A6SubCode,$AC:$AC)","v":0},{"$f":"SUMIFS(Sheet1!S71_AdjustmentBudAmnt,Sheet1!S71_A6SubCode,$AC:$AC)","v":0},{"$f":"SUMIFS(Sheet1!CD:CD,Sheet1!S71_A6SubCode,$AC:$AC)","v":0},{"$f":"SUMIFS(Sheet1!S71_ASBudgetAmount,Sheet1!S71_A6SubCode,$AC:$AC)","v":0},{"$f":"SUMIFS(Sheet1!S71_OY1BudgetAmount,Sheet1!S71_A6SubCode,$AC:$AC)","v":0},{"$f":"SUMIFS(Sheet1!S71_OY2BudgetAmount,Sheet1!S71_A6SubCode,$AC:$AC)","v":0},null,null,null,null,null,null,null,null,null,null,null,null,null,null,null,null,"0170-08-03"]
["  Closing Balance - Housing Stock",null,{"$f":"+SUM(C102:C105)","v":0},{"$f":"+SUM(D102:D105)","v":0},0,0,0,0,0,0,0,0]
[]
["Land"]
["  Opening Balance",null,{"$f":"SUMIFS(Sheet1!S71_PPPYearAmount,Sheet1!S71_A6SubCode,$AC:$AC)","v":0},{"$f":"SUMIFS(Sheet1!S71_PPYearAmount,Sheet1!S71_A6SubCode,$AC:$AC)","v":0},{"$f":"SUMIFS(Sheet1!S71_PYearAmount,Sheet1!S71_A6SubCode,$AC:$AC)","v":0},{"$f":"SUMIFS(Sheet1!S71_OriginalBudAmnt,Sheet1!S71_A6SubCode,$AC:$AC)","v":0},{"$f":"SUMIFS(Sheet1!S71_AdjustmentBudAmnt,Sheet1!S71_A6SubCode,$AC:$AC)","v":0},{"$f":"SUMIFS(Sheet1!S71_AdjustmentBudAmnt,Sheet1!S71_A6SubCode,$AC:$AC)","v":0},{"$f":"SUMIFS(Sheet1!CD:CD,Sheet1!S71_A6SubCode,$AC:$AC)","v":0},{"$f":"SUMIFS(Sheet1!S71_ASBudgetAmount,Sheet1!S71_A6SubCode,$AC:$AC)","v":0},{"$f":"SUMIFS(Sheet1!S71_OY1BudgetAmount,Sheet1!S71_A6SubCode,$AC:$AC)","v":0},{"$f":"SUMIFS(Sheet1!S71_OY2BudgetAmount,Sheet1!S71_A6SubCode,$AC:$AC)","v":0},null,null,null,null,null,null,null,null,null,null,null,null,null,null,null,null,"0170-09-00"]
["      Acquisitions",null,{"$f":"SUMIFS(Sheet1!S71_PPPYearAmount,Sheet1!S71_A6SubCode,$AC:$AC)","v":0},{"$f":"SUMIFS(Sheet1!S71_PPYearAmount,Sheet1!S71_A6SubCode,$AC:$AC)","v":0},{"$f":"SUMIFS(Sheet1!S71_PYearAmount,Sheet1!S71_A6SubCode,$AC:$AC)","v":0},{"$f":"SUMIFS(Sheet1!S71_OriginalBudAmnt,Sheet1!S71_A6SubCode,$AC:$AC)","v":0},{"$f":"SUMIFS(Sheet1!S71_AdjustmentBudAmnt,Sheet1!S71_A6SubCode,$AC:$AC)","v":0},{"$f":"SUMIFS(Sheet1!S71_AdjustmentBudAmnt,Sheet1!S71_A6SubCode,$AC:$AC)","v":0},{"$f":"SUMIFS(Sheet1!CD:CD,Sheet1!S71_A6SubCode,$AC:$AC)","v":0},{"$f":"SUMIFS(Sheet1!S71_ASBudgetAmount,Sheet1!S71_A6SubCode,$AC:$AC)","v":0},{"$f":"SUMIFS(Sheet1!S71_OY1BudgetAmount,Sheet1!S71_A6SubCode,$AC:$AC)","v":0},{"$f":"SUMIFS(Sheet1!S71_OY2BudgetAmount,Sheet1!S71_A6SubCode,$AC:$AC)","v":0},null,null,null,null,null,null,null,null,null,null,null,null,null,null,null,null,"0170-09-01"]
["      Sales",null,{"$f":"SUMIFS(Sheet1!S71_PPPYearAmount,Sheet1!S71_A6SubCode,$AC:$AC)","v":0},{"$f":"SUMIFS(Sheet1!S71_PPYearAmount,Sheet1!S71_A6SubCode,$AC:$AC)","v":0},{"$f":"SUMIFS(Sheet1!S71_PYearAmount,Sheet1!S71_A6SubCode,$AC:$AC)","v":0},{"$f":"SUMIFS(Sheet1!S71_OriginalBudAmnt,Sheet1!S71_A6SubCode,$AC:$AC)","v":0},{"$f":"SUMIFS(Sheet1!S71_AdjustmentBudAmnt,Sheet1!S71_A6SubCode,$AC:$AC)","v":0},{"$f":"SUMIFS(Sheet1!S71_AdjustmentBudAmnt,Sheet1!S71_A6SubCode,$AC:$AC)","v":0},{"$f":"SUMIFS(Sheet1!CD:CD,Sheet1!S71_A6SubCode,$AC:$AC)","v":0},{"$f":"SUMIFS(Sheet1!S71_ASBudgetAmount,Sheet1!S71_A6SubCode,$AC:$AC)","v":0},{"$f":"SUMIFS(Sheet1!S71_OY1BudgetAmount,Sheet1!S71_A6SubCode,$AC:$AC)","v":0},{"$f":"SUMIFS(Sheet1!S71_OY2BudgetAmount,Sheet1!S71_A6SubCode,$AC:$AC)","v":0},null,null,null,null,null,null,null,null,null,null,null,null,null,null,null,null,"0170-09-02"]
["      Adjustments",null,{"$f":"SUMIFS(Sheet1!S71_PPPYearAmount,Sheet1!S71_A6SubCode,$AC:$AC)","v":0},{"$f":"SUMIFS(Sheet1!S71_PPYearAmount,Sheet1!S71_A6SubCode,$AC:$AC)","v":0},{"$f":"SUMIFS(Sheet1!S71_PYearAmount,Sheet1!S71_A6SubCode,$AC:$AC)","v":0},{"$f":"SUMIFS(Sheet1!S71_OriginalBudAmnt,Sheet1!S71_A6SubCode,$AC:$AC)","v":0},{"$f":"SUMIFS(Sheet1!S71_AdjustmentBudAmnt,Sheet1!S71_A6SubCode,$AC:$AC)","v":0},{"$f":"SUMIFS(Sheet1!S71_AdjustmentBudAmnt,Sheet1!S71_A6SubCode,$AC:$AC)","v":0},{"$f":"SUMIFS(Sheet1!CD:CD,Sheet1!S71_A6SubCode,$AC:$AC)","v":0},{"$f":"SUMIFS(Sheet1!S71_ASBudgetAmount,Sheet1!S71_A6SubCode,$AC:$AC)","v":0},{"$f":"SUMIFS(Sheet1!S71_OY1BudgetAmount,Sheet1!S71_A6SubCode,$AC:$AC)","v":0},{"$f":"SUMIFS(Sheet1!S71_OY2BudgetAmount,Sheet1!S71_A6SubCode,$AC:$AC)","v":0},null,null,null,null,null,null,null,null,null,null,null,null,null,null,null,null,"0170-09-03"]
["     Correction of  Prior period errors",null,{"$f":"SUMIFS(Sheet1!S71_PPPYearAmount,Sheet1!S71_A6SubCode,$AC:$AC)","v":0},{"$f":"SUMIFS(Sheet1!S71_PPYearAmount,Sheet1!S71_A6SubCode,$AC:$AC)","v":0},{"$f":"SUMIFS(Sheet1!S71_PYearAmount,Sheet1!S71_A6SubCode,$AC:$AC)","v":0},{"$f":"SUMIFS(Sheet1!S71_OriginalBudAmnt,Sheet1!S71_A6SubCode,$AC:$AC)","v":0},{"$f":"SUMIFS(Sheet1!S71_AdjustmentBudAmnt,Sheet1!S71_A6SubCode,$AC:$AC)","v":0},{"$f":"SUMIFS(Sheet1!S71_AdjustmentBudAmnt,Sheet1!S71_A6SubCode,$AC:$AC)","v":0},{"$f":"SUMIFS(Sheet1!CD:CD,Sheet1!S71_A6SubCode,$AC:$AC)","v":0},{"$f":"SUMIFS(Sheet1!S71_ASBudgetAmount,Sheet1!S71_A6SubCode,$AC:$AC)","v":0},{"$f":"SUMIFS(Sheet1!S71_OY1BudgetAmount,Sheet1!S71_A6SubCode,$AC:$AC)","v":0},{"$f":"SUMIFS(Sheet1!S71_OY2BudgetAmount,Sheet1!S71_A6SubCode,$AC:$AC)","v":0},null,null,null,null,null,null,null,null,null,null,null,null,null,null,null,null,"0170-09-04"]
["  Closing Balance - Land",null,{"$f":"SUM(C109:C113)","v":0},{"$f":"SUM(D109:D113)","v":0},0,0,0,0,0,0,0,0]
["Closing Balance - Inventory & Consumables",null,{"$f":"C53+C61+C70+C77+C85+C93+C99+C106+C114","v":0},{"$f":"D53+D61+D70+D77+D85+D93+D99+D106+D114","v":28995},38986,0,0,0,38986,38986,40506,42208]
[]
[{"$f":"'A6-FinPos'!A19&\" (PPE)\"","v":"Property, plant and equipment (PPE)"}]
["PPE at cost/valuation (excl. finance leases)",null,{"$f":"SUMIFS(Sheet1!S71_PPPYearAmount,Sheet1!S71_SA3Code,$AC:$AC)","v":0},{"$f":"SUMIFS(Sheet1!S71_PPYearAmount,Sheet1!S71_SA3Code,$AC:$AC)","v":28889307},{"$f":"SUMIFS(Sheet1!S71_PYearAmount,Sheet1!S71_SA3Code,$AC:$AC)","v":29207791},{"$f":"SUMIFS(Sheet1!S71_OriginalBudAmnt,Sheet1!S71_SA3Code,$AC:$AC)","v":404771},{"$f":"SUMIFS(Sheet1!S71_AdjustmentBudAmnt,Sheet1!S71_SA3Code,$AC:$AC)","v":11870822},{"$f":"SUMIFS(Sheet1!S71_AdjustmentBudAmnt,Sheet1!S71_SA3Code,$AC:$AC)","v":11870822},{"$f":"SUMIFS(Sheet1!CD:CD,Sheet1!S71_SA3Code,$AC:$AC)","v":29404221},{"$f":"SUMIFS(Sheet1!S71_ASBudgetAmount,Sheet1!S71_SA3Code,$AC:$AC)","v":10338311},{"$f":"SUMIFS(Sheet1!S71_OY1BudgetAmount,Sheet1!S71_SA3Code,$AC:$AC)","v":10258508},{"$f":"SUMIFS(Sheet1!S71_OY2BudgetAmount,Sheet1!S71_SA3Code,$AC:$AC)","v":10689630},null,null,null,null,null,null,null,null,null,null,null,null,null,null,null,null,"0241"]
["Leases recognised as PPE",3,{"$f":"SUMIFS(Sheet1!S71_PPPYearAmount,Sheet1!S71_SA3Code,$AC:$AC)","v":0},{"$f":"SUMIFS(Sheet1!S71_PPYearAmount,Sheet1!S71_SA3Code,$AC:$AC)","v":925659},{"$f":"SUMIFS(Sheet1!S71_PYearAmount,Sheet1!S71_SA3Code,$AC:$AC)","v":925659},{"$f":"SUMIFS(Sheet1!S71_OriginalBudAmnt,Sheet1!S71_SA3Code,$AC:$AC)","v":0},{"$f":"SUMIFS(Sheet1!S71_AdjustmentBudAmnt,Sheet1!S71_SA3Code,$AC:$AC)","v":0},{"$f":"SUMIFS(Sheet1!S71_AdjustmentBudAmnt,Sheet1!S71_SA3Code,$AC:$AC)","v":0},{"$f":"SUMIFS(Sheet1!CD:CD,Sheet1!S71_SA3Code,$AC:$AC)","v":925659},{"$f":"SUMIFS(Sheet1!S71_ASBudgetAmount,Sheet1!S71_SA3Code,$AC:$AC)","v":0},{"$f":"SUMIFS(Sheet1!S71_OY1BudgetAmount,Sheet1!S71_SA3Code,$AC:$AC)","v":0},{"$f":"SUMIFS(Sheet1!S71_OY2BudgetAmount,Sheet1!S71_SA3Code,$AC:$AC)","v":0},null,null,null,null,null,null,null,null,null,null,null,null,null,null,null,null,"0242"]
["Less: Accumulated depreciation",null,{"$f":"-SUMIFS(Sheet1!S71_PPPYearAmount,Sheet1!S71_SA3Code,$AC:$AC)","v":0},{"$f":"-SUMIFS(Sheet1!S71_PPYearAmount,Sheet1!S71_SA3Code,$AC:$AC)","v":16886050},{"$f":"-SUMIFS(Sheet1!S71_PYearAmount,Sheet1!S71_SA3Code,$AC:$AC)","v":18590627},{"$f":"-SUMIFS(Sheet1!S71_OriginalBudAmnt,Sheet1!S71_SA3Code,$AC:$AC)","v":0},{"$f":"-SUMIFS(Sheet1!S71_AdjustmentBudAmnt,Sheet1!S71_SA3Code,$AC:$AC)","v":0},{"$f":"-SUMIFS(Sheet1!S71_AdjustmentBudAmnt,Sheet1!S71_SA3Code,$AC:$AC)","v":0},{"$f":"SUMIFS(Sheet1!CD:CD,Sheet1!S71_SA3Code,$AC:$AC)","v":-18590627},{"$f":"-SUMIFS(Sheet1!S71_ASBudgetAmount,Sheet1!S71_SA3Code,$AC:$AC)","v":0},{"$f":"-SUMIFS(Sheet1!S71_OY1BudgetAmount,Sheet1!S71_SA3Code,$AC:$AC)","v":0},{"$f":"-SUMIFS(Sheet1!S71_OY2BudgetAmount,Sheet1!S71_SA3Code,$AC:$AC)","v":0},null,null,null,null,null,null,null,null,null,null,null,null,null,null,null,null,"0243"]
[{"$f":"\"Total \"&A117","v":"Total Property, plant and equipment (PPE)"},2,{"$f":"SUM(C118:C119)-C120","v":0},{"$f":"SUM(D118:D119)-D120","v":12928916},11542823,404771,11870822,11870822,48920507,10338311,10258508,10689630]
[]
["LIABILITIES"]
[{"$f":"'A6-FinPos'!A28&\" - \"&'A6-FinPos'!A30","v":"Current liabilities - Borrowing"}]
["Short term loans (other than bank overdraft)",null,{"$f":"SUMIFS(Sheet1!S71_PPPYearAmount,Sheet1!S71_SA3Code,$AC:$AC)","v":0},{"$f":"SUMIFS(Sheet1!S71_PPYearAmount,Sheet1!S71_SA3Code,$AC:$AC)","v":0},{"$f":"SUMIFS(Sheet1!S71_PYearAmount,Sheet1!S71_SA3Code,$AC:$AC)","v":0},{"$f":"-SUMIFS(Sheet1!S71_OriginalBudAmnt,Sheet1!S71_SA3Code,$AC:$AC)","v":0},{"$f":"-SUMIFS(Sheet1!S71_AdjustmentBudAmnt,Sheet1!S71_SA3Code,$AC:$AC)","v":0},{"$f":"-SUMIFS(Sheet1!S71_AdjustmentBudAmnt,Sheet1!S71_SA3Code,$AC:$AC)","v":0},{"$f":"-SUMIFS(Sheet1!CD:CD,Sheet1!S71_SA3Code,$AC:$AC)","v":0},{"$f":"-SUMIFS(Sheet1!S71_ASBudgetAmount,Sheet1!S71_SA3Code,$AC:$AC)","v":0},{"$f":"-SUMIFS(Sheet1!S71_OY1BudgetAmount,Sheet1!S71_SA3Code,$AC:$AC)","v":0},{"$f":"-SUMIFS(Sheet1!S71_OY2BudgetAmount,Sheet1!S71_SA3Code,$AC:$AC)","v":0},null,null,null,null,null,null,null,null,null,null,null,null,null,null,null,null,"0341"]
["Current portion of long-term liabilities",null,{"$f":"SUMIFS(Sheet1!S71_PPPYearAmount,Sheet1!S71_SA3Code,$AC:$AC)","v":0},{"$f":"SUMIFS(Sheet1!S71_PPYearAmount,Sheet1!S71_SA3Code,$AC:$AC)","v":0},{"$f":"SUMIFS(Sheet1!S71_PYearAmount,Sheet1!S71_SA3Code,$AC:$AC)","v":232688},{"$f":"-SUMIFS(Sheet1!S71_OriginalBudAmnt,Sheet1!S71_SA3Code,$AC:$AC)","v":0},{"$f":"-SUMIFS(Sheet1!S71_AdjustmentBudAmnt,Sheet1!S71_SA3Code,$AC:$AC)","v":0},{"$f":"-SUMIFS(Sheet1!S71_AdjustmentBudAmnt,Sheet1!S71_SA3Code,$AC:$AC)","v":0},{"$f":"-SUMIFS(Sheet1!CD:CD,Sheet1!S71_SA3Code,$AC:$AC)","v":-232688},{"$f":"-SUMIFS(Sheet1!S71_ASBudgetAmount,Sheet1!S71_SA3Code,$AC:$AC)","v":0},{"$f":"-SUMIFS(Sheet1!S71_OY1BudgetAmount,Sheet1!S71_SA3Code,$AC:$AC)","v":0},{"$f":"-SUMIFS(Sheet1!S71_OY2BudgetAmount,Sheet1!S71_SA3Code,$AC:$AC)","v":0},null,null,null,null,null,null,null,null,null,null,null,null,null,null,null,null,"0342"]
[{"$f":"\"Total \"&A124","v":"Total Current liabilities - Borrowing"},null,{"$f":"SUM(C125:C126)","v":0},{"$f":"SUM(D125:D126)","v":0},232688,0,0,0,-232688,0,0,0]
[]
[{"$f":"'A6-FinPos'!A32","v":"Trade and other payables"}]
["Trade Payables",5,{"$f":"SUMIFS(Sheet1!S71_PPPYearAmount,Sheet1!S71_SA3Code,$AC:$AC)","v":0},{"$f":"SUMIFS(Sheet1!S71_PPYearAmount,Sheet1!S71_SA3Code,$AC:$AC)","v":11880911},{"$f":"SUMIFS(Sheet1!S71_PYearAmount,Sheet1!S71_SA3Code,$AC:$AC)","v":17262344},{"$f":"-SUMIFS(Sheet1!S71_OriginalBudAmnt,Sheet1!S71_SA3Code,$AC:$AC)","v":0},{"$f":"-SUMIFS(Sheet1!S71_AdjustmentBudAmnt,Sheet1!S71_SA3Code,$AC:$AC)","v":16846097},{"$f":"-SUMIFS(Sheet1!S71_AdjustmentBudAmnt,Sheet1!S71_SA3Code,$AC:$AC)","v":16846097},{"$f":"-SUMIFS(Sheet1!CD:CD,Sheet1!S71_SA3Code,$AC:$AC)","v":-9539458},{"$f":"-SUMIFS(Sheet1!S71_ASBudgetAmount,Sheet1!S71_SA3Code,$AC:$AC)","v":14813696},{"$f":"-SUMIFS(Sheet1!S71_OY1BudgetAmount,Sheet1!S71_SA3Code,$AC:$AC)","v":14791945},{"$f":"-SUMIFS(Sheet1!S71_OY2BudgetAmount,Sheet1!S71_SA3Code,$AC:$AC)","v":15432377},null,null,null,null,null,null,null,null,null,null,null,null,null,null,null,null,"0361"]
[" Other creditors",null,{"$f":"SUMIFS(Sheet1!S71_PPPYearAmount,Sheet1!S71_SA3Code,$AC:$AC)","v":0},{"$f":"SUMIFS(Sheet1!S71_PPYearAmount,Sheet1!S71_SA3Code,$AC:$AC)","v":0},{"$f":"SUMIFS(Sheet1!S71_PYearAmount,Sheet1!S71_SA3Code,$AC:$AC)","v":0},{"$f":"-SUMIFS(Sheet1!S71_OriginalBudAmnt,Sheet1!S71_SA3Code,$AC:$AC)","v":0},{"$f":"-SUMIFS(Sheet1!S71_AdjustmentBudAmnt,Sheet1!S71_SA3Code,$AC:$AC)","v":0},{"$f":"-SUMIFS(Sheet1!S71_AdjustmentBudAmnt,Sheet1!S71_SA3Code,$AC:$AC)","v":0},{"$f":"-SUMIFS(Sheet1!CD:CD,Sheet1!S71_SA3Code,$AC:$AC)","v":0},{"$f":"-SUMIFS(Sheet1!S71_ASBudgetAmount,Sheet1!S71_SA3Code,$AC:$AC)","v":0},{"$f":"-SUMIFS(Sheet1!S71_OY1BudgetAmount,Sheet1!S71_SA3Code,$AC:$AC)","v":0},{"$f":"-SUMIFS(Sheet1!S71_OY2BudgetAmount,Sheet1!S71_SA3Code,$AC:$AC)","v":0},null,null,null,null,null,null,null,null,null,null,null,null,null,null,null,null,"0362"]
["Unspent conditional transfers",null,{"$f":"SUMIFS(Sheet1!S71_PPPYearAmount,Sheet1!S71_SA3Code,$AC:$AC)","v":0},{"$f":"SUMIFS(Sheet1!S71_PPYearAmount,Sheet1!S71_SA3Code,$AC:$AC)","v":799106},{"$f":"SUMIFS(Sheet1!S71_PYearAmount,Sheet1!S71_SA3Code,$AC:$AC)","v":948106},{"$f":"-SUMIFS(Sheet1!S71_OriginalBudAmnt,Sheet1!S71_SA3Code,$AC:$AC)","v":0},{"$f":"-SUMIFS(Sheet1!S71_AdjustmentBudAmnt,Sheet1!S71_SA3Code,$AC:$AC)","v":0},{"$f":"-SUMIFS(Sheet1!S71_AdjustmentBudAmnt,Sheet1!S71_SA3Code,$AC:$AC)","v":0},{"$f":"-SUMIFS(Sheet1!CD:CD,Sheet1!S71_SA3Code,$AC:$AC)","v":-1847639},{"$f":"-SUMIFS(Sheet1!S71_ASBudgetAmount,Sheet1!S71_SA3Code,$AC:$AC)","v":0},{"$f":"-SUMIFS(Sheet1!S71_OY1BudgetAmount,Sheet1!S71_SA3Code,$AC:$AC)","v":0},{"$f":"-SUMIFS(Sheet1!S71_OY2BudgetAmount,Sheet1!S71_SA3Code,$AC:$AC)","v":0},null,null,null,null,null,null,null,null,null,null,null,null,null,null,null,null,"0363"]
["VAT",null,{"$f":"SUMIFS(Sheet1!S71_PPPYearAmount,Sheet1!S71_SA3Code,$AC:$AC)","v":0},{"$f":"SUMIFS(Sheet1!S71_PPYearAmount,Sheet1!S71_SA3Code,$AC:$AC)","v":742191},{"$f":"SUMIFS(Sheet1!S71_PYearAmount,Sheet1!S71_SA3Code,$AC:$AC)","v":-1008990},{"$f":"-SUMIFS(Sheet1!S71_OriginalBudAmnt,Sheet1!S71_SA3Code,$AC:$AC)","v":0},{"$f":"-SUMIFS(Sheet1!S71_AdjustmentBudAmnt,Sheet1!S71_SA3Code,$AC:$AC)","v":0},{"$f":"-SUMIFS(Sheet1!S71_AdjustmentBudAmnt,Sheet1!S71_SA3Code,$AC:$AC)","v":0},{"$f":"-SUMIFS(Sheet1!CD:CD,Sheet1!S71_SA3Code,$AC:$AC)","v":2137586},{"$f":"-SUMIFS(Sheet1!S71_ASBudgetAmount,Sheet1!S71_SA3Code,$AC:$AC)","v":0},{"$f":"-SUMIFS(Sheet1!S71_OY1BudgetAmount,Sheet1!S71_SA3Code,$AC:$AC)","v":0},{"$f":"-SUMIFS(Sheet1!S71_OY2BudgetAmount,Sheet1!S71_SA3Code,$AC:$AC)","v":0},null,null,null,null,null,null,null,null,null,null,null,null,null,null,null,null,"0364"]
[{"$f":"\"Total \"&A129","v":"Total Trade and other payables"},2,{"$f":"SUM(C130:C133)","v":0},13422208,17201460,0,16846097,16846097,-9249511,14813696,14791945,{"$f":"SUM(L130:L133)","v":15432377}]
[]
[{"$f":"'A6-FinPos'!A36&\" - \"&'A6-FinPos'!A37","v":"Non current liabilities - Borrowing"}]
["Borrowing",4,{"$f":"SUMIFS(Sheet1!S71_PPPYearAmount,Sheet1!S71_SA3Code,$AC:$AC)","v":0},{"$f":"SUMIFS(Sheet1!S71_PPYearAmount,Sheet1!S71_SA3Code,$AC:$AC)","v":0},{"$f":"SUMIFS(Sheet1!S71_PYearAmount,Sheet1!S71_SA3Code,$AC:$AC)","v":0},{"$f":"-SUMIFS(Sheet1!S71_OriginalBudAmnt,Sheet1!S71_SA3Code,$AC:$AC)","v":0},{"$f":"-SUMIFS(Sheet1!S71_AdjustmentBudAmnt,Sheet1!S71_SA3Code,$AC:$AC)","v":0},{"$f":"-SUMIFS(Sheet1!S71_AdjustmentBudAmnt,Sheet1!S71_SA3Code,$AC:$AC)","v":0},{"$f":"-SUMIFS(Sheet1!CD:CD,Sheet1!S71_SA3Code,$AC:$AC)","v":0},{"$f":"-SUMIFS(Sheet1!S71_ASBudgetAmount,Sheet1!S71_SA3Code,$AC:$AC)","v":0},{"$f":"-SUMIFS(Sheet1!S71_OY1BudgetAmount,Sheet1!S71_SA3Code,$AC:$AC)","v":0},{"$f":"-SUMIFS(Sheet1!S71_OY2BudgetAmount,Sheet1!S71_SA3Code,$AC:$AC)","v":0},null,null,null,null,null,null,null,null,null,null,null,null,null,null,null,null,"0401"]
["Finance leases (including PPP asset element)",null,{"$f":"SUMIFS(Sheet1!S71_PPPYearAmount,Sheet1!S71_SA3Code,$AC:$AC)","v":0},{"$f":"SUMIFS(Sheet1!S71_PPYearAmount,Sheet1!S71_SA3Code,$AC:$AC)","v":545637},{"$f":"SUMIFS(Sheet1!S71_PYearAmount,Sheet1!S71_SA3Code,$AC:$AC)","v":104910},{"$f":"-SUMIFS(Sheet1!S71_OriginalBudAmnt,Sheet1!S71_SA3Code,$AC:$AC)","v":0},{"$f":"-SUMIFS(Sheet1!S71_AdjustmentBudAmnt,Sheet1!S71_SA3Code,$AC:$AC)","v":0},{"$f":"-SUMIFS(Sheet1!S71_AdjustmentBudAmnt,Sheet1!S71_SA3Code,$AC:$AC)","v":0},{"$f":"-SUMIFS(Sheet1!CD:CD,Sheet1!S71_SA3Code,$AC:$AC)","v":-104910},{"$f":"-SUMIFS(Sheet1!S71_ASBudgetAmount,Sheet1!S71_SA3Code,$AC:$AC)","v":0},{"$f":"-SUMIFS(Sheet1!S71_OY1BudgetAmount,Sheet1!S71_SA3Code,$AC:$AC)","v":0},{"$f":"-SUMIFS(Sheet1!S71_OY2BudgetAmount,Sheet1!S71_SA3Code,$AC:$AC)","v":0},null,null,null,null,null,null,null,null,null,null,null,null,null,null,null,null,"0402"]
[{"$f":"\"Total \"&A136","v":"Total Non current liabilities - Borrowing"},null,{"$f":"SUM(C137:C138)","v":0},{"$f":"SUM(D137:D138)","v":545637},104910,0,0,0,-104910,0,0,0]
[]
[{"$f":"'A6-FinPos'!A38&\" - non-current\"","v":"Provisions - non-current"}]
["Retirement benefits",null,{"$f":"SUMIFS(Sheet1!S71_PPPYearAmount,Sheet1!S71_SA3Code,$AC:$AC)","v":0},{"$f":"SUMIFS(Sheet1!S71_PPYearAmount,Sheet1!S71_SA3Code,$AC:$AC)","v":0},{"$f":"SUMIFS(Sheet1!S71_PYearAmount,Sheet1!S71_SA3Code,$AC:$AC)","v":0},{"$f":"-SUMIFS(Sheet1!S71_OriginalBudAmnt,Sheet1!S71_SA3Code,$AC:$AC)","v":0},{"$f":"-SUMIFS(Sheet1!S71_AdjustmentBudAmnt,Sheet1!S71_SA3Code,$AC:$AC)","v":0},{"$f":"-SUMIFS(Sheet1!S71_AdjustmentBudAmnt,Sheet1!S71_SA3Code,$AC:$AC)","v":0},{"$f":"-SUMIFS(Sheet1!CD:CD,Sheet1!S71_SA3Code,$AC:$AC)","v":0},{"$f":"-SUMIFS(Sheet1!S71_ASBudgetAmount,Sheet1!S71_SA3Code,$AC:$AC)","v":0},{"$f":"-SUMIFS(Sheet1!S71_OY1BudgetAmount,Sheet1!S71_SA3Code,$AC:$AC)","v":0},{"$f":"-SUMIFS(Sheet1!S71_OY2BudgetAmount,Sheet1!S71_SA3Code,$AC:$AC)","v":0},null,null,null,null,null,null,null,null,null,null,null,null,null,null,null,null,"0411"]
[null,null,{"$f":"SUMIFS(Sheet1!S71_PPPYearAmount,Sheet1!S71_SA3Code,$AC:$AC)","v":0},{"$f":"SUMIFS(Sheet1!S71_PPYearAmount,Sheet1!S71_SA3Code,$AC:$AC)","v":0},{"$f":"SUMIFS(Sheet1!S71_PYearAmount,Sheet1!S71_SA3Code,$AC:$AC)","v":0},{"$f":"-SUMIFS(Sheet1!S71_OriginalBudAmnt,Sheet1!S71_SA3Code,$AC:$AC)","v":0},{"$f":"-SUMIFS(Sheet1!S71_AdjustmentBudAmnt,Sheet1!S71_SA3Code,$AC:$AC)","v":0},{"$f":"-SUMIFS(Sheet1!S71_AdjustmentBudAmnt,Sheet1!S71_SA3Code,$AC:$AC)","v":0},{"$f":"-SUMIFS(Sheet1!CD:CD,Sheet1!S71_SA3Code,$AC:$AC)","v":0},{"$f":"-SUMIFS(Sheet1!S71_ASBudgetAmount,Sheet1!S71_SA3Code,$AC:$AC)","v":0},{"$f":"-SUMIFS(Sheet1!S71_OY1BudgetAmount,Sheet1!S71_SA3Code,$AC:$AC)","v":0},{"$f":"-SUMIFS(Sheet1!S71_OY2BudgetAmount,Sheet1!S71_SA3Code,$AC:$AC)","v":0}]
["Refuse landfill site rehabilitation",null,{"$f":"SUMIFS(Sheet1!S71_PPPYearAmount,Sheet1!S71_SA3Code,$AC:$AC)","v":0},{"$f":"SUMIFS(Sheet1!S71_PPYearAmount,Sheet1!S71_SA3Code,$AC:$AC)","v":0},{"$f":"SUMIFS(Sheet1!S71_PYearAmount,Sheet1!S71_SA3Code,$AC:$AC)","v":0},{"$f":"-SUMIFS(Sheet1!S71_OriginalBudAmnt,Sheet1!S71_SA3Code,$AC:$AC)","v":0},{"$f":"-SUMIFS(Sheet1!S71_AdjustmentBudAmnt,Sheet1!S71_SA3Code,$AC:$AC)","v":0},{"$f":"-SUMIFS(Sheet1!S71_AdjustmentBudAmnt,Sheet1!S71_SA3Code,$AC:$AC)","v":0},{"$f":"-SUMIFS(Sheet1!CD:CD,Sheet1!S71_SA3Code,$AC:$AC)","v":0},{"$f":"-SUMIFS(Sheet1!S71_ASBudgetAmount,Sheet1!S71_SA3Code,$AC:$AC)","v":0},{"$f":"-SUMIFS(Sheet1!S71_OY1BudgetAmount,Sheet1!S71_SA3Code,$AC:$AC)","v":0},{"$f":"-SUMIFS(Sheet1!S71_OY2BudgetAmount,Sheet1!S71_SA3Code,$AC:$AC)","v":0},null,null,null,null,null,null,null,null,null,null,null,null,null,null,null,null,"0412"]
["Other",null,{"$f":"SUMIFS(Sheet1!S71_PPPYearAmount,Sheet1!S71_SA3Code,$AC:$AC)","v":0},{"$f":"SUMIFS(Sheet1!S71_PPYearAmount,Sheet1!S71_SA3Code,$AC:$AC)","v":0},{"$f":"SUMIFS(Sheet1!S71_PYearAmount,Sheet1!S71_SA3Code,$AC:$AC)","v":1919418},{"$f":"-SUMIFS(Sheet1!S71_OriginalBudAmnt,Sheet1!S71_SA3Code,$AC:$AC)","v":0},{"$f":"-SUMIFS(Sheet1!S71_AdjustmentBudAmnt,Sheet1!S71_SA3Code,$AC:$AC)","v":0},{"$f":"-SUMIFS(Sheet1!S71_AdjustmentBudAmnt,Sheet1!S71_SA3Code,$AC:$AC)","v":0},{"$f":"-SUMIFS(Sheet1!CD:CD,Sheet1!S71_SA3Code,$AC:$AC)","v":-1919418},{"$f":"-SUMIFS(Sheet1!S71_ASBudgetAmount,Sheet1!S71_SA3Code,$AC:$AC)","v":1919418},{"$f":"-SUMIFS(Sheet1!S71_OY1BudgetAmount,Sheet1!S71_SA3Code,$AC:$AC)","v":1994275},{"$f":"-SUMIFS(Sheet1!S71_OY2BudgetAmount,Sheet1!S71_SA3Code,$AC:$AC)","v":2078035},null,null,null,null,null,null,null,null,null,null,null,null,null,null,null,null,"0413"]
[{"$f":"\"Total \"&A141","v":"Total Provisions - non-current"},null,{"$f":"+C142+C144+C145","v":0},0,1919418,0,0,0,{"$f":"+I142+I144+I145","v":-1919418},{"$f":"+J142+J144+J145","v":1919418},1994275,2078035]
[]
["CHANGES IN NET ASSETS"]
[{"$f":"'A6-FinPos'!A45","v":"Accumulated Surplus/(Deficit)"}]
[{"$f":"A149&\" - opening balance\"","v":"Accumulated Surplus/(Deficit) - opening balance"},null,{"$f":"SUMIFS(Sheet1!S71_PPPYearAmount,Sheet1!S71_SA3Code,$AC:$AC)","v":0},{"$f":"SUMIFS(Sheet1!S71_PPYearAmount,Sheet1!S71_SA3Code,$AC:$AC)","v":2145463},{"$f":"SUMIFS(Sheet1!S71_PYearAmount,Sheet1!S71_SA3Code,$AC:$AC)","v":2145463},{"$f":"-SUMIFS(Sheet1!S71_OriginalBudAmnt,Sheet1!S71_SA3Code,$AC:$AC)","v":0},{"$f":"-SUMIFS(Sheet1!S71_AdjustmentBudAmnt,Sheet1!S71_SA3Code,$AC:$AC)","v":0},{"$f":"-SUMIFS(Sheet1!S71_AdjustmentBudAmnt,Sheet1!S71_SA3Code,$AC:$AC)","v":0},{"$f":"-SUMIFS(Sheet1!CD:CD,Sheet1!S71_SA3Code,$AC:$AC)","v":-2145463},{"$f":"-SUMIFS(Sheet1!S71_ASBudgetAmount,Sheet1!S71_SA3Code,$AC:$AC)","v":10144632},{"$f":"-SUMIFS(Sheet1!S71_OY1BudgetAmount,Sheet1!S71_SA3Code,$AC:$AC)","v":10570706},{"$f":"-SUMIFS(Sheet1!S71_OY2BudgetAmount,Sheet1!S71_SA3Code,$AC:$AC)","v":11014676},null,null,null,null,null,null,null,null,null,null,null,null,null,null,null,null,"0461"]
["GRAP adjustments",null,{"$f":"SUMIFS(Sheet1!S71_PPPYearAmount,Sheet1!S71_SA3Code,$AC:$AC)","v":0},{"$f":"SUMIFS(Sheet1!S71_PPYearAmount,Sheet1!S71_SA3Code,$AC:$AC)","v":0},{"$f":"SUMIFS(Sheet1!S71_PYearAmount,Sheet1!S71_SA3Code,$AC:$AC)","v":0},{"$f":"-SUMIFS(Sheet1!S71_OriginalBudAmnt,Sheet1!S71_SA3Code,$AC:$AC)","v":0},{"$f":"-SUMIFS(Sheet1!S71_AdjustmentBudAmnt,Sheet1!S71_SA3Code,$AC:$AC)","v":0},{"$f":"-SUMIFS(Sheet1!S71_AdjustmentBudAmnt,Sheet1!S71_SA3Code,$AC:$AC)","v":0},{"$f":"-SUMIFS(Sheet1!CD:CD,Sheet1!S71_SA3Code,$AC:$AC)","v":0},{"$f":"-SUMIFS(Sheet1!S71_ASBudgetAmount,Sheet1!S71_SA3Code,$AC:$AC)","v":0},{"$f":"-SUMIFS(Sheet1!S71_OY1BudgetAmount,Sheet1!S71_SA3Code,$AC:$AC)","v":0},{"$f":"-SUMIFS(Sheet1!S71_OY2BudgetAmount,Sheet1!S71_SA3Code,$AC:$AC)","v":0},null,null,null,null,null,null,null,null,null,null,null,null,null,null,null,null,"0462"]
["Restated balance",null,{"$f":"SUM(C150:C151)","v":0},{"$f":"SUM(D150:D151)","v":2145463},{"$f":"SUM(E150:E151)","v":2145463},{"$f":"SUM(F150:F151)","v":0},0,0,-2145463,10144632,10570706,11014676]
[{"$f":"'A4-FinPerf RE'!A37","v":"Surplus/(Deficit)"},null,{"$f":"'A4-FinPerf RE'!C45","v":0},{"$f":"'A4-FinPerf RE'!D45","v":6988994},{"$f":"'A4-FinPerf RE'!E45","v":377250},{"$f":"'A4-FinPerf RE'!F45","v":404771},{"$f":"'A4-FinPerf RE'!G45","v":791409},{"$f":"'A4-FinPerf RE'!H45","v":791409},{"$f":"'A4-FinPerf RE'!I45","v":5725835},{"$f":"'A4-FinPerf RE'!J45","v":485998},{"$f":"'A4-FinPerf RE'!K45","v":21817},{"$f":"'A4-FinPerf RE'!L45","v":23248},null,null,null,null,null,null,null,null,null,null,null,null,null,null,null,null,"0464"]
[null,null,null,null,null,null,null,null,null,null,null,null,null,null,null,null,null,null,null,null,null,null,null,null,null,null,null,null,"Not on Chart"]
["Transfers to/from Reserves",null,{"$f":"SUMIFS(Sheet1!S71_PPPYearAmount,Sheet1!S71_SA3Code,$AC:$AC)","v":0},{"$f":"SUMIFS(Sheet1!S71_PPYearAmount,Sheet1!S71_SA3Code,$AC:$AC)","v":0},{"$f":"SUMIFS(Sheet1!S71_PYearAmount,Sheet1!S71_SA3Code,$AC:$AC)","v":0},{"$f":"-SUMIFS(Sheet1!S71_OriginalBudAmnt,Sheet1!S71_SA3Code,$AC:$AC)","v":0},{"$f":"-SUMIFS(Sheet1!S71_AdjustmentBudAmnt,Sheet1!S71_SA3Code,$AC:$AC)","v":0},{"$f":"-SUMIFS(Sheet1!S71_AdjustmentBudAmnt,Sheet1!S71_SA3Code,$AC:$AC)","v":0},{"$f":"-SUMIFS(Sheet1!CD:CD,Sheet1!S71_SA3Code,$AC:$AC)","v":0},{"$f":"-SUMIFS(Sheet1!S71_ASBudgetAmount,Sheet1!S71_SA3Code,$AC:$AC)","v":0},{"$f":"-SUMIFS(Sheet1!S71_OY1BudgetAmount,Sheet1!S71_SA3Code,$AC:$AC)","v":0},{"$f":"-SUMIFS(Sheet1!S71_OY2BudgetAmount,Sheet1!S71_SA3Code,$AC:$AC)","v":0},null,null,null,null,null,null,null,null,null,null,null,null,null,null,null,null,"0465"]
["Depreciation offsets",null,{"$f":"SUMIFS(Sheet1!S71_PPPYearAmount,Sheet1!S71_SA3Code,$AC:$AC)","v":0},{"$f":"SUMIFS(Sheet1!S71_PPYearAmount,Sheet1!S71_SA3Code,$AC:$AC)","v":0},{"$f":"SUMIFS(Sheet1!S71_PYearAmount,Sheet1!S71_SA3Code,$AC:$AC)","v":0},{"$f":"-SUMIFS(Sheet1!S71_OriginalBudAmnt,Sheet1!S71_SA3Code,$AC:$AC)","v":0},{"$f":"-SUMIFS(Sheet1!S71_AdjustmentBudAmnt,Sheet1!S71_SA3Code,$AC:$AC)","v":0},{"$f":"-SUMIFS(Sheet1!S71_AdjustmentBudAmnt,Sheet1!S71_SA3Code,$AC:$AC)","v":0},{"$f":"-SUMIFS(Sheet1!CD:CD,Sheet1!S71_SA3Code,$AC:$AC)","v":0},{"$f":"-SUMIFS(Sheet1!S71_ASBudgetAmount,Sheet1!S71_SA3Code,$AC:$AC)","v":0},{"$f":"-SUMIFS(Sheet1!S71_OY1BudgetAmount,Sheet1!S71_SA3Code,$AC:$AC)","v":0},{"$f":"-SUMIFS(Sheet1!S71_OY2BudgetAmount,Sheet1!S71_SA3Code,$AC:$AC)","v":0},null,null,null,null,null,null,null,null,null,null,null,null,null,null,null,null,"0466"]
["Other adjustments",null,{"$f":"SUMIFS(Sheet1!S71_PPPYearAmount,Sheet1!S71_SA3Code,$AC:$AC)","v":0},{"$f":"SUMIFS(Sheet1!S71_PPYearAmount,Sheet1!S71_SA3Code,$AC:$AC)","v":0},{"$f":"SUMIFS(Sheet1!S71_PYearAmount,Sheet1!S71_SA3Code,$AC:$AC)","v":0},{"$f":"-SUMIFS(Sheet1!S71_OriginalBudAmnt,Sheet1!S71_SA3Code,$AC:$AC)","v":0},{"$f":"-SUMIFS(Sheet1!S71_AdjustmentBudAmnt,Sheet1!S71_SA3Code,$AC:$AC)","v":0},{"$f":"-SUMIFS(Sheet1!S71_AdjustmentBudAmnt,Sheet1!S71_SA3Code,$AC:$AC)","v":0},{"$f":"-SUMIFS(Sheet1!CD:CD,Sheet1!S71_SA3Code,$AC:$AC)","v":0},{"$f":"-SUMIFS(Sheet1!S71_ASBudgetAmount,Sheet1!S71_SA3Code,$AC:$AC)","v":0},{"$f":"-SUMIFS(Sheet1!S71_OY1BudgetAmount,Sheet1!S71_SA3Code,$AC:$AC)","v":0},{"$f":"-SUMIFS(Sheet1!S71_OY2BudgetAmount,Sheet1!S71_SA3Code,$AC:$AC)","v":0},null,null,null,null,null,null,null,null,null,null,null,null,null,null,null,null,"0467"]
["Accumulated Surplus/(Deficit)",1,{"$f":"SUM(C152:C157)","v":0},{"$f":"SUM(D152:D157)","v":9134457},{"$f":"SUM(E152:E157)","v":2522713},404771,791409,791409,3580372,10630630,10592523,11037924]
["Reserves"]
["Housing Development Fund",null,{"$f":"SUMIFS(Sheet1!S71_PPPYearAmount,Sheet1!S71_SA3Code,$AC:$AC)","v":0},{"$f":"SUMIFS(Sheet1!S71_PPYearAmount,Sheet1!S71_SA3Code,$AC:$AC)","v":0},{"$f":"SUMIFS(Sheet1!S71_PYearAmount,Sheet1!S71_SA3Code,$AC:$AC)","v":0},{"$f":"-SUMIFS(Sheet1!S71_OriginalBudAmnt,Sheet1!S71_SA3Code,$AC:$AC)","v":0},{"$f":"-SUMIFS(Sheet1!S71_AdjustmentBudAmnt,Sheet1!S71_SA3Code,$AC:$AC)","v":0},{"$f":"-SUMIFS(Sheet1!S71_AdjustmentBudAmnt,Sheet1!S71_SA3Code,$AC:$AC)","v":0},{"$f":"-SUMIFS(Sheet1!CD:CD,Sheet1!S71_SA3Code,$AC:$AC)","v":0},{"$f":"-SUMIFS(Sheet1!S71_ASBudgetAmount,Sheet1!S71_SA3Code,$AC:$AC)","v":0},{"$f":"-SUMIFS(Sheet1!S71_OY1BudgetAmount,Sheet1!S71_SA3Code,$AC:$AC)","v":0},{"$f":"-SUMIFS(Sheet1!S71_OY2BudgetAmount,Sheet1!S71_SA3Code,$AC:$AC)","v":0},null,null,null,null,null,null,null,null,null,null,null,null,null,null,null,null,"0471"]
["Capital replacement",null,{"$f":"SUMIFS(Sheet1!S71_PPPYearAmount,Sheet1!S71_SA3Code,$AC:$AC)","v":0},{"$f":"SUMIFS(Sheet1!S71_PPYearAmount,Sheet1!S71_SA3Code,$AC:$AC)","v":0},{"$f":"SUMIFS(Sheet1!S71_PYearAmount,Sheet1!S71_SA3Code,$AC:$AC)","v":0},{"$f":"-SUMIFS(Sheet1!S71_OriginalBudAmnt,Sheet1!S71_SA3Code,$AC:$AC)","v":0},{"$f":"-SUMIFS(Sheet1!S71_AdjustmentBudAmnt,Sheet1!S71_SA3Code,$AC:$AC)","v":0},{"$f":"-SUMIFS(Sheet1!S71_AdjustmentBudAmnt,Sheet1!S71_SA3Code,$AC:$AC)","v":0},{"$f":"-SUMIFS(Sheet1!CD:CD,Sheet1!S71_SA3Code,$AC:$AC)","v":0},{"$f":"-SUMIFS(Sheet1!S71_ASBudgetAmount,Sheet1!S71_SA3Code,$AC:$AC)","v":0},{"$f":"-SUMIFS(Sheet1!S71_OY1BudgetAmount,Sheet1!S71_SA3Code,$AC:$AC)","v":0},{"$f":"-SUMIFS(Sheet1!S71_OY2BudgetAmount,Sheet1!S71_SA3Code,$AC:$AC)","v":0},null,null,null,null,null,null,null,null,null,null,null,null,null,null,null,null,"0472"]
["Self-insurance",null,{"$f":"SUMIFS(Sheet1!S71_PPPYearAmount,Sheet1!S71_SA3Code,$AC:$AC)","v":0},{"$f":"SUMIFS(Sheet1!S71_PPYearAmount,Sheet1!S71_SA3Code,$AC:$AC)","v":0},{"$f":"SUMIFS(Sheet1!S71_PYearAmount,Sheet1!S71_SA3Code,$AC:$AC)","v":0},{"$f":"-SUMIFS(Sheet1!S71_OriginalBudAmnt,Sheet1!S71_SA3Code,$AC:$AC)","v":0},{"$f":"-SUMIFS(Sheet1!S71_AdjustmentBudAmnt,Sheet1!S71_SA3Code,$AC:$AC)","v":0},{"$f":"-SUMIFS(Sheet1!S71_AdjustmentBudAmnt,Sheet1!S71_SA3Code,$AC:$AC)","v":0},{"$f":"-SUMIFS(Sheet1!CD:CD,Sheet1!S71_SA3Code,$AC:$AC)","v":0},{"$f":"-SUMIFS(Sheet1!S71_ASBudgetAmount,Sheet1!S71_SA3Code,$AC:$AC)","v":0},{"$f":"-SUMIFS(Sheet1!S71_OY1BudgetAmount,Sheet1!S71_SA3Code,$AC:$AC)","v":0},{"$f":"-SUMIFS(Sheet1!S71_OY2BudgetAmount,Sheet1!S71_SA3Code,$AC:$AC)","v":0},null,null,null,null,null,null,null,null,null,null,null,null,null,null,null,null,"0473"]
["Other reserves",null,{"$f":"SUMIFS(Sheet1!S71_PPPYearAmount,Sheet1!S71_SA3Code,$AC:$AC)","v":0},{"$f":"SUMIFS(Sheet1!S71_PPYearAmount,Sheet1!S71_SA3Code,$AC:$AC)","v":0},{"$f":"SUMIFS(Sheet1!S71_PYearAmount,Sheet1!S71_SA3Code,$AC:$AC)","v":0},{"$f":"-SUMIFS(Sheet1!S71_OriginalBudAmnt,Sheet1!S71_SA3Code,$AC:$AC)","v":0},{"$f":"-SUMIFS(Sheet1!S71_AdjustmentBudAmnt,Sheet1!S71_SA3Code,$AC:$AC)","v":0},{"$f":"-SUMIFS(Sheet1!S71_AdjustmentBudAmnt,Sheet1!S71_SA3Code,$AC:$AC)","v":0},{"$f":"-SUMIFS(Sheet1!CD:CD,Sheet1!S71_SA3Code,$AC:$AC)","v":0},{"$f":"-SUMIFS(Sheet1!S71_ASBudgetAmount,Sheet1!S71_SA3Code,$AC:$AC)","v":0},{"$f":"-SUMIFS(Sheet1!S71_OY1BudgetAmount,Sheet1!S71_SA3Code,$AC:$AC)","v":0},{"$f":"-SUMIFS(Sheet1!S71_OY2BudgetAmount,Sheet1!S71_SA3Code,$AC:$AC)","v":0},null,null,null,null,null,null,null,null,null,null,null,null,null,null,null,null,"0474"]
["Revaluation",null,{"$f":"SUMIFS(Sheet1!S71_PPPYearAmount,Sheet1!S71_SA3Code,$AC:$AC)","v":0},{"$f":"SUMIFS(Sheet1!S71_PPYearAmount,Sheet1!S71_SA3Code,$AC:$AC)","v":0},{"$f":"SUMIFS(Sheet1!S71_PYearAmount,Sheet1!S71_SA3Code,$AC:$AC)","v":0},{"$f":"-SUMIFS(Sheet1!S71_OriginalBudAmnt,Sheet1!S71_SA3Code,$AC:$AC)","v":0},{"$f":"-SUMIFS(Sheet1!S71_AdjustmentBudAmnt,Sheet1!S71_SA3Code,$AC:$AC)","v":0},{"$f":"-SUMIFS(Sheet1!S71_AdjustmentBudAmnt,Sheet1!S71_SA3Code,$AC:$AC)","v":0},{"$f":"-SUMIFS(Sheet1!CD:CD,Sheet1!S71_SA3Code,$AC:$AC)","v":0},{"$f":"-SUMIFS(Sheet1!S71_ASBudgetAmount,Sheet1!S71_SA3Code,$AC:$AC)","v":0},{"$f":"-SUMIFS(Sheet1!S71_OY1BudgetAmount,Sheet1!S71_SA3Code,$AC:$AC)","v":0},{"$f":"-SUMIFS(Sheet1!S71_OY2BudgetAmount,Sheet1!S71_SA3Code,$AC:$AC)","v":0},null,null,null,null,null,null,null,null,null,null,null,null,null,null,null,null,"0475"]
["Total Reserves",2,{"$f":"SUM(C160:C164)","v":0},0,0,0,0,0,0,0,0,0]
[{"$f":"'A6-FinPos'!A48","v":"TOTAL COMMUNITY WEALTH/EQUITY"},2,{"$f":"C158+C165","v":0},9134457,2522713,404771,791409,791409,3580372,10630630,10592523,11037924]
[]
[]
[]
[]
[]
[{"$f":"head27a","v":"References"}]
[{"$f":"\"1. Must reconcile with \"&'Template names'!F103","v":"1. Must reconcile with Table A4 Budgeted Financial Performance (revenue and expenditure)"}]
[{"$f":"\"2. Must reconcile with \"&'Template names'!F105","v":"2. Must reconcile with Table A6 Budgeted Financial Position"}]
["3. Leases treated as assets to be depreciated as the same as purchased/constructed assets.  Includes PPP asset element accounted for as finance leases"]
["4. Borrowing must reconcile to Table A17"]
["5. Trade Payable should only include Trade Payables from Exchance Transactions (\"True Creditors\")"]
["6. Inventory Consumed - Water - included under \"Inventory Consumed\" on Table A4 - Detail to be submitted on Table SA1"]
["7. Inventry Consumed Other - included under \"Inventory Consumed\" on Table A4 - Detail to be submitted on Table SA1"]
["8. Inventory Transfers/Adjustments (Include under gains/losses on Table A4)"]
["9. Inventory Write-offs (Include under losses on Table A4)"]
[]
["check",null,{"$f":"C166-'A6-FinPos'!C48","v":0},{"$f":"D166-'A6-FinPos'!D48","v":6988994},{"$f":"E166-'A6-FinPos'!E48","v":377250},{"$f":"F166-'A6-FinPos'!F48","v":0},{"$f":"G166-'A6-FinPos'!G48","v":-9202318},{"$f":"H166-'A6-FinPos'!H48","v":-9202318},{"$f":"I166-'A6-FinPos'!I48","v":123742192},{"$f":"J166-'A6-FinPos'!J48","v":0},{"$f":"K166-'A6-FinPos'!K48","v":0},{"$f":"L166-'A6-FinPos'!L48","v":0}]
[null,null,{"$f":"TREND(D184:H184)","v":0},{"$f":"TREND(E184:H184)","v":0},{"$f":"E169","v":0},{"$f":"H169","v":0},{"$f":"J169","v":0},{"$f":"K169","v":0},{"$f":"L169","v":0}]

{"sheet":"SA4","index":32,"n_rows":26,"n_cols":13,"rows_kept":26,"cut":false,"hidden":false,"merged":[[1,7,1,9],[1,10,1,12],[1,3,2,3]]}
[{"$f":"muni&\" - \"&TableA4","v":"DC16 Xhariep - Supporting Table SA4 Reconciliation of IDP strategic objectives and budget (revenue)"}]
["Strategic Objective","Goal","Goal\nCode",{"$f":"head27","v":"Ref"},{"$f":"head1b","v":"2017/18"},{"$f":"head1A","v":"2018/19"},{"$f":"Head1","v":"2019/20"},{"$f":"Head2","v":"Current Year 2020/21"},null,null,{"$f":"Head3","v":"2021/22 Medium Term Revenue & Expenditure Framework"}]
["R thousand",null,null,null,{"$f":"Head5","v":"Audited Outcome"},{"$f":"Head5","v":"Audited Outcome"},{"$f":"Head5","v":"Audited Outcome"},{"$f":"Head6","v":"Original Budget"},{"$f":"Head7","v":"Adjusted Budget"},{"$f":"Head8","v":"Full Year Forecast"},{"$f":"Head9","v":"Budget Year 2021/22"},{"$f":"Head10","v":"Budget Year +1 2022/23"},{"$f":"Head11","v":"Budget Year +2 2023/24"}]
["Improve the accuracy and integration of various components of the Financial System to enable proper financial planning and reporting","Responsive, accountable, effective and efficient local government",9,"_",0,9081467,8931170,-8229756,-8679506,-8679506,-6926506,-12662800,-12903600]
["To accelerate institutional transformation","Responsive, accountable, effective and efficient local government",9,"_",0,59884291,59031614,-59717231,-61008677,-61008677,-56544677,-56085200,-57248399]
[]
[]
[]
[]
[]
[]
[]
[]
[]
[]
[]
[]
[]
[]
[]
["Allocations to other priorities",null,null,2]
[{"$f":"'A4-FinPerf RE'!A21","v":"Total Revenue (excluding capital transfers and contributions)"},null,null,1,{"$f":"SUM(E4:E21)","v":0},68965758,67962784,-67946987,-69688183,-69688183,-63471183,-68748000,-70151999]
[{"$f":"head27a","v":"References"}]
[{"$f":"\"1. Total revenue must reconcile to \"&'Template names'!F103","v":"1. Total revenue must reconcile to Table A4 Budgeted Financial Performance (revenue and expenditure)"}]
["2. Balance of allocations not directly linked to an IDP strategic objective"]
["check op revenue balance",null,null,null,{"$f":"E22-'A4-FinPerf RE'!C59","v":0},{"$f":"F22-'A4-FinPerf RE'!D59","v":0},{"$f":"G22-'A4-FinPerf RE'!E59","v":0},{"$f":"H22-'A4-FinPerf RE'!F59","v":-135893974},{"$f":"I22-'A4-FinPerf RE'!G59","v":-139376366},{"$f":"J22-'A4-FinPerf RE'!H59","v":-139376366},{"$f":"K22-'A4-FinPerf RE'!J59","v":-126942366},{"$f":"L22-'A4-FinPerf RE'!K59","v":-137496000},{"$f":"M22-'A4-FinPerf RE'!L59","v":-140303998}]

{"sheet":"SA5","index":33,"n_rows":27,"n_cols":13,"rows_kept":27,"cut":false,"hidden":false,"merged":[[1,7,1,9],[1,10,1,12],[1,3,2,3]]}
[{"$f":"muni&\" - \"&TableA5","v":"DC16 Xhariep - Supporting Table SA5 Reconciliation of IDP strategic objectives and budget (operating expenditure)"}]
["Strategic Objective","Goal","Goal\nCode",{"$f":"head27","v":"Ref"},{"$f":"head1b","v":"2017/18"},{"$f":"head1A","v":"2018/19"},{"$f":"Head1","v":"2019/20"},{"$f":"Head2","v":"Current Year 2020/21"},null,null,{"$f":"Head3","v":"2021/22 Medium Term Revenue & Expenditure Framework"}]
["R thousand",null,null,null,{"$f":"Head5","v":"Audited Outcome"},{"$f":"Head5","v":"Audited Outcome"},{"$f":"Head5","v":"Audited Outcome"},{"$f":"Head6","v":"Original Budget"},{"$f":"Head7","v":"Adjusted Budget"},{"$f":"Head8","v":"Full Year Forecast"},{"$f":"Head9","v":"Budget Year 2021/22"},{"$f":"Head10","v":"Budget Year +1 2022/23"},{"$f":"Head11","v":"Budget Year +2 2023/24"}]
["Facilitate infrastructure development in the entire district municipality","Sustainable human settlements and improved quality of household life",8,"_",0,10252205,9553076,10889936,10553975,10553975,11185996,10887736,10727616]
["Grow the district economy by improving employment opportunities","Sustainable human settlements and improved quality of household life",8,"_",0,4015758,2546979,3551552,2954470,2954470,1151500,2103260,1971039]
["Improve the accuracy and integration of various components of the Financial System to enable proper financial planning and reporting","Responsive, accountable, effective and efficient local government",9,"_",0,53267,14050,0,0,0,0,0,0]
["Improve the accuracy and integration of various components of the Financial System to enable proper financial planning and reporting","Sustainable human settlements and improved quality of household life",8,"_",0,35656138,38790305,33820466,34310968,34310968,33338512,36513157,37291040]
["Provide environmental health services to the residents of Xhariep","A long and healthy life for all South Africans",2,"_",0,0,609,30000,30000,30000,30000,11418,12035]
["Provide environmental health services to the residents of Xhariep","An efficient, effective and development-oriented public service",12,"_",0,212836,436862,455000,663000,663000,215000,447300,610760]
["Provide environmental health services to the residents of Xhariep","Sustainable human settlements and improved quality of household life",8,"_",0,2375480,3733459,3700350,4644350,4644350,2141000,3385339,3541526]
["To accelerate institutional transformation","A comprehensive, responsive and sustainable social protection system",13,"_",0,0,8453,140000,230000,230000,160000,137020,144419]
["To accelerate institutional transformation","An efficient, effective and development-oriented public service",12,"_",0,119626,189702,240000,230000,230000,190000,159856,168489]
["To accelerate institutional transformation","Responsive, accountable, effective and efficient local government",9,"_",0,2809,1216,10000,10000,10000,20000,11418,12035]
["To accelerate institutional transformation","Sustainable human settlements and improved quality of household life",8,"_",0,9326742,12425194,14704912,15270011,15270011,14553177,15069679,15649792]
[]
[]
[]
[]
[]
[]
[]
["Allocations to other priorities"]
[{"$f":"'A4-FinPerf RE'!A35","v":"Total Expenditure"},null,null,1,{"$f":"SUM(E4:E22)","v":0},62014861,67699905,67542216,68896774,68896774,62985185,68726183,70128751]
[{"$f":"head27a","v":"References"}]
[{"$f":"\"1. Total expenditure must reconcile to \"&'Template names'!F103","v":"1. Total expenditure must reconcile to Table A4 Budgeted Financial Performance (revenue and expenditure)"}]
["2. Balance of allocations not directly linked to an IDP strategic objective"]
["check op expenditure balance",null,null,null,{"$f":"E23-'A4-FinPerf RE'!C35","v":0},{"$f":"F23-'A4-FinPerf RE'!D35","v":38097},{"$f":"G23-'A4-FinPerf RE'!E35","v":114371},{"$f":"H23-'A4-FinPerf RE'!F35","v":0},{"$f":"I23-'A4-FinPerf RE'!G35","v":0},{"$f":"J23-'A4-FinPerf RE'!H35","v":0},{"$f":"K23-'A4-FinPerf RE'!J35","v":0},{"$f":"L23-'A4-FinPerf RE'!K35","v":0},{"$f":"M23-'A4-FinPerf RE'!L35","v":0}]

{"sheet":"SA6","index":34,"n_rows":26,"n_cols":13,"rows_kept":26,"cut":false,"hidden":false,"merged":[[1,7,1,9],[1,10,1,12],[1,3,2,3]]}
[{"$f":"muni&\" - \"&TableA6","v":"DC16 Xhariep - Supporting Table SA6 Reconciliation of IDP strategic objectives and budget (capital expenditure)"}]
["Strategic Objective","Goal","Goal Code",{"$f":"head27","v":"Ref"},{"$f":"head1b","v":"2017/18"},{"$f":"head1A","v":"2018/19"},{"$f":"Head1","v":"2019/20"},{"$f":"Head2","v":"Current Year 2020/21"},null,null,{"$f":"Head3","v":"2021/22 Medium Term Revenue & Expenditure Framework"}]
["R thousand",null,null,null,{"$f":"Head5","v":"Audited Outcome"},{"$f":"Head5","v":"Audited Outcome"},{"$f":"Head5","v":"Audited Outcome"},{"$f":"Head6","v":"Original Budget"},{"$f":"Head7","v":"Adjusted Budget"},{"$f":"Head8","v":"Full Year Forecast"},{"$f":"Head9","v":"Budget Year 2021/22"},{"$f":"Head10","v":"Budget Year +1 2022/23"},{"$f":"Head11","v":"Budget Year +2 2023/24"}]
["Facilitate infrastructure development in the entire district municipality","An efficient, effective and development-oriented public service",12,"_",0,0,157799,340000,170000,170000,200000,0,0]
["To accelerate institutional transformation","An efficient, effective and development-oriented public service",12,"_",0,0,160685,64771,158000,158000,286000,21958,23144]
[null,null,"C"]
[null,null,"D"]
[null,null,"E"]
[null,null,"F"]
[null,null,"G"]
[null,null,"H"]
[null,null,"I"]
[null,null,"J"]
[null,null,"K"]
[null,null,"L"]
[null,null,"M"]
[null,null,"N"]
[null,null,"O"]
[null,null,"P"]
["Allocations to other priorities",null,null,3]
["Total Capital Expenditure",null,null,1,{"$f":"SUM(E4:E20)","v":0},0,318484,404771,328000,328000,486000,21958,23144]
[{"$f":"head27a","v":"References"}]
["1. Total capital expenditure must reconcile to Budgeted Capital Expenditure"]
["2. Goal code must be used on Table SA36"]
["3. Balance of allocations not directly linked to an IDP strategic objective"]
["check capital balance",null,null,null,{"$f":"E21-'A5-Capex'!C40","v":0},{"$f":"F21-'A5-Capex'!D40","v":0},{"$f":"G21-'A5-Capex'!E40","v":0},{"$f":"H21-'A5-Capex'!F40","v":0},{"$f":"I21-'A5-Capex'!G40","v":0},{"$f":"J21-'A5-Capex'!H40","v":0},{"$f":"K21-'A5-Capex'!J40","v":0},{"$f":"L21-'A5-Capex'!K40","v":0},{"$f":"M21-'A5-Capex'!L40","v":0}]

{"sheet":"SA7","index":35,"n_rows":89,"n_cols":11,"rows_kept":89,"cut":false,"hidden":false,"merged":[[1,1,2,1],[1,0,2,0],[1,5,1,7],[1,8,1,10],[87,0,87,10],[67,0,67,10],[72,0,73,0],[72,1,73,1],[72,5,72,7],[72,8,72,10]]}
[{"$f":"muni&\" - \"&TableA7","v":"DC16 Xhariep - Supporting Table SA7 Measureable performance objectives"}]
["Description","Unit of measurement",{"$f":"head1b","v":"2017/18"},{"$f":"head1A","v":"2018/19"},{"$f":"Head1","v":"2019/20"},{"$f":"Head2","v":"Current Year 2020/21"},null,null,{"$f":"Head3","v":"2021/22 Medium Term Revenue & Expenditure Framework"}]
[null,null,{"$f":"Head5","v":"Audited Outcome"},{"$f":"Head5","v":"Audited Outcome"},{"$f":"Head5","v":"Audited Outcome"},{"$f":"Head6","v":"Original Budget"},{"$f":"Head7","v":"Adjusted Budget"},{"$f":"Head8","v":"Full Year Forecast"},{"$f":"Head9","v":"Budget Year 2021/22"},{"$f":"Head10","v":"Budget Year +1 2022/23"},{"$f":"Head11","v":"Budget Year +2 2023/24"}]
["Vote 1 - vote name"]
["Function 1 - (name)"]
["Sub-function 1 - (name)"]
["Insert measure/s description"]
[]
["Sub-function 2 - (name)"]
["Insert measure/s description"]
[]
["Sub-function 3 - (name)"]
["Insert measure/s description"]
[]
["Function 2 - (name)"]
["Sub-function 1 - (name)"]
["Insert measure/s description"]
[]
["Sub-function 2 - (name)"]
["Insert measure/s description"]
[]
["Sub-function 3 - (name)"]
["Insert measure/s description"]
[]
["Vote 2 - vote name"]
["Function 1 - (name)"]
["Sub-function 1 - (name)"]
["Insert measure/s description"]
[]
["Sub-function 2 - (name)"]
["Insert measure/s description"]
[]
["Sub-function 3 - (name)"]
["Insert measure/s description"]
[]
["Function 2 - (name)"]
["Sub-function 1 - (name)"]
["Insert measure/s description"]
[]
["Sub-function 2 - (name)"]
["Insert measure/s description"]
[]
["Sub-function 3 - (name)"]
["Insert measure/s description"]
[]
["Vote 3 - vote name"]
["Function 1 - (name)"]
["Sub-function 1 - (name)"]
["Insert measure/s description"]
[]
["Sub-function 2 - (name)"]
["Insert measure/s description"]
[]
["Sub-function 3 - (name)"]
["Insert measure/s description"]
[]
["Function 2 - (name)"]
["Sub-function 1 - (name)"]
["Insert measure/s description"]
[]
["Sub-function 2 - (name)"]
["Insert measure/s description"]
[]
["Sub-function 3 - (name)"]
["Insert measure/s description"]
[]
["And so on for the rest of the Votes"]
["1. Include a measurable performance objective for each revenue source (within a relevant function) and each vote (MFMA s17(3)(b))"]
["2. Include all Basic Services performance targets from 'Basic Service Delivery' to ensure Table SA7 represents all strategic responsibilities"]
["3. Only include prior year comparative information for individual measures where relevant activity occurred in that year/s"]
[]
[{"$f":"muni&\" - \"&\"Entities measureable performance objectives\"","v":"DC16 Xhariep - Entities measureable performance objectives"}]
[{"$f":"A2","v":"Description"},"Unit of measurement",{"$f":"head1b","v":"2017/18"},{"$f":"head1A","v":"2018/19"},{"$f":"Head1","v":"2019/20"},{"$f":"Head2","v":"Current Year 2020/21"},null,null,{"$f":"Head3","v":"2021/22 Medium Term Revenue & Expenditure Framework"}]
[null,null,{"$f":"Head5","v":"Audited Outcome"},{"$f":"Head5","v":"Audited Outcome"},{"$f":"Head5","v":"Audited Outcome"},{"$f":"Head6","v":"Original Budget"},{"$f":"Head7","v":"Adjusted Budget"},{"$f":"Head8","v":"Full Year Forecast"},{"$f":"Head9","v":"Budget Year 2021/22"},{"$f":"Head10","v":"Budget Year +1 2022/23"},{"$f":"Head11","v":"Budget Year +2 2023/24"}]
["Entity 1 - (name of entity)"]
["Insert measure/s description"]
[]
[]
["Entity 2 - (name of entity)"]
[{"$f":"$A$10","v":"Insert measure/s description"}]
[]
[]
["Entity 3 - (name of entity)"]
[{"$f":"$A$10","v":"Insert measure/s description"}]
[]
[]
["And so on for the rest of the Entities"]
["1. Include a measurable performance objective as agreed with the parent municipality (MFMA s87(5)(d))"]
["2. Only include prior year comparative information for individual measures where relevant activity occurred in that year/s"]

{"sheet":"SA8","index":36,"n_rows":49,"n_cols":12,"rows_kept":49,"cut":false,"hidden":false,"merged":[[28,0,30,0],[1,0,2,0],[1,9,1,11],[1,1,2,1],[1,5,1,8],[25,0,27,0]]}
[{"$f":"muni&\" - \"&TableA8","v":"DC16 Xhariep - Supporting Table SA8 Performance indicators and benchmarks"}]
["Description of financial indicator","Basis of calculation",{"$f":"head1b","v":"2017/18"},{"$f":"head1A","v":"2018/19"},{"$f":"Head1","v":"2019/20"},{"$f":"Head2","v":"Current Year 2020/21"},null,null,null,{"$f":"Head3","v":"2021/22 Medium Term Revenue & Expenditure Framework"}]
[null,null,{"$f":"Head5","v":"Audited Outcome"},{"$f":"Head5","v":"Audited Outcome"},{"$f":"Head5","v":"Audited Outcome"},{"$f":"Head6","v":"Original Budget"},{"$f":"Head7","v":"Adjusted Budget"},{"$f":"Head8","v":"Full Year Forecast"},{"$f":"Head5b","v":"Pre-audit outcome"},{"$f":"Head9","v":"Budget Year 2021/22"},{"$f":"Head10","v":"Budget Year +1 2022/23"},{"$f":"Head11","v":"Budget Year +2 2023/24"}]
["Borrowing Management"]
[]
["Credit Rating"]
["Capital Charges to Operating Expenditure","Interest & Principal Paid /Operating Expenditure",{"$f":"IF(ISERROR(('A4-FinPerf RE'!C28-'A7-CFlow'!C35)/'A4-FinPerf RE'!C35),0,(('A4-FinPerf RE'!C28-'A7-CFlow'!C35)/'A4-FinPerf RE'!C35))","v":0},{"$f":"IF(ISERROR(('A4-FinPerf RE'!D28-'A7-CFlow'!D35)/'A4-FinPerf RE'!D35),0,(('A4-FinPerf RE'!D28-'A7-CFlow'!D35)/'A4-FinPerf RE'!D35))","v":5.2183427969875939E-3},{"$f":"IF(ISERROR(('A4-FinPerf RE'!E28-'A7-CFlow'!E35)/'A4-FinPerf RE'!E35),0,(('A4-FinPerf RE'!E28-'A7-CFlow'!E35)/'A4-FinPerf RE'!E35))","v":6.3167215635227501E-3},{"$f":"IF(ISERROR(('A4-FinPerf RE'!F28-'A7-CFlow'!F35)/'A4-FinPerf RE'!F35),0,(('A4-FinPerf RE'!F28-'A7-CFlow'!F35)/'A4-FinPerf RE'!F35))","v":4.2936109765779676E-3},{"$f":"IF(ISERROR(('A4-FinPerf RE'!G28-'A7-CFlow'!G35)/'A4-FinPerf RE'!G35),0,(('A4-FinPerf RE'!G28-'A7-CFlow'!G35)/'A4-FinPerf RE'!G35))","v":4.2091956293918787E-3},{"$f":"IF(ISERROR(('A4-FinPerf RE'!H28-'A7-CFlow'!H35)/'A4-FinPerf RE'!H35),0,(('A4-FinPerf RE'!H28-'A7-CFlow'!H35)/'A4-FinPerf RE'!H35))","v":4.2091956293918787E-3},{"$f":"IF(ISERROR(('A4-FinPerf RE'!I28-'A7-CFlow'!I35)/'A4-FinPerf RE'!I35),0,(('A4-FinPerf RE'!I28-'A7-CFlow'!I35)/'A4-FinPerf RE'!I35))","v":3.0542381840561752E-3},{"$f":"IF(ISERROR(('A4-FinPerf RE'!J28-'A7-CFlow'!J35)/'A4-FinPerf RE'!J35),0,(('A4-FinPerf RE'!J28-'A7-CFlow'!J35)/'A4-FinPerf RE'!J35))","v":1.2701399543400564E-3},{"$f":"IF(ISERROR(('A4-FinPerf RE'!K28-'A7-CFlow'!K35)/'A4-FinPerf RE'!K35),0,(('A4-FinPerf RE'!K28-'A7-CFlow'!K35)/'A4-FinPerf RE'!K35))","v":5.9811265816988556E-3},{"$f":"IF(ISERROR(('A4-FinPerf RE'!L28-'A7-CFlow'!L35)/'A4-FinPerf RE'!L35),0,(('A4-FinPerf RE'!L28-'A7-CFlow'!L35)/'A4-FinPerf RE'!L35))","v":6.1780224775427701E-3}]
["Capital Charges to Own Revenue","Finance charges & Repayment of borrowing /Own Revenue",{"$f":"IF(ISERROR(('A4-FinPerf RE'!C28-'A7-CFlow'!C35)/('A4-FinPerf RE'!C21-'A4-FinPerf RE'!C18)),0,(('A4-FinPerf RE'!C28-'A7-CFlow'!C35)/('A4-FinPerf RE'!C21-'A4-FinPerf RE'!C18)))","v":0},{"$f":"IF(ISERROR(('A4-FinPerf RE'!D28-'A7-CFlow'!D35)/('A4-FinPerf RE'!D21-'A4-FinPerf RE'!D18)),0,(('A4-FinPerf RE'!D28-'A7-CFlow'!D35)/('A4-FinPerf RE'!D21-'A4-FinPerf RE'!D18)))","v":0.26407773332244633},{"$f":"IF(ISERROR(('A4-FinPerf RE'!E28-'A7-CFlow'!E35)/('A4-FinPerf RE'!E21-'A4-FinPerf RE'!E18)),0,(('A4-FinPerf RE'!E28-'A7-CFlow'!E35)/('A4-FinPerf RE'!E21-'A4-FinPerf RE'!E18)))","v":0.13634967071854259},{"$f":"IF(ISERROR(('A4-FinPerf RE'!F28-'A7-CFlow'!F35)/('A4-FinPerf RE'!F21-'A4-FinPerf RE'!F18)),0,(('A4-FinPerf RE'!F28-'A7-CFlow'!F35)/('A4-FinPerf RE'!F21-'A4-FinPerf RE'!F18)))","v":0.17629318651150436},{"$f":"IF(ISERROR(('A4-FinPerf RE'!G28-'A7-CFlow'!G35)/('A4-FinPerf RE'!G21-'A4-FinPerf RE'!G18)),0,(('A4-FinPerf RE'!G28-'A7-CFlow'!G35)/('A4-FinPerf RE'!G21-'A4-FinPerf RE'!G18)))","v":0.18271365053683161},{"$f":"IF(ISERROR(('A4-FinPerf RE'!H28-'A7-CFlow'!H35)/('A4-FinPerf RE'!H21-'A4-FinPerf RE'!H18)),0,(('A4-FinPerf RE'!H28-'A7-CFlow'!H35)/('A4-FinPerf RE'!H21-'A4-FinPerf RE'!H18)))","v":0.18271365053683161},{"$f":"IF(ISERROR(('A4-FinPerf RE'!I28-'A7-CFlow'!I35)/('A4-FinPerf RE'!I21-'A4-FinPerf RE'!I18)),0,(('A4-FinPerf RE'!I28-'A7-CFlow'!I35)/('A4-FinPerf RE'!I21-'A4-FinPerf RE'!I18)))","v":0.10938709012772597},{"$f":"IF(ISERROR(('A4-FinPerf RE'!J28-'A7-CFlow'!J35)/('A4-FinPerf RE'!J21-'A4-FinPerf RE'!J18)),0,(('A4-FinPerf RE'!J28-'A7-CFlow'!J35)/('A4-FinPerf RE'!J21-'A4-FinPerf RE'!J18)))","v":4.8804800928267313E-2},{"$f":"IF(ISERROR(('A4-FinPerf RE'!K28-'A7-CFlow'!K35)/('A4-FinPerf RE'!K21-'A4-FinPerf RE'!K18)),0,(('A4-FinPerf RE'!K28-'A7-CFlow'!K35)/('A4-FinPerf RE'!K21-'A4-FinPerf RE'!K18)))","v":0.45307050996609632},{"$f":"IF(ISERROR(('A4-FinPerf RE'!L28-'A7-CFlow'!L35)/('A4-FinPerf RE'!L21-'A4-FinPerf RE'!L18)),0,(('A4-FinPerf RE'!L28-'A7-CFlow'!L35)/('A4-FinPerf RE'!L21-'A4-FinPerf RE'!L18)))","v":0.46107062434285861}]
["Borrowed funding of 'own' capital expenditure","Borrowing/Capital expenditure excl. transfers and grants and contributions",{"$f":"IF(ISERROR(C49/C48),0,(C49/C48))","v":0},{"$f":"IF(ISERROR(D49/D48),0,(D49/D48))","v":0},{"$f":"IF(ISERROR(E49/E48),0,(E49/E48))","v":0},0,0,0,0,0,0,0]
["Safety of Capital"]
["Gearing","Long Term Borrowing/ Funds & Reserves",{"$f":"IF(ISERROR(('A6-FinPos'!C37/'A6-FinPos'!C46)),0,(('A6-FinPos'!C37/'A6-FinPos'!C46)))","v":0},{"$f":"IF(ISERROR(('A6-FinPos'!D37/'A6-FinPos'!D46)),0,(('A6-FinPos'!D37/'A6-FinPos'!D46)))","v":0},{"$f":"IF(ISERROR(('A6-FinPos'!E37/'A6-FinPos'!E46)),0,(('A6-FinPos'!E37/'A6-FinPos'!E46)))","v":0},{"$f":"IF(ISERROR(('A6-FinPos'!F37/'A6-FinPos'!F46)),0,(('A6-FinPos'!F37/'A6-FinPos'!F46)))","v":0},{"$f":"IF(ISERROR(('A6-FinPos'!G37/'A6-FinPos'!G46)),0,(('A6-FinPos'!G37/'A6-FinPos'!G46)))","v":0},{"$f":"IF(ISERROR(('A6-FinPos'!H37/'A6-FinPos'!H46)),0,(('A6-FinPos'!H37/'A6-FinPos'!H46)))","v":0},{"$f":"IF(ISERROR(('A6-FinPos'!I37/'A6-FinPos'!I46)),0,(('A6-FinPos'!I37/'A6-FinPos'!I46)))","v":0},{"$f":"IF(ISERROR(('A6-FinPos'!J37/'A6-FinPos'!J46)),0,(('A6-FinPos'!J37/'A6-FinPos'!J46)))","v":0},{"$f":"IF(ISERROR(('A6-FinPos'!K37/'A6-FinPos'!K46)),0,(('A6-FinPos'!K37/'A6-FinPos'!K46)))","v":0},{"$f":"IF(ISERROR(('A6-FinPos'!L37/'A6-FinPos'!L46)),0,(('A6-FinPos'!L37/'A6-FinPos'!L46)))","v":0}]
["Liquidity"]
["Current Ratio","Current assets/current liabilities",{"$f":"IF(ISERROR('A6-FinPos'!C12/'A6-FinPos'!C34),0,('A6-FinPos'!C12/'A6-FinPos'!C34))","v":0},{"$f":"IF(ISERROR('A6-FinPos'!D12/'A6-FinPos'!D34),0,('A6-FinPos'!D12/'A6-FinPos'!D34))","v":0.76112589718297941},{"$f":"IF(ISERROR('A6-FinPos'!E12/'A6-FinPos'!E34),0,('A6-FinPos'!E12/'A6-FinPos'!E34))","v":0.93290105045920813},{"$f":"IF(ISERROR('A6-FinPos'!F12/'A6-FinPos'!F34),0,('A6-FinPos'!F12/'A6-FinPos'!F34))","v":0},{"$f":"IF(ISERROR('A6-FinPos'!G12/'A6-FinPos'!G34),0,('A6-FinPos'!G12/'A6-FinPos'!G34))","v":1.0115100251411351},{"$f":"IF(ISERROR('A6-FinPos'!H12/'A6-FinPos'!H34),0,('A6-FinPos'!H12/'A6-FinPos'!H34))","v":1.0115100251411351},{"$f":"IF(ISERROR('A6-FinPos'!I12/'A6-FinPos'!I34),0,('A6-FinPos'!I12/'A6-FinPos'!I34))","v":-1.5000787123939205},{"$f":"IF(ISERROR('A6-FinPos'!J12/'A6-FinPos'!J34),0,('A6-FinPos'!J12/'A6-FinPos'!J34))","v":1.0276456038742601},{"$f":"IF(ISERROR('A6-FinPos'!K12/'A6-FinPos'!K34),0,('A6-FinPos'!K12/'A6-FinPos'!K34))","v":1.0694723695457287},{"$f":"IF(ISERROR('A6-FinPos'!L12/'A6-FinPos'!L34),0,('A6-FinPos'!L12/'A6-FinPos'!L34))","v":1.067076426548077}]
["Current Ratio adjusted for aged debtors","Current assets less debtors > 90 days/current liabilities",{"$f":"IF(ISERROR(('A6-FinPos'!C12-'SA8'!C45)/'A6-FinPos'!C34),0,(('A6-FinPos'!C12-'SA8'!C45)/'A6-FinPos'!C34))","v":0},{"$f":"IF(ISERROR(('A6-FinPos'!D12-'SA8'!D45)/'A6-FinPos'!D34),0,(('A6-FinPos'!D12-'SA8'!D45)/'A6-FinPos'!D34))","v":0.76112589718297941},{"$f":"IF(ISERROR(('A6-FinPos'!E12-'SA8'!E45)/'A6-FinPos'!E34),0,(('A6-FinPos'!E12-'SA8'!E45)/'A6-FinPos'!E34))","v":0.93290105045920813},{"$f":"IF(ISERROR(('A6-FinPos'!F12-'SA8'!F45)/'A6-FinPos'!F34),0,(('A6-FinPos'!F12-'SA8'!F45)/'A6-FinPos'!F34))","v":0},{"$f":"IF(ISERROR(('A6-FinPos'!G12-'SA8'!G45)/'A6-FinPos'!G34),0,(('A6-FinPos'!G12-'SA8'!G45)/'A6-FinPos'!G34))","v":1.0115100251411351},{"$f":"IF(ISERROR(('A6-FinPos'!H12-'SA8'!H45)/'A6-FinPos'!H34),0,(('A6-FinPos'!H12-'SA8'!H45)/'A6-FinPos'!H34))","v":1.0115100251411351},{"$f":"IF(ISERROR(('A6-FinPos'!I12-'SA8'!I45)/'A6-FinPos'!I34),0,(('A6-FinPos'!I12-'SA8'!I45)/'A6-FinPos'!I34))","v":-1.5000787123939205},{"$f":"IF(ISERROR(('A6-FinPos'!J12-'SA8'!J45)/'A6-FinPos'!J34),0,(('A6-FinPos'!J12-'SA8'!J45)/'A6-FinPos'!J34))","v":1.0276456038742601},{"$f":"IF(ISERROR(('A6-FinPos'!K12-'SA8'!K45)/'A6-FinPos'!K34),0,(('A6-FinPos'!K12-'SA8'!K45)/'A6-FinPos'!K34))","v":1.0694723695457287},{"$f":"IF(ISERROR(('A6-FinPos'!L12-'SA8'!L45)/'A6-FinPos'!L34),0,(('A6-FinPos'!L12-'SA8'!L45)/'A6-FinPos'!L34))","v":1.067076426548077}]
["Liquidity Ratio","Monetary Assets/Current Liabilities",{"$f":"IF(ISERROR(('A6-FinPos'!C6+'A6-FinPos'!C7)/'A6-FinPos'!C34),0,(('A6-FinPos'!C6+'A6-FinPos'!C7)/'A6-FinPos'!C34))","v":0},{"$f":"IF(ISERROR(('A6-FinPos'!D6+'A6-FinPos'!D7)/'A6-FinPos'!D34),0,(('A6-FinPos'!D6+'A6-FinPos'!D7)/'A6-FinPos'!D34))","v":0.47692967296740546},{"$f":"IF(ISERROR(('A6-FinPos'!E6+'A6-FinPos'!E7)/'A6-FinPos'!E34),0,(('A6-FinPos'!E6+'A6-FinPos'!E7)/'A6-FinPos'!E34))","v":0.60692705394196056},{"$f":"IF(ISERROR(('A6-FinPos'!F6+'A6-FinPos'!F7)/'A6-FinPos'!F34),0,(('A6-FinPos'!F6+'A6-FinPos'!F7)/'A6-FinPos'!F34))","v":0},{"$f":"IF(ISERROR(('A6-FinPos'!G6+'A6-FinPos'!G7)/'A6-FinPos'!G34),0,(('A6-FinPos'!G6+'A6-FinPos'!G7)/'A6-FinPos'!G34))","v":0.77787335547219039},{"$f":"IF(ISERROR(('A6-FinPos'!H6+'A6-FinPos'!H7)/'A6-FinPos'!H34),0,(('A6-FinPos'!H6+'A6-FinPos'!H7)/'A6-FinPos'!H34))","v":0.77787335547219039},{"$f":"IF(ISERROR(('A6-FinPos'!I6+'A6-FinPos'!I7)/'A6-FinPos'!I34),0,(('A6-FinPos'!I6+'A6-FinPos'!I7)/'A6-FinPos'!I34))","v":-0.8407669718505606},{"$f":"IF(ISERROR(('A6-FinPos'!J6+'A6-FinPos'!J7)/'A6-FinPos'!J34),0,(('A6-FinPos'!J6+'A6-FinPos'!J7)/'A6-FinPos'!J34))","v":0.7211533753658036},{"$f":"IF(ISERROR(('A6-FinPos'!K6+'A6-FinPos'!K7)/'A6-FinPos'!K34),0,(('A6-FinPos'!K6+'A6-FinPos'!K7)/'A6-FinPos'!K34))","v":0.74978166432333193},{"$f":"IF(ISERROR(('A6-FinPos'!L6+'A6-FinPos'!L7)/'A6-FinPos'!L34),0,(('A6-FinPos'!L6+'A6-FinPos'!L7)/'A6-FinPos'!L34))","v":0.74777854097597751}]
["Revenue Management"]
["Annual Debtors Collection Rate (Payment Level %)","Last 12 Mths Receipts/Last 12 Mths Billing",null,{"$f":"IF(ISERROR(('A7-CFlow'!C6+'A7-CFlow'!C7+'A7-CFlow'!C22+'A7-CFlow'!C23)/SUM('A4-FinPerf RE'!C5:C10)),0,('A7-CFlow'!C6+'A7-CFlow'!C7+'A7-CFlow'!C22+'A7-CFlow'!C23)/(SUM('A4-FinPerf RE'!C5:C10)))","v":0},{"$f":"IF(ISERROR(('A7-CFlow'!D6+'A7-CFlow'!D7+'A7-CFlow'!D22+'A7-CFlow'!D23)/SUM('A4-FinPerf RE'!D5:D10)),0,('A7-CFlow'!D6+'A7-CFlow'!D7+'A7-CFlow'!D22+'A7-CFlow'!D23)/(SUM('A4-FinPerf RE'!D5:D10)))","v":0},{"$f":"IF(ISERROR(('A7-CFlow'!E6+'A7-CFlow'!E7+'A7-CFlow'!E22+'A7-CFlow'!E23)/SUM('A4-FinPerf RE'!E5:E10)),0,('A7-CFlow'!E6+'A7-CFlow'!E7+'A7-CFlow'!E22+'A7-CFlow'!E23)/(SUM('A4-FinPerf RE'!E5:E10)))","v":0},{"$f":"IF(ISERROR(('A7-CFlow'!F6+'A7-CFlow'!F7+'A7-CFlow'!F22+'A7-CFlow'!F23)/SUM('A4-FinPerf RE'!F5:F10)),0,('A7-CFlow'!F6+'A7-CFlow'!F7+'A7-CFlow'!F22+'A7-CFlow'!F23)/(SUM('A4-FinPerf RE'!F5:F10)))","v":0},{"$f":"IF(ISERROR(('A7-CFlow'!G6+'A7-CFlow'!G7+'A7-CFlow'!G22+'A7-CFlow'!G23)/SUM('A4-FinPerf RE'!G5:G10)),0,('A7-CFlow'!G6+'A7-CFlow'!G7+'A7-CFlow'!G22+'A7-CFlow'!G23)/(SUM('A4-FinPerf RE'!G5:G10)))","v":0},{"$f":"IF(ISERROR(('A7-CFlow'!H6+'A7-CFlow'!H7+'A7-CFlow'!H22+'A7-CFlow'!H23)/SUM('A4-FinPerf RE'!H5:H10)),0,('A7-CFlow'!H6+'A7-CFlow'!H7+'A7-CFlow'!H22+'A7-CFlow'!H23)/(SUM('A4-FinPerf RE'!H5:H10)))","v":0},{"$f":"IF(ISERROR(('A7-CFlow'!I6+'A7-CFlow'!I7+'A7-CFlow'!I22+'A7-CFlow'!I23)/SUM('A4-FinPerf RE'!I5:I10)),0,('A7-CFlow'!I6+'A7-CFlow'!I7+'A7-CFlow'!I22+'A7-CFlow'!I23)/(SUM('A4-FinPerf RE'!I5:I10)))","v":0},{"$f":"IF(ISERROR(('A7-CFlow'!J6+'A7-CFlow'!J7+'A7-CFlow'!J22+'A7-CFlow'!J23)/SUM('A4-FinPerf RE'!J5:J10)),0,('A7-CFlow'!J6+'A7-CFlow'!J7+'A7-CFlow'!J22+'A7-CFlow'!J23)/(SUM('A4-FinPerf RE'!J5:J10)))","v":0},{"$f":"IF(ISERROR(('A7-CFlow'!K6+'A7-CFlow'!K7+'A7-CFlow'!K22+'A7-CFlow'!K23)/SUM('A4-FinPerf RE'!K5:K10)),0,('A7-CFlow'!K6+'A7-CFlow'!K7+'A7-CFlow'!K22+'A7-CFlow'!K23)/(SUM('A4-FinPerf RE'!K5:K10)))","v":0}]
["Current Debtors Collection Rate (Cash receipts % of Ratepayer & Other revenue)",null,{"$f":"IF(ISERROR(('A7-CFlow'!C6+'A7-CFlow'!C7)/SUM('A4-FinPerf RE'!C5:C10)),0,(('A7-CFlow'!C6+'A7-CFlow'!C7)/SUM('A4-FinPerf RE'!C5:C10)))","v":0},{"$f":"IF(ISERROR(('A7-CFlow'!D6+'A7-CFlow'!D7)/SUM('A4-FinPerf RE'!D5:D10)),0,(('A7-CFlow'!D6+'A7-CFlow'!D7)/SUM('A4-FinPerf RE'!D5:D10)))","v":0},{"$f":"IF(ISERROR(('A7-CFlow'!E6+'A7-CFlow'!E7)/SUM('A4-FinPerf RE'!E5:E10)),0,(('A7-CFlow'!E6+'A7-CFlow'!E7)/SUM('A4-FinPerf RE'!E5:E10)))","v":0},{"$f":"IF(ISERROR(('A7-CFlow'!F6+'A7-CFlow'!F7)/SUM('A4-FinPerf RE'!F5:F10)),0,(('A7-CFlow'!F6+'A7-CFlow'!F7)/SUM('A4-FinPerf RE'!F5:F10)))","v":0},{"$f":"IF(ISERROR(('A7-CFlow'!G6+'A7-CFlow'!G7)/SUM('A4-FinPerf RE'!G5:G10)),0,(('A7-CFlow'!G6+'A7-CFlow'!G7)/SUM('A4-FinPerf RE'!G5:G10)))","v":0},{"$f":"IF(ISERROR(('A7-CFlow'!H6+'A7-CFlow'!H7)/SUM('A4-FinPerf RE'!H5:H10)),0,(('A7-CFlow'!H6+'A7-CFlow'!H7)/SUM('A4-FinPerf RE'!H5:H10)))","v":0},{"$f":"IF(ISERROR(('A7-CFlow'!I6+'A7-CFlow'!I7)/SUM('A4-FinPerf RE'!I5:I10)),0,(('A7-CFlow'!I6+'A7-CFlow'!I7)/SUM('A4-FinPerf RE'!I5:I10)))","v":0},{"$f":"IF(ISERROR(('A7-CFlow'!J6+'A7-CFlow'!J7)/SUM('A4-FinPerf RE'!J5:J10)),0,(('A7-CFlow'!J6+'A7-CFlow'!J7)/SUM('A4-FinPerf RE'!J5:J10)))","v":0},{"$f":"IF(ISERROR(('A7-CFlow'!K6+'A7-CFlow'!K7)/SUM('A4-FinPerf RE'!K5:K10)),0,(('A7-CFlow'!K6+'A7-CFlow'!K7)/SUM('A4-FinPerf RE'!K5:K10)))","v":0},{"$f":"IF(ISERROR(('A7-CFlow'!L6+'A7-CFlow'!L7)/SUM('A4-FinPerf RE'!L5:L10)),0,(('A7-CFlow'!L6+'A7-CFlow'!L7)/SUM('A4-FinPerf RE'!L5:L10)))","v":0}]
["Outstanding Debtors to Revenue","Total Outstanding Debtors to Annual Revenue",{"$f":"IF(ISERROR(('A6-FinPos'!C8+'A6-FinPos'!C9+'A6-FinPos'!C10+'A6-FinPos'!C15)/'A4-FinPerf RE'!C21),0,(('A6-FinPos'!C8+'A6-FinPos'!C9+'A6-FinPos'!C10+'A6-FinPos'!C15)/'A4-FinPerf RE'!C21))","v":0},{"$f":"IF(ISERROR(('A6-FinPos'!D8+'A6-FinPos'!D9+'A6-FinPos'!D10+'A6-FinPos'!D15)/'A4-FinPerf RE'!D21),0,(('A6-FinPos'!D8+'A6-FinPos'!D9+'A6-FinPos'!D10+'A6-FinPos'!D15)/'A4-FinPerf RE'!D21))","v":6.3264888642273753E-2},{"$f":"IF(ISERROR(('A6-FinPos'!E8+'A6-FinPos'!E9+'A6-FinPos'!E10+'A6-FinPos'!E15)/'A4-FinPerf RE'!E21),0,(('A6-FinPos'!E8+'A6-FinPos'!E9+'A6-FinPos'!E10+'A6-FinPos'!E15)/'A4-FinPerf RE'!E21))","v":8.3800378159905875E-2},{"$f":"IF(ISERROR(('A6-FinPos'!F8+'A6-FinPos'!F9+'A6-FinPos'!F10+'A6-FinPos'!F15)/'A4-FinPerf RE'!F21),0,(('A6-FinPos'!F8+'A6-FinPos'!F9+'A6-FinPos'!F10+'A6-FinPos'!F15)/'A4-FinPerf RE'!F21))","v":0},{"$f":"IF(ISERROR(('A6-FinPos'!G8+'A6-FinPos'!G9+'A6-FinPos'!G10+'A6-FinPos'!G15)/'A4-FinPerf RE'!G21),0,(('A6-FinPos'!G8+'A6-FinPos'!G9+'A6-FinPos'!G10+'A6-FinPos'!G15)/'A4-FinPerf RE'!G21))","v":5.647824108141835E-2},{"$f":"IF(ISERROR(('A6-FinPos'!H8+'A6-FinPos'!H9+'A6-FinPos'!H10+'A6-FinPos'!H15)/'A4-FinPerf RE'!H21),0,(('A6-FinPos'!H8+'A6-FinPos'!H9+'A6-FinPos'!H10+'A6-FinPos'!H15)/'A4-FinPerf RE'!H21))","v":5.647824108141835E-2},{"$f":"IF(ISERROR(('A6-FinPos'!I8+'A6-FinPos'!I9+'A6-FinPos'!I10+'A6-FinPos'!I15)/'A4-FinPerf RE'!I21),0,(('A6-FinPos'!I8+'A6-FinPos'!I9+'A6-FinPos'!I10+'A6-FinPos'!I15)/'A4-FinPerf RE'!I21))","v":9.8740032017535298E-2},{"$f":"IF(ISERROR(('A6-FinPos'!J8+'A6-FinPos'!J9+'A6-FinPos'!J10+'A6-FinPos'!J15)/'A4-FinPerf RE'!J21),0,(('A6-FinPos'!J8+'A6-FinPos'!J9+'A6-FinPos'!J10+'A6-FinPos'!J15)/'A4-FinPerf RE'!J21))","v":7.1677409888515869E-2},{"$f":"IF(ISERROR(('A6-FinPos'!K8+'A6-FinPos'!K9+'A6-FinPos'!K10+'A6-FinPos'!K15)/'A4-FinPerf RE'!K21),0,(('A6-FinPos'!K8+'A6-FinPos'!K9+'A6-FinPos'!K10+'A6-FinPos'!K15)/'A4-FinPerf RE'!K21))","v":6.895512596730087E-2},{"$f":"IF(ISERROR(('A6-FinPos'!L8+'A6-FinPos'!L9+'A6-FinPos'!L10+'A6-FinPos'!L15)/'A4-FinPerf RE'!L21),0,(('A6-FinPos'!L8+'A6-FinPos'!L9+'A6-FinPos'!L10+'A6-FinPos'!L15)/'A4-FinPerf RE'!L21))","v":7.0413218018206436E-2}]
["Longstanding Debtors Recovered","Debtors > 12 Mths Recovered/Total Debtors > 12 Months Old"]
["Creditors Management"]
["Creditors System Efficiency","% of Creditors Paid Within Terms (within`MFMA' s 65(e))"]
["Creditors to Cash and Investments",null,{"$f":"IF(ISERROR('SA3'!C130/'A7-CFlow'!C40),0,('SA3'!C130/'A7-CFlow'!C40))","v":0},{"$f":"IF(ISERROR('SA3'!D130/'A7-CFlow'!D40),0,('SA3'!D130/'A7-CFlow'!D40))","v":0},{"$f":"IF(ISERROR('SA3'!E130/'A7-CFlow'!E40),0,('SA3'!E130/'A7-CFlow'!E40))","v":0.73521917140125115},{"$f":"IF(ISERROR('SA3'!F130/'A7-CFlow'!F40),0,('SA3'!F130/'A7-CFlow'!F40))","v":0},{"$f":"IF(ISERROR('SA3'!G130/'A7-CFlow'!G40),0,('SA3'!G130/'A7-CFlow'!G40))","v":0.25489645076666179},{"$f":"IF(ISERROR('SA3'!H130/'A7-CFlow'!H40),0,('SA3'!H130/'A7-CFlow'!H40))","v":0.25489645076666179},{"$f":"IF(ISERROR('SA3'!I130/'A7-CFlow'!I40),0,('SA3'!I130/'A7-CFlow'!I40))","v":0.19509768558254376},{"$f":"IF(ISERROR('SA3'!J130/'A7-CFlow'!J40),0,('SA3'!J130/'A7-CFlow'!J40))","v":5.5502836645063054},{"$f":"IF(ISERROR('SA3'!K130/'A7-CFlow'!K40),0,('SA3'!K130/'A7-CFlow'!K40))","v":2.7200620585422346},{"$f":"IF(ISERROR('SA3'!L130/'A7-CFlow'!L40),0,('SA3'!L130/'A7-CFlow'!L40))","v":1.9538591827618932}]
[]
["Other Indicators"]
["Electricity Distribution Losses (2)","Total Volume Losses (kW)"]
[null,"Total Cost of Losses (Rand '000)"]
[null,"% Volume (units purchased and generated less units sold)/units purchased and generated"]
["Water Distribution Losses (2)","Total Volume Losses (kℓ)"]
[null,"Total Cost of Losses (Rand '000)"]
[null,"% Volume (units purchased and generated less units sold)/units purchased and generated"]
["Employee costs","Employee costs/(Total Revenue - capital revenue)",{"$f":"IF(ISERROR('A4-FinPerf RE'!C24/'A4-FinPerf RE'!C21),0,('A4-FinPerf RE'!C24/'A4-FinPerf RE'!C21))","v":0},{"$f":"IF(ISERROR('A4-FinPerf RE'!D24/'A4-FinPerf RE'!D21),0,('A4-FinPerf RE'!D24/'A4-FinPerf RE'!D21))","v":0.59916103582882396},{"$f":"IF(ISERROR('A4-FinPerf RE'!E24/'A4-FinPerf RE'!E21),0,('A4-FinPerf RE'!E24/'A4-FinPerf RE'!E21))","v":0.64305599958942239},{"$f":"IF(ISERROR('A4-FinPerf RE'!F24/'A4-FinPerf RE'!F21),0,('A4-FinPerf RE'!F24/'A4-FinPerf RE'!F21))","v":0.6410751222861435},{"$f":"IF(ISERROR('A4-FinPerf RE'!G24/'A4-FinPerf RE'!G21),0,('A4-FinPerf RE'!G24/'A4-FinPerf RE'!G21))","v":0.64107416891612745},{"$f":"IF(ISERROR('A4-FinPerf RE'!H24/'A4-FinPerf RE'!H21),0,('A4-FinPerf RE'!H24/'A4-FinPerf RE'!H21))","v":0.64107416891612745},{"$f":"IF(ISERROR('A4-FinPerf RE'!I24/'A4-FinPerf RE'!I21),0,('A4-FinPerf RE'!I24/'A4-FinPerf RE'!I21))","v":0.64792351504489265},{"$f":"IF(ISERROR('A4-FinPerf RE'!J24/'A4-FinPerf RE'!J21),0,('A4-FinPerf RE'!J24/'A4-FinPerf RE'!J21))","v":0.74281782332621715},{"$f":"IF(ISERROR('A4-FinPerf RE'!K24/'A4-FinPerf RE'!K21),0,('A4-FinPerf RE'!K24/'A4-FinPerf RE'!K21))","v":0.69180492523418868},{"$f":"IF(ISERROR('A4-FinPerf RE'!L24/'A4-FinPerf RE'!L21),0,('A4-FinPerf RE'!L24/'A4-FinPerf RE'!L21))","v":0.69193553557896481}]
["Remuneration","Total remuneration/(Total Revenue - capital revenue)",{"$f":"IF(ISERROR('SA22'!C102/'A4-FinPerf RE'!C21),0,('SA22'!C102/'A4-FinPerf RE'!C21))","v":0},{"$f":"IF(ISERROR('SA22'!D102/'A4-FinPerf RE'!D21),0,('SA22'!D102/'A4-FinPerf RE'!D21))","v":0.66887281946498722},{"$f":"IF(ISERROR('SA22'!E102/'A4-FinPerf RE'!E21),0,('SA22'!E102/'A4-FinPerf RE'!E21))","v":0.71168725224675899},{"$f":"IF(ISERROR('SA22'!F102/'A4-FinPerf RE'!F21),0,('SA22'!F102/'A4-FinPerf RE'!F21))","v":0.71016257129988702},{"$f":"IF(ISERROR('SA22'!G102/'A4-FinPerf RE'!G21),0,('SA22'!G102/'A4-FinPerf RE'!G21))","v":0.71120491116836837},{"$f":"IF(ISERROR('SA22'!H102/'A4-FinPerf RE'!H21),0,('SA22'!H102/'A4-FinPerf RE'!H21))","v":0.71120491116836837},null,{"$f":"IF(ISERROR('SA22'!I102/'A4-FinPerf RE'!J21),0,('SA22'!I102/'A4-FinPerf RE'!J21))","v":0.81981786915803978},{"$f":"IF(ISERROR('SA22'!J102/'A4-FinPerf RE'!K21),0,('SA22'!J102/'A4-FinPerf RE'!K21))","v":0.76726530226333856},{"$f":"IF(ISERROR('SA22'!K102/'A4-FinPerf RE'!L21),0,('SA22'!K102/'A4-FinPerf RE'!L21))","v":0.76650032453102301}]
["Repairs & Maintenance","R&M/(Total Revenue excluding capital revenue)",{"$f":"IF(ISERROR('A9-Asset'!C169/'A4-FinPerf RE'!C21),0,('A9-Asset'!C169/'A4-FinPerf RE'!C21))","v":0},{"$f":"IF(ISERROR('A9-Asset'!D169/'A4-FinPerf RE'!D21),0,('A9-Asset'!D169/'A4-FinPerf RE'!D21))","v":3.0861112263857087E-3},{"$f":"IF(ISERROR('A9-Asset'!E169/'A4-FinPerf RE'!E21),0,('A9-Asset'!E169/'A4-FinPerf RE'!E21))","v":6.4279591607077193E-3},{"$f":"IF(ISERROR('A9-Asset'!F169/'A4-FinPerf RE'!F21),0,('A9-Asset'!F169/'A4-FinPerf RE'!F21))","v":6.696397001385801E-3},{"$f":"IF(ISERROR('A9-Asset'!G169/'A4-FinPerf RE'!G21),0,('A9-Asset'!G169/'A4-FinPerf RE'!G21))","v":9.513808101439522E-3},{"$f":"IF(ISERROR('A9-Asset'!H169/'A4-FinPerf RE'!H21),0,('A9-Asset'!H169/'A4-FinPerf RE'!H21))","v":9.513808101439522E-3},null,{"$f":"IF(ISERROR('A9-Asset'!I169/'A4-FinPerf RE'!J21),0,('A9-Asset'!I169/'A4-FinPerf RE'!J21))","v":3.3873639947753927E-3},{"$f":"IF(ISERROR('A9-Asset'!J169/'A4-FinPerf RE'!K21),0,('A9-Asset'!J169/'A4-FinPerf RE'!K21))","v":6.5063710944318377E-3},{"$f":"IF(ISERROR('A9-Asset'!K169/'A4-FinPerf RE'!L21),0,('A9-Asset'!K169/'A4-FinPerf RE'!L21))","v":8.7062380075584155E-3}]
["Finance charges & Depreciation","FC&D/(Total Revenue - capital revenue)",{"$f":"IF(ISERROR(('A4-FinPerf RE'!C28+'A4-FinPerf RE'!C27)/'A4-FinPerf RE'!C21),0,(('A4-FinPerf RE'!C28+'A4-FinPerf RE'!C27)/'A4-FinPerf RE'!C21))","v":0},{"$f":"IF(ISERROR(('A4-FinPerf RE'!D28+'A4-FinPerf RE'!D27)/'A4-FinPerf RE'!D21),0,(('A4-FinPerf RE'!D28+'A4-FinPerf RE'!D27)/'A4-FinPerf RE'!D21))","v":4.3131505927912803E-2},{"$f":"IF(ISERROR(('A4-FinPerf RE'!E28+'A4-FinPerf RE'!E27)/'A4-FinPerf RE'!E21),0,(('A4-FinPerf RE'!E28+'A4-FinPerf RE'!E27)/'A4-FinPerf RE'!E21))","v":3.7318321156472933E-2},{"$f":"IF(ISERROR(('A4-FinPerf RE'!F28+'A4-FinPerf RE'!F27)/'A4-FinPerf RE'!F21),0,(('A4-FinPerf RE'!F28+'A4-FinPerf RE'!F27)/'A4-FinPerf RE'!F21))","v":2.8711354044293383E-2},{"$f":"IF(ISERROR(('A4-FinPerf RE'!G28+'A4-FinPerf RE'!G27)/'A4-FinPerf RE'!G21),0,(('A4-FinPerf RE'!G28+'A4-FinPerf RE'!G27)/'A4-FinPerf RE'!G21))","v":3.0146430995338192E-2},{"$f":"IF(ISERROR(('A4-FinPerf RE'!H28+'A4-FinPerf RE'!H27)/'A4-FinPerf RE'!H21),0,(('A4-FinPerf RE'!H28+'A4-FinPerf RE'!H27)/'A4-FinPerf RE'!H21))","v":3.0146430995338192E-2},{"$f":"IF(ISERROR(('A4-FinPerf RE'!I28+'A4-FinPerf RE'!I27)/'A4-FinPerf RE'!I21),0,(('A4-FinPerf RE'!I28+'A4-FinPerf RE'!I27)/'A4-FinPerf RE'!I21))","v":2.7715849740240581E-3},{"$f":"IF(ISERROR(('A4-FinPerf RE'!J28+'A4-FinPerf RE'!J27)/'A4-FinPerf RE'!J21),0,(('A4-FinPerf RE'!J28+'A4-FinPerf RE'!J27)/'A4-FinPerf RE'!J21))","v":1.7015595880732207E-2},{"$f":"IF(ISERROR(('A4-FinPerf RE'!K28+'A4-FinPerf RE'!K27)/'A4-FinPerf RE'!K21),0,(('A4-FinPerf RE'!K28+'A4-FinPerf RE'!K27)/'A4-FinPerf RE'!K21))","v":2.0525106184907198E-2},{"$f":"IF(ISERROR(('A4-FinPerf RE'!L28+'A4-FinPerf RE'!L27)/'A4-FinPerf RE'!L21),0,(('A4-FinPerf RE'!L28+'A4-FinPerf RE'!L27)/'A4-FinPerf RE'!L21))","v":2.0430736407097964E-2}]
["IDP regulation financial viability indicators"]
["i. Debt coverage","(Total Operating Revenue - Operating Grants)/Debt service payments due within financial year)",{"$f":"IF(ISERROR(('A4-FinPerf RE'!C21-'A4-FinPerf RE'!C18)/('A7-CFlow'!D11-'A7-CFlow'!D35)),0,(('A4-FinPerf RE'!C21-'A4-FinPerf RE'!C18)/('A7-CFlow'!D11-'A7-CFlow'!D35)))","v":0},{"$f":"IF(ISERROR(('A4-FinPerf RE'!D21-'A4-FinPerf RE'!D18)/('A7-CFlow'!E11-'A7-CFlow'!E35)),0,(('A4-FinPerf RE'!D21-'A4-FinPerf RE'!D18)/('A7-CFlow'!E11-'A7-CFlow'!E35)))","v":0},{"$f":"IF(ISERROR(('A4-FinPerf RE'!E21-'A4-FinPerf RE'!E18)/('A7-CFlow'!F11-'A7-CFlow'!F35)),0,(('A4-FinPerf RE'!E21-'A4-FinPerf RE'!E18)/('A7-CFlow'!F11-'A7-CFlow'!F35)))","v":0},{"$f":"IF(ISERROR(('A4-FinPerf RE'!F21-'A4-FinPerf RE'!F18)/('A7-CFlow'!G11-'A7-CFlow'!G35)),0,(('A4-FinPerf RE'!F21-'A4-FinPerf RE'!F18)/('A7-CFlow'!G11-'A7-CFlow'!G35)))","v":0},{"$f":"F37","v":0},{"$f":"G37","v":0},{"$f":"IF(ISERROR(('A4-FinPerf RE'!I21-'A4-FinPerf RE'!I18)/('A7-CFlow'!J11-'A7-CFlow'!J35)),0,(('A4-FinPerf RE'!I21-'A4-FinPerf RE'!I18)/('A7-CFlow'!J11-'A7-CFlow'!J35)))","v":2.5284725806451611},{"$f":"IF(ISERROR(('A4-FinPerf RE'!J21-'A4-FinPerf RE'!J18)/('A7-CFlow'!K11-'A7-CFlow'!K35)),0,(('A4-FinPerf RE'!J21-'A4-FinPerf RE'!J18)/('A7-CFlow'!K11-'A7-CFlow'!K35)))","v":2.5612234374999998},{"$f":"IF(ISERROR(('A4-FinPerf RE'!K21-'A4-FinPerf RE'!K18)/('A7-CFlow'!L11-'A7-CFlow'!L35)),0,(('A4-FinPerf RE'!K21-'A4-FinPerf RE'!K18)/('A7-CFlow'!L11-'A7-CFlow'!L35)))","v":1.3958092307692307},{"$f":"IF(ISERROR(('A4-FinPerf RE'!L21-'A4-FinPerf RE'!L18)/('A7-CFlow'!L11-'A7-CFlow'!L35)),0,(('A4-FinPerf RE'!L21-'A4-FinPerf RE'!L18)/('A7-CFlow'!L11-'A7-CFlow'!L35)))","v":1.4456553846153846}]
["ii.O/S Service Debtors to Revenue","Total outstanding service debtors/annual revenue received for services",{"$f":"IF(ISERROR(('A6-FinPos'!C8+'A6-FinPos'!C9+'A6-FinPos'!C10)/SUM('A4-FinPerf RE'!C5:C11)),0,(('A6-FinPos'!C8+'A6-FinPos'!C9+'A6-FinPos'!C10)/SUM('A4-FinPerf RE'!C5:C11)))","v":0},{"$f":"IF(ISERROR(('A6-FinPos'!D8+'A6-FinPos'!D9+'A6-FinPos'!D10)/SUM('A4-FinPerf RE'!D5:D11)),0,(('A6-FinPos'!D8+'A6-FinPos'!D9+'A6-FinPos'!D10)/SUM('A4-FinPerf RE'!D5:D11)))","v":10.2116971628915},{"$f":"IF(ISERROR(('A6-FinPos'!E8+'A6-FinPos'!E9+'A6-FinPos'!E10)/SUM('A4-FinPerf RE'!E5:E11)),0,(('A6-FinPos'!E8+'A6-FinPos'!E9+'A6-FinPos'!E10)/SUM('A4-FinPerf RE'!E5:E11)))","v":0},{"$f":"IF(ISERROR(('A6-FinPos'!F8+'A6-FinPos'!F9+'A6-FinPos'!F10)/SUM('A4-FinPerf RE'!F5:F11)),0,(('A6-FinPos'!F8+'A6-FinPos'!F9+'A6-FinPos'!F10)/SUM('A4-FinPerf RE'!F5:F11)))","v":0},{"$f":"IF(ISERROR(('A6-FinPos'!G8+'A6-FinPos'!G9+'A6-FinPos'!G10)/SUM('A4-FinPerf RE'!G5:G11)),0,(('A6-FinPos'!G8+'A6-FinPos'!G9+'A6-FinPos'!G10)/SUM('A4-FinPerf RE'!G5:G11)))","v":6.062798933428633},{"$f":"IF(ISERROR(('A6-FinPos'!H8+'A6-FinPos'!H9+'A6-FinPos'!H10)/SUM('A4-FinPerf RE'!H5:H11)),0,(('A6-FinPos'!H8+'A6-FinPos'!H9+'A6-FinPos'!H10)/SUM('A4-FinPerf RE'!H5:H11)))","v":6.062798933428633},{"$f":"IF(ISERROR(('A6-FinPos'!I8+'A6-FinPos'!I9+'A6-FinPos'!I10)/SUM('A4-FinPerf RE'!I5:I11)),0,(('A6-FinPos'!I8+'A6-FinPos'!I9+'A6-FinPos'!I10)/SUM('A4-FinPerf RE'!I5:I11)))","v":132.50236411746843},{"$f":"IF(ISERROR(('A6-FinPos'!J8+'A6-FinPos'!J9+'A6-FinPos'!J10)/SUM('A4-FinPerf RE'!J5:J11)),0,(('A6-FinPos'!J8+'A6-FinPos'!J9+'A6-FinPos'!J10)/SUM('A4-FinPerf RE'!J5:J11)))","v":4.8440506269811099},{"$f":"IF(ISERROR(('A6-FinPos'!K8+'A6-FinPos'!K9+'A6-FinPos'!K10)/SUM('A4-FinPerf RE'!K5:K11)),0,(('A6-FinPos'!K8+'A6-FinPos'!K9+'A6-FinPos'!K10)/SUM('A4-FinPerf RE'!K5:K11)))","v":27.24425146981914},{"$f":"IF(ISERROR(('A6-FinPos'!L8+'A6-FinPos'!L9+'A6-FinPos'!L10)/SUM('A4-FinPerf RE'!L5:L11)),0,(('A6-FinPos'!L8+'A6-FinPos'!L9+'A6-FinPos'!L10)/SUM('A4-FinPerf RE'!L5:L11)))","v":25.807743951181028}]
["iii. Cost coverage","(Available cash + Investments)/monthly fixed operational expenditure",{"$f":"IF(ISERROR('A7-CFlow'!C40/'SA8'!C46),0,('A7-CFlow'!C40/'SA8'!C46))","v":0},{"$f":"IF(ISERROR('A7-CFlow'!D40/'SA8'!D46),0,('A7-CFlow'!D40/'SA8'!D46))","v":0},{"$f":"IF(ISERROR('A7-CFlow'!E40/'SA8'!E46),0,('A7-CFlow'!E40/'SA8'!E46))","v":4.7304457812233007},{"$f":"IF(ISERROR('A7-CFlow'!F40/'SA8'!F46),0,('A7-CFlow'!F40/'SA8'!F46))","v":0},{"$f":"IF(ISERROR('A7-CFlow'!G40/'SA8'!G46),0,('A7-CFlow'!G40/'SA8'!G46))","v":12.819004005955543},{"$f":"IF(ISERROR('A7-CFlow'!H40/'SA8'!H46),0,('A7-CFlow'!H40/'SA8'!H46))","v":12.819004005955543},{"$f":"IF(ISERROR('A7-CFlow'!I40/'SA8'!I46),0,('A7-CFlow'!I40/'SA8'!I46))","v":-11.265359874126789},{"$f":"IF(ISERROR('A7-CFlow'!J40/'SA8'!J46),0,('A7-CFlow'!J40/'SA8'!J46))","v":0.53657764130826668},{"$f":"IF(ISERROR('A7-CFlow'!K40/'SA8'!K46),0,('A7-CFlow'!K40/'SA8'!K46))","v":1.0306616455908815},{"$f":"IF(ISERROR('A7-CFlow'!L40/'SA8'!L46),0,('A7-CFlow'!L40/'SA8'!L46))","v":1.4650794654650443}]
[{"$f":"head27a","v":"References"}]
["1. Consumer debtors > 12 months old are excluded from current assets"]
["2. Only include if services provided by the municipality"]
[]
["Calculation data"]
["Debtors > 90 days"]
["Monthly fixed operational expenditure",null,{"$f":"(('A4-FinPerf RE'!C24+'A4-FinPerf RE'!C25+'A4-FinPerf RE'!C26+'A4-FinPerf RE'!C28+'A4-FinPerf RE'!C29+'A4-FinPerf RE'!C31+'SA1'!C108+'A7-CFlow'!C35)+(('A4-FinPerf RE'!C30+'A4-FinPerf RE'!C33)*'SA8'!C47))/12","v":0},{"$f":"(('A4-FinPerf RE'!D24+'A4-FinPerf RE'!D25+'A4-FinPerf RE'!D26+'A4-FinPerf RE'!D28+'A4-FinPerf RE'!D29+'A4-FinPerf RE'!D31+'SA1'!D108+'A7-CFlow'!D35)+(('A4-FinPerf RE'!D30+'A4-FinPerf RE'!D33)*'SA8'!D47))/12","v":4556548.2333333334},{"$f":"(('A4-FinPerf RE'!E24+'A4-FinPerf RE'!E25+'A4-FinPerf RE'!E26+'A4-FinPerf RE'!E28+'A4-FinPerf RE'!E29+'A4-FinPerf RE'!E31+'SA1'!E108+'A7-CFlow'!E35)+(('A4-FinPerf RE'!E30+'A4-FinPerf RE'!E33)*'SA8'!E47))/12","v":4963418.2666666666},{"$f":"(('A4-FinPerf RE'!F24+'A4-FinPerf RE'!F25+'A4-FinPerf RE'!F26+'A4-FinPerf RE'!F28+'A4-FinPerf RE'!F29+'A4-FinPerf RE'!F31+'SA1'!F108+'A7-CFlow'!F35)+(('A4-FinPerf RE'!F30+'A4-FinPerf RE'!F33)*'SA8'!F47))/12","v":4999820.8833333338},{"$f":"(('A4-FinPerf RE'!G24+'A4-FinPerf RE'!G25+'A4-FinPerf RE'!G26+'A4-FinPerf RE'!G28+'A4-FinPerf RE'!G29+'A4-FinPerf RE'!G31+'SA1'!G108+'A7-CFlow'!G35)+(('A4-FinPerf RE'!G30+'A4-FinPerf RE'!G33)*'SA8'!G47))/12","v":5155623.8666666662},{"$f":"(('A4-FinPerf RE'!H24+'A4-FinPerf RE'!H25+'A4-FinPerf RE'!H26+'A4-FinPerf RE'!H28+'A4-FinPerf RE'!H29+'A4-FinPerf RE'!H31+'SA1'!H108+'A7-CFlow'!H35)+(('A4-FinPerf RE'!H30+'A4-FinPerf RE'!H33)*'SA8'!H47))/12","v":5155623.8666666662},{"$f":"(('A4-FinPerf RE'!I24+'A4-FinPerf RE'!I25+'A4-FinPerf RE'!I26+'A4-FinPerf RE'!I28+'A4-FinPerf RE'!I29+'A4-FinPerf RE'!I31+'SA1'!I108+'A7-CFlow'!I35)+(('A4-FinPerf RE'!I30+'A4-FinPerf RE'!I33)*'SA8'!I47))/12","v":4340367.6000000006},{"$f":"(('A4-FinPerf RE'!J24+'A4-FinPerf RE'!J25+'A4-FinPerf RE'!J26+'A4-FinPerf RE'!J28+'A4-FinPerf RE'!J29+'A4-FinPerf RE'!J31+'SA1'!J108+'A7-CFlow'!J35)+(('A4-FinPerf RE'!J30+'A4-FinPerf RE'!J33)*'SA8'!J47))/12","v":4974113.333333333},{"$f":"(('A4-FinPerf RE'!K24+'A4-FinPerf RE'!K25+'A4-FinPerf RE'!K26+'A4-FinPerf RE'!K28+'A4-FinPerf RE'!K29+'A4-FinPerf RE'!K31+'SA1'!K108+'A7-CFlow'!K35)+(('A4-FinPerf RE'!K30+'A4-FinPerf RE'!K33)*'SA8'!K47))/12","v":5276310.6333333338},{"$f":"(('A4-FinPerf RE'!L24+'A4-FinPerf RE'!L25+'A4-FinPerf RE'!L26+'A4-FinPerf RE'!L28+'A4-FinPerf RE'!L29+'A4-FinPerf RE'!L31+'SA1'!L108+'A7-CFlow'!L35)+(('A4-FinPerf RE'!L30+'A4-FinPerf RE'!L33)*'SA8'!L47))/12","v":5391112.3500000006}]
["Fixed operational expenditure % assumption",null,0.4,{"$f":"$C$47","v":0.4},{"$f":"$C$47","v":0.4},0.4,0.4,0.4,0.4,0.4,0.4,0.4]
["Own capex",null,{"$f":"'A5-Capex'!C40-'A5-Capex'!C70-'A5-Capex'!C71","v":0},{"$f":"'A5-Capex'!D40-'A5-Capex'!D70-'A5-Capex'!D71","v":0},{"$f":"'A5-Capex'!E40-'A5-Capex'!E70-'A5-Capex'!E71","v":318484},{"$f":"'A5-Capex'!F40-'A5-Capex'!F70-'A5-Capex'!F71","v":404771},{"$f":"'A5-Capex'!G40-'A5-Capex'!G70-'A5-Capex'!G71","v":328000},{"$f":"'A5-Capex'!H40-'A5-Capex'!H70-'A5-Capex'!H71","v":328000},{"$f":"'A5-Capex'!I40-'A5-Capex'!I70-'A5-Capex'!I71","v":514914},{"$f":"'A5-Capex'!J40-'A5-Capex'!J70-'A5-Capex'!J71","v":486000},{"$f":"'A5-Capex'!K40-'A5-Capex'!K70-'A5-Capex'!K71","v":21958},{"$f":"'A5-Capex'!L40-'A5-Capex'!L70-'A5-Capex'!L71","v":23144}]
["Borrowing",null,{"$f":"'A7-CFlow'!C31+'A7-CFlow'!C32","v":0},{"$f":"'A7-CFlow'!D31+'A7-CFlow'!D32","v":0},{"$f":"'A7-CFlow'!E31+'A7-CFlow'!E32","v":0},{"$f":"'A7-CFlow'!F31+'A7-CFlow'!F32","v":0},{"$f":"'A7-CFlow'!G31+'A7-CFlow'!G32","v":0},{"$f":"'A7-CFlow'!H31+'A7-CFlow'!H32","v":0},{"$f":"'A7-CFlow'!I31+'A7-CFlow'!I32","v":0},{"$f":"'A7-CFlow'!J31+'A7-CFlow'!J32","v":0},{"$f":"'A7-CFlow'!K31+'A7-CFlow'!K32","v":0},{"$f":"'A7-CFlow'!L31+'A7-CFlow'!L32","v":0}]

{"sheet":"SA9","index":37,"n_rows":310,"n_cols":13,"rows_kept":310,"cut":false,"hidden":false,"merged":[[108,10,108,12],[1,5,2,5],[62,7,62,9],[62,10,62,12],[108,0,109,0],[108,7,108,9],[1,0,2,0],[62,0,63,0],[1,3,2,3],[1,4,2,4],[1,10,1,12],[1,1,2,1],[1,2,2,2],[246,7,246,9],[246,10,246,12],[246,0,247,0],[154,0,155,0],[154,7,154,9],[200,7,200,9],[200,10,200,12],[154,10,154,12],[200,0,201,0]]}
[{"$f":"muni&\" - \"&TableA9","v":"DC16 Xhariep - Supporting Table SA9 Social, economic and demographic statistics and assumptions"}]
["Description of economic indicator","Ref.","Basis of calculation",{"$f":"Head44","v":"2001 Census"},"2007 Survey",{"$f":"Head45","v":"2011 Census"},{"$f":"head1b","v":"2017/18"},{"$f":"head1A","v":"2018/19"},{"$f":"Head1","v":"2019/20"},{"$f":"Head2","v":"Current Year 2020/21"},{"$f":"Head3","v":"2021/22 Medium Term Revenue & Expenditure Framework"}]
[null,null,null,null,null,null,{"$f":"Head5A","v":"Outcome"},"Outcome","Outcome",{"$f":"Head6","v":"Original Budget"},"Outcome","Outcome","Outcome"]
["Demographics"]
["Population"]
["Females aged 5 - 14"]
["Males aged 5 - 14"]
["Females aged 15 - 34"]
["Males aged 15 - 34"]
["Unemployment"]
[]
["Monthly household income (no. of households)","1, 12"]
["No income"]
["R1 - R1 600"]
["R1 601 - R3 200"]
["R3 201 - R6 400"]
["R6 401 - R12 800"]
["R12 801 - R25 600"]
["R25 601 - R51 200"]
["R52 201 - R102 400"]
["R102 401 - R204 800"]
["R204 801 - R409 600"]
["R409 601 - R819 200"]
[" > R819 200"]
[]
[]
["Poverty profiles (no. of households)"]
["< R2 060 per household per month",13]
["Insert description",2]
[]
["Household/demographics (000)"]
["Number of people in municipal area"]
["Number of poor people in municipal area"]
["Number of households in municipal area"]
["Number of poor households in municipal area"]
["Definition of poor household (R per month)"]
[]
["Housing statistics",3]
["Formal"]
["Informal"]
["Total number of households",null,null,{"$f":"SUM(D39:D40)","v":0},{"$f":"SUM(E39:E40)","v":0},0,0,0,0,0,0,0,0]
["Dwellings provided by municipality",4]
["Dwellings provided by province/s"]
["Dwellings provided by private sector",5]
["Total new housing dwellings",null,null,{"$f":"SUM(D42:D44)","v":0},{"$f":"SUM(E42:E44)","v":0},0,0,0,0,0,0,0,0]
[]
["Economic",6]
["Inflation/inflation outlook (CPIX)"]
["Interest rate - borrowing"]
["Interest rate - investment"]
["Remuneration increases"]
["Consumption growth (electricity)"]
["Consumption growth (water)"]
[]
["Collection rates",7]
["Property tax/service charges"]
["Rental of facilities & equipment"]
["Interest - external investments"]
["Interest - debtors"]
["Revenue from agency services"]
[]
["Detail on the provision of municipal services for A10"]
["Total municipal services",null,null,null,{"$f":"head1b","v":"2017/18"},{"$f":"head1A","v":"2018/19"},{"$f":"Head1","v":"2019/20"},{"$f":"Head2","v":"Current Year 2020/21"},null,null,{"$f":"Head3","v":"2021/22 Medium Term Revenue & Expenditure Framework"}]
[null,"Ref.",null,null,{"$f":"Head5A","v":"Outcome"},{"$f":"Head5A","v":"Outcome"},{"$f":"Head5A","v":"Outcome"},{"$f":"Head6","v":"Original Budget"},{"$f":"Head7","v":"Adjusted Budget"},{"$f":"Head8","v":"Full Year Forecast"},{"$f":"Head9","v":"Budget Year 2021/22"},{"$f":"Head10","v":"Budget Year +1 2022/23"},{"$f":"Head11","v":"Budget Year +2 2023/24"}]
[null,null,"Household service targets (000)"]
[null,null,"Water:"]
[null,null,"Piped water inside dwelling",null,{"$f":"E113+E159+E205","v":0},{"$f":"F113+F159+F205","v":0},0,0,0,0,0,0,0]
[null,null,"Piped water inside yard (but not in dwelling)",null,{"$f":"E114+E160+E206","v":0},0,0,0,0,0,0,0,0]
[null,8,"Using public tap (at least min.service level)",null,0,0,0,0,0,0,0,0,0]
[null,10,"Other water supply (at least min.service level)",null,0,0,0,0,0,0,0,0,0]
[null,null,"Minimum Service Level and Above sub-total",null,{"$f":"SUM(E67:E70)","v":0},{"$f":"SUM(F67:F70)","v":0},0,0,0,0,0,0,0]
[null,9,"Using public tap (< min.service level)",null,{"$f":"E118+E164+E210","v":0},0,0,0,0,0,0,0,0]
[null,10,"Other water supply (< min.service level)",null,0,0,0,0,0,0,0,0,0]
[null,null,"No water supply",null,0,0,0,0,0,0,0,0,0]
[null,null,"Below Minimum Service Level sub-total",null,{"$f":"SUM(E72:E74)","v":0},{"$f":"SUM(F72:F74)","v":0},0,0,0,0,0,0,0]
[null,null,"Total number of households",null,{"$f":"E71+E75","v":0},{"$f":"F71+F75","v":0},0,0,0,0,0,0,0]
[null,null,"Sanitation/sewerage:"]
[null,null,"Flush toilet (connected to sewerage)",null,{"$f":"E124+E170+E216","v":0},0,0,0,0,0,0,0,0]
[null,null,"Flush toilet (with septic tank)",null,{"$f":"E125+E171+E217","v":0},0,0,0,0,0,0,0,0]
[null,null,"Chemical toilet",null,{"$f":"E126+E172+E218","v":0},0,0,0,0,0,0,0,0]
[null,null,"Pit toilet (ventilated)",null,{"$f":"E127+E173+E219","v":0},0,0,0,0,0,0,0,0]
[null,null,"Other toilet provisions (> min.service level)",null,{"$f":"E128+E174+E220","v":0},0,0,0,0,0,0,0,0]
[null,null,"Minimum Service Level and Above sub-total",null,{"$f":"SUM(E78:E82)","v":0},{"$f":"SUM(F78:F82)","v":0},0,0,0,0,0,0,0]
[null,null,"Bucket toilet",null,{"$f":"E130+E176+E222","v":0},0,0,0,0,0,0,0,0]
[null,null,"Other toilet provisions (< min.service level)",null,{"$f":"E131+E177+E223","v":0},0,0,0,0,0,0,0,0]
[null,null,"No toilet provisions",null,{"$f":"E132+E178+E224","v":0},0,0,0,0,0,0,0,0]
[null,null,"Below Minimum Service Level sub-total",null,{"$f":"SUM(E84:E86)","v":0},{"$f":"SUM(F84:F86)","v":0},0,0,0,0,0,0,0]
[null,null,"Total number of households",null,{"$f":"E83+E87","v":0},{"$f":"F83+F87","v":0},0,0,0,0,0,0,0]
[null,null,"Energy:"]
[null,null,"Electricity (at least min.service level)",null,{"$f":"E136+E182+E228","v":0},0,0,0,0,0,0,0,0]
[null,null,"Electricity - prepaid (min.service level)",null,{"$f":"E137+E183+E229","v":0},0,0,0,0,0,0,0,0]
[null,null,"Minimum Service Level and Above sub-total",null,{"$f":"SUM(E90:E91)","v":0},{"$f":"SUM(F90:F91)","v":0},0,0,0,0,0,0,0]
[null,null,"Electricity (< min.service level)",null,{"$f":"E139+E185+E231","v":0},0,0,0,0,0,0,0,0]
[null,null,"Electricity - prepaid (< min. service level)",null,{"$f":"E140+E186+E232","v":0},0,0,0,0,0,0,0,0]
[null,null,"Other energy sources",null,{"$f":"E141+E187+E233","v":0},0,0,0,0,0,0,0,0]
[null,null,"Below Minimum Service Level sub-total",null,{"$f":"SUM(E93:E95)","v":0},{"$f":"SUM(F93:F95)","v":0},0,0,0,0,0,0,0]
[null,null,"Total number of households",null,{"$f":"E92+E96","v":0},{"$f":"F92+F96","v":0},0,0,0,0,0,0,0]
[null,null,"Refuse:"]
[null,null,"Removed at least once a week",null,{"$f":"E145+E191+E237","v":0},0,0,0,0,0,0,0,0]
[null,null,"Minimum Service Level and Above sub-total",null,{"$f":"SUM(E99)","v":0},{"$f":"SUM(F99)","v":0},0,0,0,0,0,0,0]
[null,null,"Removed less frequently than once a week",null,{"$f":"E147+E193+E239","v":0},0,0,0,0,0,0,0,0]
[null,null,"Using communal refuse dump",null,{"$f":"E148+E194+E240","v":0},0,0,0,0,0,0,0,0]
[null,null,"Using own refuse dump",null,{"$f":"E149+E195+E241","v":0},0,0,0,0,0,0,0,0]
[null,null,"Other rubbish disposal",null,{"$f":"E150+E196+E242","v":0},0,0,0,0,0,0,0,0]
[null,null,"No rubbish disposal",null,{"$f":"E151+E197+E243","v":0},0,0,0,0,0,0,0,0]
[null,null,"Below Minimum Service Level sub-total",null,{"$f":"SUM(E101:E105)","v":0},0,0,0,0,0,0,0,0]
[null,null,"Total number of households",null,{"$f":"E100+E106","v":0},{"$f":"F100+F106","v":0},0,0,0,0,0,0,0]
[]
["Municipal in-house services",null,null,null,{"$f":"head1b","v":"2017/18"},{"$f":"head1A","v":"2018/19"},{"$f":"Head1","v":"2019/20"},{"$f":"Head2","v":"Current Year 2020/21"},null,null,{"$f":"Head3","v":"2021/22 Medium Term Revenue & Expenditure Framework"}]
[null,"Ref.",null,null,{"$f":"Head5A","v":"Outcome"},{"$f":"Head5A","v":"Outcome"},{"$f":"Head5A","v":"Outcome"},{"$f":"Head6","v":"Original Budget"},{"$f":"Head7","v":"Adjusted Budget"},{"$f":"Head8","v":"Full Year Forecast"},{"$f":"Head9","v":"Budget Year 2021/22"},{"$f":"Head10","v":"Budget Year +1 2022/23"},{"$f":"Head11","v":"Budget Year +2 2023/24"}]
[null,null,"Household service targets (000)"]
[null,null,"Water:"]
[null,null,"Piped water inside dwelling"]
[null,null,"Piped water inside yard (but not in dwelling)"]
[null,8,"Using public tap (at least min.service level)"]
[null,10,"Other water supply (at least min.service level)"]
[null,null,"Minimum Service Level and Above sub-total",null,{"$f":"SUM(E113:E116)","v":0},{"$f":"SUM(F113:F116)","v":0},0,0,0,0,0,0,0]
[null,9,"Using public tap (< min.service level)"]
[null,10,"Other water supply (< min.service level)"]
[null,null,"No water supply"]
[null,null,"Below Minimum Service Level sub-total",null,{"$f":"SUM(E118:E120)","v":0},{"$f":"SUM(F118:F120)","v":0},0,0,0,0,0,0,0]
[null,null,"Total number of households",null,{"$f":"E117+E121","v":0},{"$f":"F117+F121","v":0},0,0,0,0,0,0,0]
[null,null,"Sanitation/sewerage:"]
[null,null,"Flush toilet (connected to sewerage)"]
[null,null,"Flush toilet (with septic tank)"]
[null,null,"Chemical toilet"]
[null,null,"Pit toilet (ventilated)"]
[null,null,"Other toilet provisions (> min.service level)"]
[null,null,"Minimum Service Level and Above sub-total",null,{"$f":"SUM(E124:E128)","v":0},{"$f":"SUM(F124:F128)","v":0},0,0,0,0,0,0,0]
[null,null,"Bucket toilet"]
[null,null,"Other toilet provisions (< min.service level)"]
[null,null,"No toilet provisions"]
[null,null,"Below Minimum Service Level sub-total",null,{"$f":"SUM(E130:E132)","v":0},{"$f":"SUM(F130:F132)","v":0},0,0,0,0,0,0,0]
[null,null,"Total number of households",null,{"$f":"E129+E133","v":0},{"$f":"F129+F133","v":0},0,0,0,0,0,0,0]
[null,null,"Energy:"]
[null,null,"Electricity (at least min.service level)"]
[null,null,"Electricity - prepaid (min.service level)"]
[null,null,"Minimum Service Level and Above sub-total",null,{"$f":"SUM(E136:E137)","v":0},{"$f":"SUM(F136:F137)","v":0},0,0,0,0,0,0,0]
[null,null,"Electricity (< min.service level)"]
[null,null,"Electricity - prepaid (< min. service level)"]
[null,null,"Other energy sources"]
[null,null,"Below Minimum Service Level sub-total",null,{"$f":"SUM(E139:E141)","v":0},{"$f":"SUM(F139:F141)","v":0},0,0,0,0,0,0,0]
[null,null,"Total number of households",null,{"$f":"E138+E142","v":0},{"$f":"F138+F142","v":0},0,0,0,0,0,0,0]
[null,null,"Refuse:"]
[null,null,"Removed at least once a week"]
[null,null,"Minimum Service Level and Above sub-total",null,{"$f":"SUM(E145)","v":0},{"$f":"SUM(F145)","v":0},0,0,0,0,0,0,0]
[null,null,"Removed less frequently than once a week"]
[null,null,"Using communal refuse dump"]
[null,null,"Using own refuse dump"]
[null,null,"Other rubbish disposal"]
[null,null,"No rubbish disposal"]
[null,null,"Below Minimum Service Level sub-total",null,{"$f":"SUM(E147:E151)","v":0},0,0,0,0,0,0,0,0]
[null,null,"Total number of households",null,{"$f":"E146+E152","v":0},{"$f":"F146+F152","v":0},0,0,0,0,0,0,0]
[]
["Municipal entity services",null,null,null,{"$f":"head1b","v":"2017/18"},{"$f":"head1A","v":"2018/19"},{"$f":"Head1","v":"2019/20"},{"$f":"Head2","v":"Current Year 2020/21"},null,null,{"$f":"Head3","v":"2021/22 Medium Term Revenue & Expenditure Framework"}]
[null,"Ref.",null,null,{"$f":"Head5A","v":"Outcome"},{"$f":"Head5A","v":"Outcome"},{"$f":"Head5A","v":"Outcome"},{"$f":"Head6","v":"Original Budget"},{"$f":"Head7","v":"Adjusted Budget"},{"$f":"Head8","v":"Full Year Forecast"},{"$f":"Head9","v":"Budget Year 2021/22"},{"$f":"Head10","v":"Budget Year +1 2022/23"},{"$f":"Head11","v":"Budget Year +2 2023/24"}]
[null,null,"Household service targets (000)"]
["Name of municipal entity",null,"Water:"]
[null,null,"Piped water inside dwelling"]
[null,null,"Piped water inside yard (but not in dwelling)"]
[null,8,"Using public tap (at least min.service level)"]
[null,10,"Other water supply (at least min.service level)"]
[null,null,"Minimum Service Level and Above sub-total",null,{"$f":"SUM(E159:E162)","v":0},{"$f":"SUM(F159:F162)","v":0},0,0,0,0,0,0,0]
[null,9,"Using public tap (< min.service level)"]
[null,10,"Other water supply (< min.service level)"]
[null,null,"No water supply"]
[null,null,"Below Minimum Service Level sub-total",null,{"$f":"SUM(E164:E166)","v":0},{"$f":"SUM(F164:F166)","v":0},0,0,0,0,0,0,0]
[null,null,"Total number of households",null,{"$f":"E163+E167","v":0},{"$f":"F163+F167","v":0},0,0,0,0,0,0,0]
["Name of municipal entity",null,"Sanitation/sewerage:"]
[null,null,"Flush toilet (connected to sewerage)"]
[null,null,"Flush toilet (with septic tank)"]
[null,null,"Chemical toilet"]
[null,null,"Pit toilet (ventilated)"]
[null,null,"Other toilet provisions (> min.service level)"]
[null,null,"Minimum Service Level and Above sub-total",null,{"$f":"SUM(E170:E174)","v":0},{"$f":"SUM(F170:F174)","v":0},0,0,0,0,0,0,0]
[null,null,"Bucket toilet"]
[null,null,"Other toilet provisions (< min.service level)"]
[null,null,"No toilet provisions"]
[null,null,"Below Minimum Service Level sub-total",null,{"$f":"SUM(E176:E178)","v":0},{"$f":"SUM(F176:F178)","v":0},0,0,0,0,0,0,0]
[null,null,"Total number of households",null,{"$f":"E175+E179","v":0},{"$f":"F175+F179","v":0},0,0,0,0,0,0,0]
["Name of municipal entity",null,"Energy:"]
[null,null,"Electricity (at least min.service level)"]
[null,null,"Electricity - prepaid (min.service level)"]
[null,null,"Minimum Service Level and Above sub-total",null,{"$f":"SUM(E182:E183)","v":0},{"$f":"SUM(F182:F183)","v":0},0,0,0,0,0,0,0]
[null,null,"Electricity (< min.service level)"]
[null,null,"Electricity - prepaid (< min. service level)"]
[null,null,"Other energy sources"]
[null,null,"Below Minimum Service Level sub-total",null,{"$f":"SUM(E185:E187)","v":0},{"$f":"SUM(F185:F187)","v":0},0,0,0,0,0,0,0]
[null,null,"Total number of households",null,{"$f":"E184+E188","v":0},{"$f":"F184+F188","v":0},0,0,0,0,0,0,0]
["Name of municipal entity",null,"Refuse:"]
[null,null,"Removed at least once a week"]
[null,null,"Minimum Service Level and Above sub-total",null,{"$f":"SUM(E191)","v":0},{"$f":"SUM(F191)","v":0},0,0,0,0,0,0,0]
[null,null,"Removed less frequently than once a week"]
[null,null,"Using communal refuse dump"]
[null,null,"Using own refuse dump"]
[null,null,"Other rubbish disposal"]
[null,null,"No rubbish disposal"]
[null,null,"Below Minimum Service Level sub-total",null,{"$f":"SUM(E193:E197)","v":0},0,0,0,0,0,0,0,0]
[null,null,"Total number of households",null,{"$f":"E192+E198","v":0},{"$f":"F192+F198","v":0},0,0,0,0,0,0,0]
[]
["Services provided by 'external mechanisms'",null,null,null,{"$f":"head1b","v":"2017/18"},{"$f":"head1A","v":"2018/19"},{"$f":"Head1","v":"2019/20"},{"$f":"Head2","v":"Current Year 2020/21"},null,null,{"$f":"Head3","v":"2021/22 Medium Term Revenue & Expenditure Framework"}]
[null,"Ref.",null,null,{"$f":"Head5A","v":"Outcome"},{"$f":"Head5A","v":"Outcome"},{"$f":"Head5A","v":"Outcome"},{"$f":"Head6","v":"Original Budget"},{"$f":"Head7","v":"Adjusted Budget"},{"$f":"Head8","v":"Full Year Forecast"},{"$f":"Head9","v":"Budget Year 2021/22"},{"$f":"Head10","v":"Budget Year +1 2022/23"},{"$f":"Head11","v":"Budget Year +2 2023/24"}]
["Names of service providers",null,"Household service targets (000)"]
[null,null,"Water:"]
[null,null,"Piped water inside dwelling"]
[null,null,"Piped water inside yard (but not in dwelling)"]
[null,8,"Using public tap (at least min.service level)"]
[null,10,"Other water supply (at least min.service level)"]
[null,null,"Minimum Service Level and Above sub-total",null,{"$f":"SUM(E205:E208)","v":0},{"$f":"SUM(F205:F208)","v":0},0,0,0,0,0,0,0]
[null,9,"Using public tap (< min.service level)"]
[null,10,"Other water supply (< min.service level)"]
[null,null,"No water supply"]
[null,null,"Below Minimum Service Level sub-total",null,{"$f":"SUM(E210:E212)","v":0},{"$f":"SUM(F210:F212)","v":0},0,0,0,0,0,0,0]
[null,null,"Total number of households",null,{"$f":"E209+E213","v":0},{"$f":"F209+F213","v":0},0,0,0,0,0,0,0]
["Names of service providers",null,"Sanitation/sewerage:"]
[null,null,"Flush toilet (connected to sewerage)"]
[null,null,"Flush toilet (with septic tank)"]
[null,null,"Chemical toilet"]
[null,null,"Pit toilet (ventilated)"]
[null,null,"Other toilet provisions (> min.service level)"]
[null,null,"Minimum Service Level and Above sub-total",null,{"$f":"SUM(E216:E220)","v":0},{"$f":"SUM(F216:F220)","v":0},0,0,0,0,0,0,0]
[null,null,"Bucket toilet"]
[null,null,"Other toilet provisions (< min.service level)"]
[null,null,"No toilet provisions"]
[null,null,"Below Minimum Service Level sub-total",null,{"$f":"SUM(E222:E224)","v":0},{"$f":"SUM(F222:F224)","v":0},0,0,0,0,0,0,0]
[null,null,"Total number of households",null,{"$f":"E221+E225","v":0},{"$f":"F221+F225","v":0},0,0,0,0,0,0,0]
["Names of service providers",null,"Energy:"]
[null,null,"Electricity (at least min.service level)"]
[null,null,"Electricity - prepaid (min.service level)"]
[null,null,"Minimum Service Level and Above sub-total",null,{"$f":"SUM(E228:E229)","v":0},{"$f":"SUM(F228:F229)","v":0},0,0,0,0,0,0,0]
[null,null,"Electricity (< min.service level)"]
[null,null,"Electricity - prepaid (< min. service level)"]
[null,null,"Other energy sources"]
[null,null,"Below Minimum Service Level sub-total",null,{"$f":"SUM(E231:E233)","v":0},{"$f":"SUM(F231:F233)","v":0},0,0,0,0,0,0,0]
[null,null,"Total number of households",null,{"$f":"E230+E234","v":0},{"$f":"F230+F234","v":0},0,0,0,0,0,0,0]
["Names of service providers",null,"Refuse:"]
[null,null,"Removed at least once a week"]
[null,null,"Minimum Service Level and Above sub-total",null,{"$f":"SUM(E237)","v":0},{"$f":"SUM(F237)","v":0},0,0,0,0,0,0,0]
[null,null,"Removed less frequently than once a week"]
[null,null,"Using communal refuse dump"]
[null,null,"Using own refuse dump"]
[null,null,"Other rubbish disposal"]
[null,null,"No rubbish disposal"]
[null,null,"Below Minimum Service Level sub-total",null,{"$f":"SUM(E239:E243)","v":0},0,0,0,0,0,0,0,0]
[null,null,"Total number of households",null,{"$f":"E238+E244","v":0},{"$f":"F238+F244","v":0},0,0,0,0,0,0,0]
[]
["Detail of Free Basic Services (FBS) provided",null,null,null,{"$f":"head1b","v":"2017/18"},{"$f":"head1A","v":"2018/19"},{"$f":"Head1","v":"2019/20"},{"$f":"Head2","v":"Current Year 2020/21"},null,null,{"$f":"Head3","v":"2021/22 Medium Term Revenue & Expenditure Framework"}]
[null,null,null,null,{"$f":"Head5A","v":"Outcome"},{"$f":"Head5A","v":"Outcome"},{"$f":"Head5A","v":"Outcome"},{"$f":"Head6","v":"Original Budget"},{"$f":"Head7","v":"Adjusted Budget"},{"$f":"Head8","v":"Full Year Forecast"},{"$f":"Head9","v":"Budget Year 2021/22"},{"$f":"Head10","v":"Budget Year +1 2022/23"},{"$f":"Head11","v":"Budget Year +2 2023/24"}]
["Electricity","Ref.","Location of households for each type of FBS"]
["List type of FBS service",null,"Formal settlements -  (50 kwh per indigent household per month Rands)"]
[null,null,"Number of HH receiving this type of FBS"]
[null,null,"Informal settlements (Rands)"]
[null,null,"Number of HH receiving this type of FBS"]
[null,null,"Informal settlements targeted for upgrading (Rands)"]
[null,null,"Number of HH receiving this type of FBS"]
[null,null,"Living in informal backyard rental agreement (Rands)"]
[null,null,"Number of HH receiving this type of FBS"]
[null,null,"Other (Rands)"]
[null,null,"Number of HH receiving this type of FBS"]
[null,null,"Total cost of FBS - Electricity for informal settlements",null,{"$f":"E252+E254+E256+E258","v":0},{"$f":"F252+F254+F256+F258","v":0},0,0,0,0,0,0,0]
["Water","Ref.","Location of households for each type of FBS"]
["List type of FBS service",null,"Formal settlements -  (6 kilolitre per indigent household per month Rands)"]
[null,null,"Number of HH receiving this type of FBS"]
[null,null,"Informal settlements (Rands)"]
[null,null,"Number of HH receiving this type of FBS"]
[null,null,"Informal settlements targeted for upgrading (Rands)"]
[null,null,"Number of HH receiving this type of FBS"]
[null,null,"Living in informal backyard rental agreement (Rands)"]
[null,null,"Number of HH receiving this type of FBS"]
[null,null,"Other (Rands)"]
[null,null,"Number of HH receiving this type of FBS"]
[null,null,"Total cost of FBS - Water  for informal settlements",null,{"$f":"E264+E266+E268+E270","v":0},{"$f":"F264+F266+F268+F270","v":0},0,0,0,0,0,0,0]
["Sanitation","Ref.","Location of households for each type of FBS"]
["List type of FBS service",null,"Formal settlements -  (free sanitation service to indigent households)"]
[null,null,"Number of HH receiving this type of FBS"]
[null,null,"Informal settlements (Rands)"]
[null,null,"Number of HH receiving this type of FBS"]
[null,null,"Informal settlements targeted for upgrading (Rands)"]
[null,null,"Number of HH receiving this type of FBS"]
[null,null,"Living in informal backyard rental agreement (Rands)"]
[null,null,"Number of HH receiving this type of FBS"]
[null,null,"Other (Rands)"]
[null,null,"Number of HH receiving this type of FBS"]
[null,null,"Total cost of FBS - Sanitation for informal settlements",null,{"$f":"E276+E278+E280+E282","v":0},{"$f":"F276+F278+F280+F282","v":0},0,0,0,0,0,0,0]
["Refuse Removal","Ref.","Location of households for each type of FBS"]
["List type of FBS service",null,"Formal settlements -  (removed once a week to indigent households)"]
[null,null,"Number of HH receiving this type of FBS"]
[null,null,"Informal settlements (Rands)"]
[null,null,"Number of HH receiving this type of FBS"]
[null,null,"Informal settlements targeted for upgrading (Rands)"]
[null,null,"Number of HH receiving this type of FBS"]
[null,null,"Living in informal backyard rental agreement (Rands)"]
[null,null,"Number of HH receiving this type of FBS"]
[null,null,"Other (Rands)"]
[null,null,"Number of HH receiving this type of FBS"]
[null,null,"Total cost of FBS - Refuse Removal for informal settlements",null,{"$f":"E288+E290+E292+E294","v":0},{"$f":"F288+F290+F292+F294","v":0},0,0,0,0,0,0,0]
[{"$f":"head27a","v":"References"}]
["1. Monthly household income threshold. Should include all sources of income."]
["2. Show the poverty analysis the municipality uses to determine its indigents policy and the provision of services"]
["3. Include total of all housing units within the municipality"]
["4. Number of subsidised dwellings to be constructed by the municipality under agency agreement with province"]
["5. Provide estimate based on building approval information. Include any non-subsidised dwellings constructed by the municipality"]
["6. Insert actual or estimated % increases assumed as a basis for budget calculations"]
["7. Insert actual or estimated % collection rate assumed as a basis for budget calculations for each revenue group"]
["8. Stand distance <= 200m from dwelling"]
["9. Stand distance > 200m from dwelling"]
["10. Borehole, spring, rain-water tank etc."]
["11. Must agree to total number of households in municipal area"]
["12. Household income categories assume an average 4 person household. Stats SA - Census 2011 Questionnaire"]
["13. Based on National poverty line of R515 per capita per month (2008 prices), assuming an average household size of 4 persons"]

{"sheet":"SA10","index":38,"n_rows":138,"n_cols":13,"rows_kept":138,"cut":false,"hidden":false,"merged":[[1,0,2,0],[1,10,1,12],[1,1,2,1],[1,2,2,2],[1,6,1,9]]}
[{"$f":"muni &\" \" & TableA10","v":"DC16 Xhariep Supporting Table SA10 Funding measurement"}]
[{"$f":"desc","v":"Description"},"MFMA section",{"$f":"head27","v":"Ref"},{"$f":"head1b","v":"2017/18"},{"$f":"head1A","v":"2018/19"},{"$f":"Head1","v":"2019/20"},{"$f":"Head2","v":"Current Year 2020/21"},null,null,null,{"$f":"Head3","v":"2021/22 Medium Term Revenue & Expenditure Framework"}]
[null,null,null,{"$f":"Head5","v":"Audited Outcome"},{"$f":"Head5","v":"Audited Outcome"},{"$f":"Head5","v":"Audited Outcome"},{"$f":"Head6","v":"Original Budget"},{"$f":"Head7","v":"Adjusted Budget"},{"$f":"Head8","v":"Full Year Forecast"},{"$f":"Head5b","v":"Pre-audit outcome"},{"$f":"Head9","v":"Budget Year 2021/22"},{"$f":"Head10","v":"Budget Year +1 2022/23"},{"$f":"Head11","v":"Budget Year +2 2023/24"}]
["Funding measures"]
[{"$f":"LEFT('A7-CFlow'!A40,37)&\" - R'000\"","v":"Cash/cash equivalents at the year end - R'000"},"18(1)b",1,{"$f":"'A7-CFlow'!C40","v":0},{"$f":"'A7-CFlow'!D40","v":0},{"$f":"'A7-CFlow'!E40","v":23479181},{"$f":"'A7-CFlow'!F40","v":0},{"$f":"'A7-CFlow'!G40","v":66089963},{"$f":"'A7-CFlow'!H40","v":66089963},{"$f":"'A7-CFlow'!I40","v":-48895803},{"$f":"'A7-CFlow'!J40","v":2668998},{"$f":"'A7-CFlow'!K40","v":5438091},{"$f":"'A7-CFlow'!L40","v":7898408}]
["Cash + investments at the yr end less applications - R'000","18(1)b",2,{"$f":"'A8-ResRecon'!C8-'A8-ResRecon'!C18","v":0},{"$f":"'A8-ResRecon'!D8-'A8-ResRecon'!D18","v":-7341591},{"$f":"'A8-ResRecon'!E8-'A8-ResRecon'!E18","v":-9610368},{"$f":"'A8-ResRecon'!F8-'A8-ResRecon'!F18","v":0},{"$f":"'A8-ResRecon'!G8-'A8-ResRecon'!G18","v":5879033},{"$f":"'A8-ResRecon'!H8-'A8-ResRecon'!H18","v":5879033},{"$f":"'A8-ResRecon'!I8-'A8-ResRecon'!I18","v":20989630},{"$f":"'A8-ResRecon'!J8-'A8-ResRecon'!J18","v":1223023},{"$f":"'A8-ResRecon'!K8-'A8-ResRecon'!K18","v":10355664},{"$f":"'A8-ResRecon'!L8-'A8-ResRecon'!L18","v":10010687}]
["Cash year end/monthly employee/supplier payments","18(1)b",3,{"$f":"IF(ISERROR('SA8'!C39),0,('SA8'!C39))","v":0},{"$f":"IF(ISERROR('SA8'!D39),0,('SA8'!D39))","v":0},{"$f":"IF(ISERROR('SA8'!E39),0,('SA8'!E39))","v":4.7304457812233007},{"$f":"IF(ISERROR('SA8'!F39),0,('SA8'!F39))","v":0},{"$f":"IF(ISERROR('SA8'!G39),0,('SA8'!G39))","v":12.819004005955543},{"$f":"IF(ISERROR('SA8'!H39),0,('SA8'!H39))","v":12.819004005955543},{"$f":"IF(ISERROR('SA8'!I39),0,('SA8'!I39))","v":-11.265359874126789},{"$f":"IF(ISERROR('SA8'!J39),0,('SA8'!J39))","v":0.53657764130826668},{"$f":"IF(ISERROR('SA8'!K39),0,('SA8'!K39))","v":1.0306616455908815},{"$f":"IF(ISERROR('SA8'!L39),0,('SA8'!L39))","v":1.4650794654650443}]
["Surplus/(Deficit) excluding depreciation offsets: R'000","18(1)",4,{"$f":"'A4-FinPerf RE'!C41+'SA3'!C156","v":0},{"$f":"'A4-FinPerf RE'!D41+'SA3'!D156","v":6988994},{"$f":"'A4-FinPerf RE'!E41+'SA3'!E156","v":377250},{"$f":"'A4-FinPerf RE'!F41+'SA3'!F156","v":404771},{"$f":"'A4-FinPerf RE'!G41+'SA3'!G156","v":791409},{"$f":"'A4-FinPerf RE'!H41+'SA3'!H156","v":791409},{"$f":"'A4-FinPerf RE'!I41+'SA3'!I156","v":5725835},{"$f":"'A4-FinPerf RE'!J41+'SA3'!J156","v":485998},{"$f":"'A4-FinPerf RE'!K41+'SA3'!K156","v":21817},{"$f":"'A4-FinPerf RE'!L41+'SA3'!L156","v":23248}]
["Service charge rev % change - macro CPIX target exclusive","18(1)a,(2)",5,"N.A.",{"$f":"IF(ISERROR(E36-E61),0,(E36-E61))","v":-0.06},{"$f":"IF(ISERROR(F36-F61),0,(F36-F61))","v":-0.06},-0.06,-0.06,-0.06,-0.06,{"$f":"IF(ISERROR(K36-K61),0,(K36-K61))","v":-0.06},-0.06,-0.06]
["Cash receipts % of Ratepayer & Other revenue","18(1)a,(2)",6,{"$f":"IF(ISERROR(D53/D54),0,(D53/D54))","v":0},{"$f":"IF(ISERROR(E53/E54),0,(E53/E54))","v":0},0,0,2.4443902016411276,2.4443902016411276,0,1.6083303979756334,3.3945285023720797,3.243886272939422]
["Debt impairment expense as a % of total billable revenue","18(1)a,(2)",7,{"$f":"IF(ISERROR('A4-FinPerf RE'!C26/'SA10'!D43),0,('A4-FinPerf RE'!C26/'SA10'!D43))","v":0},{"$f":"IF(ISERROR('A4-FinPerf RE'!D26/'SA10'!E43),0,('A4-FinPerf RE'!D26/'SA10'!E43))","v":0},{"$f":"IF(ISERROR('A4-FinPerf RE'!E26/'SA10'!F43),0,('A4-FinPerf RE'!E26/'SA10'!F43))","v":0},{"$f":"IF(ISERROR('A4-FinPerf RE'!F26/'SA10'!G43),0,('A4-FinPerf RE'!F26/'SA10'!G43))","v":0},{"$f":"IF(ISERROR('A4-FinPerf RE'!G26/'SA10'!H43),0,('A4-FinPerf RE'!G26/'SA10'!H43))","v":0},{"$f":"IF(ISERROR('A4-FinPerf RE'!H26/'SA10'!I43),0,('A4-FinPerf RE'!H26/'SA10'!I43))","v":0},{"$f":"IF(ISERROR('A4-FinPerf RE'!I26/'SA10'!J43),0,('A4-FinPerf RE'!I26/'SA10'!J43))","v":0},{"$f":"IF(ISERROR('A4-FinPerf RE'!J26/'SA10'!K43),0,('A4-FinPerf RE'!J26/'SA10'!K43))","v":0},{"$f":"IF(ISERROR('A4-FinPerf RE'!K26/'SA10'!L43),0,('A4-FinPerf RE'!K26/'SA10'!L43))","v":0},{"$f":"IF(ISERROR('A4-FinPerf RE'!L26/'SA10'!M43),0,('A4-FinPerf RE'!L26/'SA10'!M43))","v":0}]
["Capital payments % of capital expenditure","18(1)c;19",8,{"$f":"IF(ISERROR(-'A7-CFlow'!C26/'A5-Capex'!C40),0,(-'A7-CFlow'!C26/'A5-Capex'!C40))","v":0},{"$f":"IF(ISERROR(-'A7-CFlow'!D26/'A5-Capex'!D40),0,(-'A7-CFlow'!D26/'A5-Capex'!D40))","v":0},{"$f":"IF(ISERROR(-'A7-CFlow'!E26/'A5-Capex'!E40),0,(-'A7-CFlow'!E26/'A5-Capex'!E40))","v":0},{"$f":"IF(ISERROR(-'A7-CFlow'!F26/'A5-Capex'!F40),0,(-'A7-CFlow'!F26/'A5-Capex'!F40))","v":0},{"$f":"IF(ISERROR(-'A7-CFlow'!G26/'A5-Capex'!G40),0,(-'A7-CFlow'!G26/'A5-Capex'!G40))","v":0},{"$f":"IF(ISERROR(-'A7-CFlow'!H26/'A5-Capex'!H40),0,(-'A7-CFlow'!H26/'A5-Capex'!H40))","v":0},{"$f":"IF(ISERROR(-'A7-CFlow'!I26/'A5-Capex'!I40),0,(-'A7-CFlow'!I26/'A5-Capex'!I40))","v":0},{"$f":"IF(ISERROR(-'A7-CFlow'!J26/'A5-Capex'!J40),0,(-'A7-CFlow'!J26/'A5-Capex'!J40))","v":0},{"$f":"IF(ISERROR(-'A7-CFlow'!K26/'A5-Capex'!K40),0,(-'A7-CFlow'!K26/'A5-Capex'!K40))","v":0},{"$f":"IF(ISERROR(-'A7-CFlow'!L26/'A5-Capex'!L40),0,(-'A7-CFlow'!L26/'A5-Capex'!L40))","v":0}]
["Borrowing receipts % of capital expenditure (excl. transfers)","18(1)c",9,{"$f":"IF(ISERROR('A7-CFlow'!C32/'SA10'!D52),0,('A7-CFlow'!C32/'SA10'!D52))","v":0},{"$f":"IF(ISERROR('A7-CFlow'!D32/'SA10'!E52),0,('A7-CFlow'!D32/'SA10'!E52))","v":0},{"$f":"IF(ISERROR('A7-CFlow'!E32/'SA10'!F52),0,('A7-CFlow'!E32/'SA10'!F52))","v":0},{"$f":"IF(ISERROR('A7-CFlow'!F32/'SA10'!G52),0,('A7-CFlow'!F32/'SA10'!G52))","v":0},{"$f":"IF(ISERROR('A7-CFlow'!G32/'SA10'!H52),0,('A7-CFlow'!G32/'SA10'!H52))","v":0},{"$f":"IF(ISERROR('A7-CFlow'!H32/'SA10'!I52),0,('A7-CFlow'!H32/'SA10'!I52))","v":0},{"$f":"IF(ISERROR('A7-CFlow'!I32/'SA10'!J52),0,('A7-CFlow'!I32/'SA10'!J52))","v":0},{"$f":"IF(ISERROR('A7-CFlow'!J32/'SA10'!K52),0,('A7-CFlow'!J32/'SA10'!K52))","v":0},{"$f":"IF(ISERROR('A7-CFlow'!K32/'SA10'!L52),0,('A7-CFlow'!K32/'SA10'!L52))","v":0},{"$f":"IF(ISERROR('A7-CFlow'!L32/'SA10'!M52),0,('A7-CFlow'!L32/'SA10'!M52))","v":0}]
["Grants % of Govt. legislated/gazetted allocations","18(1)a",10,null,null,null,null,null,null,null,{"$f":"IF(ISERROR(K56/K68),0,(K56/K68))","v":0},{"$f":"IF(ISERROR(L56/L68),0,(L56/L68))","v":0},{"$f":"IF(ISERROR(M56/M68),0,(M56/M68))","v":0}]
["Current consumer debtors % change - incr(decr)","18(1)a",11,"N.A.",{"$f":"IF(ISERROR(ROUND((SUM('A6-FinPos'!D8:D10)-SUM('A6-FinPos'!C8:C10))/SUM('A6-FinPos'!C8:C10),3)),0,(ROUND((SUM('A6-FinPos'!D8:D10)-SUM('A6-FinPos'!C8:C10))/SUM('A6-FinPos'!C8:C10),3)))","v":0},{"$f":"IF(ISERROR(ROUND((SUM('A6-FinPos'!E8:E10)-SUM('A6-FinPos'!D8:D10))/SUM('A6-FinPos'!D8:D10),3)),0,(ROUND((SUM('A6-FinPos'!E8:E10)-SUM('A6-FinPos'!D8:D10))/SUM('A6-FinPos'!D8:D10),3)))","v":0.30499999999999999},{"$f":"IF(ISERROR(ROUND((SUM('A6-FinPos'!F8:F10)-SUM('A6-FinPos'!E8:E10))/SUM('A6-FinPos'!E8:E10),3)),0,(ROUND((SUM('A6-FinPos'!F8:F10)-SUM('A6-FinPos'!E8:E10))/SUM('A6-FinPos'!E8:E10),3)))","v":-1},{"$f":"IF(ISERROR(ROUND((SUM('A6-FinPos'!G8:G10)-SUM('A6-FinPos'!F8:F10))/SUM('A6-FinPos'!F8:F10),3)),0,(ROUND((SUM('A6-FinPos'!G8:G10)-SUM('A6-FinPos'!F8:F10))/SUM('A6-FinPos'!F8:F10),3)))","v":0},{"$f":"IF(ISERROR(ROUND((SUM('A6-FinPos'!H8:H10)-SUM('A6-FinPos'!G8:G10))/SUM('A6-FinPos'!G8:G10),3)),0,(ROUND((SUM('A6-FinPos'!H8:H10)-SUM('A6-FinPos'!G8:G10))/SUM('A6-FinPos'!G8:G10),3)))","v":0},{"$f":"IF(ISERROR(ROUND((SUM('A6-FinPos'!I8:I10)-SUM('A6-FinPos'!H8:H10))/SUM('A6-FinPos'!H8:H10),3)),0,(ROUND((SUM('A6-FinPos'!I8:I10)-SUM('A6-FinPos'!H8:H10))/SUM('A6-FinPos'!H8:H10),3)))","v":0.55200000000000005},{"$f":"IF(ISERROR(ROUND((SUM('A6-FinPos'!J8:J10)-SUM('A6-FinPos'!G8:G10))/SUM('A6-FinPos'!G8:G10),3)),0,(ROUND((SUM('A6-FinPos'!J8:J10)-SUM('A6-FinPos'!G8:G10))/SUM('A6-FinPos'!G8:G10),3)))","v":0.156},{"$f":"IF(ISERROR(ROUND((SUM('A6-FinPos'!K8:K10)-SUM('A6-FinPos'!J8:J10))/SUM('A6-FinPos'!J8:J10),3)),0,(ROUND((SUM('A6-FinPos'!K8:K10)-SUM('A6-FinPos'!J8:J10))/SUM('A6-FinPos'!J8:J10),3)))","v":4.2000000000000003E-2},{"$f":"IF(ISERROR(ROUND((SUM('A6-FinPos'!L8:L10)-SUM('A6-FinPos'!K8:K10))/SUM('A6-FinPos'!K8:K10),3)),0,(ROUND((SUM('A6-FinPos'!L8:L10)-SUM('A6-FinPos'!K8:K10))/SUM('A6-FinPos'!K8:K10),3)))","v":4.2000000000000003E-2}]
["Long term receivables % change - incr(decr)","18(1)a",12,"N.A.",{"$f":"IF(ISERROR(ROUND(('A6-FinPos'!D15-'A6-FinPos'!C15)/'A6-FinPos'!C15,3)),0,(ROUND(('A6-FinPos'!D15-'A6-FinPos'!C15)/'A6-FinPos'!C15,3)))","v":0},{"$f":"IF(ISERROR(ROUND(('A6-FinPos'!E15-'A6-FinPos'!D15)/'A6-FinPos'!D15,3)),0,(ROUND(('A6-FinPos'!E15-'A6-FinPos'!D15)/'A6-FinPos'!D15,3)))","v":0},{"$f":"IF(ISERROR(ROUND(('A6-FinPos'!F15-'A6-FinPos'!E15)/'A6-FinPos'!E15,3)),0,(ROUND(('A6-FinPos'!F15-'A6-FinPos'!E15)/'A6-FinPos'!E15,3)))","v":0},{"$f":"IF(ISERROR(ROUND(('A6-FinPos'!G15-'A6-FinPos'!F15)/'A6-FinPos'!F15,3)),0,(ROUND(('A6-FinPos'!G15-'A6-FinPos'!F15)/'A6-FinPos'!F15,3)))","v":0},{"$f":"IF(ISERROR(ROUND(('A6-FinPos'!H15-'A6-FinPos'!G15)/'A6-FinPos'!G15,3)),0,(ROUND(('A6-FinPos'!H15-'A6-FinPos'!G15)/'A6-FinPos'!G15,3)))","v":0},{"$f":"IF(ISERROR(ROUND(('A6-FinPos'!I15-'A6-FinPos'!H15)/'A6-FinPos'!H15,3)),0,(ROUND(('A6-FinPos'!I15-'A6-FinPos'!H15)/'A6-FinPos'!H15,3)))","v":0},{"$f":"IF(ISERROR(ROUND(('A6-FinPos'!J15-'A6-FinPos'!G15)/'A6-FinPos'!G15,3)),0,(ROUND(('A6-FinPos'!J15-'A6-FinPos'!G15)/'A6-FinPos'!G15,3)))","v":0},{"$f":"IF(ISERROR(ROUND(('A6-FinPos'!K15-'A6-FinPos'!J15)/'A6-FinPos'!J15,3)),0,(ROUND(('A6-FinPos'!K15-'A6-FinPos'!J15)/'A6-FinPos'!J15,3)))","v":0},{"$f":"IF(ISERROR(ROUND(('A6-FinPos'!L15-'A6-FinPos'!K15)/'A6-FinPos'!K15,3)),0,(ROUND(('A6-FinPos'!L15-'A6-FinPos'!K15)/'A6-FinPos'!K15,3)))","v":0}]
["R&M % of Property Plant & Equipment","20(1)(vi)",13,{"$f":"IF(ISERROR('A9-Asset'!C169/'A6-FinPos'!C19),0,('A9-Asset'!C169/'A6-FinPos'!C19))","v":0},{"$f":"IF(ISERROR('A9-Asset'!D169/'A6-FinPos'!D19),0,('A9-Asset'!D169/'A6-FinPos'!D19))","v":1.6462014294160471E-2},{"$f":"IF(ISERROR('A9-Asset'!E169/'A6-FinPos'!E19),0,('A9-Asset'!E169/'A6-FinPos'!E19))","v":3.7847067394172117E-2},{"$f":"IF(ISERROR('A9-Asset'!F169/'A6-FinPos'!F19),0,('A9-Asset'!F169/'A6-FinPos'!F19))","v":1.1240923880416334},{"$f":"IF(ISERROR('A9-Asset'!G169/'A6-FinPos'!G19),0,('A9-Asset'!G169/'A6-FinPos'!G19))","v":5.5851229173514691E-2},{"$f":"IF(ISERROR('A9-Asset'!H169/'A6-FinPos'!H19),0,('A9-Asset'!H169/'A6-FinPos'!H19))","v":5.5851229173514691E-2},{"$f":"IF(ISERROR('A9-Asset'!I169/'A6-FinPos'!I19),0,('A9-Asset'!I169/'A6-FinPos'!I19))","v":4.3948849508039642E-3},{"$f":"IF(ISERROR('A9-Asset'!I169/'A6-FinPos'!J19),0,('A9-Asset'!I169/'A6-FinPos'!J19))","v":2.0796433769500647E-2},{"$f":"IF(ISERROR('A9-Asset'!J169/'A6-FinPos'!K19),0,('A9-Asset'!J169/'A6-FinPos'!K19))","v":4.3602831912788874E-2},{"$f":"IF(ISERROR('A9-Asset'!K169/'A6-FinPos'!L19),0,('A9-Asset'!K169/'A6-FinPos'!L19))","v":5.7135747448695602E-2}]
["Asset renewal % of capital budget",{"$f":"B17","v":"20(1)(vi)"},14,{"$f":"IF(ISERROR(D58/D57),0,(D58/D57))","v":0},0,0.93577699350673815,0.9258840183708813,1,1,0,1,1,{"$f":"IF(ISERROR(M58/M57),0,((M58/M57)))","v":1}]
[]
[{"$f":"head27a","v":"References"}]
["1. Positive cash balances indicative of minimum compliance - subject to 2"]
["2. Deduct cash and investment applications (defined) from cash balances"]
["3. Indicative of sufficient liquidity to meet average monthly operating payments"]
["4. Indicative of funded operational requirements"]
["5. Indicative of adherence to macro-economic targets (prior to 2003/04 revenue not available for high capacity municipalities and later for other capacity classifications)"]
["6. Realistic average cash collection forecasts as % of annual billed revenue"]
["7. Realistic average increase in debt impairment (doubtful debt) provision"]
["8. Indicative of planned capital expenditure level & cash payment timing"]
["9. Indicative of compliance with borrowing 'only' for the capital budget - should not exceed 100% unless refinancing"]
["10. Substantiation of National/Province allocations included in budget"]
["11. Indicative of realistic current arrear debtor collection targets (prior to 2003/04 revenue not available for high capacity municipalities and later for other capacity classifications)"]
["12. Indicative of realistic long term arrear debtor collection targets (prior to 2003/04 revenue not available for high capacity municipalities and later for other capacity classifications)"]
["13. Indicative of a credible allowance for repairs & maintenance of assets - functioning assets revenue protection"]
["14. Indicative of a credible allowance for asset renewal (requires analysis of asset renewal projects as % of total capital projects - detailed capital plan) - functioning assets revenue protection"]
["Supporting indicators"]
["% incr total service charges (incl prop rates)","18(1)a",null,null,{"$f":"IF(ISERROR((E44/D44)-1),0,((E44/D44)-1))","v":0},{"$f":"IF(ISERROR((F44/E44)-1),0,((F44/E44)-1))","v":0},{"$f":"IF(ISERROR((G44/F44)-1),0,((G44/F44)-1))","v":0},{"$f":"IF(ISERROR((H44/G44)-1),0,((H44/G44)-1))","v":0},{"$f":"IF(ISERROR((I44/H44)-1),0,((I44/H44)-1))","v":0},{"$f":"IF(ISERROR((J44/I44)-1),0,((J44/I44)-1))","v":0},{"$f":"IF(ISERROR((K44/H44)-1),0,((K44/H44)-1))","v":0},{"$f":"IF(ISERROR((L44/K44)-1),0,((L44/K44)-1))","v":0},{"$f":"IF(ISERROR((M44/L44)-1),0,((M44/L44)-1))","v":0}]
["% incr Property Tax","18(1)a",null,null,0,{"$f":"IF(ISERROR((F45/E45)-1),0,((F45/E45)-1))","v":0},0,0,0,0,{"$f":"IF(ISERROR((K45/H45)-1),0,((K45/H45)-1))","v":0},0,0]
[{"$f":"\"% incr \"&'A4-FinPerf RE'!A6","v":"% incr Service charges - electricity revenue"},"18(1)a",null,null,0,0,0,0,0,0,0,0,{"$f":"IF(ISERROR((M46/L46)-1),0,((M46/L46)-1))","v":0}]
[{"$f":"\"% incr \"&'A4-FinPerf RE'!A7","v":"% incr Service charges - water revenue"},"18(1)a",null,null,0,0,0,0,0,0,0,0,0]
[{"$f":"\"% incr \"&'A4-FinPerf RE'!A8","v":"% incr Service charges - sanitation revenue"},"18(1)a",null,null,0,0,0,0,0,0,0,0,0]
[{"$f":"\"% incr \"&'A4-FinPerf RE'!A9","v":"% incr Service charges - refuse revenue"},"18(1)a",null,null,0,0,0,0,0,0,0,0,0]
[{"$f":"\"% incr in \"&'A4-FinPerf RE'!A10","v":"% incr in "},"18(1)a",null,null,0,0,0,0,{"$f":"IF(ISERROR((I50/H50)-1),0,((I50/H50)-1))","v":0},0,0,{"$f":"IF(ISERROR((L50/K50)-1),0,((L50/K50)-1))","v":0},0]
["Total billable revenue","18(1)a",null,{"$f":"SUM(D45:D50)","v":0},{"$f":"SUM(E45:E50)","v":0},0,0,0,0,0,0,0,0]
["Service charges",null,null,{"$f":"SUM(D45:D50)","v":0},{"$f":"SUM(E45:E50)","v":0},0,0,0,0,{"$f":"SUM(J45:J50)","v":0},0,0,0]
["Property rates",null,null,{"$f":"'A4-FinPerf RE'!C5","v":0},{"$f":"'A4-FinPerf RE'!D5","v":0},{"$f":"'A4-FinPerf RE'!E5","v":0},{"$f":"'A4-FinPerf RE'!F5","v":0},{"$f":"'A4-FinPerf RE'!G5","v":0},{"$f":"'A4-FinPerf RE'!H5","v":0},{"$f":"'A4-FinPerf RE'!I5","v":0},{"$f":"'A4-FinPerf RE'!J5","v":0},{"$f":"'A4-FinPerf RE'!K5","v":0},{"$f":"'A4-FinPerf RE'!L5","v":0}]
["Service charges - electricity revenue",null,null,{"$f":"'A4-FinPerf RE'!C6","v":0},{"$f":"'A4-FinPerf RE'!D6","v":0},{"$f":"'A4-FinPerf RE'!E6","v":0},{"$f":"'A4-FinPerf RE'!F6","v":0},{"$f":"'A4-FinPerf RE'!G6","v":0},{"$f":"'A4-FinPerf RE'!H6","v":0},{"$f":"'A4-FinPerf RE'!I6","v":0},{"$f":"'A4-FinPerf RE'!J6","v":0},{"$f":"'A4-FinPerf RE'!K6","v":0},{"$f":"'A4-FinPerf RE'!L6","v":0}]
["Service charges - water revenue",null,null,{"$f":"'A4-FinPerf RE'!C7","v":0},{"$f":"'A4-FinPerf RE'!D7","v":0},{"$f":"'A4-FinPerf RE'!E7","v":0},{"$f":"'A4-FinPerf RE'!F7","v":0},{"$f":"'A4-FinPerf RE'!G7","v":0},{"$f":"'A4-FinPerf RE'!H7","v":0},{"$f":"'A4-FinPerf RE'!I7","v":0},{"$f":"'A4-FinPerf RE'!J7","v":0},{"$f":"'A4-FinPerf RE'!K7","v":0},{"$f":"'A4-FinPerf RE'!L7","v":0}]
["Service charges - sanitation revenue",null,null,{"$f":"'A4-FinPerf RE'!C8","v":0},{"$f":"'A4-FinPerf RE'!D8","v":0},{"$f":"'A4-FinPerf RE'!E8","v":0},{"$f":"'A4-FinPerf RE'!F8","v":0},{"$f":"'A4-FinPerf RE'!G8","v":0},{"$f":"'A4-FinPerf RE'!H8","v":0},{"$f":"'A4-FinPerf RE'!I8","v":0},{"$f":"'A4-FinPerf RE'!J8","v":0},{"$f":"'A4-FinPerf RE'!K8","v":0},{"$f":"'A4-FinPerf RE'!L8","v":0}]
["Service charges - refuse removal",null,null,{"$f":"'A4-FinPerf RE'!C9","v":0},{"$f":"'A4-FinPerf RE'!D9","v":0},{"$f":"'A4-FinPerf RE'!E9","v":0},{"$f":"'A4-FinPerf RE'!F9","v":0},{"$f":"'A4-FinPerf RE'!G9","v":0},{"$f":"'A4-FinPerf RE'!H9","v":0},{"$f":"'A4-FinPerf RE'!I9","v":0},{"$f":"'A4-FinPerf RE'!J9","v":0},{"$f":"'A4-FinPerf RE'!K9","v":0},{"$f":"'A4-FinPerf RE'!L9","v":0}]
["Service charges - other",null,null,{"$f":"'A4-FinPerf RE'!C10","v":0},{"$f":"'A4-FinPerf RE'!D10","v":0},{"$f":"'A4-FinPerf RE'!E10","v":0},{"$f":"'A4-FinPerf RE'!F10","v":0},{"$f":"'A4-FinPerf RE'!G10","v":0},{"$f":"'A4-FinPerf RE'!H10","v":0},{"$f":"'A4-FinPerf RE'!I10","v":0},{"$f":"'A4-FinPerf RE'!J10","v":0},{"$f":"'A4-FinPerf RE'!K10","v":0},{"$f":"'A4-FinPerf RE'!L10","v":0}]
[{"$f":"'A4-FinPerf RE'!A11","v":"Rental of facilities and equipment"},null,null,{"$f":"'A4-FinPerf RE'!C11","v":0},{"$f":"'A4-FinPerf RE'!D11","v":427266},{"$f":"'A4-FinPerf RE'!E11","v":0},{"$f":"'A4-FinPerf RE'!F11","v":649183},{"$f":"'A4-FinPerf RE'!G11","v":649183},{"$f":"'A4-FinPerf RE'!H11","v":649183},{"$f":"'A4-FinPerf RE'!I11","v":46106},{"$f":"'A4-FinPerf RE'!J11","v":939183},{"$f":"'A4-FinPerf RE'!K11","v":174001},{"$f":"'A4-FinPerf RE'!L11","v":191401}]
["Capital expenditure excluding capital grant funding",null,null,{"$f":"'A5-Capex'!C40-'A5-Capex'!C70","v":0},{"$f":"'A5-Capex'!D40-'A5-Capex'!D70","v":0},{"$f":"'A5-Capex'!E40-'A5-Capex'!E70","v":318484},{"$f":"'A5-Capex'!F40-'A5-Capex'!F70","v":404771},{"$f":"'A5-Capex'!G40-'A5-Capex'!G70","v":328000},{"$f":"'A5-Capex'!H40-'A5-Capex'!H70","v":328000},{"$f":"'A5-Capex'!I40-'A5-Capex'!I70","v":514914},{"$f":"'A5-Capex'!J40-'A5-Capex'!J70","v":486000},{"$f":"'A5-Capex'!K40-'A5-Capex'!K70","v":21958},{"$f":"'A5-Capex'!L40-'A5-Capex'!L70","v":23144}]
["Cash receipts from ratepayers","18(1)a",null,{"$f":"'A7-CFlow'!C6+'A7-CFlow'!C7+'A7-CFlow'!C8","v":0},{"$f":"'A7-CFlow'!D6+'A7-CFlow'!D7+'A7-CFlow'!D8","v":0},{"$f":"'A7-CFlow'!E6+'A7-CFlow'!E7+'A7-CFlow'!E8","v":0},{"$f":"'A7-CFlow'!F6+'A7-CFlow'!F7+'A7-CFlow'!F8","v":0},{"$f":"'A7-CFlow'!G6+'A7-CFlow'!G7+'A7-CFlow'!G8","v":1777519},{"$f":"'A7-CFlow'!H6+'A7-CFlow'!H7+'A7-CFlow'!H8","v":1777519},{"$f":"'A7-CFlow'!I6+'A7-CFlow'!I7+'A7-CFlow'!I8","v":0},{"$f":"'A7-CFlow'!J6+'A7-CFlow'!J7+'A7-CFlow'!J8","v":1639183},{"$f":"'A7-CFlow'!K6+'A7-CFlow'!K7+'A7-CFlow'!K8","v":907276},{"$f":"'A7-CFlow'!L6+'A7-CFlow'!L7+'A7-CFlow'!L8","v":939676}]
["Ratepayer & Other revenue","18(1)a",null,{"$f":"SUM('A4-FinPerf RE'!C5:C11)+'A4-FinPerf RE'!C13+SUM('A4-FinPerf RE'!C15:C17)+'A4-FinPerf RE'!C19","v":0},{"$f":"SUM('A4-FinPerf RE'!D5:D11)+'A4-FinPerf RE'!D13+SUM('A4-FinPerf RE'!D15:D17)+'A4-FinPerf RE'!D19","v":809202},{"$f":"SUM('A4-FinPerf RE'!E5:E11)+'A4-FinPerf RE'!E13+SUM('A4-FinPerf RE'!E15:E17)+'A4-FinPerf RE'!E19","v":2480960},{"$f":"SUM('A4-FinPerf RE'!F5:F11)+'A4-FinPerf RE'!F13+SUM('A4-FinPerf RE'!F15:F17)+'A4-FinPerf RE'!F19","v":773683},{"$f":"SUM('A4-FinPerf RE'!G5:G11)+'A4-FinPerf RE'!G13+SUM('A4-FinPerf RE'!G15:G17)+'A4-FinPerf RE'!G19","v":727183},{"$f":"SUM('A4-FinPerf RE'!H5:H11)+'A4-FinPerf RE'!H13+SUM('A4-FinPerf RE'!H15:H17)+'A4-FinPerf RE'!H19","v":727183},{"$f":"SUM('A4-FinPerf RE'!I5:I11)+'A4-FinPerf RE'!I13+SUM('A4-FinPerf RE'!I15:I17)+'A4-FinPerf RE'!I19","v":949886},{"$f":"SUM('A4-FinPerf RE'!J5:J11)+'A4-FinPerf RE'!J13+SUM('A4-FinPerf RE'!J15:J17)+'A4-FinPerf RE'!J19","v":1019183},{"$f":"SUM('A4-FinPerf RE'!K5:K11)+'A4-FinPerf RE'!K13+SUM('A4-FinPerf RE'!K15:K17)+'A4-FinPerf RE'!K19","v":267276},{"$f":"SUM('A4-FinPerf RE'!L5:L11)+'A4-FinPerf RE'!L13+SUM('A4-FinPerf RE'!L15:L17)+'A4-FinPerf RE'!L19","v":289676}]
["Change in consumer debtors (current and non-current)",null,null,{"$f":"D84","v":4011016.6666666665},{"$f":"(SUM('A6-FinPos'!D8:D10)+'A6-FinPos'!D15)-(SUM('A6-FinPos'!C8:C10)+'A6-FinPos'!C15)","v":4363111},{"$f":"(SUM('A6-FinPos'!E8:E10)+'A6-FinPos'!E15)-(SUM('A6-FinPos'!D8:D10)+'A6-FinPos'!D15)","v":1332196},{"$f":"(SUM('A6-FinPos'!F8:F10)+'A6-FinPos'!F15)-(SUM('A6-FinPos'!E8:E10)+'A6-FinPos'!E15)","v":-5695307},{"$f":"(SUM('A6-FinPos'!G8:G10)+'A6-FinPos'!G15)-(SUM('A6-FinPos'!E8:E10)+'A6-FinPos'!E15)","v":-1759441},{"$f":"(SUM('A6-FinPos'!H8:H10)+'A6-FinPos'!H15)-(SUM('A6-FinPos'!E8:E10)+'A6-FinPos'!E15)","v":-1759441},{"$f":"(SUM('A6-FinPos'!I8:I10)+'A6-FinPos'!I15)-(SUM('A6-FinPos'!E8:E10)+'A6-FinPos'!E15)","v":413847},{"$f":"(SUM('A6-FinPos'!J8:J10)+'A6-FinPos'!J15)-(SUM('A6-FinPos'!F8:F10)+'A6-FinPos'!F15)","v":4549450},{"$f":"(SUM('A6-FinPos'!K8:K10)+'A6-FinPos'!K15)-(SUM('A6-FinPos'!J8:J10)+'A6-FinPos'!J15)","v":191077},{"$f":"(SUM('A6-FinPos'!L8:L10)+'A6-FinPos'!L15)-(SUM('A6-FinPos'!K8:K10)+'A6-FinPos'!K15)","v":199101}]
["Operating and Capital Grant Revenue","18(1)a",null,{"$f":"'A4-FinPerf RE'!C18+'A4-FinPerf RE'!C38","v":0},{"$f":"'A4-FinPerf RE'!D18+'A4-FinPerf RE'!D38","v":67741058},{"$f":"'A4-FinPerf RE'!E18+'A4-FinPerf RE'!E38","v":64831724},{"$f":"'A4-FinPerf RE'!F18+'A4-FinPerf RE'!F38","v":66302000},{"$f":"'A4-FinPerf RE'!G18+'A4-FinPerf RE'!G38","v":68101000},{"$f":"'A4-FinPerf RE'!H18+'A4-FinPerf RE'!H38","v":68101000},{"$f":"'A4-FinPerf RE'!I18+'A4-FinPerf RE'!I38","v":60303443},{"$f":"'A4-FinPerf RE'!J18+'A4-FinPerf RE'!J38","v":61832000},{"$f":"'A4-FinPerf RE'!K18+'A4-FinPerf RE'!K38","v":67840724},{"$f":"'A4-FinPerf RE'!L18+'A4-FinPerf RE'!L38","v":69212323}]
["Capital expenditure - total",{"$f":"B17","v":"20(1)(vi)"},null,{"$f":"'A5-Capex'!C40","v":0},{"$f":"'A5-Capex'!D40","v":0},{"$f":"'A5-Capex'!E40","v":318484},{"$f":"'A5-Capex'!F40","v":404771},{"$f":"'A5-Capex'!G40","v":328000},{"$f":"'A5-Capex'!H40","v":328000},{"$f":"'A5-Capex'!I40","v":514914},{"$f":"'A5-Capex'!J40","v":486000},{"$f":"'A5-Capex'!K40","v":21958},{"$f":"'A5-Capex'!L40","v":23144}]
["Capital expenditure - renewal",{"$f":"B18","v":"20(1)(vi)"},null,{"$f":"'A9-Asset'!C37","v":0},{"$f":"'A9-Asset'!D37","v":0},{"$f":"'A9-Asset'!E37","v":298030},{"$f":"'A9-Asset'!F37","v":374771},{"$f":"'A9-Asset'!G37","v":328000},{"$f":"'A9-Asset'!H37","v":328000},null,{"$f":"'A9-Asset'!I37","v":486000},{"$f":"'A9-Asset'!J37","v":21958},{"$f":"'A9-Asset'!K37","v":23144}]
[]
["Supporting benchmarks"]
["Growth guideline maximum",null,null,0.06,0.06,0.06,0.06,0.06,0.06,0.06,0.06,0.06,0.06]
["CPI guideline",null,null,4.2999999999999997E-2,3.9E-2,4.5999999999999999E-2,0.05,0.05,0.05,0.05,5.3999999999999999E-2,5.6000000000000001E-2,5.3999999999999999E-2]
["DoRA operating grants total MFY"]
["DoRA capital grants total MFY"]
["Provincial operating grants"]
["Provincial capital grants"]
["District Municipality grants"]
["Total gazetted/advised national, provincial and district grants",null,null,null,null,null,null,null,null,null,{"$f":"SUM(K63:K67)","v":0},{"$f":"SUM(L63:L67)","v":0},{"$f":"SUM(M63:M67)","v":0}]
["Average annual collection rate (arrears inclusive)"]
[]
["DoRA operating"]
["List operating grants"]
[]
[]
[]
[null,null,null,null,null,null,null,null,null,null,{"$f":"SUM(K72:K75)","v":0},{"$f":"SUM(L72:L75)","v":0},{"$f":"SUM(M72:M75)","v":0}]
["DoRA capital"]
["List capital grants"]
[]
[]
[]
[null,null,null,null,null,null,null,null,null,null,{"$f":"SUM(K78:K81)","v":0},{"$f":"SUM(L78:L81)","v":0},{"$f":"SUM(M78:M81)","v":0}]
["Trend"]
[{"$f":"A55","v":"Change in consumer debtors (current and non-current)"},null,null,{"$f":"TREND(E84:G84)","v":4011016.6666666665},{"$f":"E55","v":4363111},{"$f":"F55","v":1332196},{"$f":"J55","v":413847},{"$f":"K55","v":4549450},191077,199101,0,0,0]
[]
["Total Operating Revenue",null,null,{"$f":"'A1-Sum'!B10","v":0},{"$f":"'A1-Sum'!C10","v":68965758},{"$f":"'A1-Sum'!D10","v":67962784},{"$f":"'A1-Sum'!E10","v":67946987},{"$f":"'A1-Sum'!F10","v":69688183},{"$f":"'A1-Sum'!G10","v":69688183},{"$f":"'A1-Sum'!H10","v":61871096},{"$f":"'A1-Sum'!I10","v":63471183},{"$f":"'A1-Sum'!J10","v":68748000},{"$f":"'A1-Sum'!K10","v":70151999}]
["Total Operating Expenditure",null,null,{"$f":"'A1-Sum'!B18","v":0},{"$f":"'A1-Sum'!C18","v":61976764},{"$f":"'A1-Sum'!D18","v":67585534},{"$f":"'A1-Sum'!E18","v":67542216},{"$f":"'A1-Sum'!F18","v":68896774},{"$f":"'A1-Sum'!G18","v":68896774},{"$f":"'A1-Sum'!H18","v":56145261},{"$f":"'A1-Sum'!I18","v":62985185},{"$f":"'A1-Sum'!J18","v":68726183},{"$f":"'A1-Sum'!K18","v":70128751}]
["Operating Performance Surplus/(Deficit)",null,null,{"$f":"D86-D87","v":0},{"$f":"E86-E87","v":6988994},377250,404771,791409,791409,5725835,{"$f":"K86-K87","v":485998},21817,23248]
["Cash and Cash Equivalents (30 June 2012)",null,null,null,null,null,null,null,null,null,{"$f":"'A7-CFlow'!J40","v":2668998}]
["Revenue"]
["% Increase in Total Operating Revenue",null,null,null,{"$f":"IF(ISERROR(('A1-Sum'!C10-'A1-Sum'!B10)/'A1-Sum'!B10),0,(('A1-Sum'!C10-'A1-Sum'!B10)/'A1-Sum'!B10))","v":0},{"$f":"IF(ISERROR(('A1-Sum'!D10-'A1-Sum'!C10)/'A1-Sum'!C10),0,(('A1-Sum'!D10-'A1-Sum'!C10)/'A1-Sum'!C10))","v":-1.4543072230134844E-2},{"$f":"IF(ISERROR(('A1-Sum'!E10-'A1-Sum'!D10)/'A1-Sum'!D10),0,(('A1-Sum'!E10-'A1-Sum'!D10)/'A1-Sum'!D10))","v":-2.3243603440377015E-4},{"$f":"IF(ISERROR(('A1-Sum'!F10-'A1-Sum'!E10)/'A1-Sum'!E10),0,(('A1-Sum'!F10-'A1-Sum'!E10)/'A1-Sum'!E10))","v":2.5625801479615278E-2},{"$f":"IF(ISERROR(('A1-Sum'!G10-'A1-Sum'!F10)/'A1-Sum'!F10),0,(('A1-Sum'!G10-'A1-Sum'!F10)/'A1-Sum'!F10))","v":0},{"$f":"IF(ISERROR(('A1-Sum'!H10-'A1-Sum'!G10)/'A1-Sum'!G10),0,(('A1-Sum'!H10-'A1-Sum'!G10)/'A1-Sum'!G10))","v":-0.11217234635031308},{"$f":"IF(ISERROR(('A1-Sum'!I10-'A1-Sum'!F10)/'A1-Sum'!F10),0,(('A1-Sum'!I10-'A1-Sum'!F10)/'A1-Sum'!F10))","v":-8.9211681699320533E-2},{"$f":"IF(ISERROR(('A1-Sum'!J10-'A1-Sum'!I10)/'A1-Sum'!I10),0,(('A1-Sum'!J10-'A1-Sum'!I10)/'A1-Sum'!I10))","v":8.3137208896831183E-2},{"$f":"IF(ISERROR(('A1-Sum'!K10-'A1-Sum'!J10)/'A1-Sum'!J10),0,(('A1-Sum'!K10-'A1-Sum'!J10)/'A1-Sum'!J10))","v":2.0422397742479781E-2}]
["% Increase in Property Rates Revenue",null,null,null,{"$f":"IF(ISERROR(('A4-FinPerf RE'!D5-'A4-FinPerf RE'!C5)/'A4-FinPerf RE'!C5),0,(('A4-FinPerf RE'!D5-'A4-FinPerf RE'!C5)/'A4-FinPerf RE'!C5))","v":0},{"$f":"IF(ISERROR(('A4-FinPerf RE'!E5-'A4-FinPerf RE'!D5)/'A4-FinPerf RE'!D5),0,(('A4-FinPerf RE'!E5-'A4-FinPerf RE'!D5)/'A4-FinPerf RE'!D5))","v":0},{"$f":"IF(ISERROR(('A4-FinPerf RE'!F5-'A4-FinPerf RE'!E5)/'A4-FinPerf RE'!E5),0,(('A4-FinPerf RE'!F5-'A4-FinPerf RE'!E5)/'A4-FinPerf RE'!E5))","v":0},{"$f":"IF(ISERROR(('A4-FinPerf RE'!G5-'A4-FinPerf RE'!F5)/'A4-FinPerf RE'!F5),0,(('A4-FinPerf RE'!G5-'A4-FinPerf RE'!F5)/'A4-FinPerf RE'!F5))","v":0},{"$f":"IF(ISERROR(('A4-FinPerf RE'!H5-'A4-FinPerf RE'!G5)/'A4-FinPerf RE'!G5),0,(('A4-FinPerf RE'!H5-'A4-FinPerf RE'!G5)/'A4-FinPerf RE'!G5))","v":0},{"$f":"IF(ISERROR(('A4-FinPerf RE'!I5-'A4-FinPerf RE'!H5)/'A4-FinPerf RE'!H5),0,(('A4-FinPerf RE'!I5-'A4-FinPerf RE'!H5)/'A4-FinPerf RE'!H5))","v":0},{"$f":"IF(ISERROR(('A4-FinPerf RE'!J5-'A4-FinPerf RE'!G5)/'A4-FinPerf RE'!G5),0,(('A4-FinPerf RE'!J5-'A4-FinPerf RE'!G5)/'A4-FinPerf RE'!G5))","v":0},{"$f":"IF(ISERROR(('A4-FinPerf RE'!K5-'A4-FinPerf RE'!J5)/'A4-FinPerf RE'!J5),0,(('A4-FinPerf RE'!K5-'A4-FinPerf RE'!J5)/'A4-FinPerf RE'!J5))","v":0},{"$f":"IF(ISERROR(('A4-FinPerf RE'!L5-'A4-FinPerf RE'!K5)/'A4-FinPerf RE'!K5),0,(('A4-FinPerf RE'!L5-'A4-FinPerf RE'!K5)/'A4-FinPerf RE'!K5))","v":0}]
["% Increase in Electricity Revenue",null,null,null,{"$f":"IF(ISERROR(('A4-FinPerf RE'!D6-'A4-FinPerf RE'!C6)/'A4-FinPerf RE'!C6),0,(('A4-FinPerf RE'!D6-'A4-FinPerf RE'!C6)/'A4-FinPerf RE'!C6))","v":0},{"$f":"IF(ISERROR(('A4-FinPerf RE'!E6-'A4-FinPerf RE'!D6)/'A4-FinPerf RE'!D6),0,(('A4-FinPerf RE'!E6-'A4-FinPerf RE'!D6)/'A4-FinPerf RE'!D6))","v":0},{"$f":"IF(ISERROR(('A4-FinPerf RE'!F6-'A4-FinPerf RE'!E6)/'A4-FinPerf RE'!E6),0,(('A4-FinPerf RE'!F6-'A4-FinPerf RE'!E6)/'A4-FinPerf RE'!E6))","v":0},{"$f":"IF(ISERROR(('A4-FinPerf RE'!G6-'A4-FinPerf RE'!F6)/'A4-FinPerf RE'!F6),0,(('A4-FinPerf RE'!G6-'A4-FinPerf RE'!F6)/'A4-FinPerf RE'!F6))","v":0},{"$f":"IF(ISERROR(('A4-FinPerf RE'!H6-'A4-FinPerf RE'!G6)/'A4-FinPerf RE'!G6),0,(('A4-FinPerf RE'!H6-'A4-FinPerf RE'!G6)/'A4-FinPerf RE'!G6))","v":0},{"$f":"IF(ISERROR(('A4-FinPerf RE'!I6-'A4-FinPerf RE'!H6)/'A4-FinPerf RE'!H6),0,(('A4-FinPerf RE'!I6-'A4-FinPerf RE'!H6)/'A4-FinPerf RE'!H6))","v":0},{"$f":"IF(ISERROR(('A4-FinPerf RE'!J6-'A4-FinPerf RE'!G6)/'A4-FinPerf RE'!G6),0,(('A4-FinPerf RE'!J6-'A4-FinPerf RE'!G6)/'A4-FinPerf RE'!G6))","v":0},{"$f":"IF(ISERROR(('A4-FinPerf RE'!K6-'A4-FinPerf RE'!J6)/'A4-FinPerf RE'!J6),0,(('A4-FinPerf RE'!K6-'A4-FinPerf RE'!J6)/'A4-FinPerf RE'!J6))","v":0},{"$f":"IF(ISERROR(('A4-FinPerf RE'!L6-'A4-FinPerf RE'!K6)/'A4-FinPerf RE'!K6),0,(('A4-FinPerf RE'!L6-'A4-FinPerf RE'!K6)/'A4-FinPerf RE'!K6))","v":0}]
["% Increase in Property Rates & Services Charges",null,null,null,{"$f":"IF(ISERROR((('A1-Sum'!C5+'A1-Sum'!C6)-('A1-Sum'!B5+'A1-Sum'!B6))/('A1-Sum'!B5+'A1-Sum'!B6)),0,((('A1-Sum'!C5+'A1-Sum'!C6)-('A1-Sum'!B5+'A1-Sum'!B6))/('A1-Sum'!B5+'A1-Sum'!B6)))","v":0},{"$f":"IF(ISERROR((('A1-Sum'!D5+'A1-Sum'!D6)-('A1-Sum'!C5+'A1-Sum'!C6))/('A1-Sum'!C5+'A1-Sum'!C6)),0,((('A1-Sum'!D5+'A1-Sum'!D6)-('A1-Sum'!C5+'A1-Sum'!C6))/('A1-Sum'!C5+'A1-Sum'!C6)))","v":0},{"$f":"IF(ISERROR((('A1-Sum'!E5+'A1-Sum'!E6)-('A1-Sum'!D5+'A1-Sum'!D6))/('A1-Sum'!D5+'A1-Sum'!D6)),0,((('A1-Sum'!E5+'A1-Sum'!E6)-('A1-Sum'!D5+'A1-Sum'!D6))/('A1-Sum'!D5+'A1-Sum'!D6)))","v":0},{"$f":"IF(ISERROR((('A1-Sum'!F5+'A1-Sum'!F6)-('A1-Sum'!E5+'A1-Sum'!E6))/('A1-Sum'!E5+'A1-Sum'!E6)),0,((('A1-Sum'!F5+'A1-Sum'!F6)-('A1-Sum'!E5+'A1-Sum'!E6))/('A1-Sum'!E5+'A1-Sum'!E6)))","v":0},{"$f":"IF(ISERROR((('A1-Sum'!G5+'A1-Sum'!G6)-('A1-Sum'!F5+'A1-Sum'!F6))/('A1-Sum'!F5+'A1-Sum'!F6)),0,((('A1-Sum'!G5+'A1-Sum'!G6)-('A1-Sum'!F5+'A1-Sum'!F6))/('A1-Sum'!F5+'A1-Sum'!F6)))","v":0},{"$f":"IF(ISERROR((('A1-Sum'!H5+'A1-Sum'!H6)-('A1-Sum'!G5+'A1-Sum'!G6))/('A1-Sum'!G5+'A1-Sum'!G6)),0,((('A1-Sum'!H5+'A1-Sum'!H6)-('A1-Sum'!G5+'A1-Sum'!G6))/('A1-Sum'!G5+'A1-Sum'!G6)))","v":0},{"$f":"IF(ISERROR((('A1-Sum'!I5+'A1-Sum'!I6)-('A1-Sum'!F5+'A1-Sum'!F6))/('A1-Sum'!F5+'A1-Sum'!F6)),0,((('A1-Sum'!I5+'A1-Sum'!I6)-('A1-Sum'!F5+'A1-Sum'!F6))/('A1-Sum'!F5+'A1-Sum'!F6)))","v":0},{"$f":"IF(ISERROR((('A1-Sum'!J5+'A1-Sum'!J6)-('A1-Sum'!I5+'A1-Sum'!I6))/('A1-Sum'!I5+'A1-Sum'!I6)),0,((('A1-Sum'!J5+'A1-Sum'!J6)-('A1-Sum'!I5+'A1-Sum'!I6))/('A1-Sum'!I5+'A1-Sum'!I6)))","v":0},{"$f":"IF(ISERROR((('A1-Sum'!K5+'A1-Sum'!K6)-('A1-Sum'!J5+'A1-Sum'!J6))/('A1-Sum'!J5+'A1-Sum'!J6)),0,((('A1-Sum'!K5+'A1-Sum'!K6)-('A1-Sum'!J5+'A1-Sum'!J6))/('A1-Sum'!J5+'A1-Sum'!J6)))","v":0}]
["Expenditure"]
["% Increase in Total Operating Expenditure",null,null,null,{"$f":"IF(ISERROR(('A1-Sum'!C18-'A1-Sum'!B18)/'A1-Sum'!B18),0,(('A1-Sum'!C18-'A1-Sum'!B18)/'A1-Sum'!B18))","v":0},{"$f":"IF(ISERROR(('A1-Sum'!D18-'A1-Sum'!C18)/'A1-Sum'!C18),0,(('A1-Sum'!D18-'A1-Sum'!C18)/'A1-Sum'!C18))","v":9.0497948553751525E-2},{"$f":"IF(ISERROR(('A1-Sum'!E18-'A1-Sum'!D18)/'A1-Sum'!D18),0,(('A1-Sum'!E18-'A1-Sum'!D18)/'A1-Sum'!D18))","v":-6.4093597307376461E-4},{"$f":"IF(ISERROR(('A1-Sum'!F18-'A1-Sum'!E18)/'A1-Sum'!E18),0,(('A1-Sum'!F18-'A1-Sum'!E18)/'A1-Sum'!E18))","v":2.0054983093832753E-2},{"$f":"IF(ISERROR(('A1-Sum'!G18-'A1-Sum'!F18)/'A1-Sum'!F18),0,(('A1-Sum'!G18-'A1-Sum'!F18)/'A1-Sum'!F18))","v":0},{"$f":"IF(ISERROR(('A1-Sum'!H18-'A1-Sum'!G18)/'A1-Sum'!G18),0,(('A1-Sum'!H18-'A1-Sum'!G18)/'A1-Sum'!G18))","v":-0.18508142340597833},{"$f":"IF(ISERROR(('A1-Sum'!I18-'A1-Sum'!F18)/'A1-Sum'!F18),0,(('A1-Sum'!I18-'A1-Sum'!F18)/'A1-Sum'!F18))","v":-8.5803567522624496E-2},{"$f":"IF(ISERROR(('A1-Sum'!J18-'A1-Sum'!I18)/'A1-Sum'!I18),0,(('A1-Sum'!J18-'A1-Sum'!I18)/'A1-Sum'!I18))","v":9.114838671982943E-2},{"$f":"IF(ISERROR(('A1-Sum'!K18-'A1-Sum'!J18)/'A1-Sum'!J18),0,(('A1-Sum'!K18-'A1-Sum'!J18)/'A1-Sum'!J18))","v":2.0408059036248236E-2}]
["% Increase in Employee Costs",null,null,null,{"$f":"IF(ISERROR(('A1-Sum'!C11-'A1-Sum'!B11)/'A1-Sum'!B11),0,(('A1-Sum'!C11-'A1-Sum'!B11)/'A1-Sum'!B11))","v":0},{"$f":"IF(ISERROR(('A1-Sum'!D11-'A1-Sum'!C11)/'A1-Sum'!C11),0,(('A1-Sum'!D11-'A1-Sum'!C11)/'A1-Sum'!C11))","v":5.7652203405991469E-2},{"$f":"IF(ISERROR(('A1-Sum'!E11-'A1-Sum'!D11)/'A1-Sum'!D11),0,(('A1-Sum'!E11-'A1-Sum'!D11)/'A1-Sum'!D11))","v":-3.3121318575954225E-3},{"$f":"IF(ISERROR(('A1-Sum'!F11-'A1-Sum'!E11)/'A1-Sum'!E11),0,(('A1-Sum'!F11-'A1-Sum'!E11)/'A1-Sum'!E11))","v":2.5624276227967216E-2},{"$f":"IF(ISERROR(('A1-Sum'!G11-'A1-Sum'!F11)/'A1-Sum'!F11),0,(('A1-Sum'!G11-'A1-Sum'!F11)/'A1-Sum'!F11))","v":0},{"$f":"IF(ISERROR(('A1-Sum'!H11-'A1-Sum'!G11)/'A1-Sum'!G11),0,(('A1-Sum'!H11-'A1-Sum'!G11)/'A1-Sum'!G11))","v":-0.10268664376332924},{"$f":"IF(ISERROR(('A1-Sum'!I11-'A1-Sum'!F11)/'A1-Sum'!F11),0,(('A1-Sum'!I11-'A1-Sum'!F11)/'A1-Sum'!F11))","v":5.5337789159261047E-2},{"$f":"IF(ISERROR(('A1-Sum'!J11-'A1-Sum'!I11)/'A1-Sum'!I11),0,(('A1-Sum'!J11-'A1-Sum'!I11)/'A1-Sum'!I11))","v":8.7529301113275799E-3},{"$f":"IF(ISERROR(('A1-Sum'!K11-'A1-Sum'!J11)/'A1-Sum'!J11),0,(('A1-Sum'!K11-'A1-Sum'!J11)/'A1-Sum'!J11))","v":2.0615049914103609E-2}]
["% Increase in Electricity Bulk Purchases",null,null,null,{"$f":"IF(ISERROR(('SA1'!D103-'SA1'!C103)/'SA1'!C103),0,(('SA1'!D103-'SA1'!C103)/'SA1'!C103))","v":0},{"$f":"IF(ISERROR(('SA1'!E103-'SA1'!D103)/'SA1'!D103),0,(('SA1'!E103-'SA1'!D103)/'SA1'!D103))","v":0},{"$f":"IF(ISERROR(('SA1'!F103-'SA1'!E103)/'SA1'!E103),0,(('SA1'!F103-'SA1'!E103)/'SA1'!E103))","v":0},{"$f":"IF(ISERROR(('SA1'!G103-'SA1'!F103)/'SA1'!F103),0,(('SA1'!G103-'SA1'!F103)/'SA1'!F103))","v":0},{"$f":"IF(ISERROR(('SA1'!H103-'SA1'!G103)/'SA1'!G103),0,(('SA1'!H103-'SA1'!G103)/'SA1'!G103))","v":0},{"$f":"IF(ISERROR(('SA1'!I103-'SA1'!H103)/'SA1'!H103),0,(('SA1'!I103-'SA1'!H103)/'SA1'!H103))","v":0},{"$f":"IF(ISERROR(('SA1'!J103-'SA1'!G103)/'SA1'!G103),0,(('SA1'!J103-'SA1'!G103)/'SA1'!G103))","v":0},{"$f":"IF(ISERROR(('SA1'!K103-'SA1'!J103)/'SA1'!J103),0,(('SA1'!K103-'SA1'!J103)/'SA1'!J103))","v":0},{"$f":"IF(ISERROR(('SA1'!L103-'SA1'!K103)/'SA1'!K103),0,(('SA1'!L103-'SA1'!K103)/'SA1'!K103))","v":0}]
["Average Cost Per Budgeted Employee Position (Remuneration)",null,null,null,null,{"$f":"IF(ISERROR('A1-Sum'!D11/('SA24'!D36+'SA24'!E36-'SA24'!C5)),0,('A1-Sum'!D11/('SA24'!D36+'SA24'!E36-'SA24'!C5)))","v":0},{"$f":"IF(ISERROR('A1-Sum'!E11/('SA24'!F36-'SA24'!F5)),0,('A1-Sum'!E11/('SA24'!F36-'SA24'!F5)))","v":0},null,null,null,{"$f":"IF(ISERROR('A1-Sum'!I11/('SA24'!I36-'SA24'!I5)),0,('A1-Sum'!I11/('SA24'!I36-'SA24'!I5)))","v":0}]
["Average Cost Per Councillor (Remuneration)",null,null,null,null,{"$f":"IF(ISERROR('A1-Sum'!D12/'SA24'!C5),0,('A1-Sum'!D12/'SA24'!C5))","v":0},{"$f":"IF(ISERROR('A1-Sum'!E12/'SA24'!F5),0,('A1-Sum'!E12/'SA24'!F5))","v":0},null,null,null,{"$f":"IF(ISERROR('A1-Sum'!I12/'SA24'!I5),0,('A1-Sum'!I12/'SA24'!I5))","v":0}]
["R&M % of PPE",null,null,{"$f":"'A9-Asset'!C205","v":0},{"$f":"'A9-Asset'!D205","v":1.6E-2},{"$f":"'A9-Asset'!E205","v":3.7999999999999999E-2},{"$f":"'A9-Asset'!F205","v":1.1240000000000001},{"$f":"'A9-Asset'!G205","v":5.6000000000000001E-2},{"$f":"'A9-Asset'!H205","v":5.6000000000000001E-2},null,{"$f":"'A9-Asset'!I205","v":2.1000000000000001E-2},{"$f":"'A9-Asset'!J205","v":4.3999999999999997E-2},{"$f":"'A9-Asset'!K205","v":5.7000000000000002E-2}]
["Asset Renewal and R&M as a % of PPE",null,null,{"$f":"'A9-Asset'!C206","v":0},{"$f":"'A9-Asset'!D206","v":0.02},{"$f":"'A9-Asset'!E206","v":0.06},{"$f":"'A9-Asset'!F206","v":2.0499999999999998},{"$f":"'A9-Asset'!G206","v":0.08},{"$f":"'A9-Asset'!H206","v":0.08},null,{"$f":"'A9-Asset'!I206","v":0.06},{"$f":"'A9-Asset'!J206","v":0.04},{"$f":"'A9-Asset'!K206","v":0.05}]
["Debt Impairment % of Total Billable Revenue",null,null,{"$f":"'SA10'!D11","v":0},{"$f":"'SA10'!E11","v":0},{"$f":"'SA10'!F11","v":0},{"$f":"'SA10'!G11","v":0},{"$f":"'SA10'!H11","v":0},{"$f":"'SA10'!I11","v":0},{"$f":"'SA10'!J11","v":0},{"$f":"'SA10'!K11","v":0},{"$f":"'SA10'!L11","v":0},{"$f":"'SA10'!M11","v":0}]
["Capital Revenue"]
["Internally Funded & Other (R'000)",null,null,{"$f":"'A1-Sum'!B29+'A1-Sum'!B31","v":0},{"$f":"'A1-Sum'!C29+'A1-Sum'!C31","v":0},{"$f":"'A1-Sum'!D29+'A1-Sum'!D31","v":318484},{"$f":"'A1-Sum'!E29+'A1-Sum'!E31","v":404771},{"$f":"'A1-Sum'!F29+'A1-Sum'!F31","v":328000},{"$f":"'A1-Sum'!G29+'A1-Sum'!G31","v":328000},{"$f":"'A1-Sum'!H29+'A1-Sum'!H31","v":0},{"$f":"'A1-Sum'!I29+'A1-Sum'!I31","v":486000},{"$f":"'A1-Sum'!J29+'A1-Sum'!J31","v":21958},{"$f":"'A1-Sum'!K29+'A1-Sum'!K31","v":23144}]
["Borrowing (R'000)",null,null,{"$f":"'A1-Sum'!B30","v":0},{"$f":"'A1-Sum'!C30","v":0},{"$f":"'A1-Sum'!D30","v":0},{"$f":"'A1-Sum'!E30","v":0},{"$f":"'A1-Sum'!F30","v":0},{"$f":"'A1-Sum'!G30","v":0},{"$f":"'A1-Sum'!H30","v":0},{"$f":"'A1-Sum'!I30","v":0},{"$f":"'A1-Sum'!J30","v":0},{"$f":"'A1-Sum'!K30","v":0}]
["Grant Funding and Other (R'000)",null,null,{"$f":"'A1-Sum'!B28","v":0},{"$f":"'A1-Sum'!C28","v":0},{"$f":"'A1-Sum'!D28","v":0},{"$f":"'A1-Sum'!E28","v":0},{"$f":"'A1-Sum'!F28","v":0},{"$f":"'A1-Sum'!G28","v":0},{"$f":"'A1-Sum'!H28","v":0},{"$f":"'A1-Sum'!I28","v":0},{"$f":"'A1-Sum'!J28","v":0},{"$f":"'A1-Sum'!K28","v":0}]
["Internally Generated funds % of Non Grant Funding",null,null,{"$f":"IF(ISERROR(('A1-Sum'!B29+'A1-Sum'!B31)/('A1-Sum'!B32-'A1-Sum'!B28)),0,(('A1-Sum'!B29+'A1-Sum'!B31)/('A1-Sum'!B32-'A1-Sum'!B28)))","v":0},{"$f":"IF(ISERROR(('A1-Sum'!C29+'A1-Sum'!C31)/('A1-Sum'!C32-'A1-Sum'!C28)),0,(('A1-Sum'!C29+'A1-Sum'!C31)/('A1-Sum'!C32-'A1-Sum'!C28)))","v":0},{"$f":"IF(ISERROR(('A1-Sum'!D29+'A1-Sum'!D31)/('A1-Sum'!D32-'A1-Sum'!D28)),0,(('A1-Sum'!D29+'A1-Sum'!D31)/('A1-Sum'!D32-'A1-Sum'!D28)))","v":1},{"$f":"IF(ISERROR(('A1-Sum'!E29+'A1-Sum'!E31)/('A1-Sum'!E32-'A1-Sum'!E28)),0,(('A1-Sum'!E29+'A1-Sum'!E31)/('A1-Sum'!E32-'A1-Sum'!E28)))","v":1},{"$f":"IF(ISERROR(('A1-Sum'!F29+'A1-Sum'!F31)/('A1-Sum'!F32-'A1-Sum'!F28)),0,(('A1-Sum'!F29+'A1-Sum'!F31)/('A1-Sum'!F32-'A1-Sum'!F28)))","v":1},{"$f":"IF(ISERROR(('A1-Sum'!G29+'A1-Sum'!G31)/('A1-Sum'!G32-'A1-Sum'!G28)),0,(('A1-Sum'!G29+'A1-Sum'!G31)/('A1-Sum'!G32-'A1-Sum'!G28)))","v":1},{"$f":"IF(ISERROR(('A1-Sum'!H29+'A1-Sum'!H31)/('A1-Sum'!H32-'A1-Sum'!H28)),0,(('A1-Sum'!H29+'A1-Sum'!H31)/('A1-Sum'!H32-'A1-Sum'!H28)))","v":0},{"$f":"IF(ISERROR(('A1-Sum'!I29+'A1-Sum'!I31)/('A1-Sum'!I32-'A1-Sum'!I28)),0,(('A1-Sum'!I29+'A1-Sum'!I31)/('A1-Sum'!I32-'A1-Sum'!I28)))","v":1},{"$f":"IF(ISERROR(('A1-Sum'!J29+'A1-Sum'!J31)/('A1-Sum'!J32-'A1-Sum'!J28)),0,(('A1-Sum'!J29+'A1-Sum'!J31)/('A1-Sum'!J32-'A1-Sum'!J28)))","v":1},{"$f":"IF(ISERROR(('A1-Sum'!K29+'A1-Sum'!K31)/('A1-Sum'!K32-'A1-Sum'!K28)),0,(('A1-Sum'!K29+'A1-Sum'!K31)/('A1-Sum'!K32-'A1-Sum'!K28)))","v":1}]
["Borrowing % of Non Grant Funding",null,null,{"$f":"IF(ISERROR('A1-Sum'!B30/('A1-Sum'!B32-'A1-Sum'!B28)),0,('A1-Sum'!B30/('A1-Sum'!B32-'A1-Sum'!B28)))","v":0},{"$f":"IF(ISERROR('A1-Sum'!C30/('A1-Sum'!C32-'A1-Sum'!C28)),0,('A1-Sum'!C30/('A1-Sum'!C32-'A1-Sum'!C28)))","v":0},{"$f":"IF(ISERROR('A1-Sum'!D30/('A1-Sum'!D32-'A1-Sum'!D28)),0,('A1-Sum'!D30/('A1-Sum'!D32-'A1-Sum'!D28)))","v":0},{"$f":"IF(ISERROR('A1-Sum'!E30/('A1-Sum'!E32-'A1-Sum'!E28)),0,('A1-Sum'!E30/('A1-Sum'!E32-'A1-Sum'!E28)))","v":0},{"$f":"IF(ISERROR('A1-Sum'!F30/('A1-Sum'!F32-'A1-Sum'!F28)),0,('A1-Sum'!F30/('A1-Sum'!F32-'A1-Sum'!F28)))","v":0},{"$f":"IF(ISERROR('A1-Sum'!G30/('A1-Sum'!G32-'A1-Sum'!G28)),0,('A1-Sum'!G30/('A1-Sum'!G32-'A1-Sum'!G28)))","v":0},{"$f":"IF(ISERROR('A1-Sum'!H30/('A1-Sum'!H32-'A1-Sum'!H28)),0,('A1-Sum'!H30/('A1-Sum'!H32-'A1-Sum'!H28)))","v":0},{"$f":"IF(ISERROR('A1-Sum'!I30/('A1-Sum'!I32-'A1-Sum'!I28)),0,('A1-Sum'!I30/('A1-Sum'!I32-'A1-Sum'!I28)))","v":0},{"$f":"IF(ISERROR('A1-Sum'!J30/('A1-Sum'!J32-'A1-Sum'!J28)),0,('A1-Sum'!J30/('A1-Sum'!J32-'A1-Sum'!J28)))","v":0},{"$f":"IF(ISERROR('A1-Sum'!K30/('A1-Sum'!K32-'A1-Sum'!K28)),0,('A1-Sum'!K30/('A1-Sum'!K32-'A1-Sum'!K28)))","v":0}]
["Grant Funding % of Total Funding",null,null,{"$f":"IF(ISERROR('A1-Sum'!B28/'A1-Sum'!B32),0,('A1-Sum'!B28/'A1-Sum'!B32))","v":0},{"$f":"IF(ISERROR('A1-Sum'!C28/'A1-Sum'!C32),0,('A1-Sum'!C28/'A1-Sum'!C32))","v":0},{"$f":"IF(ISERROR('A1-Sum'!D28/'A1-Sum'!D32),0,('A1-Sum'!D28/'A1-Sum'!D32))","v":0},{"$f":"IF(ISERROR('A1-Sum'!E28/'A1-Sum'!E32),0,('A1-Sum'!E28/'A1-Sum'!E32))","v":0},{"$f":"IF(ISERROR('A1-Sum'!F28/'A1-Sum'!F32),0,('A1-Sum'!F28/'A1-Sum'!F32))","v":0},{"$f":"IF(ISERROR('A1-Sum'!G28/'A1-Sum'!G32),0,('A1-Sum'!G28/'A1-Sum'!G32))","v":0},{"$f":"IF(ISERROR('A1-Sum'!H28/'A1-Sum'!H32),0,('A1-Sum'!H28/'A1-Sum'!H32))","v":0},{"$f":"IF(ISERROR('A1-Sum'!I28/'A1-Sum'!I32),0,('A1-Sum'!I28/'A1-Sum'!I32))","v":0},{"$f":"IF(ISERROR('A1-Sum'!J28/'A1-Sum'!J32),0,('A1-Sum'!J28/'A1-Sum'!J32))","v":0},{"$f":"IF(ISERROR('A1-Sum'!K28/'A1-Sum'!K32),0,('A1-Sum'!K28/'A1-Sum'!K32))","v":0}]
["Capital Expenditure"]
["Total Capital Programme (R'000)",null,null,{"$f":"'A1-Sum'!B27","v":0},{"$f":"'A1-Sum'!C27","v":0},{"$f":"'A1-Sum'!D27","v":318484},{"$f":"'A1-Sum'!E27","v":404771},{"$f":"'A1-Sum'!F27","v":328000},{"$f":"'A1-Sum'!G27","v":328000},{"$f":"'A1-Sum'!H27","v":0},{"$f":"'A1-Sum'!I27","v":486000},{"$f":"'A1-Sum'!J27","v":21958},{"$f":"'A1-Sum'!K27","v":23144}]
["Asset Renewal",null,null,{"$f":"'A1-Sum'!B55","v":0},{"$f":"'A1-Sum'!C55","v":0},{"$f":"'A1-Sum'!D55","v":298030},{"$f":"'A1-Sum'!E55","v":374771},{"$f":"'A1-Sum'!F55","v":328000},{"$f":"'A1-Sum'!G55","v":328000},{"$f":"'A1-Sum'!H55","v":328000},{"$f":"'A1-Sum'!I55","v":486000},{"$f":"'A1-Sum'!J55","v":21958},{"$f":"'A1-Sum'!K55","v":23144}]
["Asset Renewal % of Total Capital Expenditure",null,null,{"$f":"IF(ISERROR('A1-Sum'!B55/'A1-Sum'!B32),0,('A1-Sum'!B55/'A1-Sum'!B32))","v":0},{"$f":"IF(ISERROR('A1-Sum'!C55/'A1-Sum'!C32),0,('A1-Sum'!C55/'A1-Sum'!C32))","v":0},{"$f":"IF(ISERROR('A1-Sum'!D55/'A1-Sum'!D32),0,('A1-Sum'!D55/'A1-Sum'!D32))","v":0.93577699350673815},{"$f":"IF(ISERROR('A1-Sum'!E55/'A1-Sum'!E32),0,('A1-Sum'!E55/'A1-Sum'!E32))","v":0.9258840183708813},{"$f":"IF(ISERROR('A1-Sum'!F55/'A1-Sum'!F32),0,('A1-Sum'!F55/'A1-Sum'!F32))","v":1},{"$f":"IF(ISERROR('A1-Sum'!G55/'A1-Sum'!G32),0,('A1-Sum'!G55/'A1-Sum'!G32))","v":1},{"$f":"IF(ISERROR('A1-Sum'!H55/'A1-Sum'!H32),0,('A1-Sum'!H55/'A1-Sum'!H32))","v":0},{"$f":"IF(ISERROR('A1-Sum'!I55/'A1-Sum'!I32),0,('A1-Sum'!I55/'A1-Sum'!I32))","v":1},{"$f":"IF(ISERROR('A1-Sum'!J55/'A1-Sum'!J32),0,('A1-Sum'!J55/'A1-Sum'!J32))","v":1},{"$f":"IF(ISERROR('A1-Sum'!K55/'A1-Sum'!K32),0,('A1-Sum'!K55/'A1-Sum'!K32))","v":1}]
["Cash"]
["Cash Receipts % of Rate Payer & Other",null,null,{"$f":"'SA10'!D10","v":0},{"$f":"'SA10'!E10","v":0},{"$f":"'SA10'!F10","v":0},{"$f":"'SA10'!G10","v":0},{"$f":"'SA10'!H10","v":2.4443902016411276},{"$f":"'SA10'!I10","v":2.4443902016411276},{"$f":"'SA10'!J10","v":0},{"$f":"'SA10'!K10","v":1.6083303979756334},{"$f":"'SA10'!L10","v":3.3945285023720797},{"$f":"'SA10'!M10","v":3.243886272939422}]
["Cash Coverage Ratio",null,null,{"$f":"'SA10'!D7","v":0},{"$f":"'SA10'!E7","v":0},{"$f":"'SA10'!F7","v":4.7304457812233007},{"$f":"'SA10'!G7","v":0},{"$f":"'SA10'!H7","v":12.819004005955543},{"$f":"'SA10'!I7","v":12.819004005955543},{"$f":"'SA10'!J7","v":-11.265359874126789},{"$f":"'SA10'!K7","v":0.53657764130826668},{"$f":"'SA10'!L7","v":1.0306616455908815},{"$f":"'SA10'!M7","v":1.4650794654650443}]
["Borrowing"]
[]
["Credit Rating (2009/10)",null,null,null,null,null,null,null,null,null,{"$f":"'SA8'!F6","v":0}]
["Capital Charges to Operating",null,null,{"$f":"'SA8'!C7","v":0},{"$f":"'SA8'!D7","v":5.2183427969875939E-3},{"$f":"'SA8'!E7","v":6.3167215635227501E-3},{"$f":"'SA8'!F7","v":4.2936109765779676E-3},{"$f":"'SA8'!G7","v":4.2091956293918787E-3},{"$f":"'SA8'!H7","v":4.2091956293918787E-3},{"$f":"'SA8'!I7","v":3.0542381840561752E-3},{"$f":"'SA8'!J7","v":1.2701399543400564E-3},{"$f":"'SA8'!K7","v":5.9811265816988556E-3},{"$f":"'SA8'!L7","v":6.1780224775427701E-3}]
["Borrowing Receipts % of Capital Expenditure",null,null,{"$f":"'SA10'!D13","v":0},{"$f":"'SA10'!E13","v":0},{"$f":"'SA10'!F13","v":0},{"$f":"'SA10'!G13","v":0},{"$f":"'SA10'!H13","v":0},{"$f":"'SA10'!I13","v":0},{"$f":"'SA10'!J13","v":0},{"$f":"'SA10'!K13","v":0},{"$f":"'SA10'!L13","v":0},{"$f":"'SA10'!M13","v":0}]
["Reserves"]
["Surplus/(Deficit)",null,null,{"$f":"'A8-ResRecon'!C19","v":0},{"$f":"'A8-ResRecon'!D19","v":-7341591},{"$f":"'A8-ResRecon'!E19","v":-9610368},{"$f":"'A8-ResRecon'!F19","v":0},{"$f":"'A8-ResRecon'!G19","v":5879033},{"$f":"'A8-ResRecon'!H19","v":5879033},{"$f":"'A8-ResRecon'!I19","v":20989630},{"$f":"'A8-ResRecon'!J19","v":1223023},{"$f":"'A8-ResRecon'!K19","v":10355664},{"$f":"'A8-ResRecon'!L19","v":10010687}]
["Free Services"]
["Free Basic Services as a % of Equitable Share",null,null,{"$f":"IF(ISERROR('A10-SerDel'!C60/'SA18'!C8),0,('A10-SerDel'!C60/'SA18'!C8))","v":0},{"$f":"IF(ISERROR('A10-SerDel'!D60/'SA18'!D8),0,('A10-SerDel'!D60/'SA18'!D8))","v":0},{"$f":"IF(ISERROR('A10-SerDel'!E60/'SA18'!E8),0,('A10-SerDel'!E60/'SA18'!E8))","v":0},{"$f":"IF(ISERROR('A10-SerDel'!F60/'SA18'!F8),0,('A10-SerDel'!F60/'SA18'!F8))","v":0},{"$f":"IF(ISERROR('A10-SerDel'!G60/'SA18'!G8),0,('A10-SerDel'!G60/'SA18'!G8))","v":0},{"$f":"IF(ISERROR('A10-SerDel'!H60/'SA18'!H8),0,('A10-SerDel'!H60/'SA18'!H8))","v":0},null,{"$f":"IF(ISERROR('A10-SerDel'!I60/'SA18'!I8),0,('A10-SerDel'!I60/'SA18'!I8))","v":0},{"$f":"IF(ISERROR('A10-SerDel'!J60/'SA18'!J8),0,('A10-SerDel'!J60/'SA18'!J8))","v":0},{"$f":"IF(ISERROR('A10-SerDel'!K60/'SA18'!K8),0,('A10-SerDel'!K60/'SA18'!K8))","v":0}]
["Free Services as a % of Operating Revenue \n(excl operational transfers)",null,null,{"$f":"IF(ISERROR('A10-SerDel'!C79/('A1-Sum'!B10-'A1-Sum'!B8)),0,('A10-SerDel'!C79/('A1-Sum'!B10-'A1-Sum'!B8)))","v":0},{"$f":"IF(ISERROR('A10-SerDel'!D79/('A1-Sum'!C10-'A1-Sum'!C8)),0,('A10-SerDel'!D79/('A1-Sum'!C10-'A1-Sum'!C8)))","v":0},{"$f":"IF(ISERROR('A10-SerDel'!E79/('A1-Sum'!D10-'A1-Sum'!D8)),0,('A10-SerDel'!E79/('A1-Sum'!D10-'A1-Sum'!D8)))","v":0},{"$f":"IF(ISERROR('A10-SerDel'!F79/('A1-Sum'!E10-'A1-Sum'!E8)),0,('A10-SerDel'!F79/('A1-Sum'!E10-'A1-Sum'!E8)))","v":0},{"$f":"IF(ISERROR('A10-SerDel'!G79/('A1-Sum'!F10-'A1-Sum'!F8)),0,('A10-SerDel'!G79/('A1-Sum'!F10-'A1-Sum'!F8)))","v":0},{"$f":"IF(ISERROR('A10-SerDel'!H79/('A1-Sum'!G10-'A1-Sum'!G8)),0,('A10-SerDel'!H79/('A1-Sum'!G10-'A1-Sum'!G8)))","v":0},null,{"$f":"IF(ISERROR('A10-SerDel'!I79/('A1-Sum'!I10-'A1-Sum'!I8)),0,('A10-SerDel'!I79/('A1-Sum'!I10-'A1-Sum'!I8)))","v":0},{"$f":"IF(ISERROR('A10-SerDel'!J79/('A1-Sum'!J10-'A1-Sum'!J8)),0,('A10-SerDel'!J79/('A1-Sum'!J10-'A1-Sum'!J8)))","v":0},{"$f":"IF(ISERROR('A10-SerDel'!K79/('A1-Sum'!K10-'A1-Sum'!K8)),0,('A10-SerDel'!K79/('A1-Sum'!K10-'A1-Sum'!K8)))","v":0}]
[]
["High Level Outcome of Funding Compliance"]
["Total Operating Revenue",null,null,{"$f":"D86","v":0},{"$f":"E86","v":68965758},67962784,67946987,69688183,69688183,{"$f":"J86","v":61871096},63471183,68748000,70151999]
["Total Operating Expenditure",null,null,{"$f":"D87","v":0},61976764,67585534,67542216,68896774,68896774,56145261,62985185,68726183,70128751]
["Surplus/(Deficit) Budgeted Operating Statement",null,null,0,6988994,377250,404771,791409,791409,5725835,485998,21817,23248]
["Surplus/(Deficit) Considering Reserves and Cash Backing",null,null,{"$f":"'A8-ResRecon'!C19","v":0},{"$f":"'A8-ResRecon'!D19","v":-7341591},{"$f":"'A8-ResRecon'!E19","v":-9610368},{"$f":"'A8-ResRecon'!F19","v":0},{"$f":"'A8-ResRecon'!G19","v":5879033},{"$f":"'A8-ResRecon'!H19","v":5879033},{"$f":"'A8-ResRecon'!I19","v":20989630},{"$f":"'A8-ResRecon'!J19","v":1223023},{"$f":"'A8-ResRecon'!K19","v":10355664},{"$f":"'A8-ResRecon'!L19","v":10010687}]
["MTREF Funded (1) / Unfunded (0)",null,15,{"$f":"IF(D133>=0,1,0)","v":1},{"$f":"IF(E133>=0,1,0)","v":0},0,1,1,1,1,1,1,1]
["MTREF Funded ü / Unfunded û",null,15,{"$f":"IF(D134=1,\"ü\",\"û\")","v":"ü"},{"$f":"IF(E134=1,\"ü\",\"û\")","v":"û"},"û","ü","ü","ü","ü","ü","ü","ü"]
[]
[{"$f":"head27a","v":"References"}]
["15. Subject to figures provided in Schedule."]

{"sheet":"SA11","index":39,"n_rows":73,"n_cols":11,"rows_kept":73,"cut":false,"hidden":false,"merged":[[1,5,1,7],[1,8,1,10],[1,1,3,1],[1,0,2,0]]}
[{"$f":"muni&\" - \"&TableA11","v":"DC16 Xhariep - Supporting Table SA11 Property rates summary"}]
[{"$f":"desc","v":"Description"},{"$f":"head27","v":"Ref"},{"$f":"head1b","v":"2017/18"},{"$f":"head1A","v":"2018/19"},{"$f":"Head1","v":"2019/20"},{"$f":"Head2","v":"Current Year 2020/21"},null,null,{"$f":"Head3","v":"2021/22 Medium Term Revenue & Expenditure Framework"}]
[null,null,{"$f":"Head5","v":"Audited Outcome"},{"$f":"Head5","v":"Audited Outcome"},{"$f":"Head5","v":"Audited Outcome"},{"$f":"Head6","v":"Original Budget"},{"$f":"Head7","v":"Adjusted Budget"},{"$f":"Head8","v":"Full Year Forecast"},{"$f":"Head9","v":"Budget Year 2021/22"},{"$f":"Head10","v":"Budget Year +1 2022/23"},{"$f":"Head11","v":"Budget Year +2 2023/24"}]
[]
["Valuation:",1]
["Date of valuation:"]
["Financial year valuation used"]
["Municipal by-laws s6 in place? (Y/N)","2"]
["Municipal/assistant valuer appointed? (Y/N)"]
["Municipal partnership s38 used? (Y/N)"]
["No. of assistant valuers (FTE)",3]
["No. of data collectors (FTE)",3]
["No. of internal valuers (FTE)",3]
["No. of external valuers (FTE)",3]
["No. of additional valuers (FTE)",4]
["Valuation appeal board established? (Y/N)"]
["Implementation time of new valuation roll (mths)"]
["No. of properties",5]
["No. of sectional title values",5]
["No. of unreasonably difficult properties s7(2)"]
["No. of supplementary valuations"]
["No. of valuation roll amendments"]
["No. of objections by rate payers"]
["No. of appeals by rate payers"]
["No. of successful objections",8]
["No. of successful objections > 10%",8]
["Supplementary valuation"]
["Public service infrastructure value (Rm)",5]
["Municipality owned property value (Rm)"]
["Valuation reductions:"]
["Valuation reductions-public infrastructure (Rm)"]
["Valuation reductions-nature reserves/park (Rm)"]
["Valuation reductions-mineral rights (Rm)"]
["Valuation reductions-R15,000 threshold (Rm)"]
["Valuation reductions-public worship (Rm)"]
["Valuation reductions-other (Rm)"]
["Total valuation reductions:",null,{"$f":"SUM(C31:C36)","v":0},{"$f":"SUM(D31:D36)","v":0},0,0,0,0,0,0,0]
["Total value used for rating (Rm)",5]
["Total land value (Rm)",5]
["Total value of improvements (Rm)",5]
["Total market value (Rm)",5]
[]
["Rating:"]
["Residential rate used to determine rate for other categories? (Y/N)"]
["Differential rates used? (Y/N)",5]
["Limit on annual rate increase (s20)? (Y/N)"]
["Special rating area used? (Y/N)"]
["Phasing-in properties s21 (number)"]
["Rates policy accompanying budget? (Y/N)"]
["Fixed amount minimum value (R'000)"]
["Non-residential prescribed ratio s19? (%)"]
[]
["Rate revenue:"]
["Rate revenue budget (R '000)",6]
["Rate revenue expected to collect (R'000)",6]
["Expected cash collection rate (%)"]
["Special rating areas (R'000)",7]
["Rebates, exemptions - indigent (R'000)"]
["Rebates, exemptions - pensioners (R'000)"]
["Rebates, exemptions - bona fide farm. (R'000)"]
["Rebates, exemptions - other (R'000)"]
["Phase-in reductions/discounts (R'000)"]
["Total rebates,exemptns,reductns,discs (R'000)",null,{"$f":"SUM(C58:C62)","v":0},{"$f":"SUM(D58:D62)","v":0},0,0,0,0,0,0,0]
[]
[{"$f":"head27a","v":"References"}]
["1. All numbers to be expressed as whole numbers except FTEs and Rates in the Rand"]
["2. To give effect to rates policy"]
["3. Full Time Equivalent (FTE)  should be expressed to one decimal place and takes into account full time and part time staff"]
["4. Required to implement new system (FTE)"]
["5. Provide relevant information for historical comparisons. Must reconcile to the total of Table SA12"]
[{"$f":"\"6. Current and budget year must reconcile to \"&'Template names'!F103","v":"6. Current and budget year must reconcile to Table A4 Budgeted Financial Performance (revenue and expenditure)"}]
["7. Included in rate revenue budget"]
["8. In favour of the rate-payer"]

{"sheet":"SA12a","index":40,"n_rows":56,"n_cols":19,"rows_kept":56,"cut":false,"hidden":false,"merged":[]}
[{"$f":"muni&\" - \"&TableA12a","v":"DC16 Xhariep - Supporting Table SA12a Property rates by category (current year)"}]
[{"$f":"desc","v":"Description"},{"$f":"head27","v":"Ref"},"Resi.","Indust.","Bus. & Comm.","Farm props.","State-owned ","Muni props.","Public service infra.","Private owned towns","Formal & Informal Settle.","Comm. Land","State trust land","Section 8(2)(n) (note 1)","Protect. Areas","National Monum/ts","Public benefit organs.","Mining Props."]
[{"$f":"Head2","v":"Current Year 2020/21"}]
["Valuation:"]
["No. of properties"]
["No. of sectional title property values"]
["No. of unreasonably difficult properties s7(2)"]
["No. of supplementary valuations"]
["Supplementary valuation (Rm)"]
["No. of valuation roll amendments"]
["No. of objections by rate-payers"]
["No. of appeals by rate-payers"]
["No. of appeals by rate-payers finalised"]
["No. of successful objections",5]
["No. of successful objections > 10%",5]
["Estimated no. of properties not valued"]
["Years since last valuation (select)"]
["Frequency of valuation (select)"]
["Method of valuation used (select)"]
["Base of valuation (select)"]
["Phasing-in properties s21 (number)"]
["Combination of rating types used? (Y/N)"]
["Flat rate used? (Y/N)"]
["Is balance rated by uniform rate/variable rate?"]
["Valuation reductions:"]
["Valuation reductions-public infrastructure (Rm)"]
["Valuation reductions-nature reserves/park (Rm)"]
["Valuation reductions-mineral rights (Rm)"]
["Valuation reductions-R15,000 threshold (Rm)"]
["Valuation reductions-public worship (Rm)"]
["Valuation reductions-other (Rm)",2]
["Total valuation reductions:"]
["Total value used for rating (Rm)",6]
["Total land value (Rm)",6]
["Total value of improvements (Rm)",6]
["Total market value (Rm)",6]
["Rating:"]
["Average rate",3]
["Rate revenue budget (R '000)",null,null,null,null,null,null,null,null,null,null,null,null,null,null,null,null,null,{"$f":"SUM(C39:R39)","v":0}]
["Rate revenue expected to collect (R'000)",null,null,null,null,null,null,null,null,null,null,null,null,null,null,null,null,null,{"$f":"SUM(C40:R40)","v":0}]
["Expected cash collection rate (%)",4]
["Special rating areas (R'000)"]
["Rebates, exemptions - indigent (R'000)"]
["Rebates, exemptions - pensioners (R'000)"]
["Rebates, exemptions - bona fide farm. (R'000)"]
["Rebates, exemptions - other (R'000)"]
["Phase-in reductions/discounts (R'000)"]
["Total rebates,exemptns,reductns,discs (R'000)"]
[]
[{"$f":"head27a","v":"References"}]
["1. Land & Assistance Act, Restitution of Land Rights, Communual Property Associations"]
["2. Include value of additional reductions is 'free' value greater than MPRA minimum."]
["3. Average rate - cents in  the Rand. Eg 10.26 cents in the Rand is 0.1026, expressed to 6 decimal places maximum"]
["4. Include arrears collections"]
["5. In favour of the rate-payer"]
["6. Provide relevant information for historical comparisons."]

{"sheet":"SA12b","index":41,"n_rows":56,"n_cols":18,"rows_kept":56,"cut":false,"hidden":false,"merged":[]}
[{"$f":"muni&\" - \"&TableA12b","v":"DC16 Xhariep - Supporting Table SA12b Property rates by category (budget year)"}]
[{"$f":"desc","v":"Description"},{"$f":"head27","v":"Ref"},"Resi.","Indust.","Bus. & Comm.","Farm props.","State-owned ","Muni props.","Public service infra.","Private owned towns","Formal & Informal Settle.","Comm. Land","State trust land","Section 8(2)(n) (note 1)","Protect. Areas","National Monum/ts","Public benefit organs.","Mining Props."]
[{"$f":"Head9","v":"Budget Year 2021/22"}]
["Valuation:"]
["No. of properties"]
["No. of sectional title property values"]
["No. of unreasonably difficult properties s7(2)"]
["No. of supplementary valuations"]
["Supplementary valuation (Rm)"]
["No. of valuation roll amendments"]
["No. of objections by rate-payers"]
["No. of appeals by rate-payers"]
["No. of appeals by rate-payers finalised"]
["No. of successful objections",5]
["No. of successful objections > 10%",5]
["Estimated no. of properties not valued"]
["Years since last valuation (select)"]
["Frequency of valuation (select)"]
["Method of valuation used (select)"]
["Base of valuation (select)"]
["Phasing-in properties s21 (number)"]
["Combination of rating types used? (Y/N)"]
["Flat rate used? (Y/N)"]
["Is balance rated by uniform rate/variable rate?"]
["Valuation reductions:"]
["Valuation reductions-public infrastructure (Rm)"]
["Valuation reductions-nature reserves/park (Rm)"]
["Valuation reductions-mineral rights (Rm)"]
["Valuation reductions-R15,000 threshold (Rm)"]
["Valuation reductions-public worship (Rm)"]
["Valuation reductions-other (Rm)",2]
["Total valuation reductions:"]
["Total value used for rating (Rm)",6]
["Total land value (Rm)",6]
["Total value of improvements (Rm)",6]
["Total market value (Rm)",6]
["Rating:"]
["Average rate",3]
["Rate revenue budget (R '000)"]
["Rate revenue expected to collect (R'000)"]
["Expected cash collection rate (%)",4]
["Special rating areas (R'000)"]
["Rebates, exemptions - indigent (R'000)"]
["Rebates, exemptions - pensioners (R'000)"]
["Rebates, exemptions - bona fide farm. (R'000)"]
["Rebates, exemptions - other (R'000)"]
["Phase-in reductions/discounts (R'000)"]
["Total rebates,exemptns,reductns,discs (R'000)"]
[]
[{"$f":"head27a","v":"References"}]
["1. Land & Assistance Act, Restitution of Land Rights, Communual Property Associations"]
["2. Include value of additional reductions is 'free' value greater than MPRA minimum."]
["3. Average rate - cents in  the Rand. Eg 10.26 cents in the Rand is 0.1026, expressed to 6 decimal places maximum"]
["4. Include arrears collections"]
["5. In favour of the rate-payer"]
["6. Provide relevant information for historical comparisons."]

{"sheet":"SA13a","index":42,"n_rows":90,"n_cols":19,"rows_kept":90,"cut":false,"hidden":false,"merged":[[93,6,94,6],[93,0,94,0],[93,1,94,1],[93,2,94,2],[93,3,94,3],[93,4,94,4],[93,5,94,5],[1,6,2,6],[1,0,2,0],[1,1,2,1],[1,2,2,2],[1,3,2,3],[1,4,2,4],[1,5,2,5]]}
[{"$f":"muni&\" - \"&TableA13a","v":"DC16 Xhariep - Supporting Table SA13a Service Tariffs by category"}]
[{"$f":"desc","v":"Description"},{"$f":"head27","v":"Ref"},"Provide description of tariff structure where appropriate",{"$f":"head1b","v":"2017/18"},{"$f":"head1A","v":"2018/19"},{"$f":"Head1","v":"2019/20"},{"$f":"Head2","v":"Current Year 2020/21"},{"$f":"Head3","v":"2021/22 Medium Term Revenue & Expenditure Framework"}]
[null,null,null,null,null,null,null,{"$f":"Head9","v":"Budget Year 2021/22"},{"$f":"Head10","v":"Budget Year +1 2022/23"},{"$f":"Head11","v":"Budget Year +2 2023/24"}]
["Property rates (rate in the Rand)",1]
["Residential properties"]
["Residential properties - vacant land"]
["Formal/informal settlements"]
["Small holdings"]
["Farm properties - used"]
["Farm properties - not used"]
["Industrial properties"]
["Business and commercial properties"]
["Communal land - residential"]
["Communal land - small holdings"]
["Communal land - farm property"]
["Communal land - business and commercial"]
["Communal land - other"]
["State-owned properties"]
["Municipal properties"]
["Public service infrastructure"]
["Privately owned towns serviced by the owner"]
["State trust land"]
["Restitution and redistribution properties"]
["Protected areas"]
["National monuments properties"]
[]
["Exemptions, reductions and rebates (Rands)"]
["Residential properties"]
["R15 000 threshhold rebate",null,null,15000,15000,15000,15000,15000,15000,15000]
["General residential rebate"]
["Indigent rebate or exemption"]
["Pensioners/social grants rebate or exemption "]
["Temporary relief rebate or exemption"]
[" Bona fide farmers rebate or exemption"]
["Other rebates or exemptions",2]
[]
["Water tariffs"]
["Domestic"]
["Basic charge/fixed fee (Rands/month)",null,null,null,null,null,null,null,null,null,null,null,null,null,null,null,null,null,{"$f":"SUM(C39:R39)","v":0}]
["Service point - vacant land (Rands/month)",null,null,null,null,null,null,null,null,null,null,null,null,null,null,null,null,null,{"$f":"SUM(C40:R40)","v":0}]
["Water usage - flat rate tariff (c/kl)"]
["Water usage - life line tariff",null,"(describe structure)"]
["Water usage - Block 1 (c/kl)",null," (fill in thresholds)"]
["Water usage - Block 2 (c/kl)",null," (fill in thresholds)"]
["Water usage - Block 3 (c/kl)",null," (fill in thresholds)"]
["Water usage - Block 4 (c/kl)",null," (fill in thresholds)"]
["Other",2]
[]
["Waste water tariffs"]
["Domestic"]
["Basic charge/fixed fee (Rands/month)"]
["Service point - vacant land (Rands/month)"]
["Waste water - flat rate tariff (c/kl)"]
["Volumetric charge - Block 1 (c/kl)",null,"(fill in structure)"]
["Volumetric charge - Block 2 (c/kl)",null,"(fill in structure)"]
["Volumetric charge - Block 3 (c/kl)",null,"(fill in structure)"]
["Volumetric charge - Block 4 (c/kl)",null,"(fill in structure)"]
["Other",2]
[]
["Electricity tariffs"]
["Domestic"]
["Basic charge/fixed fee (Rands/month)"]
["Service point - vacant land (Rands/month)"]
["FBE",null,"(how is this targeted?)"]
["Life-line tariff - meter",null,"(describe structure)"]
["Life-line tariff - prepaid",null,"(describe structure)"]
["Flat rate tariff - meter (c/kwh)"]
["Flat rate tariff - prepaid(c/kwh)"]
["Meter - IBT Block 1 (c/kwh)",null,"(fill in thresholds)"]
["Meter - IBT Block 2 (c/kwh)",null,"(fill in thresholds)"]
["Meter - IBT Block 3 (c/kwh)",null,"(fill in thresholds)"]
["Meter - IBT Block 4 (c/kwh)",null,"(fill in thresholds)"]
["Meter - IBT Block 5 (c/kwh)",null,"(fill in thresholds)"]
["Prepaid - IBT Block 1 (c/kwh)",null,"(fill in thresholds)"]
["Prepaid - IBT Block 2 (c/kwh)",null,"(fill in thresholds)"]
["Prepaid - IBT Block 3 (c/kwh)",null,"(fill in thresholds)"]
["Prepaid - IBT Block 4 (c/kwh)",null,"(fill in thresholds)"]
["Prepaid - IBT Block 5 (c/kwh)",null,"(fill in thresholds)"]
["Other",2]
[]
["Waste management tariffs"]
["Domestic"]
["Street cleaning charge"]
["Basic charge/fixed fee"]
["80l bin - once a week"]
["250l bin - once a week"]
[]
[{"$f":"head27a","v":"References"}]
["1. If properties are not rated or zero rated this must be indicated as such"]
["2.Please provide detailed descriptions on Sheet SA13b"]

{"sheet":"SA13b","index":43,"n_rows":50,"n_cols":19,"rows_kept":50,"cut":false,"hidden":false,"merged":[[94,0,95,0],[1,0,2,0],[1,1,2,1],[1,2,2,2],[1,3,2,3],[94,1,95,1],[94,2,95,2],[94,3,95,3],[94,5,95,5],[94,6,95,6],[1,6,2,6],[1,5,2,5],[1,4,2,4],[94,4,95,4]]}
[{"$f":"muni&\" - \"&TableA13b","v":"DC16 Xhariep - Supporting Table SA13b Service Tariffs by category - explanatory"}]
[{"$f":"desc","v":"Description"},{"$f":"head27","v":"Ref"},"Provide description of tariff structure where appropriate",{"$f":"head1b","v":"2017/18"},{"$f":"head1A","v":"2018/19"},{"$f":"Head1","v":"2019/20"},{"$f":"Head2","v":"Current Year 2020/21"},{"$f":"Head3","v":"2021/22 Medium Term Revenue & Expenditure Framework"}]
[null,null,null,null,null,null,null,{"$f":"Head9","v":"Budget Year 2021/22"},{"$f":"Head10","v":"Budget Year +1 2022/23"},{"$f":"Head11","v":"Budget Year +2 2023/24"}]
["Exemptions, reductions and rebates (Rands)"]
["[Insert lines as applicable]"]
[]
[]
[]
[]
[]
[]
[]
[]
["Water tariffs"]
["[Insert blocks as applicable]",null," (fill in thresholds)"]
[null,null," (fill in thresholds)"]
[null,null," (fill in thresholds)"]
[null,null," (fill in thresholds)"]
[null,null," (fill in thresholds)"]
[null,null," (fill in thresholds)"]
[null,null," (fill in thresholds)"]
[null,null," (fill in thresholds)"]
[null,null," (fill in thresholds)"]
[null,null," (fill in thresholds)"]
[]
["Waste water tariffs"]
["[Insert blocks as applicable]",null,"(fill in structure)"]
[null,null,"(fill in structure)"]
[null,null,"(fill in structure)"]
[null,null,"(fill in structure)"]
[null,null,"(fill in structure)"]
[null,null,"(fill in structure)"]
[null,null,"(fill in structure)"]
[null,null,"(fill in structure)"]
[null,null,"(fill in structure)"]
[]
["Electricity tariffs"]
["[Insert blocks as applicable]",null,"(fill in thresholds)"]
[null,null,"(fill in thresholds)",null,null,null,null,null,null,null,null,null,null,null,null,null,null,null,{"$f":"SUM(C39:R39)","v":0}]
[null,null,"(fill in thresholds)",null,null,null,null,null,null,null,null,null,null,null,null,null,null,null,{"$f":"SUM(C40:R40)","v":0}]
[null,null,"(fill in thresholds)"]
[null,null,"(fill in thresholds)"]
[null,null,"(fill in thresholds)"]
[null,null,"(fill in thresholds)"]
[null,null,"(fill in thresholds)"]
[null,null,"(fill in thresholds)"]
[null,null,"(fill in thresholds)"]
[null,null,"(fill in thresholds)"]
[null,null,"(fill in thresholds)"]
[null,null,"(fill in thresholds)"]

{"sheet":"SA14","index":44,"n_rows":54,"n_cols":12,"rows_kept":54,"cut":false,"hidden":false,"merged":[[1,1,3,1],[1,5,1,7],[1,0,2,0]]}
[{"$f":"muni&\" - \"&TableA14","v":"DC16 Xhariep - Supporting Table SA14 Household bills"}]
[{"$f":"desc","v":"Description"},{"$f":"head27","v":"Ref"},{"$f":"head1b","v":"2017/18"},{"$f":"head1A","v":"2018/19"},{"$f":"Head1","v":"2019/20"},{"$f":"Head2","v":"Current Year 2020/21"},null,null,{"$f":"Head3","v":"2021/22 Medium Term Revenue & Expenditure Framework"}]
[null,null,{"$f":"Head5","v":"Audited Outcome"},{"$f":"Head5","v":"Audited Outcome"},{"$f":"Head5","v":"Audited Outcome"},{"$f":"Head6","v":"Original Budget"},{"$f":"Head7","v":"Adjusted Budget"},{"$f":"Head8","v":"Full Year Forecast"},{"$f":"Head9","v":"Budget Year 2021/22"},{"$f":"Head9","v":"Budget Year 2021/22"},{"$f":"Head10","v":"Budget Year +1 2022/23"},{"$f":"Head11","v":"Budget Year +2 2023/24"}]
["Rand/cent",null,null,null,null,null,null,null,"% incr."]
["Monthly Account for Household - 'Middle Income Range'",1]
["Rates and services charges:"]
["Property rates"]
["Electricity: Basic levy"]
["Electricity: Consumption"]
["Water: Basic levy"]
["Water: Consumption"]
["Sanitation"]
["Refuse removal"]
["Other"]
["sub-total",null,{"$f":"SUM(C7:C14)","v":0},{"$f":"SUM(D7:D14)","v":0},{"$f":"SUM(E7:E14)","v":0},{"$f":"SUM(F7:F14)","v":0},{"$f":"SUM(G7:G14)","v":0},0,{"$f":"IF(ISERROR(ROUND((J15-F15)/F15,3)),0,(ROUND((J15-F15)/F15,3)))","v":0},0,0,0]
["VAT on Services"]
["Total large household bill:",null,{"$f":"SUM(C15:C16)","v":0},{"$f":"SUM(D15:D16)","v":0},{"$f":"SUM(E15:E16)","v":0},{"$f":"SUM(F15:F16)","v":0},{"$f":"SUM(G15:G16)","v":0},0,{"$f":"IF(ISERROR(ROUND((J17-F17)/F17,3)),0,(ROUND((J17-F17)/F17,3)))","v":0},0,0,0]
["% increase/-decrease",null,null,{"$f":"IF(ISERROR((D17/C17)-1),0,((D17/C17)-1))","v":0},{"$f":"IF(ISERROR((E17/D17)-1),0,((E17/D17)-1))","v":0},{"$f":"IF(ISERROR((F17/E17)-1),0,((F17/E17)-1))","v":0},{"$f":"IF(ISERROR((G17/F17)-1),0,((G17/F17)-1))","v":0},{"$f":"IF(ISERROR((H17/G17)-1),0,((H17/G17)-1))","v":0},null,{"$f":"IF(ISERROR((J17/H17)-1),0,((J17/H17)-1))","v":0},{"$f":"IF(ISERROR((K17/J17)-1),0,((K17/J17)-1))","v":0},{"$f":"IF(ISERROR((L17/K17)-1),0,((L17/K17)-1))","v":0}]
[]
["Monthly Account for Household - 'Affordable Range' ",2]
[{"$f":"A6","v":"Rates and services charges:"}]
[{"$f":"A7","v":"Property rates"}]
["Electricity: Basic levy"]
["Electricity: Consumption"]
["Water: Basic levy"]
["Water: Consumption"]
["Sanitation"]
["Refuse removal"]
["Other"]
["sub-total",null,{"$f":"SUM(C22:C29)","v":0},0,0,0,0,0,{"$f":"IF(ISERROR(ROUND((J30-F30)/F30,3)),0,(ROUND((J30-F30)/F30,3)))","v":0},{"$f":"SUM(J22:J29)","v":0},{"$f":"SUM(K22:K29)","v":0},{"$f":"SUM(L22:L29)","v":0}]
["VAT on Services"]
["Total small household bill:",null,{"$f":"SUM(C30:C31)","v":0},0,0,0,0,0,{"$f":"IF(ISERROR(ROUND((J32-F32)/F32,3)),0,(ROUND((J32-F32)/F32,3)))","v":0},{"$f":"SUM(J30:J31)","v":0},{"$f":"SUM(K30:K31)","v":0},{"$f":"SUM(L30:L31)","v":0}]
["% increase/-decrease",null,null,{"$f":"IF(ISERROR((D32/C32)-1),0,((D32/C32)-1))","v":0},{"$f":"IF(ISERROR((E32/D32)-1),0,((E32/D32)-1))","v":0},{"$f":"IF(ISERROR((F32/E32)-1),0,((F32/E32)-1))","v":0},{"$f":"IF(ISERROR((G32/F32)-1),0,((G32/F32)-1))","v":0},{"$f":"IF(ISERROR((H32/G32)-1),0,((H32/G32)-1))","v":0},null,{"$f":"IF(ISERROR((J32/H32)-1),0,((J32/H32)-1))","v":0},{"$f":"IF(ISERROR((K32/J32)-1),0,((K32/J32)-1))","v":0},{"$f":"IF(ISERROR((L32/K32)-1),0,((L32/K32)-1))","v":0}]
[null,null,null,null,{"$f":"IF(ISERROR((E33/D33)-1),0,((E33/D33)-1))","v":0},{"$f":"IF(ISERROR((F33/E33)-1),0,((F33/E33)-1))","v":0},{"$f":"IF(ISERROR((G33/F33)-1),0,((G33/F33)-1))","v":0},{"$f":"IF(ISERROR((H33/G33)-1),0,((H33/G33)-1))","v":0}]
["Monthly Account for Household - 'Indigent' Household receiving free basic services",3]
[{"$f":"A6","v":"Rates and services charges:"}]
[{"$f":"A7","v":"Property rates"},null,null,null,null,null,null,null,{"$f":"IF(J37>0,ROUND((J37-F37)/F37,3),\"\")","v":""}]
["Electricity: Basic levy",null,null,null,null,null,null,null,{"$f":"IF(J38>0,ROUND((J38-F38)/F38,3),\"\")","v":""}]
["Electricity: Consumption",null,null,null,null,null,null,null,""]
["Water: Basic levy",null,null,null,null,null,null,null,""]
["Water: Consumption",null,null,null,null,null,null,null,""]
["Sanitation",null,null,null,null,null,null,null,""]
["Refuse removal",null,null,null,null,null,null,null,""]
["Other",null,null,null,null,null,null,null,""]
["sub-total",null,{"$f":"SUM(C37:C44)","v":0},{"$f":"SUM(D37:D44)","v":0},{"$f":"SUM(E37:E44)","v":0},{"$f":"SUM(F37:F44)","v":0},{"$f":"SUM(G37:G44)","v":0},0,{"$f":"IF(ISERROR(ROUND((J45-F45)/F45,3)),0,(ROUND((J45-F45)/F45,3)))","v":0},0,0,0]
["VAT on Services",null,null,null,null,null,null,null,{"$f":"IF(J46>0,I13ROUND((J46-F46)/F46,3),\"\")","v":""}]
["Total small household bill:",null,{"$f":"SUM(C45:C46)","v":0},{"$f":"SUM(D45:D46)","v":0},{"$f":"SUM(E45:E46)","v":0},{"$f":"SUM(F45:F46)","v":0},{"$f":"SUM(G45:G46)","v":0},0,{"$f":"IF(ISERROR(ROUND((J47-F47)/F47,3)),0,(ROUND((J47-F47)/F47,3)))","v":0},0,0,0]
[{"$f":"A18","v":"% increase/-decrease"},null,null,{"$f":"IF(ISERROR((D47/C47)-1),0,((D47/C47)-1))","v":0},{"$f":"IF(ISERROR((E47/D47)-1),0,((E47/D47)-1))","v":0},{"$f":"IF(ISERROR((F47/E47)-1),0,((F47/E47)-1))","v":0},{"$f":"IF(ISERROR((G47/F47)-1),0,((G47/F47)-1))","v":0},{"$f":"IF(ISERROR((H47/G47)-1),0,((H47/G47)-1))","v":0},null,{"$f":"IF(ISERROR((J47/H47)-1),0,((J47/H47)-1))","v":0},{"$f":"IF(ISERROR((K47/J47)-1),0,((K47/J47)-1))","v":0},{"$f":"IF(ISERROR((L47/K47)-1),0,((L47/K47)-1))","v":0}]
[]
[{"$f":"head27a","v":"References"}]
["1. Use as basis property value of R700 000, 1 000 kWh electricity and 30kl water"]
["2. Use as basis property value  of R500 000 and R700 000, 500 kWh electricity and 25kl water"]
["3. Use as basis property value of R 300 000, 350kWh electricity and 20kl water (50 kWh electricity and 6 kl water free)"]
["4. Note this is for a SINGLE household."]

{"sheet":"SA15","index":45,"n_rows":36,"n_cols":29,"rows_kept":36,"cut":false,"hidden":false,"merged":[[1,5,1,7],[1,8,1,10],[1,1,3,1],[1,0,2,0]]}
[{"$f":"muni&\" - \"&TableA15","v":"DC16 Xhariep - Supporting Table SA15 Investment particulars by type"}]
["Investment type",{"$f":"head27","v":"Ref"},{"$f":"head1b","v":"2017/18"},{"$f":"head1A","v":"2018/19"},{"$f":"Head1","v":"2019/20"},{"$f":"Head2","v":"Current Year 2020/21"},null,null,{"$f":"Head3","v":"2021/22 Medium Term Revenue & Expenditure Framework"}]
[null,null,{"$f":"Head5","v":"Audited Outcome"},{"$f":"Head5","v":"Audited Outcome"},{"$f":"Head5","v":"Audited Outcome"},{"$f":"Head6","v":"Original Budget"},{"$f":"Head7","v":"Adjusted Budget"},{"$f":"Head8","v":"Full Year Forecast"},{"$f":"Head9","v":"Budget Year 2021/22"},{"$f":"Head10","v":"Budget Year +1 2022/23"},{"$f":"Head11","v":"Budget Year +2 2023/24"}]
["R thousand"]
["Parent municipality"]
["Securities - National Government",null,{"$f":"SUMIFS(Sheet1!S71_PPPYearAmount,Sheet1!S71_SA15Ref,$AC:$AC)","v":0},{"$f":"SUMIFS(Sheet1!S71_PPYearAmount,Sheet1!S71_SA15Ref,$AC:$AC)","v":0},{"$f":"SUMIFS(Sheet1!S71_PYearAmount,Sheet1!S71_SA15Ref,$AC:$AC)","v":0},{"$f":"SUMIFS(Sheet1!S71_OriginalBudAmnt,Sheet1!S71_SA15Ref,$AC:$AC)","v":0},{"$f":"SUMIFS(Sheet1!S71_AdjustmentBudAmnt,Sheet1!S71_SA15Ref,$AC:$AC)","v":0},{"$f":"SUMIFS(Sheet1!S71_AdjustmentBudAmnt,Sheet1!S71_SA15Ref,$AC:$AC)","v":0},{"$f":"SUMIFS(Sheet1!S71_ASBudgetAmount,Sheet1!S71_SA15Ref,$AC:$AC)","v":0},{"$f":"SUMIFS(Sheet1!S71_OY1BudgetAmount,Sheet1!S71_SA15Ref,$AC:$AC)","v":0},{"$f":"SUMIFS(Sheet1!S71_OY2BudgetAmount,Sheet1!S71_SA15Ref,$AC:$AC)","v":0},null,null,null,null,null,null,null,null,null,null,null,null,null,null,null,null,null,6]
["Listed Corporate Bonds",null,{"$f":"SUMIFS(Sheet1!S71_PPPYearAmount,Sheet1!S71_SA15Ref,$AC:$AC)","v":0},{"$f":"SUMIFS(Sheet1!S71_PPYearAmount,Sheet1!S71_SA15Ref,$AC:$AC)","v":0},{"$f":"SUMIFS(Sheet1!S71_PYearAmount,Sheet1!S71_SA15Ref,$AC:$AC)","v":7512160},{"$f":"SUMIFS(Sheet1!S71_OriginalBudAmnt,Sheet1!S71_SA15Ref,$AC:$AC)","v":0},{"$f":"SUMIFS(Sheet1!S71_AdjustmentBudAmnt,Sheet1!S71_SA15Ref,$AC:$AC)","v":0},{"$f":"SUMIFS(Sheet1!S71_AdjustmentBudAmnt,Sheet1!S71_SA15Ref,$AC:$AC)","v":0},{"$f":"SUMIFS(Sheet1!S71_ASBudgetAmount,Sheet1!S71_SA15Ref,$AC:$AC)","v":0},{"$f":"SUMIFS(Sheet1!S71_OY1BudgetAmount,Sheet1!S71_SA15Ref,$AC:$AC)","v":0},{"$f":"SUMIFS(Sheet1!S71_OY2BudgetAmount,Sheet1!S71_SA15Ref,$AC:$AC)","v":0},null,null,null,null,null,null,null,null,null,null,null,null,null,null,null,null,null,7]
["Deposits - Bank",null,{"$f":"SUMIFS(Sheet1!S71_PPPYearAmount,Sheet1!S71_SA15Ref,$AC:$AC)","v":0},{"$f":"SUMIFS(Sheet1!S71_PPYearAmount,Sheet1!S71_SA15Ref,$AC:$AC)","v":0},{"$f":"SUMIFS(Sheet1!S71_PYearAmount,Sheet1!S71_SA15Ref,$AC:$AC)","v":0},{"$f":"SUMIFS(Sheet1!S71_OriginalBudAmnt,Sheet1!S71_SA15Ref,$AC:$AC)","v":0},{"$f":"SUMIFS(Sheet1!S71_AdjustmentBudAmnt,Sheet1!S71_SA15Ref,$AC:$AC)","v":0},{"$f":"SUMIFS(Sheet1!S71_AdjustmentBudAmnt,Sheet1!S71_SA15Ref,$AC:$AC)","v":0},{"$f":"SUMIFS(Sheet1!S71_ASBudgetAmount,Sheet1!S71_SA15Ref,$AC:$AC)","v":0},{"$f":"SUMIFS(Sheet1!S71_OY1BudgetAmount,Sheet1!S71_SA15Ref,$AC:$AC)","v":0},{"$f":"SUMIFS(Sheet1!S71_OY2BudgetAmount,Sheet1!S71_SA15Ref,$AC:$AC)","v":0},null,null,null,null,null,null,null,null,null,null,null,null,null,null,null,null,null,8]
["Deposits - Public Investment Commissioners",null,{"$f":"SUMIFS(Sheet1!S71_PPPYearAmount,Sheet1!S71_SA15Ref,$AC:$AC)","v":0},{"$f":"SUMIFS(Sheet1!S71_PPYearAmount,Sheet1!S71_SA15Ref,$AC:$AC)","v":0},{"$f":"SUMIFS(Sheet1!S71_PYearAmount,Sheet1!S71_SA15Ref,$AC:$AC)","v":0},{"$f":"SUMIFS(Sheet1!S71_OriginalBudAmnt,Sheet1!S71_SA15Ref,$AC:$AC)","v":0},{"$f":"SUMIFS(Sheet1!S71_AdjustmentBudAmnt,Sheet1!S71_SA15Ref,$AC:$AC)","v":0},{"$f":"SUMIFS(Sheet1!S71_AdjustmentBudAmnt,Sheet1!S71_SA15Ref,$AC:$AC)","v":0},{"$f":"SUMIFS(Sheet1!S71_ASBudgetAmount,Sheet1!S71_SA15Ref,$AC:$AC)","v":0},{"$f":"SUMIFS(Sheet1!S71_OY1BudgetAmount,Sheet1!S71_SA15Ref,$AC:$AC)","v":0},{"$f":"SUMIFS(Sheet1!S71_OY2BudgetAmount,Sheet1!S71_SA15Ref,$AC:$AC)","v":0},null,null,null,null,null,null,null,null,null,null,null,null,null,null,null,null,null,9]
["Deposits - Corporation for Public Deposits",null,{"$f":"SUMIFS(Sheet1!S71_PPPYearAmount,Sheet1!S71_SA15Ref,$AC:$AC)","v":0},{"$f":"SUMIFS(Sheet1!S71_PPYearAmount,Sheet1!S71_SA15Ref,$AC:$AC)","v":0},{"$f":"SUMIFS(Sheet1!S71_PYearAmount,Sheet1!S71_SA15Ref,$AC:$AC)","v":0},{"$f":"SUMIFS(Sheet1!S71_OriginalBudAmnt,Sheet1!S71_SA15Ref,$AC:$AC)","v":0},{"$f":"SUMIFS(Sheet1!S71_AdjustmentBudAmnt,Sheet1!S71_SA15Ref,$AC:$AC)","v":0},{"$f":"SUMIFS(Sheet1!S71_AdjustmentBudAmnt,Sheet1!S71_SA15Ref,$AC:$AC)","v":0},{"$f":"SUMIFS(Sheet1!S71_ASBudgetAmount,Sheet1!S71_SA15Ref,$AC:$AC)","v":0},{"$f":"SUMIFS(Sheet1!S71_OY1BudgetAmount,Sheet1!S71_SA15Ref,$AC:$AC)","v":0},{"$f":"SUMIFS(Sheet1!S71_OY2BudgetAmount,Sheet1!S71_SA15Ref,$AC:$AC)","v":0},null,null,null,null,null,null,null,null,null,null,null,null,null,null,null,null,null,10]
["Bankers Acceptance Certificates",null,{"$f":"SUMIFS(Sheet1!S71_PPPYearAmount,Sheet1!S71_SA15Ref,$AC:$AC)","v":0},{"$f":"SUMIFS(Sheet1!S71_PPYearAmount,Sheet1!S71_SA15Ref,$AC:$AC)","v":0},{"$f":"SUMIFS(Sheet1!S71_PYearAmount,Sheet1!S71_SA15Ref,$AC:$AC)","v":0},{"$f":"SUMIFS(Sheet1!S71_OriginalBudAmnt,Sheet1!S71_SA15Ref,$AC:$AC)","v":0},{"$f":"SUMIFS(Sheet1!S71_AdjustmentBudAmnt,Sheet1!S71_SA15Ref,$AC:$AC)","v":0},{"$f":"SUMIFS(Sheet1!S71_AdjustmentBudAmnt,Sheet1!S71_SA15Ref,$AC:$AC)","v":0},{"$f":"SUMIFS(Sheet1!S71_ASBudgetAmount,Sheet1!S71_SA15Ref,$AC:$AC)","v":0},{"$f":"SUMIFS(Sheet1!S71_OY1BudgetAmount,Sheet1!S71_SA15Ref,$AC:$AC)","v":0},{"$f":"SUMIFS(Sheet1!S71_OY2BudgetAmount,Sheet1!S71_SA15Ref,$AC:$AC)","v":0},null,null,null,null,null,null,null,null,null,null,null,null,null,null,null,null,null,11]
["Negotiable Certificates of Deposit - Banks",null,{"$f":"SUMIFS(Sheet1!S71_PPPYearAmount,Sheet1!S71_SA15Ref,$AC:$AC)","v":0},{"$f":"SUMIFS(Sheet1!S71_PPYearAmount,Sheet1!S71_SA15Ref,$AC:$AC)","v":0},{"$f":"SUMIFS(Sheet1!S71_PYearAmount,Sheet1!S71_SA15Ref,$AC:$AC)","v":0},{"$f":"SUMIFS(Sheet1!S71_OriginalBudAmnt,Sheet1!S71_SA15Ref,$AC:$AC)","v":0},{"$f":"SUMIFS(Sheet1!S71_AdjustmentBudAmnt,Sheet1!S71_SA15Ref,$AC:$AC)","v":0},{"$f":"SUMIFS(Sheet1!S71_AdjustmentBudAmnt,Sheet1!S71_SA15Ref,$AC:$AC)","v":0},{"$f":"SUMIFS(Sheet1!S71_ASBudgetAmount,Sheet1!S71_SA15Ref,$AC:$AC)","v":0},{"$f":"SUMIFS(Sheet1!S71_OY1BudgetAmount,Sheet1!S71_SA15Ref,$AC:$AC)","v":0},{"$f":"SUMIFS(Sheet1!S71_OY2BudgetAmount,Sheet1!S71_SA15Ref,$AC:$AC)","v":0},null,null,null,null,null,null,null,null,null,null,null,null,null,null,null,null,null,12]
["Guaranteed Endowment Policies (sinking)",null,{"$f":"SUMIFS(Sheet1!S71_PPPYearAmount,Sheet1!S71_SA15Ref,$AC:$AC)","v":0},{"$f":"SUMIFS(Sheet1!S71_PPYearAmount,Sheet1!S71_SA15Ref,$AC:$AC)","v":0},{"$f":"SUMIFS(Sheet1!S71_PYearAmount,Sheet1!S71_SA15Ref,$AC:$AC)","v":0},{"$f":"SUMIFS(Sheet1!S71_OriginalBudAmnt,Sheet1!S71_SA15Ref,$AC:$AC)","v":0},{"$f":"SUMIFS(Sheet1!S71_AdjustmentBudAmnt,Sheet1!S71_SA15Ref,$AC:$AC)","v":0},{"$f":"SUMIFS(Sheet1!S71_AdjustmentBudAmnt,Sheet1!S71_SA15Ref,$AC:$AC)","v":0},{"$f":"SUMIFS(Sheet1!S71_ASBudgetAmount,Sheet1!S71_SA15Ref,$AC:$AC)","v":0},{"$f":"SUMIFS(Sheet1!S71_OY1BudgetAmount,Sheet1!S71_SA15Ref,$AC:$AC)","v":0},{"$f":"SUMIFS(Sheet1!S71_OY2BudgetAmount,Sheet1!S71_SA15Ref,$AC:$AC)","v":0},null,null,null,null,null,null,null,null,null,null,null,null,null,null,null,null,null,13]
["Repurchase Agreements - Banks",null,{"$f":"SUMIFS(Sheet1!S71_PPPYearAmount,Sheet1!S71_SA15Ref,$AC:$AC)","v":0},{"$f":"SUMIFS(Sheet1!S71_PPYearAmount,Sheet1!S71_SA15Ref,$AC:$AC)","v":0},{"$f":"SUMIFS(Sheet1!S71_PYearAmount,Sheet1!S71_SA15Ref,$AC:$AC)","v":0},{"$f":"SUMIFS(Sheet1!S71_OriginalBudAmnt,Sheet1!S71_SA15Ref,$AC:$AC)","v":0},{"$f":"SUMIFS(Sheet1!S71_AdjustmentBudAmnt,Sheet1!S71_SA15Ref,$AC:$AC)","v":0},{"$f":"SUMIFS(Sheet1!S71_AdjustmentBudAmnt,Sheet1!S71_SA15Ref,$AC:$AC)","v":0},{"$f":"SUMIFS(Sheet1!S71_ASBudgetAmount,Sheet1!S71_SA15Ref,$AC:$AC)","v":0},{"$f":"SUMIFS(Sheet1!S71_OY1BudgetAmount,Sheet1!S71_SA15Ref,$AC:$AC)","v":0},{"$f":"SUMIFS(Sheet1!S71_OY2BudgetAmount,Sheet1!S71_SA15Ref,$AC:$AC)","v":0},null,null,null,null,null,null,null,null,null,null,null,null,null,null,null,null,null,14]
["Municipal Bonds",null,{"$f":"SUMIFS(Sheet1!S71_PPPYearAmount,Sheet1!S71_SA15Ref,$AC:$AC)","v":0},{"$f":"SUMIFS(Sheet1!S71_PPYearAmount,Sheet1!S71_SA15Ref,$AC:$AC)","v":0},{"$f":"SUMIFS(Sheet1!S71_PYearAmount,Sheet1!S71_SA15Ref,$AC:$AC)","v":0},{"$f":"SUMIFS(Sheet1!S71_OriginalBudAmnt,Sheet1!S71_SA15Ref,$AC:$AC)","v":0},{"$f":"SUMIFS(Sheet1!S71_AdjustmentBudAmnt,Sheet1!S71_SA15Ref,$AC:$AC)","v":0},{"$f":"SUMIFS(Sheet1!S71_AdjustmentBudAmnt,Sheet1!S71_SA15Ref,$AC:$AC)","v":0},{"$f":"SUMIFS(Sheet1!S71_ASBudgetAmount,Sheet1!S71_SA15Ref,$AC:$AC)","v":0},{"$f":"SUMIFS(Sheet1!S71_OY1BudgetAmount,Sheet1!S71_SA15Ref,$AC:$AC)","v":0},{"$f":"SUMIFS(Sheet1!S71_OY2BudgetAmount,Sheet1!S71_SA15Ref,$AC:$AC)","v":0},null,null,null,null,null,null,null,null,null,null,null,null,null,null,null,null,null,15]
[]
["Municipality sub-total",1,{"$f":"SUM(C6:C15)","v":0},0,7512160,0,0,0,0,0,0]
[]
["Entities"]
[{"$f":"A6","v":"Securities - National Government"}]
[{"$f":"A7","v":"Listed Corporate Bonds"}]
["Deposits - Bank"]
["Deposits - Public Investment Commissioners"]
["Deposits - Corporation for Public Deposits"]
["Bankers Acceptance Certificates"]
["Negotiable Certificates of Deposit - Banks"]
["Guaranteed Endowment Policies (sinking)"]
["Repurchase Agreements - Banks"]
[]
["Entities sub-total",null,{"$f":"SUM(C20:C29)","v":0},0,0,0,0,0,0,0,0]
[]
["Consolidated total:",null,{"$f":"C17+C30","v":0},0,7512160,0,0,0,0,0,0]
[]
[{"$f":"head27a","v":"References"}]
["1. Total investments must reconcile to Budgeted Financial Position ('current' call investment deposits plus 'non-current' investments)"]
["check investment balance",null,{"$f":"C17-'A6-FinPos'!C7-'A6-FinPos'!C16","v":0},{"$f":"D17-'A6-FinPos'!D7-'A6-FinPos'!D16","v":-7175899},{"$f":"E17-'A6-FinPos'!E7-'A6-FinPos'!E16","v":-2225993},{"$f":"F17-'A6-FinPos'!F7-'A6-FinPos'!F16","v":0},{"$f":"G17-'A6-FinPos'!G7-'A6-FinPos'!G16","v":-9738153},{"$f":"H17-'A6-FinPos'!H7-'A6-FinPos'!H16","v":-9738153},{"$f":"I17-'A6-FinPos'!J7-'A6-FinPos'!J16","v":0},{"$f":"J17-'A6-FinPos'!K7-'A6-FinPos'!K16","v":0},{"$f":"K17-'A6-FinPos'!L7-'A6-FinPos'!L16","v":0}]

{"sheet":"SA16","index":46,"n_rows":32,"n_cols":15,"rows_kept":32,"cut":false,"hidden":false,"merged":[[1,3,2,3],[1,9,2,9],[2,10,2,14]]}
[{"$f":"muni&\" - \"&TableA16","v":"DC16 Xhariep - Supporting Table SA16 Investment particulars by maturity"}]
["Investments by Maturity",{"$f":"head27","v":"Ref"},"Period of Investment","Type of Investment","Capital Guarantee\n(Yes/ No)","Variable or Fixed interest rate","Interest Rate ᶟ","Commission Paid (Rands)","Commission Recipient","Expiry date of investment","Opening balance","Interest to be realised","Partial / Premature Withdrawal (4)","Investment Top Up","Closing Balance"]
["Name of institution & investment ID",1,"Yrs/Months"]
["Parent municipality"]
[null,null,null,null,null,null,null,null,null,null,null,null,null,null,{"$f":"SUM(K5:N5)","v":0}]
[null,null,null,null,null,null,null,null,null,null,null,null,null,null,{"$f":"SUM(K6:N6)","v":0}]
[null,null,null,null,null,null,null,null,null,null,null,null,null,null,0]
[null,null,null,null,null,null,null,null,null,null,null,null,null,null,0]
[null,null,null,null,null,null,null,null,null,null,null,null,null,null,0]
[null,null,null,null,null,null,null,null,null,null,null,null,null,null,0]
[null,null,null,null,null,null,null,null,null,null,null,null,null,null,0]
["Municipality sub-total",null,null,null,null,null,null,null,null,null,{"$f":"SUM(K5:K11)","v":0},null,{"$f":"SUM(M5:M11)","v":0},{"$f":"SUM(N5:N11)","v":0},{"$f":"SUM(O5:O11)","v":0}]
[]
["Entities"]
[null,null,null,null,null,null,null,null,null,null,null,null,null,null,{"$f":"SUM(K15:N15)","v":0}]
[null,null,null,null,null,null,null,null,null,null,null,null,null,null,{"$f":"SUM(K16:N16)","v":0}]
[null,null,null,null,null,null,null,null,null,null,null,null,null,null,0]
[null,null,null,null,null,null,null,null,null,null,null,null,null,null,0]
[null,null,null,null,null,null,null,null,null,null,null,null,null,null,0]
[null,null,null,null,null,null,null,null,null,null,null,null,null,null,0]
[null,null,null,null,null,null,null,null,null,null,null,null,null,null,0]
["Entities sub-total",null,null,null,null,null,null,null,null,null,{"$f":"SUM(K15:K21)","v":0},null,{"$f":"SUM(M15:M21)","v":0},{"$f":"SUM(N15:N21)","v":0},{"$f":"SUM(O15:O21)","v":0}]
[]
["TOTAL INVESTMENTS AND INTEREST",1,null,null,null,null,null,null,null,null,{"$f":"K12+K22","v":0},null,{"$f":"M12+M22","v":0},{"$f":"N12+N22","v":0},{"$f":"O12+O22","v":0}]
[]
[{"$f":"head27a","v":"References"}]
["1. Total investments must reconcile to all items in Table SA15 for the Current Year (30 June)"]
["2. List investments in expiry date order"]
["3. If 'variable' is selected in column F, input interest rate range"]
["4. Withdrawals to be entered as negative"]
["check"]
[null,null,null,null,null,null,null,null,null,null,null,null,"`"]

{"sheet":"SA17","index":47,"n_rows":71,"n_cols":45,"rows_kept":71,"cut":false,"hidden":false,"merged":[[1,5,1,7],[1,8,1,10]]}
[{"$f":"muni&\" - \"&TableA17","v":"DC16 Xhariep - Supporting Table SA17 Borrowing"}]
["Borrowing - Categorised by type",{"$f":"head27","v":"Ref"},{"$f":"head1b","v":"2017/18"},{"$f":"head1A","v":"2018/19"},{"$f":"Head1","v":"2019/20"},{"$f":"Head2","v":"Current Year 2020/21"},null,null,{"$f":"Head3","v":"2021/22 Medium Term Revenue & Expenditure Framework"}]
["R thousand",null,{"$f":"Head5","v":"Audited Outcome"},{"$f":"Head5","v":"Audited Outcome"},{"$f":"Head5","v":"Audited Outcome"},{"$f":"Head6","v":"Original Budget"},{"$f":"Head7","v":"Adjusted Budget"},{"$f":"Head8","v":"Full Year Forecast"},{"$f":"Head9","v":"Budget Year 2021/22"},{"$f":"Head10","v":"Budget Year +1 2022/23"},{"$f":"Head11","v":"Budget Year +2 2023/24"}]
["Parent municipality"]
["Annuity and Bullet Loans",null,{"$f":"SUMIFS(Sheet1!S71_PPPYearAmount,Sheet1!S71_SA17Ref,$AC:$AC)","v":0},{"$f":"SUMIFS(Sheet1!S71_PPYearAmount,Sheet1!S71_SA17Ref,$AC:$AC)","v":0},{"$f":"SUMIFS(Sheet1!S71_PYearAmount,Sheet1!S71_SA17Ref,$AC:$AC)","v":0},{"$f":"SUMIFS(Sheet1!S71_OriginalBudAmnt,Sheet1!S71_SA17Ref,$AC:$AC)","v":0},{"$f":"SUMIFS(Sheet1!S71_AdjustmentBudAmnt,Sheet1!S71_SA17Ref,$AC:$AC)","v":0},{"$f":"SUMIFS(Sheet1!S71_AdjustmentBudAmnt,Sheet1!S71_SA17Ref,$AC:$AC)","v":0},{"$f":"SUMIFS(Sheet1!S71_ASBudgetAmount,Sheet1!S71_SA17Ref,$AC:$AC)","v":0},{"$f":"SUMIFS(Sheet1!S71_OY1BudgetAmount,Sheet1!S71_SA17Ref,$AC:$AC)","v":0},{"$f":"SUMIFS(Sheet1!S71_OY2BudgetAmount,Sheet1!S71_SA17Ref,$AC:$AC)","v":0},null,null,null,null,null,null,null,null,null,null,null,null,null,null,null,null,null,5]
["Long-Term Loans (non-annuity)",null,{"$f":"SUMIFS(Sheet1!S71_PPPYearAmount,Sheet1!S71_SA17Ref,$AC:$AC)","v":0},{"$f":"SUMIFS(Sheet1!S71_PPYearAmount,Sheet1!S71_SA17Ref,$AC:$AC)","v":0},{"$f":"SUMIFS(Sheet1!S71_PYearAmount,Sheet1!S71_SA17Ref,$AC:$AC)","v":0},{"$f":"SUMIFS(Sheet1!S71_OriginalBudAmnt,Sheet1!S71_SA17Ref,$AC:$AC)","v":0},{"$f":"SUMIFS(Sheet1!S71_AdjustmentBudAmnt,Sheet1!S71_SA17Ref,$AC:$AC)","v":0},{"$f":"SUMIFS(Sheet1!S71_AdjustmentBudAmnt,Sheet1!S71_SA17Ref,$AC:$AC)","v":0},{"$f":"SUMIFS(Sheet1!S71_ASBudgetAmount,Sheet1!S71_SA17Ref,$AC:$AC)","v":0},{"$f":"SUMIFS(Sheet1!S71_OY1BudgetAmount,Sheet1!S71_SA17Ref,$AC:$AC)","v":0},{"$f":"SUMIFS(Sheet1!S71_OY2BudgetAmount,Sheet1!S71_SA17Ref,$AC:$AC)","v":0},null,null,null,null,null,null,null,null,null,null,null,null,null,null,null,null,null,6]
["Local registered stock",null,{"$f":"SUMIFS(Sheet1!S71_PPPYearAmount,Sheet1!S71_SA17Ref,$AC:$AC)","v":0},{"$f":"SUMIFS(Sheet1!S71_PPYearAmount,Sheet1!S71_SA17Ref,$AC:$AC)","v":0},{"$f":"SUMIFS(Sheet1!S71_PYearAmount,Sheet1!S71_SA17Ref,$AC:$AC)","v":0},{"$f":"SUMIFS(Sheet1!S71_OriginalBudAmnt,Sheet1!S71_SA17Ref,$AC:$AC)","v":0},{"$f":"SUMIFS(Sheet1!S71_AdjustmentBudAmnt,Sheet1!S71_SA17Ref,$AC:$AC)","v":0},{"$f":"SUMIFS(Sheet1!S71_AdjustmentBudAmnt,Sheet1!S71_SA17Ref,$AC:$AC)","v":0},{"$f":"SUMIFS(Sheet1!S71_ASBudgetAmount,Sheet1!S71_SA17Ref,$AC:$AC)","v":0},{"$f":"SUMIFS(Sheet1!S71_OY1BudgetAmount,Sheet1!S71_SA17Ref,$AC:$AC)","v":0},{"$f":"SUMIFS(Sheet1!S71_OY2BudgetAmount,Sheet1!S71_SA17Ref,$AC:$AC)","v":0},null,null,null,null,null,null,null,null,null,null,null,null,null,null,null,null,null,7]
["Instalment Credit",null,{"$f":"SUMIFS(Sheet1!S71_PPPYearAmount,Sheet1!S71_SA17Ref,$AC:$AC)","v":0},{"$f":"SUMIFS(Sheet1!S71_PPYearAmount,Sheet1!S71_SA17Ref,$AC:$AC)","v":0},{"$f":"SUMIFS(Sheet1!S71_PYearAmount,Sheet1!S71_SA17Ref,$AC:$AC)","v":0},{"$f":"SUMIFS(Sheet1!S71_OriginalBudAmnt,Sheet1!S71_SA17Ref,$AC:$AC)","v":0},{"$f":"SUMIFS(Sheet1!S71_AdjustmentBudAmnt,Sheet1!S71_SA17Ref,$AC:$AC)","v":0},{"$f":"SUMIFS(Sheet1!S71_AdjustmentBudAmnt,Sheet1!S71_SA17Ref,$AC:$AC)","v":0},{"$f":"SUMIFS(Sheet1!S71_ASBudgetAmount,Sheet1!S71_SA17Ref,$AC:$AC)","v":0},{"$f":"SUMIFS(Sheet1!S71_OY1BudgetAmount,Sheet1!S71_SA17Ref,$AC:$AC)","v":0},{"$f":"SUMIFS(Sheet1!S71_OY2BudgetAmount,Sheet1!S71_SA17Ref,$AC:$AC)","v":0},null,null,null,null,null,null,null,null,null,null,null,null,null,null,null,null,null,8]
["Financial Leases",null,{"$f":"SUMIFS(Sheet1!S71_PPPYearAmount,Sheet1!S71_SA17Ref,$AC:$AC)","v":0},{"$f":"SUMIFS(Sheet1!S71_PPYearAmount,Sheet1!S71_SA17Ref,$AC:$AC)","v":0},{"$f":"SUMIFS(Sheet1!S71_PYearAmount,Sheet1!S71_SA17Ref,$AC:$AC)","v":0},{"$f":"SUMIFS(Sheet1!S71_OriginalBudAmnt,Sheet1!S71_SA17Ref,$AC:$AC)","v":0},{"$f":"SUMIFS(Sheet1!S71_AdjustmentBudAmnt,Sheet1!S71_SA17Ref,$AC:$AC)","v":0},{"$f":"SUMIFS(Sheet1!S71_AdjustmentBudAmnt,Sheet1!S71_SA17Ref,$AC:$AC)","v":0},{"$f":"SUMIFS(Sheet1!S71_ASBudgetAmount,Sheet1!S71_SA17Ref,$AC:$AC)","v":0},{"$f":"SUMIFS(Sheet1!S71_OY1BudgetAmount,Sheet1!S71_SA17Ref,$AC:$AC)","v":0},{"$f":"SUMIFS(Sheet1!S71_OY2BudgetAmount,Sheet1!S71_SA17Ref,$AC:$AC)","v":0},null,null,null,null,null,null,null,null,null,null,null,null,null,null,null,null,null,9]
["PPP liabilities",null,{"$f":"SUMIFS(Sheet1!S71_PPPYearAmount,Sheet1!S71_SA17Ref,$AC:$AC)","v":0},{"$f":"SUMIFS(Sheet1!S71_PPYearAmount,Sheet1!S71_SA17Ref,$AC:$AC)","v":0},{"$f":"SUMIFS(Sheet1!S71_PYearAmount,Sheet1!S71_SA17Ref,$AC:$AC)","v":0},{"$f":"SUMIFS(Sheet1!S71_OriginalBudAmnt,Sheet1!S71_SA17Ref,$AC:$AC)","v":0},{"$f":"SUMIFS(Sheet1!S71_AdjustmentBudAmnt,Sheet1!S71_SA17Ref,$AC:$AC)","v":0},{"$f":"SUMIFS(Sheet1!S71_AdjustmentBudAmnt,Sheet1!S71_SA17Ref,$AC:$AC)","v":0},{"$f":"SUMIFS(Sheet1!S71_ASBudgetAmount,Sheet1!S71_SA17Ref,$AC:$AC)","v":0},{"$f":"SUMIFS(Sheet1!S71_OY1BudgetAmount,Sheet1!S71_SA17Ref,$AC:$AC)","v":0},{"$f":"SUMIFS(Sheet1!S71_OY2BudgetAmount,Sheet1!S71_SA17Ref,$AC:$AC)","v":0},null,null,null,null,null,null,null,null,null,null,null,null,null,null,null,null,null,10]
["Finance Granted By Cap Equipment Supplier",null,{"$f":"SUMIFS(Sheet1!S71_PPPYearAmount,Sheet1!S71_SA17Ref,$AC:$AC)","v":0},{"$f":"SUMIFS(Sheet1!S71_PPYearAmount,Sheet1!S71_SA17Ref,$AC:$AC)","v":0},{"$f":"SUMIFS(Sheet1!S71_PYearAmount,Sheet1!S71_SA17Ref,$AC:$AC)","v":0},{"$f":"SUMIFS(Sheet1!S71_OriginalBudAmnt,Sheet1!S71_SA17Ref,$AC:$AC)","v":0},{"$f":"SUMIFS(Sheet1!S71_AdjustmentBudAmnt,Sheet1!S71_SA17Ref,$AC:$AC)","v":0},{"$f":"SUMIFS(Sheet1!S71_AdjustmentBudAmnt,Sheet1!S71_SA17Ref,$AC:$AC)","v":0},{"$f":"SUMIFS(Sheet1!S71_ASBudgetAmount,Sheet1!S71_SA17Ref,$AC:$AC)","v":0},{"$f":"SUMIFS(Sheet1!S71_OY1BudgetAmount,Sheet1!S71_SA17Ref,$AC:$AC)","v":0},{"$f":"SUMIFS(Sheet1!S71_OY2BudgetAmount,Sheet1!S71_SA17Ref,$AC:$AC)","v":0},null,null,null,null,null,null,null,null,null,null,null,null,null,null,null,null,null,11]
["Marketable Bonds",null,{"$f":"SUMIFS(Sheet1!S71_PPPYearAmount,Sheet1!S71_SA17Ref,$AC:$AC)","v":0},{"$f":"SUMIFS(Sheet1!S71_PPYearAmount,Sheet1!S71_SA17Ref,$AC:$AC)","v":0},{"$f":"SUMIFS(Sheet1!S71_PYearAmount,Sheet1!S71_SA17Ref,$AC:$AC)","v":0},{"$f":"SUMIFS(Sheet1!S71_OriginalBudAmnt,Sheet1!S71_SA17Ref,$AC:$AC)","v":0},{"$f":"SUMIFS(Sheet1!S71_AdjustmentBudAmnt,Sheet1!S71_SA17Ref,$AC:$AC)","v":0},{"$f":"SUMIFS(Sheet1!S71_AdjustmentBudAmnt,Sheet1!S71_SA17Ref,$AC:$AC)","v":0},{"$f":"SUMIFS(Sheet1!S71_ASBudgetAmount,Sheet1!S71_SA17Ref,$AC:$AC)","v":0},{"$f":"SUMIFS(Sheet1!S71_OY1BudgetAmount,Sheet1!S71_SA17Ref,$AC:$AC)","v":0},{"$f":"SUMIFS(Sheet1!S71_OY2BudgetAmount,Sheet1!S71_SA17Ref,$AC:$AC)","v":0},null,null,null,null,null,null,null,null,null,null,null,null,null,null,null,null,null,12]
["Non-Marketable Bonds",null,{"$f":"SUMIFS(Sheet1!S71_PPPYearAmount,Sheet1!S71_SA17Ref,$AC:$AC)","v":0},{"$f":"SUMIFS(Sheet1!S71_PPYearAmount,Sheet1!S71_SA17Ref,$AC:$AC)","v":0},{"$f":"SUMIFS(Sheet1!S71_PYearAmount,Sheet1!S71_SA17Ref,$AC:$AC)","v":0},{"$f":"SUMIFS(Sheet1!S71_OriginalBudAmnt,Sheet1!S71_SA17Ref,$AC:$AC)","v":0},{"$f":"SUMIFS(Sheet1!S71_AdjustmentBudAmnt,Sheet1!S71_SA17Ref,$AC:$AC)","v":0},{"$f":"SUMIFS(Sheet1!S71_AdjustmentBudAmnt,Sheet1!S71_SA17Ref,$AC:$AC)","v":0},{"$f":"SUMIFS(Sheet1!S71_ASBudgetAmount,Sheet1!S71_SA17Ref,$AC:$AC)","v":0},{"$f":"SUMIFS(Sheet1!S71_OY1BudgetAmount,Sheet1!S71_SA17Ref,$AC:$AC)","v":0},{"$f":"SUMIFS(Sheet1!S71_OY2BudgetAmount,Sheet1!S71_SA17Ref,$AC:$AC)","v":0},null,null,null,null,null,null,null,null,null,null,null,null,null,null,null,null,null,13]
["Bankers Acceptances",null,{"$f":"SUMIFS(Sheet1!S71_PPPYearAmount,Sheet1!S71_SA17Ref,$AC:$AC)","v":0},{"$f":"SUMIFS(Sheet1!S71_PPYearAmount,Sheet1!S71_SA17Ref,$AC:$AC)","v":0},{"$f":"SUMIFS(Sheet1!S71_PYearAmount,Sheet1!S71_SA17Ref,$AC:$AC)","v":0},{"$f":"SUMIFS(Sheet1!S71_OriginalBudAmnt,Sheet1!S71_SA17Ref,$AC:$AC)","v":0},{"$f":"SUMIFS(Sheet1!S71_AdjustmentBudAmnt,Sheet1!S71_SA17Ref,$AC:$AC)","v":0},{"$f":"SUMIFS(Sheet1!S71_AdjustmentBudAmnt,Sheet1!S71_SA17Ref,$AC:$AC)","v":0},{"$f":"SUMIFS(Sheet1!S71_ASBudgetAmount,Sheet1!S71_SA17Ref,$AC:$AC)","v":0},{"$f":"SUMIFS(Sheet1!S71_OY1BudgetAmount,Sheet1!S71_SA17Ref,$AC:$AC)","v":0},{"$f":"SUMIFS(Sheet1!S71_OY2BudgetAmount,Sheet1!S71_SA17Ref,$AC:$AC)","v":0},null,null,null,null,null,null,null,null,null,null,null,null,null,null,null,null,null,14]
["Financial derivatives",null,{"$f":"SUMIFS(Sheet1!S71_PPPYearAmount,Sheet1!S71_SA17Ref,$AC:$AC)","v":0},{"$f":"SUMIFS(Sheet1!S71_PPYearAmount,Sheet1!S71_SA17Ref,$AC:$AC)","v":0},{"$f":"SUMIFS(Sheet1!S71_PYearAmount,Sheet1!S71_SA17Ref,$AC:$AC)","v":0},{"$f":"SUMIFS(Sheet1!S71_OriginalBudAmnt,Sheet1!S71_SA17Ref,$AC:$AC)","v":0},{"$f":"SUMIFS(Sheet1!S71_AdjustmentBudAmnt,Sheet1!S71_SA17Ref,$AC:$AC)","v":0},{"$f":"SUMIFS(Sheet1!S71_AdjustmentBudAmnt,Sheet1!S71_SA17Ref,$AC:$AC)","v":0},{"$f":"SUMIFS(Sheet1!S71_ASBudgetAmount,Sheet1!S71_SA17Ref,$AC:$AC)","v":0},{"$f":"SUMIFS(Sheet1!S71_OY1BudgetAmount,Sheet1!S71_SA17Ref,$AC:$AC)","v":0},{"$f":"SUMIFS(Sheet1!S71_OY2BudgetAmount,Sheet1!S71_SA17Ref,$AC:$AC)","v":0},null,null,null,null,null,null,null,null,null,null,null,null,null,null,null,null,null,15]
["Other Securities",null,{"$f":"SUMIFS(Sheet1!S71_PPPYearAmount,Sheet1!S71_SA17Ref,$AC:$AC)","v":0},{"$f":"SUMIFS(Sheet1!S71_PPYearAmount,Sheet1!S71_SA17Ref,$AC:$AC)","v":0},{"$f":"SUMIFS(Sheet1!S71_PYearAmount,Sheet1!S71_SA17Ref,$AC:$AC)","v":0},{"$f":"SUMIFS(Sheet1!S71_OriginalBudAmnt,Sheet1!S71_SA17Ref,$AC:$AC)","v":0},{"$f":"SUMIFS(Sheet1!S71_AdjustmentBudAmnt,Sheet1!S71_SA17Ref,$AC:$AC)","v":0},{"$f":"SUMIFS(Sheet1!S71_AdjustmentBudAmnt,Sheet1!S71_SA17Ref,$AC:$AC)","v":0},{"$f":"SUMIFS(Sheet1!S71_ASBudgetAmount,Sheet1!S71_SA17Ref,$AC:$AC)","v":0},{"$f":"SUMIFS(Sheet1!S71_OY1BudgetAmount,Sheet1!S71_SA17Ref,$AC:$AC)","v":0},{"$f":"SUMIFS(Sheet1!S71_OY2BudgetAmount,Sheet1!S71_SA17Ref,$AC:$AC)","v":0},null,null,null,null,null,null,null,null,null,null,null,null,null,null,null,null,null,16]
["Municipality sub-total",1,{"$f":"SUM(C5:C16)","v":0},{"$f":"SUM(D5:D16)","v":0},0,0,0,0,0,0,0]
[]
["Entities"]
[{"$f":"A5","v":"Annuity and Bullet Loans"}]
["Long-Term Loans (non-annuity)"]
["Local registered stock"]
["Instalment Credit"]
["Financial Leases"]
["PPP liabilities"]
["Finance Granted By Cap Equipment Supplier"]
["Marketable Bonds"]
["Non-Marketable Bonds"]
["Bankers Acceptances"]
["Financial derivatives"]
["Other Securities"]
["Entities sub-total",1,{"$f":"SUM(C20:C31)","v":0},{"$f":"SUM(D20:D31)","v":0},0,0,0,0,0,0,0]
[]
["Total Borrowing",1,{"$f":"C17+C32","v":0},{"$f":"D17+D32","v":0},0,0,0,0,0,0,0]
[]
["Unspent Borrowing - Categorised by type"]
["Parent municipality"]
["Long-Term Loans (annuity/reducing balance)",null,{"$f":"SUMIFS(Sheet1!S71_PPPYearAmount,Sheet1!S71_SA17Ref,$AC:$AC)","v":0},{"$f":"SUMIFS(Sheet1!S71_PPYearAmount,Sheet1!S71_SA17Ref,$AC:$AC)","v":0},{"$f":"SUMIFS(Sheet1!S71_PYearAmount,Sheet1!S71_SA17Ref,$AC:$AC)","v":0},{"$f":"SUMIFS(Sheet1!S71_OriginalBudAmnt,Sheet1!S71_SA17Ref,$AC:$AC)","v":0},{"$f":"SUMIFS(Sheet1!S71_AdjustmentBudAmnt,Sheet1!S71_SA17Ref,$AC:$AC)","v":0},{"$f":"SUMIFS(Sheet1!S71_AdjustmentBudAmnt,Sheet1!S71_SA17Ref,$AC:$AC)","v":0},{"$f":"SUMIFS(Sheet1!S71_ASBudgetAmount,Sheet1!S71_SA17Ref,$AC:$AC)","v":0},{"$f":"SUMIFS(Sheet1!S71_OY1BudgetAmount,Sheet1!S71_SA17Ref,$AC:$AC)","v":0},{"$f":"SUMIFS(Sheet1!S71_OY2BudgetAmount,Sheet1!S71_SA17Ref,$AC:$AC)","v":0},null,null,null,null,null,null,null,null,null,null,null,null,null,null,null,null,null,38]
["Long-Term Loans (non-annuity)",null,{"$f":"SUMIFS(Sheet1!S71_PPPYearAmount,Sheet1!S71_SA17Ref,$AC:$AC)","v":0},{"$f":"SUMIFS(Sheet1!S71_PPYearAmount,Sheet1!S71_SA17Ref,$AC:$AC)","v":0},{"$f":"SUMIFS(Sheet1!S71_PYearAmount,Sheet1!S71_SA17Ref,$AC:$AC)","v":0},{"$f":"SUMIFS(Sheet1!S71_OriginalBudAmnt,Sheet1!S71_SA17Ref,$AC:$AC)","v":0},{"$f":"SUMIFS(Sheet1!S71_AdjustmentBudAmnt,Sheet1!S71_SA17Ref,$AC:$AC)","v":0},{"$f":"SUMIFS(Sheet1!S71_AdjustmentBudAmnt,Sheet1!S71_SA17Ref,$AC:$AC)","v":0},{"$f":"SUMIFS(Sheet1!S71_ASBudgetAmount,Sheet1!S71_SA17Ref,$AC:$AC)","v":0},{"$f":"SUMIFS(Sheet1!S71_OY1BudgetAmount,Sheet1!S71_SA17Ref,$AC:$AC)","v":0},{"$f":"SUMIFS(Sheet1!S71_OY2BudgetAmount,Sheet1!S71_SA17Ref,$AC:$AC)","v":0},null,null,null,null,null,null,null,null,null,null,null,null,null,null,null,null,null,39]
["Local registered stock",null,{"$f":"SUMIFS(Sheet1!S71_PPPYearAmount,Sheet1!S71_SA17Ref,$AC:$AC)","v":0},{"$f":"SUMIFS(Sheet1!S71_PPYearAmount,Sheet1!S71_SA17Ref,$AC:$AC)","v":0},{"$f":"SUMIFS(Sheet1!S71_PYearAmount,Sheet1!S71_SA17Ref,$AC:$AC)","v":0},{"$f":"SUMIFS(Sheet1!S71_OriginalBudAmnt,Sheet1!S71_SA17Ref,$AC:$AC)","v":0},{"$f":"SUMIFS(Sheet1!S71_AdjustmentBudAmnt,Sheet1!S71_SA17Ref,$AC:$AC)","v":0},{"$f":"SUMIFS(Sheet1!S71_AdjustmentBudAmnt,Sheet1!S71_SA17Ref,$AC:$AC)","v":0},{"$f":"SUMIFS(Sheet1!S71_ASBudgetAmount,Sheet1!S71_SA17Ref,$AC:$AC)","v":0},{"$f":"SUMIFS(Sheet1!S71_OY1BudgetAmount,Sheet1!S71_SA17Ref,$AC:$AC)","v":0},{"$f":"SUMIFS(Sheet1!S71_OY2BudgetAmount,Sheet1!S71_SA17Ref,$AC:$AC)","v":0},null,null,null,null,null,null,null,null,null,null,null,null,null,null,null,null,null,40]
["Instalment Credit",null,{"$f":"SUMIFS(Sheet1!S71_PPPYearAmount,Sheet1!S71_SA17Ref,$AC:$AC)","v":0},{"$f":"SUMIFS(Sheet1!S71_PPYearAmount,Sheet1!S71_SA17Ref,$AC:$AC)","v":0},{"$f":"SUMIFS(Sheet1!S71_PYearAmount,Sheet1!S71_SA17Ref,$AC:$AC)","v":0},{"$f":"SUMIFS(Sheet1!S71_OriginalBudAmnt,Sheet1!S71_SA17Ref,$AC:$AC)","v":0},{"$f":"SUMIFS(Sheet1!S71_AdjustmentBudAmnt,Sheet1!S71_SA17Ref,$AC:$AC)","v":0},{"$f":"SUMIFS(Sheet1!S71_AdjustmentBudAmnt,Sheet1!S71_SA17Ref,$AC:$AC)","v":0},{"$f":"SUMIFS(Sheet1!S71_ASBudgetAmount,Sheet1!S71_SA17Ref,$AC:$AC)","v":0},{"$f":"SUMIFS(Sheet1!S71_OY1BudgetAmount,Sheet1!S71_SA17Ref,$AC:$AC)","v":0},{"$f":"SUMIFS(Sheet1!S71_OY2BudgetAmount,Sheet1!S71_SA17Ref,$AC:$AC)","v":0},null,null,null,null,null,null,null,null,null,null,null,null,null,null,null,null,null,41,null,null,null,null,null,null,null,null,null,null,null,null,null,439005000,null,539442200]
["Financial Leases",null,{"$f":"SUMIFS(Sheet1!S71_PPPYearAmount,Sheet1!S71_SA17Ref,$AC:$AC)","v":0},{"$f":"SUMIFS(Sheet1!S71_PPYearAmount,Sheet1!S71_SA17Ref,$AC:$AC)","v":0},{"$f":"SUMIFS(Sheet1!S71_PYearAmount,Sheet1!S71_SA17Ref,$AC:$AC)","v":0},{"$f":"SUMIFS(Sheet1!S71_OriginalBudAmnt,Sheet1!S71_SA17Ref,$AC:$AC)","v":0},{"$f":"SUMIFS(Sheet1!S71_AdjustmentBudAmnt,Sheet1!S71_SA17Ref,$AC:$AC)","v":0},{"$f":"SUMIFS(Sheet1!S71_AdjustmentBudAmnt,Sheet1!S71_SA17Ref,$AC:$AC)","v":0},{"$f":"SUMIFS(Sheet1!S71_ASBudgetAmount,Sheet1!S71_SA17Ref,$AC:$AC)","v":0},{"$f":"SUMIFS(Sheet1!S71_OY1BudgetAmount,Sheet1!S71_SA17Ref,$AC:$AC)","v":0},{"$f":"SUMIFS(Sheet1!S71_OY2BudgetAmount,Sheet1!S71_SA17Ref,$AC:$AC)","v":0},null,null,null,null,null,null,null,null,null,null,null,null,null,null,null,null,null,42]
["PPP liabilities",null,{"$f":"SUMIFS(Sheet1!S71_PPPYearAmount,Sheet1!S71_SA17Ref,$AC:$AC)","v":0},{"$f":"SUMIFS(Sheet1!S71_PPYearAmount,Sheet1!S71_SA17Ref,$AC:$AC)","v":0},{"$f":"SUMIFS(Sheet1!S71_PYearAmount,Sheet1!S71_SA17Ref,$AC:$AC)","v":0},{"$f":"SUMIFS(Sheet1!S71_OriginalBudAmnt,Sheet1!S71_SA17Ref,$AC:$AC)","v":0},{"$f":"SUMIFS(Sheet1!S71_AdjustmentBudAmnt,Sheet1!S71_SA17Ref,$AC:$AC)","v":0},{"$f":"SUMIFS(Sheet1!S71_AdjustmentBudAmnt,Sheet1!S71_SA17Ref,$AC:$AC)","v":0},{"$f":"SUMIFS(Sheet1!S71_ASBudgetAmount,Sheet1!S71_SA17Ref,$AC:$AC)","v":0},{"$f":"SUMIFS(Sheet1!S71_OY1BudgetAmount,Sheet1!S71_SA17Ref,$AC:$AC)","v":0},{"$f":"SUMIFS(Sheet1!S71_OY2BudgetAmount,Sheet1!S71_SA17Ref,$AC:$AC)","v":0},null,null,null,null,null,null,null,null,null,null,null,0,null,0,null,null,0,43,0,null,null,0,null,0,null,null,0,null,0,null,null,1834701353,null,1241876995]
["Finance Granted By Cap Equipment Supplier",null,{"$f":"SUMIFS(Sheet1!S71_PPPYearAmount,Sheet1!S71_SA17Ref,$AC:$AC)","v":0},{"$f":"SUMIFS(Sheet1!S71_PPYearAmount,Sheet1!S71_SA17Ref,$AC:$AC)","v":0},{"$f":"SUMIFS(Sheet1!S71_PYearAmount,Sheet1!S71_SA17Ref,$AC:$AC)","v":0},{"$f":"SUMIFS(Sheet1!S71_OriginalBudAmnt,Sheet1!S71_SA17Ref,$AC:$AC)","v":0},{"$f":"SUMIFS(Sheet1!S71_AdjustmentBudAmnt,Sheet1!S71_SA17Ref,$AC:$AC)","v":0},{"$f":"SUMIFS(Sheet1!S71_AdjustmentBudAmnt,Sheet1!S71_SA17Ref,$AC:$AC)","v":0},{"$f":"SUMIFS(Sheet1!S71_ASBudgetAmount,Sheet1!S71_SA17Ref,$AC:$AC)","v":0},{"$f":"SUMIFS(Sheet1!S71_OY1BudgetAmount,Sheet1!S71_SA17Ref,$AC:$AC)","v":0},{"$f":"SUMIFS(Sheet1!S71_OY2BudgetAmount,Sheet1!S71_SA17Ref,$AC:$AC)","v":0},null,null,null,null,null,null,null,null,null,null,null,null,null,null,null,null,null,44,null,null,null,null,null,null,null,null,null,null,null,null,null,839041298,null,440387617]
["Marketable Bonds",null,{"$f":"SUMIFS(Sheet1!S71_PPPYearAmount,Sheet1!S71_SA17Ref,$AC:$AC)","v":0},{"$f":"SUMIFS(Sheet1!S71_PPYearAmount,Sheet1!S71_SA17Ref,$AC:$AC)","v":0},{"$f":"SUMIFS(Sheet1!S71_PYearAmount,Sheet1!S71_SA17Ref,$AC:$AC)","v":0},{"$f":"SUMIFS(Sheet1!S71_OriginalBudAmnt,Sheet1!S71_SA17Ref,$AC:$AC)","v":0},{"$f":"SUMIFS(Sheet1!S71_AdjustmentBudAmnt,Sheet1!S71_SA17Ref,$AC:$AC)","v":0},{"$f":"SUMIFS(Sheet1!S71_AdjustmentBudAmnt,Sheet1!S71_SA17Ref,$AC:$AC)","v":0},{"$f":"SUMIFS(Sheet1!S71_ASBudgetAmount,Sheet1!S71_SA17Ref,$AC:$AC)","v":0},{"$f":"SUMIFS(Sheet1!S71_OY1BudgetAmount,Sheet1!S71_SA17Ref,$AC:$AC)","v":0},{"$f":"SUMIFS(Sheet1!S71_OY2BudgetAmount,Sheet1!S71_SA17Ref,$AC:$AC)","v":0},null,null,null,null,null,null,null,null,null,null,null,null,null,null,null,null,null,45,null,null,null,null,null,null,null,null,null,null,null,null,null,976543638,null,782372961]
["Non-Marketable Bonds",null,{"$f":"SUMIFS(Sheet1!S71_PPPYearAmount,Sheet1!S71_SA17Ref,$AC:$AC)","v":0},{"$f":"SUMIFS(Sheet1!S71_PPYearAmount,Sheet1!S71_SA17Ref,$AC:$AC)","v":0},{"$f":"SUMIFS(Sheet1!S71_PYearAmount,Sheet1!S71_SA17Ref,$AC:$AC)","v":0},{"$f":"SUMIFS(Sheet1!S71_OriginalBudAmnt,Sheet1!S71_SA17Ref,$AC:$AC)","v":0},{"$f":"SUMIFS(Sheet1!S71_AdjustmentBudAmnt,Sheet1!S71_SA17Ref,$AC:$AC)","v":0},{"$f":"SUMIFS(Sheet1!S71_AdjustmentBudAmnt,Sheet1!S71_SA17Ref,$AC:$AC)","v":0},{"$f":"SUMIFS(Sheet1!S71_ASBudgetAmount,Sheet1!S71_SA17Ref,$AC:$AC)","v":0},{"$f":"SUMIFS(Sheet1!S71_OY1BudgetAmount,Sheet1!S71_SA17Ref,$AC:$AC)","v":0},{"$f":"SUMIFS(Sheet1!S71_OY2BudgetAmount,Sheet1!S71_SA17Ref,$AC:$AC)","v":0},null,null,null,null,null,null,null,null,null,null,null,null,null,null,null,null,null,46,null,null,null,null,null,null,null,null,null,null,null,null,null,19116417,null,19116417]
["Bankers Acceptances",null,{"$f":"SUMIFS(Sheet1!S71_PPPYearAmount,Sheet1!S71_SA17Ref,$AC:$AC)","v":0},{"$f":"SUMIFS(Sheet1!S71_PPYearAmount,Sheet1!S71_SA17Ref,$AC:$AC)","v":0},{"$f":"SUMIFS(Sheet1!S71_PYearAmount,Sheet1!S71_SA17Ref,$AC:$AC)","v":0},{"$f":"SUMIFS(Sheet1!S71_OriginalBudAmnt,Sheet1!S71_SA17Ref,$AC:$AC)","v":0},{"$f":"SUMIFS(Sheet1!S71_AdjustmentBudAmnt,Sheet1!S71_SA17Ref,$AC:$AC)","v":0},{"$f":"SUMIFS(Sheet1!S71_AdjustmentBudAmnt,Sheet1!S71_SA17Ref,$AC:$AC)","v":0},{"$f":"SUMIFS(Sheet1!S71_ASBudgetAmount,Sheet1!S71_SA17Ref,$AC:$AC)","v":0},{"$f":"SUMIFS(Sheet1!S71_OY1BudgetAmount,Sheet1!S71_SA17Ref,$AC:$AC)","v":0},{"$f":"SUMIFS(Sheet1!S71_OY2BudgetAmount,Sheet1!S71_SA17Ref,$AC:$AC)","v":0},null,null,null,null,null,null,null,null,null,null,null,null,null,null,null,null,null,47,null,null,null,null,null,null,null,null,null,null,null,null,null,2273706353,null,1781319195]
["Financial derivatives",null,{"$f":"SUMIFS(Sheet1!S71_PPPYearAmount,Sheet1!S71_SA17Ref,$AC:$AC)","v":0},{"$f":"SUMIFS(Sheet1!S71_PPYearAmount,Sheet1!S71_SA17Ref,$AC:$AC)","v":0},{"$f":"SUMIFS(Sheet1!S71_PYearAmount,Sheet1!S71_SA17Ref,$AC:$AC)","v":0},{"$f":"SUMIFS(Sheet1!S71_OriginalBudAmnt,Sheet1!S71_SA17Ref,$AC:$AC)","v":0},{"$f":"SUMIFS(Sheet1!S71_AdjustmentBudAmnt,Sheet1!S71_SA17Ref,$AC:$AC)","v":0},{"$f":"SUMIFS(Sheet1!S71_AdjustmentBudAmnt,Sheet1!S71_SA17Ref,$AC:$AC)","v":0},{"$f":"SUMIFS(Sheet1!S71_ASBudgetAmount,Sheet1!S71_SA17Ref,$AC:$AC)","v":0},{"$f":"SUMIFS(Sheet1!S71_OY1BudgetAmount,Sheet1!S71_SA17Ref,$AC:$AC)","v":0},{"$f":"SUMIFS(Sheet1!S71_OY2BudgetAmount,Sheet1!S71_SA17Ref,$AC:$AC)","v":0},null,null,null,null,null,null,null,null,null,null,null,null,null,null,null,null,null,48,null,null,null,null,null,null,null,null,null,null,null,null,null,180259232,null,140396729]
["Other Securities",null,{"$f":"SUMIFS(Sheet1!S71_PPPYearAmount,Sheet1!S71_SA17Ref,$AC:$AC)","v":0},{"$f":"SUMIFS(Sheet1!S71_PPYearAmount,Sheet1!S71_SA17Ref,$AC:$AC)","v":0},{"$f":"SUMIFS(Sheet1!S71_PYearAmount,Sheet1!S71_SA17Ref,$AC:$AC)","v":0},{"$f":"SUMIFS(Sheet1!S71_OriginalBudAmnt,Sheet1!S71_SA17Ref,$AC:$AC)","v":0},{"$f":"SUMIFS(Sheet1!S71_AdjustmentBudAmnt,Sheet1!S71_SA17Ref,$AC:$AC)","v":0},{"$f":"SUMIFS(Sheet1!S71_AdjustmentBudAmnt,Sheet1!S71_SA17Ref,$AC:$AC)","v":0},{"$f":"SUMIFS(Sheet1!S71_ASBudgetAmount,Sheet1!S71_SA17Ref,$AC:$AC)","v":0},{"$f":"SUMIFS(Sheet1!S71_OY1BudgetAmount,Sheet1!S71_SA17Ref,$AC:$AC)","v":0},{"$f":"SUMIFS(Sheet1!S71_OY2BudgetAmount,Sheet1!S71_SA17Ref,$AC:$AC)","v":0},null,null,null,null,null,null,null,null,null,null,null,null,null,null,null,null,null,49,null,null,null,null,null,null,null,null,null,null,null,null,null,125005000,null,100442200]
["Municipality sub-total",1,{"$f":"SUM(C38:C49)","v":0},{"$f":"SUM(D38:D49)","v":0},0,0,0,0,0,0,0,null,null,null,null,null,null,null,null,null,null,null,null,null,null,null,null,null,null,null,null,null,null,null,null,null,null,null,null,null,null,null,40341797,null,38954529]
[null,null,null,null,null,null,null,null,null,null,null,null,null,null,null,null,null,null,null,null,null,null,null,null,null,null,null,null,null,null,null,null,null,null,null,null,null,null,null,null,null,null,14912435,null,1000000]
["Entities"]
[{"$f":"A38","v":"Long-Term Loans (annuity/reducing balance)"}]
["Long-Term Loans (non-annuity)"]
["Local registered stock"]
["Instalment Credit"]
["Financial Leases"]
["PPP liabilities"]
["Finance Granted By Cap Equipment Supplier"]
["Marketable Bonds"]
["Non-Marketable Bonds"]
["Bankers Acceptances"]
["Financial derivatives"]
["Other Securities"]
["Entities sub-total",1,{"$f":"SUM(C53:C64)","v":0},{"$f":"SUM(D53:D64)","v":0},0,0,0,0,0,0,0]
[]
["Total Unspent Borrowing",1,{"$f":"C50+C65","v":0},{"$f":"D50+D65","v":0},0,0,0,0,0,0,0]
[]
[{"$f":"head27a","v":"References"}]
["1. Total borrowing must reconcile to Budgeted Financial Position (Borrowing - non-current)"]
["check borrowing balance",null,{"$f":"C34-'A6-FinPos'!C37","v":0},{"$f":"D34-'A6-FinPos'!D37","v":-545637},{"$f":"E34-'A6-FinPos'!E37","v":-104910},{"$f":"F34-'A6-FinPos'!F37","v":0},{"$f":"G34-'A6-FinPos'!G37","v":0},{"$f":"H34-'A6-FinPos'!H37","v":0},{"$f":"I34-'A6-FinPos'!J37","v":0},{"$f":"J34-'A6-FinPos'!K37","v":0},{"$f":"K34-'A6-FinPos'!L37","v":0}]

{"sheet":"SA18","index":48,"n_rows":53,"n_cols":11,"rows_kept":53,"cut":false,"hidden":false,"merged":[[1,5,1,7],[1,8,1,10]]}
[{"$f":"muni&\" - \"& TableA18","v":"DC16 Xhariep - Supporting Table SA18 Transfers and grant receipts"}]
[{"$f":"desc","v":"Description"},{"$f":"head27","v":"Ref"},{"$f":"head1b","v":"2017/18"},{"$f":"head1A","v":"2018/19"},{"$f":"Head1","v":"2019/20"},{"$f":"Head2","v":"Current Year 2020/21"},null,null,{"$f":"Head3","v":"2021/22 Medium Term Revenue & Expenditure Framework"}]
["R thousand",null,{"$f":"Head5","v":"Audited Outcome"},{"$f":"Head5","v":"Audited Outcome"},{"$f":"Head5","v":"Audited Outcome"},{"$f":"Head6","v":"Original Budget"},{"$f":"Head7","v":"Adjusted Budget"},{"$f":"Head8","v":"Full Year Forecast"},{"$f":"Head9","v":"Budget Year 2021/22"},{"$f":"Head10","v":"Budget Year +1 2022/23"},{"$f":"Head11","v":"Budget Year +2 2023/24"}]
["RECEIPTS:","1, 2"]
[]
["Operating Transfers and Grants"]
["National Government:",null,{"$f":"SUM(C8:C14)","v":0},{"$f":"SUM(D8:D14)","v":0},0,0,0,0,0,0,0]
["Local Government Equitable Share",{"$f":"IF(A8=\"  Levy replacement\",3,\"\")","v":""}]
[null,""]
[null,""]
[null,""]
[null,""]
[null,""]
["  Other transfers/grants [insert description]"]
["Provincial Government:",null,{"$f":"SUM(C16:C20)","v":0},{"$f":"SUM(D16:D20)","v":0},0,0,0,0,0,0,0]
[null,{"$f":"IF(A16=\"  Housing\",4,\"\")","v":""}]
[null,{"$f":"IF(A17=\"  Housing\",4,\"\")","v":""}]
[null,{"$f":"IF(A18=\"  Housing\",4,\"\")","v":""}]
[null,{"$f":"IF(A19=\"  Housing\",4,\"\")","v":""}]
[{"$f":"A14","v":"  Other transfers/grants [insert description]"}]
["District Municipality:",null,{"$f":"SUM(C22:C23)","v":0},{"$f":"SUM(D22:D23)","v":0},0,0,0,0,0,0,0]
["  [insert description]"]
[]
["Other grant providers:",null,{"$f":"SUM(C25:C26)","v":0},{"$f":"SUM(D25:D26)","v":0},0,0,0,0,0,0,0]
["  [insert description]"]
[]
["Total Operating Transfers and Grants",5,{"$f":"C7+C15+C21+C24","v":0},{"$f":"D7+D15+D21+D24","v":0},0,0,0,0,0,0,0]
[]
["Capital Transfers and Grants"]
[{"$f":"A7","v":"National Government:"},null,{"$f":"SUM(C31:C36)","v":0},{"$f":"SUM(D31:D36)","v":0},0,0,0,0,0,0,0]
[]
[]
[]
[]
[]
["  Other capital transfers/grants [insert desc]"]
[{"$f":"A15","v":"Provincial Government:"},null,{"$f":"SUM(C38)","v":0},{"$f":"SUM(D38)","v":0},0,0,0,0,0,0,0]
["Other capital transfers/grants [insert description]"]
[{"$f":"A21","v":"District Municipality:"},null,{"$f":"SUM(C40:C41)","v":0},0,0,0,0,0,0,0,0]
[{"$f":"A22","v":"  [insert description]"}]
[]
[{"$f":"A24","v":"Other grant providers:"},null,{"$f":"SUM(C43:C44)","v":0},{"$f":"SUM(D43:D44)","v":0},0,0,0,0,0,0,0]
[{"$f":"LEFT(A25,22)","v":"  [insert description]"}]
[]
["Total Capital Transfers and Grants",5,{"$f":"C30+C37+C39+C42","v":0},0,0,0,0,0,0,0,0]
["TOTAL RECEIPTS OF TRANSFERS & GRANTS",null,{"$f":"C27+C45","v":0},0,0,0,0,0,0,0,0]
[{"$f":"head27a","v":"References"}]
["1. Each transfer/grant is listed by name as gazetted together with the name of the transferring department or municipality, donor or other organisation"]
["2. Amounts actually RECEIVED; not revenue recognised (objective is to confirm grants transferred)"]
["3. Replacement of RSC levies"]
["4. Housing subsidies for housing where ownership transferred to organisations or persons outside the control of the municipality"]
["5. Total transfers and grants must reconcile to Budgeted Cash Flows"]
["6. Motor vehicle licensing refunds to be included under 'agency' services (Not Grant Receipts)"]

{"sheet":"SA19","index":49,"n_rows":49,"n_cols":11,"rows_kept":49,"cut":false,"hidden":false,"merged":[[1,5,1,7],[1,8,1,10]]}
[{"$f":"muni&\" - \"& TableA19","v":"DC16 Xhariep - Supporting Table SA19 Expenditure on transfers and grant programme"}]
[{"$f":"desc","v":"Description"},{"$f":"head27","v":"Ref"},{"$f":"head1b","v":"2017/18"},{"$f":"head1A","v":"2018/19"},{"$f":"Head1","v":"2019/20"},{"$f":"Head2","v":"Current Year 2020/21"},null,null,{"$f":"Head3","v":"2021/22 Medium Term Revenue & Expenditure Framework"}]
["R thousand",null,{"$f":"Head5","v":"Audited Outcome"},{"$f":"Head5","v":"Audited Outcome"},{"$f":"Head5","v":"Audited Outcome"},{"$f":"Head6","v":"Original Budget"},{"$f":"Head7","v":"Adjusted Budget"},{"$f":"Head8","v":"Full Year Forecast"},{"$f":"Head9","v":"Budget Year 2021/22"},{"$f":"Head10","v":"Budget Year +1 2022/23"},{"$f":"Head11","v":"Budget Year +2 2023/24"}]
["EXPENDITURE:",1]
[]
["Operating expenditure of Transfers and Grants"]
[{"$f":"'SA18'!A7","v":"National Government:"},null,{"$f":"SUM(C8:C14)","v":0},{"$f":"SUM(D8:D14)","v":0},0,0,0,0,0,0,0]
[{"$f":"IF('SA18'!A8=\"\",\"\",'SA18'!A8)","v":"Local Government Equitable Share"}]
[{"$f":"IF('SA18'!A9=\"\",\"\",'SA18'!A9)","v":""}]
[{"$f":"IF('SA18'!A10=\"\",\"\",'SA18'!A10)","v":""}]
[{"$f":"IF('SA18'!A11=\"\",\"\",'SA18'!A11)","v":""}]
[{"$f":"IF('SA18'!A12=\"\",\"\",'SA18'!A12)","v":""}]
[{"$f":"IF('SA18'!A13=\"\",\"\",'SA18'!A13)","v":""}]
[{"$f":"'SA18'!A14","v":"  Other transfers/grants [insert description]"}]
[{"$f":"'SA18'!A15","v":"Provincial Government:"},null,{"$f":"SUM(C16:C20)","v":0},{"$f":"SUM(D16:D20)","v":0},0,0,0,0,0,0,0]
[{"$f":"IF('SA18'!A16=\"\",\"\",'SA18'!A16)","v":""}]
[{"$f":"IF('SA18'!A17=\"\",\"\",'SA18'!A17)","v":""}]
[{"$f":"IF('SA18'!A18=\"\",\"\",'SA18'!A18)","v":""}]
[{"$f":"IF('SA18'!A19=\"\",\"\",'SA18'!A19)","v":""}]
[{"$f":"'SA18'!A20","v":"  Other transfers/grants [insert description]"}]
[{"$f":"'SA18'!A21","v":"District Municipality:"},null,{"$f":"SUM(C22:C23)","v":0},{"$f":"SUM(D22:D23)","v":0},0,0,0,0,0,0,0]
[{"$f":"'SA18'!A22","v":"  [insert description]"}]
[]
[{"$f":"'SA18'!A24","v":"Other grant providers:"},null,{"$f":"SUM(C25:C26)","v":0},{"$f":"SUM(D25:D26)","v":0},0,0,0,0,0,0,0]
[{"$f":"'SA18'!A25","v":"  [insert description]"}]
[]
["Total operating expenditure of Transfers and Grants:",null,{"$f":"C7+C15+C21+C24","v":0},0,0,0,0,0,0,0,0]
[]
["Capital expenditure of Transfers and Grants"]
[{"$f":"'SA18'!A30","v":"National Government:"},null,{"$f":"SUM(C31:C36)","v":0},{"$f":"SUM(D31:D36)","v":0},0,0,0,0,0,0,0]
[{"$f":"IF('SA18'!A31=\"\",\"\",'SA18'!A31)","v":""}]
[{"$f":"IF('SA18'!A32=\"\",\"\",'SA18'!A32)","v":""}]
[{"$f":"IF('SA18'!A33=\"\",\"\",'SA18'!A33)","v":""}]
[{"$f":"IF('SA18'!A34=\"\",\"\",'SA18'!A34)","v":""}]
[{"$f":"IF('SA18'!A35=\"\",\"\",'SA18'!A35)","v":""}]
[{"$f":"'SA18'!A36","v":"  Other capital transfers/grants [insert desc]"}]
[{"$f":"'SA18'!A37","v":"Provincial Government:"},null,{"$f":"SUM(C38)","v":0},{"$f":"SUM(D38)","v":0},0,0,0,0,0,0,0]
[{"$f":"'SA18'!A38","v":"Other capital transfers/grants [insert description]"}]
[{"$f":"'SA18'!A39","v":"District Municipality:"},null,{"$f":"SUM(C40:C41)","v":0},{"$f":"SUM(D40:D41)","v":0},0,0,0,0,0,0,0]
[{"$f":"'SA18'!A40","v":"  [insert description]"}]
[]
[{"$f":"'SA18'!A42","v":"Other grant providers:"},null,{"$f":"SUM(C43:C44)","v":0},{"$f":"SUM(D43:D44)","v":0},0,0,0,0,0,0,0]
[{"$f":"'SA18'!A43","v":"  [insert description]"}]
[]
["Total capital expenditure of Transfers and Grants",null,{"$f":"C30+C37+C39+C42","v":0},{"$f":"D30+D37+D39+D42","v":0},0,0,0,0,0,0,0]
[]
["TOTAL EXPENDITURE OF TRANSFERS AND GRANTS",null,{"$f":"C27+C45","v":0},0,0,0,0,0,0,0,0]
[{"$f":"head27a","v":"References"}]
["1. Expenditure must be separately listed for each transfer or grant received or recognised"]

{"sheet":"SA20","index":50,"n_rows":60,"n_cols":11,"rows_kept":60,"cut":false,"hidden":false,"merged":[[56,0,56,10],[1,5,1,7],[1,8,1,10],[54,0,54,10],[55,0,55,10]]}
[{"$f":"muni&\" - \"& TableA20","v":"DC16 Xhariep - Supporting Table SA20 Reconciliation of transfers, grant receipts and unspent funds"}]
[{"$f":"desc","v":"Description"},{"$f":"head27","v":"Ref"},{"$f":"head1b","v":"2017/18"},{"$f":"head1A","v":"2018/19"},{"$f":"Head1","v":"2019/20"},{"$f":"Head2","v":"Current Year 2020/21"},null,null,{"$f":"Head3","v":"2021/22 Medium Term Revenue & Expenditure Framework"}]
["R thousand",null,{"$f":"Head5","v":"Audited Outcome"},{"$f":"Head5","v":"Audited Outcome"},{"$f":"Head5","v":"Audited Outcome"},{"$f":"Head6","v":"Original Budget"},{"$f":"Head7","v":"Adjusted Budget"},{"$f":"Head8","v":"Full Year Forecast"},{"$f":"Head9","v":"Budget Year 2021/22"},{"$f":"Head10","v":"Budget Year +1 2022/23"},{"$f":"Head11","v":"Budget Year +2 2023/24"}]
["Operating transfers and grants:","1,3"]
[{"$f":"'SA18'!A7","v":"National Government:"}]
["Balance unspent at beginning of the year"]
["Current year receipts"]
["Conditions met - transferred to revenue",null,{"$f":"C6+C7-C9","v":0},{"$f":"D6+D7-D9","v":0},0,0,0,0,0,0,0]
["Conditions still to be met - transferred to liabilities"]
["Provincial Government:"]
["Balance unspent at beginning of the year"]
[{"$f":"A7","v":"Current year receipts"}]
[{"$f":"A8","v":"Conditions met - transferred to revenue"},null,{"$f":"C11+C12-C14","v":0},0,0,0,0,0,0,0,0]
[{"$f":"A9","v":"Conditions still to be met - transferred to liabilities"}]
["District Municipality:"]
[{"$f":"A11","v":"Balance unspent at beginning of the year"}]
[{"$f":"A12","v":"Current year receipts"}]
[{"$f":"A13","v":"Conditions met - transferred to revenue"},null,{"$f":"C16+C17-C19","v":0},0,0,0,0,0,0,0,0]
[{"$f":"A14","v":"Conditions still to be met - transferred to liabilities"}]
["Other grant providers:"]
[{"$f":"A11","v":"Balance unspent at beginning of the year"}]
[{"$f":"A12","v":"Current year receipts"}]
[{"$f":"A13","v":"Conditions met - transferred to revenue"},null,{"$f":"C21+C22-C24","v":0},0,0,0,0,0,0,0,0]
[{"$f":"A14","v":"Conditions still to be met - transferred to liabilities"}]
["Total operating transfers and grants revenue",null,{"$f":"C8+C13+C18+C23","v":0},0,0,0,0,0,0,0,0]
["Total operating transfers and grants - CTBM",2,0,0,0,0,0,0,0,0,0]
[]
["Capital transfers and grants:","1,3"]
[{"$f":"A5","v":"National Government:"}]
["Balance unspent at beginning of the year"]
["Current year receipts"]
["Conditions met - transferred to revenue",null,{"$f":"C30+C31-C33","v":0},0,0,0,0,0,0,0,0]
["Conditions still to be met - transferred to liabilities"]
["Provincial Government:"]
["Balance unspent at beginning of the year"]
[{"$f":"A31","v":"Current year receipts"}]
[{"$f":"A32","v":"Conditions met - transferred to revenue"},null,{"$f":"C35+C36-C38","v":0},0,0,0,0,0,0,0,0]
[{"$f":"A33","v":"Conditions still to be met - transferred to liabilities"}]
["District Municipality:"]
[{"$f":"A35","v":"Balance unspent at beginning of the year"}]
[{"$f":"A36","v":"Current year receipts"}]
[{"$f":"A37","v":"Conditions met - transferred to revenue"},null,{"$f":"C40+C41-C43","v":0},0,0,0,0,0,0,0,0]
[{"$f":"A38","v":"Conditions still to be met - transferred to liabilities"}]
["Other grant providers:"]
[{"$f":"A35","v":"Balance unspent at beginning of the year"}]
[{"$f":"A36","v":"Current year receipts"}]
[{"$f":"A37","v":"Conditions met - transferred to revenue"},null,{"$f":"C45+C46-C48","v":0},0,0,0,0,0,0,0,0]
[{"$f":"A38","v":"Conditions still to be met - transferred to liabilities"}]
["Total capital transfers and grants revenue",null,{"$f":"C32+C37+C42+C47","v":0},0,0,0,0,0,0,0,0]
["Total capital transfers and grants - CTBM",2,0,0,0,0,0,0,0,0,0]
[]
["TOTAL TRANSFERS AND GRANTS REVENUE",null,{"$f":"C25+C49","v":0},0,0,0,0,0,0,0,0]
["TOTAL TRANSFERS AND GRANTS - CTBM",null,{"$f":"C26+C50","v":0},{"$f":"D26+D50","v":0},0,0,0,0,0,0,0]
[{"$f":"head27a","v":"References"}]
["1. Total capital transfers and grants revenue must reconcile to Budgeted Financial Performance and Financial Position; total recurrent grants revenue must reconcile to Budgeted Financial Performance"]
["2. CTBM = conditions to be met"]
["3. National Treasury database will require this reconciliation for each transfer/grant"]
[]
["Check opex",null,{"$f":"C25-'A4-FinPerf RE'!C18","v":0},{"$f":"D25-'A4-FinPerf RE'!D18","v":-67741058},{"$f":"E25-'A4-FinPerf RE'!E18","v":-64831724},{"$f":"F25-'A4-FinPerf RE'!F18","v":-66302000},{"$f":"G25-'A4-FinPerf RE'!G18","v":-68101000},{"$f":"H25-'A4-FinPerf RE'!H18","v":-68101000},{"$f":"I25-'A4-FinPerf RE'!J18","v":-61832000},{"$f":"J25-'A4-FinPerf RE'!K18","v":-67840724},{"$f":"K25-'A4-FinPerf RE'!L18","v":-69212323}]
["Check capex",null,{"$f":"C49-'A5-Capex'!C70","v":0},{"$f":"D49-'A5-Capex'!D70","v":0},{"$f":"E49-'A5-Capex'!E70","v":0},{"$f":"F49-'A5-Capex'!F70","v":0},{"$f":"G49-'A5-Capex'!G70","v":0},{"$f":"H49-'A5-Capex'!H70","v":0},{"$f":"I49-'A5-Capex'!J70","v":0},{"$f":"J49-'A5-Capex'!K70","v":0},{"$f":"K49-'A5-Capex'!L70","v":0}]

{"sheet":"SA21","index":51,"n_rows":71,"n_cols":29,"rows_kept":71,"cut":false,"hidden":false,"merged":[[1,9,1,11],[1,5,1,8]]}
[{"$f":"muni&\" - \"& TableA21","v":"DC16 Xhariep - Supporting Table SA21 Transfers and grants made by the municipality"}]
[{"$f":"desc","v":"Description"},{"$f":"head27","v":"Ref"},{"$f":"head1b","v":"2017/18"},{"$f":"head1A","v":"2018/19"},{"$f":"Head1","v":"2019/20"},{"$f":"Head2","v":"Current Year 2020/21"},null,null,null,{"$f":"Head3","v":"2021/22 Medium Term Revenue & Expenditure Framework"}]
["R thousand",null,{"$f":"Head5","v":"Audited Outcome"},{"$f":"Head5","v":"Audited Outcome"},{"$f":"Head5","v":"Audited Outcome"},{"$f":"Head6","v":"Original Budget"},{"$f":"Head7","v":"Adjusted Budget"},{"$f":"Head8","v":"Full Year Forecast"},{"$f":"Head5b","v":"Pre-audit outcome"},{"$f":"Head9","v":"Budget Year 2021/22"},{"$f":"Head10","v":"Budget Year +1 2022/23"},{"$f":"Head11","v":"Budget Year +2 2023/24"}]
[]
["Cash Transfers to other municipalities"]
["Insert description",1,{"$f":"SUMIFS(Sheet1!S71_PPPYearAmount,Sheet1!S71_A4SubCode,$AC:$AC)","v":0},{"$f":"SUMIFS(Sheet1!S71_PPYearAmount,Sheet1!S71_A4SubCode,$AC:$AC)","v":0},{"$f":"SUMIFS(Sheet1!S71_PYearAmount,Sheet1!S71_A4SubCode,$AC:$AC)","v":0},{"$f":"SUMIFS(Sheet1!S71_OriginalBudAmnt,Sheet1!S71_A4SubCode,$AC:$AC)","v":0},{"$f":"SUMIFS(Sheet1!S71_AdjustmentBudAmnt,Sheet1!S71_A4SubCode,$AC:$AC)","v":0},{"$f":"SUMIFS(Sheet1!S71_AdjustmentBudAmnt,Sheet1!S71_A4SubCode,$AC:$AC)","v":0},{"$f":"SUMIFS(Sheet1!CD:CD,Sheet1!S71_A4SubCode,$AC:$AC)","v":0},{"$f":"SUMIFS(Sheet1!S71_ASBudgetAmount,Sheet1!S71_A4SubCode,$AC:$AC)","v":0},{"$f":"SUMIFS(Sheet1!S71_OY1BudgetAmount,Sheet1!S71_A4SubCode,$AC:$AC)","v":0},{"$f":"SUMIFS(Sheet1!S71_OY2BudgetAmount,Sheet1!S71_A4SubCode,$AC:$AC)","v":0},null,null,null,null,null,null,null,null,null,null,null,null,null,null,null,null,"28000101"]
[null,null,{"$f":"SUMIFS(Sheet1!S71_PPPYearAmount,Sheet1!S71_A4SubCode,$AC:$AC)","v":0},{"$f":"SUMIFS(Sheet1!S71_PPYearAmount,Sheet1!S71_A4SubCode,$AC:$AC)","v":0},{"$f":"SUMIFS(Sheet1!S71_PYearAmount,Sheet1!S71_A4SubCode,$AC:$AC)","v":0},{"$f":"SUMIFS(Sheet1!S71_OriginalBudAmnt,Sheet1!S71_A4SubCode,$AC:$AC)","v":0},{"$f":"SUMIFS(Sheet1!S71_AdjustmentBudAmnt,Sheet1!S71_A4SubCode,$AC:$AC)","v":0},{"$f":"SUMIFS(Sheet1!S71_AdjustmentBudAmnt,Sheet1!S71_A4SubCode,$AC:$AC)","v":0},{"$f":"SUMIFS(Sheet1!CD:CD,Sheet1!S71_A4SubCode,$AC:$AC)","v":0},{"$f":"SUMIFS(Sheet1!S71_ASBudgetAmount,Sheet1!S71_A4SubCode,$AC:$AC)","v":0},{"$f":"SUMIFS(Sheet1!S71_OY1BudgetAmount,Sheet1!S71_A4SubCode,$AC:$AC)","v":0},{"$f":"SUMIFS(Sheet1!S71_OY2BudgetAmount,Sheet1!S71_A4SubCode,$AC:$AC)","v":0}]
[null,null,{"$f":"SUMIFS(Sheet1!S71_PPPYearAmount,Sheet1!S71_A4SubCode,$AC:$AC)","v":0},{"$f":"SUMIFS(Sheet1!S71_PPYearAmount,Sheet1!S71_A4SubCode,$AC:$AC)","v":0},{"$f":"SUMIFS(Sheet1!S71_PYearAmount,Sheet1!S71_A4SubCode,$AC:$AC)","v":0},{"$f":"SUMIFS(Sheet1!S71_OriginalBudAmnt,Sheet1!S71_A4SubCode,$AC:$AC)","v":0},{"$f":"SUMIFS(Sheet1!S71_AdjustmentBudAmnt,Sheet1!S71_A4SubCode,$AC:$AC)","v":0},{"$f":"SUMIFS(Sheet1!S71_AdjustmentBudAmnt,Sheet1!S71_A4SubCode,$AC:$AC)","v":0},{"$f":"SUMIFS(Sheet1!CD:CD,Sheet1!S71_A4SubCode,$AC:$AC)","v":0},{"$f":"SUMIFS(Sheet1!S71_ASBudgetAmount,Sheet1!S71_A4SubCode,$AC:$AC)","v":0},{"$f":"SUMIFS(Sheet1!S71_OY1BudgetAmount,Sheet1!S71_A4SubCode,$AC:$AC)","v":0},{"$f":"SUMIFS(Sheet1!S71_OY2BudgetAmount,Sheet1!S71_A4SubCode,$AC:$AC)","v":0}]
["Total Cash Transfers To Municipalities:",null,{"$f":"SUM(C6:C8)","v":0},{"$f":"SUM(D6:D8)","v":0},0,0,0,0,0,0,0,0]
[]
["Cash Transfers to Entities/Other External Mechanisms"]
[{"$f":"$A$6","v":"Insert description"},2,{"$f":"SUMIFS(Sheet1!S71_PPPYearAmount,Sheet1!S71_A4SubCode,$AC:$AC)","v":0},{"$f":"SUMIFS(Sheet1!S71_PPYearAmount,Sheet1!S71_A4SubCode,$AC:$AC)","v":0},{"$f":"SUMIFS(Sheet1!S71_PYearAmount,Sheet1!S71_A4SubCode,$AC:$AC)","v":0},{"$f":"SUMIFS(Sheet1!S71_OriginalBudAmnt,Sheet1!S71_A4SubCode,$AC:$AC)","v":0},{"$f":"SUMIFS(Sheet1!S71_AdjustmentBudAmnt,Sheet1!S71_A4SubCode,$AC:$AC)","v":0},{"$f":"SUMIFS(Sheet1!S71_AdjustmentBudAmnt,Sheet1!S71_A4SubCode,$AC:$AC)","v":0},{"$f":"SUMIFS(Sheet1!CD:CD,Sheet1!S71_A4SubCode,$AC:$AC)","v":0},{"$f":"SUMIFS(Sheet1!S71_ASBudgetAmount,Sheet1!S71_A4SubCode,$AC:$AC)","v":0},{"$f":"SUMIFS(Sheet1!S71_OY1BudgetAmount,Sheet1!S71_A4SubCode,$AC:$AC)","v":0},{"$f":"SUMIFS(Sheet1!S71_OY2BudgetAmount,Sheet1!S71_A4SubCode,$AC:$AC)","v":0},null,null,null,null,null,null,null,null,null,null,null,null,null,null,null,null,"28000102"]
[null,null,{"$f":"SUMIFS(Sheet1!S71_PPPYearAmount,Sheet1!S71_A4SubCode,$AC:$AC)","v":0},{"$f":"SUMIFS(Sheet1!S71_PPYearAmount,Sheet1!S71_A4SubCode,$AC:$AC)","v":0},{"$f":"SUMIFS(Sheet1!S71_PYearAmount,Sheet1!S71_A4SubCode,$AC:$AC)","v":0},{"$f":"SUMIFS(Sheet1!S71_OriginalBudAmnt,Sheet1!S71_A4SubCode,$AC:$AC)","v":0},{"$f":"SUMIFS(Sheet1!S71_AdjustmentBudAmnt,Sheet1!S71_A4SubCode,$AC:$AC)","v":0},{"$f":"SUMIFS(Sheet1!S71_AdjustmentBudAmnt,Sheet1!S71_A4SubCode,$AC:$AC)","v":0},{"$f":"SUMIFS(Sheet1!CD:CD,Sheet1!S71_A4SubCode,$AC:$AC)","v":0},{"$f":"SUMIFS(Sheet1!S71_ASBudgetAmount,Sheet1!S71_A4SubCode,$AC:$AC)","v":0},{"$f":"SUMIFS(Sheet1!S71_OY1BudgetAmount,Sheet1!S71_A4SubCode,$AC:$AC)","v":0},{"$f":"SUMIFS(Sheet1!S71_OY2BudgetAmount,Sheet1!S71_A4SubCode,$AC:$AC)","v":0}]
[null,null,{"$f":"SUMIFS(Sheet1!S71_PPPYearAmount,Sheet1!S71_A4SubCode,$AC:$AC)","v":0},{"$f":"SUMIFS(Sheet1!S71_PPYearAmount,Sheet1!S71_A4SubCode,$AC:$AC)","v":0},{"$f":"SUMIFS(Sheet1!S71_PYearAmount,Sheet1!S71_A4SubCode,$AC:$AC)","v":0},{"$f":"SUMIFS(Sheet1!S71_OriginalBudAmnt,Sheet1!S71_A4SubCode,$AC:$AC)","v":0},{"$f":"SUMIFS(Sheet1!S71_AdjustmentBudAmnt,Sheet1!S71_A4SubCode,$AC:$AC)","v":0},{"$f":"SUMIFS(Sheet1!S71_AdjustmentBudAmnt,Sheet1!S71_A4SubCode,$AC:$AC)","v":0},{"$f":"SUMIFS(Sheet1!CD:CD,Sheet1!S71_A4SubCode,$AC:$AC)","v":0},{"$f":"SUMIFS(Sheet1!S71_ASBudgetAmount,Sheet1!S71_A4SubCode,$AC:$AC)","v":0},{"$f":"SUMIFS(Sheet1!S71_OY1BudgetAmount,Sheet1!S71_A4SubCode,$AC:$AC)","v":0},{"$f":"SUMIFS(Sheet1!S71_OY2BudgetAmount,Sheet1!S71_A4SubCode,$AC:$AC)","v":0}]
["Total Cash Transfers To Entities/Ems'",null,{"$f":"SUM(C12:C14)","v":0},{"$f":"SUM(D12:D14)","v":0},0,0,0,0,0,0,0,0]
[]
["Cash Transfers to other Organs of State"]
[{"$f":"$A$6","v":"Insert description"},3,{"$f":"SUMIFS(Sheet1!S71_PPPYearAmount,Sheet1!S71_A4SubCode,$AC:$AC)","v":0},{"$f":"SUMIFS(Sheet1!S71_PPYearAmount,Sheet1!S71_A4SubCode,$AC:$AC)","v":0},{"$f":"SUMIFS(Sheet1!S71_PYearAmount,Sheet1!S71_A4SubCode,$AC:$AC)","v":13043},{"$f":"SUMIFS(Sheet1!S71_OriginalBudAmnt,Sheet1!S71_A4SubCode,$AC:$AC)","v":0},{"$f":"SUMIFS(Sheet1!S71_AdjustmentBudAmnt,Sheet1!S71_A4SubCode,$AC:$AC)","v":130000},{"$f":"SUMIFS(Sheet1!S71_AdjustmentBudAmnt,Sheet1!S71_A4SubCode,$AC:$AC)","v":130000},{"$f":"SUMIFS(Sheet1!CD:CD,Sheet1!S71_A4SubCode,$AC:$AC)","v":0},{"$f":"SUMIFS(Sheet1!S71_ASBudgetAmount,Sheet1!S71_A4SubCode,$AC:$AC)","v":0},{"$f":"SUMIFS(Sheet1!S71_OY1BudgetAmount,Sheet1!S71_A4SubCode,$AC:$AC)","v":0},{"$f":"SUMIFS(Sheet1!S71_OY2BudgetAmount,Sheet1!S71_A4SubCode,$AC:$AC)","v":0},null,null,null,null,null,null,null,null,null,null,null,null,null,null,null,null,"28000103"]
[null,null,{"$f":"SUMIFS(Sheet1!S71_PPPYearAmount,Sheet1!S71_A4SubCode,$AC:$AC)","v":0},{"$f":"SUMIFS(Sheet1!S71_PPYearAmount,Sheet1!S71_A4SubCode,$AC:$AC)","v":0},{"$f":"SUMIFS(Sheet1!S71_PYearAmount,Sheet1!S71_A4SubCode,$AC:$AC)","v":0},{"$f":"SUMIFS(Sheet1!S71_OriginalBudAmnt,Sheet1!S71_A4SubCode,$AC:$AC)","v":0},{"$f":"SUMIFS(Sheet1!S71_AdjustmentBudAmnt,Sheet1!S71_A4SubCode,$AC:$AC)","v":0},{"$f":"SUMIFS(Sheet1!S71_AdjustmentBudAmnt,Sheet1!S71_A4SubCode,$AC:$AC)","v":0},{"$f":"SUMIFS(Sheet1!CD:CD,Sheet1!S71_A4SubCode,$AC:$AC)","v":0},{"$f":"SUMIFS(Sheet1!S71_ASBudgetAmount,Sheet1!S71_A4SubCode,$AC:$AC)","v":0},{"$f":"SUMIFS(Sheet1!S71_OY1BudgetAmount,Sheet1!S71_A4SubCode,$AC:$AC)","v":0},{"$f":"SUMIFS(Sheet1!S71_OY2BudgetAmount,Sheet1!S71_A4SubCode,$AC:$AC)","v":0}]
[null,null,{"$f":"SUMIFS(Sheet1!S71_PPPYearAmount,Sheet1!S71_A4SubCode,$AC:$AC)","v":0},{"$f":"SUMIFS(Sheet1!S71_PPYearAmount,Sheet1!S71_A4SubCode,$AC:$AC)","v":0},{"$f":"SUMIFS(Sheet1!S71_PYearAmount,Sheet1!S71_A4SubCode,$AC:$AC)","v":0},{"$f":"SUMIFS(Sheet1!S71_OriginalBudAmnt,Sheet1!S71_A4SubCode,$AC:$AC)","v":0},{"$f":"SUMIFS(Sheet1!S71_AdjustmentBudAmnt,Sheet1!S71_A4SubCode,$AC:$AC)","v":0},{"$f":"SUMIFS(Sheet1!S71_AdjustmentBudAmnt,Sheet1!S71_A4SubCode,$AC:$AC)","v":0},{"$f":"SUMIFS(Sheet1!CD:CD,Sheet1!S71_A4SubCode,$AC:$AC)","v":0},{"$f":"SUMIFS(Sheet1!S71_ASBudgetAmount,Sheet1!S71_A4SubCode,$AC:$AC)","v":0},{"$f":"SUMIFS(Sheet1!S71_OY1BudgetAmount,Sheet1!S71_A4SubCode,$AC:$AC)","v":0},{"$f":"SUMIFS(Sheet1!S71_OY2BudgetAmount,Sheet1!S71_A4SubCode,$AC:$AC)","v":0}]
["Total Cash Transfers To Other Organs Of State:",null,{"$f":"SUM(C18:C20)","v":0},{"$f":"SUM(D18:D20)","v":0},13043,0,130000,130000,0,0,{"$f":"SUM(K18:K20)","v":0},0]
[]
["Cash Transfers to Organisations"]
[{"$f":"$A$6","v":"Insert description"},null,{"$f":"SUMIFS(Sheet1!S71_PPPYearAmount,Sheet1!S71_A4SubCode,$AC:$AC)","v":0},{"$f":"SUMIFS(Sheet1!S71_PPYearAmount,Sheet1!S71_A4SubCode,$AC:$AC)","v":0},{"$f":"SUMIFS(Sheet1!S71_PYearAmount,Sheet1!S71_A4SubCode,$AC:$AC)","v":0},{"$f":"SUMIFS(Sheet1!S71_OriginalBudAmnt,Sheet1!S71_A4SubCode,$AC:$AC)","v":0},{"$f":"SUMIFS(Sheet1!S71_AdjustmentBudAmnt,Sheet1!S71_A4SubCode,$AC:$AC)","v":0},{"$f":"SUMIFS(Sheet1!S71_AdjustmentBudAmnt,Sheet1!S71_A4SubCode,$AC:$AC)","v":0},{"$f":"SUMIFS(Sheet1!CD:CD,Sheet1!S71_A4SubCode,$AC:$AC)","v":0},{"$f":"SUMIFS(Sheet1!S71_ASBudgetAmount,Sheet1!S71_A4SubCode,$AC:$AC)","v":0},{"$f":"SUMIFS(Sheet1!S71_OY1BudgetAmount,Sheet1!S71_A4SubCode,$AC:$AC)","v":0},{"$f":"SUMIFS(Sheet1!S71_OY2BudgetAmount,Sheet1!S71_A4SubCode,$AC:$AC)","v":0},null,null,null,null,null,null,null,null,null,null,null,null,null,null,null,null,"28000104"]
[null,null,{"$f":"SUMIFS(Sheet1!S71_PPPYearAmount,Sheet1!S71_A4SubCode,$AC:$AC)","v":0},{"$f":"SUMIFS(Sheet1!S71_PPYearAmount,Sheet1!S71_A4SubCode,$AC:$AC)","v":0},{"$f":"SUMIFS(Sheet1!S71_PYearAmount,Sheet1!S71_A4SubCode,$AC:$AC)","v":0},{"$f":"SUMIFS(Sheet1!S71_OriginalBudAmnt,Sheet1!S71_A4SubCode,$AC:$AC)","v":0},{"$f":"SUMIFS(Sheet1!S71_AdjustmentBudAmnt,Sheet1!S71_A4SubCode,$AC:$AC)","v":0},{"$f":"SUMIFS(Sheet1!S71_AdjustmentBudAmnt,Sheet1!S71_A4SubCode,$AC:$AC)","v":0},{"$f":"SUMIFS(Sheet1!CD:CD,Sheet1!S71_A4SubCode,$AC:$AC)","v":0},{"$f":"SUMIFS(Sheet1!S71_ASBudgetAmount,Sheet1!S71_A4SubCode,$AC:$AC)","v":0},{"$f":"SUMIFS(Sheet1!S71_OY1BudgetAmount,Sheet1!S71_A4SubCode,$AC:$AC)","v":0},{"$f":"SUMIFS(Sheet1!S71_OY2BudgetAmount,Sheet1!S71_A4SubCode,$AC:$AC)","v":0}]
["Total Cash Transfers To Organisations",null,{"$f":"SUM(C24:C25)","v":0},0,0,0,0,0,0,0,0,0]
[]
["Cash Transfers to Groups of Individuals"]
[{"$f":"$A$6","v":"Insert description"},null,{"$f":"SUMIFS(Sheet1!S71_PPPYearAmount,Sheet1!S71_A4SubCode,$AC:$AC)","v":0},{"$f":"SUMIFS(Sheet1!S71_PPYearAmount,Sheet1!S71_A4SubCode,$AC:$AC)","v":37004},{"$f":"SUMIFS(Sheet1!S71_PYearAmount,Sheet1!S71_A4SubCode,$AC:$AC)","v":84105},{"$f":"SUMIFS(Sheet1!S71_OriginalBudAmnt,Sheet1!S71_A4SubCode,$AC:$AC)","v":10000},{"$f":"SUMIFS(Sheet1!S71_AdjustmentBudAmnt,Sheet1!S71_A4SubCode,$AC:$AC)","v":51950},{"$f":"SUMIFS(Sheet1!S71_AdjustmentBudAmnt,Sheet1!S71_A4SubCode,$AC:$AC)","v":51950},{"$f":"SUMIFS(Sheet1!CD:CD,Sheet1!S71_A4SubCode,$AC:$AC)","v":81111},{"$f":"SUMIFS(Sheet1!S71_ASBudgetAmount,Sheet1!S71_A4SubCode,$AC:$AC)","v":72000},{"$f":"SUMIFS(Sheet1!S71_OY1BudgetAmount,Sheet1!S71_A4SubCode,$AC:$AC)","v":72000},{"$f":"SUMIFS(Sheet1!S71_OY2BudgetAmount,Sheet1!S71_A4SubCode,$AC:$AC)","v":72000},null,null,null,null,null,null,null,null,null,null,null,null,null,null,null,null,"28000105"]
[null,null,{"$f":"SUMIFS(Sheet1!S71_PPPYearAmount,Sheet1!S71_A4SubCode,$AC:$AC)","v":0},{"$f":"SUMIFS(Sheet1!S71_PPYearAmount,Sheet1!S71_A4SubCode,$AC:$AC)","v":0},{"$f":"SUMIFS(Sheet1!S71_PYearAmount,Sheet1!S71_A4SubCode,$AC:$AC)","v":0},{"$f":"SUMIFS(Sheet1!S71_OriginalBudAmnt,Sheet1!S71_A4SubCode,$AC:$AC)","v":0},{"$f":"SUMIFS(Sheet1!S71_AdjustmentBudAmnt,Sheet1!S71_A4SubCode,$AC:$AC)","v":0},{"$f":"SUMIFS(Sheet1!S71_AdjustmentBudAmnt,Sheet1!S71_A4SubCode,$AC:$AC)","v":0},{"$f":"SUMIFS(Sheet1!CD:CD,Sheet1!S71_A4SubCode,$AC:$AC)","v":0},{"$f":"SUMIFS(Sheet1!S71_ASBudgetAmount,Sheet1!S71_A4SubCode,$AC:$AC)","v":0},{"$f":"SUMIFS(Sheet1!S71_OY1BudgetAmount,Sheet1!S71_A4SubCode,$AC:$AC)","v":0},{"$f":"SUMIFS(Sheet1!S71_OY2BudgetAmount,Sheet1!S71_A4SubCode,$AC:$AC)","v":0}]
["Total Cash Transfers To Groups Of Individuals:",null,{"$f":"SUM(C29:C30)","v":0},37004,84105,10000,51950,51950,81111,72000,72000,72000]
["TOTAL CASH TRANSFERS AND GRANTS",6,{"$f":"C9+C15+C21+C26+C31","v":0},37004,97148,10000,181950,181950,81111,72000,72000,72000]
[]
["Non-Cash Transfers to other municipalities"]
["Insert description",1,{"$f":"SUMIFS(Sheet1!S71_PPPYearAmount,Sheet1!S71_A4SubCode,$AC:$AC)","v":0},{"$f":"SUMIFS(Sheet1!S71_PPYearAmount,Sheet1!S71_A4SubCode,$AC:$AC)","v":0},{"$f":"SUMIFS(Sheet1!S71_PYearAmount,Sheet1!S71_A4SubCode,$AC:$AC)","v":0},{"$f":"SUMIFS(Sheet1!S71_OriginalBudAmnt,Sheet1!S71_A4SubCode,$AC:$AC)","v":0},{"$f":"SUMIFS(Sheet1!S71_AdjustmentBudAmnt,Sheet1!S71_A4SubCode,$AC:$AC)","v":0},{"$f":"SUMIFS(Sheet1!S71_AdjustmentBudAmnt,Sheet1!S71_A4SubCode,$AC:$AC)","v":0},{"$f":"SUMIFS(Sheet1!CD:CD,Sheet1!S71_A4SubCode,$AC:$AC)","v":0},{"$f":"SUMIFS(Sheet1!S71_ASBudgetAmount,Sheet1!S71_A4SubCode,$AC:$AC)","v":0},{"$f":"SUMIFS(Sheet1!S71_OY1BudgetAmount,Sheet1!S71_A4SubCode,$AC:$AC)","v":0},{"$f":"SUMIFS(Sheet1!S71_OY2BudgetAmount,Sheet1!S71_A4SubCode,$AC:$AC)","v":0},null,null,null,null,null,null,null,null,null,null,null,null,null,null,null,null,"28000201"]
[null,null,{"$f":"SUMIFS(Sheet1!S71_PPPYearAmount,Sheet1!S71_A4SubCode,$AC:$AC)","v":0},{"$f":"SUMIFS(Sheet1!S71_PPYearAmount,Sheet1!S71_A4SubCode,$AC:$AC)","v":0},{"$f":"SUMIFS(Sheet1!S71_PYearAmount,Sheet1!S71_A4SubCode,$AC:$AC)","v":0},{"$f":"SUMIFS(Sheet1!S71_OriginalBudAmnt,Sheet1!S71_A4SubCode,$AC:$AC)","v":0},{"$f":"SUMIFS(Sheet1!S71_AdjustmentBudAmnt,Sheet1!S71_A4SubCode,$AC:$AC)","v":0},{"$f":"SUMIFS(Sheet1!S71_AdjustmentBudAmnt,Sheet1!S71_A4SubCode,$AC:$AC)","v":0},{"$f":"SUMIFS(Sheet1!CD:CD,Sheet1!S71_A4SubCode,$AC:$AC)","v":0},{"$f":"SUMIFS(Sheet1!S71_ASBudgetAmount,Sheet1!S71_A4SubCode,$AC:$AC)","v":0},{"$f":"SUMIFS(Sheet1!S71_OY1BudgetAmount,Sheet1!S71_A4SubCode,$AC:$AC)","v":0},{"$f":"SUMIFS(Sheet1!S71_OY2BudgetAmount,Sheet1!S71_A4SubCode,$AC:$AC)","v":0}]
[null,null,{"$f":"SUMIFS(Sheet1!S71_PPPYearAmount,Sheet1!S71_A4SubCode,$AC:$AC)","v":0},{"$f":"SUMIFS(Sheet1!S71_PPYearAmount,Sheet1!S71_A4SubCode,$AC:$AC)","v":0},{"$f":"SUMIFS(Sheet1!S71_PYearAmount,Sheet1!S71_A4SubCode,$AC:$AC)","v":0},{"$f":"SUMIFS(Sheet1!S71_OriginalBudAmnt,Sheet1!S71_A4SubCode,$AC:$AC)","v":0},{"$f":"SUMIFS(Sheet1!S71_AdjustmentBudAmnt,Sheet1!S71_A4SubCode,$AC:$AC)","v":0},{"$f":"SUMIFS(Sheet1!S71_AdjustmentBudAmnt,Sheet1!S71_A4SubCode,$AC:$AC)","v":0},{"$f":"SUMIFS(Sheet1!CD:CD,Sheet1!S71_A4SubCode,$AC:$AC)","v":0},{"$f":"SUMIFS(Sheet1!S71_ASBudgetAmount,Sheet1!S71_A4SubCode,$AC:$AC)","v":0},{"$f":"SUMIFS(Sheet1!S71_OY1BudgetAmount,Sheet1!S71_A4SubCode,$AC:$AC)","v":0},{"$f":"SUMIFS(Sheet1!S71_OY2BudgetAmount,Sheet1!S71_A4SubCode,$AC:$AC)","v":0}]
["Total Non-Cash Transfers To Municipalities:",null,{"$f":"SUM(C35:C37)","v":0},{"$f":"SUM(D35:D37)","v":0},0,0,0,0,0,0,0,0]
[]
["Non-Cash Transfers to Entities/Other External Mechanisms"]
[{"$f":"$A$6","v":"Insert description"},2,{"$f":"SUMIFS(Sheet1!S71_PPPYearAmount,Sheet1!S71_A4SubCode,$AC:$AC)","v":0},{"$f":"SUMIFS(Sheet1!S71_PPYearAmount,Sheet1!S71_A4SubCode,$AC:$AC)","v":0},{"$f":"SUMIFS(Sheet1!S71_PYearAmount,Sheet1!S71_A4SubCode,$AC:$AC)","v":0},{"$f":"SUMIFS(Sheet1!S71_OriginalBudAmnt,Sheet1!S71_A4SubCode,$AC:$AC)","v":0},{"$f":"SUMIFS(Sheet1!S71_AdjustmentBudAmnt,Sheet1!S71_A4SubCode,$AC:$AC)","v":0},{"$f":"SUMIFS(Sheet1!S71_AdjustmentBudAmnt,Sheet1!S71_A4SubCode,$AC:$AC)","v":0},{"$f":"SUMIFS(Sheet1!CD:CD,Sheet1!S71_A4SubCode,$AC:$AC)","v":0},{"$f":"SUMIFS(Sheet1!S71_ASBudgetAmount,Sheet1!S71_A4SubCode,$AC:$AC)","v":0},{"$f":"SUMIFS(Sheet1!S71_OY1BudgetAmount,Sheet1!S71_A4SubCode,$AC:$AC)","v":0},{"$f":"SUMIFS(Sheet1!S71_OY2BudgetAmount,Sheet1!S71_A4SubCode,$AC:$AC)","v":0},null,null,null,null,null,null,null,null,null,null,null,null,null,null,null,null,"28000202"]
[null,null,{"$f":"SUMIFS(Sheet1!S71_PPPYearAmount,Sheet1!S71_A4SubCode,$AC:$AC)","v":0},{"$f":"SUMIFS(Sheet1!S71_PPYearAmount,Sheet1!S71_A4SubCode,$AC:$AC)","v":0},{"$f":"SUMIFS(Sheet1!S71_PYearAmount,Sheet1!S71_A4SubCode,$AC:$AC)","v":0},{"$f":"SUMIFS(Sheet1!S71_OriginalBudAmnt,Sheet1!S71_A4SubCode,$AC:$AC)","v":0},{"$f":"SUMIFS(Sheet1!S71_AdjustmentBudAmnt,Sheet1!S71_A4SubCode,$AC:$AC)","v":0},{"$f":"SUMIFS(Sheet1!S71_AdjustmentBudAmnt,Sheet1!S71_A4SubCode,$AC:$AC)","v":0},{"$f":"SUMIFS(Sheet1!CD:CD,Sheet1!S71_A4SubCode,$AC:$AC)","v":0},{"$f":"SUMIFS(Sheet1!S71_ASBudgetAmount,Sheet1!S71_A4SubCode,$AC:$AC)","v":0},{"$f":"SUMIFS(Sheet1!S71_OY1BudgetAmount,Sheet1!S71_A4SubCode,$AC:$AC)","v":0},{"$f":"SUMIFS(Sheet1!S71_OY2BudgetAmount,Sheet1!S71_A4SubCode,$AC:$AC)","v":0}]
[null,null,{"$f":"SUMIFS(Sheet1!S71_PPPYearAmount,Sheet1!S71_A4SubCode,$AC:$AC)","v":0},{"$f":"SUMIFS(Sheet1!S71_PPYearAmount,Sheet1!S71_A4SubCode,$AC:$AC)","v":0},{"$f":"SUMIFS(Sheet1!S71_PYearAmount,Sheet1!S71_A4SubCode,$AC:$AC)","v":0},{"$f":"SUMIFS(Sheet1!S71_OriginalBudAmnt,Sheet1!S71_A4SubCode,$AC:$AC)","v":0},{"$f":"SUMIFS(Sheet1!S71_AdjustmentBudAmnt,Sheet1!S71_A4SubCode,$AC:$AC)","v":0},{"$f":"SUMIFS(Sheet1!S71_AdjustmentBudAmnt,Sheet1!S71_A4SubCode,$AC:$AC)","v":0},{"$f":"SUMIFS(Sheet1!CD:CD,Sheet1!S71_A4SubCode,$AC:$AC)","v":0},{"$f":"SUMIFS(Sheet1!S71_ASBudgetAmount,Sheet1!S71_A4SubCode,$AC:$AC)","v":0},{"$f":"SUMIFS(Sheet1!S71_OY1BudgetAmount,Sheet1!S71_A4SubCode,$AC:$AC)","v":0},{"$f":"SUMIFS(Sheet1!S71_OY2BudgetAmount,Sheet1!S71_A4SubCode,$AC:$AC)","v":0}]
["Total Non-Cash Transfers To Entities/Ems'",null,{"$f":"SUM(C41:C43)","v":0},{"$f":"SUM(D41:D43)","v":0},0,0,0,0,0,0,0,0]
[]
["Non-Cash Transfers to other Organs of State"]
[{"$f":"$A$6","v":"Insert description"},3,{"$f":"SUMIFS(Sheet1!S71_PPPYearAmount,Sheet1!S71_A4SubCode,$AC:$AC)","v":0},{"$f":"SUMIFS(Sheet1!S71_PPYearAmount,Sheet1!S71_A4SubCode,$AC:$AC)","v":0},{"$f":"SUMIFS(Sheet1!S71_PYearAmount,Sheet1!S71_A4SubCode,$AC:$AC)","v":0},{"$f":"SUMIFS(Sheet1!S71_OriginalBudAmnt,Sheet1!S71_A4SubCode,$AC:$AC)","v":0},{"$f":"SUMIFS(Sheet1!S71_AdjustmentBudAmnt,Sheet1!S71_A4SubCode,$AC:$AC)","v":0},{"$f":"SUMIFS(Sheet1!S71_AdjustmentBudAmnt,Sheet1!S71_A4SubCode,$AC:$AC)","v":0},{"$f":"SUMIFS(Sheet1!CD:CD,Sheet1!S71_A4SubCode,$AC:$AC)","v":0},{"$f":"SUMIFS(Sheet1!S71_ASBudgetAmount,Sheet1!S71_A4SubCode,$AC:$AC)","v":0},{"$f":"SUMIFS(Sheet1!S71_OY1BudgetAmount,Sheet1!S71_A4SubCode,$AC:$AC)","v":0},{"$f":"SUMIFS(Sheet1!S71_OY2BudgetAmount,Sheet1!S71_A4SubCode,$AC:$AC)","v":0},null,null,null,null,null,null,null,null,null,null,null,null,null,null,null,null,"28000203"]
[null,null,{"$f":"SUMIFS(Sheet1!S71_PPPYearAmount,Sheet1!S71_A4SubCode,$AC:$AC)","v":0},{"$f":"SUMIFS(Sheet1!S71_PPYearAmount,Sheet1!S71_A4SubCode,$AC:$AC)","v":0},{"$f":"SUMIFS(Sheet1!S71_PYearAmount,Sheet1!S71_A4SubCode,$AC:$AC)","v":0},{"$f":"SUMIFS(Sheet1!S71_OriginalBudAmnt,Sheet1!S71_A4SubCode,$AC:$AC)","v":0},{"$f":"SUMIFS(Sheet1!S71_AdjustmentBudAmnt,Sheet1!S71_A4SubCode,$AC:$AC)","v":0},{"$f":"SUMIFS(Sheet1!S71_AdjustmentBudAmnt,Sheet1!S71_A4SubCode,$AC:$AC)","v":0},{"$f":"SUMIFS(Sheet1!CD:CD,Sheet1!S71_A4SubCode,$AC:$AC)","v":0},{"$f":"SUMIFS(Sheet1!S71_ASBudgetAmount,Sheet1!S71_A4SubCode,$AC:$AC)","v":0},{"$f":"SUMIFS(Sheet1!S71_OY1BudgetAmount,Sheet1!S71_A4SubCode,$AC:$AC)","v":0},{"$f":"SUMIFS(Sheet1!S71_OY2BudgetAmount,Sheet1!S71_A4SubCode,$AC:$AC)","v":0}]
[null,null,{"$f":"SUMIFS(Sheet1!S71_PPPYearAmount,Sheet1!S71_A4SubCode,$AC:$AC)","v":0},{"$f":"SUMIFS(Sheet1!S71_PPYearAmount,Sheet1!S71_A4SubCode,$AC:$AC)","v":0},{"$f":"SUMIFS(Sheet1!S71_PYearAmount,Sheet1!S71_A4SubCode,$AC:$AC)","v":0},{"$f":"SUMIFS(Sheet1!S71_OriginalBudAmnt,Sheet1!S71_A4SubCode,$AC:$AC)","v":0},{"$f":"SUMIFS(Sheet1!S71_AdjustmentBudAmnt,Sheet1!S71_A4SubCode,$AC:$AC)","v":0},{"$f":"SUMIFS(Sheet1!S71_AdjustmentBudAmnt,Sheet1!S71_A4SubCode,$AC:$AC)","v":0},{"$f":"SUMIFS(Sheet1!CD:CD,Sheet1!S71_A4SubCode,$AC:$AC)","v":0},{"$f":"SUMIFS(Sheet1!S71_ASBudgetAmount,Sheet1!S71_A4SubCode,$AC:$AC)","v":0},{"$f":"SUMIFS(Sheet1!S71_OY1BudgetAmount,Sheet1!S71_A4SubCode,$AC:$AC)","v":0},{"$f":"SUMIFS(Sheet1!S71_OY2BudgetAmount,Sheet1!S71_A4SubCode,$AC:$AC)","v":0}]
["Total Non-Cash Transfers To Other Organs Of State:",null,{"$f":"SUM(C47:C49)","v":0},{"$f":"SUM(D47:D49)","v":0},0,0,0,0,0,0,{"$f":"SUM(K47:K49)","v":0},{"$f":"SUM(L47:L49)","v":0}]
[]
["Non-Cash Grants to Organisations"]
[{"$f":"$A$6","v":"Insert description"},4,{"$f":"SUMIFS(Sheet1!S71_PPPYearAmount,Sheet1!S71_A4SubCode,$AC:$AC)","v":0},{"$f":"SUMIFS(Sheet1!S71_PPYearAmount,Sheet1!S71_A4SubCode,$AC:$AC)","v":0},{"$f":"SUMIFS(Sheet1!S71_PYearAmount,Sheet1!S71_A4SubCode,$AC:$AC)","v":0},{"$f":"SUMIFS(Sheet1!S71_OriginalBudAmnt,Sheet1!S71_A4SubCode,$AC:$AC)","v":0},{"$f":"SUMIFS(Sheet1!S71_AdjustmentBudAmnt,Sheet1!S71_A4SubCode,$AC:$AC)","v":0},{"$f":"SUMIFS(Sheet1!S71_AdjustmentBudAmnt,Sheet1!S71_A4SubCode,$AC:$AC)","v":0},{"$f":"SUMIFS(Sheet1!CD:CD,Sheet1!S71_A4SubCode,$AC:$AC)","v":0},{"$f":"SUMIFS(Sheet1!S71_ASBudgetAmount,Sheet1!S71_A4SubCode,$AC:$AC)","v":0},{"$f":"SUMIFS(Sheet1!S71_OY1BudgetAmount,Sheet1!S71_A4SubCode,$AC:$AC)","v":0},{"$f":"SUMIFS(Sheet1!S71_OY2BudgetAmount,Sheet1!S71_A4SubCode,$AC:$AC)","v":0},null,null,null,null,null,null,null,null,null,null,null,null,null,null,null,null,"28000204"]
[null,null,{"$f":"SUMIFS(Sheet1!S71_PPPYearAmount,Sheet1!S71_A4SubCode,$AC:$AC)","v":0},{"$f":"SUMIFS(Sheet1!S71_PPYearAmount,Sheet1!S71_A4SubCode,$AC:$AC)","v":0},{"$f":"SUMIFS(Sheet1!S71_PYearAmount,Sheet1!S71_A4SubCode,$AC:$AC)","v":0},{"$f":"SUMIFS(Sheet1!S71_OriginalBudAmnt,Sheet1!S71_A4SubCode,$AC:$AC)","v":0},{"$f":"SUMIFS(Sheet1!S71_AdjustmentBudAmnt,Sheet1!S71_A4SubCode,$AC:$AC)","v":0},{"$f":"SUMIFS(Sheet1!S71_AdjustmentBudAmnt,Sheet1!S71_A4SubCode,$AC:$AC)","v":0},{"$f":"SUMIFS(Sheet1!CD:CD,Sheet1!S71_A4SubCode,$AC:$AC)","v":0},{"$f":"SUMIFS(Sheet1!S71_ASBudgetAmount,Sheet1!S71_A4SubCode,$AC:$AC)","v":0},{"$f":"SUMIFS(Sheet1!S71_OY1BudgetAmount,Sheet1!S71_A4SubCode,$AC:$AC)","v":0},{"$f":"SUMIFS(Sheet1!S71_OY2BudgetAmount,Sheet1!S71_A4SubCode,$AC:$AC)","v":0}]
[null,null,{"$f":"SUMIFS(Sheet1!S71_PPPYearAmount,Sheet1!S71_A4SubCode,$AC:$AC)","v":0},{"$f":"SUMIFS(Sheet1!S71_PPYearAmount,Sheet1!S71_A4SubCode,$AC:$AC)","v":0},{"$f":"SUMIFS(Sheet1!S71_PYearAmount,Sheet1!S71_A4SubCode,$AC:$AC)","v":0},{"$f":"SUMIFS(Sheet1!S71_OriginalBudAmnt,Sheet1!S71_A4SubCode,$AC:$AC)","v":0},{"$f":"SUMIFS(Sheet1!S71_AdjustmentBudAmnt,Sheet1!S71_A4SubCode,$AC:$AC)","v":0},{"$f":"SUMIFS(Sheet1!S71_AdjustmentBudAmnt,Sheet1!S71_A4SubCode,$AC:$AC)","v":0},{"$f":"SUMIFS(Sheet1!CD:CD,Sheet1!S71_A4SubCode,$AC:$AC)","v":0},{"$f":"SUMIFS(Sheet1!S71_ASBudgetAmount,Sheet1!S71_A4SubCode,$AC:$AC)","v":0},{"$f":"SUMIFS(Sheet1!S71_OY1BudgetAmount,Sheet1!S71_A4SubCode,$AC:$AC)","v":0},{"$f":"SUMIFS(Sheet1!S71_OY2BudgetAmount,Sheet1!S71_A4SubCode,$AC:$AC)","v":0}]
["Total Non-Cash Grants To Organisations",null,{"$f":"SUM(C53:C55)","v":0},{"$f":"SUM(D53:D55)","v":0},0,0,0,0,0,0,{"$f":"SUM(K53:K55)","v":0},{"$f":"SUM(L53:L55)","v":0}]
[]
["Groups of Individuals"]
[{"$f":"$A$6","v":"Insert description"},5,{"$f":"SUMIFS(Sheet1!S71_PPPYearAmount,Sheet1!S71_A4SubCode,$AC:$AC)","v":0},{"$f":"SUMIFS(Sheet1!S71_PPYearAmount,Sheet1!S71_A4SubCode,$AC:$AC)","v":0},{"$f":"SUMIFS(Sheet1!S71_PYearAmount,Sheet1!S71_A4SubCode,$AC:$AC)","v":0},{"$f":"SUMIFS(Sheet1!S71_OriginalBudAmnt,Sheet1!S71_A4SubCode,$AC:$AC)","v":0},{"$f":"SUMIFS(Sheet1!S71_AdjustmentBudAmnt,Sheet1!S71_A4SubCode,$AC:$AC)","v":0},{"$f":"SUMIFS(Sheet1!S71_AdjustmentBudAmnt,Sheet1!S71_A4SubCode,$AC:$AC)","v":0},{"$f":"SUMIFS(Sheet1!CD:CD,Sheet1!S71_A4SubCode,$AC:$AC)","v":0},{"$f":"SUMIFS(Sheet1!S71_ASBudgetAmount,Sheet1!S71_A4SubCode,$AC:$AC)","v":0},{"$f":"SUMIFS(Sheet1!S71_OY1BudgetAmount,Sheet1!S71_A4SubCode,$AC:$AC)","v":0},{"$f":"SUMIFS(Sheet1!S71_OY2BudgetAmount,Sheet1!S71_A4SubCode,$AC:$AC)","v":0},null,null,null,null,null,null,null,null,null,null,null,null,null,null,null,null,"28000205"]
[null,null,{"$f":"SUMIFS(Sheet1!S71_PPPYearAmount,Sheet1!S71_A4SubCode,$AC:$AC)","v":0},{"$f":"SUMIFS(Sheet1!S71_PPYearAmount,Sheet1!S71_A4SubCode,$AC:$AC)","v":0},{"$f":"SUMIFS(Sheet1!S71_PYearAmount,Sheet1!S71_A4SubCode,$AC:$AC)","v":0},{"$f":"SUMIFS(Sheet1!S71_OriginalBudAmnt,Sheet1!S71_A4SubCode,$AC:$AC)","v":0},{"$f":"SUMIFS(Sheet1!S71_AdjustmentBudAmnt,Sheet1!S71_A4SubCode,$AC:$AC)","v":0},{"$f":"SUMIFS(Sheet1!S71_AdjustmentBudAmnt,Sheet1!S71_A4SubCode,$AC:$AC)","v":0},{"$f":"SUMIFS(Sheet1!CD:CD,Sheet1!S71_A4SubCode,$AC:$AC)","v":0},{"$f":"SUMIFS(Sheet1!S71_ASBudgetAmount,Sheet1!S71_A4SubCode,$AC:$AC)","v":0},{"$f":"SUMIFS(Sheet1!S71_OY1BudgetAmount,Sheet1!S71_A4SubCode,$AC:$AC)","v":0},{"$f":"SUMIFS(Sheet1!S71_OY2BudgetAmount,Sheet1!S71_A4SubCode,$AC:$AC)","v":0}]
[null,null,{"$f":"SUMIFS(Sheet1!S71_PPPYearAmount,Sheet1!S71_A4SubCode,$AC:$AC)","v":0},{"$f":"SUMIFS(Sheet1!S71_PPYearAmount,Sheet1!S71_A4SubCode,$AC:$AC)","v":0},{"$f":"SUMIFS(Sheet1!S71_PYearAmount,Sheet1!S71_A4SubCode,$AC:$AC)","v":0},{"$f":"SUMIFS(Sheet1!S71_OriginalBudAmnt,Sheet1!S71_A4SubCode,$AC:$AC)","v":0},{"$f":"SUMIFS(Sheet1!S71_AdjustmentBudAmnt,Sheet1!S71_A4SubCode,$AC:$AC)","v":0},{"$f":"SUMIFS(Sheet1!S71_AdjustmentBudAmnt,Sheet1!S71_A4SubCode,$AC:$AC)","v":0},{"$f":"SUMIFS(Sheet1!CD:CD,Sheet1!S71_A4SubCode,$AC:$AC)","v":0},{"$f":"SUMIFS(Sheet1!S71_ASBudgetAmount,Sheet1!S71_A4SubCode,$AC:$AC)","v":0},{"$f":"SUMIFS(Sheet1!S71_OY1BudgetAmount,Sheet1!S71_A4SubCode,$AC:$AC)","v":0},{"$f":"SUMIFS(Sheet1!S71_OY2BudgetAmount,Sheet1!S71_A4SubCode,$AC:$AC)","v":0}]
["Total Non-Cash Grants To Groups Of Individuals:",null,{"$f":"SUM(C59:C61)","v":0},0,0,0,0,0,0,0,0,0]
["TOTAL NON-CASH TRANSFERS AND GRANTS",null,{"$f":"C38+C44+C50+C56+C62","v":0},0,0,0,0,0,0,0,0,0]
["TOTAL TRANSFERS AND GRANTS",6,{"$f":"C32+C63","v":0},{"$f":"D32+D63","v":37004},97148,10000,181950,181950,81111,72000,72000,72000]
[{"$f":"head27a","v":"References"}]
["1. Insert description listed by municipal name and demarcation code of recipient"]
["2. Insert description of each entity or external mechanism (an external mechanism may be provided with resources to ensure a minimum level of service)"]
["3. Insert description of each Organ of State (e.g. transfer to electricity provider to compensate for FBS provided)"]
["4. Insert description of each other organisation (e.g. charity)"]
["5 Insert description of each other organisation (e.g. the aged, child-headed households)"]
["6. All descriptions should separate transfers for 'capital purposes' and 'operating purposes'"]

{"sheet":"SA22","index":52,"n_rows":120,"n_cols":30,"rows_kept":120,"cut":false,"hidden":false,"merged":[[1,5,1,7],[1,8,1,10]]}
[{"$f":"muni&\" - \"&TableA22","v":"DC16 Xhariep - Supporting Table SA22 Summary councillor and staff benefits"}]
["Summary of Employee and Councillor remuneration",{"$f":"head27","v":"Ref"},{"$f":"head1b","v":"2017/18"},{"$f":"head1A","v":"2018/19"},{"$f":"Head1","v":"2019/20"},{"$f":"Head2","v":"Current Year 2020/21"},null,null,{"$f":"Head3","v":"2021/22 Medium Term Revenue & Expenditure Framework"}]
["R thousand",null,{"$f":"Head5","v":"Audited Outcome"},{"$f":"Head5","v":"Audited Outcome"},{"$f":"Head5","v":"Audited Outcome"},{"$f":"Head6","v":"Original Budget"},{"$f":"Head7","v":"Adjusted Budget"},{"$f":"Head8","v":"Full Year Forecast"},{"$f":"Head9","v":"Budget Year 2021/22"},{"$f":"Head10","v":"Budget Year +1 2022/23"},{"$f":"Head11","v":"Budget Year +2 2023/24"}]
[null,1,"A","B","C","D","E","F","G","H","I"]
["Councillors (Political Office Bearers plus Other)"]
["Basic Salaries and Wages",null,{"$f":"SUMIFS(Sheet1!S71_PPPYearAmount,Sheet1!S71_A4SubCode,$AC:$AC)","v":0},{"$f":"SUMIFS(Sheet1!S71_PPYearAmount,Sheet1!S71_A4SubCode,$AC:$AC)","v":3929710},{"$f":"SUMIFS(Sheet1!S71_PYearAmount,Sheet1!S71_A4SubCode,$AC:$AC)","v":3966433},{"$f":"SUMIFS(Sheet1!S71_OriginalBudAmnt,Sheet1!S71_A4SubCode,$AC:$AC)","v":4013517},{"$f":"SUMIFS(Sheet1!S71_AdjustmentBudAmnt,Sheet1!S71_A4SubCode,$AC:$AC)","v":4206517},{"$f":"SUMIFS(Sheet1!S71_AdjustmentBudAmnt,Sheet1!S71_A4SubCode,$AC:$AC)","v":4206517},{"$f":"SUMIFS(Sheet1!S71_ASBudgetAmount,Sheet1!S71_A4SubCode,$AC:$AC)","v":4206517},{"$f":"SUMIFS(Sheet1!S71_OY1BudgetAmount,Sheet1!S71_A4SubCode,$AC:$AC)","v":4506983},{"$f":"SUMIFS(Sheet1!S71_OY2BudgetAmount,Sheet1!S71_A4SubCode,$AC:$AC)","v":4550102},null,null,null,null,null,null,null,null,null,null,null,null,null,null,null,null,null,"210001"]
["Pension and UIF Contributions",null,{"$f":"SUMIFS(Sheet1!S71_PPPYearAmount,Sheet1!S71_A4SubCode,$AC:$AC)","v":0},{"$f":"SUMIFS(Sheet1!S71_PPYearAmount,Sheet1!S71_A4SubCode,$AC:$AC)","v":144825},{"$f":"SUMIFS(Sheet1!S71_PYearAmount,Sheet1!S71_A4SubCode,$AC:$AC)","v":77499},{"$f":"SUMIFS(Sheet1!S71_OriginalBudAmnt,Sheet1!S71_A4SubCode,$AC:$AC)","v":68335},{"$f":"SUMIFS(Sheet1!S71_AdjustmentBudAmnt,Sheet1!S71_A4SubCode,$AC:$AC)","v":68335},{"$f":"SUMIFS(Sheet1!S71_AdjustmentBudAmnt,Sheet1!S71_A4SubCode,$AC:$AC)","v":68335},{"$f":"SUMIFS(Sheet1!S71_ASBudgetAmount,Sheet1!S71_A4SubCode,$AC:$AC)","v":68335},{"$f":"SUMIFS(Sheet1!S71_OY1BudgetAmount,Sheet1!S71_A4SubCode,$AC:$AC)","v":68335},{"$f":"SUMIFS(Sheet1!S71_OY2BudgetAmount,Sheet1!S71_A4SubCode,$AC:$AC)","v":68335},null,null,null,null,null,null,null,null,null,null,null,null,null,null,null,null,null,210002]
["Medical Aid Contributions",null,{"$f":"SUMIFS(Sheet1!S71_PPPYearAmount,Sheet1!S71_A4SubCode,$AC:$AC)","v":0},{"$f":"SUMIFS(Sheet1!S71_PPYearAmount,Sheet1!S71_A4SubCode,$AC:$AC)","v":94920},{"$f":"SUMIFS(Sheet1!S71_PYearAmount,Sheet1!S71_A4SubCode,$AC:$AC)","v":106056},{"$f":"SUMIFS(Sheet1!S71_OriginalBudAmnt,Sheet1!S71_A4SubCode,$AC:$AC)","v":112032},{"$f":"SUMIFS(Sheet1!S71_AdjustmentBudAmnt,Sheet1!S71_A4SubCode,$AC:$AC)","v":112032},{"$f":"SUMIFS(Sheet1!S71_AdjustmentBudAmnt,Sheet1!S71_A4SubCode,$AC:$AC)","v":112032},{"$f":"SUMIFS(Sheet1!S71_ASBudgetAmount,Sheet1!S71_A4SubCode,$AC:$AC)","v":112032},{"$f":"SUMIFS(Sheet1!S71_OY1BudgetAmount,Sheet1!S71_A4SubCode,$AC:$AC)","v":112032},{"$f":"SUMIFS(Sheet1!S71_OY2BudgetAmount,Sheet1!S71_A4SubCode,$AC:$AC)","v":112032},null,null,null,null,null,null,null,null,null,null,null,null,null,null,null,null,null,210003]
["Motor Vehicle Allowance",null,{"$f":"SUMIFS(Sheet1!S71_PPPYearAmount,Sheet1!S71_A4SubCode,$AC:$AC)","v":0},{"$f":"SUMIFS(Sheet1!S71_PPYearAmount,Sheet1!S71_A4SubCode,$AC:$AC)","v":0},{"$f":"SUMIFS(Sheet1!S71_PYearAmount,Sheet1!S71_A4SubCode,$AC:$AC)","v":0},{"$f":"SUMIFS(Sheet1!S71_OriginalBudAmnt,Sheet1!S71_A4SubCode,$AC:$AC)","v":0},{"$f":"SUMIFS(Sheet1!S71_AdjustmentBudAmnt,Sheet1!S71_A4SubCode,$AC:$AC)","v":0},{"$f":"SUMIFS(Sheet1!S71_AdjustmentBudAmnt,Sheet1!S71_A4SubCode,$AC:$AC)","v":0},{"$f":"SUMIFS(Sheet1!S71_ASBudgetAmount,Sheet1!S71_A4SubCode,$AC:$AC)","v":0},{"$f":"SUMIFS(Sheet1!S71_OY1BudgetAmount,Sheet1!S71_A4SubCode,$AC:$AC)","v":0},{"$f":"SUMIFS(Sheet1!S71_OY2BudgetAmount,Sheet1!S71_A4SubCode,$AC:$AC)","v":0},null,null,null,null,null,null,null,null,null,null,null,null,null,null,null,null,null,210004]
["Cellphone Allowance",null,{"$f":"SUMIFS(Sheet1!S71_PPPYearAmount,Sheet1!S71_A4SubCode,$AC:$AC)","v":0},{"$f":"SUMIFS(Sheet1!S71_PPYearAmount,Sheet1!S71_A4SubCode,$AC:$AC)","v":472300},{"$f":"SUMIFS(Sheet1!S71_PYearAmount,Sheet1!S71_A4SubCode,$AC:$AC)","v":448383},{"$f":"SUMIFS(Sheet1!S71_OriginalBudAmnt,Sheet1!S71_A4SubCode,$AC:$AC)","v":428400},{"$f":"SUMIFS(Sheet1!S71_AdjustmentBudAmnt,Sheet1!S71_A4SubCode,$AC:$AC)","v":428400},{"$f":"SUMIFS(Sheet1!S71_AdjustmentBudAmnt,Sheet1!S71_A4SubCode,$AC:$AC)","v":428400},{"$f":"SUMIFS(Sheet1!S71_ASBudgetAmount,Sheet1!S71_A4SubCode,$AC:$AC)","v":428400},{"$f":"SUMIFS(Sheet1!S71_OY1BudgetAmount,Sheet1!S71_A4SubCode,$AC:$AC)","v":428400},{"$f":"SUMIFS(Sheet1!S71_OY2BudgetAmount,Sheet1!S71_A4SubCode,$AC:$AC)","v":428400},null,null,null,null,null,null,null,null,null,null,null,null,null,null,null,null,null,210005]
["Housing Allowances",null,{"$f":"SUMIFS(Sheet1!S71_PPPYearAmount,Sheet1!S71_A4SubCode,$AC:$AC)","v":0},{"$f":"SUMIFS(Sheet1!S71_PPYearAmount,Sheet1!S71_A4SubCode,$AC:$AC)","v":0},{"$f":"SUMIFS(Sheet1!S71_PYearAmount,Sheet1!S71_A4SubCode,$AC:$AC)","v":0},{"$f":"SUMIFS(Sheet1!S71_OriginalBudAmnt,Sheet1!S71_A4SubCode,$AC:$AC)","v":0},{"$f":"SUMIFS(Sheet1!S71_AdjustmentBudAmnt,Sheet1!S71_A4SubCode,$AC:$AC)","v":0},{"$f":"SUMIFS(Sheet1!S71_AdjustmentBudAmnt,Sheet1!S71_A4SubCode,$AC:$AC)","v":0},{"$f":"SUMIFS(Sheet1!S71_ASBudgetAmount,Sheet1!S71_A4SubCode,$AC:$AC)","v":0},{"$f":"SUMIFS(Sheet1!S71_OY1BudgetAmount,Sheet1!S71_A4SubCode,$AC:$AC)","v":0},{"$f":"SUMIFS(Sheet1!S71_OY2BudgetAmount,Sheet1!S71_A4SubCode,$AC:$AC)","v":0},null,null,null,null,null,null,null,null,null,null,null,null,null,null,null,null,null,210006]
["Other benefits and allowances",null,{"$f":"SUMIFS(Sheet1!S71_PPPYearAmount,Sheet1!S71_A4SubCode,$AC:$AC)","v":0},{"$f":"SUMIFS(Sheet1!S71_PPYearAmount,Sheet1!S71_A4SubCode,$AC:$AC)","v":165971},{"$f":"SUMIFS(Sheet1!S71_PYearAmount,Sheet1!S71_A4SubCode,$AC:$AC)","v":66000},{"$f":"SUMIFS(Sheet1!S71_OriginalBudAmnt,Sheet1!S71_A4SubCode,$AC:$AC)","v":72000},{"$f":"SUMIFS(Sheet1!S71_AdjustmentBudAmnt,Sheet1!S71_A4SubCode,$AC:$AC)","v":72000},{"$f":"SUMIFS(Sheet1!S71_AdjustmentBudAmnt,Sheet1!S71_A4SubCode,$AC:$AC)","v":72000},{"$f":"SUMIFS(Sheet1!S71_ASBudgetAmount,Sheet1!S71_A4SubCode,$AC:$AC)","v":72000},{"$f":"SUMIFS(Sheet1!S71_OY1BudgetAmount,Sheet1!S71_A4SubCode,$AC:$AC)","v":72000},{"$f":"SUMIFS(Sheet1!S71_OY2BudgetAmount,Sheet1!S71_A4SubCode,$AC:$AC)","v":72000},null,null,null,null,null,null,null,null,null,null,null,null,null,null,null,null,null,210007]
["Sub Total - Councillors",null,{"$f":"SUM(C6:C12)","v":0},4807726,4664371,4694284,4887284,4887284,4887284,5187750,5230869]
["% increase",4,null,{"$f":"IF(ISERROR((D13/C13)-1),0,((D13/C13)-1))","v":0},{"$f":"IF(ISERROR((E13/D13)-1),0,((E13/D13)-1))","v":-2.9817631038041692E-2},6.4130833503595053E-3,4.1113831204077078E-2,0,0,6.1479136469253737E-2,8.3116958218880654E-3]
[]
["Senior Managers of the Municipality",2]
["Basic Salaries and Wages",null,{"$f":"SUMIFS(Sheet1!S71_PPPYearAmount,Sheet1!S71_SA1SubCode,$AC:$AC,Sheet1!S71_StaffCode,$AD:$AD)","v":0},{"$f":"SUMIFS(Sheet1!S71_PPYearAmount,Sheet1!S71_SA1SubCode,$AC:$AC,Sheet1!S71_StaffCode,$AD:$AD)","v":3794396},{"$f":"SUMIFS(Sheet1!S71_PYearAmount,Sheet1!S71_SA1SubCode,$AC:$AC,Sheet1!S71_StaffCode,$AD:$AD)","v":4675229},{"$f":"SUMIFS(Sheet1!S71_OriginalBudAmnt,Sheet1!S71_SA1SubCode,$AC:$AC,Sheet1!S71_StaffCode,$AD:$AD)","v":4540235},{"$f":"SUMIFS(Sheet1!S71_AdjustmentBudAmnt,Sheet1!S71_SA1SubCode,$AC:$AC,Sheet1!S71_StaffCode,$AD:$AD)","v":4540235},{"$f":"SUMIFS(Sheet1!S71_AdjustmentBudAmnt,Sheet1!S71_SA1SubCode,$AC:$AC,Sheet1!S71_StaffCode,$AD:$AD)","v":4540235},{"$f":"SUMIFS(Sheet1!S71_ASBudgetAmount,Sheet1!S71_SA1SubCode,$AC:$AC,Sheet1!S71_StaffCode,$AD:$AD)","v":4531947},{"$f":"SUMIFS(Sheet1!S71_OY1BudgetAmount,Sheet1!S71_SA1SubCode,$AC:$AC,Sheet1!S71_StaffCode,$AD:$AD)","v":4937593},{"$f":"SUMIFS(Sheet1!S71_OY2BudgetAmount,Sheet1!S71_SA1SubCode,$AC:$AC,Sheet1!S71_StaffCode,$AD:$AD)","v":4937593},null,null,null,null,null,null,null,null,null,null,null,null,null,null,null,null,null,"2001","SM"]
["Pension and UIF Contributions",null,{"$f":"SUMIFS(Sheet1!S71_PPPYearAmount,Sheet1!S71_SA1SubCode,$AC:$AC,Sheet1!S71_StaffCode,$AD:$AD)","v":0},{"$f":"SUMIFS(Sheet1!S71_PPYearAmount,Sheet1!S71_SA1SubCode,$AC:$AC,Sheet1!S71_StaffCode,$AD:$AD)","v":23228},{"$f":"SUMIFS(Sheet1!S71_PYearAmount,Sheet1!S71_SA1SubCode,$AC:$AC,Sheet1!S71_StaffCode,$AD:$AD)","v":388566},{"$f":"SUMIFS(Sheet1!S71_OriginalBudAmnt,Sheet1!S71_SA1SubCode,$AC:$AC,Sheet1!S71_StaffCode,$AD:$AD)","v":381110},{"$f":"SUMIFS(Sheet1!S71_AdjustmentBudAmnt,Sheet1!S71_SA1SubCode,$AC:$AC,Sheet1!S71_StaffCode,$AD:$AD)","v":381110},{"$f":"SUMIFS(Sheet1!S71_AdjustmentBudAmnt,Sheet1!S71_SA1SubCode,$AC:$AC,Sheet1!S71_StaffCode,$AD:$AD)","v":381110},{"$f":"SUMIFS(Sheet1!S71_ASBudgetAmount,Sheet1!S71_SA1SubCode,$AC:$AC,Sheet1!S71_StaffCode,$AD:$AD)","v":477155},{"$f":"SUMIFS(Sheet1!S71_OY1BudgetAmount,Sheet1!S71_SA1SubCode,$AC:$AC,Sheet1!S71_StaffCode,$AD:$AD)","v":195265},{"$f":"SUMIFS(Sheet1!S71_OY2BudgetAmount,Sheet1!S71_SA1SubCode,$AC:$AC,Sheet1!S71_StaffCode,$AD:$AD)","v":195265},null,null,null,null,null,null,null,null,null,null,null,null,null,null,null,null,null,"2002","SM"]
["Medical Aid Contributions",null,{"$f":"SUMIFS(Sheet1!S71_PPPYearAmount,Sheet1!S71_SA1SubCode,$AC:$AC,Sheet1!S71_StaffCode,$AD:$AD)","v":0},{"$f":"SUMIFS(Sheet1!S71_PPYearAmount,Sheet1!S71_SA1SubCode,$AC:$AC,Sheet1!S71_StaffCode,$AD:$AD)","v":0},{"$f":"SUMIFS(Sheet1!S71_PYearAmount,Sheet1!S71_SA1SubCode,$AC:$AC,Sheet1!S71_StaffCode,$AD:$AD)","v":137239},{"$f":"SUMIFS(Sheet1!S71_OriginalBudAmnt,Sheet1!S71_SA1SubCode,$AC:$AC,Sheet1!S71_StaffCode,$AD:$AD)","v":143006},{"$f":"SUMIFS(Sheet1!S71_AdjustmentBudAmnt,Sheet1!S71_SA1SubCode,$AC:$AC,Sheet1!S71_StaffCode,$AD:$AD)","v":143006},{"$f":"SUMIFS(Sheet1!S71_AdjustmentBudAmnt,Sheet1!S71_SA1SubCode,$AC:$AC,Sheet1!S71_StaffCode,$AD:$AD)","v":143006},{"$f":"SUMIFS(Sheet1!S71_ASBudgetAmount,Sheet1!S71_SA1SubCode,$AC:$AC,Sheet1!S71_StaffCode,$AD:$AD)","v":150955},{"$f":"SUMIFS(Sheet1!S71_OY1BudgetAmount,Sheet1!S71_SA1SubCode,$AC:$AC,Sheet1!S71_StaffCode,$AD:$AD)","v":143006},{"$f":"SUMIFS(Sheet1!S71_OY2BudgetAmount,Sheet1!S71_SA1SubCode,$AC:$AC,Sheet1!S71_StaffCode,$AD:$AD)","v":143006},null,null,null,null,null,null,null,null,null,null,null,null,null,null,null,null,null,"2003","SM"]
["Overtime",null,{"$f":"SUMIFS(Sheet1!S71_PPPYearAmount,Sheet1!S71_SA1SubCode,$AC:$AC,Sheet1!S71_StaffCode,$AD:$AD)","v":0},{"$f":"SUMIFS(Sheet1!S71_PPYearAmount,Sheet1!S71_SA1SubCode,$AC:$AC,Sheet1!S71_StaffCode,$AD:$AD)","v":0},{"$f":"SUMIFS(Sheet1!S71_PYearAmount,Sheet1!S71_SA1SubCode,$AC:$AC,Sheet1!S71_StaffCode,$AD:$AD)","v":0},{"$f":"SUMIFS(Sheet1!S71_OriginalBudAmnt,Sheet1!S71_SA1SubCode,$AC:$AC,Sheet1!S71_StaffCode,$AD:$AD)","v":0},{"$f":"SUMIFS(Sheet1!S71_AdjustmentBudAmnt,Sheet1!S71_SA1SubCode,$AC:$AC,Sheet1!S71_StaffCode,$AD:$AD)","v":0},{"$f":"SUMIFS(Sheet1!S71_AdjustmentBudAmnt,Sheet1!S71_SA1SubCode,$AC:$AC,Sheet1!S71_StaffCode,$AD:$AD)","v":0},{"$f":"SUMIFS(Sheet1!S71_ASBudgetAmount,Sheet1!S71_SA1SubCode,$AC:$AC,Sheet1!S71_StaffCode,$AD:$AD)","v":0},{"$f":"SUMIFS(Sheet1!S71_OY1BudgetAmount,Sheet1!S71_SA1SubCode,$AC:$AC,Sheet1!S71_StaffCode,$AD:$AD)","v":0},{"$f":"SUMIFS(Sheet1!S71_OY2BudgetAmount,Sheet1!S71_SA1SubCode,$AC:$AC,Sheet1!S71_StaffCode,$AD:$AD)","v":0},null,null,null,null,null,null,null,null,null,null,null,null,null,null,null,null,null,"2004","SM"]
["Performance Bonus",null,{"$f":"SUMIFS(Sheet1!S71_PPPYearAmount,Sheet1!S71_SA1SubCode,$AC:$AC,Sheet1!S71_StaffCode,$AD:$AD)","v":0},{"$f":"SUMIFS(Sheet1!S71_PPYearAmount,Sheet1!S71_SA1SubCode,$AC:$AC,Sheet1!S71_StaffCode,$AD:$AD)","v":0},{"$f":"SUMIFS(Sheet1!S71_PYearAmount,Sheet1!S71_SA1SubCode,$AC:$AC,Sheet1!S71_StaffCode,$AD:$AD)","v":89603},{"$f":"SUMIFS(Sheet1!S71_OriginalBudAmnt,Sheet1!S71_SA1SubCode,$AC:$AC,Sheet1!S71_StaffCode,$AD:$AD)","v":95772},{"$f":"SUMIFS(Sheet1!S71_AdjustmentBudAmnt,Sheet1!S71_SA1SubCode,$AC:$AC,Sheet1!S71_StaffCode,$AD:$AD)","v":381634},{"$f":"SUMIFS(Sheet1!S71_AdjustmentBudAmnt,Sheet1!S71_SA1SubCode,$AC:$AC,Sheet1!S71_StaffCode,$AD:$AD)","v":381634},{"$f":"SUMIFS(Sheet1!S71_ASBudgetAmount,Sheet1!S71_SA1SubCode,$AC:$AC,Sheet1!S71_StaffCode,$AD:$AD)","v":503497},{"$f":"SUMIFS(Sheet1!S71_OY1BudgetAmount,Sheet1!S71_SA1SubCode,$AC:$AC,Sheet1!S71_StaffCode,$AD:$AD)","v":285862},{"$f":"SUMIFS(Sheet1!S71_OY2BudgetAmount,Sheet1!S71_SA1SubCode,$AC:$AC,Sheet1!S71_StaffCode,$AD:$AD)","v":285862},null,null,null,null,null,null,null,null,null,null,null,null,null,null,null,null,null,"2005","SM"]
["Motor Vehicle Allowance",3,{"$f":"SUMIFS(Sheet1!S71_PPPYearAmount,Sheet1!S71_SA1SubCode,$AC:$AC,Sheet1!S71_StaffCode,$AD:$AD)","v":0},{"$f":"SUMIFS(Sheet1!S71_PPYearAmount,Sheet1!S71_SA1SubCode,$AC:$AC,Sheet1!S71_StaffCode,$AD:$AD)","v":397388},{"$f":"SUMIFS(Sheet1!S71_PYearAmount,Sheet1!S71_SA1SubCode,$AC:$AC,Sheet1!S71_StaffCode,$AD:$AD)","v":518911},{"$f":"SUMIFS(Sheet1!S71_OriginalBudAmnt,Sheet1!S71_SA1SubCode,$AC:$AC,Sheet1!S71_StaffCode,$AD:$AD)","v":518911},{"$f":"SUMIFS(Sheet1!S71_AdjustmentBudAmnt,Sheet1!S71_SA1SubCode,$AC:$AC,Sheet1!S71_StaffCode,$AD:$AD)","v":518911},{"$f":"SUMIFS(Sheet1!S71_AdjustmentBudAmnt,Sheet1!S71_SA1SubCode,$AC:$AC,Sheet1!S71_StaffCode,$AD:$AD)","v":518911},{"$f":"SUMIFS(Sheet1!S71_ASBudgetAmount,Sheet1!S71_SA1SubCode,$AC:$AC,Sheet1!S71_StaffCode,$AD:$AD)","v":518911},{"$f":"SUMIFS(Sheet1!S71_OY1BudgetAmount,Sheet1!S71_SA1SubCode,$AC:$AC,Sheet1!S71_StaffCode,$AD:$AD)","v":518911},{"$f":"SUMIFS(Sheet1!S71_OY2BudgetAmount,Sheet1!S71_SA1SubCode,$AC:$AC,Sheet1!S71_StaffCode,$AD:$AD)","v":518911},null,null,null,null,null,null,null,null,null,null,null,null,null,null,null,null,null,"2006","SM"]
["Cellphone Allowance",3,{"$f":"SUMIFS(Sheet1!S71_PPPYearAmount,Sheet1!S71_SA1SubCode,$AC:$AC,Sheet1!S71_StaffCode,$AD:$AD)","v":0},{"$f":"SUMIFS(Sheet1!S71_PPYearAmount,Sheet1!S71_SA1SubCode,$AC:$AC,Sheet1!S71_StaffCode,$AD:$AD)","v":0},{"$f":"SUMIFS(Sheet1!S71_PYearAmount,Sheet1!S71_SA1SubCode,$AC:$AC,Sheet1!S71_StaffCode,$AD:$AD)","v":19200},{"$f":"SUMIFS(Sheet1!S71_OriginalBudAmnt,Sheet1!S71_SA1SubCode,$AC:$AC,Sheet1!S71_StaffCode,$AD:$AD)","v":19200},{"$f":"SUMIFS(Sheet1!S71_AdjustmentBudAmnt,Sheet1!S71_SA1SubCode,$AC:$AC,Sheet1!S71_StaffCode,$AD:$AD)","v":19200},{"$f":"SUMIFS(Sheet1!S71_AdjustmentBudAmnt,Sheet1!S71_SA1SubCode,$AC:$AC,Sheet1!S71_StaffCode,$AD:$AD)","v":19200},{"$f":"SUMIFS(Sheet1!S71_ASBudgetAmount,Sheet1!S71_SA1SubCode,$AC:$AC,Sheet1!S71_StaffCode,$AD:$AD)","v":24000},{"$f":"SUMIFS(Sheet1!S71_OY1BudgetAmount,Sheet1!S71_SA1SubCode,$AC:$AC,Sheet1!S71_StaffCode,$AD:$AD)","v":9600},{"$f":"SUMIFS(Sheet1!S71_OY2BudgetAmount,Sheet1!S71_SA1SubCode,$AC:$AC,Sheet1!S71_StaffCode,$AD:$AD)","v":9600},null,null,null,null,null,null,null,null,null,null,null,null,null,null,null,null,null,"2007","SM"]
["Housing Allowances",3,{"$f":"SUMIFS(Sheet1!S71_PPPYearAmount,Sheet1!S71_SA1SubCode,$AC:$AC,Sheet1!S71_StaffCode,$AD:$AD)","v":0},{"$f":"SUMIFS(Sheet1!S71_PPYearAmount,Sheet1!S71_SA1SubCode,$AC:$AC,Sheet1!S71_StaffCode,$AD:$AD)","v":39600},{"$f":"SUMIFS(Sheet1!S71_PYearAmount,Sheet1!S71_SA1SubCode,$AC:$AC,Sheet1!S71_StaffCode,$AD:$AD)","v":0},{"$f":"SUMIFS(Sheet1!S71_OriginalBudAmnt,Sheet1!S71_SA1SubCode,$AC:$AC,Sheet1!S71_StaffCode,$AD:$AD)","v":96000},{"$f":"SUMIFS(Sheet1!S71_AdjustmentBudAmnt,Sheet1!S71_SA1SubCode,$AC:$AC,Sheet1!S71_StaffCode,$AD:$AD)","v":96000},{"$f":"SUMIFS(Sheet1!S71_AdjustmentBudAmnt,Sheet1!S71_SA1SubCode,$AC:$AC,Sheet1!S71_StaffCode,$AD:$AD)","v":96000},{"$f":"SUMIFS(Sheet1!S71_ASBudgetAmount,Sheet1!S71_SA1SubCode,$AC:$AC,Sheet1!S71_StaffCode,$AD:$AD)","v":107574},{"$f":"SUMIFS(Sheet1!S71_OY1BudgetAmount,Sheet1!S71_SA1SubCode,$AC:$AC,Sheet1!S71_StaffCode,$AD:$AD)","v":96000},{"$f":"SUMIFS(Sheet1!S71_OY2BudgetAmount,Sheet1!S71_SA1SubCode,$AC:$AC,Sheet1!S71_StaffCode,$AD:$AD)","v":96000},null,null,null,null,null,null,null,null,null,null,null,null,null,null,null,null,null,"2008","SM"]
["Other benefits and allowances",3,{"$f":"SUMIFS(Sheet1!S71_PPPYearAmount,Sheet1!S71_SA1SubCode,$AC:$AC,Sheet1!S71_StaffCode,$AD:$AD)","v":0},{"$f":"SUMIFS(Sheet1!S71_PPYearAmount,Sheet1!S71_SA1SubCode,$AC:$AC,Sheet1!S71_StaffCode,$AD:$AD)","v":0},{"$f":"SUMIFS(Sheet1!S71_PYearAmount,Sheet1!S71_SA1SubCode,$AC:$AC,Sheet1!S71_StaffCode,$AD:$AD)","v":448},{"$f":"SUMIFS(Sheet1!S71_OriginalBudAmnt,Sheet1!S71_SA1SubCode,$AC:$AC,Sheet1!S71_StaffCode,$AD:$AD)","v":106141},{"$f":"SUMIFS(Sheet1!S71_AdjustmentBudAmnt,Sheet1!S71_SA1SubCode,$AC:$AC,Sheet1!S71_StaffCode,$AD:$AD)","v":106141},{"$f":"SUMIFS(Sheet1!S71_AdjustmentBudAmnt,Sheet1!S71_SA1SubCode,$AC:$AC,Sheet1!S71_StaffCode,$AD:$AD)","v":106141},{"$f":"SUMIFS(Sheet1!S71_ASBudgetAmount,Sheet1!S71_SA1SubCode,$AC:$AC,Sheet1!S71_StaffCode,$AD:$AD)","v":476},{"$f":"SUMIFS(Sheet1!S71_OY1BudgetAmount,Sheet1!S71_SA1SubCode,$AC:$AC,Sheet1!S71_StaffCode,$AD:$AD)","v":0},{"$f":"SUMIFS(Sheet1!S71_OY2BudgetAmount,Sheet1!S71_SA1SubCode,$AC:$AC,Sheet1!S71_StaffCode,$AD:$AD)","v":0},null,null,null,null,null,null,null,null,null,null,null,null,null,null,null,null,null,"2009","SM"]
["Payments in lieu of leave",null,{"$f":"SUMIFS(Sheet1!S71_PPPYearAmount,Sheet1!S71_SA1SubCode,$AC:$AC,Sheet1!S71_StaffCode,$AD:$AD)","v":0},{"$f":"SUMIFS(Sheet1!S71_PPYearAmount,Sheet1!S71_SA1SubCode,$AC:$AC,Sheet1!S71_StaffCode,$AD:$AD)","v":0},{"$f":"SUMIFS(Sheet1!S71_PYearAmount,Sheet1!S71_SA1SubCode,$AC:$AC,Sheet1!S71_StaffCode,$AD:$AD)","v":0},{"$f":"SUMIFS(Sheet1!S71_OriginalBudAmnt,Sheet1!S71_SA1SubCode,$AC:$AC,Sheet1!S71_StaffCode,$AD:$AD)","v":0},{"$f":"SUMIFS(Sheet1!S71_AdjustmentBudAmnt,Sheet1!S71_SA1SubCode,$AC:$AC,Sheet1!S71_StaffCode,$AD:$AD)","v":0},{"$f":"SUMIFS(Sheet1!S71_AdjustmentBudAmnt,Sheet1!S71_SA1SubCode,$AC:$AC,Sheet1!S71_StaffCode,$AD:$AD)","v":0},{"$f":"SUMIFS(Sheet1!S71_ASBudgetAmount,Sheet1!S71_SA1SubCode,$AC:$AC,Sheet1!S71_StaffCode,$AD:$AD)","v":0},{"$f":"SUMIFS(Sheet1!S71_OY1BudgetAmount,Sheet1!S71_SA1SubCode,$AC:$AC,Sheet1!S71_StaffCode,$AD:$AD)","v":0},{"$f":"SUMIFS(Sheet1!S71_OY2BudgetAmount,Sheet1!S71_SA1SubCode,$AC:$AC,Sheet1!S71_StaffCode,$AD:$AD)","v":0},null,null,null,null,null,null,null,null,null,null,null,null,null,null,null,null,null,"2010","SM"]
["Long service awards",null,{"$f":"SUMIFS(Sheet1!S71_PPPYearAmount,Sheet1!S71_SA1SubCode,$AC:$AC,Sheet1!S71_StaffCode,$AD:$AD)","v":0},{"$f":"SUMIFS(Sheet1!S71_PPYearAmount,Sheet1!S71_SA1SubCode,$AC:$AC,Sheet1!S71_StaffCode,$AD:$AD)","v":0},{"$f":"SUMIFS(Sheet1!S71_PYearAmount,Sheet1!S71_SA1SubCode,$AC:$AC,Sheet1!S71_StaffCode,$AD:$AD)","v":0},{"$f":"SUMIFS(Sheet1!S71_OriginalBudAmnt,Sheet1!S71_SA1SubCode,$AC:$AC,Sheet1!S71_StaffCode,$AD:$AD)","v":0},{"$f":"SUMIFS(Sheet1!S71_AdjustmentBudAmnt,Sheet1!S71_SA1SubCode,$AC:$AC,Sheet1!S71_StaffCode,$AD:$AD)","v":0},{"$f":"SUMIFS(Sheet1!S71_AdjustmentBudAmnt,Sheet1!S71_SA1SubCode,$AC:$AC,Sheet1!S71_StaffCode,$AD:$AD)","v":0},{"$f":"SUMIFS(Sheet1!S71_ASBudgetAmount,Sheet1!S71_SA1SubCode,$AC:$AC,Sheet1!S71_StaffCode,$AD:$AD)","v":0},{"$f":"SUMIFS(Sheet1!S71_OY1BudgetAmount,Sheet1!S71_SA1SubCode,$AC:$AC,Sheet1!S71_StaffCode,$AD:$AD)","v":0},{"$f":"SUMIFS(Sheet1!S71_OY2BudgetAmount,Sheet1!S71_SA1SubCode,$AC:$AC,Sheet1!S71_StaffCode,$AD:$AD)","v":0},null,null,null,null,null,null,null,null,null,null,null,null,null,null,null,null,null,"2011","SM"]
["Post-retirement benefit obligations",6,{"$f":"SUMIFS(Sheet1!S71_PPPYearAmount,Sheet1!S71_SA1SubCode,$AC:$AC,Sheet1!S71_StaffCode,$AD:$AD)","v":0},{"$f":"SUMIFS(Sheet1!S71_PPYearAmount,Sheet1!S71_SA1SubCode,$AC:$AC,Sheet1!S71_StaffCode,$AD:$AD)","v":0},{"$f":"SUMIFS(Sheet1!S71_PYearAmount,Sheet1!S71_SA1SubCode,$AC:$AC,Sheet1!S71_StaffCode,$AD:$AD)","v":0},{"$f":"SUMIFS(Sheet1!S71_OriginalBudAmnt,Sheet1!S71_SA1SubCode,$AC:$AC,Sheet1!S71_StaffCode,$AD:$AD)","v":0},{"$f":"SUMIFS(Sheet1!S71_AdjustmentBudAmnt,Sheet1!S71_SA1SubCode,$AC:$AC,Sheet1!S71_StaffCode,$AD:$AD)","v":0},{"$f":"SUMIFS(Sheet1!S71_AdjustmentBudAmnt,Sheet1!S71_SA1SubCode,$AC:$AC,Sheet1!S71_StaffCode,$AD:$AD)","v":0},{"$f":"SUMIFS(Sheet1!S71_ASBudgetAmount,Sheet1!S71_SA1SubCode,$AC:$AC,Sheet1!S71_StaffCode,$AD:$AD)","v":0},{"$f":"SUMIFS(Sheet1!S71_OY1BudgetAmount,Sheet1!S71_SA1SubCode,$AC:$AC,Sheet1!S71_StaffCode,$AD:$AD)","v":0},{"$f":"SUMIFS(Sheet1!S71_OY2BudgetAmount,Sheet1!S71_SA1SubCode,$AC:$AC,Sheet1!S71_StaffCode,$AD:$AD)","v":0},null,null,null,null,null,null,null,null,null,null,null,null,null,null,null,null,null,"2012","SM"]
["Sub Total - Senior Managers of Municipality",null,{"$f":"SUM(C17:C28)","v":0},{"$f":"SUM(D17:D28)","v":4254612},5829196,5900375,6186237,6186237,6314515,6186237,6186237]
[{"$f":"$A$14","v":"% increase"},{"$f":"$B$14","v":4},null,{"$f":"IF(ISERROR((D29/C29)-1),0,((D29/C29)-1))","v":0},{"$f":"IF(ISERROR((E29/D29)-1),0,((E29/D29)-1))","v":0.37008874134703706},1.2210774865007101E-2,4.8448107111836114E-2,0,2.0736030643507597E-2,-2.0314782687189781E-2,0]
[]
["Other Municipal Staff"]
["Basic Salaries and Wages",null,{"$f":"SUMIFS(Sheet1!S71_PPPYearAmount,Sheet1!S71_SA1SubCode,$AC:$AC,Sheet1!S71_StaffCode,$AD:$AD)","v":0},{"$f":"SUMIFS(Sheet1!S71_PPYearAmount,Sheet1!S71_SA1SubCode,$AC:$AC,Sheet1!S71_StaffCode,$AD:$AD)","v":24830979},{"$f":"SUMIFS(Sheet1!S71_PYearAmount,Sheet1!S71_SA1SubCode,$AC:$AC,Sheet1!S71_StaffCode,$AD:$AD)","v":25644486},{"$f":"SUMIFS(Sheet1!S71_OriginalBudAmnt,Sheet1!S71_SA1SubCode,$AC:$AC,Sheet1!S71_StaffCode,$AD:$AD)","v":26619685},{"$f":"SUMIFS(Sheet1!S71_AdjustmentBudAmnt,Sheet1!S71_SA1SubCode,$AC:$AC,Sheet1!S71_StaffCode,$AD:$AD)","v":27684360},{"$f":"SUMIFS(Sheet1!S71_AdjustmentBudAmnt,Sheet1!S71_SA1SubCode,$AC:$AC,Sheet1!S71_StaffCode,$AD:$AD)","v":27684360},{"$f":"SUMIFS(Sheet1!S71_ASBudgetAmount,Sheet1!S71_SA1SubCode,$AC:$AC,Sheet1!S71_StaffCode,$AD:$AD)","v":28865146},{"$f":"SUMIFS(Sheet1!S71_OY1BudgetAmount,Sheet1!S71_SA1SubCode,$AC:$AC,Sheet1!S71_StaffCode,$AD:$AD)","v":30572546},{"$f":"SUMIFS(Sheet1!S71_OY2BudgetAmount,Sheet1!S71_SA1SubCode,$AC:$AC,Sheet1!S71_StaffCode,$AD:$AD)","v":31553002},null,null,null,null,null,null,null,null,null,null,null,null,null,null,null,null,null,"2001","MS"]
["Pension and UIF Contributions",null,{"$f":"SUMIFS(Sheet1!S71_PPPYearAmount,Sheet1!S71_SA1SubCode,$AC:$AC,Sheet1!S71_StaffCode,$AD:$AD)","v":0},{"$f":"SUMIFS(Sheet1!S71_PPYearAmount,Sheet1!S71_SA1SubCode,$AC:$AC,Sheet1!S71_StaffCode,$AD:$AD)","v":4069122},{"$f":"SUMIFS(Sheet1!S71_PYearAmount,Sheet1!S71_SA1SubCode,$AC:$AC,Sheet1!S71_StaffCode,$AD:$AD)","v":4022401},{"$f":"SUMIFS(Sheet1!S71_OriginalBudAmnt,Sheet1!S71_SA1SubCode,$AC:$AC,Sheet1!S71_StaffCode,$AD:$AD)","v":4064472},{"$f":"SUMIFS(Sheet1!S71_AdjustmentBudAmnt,Sheet1!S71_SA1SubCode,$AC:$AC,Sheet1!S71_StaffCode,$AD:$AD)","v":4052031},{"$f":"SUMIFS(Sheet1!S71_AdjustmentBudAmnt,Sheet1!S71_SA1SubCode,$AC:$AC,Sheet1!S71_StaffCode,$AD:$AD)","v":4052031},{"$f":"SUMIFS(Sheet1!S71_ASBudgetAmount,Sheet1!S71_SA1SubCode,$AC:$AC,Sheet1!S71_StaffCode,$AD:$AD)","v":4419440},{"$f":"SUMIFS(Sheet1!S71_OY1BudgetAmount,Sheet1!S71_SA1SubCode,$AC:$AC,Sheet1!S71_StaffCode,$AD:$AD)","v":4078152},{"$f":"SUMIFS(Sheet1!S71_OY2BudgetAmount,Sheet1!S71_SA1SubCode,$AC:$AC,Sheet1!S71_StaffCode,$AD:$AD)","v":4078152},null,null,null,null,null,null,null,null,null,null,null,null,null,null,null,null,null,"2002","MS"]
["Medical Aid Contributions",null,{"$f":"SUMIFS(Sheet1!S71_PPPYearAmount,Sheet1!S71_SA1SubCode,$AC:$AC,Sheet1!S71_StaffCode,$AD:$AD)","v":0},{"$f":"SUMIFS(Sheet1!S71_PPYearAmount,Sheet1!S71_SA1SubCode,$AC:$AC,Sheet1!S71_StaffCode,$AD:$AD)","v":1829018},{"$f":"SUMIFS(Sheet1!S71_PYearAmount,Sheet1!S71_SA1SubCode,$AC:$AC,Sheet1!S71_StaffCode,$AD:$AD)","v":1797378},{"$f":"SUMIFS(Sheet1!S71_OriginalBudAmnt,Sheet1!S71_SA1SubCode,$AC:$AC,Sheet1!S71_StaffCode,$AD:$AD)","v":1697494},{"$f":"SUMIFS(Sheet1!S71_AdjustmentBudAmnt,Sheet1!S71_SA1SubCode,$AC:$AC,Sheet1!S71_StaffCode,$AD:$AD)","v":1696594},{"$f":"SUMIFS(Sheet1!S71_AdjustmentBudAmnt,Sheet1!S71_SA1SubCode,$AC:$AC,Sheet1!S71_StaffCode,$AD:$AD)","v":1696594},{"$f":"SUMIFS(Sheet1!S71_ASBudgetAmount,Sheet1!S71_SA1SubCode,$AC:$AC,Sheet1!S71_StaffCode,$AD:$AD)","v":2132687},{"$f":"SUMIFS(Sheet1!S71_OY1BudgetAmount,Sheet1!S71_SA1SubCode,$AC:$AC,Sheet1!S71_StaffCode,$AD:$AD)","v":1696594},{"$f":"SUMIFS(Sheet1!S71_OY2BudgetAmount,Sheet1!S71_SA1SubCode,$AC:$AC,Sheet1!S71_StaffCode,$AD:$AD)","v":1696594},null,null,null,null,null,null,null,null,null,null,null,null,null,null,null,null,null,"2003","MS"]
["Overtime",null,{"$f":"SUMIFS(Sheet1!S71_PPPYearAmount,Sheet1!S71_SA1SubCode,$AC:$AC,Sheet1!S71_StaffCode,$AD:$AD)","v":0},{"$f":"SUMIFS(Sheet1!S71_PPYearAmount,Sheet1!S71_SA1SubCode,$AC:$AC,Sheet1!S71_StaffCode,$AD:$AD)","v":0},{"$f":"SUMIFS(Sheet1!S71_PYearAmount,Sheet1!S71_SA1SubCode,$AC:$AC,Sheet1!S71_StaffCode,$AD:$AD)","v":0},{"$f":"SUMIFS(Sheet1!S71_OriginalBudAmnt,Sheet1!S71_SA1SubCode,$AC:$AC,Sheet1!S71_StaffCode,$AD:$AD)","v":0},{"$f":"SUMIFS(Sheet1!S71_AdjustmentBudAmnt,Sheet1!S71_SA1SubCode,$AC:$AC,Sheet1!S71_StaffCode,$AD:$AD)","v":0},{"$f":"SUMIFS(Sheet1!S71_AdjustmentBudAmnt,Sheet1!S71_SA1SubCode,$AC:$AC,Sheet1!S71_StaffCode,$AD:$AD)","v":0},{"$f":"SUMIFS(Sheet1!S71_ASBudgetAmount,Sheet1!S71_SA1SubCode,$AC:$AC,Sheet1!S71_StaffCode,$AD:$AD)","v":0},{"$f":"SUMIFS(Sheet1!S71_OY1BudgetAmount,Sheet1!S71_SA1SubCode,$AC:$AC,Sheet1!S71_StaffCode,$AD:$AD)","v":0},{"$f":"SUMIFS(Sheet1!S71_OY2BudgetAmount,Sheet1!S71_SA1SubCode,$AC:$AC,Sheet1!S71_StaffCode,$AD:$AD)","v":0},null,null,null,null,null,null,null,null,null,null,null,null,null,null,null,null,null,"2004","MS"]
["Performance Bonus",null,{"$f":"SUMIFS(Sheet1!S71_PPPYearAmount,Sheet1!S71_SA1SubCode,$AC:$AC,Sheet1!S71_StaffCode,$AD:$AD)","v":0},{"$f":"SUMIFS(Sheet1!S71_PPYearAmount,Sheet1!S71_SA1SubCode,$AC:$AC,Sheet1!S71_StaffCode,$AD:$AD)","v":1917391},{"$f":"SUMIFS(Sheet1!S71_PYearAmount,Sheet1!S71_SA1SubCode,$AC:$AC,Sheet1!S71_StaffCode,$AD:$AD)","v":1768780},{"$f":"SUMIFS(Sheet1!S71_OriginalBudAmnt,Sheet1!S71_SA1SubCode,$AC:$AC,Sheet1!S71_StaffCode,$AD:$AD)","v":1822979},{"$f":"SUMIFS(Sheet1!S71_AdjustmentBudAmnt,Sheet1!S71_SA1SubCode,$AC:$AC,Sheet1!S71_StaffCode,$AD:$AD)","v":1537117},{"$f":"SUMIFS(Sheet1!S71_AdjustmentBudAmnt,Sheet1!S71_SA1SubCode,$AC:$AC,Sheet1!S71_StaffCode,$AD:$AD)","v":1537117},{"$f":"SUMIFS(Sheet1!S71_ASBudgetAmount,Sheet1!S71_SA1SubCode,$AC:$AC,Sheet1!S71_StaffCode,$AD:$AD)","v":1650891},{"$f":"SUMIFS(Sheet1!S71_OY1BudgetAmount,Sheet1!S71_SA1SubCode,$AC:$AC,Sheet1!S71_StaffCode,$AD:$AD)","v":1537117},{"$f":"SUMIFS(Sheet1!S71_OY2BudgetAmount,Sheet1!S71_SA1SubCode,$AC:$AC,Sheet1!S71_StaffCode,$AD:$AD)","v":1537117},null,null,null,null,null,null,null,null,null,null,null,null,null,null,null,null,null,"2005","MS"]
["Motor Vehicle Allowance",3,{"$f":"SUMIFS(Sheet1!S71_PPPYearAmount,Sheet1!S71_SA1SubCode,$AC:$AC,Sheet1!S71_StaffCode,$AD:$AD)","v":0},{"$f":"SUMIFS(Sheet1!S71_PPYearAmount,Sheet1!S71_SA1SubCode,$AC:$AC,Sheet1!S71_StaffCode,$AD:$AD)","v":3190206},{"$f":"SUMIFS(Sheet1!S71_PYearAmount,Sheet1!S71_SA1SubCode,$AC:$AC,Sheet1!S71_StaffCode,$AD:$AD)","v":3057119},{"$f":"SUMIFS(Sheet1!S71_OriginalBudAmnt,Sheet1!S71_SA1SubCode,$AC:$AC,Sheet1!S71_StaffCode,$AD:$AD)","v":2923817},{"$f":"SUMIFS(Sheet1!S71_AdjustmentBudAmnt,Sheet1!S71_SA1SubCode,$AC:$AC,Sheet1!S71_StaffCode,$AD:$AD)","v":2923817},{"$f":"SUMIFS(Sheet1!S71_AdjustmentBudAmnt,Sheet1!S71_SA1SubCode,$AC:$AC,Sheet1!S71_StaffCode,$AD:$AD)","v":2923817},{"$f":"SUMIFS(Sheet1!S71_ASBudgetAmount,Sheet1!S71_SA1SubCode,$AC:$AC,Sheet1!S71_StaffCode,$AD:$AD)","v":3095939},{"$f":"SUMIFS(Sheet1!S71_OY1BudgetAmount,Sheet1!S71_SA1SubCode,$AC:$AC,Sheet1!S71_StaffCode,$AD:$AD)","v":2959817},{"$f":"SUMIFS(Sheet1!S71_OY2BudgetAmount,Sheet1!S71_SA1SubCode,$AC:$AC,Sheet1!S71_StaffCode,$AD:$AD)","v":2959817},null,null,null,null,null,null,null,null,null,null,null,null,null,null,null,null,null,"2006","MS"]
["Cellphone Allowance",3,{"$f":"SUMIFS(Sheet1!S71_PPPYearAmount,Sheet1!S71_SA1SubCode,$AC:$AC,Sheet1!S71_StaffCode,$AD:$AD)","v":0},{"$f":"SUMIFS(Sheet1!S71_PPYearAmount,Sheet1!S71_SA1SubCode,$AC:$AC,Sheet1!S71_StaffCode,$AD:$AD)","v":265977},{"$f":"SUMIFS(Sheet1!S71_PYearAmount,Sheet1!S71_SA1SubCode,$AC:$AC,Sheet1!S71_StaffCode,$AD:$AD)","v":251390},{"$f":"SUMIFS(Sheet1!S71_OriginalBudAmnt,Sheet1!S71_SA1SubCode,$AC:$AC,Sheet1!S71_StaffCode,$AD:$AD)","v":270380},{"$f":"SUMIFS(Sheet1!S71_AdjustmentBudAmnt,Sheet1!S71_SA1SubCode,$AC:$AC,Sheet1!S71_StaffCode,$AD:$AD)","v":270380},{"$f":"SUMIFS(Sheet1!S71_AdjustmentBudAmnt,Sheet1!S71_SA1SubCode,$AC:$AC,Sheet1!S71_StaffCode,$AD:$AD)","v":270380},{"$f":"SUMIFS(Sheet1!S71_ASBudgetAmount,Sheet1!S71_SA1SubCode,$AC:$AC,Sheet1!S71_StaffCode,$AD:$AD)","v":272972},{"$f":"SUMIFS(Sheet1!S71_OY1BudgetAmount,Sheet1!S71_SA1SubCode,$AC:$AC,Sheet1!S71_StaffCode,$AD:$AD)","v":270380},{"$f":"SUMIFS(Sheet1!S71_OY2BudgetAmount,Sheet1!S71_SA1SubCode,$AC:$AC,Sheet1!S71_StaffCode,$AD:$AD)","v":270380},null,null,null,null,null,null,null,null,null,null,null,null,null,null,null,null,null,"2007","MS"]
["Housing Allowances",3,{"$f":"SUMIFS(Sheet1!S71_PPPYearAmount,Sheet1!S71_SA1SubCode,$AC:$AC,Sheet1!S71_StaffCode,$AD:$AD)","v":0},{"$f":"SUMIFS(Sheet1!S71_PPYearAmount,Sheet1!S71_SA1SubCode,$AC:$AC,Sheet1!S71_StaffCode,$AD:$AD)","v":306925},{"$f":"SUMIFS(Sheet1!S71_PYearAmount,Sheet1!S71_SA1SubCode,$AC:$AC,Sheet1!S71_StaffCode,$AD:$AD)","v":339303},{"$f":"SUMIFS(Sheet1!S71_OriginalBudAmnt,Sheet1!S71_SA1SubCode,$AC:$AC,Sheet1!S71_StaffCode,$AD:$AD)","v":251707},{"$f":"SUMIFS(Sheet1!S71_AdjustmentBudAmnt,Sheet1!S71_SA1SubCode,$AC:$AC,Sheet1!S71_StaffCode,$AD:$AD)","v":251707},{"$f":"SUMIFS(Sheet1!S71_AdjustmentBudAmnt,Sheet1!S71_SA1SubCode,$AC:$AC,Sheet1!S71_StaffCode,$AD:$AD)","v":251707},{"$f":"SUMIFS(Sheet1!S71_ASBudgetAmount,Sheet1!S71_SA1SubCode,$AC:$AC,Sheet1!S71_StaffCode,$AD:$AD)","v":259682},{"$f":"SUMIFS(Sheet1!S71_OY1BudgetAmount,Sheet1!S71_SA1SubCode,$AC:$AC,Sheet1!S71_StaffCode,$AD:$AD)","v":251707},{"$f":"SUMIFS(Sheet1!S71_OY2BudgetAmount,Sheet1!S71_SA1SubCode,$AC:$AC,Sheet1!S71_StaffCode,$AD:$AD)","v":251707},null,null,null,null,null,null,null,null,null,null,null,null,null,null,null,null,null,"2008","MS"]
["Other benefits and allowances",3,{"$f":"SUMIFS(Sheet1!S71_PPPYearAmount,Sheet1!S71_SA1SubCode,$AC:$AC,Sheet1!S71_StaffCode,$AD:$AD)","v":0},{"$f":"SUMIFS(Sheet1!S71_PPYearAmount,Sheet1!S71_SA1SubCode,$AC:$AC,Sheet1!S71_StaffCode,$AD:$AD)","v":0},{"$f":"SUMIFS(Sheet1!S71_PYearAmount,Sheet1!S71_SA1SubCode,$AC:$AC,Sheet1!S71_StaffCode,$AD:$AD)","v":8303},{"$f":"SUMIFS(Sheet1!S71_OriginalBudAmnt,Sheet1!S71_SA1SubCode,$AC:$AC,Sheet1!S71_StaffCode,$AD:$AD)","v":8214},{"$f":"SUMIFS(Sheet1!S71_AdjustmentBudAmnt,Sheet1!S71_SA1SubCode,$AC:$AC,Sheet1!S71_StaffCode,$AD:$AD)","v":20655},{"$f":"SUMIFS(Sheet1!S71_AdjustmentBudAmnt,Sheet1!S71_SA1SubCode,$AC:$AC,Sheet1!S71_StaffCode,$AD:$AD)","v":20655},{"$f":"SUMIFS(Sheet1!S71_ASBudgetAmount,Sheet1!S71_SA1SubCode,$AC:$AC,Sheet1!S71_StaffCode,$AD:$AD)","v":7959},{"$f":"SUMIFS(Sheet1!S71_OY1BudgetAmount,Sheet1!S71_SA1SubCode,$AC:$AC,Sheet1!S71_StaffCode,$AD:$AD)","v":7655},{"$f":"SUMIFS(Sheet1!S71_OY2BudgetAmount,Sheet1!S71_SA1SubCode,$AC:$AC,Sheet1!S71_StaffCode,$AD:$AD)","v":7655},null,null,null,null,null,null,null,null,null,null,null,null,null,null,null,null,null,"2009","MS"]
["Payments in lieu of leave",null,{"$f":"SUMIFS(Sheet1!S71_PPPYearAmount,Sheet1!S71_SA1SubCode,$AC:$AC,Sheet1!S71_StaffCode,$AD:$AD)","v":0},{"$f":"SUMIFS(Sheet1!S71_PPYearAmount,Sheet1!S71_SA1SubCode,$AC:$AC,Sheet1!S71_StaffCode,$AD:$AD)","v":378190},{"$f":"SUMIFS(Sheet1!S71_PYearAmount,Sheet1!S71_SA1SubCode,$AC:$AC,Sheet1!S71_StaffCode,$AD:$AD)","v":690195},{"$f":"SUMIFS(Sheet1!S71_OriginalBudAmnt,Sheet1!S71_SA1SubCode,$AC:$AC,Sheet1!S71_StaffCode,$AD:$AD)","v":0},{"$f":"SUMIFS(Sheet1!S71_AdjustmentBudAmnt,Sheet1!S71_SA1SubCode,$AC:$AC,Sheet1!S71_StaffCode,$AD:$AD)","v":0},{"$f":"SUMIFS(Sheet1!S71_AdjustmentBudAmnt,Sheet1!S71_SA1SubCode,$AC:$AC,Sheet1!S71_StaffCode,$AD:$AD)","v":0},{"$f":"SUMIFS(Sheet1!S71_ASBudgetAmount,Sheet1!S71_SA1SubCode,$AC:$AC,Sheet1!S71_StaffCode,$AD:$AD)","v":0},{"$f":"SUMIFS(Sheet1!S71_OY1BudgetAmount,Sheet1!S71_SA1SubCode,$AC:$AC,Sheet1!S71_StaffCode,$AD:$AD)","v":0},{"$f":"SUMIFS(Sheet1!S71_OY2BudgetAmount,Sheet1!S71_SA1SubCode,$AC:$AC,Sheet1!S71_StaffCode,$AD:$AD)","v":0},null,null,null,null,null,null,null,null,null,null,null,null,null,null,null,null,null,"2010","MS"]
["Long service awards",null,{"$f":"SUMIFS(Sheet1!S71_PPPYearAmount,Sheet1!S71_SA1SubCode,$AC:$AC,Sheet1!S71_StaffCode,$AD:$AD)","v":0},{"$f":"SUMIFS(Sheet1!S71_PPYearAmount,Sheet1!S71_SA1SubCode,$AC:$AC,Sheet1!S71_StaffCode,$AD:$AD)","v":279175},{"$f":"SUMIFS(Sheet1!S71_PYearAmount,Sheet1!S71_SA1SubCode,$AC:$AC,Sheet1!S71_StaffCode,$AD:$AD)","v":295325},{"$f":"SUMIFS(Sheet1!S71_OriginalBudAmnt,Sheet1!S71_SA1SubCode,$AC:$AC,Sheet1!S71_StaffCode,$AD:$AD)","v":0},{"$f":"SUMIFS(Sheet1!S71_AdjustmentBudAmnt,Sheet1!S71_SA1SubCode,$AC:$AC,Sheet1!S71_StaffCode,$AD:$AD)","v":52396},{"$f":"SUMIFS(Sheet1!S71_AdjustmentBudAmnt,Sheet1!S71_SA1SubCode,$AC:$AC,Sheet1!S71_StaffCode,$AD:$AD)","v":52396},{"$f":"SUMIFS(Sheet1!S71_ASBudgetAmount,Sheet1!S71_SA1SubCode,$AC:$AC,Sheet1!S71_StaffCode,$AD:$AD)","v":128295},{"$f":"SUMIFS(Sheet1!S71_OY1BudgetAmount,Sheet1!S71_SA1SubCode,$AC:$AC,Sheet1!S71_StaffCode,$AD:$AD)","v":0},{"$f":"SUMIFS(Sheet1!S71_OY2BudgetAmount,Sheet1!S71_SA1SubCode,$AC:$AC,Sheet1!S71_StaffCode,$AD:$AD)","v":0},null,null,null,null,null,null,null,null,null,null,null,null,null,null,null,null,null,"2011","MS"]
["Post-retirement benefit obligations",6,{"$f":"SUMIFS(Sheet1!S71_PPPYearAmount,Sheet1!S71_SA1SubCode,$AC:$AC,Sheet1!S71_StaffCode,$AD:$AD)","v":0},{"$f":"SUMIFS(Sheet1!S71_PPYearAmount,Sheet1!S71_SA1SubCode,$AC:$AC,Sheet1!S71_StaffCode,$AD:$AD)","v":0},{"$f":"SUMIFS(Sheet1!S71_PYearAmount,Sheet1!S71_SA1SubCode,$AC:$AC,Sheet1!S71_StaffCode,$AD:$AD)","v":0},{"$f":"SUMIFS(Sheet1!S71_OriginalBudAmnt,Sheet1!S71_SA1SubCode,$AC:$AC,Sheet1!S71_StaffCode,$AD:$AD)","v":0},{"$f":"SUMIFS(Sheet1!S71_AdjustmentBudAmnt,Sheet1!S71_SA1SubCode,$AC:$AC,Sheet1!S71_StaffCode,$AD:$AD)","v":0},{"$f":"SUMIFS(Sheet1!S71_AdjustmentBudAmnt,Sheet1!S71_SA1SubCode,$AC:$AC,Sheet1!S71_StaffCode,$AD:$AD)","v":0},{"$f":"SUMIFS(Sheet1!S71_ASBudgetAmount,Sheet1!S71_SA1SubCode,$AC:$AC,Sheet1!S71_StaffCode,$AD:$AD)","v":0},{"$f":"SUMIFS(Sheet1!S71_OY1BudgetAmount,Sheet1!S71_SA1SubCode,$AC:$AC,Sheet1!S71_StaffCode,$AD:$AD)","v":0},{"$f":"SUMIFS(Sheet1!S71_OY2BudgetAmount,Sheet1!S71_SA1SubCode,$AC:$AC,Sheet1!S71_StaffCode,$AD:$AD)","v":0},null,null,null,null,null,null,null,null,null,null,null,null,null,null,null,null,null,"2012","MS"]
["Sub Total - Other Municipal Staff",null,{"$f":"SUM(C33:C44)","v":0},37066983,37874680,37658748,38489057,38489057,40833011,41373968,42354424]
[{"$f":"$A$14","v":"% increase"},{"$f":"$B$14","v":4},null,{"$f":"IF(ISERROR((D45/C45)-1),0,((D45/C45)-1))","v":0},{"$f":"IF(ISERROR((E45/D45)-1),0,((E45/D45)-1))","v":2.1790200729312037E-2},-5.7012230862412139E-3,2.2048236972721513E-2,0,6.0899231695907829E-2,1.3248031108947567E-2,2.3697412827312192E-2]
[]
["Total Parent Municipality",null,{"$f":"C13+C29+C45","v":0},46129321,48368247,48253407,49562578,49562578,52034810,52747955,53771530]
[null,null,null,{"$f":"IF(ISERROR((D48/C48)-1),0,((D48/C48)-1))","v":0},{"$f":"IF(ISERROR((E48/D48)-1),0,((E48/D48)-1))","v":4.8535854234663445E-2},-2.37428493118641E-3,2.7131161950906479E-2,0,4.9881021120410596E-2,1.3705152377802454E-2,1.9405017692154969E-2]
[]
["Board Members of Entities"]
["Basic Salaries and Wages"]
["Pension and UIF Contributions"]
["Medical Aid Contributions"]
["Overtime"]
["Performance Bonus"]
["Motor Vehicle Allowance",3]
["Cellphone Allowance",3]
["Housing Allowances",3]
["Other benefits and allowances",3]
["Board Fees"]
["Payments in lieu of leave"]
["Long service awards"]
["Post-retirement benefit obligations",6]
["Sub Total - Board Members of Entities",null,{"$f":"SUM(C52:C64)","v":0},{"$f":"SUM(D52:D64)","v":0},0,0,0,0,0,0,0]
[{"$f":"$A$14","v":"% increase"},{"$f":"$B$14","v":4},null,{"$f":"IF(ISERROR((D65/C65)-1),0,((D65/C65)-1))","v":0},{"$f":"IF(ISERROR((E65/D65)-1),0,((E65/D65)-1))","v":0},0,0,0,0,0,0]
[]
["Senior Managers of Entities"]
["Basic Salaries and Wages"]
["Pension and UIF Contributions"]
["Medical Aid Contributions"]
["Overtime"]
["Performance Bonus"]
["Motor Vehicle Allowance",3]
["Cellphone Allowance",3]
["Housing Allowances",3]
["Other benefits and allowances",3]
["Payments in lieu of leave"]
["Long service awards"]
["Post-retirement benefit obligations",6]
["Sub Total - Senior Managers of Entities",null,{"$f":"SUM(C69:C80)","v":0},{"$f":"SUM(D69:D80)","v":0},0,0,0,0,0,0,0]
[{"$f":"$A$14","v":"% increase"},{"$f":"$B$14","v":4},null,{"$f":"IF(ISERROR((D81/C81)-1),0,((D81/C81)-1))","v":0},{"$f":"IF(ISERROR((E81/D81)-1),0,((E81/D81)-1))","v":0},0,0,0,0,0,0]
[]
["Other Staff of Entities"]
["Basic Salaries and Wages"]
["Pension and UIF Contributions"]
["Medical Aid Contributions"]
["Overtime"]
["Performance Bonus"]
["Motor Vehicle Allowance",3]
["Cellphone Allowance",3]
["Housing Allowances",3]
["Other benefits and allowances",3]
["Payments in lieu of leave"]
["Long service awards"]
["Post-retirement benefit obligations",6]
["Sub Total - Other Staff of Entities",null,{"$f":"SUM(C85:C96)","v":0},{"$f":"SUM(D85:D96)","v":0},0,0,0,0,0,0,0]
[{"$f":"$A$14","v":"% increase"},{"$f":"$B$14","v":4},null,{"$f":"IF(ISERROR((D97/C97)-1),0,((D97/C97)-1))","v":0},{"$f":"IF(ISERROR((E97/D97)-1),0,((E97/D97)-1))","v":0},0,0,0,0,0,0]
[]
["Total Municipal Entities",null,{"$f":"C65+C81+C97","v":0},{"$f":"D65+D81+D97","v":0},0,0,0,0,0,0,0]
[]
["TOTAL SALARY, ALLOWANCES & BENEFITS",null,{"$f":"C48+C100","v":0},{"$f":"D48+D100","v":46129321},{"$f":"E48+E100","v":48368247},48253407,49562578,49562578,52034810,52747955,53771530]
[{"$f":"$A$14","v":"% increase"},{"$f":"$B$14","v":4},null,{"$f":"IF(ISERROR((D102/C102)-1),0,((D102/C102)-1))","v":0},{"$f":"IF(ISERROR((E102/D102)-1),0,((E102/D102)-1))","v":4.8535854234663445E-2},-2.37428493118641E-3,2.7131161950906479E-2,0,4.9881021120410596E-2,1.3705152377802454E-2,1.9405017692154969E-2]
["TOTAL MANAGERS AND STAFF","5,7",{"$f":"C29+C45+C81+C97","v":0},41321595,43703876,43559123,44675294,44675294,47147526,47560205,48540661]
[{"$f":"head27a","v":"References"}]
["1. Include 'Loans and advances' where applicable if any reportable amounts until phased compliance with s164 of MFMA achieved"]
["2. s57 of the Systems Act"]
["3. In kind benefits (e.g. provision of living quarters) must be shown as the cost (full market value) to the municipality, as part of the relevant allowance"]
["4. B/A, C/B, D/C, E/C, F/C, G/D, H/D, I/D"]
["5. Must agree to the sub-total appearing on Table A1 (Employee costs)"]
["6. Includes pension payments and employer contributions to medical aid"]
["7. Correct as at 30 June"]
[]
["Column Definitions:"]
["A, B and C. Audited actual as per the audited financial statements. If audited amounts are unavailable, unaudited amounts must be provided with a note stating these are unaudited"]
["D. The original budget approved by council for the budget year."]
["E. The budget for the budget year as adjusted by council resolution in terms of section 28 of the MFMA."]
["F. An estimate of final actual amounts (pre audit) for the current year at the point in time of preparing the budget for the budget year. This may differ from E."]
["G. The amount to be appropriated for the budget year."]
["H and I. The indicative projection"]

{"sheet":"SA23","index":53,"n_rows":70,"n_cols":9,"rows_kept":70,"cut":false,"hidden":false,"merged":[[1,2,2,2],[1,5,2,5],[1,3,2,3],[1,6,2,6]]}
[{"$f":"muni&\" - \"&TableA23","v":"DC16 Xhariep - Supporting Table SA23 Salaries, allowances & benefits (political office bearers/councillors/senior managers)"}]
["Disclosure of Salaries, Allowances & Benefits 1.",{"$f":"head27","v":"Ref"},"No.","Salary","\nContributions\n","Allowances","Performance  Bonuses","In-kind benefits","Total Package"]
["Rand per annum",null,null,null,"1.",null,null,null,"2."]
["Councillors",3]
["Speaker",4,null,null,null,null,null,null,{"$f":"SUM(D5:F5)","v":0}]
["Chief Whip",null,null,null,null,null,null,null,0]
["Executive Mayor",null,null,null,null,null,null,null,0]
["Deputy Executive Mayor",null,null,null,null,null,null,null,0]
["Executive Committee",null,null,null,null,null,null,null,0]
["Total for all other councillors",null,null,null,null,null,null,null,0]
[{"$f":"\"Total \"&A4","v":"Total Councillors"},8,{"$f":"SUM(C5:C10)","v":0},0,0,0,null,null,0]
[]
["Senior Managers of the Municipality",5]
["Municipal Manager (MM)",null,null,null,null,null,null,null,{"$f":"SUM(D14:H14)","v":0}]
["Chief Finance Officer",null,null,null,null,null,null,null,0]
[null,null,null,null,null,null,null,null,0]
[null,null,null,null,null,null,null,null,0]
[null,null,null,null,null,null,null,null,0]
[null,null,null,null,null,null,null,null,0]
[]
["List of each offical with packages >= senior manager"]
[null,null,null,null,null,null,null,null,{"$f":"SUM(D22:H22)","v":0}]
[null,null,null,null,null,null,null,null,{"$f":"SUM(D23:H23)","v":0}]
[null,null,null,null,null,null,null,null,0]
[null,null,null,null,null,null,null,null,0]
[null,null,null,null,null,null,null,null,0]
[null,null,null,null,null,null,null,null,0]
[null,null,null,null,null,null,null,null,0]
[null,null,null,null,null,null,null,null,0]
[null,null,null,null,null,null,null,null,0]
[null,null,null,null,null,null,null,null,0]
[null,null,null,null,null,null,null,null,0]
[null,null,null,null,null,null,null,null,{"$f":"SUM(D33:H33)","v":0}]
[null,null,null,null,null,null,null,null,{"$f":"SUM(D34:H34)","v":0}]
[{"$f":"\"Total \"&A13","v":"Total Senior Managers of the Municipality"},"8,10",{"$f":"SUM(C14:C34)","v":0},{"$f":"SUM(D14:D34)","v":0},{"$f":"SUM(E14:E34)","v":0},{"$f":"SUM(F14:F34)","v":0},{"$f":"SUM(G14:G34)","v":0},null,{"$f":"SUM(I14:I34)","v":0}]
[]
["A Heading for Each Entity","6,7"]
["List each member of board by designation"]
[null,null,null,null,null,null,null,null,{"$f":"SUM(D39:G39)","v":0}]
[null,null,null,null,null,null,null,null,{"$f":"SUM(D40:G40)","v":0}]
[null,null,null,null,null,null,null,null,0]
[null,null,null,null,null,null,null,null,0]
[null,null,null,null,null,null,null,null,0]
[null,null,null,null,null,null,null,null,0]
[null,null,null,null,null,null,null,null,0]
[null,null,null,null,null,null,null,null,0]
[null,null,null,null,null,null,null,null,0]
[null,null,null,null,null,null,null,null,0]
[null,null,null,null,null,null,null,null,0]
[null,null,null,null,null,null,null,null,0]
[null,null,null,null,null,null,null,null,0]
[null,null,null,null,null,null,null,null,0]
[null,null,null,null,null,null,null,null,0]
[null,null,null,null,null,null,null,null,0]
["Total for municipal entities","8,10",{"$f":"SUM(C38:C54)","v":0},{"$f":"SUM(D39:D54)","v":0},0,0,0,null,0]
[]
["TOTAL COST OF COUNCILLOR, DIRECTOR and EXECUTIVE REMUNERATION",10,{"$f":"C11+C35+C55","v":0},0,0,0,0,null,0]
[]
[{"$f":"head27a","v":"References"}]
["1. Pension and medical aid"]
["2. Total package must equal the total cost to the municipality"]
["3. List each political office bearer by designation. Provide a total for all other councillors"]
["4. Political office bearer is defined in MFMA s 1: speaker, executive mayor, deputy executive mayor, member of executive committee,"]
["    mayor, deputy mayor, member of mayoral committee, the councillor designated to exercise powers and duties of mayor (MSA s 57)"]
["5. Also list each senior manager reporting to MM by designation and each official with package >= senior manager by designation"]
["6. List each entity where municipality has an interest and state percentage ownership and control"]
["7. List each senior manager reporting to the CEO of an Entity by designation"]
["8. Must reconcile to relevant section of Table SA24"]
["9. Must reconcile to totals shown for the budget year of Table SA22"]
["10. Correct as at 30 June"]

{"sheet":"SA24","index":54,"n_rows":53,"n_cols":11,"rows_kept":53,"cut":false,"hidden":false,"merged":[[1,5,1,7],[1,8,1,10],[1,2,1,4]]}
[{"$f":"muni&\" - \"&TableA24","v":"DC16 Xhariep - Supporting Table SA24 Summary of personnel numbers"}]
["Summary of Personnel Numbers",{"$f":"head27","v":"Ref"},{"$f":"Head1","v":"2019/20"},null,null,{"$f":"Head2","v":"Current Year 2020/21"},null,null,{"$f":"Head9","v":"Budget Year 2021/22"}]
["Number","1,2","Positions","Permanent employees","Contract employees","Positions","Permanent employees","Contract employees","Positions","Permanent employees","Contract employees"]
["Municipal Council and Boards of Municipal Entities"]
["Councillors (Political Office Bearers plus Other Councillors)"]
["Board Members of municipal entities",4]
["Municipal employees",5]
["Municipal Manager and Senior Managers",3]
["Other Managers",7]
["Professionals",null,{"$f":"SUM(C11:C19)","v":0},{"$f":"SUM(D11:D19)","v":0},0,0,0,0,0,0,0]
["Finance"]
["Spatial/town planning"]
["Information Technology"]
["Roads"]
["Electricity"]
["Water"]
["Sanitation"]
["Refuse"]
["Other"]
["Technicians",null,{"$f":"SUM(C21:C29)","v":0},{"$f":"SUM(D21:D29)","v":0},0,0,0,0,0,0,0]
["Finance"]
["Spatial/town planning"]
["Information Technology"]
["Roads"]
["Electricity"]
["Water"]
["Sanitation"]
["Refuse"]
["Other"]
["Clerks (Clerical and administrative)"]
["Service and sales workers"]
["Skilled agricultural and fishery workers"]
["Craft and related trades"]
["Plant and Machine Operators"]
["Elementary Occupations"]
["TOTAL PERSONNEL NUMBERS",9,{"$f":"SUM(C5:C9)+SUM(C11:C19)+SUM(C21:C35)","v":0},{"$f":"SUM(D5:D9)+SUM(D11:D19)+SUM(D21:D35)","v":0},0,0,0,{"$f":"SUM(H5:H9)+SUM(H11:H19)+SUM(H21:H35)","v":0},0,0,0]
["% increase",null,null,null,null,{"$f":"IF(ISERROR((F36/C36)-1),0,((F36/C36)-1))","v":0},0,0,0,0,0]
[]
["Total municipal employees headcount","6, 10"]
["Finance personnel headcount","8, 10"]
["Human Resources personnel headcount","8, 10"]
[]
[{"$f":"head27a","v":"References"}]
["1. Positions must be funded and aligned to the municipality's current organisational structure"]
["2. Full Time Equivalent (FTE). E.g. One full time person = 1FTE. A person working half time (say 4 hours out of 8) = 0.5FTE."]
["3. s57 of the Systems Act"]
["4. Include only in Consolidated Statements"]
["5. Include municipal entity employees in Consolidated Statements"]
["6.  Include headcount (number fo persons, Not FTE) of managers and staff only (exclude councillors)"]
["7. Managers who provide the direction of a critical technical function"]
["8. Total number of employees working on these functions"]
["9. Correct as at 30 June"]
["10. Must account for all budgeted positions, as per the municipal organogram"]

{"sheet":"SA25","index":55,"n_rows":48,"n_cols":17,"rows_kept":48,"cut":false,"hidden":false,"merged":[[1,2,1,13],[1,14,1,16]]}
[{"$f":"muni&\" - \"& TableA25","v":"DC16 Xhariep - Supporting Table SA25 Budgeted monthly revenue and expenditure"}]
[{"$f":"desc","v":"Description"},{"$f":"head27","v":"Ref"},{"$f":"Head9","v":"Budget Year 2021/22"},null,null,null,null,null,null,null,null,null,null,null,"Medium Term Revenue and Expenditure Framework"]
["R thousand",null,"July","August","Sept.","October","November","December","January","February","March","April","May","June",{"$f":"Head9","v":"Budget Year 2021/22"},{"$f":"Head10","v":"Budget Year +1 2022/23"},{"$f":"Head11","v":"Budget Year +2 2023/24"}]
[{"$f":"'A4-FinPerf RE'!A4","v":"Revenue By Source"}]
[{"$f":"'A4-FinPerf RE'!A5","v":"Property rates"},null,{"$f":"ROUND($O5/12,0)","v":0},{"$f":"ROUND($O5/12,0)","v":0},{"$f":"ROUND($O5/12,0)","v":0},0,0,0,0,0,0,0,{"$f":"ROUND($O5/12,0)","v":0},{"$f":"O5-SUM(C5:M5)","v":0},{"$f":"'A4-FinPerf RE'!J5","v":0},{"$f":"'A4-FinPerf RE'!K5","v":0},{"$f":"'A4-FinPerf RE'!L5","v":0}]
[{"$f":"'A4-FinPerf RE'!A6","v":"Service charges - electricity revenue"},null,{"$f":"ROUND($O6/12,0)","v":0},0,0,0,0,0,0,0,0,0,0,0,{"$f":"'A4-FinPerf RE'!J6","v":0},{"$f":"'A4-FinPerf RE'!K6","v":0},{"$f":"'A4-FinPerf RE'!L6","v":0}]
[{"$f":"'A4-FinPerf RE'!A7","v":"Service charges - water revenue"},null,0,0,0,0,0,0,0,0,0,0,0,0,{"$f":"'A4-FinPerf RE'!J7","v":0},{"$f":"'A4-FinPerf RE'!K7","v":0},{"$f":"'A4-FinPerf RE'!L7","v":0}]
[{"$f":"'A4-FinPerf RE'!A8","v":"Service charges - sanitation revenue"},null,0,0,0,0,0,0,0,0,0,0,0,0,{"$f":"'A4-FinPerf RE'!J8","v":0},{"$f":"'A4-FinPerf RE'!K8","v":0},{"$f":"'A4-FinPerf RE'!L8","v":0}]
[{"$f":"'A4-FinPerf RE'!A9","v":"Service charges - refuse revenue"},null,0,0,0,0,0,0,0,0,0,0,0,0,{"$f":"'A4-FinPerf RE'!J9","v":0},{"$f":"'A4-FinPerf RE'!K9","v":0},{"$f":"'A4-FinPerf RE'!L9","v":0}]
[null,null,0,0,0,0,0,0,0,0,0,0,0]
[{"$f":"'A4-FinPerf RE'!A11","v":"Rental of facilities and equipment"},null,78265,78265,78265,78265,78265,78265,78265,78265,78265,78265,78265,78268,{"$f":"'A4-FinPerf RE'!J11","v":939183},{"$f":"'A4-FinPerf RE'!K11","v":174001},{"$f":"'A4-FinPerf RE'!L11","v":191401}]
[{"$f":"'A4-FinPerf RE'!A12","v":"Interest earned - external investments"},null,51667,51667,51667,51667,51667,51667,51667,51667,51667,51667,51667,51663,{"$f":"'A4-FinPerf RE'!J12","v":620000},{"$f":"'A4-FinPerf RE'!K12","v":640000},{"$f":"'A4-FinPerf RE'!L12","v":650000}]
[{"$f":"'A4-FinPerf RE'!A13","v":"Interest earned - outstanding debtors"},null,0,0,0,0,0,0,0,0,0,0,0,0,{"$f":"'A4-FinPerf RE'!J13","v":0},{"$f":"'A4-FinPerf RE'!K13","v":0},{"$f":"'A4-FinPerf RE'!L13","v":0}]
[{"$f":"'A4-FinPerf RE'!A14","v":"Dividends received"},null,0,0,0,0,0,0,0,0,0,0,0,0,{"$f":"'A4-FinPerf RE'!J14","v":0},{"$f":"'A4-FinPerf RE'!K14","v":0},{"$f":"'A4-FinPerf RE'!L14","v":0}]
[{"$f":"'A4-FinPerf RE'!A15","v":"Fines, penalties and forfeits"},null,0,0,0,0,0,0,0,0,0,0,0,0,{"$f":"'A4-FinPerf RE'!J15","v":0},{"$f":"'A4-FinPerf RE'!K15","v":0},{"$f":"'A4-FinPerf RE'!L15","v":0}]
[{"$f":"'A4-FinPerf RE'!A16","v":"Licences and permits"},null,1667,1667,1667,1667,1667,1667,1667,1667,1667,1667,1667,1663,{"$f":"'A4-FinPerf RE'!J16","v":20000},{"$f":"'A4-FinPerf RE'!K16","v":35000},{"$f":"'A4-FinPerf RE'!L16","v":40000}]
[{"$f":"'A4-FinPerf RE'!A17","v":"Agency services"},null,0,0,0,0,0,0,0,0,0,0,0,0,{"$f":"'A4-FinPerf RE'!J17","v":0},{"$f":"'A4-FinPerf RE'!K17","v":0},{"$f":"'A4-FinPerf RE'!L17","v":0}]
[{"$f":"'A4-FinPerf RE'!A18","v":"Transfers and subsidies"},null,5152667,5152667,5152667,5152667,5152667,5152667,5152667,5152667,5152667,5152667,5152667,5152663,{"$f":"'A4-FinPerf RE'!J18","v":61832000},{"$f":"'A4-FinPerf RE'!K18","v":67840724},{"$f":"'A4-FinPerf RE'!L18","v":69212323}]
[{"$f":"'A4-FinPerf RE'!A19","v":"Other revenue"},null,5000,5000,5000,5000,5000,5000,5000,5000,5000,5000,5000,5000,{"$f":"'A4-FinPerf RE'!J19","v":60000},{"$f":"'A4-FinPerf RE'!K19","v":58275},{"$f":"'A4-FinPerf RE'!L19","v":58275}]
[{"$f":"'A4-FinPerf RE'!A20","v":"Gains"},null,0,0,0,0,0,0,0,0,0,0,0,0,{"$f":"'A4-FinPerf RE'!J20","v":0},{"$f":"'A4-FinPerf RE'!K20","v":0},{"$f":"'A4-FinPerf RE'!L20","v":0}]
[{"$f":"'A4-FinPerf RE'!A21","v":"Total Revenue (excluding capital transfers and contributions)"},null,{"$f":"SUM(C5:C9)+SUM(C11:C20)","v":5289266},{"$f":"SUM(D5:D9)+SUM(D11:D20)","v":5289266},5289266,5289266,5289266,5289266,5289266,5289266,5289266,5289266,5289266,5289257,63471183,68748000,70151999]
[]
[{"$f":"'A4-FinPerf RE'!A23","v":"Expenditure By Type"}]
[{"$f":"'A4-FinPerf RE'!A24","v":"Employee related costs"},null,{"$f":"ROUND($O24/12,0)","v":3928961},3928961,3928961,3928961,3928961,3928961,3928961,3928961,3928961,3928961,3928961,{"$f":"O24-SUM(C24:M24)","v":3928955},{"$f":"'A4-FinPerf RE'!J24","v":47147526},{"$f":"'A4-FinPerf RE'!K24","v":47560205},{"$f":"'A4-FinPerf RE'!L24","v":48540661}]
[{"$f":"'A4-FinPerf RE'!A25","v":"Remuneration of councillors"},null,407274,407274,407274,407274,407274,407274,407274,407274,407274,407274,407274,407270,{"$f":"'A4-FinPerf RE'!J25","v":4887284},{"$f":"'A4-FinPerf RE'!K25","v":5187750},{"$f":"'A4-FinPerf RE'!L25","v":5230869}]
[{"$f":"'A4-FinPerf RE'!A26","v":"Debt impairment"},null,40917,40917,40917,40917,40917,40917,40917,40917,40917,40917,40917,40913,{"$f":"'A4-FinPerf RE'!J26","v":491000},{"$f":"'A4-FinPerf RE'!K26","v":0},{"$f":"'A4-FinPerf RE'!L26","v":0}]
[{"$f":"'A4-FinPerf RE'!A27","v":"Depreciation & asset impairment"},null,83333,83333,83333,83333,83333,83333,83333,83333,83333,83333,83333,83337,{"$f":"'A4-FinPerf RE'!J27","v":1000000},{"$f":"'A4-FinPerf RE'!K27","v":1000000},{"$f":"'A4-FinPerf RE'!L27","v":1000000}]
[{"$f":"'A4-FinPerf RE'!A28","v":"Finance charges"},null,6667,6667,6667,6667,6667,6667,6667,6667,6667,6667,6667,6663,{"$f":"'A4-FinPerf RE'!J28","v":80000},{"$f":"'A4-FinPerf RE'!K28","v":411060},{"$f":"'A4-FinPerf RE'!L28","v":433257}]
[{"$f":"'A4-FinPerf RE'!A29","v":"Bulk purchases - electricity"},null,0,0,0,0,0,0,0,0,0,0,0,0,{"$f":"'A4-FinPerf RE'!J29","v":0},{"$f":"'A4-FinPerf RE'!K29","v":0},{"$f":"'A4-FinPerf RE'!L29","v":0}]
[{"$f":"'A4-FinPerf RE'!A30","v":"Inventory consumed"},null,15000,15000,15000,15000,15000,15000,15000,15000,15000,15000,15000,15000,{"$f":"'A4-FinPerf RE'!J30","v":180000},{"$f":"'A4-FinPerf RE'!K30","v":345673},{"$f":"'A4-FinPerf RE'!L30","v":348140}]
[{"$f":"'A4-FinPerf RE'!A31","v":"Contracted services"},null,456750,456750,456750,456750,456750,456750,456750,456750,456750,456750,456750,456750,{"$f":"'A4-FinPerf RE'!J31","v":5481000},{"$f":"'A4-FinPerf RE'!K31","v":7144409},{"$f":"'A4-FinPerf RE'!L31","v":7459626}]
[{"$f":"'A4-FinPerf RE'!A32","v":"Transfers and subsidies"},null,6000,6000,6000,6000,6000,6000,6000,6000,6000,6000,6000,6000,{"$f":"'A4-FinPerf RE'!J32","v":72000},{"$f":"'A4-FinPerf RE'!K32","v":72000},{"$f":"'A4-FinPerf RE'!L32","v":72000}]
[{"$f":"'A4-FinPerf RE'!A33","v":"Other expenditure"},null,303865,303865,303865,303865,303865,303865,303865,303865,303865,303865,303865,303860,{"$f":"'A4-FinPerf RE'!J33","v":3646375},{"$f":"'A4-FinPerf RE'!K33","v":7005086},{"$f":"'A4-FinPerf RE'!L33","v":7044198}]
[{"$f":"'A4-FinPerf RE'!A34","v":"Losses"},null,0,0,0,0,0,0,0,0,0,0,0,0,{"$f":"'A4-FinPerf RE'!J34","v":0},{"$f":"'A4-FinPerf RE'!K34","v":0},{"$f":"'A4-FinPerf RE'!L34","v":0}]
[{"$f":"'A4-FinPerf RE'!A35","v":"Total Expenditure"},null,{"$f":"SUM(C24:C34)","v":5248767},{"$f":"SUM(D24:D34)","v":5248767},5248767,5248767,5248767,5248767,5248767,5248767,5248767,5248767,5248767,5248748,62985185,68726183,70128751]
[]
[{"$f":"'A4-FinPerf RE'!A37","v":"Surplus/(Deficit)"},null,{"$f":"C21-C35","v":40499},40499,40499,40499,40499,40499,40499,40499,40499,40499,40499,40509,485998,21817,23248]
[{"$f":"'A4-FinPerf RE'!A38","v":"Transfers and subsidies - capital (monetary allocations) (National / Provincial and District)"},null,{"$f":"ROUND($O38/12,0)","v":0},0,0,0,0,0,0,0,0,0,0,{"$f":"O38-SUM(C38:M38)","v":0},{"$f":"'A4-FinPerf RE'!J38","v":0},{"$f":"'A4-FinPerf RE'!K38","v":0},{"$f":"'A4-FinPerf RE'!L38","v":0}]
[{"$f":"'A4-FinPerf RE'!A39","v":"Transfers and subsidies - capital (monetary allocations) (National / Provincial Departmental Agencies, Households, Non-profit Institutions, Private Enterprises, Public Corporatons, Higher Educational Institutions)"},null,0,0,0,0,0,0,0,0,0,0,0,{"$f":"O39-SUM(C39:M39)","v":0},{"$f":"'A4-FinPerf RE'!J39","v":0},{"$f":"'A4-FinPerf RE'!K39","v":0},{"$f":"'A4-FinPerf RE'!L39","v":0}]
[{"$f":"'A4-FinPerf RE'!A40","v":"Transfers and subsidies - capital (in-kind - all) "},null,0,0,0,0,0,0,0,0,0,0,0,{"$f":"O40-SUM(C40:M40)","v":0},{"$f":"'A4-FinPerf RE'!J40","v":0},{"$f":"'A4-FinPerf RE'!K40","v":0},{"$f":"'A4-FinPerf RE'!L40","v":0}]
[{"$f":"'A4-FinPerf RE'!A41","v":"Surplus/(Deficit) after capital transfers & contributions"},null,{"$f":"C37+SUM(C38:C40)","v":40499},40499,40499,40499,40499,40499,40499,40499,40499,40499,40499,40509,{"$f":"O37+SUM(O38:O40)","v":485998},{"$f":"P37+SUM(P38:P40)","v":21817},{"$f":"Q37+SUM(Q38:Q40)","v":23248}]
[{"$f":"'A4-FinPerf RE'!A42","v":"Taxation"},null,{"$f":"ROUND($O42/12,0)","v":0},0,0,0,0,0,0,0,0,0,0,{"$f":"O42-SUM(C42:M42)","v":0},{"$f":"'A4-FinPerf RE'!J42","v":0},{"$f":"'A4-FinPerf RE'!K42","v":0},{"$f":"'A4-FinPerf RE'!L42","v":0}]
[{"$f":"'A4-FinPerf RE'!A44","v":"Attributable to minorities"},null,0,0,0,0,0,0,0,0,0,0,0,{"$f":"O43-SUM(C43:M43)","v":0},{"$f":"'A4-FinPerf RE'!J44","v":0},{"$f":"'A4-FinPerf RE'!K44","v":0},{"$f":"'A4-FinPerf RE'!L44","v":0}]
[{"$f":"'A4-FinPerf RE'!A46","v":"Share of surplus/ (deficit) of associate"},null,0,0,0,0,0,0,0,0,0,0,0,{"$f":"O44-SUM(C44:M44)","v":0},{"$f":"'A4-FinPerf RE'!J46","v":0},{"$f":"'A4-FinPerf RE'!K46","v":0},{"$f":"'A4-FinPerf RE'!L46","v":0}]
[{"$f":"'A4-FinPerf RE'!A37","v":"Surplus/(Deficit)"},1,{"$f":"C41-C42+SUM(C43:C44)","v":40499},{"$f":"D41-D42+SUM(D43:D44)","v":40499},40499,40499,40499,40499,40499,40499,40499,40499,40499,{"$f":"N41-N42+SUM(N43:N44)","v":40509},{"$f":"O41-O42+SUM(O43:O44)","v":485998},{"$f":"P41-P42+SUM(P43:P44)","v":21817},{"$f":"Q41-Q42+SUM(Q43:Q44)","v":23248}]
[{"$f":"head27a","v":"References"}]
["1. Surplus (Deficit) must reconcile with Budgeted Financial Performance"]
["check",null,null,null,null,null,null,null,null,null,null,null,null,null,{"$f":"O45-'A4-FinPerf RE'!J47","v":0},{"$f":"P45-'A4-FinPerf RE'!K47","v":0},{"$f":"Q45-'A4-FinPerf RE'!L47","v":0}]

{"sheet":"SA26","index":56,"n_rows":48,"n_cols":17,"rows_kept":48,"cut":false,"hidden":false,"merged":[[1,2,1,13],[1,14,1,16]]}
[{"$f":"muni&\" - \"&TableA26","v":"DC16 Xhariep - Supporting Table SA26 Budgeted monthly revenue and expenditure (municipal vote)"}]
[{"$f":"desc","v":"Description"},{"$f":"head27","v":"Ref"},{"$f":"Head9","v":"Budget Year 2021/22"},null,null,null,null,null,null,null,null,null,null,null,"Medium Term Revenue and Expenditure Framework"]
["R thousand",null,"July","August","Sept.","October","November","December","January","February","March","April","May","June",{"$f":"Head9","v":"Budget Year 2021/22"},{"$f":"Head10","v":"Budget Year +1 2022/23"},{"$f":"Head11","v":"Budget Year +2 2023/24"}]
[{"$f":"'A3-FinPerf V'!A4","v":"Revenue by Vote"}]
[{"$f":"'A3-FinPerf V'!A5","v":"Vote 1 - Executive and Council"},null,{"$f":"ROUND($O5/12,0)","v":1090234},1090234,1090234,1090234,1090234,1090234,1090234,1090234,1090234,1090234,1090234,{"$f":"O5-SUM(C5:M5)","v":1090233},{"$f":"'A3-FinPerf V'!I5","v":13082807},{"$f":"'A3-FinPerf V'!J5","v":25325600},{"$f":"'A3-FinPerf V'!K5","v":25641200}]
[{"$f":"'A3-FinPerf V'!A6","v":"Vote 2 - Finance and Administration"},null,2956320,2956320,2956320,2956320,2956320,2956320,2956320,2956320,2956320,2956320,2956320,2956318,{"$f":"'A3-FinPerf V'!I6","v":35475838},{"$f":"'A3-FinPerf V'!J6","v":28050876},{"$f":"'A3-FinPerf V'!K6","v":28741268}]
[{"$f":"'A3-FinPerf V'!A7","v":"Vote 3 - Planning and Development"},null,1242712,1242712,1242712,1242712,1242712,1242712,1242712,1242712,1242712,1242712,1242712,1242706,{"$f":"'A3-FinPerf V'!I7","v":14912538},{"$f":"'A3-FinPerf V'!J7","v":15371524},{"$f":"'A3-FinPerf V'!K7","v":15769531}]
[{"$f":"'A3-FinPerf V'!A8","v":"Vote 4 - Community and Social Services"},null,0,0,0,0,0,0,0,0,0,0,0,0,{"$f":"'A3-FinPerf V'!I8","v":0},{"$f":"'A3-FinPerf V'!J8","v":0},{"$f":"'A3-FinPerf V'!K8","v":0}]
[{"$f":"'A3-FinPerf V'!A9","v":"Vote 5 - Environmental Protection"},null,0,0,0,0,0,0,0,0,0,0,0,0,{"$f":"'A3-FinPerf V'!I9","v":0},{"$f":"'A3-FinPerf V'!J9","v":0},{"$f":"'A3-FinPerf V'!K9","v":0}]
[{"$f":"'A3-FinPerf V'!A10","v":"Vote 6 - [NAME OF VOTE 6]"},null,0,0,0,0,0,0,0,0,0,0,0,0,{"$f":"'A3-FinPerf V'!I10","v":0},{"$f":"'A3-FinPerf V'!J10","v":0},{"$f":"'A3-FinPerf V'!K10","v":0}]
[{"$f":"'A3-FinPerf V'!A11","v":"Vote 7 - [NAME OF VOTE 7]"},null,0,0,0,0,0,0,0,0,0,0,0,{"$f":"O11-SUM(C11:M11)","v":0},{"$f":"'A3-FinPerf V'!I11","v":0},{"$f":"'A3-FinPerf V'!J11","v":0},{"$f":"'A3-FinPerf V'!K11","v":0}]
[{"$f":"'A3-FinPerf V'!A12","v":"Vote 8 - [NAME OF VOTE 8]"},null,0,0,0,0,0,0,0,0,0,0,0,{"$f":"O12-SUM(C12:M12)","v":0},{"$f":"'A3-FinPerf V'!I12","v":0},{"$f":"'A3-FinPerf V'!J12","v":0},{"$f":"'A3-FinPerf V'!K12","v":0}]
[{"$f":"'A3-FinPerf V'!A13","v":"Vote 9 - [NAME OF VOTE 9]"},null,0,0,0,0,0,0,0,0,0,0,0,{"$f":"O13-SUM(C13:M13)","v":0},{"$f":"'A3-FinPerf V'!I13","v":0},{"$f":"'A3-FinPerf V'!J13","v":0},{"$f":"'A3-FinPerf V'!K13","v":0}]
[{"$f":"'A3-FinPerf V'!A14","v":"Vote 10 - [NAME OF VOTE 10]"},null,0,0,0,0,0,0,0,0,0,0,0,{"$f":"O14-SUM(C14:M14)","v":0},{"$f":"'A3-FinPerf V'!I14","v":0},{"$f":"'A3-FinPerf V'!J14","v":0},{"$f":"'A3-FinPerf V'!K14","v":0}]
[{"$f":"'A3-FinPerf V'!A15","v":"Vote 11 - [NAME OF VOTE 11]"},null,0,0,0,0,0,0,0,0,0,0,0,0,{"$f":"'A3-FinPerf V'!I15","v":0},{"$f":"'A3-FinPerf V'!J15","v":0},{"$f":"'A3-FinPerf V'!K15","v":0}]
[{"$f":"'A3-FinPerf V'!A16","v":"Vote 12 - [NAME OF VOTE 12]"},null,0,0,0,0,0,0,0,0,0,0,0,0,{"$f":"'A3-FinPerf V'!I16","v":0},{"$f":"'A3-FinPerf V'!J16","v":0},{"$f":"'A3-FinPerf V'!K16","v":0}]
[{"$f":"'A3-FinPerf V'!A17","v":"Vote 13 - [NAME OF VOTE 13]"},null,0,0,0,0,0,0,0,0,0,0,0,0,{"$f":"'A3-FinPerf V'!I17","v":0},{"$f":"'A3-FinPerf V'!J17","v":0},{"$f":"'A3-FinPerf V'!K17","v":0}]
[{"$f":"'A3-FinPerf V'!A18","v":"Vote 14 - [NAME OF VOTE 14]"},null,0,0,0,0,0,0,0,0,0,0,0,0,{"$f":"'A3-FinPerf V'!I18","v":0},{"$f":"'A3-FinPerf V'!J18","v":0},{"$f":"'A3-FinPerf V'!K18","v":0}]
[{"$f":"'A3-FinPerf V'!A19","v":"Vote 15 - [NAME OF VOTE 15]"},null,0,0,0,0,0,0,0,0,0,0,0,0,{"$f":"'A3-FinPerf V'!I19","v":0},{"$f":"'A3-FinPerf V'!J19","v":0},{"$f":"'A3-FinPerf V'!K19","v":0}]
[{"$f":"'A3-FinPerf V'!A20","v":"Total Revenue by Vote"},null,{"$f":"SUM(C5:C19)","v":5289266},5289266,5289266,{"$f":"SUM(F5:F19)","v":5289266},5289266,5289266,5289266,5289266,5289266,5289266,5289266,5289257,63471183,68748000,70151999]
[]
[{"$f":"'A3-FinPerf V'!A22","v":"Expenditure by Vote to be appropriated"}]
[{"$f":"A5","v":"Vote 1 - Executive and Council"},null,{"$f":"ROUND($O23/12,0)","v":1148054},1148054,1148054,1148054,1148054,1148054,1148054,1148054,1148054,1148054,1148054,{"$f":"O23-SUM(C23:M23)","v":1148056},{"$f":"'A3-FinPerf V'!I23","v":13776650},{"$f":"'A3-FinPerf V'!J23","v":15327072},{"$f":"'A3-FinPerf V'!K23","v":15718132}]
["Vote 2 - Finance and Administration",null,2828409,2828409,2828409,2828409,2828409,2828409,2828409,2828409,2828409,2828409,2828409,2828412,{"$f":"'A3-FinPerf V'!I24","v":33940911},{"$f":"'A3-FinPerf V'!J24","v":37769532},{"$f":"'A3-FinPerf V'!K24","v":38380945}]
["Vote 3 - Planning and Development",null,1259802,1259802,1259802,1259802,1259802,1259802,1259802,1259802,1259802,1259802,1259802,1259802,{"$f":"'A3-FinPerf V'!I25","v":15117624},{"$f":"'A3-FinPerf V'!J25","v":15329579},{"$f":"'A3-FinPerf V'!K25","v":15729674}]
["Vote 4 - Community and Social Services",null,12500,12500,12500,12500,12500,12500,12500,12500,12500,12500,12500,12500,{"$f":"'A3-FinPerf V'!I26","v":150000},{"$f":"'A3-FinPerf V'!J26","v":300000},{"$f":"'A3-FinPerf V'!K26","v":300000}]
["Vote 5 - Environmental Protection",null,0,0,0,0,0,0,0,0,0,0,0,0,{"$f":"'A3-FinPerf V'!I27","v":0},{"$f":"'A3-FinPerf V'!J27","v":0},{"$f":"'A3-FinPerf V'!K27","v":0}]
["Vote 6 - [NAME OF VOTE 6]",null,0,0,0,0,0,0,0,0,0,0,0,0,{"$f":"'A3-FinPerf V'!I28","v":0},{"$f":"'A3-FinPerf V'!J28","v":0},{"$f":"'A3-FinPerf V'!K28","v":0}]
["Vote 7 - [NAME OF VOTE 7]",null,0,0,0,0,0,0,0,0,0,0,0,0,{"$f":"'A3-FinPerf V'!I29","v":0},{"$f":"'A3-FinPerf V'!J29","v":0},{"$f":"'A3-FinPerf V'!K29","v":0}]
["Vote 8 - [NAME OF VOTE 8]",null,0,0,0,0,0,0,0,0,0,0,0,{"$f":"O30-SUM(C30:M30)","v":0},{"$f":"'A3-FinPerf V'!I30","v":0},{"$f":"'A3-FinPerf V'!J30","v":0},{"$f":"'A3-FinPerf V'!K30","v":0}]
["Vote 9 - [NAME OF VOTE 9]",null,0,0,0,0,0,0,0,0,0,0,0,{"$f":"O31-SUM(C31:M31)","v":0},{"$f":"'A3-FinPerf V'!I31","v":0},{"$f":"'A3-FinPerf V'!J31","v":0},{"$f":"'A3-FinPerf V'!K31","v":0}]
[{"$f":"A14","v":"Vote 10 - [NAME OF VOTE 10]"},null,0,0,0,0,0,0,0,0,0,0,0,{"$f":"O32-SUM(C32:M32)","v":0},{"$f":"'A3-FinPerf V'!I32","v":0},{"$f":"'A3-FinPerf V'!J32","v":0},{"$f":"'A3-FinPerf V'!K32","v":0}]
["Vote 11 - [NAME OF VOTE 11]",null,0,0,0,0,0,0,0,0,0,0,0,0,{"$f":"'A3-FinPerf V'!I33","v":0},{"$f":"'A3-FinPerf V'!J33","v":0},{"$f":"'A3-FinPerf V'!K33","v":0}]
["Vote 12 - [NAME OF VOTE 12]",null,0,0,0,0,0,0,0,0,0,0,0,0,{"$f":"'A3-FinPerf V'!I34","v":0},{"$f":"'A3-FinPerf V'!J34","v":0},{"$f":"'A3-FinPerf V'!K34","v":0}]
["Vote 13 - [NAME OF VOTE 13]",null,0,0,0,0,0,0,0,0,0,0,0,0,{"$f":"'A3-FinPerf V'!I35","v":0},{"$f":"'A3-FinPerf V'!J35","v":0},{"$f":"'A3-FinPerf V'!K35","v":0}]
["Vote 14 - [NAME OF VOTE 14]",null,0,0,0,0,0,0,0,0,0,0,0,0,{"$f":"'A3-FinPerf V'!I36","v":0},{"$f":"'A3-FinPerf V'!J36","v":0},{"$f":"'A3-FinPerf V'!K36","v":0}]
["Vote 15 - [NAME OF VOTE 15]",null,0,0,0,0,0,0,0,0,0,0,0,0,{"$f":"'A3-FinPerf V'!I37","v":0},{"$f":"'A3-FinPerf V'!J37","v":0},{"$f":"'A3-FinPerf V'!K37","v":0}]
[{"$f":"'A3-FinPerf V'!A38","v":"Total Expenditure by Vote"},null,{"$f":"SUM(C23:C37)","v":5248765},{"$f":"SUM(D23:D37)","v":5248765},5248765,5248765,5248765,5248765,5248765,5248765,5248765,5248765,5248765,5248770,{"$f":"SUM(O23:O37)","v":62985185},{"$f":"SUM(P23:P37)","v":68726183},{"$f":"SUM(Q23:Q37)","v":70128751}]
[]
[{"$f":"'A4-FinPerf RE'!A37&\" before assoc.\"","v":"Surplus/(Deficit) before assoc."},null,{"$f":"C20-C38","v":40501},40501,40501,40501,40501,40501,40501,40501,40501,40501,40501,40487,485998,21817,23248]
[]
[{"$f":"'SA25'!A42","v":"Taxation"},null,{"$f":"ROUND($O42/12,0)","v":0},0,0,0,0,0,0,0,0,0,0,{"$f":"O42-SUM(C42:M42)","v":0},{"$f":"'SA25'!O42","v":0},{"$f":"'SA25'!P42","v":0},{"$f":"'SA25'!Q42","v":0}]
[{"$f":"'SA25'!A43","v":"Attributable to minorities"},null,0,0,0,0,0,0,0,0,0,0,0,{"$f":"O43-SUM(C43:M43)","v":0},{"$f":"'SA25'!O43","v":0},{"$f":"'SA25'!P43","v":0},{"$f":"'SA25'!Q43","v":0}]
[{"$f":"'A4-FinPerf RE'!A46","v":"Share of surplus/ (deficit) of associate"},null,0,0,0,0,0,0,0,0,0,0,0,{"$f":"O44-SUM(C44:M44)","v":0},{"$f":"'A4-FinPerf RE'!J46","v":0},{"$f":"'A4-FinPerf RE'!K46","v":0},{"$f":"'A4-FinPerf RE'!L46","v":0}]
[{"$f":"'A4-FinPerf RE'!A37","v":"Surplus/(Deficit)"},1,{"$f":"C40+C44","v":40501},{"$f":"D40+D44","v":40501},40501,40501,40501,40501,40501,40501,40501,40501,40501,40487,485998,21817,23248]
[{"$f":"head27a","v":"References"}]
["1. Surplus (Deficit) must reconcile with Budgeted Financial Performance"]
["check",null,null,null,null,null,null,null,null,null,null,null,null,null,{"$f":"O45-'A4-FinPerf RE'!J47","v":0},{"$f":"P45-'A4-FinPerf RE'!K47","v":0},{"$f":"Q45-'A4-FinPerf RE'!L47","v":0}]

{"sheet":"SA27","index":57,"n_rows":56,"n_cols":17,"rows_kept":56,"cut":false,"hidden":false,"merged":[[1,2,1,13],[1,14,1,16]]}
[{"$f":"muni&\" - \"&TableA27","v":"DC16 Xhariep - Supporting Table SA27 Budgeted monthly revenue and expenditure (functional classification)"}]
[{"$f":"desc","v":"Description"},{"$f":"head27","v":"Ref"},{"$f":"Head9","v":"Budget Year 2021/22"},null,null,null,null,null,null,null,null,null,null,null,"Medium Term Revenue and Expenditure Framework"]
["R thousand",null,"July","August","Sept.","October","November","December","January","February","March","April","May","June",{"$f":"Head9","v":"Budget Year 2021/22"},{"$f":"Head10","v":"Budget Year +1 2022/23"},{"$f":"Head11","v":"Budget Year +2 2023/24"}]
[{"$f":"'A2-FinPerf SC'!A4","v":"Revenue - Functional"}]
[{"$f":"'A2-FinPerf SC'!A5","v":"Governance and administration"},null,{"$f":"SUM(C6:C8)","v":4046554},{"$f":"SUM(D6:D8)","v":4046554},{"$f":"SUM(E6:E8)","v":4046554},4046554,4046554,4046554,4046554,4046554,4046554,4046554,4046554,{"$f":"O5-SUM(C5:M5)","v":4046551},{"$f":"'A2-FinPerf SC'!I5","v":48558645},{"$f":"'A2-FinPerf SC'!J5","v":53376476},{"$f":"'A2-FinPerf SC'!K5","v":54382468}]
[{"$f":"'A2-FinPerf SC'!A6","v":"Executive and council"},null,{"$f":"ROUND($O6/12,0)","v":1090234},1090234,1090234,1090234,1090234,1090234,1090234,1090234,1090234,1090234,1090234,1090233,{"$f":"'A2-FinPerf SC'!I6","v":13082807},{"$f":"'A2-FinPerf SC'!J6","v":25325600},{"$f":"'A2-FinPerf SC'!K6","v":25641200}]
[{"$f":"'A2-FinPerf SC'!A7","v":"Finance and administration"},null,2956320,2956320,2956320,2956320,2956320,2956320,2956320,2956320,2956320,2956320,2956320,2956318,{"$f":"'A2-FinPerf SC'!I7","v":35475838},{"$f":"'A2-FinPerf SC'!J7","v":28050876},{"$f":"'A2-FinPerf SC'!K7","v":28741268}]
[{"$f":"'A2-FinPerf SC'!A8","v":"Internal audit"},null,0,0,0,0,0,0,0,0,0,0,0,0,{"$f":"'A2-FinPerf SC'!I8","v":0},{"$f":"'A2-FinPerf SC'!J8","v":0},{"$f":"'A2-FinPerf SC'!K8","v":0}]
[{"$f":"'A2-FinPerf SC'!A9","v":"Community and public safety"},null,{"$f":"SUM(C10:C14)","v":0},{"$f":"SUM(D10:D14)","v":0},0,0,0,0,0,0,0,0,0,0,{"$f":"'A2-FinPerf SC'!I9","v":0},{"$f":"'A2-FinPerf SC'!J9","v":0},{"$f":"'A2-FinPerf SC'!K9","v":0}]
[{"$f":"'A2-FinPerf SC'!A10","v":"Community and social services"},null,{"$f":"ROUND($O10/12,0)","v":0},0,0,0,0,0,0,0,0,0,0,0,{"$f":"'A2-FinPerf SC'!I10","v":0},{"$f":"'A2-FinPerf SC'!J10","v":0},{"$f":"'A2-FinPerf SC'!K10","v":0}]
[{"$f":"'A2-FinPerf SC'!A11","v":"Sport and recreation"},null,0,0,0,0,0,0,0,0,0,0,0,0,{"$f":"'A2-FinPerf SC'!I11","v":0},{"$f":"'A2-FinPerf SC'!J11","v":0},{"$f":"'A2-FinPerf SC'!K11","v":0}]
[{"$f":"'A2-FinPerf SC'!A12","v":"Public safety"},null,0,0,0,0,0,0,0,0,0,0,0,0,{"$f":"'A2-FinPerf SC'!I12","v":0},{"$f":"'A2-FinPerf SC'!J12","v":0},{"$f":"'A2-FinPerf SC'!K12","v":0}]
[{"$f":"'A2-FinPerf SC'!A13","v":"Housing"},null,0,0,0,0,0,0,0,0,0,0,0,0,{"$f":"'A2-FinPerf SC'!I13","v":0},{"$f":"'A2-FinPerf SC'!J13","v":0},{"$f":"'A2-FinPerf SC'!K13","v":0}]
[{"$f":"'A2-FinPerf SC'!A14","v":"Health"},null,0,0,0,0,0,0,0,0,0,0,0,0,{"$f":"'A2-FinPerf SC'!I14","v":0},{"$f":"'A2-FinPerf SC'!J14","v":0},{"$f":"'A2-FinPerf SC'!K14","v":0}]
[{"$f":"'A2-FinPerf SC'!A15","v":"Economic and environmental services"},null,{"$f":"SUM(C16:C18)","v":1242712},{"$f":"SUM(D16:D18)","v":1242712},1242712,1242712,1242712,1242712,1242712,1242712,1242712,1242712,1242712,1242706,{"$f":"'A2-FinPerf SC'!I15","v":14912538},{"$f":"'A2-FinPerf SC'!J15","v":15371524},{"$f":"'A2-FinPerf SC'!K15","v":15769531}]
[{"$f":"'A2-FinPerf SC'!A16","v":"Planning and development"},null,{"$f":"ROUND($O16/12,0)","v":1242712},1242712,1242712,1242712,1242712,1242712,1242712,1242712,1242712,1242712,1242712,1242706,{"$f":"'A2-FinPerf SC'!I16","v":14912538},{"$f":"'A2-FinPerf SC'!J16","v":15371524},{"$f":"'A2-FinPerf SC'!K16","v":15769531}]
[{"$f":"'A2-FinPerf SC'!A17","v":"Road transport"},null,0,0,0,0,0,0,0,0,0,0,0,0,{"$f":"'A2-FinPerf SC'!I17","v":0},{"$f":"'A2-FinPerf SC'!J17","v":0},{"$f":"'A2-FinPerf SC'!K17","v":0}]
[{"$f":"'A2-FinPerf SC'!A18","v":"Environmental protection"},null,0,0,0,0,0,0,0,0,0,0,0,0,{"$f":"'A2-FinPerf SC'!I18","v":0},{"$f":"'A2-FinPerf SC'!J18","v":0},{"$f":"'A2-FinPerf SC'!K18","v":0}]
[{"$f":"'A2-FinPerf SC'!A19","v":"Trading services"},null,{"$f":"SUM(C20:C23)","v":0},{"$f":"SUM(D20:D23)","v":0},0,0,0,0,0,0,0,0,0,{"$f":"O19-SUM(C19:M19)","v":0},{"$f":"'A2-FinPerf SC'!I19","v":0},{"$f":"'A2-FinPerf SC'!J19","v":0},{"$f":"'A2-FinPerf SC'!K19","v":0}]
[{"$f":"'A2-FinPerf SC'!A20","v":"Energy sources"},null,{"$f":"ROUND($O20/12,0)","v":0},0,0,0,0,0,0,0,0,0,0,0,{"$f":"'A2-FinPerf SC'!I20","v":0},{"$f":"'A2-FinPerf SC'!J20","v":0},{"$f":"'A2-FinPerf SC'!K20","v":0}]
[{"$f":"'A2-FinPerf SC'!A21","v":"Water management"},null,0,0,0,0,0,0,0,0,0,0,0,0,{"$f":"'A2-FinPerf SC'!I21","v":0},{"$f":"'A2-FinPerf SC'!J21","v":0},{"$f":"'A2-FinPerf SC'!K21","v":0}]
[{"$f":"'A2-FinPerf SC'!A22","v":"Waste water management"},null,0,0,0,0,0,0,0,0,0,0,0,0,{"$f":"'A2-FinPerf SC'!I22","v":0},{"$f":"'A2-FinPerf SC'!J22","v":0},{"$f":"'A2-FinPerf SC'!K22","v":0}]
[{"$f":"'A2-FinPerf SC'!A23","v":"Waste management"},null,0,0,0,0,0,0,0,0,0,0,0,0,{"$f":"'A2-FinPerf SC'!I23","v":0},{"$f":"'A2-FinPerf SC'!J23","v":0},{"$f":"'A2-FinPerf SC'!K23","v":0}]
[{"$f":"'A2-FinPerf SC'!A24","v":"Other"},null,0,0,0,0,0,0,0,0,0,0,0,0,{"$f":"'A2-FinPerf SC'!I24","v":0},{"$f":"'A2-FinPerf SC'!J24","v":0},{"$f":"'A2-FinPerf SC'!K24","v":0}]
[{"$f":"'A2-FinPerf SC'!A25","v":"Total Revenue - Functional"},null,{"$f":"C5+C9+C15+C19+C24","v":5289266},5289266,5289266,5289266,5289266,5289266,5289266,5289266,5289266,5289266,5289266,5289257,63471183,68748000,70151999]
[null,null,null,{"$f":"D6+D10+D16+D20+D25","v":7622212},7622212,7622212,7622212,7622212,7622212,7622212,7622212,7622212,{"$f":"M6+M10+M16+M20+M25","v":7622212}]
[{"$f":"'A2-FinPerf SC'!A27","v":"Expenditure - Functional"}]
[{"$f":"'A2-FinPerf SC'!A28","v":"Governance and administration"},null,{"$f":"SUM(C29:C31)","v":3976463},{"$f":"SUM(D29:D31)","v":3976463},{"$f":"SUM(E29:E31)","v":3976463},3976463,3976463,3976463,3976463,3976463,3976463,3976463,3976463,{"$f":"O28-SUM(C28:M28)","v":3976468},{"$f":"'A2-FinPerf SC'!I28","v":47717561},{"$f":"'A2-FinPerf SC'!J28","v":53096604},{"$f":"'A2-FinPerf SC'!K28","v":54099077}]
[{"$f":"'A2-FinPerf SC'!A29","v":"Executive and council"},null,{"$f":"ROUND($O29/12,0)","v":1148054},1148054,1148054,1148054,1148054,1148054,1148054,1148054,1148054,1148054,1148054,1148056,{"$f":"'A2-FinPerf SC'!I29","v":13776650},{"$f":"'A2-FinPerf SC'!J29","v":15327072},{"$f":"'A2-FinPerf SC'!K29","v":15718132}]
[{"$f":"'A2-FinPerf SC'!A30","v":"Finance and administration"},null,2828409,2828409,2828409,2828409,2828409,2828409,2828409,2828409,2828409,2828409,2828409,2828412,{"$f":"'A2-FinPerf SC'!I30","v":33940911},{"$f":"'A2-FinPerf SC'!J30","v":37769532},{"$f":"'A2-FinPerf SC'!K30","v":38380945}]
[{"$f":"'A2-FinPerf SC'!A31","v":"Internal audit"},null,0,0,0,0,0,0,0,0,0,0,0,0,{"$f":"'A2-FinPerf SC'!I31","v":0},{"$f":"'A2-FinPerf SC'!J31","v":0},{"$f":"'A2-FinPerf SC'!K31","v":0}]
[{"$f":"'A2-FinPerf SC'!A32","v":"Community and public safety"},null,{"$f":"SUM(C33:C37)","v":12500},{"$f":"SUM(D33:D37)","v":12500},12500,12500,12500,12500,12500,12500,12500,12500,12500,12500,{"$f":"'A2-FinPerf SC'!I32","v":150000},{"$f":"'A2-FinPerf SC'!J32","v":300000},{"$f":"'A2-FinPerf SC'!K32","v":300000}]
[{"$f":"'A2-FinPerf SC'!A33","v":"Community and social services"},null,{"$f":"ROUND($O33/12,0)","v":12500},12500,12500,12500,12500,12500,12500,12500,12500,12500,12500,12500,{"$f":"'A2-FinPerf SC'!I33","v":150000},{"$f":"'A2-FinPerf SC'!J33","v":300000},{"$f":"'A2-FinPerf SC'!K33","v":300000}]
[{"$f":"'A2-FinPerf SC'!A34","v":"Sport and recreation"},null,0,0,0,0,0,0,0,0,0,0,0,0,{"$f":"'A2-FinPerf SC'!I34","v":0},{"$f":"'A2-FinPerf SC'!J34","v":0},{"$f":"'A2-FinPerf SC'!K34","v":0}]
[{"$f":"'A2-FinPerf SC'!A35","v":"Public safety"},null,0,0,0,0,0,0,0,0,0,0,0,0,{"$f":"'A2-FinPerf SC'!I35","v":0},{"$f":"'A2-FinPerf SC'!J35","v":0},{"$f":"'A2-FinPerf SC'!K35","v":0}]
[{"$f":"'A2-FinPerf SC'!A36","v":"Housing"},null,0,0,0,0,0,0,0,0,0,0,0,0,{"$f":"'A2-FinPerf SC'!I36","v":0},{"$f":"'A2-FinPerf SC'!J36","v":0},{"$f":"'A2-FinPerf SC'!K36","v":0}]
[{"$f":"'A2-FinPerf SC'!A37","v":"Health"},null,0,0,0,0,0,0,0,0,0,0,0,0,{"$f":"'A2-FinPerf SC'!I37","v":0},{"$f":"'A2-FinPerf SC'!J37","v":0},{"$f":"'A2-FinPerf SC'!K37","v":0}]
[{"$f":"'A2-FinPerf SC'!A38","v":"Economic and environmental services"},null,{"$f":"SUM(C39:C41)","v":1259802},{"$f":"SUM(D39:D41)","v":1259802},1259802,1259802,1259802,1259802,1259802,1259802,1259802,1259802,1259802,{"$f":"O38-SUM(C38:M38)","v":1259802},{"$f":"'A2-FinPerf SC'!I38","v":15117624},{"$f":"'A2-FinPerf SC'!J38","v":15329579},{"$f":"'A2-FinPerf SC'!K38","v":15729674}]
[{"$f":"'A2-FinPerf SC'!A39","v":"Planning and development"},null,{"$f":"ROUND($O39/12,0)","v":1259802},1259802,1259802,1259802,1259802,1259802,1259802,1259802,1259802,1259802,1259802,1259802,{"$f":"'A2-FinPerf SC'!I39","v":15117624},{"$f":"'A2-FinPerf SC'!J39","v":15329579},{"$f":"'A2-FinPerf SC'!K39","v":15729674}]
[{"$f":"'A2-FinPerf SC'!A40","v":"Road transport"},null,0,0,0,0,0,0,0,0,0,0,0,0,{"$f":"'A2-FinPerf SC'!I40","v":0},{"$f":"'A2-FinPerf SC'!J40","v":0},{"$f":"'A2-FinPerf SC'!K40","v":0}]
[{"$f":"'A2-FinPerf SC'!A41","v":"Environmental protection"},null,0,0,0,0,0,0,0,0,0,0,0,0,{"$f":"'A2-FinPerf SC'!I41","v":0},{"$f":"'A2-FinPerf SC'!J41","v":0},{"$f":"'A2-FinPerf SC'!K41","v":0}]
[{"$f":"'A2-FinPerf SC'!A42","v":"Trading services"},null,{"$f":"SUM(C43:C46)","v":0},{"$f":"SUM(D43:D46)","v":0},0,0,0,0,0,0,0,0,0,{"$f":"O42-SUM(C42:M42)","v":0},{"$f":"'A2-FinPerf SC'!I42","v":0},{"$f":"'A2-FinPerf SC'!J42","v":0},{"$f":"'A2-FinPerf SC'!K42","v":0}]
[{"$f":"'A2-FinPerf SC'!A43","v":"Energy sources"},null,{"$f":"ROUND($O43/12,0)","v":0},0,0,0,0,0,0,0,0,0,0,0,{"$f":"'A2-FinPerf SC'!I43","v":0},{"$f":"'A2-FinPerf SC'!J43","v":0},{"$f":"'A2-FinPerf SC'!K43","v":0}]
[{"$f":"'A2-FinPerf SC'!A44","v":"Water management"},null,0,0,0,0,0,0,0,0,0,0,0,0,{"$f":"'A2-FinPerf SC'!I44","v":0},{"$f":"'A2-FinPerf SC'!J44","v":0},{"$f":"'A2-FinPerf SC'!K44","v":0}]
[{"$f":"'A2-FinPerf SC'!A45","v":"Waste water management"},null,0,0,0,0,0,0,0,0,0,0,0,0,{"$f":"'A2-FinPerf SC'!I45","v":0},{"$f":"'A2-FinPerf SC'!J45","v":0},{"$f":"'A2-FinPerf SC'!K45","v":0}]
[{"$f":"'A2-FinPerf SC'!A46","v":"Waste management"},null,0,0,0,0,0,0,0,0,0,0,0,0,{"$f":"'A2-FinPerf SC'!I46","v":0},{"$f":"'A2-FinPerf SC'!J46","v":0},{"$f":"'A2-FinPerf SC'!K46","v":0}]
[{"$f":"'A2-FinPerf SC'!A47","v":"Other"},null,0,0,0,0,0,0,0,0,0,0,0,0,{"$f":"'A2-FinPerf SC'!I47","v":0},{"$f":"'A2-FinPerf SC'!J47","v":0},{"$f":"'A2-FinPerf SC'!K47","v":0}]
[{"$f":"'A2-FinPerf SC'!A48","v":"Total Expenditure - Functional"},null,{"$f":"C28+C32+C38+C42+C47","v":5248765},{"$f":"D28+D32+D38+D42+D47","v":5248765},5248765,5248765,5248765,5248765,5248765,5248765,5248765,5248765,5248765,5248770,62985185,68726183,{"$f":"Q28+Q32+Q38+Q42+Q47","v":70128751}]
[]
[{"$f":"'A4-FinPerf RE'!A37&\" before assoc.\"","v":"Surplus/(Deficit) before assoc."},null,{"$f":"C25-C48","v":40501},40501,40501,40501,40501,40501,40501,40501,40501,40501,40501,40487,485998,21817,23248]
[]
[{"$f":"'A4-FinPerf RE'!A46","v":"Share of surplus/ (deficit) of associate"},null,{"$f":"ROUND($O52/12,0)","v":0},0,0,0,0,0,0,0,0,0,0,{"$f":"O52-SUM(C52:M52)","v":0},{"$f":"'A4-FinPerf RE'!J46","v":0},{"$f":"'A4-FinPerf RE'!K46","v":0},{"$f":"'A4-FinPerf RE'!L46","v":0}]
[{"$f":"'A4-FinPerf RE'!A37","v":"Surplus/(Deficit)"},1,{"$f":"C50+C52","v":40501},{"$f":"D50+D52","v":40501},40501,40501,40501,40501,40501,40501,40501,40501,40501,40487,485998,21817,23248]
[{"$f":"head27a","v":"References"}]
["1. Surplus (Deficit) must reconcile with Budeted Financial Performance"]
["check",null,null,null,null,null,null,null,null,null,null,null,null,null,{"$f":"O53-'A4-FinPerf RE'!J47","v":0},{"$f":"P53-'A4-FinPerf RE'!K47","v":0},{"$f":"Q53-'A4-FinPerf RE'!L47","v":0}]

{"sheet":"SA28","index":58,"n_rows":47,"n_cols":17,"rows_kept":47,"cut":false,"hidden":false,"merged":[[1,2,1,13],[1,14,1,16]]}
[{"$f":"muni&\" - \"& TableA28","v":"DC16 Xhariep - Supporting Table SA28 Budgeted monthly capital expenditure (municipal vote)"}]
[{"$f":"desc","v":"Description"},{"$f":"head27","v":"Ref"},{"$f":"Head9","v":"Budget Year 2021/22"},null,null,null,null,null,null,null,null,null,null,null,"Medium Term Revenue and Expenditure Framework"]
["R thousand",null,"July","August","Sept.","October","Nov.","Dec.","January","Feb.","March","April","May","June",{"$f":"Head9","v":"Budget Year 2021/22"},{"$f":"Head10","v":"Budget Year +1 2022/23"},{"$f":"Head11","v":"Budget Year +2 2023/24"}]
["Multi-year expenditure to be appropriated",1]
[{"$f":"'A5-Capex'!A6","v":"Vote 1 - Executive and Council"},null,{"$f":"ROUND($O5/12,0)","v":0},0,0,0,0,0,0,0,0,0,0,{"$f":"O5-SUM(C5:M5)","v":0},{"$f":"'A5-Capex'!J6","v":0},{"$f":"'A5-Capex'!K6","v":0},{"$f":"'A5-Capex'!L6","v":0}]
[{"$f":"'A5-Capex'!A7","v":"Vote 2 - Finance and Administration"},null,0,0,0,0,0,0,0,0,0,0,0,{"$f":"O6-SUM(C6:M6)","v":0},{"$f":"'A5-Capex'!J7","v":0},{"$f":"'A5-Capex'!K7","v":0},{"$f":"'A5-Capex'!L7","v":0}]
[{"$f":"'A5-Capex'!A8","v":"Vote 3 - Planning and Development"},null,0,0,0,0,0,0,0,0,0,0,0,0,{"$f":"'A5-Capex'!J8","v":0},{"$f":"'A5-Capex'!K8","v":0},{"$f":"'A5-Capex'!L8","v":0}]
[{"$f":"'A5-Capex'!A9","v":"Vote 4 - Community and Social Services"},null,0,0,0,0,0,0,0,0,0,0,0,0,{"$f":"'A5-Capex'!J9","v":0},{"$f":"'A5-Capex'!K9","v":0},{"$f":"'A5-Capex'!L9","v":0}]
[{"$f":"'A5-Capex'!A10","v":"Vote 5 - Environmental Protection"},null,0,0,0,0,0,0,0,0,0,0,0,0,{"$f":"'A5-Capex'!J10","v":0},{"$f":"'A5-Capex'!K10","v":0},{"$f":"'A5-Capex'!L10","v":0}]
[{"$f":"'A5-Capex'!A11","v":"Vote 6 - [NAME OF VOTE 6]"},null,0,0,0,0,0,0,0,0,0,0,0,0,{"$f":"'A5-Capex'!J11","v":0},{"$f":"'A5-Capex'!K11","v":0},{"$f":"'A5-Capex'!L11","v":0}]
[{"$f":"'A5-Capex'!A12","v":"Vote 7 - [NAME OF VOTE 7]"},null,0,0,0,0,0,0,0,0,0,0,0,0,{"$f":"'A5-Capex'!J12","v":0},{"$f":"'A5-Capex'!K12","v":0},{"$f":"'A5-Capex'!L12","v":0}]
[{"$f":"'A5-Capex'!A13","v":"Vote 8 - [NAME OF VOTE 8]"},null,0,0,0,0,0,0,0,0,0,0,0,{"$f":"O12-SUM(C12:M12)","v":0},{"$f":"'A5-Capex'!J13","v":0},{"$f":"'A5-Capex'!K13","v":0},{"$f":"'A5-Capex'!L13","v":0}]
[{"$f":"'A5-Capex'!A14","v":"Vote 9 - [NAME OF VOTE 9]"},null,0,0,0,0,0,0,0,0,0,0,0,{"$f":"O13-SUM(C13:M13)","v":0},{"$f":"'A5-Capex'!J14","v":0},{"$f":"'A5-Capex'!K14","v":0},{"$f":"'A5-Capex'!L14","v":0}]
[{"$f":"'A5-Capex'!A15","v":"Vote 10 - [NAME OF VOTE 10]"},null,0,0,0,0,0,0,0,0,0,0,0,{"$f":"O14-SUM(C14:M14)","v":0},{"$f":"'A5-Capex'!J15","v":0},{"$f":"'A5-Capex'!K15","v":0},{"$f":"'A5-Capex'!L15","v":0}]
[{"$f":"'A5-Capex'!A16","v":"Vote 11 - [NAME OF VOTE 11]"},null,0,0,0,0,0,0,0,0,0,0,0,0,{"$f":"'A5-Capex'!J16","v":0},{"$f":"'A5-Capex'!K16","v":0},{"$f":"'A5-Capex'!L16","v":0}]
[{"$f":"'A5-Capex'!A17","v":"Vote 12 - [NAME OF VOTE 12]"},null,0,0,0,0,0,0,0,0,0,0,0,0,{"$f":"'A5-Capex'!J17","v":0},{"$f":"'A5-Capex'!K17","v":0},{"$f":"'A5-Capex'!L17","v":0}]
[{"$f":"'A5-Capex'!A18","v":"Vote 13 - [NAME OF VOTE 13]"},null,0,0,0,0,0,0,0,0,0,0,0,0,{"$f":"'A5-Capex'!J18","v":0},{"$f":"'A5-Capex'!K18","v":0},{"$f":"'A5-Capex'!L18","v":0}]
[{"$f":"'A5-Capex'!A19","v":"Vote 14 - [NAME OF VOTE 14]"},null,0,0,0,0,0,0,0,0,0,0,0,0,{"$f":"'A5-Capex'!J19","v":0},{"$f":"'A5-Capex'!K19","v":0},{"$f":"'A5-Capex'!L19","v":0}]
[{"$f":"'A5-Capex'!A20","v":"Vote 15 - [NAME OF VOTE 15]"},null,0,0,0,0,0,0,0,0,0,0,0,0,{"$f":"'A5-Capex'!J20","v":0},{"$f":"'A5-Capex'!K20","v":0},{"$f":"'A5-Capex'!L20","v":0}]
["Capital multi-year expenditure sub-total",2,{"$f":"SUM(C5:C19)","v":0},{"$f":"SUM(D5:D19)","v":0},0,0,0,0,0,0,0,0,{"$f":"SUM(M5:M19)","v":0},0,0,0,0]
[]
["Single-year expenditure to be appropriated"]
[{"$f":"'A5-Capex'!A24","v":"Vote 1 - Executive and Council"},null,{"$f":"ROUND($O23/12,0)","v":14667},14667,14667,14667,14667,14667,14667,14667,14667,14667,14667,{"$f":"O23-SUM(C23:M23)","v":14663},{"$f":"'A5-Capex'!J24","v":176000},{"$f":"'A5-Capex'!K24","v":21958},{"$f":"'A5-Capex'!L24","v":23144}]
[{"$f":"'A5-Capex'!A25","v":"Vote 2 - Finance and Administration"},null,25833,25833,25833,25833,25833,25833,25833,25833,25833,25833,25833,{"$f":"O24-SUM(C24:M24)","v":25837},{"$f":"'A5-Capex'!J25","v":310000},{"$f":"'A5-Capex'!K25","v":0},{"$f":"'A5-Capex'!L25","v":0}]
[{"$f":"'A5-Capex'!A26","v":"Vote 3 - Planning and Development"},null,0,0,0,0,0,0,0,0,0,0,0,0,{"$f":"'A5-Capex'!J26","v":0},{"$f":"'A5-Capex'!K26","v":0},{"$f":"'A5-Capex'!L26","v":0}]
[{"$f":"'A5-Capex'!A27","v":"Vote 4 - Community and Social Services"},null,0,0,0,0,0,0,0,0,0,0,0,0,{"$f":"'A5-Capex'!J27","v":0},{"$f":"'A5-Capex'!K27","v":0},{"$f":"'A5-Capex'!L27","v":0}]
[{"$f":"'A5-Capex'!A28","v":"Vote 5 - Environmental Protection"},null,0,0,0,0,0,0,0,0,0,0,0,0,{"$f":"'A5-Capex'!J28","v":0},{"$f":"'A5-Capex'!K28","v":0},{"$f":"'A5-Capex'!L28","v":0}]
[{"$f":"'A5-Capex'!A29","v":"Vote 6 - [NAME OF VOTE 6]"},null,0,0,0,0,0,0,0,0,0,0,0,0,{"$f":"'A5-Capex'!J29","v":0},{"$f":"'A5-Capex'!K29","v":0},{"$f":"'A5-Capex'!L29","v":0}]
[{"$f":"'A5-Capex'!A30","v":"Vote 7 - [NAME OF VOTE 7]"},null,0,0,0,0,0,0,0,0,0,0,0,0,{"$f":"'A5-Capex'!J30","v":0},{"$f":"'A5-Capex'!K30","v":0},{"$f":"'A5-Capex'!L30","v":0}]
[{"$f":"'A5-Capex'!A31","v":"Vote 8 - [NAME OF VOTE 8]"},null,0,0,0,0,0,0,0,0,0,0,0,{"$f":"O30-SUM(C30:M30)","v":0},{"$f":"'A5-Capex'!J31","v":0},{"$f":"'A5-Capex'!K31","v":0},{"$f":"'A5-Capex'!L31","v":0}]
[{"$f":"'A5-Capex'!A32","v":"Vote 9 - [NAME OF VOTE 9]"},null,0,0,0,0,0,0,0,0,0,0,0,{"$f":"O31-SUM(C31:M31)","v":0},{"$f":"'A5-Capex'!J32","v":0},{"$f":"'A5-Capex'!K32","v":0},{"$f":"'A5-Capex'!L32","v":0}]
[{"$f":"'A5-Capex'!A33","v":"Vote 10 - [NAME OF VOTE 10]"},null,0,0,0,0,0,0,0,0,0,0,0,{"$f":"O32-SUM(C32:M32)","v":0},{"$f":"'A5-Capex'!J33","v":0},{"$f":"'A5-Capex'!K33","v":0},{"$f":"'A5-Capex'!L33","v":0}]
[{"$f":"'A5-Capex'!A34","v":"Vote 11 - [NAME OF VOTE 11]"},null,0,0,0,0,0,0,0,0,0,0,0,0,{"$f":"'A5-Capex'!J34","v":0},{"$f":"'A5-Capex'!K34","v":0},{"$f":"'A5-Capex'!L34","v":0}]
[{"$f":"'A5-Capex'!A35","v":"Vote 12 - [NAME OF VOTE 12]"},null,0,0,0,0,0,0,0,0,0,0,0,0,{"$f":"'A5-Capex'!J35","v":0},{"$f":"'A5-Capex'!K35","v":0},{"$f":"'A5-Capex'!L35","v":0}]
[{"$f":"'A5-Capex'!A36","v":"Vote 13 - [NAME OF VOTE 13]"},null,0,0,0,0,0,0,0,0,0,0,0,0,{"$f":"'A5-Capex'!J36","v":0},{"$f":"'A5-Capex'!K36","v":0},{"$f":"'A5-Capex'!L36","v":0}]
[{"$f":"'A5-Capex'!A37","v":"Vote 14 - [NAME OF VOTE 14]"},null,0,0,0,0,0,0,0,0,0,0,0,0,{"$f":"'A5-Capex'!J37","v":0},{"$f":"'A5-Capex'!K37","v":0},{"$f":"'A5-Capex'!L37","v":0}]
[{"$f":"'A5-Capex'!A38","v":"Vote 15 - [NAME OF VOTE 15]"},null,0,0,0,0,0,0,0,0,0,0,0,0,{"$f":"'A5-Capex'!J38","v":0},{"$f":"'A5-Capex'!K38","v":0},{"$f":"'A5-Capex'!L38","v":0}]
["Capital single-year expenditure sub-total",2,{"$f":"SUM(C23:C37)","v":40500},40500,40500,40500,40500,40500,40500,40500,40500,40500,40500,40500,486000,21958,23144]
["Total Capital Expenditure",2,{"$f":"C20+C38","v":40500},{"$f":"D20+D38","v":40500},40500,40500,40500,40500,40500,40500,40500,40500,40500,40500,{"$f":"O20+O38","v":486000},{"$f":"P20+P38","v":21958},{"$f":"Q20+Q38","v":23144}]
[]
[]
[{"$f":"head27a","v":"References"}]
["1. Table should be completed as either Multi-Year expenditure appropriation or Budget Year and Forward Year estimates"]
["2. Total Capital Expenditure must reconcile to Budgeted Capital Expenditure"]
["check",null,null,null,null,null,null,null,null,null,null,null,null,null,{"$f":"O20-'A5-Capex'!J21","v":0},{"$f":"P20-'A5-Capex'!K21","v":0},{"$f":"Q20-'A5-Capex'!L21","v":0}]
[]
[null,null,null,null,"Add single year stuff"]

{"sheet":"SA29","index":59,"n_rows":40,"n_cols":17,"rows_kept":40,"cut":false,"hidden":false,"merged":[[1,2,1,13],[1,14,1,16]]}
[{"$f":"muni&\" - \"& TableA29","v":"DC16 Xhariep - Supporting Table SA29 Budgeted monthly capital expenditure (functional classification)"}]
[{"$f":"desc","v":"Description"},{"$f":"head27","v":"Ref"},{"$f":"Head9","v":"Budget Year 2021/22"},null,null,null,null,null,null,null,null,null,null,null,"Medium Term Revenue and Expenditure Framework"]
["R thousand",null,"July","August","Sept.","October","Nov.","Dec.","January","Feb.","March","April","May","June",{"$f":"Head9","v":"Budget Year 2021/22"},{"$f":"Head10","v":"Budget Year +1 2022/23"},{"$f":"Head11","v":"Budget Year +2 2023/24"}]
[{"$f":"'A5-Capex'!A42","v":"Capital Expenditure - Functional"},1]
[{"$f":"'A5-Capex'!A43","v":"Governance and administration"},null,{"$f":"SUM(C6:C8)","v":40500},{"$f":"SUM(D6:D8)","v":40500},{"$f":"SUM(E6:E8)","v":40500},40500,40500,40500,40500,40500,40500,40500,40500,{"$f":"O5-SUM(C5:M5)","v":40500},{"$f":"'A5-Capex'!J43","v":486000},{"$f":"'A5-Capex'!K43","v":21958},{"$f":"'A5-Capex'!L43","v":23144}]
[{"$f":"'A5-Capex'!A44","v":"Executive and council"},null,{"$f":"ROUND($O6/12,0)","v":14667},14667,14667,14667,14667,14667,14667,14667,14667,14667,14667,{"$f":"O6-SUM(C6:M6)","v":14663},{"$f":"'A5-Capex'!J44","v":176000},{"$f":"'A5-Capex'!K44","v":21958},{"$f":"'A5-Capex'!L44","v":23144}]
[{"$f":"'A5-Capex'!A45","v":"Finance and administration"},null,25833,25833,25833,25833,25833,25833,25833,25833,25833,25833,25833,25837,{"$f":"'A5-Capex'!J45","v":310000},{"$f":"'A5-Capex'!K45","v":0},{"$f":"'A5-Capex'!L45","v":0}]
[{"$f":"'A5-Capex'!A46","v":"Internal audit"},null,0,0,0,0,0,0,0,0,0,0,0,0,{"$f":"'A5-Capex'!J46","v":0},{"$f":"'A5-Capex'!K46","v":0},{"$f":"'A5-Capex'!L46","v":0}]
[{"$f":"'A5-Capex'!A47","v":"Community and public safety"},null,{"$f":"SUM(C10:C14)","v":0},{"$f":"SUM(D10:D14)","v":0},0,0,0,0,0,0,0,0,0,0,{"$f":"'A5-Capex'!J47","v":0},{"$f":"'A5-Capex'!K47","v":0},{"$f":"'A5-Capex'!L47","v":0}]
[{"$f":"'A5-Capex'!A48","v":"Community and social services"},null,{"$f":"ROUND($O10/12,0)","v":0},0,0,0,0,0,0,0,0,0,0,0,{"$f":"'A5-Capex'!J48","v":0},{"$f":"'A5-Capex'!K48","v":0},{"$f":"'A5-Capex'!L48","v":0}]
[{"$f":"'A5-Capex'!A49","v":"Sport and recreation"},null,0,0,0,0,0,0,0,0,0,0,0,0,{"$f":"'A5-Capex'!J49","v":0},{"$f":"'A5-Capex'!K49","v":0},{"$f":"'A5-Capex'!L49","v":0}]
[{"$f":"'A5-Capex'!A50","v":"Public safety"},null,0,0,0,0,0,0,0,0,0,0,0,0,{"$f":"'A5-Capex'!J50","v":0},{"$f":"'A5-Capex'!K50","v":0},{"$f":"'A5-Capex'!L50","v":0}]
[{"$f":"'A5-Capex'!A51","v":"Housing"},null,0,0,0,0,0,0,0,0,0,0,0,0,{"$f":"'A5-Capex'!J51","v":0},{"$f":"'A5-Capex'!K51","v":0},{"$f":"'A5-Capex'!L51","v":0}]
[{"$f":"'A5-Capex'!A52","v":"Health"},null,0,0,0,0,0,0,0,0,0,0,0,0,{"$f":"'A5-Capex'!J52","v":0},{"$f":"'A5-Capex'!K52","v":0},{"$f":"'A5-Capex'!L52","v":0}]
[{"$f":"'A5-Capex'!A53","v":"Economic and environmental services"},null,{"$f":"SUM(C16:C18)","v":0},{"$f":"SUM(D16:D18)","v":0},0,0,0,0,0,0,0,0,0,0,{"$f":"'A5-Capex'!J53","v":0},{"$f":"'A5-Capex'!K53","v":0},{"$f":"'A5-Capex'!L53","v":0}]
[{"$f":"'A5-Capex'!A54","v":"Planning and development"},null,{"$f":"ROUND($O16/12,0)","v":0},0,0,0,0,0,0,0,0,0,0,0,{"$f":"'A5-Capex'!J54","v":0},{"$f":"'A5-Capex'!K54","v":0},{"$f":"'A5-Capex'!L54","v":0}]
[{"$f":"'A5-Capex'!A55","v":"Road transport"},null,0,0,0,0,0,0,0,0,0,0,0,0,{"$f":"'A5-Capex'!J55","v":0},{"$f":"'A5-Capex'!K55","v":0},{"$f":"'A5-Capex'!L55","v":0}]
[{"$f":"'A5-Capex'!A56","v":"Environmental protection"},null,0,0,0,0,0,0,0,0,0,0,0,0,{"$f":"'A5-Capex'!J56","v":0},{"$f":"'A5-Capex'!K56","v":0},{"$f":"'A5-Capex'!L56","v":0}]
[{"$f":"'A5-Capex'!A57","v":"Trading services"},null,{"$f":"SUM(C20:C23)","v":0},{"$f":"SUM(D20:D23)","v":0},0,0,0,0,0,0,0,0,0,{"$f":"O19-SUM(C19:M19)","v":0},{"$f":"'A5-Capex'!J57","v":0},{"$f":"'A5-Capex'!K57","v":0},{"$f":"'A5-Capex'!L57","v":0}]
[{"$f":"'A5-Capex'!A58","v":"Energy sources"},null,{"$f":"ROUND($O20/12,0)","v":0},0,0,0,0,0,0,0,0,0,0,0,{"$f":"'A5-Capex'!J58","v":0},{"$f":"'A5-Capex'!K58","v":0},{"$f":"'A5-Capex'!L58","v":0}]
[{"$f":"'A5-Capex'!A59","v":"Water management"},null,0,0,0,0,0,0,0,0,0,0,0,0,{"$f":"'A5-Capex'!J59","v":0},{"$f":"'A5-Capex'!K59","v":0},{"$f":"'A5-Capex'!L59","v":0}]
[{"$f":"'A5-Capex'!A60","v":"Waste water management"},null,0,0,0,0,0,0,0,0,0,0,0,0,{"$f":"'A5-Capex'!J60","v":0},{"$f":"'A5-Capex'!K60","v":0},{"$f":"'A5-Capex'!L60","v":0}]
[{"$f":"'A5-Capex'!A61","v":"Waste management"},null,0,0,0,0,0,0,0,0,0,0,0,0,{"$f":"'A5-Capex'!J61","v":0},{"$f":"'A5-Capex'!K61","v":0},{"$f":"'A5-Capex'!L61","v":0}]
[{"$f":"'A5-Capex'!A62","v":"Other"},null,0,0,0,0,0,0,0,0,0,0,0,{"$f":"O24-SUM(C24:M24)","v":0},{"$f":"'A5-Capex'!J62","v":0},{"$f":"'A5-Capex'!K62","v":0},{"$f":"'A5-Capex'!L62","v":0}]
[{"$f":"'A5-Capex'!A63","v":"Total Capital Expenditure - Functional"},2,{"$f":"C5+C9+C15+C19+C24","v":40500},{"$f":"D5+D9+D15+D19+D24","v":40500},40500,40500,40500,40500,40500,40500,40500,40500,40500,{"$f":"N5+N9+N15+N19+N24","v":40500},486000,21958,23144]
[]
["Funded by:"]
["National Government",null,{"$f":"ROUND($O28/12,0)","v":0},0,0,0,0,0,0,0,0,0,0,{"$f":"O28-SUM(C28:M28)","v":0},{"$f":"'A5-Capex'!J66","v":0},{"$f":"'A5-Capex'!K66","v":0},{"$f":"'A5-Capex'!L66","v":0}]
["Provincial Government",null,0,0,0,0,0,0,0,0,0,0,0,{"$f":"O29-SUM(C29:M29)","v":0},{"$f":"'A5-Capex'!J67","v":0},{"$f":"'A5-Capex'!K67","v":0},{"$f":"'A5-Capex'!L67","v":0}]
["District Municipality",null,0,0,0,0,0,0,0,0,0,0,0,0,{"$f":"'A5-Capex'!J68","v":0},{"$f":"'A5-Capex'!K68","v":0},{"$f":"'A5-Capex'!L68","v":0}]
[{"$f":"'A5-Capex'!A69","v":"Transfers and subsidies - capital (monetary allocations) (National / Provincial Departmental Agencies, Households, Non-profit Institutions, Private Enterprises, Public Corporatons, Higher Educational Institutions)"},null,0,0,0,0,0,0,0,0,0,0,0,{"$f":"O31-SUM(C31:M31)","v":0},{"$f":"'A5-Capex'!J69","v":0},{"$f":"'A5-Capex'!K69","v":0},{"$f":"'A5-Capex'!L69","v":0}]
["Transfers recognised - capital",null,{"$f":"SUM(C28:C31)","v":0},0,0,0,0,0,0,0,0,0,0,{"$f":"SUM(N28:N31)","v":0},0,0,0]
[]
["Borrowing",null,{"$f":"ROUND($O34/12,0)","v":0},0,0,0,0,0,0,0,0,0,0,0,{"$f":"'A5-Capex'!J72","v":0},{"$f":"'A5-Capex'!K72","v":0},{"$f":"'A5-Capex'!L72","v":0}]
["Internally generated funds",null,40500,40500,40500,40500,40500,40500,40500,40500,40500,40500,40500,40500,{"$f":"'A5-Capex'!J73","v":486000},{"$f":"'A5-Capex'!K73","v":21958},{"$f":"'A5-Capex'!L73","v":23144}]
["Total Capital Funding",null,{"$f":"+C32+C34+C35","v":40500},{"$f":"+D32+D34+D35","v":40500},40500,40500,40500,40500,40500,40500,40500,40500,40500,40500,486000,21958,23144]
[{"$f":"head27a","v":"References"}]
["1. Table should be completed as either Multi-Year expenditure appropriation or Budget Year and Forward Year estimates"]
[{"$f":"'SA28'!A44","v":"2. Total Capital Expenditure must reconcile to Budgeted Capital Expenditure"}]
["check"]

{"sheet":"SA30","index":60,"n_rows":63,"n_cols":31,"rows_kept":63,"cut":false,"hidden":false,"merged":[[1,13,1,15],[1,1,1,12],[56,0,56,15]]}
[{"$f":"muni&\" - \"& TableA30","v":"DC16 Xhariep - Supporting Table SA30 Budgeted monthly cash flow"}]
["MONTHLY CASH FLOWS",{"$f":"Head9","v":"Budget Year 2021/22"},null,null,null,null,null,null,null,null,null,null,null,"Medium Term Revenue and Expenditure Framework"]
["R thousand","July","August","Sept.","October","November","December","January","February","March","April","May","June",{"$f":"Head9","v":"Budget Year 2021/22"},{"$f":"Head10","v":"Budget Year +1 2022/23"},{"$f":"Head11","v":"Budget Year +2 2023/24"}]
["Cash Receipts By Source"]
[{"$f":"'A4-FinPerf RE'!A5","v":"Property rates"},{"$f":"ROUND($N5/12,0)","v":0},{"$f":"ROUND($N5/12,0)","v":0},{"$f":"ROUND($N5/12,0)","v":0},0,0,0,0,0,0,0,{"$f":"ROUND($N5/12,0)","v":0},{"$f":"N5-SUM(B5:L5)","v":0},{"$f":"SUMIFS(Sheet1!S71_ASBudgetAmount,Sheet1!S71_A7SubCode,$AC:$AC,Sheet1!S71_CFCode,$AD:$AD)","v":0},{"$f":"SUMIFS(Sheet1!S71_OY1BudgetAmount,Sheet1!S71_A7SubCode,$AC:$AC,Sheet1!S71_CFCode,$AD:$AD)","v":0},{"$f":"SUMIFS(Sheet1!S71_OY2BudgetAmount,Sheet1!S71_A7SubCode,$AC:$AC,Sheet1!S71_CFCode,$AD:$AD)","v":0},null,null,null,null,null,null,null,null,null,null,null,null,"0120D","D"]
[{"$f":"'A4-FinPerf RE'!A6","v":"Service charges - electricity revenue"},{"$f":"ROUND($N6/12,0)","v":0},0,0,0,0,0,0,0,0,0,0,{"$f":"N6-SUM(B6:L6)","v":0},{"$f":"SUMIFS(Sheet1!S71_ASBudgetAmount,Sheet1!S71_A7SubCode,$AC:$AC,Sheet1!S71_CFCode,$AD:$AD)","v":0},{"$f":"SUMIFS(Sheet1!S71_OY1BudgetAmount,Sheet1!S71_A7SubCode,$AC:$AC,Sheet1!S71_CFCode,$AD:$AD)","v":0},{"$f":"SUMIFS(Sheet1!S71_OY2BudgetAmount,Sheet1!S71_A7SubCode,$AC:$AC,Sheet1!S71_CFCode,$AD:$AD)","v":0},null,null,null,null,null,null,null,null,null,null,null,null,"0120","D"]
[{"$f":"'A4-FinPerf RE'!A7","v":"Service charges - water revenue"},0,0,0,0,0,0,0,0,0,0,0,0,{"$f":"SUMIFS(Sheet1!S71_ASBudgetAmount,Sheet1!S71_A7SubCode,$AC:$AC,Sheet1!S71_CFCode,$AD:$AD)","v":0},{"$f":"SUMIFS(Sheet1!S71_OY1BudgetAmount,Sheet1!S71_A7SubCode,$AC:$AC,Sheet1!S71_CFCode,$AD:$AD)","v":0},{"$f":"SUMIFS(Sheet1!S71_OY2BudgetAmount,Sheet1!S71_A7SubCode,$AC:$AC,Sheet1!S71_CFCode,$AD:$AD)","v":0},null,null,null,null,null,null,null,null,null,null,null,null,"0130","D"]
[{"$f":"'A4-FinPerf RE'!A8","v":"Service charges - sanitation revenue"},0,0,0,0,0,0,0,0,0,0,0,0,{"$f":"SUMIFS(Sheet1!S71_ASBudgetAmount,Sheet1!S71_A7SubCode,$AC:$AC,Sheet1!S71_CFCode,$AD:$AD)","v":0},{"$f":"SUMIFS(Sheet1!S71_OY1BudgetAmount,Sheet1!S71_A7SubCode,$AC:$AC,Sheet1!S71_CFCode,$AD:$AD)","v":0},{"$f":"SUMIFS(Sheet1!S71_OY2BudgetAmount,Sheet1!S71_A7SubCode,$AC:$AC,Sheet1!S71_CFCode,$AD:$AD)","v":0},null,null,null,null,null,null,null,null,null,null,null,null,"0140","D"]
[{"$f":"'A4-FinPerf RE'!A9","v":"Service charges - refuse revenue"},0,0,0,0,0,0,0,0,0,0,0,0,{"$f":"SUMIFS(Sheet1!S71_ASBudgetAmount,Sheet1!S71_A7SubCode,$AC:$AC,Sheet1!S71_CFCode,$AD:$AD)","v":0},{"$f":"SUMIFS(Sheet1!S71_OY1BudgetAmount,Sheet1!S71_A7SubCode,$AC:$AC,Sheet1!S71_CFCode,$AD:$AD)","v":0},{"$f":"SUMIFS(Sheet1!S71_OY2BudgetAmount,Sheet1!S71_A7SubCode,$AC:$AC,Sheet1!S71_CFCode,$AD:$AD)","v":0},null,null,null,null,null,null,null,null,null,null,null,null,"0150","D"]
[null,0,0,0,0,0,0,0,0,0,0,0,null,{"$f":"SUMIFS(Sheet1!S71_ASBudgetAmount,Sheet1!S71_A7SubCode,$AC:$AC,Sheet1!S71_CFCode,$AD:$AD)","v":0},{"$f":"SUMIFS(Sheet1!S71_OY1BudgetAmount,Sheet1!S71_A7SubCode,$AC:$AC,Sheet1!S71_CFCode,$AD:$AD)","v":0},{"$f":"SUMIFS(Sheet1!S71_OY2BudgetAmount,Sheet1!S71_A7SubCode,$AC:$AC,Sheet1!S71_CFCode,$AD:$AD)","v":0},null,null,null,null,null,null,null,null,null,null,null,null,null,"D"]
[{"$f":"'A4-FinPerf RE'!A11","v":"Rental of facilities and equipment"},0,0,0,0,0,0,0,0,0,0,0,0,{"$f":"SUMIFS(Sheet1!S71_ASBudgetAmount,Sheet1!S71_A7SubCode,$AC:$AC,Sheet1!S71_CFCode,$AD:$AD)","v":0},{"$f":"SUMIFS(Sheet1!S71_OY1BudgetAmount,Sheet1!S71_A7SubCode,$AC:$AC,Sheet1!S71_CFCode,$AD:$AD)","v":0},{"$f":"SUMIFS(Sheet1!S71_OY2BudgetAmount,Sheet1!S71_A7SubCode,$AC:$AC,Sheet1!S71_CFCode,$AD:$AD)","v":0},null,null,null,null,null,null,null,null,null,null,null,null,"0170","D"]
[{"$f":"'A4-FinPerf RE'!A12","v":"Interest earned - external investments"},51667,51667,51667,51667,51667,51667,51667,51667,51667,51667,51667,51663,{"$f":"SUMIFS(Sheet1!S71_ASBudgetAmount,Sheet1!S71_A7SubCode,$AC:$AC,Sheet1!S71_CFCode,$AD:$AD)","v":620000},{"$f":"SUMIFS(Sheet1!S71_OY1BudgetAmount,Sheet1!S71_A7SubCode,$AC:$AC,Sheet1!S71_CFCode,$AD:$AD)","v":640000},{"$f":"SUMIFS(Sheet1!S71_OY2BudgetAmount,Sheet1!S71_A7SubCode,$AC:$AC,Sheet1!S71_CFCode,$AD:$AD)","v":650000},null,null,null,null,null,null,null,null,null,null,null,null,"0170I","I"]
[{"$f":"'A4-FinPerf RE'!A13","v":"Interest earned - outstanding debtors"},0,0,0,0,0,0,0,0,0,0,0,0,{"$f":"SUMIFS(Sheet1!S71_ASBudgetAmount,Sheet1!S71_A7SubCode,$AC:$AC,Sheet1!S71_CFCode,$AD:$AD)","v":0},{"$f":"SUMIFS(Sheet1!S71_OY1BudgetAmount,Sheet1!S71_A7SubCode,$AC:$AC,Sheet1!S71_CFCode,$AD:$AD)","v":0},{"$f":"SUMIFS(Sheet1!S71_OY2BudgetAmount,Sheet1!S71_A7SubCode,$AC:$AC,Sheet1!S71_CFCode,$AD:$AD)","v":0},null,null,null,null,null,null,null,null,null,null,null,null,"0190","D"]
[{"$f":"'A4-FinPerf RE'!A14","v":"Dividends received"},0,0,0,0,0,0,0,0,0,0,0,0,{"$f":"SUMIFS(Sheet1!S71_ASBudgetAmount,Sheet1!S71_A7SubCode,$AC:$AC,Sheet1!S71_CFCode,$AD:$AD)","v":0},{"$f":"SUMIFS(Sheet1!S71_OY1BudgetAmount,Sheet1!S71_A7SubCode,$AC:$AC,Sheet1!S71_CFCode,$AD:$AD)","v":0},{"$f":"SUMIFS(Sheet1!S71_OY2BudgetAmount,Sheet1!S71_A7SubCode,$AC:$AC,Sheet1!S71_CFCode,$AD:$AD)","v":0},null,null,null,null,null,null,null,null,null,null,null,null,"0180D","D"]
[{"$f":"'A4-FinPerf RE'!A15","v":"Fines, penalties and forfeits"},0,0,0,0,0,0,0,0,0,0,0,0,{"$f":"SUMIFS(Sheet1!S71_ASBudgetAmount,Sheet1!S71_A7SubCode,$AC:$AC,Sheet1!S71_CFCode,$AD:$AD)","v":0},{"$f":"SUMIFS(Sheet1!S71_OY1BudgetAmount,Sheet1!S71_A7SubCode,$AC:$AC,Sheet1!S71_CFCode,$AD:$AD)","v":0},{"$f":"SUMIFS(Sheet1!S71_OY2BudgetAmount,Sheet1!S71_A7SubCode,$AC:$AC,Sheet1!S71_CFCode,$AD:$AD)","v":0},null,null,null,null,null,null,null,null,null,null,null,null,"0210","D"]
[{"$f":"'A4-FinPerf RE'!A16","v":"Licences and permits"},0,0,0,0,0,0,0,0,0,0,0,0,{"$f":"SUMIFS(Sheet1!S71_ASBudgetAmount,Sheet1!S71_A7SubCode,$AC:$AC,Sheet1!S71_CFCode,$AD:$AD)","v":0},{"$f":"SUMIFS(Sheet1!S71_OY1BudgetAmount,Sheet1!S71_A7SubCode,$AC:$AC,Sheet1!S71_CFCode,$AD:$AD)","v":0},{"$f":"SUMIFS(Sheet1!S71_OY2BudgetAmount,Sheet1!S71_A7SubCode,$AC:$AC,Sheet1!S71_CFCode,$AD:$AD)","v":0},null,null,null,null,null,null,null,null,null,null,null,null,"0220","D"]
[{"$f":"'A4-FinPerf RE'!A17","v":"Agency services"},0,0,0,0,0,0,0,0,0,0,0,0,{"$f":"SUMIFS(Sheet1!S71_ASBudgetAmount,Sheet1!S71_A7SubCode,$AC:$AC,Sheet1!S71_CFCode,$AD:$AD)","v":0},{"$f":"SUMIFS(Sheet1!S71_OY1BudgetAmount,Sheet1!S71_A7SubCode,$AC:$AC,Sheet1!S71_CFCode,$AD:$AD)","v":0},{"$f":"SUMIFS(Sheet1!S71_OY2BudgetAmount,Sheet1!S71_A7SubCode,$AC:$AC,Sheet1!S71_CFCode,$AD:$AD)","v":0},null,null,null,null,null,null,null,null,null,null,null,null,"0230","D"]
["Transfers and Subsidies - Operational",5152667,5152667,5152667,5152667,5152667,5152667,5152667,5152667,5152667,5152667,5152667,5152663,{"$f":"SUMIFS(Sheet1!S71_ASBudgetAmount,Sheet1!S71_A7SubCode,$AC:$AC,Sheet1!S71_CFCode,$AD:$AD)","v":61832000},{"$f":"SUMIFS(Sheet1!S71_OY1BudgetAmount,Sheet1!S71_A7SubCode,$AC:$AC,Sheet1!S71_CFCode,$AD:$AD)","v":68876000},{"$f":"SUMIFS(Sheet1!S71_OY2BudgetAmount,Sheet1!S71_A7SubCode,$AC:$AC,Sheet1!S71_CFCode,$AD:$AD)","v":69927392},null,null,null,null,null,null,null,null,null,null,null,null,"0150D","D"]
[{"$f":"'A4-FinPerf RE'!A19","v":"Other revenue"},136599,136599,136599,136599,136599,136599,136599,136599,136599,136599,136599,136594,{"$f":"SUMIFS(Sheet1!S71_ASBudgetAmount,Sheet1!S71_A7SubCode,$AC:$AC,Sheet1!S71_CFCode,$AD:$AD)","v":1639183},{"$f":"SUMIFS(Sheet1!S71_OY1BudgetAmount,Sheet1!S71_A7SubCode,$AC:$AC,Sheet1!S71_CFCode,$AD:$AD)","v":907276},{"$f":"SUMIFS(Sheet1!S71_OY2BudgetAmount,Sheet1!S71_A7SubCode,$AC:$AC,Sheet1!S71_CFCode,$AD:$AD)","v":939676},null,null,null,null,null,null,null,null,null,null,null,null,"250","D"]
["Cash Receipts by Source",{"$f":"SUM(B5:B9)+SUM(B11:B19)","v":5340933},{"$f":"SUM(C5:C9)+SUM(C11:C19)","v":5340933},5340933,5340933,5340933,5340933,5340933,5340933,5340933,5340933,5340933,5340920,64091183,70423276,71517068]
[]
["Other Cash Flows by Source"]
[{"$f":"'A4-FinPerf RE'!A38","v":"Transfers and subsidies - capital (monetary allocations) (National / Provincial and District)"},{"$f":"ROUND($N23/12,0)","v":0},0,0,0,0,0,0,0,0,0,0,{"$f":"N23-SUM(B23:L23)","v":0},{"$f":"SUMIFS(Sheet1!S71_ASBudgetAmount,Sheet1!S71_A7SubCode,$AC:$AC,Sheet1!S71_CFCode,$AD:$AD)","v":0},{"$f":"SUMIFS(Sheet1!S71_OY1BudgetAmount,Sheet1!S71_A7SubCode,$AC:$AC,Sheet1!S71_CFCode,$AD:$AD)","v":0},{"$f":"SUMIFS(Sheet1!S71_OY2BudgetAmount,Sheet1!S71_A7SubCode,$AC:$AC,Sheet1!S71_CFCode,$AD:$AD)","v":0},null,null,null,null,null,null,null,null,null,null,null,null,"0280","D"]
[{"$f":"'A4-FinPerf RE'!A39","v":"Transfers and subsidies - capital (monetary allocations) (National / Provincial Departmental Agencies, Households, Non-profit Institutions, Private Enterprises, Public Corporatons, Higher Educational Institutions)"},0,0,0,0,0,0,0,0,0,0,0,0,{"$f":"SUMIFS(Sheet1!S71_ASBudgetAmount,Sheet1!S71_A7SubCode,$AC:$AC,Sheet1!S71_CFCode,$AD:$AD)","v":0},{"$f":"SUMIFS(Sheet1!S71_OY1BudgetAmount,Sheet1!S71_A7SubCode,$AC:$AC,Sheet1!S71_CFCode,$AD:$AD)","v":0},{"$f":"SUMIFS(Sheet1!S71_OY2BudgetAmount,Sheet1!S71_A7SubCode,$AC:$AC,Sheet1!S71_CFCode,$AD:$AD)","v":0},null,null,null,null,null,null,null,null,null,null,null,null,"0290","D"]
["Proceeds on Disposal of Fixed and Intangible Assets",0,0,0,0,0,0,0,0,0,0,0,0,{"$f":"SUMIFS(Sheet1!S71_ASBudgetAmount,Sheet1!S71_A7SubCode,$AC:$AC,Sheet1!S71_CFCode,$AD:$AD)","v":0},{"$f":"SUMIFS(Sheet1!S71_OY1BudgetAmount,Sheet1!S71_A7SubCode,$AC:$AC,Sheet1!S71_CFCode,$AD:$AD)","v":0},{"$f":"SUMIFS(Sheet1!S71_OY2BudgetAmount,Sheet1!S71_A7SubCode,$AC:$AC,Sheet1!S71_CFCode,$AD:$AD)","v":0},null,null,null,null,null,null,null,null,null,null,null,null,"0260D","D"]
[{"$f":"'A7-CFlow'!A31","v":"Short term loans"},0,0,0,0,0,0,0,0,0,0,0,0,{"$f":"SUMIFS(Sheet1!S71_ASBudgetAmount,Sheet1!S71_A7SubCode,$AC:$AC,Sheet1!S71_CFCode,$AD:$AD)","v":0},{"$f":"SUMIFS(Sheet1!S71_OY1BudgetAmount,Sheet1!S71_A7SubCode,$AC:$AC,Sheet1!S71_CFCode,$AD:$AD)","v":0},{"$f":"SUMIFS(Sheet1!S71_OY2BudgetAmount,Sheet1!S71_A7SubCode,$AC:$AC,Sheet1!S71_CFCode,$AD:$AD)","v":0},null,null,null,null,null,null,null,null,null,null,null,null,"0310","D"]
[{"$f":"'A7-CFlow'!A32","v":"Borrowing long term/refinancing"},0,0,0,0,0,0,0,0,0,0,0,0,{"$f":"SUMIFS(Sheet1!S71_ASBudgetAmount,Sheet1!S71_A7SubCode,$AC:$AC,Sheet1!S71_CFCode,$AD:$AD)","v":0},{"$f":"SUMIFS(Sheet1!S71_OY1BudgetAmount,Sheet1!S71_A7SubCode,$AC:$AC,Sheet1!S71_CFCode,$AD:$AD)","v":0},{"$f":"SUMIFS(Sheet1!S71_OY2BudgetAmount,Sheet1!S71_A7SubCode,$AC:$AC,Sheet1!S71_CFCode,$AD:$AD)","v":0},null,null,null,null,null,null,null,null,null,null,null,null,"0360D","D"]
[{"$f":"'A7-CFlow'!A33","v":"Increase (decrease) in consumer deposits"},0,0,0,0,0,0,0,0,0,0,0,0,{"$f":"SUMIFS(Sheet1!S71_ASBudgetAmount,Sheet1!S71_ConsDepositsCode,_xlfn.SINGLE($AE:$AE))-(SUMIFS(Sheet1!S71_AdjustmentBudAmnt,Sheet1!S71_ConsDepositsCode,_xlfn.SINGLE($AE:$AE)))","v":0},{"$f":"SUMIFS(Sheet1!S71_OY1BudgetAmount,Sheet1!S71_ConsDepositsCode,_xlfn.SINGLE($AE:$AE))-(SUMIFS(Sheet1!S71_ASBudgetAmount,Sheet1!S71_ConsDepositsCode,_xlfn.SINGLE($AE:$AE)))","v":0},{"$f":"SUMIFS(Sheet1!S71_OY2BudgetAmount,Sheet1!S71_ConsDepositsCode,_xlfn.SINGLE($AE:$AE))-(SUMIFS(Sheet1!S71_OY1BudgetAmount,Sheet1!S71_ConsDepositsCode,_xlfn.SINGLE($AE:$AE)))","v":0},null,null,null,null,null,null,null,null,null,null,null,null,"0330","D","CDE"]
[null,null,null,null,null,null,null,null,null,null,null,null,null,null,null,null,null,null,null,null,null,null,null,null,null,null,null,null,null,"D"]
[{"$f":"'A7-CFlow'!A23","v":"Decrease (increase) in non-current receivables"},{"$f":"ROUND($N30/12,0)","v":0},0,0,0,0,0,0,0,0,0,0,0,{"$f":"SUMIFS(Sheet1!S71_ASBudgetAmount,Sheet1!S71_NonCurrentRecCode,_xlfn.SINGLE($AE:$AE))-(SUMIFS(Sheet1!S71_AdjustmentBudAmnt,Sheet1!S71_NonCurrentRecCode,_xlfn.SINGLE($AE:$AE)))","v":0},{"$f":"SUMIFS(Sheet1!S71_OY1BudgetAmount,Sheet1!S71_NonCurrentRecCode,_xlfn.SINGLE($AE:$AE))-(SUMIFS(Sheet1!S71_ASBudgetAmount,Sheet1!S71_NonCurrentRecCode,_xlfn.SINGLE($AE:$AE)))","v":0},{"$f":"SUMIFS(Sheet1!S71_OY2BudgetAmount,Sheet1!S71_NonCurrentRecCode,_xlfn.SINGLE($AE:$AE))-(SUMIFS(Sheet1!S71_OY1BudgetAmount,Sheet1!S71_NonCurrentRecCode,_xlfn.SINGLE($AE:$AE)))","v":0},null,null,null,null,null,null,null,null,null,null,null,null,"0350","D","NCR"]
[{"$f":"'A7-CFlow'!A24","v":"Decrease (increase) in non-current investments"},0,0,0,0,0,0,0,0,0,0,0,0,{"$f":"SUMIFS(Sheet1!S71_ASBudgetAmount,Sheet1!S71_NonCurrentInvCode,_xlfn.SINGLE($AE:$AE))-(SUMIFS(Sheet1!S71_AdjustmentBudAmnt,Sheet1!S71_NonCurrentInvCode,_xlfn.SINGLE($AE:$AE)))","v":0},{"$f":"SUMIFS(Sheet1!S71_OY1BudgetAmount,Sheet1!S71_NonCurrentInvCode,_xlfn.SINGLE($AE:$AE))-(SUMIFS(Sheet1!S71_ASBudgetAmount,Sheet1!S71_NonCurrentInvCode,_xlfn.SINGLE($AE:$AE)))","v":0},{"$f":"SUMIFS(Sheet1!S71_OY2BudgetAmount,Sheet1!S71_NonCurrentInvCode,_xlfn.SINGLE($AE:$AE))-(SUMIFS(Sheet1!S71_OY1BudgetAmount,Sheet1!S71_NonCurrentInvCode,_xlfn.SINGLE($AE:$AE)))","v":0},null,null,null,null,null,null,null,null,null,null,null,null,"0360","D","NCI"]
["Total Cash Receipts by Source",{"$f":"SUM(B20:B28)+SUM(B30:B31)","v":5340933},{"$f":"SUM(C20:C28)+SUM(C30:C31)","v":5340933},5340933,5340933,5340933,5340933,5340933,5340933,5340933,5340933,5340933,{"$f":"SUM(M20:M28)+SUM(M30:M31)","v":5340920},{"$f":"SUM(N20:N28)+SUM(N30:N31)","v":64091183},70423276,71517068]
[]
["Cash Payments by Type"]
["Employee related costs",{"$f":"ROUND($N35/12,0)","v":4336234},4336234,4336234,4336234,4336234,4336234,4336234,4336234,4336234,4336234,4336234,{"$f":"N35-SUM(B35:L35)","v":4336236},{"$f":"ABS(SUMIFS(Sheet1!S71_ASBudgetAmount,Sheet1!S71_A7SubCodePayments,$AC:$AC))","v":52034810},{"$f":"ABS(SUMIFS(Sheet1!S71_OY1BudgetAmount,Sheet1!S71_A7SubCodePayments,$AC:$AC))","v":52747955},{"$f":"ABS(SUMIFS(Sheet1!S71_OY2BudgetAmount,Sheet1!S71_A7SubCodePayments,$AC:$AC))","v":53771530},null,null,null,null,null,null,null,null,null,null,null,null,"0390"]
["Remuneration of councillors",0,0,0,0,0,0,0,0,0,0,0,0,{"$f":"ABS(SUMIFS(Sheet1!S71_ASBudgetAmount,Sheet1!S71_A7SubCodePayments,$AC:$AC))","v":0},{"$f":"ABS(SUMIFS(Sheet1!S71_ASBudgetAmount,Sheet1!S71_A7SubCodePayments,$AC:$AC))","v":0},{"$f":"ABS(SUMIFS(Sheet1!S71_OY2BudgetAmount,Sheet1!S71_A7SubCodePayments,$AC:$AC))","v":0},null,null,null,null,null,null,null,null,null,null,null,null,"0400"]
["Finance charges",6667,6667,6667,6667,6667,6667,6667,6667,6667,6667,6667,6663,{"$f":"ABS(SUMIFS(Sheet1!S71_ASBudgetAmount,Sheet1!S71_A7SubCodePayments,$AC:$AC))","v":80000},{"$f":"ABS(SUMIFS(Sheet1!S71_OY1BudgetAmount,Sheet1!S71_A7SubCodePayments,$AC:$AC))","v":411060},{"$f":"ABS(SUMIFS(Sheet1!S71_OY2BudgetAmount,Sheet1!S71_A7SubCodePayments,$AC:$AC))","v":433257},null,null,null,null,null,null,null,null,null,null,null,null,"0410"]
["Bulk purchases - electricity ",0,0,0,0,0,0,0,0,0,0,0,0,{"$f":"'SA1'!J105","v":0},{"$f":"'SA1'!K105","v":0},{"$f":"'SA1'!L105","v":0}]
["Acquisitions - water & other inventory",15000,15000,15000,15000,15000,15000,15000,15000,15000,15000,15000,15000,{"$f":"'SA3'!J25+'SA3'!J57+'SA3'!J66+'SA3'!J73+'SA3'!J81+'SA3'!J89+'SA3'!J97+'SA3'!J103+'SA3'!J110","v":180000},{"$f":"'SA3'!K25+'SA3'!K57+'SA3'!K66+'SA3'!K73+'SA3'!K81+'SA3'!K89+'SA3'!K97+'SA3'!K103+'SA3'!K110","v":345673},{"$f":"'SA3'!L25+'SA3'!L57+'SA3'!L66+'SA3'!L73+'SA3'!L81+'SA3'!L89+'SA3'!L97+'SA3'!L103+'SA3'!L110","v":348140}]
[null,0,0,0,0,0,0,0,0,0,0,0]
["Contracted services",456750,456750,456750,456750,456750,456750,456750,456750,456750,456750,456750,456750,{"$f":"ABS(SUMIFS(Sheet1!S71_ASBudgetAmount,Sheet1!S71_A7SubCodePayments,$AC:$AC))","v":5481000},{"$f":"ABS(SUMIFS(Sheet1!S71_OY1BudgetAmount,Sheet1!S71_A7SubCodePayments,$AC:$AC))","v":7144409},{"$f":"ABS(SUMIFS(Sheet1!S71_OY2BudgetAmount,Sheet1!S71_A7SubCodePayments,$AC:$AC))","v":7459626},null,null,null,null,null,null,null,null,null,null,null,null,"0450"]
["Transfers and grants - other municipalities",0,0,0,0,0,0,0,0,0,0,0,0,{"$f":"ABS(SUMIFS(Sheet1!S71_ASBudgetAmount,Sheet1!S71_A7SubCodePayments,$AC:$AC))","v":0},{"$f":"ABS(SUMIFS(Sheet1!S71_OY1BudgetAmount,Sheet1!S71_A7SubCodePayments,$AC:$AC))","v":0},{"$f":"ABS(SUMIFS(Sheet1!S71_OY2BudgetAmount,Sheet1!S71_A7SubCodePayments,$AC:$AC))","v":0},null,null,null,null,null,null,null,null,null,null,null,null,"0460"]
["Transfers and grants - other",0,0,0,0,0,0,0,0,0,0,0,0,{"$f":"ABS(SUMIFS(Sheet1!S71_ASBudgetAmount,Sheet1!S71_A7SubCodePayments,$AC:$AC))","v":0},{"$f":"ABS(SUMIFS(Sheet1!S71_OY1BudgetAmount,Sheet1!S71_A7SubCodePayments,$AC:$AC))","v":0},{"$f":"ABS(SUMIFS(Sheet1!S71_OY2BudgetAmount,Sheet1!S71_A7SubCodePayments,$AC:$AC))","v":0},null,null,null,null,null,null,null,null,null,null,null,null,"0470"]
["Other expenditure",303865,303865,303865,303865,303865,303865,303865,303865,303865,303865,303865,303860,{"$f":"ABS(SUMIFS(Sheet1!S71_ASBudgetAmount,Sheet1!S71_A7SubCodePayments,$AC:$AC))","v":3646375},{"$f":"ABS(SUMIFS(Sheet1!S71_OY1BudgetAmount,Sheet1!S71_A7SubCodePayments,$AC:$AC))","v":7005086},{"$f":"ABS(SUMIFS(Sheet1!S71_OY2BudgetAmount,Sheet1!S71_A7SubCodePayments,$AC:$AC))","v":7044198},null,null,null,null,null,null,null,null,null,null,null,null,"0480"]
["Cash Payments by Type",{"$f":"SUM(B35:B44)","v":5118516},5118516,5118516,5118516,5118516,5118516,5118516,5118516,5118516,5118516,5118516,5118509,{"$f":"SUM(N35:N44)","v":61422185},67654183,{"$f":"SUM(P35:P44)","v":69056751}]
[]
["Other Cash Flows/Payments by Type"]
[{"$f":"'A7-CFlow'!A26","v":"Capital assets"},{"$f":"ROUND($N48/12,0)","v":0},0,0,0,0,0,0,0,0,0,0,{"$f":"N48-SUM(B48:L48)","v":0},{"$f":"ABS(SUMIFS(Sheet1!S71_ASBudgetAmount,Sheet1!S71_A7SubCodePayments,$AC:$AC))","v":0},{"$f":"ABS(SUMIFS(Sheet1!S71_OY1BudgetAmount,Sheet1!S71_A7SubCodePayments,$AC:$AC))","v":0},{"$f":"ABS(SUMIFS(Sheet1!S71_OY2BudgetAmount,Sheet1!S71_A7SubCodePayments,$AC:$AC))","v":0},null,null,null,null,null,null,null,null,null,null,null,null,"0510"]
[{"$f":"'A7-CFlow'!A35","v":"Repayment of borrowing"},0,0,0,0,0,0,0,0,0,0,0,{"$f":"N49-SUM(B49:L49)","v":0},{"$f":"ABS(SUMIFS(Sheet1!S71_ASBudgetAmount,Sheet1!S71_A7SubCodePayments,$AC:$AC))","v":0},{"$f":"ABS(SUMIFS(Sheet1!S71_OY1BudgetAmount,Sheet1!S71_A7SubCodePayments,$AC:$AC))","v":0},{"$f":"ABS(SUMIFS(Sheet1!S71_OY2BudgetAmount,Sheet1!S71_A7SubCodePayments,$AC:$AC))","v":0},null,null,null,null,null,null,null,null,null,null,null,null,"0520"]
[{"$f":"LEFT(A47,25)","v":"Other Cash Flows/Payments"},0,0,0,0,0,0,0,0,0,0,0,{"$f":"N50-SUM(B50:L50)","v":0},{"$f":"ABS(SUMIFS(Sheet1!S71_ASBudgetAmount,Sheet1!S71_A7SubCodePayments,$AC:$AC))","v":0},{"$f":"ABS(SUMIFS(Sheet1!S71_OY1BudgetAmount,Sheet1!S71_A7SubCodePayments,$AC:$AC))","v":0},{"$f":"ABS(SUMIFS(Sheet1!S71_OY2BudgetAmount,Sheet1!S71_A7SubCodePayments,$AC:$AC))","v":0},null,null,null,null,null,null,null,null,null,null,null,null,"0530"]
["Total Cash Payments by Type",{"$f":"SUM(B45:B50)","v":5118516},{"$f":"SUM(C45:C50)","v":5118516},5118516,5118516,5118516,5118516,5118516,5118516,5118516,5118516,5118516,5118509,61422185,67654183,69056751,null,"Check"]
[]
["NET INCREASE/(DECREASE) IN CASH HELD",{"$f":"B32-B51","v":222417},222417,222417,222417,222417,222417,222417,222417,222417,222417,222417,222411,2668998,2769093,2460317]
["Cash/cash equivalents at the month/year begin:",{"$f":"SUMIFS(Sheet1!S71_ASBudgetAmount,Sheet1!S71_A7SubCodePayments,$AC:$AC)","v":0},{"$f":"B55","v":222417},{"$f":"C55","v":444834},667251,889668,1112085,1334502,1556919,1779336,2001753,2224170,2446587,{"$f":"B54","v":0},{"$f":"N55","v":2668998},{"$f":"O55","v":5438091},null,null,null,null,null,null,null,null,null,null,null,null,"0560"]
["Cash/cash equivalents at the month/year end:",{"$f":"B54+B53","v":222417},{"$f":"C54+C53","v":444834},{"$f":"D54+D53","v":667251},889668,1112085,1334502,1556919,1779336,2001753,2224170,2446587,2668998,2668998,5438091,7898408]
[{"$f":"head27a","v":"References"}]
["1. Note that this section of Table SA 30 is deliberately not linked to Table A4 because timing differences between the invoicing of clients and receiving the cash means that the cashflow will differ from budgeted revenue, and similarly for budgeted expenditure. However for the MTREF it is now directly linked to A7."]
["2. Bulk purchases - Electricity & Waste Water - use detail information from Table SA1"]
["3. Acquisition Inventory - Water & other inventory - use detail information from Table SA3"]
[]
[]
[null,null,null,null,{"$f":"E45+E61","v":5118516},5118516,5118516,5118516,5118516,5118516,5118516,5118516]
[null,null,null,null,{"$f":"E53-E61","v":222417},222417,222417,222417,222417,222417,222417,222417]

{"sheet":"SA31","index":61,"n_rows":41,"n_cols":11,"rows_kept":41,"cut":false,"hidden":false,"merged":[[1,5,1,7],[1,8,1,10],[1,1,2,1]]}
[{"$f":"muni&\" - \"& TableA31","v":"DC16 Xhariep - NOT REQUIRED - municipality does not have entities"}]
[{"$f":"desc","v":"Description"},{"$f":"head27","v":"Ref"},{"$f":"head1b","v":"2017/18"},{"$f":"head1A","v":"2018/19"},{"$f":"Head1","v":"2019/20"},{"$f":"Head2","v":"Current Year 2020/21"},null,null,{"$f":"Head3","v":"2021/22 Medium Term Revenue & Expenditure Framework"}]
["R million",null,{"$f":"Head5","v":"Audited Outcome"},{"$f":"Head5","v":"Audited Outcome"},{"$f":"Head5","v":"Audited Outcome"},{"$f":"Head6","v":"Original Budget"},{"$f":"Head7","v":"Adjusted Budget"},{"$f":"Head8","v":"Full Year Forecast"},{"$f":"Head9","v":"Budget Year 2021/22"},{"$f":"Head10","v":"Budget Year +1 2022/23"},{"$f":"Head11","v":"Budget Year +2 2023/24"}]
["Financial Performance"]
[{"$f":"'A1-Sum'!A5","v":"Property rates"}]
[{"$f":"'A1-Sum'!A6","v":"Service charges"}]
[{"$f":"'A1-Sum'!A7","v":"Investment revenue"}]
[{"$f":"'A1-Sum'!A8","v":"Transfers recognised - operational"}]
[{"$f":"'A1-Sum'!A9","v":"Other own revenue"}]
[{"$f":"'A1-Sum'!A21","v":"Transfers and subsidies - capital (monetary allocations) (National / Provincial Departmental Agencies, Households, Non-profit Institutions, Private Enterprises, Public Corporatons, Higher Educational Institutions) & Transfers and subsidies - capital (in-kind - all) "}]
[{"$f":"'A4-FinPerf RE'!A21","v":"Total Revenue (excluding capital transfers and contributions)"},null,{"$f":"SUM(C5:C10)","v":0},{"$f":"SUM(D5:D10)","v":0},{"$f":"SUM(E5:E10)","v":0},0,0,0,0,0,0]
[{"$f":"'A1-Sum'!A11","v":"Employee costs"}]
["Remuneration of Board Members"]
[{"$f":"'A1-Sum'!A13","v":"Depreciation & asset impairment"}]
[{"$f":"'A1-Sum'!A14","v":"Finance charges"}]
[{"$f":"'A1-Sum'!A15","v":"Inventory consumed and bulk purchases"}]
[{"$f":"'A1-Sum'!A16","v":"Transfers and grants"}]
[{"$f":"'A1-Sum'!A17","v":"Other expenditure"}]
[{"$f":"'A4-FinPerf RE'!A35","v":"Total Expenditure"},null,{"$f":"SUM(C12:C18)","v":0},{"$f":"SUM(D12:D18)","v":0},0,0,0,0,0,0,0]
[{"$f":"'A4-FinPerf RE'!A37","v":"Surplus/(Deficit)"},null,{"$f":"C11-C19","v":0},{"$f":"D11-D19","v":0},0,0,0,0,0,0,0]
[]
["Capital expenditure & funds sources"]
["Capital expenditure"]
[{"$f":"A8","v":"Transfers recognised - operational"}]
[]
[{"$f":"'A5-Capex'!A72","v":"Borrowing"}]
[{"$f":"'A5-Capex'!A73","v":"Internally generated funds"}]
["Total sources",null,{"$f":"+C24+C26+C27","v":0},{"$f":"+D24+D26+D27","v":0},0,0,0,0,0,0,0]
[]
["Financial position"]
[{"$f":"'A6-FinPos'!A12","v":"Total current assets"}]
[{"$f":"'A6-FinPos'!A24","v":"Total non current assets"}]
[{"$f":"'A6-FinPos'!A34","v":"Total current liabilities"}]
[{"$f":"'A6-FinPos'!A39","v":"Total non current liabilities"}]
["Equity"]
[]
["Cash flows"]
[{"$f":"'A1-Sum'!A42","v":"Net cash from (used) operating"}]
[{"$f":"'A1-Sum'!A43","v":"Net cash from (used) investing"}]
[{"$f":"'A1-Sum'!A44","v":"Net cash from (used) financing"}]
[{"$f":"'A1-Sum'!A45","v":"Cash/cash equivalents at the year end"}]

{"sheet":"SA32","index":62,"n_rows":27,"n_cols":6,"rows_kept":27,"cut":false,"hidden":false,"merged":[[1,3,2,3],[1,4,2,4],[1,1,2,1]]}
[{"$f":"muni&\" - \"&TableA32","v":"DC16 Xhariep - Supporting Table SA32 List of external mechanisms"}]
["External mechanism","Yrs/ Mths","Period of agreement 1.","Service provided","Expiry date of service delivery agreement or contract","Monetary value of agreement 2."]
["Name of organisation",null,"Number",null,null,"R thousand"]
[]
[]
[]
[]
[]
[]
[]
[]
[]
[]
[]
[]
[]
[]
[]
[]
[]
[]
[]
[]
[]
[{"$f":"head27a","v":"References"}]
["1. Total agreement period from commencement until end"]
["2. Annual value"]

{"sheet":"SA33","index":63,"n_rows":48,"n_cols":15,"rows_kept":48,"cut":false,"hidden":false,"merged":[[1,4,1,6],[47,0,47,13]]}
[{"$f":"muni&\" - \"& TableA33","v":"DC16 Xhariep - Supporting Table SA33 Contracts having future budgetary implications"}]
[{"$f":"desc","v":"Description"},{"$f":"head27","v":"Ref"},"Preceding Years",{"$f":"Head2","v":"Current Year 2020/21"},{"$f":"Head3","v":"2021/22 Medium Term Revenue & Expenditure Framework"},null,null,{"$f":"Head12","v":"Forecast 2024/25"},{"$f":"Head13","v":"Forecast 2025/26"},{"$f":"Head14","v":"Forecast 2026/27"},{"$f":"Head15","v":"Forecast 2027/28"},{"$f":"Head16","v":"Forecast 2028/29"},{"$f":"Head17","v":"Forecast 2029/30"},{"$f":"Head18","v":"Forecast 2030/31"},"Total Contract Value"]
["R thousand","1,3","Total",{"$f":"Head6","v":"Original Budget"},{"$f":"Head9","v":"Budget Year 2021/22"},{"$f":"Head10","v":"Budget Year +1 2022/23"},{"$f":"Head11","v":"Budget Year +2 2023/24"},"Estimate","Estimate","Estimate","Estimate","Estimate","Estimate","Estimate","Estimate"]
["Parent Municipality:"]
["Revenue Obligation By Contract",2]
["Contract 1",null,null,null,null,null,null,null,null,null,null,null,null,null,{"$f":"SUM(C6:N6)","v":0}]
["Contract 2",null,null,null,null,null,null,null,null,null,null,null,null,null,{"$f":"SUM(C7:N7)","v":0}]
["Contract 3 etc",null,null,null,null,null,null,null,null,null,null,null,null,null,{"$f":"SUM(C8:N8)","v":0}]
["Total Operating Revenue Implication",null,{"$f":"SUM(C6:C8)","v":0},{"$f":"SUM(D6:D8)","v":0},0,0,0,0,0,0,0,0,0,0,{"$f":"SUM(C9:N9)","v":0}]
[]
["Expenditure Obligation By Contract",2]
["Contract 1",null,null,null,null,null,null,null,null,null,null,null,null,null,{"$f":"SUM(C12:N12)","v":0}]
["Contract 2",null,null,null,null,null,null,null,null,null,null,null,null,null,{"$f":"SUM(C13:N13)","v":0}]
["Contract 3 etc",null,null,null,null,null,null,null,null,null,null,null,null,null,{"$f":"SUM(C14:N14)","v":0}]
["Total Operating Expenditure Implication",null,{"$f":"SUM(C12:C14)","v":0},0,0,0,0,0,0,0,0,0,0,0,{"$f":"SUM(C15:N15)","v":0}]
[]
["Capital Expenditure Obligation By Contract",2]
["Contract 1",null,null,null,null,null,null,null,null,null,null,null,null,null,{"$f":"SUM(C18:N18)","v":0}]
["Contract 2",null,null,null,null,null,null,null,null,null,null,null,null,null,{"$f":"SUM(C19:N19)","v":0}]
["Contract 3 etc",null,null,null,null,null,null,null,null,null,null,null,null,null,{"$f":"SUM(C20:N20)","v":0}]
["Total Capital Expenditure Implication",null,{"$f":"SUM(C18:C20)","v":0},0,0,0,0,0,0,0,0,0,0,0,{"$f":"SUM(C21:N21)","v":0}]
[]
["Total Parent Expenditure Implication",null,{"$f":"C15+C21","v":0},{"$f":"D15+D21","v":0},0,0,0,0,0,0,0,0,0,0,0]
[]
["Entities:"]
["Revenue Obligation By Contract",2]
["Contract 1",null,null,null,null,null,null,null,null,null,null,null,null,null,{"$f":"SUM(C27:N27)","v":0}]
["Contract 2",null,null,null,null,null,null,null,null,null,null,null,null,null,{"$f":"SUM(C28:N28)","v":0}]
["Contract 3 etc",null,null,null,null,null,null,null,null,null,null,null,null,null,{"$f":"SUM(C29:N29)","v":0}]
["Total Operating Revenue Implication",null,{"$f":"SUM(C27:C29)","v":0},0,0,0,0,0,0,0,0,0,0,0,{"$f":"SUM(C30:N30)","v":0}]
[]
["Expenditure Obligation By Contract",2]
["Contract 1",null,null,null,null,null,null,null,null,null,null,null,null,null,{"$f":"SUM(C33:N33)","v":0}]
["Contract 2",null,null,null,null,null,null,null,null,null,null,null,null,null,{"$f":"SUM(C34:N34)","v":0}]
["Contract 3 etc",null,null,null,null,null,null,null,null,null,null,null,null,null,{"$f":"SUM(C35:N35)","v":0}]
["Total Operating Expenditure Implication",null,{"$f":"SUM(C33:C35)","v":0},0,0,0,0,0,0,0,0,0,0,0,{"$f":"SUM(C36:N36)","v":0}]
[]
["Capital Expenditure Obligation By Contract",2]
["Contract 1",null,null,null,null,null,null,null,null,null,null,null,null,null,{"$f":"SUM(C39:N39)","v":0}]
["Contract 2",null,null,null,null,null,null,null,null,null,null,null,null,null,{"$f":"SUM(C40:N40)","v":0}]
["Contract 3 etc",null,null,null,null,null,null,null,null,null,null,null,null,null,{"$f":"SUM(C41:N41)","v":0}]
["Total Capital Expenditure Implication",null,{"$f":"SUM(C39:C41)","v":0},0,0,0,0,0,0,0,0,0,0,0,{"$f":"SUM(C42:N42)","v":0}]
[]
["Total Entity Expenditure Implication",null,{"$f":"C36+C42","v":0},{"$f":"D36+D42","v":0},0,0,0,0,0,0,0,0,0,0,0]
[{"$f":"head27a","v":"References"}]
["1. Total implication for all preceding years to be summed and total stated in 'Preceding Years' column"]
["2. List all contracts with future financial obligations beyond the three years covered by the MTREF (MFMA s33)"]
["3. For municipalities with approved total revenue not exceeding R250 m - all contracts with an annual cost greater than R500 000. For municipalities with approved total revenue greater than R250 m - all contracts with an annual cost greater than R1million. For municipalities with approved total revenue greater than R500 m - all contracts with an annual cost greater than R5 million"]

{"sheet":"SA34a","index":64,"n_rows":173,"n_cols":30,"rows_kept":173,"cut":false,"hidden":false,"merged":[[1,5,1,7],[1,8,1,10]]}
[{"$f":"muni&\" - \"&TableA34a","v":"DC16 Xhariep - Supporting Table SA34a Capital expenditure on new assets by asset class"}]
[{"$f":"desc","v":"Description"},{"$f":"head27","v":"Ref"},{"$f":"head1b","v":"2017/18"},{"$f":"head1A","v":"2018/19"},{"$f":"Head1","v":"2019/20"},{"$f":"Head2","v":"Current Year 2020/21"},null,null,{"$f":"Head3","v":"2021/22 Medium Term Revenue & Expenditure Framework"}]
["R thousand",1,{"$f":"Head5","v":"Audited Outcome"},{"$f":"Head5","v":"Audited Outcome"},{"$f":"Head5","v":"Audited Outcome"},{"$f":"Head6","v":"Original Budget"},{"$f":"Head7","v":"Adjusted Budget"},{"$f":"Head8","v":"Full Year Forecast"},{"$f":"Head9","v":"Budget Year 2021/22"},{"$f":"Head10","v":"Budget Year +1 2022/23"},{"$f":"Head11","v":"Budget Year +2 2023/24"}]
["Capital expenditure on new assets by Asset Class/Sub-class"]
[]
["Infrastructure",null,{"$f":"C7+C12+C16+C26+C37+C44+C52+C62+C68","v":0},{"$f":"D7+D12+D16+D26+D37+D44+D52+D62+D68","v":0},0,0,0,0,0,0,0]
["Roads Infrastructure",null,{"$f":"SUM(C8:C11)","v":0},0,0,0,0,0,0,0,0]
["Roads",null,{"$f":"SUMIFS(Sheet1!S71_PPPYearAmount,Sheet1!S71_SA34aCode,$AC:$AC,Sheet1!S71_A5CapexCode,$AD:$AD)","v":0},{"$f":"SUMIFS(Sheet1!S71_PPYearAmount,Sheet1!S71_SA34aCode,$AC:$AC,Sheet1!S71_A5CapexCode,$AD:$AD)","v":0},{"$f":"SUMIFS(Sheet1!S71_PYearAmount,Sheet1!S71_SA34aCode,$AC:$AC,Sheet1!S71_A5CapexCode,$AD:$AD)","v":0},{"$f":"SUMIFS(Sheet1!S71_OriginalBudAmnt,Sheet1!S71_SA34aCode,$AC:$AC,Sheet1!S71_A5CapexCode,$AD:$AD)","v":0},{"$f":"SUMIFS(Sheet1!S71_AdjustmentBudAmnt,Sheet1!S71_SA34aCode,$AC:$AC,Sheet1!S71_A5CapexCode,$AD:$AD)","v":0},{"$f":"SUMIFS(Sheet1!S71_AdjustmentBudAmnt,Sheet1!S71_SA34aCode,$AC:$AC,Sheet1!S71_A5CapexCode,$AD:$AD)","v":0},{"$f":"SUMIFS(Sheet1!S71_ASBudgetAmount,Sheet1!S71_SA34aCode,$AC:$AC,Sheet1!S71_A5CapexCode,$AD:$AD)","v":0},{"$f":"SUMIFS(Sheet1!S71_OY1BudgetAmount,Sheet1!S71_SA34aCode,$AC:$AC,Sheet1!S71_A5CapexCode,$AD:$AD)","v":0},{"$f":"SUMIFS(Sheet1!S71_OY2BudgetAmount,Sheet1!S71_SA34aCode,$AC:$AC,Sheet1!S71_A5CapexCode,$AD:$AD)","v":0},null,null,null,null,null,null,null,null,null,null,null,null,null,null,null,null,null,"0120","CE"]
["Road Structures",null,{"$f":"SUMIFS(Sheet1!S71_PPPYearAmount,Sheet1!S71_SA34aCode,$AC:$AC,Sheet1!S71_A5CapexCode,$AD:$AD)","v":0},{"$f":"SUMIFS(Sheet1!S71_PPYearAmount,Sheet1!S71_SA34aCode,$AC:$AC,Sheet1!S71_A5CapexCode,$AD:$AD)","v":0},{"$f":"SUMIFS(Sheet1!S71_PYearAmount,Sheet1!S71_SA34aCode,$AC:$AC,Sheet1!S71_A5CapexCode,$AD:$AD)","v":0},{"$f":"SUMIFS(Sheet1!S71_OriginalBudAmnt,Sheet1!S71_SA34aCode,$AC:$AC,Sheet1!S71_A5CapexCode,$AD:$AD)","v":0},{"$f":"SUMIFS(Sheet1!S71_AdjustmentBudAmnt,Sheet1!S71_SA34aCode,$AC:$AC,Sheet1!S71_A5CapexCode,$AD:$AD)","v":0},{"$f":"SUMIFS(Sheet1!S71_AdjustmentBudAmnt,Sheet1!S71_SA34aCode,$AC:$AC,Sheet1!S71_A5CapexCode,$AD:$AD)","v":0},{"$f":"SUMIFS(Sheet1!S71_ASBudgetAmount,Sheet1!S71_SA34aCode,$AC:$AC,Sheet1!S71_A5CapexCode,$AD:$AD)","v":0},{"$f":"SUMIFS(Sheet1!S71_OY1BudgetAmount,Sheet1!S71_SA34aCode,$AC:$AC,Sheet1!S71_A5CapexCode,$AD:$AD)","v":0},{"$f":"SUMIFS(Sheet1!S71_OY2BudgetAmount,Sheet1!S71_SA34aCode,$AC:$AC,Sheet1!S71_A5CapexCode,$AD:$AD)","v":0},null,null,null,null,null,null,null,null,null,null,null,null,null,null,null,null,null,"0130","CE"]
["Road Furniture",null,{"$f":"SUMIFS(Sheet1!S71_PPPYearAmount,Sheet1!S71_SA34aCode,$AC:$AC,Sheet1!S71_A5CapexCode,$AD:$AD)","v":0},{"$f":"SUMIFS(Sheet1!S71_PPYearAmount,Sheet1!S71_SA34aCode,$AC:$AC,Sheet1!S71_A5CapexCode,$AD:$AD)","v":0},{"$f":"SUMIFS(Sheet1!S71_PYearAmount,Sheet1!S71_SA34aCode,$AC:$AC,Sheet1!S71_A5CapexCode,$AD:$AD)","v":0},{"$f":"SUMIFS(Sheet1!S71_OriginalBudAmnt,Sheet1!S71_SA34aCode,$AC:$AC,Sheet1!S71_A5CapexCode,$AD:$AD)","v":0},{"$f":"SUMIFS(Sheet1!S71_AdjustmentBudAmnt,Sheet1!S71_SA34aCode,$AC:$AC,Sheet1!S71_A5CapexCode,$AD:$AD)","v":0},{"$f":"SUMIFS(Sheet1!S71_AdjustmentBudAmnt,Sheet1!S71_SA34aCode,$AC:$AC,Sheet1!S71_A5CapexCode,$AD:$AD)","v":0},{"$f":"SUMIFS(Sheet1!S71_ASBudgetAmount,Sheet1!S71_SA34aCode,$AC:$AC,Sheet1!S71_A5CapexCode,$AD:$AD)","v":0},{"$f":"SUMIFS(Sheet1!S71_OY1BudgetAmount,Sheet1!S71_SA34aCode,$AC:$AC,Sheet1!S71_A5CapexCode,$AD:$AD)","v":0},{"$f":"SUMIFS(Sheet1!S71_OY2BudgetAmount,Sheet1!S71_SA34aCode,$AC:$AC,Sheet1!S71_A5CapexCode,$AD:$AD)","v":0},null,null,null,null,null,null,null,null,null,null,null,null,null,null,null,null,null,"0140","CE"]
["Capital Spares",null,{"$f":"SUMIFS(Sheet1!S71_PPPYearAmount,Sheet1!S71_SA34aCode,$AC:$AC,Sheet1!S71_A5CapexCode,$AD:$AD)","v":0},{"$f":"SUMIFS(Sheet1!S71_PPYearAmount,Sheet1!S71_SA34aCode,$AC:$AC,Sheet1!S71_A5CapexCode,$AD:$AD)","v":0},{"$f":"SUMIFS(Sheet1!S71_PYearAmount,Sheet1!S71_SA34aCode,$AC:$AC,Sheet1!S71_A5CapexCode,$AD:$AD)","v":0},{"$f":"SUMIFS(Sheet1!S71_OriginalBudAmnt,Sheet1!S71_SA34aCode,$AC:$AC,Sheet1!S71_A5CapexCode,$AD:$AD)","v":0},{"$f":"SUMIFS(Sheet1!S71_AdjustmentBudAmnt,Sheet1!S71_SA34aCode,$AC:$AC,Sheet1!S71_A5CapexCode,$AD:$AD)","v":0},{"$f":"SUMIFS(Sheet1!S71_AdjustmentBudAmnt,Sheet1!S71_SA34aCode,$AC:$AC,Sheet1!S71_A5CapexCode,$AD:$AD)","v":0},{"$f":"SUMIFS(Sheet1!S71_ASBudgetAmount,Sheet1!S71_SA34aCode,$AC:$AC,Sheet1!S71_A5CapexCode,$AD:$AD)","v":0},{"$f":"SUMIFS(Sheet1!S71_OY1BudgetAmount,Sheet1!S71_SA34aCode,$AC:$AC,Sheet1!S71_A5CapexCode,$AD:$AD)","v":0},{"$f":"SUMIFS(Sheet1!S71_OY2BudgetAmount,Sheet1!S71_SA34aCode,$AC:$AC,Sheet1!S71_A5CapexCode,$AD:$AD)","v":0},null,null,null,null,null,null,null,null,null,null,null,null,null,null,null,null,null,"0150","CE"]
["Storm water Infrastructure",null,{"$f":"SUM(C13:C15)","v":0},{"$f":"SUM(D13:D15)","v":0},0,0,0,0,0,0,0,null,null,null,null,null,null,null,null,null,null,null,null,null,null,null,null,null,null,"CE"]
["Drainage Collection",null,{"$f":"SUMIFS(Sheet1!S71_PPPYearAmount,Sheet1!S71_SA34aCode,$AC:$AC,Sheet1!S71_A5CapexCode,$AD:$AD)","v":0},{"$f":"SUMIFS(Sheet1!S71_PPYearAmount,Sheet1!S71_SA34aCode,$AC:$AC,Sheet1!S71_A5CapexCode,$AD:$AD)","v":0},{"$f":"SUMIFS(Sheet1!S71_PYearAmount,Sheet1!S71_SA34aCode,$AC:$AC,Sheet1!S71_A5CapexCode,$AD:$AD)","v":0},{"$f":"SUMIFS(Sheet1!S71_OriginalBudAmnt,Sheet1!S71_SA34aCode,$AC:$AC,Sheet1!S71_A5CapexCode,$AD:$AD)","v":0},{"$f":"SUMIFS(Sheet1!S71_AdjustmentBudAmnt,Sheet1!S71_SA34aCode,$AC:$AC,Sheet1!S71_A5CapexCode,$AD:$AD)","v":0},{"$f":"SUMIFS(Sheet1!S71_AdjustmentBudAmnt,Sheet1!S71_SA34aCode,$AC:$AC,Sheet1!S71_A5CapexCode,$AD:$AD)","v":0},{"$f":"SUMIFS(Sheet1!S71_ASBudgetAmount,Sheet1!S71_SA34aCode,$AC:$AC,Sheet1!S71_A5CapexCode,$AD:$AD)","v":0},{"$f":"SUMIFS(Sheet1!S71_OY1BudgetAmount,Sheet1!S71_SA34aCode,$AC:$AC,Sheet1!S71_A5CapexCode,$AD:$AD)","v":0},{"$f":"SUMIFS(Sheet1!S71_OY2BudgetAmount,Sheet1!S71_SA34aCode,$AC:$AC,Sheet1!S71_A5CapexCode,$AD:$AD)","v":0},null,null,null,null,null,null,null,null,null,null,null,null,null,null,null,null,null,"0170","CE"]
["Storm water Conveyance",null,{"$f":"SUMIFS(Sheet1!S71_PPPYearAmount,Sheet1!S71_SA34aCode,$AC:$AC,Sheet1!S71_A5CapexCode,$AD:$AD)","v":0},{"$f":"SUMIFS(Sheet1!S71_PPYearAmount,Sheet1!S71_SA34aCode,$AC:$AC,Sheet1!S71_A5CapexCode,$AD:$AD)","v":0},{"$f":"SUMIFS(Sheet1!S71_PYearAmount,Sheet1!S71_SA34aCode,$AC:$AC,Sheet1!S71_A5CapexCode,$AD:$AD)","v":0},{"$f":"SUMIFS(Sheet1!S71_OriginalBudAmnt,Sheet1!S71_SA34aCode,$AC:$AC,Sheet1!S71_A5CapexCode,$AD:$AD)","v":0},{"$f":"SUMIFS(Sheet1!S71_AdjustmentBudAmnt,Sheet1!S71_SA34aCode,$AC:$AC,Sheet1!S71_A5CapexCode,$AD:$AD)","v":0},{"$f":"SUMIFS(Sheet1!S71_AdjustmentBudAmnt,Sheet1!S71_SA34aCode,$AC:$AC,Sheet1!S71_A5CapexCode,$AD:$AD)","v":0},{"$f":"SUMIFS(Sheet1!S71_ASBudgetAmount,Sheet1!S71_SA34aCode,$AC:$AC,Sheet1!S71_A5CapexCode,$AD:$AD)","v":0},{"$f":"SUMIFS(Sheet1!S71_OY1BudgetAmount,Sheet1!S71_SA34aCode,$AC:$AC,Sheet1!S71_A5CapexCode,$AD:$AD)","v":0},{"$f":"SUMIFS(Sheet1!S71_OY2BudgetAmount,Sheet1!S71_SA34aCode,$AC:$AC,Sheet1!S71_A5CapexCode,$AD:$AD)","v":0},null,null,null,null,null,null,null,null,null,null,null,null,null,null,null,null,null,"0180","CE"]
["Attenuation",null,{"$f":"SUMIFS(Sheet1!S71_PPPYearAmount,Sheet1!S71_SA34aCode,$AC:$AC,Sheet1!S71_A5CapexCode,$AD:$AD)","v":0},{"$f":"SUMIFS(Sheet1!S71_PPYearAmount,Sheet1!S71_SA34aCode,$AC:$AC,Sheet1!S71_A5CapexCode,$AD:$AD)","v":0},{"$f":"SUMIFS(Sheet1!S71_PYearAmount,Sheet1!S71_SA34aCode,$AC:$AC,Sheet1!S71_A5CapexCode,$AD:$AD)","v":0},{"$f":"SUMIFS(Sheet1!S71_OriginalBudAmnt,Sheet1!S71_SA34aCode,$AC:$AC,Sheet1!S71_A5CapexCode,$AD:$AD)","v":0},{"$f":"SUMIFS(Sheet1!S71_AdjustmentBudAmnt,Sheet1!S71_SA34aCode,$AC:$AC,Sheet1!S71_A5CapexCode,$AD:$AD)","v":0},{"$f":"SUMIFS(Sheet1!S71_AdjustmentBudAmnt,Sheet1!S71_SA34aCode,$AC:$AC,Sheet1!S71_A5CapexCode,$AD:$AD)","v":0},{"$f":"SUMIFS(Sheet1!S71_ASBudgetAmount,Sheet1!S71_SA34aCode,$AC:$AC,Sheet1!S71_A5CapexCode,$AD:$AD)","v":0},{"$f":"SUMIFS(Sheet1!S71_OY1BudgetAmount,Sheet1!S71_SA34aCode,$AC:$AC,Sheet1!S71_A5CapexCode,$AD:$AD)","v":0},{"$f":"SUMIFS(Sheet1!S71_OY2BudgetAmount,Sheet1!S71_SA34aCode,$AC:$AC,Sheet1!S71_A5CapexCode,$AD:$AD)","v":0},null,null,null,null,null,null,null,null,null,null,null,null,null,null,null,null,null,"0190","CE"]
["Electrical Infrastructure",null,{"$f":"SUM(C17:C25)","v":0},0,0,0,0,0,0,0,0,null,null,null,null,null,null,null,null,null,null,null,null,null,null,null,null,null,null,"CE"]
["Power Plants",null,{"$f":"SUMIFS(Sheet1!S71_PPPYearAmount,Sheet1!S71_SA34aCode,$AC:$AC,Sheet1!S71_A5CapexCode,$AD:$AD)","v":0},{"$f":"SUMIFS(Sheet1!S71_PPYearAmount,Sheet1!S71_SA34aCode,$AC:$AC,Sheet1!S71_A5CapexCode,$AD:$AD)","v":0},{"$f":"SUMIFS(Sheet1!S71_PYearAmount,Sheet1!S71_SA34aCode,$AC:$AC,Sheet1!S71_A5CapexCode,$AD:$AD)","v":0},{"$f":"SUMIFS(Sheet1!S71_OriginalBudAmnt,Sheet1!S71_SA34aCode,$AC:$AC,Sheet1!S71_A5CapexCode,$AD:$AD)","v":0},{"$f":"SUMIFS(Sheet1!S71_AdjustmentBudAmnt,Sheet1!S71_SA34aCode,$AC:$AC,Sheet1!S71_A5CapexCode,$AD:$AD)","v":0},{"$f":"SUMIFS(Sheet1!S71_AdjustmentBudAmnt,Sheet1!S71_SA34aCode,$AC:$AC,Sheet1!S71_A5CapexCode,$AD:$AD)","v":0},{"$f":"SUMIFS(Sheet1!S71_ASBudgetAmount,Sheet1!S71_SA34aCode,$AC:$AC,Sheet1!S71_A5CapexCode,$AD:$AD)","v":0},{"$f":"SUMIFS(Sheet1!S71_OY1BudgetAmount,Sheet1!S71_SA34aCode,$AC:$AC,Sheet1!S71_A5CapexCode,$AD:$AD)","v":0},{"$f":"SUMIFS(Sheet1!S71_OY2BudgetAmount,Sheet1!S71_SA34aCode,$AC:$AC,Sheet1!S71_A5CapexCode,$AD:$AD)","v":0},null,null,null,null,null,null,null,null,null,null,null,null,null,null,null,null,null,"0210","CE"]
["HV Substations",null,{"$f":"SUMIFS(Sheet1!S71_PPPYearAmount,Sheet1!S71_SA34aCode,$AC:$AC,Sheet1!S71_A5CapexCode,$AD:$AD)","v":0},{"$f":"SUMIFS(Sheet1!S71_PPYearAmount,Sheet1!S71_SA34aCode,$AC:$AC,Sheet1!S71_A5CapexCode,$AD:$AD)","v":0},{"$f":"SUMIFS(Sheet1!S71_PYearAmount,Sheet1!S71_SA34aCode,$AC:$AC,Sheet1!S71_A5CapexCode,$AD:$AD)","v":0},{"$f":"SUMIFS(Sheet1!S71_OriginalBudAmnt,Sheet1!S71_SA34aCode,$AC:$AC,Sheet1!S71_A5CapexCode,$AD:$AD)","v":0},{"$f":"SUMIFS(Sheet1!S71_AdjustmentBudAmnt,Sheet1!S71_SA34aCode,$AC:$AC,Sheet1!S71_A5CapexCode,$AD:$AD)","v":0},{"$f":"SUMIFS(Sheet1!S71_AdjustmentBudAmnt,Sheet1!S71_SA34aCode,$AC:$AC,Sheet1!S71_A5CapexCode,$AD:$AD)","v":0},{"$f":"SUMIFS(Sheet1!S71_ASBudgetAmount,Sheet1!S71_SA34aCode,$AC:$AC,Sheet1!S71_A5CapexCode,$AD:$AD)","v":0},{"$f":"SUMIFS(Sheet1!S71_OY1BudgetAmount,Sheet1!S71_SA34aCode,$AC:$AC,Sheet1!S71_A5CapexCode,$AD:$AD)","v":0},{"$f":"SUMIFS(Sheet1!S71_OY2BudgetAmount,Sheet1!S71_SA34aCode,$AC:$AC,Sheet1!S71_A5CapexCode,$AD:$AD)","v":0},null,null,null,null,null,null,null,null,null,null,null,null,null,null,null,null,null,"0220","CE"]
["HV Switching Station",null,{"$f":"SUMIFS(Sheet1!S71_PPPYearAmount,Sheet1!S71_SA34aCode,$AC:$AC,Sheet1!S71_A5CapexCode,$AD:$AD)","v":0},{"$f":"SUMIFS(Sheet1!S71_PPYearAmount,Sheet1!S71_SA34aCode,$AC:$AC,Sheet1!S71_A5CapexCode,$AD:$AD)","v":0},{"$f":"SUMIFS(Sheet1!S71_PYearAmount,Sheet1!S71_SA34aCode,$AC:$AC,Sheet1!S71_A5CapexCode,$AD:$AD)","v":0},{"$f":"SUMIFS(Sheet1!S71_OriginalBudAmnt,Sheet1!S71_SA34aCode,$AC:$AC,Sheet1!S71_A5CapexCode,$AD:$AD)","v":0},{"$f":"SUMIFS(Sheet1!S71_AdjustmentBudAmnt,Sheet1!S71_SA34aCode,$AC:$AC,Sheet1!S71_A5CapexCode,$AD:$AD)","v":0},{"$f":"SUMIFS(Sheet1!S71_AdjustmentBudAmnt,Sheet1!S71_SA34aCode,$AC:$AC,Sheet1!S71_A5CapexCode,$AD:$AD)","v":0},{"$f":"SUMIFS(Sheet1!S71_ASBudgetAmount,Sheet1!S71_SA34aCode,$AC:$AC,Sheet1!S71_A5CapexCode,$AD:$AD)","v":0},{"$f":"SUMIFS(Sheet1!S71_OY1BudgetAmount,Sheet1!S71_SA34aCode,$AC:$AC,Sheet1!S71_A5CapexCode,$AD:$AD)","v":0},{"$f":"SUMIFS(Sheet1!S71_OY2BudgetAmount,Sheet1!S71_SA34aCode,$AC:$AC,Sheet1!S71_A5CapexCode,$AD:$AD)","v":0},null,null,null,null,null,null,null,null,null,null,null,null,null,null,null,null,null,"0230","CE"]
["HV Transmission Conductors",null,{"$f":"SUMIFS(Sheet1!S71_PPPYearAmount,Sheet1!S71_SA34aCode,$AC:$AC,Sheet1!S71_A5CapexCode,$AD:$AD)","v":0},{"$f":"SUMIFS(Sheet1!S71_PPYearAmount,Sheet1!S71_SA34aCode,$AC:$AC,Sheet1!S71_A5CapexCode,$AD:$AD)","v":0},{"$f":"SUMIFS(Sheet1!S71_PYearAmount,Sheet1!S71_SA34aCode,$AC:$AC,Sheet1!S71_A5CapexCode,$AD:$AD)","v":0},{"$f":"SUMIFS(Sheet1!S71_OriginalBudAmnt,Sheet1!S71_SA34aCode,$AC:$AC,Sheet1!S71_A5CapexCode,$AD:$AD)","v":0},{"$f":"SUMIFS(Sheet1!S71_AdjustmentBudAmnt,Sheet1!S71_SA34aCode,$AC:$AC,Sheet1!S71_A5CapexCode,$AD:$AD)","v":0},{"$f":"SUMIFS(Sheet1!S71_AdjustmentBudAmnt,Sheet1!S71_SA34aCode,$AC:$AC,Sheet1!S71_A5CapexCode,$AD:$AD)","v":0},{"$f":"SUMIFS(Sheet1!S71_ASBudgetAmount,Sheet1!S71_SA34aCode,$AC:$AC,Sheet1!S71_A5CapexCode,$AD:$AD)","v":0},{"$f":"SUMIFS(Sheet1!S71_OY1BudgetAmount,Sheet1!S71_SA34aCode,$AC:$AC,Sheet1!S71_A5CapexCode,$AD:$AD)","v":0},{"$f":"SUMIFS(Sheet1!S71_OY2BudgetAmount,Sheet1!S71_SA34aCode,$AC:$AC,Sheet1!S71_A5CapexCode,$AD:$AD)","v":0},null,null,null,null,null,null,null,null,null,null,null,null,null,null,null,null,null,"0240","CE"]
["MV Substations",null,{"$f":"SUMIFS(Sheet1!S71_PPPYearAmount,Sheet1!S71_SA34aCode,$AC:$AC,Sheet1!S71_A5CapexCode,$AD:$AD)","v":0},{"$f":"SUMIFS(Sheet1!S71_PPYearAmount,Sheet1!S71_SA34aCode,$AC:$AC,Sheet1!S71_A5CapexCode,$AD:$AD)","v":0},{"$f":"SUMIFS(Sheet1!S71_PYearAmount,Sheet1!S71_SA34aCode,$AC:$AC,Sheet1!S71_A5CapexCode,$AD:$AD)","v":0},{"$f":"SUMIFS(Sheet1!S71_OriginalBudAmnt,Sheet1!S71_SA34aCode,$AC:$AC,Sheet1!S71_A5CapexCode,$AD:$AD)","v":0},{"$f":"SUMIFS(Sheet1!S71_AdjustmentBudAmnt,Sheet1!S71_SA34aCode,$AC:$AC,Sheet1!S71_A5CapexCode,$AD:$AD)","v":0},{"$f":"SUMIFS(Sheet1!S71_AdjustmentBudAmnt,Sheet1!S71_SA34aCode,$AC:$AC,Sheet1!S71_A5CapexCode,$AD:$AD)","v":0},{"$f":"SUMIFS(Sheet1!S71_ASBudgetAmount,Sheet1!S71_SA34aCode,$AC:$AC,Sheet1!S71_A5CapexCode,$AD:$AD)","v":0},{"$f":"SUMIFS(Sheet1!S71_OY1BudgetAmount,Sheet1!S71_SA34aCode,$AC:$AC,Sheet1!S71_A5CapexCode,$AD:$AD)","v":0},{"$f":"SUMIFS(Sheet1!S71_OY2BudgetAmount,Sheet1!S71_SA34aCode,$AC:$AC,Sheet1!S71_A5CapexCode,$AD:$AD)","v":0},null,null,null,null,null,null,null,null,null,null,null,null,null,null,null,null,null,"0250","CE"]
["MV Switching Stations",null,{"$f":"SUMIFS(Sheet1!S71_PPPYearAmount,Sheet1!S71_SA34aCode,$AC:$AC,Sheet1!S71_A5CapexCode,$AD:$AD)","v":0},{"$f":"SUMIFS(Sheet1!S71_PPYearAmount,Sheet1!S71_SA34aCode,$AC:$AC,Sheet1!S71_A5CapexCode,$AD:$AD)","v":0},{"$f":"SUMIFS(Sheet1!S71_PYearAmount,Sheet1!S71_SA34aCode,$AC:$AC,Sheet1!S71_A5CapexCode,$AD:$AD)","v":0},{"$f":"SUMIFS(Sheet1!S71_OriginalBudAmnt,Sheet1!S71_SA34aCode,$AC:$AC,Sheet1!S71_A5CapexCode,$AD:$AD)","v":0},{"$f":"SUMIFS(Sheet1!S71_AdjustmentBudAmnt,Sheet1!S71_SA34aCode,$AC:$AC,Sheet1!S71_A5CapexCode,$AD:$AD)","v":0},{"$f":"SUMIFS(Sheet1!S71_AdjustmentBudAmnt,Sheet1!S71_SA34aCode,$AC:$AC,Sheet1!S71_A5CapexCode,$AD:$AD)","v":0},{"$f":"SUMIFS(Sheet1!S71_ASBudgetAmount,Sheet1!S71_SA34aCode,$AC:$AC,Sheet1!S71_A5CapexCode,$AD:$AD)","v":0},{"$f":"SUMIFS(Sheet1!S71_OY1BudgetAmount,Sheet1!S71_SA34aCode,$AC:$AC,Sheet1!S71_A5CapexCode,$AD:$AD)","v":0},{"$f":"SUMIFS(Sheet1!S71_OY2BudgetAmount,Sheet1!S71_SA34aCode,$AC:$AC,Sheet1!S71_A5CapexCode,$AD:$AD)","v":0},null,null,null,null,null,null,null,null,null,null,null,null,null,null,null,null,null,"0260","CE"]
["MV Networks",null,{"$f":"SUMIFS(Sheet1!S71_PPPYearAmount,Sheet1!S71_SA34aCode,$AC:$AC,Sheet1!S71_A5CapexCode,$AD:$AD)","v":0},{"$f":"SUMIFS(Sheet1!S71_PPYearAmount,Sheet1!S71_SA34aCode,$AC:$AC,Sheet1!S71_A5CapexCode,$AD:$AD)","v":0},{"$f":"SUMIFS(Sheet1!S71_PYearAmount,Sheet1!S71_SA34aCode,$AC:$AC,Sheet1!S71_A5CapexCode,$AD:$AD)","v":0},{"$f":"SUMIFS(Sheet1!S71_OriginalBudAmnt,Sheet1!S71_SA34aCode,$AC:$AC,Sheet1!S71_A5CapexCode,$AD:$AD)","v":0},{"$f":"SUMIFS(Sheet1!S71_AdjustmentBudAmnt,Sheet1!S71_SA34aCode,$AC:$AC,Sheet1!S71_A5CapexCode,$AD:$AD)","v":0},{"$f":"SUMIFS(Sheet1!S71_AdjustmentBudAmnt,Sheet1!S71_SA34aCode,$AC:$AC,Sheet1!S71_A5CapexCode,$AD:$AD)","v":0},{"$f":"SUMIFS(Sheet1!S71_ASBudgetAmount,Sheet1!S71_SA34aCode,$AC:$AC,Sheet1!S71_A5CapexCode,$AD:$AD)","v":0},{"$f":"SUMIFS(Sheet1!S71_OY1BudgetAmount,Sheet1!S71_SA34aCode,$AC:$AC,Sheet1!S71_A5CapexCode,$AD:$AD)","v":0},{"$f":"SUMIFS(Sheet1!S71_OY2BudgetAmount,Sheet1!S71_SA34aCode,$AC:$AC,Sheet1!S71_A5CapexCode,$AD:$AD)","v":0},null,null,null,null,null,null,null,null,null,null,null,null,null,null,null,null,null,"0270","CE"]
["LV Networks",null,{"$f":"SUMIFS(Sheet1!S71_PPPYearAmount,Sheet1!S71_SA34aCode,$AC:$AC,Sheet1!S71_A5CapexCode,$AD:$AD)","v":0},{"$f":"SUMIFS(Sheet1!S71_PPYearAmount,Sheet1!S71_SA34aCode,$AC:$AC,Sheet1!S71_A5CapexCode,$AD:$AD)","v":0},{"$f":"SUMIFS(Sheet1!S71_PYearAmount,Sheet1!S71_SA34aCode,$AC:$AC,Sheet1!S71_A5CapexCode,$AD:$AD)","v":0},{"$f":"SUMIFS(Sheet1!S71_OriginalBudAmnt,Sheet1!S71_SA34aCode,$AC:$AC,Sheet1!S71_A5CapexCode,$AD:$AD)","v":0},{"$f":"SUMIFS(Sheet1!S71_AdjustmentBudAmnt,Sheet1!S71_SA34aCode,$AC:$AC,Sheet1!S71_A5CapexCode,$AD:$AD)","v":0},{"$f":"SUMIFS(Sheet1!S71_AdjustmentBudAmnt,Sheet1!S71_SA34aCode,$AC:$AC,Sheet1!S71_A5CapexCode,$AD:$AD)","v":0},{"$f":"SUMIFS(Sheet1!S71_ASBudgetAmount,Sheet1!S71_SA34aCode,$AC:$AC,Sheet1!S71_A5CapexCode,$AD:$AD)","v":0},{"$f":"SUMIFS(Sheet1!S71_OY1BudgetAmount,Sheet1!S71_SA34aCode,$AC:$AC,Sheet1!S71_A5CapexCode,$AD:$AD)","v":0},{"$f":"SUMIFS(Sheet1!S71_OY2BudgetAmount,Sheet1!S71_SA34aCode,$AC:$AC,Sheet1!S71_A5CapexCode,$AD:$AD)","v":0},null,null,null,null,null,null,null,null,null,null,null,null,null,null,null,null,null,"0280","CE"]
["Capital Spares",null,{"$f":"SUMIFS(Sheet1!S71_PPPYearAmount,Sheet1!S71_SA34aCode,$AC:$AC,Sheet1!S71_A5CapexCode,$AD:$AD)","v":0},{"$f":"SUMIFS(Sheet1!S71_PPYearAmount,Sheet1!S71_SA34aCode,$AC:$AC,Sheet1!S71_A5CapexCode,$AD:$AD)","v":0},{"$f":"SUMIFS(Sheet1!S71_PYearAmount,Sheet1!S71_SA34aCode,$AC:$AC,Sheet1!S71_A5CapexCode,$AD:$AD)","v":0},{"$f":"SUMIFS(Sheet1!S71_OriginalBudAmnt,Sheet1!S71_SA34aCode,$AC:$AC,Sheet1!S71_A5CapexCode,$AD:$AD)","v":0},{"$f":"SUMIFS(Sheet1!S71_AdjustmentBudAmnt,Sheet1!S71_SA34aCode,$AC:$AC,Sheet1!S71_A5CapexCode,$AD:$AD)","v":0},{"$f":"SUMIFS(Sheet1!S71_AdjustmentBudAmnt,Sheet1!S71_SA34aCode,$AC:$AC,Sheet1!S71_A5CapexCode,$AD:$AD)","v":0},{"$f":"SUMIFS(Sheet1!S71_ASBudgetAmount,Sheet1!S71_SA34aCode,$AC:$AC,Sheet1!S71_A5CapexCode,$AD:$AD)","v":0},{"$f":"SUMIFS(Sheet1!S71_OY1BudgetAmount,Sheet1!S71_SA34aCode,$AC:$AC,Sheet1!S71_A5CapexCode,$AD:$AD)","v":0},{"$f":"SUMIFS(Sheet1!S71_OY2BudgetAmount,Sheet1!S71_SA34aCode,$AC:$AC,Sheet1!S71_A5CapexCode,$AD:$AD)","v":0},null,null,null,null,null,null,null,null,null,null,null,null,null,null,null,null,null,"0290","CE"]
["Water Supply Infrastructure",null,{"$f":"SUM(C27:C36)","v":0},{"$f":"SUM(D27:D36)","v":0},0,0,0,0,0,0,0,null,null,null,null,null,null,null,null,null,null,null,null,null,null,null,null,null,null,"CE"]
["Dams and Weirs",null,{"$f":"SUMIFS(Sheet1!S71_PPPYearAmount,Sheet1!S71_SA34aCode,$AC:$AC,Sheet1!S71_A5CapexCode,$AD:$AD)","v":0},{"$f":"SUMIFS(Sheet1!S71_PPYearAmount,Sheet1!S71_SA34aCode,$AC:$AC,Sheet1!S71_A5CapexCode,$AD:$AD)","v":0},{"$f":"SUMIFS(Sheet1!S71_PYearAmount,Sheet1!S71_SA34aCode,$AC:$AC,Sheet1!S71_A5CapexCode,$AD:$AD)","v":0},{"$f":"SUMIFS(Sheet1!S71_OriginalBudAmnt,Sheet1!S71_SA34aCode,$AC:$AC,Sheet1!S71_A5CapexCode,$AD:$AD)","v":0},{"$f":"SUMIFS(Sheet1!S71_AdjustmentBudAmnt,Sheet1!S71_SA34aCode,$AC:$AC,Sheet1!S71_A5CapexCode,$AD:$AD)","v":0},{"$f":"SUMIFS(Sheet1!S71_AdjustmentBudAmnt,Sheet1!S71_SA34aCode,$AC:$AC,Sheet1!S71_A5CapexCode,$AD:$AD)","v":0},{"$f":"SUMIFS(Sheet1!S71_ASBudgetAmount,Sheet1!S71_SA34aCode,$AC:$AC,Sheet1!S71_A5CapexCode,$AD:$AD)","v":0},{"$f":"SUMIFS(Sheet1!S71_OY1BudgetAmount,Sheet1!S71_SA34aCode,$AC:$AC,Sheet1!S71_A5CapexCode,$AD:$AD)","v":0},{"$f":"SUMIFS(Sheet1!S71_OY2BudgetAmount,Sheet1!S71_SA34aCode,$AC:$AC,Sheet1!S71_A5CapexCode,$AD:$AD)","v":0},null,null,null,null,null,null,null,null,null,null,null,null,null,null,null,null,null,"0310","CE"]
["Boreholes",null,{"$f":"SUMIFS(Sheet1!S71_PPPYearAmount,Sheet1!S71_SA34aCode,$AC:$AC,Sheet1!S71_A5CapexCode,$AD:$AD)","v":0},{"$f":"SUMIFS(Sheet1!S71_PPYearAmount,Sheet1!S71_SA34aCode,$AC:$AC,Sheet1!S71_A5CapexCode,$AD:$AD)","v":0},{"$f":"SUMIFS(Sheet1!S71_PYearAmount,Sheet1!S71_SA34aCode,$AC:$AC,Sheet1!S71_A5CapexCode,$AD:$AD)","v":0},{"$f":"SUMIFS(Sheet1!S71_OriginalBudAmnt,Sheet1!S71_SA34aCode,$AC:$AC,Sheet1!S71_A5CapexCode,$AD:$AD)","v":0},{"$f":"SUMIFS(Sheet1!S71_AdjustmentBudAmnt,Sheet1!S71_SA34aCode,$AC:$AC,Sheet1!S71_A5CapexCode,$AD:$AD)","v":0},{"$f":"SUMIFS(Sheet1!S71_AdjustmentBudAmnt,Sheet1!S71_SA34aCode,$AC:$AC,Sheet1!S71_A5CapexCode,$AD:$AD)","v":0},{"$f":"SUMIFS(Sheet1!S71_ASBudgetAmount,Sheet1!S71_SA34aCode,$AC:$AC,Sheet1!S71_A5CapexCode,$AD:$AD)","v":0},{"$f":"SUMIFS(Sheet1!S71_OY1BudgetAmount,Sheet1!S71_SA34aCode,$AC:$AC,Sheet1!S71_A5CapexCode,$AD:$AD)","v":0},{"$f":"SUMIFS(Sheet1!S71_OY2BudgetAmount,Sheet1!S71_SA34aCode,$AC:$AC,Sheet1!S71_A5CapexCode,$AD:$AD)","v":0},null,null,null,null,null,null,null,null,null,null,null,null,null,null,null,null,null,"0320","CE"]
["Reservoirs",null,{"$f":"SUMIFS(Sheet1!S71_PPPYearAmount,Sheet1!S71_SA34aCode,$AC:$AC,Sheet1!S71_A5CapexCode,$AD:$AD)","v":0},{"$f":"SUMIFS(Sheet1!S71_PPYearAmount,Sheet1!S71_SA34aCode,$AC:$AC,Sheet1!S71_A5CapexCode,$AD:$AD)","v":0},{"$f":"SUMIFS(Sheet1!S71_PYearAmount,Sheet1!S71_SA34aCode,$AC:$AC,Sheet1!S71_A5CapexCode,$AD:$AD)","v":0},{"$f":"SUMIFS(Sheet1!S71_OriginalBudAmnt,Sheet1!S71_SA34aCode,$AC:$AC,Sheet1!S71_A5CapexCode,$AD:$AD)","v":0},{"$f":"SUMIFS(Sheet1!S71_AdjustmentBudAmnt,Sheet1!S71_SA34aCode,$AC:$AC,Sheet1!S71_A5CapexCode,$AD:$AD)","v":0},{"$f":"SUMIFS(Sheet1!S71_AdjustmentBudAmnt,Sheet1!S71_SA34aCode,$AC:$AC,Sheet1!S71_A5CapexCode,$AD:$AD)","v":0},{"$f":"SUMIFS(Sheet1!S71_ASBudgetAmount,Sheet1!S71_SA34aCode,$AC:$AC,Sheet1!S71_A5CapexCode,$AD:$AD)","v":0},{"$f":"SUMIFS(Sheet1!S71_OY1BudgetAmount,Sheet1!S71_SA34aCode,$AC:$AC,Sheet1!S71_A5CapexCode,$AD:$AD)","v":0},{"$f":"SUMIFS(Sheet1!S71_OY2BudgetAmount,Sheet1!S71_SA34aCode,$AC:$AC,Sheet1!S71_A5CapexCode,$AD:$AD)","v":0},null,null,null,null,null,null,null,null,null,null,null,null,null,null,null,null,null,"0330","CE"]
["Pump Stations",null,{"$f":"SUMIFS(Sheet1!S71_PPPYearAmount,Sheet1!S71_SA34aCode,$AC:$AC,Sheet1!S71_A5CapexCode,$AD:$AD)","v":0},{"$f":"SUMIFS(Sheet1!S71_PPYearAmount,Sheet1!S71_SA34aCode,$AC:$AC,Sheet1!S71_A5CapexCode,$AD:$AD)","v":0},{"$f":"SUMIFS(Sheet1!S71_PYearAmount,Sheet1!S71_SA34aCode,$AC:$AC,Sheet1!S71_A5CapexCode,$AD:$AD)","v":0},{"$f":"SUMIFS(Sheet1!S71_OriginalBudAmnt,Sheet1!S71_SA34aCode,$AC:$AC,Sheet1!S71_A5CapexCode,$AD:$AD)","v":0},{"$f":"SUMIFS(Sheet1!S71_AdjustmentBudAmnt,Sheet1!S71_SA34aCode,$AC:$AC,Sheet1!S71_A5CapexCode,$AD:$AD)","v":0},{"$f":"SUMIFS(Sheet1!S71_AdjustmentBudAmnt,Sheet1!S71_SA34aCode,$AC:$AC,Sheet1!S71_A5CapexCode,$AD:$AD)","v":0},{"$f":"SUMIFS(Sheet1!S71_ASBudgetAmount,Sheet1!S71_SA34aCode,$AC:$AC,Sheet1!S71_A5CapexCode,$AD:$AD)","v":0},{"$f":"SUMIFS(Sheet1!S71_OY1BudgetAmount,Sheet1!S71_SA34aCode,$AC:$AC,Sheet1!S71_A5CapexCode,$AD:$AD)","v":0},{"$f":"SUMIFS(Sheet1!S71_OY2BudgetAmount,Sheet1!S71_SA34aCode,$AC:$AC,Sheet1!S71_A5CapexCode,$AD:$AD)","v":0},null,null,null,null,null,null,null,null,null,null,null,null,null,null,null,null,null,"0340","CE"]
["Water Treatment Works",null,{"$f":"SUMIFS(Sheet1!S71_PPPYearAmount,Sheet1!S71_SA34aCode,$AC:$AC,Sheet1!S71_A5CapexCode,$AD:$AD)","v":0},{"$f":"SUMIFS(Sheet1!S71_PPYearAmount,Sheet1!S71_SA34aCode,$AC:$AC,Sheet1!S71_A5CapexCode,$AD:$AD)","v":0},{"$f":"SUMIFS(Sheet1!S71_PYearAmount,Sheet1!S71_SA34aCode,$AC:$AC,Sheet1!S71_A5CapexCode,$AD:$AD)","v":0},{"$f":"SUMIFS(Sheet1!S71_OriginalBudAmnt,Sheet1!S71_SA34aCode,$AC:$AC,Sheet1!S71_A5CapexCode,$AD:$AD)","v":0},{"$f":"SUMIFS(Sheet1!S71_AdjustmentBudAmnt,Sheet1!S71_SA34aCode,$AC:$AC,Sheet1!S71_A5CapexCode,$AD:$AD)","v":0},{"$f":"SUMIFS(Sheet1!S71_AdjustmentBudAmnt,Sheet1!S71_SA34aCode,$AC:$AC,Sheet1!S71_A5CapexCode,$AD:$AD)","v":0},{"$f":"SUMIFS(Sheet1!S71_ASBudgetAmount,Sheet1!S71_SA34aCode,$AC:$AC,Sheet1!S71_A5CapexCode,$AD:$AD)","v":0},{"$f":"SUMIFS(Sheet1!S71_OY1BudgetAmount,Sheet1!S71_SA34aCode,$AC:$AC,Sheet1!S71_A5CapexCode,$AD:$AD)","v":0},{"$f":"SUMIFS(Sheet1!S71_OY2BudgetAmount,Sheet1!S71_SA34aCode,$AC:$AC,Sheet1!S71_A5CapexCode,$AD:$AD)","v":0},null,null,null,null,null,null,null,null,null,null,null,null,null,null,null,null,null,"0350","CE"]
["Bulk Mains",null,{"$f":"SUMIFS(Sheet1!S71_PPPYearAmount,Sheet1!S71_SA34aCode,$AC:$AC,Sheet1!S71_A5CapexCode,$AD:$AD)","v":0},{"$f":"SUMIFS(Sheet1!S71_PPYearAmount,Sheet1!S71_SA34aCode,$AC:$AC,Sheet1!S71_A5CapexCode,$AD:$AD)","v":0},{"$f":"SUMIFS(Sheet1!S71_PYearAmount,Sheet1!S71_SA34aCode,$AC:$AC,Sheet1!S71_A5CapexCode,$AD:$AD)","v":0},{"$f":"SUMIFS(Sheet1!S71_OriginalBudAmnt,Sheet1!S71_SA34aCode,$AC:$AC,Sheet1!S71_A5CapexCode,$AD:$AD)","v":0},{"$f":"SUMIFS(Sheet1!S71_AdjustmentBudAmnt,Sheet1!S71_SA34aCode,$AC:$AC,Sheet1!S71_A5CapexCode,$AD:$AD)","v":0},{"$f":"SUMIFS(Sheet1!S71_AdjustmentBudAmnt,Sheet1!S71_SA34aCode,$AC:$AC,Sheet1!S71_A5CapexCode,$AD:$AD)","v":0},{"$f":"SUMIFS(Sheet1!S71_ASBudgetAmount,Sheet1!S71_SA34aCode,$AC:$AC,Sheet1!S71_A5CapexCode,$AD:$AD)","v":0},{"$f":"SUMIFS(Sheet1!S71_OY1BudgetAmount,Sheet1!S71_SA34aCode,$AC:$AC,Sheet1!S71_A5CapexCode,$AD:$AD)","v":0},{"$f":"SUMIFS(Sheet1!S71_OY2BudgetAmount,Sheet1!S71_SA34aCode,$AC:$AC,Sheet1!S71_A5CapexCode,$AD:$AD)","v":0},null,null,null,null,null,null,null,null,null,null,null,null,null,null,null,null,null,"0360","CE"]
["Distribution",null,{"$f":"SUMIFS(Sheet1!S71_PPPYearAmount,Sheet1!S71_SA34aCode,$AC:$AC,Sheet1!S71_A5CapexCode,$AD:$AD)","v":0},{"$f":"SUMIFS(Sheet1!S71_PPYearAmount,Sheet1!S71_SA34aCode,$AC:$AC,Sheet1!S71_A5CapexCode,$AD:$AD)","v":0},{"$f":"SUMIFS(Sheet1!S71_PYearAmount,Sheet1!S71_SA34aCode,$AC:$AC,Sheet1!S71_A5CapexCode,$AD:$AD)","v":0},{"$f":"SUMIFS(Sheet1!S71_OriginalBudAmnt,Sheet1!S71_SA34aCode,$AC:$AC,Sheet1!S71_A5CapexCode,$AD:$AD)","v":0},{"$f":"SUMIFS(Sheet1!S71_AdjustmentBudAmnt,Sheet1!S71_SA34aCode,$AC:$AC,Sheet1!S71_A5CapexCode,$AD:$AD)","v":0},{"$f":"SUMIFS(Sheet1!S71_AdjustmentBudAmnt,Sheet1!S71_SA34aCode,$AC:$AC,Sheet1!S71_A5CapexCode,$AD:$AD)","v":0},{"$f":"SUMIFS(Sheet1!S71_ASBudgetAmount,Sheet1!S71_SA34aCode,$AC:$AC,Sheet1!S71_A5CapexCode,$AD:$AD)","v":0},{"$f":"SUMIFS(Sheet1!S71_OY1BudgetAmount,Sheet1!S71_SA34aCode,$AC:$AC,Sheet1!S71_A5CapexCode,$AD:$AD)","v":0},{"$f":"SUMIFS(Sheet1!S71_OY2BudgetAmount,Sheet1!S71_SA34aCode,$AC:$AC,Sheet1!S71_A5CapexCode,$AD:$AD)","v":0},null,null,null,null,null,null,null,null,null,null,null,null,null,null,null,null,null,"0370","CE"]
["Distribution Points",null,{"$f":"SUMIFS(Sheet1!S71_PPPYearAmount,Sheet1!S71_SA34aCode,$AC:$AC,Sheet1!S71_A5CapexCode,$AD:$AD)","v":0},{"$f":"SUMIFS(Sheet1!S71_PPYearAmount,Sheet1!S71_SA34aCode,$AC:$AC,Sheet1!S71_A5CapexCode,$AD:$AD)","v":0},{"$f":"SUMIFS(Sheet1!S71_PYearAmount,Sheet1!S71_SA34aCode,$AC:$AC,Sheet1!S71_A5CapexCode,$AD:$AD)","v":0},{"$f":"SUMIFS(Sheet1!S71_OriginalBudAmnt,Sheet1!S71_SA34aCode,$AC:$AC,Sheet1!S71_A5CapexCode,$AD:$AD)","v":0},{"$f":"SUMIFS(Sheet1!S71_AdjustmentBudAmnt,Sheet1!S71_SA34aCode,$AC:$AC,Sheet1!S71_A5CapexCode,$AD:$AD)","v":0},{"$f":"SUMIFS(Sheet1!S71_AdjustmentBudAmnt,Sheet1!S71_SA34aCode,$AC:$AC,Sheet1!S71_A5CapexCode,$AD:$AD)","v":0},{"$f":"SUMIFS(Sheet1!S71_ASBudgetAmount,Sheet1!S71_SA34aCode,$AC:$AC,Sheet1!S71_A5CapexCode,$AD:$AD)","v":0},{"$f":"SUMIFS(Sheet1!S71_OY1BudgetAmount,Sheet1!S71_SA34aCode,$AC:$AC,Sheet1!S71_A5CapexCode,$AD:$AD)","v":0},{"$f":"SUMIFS(Sheet1!S71_OY2BudgetAmount,Sheet1!S71_SA34aCode,$AC:$AC,Sheet1!S71_A5CapexCode,$AD:$AD)","v":0},null,null,null,null,null,null,null,null,null,null,null,null,null,null,null,null,null,"0380","CE"]
["PRV Stations",null,{"$f":"SUMIFS(Sheet1!S71_PPPYearAmount,Sheet1!S71_SA34aCode,$AC:$AC,Sheet1!S71_A5CapexCode,$AD:$AD)","v":0},{"$f":"SUMIFS(Sheet1!S71_PPYearAmount,Sheet1!S71_SA34aCode,$AC:$AC,Sheet1!S71_A5CapexCode,$AD:$AD)","v":0},{"$f":"SUMIFS(Sheet1!S71_PYearAmount,Sheet1!S71_SA34aCode,$AC:$AC,Sheet1!S71_A5CapexCode,$AD:$AD)","v":0},{"$f":"SUMIFS(Sheet1!S71_OriginalBudAmnt,Sheet1!S71_SA34aCode,$AC:$AC,Sheet1!S71_A5CapexCode,$AD:$AD)","v":0},{"$f":"SUMIFS(Sheet1!S71_AdjustmentBudAmnt,Sheet1!S71_SA34aCode,$AC:$AC,Sheet1!S71_A5CapexCode,$AD:$AD)","v":0},{"$f":"SUMIFS(Sheet1!S71_AdjustmentBudAmnt,Sheet1!S71_SA34aCode,$AC:$AC,Sheet1!S71_A5CapexCode,$AD:$AD)","v":0},{"$f":"SUMIFS(Sheet1!S71_ASBudgetAmount,Sheet1!S71_SA34aCode,$AC:$AC,Sheet1!S71_A5CapexCode,$AD:$AD)","v":0},{"$f":"SUMIFS(Sheet1!S71_OY1BudgetAmount,Sheet1!S71_SA34aCode,$AC:$AC,Sheet1!S71_A5CapexCode,$AD:$AD)","v":0},{"$f":"SUMIFS(Sheet1!S71_OY2BudgetAmount,Sheet1!S71_SA34aCode,$AC:$AC,Sheet1!S71_A5CapexCode,$AD:$AD)","v":0},null,null,null,null,null,null,null,null,null,null,null,null,null,null,null,null,null,"0390","CE"]
["Capital Spares",null,{"$f":"SUMIFS(Sheet1!S71_PPPYearAmount,Sheet1!S71_SA34aCode,$AC:$AC,Sheet1!S71_A5CapexCode,$AD:$AD)","v":0},{"$f":"SUMIFS(Sheet1!S71_PPYearAmount,Sheet1!S71_SA34aCode,$AC:$AC,Sheet1!S71_A5CapexCode,$AD:$AD)","v":0},{"$f":"SUMIFS(Sheet1!S71_PYearAmount,Sheet1!S71_SA34aCode,$AC:$AC,Sheet1!S71_A5CapexCode,$AD:$AD)","v":0},{"$f":"SUMIFS(Sheet1!S71_OriginalBudAmnt,Sheet1!S71_SA34aCode,$AC:$AC,Sheet1!S71_A5CapexCode,$AD:$AD)","v":0},{"$f":"SUMIFS(Sheet1!S71_AdjustmentBudAmnt,Sheet1!S71_SA34aCode,$AC:$AC,Sheet1!S71_A5CapexCode,$AD:$AD)","v":0},{"$f":"SUMIFS(Sheet1!S71_AdjustmentBudAmnt,Sheet1!S71_SA34aCode,$AC:$AC,Sheet1!S71_A5CapexCode,$AD:$AD)","v":0},{"$f":"SUMIFS(Sheet1!S71_ASBudgetAmount,Sheet1!S71_SA34aCode,$AC:$AC,Sheet1!S71_A5CapexCode,$AD:$AD)","v":0},{"$f":"SUMIFS(Sheet1!S71_OY1BudgetAmount,Sheet1!S71_SA34aCode,$AC:$AC,Sheet1!S71_A5CapexCode,$AD:$AD)","v":0},{"$f":"SUMIFS(Sheet1!S71_OY2BudgetAmount,Sheet1!S71_SA34aCode,$AC:$AC,Sheet1!S71_A5CapexCode,$AD:$AD)","v":0},null,null,null,null,null,null,null,null,null,null,null,null,null,null,null,null,null,"0400","CE"]
["Sanitation Infrastructure",null,{"$f":"SUM(C38:C43)","v":0},{"$f":"SUM(D38:D43)","v":0},0,0,0,0,0,0,0,null,null,null,null,null,null,null,null,null,null,null,null,null,null,null,null,null,null,"CE"]
["Pump Station",null,{"$f":"SUMIFS(Sheet1!S71_PPPYearAmount,Sheet1!S71_SA34aCode,$AC:$AC,Sheet1!S71_A5CapexCode,$AD:$AD)","v":0},{"$f":"SUMIFS(Sheet1!S71_PPYearAmount,Sheet1!S71_SA34aCode,$AC:$AC,Sheet1!S71_A5CapexCode,$AD:$AD)","v":0},{"$f":"SUMIFS(Sheet1!S71_PYearAmount,Sheet1!S71_SA34aCode,$AC:$AC,Sheet1!S71_A5CapexCode,$AD:$AD)","v":0},{"$f":"SUMIFS(Sheet1!S71_OriginalBudAmnt,Sheet1!S71_SA34aCode,$AC:$AC,Sheet1!S71_A5CapexCode,$AD:$AD)","v":0},{"$f":"SUMIFS(Sheet1!S71_AdjustmentBudAmnt,Sheet1!S71_SA34aCode,$AC:$AC,Sheet1!S71_A5CapexCode,$AD:$AD)","v":0},{"$f":"SUMIFS(Sheet1!S71_AdjustmentBudAmnt,Sheet1!S71_SA34aCode,$AC:$AC,Sheet1!S71_A5CapexCode,$AD:$AD)","v":0},{"$f":"SUMIFS(Sheet1!S71_ASBudgetAmount,Sheet1!S71_SA34aCode,$AC:$AC,Sheet1!S71_A5CapexCode,$AD:$AD)","v":0},{"$f":"SUMIFS(Sheet1!S71_OY1BudgetAmount,Sheet1!S71_SA34aCode,$AC:$AC,Sheet1!S71_A5CapexCode,$AD:$AD)","v":0},{"$f":"SUMIFS(Sheet1!S71_OY2BudgetAmount,Sheet1!S71_SA34aCode,$AC:$AC,Sheet1!S71_A5CapexCode,$AD:$AD)","v":0},null,null,null,null,null,null,null,null,null,null,null,null,null,null,null,null,null,"0420","CE"]
["Reticulation",null,{"$f":"SUMIFS(Sheet1!S71_PPPYearAmount,Sheet1!S71_SA34aCode,$AC:$AC,Sheet1!S71_A5CapexCode,$AD:$AD)","v":0},{"$f":"SUMIFS(Sheet1!S71_PPYearAmount,Sheet1!S71_SA34aCode,$AC:$AC,Sheet1!S71_A5CapexCode,$AD:$AD)","v":0},{"$f":"SUMIFS(Sheet1!S71_PYearAmount,Sheet1!S71_SA34aCode,$AC:$AC,Sheet1!S71_A5CapexCode,$AD:$AD)","v":0},{"$f":"SUMIFS(Sheet1!S71_OriginalBudAmnt,Sheet1!S71_SA34aCode,$AC:$AC,Sheet1!S71_A5CapexCode,$AD:$AD)","v":0},{"$f":"SUMIFS(Sheet1!S71_AdjustmentBudAmnt,Sheet1!S71_SA34aCode,$AC:$AC,Sheet1!S71_A5CapexCode,$AD:$AD)","v":0},{"$f":"SUMIFS(Sheet1!S71_AdjustmentBudAmnt,Sheet1!S71_SA34aCode,$AC:$AC,Sheet1!S71_A5CapexCode,$AD:$AD)","v":0},{"$f":"SUMIFS(Sheet1!S71_ASBudgetAmount,Sheet1!S71_SA34aCode,$AC:$AC,Sheet1!S71_A5CapexCode,$AD:$AD)","v":0},{"$f":"SUMIFS(Sheet1!S71_OY1BudgetAmount,Sheet1!S71_SA34aCode,$AC:$AC,Sheet1!S71_A5CapexCode,$AD:$AD)","v":0},{"$f":"SUMIFS(Sheet1!S71_OY2BudgetAmount,Sheet1!S71_SA34aCode,$AC:$AC,Sheet1!S71_A5CapexCode,$AD:$AD)","v":0},null,null,null,null,null,null,null,null,null,null,null,null,null,null,null,null,null,"0430","CE"]
["Waste Water Treatment Works",null,{"$f":"SUMIFS(Sheet1!S71_PPPYearAmount,Sheet1!S71_SA34aCode,$AC:$AC,Sheet1!S71_A5CapexCode,$AD:$AD)","v":0},{"$f":"SUMIFS(Sheet1!S71_PPYearAmount,Sheet1!S71_SA34aCode,$AC:$AC,Sheet1!S71_A5CapexCode,$AD:$AD)","v":0},{"$f":"SUMIFS(Sheet1!S71_PYearAmount,Sheet1!S71_SA34aCode,$AC:$AC,Sheet1!S71_A5CapexCode,$AD:$AD)","v":0},{"$f":"SUMIFS(Sheet1!S71_OriginalBudAmnt,Sheet1!S71_SA34aCode,$AC:$AC,Sheet1!S71_A5CapexCode,$AD:$AD)","v":0},{"$f":"SUMIFS(Sheet1!S71_AdjustmentBudAmnt,Sheet1!S71_SA34aCode,$AC:$AC,Sheet1!S71_A5CapexCode,$AD:$AD)","v":0},{"$f":"SUMIFS(Sheet1!S71_AdjustmentBudAmnt,Sheet1!S71_SA34aCode,$AC:$AC,Sheet1!S71_A5CapexCode,$AD:$AD)","v":0},{"$f":"SUMIFS(Sheet1!S71_ASBudgetAmount,Sheet1!S71_SA34aCode,$AC:$AC,Sheet1!S71_A5CapexCode,$AD:$AD)","v":0},{"$f":"SUMIFS(Sheet1!S71_OY1BudgetAmount,Sheet1!S71_SA34aCode,$AC:$AC,Sheet1!S71_A5CapexCode,$AD:$AD)","v":0},{"$f":"SUMIFS(Sheet1!S71_OY2BudgetAmount,Sheet1!S71_SA34aCode,$AC:$AC,Sheet1!S71_A5CapexCode,$AD:$AD)","v":0},null,null,null,null,null,null,null,null,null,null,null,null,null,null,null,null,null,"0440","CE"]
["Outfall Sewers",null,{"$f":"SUMIFS(Sheet1!S71_PPPYearAmount,Sheet1!S71_SA34aCode,$AC:$AC,Sheet1!S71_A5CapexCode,$AD:$AD)","v":0},{"$f":"SUMIFS(Sheet1!S71_PPYearAmount,Sheet1!S71_SA34aCode,$AC:$AC,Sheet1!S71_A5CapexCode,$AD:$AD)","v":0},{"$f":"SUMIFS(Sheet1!S71_PYearAmount,Sheet1!S71_SA34aCode,$AC:$AC,Sheet1!S71_A5CapexCode,$AD:$AD)","v":0},{"$f":"SUMIFS(Sheet1!S71_OriginalBudAmnt,Sheet1!S71_SA34aCode,$AC:$AC,Sheet1!S71_A5CapexCode,$AD:$AD)","v":0},{"$f":"SUMIFS(Sheet1!S71_AdjustmentBudAmnt,Sheet1!S71_SA34aCode,$AC:$AC,Sheet1!S71_A5CapexCode,$AD:$AD)","v":0},{"$f":"SUMIFS(Sheet1!S71_AdjustmentBudAmnt,Sheet1!S71_SA34aCode,$AC:$AC,Sheet1!S71_A5CapexCode,$AD:$AD)","v":0},{"$f":"SUMIFS(Sheet1!S71_ASBudgetAmount,Sheet1!S71_SA34aCode,$AC:$AC,Sheet1!S71_A5CapexCode,$AD:$AD)","v":0},{"$f":"SUMIFS(Sheet1!S71_OY1BudgetAmount,Sheet1!S71_SA34aCode,$AC:$AC,Sheet1!S71_A5CapexCode,$AD:$AD)","v":0},{"$f":"SUMIFS(Sheet1!S71_OY2BudgetAmount,Sheet1!S71_SA34aCode,$AC:$AC,Sheet1!S71_A5CapexCode,$AD:$AD)","v":0},null,null,null,null,null,null,null,null,null,null,null,null,null,null,null,null,null,"0450","CE"]
["Toilet Facilities",null,{"$f":"SUMIFS(Sheet1!S71_PPPYearAmount,Sheet1!S71_SA34aCode,$AC:$AC,Sheet1!S71_A5CapexCode,$AD:$AD)","v":0},{"$f":"SUMIFS(Sheet1!S71_PPYearAmount,Sheet1!S71_SA34aCode,$AC:$AC,Sheet1!S71_A5CapexCode,$AD:$AD)","v":0},{"$f":"SUMIFS(Sheet1!S71_PYearAmount,Sheet1!S71_SA34aCode,$AC:$AC,Sheet1!S71_A5CapexCode,$AD:$AD)","v":0},{"$f":"SUMIFS(Sheet1!S71_OriginalBudAmnt,Sheet1!S71_SA34aCode,$AC:$AC,Sheet1!S71_A5CapexCode,$AD:$AD)","v":0},{"$f":"SUMIFS(Sheet1!S71_AdjustmentBudAmnt,Sheet1!S71_SA34aCode,$AC:$AC,Sheet1!S71_A5CapexCode,$AD:$AD)","v":0},{"$f":"SUMIFS(Sheet1!S71_AdjustmentBudAmnt,Sheet1!S71_SA34aCode,$AC:$AC,Sheet1!S71_A5CapexCode,$AD:$AD)","v":0},{"$f":"SUMIFS(Sheet1!S71_ASBudgetAmount,Sheet1!S71_SA34aCode,$AC:$AC,Sheet1!S71_A5CapexCode,$AD:$AD)","v":0},{"$f":"SUMIFS(Sheet1!S71_OY1BudgetAmount,Sheet1!S71_SA34aCode,$AC:$AC,Sheet1!S71_A5CapexCode,$AD:$AD)","v":0},{"$f":"SUMIFS(Sheet1!S71_OY2BudgetAmount,Sheet1!S71_SA34aCode,$AC:$AC,Sheet1!S71_A5CapexCode,$AD:$AD)","v":0},null,null,null,null,null,null,null,null,null,null,null,null,null,null,null,null,null,"0460","CE"]
["Capital Spares",null,{"$f":"SUMIFS(Sheet1!S71_PPPYearAmount,Sheet1!S71_SA34aCode,$AC:$AC,Sheet1!S71_A5CapexCode,$AD:$AD)","v":0},{"$f":"SUMIFS(Sheet1!S71_PPYearAmount,Sheet1!S71_SA34aCode,$AC:$AC,Sheet1!S71_A5CapexCode,$AD:$AD)","v":0},{"$f":"SUMIFS(Sheet1!S71_PYearAmount,Sheet1!S71_SA34aCode,$AC:$AC,Sheet1!S71_A5CapexCode,$AD:$AD)","v":0},{"$f":"SUMIFS(Sheet1!S71_OriginalBudAmnt,Sheet1!S71_SA34aCode,$AC:$AC,Sheet1!S71_A5CapexCode,$AD:$AD)","v":0},{"$f":"SUMIFS(Sheet1!S71_AdjustmentBudAmnt,Sheet1!S71_SA34aCode,$AC:$AC,Sheet1!S71_A5CapexCode,$AD:$AD)","v":0},{"$f":"SUMIFS(Sheet1!S71_AdjustmentBudAmnt,Sheet1!S71_SA34aCode,$AC:$AC,Sheet1!S71_A5CapexCode,$AD:$AD)","v":0},{"$f":"SUMIFS(Sheet1!S71_ASBudgetAmount,Sheet1!S71_SA34aCode,$AC:$AC,Sheet1!S71_A5CapexCode,$AD:$AD)","v":0},{"$f":"SUMIFS(Sheet1!S71_OY1BudgetAmount,Sheet1!S71_SA34aCode,$AC:$AC,Sheet1!S71_A5CapexCode,$AD:$AD)","v":0},{"$f":"SUMIFS(Sheet1!S71_OY2BudgetAmount,Sheet1!S71_SA34aCode,$AC:$AC,Sheet1!S71_A5CapexCode,$AD:$AD)","v":0},null,null,null,null,null,null,null,null,null,null,null,null,null,null,null,null,null,"0470","CE"]
["Solid Waste Infrastructure",null,{"$f":"SUM(C45:C51)","v":0},{"$f":"SUM(D45:D51)","v":0},0,0,0,0,0,0,0,null,null,null,null,null,null,null,null,null,null,null,null,null,null,null,null,null,null,"CE"]
["Landfill Sites",null,{"$f":"SUMIFS(Sheet1!S71_PPPYearAmount,Sheet1!S71_SA34aCode,$AC:$AC,Sheet1!S71_A5CapexCode,$AD:$AD)","v":0},{"$f":"SUMIFS(Sheet1!S71_PPYearAmount,Sheet1!S71_SA34aCode,$AC:$AC,Sheet1!S71_A5CapexCode,$AD:$AD)","v":0},{"$f":"SUMIFS(Sheet1!S71_PYearAmount,Sheet1!S71_SA34aCode,$AC:$AC,Sheet1!S71_A5CapexCode,$AD:$AD)","v":0},{"$f":"SUMIFS(Sheet1!S71_OriginalBudAmnt,Sheet1!S71_SA34aCode,$AC:$AC,Sheet1!S71_A5CapexCode,$AD:$AD)","v":0},{"$f":"SUMIFS(Sheet1!S71_AdjustmentBudAmnt,Sheet1!S71_SA34aCode,$AC:$AC,Sheet1!S71_A5CapexCode,$AD:$AD)","v":0},{"$f":"SUMIFS(Sheet1!S71_AdjustmentBudAmnt,Sheet1!S71_SA34aCode,$AC:$AC,Sheet1!S71_A5CapexCode,$AD:$AD)","v":0},{"$f":"SUMIFS(Sheet1!S71_ASBudgetAmount,Sheet1!S71_SA34aCode,$AC:$AC,Sheet1!S71_A5CapexCode,$AD:$AD)","v":0},{"$f":"SUMIFS(Sheet1!S71_OY1BudgetAmount,Sheet1!S71_SA34aCode,$AC:$AC,Sheet1!S71_A5CapexCode,$AD:$AD)","v":0},{"$f":"SUMIFS(Sheet1!S71_OY2BudgetAmount,Sheet1!S71_SA34aCode,$AC:$AC,Sheet1!S71_A5CapexCode,$AD:$AD)","v":0},null,null,null,null,null,null,null,null,null,null,null,null,null,null,null,null,null,"0490","CE"]
["Waste Transfer Stations",null,{"$f":"SUMIFS(Sheet1!S71_PPPYearAmount,Sheet1!S71_SA34aCode,$AC:$AC,Sheet1!S71_A5CapexCode,$AD:$AD)","v":0},{"$f":"SUMIFS(Sheet1!S71_PPYearAmount,Sheet1!S71_SA34aCode,$AC:$AC,Sheet1!S71_A5CapexCode,$AD:$AD)","v":0},{"$f":"SUMIFS(Sheet1!S71_PYearAmount,Sheet1!S71_SA34aCode,$AC:$AC,Sheet1!S71_A5CapexCode,$AD:$AD)","v":0},{"$f":"SUMIFS(Sheet1!S71_OriginalBudAmnt,Sheet1!S71_SA34aCode,$AC:$AC,Sheet1!S71_A5CapexCode,$AD:$AD)","v":0},{"$f":"SUMIFS(Sheet1!S71_AdjustmentBudAmnt,Sheet1!S71_SA34aCode,$AC:$AC,Sheet1!S71_A5CapexCode,$AD:$AD)","v":0},{"$f":"SUMIFS(Sheet1!S71_AdjustmentBudAmnt,Sheet1!S71_SA34aCode,$AC:$AC,Sheet1!S71_A5CapexCode,$AD:$AD)","v":0},{"$f":"SUMIFS(Sheet1!S71_ASBudgetAmount,Sheet1!S71_SA34aCode,$AC:$AC,Sheet1!S71_A5CapexCode,$AD:$AD)","v":0},{"$f":"SUMIFS(Sheet1!S71_OY1BudgetAmount,Sheet1!S71_SA34aCode,$AC:$AC,Sheet1!S71_A5CapexCode,$AD:$AD)","v":0},{"$f":"SUMIFS(Sheet1!S71_OY2BudgetAmount,Sheet1!S71_SA34aCode,$AC:$AC,Sheet1!S71_A5CapexCode,$AD:$AD)","v":0},null,null,null,null,null,null,null,null,null,null,null,null,null,null,null,null,null,"0500","CE"]
["Waste Processing Facilities",null,{"$f":"SUMIFS(Sheet1!S71_PPPYearAmount,Sheet1!S71_SA34aCode,$AC:$AC,Sheet1!S71_A5CapexCode,$AD:$AD)","v":0},{"$f":"SUMIFS(Sheet1!S71_PPYearAmount,Sheet1!S71_SA34aCode,$AC:$AC,Sheet1!S71_A5CapexCode,$AD:$AD)","v":0},{"$f":"SUMIFS(Sheet1!S71_PYearAmount,Sheet1!S71_SA34aCode,$AC:$AC,Sheet1!S71_A5CapexCode,$AD:$AD)","v":0},{"$f":"SUMIFS(Sheet1!S71_OriginalBudAmnt,Sheet1!S71_SA34aCode,$AC:$AC,Sheet1!S71_A5CapexCode,$AD:$AD)","v":0},{"$f":"SUMIFS(Sheet1!S71_AdjustmentBudAmnt,Sheet1!S71_SA34aCode,$AC:$AC,Sheet1!S71_A5CapexCode,$AD:$AD)","v":0},{"$f":"SUMIFS(Sheet1!S71_AdjustmentBudAmnt,Sheet1!S71_SA34aCode,$AC:$AC,Sheet1!S71_A5CapexCode,$AD:$AD)","v":0},{"$f":"SUMIFS(Sheet1!S71_ASBudgetAmount,Sheet1!S71_SA34aCode,$AC:$AC,Sheet1!S71_A5CapexCode,$AD:$AD)","v":0},{"$f":"SUMIFS(Sheet1!S71_OY1BudgetAmount,Sheet1!S71_SA34aCode,$AC:$AC,Sheet1!S71_A5CapexCode,$AD:$AD)","v":0},{"$f":"SUMIFS(Sheet1!S71_OY2BudgetAmount,Sheet1!S71_SA34aCode,$AC:$AC,Sheet1!S71_A5CapexCode,$AD:$AD)","v":0},null,null,null,null,null,null,null,null,null,null,null,null,null,null,null,null,null,"0510","CE"]
["Waste Drop-off Points",null,{"$f":"SUMIFS(Sheet1!S71_PPPYearAmount,Sheet1!S71_SA34aCode,$AC:$AC,Sheet1!S71_A5CapexCode,$AD:$AD)","v":0},{"$f":"SUMIFS(Sheet1!S71_PPYearAmount,Sheet1!S71_SA34aCode,$AC:$AC,Sheet1!S71_A5CapexCode,$AD:$AD)","v":0},{"$f":"SUMIFS(Sheet1!S71_PYearAmount,Sheet1!S71_SA34aCode,$AC:$AC,Sheet1!S71_A5CapexCode,$AD:$AD)","v":0},{"$f":"SUMIFS(Sheet1!S71_OriginalBudAmnt,Sheet1!S71_SA34aCode,$AC:$AC,Sheet1!S71_A5CapexCode,$AD:$AD)","v":0},{"$f":"SUMIFS(Sheet1!S71_AdjustmentBudAmnt,Sheet1!S71_SA34aCode,$AC:$AC,Sheet1!S71_A5CapexCode,$AD:$AD)","v":0},{"$f":"SUMIFS(Sheet1!S71_AdjustmentBudAmnt,Sheet1!S71_SA34aCode,$AC:$AC,Sheet1!S71_A5CapexCode,$AD:$AD)","v":0},{"$f":"SUMIFS(Sheet1!S71_ASBudgetAmount,Sheet1!S71_SA34aCode,$AC:$AC,Sheet1!S71_A5CapexCode,$AD:$AD)","v":0},{"$f":"SUMIFS(Sheet1!S71_OY1BudgetAmount,Sheet1!S71_SA34aCode,$AC:$AC,Sheet1!S71_A5CapexCode,$AD:$AD)","v":0},{"$f":"SUMIFS(Sheet1!S71_OY2BudgetAmount,Sheet1!S71_SA34aCode,$AC:$AC,Sheet1!S71_A5CapexCode,$AD:$AD)","v":0},null,null,null,null,null,null,null,null,null,null,null,null,null,null,null,null,null,"0520","CE"]
["Waste Separation Facilities",null,{"$f":"SUMIFS(Sheet1!S71_PPPYearAmount,Sheet1!S71_SA34aCode,$AC:$AC,Sheet1!S71_A5CapexCode,$AD:$AD)","v":0},{"$f":"SUMIFS(Sheet1!S71_PPYearAmount,Sheet1!S71_SA34aCode,$AC:$AC,Sheet1!S71_A5CapexCode,$AD:$AD)","v":0},{"$f":"SUMIFS(Sheet1!S71_PYearAmount,Sheet1!S71_SA34aCode,$AC:$AC,Sheet1!S71_A5CapexCode,$AD:$AD)","v":0},{"$f":"SUMIFS(Sheet1!S71_OriginalBudAmnt,Sheet1!S71_SA34aCode,$AC:$AC,Sheet1!S71_A5CapexCode,$AD:$AD)","v":0},{"$f":"SUMIFS(Sheet1!S71_AdjustmentBudAmnt,Sheet1!S71_SA34aCode,$AC:$AC,Sheet1!S71_A5CapexCode,$AD:$AD)","v":0},{"$f":"SUMIFS(Sheet1!S71_AdjustmentBudAmnt,Sheet1!S71_SA34aCode,$AC:$AC,Sheet1!S71_A5CapexCode,$AD:$AD)","v":0},{"$f":"SUMIFS(Sheet1!S71_ASBudgetAmount,Sheet1!S71_SA34aCode,$AC:$AC,Sheet1!S71_A5CapexCode,$AD:$AD)","v":0},{"$f":"SUMIFS(Sheet1!S71_OY1BudgetAmount,Sheet1!S71_SA34aCode,$AC:$AC,Sheet1!S71_A5CapexCode,$AD:$AD)","v":0},{"$f":"SUMIFS(Sheet1!S71_OY2BudgetAmount,Sheet1!S71_SA34aCode,$AC:$AC,Sheet1!S71_A5CapexCode,$AD:$AD)","v":0},null,null,null,null,null,null,null,null,null,null,null,null,null,null,null,null,null,"0530","CE"]
["Electricity Generation Facilities",null,{"$f":"SUMIFS(Sheet1!S71_PPPYearAmount,Sheet1!S71_SA34aCode,$AC:$AC,Sheet1!S71_A5CapexCode,$AD:$AD)","v":0},{"$f":"SUMIFS(Sheet1!S71_PPYearAmount,Sheet1!S71_SA34aCode,$AC:$AC,Sheet1!S71_A5CapexCode,$AD:$AD)","v":0},{"$f":"SUMIFS(Sheet1!S71_PYearAmount,Sheet1!S71_SA34aCode,$AC:$AC,Sheet1!S71_A5CapexCode,$AD:$AD)","v":0},{"$f":"SUMIFS(Sheet1!S71_OriginalBudAmnt,Sheet1!S71_SA34aCode,$AC:$AC,Sheet1!S71_A5CapexCode,$AD:$AD)","v":0},{"$f":"SUMIFS(Sheet1!S71_AdjustmentBudAmnt,Sheet1!S71_SA34aCode,$AC:$AC,Sheet1!S71_A5CapexCode,$AD:$AD)","v":0},{"$f":"SUMIFS(Sheet1!S71_AdjustmentBudAmnt,Sheet1!S71_SA34aCode,$AC:$AC,Sheet1!S71_A5CapexCode,$AD:$AD)","v":0},{"$f":"SUMIFS(Sheet1!S71_ASBudgetAmount,Sheet1!S71_SA34aCode,$AC:$AC,Sheet1!S71_A5CapexCode,$AD:$AD)","v":0},{"$f":"SUMIFS(Sheet1!S71_OY1BudgetAmount,Sheet1!S71_SA34aCode,$AC:$AC,Sheet1!S71_A5CapexCode,$AD:$AD)","v":0},{"$f":"SUMIFS(Sheet1!S71_OY2BudgetAmount,Sheet1!S71_SA34aCode,$AC:$AC,Sheet1!S71_A5CapexCode,$AD:$AD)","v":0},null,null,null,null,null,null,null,null,null,null,null,null,null,null,null,null,null,"0540","CE"]
["Capital Spares",null,{"$f":"SUMIFS(Sheet1!S71_PPPYearAmount,Sheet1!S71_SA34aCode,$AC:$AC,Sheet1!S71_A5CapexCode,$AD:$AD)","v":0},{"$f":"SUMIFS(Sheet1!S71_PPYearAmount,Sheet1!S71_SA34aCode,$AC:$AC,Sheet1!S71_A5CapexCode,$AD:$AD)","v":0},{"$f":"SUMIFS(Sheet1!S71_PYearAmount,Sheet1!S71_SA34aCode,$AC:$AC,Sheet1!S71_A5CapexCode,$AD:$AD)","v":0},{"$f":"SUMIFS(Sheet1!S71_OriginalBudAmnt,Sheet1!S71_SA34aCode,$AC:$AC,Sheet1!S71_A5CapexCode,$AD:$AD)","v":0},{"$f":"SUMIFS(Sheet1!S71_AdjustmentBudAmnt,Sheet1!S71_SA34aCode,$AC:$AC,Sheet1!S71_A5CapexCode,$AD:$AD)","v":0},{"$f":"SUMIFS(Sheet1!S71_AdjustmentBudAmnt,Sheet1!S71_SA34aCode,$AC:$AC,Sheet1!S71_A5CapexCode,$AD:$AD)","v":0},{"$f":"SUMIFS(Sheet1!S71_ASBudgetAmount,Sheet1!S71_SA34aCode,$AC:$AC,Sheet1!S71_A5CapexCode,$AD:$AD)","v":0},{"$f":"SUMIFS(Sheet1!S71_OY1BudgetAmount,Sheet1!S71_SA34aCode,$AC:$AC,Sheet1!S71_A5CapexCode,$AD:$AD)","v":0},{"$f":"SUMIFS(Sheet1!S71_OY2BudgetAmount,Sheet1!S71_SA34aCode,$AC:$AC,Sheet1!S71_A5CapexCode,$AD:$AD)","v":0},null,null,null,null,null,null,null,null,null,null,null,null,null,null,null,null,null,"0550","CE"]
["Rail Infrastructure",null,{"$f":"SUM(C53:C61)","v":0},0,0,0,0,0,0,0,0,null,null,null,null,null,null,null,null,null,null,null,null,null,null,null,null,null,null,"CE"]
["Rail Lines",null,{"$f":"SUMIFS(Sheet1!S71_PPPYearAmount,Sheet1!S71_SA34aCode,$AC:$AC,Sheet1!S71_A5CapexCode,$AD:$AD)","v":0},{"$f":"SUMIFS(Sheet1!S71_PPYearAmount,Sheet1!S71_SA34aCode,$AC:$AC,Sheet1!S71_A5CapexCode,$AD:$AD)","v":0},{"$f":"SUMIFS(Sheet1!S71_PYearAmount,Sheet1!S71_SA34aCode,$AC:$AC,Sheet1!S71_A5CapexCode,$AD:$AD)","v":0},{"$f":"SUMIFS(Sheet1!S71_OriginalBudAmnt,Sheet1!S71_SA34aCode,$AC:$AC,Sheet1!S71_A5CapexCode,$AD:$AD)","v":0},{"$f":"SUMIFS(Sheet1!S71_AdjustmentBudAmnt,Sheet1!S71_SA34aCode,$AC:$AC,Sheet1!S71_A5CapexCode,$AD:$AD)","v":0},{"$f":"SUMIFS(Sheet1!S71_AdjustmentBudAmnt,Sheet1!S71_SA34aCode,$AC:$AC,Sheet1!S71_A5CapexCode,$AD:$AD)","v":0},{"$f":"SUMIFS(Sheet1!S71_ASBudgetAmount,Sheet1!S71_SA34aCode,$AC:$AC,Sheet1!S71_A5CapexCode,$AD:$AD)","v":0},{"$f":"SUMIFS(Sheet1!S71_OY1BudgetAmount,Sheet1!S71_SA34aCode,$AC:$AC,Sheet1!S71_A5CapexCode,$AD:$AD)","v":0},{"$f":"SUMIFS(Sheet1!S71_OY2BudgetAmount,Sheet1!S71_SA34aCode,$AC:$AC,Sheet1!S71_A5CapexCode,$AD:$AD)","v":0},null,null,null,null,null,null,null,null,null,null,null,null,null,null,null,null,null,"0570","CE"]
["Rail Structures",null,{"$f":"SUMIFS(Sheet1!S71_PPPYearAmount,Sheet1!S71_SA34aCode,$AC:$AC,Sheet1!S71_A5CapexCode,$AD:$AD)","v":0},{"$f":"SUMIFS(Sheet1!S71_PPYearAmount,Sheet1!S71_SA34aCode,$AC:$AC,Sheet1!S71_A5CapexCode,$AD:$AD)","v":0},{"$f":"SUMIFS(Sheet1!S71_PYearAmount,Sheet1!S71_SA34aCode,$AC:$AC,Sheet1!S71_A5CapexCode,$AD:$AD)","v":0},{"$f":"SUMIFS(Sheet1!S71_OriginalBudAmnt,Sheet1!S71_SA34aCode,$AC:$AC,Sheet1!S71_A5CapexCode,$AD:$AD)","v":0},{"$f":"SUMIFS(Sheet1!S71_AdjustmentBudAmnt,Sheet1!S71_SA34aCode,$AC:$AC,Sheet1!S71_A5CapexCode,$AD:$AD)","v":0},{"$f":"SUMIFS(Sheet1!S71_AdjustmentBudAmnt,Sheet1!S71_SA34aCode,$AC:$AC,Sheet1!S71_A5CapexCode,$AD:$AD)","v":0},{"$f":"SUMIFS(Sheet1!S71_ASBudgetAmount,Sheet1!S71_SA34aCode,$AC:$AC,Sheet1!S71_A5CapexCode,$AD:$AD)","v":0},{"$f":"SUMIFS(Sheet1!S71_OY1BudgetAmount,Sheet1!S71_SA34aCode,$AC:$AC,Sheet1!S71_A5CapexCode,$AD:$AD)","v":0},{"$f":"SUMIFS(Sheet1!S71_OY2BudgetAmount,Sheet1!S71_SA34aCode,$AC:$AC,Sheet1!S71_A5CapexCode,$AD:$AD)","v":0},null,null,null,null,null,null,null,null,null,null,null,null,null,null,null,null,null,"0580","CE"]
["Rail Furniture",null,{"$f":"SUMIFS(Sheet1!S71_PPPYearAmount,Sheet1!S71_SA34aCode,$AC:$AC,Sheet1!S71_A5CapexCode,$AD:$AD)","v":0},{"$f":"SUMIFS(Sheet1!S71_PPYearAmount,Sheet1!S71_SA34aCode,$AC:$AC,Sheet1!S71_A5CapexCode,$AD:$AD)","v":0},{"$f":"SUMIFS(Sheet1!S71_PYearAmount,Sheet1!S71_SA34aCode,$AC:$AC,Sheet1!S71_A5CapexCode,$AD:$AD)","v":0},{"$f":"SUMIFS(Sheet1!S71_OriginalBudAmnt,Sheet1!S71_SA34aCode,$AC:$AC,Sheet1!S71_A5CapexCode,$AD:$AD)","v":0},{"$f":"SUMIFS(Sheet1!S71_AdjustmentBudAmnt,Sheet1!S71_SA34aCode,$AC:$AC,Sheet1!S71_A5CapexCode,$AD:$AD)","v":0},{"$f":"SUMIFS(Sheet1!S71_AdjustmentBudAmnt,Sheet1!S71_SA34aCode,$AC:$AC,Sheet1!S71_A5CapexCode,$AD:$AD)","v":0},{"$f":"SUMIFS(Sheet1!S71_ASBudgetAmount,Sheet1!S71_SA34aCode,$AC:$AC,Sheet1!S71_A5CapexCode,$AD:$AD)","v":0},{"$f":"SUMIFS(Sheet1!S71_OY1BudgetAmount,Sheet1!S71_SA34aCode,$AC:$AC,Sheet1!S71_A5CapexCode,$AD:$AD)","v":0},{"$f":"SUMIFS(Sheet1!S71_OY2BudgetAmount,Sheet1!S71_SA34aCode,$AC:$AC,Sheet1!S71_A5CapexCode,$AD:$AD)","v":0},null,null,null,null,null,null,null,null,null,null,null,null,null,null,null,null,null,"0590","CE"]
["Drainage Collection",null,{"$f":"SUMIFS(Sheet1!S71_PPPYearAmount,Sheet1!S71_SA34aCode,$AC:$AC,Sheet1!S71_A5CapexCode,$AD:$AD)","v":0},{"$f":"SUMIFS(Sheet1!S71_PPYearAmount,Sheet1!S71_SA34aCode,$AC:$AC,Sheet1!S71_A5CapexCode,$AD:$AD)","v":0},{"$f":"SUMIFS(Sheet1!S71_PYearAmount,Sheet1!S71_SA34aCode,$AC:$AC,Sheet1!S71_A5CapexCode,$AD:$AD)","v":0},{"$f":"SUMIFS(Sheet1!S71_OriginalBudAmnt,Sheet1!S71_SA34aCode,$AC:$AC,Sheet1!S71_A5CapexCode,$AD:$AD)","v":0},{"$f":"SUMIFS(Sheet1!S71_AdjustmentBudAmnt,Sheet1!S71_SA34aCode,$AC:$AC,Sheet1!S71_A5CapexCode,$AD:$AD)","v":0},{"$f":"SUMIFS(Sheet1!S71_AdjustmentBudAmnt,Sheet1!S71_SA34aCode,$AC:$AC,Sheet1!S71_A5CapexCode,$AD:$AD)","v":0},{"$f":"SUMIFS(Sheet1!S71_ASBudgetAmount,Sheet1!S71_SA34aCode,$AC:$AC,Sheet1!S71_A5CapexCode,$AD:$AD)","v":0},{"$f":"SUMIFS(Sheet1!S71_OY1BudgetAmount,Sheet1!S71_SA34aCode,$AC:$AC,Sheet1!S71_A5CapexCode,$AD:$AD)","v":0},{"$f":"SUMIFS(Sheet1!S71_OY2BudgetAmount,Sheet1!S71_SA34aCode,$AC:$AC,Sheet1!S71_A5CapexCode,$AD:$AD)","v":0},null,null,null,null,null,null,null,null,null,null,null,null,null,null,null,null,null,"0600","CE"]
["Storm water Conveyance",null,{"$f":"SUMIFS(Sheet1!S71_PPPYearAmount,Sheet1!S71_SA34aCode,$AC:$AC,Sheet1!S71_A5CapexCode,$AD:$AD)","v":0},{"$f":"SUMIFS(Sheet1!S71_PPYearAmount,Sheet1!S71_SA34aCode,$AC:$AC,Sheet1!S71_A5CapexCode,$AD:$AD)","v":0},{"$f":"SUMIFS(Sheet1!S71_PYearAmount,Sheet1!S71_SA34aCode,$AC:$AC,Sheet1!S71_A5CapexCode,$AD:$AD)","v":0},{"$f":"SUMIFS(Sheet1!S71_OriginalBudAmnt,Sheet1!S71_SA34aCode,$AC:$AC,Sheet1!S71_A5CapexCode,$AD:$AD)","v":0},{"$f":"SUMIFS(Sheet1!S71_AdjustmentBudAmnt,Sheet1!S71_SA34aCode,$AC:$AC,Sheet1!S71_A5CapexCode,$AD:$AD)","v":0},{"$f":"SUMIFS(Sheet1!S71_AdjustmentBudAmnt,Sheet1!S71_SA34aCode,$AC:$AC,Sheet1!S71_A5CapexCode,$AD:$AD)","v":0},{"$f":"SUMIFS(Sheet1!S71_ASBudgetAmount,Sheet1!S71_SA34aCode,$AC:$AC,Sheet1!S71_A5CapexCode,$AD:$AD)","v":0},{"$f":"SUMIFS(Sheet1!S71_OY1BudgetAmount,Sheet1!S71_SA34aCode,$AC:$AC,Sheet1!S71_A5CapexCode,$AD:$AD)","v":0},{"$f":"SUMIFS(Sheet1!S71_OY2BudgetAmount,Sheet1!S71_SA34aCode,$AC:$AC,Sheet1!S71_A5CapexCode,$AD:$AD)","v":0},null,null,null,null,null,null,null,null,null,null,null,null,null,null,null,null,null,"0610","CE"]
["Attenuation",null,{"$f":"SUMIFS(Sheet1!S71_PPPYearAmount,Sheet1!S71_SA34aCode,$AC:$AC,Sheet1!S71_A5CapexCode,$AD:$AD)","v":0},{"$f":"SUMIFS(Sheet1!S71_PPYearAmount,Sheet1!S71_SA34aCode,$AC:$AC,Sheet1!S71_A5CapexCode,$AD:$AD)","v":0},{"$f":"SUMIFS(Sheet1!S71_PYearAmount,Sheet1!S71_SA34aCode,$AC:$AC,Sheet1!S71_A5CapexCode,$AD:$AD)","v":0},{"$f":"SUMIFS(Sheet1!S71_OriginalBudAmnt,Sheet1!S71_SA34aCode,$AC:$AC,Sheet1!S71_A5CapexCode,$AD:$AD)","v":0},{"$f":"SUMIFS(Sheet1!S71_AdjustmentBudAmnt,Sheet1!S71_SA34aCode,$AC:$AC,Sheet1!S71_A5CapexCode,$AD:$AD)","v":0},{"$f":"SUMIFS(Sheet1!S71_AdjustmentBudAmnt,Sheet1!S71_SA34aCode,$AC:$AC,Sheet1!S71_A5CapexCode,$AD:$AD)","v":0},{"$f":"SUMIFS(Sheet1!S71_ASBudgetAmount,Sheet1!S71_SA34aCode,$AC:$AC,Sheet1!S71_A5CapexCode,$AD:$AD)","v":0},{"$f":"SUMIFS(Sheet1!S71_OY1BudgetAmount,Sheet1!S71_SA34aCode,$AC:$AC,Sheet1!S71_A5CapexCode,$AD:$AD)","v":0},{"$f":"SUMIFS(Sheet1!S71_OY2BudgetAmount,Sheet1!S71_SA34aCode,$AC:$AC,Sheet1!S71_A5CapexCode,$AD:$AD)","v":0},null,null,null,null,null,null,null,null,null,null,null,null,null,null,null,null,null,"0620","CE"]
["MV Substations",null,{"$f":"SUMIFS(Sheet1!S71_PPPYearAmount,Sheet1!S71_SA34aCode,$AC:$AC,Sheet1!S71_A5CapexCode,$AD:$AD)","v":0},{"$f":"SUMIFS(Sheet1!S71_PPYearAmount,Sheet1!S71_SA34aCode,$AC:$AC,Sheet1!S71_A5CapexCode,$AD:$AD)","v":0},{"$f":"SUMIFS(Sheet1!S71_PYearAmount,Sheet1!S71_SA34aCode,$AC:$AC,Sheet1!S71_A5CapexCode,$AD:$AD)","v":0},{"$f":"SUMIFS(Sheet1!S71_OriginalBudAmnt,Sheet1!S71_SA34aCode,$AC:$AC,Sheet1!S71_A5CapexCode,$AD:$AD)","v":0},{"$f":"SUMIFS(Sheet1!S71_AdjustmentBudAmnt,Sheet1!S71_SA34aCode,$AC:$AC,Sheet1!S71_A5CapexCode,$AD:$AD)","v":0},{"$f":"SUMIFS(Sheet1!S71_AdjustmentBudAmnt,Sheet1!S71_SA34aCode,$AC:$AC,Sheet1!S71_A5CapexCode,$AD:$AD)","v":0},{"$f":"SUMIFS(Sheet1!S71_ASBudgetAmount,Sheet1!S71_SA34aCode,$AC:$AC,Sheet1!S71_A5CapexCode,$AD:$AD)","v":0},{"$f":"SUMIFS(Sheet1!S71_OY1BudgetAmount,Sheet1!S71_SA34aCode,$AC:$AC,Sheet1!S71_A5CapexCode,$AD:$AD)","v":0},{"$f":"SUMIFS(Sheet1!S71_OY2BudgetAmount,Sheet1!S71_SA34aCode,$AC:$AC,Sheet1!S71_A5CapexCode,$AD:$AD)","v":0},null,null,null,null,null,null,null,null,null,null,null,null,null,null,null,null,null,"0630","CE"]
["LV Networks",null,{"$f":"SUMIFS(Sheet1!S71_PPPYearAmount,Sheet1!S71_SA34aCode,$AC:$AC,Sheet1!S71_A5CapexCode,$AD:$AD)","v":0},{"$f":"SUMIFS(Sheet1!S71_PPYearAmount,Sheet1!S71_SA34aCode,$AC:$AC,Sheet1!S71_A5CapexCode,$AD:$AD)","v":0},{"$f":"SUMIFS(Sheet1!S71_PYearAmount,Sheet1!S71_SA34aCode,$AC:$AC,Sheet1!S71_A5CapexCode,$AD:$AD)","v":0},{"$f":"SUMIFS(Sheet1!S71_OriginalBudAmnt,Sheet1!S71_SA34aCode,$AC:$AC,Sheet1!S71_A5CapexCode,$AD:$AD)","v":0},{"$f":"SUMIFS(Sheet1!S71_AdjustmentBudAmnt,Sheet1!S71_SA34aCode,$AC:$AC,Sheet1!S71_A5CapexCode,$AD:$AD)","v":0},{"$f":"SUMIFS(Sheet1!S71_AdjustmentBudAmnt,Sheet1!S71_SA34aCode,$AC:$AC,Sheet1!S71_A5CapexCode,$AD:$AD)","v":0},{"$f":"SUMIFS(Sheet1!S71_ASBudgetAmount,Sheet1!S71_SA34aCode,$AC:$AC,Sheet1!S71_A5CapexCode,$AD:$AD)","v":0},{"$f":"SUMIFS(Sheet1!S71_OY1BudgetAmount,Sheet1!S71_SA34aCode,$AC:$AC,Sheet1!S71_A5CapexCode,$AD:$AD)","v":0},{"$f":"SUMIFS(Sheet1!S71_OY2BudgetAmount,Sheet1!S71_SA34aCode,$AC:$AC,Sheet1!S71_A5CapexCode,$AD:$AD)","v":0},null,null,null,null,null,null,null,null,null,null,null,null,null,null,null,null,null,"0640","CE"]
["Capital Spares",null,{"$f":"SUMIFS(Sheet1!S71_PPPYearAmount,Sheet1!S71_SA34aCode,$AC:$AC,Sheet1!S71_A5CapexCode,$AD:$AD)","v":0},{"$f":"SUMIFS(Sheet1!S71_PPYearAmount,Sheet1!S71_SA34aCode,$AC:$AC,Sheet1!S71_A5CapexCode,$AD:$AD)","v":0},{"$f":"SUMIFS(Sheet1!S71_PYearAmount,Sheet1!S71_SA34aCode,$AC:$AC,Sheet1!S71_A5CapexCode,$AD:$AD)","v":0},{"$f":"SUMIFS(Sheet1!S71_OriginalBudAmnt,Sheet1!S71_SA34aCode,$AC:$AC,Sheet1!S71_A5CapexCode,$AD:$AD)","v":0},{"$f":"SUMIFS(Sheet1!S71_AdjustmentBudAmnt,Sheet1!S71_SA34aCode,$AC:$AC,Sheet1!S71_A5CapexCode,$AD:$AD)","v":0},{"$f":"SUMIFS(Sheet1!S71_AdjustmentBudAmnt,Sheet1!S71_SA34aCode,$AC:$AC,Sheet1!S71_A5CapexCode,$AD:$AD)","v":0},{"$f":"SUMIFS(Sheet1!S71_ASBudgetAmount,Sheet1!S71_SA34aCode,$AC:$AC,Sheet1!S71_A5CapexCode,$AD:$AD)","v":0},{"$f":"SUMIFS(Sheet1!S71_OY1BudgetAmount,Sheet1!S71_SA34aCode,$AC:$AC,Sheet1!S71_A5CapexCode,$AD:$AD)","v":0},{"$f":"SUMIFS(Sheet1!S71_OY2BudgetAmount,Sheet1!S71_SA34aCode,$AC:$AC,Sheet1!S71_A5CapexCode,$AD:$AD)","v":0},null,null,null,null,null,null,null,null,null,null,null,null,null,null,null,null,null,"0650","CE"]
["Coastal Infrastructure",null,{"$f":"SUM(C63:C67)","v":0},{"$f":"SUM(D63:D67)","v":0},0,0,0,0,0,0,0,null,null,null,null,null,null,null,null,null,null,null,null,null,null,null,null,null,null,"CE"]
["Sand Pumps",null,{"$f":"SUMIFS(Sheet1!S71_PPPYearAmount,Sheet1!S71_SA34aCode,$AC:$AC,Sheet1!S71_A5CapexCode,$AD:$AD)","v":0},{"$f":"SUMIFS(Sheet1!S71_PPYearAmount,Sheet1!S71_SA34aCode,$AC:$AC,Sheet1!S71_A5CapexCode,$AD:$AD)","v":0},{"$f":"SUMIFS(Sheet1!S71_PYearAmount,Sheet1!S71_SA34aCode,$AC:$AC,Sheet1!S71_A5CapexCode,$AD:$AD)","v":0},{"$f":"SUMIFS(Sheet1!S71_OriginalBudAmnt,Sheet1!S71_SA34aCode,$AC:$AC,Sheet1!S71_A5CapexCode,$AD:$AD)","v":0},{"$f":"SUMIFS(Sheet1!S71_AdjustmentBudAmnt,Sheet1!S71_SA34aCode,$AC:$AC,Sheet1!S71_A5CapexCode,$AD:$AD)","v":0},{"$f":"SUMIFS(Sheet1!S71_AdjustmentBudAmnt,Sheet1!S71_SA34aCode,$AC:$AC,Sheet1!S71_A5CapexCode,$AD:$AD)","v":0},{"$f":"SUMIFS(Sheet1!S71_ASBudgetAmount,Sheet1!S71_SA34aCode,$AC:$AC,Sheet1!S71_A5CapexCode,$AD:$AD)","v":0},{"$f":"SUMIFS(Sheet1!S71_OY1BudgetAmount,Sheet1!S71_SA34aCode,$AC:$AC,Sheet1!S71_A5CapexCode,$AD:$AD)","v":0},{"$f":"SUMIFS(Sheet1!S71_OY2BudgetAmount,Sheet1!S71_SA34aCode,$AC:$AC,Sheet1!S71_A5CapexCode,$AD:$AD)","v":0},null,null,null,null,null,null,null,null,null,null,null,null,null,null,null,null,null,"0670","CE"]
["Piers",null,{"$f":"SUMIFS(Sheet1!S71_PPPYearAmount,Sheet1!S71_SA34aCode,$AC:$AC,Sheet1!S71_A5CapexCode,$AD:$AD)","v":0},{"$f":"SUMIFS(Sheet1!S71_PPYearAmount,Sheet1!S71_SA34aCode,$AC:$AC,Sheet1!S71_A5CapexCode,$AD:$AD)","v":0},{"$f":"SUMIFS(Sheet1!S71_PYearAmount,Sheet1!S71_SA34aCode,$AC:$AC,Sheet1!S71_A5CapexCode,$AD:$AD)","v":0},{"$f":"SUMIFS(Sheet1!S71_OriginalBudAmnt,Sheet1!S71_SA34aCode,$AC:$AC,Sheet1!S71_A5CapexCode,$AD:$AD)","v":0},{"$f":"SUMIFS(Sheet1!S71_AdjustmentBudAmnt,Sheet1!S71_SA34aCode,$AC:$AC,Sheet1!S71_A5CapexCode,$AD:$AD)","v":0},{"$f":"SUMIFS(Sheet1!S71_AdjustmentBudAmnt,Sheet1!S71_SA34aCode,$AC:$AC,Sheet1!S71_A5CapexCode,$AD:$AD)","v":0},{"$f":"SUMIFS(Sheet1!S71_ASBudgetAmount,Sheet1!S71_SA34aCode,$AC:$AC,Sheet1!S71_A5CapexCode,$AD:$AD)","v":0},{"$f":"SUMIFS(Sheet1!S71_OY1BudgetAmount,Sheet1!S71_SA34aCode,$AC:$AC,Sheet1!S71_A5CapexCode,$AD:$AD)","v":0},{"$f":"SUMIFS(Sheet1!S71_OY2BudgetAmount,Sheet1!S71_SA34aCode,$AC:$AC,Sheet1!S71_A5CapexCode,$AD:$AD)","v":0},null,null,null,null,null,null,null,null,null,null,null,null,null,null,null,null,null,"0680","CE"]
["Revetments",null,{"$f":"SUMIFS(Sheet1!S71_PPPYearAmount,Sheet1!S71_SA34aCode,$AC:$AC,Sheet1!S71_A5CapexCode,$AD:$AD)","v":0},{"$f":"SUMIFS(Sheet1!S71_PPYearAmount,Sheet1!S71_SA34aCode,$AC:$AC,Sheet1!S71_A5CapexCode,$AD:$AD)","v":0},{"$f":"SUMIFS(Sheet1!S71_PYearAmount,Sheet1!S71_SA34aCode,$AC:$AC,Sheet1!S71_A5CapexCode,$AD:$AD)","v":0},{"$f":"SUMIFS(Sheet1!S71_OriginalBudAmnt,Sheet1!S71_SA34aCode,$AC:$AC,Sheet1!S71_A5CapexCode,$AD:$AD)","v":0},{"$f":"SUMIFS(Sheet1!S71_AdjustmentBudAmnt,Sheet1!S71_SA34aCode,$AC:$AC,Sheet1!S71_A5CapexCode,$AD:$AD)","v":0},{"$f":"SUMIFS(Sheet1!S71_AdjustmentBudAmnt,Sheet1!S71_SA34aCode,$AC:$AC,Sheet1!S71_A5CapexCode,$AD:$AD)","v":0},{"$f":"SUMIFS(Sheet1!S71_ASBudgetAmount,Sheet1!S71_SA34aCode,$AC:$AC,Sheet1!S71_A5CapexCode,$AD:$AD)","v":0},{"$f":"SUMIFS(Sheet1!S71_OY1BudgetAmount,Sheet1!S71_SA34aCode,$AC:$AC,Sheet1!S71_A5CapexCode,$AD:$AD)","v":0},{"$f":"SUMIFS(Sheet1!S71_OY2BudgetAmount,Sheet1!S71_SA34aCode,$AC:$AC,Sheet1!S71_A5CapexCode,$AD:$AD)","v":0},null,null,null,null,null,null,null,null,null,null,null,null,null,null,null,null,null,"0690","CE"]
["Promenades",null,{"$f":"SUMIFS(Sheet1!S71_PPPYearAmount,Sheet1!S71_SA34aCode,$AC:$AC,Sheet1!S71_A5CapexCode,$AD:$AD)","v":0},{"$f":"SUMIFS(Sheet1!S71_PPYearAmount,Sheet1!S71_SA34aCode,$AC:$AC,Sheet1!S71_A5CapexCode,$AD:$AD)","v":0},{"$f":"SUMIFS(Sheet1!S71_PYearAmount,Sheet1!S71_SA34aCode,$AC:$AC,Sheet1!S71_A5CapexCode,$AD:$AD)","v":0},{"$f":"SUMIFS(Sheet1!S71_OriginalBudAmnt,Sheet1!S71_SA34aCode,$AC:$AC,Sheet1!S71_A5CapexCode,$AD:$AD)","v":0},{"$f":"SUMIFS(Sheet1!S71_AdjustmentBudAmnt,Sheet1!S71_SA34aCode,$AC:$AC,Sheet1!S71_A5CapexCode,$AD:$AD)","v":0},{"$f":"SUMIFS(Sheet1!S71_AdjustmentBudAmnt,Sheet1!S71_SA34aCode,$AC:$AC,Sheet1!S71_A5CapexCode,$AD:$AD)","v":0},{"$f":"SUMIFS(Sheet1!S71_ASBudgetAmount,Sheet1!S71_SA34aCode,$AC:$AC,Sheet1!S71_A5CapexCode,$AD:$AD)","v":0},{"$f":"SUMIFS(Sheet1!S71_OY1BudgetAmount,Sheet1!S71_SA34aCode,$AC:$AC,Sheet1!S71_A5CapexCode,$AD:$AD)","v":0},{"$f":"SUMIFS(Sheet1!S71_OY2BudgetAmount,Sheet1!S71_SA34aCode,$AC:$AC,Sheet1!S71_A5CapexCode,$AD:$AD)","v":0},null,null,null,null,null,null,null,null,null,null,null,null,null,null,null,null,null,"0700","CE"]
["Capital Spares",null,{"$f":"SUMIFS(Sheet1!S71_PPPYearAmount,Sheet1!S71_SA34aCode,$AC:$AC,Sheet1!S71_A5CapexCode,$AD:$AD)","v":0},{"$f":"SUMIFS(Sheet1!S71_PPYearAmount,Sheet1!S71_SA34aCode,$AC:$AC,Sheet1!S71_A5CapexCode,$AD:$AD)","v":0},{"$f":"SUMIFS(Sheet1!S71_PYearAmount,Sheet1!S71_SA34aCode,$AC:$AC,Sheet1!S71_A5CapexCode,$AD:$AD)","v":0},{"$f":"SUMIFS(Sheet1!S71_OriginalBudAmnt,Sheet1!S71_SA34aCode,$AC:$AC,Sheet1!S71_A5CapexCode,$AD:$AD)","v":0},{"$f":"SUMIFS(Sheet1!S71_AdjustmentBudAmnt,Sheet1!S71_SA34aCode,$AC:$AC,Sheet1!S71_A5CapexCode,$AD:$AD)","v":0},{"$f":"SUMIFS(Sheet1!S71_AdjustmentBudAmnt,Sheet1!S71_SA34aCode,$AC:$AC,Sheet1!S71_A5CapexCode,$AD:$AD)","v":0},{"$f":"SUMIFS(Sheet1!S71_ASBudgetAmount,Sheet1!S71_SA34aCode,$AC:$AC,Sheet1!S71_A5CapexCode,$AD:$AD)","v":0},{"$f":"SUMIFS(Sheet1!S71_OY1BudgetAmount,Sheet1!S71_SA34aCode,$AC:$AC,Sheet1!S71_A5CapexCode,$AD:$AD)","v":0},{"$f":"SUMIFS(Sheet1!S71_OY2BudgetAmount,Sheet1!S71_SA34aCode,$AC:$AC,Sheet1!S71_A5CapexCode,$AD:$AD)","v":0},null,null,null,null,null,null,null,null,null,null,null,null,null,null,null,null,null,"0710","CE"]
["Information and Communication Infrastructure",null,{"$f":"SUM(C69:C72)","v":0},{"$f":"SUM(D69:D72)","v":0},0,0,0,0,0,0,0,null,null,null,null,null,null,null,null,null,null,null,null,null,null,null,null,null,null,"CE"]
["Data Centres",null,{"$f":"SUMIFS(Sheet1!S71_PPPYearAmount,Sheet1!S71_SA34aCode,$AC:$AC,Sheet1!S71_A5CapexCode,$AD:$AD)","v":0},{"$f":"SUMIFS(Sheet1!S71_PPYearAmount,Sheet1!S71_SA34aCode,$AC:$AC,Sheet1!S71_A5CapexCode,$AD:$AD)","v":0},{"$f":"SUMIFS(Sheet1!S71_PYearAmount,Sheet1!S71_SA34aCode,$AC:$AC,Sheet1!S71_A5CapexCode,$AD:$AD)","v":0},{"$f":"SUMIFS(Sheet1!S71_OriginalBudAmnt,Sheet1!S71_SA34aCode,$AC:$AC,Sheet1!S71_A5CapexCode,$AD:$AD)","v":0},{"$f":"SUMIFS(Sheet1!S71_AdjustmentBudAmnt,Sheet1!S71_SA34aCode,$AC:$AC,Sheet1!S71_A5CapexCode,$AD:$AD)","v":0},{"$f":"SUMIFS(Sheet1!S71_AdjustmentBudAmnt,Sheet1!S71_SA34aCode,$AC:$AC,Sheet1!S71_A5CapexCode,$AD:$AD)","v":0},{"$f":"SUMIFS(Sheet1!S71_ASBudgetAmount,Sheet1!S71_SA34aCode,$AC:$AC,Sheet1!S71_A5CapexCode,$AD:$AD)","v":0},{"$f":"SUMIFS(Sheet1!S71_OY1BudgetAmount,Sheet1!S71_SA34aCode,$AC:$AC,Sheet1!S71_A5CapexCode,$AD:$AD)","v":0},{"$f":"SUMIFS(Sheet1!S71_OY2BudgetAmount,Sheet1!S71_SA34aCode,$AC:$AC,Sheet1!S71_A5CapexCode,$AD:$AD)","v":0},null,null,null,null,null,null,null,null,null,null,null,null,null,null,null,null,null,"0730","CE"]
["Core Layers",null,{"$f":"SUMIFS(Sheet1!S71_PPPYearAmount,Sheet1!S71_SA34aCode,$AC:$AC,Sheet1!S71_A5CapexCode,$AD:$AD)","v":0},{"$f":"SUMIFS(Sheet1!S71_PPYearAmount,Sheet1!S71_SA34aCode,$AC:$AC,Sheet1!S71_A5CapexCode,$AD:$AD)","v":0},{"$f":"SUMIFS(Sheet1!S71_PYearAmount,Sheet1!S71_SA34aCode,$AC:$AC,Sheet1!S71_A5CapexCode,$AD:$AD)","v":0},{"$f":"SUMIFS(Sheet1!S71_OriginalBudAmnt,Sheet1!S71_SA34aCode,$AC:$AC,Sheet1!S71_A5CapexCode,$AD:$AD)","v":0},{"$f":"SUMIFS(Sheet1!S71_AdjustmentBudAmnt,Sheet1!S71_SA34aCode,$AC:$AC,Sheet1!S71_A5CapexCode,$AD:$AD)","v":0},{"$f":"SUMIFS(Sheet1!S71_AdjustmentBudAmnt,Sheet1!S71_SA34aCode,$AC:$AC,Sheet1!S71_A5CapexCode,$AD:$AD)","v":0},{"$f":"SUMIFS(Sheet1!S71_ASBudgetAmount,Sheet1!S71_SA34aCode,$AC:$AC,Sheet1!S71_A5CapexCode,$AD:$AD)","v":0},{"$f":"SUMIFS(Sheet1!S71_OY1BudgetAmount,Sheet1!S71_SA34aCode,$AC:$AC,Sheet1!S71_A5CapexCode,$AD:$AD)","v":0},{"$f":"SUMIFS(Sheet1!S71_OY2BudgetAmount,Sheet1!S71_SA34aCode,$AC:$AC,Sheet1!S71_A5CapexCode,$AD:$AD)","v":0},null,null,null,null,null,null,null,null,null,null,null,null,null,null,null,null,null,"0740","CE"]
["Distribution Layers",null,{"$f":"SUMIFS(Sheet1!S71_PPPYearAmount,Sheet1!S71_SA34aCode,$AC:$AC,Sheet1!S71_A5CapexCode,$AD:$AD)","v":0},{"$f":"SUMIFS(Sheet1!S71_PPYearAmount,Sheet1!S71_SA34aCode,$AC:$AC,Sheet1!S71_A5CapexCode,$AD:$AD)","v":0},{"$f":"SUMIFS(Sheet1!S71_PYearAmount,Sheet1!S71_SA34aCode,$AC:$AC,Sheet1!S71_A5CapexCode,$AD:$AD)","v":0},{"$f":"SUMIFS(Sheet1!S71_OriginalBudAmnt,Sheet1!S71_SA34aCode,$AC:$AC,Sheet1!S71_A5CapexCode,$AD:$AD)","v":0},{"$f":"SUMIFS(Sheet1!S71_AdjustmentBudAmnt,Sheet1!S71_SA34aCode,$AC:$AC,Sheet1!S71_A5CapexCode,$AD:$AD)","v":0},{"$f":"SUMIFS(Sheet1!S71_AdjustmentBudAmnt,Sheet1!S71_SA34aCode,$AC:$AC,Sheet1!S71_A5CapexCode,$AD:$AD)","v":0},{"$f":"SUMIFS(Sheet1!S71_ASBudgetAmount,Sheet1!S71_SA34aCode,$AC:$AC,Sheet1!S71_A5CapexCode,$AD:$AD)","v":0},{"$f":"SUMIFS(Sheet1!S71_OY1BudgetAmount,Sheet1!S71_SA34aCode,$AC:$AC,Sheet1!S71_A5CapexCode,$AD:$AD)","v":0},{"$f":"SUMIFS(Sheet1!S71_OY2BudgetAmount,Sheet1!S71_SA34aCode,$AC:$AC,Sheet1!S71_A5CapexCode,$AD:$AD)","v":0},null,null,null,null,null,null,null,null,null,null,null,null,null,null,null,null,null,"0750","CE"]
["Capital Spares",null,{"$f":"SUMIFS(Sheet1!S71_PPPYearAmount,Sheet1!S71_SA34aCode,$AC:$AC,Sheet1!S71_A5CapexCode,$AD:$AD)","v":0},{"$f":"SUMIFS(Sheet1!S71_PPYearAmount,Sheet1!S71_SA34aCode,$AC:$AC,Sheet1!S71_A5CapexCode,$AD:$AD)","v":0},{"$f":"SUMIFS(Sheet1!S71_PYearAmount,Sheet1!S71_SA34aCode,$AC:$AC,Sheet1!S71_A5CapexCode,$AD:$AD)","v":0},{"$f":"SUMIFS(Sheet1!S71_OriginalBudAmnt,Sheet1!S71_SA34aCode,$AC:$AC,Sheet1!S71_A5CapexCode,$AD:$AD)","v":0},{"$f":"SUMIFS(Sheet1!S71_AdjustmentBudAmnt,Sheet1!S71_SA34aCode,$AC:$AC,Sheet1!S71_A5CapexCode,$AD:$AD)","v":0},{"$f":"SUMIFS(Sheet1!S71_AdjustmentBudAmnt,Sheet1!S71_SA34aCode,$AC:$AC,Sheet1!S71_A5CapexCode,$AD:$AD)","v":0},{"$f":"SUMIFS(Sheet1!S71_ASBudgetAmount,Sheet1!S71_SA34aCode,$AC:$AC,Sheet1!S71_A5CapexCode,$AD:$AD)","v":0},{"$f":"SUMIFS(Sheet1!S71_OY1BudgetAmount,Sheet1!S71_SA34aCode,$AC:$AC,Sheet1!S71_A5CapexCode,$AD:$AD)","v":0},{"$f":"SUMIFS(Sheet1!S71_OY2BudgetAmount,Sheet1!S71_SA34aCode,$AC:$AC,Sheet1!S71_A5CapexCode,$AD:$AD)","v":0},null,null,null,null,null,null,null,null,null,null,null,null,null,null,null,null,null,"0760","CE"]
[null,null,null,null,null,null,null,null,null,null,null,null,null,null,null,null,null,null,null,null,null,null,null,null,null,null,null,null,null,"CE"]
["Community Assets",null,{"$f":"C75+C98","v":0},{"$f":"D75+D98","v":0},0,0,0,0,0,0,0,null,null,null,null,null,null,null,null,null,null,null,null,null,null,null,null,null,null,"CE"]
["Community Facilities",null,{"$f":"SUM(C76:C97)","v":0},{"$f":"SUM(D76:D97)","v":0},0,0,0,0,0,0,0,null,null,null,null,null,null,null,null,null,null,null,null,null,null,null,null,null,null,"CE"]
["Halls",null,{"$f":"SUMIFS(Sheet1!S71_PPPYearAmount,Sheet1!S71_SA34aCode,$AC:$AC,Sheet1!S71_A5CapexCode,$AD:$AD)","v":0},{"$f":"SUMIFS(Sheet1!S71_PPYearAmount,Sheet1!S71_SA34aCode,$AC:$AC,Sheet1!S71_A5CapexCode,$AD:$AD)","v":0},{"$f":"SUMIFS(Sheet1!S71_PYearAmount,Sheet1!S71_SA34aCode,$AC:$AC,Sheet1!S71_A5CapexCode,$AD:$AD)","v":0},{"$f":"SUMIFS(Sheet1!S71_OriginalBudAmnt,Sheet1!S71_SA34aCode,$AC:$AC,Sheet1!S71_A5CapexCode,$AD:$AD)","v":0},{"$f":"SUMIFS(Sheet1!S71_AdjustmentBudAmnt,Sheet1!S71_SA34aCode,$AC:$AC,Sheet1!S71_A5CapexCode,$AD:$AD)","v":0},{"$f":"SUMIFS(Sheet1!S71_AdjustmentBudAmnt,Sheet1!S71_SA34aCode,$AC:$AC,Sheet1!S71_A5CapexCode,$AD:$AD)","v":0},{"$f":"SUMIFS(Sheet1!S71_ASBudgetAmount,Sheet1!S71_SA34aCode,$AC:$AC,Sheet1!S71_A5CapexCode,$AD:$AD)","v":0},{"$f":"SUMIFS(Sheet1!S71_OY1BudgetAmount,Sheet1!S71_SA34aCode,$AC:$AC,Sheet1!S71_A5CapexCode,$AD:$AD)","v":0},{"$f":"SUMIFS(Sheet1!S71_OY2BudgetAmount,Sheet1!S71_SA34aCode,$AC:$AC,Sheet1!S71_A5CapexCode,$AD:$AD)","v":0},null,null,null,null,null,null,null,null,null,null,null,null,null,null,null,null,null,"0790","CE"]
["Centres",null,{"$f":"SUMIFS(Sheet1!S71_PPPYearAmount,Sheet1!S71_SA34aCode,$AC:$AC,Sheet1!S71_A5CapexCode,$AD:$AD)","v":0},{"$f":"SUMIFS(Sheet1!S71_PPYearAmount,Sheet1!S71_SA34aCode,$AC:$AC,Sheet1!S71_A5CapexCode,$AD:$AD)","v":0},{"$f":"SUMIFS(Sheet1!S71_PYearAmount,Sheet1!S71_SA34aCode,$AC:$AC,Sheet1!S71_A5CapexCode,$AD:$AD)","v":0},{"$f":"SUMIFS(Sheet1!S71_OriginalBudAmnt,Sheet1!S71_SA34aCode,$AC:$AC,Sheet1!S71_A5CapexCode,$AD:$AD)","v":0},{"$f":"SUMIFS(Sheet1!S71_AdjustmentBudAmnt,Sheet1!S71_SA34aCode,$AC:$AC,Sheet1!S71_A5CapexCode,$AD:$AD)","v":0},{"$f":"SUMIFS(Sheet1!S71_AdjustmentBudAmnt,Sheet1!S71_SA34aCode,$AC:$AC,Sheet1!S71_A5CapexCode,$AD:$AD)","v":0},{"$f":"SUMIFS(Sheet1!S71_ASBudgetAmount,Sheet1!S71_SA34aCode,$AC:$AC,Sheet1!S71_A5CapexCode,$AD:$AD)","v":0},{"$f":"SUMIFS(Sheet1!S71_OY1BudgetAmount,Sheet1!S71_SA34aCode,$AC:$AC,Sheet1!S71_A5CapexCode,$AD:$AD)","v":0},{"$f":"SUMIFS(Sheet1!S71_OY2BudgetAmount,Sheet1!S71_SA34aCode,$AC:$AC,Sheet1!S71_A5CapexCode,$AD:$AD)","v":0},null,null,null,null,null,null,null,null,null,null,null,null,null,null,null,null,null,"0800","CE"]
["Crèches",null,{"$f":"SUMIFS(Sheet1!S71_PPPYearAmount,Sheet1!S71_SA34aCode,$AC:$AC,Sheet1!S71_A5CapexCode,$AD:$AD)","v":0},{"$f":"SUMIFS(Sheet1!S71_PPYearAmount,Sheet1!S71_SA34aCode,$AC:$AC,Sheet1!S71_A5CapexCode,$AD:$AD)","v":0},{"$f":"SUMIFS(Sheet1!S71_PYearAmount,Sheet1!S71_SA34aCode,$AC:$AC,Sheet1!S71_A5CapexCode,$AD:$AD)","v":0},{"$f":"SUMIFS(Sheet1!S71_OriginalBudAmnt,Sheet1!S71_SA34aCode,$AC:$AC,Sheet1!S71_A5CapexCode,$AD:$AD)","v":0},{"$f":"SUMIFS(Sheet1!S71_AdjustmentBudAmnt,Sheet1!S71_SA34aCode,$AC:$AC,Sheet1!S71_A5CapexCode,$AD:$AD)","v":0},{"$f":"SUMIFS(Sheet1!S71_AdjustmentBudAmnt,Sheet1!S71_SA34aCode,$AC:$AC,Sheet1!S71_A5CapexCode,$AD:$AD)","v":0},{"$f":"SUMIFS(Sheet1!S71_ASBudgetAmount,Sheet1!S71_SA34aCode,$AC:$AC,Sheet1!S71_A5CapexCode,$AD:$AD)","v":0},{"$f":"SUMIFS(Sheet1!S71_OY1BudgetAmount,Sheet1!S71_SA34aCode,$AC:$AC,Sheet1!S71_A5CapexCode,$AD:$AD)","v":0},{"$f":"SUMIFS(Sheet1!S71_OY2BudgetAmount,Sheet1!S71_SA34aCode,$AC:$AC,Sheet1!S71_A5CapexCode,$AD:$AD)","v":0},null,null,null,null,null,null,null,null,null,null,null,null,null,null,null,null,null,"0810","CE"]
["Clinics/Care Centres",null,{"$f":"SUMIFS(Sheet1!S71_PPPYearAmount,Sheet1!S71_SA34aCode,$AC:$AC,Sheet1!S71_A5CapexCode,$AD:$AD)","v":0},{"$f":"SUMIFS(Sheet1!S71_PPYearAmount,Sheet1!S71_SA34aCode,$AC:$AC,Sheet1!S71_A5CapexCode,$AD:$AD)","v":0},{"$f":"SUMIFS(Sheet1!S71_PYearAmount,Sheet1!S71_SA34aCode,$AC:$AC,Sheet1!S71_A5CapexCode,$AD:$AD)","v":0},{"$f":"SUMIFS(Sheet1!S71_OriginalBudAmnt,Sheet1!S71_SA34aCode,$AC:$AC,Sheet1!S71_A5CapexCode,$AD:$AD)","v":0},{"$f":"SUMIFS(Sheet1!S71_AdjustmentBudAmnt,Sheet1!S71_SA34aCode,$AC:$AC,Sheet1!S71_A5CapexCode,$AD:$AD)","v":0},{"$f":"SUMIFS(Sheet1!S71_AdjustmentBudAmnt,Sheet1!S71_SA34aCode,$AC:$AC,Sheet1!S71_A5CapexCode,$AD:$AD)","v":0},{"$f":"SUMIFS(Sheet1!S71_ASBudgetAmount,Sheet1!S71_SA34aCode,$AC:$AC,Sheet1!S71_A5CapexCode,$AD:$AD)","v":0},{"$f":"SUMIFS(Sheet1!S71_OY1BudgetAmount,Sheet1!S71_SA34aCode,$AC:$AC,Sheet1!S71_A5CapexCode,$AD:$AD)","v":0},{"$f":"SUMIFS(Sheet1!S71_OY2BudgetAmount,Sheet1!S71_SA34aCode,$AC:$AC,Sheet1!S71_A5CapexCode,$AD:$AD)","v":0},null,null,null,null,null,null,null,null,null,null,null,null,null,null,null,null,null,"0820","CE"]
["Fire/Ambulance Stations",null,{"$f":"SUMIFS(Sheet1!S71_PPPYearAmount,Sheet1!S71_SA34aCode,$AC:$AC,Sheet1!S71_A5CapexCode,$AD:$AD)","v":0},{"$f":"SUMIFS(Sheet1!S71_PPYearAmount,Sheet1!S71_SA34aCode,$AC:$AC,Sheet1!S71_A5CapexCode,$AD:$AD)","v":0},{"$f":"SUMIFS(Sheet1!S71_PYearAmount,Sheet1!S71_SA34aCode,$AC:$AC,Sheet1!S71_A5CapexCode,$AD:$AD)","v":0},{"$f":"SUMIFS(Sheet1!S71_OriginalBudAmnt,Sheet1!S71_SA34aCode,$AC:$AC,Sheet1!S71_A5CapexCode,$AD:$AD)","v":0},{"$f":"SUMIFS(Sheet1!S71_AdjustmentBudAmnt,Sheet1!S71_SA34aCode,$AC:$AC,Sheet1!S71_A5CapexCode,$AD:$AD)","v":0},{"$f":"SUMIFS(Sheet1!S71_AdjustmentBudAmnt,Sheet1!S71_SA34aCode,$AC:$AC,Sheet1!S71_A5CapexCode,$AD:$AD)","v":0},{"$f":"SUMIFS(Sheet1!S71_ASBudgetAmount,Sheet1!S71_SA34aCode,$AC:$AC,Sheet1!S71_A5CapexCode,$AD:$AD)","v":0},{"$f":"SUMIFS(Sheet1!S71_OY1BudgetAmount,Sheet1!S71_SA34aCode,$AC:$AC,Sheet1!S71_A5CapexCode,$AD:$AD)","v":0},{"$f":"SUMIFS(Sheet1!S71_OY2BudgetAmount,Sheet1!S71_SA34aCode,$AC:$AC,Sheet1!S71_A5CapexCode,$AD:$AD)","v":0},null,null,null,null,null,null,null,null,null,null,null,null,null,null,null,null,null,"0830","CE"]
["Testing Stations",null,{"$f":"SUMIFS(Sheet1!S71_PPPYearAmount,Sheet1!S71_SA34aCode,$AC:$AC,Sheet1!S71_A5CapexCode,$AD:$AD)","v":0},{"$f":"SUMIFS(Sheet1!S71_PPYearAmount,Sheet1!S71_SA34aCode,$AC:$AC,Sheet1!S71_A5CapexCode,$AD:$AD)","v":0},{"$f":"SUMIFS(Sheet1!S71_PYearAmount,Sheet1!S71_SA34aCode,$AC:$AC,Sheet1!S71_A5CapexCode,$AD:$AD)","v":0},{"$f":"SUMIFS(Sheet1!S71_OriginalBudAmnt,Sheet1!S71_SA34aCode,$AC:$AC,Sheet1!S71_A5CapexCode,$AD:$AD)","v":0},{"$f":"SUMIFS(Sheet1!S71_AdjustmentBudAmnt,Sheet1!S71_SA34aCode,$AC:$AC,Sheet1!S71_A5CapexCode,$AD:$AD)","v":0},{"$f":"SUMIFS(Sheet1!S71_AdjustmentBudAmnt,Sheet1!S71_SA34aCode,$AC:$AC,Sheet1!S71_A5CapexCode,$AD:$AD)","v":0},{"$f":"SUMIFS(Sheet1!S71_ASBudgetAmount,Sheet1!S71_SA34aCode,$AC:$AC,Sheet1!S71_A5CapexCode,$AD:$AD)","v":0},{"$f":"SUMIFS(Sheet1!S71_OY1BudgetAmount,Sheet1!S71_SA34aCode,$AC:$AC,Sheet1!S71_A5CapexCode,$AD:$AD)","v":0},{"$f":"SUMIFS(Sheet1!S71_OY2BudgetAmount,Sheet1!S71_SA34aCode,$AC:$AC,Sheet1!S71_A5CapexCode,$AD:$AD)","v":0},null,null,null,null,null,null,null,null,null,null,null,null,null,null,null,null,null,"0840","CE"]
["Museums",null,{"$f":"SUMIFS(Sheet1!S71_PPPYearAmount,Sheet1!S71_SA34aCode,$AC:$AC,Sheet1!S71_A5CapexCode,$AD:$AD)","v":0},{"$f":"SUMIFS(Sheet1!S71_PPYearAmount,Sheet1!S71_SA34aCode,$AC:$AC,Sheet1!S71_A5CapexCode,$AD:$AD)","v":0},{"$f":"SUMIFS(Sheet1!S71_PYearAmount,Sheet1!S71_SA34aCode,$AC:$AC,Sheet1!S71_A5CapexCode,$AD:$AD)","v":0},{"$f":"SUMIFS(Sheet1!S71_OriginalBudAmnt,Sheet1!S71_SA34aCode,$AC:$AC,Sheet1!S71_A5CapexCode,$AD:$AD)","v":0},{"$f":"SUMIFS(Sheet1!S71_AdjustmentBudAmnt,Sheet1!S71_SA34aCode,$AC:$AC,Sheet1!S71_A5CapexCode,$AD:$AD)","v":0},{"$f":"SUMIFS(Sheet1!S71_AdjustmentBudAmnt,Sheet1!S71_SA34aCode,$AC:$AC,Sheet1!S71_A5CapexCode,$AD:$AD)","v":0},{"$f":"SUMIFS(Sheet1!S71_ASBudgetAmount,Sheet1!S71_SA34aCode,$AC:$AC,Sheet1!S71_A5CapexCode,$AD:$AD)","v":0},{"$f":"SUMIFS(Sheet1!S71_OY1BudgetAmount,Sheet1!S71_SA34aCode,$AC:$AC,Sheet1!S71_A5CapexCode,$AD:$AD)","v":0},{"$f":"SUMIFS(Sheet1!S71_OY2BudgetAmount,Sheet1!S71_SA34aCode,$AC:$AC,Sheet1!S71_A5CapexCode,$AD:$AD)","v":0},null,null,null,null,null,null,null,null,null,null,null,null,null,null,null,null,null,"0850","CE"]
["Galleries",null,{"$f":"SUMIFS(Sheet1!S71_PPPYearAmount,Sheet1!S71_SA34aCode,$AC:$AC,Sheet1!S71_A5CapexCode,$AD:$AD)","v":0},{"$f":"SUMIFS(Sheet1!S71_PPYearAmount,Sheet1!S71_SA34aCode,$AC:$AC,Sheet1!S71_A5CapexCode,$AD:$AD)","v":0},{"$f":"SUMIFS(Sheet1!S71_PYearAmount,Sheet1!S71_SA34aCode,$AC:$AC,Sheet1!S71_A5CapexCode,$AD:$AD)","v":0},{"$f":"SUMIFS(Sheet1!S71_OriginalBudAmnt,Sheet1!S71_SA34aCode,$AC:$AC,Sheet1!S71_A5CapexCode,$AD:$AD)","v":0},{"$f":"SUMIFS(Sheet1!S71_AdjustmentBudAmnt,Sheet1!S71_SA34aCode,$AC:$AC,Sheet1!S71_A5CapexCode,$AD:$AD)","v":0},{"$f":"SUMIFS(Sheet1!S71_AdjustmentBudAmnt,Sheet1!S71_SA34aCode,$AC:$AC,Sheet1!S71_A5CapexCode,$AD:$AD)","v":0},{"$f":"SUMIFS(Sheet1!S71_ASBudgetAmount,Sheet1!S71_SA34aCode,$AC:$AC,Sheet1!S71_A5CapexCode,$AD:$AD)","v":0},{"$f":"SUMIFS(Sheet1!S71_OY1BudgetAmount,Sheet1!S71_SA34aCode,$AC:$AC,Sheet1!S71_A5CapexCode,$AD:$AD)","v":0},{"$f":"SUMIFS(Sheet1!S71_OY2BudgetAmount,Sheet1!S71_SA34aCode,$AC:$AC,Sheet1!S71_A5CapexCode,$AD:$AD)","v":0},null,null,null,null,null,null,null,null,null,null,null,null,null,null,null,null,null,"0860","CE"]
["Theatres",null,{"$f":"SUMIFS(Sheet1!S71_PPPYearAmount,Sheet1!S71_SA34aCode,$AC:$AC,Sheet1!S71_A5CapexCode,$AD:$AD)","v":0},{"$f":"SUMIFS(Sheet1!S71_PPYearAmount,Sheet1!S71_SA34aCode,$AC:$AC,Sheet1!S71_A5CapexCode,$AD:$AD)","v":0},{"$f":"SUMIFS(Sheet1!S71_PYearAmount,Sheet1!S71_SA34aCode,$AC:$AC,Sheet1!S71_A5CapexCode,$AD:$AD)","v":0},{"$f":"SUMIFS(Sheet1!S71_OriginalBudAmnt,Sheet1!S71_SA34aCode,$AC:$AC,Sheet1!S71_A5CapexCode,$AD:$AD)","v":0},{"$f":"SUMIFS(Sheet1!S71_AdjustmentBudAmnt,Sheet1!S71_SA34aCode,$AC:$AC,Sheet1!S71_A5CapexCode,$AD:$AD)","v":0},{"$f":"SUMIFS(Sheet1!S71_AdjustmentBudAmnt,Sheet1!S71_SA34aCode,$AC:$AC,Sheet1!S71_A5CapexCode,$AD:$AD)","v":0},{"$f":"SUMIFS(Sheet1!S71_ASBudgetAmount,Sheet1!S71_SA34aCode,$AC:$AC,Sheet1!S71_A5CapexCode,$AD:$AD)","v":0},{"$f":"SUMIFS(Sheet1!S71_OY1BudgetAmount,Sheet1!S71_SA34aCode,$AC:$AC,Sheet1!S71_A5CapexCode,$AD:$AD)","v":0},{"$f":"SUMIFS(Sheet1!S71_OY2BudgetAmount,Sheet1!S71_SA34aCode,$AC:$AC,Sheet1!S71_A5CapexCode,$AD:$AD)","v":0},null,null,null,null,null,null,null,null,null,null,null,null,null,null,null,null,null,"0870","CE"]
["Libraries",null,{"$f":"SUMIFS(Sheet1!S71_PPPYearAmount,Sheet1!S71_SA34aCode,$AC:$AC,Sheet1!S71_A5CapexCode,$AD:$AD)","v":0},{"$f":"SUMIFS(Sheet1!S71_PPYearAmount,Sheet1!S71_SA34aCode,$AC:$AC,Sheet1!S71_A5CapexCode,$AD:$AD)","v":0},{"$f":"SUMIFS(Sheet1!S71_PYearAmount,Sheet1!S71_SA34aCode,$AC:$AC,Sheet1!S71_A5CapexCode,$AD:$AD)","v":0},{"$f":"SUMIFS(Sheet1!S71_OriginalBudAmnt,Sheet1!S71_SA34aCode,$AC:$AC,Sheet1!S71_A5CapexCode,$AD:$AD)","v":0},{"$f":"SUMIFS(Sheet1!S71_AdjustmentBudAmnt,Sheet1!S71_SA34aCode,$AC:$AC,Sheet1!S71_A5CapexCode,$AD:$AD)","v":0},{"$f":"SUMIFS(Sheet1!S71_AdjustmentBudAmnt,Sheet1!S71_SA34aCode,$AC:$AC,Sheet1!S71_A5CapexCode,$AD:$AD)","v":0},{"$f":"SUMIFS(Sheet1!S71_ASBudgetAmount,Sheet1!S71_SA34aCode,$AC:$AC,Sheet1!S71_A5CapexCode,$AD:$AD)","v":0},{"$f":"SUMIFS(Sheet1!S71_OY1BudgetAmount,Sheet1!S71_SA34aCode,$AC:$AC,Sheet1!S71_A5CapexCode,$AD:$AD)","v":0},{"$f":"SUMIFS(Sheet1!S71_OY2BudgetAmount,Sheet1!S71_SA34aCode,$AC:$AC,Sheet1!S71_A5CapexCode,$AD:$AD)","v":0},null,null,null,null,null,null,null,null,null,null,null,null,null,null,null,null,null,"0880","CE"]
["Cemeteries/Crematoria",null,{"$f":"SUMIFS(Sheet1!S71_PPPYearAmount,Sheet1!S71_SA34aCode,$AC:$AC,Sheet1!S71_A5CapexCode,$AD:$AD)","v":0},{"$f":"SUMIFS(Sheet1!S71_PPYearAmount,Sheet1!S71_SA34aCode,$AC:$AC,Sheet1!S71_A5CapexCode,$AD:$AD)","v":0},{"$f":"SUMIFS(Sheet1!S71_PYearAmount,Sheet1!S71_SA34aCode,$AC:$AC,Sheet1!S71_A5CapexCode,$AD:$AD)","v":0},{"$f":"SUMIFS(Sheet1!S71_OriginalBudAmnt,Sheet1!S71_SA34aCode,$AC:$AC,Sheet1!S71_A5CapexCode,$AD:$AD)","v":0},{"$f":"SUMIFS(Sheet1!S71_AdjustmentBudAmnt,Sheet1!S71_SA34aCode,$AC:$AC,Sheet1!S71_A5CapexCode,$AD:$AD)","v":0},{"$f":"SUMIFS(Sheet1!S71_AdjustmentBudAmnt,Sheet1!S71_SA34aCode,$AC:$AC,Sheet1!S71_A5CapexCode,$AD:$AD)","v":0},{"$f":"SUMIFS(Sheet1!S71_ASBudgetAmount,Sheet1!S71_SA34aCode,$AC:$AC,Sheet1!S71_A5CapexCode,$AD:$AD)","v":0},{"$f":"SUMIFS(Sheet1!S71_OY1BudgetAmount,Sheet1!S71_SA34aCode,$AC:$AC,Sheet1!S71_A5CapexCode,$AD:$AD)","v":0},{"$f":"SUMIFS(Sheet1!S71_OY2BudgetAmount,Sheet1!S71_SA34aCode,$AC:$AC,Sheet1!S71_A5CapexCode,$AD:$AD)","v":0},null,null,null,null,null,null,null,null,null,null,null,null,null,null,null,null,null,"0890","CE"]
["Police",null,{"$f":"SUMIFS(Sheet1!S71_PPPYearAmount,Sheet1!S71_SA34aCode,$AC:$AC,Sheet1!S71_A5CapexCode,$AD:$AD)","v":0},{"$f":"SUMIFS(Sheet1!S71_PPYearAmount,Sheet1!S71_SA34aCode,$AC:$AC,Sheet1!S71_A5CapexCode,$AD:$AD)","v":0},{"$f":"SUMIFS(Sheet1!S71_PYearAmount,Sheet1!S71_SA34aCode,$AC:$AC,Sheet1!S71_A5CapexCode,$AD:$AD)","v":0},{"$f":"SUMIFS(Sheet1!S71_OriginalBudAmnt,Sheet1!S71_SA34aCode,$AC:$AC,Sheet1!S71_A5CapexCode,$AD:$AD)","v":0},{"$f":"SUMIFS(Sheet1!S71_AdjustmentBudAmnt,Sheet1!S71_SA34aCode,$AC:$AC,Sheet1!S71_A5CapexCode,$AD:$AD)","v":0},{"$f":"SUMIFS(Sheet1!S71_AdjustmentBudAmnt,Sheet1!S71_SA34aCode,$AC:$AC,Sheet1!S71_A5CapexCode,$AD:$AD)","v":0},{"$f":"SUMIFS(Sheet1!S71_ASBudgetAmount,Sheet1!S71_SA34aCode,$AC:$AC,Sheet1!S71_A5CapexCode,$AD:$AD)","v":0},{"$f":"SUMIFS(Sheet1!S71_OY1BudgetAmount,Sheet1!S71_SA34aCode,$AC:$AC,Sheet1!S71_A5CapexCode,$AD:$AD)","v":0},{"$f":"SUMIFS(Sheet1!S71_OY2BudgetAmount,Sheet1!S71_SA34aCode,$AC:$AC,Sheet1!S71_A5CapexCode,$AD:$AD)","v":0},null,null,null,null,null,null,null,null,null,null,null,null,null,null,null,null,null,"0900","CE"]
["Parks",null,{"$f":"SUMIFS(Sheet1!S71_PPPYearAmount,Sheet1!S71_SA34aCode,$AC:$AC,Sheet1!S71_A5CapexCode,$AD:$AD)","v":0},{"$f":"SUMIFS(Sheet1!S71_PPYearAmount,Sheet1!S71_SA34aCode,$AC:$AC,Sheet1!S71_A5CapexCode,$AD:$AD)","v":0},{"$f":"SUMIFS(Sheet1!S71_PYearAmount,Sheet1!S71_SA34aCode,$AC:$AC,Sheet1!S71_A5CapexCode,$AD:$AD)","v":0},{"$f":"SUMIFS(Sheet1!S71_OriginalBudAmnt,Sheet1!S71_SA34aCode,$AC:$AC,Sheet1!S71_A5CapexCode,$AD:$AD)","v":0},{"$f":"SUMIFS(Sheet1!S71_AdjustmentBudAmnt,Sheet1!S71_SA34aCode,$AC:$AC,Sheet1!S71_A5CapexCode,$AD:$AD)","v":0},{"$f":"SUMIFS(Sheet1!S71_AdjustmentBudAmnt,Sheet1!S71_SA34aCode,$AC:$AC,Sheet1!S71_A5CapexCode,$AD:$AD)","v":0},{"$f":"SUMIFS(Sheet1!S71_ASBudgetAmount,Sheet1!S71_SA34aCode,$AC:$AC,Sheet1!S71_A5CapexCode,$AD:$AD)","v":0},{"$f":"SUMIFS(Sheet1!S71_OY1BudgetAmount,Sheet1!S71_SA34aCode,$AC:$AC,Sheet1!S71_A5CapexCode,$AD:$AD)","v":0},{"$f":"SUMIFS(Sheet1!S71_OY2BudgetAmount,Sheet1!S71_SA34aCode,$AC:$AC,Sheet1!S71_A5CapexCode,$AD:$AD)","v":0},null,null,null,null,null,null,null,null,null,null,null,null,null,null,null,null,null,"0910","CE"]
["Public Open Space",null,{"$f":"SUMIFS(Sheet1!S71_PPPYearAmount,Sheet1!S71_SA34aCode,$AC:$AC,Sheet1!S71_A5CapexCode,$AD:$AD)","v":0},{"$f":"SUMIFS(Sheet1!S71_PPYearAmount,Sheet1!S71_SA34aCode,$AC:$AC,Sheet1!S71_A5CapexCode,$AD:$AD)","v":0},{"$f":"SUMIFS(Sheet1!S71_PYearAmount,Sheet1!S71_SA34aCode,$AC:$AC,Sheet1!S71_A5CapexCode,$AD:$AD)","v":0},{"$f":"SUMIFS(Sheet1!S71_OriginalBudAmnt,Sheet1!S71_SA34aCode,$AC:$AC,Sheet1!S71_A5CapexCode,$AD:$AD)","v":0},{"$f":"SUMIFS(Sheet1!S71_AdjustmentBudAmnt,Sheet1!S71_SA34aCode,$AC:$AC,Sheet1!S71_A5CapexCode,$AD:$AD)","v":0},{"$f":"SUMIFS(Sheet1!S71_AdjustmentBudAmnt,Sheet1!S71_SA34aCode,$AC:$AC,Sheet1!S71_A5CapexCode,$AD:$AD)","v":0},{"$f":"SUMIFS(Sheet1!S71_ASBudgetAmount,Sheet1!S71_SA34aCode,$AC:$AC,Sheet1!S71_A5CapexCode,$AD:$AD)","v":0},{"$f":"SUMIFS(Sheet1!S71_OY1BudgetAmount,Sheet1!S71_SA34aCode,$AC:$AC,Sheet1!S71_A5CapexCode,$AD:$AD)","v":0},{"$f":"SUMIFS(Sheet1!S71_OY2BudgetAmount,Sheet1!S71_SA34aCode,$AC:$AC,Sheet1!S71_A5CapexCode,$AD:$AD)","v":0},null,null,null,null,null,null,null,null,null,null,null,null,null,null,null,null,null,"0920","CE"]
["Nature Reserves",null,{"$f":"SUMIFS(Sheet1!S71_PPPYearAmount,Sheet1!S71_SA34aCode,$AC:$AC,Sheet1!S71_A5CapexCode,$AD:$AD)","v":0},{"$f":"SUMIFS(Sheet1!S71_PPYearAmount,Sheet1!S71_SA34aCode,$AC:$AC,Sheet1!S71_A5CapexCode,$AD:$AD)","v":0},{"$f":"SUMIFS(Sheet1!S71_PYearAmount,Sheet1!S71_SA34aCode,$AC:$AC,Sheet1!S71_A5CapexCode,$AD:$AD)","v":0},{"$f":"SUMIFS(Sheet1!S71_OriginalBudAmnt,Sheet1!S71_SA34aCode,$AC:$AC,Sheet1!S71_A5CapexCode,$AD:$AD)","v":0},{"$f":"SUMIFS(Sheet1!S71_AdjustmentBudAmnt,Sheet1!S71_SA34aCode,$AC:$AC,Sheet1!S71_A5CapexCode,$AD:$AD)","v":0},{"$f":"SUMIFS(Sheet1!S71_AdjustmentBudAmnt,Sheet1!S71_SA34aCode,$AC:$AC,Sheet1!S71_A5CapexCode,$AD:$AD)","v":0},{"$f":"SUMIFS(Sheet1!S71_ASBudgetAmount,Sheet1!S71_SA34aCode,$AC:$AC,Sheet1!S71_A5CapexCode,$AD:$AD)","v":0},{"$f":"SUMIFS(Sheet1!S71_OY1BudgetAmount,Sheet1!S71_SA34aCode,$AC:$AC,Sheet1!S71_A5CapexCode,$AD:$AD)","v":0},{"$f":"SUMIFS(Sheet1!S71_OY2BudgetAmount,Sheet1!S71_SA34aCode,$AC:$AC,Sheet1!S71_A5CapexCode,$AD:$AD)","v":0},null,null,null,null,null,null,null,null,null,null,null,null,null,null,null,null,null,"0930","CE"]
["Public Ablution Facilities",null,{"$f":"SUMIFS(Sheet1!S71_PPPYearAmount,Sheet1!S71_SA34aCode,$AC:$AC,Sheet1!S71_A5CapexCode,$AD:$AD)","v":0},{"$f":"SUMIFS(Sheet1!S71_PPYearAmount,Sheet1!S71_SA34aCode,$AC:$AC,Sheet1!S71_A5CapexCode,$AD:$AD)","v":0},{"$f":"SUMIFS(Sheet1!S71_PYearAmount,Sheet1!S71_SA34aCode,$AC:$AC,Sheet1!S71_A5CapexCode,$AD:$AD)","v":0},{"$f":"SUMIFS(Sheet1!S71_OriginalBudAmnt,Sheet1!S71_SA34aCode,$AC:$AC,Sheet1!S71_A5CapexCode,$AD:$AD)","v":0},{"$f":"SUMIFS(Sheet1!S71_AdjustmentBudAmnt,Sheet1!S71_SA34aCode,$AC:$AC,Sheet1!S71_A5CapexCode,$AD:$AD)","v":0},{"$f":"SUMIFS(Sheet1!S71_AdjustmentBudAmnt,Sheet1!S71_SA34aCode,$AC:$AC,Sheet1!S71_A5CapexCode,$AD:$AD)","v":0},{"$f":"SUMIFS(Sheet1!S71_ASBudgetAmount,Sheet1!S71_SA34aCode,$AC:$AC,Sheet1!S71_A5CapexCode,$AD:$AD)","v":0},{"$f":"SUMIFS(Sheet1!S71_OY1BudgetAmount,Sheet1!S71_SA34aCode,$AC:$AC,Sheet1!S71_A5CapexCode,$AD:$AD)","v":0},{"$f":"SUMIFS(Sheet1!S71_OY2BudgetAmount,Sheet1!S71_SA34aCode,$AC:$AC,Sheet1!S71_A5CapexCode,$AD:$AD)","v":0},null,null,null,null,null,null,null,null,null,null,null,null,null,null,null,null,null,"0940","CE"]
["Markets",null,{"$f":"SUMIFS(Sheet1!S71_PPPYearAmount,Sheet1!S71_SA34aCode,$AC:$AC,Sheet1!S71_A5CapexCode,$AD:$AD)","v":0},{"$f":"SUMIFS(Sheet1!S71_PPYearAmount,Sheet1!S71_SA34aCode,$AC:$AC,Sheet1!S71_A5CapexCode,$AD:$AD)","v":0},{"$f":"SUMIFS(Sheet1!S71_PYearAmount,Sheet1!S71_SA34aCode,$AC:$AC,Sheet1!S71_A5CapexCode,$AD:$AD)","v":0},{"$f":"SUMIFS(Sheet1!S71_OriginalBudAmnt,Sheet1!S71_SA34aCode,$AC:$AC,Sheet1!S71_A5CapexCode,$AD:$AD)","v":0},{"$f":"SUMIFS(Sheet1!S71_AdjustmentBudAmnt,Sheet1!S71_SA34aCode,$AC:$AC,Sheet1!S71_A5CapexCode,$AD:$AD)","v":0},{"$f":"SUMIFS(Sheet1!S71_AdjustmentBudAmnt,Sheet1!S71_SA34aCode,$AC:$AC,Sheet1!S71_A5CapexCode,$AD:$AD)","v":0},{"$f":"SUMIFS(Sheet1!S71_ASBudgetAmount,Sheet1!S71_SA34aCode,$AC:$AC,Sheet1!S71_A5CapexCode,$AD:$AD)","v":0},{"$f":"SUMIFS(Sheet1!S71_OY1BudgetAmount,Sheet1!S71_SA34aCode,$AC:$AC,Sheet1!S71_A5CapexCode,$AD:$AD)","v":0},{"$f":"SUMIFS(Sheet1!S71_OY2BudgetAmount,Sheet1!S71_SA34aCode,$AC:$AC,Sheet1!S71_A5CapexCode,$AD:$AD)","v":0},null,null,null,null,null,null,null,null,null,null,null,null,null,null,null,null,null,"0950","CE"]
["Stalls",null,{"$f":"SUMIFS(Sheet1!S71_PPPYearAmount,Sheet1!S71_SA34aCode,$AC:$AC,Sheet1!S71_A5CapexCode,$AD:$AD)","v":0},{"$f":"SUMIFS(Sheet1!S71_PPYearAmount,Sheet1!S71_SA34aCode,$AC:$AC,Sheet1!S71_A5CapexCode,$AD:$AD)","v":0},{"$f":"SUMIFS(Sheet1!S71_PYearAmount,Sheet1!S71_SA34aCode,$AC:$AC,Sheet1!S71_A5CapexCode,$AD:$AD)","v":0},{"$f":"SUMIFS(Sheet1!S71_OriginalBudAmnt,Sheet1!S71_SA34aCode,$AC:$AC,Sheet1!S71_A5CapexCode,$AD:$AD)","v":0},{"$f":"SUMIFS(Sheet1!S71_AdjustmentBudAmnt,Sheet1!S71_SA34aCode,$AC:$AC,Sheet1!S71_A5CapexCode,$AD:$AD)","v":0},{"$f":"SUMIFS(Sheet1!S71_AdjustmentBudAmnt,Sheet1!S71_SA34aCode,$AC:$AC,Sheet1!S71_A5CapexCode,$AD:$AD)","v":0},{"$f":"SUMIFS(Sheet1!S71_ASBudgetAmount,Sheet1!S71_SA34aCode,$AC:$AC,Sheet1!S71_A5CapexCode,$AD:$AD)","v":0},{"$f":"SUMIFS(Sheet1!S71_OY1BudgetAmount,Sheet1!S71_SA34aCode,$AC:$AC,Sheet1!S71_A5CapexCode,$AD:$AD)","v":0},{"$f":"SUMIFS(Sheet1!S71_OY2BudgetAmount,Sheet1!S71_SA34aCode,$AC:$AC,Sheet1!S71_A5CapexCode,$AD:$AD)","v":0},null,null,null,null,null,null,null,null,null,null,null,null,null,null,null,null,null,"0960","CE"]
["Abattoirs",null,{"$f":"SUMIFS(Sheet1!S71_PPPYearAmount,Sheet1!S71_SA34aCode,$AC:$AC,Sheet1!S71_A5CapexCode,$AD:$AD)","v":0},{"$f":"SUMIFS(Sheet1!S71_PPYearAmount,Sheet1!S71_SA34aCode,$AC:$AC,Sheet1!S71_A5CapexCode,$AD:$AD)","v":0},{"$f":"SUMIFS(Sheet1!S71_PYearAmount,Sheet1!S71_SA34aCode,$AC:$AC,Sheet1!S71_A5CapexCode,$AD:$AD)","v":0},{"$f":"SUMIFS(Sheet1!S71_OriginalBudAmnt,Sheet1!S71_SA34aCode,$AC:$AC,Sheet1!S71_A5CapexCode,$AD:$AD)","v":0},{"$f":"SUMIFS(Sheet1!S71_AdjustmentBudAmnt,Sheet1!S71_SA34aCode,$AC:$AC,Sheet1!S71_A5CapexCode,$AD:$AD)","v":0},{"$f":"SUMIFS(Sheet1!S71_AdjustmentBudAmnt,Sheet1!S71_SA34aCode,$AC:$AC,Sheet1!S71_A5CapexCode,$AD:$AD)","v":0},{"$f":"SUMIFS(Sheet1!S71_ASBudgetAmount,Sheet1!S71_SA34aCode,$AC:$AC,Sheet1!S71_A5CapexCode,$AD:$AD)","v":0},{"$f":"SUMIFS(Sheet1!S71_OY1BudgetAmount,Sheet1!S71_SA34aCode,$AC:$AC,Sheet1!S71_A5CapexCode,$AD:$AD)","v":0},{"$f":"SUMIFS(Sheet1!S71_OY2BudgetAmount,Sheet1!S71_SA34aCode,$AC:$AC,Sheet1!S71_A5CapexCode,$AD:$AD)","v":0},null,null,null,null,null,null,null,null,null,null,null,null,null,null,null,null,null,"0970","CE"]
["Airports",null,{"$f":"SUMIFS(Sheet1!S71_PPPYearAmount,Sheet1!S71_SA34aCode,$AC:$AC,Sheet1!S71_A5CapexCode,$AD:$AD)","v":0},{"$f":"SUMIFS(Sheet1!S71_PPYearAmount,Sheet1!S71_SA34aCode,$AC:$AC,Sheet1!S71_A5CapexCode,$AD:$AD)","v":0},{"$f":"SUMIFS(Sheet1!S71_PYearAmount,Sheet1!S71_SA34aCode,$AC:$AC,Sheet1!S71_A5CapexCode,$AD:$AD)","v":0},{"$f":"SUMIFS(Sheet1!S71_OriginalBudAmnt,Sheet1!S71_SA34aCode,$AC:$AC,Sheet1!S71_A5CapexCode,$AD:$AD)","v":0},{"$f":"SUMIFS(Sheet1!S71_AdjustmentBudAmnt,Sheet1!S71_SA34aCode,$AC:$AC,Sheet1!S71_A5CapexCode,$AD:$AD)","v":0},{"$f":"SUMIFS(Sheet1!S71_AdjustmentBudAmnt,Sheet1!S71_SA34aCode,$AC:$AC,Sheet1!S71_A5CapexCode,$AD:$AD)","v":0},{"$f":"SUMIFS(Sheet1!S71_ASBudgetAmount,Sheet1!S71_SA34aCode,$AC:$AC,Sheet1!S71_A5CapexCode,$AD:$AD)","v":0},{"$f":"SUMIFS(Sheet1!S71_OY1BudgetAmount,Sheet1!S71_SA34aCode,$AC:$AC,Sheet1!S71_A5CapexCode,$AD:$AD)","v":0},{"$f":"SUMIFS(Sheet1!S71_OY2BudgetAmount,Sheet1!S71_SA34aCode,$AC:$AC,Sheet1!S71_A5CapexCode,$AD:$AD)","v":0},null,null,null,null,null,null,null,null,null,null,null,null,null,null,null,null,null,"0980","CE"]
["Taxi Ranks/Bus Terminals",null,{"$f":"SUMIFS(Sheet1!S71_PPPYearAmount,Sheet1!S71_SA34aCode,$AC:$AC,Sheet1!S71_A5CapexCode,$AD:$AD)","v":0},{"$f":"SUMIFS(Sheet1!S71_PPYearAmount,Sheet1!S71_SA34aCode,$AC:$AC,Sheet1!S71_A5CapexCode,$AD:$AD)","v":0},{"$f":"SUMIFS(Sheet1!S71_PYearAmount,Sheet1!S71_SA34aCode,$AC:$AC,Sheet1!S71_A5CapexCode,$AD:$AD)","v":0},{"$f":"SUMIFS(Sheet1!S71_OriginalBudAmnt,Sheet1!S71_SA34aCode,$AC:$AC,Sheet1!S71_A5CapexCode,$AD:$AD)","v":0},{"$f":"SUMIFS(Sheet1!S71_AdjustmentBudAmnt,Sheet1!S71_SA34aCode,$AC:$AC,Sheet1!S71_A5CapexCode,$AD:$AD)","v":0},{"$f":"SUMIFS(Sheet1!S71_AdjustmentBudAmnt,Sheet1!S71_SA34aCode,$AC:$AC,Sheet1!S71_A5CapexCode,$AD:$AD)","v":0},{"$f":"SUMIFS(Sheet1!S71_ASBudgetAmount,Sheet1!S71_SA34aCode,$AC:$AC,Sheet1!S71_A5CapexCode,$AD:$AD)","v":0},{"$f":"SUMIFS(Sheet1!S71_OY1BudgetAmount,Sheet1!S71_SA34aCode,$AC:$AC,Sheet1!S71_A5CapexCode,$AD:$AD)","v":0},{"$f":"SUMIFS(Sheet1!S71_OY2BudgetAmount,Sheet1!S71_SA34aCode,$AC:$AC,Sheet1!S71_A5CapexCode,$AD:$AD)","v":0},null,null,null,null,null,null,null,null,null,null,null,null,null,null,null,null,null,"0990","CE"]
["Capital Spares",null,{"$f":"SUMIFS(Sheet1!S71_PPPYearAmount,Sheet1!S71_SA34aCode,$AC:$AC,Sheet1!S71_A5CapexCode,$AD:$AD)","v":0},{"$f":"SUMIFS(Sheet1!S71_PPYearAmount,Sheet1!S71_SA34aCode,$AC:$AC,Sheet1!S71_A5CapexCode,$AD:$AD)","v":0},{"$f":"SUMIFS(Sheet1!S71_PYearAmount,Sheet1!S71_SA34aCode,$AC:$AC,Sheet1!S71_A5CapexCode,$AD:$AD)","v":0},{"$f":"SUMIFS(Sheet1!S71_OriginalBudAmnt,Sheet1!S71_SA34aCode,$AC:$AC,Sheet1!S71_A5CapexCode,$AD:$AD)","v":0},{"$f":"SUMIFS(Sheet1!S71_AdjustmentBudAmnt,Sheet1!S71_SA34aCode,$AC:$AC,Sheet1!S71_A5CapexCode,$AD:$AD)","v":0},{"$f":"SUMIFS(Sheet1!S71_AdjustmentBudAmnt,Sheet1!S71_SA34aCode,$AC:$AC,Sheet1!S71_A5CapexCode,$AD:$AD)","v":0},{"$f":"SUMIFS(Sheet1!S71_ASBudgetAmount,Sheet1!S71_SA34aCode,$AC:$AC,Sheet1!S71_A5CapexCode,$AD:$AD)","v":0},{"$f":"SUMIFS(Sheet1!S71_OY1BudgetAmount,Sheet1!S71_SA34aCode,$AC:$AC,Sheet1!S71_A5CapexCode,$AD:$AD)","v":0},{"$f":"SUMIFS(Sheet1!S71_OY2BudgetAmount,Sheet1!S71_SA34aCode,$AC:$AC,Sheet1!S71_A5CapexCode,$AD:$AD)","v":0},null,null,null,null,null,null,null,null,null,null,null,null,null,null,null,null,null,"1000","CE"]
["Sport and Recreation Facilities",null,{"$f":"SUM(C99:C101)","v":0},{"$f":"SUM(D99:D101)","v":0},0,0,0,0,0,0,0,null,null,null,null,null,null,null,null,null,null,null,null,null,null,null,null,null,null,"CE"]
["Indoor Facilities",null,{"$f":"SUMIFS(Sheet1!S71_PPPYearAmount,Sheet1!S71_SA34aCode,$AC:$AC,Sheet1!S71_A5CapexCode,$AD:$AD)","v":0},{"$f":"SUMIFS(Sheet1!S71_PPYearAmount,Sheet1!S71_SA34aCode,$AC:$AC,Sheet1!S71_A5CapexCode,$AD:$AD)","v":0},{"$f":"SUMIFS(Sheet1!S71_PYearAmount,Sheet1!S71_SA34aCode,$AC:$AC,Sheet1!S71_A5CapexCode,$AD:$AD)","v":0},{"$f":"SUMIFS(Sheet1!S71_OriginalBudAmnt,Sheet1!S71_SA34aCode,$AC:$AC,Sheet1!S71_A5CapexCode,$AD:$AD)","v":0},{"$f":"SUMIFS(Sheet1!S71_AdjustmentBudAmnt,Sheet1!S71_SA34aCode,$AC:$AC,Sheet1!S71_A5CapexCode,$AD:$AD)","v":0},{"$f":"SUMIFS(Sheet1!S71_AdjustmentBudAmnt,Sheet1!S71_SA34aCode,$AC:$AC,Sheet1!S71_A5CapexCode,$AD:$AD)","v":0},{"$f":"SUMIFS(Sheet1!S71_ASBudgetAmount,Sheet1!S71_SA34aCode,$AC:$AC,Sheet1!S71_A5CapexCode,$AD:$AD)","v":0},{"$f":"SUMIFS(Sheet1!S71_OY1BudgetAmount,Sheet1!S71_SA34aCode,$AC:$AC,Sheet1!S71_A5CapexCode,$AD:$AD)","v":0},{"$f":"SUMIFS(Sheet1!S71_OY2BudgetAmount,Sheet1!S71_SA34aCode,$AC:$AC,Sheet1!S71_A5CapexCode,$AD:$AD)","v":0},null,null,null,null,null,null,null,null,null,null,null,null,null,null,null,null,null,"1020","CE"]
["Outdoor Facilities",null,{"$f":"SUMIFS(Sheet1!S71_PPPYearAmount,Sheet1!S71_SA34aCode,$AC:$AC,Sheet1!S71_A5CapexCode,$AD:$AD)","v":0},{"$f":"SUMIFS(Sheet1!S71_PPYearAmount,Sheet1!S71_SA34aCode,$AC:$AC,Sheet1!S71_A5CapexCode,$AD:$AD)","v":0},{"$f":"SUMIFS(Sheet1!S71_PYearAmount,Sheet1!S71_SA34aCode,$AC:$AC,Sheet1!S71_A5CapexCode,$AD:$AD)","v":0},{"$f":"SUMIFS(Sheet1!S71_OriginalBudAmnt,Sheet1!S71_SA34aCode,$AC:$AC,Sheet1!S71_A5CapexCode,$AD:$AD)","v":0},{"$f":"SUMIFS(Sheet1!S71_AdjustmentBudAmnt,Sheet1!S71_SA34aCode,$AC:$AC,Sheet1!S71_A5CapexCode,$AD:$AD)","v":0},{"$f":"SUMIFS(Sheet1!S71_AdjustmentBudAmnt,Sheet1!S71_SA34aCode,$AC:$AC,Sheet1!S71_A5CapexCode,$AD:$AD)","v":0},{"$f":"SUMIFS(Sheet1!S71_ASBudgetAmount,Sheet1!S71_SA34aCode,$AC:$AC,Sheet1!S71_A5CapexCode,$AD:$AD)","v":0},{"$f":"SUMIFS(Sheet1!S71_OY1BudgetAmount,Sheet1!S71_SA34aCode,$AC:$AC,Sheet1!S71_A5CapexCode,$AD:$AD)","v":0},{"$f":"SUMIFS(Sheet1!S71_OY2BudgetAmount,Sheet1!S71_SA34aCode,$AC:$AC,Sheet1!S71_A5CapexCode,$AD:$AD)","v":0},null,null,null,null,null,null,null,null,null,null,null,null,null,null,null,null,null,"1030","CE"]
["Capital Spares",null,{"$f":"SUMIFS(Sheet1!S71_PPPYearAmount,Sheet1!S71_SA34aCode,$AC:$AC,Sheet1!S71_A5CapexCode,$AD:$AD)","v":0},{"$f":"SUMIFS(Sheet1!S71_PPYearAmount,Sheet1!S71_SA34aCode,$AC:$AC,Sheet1!S71_A5CapexCode,$AD:$AD)","v":0},{"$f":"SUMIFS(Sheet1!S71_PYearAmount,Sheet1!S71_SA34aCode,$AC:$AC,Sheet1!S71_A5CapexCode,$AD:$AD)","v":0},{"$f":"SUMIFS(Sheet1!S71_OriginalBudAmnt,Sheet1!S71_SA34aCode,$AC:$AC,Sheet1!S71_A5CapexCode,$AD:$AD)","v":0},{"$f":"SUMIFS(Sheet1!S71_AdjustmentBudAmnt,Sheet1!S71_SA34aCode,$AC:$AC,Sheet1!S71_A5CapexCode,$AD:$AD)","v":0},{"$f":"SUMIFS(Sheet1!S71_AdjustmentBudAmnt,Sheet1!S71_SA34aCode,$AC:$AC,Sheet1!S71_A5CapexCode,$AD:$AD)","v":0},{"$f":"SUMIFS(Sheet1!S71_ASBudgetAmount,Sheet1!S71_SA34aCode,$AC:$AC,Sheet1!S71_A5CapexCode,$AD:$AD)","v":0},{"$f":"SUMIFS(Sheet1!S71_OY1BudgetAmount,Sheet1!S71_SA34aCode,$AC:$AC,Sheet1!S71_A5CapexCode,$AD:$AD)","v":0},{"$f":"SUMIFS(Sheet1!S71_OY2BudgetAmount,Sheet1!S71_SA34aCode,$AC:$AC,Sheet1!S71_A5CapexCode,$AD:$AD)","v":0},null,null,null,null,null,null,null,null,null,null,null,null,null,null,null,null,null,"1040","CE"]
[null,null,null,null,null,null,null,null,null,null,null,null,null,null,null,null,null,null,null,null,null,null,null,null,null,null,null,null,null,"CE"]
["Heritage assets",null,{"$f":"SUM(C104:C108)","v":0},{"$f":"SUM(D104:D108)","v":0},0,0,0,0,0,0,0,null,null,null,null,null,null,null,null,null,null,null,null,null,null,null,null,null,null,"CE"]
["Monuments",null,{"$f":"SUMIFS(Sheet1!S71_PPPYearAmount,Sheet1!S71_SA34aCode,$AC:$AC,Sheet1!S71_A5CapexCode,$AD:$AD)","v":0},{"$f":"SUMIFS(Sheet1!S71_PPYearAmount,Sheet1!S71_SA34aCode,$AC:$AC,Sheet1!S71_A5CapexCode,$AD:$AD)","v":0},{"$f":"SUMIFS(Sheet1!S71_PYearAmount,Sheet1!S71_SA34aCode,$AC:$AC,Sheet1!S71_A5CapexCode,$AD:$AD)","v":0},{"$f":"SUMIFS(Sheet1!S71_OriginalBudAmnt,Sheet1!S71_SA34aCode,$AC:$AC,Sheet1!S71_A5CapexCode,$AD:$AD)","v":0},{"$f":"SUMIFS(Sheet1!S71_AdjustmentBudAmnt,Sheet1!S71_SA34aCode,$AC:$AC,Sheet1!S71_A5CapexCode,$AD:$AD)","v":0},{"$f":"SUMIFS(Sheet1!S71_AdjustmentBudAmnt,Sheet1!S71_SA34aCode,$AC:$AC,Sheet1!S71_A5CapexCode,$AD:$AD)","v":0},{"$f":"SUMIFS(Sheet1!S71_ASBudgetAmount,Sheet1!S71_SA34aCode,$AC:$AC,Sheet1!S71_A5CapexCode,$AD:$AD)","v":0},{"$f":"SUMIFS(Sheet1!S71_OY1BudgetAmount,Sheet1!S71_SA34aCode,$AC:$AC,Sheet1!S71_A5CapexCode,$AD:$AD)","v":0},{"$f":"SUMIFS(Sheet1!S71_OY2BudgetAmount,Sheet1!S71_SA34aCode,$AC:$AC,Sheet1!S71_A5CapexCode,$AD:$AD)","v":0},null,null,null,null,null,null,null,null,null,null,null,null,null,null,null,null,null,"1060","CE"]
["Historic Buildings",null,{"$f":"SUMIFS(Sheet1!S71_PPPYearAmount,Sheet1!S71_SA34aCode,$AC:$AC,Sheet1!S71_A5CapexCode,$AD:$AD)","v":0},{"$f":"SUMIFS(Sheet1!S71_PPYearAmount,Sheet1!S71_SA34aCode,$AC:$AC,Sheet1!S71_A5CapexCode,$AD:$AD)","v":0},{"$f":"SUMIFS(Sheet1!S71_PYearAmount,Sheet1!S71_SA34aCode,$AC:$AC,Sheet1!S71_A5CapexCode,$AD:$AD)","v":0},{"$f":"SUMIFS(Sheet1!S71_OriginalBudAmnt,Sheet1!S71_SA34aCode,$AC:$AC,Sheet1!S71_A5CapexCode,$AD:$AD)","v":0},{"$f":"SUMIFS(Sheet1!S71_AdjustmentBudAmnt,Sheet1!S71_SA34aCode,$AC:$AC,Sheet1!S71_A5CapexCode,$AD:$AD)","v":0},{"$f":"SUMIFS(Sheet1!S71_AdjustmentBudAmnt,Sheet1!S71_SA34aCode,$AC:$AC,Sheet1!S71_A5CapexCode,$AD:$AD)","v":0},{"$f":"SUMIFS(Sheet1!S71_ASBudgetAmount,Sheet1!S71_SA34aCode,$AC:$AC,Sheet1!S71_A5CapexCode,$AD:$AD)","v":0},{"$f":"SUMIFS(Sheet1!S71_OY1BudgetAmount,Sheet1!S71_SA34aCode,$AC:$AC,Sheet1!S71_A5CapexCode,$AD:$AD)","v":0},{"$f":"SUMIFS(Sheet1!S71_OY2BudgetAmount,Sheet1!S71_SA34aCode,$AC:$AC,Sheet1!S71_A5CapexCode,$AD:$AD)","v":0},null,null,null,null,null,null,null,null,null,null,null,null,null,null,null,null,null,"1070","CE"]
["Works of Art",null,{"$f":"SUMIFS(Sheet1!S71_PPPYearAmount,Sheet1!S71_SA34aCode,$AC:$AC,Sheet1!S71_A5CapexCode,$AD:$AD)","v":0},{"$f":"SUMIFS(Sheet1!S71_PPYearAmount,Sheet1!S71_SA34aCode,$AC:$AC,Sheet1!S71_A5CapexCode,$AD:$AD)","v":0},{"$f":"SUMIFS(Sheet1!S71_PYearAmount,Sheet1!S71_SA34aCode,$AC:$AC,Sheet1!S71_A5CapexCode,$AD:$AD)","v":0},{"$f":"SUMIFS(Sheet1!S71_OriginalBudAmnt,Sheet1!S71_SA34aCode,$AC:$AC,Sheet1!S71_A5CapexCode,$AD:$AD)","v":0},{"$f":"SUMIFS(Sheet1!S71_AdjustmentBudAmnt,Sheet1!S71_SA34aCode,$AC:$AC,Sheet1!S71_A5CapexCode,$AD:$AD)","v":0},{"$f":"SUMIFS(Sheet1!S71_AdjustmentBudAmnt,Sheet1!S71_SA34aCode,$AC:$AC,Sheet1!S71_A5CapexCode,$AD:$AD)","v":0},{"$f":"SUMIFS(Sheet1!S71_ASBudgetAmount,Sheet1!S71_SA34aCode,$AC:$AC,Sheet1!S71_A5CapexCode,$AD:$AD)","v":0},{"$f":"SUMIFS(Sheet1!S71_OY1BudgetAmount,Sheet1!S71_SA34aCode,$AC:$AC,Sheet1!S71_A5CapexCode,$AD:$AD)","v":0},{"$f":"SUMIFS(Sheet1!S71_OY2BudgetAmount,Sheet1!S71_SA34aCode,$AC:$AC,Sheet1!S71_A5CapexCode,$AD:$AD)","v":0},null,null,null,null,null,null,null,null,null,null,null,null,null,null,null,null,null,"1080","CE"]
["Conservation Areas",null,{"$f":"SUMIFS(Sheet1!S71_PPPYearAmount,Sheet1!S71_SA34aCode,$AC:$AC,Sheet1!S71_A5CapexCode,$AD:$AD)","v":0},{"$f":"SUMIFS(Sheet1!S71_PPYearAmount,Sheet1!S71_SA34aCode,$AC:$AC,Sheet1!S71_A5CapexCode,$AD:$AD)","v":0},{"$f":"SUMIFS(Sheet1!S71_PYearAmount,Sheet1!S71_SA34aCode,$AC:$AC,Sheet1!S71_A5CapexCode,$AD:$AD)","v":0},{"$f":"SUMIFS(Sheet1!S71_OriginalBudAmnt,Sheet1!S71_SA34aCode,$AC:$AC,Sheet1!S71_A5CapexCode,$AD:$AD)","v":0},{"$f":"SUMIFS(Sheet1!S71_AdjustmentBudAmnt,Sheet1!S71_SA34aCode,$AC:$AC,Sheet1!S71_A5CapexCode,$AD:$AD)","v":0},{"$f":"SUMIFS(Sheet1!S71_AdjustmentBudAmnt,Sheet1!S71_SA34aCode,$AC:$AC,Sheet1!S71_A5CapexCode,$AD:$AD)","v":0},{"$f":"SUMIFS(Sheet1!S71_ASBudgetAmount,Sheet1!S71_SA34aCode,$AC:$AC,Sheet1!S71_A5CapexCode,$AD:$AD)","v":0},{"$f":"SUMIFS(Sheet1!S71_OY1BudgetAmount,Sheet1!S71_SA34aCode,$AC:$AC,Sheet1!S71_A5CapexCode,$AD:$AD)","v":0},{"$f":"SUMIFS(Sheet1!S71_OY2BudgetAmount,Sheet1!S71_SA34aCode,$AC:$AC,Sheet1!S71_A5CapexCode,$AD:$AD)","v":0},null,null,null,null,null,null,null,null,null,null,null,null,null,null,null,null,null,"1090","CE"]
["Other Heritage",null,{"$f":"SUMIFS(Sheet1!S71_PPPYearAmount,Sheet1!S71_SA34aCode,$AC:$AC,Sheet1!S71_A5CapexCode,$AD:$AD)","v":0},{"$f":"SUMIFS(Sheet1!S71_PPYearAmount,Sheet1!S71_SA34aCode,$AC:$AC,Sheet1!S71_A5CapexCode,$AD:$AD)","v":0},{"$f":"SUMIFS(Sheet1!S71_PYearAmount,Sheet1!S71_SA34aCode,$AC:$AC,Sheet1!S71_A5CapexCode,$AD:$AD)","v":0},{"$f":"SUMIFS(Sheet1!S71_OriginalBudAmnt,Sheet1!S71_SA34aCode,$AC:$AC,Sheet1!S71_A5CapexCode,$AD:$AD)","v":0},{"$f":"SUMIFS(Sheet1!S71_AdjustmentBudAmnt,Sheet1!S71_SA34aCode,$AC:$AC,Sheet1!S71_A5CapexCode,$AD:$AD)","v":0},{"$f":"SUMIFS(Sheet1!S71_AdjustmentBudAmnt,Sheet1!S71_SA34aCode,$AC:$AC,Sheet1!S71_A5CapexCode,$AD:$AD)","v":0},{"$f":"SUMIFS(Sheet1!S71_ASBudgetAmount,Sheet1!S71_SA34aCode,$AC:$AC,Sheet1!S71_A5CapexCode,$AD:$AD)","v":0},{"$f":"SUMIFS(Sheet1!S71_OY1BudgetAmount,Sheet1!S71_SA34aCode,$AC:$AC,Sheet1!S71_A5CapexCode,$AD:$AD)","v":0},{"$f":"SUMIFS(Sheet1!S71_OY2BudgetAmount,Sheet1!S71_SA34aCode,$AC:$AC,Sheet1!S71_A5CapexCode,$AD:$AD)","v":0},null,null,null,null,null,null,null,null,null,null,null,null,null,null,null,null,null,"1100","CE"]
[null,null,null,null,null,null,null,null,null,null,null,null,null,null,null,null,null,null,null,null,null,null,null,null,null,null,null,null,null,"CE"]
["Investment properties",null,{"$f":"+C111+C114","v":0},{"$f":"+D111+D114","v":0},0,0,0,0,0,0,0,null,null,null,null,null,null,null,null,null,null,null,null,null,null,null,null,null,null,"CE"]
["Revenue Generating",null,{"$f":"SUM(C112:C113)","v":0},0,0,0,0,0,0,0,0,null,null,null,null,null,null,null,null,null,null,null,null,null,null,null,null,null,null,"CE"]
["Improved Property",null,{"$f":"SUMIFS(Sheet1!S71_PPPYearAmount,Sheet1!S71_SA34aCode,$AC:$AC,Sheet1!S71_A5CapexCode,$AD:$AD)","v":0},{"$f":"SUMIFS(Sheet1!S71_PPYearAmount,Sheet1!S71_SA34aCode,$AC:$AC,Sheet1!S71_A5CapexCode,$AD:$AD)","v":0},{"$f":"SUMIFS(Sheet1!S71_PYearAmount,Sheet1!S71_SA34aCode,$AC:$AC,Sheet1!S71_A5CapexCode,$AD:$AD)","v":0},{"$f":"SUMIFS(Sheet1!S71_OriginalBudAmnt,Sheet1!S71_SA34aCode,$AC:$AC,Sheet1!S71_A5CapexCode,$AD:$AD)","v":0},{"$f":"SUMIFS(Sheet1!S71_AdjustmentBudAmnt,Sheet1!S71_SA34aCode,$AC:$AC,Sheet1!S71_A5CapexCode,$AD:$AD)","v":0},{"$f":"SUMIFS(Sheet1!S71_AdjustmentBudAmnt,Sheet1!S71_SA34aCode,$AC:$AC,Sheet1!S71_A5CapexCode,$AD:$AD)","v":0},{"$f":"SUMIFS(Sheet1!S71_ASBudgetAmount,Sheet1!S71_SA34aCode,$AC:$AC,Sheet1!S71_A5CapexCode,$AD:$AD)","v":0},{"$f":"SUMIFS(Sheet1!S71_OY1BudgetAmount,Sheet1!S71_SA34aCode,$AC:$AC,Sheet1!S71_A5CapexCode,$AD:$AD)","v":0},{"$f":"SUMIFS(Sheet1!S71_OY2BudgetAmount,Sheet1!S71_SA34aCode,$AC:$AC,Sheet1!S71_A5CapexCode,$AD:$AD)","v":0},null,null,null,null,null,null,null,null,null,null,null,null,null,null,null,null,null,"1130","CE"]
["Unimproved Property",null,{"$f":"SUMIFS(Sheet1!S71_PPPYearAmount,Sheet1!S71_SA34aCode,$AC:$AC,Sheet1!S71_A5CapexCode,$AD:$AD)","v":0},{"$f":"SUMIFS(Sheet1!S71_PPYearAmount,Sheet1!S71_SA34aCode,$AC:$AC,Sheet1!S71_A5CapexCode,$AD:$AD)","v":0},{"$f":"SUMIFS(Sheet1!S71_PYearAmount,Sheet1!S71_SA34aCode,$AC:$AC,Sheet1!S71_A5CapexCode,$AD:$AD)","v":0},{"$f":"SUMIFS(Sheet1!S71_OriginalBudAmnt,Sheet1!S71_SA34aCode,$AC:$AC,Sheet1!S71_A5CapexCode,$AD:$AD)","v":0},{"$f":"SUMIFS(Sheet1!S71_AdjustmentBudAmnt,Sheet1!S71_SA34aCode,$AC:$AC,Sheet1!S71_A5CapexCode,$AD:$AD)","v":0},{"$f":"SUMIFS(Sheet1!S71_AdjustmentBudAmnt,Sheet1!S71_SA34aCode,$AC:$AC,Sheet1!S71_A5CapexCode,$AD:$AD)","v":0},{"$f":"SUMIFS(Sheet1!S71_ASBudgetAmount,Sheet1!S71_SA34aCode,$AC:$AC,Sheet1!S71_A5CapexCode,$AD:$AD)","v":0},{"$f":"SUMIFS(Sheet1!S71_OY1BudgetAmount,Sheet1!S71_SA34aCode,$AC:$AC,Sheet1!S71_A5CapexCode,$AD:$AD)","v":0},{"$f":"SUMIFS(Sheet1!S71_OY2BudgetAmount,Sheet1!S71_SA34aCode,$AC:$AC,Sheet1!S71_A5CapexCode,$AD:$AD)","v":0},null,null,null,null,null,null,null,null,null,null,null,null,null,null,null,null,null,"1140","CE"]
["Non-revenue Generating",null,{"$f":"SUM(C115:C116)","v":0},{"$f":"SUM(D115:D116)","v":0},0,0,0,0,0,0,0,null,null,null,null,null,null,null,null,null,null,null,null,null,null,null,null,null,"4002","CE"]
["Improved Property",null,{"$f":"SUMIFS(Sheet1!S71_PPPYearAmount,Sheet1!S71_SA34aCode,$AC:$AC,Sheet1!S71_A5CapexCode,$AD:$AD)","v":0},{"$f":"SUMIFS(Sheet1!S71_PPYearAmount,Sheet1!S71_SA34aCode,$AC:$AC,Sheet1!S71_A5CapexCode,$AD:$AD)","v":0},{"$f":"SUMIFS(Sheet1!S71_PYearAmount,Sheet1!S71_SA34aCode,$AC:$AC,Sheet1!S71_A5CapexCode,$AD:$AD)","v":0},{"$f":"SUMIFS(Sheet1!S71_OriginalBudAmnt,Sheet1!S71_SA34aCode,$AC:$AC,Sheet1!S71_A5CapexCode,$AD:$AD)","v":0},{"$f":"SUMIFS(Sheet1!S71_AdjustmentBudAmnt,Sheet1!S71_SA34aCode,$AC:$AC,Sheet1!S71_A5CapexCode,$AD:$AD)","v":0},{"$f":"SUMIFS(Sheet1!S71_AdjustmentBudAmnt,Sheet1!S71_SA34aCode,$AC:$AC,Sheet1!S71_A5CapexCode,$AD:$AD)","v":0},{"$f":"SUMIFS(Sheet1!S71_ASBudgetAmount,Sheet1!S71_SA34aCode,$AC:$AC,Sheet1!S71_A5CapexCode,$AD:$AD)","v":0},{"$f":"SUMIFS(Sheet1!S71_OY1BudgetAmount,Sheet1!S71_SA34aCode,$AC:$AC,Sheet1!S71_A5CapexCode,$AD:$AD)","v":0},{"$f":"SUMIFS(Sheet1!S71_OY2BudgetAmount,Sheet1!S71_SA34aCode,$AC:$AC,Sheet1!S71_A5CapexCode,$AD:$AD)","v":0},null,null,null,null,null,null,null,null,null,null,null,null,null,null,null,null,null,"1160","CE"]
["Unimproved Property",null,{"$f":"SUMIFS(Sheet1!S71_PPPYearAmount,Sheet1!S71_SA34aCode,$AC:$AC,Sheet1!S71_A5CapexCode,$AD:$AD)","v":0},{"$f":"SUMIFS(Sheet1!S71_PPYearAmount,Sheet1!S71_SA34aCode,$AC:$AC,Sheet1!S71_A5CapexCode,$AD:$AD)","v":0},{"$f":"SUMIFS(Sheet1!S71_PYearAmount,Sheet1!S71_SA34aCode,$AC:$AC,Sheet1!S71_A5CapexCode,$AD:$AD)","v":0},{"$f":"SUMIFS(Sheet1!S71_OriginalBudAmnt,Sheet1!S71_SA34aCode,$AC:$AC,Sheet1!S71_A5CapexCode,$AD:$AD)","v":0},{"$f":"SUMIFS(Sheet1!S71_AdjustmentBudAmnt,Sheet1!S71_SA34aCode,$AC:$AC,Sheet1!S71_A5CapexCode,$AD:$AD)","v":0},{"$f":"SUMIFS(Sheet1!S71_AdjustmentBudAmnt,Sheet1!S71_SA34aCode,$AC:$AC,Sheet1!S71_A5CapexCode,$AD:$AD)","v":0},{"$f":"SUMIFS(Sheet1!S71_ASBudgetAmount,Sheet1!S71_SA34aCode,$AC:$AC,Sheet1!S71_A5CapexCode,$AD:$AD)","v":0},{"$f":"SUMIFS(Sheet1!S71_OY1BudgetAmount,Sheet1!S71_SA34aCode,$AC:$AC,Sheet1!S71_A5CapexCode,$AD:$AD)","v":0},{"$f":"SUMIFS(Sheet1!S71_OY2BudgetAmount,Sheet1!S71_SA34aCode,$AC:$AC,Sheet1!S71_A5CapexCode,$AD:$AD)","v":0},null,null,null,null,null,null,null,null,null,null,null,null,null,null,null,null,null,"1170","CE"]
[null,null,null,null,null,null,null,null,null,null,null,null,null,null,null,null,null,null,null,null,null,null,null,null,null,null,null,null,null,"CE"]
["Other assets",null,{"$f":"+C119+C131","v":0},{"$f":"+D119+D131","v":0},0,0,0,0,0,0,0,null,null,null,null,null,null,null,null,null,null,null,null,null,null,null,null,null,null,"CE"]
["Operational Buildings",null,{"$f":"SUM(C120:C130)","v":0},{"$f":"SUM(D120:D130)","v":0},0,0,0,0,0,0,0,null,null,null,null,null,null,null,null,null,null,null,null,null,null,null,null,null,null,"CE"]
["Municipal Offices",null,{"$f":"SUMIFS(Sheet1!S71_PPPYearAmount,Sheet1!S71_SA34aCode,$AC:$AC,Sheet1!S71_A5CapexCode,$AD:$AD)","v":0},{"$f":"SUMIFS(Sheet1!S71_PPYearAmount,Sheet1!S71_SA34aCode,$AC:$AC,Sheet1!S71_A5CapexCode,$AD:$AD)","v":0},{"$f":"SUMIFS(Sheet1!S71_PYearAmount,Sheet1!S71_SA34aCode,$AC:$AC,Sheet1!S71_A5CapexCode,$AD:$AD)","v":0},{"$f":"SUMIFS(Sheet1!S71_OriginalBudAmnt,Sheet1!S71_SA34aCode,$AC:$AC,Sheet1!S71_A5CapexCode,$AD:$AD)","v":0},{"$f":"SUMIFS(Sheet1!S71_AdjustmentBudAmnt,Sheet1!S71_SA34aCode,$AC:$AC,Sheet1!S71_A5CapexCode,$AD:$AD)","v":0},{"$f":"SUMIFS(Sheet1!S71_AdjustmentBudAmnt,Sheet1!S71_SA34aCode,$AC:$AC,Sheet1!S71_A5CapexCode,$AD:$AD)","v":0},{"$f":"SUMIFS(Sheet1!S71_ASBudgetAmount,Sheet1!S71_SA34aCode,$AC:$AC,Sheet1!S71_A5CapexCode,$AD:$AD)","v":0},{"$f":"SUMIFS(Sheet1!S71_OY1BudgetAmount,Sheet1!S71_SA34aCode,$AC:$AC,Sheet1!S71_A5CapexCode,$AD:$AD)","v":0},{"$f":"SUMIFS(Sheet1!S71_OY2BudgetAmount,Sheet1!S71_SA34aCode,$AC:$AC,Sheet1!S71_A5CapexCode,$AD:$AD)","v":0},null,null,null,null,null,null,null,null,null,null,null,null,null,null,null,null,null,"1200","CE"]
["Pay/Enquiry Points",null,{"$f":"SUMIFS(Sheet1!S71_PPPYearAmount,Sheet1!S71_SA34aCode,$AC:$AC,Sheet1!S71_A5CapexCode,$AD:$AD)","v":0},{"$f":"SUMIFS(Sheet1!S71_PPYearAmount,Sheet1!S71_SA34aCode,$AC:$AC,Sheet1!S71_A5CapexCode,$AD:$AD)","v":0},{"$f":"SUMIFS(Sheet1!S71_PYearAmount,Sheet1!S71_SA34aCode,$AC:$AC,Sheet1!S71_A5CapexCode,$AD:$AD)","v":0},{"$f":"SUMIFS(Sheet1!S71_OriginalBudAmnt,Sheet1!S71_SA34aCode,$AC:$AC,Sheet1!S71_A5CapexCode,$AD:$AD)","v":0},{"$f":"SUMIFS(Sheet1!S71_AdjustmentBudAmnt,Sheet1!S71_SA34aCode,$AC:$AC,Sheet1!S71_A5CapexCode,$AD:$AD)","v":0},{"$f":"SUMIFS(Sheet1!S71_AdjustmentBudAmnt,Sheet1!S71_SA34aCode,$AC:$AC,Sheet1!S71_A5CapexCode,$AD:$AD)","v":0},{"$f":"SUMIFS(Sheet1!S71_ASBudgetAmount,Sheet1!S71_SA34aCode,$AC:$AC,Sheet1!S71_A5CapexCode,$AD:$AD)","v":0},{"$f":"SUMIFS(Sheet1!S71_OY1BudgetAmount,Sheet1!S71_SA34aCode,$AC:$AC,Sheet1!S71_A5CapexCode,$AD:$AD)","v":0},{"$f":"SUMIFS(Sheet1!S71_OY2BudgetAmount,Sheet1!S71_SA34aCode,$AC:$AC,Sheet1!S71_A5CapexCode,$AD:$AD)","v":0},null,null,null,null,null,null,null,null,null,null,null,null,null,null,null,null,null,"1210","CE"]
["Building Plan Offices",null,{"$f":"SUMIFS(Sheet1!S71_PPPYearAmount,Sheet1!S71_SA34aCode,$AC:$AC,Sheet1!S71_A5CapexCode,$AD:$AD)","v":0},{"$f":"SUMIFS(Sheet1!S71_PPYearAmount,Sheet1!S71_SA34aCode,$AC:$AC,Sheet1!S71_A5CapexCode,$AD:$AD)","v":0},{"$f":"SUMIFS(Sheet1!S71_PYearAmount,Sheet1!S71_SA34aCode,$AC:$AC,Sheet1!S71_A5CapexCode,$AD:$AD)","v":0},{"$f":"SUMIFS(Sheet1!S71_OriginalBudAmnt,Sheet1!S71_SA34aCode,$AC:$AC,Sheet1!S71_A5CapexCode,$AD:$AD)","v":0},{"$f":"SUMIFS(Sheet1!S71_AdjustmentBudAmnt,Sheet1!S71_SA34aCode,$AC:$AC,Sheet1!S71_A5CapexCode,$AD:$AD)","v":0},{"$f":"SUMIFS(Sheet1!S71_AdjustmentBudAmnt,Sheet1!S71_SA34aCode,$AC:$AC,Sheet1!S71_A5CapexCode,$AD:$AD)","v":0},{"$f":"SUMIFS(Sheet1!S71_ASBudgetAmount,Sheet1!S71_SA34aCode,$AC:$AC,Sheet1!S71_A5CapexCode,$AD:$AD)","v":0},{"$f":"SUMIFS(Sheet1!S71_OY1BudgetAmount,Sheet1!S71_SA34aCode,$AC:$AC,Sheet1!S71_A5CapexCode,$AD:$AD)","v":0},{"$f":"SUMIFS(Sheet1!S71_OY2BudgetAmount,Sheet1!S71_SA34aCode,$AC:$AC,Sheet1!S71_A5CapexCode,$AD:$AD)","v":0},null,null,null,null,null,null,null,null,null,null,null,null,null,null,null,null,null,"1220","CE"]
["Workshops",null,{"$f":"SUMIFS(Sheet1!S71_PPPYearAmount,Sheet1!S71_SA34aCode,$AC:$AC,Sheet1!S71_A5CapexCode,$AD:$AD)","v":0},{"$f":"SUMIFS(Sheet1!S71_PPYearAmount,Sheet1!S71_SA34aCode,$AC:$AC,Sheet1!S71_A5CapexCode,$AD:$AD)","v":0},{"$f":"SUMIFS(Sheet1!S71_PYearAmount,Sheet1!S71_SA34aCode,$AC:$AC,Sheet1!S71_A5CapexCode,$AD:$AD)","v":0},{"$f":"SUMIFS(Sheet1!S71_OriginalBudAmnt,Sheet1!S71_SA34aCode,$AC:$AC,Sheet1!S71_A5CapexCode,$AD:$AD)","v":0},{"$f":"SUMIFS(Sheet1!S71_AdjustmentBudAmnt,Sheet1!S71_SA34aCode,$AC:$AC,Sheet1!S71_A5CapexCode,$AD:$AD)","v":0},{"$f":"SUMIFS(Sheet1!S71_AdjustmentBudAmnt,Sheet1!S71_SA34aCode,$AC:$AC,Sheet1!S71_A5CapexCode,$AD:$AD)","v":0},{"$f":"SUMIFS(Sheet1!S71_ASBudgetAmount,Sheet1!S71_SA34aCode,$AC:$AC,Sheet1!S71_A5CapexCode,$AD:$AD)","v":0},{"$f":"SUMIFS(Sheet1!S71_OY1BudgetAmount,Sheet1!S71_SA34aCode,$AC:$AC,Sheet1!S71_A5CapexCode,$AD:$AD)","v":0},{"$f":"SUMIFS(Sheet1!S71_OY2BudgetAmount,Sheet1!S71_SA34aCode,$AC:$AC,Sheet1!S71_A5CapexCode,$AD:$AD)","v":0},null,null,null,null,null,null,null,null,null,null,null,null,null,null,null,null,null,"1230","CE"]
["Yards",null,{"$f":"SUMIFS(Sheet1!S71_PPPYearAmount,Sheet1!S71_SA34aCode,$AC:$AC,Sheet1!S71_A5CapexCode,$AD:$AD)","v":0},{"$f":"SUMIFS(Sheet1!S71_PPYearAmount,Sheet1!S71_SA34aCode,$AC:$AC,Sheet1!S71_A5CapexCode,$AD:$AD)","v":0},{"$f":"SUMIFS(Sheet1!S71_PYearAmount,Sheet1!S71_SA34aCode,$AC:$AC,Sheet1!S71_A5CapexCode,$AD:$AD)","v":0},{"$f":"SUMIFS(Sheet1!S71_OriginalBudAmnt,Sheet1!S71_SA34aCode,$AC:$AC,Sheet1!S71_A5CapexCode,$AD:$AD)","v":0},{"$f":"SUMIFS(Sheet1!S71_AdjustmentBudAmnt,Sheet1!S71_SA34aCode,$AC:$AC,Sheet1!S71_A5CapexCode,$AD:$AD)","v":0},{"$f":"SUMIFS(Sheet1!S71_AdjustmentBudAmnt,Sheet1!S71_SA34aCode,$AC:$AC,Sheet1!S71_A5CapexCode,$AD:$AD)","v":0},{"$f":"SUMIFS(Sheet1!S71_ASBudgetAmount,Sheet1!S71_SA34aCode,$AC:$AC,Sheet1!S71_A5CapexCode,$AD:$AD)","v":0},{"$f":"SUMIFS(Sheet1!S71_OY1BudgetAmount,Sheet1!S71_SA34aCode,$AC:$AC,Sheet1!S71_A5CapexCode,$AD:$AD)","v":0},{"$f":"SUMIFS(Sheet1!S71_OY2BudgetAmount,Sheet1!S71_SA34aCode,$AC:$AC,Sheet1!S71_A5CapexCode,$AD:$AD)","v":0},null,null,null,null,null,null,null,null,null,null,null,null,null,null,null,null,null,"1240","CE"]
["Stores",null,{"$f":"SUMIFS(Sheet1!S71_PPPYearAmount,Sheet1!S71_SA34aCode,$AC:$AC,Sheet1!S71_A5CapexCode,$AD:$AD)","v":0},{"$f":"SUMIFS(Sheet1!S71_PPYearAmount,Sheet1!S71_SA34aCode,$AC:$AC,Sheet1!S71_A5CapexCode,$AD:$AD)","v":0},{"$f":"SUMIFS(Sheet1!S71_PYearAmount,Sheet1!S71_SA34aCode,$AC:$AC,Sheet1!S71_A5CapexCode,$AD:$AD)","v":0},{"$f":"SUMIFS(Sheet1!S71_OriginalBudAmnt,Sheet1!S71_SA34aCode,$AC:$AC,Sheet1!S71_A5CapexCode,$AD:$AD)","v":0},{"$f":"SUMIFS(Sheet1!S71_AdjustmentBudAmnt,Sheet1!S71_SA34aCode,$AC:$AC,Sheet1!S71_A5CapexCode,$AD:$AD)","v":0},{"$f":"SUMIFS(Sheet1!S71_AdjustmentBudAmnt,Sheet1!S71_SA34aCode,$AC:$AC,Sheet1!S71_A5CapexCode,$AD:$AD)","v":0},{"$f":"SUMIFS(Sheet1!S71_ASBudgetAmount,Sheet1!S71_SA34aCode,$AC:$AC,Sheet1!S71_A5CapexCode,$AD:$AD)","v":0},{"$f":"SUMIFS(Sheet1!S71_OY1BudgetAmount,Sheet1!S71_SA34aCode,$AC:$AC,Sheet1!S71_A5CapexCode,$AD:$AD)","v":0},{"$f":"SUMIFS(Sheet1!S71_OY2BudgetAmount,Sheet1!S71_SA34aCode,$AC:$AC,Sheet1!S71_A5CapexCode,$AD:$AD)","v":0},null,null,null,null,null,null,null,null,null,null,null,null,null,null,null,null,null,"1250","CE"]
["Laboratories",null,{"$f":"SUMIFS(Sheet1!S71_PPPYearAmount,Sheet1!S71_SA34aCode,$AC:$AC,Sheet1!S71_A5CapexCode,$AD:$AD)","v":0},{"$f":"SUMIFS(Sheet1!S71_PPYearAmount,Sheet1!S71_SA34aCode,$AC:$AC,Sheet1!S71_A5CapexCode,$AD:$AD)","v":0},{"$f":"SUMIFS(Sheet1!S71_PYearAmount,Sheet1!S71_SA34aCode,$AC:$AC,Sheet1!S71_A5CapexCode,$AD:$AD)","v":0},{"$f":"SUMIFS(Sheet1!S71_OriginalBudAmnt,Sheet1!S71_SA34aCode,$AC:$AC,Sheet1!S71_A5CapexCode,$AD:$AD)","v":0},{"$f":"SUMIFS(Sheet1!S71_AdjustmentBudAmnt,Sheet1!S71_SA34aCode,$AC:$AC,Sheet1!S71_A5CapexCode,$AD:$AD)","v":0},{"$f":"SUMIFS(Sheet1!S71_AdjustmentBudAmnt,Sheet1!S71_SA34aCode,$AC:$AC,Sheet1!S71_A5CapexCode,$AD:$AD)","v":0},{"$f":"SUMIFS(Sheet1!S71_ASBudgetAmount,Sheet1!S71_SA34aCode,$AC:$AC,Sheet1!S71_A5CapexCode,$AD:$AD)","v":0},{"$f":"SUMIFS(Sheet1!S71_OY1BudgetAmount,Sheet1!S71_SA34aCode,$AC:$AC,Sheet1!S71_A5CapexCode,$AD:$AD)","v":0},{"$f":"SUMIFS(Sheet1!S71_OY2BudgetAmount,Sheet1!S71_SA34aCode,$AC:$AC,Sheet1!S71_A5CapexCode,$AD:$AD)","v":0},null,null,null,null,null,null,null,null,null,null,null,null,null,null,null,null,null,"1260","CE"]
["Training Centres",null,{"$f":"SUMIFS(Sheet1!S71_PPPYearAmount,Sheet1!S71_SA34aCode,$AC:$AC,Sheet1!S71_A5CapexCode,$AD:$AD)","v":0},{"$f":"SUMIFS(Sheet1!S71_PPYearAmount,Sheet1!S71_SA34aCode,$AC:$AC,Sheet1!S71_A5CapexCode,$AD:$AD)","v":0},{"$f":"SUMIFS(Sheet1!S71_PYearAmount,Sheet1!S71_SA34aCode,$AC:$AC,Sheet1!S71_A5CapexCode,$AD:$AD)","v":0},{"$f":"SUMIFS(Sheet1!S71_OriginalBudAmnt,Sheet1!S71_SA34aCode,$AC:$AC,Sheet1!S71_A5CapexCode,$AD:$AD)","v":0},{"$f":"SUMIFS(Sheet1!S71_AdjustmentBudAmnt,Sheet1!S71_SA34aCode,$AC:$AC,Sheet1!S71_A5CapexCode,$AD:$AD)","v":0},{"$f":"SUMIFS(Sheet1!S71_AdjustmentBudAmnt,Sheet1!S71_SA34aCode,$AC:$AC,Sheet1!S71_A5CapexCode,$AD:$AD)","v":0},{"$f":"SUMIFS(Sheet1!S71_ASBudgetAmount,Sheet1!S71_SA34aCode,$AC:$AC,Sheet1!S71_A5CapexCode,$AD:$AD)","v":0},{"$f":"SUMIFS(Sheet1!S71_OY1BudgetAmount,Sheet1!S71_SA34aCode,$AC:$AC,Sheet1!S71_A5CapexCode,$AD:$AD)","v":0},{"$f":"SUMIFS(Sheet1!S71_OY2BudgetAmount,Sheet1!S71_SA34aCode,$AC:$AC,Sheet1!S71_A5CapexCode,$AD:$AD)","v":0},null,null,null,null,null,null,null,null,null,null,null,null,null,null,null,null,null,"1270","CE"]
["Manufacturing Plant",null,{"$f":"SUMIFS(Sheet1!S71_PPPYearAmount,Sheet1!S71_SA34aCode,$AC:$AC,Sheet1!S71_A5CapexCode,$AD:$AD)","v":0},{"$f":"SUMIFS(Sheet1!S71_PPYearAmount,Sheet1!S71_SA34aCode,$AC:$AC,Sheet1!S71_A5CapexCode,$AD:$AD)","v":0},{"$f":"SUMIFS(Sheet1!S71_PYearAmount,Sheet1!S71_SA34aCode,$AC:$AC,Sheet1!S71_A5CapexCode,$AD:$AD)","v":0},{"$f":"SUMIFS(Sheet1!S71_OriginalBudAmnt,Sheet1!S71_SA34aCode,$AC:$AC,Sheet1!S71_A5CapexCode,$AD:$AD)","v":0},{"$f":"SUMIFS(Sheet1!S71_AdjustmentBudAmnt,Sheet1!S71_SA34aCode,$AC:$AC,Sheet1!S71_A5CapexCode,$AD:$AD)","v":0},{"$f":"SUMIFS(Sheet1!S71_AdjustmentBudAmnt,Sheet1!S71_SA34aCode,$AC:$AC,Sheet1!S71_A5CapexCode,$AD:$AD)","v":0},{"$f":"SUMIFS(Sheet1!S71_ASBudgetAmount,Sheet1!S71_SA34aCode,$AC:$AC,Sheet1!S71_A5CapexCode,$AD:$AD)","v":0},{"$f":"SUMIFS(Sheet1!S71_OY1BudgetAmount,Sheet1!S71_SA34aCode,$AC:$AC,Sheet1!S71_A5CapexCode,$AD:$AD)","v":0},{"$f":"SUMIFS(Sheet1!S71_OY2BudgetAmount,Sheet1!S71_SA34aCode,$AC:$AC,Sheet1!S71_A5CapexCode,$AD:$AD)","v":0},null,null,null,null,null,null,null,null,null,null,null,null,null,null,null,null,null,"1280","CE"]
["Depots",null,{"$f":"SUMIFS(Sheet1!S71_PPPYearAmount,Sheet1!S71_SA34aCode,$AC:$AC,Sheet1!S71_A5CapexCode,$AD:$AD)","v":0},{"$f":"SUMIFS(Sheet1!S71_PPYearAmount,Sheet1!S71_SA34aCode,$AC:$AC,Sheet1!S71_A5CapexCode,$AD:$AD)","v":0},{"$f":"SUMIFS(Sheet1!S71_PYearAmount,Sheet1!S71_SA34aCode,$AC:$AC,Sheet1!S71_A5CapexCode,$AD:$AD)","v":0},{"$f":"SUMIFS(Sheet1!S71_OriginalBudAmnt,Sheet1!S71_SA34aCode,$AC:$AC,Sheet1!S71_A5CapexCode,$AD:$AD)","v":0},{"$f":"SUMIFS(Sheet1!S71_AdjustmentBudAmnt,Sheet1!S71_SA34aCode,$AC:$AC,Sheet1!S71_A5CapexCode,$AD:$AD)","v":0},{"$f":"SUMIFS(Sheet1!S71_AdjustmentBudAmnt,Sheet1!S71_SA34aCode,$AC:$AC,Sheet1!S71_A5CapexCode,$AD:$AD)","v":0},{"$f":"SUMIFS(Sheet1!S71_ASBudgetAmount,Sheet1!S71_SA34aCode,$AC:$AC,Sheet1!S71_A5CapexCode,$AD:$AD)","v":0},{"$f":"SUMIFS(Sheet1!S71_OY1BudgetAmount,Sheet1!S71_SA34aCode,$AC:$AC,Sheet1!S71_A5CapexCode,$AD:$AD)","v":0},{"$f":"SUMIFS(Sheet1!S71_OY2BudgetAmount,Sheet1!S71_SA34aCode,$AC:$AC,Sheet1!S71_A5CapexCode,$AD:$AD)","v":0},null,null,null,null,null,null,null,null,null,null,null,null,null,null,null,null,null,"1290","CE"]
["Capital Spares",null,{"$f":"SUMIFS(Sheet1!S71_PPPYearAmount,Sheet1!S71_SA34aCode,$AC:$AC,Sheet1!S71_A5CapexCode,$AD:$AD)","v":0},{"$f":"SUMIFS(Sheet1!S71_PPYearAmount,Sheet1!S71_SA34aCode,$AC:$AC,Sheet1!S71_A5CapexCode,$AD:$AD)","v":0},{"$f":"SUMIFS(Sheet1!S71_PYearAmount,Sheet1!S71_SA34aCode,$AC:$AC,Sheet1!S71_A5CapexCode,$AD:$AD)","v":0},{"$f":"SUMIFS(Sheet1!S71_OriginalBudAmnt,Sheet1!S71_SA34aCode,$AC:$AC,Sheet1!S71_A5CapexCode,$AD:$AD)","v":0},{"$f":"SUMIFS(Sheet1!S71_AdjustmentBudAmnt,Sheet1!S71_SA34aCode,$AC:$AC,Sheet1!S71_A5CapexCode,$AD:$AD)","v":0},{"$f":"SUMIFS(Sheet1!S71_AdjustmentBudAmnt,Sheet1!S71_SA34aCode,$AC:$AC,Sheet1!S71_A5CapexCode,$AD:$AD)","v":0},{"$f":"SUMIFS(Sheet1!S71_ASBudgetAmount,Sheet1!S71_SA34aCode,$AC:$AC,Sheet1!S71_A5CapexCode,$AD:$AD)","v":0},{"$f":"SUMIFS(Sheet1!S71_OY1BudgetAmount,Sheet1!S71_SA34aCode,$AC:$AC,Sheet1!S71_A5CapexCode,$AD:$AD)","v":0},{"$f":"SUMIFS(Sheet1!S71_OY2BudgetAmount,Sheet1!S71_SA34aCode,$AC:$AC,Sheet1!S71_A5CapexCode,$AD:$AD)","v":0},null,null,null,null,null,null,null,null,null,null,null,null,null,null,null,null,null,"1300","CE"]
["Housing",null,{"$f":"SUM(C132:C134)","v":0},{"$f":"SUM(D132:D134)","v":0},0,0,0,0,0,0,0,null,null,null,null,null,null,null,null,null,null,null,null,null,null,null,null,null,null,"CE"]
["Staff Housing",null,{"$f":"SUMIFS(Sheet1!S71_PPPYearAmount,Sheet1!S71_SA34aCode,$AC:$AC,Sheet1!S71_A5CapexCode,$AD:$AD)","v":0},{"$f":"SUMIFS(Sheet1!S71_PPYearAmount,Sheet1!S71_SA34aCode,$AC:$AC,Sheet1!S71_A5CapexCode,$AD:$AD)","v":0},{"$f":"SUMIFS(Sheet1!S71_PYearAmount,Sheet1!S71_SA34aCode,$AC:$AC,Sheet1!S71_A5CapexCode,$AD:$AD)","v":0},{"$f":"SUMIFS(Sheet1!S71_OriginalBudAmnt,Sheet1!S71_SA34aCode,$AC:$AC,Sheet1!S71_A5CapexCode,$AD:$AD)","v":0},{"$f":"SUMIFS(Sheet1!S71_AdjustmentBudAmnt,Sheet1!S71_SA34aCode,$AC:$AC,Sheet1!S71_A5CapexCode,$AD:$AD)","v":0},{"$f":"SUMIFS(Sheet1!S71_AdjustmentBudAmnt,Sheet1!S71_SA34aCode,$AC:$AC,Sheet1!S71_A5CapexCode,$AD:$AD)","v":0},{"$f":"SUMIFS(Sheet1!S71_ASBudgetAmount,Sheet1!S71_SA34aCode,$AC:$AC,Sheet1!S71_A5CapexCode,$AD:$AD)","v":0},{"$f":"SUMIFS(Sheet1!S71_OY1BudgetAmount,Sheet1!S71_SA34aCode,$AC:$AC,Sheet1!S71_A5CapexCode,$AD:$AD)","v":0},{"$f":"SUMIFS(Sheet1!S71_OY2BudgetAmount,Sheet1!S71_SA34aCode,$AC:$AC,Sheet1!S71_A5CapexCode,$AD:$AD)","v":0},null,null,null,null,null,null,null,null,null,null,null,null,null,null,null,null,null,"1320","CE"]
["Social Housing",null,{"$f":"SUMIFS(Sheet1!S71_PPPYearAmount,Sheet1!S71_SA34aCode,$AC:$AC,Sheet1!S71_A5CapexCode,$AD:$AD)","v":0},{"$f":"SUMIFS(Sheet1!S71_PPYearAmount,Sheet1!S71_SA34aCode,$AC:$AC,Sheet1!S71_A5CapexCode,$AD:$AD)","v":0},{"$f":"SUMIFS(Sheet1!S71_PYearAmount,Sheet1!S71_SA34aCode,$AC:$AC,Sheet1!S71_A5CapexCode,$AD:$AD)","v":0},{"$f":"SUMIFS(Sheet1!S71_OriginalBudAmnt,Sheet1!S71_SA34aCode,$AC:$AC,Sheet1!S71_A5CapexCode,$AD:$AD)","v":0},{"$f":"SUMIFS(Sheet1!S71_AdjustmentBudAmnt,Sheet1!S71_SA34aCode,$AC:$AC,Sheet1!S71_A5CapexCode,$AD:$AD)","v":0},{"$f":"SUMIFS(Sheet1!S71_AdjustmentBudAmnt,Sheet1!S71_SA34aCode,$AC:$AC,Sheet1!S71_A5CapexCode,$AD:$AD)","v":0},{"$f":"SUMIFS(Sheet1!S71_ASBudgetAmount,Sheet1!S71_SA34aCode,$AC:$AC,Sheet1!S71_A5CapexCode,$AD:$AD)","v":0},{"$f":"SUMIFS(Sheet1!S71_OY1BudgetAmount,Sheet1!S71_SA34aCode,$AC:$AC,Sheet1!S71_A5CapexCode,$AD:$AD)","v":0},{"$f":"SUMIFS(Sheet1!S71_OY2BudgetAmount,Sheet1!S71_SA34aCode,$AC:$AC,Sheet1!S71_A5CapexCode,$AD:$AD)","v":0},null,null,null,null,null,null,null,null,null,null,null,null,null,null,null,null,null,"1330","CE"]
["Capital Spares",null,{"$f":"SUMIFS(Sheet1!S71_PPPYearAmount,Sheet1!S71_SA34aCode,$AC:$AC,Sheet1!S71_A5CapexCode,$AD:$AD)","v":0},{"$f":"SUMIFS(Sheet1!S71_PPYearAmount,Sheet1!S71_SA34aCode,$AC:$AC,Sheet1!S71_A5CapexCode,$AD:$AD)","v":0},{"$f":"SUMIFS(Sheet1!S71_PYearAmount,Sheet1!S71_SA34aCode,$AC:$AC,Sheet1!S71_A5CapexCode,$AD:$AD)","v":0},{"$f":"SUMIFS(Sheet1!S71_OriginalBudAmnt,Sheet1!S71_SA34aCode,$AC:$AC,Sheet1!S71_A5CapexCode,$AD:$AD)","v":0},{"$f":"SUMIFS(Sheet1!S71_AdjustmentBudAmnt,Sheet1!S71_SA34aCode,$AC:$AC,Sheet1!S71_A5CapexCode,$AD:$AD)","v":0},{"$f":"SUMIFS(Sheet1!S71_AdjustmentBudAmnt,Sheet1!S71_SA34aCode,$AC:$AC,Sheet1!S71_A5CapexCode,$AD:$AD)","v":0},{"$f":"SUMIFS(Sheet1!S71_ASBudgetAmount,Sheet1!S71_SA34aCode,$AC:$AC,Sheet1!S71_A5CapexCode,$AD:$AD)","v":0},{"$f":"SUMIFS(Sheet1!S71_OY1BudgetAmount,Sheet1!S71_SA34aCode,$AC:$AC,Sheet1!S71_A5CapexCode,$AD:$AD)","v":0},{"$f":"SUMIFS(Sheet1!S71_OY2BudgetAmount,Sheet1!S71_SA34aCode,$AC:$AC,Sheet1!S71_A5CapexCode,$AD:$AD)","v":0},null,null,null,null,null,null,null,null,null,null,null,null,null,null,null,null,null,"1340","CE"]
[null,null,null,null,null,null,null,null,null,null,null,null,null,null,null,null,null,null,null,null,null,null,null,null,null,null,null,null,null,"CE"]
["Biological or Cultivated Assets",null,{"$f":"SUM(C137:C137)","v":0},0,0,0,0,0,0,0,0,null,null,null,null,null,null,null,null,null,null,null,null,null,null,null,null,null,null,"CE"]
["Biological or Cultivated Assets",null,{"$f":"SUMIFS(Sheet1!S71_PPPYearAmount,Sheet1!S71_SA34aCode,$AC:$AC,Sheet1!S71_A5CapexCode,$AD:$AD)","v":0},{"$f":"SUMIFS(Sheet1!S71_PPYearAmount,Sheet1!S71_SA34aCode,$AC:$AC,Sheet1!S71_A5CapexCode,$AD:$AD)","v":0},{"$f":"SUMIFS(Sheet1!S71_PYearAmount,Sheet1!S71_SA34aCode,$AC:$AC,Sheet1!S71_A5CapexCode,$AD:$AD)","v":0},{"$f":"SUMIFS(Sheet1!S71_OriginalBudAmnt,Sheet1!S71_SA34aCode,$AC:$AC,Sheet1!S71_A5CapexCode,$AD:$AD)","v":0},{"$f":"SUMIFS(Sheet1!S71_AdjustmentBudAmnt,Sheet1!S71_SA34aCode,$AC:$AC,Sheet1!S71_A5CapexCode,$AD:$AD)","v":0},{"$f":"SUMIFS(Sheet1!S71_AdjustmentBudAmnt,Sheet1!S71_SA34aCode,$AC:$AC,Sheet1!S71_A5CapexCode,$AD:$AD)","v":0},{"$f":"SUMIFS(Sheet1!S71_ASBudgetAmount,Sheet1!S71_SA34aCode,$AC:$AC,Sheet1!S71_A5CapexCode,$AD:$AD)","v":0},{"$f":"SUMIFS(Sheet1!S71_OY1BudgetAmount,Sheet1!S71_SA34aCode,$AC:$AC,Sheet1!S71_A5CapexCode,$AD:$AD)","v":0},{"$f":"SUMIFS(Sheet1!S71_OY2BudgetAmount,Sheet1!S71_SA34aCode,$AC:$AC,Sheet1!S71_A5CapexCode,$AD:$AD)","v":0},null,null,null,null,null,null,null,null,null,null,null,null,null,null,null,null,null,"1360","CE"]
[null,null,null,null,null,null,null,null,null,null,null,null,null,null,null,null,null,null,null,null,null,null,null,null,null,null,null,null,null,"CE"]
["Intangible Assets",null,{"$f":"+C140+C141","v":0},{"$f":"+D140+D141","v":0},0,0,0,0,0,0,0,null,null,null,null,null,null,null,null,null,null,null,null,null,null,null,null,null,null,"CE"]
["Servitudes",null,{"$f":"SUMIFS(Sheet1!S71_PPPYearAmount,Sheet1!S71_SA34aCode,$AC:$AC,Sheet1!S71_A5CapexCode,$AD:$AD)","v":0},{"$f":"SUMIFS(Sheet1!S71_PPYearAmount,Sheet1!S71_SA34aCode,$AC:$AC,Sheet1!S71_A5CapexCode,$AD:$AD)","v":0},{"$f":"SUMIFS(Sheet1!S71_PYearAmount,Sheet1!S71_SA34aCode,$AC:$AC,Sheet1!S71_A5CapexCode,$AD:$AD)","v":0},{"$f":"SUMIFS(Sheet1!S71_OriginalBudAmnt,Sheet1!S71_SA34aCode,$AC:$AC,Sheet1!S71_A5CapexCode,$AD:$AD)","v":0},{"$f":"SUMIFS(Sheet1!S71_AdjustmentBudAmnt,Sheet1!S71_SA34aCode,$AC:$AC,Sheet1!S71_A5CapexCode,$AD:$AD)","v":0},{"$f":"SUMIFS(Sheet1!S71_AdjustmentBudAmnt,Sheet1!S71_SA34aCode,$AC:$AC,Sheet1!S71_A5CapexCode,$AD:$AD)","v":0},{"$f":"SUMIFS(Sheet1!S71_ASBudgetAmount,Sheet1!S71_SA34aCode,$AC:$AC,Sheet1!S71_A5CapexCode,$AD:$AD)","v":0},{"$f":"SUMIFS(Sheet1!S71_OY1BudgetAmount,Sheet1!S71_SA34aCode,$AC:$AC,Sheet1!S71_A5CapexCode,$AD:$AD)","v":0},{"$f":"SUMIFS(Sheet1!S71_OY2BudgetAmount,Sheet1!S71_SA34aCode,$AC:$AC,Sheet1!S71_A5CapexCode,$AD:$AD)","v":0},null,null,null,null,null,null,null,null,null,null,null,null,null,null,null,null,null,"1380","CE"]
["Licences and Rights",null,{"$f":"SUM(C142:C147)","v":0},{"$f":"SUM(D142:D147)","v":0},0,0,0,0,0,0,0,null,null,null,null,null,null,null,null,null,null,null,null,null,null,null,null,null,null,"CE"]
["Water Rights",null,{"$f":"SUMIFS(Sheet1!S71_PPPYearAmount,Sheet1!S71_SA34aCode,$AC:$AC,Sheet1!S71_A5CapexCode,$AD:$AD)","v":0},{"$f":"SUMIFS(Sheet1!S71_PPYearAmount,Sheet1!S71_SA34aCode,$AC:$AC,Sheet1!S71_A5CapexCode,$AD:$AD)","v":0},{"$f":"SUMIFS(Sheet1!S71_PYearAmount,Sheet1!S71_SA34aCode,$AC:$AC,Sheet1!S71_A5CapexCode,$AD:$AD)","v":0},{"$f":"SUMIFS(Sheet1!S71_OriginalBudAmnt,Sheet1!S71_SA34aCode,$AC:$AC,Sheet1!S71_A5CapexCode,$AD:$AD)","v":0},{"$f":"SUMIFS(Sheet1!S71_AdjustmentBudAmnt,Sheet1!S71_SA34aCode,$AC:$AC,Sheet1!S71_A5CapexCode,$AD:$AD)","v":0},{"$f":"SUMIFS(Sheet1!S71_AdjustmentBudAmnt,Sheet1!S71_SA34aCode,$AC:$AC,Sheet1!S71_A5CapexCode,$AD:$AD)","v":0},{"$f":"SUMIFS(Sheet1!S71_ASBudgetAmount,Sheet1!S71_SA34aCode,$AC:$AC,Sheet1!S71_A5CapexCode,$AD:$AD)","v":0},{"$f":"SUMIFS(Sheet1!S71_OY1BudgetAmount,Sheet1!S71_SA34aCode,$AC:$AC,Sheet1!S71_A5CapexCode,$AD:$AD)","v":0},{"$f":"SUMIFS(Sheet1!S71_OY2BudgetAmount,Sheet1!S71_SA34aCode,$AC:$AC,Sheet1!S71_A5CapexCode,$AD:$AD)","v":0},null,null,null,null,null,null,null,null,null,null,null,null,null,null,null,null,null,"1400","CE"]
["Effluent Licenses",null,{"$f":"SUMIFS(Sheet1!S71_PPPYearAmount,Sheet1!S71_SA34aCode,$AC:$AC,Sheet1!S71_A5CapexCode,$AD:$AD)","v":0},{"$f":"SUMIFS(Sheet1!S71_PPYearAmount,Sheet1!S71_SA34aCode,$AC:$AC,Sheet1!S71_A5CapexCode,$AD:$AD)","v":0},{"$f":"SUMIFS(Sheet1!S71_PYearAmount,Sheet1!S71_SA34aCode,$AC:$AC,Sheet1!S71_A5CapexCode,$AD:$AD)","v":0},{"$f":"SUMIFS(Sheet1!S71_OriginalBudAmnt,Sheet1!S71_SA34aCode,$AC:$AC,Sheet1!S71_A5CapexCode,$AD:$AD)","v":0},{"$f":"SUMIFS(Sheet1!S71_AdjustmentBudAmnt,Sheet1!S71_SA34aCode,$AC:$AC,Sheet1!S71_A5CapexCode,$AD:$AD)","v":0},{"$f":"SUMIFS(Sheet1!S71_AdjustmentBudAmnt,Sheet1!S71_SA34aCode,$AC:$AC,Sheet1!S71_A5CapexCode,$AD:$AD)","v":0},{"$f":"SUMIFS(Sheet1!S71_ASBudgetAmount,Sheet1!S71_SA34aCode,$AC:$AC,Sheet1!S71_A5CapexCode,$AD:$AD)","v":0},{"$f":"SUMIFS(Sheet1!S71_OY1BudgetAmount,Sheet1!S71_SA34aCode,$AC:$AC,Sheet1!S71_A5CapexCode,$AD:$AD)","v":0},{"$f":"SUMIFS(Sheet1!S71_OY2BudgetAmount,Sheet1!S71_SA34aCode,$AC:$AC,Sheet1!S71_A5CapexCode,$AD:$AD)","v":0},null,null,null,null,null,null,null,null,null,null,null,null,null,null,null,null,null,"1410","CE"]
["Solid Waste Licenses",null,{"$f":"SUMIFS(Sheet1!S71_PPPYearAmount,Sheet1!S71_SA34aCode,$AC:$AC,Sheet1!S71_A5CapexCode,$AD:$AD)","v":0},{"$f":"SUMIFS(Sheet1!S71_PPYearAmount,Sheet1!S71_SA34aCode,$AC:$AC,Sheet1!S71_A5CapexCode,$AD:$AD)","v":0},{"$f":"SUMIFS(Sheet1!S71_PYearAmount,Sheet1!S71_SA34aCode,$AC:$AC,Sheet1!S71_A5CapexCode,$AD:$AD)","v":0},{"$f":"SUMIFS(Sheet1!S71_OriginalBudAmnt,Sheet1!S71_SA34aCode,$AC:$AC,Sheet1!S71_A5CapexCode,$AD:$AD)","v":0},{"$f":"SUMIFS(Sheet1!S71_AdjustmentBudAmnt,Sheet1!S71_SA34aCode,$AC:$AC,Sheet1!S71_A5CapexCode,$AD:$AD)","v":0},{"$f":"SUMIFS(Sheet1!S71_AdjustmentBudAmnt,Sheet1!S71_SA34aCode,$AC:$AC,Sheet1!S71_A5CapexCode,$AD:$AD)","v":0},{"$f":"SUMIFS(Sheet1!S71_ASBudgetAmount,Sheet1!S71_SA34aCode,$AC:$AC,Sheet1!S71_A5CapexCode,$AD:$AD)","v":0},{"$f":"SUMIFS(Sheet1!S71_OY1BudgetAmount,Sheet1!S71_SA34aCode,$AC:$AC,Sheet1!S71_A5CapexCode,$AD:$AD)","v":0},{"$f":"SUMIFS(Sheet1!S71_OY2BudgetAmount,Sheet1!S71_SA34aCode,$AC:$AC,Sheet1!S71_A5CapexCode,$AD:$AD)","v":0},null,null,null,null,null,null,null,null,null,null,null,null,null,null,null,null,null,"1420","CE"]
["Computer Software and Applications",null,{"$f":"SUMIFS(Sheet1!S71_PPPYearAmount,Sheet1!S71_SA34aCode,$AC:$AC,Sheet1!S71_A5CapexCode,$AD:$AD)","v":0},{"$f":"SUMIFS(Sheet1!S71_PPYearAmount,Sheet1!S71_SA34aCode,$AC:$AC,Sheet1!S71_A5CapexCode,$AD:$AD)","v":0},{"$f":"SUMIFS(Sheet1!S71_PYearAmount,Sheet1!S71_SA34aCode,$AC:$AC,Sheet1!S71_A5CapexCode,$AD:$AD)","v":0},{"$f":"SUMIFS(Sheet1!S71_OriginalBudAmnt,Sheet1!S71_SA34aCode,$AC:$AC,Sheet1!S71_A5CapexCode,$AD:$AD)","v":0},{"$f":"SUMIFS(Sheet1!S71_AdjustmentBudAmnt,Sheet1!S71_SA34aCode,$AC:$AC,Sheet1!S71_A5CapexCode,$AD:$AD)","v":0},{"$f":"SUMIFS(Sheet1!S71_AdjustmentBudAmnt,Sheet1!S71_SA34aCode,$AC:$AC,Sheet1!S71_A5CapexCode,$AD:$AD)","v":0},{"$f":"SUMIFS(Sheet1!S71_ASBudgetAmount,Sheet1!S71_SA34aCode,$AC:$AC,Sheet1!S71_A5CapexCode,$AD:$AD)","v":0},{"$f":"SUMIFS(Sheet1!S71_OY1BudgetAmount,Sheet1!S71_SA34aCode,$AC:$AC,Sheet1!S71_A5CapexCode,$AD:$AD)","v":0},{"$f":"SUMIFS(Sheet1!S71_OY2BudgetAmount,Sheet1!S71_SA34aCode,$AC:$AC,Sheet1!S71_A5CapexCode,$AD:$AD)","v":0},null,null,null,null,null,null,null,null,null,null,null,null,null,null,null,null,null,"1430","CE"]
["Load Settlement Software Applications",null,{"$f":"SUMIFS(Sheet1!S71_PPPYearAmount,Sheet1!S71_SA34aCode,$AC:$AC,Sheet1!S71_A5CapexCode,$AD:$AD)","v":0},{"$f":"SUMIFS(Sheet1!S71_PPYearAmount,Sheet1!S71_SA34aCode,$AC:$AC,Sheet1!S71_A5CapexCode,$AD:$AD)","v":0},{"$f":"SUMIFS(Sheet1!S71_PYearAmount,Sheet1!S71_SA34aCode,$AC:$AC,Sheet1!S71_A5CapexCode,$AD:$AD)","v":0},{"$f":"SUMIFS(Sheet1!S71_OriginalBudAmnt,Sheet1!S71_SA34aCode,$AC:$AC,Sheet1!S71_A5CapexCode,$AD:$AD)","v":0},{"$f":"SUMIFS(Sheet1!S71_AdjustmentBudAmnt,Sheet1!S71_SA34aCode,$AC:$AC,Sheet1!S71_A5CapexCode,$AD:$AD)","v":0},{"$f":"SUMIFS(Sheet1!S71_AdjustmentBudAmnt,Sheet1!S71_SA34aCode,$AC:$AC,Sheet1!S71_A5CapexCode,$AD:$AD)","v":0},{"$f":"SUMIFS(Sheet1!S71_ASBudgetAmount,Sheet1!S71_SA34aCode,$AC:$AC,Sheet1!S71_A5CapexCode,$AD:$AD)","v":0},{"$f":"SUMIFS(Sheet1!S71_OY1BudgetAmount,Sheet1!S71_SA34aCode,$AC:$AC,Sheet1!S71_A5CapexCode,$AD:$AD)","v":0},{"$f":"SUMIFS(Sheet1!S71_OY2BudgetAmount,Sheet1!S71_SA34aCode,$AC:$AC,Sheet1!S71_A5CapexCode,$AD:$AD)","v":0},null,null,null,null,null,null,null,null,null,null,null,null,null,null,null,null,null,"1440","CE"]
["Unspecified",null,{"$f":"SUMIFS(Sheet1!S71_PPPYearAmount,Sheet1!S71_SA34aCode,$AC:$AC,Sheet1!S71_A5CapexCode,$AD:$AD)","v":0},{"$f":"SUMIFS(Sheet1!S71_PPYearAmount,Sheet1!S71_SA34aCode,$AC:$AC,Sheet1!S71_A5CapexCode,$AD:$AD)","v":0},{"$f":"SUMIFS(Sheet1!S71_PYearAmount,Sheet1!S71_SA34aCode,$AC:$AC,Sheet1!S71_A5CapexCode,$AD:$AD)","v":0},{"$f":"SUMIFS(Sheet1!S71_OriginalBudAmnt,Sheet1!S71_SA34aCode,$AC:$AC,Sheet1!S71_A5CapexCode,$AD:$AD)","v":0},{"$f":"SUMIFS(Sheet1!S71_AdjustmentBudAmnt,Sheet1!S71_SA34aCode,$AC:$AC,Sheet1!S71_A5CapexCode,$AD:$AD)","v":0},{"$f":"SUMIFS(Sheet1!S71_AdjustmentBudAmnt,Sheet1!S71_SA34aCode,$AC:$AC,Sheet1!S71_A5CapexCode,$AD:$AD)","v":0},{"$f":"SUMIFS(Sheet1!S71_ASBudgetAmount,Sheet1!S71_SA34aCode,$AC:$AC,Sheet1!S71_A5CapexCode,$AD:$AD)","v":0},{"$f":"SUMIFS(Sheet1!S71_OY1BudgetAmount,Sheet1!S71_SA34aCode,$AC:$AC,Sheet1!S71_A5CapexCode,$AD:$AD)","v":0},{"$f":"SUMIFS(Sheet1!S71_OY2BudgetAmount,Sheet1!S71_SA34aCode,$AC:$AC,Sheet1!S71_A5CapexCode,$AD:$AD)","v":0},null,null,null,null,null,null,null,null,null,null,null,null,null,null,null,null,null,"1450","CE"]
[null,null,null,null,null,null,null,null,null,null,null,null,null,null,null,null,null,null,null,null,null,null,null,null,null,null,null,null,null,"CE"]
["Computer Equipment",null,{"$f":"SUM(C150:C150)","v":0},0,0,0,0,0,0,0,0,null,null,null,null,null,null,null,null,null,null,null,null,null,null,null,null,null,null,"CE"]
["Computer Equipment",null,{"$f":"SUMIFS(Sheet1!S71_PPPYearAmount,Sheet1!S71_SA34aCode,$AC:$AC,Sheet1!S71_A5CapexCode,$AD:$AD)","v":0},{"$f":"SUMIFS(Sheet1!S71_PPYearAmount,Sheet1!S71_SA34aCode,$AC:$AC,Sheet1!S71_A5CapexCode,$AD:$AD)","v":0},{"$f":"SUMIFS(Sheet1!S71_PYearAmount,Sheet1!S71_SA34aCode,$AC:$AC,Sheet1!S71_A5CapexCode,$AD:$AD)","v":0},{"$f":"SUMIFS(Sheet1!S71_OriginalBudAmnt,Sheet1!S71_SA34aCode,$AC:$AC,Sheet1!S71_A5CapexCode,$AD:$AD)","v":0},{"$f":"SUMIFS(Sheet1!S71_AdjustmentBudAmnt,Sheet1!S71_SA34aCode,$AC:$AC,Sheet1!S71_A5CapexCode,$AD:$AD)","v":0},{"$f":"SUMIFS(Sheet1!S71_AdjustmentBudAmnt,Sheet1!S71_SA34aCode,$AC:$AC,Sheet1!S71_A5CapexCode,$AD:$AD)","v":0},{"$f":"SUMIFS(Sheet1!S71_ASBudgetAmount,Sheet1!S71_SA34aCode,$AC:$AC,Sheet1!S71_A5CapexCode,$AD:$AD)","v":0},{"$f":"SUMIFS(Sheet1!S71_OY1BudgetAmount,Sheet1!S71_SA34aCode,$AC:$AC,Sheet1!S71_A5CapexCode,$AD:$AD)","v":0},{"$f":"SUMIFS(Sheet1!S71_OY2BudgetAmount,Sheet1!S71_SA34aCode,$AC:$AC,Sheet1!S71_A5CapexCode,$AD:$AD)","v":0},null,null,null,null,null,null,null,null,null,null,null,null,null,null,null,null,null,"1470","CE"]
[null,null,null,null,null,null,null,null,null,null,null,null,null,null,null,null,null,null,null,null,null,null,null,null,null,null,null,null,null,"CE"]
["Furniture and Office Equipment",null,{"$f":"SUM(C153:C153)","v":0},0,20454,30000,0,0,0,0,0,null,null,null,null,null,null,null,null,null,null,null,null,null,null,null,null,null,null,"CE"]
["Furniture and Office Equipment",null,{"$f":"SUMIFS(Sheet1!S71_PPPYearAmount,Sheet1!S71_SA34aCode,$AC:$AC,Sheet1!S71_A5CapexCode,$AD:$AD)","v":0},{"$f":"SUMIFS(Sheet1!S71_PPYearAmount,Sheet1!S71_SA34aCode,$AC:$AC,Sheet1!S71_A5CapexCode,$AD:$AD)","v":0},{"$f":"SUMIFS(Sheet1!S71_PYearAmount,Sheet1!S71_SA34aCode,$AC:$AC,Sheet1!S71_A5CapexCode,$AD:$AD)","v":20454},{"$f":"SUMIFS(Sheet1!S71_OriginalBudAmnt,Sheet1!S71_SA34aCode,$AC:$AC,Sheet1!S71_A5CapexCode,$AD:$AD)","v":30000},{"$f":"SUMIFS(Sheet1!S71_AdjustmentBudAmnt,Sheet1!S71_SA34aCode,$AC:$AC,Sheet1!S71_A5CapexCode,$AD:$AD)","v":0},{"$f":"SUMIFS(Sheet1!S71_AdjustmentBudAmnt,Sheet1!S71_SA34aCode,$AC:$AC,Sheet1!S71_A5CapexCode,$AD:$AD)","v":0},{"$f":"SUMIFS(Sheet1!S71_ASBudgetAmount,Sheet1!S71_SA34aCode,$AC:$AC,Sheet1!S71_A5CapexCode,$AD:$AD)","v":0},{"$f":"SUMIFS(Sheet1!S71_OY1BudgetAmount,Sheet1!S71_SA34aCode,$AC:$AC,Sheet1!S71_A5CapexCode,$AD:$AD)","v":0},{"$f":"SUMIFS(Sheet1!S71_OY2BudgetAmount,Sheet1!S71_SA34aCode,$AC:$AC,Sheet1!S71_A5CapexCode,$AD:$AD)","v":0},null,null,null,null,null,null,null,null,null,null,null,null,null,null,null,null,null,"1490","CE"]
[null,null,null,null,null,null,null,null,null,null,null,null,null,null,null,null,null,null,null,null,null,null,null,null,null,null,null,null,null,"CE"]
["Machinery and Equipment",null,{"$f":"SUM(C156:C156)","v":0},0,0,0,0,0,0,0,0,null,null,null,null,null,null,null,null,null,null,null,null,null,null,null,null,null,null,"CE"]
["Machinery and Equipment",null,{"$f":"SUMIFS(Sheet1!S71_PPPYearAmount,Sheet1!S71_SA34aCode,$AC:$AC,Sheet1!S71_A5CapexCode,$AD:$AD)","v":0},{"$f":"SUMIFS(Sheet1!S71_PPYearAmount,Sheet1!S71_SA34aCode,$AC:$AC,Sheet1!S71_A5CapexCode,$AD:$AD)","v":0},{"$f":"SUMIFS(Sheet1!S71_PYearAmount,Sheet1!S71_SA34aCode,$AC:$AC,Sheet1!S71_A5CapexCode,$AD:$AD)","v":0},{"$f":"SUMIFS(Sheet1!S71_OriginalBudAmnt,Sheet1!S71_SA34aCode,$AC:$AC,Sheet1!S71_A5CapexCode,$AD:$AD)","v":0},{"$f":"SUMIFS(Sheet1!S71_AdjustmentBudAmnt,Sheet1!S71_SA34aCode,$AC:$AC,Sheet1!S71_A5CapexCode,$AD:$AD)","v":0},{"$f":"SUMIFS(Sheet1!S71_AdjustmentBudAmnt,Sheet1!S71_SA34aCode,$AC:$AC,Sheet1!S71_A5CapexCode,$AD:$AD)","v":0},{"$f":"SUMIFS(Sheet1!S71_ASBudgetAmount,Sheet1!S71_SA34aCode,$AC:$AC,Sheet1!S71_A5CapexCode,$AD:$AD)","v":0},{"$f":"SUMIFS(Sheet1!S71_OY1BudgetAmount,Sheet1!S71_SA34aCode,$AC:$AC,Sheet1!S71_A5CapexCode,$AD:$AD)","v":0},{"$f":"SUMIFS(Sheet1!S71_OY2BudgetAmount,Sheet1!S71_SA34aCode,$AC:$AC,Sheet1!S71_A5CapexCode,$AD:$AD)","v":0},null,null,null,null,null,null,null,null,null,null,null,null,null,null,null,null,null,"1510","CE"]
[null,null,null,null,null,null,null,null,null,null,null,null,null,null,null,null,null,null,null,null,null,null,null,null,null,null,null,null,null,"CE"]
["Transport Assets",null,{"$f":"SUM(C159:C159)","v":0},0,0,0,0,0,0,0,0,null,null,null,null,null,null,null,null,null,null,null,null,null,null,null,null,null,null,"CE"]
["Transport Assets",null,{"$f":"SUMIFS(Sheet1!S71_PPPYearAmount,Sheet1!S71_SA34aCode,$AC:$AC,Sheet1!S71_A5CapexCode,$AD:$AD)","v":0},{"$f":"SUMIFS(Sheet1!S71_PPYearAmount,Sheet1!S71_SA34aCode,$AC:$AC,Sheet1!S71_A5CapexCode,$AD:$AD)","v":0},{"$f":"SUMIFS(Sheet1!S71_PYearAmount,Sheet1!S71_SA34aCode,$AC:$AC,Sheet1!S71_A5CapexCode,$AD:$AD)","v":0},{"$f":"SUMIFS(Sheet1!S71_OriginalBudAmnt,Sheet1!S71_SA34aCode,$AC:$AC,Sheet1!S71_A5CapexCode,$AD:$AD)","v":0},{"$f":"SUMIFS(Sheet1!S71_AdjustmentBudAmnt,Sheet1!S71_SA34aCode,$AC:$AC,Sheet1!S71_A5CapexCode,$AD:$AD)","v":0},{"$f":"SUMIFS(Sheet1!S71_AdjustmentBudAmnt,Sheet1!S71_SA34aCode,$AC:$AC,Sheet1!S71_A5CapexCode,$AD:$AD)","v":0},{"$f":"SUMIFS(Sheet1!S71_ASBudgetAmount,Sheet1!S71_SA34aCode,$AC:$AC,Sheet1!S71_A5CapexCode,$AD:$AD)","v":0},{"$f":"SUMIFS(Sheet1!S71_OY1BudgetAmount,Sheet1!S71_SA34aCode,$AC:$AC,Sheet1!S71_A5CapexCode,$AD:$AD)","v":0},{"$f":"SUMIFS(Sheet1!S71_OY2BudgetAmount,Sheet1!S71_SA34aCode,$AC:$AC,Sheet1!S71_A5CapexCode,$AD:$AD)","v":0},null,null,null,null,null,null,null,null,null,null,null,null,null,null,null,null,null,"1530","CE"]
[null,null,null,null,null,null,null,null,null,null,null,null,null,null,null,null,null,null,null,null,null,null,null,null,null,null,null,null,null,"CE"]
["Land",null,{"$f":"SUM(C162:C162)","v":0},0,0,0,0,0,0,0,0,null,null,null,null,null,null,null,null,null,null,null,null,null,null,null,null,null,null,"CE"]
["Land",null,{"$f":"SUMIFS(Sheet1!S71_PPPYearAmount,Sheet1!S71_SA34aCode,$AC:$AC,Sheet1!S71_A5CapexCode,$AD:$AD)","v":0},{"$f":"SUMIFS(Sheet1!S71_PPYearAmount,Sheet1!S71_SA34aCode,$AC:$AC,Sheet1!S71_A5CapexCode,$AD:$AD)","v":0},{"$f":"SUMIFS(Sheet1!S71_PYearAmount,Sheet1!S71_SA34aCode,$AC:$AC,Sheet1!S71_A5CapexCode,$AD:$AD)","v":0},{"$f":"SUMIFS(Sheet1!S71_OriginalBudAmnt,Sheet1!S71_SA34aCode,$AC:$AC,Sheet1!S71_A5CapexCode,$AD:$AD)","v":0},{"$f":"SUMIFS(Sheet1!S71_AdjustmentBudAmnt,Sheet1!S71_SA34aCode,$AC:$AC,Sheet1!S71_A5CapexCode,$AD:$AD)","v":0},{"$f":"SUMIFS(Sheet1!S71_AdjustmentBudAmnt,Sheet1!S71_SA34aCode,$AC:$AC,Sheet1!S71_A5CapexCode,$AD:$AD)","v":0},{"$f":"SUMIFS(Sheet1!S71_ASBudgetAmount,Sheet1!S71_SA34aCode,$AC:$AC,Sheet1!S71_A5CapexCode,$AD:$AD)","v":0},{"$f":"SUMIFS(Sheet1!S71_OY1BudgetAmount,Sheet1!S71_SA34aCode,$AC:$AC,Sheet1!S71_A5CapexCode,$AD:$AD)","v":0},{"$f":"SUMIFS(Sheet1!S71_OY2BudgetAmount,Sheet1!S71_SA34aCode,$AC:$AC,Sheet1!S71_A5CapexCode,$AD:$AD)","v":0},null,null,null,null,null,null,null,null,null,null,null,null,null,null,null,null,null,"1550","CE"]
[null,null,null,null,null,null,null,null,null,null,null,null,null,null,null,null,null,null,null,null,null,null,null,null,null,null,null,null,null,"CE"]
["Zoo's, Marine and Non-biological Animals",null,{"$f":"SUM(C165:C165)","v":0},0,0,0,0,0,0,0,0,null,null,null,null,null,null,null,null,null,null,null,null,null,null,null,null,null,null,"CE"]
["Zoo's, Marine and Non-biological Animals",null,{"$f":"SUMIFS(Sheet1!S71_PPPYearAmount,Sheet1!S71_SA34aCode,$AC:$AC,Sheet1!S71_A5CapexCode,$AD:$AD)","v":0},{"$f":"SUMIFS(Sheet1!S71_PPYearAmount,Sheet1!S71_SA34aCode,$AC:$AC,Sheet1!S71_A5CapexCode,$AD:$AD)","v":0},{"$f":"SUMIFS(Sheet1!S71_PYearAmount,Sheet1!S71_SA34aCode,$AC:$AC,Sheet1!S71_A5CapexCode,$AD:$AD)","v":0},{"$f":"SUMIFS(Sheet1!S71_OriginalBudAmnt,Sheet1!S71_SA34aCode,$AC:$AC,Sheet1!S71_A5CapexCode,$AD:$AD)","v":0},{"$f":"SUMIFS(Sheet1!S71_AdjustmentBudAmnt,Sheet1!S71_SA34aCode,$AC:$AC,Sheet1!S71_A5CapexCode,$AD:$AD)","v":0},{"$f":"SUMIFS(Sheet1!S71_AdjustmentBudAmnt,Sheet1!S71_SA34aCode,$AC:$AC,Sheet1!S71_A5CapexCode,$AD:$AD)","v":0},{"$f":"SUMIFS(Sheet1!S71_ASBudgetAmount,Sheet1!S71_SA34aCode,$AC:$AC,Sheet1!S71_A5CapexCode,$AD:$AD)","v":0},{"$f":"SUMIFS(Sheet1!S71_OY1BudgetAmount,Sheet1!S71_SA34aCode,$AC:$AC,Sheet1!S71_A5CapexCode,$AD:$AD)","v":0},{"$f":"SUMIFS(Sheet1!S71_OY2BudgetAmount,Sheet1!S71_SA34aCode,$AC:$AC,Sheet1!S71_A5CapexCode,$AD:$AD)","v":0},null,null,null,null,null,null,null,null,null,null,null,null,null,null,null,null,null,"1570","CE"]
[null,null,null,null,null,null,null,null,null,null,null,null,null,null,null,null,null,null,null,null,null,null,null,null,null,null,null,null,null,"CE"]
["Total Capital Expenditure on new assets ",1,{"$f":"C6+C74+C103+C110+C118+C136+C139+C149+C152+C155+C158+C161+C164","v":0},{"$f":"D6+D74+D103+D110+D118+D136+D139+D149+D152+D155+D158+D161+D164","v":0},20454,30000,0,0,0,0,0]
[]
[{"$f":"head27a","v":"References"}]
["1. Total Capital Expenditure on new assets (SA34a) plus Total Capital Expenditure on renewal of existing assets (SA34b) plus Total Capital Expenditure  on upgrading of existing assets (SA34e) must reconcile to total capital expenditure in Budgeted Capital Expenditure"]
[]
[]
["check balance",null,{"$f":"SUM(C167+SA34b!C167++SA34e!C167)-'A5-Capex'!C40","v":0},{"$f":"SUM(D167+SA34b!D167++SA34e!D167)-'A5-Capex'!D40","v":0},{"$f":"SUM(E167+SA34b!E167++SA34e!E167)-'A5-Capex'!E40","v":0},{"$f":"SUM(F167+SA34b!F167++SA34e!F167)-'A5-Capex'!F40","v":0},{"$f":"SUM(G167+SA34b!G167++SA34e!G167)-'A5-Capex'!G40","v":0},{"$f":"SUM(H167+SA34b!H167++SA34e!H167)-'A5-Capex'!H40","v":0},{"$f":"SUM(I167+SA34b!I167++SA34e!I167)-'A5-Capex'!J40","v":0},{"$f":"SUM(J167+SA34b!J167++SA34e!J167)-'A5-Capex'!K40","v":0},{"$f":"SUM(K167+SA34b!K167++SA34e!K167)-'A5-Capex'!L40","v":0}]

{"sheet":"SA34b","index":65,"n_rows":175,"n_cols":30,"rows_kept":175,"cut":false,"hidden":false,"merged":[[1,5,1,7],[1,8,1,10]]}
[{"$f":"muni&\" - \"&TableA34b","v":"DC16 Xhariep - Supporting Table SA34b Capital expenditure on the renewal of existing assets by asset class"}]
[{"$f":"desc","v":"Description"},{"$f":"head27","v":"Ref"},{"$f":"head1b","v":"2017/18"},{"$f":"head1A","v":"2018/19"},{"$f":"Head1","v":"2019/20"},{"$f":"Head2","v":"Current Year 2020/21"},null,null,{"$f":"Head3","v":"2021/22 Medium Term Revenue & Expenditure Framework"}]
["R thousand",1,{"$f":"Head5","v":"Audited Outcome"},{"$f":"Head5","v":"Audited Outcome"},{"$f":"Head5","v":"Audited Outcome"},{"$f":"Head6","v":"Original Budget"},{"$f":"Head7","v":"Adjusted Budget"},{"$f":"Head8","v":"Full Year Forecast"},{"$f":"Head9","v":"Budget Year 2021/22"},{"$f":"Head10","v":"Budget Year +1 2022/23"},{"$f":"Head11","v":"Budget Year +2 2023/24"}]
["Capital expenditure on renewal of existing assets by Asset Class/Sub-class"]
[]
["Infrastructure",null,{"$f":"C7+C12+C16+C26+C37+C44+C52+C62+C68","v":0},{"$f":"D7+D12+D16+D26+D37+D44+D52+D62+D68","v":0},0,0,0,0,0,0,0]
["Roads Infrastructure",null,{"$f":"SUM(C8:C11)","v":0},0,0,0,0,0,0,0,0]
["Roads",null,{"$f":"SUMIFS(Sheet1!S71_PPPYearAmount,Sheet1!S71_SA34Code,$AC:$AC,Sheet1!S71_A5CapexCode,$AD:$AD)","v":0},{"$f":"SUMIFS(Sheet1!S71_PPYearAmount,Sheet1!S71_SA34Code,$AC:$AC,Sheet1!S71_A5CapexCode,$AD:$AD)","v":0},{"$f":"SUMIFS(Sheet1!S71_PYearAmount,Sheet1!S71_SA34Code,$AC:$AC,Sheet1!S71_A5CapexCode,$AD:$AD)","v":0},{"$f":"SUMIFS(Sheet1!S71_OriginalBudAmnt,Sheet1!S71_SA34Code,$AC:$AC,Sheet1!S71_A5CapexCode,$AD:$AD)","v":0},{"$f":"SUMIFS(Sheet1!S71_AdjustmentBudAmnt,Sheet1!S71_SA34Code,$AC:$AC,Sheet1!S71_A5CapexCode,$AD:$AD)","v":0},{"$f":"SUMIFS(Sheet1!S71_AdjustmentBudAmnt,Sheet1!S71_SA34Code,$AC:$AC,Sheet1!S71_A5CapexCode,$AD:$AD)","v":0},{"$f":"SUMIFS(Sheet1!S71_ASBudgetAmount,Sheet1!S71_SA34Code,$AC:$AC,Sheet1!S71_A5CapexCode,$AD:$AD)","v":0},{"$f":"SUMIFS(Sheet1!S71_OY1BudgetAmount,Sheet1!S71_SA34Code,$AC:$AC,Sheet1!S71_A5CapexCode,$AD:$AD)","v":0},{"$f":"SUMIFS(Sheet1!S71_OY2BudgetAmount,Sheet1!S71_SA34Code,$AC:$AC,Sheet1!S71_A5CapexCode,$AD:$AD)","v":0},null,null,null,null,null,null,null,null,null,null,null,null,null,null,null,null,null,"0120","CE"]
["Road Structures",null,{"$f":"SUMIFS(Sheet1!S71_PPPYearAmount,Sheet1!S71_SA34Code,$AC:$AC,Sheet1!S71_A5CapexCode,$AD:$AD)","v":0},{"$f":"SUMIFS(Sheet1!S71_PPYearAmount,Sheet1!S71_SA34Code,$AC:$AC,Sheet1!S71_A5CapexCode,$AD:$AD)","v":0},{"$f":"SUMIFS(Sheet1!S71_PYearAmount,Sheet1!S71_SA34Code,$AC:$AC,Sheet1!S71_A5CapexCode,$AD:$AD)","v":0},{"$f":"SUMIFS(Sheet1!S71_OriginalBudAmnt,Sheet1!S71_SA34Code,$AC:$AC,Sheet1!S71_A5CapexCode,$AD:$AD)","v":0},{"$f":"SUMIFS(Sheet1!S71_AdjustmentBudAmnt,Sheet1!S71_SA34Code,$AC:$AC,Sheet1!S71_A5CapexCode,$AD:$AD)","v":0},{"$f":"SUMIFS(Sheet1!S71_AdjustmentBudAmnt,Sheet1!S71_SA34Code,$AC:$AC,Sheet1!S71_A5CapexCode,$AD:$AD)","v":0},{"$f":"SUMIFS(Sheet1!S71_ASBudgetAmount,Sheet1!S71_SA34Code,$AC:$AC,Sheet1!S71_A5CapexCode,$AD:$AD)","v":0},{"$f":"SUMIFS(Sheet1!S71_OY1BudgetAmount,Sheet1!S71_SA34Code,$AC:$AC,Sheet1!S71_A5CapexCode,$AD:$AD)","v":0},{"$f":"SUMIFS(Sheet1!S71_OY2BudgetAmount,Sheet1!S71_SA34Code,$AC:$AC,Sheet1!S71_A5CapexCode,$AD:$AD)","v":0},null,null,null,null,null,null,null,null,null,null,null,null,null,null,null,null,null,"0130","CE"]
["Road Furniture",null,{"$f":"SUMIFS(Sheet1!S71_PPPYearAmount,Sheet1!S71_SA34Code,$AC:$AC,Sheet1!S71_A5CapexCode,$AD:$AD)","v":0},{"$f":"SUMIFS(Sheet1!S71_PPYearAmount,Sheet1!S71_SA34Code,$AC:$AC,Sheet1!S71_A5CapexCode,$AD:$AD)","v":0},{"$f":"SUMIFS(Sheet1!S71_PYearAmount,Sheet1!S71_SA34Code,$AC:$AC,Sheet1!S71_A5CapexCode,$AD:$AD)","v":0},{"$f":"SUMIFS(Sheet1!S71_OriginalBudAmnt,Sheet1!S71_SA34Code,$AC:$AC,Sheet1!S71_A5CapexCode,$AD:$AD)","v":0},{"$f":"SUMIFS(Sheet1!S71_AdjustmentBudAmnt,Sheet1!S71_SA34Code,$AC:$AC,Sheet1!S71_A5CapexCode,$AD:$AD)","v":0},{"$f":"SUMIFS(Sheet1!S71_AdjustmentBudAmnt,Sheet1!S71_SA34Code,$AC:$AC,Sheet1!S71_A5CapexCode,$AD:$AD)","v":0},{"$f":"SUMIFS(Sheet1!S71_ASBudgetAmount,Sheet1!S71_SA34Code,$AC:$AC,Sheet1!S71_A5CapexCode,$AD:$AD)","v":0},{"$f":"SUMIFS(Sheet1!S71_OY1BudgetAmount,Sheet1!S71_SA34Code,$AC:$AC,Sheet1!S71_A5CapexCode,$AD:$AD)","v":0},{"$f":"SUMIFS(Sheet1!S71_OY2BudgetAmount,Sheet1!S71_SA34Code,$AC:$AC,Sheet1!S71_A5CapexCode,$AD:$AD)","v":0},null,null,null,null,null,null,null,null,null,null,null,null,null,null,null,null,null,"0140","CE"]
["Capital Spares",null,{"$f":"SUMIFS(Sheet1!S71_PPPYearAmount,Sheet1!S71_SA34Code,$AC:$AC,Sheet1!S71_A5CapexCode,$AD:$AD)","v":0},{"$f":"SUMIFS(Sheet1!S71_PPYearAmount,Sheet1!S71_SA34Code,$AC:$AC,Sheet1!S71_A5CapexCode,$AD:$AD)","v":0},{"$f":"SUMIFS(Sheet1!S71_PYearAmount,Sheet1!S71_SA34Code,$AC:$AC,Sheet1!S71_A5CapexCode,$AD:$AD)","v":0},{"$f":"SUMIFS(Sheet1!S71_OriginalBudAmnt,Sheet1!S71_SA34Code,$AC:$AC,Sheet1!S71_A5CapexCode,$AD:$AD)","v":0},{"$f":"SUMIFS(Sheet1!S71_AdjustmentBudAmnt,Sheet1!S71_SA34Code,$AC:$AC,Sheet1!S71_A5CapexCode,$AD:$AD)","v":0},{"$f":"SUMIFS(Sheet1!S71_AdjustmentBudAmnt,Sheet1!S71_SA34Code,$AC:$AC,Sheet1!S71_A5CapexCode,$AD:$AD)","v":0},{"$f":"SUMIFS(Sheet1!S71_ASBudgetAmount,Sheet1!S71_SA34Code,$AC:$AC,Sheet1!S71_A5CapexCode,$AD:$AD)","v":0},{"$f":"SUMIFS(Sheet1!S71_OY1BudgetAmount,Sheet1!S71_SA34Code,$AC:$AC,Sheet1!S71_A5CapexCode,$AD:$AD)","v":0},{"$f":"SUMIFS(Sheet1!S71_OY2BudgetAmount,Sheet1!S71_SA34Code,$AC:$AC,Sheet1!S71_A5CapexCode,$AD:$AD)","v":0},null,null,null,null,null,null,null,null,null,null,null,null,null,null,null,null,null,"0150","CE"]
["Storm water Infrastructure",null,{"$f":"SUM(C13:C15)","v":0},{"$f":"SUM(D13:D15)","v":0},0,0,0,0,0,0,0,null,null,null,null,null,null,null,null,null,null,null,null,null,null,null,null,null,null,"CE"]
["Drainage Collection",null,{"$f":"SUMIFS(Sheet1!S71_PPPYearAmount,Sheet1!S71_SA34Code,$AC:$AC,Sheet1!S71_A5CapexCode,$AD:$AD)","v":0},{"$f":"SUMIFS(Sheet1!S71_PPYearAmount,Sheet1!S71_SA34Code,$AC:$AC,Sheet1!S71_A5CapexCode,$AD:$AD)","v":0},{"$f":"SUMIFS(Sheet1!S71_PYearAmount,Sheet1!S71_SA34Code,$AC:$AC,Sheet1!S71_A5CapexCode,$AD:$AD)","v":0},{"$f":"SUMIFS(Sheet1!S71_OriginalBudAmnt,Sheet1!S71_SA34Code,$AC:$AC,Sheet1!S71_A5CapexCode,$AD:$AD)","v":0},{"$f":"SUMIFS(Sheet1!S71_AdjustmentBudAmnt,Sheet1!S71_SA34Code,$AC:$AC,Sheet1!S71_A5CapexCode,$AD:$AD)","v":0},{"$f":"SUMIFS(Sheet1!S71_AdjustmentBudAmnt,Sheet1!S71_SA34Code,$AC:$AC,Sheet1!S71_A5CapexCode,$AD:$AD)","v":0},{"$f":"SUMIFS(Sheet1!S71_ASBudgetAmount,Sheet1!S71_SA34Code,$AC:$AC,Sheet1!S71_A5CapexCode,$AD:$AD)","v":0},{"$f":"SUMIFS(Sheet1!S71_OY1BudgetAmount,Sheet1!S71_SA34Code,$AC:$AC,Sheet1!S71_A5CapexCode,$AD:$AD)","v":0},{"$f":"SUMIFS(Sheet1!S71_OY2BudgetAmount,Sheet1!S71_SA34Code,$AC:$AC,Sheet1!S71_A5CapexCode,$AD:$AD)","v":0},null,null,null,null,null,null,null,null,null,null,null,null,null,null,null,null,null,"0170","CE"]
["Storm water Conveyance",null,{"$f":"SUMIFS(Sheet1!S71_PPPYearAmount,Sheet1!S71_SA34Code,$AC:$AC,Sheet1!S71_A5CapexCode,$AD:$AD)","v":0},{"$f":"SUMIFS(Sheet1!S71_PPYearAmount,Sheet1!S71_SA34Code,$AC:$AC,Sheet1!S71_A5CapexCode,$AD:$AD)","v":0},{"$f":"SUMIFS(Sheet1!S71_PYearAmount,Sheet1!S71_SA34Code,$AC:$AC,Sheet1!S71_A5CapexCode,$AD:$AD)","v":0},{"$f":"SUMIFS(Sheet1!S71_OriginalBudAmnt,Sheet1!S71_SA34Code,$AC:$AC,Sheet1!S71_A5CapexCode,$AD:$AD)","v":0},{"$f":"SUMIFS(Sheet1!S71_AdjustmentBudAmnt,Sheet1!S71_SA34Code,$AC:$AC,Sheet1!S71_A5CapexCode,$AD:$AD)","v":0},{"$f":"SUMIFS(Sheet1!S71_AdjustmentBudAmnt,Sheet1!S71_SA34Code,$AC:$AC,Sheet1!S71_A5CapexCode,$AD:$AD)","v":0},{"$f":"SUMIFS(Sheet1!S71_ASBudgetAmount,Sheet1!S71_SA34Code,$AC:$AC,Sheet1!S71_A5CapexCode,$AD:$AD)","v":0},{"$f":"SUMIFS(Sheet1!S71_OY1BudgetAmount,Sheet1!S71_SA34Code,$AC:$AC,Sheet1!S71_A5CapexCode,$AD:$AD)","v":0},{"$f":"SUMIFS(Sheet1!S71_OY2BudgetAmount,Sheet1!S71_SA34Code,$AC:$AC,Sheet1!S71_A5CapexCode,$AD:$AD)","v":0},null,null,null,null,null,null,null,null,null,null,null,null,null,null,null,null,null,"0180","CE"]
["Attenuation",null,{"$f":"SUMIFS(Sheet1!S71_PPPYearAmount,Sheet1!S71_SA34Code,$AC:$AC,Sheet1!S71_A5CapexCode,$AD:$AD)","v":0},{"$f":"SUMIFS(Sheet1!S71_PPYearAmount,Sheet1!S71_SA34Code,$AC:$AC,Sheet1!S71_A5CapexCode,$AD:$AD)","v":0},{"$f":"SUMIFS(Sheet1!S71_PYearAmount,Sheet1!S71_SA34Code,$AC:$AC,Sheet1!S71_A5CapexCode,$AD:$AD)","v":0},{"$f":"SUMIFS(Sheet1!S71_OriginalBudAmnt,Sheet1!S71_SA34Code,$AC:$AC,Sheet1!S71_A5CapexCode,$AD:$AD)","v":0},{"$f":"SUMIFS(Sheet1!S71_AdjustmentBudAmnt,Sheet1!S71_SA34Code,$AC:$AC,Sheet1!S71_A5CapexCode,$AD:$AD)","v":0},{"$f":"SUMIFS(Sheet1!S71_AdjustmentBudAmnt,Sheet1!S71_SA34Code,$AC:$AC,Sheet1!S71_A5CapexCode,$AD:$AD)","v":0},{"$f":"SUMIFS(Sheet1!S71_ASBudgetAmount,Sheet1!S71_SA34Code,$AC:$AC,Sheet1!S71_A5CapexCode,$AD:$AD)","v":0},{"$f":"SUMIFS(Sheet1!S71_OY1BudgetAmount,Sheet1!S71_SA34Code,$AC:$AC,Sheet1!S71_A5CapexCode,$AD:$AD)","v":0},{"$f":"SUMIFS(Sheet1!S71_OY2BudgetAmount,Sheet1!S71_SA34Code,$AC:$AC,Sheet1!S71_A5CapexCode,$AD:$AD)","v":0},null,null,null,null,null,null,null,null,null,null,null,null,null,null,null,null,null,"0190","CE"]
["Electrical Infrastructure",null,{"$f":"SUM(C17:C25)","v":0},0,0,0,0,0,0,0,0,null,null,null,null,null,null,null,null,null,null,null,null,null,null,null,null,null,null,"CE"]
["Power Plants",null,{"$f":"SUMIFS(Sheet1!S71_PPPYearAmount,Sheet1!S71_SA34Code,$AC:$AC,Sheet1!S71_A5CapexCode,$AD:$AD)","v":0},{"$f":"SUMIFS(Sheet1!S71_PPYearAmount,Sheet1!S71_SA34Code,$AC:$AC,Sheet1!S71_A5CapexCode,$AD:$AD)","v":0},{"$f":"SUMIFS(Sheet1!S71_PYearAmount,Sheet1!S71_SA34Code,$AC:$AC,Sheet1!S71_A5CapexCode,$AD:$AD)","v":0},{"$f":"SUMIFS(Sheet1!S71_OriginalBudAmnt,Sheet1!S71_SA34Code,$AC:$AC,Sheet1!S71_A5CapexCode,$AD:$AD)","v":0},{"$f":"SUMIFS(Sheet1!S71_AdjustmentBudAmnt,Sheet1!S71_SA34Code,$AC:$AC,Sheet1!S71_A5CapexCode,$AD:$AD)","v":0},{"$f":"SUMIFS(Sheet1!S71_AdjustmentBudAmnt,Sheet1!S71_SA34Code,$AC:$AC,Sheet1!S71_A5CapexCode,$AD:$AD)","v":0},{"$f":"SUMIFS(Sheet1!S71_ASBudgetAmount,Sheet1!S71_SA34Code,$AC:$AC,Sheet1!S71_A5CapexCode,$AD:$AD)","v":0},{"$f":"SUMIFS(Sheet1!S71_OY1BudgetAmount,Sheet1!S71_SA34Code,$AC:$AC,Sheet1!S71_A5CapexCode,$AD:$AD)","v":0},{"$f":"SUMIFS(Sheet1!S71_OY2BudgetAmount,Sheet1!S71_SA34Code,$AC:$AC,Sheet1!S71_A5CapexCode,$AD:$AD)","v":0},null,null,null,null,null,null,null,null,null,null,null,null,null,null,null,null,null,"0210","CE"]
["HV Substations",null,{"$f":"SUMIFS(Sheet1!S71_PPPYearAmount,Sheet1!S71_SA34Code,$AC:$AC,Sheet1!S71_A5CapexCode,$AD:$AD)","v":0},{"$f":"SUMIFS(Sheet1!S71_PPYearAmount,Sheet1!S71_SA34Code,$AC:$AC,Sheet1!S71_A5CapexCode,$AD:$AD)","v":0},{"$f":"SUMIFS(Sheet1!S71_PYearAmount,Sheet1!S71_SA34Code,$AC:$AC,Sheet1!S71_A5CapexCode,$AD:$AD)","v":0},{"$f":"SUMIFS(Sheet1!S71_OriginalBudAmnt,Sheet1!S71_SA34Code,$AC:$AC,Sheet1!S71_A5CapexCode,$AD:$AD)","v":0},{"$f":"SUMIFS(Sheet1!S71_AdjustmentBudAmnt,Sheet1!S71_SA34Code,$AC:$AC,Sheet1!S71_A5CapexCode,$AD:$AD)","v":0},{"$f":"SUMIFS(Sheet1!S71_AdjustmentBudAmnt,Sheet1!S71_SA34Code,$AC:$AC,Sheet1!S71_A5CapexCode,$AD:$AD)","v":0},{"$f":"SUMIFS(Sheet1!S71_ASBudgetAmount,Sheet1!S71_SA34Code,$AC:$AC,Sheet1!S71_A5CapexCode,$AD:$AD)","v":0},{"$f":"SUMIFS(Sheet1!S71_OY1BudgetAmount,Sheet1!S71_SA34Code,$AC:$AC,Sheet1!S71_A5CapexCode,$AD:$AD)","v":0},{"$f":"SUMIFS(Sheet1!S71_OY2BudgetAmount,Sheet1!S71_SA34Code,$AC:$AC,Sheet1!S71_A5CapexCode,$AD:$AD)","v":0},null,null,null,null,null,null,null,null,null,null,null,null,null,null,null,null,null,"0220","CE"]
["HV Switching Station",null,{"$f":"SUMIFS(Sheet1!S71_PPPYearAmount,Sheet1!S71_SA34Code,$AC:$AC,Sheet1!S71_A5CapexCode,$AD:$AD)","v":0},{"$f":"SUMIFS(Sheet1!S71_PPYearAmount,Sheet1!S71_SA34Code,$AC:$AC,Sheet1!S71_A5CapexCode,$AD:$AD)","v":0},{"$f":"SUMIFS(Sheet1!S71_PYearAmount,Sheet1!S71_SA34Code,$AC:$AC,Sheet1!S71_A5CapexCode,$AD:$AD)","v":0},{"$f":"SUMIFS(Sheet1!S71_OriginalBudAmnt,Sheet1!S71_SA34Code,$AC:$AC,Sheet1!S71_A5CapexCode,$AD:$AD)","v":0},{"$f":"SUMIFS(Sheet1!S71_AdjustmentBudAmnt,Sheet1!S71_SA34Code,$AC:$AC,Sheet1!S71_A5CapexCode,$AD:$AD)","v":0},{"$f":"SUMIFS(Sheet1!S71_AdjustmentBudAmnt,Sheet1!S71_SA34Code,$AC:$AC,Sheet1!S71_A5CapexCode,$AD:$AD)","v":0},{"$f":"SUMIFS(Sheet1!S71_ASBudgetAmount,Sheet1!S71_SA34Code,$AC:$AC,Sheet1!S71_A5CapexCode,$AD:$AD)","v":0},{"$f":"SUMIFS(Sheet1!S71_OY1BudgetAmount,Sheet1!S71_SA34Code,$AC:$AC,Sheet1!S71_A5CapexCode,$AD:$AD)","v":0},{"$f":"SUMIFS(Sheet1!S71_OY2BudgetAmount,Sheet1!S71_SA34Code,$AC:$AC,Sheet1!S71_A5CapexCode,$AD:$AD)","v":0},null,null,null,null,null,null,null,null,null,null,null,null,null,null,null,null,null,"0230","CE"]
["HV Transmission Conductors",null,{"$f":"SUMIFS(Sheet1!S71_PPPYearAmount,Sheet1!S71_SA34Code,$AC:$AC,Sheet1!S71_A5CapexCode,$AD:$AD)","v":0},{"$f":"SUMIFS(Sheet1!S71_PPYearAmount,Sheet1!S71_SA34Code,$AC:$AC,Sheet1!S71_A5CapexCode,$AD:$AD)","v":0},{"$f":"SUMIFS(Sheet1!S71_PYearAmount,Sheet1!S71_SA34Code,$AC:$AC,Sheet1!S71_A5CapexCode,$AD:$AD)","v":0},{"$f":"SUMIFS(Sheet1!S71_OriginalBudAmnt,Sheet1!S71_SA34Code,$AC:$AC,Sheet1!S71_A5CapexCode,$AD:$AD)","v":0},{"$f":"SUMIFS(Sheet1!S71_AdjustmentBudAmnt,Sheet1!S71_SA34Code,$AC:$AC,Sheet1!S71_A5CapexCode,$AD:$AD)","v":0},{"$f":"SUMIFS(Sheet1!S71_AdjustmentBudAmnt,Sheet1!S71_SA34Code,$AC:$AC,Sheet1!S71_A5CapexCode,$AD:$AD)","v":0},{"$f":"SUMIFS(Sheet1!S71_ASBudgetAmount,Sheet1!S71_SA34Code,$AC:$AC,Sheet1!S71_A5CapexCode,$AD:$AD)","v":0},{"$f":"SUMIFS(Sheet1!S71_OY1BudgetAmount,Sheet1!S71_SA34Code,$AC:$AC,Sheet1!S71_A5CapexCode,$AD:$AD)","v":0},{"$f":"SUMIFS(Sheet1!S71_OY2BudgetAmount,Sheet1!S71_SA34Code,$AC:$AC,Sheet1!S71_A5CapexCode,$AD:$AD)","v":0},null,null,null,null,null,null,null,null,null,null,null,null,null,null,null,null,null,"0240","CE"]
["MV Substations",null,{"$f":"SUMIFS(Sheet1!S71_PPPYearAmount,Sheet1!S71_SA34Code,$AC:$AC,Sheet1!S71_A5CapexCode,$AD:$AD)","v":0},{"$f":"SUMIFS(Sheet1!S71_PPYearAmount,Sheet1!S71_SA34Code,$AC:$AC,Sheet1!S71_A5CapexCode,$AD:$AD)","v":0},{"$f":"SUMIFS(Sheet1!S71_PYearAmount,Sheet1!S71_SA34Code,$AC:$AC,Sheet1!S71_A5CapexCode,$AD:$AD)","v":0},{"$f":"SUMIFS(Sheet1!S71_OriginalBudAmnt,Sheet1!S71_SA34Code,$AC:$AC,Sheet1!S71_A5CapexCode,$AD:$AD)","v":0},{"$f":"SUMIFS(Sheet1!S71_AdjustmentBudAmnt,Sheet1!S71_SA34Code,$AC:$AC,Sheet1!S71_A5CapexCode,$AD:$AD)","v":0},{"$f":"SUMIFS(Sheet1!S71_AdjustmentBudAmnt,Sheet1!S71_SA34Code,$AC:$AC,Sheet1!S71_A5CapexCode,$AD:$AD)","v":0},{"$f":"SUMIFS(Sheet1!S71_ASBudgetAmount,Sheet1!S71_SA34Code,$AC:$AC,Sheet1!S71_A5CapexCode,$AD:$AD)","v":0},{"$f":"SUMIFS(Sheet1!S71_OY1BudgetAmount,Sheet1!S71_SA34Code,$AC:$AC,Sheet1!S71_A5CapexCode,$AD:$AD)","v":0},{"$f":"SUMIFS(Sheet1!S71_OY2BudgetAmount,Sheet1!S71_SA34Code,$AC:$AC,Sheet1!S71_A5CapexCode,$AD:$AD)","v":0},null,null,null,null,null,null,null,null,null,null,null,null,null,null,null,null,null,"0250","CE"]
["MV Switching Stations",null,{"$f":"SUMIFS(Sheet1!S71_PPPYearAmount,Sheet1!S71_SA34Code,$AC:$AC,Sheet1!S71_A5CapexCode,$AD:$AD)","v":0},{"$f":"SUMIFS(Sheet1!S71_PPYearAmount,Sheet1!S71_SA34Code,$AC:$AC,Sheet1!S71_A5CapexCode,$AD:$AD)","v":0},{"$f":"SUMIFS(Sheet1!S71_PYearAmount,Sheet1!S71_SA34Code,$AC:$AC,Sheet1!S71_A5CapexCode,$AD:$AD)","v":0},{"$f":"SUMIFS(Sheet1!S71_OriginalBudAmnt,Sheet1!S71_SA34Code,$AC:$AC,Sheet1!S71_A5CapexCode,$AD:$AD)","v":0},{"$f":"SUMIFS(Sheet1!S71_AdjustmentBudAmnt,Sheet1!S71_SA34Code,$AC:$AC,Sheet1!S71_A5CapexCode,$AD:$AD)","v":0},{"$f":"SUMIFS(Sheet1!S71_AdjustmentBudAmnt,Sheet1!S71_SA34Code,$AC:$AC,Sheet1!S71_A5CapexCode,$AD:$AD)","v":0},{"$f":"SUMIFS(Sheet1!S71_ASBudgetAmount,Sheet1!S71_SA34Code,$AC:$AC,Sheet1!S71_A5CapexCode,$AD:$AD)","v":0},{"$f":"SUMIFS(Sheet1!S71_OY1BudgetAmount,Sheet1!S71_SA34Code,$AC:$AC,Sheet1!S71_A5CapexCode,$AD:$AD)","v":0},{"$f":"SUMIFS(Sheet1!S71_OY2BudgetAmount,Sheet1!S71_SA34Code,$AC:$AC,Sheet1!S71_A5CapexCode,$AD:$AD)","v":0},null,null,null,null,null,null,null,null,null,null,null,null,null,null,null,null,null,"0260","CE"]
["MV Networks",null,{"$f":"SUMIFS(Sheet1!S71_PPPYearAmount,Sheet1!S71_SA34Code,$AC:$AC,Sheet1!S71_A5CapexCode,$AD:$AD)","v":0},{"$f":"SUMIFS(Sheet1!S71_PPYearAmount,Sheet1!S71_SA34Code,$AC:$AC,Sheet1!S71_A5CapexCode,$AD:$AD)","v":0},{"$f":"SUMIFS(Sheet1!S71_PYearAmount,Sheet1!S71_SA34Code,$AC:$AC,Sheet1!S71_A5CapexCode,$AD:$AD)","v":0},{"$f":"SUMIFS(Sheet1!S71_OriginalBudAmnt,Sheet1!S71_SA34Code,$AC:$AC,Sheet1!S71_A5CapexCode,$AD:$AD)","v":0},{"$f":"SUMIFS(Sheet1!S71_AdjustmentBudAmnt,Sheet1!S71_SA34Code,$AC:$AC,Sheet1!S71_A5CapexCode,$AD:$AD)","v":0},{"$f":"SUMIFS(Sheet1!S71_AdjustmentBudAmnt,Sheet1!S71_SA34Code,$AC:$AC,Sheet1!S71_A5CapexCode,$AD:$AD)","v":0},{"$f":"SUMIFS(Sheet1!S71_ASBudgetAmount,Sheet1!S71_SA34Code,$AC:$AC,Sheet1!S71_A5CapexCode,$AD:$AD)","v":0},{"$f":"SUMIFS(Sheet1!S71_OY1BudgetAmount,Sheet1!S71_SA34Code,$AC:$AC,Sheet1!S71_A5CapexCode,$AD:$AD)","v":0},{"$f":"SUMIFS(Sheet1!S71_OY2BudgetAmount,Sheet1!S71_SA34Code,$AC:$AC,Sheet1!S71_A5CapexCode,$AD:$AD)","v":0},null,null,null,null,null,null,null,null,null,null,null,null,null,null,null,null,null,"0270","CE"]
["LV Networks",null,{"$f":"SUMIFS(Sheet1!S71_PPPYearAmount,Sheet1!S71_SA34Code,$AC:$AC,Sheet1!S71_A5CapexCode,$AD:$AD)","v":0},{"$f":"SUMIFS(Sheet1!S71_PPYearAmount,Sheet1!S71_SA34Code,$AC:$AC,Sheet1!S71_A5CapexCode,$AD:$AD)","v":0},{"$f":"SUMIFS(Sheet1!S71_PYearAmount,Sheet1!S71_SA34Code,$AC:$AC,Sheet1!S71_A5CapexCode,$AD:$AD)","v":0},{"$f":"SUMIFS(Sheet1!S71_OriginalBudAmnt,Sheet1!S71_SA34Code,$AC:$AC,Sheet1!S71_A5CapexCode,$AD:$AD)","v":0},{"$f":"SUMIFS(Sheet1!S71_AdjustmentBudAmnt,Sheet1!S71_SA34Code,$AC:$AC,Sheet1!S71_A5CapexCode,$AD:$AD)","v":0},{"$f":"SUMIFS(Sheet1!S71_AdjustmentBudAmnt,Sheet1!S71_SA34Code,$AC:$AC,Sheet1!S71_A5CapexCode,$AD:$AD)","v":0},{"$f":"SUMIFS(Sheet1!S71_ASBudgetAmount,Sheet1!S71_SA34Code,$AC:$AC,Sheet1!S71_A5CapexCode,$AD:$AD)","v":0},{"$f":"SUMIFS(Sheet1!S71_OY1BudgetAmount,Sheet1!S71_SA34Code,$AC:$AC,Sheet1!S71_A5CapexCode,$AD:$AD)","v":0},{"$f":"SUMIFS(Sheet1!S71_OY2BudgetAmount,Sheet1!S71_SA34Code,$AC:$AC,Sheet1!S71_A5CapexCode,$AD:$AD)","v":0},null,null,null,null,null,null,null,null,null,null,null,null,null,null,null,null,null,"0280","CE"]
["Capital Spares",null,{"$f":"SUMIFS(Sheet1!S71_PPPYearAmount,Sheet1!S71_SA34Code,$AC:$AC,Sheet1!S71_A5CapexCode,$AD:$AD)","v":0},{"$f":"SUMIFS(Sheet1!S71_PPYearAmount,Sheet1!S71_SA34Code,$AC:$AC,Sheet1!S71_A5CapexCode,$AD:$AD)","v":0},{"$f":"SUMIFS(Sheet1!S71_PYearAmount,Sheet1!S71_SA34Code,$AC:$AC,Sheet1!S71_A5CapexCode,$AD:$AD)","v":0},{"$f":"SUMIFS(Sheet1!S71_OriginalBudAmnt,Sheet1!S71_SA34Code,$AC:$AC,Sheet1!S71_A5CapexCode,$AD:$AD)","v":0},{"$f":"SUMIFS(Sheet1!S71_AdjustmentBudAmnt,Sheet1!S71_SA34Code,$AC:$AC,Sheet1!S71_A5CapexCode,$AD:$AD)","v":0},{"$f":"SUMIFS(Sheet1!S71_AdjustmentBudAmnt,Sheet1!S71_SA34Code,$AC:$AC,Sheet1!S71_A5CapexCode,$AD:$AD)","v":0},{"$f":"SUMIFS(Sheet1!S71_ASBudgetAmount,Sheet1!S71_SA34Code,$AC:$AC,Sheet1!S71_A5CapexCode,$AD:$AD)","v":0},{"$f":"SUMIFS(Sheet1!S71_OY1BudgetAmount,Sheet1!S71_SA34Code,$AC:$AC,Sheet1!S71_A5CapexCode,$AD:$AD)","v":0},{"$f":"SUMIFS(Sheet1!S71_OY2BudgetAmount,Sheet1!S71_SA34Code,$AC:$AC,Sheet1!S71_A5CapexCode,$AD:$AD)","v":0},null,null,null,null,null,null,null,null,null,null,null,null,null,null,null,null,null,"0290","CE"]
["Water Supply Infrastructure",null,{"$f":"SUM(C27:C36)","v":0},{"$f":"SUM(D27:D36)","v":0},0,0,0,0,0,0,0,null,null,null,null,null,null,null,null,null,null,null,null,null,null,null,null,null,null,"CE"]
["Dams and Weirs",null,{"$f":"SUMIFS(Sheet1!S71_PPPYearAmount,Sheet1!S71_SA34Code,$AC:$AC,Sheet1!S71_A5CapexCode,$AD:$AD)","v":0},{"$f":"SUMIFS(Sheet1!S71_PPYearAmount,Sheet1!S71_SA34Code,$AC:$AC,Sheet1!S71_A5CapexCode,$AD:$AD)","v":0},{"$f":"SUMIFS(Sheet1!S71_PYearAmount,Sheet1!S71_SA34Code,$AC:$AC,Sheet1!S71_A5CapexCode,$AD:$AD)","v":0},{"$f":"SUMIFS(Sheet1!S71_OriginalBudAmnt,Sheet1!S71_SA34Code,$AC:$AC,Sheet1!S71_A5CapexCode,$AD:$AD)","v":0},{"$f":"SUMIFS(Sheet1!S71_AdjustmentBudAmnt,Sheet1!S71_SA34Code,$AC:$AC,Sheet1!S71_A5CapexCode,$AD:$AD)","v":0},{"$f":"SUMIFS(Sheet1!S71_AdjustmentBudAmnt,Sheet1!S71_SA34Code,$AC:$AC,Sheet1!S71_A5CapexCode,$AD:$AD)","v":0},{"$f":"SUMIFS(Sheet1!S71_ASBudgetAmount,Sheet1!S71_SA34Code,$AC:$AC,Sheet1!S71_A5CapexCode,$AD:$AD)","v":0},{"$f":"SUMIFS(Sheet1!S71_OY1BudgetAmount,Sheet1!S71_SA34Code,$AC:$AC,Sheet1!S71_A5CapexCode,$AD:$AD)","v":0},{"$f":"SUMIFS(Sheet1!S71_OY2BudgetAmount,Sheet1!S71_SA34Code,$AC:$AC,Sheet1!S71_A5CapexCode,$AD:$AD)","v":0},null,null,null,null,null,null,null,null,null,null,null,null,null,null,null,null,null,"0310","CE"]
["Boreholes",null,{"$f":"SUMIFS(Sheet1!S71_PPPYearAmount,Sheet1!S71_SA34Code,$AC:$AC,Sheet1!S71_A5CapexCode,$AD:$AD)","v":0},{"$f":"SUMIFS(Sheet1!S71_PPYearAmount,Sheet1!S71_SA34Code,$AC:$AC,Sheet1!S71_A5CapexCode,$AD:$AD)","v":0},{"$f":"SUMIFS(Sheet1!S71_PYearAmount,Sheet1!S71_SA34Code,$AC:$AC,Sheet1!S71_A5CapexCode,$AD:$AD)","v":0},{"$f":"SUMIFS(Sheet1!S71_OriginalBudAmnt,Sheet1!S71_SA34Code,$AC:$AC,Sheet1!S71_A5CapexCode,$AD:$AD)","v":0},{"$f":"SUMIFS(Sheet1!S71_AdjustmentBudAmnt,Sheet1!S71_SA34Code,$AC:$AC,Sheet1!S71_A5CapexCode,$AD:$AD)","v":0},{"$f":"SUMIFS(Sheet1!S71_AdjustmentBudAmnt,Sheet1!S71_SA34Code,$AC:$AC,Sheet1!S71_A5CapexCode,$AD:$AD)","v":0},{"$f":"SUMIFS(Sheet1!S71_ASBudgetAmount,Sheet1!S71_SA34Code,$AC:$AC,Sheet1!S71_A5CapexCode,$AD:$AD)","v":0},{"$f":"SUMIFS(Sheet1!S71_OY1BudgetAmount,Sheet1!S71_SA34Code,$AC:$AC,Sheet1!S71_A5CapexCode,$AD:$AD)","v":0},{"$f":"SUMIFS(Sheet1!S71_OY2BudgetAmount,Sheet1!S71_SA34Code,$AC:$AC,Sheet1!S71_A5CapexCode,$AD:$AD)","v":0},null,null,null,null,null,null,null,null,null,null,null,null,null,null,null,null,null,"0320","CE"]
["Reservoirs",null,{"$f":"SUMIFS(Sheet1!S71_PPPYearAmount,Sheet1!S71_SA34Code,$AC:$AC,Sheet1!S71_A5CapexCode,$AD:$AD)","v":0},{"$f":"SUMIFS(Sheet1!S71_PPYearAmount,Sheet1!S71_SA34Code,$AC:$AC,Sheet1!S71_A5CapexCode,$AD:$AD)","v":0},{"$f":"SUMIFS(Sheet1!S71_PYearAmount,Sheet1!S71_SA34Code,$AC:$AC,Sheet1!S71_A5CapexCode,$AD:$AD)","v":0},{"$f":"SUMIFS(Sheet1!S71_OriginalBudAmnt,Sheet1!S71_SA34Code,$AC:$AC,Sheet1!S71_A5CapexCode,$AD:$AD)","v":0},{"$f":"SUMIFS(Sheet1!S71_AdjustmentBudAmnt,Sheet1!S71_SA34Code,$AC:$AC,Sheet1!S71_A5CapexCode,$AD:$AD)","v":0},{"$f":"SUMIFS(Sheet1!S71_AdjustmentBudAmnt,Sheet1!S71_SA34Code,$AC:$AC,Sheet1!S71_A5CapexCode,$AD:$AD)","v":0},{"$f":"SUMIFS(Sheet1!S71_ASBudgetAmount,Sheet1!S71_SA34Code,$AC:$AC,Sheet1!S71_A5CapexCode,$AD:$AD)","v":0},{"$f":"SUMIFS(Sheet1!S71_OY1BudgetAmount,Sheet1!S71_SA34Code,$AC:$AC,Sheet1!S71_A5CapexCode,$AD:$AD)","v":0},{"$f":"SUMIFS(Sheet1!S71_OY2BudgetAmount,Sheet1!S71_SA34Code,$AC:$AC,Sheet1!S71_A5CapexCode,$AD:$AD)","v":0},null,null,null,null,null,null,null,null,null,null,null,null,null,null,null,null,null,"0330","CE"]
["Pump Stations",null,{"$f":"SUMIFS(Sheet1!S71_PPPYearAmount,Sheet1!S71_SA34Code,$AC:$AC,Sheet1!S71_A5CapexCode,$AD:$AD)","v":0},{"$f":"SUMIFS(Sheet1!S71_PPYearAmount,Sheet1!S71_SA34Code,$AC:$AC,Sheet1!S71_A5CapexCode,$AD:$AD)","v":0},{"$f":"SUMIFS(Sheet1!S71_PYearAmount,Sheet1!S71_SA34Code,$AC:$AC,Sheet1!S71_A5CapexCode,$AD:$AD)","v":0},{"$f":"SUMIFS(Sheet1!S71_OriginalBudAmnt,Sheet1!S71_SA34Code,$AC:$AC,Sheet1!S71_A5CapexCode,$AD:$AD)","v":0},{"$f":"SUMIFS(Sheet1!S71_AdjustmentBudAmnt,Sheet1!S71_SA34Code,$AC:$AC,Sheet1!S71_A5CapexCode,$AD:$AD)","v":0},{"$f":"SUMIFS(Sheet1!S71_AdjustmentBudAmnt,Sheet1!S71_SA34Code,$AC:$AC,Sheet1!S71_A5CapexCode,$AD:$AD)","v":0},{"$f":"SUMIFS(Sheet1!S71_ASBudgetAmount,Sheet1!S71_SA34Code,$AC:$AC,Sheet1!S71_A5CapexCode,$AD:$AD)","v":0},{"$f":"SUMIFS(Sheet1!S71_OY1BudgetAmount,Sheet1!S71_SA34Code,$AC:$AC,Sheet1!S71_A5CapexCode,$AD:$AD)","v":0},{"$f":"SUMIFS(Sheet1!S71_OY2BudgetAmount,Sheet1!S71_SA34Code,$AC:$AC,Sheet1!S71_A5CapexCode,$AD:$AD)","v":0},null,null,null,null,null,null,null,null,null,null,null,null,null,null,null,null,null,"0340","CE"]
["Water Treatment Works",null,{"$f":"SUMIFS(Sheet1!S71_PPPYearAmount,Sheet1!S71_SA34Code,$AC:$AC,Sheet1!S71_A5CapexCode,$AD:$AD)","v":0},{"$f":"SUMIFS(Sheet1!S71_PPYearAmount,Sheet1!S71_SA34Code,$AC:$AC,Sheet1!S71_A5CapexCode,$AD:$AD)","v":0},{"$f":"SUMIFS(Sheet1!S71_PYearAmount,Sheet1!S71_SA34Code,$AC:$AC,Sheet1!S71_A5CapexCode,$AD:$AD)","v":0},{"$f":"SUMIFS(Sheet1!S71_OriginalBudAmnt,Sheet1!S71_SA34Code,$AC:$AC,Sheet1!S71_A5CapexCode,$AD:$AD)","v":0},{"$f":"SUMIFS(Sheet1!S71_AdjustmentBudAmnt,Sheet1!S71_SA34Code,$AC:$AC,Sheet1!S71_A5CapexCode,$AD:$AD)","v":0},{"$f":"SUMIFS(Sheet1!S71_AdjustmentBudAmnt,Sheet1!S71_SA34Code,$AC:$AC,Sheet1!S71_A5CapexCode,$AD:$AD)","v":0},{"$f":"SUMIFS(Sheet1!S71_ASBudgetAmount,Sheet1!S71_SA34Code,$AC:$AC,Sheet1!S71_A5CapexCode,$AD:$AD)","v":0},{"$f":"SUMIFS(Sheet1!S71_OY1BudgetAmount,Sheet1!S71_SA34Code,$AC:$AC,Sheet1!S71_A5CapexCode,$AD:$AD)","v":0},{"$f":"SUMIFS(Sheet1!S71_OY2BudgetAmount,Sheet1!S71_SA34Code,$AC:$AC,Sheet1!S71_A5CapexCode,$AD:$AD)","v":0},null,null,null,null,null,null,null,null,null,null,null,null,null,null,null,null,null,"0350","CE"]
["Bulk Mains",null,{"$f":"SUMIFS(Sheet1!S71_PPPYearAmount,Sheet1!S71_SA34Code,$AC:$AC,Sheet1!S71_A5CapexCode,$AD:$AD)","v":0},{"$f":"SUMIFS(Sheet1!S71_PPYearAmount,Sheet1!S71_SA34Code,$AC:$AC,Sheet1!S71_A5CapexCode,$AD:$AD)","v":0},{"$f":"SUMIFS(Sheet1!S71_PYearAmount,Sheet1!S71_SA34Code,$AC:$AC,Sheet1!S71_A5CapexCode,$AD:$AD)","v":0},{"$f":"SUMIFS(Sheet1!S71_OriginalBudAmnt,Sheet1!S71_SA34Code,$AC:$AC,Sheet1!S71_A5CapexCode,$AD:$AD)","v":0},{"$f":"SUMIFS(Sheet1!S71_AdjustmentBudAmnt,Sheet1!S71_SA34Code,$AC:$AC,Sheet1!S71_A5CapexCode,$AD:$AD)","v":0},{"$f":"SUMIFS(Sheet1!S71_AdjustmentBudAmnt,Sheet1!S71_SA34Code,$AC:$AC,Sheet1!S71_A5CapexCode,$AD:$AD)","v":0},{"$f":"SUMIFS(Sheet1!S71_ASBudgetAmount,Sheet1!S71_SA34Code,$AC:$AC,Sheet1!S71_A5CapexCode,$AD:$AD)","v":0},{"$f":"SUMIFS(Sheet1!S71_OY1BudgetAmount,Sheet1!S71_SA34Code,$AC:$AC,Sheet1!S71_A5CapexCode,$AD:$AD)","v":0},{"$f":"SUMIFS(Sheet1!S71_OY2BudgetAmount,Sheet1!S71_SA34Code,$AC:$AC,Sheet1!S71_A5CapexCode,$AD:$AD)","v":0},null,null,null,null,null,null,null,null,null,null,null,null,null,null,null,null,null,"0360","CE"]
["Distribution",null,{"$f":"SUMIFS(Sheet1!S71_PPPYearAmount,Sheet1!S71_SA34Code,$AC:$AC,Sheet1!S71_A5CapexCode,$AD:$AD)","v":0},{"$f":"SUMIFS(Sheet1!S71_PPYearAmount,Sheet1!S71_SA34Code,$AC:$AC,Sheet1!S71_A5CapexCode,$AD:$AD)","v":0},{"$f":"SUMIFS(Sheet1!S71_PYearAmount,Sheet1!S71_SA34Code,$AC:$AC,Sheet1!S71_A5CapexCode,$AD:$AD)","v":0},{"$f":"SUMIFS(Sheet1!S71_OriginalBudAmnt,Sheet1!S71_SA34Code,$AC:$AC,Sheet1!S71_A5CapexCode,$AD:$AD)","v":0},{"$f":"SUMIFS(Sheet1!S71_AdjustmentBudAmnt,Sheet1!S71_SA34Code,$AC:$AC,Sheet1!S71_A5CapexCode,$AD:$AD)","v":0},{"$f":"SUMIFS(Sheet1!S71_AdjustmentBudAmnt,Sheet1!S71_SA34Code,$AC:$AC,Sheet1!S71_A5CapexCode,$AD:$AD)","v":0},{"$f":"SUMIFS(Sheet1!S71_ASBudgetAmount,Sheet1!S71_SA34Code,$AC:$AC,Sheet1!S71_A5CapexCode,$AD:$AD)","v":0},{"$f":"SUMIFS(Sheet1!S71_OY1BudgetAmount,Sheet1!S71_SA34Code,$AC:$AC,Sheet1!S71_A5CapexCode,$AD:$AD)","v":0},{"$f":"SUMIFS(Sheet1!S71_OY2BudgetAmount,Sheet1!S71_SA34Code,$AC:$AC,Sheet1!S71_A5CapexCode,$AD:$AD)","v":0},null,null,null,null,null,null,null,null,null,null,null,null,null,null,null,null,null,"0370","CE"]
["Distribution Points",null,{"$f":"SUMIFS(Sheet1!S71_PPPYearAmount,Sheet1!S71_SA34Code,$AC:$AC,Sheet1!S71_A5CapexCode,$AD:$AD)","v":0},{"$f":"SUMIFS(Sheet1!S71_PPYearAmount,Sheet1!S71_SA34Code,$AC:$AC,Sheet1!S71_A5CapexCode,$AD:$AD)","v":0},{"$f":"SUMIFS(Sheet1!S71_PYearAmount,Sheet1!S71_SA34Code,$AC:$AC,Sheet1!S71_A5CapexCode,$AD:$AD)","v":0},{"$f":"SUMIFS(Sheet1!S71_OriginalBudAmnt,Sheet1!S71_SA34Code,$AC:$AC,Sheet1!S71_A5CapexCode,$AD:$AD)","v":0},{"$f":"SUMIFS(Sheet1!S71_AdjustmentBudAmnt,Sheet1!S71_SA34Code,$AC:$AC,Sheet1!S71_A5CapexCode,$AD:$AD)","v":0},{"$f":"SUMIFS(Sheet1!S71_AdjustmentBudAmnt,Sheet1!S71_SA34Code,$AC:$AC,Sheet1!S71_A5CapexCode,$AD:$AD)","v":0},{"$f":"SUMIFS(Sheet1!S71_ASBudgetAmount,Sheet1!S71_SA34Code,$AC:$AC,Sheet1!S71_A5CapexCode,$AD:$AD)","v":0},{"$f":"SUMIFS(Sheet1!S71_OY1BudgetAmount,Sheet1!S71_SA34Code,$AC:$AC,Sheet1!S71_A5CapexCode,$AD:$AD)","v":0},{"$f":"SUMIFS(Sheet1!S71_OY2BudgetAmount,Sheet1!S71_SA34Code,$AC:$AC,Sheet1!S71_A5CapexCode,$AD:$AD)","v":0},null,null,null,null,null,null,null,null,null,null,null,null,null,null,null,null,null,"0380","CE"]
["PRV Stations",null,{"$f":"SUMIFS(Sheet1!S71_PPPYearAmount,Sheet1!S71_SA34Code,$AC:$AC,Sheet1!S71_A5CapexCode,$AD:$AD)","v":0},{"$f":"SUMIFS(Sheet1!S71_PPYearAmount,Sheet1!S71_SA34Code,$AC:$AC,Sheet1!S71_A5CapexCode,$AD:$AD)","v":0},{"$f":"SUMIFS(Sheet1!S71_PYearAmount,Sheet1!S71_SA34Code,$AC:$AC,Sheet1!S71_A5CapexCode,$AD:$AD)","v":0},{"$f":"SUMIFS(Sheet1!S71_OriginalBudAmnt,Sheet1!S71_SA34Code,$AC:$AC,Sheet1!S71_A5CapexCode,$AD:$AD)","v":0},{"$f":"SUMIFS(Sheet1!S71_AdjustmentBudAmnt,Sheet1!S71_SA34Code,$AC:$AC,Sheet1!S71_A5CapexCode,$AD:$AD)","v":0},{"$f":"SUMIFS(Sheet1!S71_AdjustmentBudAmnt,Sheet1!S71_SA34Code,$AC:$AC,Sheet1!S71_A5CapexCode,$AD:$AD)","v":0},{"$f":"SUMIFS(Sheet1!S71_ASBudgetAmount,Sheet1!S71_SA34Code,$AC:$AC,Sheet1!S71_A5CapexCode,$AD:$AD)","v":0},{"$f":"SUMIFS(Sheet1!S71_OY1BudgetAmount,Sheet1!S71_SA34Code,$AC:$AC,Sheet1!S71_A5CapexCode,$AD:$AD)","v":0},{"$f":"SUMIFS(Sheet1!S71_OY2BudgetAmount,Sheet1!S71_SA34Code,$AC:$AC,Sheet1!S71_A5CapexCode,$AD:$AD)","v":0},null,null,null,null,null,null,null,null,null,null,null,null,null,null,null,null,null,"0390","CE"]
["Capital Spares",null,{"$f":"SUMIFS(Sheet1!S71_PPPYearAmount,Sheet1!S71_SA34Code,$AC:$AC,Sheet1!S71_A5CapexCode,$AD:$AD)","v":0},{"$f":"SUMIFS(Sheet1!S71_PPYearAmount,Sheet1!S71_SA34Code,$AC:$AC,Sheet1!S71_A5CapexCode,$AD:$AD)","v":0},{"$f":"SUMIFS(Sheet1!S71_PYearAmount,Sheet1!S71_SA34Code,$AC:$AC,Sheet1!S71_A5CapexCode,$AD:$AD)","v":0},{"$f":"SUMIFS(Sheet1!S71_OriginalBudAmnt,Sheet1!S71_SA34Code,$AC:$AC,Sheet1!S71_A5CapexCode,$AD:$AD)","v":0},{"$f":"SUMIFS(Sheet1!S71_AdjustmentBudAmnt,Sheet1!S71_SA34Code,$AC:$AC,Sheet1!S71_A5CapexCode,$AD:$AD)","v":0},{"$f":"SUMIFS(Sheet1!S71_AdjustmentBudAmnt,Sheet1!S71_SA34Code,$AC:$AC,Sheet1!S71_A5CapexCode,$AD:$AD)","v":0},{"$f":"SUMIFS(Sheet1!S71_ASBudgetAmount,Sheet1!S71_SA34Code,$AC:$AC,Sheet1!S71_A5CapexCode,$AD:$AD)","v":0},{"$f":"SUMIFS(Sheet1!S71_OY1BudgetAmount,Sheet1!S71_SA34Code,$AC:$AC,Sheet1!S71_A5CapexCode,$AD:$AD)","v":0},{"$f":"SUMIFS(Sheet1!S71_OY2BudgetAmount,Sheet1!S71_SA34Code,$AC:$AC,Sheet1!S71_A5CapexCode,$AD:$AD)","v":0},null,null,null,null,null,null,null,null,null,null,null,null,null,null,null,null,null,"0400","CE"]
["Sanitation Infrastructure",null,{"$f":"SUM(C38:C43)","v":0},{"$f":"SUM(D38:D43)","v":0},0,0,0,0,0,0,0,null,null,null,null,null,null,null,null,null,null,null,null,null,null,null,null,null,null,"CE"]
["Pump Station",null,{"$f":"SUMIFS(Sheet1!S71_PPPYearAmount,Sheet1!S71_SA34Code,$AC:$AC,Sheet1!S71_A5CapexCode,$AD:$AD)","v":0},{"$f":"SUMIFS(Sheet1!S71_PPYearAmount,Sheet1!S71_SA34Code,$AC:$AC,Sheet1!S71_A5CapexCode,$AD:$AD)","v":0},{"$f":"SUMIFS(Sheet1!S71_PYearAmount,Sheet1!S71_SA34Code,$AC:$AC,Sheet1!S71_A5CapexCode,$AD:$AD)","v":0},{"$f":"SUMIFS(Sheet1!S71_OriginalBudAmnt,Sheet1!S71_SA34Code,$AC:$AC,Sheet1!S71_A5CapexCode,$AD:$AD)","v":0},{"$f":"SUMIFS(Sheet1!S71_AdjustmentBudAmnt,Sheet1!S71_SA34Code,$AC:$AC,Sheet1!S71_A5CapexCode,$AD:$AD)","v":0},{"$f":"SUMIFS(Sheet1!S71_AdjustmentBudAmnt,Sheet1!S71_SA34Code,$AC:$AC,Sheet1!S71_A5CapexCode,$AD:$AD)","v":0},{"$f":"SUMIFS(Sheet1!S71_ASBudgetAmount,Sheet1!S71_SA34Code,$AC:$AC,Sheet1!S71_A5CapexCode,$AD:$AD)","v":0},{"$f":"SUMIFS(Sheet1!S71_OY1BudgetAmount,Sheet1!S71_SA34Code,$AC:$AC,Sheet1!S71_A5CapexCode,$AD:$AD)","v":0},{"$f":"SUMIFS(Sheet1!S71_OY2BudgetAmount,Sheet1!S71_SA34Code,$AC:$AC,Sheet1!S71_A5CapexCode,$AD:$AD)","v":0},null,null,null,null,null,null,null,null,null,null,null,null,null,null,null,null,null,"0420","CE"]
["Reticulation",null,{"$f":"SUMIFS(Sheet1!S71_PPPYearAmount,Sheet1!S71_SA34Code,$AC:$AC,Sheet1!S71_A5CapexCode,$AD:$AD)","v":0},{"$f":"SUMIFS(Sheet1!S71_PPYearAmount,Sheet1!S71_SA34Code,$AC:$AC,Sheet1!S71_A5CapexCode,$AD:$AD)","v":0},{"$f":"SUMIFS(Sheet1!S71_PYearAmount,Sheet1!S71_SA34Code,$AC:$AC,Sheet1!S71_A5CapexCode,$AD:$AD)","v":0},{"$f":"SUMIFS(Sheet1!S71_OriginalBudAmnt,Sheet1!S71_SA34Code,$AC:$AC,Sheet1!S71_A5CapexCode,$AD:$AD)","v":0},{"$f":"SUMIFS(Sheet1!S71_AdjustmentBudAmnt,Sheet1!S71_SA34Code,$AC:$AC,Sheet1!S71_A5CapexCode,$AD:$AD)","v":0},{"$f":"SUMIFS(Sheet1!S71_AdjustmentBudAmnt,Sheet1!S71_SA34Code,$AC:$AC,Sheet1!S71_A5CapexCode,$AD:$AD)","v":0},{"$f":"SUMIFS(Sheet1!S71_ASBudgetAmount,Sheet1!S71_SA34Code,$AC:$AC,Sheet1!S71_A5CapexCode,$AD:$AD)","v":0},{"$f":"SUMIFS(Sheet1!S71_OY1BudgetAmount,Sheet1!S71_SA34Code,$AC:$AC,Sheet1!S71_A5CapexCode,$AD:$AD)","v":0},{"$f":"SUMIFS(Sheet1!S71_OY2BudgetAmount,Sheet1!S71_SA34Code,$AC:$AC,Sheet1!S71_A5CapexCode,$AD:$AD)","v":0},null,null,null,null,null,null,null,null,null,null,null,null,null,null,null,null,null,"0430","CE"]
["Waste Water Treatment Works",null,{"$f":"SUMIFS(Sheet1!S71_PPPYearAmount,Sheet1!S71_SA34Code,$AC:$AC,Sheet1!S71_A5CapexCode,$AD:$AD)","v":0},{"$f":"SUMIFS(Sheet1!S71_PPYearAmount,Sheet1!S71_SA34Code,$AC:$AC,Sheet1!S71_A5CapexCode,$AD:$AD)","v":0},{"$f":"SUMIFS(Sheet1!S71_PYearAmount,Sheet1!S71_SA34Code,$AC:$AC,Sheet1!S71_A5CapexCode,$AD:$AD)","v":0},{"$f":"SUMIFS(Sheet1!S71_OriginalBudAmnt,Sheet1!S71_SA34Code,$AC:$AC,Sheet1!S71_A5CapexCode,$AD:$AD)","v":0},{"$f":"SUMIFS(Sheet1!S71_AdjustmentBudAmnt,Sheet1!S71_SA34Code,$AC:$AC,Sheet1!S71_A5CapexCode,$AD:$AD)","v":0},{"$f":"SUMIFS(Sheet1!S71_AdjustmentBudAmnt,Sheet1!S71_SA34Code,$AC:$AC,Sheet1!S71_A5CapexCode,$AD:$AD)","v":0},{"$f":"SUMIFS(Sheet1!S71_ASBudgetAmount,Sheet1!S71_SA34Code,$AC:$AC,Sheet1!S71_A5CapexCode,$AD:$AD)","v":0},{"$f":"SUMIFS(Sheet1!S71_OY1BudgetAmount,Sheet1!S71_SA34Code,$AC:$AC,Sheet1!S71_A5CapexCode,$AD:$AD)","v":0},{"$f":"SUMIFS(Sheet1!S71_OY2BudgetAmount,Sheet1!S71_SA34Code,$AC:$AC,Sheet1!S71_A5CapexCode,$AD:$AD)","v":0},null,null,null,null,null,null,null,null,null,null,null,null,null,null,null,null,null,"0440","CE"]
["Outfall Sewers",null,{"$f":"SUMIFS(Sheet1!S71_PPPYearAmount,Sheet1!S71_SA34Code,$AC:$AC,Sheet1!S71_A5CapexCode,$AD:$AD)","v":0},{"$f":"SUMIFS(Sheet1!S71_PPYearAmount,Sheet1!S71_SA34Code,$AC:$AC,Sheet1!S71_A5CapexCode,$AD:$AD)","v":0},{"$f":"SUMIFS(Sheet1!S71_PYearAmount,Sheet1!S71_SA34Code,$AC:$AC,Sheet1!S71_A5CapexCode,$AD:$AD)","v":0},{"$f":"SUMIFS(Sheet1!S71_OriginalBudAmnt,Sheet1!S71_SA34Code,$AC:$AC,Sheet1!S71_A5CapexCode,$AD:$AD)","v":0},{"$f":"SUMIFS(Sheet1!S71_AdjustmentBudAmnt,Sheet1!S71_SA34Code,$AC:$AC,Sheet1!S71_A5CapexCode,$AD:$AD)","v":0},{"$f":"SUMIFS(Sheet1!S71_AdjustmentBudAmnt,Sheet1!S71_SA34Code,$AC:$AC,Sheet1!S71_A5CapexCode,$AD:$AD)","v":0},{"$f":"SUMIFS(Sheet1!S71_ASBudgetAmount,Sheet1!S71_SA34Code,$AC:$AC,Sheet1!S71_A5CapexCode,$AD:$AD)","v":0},{"$f":"SUMIFS(Sheet1!S71_OY1BudgetAmount,Sheet1!S71_SA34Code,$AC:$AC,Sheet1!S71_A5CapexCode,$AD:$AD)","v":0},{"$f":"SUMIFS(Sheet1!S71_OY2BudgetAmount,Sheet1!S71_SA34Code,$AC:$AC,Sheet1!S71_A5CapexCode,$AD:$AD)","v":0},null,null,null,null,null,null,null,null,null,null,null,null,null,null,null,null,null,"0450","CE"]
["Toilet Facilities",null,{"$f":"SUMIFS(Sheet1!S71_PPPYearAmount,Sheet1!S71_SA34Code,$AC:$AC,Sheet1!S71_A5CapexCode,$AD:$AD)","v":0},{"$f":"SUMIFS(Sheet1!S71_PPYearAmount,Sheet1!S71_SA34Code,$AC:$AC,Sheet1!S71_A5CapexCode,$AD:$AD)","v":0},{"$f":"SUMIFS(Sheet1!S71_PYearAmount,Sheet1!S71_SA34Code,$AC:$AC,Sheet1!S71_A5CapexCode,$AD:$AD)","v":0},{"$f":"SUMIFS(Sheet1!S71_OriginalBudAmnt,Sheet1!S71_SA34Code,$AC:$AC,Sheet1!S71_A5CapexCode,$AD:$AD)","v":0},{"$f":"SUMIFS(Sheet1!S71_AdjustmentBudAmnt,Sheet1!S71_SA34Code,$AC:$AC,Sheet1!S71_A5CapexCode,$AD:$AD)","v":0},{"$f":"SUMIFS(Sheet1!S71_AdjustmentBudAmnt,Sheet1!S71_SA34Code,$AC:$AC,Sheet1!S71_A5CapexCode,$AD:$AD)","v":0},{"$f":"SUMIFS(Sheet1!S71_ASBudgetAmount,Sheet1!S71_SA34Code,$AC:$AC,Sheet1!S71_A5CapexCode,$AD:$AD)","v":0},{"$f":"SUMIFS(Sheet1!S71_OY1BudgetAmount,Sheet1!S71_SA34Code,$AC:$AC,Sheet1!S71_A5CapexCode,$AD:$AD)","v":0},{"$f":"SUMIFS(Sheet1!S71_OY2BudgetAmount,Sheet1!S71_SA34Code,$AC:$AC,Sheet1!S71_A5CapexCode,$AD:$AD)","v":0},null,null,null,null,null,null,null,null,null,null,null,null,null,null,null,null,null,"0460","CE"]
["Capital Spares",null,{"$f":"SUMIFS(Sheet1!S71_PPPYearAmount,Sheet1!S71_SA34Code,$AC:$AC,Sheet1!S71_A5CapexCode,$AD:$AD)","v":0},{"$f":"SUMIFS(Sheet1!S71_PPYearAmount,Sheet1!S71_SA34Code,$AC:$AC,Sheet1!S71_A5CapexCode,$AD:$AD)","v":0},{"$f":"SUMIFS(Sheet1!S71_PYearAmount,Sheet1!S71_SA34Code,$AC:$AC,Sheet1!S71_A5CapexCode,$AD:$AD)","v":0},{"$f":"SUMIFS(Sheet1!S71_OriginalBudAmnt,Sheet1!S71_SA34Code,$AC:$AC,Sheet1!S71_A5CapexCode,$AD:$AD)","v":0},{"$f":"SUMIFS(Sheet1!S71_AdjustmentBudAmnt,Sheet1!S71_SA34Code,$AC:$AC,Sheet1!S71_A5CapexCode,$AD:$AD)","v":0},{"$f":"SUMIFS(Sheet1!S71_AdjustmentBudAmnt,Sheet1!S71_SA34Code,$AC:$AC,Sheet1!S71_A5CapexCode,$AD:$AD)","v":0},{"$f":"SUMIFS(Sheet1!S71_ASBudgetAmount,Sheet1!S71_SA34Code,$AC:$AC,Sheet1!S71_A5CapexCode,$AD:$AD)","v":0},{"$f":"SUMIFS(Sheet1!S71_OY1BudgetAmount,Sheet1!S71_SA34Code,$AC:$AC,Sheet1!S71_A5CapexCode,$AD:$AD)","v":0},{"$f":"SUMIFS(Sheet1!S71_OY2BudgetAmount,Sheet1!S71_SA34Code,$AC:$AC,Sheet1!S71_A5CapexCode,$AD:$AD)","v":0},null,null,null,null,null,null,null,null,null,null,null,null,null,null,null,null,null,"0470","CE"]
["Solid Waste Infrastructure",null,{"$f":"SUM(C45:C51)","v":0},{"$f":"SUM(D45:D51)","v":0},0,0,0,0,0,0,0,null,null,null,null,null,null,null,null,null,null,null,null,null,null,null,null,null,null,"CE"]
["Landfill Sites",null,{"$f":"SUMIFS(Sheet1!S71_PPPYearAmount,Sheet1!S71_SA34Code,$AC:$AC,Sheet1!S71_A5CapexCode,$AD:$AD)","v":0},{"$f":"SUMIFS(Sheet1!S71_PPYearAmount,Sheet1!S71_SA34Code,$AC:$AC,Sheet1!S71_A5CapexCode,$AD:$AD)","v":0},{"$f":"SUMIFS(Sheet1!S71_PYearAmount,Sheet1!S71_SA34Code,$AC:$AC,Sheet1!S71_A5CapexCode,$AD:$AD)","v":0},{"$f":"SUMIFS(Sheet1!S71_OriginalBudAmnt,Sheet1!S71_SA34Code,$AC:$AC,Sheet1!S71_A5CapexCode,$AD:$AD)","v":0},{"$f":"SUMIFS(Sheet1!S71_AdjustmentBudAmnt,Sheet1!S71_SA34Code,$AC:$AC,Sheet1!S71_A5CapexCode,$AD:$AD)","v":0},{"$f":"SUMIFS(Sheet1!S71_AdjustmentBudAmnt,Sheet1!S71_SA34Code,$AC:$AC,Sheet1!S71_A5CapexCode,$AD:$AD)","v":0},{"$f":"SUMIFS(Sheet1!S71_ASBudgetAmount,Sheet1!S71_SA34Code,$AC:$AC,Sheet1!S71_A5CapexCode,$AD:$AD)","v":0},{"$f":"SUMIFS(Sheet1!S71_OY1BudgetAmount,Sheet1!S71_SA34Code,$AC:$AC,Sheet1!S71_A5CapexCode,$AD:$AD)","v":0},{"$f":"SUMIFS(Sheet1!S71_OY2BudgetAmount,Sheet1!S71_SA34Code,$AC:$AC,Sheet1!S71_A5CapexCode,$AD:$AD)","v":0},null,null,null,null,null,null,null,null,null,null,null,null,null,null,null,null,null,"0490","CE"]
["Waste Transfer Stations",null,{"$f":"SUMIFS(Sheet1!S71_PPPYearAmount,Sheet1!S71_SA34Code,$AC:$AC,Sheet1!S71_A5CapexCode,$AD:$AD)","v":0},{"$f":"SUMIFS(Sheet1!S71_PPYearAmount,Sheet1!S71_SA34Code,$AC:$AC,Sheet1!S71_A5CapexCode,$AD:$AD)","v":0},{"$f":"SUMIFS(Sheet1!S71_PYearAmount,Sheet1!S71_SA34Code,$AC:$AC,Sheet1!S71_A5CapexCode,$AD:$AD)","v":0},{"$f":"SUMIFS(Sheet1!S71_OriginalBudAmnt,Sheet1!S71_SA34Code,$AC:$AC,Sheet1!S71_A5CapexCode,$AD:$AD)","v":0},{"$f":"SUMIFS(Sheet1!S71_AdjustmentBudAmnt,Sheet1!S71_SA34Code,$AC:$AC,Sheet1!S71_A5CapexCode,$AD:$AD)","v":0},{"$f":"SUMIFS(Sheet1!S71_AdjustmentBudAmnt,Sheet1!S71_SA34Code,$AC:$AC,Sheet1!S71_A5CapexCode,$AD:$AD)","v":0},{"$f":"SUMIFS(Sheet1!S71_ASBudgetAmount,Sheet1!S71_SA34Code,$AC:$AC,Sheet1!S71_A5CapexCode,$AD:$AD)","v":0},{"$f":"SUMIFS(Sheet1!S71_OY1BudgetAmount,Sheet1!S71_SA34Code,$AC:$AC,Sheet1!S71_A5CapexCode,$AD:$AD)","v":0},{"$f":"SUMIFS(Sheet1!S71_OY2BudgetAmount,Sheet1!S71_SA34Code,$AC:$AC,Sheet1!S71_A5CapexCode,$AD:$AD)","v":0},null,null,null,null,null,null,null,null,null,null,null,null,null,null,null,null,null,"0500","CE"]
["Waste Processing Facilities",null,{"$f":"SUMIFS(Sheet1!S71_PPPYearAmount,Sheet1!S71_SA34Code,$AC:$AC,Sheet1!S71_A5CapexCode,$AD:$AD)","v":0},{"$f":"SUMIFS(Sheet1!S71_PPYearAmount,Sheet1!S71_SA34Code,$AC:$AC,Sheet1!S71_A5CapexCode,$AD:$AD)","v":0},{"$f":"SUMIFS(Sheet1!S71_PYearAmount,Sheet1!S71_SA34Code,$AC:$AC,Sheet1!S71_A5CapexCode,$AD:$AD)","v":0},{"$f":"SUMIFS(Sheet1!S71_OriginalBudAmnt,Sheet1!S71_SA34Code,$AC:$AC,Sheet1!S71_A5CapexCode,$AD:$AD)","v":0},{"$f":"SUMIFS(Sheet1!S71_AdjustmentBudAmnt,Sheet1!S71_SA34Code,$AC:$AC,Sheet1!S71_A5CapexCode,$AD:$AD)","v":0},{"$f":"SUMIFS(Sheet1!S71_AdjustmentBudAmnt,Sheet1!S71_SA34Code,$AC:$AC,Sheet1!S71_A5CapexCode,$AD:$AD)","v":0},{"$f":"SUMIFS(Sheet1!S71_ASBudgetAmount,Sheet1!S71_SA34Code,$AC:$AC,Sheet1!S71_A5CapexCode,$AD:$AD)","v":0},{"$f":"SUMIFS(Sheet1!S71_OY1BudgetAmount,Sheet1!S71_SA34Code,$AC:$AC,Sheet1!S71_A5CapexCode,$AD:$AD)","v":0},{"$f":"SUMIFS(Sheet1!S71_OY2BudgetAmount,Sheet1!S71_SA34Code,$AC:$AC,Sheet1!S71_A5CapexCode,$AD:$AD)","v":0},null,null,null,null,null,null,null,null,null,null,null,null,null,null,null,null,null,"0510","CE"]
["Waste Drop-off Points",null,{"$f":"SUMIFS(Sheet1!S71_PPPYearAmount,Sheet1!S71_SA34Code,$AC:$AC,Sheet1!S71_A5CapexCode,$AD:$AD)","v":0},{"$f":"SUMIFS(Sheet1!S71_PPYearAmount,Sheet1!S71_SA34Code,$AC:$AC,Sheet1!S71_A5CapexCode,$AD:$AD)","v":0},{"$f":"SUMIFS(Sheet1!S71_PYearAmount,Sheet1!S71_SA34Code,$AC:$AC,Sheet1!S71_A5CapexCode,$AD:$AD)","v":0},{"$f":"SUMIFS(Sheet1!S71_OriginalBudAmnt,Sheet1!S71_SA34Code,$AC:$AC,Sheet1!S71_A5CapexCode,$AD:$AD)","v":0},{"$f":"SUMIFS(Sheet1!S71_AdjustmentBudAmnt,Sheet1!S71_SA34Code,$AC:$AC,Sheet1!S71_A5CapexCode,$AD:$AD)","v":0},{"$f":"SUMIFS(Sheet1!S71_AdjustmentBudAmnt,Sheet1!S71_SA34Code,$AC:$AC,Sheet1!S71_A5CapexCode,$AD:$AD)","v":0},{"$f":"SUMIFS(Sheet1!S71_ASBudgetAmount,Sheet1!S71_SA34Code,$AC:$AC,Sheet1!S71_A5CapexCode,$AD:$AD)","v":0},{"$f":"SUMIFS(Sheet1!S71_OY1BudgetAmount,Sheet1!S71_SA34Code,$AC:$AC,Sheet1!S71_A5CapexCode,$AD:$AD)","v":0},{"$f":"SUMIFS(Sheet1!S71_OY2BudgetAmount,Sheet1!S71_SA34Code,$AC:$AC,Sheet1!S71_A5CapexCode,$AD:$AD)","v":0},null,null,null,null,null,null,null,null,null,null,null,null,null,null,null,null,null,"0520","CE"]
["Waste Separation Facilities",null,{"$f":"SUMIFS(Sheet1!S71_PPPYearAmount,Sheet1!S71_SA34Code,$AC:$AC,Sheet1!S71_A5CapexCode,$AD:$AD)","v":0},{"$f":"SUMIFS(Sheet1!S71_PPYearAmount,Sheet1!S71_SA34Code,$AC:$AC,Sheet1!S71_A5CapexCode,$AD:$AD)","v":0},{"$f":"SUMIFS(Sheet1!S71_PYearAmount,Sheet1!S71_SA34Code,$AC:$AC,Sheet1!S71_A5CapexCode,$AD:$AD)","v":0},{"$f":"SUMIFS(Sheet1!S71_OriginalBudAmnt,Sheet1!S71_SA34Code,$AC:$AC,Sheet1!S71_A5CapexCode,$AD:$AD)","v":0},{"$f":"SUMIFS(Sheet1!S71_AdjustmentBudAmnt,Sheet1!S71_SA34Code,$AC:$AC,Sheet1!S71_A5CapexCode,$AD:$AD)","v":0},{"$f":"SUMIFS(Sheet1!S71_AdjustmentBudAmnt,Sheet1!S71_SA34Code,$AC:$AC,Sheet1!S71_A5CapexCode,$AD:$AD)","v":0},{"$f":"SUMIFS(Sheet1!S71_ASBudgetAmount,Sheet1!S71_SA34Code,$AC:$AC,Sheet1!S71_A5CapexCode,$AD:$AD)","v":0},{"$f":"SUMIFS(Sheet1!S71_OY1BudgetAmount,Sheet1!S71_SA34Code,$AC:$AC,Sheet1!S71_A5CapexCode,$AD:$AD)","v":0},{"$f":"SUMIFS(Sheet1!S71_OY2BudgetAmount,Sheet1!S71_SA34Code,$AC:$AC,Sheet1!S71_A5CapexCode,$AD:$AD)","v":0},null,null,null,null,null,null,null,null,null,null,null,null,null,null,null,null,null,"0530","CE"]
["Electricity Generation Facilities",null,{"$f":"SUMIFS(Sheet1!S71_PPPYearAmount,Sheet1!S71_SA34Code,$AC:$AC,Sheet1!S71_A5CapexCode,$AD:$AD)","v":0},{"$f":"SUMIFS(Sheet1!S71_PPYearAmount,Sheet1!S71_SA34Code,$AC:$AC,Sheet1!S71_A5CapexCode,$AD:$AD)","v":0},{"$f":"SUMIFS(Sheet1!S71_PYearAmount,Sheet1!S71_SA34Code,$AC:$AC,Sheet1!S71_A5CapexCode,$AD:$AD)","v":0},{"$f":"SUMIFS(Sheet1!S71_OriginalBudAmnt,Sheet1!S71_SA34Code,$AC:$AC,Sheet1!S71_A5CapexCode,$AD:$AD)","v":0},{"$f":"SUMIFS(Sheet1!S71_AdjustmentBudAmnt,Sheet1!S71_SA34Code,$AC:$AC,Sheet1!S71_A5CapexCode,$AD:$AD)","v":0},{"$f":"SUMIFS(Sheet1!S71_AdjustmentBudAmnt,Sheet1!S71_SA34Code,$AC:$AC,Sheet1!S71_A5CapexCode,$AD:$AD)","v":0},{"$f":"SUMIFS(Sheet1!S71_ASBudgetAmount,Sheet1!S71_SA34Code,$AC:$AC,Sheet1!S71_A5CapexCode,$AD:$AD)","v":0},{"$f":"SUMIFS(Sheet1!S71_OY1BudgetAmount,Sheet1!S71_SA34Code,$AC:$AC,Sheet1!S71_A5CapexCode,$AD:$AD)","v":0},{"$f":"SUMIFS(Sheet1!S71_OY2BudgetAmount,Sheet1!S71_SA34Code,$AC:$AC,Sheet1!S71_A5CapexCode,$AD:$AD)","v":0},null,null,null,null,null,null,null,null,null,null,null,null,null,null,null,null,null,"0540","CE"]
["Capital Spares",null,{"$f":"SUMIFS(Sheet1!S71_PPPYearAmount,Sheet1!S71_SA34Code,$AC:$AC,Sheet1!S71_A5CapexCode,$AD:$AD)","v":0},{"$f":"SUMIFS(Sheet1!S71_PPYearAmount,Sheet1!S71_SA34Code,$AC:$AC,Sheet1!S71_A5CapexCode,$AD:$AD)","v":0},{"$f":"SUMIFS(Sheet1!S71_PYearAmount,Sheet1!S71_SA34Code,$AC:$AC,Sheet1!S71_A5CapexCode,$AD:$AD)","v":0},{"$f":"SUMIFS(Sheet1!S71_OriginalBudAmnt,Sheet1!S71_SA34Code,$AC:$AC,Sheet1!S71_A5CapexCode,$AD:$AD)","v":0},{"$f":"SUMIFS(Sheet1!S71_AdjustmentBudAmnt,Sheet1!S71_SA34Code,$AC:$AC,Sheet1!S71_A5CapexCode,$AD:$AD)","v":0},{"$f":"SUMIFS(Sheet1!S71_AdjustmentBudAmnt,Sheet1!S71_SA34Code,$AC:$AC,Sheet1!S71_A5CapexCode,$AD:$AD)","v":0},{"$f":"SUMIFS(Sheet1!S71_ASBudgetAmount,Sheet1!S71_SA34Code,$AC:$AC,Sheet1!S71_A5CapexCode,$AD:$AD)","v":0},{"$f":"SUMIFS(Sheet1!S71_OY1BudgetAmount,Sheet1!S71_SA34Code,$AC:$AC,Sheet1!S71_A5CapexCode,$AD:$AD)","v":0},{"$f":"SUMIFS(Sheet1!S71_OY2BudgetAmount,Sheet1!S71_SA34Code,$AC:$AC,Sheet1!S71_A5CapexCode,$AD:$AD)","v":0},null,null,null,null,null,null,null,null,null,null,null,null,null,null,null,null,null,"0550","CE"]
["Rail Infrastructure",null,{"$f":"SUM(C53:C61)","v":0},0,0,0,0,0,0,0,0,null,null,null,null,null,null,null,null,null,null,null,null,null,null,null,null,null,null,"CE"]
["Rail Lines",null,{"$f":"SUMIFS(Sheet1!S71_PPPYearAmount,Sheet1!S71_SA34Code,$AC:$AC,Sheet1!S71_A5CapexCode,$AD:$AD)","v":0},{"$f":"SUMIFS(Sheet1!S71_PPYearAmount,Sheet1!S71_SA34Code,$AC:$AC,Sheet1!S71_A5CapexCode,$AD:$AD)","v":0},{"$f":"SUMIFS(Sheet1!S71_PYearAmount,Sheet1!S71_SA34Code,$AC:$AC,Sheet1!S71_A5CapexCode,$AD:$AD)","v":0},{"$f":"SUMIFS(Sheet1!S71_OriginalBudAmnt,Sheet1!S71_SA34Code,$AC:$AC,Sheet1!S71_A5CapexCode,$AD:$AD)","v":0},{"$f":"SUMIFS(Sheet1!S71_AdjustmentBudAmnt,Sheet1!S71_SA34Code,$AC:$AC,Sheet1!S71_A5CapexCode,$AD:$AD)","v":0},{"$f":"SUMIFS(Sheet1!S71_AdjustmentBudAmnt,Sheet1!S71_SA34Code,$AC:$AC,Sheet1!S71_A5CapexCode,$AD:$AD)","v":0},{"$f":"SUMIFS(Sheet1!S71_ASBudgetAmount,Sheet1!S71_SA34Code,$AC:$AC,Sheet1!S71_A5CapexCode,$AD:$AD)","v":0},{"$f":"SUMIFS(Sheet1!S71_OY1BudgetAmount,Sheet1!S71_SA34Code,$AC:$AC,Sheet1!S71_A5CapexCode,$AD:$AD)","v":0},{"$f":"SUMIFS(Sheet1!S71_OY2BudgetAmount,Sheet1!S71_SA34Code,$AC:$AC,Sheet1!S71_A5CapexCode,$AD:$AD)","v":0},null,null,null,null,null,null,null,null,null,null,null,null,null,null,null,null,null,"0570","CE"]
["Rail Structures",null,{"$f":"SUMIFS(Sheet1!S71_PPPYearAmount,Sheet1!S71_SA34Code,$AC:$AC,Sheet1!S71_A5CapexCode,$AD:$AD)","v":0},{"$f":"SUMIFS(Sheet1!S71_PPYearAmount,Sheet1!S71_SA34Code,$AC:$AC,Sheet1!S71_A5CapexCode,$AD:$AD)","v":0},{"$f":"SUMIFS(Sheet1!S71_PYearAmount,Sheet1!S71_SA34Code,$AC:$AC,Sheet1!S71_A5CapexCode,$AD:$AD)","v":0},{"$f":"SUMIFS(Sheet1!S71_OriginalBudAmnt,Sheet1!S71_SA34Code,$AC:$AC,Sheet1!S71_A5CapexCode,$AD:$AD)","v":0},{"$f":"SUMIFS(Sheet1!S71_AdjustmentBudAmnt,Sheet1!S71_SA34Code,$AC:$AC,Sheet1!S71_A5CapexCode,$AD:$AD)","v":0},{"$f":"SUMIFS(Sheet1!S71_AdjustmentBudAmnt,Sheet1!S71_SA34Code,$AC:$AC,Sheet1!S71_A5CapexCode,$AD:$AD)","v":0},{"$f":"SUMIFS(Sheet1!S71_ASBudgetAmount,Sheet1!S71_SA34Code,$AC:$AC,Sheet1!S71_A5CapexCode,$AD:$AD)","v":0},{"$f":"SUMIFS(Sheet1!S71_OY1BudgetAmount,Sheet1!S71_SA34Code,$AC:$AC,Sheet1!S71_A5CapexCode,$AD:$AD)","v":0},{"$f":"SUMIFS(Sheet1!S71_OY2BudgetAmount,Sheet1!S71_SA34Code,$AC:$AC,Sheet1!S71_A5CapexCode,$AD:$AD)","v":0},null,null,null,null,null,null,null,null,null,null,null,null,null,null,null,null,null,"0580","CE"]
["Rail Furniture",null,{"$f":"SUMIFS(Sheet1!S71_PPPYearAmount,Sheet1!S71_SA34Code,$AC:$AC,Sheet1!S71_A5CapexCode,$AD:$AD)","v":0},{"$f":"SUMIFS(Sheet1!S71_PPYearAmount,Sheet1!S71_SA34Code,$AC:$AC,Sheet1!S71_A5CapexCode,$AD:$AD)","v":0},{"$f":"SUMIFS(Sheet1!S71_PYearAmount,Sheet1!S71_SA34Code,$AC:$AC,Sheet1!S71_A5CapexCode,$AD:$AD)","v":0},{"$f":"SUMIFS(Sheet1!S71_OriginalBudAmnt,Sheet1!S71_SA34Code,$AC:$AC,Sheet1!S71_A5CapexCode,$AD:$AD)","v":0},{"$f":"SUMIFS(Sheet1!S71_AdjustmentBudAmnt,Sheet1!S71_SA34Code,$AC:$AC,Sheet1!S71_A5CapexCode,$AD:$AD)","v":0},{"$f":"SUMIFS(Sheet1!S71_AdjustmentBudAmnt,Sheet1!S71_SA34Code,$AC:$AC,Sheet1!S71_A5CapexCode,$AD:$AD)","v":0},{"$f":"SUMIFS(Sheet1!S71_ASBudgetAmount,Sheet1!S71_SA34Code,$AC:$AC,Sheet1!S71_A5CapexCode,$AD:$AD)","v":0},{"$f":"SUMIFS(Sheet1!S71_OY1BudgetAmount,Sheet1!S71_SA34Code,$AC:$AC,Sheet1!S71_A5CapexCode,$AD:$AD)","v":0},{"$f":"SUMIFS(Sheet1!S71_OY2BudgetAmount,Sheet1!S71_SA34Code,$AC:$AC,Sheet1!S71_A5CapexCode,$AD:$AD)","v":0},null,null,null,null,null,null,null,null,null,null,null,null,null,null,null,null,null,"0590","CE"]
["Drainage Collection",null,{"$f":"SUMIFS(Sheet1!S71_PPPYearAmount,Sheet1!S71_SA34Code,$AC:$AC,Sheet1!S71_A5CapexCode,$AD:$AD)","v":0},{"$f":"SUMIFS(Sheet1!S71_PPYearAmount,Sheet1!S71_SA34Code,$AC:$AC,Sheet1!S71_A5CapexCode,$AD:$AD)","v":0},{"$f":"SUMIFS(Sheet1!S71_PYearAmount,Sheet1!S71_SA34Code,$AC:$AC,Sheet1!S71_A5CapexCode,$AD:$AD)","v":0},{"$f":"SUMIFS(Sheet1!S71_OriginalBudAmnt,Sheet1!S71_SA34Code,$AC:$AC,Sheet1!S71_A5CapexCode,$AD:$AD)","v":0},{"$f":"SUMIFS(Sheet1!S71_AdjustmentBudAmnt,Sheet1!S71_SA34Code,$AC:$AC,Sheet1!S71_A5CapexCode,$AD:$AD)","v":0},{"$f":"SUMIFS(Sheet1!S71_AdjustmentBudAmnt,Sheet1!S71_SA34Code,$AC:$AC,Sheet1!S71_A5CapexCode,$AD:$AD)","v":0},{"$f":"SUMIFS(Sheet1!S71_ASBudgetAmount,Sheet1!S71_SA34Code,$AC:$AC,Sheet1!S71_A5CapexCode,$AD:$AD)","v":0},{"$f":"SUMIFS(Sheet1!S71_OY1BudgetAmount,Sheet1!S71_SA34Code,$AC:$AC,Sheet1!S71_A5CapexCode,$AD:$AD)","v":0},{"$f":"SUMIFS(Sheet1!S71_OY2BudgetAmount,Sheet1!S71_SA34Code,$AC:$AC,Sheet1!S71_A5CapexCode,$AD:$AD)","v":0},null,null,null,null,null,null,null,null,null,null,null,null,null,null,null,null,null,"0600","CE"]
["Storm water Conveyance",null,{"$f":"SUMIFS(Sheet1!S71_PPPYearAmount,Sheet1!S71_SA34Code,$AC:$AC,Sheet1!S71_A5CapexCode,$AD:$AD)","v":0},{"$f":"SUMIFS(Sheet1!S71_PPYearAmount,Sheet1!S71_SA34Code,$AC:$AC,Sheet1!S71_A5CapexCode,$AD:$AD)","v":0},{"$f":"SUMIFS(Sheet1!S71_PYearAmount,Sheet1!S71_SA34Code,$AC:$AC,Sheet1!S71_A5CapexCode,$AD:$AD)","v":0},{"$f":"SUMIFS(Sheet1!S71_OriginalBudAmnt,Sheet1!S71_SA34Code,$AC:$AC,Sheet1!S71_A5CapexCode,$AD:$AD)","v":0},{"$f":"SUMIFS(Sheet1!S71_AdjustmentBudAmnt,Sheet1!S71_SA34Code,$AC:$AC,Sheet1!S71_A5CapexCode,$AD:$AD)","v":0},{"$f":"SUMIFS(Sheet1!S71_AdjustmentBudAmnt,Sheet1!S71_SA34Code,$AC:$AC,Sheet1!S71_A5CapexCode,$AD:$AD)","v":0},{"$f":"SUMIFS(Sheet1!S71_ASBudgetAmount,Sheet1!S71_SA34Code,$AC:$AC,Sheet1!S71_A5CapexCode,$AD:$AD)","v":0},{"$f":"SUMIFS(Sheet1!S71_OY1BudgetAmount,Sheet1!S71_SA34Code,$AC:$AC,Sheet1!S71_A5CapexCode,$AD:$AD)","v":0},{"$f":"SUMIFS(Sheet1!S71_OY2BudgetAmount,Sheet1!S71_SA34Code,$AC:$AC,Sheet1!S71_A5CapexCode,$AD:$AD)","v":0},null,null,null,null,null,null,null,null,null,null,null,null,null,null,null,null,null,"0610","CE"]
["Attenuation",null,{"$f":"SUMIFS(Sheet1!S71_PPPYearAmount,Sheet1!S71_SA34Code,$AC:$AC,Sheet1!S71_A5CapexCode,$AD:$AD)","v":0},{"$f":"SUMIFS(Sheet1!S71_PPYearAmount,Sheet1!S71_SA34Code,$AC:$AC,Sheet1!S71_A5CapexCode,$AD:$AD)","v":0},{"$f":"SUMIFS(Sheet1!S71_PYearAmount,Sheet1!S71_SA34Code,$AC:$AC,Sheet1!S71_A5CapexCode,$AD:$AD)","v":0},{"$f":"SUMIFS(Sheet1!S71_OriginalBudAmnt,Sheet1!S71_SA34Code,$AC:$AC,Sheet1!S71_A5CapexCode,$AD:$AD)","v":0},{"$f":"SUMIFS(Sheet1!S71_AdjustmentBudAmnt,Sheet1!S71_SA34Code,$AC:$AC,Sheet1!S71_A5CapexCode,$AD:$AD)","v":0},{"$f":"SUMIFS(Sheet1!S71_AdjustmentBudAmnt,Sheet1!S71_SA34Code,$AC:$AC,Sheet1!S71_A5CapexCode,$AD:$AD)","v":0},{"$f":"SUMIFS(Sheet1!S71_ASBudgetAmount,Sheet1!S71_SA34Code,$AC:$AC,Sheet1!S71_A5CapexCode,$AD:$AD)","v":0},{"$f":"SUMIFS(Sheet1!S71_OY1BudgetAmount,Sheet1!S71_SA34Code,$AC:$AC,Sheet1!S71_A5CapexCode,$AD:$AD)","v":0},{"$f":"SUMIFS(Sheet1!S71_OY2BudgetAmount,Sheet1!S71_SA34Code,$AC:$AC,Sheet1!S71_A5CapexCode,$AD:$AD)","v":0},null,null,null,null,null,null,null,null,null,null,null,null,null,null,null,null,null,"0620","CE"]
["MV Substations",null,{"$f":"SUMIFS(Sheet1!S71_PPPYearAmount,Sheet1!S71_SA34Code,$AC:$AC,Sheet1!S71_A5CapexCode,$AD:$AD)","v":0},{"$f":"SUMIFS(Sheet1!S71_PPYearAmount,Sheet1!S71_SA34Code,$AC:$AC,Sheet1!S71_A5CapexCode,$AD:$AD)","v":0},{"$f":"SUMIFS(Sheet1!S71_PYearAmount,Sheet1!S71_SA34Code,$AC:$AC,Sheet1!S71_A5CapexCode,$AD:$AD)","v":0},{"$f":"SUMIFS(Sheet1!S71_OriginalBudAmnt,Sheet1!S71_SA34Code,$AC:$AC,Sheet1!S71_A5CapexCode,$AD:$AD)","v":0},{"$f":"SUMIFS(Sheet1!S71_AdjustmentBudAmnt,Sheet1!S71_SA34Code,$AC:$AC,Sheet1!S71_A5CapexCode,$AD:$AD)","v":0},{"$f":"SUMIFS(Sheet1!S71_AdjustmentBudAmnt,Sheet1!S71_SA34Code,$AC:$AC,Sheet1!S71_A5CapexCode,$AD:$AD)","v":0},{"$f":"SUMIFS(Sheet1!S71_ASBudgetAmount,Sheet1!S71_SA34Code,$AC:$AC,Sheet1!S71_A5CapexCode,$AD:$AD)","v":0},{"$f":"SUMIFS(Sheet1!S71_OY1BudgetAmount,Sheet1!S71_SA34Code,$AC:$AC,Sheet1!S71_A5CapexCode,$AD:$AD)","v":0},{"$f":"SUMIFS(Sheet1!S71_OY2BudgetAmount,Sheet1!S71_SA34Code,$AC:$AC,Sheet1!S71_A5CapexCode,$AD:$AD)","v":0},null,null,null,null,null,null,null,null,null,null,null,null,null,null,null,null,null,"0630","CE"]
["LV Networks",null,{"$f":"SUMIFS(Sheet1!S71_PPPYearAmount,Sheet1!S71_SA34Code,$AC:$AC,Sheet1!S71_A5CapexCode,$AD:$AD)","v":0},{"$f":"SUMIFS(Sheet1!S71_PPYearAmount,Sheet1!S71_SA34Code,$AC:$AC,Sheet1!S71_A5CapexCode,$AD:$AD)","v":0},{"$f":"SUMIFS(Sheet1!S71_PYearAmount,Sheet1!S71_SA34Code,$AC:$AC,Sheet1!S71_A5CapexCode,$AD:$AD)","v":0},{"$f":"SUMIFS(Sheet1!S71_OriginalBudAmnt,Sheet1!S71_SA34Code,$AC:$AC,Sheet1!S71_A5CapexCode,$AD:$AD)","v":0},{"$f":"SUMIFS(Sheet1!S71_AdjustmentBudAmnt,Sheet1!S71_SA34Code,$AC:$AC,Sheet1!S71_A5CapexCode,$AD:$AD)","v":0},{"$f":"SUMIFS(Sheet1!S71_AdjustmentBudAmnt,Sheet1!S71_SA34Code,$AC:$AC,Sheet1!S71_A5CapexCode,$AD:$AD)","v":0},{"$f":"SUMIFS(Sheet1!S71_ASBudgetAmount,Sheet1!S71_SA34Code,$AC:$AC,Sheet1!S71_A5CapexCode,$AD:$AD)","v":0},{"$f":"SUMIFS(Sheet1!S71_OY1BudgetAmount,Sheet1!S71_SA34Code,$AC:$AC,Sheet1!S71_A5CapexCode,$AD:$AD)","v":0},{"$f":"SUMIFS(Sheet1!S71_OY2BudgetAmount,Sheet1!S71_SA34Code,$AC:$AC,Sheet1!S71_A5CapexCode,$AD:$AD)","v":0},null,null,null,null,null,null,null,null,null,null,null,null,null,null,null,null,null,"0640","CE"]
["Capital Spares",null,{"$f":"SUMIFS(Sheet1!S71_PPPYearAmount,Sheet1!S71_SA34Code,$AC:$AC,Sheet1!S71_A5CapexCode,$AD:$AD)","v":0},{"$f":"SUMIFS(Sheet1!S71_PPYearAmount,Sheet1!S71_SA34Code,$AC:$AC,Sheet1!S71_A5CapexCode,$AD:$AD)","v":0},{"$f":"SUMIFS(Sheet1!S71_PYearAmount,Sheet1!S71_SA34Code,$AC:$AC,Sheet1!S71_A5CapexCode,$AD:$AD)","v":0},{"$f":"SUMIFS(Sheet1!S71_OriginalBudAmnt,Sheet1!S71_SA34Code,$AC:$AC,Sheet1!S71_A5CapexCode,$AD:$AD)","v":0},{"$f":"SUMIFS(Sheet1!S71_AdjustmentBudAmnt,Sheet1!S71_SA34Code,$AC:$AC,Sheet1!S71_A5CapexCode,$AD:$AD)","v":0},{"$f":"SUMIFS(Sheet1!S71_AdjustmentBudAmnt,Sheet1!S71_SA34Code,$AC:$AC,Sheet1!S71_A5CapexCode,$AD:$AD)","v":0},{"$f":"SUMIFS(Sheet1!S71_ASBudgetAmount,Sheet1!S71_SA34Code,$AC:$AC,Sheet1!S71_A5CapexCode,$AD:$AD)","v":0},{"$f":"SUMIFS(Sheet1!S71_OY1BudgetAmount,Sheet1!S71_SA34Code,$AC:$AC,Sheet1!S71_A5CapexCode,$AD:$AD)","v":0},{"$f":"SUMIFS(Sheet1!S71_OY2BudgetAmount,Sheet1!S71_SA34Code,$AC:$AC,Sheet1!S71_A5CapexCode,$AD:$AD)","v":0},null,null,null,null,null,null,null,null,null,null,null,null,null,null,null,null,null,"0650","CE"]
["Coastal Infrastructure",null,{"$f":"SUM(C63:C67)","v":0},{"$f":"SUM(D63:D67)","v":0},0,0,0,0,0,0,0,null,null,null,null,null,null,null,null,null,null,null,null,null,null,null,null,null,null,"CE"]
["Sand Pumps",null,{"$f":"SUMIFS(Sheet1!S71_PPPYearAmount,Sheet1!S71_SA34Code,$AC:$AC,Sheet1!S71_A5CapexCode,$AD:$AD)","v":0},{"$f":"SUMIFS(Sheet1!S71_PPYearAmount,Sheet1!S71_SA34Code,$AC:$AC,Sheet1!S71_A5CapexCode,$AD:$AD)","v":0},{"$f":"SUMIFS(Sheet1!S71_PYearAmount,Sheet1!S71_SA34Code,$AC:$AC,Sheet1!S71_A5CapexCode,$AD:$AD)","v":0},{"$f":"SUMIFS(Sheet1!S71_OriginalBudAmnt,Sheet1!S71_SA34Code,$AC:$AC,Sheet1!S71_A5CapexCode,$AD:$AD)","v":0},{"$f":"SUMIFS(Sheet1!S71_AdjustmentBudAmnt,Sheet1!S71_SA34Code,$AC:$AC,Sheet1!S71_A5CapexCode,$AD:$AD)","v":0},{"$f":"SUMIFS(Sheet1!S71_AdjustmentBudAmnt,Sheet1!S71_SA34Code,$AC:$AC,Sheet1!S71_A5CapexCode,$AD:$AD)","v":0},{"$f":"SUMIFS(Sheet1!S71_ASBudgetAmount,Sheet1!S71_SA34Code,$AC:$AC,Sheet1!S71_A5CapexCode,$AD:$AD)","v":0},{"$f":"SUMIFS(Sheet1!S71_OY1BudgetAmount,Sheet1!S71_SA34Code,$AC:$AC,Sheet1!S71_A5CapexCode,$AD:$AD)","v":0},{"$f":"SUMIFS(Sheet1!S71_OY2BudgetAmount,Sheet1!S71_SA34Code,$AC:$AC,Sheet1!S71_A5CapexCode,$AD:$AD)","v":0},null,null,null,null,null,null,null,null,null,null,null,null,null,null,null,null,null,"0670","CE"]
["Piers",null,{"$f":"SUMIFS(Sheet1!S71_PPPYearAmount,Sheet1!S71_SA34Code,$AC:$AC,Sheet1!S71_A5CapexCode,$AD:$AD)","v":0},{"$f":"SUMIFS(Sheet1!S71_PPYearAmount,Sheet1!S71_SA34Code,$AC:$AC,Sheet1!S71_A5CapexCode,$AD:$AD)","v":0},{"$f":"SUMIFS(Sheet1!S71_PYearAmount,Sheet1!S71_SA34Code,$AC:$AC,Sheet1!S71_A5CapexCode,$AD:$AD)","v":0},{"$f":"SUMIFS(Sheet1!S71_OriginalBudAmnt,Sheet1!S71_SA34Code,$AC:$AC,Sheet1!S71_A5CapexCode,$AD:$AD)","v":0},{"$f":"SUMIFS(Sheet1!S71_AdjustmentBudAmnt,Sheet1!S71_SA34Code,$AC:$AC,Sheet1!S71_A5CapexCode,$AD:$AD)","v":0},{"$f":"SUMIFS(Sheet1!S71_AdjustmentBudAmnt,Sheet1!S71_SA34Code,$AC:$AC,Sheet1!S71_A5CapexCode,$AD:$AD)","v":0},{"$f":"SUMIFS(Sheet1!S71_ASBudgetAmount,Sheet1!S71_SA34Code,$AC:$AC,Sheet1!S71_A5CapexCode,$AD:$AD)","v":0},{"$f":"SUMIFS(Sheet1!S71_OY1BudgetAmount,Sheet1!S71_SA34Code,$AC:$AC,Sheet1!S71_A5CapexCode,$AD:$AD)","v":0},{"$f":"SUMIFS(Sheet1!S71_OY2BudgetAmount,Sheet1!S71_SA34Code,$AC:$AC,Sheet1!S71_A5CapexCode,$AD:$AD)","v":0},null,null,null,null,null,null,null,null,null,null,null,null,null,null,null,null,null,"0680","CE"]
["Revetments",null,{"$f":"SUMIFS(Sheet1!S71_PPPYearAmount,Sheet1!S71_SA34Code,$AC:$AC,Sheet1!S71_A5CapexCode,$AD:$AD)","v":0},{"$f":"SUMIFS(Sheet1!S71_PPYearAmount,Sheet1!S71_SA34Code,$AC:$AC,Sheet1!S71_A5CapexCode,$AD:$AD)","v":0},{"$f":"SUMIFS(Sheet1!S71_PYearAmount,Sheet1!S71_SA34Code,$AC:$AC,Sheet1!S71_A5CapexCode,$AD:$AD)","v":0},{"$f":"SUMIFS(Sheet1!S71_OriginalBudAmnt,Sheet1!S71_SA34Code,$AC:$AC,Sheet1!S71_A5CapexCode,$AD:$AD)","v":0},{"$f":"SUMIFS(Sheet1!S71_AdjustmentBudAmnt,Sheet1!S71_SA34Code,$AC:$AC,Sheet1!S71_A5CapexCode,$AD:$AD)","v":0},{"$f":"SUMIFS(Sheet1!S71_AdjustmentBudAmnt,Sheet1!S71_SA34Code,$AC:$AC,Sheet1!S71_A5CapexCode,$AD:$AD)","v":0},{"$f":"SUMIFS(Sheet1!S71_ASBudgetAmount,Sheet1!S71_SA34Code,$AC:$AC,Sheet1!S71_A5CapexCode,$AD:$AD)","v":0},{"$f":"SUMIFS(Sheet1!S71_OY1BudgetAmount,Sheet1!S71_SA34Code,$AC:$AC,Sheet1!S71_A5CapexCode,$AD:$AD)","v":0},{"$f":"SUMIFS(Sheet1!S71_OY2BudgetAmount,Sheet1!S71_SA34Code,$AC:$AC,Sheet1!S71_A5CapexCode,$AD:$AD)","v":0},null,null,null,null,null,null,null,null,null,null,null,null,null,null,null,null,null,"0690","CE"]
["Promenades",null,{"$f":"SUMIFS(Sheet1!S71_PPPYearAmount,Sheet1!S71_SA34Code,$AC:$AC,Sheet1!S71_A5CapexCode,$AD:$AD)","v":0},{"$f":"SUMIFS(Sheet1!S71_PPYearAmount,Sheet1!S71_SA34Code,$AC:$AC,Sheet1!S71_A5CapexCode,$AD:$AD)","v":0},{"$f":"SUMIFS(Sheet1!S71_PYearAmount,Sheet1!S71_SA34Code,$AC:$AC,Sheet1!S71_A5CapexCode,$AD:$AD)","v":0},{"$f":"SUMIFS(Sheet1!S71_OriginalBudAmnt,Sheet1!S71_SA34Code,$AC:$AC,Sheet1!S71_A5CapexCode,$AD:$AD)","v":0},{"$f":"SUMIFS(Sheet1!S71_AdjustmentBudAmnt,Sheet1!S71_SA34Code,$AC:$AC,Sheet1!S71_A5CapexCode,$AD:$AD)","v":0},{"$f":"SUMIFS(Sheet1!S71_AdjustmentBudAmnt,Sheet1!S71_SA34Code,$AC:$AC,Sheet1!S71_A5CapexCode,$AD:$AD)","v":0},{"$f":"SUMIFS(Sheet1!S71_ASBudgetAmount,Sheet1!S71_SA34Code,$AC:$AC,Sheet1!S71_A5CapexCode,$AD:$AD)","v":0},{"$f":"SUMIFS(Sheet1!S71_OY1BudgetAmount,Sheet1!S71_SA34Code,$AC:$AC,Sheet1!S71_A5CapexCode,$AD:$AD)","v":0},{"$f":"SUMIFS(Sheet1!S71_OY2BudgetAmount,Sheet1!S71_SA34Code,$AC:$AC,Sheet1!S71_A5CapexCode,$AD:$AD)","v":0},null,null,null,null,null,null,null,null,null,null,null,null,null,null,null,null,null,"0700","CE"]
["Capital Spares",null,{"$f":"SUMIFS(Sheet1!S71_PPPYearAmount,Sheet1!S71_SA34Code,$AC:$AC,Sheet1!S71_A5CapexCode,$AD:$AD)","v":0},{"$f":"SUMIFS(Sheet1!S71_PPYearAmount,Sheet1!S71_SA34Code,$AC:$AC,Sheet1!S71_A5CapexCode,$AD:$AD)","v":0},{"$f":"SUMIFS(Sheet1!S71_PYearAmount,Sheet1!S71_SA34Code,$AC:$AC,Sheet1!S71_A5CapexCode,$AD:$AD)","v":0},{"$f":"SUMIFS(Sheet1!S71_OriginalBudAmnt,Sheet1!S71_SA34Code,$AC:$AC,Sheet1!S71_A5CapexCode,$AD:$AD)","v":0},{"$f":"SUMIFS(Sheet1!S71_AdjustmentBudAmnt,Sheet1!S71_SA34Code,$AC:$AC,Sheet1!S71_A5CapexCode,$AD:$AD)","v":0},{"$f":"SUMIFS(Sheet1!S71_AdjustmentBudAmnt,Sheet1!S71_SA34Code,$AC:$AC,Sheet1!S71_A5CapexCode,$AD:$AD)","v":0},{"$f":"SUMIFS(Sheet1!S71_ASBudgetAmount,Sheet1!S71_SA34Code,$AC:$AC,Sheet1!S71_A5CapexCode,$AD:$AD)","v":0},{"$f":"SUMIFS(Sheet1!S71_OY1BudgetAmount,Sheet1!S71_SA34Code,$AC:$AC,Sheet1!S71_A5CapexCode,$AD:$AD)","v":0},{"$f":"SUMIFS(Sheet1!S71_OY2BudgetAmount,Sheet1!S71_SA34Code,$AC:$AC,Sheet1!S71_A5CapexCode,$AD:$AD)","v":0},null,null,null,null,null,null,null,null,null,null,null,null,null,null,null,null,null,"0710","CE"]
["Information and Communication Infrastructure",null,{"$f":"SUM(C69:C72)","v":0},{"$f":"SUM(D69:D72)","v":0},0,0,0,0,0,0,0,null,null,null,null,null,null,null,null,null,null,null,null,null,null,null,null,null,null,"CE"]
["Data Centres",null,{"$f":"SUMIFS(Sheet1!S71_PPPYearAmount,Sheet1!S71_SA34Code,$AC:$AC,Sheet1!S71_A5CapexCode,$AD:$AD)","v":0},{"$f":"SUMIFS(Sheet1!S71_PPYearAmount,Sheet1!S71_SA34Code,$AC:$AC,Sheet1!S71_A5CapexCode,$AD:$AD)","v":0},{"$f":"SUMIFS(Sheet1!S71_PYearAmount,Sheet1!S71_SA34Code,$AC:$AC,Sheet1!S71_A5CapexCode,$AD:$AD)","v":0},{"$f":"SUMIFS(Sheet1!S71_OriginalBudAmnt,Sheet1!S71_SA34Code,$AC:$AC,Sheet1!S71_A5CapexCode,$AD:$AD)","v":0},{"$f":"SUMIFS(Sheet1!S71_AdjustmentBudAmnt,Sheet1!S71_SA34Code,$AC:$AC,Sheet1!S71_A5CapexCode,$AD:$AD)","v":0},{"$f":"SUMIFS(Sheet1!S71_AdjustmentBudAmnt,Sheet1!S71_SA34Code,$AC:$AC,Sheet1!S71_A5CapexCode,$AD:$AD)","v":0},{"$f":"SUMIFS(Sheet1!S71_ASBudgetAmount,Sheet1!S71_SA34Code,$AC:$AC,Sheet1!S71_A5CapexCode,$AD:$AD)","v":0},{"$f":"SUMIFS(Sheet1!S71_OY1BudgetAmount,Sheet1!S71_SA34Code,$AC:$AC,Sheet1!S71_A5CapexCode,$AD:$AD)","v":0},{"$f":"SUMIFS(Sheet1!S71_OY2BudgetAmount,Sheet1!S71_SA34Code,$AC:$AC,Sheet1!S71_A5CapexCode,$AD:$AD)","v":0},null,null,null,null,null,null,null,null,null,null,null,null,null,null,null,null,null,"0730","CE"]
["Core Layers",null,{"$f":"SUMIFS(Sheet1!S71_PPPYearAmount,Sheet1!S71_SA34Code,$AC:$AC,Sheet1!S71_A5CapexCode,$AD:$AD)","v":0},{"$f":"SUMIFS(Sheet1!S71_PPYearAmount,Sheet1!S71_SA34Code,$AC:$AC,Sheet1!S71_A5CapexCode,$AD:$AD)","v":0},{"$f":"SUMIFS(Sheet1!S71_PYearAmount,Sheet1!S71_SA34Code,$AC:$AC,Sheet1!S71_A5CapexCode,$AD:$AD)","v":0},{"$f":"SUMIFS(Sheet1!S71_OriginalBudAmnt,Sheet1!S71_SA34Code,$AC:$AC,Sheet1!S71_A5CapexCode,$AD:$AD)","v":0},{"$f":"SUMIFS(Sheet1!S71_AdjustmentBudAmnt,Sheet1!S71_SA34Code,$AC:$AC,Sheet1!S71_A5CapexCode,$AD:$AD)","v":0},{"$f":"SUMIFS(Sheet1!S71_AdjustmentBudAmnt,Sheet1!S71_SA34Code,$AC:$AC,Sheet1!S71_A5CapexCode,$AD:$AD)","v":0},{"$f":"SUMIFS(Sheet1!S71_ASBudgetAmount,Sheet1!S71_SA34Code,$AC:$AC,Sheet1!S71_A5CapexCode,$AD:$AD)","v":0},{"$f":"SUMIFS(Sheet1!S71_OY1BudgetAmount,Sheet1!S71_SA34Code,$AC:$AC,Sheet1!S71_A5CapexCode,$AD:$AD)","v":0},{"$f":"SUMIFS(Sheet1!S71_OY2BudgetAmount,Sheet1!S71_SA34Code,$AC:$AC,Sheet1!S71_A5CapexCode,$AD:$AD)","v":0},null,null,null,null,null,null,null,null,null,null,null,null,null,null,null,null,null,"0740","CE"]
["Distribution Layers",null,{"$f":"SUMIFS(Sheet1!S71_PPPYearAmount,Sheet1!S71_SA34Code,$AC:$AC,Sheet1!S71_A5CapexCode,$AD:$AD)","v":0},{"$f":"SUMIFS(Sheet1!S71_PPYearAmount,Sheet1!S71_SA34Code,$AC:$AC,Sheet1!S71_A5CapexCode,$AD:$AD)","v":0},{"$f":"SUMIFS(Sheet1!S71_PYearAmount,Sheet1!S71_SA34Code,$AC:$AC,Sheet1!S71_A5CapexCode,$AD:$AD)","v":0},{"$f":"SUMIFS(Sheet1!S71_OriginalBudAmnt,Sheet1!S71_SA34Code,$AC:$AC,Sheet1!S71_A5CapexCode,$AD:$AD)","v":0},{"$f":"SUMIFS(Sheet1!S71_AdjustmentBudAmnt,Sheet1!S71_SA34Code,$AC:$AC,Sheet1!S71_A5CapexCode,$AD:$AD)","v":0},{"$f":"SUMIFS(Sheet1!S71_AdjustmentBudAmnt,Sheet1!S71_SA34Code,$AC:$AC,Sheet1!S71_A5CapexCode,$AD:$AD)","v":0},{"$f":"SUMIFS(Sheet1!S71_ASBudgetAmount,Sheet1!S71_SA34Code,$AC:$AC,Sheet1!S71_A5CapexCode,$AD:$AD)","v":0},{"$f":"SUMIFS(Sheet1!S71_OY1BudgetAmount,Sheet1!S71_SA34Code,$AC:$AC,Sheet1!S71_A5CapexCode,$AD:$AD)","v":0},{"$f":"SUMIFS(Sheet1!S71_OY2BudgetAmount,Sheet1!S71_SA34Code,$AC:$AC,Sheet1!S71_A5CapexCode,$AD:$AD)","v":0},null,null,null,null,null,null,null,null,null,null,null,null,null,null,null,null,null,"0750","CE"]
["Capital Spares",null,{"$f":"SUMIFS(Sheet1!S71_PPPYearAmount,Sheet1!S71_SA34Code,$AC:$AC,Sheet1!S71_A5CapexCode,$AD:$AD)","v":0},{"$f":"SUMIFS(Sheet1!S71_PPYearAmount,Sheet1!S71_SA34Code,$AC:$AC,Sheet1!S71_A5CapexCode,$AD:$AD)","v":0},{"$f":"SUMIFS(Sheet1!S71_PYearAmount,Sheet1!S71_SA34Code,$AC:$AC,Sheet1!S71_A5CapexCode,$AD:$AD)","v":0},{"$f":"SUMIFS(Sheet1!S71_OriginalBudAmnt,Sheet1!S71_SA34Code,$AC:$AC,Sheet1!S71_A5CapexCode,$AD:$AD)","v":0},{"$f":"SUMIFS(Sheet1!S71_AdjustmentBudAmnt,Sheet1!S71_SA34Code,$AC:$AC,Sheet1!S71_A5CapexCode,$AD:$AD)","v":0},{"$f":"SUMIFS(Sheet1!S71_AdjustmentBudAmnt,Sheet1!S71_SA34Code,$AC:$AC,Sheet1!S71_A5CapexCode,$AD:$AD)","v":0},{"$f":"SUMIFS(Sheet1!S71_ASBudgetAmount,Sheet1!S71_SA34Code,$AC:$AC,Sheet1!S71_A5CapexCode,$AD:$AD)","v":0},{"$f":"SUMIFS(Sheet1!S71_OY1BudgetAmount,Sheet1!S71_SA34Code,$AC:$AC,Sheet1!S71_A5CapexCode,$AD:$AD)","v":0},{"$f":"SUMIFS(Sheet1!S71_OY2BudgetAmount,Sheet1!S71_SA34Code,$AC:$AC,Sheet1!S71_A5CapexCode,$AD:$AD)","v":0},null,null,null,null,null,null,null,null,null,null,null,null,null,null,null,null,null,"0760","CE"]
[null,null,null,null,null,null,null,null,null,null,null,null,null,null,null,null,null,null,null,null,null,null,null,null,null,null,null,null,null,"CE"]
["Community Assets",null,{"$f":"C75+C98","v":0},{"$f":"D75+D98","v":0},0,0,0,0,0,0,0,null,null,null,null,null,null,null,null,null,null,null,null,null,null,null,null,null,null,"CE"]
["Community Facilities",null,{"$f":"SUM(C76:C97)","v":0},{"$f":"SUM(D76:D97)","v":0},0,0,0,0,0,0,0,null,null,null,null,null,null,null,null,null,null,null,null,null,null,null,null,null,null,"CE"]
["Halls",null,{"$f":"SUMIFS(Sheet1!S71_PPPYearAmount,Sheet1!S71_SA34Code,$AC:$AC,Sheet1!S71_A5CapexCode,$AD:$AD)","v":0},{"$f":"SUMIFS(Sheet1!S71_PPYearAmount,Sheet1!S71_SA34Code,$AC:$AC,Sheet1!S71_A5CapexCode,$AD:$AD)","v":0},{"$f":"SUMIFS(Sheet1!S71_PYearAmount,Sheet1!S71_SA34Code,$AC:$AC,Sheet1!S71_A5CapexCode,$AD:$AD)","v":0},{"$f":"SUMIFS(Sheet1!S71_OriginalBudAmnt,Sheet1!S71_SA34Code,$AC:$AC,Sheet1!S71_A5CapexCode,$AD:$AD)","v":0},{"$f":"SUMIFS(Sheet1!S71_AdjustmentBudAmnt,Sheet1!S71_SA34Code,$AC:$AC,Sheet1!S71_A5CapexCode,$AD:$AD)","v":0},{"$f":"SUMIFS(Sheet1!S71_AdjustmentBudAmnt,Sheet1!S71_SA34Code,$AC:$AC,Sheet1!S71_A5CapexCode,$AD:$AD)","v":0},{"$f":"SUMIFS(Sheet1!S71_ASBudgetAmount,Sheet1!S71_SA34Code,$AC:$AC,Sheet1!S71_A5CapexCode,$AD:$AD)","v":0},{"$f":"SUMIFS(Sheet1!S71_OY1BudgetAmount,Sheet1!S71_SA34Code,$AC:$AC,Sheet1!S71_A5CapexCode,$AD:$AD)","v":0},{"$f":"SUMIFS(Sheet1!S71_OY2BudgetAmount,Sheet1!S71_SA34Code,$AC:$AC,Sheet1!S71_A5CapexCode,$AD:$AD)","v":0},null,null,null,null,null,null,null,null,null,null,null,null,null,null,null,null,null,"0790","CE"]
["Centres",null,{"$f":"SUMIFS(Sheet1!S71_PPPYearAmount,Sheet1!S71_SA34Code,$AC:$AC,Sheet1!S71_A5CapexCode,$AD:$AD)","v":0},{"$f":"SUMIFS(Sheet1!S71_PPYearAmount,Sheet1!S71_SA34Code,$AC:$AC,Sheet1!S71_A5CapexCode,$AD:$AD)","v":0},{"$f":"SUMIFS(Sheet1!S71_PYearAmount,Sheet1!S71_SA34Code,$AC:$AC,Sheet1!S71_A5CapexCode,$AD:$AD)","v":0},{"$f":"SUMIFS(Sheet1!S71_OriginalBudAmnt,Sheet1!S71_SA34Code,$AC:$AC,Sheet1!S71_A5CapexCode,$AD:$AD)","v":0},{"$f":"SUMIFS(Sheet1!S71_AdjustmentBudAmnt,Sheet1!S71_SA34Code,$AC:$AC,Sheet1!S71_A5CapexCode,$AD:$AD)","v":0},{"$f":"SUMIFS(Sheet1!S71_AdjustmentBudAmnt,Sheet1!S71_SA34Code,$AC:$AC,Sheet1!S71_A5CapexCode,$AD:$AD)","v":0},{"$f":"SUMIFS(Sheet1!S71_ASBudgetAmount,Sheet1!S71_SA34Code,$AC:$AC,Sheet1!S71_A5CapexCode,$AD:$AD)","v":0},{"$f":"SUMIFS(Sheet1!S71_OY1BudgetAmount,Sheet1!S71_SA34Code,$AC:$AC,Sheet1!S71_A5CapexCode,$AD:$AD)","v":0},{"$f":"SUMIFS(Sheet1!S71_OY2BudgetAmount,Sheet1!S71_SA34Code,$AC:$AC,Sheet1!S71_A5CapexCode,$AD:$AD)","v":0},null,null,null,null,null,null,null,null,null,null,null,null,null,null,null,null,null,"0800","CE"]
["Crèches",null,{"$f":"SUMIFS(Sheet1!S71_PPPYearAmount,Sheet1!S71_SA34Code,$AC:$AC,Sheet1!S71_A5CapexCode,$AD:$AD)","v":0},{"$f":"SUMIFS(Sheet1!S71_PPYearAmount,Sheet1!S71_SA34Code,$AC:$AC,Sheet1!S71_A5CapexCode,$AD:$AD)","v":0},{"$f":"SUMIFS(Sheet1!S71_PYearAmount,Sheet1!S71_SA34Code,$AC:$AC,Sheet1!S71_A5CapexCode,$AD:$AD)","v":0},{"$f":"SUMIFS(Sheet1!S71_OriginalBudAmnt,Sheet1!S71_SA34Code,$AC:$AC,Sheet1!S71_A5CapexCode,$AD:$AD)","v":0},{"$f":"SUMIFS(Sheet1!S71_AdjustmentBudAmnt,Sheet1!S71_SA34Code,$AC:$AC,Sheet1!S71_A5CapexCode,$AD:$AD)","v":0},{"$f":"SUMIFS(Sheet1!S71_AdjustmentBudAmnt,Sheet1!S71_SA34Code,$AC:$AC,Sheet1!S71_A5CapexCode,$AD:$AD)","v":0},{"$f":"SUMIFS(Sheet1!S71_ASBudgetAmount,Sheet1!S71_SA34Code,$AC:$AC,Sheet1!S71_A5CapexCode,$AD:$AD)","v":0},{"$f":"SUMIFS(Sheet1!S71_OY1BudgetAmount,Sheet1!S71_SA34Code,$AC:$AC,Sheet1!S71_A5CapexCode,$AD:$AD)","v":0},{"$f":"SUMIFS(Sheet1!S71_OY2BudgetAmount,Sheet1!S71_SA34Code,$AC:$AC,Sheet1!S71_A5CapexCode,$AD:$AD)","v":0},null,null,null,null,null,null,null,null,null,null,null,null,null,null,null,null,null,"0810","CE"]
["Clinics/Care Centres",null,{"$f":"SUMIFS(Sheet1!S71_PPPYearAmount,Sheet1!S71_SA34Code,$AC:$AC,Sheet1!S71_A5CapexCode,$AD:$AD)","v":0},{"$f":"SUMIFS(Sheet1!S71_PPYearAmount,Sheet1!S71_SA34Code,$AC:$AC,Sheet1!S71_A5CapexCode,$AD:$AD)","v":0},{"$f":"SUMIFS(Sheet1!S71_PYearAmount,Sheet1!S71_SA34Code,$AC:$AC,Sheet1!S71_A5CapexCode,$AD:$AD)","v":0},{"$f":"SUMIFS(Sheet1!S71_OriginalBudAmnt,Sheet1!S71_SA34Code,$AC:$AC,Sheet1!S71_A5CapexCode,$AD:$AD)","v":0},{"$f":"SUMIFS(Sheet1!S71_AdjustmentBudAmnt,Sheet1!S71_SA34Code,$AC:$AC,Sheet1!S71_A5CapexCode,$AD:$AD)","v":0},{"$f":"SUMIFS(Sheet1!S71_AdjustmentBudAmnt,Sheet1!S71_SA34Code,$AC:$AC,Sheet1!S71_A5CapexCode,$AD:$AD)","v":0},{"$f":"SUMIFS(Sheet1!S71_ASBudgetAmount,Sheet1!S71_SA34Code,$AC:$AC,Sheet1!S71_A5CapexCode,$AD:$AD)","v":0},{"$f":"SUMIFS(Sheet1!S71_OY1BudgetAmount,Sheet1!S71_SA34Code,$AC:$AC,Sheet1!S71_A5CapexCode,$AD:$AD)","v":0},{"$f":"SUMIFS(Sheet1!S71_OY2BudgetAmount,Sheet1!S71_SA34Code,$AC:$AC,Sheet1!S71_A5CapexCode,$AD:$AD)","v":0},null,null,null,null,null,null,null,null,null,null,null,null,null,null,null,null,null,"0820","CE"]
["Fire/Ambulance Stations",null,{"$f":"SUMIFS(Sheet1!S71_PPPYearAmount,Sheet1!S71_SA34Code,$AC:$AC,Sheet1!S71_A5CapexCode,$AD:$AD)","v":0},{"$f":"SUMIFS(Sheet1!S71_PPYearAmount,Sheet1!S71_SA34Code,$AC:$AC,Sheet1!S71_A5CapexCode,$AD:$AD)","v":0},{"$f":"SUMIFS(Sheet1!S71_PYearAmount,Sheet1!S71_SA34Code,$AC:$AC,Sheet1!S71_A5CapexCode,$AD:$AD)","v":0},{"$f":"SUMIFS(Sheet1!S71_OriginalBudAmnt,Sheet1!S71_SA34Code,$AC:$AC,Sheet1!S71_A5CapexCode,$AD:$AD)","v":0},{"$f":"SUMIFS(Sheet1!S71_AdjustmentBudAmnt,Sheet1!S71_SA34Code,$AC:$AC,Sheet1!S71_A5CapexCode,$AD:$AD)","v":0},{"$f":"SUMIFS(Sheet1!S71_AdjustmentBudAmnt,Sheet1!S71_SA34Code,$AC:$AC,Sheet1!S71_A5CapexCode,$AD:$AD)","v":0},{"$f":"SUMIFS(Sheet1!S71_ASBudgetAmount,Sheet1!S71_SA34Code,$AC:$AC,Sheet1!S71_A5CapexCode,$AD:$AD)","v":0},{"$f":"SUMIFS(Sheet1!S71_OY1BudgetAmount,Sheet1!S71_SA34Code,$AC:$AC,Sheet1!S71_A5CapexCode,$AD:$AD)","v":0},{"$f":"SUMIFS(Sheet1!S71_OY2BudgetAmount,Sheet1!S71_SA34Code,$AC:$AC,Sheet1!S71_A5CapexCode,$AD:$AD)","v":0},null,null,null,null,null,null,null,null,null,null,null,null,null,null,null,null,null,"0830","CE"]
["Testing Stations",null,{"$f":"SUMIFS(Sheet1!S71_PPPYearAmount,Sheet1!S71_SA34Code,$AC:$AC,Sheet1!S71_A5CapexCode,$AD:$AD)","v":0},{"$f":"SUMIFS(Sheet1!S71_PPYearAmount,Sheet1!S71_SA34Code,$AC:$AC,Sheet1!S71_A5CapexCode,$AD:$AD)","v":0},{"$f":"SUMIFS(Sheet1!S71_PYearAmount,Sheet1!S71_SA34Code,$AC:$AC,Sheet1!S71_A5CapexCode,$AD:$AD)","v":0},{"$f":"SUMIFS(Sheet1!S71_OriginalBudAmnt,Sheet1!S71_SA34Code,$AC:$AC,Sheet1!S71_A5CapexCode,$AD:$AD)","v":0},{"$f":"SUMIFS(Sheet1!S71_AdjustmentBudAmnt,Sheet1!S71_SA34Code,$AC:$AC,Sheet1!S71_A5CapexCode,$AD:$AD)","v":0},{"$f":"SUMIFS(Sheet1!S71_AdjustmentBudAmnt,Sheet1!S71_SA34Code,$AC:$AC,Sheet1!S71_A5CapexCode,$AD:$AD)","v":0},{"$f":"SUMIFS(Sheet1!S71_ASBudgetAmount,Sheet1!S71_SA34Code,$AC:$AC,Sheet1!S71_A5CapexCode,$AD:$AD)","v":0},{"$f":"SUMIFS(Sheet1!S71_OY1BudgetAmount,Sheet1!S71_SA34Code,$AC:$AC,Sheet1!S71_A5CapexCode,$AD:$AD)","v":0},{"$f":"SUMIFS(Sheet1!S71_OY2BudgetAmount,Sheet1!S71_SA34Code,$AC:$AC,Sheet1!S71_A5CapexCode,$AD:$AD)","v":0},null,null,null,null,null,null,null,null,null,null,null,null,null,null,null,null,null,"0840","CE"]
["Museums",null,{"$f":"SUMIFS(Sheet1!S71_PPPYearAmount,Sheet1!S71_SA34Code,$AC:$AC,Sheet1!S71_A5CapexCode,$AD:$AD)","v":0},{"$f":"SUMIFS(Sheet1!S71_PPYearAmount,Sheet1!S71_SA34Code,$AC:$AC,Sheet1!S71_A5CapexCode,$AD:$AD)","v":0},{"$f":"SUMIFS(Sheet1!S71_PYearAmount,Sheet1!S71_SA34Code,$AC:$AC,Sheet1!S71_A5CapexCode,$AD:$AD)","v":0},{"$f":"SUMIFS(Sheet1!S71_OriginalBudAmnt,Sheet1!S71_SA34Code,$AC:$AC,Sheet1!S71_A5CapexCode,$AD:$AD)","v":0},{"$f":"SUMIFS(Sheet1!S71_AdjustmentBudAmnt,Sheet1!S71_SA34Code,$AC:$AC,Sheet1!S71_A5CapexCode,$AD:$AD)","v":0},{"$f":"SUMIFS(Sheet1!S71_AdjustmentBudAmnt,Sheet1!S71_SA34Code,$AC:$AC,Sheet1!S71_A5CapexCode,$AD:$AD)","v":0},{"$f":"SUMIFS(Sheet1!S71_ASBudgetAmount,Sheet1!S71_SA34Code,$AC:$AC,Sheet1!S71_A5CapexCode,$AD:$AD)","v":0},{"$f":"SUMIFS(Sheet1!S71_OY1BudgetAmount,Sheet1!S71_SA34Code,$AC:$AC,Sheet1!S71_A5CapexCode,$AD:$AD)","v":0},{"$f":"SUMIFS(Sheet1!S71_OY2BudgetAmount,Sheet1!S71_SA34Code,$AC:$AC,Sheet1!S71_A5CapexCode,$AD:$AD)","v":0},null,null,null,null,null,null,null,null,null,null,null,null,null,null,null,null,null,"0850","CE"]
["Galleries",null,{"$f":"SUMIFS(Sheet1!S71_PPPYearAmount,Sheet1!S71_SA34Code,$AC:$AC,Sheet1!S71_A5CapexCode,$AD:$AD)","v":0},{"$f":"SUMIFS(Sheet1!S71_PPYearAmount,Sheet1!S71_SA34Code,$AC:$AC,Sheet1!S71_A5CapexCode,$AD:$AD)","v":0},{"$f":"SUMIFS(Sheet1!S71_PYearAmount,Sheet1!S71_SA34Code,$AC:$AC,Sheet1!S71_A5CapexCode,$AD:$AD)","v":0},{"$f":"SUMIFS(Sheet1!S71_OriginalBudAmnt,Sheet1!S71_SA34Code,$AC:$AC,Sheet1!S71_A5CapexCode,$AD:$AD)","v":0},{"$f":"SUMIFS(Sheet1!S71_AdjustmentBudAmnt,Sheet1!S71_SA34Code,$AC:$AC,Sheet1!S71_A5CapexCode,$AD:$AD)","v":0},{"$f":"SUMIFS(Sheet1!S71_AdjustmentBudAmnt,Sheet1!S71_SA34Code,$AC:$AC,Sheet1!S71_A5CapexCode,$AD:$AD)","v":0},{"$f":"SUMIFS(Sheet1!S71_ASBudgetAmount,Sheet1!S71_SA34Code,$AC:$AC,Sheet1!S71_A5CapexCode,$AD:$AD)","v":0},{"$f":"SUMIFS(Sheet1!S71_OY1BudgetAmount,Sheet1!S71_SA34Code,$AC:$AC,Sheet1!S71_A5CapexCode,$AD:$AD)","v":0},{"$f":"SUMIFS(Sheet1!S71_OY2BudgetAmount,Sheet1!S71_SA34Code,$AC:$AC,Sheet1!S71_A5CapexCode,$AD:$AD)","v":0},null,null,null,null,null,null,null,null,null,null,null,null,null,null,null,null,null,"0860","CE"]
["Theatres",null,{"$f":"SUMIFS(Sheet1!S71_PPPYearAmount,Sheet1!S71_SA34Code,$AC:$AC,Sheet1!S71_A5CapexCode,$AD:$AD)","v":0},{"$f":"SUMIFS(Sheet1!S71_PPYearAmount,Sheet1!S71_SA34Code,$AC:$AC,Sheet1!S71_A5CapexCode,$AD:$AD)","v":0},{"$f":"SUMIFS(Sheet1!S71_PYearAmount,Sheet1!S71_SA34Code,$AC:$AC,Sheet1!S71_A5CapexCode,$AD:$AD)","v":0},{"$f":"SUMIFS(Sheet1!S71_OriginalBudAmnt,Sheet1!S71_SA34Code,$AC:$AC,Sheet1!S71_A5CapexCode,$AD:$AD)","v":0},{"$f":"SUMIFS(Sheet1!S71_AdjustmentBudAmnt,Sheet1!S71_SA34Code,$AC:$AC,Sheet1!S71_A5CapexCode,$AD:$AD)","v":0},{"$f":"SUMIFS(Sheet1!S71_AdjustmentBudAmnt,Sheet1!S71_SA34Code,$AC:$AC,Sheet1!S71_A5CapexCode,$AD:$AD)","v":0},{"$f":"SUMIFS(Sheet1!S71_ASBudgetAmount,Sheet1!S71_SA34Code,$AC:$AC,Sheet1!S71_A5CapexCode,$AD:$AD)","v":0},{"$f":"SUMIFS(Sheet1!S71_OY1BudgetAmount,Sheet1!S71_SA34Code,$AC:$AC,Sheet1!S71_A5CapexCode,$AD:$AD)","v":0},{"$f":"SUMIFS(Sheet1!S71_OY2BudgetAmount,Sheet1!S71_SA34Code,$AC:$AC,Sheet1!S71_A5CapexCode,$AD:$AD)","v":0},null,null,null,null,null,null,null,null,null,null,null,null,null,null,null,null,null,"0870","CE"]
["Libraries",null,{"$f":"SUMIFS(Sheet1!S71_PPPYearAmount,Sheet1!S71_SA34Code,$AC:$AC,Sheet1!S71_A5CapexCode,$AD:$AD)","v":0},{"$f":"SUMIFS(Sheet1!S71_PPYearAmount,Sheet1!S71_SA34Code,$AC:$AC,Sheet1!S71_A5CapexCode,$AD:$AD)","v":0},{"$f":"SUMIFS(Sheet1!S71_PYearAmount,Sheet1!S71_SA34Code,$AC:$AC,Sheet1!S71_A5CapexCode,$AD:$AD)","v":0},{"$f":"SUMIFS(Sheet1!S71_OriginalBudAmnt,Sheet1!S71_SA34Code,$AC:$AC,Sheet1!S71_A5CapexCode,$AD:$AD)","v":0},{"$f":"SUMIFS(Sheet1!S71_AdjustmentBudAmnt,Sheet1!S71_SA34Code,$AC:$AC,Sheet1!S71_A5CapexCode,$AD:$AD)","v":0},{"$f":"SUMIFS(Sheet1!S71_AdjustmentBudAmnt,Sheet1!S71_SA34Code,$AC:$AC,Sheet1!S71_A5CapexCode,$AD:$AD)","v":0},{"$f":"SUMIFS(Sheet1!S71_ASBudgetAmount,Sheet1!S71_SA34Code,$AC:$AC,Sheet1!S71_A5CapexCode,$AD:$AD)","v":0},{"$f":"SUMIFS(Sheet1!S71_OY1BudgetAmount,Sheet1!S71_SA34Code,$AC:$AC,Sheet1!S71_A5CapexCode,$AD:$AD)","v":0},{"$f":"SUMIFS(Sheet1!S71_OY2BudgetAmount,Sheet1!S71_SA34Code,$AC:$AC,Sheet1!S71_A5CapexCode,$AD:$AD)","v":0},null,null,null,null,null,null,null,null,null,null,null,null,null,null,null,null,null,"0880","CE"]
["Cemeteries/Crematoria",null,{"$f":"SUMIFS(Sheet1!S71_PPPYearAmount,Sheet1!S71_SA34Code,$AC:$AC,Sheet1!S71_A5CapexCode,$AD:$AD)","v":0},{"$f":"SUMIFS(Sheet1!S71_PPYearAmount,Sheet1!S71_SA34Code,$AC:$AC,Sheet1!S71_A5CapexCode,$AD:$AD)","v":0},{"$f":"SUMIFS(Sheet1!S71_PYearAmount,Sheet1!S71_SA34Code,$AC:$AC,Sheet1!S71_A5CapexCode,$AD:$AD)","v":0},{"$f":"SUMIFS(Sheet1!S71_OriginalBudAmnt,Sheet1!S71_SA34Code,$AC:$AC,Sheet1!S71_A5CapexCode,$AD:$AD)","v":0},{"$f":"SUMIFS(Sheet1!S71_AdjustmentBudAmnt,Sheet1!S71_SA34Code,$AC:$AC,Sheet1!S71_A5CapexCode,$AD:$AD)","v":0},{"$f":"SUMIFS(Sheet1!S71_AdjustmentBudAmnt,Sheet1!S71_SA34Code,$AC:$AC,Sheet1!S71_A5CapexCode,$AD:$AD)","v":0},{"$f":"SUMIFS(Sheet1!S71_ASBudgetAmount,Sheet1!S71_SA34Code,$AC:$AC,Sheet1!S71_A5CapexCode,$AD:$AD)","v":0},{"$f":"SUMIFS(Sheet1!S71_OY1BudgetAmount,Sheet1!S71_SA34Code,$AC:$AC,Sheet1!S71_A5CapexCode,$AD:$AD)","v":0},{"$f":"SUMIFS(Sheet1!S71_OY2BudgetAmount,Sheet1!S71_SA34Code,$AC:$AC,Sheet1!S71_A5CapexCode,$AD:$AD)","v":0},null,null,null,null,null,null,null,null,null,null,null,null,null,null,null,null,null,"0890","CE"]
["Police",null,{"$f":"SUMIFS(Sheet1!S71_PPPYearAmount,Sheet1!S71_SA34Code,$AC:$AC,Sheet1!S71_A5CapexCode,$AD:$AD)","v":0},{"$f":"SUMIFS(Sheet1!S71_PPYearAmount,Sheet1!S71_SA34Code,$AC:$AC,Sheet1!S71_A5CapexCode,$AD:$AD)","v":0},{"$f":"SUMIFS(Sheet1!S71_PYearAmount,Sheet1!S71_SA34Code,$AC:$AC,Sheet1!S71_A5CapexCode,$AD:$AD)","v":0},{"$f":"SUMIFS(Sheet1!S71_OriginalBudAmnt,Sheet1!S71_SA34Code,$AC:$AC,Sheet1!S71_A5CapexCode,$AD:$AD)","v":0},{"$f":"SUMIFS(Sheet1!S71_AdjustmentBudAmnt,Sheet1!S71_SA34Code,$AC:$AC,Sheet1!S71_A5CapexCode,$AD:$AD)","v":0},{"$f":"SUMIFS(Sheet1!S71_AdjustmentBudAmnt,Sheet1!S71_SA34Code,$AC:$AC,Sheet1!S71_A5CapexCode,$AD:$AD)","v":0},{"$f":"SUMIFS(Sheet1!S71_ASBudgetAmount,Sheet1!S71_SA34Code,$AC:$AC,Sheet1!S71_A5CapexCode,$AD:$AD)","v":0},{"$f":"SUMIFS(Sheet1!S71_OY1BudgetAmount,Sheet1!S71_SA34Code,$AC:$AC,Sheet1!S71_A5CapexCode,$AD:$AD)","v":0},{"$f":"SUMIFS(Sheet1!S71_OY2BudgetAmount,Sheet1!S71_SA34Code,$AC:$AC,Sheet1!S71_A5CapexCode,$AD:$AD)","v":0},null,null,null,null,null,null,null,null,null,null,null,null,null,null,null,null,null,"0900","CE"]
["Parks",null,{"$f":"SUMIFS(Sheet1!S71_PPPYearAmount,Sheet1!S71_SA34Code,$AC:$AC,Sheet1!S71_A5CapexCode,$AD:$AD)","v":0},{"$f":"SUMIFS(Sheet1!S71_PPYearAmount,Sheet1!S71_SA34Code,$AC:$AC,Sheet1!S71_A5CapexCode,$AD:$AD)","v":0},{"$f":"SUMIFS(Sheet1!S71_PYearAmount,Sheet1!S71_SA34Code,$AC:$AC,Sheet1!S71_A5CapexCode,$AD:$AD)","v":0},{"$f":"SUMIFS(Sheet1!S71_OriginalBudAmnt,Sheet1!S71_SA34Code,$AC:$AC,Sheet1!S71_A5CapexCode,$AD:$AD)","v":0},{"$f":"SUMIFS(Sheet1!S71_AdjustmentBudAmnt,Sheet1!S71_SA34Code,$AC:$AC,Sheet1!S71_A5CapexCode,$AD:$AD)","v":0},{"$f":"SUMIFS(Sheet1!S71_AdjustmentBudAmnt,Sheet1!S71_SA34Code,$AC:$AC,Sheet1!S71_A5CapexCode,$AD:$AD)","v":0},{"$f":"SUMIFS(Sheet1!S71_ASBudgetAmount,Sheet1!S71_SA34Code,$AC:$AC,Sheet1!S71_A5CapexCode,$AD:$AD)","v":0},{"$f":"SUMIFS(Sheet1!S71_OY1BudgetAmount,Sheet1!S71_SA34Code,$AC:$AC,Sheet1!S71_A5CapexCode,$AD:$AD)","v":0},{"$f":"SUMIFS(Sheet1!S71_OY2BudgetAmount,Sheet1!S71_SA34Code,$AC:$AC,Sheet1!S71_A5CapexCode,$AD:$AD)","v":0},null,null,null,null,null,null,null,null,null,null,null,null,null,null,null,null,null,"0910","CE"]
["Public Open Space",null,{"$f":"SUMIFS(Sheet1!S71_PPPYearAmount,Sheet1!S71_SA34Code,$AC:$AC,Sheet1!S71_A5CapexCode,$AD:$AD)","v":0},{"$f":"SUMIFS(Sheet1!S71_PPYearAmount,Sheet1!S71_SA34Code,$AC:$AC,Sheet1!S71_A5CapexCode,$AD:$AD)","v":0},{"$f":"SUMIFS(Sheet1!S71_PYearAmount,Sheet1!S71_SA34Code,$AC:$AC,Sheet1!S71_A5CapexCode,$AD:$AD)","v":0},{"$f":"SUMIFS(Sheet1!S71_OriginalBudAmnt,Sheet1!S71_SA34Code,$AC:$AC,Sheet1!S71_A5CapexCode,$AD:$AD)","v":0},{"$f":"SUMIFS(Sheet1!S71_AdjustmentBudAmnt,Sheet1!S71_SA34Code,$AC:$AC,Sheet1!S71_A5CapexCode,$AD:$AD)","v":0},{"$f":"SUMIFS(Sheet1!S71_AdjustmentBudAmnt,Sheet1!S71_SA34Code,$AC:$AC,Sheet1!S71_A5CapexCode,$AD:$AD)","v":0},{"$f":"SUMIFS(Sheet1!S71_ASBudgetAmount,Sheet1!S71_SA34Code,$AC:$AC,Sheet1!S71_A5CapexCode,$AD:$AD)","v":0},{"$f":"SUMIFS(Sheet1!S71_OY1BudgetAmount,Sheet1!S71_SA34Code,$AC:$AC,Sheet1!S71_A5CapexCode,$AD:$AD)","v":0},{"$f":"SUMIFS(Sheet1!S71_OY2BudgetAmount,Sheet1!S71_SA34Code,$AC:$AC,Sheet1!S71_A5CapexCode,$AD:$AD)","v":0},null,null,null,null,null,null,null,null,null,null,null,null,null,null,null,null,null,"0920","CE"]
["Nature Reserves",null,{"$f":"SUMIFS(Sheet1!S71_PPPYearAmount,Sheet1!S71_SA34Code,$AC:$AC,Sheet1!S71_A5CapexCode,$AD:$AD)","v":0},{"$f":"SUMIFS(Sheet1!S71_PPYearAmount,Sheet1!S71_SA34Code,$AC:$AC,Sheet1!S71_A5CapexCode,$AD:$AD)","v":0},{"$f":"SUMIFS(Sheet1!S71_PYearAmount,Sheet1!S71_SA34Code,$AC:$AC,Sheet1!S71_A5CapexCode,$AD:$AD)","v":0},{"$f":"SUMIFS(Sheet1!S71_OriginalBudAmnt,Sheet1!S71_SA34Code,$AC:$AC,Sheet1!S71_A5CapexCode,$AD:$AD)","v":0},{"$f":"SUMIFS(Sheet1!S71_AdjustmentBudAmnt,Sheet1!S71_SA34Code,$AC:$AC,Sheet1!S71_A5CapexCode,$AD:$AD)","v":0},{"$f":"SUMIFS(Sheet1!S71_AdjustmentBudAmnt,Sheet1!S71_SA34Code,$AC:$AC,Sheet1!S71_A5CapexCode,$AD:$AD)","v":0},{"$f":"SUMIFS(Sheet1!S71_ASBudgetAmount,Sheet1!S71_SA34Code,$AC:$AC,Sheet1!S71_A5CapexCode,$AD:$AD)","v":0},{"$f":"SUMIFS(Sheet1!S71_OY1BudgetAmount,Sheet1!S71_SA34Code,$AC:$AC,Sheet1!S71_A5CapexCode,$AD:$AD)","v":0},{"$f":"SUMIFS(Sheet1!S71_OY2BudgetAmount,Sheet1!S71_SA34Code,$AC:$AC,Sheet1!S71_A5CapexCode,$AD:$AD)","v":0},null,null,null,null,null,null,null,null,null,null,null,null,null,null,null,null,null,"0930","CE"]
["Public Ablution Facilities",null,{"$f":"SUMIFS(Sheet1!S71_PPPYearAmount,Sheet1!S71_SA34Code,$AC:$AC,Sheet1!S71_A5CapexCode,$AD:$AD)","v":0},{"$f":"SUMIFS(Sheet1!S71_PPYearAmount,Sheet1!S71_SA34Code,$AC:$AC,Sheet1!S71_A5CapexCode,$AD:$AD)","v":0},{"$f":"SUMIFS(Sheet1!S71_PYearAmount,Sheet1!S71_SA34Code,$AC:$AC,Sheet1!S71_A5CapexCode,$AD:$AD)","v":0},{"$f":"SUMIFS(Sheet1!S71_OriginalBudAmnt,Sheet1!S71_SA34Code,$AC:$AC,Sheet1!S71_A5CapexCode,$AD:$AD)","v":0},{"$f":"SUMIFS(Sheet1!S71_AdjustmentBudAmnt,Sheet1!S71_SA34Code,$AC:$AC,Sheet1!S71_A5CapexCode,$AD:$AD)","v":0},{"$f":"SUMIFS(Sheet1!S71_AdjustmentBudAmnt,Sheet1!S71_SA34Code,$AC:$AC,Sheet1!S71_A5CapexCode,$AD:$AD)","v":0},{"$f":"SUMIFS(Sheet1!S71_ASBudgetAmount,Sheet1!S71_SA34Code,$AC:$AC,Sheet1!S71_A5CapexCode,$AD:$AD)","v":0},{"$f":"SUMIFS(Sheet1!S71_OY1BudgetAmount,Sheet1!S71_SA34Code,$AC:$AC,Sheet1!S71_A5CapexCode,$AD:$AD)","v":0},{"$f":"SUMIFS(Sheet1!S71_OY2BudgetAmount,Sheet1!S71_SA34Code,$AC:$AC,Sheet1!S71_A5CapexCode,$AD:$AD)","v":0},null,null,null,null,null,null,null,null,null,null,null,null,null,null,null,null,null,"0940","CE"]
["Markets",null,{"$f":"SUMIFS(Sheet1!S71_PPPYearAmount,Sheet1!S71_SA34Code,$AC:$AC,Sheet1!S71_A5CapexCode,$AD:$AD)","v":0},{"$f":"SUMIFS(Sheet1!S71_PPYearAmount,Sheet1!S71_SA34Code,$AC:$AC,Sheet1!S71_A5CapexCode,$AD:$AD)","v":0},{"$f":"SUMIFS(Sheet1!S71_PYearAmount,Sheet1!S71_SA34Code,$AC:$AC,Sheet1!S71_A5CapexCode,$AD:$AD)","v":0},{"$f":"SUMIFS(Sheet1!S71_OriginalBudAmnt,Sheet1!S71_SA34Code,$AC:$AC,Sheet1!S71_A5CapexCode,$AD:$AD)","v":0},{"$f":"SUMIFS(Sheet1!S71_AdjustmentBudAmnt,Sheet1!S71_SA34Code,$AC:$AC,Sheet1!S71_A5CapexCode,$AD:$AD)","v":0},{"$f":"SUMIFS(Sheet1!S71_AdjustmentBudAmnt,Sheet1!S71_SA34Code,$AC:$AC,Sheet1!S71_A5CapexCode,$AD:$AD)","v":0},{"$f":"SUMIFS(Sheet1!S71_ASBudgetAmount,Sheet1!S71_SA34Code,$AC:$AC,Sheet1!S71_A5CapexCode,$AD:$AD)","v":0},{"$f":"SUMIFS(Sheet1!S71_OY1BudgetAmount,Sheet1!S71_SA34Code,$AC:$AC,Sheet1!S71_A5CapexCode,$AD:$AD)","v":0},{"$f":"SUMIFS(Sheet1!S71_OY2BudgetAmount,Sheet1!S71_SA34Code,$AC:$AC,Sheet1!S71_A5CapexCode,$AD:$AD)","v":0},null,null,null,null,null,null,null,null,null,null,null,null,null,null,null,null,null,"0950","CE"]
["Stalls",null,{"$f":"SUMIFS(Sheet1!S71_PPPYearAmount,Sheet1!S71_SA34Code,$AC:$AC,Sheet1!S71_A5CapexCode,$AD:$AD)","v":0},{"$f":"SUMIFS(Sheet1!S71_PPYearAmount,Sheet1!S71_SA34Code,$AC:$AC,Sheet1!S71_A5CapexCode,$AD:$AD)","v":0},{"$f":"SUMIFS(Sheet1!S71_PYearAmount,Sheet1!S71_SA34Code,$AC:$AC,Sheet1!S71_A5CapexCode,$AD:$AD)","v":0},{"$f":"SUMIFS(Sheet1!S71_OriginalBudAmnt,Sheet1!S71_SA34Code,$AC:$AC,Sheet1!S71_A5CapexCode,$AD:$AD)","v":0},{"$f":"SUMIFS(Sheet1!S71_AdjustmentBudAmnt,Sheet1!S71_SA34Code,$AC:$AC,Sheet1!S71_A5CapexCode,$AD:$AD)","v":0},{"$f":"SUMIFS(Sheet1!S71_AdjustmentBudAmnt,Sheet1!S71_SA34Code,$AC:$AC,Sheet1!S71_A5CapexCode,$AD:$AD)","v":0},{"$f":"SUMIFS(Sheet1!S71_ASBudgetAmount,Sheet1!S71_SA34Code,$AC:$AC,Sheet1!S71_A5CapexCode,$AD:$AD)","v":0},{"$f":"SUMIFS(Sheet1!S71_OY1BudgetAmount,Sheet1!S71_SA34Code,$AC:$AC,Sheet1!S71_A5CapexCode,$AD:$AD)","v":0},{"$f":"SUMIFS(Sheet1!S71_OY2BudgetAmount,Sheet1!S71_SA34Code,$AC:$AC,Sheet1!S71_A5CapexCode,$AD:$AD)","v":0},null,null,null,null,null,null,null,null,null,null,null,null,null,null,null,null,null,"0960","CE"]
["Abattoirs",null,{"$f":"SUMIFS(Sheet1!S71_PPPYearAmount,Sheet1!S71_SA34Code,$AC:$AC,Sheet1!S71_A5CapexCode,$AD:$AD)","v":0},{"$f":"SUMIFS(Sheet1!S71_PPYearAmount,Sheet1!S71_SA34Code,$AC:$AC,Sheet1!S71_A5CapexCode,$AD:$AD)","v":0},{"$f":"SUMIFS(Sheet1!S71_PYearAmount,Sheet1!S71_SA34Code,$AC:$AC,Sheet1!S71_A5CapexCode,$AD:$AD)","v":0},{"$f":"SUMIFS(Sheet1!S71_OriginalBudAmnt,Sheet1!S71_SA34Code,$AC:$AC,Sheet1!S71_A5CapexCode,$AD:$AD)","v":0},{"$f":"SUMIFS(Sheet1!S71_AdjustmentBudAmnt,Sheet1!S71_SA34Code,$AC:$AC,Sheet1!S71_A5CapexCode,$AD:$AD)","v":0},{"$f":"SUMIFS(Sheet1!S71_AdjustmentBudAmnt,Sheet1!S71_SA34Code,$AC:$AC,Sheet1!S71_A5CapexCode,$AD:$AD)","v":0},{"$f":"SUMIFS(Sheet1!S71_ASBudgetAmount,Sheet1!S71_SA34Code,$AC:$AC,Sheet1!S71_A5CapexCode,$AD:$AD)","v":0},{"$f":"SUMIFS(Sheet1!S71_OY1BudgetAmount,Sheet1!S71_SA34Code,$AC:$AC,Sheet1!S71_A5CapexCode,$AD:$AD)","v":0},{"$f":"SUMIFS(Sheet1!S71_OY2BudgetAmount,Sheet1!S71_SA34Code,$AC:$AC,Sheet1!S71_A5CapexCode,$AD:$AD)","v":0},null,null,null,null,null,null,null,null,null,null,null,null,null,null,null,null,null,"0970","CE"]
["Airports",null,{"$f":"SUMIFS(Sheet1!S71_PPPYearAmount,Sheet1!S71_SA34Code,$AC:$AC,Sheet1!S71_A5CapexCode,$AD:$AD)","v":0},{"$f":"SUMIFS(Sheet1!S71_PPYearAmount,Sheet1!S71_SA34Code,$AC:$AC,Sheet1!S71_A5CapexCode,$AD:$AD)","v":0},{"$f":"SUMIFS(Sheet1!S71_PYearAmount,Sheet1!S71_SA34Code,$AC:$AC,Sheet1!S71_A5CapexCode,$AD:$AD)","v":0},{"$f":"SUMIFS(Sheet1!S71_OriginalBudAmnt,Sheet1!S71_SA34Code,$AC:$AC,Sheet1!S71_A5CapexCode,$AD:$AD)","v":0},{"$f":"SUMIFS(Sheet1!S71_AdjustmentBudAmnt,Sheet1!S71_SA34Code,$AC:$AC,Sheet1!S71_A5CapexCode,$AD:$AD)","v":0},{"$f":"SUMIFS(Sheet1!S71_AdjustmentBudAmnt,Sheet1!S71_SA34Code,$AC:$AC,Sheet1!S71_A5CapexCode,$AD:$AD)","v":0},{"$f":"SUMIFS(Sheet1!S71_ASBudgetAmount,Sheet1!S71_SA34Code,$AC:$AC,Sheet1!S71_A5CapexCode,$AD:$AD)","v":0},{"$f":"SUMIFS(Sheet1!S71_OY1BudgetAmount,Sheet1!S71_SA34Code,$AC:$AC,Sheet1!S71_A5CapexCode,$AD:$AD)","v":0},{"$f":"SUMIFS(Sheet1!S71_OY2BudgetAmount,Sheet1!S71_SA34Code,$AC:$AC,Sheet1!S71_A5CapexCode,$AD:$AD)","v":0},null,null,null,null,null,null,null,null,null,null,null,null,null,null,null,null,null,"0980","CE"]
["Taxi Ranks/Bus Terminals",null,{"$f":"SUMIFS(Sheet1!S71_PPPYearAmount,Sheet1!S71_SA34Code,$AC:$AC,Sheet1!S71_A5CapexCode,$AD:$AD)","v":0},{"$f":"SUMIFS(Sheet1!S71_PPYearAmount,Sheet1!S71_SA34Code,$AC:$AC,Sheet1!S71_A5CapexCode,$AD:$AD)","v":0},{"$f":"SUMIFS(Sheet1!S71_PYearAmount,Sheet1!S71_SA34Code,$AC:$AC,Sheet1!S71_A5CapexCode,$AD:$AD)","v":0},{"$f":"SUMIFS(Sheet1!S71_OriginalBudAmnt,Sheet1!S71_SA34Code,$AC:$AC,Sheet1!S71_A5CapexCode,$AD:$AD)","v":0},{"$f":"SUMIFS(Sheet1!S71_AdjustmentBudAmnt,Sheet1!S71_SA34Code,$AC:$AC,Sheet1!S71_A5CapexCode,$AD:$AD)","v":0},{"$f":"SUMIFS(Sheet1!S71_AdjustmentBudAmnt,Sheet1!S71_SA34Code,$AC:$AC,Sheet1!S71_A5CapexCode,$AD:$AD)","v":0},{"$f":"SUMIFS(Sheet1!S71_ASBudgetAmount,Sheet1!S71_SA34Code,$AC:$AC,Sheet1!S71_A5CapexCode,$AD:$AD)","v":0},{"$f":"SUMIFS(Sheet1!S71_OY1BudgetAmount,Sheet1!S71_SA34Code,$AC:$AC,Sheet1!S71_A5CapexCode,$AD:$AD)","v":0},{"$f":"SUMIFS(Sheet1!S71_OY2BudgetAmount,Sheet1!S71_SA34Code,$AC:$AC,Sheet1!S71_A5CapexCode,$AD:$AD)","v":0},null,null,null,null,null,null,null,null,null,null,null,null,null,null,null,null,null,"0990","CE"]
["Capital Spares",null,{"$f":"SUMIFS(Sheet1!S71_PPPYearAmount,Sheet1!S71_SA34Code,$AC:$AC,Sheet1!S71_A5CapexCode,$AD:$AD)","v":0},{"$f":"SUMIFS(Sheet1!S71_PPYearAmount,Sheet1!S71_SA34Code,$AC:$AC,Sheet1!S71_A5CapexCode,$AD:$AD)","v":0},{"$f":"SUMIFS(Sheet1!S71_PYearAmount,Sheet1!S71_SA34Code,$AC:$AC,Sheet1!S71_A5CapexCode,$AD:$AD)","v":0},{"$f":"SUMIFS(Sheet1!S71_OriginalBudAmnt,Sheet1!S71_SA34Code,$AC:$AC,Sheet1!S71_A5CapexCode,$AD:$AD)","v":0},{"$f":"SUMIFS(Sheet1!S71_AdjustmentBudAmnt,Sheet1!S71_SA34Code,$AC:$AC,Sheet1!S71_A5CapexCode,$AD:$AD)","v":0},{"$f":"SUMIFS(Sheet1!S71_AdjustmentBudAmnt,Sheet1!S71_SA34Code,$AC:$AC,Sheet1!S71_A5CapexCode,$AD:$AD)","v":0},{"$f":"SUMIFS(Sheet1!S71_ASBudgetAmount,Sheet1!S71_SA34Code,$AC:$AC,Sheet1!S71_A5CapexCode,$AD:$AD)","v":0},{"$f":"SUMIFS(Sheet1!S71_OY1BudgetAmount,Sheet1!S71_SA34Code,$AC:$AC,Sheet1!S71_A5CapexCode,$AD:$AD)","v":0},{"$f":"SUMIFS(Sheet1!S71_OY2BudgetAmount,Sheet1!S71_SA34Code,$AC:$AC,Sheet1!S71_A5CapexCode,$AD:$AD)","v":0},null,null,null,null,null,null,null,null,null,null,null,null,null,null,null,null,null,"1000","CE"]
["Sport and Recreation Facilities",null,{"$f":"SUM(C99:C101)","v":0},{"$f":"SUM(D99:D101)","v":0},0,0,0,0,0,0,0,null,null,null,null,null,null,null,null,null,null,null,null,null,null,null,null,null,null,"CE"]
["Indoor Facilities",null,{"$f":"SUMIFS(Sheet1!S71_PPPYearAmount,Sheet1!S71_SA34Code,$AC:$AC,Sheet1!S71_A5CapexCode,$AD:$AD)","v":0},{"$f":"SUMIFS(Sheet1!S71_PPYearAmount,Sheet1!S71_SA34Code,$AC:$AC,Sheet1!S71_A5CapexCode,$AD:$AD)","v":0},{"$f":"SUMIFS(Sheet1!S71_PYearAmount,Sheet1!S71_SA34Code,$AC:$AC,Sheet1!S71_A5CapexCode,$AD:$AD)","v":0},{"$f":"SUMIFS(Sheet1!S71_OriginalBudAmnt,Sheet1!S71_SA34Code,$AC:$AC,Sheet1!S71_A5CapexCode,$AD:$AD)","v":0},{"$f":"SUMIFS(Sheet1!S71_AdjustmentBudAmnt,Sheet1!S71_SA34Code,$AC:$AC,Sheet1!S71_A5CapexCode,$AD:$AD)","v":0},{"$f":"SUMIFS(Sheet1!S71_AdjustmentBudAmnt,Sheet1!S71_SA34Code,$AC:$AC,Sheet1!S71_A5CapexCode,$AD:$AD)","v":0},{"$f":"SUMIFS(Sheet1!S71_ASBudgetAmount,Sheet1!S71_SA34Code,$AC:$AC,Sheet1!S71_A5CapexCode,$AD:$AD)","v":0},{"$f":"SUMIFS(Sheet1!S71_OY1BudgetAmount,Sheet1!S71_SA34Code,$AC:$AC,Sheet1!S71_A5CapexCode,$AD:$AD)","v":0},{"$f":"SUMIFS(Sheet1!S71_OY2BudgetAmount,Sheet1!S71_SA34Code,$AC:$AC,Sheet1!S71_A5CapexCode,$AD:$AD)","v":0},null,null,null,null,null,null,null,null,null,null,null,null,null,null,null,null,null,"1020","CE"]
["Outdoor Facilities",null,{"$f":"SUMIFS(Sheet1!S71_PPPYearAmount,Sheet1!S71_SA34Code,$AC:$AC,Sheet1!S71_A5CapexCode,$AD:$AD)","v":0},{"$f":"SUMIFS(Sheet1!S71_PPYearAmount,Sheet1!S71_SA34Code,$AC:$AC,Sheet1!S71_A5CapexCode,$AD:$AD)","v":0},{"$f":"SUMIFS(Sheet1!S71_PYearAmount,Sheet1!S71_SA34Code,$AC:$AC,Sheet1!S71_A5CapexCode,$AD:$AD)","v":0},{"$f":"SUMIFS(Sheet1!S71_OriginalBudAmnt,Sheet1!S71_SA34Code,$AC:$AC,Sheet1!S71_A5CapexCode,$AD:$AD)","v":0},{"$f":"SUMIFS(Sheet1!S71_AdjustmentBudAmnt,Sheet1!S71_SA34Code,$AC:$AC,Sheet1!S71_A5CapexCode,$AD:$AD)","v":0},{"$f":"SUMIFS(Sheet1!S71_AdjustmentBudAmnt,Sheet1!S71_SA34Code,$AC:$AC,Sheet1!S71_A5CapexCode,$AD:$AD)","v":0},{"$f":"SUMIFS(Sheet1!S71_ASBudgetAmount,Sheet1!S71_SA34Code,$AC:$AC,Sheet1!S71_A5CapexCode,$AD:$AD)","v":0},{"$f":"SUMIFS(Sheet1!S71_OY1BudgetAmount,Sheet1!S71_SA34Code,$AC:$AC,Sheet1!S71_A5CapexCode,$AD:$AD)","v":0},{"$f":"SUMIFS(Sheet1!S71_OY2BudgetAmount,Sheet1!S71_SA34Code,$AC:$AC,Sheet1!S71_A5CapexCode,$AD:$AD)","v":0},null,null,null,null,null,null,null,null,null,null,null,null,null,null,null,null,null,"1030","CE"]
["Capital Spares",null,{"$f":"SUMIFS(Sheet1!S71_PPPYearAmount,Sheet1!S71_SA34Code,$AC:$AC,Sheet1!S71_A5CapexCode,$AD:$AD)","v":0},{"$f":"SUMIFS(Sheet1!S71_PPYearAmount,Sheet1!S71_SA34Code,$AC:$AC,Sheet1!S71_A5CapexCode,$AD:$AD)","v":0},{"$f":"SUMIFS(Sheet1!S71_PYearAmount,Sheet1!S71_SA34Code,$AC:$AC,Sheet1!S71_A5CapexCode,$AD:$AD)","v":0},{"$f":"SUMIFS(Sheet1!S71_OriginalBudAmnt,Sheet1!S71_SA34Code,$AC:$AC,Sheet1!S71_A5CapexCode,$AD:$AD)","v":0},{"$f":"SUMIFS(Sheet1!S71_AdjustmentBudAmnt,Sheet1!S71_SA34Code,$AC:$AC,Sheet1!S71_A5CapexCode,$AD:$AD)","v":0},{"$f":"SUMIFS(Sheet1!S71_AdjustmentBudAmnt,Sheet1!S71_SA34Code,$AC:$AC,Sheet1!S71_A5CapexCode,$AD:$AD)","v":0},{"$f":"SUMIFS(Sheet1!S71_ASBudgetAmount,Sheet1!S71_SA34Code,$AC:$AC,Sheet1!S71_A5CapexCode,$AD:$AD)","v":0},{"$f":"SUMIFS(Sheet1!S71_OY1BudgetAmount,Sheet1!S71_SA34Code,$AC:$AC,Sheet1!S71_A5CapexCode,$AD:$AD)","v":0},{"$f":"SUMIFS(Sheet1!S71_OY2BudgetAmount,Sheet1!S71_SA34Code,$AC:$AC,Sheet1!S71_A5CapexCode,$AD:$AD)","v":0},null,null,null,null,null,null,null,null,null,null,null,null,null,null,null,null,null,"1040","CE"]
[null,null,null,null,null,null,null,null,null,null,null,null,null,null,null,null,null,null,null,null,null,null,null,null,null,null,null,null,null,"CE"]
["Heritage assets",null,{"$f":"SUM(C104:C108)","v":0},{"$f":"SUM(D104:D108)","v":0},0,0,0,0,0,0,0,null,null,null,null,null,null,null,null,null,null,null,null,null,null,null,null,null,null,"CE"]
["Monuments",null,{"$f":"SUMIFS(Sheet1!S71_PPPYearAmount,Sheet1!S71_SA34Code,$AC:$AC,Sheet1!S71_A5CapexCode,$AD:$AD)","v":0},{"$f":"SUMIFS(Sheet1!S71_PPYearAmount,Sheet1!S71_SA34Code,$AC:$AC,Sheet1!S71_A5CapexCode,$AD:$AD)","v":0},{"$f":"SUMIFS(Sheet1!S71_PYearAmount,Sheet1!S71_SA34Code,$AC:$AC,Sheet1!S71_A5CapexCode,$AD:$AD)","v":0},{"$f":"SUMIFS(Sheet1!S71_OriginalBudAmnt,Sheet1!S71_SA34Code,$AC:$AC,Sheet1!S71_A5CapexCode,$AD:$AD)","v":0},{"$f":"SUMIFS(Sheet1!S71_AdjustmentBudAmnt,Sheet1!S71_SA34Code,$AC:$AC,Sheet1!S71_A5CapexCode,$AD:$AD)","v":0},{"$f":"SUMIFS(Sheet1!S71_AdjustmentBudAmnt,Sheet1!S71_SA34Code,$AC:$AC,Sheet1!S71_A5CapexCode,$AD:$AD)","v":0},{"$f":"SUMIFS(Sheet1!S71_ASBudgetAmount,Sheet1!S71_SA34Code,$AC:$AC,Sheet1!S71_A5CapexCode,$AD:$AD)","v":0},{"$f":"SUMIFS(Sheet1!S71_OY1BudgetAmount,Sheet1!S71_SA34Code,$AC:$AC,Sheet1!S71_A5CapexCode,$AD:$AD)","v":0},{"$f":"SUMIFS(Sheet1!S71_OY2BudgetAmount,Sheet1!S71_SA34Code,$AC:$AC,Sheet1!S71_A5CapexCode,$AD:$AD)","v":0},null,null,null,null,null,null,null,null,null,null,null,null,null,null,null,null,null,"1060","CE"]
["Historic Buildings",null,{"$f":"SUMIFS(Sheet1!S71_PPPYearAmount,Sheet1!S71_SA34Code,$AC:$AC,Sheet1!S71_A5CapexCode,$AD:$AD)","v":0},{"$f":"SUMIFS(Sheet1!S71_PPYearAmount,Sheet1!S71_SA34Code,$AC:$AC,Sheet1!S71_A5CapexCode,$AD:$AD)","v":0},{"$f":"SUMIFS(Sheet1!S71_PYearAmount,Sheet1!S71_SA34Code,$AC:$AC,Sheet1!S71_A5CapexCode,$AD:$AD)","v":0},{"$f":"SUMIFS(Sheet1!S71_OriginalBudAmnt,Sheet1!S71_SA34Code,$AC:$AC,Sheet1!S71_A5CapexCode,$AD:$AD)","v":0},{"$f":"SUMIFS(Sheet1!S71_AdjustmentBudAmnt,Sheet1!S71_SA34Code,$AC:$AC,Sheet1!S71_A5CapexCode,$AD:$AD)","v":0},{"$f":"SUMIFS(Sheet1!S71_AdjustmentBudAmnt,Sheet1!S71_SA34Code,$AC:$AC,Sheet1!S71_A5CapexCode,$AD:$AD)","v":0},{"$f":"SUMIFS(Sheet1!S71_ASBudgetAmount,Sheet1!S71_SA34Code,$AC:$AC,Sheet1!S71_A5CapexCode,$AD:$AD)","v":0},{"$f":"SUMIFS(Sheet1!S71_OY1BudgetAmount,Sheet1!S71_SA34Code,$AC:$AC,Sheet1!S71_A5CapexCode,$AD:$AD)","v":0},{"$f":"SUMIFS(Sheet1!S71_OY2BudgetAmount,Sheet1!S71_SA34Code,$AC:$AC,Sheet1!S71_A5CapexCode,$AD:$AD)","v":0},null,null,null,null,null,null,null,null,null,null,null,null,null,null,null,null,null,"1070","CE"]
["Works of Art",null,{"$f":"SUMIFS(Sheet1!S71_PPPYearAmount,Sheet1!S71_SA34Code,$AC:$AC,Sheet1!S71_A5CapexCode,$AD:$AD)","v":0},{"$f":"SUMIFS(Sheet1!S71_PPYearAmount,Sheet1!S71_SA34Code,$AC:$AC,Sheet1!S71_A5CapexCode,$AD:$AD)","v":0},{"$f":"SUMIFS(Sheet1!S71_PYearAmount,Sheet1!S71_SA34Code,$AC:$AC,Sheet1!S71_A5CapexCode,$AD:$AD)","v":0},{"$f":"SUMIFS(Sheet1!S71_OriginalBudAmnt,Sheet1!S71_SA34Code,$AC:$AC,Sheet1!S71_A5CapexCode,$AD:$AD)","v":0},{"$f":"SUMIFS(Sheet1!S71_AdjustmentBudAmnt,Sheet1!S71_SA34Code,$AC:$AC,Sheet1!S71_A5CapexCode,$AD:$AD)","v":0},{"$f":"SUMIFS(Sheet1!S71_AdjustmentBudAmnt,Sheet1!S71_SA34Code,$AC:$AC,Sheet1!S71_A5CapexCode,$AD:$AD)","v":0},{"$f":"SUMIFS(Sheet1!S71_ASBudgetAmount,Sheet1!S71_SA34Code,$AC:$AC,Sheet1!S71_A5CapexCode,$AD:$AD)","v":0},{"$f":"SUMIFS(Sheet1!S71_OY1BudgetAmount,Sheet1!S71_SA34Code,$AC:$AC,Sheet1!S71_A5CapexCode,$AD:$AD)","v":0},{"$f":"SUMIFS(Sheet1!S71_OY2BudgetAmount,Sheet1!S71_SA34Code,$AC:$AC,Sheet1!S71_A5CapexCode,$AD:$AD)","v":0},null,null,null,null,null,null,null,null,null,null,null,null,null,null,null,null,null,"1080","CE"]
["Conservation Areas",null,{"$f":"SUMIFS(Sheet1!S71_PPPYearAmount,Sheet1!S71_SA34Code,$AC:$AC,Sheet1!S71_A5CapexCode,$AD:$AD)","v":0},{"$f":"SUMIFS(Sheet1!S71_PPYearAmount,Sheet1!S71_SA34Code,$AC:$AC,Sheet1!S71_A5CapexCode,$AD:$AD)","v":0},{"$f":"SUMIFS(Sheet1!S71_PYearAmount,Sheet1!S71_SA34Code,$AC:$AC,Sheet1!S71_A5CapexCode,$AD:$AD)","v":0},{"$f":"SUMIFS(Sheet1!S71_OriginalBudAmnt,Sheet1!S71_SA34Code,$AC:$AC,Sheet1!S71_A5CapexCode,$AD:$AD)","v":0},{"$f":"SUMIFS(Sheet1!S71_AdjustmentBudAmnt,Sheet1!S71_SA34Code,$AC:$AC,Sheet1!S71_A5CapexCode,$AD:$AD)","v":0},{"$f":"SUMIFS(Sheet1!S71_AdjustmentBudAmnt,Sheet1!S71_SA34Code,$AC:$AC,Sheet1!S71_A5CapexCode,$AD:$AD)","v":0},{"$f":"SUMIFS(Sheet1!S71_ASBudgetAmount,Sheet1!S71_SA34Code,$AC:$AC,Sheet1!S71_A5CapexCode,$AD:$AD)","v":0},{"$f":"SUMIFS(Sheet1!S71_OY1BudgetAmount,Sheet1!S71_SA34Code,$AC:$AC,Sheet1!S71_A5CapexCode,$AD:$AD)","v":0},{"$f":"SUMIFS(Sheet1!S71_OY2BudgetAmount,Sheet1!S71_SA34Code,$AC:$AC,Sheet1!S71_A5CapexCode,$AD:$AD)","v":0},null,null,null,null,null,null,null,null,null,null,null,null,null,null,null,null,null,"1090","CE"]
["Other Heritage",null,{"$f":"SUMIFS(Sheet1!S71_PPPYearAmount,Sheet1!S71_SA34Code,$AC:$AC,Sheet1!S71_A5CapexCode,$AD:$AD)","v":0},{"$f":"SUMIFS(Sheet1!S71_PPYearAmount,Sheet1!S71_SA34Code,$AC:$AC,Sheet1!S71_A5CapexCode,$AD:$AD)","v":0},{"$f":"SUMIFS(Sheet1!S71_PYearAmount,Sheet1!S71_SA34Code,$AC:$AC,Sheet1!S71_A5CapexCode,$AD:$AD)","v":0},{"$f":"SUMIFS(Sheet1!S71_OriginalBudAmnt,Sheet1!S71_SA34Code,$AC:$AC,Sheet1!S71_A5CapexCode,$AD:$AD)","v":0},{"$f":"SUMIFS(Sheet1!S71_AdjustmentBudAmnt,Sheet1!S71_SA34Code,$AC:$AC,Sheet1!S71_A5CapexCode,$AD:$AD)","v":0},{"$f":"SUMIFS(Sheet1!S71_AdjustmentBudAmnt,Sheet1!S71_SA34Code,$AC:$AC,Sheet1!S71_A5CapexCode,$AD:$AD)","v":0},{"$f":"SUMIFS(Sheet1!S71_ASBudgetAmount,Sheet1!S71_SA34Code,$AC:$AC,Sheet1!S71_A5CapexCode,$AD:$AD)","v":0},{"$f":"SUMIFS(Sheet1!S71_OY1BudgetAmount,Sheet1!S71_SA34Code,$AC:$AC,Sheet1!S71_A5CapexCode,$AD:$AD)","v":0},{"$f":"SUMIFS(Sheet1!S71_OY2BudgetAmount,Sheet1!S71_SA34Code,$AC:$AC,Sheet1!S71_A5CapexCode,$AD:$AD)","v":0},null,null,null,null,null,null,null,null,null,null,null,null,null,null,null,null,null,"1100","CE"]
[null,null,null,null,null,null,null,null,null,null,null,null,null,null,null,null,null,null,null,null,null,null,null,null,null,null,null,null,null,"CE"]
["Investment properties",null,{"$f":"+C111+C114","v":0},{"$f":"+D111+D114","v":0},0,0,0,0,0,0,0,null,null,null,null,null,null,null,null,null,null,null,null,null,null,null,null,null,null,"CE"]
["Revenue Generating",null,{"$f":"SUM(C112:C113)","v":0},0,0,0,0,0,0,0,0,null,null,null,null,null,null,null,null,null,null,null,null,null,null,null,null,null,null,"CE"]
["Improved Property",null,{"$f":"SUMIFS(Sheet1!S71_PPPYearAmount,Sheet1!S71_SA34Code,$AC:$AC,Sheet1!S71_A5CapexCode,$AD:$AD)","v":0},{"$f":"SUMIFS(Sheet1!S71_PPYearAmount,Sheet1!S71_SA34Code,$AC:$AC,Sheet1!S71_A5CapexCode,$AD:$AD)","v":0},{"$f":"SUMIFS(Sheet1!S71_PYearAmount,Sheet1!S71_SA34Code,$AC:$AC,Sheet1!S71_A5CapexCode,$AD:$AD)","v":0},{"$f":"SUMIFS(Sheet1!S71_OriginalBudAmnt,Sheet1!S71_SA34Code,$AC:$AC,Sheet1!S71_A5CapexCode,$AD:$AD)","v":0},{"$f":"SUMIFS(Sheet1!S71_AdjustmentBudAmnt,Sheet1!S71_SA34Code,$AC:$AC,Sheet1!S71_A5CapexCode,$AD:$AD)","v":0},{"$f":"SUMIFS(Sheet1!S71_AdjustmentBudAmnt,Sheet1!S71_SA34Code,$AC:$AC,Sheet1!S71_A5CapexCode,$AD:$AD)","v":0},{"$f":"SUMIFS(Sheet1!S71_ASBudgetAmount,Sheet1!S71_SA34Code,$AC:$AC,Sheet1!S71_A5CapexCode,$AD:$AD)","v":0},{"$f":"SUMIFS(Sheet1!S71_OY1BudgetAmount,Sheet1!S71_SA34Code,$AC:$AC,Sheet1!S71_A5CapexCode,$AD:$AD)","v":0},{"$f":"SUMIFS(Sheet1!S71_OY2BudgetAmount,Sheet1!S71_SA34Code,$AC:$AC,Sheet1!S71_A5CapexCode,$AD:$AD)","v":0},null,null,null,null,null,null,null,null,null,null,null,null,null,null,null,null,null,"1130","CE"]
["Unimproved Property",null,{"$f":"SUMIFS(Sheet1!S71_PPPYearAmount,Sheet1!S71_SA34Code,$AC:$AC,Sheet1!S71_A5CapexCode,$AD:$AD)","v":0},{"$f":"SUMIFS(Sheet1!S71_PPYearAmount,Sheet1!S71_SA34Code,$AC:$AC,Sheet1!S71_A5CapexCode,$AD:$AD)","v":0},{"$f":"SUMIFS(Sheet1!S71_PYearAmount,Sheet1!S71_SA34Code,$AC:$AC,Sheet1!S71_A5CapexCode,$AD:$AD)","v":0},{"$f":"SUMIFS(Sheet1!S71_OriginalBudAmnt,Sheet1!S71_SA34Code,$AC:$AC,Sheet1!S71_A5CapexCode,$AD:$AD)","v":0},{"$f":"SUMIFS(Sheet1!S71_AdjustmentBudAmnt,Sheet1!S71_SA34Code,$AC:$AC,Sheet1!S71_A5CapexCode,$AD:$AD)","v":0},{"$f":"SUMIFS(Sheet1!S71_AdjustmentBudAmnt,Sheet1!S71_SA34Code,$AC:$AC,Sheet1!S71_A5CapexCode,$AD:$AD)","v":0},{"$f":"SUMIFS(Sheet1!S71_ASBudgetAmount,Sheet1!S71_SA34Code,$AC:$AC,Sheet1!S71_A5CapexCode,$AD:$AD)","v":0},{"$f":"SUMIFS(Sheet1!S71_OY1BudgetAmount,Sheet1!S71_SA34Code,$AC:$AC,Sheet1!S71_A5CapexCode,$AD:$AD)","v":0},{"$f":"SUMIFS(Sheet1!S71_OY2BudgetAmount,Sheet1!S71_SA34Code,$AC:$AC,Sheet1!S71_A5CapexCode,$AD:$AD)","v":0},null,null,null,null,null,null,null,null,null,null,null,null,null,null,null,null,null,"1140","CE"]
["Non-revenue Generating",null,{"$f":"SUM(C115:C116)","v":0},{"$f":"SUM(D115:D116)","v":0},0,0,0,0,0,0,0,null,null,null,null,null,null,null,null,null,null,null,null,null,null,null,null,null,"4002","CE"]
["Improved Property",null,{"$f":"SUMIFS(Sheet1!S71_PPPYearAmount,Sheet1!S71_SA34Code,$AC:$AC,Sheet1!S71_A5CapexCode,$AD:$AD)","v":0},{"$f":"SUMIFS(Sheet1!S71_PPYearAmount,Sheet1!S71_SA34Code,$AC:$AC,Sheet1!S71_A5CapexCode,$AD:$AD)","v":0},{"$f":"SUMIFS(Sheet1!S71_PYearAmount,Sheet1!S71_SA34Code,$AC:$AC,Sheet1!S71_A5CapexCode,$AD:$AD)","v":0},{"$f":"SUMIFS(Sheet1!S71_OriginalBudAmnt,Sheet1!S71_SA34Code,$AC:$AC,Sheet1!S71_A5CapexCode,$AD:$AD)","v":0},{"$f":"SUMIFS(Sheet1!S71_AdjustmentBudAmnt,Sheet1!S71_SA34Code,$AC:$AC,Sheet1!S71_A5CapexCode,$AD:$AD)","v":0},{"$f":"SUMIFS(Sheet1!S71_AdjustmentBudAmnt,Sheet1!S71_SA34Code,$AC:$AC,Sheet1!S71_A5CapexCode,$AD:$AD)","v":0},{"$f":"SUMIFS(Sheet1!S71_ASBudgetAmount,Sheet1!S71_SA34Code,$AC:$AC,Sheet1!S71_A5CapexCode,$AD:$AD)","v":0},{"$f":"SUMIFS(Sheet1!S71_OY1BudgetAmount,Sheet1!S71_SA34Code,$AC:$AC,Sheet1!S71_A5CapexCode,$AD:$AD)","v":0},{"$f":"SUMIFS(Sheet1!S71_OY2BudgetAmount,Sheet1!S71_SA34Code,$AC:$AC,Sheet1!S71_A5CapexCode,$AD:$AD)","v":0},null,null,null,null,null,null,null,null,null,null,null,null,null,null,null,null,null,"1160","CE"]
["Unimproved Property",null,{"$f":"SUMIFS(Sheet1!S71_PPPYearAmount,Sheet1!S71_SA34Code,$AC:$AC,Sheet1!S71_A5CapexCode,$AD:$AD)","v":0},{"$f":"SUMIFS(Sheet1!S71_PPYearAmount,Sheet1!S71_SA34Code,$AC:$AC,Sheet1!S71_A5CapexCode,$AD:$AD)","v":0},{"$f":"SUMIFS(Sheet1!S71_PYearAmount,Sheet1!S71_SA34Code,$AC:$AC,Sheet1!S71_A5CapexCode,$AD:$AD)","v":0},{"$f":"SUMIFS(Sheet1!S71_OriginalBudAmnt,Sheet1!S71_SA34Code,$AC:$AC,Sheet1!S71_A5CapexCode,$AD:$AD)","v":0},{"$f":"SUMIFS(Sheet1!S71_AdjustmentBudAmnt,Sheet1!S71_SA34Code,$AC:$AC,Sheet1!S71_A5CapexCode,$AD:$AD)","v":0},{"$f":"SUMIFS(Sheet1!S71_AdjustmentBudAmnt,Sheet1!S71_SA34Code,$AC:$AC,Sheet1!S71_A5CapexCode,$AD:$AD)","v":0},{"$f":"SUMIFS(Sheet1!S71_ASBudgetAmount,Sheet1!S71_SA34Code,$AC:$AC,Sheet1!S71_A5CapexCode,$AD:$AD)","v":0},{"$f":"SUMIFS(Sheet1!S71_OY1BudgetAmount,Sheet1!S71_SA34Code,$AC:$AC,Sheet1!S71_A5CapexCode,$AD:$AD)","v":0},{"$f":"SUMIFS(Sheet1!S71_OY2BudgetAmount,Sheet1!S71_SA34Code,$AC:$AC,Sheet1!S71_A5CapexCode,$AD:$AD)","v":0},null,null,null,null,null,null,null,null,null,null,null,null,null,null,null,null,null,"1170","CE"]
[null,null,null,null,null,null,null,null,null,null,null,null,null,null,null,null,null,null,null,null,null,null,null,null,null,null,null,null,null,"CE"]
["Other assets",null,{"$f":"+C119+C131","v":0},{"$f":"+D119+D131","v":0},26990,0,0,0,0,0,0,null,null,null,null,null,null,null,null,null,null,null,null,null,null,null,null,null,null,"CE"]
["Operational Buildings",null,{"$f":"SUM(C120:C130)","v":0},{"$f":"SUM(D120:D130)","v":0},26990,0,0,0,0,0,0,null,null,null,null,null,null,null,null,null,null,null,null,null,null,null,null,null,null,"CE"]
["Municipal Offices",null,{"$f":"SUMIFS(Sheet1!S71_PPPYearAmount,Sheet1!S71_SA34Code,$AC:$AC,Sheet1!S71_A5CapexCode,$AD:$AD)","v":0},{"$f":"SUMIFS(Sheet1!S71_PPYearAmount,Sheet1!S71_SA34Code,$AC:$AC,Sheet1!S71_A5CapexCode,$AD:$AD)","v":0},{"$f":"SUMIFS(Sheet1!S71_PYearAmount,Sheet1!S71_SA34Code,$AC:$AC,Sheet1!S71_A5CapexCode,$AD:$AD)","v":26990},{"$f":"SUMIFS(Sheet1!S71_OriginalBudAmnt,Sheet1!S71_SA34Code,$AC:$AC,Sheet1!S71_A5CapexCode,$AD:$AD)","v":0},{"$f":"SUMIFS(Sheet1!S71_AdjustmentBudAmnt,Sheet1!S71_SA34Code,$AC:$AC,Sheet1!S71_A5CapexCode,$AD:$AD)","v":0},{"$f":"SUMIFS(Sheet1!S71_AdjustmentBudAmnt,Sheet1!S71_SA34Code,$AC:$AC,Sheet1!S71_A5CapexCode,$AD:$AD)","v":0},{"$f":"SUMIFS(Sheet1!S71_ASBudgetAmount,Sheet1!S71_SA34Code,$AC:$AC,Sheet1!S71_A5CapexCode,$AD:$AD)","v":0},{"$f":"SUMIFS(Sheet1!S71_OY1BudgetAmount,Sheet1!S71_SA34Code,$AC:$AC,Sheet1!S71_A5CapexCode,$AD:$AD)","v":0},{"$f":"SUMIFS(Sheet1!S71_OY2BudgetAmount,Sheet1!S71_SA34Code,$AC:$AC,Sheet1!S71_A5CapexCode,$AD:$AD)","v":0},null,null,null,null,null,null,null,null,null,null,null,null,null,null,null,null,null,"1200","CE"]
["Pay/Enquiry Points",null,{"$f":"SUMIFS(Sheet1!S71_PPPYearAmount,Sheet1!S71_SA34Code,$AC:$AC,Sheet1!S71_A5CapexCode,$AD:$AD)","v":0},{"$f":"SUMIFS(Sheet1!S71_PPYearAmount,Sheet1!S71_SA34Code,$AC:$AC,Sheet1!S71_A5CapexCode,$AD:$AD)","v":0},{"$f":"SUMIFS(Sheet1!S71_PYearAmount,Sheet1!S71_SA34Code,$AC:$AC,Sheet1!S71_A5CapexCode,$AD:$AD)","v":0},{"$f":"SUMIFS(Sheet1!S71_OriginalBudAmnt,Sheet1!S71_SA34Code,$AC:$AC,Sheet1!S71_A5CapexCode,$AD:$AD)","v":0},{"$f":"SUMIFS(Sheet1!S71_AdjustmentBudAmnt,Sheet1!S71_SA34Code,$AC:$AC,Sheet1!S71_A5CapexCode,$AD:$AD)","v":0},{"$f":"SUMIFS(Sheet1!S71_AdjustmentBudAmnt,Sheet1!S71_SA34Code,$AC:$AC,Sheet1!S71_A5CapexCode,$AD:$AD)","v":0},{"$f":"SUMIFS(Sheet1!S71_ASBudgetAmount,Sheet1!S71_SA34Code,$AC:$AC,Sheet1!S71_A5CapexCode,$AD:$AD)","v":0},{"$f":"SUMIFS(Sheet1!S71_OY1BudgetAmount,Sheet1!S71_SA34Code,$AC:$AC,Sheet1!S71_A5CapexCode,$AD:$AD)","v":0},{"$f":"SUMIFS(Sheet1!S71_OY2BudgetAmount,Sheet1!S71_SA34Code,$AC:$AC,Sheet1!S71_A5CapexCode,$AD:$AD)","v":0},null,null,null,null,null,null,null,null,null,null,null,null,null,null,null,null,null,"1210","CE"]
["Building Plan Offices",null,{"$f":"SUMIFS(Sheet1!S71_PPPYearAmount,Sheet1!S71_SA34Code,$AC:$AC,Sheet1!S71_A5CapexCode,$AD:$AD)","v":0},{"$f":"SUMIFS(Sheet1!S71_PPYearAmount,Sheet1!S71_SA34Code,$AC:$AC,Sheet1!S71_A5CapexCode,$AD:$AD)","v":0},{"$f":"SUMIFS(Sheet1!S71_PYearAmount,Sheet1!S71_SA34Code,$AC:$AC,Sheet1!S71_A5CapexCode,$AD:$AD)","v":0},{"$f":"SUMIFS(Sheet1!S71_OriginalBudAmnt,Sheet1!S71_SA34Code,$AC:$AC,Sheet1!S71_A5CapexCode,$AD:$AD)","v":0},{"$f":"SUMIFS(Sheet1!S71_AdjustmentBudAmnt,Sheet1!S71_SA34Code,$AC:$AC,Sheet1!S71_A5CapexCode,$AD:$AD)","v":0},{"$f":"SUMIFS(Sheet1!S71_AdjustmentBudAmnt,Sheet1!S71_SA34Code,$AC:$AC,Sheet1!S71_A5CapexCode,$AD:$AD)","v":0},{"$f":"SUMIFS(Sheet1!S71_ASBudgetAmount,Sheet1!S71_SA34Code,$AC:$AC,Sheet1!S71_A5CapexCode,$AD:$AD)","v":0},{"$f":"SUMIFS(Sheet1!S71_OY1BudgetAmount,Sheet1!S71_SA34Code,$AC:$AC,Sheet1!S71_A5CapexCode,$AD:$AD)","v":0},{"$f":"SUMIFS(Sheet1!S71_OY2BudgetAmount,Sheet1!S71_SA34Code,$AC:$AC,Sheet1!S71_A5CapexCode,$AD:$AD)","v":0},null,null,null,null,null,null,null,null,null,null,null,null,null,null,null,null,null,"1220","CE"]
["Workshops",null,{"$f":"SUMIFS(Sheet1!S71_PPPYearAmount,Sheet1!S71_SA34Code,$AC:$AC,Sheet1!S71_A5CapexCode,$AD:$AD)","v":0},{"$f":"SUMIFS(Sheet1!S71_PPYearAmount,Sheet1!S71_SA34Code,$AC:$AC,Sheet1!S71_A5CapexCode,$AD:$AD)","v":0},{"$f":"SUMIFS(Sheet1!S71_PYearAmount,Sheet1!S71_SA34Code,$AC:$AC,Sheet1!S71_A5CapexCode,$AD:$AD)","v":0},{"$f":"SUMIFS(Sheet1!S71_OriginalBudAmnt,Sheet1!S71_SA34Code,$AC:$AC,Sheet1!S71_A5CapexCode,$AD:$AD)","v":0},{"$f":"SUMIFS(Sheet1!S71_AdjustmentBudAmnt,Sheet1!S71_SA34Code,$AC:$AC,Sheet1!S71_A5CapexCode,$AD:$AD)","v":0},{"$f":"SUMIFS(Sheet1!S71_AdjustmentBudAmnt,Sheet1!S71_SA34Code,$AC:$AC,Sheet1!S71_A5CapexCode,$AD:$AD)","v":0},{"$f":"SUMIFS(Sheet1!S71_ASBudgetAmount,Sheet1!S71_SA34Code,$AC:$AC,Sheet1!S71_A5CapexCode,$AD:$AD)","v":0},{"$f":"SUMIFS(Sheet1!S71_OY1BudgetAmount,Sheet1!S71_SA34Code,$AC:$AC,Sheet1!S71_A5CapexCode,$AD:$AD)","v":0},{"$f":"SUMIFS(Sheet1!S71_OY2BudgetAmount,Sheet1!S71_SA34Code,$AC:$AC,Sheet1!S71_A5CapexCode,$AD:$AD)","v":0},null,null,null,null,null,null,null,null,null,null,null,null,null,null,null,null,null,"1230","CE"]
["Yards",null,{"$f":"SUMIFS(Sheet1!S71_PPPYearAmount,Sheet1!S71_SA34Code,$AC:$AC,Sheet1!S71_A5CapexCode,$AD:$AD)","v":0},{"$f":"SUMIFS(Sheet1!S71_PPYearAmount,Sheet1!S71_SA34Code,$AC:$AC,Sheet1!S71_A5CapexCode,$AD:$AD)","v":0},{"$f":"SUMIFS(Sheet1!S71_PYearAmount,Sheet1!S71_SA34Code,$AC:$AC,Sheet1!S71_A5CapexCode,$AD:$AD)","v":0},{"$f":"SUMIFS(Sheet1!S71_OriginalBudAmnt,Sheet1!S71_SA34Code,$AC:$AC,Sheet1!S71_A5CapexCode,$AD:$AD)","v":0},{"$f":"SUMIFS(Sheet1!S71_AdjustmentBudAmnt,Sheet1!S71_SA34Code,$AC:$AC,Sheet1!S71_A5CapexCode,$AD:$AD)","v":0},{"$f":"SUMIFS(Sheet1!S71_AdjustmentBudAmnt,Sheet1!S71_SA34Code,$AC:$AC,Sheet1!S71_A5CapexCode,$AD:$AD)","v":0},{"$f":"SUMIFS(Sheet1!S71_ASBudgetAmount,Sheet1!S71_SA34Code,$AC:$AC,Sheet1!S71_A5CapexCode,$AD:$AD)","v":0},{"$f":"SUMIFS(Sheet1!S71_OY1BudgetAmount,Sheet1!S71_SA34Code,$AC:$AC,Sheet1!S71_A5CapexCode,$AD:$AD)","v":0},{"$f":"SUMIFS(Sheet1!S71_OY2BudgetAmount,Sheet1!S71_SA34Code,$AC:$AC,Sheet1!S71_A5CapexCode,$AD:$AD)","v":0},null,null,null,null,null,null,null,null,null,null,null,null,null,null,null,null,null,"1240","CE"]
["Stores",null,{"$f":"SUMIFS(Sheet1!S71_PPPYearAmount,Sheet1!S71_SA34Code,$AC:$AC,Sheet1!S71_A5CapexCode,$AD:$AD)","v":0},{"$f":"SUMIFS(Sheet1!S71_PPYearAmount,Sheet1!S71_SA34Code,$AC:$AC,Sheet1!S71_A5CapexCode,$AD:$AD)","v":0},{"$f":"SUMIFS(Sheet1!S71_PYearAmount,Sheet1!S71_SA34Code,$AC:$AC,Sheet1!S71_A5CapexCode,$AD:$AD)","v":0},{"$f":"SUMIFS(Sheet1!S71_OriginalBudAmnt,Sheet1!S71_SA34Code,$AC:$AC,Sheet1!S71_A5CapexCode,$AD:$AD)","v":0},{"$f":"SUMIFS(Sheet1!S71_AdjustmentBudAmnt,Sheet1!S71_SA34Code,$AC:$AC,Sheet1!S71_A5CapexCode,$AD:$AD)","v":0},{"$f":"SUMIFS(Sheet1!S71_AdjustmentBudAmnt,Sheet1!S71_SA34Code,$AC:$AC,Sheet1!S71_A5CapexCode,$AD:$AD)","v":0},{"$f":"SUMIFS(Sheet1!S71_ASBudgetAmount,Sheet1!S71_SA34Code,$AC:$AC,Sheet1!S71_A5CapexCode,$AD:$AD)","v":0},{"$f":"SUMIFS(Sheet1!S71_OY1BudgetAmount,Sheet1!S71_SA34Code,$AC:$AC,Sheet1!S71_A5CapexCode,$AD:$AD)","v":0},{"$f":"SUMIFS(Sheet1!S71_OY2BudgetAmount,Sheet1!S71_SA34Code,$AC:$AC,Sheet1!S71_A5CapexCode,$AD:$AD)","v":0},null,null,null,null,null,null,null,null,null,null,null,null,null,null,null,null,null,"1250","CE"]
["Laboratories",null,{"$f":"SUMIFS(Sheet1!S71_PPPYearAmount,Sheet1!S71_SA34Code,$AC:$AC,Sheet1!S71_A5CapexCode,$AD:$AD)","v":0},{"$f":"SUMIFS(Sheet1!S71_PPYearAmount,Sheet1!S71_SA34Code,$AC:$AC,Sheet1!S71_A5CapexCode,$AD:$AD)","v":0},{"$f":"SUMIFS(Sheet1!S71_PYearAmount,Sheet1!S71_SA34Code,$AC:$AC,Sheet1!S71_A5CapexCode,$AD:$AD)","v":0},{"$f":"SUMIFS(Sheet1!S71_OriginalBudAmnt,Sheet1!S71_SA34Code,$AC:$AC,Sheet1!S71_A5CapexCode,$AD:$AD)","v":0},{"$f":"SUMIFS(Sheet1!S71_AdjustmentBudAmnt,Sheet1!S71_SA34Code,$AC:$AC,Sheet1!S71_A5CapexCode,$AD:$AD)","v":0},{"$f":"SUMIFS(Sheet1!S71_AdjustmentBudAmnt,Sheet1!S71_SA34Code,$AC:$AC,Sheet1!S71_A5CapexCode,$AD:$AD)","v":0},{"$f":"SUMIFS(Sheet1!S71_ASBudgetAmount,Sheet1!S71_SA34Code,$AC:$AC,Sheet1!S71_A5CapexCode,$AD:$AD)","v":0},{"$f":"SUMIFS(Sheet1!S71_OY1BudgetAmount,Sheet1!S71_SA34Code,$AC:$AC,Sheet1!S71_A5CapexCode,$AD:$AD)","v":0},{"$f":"SUMIFS(Sheet1!S71_OY2BudgetAmount,Sheet1!S71_SA34Code,$AC:$AC,Sheet1!S71_A5CapexCode,$AD:$AD)","v":0},null,null,null,null,null,null,null,null,null,null,null,null,null,null,null,null,null,"1260","CE"]
["Training Centres",null,{"$f":"SUMIFS(Sheet1!S71_PPPYearAmount,Sheet1!S71_SA34Code,$AC:$AC,Sheet1!S71_A5CapexCode,$AD:$AD)","v":0},{"$f":"SUMIFS(Sheet1!S71_PPYearAmount,Sheet1!S71_SA34Code,$AC:$AC,Sheet1!S71_A5CapexCode,$AD:$AD)","v":0},{"$f":"SUMIFS(Sheet1!S71_PYearAmount,Sheet1!S71_SA34Code,$AC:$AC,Sheet1!S71_A5CapexCode,$AD:$AD)","v":0},{"$f":"SUMIFS(Sheet1!S71_OriginalBudAmnt,Sheet1!S71_SA34Code,$AC:$AC,Sheet1!S71_A5CapexCode,$AD:$AD)","v":0},{"$f":"SUMIFS(Sheet1!S71_AdjustmentBudAmnt,Sheet1!S71_SA34Code,$AC:$AC,Sheet1!S71_A5CapexCode,$AD:$AD)","v":0},{"$f":"SUMIFS(Sheet1!S71_AdjustmentBudAmnt,Sheet1!S71_SA34Code,$AC:$AC,Sheet1!S71_A5CapexCode,$AD:$AD)","v":0},{"$f":"SUMIFS(Sheet1!S71_ASBudgetAmount,Sheet1!S71_SA34Code,$AC:$AC,Sheet1!S71_A5CapexCode,$AD:$AD)","v":0},{"$f":"SUMIFS(Sheet1!S71_OY1BudgetAmount,Sheet1!S71_SA34Code,$AC:$AC,Sheet1!S71_A5CapexCode,$AD:$AD)","v":0},{"$f":"SUMIFS(Sheet1!S71_OY2BudgetAmount,Sheet1!S71_SA34Code,$AC:$AC,Sheet1!S71_A5CapexCode,$AD:$AD)","v":0},null,null,null,null,null,null,null,null,null,null,null,null,null,null,null,null,null,"1270","CE"]
["Manufacturing Plant",null,{"$f":"SUMIFS(Sheet1!S71_PPPYearAmount,Sheet1!S71_SA34Code,$AC:$AC,Sheet1!S71_A5CapexCode,$AD:$AD)","v":0},{"$f":"SUMIFS(Sheet1!S71_PPYearAmount,Sheet1!S71_SA34Code,$AC:$AC,Sheet1!S71_A5CapexCode,$AD:$AD)","v":0},{"$f":"SUMIFS(Sheet1!S71_PYearAmount,Sheet1!S71_SA34Code,$AC:$AC,Sheet1!S71_A5CapexCode,$AD:$AD)","v":0},{"$f":"SUMIFS(Sheet1!S71_OriginalBudAmnt,Sheet1!S71_SA34Code,$AC:$AC,Sheet1!S71_A5CapexCode,$AD:$AD)","v":0},{"$f":"SUMIFS(Sheet1!S71_AdjustmentBudAmnt,Sheet1!S71_SA34Code,$AC:$AC,Sheet1!S71_A5CapexCode,$AD:$AD)","v":0},{"$f":"SUMIFS(Sheet1!S71_AdjustmentBudAmnt,Sheet1!S71_SA34Code,$AC:$AC,Sheet1!S71_A5CapexCode,$AD:$AD)","v":0},{"$f":"SUMIFS(Sheet1!S71_ASBudgetAmount,Sheet1!S71_SA34Code,$AC:$AC,Sheet1!S71_A5CapexCode,$AD:$AD)","v":0},{"$f":"SUMIFS(Sheet1!S71_OY1BudgetAmount,Sheet1!S71_SA34Code,$AC:$AC,Sheet1!S71_A5CapexCode,$AD:$AD)","v":0},{"$f":"SUMIFS(Sheet1!S71_OY2BudgetAmount,Sheet1!S71_SA34Code,$AC:$AC,Sheet1!S71_A5CapexCode,$AD:$AD)","v":0},null,null,null,null,null,null,null,null,null,null,null,null,null,null,null,null,null,"1280","CE"]
["Depots",null,{"$f":"SUMIFS(Sheet1!S71_PPPYearAmount,Sheet1!S71_SA34Code,$AC:$AC,Sheet1!S71_A5CapexCode,$AD:$AD)","v":0},{"$f":"SUMIFS(Sheet1!S71_PPYearAmount,Sheet1!S71_SA34Code,$AC:$AC,Sheet1!S71_A5CapexCode,$AD:$AD)","v":0},{"$f":"SUMIFS(Sheet1!S71_PYearAmount,Sheet1!S71_SA34Code,$AC:$AC,Sheet1!S71_A5CapexCode,$AD:$AD)","v":0},{"$f":"SUMIFS(Sheet1!S71_OriginalBudAmnt,Sheet1!S71_SA34Code,$AC:$AC,Sheet1!S71_A5CapexCode,$AD:$AD)","v":0},{"$f":"SUMIFS(Sheet1!S71_AdjustmentBudAmnt,Sheet1!S71_SA34Code,$AC:$AC,Sheet1!S71_A5CapexCode,$AD:$AD)","v":0},{"$f":"SUMIFS(Sheet1!S71_AdjustmentBudAmnt,Sheet1!S71_SA34Code,$AC:$AC,Sheet1!S71_A5CapexCode,$AD:$AD)","v":0},{"$f":"SUMIFS(Sheet1!S71_ASBudgetAmount,Sheet1!S71_SA34Code,$AC:$AC,Sheet1!S71_A5CapexCode,$AD:$AD)","v":0},{"$f":"SUMIFS(Sheet1!S71_OY1BudgetAmount,Sheet1!S71_SA34Code,$AC:$AC,Sheet1!S71_A5CapexCode,$AD:$AD)","v":0},{"$f":"SUMIFS(Sheet1!S71_OY2BudgetAmount,Sheet1!S71_SA34Code,$AC:$AC,Sheet1!S71_A5CapexCode,$AD:$AD)","v":0},null,null,null,null,null,null,null,null,null,null,null,null,null,null,null,null,null,"1290","CE"]
["Capital Spares",null,{"$f":"SUMIFS(Sheet1!S71_PPPYearAmount,Sheet1!S71_SA34Code,$AC:$AC,Sheet1!S71_A5CapexCode,$AD:$AD)","v":0},{"$f":"SUMIFS(Sheet1!S71_PPYearAmount,Sheet1!S71_SA34Code,$AC:$AC,Sheet1!S71_A5CapexCode,$AD:$AD)","v":0},{"$f":"SUMIFS(Sheet1!S71_PYearAmount,Sheet1!S71_SA34Code,$AC:$AC,Sheet1!S71_A5CapexCode,$AD:$AD)","v":0},{"$f":"SUMIFS(Sheet1!S71_OriginalBudAmnt,Sheet1!S71_SA34Code,$AC:$AC,Sheet1!S71_A5CapexCode,$AD:$AD)","v":0},{"$f":"SUMIFS(Sheet1!S71_AdjustmentBudAmnt,Sheet1!S71_SA34Code,$AC:$AC,Sheet1!S71_A5CapexCode,$AD:$AD)","v":0},{"$f":"SUMIFS(Sheet1!S71_AdjustmentBudAmnt,Sheet1!S71_SA34Code,$AC:$AC,Sheet1!S71_A5CapexCode,$AD:$AD)","v":0},{"$f":"SUMIFS(Sheet1!S71_ASBudgetAmount,Sheet1!S71_SA34Code,$AC:$AC,Sheet1!S71_A5CapexCode,$AD:$AD)","v":0},{"$f":"SUMIFS(Sheet1!S71_OY1BudgetAmount,Sheet1!S71_SA34Code,$AC:$AC,Sheet1!S71_A5CapexCode,$AD:$AD)","v":0},{"$f":"SUMIFS(Sheet1!S71_OY2BudgetAmount,Sheet1!S71_SA34Code,$AC:$AC,Sheet1!S71_A5CapexCode,$AD:$AD)","v":0},null,null,null,null,null,null,null,null,null,null,null,null,null,null,null,null,null,"1300","CE"]
["Housing",null,{"$f":"SUM(C132:C134)","v":0},{"$f":"SUM(D132:D134)","v":0},0,0,0,0,0,0,0,null,null,null,null,null,null,null,null,null,null,null,null,null,null,null,null,null,null,"CE"]
["Staff Housing",null,{"$f":"SUMIFS(Sheet1!S71_PPPYearAmount,Sheet1!S71_SA34Code,$AC:$AC,Sheet1!S71_A5CapexCode,$AD:$AD)","v":0},{"$f":"SUMIFS(Sheet1!S71_PPYearAmount,Sheet1!S71_SA34Code,$AC:$AC,Sheet1!S71_A5CapexCode,$AD:$AD)","v":0},{"$f":"SUMIFS(Sheet1!S71_PYearAmount,Sheet1!S71_SA34Code,$AC:$AC,Sheet1!S71_A5CapexCode,$AD:$AD)","v":0},{"$f":"SUMIFS(Sheet1!S71_OriginalBudAmnt,Sheet1!S71_SA34Code,$AC:$AC,Sheet1!S71_A5CapexCode,$AD:$AD)","v":0},{"$f":"SUMIFS(Sheet1!S71_AdjustmentBudAmnt,Sheet1!S71_SA34Code,$AC:$AC,Sheet1!S71_A5CapexCode,$AD:$AD)","v":0},{"$f":"SUMIFS(Sheet1!S71_AdjustmentBudAmnt,Sheet1!S71_SA34Code,$AC:$AC,Sheet1!S71_A5CapexCode,$AD:$AD)","v":0},{"$f":"SUMIFS(Sheet1!S71_ASBudgetAmount,Sheet1!S71_SA34Code,$AC:$AC,Sheet1!S71_A5CapexCode,$AD:$AD)","v":0},{"$f":"SUMIFS(Sheet1!S71_OY1BudgetAmount,Sheet1!S71_SA34Code,$AC:$AC,Sheet1!S71_A5CapexCode,$AD:$AD)","v":0},{"$f":"SUMIFS(Sheet1!S71_OY2BudgetAmount,Sheet1!S71_SA34Code,$AC:$AC,Sheet1!S71_A5CapexCode,$AD:$AD)","v":0},null,null,null,null,null,null,null,null,null,null,null,null,null,null,null,null,null,"1320","CE"]
["Social Housing",null,{"$f":"SUMIFS(Sheet1!S71_PPPYearAmount,Sheet1!S71_SA34Code,$AC:$AC,Sheet1!S71_A5CapexCode,$AD:$AD)","v":0},{"$f":"SUMIFS(Sheet1!S71_PPYearAmount,Sheet1!S71_SA34Code,$AC:$AC,Sheet1!S71_A5CapexCode,$AD:$AD)","v":0},{"$f":"SUMIFS(Sheet1!S71_PYearAmount,Sheet1!S71_SA34Code,$AC:$AC,Sheet1!S71_A5CapexCode,$AD:$AD)","v":0},{"$f":"SUMIFS(Sheet1!S71_OriginalBudAmnt,Sheet1!S71_SA34Code,$AC:$AC,Sheet1!S71_A5CapexCode,$AD:$AD)","v":0},{"$f":"SUMIFS(Sheet1!S71_AdjustmentBudAmnt,Sheet1!S71_SA34Code,$AC:$AC,Sheet1!S71_A5CapexCode,$AD:$AD)","v":0},{"$f":"SUMIFS(Sheet1!S71_AdjustmentBudAmnt,Sheet1!S71_SA34Code,$AC:$AC,Sheet1!S71_A5CapexCode,$AD:$AD)","v":0},{"$f":"SUMIFS(Sheet1!S71_ASBudgetAmount,Sheet1!S71_SA34Code,$AC:$AC,Sheet1!S71_A5CapexCode,$AD:$AD)","v":0},{"$f":"SUMIFS(Sheet1!S71_OY1BudgetAmount,Sheet1!S71_SA34Code,$AC:$AC,Sheet1!S71_A5CapexCode,$AD:$AD)","v":0},{"$f":"SUMIFS(Sheet1!S71_OY2BudgetAmount,Sheet1!S71_SA34Code,$AC:$AC,Sheet1!S71_A5CapexCode,$AD:$AD)","v":0},null,null,null,null,null,null,null,null,null,null,null,null,null,null,null,null,null,"1330","CE"]
["Capital Spares",null,{"$f":"SUMIFS(Sheet1!S71_PPPYearAmount,Sheet1!S71_SA34Code,$AC:$AC,Sheet1!S71_A5CapexCode,$AD:$AD)","v":0},{"$f":"SUMIFS(Sheet1!S71_PPYearAmount,Sheet1!S71_SA34Code,$AC:$AC,Sheet1!S71_A5CapexCode,$AD:$AD)","v":0},{"$f":"SUMIFS(Sheet1!S71_PYearAmount,Sheet1!S71_SA34Code,$AC:$AC,Sheet1!S71_A5CapexCode,$AD:$AD)","v":0},{"$f":"SUMIFS(Sheet1!S71_OriginalBudAmnt,Sheet1!S71_SA34Code,$AC:$AC,Sheet1!S71_A5CapexCode,$AD:$AD)","v":0},{"$f":"SUMIFS(Sheet1!S71_AdjustmentBudAmnt,Sheet1!S71_SA34Code,$AC:$AC,Sheet1!S71_A5CapexCode,$AD:$AD)","v":0},{"$f":"SUMIFS(Sheet1!S71_AdjustmentBudAmnt,Sheet1!S71_SA34Code,$AC:$AC,Sheet1!S71_A5CapexCode,$AD:$AD)","v":0},{"$f":"SUMIFS(Sheet1!S71_ASBudgetAmount,Sheet1!S71_SA34Code,$AC:$AC,Sheet1!S71_A5CapexCode,$AD:$AD)","v":0},{"$f":"SUMIFS(Sheet1!S71_OY1BudgetAmount,Sheet1!S71_SA34Code,$AC:$AC,Sheet1!S71_A5CapexCode,$AD:$AD)","v":0},{"$f":"SUMIFS(Sheet1!S71_OY2BudgetAmount,Sheet1!S71_SA34Code,$AC:$AC,Sheet1!S71_A5CapexCode,$AD:$AD)","v":0},null,null,null,null,null,null,null,null,null,null,null,null,null,null,null,null,null,"1340","CE"]
[null,null,null,null,null,null,null,null,null,null,null,null,null,null,null,null,null,null,null,null,null,null,null,null,null,null,null,null,null,"CE"]
["Biological or Cultivated Assets",null,{"$f":"SUM(C137:C137)","v":0},0,0,0,0,0,0,0,0,null,null,null,null,null,null,null,null,null,null,null,null,null,null,null,null,null,null,"CE"]
["Biological or Cultivated Assets",null,{"$f":"SUMIFS(Sheet1!S71_PPPYearAmount,Sheet1!S71_SA34Code,$AC:$AC,Sheet1!S71_A5CapexCode,$AD:$AD)","v":0},{"$f":"SUMIFS(Sheet1!S71_PPYearAmount,Sheet1!S71_SA34Code,$AC:$AC,Sheet1!S71_A5CapexCode,$AD:$AD)","v":0},{"$f":"SUMIFS(Sheet1!S71_PYearAmount,Sheet1!S71_SA34Code,$AC:$AC,Sheet1!S71_A5CapexCode,$AD:$AD)","v":0},{"$f":"SUMIFS(Sheet1!S71_OriginalBudAmnt,Sheet1!S71_SA34Code,$AC:$AC,Sheet1!S71_A5CapexCode,$AD:$AD)","v":0},{"$f":"SUMIFS(Sheet1!S71_AdjustmentBudAmnt,Sheet1!S71_SA34Code,$AC:$AC,Sheet1!S71_A5CapexCode,$AD:$AD)","v":0},{"$f":"SUMIFS(Sheet1!S71_AdjustmentBudAmnt,Sheet1!S71_SA34Code,$AC:$AC,Sheet1!S71_A5CapexCode,$AD:$AD)","v":0},{"$f":"SUMIFS(Sheet1!S71_ASBudgetAmount,Sheet1!S71_SA34Code,$AC:$AC,Sheet1!S71_A5CapexCode,$AD:$AD)","v":0},{"$f":"SUMIFS(Sheet1!S71_OY1BudgetAmount,Sheet1!S71_SA34Code,$AC:$AC,Sheet1!S71_A5CapexCode,$AD:$AD)","v":0},{"$f":"SUMIFS(Sheet1!S71_OY2BudgetAmount,Sheet1!S71_SA34Code,$AC:$AC,Sheet1!S71_A5CapexCode,$AD:$AD)","v":0},null,null,null,null,null,null,null,null,null,null,null,null,null,null,null,null,null,"1360","CE"]
[null,null,null,null,null,null,null,null,null,null,null,null,null,null,null,null,null,null,null,null,null,null,null,null,null,null,null,null,null,"CE"]
["Intangible Assets",null,{"$f":"+C140+C141","v":0},{"$f":"+D140+D141","v":0},0,0,0,0,0,0,0,null,null,null,null,null,null,null,null,null,null,null,null,null,null,null,null,null,null,"CE"]
["Servitudes",null,{"$f":"SUMIFS(Sheet1!S71_PPPYearAmount,Sheet1!S71_SA34Code,$AC:$AC,Sheet1!S71_A5CapexCode,$AD:$AD)","v":0},{"$f":"SUMIFS(Sheet1!S71_PPYearAmount,Sheet1!S71_SA34Code,$AC:$AC,Sheet1!S71_A5CapexCode,$AD:$AD)","v":0},{"$f":"SUMIFS(Sheet1!S71_PYearAmount,Sheet1!S71_SA34Code,$AC:$AC,Sheet1!S71_A5CapexCode,$AD:$AD)","v":0},{"$f":"SUMIFS(Sheet1!S71_OriginalBudAmnt,Sheet1!S71_SA34Code,$AC:$AC,Sheet1!S71_A5CapexCode,$AD:$AD)","v":0},{"$f":"SUMIFS(Sheet1!S71_AdjustmentBudAmnt,Sheet1!S71_SA34Code,$AC:$AC,Sheet1!S71_A5CapexCode,$AD:$AD)","v":0},{"$f":"SUMIFS(Sheet1!S71_AdjustmentBudAmnt,Sheet1!S71_SA34Code,$AC:$AC,Sheet1!S71_A5CapexCode,$AD:$AD)","v":0},{"$f":"SUMIFS(Sheet1!S71_ASBudgetAmount,Sheet1!S71_SA34Code,$AC:$AC,Sheet1!S71_A5CapexCode,$AD:$AD)","v":0},{"$f":"SUMIFS(Sheet1!S71_OY1BudgetAmount,Sheet1!S71_SA34Code,$AC:$AC,Sheet1!S71_A5CapexCode,$AD:$AD)","v":0},{"$f":"SUMIFS(Sheet1!S71_OY2BudgetAmount,Sheet1!S71_SA34Code,$AC:$AC,Sheet1!S71_A5CapexCode,$AD:$AD)","v":0},null,null,null,null,null,null,null,null,null,null,null,null,null,null,null,null,null,"1380","CE"]
["Licences and Rights",null,{"$f":"SUM(C142:C147)","v":0},{"$f":"SUM(D142:D147)","v":0},0,0,0,0,0,0,0,null,null,null,null,null,null,null,null,null,null,null,null,null,null,null,null,null,null,"CE"]
["Water Rights",null,{"$f":"SUMIFS(Sheet1!S71_PPPYearAmount,Sheet1!S71_SA34Code,$AC:$AC,Sheet1!S71_A5CapexCode,$AD:$AD)","v":0},{"$f":"SUMIFS(Sheet1!S71_PPYearAmount,Sheet1!S71_SA34Code,$AC:$AC,Sheet1!S71_A5CapexCode,$AD:$AD)","v":0},{"$f":"SUMIFS(Sheet1!S71_PYearAmount,Sheet1!S71_SA34Code,$AC:$AC,Sheet1!S71_A5CapexCode,$AD:$AD)","v":0},{"$f":"SUMIFS(Sheet1!S71_OriginalBudAmnt,Sheet1!S71_SA34Code,$AC:$AC,Sheet1!S71_A5CapexCode,$AD:$AD)","v":0},{"$f":"SUMIFS(Sheet1!S71_AdjustmentBudAmnt,Sheet1!S71_SA34Code,$AC:$AC,Sheet1!S71_A5CapexCode,$AD:$AD)","v":0},{"$f":"SUMIFS(Sheet1!S71_AdjustmentBudAmnt,Sheet1!S71_SA34Code,$AC:$AC,Sheet1!S71_A5CapexCode,$AD:$AD)","v":0},{"$f":"SUMIFS(Sheet1!S71_ASBudgetAmount,Sheet1!S71_SA34Code,$AC:$AC,Sheet1!S71_A5CapexCode,$AD:$AD)","v":0},{"$f":"SUMIFS(Sheet1!S71_OY1BudgetAmount,Sheet1!S71_SA34Code,$AC:$AC,Sheet1!S71_A5CapexCode,$AD:$AD)","v":0},{"$f":"SUMIFS(Sheet1!S71_OY2BudgetAmount,Sheet1!S71_SA34Code,$AC:$AC,Sheet1!S71_A5CapexCode,$AD:$AD)","v":0},null,null,null,null,null,null,null,null,null,null,null,null,null,null,null,null,null,"1400","CE"]
["Effluent Licenses",null,{"$f":"SUMIFS(Sheet1!S71_PPPYearAmount,Sheet1!S71_SA34Code,$AC:$AC,Sheet1!S71_A5CapexCode,$AD:$AD)","v":0},{"$f":"SUMIFS(Sheet1!S71_PPYearAmount,Sheet1!S71_SA34Code,$AC:$AC,Sheet1!S71_A5CapexCode,$AD:$AD)","v":0},{"$f":"SUMIFS(Sheet1!S71_PYearAmount,Sheet1!S71_SA34Code,$AC:$AC,Sheet1!S71_A5CapexCode,$AD:$AD)","v":0},{"$f":"SUMIFS(Sheet1!S71_OriginalBudAmnt,Sheet1!S71_SA34Code,$AC:$AC,Sheet1!S71_A5CapexCode,$AD:$AD)","v":0},{"$f":"SUMIFS(Sheet1!S71_AdjustmentBudAmnt,Sheet1!S71_SA34Code,$AC:$AC,Sheet1!S71_A5CapexCode,$AD:$AD)","v":0},{"$f":"SUMIFS(Sheet1!S71_AdjustmentBudAmnt,Sheet1!S71_SA34Code,$AC:$AC,Sheet1!S71_A5CapexCode,$AD:$AD)","v":0},{"$f":"SUMIFS(Sheet1!S71_ASBudgetAmount,Sheet1!S71_SA34Code,$AC:$AC,Sheet1!S71_A5CapexCode,$AD:$AD)","v":0},{"$f":"SUMIFS(Sheet1!S71_OY1BudgetAmount,Sheet1!S71_SA34Code,$AC:$AC,Sheet1!S71_A5CapexCode,$AD:$AD)","v":0},{"$f":"SUMIFS(Sheet1!S71_OY2BudgetAmount,Sheet1!S71_SA34Code,$AC:$AC,Sheet1!S71_A5CapexCode,$AD:$AD)","v":0},null,null,null,null,null,null,null,null,null,null,null,null,null,null,null,null,null,"1410","CE"]
["Solid Waste Licenses",null,{"$f":"SUMIFS(Sheet1!S71_PPPYearAmount,Sheet1!S71_SA34Code,$AC:$AC,Sheet1!S71_A5CapexCode,$AD:$AD)","v":0},{"$f":"SUMIFS(Sheet1!S71_PPYearAmount,Sheet1!S71_SA34Code,$AC:$AC,Sheet1!S71_A5CapexCode,$AD:$AD)","v":0},{"$f":"SUMIFS(Sheet1!S71_PYearAmount,Sheet1!S71_SA34Code,$AC:$AC,Sheet1!S71_A5CapexCode,$AD:$AD)","v":0},{"$f":"SUMIFS(Sheet1!S71_OriginalBudAmnt,Sheet1!S71_SA34Code,$AC:$AC,Sheet1!S71_A5CapexCode,$AD:$AD)","v":0},{"$f":"SUMIFS(Sheet1!S71_AdjustmentBudAmnt,Sheet1!S71_SA34Code,$AC:$AC,Sheet1!S71_A5CapexCode,$AD:$AD)","v":0},{"$f":"SUMIFS(Sheet1!S71_AdjustmentBudAmnt,Sheet1!S71_SA34Code,$AC:$AC,Sheet1!S71_A5CapexCode,$AD:$AD)","v":0},{"$f":"SUMIFS(Sheet1!S71_ASBudgetAmount,Sheet1!S71_SA34Code,$AC:$AC,Sheet1!S71_A5CapexCode,$AD:$AD)","v":0},{"$f":"SUMIFS(Sheet1!S71_OY1BudgetAmount,Sheet1!S71_SA34Code,$AC:$AC,Sheet1!S71_A5CapexCode,$AD:$AD)","v":0},{"$f":"SUMIFS(Sheet1!S71_OY2BudgetAmount,Sheet1!S71_SA34Code,$AC:$AC,Sheet1!S71_A5CapexCode,$AD:$AD)","v":0},null,null,null,null,null,null,null,null,null,null,null,null,null,null,null,null,null,"1420","CE"]
["Computer Software and Applications",null,{"$f":"SUMIFS(Sheet1!S71_PPPYearAmount,Sheet1!S71_SA34Code,$AC:$AC,Sheet1!S71_A5CapexCode,$AD:$AD)","v":0},{"$f":"SUMIFS(Sheet1!S71_PPYearAmount,Sheet1!S71_SA34Code,$AC:$AC,Sheet1!S71_A5CapexCode,$AD:$AD)","v":0},{"$f":"SUMIFS(Sheet1!S71_PYearAmount,Sheet1!S71_SA34Code,$AC:$AC,Sheet1!S71_A5CapexCode,$AD:$AD)","v":0},{"$f":"SUMIFS(Sheet1!S71_OriginalBudAmnt,Sheet1!S71_SA34Code,$AC:$AC,Sheet1!S71_A5CapexCode,$AD:$AD)","v":0},{"$f":"SUMIFS(Sheet1!S71_AdjustmentBudAmnt,Sheet1!S71_SA34Code,$AC:$AC,Sheet1!S71_A5CapexCode,$AD:$AD)","v":0},{"$f":"SUMIFS(Sheet1!S71_AdjustmentBudAmnt,Sheet1!S71_SA34Code,$AC:$AC,Sheet1!S71_A5CapexCode,$AD:$AD)","v":0},{"$f":"SUMIFS(Sheet1!S71_ASBudgetAmount,Sheet1!S71_SA34Code,$AC:$AC,Sheet1!S71_A5CapexCode,$AD:$AD)","v":0},{"$f":"SUMIFS(Sheet1!S71_OY1BudgetAmount,Sheet1!S71_SA34Code,$AC:$AC,Sheet1!S71_A5CapexCode,$AD:$AD)","v":0},{"$f":"SUMIFS(Sheet1!S71_OY2BudgetAmount,Sheet1!S71_SA34Code,$AC:$AC,Sheet1!S71_A5CapexCode,$AD:$AD)","v":0},null,null,null,null,null,null,null,null,null,null,null,null,null,null,null,null,null,"1430","CE"]
["Load Settlement Software Applications",null,{"$f":"SUMIFS(Sheet1!S71_PPPYearAmount,Sheet1!S71_SA34Code,$AC:$AC,Sheet1!S71_A5CapexCode,$AD:$AD)","v":0},{"$f":"SUMIFS(Sheet1!S71_PPYearAmount,Sheet1!S71_SA34Code,$AC:$AC,Sheet1!S71_A5CapexCode,$AD:$AD)","v":0},{"$f":"SUMIFS(Sheet1!S71_PYearAmount,Sheet1!S71_SA34Code,$AC:$AC,Sheet1!S71_A5CapexCode,$AD:$AD)","v":0},{"$f":"SUMIFS(Sheet1!S71_OriginalBudAmnt,Sheet1!S71_SA34Code,$AC:$AC,Sheet1!S71_A5CapexCode,$AD:$AD)","v":0},{"$f":"SUMIFS(Sheet1!S71_AdjustmentBudAmnt,Sheet1!S71_SA34Code,$AC:$AC,Sheet1!S71_A5CapexCode,$AD:$AD)","v":0},{"$f":"SUMIFS(Sheet1!S71_AdjustmentBudAmnt,Sheet1!S71_SA34Code,$AC:$AC,Sheet1!S71_A5CapexCode,$AD:$AD)","v":0},{"$f":"SUMIFS(Sheet1!S71_ASBudgetAmount,Sheet1!S71_SA34Code,$AC:$AC,Sheet1!S71_A5CapexCode,$AD:$AD)","v":0},{"$f":"SUMIFS(Sheet1!S71_OY1BudgetAmount,Sheet1!S71_SA34Code,$AC:$AC,Sheet1!S71_A5CapexCode,$AD:$AD)","v":0},{"$f":"SUMIFS(Sheet1!S71_OY2BudgetAmount,Sheet1!S71_SA34Code,$AC:$AC,Sheet1!S71_A5CapexCode,$AD:$AD)","v":0},null,null,null,null,null,null,null,null,null,null,null,null,null,null,null,null,null,"1440","CE"]
["Unspecified",null,{"$f":"SUMIFS(Sheet1!S71_PPPYearAmount,Sheet1!S71_SA34Code,$AC:$AC,Sheet1!S71_A5CapexCode,$AD:$AD)","v":0},{"$f":"SUMIFS(Sheet1!S71_PPYearAmount,Sheet1!S71_SA34Code,$AC:$AC,Sheet1!S71_A5CapexCode,$AD:$AD)","v":0},{"$f":"SUMIFS(Sheet1!S71_PYearAmount,Sheet1!S71_SA34Code,$AC:$AC,Sheet1!S71_A5CapexCode,$AD:$AD)","v":0},{"$f":"SUMIFS(Sheet1!S71_OriginalBudAmnt,Sheet1!S71_SA34Code,$AC:$AC,Sheet1!S71_A5CapexCode,$AD:$AD)","v":0},{"$f":"SUMIFS(Sheet1!S71_AdjustmentBudAmnt,Sheet1!S71_SA34Code,$AC:$AC,Sheet1!S71_A5CapexCode,$AD:$AD)","v":0},{"$f":"SUMIFS(Sheet1!S71_AdjustmentBudAmnt,Sheet1!S71_SA34Code,$AC:$AC,Sheet1!S71_A5CapexCode,$AD:$AD)","v":0},{"$f":"SUMIFS(Sheet1!S71_ASBudgetAmount,Sheet1!S71_SA34Code,$AC:$AC,Sheet1!S71_A5CapexCode,$AD:$AD)","v":0},{"$f":"SUMIFS(Sheet1!S71_OY1BudgetAmount,Sheet1!S71_SA34Code,$AC:$AC,Sheet1!S71_A5CapexCode,$AD:$AD)","v":0},{"$f":"SUMIFS(Sheet1!S71_OY2BudgetAmount,Sheet1!S71_SA34Code,$AC:$AC,Sheet1!S71_A5CapexCode,$AD:$AD)","v":0},null,null,null,null,null,null,null,null,null,null,null,null,null,null,null,null,null,"1450","CE"]
[null,null,null,null,null,null,null,null,null,null,null,null,null,null,null,null,null,null,null,null,null,null,null,null,null,null,null,null,null,"CE"]
["Computer Equipment",null,{"$f":"SUM(C150:C150)","v":0},0,220993,110000,328000,328000,110000,0,0,null,null,null,null,null,null,null,null,null,null,null,null,null,null,null,null,null,null,"CE"]
["Computer Equipment",null,{"$f":"SUMIFS(Sheet1!S71_PPPYearAmount,Sheet1!S71_SA34Code,$AC:$AC,Sheet1!S71_A5CapexCode,$AD:$AD)","v":0},{"$f":"SUMIFS(Sheet1!S71_PPYearAmount,Sheet1!S71_SA34Code,$AC:$AC,Sheet1!S71_A5CapexCode,$AD:$AD)","v":0},{"$f":"SUMIFS(Sheet1!S71_PYearAmount,Sheet1!S71_SA34Code,$AC:$AC,Sheet1!S71_A5CapexCode,$AD:$AD)","v":220993},{"$f":"SUMIFS(Sheet1!S71_OriginalBudAmnt,Sheet1!S71_SA34Code,$AC:$AC,Sheet1!S71_A5CapexCode,$AD:$AD)","v":110000},{"$f":"SUMIFS(Sheet1!S71_AdjustmentBudAmnt,Sheet1!S71_SA34Code,$AC:$AC,Sheet1!S71_A5CapexCode,$AD:$AD)","v":328000},{"$f":"SUMIFS(Sheet1!S71_AdjustmentBudAmnt,Sheet1!S71_SA34Code,$AC:$AC,Sheet1!S71_A5CapexCode,$AD:$AD)","v":328000},{"$f":"SUMIFS(Sheet1!S71_ASBudgetAmount,Sheet1!S71_SA34Code,$AC:$AC,Sheet1!S71_A5CapexCode,$AD:$AD)","v":110000},{"$f":"SUMIFS(Sheet1!S71_OY1BudgetAmount,Sheet1!S71_SA34Code,$AC:$AC,Sheet1!S71_A5CapexCode,$AD:$AD)","v":0},{"$f":"SUMIFS(Sheet1!S71_OY2BudgetAmount,Sheet1!S71_SA34Code,$AC:$AC,Sheet1!S71_A5CapexCode,$AD:$AD)","v":0},null,null,null,null,null,null,null,null,null,null,null,null,null,null,null,null,null,"1470","CE"]
[null,null,null,null,null,null,null,null,null,null,null,null,null,null,null,null,null,null,null,null,null,null,null,null,null,null,null,null,null,"CE"]
["Furniture and Office Equipment",null,{"$f":"SUM(C153:C153)","v":0},0,50047,44771,0,0,176000,21958,23144,null,null,null,null,null,null,null,null,null,null,null,null,null,null,null,null,null,null,"CE"]
["Furniture and Office Equipment",null,{"$f":"SUMIFS(Sheet1!S71_PPPYearAmount,Sheet1!S71_SA34Code,$AC:$AC,Sheet1!S71_A5CapexCode,$AD:$AD)","v":0},{"$f":"SUMIFS(Sheet1!S71_PPYearAmount,Sheet1!S71_SA34Code,$AC:$AC,Sheet1!S71_A5CapexCode,$AD:$AD)","v":0},{"$f":"SUMIFS(Sheet1!S71_PYearAmount,Sheet1!S71_SA34Code,$AC:$AC,Sheet1!S71_A5CapexCode,$AD:$AD)","v":50047},{"$f":"SUMIFS(Sheet1!S71_OriginalBudAmnt,Sheet1!S71_SA34Code,$AC:$AC,Sheet1!S71_A5CapexCode,$AD:$AD)","v":44771},{"$f":"SUMIFS(Sheet1!S71_AdjustmentBudAmnt,Sheet1!S71_SA34Code,$AC:$AC,Sheet1!S71_A5CapexCode,$AD:$AD)","v":0},{"$f":"SUMIFS(Sheet1!S71_AdjustmentBudAmnt,Sheet1!S71_SA34Code,$AC:$AC,Sheet1!S71_A5CapexCode,$AD:$AD)","v":0},{"$f":"SUMIFS(Sheet1!S71_ASBudgetAmount,Sheet1!S71_SA34Code,$AC:$AC,Sheet1!S71_A5CapexCode,$AD:$AD)","v":176000},{"$f":"SUMIFS(Sheet1!S71_OY1BudgetAmount,Sheet1!S71_SA34Code,$AC:$AC,Sheet1!S71_A5CapexCode,$AD:$AD)","v":21958},{"$f":"SUMIFS(Sheet1!S71_OY2BudgetAmount,Sheet1!S71_SA34Code,$AC:$AC,Sheet1!S71_A5CapexCode,$AD:$AD)","v":23144},null,null,null,null,null,null,null,null,null,null,null,null,null,null,null,null,null,"1490","CE"]
[null,null,null,null,null,null,null,null,null,null,null,null,null,null,null,null,null,null,null,null,null,null,null,null,null,null,null,null,null,"CE"]
["Machinery and Equipment",null,{"$f":"SUM(C156:C156)","v":0},0,0,0,0,0,0,0,0,null,null,null,null,null,null,null,null,null,null,null,null,null,null,null,null,null,null,"CE"]
["Machinery and Equipment",null,{"$f":"SUMIFS(Sheet1!S71_PPPYearAmount,Sheet1!S71_SA34Code,$AC:$AC,Sheet1!S71_A5CapexCode,$AD:$AD)","v":0},{"$f":"SUMIFS(Sheet1!S71_PPYearAmount,Sheet1!S71_SA34Code,$AC:$AC,Sheet1!S71_A5CapexCode,$AD:$AD)","v":0},{"$f":"SUMIFS(Sheet1!S71_PYearAmount,Sheet1!S71_SA34Code,$AC:$AC,Sheet1!S71_A5CapexCode,$AD:$AD)","v":0},{"$f":"SUMIFS(Sheet1!S71_OriginalBudAmnt,Sheet1!S71_SA34Code,$AC:$AC,Sheet1!S71_A5CapexCode,$AD:$AD)","v":0},{"$f":"SUMIFS(Sheet1!S71_AdjustmentBudAmnt,Sheet1!S71_SA34Code,$AC:$AC,Sheet1!S71_A5CapexCode,$AD:$AD)","v":0},{"$f":"SUMIFS(Sheet1!S71_AdjustmentBudAmnt,Sheet1!S71_SA34Code,$AC:$AC,Sheet1!S71_A5CapexCode,$AD:$AD)","v":0},{"$f":"SUMIFS(Sheet1!S71_ASBudgetAmount,Sheet1!S71_SA34Code,$AC:$AC,Sheet1!S71_A5CapexCode,$AD:$AD)","v":0},{"$f":"SUMIFS(Sheet1!S71_OY1BudgetAmount,Sheet1!S71_SA34Code,$AC:$AC,Sheet1!S71_A5CapexCode,$AD:$AD)","v":0},{"$f":"SUMIFS(Sheet1!S71_OY2BudgetAmount,Sheet1!S71_SA34Code,$AC:$AC,Sheet1!S71_A5CapexCode,$AD:$AD)","v":0},null,null,null,null,null,null,null,null,null,null,null,null,null,null,null,null,null,"1510","CE"]
[null,null,null,null,null,null,null,null,null,null,null,null,null,null,null,null,null,null,null,null,null,null,null,null,null,null,null,null,null,"CE"]
["Transport Assets",null,{"$f":"SUM(C159:C159)","v":0},0,0,220000,0,0,200000,0,0,null,null,null,null,null,null,null,null,null,null,null,null,null,null,null,null,null,null,"CE"]
["Transport Assets",null,{"$f":"SUMIFS(Sheet1!S71_PPPYearAmount,Sheet1!S71_SA34Code,$AC:$AC,Sheet1!S71_A5CapexCode,$AD:$AD)","v":0},{"$f":"SUMIFS(Sheet1!S71_PPYearAmount,Sheet1!S71_SA34Code,$AC:$AC,Sheet1!S71_A5CapexCode,$AD:$AD)","v":0},{"$f":"SUMIFS(Sheet1!S71_PYearAmount,Sheet1!S71_SA34Code,$AC:$AC,Sheet1!S71_A5CapexCode,$AD:$AD)","v":0},{"$f":"SUMIFS(Sheet1!S71_OriginalBudAmnt,Sheet1!S71_SA34Code,$AC:$AC,Sheet1!S71_A5CapexCode,$AD:$AD)","v":220000},{"$f":"SUMIFS(Sheet1!S71_AdjustmentBudAmnt,Sheet1!S71_SA34Code,$AC:$AC,Sheet1!S71_A5CapexCode,$AD:$AD)","v":0},{"$f":"SUMIFS(Sheet1!S71_AdjustmentBudAmnt,Sheet1!S71_SA34Code,$AC:$AC,Sheet1!S71_A5CapexCode,$AD:$AD)","v":0},{"$f":"SUMIFS(Sheet1!S71_ASBudgetAmount,Sheet1!S71_SA34Code,$AC:$AC,Sheet1!S71_A5CapexCode,$AD:$AD)","v":200000},{"$f":"SUMIFS(Sheet1!S71_OY1BudgetAmount,Sheet1!S71_SA34Code,$AC:$AC,Sheet1!S71_A5CapexCode,$AD:$AD)","v":0},{"$f":"SUMIFS(Sheet1!S71_OY2BudgetAmount,Sheet1!S71_SA34Code,$AC:$AC,Sheet1!S71_A5CapexCode,$AD:$AD)","v":0},null,null,null,null,null,null,null,null,null,null,null,null,null,null,null,null,null,"1530","CE"]
[null,null,null,null,null,null,null,null,null,null,null,null,null,null,null,null,null,null,null,null,null,null,null,null,null,null,null,null,null,"CE"]
["Land",null,{"$f":"SUM(C162:C162)","v":0},0,0,0,0,0,0,0,0,null,null,null,null,null,null,null,null,null,null,null,null,null,null,null,null,null,null,"CE"]
["Land",null,{"$f":"SUMIFS(Sheet1!S71_PPPYearAmount,Sheet1!S71_SA34Code,$AC:$AC,Sheet1!S71_A5CapexCode,$AD:$AD)","v":0},{"$f":"SUMIFS(Sheet1!S71_PPYearAmount,Sheet1!S71_SA34Code,$AC:$AC,Sheet1!S71_A5CapexCode,$AD:$AD)","v":0},{"$f":"SUMIFS(Sheet1!S71_PYearAmount,Sheet1!S71_SA34Code,$AC:$AC,Sheet1!S71_A5CapexCode,$AD:$AD)","v":0},{"$f":"SUMIFS(Sheet1!S71_OriginalBudAmnt,Sheet1!S71_SA34Code,$AC:$AC,Sheet1!S71_A5CapexCode,$AD:$AD)","v":0},{"$f":"SUMIFS(Sheet1!S71_AdjustmentBudAmnt,Sheet1!S71_SA34Code,$AC:$AC,Sheet1!S71_A5CapexCode,$AD:$AD)","v":0},{"$f":"SUMIFS(Sheet1!S71_AdjustmentBudAmnt,Sheet1!S71_SA34Code,$AC:$AC,Sheet1!S71_A5CapexCode,$AD:$AD)","v":0},{"$f":"SUMIFS(Sheet1!S71_ASBudgetAmount,Sheet1!S71_SA34Code,$AC:$AC,Sheet1!S71_A5CapexCode,$AD:$AD)","v":0},{"$f":"SUMIFS(Sheet1!S71_OY1BudgetAmount,Sheet1!S71_SA34Code,$AC:$AC,Sheet1!S71_A5CapexCode,$AD:$AD)","v":0},{"$f":"SUMIFS(Sheet1!S71_OY2BudgetAmount,Sheet1!S71_SA34Code,$AC:$AC,Sheet1!S71_A5CapexCode,$AD:$AD)","v":0},null,null,null,null,null,null,null,null,null,null,null,null,null,null,null,null,null,"1550","CE"]
[null,null,null,null,null,null,null,null,null,null,null,null,null,null,null,null,null,null,null,null,null,null,null,null,null,null,null,null,null,"CE"]
["Zoo's, Marine and Non-biological Animals",null,{"$f":"SUM(C165:C165)","v":0},0,0,0,0,0,0,0,0,null,null,null,null,null,null,null,null,null,null,null,null,null,null,null,null,null,null,"CE"]
["Zoo's, Marine and Non-biological Animals",null,{"$f":"SUMIFS(Sheet1!S71_PPPYearAmount,Sheet1!S71_SA34Code,$AC:$AC,Sheet1!S71_A5CapexCode,$AD:$AD)","v":0},{"$f":"SUMIFS(Sheet1!S71_PPYearAmount,Sheet1!S71_SA34Code,$AC:$AC,Sheet1!S71_A5CapexCode,$AD:$AD)","v":0},{"$f":"SUMIFS(Sheet1!S71_PYearAmount,Sheet1!S71_SA34Code,$AC:$AC,Sheet1!S71_A5CapexCode,$AD:$AD)","v":0},{"$f":"SUMIFS(Sheet1!S71_OriginalBudAmnt,Sheet1!S71_SA34Code,$AC:$AC,Sheet1!S71_A5CapexCode,$AD:$AD)","v":0},{"$f":"SUMIFS(Sheet1!S71_AdjustmentBudAmnt,Sheet1!S71_SA34Code,$AC:$AC,Sheet1!S71_A5CapexCode,$AD:$AD)","v":0},{"$f":"SUMIFS(Sheet1!S71_AdjustmentBudAmnt,Sheet1!S71_SA34Code,$AC:$AC,Sheet1!S71_A5CapexCode,$AD:$AD)","v":0},{"$f":"SUMIFS(Sheet1!S71_ASBudgetAmount,Sheet1!S71_SA34Code,$AC:$AC,Sheet1!S71_A5CapexCode,$AD:$AD)","v":0},{"$f":"SUMIFS(Sheet1!S71_OY1BudgetAmount,Sheet1!S71_SA34Code,$AC:$AC,Sheet1!S71_A5CapexCode,$AD:$AD)","v":0},{"$f":"SUMIFS(Sheet1!S71_OY2BudgetAmount,Sheet1!S71_SA34Code,$AC:$AC,Sheet1!S71_A5CapexCode,$AD:$AD)","v":0},null,null,null,null,null,null,null,null,null,null,null,null,null,null,null,null,null,"1570","CE"]
[null,null,null,null,null,null,null,null,null,null,null,null,null,null,null,null,null,null,null,null,null,null,null,null,null,null,null,null,null,"CE"]
["Total Capital Expenditure on renewal of existing assets ",1,{"$f":"C6+C74+C103+C110+C118+C136+C139+C149+C152+C155+C158+C161+C164","v":0},{"$f":"D6+D74+D103+D110+D118+D136+D139+D149+D152+D155+D158+D161+D164","v":0},298030,374771,328000,328000,486000,21958,23144,null,null,null,null,null,null,null,null,null,null,null,null,null,null,null,null,null,null,"CE"]
[]
["Renewal of Existing Assets as % of total capex",null,{"$f":"IF(ISERROR(C167/'A9-Asset'!C69),0,(C167/'A9-Asset'!C69))","v":0},{"$f":"IF(ISERROR(D167/'A9-Asset'!D132),0,(D167/'A9-Asset'!D132))","v":0},{"$f":"IF(ISERROR(E167/'A9-Asset'!E132),0,(E167/'A9-Asset'!E132))","v":0.93577699350673815},{"$f":"IF(ISERROR(F167/'A9-Asset'!F132),0,(F167/'A9-Asset'!F132))","v":0.9258840183708813},{"$f":"IF(ISERROR(G167/'A9-Asset'!G132),0,(G167/'A9-Asset'!G132))","v":1},{"$f":"IF(ISERROR(H167/'A9-Asset'!H132),0,(H167/'A9-Asset'!H132))","v":1},{"$f":"IF(ISERROR(I167/'A9-Asset'!I132),0,(I167/'A9-Asset'!I132))","v":1},{"$f":"IF(ISERROR(J167/'A9-Asset'!J132),0,(J167/'A9-Asset'!J132))","v":1},{"$f":"IF(ISERROR(K167/'A9-Asset'!K132),0,(K167/'A9-Asset'!K132))","v":1}]
["Renewal of Existing Assets as % of deprecn\"",null,{"$f":"IF(ISERROR(C167/'A9-Asset'!C168),0,(C167/'A9-Asset'!C168))","v":0},{"$f":"IF(ISERROR(D167/'A9-Asset'!D168),0,(D167/'A9-Asset'!D168))","v":0},{"$f":"IF(ISERROR(E167/'A9-Asset'!E168),0,(E167/'A9-Asset'!E168))","v":0.14223820305370907},{"$f":"IF(ISERROR(F167/'A9-Asset'!F168),0,(F167/'A9-Asset'!F168))","v":0.22565011891501341},{"$f":"IF(ISERROR(G167/'A9-Asset'!G168),0,(G167/'A9-Asset'!G168))","v":0.18113040837175912},{"$f":"IF(ISERROR(H167/'A9-Asset'!H168),0,(H167/'A9-Asset'!H168))","v":0.18113040837175912},{"$f":"IF(ISERROR(I167/'A9-Asset'!I168),0,(I167/'A9-Asset'!I168))","v":0.48599999999999999},{"$f":"IF(ISERROR(J167/'A9-Asset'!J168),0,(J167/'A9-Asset'!J168))","v":2.1957999999999998E-2},{"$f":"IF(ISERROR(K167/'A9-Asset'!K168),0,(K167/'A9-Asset'!K168))","v":2.3144000000000001E-2}]
[{"$f":"head27a","v":"References"}]
["1. Total Capital Expenditure  on renewal of existing assets (SA34b) plus Total Capital Expenditure on new assets (SA34a) plus Total Capital Expenditure  on upgrading of existing assets (SA34e) must reconcile to total capital expenditure in Budgeted Capital Expenditure"]
[]
[]
["check balance",null,{"$f":"SUM(C167+SA34a!C167++SA34e!C167)-'A5-Capex'!C40","v":0},{"$f":"SUM(D167+SA34a!D167++SA34e!D167)-'A5-Capex'!D40","v":0},{"$f":"SUM(E167+SA34a!E167++SA34e!E167)-'A5-Capex'!E40","v":0},{"$f":"SUM(F167+SA34a!F167++SA34e!F167)-'A5-Capex'!F40","v":0},{"$f":"SUM(G167+SA34a!G167++SA34e!G167)-'A5-Capex'!G40","v":0},{"$f":"SUM(H167+SA34a!H167++SA34e!H167)-'A5-Capex'!H40","v":0},{"$f":"SUM(I167+SA34a!I167++SA34e!I167)-'A5-Capex'!J40","v":0},{"$f":"SUM(J167+SA34a!J167++SA34e!J167)-'A5-Capex'!K40","v":0},{"$f":"SUM(K167+SA34a!K167++SA34e!K167)-'A5-Capex'!L40","v":0}]

{"sheet":"SA34c","index":66,"n_rows":175,"n_cols":31,"rows_kept":175,"cut":false,"hidden":false,"merged":[[1,5,1,7],[1,8,1,10]]}
[{"$f":"muni&\" - \"&TableA34c","v":"DC16 Xhariep - Supporting Table SA34c Repairs and maintenance expenditure by asset class"}]
[{"$f":"desc","v":"Description"},{"$f":"head27","v":"Ref"},{"$f":"head1b","v":"2017/18"},{"$f":"head1A","v":"2018/19"},{"$f":"Head1","v":"2019/20"},{"$f":"Head2","v":"Current Year 2020/21"},null,null,{"$f":"Head3","v":"2021/22 Medium Term Revenue & Expenditure Framework"}]
["R thousand",1,{"$f":"Head5","v":"Audited Outcome"},{"$f":"Head5","v":"Audited Outcome"},{"$f":"Head5","v":"Audited Outcome"},{"$f":"Head6","v":"Original Budget"},{"$f":"Head7","v":"Adjusted Budget"},{"$f":"Head8","v":"Full Year Forecast"},{"$f":"Head9","v":"Budget Year 2021/22"},{"$f":"Head10","v":"Budget Year +1 2022/23"},{"$f":"Head11","v":"Budget Year +2 2023/24"}]
["Repairs and maintenance expenditure by Asset Class/Sub-class"]
[]
["Infrastructure",null,{"$f":"C7+C12+C16+C26+C37+C44+C52+C62+C68","v":0},{"$f":"D7+D12+D16+D26+D37+D44+D52+D62+D68","v":0},0,0,0,0,0,0,0]
["Roads Infrastructure",null,{"$f":"SUM(C8:C11)","v":0},0,0,0,0,0,0,0,0]
["Roads",null,{"$f":"SUMIFS(Sheet1!S71_PPPYearAmount,Sheet1!S71_SA34cCode,$AC:$AC,Sheet1!S71_RepMaintCode,$AD:$AD)","v":0},{"$f":"SUMIFS(Sheet1!S71_PPYearAmount,Sheet1!S71_SA34cCode,$AC:$AC,Sheet1!S71_RepMaintCode,$AD:$AD)","v":0},{"$f":"SUMIFS(Sheet1!S71_PYearAmount,Sheet1!S71_SA34cCode,$AC:$AC,Sheet1!S71_RepMaintCode,$AD:$AD)","v":0},{"$f":"SUMIFS(Sheet1!S71_OriginalBudAmnt,Sheet1!S71_SA34cCode,$AC:$AC,Sheet1!S71_RepMaintCode,$AD:$AD)","v":0},{"$f":"SUMIFS(Sheet1!S71_AdjustmentBudAmnt,Sheet1!S71_SA34cCode,$AC:$AC,Sheet1!S71_RepMaintCode,$AD:$AD)","v":0},{"$f":"SUMIFS(Sheet1!S71_AdjustmentBudAmnt,Sheet1!S71_SA34cCode,$AC:$AC,Sheet1!S71_RepMaintCode,$AD:$AD)","v":0},{"$f":"SUMIFS(Sheet1!S71_ASBudgetAmount,Sheet1!S71_SA34cCode,$AC:$AC,Sheet1!S71_RepMaintCode,$AD:$AD)","v":0},{"$f":"SUMIFS(Sheet1!S71_OY1BudgetAmount,Sheet1!S71_SA34cCode,$AC:$AC,Sheet1!S71_RepMaintCode,$AD:$AD)","v":0},{"$f":"SUMIFS(Sheet1!S71_OY2BudgetAmount,Sheet1!S71_SA34cCode,$AC:$AC,Sheet1!S71_RepMaintCode,$AD:$AD)","v":0},null,null,null,null,null,null,null,null,null,null,null,null,null,null,null,null,null,"0120","RM",{"$f":"SUMIFS(Sheet1!S71_PreAuditActual,Sheet1!S71_SA34cCode,_xlfn.SINGLE($AC:$AC),Sheet1!S71_RepMaintCode,_xlfn.SINGLE($AD:$AD))","v":0}]
["Road Structures",null,{"$f":"SUMIFS(Sheet1!S71_PPPYearAmount,Sheet1!S71_SA34cCode,$AC:$AC,Sheet1!S71_RepMaintCode,$AD:$AD)","v":0},{"$f":"SUMIFS(Sheet1!S71_PPYearAmount,Sheet1!S71_SA34cCode,$AC:$AC,Sheet1!S71_RepMaintCode,$AD:$AD)","v":0},{"$f":"SUMIFS(Sheet1!S71_PYearAmount,Sheet1!S71_SA34cCode,$AC:$AC,Sheet1!S71_RepMaintCode,$AD:$AD)","v":0},{"$f":"SUMIFS(Sheet1!S71_OriginalBudAmnt,Sheet1!S71_SA34cCode,$AC:$AC,Sheet1!S71_RepMaintCode,$AD:$AD)","v":0},{"$f":"SUMIFS(Sheet1!S71_AdjustmentBudAmnt,Sheet1!S71_SA34cCode,$AC:$AC,Sheet1!S71_RepMaintCode,$AD:$AD)","v":0},{"$f":"SUMIFS(Sheet1!S71_AdjustmentBudAmnt,Sheet1!S71_SA34cCode,$AC:$AC,Sheet1!S71_RepMaintCode,$AD:$AD)","v":0},{"$f":"SUMIFS(Sheet1!S71_ASBudgetAmount,Sheet1!S71_SA34cCode,$AC:$AC,Sheet1!S71_RepMaintCode,$AD:$AD)","v":0},{"$f":"SUMIFS(Sheet1!S71_OY1BudgetAmount,Sheet1!S71_SA34cCode,$AC:$AC,Sheet1!S71_RepMaintCode,$AD:$AD)","v":0},{"$f":"SUMIFS(Sheet1!S71_OY2BudgetAmount,Sheet1!S71_SA34cCode,$AC:$AC,Sheet1!S71_RepMaintCode,$AD:$AD)","v":0},null,null,null,null,null,null,null,null,null,null,null,null,null,null,null,null,null,"0130","RM",{"$f":"SUMIFS(Sheet1!S71_PreAuditActual,Sheet1!S71_SA34cCode,_xlfn.SINGLE($AC:$AC),Sheet1!S71_RepMaintCode,_xlfn.SINGLE($AD:$AD))","v":0}]
["Road Furniture",null,{"$f":"SUMIFS(Sheet1!S71_PPPYearAmount,Sheet1!S71_SA34cCode,$AC:$AC,Sheet1!S71_RepMaintCode,$AD:$AD)","v":0},{"$f":"SUMIFS(Sheet1!S71_PPYearAmount,Sheet1!S71_SA34cCode,$AC:$AC,Sheet1!S71_RepMaintCode,$AD:$AD)","v":0},{"$f":"SUMIFS(Sheet1!S71_PYearAmount,Sheet1!S71_SA34cCode,$AC:$AC,Sheet1!S71_RepMaintCode,$AD:$AD)","v":0},{"$f":"SUMIFS(Sheet1!S71_OriginalBudAmnt,Sheet1!S71_SA34cCode,$AC:$AC,Sheet1!S71_RepMaintCode,$AD:$AD)","v":0},{"$f":"SUMIFS(Sheet1!S71_AdjustmentBudAmnt,Sheet1!S71_SA34cCode,$AC:$AC,Sheet1!S71_RepMaintCode,$AD:$AD)","v":0},{"$f":"SUMIFS(Sheet1!S71_AdjustmentBudAmnt,Sheet1!S71_SA34cCode,$AC:$AC,Sheet1!S71_RepMaintCode,$AD:$AD)","v":0},{"$f":"SUMIFS(Sheet1!S71_ASBudgetAmount,Sheet1!S71_SA34cCode,$AC:$AC,Sheet1!S71_RepMaintCode,$AD:$AD)","v":0},{"$f":"SUMIFS(Sheet1!S71_OY1BudgetAmount,Sheet1!S71_SA34cCode,$AC:$AC,Sheet1!S71_RepMaintCode,$AD:$AD)","v":0},{"$f":"SUMIFS(Sheet1!S71_OY2BudgetAmount,Sheet1!S71_SA34cCode,$AC:$AC,Sheet1!S71_RepMaintCode,$AD:$AD)","v":0},null,null,null,null,null,null,null,null,null,null,null,null,null,null,null,null,null,"0140","RM",{"$f":"SUMIFS(Sheet1!S71_PreAuditActual,Sheet1!S71_SA34cCode,_xlfn.SINGLE($AC:$AC),Sheet1!S71_RepMaintCode,_xlfn.SINGLE($AD:$AD))","v":0}]
["Capital Spares",null,{"$f":"SUMIFS(Sheet1!S71_PPPYearAmount,Sheet1!S71_SA34cCode,$AC:$AC,Sheet1!S71_RepMaintCode,$AD:$AD)","v":0},{"$f":"SUMIFS(Sheet1!S71_PPYearAmount,Sheet1!S71_SA34cCode,$AC:$AC,Sheet1!S71_RepMaintCode,$AD:$AD)","v":0},{"$f":"SUMIFS(Sheet1!S71_PYearAmount,Sheet1!S71_SA34cCode,$AC:$AC,Sheet1!S71_RepMaintCode,$AD:$AD)","v":0},{"$f":"SUMIFS(Sheet1!S71_OriginalBudAmnt,Sheet1!S71_SA34cCode,$AC:$AC,Sheet1!S71_RepMaintCode,$AD:$AD)","v":0},{"$f":"SUMIFS(Sheet1!S71_AdjustmentBudAmnt,Sheet1!S71_SA34cCode,$AC:$AC,Sheet1!S71_RepMaintCode,$AD:$AD)","v":0},{"$f":"SUMIFS(Sheet1!S71_AdjustmentBudAmnt,Sheet1!S71_SA34cCode,$AC:$AC,Sheet1!S71_RepMaintCode,$AD:$AD)","v":0},{"$f":"SUMIFS(Sheet1!S71_ASBudgetAmount,Sheet1!S71_SA34cCode,$AC:$AC,Sheet1!S71_RepMaintCode,$AD:$AD)","v":0},{"$f":"SUMIFS(Sheet1!S71_OY1BudgetAmount,Sheet1!S71_SA34cCode,$AC:$AC,Sheet1!S71_RepMaintCode,$AD:$AD)","v":0},{"$f":"SUMIFS(Sheet1!S71_OY2BudgetAmount,Sheet1!S71_SA34cCode,$AC:$AC,Sheet1!S71_RepMaintCode,$AD:$AD)","v":0},null,null,null,null,null,null,null,null,null,null,null,null,null,null,null,null,null,"0150","RM",{"$f":"SUMIFS(Sheet1!S71_PreAuditActual,Sheet1!S71_SA34cCode,_xlfn.SINGLE($AC:$AC),Sheet1!S71_RepMaintCode,_xlfn.SINGLE($AD:$AD))","v":0}]
["Storm water Infrastructure",null,{"$f":"SUM(C13:C15)","v":0},{"$f":"SUM(D13:D15)","v":0},0,0,0,0,0,0,0,null,null,null,null,null,null,null,null,null,null,null,null,null,null,null,null,null,null,"RM",{"$f":"SUMIFS(Sheet1!S71_PreAuditActual,Sheet1!S71_SA34cCode,_xlfn.SINGLE($AC:$AC),Sheet1!S71_RepMaintCode,_xlfn.SINGLE($AD:$AD))","v":0}]
["Drainage Collection",null,{"$f":"SUMIFS(Sheet1!S71_PPPYearAmount,Sheet1!S71_SA34cCode,$AC:$AC,Sheet1!S71_RepMaintCode,$AD:$AD)","v":0},{"$f":"SUMIFS(Sheet1!S71_PPYearAmount,Sheet1!S71_SA34cCode,$AC:$AC,Sheet1!S71_RepMaintCode,$AD:$AD)","v":0},{"$f":"SUMIFS(Sheet1!S71_PYearAmount,Sheet1!S71_SA34cCode,$AC:$AC,Sheet1!S71_RepMaintCode,$AD:$AD)","v":0},{"$f":"SUMIFS(Sheet1!S71_OriginalBudAmnt,Sheet1!S71_SA34cCode,$AC:$AC,Sheet1!S71_RepMaintCode,$AD:$AD)","v":0},{"$f":"SUMIFS(Sheet1!S71_AdjustmentBudAmnt,Sheet1!S71_SA34cCode,$AC:$AC,Sheet1!S71_RepMaintCode,$AD:$AD)","v":0},{"$f":"SUMIFS(Sheet1!S71_AdjustmentBudAmnt,Sheet1!S71_SA34cCode,$AC:$AC,Sheet1!S71_RepMaintCode,$AD:$AD)","v":0},{"$f":"SUMIFS(Sheet1!S71_ASBudgetAmount,Sheet1!S71_SA34cCode,$AC:$AC,Sheet1!S71_RepMaintCode,$AD:$AD)","v":0},{"$f":"SUMIFS(Sheet1!S71_OY1BudgetAmount,Sheet1!S71_SA34cCode,$AC:$AC,Sheet1!S71_RepMaintCode,$AD:$AD)","v":0},{"$f":"SUMIFS(Sheet1!S71_OY2BudgetAmount,Sheet1!S71_SA34cCode,$AC:$AC,Sheet1!S71_RepMaintCode,$AD:$AD)","v":0},null,null,null,null,null,null,null,null,null,null,null,null,null,null,null,null,null,"0170","RM",{"$f":"SUMIFS(Sheet1!S71_PreAuditActual,Sheet1!S71_SA34cCode,_xlfn.SINGLE($AC:$AC),Sheet1!S71_RepMaintCode,_xlfn.SINGLE($AD:$AD))","v":0}]
["Storm water Conveyance",null,{"$f":"SUMIFS(Sheet1!S71_PPPYearAmount,Sheet1!S71_SA34cCode,$AC:$AC,Sheet1!S71_RepMaintCode,$AD:$AD)","v":0},{"$f":"SUMIFS(Sheet1!S71_PPYearAmount,Sheet1!S71_SA34cCode,$AC:$AC,Sheet1!S71_RepMaintCode,$AD:$AD)","v":0},{"$f":"SUMIFS(Sheet1!S71_PYearAmount,Sheet1!S71_SA34cCode,$AC:$AC,Sheet1!S71_RepMaintCode,$AD:$AD)","v":0},{"$f":"SUMIFS(Sheet1!S71_OriginalBudAmnt,Sheet1!S71_SA34cCode,$AC:$AC,Sheet1!S71_RepMaintCode,$AD:$AD)","v":0},{"$f":"SUMIFS(Sheet1!S71_AdjustmentBudAmnt,Sheet1!S71_SA34cCode,$AC:$AC,Sheet1!S71_RepMaintCode,$AD:$AD)","v":0},{"$f":"SUMIFS(Sheet1!S71_AdjustmentBudAmnt,Sheet1!S71_SA34cCode,$AC:$AC,Sheet1!S71_RepMaintCode,$AD:$AD)","v":0},{"$f":"SUMIFS(Sheet1!S71_ASBudgetAmount,Sheet1!S71_SA34cCode,$AC:$AC,Sheet1!S71_RepMaintCode,$AD:$AD)","v":0},{"$f":"SUMIFS(Sheet1!S71_OY1BudgetAmount,Sheet1!S71_SA34cCode,$AC:$AC,Sheet1!S71_RepMaintCode,$AD:$AD)","v":0},{"$f":"SUMIFS(Sheet1!S71_OY2BudgetAmount,Sheet1!S71_SA34cCode,$AC:$AC,Sheet1!S71_RepMaintCode,$AD:$AD)","v":0},null,null,null,null,null,null,null,null,null,null,null,null,null,null,null,null,null,"0180","RM",{"$f":"SUMIFS(Sheet1!S71_PreAuditActual,Sheet1!S71_SA34cCode,_xlfn.SINGLE($AC:$AC),Sheet1!S71_RepMaintCode,_xlfn.SINGLE($AD:$AD))","v":0}]
["Attenuation",null,{"$f":"SUMIFS(Sheet1!S71_PPPYearAmount,Sheet1!S71_SA34cCode,$AC:$AC,Sheet1!S71_RepMaintCode,$AD:$AD)","v":0},{"$f":"SUMIFS(Sheet1!S71_PPYearAmount,Sheet1!S71_SA34cCode,$AC:$AC,Sheet1!S71_RepMaintCode,$AD:$AD)","v":0},{"$f":"SUMIFS(Sheet1!S71_PYearAmount,Sheet1!S71_SA34cCode,$AC:$AC,Sheet1!S71_RepMaintCode,$AD:$AD)","v":0},{"$f":"SUMIFS(Sheet1!S71_OriginalBudAmnt,Sheet1!S71_SA34cCode,$AC:$AC,Sheet1!S71_RepMaintCode,$AD:$AD)","v":0},{"$f":"SUMIFS(Sheet1!S71_AdjustmentBudAmnt,Sheet1!S71_SA34cCode,$AC:$AC,Sheet1!S71_RepMaintCode,$AD:$AD)","v":0},{"$f":"SUMIFS(Sheet1!S71_AdjustmentBudAmnt,Sheet1!S71_SA34cCode,$AC:$AC,Sheet1!S71_RepMaintCode,$AD:$AD)","v":0},{"$f":"SUMIFS(Sheet1!S71_ASBudgetAmount,Sheet1!S71_SA34cCode,$AC:$AC,Sheet1!S71_RepMaintCode,$AD:$AD)","v":0},{"$f":"SUMIFS(Sheet1!S71_OY1BudgetAmount,Sheet1!S71_SA34cCode,$AC:$AC,Sheet1!S71_RepMaintCode,$AD:$AD)","v":0},{"$f":"SUMIFS(Sheet1!S71_OY2BudgetAmount,Sheet1!S71_SA34cCode,$AC:$AC,Sheet1!S71_RepMaintCode,$AD:$AD)","v":0},null,null,null,null,null,null,null,null,null,null,null,null,null,null,null,null,null,"0190","RM",{"$f":"SUMIFS(Sheet1!S71_PreAuditActual,Sheet1!S71_SA34cCode,_xlfn.SINGLE($AC:$AC),Sheet1!S71_RepMaintCode,_xlfn.SINGLE($AD:$AD))","v":0}]
["Electrical Infrastructure",null,{"$f":"SUM(C17:C25)","v":0},0,0,0,0,0,0,0,0,null,null,null,null,null,null,null,null,null,null,null,null,null,null,null,null,null,null,"RM",{"$f":"SUMIFS(Sheet1!S71_PreAuditActual,Sheet1!S71_SA34cCode,_xlfn.SINGLE($AC:$AC),Sheet1!S71_RepMaintCode,_xlfn.SINGLE($AD:$AD))","v":0}]
["Power Plants",null,{"$f":"SUMIFS(Sheet1!S71_PPPYearAmount,Sheet1!S71_SA34cCode,$AC:$AC,Sheet1!S71_RepMaintCode,$AD:$AD)","v":0},{"$f":"SUMIFS(Sheet1!S71_PPYearAmount,Sheet1!S71_SA34cCode,$AC:$AC,Sheet1!S71_RepMaintCode,$AD:$AD)","v":0},{"$f":"SUMIFS(Sheet1!S71_PYearAmount,Sheet1!S71_SA34cCode,$AC:$AC,Sheet1!S71_RepMaintCode,$AD:$AD)","v":0},{"$f":"SUMIFS(Sheet1!S71_OriginalBudAmnt,Sheet1!S71_SA34cCode,$AC:$AC,Sheet1!S71_RepMaintCode,$AD:$AD)","v":0},{"$f":"SUMIFS(Sheet1!S71_AdjustmentBudAmnt,Sheet1!S71_SA34cCode,$AC:$AC,Sheet1!S71_RepMaintCode,$AD:$AD)","v":0},{"$f":"SUMIFS(Sheet1!S71_AdjustmentBudAmnt,Sheet1!S71_SA34cCode,$AC:$AC,Sheet1!S71_RepMaintCode,$AD:$AD)","v":0},{"$f":"SUMIFS(Sheet1!S71_ASBudgetAmount,Sheet1!S71_SA34cCode,$AC:$AC,Sheet1!S71_RepMaintCode,$AD:$AD)","v":0},{"$f":"SUMIFS(Sheet1!S71_OY1BudgetAmount,Sheet1!S71_SA34cCode,$AC:$AC,Sheet1!S71_RepMaintCode,$AD:$AD)","v":0},{"$f":"SUMIFS(Sheet1!S71_OY2BudgetAmount,Sheet1!S71_SA34cCode,$AC:$AC,Sheet1!S71_RepMaintCode,$AD:$AD)","v":0},null,null,null,null,null,null,null,null,null,null,null,null,null,null,null,null,null,"0210","RM",{"$f":"SUMIFS(Sheet1!S71_PreAuditActual,Sheet1!S71_SA34cCode,_xlfn.SINGLE($AC:$AC),Sheet1!S71_RepMaintCode,_xlfn.SINGLE($AD:$AD))","v":0}]
["HV Substations",null,{"$f":"SUMIFS(Sheet1!S71_PPPYearAmount,Sheet1!S71_SA34cCode,$AC:$AC,Sheet1!S71_RepMaintCode,$AD:$AD)","v":0},{"$f":"SUMIFS(Sheet1!S71_PPYearAmount,Sheet1!S71_SA34cCode,$AC:$AC,Sheet1!S71_RepMaintCode,$AD:$AD)","v":0},{"$f":"SUMIFS(Sheet1!S71_PYearAmount,Sheet1!S71_SA34cCode,$AC:$AC,Sheet1!S71_RepMaintCode,$AD:$AD)","v":0},{"$f":"SUMIFS(Sheet1!S71_OriginalBudAmnt,Sheet1!S71_SA34cCode,$AC:$AC,Sheet1!S71_RepMaintCode,$AD:$AD)","v":0},{"$f":"SUMIFS(Sheet1!S71_AdjustmentBudAmnt,Sheet1!S71_SA34cCode,$AC:$AC,Sheet1!S71_RepMaintCode,$AD:$AD)","v":0},{"$f":"SUMIFS(Sheet1!S71_AdjustmentBudAmnt,Sheet1!S71_SA34cCode,$AC:$AC,Sheet1!S71_RepMaintCode,$AD:$AD)","v":0},{"$f":"SUMIFS(Sheet1!S71_ASBudgetAmount,Sheet1!S71_SA34cCode,$AC:$AC,Sheet1!S71_RepMaintCode,$AD:$AD)","v":0},{"$f":"SUMIFS(Sheet1!S71_OY1BudgetAmount,Sheet1!S71_SA34cCode,$AC:$AC,Sheet1!S71_RepMaintCode,$AD:$AD)","v":0},{"$f":"SUMIFS(Sheet1!S71_OY2BudgetAmount,Sheet1!S71_SA34cCode,$AC:$AC,Sheet1!S71_RepMaintCode,$AD:$AD)","v":0},null,null,null,null,null,null,null,null,null,null,null,null,null,null,null,null,null,"0220","RM",{"$f":"SUMIFS(Sheet1!S71_PreAuditActual,Sheet1!S71_SA34cCode,_xlfn.SINGLE($AC:$AC),Sheet1!S71_RepMaintCode,_xlfn.SINGLE($AD:$AD))","v":0}]
["HV Switching Station",null,{"$f":"SUMIFS(Sheet1!S71_PPPYearAmount,Sheet1!S71_SA34cCode,$AC:$AC,Sheet1!S71_RepMaintCode,$AD:$AD)","v":0},{"$f":"SUMIFS(Sheet1!S71_PPYearAmount,Sheet1!S71_SA34cCode,$AC:$AC,Sheet1!S71_RepMaintCode,$AD:$AD)","v":0},{"$f":"SUMIFS(Sheet1!S71_PYearAmount,Sheet1!S71_SA34cCode,$AC:$AC,Sheet1!S71_RepMaintCode,$AD:$AD)","v":0},{"$f":"SUMIFS(Sheet1!S71_OriginalBudAmnt,Sheet1!S71_SA34cCode,$AC:$AC,Sheet1!S71_RepMaintCode,$AD:$AD)","v":0},{"$f":"SUMIFS(Sheet1!S71_AdjustmentBudAmnt,Sheet1!S71_SA34cCode,$AC:$AC,Sheet1!S71_RepMaintCode,$AD:$AD)","v":0},{"$f":"SUMIFS(Sheet1!S71_AdjustmentBudAmnt,Sheet1!S71_SA34cCode,$AC:$AC,Sheet1!S71_RepMaintCode,$AD:$AD)","v":0},{"$f":"SUMIFS(Sheet1!S71_ASBudgetAmount,Sheet1!S71_SA34cCode,$AC:$AC,Sheet1!S71_RepMaintCode,$AD:$AD)","v":0},{"$f":"SUMIFS(Sheet1!S71_OY1BudgetAmount,Sheet1!S71_SA34cCode,$AC:$AC,Sheet1!S71_RepMaintCode,$AD:$AD)","v":0},{"$f":"SUMIFS(Sheet1!S71_OY2BudgetAmount,Sheet1!S71_SA34cCode,$AC:$AC,Sheet1!S71_RepMaintCode,$AD:$AD)","v":0},null,null,null,null,null,null,null,null,null,null,null,null,null,null,null,null,null,"0230","RM",{"$f":"SUMIFS(Sheet1!S71_PreAuditActual,Sheet1!S71_SA34cCode,_xlfn.SINGLE($AC:$AC),Sheet1!S71_RepMaintCode,_xlfn.SINGLE($AD:$AD))","v":0}]
["HV Transmission Conductors",null,{"$f":"SUMIFS(Sheet1!S71_PPPYearAmount,Sheet1!S71_SA34cCode,$AC:$AC,Sheet1!S71_RepMaintCode,$AD:$AD)","v":0},{"$f":"SUMIFS(Sheet1!S71_PPYearAmount,Sheet1!S71_SA34cCode,$AC:$AC,Sheet1!S71_RepMaintCode,$AD:$AD)","v":0},{"$f":"SUMIFS(Sheet1!S71_PYearAmount,Sheet1!S71_SA34cCode,$AC:$AC,Sheet1!S71_RepMaintCode,$AD:$AD)","v":0},{"$f":"SUMIFS(Sheet1!S71_OriginalBudAmnt,Sheet1!S71_SA34cCode,$AC:$AC,Sheet1!S71_RepMaintCode,$AD:$AD)","v":0},{"$f":"SUMIFS(Sheet1!S71_AdjustmentBudAmnt,Sheet1!S71_SA34cCode,$AC:$AC,Sheet1!S71_RepMaintCode,$AD:$AD)","v":0},{"$f":"SUMIFS(Sheet1!S71_AdjustmentBudAmnt,Sheet1!S71_SA34cCode,$AC:$AC,Sheet1!S71_RepMaintCode,$AD:$AD)","v":0},{"$f":"SUMIFS(Sheet1!S71_ASBudgetAmount,Sheet1!S71_SA34cCode,$AC:$AC,Sheet1!S71_RepMaintCode,$AD:$AD)","v":0},{"$f":"SUMIFS(Sheet1!S71_OY1BudgetAmount,Sheet1!S71_SA34cCode,$AC:$AC,Sheet1!S71_RepMaintCode,$AD:$AD)","v":0},{"$f":"SUMIFS(Sheet1!S71_OY2BudgetAmount,Sheet1!S71_SA34cCode,$AC:$AC,Sheet1!S71_RepMaintCode,$AD:$AD)","v":0},null,null,null,null,null,null,null,null,null,null,null,null,null,null,null,null,null,"0240","RM",{"$f":"SUMIFS(Sheet1!S71_PreAuditActual,Sheet1!S71_SA34cCode,_xlfn.SINGLE($AC:$AC),Sheet1!S71_RepMaintCode,_xlfn.SINGLE($AD:$AD))","v":0}]
["MV Substations",null,{"$f":"SUMIFS(Sheet1!S71_PPPYearAmount,Sheet1!S71_SA34cCode,$AC:$AC,Sheet1!S71_RepMaintCode,$AD:$AD)","v":0},{"$f":"SUMIFS(Sheet1!S71_PPYearAmount,Sheet1!S71_SA34cCode,$AC:$AC,Sheet1!S71_RepMaintCode,$AD:$AD)","v":0},{"$f":"SUMIFS(Sheet1!S71_PYearAmount,Sheet1!S71_SA34cCode,$AC:$AC,Sheet1!S71_RepMaintCode,$AD:$AD)","v":0},{"$f":"SUMIFS(Sheet1!S71_OriginalBudAmnt,Sheet1!S71_SA34cCode,$AC:$AC,Sheet1!S71_RepMaintCode,$AD:$AD)","v":0},{"$f":"SUMIFS(Sheet1!S71_AdjustmentBudAmnt,Sheet1!S71_SA34cCode,$AC:$AC,Sheet1!S71_RepMaintCode,$AD:$AD)","v":0},{"$f":"SUMIFS(Sheet1!S71_AdjustmentBudAmnt,Sheet1!S71_SA34cCode,$AC:$AC,Sheet1!S71_RepMaintCode,$AD:$AD)","v":0},{"$f":"SUMIFS(Sheet1!S71_ASBudgetAmount,Sheet1!S71_SA34cCode,$AC:$AC,Sheet1!S71_RepMaintCode,$AD:$AD)","v":0},{"$f":"SUMIFS(Sheet1!S71_OY1BudgetAmount,Sheet1!S71_SA34cCode,$AC:$AC,Sheet1!S71_RepMaintCode,$AD:$AD)","v":0},{"$f":"SUMIFS(Sheet1!S71_OY2BudgetAmount,Sheet1!S71_SA34cCode,$AC:$AC,Sheet1!S71_RepMaintCode,$AD:$AD)","v":0},null,null,null,null,null,null,null,null,null,null,null,null,null,null,null,null,null,"0250","RM",{"$f":"SUMIFS(Sheet1!S71_PreAuditActual,Sheet1!S71_SA34cCode,_xlfn.SINGLE($AC:$AC),Sheet1!S71_RepMaintCode,_xlfn.SINGLE($AD:$AD))","v":0}]
["MV Switching Stations",null,{"$f":"SUMIFS(Sheet1!S71_PPPYearAmount,Sheet1!S71_SA34cCode,$AC:$AC,Sheet1!S71_RepMaintCode,$AD:$AD)","v":0},{"$f":"SUMIFS(Sheet1!S71_PPYearAmount,Sheet1!S71_SA34cCode,$AC:$AC,Sheet1!S71_RepMaintCode,$AD:$AD)","v":0},{"$f":"SUMIFS(Sheet1!S71_PYearAmount,Sheet1!S71_SA34cCode,$AC:$AC,Sheet1!S71_RepMaintCode,$AD:$AD)","v":0},{"$f":"SUMIFS(Sheet1!S71_OriginalBudAmnt,Sheet1!S71_SA34cCode,$AC:$AC,Sheet1!S71_RepMaintCode,$AD:$AD)","v":0},{"$f":"SUMIFS(Sheet1!S71_AdjustmentBudAmnt,Sheet1!S71_SA34cCode,$AC:$AC,Sheet1!S71_RepMaintCode,$AD:$AD)","v":0},{"$f":"SUMIFS(Sheet1!S71_AdjustmentBudAmnt,Sheet1!S71_SA34cCode,$AC:$AC,Sheet1!S71_RepMaintCode,$AD:$AD)","v":0},{"$f":"SUMIFS(Sheet1!S71_ASBudgetAmount,Sheet1!S71_SA34cCode,$AC:$AC,Sheet1!S71_RepMaintCode,$AD:$AD)","v":0},{"$f":"SUMIFS(Sheet1!S71_OY1BudgetAmount,Sheet1!S71_SA34cCode,$AC:$AC,Sheet1!S71_RepMaintCode,$AD:$AD)","v":0},{"$f":"SUMIFS(Sheet1!S71_OY2BudgetAmount,Sheet1!S71_SA34cCode,$AC:$AC,Sheet1!S71_RepMaintCode,$AD:$AD)","v":0},null,null,null,null,null,null,null,null,null,null,null,null,null,null,null,null,null,"0260","RM",{"$f":"SUMIFS(Sheet1!S71_PreAuditActual,Sheet1!S71_SA34cCode,_xlfn.SINGLE($AC:$AC),Sheet1!S71_RepMaintCode,_xlfn.SINGLE($AD:$AD))","v":0}]
["MV Networks",null,{"$f":"SUMIFS(Sheet1!S71_PPPYearAmount,Sheet1!S71_SA34cCode,$AC:$AC,Sheet1!S71_RepMaintCode,$AD:$AD)","v":0},{"$f":"SUMIFS(Sheet1!S71_PPYearAmount,Sheet1!S71_SA34cCode,$AC:$AC,Sheet1!S71_RepMaintCode,$AD:$AD)","v":0},{"$f":"SUMIFS(Sheet1!S71_PYearAmount,Sheet1!S71_SA34cCode,$AC:$AC,Sheet1!S71_RepMaintCode,$AD:$AD)","v":0},{"$f":"SUMIFS(Sheet1!S71_OriginalBudAmnt,Sheet1!S71_SA34cCode,$AC:$AC,Sheet1!S71_RepMaintCode,$AD:$AD)","v":0},{"$f":"SUMIFS(Sheet1!S71_AdjustmentBudAmnt,Sheet1!S71_SA34cCode,$AC:$AC,Sheet1!S71_RepMaintCode,$AD:$AD)","v":0},{"$f":"SUMIFS(Sheet1!S71_AdjustmentBudAmnt,Sheet1!S71_SA34cCode,$AC:$AC,Sheet1!S71_RepMaintCode,$AD:$AD)","v":0},{"$f":"SUMIFS(Sheet1!S71_ASBudgetAmount,Sheet1!S71_SA34cCode,$AC:$AC,Sheet1!S71_RepMaintCode,$AD:$AD)","v":0},{"$f":"SUMIFS(Sheet1!S71_OY1BudgetAmount,Sheet1!S71_SA34cCode,$AC:$AC,Sheet1!S71_RepMaintCode,$AD:$AD)","v":0},{"$f":"SUMIFS(Sheet1!S71_OY2BudgetAmount,Sheet1!S71_SA34cCode,$AC:$AC,Sheet1!S71_RepMaintCode,$AD:$AD)","v":0},null,null,null,null,null,null,null,null,null,null,null,null,null,null,null,null,null,"0270","RM",{"$f":"SUMIFS(Sheet1!S71_PreAuditActual,Sheet1!S71_SA34cCode,_xlfn.SINGLE($AC:$AC),Sheet1!S71_RepMaintCode,_xlfn.SINGLE($AD:$AD))","v":0}]
["LV Networks",null,{"$f":"SUMIFS(Sheet1!S71_PPPYearAmount,Sheet1!S71_SA34cCode,$AC:$AC,Sheet1!S71_RepMaintCode,$AD:$AD)","v":0},{"$f":"SUMIFS(Sheet1!S71_PPYearAmount,Sheet1!S71_SA34cCode,$AC:$AC,Sheet1!S71_RepMaintCode,$AD:$AD)","v":0},{"$f":"SUMIFS(Sheet1!S71_PYearAmount,Sheet1!S71_SA34cCode,$AC:$AC,Sheet1!S71_RepMaintCode,$AD:$AD)","v":0},{"$f":"SUMIFS(Sheet1!S71_OriginalBudAmnt,Sheet1!S71_SA34cCode,$AC:$AC,Sheet1!S71_RepMaintCode,$AD:$AD)","v":0},{"$f":"SUMIFS(Sheet1!S71_AdjustmentBudAmnt,Sheet1!S71_SA34cCode,$AC:$AC,Sheet1!S71_RepMaintCode,$AD:$AD)","v":0},{"$f":"SUMIFS(Sheet1!S71_AdjustmentBudAmnt,Sheet1!S71_SA34cCode,$AC:$AC,Sheet1!S71_RepMaintCode,$AD:$AD)","v":0},{"$f":"SUMIFS(Sheet1!S71_ASBudgetAmount,Sheet1!S71_SA34cCode,$AC:$AC,Sheet1!S71_RepMaintCode,$AD:$AD)","v":0},{"$f":"SUMIFS(Sheet1!S71_OY1BudgetAmount,Sheet1!S71_SA34cCode,$AC:$AC,Sheet1!S71_RepMaintCode,$AD:$AD)","v":0},{"$f":"SUMIFS(Sheet1!S71_OY2BudgetAmount,Sheet1!S71_SA34cCode,$AC:$AC,Sheet1!S71_RepMaintCode,$AD:$AD)","v":0},null,null,null,null,null,null,null,null,null,null,null,null,null,null,null,null,null,"0280","RM",{"$f":"SUMIFS(Sheet1!S71_PreAuditActual,Sheet1!S71_SA34cCode,_xlfn.SINGLE($AC:$AC),Sheet1!S71_RepMaintCode,_xlfn.SINGLE($AD:$AD))","v":0}]
["Capital Spares",null,{"$f":"SUMIFS(Sheet1!S71_PPPYearAmount,Sheet1!S71_SA34cCode,$AC:$AC,Sheet1!S71_RepMaintCode,$AD:$AD)","v":0},{"$f":"SUMIFS(Sheet1!S71_PPYearAmount,Sheet1!S71_SA34cCode,$AC:$AC,Sheet1!S71_RepMaintCode,$AD:$AD)","v":0},{"$f":"SUMIFS(Sheet1!S71_PYearAmount,Sheet1!S71_SA34cCode,$AC:$AC,Sheet1!S71_RepMaintCode,$AD:$AD)","v":0},{"$f":"SUMIFS(Sheet1!S71_OriginalBudAmnt,Sheet1!S71_SA34cCode,$AC:$AC,Sheet1!S71_RepMaintCode,$AD:$AD)","v":0},{"$f":"SUMIFS(Sheet1!S71_AdjustmentBudAmnt,Sheet1!S71_SA34cCode,$AC:$AC,Sheet1!S71_RepMaintCode,$AD:$AD)","v":0},{"$f":"SUMIFS(Sheet1!S71_AdjustmentBudAmnt,Sheet1!S71_SA34cCode,$AC:$AC,Sheet1!S71_RepMaintCode,$AD:$AD)","v":0},{"$f":"SUMIFS(Sheet1!S71_ASBudgetAmount,Sheet1!S71_SA34cCode,$AC:$AC,Sheet1!S71_RepMaintCode,$AD:$AD)","v":0},{"$f":"SUMIFS(Sheet1!S71_OY1BudgetAmount,Sheet1!S71_SA34cCode,$AC:$AC,Sheet1!S71_RepMaintCode,$AD:$AD)","v":0},{"$f":"SUMIFS(Sheet1!S71_OY2BudgetAmount,Sheet1!S71_SA34cCode,$AC:$AC,Sheet1!S71_RepMaintCode,$AD:$AD)","v":0},null,null,null,null,null,null,null,null,null,null,null,null,null,null,null,null,null,"0290","RM",{"$f":"SUMIFS(Sheet1!S71_PreAuditActual,Sheet1!S71_SA34cCode,_xlfn.SINGLE($AC:$AC),Sheet1!S71_RepMaintCode,_xlfn.SINGLE($AD:$AD))","v":0}]
["Water Supply Infrastructure",null,{"$f":"SUM(C27:C36)","v":0},{"$f":"SUM(D27:D36)","v":0},0,0,0,0,0,0,0,null,null,null,null,null,null,null,null,null,null,null,null,null,null,null,null,null,null,"RM",{"$f":"SUMIFS(Sheet1!S71_PreAuditActual,Sheet1!S71_SA34cCode,_xlfn.SINGLE($AC:$AC),Sheet1!S71_RepMaintCode,_xlfn.SINGLE($AD:$AD))","v":0}]
["Dams and Weirs",null,{"$f":"SUMIFS(Sheet1!S71_PPPYearAmount,Sheet1!S71_SA34cCode,$AC:$AC,Sheet1!S71_RepMaintCode,$AD:$AD)","v":0},{"$f":"SUMIFS(Sheet1!S71_PPYearAmount,Sheet1!S71_SA34cCode,$AC:$AC,Sheet1!S71_RepMaintCode,$AD:$AD)","v":0},{"$f":"SUMIFS(Sheet1!S71_PYearAmount,Sheet1!S71_SA34cCode,$AC:$AC,Sheet1!S71_RepMaintCode,$AD:$AD)","v":0},{"$f":"SUMIFS(Sheet1!S71_OriginalBudAmnt,Sheet1!S71_SA34cCode,$AC:$AC,Sheet1!S71_RepMaintCode,$AD:$AD)","v":0},{"$f":"SUMIFS(Sheet1!S71_AdjustmentBudAmnt,Sheet1!S71_SA34cCode,$AC:$AC,Sheet1!S71_RepMaintCode,$AD:$AD)","v":0},{"$f":"SUMIFS(Sheet1!S71_AdjustmentBudAmnt,Sheet1!S71_SA34cCode,$AC:$AC,Sheet1!S71_RepMaintCode,$AD:$AD)","v":0},{"$f":"SUMIFS(Sheet1!S71_ASBudgetAmount,Sheet1!S71_SA34cCode,$AC:$AC,Sheet1!S71_RepMaintCode,$AD:$AD)","v":0},{"$f":"SUMIFS(Sheet1!S71_OY1BudgetAmount,Sheet1!S71_SA34cCode,$AC:$AC,Sheet1!S71_RepMaintCode,$AD:$AD)","v":0},{"$f":"SUMIFS(Sheet1!S71_OY2BudgetAmount,Sheet1!S71_SA34cCode,$AC:$AC,Sheet1!S71_RepMaintCode,$AD:$AD)","v":0},null,null,null,null,null,null,null,null,null,null,null,null,null,null,null,null,null,"0310","RM",{"$f":"SUMIFS(Sheet1!S71_PreAuditActual,Sheet1!S71_SA34cCode,_xlfn.SINGLE($AC:$AC),Sheet1!S71_RepMaintCode,_xlfn.SINGLE($AD:$AD))","v":0}]
["Boreholes",null,{"$f":"SUMIFS(Sheet1!S71_PPPYearAmount,Sheet1!S71_SA34cCode,$AC:$AC,Sheet1!S71_RepMaintCode,$AD:$AD)","v":0},{"$f":"SUMIFS(Sheet1!S71_PPYearAmount,Sheet1!S71_SA34cCode,$AC:$AC,Sheet1!S71_RepMaintCode,$AD:$AD)","v":0},{"$f":"SUMIFS(Sheet1!S71_PYearAmount,Sheet1!S71_SA34cCode,$AC:$AC,Sheet1!S71_RepMaintCode,$AD:$AD)","v":0},{"$f":"SUMIFS(Sheet1!S71_OriginalBudAmnt,Sheet1!S71_SA34cCode,$AC:$AC,Sheet1!S71_RepMaintCode,$AD:$AD)","v":0},{"$f":"SUMIFS(Sheet1!S71_AdjustmentBudAmnt,Sheet1!S71_SA34cCode,$AC:$AC,Sheet1!S71_RepMaintCode,$AD:$AD)","v":0},{"$f":"SUMIFS(Sheet1!S71_AdjustmentBudAmnt,Sheet1!S71_SA34cCode,$AC:$AC,Sheet1!S71_RepMaintCode,$AD:$AD)","v":0},{"$f":"SUMIFS(Sheet1!S71_ASBudgetAmount,Sheet1!S71_SA34cCode,$AC:$AC,Sheet1!S71_RepMaintCode,$AD:$AD)","v":0},{"$f":"SUMIFS(Sheet1!S71_OY1BudgetAmount,Sheet1!S71_SA34cCode,$AC:$AC,Sheet1!S71_RepMaintCode,$AD:$AD)","v":0},{"$f":"SUMIFS(Sheet1!S71_OY2BudgetAmount,Sheet1!S71_SA34cCode,$AC:$AC,Sheet1!S71_RepMaintCode,$AD:$AD)","v":0},null,null,null,null,null,null,null,null,null,null,null,null,null,null,null,null,null,"0320","RM",{"$f":"SUMIFS(Sheet1!S71_PreAuditActual,Sheet1!S71_SA34cCode,_xlfn.SINGLE($AC:$AC),Sheet1!S71_RepMaintCode,_xlfn.SINGLE($AD:$AD))","v":0}]
["Reservoirs",null,{"$f":"SUMIFS(Sheet1!S71_PPPYearAmount,Sheet1!S71_SA34cCode,$AC:$AC,Sheet1!S71_RepMaintCode,$AD:$AD)","v":0},{"$f":"SUMIFS(Sheet1!S71_PPYearAmount,Sheet1!S71_SA34cCode,$AC:$AC,Sheet1!S71_RepMaintCode,$AD:$AD)","v":0},{"$f":"SUMIFS(Sheet1!S71_PYearAmount,Sheet1!S71_SA34cCode,$AC:$AC,Sheet1!S71_RepMaintCode,$AD:$AD)","v":0},{"$f":"SUMIFS(Sheet1!S71_OriginalBudAmnt,Sheet1!S71_SA34cCode,$AC:$AC,Sheet1!S71_RepMaintCode,$AD:$AD)","v":0},{"$f":"SUMIFS(Sheet1!S71_AdjustmentBudAmnt,Sheet1!S71_SA34cCode,$AC:$AC,Sheet1!S71_RepMaintCode,$AD:$AD)","v":0},{"$f":"SUMIFS(Sheet1!S71_AdjustmentBudAmnt,Sheet1!S71_SA34cCode,$AC:$AC,Sheet1!S71_RepMaintCode,$AD:$AD)","v":0},{"$f":"SUMIFS(Sheet1!S71_ASBudgetAmount,Sheet1!S71_SA34cCode,$AC:$AC,Sheet1!S71_RepMaintCode,$AD:$AD)","v":0},{"$f":"SUMIFS(Sheet1!S71_OY1BudgetAmount,Sheet1!S71_SA34cCode,$AC:$AC,Sheet1!S71_RepMaintCode,$AD:$AD)","v":0},{"$f":"SUMIFS(Sheet1!S71_OY2BudgetAmount,Sheet1!S71_SA34cCode,$AC:$AC,Sheet1!S71_RepMaintCode,$AD:$AD)","v":0},null,null,null,null,null,null,null,null,null,null,null,null,null,null,null,null,null,"0330","RM",{"$f":"SUMIFS(Sheet1!S71_PreAuditActual,Sheet1!S71_SA34cCode,_xlfn.SINGLE($AC:$AC),Sheet1!S71_RepMaintCode,_xlfn.SINGLE($AD:$AD))","v":0}]
["Pump Stations",null,{"$f":"SUMIFS(Sheet1!S71_PPPYearAmount,Sheet1!S71_SA34cCode,$AC:$AC,Sheet1!S71_RepMaintCode,$AD:$AD)","v":0},{"$f":"SUMIFS(Sheet1!S71_PPYearAmount,Sheet1!S71_SA34cCode,$AC:$AC,Sheet1!S71_RepMaintCode,$AD:$AD)","v":0},{"$f":"SUMIFS(Sheet1!S71_PYearAmount,Sheet1!S71_SA34cCode,$AC:$AC,Sheet1!S71_RepMaintCode,$AD:$AD)","v":0},{"$f":"SUMIFS(Sheet1!S71_OriginalBudAmnt,Sheet1!S71_SA34cCode,$AC:$AC,Sheet1!S71_RepMaintCode,$AD:$AD)","v":0},{"$f":"SUMIFS(Sheet1!S71_AdjustmentBudAmnt,Sheet1!S71_SA34cCode,$AC:$AC,Sheet1!S71_RepMaintCode,$AD:$AD)","v":0},{"$f":"SUMIFS(Sheet1!S71_AdjustmentBudAmnt,Sheet1!S71_SA34cCode,$AC:$AC,Sheet1!S71_RepMaintCode,$AD:$AD)","v":0},{"$f":"SUMIFS(Sheet1!S71_ASBudgetAmount,Sheet1!S71_SA34cCode,$AC:$AC,Sheet1!S71_RepMaintCode,$AD:$AD)","v":0},{"$f":"SUMIFS(Sheet1!S71_OY1BudgetAmount,Sheet1!S71_SA34cCode,$AC:$AC,Sheet1!S71_RepMaintCode,$AD:$AD)","v":0},{"$f":"SUMIFS(Sheet1!S71_OY2BudgetAmount,Sheet1!S71_SA34cCode,$AC:$AC,Sheet1!S71_RepMaintCode,$AD:$AD)","v":0},null,null,null,null,null,null,null,null,null,null,null,null,null,null,null,null,null,"0340","RM",{"$f":"SUMIFS(Sheet1!S71_PreAuditActual,Sheet1!S71_SA34cCode,_xlfn.SINGLE($AC:$AC),Sheet1!S71_RepMaintCode,_xlfn.SINGLE($AD:$AD))","v":0}]
["Water Treatment Works",null,{"$f":"SUMIFS(Sheet1!S71_PPPYearAmount,Sheet1!S71_SA34cCode,$AC:$AC,Sheet1!S71_RepMaintCode,$AD:$AD)","v":0},{"$f":"SUMIFS(Sheet1!S71_PPYearAmount,Sheet1!S71_SA34cCode,$AC:$AC,Sheet1!S71_RepMaintCode,$AD:$AD)","v":0},{"$f":"SUMIFS(Sheet1!S71_PYearAmount,Sheet1!S71_SA34cCode,$AC:$AC,Sheet1!S71_RepMaintCode,$AD:$AD)","v":0},{"$f":"SUMIFS(Sheet1!S71_OriginalBudAmnt,Sheet1!S71_SA34cCode,$AC:$AC,Sheet1!S71_RepMaintCode,$AD:$AD)","v":0},{"$f":"SUMIFS(Sheet1!S71_AdjustmentBudAmnt,Sheet1!S71_SA34cCode,$AC:$AC,Sheet1!S71_RepMaintCode,$AD:$AD)","v":0},{"$f":"SUMIFS(Sheet1!S71_AdjustmentBudAmnt,Sheet1!S71_SA34cCode,$AC:$AC,Sheet1!S71_RepMaintCode,$AD:$AD)","v":0},{"$f":"SUMIFS(Sheet1!S71_ASBudgetAmount,Sheet1!S71_SA34cCode,$AC:$AC,Sheet1!S71_RepMaintCode,$AD:$AD)","v":0},{"$f":"SUMIFS(Sheet1!S71_OY1BudgetAmount,Sheet1!S71_SA34cCode,$AC:$AC,Sheet1!S71_RepMaintCode,$AD:$AD)","v":0},{"$f":"SUMIFS(Sheet1!S71_OY2BudgetAmount,Sheet1!S71_SA34cCode,$AC:$AC,Sheet1!S71_RepMaintCode,$AD:$AD)","v":0},null,null,null,null,null,null,null,null,null,null,null,null,null,null,null,null,null,"0350","RM",{"$f":"SUMIFS(Sheet1!S71_PreAuditActual,Sheet1!S71_SA34cCode,_xlfn.SINGLE($AC:$AC),Sheet1!S71_RepMaintCode,_xlfn.SINGLE($AD:$AD))","v":0}]
["Bulk Mains",null,{"$f":"SUMIFS(Sheet1!S71_PPPYearAmount,Sheet1!S71_SA34cCode,$AC:$AC,Sheet1!S71_RepMaintCode,$AD:$AD)","v":0},{"$f":"SUMIFS(Sheet1!S71_PPYearAmount,Sheet1!S71_SA34cCode,$AC:$AC,Sheet1!S71_RepMaintCode,$AD:$AD)","v":0},{"$f":"SUMIFS(Sheet1!S71_PYearAmount,Sheet1!S71_SA34cCode,$AC:$AC,Sheet1!S71_RepMaintCode,$AD:$AD)","v":0},{"$f":"SUMIFS(Sheet1!S71_OriginalBudAmnt,Sheet1!S71_SA34cCode,$AC:$AC,Sheet1!S71_RepMaintCode,$AD:$AD)","v":0},{"$f":"SUMIFS(Sheet1!S71_AdjustmentBudAmnt,Sheet1!S71_SA34cCode,$AC:$AC,Sheet1!S71_RepMaintCode,$AD:$AD)","v":0},{"$f":"SUMIFS(Sheet1!S71_AdjustmentBudAmnt,Sheet1!S71_SA34cCode,$AC:$AC,Sheet1!S71_RepMaintCode,$AD:$AD)","v":0},{"$f":"SUMIFS(Sheet1!S71_ASBudgetAmount,Sheet1!S71_SA34cCode,$AC:$AC,Sheet1!S71_RepMaintCode,$AD:$AD)","v":0},{"$f":"SUMIFS(Sheet1!S71_OY1BudgetAmount,Sheet1!S71_SA34cCode,$AC:$AC,Sheet1!S71_RepMaintCode,$AD:$AD)","v":0},{"$f":"SUMIFS(Sheet1!S71_OY2BudgetAmount,Sheet1!S71_SA34cCode,$AC:$AC,Sheet1!S71_RepMaintCode,$AD:$AD)","v":0},null,null,null,null,null,null,null,null,null,null,null,null,null,null,null,null,null,"0360","RM",{"$f":"SUMIFS(Sheet1!S71_PreAuditActual,Sheet1!S71_SA34cCode,_xlfn.SINGLE($AC:$AC),Sheet1!S71_RepMaintCode,_xlfn.SINGLE($AD:$AD))","v":0}]
["Distribution",null,{"$f":"SUMIFS(Sheet1!S71_PPPYearAmount,Sheet1!S71_SA34cCode,$AC:$AC,Sheet1!S71_RepMaintCode,$AD:$AD)","v":0},{"$f":"SUMIFS(Sheet1!S71_PPYearAmount,Sheet1!S71_SA34cCode,$AC:$AC,Sheet1!S71_RepMaintCode,$AD:$AD)","v":0},{"$f":"SUMIFS(Sheet1!S71_PYearAmount,Sheet1!S71_SA34cCode,$AC:$AC,Sheet1!S71_RepMaintCode,$AD:$AD)","v":0},{"$f":"SUMIFS(Sheet1!S71_OriginalBudAmnt,Sheet1!S71_SA34cCode,$AC:$AC,Sheet1!S71_RepMaintCode,$AD:$AD)","v":0},{"$f":"SUMIFS(Sheet1!S71_AdjustmentBudAmnt,Sheet1!S71_SA34cCode,$AC:$AC,Sheet1!S71_RepMaintCode,$AD:$AD)","v":0},{"$f":"SUMIFS(Sheet1!S71_AdjustmentBudAmnt,Sheet1!S71_SA34cCode,$AC:$AC,Sheet1!S71_RepMaintCode,$AD:$AD)","v":0},{"$f":"SUMIFS(Sheet1!S71_ASBudgetAmount,Sheet1!S71_SA34cCode,$AC:$AC,Sheet1!S71_RepMaintCode,$AD:$AD)","v":0},{"$f":"SUMIFS(Sheet1!S71_OY1BudgetAmount,Sheet1!S71_SA34cCode,$AC:$AC,Sheet1!S71_RepMaintCode,$AD:$AD)","v":0},{"$f":"SUMIFS(Sheet1!S71_OY2BudgetAmount,Sheet1!S71_SA34cCode,$AC:$AC,Sheet1!S71_RepMaintCode,$AD:$AD)","v":0},null,null,null,null,null,null,null,null,null,null,null,null,null,null,null,null,null,"0370","RM",{"$f":"SUMIFS(Sheet1!S71_PreAuditActual,Sheet1!S71_SA34cCode,_xlfn.SINGLE($AC:$AC),Sheet1!S71_RepMaintCode,_xlfn.SINGLE($AD:$AD))","v":0}]
["Distribution Points",null,{"$f":"SUMIFS(Sheet1!S71_PPPYearAmount,Sheet1!S71_SA34cCode,$AC:$AC,Sheet1!S71_RepMaintCode,$AD:$AD)","v":0},{"$f":"SUMIFS(Sheet1!S71_PPYearAmount,Sheet1!S71_SA34cCode,$AC:$AC,Sheet1!S71_RepMaintCode,$AD:$AD)","v":0},{"$f":"SUMIFS(Sheet1!S71_PYearAmount,Sheet1!S71_SA34cCode,$AC:$AC,Sheet1!S71_RepMaintCode,$AD:$AD)","v":0},{"$f":"SUMIFS(Sheet1!S71_OriginalBudAmnt,Sheet1!S71_SA34cCode,$AC:$AC,Sheet1!S71_RepMaintCode,$AD:$AD)","v":0},{"$f":"SUMIFS(Sheet1!S71_AdjustmentBudAmnt,Sheet1!S71_SA34cCode,$AC:$AC,Sheet1!S71_RepMaintCode,$AD:$AD)","v":0},{"$f":"SUMIFS(Sheet1!S71_AdjustmentBudAmnt,Sheet1!S71_SA34cCode,$AC:$AC,Sheet1!S71_RepMaintCode,$AD:$AD)","v":0},{"$f":"SUMIFS(Sheet1!S71_ASBudgetAmount,Sheet1!S71_SA34cCode,$AC:$AC,Sheet1!S71_RepMaintCode,$AD:$AD)","v":0},{"$f":"SUMIFS(Sheet1!S71_OY1BudgetAmount,Sheet1!S71_SA34cCode,$AC:$AC,Sheet1!S71_RepMaintCode,$AD:$AD)","v":0},{"$f":"SUMIFS(Sheet1!S71_OY2BudgetAmount,Sheet1!S71_SA34cCode,$AC:$AC,Sheet1!S71_RepMaintCode,$AD:$AD)","v":0},null,null,null,null,null,null,null,null,null,null,null,null,null,null,null,null,null,"0380","RM",{"$f":"SUMIFS(Sheet1!S71_PreAuditActual,Sheet1!S71_SA34cCode,_xlfn.SINGLE($AC:$AC),Sheet1!S71_RepMaintCode,_xlfn.SINGLE($AD:$AD))","v":0}]
["PRV Stations",null,{"$f":"SUMIFS(Sheet1!S71_PPPYearAmount,Sheet1!S71_SA34cCode,$AC:$AC,Sheet1!S71_RepMaintCode,$AD:$AD)","v":0},{"$f":"SUMIFS(Sheet1!S71_PPYearAmount,Sheet1!S71_SA34cCode,$AC:$AC,Sheet1!S71_RepMaintCode,$AD:$AD)","v":0},{"$f":"SUMIFS(Sheet1!S71_PYearAmount,Sheet1!S71_SA34cCode,$AC:$AC,Sheet1!S71_RepMaintCode,$AD:$AD)","v":0},{"$f":"SUMIFS(Sheet1!S71_OriginalBudAmnt,Sheet1!S71_SA34cCode,$AC:$AC,Sheet1!S71_RepMaintCode,$AD:$AD)","v":0},{"$f":"SUMIFS(Sheet1!S71_AdjustmentBudAmnt,Sheet1!S71_SA34cCode,$AC:$AC,Sheet1!S71_RepMaintCode,$AD:$AD)","v":0},{"$f":"SUMIFS(Sheet1!S71_AdjustmentBudAmnt,Sheet1!S71_SA34cCode,$AC:$AC,Sheet1!S71_RepMaintCode,$AD:$AD)","v":0},{"$f":"SUMIFS(Sheet1!S71_ASBudgetAmount,Sheet1!S71_SA34cCode,$AC:$AC,Sheet1!S71_RepMaintCode,$AD:$AD)","v":0},{"$f":"SUMIFS(Sheet1!S71_OY1BudgetAmount,Sheet1!S71_SA34cCode,$AC:$AC,Sheet1!S71_RepMaintCode,$AD:$AD)","v":0},{"$f":"SUMIFS(Sheet1!S71_OY2BudgetAmount,Sheet1!S71_SA34cCode,$AC:$AC,Sheet1!S71_RepMaintCode,$AD:$AD)","v":0},null,null,null,null,null,null,null,null,null,null,null,null,null,null,null,null,null,"0390","RM",{"$f":"SUMIFS(Sheet1!S71_PreAuditActual,Sheet1!S71_SA34cCode,_xlfn.SINGLE($AC:$AC),Sheet1!S71_RepMaintCode,_xlfn.SINGLE($AD:$AD))","v":0}]
["Capital Spares",null,{"$f":"SUMIFS(Sheet1!S71_PPPYearAmount,Sheet1!S71_SA34cCode,$AC:$AC,Sheet1!S71_RepMaintCode,$AD:$AD)","v":0},{"$f":"SUMIFS(Sheet1!S71_PPYearAmount,Sheet1!S71_SA34cCode,$AC:$AC,Sheet1!S71_RepMaintCode,$AD:$AD)","v":0},{"$f":"SUMIFS(Sheet1!S71_PYearAmount,Sheet1!S71_SA34cCode,$AC:$AC,Sheet1!S71_RepMaintCode,$AD:$AD)","v":0},{"$f":"SUMIFS(Sheet1!S71_OriginalBudAmnt,Sheet1!S71_SA34cCode,$AC:$AC,Sheet1!S71_RepMaintCode,$AD:$AD)","v":0},{"$f":"SUMIFS(Sheet1!S71_AdjustmentBudAmnt,Sheet1!S71_SA34cCode,$AC:$AC,Sheet1!S71_RepMaintCode,$AD:$AD)","v":0},{"$f":"SUMIFS(Sheet1!S71_AdjustmentBudAmnt,Sheet1!S71_SA34cCode,$AC:$AC,Sheet1!S71_RepMaintCode,$AD:$AD)","v":0},{"$f":"SUMIFS(Sheet1!S71_ASBudgetAmount,Sheet1!S71_SA34cCode,$AC:$AC,Sheet1!S71_RepMaintCode,$AD:$AD)","v":0},{"$f":"SUMIFS(Sheet1!S71_OY1BudgetAmount,Sheet1!S71_SA34cCode,$AC:$AC,Sheet1!S71_RepMaintCode,$AD:$AD)","v":0},{"$f":"SUMIFS(Sheet1!S71_OY2BudgetAmount,Sheet1!S71_SA34cCode,$AC:$AC,Sheet1!S71_RepMaintCode,$AD:$AD)","v":0},null,null,null,null,null,null,null,null,null,null,null,null,null,null,null,null,null,"0400","RM",{"$f":"SUMIFS(Sheet1!S71_PreAuditActual,Sheet1!S71_SA34cCode,_xlfn.SINGLE($AC:$AC),Sheet1!S71_RepMaintCode,_xlfn.SINGLE($AD:$AD))","v":0}]
["Sanitation Infrastructure",null,{"$f":"SUM(C38:C43)","v":0},{"$f":"SUM(D38:D43)","v":0},0,0,0,0,0,0,0,null,null,null,null,null,null,null,null,null,null,null,null,null,null,null,null,null,null,"RM",{"$f":"SUMIFS(Sheet1!S71_PreAuditActual,Sheet1!S71_SA34cCode,_xlfn.SINGLE($AC:$AC),Sheet1!S71_RepMaintCode,_xlfn.SINGLE($AD:$AD))","v":0}]
["Pump Station",null,{"$f":"SUMIFS(Sheet1!S71_PPPYearAmount,Sheet1!S71_SA34cCode,$AC:$AC,Sheet1!S71_RepMaintCode,$AD:$AD)","v":0},{"$f":"SUMIFS(Sheet1!S71_PPYearAmount,Sheet1!S71_SA34cCode,$AC:$AC,Sheet1!S71_RepMaintCode,$AD:$AD)","v":0},{"$f":"SUMIFS(Sheet1!S71_PYearAmount,Sheet1!S71_SA34cCode,$AC:$AC,Sheet1!S71_RepMaintCode,$AD:$AD)","v":0},{"$f":"SUMIFS(Sheet1!S71_OriginalBudAmnt,Sheet1!S71_SA34cCode,$AC:$AC,Sheet1!S71_RepMaintCode,$AD:$AD)","v":0},{"$f":"SUMIFS(Sheet1!S71_AdjustmentBudAmnt,Sheet1!S71_SA34cCode,$AC:$AC,Sheet1!S71_RepMaintCode,$AD:$AD)","v":0},{"$f":"SUMIFS(Sheet1!S71_AdjustmentBudAmnt,Sheet1!S71_SA34cCode,$AC:$AC,Sheet1!S71_RepMaintCode,$AD:$AD)","v":0},{"$f":"SUMIFS(Sheet1!S71_ASBudgetAmount,Sheet1!S71_SA34cCode,$AC:$AC,Sheet1!S71_RepMaintCode,$AD:$AD)","v":0},{"$f":"SUMIFS(Sheet1!S71_OY1BudgetAmount,Sheet1!S71_SA34cCode,$AC:$AC,Sheet1!S71_RepMaintCode,$AD:$AD)","v":0},{"$f":"SUMIFS(Sheet1!S71_OY2BudgetAmount,Sheet1!S71_SA34cCode,$AC:$AC,Sheet1!S71_RepMaintCode,$AD:$AD)","v":0},null,null,null,null,null,null,null,null,null,null,null,null,null,null,null,null,null,"0420","RM",{"$f":"SUMIFS(Sheet1!S71_PreAuditActual,Sheet1!S71_SA34cCode,_xlfn.SINGLE($AC:$AC),Sheet1!S71_RepMaintCode,_xlfn.SINGLE($AD:$AD))","v":0}]
["Reticulation",null,{"$f":"SUMIFS(Sheet1!S71_PPPYearAmount,Sheet1!S71_SA34cCode,$AC:$AC,Sheet1!S71_RepMaintCode,$AD:$AD)","v":0},{"$f":"SUMIFS(Sheet1!S71_PPYearAmount,Sheet1!S71_SA34cCode,$AC:$AC,Sheet1!S71_RepMaintCode,$AD:$AD)","v":0},{"$f":"SUMIFS(Sheet1!S71_PYearAmount,Sheet1!S71_SA34cCode,$AC:$AC,Sheet1!S71_RepMaintCode,$AD:$AD)","v":0},{"$f":"SUMIFS(Sheet1!S71_OriginalBudAmnt,Sheet1!S71_SA34cCode,$AC:$AC,Sheet1!S71_RepMaintCode,$AD:$AD)","v":0},{"$f":"SUMIFS(Sheet1!S71_AdjustmentBudAmnt,Sheet1!S71_SA34cCode,$AC:$AC,Sheet1!S71_RepMaintCode,$AD:$AD)","v":0},{"$f":"SUMIFS(Sheet1!S71_AdjustmentBudAmnt,Sheet1!S71_SA34cCode,$AC:$AC,Sheet1!S71_RepMaintCode,$AD:$AD)","v":0},{"$f":"SUMIFS(Sheet1!S71_ASBudgetAmount,Sheet1!S71_SA34cCode,$AC:$AC,Sheet1!S71_RepMaintCode,$AD:$AD)","v":0},{"$f":"SUMIFS(Sheet1!S71_OY1BudgetAmount,Sheet1!S71_SA34cCode,$AC:$AC,Sheet1!S71_RepMaintCode,$AD:$AD)","v":0},{"$f":"SUMIFS(Sheet1!S71_OY2BudgetAmount,Sheet1!S71_SA34cCode,$AC:$AC,Sheet1!S71_RepMaintCode,$AD:$AD)","v":0},null,null,null,null,null,null,null,null,null,null,null,null,null,null,null,null,null,"0430","RM",{"$f":"SUMIFS(Sheet1!S71_PreAuditActual,Sheet1!S71_SA34cCode,_xlfn.SINGLE($AC:$AC),Sheet1!S71_RepMaintCode,_xlfn.SINGLE($AD:$AD))","v":0}]
["Waste Water Treatment Works",null,{"$f":"SUMIFS(Sheet1!S71_PPPYearAmount,Sheet1!S71_SA34cCode,$AC:$AC,Sheet1!S71_RepMaintCode,$AD:$AD)","v":0},{"$f":"SUMIFS(Sheet1!S71_PPYearAmount,Sheet1!S71_SA34cCode,$AC:$AC,Sheet1!S71_RepMaintCode,$AD:$AD)","v":0},{"$f":"SUMIFS(Sheet1!S71_PYearAmount,Sheet1!S71_SA34cCode,$AC:$AC,Sheet1!S71_RepMaintCode,$AD:$AD)","v":0},{"$f":"SUMIFS(Sheet1!S71_OriginalBudAmnt,Sheet1!S71_SA34cCode,$AC:$AC,Sheet1!S71_RepMaintCode,$AD:$AD)","v":0},{"$f":"SUMIFS(Sheet1!S71_AdjustmentBudAmnt,Sheet1!S71_SA34cCode,$AC:$AC,Sheet1!S71_RepMaintCode,$AD:$AD)","v":0},{"$f":"SUMIFS(Sheet1!S71_AdjustmentBudAmnt,Sheet1!S71_SA34cCode,$AC:$AC,Sheet1!S71_RepMaintCode,$AD:$AD)","v":0},{"$f":"SUMIFS(Sheet1!S71_ASBudgetAmount,Sheet1!S71_SA34cCode,$AC:$AC,Sheet1!S71_RepMaintCode,$AD:$AD)","v":0},{"$f":"SUMIFS(Sheet1!S71_OY1BudgetAmount,Sheet1!S71_SA34cCode,$AC:$AC,Sheet1!S71_RepMaintCode,$AD:$AD)","v":0},{"$f":"SUMIFS(Sheet1!S71_OY2BudgetAmount,Sheet1!S71_SA34cCode,$AC:$AC,Sheet1!S71_RepMaintCode,$AD:$AD)","v":0},null,null,null,null,null,null,null,null,null,null,null,null,null,null,null,null,null,"0440","RM",{"$f":"SUMIFS(Sheet1!S71_PreAuditActual,Sheet1!S71_SA34cCode,_xlfn.SINGLE($AC:$AC),Sheet1!S71_RepMaintCode,_xlfn.SINGLE($AD:$AD))","v":0}]
["Outfall Sewers",null,{"$f":"SUMIFS(Sheet1!S71_PPPYearAmount,Sheet1!S71_SA34cCode,$AC:$AC,Sheet1!S71_RepMaintCode,$AD:$AD)","v":0},{"$f":"SUMIFS(Sheet1!S71_PPYearAmount,Sheet1!S71_SA34cCode,$AC:$AC,Sheet1!S71_RepMaintCode,$AD:$AD)","v":0},{"$f":"SUMIFS(Sheet1!S71_PYearAmount,Sheet1!S71_SA34cCode,$AC:$AC,Sheet1!S71_RepMaintCode,$AD:$AD)","v":0},{"$f":"SUMIFS(Sheet1!S71_OriginalBudAmnt,Sheet1!S71_SA34cCode,$AC:$AC,Sheet1!S71_RepMaintCode,$AD:$AD)","v":0},{"$f":"SUMIFS(Sheet1!S71_AdjustmentBudAmnt,Sheet1!S71_SA34cCode,$AC:$AC,Sheet1!S71_RepMaintCode,$AD:$AD)","v":0},{"$f":"SUMIFS(Sheet1!S71_AdjustmentBudAmnt,Sheet1!S71_SA34cCode,$AC:$AC,Sheet1!S71_RepMaintCode,$AD:$AD)","v":0},{"$f":"SUMIFS(Sheet1!S71_ASBudgetAmount,Sheet1!S71_SA34cCode,$AC:$AC,Sheet1!S71_RepMaintCode,$AD:$AD)","v":0},{"$f":"SUMIFS(Sheet1!S71_OY1BudgetAmount,Sheet1!S71_SA34cCode,$AC:$AC,Sheet1!S71_RepMaintCode,$AD:$AD)","v":0},{"$f":"SUMIFS(Sheet1!S71_OY2BudgetAmount,Sheet1!S71_SA34cCode,$AC:$AC,Sheet1!S71_RepMaintCode,$AD:$AD)","v":0},null,null,null,null,null,null,null,null,null,null,null,null,null,null,null,null,null,"0450","RM",{"$f":"SUMIFS(Sheet1!S71_PreAuditActual,Sheet1!S71_SA34cCode,_xlfn.SINGLE($AC:$AC),Sheet1!S71_RepMaintCode,_xlfn.SINGLE($AD:$AD))","v":0}]
["Toilet Facilities",null,{"$f":"SUMIFS(Sheet1!S71_PPPYearAmount,Sheet1!S71_SA34cCode,$AC:$AC,Sheet1!S71_RepMaintCode,$AD:$AD)","v":0},{"$f":"SUMIFS(Sheet1!S71_PPYearAmount,Sheet1!S71_SA34cCode,$AC:$AC,Sheet1!S71_RepMaintCode,$AD:$AD)","v":0},{"$f":"SUMIFS(Sheet1!S71_PYearAmount,Sheet1!S71_SA34cCode,$AC:$AC,Sheet1!S71_RepMaintCode,$AD:$AD)","v":0},{"$f":"SUMIFS(Sheet1!S71_OriginalBudAmnt,Sheet1!S71_SA34cCode,$AC:$AC,Sheet1!S71_RepMaintCode,$AD:$AD)","v":0},{"$f":"SUMIFS(Sheet1!S71_AdjustmentBudAmnt,Sheet1!S71_SA34cCode,$AC:$AC,Sheet1!S71_RepMaintCode,$AD:$AD)","v":0},{"$f":"SUMIFS(Sheet1!S71_AdjustmentBudAmnt,Sheet1!S71_SA34cCode,$AC:$AC,Sheet1!S71_RepMaintCode,$AD:$AD)","v":0},{"$f":"SUMIFS(Sheet1!S71_ASBudgetAmount,Sheet1!S71_SA34cCode,$AC:$AC,Sheet1!S71_RepMaintCode,$AD:$AD)","v":0},{"$f":"SUMIFS(Sheet1!S71_OY1BudgetAmount,Sheet1!S71_SA34cCode,$AC:$AC,Sheet1!S71_RepMaintCode,$AD:$AD)","v":0},{"$f":"SUMIFS(Sheet1!S71_OY2BudgetAmount,Sheet1!S71_SA34cCode,$AC:$AC,Sheet1!S71_RepMaintCode,$AD:$AD)","v":0},null,null,null,null,null,null,null,null,null,null,null,null,null,null,null,null,null,"0460","RM",{"$f":"SUMIFS(Sheet1!S71_PreAuditActual,Sheet1!S71_SA34cCode,_xlfn.SINGLE($AC:$AC),Sheet1!S71_RepMaintCode,_xlfn.SINGLE($AD:$AD))","v":0}]
["Capital Spares",null,{"$f":"SUMIFS(Sheet1!S71_PPPYearAmount,Sheet1!S71_SA34cCode,$AC:$AC,Sheet1!S71_RepMaintCode,$AD:$AD)","v":0},{"$f":"SUMIFS(Sheet1!S71_PPYearAmount,Sheet1!S71_SA34cCode,$AC:$AC,Sheet1!S71_RepMaintCode,$AD:$AD)","v":0},{"$f":"SUMIFS(Sheet1!S71_PYearAmount,Sheet1!S71_SA34cCode,$AC:$AC,Sheet1!S71_RepMaintCode,$AD:$AD)","v":0},{"$f":"SUMIFS(Sheet1!S71_OriginalBudAmnt,Sheet1!S71_SA34cCode,$AC:$AC,Sheet1!S71_RepMaintCode,$AD:$AD)","v":0},{"$f":"SUMIFS(Sheet1!S71_AdjustmentBudAmnt,Sheet1!S71_SA34cCode,$AC:$AC,Sheet1!S71_RepMaintCode,$AD:$AD)","v":0},{"$f":"SUMIFS(Sheet1!S71_AdjustmentBudAmnt,Sheet1!S71_SA34cCode,$AC:$AC,Sheet1!S71_RepMaintCode,$AD:$AD)","v":0},{"$f":"SUMIFS(Sheet1!S71_ASBudgetAmount,Sheet1!S71_SA34cCode,$AC:$AC,Sheet1!S71_RepMaintCode,$AD:$AD)","v":0},{"$f":"SUMIFS(Sheet1!S71_OY1BudgetAmount,Sheet1!S71_SA34cCode,$AC:$AC,Sheet1!S71_RepMaintCode,$AD:$AD)","v":0},{"$f":"SUMIFS(Sheet1!S71_OY2BudgetAmount,Sheet1!S71_SA34cCode,$AC:$AC,Sheet1!S71_RepMaintCode,$AD:$AD)","v":0},null,null,null,null,null,null,null,null,null,null,null,null,null,null,null,null,null,"0470","RM",{"$f":"SUMIFS(Sheet1!S71_PreAuditActual,Sheet1!S71_SA34cCode,_xlfn.SINGLE($AC:$AC),Sheet1!S71_RepMaintCode,_xlfn.SINGLE($AD:$AD))","v":0}]
["Solid Waste Infrastructure",null,{"$f":"SUM(C45:C51)","v":0},{"$f":"SUM(D45:D51)","v":0},0,0,0,0,0,0,0,null,null,null,null,null,null,null,null,null,null,null,null,null,null,null,null,null,null,"RM",{"$f":"SUMIFS(Sheet1!S71_PreAuditActual,Sheet1!S71_SA34cCode,_xlfn.SINGLE($AC:$AC),Sheet1!S71_RepMaintCode,_xlfn.SINGLE($AD:$AD))","v":0}]
["Landfill Sites",null,{"$f":"SUMIFS(Sheet1!S71_PPPYearAmount,Sheet1!S71_SA34cCode,$AC:$AC,Sheet1!S71_RepMaintCode,$AD:$AD)","v":0},{"$f":"SUMIFS(Sheet1!S71_PPYearAmount,Sheet1!S71_SA34cCode,$AC:$AC,Sheet1!S71_RepMaintCode,$AD:$AD)","v":0},{"$f":"SUMIFS(Sheet1!S71_PYearAmount,Sheet1!S71_SA34cCode,$AC:$AC,Sheet1!S71_RepMaintCode,$AD:$AD)","v":0},{"$f":"SUMIFS(Sheet1!S71_OriginalBudAmnt,Sheet1!S71_SA34cCode,$AC:$AC,Sheet1!S71_RepMaintCode,$AD:$AD)","v":0},{"$f":"SUMIFS(Sheet1!S71_AdjustmentBudAmnt,Sheet1!S71_SA34cCode,$AC:$AC,Sheet1!S71_RepMaintCode,$AD:$AD)","v":0},{"$f":"SUMIFS(Sheet1!S71_AdjustmentBudAmnt,Sheet1!S71_SA34cCode,$AC:$AC,Sheet1!S71_RepMaintCode,$AD:$AD)","v":0},{"$f":"SUMIFS(Sheet1!S71_ASBudgetAmount,Sheet1!S71_SA34cCode,$AC:$AC,Sheet1!S71_RepMaintCode,$AD:$AD)","v":0},{"$f":"SUMIFS(Sheet1!S71_OY1BudgetAmount,Sheet1!S71_SA34cCode,$AC:$AC,Sheet1!S71_RepMaintCode,$AD:$AD)","v":0},{"$f":"SUMIFS(Sheet1!S71_OY2BudgetAmount,Sheet1!S71_SA34cCode,$AC:$AC,Sheet1!S71_RepMaintCode,$AD:$AD)","v":0},null,null,null,null,null,null,null,null,null,null,null,null,null,null,null,null,null,"0490","RM",{"$f":"SUMIFS(Sheet1!S71_PreAuditActual,Sheet1!S71_SA34cCode,_xlfn.SINGLE($AC:$AC),Sheet1!S71_RepMaintCode,_xlfn.SINGLE($AD:$AD))","v":0}]
["Waste Transfer Stations",null,{"$f":"SUMIFS(Sheet1!S71_PPPYearAmount,Sheet1!S71_SA34cCode,$AC:$AC,Sheet1!S71_RepMaintCode,$AD:$AD)","v":0},{"$f":"SUMIFS(Sheet1!S71_PPYearAmount,Sheet1!S71_SA34cCode,$AC:$AC,Sheet1!S71_RepMaintCode,$AD:$AD)","v":0},{"$f":"SUMIFS(Sheet1!S71_PYearAmount,Sheet1!S71_SA34cCode,$AC:$AC,Sheet1!S71_RepMaintCode,$AD:$AD)","v":0},{"$f":"SUMIFS(Sheet1!S71_OriginalBudAmnt,Sheet1!S71_SA34cCode,$AC:$AC,Sheet1!S71_RepMaintCode,$AD:$AD)","v":0},{"$f":"SUMIFS(Sheet1!S71_AdjustmentBudAmnt,Sheet1!S71_SA34cCode,$AC:$AC,Sheet1!S71_RepMaintCode,$AD:$AD)","v":0},{"$f":"SUMIFS(Sheet1!S71_AdjustmentBudAmnt,Sheet1!S71_SA34cCode,$AC:$AC,Sheet1!S71_RepMaintCode,$AD:$AD)","v":0},{"$f":"SUMIFS(Sheet1!S71_ASBudgetAmount,Sheet1!S71_SA34cCode,$AC:$AC,Sheet1!S71_RepMaintCode,$AD:$AD)","v":0},{"$f":"SUMIFS(Sheet1!S71_OY1BudgetAmount,Sheet1!S71_SA34cCode,$AC:$AC,Sheet1!S71_RepMaintCode,$AD:$AD)","v":0},{"$f":"SUMIFS(Sheet1!S71_OY2BudgetAmount,Sheet1!S71_SA34cCode,$AC:$AC,Sheet1!S71_RepMaintCode,$AD:$AD)","v":0},null,null,null,null,null,null,null,null,null,null,null,null,null,null,null,null,null,"0500","RM",{"$f":"SUMIFS(Sheet1!S71_PreAuditActual,Sheet1!S71_SA34cCode,_xlfn.SINGLE($AC:$AC),Sheet1!S71_RepMaintCode,_xlfn.SINGLE($AD:$AD))","v":0}]
["Waste Processing Facilities",null,{"$f":"SUMIFS(Sheet1!S71_PPPYearAmount,Sheet1!S71_SA34cCode,$AC:$AC,Sheet1!S71_RepMaintCode,$AD:$AD)","v":0},{"$f":"SUMIFS(Sheet1!S71_PPYearAmount,Sheet1!S71_SA34cCode,$AC:$AC,Sheet1!S71_RepMaintCode,$AD:$AD)","v":0},{"$f":"SUMIFS(Sheet1!S71_PYearAmount,Sheet1!S71_SA34cCode,$AC:$AC,Sheet1!S71_RepMaintCode,$AD:$AD)","v":0},{"$f":"SUMIFS(Sheet1!S71_OriginalBudAmnt,Sheet1!S71_SA34cCode,$AC:$AC,Sheet1!S71_RepMaintCode,$AD:$AD)","v":0},{"$f":"SUMIFS(Sheet1!S71_AdjustmentBudAmnt,Sheet1!S71_SA34cCode,$AC:$AC,Sheet1!S71_RepMaintCode,$AD:$AD)","v":0},{"$f":"SUMIFS(Sheet1!S71_AdjustmentBudAmnt,Sheet1!S71_SA34cCode,$AC:$AC,Sheet1!S71_RepMaintCode,$AD:$AD)","v":0},{"$f":"SUMIFS(Sheet1!S71_ASBudgetAmount,Sheet1!S71_SA34cCode,$AC:$AC,Sheet1!S71_RepMaintCode,$AD:$AD)","v":0},{"$f":"SUMIFS(Sheet1!S71_OY1BudgetAmount,Sheet1!S71_SA34cCode,$AC:$AC,Sheet1!S71_RepMaintCode,$AD:$AD)","v":0},{"$f":"SUMIFS(Sheet1!S71_OY2BudgetAmount,Sheet1!S71_SA34cCode,$AC:$AC,Sheet1!S71_RepMaintCode,$AD:$AD)","v":0},null,null,null,null,null,null,null,null,null,null,null,null,null,null,null,null,null,"0510","RM",{"$f":"SUMIFS(Sheet1!S71_PreAuditActual,Sheet1!S71_SA34cCode,_xlfn.SINGLE($AC:$AC),Sheet1!S71_RepMaintCode,_xlfn.SINGLE($AD:$AD))","v":0}]
["Waste Drop-off Points",null,{"$f":"SUMIFS(Sheet1!S71_PPPYearAmount,Sheet1!S71_SA34cCode,$AC:$AC,Sheet1!S71_RepMaintCode,$AD:$AD)","v":0},{"$f":"SUMIFS(Sheet1!S71_PPYearAmount,Sheet1!S71_SA34cCode,$AC:$AC,Sheet1!S71_RepMaintCode,$AD:$AD)","v":0},{"$f":"SUMIFS(Sheet1!S71_PYearAmount,Sheet1!S71_SA34cCode,$AC:$AC,Sheet1!S71_RepMaintCode,$AD:$AD)","v":0},{"$f":"SUMIFS(Sheet1!S71_OriginalBudAmnt,Sheet1!S71_SA34cCode,$AC:$AC,Sheet1!S71_RepMaintCode,$AD:$AD)","v":0},{"$f":"SUMIFS(Sheet1!S71_AdjustmentBudAmnt,Sheet1!S71_SA34cCode,$AC:$AC,Sheet1!S71_RepMaintCode,$AD:$AD)","v":0},{"$f":"SUMIFS(Sheet1!S71_AdjustmentBudAmnt,Sheet1!S71_SA34cCode,$AC:$AC,Sheet1!S71_RepMaintCode,$AD:$AD)","v":0},{"$f":"SUMIFS(Sheet1!S71_ASBudgetAmount,Sheet1!S71_SA34cCode,$AC:$AC,Sheet1!S71_RepMaintCode,$AD:$AD)","v":0},{"$f":"SUMIFS(Sheet1!S71_OY1BudgetAmount,Sheet1!S71_SA34cCode,$AC:$AC,Sheet1!S71_RepMaintCode,$AD:$AD)","v":0},{"$f":"SUMIFS(Sheet1!S71_OY2BudgetAmount,Sheet1!S71_SA34cCode,$AC:$AC,Sheet1!S71_RepMaintCode,$AD:$AD)","v":0},null,null,null,null,null,null,null,null,null,null,null,null,null,null,null,null,null,"0520","RM",{"$f":"SUMIFS(Sheet1!S71_PreAuditActual,Sheet1!S71_SA34cCode,_xlfn.SINGLE($AC:$AC),Sheet1!S71_RepMaintCode,_xlfn.SINGLE($AD:$AD))","v":0}]
["Waste Separation Facilities",null,{"$f":"SUMIFS(Sheet1!S71_PPPYearAmount,Sheet1!S71_SA34cCode,$AC:$AC,Sheet1!S71_RepMaintCode,$AD:$AD)","v":0},{"$f":"SUMIFS(Sheet1!S71_PPYearAmount,Sheet1!S71_SA34cCode,$AC:$AC,Sheet1!S71_RepMaintCode,$AD:$AD)","v":0},{"$f":"SUMIFS(Sheet1!S71_PYearAmount,Sheet1!S71_SA34cCode,$AC:$AC,Sheet1!S71_RepMaintCode,$AD:$AD)","v":0},{"$f":"SUMIFS(Sheet1!S71_OriginalBudAmnt,Sheet1!S71_SA34cCode,$AC:$AC,Sheet1!S71_RepMaintCode,$AD:$AD)","v":0},{"$f":"SUMIFS(Sheet1!S71_AdjustmentBudAmnt,Sheet1!S71_SA34cCode,$AC:$AC,Sheet1!S71_RepMaintCode,$AD:$AD)","v":0},{"$f":"SUMIFS(Sheet1!S71_AdjustmentBudAmnt,Sheet1!S71_SA34cCode,$AC:$AC,Sheet1!S71_RepMaintCode,$AD:$AD)","v":0},{"$f":"SUMIFS(Sheet1!S71_ASBudgetAmount,Sheet1!S71_SA34cCode,$AC:$AC,Sheet1!S71_RepMaintCode,$AD:$AD)","v":0},{"$f":"SUMIFS(Sheet1!S71_OY1BudgetAmount,Sheet1!S71_SA34cCode,$AC:$AC,Sheet1!S71_RepMaintCode,$AD:$AD)","v":0},{"$f":"SUMIFS(Sheet1!S71_OY2BudgetAmount,Sheet1!S71_SA34cCode,$AC:$AC,Sheet1!S71_RepMaintCode,$AD:$AD)","v":0},null,null,null,null,null,null,null,null,null,null,null,null,null,null,null,null,null,"0530","RM",{"$f":"SUMIFS(Sheet1!S71_PreAuditActual,Sheet1!S71_SA34cCode,_xlfn.SINGLE($AC:$AC),Sheet1!S71_RepMaintCode,_xlfn.SINGLE($AD:$AD))","v":0}]
["Electricity Generation Facilities",null,{"$f":"SUMIFS(Sheet1!S71_PPPYearAmount,Sheet1!S71_SA34cCode,$AC:$AC,Sheet1!S71_RepMaintCode,$AD:$AD)","v":0},{"$f":"SUMIFS(Sheet1!S71_PPYearAmount,Sheet1!S71_SA34cCode,$AC:$AC,Sheet1!S71_RepMaintCode,$AD:$AD)","v":0},{"$f":"SUMIFS(Sheet1!S71_PYearAmount,Sheet1!S71_SA34cCode,$AC:$AC,Sheet1!S71_RepMaintCode,$AD:$AD)","v":0},{"$f":"SUMIFS(Sheet1!S71_OriginalBudAmnt,Sheet1!S71_SA34cCode,$AC:$AC,Sheet1!S71_RepMaintCode,$AD:$AD)","v":0},{"$f":"SUMIFS(Sheet1!S71_AdjustmentBudAmnt,Sheet1!S71_SA34cCode,$AC:$AC,Sheet1!S71_RepMaintCode,$AD:$AD)","v":0},{"$f":"SUMIFS(Sheet1!S71_AdjustmentBudAmnt,Sheet1!S71_SA34cCode,$AC:$AC,Sheet1!S71_RepMaintCode,$AD:$AD)","v":0},{"$f":"SUMIFS(Sheet1!S71_ASBudgetAmount,Sheet1!S71_SA34cCode,$AC:$AC,Sheet1!S71_RepMaintCode,$AD:$AD)","v":0},{"$f":"SUMIFS(Sheet1!S71_OY1BudgetAmount,Sheet1!S71_SA34cCode,$AC:$AC,Sheet1!S71_RepMaintCode,$AD:$AD)","v":0},{"$f":"SUMIFS(Sheet1!S71_OY2BudgetAmount,Sheet1!S71_SA34cCode,$AC:$AC,Sheet1!S71_RepMaintCode,$AD:$AD)","v":0},null,null,null,null,null,null,null,null,null,null,null,null,null,null,null,null,null,"0540","RM",{"$f":"SUMIFS(Sheet1!S71_PreAuditActual,Sheet1!S71_SA34cCode,_xlfn.SINGLE($AC:$AC),Sheet1!S71_RepMaintCode,_xlfn.SINGLE($AD:$AD))","v":0}]
["Capital Spares",null,{"$f":"SUMIFS(Sheet1!S71_PPPYearAmount,Sheet1!S71_SA34cCode,$AC:$AC,Sheet1!S71_RepMaintCode,$AD:$AD)","v":0},{"$f":"SUMIFS(Sheet1!S71_PPYearAmount,Sheet1!S71_SA34cCode,$AC:$AC,Sheet1!S71_RepMaintCode,$AD:$AD)","v":0},{"$f":"SUMIFS(Sheet1!S71_PYearAmount,Sheet1!S71_SA34cCode,$AC:$AC,Sheet1!S71_RepMaintCode,$AD:$AD)","v":0},{"$f":"SUMIFS(Sheet1!S71_OriginalBudAmnt,Sheet1!S71_SA34cCode,$AC:$AC,Sheet1!S71_RepMaintCode,$AD:$AD)","v":0},{"$f":"SUMIFS(Sheet1!S71_AdjustmentBudAmnt,Sheet1!S71_SA34cCode,$AC:$AC,Sheet1!S71_RepMaintCode,$AD:$AD)","v":0},{"$f":"SUMIFS(Sheet1!S71_AdjustmentBudAmnt,Sheet1!S71_SA34cCode,$AC:$AC,Sheet1!S71_RepMaintCode,$AD:$AD)","v":0},{"$f":"SUMIFS(Sheet1!S71_ASBudgetAmount,Sheet1!S71_SA34cCode,$AC:$AC,Sheet1!S71_RepMaintCode,$AD:$AD)","v":0},{"$f":"SUMIFS(Sheet1!S71_OY1BudgetAmount,Sheet1!S71_SA34cCode,$AC:$AC,Sheet1!S71_RepMaintCode,$AD:$AD)","v":0},{"$f":"SUMIFS(Sheet1!S71_OY2BudgetAmount,Sheet1!S71_SA34cCode,$AC:$AC,Sheet1!S71_RepMaintCode,$AD:$AD)","v":0},null,null,null,null,null,null,null,null,null,null,null,null,null,null,null,null,null,"0550","RM",{"$f":"SUMIFS(Sheet1!S71_PreAuditActual,Sheet1!S71_SA34cCode,_xlfn.SINGLE($AC:$AC),Sheet1!S71_RepMaintCode,_xlfn.SINGLE($AD:$AD))","v":0}]
["Rail Infrastructure",null,{"$f":"SUM(C53:C61)","v":0},0,0,0,0,0,0,0,0,null,null,null,null,null,null,null,null,null,null,null,null,null,null,null,null,null,null,"RM",{"$f":"SUMIFS(Sheet1!S71_PreAuditActual,Sheet1!S71_SA34cCode,_xlfn.SINGLE($AC:$AC),Sheet1!S71_RepMaintCode,_xlfn.SINGLE($AD:$AD))","v":0}]
["Rail Lines",null,{"$f":"SUMIFS(Sheet1!S71_PPPYearAmount,Sheet1!S71_SA34cCode,$AC:$AC,Sheet1!S71_RepMaintCode,$AD:$AD)","v":0},{"$f":"SUMIFS(Sheet1!S71_PPYearAmount,Sheet1!S71_SA34cCode,$AC:$AC,Sheet1!S71_RepMaintCode,$AD:$AD)","v":0},{"$f":"SUMIFS(Sheet1!S71_PYearAmount,Sheet1!S71_SA34cCode,$AC:$AC,Sheet1!S71_RepMaintCode,$AD:$AD)","v":0},{"$f":"SUMIFS(Sheet1!S71_OriginalBudAmnt,Sheet1!S71_SA34cCode,$AC:$AC,Sheet1!S71_RepMaintCode,$AD:$AD)","v":0},{"$f":"SUMIFS(Sheet1!S71_AdjustmentBudAmnt,Sheet1!S71_SA34cCode,$AC:$AC,Sheet1!S71_RepMaintCode,$AD:$AD)","v":0},{"$f":"SUMIFS(Sheet1!S71_AdjustmentBudAmnt,Sheet1!S71_SA34cCode,$AC:$AC,Sheet1!S71_RepMaintCode,$AD:$AD)","v":0},{"$f":"SUMIFS(Sheet1!S71_ASBudgetAmount,Sheet1!S71_SA34cCode,$AC:$AC,Sheet1!S71_RepMaintCode,$AD:$AD)","v":0},{"$f":"SUMIFS(Sheet1!S71_OY1BudgetAmount,Sheet1!S71_SA34cCode,$AC:$AC,Sheet1!S71_RepMaintCode,$AD:$AD)","v":0},{"$f":"SUMIFS(Sheet1!S71_OY2BudgetAmount,Sheet1!S71_SA34cCode,$AC:$AC,Sheet1!S71_RepMaintCode,$AD:$AD)","v":0},null,null,null,null,null,null,null,null,null,null,null,null,null,null,null,null,null,"0570","RM",{"$f":"SUMIFS(Sheet1!S71_PreAuditActual,Sheet1!S71_SA34cCode,_xlfn.SINGLE($AC:$AC),Sheet1!S71_RepMaintCode,_xlfn.SINGLE($AD:$AD))","v":0}]
["Rail Structures",null,{"$f":"SUMIFS(Sheet1!S71_PPPYearAmount,Sheet1!S71_SA34cCode,$AC:$AC,Sheet1!S71_RepMaintCode,$AD:$AD)","v":0},{"$f":"SUMIFS(Sheet1!S71_PPYearAmount,Sheet1!S71_SA34cCode,$AC:$AC,Sheet1!S71_RepMaintCode,$AD:$AD)","v":0},{"$f":"SUMIFS(Sheet1!S71_PYearAmount,Sheet1!S71_SA34cCode,$AC:$AC,Sheet1!S71_RepMaintCode,$AD:$AD)","v":0},{"$f":"SUMIFS(Sheet1!S71_OriginalBudAmnt,Sheet1!S71_SA34cCode,$AC:$AC,Sheet1!S71_RepMaintCode,$AD:$AD)","v":0},{"$f":"SUMIFS(Sheet1!S71_AdjustmentBudAmnt,Sheet1!S71_SA34cCode,$AC:$AC,Sheet1!S71_RepMaintCode,$AD:$AD)","v":0},{"$f":"SUMIFS(Sheet1!S71_AdjustmentBudAmnt,Sheet1!S71_SA34cCode,$AC:$AC,Sheet1!S71_RepMaintCode,$AD:$AD)","v":0},{"$f":"SUMIFS(Sheet1!S71_ASBudgetAmount,Sheet1!S71_SA34cCode,$AC:$AC,Sheet1!S71_RepMaintCode,$AD:$AD)","v":0},{"$f":"SUMIFS(Sheet1!S71_OY1BudgetAmount,Sheet1!S71_SA34cCode,$AC:$AC,Sheet1!S71_RepMaintCode,$AD:$AD)","v":0},{"$f":"SUMIFS(Sheet1!S71_OY2BudgetAmount,Sheet1!S71_SA34cCode,$AC:$AC,Sheet1!S71_RepMaintCode,$AD:$AD)","v":0},null,null,null,null,null,null,null,null,null,null,null,null,null,null,null,null,null,"0580","RM",{"$f":"SUMIFS(Sheet1!S71_PreAuditActual,Sheet1!S71_SA34cCode,_xlfn.SINGLE($AC:$AC),Sheet1!S71_RepMaintCode,_xlfn.SINGLE($AD:$AD))","v":0}]
["Rail Furniture",null,{"$f":"SUMIFS(Sheet1!S71_PPPYearAmount,Sheet1!S71_SA34cCode,$AC:$AC,Sheet1!S71_RepMaintCode,$AD:$AD)","v":0},{"$f":"SUMIFS(Sheet1!S71_PPYearAmount,Sheet1!S71_SA34cCode,$AC:$AC,Sheet1!S71_RepMaintCode,$AD:$AD)","v":0},{"$f":"SUMIFS(Sheet1!S71_PYearAmount,Sheet1!S71_SA34cCode,$AC:$AC,Sheet1!S71_RepMaintCode,$AD:$AD)","v":0},{"$f":"SUMIFS(Sheet1!S71_OriginalBudAmnt,Sheet1!S71_SA34cCode,$AC:$AC,Sheet1!S71_RepMaintCode,$AD:$AD)","v":0},{"$f":"SUMIFS(Sheet1!S71_AdjustmentBudAmnt,Sheet1!S71_SA34cCode,$AC:$AC,Sheet1!S71_RepMaintCode,$AD:$AD)","v":0},{"$f":"SUMIFS(Sheet1!S71_AdjustmentBudAmnt,Sheet1!S71_SA34cCode,$AC:$AC,Sheet1!S71_RepMaintCode,$AD:$AD)","v":0},{"$f":"SUMIFS(Sheet1!S71_ASBudgetAmount,Sheet1!S71_SA34cCode,$AC:$AC,Sheet1!S71_RepMaintCode,$AD:$AD)","v":0},{"$f":"SUMIFS(Sheet1!S71_OY1BudgetAmount,Sheet1!S71_SA34cCode,$AC:$AC,Sheet1!S71_RepMaintCode,$AD:$AD)","v":0},{"$f":"SUMIFS(Sheet1!S71_OY2BudgetAmount,Sheet1!S71_SA34cCode,$AC:$AC,Sheet1!S71_RepMaintCode,$AD:$AD)","v":0},null,null,null,null,null,null,null,null,null,null,null,null,null,null,null,null,null,"0590","RM",{"$f":"SUMIFS(Sheet1!S71_PreAuditActual,Sheet1!S71_SA34cCode,_xlfn.SINGLE($AC:$AC),Sheet1!S71_RepMaintCode,_xlfn.SINGLE($AD:$AD))","v":0}]
["Drainage Collection",null,{"$f":"SUMIFS(Sheet1!S71_PPPYearAmount,Sheet1!S71_SA34cCode,$AC:$AC,Sheet1!S71_RepMaintCode,$AD:$AD)","v":0},{"$f":"SUMIFS(Sheet1!S71_PPYearAmount,Sheet1!S71_SA34cCode,$AC:$AC,Sheet1!S71_RepMaintCode,$AD:$AD)","v":0},{"$f":"SUMIFS(Sheet1!S71_PYearAmount,Sheet1!S71_SA34cCode,$AC:$AC,Sheet1!S71_RepMaintCode,$AD:$AD)","v":0},{"$f":"SUMIFS(Sheet1!S71_OriginalBudAmnt,Sheet1!S71_SA34cCode,$AC:$AC,Sheet1!S71_RepMaintCode,$AD:$AD)","v":0},{"$f":"SUMIFS(Sheet1!S71_AdjustmentBudAmnt,Sheet1!S71_SA34cCode,$AC:$AC,Sheet1!S71_RepMaintCode,$AD:$AD)","v":0},{"$f":"SUMIFS(Sheet1!S71_AdjustmentBudAmnt,Sheet1!S71_SA34cCode,$AC:$AC,Sheet1!S71_RepMaintCode,$AD:$AD)","v":0},{"$f":"SUMIFS(Sheet1!S71_ASBudgetAmount,Sheet1!S71_SA34cCode,$AC:$AC,Sheet1!S71_RepMaintCode,$AD:$AD)","v":0},{"$f":"SUMIFS(Sheet1!S71_OY1BudgetAmount,Sheet1!S71_SA34cCode,$AC:$AC,Sheet1!S71_RepMaintCode,$AD:$AD)","v":0},{"$f":"SUMIFS(Sheet1!S71_OY2BudgetAmount,Sheet1!S71_SA34cCode,$AC:$AC,Sheet1!S71_RepMaintCode,$AD:$AD)","v":0},null,null,null,null,null,null,null,null,null,null,null,null,null,null,null,null,null,"0600","RM",{"$f":"SUMIFS(Sheet1!S71_PreAuditActual,Sheet1!S71_SA34cCode,_xlfn.SINGLE($AC:$AC),Sheet1!S71_RepMaintCode,_xlfn.SINGLE($AD:$AD))","v":0}]
["Storm water Conveyance",null,{"$f":"SUMIFS(Sheet1!S71_PPPYearAmount,Sheet1!S71_SA34cCode,$AC:$AC,Sheet1!S71_RepMaintCode,$AD:$AD)","v":0},{"$f":"SUMIFS(Sheet1!S71_PPYearAmount,Sheet1!S71_SA34cCode,$AC:$AC,Sheet1!S71_RepMaintCode,$AD:$AD)","v":0},{"$f":"SUMIFS(Sheet1!S71_PYearAmount,Sheet1!S71_SA34cCode,$AC:$AC,Sheet1!S71_RepMaintCode,$AD:$AD)","v":0},{"$f":"SUMIFS(Sheet1!S71_OriginalBudAmnt,Sheet1!S71_SA34cCode,$AC:$AC,Sheet1!S71_RepMaintCode,$AD:$AD)","v":0},{"$f":"SUMIFS(Sheet1!S71_AdjustmentBudAmnt,Sheet1!S71_SA34cCode,$AC:$AC,Sheet1!S71_RepMaintCode,$AD:$AD)","v":0},{"$f":"SUMIFS(Sheet1!S71_AdjustmentBudAmnt,Sheet1!S71_SA34cCode,$AC:$AC,Sheet1!S71_RepMaintCode,$AD:$AD)","v":0},{"$f":"SUMIFS(Sheet1!S71_ASBudgetAmount,Sheet1!S71_SA34cCode,$AC:$AC,Sheet1!S71_RepMaintCode,$AD:$AD)","v":0},{"$f":"SUMIFS(Sheet1!S71_OY1BudgetAmount,Sheet1!S71_SA34cCode,$AC:$AC,Sheet1!S71_RepMaintCode,$AD:$AD)","v":0},{"$f":"SUMIFS(Sheet1!S71_OY2BudgetAmount,Sheet1!S71_SA34cCode,$AC:$AC,Sheet1!S71_RepMaintCode,$AD:$AD)","v":0},null,null,null,null,null,null,null,null,null,null,null,null,null,null,null,null,null,"0610","RM",{"$f":"SUMIFS(Sheet1!S71_PreAuditActual,Sheet1!S71_SA34cCode,_xlfn.SINGLE($AC:$AC),Sheet1!S71_RepMaintCode,_xlfn.SINGLE($AD:$AD))","v":0}]
["Attenuation",null,{"$f":"SUMIFS(Sheet1!S71_PPPYearAmount,Sheet1!S71_SA34cCode,$AC:$AC,Sheet1!S71_RepMaintCode,$AD:$AD)","v":0},{"$f":"SUMIFS(Sheet1!S71_PPYearAmount,Sheet1!S71_SA34cCode,$AC:$AC,Sheet1!S71_RepMaintCode,$AD:$AD)","v":0},{"$f":"SUMIFS(Sheet1!S71_PYearAmount,Sheet1!S71_SA34cCode,$AC:$AC,Sheet1!S71_RepMaintCode,$AD:$AD)","v":0},{"$f":"SUMIFS(Sheet1!S71_OriginalBudAmnt,Sheet1!S71_SA34cCode,$AC:$AC,Sheet1!S71_RepMaintCode,$AD:$AD)","v":0},{"$f":"SUMIFS(Sheet1!S71_AdjustmentBudAmnt,Sheet1!S71_SA34cCode,$AC:$AC,Sheet1!S71_RepMaintCode,$AD:$AD)","v":0},{"$f":"SUMIFS(Sheet1!S71_AdjustmentBudAmnt,Sheet1!S71_SA34cCode,$AC:$AC,Sheet1!S71_RepMaintCode,$AD:$AD)","v":0},{"$f":"SUMIFS(Sheet1!S71_ASBudgetAmount,Sheet1!S71_SA34cCode,$AC:$AC,Sheet1!S71_RepMaintCode,$AD:$AD)","v":0},{"$f":"SUMIFS(Sheet1!S71_OY1BudgetAmount,Sheet1!S71_SA34cCode,$AC:$AC,Sheet1!S71_RepMaintCode,$AD:$AD)","v":0},{"$f":"SUMIFS(Sheet1!S71_OY2BudgetAmount,Sheet1!S71_SA34cCode,$AC:$AC,Sheet1!S71_RepMaintCode,$AD:$AD)","v":0},null,null,null,null,null,null,null,null,null,null,null,null,null,null,null,null,null,"0620","RM",{"$f":"SUMIFS(Sheet1!S71_PreAuditActual,Sheet1!S71_SA34cCode,_xlfn.SINGLE($AC:$AC),Sheet1!S71_RepMaintCode,_xlfn.SINGLE($AD:$AD))","v":0}]
["MV Substations",null,{"$f":"SUMIFS(Sheet1!S71_PPPYearAmount,Sheet1!S71_SA34cCode,$AC:$AC,Sheet1!S71_RepMaintCode,$AD:$AD)","v":0},{"$f":"SUMIFS(Sheet1!S71_PPYearAmount,Sheet1!S71_SA34cCode,$AC:$AC,Sheet1!S71_RepMaintCode,$AD:$AD)","v":0},{"$f":"SUMIFS(Sheet1!S71_PYearAmount,Sheet1!S71_SA34cCode,$AC:$AC,Sheet1!S71_RepMaintCode,$AD:$AD)","v":0},{"$f":"SUMIFS(Sheet1!S71_OriginalBudAmnt,Sheet1!S71_SA34cCode,$AC:$AC,Sheet1!S71_RepMaintCode,$AD:$AD)","v":0},{"$f":"SUMIFS(Sheet1!S71_AdjustmentBudAmnt,Sheet1!S71_SA34cCode,$AC:$AC,Sheet1!S71_RepMaintCode,$AD:$AD)","v":0},{"$f":"SUMIFS(Sheet1!S71_AdjustmentBudAmnt,Sheet1!S71_SA34cCode,$AC:$AC,Sheet1!S71_RepMaintCode,$AD:$AD)","v":0},{"$f":"SUMIFS(Sheet1!S71_ASBudgetAmount,Sheet1!S71_SA34cCode,$AC:$AC,Sheet1!S71_RepMaintCode,$AD:$AD)","v":0},{"$f":"SUMIFS(Sheet1!S71_OY1BudgetAmount,Sheet1!S71_SA34cCode,$AC:$AC,Sheet1!S71_RepMaintCode,$AD:$AD)","v":0},{"$f":"SUMIFS(Sheet1!S71_OY2BudgetAmount,Sheet1!S71_SA34cCode,$AC:$AC,Sheet1!S71_RepMaintCode,$AD:$AD)","v":0},null,null,null,null,null,null,null,null,null,null,null,null,null,null,null,null,null,"0630","RM",{"$f":"SUMIFS(Sheet1!S71_PreAuditActual,Sheet1!S71_SA34cCode,_xlfn.SINGLE($AC:$AC),Sheet1!S71_RepMaintCode,_xlfn.SINGLE($AD:$AD))","v":0}]
["LV Networks",null,{"$f":"SUMIFS(Sheet1!S71_PPPYearAmount,Sheet1!S71_SA34cCode,$AC:$AC,Sheet1!S71_RepMaintCode,$AD:$AD)","v":0},{"$f":"SUMIFS(Sheet1!S71_PPYearAmount,Sheet1!S71_SA34cCode,$AC:$AC,Sheet1!S71_RepMaintCode,$AD:$AD)","v":0},{"$f":"SUMIFS(Sheet1!S71_PYearAmount,Sheet1!S71_SA34cCode,$AC:$AC,Sheet1!S71_RepMaintCode,$AD:$AD)","v":0},{"$f":"SUMIFS(Sheet1!S71_OriginalBudAmnt,Sheet1!S71_SA34cCode,$AC:$AC,Sheet1!S71_RepMaintCode,$AD:$AD)","v":0},{"$f":"SUMIFS(Sheet1!S71_AdjustmentBudAmnt,Sheet1!S71_SA34cCode,$AC:$AC,Sheet1!S71_RepMaintCode,$AD:$AD)","v":0},{"$f":"SUMIFS(Sheet1!S71_AdjustmentBudAmnt,Sheet1!S71_SA34cCode,$AC:$AC,Sheet1!S71_RepMaintCode,$AD:$AD)","v":0},{"$f":"SUMIFS(Sheet1!S71_ASBudgetAmount,Sheet1!S71_SA34cCode,$AC:$AC,Sheet1!S71_RepMaintCode,$AD:$AD)","v":0},{"$f":"SUMIFS(Sheet1!S71_OY1BudgetAmount,Sheet1!S71_SA34cCode,$AC:$AC,Sheet1!S71_RepMaintCode,$AD:$AD)","v":0},{"$f":"SUMIFS(Sheet1!S71_OY2BudgetAmount,Sheet1!S71_SA34cCode,$AC:$AC,Sheet1!S71_RepMaintCode,$AD:$AD)","v":0},null,null,null,null,null,null,null,null,null,null,null,null,null,null,null,null,null,"0640","RM",{"$f":"SUMIFS(Sheet1!S71_PreAuditActual,Sheet1!S71_SA34cCode,_xlfn.SINGLE($AC:$AC),Sheet1!S71_RepMaintCode,_xlfn.SINGLE($AD:$AD))","v":0}]
["Capital Spares",null,{"$f":"SUMIFS(Sheet1!S71_PPPYearAmount,Sheet1!S71_SA34cCode,$AC:$AC,Sheet1!S71_RepMaintCode,$AD:$AD)","v":0},{"$f":"SUMIFS(Sheet1!S71_PPYearAmount,Sheet1!S71_SA34cCode,$AC:$AC,Sheet1!S71_RepMaintCode,$AD:$AD)","v":0},{"$f":"SUMIFS(Sheet1!S71_PYearAmount,Sheet1!S71_SA34cCode,$AC:$AC,Sheet1!S71_RepMaintCode,$AD:$AD)","v":0},{"$f":"SUMIFS(Sheet1!S71_OriginalBudAmnt,Sheet1!S71_SA34cCode,$AC:$AC,Sheet1!S71_RepMaintCode,$AD:$AD)","v":0},{"$f":"SUMIFS(Sheet1!S71_AdjustmentBudAmnt,Sheet1!S71_SA34cCode,$AC:$AC,Sheet1!S71_RepMaintCode,$AD:$AD)","v":0},{"$f":"SUMIFS(Sheet1!S71_AdjustmentBudAmnt,Sheet1!S71_SA34cCode,$AC:$AC,Sheet1!S71_RepMaintCode,$AD:$AD)","v":0},{"$f":"SUMIFS(Sheet1!S71_ASBudgetAmount,Sheet1!S71_SA34cCode,$AC:$AC,Sheet1!S71_RepMaintCode,$AD:$AD)","v":0},{"$f":"SUMIFS(Sheet1!S71_OY1BudgetAmount,Sheet1!S71_SA34cCode,$AC:$AC,Sheet1!S71_RepMaintCode,$AD:$AD)","v":0},{"$f":"SUMIFS(Sheet1!S71_OY2BudgetAmount,Sheet1!S71_SA34cCode,$AC:$AC,Sheet1!S71_RepMaintCode,$AD:$AD)","v":0},null,null,null,null,null,null,null,null,null,null,null,null,null,null,null,null,null,"0650","RM",{"$f":"SUMIFS(Sheet1!S71_PreAuditActual,Sheet1!S71_SA34cCode,_xlfn.SINGLE($AC:$AC),Sheet1!S71_RepMaintCode,_xlfn.SINGLE($AD:$AD))","v":0}]
["Coastal Infrastructure",null,{"$f":"SUM(C63:C67)","v":0},{"$f":"SUM(D63:D67)","v":0},0,0,0,0,0,0,0,null,null,null,null,null,null,null,null,null,null,null,null,null,null,null,null,null,null,"RM",{"$f":"SUMIFS(Sheet1!S71_PreAuditActual,Sheet1!S71_SA34cCode,_xlfn.SINGLE($AC:$AC),Sheet1!S71_RepMaintCode,_xlfn.SINGLE($AD:$AD))","v":0}]
["Sand Pumps",null,{"$f":"SUMIFS(Sheet1!S71_PPPYearAmount,Sheet1!S71_SA34cCode,$AC:$AC,Sheet1!S71_RepMaintCode,$AD:$AD)","v":0},{"$f":"SUMIFS(Sheet1!S71_PPYearAmount,Sheet1!S71_SA34cCode,$AC:$AC,Sheet1!S71_RepMaintCode,$AD:$AD)","v":0},{"$f":"SUMIFS(Sheet1!S71_PYearAmount,Sheet1!S71_SA34cCode,$AC:$AC,Sheet1!S71_RepMaintCode,$AD:$AD)","v":0},{"$f":"SUMIFS(Sheet1!S71_OriginalBudAmnt,Sheet1!S71_SA34cCode,$AC:$AC,Sheet1!S71_RepMaintCode,$AD:$AD)","v":0},{"$f":"SUMIFS(Sheet1!S71_AdjustmentBudAmnt,Sheet1!S71_SA34cCode,$AC:$AC,Sheet1!S71_RepMaintCode,$AD:$AD)","v":0},{"$f":"SUMIFS(Sheet1!S71_AdjustmentBudAmnt,Sheet1!S71_SA34cCode,$AC:$AC,Sheet1!S71_RepMaintCode,$AD:$AD)","v":0},{"$f":"SUMIFS(Sheet1!S71_ASBudgetAmount,Sheet1!S71_SA34cCode,$AC:$AC,Sheet1!S71_RepMaintCode,$AD:$AD)","v":0},{"$f":"SUMIFS(Sheet1!S71_OY1BudgetAmount,Sheet1!S71_SA34cCode,$AC:$AC,Sheet1!S71_RepMaintCode,$AD:$AD)","v":0},{"$f":"SUMIFS(Sheet1!S71_OY2BudgetAmount,Sheet1!S71_SA34cCode,$AC:$AC,Sheet1!S71_RepMaintCode,$AD:$AD)","v":0},null,null,null,null,null,null,null,null,null,null,null,null,null,null,null,null,null,"0670","RM",{"$f":"SUMIFS(Sheet1!S71_PreAuditActual,Sheet1!S71_SA34cCode,_xlfn.SINGLE($AC:$AC),Sheet1!S71_RepMaintCode,_xlfn.SINGLE($AD:$AD))","v":0}]
["Piers",null,{"$f":"SUMIFS(Sheet1!S71_PPPYearAmount,Sheet1!S71_SA34cCode,$AC:$AC,Sheet1!S71_RepMaintCode,$AD:$AD)","v":0},{"$f":"SUMIFS(Sheet1!S71_PPYearAmount,Sheet1!S71_SA34cCode,$AC:$AC,Sheet1!S71_RepMaintCode,$AD:$AD)","v":0},{"$f":"SUMIFS(Sheet1!S71_PYearAmount,Sheet1!S71_SA34cCode,$AC:$AC,Sheet1!S71_RepMaintCode,$AD:$AD)","v":0},{"$f":"SUMIFS(Sheet1!S71_OriginalBudAmnt,Sheet1!S71_SA34cCode,$AC:$AC,Sheet1!S71_RepMaintCode,$AD:$AD)","v":0},{"$f":"SUMIFS(Sheet1!S71_AdjustmentBudAmnt,Sheet1!S71_SA34cCode,$AC:$AC,Sheet1!S71_RepMaintCode,$AD:$AD)","v":0},{"$f":"SUMIFS(Sheet1!S71_AdjustmentBudAmnt,Sheet1!S71_SA34cCode,$AC:$AC,Sheet1!S71_RepMaintCode,$AD:$AD)","v":0},{"$f":"SUMIFS(Sheet1!S71_ASBudgetAmount,Sheet1!S71_SA34cCode,$AC:$AC,Sheet1!S71_RepMaintCode,$AD:$AD)","v":0},{"$f":"SUMIFS(Sheet1!S71_OY1BudgetAmount,Sheet1!S71_SA34cCode,$AC:$AC,Sheet1!S71_RepMaintCode,$AD:$AD)","v":0},{"$f":"SUMIFS(Sheet1!S71_OY2BudgetAmount,Sheet1!S71_SA34cCode,$AC:$AC,Sheet1!S71_RepMaintCode,$AD:$AD)","v":0},null,null,null,null,null,null,null,null,null,null,null,null,null,null,null,null,null,"0680","RM",{"$f":"SUMIFS(Sheet1!S71_PreAuditActual,Sheet1!S71_SA34cCode,_xlfn.SINGLE($AC:$AC),Sheet1!S71_RepMaintCode,_xlfn.SINGLE($AD:$AD))","v":0}]
["Revetments",null,{"$f":"SUMIFS(Sheet1!S71_PPPYearAmount,Sheet1!S71_SA34cCode,$AC:$AC,Sheet1!S71_RepMaintCode,$AD:$AD)","v":0},{"$f":"SUMIFS(Sheet1!S71_PPYearAmount,Sheet1!S71_SA34cCode,$AC:$AC,Sheet1!S71_RepMaintCode,$AD:$AD)","v":0},{"$f":"SUMIFS(Sheet1!S71_PYearAmount,Sheet1!S71_SA34cCode,$AC:$AC,Sheet1!S71_RepMaintCode,$AD:$AD)","v":0},{"$f":"SUMIFS(Sheet1!S71_OriginalBudAmnt,Sheet1!S71_SA34cCode,$AC:$AC,Sheet1!S71_RepMaintCode,$AD:$AD)","v":0},{"$f":"SUMIFS(Sheet1!S71_AdjustmentBudAmnt,Sheet1!S71_SA34cCode,$AC:$AC,Sheet1!S71_RepMaintCode,$AD:$AD)","v":0},{"$f":"SUMIFS(Sheet1!S71_AdjustmentBudAmnt,Sheet1!S71_SA34cCode,$AC:$AC,Sheet1!S71_RepMaintCode,$AD:$AD)","v":0},{"$f":"SUMIFS(Sheet1!S71_ASBudgetAmount,Sheet1!S71_SA34cCode,$AC:$AC,Sheet1!S71_RepMaintCode,$AD:$AD)","v":0},{"$f":"SUMIFS(Sheet1!S71_OY1BudgetAmount,Sheet1!S71_SA34cCode,$AC:$AC,Sheet1!S71_RepMaintCode,$AD:$AD)","v":0},{"$f":"SUMIFS(Sheet1!S71_OY2BudgetAmount,Sheet1!S71_SA34cCode,$AC:$AC,Sheet1!S71_RepMaintCode,$AD:$AD)","v":0},null,null,null,null,null,null,null,null,null,null,null,null,null,null,null,null,null,"0690","RM",{"$f":"SUMIFS(Sheet1!S71_PreAuditActual,Sheet1!S71_SA34cCode,_xlfn.SINGLE($AC:$AC),Sheet1!S71_RepMaintCode,_xlfn.SINGLE($AD:$AD))","v":0}]
["Promenades",null,{"$f":"SUMIFS(Sheet1!S71_PPPYearAmount,Sheet1!S71_SA34cCode,$AC:$AC,Sheet1!S71_RepMaintCode,$AD:$AD)","v":0},{"$f":"SUMIFS(Sheet1!S71_PPYearAmount,Sheet1!S71_SA34cCode,$AC:$AC,Sheet1!S71_RepMaintCode,$AD:$AD)","v":0},{"$f":"SUMIFS(Sheet1!S71_PYearAmount,Sheet1!S71_SA34cCode,$AC:$AC,Sheet1!S71_RepMaintCode,$AD:$AD)","v":0},{"$f":"SUMIFS(Sheet1!S71_OriginalBudAmnt,Sheet1!S71_SA34cCode,$AC:$AC,Sheet1!S71_RepMaintCode,$AD:$AD)","v":0},{"$f":"SUMIFS(Sheet1!S71_AdjustmentBudAmnt,Sheet1!S71_SA34cCode,$AC:$AC,Sheet1!S71_RepMaintCode,$AD:$AD)","v":0},{"$f":"SUMIFS(Sheet1!S71_AdjustmentBudAmnt,Sheet1!S71_SA34cCode,$AC:$AC,Sheet1!S71_RepMaintCode,$AD:$AD)","v":0},{"$f":"SUMIFS(Sheet1!S71_ASBudgetAmount,Sheet1!S71_SA34cCode,$AC:$AC,Sheet1!S71_RepMaintCode,$AD:$AD)","v":0},{"$f":"SUMIFS(Sheet1!S71_OY1BudgetAmount,Sheet1!S71_SA34cCode,$AC:$AC,Sheet1!S71_RepMaintCode,$AD:$AD)","v":0},{"$f":"SUMIFS(Sheet1!S71_OY2BudgetAmount,Sheet1!S71_SA34cCode,$AC:$AC,Sheet1!S71_RepMaintCode,$AD:$AD)","v":0},null,null,null,null,null,null,null,null,null,null,null,null,null,null,null,null,null,"0700","RM",{"$f":"SUMIFS(Sheet1!S71_PreAuditActual,Sheet1!S71_SA34cCode,_xlfn.SINGLE($AC:$AC),Sheet1!S71_RepMaintCode,_xlfn.SINGLE($AD:$AD))","v":0}]
["Capital Spares",null,{"$f":"SUMIFS(Sheet1!S71_PPPYearAmount,Sheet1!S71_SA34cCode,$AC:$AC,Sheet1!S71_RepMaintCode,$AD:$AD)","v":0},{"$f":"SUMIFS(Sheet1!S71_PPYearAmount,Sheet1!S71_SA34cCode,$AC:$AC,Sheet1!S71_RepMaintCode,$AD:$AD)","v":0},{"$f":"SUMIFS(Sheet1!S71_PYearAmount,Sheet1!S71_SA34cCode,$AC:$AC,Sheet1!S71_RepMaintCode,$AD:$AD)","v":0},{"$f":"SUMIFS(Sheet1!S71_OriginalBudAmnt,Sheet1!S71_SA34cCode,$AC:$AC,Sheet1!S71_RepMaintCode,$AD:$AD)","v":0},{"$f":"SUMIFS(Sheet1!S71_AdjustmentBudAmnt,Sheet1!S71_SA34cCode,$AC:$AC,Sheet1!S71_RepMaintCode,$AD:$AD)","v":0},{"$f":"SUMIFS(Sheet1!S71_AdjustmentBudAmnt,Sheet1!S71_SA34cCode,$AC:$AC,Sheet1!S71_RepMaintCode,$AD:$AD)","v":0},{"$f":"SUMIFS(Sheet1!S71_ASBudgetAmount,Sheet1!S71_SA34cCode,$AC:$AC,Sheet1!S71_RepMaintCode,$AD:$AD)","v":0},{"$f":"SUMIFS(Sheet1!S71_OY1BudgetAmount,Sheet1!S71_SA34cCode,$AC:$AC,Sheet1!S71_RepMaintCode,$AD:$AD)","v":0},{"$f":"SUMIFS(Sheet1!S71_OY2BudgetAmount,Sheet1!S71_SA34cCode,$AC:$AC,Sheet1!S71_RepMaintCode,$AD:$AD)","v":0},null,null,null,null,null,null,null,null,null,null,null,null,null,null,null,null,null,"0710","RM",{"$f":"SUMIFS(Sheet1!S71_PreAuditActual,Sheet1!S71_SA34cCode,_xlfn.SINGLE($AC:$AC),Sheet1!S71_RepMaintCode,_xlfn.SINGLE($AD:$AD))","v":0}]
["Information and Communication Infrastructure",null,{"$f":"SUM(C69:C72)","v":0},{"$f":"SUM(D69:D72)","v":0},0,0,0,0,0,0,0,null,null,null,null,null,null,null,null,null,null,null,null,null,null,null,null,null,null,"RM",{"$f":"SUMIFS(Sheet1!S71_PreAuditActual,Sheet1!S71_SA34cCode,_xlfn.SINGLE($AC:$AC),Sheet1!S71_RepMaintCode,_xlfn.SINGLE($AD:$AD))","v":0}]
["Data Centres",null,{"$f":"SUMIFS(Sheet1!S71_PPPYearAmount,Sheet1!S71_SA34cCode,$AC:$AC,Sheet1!S71_RepMaintCode,$AD:$AD)","v":0},{"$f":"SUMIFS(Sheet1!S71_PPYearAmount,Sheet1!S71_SA34cCode,$AC:$AC,Sheet1!S71_RepMaintCode,$AD:$AD)","v":0},{"$f":"SUMIFS(Sheet1!S71_PYearAmount,Sheet1!S71_SA34cCode,$AC:$AC,Sheet1!S71_RepMaintCode,$AD:$AD)","v":0},{"$f":"SUMIFS(Sheet1!S71_OriginalBudAmnt,Sheet1!S71_SA34cCode,$AC:$AC,Sheet1!S71_RepMaintCode,$AD:$AD)","v":0},{"$f":"SUMIFS(Sheet1!S71_AdjustmentBudAmnt,Sheet1!S71_SA34cCode,$AC:$AC,Sheet1!S71_RepMaintCode,$AD:$AD)","v":0},{"$f":"SUMIFS(Sheet1!S71_AdjustmentBudAmnt,Sheet1!S71_SA34cCode,$AC:$AC,Sheet1!S71_RepMaintCode,$AD:$AD)","v":0},{"$f":"SUMIFS(Sheet1!S71_ASBudgetAmount,Sheet1!S71_SA34cCode,$AC:$AC,Sheet1!S71_RepMaintCode,$AD:$AD)","v":0},{"$f":"SUMIFS(Sheet1!S71_OY1BudgetAmount,Sheet1!S71_SA34cCode,$AC:$AC,Sheet1!S71_RepMaintCode,$AD:$AD)","v":0},{"$f":"SUMIFS(Sheet1!S71_OY2BudgetAmount,Sheet1!S71_SA34cCode,$AC:$AC,Sheet1!S71_RepMaintCode,$AD:$AD)","v":0},null,null,null,null,null,null,null,null,null,null,null,null,null,null,null,null,null,"0730","RM",{"$f":"SUMIFS(Sheet1!S71_PreAuditActual,Sheet1!S71_SA34cCode,_xlfn.SINGLE($AC:$AC),Sheet1!S71_RepMaintCode,_xlfn.SINGLE($AD:$AD))","v":0}]
["Core Layers",null,{"$f":"SUMIFS(Sheet1!S71_PPPYearAmount,Sheet1!S71_SA34cCode,$AC:$AC,Sheet1!S71_RepMaintCode,$AD:$AD)","v":0},{"$f":"SUMIFS(Sheet1!S71_PPYearAmount,Sheet1!S71_SA34cCode,$AC:$AC,Sheet1!S71_RepMaintCode,$AD:$AD)","v":0},{"$f":"SUMIFS(Sheet1!S71_PYearAmount,Sheet1!S71_SA34cCode,$AC:$AC,Sheet1!S71_RepMaintCode,$AD:$AD)","v":0},{"$f":"SUMIFS(Sheet1!S71_OriginalBudAmnt,Sheet1!S71_SA34cCode,$AC:$AC,Sheet1!S71_RepMaintCode,$AD:$AD)","v":0},{"$f":"SUMIFS(Sheet1!S71_AdjustmentBudAmnt,Sheet1!S71_SA34cCode,$AC:$AC,Sheet1!S71_RepMaintCode,$AD:$AD)","v":0},{"$f":"SUMIFS(Sheet1!S71_AdjustmentBudAmnt,Sheet1!S71_SA34cCode,$AC:$AC,Sheet1!S71_RepMaintCode,$AD:$AD)","v":0},{"$f":"SUMIFS(Sheet1!S71_ASBudgetAmount,Sheet1!S71_SA34cCode,$AC:$AC,Sheet1!S71_RepMaintCode,$AD:$AD)","v":0},{"$f":"SUMIFS(Sheet1!S71_OY1BudgetAmount,Sheet1!S71_SA34cCode,$AC:$AC,Sheet1!S71_RepMaintCode,$AD:$AD)","v":0},{"$f":"SUMIFS(Sheet1!S71_OY2BudgetAmount,Sheet1!S71_SA34cCode,$AC:$AC,Sheet1!S71_RepMaintCode,$AD:$AD)","v":0},null,null,null,null,null,null,null,null,null,null,null,null,null,null,null,null,null,"0740","RM",{"$f":"SUMIFS(Sheet1!S71_PreAuditActual,Sheet1!S71_SA34cCode,_xlfn.SINGLE($AC:$AC),Sheet1!S71_RepMaintCode,_xlfn.SINGLE($AD:$AD))","v":0}]
["Distribution Layers",null,{"$f":"SUMIFS(Sheet1!S71_PPPYearAmount,Sheet1!S71_SA34cCode,$AC:$AC,Sheet1!S71_RepMaintCode,$AD:$AD)","v":0},{"$f":"SUMIFS(Sheet1!S71_PPYearAmount,Sheet1!S71_SA34cCode,$AC:$AC,Sheet1!S71_RepMaintCode,$AD:$AD)","v":0},{"$f":"SUMIFS(Sheet1!S71_PYearAmount,Sheet1!S71_SA34cCode,$AC:$AC,Sheet1!S71_RepMaintCode,$AD:$AD)","v":0},{"$f":"SUMIFS(Sheet1!S71_OriginalBudAmnt,Sheet1!S71_SA34cCode,$AC:$AC,Sheet1!S71_RepMaintCode,$AD:$AD)","v":0},{"$f":"SUMIFS(Sheet1!S71_AdjustmentBudAmnt,Sheet1!S71_SA34cCode,$AC:$AC,Sheet1!S71_RepMaintCode,$AD:$AD)","v":0},{"$f":"SUMIFS(Sheet1!S71_AdjustmentBudAmnt,Sheet1!S71_SA34cCode,$AC:$AC,Sheet1!S71_RepMaintCode,$AD:$AD)","v":0},{"$f":"SUMIFS(Sheet1!S71_ASBudgetAmount,Sheet1!S71_SA34cCode,$AC:$AC,Sheet1!S71_RepMaintCode,$AD:$AD)","v":0},{"$f":"SUMIFS(Sheet1!S71_OY1BudgetAmount,Sheet1!S71_SA34cCode,$AC:$AC,Sheet1!S71_RepMaintCode,$AD:$AD)","v":0},{"$f":"SUMIFS(Sheet1!S71_OY2BudgetAmount,Sheet1!S71_SA34cCode,$AC:$AC,Sheet1!S71_RepMaintCode,$AD:$AD)","v":0},null,null,null,null,null,null,null,null,null,null,null,null,null,null,null,null,null,"0750","RM",{"$f":"SUMIFS(Sheet1!S71_PreAuditActual,Sheet1!S71_SA34cCode,_xlfn.SINGLE($AC:$AC),Sheet1!S71_RepMaintCode,_xlfn.SINGLE($AD:$AD))","v":0}]
["Capital Spares",null,{"$f":"SUMIFS(Sheet1!S71_PPPYearAmount,Sheet1!S71_SA34cCode,$AC:$AC,Sheet1!S71_RepMaintCode,$AD:$AD)","v":0},{"$f":"SUMIFS(Sheet1!S71_PPYearAmount,Sheet1!S71_SA34cCode,$AC:$AC,Sheet1!S71_RepMaintCode,$AD:$AD)","v":0},{"$f":"SUMIFS(Sheet1!S71_PYearAmount,Sheet1!S71_SA34cCode,$AC:$AC,Sheet1!S71_RepMaintCode,$AD:$AD)","v":0},{"$f":"SUMIFS(Sheet1!S71_OriginalBudAmnt,Sheet1!S71_SA34cCode,$AC:$AC,Sheet1!S71_RepMaintCode,$AD:$AD)","v":0},{"$f":"SUMIFS(Sheet1!S71_AdjustmentBudAmnt,Sheet1!S71_SA34cCode,$AC:$AC,Sheet1!S71_RepMaintCode,$AD:$AD)","v":0},{"$f":"SUMIFS(Sheet1!S71_AdjustmentBudAmnt,Sheet1!S71_SA34cCode,$AC:$AC,Sheet1!S71_RepMaintCode,$AD:$AD)","v":0},{"$f":"SUMIFS(Sheet1!S71_ASBudgetAmount,Sheet1!S71_SA34cCode,$AC:$AC,Sheet1!S71_RepMaintCode,$AD:$AD)","v":0},{"$f":"SUMIFS(Sheet1!S71_OY1BudgetAmount,Sheet1!S71_SA34cCode,$AC:$AC,Sheet1!S71_RepMaintCode,$AD:$AD)","v":0},{"$f":"SUMIFS(Sheet1!S71_OY2BudgetAmount,Sheet1!S71_SA34cCode,$AC:$AC,Sheet1!S71_RepMaintCode,$AD:$AD)","v":0},null,null,null,null,null,null,null,null,null,null,null,null,null,null,null,null,null,"0760","RM",{"$f":"SUMIFS(Sheet1!S71_PreAuditActual,Sheet1!S71_SA34cCode,_xlfn.SINGLE($AC:$AC),Sheet1!S71_RepMaintCode,_xlfn.SINGLE($AD:$AD))","v":0}]
[null,null,null,null,null,null,null,null,null,null,null,null,null,null,null,null,null,null,null,null,null,null,null,null,null,null,null,null,null,"RM",{"$f":"SUMIFS(Sheet1!S71_PreAuditActual,Sheet1!S71_SA34cCode,_xlfn.SINGLE($AC:$AC),Sheet1!S71_RepMaintCode,_xlfn.SINGLE($AD:$AD))","v":0}]
["Community Assets",null,{"$f":"C75+C98","v":0},{"$f":"D75+D98","v":0},0,0,0,0,0,0,0,null,null,null,null,null,null,null,null,null,null,null,null,null,null,null,null,null,null,"RM",{"$f":"SUMIFS(Sheet1!S71_PreAuditActual,Sheet1!S71_SA34cCode,_xlfn.SINGLE($AC:$AC),Sheet1!S71_RepMaintCode,_xlfn.SINGLE($AD:$AD))","v":0}]
["Community Facilities",null,{"$f":"SUM(C76:C97)","v":0},{"$f":"SUM(D76:D97)","v":0},0,0,0,0,0,0,0,null,null,null,null,null,null,null,null,null,null,null,null,null,null,null,null,null,null,"RM",{"$f":"SUMIFS(Sheet1!S71_PreAuditActual,Sheet1!S71_SA34cCode,_xlfn.SINGLE($AC:$AC),Sheet1!S71_RepMaintCode,_xlfn.SINGLE($AD:$AD))","v":0}]
["Halls",null,{"$f":"SUMIFS(Sheet1!S71_PPPYearAmount,Sheet1!S71_SA34cCode,$AC:$AC,Sheet1!S71_RepMaintCode,$AD:$AD)","v":0},{"$f":"SUMIFS(Sheet1!S71_PPYearAmount,Sheet1!S71_SA34cCode,$AC:$AC,Sheet1!S71_RepMaintCode,$AD:$AD)","v":0},{"$f":"SUMIFS(Sheet1!S71_PYearAmount,Sheet1!S71_SA34cCode,$AC:$AC,Sheet1!S71_RepMaintCode,$AD:$AD)","v":0},{"$f":"SUMIFS(Sheet1!S71_OriginalBudAmnt,Sheet1!S71_SA34cCode,$AC:$AC,Sheet1!S71_RepMaintCode,$AD:$AD)","v":0},{"$f":"SUMIFS(Sheet1!S71_AdjustmentBudAmnt,Sheet1!S71_SA34cCode,$AC:$AC,Sheet1!S71_RepMaintCode,$AD:$AD)","v":0},{"$f":"SUMIFS(Sheet1!S71_AdjustmentBudAmnt,Sheet1!S71_SA34cCode,$AC:$AC,Sheet1!S71_RepMaintCode,$AD:$AD)","v":0},{"$f":"SUMIFS(Sheet1!S71_ASBudgetAmount,Sheet1!S71_SA34cCode,$AC:$AC,Sheet1!S71_RepMaintCode,$AD:$AD)","v":0},{"$f":"SUMIFS(Sheet1!S71_OY1BudgetAmount,Sheet1!S71_SA34cCode,$AC:$AC,Sheet1!S71_RepMaintCode,$AD:$AD)","v":0},{"$f":"SUMIFS(Sheet1!S71_OY2BudgetAmount,Sheet1!S71_SA34cCode,$AC:$AC,Sheet1!S71_RepMaintCode,$AD:$AD)","v":0},null,null,null,null,null,null,null,null,null,null,null,null,null,null,null,null,null,"0790","RM",{"$f":"SUMIFS(Sheet1!S71_PreAuditActual,Sheet1!S71_SA34cCode,_xlfn.SINGLE($AC:$AC),Sheet1!S71_RepMaintCode,_xlfn.SINGLE($AD:$AD))","v":0}]
["Centres",null,{"$f":"SUMIFS(Sheet1!S71_PPPYearAmount,Sheet1!S71_SA34cCode,$AC:$AC,Sheet1!S71_RepMaintCode,$AD:$AD)","v":0},{"$f":"SUMIFS(Sheet1!S71_PPYearAmount,Sheet1!S71_SA34cCode,$AC:$AC,Sheet1!S71_RepMaintCode,$AD:$AD)","v":0},{"$f":"SUMIFS(Sheet1!S71_PYearAmount,Sheet1!S71_SA34cCode,$AC:$AC,Sheet1!S71_RepMaintCode,$AD:$AD)","v":0},{"$f":"SUMIFS(Sheet1!S71_OriginalBudAmnt,Sheet1!S71_SA34cCode,$AC:$AC,Sheet1!S71_RepMaintCode,$AD:$AD)","v":0},{"$f":"SUMIFS(Sheet1!S71_AdjustmentBudAmnt,Sheet1!S71_SA34cCode,$AC:$AC,Sheet1!S71_RepMaintCode,$AD:$AD)","v":0},{"$f":"SUMIFS(Sheet1!S71_AdjustmentBudAmnt,Sheet1!S71_SA34cCode,$AC:$AC,Sheet1!S71_RepMaintCode,$AD:$AD)","v":0},{"$f":"SUMIFS(Sheet1!S71_ASBudgetAmount,Sheet1!S71_SA34cCode,$AC:$AC,Sheet1!S71_RepMaintCode,$AD:$AD)","v":0},{"$f":"SUMIFS(Sheet1!S71_OY1BudgetAmount,Sheet1!S71_SA34cCode,$AC:$AC,Sheet1!S71_RepMaintCode,$AD:$AD)","v":0},{"$f":"SUMIFS(Sheet1!S71_OY2BudgetAmount,Sheet1!S71_SA34cCode,$AC:$AC,Sheet1!S71_RepMaintCode,$AD:$AD)","v":0},null,null,null,null,null,null,null,null,null,null,null,null,null,null,null,null,null,"0800","RM",{"$f":"SUMIFS(Sheet1!S71_PreAuditActual,Sheet1!S71_SA34cCode,_xlfn.SINGLE($AC:$AC),Sheet1!S71_RepMaintCode,_xlfn.SINGLE($AD:$AD))","v":0}]
["Crèches",null,{"$f":"SUMIFS(Sheet1!S71_PPPYearAmount,Sheet1!S71_SA34cCode,$AC:$AC,Sheet1!S71_RepMaintCode,$AD:$AD)","v":0},{"$f":"SUMIFS(Sheet1!S71_PPYearAmount,Sheet1!S71_SA34cCode,$AC:$AC,Sheet1!S71_RepMaintCode,$AD:$AD)","v":0},{"$f":"SUMIFS(Sheet1!S71_PYearAmount,Sheet1!S71_SA34cCode,$AC:$AC,Sheet1!S71_RepMaintCode,$AD:$AD)","v":0},{"$f":"SUMIFS(Sheet1!S71_OriginalBudAmnt,Sheet1!S71_SA34cCode,$AC:$AC,Sheet1!S71_RepMaintCode,$AD:$AD)","v":0},{"$f":"SUMIFS(Sheet1!S71_AdjustmentBudAmnt,Sheet1!S71_SA34cCode,$AC:$AC,Sheet1!S71_RepMaintCode,$AD:$AD)","v":0},{"$f":"SUMIFS(Sheet1!S71_AdjustmentBudAmnt,Sheet1!S71_SA34cCode,$AC:$AC,Sheet1!S71_RepMaintCode,$AD:$AD)","v":0},{"$f":"SUMIFS(Sheet1!S71_ASBudgetAmount,Sheet1!S71_SA34cCode,$AC:$AC,Sheet1!S71_RepMaintCode,$AD:$AD)","v":0},{"$f":"SUMIFS(Sheet1!S71_OY1BudgetAmount,Sheet1!S71_SA34cCode,$AC:$AC,Sheet1!S71_RepMaintCode,$AD:$AD)","v":0},{"$f":"SUMIFS(Sheet1!S71_OY2BudgetAmount,Sheet1!S71_SA34cCode,$AC:$AC,Sheet1!S71_RepMaintCode,$AD:$AD)","v":0},null,null,null,null,null,null,null,null,null,null,null,null,null,null,null,null,null,"0810","RM",{"$f":"SUMIFS(Sheet1!S71_PreAuditActual,Sheet1!S71_SA34cCode,_xlfn.SINGLE($AC:$AC),Sheet1!S71_RepMaintCode,_xlfn.SINGLE($AD:$AD))","v":0}]
["Clinics/Care Centres",null,{"$f":"SUMIFS(Sheet1!S71_PPPYearAmount,Sheet1!S71_SA34cCode,$AC:$AC,Sheet1!S71_RepMaintCode,$AD:$AD)","v":0},{"$f":"SUMIFS(Sheet1!S71_PPYearAmount,Sheet1!S71_SA34cCode,$AC:$AC,Sheet1!S71_RepMaintCode,$AD:$AD)","v":0},{"$f":"SUMIFS(Sheet1!S71_PYearAmount,Sheet1!S71_SA34cCode,$AC:$AC,Sheet1!S71_RepMaintCode,$AD:$AD)","v":0},{"$f":"SUMIFS(Sheet1!S71_OriginalBudAmnt,Sheet1!S71_SA34cCode,$AC:$AC,Sheet1!S71_RepMaintCode,$AD:$AD)","v":0},{"$f":"SUMIFS(Sheet1!S71_AdjustmentBudAmnt,Sheet1!S71_SA34cCode,$AC:$AC,Sheet1!S71_RepMaintCode,$AD:$AD)","v":0},{"$f":"SUMIFS(Sheet1!S71_AdjustmentBudAmnt,Sheet1!S71_SA34cCode,$AC:$AC,Sheet1!S71_RepMaintCode,$AD:$AD)","v":0},{"$f":"SUMIFS(Sheet1!S71_ASBudgetAmount,Sheet1!S71_SA34cCode,$AC:$AC,Sheet1!S71_RepMaintCode,$AD:$AD)","v":0},{"$f":"SUMIFS(Sheet1!S71_OY1BudgetAmount,Sheet1!S71_SA34cCode,$AC:$AC,Sheet1!S71_RepMaintCode,$AD:$AD)","v":0},{"$f":"SUMIFS(Sheet1!S71_OY2BudgetAmount,Sheet1!S71_SA34cCode,$AC:$AC,Sheet1!S71_RepMaintCode,$AD:$AD)","v":0},null,null,null,null,null,null,null,null,null,null,null,null,null,null,null,null,null,"0820","RM",{"$f":"SUMIFS(Sheet1!S71_PreAuditActual,Sheet1!S71_SA34cCode,_xlfn.SINGLE($AC:$AC),Sheet1!S71_RepMaintCode,_xlfn.SINGLE($AD:$AD))","v":0}]
["Fire/Ambulance Stations",null,{"$f":"SUMIFS(Sheet1!S71_PPPYearAmount,Sheet1!S71_SA34cCode,$AC:$AC,Sheet1!S71_RepMaintCode,$AD:$AD)","v":0},{"$f":"SUMIFS(Sheet1!S71_PPYearAmount,Sheet1!S71_SA34cCode,$AC:$AC,Sheet1!S71_RepMaintCode,$AD:$AD)","v":0},{"$f":"SUMIFS(Sheet1!S71_PYearAmount,Sheet1!S71_SA34cCode,$AC:$AC,Sheet1!S71_RepMaintCode,$AD:$AD)","v":0},{"$f":"SUMIFS(Sheet1!S71_OriginalBudAmnt,Sheet1!S71_SA34cCode,$AC:$AC,Sheet1!S71_RepMaintCode,$AD:$AD)","v":0},{"$f":"SUMIFS(Sheet1!S71_AdjustmentBudAmnt,Sheet1!S71_SA34cCode,$AC:$AC,Sheet1!S71_RepMaintCode,$AD:$AD)","v":0},{"$f":"SUMIFS(Sheet1!S71_AdjustmentBudAmnt,Sheet1!S71_SA34cCode,$AC:$AC,Sheet1!S71_RepMaintCode,$AD:$AD)","v":0},{"$f":"SUMIFS(Sheet1!S71_ASBudgetAmount,Sheet1!S71_SA34cCode,$AC:$AC,Sheet1!S71_RepMaintCode,$AD:$AD)","v":0},{"$f":"SUMIFS(Sheet1!S71_OY1BudgetAmount,Sheet1!S71_SA34cCode,$AC:$AC,Sheet1!S71_RepMaintCode,$AD:$AD)","v":0},{"$f":"SUMIFS(Sheet1!S71_OY2BudgetAmount,Sheet1!S71_SA34cCode,$AC:$AC,Sheet1!S71_RepMaintCode,$AD:$AD)","v":0},null,null,null,null,null,null,null,null,null,null,null,null,null,null,null,null,null,"0830","RM",{"$f":"SUMIFS(Sheet1!S71_PreAuditActual,Sheet1!S71_SA34cCode,_xlfn.SINGLE($AC:$AC),Sheet1!S71_RepMaintCode,_xlfn.SINGLE($AD:$AD))","v":0}]
["Testing Stations",null,{"$f":"SUMIFS(Sheet1!S71_PPPYearAmount,Sheet1!S71_SA34cCode,$AC:$AC,Sheet1!S71_RepMaintCode,$AD:$AD)","v":0},{"$f":"SUMIFS(Sheet1!S71_PPYearAmount,Sheet1!S71_SA34cCode,$AC:$AC,Sheet1!S71_RepMaintCode,$AD:$AD)","v":0},{"$f":"SUMIFS(Sheet1!S71_PYearAmount,Sheet1!S71_SA34cCode,$AC:$AC,Sheet1!S71_RepMaintCode,$AD:$AD)","v":0},{"$f":"SUMIFS(Sheet1!S71_OriginalBudAmnt,Sheet1!S71_SA34cCode,$AC:$AC,Sheet1!S71_RepMaintCode,$AD:$AD)","v":0},{"$f":"SUMIFS(Sheet1!S71_AdjustmentBudAmnt,Sheet1!S71_SA34cCode,$AC:$AC,Sheet1!S71_RepMaintCode,$AD:$AD)","v":0},{"$f":"SUMIFS(Sheet1!S71_AdjustmentBudAmnt,Sheet1!S71_SA34cCode,$AC:$AC,Sheet1!S71_RepMaintCode,$AD:$AD)","v":0},{"$f":"SUMIFS(Sheet1!S71_ASBudgetAmount,Sheet1!S71_SA34cCode,$AC:$AC,Sheet1!S71_RepMaintCode,$AD:$AD)","v":0},{"$f":"SUMIFS(Sheet1!S71_OY1BudgetAmount,Sheet1!S71_SA34cCode,$AC:$AC,Sheet1!S71_RepMaintCode,$AD:$AD)","v":0},{"$f":"SUMIFS(Sheet1!S71_OY2BudgetAmount,Sheet1!S71_SA34cCode,$AC:$AC,Sheet1!S71_RepMaintCode,$AD:$AD)","v":0},null,null,null,null,null,null,null,null,null,null,null,null,null,null,null,null,null,"0840","RM",{"$f":"SUMIFS(Sheet1!S71_PreAuditActual,Sheet1!S71_SA34cCode,_xlfn.SINGLE($AC:$AC),Sheet1!S71_RepMaintCode,_xlfn.SINGLE($AD:$AD))","v":0}]
["Museums",null,{"$f":"SUMIFS(Sheet1!S71_PPPYearAmount,Sheet1!S71_SA34cCode,$AC:$AC,Sheet1!S71_RepMaintCode,$AD:$AD)","v":0},{"$f":"SUMIFS(Sheet1!S71_PPYearAmount,Sheet1!S71_SA34cCode,$AC:$AC,Sheet1!S71_RepMaintCode,$AD:$AD)","v":0},{"$f":"SUMIFS(Sheet1!S71_PYearAmount,Sheet1!S71_SA34cCode,$AC:$AC,Sheet1!S71_RepMaintCode,$AD:$AD)","v":0},{"$f":"SUMIFS(Sheet1!S71_OriginalBudAmnt,Sheet1!S71_SA34cCode,$AC:$AC,Sheet1!S71_RepMaintCode,$AD:$AD)","v":0},{"$f":"SUMIFS(Sheet1!S71_AdjustmentBudAmnt,Sheet1!S71_SA34cCode,$AC:$AC,Sheet1!S71_RepMaintCode,$AD:$AD)","v":0},{"$f":"SUMIFS(Sheet1!S71_AdjustmentBudAmnt,Sheet1!S71_SA34cCode,$AC:$AC,Sheet1!S71_RepMaintCode,$AD:$AD)","v":0},{"$f":"SUMIFS(Sheet1!S71_ASBudgetAmount,Sheet1!S71_SA34cCode,$AC:$AC,Sheet1!S71_RepMaintCode,$AD:$AD)","v":0},{"$f":"SUMIFS(Sheet1!S71_OY1BudgetAmount,Sheet1!S71_SA34cCode,$AC:$AC,Sheet1!S71_RepMaintCode,$AD:$AD)","v":0},{"$f":"SUMIFS(Sheet1!S71_OY2BudgetAmount,Sheet1!S71_SA34cCode,$AC:$AC,Sheet1!S71_RepMaintCode,$AD:$AD)","v":0},null,null,null,null,null,null,null,null,null,null,null,null,null,null,null,null,null,"0850","RM",{"$f":"SUMIFS(Sheet1!S71_PreAuditActual,Sheet1!S71_SA34cCode,_xlfn.SINGLE($AC:$AC),Sheet1!S71_RepMaintCode,_xlfn.SINGLE($AD:$AD))","v":0}]
["Galleries",null,{"$f":"SUMIFS(Sheet1!S71_PPPYearAmount,Sheet1!S71_SA34cCode,$AC:$AC,Sheet1!S71_RepMaintCode,$AD:$AD)","v":0},{"$f":"SUMIFS(Sheet1!S71_PPYearAmount,Sheet1!S71_SA34cCode,$AC:$AC,Sheet1!S71_RepMaintCode,$AD:$AD)","v":0},{"$f":"SUMIFS(Sheet1!S71_PYearAmount,Sheet1!S71_SA34cCode,$AC:$AC,Sheet1!S71_RepMaintCode,$AD:$AD)","v":0},{"$f":"SUMIFS(Sheet1!S71_OriginalBudAmnt,Sheet1!S71_SA34cCode,$AC:$AC,Sheet1!S71_RepMaintCode,$AD:$AD)","v":0},{"$f":"SUMIFS(Sheet1!S71_AdjustmentBudAmnt,Sheet1!S71_SA34cCode,$AC:$AC,Sheet1!S71_RepMaintCode,$AD:$AD)","v":0},{"$f":"SUMIFS(Sheet1!S71_AdjustmentBudAmnt,Sheet1!S71_SA34cCode,$AC:$AC,Sheet1!S71_RepMaintCode,$AD:$AD)","v":0},{"$f":"SUMIFS(Sheet1!S71_ASBudgetAmount,Sheet1!S71_SA34cCode,$AC:$AC,Sheet1!S71_RepMaintCode,$AD:$AD)","v":0},{"$f":"SUMIFS(Sheet1!S71_OY1BudgetAmount,Sheet1!S71_SA34cCode,$AC:$AC,Sheet1!S71_RepMaintCode,$AD:$AD)","v":0},{"$f":"SUMIFS(Sheet1!S71_OY2BudgetAmount,Sheet1!S71_SA34cCode,$AC:$AC,Sheet1!S71_RepMaintCode,$AD:$AD)","v":0},null,null,null,null,null,null,null,null,null,null,null,null,null,null,null,null,null,"0860","RM",{"$f":"SUMIFS(Sheet1!S71_PreAuditActual,Sheet1!S71_SA34cCode,_xlfn.SINGLE($AC:$AC),Sheet1!S71_RepMaintCode,_xlfn.SINGLE($AD:$AD))","v":0}]
["Theatres",null,{"$f":"SUMIFS(Sheet1!S71_PPPYearAmount,Sheet1!S71_SA34cCode,$AC:$AC,Sheet1!S71_RepMaintCode,$AD:$AD)","v":0},{"$f":"SUMIFS(Sheet1!S71_PPYearAmount,Sheet1!S71_SA34cCode,$AC:$AC,Sheet1!S71_RepMaintCode,$AD:$AD)","v":0},{"$f":"SUMIFS(Sheet1!S71_PYearAmount,Sheet1!S71_SA34cCode,$AC:$AC,Sheet1!S71_RepMaintCode,$AD:$AD)","v":0},{"$f":"SUMIFS(Sheet1!S71_OriginalBudAmnt,Sheet1!S71_SA34cCode,$AC:$AC,Sheet1!S71_RepMaintCode,$AD:$AD)","v":0},{"$f":"SUMIFS(Sheet1!S71_AdjustmentBudAmnt,Sheet1!S71_SA34cCode,$AC:$AC,Sheet1!S71_RepMaintCode,$AD:$AD)","v":0},{"$f":"SUMIFS(Sheet1!S71_AdjustmentBudAmnt,Sheet1!S71_SA34cCode,$AC:$AC,Sheet1!S71_RepMaintCode,$AD:$AD)","v":0},{"$f":"SUMIFS(Sheet1!S71_ASBudgetAmount,Sheet1!S71_SA34cCode,$AC:$AC,Sheet1!S71_RepMaintCode,$AD:$AD)","v":0},{"$f":"SUMIFS(Sheet1!S71_OY1BudgetAmount,Sheet1!S71_SA34cCode,$AC:$AC,Sheet1!S71_RepMaintCode,$AD:$AD)","v":0},{"$f":"SUMIFS(Sheet1!S71_OY2BudgetAmount,Sheet1!S71_SA34cCode,$AC:$AC,Sheet1!S71_RepMaintCode,$AD:$AD)","v":0},null,null,null,null,null,null,null,null,null,null,null,null,null,null,null,null,null,"0870","RM",{"$f":"SUMIFS(Sheet1!S71_PreAuditActual,Sheet1!S71_SA34cCode,_xlfn.SINGLE($AC:$AC),Sheet1!S71_RepMaintCode,_xlfn.SINGLE($AD:$AD))","v":0}]
["Libraries",null,{"$f":"SUMIFS(Sheet1!S71_PPPYearAmount,Sheet1!S71_SA34cCode,$AC:$AC,Sheet1!S71_RepMaintCode,$AD:$AD)","v":0},{"$f":"SUMIFS(Sheet1!S71_PPYearAmount,Sheet1!S71_SA34cCode,$AC:$AC,Sheet1!S71_RepMaintCode,$AD:$AD)","v":0},{"$f":"SUMIFS(Sheet1!S71_PYearAmount,Sheet1!S71_SA34cCode,$AC:$AC,Sheet1!S71_RepMaintCode,$AD:$AD)","v":0},{"$f":"SUMIFS(Sheet1!S71_OriginalBudAmnt,Sheet1!S71_SA34cCode,$AC:$AC,Sheet1!S71_RepMaintCode,$AD:$AD)","v":0},{"$f":"SUMIFS(Sheet1!S71_AdjustmentBudAmnt,Sheet1!S71_SA34cCode,$AC:$AC,Sheet1!S71_RepMaintCode,$AD:$AD)","v":0},{"$f":"SUMIFS(Sheet1!S71_AdjustmentBudAmnt,Sheet1!S71_SA34cCode,$AC:$AC,Sheet1!S71_RepMaintCode,$AD:$AD)","v":0},{"$f":"SUMIFS(Sheet1!S71_ASBudgetAmount,Sheet1!S71_SA34cCode,$AC:$AC,Sheet1!S71_RepMaintCode,$AD:$AD)","v":0},{"$f":"SUMIFS(Sheet1!S71_OY1BudgetAmount,Sheet1!S71_SA34cCode,$AC:$AC,Sheet1!S71_RepMaintCode,$AD:$AD)","v":0},{"$f":"SUMIFS(Sheet1!S71_OY2BudgetAmount,Sheet1!S71_SA34cCode,$AC:$AC,Sheet1!S71_RepMaintCode,$AD:$AD)","v":0},null,null,null,null,null,null,null,null,null,null,null,null,null,null,null,null,null,"0880","RM",{"$f":"SUMIFS(Sheet1!S71_PreAuditActual,Sheet1!S71_SA34cCode,_xlfn.SINGLE($AC:$AC),Sheet1!S71_RepMaintCode,_xlfn.SINGLE($AD:$AD))","v":0}]
["Cemeteries/Crematoria",null,{"$f":"SUMIFS(Sheet1!S71_PPPYearAmount,Sheet1!S71_SA34cCode,$AC:$AC,Sheet1!S71_RepMaintCode,$AD:$AD)","v":0},{"$f":"SUMIFS(Sheet1!S71_PPYearAmount,Sheet1!S71_SA34cCode,$AC:$AC,Sheet1!S71_RepMaintCode,$AD:$AD)","v":0},{"$f":"SUMIFS(Sheet1!S71_PYearAmount,Sheet1!S71_SA34cCode,$AC:$AC,Sheet1!S71_RepMaintCode,$AD:$AD)","v":0},{"$f":"SUMIFS(Sheet1!S71_OriginalBudAmnt,Sheet1!S71_SA34cCode,$AC:$AC,Sheet1!S71_RepMaintCode,$AD:$AD)","v":0},{"$f":"SUMIFS(Sheet1!S71_AdjustmentBudAmnt,Sheet1!S71_SA34cCode,$AC:$AC,Sheet1!S71_RepMaintCode,$AD:$AD)","v":0},{"$f":"SUMIFS(Sheet1!S71_AdjustmentBudAmnt,Sheet1!S71_SA34cCode,$AC:$AC,Sheet1!S71_RepMaintCode,$AD:$AD)","v":0},{"$f":"SUMIFS(Sheet1!S71_ASBudgetAmount,Sheet1!S71_SA34cCode,$AC:$AC,Sheet1!S71_RepMaintCode,$AD:$AD)","v":0},{"$f":"SUMIFS(Sheet1!S71_OY1BudgetAmount,Sheet1!S71_SA34cCode,$AC:$AC,Sheet1!S71_RepMaintCode,$AD:$AD)","v":0},{"$f":"SUMIFS(Sheet1!S71_OY2BudgetAmount,Sheet1!S71_SA34cCode,$AC:$AC,Sheet1!S71_RepMaintCode,$AD:$AD)","v":0},null,null,null,null,null,null,null,null,null,null,null,null,null,null,null,null,null,"0890","RM",{"$f":"SUMIFS(Sheet1!S71_PreAuditActual,Sheet1!S71_SA34cCode,_xlfn.SINGLE($AC:$AC),Sheet1!S71_RepMaintCode,_xlfn.SINGLE($AD:$AD))","v":0}]
["Police",null,{"$f":"SUMIFS(Sheet1!S71_PPPYearAmount,Sheet1!S71_SA34cCode,$AC:$AC,Sheet1!S71_RepMaintCode,$AD:$AD)","v":0},{"$f":"SUMIFS(Sheet1!S71_PPYearAmount,Sheet1!S71_SA34cCode,$AC:$AC,Sheet1!S71_RepMaintCode,$AD:$AD)","v":0},{"$f":"SUMIFS(Sheet1!S71_PYearAmount,Sheet1!S71_SA34cCode,$AC:$AC,Sheet1!S71_RepMaintCode,$AD:$AD)","v":0},{"$f":"SUMIFS(Sheet1!S71_OriginalBudAmnt,Sheet1!S71_SA34cCode,$AC:$AC,Sheet1!S71_RepMaintCode,$AD:$AD)","v":0},{"$f":"SUMIFS(Sheet1!S71_AdjustmentBudAmnt,Sheet1!S71_SA34cCode,$AC:$AC,Sheet1!S71_RepMaintCode,$AD:$AD)","v":0},{"$f":"SUMIFS(Sheet1!S71_AdjustmentBudAmnt,Sheet1!S71_SA34cCode,$AC:$AC,Sheet1!S71_RepMaintCode,$AD:$AD)","v":0},{"$f":"SUMIFS(Sheet1!S71_ASBudgetAmount,Sheet1!S71_SA34cCode,$AC:$AC,Sheet1!S71_RepMaintCode,$AD:$AD)","v":0},{"$f":"SUMIFS(Sheet1!S71_OY1BudgetAmount,Sheet1!S71_SA34cCode,$AC:$AC,Sheet1!S71_RepMaintCode,$AD:$AD)","v":0},{"$f":"SUMIFS(Sheet1!S71_OY2BudgetAmount,Sheet1!S71_SA34cCode,$AC:$AC,Sheet1!S71_RepMaintCode,$AD:$AD)","v":0},null,null,null,null,null,null,null,null,null,null,null,null,null,null,null,null,null,"0900","RM",{"$f":"SUMIFS(Sheet1!S71_PreAuditActual,Sheet1!S71_SA34cCode,_xlfn.SINGLE($AC:$AC),Sheet1!S71_RepMaintCode,_xlfn.SINGLE($AD:$AD))","v":0}]
["Parks",null,{"$f":"SUMIFS(Sheet1!S71_PPPYearAmount,Sheet1!S71_SA34cCode,$AC:$AC,Sheet1!S71_RepMaintCode,$AD:$AD)","v":0},{"$f":"SUMIFS(Sheet1!S71_PPYearAmount,Sheet1!S71_SA34cCode,$AC:$AC,Sheet1!S71_RepMaintCode,$AD:$AD)","v":0},{"$f":"SUMIFS(Sheet1!S71_PYearAmount,Sheet1!S71_SA34cCode,$AC:$AC,Sheet1!S71_RepMaintCode,$AD:$AD)","v":0},{"$f":"SUMIFS(Sheet1!S71_OriginalBudAmnt,Sheet1!S71_SA34cCode,$AC:$AC,Sheet1!S71_RepMaintCode,$AD:$AD)","v":0},{"$f":"SUMIFS(Sheet1!S71_AdjustmentBudAmnt,Sheet1!S71_SA34cCode,$AC:$AC,Sheet1!S71_RepMaintCode,$AD:$AD)","v":0},{"$f":"SUMIFS(Sheet1!S71_AdjustmentBudAmnt,Sheet1!S71_SA34cCode,$AC:$AC,Sheet1!S71_RepMaintCode,$AD:$AD)","v":0},{"$f":"SUMIFS(Sheet1!S71_ASBudgetAmount,Sheet1!S71_SA34cCode,$AC:$AC,Sheet1!S71_RepMaintCode,$AD:$AD)","v":0},{"$f":"SUMIFS(Sheet1!S71_OY1BudgetAmount,Sheet1!S71_SA34cCode,$AC:$AC,Sheet1!S71_RepMaintCode,$AD:$AD)","v":0},{"$f":"SUMIFS(Sheet1!S71_OY2BudgetAmount,Sheet1!S71_SA34cCode,$AC:$AC,Sheet1!S71_RepMaintCode,$AD:$AD)","v":0},null,null,null,null,null,null,null,null,null,null,null,null,null,null,null,null,null,"0910","RM",{"$f":"SUMIFS(Sheet1!S71_PreAuditActual,Sheet1!S71_SA34cCode,_xlfn.SINGLE($AC:$AC),Sheet1!S71_RepMaintCode,_xlfn.SINGLE($AD:$AD))","v":0}]
["Public Open Space",null,{"$f":"SUMIFS(Sheet1!S71_PPPYearAmount,Sheet1!S71_SA34cCode,$AC:$AC,Sheet1!S71_RepMaintCode,$AD:$AD)","v":0},{"$f":"SUMIFS(Sheet1!S71_PPYearAmount,Sheet1!S71_SA34cCode,$AC:$AC,Sheet1!S71_RepMaintCode,$AD:$AD)","v":0},{"$f":"SUMIFS(Sheet1!S71_PYearAmount,Sheet1!S71_SA34cCode,$AC:$AC,Sheet1!S71_RepMaintCode,$AD:$AD)","v":0},{"$f":"SUMIFS(Sheet1!S71_OriginalBudAmnt,Sheet1!S71_SA34cCode,$AC:$AC,Sheet1!S71_RepMaintCode,$AD:$AD)","v":0},{"$f":"SUMIFS(Sheet1!S71_AdjustmentBudAmnt,Sheet1!S71_SA34cCode,$AC:$AC,Sheet1!S71_RepMaintCode,$AD:$AD)","v":0},{"$f":"SUMIFS(Sheet1!S71_AdjustmentBudAmnt,Sheet1!S71_SA34cCode,$AC:$AC,Sheet1!S71_RepMaintCode,$AD:$AD)","v":0},{"$f":"SUMIFS(Sheet1!S71_ASBudgetAmount,Sheet1!S71_SA34cCode,$AC:$AC,Sheet1!S71_RepMaintCode,$AD:$AD)","v":0},{"$f":"SUMIFS(Sheet1!S71_OY1BudgetAmount,Sheet1!S71_SA34cCode,$AC:$AC,Sheet1!S71_RepMaintCode,$AD:$AD)","v":0},{"$f":"SUMIFS(Sheet1!S71_OY2BudgetAmount,Sheet1!S71_SA34cCode,$AC:$AC,Sheet1!S71_RepMaintCode,$AD:$AD)","v":0},null,null,null,null,null,null,null,null,null,null,null,null,null,null,null,null,null,"0920","RM",{"$f":"SUMIFS(Sheet1!S71_PreAuditActual,Sheet1!S71_SA34cCode,_xlfn.SINGLE($AC:$AC),Sheet1!S71_RepMaintCode,_xlfn.SINGLE($AD:$AD))","v":0}]
["Nature Reserves",null,{"$f":"SUMIFS(Sheet1!S71_PPPYearAmount,Sheet1!S71_SA34cCode,$AC:$AC,Sheet1!S71_RepMaintCode,$AD:$AD)","v":0},{"$f":"SUMIFS(Sheet1!S71_PPYearAmount,Sheet1!S71_SA34cCode,$AC:$AC,Sheet1!S71_RepMaintCode,$AD:$AD)","v":0},{"$f":"SUMIFS(Sheet1!S71_PYearAmount,Sheet1!S71_SA34cCode,$AC:$AC,Sheet1!S71_RepMaintCode,$AD:$AD)","v":0},{"$f":"SUMIFS(Sheet1!S71_OriginalBudAmnt,Sheet1!S71_SA34cCode,$AC:$AC,Sheet1!S71_RepMaintCode,$AD:$AD)","v":0},{"$f":"SUMIFS(Sheet1!S71_AdjustmentBudAmnt,Sheet1!S71_SA34cCode,$AC:$AC,Sheet1!S71_RepMaintCode,$AD:$AD)","v":0},{"$f":"SUMIFS(Sheet1!S71_AdjustmentBudAmnt,Sheet1!S71_SA34cCode,$AC:$AC,Sheet1!S71_RepMaintCode,$AD:$AD)","v":0},{"$f":"SUMIFS(Sheet1!S71_ASBudgetAmount,Sheet1!S71_SA34cCode,$AC:$AC,Sheet1!S71_RepMaintCode,$AD:$AD)","v":0},{"$f":"SUMIFS(Sheet1!S71_OY1BudgetAmount,Sheet1!S71_SA34cCode,$AC:$AC,Sheet1!S71_RepMaintCode,$AD:$AD)","v":0},{"$f":"SUMIFS(Sheet1!S71_OY2BudgetAmount,Sheet1!S71_SA34cCode,$AC:$AC,Sheet1!S71_RepMaintCode,$AD:$AD)","v":0},null,null,null,null,null,null,null,null,null,null,null,null,null,null,null,null,null,"0930","RM",{"$f":"SUMIFS(Sheet1!S71_PreAuditActual,Sheet1!S71_SA34cCode,_xlfn.SINGLE($AC:$AC),Sheet1!S71_RepMaintCode,_xlfn.SINGLE($AD:$AD))","v":0}]
["Public Ablution Facilities",null,{"$f":"SUMIFS(Sheet1!S71_PPPYearAmount,Sheet1!S71_SA34cCode,$AC:$AC,Sheet1!S71_RepMaintCode,$AD:$AD)","v":0},{"$f":"SUMIFS(Sheet1!S71_PPYearAmount,Sheet1!S71_SA34cCode,$AC:$AC,Sheet1!S71_RepMaintCode,$AD:$AD)","v":0},{"$f":"SUMIFS(Sheet1!S71_PYearAmount,Sheet1!S71_SA34cCode,$AC:$AC,Sheet1!S71_RepMaintCode,$AD:$AD)","v":0},{"$f":"SUMIFS(Sheet1!S71_OriginalBudAmnt,Sheet1!S71_SA34cCode,$AC:$AC,Sheet1!S71_RepMaintCode,$AD:$AD)","v":0},{"$f":"SUMIFS(Sheet1!S71_AdjustmentBudAmnt,Sheet1!S71_SA34cCode,$AC:$AC,Sheet1!S71_RepMaintCode,$AD:$AD)","v":0},{"$f":"SUMIFS(Sheet1!S71_AdjustmentBudAmnt,Sheet1!S71_SA34cCode,$AC:$AC,Sheet1!S71_RepMaintCode,$AD:$AD)","v":0},{"$f":"SUMIFS(Sheet1!S71_ASBudgetAmount,Sheet1!S71_SA34cCode,$AC:$AC,Sheet1!S71_RepMaintCode,$AD:$AD)","v":0},{"$f":"SUMIFS(Sheet1!S71_OY1BudgetAmount,Sheet1!S71_SA34cCode,$AC:$AC,Sheet1!S71_RepMaintCode,$AD:$AD)","v":0},{"$f":"SUMIFS(Sheet1!S71_OY2BudgetAmount,Sheet1!S71_SA34cCode,$AC:$AC,Sheet1!S71_RepMaintCode,$AD:$AD)","v":0},null,null,null,null,null,null,null,null,null,null,null,null,null,null,null,null,null,"0940","RM",{"$f":"SUMIFS(Sheet1!S71_PreAuditActual,Sheet1!S71_SA34cCode,_xlfn.SINGLE($AC:$AC),Sheet1!S71_RepMaintCode,_xlfn.SINGLE($AD:$AD))","v":0}]
["Markets",null,{"$f":"SUMIFS(Sheet1!S71_PPPYearAmount,Sheet1!S71_SA34cCode,$AC:$AC,Sheet1!S71_RepMaintCode,$AD:$AD)","v":0},{"$f":"SUMIFS(Sheet1!S71_PPYearAmount,Sheet1!S71_SA34cCode,$AC:$AC,Sheet1!S71_RepMaintCode,$AD:$AD)","v":0},{"$f":"SUMIFS(Sheet1!S71_PYearAmount,Sheet1!S71_SA34cCode,$AC:$AC,Sheet1!S71_RepMaintCode,$AD:$AD)","v":0},{"$f":"SUMIFS(Sheet1!S71_OriginalBudAmnt,Sheet1!S71_SA34cCode,$AC:$AC,Sheet1!S71_RepMaintCode,$AD:$AD)","v":0},{"$f":"SUMIFS(Sheet1!S71_AdjustmentBudAmnt,Sheet1!S71_SA34cCode,$AC:$AC,Sheet1!S71_RepMaintCode,$AD:$AD)","v":0},{"$f":"SUMIFS(Sheet1!S71_AdjustmentBudAmnt,Sheet1!S71_SA34cCode,$AC:$AC,Sheet1!S71_RepMaintCode,$AD:$AD)","v":0},{"$f":"SUMIFS(Sheet1!S71_ASBudgetAmount,Sheet1!S71_SA34cCode,$AC:$AC,Sheet1!S71_RepMaintCode,$AD:$AD)","v":0},{"$f":"SUMIFS(Sheet1!S71_OY1BudgetAmount,Sheet1!S71_SA34cCode,$AC:$AC,Sheet1!S71_RepMaintCode,$AD:$AD)","v":0},{"$f":"SUMIFS(Sheet1!S71_OY2BudgetAmount,Sheet1!S71_SA34cCode,$AC:$AC,Sheet1!S71_RepMaintCode,$AD:$AD)","v":0},null,null,null,null,null,null,null,null,null,null,null,null,null,null,null,null,null,"0950","RM",{"$f":"SUMIFS(Sheet1!S71_PreAuditActual,Sheet1!S71_SA34cCode,_xlfn.SINGLE($AC:$AC),Sheet1!S71_RepMaintCode,_xlfn.SINGLE($AD:$AD))","v":0}]
["Stalls",null,{"$f":"SUMIFS(Sheet1!S71_PPPYearAmount,Sheet1!S71_SA34cCode,$AC:$AC,Sheet1!S71_RepMaintCode,$AD:$AD)","v":0},{"$f":"SUMIFS(Sheet1!S71_PPYearAmount,Sheet1!S71_SA34cCode,$AC:$AC,Sheet1!S71_RepMaintCode,$AD:$AD)","v":0},{"$f":"SUMIFS(Sheet1!S71_PYearAmount,Sheet1!S71_SA34cCode,$AC:$AC,Sheet1!S71_RepMaintCode,$AD:$AD)","v":0},{"$f":"SUMIFS(Sheet1!S71_OriginalBudAmnt,Sheet1!S71_SA34cCode,$AC:$AC,Sheet1!S71_RepMaintCode,$AD:$AD)","v":0},{"$f":"SUMIFS(Sheet1!S71_AdjustmentBudAmnt,Sheet1!S71_SA34cCode,$AC:$AC,Sheet1!S71_RepMaintCode,$AD:$AD)","v":0},{"$f":"SUMIFS(Sheet1!S71_AdjustmentBudAmnt,Sheet1!S71_SA34cCode,$AC:$AC,Sheet1!S71_RepMaintCode,$AD:$AD)","v":0},{"$f":"SUMIFS(Sheet1!S71_ASBudgetAmount,Sheet1!S71_SA34cCode,$AC:$AC,Sheet1!S71_RepMaintCode,$AD:$AD)","v":0},{"$f":"SUMIFS(Sheet1!S71_OY1BudgetAmount,Sheet1!S71_SA34cCode,$AC:$AC,Sheet1!S71_RepMaintCode,$AD:$AD)","v":0},{"$f":"SUMIFS(Sheet1!S71_OY2BudgetAmount,Sheet1!S71_SA34cCode,$AC:$AC,Sheet1!S71_RepMaintCode,$AD:$AD)","v":0},null,null,null,null,null,null,null,null,null,null,null,null,null,null,null,null,null,"0960","RM",{"$f":"SUMIFS(Sheet1!S71_PreAuditActual,Sheet1!S71_SA34cCode,_xlfn.SINGLE($AC:$AC),Sheet1!S71_RepMaintCode,_xlfn.SINGLE($AD:$AD))","v":0}]
["Abattoirs",null,{"$f":"SUMIFS(Sheet1!S71_PPPYearAmount,Sheet1!S71_SA34cCode,$AC:$AC,Sheet1!S71_RepMaintCode,$AD:$AD)","v":0},{"$f":"SUMIFS(Sheet1!S71_PPYearAmount,Sheet1!S71_SA34cCode,$AC:$AC,Sheet1!S71_RepMaintCode,$AD:$AD)","v":0},{"$f":"SUMIFS(Sheet1!S71_PYearAmount,Sheet1!S71_SA34cCode,$AC:$AC,Sheet1!S71_RepMaintCode,$AD:$AD)","v":0},{"$f":"SUMIFS(Sheet1!S71_OriginalBudAmnt,Sheet1!S71_SA34cCode,$AC:$AC,Sheet1!S71_RepMaintCode,$AD:$AD)","v":0},{"$f":"SUMIFS(Sheet1!S71_AdjustmentBudAmnt,Sheet1!S71_SA34cCode,$AC:$AC,Sheet1!S71_RepMaintCode,$AD:$AD)","v":0},{"$f":"SUMIFS(Sheet1!S71_AdjustmentBudAmnt,Sheet1!S71_SA34cCode,$AC:$AC,Sheet1!S71_RepMaintCode,$AD:$AD)","v":0},{"$f":"SUMIFS(Sheet1!S71_ASBudgetAmount,Sheet1!S71_SA34cCode,$AC:$AC,Sheet1!S71_RepMaintCode,$AD:$AD)","v":0},{"$f":"SUMIFS(Sheet1!S71_OY1BudgetAmount,Sheet1!S71_SA34cCode,$AC:$AC,Sheet1!S71_RepMaintCode,$AD:$AD)","v":0},{"$f":"SUMIFS(Sheet1!S71_OY2BudgetAmount,Sheet1!S71_SA34cCode,$AC:$AC,Sheet1!S71_RepMaintCode,$AD:$AD)","v":0},null,null,null,null,null,null,null,null,null,null,null,null,null,null,null,null,null,"0970","RM",{"$f":"SUMIFS(Sheet1!S71_PreAuditActual,Sheet1!S71_SA34cCode,_xlfn.SINGLE($AC:$AC),Sheet1!S71_RepMaintCode,_xlfn.SINGLE($AD:$AD))","v":0}]
["Airports",null,{"$f":"SUMIFS(Sheet1!S71_PPPYearAmount,Sheet1!S71_SA34cCode,$AC:$AC,Sheet1!S71_RepMaintCode,$AD:$AD)","v":0},{"$f":"SUMIFS(Sheet1!S71_PPYearAmount,Sheet1!S71_SA34cCode,$AC:$AC,Sheet1!S71_RepMaintCode,$AD:$AD)","v":0},{"$f":"SUMIFS(Sheet1!S71_PYearAmount,Sheet1!S71_SA34cCode,$AC:$AC,Sheet1!S71_RepMaintCode,$AD:$AD)","v":0},{"$f":"SUMIFS(Sheet1!S71_OriginalBudAmnt,Sheet1!S71_SA34cCode,$AC:$AC,Sheet1!S71_RepMaintCode,$AD:$AD)","v":0},{"$f":"SUMIFS(Sheet1!S71_AdjustmentBudAmnt,Sheet1!S71_SA34cCode,$AC:$AC,Sheet1!S71_RepMaintCode,$AD:$AD)","v":0},{"$f":"SUMIFS(Sheet1!S71_AdjustmentBudAmnt,Sheet1!S71_SA34cCode,$AC:$AC,Sheet1!S71_RepMaintCode,$AD:$AD)","v":0},{"$f":"SUMIFS(Sheet1!S71_ASBudgetAmount,Sheet1!S71_SA34cCode,$AC:$AC,Sheet1!S71_RepMaintCode,$AD:$AD)","v":0},{"$f":"SUMIFS(Sheet1!S71_OY1BudgetAmount,Sheet1!S71_SA34cCode,$AC:$AC,Sheet1!S71_RepMaintCode,$AD:$AD)","v":0},{"$f":"SUMIFS(Sheet1!S71_OY2BudgetAmount,Sheet1!S71_SA34cCode,$AC:$AC,Sheet1!S71_RepMaintCode,$AD:$AD)","v":0},null,null,null,null,null,null,null,null,null,null,null,null,null,null,null,null,null,"0980","RM",{"$f":"SUMIFS(Sheet1!S71_PreAuditActual,Sheet1!S71_SA34cCode,_xlfn.SINGLE($AC:$AC),Sheet1!S71_RepMaintCode,_xlfn.SINGLE($AD:$AD))","v":0}]
["Taxi Ranks/Bus Terminals",null,{"$f":"SUMIFS(Sheet1!S71_PPPYearAmount,Sheet1!S71_SA34cCode,$AC:$AC,Sheet1!S71_RepMaintCode,$AD:$AD)","v":0},{"$f":"SUMIFS(Sheet1!S71_PPYearAmount,Sheet1!S71_SA34cCode,$AC:$AC,Sheet1!S71_RepMaintCode,$AD:$AD)","v":0},{"$f":"SUMIFS(Sheet1!S71_PYearAmount,Sheet1!S71_SA34cCode,$AC:$AC,Sheet1!S71_RepMaintCode,$AD:$AD)","v":0},{"$f":"SUMIFS(Sheet1!S71_OriginalBudAmnt,Sheet1!S71_SA34cCode,$AC:$AC,Sheet1!S71_RepMaintCode,$AD:$AD)","v":0},{"$f":"SUMIFS(Sheet1!S71_AdjustmentBudAmnt,Sheet1!S71_SA34cCode,$AC:$AC,Sheet1!S71_RepMaintCode,$AD:$AD)","v":0},{"$f":"SUMIFS(Sheet1!S71_AdjustmentBudAmnt,Sheet1!S71_SA34cCode,$AC:$AC,Sheet1!S71_RepMaintCode,$AD:$AD)","v":0},{"$f":"SUMIFS(Sheet1!S71_ASBudgetAmount,Sheet1!S71_SA34cCode,$AC:$AC,Sheet1!S71_RepMaintCode,$AD:$AD)","v":0},{"$f":"SUMIFS(Sheet1!S71_OY1BudgetAmount,Sheet1!S71_SA34cCode,$AC:$AC,Sheet1!S71_RepMaintCode,$AD:$AD)","v":0},{"$f":"SUMIFS(Sheet1!S71_OY2BudgetAmount,Sheet1!S71_SA34cCode,$AC:$AC,Sheet1!S71_RepMaintCode,$AD:$AD)","v":0},null,null,null,null,null,null,null,null,null,null,null,null,null,null,null,null,null,"0990","RM",{"$f":"SUMIFS(Sheet1!S71_PreAuditActual,Sheet1!S71_SA34cCode,_xlfn.SINGLE($AC:$AC),Sheet1!S71_RepMaintCode,_xlfn.SINGLE($AD:$AD))","v":0}]
["Capital Spares",null,{"$f":"SUMIFS(Sheet1!S71_PPPYearAmount,Sheet1!S71_SA34cCode,$AC:$AC,Sheet1!S71_RepMaintCode,$AD:$AD)","v":0},{"$f":"SUMIFS(Sheet1!S71_PPYearAmount,Sheet1!S71_SA34cCode,$AC:$AC,Sheet1!S71_RepMaintCode,$AD:$AD)","v":0},{"$f":"SUMIFS(Sheet1!S71_PYearAmount,Sheet1!S71_SA34cCode,$AC:$AC,Sheet1!S71_RepMaintCode,$AD:$AD)","v":0},{"$f":"SUMIFS(Sheet1!S71_OriginalBudAmnt,Sheet1!S71_SA34cCode,$AC:$AC,Sheet1!S71_RepMaintCode,$AD:$AD)","v":0},{"$f":"SUMIFS(Sheet1!S71_AdjustmentBudAmnt,Sheet1!S71_SA34cCode,$AC:$AC,Sheet1!S71_RepMaintCode,$AD:$AD)","v":0},{"$f":"SUMIFS(Sheet1!S71_AdjustmentBudAmnt,Sheet1!S71_SA34cCode,$AC:$AC,Sheet1!S71_RepMaintCode,$AD:$AD)","v":0},{"$f":"SUMIFS(Sheet1!S71_ASBudgetAmount,Sheet1!S71_SA34cCode,$AC:$AC,Sheet1!S71_RepMaintCode,$AD:$AD)","v":0},{"$f":"SUMIFS(Sheet1!S71_OY1BudgetAmount,Sheet1!S71_SA34cCode,$AC:$AC,Sheet1!S71_RepMaintCode,$AD:$AD)","v":0},{"$f":"SUMIFS(Sheet1!S71_OY2BudgetAmount,Sheet1!S71_SA34cCode,$AC:$AC,Sheet1!S71_RepMaintCode,$AD:$AD)","v":0},null,null,null,null,null,null,null,null,null,null,null,null,null,null,null,null,null,"1000","RM",{"$f":"SUMIFS(Sheet1!S71_PreAuditActual,Sheet1!S71_SA34cCode,_xlfn.SINGLE($AC:$AC),Sheet1!S71_RepMaintCode,_xlfn.SINGLE($AD:$AD))","v":0}]
["Sport and Recreation Facilities",null,{"$f":"SUM(C99:C101)","v":0},{"$f":"SUM(D99:D101)","v":0},0,0,0,0,0,0,0,null,null,null,null,null,null,null,null,null,null,null,null,null,null,null,null,null,null,"RM",{"$f":"SUMIFS(Sheet1!S71_PreAuditActual,Sheet1!S71_SA34cCode,_xlfn.SINGLE($AC:$AC),Sheet1!S71_RepMaintCode,_xlfn.SINGLE($AD:$AD))","v":0}]
["Indoor Facilities",null,{"$f":"SUMIFS(Sheet1!S71_PPPYearAmount,Sheet1!S71_SA34cCode,$AC:$AC,Sheet1!S71_RepMaintCode,$AD:$AD)","v":0},{"$f":"SUMIFS(Sheet1!S71_PPYearAmount,Sheet1!S71_SA34cCode,$AC:$AC,Sheet1!S71_RepMaintCode,$AD:$AD)","v":0},{"$f":"SUMIFS(Sheet1!S71_PYearAmount,Sheet1!S71_SA34cCode,$AC:$AC,Sheet1!S71_RepMaintCode,$AD:$AD)","v":0},{"$f":"SUMIFS(Sheet1!S71_OriginalBudAmnt,Sheet1!S71_SA34cCode,$AC:$AC,Sheet1!S71_RepMaintCode,$AD:$AD)","v":0},{"$f":"SUMIFS(Sheet1!S71_AdjustmentBudAmnt,Sheet1!S71_SA34cCode,$AC:$AC,Sheet1!S71_RepMaintCode,$AD:$AD)","v":0},{"$f":"SUMIFS(Sheet1!S71_AdjustmentBudAmnt,Sheet1!S71_SA34cCode,$AC:$AC,Sheet1!S71_RepMaintCode,$AD:$AD)","v":0},{"$f":"SUMIFS(Sheet1!S71_ASBudgetAmount,Sheet1!S71_SA34cCode,$AC:$AC,Sheet1!S71_RepMaintCode,$AD:$AD)","v":0},{"$f":"SUMIFS(Sheet1!S71_OY1BudgetAmount,Sheet1!S71_SA34cCode,$AC:$AC,Sheet1!S71_RepMaintCode,$AD:$AD)","v":0},{"$f":"SUMIFS(Sheet1!S71_OY2BudgetAmount,Sheet1!S71_SA34cCode,$AC:$AC,Sheet1!S71_RepMaintCode,$AD:$AD)","v":0},null,null,null,null,null,null,null,null,null,null,null,null,null,null,null,null,null,"1020","RM",{"$f":"SUMIFS(Sheet1!S71_PreAuditActual,Sheet1!S71_SA34cCode,_xlfn.SINGLE($AC:$AC),Sheet1!S71_RepMaintCode,_xlfn.SINGLE($AD:$AD))","v":0}]
["Outdoor Facilities",null,{"$f":"SUMIFS(Sheet1!S71_PPPYearAmount,Sheet1!S71_SA34cCode,$AC:$AC,Sheet1!S71_RepMaintCode,$AD:$AD)","v":0},{"$f":"SUMIFS(Sheet1!S71_PPYearAmount,Sheet1!S71_SA34cCode,$AC:$AC,Sheet1!S71_RepMaintCode,$AD:$AD)","v":0},{"$f":"SUMIFS(Sheet1!S71_PYearAmount,Sheet1!S71_SA34cCode,$AC:$AC,Sheet1!S71_RepMaintCode,$AD:$AD)","v":0},{"$f":"SUMIFS(Sheet1!S71_OriginalBudAmnt,Sheet1!S71_SA34cCode,$AC:$AC,Sheet1!S71_RepMaintCode,$AD:$AD)","v":0},{"$f":"SUMIFS(Sheet1!S71_AdjustmentBudAmnt,Sheet1!S71_SA34cCode,$AC:$AC,Sheet1!S71_RepMaintCode,$AD:$AD)","v":0},{"$f":"SUMIFS(Sheet1!S71_AdjustmentBudAmnt,Sheet1!S71_SA34cCode,$AC:$AC,Sheet1!S71_RepMaintCode,$AD:$AD)","v":0},{"$f":"SUMIFS(Sheet1!S71_ASBudgetAmount,Sheet1!S71_SA34cCode,$AC:$AC,Sheet1!S71_RepMaintCode,$AD:$AD)","v":0},{"$f":"SUMIFS(Sheet1!S71_OY1BudgetAmount,Sheet1!S71_SA34cCode,$AC:$AC,Sheet1!S71_RepMaintCode,$AD:$AD)","v":0},{"$f":"SUMIFS(Sheet1!S71_OY2BudgetAmount,Sheet1!S71_SA34cCode,$AC:$AC,Sheet1!S71_RepMaintCode,$AD:$AD)","v":0},null,null,null,null,null,null,null,null,null,null,null,null,null,null,null,null,null,"1030","RM",{"$f":"SUMIFS(Sheet1!S71_PreAuditActual,Sheet1!S71_SA34cCode,_xlfn.SINGLE($AC:$AC),Sheet1!S71_RepMaintCode,_xlfn.SINGLE($AD:$AD))","v":0}]
["Capital Spares",null,{"$f":"SUMIFS(Sheet1!S71_PPPYearAmount,Sheet1!S71_SA34cCode,$AC:$AC,Sheet1!S71_RepMaintCode,$AD:$AD)","v":0},{"$f":"SUMIFS(Sheet1!S71_PPYearAmount,Sheet1!S71_SA34cCode,$AC:$AC,Sheet1!S71_RepMaintCode,$AD:$AD)","v":0},{"$f":"SUMIFS(Sheet1!S71_PYearAmount,Sheet1!S71_SA34cCode,$AC:$AC,Sheet1!S71_RepMaintCode,$AD:$AD)","v":0},{"$f":"SUMIFS(Sheet1!S71_OriginalBudAmnt,Sheet1!S71_SA34cCode,$AC:$AC,Sheet1!S71_RepMaintCode,$AD:$AD)","v":0},{"$f":"SUMIFS(Sheet1!S71_AdjustmentBudAmnt,Sheet1!S71_SA34cCode,$AC:$AC,Sheet1!S71_RepMaintCode,$AD:$AD)","v":0},{"$f":"SUMIFS(Sheet1!S71_AdjustmentBudAmnt,Sheet1!S71_SA34cCode,$AC:$AC,Sheet1!S71_RepMaintCode,$AD:$AD)","v":0},{"$f":"SUMIFS(Sheet1!S71_ASBudgetAmount,Sheet1!S71_SA34cCode,$AC:$AC,Sheet1!S71_RepMaintCode,$AD:$AD)","v":0},{"$f":"SUMIFS(Sheet1!S71_OY1BudgetAmount,Sheet1!S71_SA34cCode,$AC:$AC,Sheet1!S71_RepMaintCode,$AD:$AD)","v":0},{"$f":"SUMIFS(Sheet1!S71_OY2BudgetAmount,Sheet1!S71_SA34cCode,$AC:$AC,Sheet1!S71_RepMaintCode,$AD:$AD)","v":0},null,null,null,null,null,null,null,null,null,null,null,null,null,null,null,null,null,"1040","RM",{"$f":"SUMIFS(Sheet1!S71_PreAuditActual,Sheet1!S71_SA34cCode,_xlfn.SINGLE($AC:$AC),Sheet1!S71_RepMaintCode,_xlfn.SINGLE($AD:$AD))","v":0}]
[null,null,{"$f":"SUMIFS(Sheet1!S71_PPPYearAmount,Sheet1!S71_SA34cCode,$AC:$AC,Sheet1!S71_RepMaintCode,$AD:$AD)","v":0},{"$f":"SUMIFS(Sheet1!S71_PPYearAmount,Sheet1!S71_SA34cCode,$AC:$AC,Sheet1!S71_RepMaintCode,$AD:$AD)","v":0},{"$f":"SUMIFS(Sheet1!S71_PYearAmount,Sheet1!S71_SA34cCode,$AC:$AC,Sheet1!S71_RepMaintCode,$AD:$AD)","v":0},{"$f":"SUMIFS(Sheet1!S71_OriginalBudAmnt,Sheet1!S71_SA34cCode,$AC:$AC,Sheet1!S71_RepMaintCode,$AD:$AD)","v":0},{"$f":"SUMIFS(Sheet1!S71_AdjustmentBudAmnt,Sheet1!S71_SA34cCode,$AC:$AC,Sheet1!S71_RepMaintCode,$AD:$AD)","v":0},{"$f":"SUMIFS(Sheet1!S71_AdjustmentBudAmnt,Sheet1!S71_SA34cCode,$AC:$AC,Sheet1!S71_RepMaintCode,$AD:$AD)","v":0},{"$f":"SUMIFS(Sheet1!S71_ASBudgetAmount,Sheet1!S71_SA34cCode,$AC:$AC,Sheet1!S71_RepMaintCode,$AD:$AD)","v":0},{"$f":"SUMIFS(Sheet1!S71_OY1BudgetAmount,Sheet1!S71_SA34cCode,$AC:$AC,Sheet1!S71_RepMaintCode,$AD:$AD)","v":0},{"$f":"SUMIFS(Sheet1!S71_OY2BudgetAmount,Sheet1!S71_SA34cCode,$AC:$AC,Sheet1!S71_RepMaintCode,$AD:$AD)","v":0},null,null,null,null,null,null,null,null,null,null,null,null,null,null,null,null,null,null,"RM",{"$f":"SUMIFS(Sheet1!S71_PreAuditActual,Sheet1!S71_SA34cCode,_xlfn.SINGLE($AC:$AC),Sheet1!S71_RepMaintCode,_xlfn.SINGLE($AD:$AD))","v":0}]
["Heritage assets",null,{"$f":"SUM(C104:C108)","v":0},{"$f":"SUM(D104:D108)","v":0},0,0,0,0,0,0,0,null,null,null,null,null,null,null,null,null,null,null,null,null,null,null,null,null,null,"RM",{"$f":"SUMIFS(Sheet1!S71_PreAuditActual,Sheet1!S71_SA34cCode,_xlfn.SINGLE($AC:$AC),Sheet1!S71_RepMaintCode,_xlfn.SINGLE($AD:$AD))","v":0}]
["Monuments",null,{"$f":"SUMIFS(Sheet1!S71_PPPYearAmount,Sheet1!S71_SA34cCode,$AC:$AC,Sheet1!S71_RepMaintCode,$AD:$AD)","v":0},{"$f":"SUMIFS(Sheet1!S71_PPYearAmount,Sheet1!S71_SA34cCode,$AC:$AC,Sheet1!S71_RepMaintCode,$AD:$AD)","v":0},{"$f":"SUMIFS(Sheet1!S71_PYearAmount,Sheet1!S71_SA34cCode,$AC:$AC,Sheet1!S71_RepMaintCode,$AD:$AD)","v":0},{"$f":"SUMIFS(Sheet1!S71_OriginalBudAmnt,Sheet1!S71_SA34cCode,$AC:$AC,Sheet1!S71_RepMaintCode,$AD:$AD)","v":0},{"$f":"SUMIFS(Sheet1!S71_AdjustmentBudAmnt,Sheet1!S71_SA34cCode,$AC:$AC,Sheet1!S71_RepMaintCode,$AD:$AD)","v":0},{"$f":"SUMIFS(Sheet1!S71_AdjustmentBudAmnt,Sheet1!S71_SA34cCode,$AC:$AC,Sheet1!S71_RepMaintCode,$AD:$AD)","v":0},{"$f":"SUMIFS(Sheet1!S71_ASBudgetAmount,Sheet1!S71_SA34cCode,$AC:$AC,Sheet1!S71_RepMaintCode,$AD:$AD)","v":0},{"$f":"SUMIFS(Sheet1!S71_OY1BudgetAmount,Sheet1!S71_SA34cCode,$AC:$AC,Sheet1!S71_RepMaintCode,$AD:$AD)","v":0},{"$f":"SUMIFS(Sheet1!S71_OY2BudgetAmount,Sheet1!S71_SA34cCode,$AC:$AC,Sheet1!S71_RepMaintCode,$AD:$AD)","v":0},null,null,null,null,null,null,null,null,null,null,null,null,null,null,null,null,null,"1060","RM",{"$f":"SUMIFS(Sheet1!S71_PreAuditActual,Sheet1!S71_SA34cCode,_xlfn.SINGLE($AC:$AC),Sheet1!S71_RepMaintCode,_xlfn.SINGLE($AD:$AD))","v":0}]
["Historic Buildings",null,{"$f":"SUMIFS(Sheet1!S71_PPPYearAmount,Sheet1!S71_SA34cCode,$AC:$AC,Sheet1!S71_RepMaintCode,$AD:$AD)","v":0},{"$f":"SUMIFS(Sheet1!S71_PPYearAmount,Sheet1!S71_SA34cCode,$AC:$AC,Sheet1!S71_RepMaintCode,$AD:$AD)","v":0},{"$f":"SUMIFS(Sheet1!S71_PYearAmount,Sheet1!S71_SA34cCode,$AC:$AC,Sheet1!S71_RepMaintCode,$AD:$AD)","v":0},{"$f":"SUMIFS(Sheet1!S71_OriginalBudAmnt,Sheet1!S71_SA34cCode,$AC:$AC,Sheet1!S71_RepMaintCode,$AD:$AD)","v":0},{"$f":"SUMIFS(Sheet1!S71_AdjustmentBudAmnt,Sheet1!S71_SA34cCode,$AC:$AC,Sheet1!S71_RepMaintCode,$AD:$AD)","v":0},{"$f":"SUMIFS(Sheet1!S71_AdjustmentBudAmnt,Sheet1!S71_SA34cCode,$AC:$AC,Sheet1!S71_RepMaintCode,$AD:$AD)","v":0},{"$f":"SUMIFS(Sheet1!S71_ASBudgetAmount,Sheet1!S71_SA34cCode,$AC:$AC,Sheet1!S71_RepMaintCode,$AD:$AD)","v":0},{"$f":"SUMIFS(Sheet1!S71_OY1BudgetAmount,Sheet1!S71_SA34cCode,$AC:$AC,Sheet1!S71_RepMaintCode,$AD:$AD)","v":0},{"$f":"SUMIFS(Sheet1!S71_OY2BudgetAmount,Sheet1!S71_SA34cCode,$AC:$AC,Sheet1!S71_RepMaintCode,$AD:$AD)","v":0},null,null,null,null,null,null,null,null,null,null,null,null,null,null,null,null,null,"1070","RM",{"$f":"SUMIFS(Sheet1!S71_PreAuditActual,Sheet1!S71_SA34cCode,_xlfn.SINGLE($AC:$AC),Sheet1!S71_RepMaintCode,_xlfn.SINGLE($AD:$AD))","v":0}]
["Works of Art",null,{"$f":"SUMIFS(Sheet1!S71_PPPYearAmount,Sheet1!S71_SA34cCode,$AC:$AC,Sheet1!S71_RepMaintCode,$AD:$AD)","v":0},{"$f":"SUMIFS(Sheet1!S71_PPYearAmount,Sheet1!S71_SA34cCode,$AC:$AC,Sheet1!S71_RepMaintCode,$AD:$AD)","v":0},{"$f":"SUMIFS(Sheet1!S71_PYearAmount,Sheet1!S71_SA34cCode,$AC:$AC,Sheet1!S71_RepMaintCode,$AD:$AD)","v":0},{"$f":"SUMIFS(Sheet1!S71_OriginalBudAmnt,Sheet1!S71_SA34cCode,$AC:$AC,Sheet1!S71_RepMaintCode,$AD:$AD)","v":0},{"$f":"SUMIFS(Sheet1!S71_AdjustmentBudAmnt,Sheet1!S71_SA34cCode,$AC:$AC,Sheet1!S71_RepMaintCode,$AD:$AD)","v":0},{"$f":"SUMIFS(Sheet1!S71_AdjustmentBudAmnt,Sheet1!S71_SA34cCode,$AC:$AC,Sheet1!S71_RepMaintCode,$AD:$AD)","v":0},{"$f":"SUMIFS(Sheet1!S71_ASBudgetAmount,Sheet1!S71_SA34cCode,$AC:$AC,Sheet1!S71_RepMaintCode,$AD:$AD)","v":0},{"$f":"SUMIFS(Sheet1!S71_OY1BudgetAmount,Sheet1!S71_SA34cCode,$AC:$AC,Sheet1!S71_RepMaintCode,$AD:$AD)","v":0},{"$f":"SUMIFS(Sheet1!S71_OY2BudgetAmount,Sheet1!S71_SA34cCode,$AC:$AC,Sheet1!S71_RepMaintCode,$AD:$AD)","v":0},null,null,null,null,null,null,null,null,null,null,null,null,null,null,null,null,null,"1080","RM",{"$f":"SUMIFS(Sheet1!S71_PreAuditActual,Sheet1!S71_SA34cCode,_xlfn.SINGLE($AC:$AC),Sheet1!S71_RepMaintCode,_xlfn.SINGLE($AD:$AD))","v":0}]
["Conservation Areas",null,{"$f":"SUMIFS(Sheet1!S71_PPPYearAmount,Sheet1!S71_SA34cCode,$AC:$AC,Sheet1!S71_RepMaintCode,$AD:$AD)","v":0},{"$f":"SUMIFS(Sheet1!S71_PPYearAmount,Sheet1!S71_SA34cCode,$AC:$AC,Sheet1!S71_RepMaintCode,$AD:$AD)","v":0},{"$f":"SUMIFS(Sheet1!S71_PYearAmount,Sheet1!S71_SA34cCode,$AC:$AC,Sheet1!S71_RepMaintCode,$AD:$AD)","v":0},{"$f":"SUMIFS(Sheet1!S71_OriginalBudAmnt,Sheet1!S71_SA34cCode,$AC:$AC,Sheet1!S71_RepMaintCode,$AD:$AD)","v":0},{"$f":"SUMIFS(Sheet1!S71_AdjustmentBudAmnt,Sheet1!S71_SA34cCode,$AC:$AC,Sheet1!S71_RepMaintCode,$AD:$AD)","v":0},{"$f":"SUMIFS(Sheet1!S71_AdjustmentBudAmnt,Sheet1!S71_SA34cCode,$AC:$AC,Sheet1!S71_RepMaintCode,$AD:$AD)","v":0},{"$f":"SUMIFS(Sheet1!S71_ASBudgetAmount,Sheet1!S71_SA34cCode,$AC:$AC,Sheet1!S71_RepMaintCode,$AD:$AD)","v":0},{"$f":"SUMIFS(Sheet1!S71_OY1BudgetAmount,Sheet1!S71_SA34cCode,$AC:$AC,Sheet1!S71_RepMaintCode,$AD:$AD)","v":0},{"$f":"SUMIFS(Sheet1!S71_OY2BudgetAmount,Sheet1!S71_SA34cCode,$AC:$AC,Sheet1!S71_RepMaintCode,$AD:$AD)","v":0},null,null,null,null,null,null,null,null,null,null,null,null,null,null,null,null,null,"1090","RM",{"$f":"SUMIFS(Sheet1!S71_PreAuditActual,Sheet1!S71_SA34cCode,_xlfn.SINGLE($AC:$AC),Sheet1!S71_RepMaintCode,_xlfn.SINGLE($AD:$AD))","v":0}]
["Other Heritage",null,{"$f":"SUMIFS(Sheet1!S71_PPPYearAmount,Sheet1!S71_SA34cCode,$AC:$AC,Sheet1!S71_RepMaintCode,$AD:$AD)","v":0},{"$f":"SUMIFS(Sheet1!S71_PPYearAmount,Sheet1!S71_SA34cCode,$AC:$AC,Sheet1!S71_RepMaintCode,$AD:$AD)","v":0},{"$f":"SUMIFS(Sheet1!S71_PYearAmount,Sheet1!S71_SA34cCode,$AC:$AC,Sheet1!S71_RepMaintCode,$AD:$AD)","v":0},{"$f":"SUMIFS(Sheet1!S71_OriginalBudAmnt,Sheet1!S71_SA34cCode,$AC:$AC,Sheet1!S71_RepMaintCode,$AD:$AD)","v":0},{"$f":"SUMIFS(Sheet1!S71_AdjustmentBudAmnt,Sheet1!S71_SA34cCode,$AC:$AC,Sheet1!S71_RepMaintCode,$AD:$AD)","v":0},{"$f":"SUMIFS(Sheet1!S71_AdjustmentBudAmnt,Sheet1!S71_SA34cCode,$AC:$AC,Sheet1!S71_RepMaintCode,$AD:$AD)","v":0},{"$f":"SUMIFS(Sheet1!S71_ASBudgetAmount,Sheet1!S71_SA34cCode,$AC:$AC,Sheet1!S71_RepMaintCode,$AD:$AD)","v":0},{"$f":"SUMIFS(Sheet1!S71_OY1BudgetAmount,Sheet1!S71_SA34cCode,$AC:$AC,Sheet1!S71_RepMaintCode,$AD:$AD)","v":0},{"$f":"SUMIFS(Sheet1!S71_OY2BudgetAmount,Sheet1!S71_SA34cCode,$AC:$AC,Sheet1!S71_RepMaintCode,$AD:$AD)","v":0},null,null,null,null,null,null,null,null,null,null,null,null,null,null,null,null,null,"1100","RM",{"$f":"SUMIFS(Sheet1!S71_PreAuditActual,Sheet1!S71_SA34cCode,_xlfn.SINGLE($AC:$AC),Sheet1!S71_RepMaintCode,_xlfn.SINGLE($AD:$AD))","v":0}]
[null,null,null,null,null,null,null,null,null,null,null,null,null,null,null,null,null,null,null,null,null,null,null,null,null,null,null,null,null,"RM",{"$f":"SUMIFS(Sheet1!S71_PreAuditActual,Sheet1!S71_SA34cCode,_xlfn.SINGLE($AC:$AC),Sheet1!S71_RepMaintCode,_xlfn.SINGLE($AD:$AD))","v":0}]
["Investment properties",null,{"$f":"+C111+C114","v":0},{"$f":"+D111+D114","v":0},0,0,0,0,0,0,0,null,null,null,null,null,null,null,null,null,null,null,null,null,null,null,null,null,null,"RM",{"$f":"SUMIFS(Sheet1!S71_PreAuditActual,Sheet1!S71_SA34cCode,_xlfn.SINGLE($AC:$AC),Sheet1!S71_RepMaintCode,_xlfn.SINGLE($AD:$AD))","v":0}]
["Revenue Generating",null,{"$f":"SUM(C112:C113)","v":0},0,0,0,0,0,0,0,0,null,null,null,null,null,null,null,null,null,null,null,null,null,null,null,null,null,null,"RM",{"$f":"SUMIFS(Sheet1!S71_PreAuditActual,Sheet1!S71_SA34cCode,_xlfn.SINGLE($AC:$AC),Sheet1!S71_RepMaintCode,_xlfn.SINGLE($AD:$AD))","v":0}]
["Improved Property",null,{"$f":"SUMIFS(Sheet1!S71_PPPYearAmount,Sheet1!S71_SA34cCode,$AC:$AC,Sheet1!S71_RepMaintCode,$AD:$AD)","v":0},{"$f":"SUMIFS(Sheet1!S71_PPYearAmount,Sheet1!S71_SA34cCode,$AC:$AC,Sheet1!S71_RepMaintCode,$AD:$AD)","v":0},{"$f":"SUMIFS(Sheet1!S71_PYearAmount,Sheet1!S71_SA34cCode,$AC:$AC,Sheet1!S71_RepMaintCode,$AD:$AD)","v":0},{"$f":"SUMIFS(Sheet1!S71_OriginalBudAmnt,Sheet1!S71_SA34cCode,$AC:$AC,Sheet1!S71_RepMaintCode,$AD:$AD)","v":0},{"$f":"SUMIFS(Sheet1!S71_AdjustmentBudAmnt,Sheet1!S71_SA34cCode,$AC:$AC,Sheet1!S71_RepMaintCode,$AD:$AD)","v":0},{"$f":"SUMIFS(Sheet1!S71_AdjustmentBudAmnt,Sheet1!S71_SA34cCode,$AC:$AC,Sheet1!S71_RepMaintCode,$AD:$AD)","v":0},{"$f":"SUMIFS(Sheet1!S71_ASBudgetAmount,Sheet1!S71_SA34cCode,$AC:$AC,Sheet1!S71_RepMaintCode,$AD:$AD)","v":0},{"$f":"SUMIFS(Sheet1!S71_OY1BudgetAmount,Sheet1!S71_SA34cCode,$AC:$AC,Sheet1!S71_RepMaintCode,$AD:$AD)","v":0},{"$f":"SUMIFS(Sheet1!S71_OY2BudgetAmount,Sheet1!S71_SA34cCode,$AC:$AC,Sheet1!S71_RepMaintCode,$AD:$AD)","v":0},null,null,null,null,null,null,null,null,null,null,null,null,null,null,null,null,null,"1130","RM",{"$f":"SUMIFS(Sheet1!S71_PreAuditActual,Sheet1!S71_SA34cCode,_xlfn.SINGLE($AC:$AC),Sheet1!S71_RepMaintCode,_xlfn.SINGLE($AD:$AD))","v":0}]
["Unimproved Property",null,{"$f":"SUMIFS(Sheet1!S71_PPPYearAmount,Sheet1!S71_SA34cCode,$AC:$AC,Sheet1!S71_RepMaintCode,$AD:$AD)","v":0},{"$f":"SUMIFS(Sheet1!S71_PPYearAmount,Sheet1!S71_SA34cCode,$AC:$AC,Sheet1!S71_RepMaintCode,$AD:$AD)","v":0},{"$f":"SUMIFS(Sheet1!S71_PYearAmount,Sheet1!S71_SA34cCode,$AC:$AC,Sheet1!S71_RepMaintCode,$AD:$AD)","v":0},{"$f":"SUMIFS(Sheet1!S71_OriginalBudAmnt,Sheet1!S71_SA34cCode,$AC:$AC,Sheet1!S71_RepMaintCode,$AD:$AD)","v":0},{"$f":"SUMIFS(Sheet1!S71_AdjustmentBudAmnt,Sheet1!S71_SA34cCode,$AC:$AC,Sheet1!S71_RepMaintCode,$AD:$AD)","v":0},{"$f":"SUMIFS(Sheet1!S71_AdjustmentBudAmnt,Sheet1!S71_SA34cCode,$AC:$AC,Sheet1!S71_RepMaintCode,$AD:$AD)","v":0},{"$f":"SUMIFS(Sheet1!S71_ASBudgetAmount,Sheet1!S71_SA34cCode,$AC:$AC,Sheet1!S71_RepMaintCode,$AD:$AD)","v":0},{"$f":"SUMIFS(Sheet1!S71_OY1BudgetAmount,Sheet1!S71_SA34cCode,$AC:$AC,Sheet1!S71_RepMaintCode,$AD:$AD)","v":0},{"$f":"SUMIFS(Sheet1!S71_OY2BudgetAmount,Sheet1!S71_SA34cCode,$AC:$AC,Sheet1!S71_RepMaintCode,$AD:$AD)","v":0},null,null,null,null,null,null,null,null,null,null,null,null,null,null,null,null,null,"1140","RM",{"$f":"SUMIFS(Sheet1!S71_PreAuditActual,Sheet1!S71_SA34cCode,_xlfn.SINGLE($AC:$AC),Sheet1!S71_RepMaintCode,_xlfn.SINGLE($AD:$AD))","v":0}]
["Non-revenue Generating",null,{"$f":"SUM(C115:C116)","v":0},{"$f":"SUM(D115:D116)","v":0},0,0,0,0,0,0,0,null,null,null,null,null,null,null,null,null,null,null,null,null,null,null,null,null,null,"RM",{"$f":"SUMIFS(Sheet1!S71_PreAuditActual,Sheet1!S71_SA34cCode,_xlfn.SINGLE($AC:$AC),Sheet1!S71_RepMaintCode,_xlfn.SINGLE($AD:$AD))","v":0}]
["Improved Property",null,{"$f":"SUMIFS(Sheet1!S71_PPPYearAmount,Sheet1!S71_SA34cCode,$AC:$AC,Sheet1!S71_RepMaintCode,$AD:$AD)","v":0},{"$f":"SUMIFS(Sheet1!S71_PPYearAmount,Sheet1!S71_SA34cCode,$AC:$AC,Sheet1!S71_RepMaintCode,$AD:$AD)","v":0},{"$f":"SUMIFS(Sheet1!S71_PYearAmount,Sheet1!S71_SA34cCode,$AC:$AC,Sheet1!S71_RepMaintCode,$AD:$AD)","v":0},{"$f":"SUMIFS(Sheet1!S71_OriginalBudAmnt,Sheet1!S71_SA34cCode,$AC:$AC,Sheet1!S71_RepMaintCode,$AD:$AD)","v":0},{"$f":"SUMIFS(Sheet1!S71_AdjustmentBudAmnt,Sheet1!S71_SA34cCode,$AC:$AC,Sheet1!S71_RepMaintCode,$AD:$AD)","v":0},{"$f":"SUMIFS(Sheet1!S71_AdjustmentBudAmnt,Sheet1!S71_SA34cCode,$AC:$AC,Sheet1!S71_RepMaintCode,$AD:$AD)","v":0},{"$f":"SUMIFS(Sheet1!S71_ASBudgetAmount,Sheet1!S71_SA34cCode,$AC:$AC,Sheet1!S71_RepMaintCode,$AD:$AD)","v":0},{"$f":"SUMIFS(Sheet1!S71_OY1BudgetAmount,Sheet1!S71_SA34cCode,$AC:$AC,Sheet1!S71_RepMaintCode,$AD:$AD)","v":0},{"$f":"SUMIFS(Sheet1!S71_OY2BudgetAmount,Sheet1!S71_SA34cCode,$AC:$AC,Sheet1!S71_RepMaintCode,$AD:$AD)","v":0},null,null,null,null,null,null,null,null,null,null,null,null,null,null,null,null,null,"1160","RM",{"$f":"SUMIFS(Sheet1!S71_PreAuditActual,Sheet1!S71_SA34cCode,_xlfn.SINGLE($AC:$AC),Sheet1!S71_RepMaintCode,_xlfn.SINGLE($AD:$AD))","v":0}]
["Unimproved Property",null,{"$f":"SUMIFS(Sheet1!S71_PPPYearAmount,Sheet1!S71_SA34cCode,$AC:$AC,Sheet1!S71_RepMaintCode,$AD:$AD)","v":0},{"$f":"SUMIFS(Sheet1!S71_PPYearAmount,Sheet1!S71_SA34cCode,$AC:$AC,Sheet1!S71_RepMaintCode,$AD:$AD)","v":0},{"$f":"SUMIFS(Sheet1!S71_PYearAmount,Sheet1!S71_SA34cCode,$AC:$AC,Sheet1!S71_RepMaintCode,$AD:$AD)","v":0},{"$f":"SUMIFS(Sheet1!S71_OriginalBudAmnt,Sheet1!S71_SA34cCode,$AC:$AC,Sheet1!S71_RepMaintCode,$AD:$AD)","v":0},{"$f":"SUMIFS(Sheet1!S71_AdjustmentBudAmnt,Sheet1!S71_SA34cCode,$AC:$AC,Sheet1!S71_RepMaintCode,$AD:$AD)","v":0},{"$f":"SUMIFS(Sheet1!S71_AdjustmentBudAmnt,Sheet1!S71_SA34cCode,$AC:$AC,Sheet1!S71_RepMaintCode,$AD:$AD)","v":0},{"$f":"SUMIFS(Sheet1!S71_ASBudgetAmount,Sheet1!S71_SA34cCode,$AC:$AC,Sheet1!S71_RepMaintCode,$AD:$AD)","v":0},{"$f":"SUMIFS(Sheet1!S71_OY1BudgetAmount,Sheet1!S71_SA34cCode,$AC:$AC,Sheet1!S71_RepMaintCode,$AD:$AD)","v":0},{"$f":"SUMIFS(Sheet1!S71_OY2BudgetAmount,Sheet1!S71_SA34cCode,$AC:$AC,Sheet1!S71_RepMaintCode,$AD:$AD)","v":0},null,null,null,null,null,null,null,null,null,null,null,null,null,null,null,null,null,"1170","RM",{"$f":"SUMIFS(Sheet1!S71_PreAuditActual,Sheet1!S71_SA34cCode,_xlfn.SINGLE($AC:$AC),Sheet1!S71_RepMaintCode,_xlfn.SINGLE($AD:$AD))","v":0}]
[null,null,null,null,null,null,null,null,null,null,null,null,null,null,null,null,null,null,null,null,null,null,null,null,null,null,null,null,null,"RM",{"$f":"SUMIFS(Sheet1!S71_PreAuditActual,Sheet1!S71_SA34cCode,_xlfn.SINGLE($AC:$AC),Sheet1!S71_RepMaintCode,_xlfn.SINGLE($AD:$AD))","v":0}]
["Other assets",null,{"$f":"+C119+C131","v":0},{"$f":"+D119+D131","v":27028},261430,270000,238000,238000,85000,221080,222218,null,null,null,null,null,null,null,null,null,null,null,null,null,null,null,null,null,null,"RM",{"$f":"SUMIFS(Sheet1!S71_PreAuditActual,Sheet1!S71_SA34cCode,_xlfn.SINGLE($AC:$AC),Sheet1!S71_RepMaintCode,_xlfn.SINGLE($AD:$AD))","v":0}]
["Operational Buildings",null,{"$f":"SUM(C120:C130)","v":0},{"$f":"SUM(D120:D130)","v":27028},261430,270000,238000,238000,85000,221080,222218,null,null,null,null,null,null,null,null,null,null,null,null,null,null,null,null,null,null,"RM",{"$f":"SUMIFS(Sheet1!S71_PreAuditActual,Sheet1!S71_SA34cCode,_xlfn.SINGLE($AC:$AC),Sheet1!S71_RepMaintCode,_xlfn.SINGLE($AD:$AD))","v":0}]
["Municipal Offices",null,{"$f":"SUMIFS(Sheet1!S71_PPPYearAmount,Sheet1!S71_SA34cCode,$AC:$AC,Sheet1!S71_RepMaintCode,$AD:$AD)","v":0},{"$f":"SUMIFS(Sheet1!S71_PPYearAmount,Sheet1!S71_SA34cCode,$AC:$AC,Sheet1!S71_RepMaintCode,$AD:$AD)","v":0},{"$f":"SUMIFS(Sheet1!S71_PYearAmount,Sheet1!S71_SA34cCode,$AC:$AC,Sheet1!S71_RepMaintCode,$AD:$AD)","v":0},{"$f":"SUMIFS(Sheet1!S71_OriginalBudAmnt,Sheet1!S71_SA34cCode,$AC:$AC,Sheet1!S71_RepMaintCode,$AD:$AD)","v":0},{"$f":"SUMIFS(Sheet1!S71_AdjustmentBudAmnt,Sheet1!S71_SA34cCode,$AC:$AC,Sheet1!S71_RepMaintCode,$AD:$AD)","v":0},{"$f":"SUMIFS(Sheet1!S71_AdjustmentBudAmnt,Sheet1!S71_SA34cCode,$AC:$AC,Sheet1!S71_RepMaintCode,$AD:$AD)","v":0},{"$f":"SUMIFS(Sheet1!S71_ASBudgetAmount,Sheet1!S71_SA34cCode,$AC:$AC,Sheet1!S71_RepMaintCode,$AD:$AD)","v":0},{"$f":"SUMIFS(Sheet1!S71_OY1BudgetAmount,Sheet1!S71_SA34cCode,$AC:$AC,Sheet1!S71_RepMaintCode,$AD:$AD)","v":0},{"$f":"SUMIFS(Sheet1!S71_OY2BudgetAmount,Sheet1!S71_SA34cCode,$AC:$AC,Sheet1!S71_RepMaintCode,$AD:$AD)","v":0},null,null,null,null,null,null,null,null,null,null,null,null,null,null,null,null,null,"1200","RM",{"$f":"SUMIFS(Sheet1!S71_PreAuditActual,Sheet1!S71_SA34cCode,_xlfn.SINGLE($AC:$AC),Sheet1!S71_RepMaintCode,_xlfn.SINGLE($AD:$AD))","v":0}]
["Pay/Enquiry Points",null,{"$f":"SUMIFS(Sheet1!S71_PPPYearAmount,Sheet1!S71_SA34cCode,$AC:$AC,Sheet1!S71_RepMaintCode,$AD:$AD)","v":0},{"$f":"SUMIFS(Sheet1!S71_PPYearAmount,Sheet1!S71_SA34cCode,$AC:$AC,Sheet1!S71_RepMaintCode,$AD:$AD)","v":0},{"$f":"SUMIFS(Sheet1!S71_PYearAmount,Sheet1!S71_SA34cCode,$AC:$AC,Sheet1!S71_RepMaintCode,$AD:$AD)","v":0},{"$f":"SUMIFS(Sheet1!S71_OriginalBudAmnt,Sheet1!S71_SA34cCode,$AC:$AC,Sheet1!S71_RepMaintCode,$AD:$AD)","v":0},{"$f":"SUMIFS(Sheet1!S71_AdjustmentBudAmnt,Sheet1!S71_SA34cCode,$AC:$AC,Sheet1!S71_RepMaintCode,$AD:$AD)","v":0},{"$f":"SUMIFS(Sheet1!S71_AdjustmentBudAmnt,Sheet1!S71_SA34cCode,$AC:$AC,Sheet1!S71_RepMaintCode,$AD:$AD)","v":0},{"$f":"SUMIFS(Sheet1!S71_ASBudgetAmount,Sheet1!S71_SA34cCode,$AC:$AC,Sheet1!S71_RepMaintCode,$AD:$AD)","v":0},{"$f":"SUMIFS(Sheet1!S71_OY1BudgetAmount,Sheet1!S71_SA34cCode,$AC:$AC,Sheet1!S71_RepMaintCode,$AD:$AD)","v":0},{"$f":"SUMIFS(Sheet1!S71_OY2BudgetAmount,Sheet1!S71_SA34cCode,$AC:$AC,Sheet1!S71_RepMaintCode,$AD:$AD)","v":0},null,null,null,null,null,null,null,null,null,null,null,null,null,null,null,null,null,"1210","RM",{"$f":"SUMIFS(Sheet1!S71_PreAuditActual,Sheet1!S71_SA34cCode,_xlfn.SINGLE($AC:$AC),Sheet1!S71_RepMaintCode,_xlfn.SINGLE($AD:$AD))","v":0}]
["Building Plan Offices",null,{"$f":"SUMIFS(Sheet1!S71_PPPYearAmount,Sheet1!S71_SA34cCode,$AC:$AC,Sheet1!S71_RepMaintCode,$AD:$AD)","v":0},{"$f":"SUMIFS(Sheet1!S71_PPYearAmount,Sheet1!S71_SA34cCode,$AC:$AC,Sheet1!S71_RepMaintCode,$AD:$AD)","v":27028},{"$f":"SUMIFS(Sheet1!S71_PYearAmount,Sheet1!S71_SA34cCode,$AC:$AC,Sheet1!S71_RepMaintCode,$AD:$AD)","v":261430},{"$f":"SUMIFS(Sheet1!S71_OriginalBudAmnt,Sheet1!S71_SA34cCode,$AC:$AC,Sheet1!S71_RepMaintCode,$AD:$AD)","v":270000},{"$f":"SUMIFS(Sheet1!S71_AdjustmentBudAmnt,Sheet1!S71_SA34cCode,$AC:$AC,Sheet1!S71_RepMaintCode,$AD:$AD)","v":238000},{"$f":"SUMIFS(Sheet1!S71_AdjustmentBudAmnt,Sheet1!S71_SA34cCode,$AC:$AC,Sheet1!S71_RepMaintCode,$AD:$AD)","v":238000},{"$f":"SUMIFS(Sheet1!S71_ASBudgetAmount,Sheet1!S71_SA34cCode,$AC:$AC,Sheet1!S71_RepMaintCode,$AD:$AD)","v":85000},{"$f":"SUMIFS(Sheet1!S71_OY1BudgetAmount,Sheet1!S71_SA34cCode,$AC:$AC,Sheet1!S71_RepMaintCode,$AD:$AD)","v":221080},{"$f":"SUMIFS(Sheet1!S71_OY2BudgetAmount,Sheet1!S71_SA34cCode,$AC:$AC,Sheet1!S71_RepMaintCode,$AD:$AD)","v":222218},null,null,null,null,null,null,null,null,null,null,null,null,null,null,null,null,null,"1220","RM",{"$f":"SUMIFS(Sheet1!S71_PreAuditActual,Sheet1!S71_SA34cCode,_xlfn.SINGLE($AC:$AC),Sheet1!S71_RepMaintCode,_xlfn.SINGLE($AD:$AD))","v":0}]
["Workshops",null,{"$f":"SUMIFS(Sheet1!S71_PPPYearAmount,Sheet1!S71_SA34cCode,$AC:$AC,Sheet1!S71_RepMaintCode,$AD:$AD)","v":0},{"$f":"SUMIFS(Sheet1!S71_PPYearAmount,Sheet1!S71_SA34cCode,$AC:$AC,Sheet1!S71_RepMaintCode,$AD:$AD)","v":0},{"$f":"SUMIFS(Sheet1!S71_PYearAmount,Sheet1!S71_SA34cCode,$AC:$AC,Sheet1!S71_RepMaintCode,$AD:$AD)","v":0},{"$f":"SUMIFS(Sheet1!S71_OriginalBudAmnt,Sheet1!S71_SA34cCode,$AC:$AC,Sheet1!S71_RepMaintCode,$AD:$AD)","v":0},{"$f":"SUMIFS(Sheet1!S71_AdjustmentBudAmnt,Sheet1!S71_SA34cCode,$AC:$AC,Sheet1!S71_RepMaintCode,$AD:$AD)","v":0},{"$f":"SUMIFS(Sheet1!S71_AdjustmentBudAmnt,Sheet1!S71_SA34cCode,$AC:$AC,Sheet1!S71_RepMaintCode,$AD:$AD)","v":0},{"$f":"SUMIFS(Sheet1!S71_ASBudgetAmount,Sheet1!S71_SA34cCode,$AC:$AC,Sheet1!S71_RepMaintCode,$AD:$AD)","v":0},{"$f":"SUMIFS(Sheet1!S71_OY1BudgetAmount,Sheet1!S71_SA34cCode,$AC:$AC,Sheet1!S71_RepMaintCode,$AD:$AD)","v":0},{"$f":"SUMIFS(Sheet1!S71_OY2BudgetAmount,Sheet1!S71_SA34cCode,$AC:$AC,Sheet1!S71_RepMaintCode,$AD:$AD)","v":0},null,null,null,null,null,null,null,null,null,null,null,null,null,null,null,null,null,"1230","RM",{"$f":"SUMIFS(Sheet1!S71_PreAuditActual,Sheet1!S71_SA34cCode,_xlfn.SINGLE($AC:$AC),Sheet1!S71_RepMaintCode,_xlfn.SINGLE($AD:$AD))","v":0}]
["Yards",null,{"$f":"SUMIFS(Sheet1!S71_PPPYearAmount,Sheet1!S71_SA34cCode,$AC:$AC,Sheet1!S71_RepMaintCode,$AD:$AD)","v":0},{"$f":"SUMIFS(Sheet1!S71_PPYearAmount,Sheet1!S71_SA34cCode,$AC:$AC,Sheet1!S71_RepMaintCode,$AD:$AD)","v":0},{"$f":"SUMIFS(Sheet1!S71_PYearAmount,Sheet1!S71_SA34cCode,$AC:$AC,Sheet1!S71_RepMaintCode,$AD:$AD)","v":0},{"$f":"SUMIFS(Sheet1!S71_OriginalBudAmnt,Sheet1!S71_SA34cCode,$AC:$AC,Sheet1!S71_RepMaintCode,$AD:$AD)","v":0},{"$f":"SUMIFS(Sheet1!S71_AdjustmentBudAmnt,Sheet1!S71_SA34cCode,$AC:$AC,Sheet1!S71_RepMaintCode,$AD:$AD)","v":0},{"$f":"SUMIFS(Sheet1!S71_AdjustmentBudAmnt,Sheet1!S71_SA34cCode,$AC:$AC,Sheet1!S71_RepMaintCode,$AD:$AD)","v":0},{"$f":"SUMIFS(Sheet1!S71_ASBudgetAmount,Sheet1!S71_SA34cCode,$AC:$AC,Sheet1!S71_RepMaintCode,$AD:$AD)","v":0},{"$f":"SUMIFS(Sheet1!S71_OY1BudgetAmount,Sheet1!S71_SA34cCode,$AC:$AC,Sheet1!S71_RepMaintCode,$AD:$AD)","v":0},{"$f":"SUMIFS(Sheet1!S71_OY2BudgetAmount,Sheet1!S71_SA34cCode,$AC:$AC,Sheet1!S71_RepMaintCode,$AD:$AD)","v":0},null,null,null,null,null,null,null,null,null,null,null,null,null,null,null,null,null,"1240","RM",{"$f":"SUMIFS(Sheet1!S71_PreAuditActual,Sheet1!S71_SA34cCode,_xlfn.SINGLE($AC:$AC),Sheet1!S71_RepMaintCode,_xlfn.SINGLE($AD:$AD))","v":0}]
["Stores",null,{"$f":"SUMIFS(Sheet1!S71_PPPYearAmount,Sheet1!S71_SA34cCode,$AC:$AC,Sheet1!S71_RepMaintCode,$AD:$AD)","v":0},{"$f":"SUMIFS(Sheet1!S71_PPYearAmount,Sheet1!S71_SA34cCode,$AC:$AC,Sheet1!S71_RepMaintCode,$AD:$AD)","v":0},{"$f":"SUMIFS(Sheet1!S71_PYearAmount,Sheet1!S71_SA34cCode,$AC:$AC,Sheet1!S71_RepMaintCode,$AD:$AD)","v":0},{"$f":"SUMIFS(Sheet1!S71_OriginalBudAmnt,Sheet1!S71_SA34cCode,$AC:$AC,Sheet1!S71_RepMaintCode,$AD:$AD)","v":0},{"$f":"SUMIFS(Sheet1!S71_AdjustmentBudAmnt,Sheet1!S71_SA34cCode,$AC:$AC,Sheet1!S71_RepMaintCode,$AD:$AD)","v":0},{"$f":"SUMIFS(Sheet1!S71_AdjustmentBudAmnt,Sheet1!S71_SA34cCode,$AC:$AC,Sheet1!S71_RepMaintCode,$AD:$AD)","v":0},{"$f":"SUMIFS(Sheet1!S71_ASBudgetAmount,Sheet1!S71_SA34cCode,$AC:$AC,Sheet1!S71_RepMaintCode,$AD:$AD)","v":0},{"$f":"SUMIFS(Sheet1!S71_OY1BudgetAmount,Sheet1!S71_SA34cCode,$AC:$AC,Sheet1!S71_RepMaintCode,$AD:$AD)","v":0},{"$f":"SUMIFS(Sheet1!S71_OY2BudgetAmount,Sheet1!S71_SA34cCode,$AC:$AC,Sheet1!S71_RepMaintCode,$AD:$AD)","v":0},null,null,null,null,null,null,null,null,null,null,null,null,null,null,null,null,null,"1250","RM",{"$f":"SUMIFS(Sheet1!S71_PreAuditActual,Sheet1!S71_SA34cCode,_xlfn.SINGLE($AC:$AC),Sheet1!S71_RepMaintCode,_xlfn.SINGLE($AD:$AD))","v":0}]
["Laboratories",null,{"$f":"SUMIFS(Sheet1!S71_PPPYearAmount,Sheet1!S71_SA34cCode,$AC:$AC,Sheet1!S71_RepMaintCode,$AD:$AD)","v":0},{"$f":"SUMIFS(Sheet1!S71_PPYearAmount,Sheet1!S71_SA34cCode,$AC:$AC,Sheet1!S71_RepMaintCode,$AD:$AD)","v":0},{"$f":"SUMIFS(Sheet1!S71_PYearAmount,Sheet1!S71_SA34cCode,$AC:$AC,Sheet1!S71_RepMaintCode,$AD:$AD)","v":0},{"$f":"SUMIFS(Sheet1!S71_OriginalBudAmnt,Sheet1!S71_SA34cCode,$AC:$AC,Sheet1!S71_RepMaintCode,$AD:$AD)","v":0},{"$f":"SUMIFS(Sheet1!S71_AdjustmentBudAmnt,Sheet1!S71_SA34cCode,$AC:$AC,Sheet1!S71_RepMaintCode,$AD:$AD)","v":0},{"$f":"SUMIFS(Sheet1!S71_AdjustmentBudAmnt,Sheet1!S71_SA34cCode,$AC:$AC,Sheet1!S71_RepMaintCode,$AD:$AD)","v":0},{"$f":"SUMIFS(Sheet1!S71_ASBudgetAmount,Sheet1!S71_SA34cCode,$AC:$AC,Sheet1!S71_RepMaintCode,$AD:$AD)","v":0},{"$f":"SUMIFS(Sheet1!S71_OY1BudgetAmount,Sheet1!S71_SA34cCode,$AC:$AC,Sheet1!S71_RepMaintCode,$AD:$AD)","v":0},{"$f":"SUMIFS(Sheet1!S71_OY2BudgetAmount,Sheet1!S71_SA34cCode,$AC:$AC,Sheet1!S71_RepMaintCode,$AD:$AD)","v":0},null,null,null,null,null,null,null,null,null,null,null,null,null,null,null,null,null,"1260","RM",{"$f":"SUMIFS(Sheet1!S71_PreAuditActual,Sheet1!S71_SA34cCode,_xlfn.SINGLE($AC:$AC),Sheet1!S71_RepMaintCode,_xlfn.SINGLE($AD:$AD))","v":0}]
["Training Centres",null,{"$f":"SUMIFS(Sheet1!S71_PPPYearAmount,Sheet1!S71_SA34cCode,$AC:$AC,Sheet1!S71_RepMaintCode,$AD:$AD)","v":0},{"$f":"SUMIFS(Sheet1!S71_PPYearAmount,Sheet1!S71_SA34cCode,$AC:$AC,Sheet1!S71_RepMaintCode,$AD:$AD)","v":0},{"$f":"SUMIFS(Sheet1!S71_PYearAmount,Sheet1!S71_SA34cCode,$AC:$AC,Sheet1!S71_RepMaintCode,$AD:$AD)","v":0},{"$f":"SUMIFS(Sheet1!S71_OriginalBudAmnt,Sheet1!S71_SA34cCode,$AC:$AC,Sheet1!S71_RepMaintCode,$AD:$AD)","v":0},{"$f":"SUMIFS(Sheet1!S71_AdjustmentBudAmnt,Sheet1!S71_SA34cCode,$AC:$AC,Sheet1!S71_RepMaintCode,$AD:$AD)","v":0},{"$f":"SUMIFS(Sheet1!S71_AdjustmentBudAmnt,Sheet1!S71_SA34cCode,$AC:$AC,Sheet1!S71_RepMaintCode,$AD:$AD)","v":0},{"$f":"SUMIFS(Sheet1!S71_ASBudgetAmount,Sheet1!S71_SA34cCode,$AC:$AC,Sheet1!S71_RepMaintCode,$AD:$AD)","v":0},{"$f":"SUMIFS(Sheet1!S71_OY1BudgetAmount,Sheet1!S71_SA34cCode,$AC:$AC,Sheet1!S71_RepMaintCode,$AD:$AD)","v":0},{"$f":"SUMIFS(Sheet1!S71_OY2BudgetAmount,Sheet1!S71_SA34cCode,$AC:$AC,Sheet1!S71_RepMaintCode,$AD:$AD)","v":0},null,null,null,null,null,null,null,null,null,null,null,null,null,null,null,null,null,"1270","RM",{"$f":"SUMIFS(Sheet1!S71_PreAuditActual,Sheet1!S71_SA34cCode,_xlfn.SINGLE($AC:$AC),Sheet1!S71_RepMaintCode,_xlfn.SINGLE($AD:$AD))","v":0}]
["Manufacturing Plant",null,{"$f":"SUMIFS(Sheet1!S71_PPPYearAmount,Sheet1!S71_SA34cCode,$AC:$AC,Sheet1!S71_RepMaintCode,$AD:$AD)","v":0},{"$f":"SUMIFS(Sheet1!S71_PPYearAmount,Sheet1!S71_SA34cCode,$AC:$AC,Sheet1!S71_RepMaintCode,$AD:$AD)","v":0},{"$f":"SUMIFS(Sheet1!S71_PYearAmount,Sheet1!S71_SA34cCode,$AC:$AC,Sheet1!S71_RepMaintCode,$AD:$AD)","v":0},{"$f":"SUMIFS(Sheet1!S71_OriginalBudAmnt,Sheet1!S71_SA34cCode,$AC:$AC,Sheet1!S71_RepMaintCode,$AD:$AD)","v":0},{"$f":"SUMIFS(Sheet1!S71_AdjustmentBudAmnt,Sheet1!S71_SA34cCode,$AC:$AC,Sheet1!S71_RepMaintCode,$AD:$AD)","v":0},{"$f":"SUMIFS(Sheet1!S71_AdjustmentBudAmnt,Sheet1!S71_SA34cCode,$AC:$AC,Sheet1!S71_RepMaintCode,$AD:$AD)","v":0},{"$f":"SUMIFS(Sheet1!S71_ASBudgetAmount,Sheet1!S71_SA34cCode,$AC:$AC,Sheet1!S71_RepMaintCode,$AD:$AD)","v":0},{"$f":"SUMIFS(Sheet1!S71_OY1BudgetAmount,Sheet1!S71_SA34cCode,$AC:$AC,Sheet1!S71_RepMaintCode,$AD:$AD)","v":0},{"$f":"SUMIFS(Sheet1!S71_OY2BudgetAmount,Sheet1!S71_SA34cCode,$AC:$AC,Sheet1!S71_RepMaintCode,$AD:$AD)","v":0},null,null,null,null,null,null,null,null,null,null,null,null,null,null,null,null,null,"1280","RM",{"$f":"SUMIFS(Sheet1!S71_PreAuditActual,Sheet1!S71_SA34cCode,_xlfn.SINGLE($AC:$AC),Sheet1!S71_RepMaintCode,_xlfn.SINGLE($AD:$AD))","v":0}]
["Depots",null,{"$f":"SUMIFS(Sheet1!S71_PPPYearAmount,Sheet1!S71_SA34cCode,$AC:$AC,Sheet1!S71_RepMaintCode,$AD:$AD)","v":0},{"$f":"SUMIFS(Sheet1!S71_PPYearAmount,Sheet1!S71_SA34cCode,$AC:$AC,Sheet1!S71_RepMaintCode,$AD:$AD)","v":0},{"$f":"SUMIFS(Sheet1!S71_PYearAmount,Sheet1!S71_SA34cCode,$AC:$AC,Sheet1!S71_RepMaintCode,$AD:$AD)","v":0},{"$f":"SUMIFS(Sheet1!S71_OriginalBudAmnt,Sheet1!S71_SA34cCode,$AC:$AC,Sheet1!S71_RepMaintCode,$AD:$AD)","v":0},{"$f":"SUMIFS(Sheet1!S71_AdjustmentBudAmnt,Sheet1!S71_SA34cCode,$AC:$AC,Sheet1!S71_RepMaintCode,$AD:$AD)","v":0},{"$f":"SUMIFS(Sheet1!S71_AdjustmentBudAmnt,Sheet1!S71_SA34cCode,$AC:$AC,Sheet1!S71_RepMaintCode,$AD:$AD)","v":0},{"$f":"SUMIFS(Sheet1!S71_ASBudgetAmount,Sheet1!S71_SA34cCode,$AC:$AC,Sheet1!S71_RepMaintCode,$AD:$AD)","v":0},{"$f":"SUMIFS(Sheet1!S71_OY1BudgetAmount,Sheet1!S71_SA34cCode,$AC:$AC,Sheet1!S71_RepMaintCode,$AD:$AD)","v":0},{"$f":"SUMIFS(Sheet1!S71_OY2BudgetAmount,Sheet1!S71_SA34cCode,$AC:$AC,Sheet1!S71_RepMaintCode,$AD:$AD)","v":0},null,null,null,null,null,null,null,null,null,null,null,null,null,null,null,null,null,"1290","RM",{"$f":"SUMIFS(Sheet1!S71_PreAuditActual,Sheet1!S71_SA34cCode,_xlfn.SINGLE($AC:$AC),Sheet1!S71_RepMaintCode,_xlfn.SINGLE($AD:$AD))","v":0}]
["Capital Spares",null,{"$f":"SUMIFS(Sheet1!S71_PPPYearAmount,Sheet1!S71_SA34cCode,$AC:$AC,Sheet1!S71_RepMaintCode,$AD:$AD)","v":0},{"$f":"SUMIFS(Sheet1!S71_PPYearAmount,Sheet1!S71_SA34cCode,$AC:$AC,Sheet1!S71_RepMaintCode,$AD:$AD)","v":0},{"$f":"SUMIFS(Sheet1!S71_PYearAmount,Sheet1!S71_SA34cCode,$AC:$AC,Sheet1!S71_RepMaintCode,$AD:$AD)","v":0},{"$f":"SUMIFS(Sheet1!S71_OriginalBudAmnt,Sheet1!S71_SA34cCode,$AC:$AC,Sheet1!S71_RepMaintCode,$AD:$AD)","v":0},{"$f":"SUMIFS(Sheet1!S71_AdjustmentBudAmnt,Sheet1!S71_SA34cCode,$AC:$AC,Sheet1!S71_RepMaintCode,$AD:$AD)","v":0},{"$f":"SUMIFS(Sheet1!S71_AdjustmentBudAmnt,Sheet1!S71_SA34cCode,$AC:$AC,Sheet1!S71_RepMaintCode,$AD:$AD)","v":0},{"$f":"SUMIFS(Sheet1!S71_ASBudgetAmount,Sheet1!S71_SA34cCode,$AC:$AC,Sheet1!S71_RepMaintCode,$AD:$AD)","v":0},{"$f":"SUMIFS(Sheet1!S71_OY1BudgetAmount,Sheet1!S71_SA34cCode,$AC:$AC,Sheet1!S71_RepMaintCode,$AD:$AD)","v":0},{"$f":"SUMIFS(Sheet1!S71_OY2BudgetAmount,Sheet1!S71_SA34cCode,$AC:$AC,Sheet1!S71_RepMaintCode,$AD:$AD)","v":0},null,null,null,null,null,null,null,null,null,null,null,null,null,null,null,null,null,"1300","RM",{"$f":"SUMIFS(Sheet1!S71_PreAuditActual,Sheet1!S71_SA34cCode,_xlfn.SINGLE($AC:$AC),Sheet1!S71_RepMaintCode,_xlfn.SINGLE($AD:$AD))","v":0}]
["Housing",null,{"$f":"SUM(C132:C134)","v":0},{"$f":"SUM(D132:D134)","v":0},0,0,0,0,0,0,0,null,null,null,null,null,null,null,null,null,null,null,null,null,null,null,null,null,null,"RM",{"$f":"SUMIFS(Sheet1!S71_PreAuditActual,Sheet1!S71_SA34cCode,_xlfn.SINGLE($AC:$AC),Sheet1!S71_RepMaintCode,_xlfn.SINGLE($AD:$AD))","v":0}]
["Staff Housing",null,{"$f":"SUMIFS(Sheet1!S71_PPPYearAmount,Sheet1!S71_SA34cCode,$AC:$AC,Sheet1!S71_RepMaintCode,$AD:$AD)","v":0},{"$f":"SUMIFS(Sheet1!S71_PPYearAmount,Sheet1!S71_SA34cCode,$AC:$AC,Sheet1!S71_RepMaintCode,$AD:$AD)","v":0},{"$f":"SUMIFS(Sheet1!S71_PYearAmount,Sheet1!S71_SA34cCode,$AC:$AC,Sheet1!S71_RepMaintCode,$AD:$AD)","v":0},{"$f":"SUMIFS(Sheet1!S71_OriginalBudAmnt,Sheet1!S71_SA34cCode,$AC:$AC,Sheet1!S71_RepMaintCode,$AD:$AD)","v":0},{"$f":"SUMIFS(Sheet1!S71_AdjustmentBudAmnt,Sheet1!S71_SA34cCode,$AC:$AC,Sheet1!S71_RepMaintCode,$AD:$AD)","v":0},{"$f":"SUMIFS(Sheet1!S71_AdjustmentBudAmnt,Sheet1!S71_SA34cCode,$AC:$AC,Sheet1!S71_RepMaintCode,$AD:$AD)","v":0},{"$f":"SUMIFS(Sheet1!S71_ASBudgetAmount,Sheet1!S71_SA34cCode,$AC:$AC,Sheet1!S71_RepMaintCode,$AD:$AD)","v":0},{"$f":"SUMIFS(Sheet1!S71_OY1BudgetAmount,Sheet1!S71_SA34cCode,$AC:$AC,Sheet1!S71_RepMaintCode,$AD:$AD)","v":0},{"$f":"SUMIFS(Sheet1!S71_OY2BudgetAmount,Sheet1!S71_SA34cCode,$AC:$AC,Sheet1!S71_RepMaintCode,$AD:$AD)","v":0},null,null,null,null,null,null,null,null,null,null,null,null,null,null,null,null,null,"1320","RM",{"$f":"SUMIFS(Sheet1!S71_PreAuditActual,Sheet1!S71_SA34cCode,_xlfn.SINGLE($AC:$AC),Sheet1!S71_RepMaintCode,_xlfn.SINGLE($AD:$AD))","v":0}]
["Social Housing",null,{"$f":"SUMIFS(Sheet1!S71_PPPYearAmount,Sheet1!S71_SA34cCode,$AC:$AC,Sheet1!S71_RepMaintCode,$AD:$AD)","v":0},{"$f":"SUMIFS(Sheet1!S71_PPYearAmount,Sheet1!S71_SA34cCode,$AC:$AC,Sheet1!S71_RepMaintCode,$AD:$AD)","v":0},{"$f":"SUMIFS(Sheet1!S71_PYearAmount,Sheet1!S71_SA34cCode,$AC:$AC,Sheet1!S71_RepMaintCode,$AD:$AD)","v":0},{"$f":"SUMIFS(Sheet1!S71_OriginalBudAmnt,Sheet1!S71_SA34cCode,$AC:$AC,Sheet1!S71_RepMaintCode,$AD:$AD)","v":0},{"$f":"SUMIFS(Sheet1!S71_AdjustmentBudAmnt,Sheet1!S71_SA34cCode,$AC:$AC,Sheet1!S71_RepMaintCode,$AD:$AD)","v":0},{"$f":"SUMIFS(Sheet1!S71_AdjustmentBudAmnt,Sheet1!S71_SA34cCode,$AC:$AC,Sheet1!S71_RepMaintCode,$AD:$AD)","v":0},{"$f":"SUMIFS(Sheet1!S71_ASBudgetAmount,Sheet1!S71_SA34cCode,$AC:$AC,Sheet1!S71_RepMaintCode,$AD:$AD)","v":0},{"$f":"SUMIFS(Sheet1!S71_OY1BudgetAmount,Sheet1!S71_SA34cCode,$AC:$AC,Sheet1!S71_RepMaintCode,$AD:$AD)","v":0},{"$f":"SUMIFS(Sheet1!S71_OY2BudgetAmount,Sheet1!S71_SA34cCode,$AC:$AC,Sheet1!S71_RepMaintCode,$AD:$AD)","v":0},null,null,null,null,null,null,null,null,null,null,null,null,null,null,null,null,null,"1330","RM",{"$f":"SUMIFS(Sheet1!S71_PreAuditActual,Sheet1!S71_SA34cCode,_xlfn.SINGLE($AC:$AC),Sheet1!S71_RepMaintCode,_xlfn.SINGLE($AD:$AD))","v":0}]
["Capital Spares",null,{"$f":"SUMIFS(Sheet1!S71_PPPYearAmount,Sheet1!S71_SA34cCode,$AC:$AC,Sheet1!S71_RepMaintCode,$AD:$AD)","v":0},{"$f":"SUMIFS(Sheet1!S71_PPYearAmount,Sheet1!S71_SA34cCode,$AC:$AC,Sheet1!S71_RepMaintCode,$AD:$AD)","v":0},{"$f":"SUMIFS(Sheet1!S71_PYearAmount,Sheet1!S71_SA34cCode,$AC:$AC,Sheet1!S71_RepMaintCode,$AD:$AD)","v":0},{"$f":"SUMIFS(Sheet1!S71_OriginalBudAmnt,Sheet1!S71_SA34cCode,$AC:$AC,Sheet1!S71_RepMaintCode,$AD:$AD)","v":0},{"$f":"SUMIFS(Sheet1!S71_AdjustmentBudAmnt,Sheet1!S71_SA34cCode,$AC:$AC,Sheet1!S71_RepMaintCode,$AD:$AD)","v":0},{"$f":"SUMIFS(Sheet1!S71_AdjustmentBudAmnt,Sheet1!S71_SA34cCode,$AC:$AC,Sheet1!S71_RepMaintCode,$AD:$AD)","v":0},{"$f":"SUMIFS(Sheet1!S71_ASBudgetAmount,Sheet1!S71_SA34cCode,$AC:$AC,Sheet1!S71_RepMaintCode,$AD:$AD)","v":0},{"$f":"SUMIFS(Sheet1!S71_OY1BudgetAmount,Sheet1!S71_SA34cCode,$AC:$AC,Sheet1!S71_RepMaintCode,$AD:$AD)","v":0},{"$f":"SUMIFS(Sheet1!S71_OY2BudgetAmount,Sheet1!S71_SA34cCode,$AC:$AC,Sheet1!S71_RepMaintCode,$AD:$AD)","v":0},null,null,null,null,null,null,null,null,null,null,null,null,null,null,null,null,null,"1340","RM",{"$f":"SUMIFS(Sheet1!S71_PreAuditActual,Sheet1!S71_SA34cCode,_xlfn.SINGLE($AC:$AC),Sheet1!S71_RepMaintCode,_xlfn.SINGLE($AD:$AD))","v":0}]
[null,null,null,null,null,null,null,null,null,null,null,null,null,null,null,null,null,null,null,null,null,null,null,null,null,null,null,null,null,"RM",{"$f":"SUMIFS(Sheet1!S71_PreAuditActual,Sheet1!S71_SA34cCode,_xlfn.SINGLE($AC:$AC),Sheet1!S71_RepMaintCode,_xlfn.SINGLE($AD:$AD))","v":0}]
["Biological or Cultivated Assets",null,{"$f":"SUM(C137:C137)","v":0},0,0,0,0,0,0,0,0,null,null,null,null,null,null,null,null,null,null,null,null,null,null,null,null,null,null,"RM",{"$f":"SUMIFS(Sheet1!S71_PreAuditActual,Sheet1!S71_SA34cCode,_xlfn.SINGLE($AC:$AC),Sheet1!S71_RepMaintCode,_xlfn.SINGLE($AD:$AD))","v":0}]
["Biological or Cultivated Assets",null,{"$f":"SUMIFS(Sheet1!S71_PPPYearAmount,Sheet1!S71_SA34cCode,$AC:$AC,Sheet1!S71_RepMaintCode,$AD:$AD)","v":0},{"$f":"SUMIFS(Sheet1!S71_PPYearAmount,Sheet1!S71_SA34cCode,$AC:$AC,Sheet1!S71_RepMaintCode,$AD:$AD)","v":0},{"$f":"SUMIFS(Sheet1!S71_PYearAmount,Sheet1!S71_SA34cCode,$AC:$AC,Sheet1!S71_RepMaintCode,$AD:$AD)","v":0},{"$f":"SUMIFS(Sheet1!S71_OriginalBudAmnt,Sheet1!S71_SA34cCode,$AC:$AC,Sheet1!S71_RepMaintCode,$AD:$AD)","v":0},{"$f":"SUMIFS(Sheet1!S71_AdjustmentBudAmnt,Sheet1!S71_SA34cCode,$AC:$AC,Sheet1!S71_RepMaintCode,$AD:$AD)","v":0},{"$f":"SUMIFS(Sheet1!S71_AdjustmentBudAmnt,Sheet1!S71_SA34cCode,$AC:$AC,Sheet1!S71_RepMaintCode,$AD:$AD)","v":0},{"$f":"SUMIFS(Sheet1!S71_ASBudgetAmount,Sheet1!S71_SA34cCode,$AC:$AC,Sheet1!S71_RepMaintCode,$AD:$AD)","v":0},{"$f":"SUMIFS(Sheet1!S71_OY1BudgetAmount,Sheet1!S71_SA34cCode,$AC:$AC,Sheet1!S71_RepMaintCode,$AD:$AD)","v":0},{"$f":"SUMIFS(Sheet1!S71_OY2BudgetAmount,Sheet1!S71_SA34cCode,$AC:$AC,Sheet1!S71_RepMaintCode,$AD:$AD)","v":0},null,null,null,null,null,null,null,null,null,null,null,null,null,null,null,null,null,"1360","RM",{"$f":"SUMIFS(Sheet1!S71_PreAuditActual,Sheet1!S71_SA34cCode,_xlfn.SINGLE($AC:$AC),Sheet1!S71_RepMaintCode,_xlfn.SINGLE($AD:$AD))","v":0}]
[null,null,null,null,null,null,null,null,null,null,null,null,null,null,null,null,null,null,null,null,null,null,null,null,null,null,null,null,null,"RM",{"$f":"SUMIFS(Sheet1!S71_PreAuditActual,Sheet1!S71_SA34cCode,_xlfn.SINGLE($AC:$AC),Sheet1!S71_RepMaintCode,_xlfn.SINGLE($AD:$AD))","v":0}]
["Intangible Assets",null,{"$f":"+C140+C141","v":0},{"$f":"+D140+D141","v":0},0,0,0,0,0,0,0,null,null,null,null,null,null,null,null,null,null,null,null,null,null,null,null,null,null,"RM",{"$f":"SUMIFS(Sheet1!S71_PreAuditActual,Sheet1!S71_SA34cCode,_xlfn.SINGLE($AC:$AC),Sheet1!S71_RepMaintCode,_xlfn.SINGLE($AD:$AD))","v":0}]
["Servitudes",null,{"$f":"SUMIFS(Sheet1!S71_PPPYearAmount,Sheet1!S71_SA34cCode,$AC:$AC,Sheet1!S71_RepMaintCode,$AD:$AD)","v":0},{"$f":"SUMIFS(Sheet1!S71_PPYearAmount,Sheet1!S71_SA34cCode,$AC:$AC,Sheet1!S71_RepMaintCode,$AD:$AD)","v":0},{"$f":"SUMIFS(Sheet1!S71_PYearAmount,Sheet1!S71_SA34cCode,$AC:$AC,Sheet1!S71_RepMaintCode,$AD:$AD)","v":0},{"$f":"SUMIFS(Sheet1!S71_OriginalBudAmnt,Sheet1!S71_SA34cCode,$AC:$AC,Sheet1!S71_RepMaintCode,$AD:$AD)","v":0},{"$f":"SUMIFS(Sheet1!S71_AdjustmentBudAmnt,Sheet1!S71_SA34cCode,$AC:$AC,Sheet1!S71_RepMaintCode,$AD:$AD)","v":0},{"$f":"SUMIFS(Sheet1!S71_AdjustmentBudAmnt,Sheet1!S71_SA34cCode,$AC:$AC,Sheet1!S71_RepMaintCode,$AD:$AD)","v":0},{"$f":"SUMIFS(Sheet1!S71_ASBudgetAmount,Sheet1!S71_SA34cCode,$AC:$AC,Sheet1!S71_RepMaintCode,$AD:$AD)","v":0},{"$f":"SUMIFS(Sheet1!S71_OY1BudgetAmount,Sheet1!S71_SA34cCode,$AC:$AC,Sheet1!S71_RepMaintCode,$AD:$AD)","v":0},{"$f":"SUMIFS(Sheet1!S71_OY2BudgetAmount,Sheet1!S71_SA34cCode,$AC:$AC,Sheet1!S71_RepMaintCode,$AD:$AD)","v":0},null,null,null,null,null,null,null,null,null,null,null,null,null,null,null,null,null,"1380","RM",{"$f":"SUMIFS(Sheet1!S71_PreAuditActual,Sheet1!S71_SA34cCode,_xlfn.SINGLE($AC:$AC),Sheet1!S71_RepMaintCode,_xlfn.SINGLE($AD:$AD))","v":0}]
["Licences and Rights",null,{"$f":"SUM(C142:C147)","v":0},{"$f":"SUM(D142:D147)","v":0},0,0,0,0,0,0,0,null,null,null,null,null,null,null,null,null,null,null,null,null,null,null,null,null,null,"RM",{"$f":"SUMIFS(Sheet1!S71_PreAuditActual,Sheet1!S71_SA34cCode,_xlfn.SINGLE($AC:$AC),Sheet1!S71_RepMaintCode,_xlfn.SINGLE($AD:$AD))","v":0}]
["Water Rights",null,{"$f":"SUMIFS(Sheet1!S71_PPPYearAmount,Sheet1!S71_SA34cCode,$AC:$AC,Sheet1!S71_RepMaintCode,$AD:$AD)","v":0},{"$f":"SUMIFS(Sheet1!S71_PPYearAmount,Sheet1!S71_SA34cCode,$AC:$AC,Sheet1!S71_RepMaintCode,$AD:$AD)","v":0},{"$f":"SUMIFS(Sheet1!S71_PYearAmount,Sheet1!S71_SA34cCode,$AC:$AC,Sheet1!S71_RepMaintCode,$AD:$AD)","v":0},{"$f":"SUMIFS(Sheet1!S71_OriginalBudAmnt,Sheet1!S71_SA34cCode,$AC:$AC,Sheet1!S71_RepMaintCode,$AD:$AD)","v":0},{"$f":"SUMIFS(Sheet1!S71_AdjustmentBudAmnt,Sheet1!S71_SA34cCode,$AC:$AC,Sheet1!S71_RepMaintCode,$AD:$AD)","v":0},{"$f":"SUMIFS(Sheet1!S71_AdjustmentBudAmnt,Sheet1!S71_SA34cCode,$AC:$AC,Sheet1!S71_RepMaintCode,$AD:$AD)","v":0},{"$f":"SUMIFS(Sheet1!S71_ASBudgetAmount,Sheet1!S71_SA34cCode,$AC:$AC,Sheet1!S71_RepMaintCode,$AD:$AD)","v":0},{"$f":"SUMIFS(Sheet1!S71_OY1BudgetAmount,Sheet1!S71_SA34cCode,$AC:$AC,Sheet1!S71_RepMaintCode,$AD:$AD)","v":0},{"$f":"SUMIFS(Sheet1!S71_OY2BudgetAmount,Sheet1!S71_SA34cCode,$AC:$AC,Sheet1!S71_RepMaintCode,$AD:$AD)","v":0},null,null,null,null,null,null,null,null,null,null,null,null,null,null,null,null,null,"1400","RM",{"$f":"SUMIFS(Sheet1!S71_PreAuditActual,Sheet1!S71_SA34cCode,_xlfn.SINGLE($AC:$AC),Sheet1!S71_RepMaintCode,_xlfn.SINGLE($AD:$AD))","v":0}]
["Effluent Licenses",null,{"$f":"SUMIFS(Sheet1!S71_PPPYearAmount,Sheet1!S71_SA34cCode,$AC:$AC,Sheet1!S71_RepMaintCode,$AD:$AD)","v":0},{"$f":"SUMIFS(Sheet1!S71_PPYearAmount,Sheet1!S71_SA34cCode,$AC:$AC,Sheet1!S71_RepMaintCode,$AD:$AD)","v":0},{"$f":"SUMIFS(Sheet1!S71_PYearAmount,Sheet1!S71_SA34cCode,$AC:$AC,Sheet1!S71_RepMaintCode,$AD:$AD)","v":0},{"$f":"SUMIFS(Sheet1!S71_OriginalBudAmnt,Sheet1!S71_SA34cCode,$AC:$AC,Sheet1!S71_RepMaintCode,$AD:$AD)","v":0},{"$f":"SUMIFS(Sheet1!S71_AdjustmentBudAmnt,Sheet1!S71_SA34cCode,$AC:$AC,Sheet1!S71_RepMaintCode,$AD:$AD)","v":0},{"$f":"SUMIFS(Sheet1!S71_AdjustmentBudAmnt,Sheet1!S71_SA34cCode,$AC:$AC,Sheet1!S71_RepMaintCode,$AD:$AD)","v":0},{"$f":"SUMIFS(Sheet1!S71_ASBudgetAmount,Sheet1!S71_SA34cCode,$AC:$AC,Sheet1!S71_RepMaintCode,$AD:$AD)","v":0},{"$f":"SUMIFS(Sheet1!S71_OY1BudgetAmount,Sheet1!S71_SA34cCode,$AC:$AC,Sheet1!S71_RepMaintCode,$AD:$AD)","v":0},{"$f":"SUMIFS(Sheet1!S71_OY2BudgetAmount,Sheet1!S71_SA34cCode,$AC:$AC,Sheet1!S71_RepMaintCode,$AD:$AD)","v":0},null,null,null,null,null,null,null,null,null,null,null,null,null,null,null,null,null,"1410","RM",{"$f":"SUMIFS(Sheet1!S71_PreAuditActual,Sheet1!S71_SA34cCode,_xlfn.SINGLE($AC:$AC),Sheet1!S71_RepMaintCode,_xlfn.SINGLE($AD:$AD))","v":0}]
["Solid Waste Licenses",null,{"$f":"SUMIFS(Sheet1!S71_PPPYearAmount,Sheet1!S71_SA34cCode,$AC:$AC,Sheet1!S71_RepMaintCode,$AD:$AD)","v":0},{"$f":"SUMIFS(Sheet1!S71_PPYearAmount,Sheet1!S71_SA34cCode,$AC:$AC,Sheet1!S71_RepMaintCode,$AD:$AD)","v":0},{"$f":"SUMIFS(Sheet1!S71_PYearAmount,Sheet1!S71_SA34cCode,$AC:$AC,Sheet1!S71_RepMaintCode,$AD:$AD)","v":0},{"$f":"SUMIFS(Sheet1!S71_OriginalBudAmnt,Sheet1!S71_SA34cCode,$AC:$AC,Sheet1!S71_RepMaintCode,$AD:$AD)","v":0},{"$f":"SUMIFS(Sheet1!S71_AdjustmentBudAmnt,Sheet1!S71_SA34cCode,$AC:$AC,Sheet1!S71_RepMaintCode,$AD:$AD)","v":0},{"$f":"SUMIFS(Sheet1!S71_AdjustmentBudAmnt,Sheet1!S71_SA34cCode,$AC:$AC,Sheet1!S71_RepMaintCode,$AD:$AD)","v":0},{"$f":"SUMIFS(Sheet1!S71_ASBudgetAmount,Sheet1!S71_SA34cCode,$AC:$AC,Sheet1!S71_RepMaintCode,$AD:$AD)","v":0},{"$f":"SUMIFS(Sheet1!S71_OY1BudgetAmount,Sheet1!S71_SA34cCode,$AC:$AC,Sheet1!S71_RepMaintCode,$AD:$AD)","v":0},{"$f":"SUMIFS(Sheet1!S71_OY2BudgetAmount,Sheet1!S71_SA34cCode,$AC:$AC,Sheet1!S71_RepMaintCode,$AD:$AD)","v":0},null,null,null,null,null,null,null,null,null,null,null,null,null,null,null,null,null,"1420","RM",{"$f":"SUMIFS(Sheet1!S71_PreAuditActual,Sheet1!S71_SA34cCode,_xlfn.SINGLE($AC:$AC),Sheet1!S71_RepMaintCode,_xlfn.SINGLE($AD:$AD))","v":0}]
["Computer Software and Applications",null,{"$f":"SUMIFS(Sheet1!S71_PPPYearAmount,Sheet1!S71_SA34cCode,$AC:$AC,Sheet1!S71_RepMaintCode,$AD:$AD)","v":0},{"$f":"SUMIFS(Sheet1!S71_PPYearAmount,Sheet1!S71_SA34cCode,$AC:$AC,Sheet1!S71_RepMaintCode,$AD:$AD)","v":0},{"$f":"SUMIFS(Sheet1!S71_PYearAmount,Sheet1!S71_SA34cCode,$AC:$AC,Sheet1!S71_RepMaintCode,$AD:$AD)","v":0},{"$f":"SUMIFS(Sheet1!S71_OriginalBudAmnt,Sheet1!S71_SA34cCode,$AC:$AC,Sheet1!S71_RepMaintCode,$AD:$AD)","v":0},{"$f":"SUMIFS(Sheet1!S71_AdjustmentBudAmnt,Sheet1!S71_SA34cCode,$AC:$AC,Sheet1!S71_RepMaintCode,$AD:$AD)","v":0},{"$f":"SUMIFS(Sheet1!S71_AdjustmentBudAmnt,Sheet1!S71_SA34cCode,$AC:$AC,Sheet1!S71_RepMaintCode,$AD:$AD)","v":0},{"$f":"SUMIFS(Sheet1!S71_ASBudgetAmount,Sheet1!S71_SA34cCode,$AC:$AC,Sheet1!S71_RepMaintCode,$AD:$AD)","v":0},{"$f":"SUMIFS(Sheet1!S71_OY1BudgetAmount,Sheet1!S71_SA34cCode,$AC:$AC,Sheet1!S71_RepMaintCode,$AD:$AD)","v":0},{"$f":"SUMIFS(Sheet1!S71_OY2BudgetAmount,Sheet1!S71_SA34cCode,$AC:$AC,Sheet1!S71_RepMaintCode,$AD:$AD)","v":0},null,null,null,null,null,null,null,null,null,null,null,null,null,null,null,null,null,"1430","RM",{"$f":"SUMIFS(Sheet1!S71_PreAuditActual,Sheet1!S71_SA34cCode,_xlfn.SINGLE($AC:$AC),Sheet1!S71_RepMaintCode,_xlfn.SINGLE($AD:$AD))","v":0}]
["Load Settlement Software Applications",null,{"$f":"SUMIFS(Sheet1!S71_PPPYearAmount,Sheet1!S71_SA34cCode,$AC:$AC,Sheet1!S71_RepMaintCode,$AD:$AD)","v":0},{"$f":"SUMIFS(Sheet1!S71_PPYearAmount,Sheet1!S71_SA34cCode,$AC:$AC,Sheet1!S71_RepMaintCode,$AD:$AD)","v":0},{"$f":"SUMIFS(Sheet1!S71_PYearAmount,Sheet1!S71_SA34cCode,$AC:$AC,Sheet1!S71_RepMaintCode,$AD:$AD)","v":0},{"$f":"SUMIFS(Sheet1!S71_OriginalBudAmnt,Sheet1!S71_SA34cCode,$AC:$AC,Sheet1!S71_RepMaintCode,$AD:$AD)","v":0},{"$f":"SUMIFS(Sheet1!S71_AdjustmentBudAmnt,Sheet1!S71_SA34cCode,$AC:$AC,Sheet1!S71_RepMaintCode,$AD:$AD)","v":0},{"$f":"SUMIFS(Sheet1!S71_AdjustmentBudAmnt,Sheet1!S71_SA34cCode,$AC:$AC,Sheet1!S71_RepMaintCode,$AD:$AD)","v":0},{"$f":"SUMIFS(Sheet1!S71_ASBudgetAmount,Sheet1!S71_SA34cCode,$AC:$AC,Sheet1!S71_RepMaintCode,$AD:$AD)","v":0},{"$f":"SUMIFS(Sheet1!S71_OY1BudgetAmount,Sheet1!S71_SA34cCode,$AC:$AC,Sheet1!S71_RepMaintCode,$AD:$AD)","v":0},{"$f":"SUMIFS(Sheet1!S71_OY2BudgetAmount,Sheet1!S71_SA34cCode,$AC:$AC,Sheet1!S71_RepMaintCode,$AD:$AD)","v":0},null,null,null,null,null,null,null,null,null,null,null,null,null,null,null,null,null,"1440","RM",{"$f":"SUMIFS(Sheet1!S71_PreAuditActual,Sheet1!S71_SA34cCode,_xlfn.SINGLE($AC:$AC),Sheet1!S71_RepMaintCode,_xlfn.SINGLE($AD:$AD))","v":0}]
["Unspecified",null,{"$f":"SUMIFS(Sheet1!S71_PPPYearAmount,Sheet1!S71_SA34cCode,$AC:$AC,Sheet1!S71_RepMaintCode,$AD:$AD)","v":0},{"$f":"SUMIFS(Sheet1!S71_PPYearAmount,Sheet1!S71_SA34cCode,$AC:$AC,Sheet1!S71_RepMaintCode,$AD:$AD)","v":0},{"$f":"SUMIFS(Sheet1!S71_PYearAmount,Sheet1!S71_SA34cCode,$AC:$AC,Sheet1!S71_RepMaintCode,$AD:$AD)","v":0},{"$f":"SUMIFS(Sheet1!S71_OriginalBudAmnt,Sheet1!S71_SA34cCode,$AC:$AC,Sheet1!S71_RepMaintCode,$AD:$AD)","v":0},{"$f":"SUMIFS(Sheet1!S71_AdjustmentBudAmnt,Sheet1!S71_SA34cCode,$AC:$AC,Sheet1!S71_RepMaintCode,$AD:$AD)","v":0},{"$f":"SUMIFS(Sheet1!S71_AdjustmentBudAmnt,Sheet1!S71_SA34cCode,$AC:$AC,Sheet1!S71_RepMaintCode,$AD:$AD)","v":0},{"$f":"SUMIFS(Sheet1!S71_ASBudgetAmount,Sheet1!S71_SA34cCode,$AC:$AC,Sheet1!S71_RepMaintCode,$AD:$AD)","v":0},{"$f":"SUMIFS(Sheet1!S71_OY1BudgetAmount,Sheet1!S71_SA34cCode,$AC:$AC,Sheet1!S71_RepMaintCode,$AD:$AD)","v":0},{"$f":"SUMIFS(Sheet1!S71_OY2BudgetAmount,Sheet1!S71_SA34cCode,$AC:$AC,Sheet1!S71_RepMaintCode,$AD:$AD)","v":0},null,null,null,null,null,null,null,null,null,null,null,null,null,null,null,null,null,"1450","RM",{"$f":"SUMIFS(Sheet1!S71_PreAuditActual,Sheet1!S71_SA34cCode,_xlfn.SINGLE($AC:$AC),Sheet1!S71_RepMaintCode,_xlfn.SINGLE($AD:$AD))","v":0}]
[null,null,null,null,null,null,null,null,null,null,null,null,null,null,null,null,null,null,null,null,null,null,null,null,null,null,null,null,null,"RM",{"$f":"SUMIFS(Sheet1!S71_PreAuditActual,Sheet1!S71_SA34cCode,_xlfn.SINGLE($AC:$AC),Sheet1!S71_RepMaintCode,_xlfn.SINGLE($AD:$AD))","v":0}]
["Computer Equipment",null,{"$f":"SUM(C150:C150)","v":0},0,0,0,0,0,0,0,0,null,null,null,null,null,null,null,null,null,null,null,null,null,null,null,null,null,null,"RM",{"$f":"SUMIFS(Sheet1!S71_PreAuditActual,Sheet1!S71_SA34cCode,_xlfn.SINGLE($AC:$AC),Sheet1!S71_RepMaintCode,_xlfn.SINGLE($AD:$AD))","v":0}]
["Computer Equipment",null,{"$f":"SUMIFS(Sheet1!S71_PPPYearAmount,Sheet1!S71_SA34cCode,$AC:$AC,Sheet1!S71_RepMaintCode,$AD:$AD)","v":0},{"$f":"SUMIFS(Sheet1!S71_PPYearAmount,Sheet1!S71_SA34cCode,$AC:$AC,Sheet1!S71_RepMaintCode,$AD:$AD)","v":0},{"$f":"SUMIFS(Sheet1!S71_PYearAmount,Sheet1!S71_SA34cCode,$AC:$AC,Sheet1!S71_RepMaintCode,$AD:$AD)","v":0},{"$f":"SUMIFS(Sheet1!S71_OriginalBudAmnt,Sheet1!S71_SA34cCode,$AC:$AC,Sheet1!S71_RepMaintCode,$AD:$AD)","v":0},{"$f":"SUMIFS(Sheet1!S71_AdjustmentBudAmnt,Sheet1!S71_SA34cCode,$AC:$AC,Sheet1!S71_RepMaintCode,$AD:$AD)","v":0},{"$f":"SUMIFS(Sheet1!S71_AdjustmentBudAmnt,Sheet1!S71_SA34cCode,$AC:$AC,Sheet1!S71_RepMaintCode,$AD:$AD)","v":0},{"$f":"SUMIFS(Sheet1!S71_ASBudgetAmount,Sheet1!S71_SA34cCode,$AC:$AC,Sheet1!S71_RepMaintCode,$AD:$AD)","v":0},{"$f":"SUMIFS(Sheet1!S71_OY1BudgetAmount,Sheet1!S71_SA34cCode,$AC:$AC,Sheet1!S71_RepMaintCode,$AD:$AD)","v":0},{"$f":"SUMIFS(Sheet1!S71_OY2BudgetAmount,Sheet1!S71_SA34cCode,$AC:$AC,Sheet1!S71_RepMaintCode,$AD:$AD)","v":0},null,null,null,null,null,null,null,null,null,null,null,null,null,null,null,null,null,"1470","RM",{"$f":"SUMIFS(Sheet1!S71_PreAuditActual,Sheet1!S71_SA34cCode,_xlfn.SINGLE($AC:$AC),Sheet1!S71_RepMaintCode,_xlfn.SINGLE($AD:$AD))","v":0}]
[null,null,null,null,null,null,null,null,null,null,null,null,null,null,null,null,null,null,null,null,null,null,null,null,null,null,null,null,null,"RM",{"$f":"SUMIFS(Sheet1!S71_PreAuditActual,Sheet1!S71_SA34cCode,_xlfn.SINGLE($AC:$AC),Sheet1!S71_RepMaintCode,_xlfn.SINGLE($AD:$AD))","v":0}]
["Furniture and Office Equipment",null,{"$f":"SUM(C153:C153)","v":0},51225,0,0,0,0,10000,10000,10000,null,null,null,null,null,null,null,null,null,null,null,null,null,null,null,null,null,null,"RM",{"$f":"SUMIFS(Sheet1!S71_PreAuditActual,Sheet1!S71_SA34cCode,_xlfn.SINGLE($AC:$AC),Sheet1!S71_RepMaintCode,_xlfn.SINGLE($AD:$AD))","v":0}]
["Furniture and Office Equipment",null,{"$f":"SUMIFS(Sheet1!S71_PPPYearAmount,Sheet1!S71_SA34cCode,$AC:$AC,Sheet1!S71_RepMaintCode,$AD:$AD)","v":0},{"$f":"SUMIFS(Sheet1!S71_PPYearAmount,Sheet1!S71_SA34cCode,$AC:$AC,Sheet1!S71_RepMaintCode,$AD:$AD)","v":51225},{"$f":"SUMIFS(Sheet1!S71_PYearAmount,Sheet1!S71_SA34cCode,$AC:$AC,Sheet1!S71_RepMaintCode,$AD:$AD)","v":0},{"$f":"SUMIFS(Sheet1!S71_OriginalBudAmnt,Sheet1!S71_SA34cCode,$AC:$AC,Sheet1!S71_RepMaintCode,$AD:$AD)","v":0},{"$f":"SUMIFS(Sheet1!S71_AdjustmentBudAmnt,Sheet1!S71_SA34cCode,$AC:$AC,Sheet1!S71_RepMaintCode,$AD:$AD)","v":0},{"$f":"SUMIFS(Sheet1!S71_AdjustmentBudAmnt,Sheet1!S71_SA34cCode,$AC:$AC,Sheet1!S71_RepMaintCode,$AD:$AD)","v":0},{"$f":"SUMIFS(Sheet1!S71_ASBudgetAmount,Sheet1!S71_SA34cCode,$AC:$AC,Sheet1!S71_RepMaintCode,$AD:$AD)","v":10000},{"$f":"SUMIFS(Sheet1!S71_OY1BudgetAmount,Sheet1!S71_SA34cCode,$AC:$AC,Sheet1!S71_RepMaintCode,$AD:$AD)","v":10000},{"$f":"SUMIFS(Sheet1!S71_OY2BudgetAmount,Sheet1!S71_SA34cCode,$AC:$AC,Sheet1!S71_RepMaintCode,$AD:$AD)","v":10000},null,null,null,null,null,null,null,null,null,null,null,null,null,null,null,null,null,"1490","RM",{"$f":"SUMIFS(Sheet1!S71_PreAuditActual,Sheet1!S71_SA34cCode,_xlfn.SINGLE($AC:$AC),Sheet1!S71_RepMaintCode,_xlfn.SINGLE($AD:$AD))","v":0}]
[null,null,null,null,null,null,null,null,null,null,null,null,null,null,null,null,null,null,null,null,null,null,null,null,null,null,null,null,null,"RM",{"$f":"SUMIFS(Sheet1!S71_PreAuditActual,Sheet1!S71_SA34cCode,_xlfn.SINGLE($AC:$AC),Sheet1!S71_RepMaintCode,_xlfn.SINGLE($AD:$AD))","v":0}]
["Machinery and Equipment",null,{"$f":"SUM(C156:C156)","v":0},3384,0,35000,175000,175000,20000,26220,28542,null,null,null,null,null,null,null,null,null,null,null,null,null,null,null,null,null,null,"RM",{"$f":"SUMIFS(Sheet1!S71_PreAuditActual,Sheet1!S71_SA34cCode,_xlfn.SINGLE($AC:$AC),Sheet1!S71_RepMaintCode,_xlfn.SINGLE($AD:$AD))","v":0}]
["Machinery and Equipment",null,{"$f":"SUMIFS(Sheet1!S71_PPPYearAmount,Sheet1!S71_SA34cCode,$AC:$AC,Sheet1!S71_RepMaintCode,$AD:$AD)","v":0},{"$f":"SUMIFS(Sheet1!S71_PPYearAmount,Sheet1!S71_SA34cCode,$AC:$AC,Sheet1!S71_RepMaintCode,$AD:$AD)","v":3384},{"$f":"SUMIFS(Sheet1!S71_PYearAmount,Sheet1!S71_SA34cCode,$AC:$AC,Sheet1!S71_RepMaintCode,$AD:$AD)","v":0},{"$f":"SUMIFS(Sheet1!S71_OriginalBudAmnt,Sheet1!S71_SA34cCode,$AC:$AC,Sheet1!S71_RepMaintCode,$AD:$AD)","v":35000},{"$f":"SUMIFS(Sheet1!S71_AdjustmentBudAmnt,Sheet1!S71_SA34cCode,$AC:$AC,Sheet1!S71_RepMaintCode,$AD:$AD)","v":175000},{"$f":"SUMIFS(Sheet1!S71_AdjustmentBudAmnt,Sheet1!S71_SA34cCode,$AC:$AC,Sheet1!S71_RepMaintCode,$AD:$AD)","v":175000},{"$f":"SUMIFS(Sheet1!S71_ASBudgetAmount,Sheet1!S71_SA34cCode,$AC:$AC,Sheet1!S71_RepMaintCode,$AD:$AD)","v":20000},{"$f":"SUMIFS(Sheet1!S71_OY1BudgetAmount,Sheet1!S71_SA34cCode,$AC:$AC,Sheet1!S71_RepMaintCode,$AD:$AD)","v":26220},{"$f":"SUMIFS(Sheet1!S71_OY2BudgetAmount,Sheet1!S71_SA34cCode,$AC:$AC,Sheet1!S71_RepMaintCode,$AD:$AD)","v":28542},null,null,null,null,null,null,null,null,null,null,null,null,null,null,null,null,null,"1510","RM",{"$f":"SUMIFS(Sheet1!S71_PreAuditActual,Sheet1!S71_SA34cCode,_xlfn.SINGLE($AC:$AC),Sheet1!S71_RepMaintCode,_xlfn.SINGLE($AD:$AD))","v":0}]
[null,null,null,null,null,null,null,null,null,null,null,null,null,null,null,null,null,null,null,null,null,null,null,null,null,null,null,null,null,"RM",{"$f":"SUMIFS(Sheet1!S71_PreAuditActual,Sheet1!S71_SA34cCode,_xlfn.SINGLE($AC:$AC),Sheet1!S71_RepMaintCode,_xlfn.SINGLE($AD:$AD))","v":0}]
["Transport Assets",null,{"$f":"SUM(C159:C159)","v":0},131199,175432,150000,250000,250000,100000,190000,350000,null,null,null,null,null,null,null,null,null,null,null,null,null,null,null,null,null,null,"RM",{"$f":"SUMIFS(Sheet1!S71_PreAuditActual,Sheet1!S71_SA34cCode,_xlfn.SINGLE($AC:$AC),Sheet1!S71_RepMaintCode,_xlfn.SINGLE($AD:$AD))","v":0}]
["Transport Assets",null,{"$f":"SUMIFS(Sheet1!S71_PPPYearAmount,Sheet1!S71_SA34cCode,$AC:$AC,Sheet1!S71_RepMaintCode,$AD:$AD)","v":0},{"$f":"SUMIFS(Sheet1!S71_PPYearAmount,Sheet1!S71_SA34cCode,$AC:$AC,Sheet1!S71_RepMaintCode,$AD:$AD)","v":131199},{"$f":"SUMIFS(Sheet1!S71_PYearAmount,Sheet1!S71_SA34cCode,$AC:$AC,Sheet1!S71_RepMaintCode,$AD:$AD)","v":175432},{"$f":"SUMIFS(Sheet1!S71_OriginalBudAmnt,Sheet1!S71_SA34cCode,$AC:$AC,Sheet1!S71_RepMaintCode,$AD:$AD)","v":150000},{"$f":"SUMIFS(Sheet1!S71_AdjustmentBudAmnt,Sheet1!S71_SA34cCode,$AC:$AC,Sheet1!S71_RepMaintCode,$AD:$AD)","v":250000},{"$f":"SUMIFS(Sheet1!S71_AdjustmentBudAmnt,Sheet1!S71_SA34cCode,$AC:$AC,Sheet1!S71_RepMaintCode,$AD:$AD)","v":250000},{"$f":"SUMIFS(Sheet1!S71_ASBudgetAmount,Sheet1!S71_SA34cCode,$AC:$AC,Sheet1!S71_RepMaintCode,$AD:$AD)","v":100000},{"$f":"SUMIFS(Sheet1!S71_OY1BudgetAmount,Sheet1!S71_SA34cCode,$AC:$AC,Sheet1!S71_RepMaintCode,$AD:$AD)","v":190000},{"$f":"SUMIFS(Sheet1!S71_OY2BudgetAmount,Sheet1!S71_SA34cCode,$AC:$AC,Sheet1!S71_RepMaintCode,$AD:$AD)","v":350000},null,null,null,null,null,null,null,null,null,null,null,null,null,null,null,null,null,"1530","RM",{"$f":"SUMIFS(Sheet1!S71_PreAuditActual,Sheet1!S71_SA34cCode,_xlfn.SINGLE($AC:$AC),Sheet1!S71_RepMaintCode,_xlfn.SINGLE($AD:$AD))","v":0}]
[null,null,null,null,null,null,null,null,null,null,null,null,null,null,null,null,null,null,null,null,null,null,null,null,null,null,null,null,null,"RM",{"$f":"SUMIFS(Sheet1!S71_PreAuditActual,Sheet1!S71_SA34cCode,_xlfn.SINGLE($AC:$AC),Sheet1!S71_RepMaintCode,_xlfn.SINGLE($AD:$AD))","v":0}]
["Land",null,{"$f":"SUM(C162:C162)","v":0},0,0,0,0,0,0,0,0,null,null,null,null,null,null,null,null,null,null,null,null,null,null,null,null,null,null,"RM",{"$f":"SUMIFS(Sheet1!S71_PreAuditActual,Sheet1!S71_SA34cCode,_xlfn.SINGLE($AC:$AC),Sheet1!S71_RepMaintCode,_xlfn.SINGLE($AD:$AD))","v":0}]
["Land",null,{"$f":"SUMIFS(Sheet1!S71_PPPYearAmount,Sheet1!S71_SA34cCode,$AC:$AC,Sheet1!S71_RepMaintCode,$AD:$AD)","v":0},{"$f":"SUMIFS(Sheet1!S71_PPYearAmount,Sheet1!S71_SA34cCode,$AC:$AC,Sheet1!S71_RepMaintCode,$AD:$AD)","v":0},{"$f":"SUMIFS(Sheet1!S71_PYearAmount,Sheet1!S71_SA34cCode,$AC:$AC,Sheet1!S71_RepMaintCode,$AD:$AD)","v":0},{"$f":"SUMIFS(Sheet1!S71_OriginalBudAmnt,Sheet1!S71_SA34cCode,$AC:$AC,Sheet1!S71_RepMaintCode,$AD:$AD)","v":0},{"$f":"SUMIFS(Sheet1!S71_AdjustmentBudAmnt,Sheet1!S71_SA34cCode,$AC:$AC,Sheet1!S71_RepMaintCode,$AD:$AD)","v":0},{"$f":"SUMIFS(Sheet1!S71_AdjustmentBudAmnt,Sheet1!S71_SA34cCode,$AC:$AC,Sheet1!S71_RepMaintCode,$AD:$AD)","v":0},{"$f":"SUMIFS(Sheet1!S71_ASBudgetAmount,Sheet1!S71_SA34cCode,$AC:$AC,Sheet1!S71_RepMaintCode,$AD:$AD)","v":0},{"$f":"SUMIFS(Sheet1!S71_OY1BudgetAmount,Sheet1!S71_SA34cCode,$AC:$AC,Sheet1!S71_RepMaintCode,$AD:$AD)","v":0},{"$f":"SUMIFS(Sheet1!S71_OY2BudgetAmount,Sheet1!S71_SA34cCode,$AC:$AC,Sheet1!S71_RepMaintCode,$AD:$AD)","v":0},null,null,null,null,null,null,null,null,null,null,null,null,null,null,null,null,null,"1550","RM",{"$f":"SUMIFS(Sheet1!S71_PreAuditActual,Sheet1!S71_SA34cCode,_xlfn.SINGLE($AC:$AC),Sheet1!S71_RepMaintCode,_xlfn.SINGLE($AD:$AD))","v":0}]
[null,null,null,null,null,null,null,null,null,null,null,null,null,null,null,null,null,null,null,null,null,null,null,null,null,null,null,null,null,"RM",{"$f":"SUMIFS(Sheet1!S71_PreAuditActual,Sheet1!S71_SA34cCode,_xlfn.SINGLE($AC:$AC),Sheet1!S71_RepMaintCode,_xlfn.SINGLE($AD:$AD))","v":0}]
["Zoo's, Marine and Non-biological Animals",null,{"$f":"SUM(C165:C165)","v":0},0,0,0,0,0,0,0,0,null,null,null,null,null,null,null,null,null,null,null,null,null,null,null,null,null,null,"RM",{"$f":"SUMIFS(Sheet1!S71_PreAuditActual,Sheet1!S71_SA34cCode,_xlfn.SINGLE($AC:$AC),Sheet1!S71_RepMaintCode,_xlfn.SINGLE($AD:$AD))","v":0}]
["Zoo's, Marine and Non-biological Animals",null,{"$f":"SUMIFS(Sheet1!S71_PPPYearAmount,Sheet1!S71_SA34cCode,$AC:$AC,Sheet1!S71_RepMaintCode,$AD:$AD)","v":0},{"$f":"SUMIFS(Sheet1!S71_PPYearAmount,Sheet1!S71_SA34cCode,$AC:$AC,Sheet1!S71_RepMaintCode,$AD:$AD)","v":0},{"$f":"SUMIFS(Sheet1!S71_PYearAmount,Sheet1!S71_SA34cCode,$AC:$AC,Sheet1!S71_RepMaintCode,$AD:$AD)","v":0},{"$f":"SUMIFS(Sheet1!S71_OriginalBudAmnt,Sheet1!S71_SA34cCode,$AC:$AC,Sheet1!S71_RepMaintCode,$AD:$AD)","v":0},{"$f":"SUMIFS(Sheet1!S71_AdjustmentBudAmnt,Sheet1!S71_SA34cCode,$AC:$AC,Sheet1!S71_RepMaintCode,$AD:$AD)","v":0},{"$f":"SUMIFS(Sheet1!S71_AdjustmentBudAmnt,Sheet1!S71_SA34cCode,$AC:$AC,Sheet1!S71_RepMaintCode,$AD:$AD)","v":0},{"$f":"SUMIFS(Sheet1!S71_ASBudgetAmount,Sheet1!S71_SA34cCode,$AC:$AC,Sheet1!S71_RepMaintCode,$AD:$AD)","v":0},{"$f":"SUMIFS(Sheet1!S71_OY1BudgetAmount,Sheet1!S71_SA34cCode,$AC:$AC,Sheet1!S71_RepMaintCode,$AD:$AD)","v":0},{"$f":"SUMIFS(Sheet1!S71_OY2BudgetAmount,Sheet1!S71_SA34cCode,$AC:$AC,Sheet1!S71_RepMaintCode,$AD:$AD)","v":0},null,null,null,null,null,null,null,null,null,null,null,null,null,null,null,null,null,"1570","RM",{"$f":"SUMIFS(Sheet1!S71_PreAuditActual,Sheet1!S71_SA34cCode,_xlfn.SINGLE($AC:$AC),Sheet1!S71_RepMaintCode,_xlfn.SINGLE($AD:$AD))","v":0}]
[null,null,null,null,null,null,null,null,null,null,null,null,null,null,null,null,null,null,null,null,null,null,null,null,null,null,null,null,null,"RM",{"$f":"SUMIFS(Sheet1!S71_PreAuditActual,Sheet1!S71_SA34cCode,_xlfn.SINGLE($AC:$AC),Sheet1!S71_RepMaintCode,_xlfn.SINGLE($AD:$AD))","v":0}]
["Total Repairs and Maintenance Expenditure",1,{"$f":"C6+C74+C103+C110+C118+C136+C139+C149+C152+C155+C158+C161+C164","v":0},{"$f":"D6+D74+D103+D110+D118+D136+D139+D149+D152+D155+D158+D161+D164","v":212836},436862,455000,663000,663000,215000,447300,610760,null,null,null,null,null,null,null,null,null,null,null,null,null,null,null,null,null,null,null,{"$f":"SUM(AE8:AE166)","v":0}]
[]
["R&M as a % of PPE",null,{"$f":"IF(ISERROR(ROUND(C167/'A6-FinPos'!C19,3)),0,(ROUND(C167/'A6-FinPos'!C19,3)))","v":0},{"$f":"IF(ISERROR(ROUND(D167/'A6-FinPos'!D19,3)),0,(ROUND(D167/'A6-FinPos'!D19,3)))","v":1.6E-2},{"$f":"IF(ISERROR(ROUND(E167/'A6-FinPos'!E19,3)),0,(ROUND(E167/'A6-FinPos'!E19,3)))","v":3.7999999999999999E-2},{"$f":"IF(ISERROR(ROUND(F167/'A6-FinPos'!F19,3)),0,(ROUND(F167/'A6-FinPos'!F19,3)))","v":1.1240000000000001},{"$f":"IF(ISERROR(ROUND(G167/'A6-FinPos'!G19,3)),0,(ROUND(G167/'A6-FinPos'!G19,3)))","v":5.6000000000000001E-2},{"$f":"IF(ISERROR(ROUND(H167/'A6-FinPos'!H19,3)),0,(ROUND(H167/'A6-FinPos'!H19,3)))","v":5.6000000000000001E-2},{"$f":"IF(ISERROR(ROUND(I167/'A6-FinPos'!I19,3)),0,(ROUND(I167/'A6-FinPos'!I19,3)))","v":4.0000000000000001E-3},{"$f":"IF(ISERROR(ROUND(J167/'A6-FinPos'!J19,3)),0,(ROUND(J167/'A6-FinPos'!J19,3)))","v":4.2999999999999997E-2},{"$f":"IF(ISERROR(ROUND(K167/'A6-FinPos'!K19,3)),0,(ROUND(K167/'A6-FinPos'!K19,3)))","v":0.06}]
["R&M as % Operating Expenditure",null,{"$f":"IF(ISERROR(ROUND(C167/'A1-Sum'!B18,3)),0,(ROUND(C167/'A1-Sum'!B18,3)))","v":0},{"$f":"IF(ISERROR(ROUND(D167/'A1-Sum'!C18,3)),0,(ROUND(D167/'A1-Sum'!C18,3)))","v":3.0000000000000001E-3},{"$f":"IF(ISERROR(ROUND(E167/'A1-Sum'!D18,3)),0,(ROUND(E167/'A1-Sum'!D18,3)))","v":6.0000000000000001E-3},{"$f":"IF(ISERROR(ROUND(F167/'A1-Sum'!E18,3)),0,(ROUND(F167/'A1-Sum'!E18,3)))","v":7.0000000000000001E-3},{"$f":"IF(ISERROR(ROUND(G167/'A1-Sum'!F18,3)),0,(ROUND(G167/'A1-Sum'!F18,3)))","v":0.01},{"$f":"IF(ISERROR(ROUND(H167/'A1-Sum'!G18,3)),0,(ROUND(H167/'A1-Sum'!G18,3)))","v":0.01},{"$f":"IF(ISERROR(ROUND(I167/'A1-Sum'!H18,3)),0,(ROUND(I167/'A1-Sum'!H18,3)))","v":4.0000000000000001E-3},{"$f":"IF(ISERROR(ROUND(J167/'A1-Sum'!I18,3)),0,(ROUND(J167/'A1-Sum'!I18,3)))","v":7.0000000000000001E-3},{"$f":"IF(ISERROR(ROUND(K167/'A1-Sum'!J18,3)),0,(ROUND(K167/'A1-Sum'!J18,3)))","v":8.9999999999999993E-3}]
[{"$f":"head27a","v":"References"}]
["1. Total Repairs and Maintenance Expenditure by Asset Category must reconcile to total repairs and maintenance expenditure on Table SA1"]
[]
[]
["check balance",null,{"$f":"C167-'SA1'!C181","v":0},{"$f":"D167-'SA1'!D181","v":0},{"$f":"E167-'SA1'!E181","v":0},{"$f":"F167-'SA1'!F181","v":0},{"$f":"G167-'SA1'!G181","v":0},{"$f":"H167-'SA1'!H181","v":0},{"$f":"I167-'SA1'!J181","v":0},{"$f":"J167-'SA1'!K181","v":0},{"$f":"K167-'SA1'!L181","v":0}]

{"sheet":"SA34d","index":67,"n_rows":173,"n_cols":30,"rows_kept":173,"cut":false,"hidden":false,"merged":[[1,5,1,7],[1,8,1,10]]}
[{"$f":"muni&\" - \"&TableA34d","v":"DC16 Xhariep - Supporting Table SA34d Depreciation by asset class"}]
[{"$f":"desc","v":"Description"},{"$f":"head27","v":"Ref"},{"$f":"head1b","v":"2017/18"},{"$f":"head1A","v":"2018/19"},{"$f":"Head1","v":"2019/20"},{"$f":"Head2","v":"Current Year 2020/21"},null,null,{"$f":"Head3","v":"2021/22 Medium Term Revenue & Expenditure Framework"}]
["R thousand",1,{"$f":"Head5","v":"Audited Outcome"},{"$f":"Head5","v":"Audited Outcome"},{"$f":"Head5","v":"Audited Outcome"},{"$f":"Head6","v":"Original Budget"},{"$f":"Head7","v":"Adjusted Budget"},{"$f":"Head8","v":"Full Year Forecast"},{"$f":"Head9","v":"Budget Year 2021/22"},{"$f":"Head10","v":"Budget Year +1 2022/23"},{"$f":"Head11","v":"Budget Year +2 2023/24"}]
["Depreciation by Asset Class/Sub-class"]
[]
["Infrastructure",null,{"$f":"C7+C12+C16+C26+C37+C44+C52+C62+C68","v":0},{"$f":"D7+D12+D16+D26+D37+D44+D52+D62+D68","v":0},0,0,0,0,0,0,0]
["Roads Infrastructure",null,{"$f":"SUM(C8:C11)","v":0},0,0,0,0,0,0,0,0]
["Roads",null,{"$f":"SUMIFS(Sheet1!S71_PPPYearAmount,Sheet1!S71_SA34dCode,$AC:$AC,Sheet1!S71_DepCode,$AD:$AD)","v":0},{"$f":"SUMIFS(Sheet1!S71_PPYearAmount,Sheet1!S71_SA34dCode,$AC:$AC,Sheet1!S71_DepCode,$AD:$AD)","v":0},{"$f":"SUMIFS(Sheet1!S71_PYearAmount,Sheet1!S71_SA34dCode,$AC:$AC,Sheet1!S71_DepCode,$AD:$AD)","v":0},{"$f":"SUMIFS(Sheet1!S71_OriginalBudAmnt,Sheet1!S71_SA34dCode,$AC:$AC,Sheet1!S71_DepCode,$AD:$AD)","v":0},{"$f":"SUMIFS(Sheet1!S71_AdjustmentBudAmnt,Sheet1!S71_SA34dCode,$AC:$AC,Sheet1!S71_DepCode,$AD:$AD)","v":0},{"$f":"SUMIFS(Sheet1!S71_AdjustmentBudAmnt,Sheet1!S71_SA34dCode,$AC:$AC,Sheet1!S71_DepCode,$AD:$AD)","v":0},{"$f":"SUMIFS(Sheet1!S71_ASBudgetAmount,Sheet1!S71_SA34dCode,$AC:$AC,Sheet1!S71_DepCode,$AD:$AD)","v":0},{"$f":"SUMIFS(Sheet1!S71_OY1BudgetAmount,Sheet1!S71_SA34dCode,$AC:$AC,Sheet1!S71_DepCode,$AD:$AD)","v":0},{"$f":"SUMIFS(Sheet1!S71_OY2BudgetAmount,Sheet1!S71_SA34dCode,$AC:$AC,Sheet1!S71_DepCode,$AD:$AD)","v":0},null,null,null,null,null,null,null,null,null,null,null,null,null,null,null,null,null,"0120","DP"]
["Road Structures",null,{"$f":"SUMIFS(Sheet1!S71_PPPYearAmount,Sheet1!S71_SA34dCode,$AC:$AC,Sheet1!S71_DepCode,$AD:$AD)","v":0},{"$f":"SUMIFS(Sheet1!S71_PPYearAmount,Sheet1!S71_SA34dCode,$AC:$AC,Sheet1!S71_DepCode,$AD:$AD)","v":0},{"$f":"SUMIFS(Sheet1!S71_PYearAmount,Sheet1!S71_SA34dCode,$AC:$AC,Sheet1!S71_DepCode,$AD:$AD)","v":0},{"$f":"SUMIFS(Sheet1!S71_OriginalBudAmnt,Sheet1!S71_SA34dCode,$AC:$AC,Sheet1!S71_DepCode,$AD:$AD)","v":0},{"$f":"SUMIFS(Sheet1!S71_AdjustmentBudAmnt,Sheet1!S71_SA34dCode,$AC:$AC,Sheet1!S71_DepCode,$AD:$AD)","v":0},{"$f":"SUMIFS(Sheet1!S71_AdjustmentBudAmnt,Sheet1!S71_SA34dCode,$AC:$AC,Sheet1!S71_DepCode,$AD:$AD)","v":0},{"$f":"SUMIFS(Sheet1!S71_ASBudgetAmount,Sheet1!S71_SA34dCode,$AC:$AC,Sheet1!S71_DepCode,$AD:$AD)","v":0},{"$f":"SUMIFS(Sheet1!S71_OY1BudgetAmount,Sheet1!S71_SA34dCode,$AC:$AC,Sheet1!S71_DepCode,$AD:$AD)","v":0},{"$f":"SUMIFS(Sheet1!S71_OY2BudgetAmount,Sheet1!S71_SA34dCode,$AC:$AC,Sheet1!S71_DepCode,$AD:$AD)","v":0},null,null,null,null,null,null,null,null,null,null,null,null,null,null,null,null,null,"0130","DP"]
["Road Furniture",null,{"$f":"SUMIFS(Sheet1!S71_PPPYearAmount,Sheet1!S71_SA34dCode,$AC:$AC,Sheet1!S71_DepCode,$AD:$AD)","v":0},{"$f":"SUMIFS(Sheet1!S71_PPYearAmount,Sheet1!S71_SA34dCode,$AC:$AC,Sheet1!S71_DepCode,$AD:$AD)","v":0},{"$f":"SUMIFS(Sheet1!S71_PYearAmount,Sheet1!S71_SA34dCode,$AC:$AC,Sheet1!S71_DepCode,$AD:$AD)","v":0},{"$f":"SUMIFS(Sheet1!S71_OriginalBudAmnt,Sheet1!S71_SA34dCode,$AC:$AC,Sheet1!S71_DepCode,$AD:$AD)","v":0},{"$f":"SUMIFS(Sheet1!S71_AdjustmentBudAmnt,Sheet1!S71_SA34dCode,$AC:$AC,Sheet1!S71_DepCode,$AD:$AD)","v":0},{"$f":"SUMIFS(Sheet1!S71_AdjustmentBudAmnt,Sheet1!S71_SA34dCode,$AC:$AC,Sheet1!S71_DepCode,$AD:$AD)","v":0},{"$f":"SUMIFS(Sheet1!S71_ASBudgetAmount,Sheet1!S71_SA34dCode,$AC:$AC,Sheet1!S71_DepCode,$AD:$AD)","v":0},{"$f":"SUMIFS(Sheet1!S71_OY1BudgetAmount,Sheet1!S71_SA34dCode,$AC:$AC,Sheet1!S71_DepCode,$AD:$AD)","v":0},{"$f":"SUMIFS(Sheet1!S71_OY2BudgetAmount,Sheet1!S71_SA34dCode,$AC:$AC,Sheet1!S71_DepCode,$AD:$AD)","v":0},null,null,null,null,null,null,null,null,null,null,null,null,null,null,null,null,null,"0140","DP"]
["Capital Spares",null,{"$f":"SUMIFS(Sheet1!S71_PPPYearAmount,Sheet1!S71_SA34dCode,$AC:$AC,Sheet1!S71_DepCode,$AD:$AD)","v":0},{"$f":"SUMIFS(Sheet1!S71_PPYearAmount,Sheet1!S71_SA34dCode,$AC:$AC,Sheet1!S71_DepCode,$AD:$AD)","v":0},{"$f":"SUMIFS(Sheet1!S71_PYearAmount,Sheet1!S71_SA34dCode,$AC:$AC,Sheet1!S71_DepCode,$AD:$AD)","v":0},{"$f":"SUMIFS(Sheet1!S71_OriginalBudAmnt,Sheet1!S71_SA34dCode,$AC:$AC,Sheet1!S71_DepCode,$AD:$AD)","v":0},{"$f":"SUMIFS(Sheet1!S71_AdjustmentBudAmnt,Sheet1!S71_SA34dCode,$AC:$AC,Sheet1!S71_DepCode,$AD:$AD)","v":0},{"$f":"SUMIFS(Sheet1!S71_AdjustmentBudAmnt,Sheet1!S71_SA34dCode,$AC:$AC,Sheet1!S71_DepCode,$AD:$AD)","v":0},{"$f":"SUMIFS(Sheet1!S71_ASBudgetAmount,Sheet1!S71_SA34dCode,$AC:$AC,Sheet1!S71_DepCode,$AD:$AD)","v":0},{"$f":"SUMIFS(Sheet1!S71_OY1BudgetAmount,Sheet1!S71_SA34dCode,$AC:$AC,Sheet1!S71_DepCode,$AD:$AD)","v":0},{"$f":"SUMIFS(Sheet1!S71_OY2BudgetAmount,Sheet1!S71_SA34dCode,$AC:$AC,Sheet1!S71_DepCode,$AD:$AD)","v":0},null,null,null,null,null,null,null,null,null,null,null,null,null,null,null,null,null,"0150","DP"]
["Storm water Infrastructure",null,{"$f":"SUM(C13:C15)","v":0},{"$f":"SUM(D13:D15)","v":0},0,0,0,0,0,0,0,null,null,null,null,null,null,null,null,null,null,null,null,null,null,null,null,null,null,"DP"]
["Drainage Collection",null,{"$f":"SUMIFS(Sheet1!S71_PPPYearAmount,Sheet1!S71_SA34dCode,$AC:$AC,Sheet1!S71_DepCode,$AD:$AD)","v":0},{"$f":"SUMIFS(Sheet1!S71_PPYearAmount,Sheet1!S71_SA34dCode,$AC:$AC,Sheet1!S71_DepCode,$AD:$AD)","v":0},{"$f":"SUMIFS(Sheet1!S71_PYearAmount,Sheet1!S71_SA34dCode,$AC:$AC,Sheet1!S71_DepCode,$AD:$AD)","v":0},{"$f":"SUMIFS(Sheet1!S71_OriginalBudAmnt,Sheet1!S71_SA34dCode,$AC:$AC,Sheet1!S71_DepCode,$AD:$AD)","v":0},{"$f":"SUMIFS(Sheet1!S71_AdjustmentBudAmnt,Sheet1!S71_SA34dCode,$AC:$AC,Sheet1!S71_DepCode,$AD:$AD)","v":0},{"$f":"SUMIFS(Sheet1!S71_AdjustmentBudAmnt,Sheet1!S71_SA34dCode,$AC:$AC,Sheet1!S71_DepCode,$AD:$AD)","v":0},{"$f":"SUMIFS(Sheet1!S71_ASBudgetAmount,Sheet1!S71_SA34dCode,$AC:$AC,Sheet1!S71_DepCode,$AD:$AD)","v":0},{"$f":"SUMIFS(Sheet1!S71_OY1BudgetAmount,Sheet1!S71_SA34dCode,$AC:$AC,Sheet1!S71_DepCode,$AD:$AD)","v":0},{"$f":"SUMIFS(Sheet1!S71_OY2BudgetAmount,Sheet1!S71_SA34dCode,$AC:$AC,Sheet1!S71_DepCode,$AD:$AD)","v":0},null,null,null,null,null,null,null,null,null,null,null,null,null,null,null,null,null,"0180","DP"]
["Storm water Conveyance",null,{"$f":"SUMIFS(Sheet1!S71_PPPYearAmount,Sheet1!S71_SA34dCode,$AC:$AC,Sheet1!S71_DepCode,$AD:$AD)","v":0},{"$f":"SUMIFS(Sheet1!S71_PPYearAmount,Sheet1!S71_SA34dCode,$AC:$AC,Sheet1!S71_DepCode,$AD:$AD)","v":0},{"$f":"SUMIFS(Sheet1!S71_PYearAmount,Sheet1!S71_SA34dCode,$AC:$AC,Sheet1!S71_DepCode,$AD:$AD)","v":0},{"$f":"SUMIFS(Sheet1!S71_OriginalBudAmnt,Sheet1!S71_SA34dCode,$AC:$AC,Sheet1!S71_DepCode,$AD:$AD)","v":0},{"$f":"SUMIFS(Sheet1!S71_AdjustmentBudAmnt,Sheet1!S71_SA34dCode,$AC:$AC,Sheet1!S71_DepCode,$AD:$AD)","v":0},{"$f":"SUMIFS(Sheet1!S71_AdjustmentBudAmnt,Sheet1!S71_SA34dCode,$AC:$AC,Sheet1!S71_DepCode,$AD:$AD)","v":0},{"$f":"SUMIFS(Sheet1!S71_ASBudgetAmount,Sheet1!S71_SA34dCode,$AC:$AC,Sheet1!S71_DepCode,$AD:$AD)","v":0},{"$f":"SUMIFS(Sheet1!S71_OY1BudgetAmount,Sheet1!S71_SA34dCode,$AC:$AC,Sheet1!S71_DepCode,$AD:$AD)","v":0},{"$f":"SUMIFS(Sheet1!S71_OY2BudgetAmount,Sheet1!S71_SA34dCode,$AC:$AC,Sheet1!S71_DepCode,$AD:$AD)","v":0},null,null,null,null,null,null,null,null,null,null,null,null,null,null,null,null,null,"0170","DP"]
["Attenuation",null,{"$f":"SUMIFS(Sheet1!S71_PPPYearAmount,Sheet1!S71_SA34dCode,$AC:$AC,Sheet1!S71_DepCode,$AD:$AD)","v":0},{"$f":"SUMIFS(Sheet1!S71_PPYearAmount,Sheet1!S71_SA34dCode,$AC:$AC,Sheet1!S71_DepCode,$AD:$AD)","v":0},{"$f":"SUMIFS(Sheet1!S71_PYearAmount,Sheet1!S71_SA34dCode,$AC:$AC,Sheet1!S71_DepCode,$AD:$AD)","v":0},{"$f":"SUMIFS(Sheet1!S71_OriginalBudAmnt,Sheet1!S71_SA34dCode,$AC:$AC,Sheet1!S71_DepCode,$AD:$AD)","v":0},{"$f":"SUMIFS(Sheet1!S71_AdjustmentBudAmnt,Sheet1!S71_SA34dCode,$AC:$AC,Sheet1!S71_DepCode,$AD:$AD)","v":0},{"$f":"SUMIFS(Sheet1!S71_AdjustmentBudAmnt,Sheet1!S71_SA34dCode,$AC:$AC,Sheet1!S71_DepCode,$AD:$AD)","v":0},{"$f":"SUMIFS(Sheet1!S71_ASBudgetAmount,Sheet1!S71_SA34dCode,$AC:$AC,Sheet1!S71_DepCode,$AD:$AD)","v":0},{"$f":"SUMIFS(Sheet1!S71_OY1BudgetAmount,Sheet1!S71_SA34dCode,$AC:$AC,Sheet1!S71_DepCode,$AD:$AD)","v":0},{"$f":"SUMIFS(Sheet1!S71_OY2BudgetAmount,Sheet1!S71_SA34dCode,$AC:$AC,Sheet1!S71_DepCode,$AD:$AD)","v":0},null,null,null,null,null,null,null,null,null,null,null,null,null,null,null,null,null,"0190","DP"]
["Electrical Infrastructure",null,{"$f":"SUM(C17:C25)","v":0},0,0,0,0,0,0,0,0,null,null,null,null,null,null,null,null,null,null,null,null,null,null,null,null,null,null,"DP"]
["Power Plants",null,{"$f":"SUMIFS(Sheet1!S71_PPPYearAmount,Sheet1!S71_SA34dCode,$AC:$AC,Sheet1!S71_DepCode,$AD:$AD)","v":0},{"$f":"SUMIFS(Sheet1!S71_PPYearAmount,Sheet1!S71_SA34dCode,$AC:$AC,Sheet1!S71_DepCode,$AD:$AD)","v":0},{"$f":"SUMIFS(Sheet1!S71_PYearAmount,Sheet1!S71_SA34dCode,$AC:$AC,Sheet1!S71_DepCode,$AD:$AD)","v":0},{"$f":"SUMIFS(Sheet1!S71_OriginalBudAmnt,Sheet1!S71_SA34dCode,$AC:$AC,Sheet1!S71_DepCode,$AD:$AD)","v":0},{"$f":"SUMIFS(Sheet1!S71_AdjustmentBudAmnt,Sheet1!S71_SA34dCode,$AC:$AC,Sheet1!S71_DepCode,$AD:$AD)","v":0},{"$f":"SUMIFS(Sheet1!S71_AdjustmentBudAmnt,Sheet1!S71_SA34dCode,$AC:$AC,Sheet1!S71_DepCode,$AD:$AD)","v":0},{"$f":"SUMIFS(Sheet1!S71_ASBudgetAmount,Sheet1!S71_SA34dCode,$AC:$AC,Sheet1!S71_DepCode,$AD:$AD)","v":0},{"$f":"SUMIFS(Sheet1!S71_OY1BudgetAmount,Sheet1!S71_SA34dCode,$AC:$AC,Sheet1!S71_DepCode,$AD:$AD)","v":0},{"$f":"SUMIFS(Sheet1!S71_OY2BudgetAmount,Sheet1!S71_SA34dCode,$AC:$AC,Sheet1!S71_DepCode,$AD:$AD)","v":0},null,null,null,null,null,null,null,null,null,null,null,null,null,null,null,null,null,"0210","DP"]
["HV Substations",null,{"$f":"SUMIFS(Sheet1!S71_PPPYearAmount,Sheet1!S71_SA34dCode,$AC:$AC,Sheet1!S71_DepCode,$AD:$AD)","v":0},{"$f":"SUMIFS(Sheet1!S71_PPYearAmount,Sheet1!S71_SA34dCode,$AC:$AC,Sheet1!S71_DepCode,$AD:$AD)","v":0},{"$f":"SUMIFS(Sheet1!S71_PYearAmount,Sheet1!S71_SA34dCode,$AC:$AC,Sheet1!S71_DepCode,$AD:$AD)","v":0},{"$f":"SUMIFS(Sheet1!S71_OriginalBudAmnt,Sheet1!S71_SA34dCode,$AC:$AC,Sheet1!S71_DepCode,$AD:$AD)","v":0},{"$f":"SUMIFS(Sheet1!S71_AdjustmentBudAmnt,Sheet1!S71_SA34dCode,$AC:$AC,Sheet1!S71_DepCode,$AD:$AD)","v":0},{"$f":"SUMIFS(Sheet1!S71_AdjustmentBudAmnt,Sheet1!S71_SA34dCode,$AC:$AC,Sheet1!S71_DepCode,$AD:$AD)","v":0},{"$f":"SUMIFS(Sheet1!S71_ASBudgetAmount,Sheet1!S71_SA34dCode,$AC:$AC,Sheet1!S71_DepCode,$AD:$AD)","v":0},{"$f":"SUMIFS(Sheet1!S71_OY1BudgetAmount,Sheet1!S71_SA34dCode,$AC:$AC,Sheet1!S71_DepCode,$AD:$AD)","v":0},{"$f":"SUMIFS(Sheet1!S71_OY2BudgetAmount,Sheet1!S71_SA34dCode,$AC:$AC,Sheet1!S71_DepCode,$AD:$AD)","v":0},null,null,null,null,null,null,null,null,null,null,null,null,null,null,null,null,null,"0220","DP"]
["HV Switching Station",null,{"$f":"SUMIFS(Sheet1!S71_PPPYearAmount,Sheet1!S71_SA34dCode,$AC:$AC,Sheet1!S71_DepCode,$AD:$AD)","v":0},{"$f":"SUMIFS(Sheet1!S71_PPYearAmount,Sheet1!S71_SA34dCode,$AC:$AC,Sheet1!S71_DepCode,$AD:$AD)","v":0},{"$f":"SUMIFS(Sheet1!S71_PYearAmount,Sheet1!S71_SA34dCode,$AC:$AC,Sheet1!S71_DepCode,$AD:$AD)","v":0},{"$f":"SUMIFS(Sheet1!S71_OriginalBudAmnt,Sheet1!S71_SA34dCode,$AC:$AC,Sheet1!S71_DepCode,$AD:$AD)","v":0},{"$f":"SUMIFS(Sheet1!S71_AdjustmentBudAmnt,Sheet1!S71_SA34dCode,$AC:$AC,Sheet1!S71_DepCode,$AD:$AD)","v":0},{"$f":"SUMIFS(Sheet1!S71_AdjustmentBudAmnt,Sheet1!S71_SA34dCode,$AC:$AC,Sheet1!S71_DepCode,$AD:$AD)","v":0},{"$f":"SUMIFS(Sheet1!S71_ASBudgetAmount,Sheet1!S71_SA34dCode,$AC:$AC,Sheet1!S71_DepCode,$AD:$AD)","v":0},{"$f":"SUMIFS(Sheet1!S71_OY1BudgetAmount,Sheet1!S71_SA34dCode,$AC:$AC,Sheet1!S71_DepCode,$AD:$AD)","v":0},{"$f":"SUMIFS(Sheet1!S71_OY2BudgetAmount,Sheet1!S71_SA34dCode,$AC:$AC,Sheet1!S71_DepCode,$AD:$AD)","v":0},null,null,null,null,null,null,null,null,null,null,null,null,null,null,null,null,null,"0230","DP"]
["HV Transmission Conductors",null,{"$f":"SUMIFS(Sheet1!S71_PPPYearAmount,Sheet1!S71_SA34dCode,$AC:$AC,Sheet1!S71_DepCode,$AD:$AD)","v":0},{"$f":"SUMIFS(Sheet1!S71_PPYearAmount,Sheet1!S71_SA34dCode,$AC:$AC,Sheet1!S71_DepCode,$AD:$AD)","v":0},{"$f":"SUMIFS(Sheet1!S71_PYearAmount,Sheet1!S71_SA34dCode,$AC:$AC,Sheet1!S71_DepCode,$AD:$AD)","v":0},{"$f":"SUMIFS(Sheet1!S71_OriginalBudAmnt,Sheet1!S71_SA34dCode,$AC:$AC,Sheet1!S71_DepCode,$AD:$AD)","v":0},{"$f":"SUMIFS(Sheet1!S71_AdjustmentBudAmnt,Sheet1!S71_SA34dCode,$AC:$AC,Sheet1!S71_DepCode,$AD:$AD)","v":0},{"$f":"SUMIFS(Sheet1!S71_AdjustmentBudAmnt,Sheet1!S71_SA34dCode,$AC:$AC,Sheet1!S71_DepCode,$AD:$AD)","v":0},{"$f":"SUMIFS(Sheet1!S71_ASBudgetAmount,Sheet1!S71_SA34dCode,$AC:$AC,Sheet1!S71_DepCode,$AD:$AD)","v":0},{"$f":"SUMIFS(Sheet1!S71_OY1BudgetAmount,Sheet1!S71_SA34dCode,$AC:$AC,Sheet1!S71_DepCode,$AD:$AD)","v":0},{"$f":"SUMIFS(Sheet1!S71_OY2BudgetAmount,Sheet1!S71_SA34dCode,$AC:$AC,Sheet1!S71_DepCode,$AD:$AD)","v":0},null,null,null,null,null,null,null,null,null,null,null,null,null,null,null,null,null,"0240","DP"]
["MV Substations",null,{"$f":"SUMIFS(Sheet1!S71_PPPYearAmount,Sheet1!S71_SA34dCode,$AC:$AC,Sheet1!S71_DepCode,$AD:$AD)","v":0},{"$f":"SUMIFS(Sheet1!S71_PPYearAmount,Sheet1!S71_SA34dCode,$AC:$AC,Sheet1!S71_DepCode,$AD:$AD)","v":0},{"$f":"SUMIFS(Sheet1!S71_PYearAmount,Sheet1!S71_SA34dCode,$AC:$AC,Sheet1!S71_DepCode,$AD:$AD)","v":0},{"$f":"SUMIFS(Sheet1!S71_OriginalBudAmnt,Sheet1!S71_SA34dCode,$AC:$AC,Sheet1!S71_DepCode,$AD:$AD)","v":0},{"$f":"SUMIFS(Sheet1!S71_AdjustmentBudAmnt,Sheet1!S71_SA34dCode,$AC:$AC,Sheet1!S71_DepCode,$AD:$AD)","v":0},{"$f":"SUMIFS(Sheet1!S71_AdjustmentBudAmnt,Sheet1!S71_SA34dCode,$AC:$AC,Sheet1!S71_DepCode,$AD:$AD)","v":0},{"$f":"SUMIFS(Sheet1!S71_ASBudgetAmount,Sheet1!S71_SA34dCode,$AC:$AC,Sheet1!S71_DepCode,$AD:$AD)","v":0},{"$f":"SUMIFS(Sheet1!S71_OY1BudgetAmount,Sheet1!S71_SA34dCode,$AC:$AC,Sheet1!S71_DepCode,$AD:$AD)","v":0},{"$f":"SUMIFS(Sheet1!S71_OY2BudgetAmount,Sheet1!S71_SA34dCode,$AC:$AC,Sheet1!S71_DepCode,$AD:$AD)","v":0},null,null,null,null,null,null,null,null,null,null,null,null,null,null,null,null,null,"0250","DP"]
["MV Switching Stations",null,{"$f":"SUMIFS(Sheet1!S71_PPPYearAmount,Sheet1!S71_SA34dCode,$AC:$AC,Sheet1!S71_DepCode,$AD:$AD)","v":0},{"$f":"SUMIFS(Sheet1!S71_PPYearAmount,Sheet1!S71_SA34dCode,$AC:$AC,Sheet1!S71_DepCode,$AD:$AD)","v":0},{"$f":"SUMIFS(Sheet1!S71_PYearAmount,Sheet1!S71_SA34dCode,$AC:$AC,Sheet1!S71_DepCode,$AD:$AD)","v":0},{"$f":"SUMIFS(Sheet1!S71_OriginalBudAmnt,Sheet1!S71_SA34dCode,$AC:$AC,Sheet1!S71_DepCode,$AD:$AD)","v":0},{"$f":"SUMIFS(Sheet1!S71_AdjustmentBudAmnt,Sheet1!S71_SA34dCode,$AC:$AC,Sheet1!S71_DepCode,$AD:$AD)","v":0},{"$f":"SUMIFS(Sheet1!S71_AdjustmentBudAmnt,Sheet1!S71_SA34dCode,$AC:$AC,Sheet1!S71_DepCode,$AD:$AD)","v":0},{"$f":"SUMIFS(Sheet1!S71_ASBudgetAmount,Sheet1!S71_SA34dCode,$AC:$AC,Sheet1!S71_DepCode,$AD:$AD)","v":0},{"$f":"SUMIFS(Sheet1!S71_OY1BudgetAmount,Sheet1!S71_SA34dCode,$AC:$AC,Sheet1!S71_DepCode,$AD:$AD)","v":0},{"$f":"SUMIFS(Sheet1!S71_OY2BudgetAmount,Sheet1!S71_SA34dCode,$AC:$AC,Sheet1!S71_DepCode,$AD:$AD)","v":0},null,null,null,null,null,null,null,null,null,null,null,null,null,null,null,null,null,"0260","DP"]
["MV Networks",null,{"$f":"SUMIFS(Sheet1!S71_PPPYearAmount,Sheet1!S71_SA34dCode,$AC:$AC,Sheet1!S71_DepCode,$AD:$AD)","v":0},{"$f":"SUMIFS(Sheet1!S71_PPYearAmount,Sheet1!S71_SA34dCode,$AC:$AC,Sheet1!S71_DepCode,$AD:$AD)","v":0},{"$f":"SUMIFS(Sheet1!S71_PYearAmount,Sheet1!S71_SA34dCode,$AC:$AC,Sheet1!S71_DepCode,$AD:$AD)","v":0},{"$f":"SUMIFS(Sheet1!S71_OriginalBudAmnt,Sheet1!S71_SA34dCode,$AC:$AC,Sheet1!S71_DepCode,$AD:$AD)","v":0},{"$f":"SUMIFS(Sheet1!S71_AdjustmentBudAmnt,Sheet1!S71_SA34dCode,$AC:$AC,Sheet1!S71_DepCode,$AD:$AD)","v":0},{"$f":"SUMIFS(Sheet1!S71_AdjustmentBudAmnt,Sheet1!S71_SA34dCode,$AC:$AC,Sheet1!S71_DepCode,$AD:$AD)","v":0},{"$f":"SUMIFS(Sheet1!S71_ASBudgetAmount,Sheet1!S71_SA34dCode,$AC:$AC,Sheet1!S71_DepCode,$AD:$AD)","v":0},{"$f":"SUMIFS(Sheet1!S71_OY1BudgetAmount,Sheet1!S71_SA34dCode,$AC:$AC,Sheet1!S71_DepCode,$AD:$AD)","v":0},{"$f":"SUMIFS(Sheet1!S71_OY2BudgetAmount,Sheet1!S71_SA34dCode,$AC:$AC,Sheet1!S71_DepCode,$AD:$AD)","v":0},null,null,null,null,null,null,null,null,null,null,null,null,null,null,null,null,null,"0270","DP"]
["LV Networks",null,{"$f":"SUMIFS(Sheet1!S71_PPPYearAmount,Sheet1!S71_SA34dCode,$AC:$AC,Sheet1!S71_DepCode,$AD:$AD)","v":0},{"$f":"SUMIFS(Sheet1!S71_PPYearAmount,Sheet1!S71_SA34dCode,$AC:$AC,Sheet1!S71_DepCode,$AD:$AD)","v":0},{"$f":"SUMIFS(Sheet1!S71_PYearAmount,Sheet1!S71_SA34dCode,$AC:$AC,Sheet1!S71_DepCode,$AD:$AD)","v":0},{"$f":"SUMIFS(Sheet1!S71_OriginalBudAmnt,Sheet1!S71_SA34dCode,$AC:$AC,Sheet1!S71_DepCode,$AD:$AD)","v":0},{"$f":"SUMIFS(Sheet1!S71_AdjustmentBudAmnt,Sheet1!S71_SA34dCode,$AC:$AC,Sheet1!S71_DepCode,$AD:$AD)","v":0},{"$f":"SUMIFS(Sheet1!S71_AdjustmentBudAmnt,Sheet1!S71_SA34dCode,$AC:$AC,Sheet1!S71_DepCode,$AD:$AD)","v":0},{"$f":"SUMIFS(Sheet1!S71_ASBudgetAmount,Sheet1!S71_SA34dCode,$AC:$AC,Sheet1!S71_DepCode,$AD:$AD)","v":0},{"$f":"SUMIFS(Sheet1!S71_OY1BudgetAmount,Sheet1!S71_SA34dCode,$AC:$AC,Sheet1!S71_DepCode,$AD:$AD)","v":0},{"$f":"SUMIFS(Sheet1!S71_OY2BudgetAmount,Sheet1!S71_SA34dCode,$AC:$AC,Sheet1!S71_DepCode,$AD:$AD)","v":0},null,null,null,null,null,null,null,null,null,null,null,null,null,null,null,null,null,"0280","DP"]
["Capital Spares",null,{"$f":"SUMIFS(Sheet1!S71_PPPYearAmount,Sheet1!S71_SA34dCode,$AC:$AC,Sheet1!S71_DepCode,$AD:$AD)","v":0},{"$f":"SUMIFS(Sheet1!S71_PPYearAmount,Sheet1!S71_SA34dCode,$AC:$AC,Sheet1!S71_DepCode,$AD:$AD)","v":0},{"$f":"SUMIFS(Sheet1!S71_PYearAmount,Sheet1!S71_SA34dCode,$AC:$AC,Sheet1!S71_DepCode,$AD:$AD)","v":0},{"$f":"SUMIFS(Sheet1!S71_OriginalBudAmnt,Sheet1!S71_SA34dCode,$AC:$AC,Sheet1!S71_DepCode,$AD:$AD)","v":0},{"$f":"SUMIFS(Sheet1!S71_AdjustmentBudAmnt,Sheet1!S71_SA34dCode,$AC:$AC,Sheet1!S71_DepCode,$AD:$AD)","v":0},{"$f":"SUMIFS(Sheet1!S71_AdjustmentBudAmnt,Sheet1!S71_SA34dCode,$AC:$AC,Sheet1!S71_DepCode,$AD:$AD)","v":0},{"$f":"SUMIFS(Sheet1!S71_ASBudgetAmount,Sheet1!S71_SA34dCode,$AC:$AC,Sheet1!S71_DepCode,$AD:$AD)","v":0},{"$f":"SUMIFS(Sheet1!S71_OY1BudgetAmount,Sheet1!S71_SA34dCode,$AC:$AC,Sheet1!S71_DepCode,$AD:$AD)","v":0},{"$f":"SUMIFS(Sheet1!S71_OY2BudgetAmount,Sheet1!S71_SA34dCode,$AC:$AC,Sheet1!S71_DepCode,$AD:$AD)","v":0},null,null,null,null,null,null,null,null,null,null,null,null,null,null,null,null,null,"0290","DP"]
["Water Supply Infrastructure",null,{"$f":"SUM(C27:C36)","v":0},{"$f":"SUM(D27:D36)","v":0},0,0,0,0,0,0,0,null,null,null,null,null,null,null,null,null,null,null,null,null,null,null,null,null,null,"DP"]
["Dams and Weirs",null,{"$f":"SUMIFS(Sheet1!S71_PPPYearAmount,Sheet1!S71_SA34dCode,$AC:$AC,Sheet1!S71_DepCode,$AD:$AD)","v":0},{"$f":"SUMIFS(Sheet1!S71_PPYearAmount,Sheet1!S71_SA34dCode,$AC:$AC,Sheet1!S71_DepCode,$AD:$AD)","v":0},{"$f":"SUMIFS(Sheet1!S71_PYearAmount,Sheet1!S71_SA34dCode,$AC:$AC,Sheet1!S71_DepCode,$AD:$AD)","v":0},{"$f":"SUMIFS(Sheet1!S71_OriginalBudAmnt,Sheet1!S71_SA34dCode,$AC:$AC,Sheet1!S71_DepCode,$AD:$AD)","v":0},{"$f":"SUMIFS(Sheet1!S71_AdjustmentBudAmnt,Sheet1!S71_SA34dCode,$AC:$AC,Sheet1!S71_DepCode,$AD:$AD)","v":0},{"$f":"SUMIFS(Sheet1!S71_AdjustmentBudAmnt,Sheet1!S71_SA34dCode,$AC:$AC,Sheet1!S71_DepCode,$AD:$AD)","v":0},{"$f":"SUMIFS(Sheet1!S71_ASBudgetAmount,Sheet1!S71_SA34dCode,$AC:$AC,Sheet1!S71_DepCode,$AD:$AD)","v":0},{"$f":"SUMIFS(Sheet1!S71_OY1BudgetAmount,Sheet1!S71_SA34dCode,$AC:$AC,Sheet1!S71_DepCode,$AD:$AD)","v":0},{"$f":"SUMIFS(Sheet1!S71_OY2BudgetAmount,Sheet1!S71_SA34dCode,$AC:$AC,Sheet1!S71_DepCode,$AD:$AD)","v":0},null,null,null,null,null,null,null,null,null,null,null,null,null,null,null,null,null,"0310","DP"]
["Boreholes",null,{"$f":"SUMIFS(Sheet1!S71_PPPYearAmount,Sheet1!S71_SA34dCode,$AC:$AC,Sheet1!S71_DepCode,$AD:$AD)","v":0},{"$f":"SUMIFS(Sheet1!S71_PPYearAmount,Sheet1!S71_SA34dCode,$AC:$AC,Sheet1!S71_DepCode,$AD:$AD)","v":0},{"$f":"SUMIFS(Sheet1!S71_PYearAmount,Sheet1!S71_SA34dCode,$AC:$AC,Sheet1!S71_DepCode,$AD:$AD)","v":0},{"$f":"SUMIFS(Sheet1!S71_OriginalBudAmnt,Sheet1!S71_SA34dCode,$AC:$AC,Sheet1!S71_DepCode,$AD:$AD)","v":0},{"$f":"SUMIFS(Sheet1!S71_AdjustmentBudAmnt,Sheet1!S71_SA34dCode,$AC:$AC,Sheet1!S71_DepCode,$AD:$AD)","v":0},{"$f":"SUMIFS(Sheet1!S71_AdjustmentBudAmnt,Sheet1!S71_SA34dCode,$AC:$AC,Sheet1!S71_DepCode,$AD:$AD)","v":0},{"$f":"SUMIFS(Sheet1!S71_ASBudgetAmount,Sheet1!S71_SA34dCode,$AC:$AC,Sheet1!S71_DepCode,$AD:$AD)","v":0},{"$f":"SUMIFS(Sheet1!S71_OY1BudgetAmount,Sheet1!S71_SA34dCode,$AC:$AC,Sheet1!S71_DepCode,$AD:$AD)","v":0},{"$f":"SUMIFS(Sheet1!S71_OY2BudgetAmount,Sheet1!S71_SA34dCode,$AC:$AC,Sheet1!S71_DepCode,$AD:$AD)","v":0},null,null,null,null,null,null,null,null,null,null,null,null,null,null,null,null,null,"0320","DP"]
["Reservoirs",null,{"$f":"SUMIFS(Sheet1!S71_PPPYearAmount,Sheet1!S71_SA34dCode,$AC:$AC,Sheet1!S71_DepCode,$AD:$AD)","v":0},{"$f":"SUMIFS(Sheet1!S71_PPYearAmount,Sheet1!S71_SA34dCode,$AC:$AC,Sheet1!S71_DepCode,$AD:$AD)","v":0},{"$f":"SUMIFS(Sheet1!S71_PYearAmount,Sheet1!S71_SA34dCode,$AC:$AC,Sheet1!S71_DepCode,$AD:$AD)","v":0},{"$f":"SUMIFS(Sheet1!S71_OriginalBudAmnt,Sheet1!S71_SA34dCode,$AC:$AC,Sheet1!S71_DepCode,$AD:$AD)","v":0},{"$f":"SUMIFS(Sheet1!S71_AdjustmentBudAmnt,Sheet1!S71_SA34dCode,$AC:$AC,Sheet1!S71_DepCode,$AD:$AD)","v":0},{"$f":"SUMIFS(Sheet1!S71_AdjustmentBudAmnt,Sheet1!S71_SA34dCode,$AC:$AC,Sheet1!S71_DepCode,$AD:$AD)","v":0},{"$f":"SUMIFS(Sheet1!S71_ASBudgetAmount,Sheet1!S71_SA34dCode,$AC:$AC,Sheet1!S71_DepCode,$AD:$AD)","v":0},{"$f":"SUMIFS(Sheet1!S71_OY1BudgetAmount,Sheet1!S71_SA34dCode,$AC:$AC,Sheet1!S71_DepCode,$AD:$AD)","v":0},{"$f":"SUMIFS(Sheet1!S71_OY2BudgetAmount,Sheet1!S71_SA34dCode,$AC:$AC,Sheet1!S71_DepCode,$AD:$AD)","v":0},null,null,null,null,null,null,null,null,null,null,null,null,null,null,null,null,null,"0330","DP"]
["Pump Stations",null,{"$f":"SUMIFS(Sheet1!S71_PPPYearAmount,Sheet1!S71_SA34dCode,$AC:$AC,Sheet1!S71_DepCode,$AD:$AD)","v":0},{"$f":"SUMIFS(Sheet1!S71_PPYearAmount,Sheet1!S71_SA34dCode,$AC:$AC,Sheet1!S71_DepCode,$AD:$AD)","v":0},{"$f":"SUMIFS(Sheet1!S71_PYearAmount,Sheet1!S71_SA34dCode,$AC:$AC,Sheet1!S71_DepCode,$AD:$AD)","v":0},{"$f":"SUMIFS(Sheet1!S71_OriginalBudAmnt,Sheet1!S71_SA34dCode,$AC:$AC,Sheet1!S71_DepCode,$AD:$AD)","v":0},{"$f":"SUMIFS(Sheet1!S71_AdjustmentBudAmnt,Sheet1!S71_SA34dCode,$AC:$AC,Sheet1!S71_DepCode,$AD:$AD)","v":0},{"$f":"SUMIFS(Sheet1!S71_AdjustmentBudAmnt,Sheet1!S71_SA34dCode,$AC:$AC,Sheet1!S71_DepCode,$AD:$AD)","v":0},{"$f":"SUMIFS(Sheet1!S71_ASBudgetAmount,Sheet1!S71_SA34dCode,$AC:$AC,Sheet1!S71_DepCode,$AD:$AD)","v":0},{"$f":"SUMIFS(Sheet1!S71_OY1BudgetAmount,Sheet1!S71_SA34dCode,$AC:$AC,Sheet1!S71_DepCode,$AD:$AD)","v":0},{"$f":"SUMIFS(Sheet1!S71_OY2BudgetAmount,Sheet1!S71_SA34dCode,$AC:$AC,Sheet1!S71_DepCode,$AD:$AD)","v":0},null,null,null,null,null,null,null,null,null,null,null,null,null,null,null,null,null,"0340","DP"]
["Water Treatment Works",null,{"$f":"SUMIFS(Sheet1!S71_PPPYearAmount,Sheet1!S71_SA34dCode,$AC:$AC,Sheet1!S71_DepCode,$AD:$AD)","v":0},{"$f":"SUMIFS(Sheet1!S71_PPYearAmount,Sheet1!S71_SA34dCode,$AC:$AC,Sheet1!S71_DepCode,$AD:$AD)","v":0},{"$f":"SUMIFS(Sheet1!S71_PYearAmount,Sheet1!S71_SA34dCode,$AC:$AC,Sheet1!S71_DepCode,$AD:$AD)","v":0},{"$f":"SUMIFS(Sheet1!S71_OriginalBudAmnt,Sheet1!S71_SA34dCode,$AC:$AC,Sheet1!S71_DepCode,$AD:$AD)","v":0},{"$f":"SUMIFS(Sheet1!S71_AdjustmentBudAmnt,Sheet1!S71_SA34dCode,$AC:$AC,Sheet1!S71_DepCode,$AD:$AD)","v":0},{"$f":"SUMIFS(Sheet1!S71_AdjustmentBudAmnt,Sheet1!S71_SA34dCode,$AC:$AC,Sheet1!S71_DepCode,$AD:$AD)","v":0},{"$f":"SUMIFS(Sheet1!S71_ASBudgetAmount,Sheet1!S71_SA34dCode,$AC:$AC,Sheet1!S71_DepCode,$AD:$AD)","v":0},{"$f":"SUMIFS(Sheet1!S71_OY1BudgetAmount,Sheet1!S71_SA34dCode,$AC:$AC,Sheet1!S71_DepCode,$AD:$AD)","v":0},{"$f":"SUMIFS(Sheet1!S71_OY2BudgetAmount,Sheet1!S71_SA34dCode,$AC:$AC,Sheet1!S71_DepCode,$AD:$AD)","v":0},null,null,null,null,null,null,null,null,null,null,null,null,null,null,null,null,null,"0350","DP"]
["Bulk Mains",null,{"$f":"SUMIFS(Sheet1!S71_PPPYearAmount,Sheet1!S71_SA34dCode,$AC:$AC,Sheet1!S71_DepCode,$AD:$AD)","v":0},{"$f":"SUMIFS(Sheet1!S71_PPYearAmount,Sheet1!S71_SA34dCode,$AC:$AC,Sheet1!S71_DepCode,$AD:$AD)","v":0},{"$f":"SUMIFS(Sheet1!S71_PYearAmount,Sheet1!S71_SA34dCode,$AC:$AC,Sheet1!S71_DepCode,$AD:$AD)","v":0},{"$f":"SUMIFS(Sheet1!S71_OriginalBudAmnt,Sheet1!S71_SA34dCode,$AC:$AC,Sheet1!S71_DepCode,$AD:$AD)","v":0},{"$f":"SUMIFS(Sheet1!S71_AdjustmentBudAmnt,Sheet1!S71_SA34dCode,$AC:$AC,Sheet1!S71_DepCode,$AD:$AD)","v":0},{"$f":"SUMIFS(Sheet1!S71_AdjustmentBudAmnt,Sheet1!S71_SA34dCode,$AC:$AC,Sheet1!S71_DepCode,$AD:$AD)","v":0},{"$f":"SUMIFS(Sheet1!S71_ASBudgetAmount,Sheet1!S71_SA34dCode,$AC:$AC,Sheet1!S71_DepCode,$AD:$AD)","v":0},{"$f":"SUMIFS(Sheet1!S71_OY1BudgetAmount,Sheet1!S71_SA34dCode,$AC:$AC,Sheet1!S71_DepCode,$AD:$AD)","v":0},{"$f":"SUMIFS(Sheet1!S71_OY2BudgetAmount,Sheet1!S71_SA34dCode,$AC:$AC,Sheet1!S71_DepCode,$AD:$AD)","v":0},null,null,null,null,null,null,null,null,null,null,null,null,null,null,null,null,null,"0360","DP"]
["Distribution",null,{"$f":"SUMIFS(Sheet1!S71_PPPYearAmount,Sheet1!S71_SA34dCode,$AC:$AC,Sheet1!S71_DepCode,$AD:$AD)","v":0},{"$f":"SUMIFS(Sheet1!S71_PPYearAmount,Sheet1!S71_SA34dCode,$AC:$AC,Sheet1!S71_DepCode,$AD:$AD)","v":0},{"$f":"SUMIFS(Sheet1!S71_PYearAmount,Sheet1!S71_SA34dCode,$AC:$AC,Sheet1!S71_DepCode,$AD:$AD)","v":0},{"$f":"SUMIFS(Sheet1!S71_OriginalBudAmnt,Sheet1!S71_SA34dCode,$AC:$AC,Sheet1!S71_DepCode,$AD:$AD)","v":0},{"$f":"SUMIFS(Sheet1!S71_AdjustmentBudAmnt,Sheet1!S71_SA34dCode,$AC:$AC,Sheet1!S71_DepCode,$AD:$AD)","v":0},{"$f":"SUMIFS(Sheet1!S71_AdjustmentBudAmnt,Sheet1!S71_SA34dCode,$AC:$AC,Sheet1!S71_DepCode,$AD:$AD)","v":0},{"$f":"SUMIFS(Sheet1!S71_ASBudgetAmount,Sheet1!S71_SA34dCode,$AC:$AC,Sheet1!S71_DepCode,$AD:$AD)","v":0},{"$f":"SUMIFS(Sheet1!S71_OY1BudgetAmount,Sheet1!S71_SA34dCode,$AC:$AC,Sheet1!S71_DepCode,$AD:$AD)","v":0},{"$f":"SUMIFS(Sheet1!S71_OY2BudgetAmount,Sheet1!S71_SA34dCode,$AC:$AC,Sheet1!S71_DepCode,$AD:$AD)","v":0},null,null,null,null,null,null,null,null,null,null,null,null,null,null,null,null,null,"0370","DP"]
["Distribution Points",null,{"$f":"SUMIFS(Sheet1!S71_PPPYearAmount,Sheet1!S71_SA34dCode,$AC:$AC,Sheet1!S71_DepCode,$AD:$AD)","v":0},{"$f":"SUMIFS(Sheet1!S71_PPYearAmount,Sheet1!S71_SA34dCode,$AC:$AC,Sheet1!S71_DepCode,$AD:$AD)","v":0},{"$f":"SUMIFS(Sheet1!S71_PYearAmount,Sheet1!S71_SA34dCode,$AC:$AC,Sheet1!S71_DepCode,$AD:$AD)","v":0},{"$f":"SUMIFS(Sheet1!S71_OriginalBudAmnt,Sheet1!S71_SA34dCode,$AC:$AC,Sheet1!S71_DepCode,$AD:$AD)","v":0},{"$f":"SUMIFS(Sheet1!S71_AdjustmentBudAmnt,Sheet1!S71_SA34dCode,$AC:$AC,Sheet1!S71_DepCode,$AD:$AD)","v":0},{"$f":"SUMIFS(Sheet1!S71_AdjustmentBudAmnt,Sheet1!S71_SA34dCode,$AC:$AC,Sheet1!S71_DepCode,$AD:$AD)","v":0},{"$f":"SUMIFS(Sheet1!S71_ASBudgetAmount,Sheet1!S71_SA34dCode,$AC:$AC,Sheet1!S71_DepCode,$AD:$AD)","v":0},{"$f":"SUMIFS(Sheet1!S71_OY1BudgetAmount,Sheet1!S71_SA34dCode,$AC:$AC,Sheet1!S71_DepCode,$AD:$AD)","v":0},{"$f":"SUMIFS(Sheet1!S71_OY2BudgetAmount,Sheet1!S71_SA34dCode,$AC:$AC,Sheet1!S71_DepCode,$AD:$AD)","v":0},null,null,null,null,null,null,null,null,null,null,null,null,null,null,null,null,null,"0380","DP"]
["PRV Stations",null,{"$f":"SUMIFS(Sheet1!S71_PPPYearAmount,Sheet1!S71_SA34dCode,$AC:$AC,Sheet1!S71_DepCode,$AD:$AD)","v":0},{"$f":"SUMIFS(Sheet1!S71_PPYearAmount,Sheet1!S71_SA34dCode,$AC:$AC,Sheet1!S71_DepCode,$AD:$AD)","v":0},{"$f":"SUMIFS(Sheet1!S71_PYearAmount,Sheet1!S71_SA34dCode,$AC:$AC,Sheet1!S71_DepCode,$AD:$AD)","v":0},{"$f":"SUMIFS(Sheet1!S71_OriginalBudAmnt,Sheet1!S71_SA34dCode,$AC:$AC,Sheet1!S71_DepCode,$AD:$AD)","v":0},{"$f":"SUMIFS(Sheet1!S71_AdjustmentBudAmnt,Sheet1!S71_SA34dCode,$AC:$AC,Sheet1!S71_DepCode,$AD:$AD)","v":0},{"$f":"SUMIFS(Sheet1!S71_AdjustmentBudAmnt,Sheet1!S71_SA34dCode,$AC:$AC,Sheet1!S71_DepCode,$AD:$AD)","v":0},{"$f":"SUMIFS(Sheet1!S71_ASBudgetAmount,Sheet1!S71_SA34dCode,$AC:$AC,Sheet1!S71_DepCode,$AD:$AD)","v":0},{"$f":"SUMIFS(Sheet1!S71_OY1BudgetAmount,Sheet1!S71_SA34dCode,$AC:$AC,Sheet1!S71_DepCode,$AD:$AD)","v":0},{"$f":"SUMIFS(Sheet1!S71_OY2BudgetAmount,Sheet1!S71_SA34dCode,$AC:$AC,Sheet1!S71_DepCode,$AD:$AD)","v":0},null,null,null,null,null,null,null,null,null,null,null,null,null,null,null,null,null,"0390","DP"]
["Capital Spares",null,{"$f":"SUMIFS(Sheet1!S71_PPPYearAmount,Sheet1!S71_SA34dCode,$AC:$AC,Sheet1!S71_DepCode,$AD:$AD)","v":0},{"$f":"SUMIFS(Sheet1!S71_PPYearAmount,Sheet1!S71_SA34dCode,$AC:$AC,Sheet1!S71_DepCode,$AD:$AD)","v":0},{"$f":"SUMIFS(Sheet1!S71_PYearAmount,Sheet1!S71_SA34dCode,$AC:$AC,Sheet1!S71_DepCode,$AD:$AD)","v":0},{"$f":"SUMIFS(Sheet1!S71_OriginalBudAmnt,Sheet1!S71_SA34dCode,$AC:$AC,Sheet1!S71_DepCode,$AD:$AD)","v":0},{"$f":"SUMIFS(Sheet1!S71_AdjustmentBudAmnt,Sheet1!S71_SA34dCode,$AC:$AC,Sheet1!S71_DepCode,$AD:$AD)","v":0},{"$f":"SUMIFS(Sheet1!S71_AdjustmentBudAmnt,Sheet1!S71_SA34dCode,$AC:$AC,Sheet1!S71_DepCode,$AD:$AD)","v":0},{"$f":"SUMIFS(Sheet1!S71_ASBudgetAmount,Sheet1!S71_SA34dCode,$AC:$AC,Sheet1!S71_DepCode,$AD:$AD)","v":0},{"$f":"SUMIFS(Sheet1!S71_OY1BudgetAmount,Sheet1!S71_SA34dCode,$AC:$AC,Sheet1!S71_DepCode,$AD:$AD)","v":0},{"$f":"SUMIFS(Sheet1!S71_OY2BudgetAmount,Sheet1!S71_SA34dCode,$AC:$AC,Sheet1!S71_DepCode,$AD:$AD)","v":0},null,null,null,null,null,null,null,null,null,null,null,null,null,null,null,null,null,"0400","DP"]
["Sanitation Infrastructure",null,{"$f":"SUM(C38:C43)","v":0},{"$f":"SUM(D38:D43)","v":0},0,0,0,0,0,0,0,null,null,null,null,null,null,null,null,null,null,null,null,null,null,null,null,null,null,"DP"]
["Pump Station",null,{"$f":"SUMIFS(Sheet1!S71_PPPYearAmount,Sheet1!S71_SA34dCode,$AC:$AC,Sheet1!S71_DepCode,$AD:$AD)","v":0},{"$f":"SUMIFS(Sheet1!S71_PPYearAmount,Sheet1!S71_SA34dCode,$AC:$AC,Sheet1!S71_DepCode,$AD:$AD)","v":0},{"$f":"SUMIFS(Sheet1!S71_PYearAmount,Sheet1!S71_SA34dCode,$AC:$AC,Sheet1!S71_DepCode,$AD:$AD)","v":0},{"$f":"SUMIFS(Sheet1!S71_OriginalBudAmnt,Sheet1!S71_SA34dCode,$AC:$AC,Sheet1!S71_DepCode,$AD:$AD)","v":0},{"$f":"SUMIFS(Sheet1!S71_AdjustmentBudAmnt,Sheet1!S71_SA34dCode,$AC:$AC,Sheet1!S71_DepCode,$AD:$AD)","v":0},{"$f":"SUMIFS(Sheet1!S71_AdjustmentBudAmnt,Sheet1!S71_SA34dCode,$AC:$AC,Sheet1!S71_DepCode,$AD:$AD)","v":0},{"$f":"SUMIFS(Sheet1!S71_ASBudgetAmount,Sheet1!S71_SA34dCode,$AC:$AC,Sheet1!S71_DepCode,$AD:$AD)","v":0},{"$f":"SUMIFS(Sheet1!S71_OY1BudgetAmount,Sheet1!S71_SA34dCode,$AC:$AC,Sheet1!S71_DepCode,$AD:$AD)","v":0},{"$f":"SUMIFS(Sheet1!S71_OY2BudgetAmount,Sheet1!S71_SA34dCode,$AC:$AC,Sheet1!S71_DepCode,$AD:$AD)","v":0},null,null,null,null,null,null,null,null,null,null,null,null,null,null,null,null,null,"0420","DP"]
["Reticulation",null,{"$f":"SUMIFS(Sheet1!S71_PPPYearAmount,Sheet1!S71_SA34dCode,$AC:$AC,Sheet1!S71_DepCode,$AD:$AD)","v":0},{"$f":"SUMIFS(Sheet1!S71_PPYearAmount,Sheet1!S71_SA34dCode,$AC:$AC,Sheet1!S71_DepCode,$AD:$AD)","v":0},{"$f":"SUMIFS(Sheet1!S71_PYearAmount,Sheet1!S71_SA34dCode,$AC:$AC,Sheet1!S71_DepCode,$AD:$AD)","v":0},{"$f":"SUMIFS(Sheet1!S71_OriginalBudAmnt,Sheet1!S71_SA34dCode,$AC:$AC,Sheet1!S71_DepCode,$AD:$AD)","v":0},{"$f":"SUMIFS(Sheet1!S71_AdjustmentBudAmnt,Sheet1!S71_SA34dCode,$AC:$AC,Sheet1!S71_DepCode,$AD:$AD)","v":0},{"$f":"SUMIFS(Sheet1!S71_AdjustmentBudAmnt,Sheet1!S71_SA34dCode,$AC:$AC,Sheet1!S71_DepCode,$AD:$AD)","v":0},{"$f":"SUMIFS(Sheet1!S71_ASBudgetAmount,Sheet1!S71_SA34dCode,$AC:$AC,Sheet1!S71_DepCode,$AD:$AD)","v":0},{"$f":"SUMIFS(Sheet1!S71_OY1BudgetAmount,Sheet1!S71_SA34dCode,$AC:$AC,Sheet1!S71_DepCode,$AD:$AD)","v":0},{"$f":"SUMIFS(Sheet1!S71_OY2BudgetAmount,Sheet1!S71_SA34dCode,$AC:$AC,Sheet1!S71_DepCode,$AD:$AD)","v":0},null,null,null,null,null,null,null,null,null,null,null,null,null,null,null,null,null,"0430","DP"]
["Waste Water Treatment Works",null,{"$f":"SUMIFS(Sheet1!S71_PPPYearAmount,Sheet1!S71_SA34dCode,$AC:$AC,Sheet1!S71_DepCode,$AD:$AD)","v":0},{"$f":"SUMIFS(Sheet1!S71_PPYearAmount,Sheet1!S71_SA34dCode,$AC:$AC,Sheet1!S71_DepCode,$AD:$AD)","v":0},{"$f":"SUMIFS(Sheet1!S71_PYearAmount,Sheet1!S71_SA34dCode,$AC:$AC,Sheet1!S71_DepCode,$AD:$AD)","v":0},{"$f":"SUMIFS(Sheet1!S71_OriginalBudAmnt,Sheet1!S71_SA34dCode,$AC:$AC,Sheet1!S71_DepCode,$AD:$AD)","v":0},{"$f":"SUMIFS(Sheet1!S71_AdjustmentBudAmnt,Sheet1!S71_SA34dCode,$AC:$AC,Sheet1!S71_DepCode,$AD:$AD)","v":0},{"$f":"SUMIFS(Sheet1!S71_AdjustmentBudAmnt,Sheet1!S71_SA34dCode,$AC:$AC,Sheet1!S71_DepCode,$AD:$AD)","v":0},{"$f":"SUMIFS(Sheet1!S71_ASBudgetAmount,Sheet1!S71_SA34dCode,$AC:$AC,Sheet1!S71_DepCode,$AD:$AD)","v":0},{"$f":"SUMIFS(Sheet1!S71_OY1BudgetAmount,Sheet1!S71_SA34dCode,$AC:$AC,Sheet1!S71_DepCode,$AD:$AD)","v":0},{"$f":"SUMIFS(Sheet1!S71_OY2BudgetAmount,Sheet1!S71_SA34dCode,$AC:$AC,Sheet1!S71_DepCode,$AD:$AD)","v":0},null,null,null,null,null,null,null,null,null,null,null,null,null,null,null,null,null,"0440","DP"]
["Outfall Sewers",null,{"$f":"SUMIFS(Sheet1!S71_PPPYearAmount,Sheet1!S71_SA34dCode,$AC:$AC,Sheet1!S71_DepCode,$AD:$AD)","v":0},{"$f":"SUMIFS(Sheet1!S71_PPYearAmount,Sheet1!S71_SA34dCode,$AC:$AC,Sheet1!S71_DepCode,$AD:$AD)","v":0},{"$f":"SUMIFS(Sheet1!S71_PYearAmount,Sheet1!S71_SA34dCode,$AC:$AC,Sheet1!S71_DepCode,$AD:$AD)","v":0},{"$f":"SUMIFS(Sheet1!S71_OriginalBudAmnt,Sheet1!S71_SA34dCode,$AC:$AC,Sheet1!S71_DepCode,$AD:$AD)","v":0},{"$f":"SUMIFS(Sheet1!S71_AdjustmentBudAmnt,Sheet1!S71_SA34dCode,$AC:$AC,Sheet1!S71_DepCode,$AD:$AD)","v":0},{"$f":"SUMIFS(Sheet1!S71_AdjustmentBudAmnt,Sheet1!S71_SA34dCode,$AC:$AC,Sheet1!S71_DepCode,$AD:$AD)","v":0},{"$f":"SUMIFS(Sheet1!S71_ASBudgetAmount,Sheet1!S71_SA34dCode,$AC:$AC,Sheet1!S71_DepCode,$AD:$AD)","v":0},{"$f":"SUMIFS(Sheet1!S71_OY1BudgetAmount,Sheet1!S71_SA34dCode,$AC:$AC,Sheet1!S71_DepCode,$AD:$AD)","v":0},{"$f":"SUMIFS(Sheet1!S71_OY2BudgetAmount,Sheet1!S71_SA34dCode,$AC:$AC,Sheet1!S71_DepCode,$AD:$AD)","v":0},null,null,null,null,null,null,null,null,null,null,null,null,null,null,null,null,null,"0450","DP"]
["Toilet Facilities",null,{"$f":"SUMIFS(Sheet1!S71_PPPYearAmount,Sheet1!S71_SA34dCode,$AC:$AC,Sheet1!S71_DepCode,$AD:$AD)","v":0},{"$f":"SUMIFS(Sheet1!S71_PPYearAmount,Sheet1!S71_SA34dCode,$AC:$AC,Sheet1!S71_DepCode,$AD:$AD)","v":0},{"$f":"SUMIFS(Sheet1!S71_PYearAmount,Sheet1!S71_SA34dCode,$AC:$AC,Sheet1!S71_DepCode,$AD:$AD)","v":0},{"$f":"SUMIFS(Sheet1!S71_OriginalBudAmnt,Sheet1!S71_SA34dCode,$AC:$AC,Sheet1!S71_DepCode,$AD:$AD)","v":0},{"$f":"SUMIFS(Sheet1!S71_AdjustmentBudAmnt,Sheet1!S71_SA34dCode,$AC:$AC,Sheet1!S71_DepCode,$AD:$AD)","v":0},{"$f":"SUMIFS(Sheet1!S71_AdjustmentBudAmnt,Sheet1!S71_SA34dCode,$AC:$AC,Sheet1!S71_DepCode,$AD:$AD)","v":0},{"$f":"SUMIFS(Sheet1!S71_ASBudgetAmount,Sheet1!S71_SA34dCode,$AC:$AC,Sheet1!S71_DepCode,$AD:$AD)","v":0},{"$f":"SUMIFS(Sheet1!S71_OY1BudgetAmount,Sheet1!S71_SA34dCode,$AC:$AC,Sheet1!S71_DepCode,$AD:$AD)","v":0},{"$f":"SUMIFS(Sheet1!S71_OY2BudgetAmount,Sheet1!S71_SA34dCode,$AC:$AC,Sheet1!S71_DepCode,$AD:$AD)","v":0},null,null,null,null,null,null,null,null,null,null,null,null,null,null,null,null,null,"0460","DP"]
["Capital Spares",null,{"$f":"SUMIFS(Sheet1!S71_PPPYearAmount,Sheet1!S71_SA34dCode,$AC:$AC,Sheet1!S71_DepCode,$AD:$AD)","v":0},{"$f":"SUMIFS(Sheet1!S71_PPYearAmount,Sheet1!S71_SA34dCode,$AC:$AC,Sheet1!S71_DepCode,$AD:$AD)","v":0},{"$f":"SUMIFS(Sheet1!S71_PYearAmount,Sheet1!S71_SA34dCode,$AC:$AC,Sheet1!S71_DepCode,$AD:$AD)","v":0},{"$f":"SUMIFS(Sheet1!S71_OriginalBudAmnt,Sheet1!S71_SA34dCode,$AC:$AC,Sheet1!S71_DepCode,$AD:$AD)","v":0},{"$f":"SUMIFS(Sheet1!S71_AdjustmentBudAmnt,Sheet1!S71_SA34dCode,$AC:$AC,Sheet1!S71_DepCode,$AD:$AD)","v":0},{"$f":"SUMIFS(Sheet1!S71_AdjustmentBudAmnt,Sheet1!S71_SA34dCode,$AC:$AC,Sheet1!S71_DepCode,$AD:$AD)","v":0},{"$f":"SUMIFS(Sheet1!S71_ASBudgetAmount,Sheet1!S71_SA34dCode,$AC:$AC,Sheet1!S71_DepCode,$AD:$AD)","v":0},{"$f":"SUMIFS(Sheet1!S71_OY1BudgetAmount,Sheet1!S71_SA34dCode,$AC:$AC,Sheet1!S71_DepCode,$AD:$AD)","v":0},{"$f":"SUMIFS(Sheet1!S71_OY2BudgetAmount,Sheet1!S71_SA34dCode,$AC:$AC,Sheet1!S71_DepCode,$AD:$AD)","v":0},null,null,null,null,null,null,null,null,null,null,null,null,null,null,null,null,null,"0470","DP"]
["Solid Waste Infrastructure",null,{"$f":"SUM(C45:C51)","v":0},{"$f":"SUM(D45:D51)","v":0},0,0,0,0,0,0,0,null,null,null,null,null,null,null,null,null,null,null,null,null,null,null,null,null,null,"DP"]
["Landfill Sites",null,{"$f":"SUMIFS(Sheet1!S71_PPPYearAmount,Sheet1!S71_SA34dCode,$AC:$AC,Sheet1!S71_DepCode,$AD:$AD)","v":0},{"$f":"SUMIFS(Sheet1!S71_PPYearAmount,Sheet1!S71_SA34dCode,$AC:$AC,Sheet1!S71_DepCode,$AD:$AD)","v":0},{"$f":"SUMIFS(Sheet1!S71_PYearAmount,Sheet1!S71_SA34dCode,$AC:$AC,Sheet1!S71_DepCode,$AD:$AD)","v":0},{"$f":"SUMIFS(Sheet1!S71_OriginalBudAmnt,Sheet1!S71_SA34dCode,$AC:$AC,Sheet1!S71_DepCode,$AD:$AD)","v":0},{"$f":"SUMIFS(Sheet1!S71_AdjustmentBudAmnt,Sheet1!S71_SA34dCode,$AC:$AC,Sheet1!S71_DepCode,$AD:$AD)","v":0},{"$f":"SUMIFS(Sheet1!S71_AdjustmentBudAmnt,Sheet1!S71_SA34dCode,$AC:$AC,Sheet1!S71_DepCode,$AD:$AD)","v":0},{"$f":"SUMIFS(Sheet1!S71_ASBudgetAmount,Sheet1!S71_SA34dCode,$AC:$AC,Sheet1!S71_DepCode,$AD:$AD)","v":0},{"$f":"SUMIFS(Sheet1!S71_OY1BudgetAmount,Sheet1!S71_SA34dCode,$AC:$AC,Sheet1!S71_DepCode,$AD:$AD)","v":0},{"$f":"SUMIFS(Sheet1!S71_OY2BudgetAmount,Sheet1!S71_SA34dCode,$AC:$AC,Sheet1!S71_DepCode,$AD:$AD)","v":0},null,null,null,null,null,null,null,null,null,null,null,null,null,null,null,null,null,"0490","DP"]
["Waste Transfer Stations",null,{"$f":"SUMIFS(Sheet1!S71_PPPYearAmount,Sheet1!S71_SA34dCode,$AC:$AC,Sheet1!S71_DepCode,$AD:$AD)","v":0},{"$f":"SUMIFS(Sheet1!S71_PPYearAmount,Sheet1!S71_SA34dCode,$AC:$AC,Sheet1!S71_DepCode,$AD:$AD)","v":0},{"$f":"SUMIFS(Sheet1!S71_PYearAmount,Sheet1!S71_SA34dCode,$AC:$AC,Sheet1!S71_DepCode,$AD:$AD)","v":0},{"$f":"SUMIFS(Sheet1!S71_OriginalBudAmnt,Sheet1!S71_SA34dCode,$AC:$AC,Sheet1!S71_DepCode,$AD:$AD)","v":0},{"$f":"SUMIFS(Sheet1!S71_AdjustmentBudAmnt,Sheet1!S71_SA34dCode,$AC:$AC,Sheet1!S71_DepCode,$AD:$AD)","v":0},{"$f":"SUMIFS(Sheet1!S71_AdjustmentBudAmnt,Sheet1!S71_SA34dCode,$AC:$AC,Sheet1!S71_DepCode,$AD:$AD)","v":0},{"$f":"SUMIFS(Sheet1!S71_ASBudgetAmount,Sheet1!S71_SA34dCode,$AC:$AC,Sheet1!S71_DepCode,$AD:$AD)","v":0},{"$f":"SUMIFS(Sheet1!S71_OY1BudgetAmount,Sheet1!S71_SA34dCode,$AC:$AC,Sheet1!S71_DepCode,$AD:$AD)","v":0},{"$f":"SUMIFS(Sheet1!S71_OY2BudgetAmount,Sheet1!S71_SA34dCode,$AC:$AC,Sheet1!S71_DepCode,$AD:$AD)","v":0},null,null,null,null,null,null,null,null,null,null,null,null,null,null,null,null,null,"0500","DP"]
["Waste Processing Facilities",null,{"$f":"SUMIFS(Sheet1!S71_PPPYearAmount,Sheet1!S71_SA34dCode,$AC:$AC,Sheet1!S71_DepCode,$AD:$AD)","v":0},{"$f":"SUMIFS(Sheet1!S71_PPYearAmount,Sheet1!S71_SA34dCode,$AC:$AC,Sheet1!S71_DepCode,$AD:$AD)","v":0},{"$f":"SUMIFS(Sheet1!S71_PYearAmount,Sheet1!S71_SA34dCode,$AC:$AC,Sheet1!S71_DepCode,$AD:$AD)","v":0},{"$f":"SUMIFS(Sheet1!S71_OriginalBudAmnt,Sheet1!S71_SA34dCode,$AC:$AC,Sheet1!S71_DepCode,$AD:$AD)","v":0},{"$f":"SUMIFS(Sheet1!S71_AdjustmentBudAmnt,Sheet1!S71_SA34dCode,$AC:$AC,Sheet1!S71_DepCode,$AD:$AD)","v":0},{"$f":"SUMIFS(Sheet1!S71_AdjustmentBudAmnt,Sheet1!S71_SA34dCode,$AC:$AC,Sheet1!S71_DepCode,$AD:$AD)","v":0},{"$f":"SUMIFS(Sheet1!S71_ASBudgetAmount,Sheet1!S71_SA34dCode,$AC:$AC,Sheet1!S71_DepCode,$AD:$AD)","v":0},{"$f":"SUMIFS(Sheet1!S71_OY1BudgetAmount,Sheet1!S71_SA34dCode,$AC:$AC,Sheet1!S71_DepCode,$AD:$AD)","v":0},{"$f":"SUMIFS(Sheet1!S71_OY2BudgetAmount,Sheet1!S71_SA34dCode,$AC:$AC,Sheet1!S71_DepCode,$AD:$AD)","v":0},null,null,null,null,null,null,null,null,null,null,null,null,null,null,null,null,null,"0510","DP"]
["Waste Drop-off Points",null,{"$f":"SUMIFS(Sheet1!S71_PPPYearAmount,Sheet1!S71_SA34dCode,$AC:$AC,Sheet1!S71_DepCode,$AD:$AD)","v":0},{"$f":"SUMIFS(Sheet1!S71_PPYearAmount,Sheet1!S71_SA34dCode,$AC:$AC,Sheet1!S71_DepCode,$AD:$AD)","v":0},{"$f":"SUMIFS(Sheet1!S71_PYearAmount,Sheet1!S71_SA34dCode,$AC:$AC,Sheet1!S71_DepCode,$AD:$AD)","v":0},{"$f":"SUMIFS(Sheet1!S71_OriginalBudAmnt,Sheet1!S71_SA34dCode,$AC:$AC,Sheet1!S71_DepCode,$AD:$AD)","v":0},{"$f":"SUMIFS(Sheet1!S71_AdjustmentBudAmnt,Sheet1!S71_SA34dCode,$AC:$AC,Sheet1!S71_DepCode,$AD:$AD)","v":0},{"$f":"SUMIFS(Sheet1!S71_AdjustmentBudAmnt,Sheet1!S71_SA34dCode,$AC:$AC,Sheet1!S71_DepCode,$AD:$AD)","v":0},{"$f":"SUMIFS(Sheet1!S71_ASBudgetAmount,Sheet1!S71_SA34dCode,$AC:$AC,Sheet1!S71_DepCode,$AD:$AD)","v":0},{"$f":"SUMIFS(Sheet1!S71_OY1BudgetAmount,Sheet1!S71_SA34dCode,$AC:$AC,Sheet1!S71_DepCode,$AD:$AD)","v":0},{"$f":"SUMIFS(Sheet1!S71_OY2BudgetAmount,Sheet1!S71_SA34dCode,$AC:$AC,Sheet1!S71_DepCode,$AD:$AD)","v":0},null,null,null,null,null,null,null,null,null,null,null,null,null,null,null,null,null,"0520","DP"]
["Waste Separation Facilities",null,{"$f":"SUMIFS(Sheet1!S71_PPPYearAmount,Sheet1!S71_SA34dCode,$AC:$AC,Sheet1!S71_DepCode,$AD:$AD)","v":0},{"$f":"SUMIFS(Sheet1!S71_PPYearAmount,Sheet1!S71_SA34dCode,$AC:$AC,Sheet1!S71_DepCode,$AD:$AD)","v":0},{"$f":"SUMIFS(Sheet1!S71_PYearAmount,Sheet1!S71_SA34dCode,$AC:$AC,Sheet1!S71_DepCode,$AD:$AD)","v":0},{"$f":"SUMIFS(Sheet1!S71_OriginalBudAmnt,Sheet1!S71_SA34dCode,$AC:$AC,Sheet1!S71_DepCode,$AD:$AD)","v":0},{"$f":"SUMIFS(Sheet1!S71_AdjustmentBudAmnt,Sheet1!S71_SA34dCode,$AC:$AC,Sheet1!S71_DepCode,$AD:$AD)","v":0},{"$f":"SUMIFS(Sheet1!S71_AdjustmentBudAmnt,Sheet1!S71_SA34dCode,$AC:$AC,Sheet1!S71_DepCode,$AD:$AD)","v":0},{"$f":"SUMIFS(Sheet1!S71_ASBudgetAmount,Sheet1!S71_SA34dCode,$AC:$AC,Sheet1!S71_DepCode,$AD:$AD)","v":0},{"$f":"SUMIFS(Sheet1!S71_OY1BudgetAmount,Sheet1!S71_SA34dCode,$AC:$AC,Sheet1!S71_DepCode,$AD:$AD)","v":0},{"$f":"SUMIFS(Sheet1!S71_OY2BudgetAmount,Sheet1!S71_SA34dCode,$AC:$AC,Sheet1!S71_DepCode,$AD:$AD)","v":0},null,null,null,null,null,null,null,null,null,null,null,null,null,null,null,null,null,"0530","DP"]
["Electricity Generation Facilities",null,{"$f":"SUMIFS(Sheet1!S71_PPPYearAmount,Sheet1!S71_SA34dCode,$AC:$AC,Sheet1!S71_DepCode,$AD:$AD)","v":0},{"$f":"SUMIFS(Sheet1!S71_PPYearAmount,Sheet1!S71_SA34dCode,$AC:$AC,Sheet1!S71_DepCode,$AD:$AD)","v":0},{"$f":"SUMIFS(Sheet1!S71_PYearAmount,Sheet1!S71_SA34dCode,$AC:$AC,Sheet1!S71_DepCode,$AD:$AD)","v":0},{"$f":"SUMIFS(Sheet1!S71_OriginalBudAmnt,Sheet1!S71_SA34dCode,$AC:$AC,Sheet1!S71_DepCode,$AD:$AD)","v":0},{"$f":"SUMIFS(Sheet1!S71_AdjustmentBudAmnt,Sheet1!S71_SA34dCode,$AC:$AC,Sheet1!S71_DepCode,$AD:$AD)","v":0},{"$f":"SUMIFS(Sheet1!S71_AdjustmentBudAmnt,Sheet1!S71_SA34dCode,$AC:$AC,Sheet1!S71_DepCode,$AD:$AD)","v":0},{"$f":"SUMIFS(Sheet1!S71_ASBudgetAmount,Sheet1!S71_SA34dCode,$AC:$AC,Sheet1!S71_DepCode,$AD:$AD)","v":0},{"$f":"SUMIFS(Sheet1!S71_OY1BudgetAmount,Sheet1!S71_SA34dCode,$AC:$AC,Sheet1!S71_DepCode,$AD:$AD)","v":0},{"$f":"SUMIFS(Sheet1!S71_OY2BudgetAmount,Sheet1!S71_SA34dCode,$AC:$AC,Sheet1!S71_DepCode,$AD:$AD)","v":0},null,null,null,null,null,null,null,null,null,null,null,null,null,null,null,null,null,"0540","DP"]
["Capital Spares",null,{"$f":"SUMIFS(Sheet1!S71_PPPYearAmount,Sheet1!S71_SA34dCode,$AC:$AC,Sheet1!S71_DepCode,$AD:$AD)","v":0},{"$f":"SUMIFS(Sheet1!S71_PPYearAmount,Sheet1!S71_SA34dCode,$AC:$AC,Sheet1!S71_DepCode,$AD:$AD)","v":0},{"$f":"SUMIFS(Sheet1!S71_PYearAmount,Sheet1!S71_SA34dCode,$AC:$AC,Sheet1!S71_DepCode,$AD:$AD)","v":0},{"$f":"SUMIFS(Sheet1!S71_OriginalBudAmnt,Sheet1!S71_SA34dCode,$AC:$AC,Sheet1!S71_DepCode,$AD:$AD)","v":0},{"$f":"SUMIFS(Sheet1!S71_AdjustmentBudAmnt,Sheet1!S71_SA34dCode,$AC:$AC,Sheet1!S71_DepCode,$AD:$AD)","v":0},{"$f":"SUMIFS(Sheet1!S71_AdjustmentBudAmnt,Sheet1!S71_SA34dCode,$AC:$AC,Sheet1!S71_DepCode,$AD:$AD)","v":0},{"$f":"SUMIFS(Sheet1!S71_ASBudgetAmount,Sheet1!S71_SA34dCode,$AC:$AC,Sheet1!S71_DepCode,$AD:$AD)","v":0},{"$f":"SUMIFS(Sheet1!S71_OY1BudgetAmount,Sheet1!S71_SA34dCode,$AC:$AC,Sheet1!S71_DepCode,$AD:$AD)","v":0},{"$f":"SUMIFS(Sheet1!S71_OY2BudgetAmount,Sheet1!S71_SA34dCode,$AC:$AC,Sheet1!S71_DepCode,$AD:$AD)","v":0},null,null,null,null,null,null,null,null,null,null,null,null,null,null,null,null,null,"0550","DP"]
["Rail Infrastructure",null,{"$f":"SUM(C53:C61)","v":0},0,0,0,0,0,0,0,0,null,null,null,null,null,null,null,null,null,null,null,null,null,null,null,null,null,null,"DP"]
["Rail Lines",null,{"$f":"SUMIFS(Sheet1!S71_PPPYearAmount,Sheet1!S71_SA34dCode,$AC:$AC,Sheet1!S71_DepCode,$AD:$AD)","v":0},{"$f":"SUMIFS(Sheet1!S71_PPYearAmount,Sheet1!S71_SA34dCode,$AC:$AC,Sheet1!S71_DepCode,$AD:$AD)","v":0},{"$f":"SUMIFS(Sheet1!S71_PYearAmount,Sheet1!S71_SA34dCode,$AC:$AC,Sheet1!S71_DepCode,$AD:$AD)","v":0},{"$f":"SUMIFS(Sheet1!S71_OriginalBudAmnt,Sheet1!S71_SA34dCode,$AC:$AC,Sheet1!S71_DepCode,$AD:$AD)","v":0},{"$f":"SUMIFS(Sheet1!S71_AdjustmentBudAmnt,Sheet1!S71_SA34dCode,$AC:$AC,Sheet1!S71_DepCode,$AD:$AD)","v":0},{"$f":"SUMIFS(Sheet1!S71_AdjustmentBudAmnt,Sheet1!S71_SA34dCode,$AC:$AC,Sheet1!S71_DepCode,$AD:$AD)","v":0},{"$f":"SUMIFS(Sheet1!S71_ASBudgetAmount,Sheet1!S71_SA34dCode,$AC:$AC,Sheet1!S71_DepCode,$AD:$AD)","v":0},{"$f":"SUMIFS(Sheet1!S71_OY1BudgetAmount,Sheet1!S71_SA34dCode,$AC:$AC,Sheet1!S71_DepCode,$AD:$AD)","v":0},{"$f":"SUMIFS(Sheet1!S71_OY2BudgetAmount,Sheet1!S71_SA34dCode,$AC:$AC,Sheet1!S71_DepCode,$AD:$AD)","v":0},null,null,null,null,null,null,null,null,null,null,null,null,null,null,null,null,null,"0570","DP"]
["Rail Structures",null,{"$f":"SUMIFS(Sheet1!S71_PPPYearAmount,Sheet1!S71_SA34dCode,$AC:$AC,Sheet1!S71_DepCode,$AD:$AD)","v":0},{"$f":"SUMIFS(Sheet1!S71_PPYearAmount,Sheet1!S71_SA34dCode,$AC:$AC,Sheet1!S71_DepCode,$AD:$AD)","v":0},{"$f":"SUMIFS(Sheet1!S71_PYearAmount,Sheet1!S71_SA34dCode,$AC:$AC,Sheet1!S71_DepCode,$AD:$AD)","v":0},{"$f":"SUMIFS(Sheet1!S71_OriginalBudAmnt,Sheet1!S71_SA34dCode,$AC:$AC,Sheet1!S71_DepCode,$AD:$AD)","v":0},{"$f":"SUMIFS(Sheet1!S71_AdjustmentBudAmnt,Sheet1!S71_SA34dCode,$AC:$AC,Sheet1!S71_DepCode,$AD:$AD)","v":0},{"$f":"SUMIFS(Sheet1!S71_AdjustmentBudAmnt,Sheet1!S71_SA34dCode,$AC:$AC,Sheet1!S71_DepCode,$AD:$AD)","v":0},{"$f":"SUMIFS(Sheet1!S71_ASBudgetAmount,Sheet1!S71_SA34dCode,$AC:$AC,Sheet1!S71_DepCode,$AD:$AD)","v":0},{"$f":"SUMIFS(Sheet1!S71_OY1BudgetAmount,Sheet1!S71_SA34dCode,$AC:$AC,Sheet1!S71_DepCode,$AD:$AD)","v":0},{"$f":"SUMIFS(Sheet1!S71_OY2BudgetAmount,Sheet1!S71_SA34dCode,$AC:$AC,Sheet1!S71_DepCode,$AD:$AD)","v":0},null,null,null,null,null,null,null,null,null,null,null,null,null,null,null,null,null,"0580","DP"]
["Rail Furniture",null,{"$f":"SUMIFS(Sheet1!S71_PPPYearAmount,Sheet1!S71_SA34dCode,$AC:$AC,Sheet1!S71_DepCode,$AD:$AD)","v":0},{"$f":"SUMIFS(Sheet1!S71_PPYearAmount,Sheet1!S71_SA34dCode,$AC:$AC,Sheet1!S71_DepCode,$AD:$AD)","v":0},{"$f":"SUMIFS(Sheet1!S71_PYearAmount,Sheet1!S71_SA34dCode,$AC:$AC,Sheet1!S71_DepCode,$AD:$AD)","v":0},{"$f":"SUMIFS(Sheet1!S71_OriginalBudAmnt,Sheet1!S71_SA34dCode,$AC:$AC,Sheet1!S71_DepCode,$AD:$AD)","v":0},{"$f":"SUMIFS(Sheet1!S71_AdjustmentBudAmnt,Sheet1!S71_SA34dCode,$AC:$AC,Sheet1!S71_DepCode,$AD:$AD)","v":0},{"$f":"SUMIFS(Sheet1!S71_AdjustmentBudAmnt,Sheet1!S71_SA34dCode,$AC:$AC,Sheet1!S71_DepCode,$AD:$AD)","v":0},{"$f":"SUMIFS(Sheet1!S71_ASBudgetAmount,Sheet1!S71_SA34dCode,$AC:$AC,Sheet1!S71_DepCode,$AD:$AD)","v":0},{"$f":"SUMIFS(Sheet1!S71_OY1BudgetAmount,Sheet1!S71_SA34dCode,$AC:$AC,Sheet1!S71_DepCode,$AD:$AD)","v":0},{"$f":"SUMIFS(Sheet1!S71_OY2BudgetAmount,Sheet1!S71_SA34dCode,$AC:$AC,Sheet1!S71_DepCode,$AD:$AD)","v":0},null,null,null,null,null,null,null,null,null,null,null,null,null,null,null,null,null,"0590","DP"]
["Drainage Collection",null,{"$f":"SUMIFS(Sheet1!S71_PPPYearAmount,Sheet1!S71_SA34dCode,$AC:$AC,Sheet1!S71_DepCode,$AD:$AD)","v":0},{"$f":"SUMIFS(Sheet1!S71_PPYearAmount,Sheet1!S71_SA34dCode,$AC:$AC,Sheet1!S71_DepCode,$AD:$AD)","v":0},{"$f":"SUMIFS(Sheet1!S71_PYearAmount,Sheet1!S71_SA34dCode,$AC:$AC,Sheet1!S71_DepCode,$AD:$AD)","v":0},{"$f":"SUMIFS(Sheet1!S71_OriginalBudAmnt,Sheet1!S71_SA34dCode,$AC:$AC,Sheet1!S71_DepCode,$AD:$AD)","v":0},{"$f":"SUMIFS(Sheet1!S71_AdjustmentBudAmnt,Sheet1!S71_SA34dCode,$AC:$AC,Sheet1!S71_DepCode,$AD:$AD)","v":0},{"$f":"SUMIFS(Sheet1!S71_AdjustmentBudAmnt,Sheet1!S71_SA34dCode,$AC:$AC,Sheet1!S71_DepCode,$AD:$AD)","v":0},{"$f":"SUMIFS(Sheet1!S71_ASBudgetAmount,Sheet1!S71_SA34dCode,$AC:$AC,Sheet1!S71_DepCode,$AD:$AD)","v":0},{"$f":"SUMIFS(Sheet1!S71_OY1BudgetAmount,Sheet1!S71_SA34dCode,$AC:$AC,Sheet1!S71_DepCode,$AD:$AD)","v":0},{"$f":"SUMIFS(Sheet1!S71_OY2BudgetAmount,Sheet1!S71_SA34dCode,$AC:$AC,Sheet1!S71_DepCode,$AD:$AD)","v":0},null,null,null,null,null,null,null,null,null,null,null,null,null,null,null,null,null,"0600","DP"]
["Storm water Conveyance",null,{"$f":"SUMIFS(Sheet1!S71_PPPYearAmount,Sheet1!S71_SA34dCode,$AC:$AC,Sheet1!S71_DepCode,$AD:$AD)","v":0},{"$f":"SUMIFS(Sheet1!S71_PPYearAmount,Sheet1!S71_SA34dCode,$AC:$AC,Sheet1!S71_DepCode,$AD:$AD)","v":0},{"$f":"SUMIFS(Sheet1!S71_PYearAmount,Sheet1!S71_SA34dCode,$AC:$AC,Sheet1!S71_DepCode,$AD:$AD)","v":0},{"$f":"SUMIFS(Sheet1!S71_OriginalBudAmnt,Sheet1!S71_SA34dCode,$AC:$AC,Sheet1!S71_DepCode,$AD:$AD)","v":0},{"$f":"SUMIFS(Sheet1!S71_AdjustmentBudAmnt,Sheet1!S71_SA34dCode,$AC:$AC,Sheet1!S71_DepCode,$AD:$AD)","v":0},{"$f":"SUMIFS(Sheet1!S71_AdjustmentBudAmnt,Sheet1!S71_SA34dCode,$AC:$AC,Sheet1!S71_DepCode,$AD:$AD)","v":0},{"$f":"SUMIFS(Sheet1!S71_ASBudgetAmount,Sheet1!S71_SA34dCode,$AC:$AC,Sheet1!S71_DepCode,$AD:$AD)","v":0},{"$f":"SUMIFS(Sheet1!S71_OY1BudgetAmount,Sheet1!S71_SA34dCode,$AC:$AC,Sheet1!S71_DepCode,$AD:$AD)","v":0},{"$f":"SUMIFS(Sheet1!S71_OY2BudgetAmount,Sheet1!S71_SA34dCode,$AC:$AC,Sheet1!S71_DepCode,$AD:$AD)","v":0},null,null,null,null,null,null,null,null,null,null,null,null,null,null,null,null,null,"0610","DP"]
["Attenuation",null,{"$f":"SUMIFS(Sheet1!S71_PPPYearAmount,Sheet1!S71_SA34dCode,$AC:$AC,Sheet1!S71_DepCode,$AD:$AD)","v":0},{"$f":"SUMIFS(Sheet1!S71_PPYearAmount,Sheet1!S71_SA34dCode,$AC:$AC,Sheet1!S71_DepCode,$AD:$AD)","v":0},{"$f":"SUMIFS(Sheet1!S71_PYearAmount,Sheet1!S71_SA34dCode,$AC:$AC,Sheet1!S71_DepCode,$AD:$AD)","v":0},{"$f":"SUMIFS(Sheet1!S71_OriginalBudAmnt,Sheet1!S71_SA34dCode,$AC:$AC,Sheet1!S71_DepCode,$AD:$AD)","v":0},{"$f":"SUMIFS(Sheet1!S71_AdjustmentBudAmnt,Sheet1!S71_SA34dCode,$AC:$AC,Sheet1!S71_DepCode,$AD:$AD)","v":0},{"$f":"SUMIFS(Sheet1!S71_AdjustmentBudAmnt,Sheet1!S71_SA34dCode,$AC:$AC,Sheet1!S71_DepCode,$AD:$AD)","v":0},{"$f":"SUMIFS(Sheet1!S71_ASBudgetAmount,Sheet1!S71_SA34dCode,$AC:$AC,Sheet1!S71_DepCode,$AD:$AD)","v":0},{"$f":"SUMIFS(Sheet1!S71_OY1BudgetAmount,Sheet1!S71_SA34dCode,$AC:$AC,Sheet1!S71_DepCode,$AD:$AD)","v":0},{"$f":"SUMIFS(Sheet1!S71_OY2BudgetAmount,Sheet1!S71_SA34dCode,$AC:$AC,Sheet1!S71_DepCode,$AD:$AD)","v":0},null,null,null,null,null,null,null,null,null,null,null,null,null,null,null,null,null,"0620","DP"]
["MV Substations",null,{"$f":"SUMIFS(Sheet1!S71_PPPYearAmount,Sheet1!S71_SA34dCode,$AC:$AC,Sheet1!S71_DepCode,$AD:$AD)","v":0},{"$f":"SUMIFS(Sheet1!S71_PPYearAmount,Sheet1!S71_SA34dCode,$AC:$AC,Sheet1!S71_DepCode,$AD:$AD)","v":0},{"$f":"SUMIFS(Sheet1!S71_PYearAmount,Sheet1!S71_SA34dCode,$AC:$AC,Sheet1!S71_DepCode,$AD:$AD)","v":0},{"$f":"SUMIFS(Sheet1!S71_OriginalBudAmnt,Sheet1!S71_SA34dCode,$AC:$AC,Sheet1!S71_DepCode,$AD:$AD)","v":0},{"$f":"SUMIFS(Sheet1!S71_AdjustmentBudAmnt,Sheet1!S71_SA34dCode,$AC:$AC,Sheet1!S71_DepCode,$AD:$AD)","v":0},{"$f":"SUMIFS(Sheet1!S71_AdjustmentBudAmnt,Sheet1!S71_SA34dCode,$AC:$AC,Sheet1!S71_DepCode,$AD:$AD)","v":0},{"$f":"SUMIFS(Sheet1!S71_ASBudgetAmount,Sheet1!S71_SA34dCode,$AC:$AC,Sheet1!S71_DepCode,$AD:$AD)","v":0},{"$f":"SUMIFS(Sheet1!S71_OY1BudgetAmount,Sheet1!S71_SA34dCode,$AC:$AC,Sheet1!S71_DepCode,$AD:$AD)","v":0},{"$f":"SUMIFS(Sheet1!S71_OY2BudgetAmount,Sheet1!S71_SA34dCode,$AC:$AC,Sheet1!S71_DepCode,$AD:$AD)","v":0},null,null,null,null,null,null,null,null,null,null,null,null,null,null,null,null,null,"0630","DP"]
["LV Networks",null,{"$f":"SUMIFS(Sheet1!S71_PPPYearAmount,Sheet1!S71_SA34dCode,$AC:$AC,Sheet1!S71_DepCode,$AD:$AD)","v":0},{"$f":"SUMIFS(Sheet1!S71_PPYearAmount,Sheet1!S71_SA34dCode,$AC:$AC,Sheet1!S71_DepCode,$AD:$AD)","v":0},{"$f":"SUMIFS(Sheet1!S71_PYearAmount,Sheet1!S71_SA34dCode,$AC:$AC,Sheet1!S71_DepCode,$AD:$AD)","v":0},{"$f":"SUMIFS(Sheet1!S71_OriginalBudAmnt,Sheet1!S71_SA34dCode,$AC:$AC,Sheet1!S71_DepCode,$AD:$AD)","v":0},{"$f":"SUMIFS(Sheet1!S71_AdjustmentBudAmnt,Sheet1!S71_SA34dCode,$AC:$AC,Sheet1!S71_DepCode,$AD:$AD)","v":0},{"$f":"SUMIFS(Sheet1!S71_AdjustmentBudAmnt,Sheet1!S71_SA34dCode,$AC:$AC,Sheet1!S71_DepCode,$AD:$AD)","v":0},{"$f":"SUMIFS(Sheet1!S71_ASBudgetAmount,Sheet1!S71_SA34dCode,$AC:$AC,Sheet1!S71_DepCode,$AD:$AD)","v":0},{"$f":"SUMIFS(Sheet1!S71_OY1BudgetAmount,Sheet1!S71_SA34dCode,$AC:$AC,Sheet1!S71_DepCode,$AD:$AD)","v":0},{"$f":"SUMIFS(Sheet1!S71_OY2BudgetAmount,Sheet1!S71_SA34dCode,$AC:$AC,Sheet1!S71_DepCode,$AD:$AD)","v":0},null,null,null,null,null,null,null,null,null,null,null,null,null,null,null,null,null,"0640","DP"]
["Capital Spares",null,{"$f":"SUMIFS(Sheet1!S71_PPPYearAmount,Sheet1!S71_SA34dCode,$AC:$AC,Sheet1!S71_DepCode,$AD:$AD)","v":0},{"$f":"SUMIFS(Sheet1!S71_PPYearAmount,Sheet1!S71_SA34dCode,$AC:$AC,Sheet1!S71_DepCode,$AD:$AD)","v":0},{"$f":"SUMIFS(Sheet1!S71_PYearAmount,Sheet1!S71_SA34dCode,$AC:$AC,Sheet1!S71_DepCode,$AD:$AD)","v":0},{"$f":"SUMIFS(Sheet1!S71_OriginalBudAmnt,Sheet1!S71_SA34dCode,$AC:$AC,Sheet1!S71_DepCode,$AD:$AD)","v":0},{"$f":"SUMIFS(Sheet1!S71_AdjustmentBudAmnt,Sheet1!S71_SA34dCode,$AC:$AC,Sheet1!S71_DepCode,$AD:$AD)","v":0},{"$f":"SUMIFS(Sheet1!S71_AdjustmentBudAmnt,Sheet1!S71_SA34dCode,$AC:$AC,Sheet1!S71_DepCode,$AD:$AD)","v":0},{"$f":"SUMIFS(Sheet1!S71_ASBudgetAmount,Sheet1!S71_SA34dCode,$AC:$AC,Sheet1!S71_DepCode,$AD:$AD)","v":0},{"$f":"SUMIFS(Sheet1!S71_OY1BudgetAmount,Sheet1!S71_SA34dCode,$AC:$AC,Sheet1!S71_DepCode,$AD:$AD)","v":0},{"$f":"SUMIFS(Sheet1!S71_OY2BudgetAmount,Sheet1!S71_SA34dCode,$AC:$AC,Sheet1!S71_DepCode,$AD:$AD)","v":0},null,null,null,null,null,null,null,null,null,null,null,null,null,null,null,null,null,"0650","DP"]
["Coastal Infrastructure",null,{"$f":"SUM(C63:C67)","v":0},{"$f":"SUM(D63:D67)","v":0},0,0,0,0,0,0,0,null,null,null,null,null,null,null,null,null,null,null,null,null,null,null,null,null,null,"DP"]
["Sand Pumps",null,{"$f":"SUMIFS(Sheet1!S71_PPPYearAmount,Sheet1!S71_SA34dCode,$AC:$AC,Sheet1!S71_DepCode,$AD:$AD)","v":0},{"$f":"SUMIFS(Sheet1!S71_PPYearAmount,Sheet1!S71_SA34dCode,$AC:$AC,Sheet1!S71_DepCode,$AD:$AD)","v":0},{"$f":"SUMIFS(Sheet1!S71_PYearAmount,Sheet1!S71_SA34dCode,$AC:$AC,Sheet1!S71_DepCode,$AD:$AD)","v":0},{"$f":"SUMIFS(Sheet1!S71_OriginalBudAmnt,Sheet1!S71_SA34dCode,$AC:$AC,Sheet1!S71_DepCode,$AD:$AD)","v":0},{"$f":"SUMIFS(Sheet1!S71_AdjustmentBudAmnt,Sheet1!S71_SA34dCode,$AC:$AC,Sheet1!S71_DepCode,$AD:$AD)","v":0},{"$f":"SUMIFS(Sheet1!S71_AdjustmentBudAmnt,Sheet1!S71_SA34dCode,$AC:$AC,Sheet1!S71_DepCode,$AD:$AD)","v":0},{"$f":"SUMIFS(Sheet1!S71_ASBudgetAmount,Sheet1!S71_SA34dCode,$AC:$AC,Sheet1!S71_DepCode,$AD:$AD)","v":0},{"$f":"SUMIFS(Sheet1!S71_OY1BudgetAmount,Sheet1!S71_SA34dCode,$AC:$AC,Sheet1!S71_DepCode,$AD:$AD)","v":0},{"$f":"SUMIFS(Sheet1!S71_OY2BudgetAmount,Sheet1!S71_SA34dCode,$AC:$AC,Sheet1!S71_DepCode,$AD:$AD)","v":0},null,null,null,null,null,null,null,null,null,null,null,null,null,null,null,null,null,"0670","DP"]
["Piers",null,{"$f":"SUMIFS(Sheet1!S71_PPPYearAmount,Sheet1!S71_SA34dCode,$AC:$AC,Sheet1!S71_DepCode,$AD:$AD)","v":0},{"$f":"SUMIFS(Sheet1!S71_PPYearAmount,Sheet1!S71_SA34dCode,$AC:$AC,Sheet1!S71_DepCode,$AD:$AD)","v":0},{"$f":"SUMIFS(Sheet1!S71_PYearAmount,Sheet1!S71_SA34dCode,$AC:$AC,Sheet1!S71_DepCode,$AD:$AD)","v":0},{"$f":"SUMIFS(Sheet1!S71_OriginalBudAmnt,Sheet1!S71_SA34dCode,$AC:$AC,Sheet1!S71_DepCode,$AD:$AD)","v":0},{"$f":"SUMIFS(Sheet1!S71_AdjustmentBudAmnt,Sheet1!S71_SA34dCode,$AC:$AC,Sheet1!S71_DepCode,$AD:$AD)","v":0},{"$f":"SUMIFS(Sheet1!S71_AdjustmentBudAmnt,Sheet1!S71_SA34dCode,$AC:$AC,Sheet1!S71_DepCode,$AD:$AD)","v":0},{"$f":"SUMIFS(Sheet1!S71_ASBudgetAmount,Sheet1!S71_SA34dCode,$AC:$AC,Sheet1!S71_DepCode,$AD:$AD)","v":0},{"$f":"SUMIFS(Sheet1!S71_OY1BudgetAmount,Sheet1!S71_SA34dCode,$AC:$AC,Sheet1!S71_DepCode,$AD:$AD)","v":0},{"$f":"SUMIFS(Sheet1!S71_OY2BudgetAmount,Sheet1!S71_SA34dCode,$AC:$AC,Sheet1!S71_DepCode,$AD:$AD)","v":0},null,null,null,null,null,null,null,null,null,null,null,null,null,null,null,null,null,"0680","DP"]
["Revetments",null,{"$f":"SUMIFS(Sheet1!S71_PPPYearAmount,Sheet1!S71_SA34dCode,$AC:$AC,Sheet1!S71_DepCode,$AD:$AD)","v":0},{"$f":"SUMIFS(Sheet1!S71_PPYearAmount,Sheet1!S71_SA34dCode,$AC:$AC,Sheet1!S71_DepCode,$AD:$AD)","v":0},{"$f":"SUMIFS(Sheet1!S71_PYearAmount,Sheet1!S71_SA34dCode,$AC:$AC,Sheet1!S71_DepCode,$AD:$AD)","v":0},{"$f":"SUMIFS(Sheet1!S71_OriginalBudAmnt,Sheet1!S71_SA34dCode,$AC:$AC,Sheet1!S71_DepCode,$AD:$AD)","v":0},{"$f":"SUMIFS(Sheet1!S71_AdjustmentBudAmnt,Sheet1!S71_SA34dCode,$AC:$AC,Sheet1!S71_DepCode,$AD:$AD)","v":0},{"$f":"SUMIFS(Sheet1!S71_AdjustmentBudAmnt,Sheet1!S71_SA34dCode,$AC:$AC,Sheet1!S71_DepCode,$AD:$AD)","v":0},{"$f":"SUMIFS(Sheet1!S71_ASBudgetAmount,Sheet1!S71_SA34dCode,$AC:$AC,Sheet1!S71_DepCode,$AD:$AD)","v":0},{"$f":"SUMIFS(Sheet1!S71_OY1BudgetAmount,Sheet1!S71_SA34dCode,$AC:$AC,Sheet1!S71_DepCode,$AD:$AD)","v":0},{"$f":"SUMIFS(Sheet1!S71_OY2BudgetAmount,Sheet1!S71_SA34dCode,$AC:$AC,Sheet1!S71_DepCode,$AD:$AD)","v":0},null,null,null,null,null,null,null,null,null,null,null,null,null,null,null,null,null,"0690","DP"]
["Promenades",null,{"$f":"SUMIFS(Sheet1!S71_PPPYearAmount,Sheet1!S71_SA34dCode,$AC:$AC,Sheet1!S71_DepCode,$AD:$AD)","v":0},{"$f":"SUMIFS(Sheet1!S71_PPYearAmount,Sheet1!S71_SA34dCode,$AC:$AC,Sheet1!S71_DepCode,$AD:$AD)","v":0},{"$f":"SUMIFS(Sheet1!S71_PYearAmount,Sheet1!S71_SA34dCode,$AC:$AC,Sheet1!S71_DepCode,$AD:$AD)","v":0},{"$f":"SUMIFS(Sheet1!S71_OriginalBudAmnt,Sheet1!S71_SA34dCode,$AC:$AC,Sheet1!S71_DepCode,$AD:$AD)","v":0},{"$f":"SUMIFS(Sheet1!S71_AdjustmentBudAmnt,Sheet1!S71_SA34dCode,$AC:$AC,Sheet1!S71_DepCode,$AD:$AD)","v":0},{"$f":"SUMIFS(Sheet1!S71_AdjustmentBudAmnt,Sheet1!S71_SA34dCode,$AC:$AC,Sheet1!S71_DepCode,$AD:$AD)","v":0},{"$f":"SUMIFS(Sheet1!S71_ASBudgetAmount,Sheet1!S71_SA34dCode,$AC:$AC,Sheet1!S71_DepCode,$AD:$AD)","v":0},{"$f":"SUMIFS(Sheet1!S71_OY1BudgetAmount,Sheet1!S71_SA34dCode,$AC:$AC,Sheet1!S71_DepCode,$AD:$AD)","v":0},{"$f":"SUMIFS(Sheet1!S71_OY2BudgetAmount,Sheet1!S71_SA34dCode,$AC:$AC,Sheet1!S71_DepCode,$AD:$AD)","v":0},null,null,null,null,null,null,null,null,null,null,null,null,null,null,null,null,null,"0700","DP"]
["Capital Spares",null,{"$f":"SUMIFS(Sheet1!S71_PPPYearAmount,Sheet1!S71_SA34dCode,$AC:$AC,Sheet1!S71_DepCode,$AD:$AD)","v":0},{"$f":"SUMIFS(Sheet1!S71_PPYearAmount,Sheet1!S71_SA34dCode,$AC:$AC,Sheet1!S71_DepCode,$AD:$AD)","v":0},{"$f":"SUMIFS(Sheet1!S71_PYearAmount,Sheet1!S71_SA34dCode,$AC:$AC,Sheet1!S71_DepCode,$AD:$AD)","v":0},{"$f":"SUMIFS(Sheet1!S71_OriginalBudAmnt,Sheet1!S71_SA34dCode,$AC:$AC,Sheet1!S71_DepCode,$AD:$AD)","v":0},{"$f":"SUMIFS(Sheet1!S71_AdjustmentBudAmnt,Sheet1!S71_SA34dCode,$AC:$AC,Sheet1!S71_DepCode,$AD:$AD)","v":0},{"$f":"SUMIFS(Sheet1!S71_AdjustmentBudAmnt,Sheet1!S71_SA34dCode,$AC:$AC,Sheet1!S71_DepCode,$AD:$AD)","v":0},{"$f":"SUMIFS(Sheet1!S71_ASBudgetAmount,Sheet1!S71_SA34dCode,$AC:$AC,Sheet1!S71_DepCode,$AD:$AD)","v":0},{"$f":"SUMIFS(Sheet1!S71_OY1BudgetAmount,Sheet1!S71_SA34dCode,$AC:$AC,Sheet1!S71_DepCode,$AD:$AD)","v":0},{"$f":"SUMIFS(Sheet1!S71_OY2BudgetAmount,Sheet1!S71_SA34dCode,$AC:$AC,Sheet1!S71_DepCode,$AD:$AD)","v":0},null,null,null,null,null,null,null,null,null,null,null,null,null,null,null,null,null,"0710","DP"]
["Information and Communication Infrastructure",null,{"$f":"SUM(C69:C72)","v":0},{"$f":"SUM(D69:D72)","v":0},0,0,0,0,0,0,0,null,null,null,null,null,null,null,null,null,null,null,null,null,null,null,null,null,null,"DP"]
["Data Centres",null,{"$f":"SUMIFS(Sheet1!S71_PPPYearAmount,Sheet1!S71_SA34dCode,$AC:$AC,Sheet1!S71_DepCode,$AD:$AD)","v":0},{"$f":"SUMIFS(Sheet1!S71_PPYearAmount,Sheet1!S71_SA34dCode,$AC:$AC,Sheet1!S71_DepCode,$AD:$AD)","v":0},{"$f":"SUMIFS(Sheet1!S71_PYearAmount,Sheet1!S71_SA34dCode,$AC:$AC,Sheet1!S71_DepCode,$AD:$AD)","v":0},{"$f":"SUMIFS(Sheet1!S71_OriginalBudAmnt,Sheet1!S71_SA34dCode,$AC:$AC,Sheet1!S71_DepCode,$AD:$AD)","v":0},{"$f":"SUMIFS(Sheet1!S71_AdjustmentBudAmnt,Sheet1!S71_SA34dCode,$AC:$AC,Sheet1!S71_DepCode,$AD:$AD)","v":0},{"$f":"SUMIFS(Sheet1!S71_AdjustmentBudAmnt,Sheet1!S71_SA34dCode,$AC:$AC,Sheet1!S71_DepCode,$AD:$AD)","v":0},{"$f":"SUMIFS(Sheet1!S71_ASBudgetAmount,Sheet1!S71_SA34dCode,$AC:$AC,Sheet1!S71_DepCode,$AD:$AD)","v":0},{"$f":"SUMIFS(Sheet1!S71_OY1BudgetAmount,Sheet1!S71_SA34dCode,$AC:$AC,Sheet1!S71_DepCode,$AD:$AD)","v":0},{"$f":"SUMIFS(Sheet1!S71_OY2BudgetAmount,Sheet1!S71_SA34dCode,$AC:$AC,Sheet1!S71_DepCode,$AD:$AD)","v":0},null,null,null,null,null,null,null,null,null,null,null,null,null,null,null,null,null,"0730","DP"]
["Core Layers",null,{"$f":"SUMIFS(Sheet1!S71_PPPYearAmount,Sheet1!S71_SA34dCode,$AC:$AC,Sheet1!S71_DepCode,$AD:$AD)","v":0},{"$f":"SUMIFS(Sheet1!S71_PPYearAmount,Sheet1!S71_SA34dCode,$AC:$AC,Sheet1!S71_DepCode,$AD:$AD)","v":0},{"$f":"SUMIFS(Sheet1!S71_PYearAmount,Sheet1!S71_SA34dCode,$AC:$AC,Sheet1!S71_DepCode,$AD:$AD)","v":0},{"$f":"SUMIFS(Sheet1!S71_OriginalBudAmnt,Sheet1!S71_SA34dCode,$AC:$AC,Sheet1!S71_DepCode,$AD:$AD)","v":0},{"$f":"SUMIFS(Sheet1!S71_AdjustmentBudAmnt,Sheet1!S71_SA34dCode,$AC:$AC,Sheet1!S71_DepCode,$AD:$AD)","v":0},{"$f":"SUMIFS(Sheet1!S71_AdjustmentBudAmnt,Sheet1!S71_SA34dCode,$AC:$AC,Sheet1!S71_DepCode,$AD:$AD)","v":0},{"$f":"SUMIFS(Sheet1!S71_ASBudgetAmount,Sheet1!S71_SA34dCode,$AC:$AC,Sheet1!S71_DepCode,$AD:$AD)","v":0},{"$f":"SUMIFS(Sheet1!S71_OY1BudgetAmount,Sheet1!S71_SA34dCode,$AC:$AC,Sheet1!S71_DepCode,$AD:$AD)","v":0},{"$f":"SUMIFS(Sheet1!S71_OY2BudgetAmount,Sheet1!S71_SA34dCode,$AC:$AC,Sheet1!S71_DepCode,$AD:$AD)","v":0},null,null,null,null,null,null,null,null,null,null,null,null,null,null,null,null,null,"0740","DP"]
["Distribution Layers",null,{"$f":"SUMIFS(Sheet1!S71_PPPYearAmount,Sheet1!S71_SA34dCode,$AC:$AC,Sheet1!S71_DepCode,$AD:$AD)","v":0},{"$f":"SUMIFS(Sheet1!S71_PPYearAmount,Sheet1!S71_SA34dCode,$AC:$AC,Sheet1!S71_DepCode,$AD:$AD)","v":0},{"$f":"SUMIFS(Sheet1!S71_PYearAmount,Sheet1!S71_SA34dCode,$AC:$AC,Sheet1!S71_DepCode,$AD:$AD)","v":0},{"$f":"SUMIFS(Sheet1!S71_OriginalBudAmnt,Sheet1!S71_SA34dCode,$AC:$AC,Sheet1!S71_DepCode,$AD:$AD)","v":0},{"$f":"SUMIFS(Sheet1!S71_AdjustmentBudAmnt,Sheet1!S71_SA34dCode,$AC:$AC,Sheet1!S71_DepCode,$AD:$AD)","v":0},{"$f":"SUMIFS(Sheet1!S71_AdjustmentBudAmnt,Sheet1!S71_SA34dCode,$AC:$AC,Sheet1!S71_DepCode,$AD:$AD)","v":0},{"$f":"SUMIFS(Sheet1!S71_ASBudgetAmount,Sheet1!S71_SA34dCode,$AC:$AC,Sheet1!S71_DepCode,$AD:$AD)","v":0},{"$f":"SUMIFS(Sheet1!S71_OY1BudgetAmount,Sheet1!S71_SA34dCode,$AC:$AC,Sheet1!S71_DepCode,$AD:$AD)","v":0},{"$f":"SUMIFS(Sheet1!S71_OY2BudgetAmount,Sheet1!S71_SA34dCode,$AC:$AC,Sheet1!S71_DepCode,$AD:$AD)","v":0},null,null,null,null,null,null,null,null,null,null,null,null,null,null,null,null,null,"0750","DP"]
["Capital Spares",null,{"$f":"SUMIFS(Sheet1!S71_PPPYearAmount,Sheet1!S71_SA34dCode,$AC:$AC,Sheet1!S71_DepCode,$AD:$AD)","v":0},{"$f":"SUMIFS(Sheet1!S71_PPYearAmount,Sheet1!S71_SA34dCode,$AC:$AC,Sheet1!S71_DepCode,$AD:$AD)","v":0},{"$f":"SUMIFS(Sheet1!S71_PYearAmount,Sheet1!S71_SA34dCode,$AC:$AC,Sheet1!S71_DepCode,$AD:$AD)","v":0},{"$f":"SUMIFS(Sheet1!S71_OriginalBudAmnt,Sheet1!S71_SA34dCode,$AC:$AC,Sheet1!S71_DepCode,$AD:$AD)","v":0},{"$f":"SUMIFS(Sheet1!S71_AdjustmentBudAmnt,Sheet1!S71_SA34dCode,$AC:$AC,Sheet1!S71_DepCode,$AD:$AD)","v":0},{"$f":"SUMIFS(Sheet1!S71_AdjustmentBudAmnt,Sheet1!S71_SA34dCode,$AC:$AC,Sheet1!S71_DepCode,$AD:$AD)","v":0},{"$f":"SUMIFS(Sheet1!S71_ASBudgetAmount,Sheet1!S71_SA34dCode,$AC:$AC,Sheet1!S71_DepCode,$AD:$AD)","v":0},{"$f":"SUMIFS(Sheet1!S71_OY1BudgetAmount,Sheet1!S71_SA34dCode,$AC:$AC,Sheet1!S71_DepCode,$AD:$AD)","v":0},{"$f":"SUMIFS(Sheet1!S71_OY2BudgetAmount,Sheet1!S71_SA34dCode,$AC:$AC,Sheet1!S71_DepCode,$AD:$AD)","v":0},null,null,null,null,null,null,null,null,null,null,null,null,null,null,null,null,null,"0760","DP"]
[null,null,null,null,null,null,null,null,null,null,null,null,null,null,null,null,null,null,null,null,null,null,null,null,null,null,null,null,null,"DP"]
["Community Assets",null,{"$f":"C75+C98","v":0},{"$f":"D75+D98","v":0},0,0,0,0,0,0,0,null,null,null,null,null,null,null,null,null,null,null,null,null,null,null,null,null,null,"DP"]
["Community Facilities",null,{"$f":"SUM(C76:C97)","v":0},{"$f":"SUM(D76:D97)","v":0},0,0,0,0,0,0,0,null,null,null,null,null,null,null,null,null,null,null,null,null,null,null,null,null,null,"DP"]
["Halls",null,{"$f":"SUMIFS(Sheet1!S71_PPPYearAmount,Sheet1!S71_SA34dCode,$AC:$AC,Sheet1!S71_DepCode,$AD:$AD)","v":0},{"$f":"SUMIFS(Sheet1!S71_PPYearAmount,Sheet1!S71_SA34dCode,$AC:$AC,Sheet1!S71_DepCode,$AD:$AD)","v":0},{"$f":"SUMIFS(Sheet1!S71_PYearAmount,Sheet1!S71_SA34dCode,$AC:$AC,Sheet1!S71_DepCode,$AD:$AD)","v":0},{"$f":"SUMIFS(Sheet1!S71_OriginalBudAmnt,Sheet1!S71_SA34dCode,$AC:$AC,Sheet1!S71_DepCode,$AD:$AD)","v":0},{"$f":"SUMIFS(Sheet1!S71_AdjustmentBudAmnt,Sheet1!S71_SA34dCode,$AC:$AC,Sheet1!S71_DepCode,$AD:$AD)","v":0},{"$f":"SUMIFS(Sheet1!S71_AdjustmentBudAmnt,Sheet1!S71_SA34dCode,$AC:$AC,Sheet1!S71_DepCode,$AD:$AD)","v":0},{"$f":"SUMIFS(Sheet1!S71_ASBudgetAmount,Sheet1!S71_SA34dCode,$AC:$AC,Sheet1!S71_DepCode,$AD:$AD)","v":0},{"$f":"SUMIFS(Sheet1!S71_OY1BudgetAmount,Sheet1!S71_SA34dCode,$AC:$AC,Sheet1!S71_DepCode,$AD:$AD)","v":0},{"$f":"SUMIFS(Sheet1!S71_OY2BudgetAmount,Sheet1!S71_SA34dCode,$AC:$AC,Sheet1!S71_DepCode,$AD:$AD)","v":0},null,null,null,null,null,null,null,null,null,null,null,null,null,null,null,null,null,"0790","DP"]
["Centres",null,{"$f":"SUMIFS(Sheet1!S71_PPPYearAmount,Sheet1!S71_SA34dCode,$AC:$AC,Sheet1!S71_DepCode,$AD:$AD)","v":0},{"$f":"SUMIFS(Sheet1!S71_PPYearAmount,Sheet1!S71_SA34dCode,$AC:$AC,Sheet1!S71_DepCode,$AD:$AD)","v":0},{"$f":"SUMIFS(Sheet1!S71_PYearAmount,Sheet1!S71_SA34dCode,$AC:$AC,Sheet1!S71_DepCode,$AD:$AD)","v":0},{"$f":"SUMIFS(Sheet1!S71_OriginalBudAmnt,Sheet1!S71_SA34dCode,$AC:$AC,Sheet1!S71_DepCode,$AD:$AD)","v":0},{"$f":"SUMIFS(Sheet1!S71_AdjustmentBudAmnt,Sheet1!S71_SA34dCode,$AC:$AC,Sheet1!S71_DepCode,$AD:$AD)","v":0},{"$f":"SUMIFS(Sheet1!S71_AdjustmentBudAmnt,Sheet1!S71_SA34dCode,$AC:$AC,Sheet1!S71_DepCode,$AD:$AD)","v":0},{"$f":"SUMIFS(Sheet1!S71_ASBudgetAmount,Sheet1!S71_SA34dCode,$AC:$AC,Sheet1!S71_DepCode,$AD:$AD)","v":0},{"$f":"SUMIFS(Sheet1!S71_OY1BudgetAmount,Sheet1!S71_SA34dCode,$AC:$AC,Sheet1!S71_DepCode,$AD:$AD)","v":0},{"$f":"SUMIFS(Sheet1!S71_OY2BudgetAmount,Sheet1!S71_SA34dCode,$AC:$AC,Sheet1!S71_DepCode,$AD:$AD)","v":0},null,null,null,null,null,null,null,null,null,null,null,null,null,null,null,null,null,"0800","DP"]
["Crèches",null,{"$f":"SUMIFS(Sheet1!S71_PPPYearAmount,Sheet1!S71_SA34dCode,$AC:$AC,Sheet1!S71_DepCode,$AD:$AD)","v":0},{"$f":"SUMIFS(Sheet1!S71_PPYearAmount,Sheet1!S71_SA34dCode,$AC:$AC,Sheet1!S71_DepCode,$AD:$AD)","v":0},{"$f":"SUMIFS(Sheet1!S71_PYearAmount,Sheet1!S71_SA34dCode,$AC:$AC,Sheet1!S71_DepCode,$AD:$AD)","v":0},{"$f":"SUMIFS(Sheet1!S71_OriginalBudAmnt,Sheet1!S71_SA34dCode,$AC:$AC,Sheet1!S71_DepCode,$AD:$AD)","v":0},{"$f":"SUMIFS(Sheet1!S71_AdjustmentBudAmnt,Sheet1!S71_SA34dCode,$AC:$AC,Sheet1!S71_DepCode,$AD:$AD)","v":0},{"$f":"SUMIFS(Sheet1!S71_AdjustmentBudAmnt,Sheet1!S71_SA34dCode,$AC:$AC,Sheet1!S71_DepCode,$AD:$AD)","v":0},{"$f":"SUMIFS(Sheet1!S71_ASBudgetAmount,Sheet1!S71_SA34dCode,$AC:$AC,Sheet1!S71_DepCode,$AD:$AD)","v":0},{"$f":"SUMIFS(Sheet1!S71_OY1BudgetAmount,Sheet1!S71_SA34dCode,$AC:$AC,Sheet1!S71_DepCode,$AD:$AD)","v":0},{"$f":"SUMIFS(Sheet1!S71_OY2BudgetAmount,Sheet1!S71_SA34dCode,$AC:$AC,Sheet1!S71_DepCode,$AD:$AD)","v":0},null,null,null,null,null,null,null,null,null,null,null,null,null,null,null,null,null,"0810","DP"]
["Clinics/Care Centres",null,{"$f":"SUMIFS(Sheet1!S71_PPPYearAmount,Sheet1!S71_SA34dCode,$AC:$AC,Sheet1!S71_DepCode,$AD:$AD)","v":0},{"$f":"SUMIFS(Sheet1!S71_PPYearAmount,Sheet1!S71_SA34dCode,$AC:$AC,Sheet1!S71_DepCode,$AD:$AD)","v":0},{"$f":"SUMIFS(Sheet1!S71_PYearAmount,Sheet1!S71_SA34dCode,$AC:$AC,Sheet1!S71_DepCode,$AD:$AD)","v":0},{"$f":"SUMIFS(Sheet1!S71_OriginalBudAmnt,Sheet1!S71_SA34dCode,$AC:$AC,Sheet1!S71_DepCode,$AD:$AD)","v":0},{"$f":"SUMIFS(Sheet1!S71_AdjustmentBudAmnt,Sheet1!S71_SA34dCode,$AC:$AC,Sheet1!S71_DepCode,$AD:$AD)","v":0},{"$f":"SUMIFS(Sheet1!S71_AdjustmentBudAmnt,Sheet1!S71_SA34dCode,$AC:$AC,Sheet1!S71_DepCode,$AD:$AD)","v":0},{"$f":"SUMIFS(Sheet1!S71_ASBudgetAmount,Sheet1!S71_SA34dCode,$AC:$AC,Sheet1!S71_DepCode,$AD:$AD)","v":0},{"$f":"SUMIFS(Sheet1!S71_OY1BudgetAmount,Sheet1!S71_SA34dCode,$AC:$AC,Sheet1!S71_DepCode,$AD:$AD)","v":0},{"$f":"SUMIFS(Sheet1!S71_OY2BudgetAmount,Sheet1!S71_SA34dCode,$AC:$AC,Sheet1!S71_DepCode,$AD:$AD)","v":0},null,null,null,null,null,null,null,null,null,null,null,null,null,null,null,null,null,"0820","DP"]
["Fire/Ambulance Stations",null,{"$f":"SUMIFS(Sheet1!S71_PPPYearAmount,Sheet1!S71_SA34dCode,$AC:$AC,Sheet1!S71_DepCode,$AD:$AD)","v":0},{"$f":"SUMIFS(Sheet1!S71_PPYearAmount,Sheet1!S71_SA34dCode,$AC:$AC,Sheet1!S71_DepCode,$AD:$AD)","v":0},{"$f":"SUMIFS(Sheet1!S71_PYearAmount,Sheet1!S71_SA34dCode,$AC:$AC,Sheet1!S71_DepCode,$AD:$AD)","v":0},{"$f":"SUMIFS(Sheet1!S71_OriginalBudAmnt,Sheet1!S71_SA34dCode,$AC:$AC,Sheet1!S71_DepCode,$AD:$AD)","v":0},{"$f":"SUMIFS(Sheet1!S71_AdjustmentBudAmnt,Sheet1!S71_SA34dCode,$AC:$AC,Sheet1!S71_DepCode,$AD:$AD)","v":0},{"$f":"SUMIFS(Sheet1!S71_AdjustmentBudAmnt,Sheet1!S71_SA34dCode,$AC:$AC,Sheet1!S71_DepCode,$AD:$AD)","v":0},{"$f":"SUMIFS(Sheet1!S71_ASBudgetAmount,Sheet1!S71_SA34dCode,$AC:$AC,Sheet1!S71_DepCode,$AD:$AD)","v":0},{"$f":"SUMIFS(Sheet1!S71_OY1BudgetAmount,Sheet1!S71_SA34dCode,$AC:$AC,Sheet1!S71_DepCode,$AD:$AD)","v":0},{"$f":"SUMIFS(Sheet1!S71_OY2BudgetAmount,Sheet1!S71_SA34dCode,$AC:$AC,Sheet1!S71_DepCode,$AD:$AD)","v":0},null,null,null,null,null,null,null,null,null,null,null,null,null,null,null,null,null,"0830","DP"]
["Testing Stations",null,{"$f":"SUMIFS(Sheet1!S71_PPPYearAmount,Sheet1!S71_SA34dCode,$AC:$AC,Sheet1!S71_DepCode,$AD:$AD)","v":0},{"$f":"SUMIFS(Sheet1!S71_PPYearAmount,Sheet1!S71_SA34dCode,$AC:$AC,Sheet1!S71_DepCode,$AD:$AD)","v":0},{"$f":"SUMIFS(Sheet1!S71_PYearAmount,Sheet1!S71_SA34dCode,$AC:$AC,Sheet1!S71_DepCode,$AD:$AD)","v":0},{"$f":"SUMIFS(Sheet1!S71_OriginalBudAmnt,Sheet1!S71_SA34dCode,$AC:$AC,Sheet1!S71_DepCode,$AD:$AD)","v":0},{"$f":"SUMIFS(Sheet1!S71_AdjustmentBudAmnt,Sheet1!S71_SA34dCode,$AC:$AC,Sheet1!S71_DepCode,$AD:$AD)","v":0},{"$f":"SUMIFS(Sheet1!S71_AdjustmentBudAmnt,Sheet1!S71_SA34dCode,$AC:$AC,Sheet1!S71_DepCode,$AD:$AD)","v":0},{"$f":"SUMIFS(Sheet1!S71_ASBudgetAmount,Sheet1!S71_SA34dCode,$AC:$AC,Sheet1!S71_DepCode,$AD:$AD)","v":0},{"$f":"SUMIFS(Sheet1!S71_OY1BudgetAmount,Sheet1!S71_SA34dCode,$AC:$AC,Sheet1!S71_DepCode,$AD:$AD)","v":0},{"$f":"SUMIFS(Sheet1!S71_OY2BudgetAmount,Sheet1!S71_SA34dCode,$AC:$AC,Sheet1!S71_DepCode,$AD:$AD)","v":0},null,null,null,null,null,null,null,null,null,null,null,null,null,null,null,null,null,"0840","DP"]
["Museums",null,{"$f":"SUMIFS(Sheet1!S71_PPPYearAmount,Sheet1!S71_SA34dCode,$AC:$AC,Sheet1!S71_DepCode,$AD:$AD)","v":0},{"$f":"SUMIFS(Sheet1!S71_PPYearAmount,Sheet1!S71_SA34dCode,$AC:$AC,Sheet1!S71_DepCode,$AD:$AD)","v":0},{"$f":"SUMIFS(Sheet1!S71_PYearAmount,Sheet1!S71_SA34dCode,$AC:$AC,Sheet1!S71_DepCode,$AD:$AD)","v":0},{"$f":"SUMIFS(Sheet1!S71_OriginalBudAmnt,Sheet1!S71_SA34dCode,$AC:$AC,Sheet1!S71_DepCode,$AD:$AD)","v":0},{"$f":"SUMIFS(Sheet1!S71_AdjustmentBudAmnt,Sheet1!S71_SA34dCode,$AC:$AC,Sheet1!S71_DepCode,$AD:$AD)","v":0},{"$f":"SUMIFS(Sheet1!S71_AdjustmentBudAmnt,Sheet1!S71_SA34dCode,$AC:$AC,Sheet1!S71_DepCode,$AD:$AD)","v":0},{"$f":"SUMIFS(Sheet1!S71_ASBudgetAmount,Sheet1!S71_SA34dCode,$AC:$AC,Sheet1!S71_DepCode,$AD:$AD)","v":0},{"$f":"SUMIFS(Sheet1!S71_OY1BudgetAmount,Sheet1!S71_SA34dCode,$AC:$AC,Sheet1!S71_DepCode,$AD:$AD)","v":0},{"$f":"SUMIFS(Sheet1!S71_OY2BudgetAmount,Sheet1!S71_SA34dCode,$AC:$AC,Sheet1!S71_DepCode,$AD:$AD)","v":0},null,null,null,null,null,null,null,null,null,null,null,null,null,null,null,null,null,"0850","DP"]
["Galleries",null,{"$f":"SUMIFS(Sheet1!S71_PPPYearAmount,Sheet1!S71_SA34dCode,$AC:$AC,Sheet1!S71_DepCode,$AD:$AD)","v":0},{"$f":"SUMIFS(Sheet1!S71_PPYearAmount,Sheet1!S71_SA34dCode,$AC:$AC,Sheet1!S71_DepCode,$AD:$AD)","v":0},{"$f":"SUMIFS(Sheet1!S71_PYearAmount,Sheet1!S71_SA34dCode,$AC:$AC,Sheet1!S71_DepCode,$AD:$AD)","v":0},{"$f":"SUMIFS(Sheet1!S71_OriginalBudAmnt,Sheet1!S71_SA34dCode,$AC:$AC,Sheet1!S71_DepCode,$AD:$AD)","v":0},{"$f":"SUMIFS(Sheet1!S71_AdjustmentBudAmnt,Sheet1!S71_SA34dCode,$AC:$AC,Sheet1!S71_DepCode,$AD:$AD)","v":0},{"$f":"SUMIFS(Sheet1!S71_AdjustmentBudAmnt,Sheet1!S71_SA34dCode,$AC:$AC,Sheet1!S71_DepCode,$AD:$AD)","v":0},{"$f":"SUMIFS(Sheet1!S71_ASBudgetAmount,Sheet1!S71_SA34dCode,$AC:$AC,Sheet1!S71_DepCode,$AD:$AD)","v":0},{"$f":"SUMIFS(Sheet1!S71_OY1BudgetAmount,Sheet1!S71_SA34dCode,$AC:$AC,Sheet1!S71_DepCode,$AD:$AD)","v":0},{"$f":"SUMIFS(Sheet1!S71_OY2BudgetAmount,Sheet1!S71_SA34dCode,$AC:$AC,Sheet1!S71_DepCode,$AD:$AD)","v":0},null,null,null,null,null,null,null,null,null,null,null,null,null,null,null,null,null,"0860","DP"]
["Theatres",null,{"$f":"SUMIFS(Sheet1!S71_PPPYearAmount,Sheet1!S71_SA34dCode,$AC:$AC,Sheet1!S71_DepCode,$AD:$AD)","v":0},{"$f":"SUMIFS(Sheet1!S71_PPYearAmount,Sheet1!S71_SA34dCode,$AC:$AC,Sheet1!S71_DepCode,$AD:$AD)","v":0},{"$f":"SUMIFS(Sheet1!S71_PYearAmount,Sheet1!S71_SA34dCode,$AC:$AC,Sheet1!S71_DepCode,$AD:$AD)","v":0},{"$f":"SUMIFS(Sheet1!S71_OriginalBudAmnt,Sheet1!S71_SA34dCode,$AC:$AC,Sheet1!S71_DepCode,$AD:$AD)","v":0},{"$f":"SUMIFS(Sheet1!S71_AdjustmentBudAmnt,Sheet1!S71_SA34dCode,$AC:$AC,Sheet1!S71_DepCode,$AD:$AD)","v":0},{"$f":"SUMIFS(Sheet1!S71_AdjustmentBudAmnt,Sheet1!S71_SA34dCode,$AC:$AC,Sheet1!S71_DepCode,$AD:$AD)","v":0},{"$f":"SUMIFS(Sheet1!S71_ASBudgetAmount,Sheet1!S71_SA34dCode,$AC:$AC,Sheet1!S71_DepCode,$AD:$AD)","v":0},{"$f":"SUMIFS(Sheet1!S71_OY1BudgetAmount,Sheet1!S71_SA34dCode,$AC:$AC,Sheet1!S71_DepCode,$AD:$AD)","v":0},{"$f":"SUMIFS(Sheet1!S71_OY2BudgetAmount,Sheet1!S71_SA34dCode,$AC:$AC,Sheet1!S71_DepCode,$AD:$AD)","v":0},null,null,null,null,null,null,null,null,null,null,null,null,null,null,null,null,null,"0870","DP"]
["Libraries",null,{"$f":"SUMIFS(Sheet1!S71_PPPYearAmount,Sheet1!S71_SA34dCode,$AC:$AC,Sheet1!S71_DepCode,$AD:$AD)","v":0},{"$f":"SUMIFS(Sheet1!S71_PPYearAmount,Sheet1!S71_SA34dCode,$AC:$AC,Sheet1!S71_DepCode,$AD:$AD)","v":0},{"$f":"SUMIFS(Sheet1!S71_PYearAmount,Sheet1!S71_SA34dCode,$AC:$AC,Sheet1!S71_DepCode,$AD:$AD)","v":0},{"$f":"SUMIFS(Sheet1!S71_OriginalBudAmnt,Sheet1!S71_SA34dCode,$AC:$AC,Sheet1!S71_DepCode,$AD:$AD)","v":0},{"$f":"SUMIFS(Sheet1!S71_AdjustmentBudAmnt,Sheet1!S71_SA34dCode,$AC:$AC,Sheet1!S71_DepCode,$AD:$AD)","v":0},{"$f":"SUMIFS(Sheet1!S71_AdjustmentBudAmnt,Sheet1!S71_SA34dCode,$AC:$AC,Sheet1!S71_DepCode,$AD:$AD)","v":0},{"$f":"SUMIFS(Sheet1!S71_ASBudgetAmount,Sheet1!S71_SA34dCode,$AC:$AC,Sheet1!S71_DepCode,$AD:$AD)","v":0},{"$f":"SUMIFS(Sheet1!S71_OY1BudgetAmount,Sheet1!S71_SA34dCode,$AC:$AC,Sheet1!S71_DepCode,$AD:$AD)","v":0},{"$f":"SUMIFS(Sheet1!S71_OY2BudgetAmount,Sheet1!S71_SA34dCode,$AC:$AC,Sheet1!S71_DepCode,$AD:$AD)","v":0},null,null,null,null,null,null,null,null,null,null,null,null,null,null,null,null,null,"0880","DP"]
["Cemeteries/Crematoria",null,{"$f":"SUMIFS(Sheet1!S71_PPPYearAmount,Sheet1!S71_SA34dCode,$AC:$AC,Sheet1!S71_DepCode,$AD:$AD)","v":0},{"$f":"SUMIFS(Sheet1!S71_PPYearAmount,Sheet1!S71_SA34dCode,$AC:$AC,Sheet1!S71_DepCode,$AD:$AD)","v":0},{"$f":"SUMIFS(Sheet1!S71_PYearAmount,Sheet1!S71_SA34dCode,$AC:$AC,Sheet1!S71_DepCode,$AD:$AD)","v":0},{"$f":"SUMIFS(Sheet1!S71_OriginalBudAmnt,Sheet1!S71_SA34dCode,$AC:$AC,Sheet1!S71_DepCode,$AD:$AD)","v":0},{"$f":"SUMIFS(Sheet1!S71_AdjustmentBudAmnt,Sheet1!S71_SA34dCode,$AC:$AC,Sheet1!S71_DepCode,$AD:$AD)","v":0},{"$f":"SUMIFS(Sheet1!S71_AdjustmentBudAmnt,Sheet1!S71_SA34dCode,$AC:$AC,Sheet1!S71_DepCode,$AD:$AD)","v":0},{"$f":"SUMIFS(Sheet1!S71_ASBudgetAmount,Sheet1!S71_SA34dCode,$AC:$AC,Sheet1!S71_DepCode,$AD:$AD)","v":0},{"$f":"SUMIFS(Sheet1!S71_OY1BudgetAmount,Sheet1!S71_SA34dCode,$AC:$AC,Sheet1!S71_DepCode,$AD:$AD)","v":0},{"$f":"SUMIFS(Sheet1!S71_OY2BudgetAmount,Sheet1!S71_SA34dCode,$AC:$AC,Sheet1!S71_DepCode,$AD:$AD)","v":0},null,null,null,null,null,null,null,null,null,null,null,null,null,null,null,null,null,"0890","DP"]
["Police",null,{"$f":"SUMIFS(Sheet1!S71_PPPYearAmount,Sheet1!S71_SA34dCode,$AC:$AC,Sheet1!S71_DepCode,$AD:$AD)","v":0},{"$f":"SUMIFS(Sheet1!S71_PPYearAmount,Sheet1!S71_SA34dCode,$AC:$AC,Sheet1!S71_DepCode,$AD:$AD)","v":0},{"$f":"SUMIFS(Sheet1!S71_PYearAmount,Sheet1!S71_SA34dCode,$AC:$AC,Sheet1!S71_DepCode,$AD:$AD)","v":0},{"$f":"SUMIFS(Sheet1!S71_OriginalBudAmnt,Sheet1!S71_SA34dCode,$AC:$AC,Sheet1!S71_DepCode,$AD:$AD)","v":0},{"$f":"SUMIFS(Sheet1!S71_AdjustmentBudAmnt,Sheet1!S71_SA34dCode,$AC:$AC,Sheet1!S71_DepCode,$AD:$AD)","v":0},{"$f":"SUMIFS(Sheet1!S71_AdjustmentBudAmnt,Sheet1!S71_SA34dCode,$AC:$AC,Sheet1!S71_DepCode,$AD:$AD)","v":0},{"$f":"SUMIFS(Sheet1!S71_ASBudgetAmount,Sheet1!S71_SA34dCode,$AC:$AC,Sheet1!S71_DepCode,$AD:$AD)","v":0},{"$f":"SUMIFS(Sheet1!S71_OY1BudgetAmount,Sheet1!S71_SA34dCode,$AC:$AC,Sheet1!S71_DepCode,$AD:$AD)","v":0},{"$f":"SUMIFS(Sheet1!S71_OY2BudgetAmount,Sheet1!S71_SA34dCode,$AC:$AC,Sheet1!S71_DepCode,$AD:$AD)","v":0},null,null,null,null,null,null,null,null,null,null,null,null,null,null,null,null,null,"0900","DP"]
["Parks",null,{"$f":"SUMIFS(Sheet1!S71_PPPYearAmount,Sheet1!S71_SA34dCode,$AC:$AC,Sheet1!S71_DepCode,$AD:$AD)","v":0},{"$f":"SUMIFS(Sheet1!S71_PPYearAmount,Sheet1!S71_SA34dCode,$AC:$AC,Sheet1!S71_DepCode,$AD:$AD)","v":0},{"$f":"SUMIFS(Sheet1!S71_PYearAmount,Sheet1!S71_SA34dCode,$AC:$AC,Sheet1!S71_DepCode,$AD:$AD)","v":0},{"$f":"SUMIFS(Sheet1!S71_OriginalBudAmnt,Sheet1!S71_SA34dCode,$AC:$AC,Sheet1!S71_DepCode,$AD:$AD)","v":0},{"$f":"SUMIFS(Sheet1!S71_AdjustmentBudAmnt,Sheet1!S71_SA34dCode,$AC:$AC,Sheet1!S71_DepCode,$AD:$AD)","v":0},{"$f":"SUMIFS(Sheet1!S71_AdjustmentBudAmnt,Sheet1!S71_SA34dCode,$AC:$AC,Sheet1!S71_DepCode,$AD:$AD)","v":0},{"$f":"SUMIFS(Sheet1!S71_ASBudgetAmount,Sheet1!S71_SA34dCode,$AC:$AC,Sheet1!S71_DepCode,$AD:$AD)","v":0},{"$f":"SUMIFS(Sheet1!S71_OY1BudgetAmount,Sheet1!S71_SA34dCode,$AC:$AC,Sheet1!S71_DepCode,$AD:$AD)","v":0},{"$f":"SUMIFS(Sheet1!S71_OY2BudgetAmount,Sheet1!S71_SA34dCode,$AC:$AC,Sheet1!S71_DepCode,$AD:$AD)","v":0},null,null,null,null,null,null,null,null,null,null,null,null,null,null,null,null,null,"0910","DP"]
["Public Open Space",null,{"$f":"SUMIFS(Sheet1!S71_PPPYearAmount,Sheet1!S71_SA34dCode,$AC:$AC,Sheet1!S71_DepCode,$AD:$AD)","v":0},{"$f":"SUMIFS(Sheet1!S71_PPYearAmount,Sheet1!S71_SA34dCode,$AC:$AC,Sheet1!S71_DepCode,$AD:$AD)","v":0},{"$f":"SUMIFS(Sheet1!S71_PYearAmount,Sheet1!S71_SA34dCode,$AC:$AC,Sheet1!S71_DepCode,$AD:$AD)","v":0},{"$f":"SUMIFS(Sheet1!S71_OriginalBudAmnt,Sheet1!S71_SA34dCode,$AC:$AC,Sheet1!S71_DepCode,$AD:$AD)","v":0},{"$f":"SUMIFS(Sheet1!S71_AdjustmentBudAmnt,Sheet1!S71_SA34dCode,$AC:$AC,Sheet1!S71_DepCode,$AD:$AD)","v":0},{"$f":"SUMIFS(Sheet1!S71_AdjustmentBudAmnt,Sheet1!S71_SA34dCode,$AC:$AC,Sheet1!S71_DepCode,$AD:$AD)","v":0},{"$f":"SUMIFS(Sheet1!S71_ASBudgetAmount,Sheet1!S71_SA34dCode,$AC:$AC,Sheet1!S71_DepCode,$AD:$AD)","v":0},{"$f":"SUMIFS(Sheet1!S71_OY1BudgetAmount,Sheet1!S71_SA34dCode,$AC:$AC,Sheet1!S71_DepCode,$AD:$AD)","v":0},{"$f":"SUMIFS(Sheet1!S71_OY2BudgetAmount,Sheet1!S71_SA34dCode,$AC:$AC,Sheet1!S71_DepCode,$AD:$AD)","v":0},null,null,null,null,null,null,null,null,null,null,null,null,null,null,null,null,null,"0920","DP"]
["Nature Reserves",null,{"$f":"SUMIFS(Sheet1!S71_PPPYearAmount,Sheet1!S71_SA34dCode,$AC:$AC,Sheet1!S71_DepCode,$AD:$AD)","v":0},{"$f":"SUMIFS(Sheet1!S71_PPYearAmount,Sheet1!S71_SA34dCode,$AC:$AC,Sheet1!S71_DepCode,$AD:$AD)","v":0},{"$f":"SUMIFS(Sheet1!S71_PYearAmount,Sheet1!S71_SA34dCode,$AC:$AC,Sheet1!S71_DepCode,$AD:$AD)","v":0},{"$f":"SUMIFS(Sheet1!S71_OriginalBudAmnt,Sheet1!S71_SA34dCode,$AC:$AC,Sheet1!S71_DepCode,$AD:$AD)","v":0},{"$f":"SUMIFS(Sheet1!S71_AdjustmentBudAmnt,Sheet1!S71_SA34dCode,$AC:$AC,Sheet1!S71_DepCode,$AD:$AD)","v":0},{"$f":"SUMIFS(Sheet1!S71_AdjustmentBudAmnt,Sheet1!S71_SA34dCode,$AC:$AC,Sheet1!S71_DepCode,$AD:$AD)","v":0},{"$f":"SUMIFS(Sheet1!S71_ASBudgetAmount,Sheet1!S71_SA34dCode,$AC:$AC,Sheet1!S71_DepCode,$AD:$AD)","v":0},{"$f":"SUMIFS(Sheet1!S71_OY1BudgetAmount,Sheet1!S71_SA34dCode,$AC:$AC,Sheet1!S71_DepCode,$AD:$AD)","v":0},{"$f":"SUMIFS(Sheet1!S71_OY2BudgetAmount,Sheet1!S71_SA34dCode,$AC:$AC,Sheet1!S71_DepCode,$AD:$AD)","v":0},null,null,null,null,null,null,null,null,null,null,null,null,null,null,null,null,null,"0930","DP"]
["Public Ablution Facilities",null,{"$f":"SUMIFS(Sheet1!S71_PPPYearAmount,Sheet1!S71_SA34dCode,$AC:$AC,Sheet1!S71_DepCode,$AD:$AD)","v":0},{"$f":"SUMIFS(Sheet1!S71_PPYearAmount,Sheet1!S71_SA34dCode,$AC:$AC,Sheet1!S71_DepCode,$AD:$AD)","v":0},{"$f":"SUMIFS(Sheet1!S71_PYearAmount,Sheet1!S71_SA34dCode,$AC:$AC,Sheet1!S71_DepCode,$AD:$AD)","v":0},{"$f":"SUMIFS(Sheet1!S71_OriginalBudAmnt,Sheet1!S71_SA34dCode,$AC:$AC,Sheet1!S71_DepCode,$AD:$AD)","v":0},{"$f":"SUMIFS(Sheet1!S71_AdjustmentBudAmnt,Sheet1!S71_SA34dCode,$AC:$AC,Sheet1!S71_DepCode,$AD:$AD)","v":0},{"$f":"SUMIFS(Sheet1!S71_AdjustmentBudAmnt,Sheet1!S71_SA34dCode,$AC:$AC,Sheet1!S71_DepCode,$AD:$AD)","v":0},{"$f":"SUMIFS(Sheet1!S71_ASBudgetAmount,Sheet1!S71_SA34dCode,$AC:$AC,Sheet1!S71_DepCode,$AD:$AD)","v":0},{"$f":"SUMIFS(Sheet1!S71_OY1BudgetAmount,Sheet1!S71_SA34dCode,$AC:$AC,Sheet1!S71_DepCode,$AD:$AD)","v":0},{"$f":"SUMIFS(Sheet1!S71_OY2BudgetAmount,Sheet1!S71_SA34dCode,$AC:$AC,Sheet1!S71_DepCode,$AD:$AD)","v":0},null,null,null,null,null,null,null,null,null,null,null,null,null,null,null,null,null,"0940","DP"]
["Markets",null,{"$f":"SUMIFS(Sheet1!S71_PPPYearAmount,Sheet1!S71_SA34dCode,$AC:$AC,Sheet1!S71_DepCode,$AD:$AD)","v":0},{"$f":"SUMIFS(Sheet1!S71_PPYearAmount,Sheet1!S71_SA34dCode,$AC:$AC,Sheet1!S71_DepCode,$AD:$AD)","v":0},{"$f":"SUMIFS(Sheet1!S71_PYearAmount,Sheet1!S71_SA34dCode,$AC:$AC,Sheet1!S71_DepCode,$AD:$AD)","v":0},{"$f":"SUMIFS(Sheet1!S71_OriginalBudAmnt,Sheet1!S71_SA34dCode,$AC:$AC,Sheet1!S71_DepCode,$AD:$AD)","v":0},{"$f":"SUMIFS(Sheet1!S71_AdjustmentBudAmnt,Sheet1!S71_SA34dCode,$AC:$AC,Sheet1!S71_DepCode,$AD:$AD)","v":0},{"$f":"SUMIFS(Sheet1!S71_AdjustmentBudAmnt,Sheet1!S71_SA34dCode,$AC:$AC,Sheet1!S71_DepCode,$AD:$AD)","v":0},{"$f":"SUMIFS(Sheet1!S71_ASBudgetAmount,Sheet1!S71_SA34dCode,$AC:$AC,Sheet1!S71_DepCode,$AD:$AD)","v":0},{"$f":"SUMIFS(Sheet1!S71_OY1BudgetAmount,Sheet1!S71_SA34dCode,$AC:$AC,Sheet1!S71_DepCode,$AD:$AD)","v":0},{"$f":"SUMIFS(Sheet1!S71_OY2BudgetAmount,Sheet1!S71_SA34dCode,$AC:$AC,Sheet1!S71_DepCode,$AD:$AD)","v":0},null,null,null,null,null,null,null,null,null,null,null,null,null,null,null,null,null,"0950","DP"]
["Stalls",null,{"$f":"SUMIFS(Sheet1!S71_PPPYearAmount,Sheet1!S71_SA34dCode,$AC:$AC,Sheet1!S71_DepCode,$AD:$AD)","v":0},{"$f":"SUMIFS(Sheet1!S71_PPYearAmount,Sheet1!S71_SA34dCode,$AC:$AC,Sheet1!S71_DepCode,$AD:$AD)","v":0},{"$f":"SUMIFS(Sheet1!S71_PYearAmount,Sheet1!S71_SA34dCode,$AC:$AC,Sheet1!S71_DepCode,$AD:$AD)","v":0},{"$f":"SUMIFS(Sheet1!S71_OriginalBudAmnt,Sheet1!S71_SA34dCode,$AC:$AC,Sheet1!S71_DepCode,$AD:$AD)","v":0},{"$f":"SUMIFS(Sheet1!S71_AdjustmentBudAmnt,Sheet1!S71_SA34dCode,$AC:$AC,Sheet1!S71_DepCode,$AD:$AD)","v":0},{"$f":"SUMIFS(Sheet1!S71_AdjustmentBudAmnt,Sheet1!S71_SA34dCode,$AC:$AC,Sheet1!S71_DepCode,$AD:$AD)","v":0},{"$f":"SUMIFS(Sheet1!S71_ASBudgetAmount,Sheet1!S71_SA34dCode,$AC:$AC,Sheet1!S71_DepCode,$AD:$AD)","v":0},{"$f":"SUMIFS(Sheet1!S71_OY1BudgetAmount,Sheet1!S71_SA34dCode,$AC:$AC,Sheet1!S71_DepCode,$AD:$AD)","v":0},{"$f":"SUMIFS(Sheet1!S71_OY2BudgetAmount,Sheet1!S71_SA34dCode,$AC:$AC,Sheet1!S71_DepCode,$AD:$AD)","v":0},null,null,null,null,null,null,null,null,null,null,null,null,null,null,null,null,null,"0960","DP"]
["Abattoirs",null,{"$f":"SUMIFS(Sheet1!S71_PPPYearAmount,Sheet1!S71_SA34dCode,$AC:$AC,Sheet1!S71_DepCode,$AD:$AD)","v":0},{"$f":"SUMIFS(Sheet1!S71_PPYearAmount,Sheet1!S71_SA34dCode,$AC:$AC,Sheet1!S71_DepCode,$AD:$AD)","v":0},{"$f":"SUMIFS(Sheet1!S71_PYearAmount,Sheet1!S71_SA34dCode,$AC:$AC,Sheet1!S71_DepCode,$AD:$AD)","v":0},{"$f":"SUMIFS(Sheet1!S71_OriginalBudAmnt,Sheet1!S71_SA34dCode,$AC:$AC,Sheet1!S71_DepCode,$AD:$AD)","v":0},{"$f":"SUMIFS(Sheet1!S71_AdjustmentBudAmnt,Sheet1!S71_SA34dCode,$AC:$AC,Sheet1!S71_DepCode,$AD:$AD)","v":0},{"$f":"SUMIFS(Sheet1!S71_AdjustmentBudAmnt,Sheet1!S71_SA34dCode,$AC:$AC,Sheet1!S71_DepCode,$AD:$AD)","v":0},{"$f":"SUMIFS(Sheet1!S71_ASBudgetAmount,Sheet1!S71_SA34dCode,$AC:$AC,Sheet1!S71_DepCode,$AD:$AD)","v":0},{"$f":"SUMIFS(Sheet1!S71_OY1BudgetAmount,Sheet1!S71_SA34dCode,$AC:$AC,Sheet1!S71_DepCode,$AD:$AD)","v":0},{"$f":"SUMIFS(Sheet1!S71_OY2BudgetAmount,Sheet1!S71_SA34dCode,$AC:$AC,Sheet1!S71_DepCode,$AD:$AD)","v":0},null,null,null,null,null,null,null,null,null,null,null,null,null,null,null,null,null,"0970","DP"]
["Airports",null,{"$f":"SUMIFS(Sheet1!S71_PPPYearAmount,Sheet1!S71_SA34dCode,$AC:$AC,Sheet1!S71_DepCode,$AD:$AD)","v":0},{"$f":"SUMIFS(Sheet1!S71_PPYearAmount,Sheet1!S71_SA34dCode,$AC:$AC,Sheet1!S71_DepCode,$AD:$AD)","v":0},{"$f":"SUMIFS(Sheet1!S71_PYearAmount,Sheet1!S71_SA34dCode,$AC:$AC,Sheet1!S71_DepCode,$AD:$AD)","v":0},{"$f":"SUMIFS(Sheet1!S71_OriginalBudAmnt,Sheet1!S71_SA34dCode,$AC:$AC,Sheet1!S71_DepCode,$AD:$AD)","v":0},{"$f":"SUMIFS(Sheet1!S71_AdjustmentBudAmnt,Sheet1!S71_SA34dCode,$AC:$AC,Sheet1!S71_DepCode,$AD:$AD)","v":0},{"$f":"SUMIFS(Sheet1!S71_AdjustmentBudAmnt,Sheet1!S71_SA34dCode,$AC:$AC,Sheet1!S71_DepCode,$AD:$AD)","v":0},{"$f":"SUMIFS(Sheet1!S71_ASBudgetAmount,Sheet1!S71_SA34dCode,$AC:$AC,Sheet1!S71_DepCode,$AD:$AD)","v":0},{"$f":"SUMIFS(Sheet1!S71_OY1BudgetAmount,Sheet1!S71_SA34dCode,$AC:$AC,Sheet1!S71_DepCode,$AD:$AD)","v":0},{"$f":"SUMIFS(Sheet1!S71_OY2BudgetAmount,Sheet1!S71_SA34dCode,$AC:$AC,Sheet1!S71_DepCode,$AD:$AD)","v":0},null,null,null,null,null,null,null,null,null,null,null,null,null,null,null,null,null,"0980","DP"]
["Taxi Ranks/Bus Terminals",null,{"$f":"SUMIFS(Sheet1!S71_PPPYearAmount,Sheet1!S71_SA34dCode,$AC:$AC,Sheet1!S71_DepCode,$AD:$AD)","v":0},{"$f":"SUMIFS(Sheet1!S71_PPYearAmount,Sheet1!S71_SA34dCode,$AC:$AC,Sheet1!S71_DepCode,$AD:$AD)","v":0},{"$f":"SUMIFS(Sheet1!S71_PYearAmount,Sheet1!S71_SA34dCode,$AC:$AC,Sheet1!S71_DepCode,$AD:$AD)","v":0},{"$f":"SUMIFS(Sheet1!S71_OriginalBudAmnt,Sheet1!S71_SA34dCode,$AC:$AC,Sheet1!S71_DepCode,$AD:$AD)","v":0},{"$f":"SUMIFS(Sheet1!S71_AdjustmentBudAmnt,Sheet1!S71_SA34dCode,$AC:$AC,Sheet1!S71_DepCode,$AD:$AD)","v":0},{"$f":"SUMIFS(Sheet1!S71_AdjustmentBudAmnt,Sheet1!S71_SA34dCode,$AC:$AC,Sheet1!S71_DepCode,$AD:$AD)","v":0},{"$f":"SUMIFS(Sheet1!S71_ASBudgetAmount,Sheet1!S71_SA34dCode,$AC:$AC,Sheet1!S71_DepCode,$AD:$AD)","v":0},{"$f":"SUMIFS(Sheet1!S71_OY1BudgetAmount,Sheet1!S71_SA34dCode,$AC:$AC,Sheet1!S71_DepCode,$AD:$AD)","v":0},{"$f":"SUMIFS(Sheet1!S71_OY2BudgetAmount,Sheet1!S71_SA34dCode,$AC:$AC,Sheet1!S71_DepCode,$AD:$AD)","v":0},null,null,null,null,null,null,null,null,null,null,null,null,null,null,null,null,null,"0990","DP"]
["Capital Spares",null,{"$f":"SUMIFS(Sheet1!S71_PPPYearAmount,Sheet1!S71_SA34dCode,$AC:$AC,Sheet1!S71_DepCode,$AD:$AD)","v":0},{"$f":"SUMIFS(Sheet1!S71_PPYearAmount,Sheet1!S71_SA34dCode,$AC:$AC,Sheet1!S71_DepCode,$AD:$AD)","v":0},{"$f":"SUMIFS(Sheet1!S71_PYearAmount,Sheet1!S71_SA34dCode,$AC:$AC,Sheet1!S71_DepCode,$AD:$AD)","v":0},{"$f":"SUMIFS(Sheet1!S71_OriginalBudAmnt,Sheet1!S71_SA34dCode,$AC:$AC,Sheet1!S71_DepCode,$AD:$AD)","v":0},{"$f":"SUMIFS(Sheet1!S71_AdjustmentBudAmnt,Sheet1!S71_SA34dCode,$AC:$AC,Sheet1!S71_DepCode,$AD:$AD)","v":0},{"$f":"SUMIFS(Sheet1!S71_AdjustmentBudAmnt,Sheet1!S71_SA34dCode,$AC:$AC,Sheet1!S71_DepCode,$AD:$AD)","v":0},{"$f":"SUMIFS(Sheet1!S71_ASBudgetAmount,Sheet1!S71_SA34dCode,$AC:$AC,Sheet1!S71_DepCode,$AD:$AD)","v":0},{"$f":"SUMIFS(Sheet1!S71_OY1BudgetAmount,Sheet1!S71_SA34dCode,$AC:$AC,Sheet1!S71_DepCode,$AD:$AD)","v":0},{"$f":"SUMIFS(Sheet1!S71_OY2BudgetAmount,Sheet1!S71_SA34dCode,$AC:$AC,Sheet1!S71_DepCode,$AD:$AD)","v":0},null,null,null,null,null,null,null,null,null,null,null,null,null,null,null,null,null,"1000","DP"]
["Sport and Recreation Facilities",null,{"$f":"SUM(C99:C101)","v":0},{"$f":"SUM(D99:D101)","v":0},0,0,0,0,0,0,0,null,null,null,null,null,null,null,null,null,null,null,null,null,null,null,null,null,null,"DP"]
["Indoor Facilities",null,{"$f":"SUMIFS(Sheet1!S71_PPPYearAmount,Sheet1!S71_SA34dCode,$AC:$AC,Sheet1!S71_DepCode,$AD:$AD)","v":0},{"$f":"SUMIFS(Sheet1!S71_PPYearAmount,Sheet1!S71_SA34dCode,$AC:$AC,Sheet1!S71_DepCode,$AD:$AD)","v":0},{"$f":"SUMIFS(Sheet1!S71_PYearAmount,Sheet1!S71_SA34dCode,$AC:$AC,Sheet1!S71_DepCode,$AD:$AD)","v":0},{"$f":"SUMIFS(Sheet1!S71_OriginalBudAmnt,Sheet1!S71_SA34dCode,$AC:$AC,Sheet1!S71_DepCode,$AD:$AD)","v":0},{"$f":"SUMIFS(Sheet1!S71_AdjustmentBudAmnt,Sheet1!S71_SA34dCode,$AC:$AC,Sheet1!S71_DepCode,$AD:$AD)","v":0},{"$f":"SUMIFS(Sheet1!S71_AdjustmentBudAmnt,Sheet1!S71_SA34dCode,$AC:$AC,Sheet1!S71_DepCode,$AD:$AD)","v":0},{"$f":"SUMIFS(Sheet1!S71_ASBudgetAmount,Sheet1!S71_SA34dCode,$AC:$AC,Sheet1!S71_DepCode,$AD:$AD)","v":0},{"$f":"SUMIFS(Sheet1!S71_OY1BudgetAmount,Sheet1!S71_SA34dCode,$AC:$AC,Sheet1!S71_DepCode,$AD:$AD)","v":0},{"$f":"SUMIFS(Sheet1!S71_OY2BudgetAmount,Sheet1!S71_SA34dCode,$AC:$AC,Sheet1!S71_DepCode,$AD:$AD)","v":0},null,null,null,null,null,null,null,null,null,null,null,null,null,null,null,null,null,"1020","DP"]
["Outdoor Facilities",null,{"$f":"SUMIFS(Sheet1!S71_PPPYearAmount,Sheet1!S71_SA34dCode,$AC:$AC,Sheet1!S71_DepCode,$AD:$AD)","v":0},{"$f":"SUMIFS(Sheet1!S71_PPYearAmount,Sheet1!S71_SA34dCode,$AC:$AC,Sheet1!S71_DepCode,$AD:$AD)","v":0},{"$f":"SUMIFS(Sheet1!S71_PYearAmount,Sheet1!S71_SA34dCode,$AC:$AC,Sheet1!S71_DepCode,$AD:$AD)","v":0},{"$f":"SUMIFS(Sheet1!S71_OriginalBudAmnt,Sheet1!S71_SA34dCode,$AC:$AC,Sheet1!S71_DepCode,$AD:$AD)","v":0},{"$f":"SUMIFS(Sheet1!S71_AdjustmentBudAmnt,Sheet1!S71_SA34dCode,$AC:$AC,Sheet1!S71_DepCode,$AD:$AD)","v":0},{"$f":"SUMIFS(Sheet1!S71_AdjustmentBudAmnt,Sheet1!S71_SA34dCode,$AC:$AC,Sheet1!S71_DepCode,$AD:$AD)","v":0},{"$f":"SUMIFS(Sheet1!S71_ASBudgetAmount,Sheet1!S71_SA34dCode,$AC:$AC,Sheet1!S71_DepCode,$AD:$AD)","v":0},{"$f":"SUMIFS(Sheet1!S71_OY1BudgetAmount,Sheet1!S71_SA34dCode,$AC:$AC,Sheet1!S71_DepCode,$AD:$AD)","v":0},{"$f":"SUMIFS(Sheet1!S71_OY2BudgetAmount,Sheet1!S71_SA34dCode,$AC:$AC,Sheet1!S71_DepCode,$AD:$AD)","v":0},null,null,null,null,null,null,null,null,null,null,null,null,null,null,null,null,null,"1030","DP"]
["Capital Spares",null,{"$f":"SUMIFS(Sheet1!S71_PPPYearAmount,Sheet1!S71_SA34dCode,$AC:$AC,Sheet1!S71_DepCode,$AD:$AD)","v":0},{"$f":"SUMIFS(Sheet1!S71_PPYearAmount,Sheet1!S71_SA34dCode,$AC:$AC,Sheet1!S71_DepCode,$AD:$AD)","v":0},{"$f":"SUMIFS(Sheet1!S71_PYearAmount,Sheet1!S71_SA34dCode,$AC:$AC,Sheet1!S71_DepCode,$AD:$AD)","v":0},{"$f":"SUMIFS(Sheet1!S71_OriginalBudAmnt,Sheet1!S71_SA34dCode,$AC:$AC,Sheet1!S71_DepCode,$AD:$AD)","v":0},{"$f":"SUMIFS(Sheet1!S71_AdjustmentBudAmnt,Sheet1!S71_SA34dCode,$AC:$AC,Sheet1!S71_DepCode,$AD:$AD)","v":0},{"$f":"SUMIFS(Sheet1!S71_AdjustmentBudAmnt,Sheet1!S71_SA34dCode,$AC:$AC,Sheet1!S71_DepCode,$AD:$AD)","v":0},{"$f":"SUMIFS(Sheet1!S71_ASBudgetAmount,Sheet1!S71_SA34dCode,$AC:$AC,Sheet1!S71_DepCode,$AD:$AD)","v":0},{"$f":"SUMIFS(Sheet1!S71_OY1BudgetAmount,Sheet1!S71_SA34dCode,$AC:$AC,Sheet1!S71_DepCode,$AD:$AD)","v":0},{"$f":"SUMIFS(Sheet1!S71_OY2BudgetAmount,Sheet1!S71_SA34dCode,$AC:$AC,Sheet1!S71_DepCode,$AD:$AD)","v":0},null,null,null,null,null,null,null,null,null,null,null,null,null,null,null,null,null,"1040","DP"]
[null,null,null,null,null,null,null,null,null,null,null,null,null,null,null,null,null,null,null,null,null,null,null,null,null,null,null,null,null,"DP"]
["Heritage assets",null,{"$f":"SUM(C104:C108)","v":0},{"$f":"SUM(D104:D108)","v":0},0,0,0,0,0,0,0,null,null,null,null,null,null,null,null,null,null,null,null,null,null,null,null,null,null,"DP"]
["Monuments",null,{"$f":"SUMIFS(Sheet1!S71_PPPYearAmount,Sheet1!S71_SA34dCode,$AC:$AC,Sheet1!S71_DepCode,$AD:$AD)","v":0},{"$f":"SUMIFS(Sheet1!S71_PPYearAmount,Sheet1!S71_SA34dCode,$AC:$AC,Sheet1!S71_DepCode,$AD:$AD)","v":0},{"$f":"SUMIFS(Sheet1!S71_PYearAmount,Sheet1!S71_SA34dCode,$AC:$AC,Sheet1!S71_DepCode,$AD:$AD)","v":0},{"$f":"SUMIFS(Sheet1!S71_OriginalBudAmnt,Sheet1!S71_SA34dCode,$AC:$AC,Sheet1!S71_DepCode,$AD:$AD)","v":0},{"$f":"SUMIFS(Sheet1!S71_AdjustmentBudAmnt,Sheet1!S71_SA34dCode,$AC:$AC,Sheet1!S71_DepCode,$AD:$AD)","v":0},{"$f":"SUMIFS(Sheet1!S71_AdjustmentBudAmnt,Sheet1!S71_SA34dCode,$AC:$AC,Sheet1!S71_DepCode,$AD:$AD)","v":0},{"$f":"SUMIFS(Sheet1!S71_ASBudgetAmount,Sheet1!S71_SA34dCode,$AC:$AC,Sheet1!S71_DepCode,$AD:$AD)","v":0},{"$f":"SUMIFS(Sheet1!S71_OY1BudgetAmount,Sheet1!S71_SA34dCode,$AC:$AC,Sheet1!S71_DepCode,$AD:$AD)","v":0},{"$f":"SUMIFS(Sheet1!S71_OY2BudgetAmount,Sheet1!S71_SA34dCode,$AC:$AC,Sheet1!S71_DepCode,$AD:$AD)","v":0},null,null,null,null,null,null,null,null,null,null,null,null,null,null,null,null,null,"1060","DP"]
["Historic Buildings",null,{"$f":"SUMIFS(Sheet1!S71_PPPYearAmount,Sheet1!S71_SA34dCode,$AC:$AC,Sheet1!S71_DepCode,$AD:$AD)","v":0},{"$f":"SUMIFS(Sheet1!S71_PPYearAmount,Sheet1!S71_SA34dCode,$AC:$AC,Sheet1!S71_DepCode,$AD:$AD)","v":0},{"$f":"SUMIFS(Sheet1!S71_PYearAmount,Sheet1!S71_SA34dCode,$AC:$AC,Sheet1!S71_DepCode,$AD:$AD)","v":0},{"$f":"SUMIFS(Sheet1!S71_OriginalBudAmnt,Sheet1!S71_SA34dCode,$AC:$AC,Sheet1!S71_DepCode,$AD:$AD)","v":0},{"$f":"SUMIFS(Sheet1!S71_AdjustmentBudAmnt,Sheet1!S71_SA34dCode,$AC:$AC,Sheet1!S71_DepCode,$AD:$AD)","v":0},{"$f":"SUMIFS(Sheet1!S71_AdjustmentBudAmnt,Sheet1!S71_SA34dCode,$AC:$AC,Sheet1!S71_DepCode,$AD:$AD)","v":0},{"$f":"SUMIFS(Sheet1!S71_ASBudgetAmount,Sheet1!S71_SA34dCode,$AC:$AC,Sheet1!S71_DepCode,$AD:$AD)","v":0},{"$f":"SUMIFS(Sheet1!S71_OY1BudgetAmount,Sheet1!S71_SA34dCode,$AC:$AC,Sheet1!S71_DepCode,$AD:$AD)","v":0},{"$f":"SUMIFS(Sheet1!S71_OY2BudgetAmount,Sheet1!S71_SA34dCode,$AC:$AC,Sheet1!S71_DepCode,$AD:$AD)","v":0},null,null,null,null,null,null,null,null,null,null,null,null,null,null,null,null,null,"1070","DP"]
["Works of Art",null,{"$f":"SUMIFS(Sheet1!S71_PPPYearAmount,Sheet1!S71_SA34dCode,$AC:$AC,Sheet1!S71_DepCode,$AD:$AD)","v":0},{"$f":"SUMIFS(Sheet1!S71_PPYearAmount,Sheet1!S71_SA34dCode,$AC:$AC,Sheet1!S71_DepCode,$AD:$AD)","v":0},{"$f":"SUMIFS(Sheet1!S71_PYearAmount,Sheet1!S71_SA34dCode,$AC:$AC,Sheet1!S71_DepCode,$AD:$AD)","v":0},{"$f":"SUMIFS(Sheet1!S71_OriginalBudAmnt,Sheet1!S71_SA34dCode,$AC:$AC,Sheet1!S71_DepCode,$AD:$AD)","v":0},{"$f":"SUMIFS(Sheet1!S71_AdjustmentBudAmnt,Sheet1!S71_SA34dCode,$AC:$AC,Sheet1!S71_DepCode,$AD:$AD)","v":0},{"$f":"SUMIFS(Sheet1!S71_AdjustmentBudAmnt,Sheet1!S71_SA34dCode,$AC:$AC,Sheet1!S71_DepCode,$AD:$AD)","v":0},{"$f":"SUMIFS(Sheet1!S71_ASBudgetAmount,Sheet1!S71_SA34dCode,$AC:$AC,Sheet1!S71_DepCode,$AD:$AD)","v":0},{"$f":"SUMIFS(Sheet1!S71_OY1BudgetAmount,Sheet1!S71_SA34dCode,$AC:$AC,Sheet1!S71_DepCode,$AD:$AD)","v":0},{"$f":"SUMIFS(Sheet1!S71_OY2BudgetAmount,Sheet1!S71_SA34dCode,$AC:$AC,Sheet1!S71_DepCode,$AD:$AD)","v":0},null,null,null,null,null,null,null,null,null,null,null,null,null,null,null,null,null,"1080","DP"]
["Conservation Areas",null,{"$f":"SUMIFS(Sheet1!S71_PPPYearAmount,Sheet1!S71_SA34dCode,$AC:$AC,Sheet1!S71_DepCode,$AD:$AD)","v":0},{"$f":"SUMIFS(Sheet1!S71_PPYearAmount,Sheet1!S71_SA34dCode,$AC:$AC,Sheet1!S71_DepCode,$AD:$AD)","v":0},{"$f":"SUMIFS(Sheet1!S71_PYearAmount,Sheet1!S71_SA34dCode,$AC:$AC,Sheet1!S71_DepCode,$AD:$AD)","v":0},{"$f":"SUMIFS(Sheet1!S71_OriginalBudAmnt,Sheet1!S71_SA34dCode,$AC:$AC,Sheet1!S71_DepCode,$AD:$AD)","v":0},{"$f":"SUMIFS(Sheet1!S71_AdjustmentBudAmnt,Sheet1!S71_SA34dCode,$AC:$AC,Sheet1!S71_DepCode,$AD:$AD)","v":0},{"$f":"SUMIFS(Sheet1!S71_AdjustmentBudAmnt,Sheet1!S71_SA34dCode,$AC:$AC,Sheet1!S71_DepCode,$AD:$AD)","v":0},{"$f":"SUMIFS(Sheet1!S71_ASBudgetAmount,Sheet1!S71_SA34dCode,$AC:$AC,Sheet1!S71_DepCode,$AD:$AD)","v":0},{"$f":"SUMIFS(Sheet1!S71_OY1BudgetAmount,Sheet1!S71_SA34dCode,$AC:$AC,Sheet1!S71_DepCode,$AD:$AD)","v":0},{"$f":"SUMIFS(Sheet1!S71_OY2BudgetAmount,Sheet1!S71_SA34dCode,$AC:$AC,Sheet1!S71_DepCode,$AD:$AD)","v":0},null,null,null,null,null,null,null,null,null,null,null,null,null,null,null,null,null,"1090","DP"]
["Other Heritage",null,{"$f":"SUMIFS(Sheet1!S71_PPPYearAmount,Sheet1!S71_SA34dCode,$AC:$AC,Sheet1!S71_DepCode,$AD:$AD)","v":0},{"$f":"SUMIFS(Sheet1!S71_PPYearAmount,Sheet1!S71_SA34dCode,$AC:$AC,Sheet1!S71_DepCode,$AD:$AD)","v":0},{"$f":"SUMIFS(Sheet1!S71_PYearAmount,Sheet1!S71_SA34dCode,$AC:$AC,Sheet1!S71_DepCode,$AD:$AD)","v":0},{"$f":"SUMIFS(Sheet1!S71_OriginalBudAmnt,Sheet1!S71_SA34dCode,$AC:$AC,Sheet1!S71_DepCode,$AD:$AD)","v":0},{"$f":"SUMIFS(Sheet1!S71_AdjustmentBudAmnt,Sheet1!S71_SA34dCode,$AC:$AC,Sheet1!S71_DepCode,$AD:$AD)","v":0},{"$f":"SUMIFS(Sheet1!S71_AdjustmentBudAmnt,Sheet1!S71_SA34dCode,$AC:$AC,Sheet1!S71_DepCode,$AD:$AD)","v":0},{"$f":"SUMIFS(Sheet1!S71_ASBudgetAmount,Sheet1!S71_SA34dCode,$AC:$AC,Sheet1!S71_DepCode,$AD:$AD)","v":0},{"$f":"SUMIFS(Sheet1!S71_OY1BudgetAmount,Sheet1!S71_SA34dCode,$AC:$AC,Sheet1!S71_DepCode,$AD:$AD)","v":0},{"$f":"SUMIFS(Sheet1!S71_OY2BudgetAmount,Sheet1!S71_SA34dCode,$AC:$AC,Sheet1!S71_DepCode,$AD:$AD)","v":0},null,null,null,null,null,null,null,null,null,null,null,null,null,null,null,null,null,"1100","DP"]
[null,null,null,null,null,null,null,null,null,null,null,null,null,null,null,null,null,null,null,null,null,null,null,null,null,null,null,null,null,"DP"]
["Investment properties",null,{"$f":"+C111+C114","v":0},{"$f":"+D111+D114","v":0},0,0,0,0,0,0,0,null,null,null,null,null,null,null,null,null,null,null,null,null,null,null,null,null,null,"DP"]
["Revenue Generating",null,{"$f":"SUM(C112:C113)","v":0},0,0,0,0,0,0,0,0,null,null,null,null,null,null,null,null,null,null,null,null,null,null,null,null,null,null,"DP"]
["Improved Property",null,{"$f":"SUMIFS(Sheet1!S71_PPPYearAmount,Sheet1!S71_SA34dCode,$AC:$AC,Sheet1!S71_DepCode,$AD:$AD)","v":0},{"$f":"SUMIFS(Sheet1!S71_PPYearAmount,Sheet1!S71_SA34dCode,$AC:$AC,Sheet1!S71_DepCode,$AD:$AD)","v":0},{"$f":"SUMIFS(Sheet1!S71_PYearAmount,Sheet1!S71_SA34dCode,$AC:$AC,Sheet1!S71_DepCode,$AD:$AD)","v":0},{"$f":"SUMIFS(Sheet1!S71_OriginalBudAmnt,Sheet1!S71_SA34dCode,$AC:$AC,Sheet1!S71_DepCode,$AD:$AD)","v":0},{"$f":"SUMIFS(Sheet1!S71_AdjustmentBudAmnt,Sheet1!S71_SA34dCode,$AC:$AC,Sheet1!S71_DepCode,$AD:$AD)","v":0},{"$f":"SUMIFS(Sheet1!S71_AdjustmentBudAmnt,Sheet1!S71_SA34dCode,$AC:$AC,Sheet1!S71_DepCode,$AD:$AD)","v":0},{"$f":"SUMIFS(Sheet1!S71_ASBudgetAmount,Sheet1!S71_SA34dCode,$AC:$AC,Sheet1!S71_DepCode,$AD:$AD)","v":0},{"$f":"SUMIFS(Sheet1!S71_OY1BudgetAmount,Sheet1!S71_SA34dCode,$AC:$AC,Sheet1!S71_DepCode,$AD:$AD)","v":0},{"$f":"SUMIFS(Sheet1!S71_OY2BudgetAmount,Sheet1!S71_SA34dCode,$AC:$AC,Sheet1!S71_DepCode,$AD:$AD)","v":0},null,null,null,null,null,null,null,null,null,null,null,null,null,null,null,null,null,"1130","DP"]
["Unimproved Property",null,{"$f":"SUMIFS(Sheet1!S71_PPPYearAmount,Sheet1!S71_SA34dCode,$AC:$AC,Sheet1!S71_DepCode,$AD:$AD)","v":0},{"$f":"SUMIFS(Sheet1!S71_PPYearAmount,Sheet1!S71_SA34dCode,$AC:$AC,Sheet1!S71_DepCode,$AD:$AD)","v":0},{"$f":"SUMIFS(Sheet1!S71_PYearAmount,Sheet1!S71_SA34dCode,$AC:$AC,Sheet1!S71_DepCode,$AD:$AD)","v":0},{"$f":"SUMIFS(Sheet1!S71_OriginalBudAmnt,Sheet1!S71_SA34dCode,$AC:$AC,Sheet1!S71_DepCode,$AD:$AD)","v":0},{"$f":"SUMIFS(Sheet1!S71_AdjustmentBudAmnt,Sheet1!S71_SA34dCode,$AC:$AC,Sheet1!S71_DepCode,$AD:$AD)","v":0},{"$f":"SUMIFS(Sheet1!S71_AdjustmentBudAmnt,Sheet1!S71_SA34dCode,$AC:$AC,Sheet1!S71_DepCode,$AD:$AD)","v":0},{"$f":"SUMIFS(Sheet1!S71_ASBudgetAmount,Sheet1!S71_SA34dCode,$AC:$AC,Sheet1!S71_DepCode,$AD:$AD)","v":0},{"$f":"SUMIFS(Sheet1!S71_OY1BudgetAmount,Sheet1!S71_SA34dCode,$AC:$AC,Sheet1!S71_DepCode,$AD:$AD)","v":0},{"$f":"SUMIFS(Sheet1!S71_OY2BudgetAmount,Sheet1!S71_SA34dCode,$AC:$AC,Sheet1!S71_DepCode,$AD:$AD)","v":0},null,null,null,null,null,null,null,null,null,null,null,null,null,null,null,null,null,"1140","DP"]
["Non-revenue Generating",null,{"$f":"SUM(C115:C116)","v":0},{"$f":"SUM(D115:D116)","v":0},0,0,0,0,0,0,0,null,null,null,null,null,null,null,null,null,null,null,null,null,null,null,null,null,null,"DP"]
["Improved Property",null,{"$f":"SUMIFS(Sheet1!S71_PPPYearAmount,Sheet1!S71_SA34dCode,$AC:$AC,Sheet1!S71_DepCode,$AD:$AD)","v":0},{"$f":"SUMIFS(Sheet1!S71_PPYearAmount,Sheet1!S71_SA34dCode,$AC:$AC,Sheet1!S71_DepCode,$AD:$AD)","v":0},{"$f":"SUMIFS(Sheet1!S71_PYearAmount,Sheet1!S71_SA34dCode,$AC:$AC,Sheet1!S71_DepCode,$AD:$AD)","v":0},{"$f":"SUMIFS(Sheet1!S71_OriginalBudAmnt,Sheet1!S71_SA34dCode,$AC:$AC,Sheet1!S71_DepCode,$AD:$AD)","v":0},{"$f":"SUMIFS(Sheet1!S71_AdjustmentBudAmnt,Sheet1!S71_SA34dCode,$AC:$AC,Sheet1!S71_DepCode,$AD:$AD)","v":0},{"$f":"SUMIFS(Sheet1!S71_AdjustmentBudAmnt,Sheet1!S71_SA34dCode,$AC:$AC,Sheet1!S71_DepCode,$AD:$AD)","v":0},{"$f":"SUMIFS(Sheet1!S71_ASBudgetAmount,Sheet1!S71_SA34dCode,$AC:$AC,Sheet1!S71_DepCode,$AD:$AD)","v":0},{"$f":"SUMIFS(Sheet1!S71_OY1BudgetAmount,Sheet1!S71_SA34dCode,$AC:$AC,Sheet1!S71_DepCode,$AD:$AD)","v":0},{"$f":"SUMIFS(Sheet1!S71_OY2BudgetAmount,Sheet1!S71_SA34dCode,$AC:$AC,Sheet1!S71_DepCode,$AD:$AD)","v":0},null,null,null,null,null,null,null,null,null,null,null,null,null,null,null,null,null,"1160","DP"]
["Unimproved Property",null,{"$f":"SUMIFS(Sheet1!S71_PPPYearAmount,Sheet1!S71_SA34dCode,$AC:$AC,Sheet1!S71_DepCode,$AD:$AD)","v":0},{"$f":"SUMIFS(Sheet1!S71_PPYearAmount,Sheet1!S71_SA34dCode,$AC:$AC,Sheet1!S71_DepCode,$AD:$AD)","v":0},{"$f":"SUMIFS(Sheet1!S71_PYearAmount,Sheet1!S71_SA34dCode,$AC:$AC,Sheet1!S71_DepCode,$AD:$AD)","v":0},{"$f":"SUMIFS(Sheet1!S71_OriginalBudAmnt,Sheet1!S71_SA34dCode,$AC:$AC,Sheet1!S71_DepCode,$AD:$AD)","v":0},{"$f":"SUMIFS(Sheet1!S71_AdjustmentBudAmnt,Sheet1!S71_SA34dCode,$AC:$AC,Sheet1!S71_DepCode,$AD:$AD)","v":0},{"$f":"SUMIFS(Sheet1!S71_AdjustmentBudAmnt,Sheet1!S71_SA34dCode,$AC:$AC,Sheet1!S71_DepCode,$AD:$AD)","v":0},{"$f":"SUMIFS(Sheet1!S71_ASBudgetAmount,Sheet1!S71_SA34dCode,$AC:$AC,Sheet1!S71_DepCode,$AD:$AD)","v":0},{"$f":"SUMIFS(Sheet1!S71_OY1BudgetAmount,Sheet1!S71_SA34dCode,$AC:$AC,Sheet1!S71_DepCode,$AD:$AD)","v":0},{"$f":"SUMIFS(Sheet1!S71_OY2BudgetAmount,Sheet1!S71_SA34dCode,$AC:$AC,Sheet1!S71_DepCode,$AD:$AD)","v":0},null,null,null,null,null,null,null,null,null,null,null,null,null,null,null,null,null,"1170","DP"]
[null,null,null,null,null,null,null,null,null,null,null,null,null,null,null,null,null,null,null,null,null,null,null,null,null,null,null,null,null,"DP"]
["Other assets",null,{"$f":"+C119+C131","v":0},{"$f":"+D119+D131","v":558297},559197,1660850,1810850,1810850,92146,92146,92146,null,null,null,null,null,null,null,null,null,null,null,null,null,null,null,null,null,null,"DP"]
["Operational Buildings",null,{"$f":"SUM(C120:C130)","v":0},{"$f":"SUM(D120:D130)","v":558297},559197,1660850,1810850,1810850,92146,92146,92146,null,null,null,null,null,null,null,null,null,null,null,null,null,null,null,null,null,null,"DP"]
["Municipal Offices",null,{"$f":"SUMIFS(Sheet1!S71_PPPYearAmount,Sheet1!S71_SA34dCode,$AC:$AC,Sheet1!S71_DepCode,$AD:$AD)","v":0},{"$f":"SUMIFS(Sheet1!S71_PPYearAmount,Sheet1!S71_SA34dCode,$AC:$AC,Sheet1!S71_DepCode,$AD:$AD)","v":558297},{"$f":"SUMIFS(Sheet1!S71_PYearAmount,Sheet1!S71_SA34dCode,$AC:$AC,Sheet1!S71_DepCode,$AD:$AD)","v":559197},{"$f":"SUMIFS(Sheet1!S71_OriginalBudAmnt,Sheet1!S71_SA34dCode,$AC:$AC,Sheet1!S71_DepCode,$AD:$AD)","v":1660850},{"$f":"SUMIFS(Sheet1!S71_AdjustmentBudAmnt,Sheet1!S71_SA34dCode,$AC:$AC,Sheet1!S71_DepCode,$AD:$AD)","v":1810850},{"$f":"SUMIFS(Sheet1!S71_AdjustmentBudAmnt,Sheet1!S71_SA34dCode,$AC:$AC,Sheet1!S71_DepCode,$AD:$AD)","v":1810850},{"$f":"SUMIFS(Sheet1!S71_ASBudgetAmount,Sheet1!S71_SA34dCode,$AC:$AC,Sheet1!S71_DepCode,$AD:$AD)","v":92146},{"$f":"SUMIFS(Sheet1!S71_OY1BudgetAmount,Sheet1!S71_SA34dCode,$AC:$AC,Sheet1!S71_DepCode,$AD:$AD)","v":92146},{"$f":"SUMIFS(Sheet1!S71_OY2BudgetAmount,Sheet1!S71_SA34dCode,$AC:$AC,Sheet1!S71_DepCode,$AD:$AD)","v":92146},null,null,null,null,null,null,null,null,null,null,null,null,null,null,null,null,null,"1200","DP"]
["Pay/Enquiry Points",null,{"$f":"SUMIFS(Sheet1!S71_PPPYearAmount,Sheet1!S71_SA34dCode,$AC:$AC,Sheet1!S71_DepCode,$AD:$AD)","v":0},{"$f":"SUMIFS(Sheet1!S71_PPYearAmount,Sheet1!S71_SA34dCode,$AC:$AC,Sheet1!S71_DepCode,$AD:$AD)","v":0},{"$f":"SUMIFS(Sheet1!S71_PYearAmount,Sheet1!S71_SA34dCode,$AC:$AC,Sheet1!S71_DepCode,$AD:$AD)","v":0},{"$f":"SUMIFS(Sheet1!S71_OriginalBudAmnt,Sheet1!S71_SA34dCode,$AC:$AC,Sheet1!S71_DepCode,$AD:$AD)","v":0},{"$f":"SUMIFS(Sheet1!S71_AdjustmentBudAmnt,Sheet1!S71_SA34dCode,$AC:$AC,Sheet1!S71_DepCode,$AD:$AD)","v":0},{"$f":"SUMIFS(Sheet1!S71_AdjustmentBudAmnt,Sheet1!S71_SA34dCode,$AC:$AC,Sheet1!S71_DepCode,$AD:$AD)","v":0},{"$f":"SUMIFS(Sheet1!S71_ASBudgetAmount,Sheet1!S71_SA34dCode,$AC:$AC,Sheet1!S71_DepCode,$AD:$AD)","v":0},{"$f":"SUMIFS(Sheet1!S71_OY1BudgetAmount,Sheet1!S71_SA34dCode,$AC:$AC,Sheet1!S71_DepCode,$AD:$AD)","v":0},{"$f":"SUMIFS(Sheet1!S71_OY2BudgetAmount,Sheet1!S71_SA34dCode,$AC:$AC,Sheet1!S71_DepCode,$AD:$AD)","v":0},null,null,null,null,null,null,null,null,null,null,null,null,null,null,null,null,null,"1210","DP"]
["Building Plan Offices",null,{"$f":"SUMIFS(Sheet1!S71_PPPYearAmount,Sheet1!S71_SA34dCode,$AC:$AC,Sheet1!S71_DepCode,$AD:$AD)","v":0},{"$f":"SUMIFS(Sheet1!S71_PPYearAmount,Sheet1!S71_SA34dCode,$AC:$AC,Sheet1!S71_DepCode,$AD:$AD)","v":0},{"$f":"SUMIFS(Sheet1!S71_PYearAmount,Sheet1!S71_SA34dCode,$AC:$AC,Sheet1!S71_DepCode,$AD:$AD)","v":0},{"$f":"SUMIFS(Sheet1!S71_OriginalBudAmnt,Sheet1!S71_SA34dCode,$AC:$AC,Sheet1!S71_DepCode,$AD:$AD)","v":0},{"$f":"SUMIFS(Sheet1!S71_AdjustmentBudAmnt,Sheet1!S71_SA34dCode,$AC:$AC,Sheet1!S71_DepCode,$AD:$AD)","v":0},{"$f":"SUMIFS(Sheet1!S71_AdjustmentBudAmnt,Sheet1!S71_SA34dCode,$AC:$AC,Sheet1!S71_DepCode,$AD:$AD)","v":0},{"$f":"SUMIFS(Sheet1!S71_ASBudgetAmount,Sheet1!S71_SA34dCode,$AC:$AC,Sheet1!S71_DepCode,$AD:$AD)","v":0},{"$f":"SUMIFS(Sheet1!S71_OY1BudgetAmount,Sheet1!S71_SA34dCode,$AC:$AC,Sheet1!S71_DepCode,$AD:$AD)","v":0},{"$f":"SUMIFS(Sheet1!S71_OY2BudgetAmount,Sheet1!S71_SA34dCode,$AC:$AC,Sheet1!S71_DepCode,$AD:$AD)","v":0},null,null,null,null,null,null,null,null,null,null,null,null,null,null,null,null,null,"1220","DP"]
["Workshops",null,{"$f":"SUMIFS(Sheet1!S71_PPPYearAmount,Sheet1!S71_SA34dCode,$AC:$AC,Sheet1!S71_DepCode,$AD:$AD)","v":0},{"$f":"SUMIFS(Sheet1!S71_PPYearAmount,Sheet1!S71_SA34dCode,$AC:$AC,Sheet1!S71_DepCode,$AD:$AD)","v":0},{"$f":"SUMIFS(Sheet1!S71_PYearAmount,Sheet1!S71_SA34dCode,$AC:$AC,Sheet1!S71_DepCode,$AD:$AD)","v":0},{"$f":"SUMIFS(Sheet1!S71_OriginalBudAmnt,Sheet1!S71_SA34dCode,$AC:$AC,Sheet1!S71_DepCode,$AD:$AD)","v":0},{"$f":"SUMIFS(Sheet1!S71_AdjustmentBudAmnt,Sheet1!S71_SA34dCode,$AC:$AC,Sheet1!S71_DepCode,$AD:$AD)","v":0},{"$f":"SUMIFS(Sheet1!S71_AdjustmentBudAmnt,Sheet1!S71_SA34dCode,$AC:$AC,Sheet1!S71_DepCode,$AD:$AD)","v":0},{"$f":"SUMIFS(Sheet1!S71_ASBudgetAmount,Sheet1!S71_SA34dCode,$AC:$AC,Sheet1!S71_DepCode,$AD:$AD)","v":0},{"$f":"SUMIFS(Sheet1!S71_OY1BudgetAmount,Sheet1!S71_SA34dCode,$AC:$AC,Sheet1!S71_DepCode,$AD:$AD)","v":0},{"$f":"SUMIFS(Sheet1!S71_OY2BudgetAmount,Sheet1!S71_SA34dCode,$AC:$AC,Sheet1!S71_DepCode,$AD:$AD)","v":0},null,null,null,null,null,null,null,null,null,null,null,null,null,null,null,null,null,"1230","DP"]
["Yards",null,{"$f":"SUMIFS(Sheet1!S71_PPPYearAmount,Sheet1!S71_SA34dCode,$AC:$AC,Sheet1!S71_DepCode,$AD:$AD)","v":0},{"$f":"SUMIFS(Sheet1!S71_PPYearAmount,Sheet1!S71_SA34dCode,$AC:$AC,Sheet1!S71_DepCode,$AD:$AD)","v":0},{"$f":"SUMIFS(Sheet1!S71_PYearAmount,Sheet1!S71_SA34dCode,$AC:$AC,Sheet1!S71_DepCode,$AD:$AD)","v":0},{"$f":"SUMIFS(Sheet1!S71_OriginalBudAmnt,Sheet1!S71_SA34dCode,$AC:$AC,Sheet1!S71_DepCode,$AD:$AD)","v":0},{"$f":"SUMIFS(Sheet1!S71_AdjustmentBudAmnt,Sheet1!S71_SA34dCode,$AC:$AC,Sheet1!S71_DepCode,$AD:$AD)","v":0},{"$f":"SUMIFS(Sheet1!S71_AdjustmentBudAmnt,Sheet1!S71_SA34dCode,$AC:$AC,Sheet1!S71_DepCode,$AD:$AD)","v":0},{"$f":"SUMIFS(Sheet1!S71_ASBudgetAmount,Sheet1!S71_SA34dCode,$AC:$AC,Sheet1!S71_DepCode,$AD:$AD)","v":0},{"$f":"SUMIFS(Sheet1!S71_OY1BudgetAmount,Sheet1!S71_SA34dCode,$AC:$AC,Sheet1!S71_DepCode,$AD:$AD)","v":0},{"$f":"SUMIFS(Sheet1!S71_OY2BudgetAmount,Sheet1!S71_SA34dCode,$AC:$AC,Sheet1!S71_DepCode,$AD:$AD)","v":0},null,null,null,null,null,null,null,null,null,null,null,null,null,null,null,null,null,"1240","DP"]
["Stores",null,{"$f":"SUMIFS(Sheet1!S71_PPPYearAmount,Sheet1!S71_SA34dCode,$AC:$AC,Sheet1!S71_DepCode,$AD:$AD)","v":0},{"$f":"SUMIFS(Sheet1!S71_PPYearAmount,Sheet1!S71_SA34dCode,$AC:$AC,Sheet1!S71_DepCode,$AD:$AD)","v":0},{"$f":"SUMIFS(Sheet1!S71_PYearAmount,Sheet1!S71_SA34dCode,$AC:$AC,Sheet1!S71_DepCode,$AD:$AD)","v":0},{"$f":"SUMIFS(Sheet1!S71_OriginalBudAmnt,Sheet1!S71_SA34dCode,$AC:$AC,Sheet1!S71_DepCode,$AD:$AD)","v":0},{"$f":"SUMIFS(Sheet1!S71_AdjustmentBudAmnt,Sheet1!S71_SA34dCode,$AC:$AC,Sheet1!S71_DepCode,$AD:$AD)","v":0},{"$f":"SUMIFS(Sheet1!S71_AdjustmentBudAmnt,Sheet1!S71_SA34dCode,$AC:$AC,Sheet1!S71_DepCode,$AD:$AD)","v":0},{"$f":"SUMIFS(Sheet1!S71_ASBudgetAmount,Sheet1!S71_SA34dCode,$AC:$AC,Sheet1!S71_DepCode,$AD:$AD)","v":0},{"$f":"SUMIFS(Sheet1!S71_OY1BudgetAmount,Sheet1!S71_SA34dCode,$AC:$AC,Sheet1!S71_DepCode,$AD:$AD)","v":0},{"$f":"SUMIFS(Sheet1!S71_OY2BudgetAmount,Sheet1!S71_SA34dCode,$AC:$AC,Sheet1!S71_DepCode,$AD:$AD)","v":0},null,null,null,null,null,null,null,null,null,null,null,null,null,null,null,null,null,"1250","DP"]
["Laboratories",null,{"$f":"SUMIFS(Sheet1!S71_PPPYearAmount,Sheet1!S71_SA34dCode,$AC:$AC,Sheet1!S71_DepCode,$AD:$AD)","v":0},{"$f":"SUMIFS(Sheet1!S71_PPYearAmount,Sheet1!S71_SA34dCode,$AC:$AC,Sheet1!S71_DepCode,$AD:$AD)","v":0},{"$f":"SUMIFS(Sheet1!S71_PYearAmount,Sheet1!S71_SA34dCode,$AC:$AC,Sheet1!S71_DepCode,$AD:$AD)","v":0},{"$f":"SUMIFS(Sheet1!S71_OriginalBudAmnt,Sheet1!S71_SA34dCode,$AC:$AC,Sheet1!S71_DepCode,$AD:$AD)","v":0},{"$f":"SUMIFS(Sheet1!S71_AdjustmentBudAmnt,Sheet1!S71_SA34dCode,$AC:$AC,Sheet1!S71_DepCode,$AD:$AD)","v":0},{"$f":"SUMIFS(Sheet1!S71_AdjustmentBudAmnt,Sheet1!S71_SA34dCode,$AC:$AC,Sheet1!S71_DepCode,$AD:$AD)","v":0},{"$f":"SUMIFS(Sheet1!S71_ASBudgetAmount,Sheet1!S71_SA34dCode,$AC:$AC,Sheet1!S71_DepCode,$AD:$AD)","v":0},{"$f":"SUMIFS(Sheet1!S71_OY1BudgetAmount,Sheet1!S71_SA34dCode,$AC:$AC,Sheet1!S71_DepCode,$AD:$AD)","v":0},{"$f":"SUMIFS(Sheet1!S71_OY2BudgetAmount,Sheet1!S71_SA34dCode,$AC:$AC,Sheet1!S71_DepCode,$AD:$AD)","v":0},null,null,null,null,null,null,null,null,null,null,null,null,null,null,null,null,null,"1260","DP"]
["Training Centres",null,{"$f":"SUMIFS(Sheet1!S71_PPPYearAmount,Sheet1!S71_SA34dCode,$AC:$AC,Sheet1!S71_DepCode,$AD:$AD)","v":0},{"$f":"SUMIFS(Sheet1!S71_PPYearAmount,Sheet1!S71_SA34dCode,$AC:$AC,Sheet1!S71_DepCode,$AD:$AD)","v":0},{"$f":"SUMIFS(Sheet1!S71_PYearAmount,Sheet1!S71_SA34dCode,$AC:$AC,Sheet1!S71_DepCode,$AD:$AD)","v":0},{"$f":"SUMIFS(Sheet1!S71_OriginalBudAmnt,Sheet1!S71_SA34dCode,$AC:$AC,Sheet1!S71_DepCode,$AD:$AD)","v":0},{"$f":"SUMIFS(Sheet1!S71_AdjustmentBudAmnt,Sheet1!S71_SA34dCode,$AC:$AC,Sheet1!S71_DepCode,$AD:$AD)","v":0},{"$f":"SUMIFS(Sheet1!S71_AdjustmentBudAmnt,Sheet1!S71_SA34dCode,$AC:$AC,Sheet1!S71_DepCode,$AD:$AD)","v":0},{"$f":"SUMIFS(Sheet1!S71_ASBudgetAmount,Sheet1!S71_SA34dCode,$AC:$AC,Sheet1!S71_DepCode,$AD:$AD)","v":0},{"$f":"SUMIFS(Sheet1!S71_OY1BudgetAmount,Sheet1!S71_SA34dCode,$AC:$AC,Sheet1!S71_DepCode,$AD:$AD)","v":0},{"$f":"SUMIFS(Sheet1!S71_OY2BudgetAmount,Sheet1!S71_SA34dCode,$AC:$AC,Sheet1!S71_DepCode,$AD:$AD)","v":0},null,null,null,null,null,null,null,null,null,null,null,null,null,null,null,null,null,"1270","DP"]
["Manufacturing Plant",null,{"$f":"SUMIFS(Sheet1!S71_PPPYearAmount,Sheet1!S71_SA34dCode,$AC:$AC,Sheet1!S71_DepCode,$AD:$AD)","v":0},{"$f":"SUMIFS(Sheet1!S71_PPYearAmount,Sheet1!S71_SA34dCode,$AC:$AC,Sheet1!S71_DepCode,$AD:$AD)","v":0},{"$f":"SUMIFS(Sheet1!S71_PYearAmount,Sheet1!S71_SA34dCode,$AC:$AC,Sheet1!S71_DepCode,$AD:$AD)","v":0},{"$f":"SUMIFS(Sheet1!S71_OriginalBudAmnt,Sheet1!S71_SA34dCode,$AC:$AC,Sheet1!S71_DepCode,$AD:$AD)","v":0},{"$f":"SUMIFS(Sheet1!S71_AdjustmentBudAmnt,Sheet1!S71_SA34dCode,$AC:$AC,Sheet1!S71_DepCode,$AD:$AD)","v":0},{"$f":"SUMIFS(Sheet1!S71_AdjustmentBudAmnt,Sheet1!S71_SA34dCode,$AC:$AC,Sheet1!S71_DepCode,$AD:$AD)","v":0},{"$f":"SUMIFS(Sheet1!S71_ASBudgetAmount,Sheet1!S71_SA34dCode,$AC:$AC,Sheet1!S71_DepCode,$AD:$AD)","v":0},{"$f":"SUMIFS(Sheet1!S71_OY1BudgetAmount,Sheet1!S71_SA34dCode,$AC:$AC,Sheet1!S71_DepCode,$AD:$AD)","v":0},{"$f":"SUMIFS(Sheet1!S71_OY2BudgetAmount,Sheet1!S71_SA34dCode,$AC:$AC,Sheet1!S71_DepCode,$AD:$AD)","v":0},null,null,null,null,null,null,null,null,null,null,null,null,null,null,null,null,null,"1280","DP"]
["Depots",null,{"$f":"SUMIFS(Sheet1!S71_PPPYearAmount,Sheet1!S71_SA34dCode,$AC:$AC,Sheet1!S71_DepCode,$AD:$AD)","v":0},{"$f":"SUMIFS(Sheet1!S71_PPYearAmount,Sheet1!S71_SA34dCode,$AC:$AC,Sheet1!S71_DepCode,$AD:$AD)","v":0},{"$f":"SUMIFS(Sheet1!S71_PYearAmount,Sheet1!S71_SA34dCode,$AC:$AC,Sheet1!S71_DepCode,$AD:$AD)","v":0},{"$f":"SUMIFS(Sheet1!S71_OriginalBudAmnt,Sheet1!S71_SA34dCode,$AC:$AC,Sheet1!S71_DepCode,$AD:$AD)","v":0},{"$f":"SUMIFS(Sheet1!S71_AdjustmentBudAmnt,Sheet1!S71_SA34dCode,$AC:$AC,Sheet1!S71_DepCode,$AD:$AD)","v":0},{"$f":"SUMIFS(Sheet1!S71_AdjustmentBudAmnt,Sheet1!S71_SA34dCode,$AC:$AC,Sheet1!S71_DepCode,$AD:$AD)","v":0},{"$f":"SUMIFS(Sheet1!S71_ASBudgetAmount,Sheet1!S71_SA34dCode,$AC:$AC,Sheet1!S71_DepCode,$AD:$AD)","v":0},{"$f":"SUMIFS(Sheet1!S71_OY1BudgetAmount,Sheet1!S71_SA34dCode,$AC:$AC,Sheet1!S71_DepCode,$AD:$AD)","v":0},{"$f":"SUMIFS(Sheet1!S71_OY2BudgetAmount,Sheet1!S71_SA34dCode,$AC:$AC,Sheet1!S71_DepCode,$AD:$AD)","v":0},null,null,null,null,null,null,null,null,null,null,null,null,null,null,null,null,null,"1290","DP"]
["Capital Spares",null,{"$f":"SUMIFS(Sheet1!S71_PPPYearAmount,Sheet1!S71_SA34dCode,$AC:$AC,Sheet1!S71_DepCode,$AD:$AD)","v":0},{"$f":"SUMIFS(Sheet1!S71_PPYearAmount,Sheet1!S71_SA34dCode,$AC:$AC,Sheet1!S71_DepCode,$AD:$AD)","v":0},{"$f":"SUMIFS(Sheet1!S71_PYearAmount,Sheet1!S71_SA34dCode,$AC:$AC,Sheet1!S71_DepCode,$AD:$AD)","v":0},{"$f":"SUMIFS(Sheet1!S71_OriginalBudAmnt,Sheet1!S71_SA34dCode,$AC:$AC,Sheet1!S71_DepCode,$AD:$AD)","v":0},{"$f":"SUMIFS(Sheet1!S71_AdjustmentBudAmnt,Sheet1!S71_SA34dCode,$AC:$AC,Sheet1!S71_DepCode,$AD:$AD)","v":0},{"$f":"SUMIFS(Sheet1!S71_AdjustmentBudAmnt,Sheet1!S71_SA34dCode,$AC:$AC,Sheet1!S71_DepCode,$AD:$AD)","v":0},{"$f":"SUMIFS(Sheet1!S71_ASBudgetAmount,Sheet1!S71_SA34dCode,$AC:$AC,Sheet1!S71_DepCode,$AD:$AD)","v":0},{"$f":"SUMIFS(Sheet1!S71_OY1BudgetAmount,Sheet1!S71_SA34dCode,$AC:$AC,Sheet1!S71_DepCode,$AD:$AD)","v":0},{"$f":"SUMIFS(Sheet1!S71_OY2BudgetAmount,Sheet1!S71_SA34dCode,$AC:$AC,Sheet1!S71_DepCode,$AD:$AD)","v":0},null,null,null,null,null,null,null,null,null,null,null,null,null,null,null,null,null,"1300","DP"]
["Housing",null,{"$f":"SUM(C132:C134)","v":0},{"$f":"SUM(D132:D134)","v":0},0,0,0,0,0,0,0,null,null,null,null,null,null,null,null,null,null,null,null,null,null,null,null,null,null,"DP"]
["Staff Housing",null,{"$f":"SUMIFS(Sheet1!S71_PPPYearAmount,Sheet1!S71_SA34dCode,$AC:$AC,Sheet1!S71_DepCode,$AD:$AD)","v":0},{"$f":"SUMIFS(Sheet1!S71_PPYearAmount,Sheet1!S71_SA34dCode,$AC:$AC,Sheet1!S71_DepCode,$AD:$AD)","v":0},{"$f":"SUMIFS(Sheet1!S71_PYearAmount,Sheet1!S71_SA34dCode,$AC:$AC,Sheet1!S71_DepCode,$AD:$AD)","v":0},{"$f":"SUMIFS(Sheet1!S71_OriginalBudAmnt,Sheet1!S71_SA34dCode,$AC:$AC,Sheet1!S71_DepCode,$AD:$AD)","v":0},{"$f":"SUMIFS(Sheet1!S71_AdjustmentBudAmnt,Sheet1!S71_SA34dCode,$AC:$AC,Sheet1!S71_DepCode,$AD:$AD)","v":0},{"$f":"SUMIFS(Sheet1!S71_AdjustmentBudAmnt,Sheet1!S71_SA34dCode,$AC:$AC,Sheet1!S71_DepCode,$AD:$AD)","v":0},{"$f":"SUMIFS(Sheet1!S71_ASBudgetAmount,Sheet1!S71_SA34dCode,$AC:$AC,Sheet1!S71_DepCode,$AD:$AD)","v":0},{"$f":"SUMIFS(Sheet1!S71_OY1BudgetAmount,Sheet1!S71_SA34dCode,$AC:$AC,Sheet1!S71_DepCode,$AD:$AD)","v":0},{"$f":"SUMIFS(Sheet1!S71_OY2BudgetAmount,Sheet1!S71_SA34dCode,$AC:$AC,Sheet1!S71_DepCode,$AD:$AD)","v":0},null,null,null,null,null,null,null,null,null,null,null,null,null,null,null,null,null,"1320","DP"]
["Social Housing",null,{"$f":"SUMIFS(Sheet1!S71_PPPYearAmount,Sheet1!S71_SA34dCode,$AC:$AC,Sheet1!S71_DepCode,$AD:$AD)","v":0},{"$f":"SUMIFS(Sheet1!S71_PPYearAmount,Sheet1!S71_SA34dCode,$AC:$AC,Sheet1!S71_DepCode,$AD:$AD)","v":0},{"$f":"SUMIFS(Sheet1!S71_PYearAmount,Sheet1!S71_SA34dCode,$AC:$AC,Sheet1!S71_DepCode,$AD:$AD)","v":0},{"$f":"SUMIFS(Sheet1!S71_OriginalBudAmnt,Sheet1!S71_SA34dCode,$AC:$AC,Sheet1!S71_DepCode,$AD:$AD)","v":0},{"$f":"SUMIFS(Sheet1!S71_AdjustmentBudAmnt,Sheet1!S71_SA34dCode,$AC:$AC,Sheet1!S71_DepCode,$AD:$AD)","v":0},{"$f":"SUMIFS(Sheet1!S71_AdjustmentBudAmnt,Sheet1!S71_SA34dCode,$AC:$AC,Sheet1!S71_DepCode,$AD:$AD)","v":0},{"$f":"SUMIFS(Sheet1!S71_ASBudgetAmount,Sheet1!S71_SA34dCode,$AC:$AC,Sheet1!S71_DepCode,$AD:$AD)","v":0},{"$f":"SUMIFS(Sheet1!S71_OY1BudgetAmount,Sheet1!S71_SA34dCode,$AC:$AC,Sheet1!S71_DepCode,$AD:$AD)","v":0},{"$f":"SUMIFS(Sheet1!S71_OY2BudgetAmount,Sheet1!S71_SA34dCode,$AC:$AC,Sheet1!S71_DepCode,$AD:$AD)","v":0},null,null,null,null,null,null,null,null,null,null,null,null,null,null,null,null,null,"1330","DP"]
["Capital Spares",null,{"$f":"SUMIFS(Sheet1!S71_PPPYearAmount,Sheet1!S71_SA34dCode,$AC:$AC,Sheet1!S71_DepCode,$AD:$AD)","v":0},{"$f":"SUMIFS(Sheet1!S71_PPYearAmount,Sheet1!S71_SA34dCode,$AC:$AC,Sheet1!S71_DepCode,$AD:$AD)","v":0},{"$f":"SUMIFS(Sheet1!S71_PYearAmount,Sheet1!S71_SA34dCode,$AC:$AC,Sheet1!S71_DepCode,$AD:$AD)","v":0},{"$f":"SUMIFS(Sheet1!S71_OriginalBudAmnt,Sheet1!S71_SA34dCode,$AC:$AC,Sheet1!S71_DepCode,$AD:$AD)","v":0},{"$f":"SUMIFS(Sheet1!S71_AdjustmentBudAmnt,Sheet1!S71_SA34dCode,$AC:$AC,Sheet1!S71_DepCode,$AD:$AD)","v":0},{"$f":"SUMIFS(Sheet1!S71_AdjustmentBudAmnt,Sheet1!S71_SA34dCode,$AC:$AC,Sheet1!S71_DepCode,$AD:$AD)","v":0},{"$f":"SUMIFS(Sheet1!S71_ASBudgetAmount,Sheet1!S71_SA34dCode,$AC:$AC,Sheet1!S71_DepCode,$AD:$AD)","v":0},{"$f":"SUMIFS(Sheet1!S71_OY1BudgetAmount,Sheet1!S71_SA34dCode,$AC:$AC,Sheet1!S71_DepCode,$AD:$AD)","v":0},{"$f":"SUMIFS(Sheet1!S71_OY2BudgetAmount,Sheet1!S71_SA34dCode,$AC:$AC,Sheet1!S71_DepCode,$AD:$AD)","v":0},null,null,null,null,null,null,null,null,null,null,null,null,null,null,null,null,null,"1340","DP"]
[null,null,null,null,null,null,null,null,null,null,null,null,null,null,null,null,null,null,null,null,null,null,null,null,null,null,null,null,null,"DP"]
["Biological or Cultivated Assets",null,{"$f":"SUM(C137:C137)","v":0},0,0,0,0,0,0,0,0,null,null,null,null,null,null,null,null,null,null,null,null,null,null,null,null,null,null,"DP"]
["Biological or Cultivated Assets",null,{"$f":"SUMIFS(Sheet1!S71_PPPYearAmount,Sheet1!S71_SA34dCode,$AC:$AC,Sheet1!S71_DepCode,$AD:$AD)","v":0},{"$f":"SUMIFS(Sheet1!S71_PPYearAmount,Sheet1!S71_SA34dCode,$AC:$AC,Sheet1!S71_DepCode,$AD:$AD)","v":0},{"$f":"SUMIFS(Sheet1!S71_PYearAmount,Sheet1!S71_SA34dCode,$AC:$AC,Sheet1!S71_DepCode,$AD:$AD)","v":0},{"$f":"SUMIFS(Sheet1!S71_OriginalBudAmnt,Sheet1!S71_SA34dCode,$AC:$AC,Sheet1!S71_DepCode,$AD:$AD)","v":0},{"$f":"SUMIFS(Sheet1!S71_AdjustmentBudAmnt,Sheet1!S71_SA34dCode,$AC:$AC,Sheet1!S71_DepCode,$AD:$AD)","v":0},{"$f":"SUMIFS(Sheet1!S71_AdjustmentBudAmnt,Sheet1!S71_SA34dCode,$AC:$AC,Sheet1!S71_DepCode,$AD:$AD)","v":0},{"$f":"SUMIFS(Sheet1!S71_ASBudgetAmount,Sheet1!S71_SA34dCode,$AC:$AC,Sheet1!S71_DepCode,$AD:$AD)","v":0},{"$f":"SUMIFS(Sheet1!S71_OY1BudgetAmount,Sheet1!S71_SA34dCode,$AC:$AC,Sheet1!S71_DepCode,$AD:$AD)","v":0},{"$f":"SUMIFS(Sheet1!S71_OY2BudgetAmount,Sheet1!S71_SA34dCode,$AC:$AC,Sheet1!S71_DepCode,$AD:$AD)","v":0},null,null,null,null,null,null,null,null,null,null,null,null,null,null,null,null,null,"1360","DP"]
[null,null,null,null,null,null,null,null,null,null,null,null,null,null,null,null,null,null,null,null,null,null,null,null,null,null,null,null,null,"DP"]
["Intangible Assets",null,{"$f":"+C140+C141","v":0},{"$f":"+D140+D141","v":403859},404759,0,0,0,0,0,0,null,null,null,null,null,null,null,null,null,null,null,null,null,null,null,null,null,null,"DP"]
["Servitudes",null,{"$f":"SUMIFS(Sheet1!S71_PPPYearAmount,Sheet1!S71_SA34dCode,$AC:$AC,Sheet1!S71_DepCode,$AD:$AD)","v":0},{"$f":"SUMIFS(Sheet1!S71_PPYearAmount,Sheet1!S71_SA34dCode,$AC:$AC,Sheet1!S71_DepCode,$AD:$AD)","v":0},{"$f":"SUMIFS(Sheet1!S71_PYearAmount,Sheet1!S71_SA34dCode,$AC:$AC,Sheet1!S71_DepCode,$AD:$AD)","v":0},{"$f":"SUMIFS(Sheet1!S71_OriginalBudAmnt,Sheet1!S71_SA34dCode,$AC:$AC,Sheet1!S71_DepCode,$AD:$AD)","v":0},{"$f":"SUMIFS(Sheet1!S71_AdjustmentBudAmnt,Sheet1!S71_SA34dCode,$AC:$AC,Sheet1!S71_DepCode,$AD:$AD)","v":0},{"$f":"SUMIFS(Sheet1!S71_AdjustmentBudAmnt,Sheet1!S71_SA34dCode,$AC:$AC,Sheet1!S71_DepCode,$AD:$AD)","v":0},{"$f":"SUMIFS(Sheet1!S71_ASBudgetAmount,Sheet1!S71_SA34dCode,$AC:$AC,Sheet1!S71_DepCode,$AD:$AD)","v":0},{"$f":"SUMIFS(Sheet1!S71_OY1BudgetAmount,Sheet1!S71_SA34dCode,$AC:$AC,Sheet1!S71_DepCode,$AD:$AD)","v":0},{"$f":"SUMIFS(Sheet1!S71_OY2BudgetAmount,Sheet1!S71_SA34dCode,$AC:$AC,Sheet1!S71_DepCode,$AD:$AD)","v":0},null,null,null,null,null,null,null,null,null,null,null,null,null,null,null,null,null,"1380","DP"]
["Licences and Rights",null,{"$f":"SUM(C142:C147)","v":0},{"$f":"SUM(D142:D147)","v":403859},404759,0,0,0,0,0,0,null,null,null,null,null,null,null,null,null,null,null,null,null,null,null,null,null,null,"DP"]
["Water Rights",null,{"$f":"SUMIFS(Sheet1!S71_PPPYearAmount,Sheet1!S71_SA34dCode,$AC:$AC,Sheet1!S71_DepCode,$AD:$AD)","v":0},{"$f":"SUMIFS(Sheet1!S71_PPYearAmount,Sheet1!S71_SA34dCode,$AC:$AC,Sheet1!S71_DepCode,$AD:$AD)","v":0},{"$f":"SUMIFS(Sheet1!S71_PYearAmount,Sheet1!S71_SA34dCode,$AC:$AC,Sheet1!S71_DepCode,$AD:$AD)","v":0},{"$f":"SUMIFS(Sheet1!S71_OriginalBudAmnt,Sheet1!S71_SA34dCode,$AC:$AC,Sheet1!S71_DepCode,$AD:$AD)","v":0},{"$f":"SUMIFS(Sheet1!S71_AdjustmentBudAmnt,Sheet1!S71_SA34dCode,$AC:$AC,Sheet1!S71_DepCode,$AD:$AD)","v":0},{"$f":"SUMIFS(Sheet1!S71_AdjustmentBudAmnt,Sheet1!S71_SA34dCode,$AC:$AC,Sheet1!S71_DepCode,$AD:$AD)","v":0},{"$f":"SUMIFS(Sheet1!S71_ASBudgetAmount,Sheet1!S71_SA34dCode,$AC:$AC,Sheet1!S71_DepCode,$AD:$AD)","v":0},{"$f":"SUMIFS(Sheet1!S71_OY1BudgetAmount,Sheet1!S71_SA34dCode,$AC:$AC,Sheet1!S71_DepCode,$AD:$AD)","v":0},{"$f":"SUMIFS(Sheet1!S71_OY2BudgetAmount,Sheet1!S71_SA34dCode,$AC:$AC,Sheet1!S71_DepCode,$AD:$AD)","v":0},null,null,null,null,null,null,null,null,null,null,null,null,null,null,null,null,null,"1400","DP"]
["Effluent Licenses",null,{"$f":"SUMIFS(Sheet1!S71_PPPYearAmount,Sheet1!S71_SA34dCode,$AC:$AC,Sheet1!S71_DepCode,$AD:$AD)","v":0},{"$f":"SUMIFS(Sheet1!S71_PPYearAmount,Sheet1!S71_SA34dCode,$AC:$AC,Sheet1!S71_DepCode,$AD:$AD)","v":0},{"$f":"SUMIFS(Sheet1!S71_PYearAmount,Sheet1!S71_SA34dCode,$AC:$AC,Sheet1!S71_DepCode,$AD:$AD)","v":0},{"$f":"SUMIFS(Sheet1!S71_OriginalBudAmnt,Sheet1!S71_SA34dCode,$AC:$AC,Sheet1!S71_DepCode,$AD:$AD)","v":0},{"$f":"SUMIFS(Sheet1!S71_AdjustmentBudAmnt,Sheet1!S71_SA34dCode,$AC:$AC,Sheet1!S71_DepCode,$AD:$AD)","v":0},{"$f":"SUMIFS(Sheet1!S71_AdjustmentBudAmnt,Sheet1!S71_SA34dCode,$AC:$AC,Sheet1!S71_DepCode,$AD:$AD)","v":0},{"$f":"SUMIFS(Sheet1!S71_ASBudgetAmount,Sheet1!S71_SA34dCode,$AC:$AC,Sheet1!S71_DepCode,$AD:$AD)","v":0},{"$f":"SUMIFS(Sheet1!S71_OY1BudgetAmount,Sheet1!S71_SA34dCode,$AC:$AC,Sheet1!S71_DepCode,$AD:$AD)","v":0},{"$f":"SUMIFS(Sheet1!S71_OY2BudgetAmount,Sheet1!S71_SA34dCode,$AC:$AC,Sheet1!S71_DepCode,$AD:$AD)","v":0},null,null,null,null,null,null,null,null,null,null,null,null,null,null,null,null,null,"1410","DP"]
["Solid Waste Licenses",null,{"$f":"SUMIFS(Sheet1!S71_PPPYearAmount,Sheet1!S71_SA34dCode,$AC:$AC,Sheet1!S71_DepCode,$AD:$AD)","v":0},{"$f":"SUMIFS(Sheet1!S71_PPYearAmount,Sheet1!S71_SA34dCode,$AC:$AC,Sheet1!S71_DepCode,$AD:$AD)","v":0},{"$f":"SUMIFS(Sheet1!S71_PYearAmount,Sheet1!S71_SA34dCode,$AC:$AC,Sheet1!S71_DepCode,$AD:$AD)","v":0},{"$f":"SUMIFS(Sheet1!S71_OriginalBudAmnt,Sheet1!S71_SA34dCode,$AC:$AC,Sheet1!S71_DepCode,$AD:$AD)","v":0},{"$f":"SUMIFS(Sheet1!S71_AdjustmentBudAmnt,Sheet1!S71_SA34dCode,$AC:$AC,Sheet1!S71_DepCode,$AD:$AD)","v":0},{"$f":"SUMIFS(Sheet1!S71_AdjustmentBudAmnt,Sheet1!S71_SA34dCode,$AC:$AC,Sheet1!S71_DepCode,$AD:$AD)","v":0},{"$f":"SUMIFS(Sheet1!S71_ASBudgetAmount,Sheet1!S71_SA34dCode,$AC:$AC,Sheet1!S71_DepCode,$AD:$AD)","v":0},{"$f":"SUMIFS(Sheet1!S71_OY1BudgetAmount,Sheet1!S71_SA34dCode,$AC:$AC,Sheet1!S71_DepCode,$AD:$AD)","v":0},{"$f":"SUMIFS(Sheet1!S71_OY2BudgetAmount,Sheet1!S71_SA34dCode,$AC:$AC,Sheet1!S71_DepCode,$AD:$AD)","v":0},null,null,null,null,null,null,null,null,null,null,null,null,null,null,null,null,null,"1420","DP"]
["Computer Software and Applications",null,{"$f":"SUMIFS(Sheet1!S71_PPPYearAmount,Sheet1!S71_SA34dCode,$AC:$AC,Sheet1!S71_DepCode,$AD:$AD)","v":0},{"$f":"SUMIFS(Sheet1!S71_PPYearAmount,Sheet1!S71_SA34dCode,$AC:$AC,Sheet1!S71_DepCode,$AD:$AD)","v":403859},{"$f":"SUMIFS(Sheet1!S71_PYearAmount,Sheet1!S71_SA34dCode,$AC:$AC,Sheet1!S71_DepCode,$AD:$AD)","v":404759},{"$f":"SUMIFS(Sheet1!S71_OriginalBudAmnt,Sheet1!S71_SA34dCode,$AC:$AC,Sheet1!S71_DepCode,$AD:$AD)","v":0},{"$f":"SUMIFS(Sheet1!S71_AdjustmentBudAmnt,Sheet1!S71_SA34dCode,$AC:$AC,Sheet1!S71_DepCode,$AD:$AD)","v":0},{"$f":"SUMIFS(Sheet1!S71_AdjustmentBudAmnt,Sheet1!S71_SA34dCode,$AC:$AC,Sheet1!S71_DepCode,$AD:$AD)","v":0},{"$f":"SUMIFS(Sheet1!S71_ASBudgetAmount,Sheet1!S71_SA34dCode,$AC:$AC,Sheet1!S71_DepCode,$AD:$AD)","v":0},{"$f":"SUMIFS(Sheet1!S71_OY1BudgetAmount,Sheet1!S71_SA34dCode,$AC:$AC,Sheet1!S71_DepCode,$AD:$AD)","v":0},{"$f":"SUMIFS(Sheet1!S71_OY2BudgetAmount,Sheet1!S71_SA34dCode,$AC:$AC,Sheet1!S71_DepCode,$AD:$AD)","v":0},null,null,null,null,null,null,null,null,null,null,null,null,null,null,null,null,null,"1430","DP"]
["Load Settlement Software Applications",null,{"$f":"SUMIFS(Sheet1!S71_PPPYearAmount,Sheet1!S71_SA34dCode,$AC:$AC,Sheet1!S71_DepCode,$AD:$AD)","v":0},{"$f":"SUMIFS(Sheet1!S71_PPYearAmount,Sheet1!S71_SA34dCode,$AC:$AC,Sheet1!S71_DepCode,$AD:$AD)","v":0},{"$f":"SUMIFS(Sheet1!S71_PYearAmount,Sheet1!S71_SA34dCode,$AC:$AC,Sheet1!S71_DepCode,$AD:$AD)","v":0},{"$f":"SUMIFS(Sheet1!S71_OriginalBudAmnt,Sheet1!S71_SA34dCode,$AC:$AC,Sheet1!S71_DepCode,$AD:$AD)","v":0},{"$f":"SUMIFS(Sheet1!S71_AdjustmentBudAmnt,Sheet1!S71_SA34dCode,$AC:$AC,Sheet1!S71_DepCode,$AD:$AD)","v":0},{"$f":"SUMIFS(Sheet1!S71_AdjustmentBudAmnt,Sheet1!S71_SA34dCode,$AC:$AC,Sheet1!S71_DepCode,$AD:$AD)","v":0},{"$f":"SUMIFS(Sheet1!S71_ASBudgetAmount,Sheet1!S71_SA34dCode,$AC:$AC,Sheet1!S71_DepCode,$AD:$AD)","v":0},{"$f":"SUMIFS(Sheet1!S71_OY1BudgetAmount,Sheet1!S71_SA34dCode,$AC:$AC,Sheet1!S71_DepCode,$AD:$AD)","v":0},{"$f":"SUMIFS(Sheet1!S71_OY2BudgetAmount,Sheet1!S71_SA34dCode,$AC:$AC,Sheet1!S71_DepCode,$AD:$AD)","v":0},null,null,null,null,null,null,null,null,null,null,null,null,null,null,null,null,null,"1440","DP"]
["Unspecified",null,{"$f":"SUMIFS(Sheet1!S71_PPPYearAmount,Sheet1!S71_SA34dCode,$AC:$AC,Sheet1!S71_DepCode,$AD:$AD)","v":0},{"$f":"SUMIFS(Sheet1!S71_PPYearAmount,Sheet1!S71_SA34dCode,$AC:$AC,Sheet1!S71_DepCode,$AD:$AD)","v":0},{"$f":"SUMIFS(Sheet1!S71_PYearAmount,Sheet1!S71_SA34dCode,$AC:$AC,Sheet1!S71_DepCode,$AD:$AD)","v":0},{"$f":"SUMIFS(Sheet1!S71_OriginalBudAmnt,Sheet1!S71_SA34dCode,$AC:$AC,Sheet1!S71_DepCode,$AD:$AD)","v":0},{"$f":"SUMIFS(Sheet1!S71_AdjustmentBudAmnt,Sheet1!S71_SA34dCode,$AC:$AC,Sheet1!S71_DepCode,$AD:$AD)","v":0},{"$f":"SUMIFS(Sheet1!S71_AdjustmentBudAmnt,Sheet1!S71_SA34dCode,$AC:$AC,Sheet1!S71_DepCode,$AD:$AD)","v":0},{"$f":"SUMIFS(Sheet1!S71_ASBudgetAmount,Sheet1!S71_SA34dCode,$AC:$AC,Sheet1!S71_DepCode,$AD:$AD)","v":0},{"$f":"SUMIFS(Sheet1!S71_OY1BudgetAmount,Sheet1!S71_SA34dCode,$AC:$AC,Sheet1!S71_DepCode,$AD:$AD)","v":0},{"$f":"SUMIFS(Sheet1!S71_OY2BudgetAmount,Sheet1!S71_SA34dCode,$AC:$AC,Sheet1!S71_DepCode,$AD:$AD)","v":0},null,null,null,null,null,null,null,null,null,null,null,null,null,null,null,null,null,"1450","DP"]
[null,null,null,null,null,null,null,null,null,null,null,null,null,null,null,null,null,null,null,null,null,null,null,null,null,null,null,null,null,"DP"]
["Computer Equipment",null,{"$f":"SUM(C150:C150)","v":0},168081,240341,0,0,0,141001,141001,141001,null,null,null,null,null,null,null,null,null,null,null,null,null,null,null,null,null,null,"DP"]
["Computer Equipment",null,{"$f":"SUMIFS(Sheet1!S71_PPPYearAmount,Sheet1!S71_SA34dCode,$AC:$AC,Sheet1!S71_DepCode,$AD:$AD)","v":0},{"$f":"SUMIFS(Sheet1!S71_PPYearAmount,Sheet1!S71_SA34dCode,$AC:$AC,Sheet1!S71_DepCode,$AD:$AD)","v":168081},{"$f":"SUMIFS(Sheet1!S71_PYearAmount,Sheet1!S71_SA34dCode,$AC:$AC,Sheet1!S71_DepCode,$AD:$AD)","v":240341},{"$f":"SUMIFS(Sheet1!S71_OriginalBudAmnt,Sheet1!S71_SA34dCode,$AC:$AC,Sheet1!S71_DepCode,$AD:$AD)","v":0},{"$f":"SUMIFS(Sheet1!S71_AdjustmentBudAmnt,Sheet1!S71_SA34dCode,$AC:$AC,Sheet1!S71_DepCode,$AD:$AD)","v":0},{"$f":"SUMIFS(Sheet1!S71_AdjustmentBudAmnt,Sheet1!S71_SA34dCode,$AC:$AC,Sheet1!S71_DepCode,$AD:$AD)","v":0},{"$f":"SUMIFS(Sheet1!S71_ASBudgetAmount,Sheet1!S71_SA34dCode,$AC:$AC,Sheet1!S71_DepCode,$AD:$AD)","v":141001},{"$f":"SUMIFS(Sheet1!S71_OY1BudgetAmount,Sheet1!S71_SA34dCode,$AC:$AC,Sheet1!S71_DepCode,$AD:$AD)","v":141001},{"$f":"SUMIFS(Sheet1!S71_OY2BudgetAmount,Sheet1!S71_SA34dCode,$AC:$AC,Sheet1!S71_DepCode,$AD:$AD)","v":141001},null,null,null,null,null,null,null,null,null,null,null,null,null,null,null,null,null,"1470","DP"]
[null,null,null,null,null,null,null,null,null,null,null,null,null,null,null,null,null,null,null,null,null,null,null,null,null,null,null,null,null,"DP"]
["Furniture and Office Equipment",null,{"$f":"SUM(C153:C153)","v":0},514829,326666,0,0,0,619666,619666,619666,null,null,null,null,null,null,null,null,null,null,null,null,null,null,null,null,null,null,"DP"]
["Furniture and Office Equipment",null,{"$f":"SUMIFS(Sheet1!S71_PPPYearAmount,Sheet1!S71_SA34dCode,$AC:$AC,Sheet1!S71_DepCode,$AD:$AD)","v":0},{"$f":"SUMIFS(Sheet1!S71_PPYearAmount,Sheet1!S71_SA34dCode,$AC:$AC,Sheet1!S71_DepCode,$AD:$AD)","v":514829},{"$f":"SUMIFS(Sheet1!S71_PYearAmount,Sheet1!S71_SA34dCode,$AC:$AC,Sheet1!S71_DepCode,$AD:$AD)","v":326666},{"$f":"SUMIFS(Sheet1!S71_OriginalBudAmnt,Sheet1!S71_SA34dCode,$AC:$AC,Sheet1!S71_DepCode,$AD:$AD)","v":0},{"$f":"SUMIFS(Sheet1!S71_AdjustmentBudAmnt,Sheet1!S71_SA34dCode,$AC:$AC,Sheet1!S71_DepCode,$AD:$AD)","v":0},{"$f":"SUMIFS(Sheet1!S71_AdjustmentBudAmnt,Sheet1!S71_SA34dCode,$AC:$AC,Sheet1!S71_DepCode,$AD:$AD)","v":0},{"$f":"SUMIFS(Sheet1!S71_ASBudgetAmount,Sheet1!S71_SA34dCode,$AC:$AC,Sheet1!S71_DepCode,$AD:$AD)","v":619666},{"$f":"SUMIFS(Sheet1!S71_OY1BudgetAmount,Sheet1!S71_SA34dCode,$AC:$AC,Sheet1!S71_DepCode,$AD:$AD)","v":619666},{"$f":"SUMIFS(Sheet1!S71_OY2BudgetAmount,Sheet1!S71_SA34dCode,$AC:$AC,Sheet1!S71_DepCode,$AD:$AD)","v":619666},null,null,null,null,null,null,null,null,null,null,null,null,null,null,null,null,null,"1490","DP"]
[null,null,null,null,null,null,null,null,null,null,null,null,null,null,null,null,null,null,null,null,null,null,null,null,null,null,null,null,null,"DP"]
["Machinery and Equipment",null,{"$f":"SUM(C156:C156)","v":0},662315,273792,0,0,0,144713,144713,144713,null,null,null,null,null,null,null,null,null,null,null,null,null,null,null,null,null,null,"DP"]
["Machinery and Equipment",null,{"$f":"SUMIFS(Sheet1!S71_PPPYearAmount,Sheet1!S71_SA34dCode,$AC:$AC,Sheet1!S71_DepCode,$AD:$AD)","v":0},{"$f":"SUMIFS(Sheet1!S71_PPYearAmount,Sheet1!S71_SA34dCode,$AC:$AC,Sheet1!S71_DepCode,$AD:$AD)","v":662315},{"$f":"SUMIFS(Sheet1!S71_PYearAmount,Sheet1!S71_SA34dCode,$AC:$AC,Sheet1!S71_DepCode,$AD:$AD)","v":273792},{"$f":"SUMIFS(Sheet1!S71_OriginalBudAmnt,Sheet1!S71_SA34dCode,$AC:$AC,Sheet1!S71_DepCode,$AD:$AD)","v":0},{"$f":"SUMIFS(Sheet1!S71_AdjustmentBudAmnt,Sheet1!S71_SA34dCode,$AC:$AC,Sheet1!S71_DepCode,$AD:$AD)","v":0},{"$f":"SUMIFS(Sheet1!S71_AdjustmentBudAmnt,Sheet1!S71_SA34dCode,$AC:$AC,Sheet1!S71_DepCode,$AD:$AD)","v":0},{"$f":"SUMIFS(Sheet1!S71_ASBudgetAmount,Sheet1!S71_SA34dCode,$AC:$AC,Sheet1!S71_DepCode,$AD:$AD)","v":144713},{"$f":"SUMIFS(Sheet1!S71_OY1BudgetAmount,Sheet1!S71_SA34dCode,$AC:$AC,Sheet1!S71_DepCode,$AD:$AD)","v":144713},{"$f":"SUMIFS(Sheet1!S71_OY2BudgetAmount,Sheet1!S71_SA34dCode,$AC:$AC,Sheet1!S71_DepCode,$AD:$AD)","v":144713},null,null,null,null,null,null,null,null,null,null,null,null,null,null,null,null,null,"1510","DP"]
[null,null,null,null,null,null,null,null,null,null,null,null,null,null,null,null,null,null,null,null,null,null,null,null,null,null,null,null,null,"DP"]
["Transport Assets",null,{"$f":"SUM(C159:C159)","v":0},290533,290533,0,0,0,2474,2474,2474,null,null,null,null,null,null,null,null,null,null,null,null,null,null,null,null,null,null,"DP"]
["Transport Assets",null,{"$f":"SUMIFS(Sheet1!S71_PPPYearAmount,Sheet1!S71_SA34dCode,$AC:$AC,Sheet1!S71_DepCode,$AD:$AD)","v":0},{"$f":"SUMIFS(Sheet1!S71_PPYearAmount,Sheet1!S71_SA34dCode,$AC:$AC,Sheet1!S71_DepCode,$AD:$AD)","v":290533},{"$f":"SUMIFS(Sheet1!S71_PYearAmount,Sheet1!S71_SA34dCode,$AC:$AC,Sheet1!S71_DepCode,$AD:$AD)","v":290533},{"$f":"SUMIFS(Sheet1!S71_OriginalBudAmnt,Sheet1!S71_SA34dCode,$AC:$AC,Sheet1!S71_DepCode,$AD:$AD)","v":0},{"$f":"SUMIFS(Sheet1!S71_AdjustmentBudAmnt,Sheet1!S71_SA34dCode,$AC:$AC,Sheet1!S71_DepCode,$AD:$AD)","v":0},{"$f":"SUMIFS(Sheet1!S71_AdjustmentBudAmnt,Sheet1!S71_SA34dCode,$AC:$AC,Sheet1!S71_DepCode,$AD:$AD)","v":0},{"$f":"SUMIFS(Sheet1!S71_ASBudgetAmount,Sheet1!S71_SA34dCode,$AC:$AC,Sheet1!S71_DepCode,$AD:$AD)","v":2474},{"$f":"SUMIFS(Sheet1!S71_OY1BudgetAmount,Sheet1!S71_SA34dCode,$AC:$AC,Sheet1!S71_DepCode,$AD:$AD)","v":2474},{"$f":"SUMIFS(Sheet1!S71_OY2BudgetAmount,Sheet1!S71_SA34dCode,$AC:$AC,Sheet1!S71_DepCode,$AD:$AD)","v":2474},null,null,null,null,null,null,null,null,null,null,null,null,null,null,null,null,null,"1530","DP"]
[null,null,null,null,null,null,null,null,null,null,null,null,null,null,null,null,null,null,null,null,null,null,null,null,null,null,null,null,null,"DP"]
["Land",null,{"$f":"SUM(C162:C162)","v":0},0,0,0,0,0,0,0,0,null,null,null,null,null,null,null,null,null,null,null,null,null,null,null,null,null,null,"DP"]
["Land",null,{"$f":"SUMIFS(Sheet1!S71_PPPYearAmount,Sheet1!S71_SA34dCode,$AC:$AC,Sheet1!S71_DepCode,$AD:$AD)","v":0},{"$f":"SUMIFS(Sheet1!S71_PPYearAmount,Sheet1!S71_SA34dCode,$AC:$AC,Sheet1!S71_DepCode,$AD:$AD)","v":0},{"$f":"SUMIFS(Sheet1!S71_PYearAmount,Sheet1!S71_SA34dCode,$AC:$AC,Sheet1!S71_DepCode,$AD:$AD)","v":0},{"$f":"SUMIFS(Sheet1!S71_OriginalBudAmnt,Sheet1!S71_SA34dCode,$AC:$AC,Sheet1!S71_DepCode,$AD:$AD)","v":0},{"$f":"SUMIFS(Sheet1!S71_AdjustmentBudAmnt,Sheet1!S71_SA34dCode,$AC:$AC,Sheet1!S71_DepCode,$AD:$AD)","v":0},{"$f":"SUMIFS(Sheet1!S71_AdjustmentBudAmnt,Sheet1!S71_SA34dCode,$AC:$AC,Sheet1!S71_DepCode,$AD:$AD)","v":0},{"$f":"SUMIFS(Sheet1!S71_ASBudgetAmount,Sheet1!S71_SA34dCode,$AC:$AC,Sheet1!S71_DepCode,$AD:$AD)","v":0},{"$f":"SUMIFS(Sheet1!S71_OY1BudgetAmount,Sheet1!S71_SA34dCode,$AC:$AC,Sheet1!S71_DepCode,$AD:$AD)","v":0},{"$f":"SUMIFS(Sheet1!S71_OY2BudgetAmount,Sheet1!S71_SA34dCode,$AC:$AC,Sheet1!S71_DepCode,$AD:$AD)","v":0},null,null,null,null,null,null,null,null,null,null,null,null,null,null,null,null,null,"1550","DP"]
[null,null,null,null,null,null,null,null,null,null,null,null,null,null,null,null,null,null,null,null,null,null,null,null,null,null,null,null,null,"DP"]
["Zoo's, Marine and Non-biological Animals",null,{"$f":"SUM(C165:C165)","v":0},0,0,0,0,0,0,0,0,null,null,null,null,null,null,null,null,null,null,null,null,null,null,null,null,null,null,"DP"]
["Zoo's, Marine and Non-biological Animals",null,{"$f":"SUMIFS(Sheet1!S71_PPPYearAmount,Sheet1!S71_SA34dCode,$AC:$AC,Sheet1!S71_DepCode,$AD:$AD)","v":0},{"$f":"SUMIFS(Sheet1!S71_PPYearAmount,Sheet1!S71_SA34dCode,$AC:$AC,Sheet1!S71_DepCode,$AD:$AD)","v":0},{"$f":"SUMIFS(Sheet1!S71_PYearAmount,Sheet1!S71_SA34dCode,$AC:$AC,Sheet1!S71_DepCode,$AD:$AD)","v":0},{"$f":"SUMIFS(Sheet1!S71_OriginalBudAmnt,Sheet1!S71_SA34dCode,$AC:$AC,Sheet1!S71_DepCode,$AD:$AD)","v":0},{"$f":"SUMIFS(Sheet1!S71_AdjustmentBudAmnt,Sheet1!S71_SA34dCode,$AC:$AC,Sheet1!S71_DepCode,$AD:$AD)","v":0},{"$f":"SUMIFS(Sheet1!S71_AdjustmentBudAmnt,Sheet1!S71_SA34dCode,$AC:$AC,Sheet1!S71_DepCode,$AD:$AD)","v":0},{"$f":"SUMIFS(Sheet1!S71_ASBudgetAmount,Sheet1!S71_SA34dCode,$AC:$AC,Sheet1!S71_DepCode,$AD:$AD)","v":0},{"$f":"SUMIFS(Sheet1!S71_OY1BudgetAmount,Sheet1!S71_SA34dCode,$AC:$AC,Sheet1!S71_DepCode,$AD:$AD)","v":0},{"$f":"SUMIFS(Sheet1!S71_OY2BudgetAmount,Sheet1!S71_SA34dCode,$AC:$AC,Sheet1!S71_DepCode,$AD:$AD)","v":0},null,null,null,null,null,null,null,null,null,null,null,null,null,null,null,null,null,"1570","DP"]
[]
["Total Depreciation",1,{"$f":"C6+C74+C103+C110+C118+C136+C139+C149+C152+C155+C158+C161+C164","v":0},{"$f":"D6+D74+D103+D110+D118+D136+D139+D149+D152+D155+D158+D161+D164","v":2597914},2095288,1660850,1810850,1810850,1000000,1000000,1000000]
[]
[{"$f":"head27a","v":"References"}]
["1. Depreciation based on write down values. Not including Depreciation resulting from revaluation."]
[]
[]
["Check",null,{"$f":"C$167-'A4-FinPerf RE'!C$27","v":0},{"$f":"D$167-'A4-FinPerf RE'!D$27","v":-53267},{"$f":"E$167-'A4-FinPerf RE'!E$27","v":-14050},{"$f":"F$167-'A4-FinPerf RE'!F$27","v":0},{"$f":"G$167-'A4-FinPerf RE'!G$27","v":0},{"$f":"H$167-'A4-FinPerf RE'!H$27","v":0},{"$f":"I$167-'A4-FinPerf RE'!J$27","v":0},{"$f":"J$167-'A4-FinPerf RE'!K$27","v":0},{"$f":"K$167-'A4-FinPerf RE'!L$27","v":0}]

{"sheet":"SA34e","index":68,"n_rows":175,"n_cols":30,"rows_kept":175,"cut":false,"hidden":false,"merged":[[1,5,1,7],[1,8,1,10]]}
[{"$f":"muni&\" - \"&TableA34e","v":"DC16 Xhariep - Supporting Table SA34e Capital expenditure on the upgrading of existing assets by asset class"}]
[{"$f":"desc","v":"Description"},{"$f":"head27","v":"Ref"},{"$f":"head1b","v":"2017/18"},{"$f":"head1A","v":"2018/19"},{"$f":"Head1","v":"2019/20"},{"$f":"Head2","v":"Current Year 2020/21"},null,null,{"$f":"Head3","v":"2021/22 Medium Term Revenue & Expenditure Framework"}]
["R thousand",1,{"$f":"Head5","v":"Audited Outcome"},{"$f":"Head5","v":"Audited Outcome"},{"$f":"Head5","v":"Audited Outcome"},{"$f":"Head6","v":"Original Budget"},{"$f":"Head7","v":"Adjusted Budget"},{"$f":"Head8","v":"Full Year Forecast"},{"$f":"Head9","v":"Budget Year 2021/22"},{"$f":"Head10","v":"Budget Year +1 2022/23"},{"$f":"Head11","v":"Budget Year +2 2023/24"}]
["Capital expenditure on upgrading of existing assets by Asset Class/Sub-class"]
[]
["Infrastructure",null,{"$f":"C7+C12+C16+C26+C37+C44+C52+C62+C68","v":0},{"$f":"D7+D12+D16+D26+D37+D44+D52+D62+D68","v":0},0,0,0,0,0,0,0]
["Roads Infrastructure",null,{"$f":"SUM(C8:C11)","v":0},0,0,0,0,0,0,0,0]
["Roads",null,{"$f":"SUMIFS(Sheet1!S71_PPPYearAmount,Sheet1!S71_SA34eCode,$AC:$AC,Sheet1!S71_A5CapexCode,$AD:$AD)","v":0},{"$f":"SUMIFS(Sheet1!S71_PPYearAmount,Sheet1!S71_SA34eCode,$AC:$AC,Sheet1!S71_A5CapexCode,$AD:$AD)","v":0},{"$f":"SUMIFS(Sheet1!S71_PYearAmount,Sheet1!S71_SA34eCode,$AC:$AC,Sheet1!S71_A5CapexCode,$AD:$AD)","v":0},{"$f":"SUMIFS(Sheet1!S71_OriginalBudAmnt,Sheet1!S71_SA34eCode,$AC:$AC,Sheet1!S71_A5CapexCode,$AD:$AD)","v":0},{"$f":"SUMIFS(Sheet1!S71_AdjustmentBudAmnt,Sheet1!S71_SA34eCode,$AC:$AC,Sheet1!S71_A5CapexCode,$AD:$AD)","v":0},{"$f":"SUMIFS(Sheet1!S71_AdjustmentBudAmnt,Sheet1!S71_SA34eCode,$AC:$AC,Sheet1!S71_A5CapexCode,$AD:$AD)","v":0},{"$f":"SUMIFS(Sheet1!S71_ASBudgetAmount,Sheet1!S71_SA34eCode,$AC:$AC,Sheet1!S71_A5CapexCode,$AD:$AD)","v":0},{"$f":"SUMIFS(Sheet1!S71_OY1BudgetAmount,Sheet1!S71_SA34eCode,$AC:$AC,Sheet1!S71_A5CapexCode,$AD:$AD)","v":0},{"$f":"SUMIFS(Sheet1!S71_OY2BudgetAmount,Sheet1!S71_SA34eCode,$AC:$AC,Sheet1!S71_A5CapexCode,$AD:$AD)","v":0},null,null,null,null,null,null,null,null,null,null,null,null,null,null,null,null,null,"0120","CE"]
["Road Structures",null,{"$f":"SUMIFS(Sheet1!S71_PPPYearAmount,Sheet1!S71_SA34eCode,$AC:$AC,Sheet1!S71_A5CapexCode,$AD:$AD)","v":0},{"$f":"SUMIFS(Sheet1!S71_PPYearAmount,Sheet1!S71_SA34eCode,$AC:$AC,Sheet1!S71_A5CapexCode,$AD:$AD)","v":0},{"$f":"SUMIFS(Sheet1!S71_PYearAmount,Sheet1!S71_SA34eCode,$AC:$AC,Sheet1!S71_A5CapexCode,$AD:$AD)","v":0},{"$f":"SUMIFS(Sheet1!S71_OriginalBudAmnt,Sheet1!S71_SA34eCode,$AC:$AC,Sheet1!S71_A5CapexCode,$AD:$AD)","v":0},{"$f":"SUMIFS(Sheet1!S71_AdjustmentBudAmnt,Sheet1!S71_SA34eCode,$AC:$AC,Sheet1!S71_A5CapexCode,$AD:$AD)","v":0},{"$f":"SUMIFS(Sheet1!S71_AdjustmentBudAmnt,Sheet1!S71_SA34eCode,$AC:$AC,Sheet1!S71_A5CapexCode,$AD:$AD)","v":0},{"$f":"SUMIFS(Sheet1!S71_ASBudgetAmount,Sheet1!S71_SA34eCode,$AC:$AC,Sheet1!S71_A5CapexCode,$AD:$AD)","v":0},{"$f":"SUMIFS(Sheet1!S71_OY1BudgetAmount,Sheet1!S71_SA34eCode,$AC:$AC,Sheet1!S71_A5CapexCode,$AD:$AD)","v":0},{"$f":"SUMIFS(Sheet1!S71_OY2BudgetAmount,Sheet1!S71_SA34eCode,$AC:$AC,Sheet1!S71_A5CapexCode,$AD:$AD)","v":0},null,null,null,null,null,null,null,null,null,null,null,null,null,null,null,null,null,"0130","CE"]
["Road Furniture",null,{"$f":"SUMIFS(Sheet1!S71_PPPYearAmount,Sheet1!S71_SA34eCode,$AC:$AC,Sheet1!S71_A5CapexCode,$AD:$AD)","v":0},{"$f":"SUMIFS(Sheet1!S71_PPYearAmount,Sheet1!S71_SA34eCode,$AC:$AC,Sheet1!S71_A5CapexCode,$AD:$AD)","v":0},{"$f":"SUMIFS(Sheet1!S71_PYearAmount,Sheet1!S71_SA34eCode,$AC:$AC,Sheet1!S71_A5CapexCode,$AD:$AD)","v":0},{"$f":"SUMIFS(Sheet1!S71_OriginalBudAmnt,Sheet1!S71_SA34eCode,$AC:$AC,Sheet1!S71_A5CapexCode,$AD:$AD)","v":0},{"$f":"SUMIFS(Sheet1!S71_AdjustmentBudAmnt,Sheet1!S71_SA34eCode,$AC:$AC,Sheet1!S71_A5CapexCode,$AD:$AD)","v":0},{"$f":"SUMIFS(Sheet1!S71_AdjustmentBudAmnt,Sheet1!S71_SA34eCode,$AC:$AC,Sheet1!S71_A5CapexCode,$AD:$AD)","v":0},{"$f":"SUMIFS(Sheet1!S71_ASBudgetAmount,Sheet1!S71_SA34eCode,$AC:$AC,Sheet1!S71_A5CapexCode,$AD:$AD)","v":0},{"$f":"SUMIFS(Sheet1!S71_OY1BudgetAmount,Sheet1!S71_SA34eCode,$AC:$AC,Sheet1!S71_A5CapexCode,$AD:$AD)","v":0},{"$f":"SUMIFS(Sheet1!S71_OY2BudgetAmount,Sheet1!S71_SA34eCode,$AC:$AC,Sheet1!S71_A5CapexCode,$AD:$AD)","v":0},null,null,null,null,null,null,null,null,null,null,null,null,null,null,null,null,null,"0140","CE"]
["Capital Spares",null,{"$f":"SUMIFS(Sheet1!S71_PPPYearAmount,Sheet1!S71_SA34eCode,$AC:$AC,Sheet1!S71_A5CapexCode,$AD:$AD)","v":0},{"$f":"SUMIFS(Sheet1!S71_PPYearAmount,Sheet1!S71_SA34eCode,$AC:$AC,Sheet1!S71_A5CapexCode,$AD:$AD)","v":0},{"$f":"SUMIFS(Sheet1!S71_PYearAmount,Sheet1!S71_SA34eCode,$AC:$AC,Sheet1!S71_A5CapexCode,$AD:$AD)","v":0},{"$f":"SUMIFS(Sheet1!S71_OriginalBudAmnt,Sheet1!S71_SA34eCode,$AC:$AC,Sheet1!S71_A5CapexCode,$AD:$AD)","v":0},{"$f":"SUMIFS(Sheet1!S71_AdjustmentBudAmnt,Sheet1!S71_SA34eCode,$AC:$AC,Sheet1!S71_A5CapexCode,$AD:$AD)","v":0},{"$f":"SUMIFS(Sheet1!S71_AdjustmentBudAmnt,Sheet1!S71_SA34eCode,$AC:$AC,Sheet1!S71_A5CapexCode,$AD:$AD)","v":0},{"$f":"SUMIFS(Sheet1!S71_ASBudgetAmount,Sheet1!S71_SA34eCode,$AC:$AC,Sheet1!S71_A5CapexCode,$AD:$AD)","v":0},{"$f":"SUMIFS(Sheet1!S71_OY1BudgetAmount,Sheet1!S71_SA34eCode,$AC:$AC,Sheet1!S71_A5CapexCode,$AD:$AD)","v":0},{"$f":"SUMIFS(Sheet1!S71_OY2BudgetAmount,Sheet1!S71_SA34eCode,$AC:$AC,Sheet1!S71_A5CapexCode,$AD:$AD)","v":0},null,null,null,null,null,null,null,null,null,null,null,null,null,null,null,null,null,"0150","CE"]
["Storm water Infrastructure",null,{"$f":"SUM(C13:C15)","v":0},{"$f":"SUM(D13:D15)","v":0},0,0,0,0,0,0,0]
["Drainage Collection",null,{"$f":"SUMIFS(Sheet1!S71_PPPYearAmount,Sheet1!S71_SA34eCode,$AC:$AC,Sheet1!S71_A5CapexCode,$AD:$AD)","v":0},{"$f":"SUMIFS(Sheet1!S71_PPYearAmount,Sheet1!S71_SA34eCode,$AC:$AC,Sheet1!S71_A5CapexCode,$AD:$AD)","v":0},{"$f":"SUMIFS(Sheet1!S71_PYearAmount,Sheet1!S71_SA34eCode,$AC:$AC,Sheet1!S71_A5CapexCode,$AD:$AD)","v":0},{"$f":"SUMIFS(Sheet1!S71_OriginalBudAmnt,Sheet1!S71_SA34eCode,$AC:$AC,Sheet1!S71_A5CapexCode,$AD:$AD)","v":0},{"$f":"SUMIFS(Sheet1!S71_AdjustmentBudAmnt,Sheet1!S71_SA34eCode,$AC:$AC,Sheet1!S71_A5CapexCode,$AD:$AD)","v":0},{"$f":"SUMIFS(Sheet1!S71_AdjustmentBudAmnt,Sheet1!S71_SA34eCode,$AC:$AC,Sheet1!S71_A5CapexCode,$AD:$AD)","v":0},{"$f":"SUMIFS(Sheet1!S71_ASBudgetAmount,Sheet1!S71_SA34eCode,$AC:$AC,Sheet1!S71_A5CapexCode,$AD:$AD)","v":0},{"$f":"SUMIFS(Sheet1!S71_OY1BudgetAmount,Sheet1!S71_SA34eCode,$AC:$AC,Sheet1!S71_A5CapexCode,$AD:$AD)","v":0},{"$f":"SUMIFS(Sheet1!S71_OY2BudgetAmount,Sheet1!S71_SA34eCode,$AC:$AC,Sheet1!S71_A5CapexCode,$AD:$AD)","v":0},null,null,null,null,null,null,null,null,null,null,null,null,null,null,null,null,null,"0170","CE"]
["Storm water Conveyance",null,{"$f":"SUMIFS(Sheet1!S71_PPPYearAmount,Sheet1!S71_SA34eCode,$AC:$AC,Sheet1!S71_A5CapexCode,$AD:$AD)","v":0},{"$f":"SUMIFS(Sheet1!S71_PPYearAmount,Sheet1!S71_SA34eCode,$AC:$AC,Sheet1!S71_A5CapexCode,$AD:$AD)","v":0},{"$f":"SUMIFS(Sheet1!S71_PYearAmount,Sheet1!S71_SA34eCode,$AC:$AC,Sheet1!S71_A5CapexCode,$AD:$AD)","v":0},{"$f":"SUMIFS(Sheet1!S71_OriginalBudAmnt,Sheet1!S71_SA34eCode,$AC:$AC,Sheet1!S71_A5CapexCode,$AD:$AD)","v":0},{"$f":"SUMIFS(Sheet1!S71_AdjustmentBudAmnt,Sheet1!S71_SA34eCode,$AC:$AC,Sheet1!S71_A5CapexCode,$AD:$AD)","v":0},{"$f":"SUMIFS(Sheet1!S71_AdjustmentBudAmnt,Sheet1!S71_SA34eCode,$AC:$AC,Sheet1!S71_A5CapexCode,$AD:$AD)","v":0},{"$f":"SUMIFS(Sheet1!S71_ASBudgetAmount,Sheet1!S71_SA34eCode,$AC:$AC,Sheet1!S71_A5CapexCode,$AD:$AD)","v":0},{"$f":"SUMIFS(Sheet1!S71_OY1BudgetAmount,Sheet1!S71_SA34eCode,$AC:$AC,Sheet1!S71_A5CapexCode,$AD:$AD)","v":0},{"$f":"SUMIFS(Sheet1!S71_OY2BudgetAmount,Sheet1!S71_SA34eCode,$AC:$AC,Sheet1!S71_A5CapexCode,$AD:$AD)","v":0},null,null,null,null,null,null,null,null,null,null,null,null,null,null,null,null,null,"0180","CE"]
["Attenuation",null,{"$f":"SUMIFS(Sheet1!S71_PPPYearAmount,Sheet1!S71_SA34eCode,$AC:$AC,Sheet1!S71_A5CapexCode,$AD:$AD)","v":0},{"$f":"SUMIFS(Sheet1!S71_PPYearAmount,Sheet1!S71_SA34eCode,$AC:$AC,Sheet1!S71_A5CapexCode,$AD:$AD)","v":0},{"$f":"SUMIFS(Sheet1!S71_PYearAmount,Sheet1!S71_SA34eCode,$AC:$AC,Sheet1!S71_A5CapexCode,$AD:$AD)","v":0},{"$f":"SUMIFS(Sheet1!S71_OriginalBudAmnt,Sheet1!S71_SA34eCode,$AC:$AC,Sheet1!S71_A5CapexCode,$AD:$AD)","v":0},{"$f":"SUMIFS(Sheet1!S71_AdjustmentBudAmnt,Sheet1!S71_SA34eCode,$AC:$AC,Sheet1!S71_A5CapexCode,$AD:$AD)","v":0},{"$f":"SUMIFS(Sheet1!S71_AdjustmentBudAmnt,Sheet1!S71_SA34eCode,$AC:$AC,Sheet1!S71_A5CapexCode,$AD:$AD)","v":0},{"$f":"SUMIFS(Sheet1!S71_ASBudgetAmount,Sheet1!S71_SA34eCode,$AC:$AC,Sheet1!S71_A5CapexCode,$AD:$AD)","v":0},{"$f":"SUMIFS(Sheet1!S71_OY1BudgetAmount,Sheet1!S71_SA34eCode,$AC:$AC,Sheet1!S71_A5CapexCode,$AD:$AD)","v":0},{"$f":"SUMIFS(Sheet1!S71_OY2BudgetAmount,Sheet1!S71_SA34eCode,$AC:$AC,Sheet1!S71_A5CapexCode,$AD:$AD)","v":0},null,null,null,null,null,null,null,null,null,null,null,null,null,null,null,null,null,"0190","CE"]
["Electrical Infrastructure",null,{"$f":"SUM(C17:C25)","v":0},0,0,0,0,0,0,0,0]
["Power Plants",null,{"$f":"SUMIFS(Sheet1!S71_PPPYearAmount,Sheet1!S71_SA34eCode,$AC:$AC,Sheet1!S71_A5CapexCode,$AD:$AD)","v":0},{"$f":"SUMIFS(Sheet1!S71_PPYearAmount,Sheet1!S71_SA34eCode,$AC:$AC,Sheet1!S71_A5CapexCode,$AD:$AD)","v":0},{"$f":"SUMIFS(Sheet1!S71_PYearAmount,Sheet1!S71_SA34eCode,$AC:$AC,Sheet1!S71_A5CapexCode,$AD:$AD)","v":0},{"$f":"SUMIFS(Sheet1!S71_OriginalBudAmnt,Sheet1!S71_SA34eCode,$AC:$AC,Sheet1!S71_A5CapexCode,$AD:$AD)","v":0},{"$f":"SUMIFS(Sheet1!S71_AdjustmentBudAmnt,Sheet1!S71_SA34eCode,$AC:$AC,Sheet1!S71_A5CapexCode,$AD:$AD)","v":0},{"$f":"SUMIFS(Sheet1!S71_AdjustmentBudAmnt,Sheet1!S71_SA34eCode,$AC:$AC,Sheet1!S71_A5CapexCode,$AD:$AD)","v":0},{"$f":"SUMIFS(Sheet1!S71_ASBudgetAmount,Sheet1!S71_SA34eCode,$AC:$AC,Sheet1!S71_A5CapexCode,$AD:$AD)","v":0},{"$f":"SUMIFS(Sheet1!S71_OY1BudgetAmount,Sheet1!S71_SA34eCode,$AC:$AC,Sheet1!S71_A5CapexCode,$AD:$AD)","v":0},{"$f":"SUMIFS(Sheet1!S71_OY2BudgetAmount,Sheet1!S71_SA34eCode,$AC:$AC,Sheet1!S71_A5CapexCode,$AD:$AD)","v":0},null,null,null,null,null,null,null,null,null,null,null,null,null,null,null,null,null,"0210","CE"]
["HV Substations",null,{"$f":"SUMIFS(Sheet1!S71_PPPYearAmount,Sheet1!S71_SA34eCode,$AC:$AC,Sheet1!S71_A5CapexCode,$AD:$AD)","v":0},{"$f":"SUMIFS(Sheet1!S71_PPYearAmount,Sheet1!S71_SA34eCode,$AC:$AC,Sheet1!S71_A5CapexCode,$AD:$AD)","v":0},{"$f":"SUMIFS(Sheet1!S71_PYearAmount,Sheet1!S71_SA34eCode,$AC:$AC,Sheet1!S71_A5CapexCode,$AD:$AD)","v":0},{"$f":"SUMIFS(Sheet1!S71_OriginalBudAmnt,Sheet1!S71_SA34eCode,$AC:$AC,Sheet1!S71_A5CapexCode,$AD:$AD)","v":0},{"$f":"SUMIFS(Sheet1!S71_AdjustmentBudAmnt,Sheet1!S71_SA34eCode,$AC:$AC,Sheet1!S71_A5CapexCode,$AD:$AD)","v":0},{"$f":"SUMIFS(Sheet1!S71_AdjustmentBudAmnt,Sheet1!S71_SA34eCode,$AC:$AC,Sheet1!S71_A5CapexCode,$AD:$AD)","v":0},{"$f":"SUMIFS(Sheet1!S71_ASBudgetAmount,Sheet1!S71_SA34eCode,$AC:$AC,Sheet1!S71_A5CapexCode,$AD:$AD)","v":0},{"$f":"SUMIFS(Sheet1!S71_OY1BudgetAmount,Sheet1!S71_SA34eCode,$AC:$AC,Sheet1!S71_A5CapexCode,$AD:$AD)","v":0},{"$f":"SUMIFS(Sheet1!S71_OY2BudgetAmount,Sheet1!S71_SA34eCode,$AC:$AC,Sheet1!S71_A5CapexCode,$AD:$AD)","v":0},null,null,null,null,null,null,null,null,null,null,null,null,null,null,null,null,null,"0220","CE"]
["HV Switching Station",null,{"$f":"SUMIFS(Sheet1!S71_PPPYearAmount,Sheet1!S71_SA34eCode,$AC:$AC,Sheet1!S71_A5CapexCode,$AD:$AD)","v":0},{"$f":"SUMIFS(Sheet1!S71_PPYearAmount,Sheet1!S71_SA34eCode,$AC:$AC,Sheet1!S71_A5CapexCode,$AD:$AD)","v":0},{"$f":"SUMIFS(Sheet1!S71_PYearAmount,Sheet1!S71_SA34eCode,$AC:$AC,Sheet1!S71_A5CapexCode,$AD:$AD)","v":0},{"$f":"SUMIFS(Sheet1!S71_OriginalBudAmnt,Sheet1!S71_SA34eCode,$AC:$AC,Sheet1!S71_A5CapexCode,$AD:$AD)","v":0},{"$f":"SUMIFS(Sheet1!S71_AdjustmentBudAmnt,Sheet1!S71_SA34eCode,$AC:$AC,Sheet1!S71_A5CapexCode,$AD:$AD)","v":0},{"$f":"SUMIFS(Sheet1!S71_AdjustmentBudAmnt,Sheet1!S71_SA34eCode,$AC:$AC,Sheet1!S71_A5CapexCode,$AD:$AD)","v":0},{"$f":"SUMIFS(Sheet1!S71_ASBudgetAmount,Sheet1!S71_SA34eCode,$AC:$AC,Sheet1!S71_A5CapexCode,$AD:$AD)","v":0},{"$f":"SUMIFS(Sheet1!S71_OY1BudgetAmount,Sheet1!S71_SA34eCode,$AC:$AC,Sheet1!S71_A5CapexCode,$AD:$AD)","v":0},{"$f":"SUMIFS(Sheet1!S71_OY2BudgetAmount,Sheet1!S71_SA34eCode,$AC:$AC,Sheet1!S71_A5CapexCode,$AD:$AD)","v":0},null,null,null,null,null,null,null,null,null,null,null,null,null,null,null,null,null,"0230","CE"]
["HV Transmission Conductors",null,{"$f":"SUMIFS(Sheet1!S71_PPPYearAmount,Sheet1!S71_SA34eCode,$AC:$AC,Sheet1!S71_A5CapexCode,$AD:$AD)","v":0},{"$f":"SUMIFS(Sheet1!S71_PPYearAmount,Sheet1!S71_SA34eCode,$AC:$AC,Sheet1!S71_A5CapexCode,$AD:$AD)","v":0},{"$f":"SUMIFS(Sheet1!S71_PYearAmount,Sheet1!S71_SA34eCode,$AC:$AC,Sheet1!S71_A5CapexCode,$AD:$AD)","v":0},{"$f":"SUMIFS(Sheet1!S71_OriginalBudAmnt,Sheet1!S71_SA34eCode,$AC:$AC,Sheet1!S71_A5CapexCode,$AD:$AD)","v":0},{"$f":"SUMIFS(Sheet1!S71_AdjustmentBudAmnt,Sheet1!S71_SA34eCode,$AC:$AC,Sheet1!S71_A5CapexCode,$AD:$AD)","v":0},{"$f":"SUMIFS(Sheet1!S71_AdjustmentBudAmnt,Sheet1!S71_SA34eCode,$AC:$AC,Sheet1!S71_A5CapexCode,$AD:$AD)","v":0},{"$f":"SUMIFS(Sheet1!S71_ASBudgetAmount,Sheet1!S71_SA34eCode,$AC:$AC,Sheet1!S71_A5CapexCode,$AD:$AD)","v":0},{"$f":"SUMIFS(Sheet1!S71_OY1BudgetAmount,Sheet1!S71_SA34eCode,$AC:$AC,Sheet1!S71_A5CapexCode,$AD:$AD)","v":0},{"$f":"SUMIFS(Sheet1!S71_OY2BudgetAmount,Sheet1!S71_SA34eCode,$AC:$AC,Sheet1!S71_A5CapexCode,$AD:$AD)","v":0},null,null,null,null,null,null,null,null,null,null,null,null,null,null,null,null,null,"0240","CE"]
["MV Substations",null,{"$f":"SUMIFS(Sheet1!S71_PPPYearAmount,Sheet1!S71_SA34eCode,$AC:$AC,Sheet1!S71_A5CapexCode,$AD:$AD)","v":0},{"$f":"SUMIFS(Sheet1!S71_PPYearAmount,Sheet1!S71_SA34eCode,$AC:$AC,Sheet1!S71_A5CapexCode,$AD:$AD)","v":0},{"$f":"SUMIFS(Sheet1!S71_PYearAmount,Sheet1!S71_SA34eCode,$AC:$AC,Sheet1!S71_A5CapexCode,$AD:$AD)","v":0},{"$f":"SUMIFS(Sheet1!S71_OriginalBudAmnt,Sheet1!S71_SA34eCode,$AC:$AC,Sheet1!S71_A5CapexCode,$AD:$AD)","v":0},{"$f":"SUMIFS(Sheet1!S71_AdjustmentBudAmnt,Sheet1!S71_SA34eCode,$AC:$AC,Sheet1!S71_A5CapexCode,$AD:$AD)","v":0},{"$f":"SUMIFS(Sheet1!S71_AdjustmentBudAmnt,Sheet1!S71_SA34eCode,$AC:$AC,Sheet1!S71_A5CapexCode,$AD:$AD)","v":0},{"$f":"SUMIFS(Sheet1!S71_ASBudgetAmount,Sheet1!S71_SA34eCode,$AC:$AC,Sheet1!S71_A5CapexCode,$AD:$AD)","v":0},{"$f":"SUMIFS(Sheet1!S71_OY1BudgetAmount,Sheet1!S71_SA34eCode,$AC:$AC,Sheet1!S71_A5CapexCode,$AD:$AD)","v":0},{"$f":"SUMIFS(Sheet1!S71_OY2BudgetAmount,Sheet1!S71_SA34eCode,$AC:$AC,Sheet1!S71_A5CapexCode,$AD:$AD)","v":0},null,null,null,null,null,null,null,null,null,null,null,null,null,null,null,null,null,"0250","CE"]
["MV Switching Stations",null,{"$f":"SUMIFS(Sheet1!S71_PPPYearAmount,Sheet1!S71_SA34eCode,$AC:$AC,Sheet1!S71_A5CapexCode,$AD:$AD)","v":0},{"$f":"SUMIFS(Sheet1!S71_PPYearAmount,Sheet1!S71_SA34eCode,$AC:$AC,Sheet1!S71_A5CapexCode,$AD:$AD)","v":0},{"$f":"SUMIFS(Sheet1!S71_PYearAmount,Sheet1!S71_SA34eCode,$AC:$AC,Sheet1!S71_A5CapexCode,$AD:$AD)","v":0},{"$f":"SUMIFS(Sheet1!S71_OriginalBudAmnt,Sheet1!S71_SA34eCode,$AC:$AC,Sheet1!S71_A5CapexCode,$AD:$AD)","v":0},{"$f":"SUMIFS(Sheet1!S71_AdjustmentBudAmnt,Sheet1!S71_SA34eCode,$AC:$AC,Sheet1!S71_A5CapexCode,$AD:$AD)","v":0},{"$f":"SUMIFS(Sheet1!S71_AdjustmentBudAmnt,Sheet1!S71_SA34eCode,$AC:$AC,Sheet1!S71_A5CapexCode,$AD:$AD)","v":0},{"$f":"SUMIFS(Sheet1!S71_ASBudgetAmount,Sheet1!S71_SA34eCode,$AC:$AC,Sheet1!S71_A5CapexCode,$AD:$AD)","v":0},{"$f":"SUMIFS(Sheet1!S71_OY1BudgetAmount,Sheet1!S71_SA34eCode,$AC:$AC,Sheet1!S71_A5CapexCode,$AD:$AD)","v":0},{"$f":"SUMIFS(Sheet1!S71_OY2BudgetAmount,Sheet1!S71_SA34eCode,$AC:$AC,Sheet1!S71_A5CapexCode,$AD:$AD)","v":0},null,null,null,null,null,null,null,null,null,null,null,null,null,null,null,null,null,"0260","CE"]
["MV Networks",null,{"$f":"SUMIFS(Sheet1!S71_PPPYearAmount,Sheet1!S71_SA34eCode,$AC:$AC,Sheet1!S71_A5CapexCode,$AD:$AD)","v":0},{"$f":"SUMIFS(Sheet1!S71_PPYearAmount,Sheet1!S71_SA34eCode,$AC:$AC,Sheet1!S71_A5CapexCode,$AD:$AD)","v":0},{"$f":"SUMIFS(Sheet1!S71_PYearAmount,Sheet1!S71_SA34eCode,$AC:$AC,Sheet1!S71_A5CapexCode,$AD:$AD)","v":0},{"$f":"SUMIFS(Sheet1!S71_OriginalBudAmnt,Sheet1!S71_SA34eCode,$AC:$AC,Sheet1!S71_A5CapexCode,$AD:$AD)","v":0},{"$f":"SUMIFS(Sheet1!S71_AdjustmentBudAmnt,Sheet1!S71_SA34eCode,$AC:$AC,Sheet1!S71_A5CapexCode,$AD:$AD)","v":0},{"$f":"SUMIFS(Sheet1!S71_AdjustmentBudAmnt,Sheet1!S71_SA34eCode,$AC:$AC,Sheet1!S71_A5CapexCode,$AD:$AD)","v":0},{"$f":"SUMIFS(Sheet1!S71_ASBudgetAmount,Sheet1!S71_SA34eCode,$AC:$AC,Sheet1!S71_A5CapexCode,$AD:$AD)","v":0},{"$f":"SUMIFS(Sheet1!S71_OY1BudgetAmount,Sheet1!S71_SA34eCode,$AC:$AC,Sheet1!S71_A5CapexCode,$AD:$AD)","v":0},{"$f":"SUMIFS(Sheet1!S71_OY2BudgetAmount,Sheet1!S71_SA34eCode,$AC:$AC,Sheet1!S71_A5CapexCode,$AD:$AD)","v":0},null,null,null,null,null,null,null,null,null,null,null,null,null,null,null,null,null,"0270","CE"]
["LV Networks",null,{"$f":"SUMIFS(Sheet1!S71_PPPYearAmount,Sheet1!S71_SA34eCode,$AC:$AC,Sheet1!S71_A5CapexCode,$AD:$AD)","v":0},{"$f":"SUMIFS(Sheet1!S71_PPYearAmount,Sheet1!S71_SA34eCode,$AC:$AC,Sheet1!S71_A5CapexCode,$AD:$AD)","v":0},{"$f":"SUMIFS(Sheet1!S71_PYearAmount,Sheet1!S71_SA34eCode,$AC:$AC,Sheet1!S71_A5CapexCode,$AD:$AD)","v":0},{"$f":"SUMIFS(Sheet1!S71_OriginalBudAmnt,Sheet1!S71_SA34eCode,$AC:$AC,Sheet1!S71_A5CapexCode,$AD:$AD)","v":0},{"$f":"SUMIFS(Sheet1!S71_AdjustmentBudAmnt,Sheet1!S71_SA34eCode,$AC:$AC,Sheet1!S71_A5CapexCode,$AD:$AD)","v":0},{"$f":"SUMIFS(Sheet1!S71_AdjustmentBudAmnt,Sheet1!S71_SA34eCode,$AC:$AC,Sheet1!S71_A5CapexCode,$AD:$AD)","v":0},{"$f":"SUMIFS(Sheet1!S71_ASBudgetAmount,Sheet1!S71_SA34eCode,$AC:$AC,Sheet1!S71_A5CapexCode,$AD:$AD)","v":0},{"$f":"SUMIFS(Sheet1!S71_OY1BudgetAmount,Sheet1!S71_SA34eCode,$AC:$AC,Sheet1!S71_A5CapexCode,$AD:$AD)","v":0},{"$f":"SUMIFS(Sheet1!S71_OY2BudgetAmount,Sheet1!S71_SA34eCode,$AC:$AC,Sheet1!S71_A5CapexCode,$AD:$AD)","v":0},null,null,null,null,null,null,null,null,null,null,null,null,null,null,null,null,null,"0280","CE"]
["Capital Spares",null,{"$f":"SUMIFS(Sheet1!S71_PPPYearAmount,Sheet1!S71_SA34eCode,$AC:$AC,Sheet1!S71_A5CapexCode,$AD:$AD)","v":0},{"$f":"SUMIFS(Sheet1!S71_PPYearAmount,Sheet1!S71_SA34eCode,$AC:$AC,Sheet1!S71_A5CapexCode,$AD:$AD)","v":0},{"$f":"SUMIFS(Sheet1!S71_PYearAmount,Sheet1!S71_SA34eCode,$AC:$AC,Sheet1!S71_A5CapexCode,$AD:$AD)","v":0},{"$f":"SUMIFS(Sheet1!S71_OriginalBudAmnt,Sheet1!S71_SA34eCode,$AC:$AC,Sheet1!S71_A5CapexCode,$AD:$AD)","v":0},{"$f":"SUMIFS(Sheet1!S71_AdjustmentBudAmnt,Sheet1!S71_SA34eCode,$AC:$AC,Sheet1!S71_A5CapexCode,$AD:$AD)","v":0},{"$f":"SUMIFS(Sheet1!S71_AdjustmentBudAmnt,Sheet1!S71_SA34eCode,$AC:$AC,Sheet1!S71_A5CapexCode,$AD:$AD)","v":0},{"$f":"SUMIFS(Sheet1!S71_ASBudgetAmount,Sheet1!S71_SA34eCode,$AC:$AC,Sheet1!S71_A5CapexCode,$AD:$AD)","v":0},{"$f":"SUMIFS(Sheet1!S71_OY1BudgetAmount,Sheet1!S71_SA34eCode,$AC:$AC,Sheet1!S71_A5CapexCode,$AD:$AD)","v":0},{"$f":"SUMIFS(Sheet1!S71_OY2BudgetAmount,Sheet1!S71_SA34eCode,$AC:$AC,Sheet1!S71_A5CapexCode,$AD:$AD)","v":0},null,null,null,null,null,null,null,null,null,null,null,null,null,null,null,null,null,"0290","CE"]
["Water Supply Infrastructure",null,{"$f":"SUM(C27:C36)","v":0},{"$f":"SUM(D27:D36)","v":0},0,0,0,0,0,0,0]
["Dams and Weirs",null,{"$f":"SUMIFS(Sheet1!S71_PPPYearAmount,Sheet1!S71_SA34eCode,$AC:$AC,Sheet1!S71_A5CapexCode,$AD:$AD)","v":0},{"$f":"SUMIFS(Sheet1!S71_PPYearAmount,Sheet1!S71_SA34eCode,$AC:$AC,Sheet1!S71_A5CapexCode,$AD:$AD)","v":0},{"$f":"SUMIFS(Sheet1!S71_PYearAmount,Sheet1!S71_SA34eCode,$AC:$AC,Sheet1!S71_A5CapexCode,$AD:$AD)","v":0},{"$f":"SUMIFS(Sheet1!S71_OriginalBudAmnt,Sheet1!S71_SA34eCode,$AC:$AC,Sheet1!S71_A5CapexCode,$AD:$AD)","v":0},{"$f":"SUMIFS(Sheet1!S71_AdjustmentBudAmnt,Sheet1!S71_SA34eCode,$AC:$AC,Sheet1!S71_A5CapexCode,$AD:$AD)","v":0},{"$f":"SUMIFS(Sheet1!S71_AdjustmentBudAmnt,Sheet1!S71_SA34eCode,$AC:$AC,Sheet1!S71_A5CapexCode,$AD:$AD)","v":0},{"$f":"SUMIFS(Sheet1!S71_ASBudgetAmount,Sheet1!S71_SA34eCode,$AC:$AC,Sheet1!S71_A5CapexCode,$AD:$AD)","v":0},{"$f":"SUMIFS(Sheet1!S71_OY1BudgetAmount,Sheet1!S71_SA34eCode,$AC:$AC,Sheet1!S71_A5CapexCode,$AD:$AD)","v":0},{"$f":"SUMIFS(Sheet1!S71_OY2BudgetAmount,Sheet1!S71_SA34eCode,$AC:$AC,Sheet1!S71_A5CapexCode,$AD:$AD)","v":0},null,null,null,null,null,null,null,null,null,null,null,null,null,null,null,null,null,"0310","CE"]
["Boreholes",null,{"$f":"SUMIFS(Sheet1!S71_PPPYearAmount,Sheet1!S71_SA34eCode,$AC:$AC,Sheet1!S71_A5CapexCode,$AD:$AD)","v":0},{"$f":"SUMIFS(Sheet1!S71_PPYearAmount,Sheet1!S71_SA34eCode,$AC:$AC,Sheet1!S71_A5CapexCode,$AD:$AD)","v":0},{"$f":"SUMIFS(Sheet1!S71_PYearAmount,Sheet1!S71_SA34eCode,$AC:$AC,Sheet1!S71_A5CapexCode,$AD:$AD)","v":0},{"$f":"SUMIFS(Sheet1!S71_OriginalBudAmnt,Sheet1!S71_SA34eCode,$AC:$AC,Sheet1!S71_A5CapexCode,$AD:$AD)","v":0},{"$f":"SUMIFS(Sheet1!S71_AdjustmentBudAmnt,Sheet1!S71_SA34eCode,$AC:$AC,Sheet1!S71_A5CapexCode,$AD:$AD)","v":0},{"$f":"SUMIFS(Sheet1!S71_AdjustmentBudAmnt,Sheet1!S71_SA34eCode,$AC:$AC,Sheet1!S71_A5CapexCode,$AD:$AD)","v":0},{"$f":"SUMIFS(Sheet1!S71_ASBudgetAmount,Sheet1!S71_SA34eCode,$AC:$AC,Sheet1!S71_A5CapexCode,$AD:$AD)","v":0},{"$f":"SUMIFS(Sheet1!S71_OY1BudgetAmount,Sheet1!S71_SA34eCode,$AC:$AC,Sheet1!S71_A5CapexCode,$AD:$AD)","v":0},{"$f":"SUMIFS(Sheet1!S71_OY2BudgetAmount,Sheet1!S71_SA34eCode,$AC:$AC,Sheet1!S71_A5CapexCode,$AD:$AD)","v":0},null,null,null,null,null,null,null,null,null,null,null,null,null,null,null,null,null,"0320","CE"]
["Reservoirs",null,{"$f":"SUMIFS(Sheet1!S71_PPPYearAmount,Sheet1!S71_SA34eCode,$AC:$AC,Sheet1!S71_A5CapexCode,$AD:$AD)","v":0},{"$f":"SUMIFS(Sheet1!S71_PPYearAmount,Sheet1!S71_SA34eCode,$AC:$AC,Sheet1!S71_A5CapexCode,$AD:$AD)","v":0},{"$f":"SUMIFS(Sheet1!S71_PYearAmount,Sheet1!S71_SA34eCode,$AC:$AC,Sheet1!S71_A5CapexCode,$AD:$AD)","v":0},{"$f":"SUMIFS(Sheet1!S71_OriginalBudAmnt,Sheet1!S71_SA34eCode,$AC:$AC,Sheet1!S71_A5CapexCode,$AD:$AD)","v":0},{"$f":"SUMIFS(Sheet1!S71_AdjustmentBudAmnt,Sheet1!S71_SA34eCode,$AC:$AC,Sheet1!S71_A5CapexCode,$AD:$AD)","v":0},{"$f":"SUMIFS(Sheet1!S71_AdjustmentBudAmnt,Sheet1!S71_SA34eCode,$AC:$AC,Sheet1!S71_A5CapexCode,$AD:$AD)","v":0},{"$f":"SUMIFS(Sheet1!S71_ASBudgetAmount,Sheet1!S71_SA34eCode,$AC:$AC,Sheet1!S71_A5CapexCode,$AD:$AD)","v":0},{"$f":"SUMIFS(Sheet1!S71_OY1BudgetAmount,Sheet1!S71_SA34eCode,$AC:$AC,Sheet1!S71_A5CapexCode,$AD:$AD)","v":0},{"$f":"SUMIFS(Sheet1!S71_OY2BudgetAmount,Sheet1!S71_SA34eCode,$AC:$AC,Sheet1!S71_A5CapexCode,$AD:$AD)","v":0},null,null,null,null,null,null,null,null,null,null,null,null,null,null,null,null,null,"0330","CE"]
["Pump Stations",null,{"$f":"SUMIFS(Sheet1!S71_PPPYearAmount,Sheet1!S71_SA34eCode,$AC:$AC,Sheet1!S71_A5CapexCode,$AD:$AD)","v":0},{"$f":"SUMIFS(Sheet1!S71_PPYearAmount,Sheet1!S71_SA34eCode,$AC:$AC,Sheet1!S71_A5CapexCode,$AD:$AD)","v":0},{"$f":"SUMIFS(Sheet1!S71_PYearAmount,Sheet1!S71_SA34eCode,$AC:$AC,Sheet1!S71_A5CapexCode,$AD:$AD)","v":0},{"$f":"SUMIFS(Sheet1!S71_OriginalBudAmnt,Sheet1!S71_SA34eCode,$AC:$AC,Sheet1!S71_A5CapexCode,$AD:$AD)","v":0},{"$f":"SUMIFS(Sheet1!S71_AdjustmentBudAmnt,Sheet1!S71_SA34eCode,$AC:$AC,Sheet1!S71_A5CapexCode,$AD:$AD)","v":0},{"$f":"SUMIFS(Sheet1!S71_AdjustmentBudAmnt,Sheet1!S71_SA34eCode,$AC:$AC,Sheet1!S71_A5CapexCode,$AD:$AD)","v":0},{"$f":"SUMIFS(Sheet1!S71_ASBudgetAmount,Sheet1!S71_SA34eCode,$AC:$AC,Sheet1!S71_A5CapexCode,$AD:$AD)","v":0},{"$f":"SUMIFS(Sheet1!S71_OY1BudgetAmount,Sheet1!S71_SA34eCode,$AC:$AC,Sheet1!S71_A5CapexCode,$AD:$AD)","v":0},{"$f":"SUMIFS(Sheet1!S71_OY2BudgetAmount,Sheet1!S71_SA34eCode,$AC:$AC,Sheet1!S71_A5CapexCode,$AD:$AD)","v":0},null,null,null,null,null,null,null,null,null,null,null,null,null,null,null,null,null,"0340","CE"]
["Water Treatment Works",null,{"$f":"SUMIFS(Sheet1!S71_PPPYearAmount,Sheet1!S71_SA34eCode,$AC:$AC,Sheet1!S71_A5CapexCode,$AD:$AD)","v":0},{"$f":"SUMIFS(Sheet1!S71_PPYearAmount,Sheet1!S71_SA34eCode,$AC:$AC,Sheet1!S71_A5CapexCode,$AD:$AD)","v":0},{"$f":"SUMIFS(Sheet1!S71_PYearAmount,Sheet1!S71_SA34eCode,$AC:$AC,Sheet1!S71_A5CapexCode,$AD:$AD)","v":0},{"$f":"SUMIFS(Sheet1!S71_OriginalBudAmnt,Sheet1!S71_SA34eCode,$AC:$AC,Sheet1!S71_A5CapexCode,$AD:$AD)","v":0},{"$f":"SUMIFS(Sheet1!S71_AdjustmentBudAmnt,Sheet1!S71_SA34eCode,$AC:$AC,Sheet1!S71_A5CapexCode,$AD:$AD)","v":0},{"$f":"SUMIFS(Sheet1!S71_AdjustmentBudAmnt,Sheet1!S71_SA34eCode,$AC:$AC,Sheet1!S71_A5CapexCode,$AD:$AD)","v":0},{"$f":"SUMIFS(Sheet1!S71_ASBudgetAmount,Sheet1!S71_SA34eCode,$AC:$AC,Sheet1!S71_A5CapexCode,$AD:$AD)","v":0},{"$f":"SUMIFS(Sheet1!S71_OY1BudgetAmount,Sheet1!S71_SA34eCode,$AC:$AC,Sheet1!S71_A5CapexCode,$AD:$AD)","v":0},{"$f":"SUMIFS(Sheet1!S71_OY2BudgetAmount,Sheet1!S71_SA34eCode,$AC:$AC,Sheet1!S71_A5CapexCode,$AD:$AD)","v":0},null,null,null,null,null,null,null,null,null,null,null,null,null,null,null,null,null,"0350","CE"]
["Bulk Mains",null,{"$f":"SUMIFS(Sheet1!S71_PPPYearAmount,Sheet1!S71_SA34eCode,$AC:$AC,Sheet1!S71_A5CapexCode,$AD:$AD)","v":0},{"$f":"SUMIFS(Sheet1!S71_PPYearAmount,Sheet1!S71_SA34eCode,$AC:$AC,Sheet1!S71_A5CapexCode,$AD:$AD)","v":0},{"$f":"SUMIFS(Sheet1!S71_PYearAmount,Sheet1!S71_SA34eCode,$AC:$AC,Sheet1!S71_A5CapexCode,$AD:$AD)","v":0},{"$f":"SUMIFS(Sheet1!S71_OriginalBudAmnt,Sheet1!S71_SA34eCode,$AC:$AC,Sheet1!S71_A5CapexCode,$AD:$AD)","v":0},{"$f":"SUMIFS(Sheet1!S71_AdjustmentBudAmnt,Sheet1!S71_SA34eCode,$AC:$AC,Sheet1!S71_A5CapexCode,$AD:$AD)","v":0},{"$f":"SUMIFS(Sheet1!S71_AdjustmentBudAmnt,Sheet1!S71_SA34eCode,$AC:$AC,Sheet1!S71_A5CapexCode,$AD:$AD)","v":0},{"$f":"SUMIFS(Sheet1!S71_ASBudgetAmount,Sheet1!S71_SA34eCode,$AC:$AC,Sheet1!S71_A5CapexCode,$AD:$AD)","v":0},{"$f":"SUMIFS(Sheet1!S71_OY1BudgetAmount,Sheet1!S71_SA34eCode,$AC:$AC,Sheet1!S71_A5CapexCode,$AD:$AD)","v":0},{"$f":"SUMIFS(Sheet1!S71_OY2BudgetAmount,Sheet1!S71_SA34eCode,$AC:$AC,Sheet1!S71_A5CapexCode,$AD:$AD)","v":0},null,null,null,null,null,null,null,null,null,null,null,null,null,null,null,null,null,"0360","CE"]
["Distribution",null,{"$f":"SUMIFS(Sheet1!S71_PPPYearAmount,Sheet1!S71_SA34eCode,$AC:$AC,Sheet1!S71_A5CapexCode,$AD:$AD)","v":0},{"$f":"SUMIFS(Sheet1!S71_PPYearAmount,Sheet1!S71_SA34eCode,$AC:$AC,Sheet1!S71_A5CapexCode,$AD:$AD)","v":0},{"$f":"SUMIFS(Sheet1!S71_PYearAmount,Sheet1!S71_SA34eCode,$AC:$AC,Sheet1!S71_A5CapexCode,$AD:$AD)","v":0},{"$f":"SUMIFS(Sheet1!S71_OriginalBudAmnt,Sheet1!S71_SA34eCode,$AC:$AC,Sheet1!S71_A5CapexCode,$AD:$AD)","v":0},{"$f":"SUMIFS(Sheet1!S71_AdjustmentBudAmnt,Sheet1!S71_SA34eCode,$AC:$AC,Sheet1!S71_A5CapexCode,$AD:$AD)","v":0},{"$f":"SUMIFS(Sheet1!S71_AdjustmentBudAmnt,Sheet1!S71_SA34eCode,$AC:$AC,Sheet1!S71_A5CapexCode,$AD:$AD)","v":0},{"$f":"SUMIFS(Sheet1!S71_ASBudgetAmount,Sheet1!S71_SA34eCode,$AC:$AC,Sheet1!S71_A5CapexCode,$AD:$AD)","v":0},{"$f":"SUMIFS(Sheet1!S71_OY1BudgetAmount,Sheet1!S71_SA34eCode,$AC:$AC,Sheet1!S71_A5CapexCode,$AD:$AD)","v":0},{"$f":"SUMIFS(Sheet1!S71_OY2BudgetAmount,Sheet1!S71_SA34eCode,$AC:$AC,Sheet1!S71_A5CapexCode,$AD:$AD)","v":0},null,null,null,null,null,null,null,null,null,null,null,null,null,null,null,null,null,"0370","CE"]
["Distribution Points",null,{"$f":"SUMIFS(Sheet1!S71_PPPYearAmount,Sheet1!S71_SA34eCode,$AC:$AC,Sheet1!S71_A5CapexCode,$AD:$AD)","v":0},{"$f":"SUMIFS(Sheet1!S71_PPYearAmount,Sheet1!S71_SA34eCode,$AC:$AC,Sheet1!S71_A5CapexCode,$AD:$AD)","v":0},{"$f":"SUMIFS(Sheet1!S71_PYearAmount,Sheet1!S71_SA34eCode,$AC:$AC,Sheet1!S71_A5CapexCode,$AD:$AD)","v":0},{"$f":"SUMIFS(Sheet1!S71_OriginalBudAmnt,Sheet1!S71_SA34eCode,$AC:$AC,Sheet1!S71_A5CapexCode,$AD:$AD)","v":0},{"$f":"SUMIFS(Sheet1!S71_AdjustmentBudAmnt,Sheet1!S71_SA34eCode,$AC:$AC,Sheet1!S71_A5CapexCode,$AD:$AD)","v":0},{"$f":"SUMIFS(Sheet1!S71_AdjustmentBudAmnt,Sheet1!S71_SA34eCode,$AC:$AC,Sheet1!S71_A5CapexCode,$AD:$AD)","v":0},{"$f":"SUMIFS(Sheet1!S71_ASBudgetAmount,Sheet1!S71_SA34eCode,$AC:$AC,Sheet1!S71_A5CapexCode,$AD:$AD)","v":0},{"$f":"SUMIFS(Sheet1!S71_OY1BudgetAmount,Sheet1!S71_SA34eCode,$AC:$AC,Sheet1!S71_A5CapexCode,$AD:$AD)","v":0},{"$f":"SUMIFS(Sheet1!S71_OY2BudgetAmount,Sheet1!S71_SA34eCode,$AC:$AC,Sheet1!S71_A5CapexCode,$AD:$AD)","v":0},null,null,null,null,null,null,null,null,null,null,null,null,null,null,null,null,null,"0380","CE"]
["PRV Stations",null,{"$f":"SUMIFS(Sheet1!S71_PPPYearAmount,Sheet1!S71_SA34eCode,$AC:$AC,Sheet1!S71_A5CapexCode,$AD:$AD)","v":0},{"$f":"SUMIFS(Sheet1!S71_PPYearAmount,Sheet1!S71_SA34eCode,$AC:$AC,Sheet1!S71_A5CapexCode,$AD:$AD)","v":0},{"$f":"SUMIFS(Sheet1!S71_PYearAmount,Sheet1!S71_SA34eCode,$AC:$AC,Sheet1!S71_A5CapexCode,$AD:$AD)","v":0},{"$f":"SUMIFS(Sheet1!S71_OriginalBudAmnt,Sheet1!S71_SA34eCode,$AC:$AC,Sheet1!S71_A5CapexCode,$AD:$AD)","v":0},{"$f":"SUMIFS(Sheet1!S71_AdjustmentBudAmnt,Sheet1!S71_SA34eCode,$AC:$AC,Sheet1!S71_A5CapexCode,$AD:$AD)","v":0},{"$f":"SUMIFS(Sheet1!S71_AdjustmentBudAmnt,Sheet1!S71_SA34eCode,$AC:$AC,Sheet1!S71_A5CapexCode,$AD:$AD)","v":0},{"$f":"SUMIFS(Sheet1!S71_ASBudgetAmount,Sheet1!S71_SA34eCode,$AC:$AC,Sheet1!S71_A5CapexCode,$AD:$AD)","v":0},{"$f":"SUMIFS(Sheet1!S71_OY1BudgetAmount,Sheet1!S71_SA34eCode,$AC:$AC,Sheet1!S71_A5CapexCode,$AD:$AD)","v":0},{"$f":"SUMIFS(Sheet1!S71_OY2BudgetAmount,Sheet1!S71_SA34eCode,$AC:$AC,Sheet1!S71_A5CapexCode,$AD:$AD)","v":0},null,null,null,null,null,null,null,null,null,null,null,null,null,null,null,null,null,"0390","CE"]
["Capital Spares",null,{"$f":"SUMIFS(Sheet1!S71_PPPYearAmount,Sheet1!S71_SA34eCode,$AC:$AC,Sheet1!S71_A5CapexCode,$AD:$AD)","v":0},{"$f":"SUMIFS(Sheet1!S71_PPYearAmount,Sheet1!S71_SA34eCode,$AC:$AC,Sheet1!S71_A5CapexCode,$AD:$AD)","v":0},{"$f":"SUMIFS(Sheet1!S71_PYearAmount,Sheet1!S71_SA34eCode,$AC:$AC,Sheet1!S71_A5CapexCode,$AD:$AD)","v":0},{"$f":"SUMIFS(Sheet1!S71_OriginalBudAmnt,Sheet1!S71_SA34eCode,$AC:$AC,Sheet1!S71_A5CapexCode,$AD:$AD)","v":0},{"$f":"SUMIFS(Sheet1!S71_AdjustmentBudAmnt,Sheet1!S71_SA34eCode,$AC:$AC,Sheet1!S71_A5CapexCode,$AD:$AD)","v":0},{"$f":"SUMIFS(Sheet1!S71_AdjustmentBudAmnt,Sheet1!S71_SA34eCode,$AC:$AC,Sheet1!S71_A5CapexCode,$AD:$AD)","v":0},{"$f":"SUMIFS(Sheet1!S71_ASBudgetAmount,Sheet1!S71_SA34eCode,$AC:$AC,Sheet1!S71_A5CapexCode,$AD:$AD)","v":0},{"$f":"SUMIFS(Sheet1!S71_OY1BudgetAmount,Sheet1!S71_SA34eCode,$AC:$AC,Sheet1!S71_A5CapexCode,$AD:$AD)","v":0},{"$f":"SUMIFS(Sheet1!S71_OY2BudgetAmount,Sheet1!S71_SA34eCode,$AC:$AC,Sheet1!S71_A5CapexCode,$AD:$AD)","v":0},null,null,null,null,null,null,null,null,null,null,null,null,null,null,null,null,null,"0400","CE"]
["Sanitation Infrastructure",null,{"$f":"SUM(C38:C43)","v":0},{"$f":"SUM(D38:D43)","v":0},0,0,0,0,0,0,0]
["Pump Station",null,{"$f":"SUMIFS(Sheet1!S71_PPPYearAmount,Sheet1!S71_SA34eCode,$AC:$AC,Sheet1!S71_A5CapexCode,$AD:$AD)","v":0},{"$f":"SUMIFS(Sheet1!S71_PPYearAmount,Sheet1!S71_SA34eCode,$AC:$AC,Sheet1!S71_A5CapexCode,$AD:$AD)","v":0},{"$f":"SUMIFS(Sheet1!S71_PYearAmount,Sheet1!S71_SA34eCode,$AC:$AC,Sheet1!S71_A5CapexCode,$AD:$AD)","v":0},{"$f":"SUMIFS(Sheet1!S71_OriginalBudAmnt,Sheet1!S71_SA34eCode,$AC:$AC,Sheet1!S71_A5CapexCode,$AD:$AD)","v":0},{"$f":"SUMIFS(Sheet1!S71_AdjustmentBudAmnt,Sheet1!S71_SA34eCode,$AC:$AC,Sheet1!S71_A5CapexCode,$AD:$AD)","v":0},{"$f":"SUMIFS(Sheet1!S71_AdjustmentBudAmnt,Sheet1!S71_SA34eCode,$AC:$AC,Sheet1!S71_A5CapexCode,$AD:$AD)","v":0},{"$f":"SUMIFS(Sheet1!S71_ASBudgetAmount,Sheet1!S71_SA34eCode,$AC:$AC,Sheet1!S71_A5CapexCode,$AD:$AD)","v":0},{"$f":"SUMIFS(Sheet1!S71_OY1BudgetAmount,Sheet1!S71_SA34eCode,$AC:$AC,Sheet1!S71_A5CapexCode,$AD:$AD)","v":0},{"$f":"SUMIFS(Sheet1!S71_OY2BudgetAmount,Sheet1!S71_SA34eCode,$AC:$AC,Sheet1!S71_A5CapexCode,$AD:$AD)","v":0},null,null,null,null,null,null,null,null,null,null,null,null,null,null,null,null,null,"0420","CE"]
["Reticulation",null,{"$f":"SUMIFS(Sheet1!S71_PPPYearAmount,Sheet1!S71_SA34eCode,$AC:$AC,Sheet1!S71_A5CapexCode,$AD:$AD)","v":0},{"$f":"SUMIFS(Sheet1!S71_PPYearAmount,Sheet1!S71_SA34eCode,$AC:$AC,Sheet1!S71_A5CapexCode,$AD:$AD)","v":0},{"$f":"SUMIFS(Sheet1!S71_PYearAmount,Sheet1!S71_SA34eCode,$AC:$AC,Sheet1!S71_A5CapexCode,$AD:$AD)","v":0},{"$f":"SUMIFS(Sheet1!S71_OriginalBudAmnt,Sheet1!S71_SA34eCode,$AC:$AC,Sheet1!S71_A5CapexCode,$AD:$AD)","v":0},{"$f":"SUMIFS(Sheet1!S71_AdjustmentBudAmnt,Sheet1!S71_SA34eCode,$AC:$AC,Sheet1!S71_A5CapexCode,$AD:$AD)","v":0},{"$f":"SUMIFS(Sheet1!S71_AdjustmentBudAmnt,Sheet1!S71_SA34eCode,$AC:$AC,Sheet1!S71_A5CapexCode,$AD:$AD)","v":0},{"$f":"SUMIFS(Sheet1!S71_ASBudgetAmount,Sheet1!S71_SA34eCode,$AC:$AC,Sheet1!S71_A5CapexCode,$AD:$AD)","v":0},{"$f":"SUMIFS(Sheet1!S71_OY1BudgetAmount,Sheet1!S71_SA34eCode,$AC:$AC,Sheet1!S71_A5CapexCode,$AD:$AD)","v":0},{"$f":"SUMIFS(Sheet1!S71_OY2BudgetAmount,Sheet1!S71_SA34eCode,$AC:$AC,Sheet1!S71_A5CapexCode,$AD:$AD)","v":0},null,null,null,null,null,null,null,null,null,null,null,null,null,null,null,null,null,"0430","CE"]
["Waste Water Treatment Works",null,{"$f":"SUMIFS(Sheet1!S71_PPPYearAmount,Sheet1!S71_SA34eCode,$AC:$AC,Sheet1!S71_A5CapexCode,$AD:$AD)","v":0},{"$f":"SUMIFS(Sheet1!S71_PPYearAmount,Sheet1!S71_SA34eCode,$AC:$AC,Sheet1!S71_A5CapexCode,$AD:$AD)","v":0},{"$f":"SUMIFS(Sheet1!S71_PYearAmount,Sheet1!S71_SA34eCode,$AC:$AC,Sheet1!S71_A5CapexCode,$AD:$AD)","v":0},{"$f":"SUMIFS(Sheet1!S71_OriginalBudAmnt,Sheet1!S71_SA34eCode,$AC:$AC,Sheet1!S71_A5CapexCode,$AD:$AD)","v":0},{"$f":"SUMIFS(Sheet1!S71_AdjustmentBudAmnt,Sheet1!S71_SA34eCode,$AC:$AC,Sheet1!S71_A5CapexCode,$AD:$AD)","v":0},{"$f":"SUMIFS(Sheet1!S71_AdjustmentBudAmnt,Sheet1!S71_SA34eCode,$AC:$AC,Sheet1!S71_A5CapexCode,$AD:$AD)","v":0},{"$f":"SUMIFS(Sheet1!S71_ASBudgetAmount,Sheet1!S71_SA34eCode,$AC:$AC,Sheet1!S71_A5CapexCode,$AD:$AD)","v":0},{"$f":"SUMIFS(Sheet1!S71_OY1BudgetAmount,Sheet1!S71_SA34eCode,$AC:$AC,Sheet1!S71_A5CapexCode,$AD:$AD)","v":0},{"$f":"SUMIFS(Sheet1!S71_OY2BudgetAmount,Sheet1!S71_SA34eCode,$AC:$AC,Sheet1!S71_A5CapexCode,$AD:$AD)","v":0},null,null,null,null,null,null,null,null,null,null,null,null,null,null,null,null,null,"0440","CE"]
["Outfall Sewers",null,{"$f":"SUMIFS(Sheet1!S71_PPPYearAmount,Sheet1!S71_SA34eCode,$AC:$AC,Sheet1!S71_A5CapexCode,$AD:$AD)","v":0},{"$f":"SUMIFS(Sheet1!S71_PPYearAmount,Sheet1!S71_SA34eCode,$AC:$AC,Sheet1!S71_A5CapexCode,$AD:$AD)","v":0},{"$f":"SUMIFS(Sheet1!S71_PYearAmount,Sheet1!S71_SA34eCode,$AC:$AC,Sheet1!S71_A5CapexCode,$AD:$AD)","v":0},{"$f":"SUMIFS(Sheet1!S71_OriginalBudAmnt,Sheet1!S71_SA34eCode,$AC:$AC,Sheet1!S71_A5CapexCode,$AD:$AD)","v":0},{"$f":"SUMIFS(Sheet1!S71_AdjustmentBudAmnt,Sheet1!S71_SA34eCode,$AC:$AC,Sheet1!S71_A5CapexCode,$AD:$AD)","v":0},{"$f":"SUMIFS(Sheet1!S71_AdjustmentBudAmnt,Sheet1!S71_SA34eCode,$AC:$AC,Sheet1!S71_A5CapexCode,$AD:$AD)","v":0},{"$f":"SUMIFS(Sheet1!S71_ASBudgetAmount,Sheet1!S71_SA34eCode,$AC:$AC,Sheet1!S71_A5CapexCode,$AD:$AD)","v":0},{"$f":"SUMIFS(Sheet1!S71_OY1BudgetAmount,Sheet1!S71_SA34eCode,$AC:$AC,Sheet1!S71_A5CapexCode,$AD:$AD)","v":0},{"$f":"SUMIFS(Sheet1!S71_OY2BudgetAmount,Sheet1!S71_SA34eCode,$AC:$AC,Sheet1!S71_A5CapexCode,$AD:$AD)","v":0},null,null,null,null,null,null,null,null,null,null,null,null,null,null,null,null,null,"0450","CE"]
["Toilet Facilities",null,{"$f":"SUMIFS(Sheet1!S71_PPPYearAmount,Sheet1!S71_SA34eCode,$AC:$AC,Sheet1!S71_A5CapexCode,$AD:$AD)","v":0},{"$f":"SUMIFS(Sheet1!S71_PPYearAmount,Sheet1!S71_SA34eCode,$AC:$AC,Sheet1!S71_A5CapexCode,$AD:$AD)","v":0},{"$f":"SUMIFS(Sheet1!S71_PYearAmount,Sheet1!S71_SA34eCode,$AC:$AC,Sheet1!S71_A5CapexCode,$AD:$AD)","v":0},{"$f":"SUMIFS(Sheet1!S71_OriginalBudAmnt,Sheet1!S71_SA34eCode,$AC:$AC,Sheet1!S71_A5CapexCode,$AD:$AD)","v":0},{"$f":"SUMIFS(Sheet1!S71_AdjustmentBudAmnt,Sheet1!S71_SA34eCode,$AC:$AC,Sheet1!S71_A5CapexCode,$AD:$AD)","v":0},{"$f":"SUMIFS(Sheet1!S71_AdjustmentBudAmnt,Sheet1!S71_SA34eCode,$AC:$AC,Sheet1!S71_A5CapexCode,$AD:$AD)","v":0},{"$f":"SUMIFS(Sheet1!S71_ASBudgetAmount,Sheet1!S71_SA34eCode,$AC:$AC,Sheet1!S71_A5CapexCode,$AD:$AD)","v":0},{"$f":"SUMIFS(Sheet1!S71_OY1BudgetAmount,Sheet1!S71_SA34eCode,$AC:$AC,Sheet1!S71_A5CapexCode,$AD:$AD)","v":0},{"$f":"SUMIFS(Sheet1!S71_OY2BudgetAmount,Sheet1!S71_SA34eCode,$AC:$AC,Sheet1!S71_A5CapexCode,$AD:$AD)","v":0},null,null,null,null,null,null,null,null,null,null,null,null,null,null,null,null,null,"0460","CE"]
["Capital Spares",null,{"$f":"SUMIFS(Sheet1!S71_PPPYearAmount,Sheet1!S71_SA34eCode,$AC:$AC,Sheet1!S71_A5CapexCode,$AD:$AD)","v":0},{"$f":"SUMIFS(Sheet1!S71_PPYearAmount,Sheet1!S71_SA34eCode,$AC:$AC,Sheet1!S71_A5CapexCode,$AD:$AD)","v":0},{"$f":"SUMIFS(Sheet1!S71_PYearAmount,Sheet1!S71_SA34eCode,$AC:$AC,Sheet1!S71_A5CapexCode,$AD:$AD)","v":0},{"$f":"SUMIFS(Sheet1!S71_OriginalBudAmnt,Sheet1!S71_SA34eCode,$AC:$AC,Sheet1!S71_A5CapexCode,$AD:$AD)","v":0},{"$f":"SUMIFS(Sheet1!S71_AdjustmentBudAmnt,Sheet1!S71_SA34eCode,$AC:$AC,Sheet1!S71_A5CapexCode,$AD:$AD)","v":0},{"$f":"SUMIFS(Sheet1!S71_AdjustmentBudAmnt,Sheet1!S71_SA34eCode,$AC:$AC,Sheet1!S71_A5CapexCode,$AD:$AD)","v":0},{"$f":"SUMIFS(Sheet1!S71_ASBudgetAmount,Sheet1!S71_SA34eCode,$AC:$AC,Sheet1!S71_A5CapexCode,$AD:$AD)","v":0},{"$f":"SUMIFS(Sheet1!S71_OY1BudgetAmount,Sheet1!S71_SA34eCode,$AC:$AC,Sheet1!S71_A5CapexCode,$AD:$AD)","v":0},{"$f":"SUMIFS(Sheet1!S71_OY2BudgetAmount,Sheet1!S71_SA34eCode,$AC:$AC,Sheet1!S71_A5CapexCode,$AD:$AD)","v":0},null,null,null,null,null,null,null,null,null,null,null,null,null,null,null,null,null,"0470","CE"]
["Solid Waste Infrastructure",null,{"$f":"SUM(C45:C51)","v":0},{"$f":"SUM(D45:D51)","v":0},0,0,0,0,0,0,0]
["Landfill Sites",null,{"$f":"SUMIFS(Sheet1!S71_PPPYearAmount,Sheet1!S71_SA34eCode,$AC:$AC,Sheet1!S71_A5CapexCode,$AD:$AD)","v":0},{"$f":"SUMIFS(Sheet1!S71_PPYearAmount,Sheet1!S71_SA34eCode,$AC:$AC,Sheet1!S71_A5CapexCode,$AD:$AD)","v":0},{"$f":"SUMIFS(Sheet1!S71_PYearAmount,Sheet1!S71_SA34eCode,$AC:$AC,Sheet1!S71_A5CapexCode,$AD:$AD)","v":0},{"$f":"SUMIFS(Sheet1!S71_OriginalBudAmnt,Sheet1!S71_SA34eCode,$AC:$AC,Sheet1!S71_A5CapexCode,$AD:$AD)","v":0},{"$f":"SUMIFS(Sheet1!S71_AdjustmentBudAmnt,Sheet1!S71_SA34eCode,$AC:$AC,Sheet1!S71_A5CapexCode,$AD:$AD)","v":0},{"$f":"SUMIFS(Sheet1!S71_AdjustmentBudAmnt,Sheet1!S71_SA34eCode,$AC:$AC,Sheet1!S71_A5CapexCode,$AD:$AD)","v":0},{"$f":"SUMIFS(Sheet1!S71_ASBudgetAmount,Sheet1!S71_SA34eCode,$AC:$AC,Sheet1!S71_A5CapexCode,$AD:$AD)","v":0},{"$f":"SUMIFS(Sheet1!S71_OY1BudgetAmount,Sheet1!S71_SA34eCode,$AC:$AC,Sheet1!S71_A5CapexCode,$AD:$AD)","v":0},{"$f":"SUMIFS(Sheet1!S71_OY2BudgetAmount,Sheet1!S71_SA34eCode,$AC:$AC,Sheet1!S71_A5CapexCode,$AD:$AD)","v":0},null,null,null,null,null,null,null,null,null,null,null,null,null,null,null,null,null,"0490","CE"]
["Waste Transfer Stations",null,{"$f":"SUMIFS(Sheet1!S71_PPPYearAmount,Sheet1!S71_SA34eCode,$AC:$AC,Sheet1!S71_A5CapexCode,$AD:$AD)","v":0},{"$f":"SUMIFS(Sheet1!S71_PPYearAmount,Sheet1!S71_SA34eCode,$AC:$AC,Sheet1!S71_A5CapexCode,$AD:$AD)","v":0},{"$f":"SUMIFS(Sheet1!S71_PYearAmount,Sheet1!S71_SA34eCode,$AC:$AC,Sheet1!S71_A5CapexCode,$AD:$AD)","v":0},{"$f":"SUMIFS(Sheet1!S71_OriginalBudAmnt,Sheet1!S71_SA34eCode,$AC:$AC,Sheet1!S71_A5CapexCode,$AD:$AD)","v":0},{"$f":"SUMIFS(Sheet1!S71_AdjustmentBudAmnt,Sheet1!S71_SA34eCode,$AC:$AC,Sheet1!S71_A5CapexCode,$AD:$AD)","v":0},{"$f":"SUMIFS(Sheet1!S71_AdjustmentBudAmnt,Sheet1!S71_SA34eCode,$AC:$AC,Sheet1!S71_A5CapexCode,$AD:$AD)","v":0},{"$f":"SUMIFS(Sheet1!S71_ASBudgetAmount,Sheet1!S71_SA34eCode,$AC:$AC,Sheet1!S71_A5CapexCode,$AD:$AD)","v":0},{"$f":"SUMIFS(Sheet1!S71_OY1BudgetAmount,Sheet1!S71_SA34eCode,$AC:$AC,Sheet1!S71_A5CapexCode,$AD:$AD)","v":0},{"$f":"SUMIFS(Sheet1!S71_OY2BudgetAmount,Sheet1!S71_SA34eCode,$AC:$AC,Sheet1!S71_A5CapexCode,$AD:$AD)","v":0},null,null,null,null,null,null,null,null,null,null,null,null,null,null,null,null,null,"0500","CE"]
["Waste Processing Facilities",null,{"$f":"SUMIFS(Sheet1!S71_PPPYearAmount,Sheet1!S71_SA34eCode,$AC:$AC,Sheet1!S71_A5CapexCode,$AD:$AD)","v":0},{"$f":"SUMIFS(Sheet1!S71_PPYearAmount,Sheet1!S71_SA34eCode,$AC:$AC,Sheet1!S71_A5CapexCode,$AD:$AD)","v":0},{"$f":"SUMIFS(Sheet1!S71_PYearAmount,Sheet1!S71_SA34eCode,$AC:$AC,Sheet1!S71_A5CapexCode,$AD:$AD)","v":0},{"$f":"SUMIFS(Sheet1!S71_OriginalBudAmnt,Sheet1!S71_SA34eCode,$AC:$AC,Sheet1!S71_A5CapexCode,$AD:$AD)","v":0},{"$f":"SUMIFS(Sheet1!S71_AdjustmentBudAmnt,Sheet1!S71_SA34eCode,$AC:$AC,Sheet1!S71_A5CapexCode,$AD:$AD)","v":0},{"$f":"SUMIFS(Sheet1!S71_AdjustmentBudAmnt,Sheet1!S71_SA34eCode,$AC:$AC,Sheet1!S71_A5CapexCode,$AD:$AD)","v":0},{"$f":"SUMIFS(Sheet1!S71_ASBudgetAmount,Sheet1!S71_SA34eCode,$AC:$AC,Sheet1!S71_A5CapexCode,$AD:$AD)","v":0},{"$f":"SUMIFS(Sheet1!S71_OY1BudgetAmount,Sheet1!S71_SA34eCode,$AC:$AC,Sheet1!S71_A5CapexCode,$AD:$AD)","v":0},{"$f":"SUMIFS(Sheet1!S71_OY2BudgetAmount,Sheet1!S71_SA34eCode,$AC:$AC,Sheet1!S71_A5CapexCode,$AD:$AD)","v":0},null,null,null,null,null,null,null,null,null,null,null,null,null,null,null,null,null,"0510","CE"]
["Waste Drop-off Points",null,{"$f":"SUMIFS(Sheet1!S71_PPPYearAmount,Sheet1!S71_SA34eCode,$AC:$AC,Sheet1!S71_A5CapexCode,$AD:$AD)","v":0},{"$f":"SUMIFS(Sheet1!S71_PPYearAmount,Sheet1!S71_SA34eCode,$AC:$AC,Sheet1!S71_A5CapexCode,$AD:$AD)","v":0},{"$f":"SUMIFS(Sheet1!S71_PYearAmount,Sheet1!S71_SA34eCode,$AC:$AC,Sheet1!S71_A5CapexCode,$AD:$AD)","v":0},{"$f":"SUMIFS(Sheet1!S71_OriginalBudAmnt,Sheet1!S71_SA34eCode,$AC:$AC,Sheet1!S71_A5CapexCode,$AD:$AD)","v":0},{"$f":"SUMIFS(Sheet1!S71_AdjustmentBudAmnt,Sheet1!S71_SA34eCode,$AC:$AC,Sheet1!S71_A5CapexCode,$AD:$AD)","v":0},{"$f":"SUMIFS(Sheet1!S71_AdjustmentBudAmnt,Sheet1!S71_SA34eCode,$AC:$AC,Sheet1!S71_A5CapexCode,$AD:$AD)","v":0},{"$f":"SUMIFS(Sheet1!S71_ASBudgetAmount,Sheet1!S71_SA34eCode,$AC:$AC,Sheet1!S71_A5CapexCode,$AD:$AD)","v":0},{"$f":"SUMIFS(Sheet1!S71_OY1BudgetAmount,Sheet1!S71_SA34eCode,$AC:$AC,Sheet1!S71_A5CapexCode,$AD:$AD)","v":0},{"$f":"SUMIFS(Sheet1!S71_OY2BudgetAmount,Sheet1!S71_SA34eCode,$AC:$AC,Sheet1!S71_A5CapexCode,$AD:$AD)","v":0},null,null,null,null,null,null,null,null,null,null,null,null,null,null,null,null,null,"0520","CE"]
["Waste Separation Facilities",null,{"$f":"SUMIFS(Sheet1!S71_PPPYearAmount,Sheet1!S71_SA34eCode,$AC:$AC,Sheet1!S71_A5CapexCode,$AD:$AD)","v":0},{"$f":"SUMIFS(Sheet1!S71_PPYearAmount,Sheet1!S71_SA34eCode,$AC:$AC,Sheet1!S71_A5CapexCode,$AD:$AD)","v":0},{"$f":"SUMIFS(Sheet1!S71_PYearAmount,Sheet1!S71_SA34eCode,$AC:$AC,Sheet1!S71_A5CapexCode,$AD:$AD)","v":0},{"$f":"SUMIFS(Sheet1!S71_OriginalBudAmnt,Sheet1!S71_SA34eCode,$AC:$AC,Sheet1!S71_A5CapexCode,$AD:$AD)","v":0},{"$f":"SUMIFS(Sheet1!S71_AdjustmentBudAmnt,Sheet1!S71_SA34eCode,$AC:$AC,Sheet1!S71_A5CapexCode,$AD:$AD)","v":0},{"$f":"SUMIFS(Sheet1!S71_AdjustmentBudAmnt,Sheet1!S71_SA34eCode,$AC:$AC,Sheet1!S71_A5CapexCode,$AD:$AD)","v":0},{"$f":"SUMIFS(Sheet1!S71_ASBudgetAmount,Sheet1!S71_SA34eCode,$AC:$AC,Sheet1!S71_A5CapexCode,$AD:$AD)","v":0},{"$f":"SUMIFS(Sheet1!S71_OY1BudgetAmount,Sheet1!S71_SA34eCode,$AC:$AC,Sheet1!S71_A5CapexCode,$AD:$AD)","v":0},{"$f":"SUMIFS(Sheet1!S71_OY2BudgetAmount,Sheet1!S71_SA34eCode,$AC:$AC,Sheet1!S71_A5CapexCode,$AD:$AD)","v":0},null,null,null,null,null,null,null,null,null,null,null,null,null,null,null,null,null,"0530","CE"]
["Electricity Generation Facilities",null,{"$f":"SUMIFS(Sheet1!S71_PPPYearAmount,Sheet1!S71_SA34eCode,$AC:$AC,Sheet1!S71_A5CapexCode,$AD:$AD)","v":0},{"$f":"SUMIFS(Sheet1!S71_PPYearAmount,Sheet1!S71_SA34eCode,$AC:$AC,Sheet1!S71_A5CapexCode,$AD:$AD)","v":0},{"$f":"SUMIFS(Sheet1!S71_PYearAmount,Sheet1!S71_SA34eCode,$AC:$AC,Sheet1!S71_A5CapexCode,$AD:$AD)","v":0},{"$f":"SUMIFS(Sheet1!S71_OriginalBudAmnt,Sheet1!S71_SA34eCode,$AC:$AC,Sheet1!S71_A5CapexCode,$AD:$AD)","v":0},{"$f":"SUMIFS(Sheet1!S71_AdjustmentBudAmnt,Sheet1!S71_SA34eCode,$AC:$AC,Sheet1!S71_A5CapexCode,$AD:$AD)","v":0},{"$f":"SUMIFS(Sheet1!S71_AdjustmentBudAmnt,Sheet1!S71_SA34eCode,$AC:$AC,Sheet1!S71_A5CapexCode,$AD:$AD)","v":0},{"$f":"SUMIFS(Sheet1!S71_ASBudgetAmount,Sheet1!S71_SA34eCode,$AC:$AC,Sheet1!S71_A5CapexCode,$AD:$AD)","v":0},{"$f":"SUMIFS(Sheet1!S71_OY1BudgetAmount,Sheet1!S71_SA34eCode,$AC:$AC,Sheet1!S71_A5CapexCode,$AD:$AD)","v":0},{"$f":"SUMIFS(Sheet1!S71_OY2BudgetAmount,Sheet1!S71_SA34eCode,$AC:$AC,Sheet1!S71_A5CapexCode,$AD:$AD)","v":0},null,null,null,null,null,null,null,null,null,null,null,null,null,null,null,null,null,"0540","CE"]
["Capital Spares",null,{"$f":"SUMIFS(Sheet1!S71_PPPYearAmount,Sheet1!S71_SA34eCode,$AC:$AC,Sheet1!S71_A5CapexCode,$AD:$AD)","v":0},{"$f":"SUMIFS(Sheet1!S71_PPYearAmount,Sheet1!S71_SA34eCode,$AC:$AC,Sheet1!S71_A5CapexCode,$AD:$AD)","v":0},{"$f":"SUMIFS(Sheet1!S71_PYearAmount,Sheet1!S71_SA34eCode,$AC:$AC,Sheet1!S71_A5CapexCode,$AD:$AD)","v":0},{"$f":"SUMIFS(Sheet1!S71_OriginalBudAmnt,Sheet1!S71_SA34eCode,$AC:$AC,Sheet1!S71_A5CapexCode,$AD:$AD)","v":0},{"$f":"SUMIFS(Sheet1!S71_AdjustmentBudAmnt,Sheet1!S71_SA34eCode,$AC:$AC,Sheet1!S71_A5CapexCode,$AD:$AD)","v":0},{"$f":"SUMIFS(Sheet1!S71_AdjustmentBudAmnt,Sheet1!S71_SA34eCode,$AC:$AC,Sheet1!S71_A5CapexCode,$AD:$AD)","v":0},{"$f":"SUMIFS(Sheet1!S71_ASBudgetAmount,Sheet1!S71_SA34eCode,$AC:$AC,Sheet1!S71_A5CapexCode,$AD:$AD)","v":0},{"$f":"SUMIFS(Sheet1!S71_OY1BudgetAmount,Sheet1!S71_SA34eCode,$AC:$AC,Sheet1!S71_A5CapexCode,$AD:$AD)","v":0},{"$f":"SUMIFS(Sheet1!S71_OY2BudgetAmount,Sheet1!S71_SA34eCode,$AC:$AC,Sheet1!S71_A5CapexCode,$AD:$AD)","v":0},null,null,null,null,null,null,null,null,null,null,null,null,null,null,null,null,null,"0550","CE"]
["Rail Infrastructure",null,{"$f":"SUM(C53:C61)","v":0},0,0,0,0,0,0,0,0]
["Rail Lines",null,{"$f":"SUMIFS(Sheet1!S71_PPPYearAmount,Sheet1!S71_SA34eCode,$AC:$AC,Sheet1!S71_A5CapexCode,$AD:$AD)","v":0},{"$f":"SUMIFS(Sheet1!S71_PPYearAmount,Sheet1!S71_SA34eCode,$AC:$AC,Sheet1!S71_A5CapexCode,$AD:$AD)","v":0},{"$f":"SUMIFS(Sheet1!S71_PYearAmount,Sheet1!S71_SA34eCode,$AC:$AC,Sheet1!S71_A5CapexCode,$AD:$AD)","v":0},{"$f":"SUMIFS(Sheet1!S71_OriginalBudAmnt,Sheet1!S71_SA34eCode,$AC:$AC,Sheet1!S71_A5CapexCode,$AD:$AD)","v":0},{"$f":"SUMIFS(Sheet1!S71_AdjustmentBudAmnt,Sheet1!S71_SA34eCode,$AC:$AC,Sheet1!S71_A5CapexCode,$AD:$AD)","v":0},{"$f":"SUMIFS(Sheet1!S71_AdjustmentBudAmnt,Sheet1!S71_SA34eCode,$AC:$AC,Sheet1!S71_A5CapexCode,$AD:$AD)","v":0},{"$f":"SUMIFS(Sheet1!S71_ASBudgetAmount,Sheet1!S71_SA34eCode,$AC:$AC,Sheet1!S71_A5CapexCode,$AD:$AD)","v":0},{"$f":"SUMIFS(Sheet1!S71_OY1BudgetAmount,Sheet1!S71_SA34eCode,$AC:$AC,Sheet1!S71_A5CapexCode,$AD:$AD)","v":0},{"$f":"SUMIFS(Sheet1!S71_OY2BudgetAmount,Sheet1!S71_SA34eCode,$AC:$AC,Sheet1!S71_A5CapexCode,$AD:$AD)","v":0},null,null,null,null,null,null,null,null,null,null,null,null,null,null,null,null,null,"0570","CE"]
["Rail Structures",null,{"$f":"SUMIFS(Sheet1!S71_PPPYearAmount,Sheet1!S71_SA34eCode,$AC:$AC,Sheet1!S71_A5CapexCode,$AD:$AD)","v":0},{"$f":"SUMIFS(Sheet1!S71_PPYearAmount,Sheet1!S71_SA34eCode,$AC:$AC,Sheet1!S71_A5CapexCode,$AD:$AD)","v":0},{"$f":"SUMIFS(Sheet1!S71_PYearAmount,Sheet1!S71_SA34eCode,$AC:$AC,Sheet1!S71_A5CapexCode,$AD:$AD)","v":0},{"$f":"SUMIFS(Sheet1!S71_OriginalBudAmnt,Sheet1!S71_SA34eCode,$AC:$AC,Sheet1!S71_A5CapexCode,$AD:$AD)","v":0},{"$f":"SUMIFS(Sheet1!S71_AdjustmentBudAmnt,Sheet1!S71_SA34eCode,$AC:$AC,Sheet1!S71_A5CapexCode,$AD:$AD)","v":0},{"$f":"SUMIFS(Sheet1!S71_AdjustmentBudAmnt,Sheet1!S71_SA34eCode,$AC:$AC,Sheet1!S71_A5CapexCode,$AD:$AD)","v":0},{"$f":"SUMIFS(Sheet1!S71_ASBudgetAmount,Sheet1!S71_SA34eCode,$AC:$AC,Sheet1!S71_A5CapexCode,$AD:$AD)","v":0},{"$f":"SUMIFS(Sheet1!S71_OY1BudgetAmount,Sheet1!S71_SA34eCode,$AC:$AC,Sheet1!S71_A5CapexCode,$AD:$AD)","v":0},{"$f":"SUMIFS(Sheet1!S71_OY2BudgetAmount,Sheet1!S71_SA34eCode,$AC:$AC,Sheet1!S71_A5CapexCode,$AD:$AD)","v":0},null,null,null,null,null,null,null,null,null,null,null,null,null,null,null,null,null,"0580","CE"]
["Rail Furniture",null,{"$f":"SUMIFS(Sheet1!S71_PPPYearAmount,Sheet1!S71_SA34eCode,$AC:$AC,Sheet1!S71_A5CapexCode,$AD:$AD)","v":0},{"$f":"SUMIFS(Sheet1!S71_PPYearAmount,Sheet1!S71_SA34eCode,$AC:$AC,Sheet1!S71_A5CapexCode,$AD:$AD)","v":0},{"$f":"SUMIFS(Sheet1!S71_PYearAmount,Sheet1!S71_SA34eCode,$AC:$AC,Sheet1!S71_A5CapexCode,$AD:$AD)","v":0},{"$f":"SUMIFS(Sheet1!S71_OriginalBudAmnt,Sheet1!S71_SA34eCode,$AC:$AC,Sheet1!S71_A5CapexCode,$AD:$AD)","v":0},{"$f":"SUMIFS(Sheet1!S71_AdjustmentBudAmnt,Sheet1!S71_SA34eCode,$AC:$AC,Sheet1!S71_A5CapexCode,$AD:$AD)","v":0},{"$f":"SUMIFS(Sheet1!S71_AdjustmentBudAmnt,Sheet1!S71_SA34eCode,$AC:$AC,Sheet1!S71_A5CapexCode,$AD:$AD)","v":0},{"$f":"SUMIFS(Sheet1!S71_ASBudgetAmount,Sheet1!S71_SA34eCode,$AC:$AC,Sheet1!S71_A5CapexCode,$AD:$AD)","v":0},{"$f":"SUMIFS(Sheet1!S71_OY1BudgetAmount,Sheet1!S71_SA34eCode,$AC:$AC,Sheet1!S71_A5CapexCode,$AD:$AD)","v":0},{"$f":"SUMIFS(Sheet1!S71_OY2BudgetAmount,Sheet1!S71_SA34eCode,$AC:$AC,Sheet1!S71_A5CapexCode,$AD:$AD)","v":0},null,null,null,null,null,null,null,null,null,null,null,null,null,null,null,null,null,"0590","CE"]
["Drainage Collection",null,{"$f":"SUMIFS(Sheet1!S71_PPPYearAmount,Sheet1!S71_SA34eCode,$AC:$AC,Sheet1!S71_A5CapexCode,$AD:$AD)","v":0},{"$f":"SUMIFS(Sheet1!S71_PPYearAmount,Sheet1!S71_SA34eCode,$AC:$AC,Sheet1!S71_A5CapexCode,$AD:$AD)","v":0},{"$f":"SUMIFS(Sheet1!S71_PYearAmount,Sheet1!S71_SA34eCode,$AC:$AC,Sheet1!S71_A5CapexCode,$AD:$AD)","v":0},{"$f":"SUMIFS(Sheet1!S71_OriginalBudAmnt,Sheet1!S71_SA34eCode,$AC:$AC,Sheet1!S71_A5CapexCode,$AD:$AD)","v":0},{"$f":"SUMIFS(Sheet1!S71_AdjustmentBudAmnt,Sheet1!S71_SA34eCode,$AC:$AC,Sheet1!S71_A5CapexCode,$AD:$AD)","v":0},{"$f":"SUMIFS(Sheet1!S71_AdjustmentBudAmnt,Sheet1!S71_SA34eCode,$AC:$AC,Sheet1!S71_A5CapexCode,$AD:$AD)","v":0},{"$f":"SUMIFS(Sheet1!S71_ASBudgetAmount,Sheet1!S71_SA34eCode,$AC:$AC,Sheet1!S71_A5CapexCode,$AD:$AD)","v":0},{"$f":"SUMIFS(Sheet1!S71_OY1BudgetAmount,Sheet1!S71_SA34eCode,$AC:$AC,Sheet1!S71_A5CapexCode,$AD:$AD)","v":0},{"$f":"SUMIFS(Sheet1!S71_OY2BudgetAmount,Sheet1!S71_SA34eCode,$AC:$AC,Sheet1!S71_A5CapexCode,$AD:$AD)","v":0},null,null,null,null,null,null,null,null,null,null,null,null,null,null,null,null,null,"0600","CE"]
["Storm water Conveyance",null,{"$f":"SUMIFS(Sheet1!S71_PPPYearAmount,Sheet1!S71_SA34eCode,$AC:$AC,Sheet1!S71_A5CapexCode,$AD:$AD)","v":0},{"$f":"SUMIFS(Sheet1!S71_PPYearAmount,Sheet1!S71_SA34eCode,$AC:$AC,Sheet1!S71_A5CapexCode,$AD:$AD)","v":0},{"$f":"SUMIFS(Sheet1!S71_PYearAmount,Sheet1!S71_SA34eCode,$AC:$AC,Sheet1!S71_A5CapexCode,$AD:$AD)","v":0},{"$f":"SUMIFS(Sheet1!S71_OriginalBudAmnt,Sheet1!S71_SA34eCode,$AC:$AC,Sheet1!S71_A5CapexCode,$AD:$AD)","v":0},{"$f":"SUMIFS(Sheet1!S71_AdjustmentBudAmnt,Sheet1!S71_SA34eCode,$AC:$AC,Sheet1!S71_A5CapexCode,$AD:$AD)","v":0},{"$f":"SUMIFS(Sheet1!S71_AdjustmentBudAmnt,Sheet1!S71_SA34eCode,$AC:$AC,Sheet1!S71_A5CapexCode,$AD:$AD)","v":0},{"$f":"SUMIFS(Sheet1!S71_ASBudgetAmount,Sheet1!S71_SA34eCode,$AC:$AC,Sheet1!S71_A5CapexCode,$AD:$AD)","v":0},{"$f":"SUMIFS(Sheet1!S71_OY1BudgetAmount,Sheet1!S71_SA34eCode,$AC:$AC,Sheet1!S71_A5CapexCode,$AD:$AD)","v":0},{"$f":"SUMIFS(Sheet1!S71_OY2BudgetAmount,Sheet1!S71_SA34eCode,$AC:$AC,Sheet1!S71_A5CapexCode,$AD:$AD)","v":0},null,null,null,null,null,null,null,null,null,null,null,null,null,null,null,null,null,"0610","CE"]
["Attenuation",null,{"$f":"SUMIFS(Sheet1!S71_PPPYearAmount,Sheet1!S71_SA34eCode,$AC:$AC,Sheet1!S71_A5CapexCode,$AD:$AD)","v":0},{"$f":"SUMIFS(Sheet1!S71_PPYearAmount,Sheet1!S71_SA34eCode,$AC:$AC,Sheet1!S71_A5CapexCode,$AD:$AD)","v":0},{"$f":"SUMIFS(Sheet1!S71_PYearAmount,Sheet1!S71_SA34eCode,$AC:$AC,Sheet1!S71_A5CapexCode,$AD:$AD)","v":0},{"$f":"SUMIFS(Sheet1!S71_OriginalBudAmnt,Sheet1!S71_SA34eCode,$AC:$AC,Sheet1!S71_A5CapexCode,$AD:$AD)","v":0},{"$f":"SUMIFS(Sheet1!S71_AdjustmentBudAmnt,Sheet1!S71_SA34eCode,$AC:$AC,Sheet1!S71_A5CapexCode,$AD:$AD)","v":0},{"$f":"SUMIFS(Sheet1!S71_AdjustmentBudAmnt,Sheet1!S71_SA34eCode,$AC:$AC,Sheet1!S71_A5CapexCode,$AD:$AD)","v":0},{"$f":"SUMIFS(Sheet1!S71_ASBudgetAmount,Sheet1!S71_SA34eCode,$AC:$AC,Sheet1!S71_A5CapexCode,$AD:$AD)","v":0},{"$f":"SUMIFS(Sheet1!S71_OY1BudgetAmount,Sheet1!S71_SA34eCode,$AC:$AC,Sheet1!S71_A5CapexCode,$AD:$AD)","v":0},{"$f":"SUMIFS(Sheet1!S71_OY2BudgetAmount,Sheet1!S71_SA34eCode,$AC:$AC,Sheet1!S71_A5CapexCode,$AD:$AD)","v":0},null,null,null,null,null,null,null,null,null,null,null,null,null,null,null,null,null,"0620","CE"]
["MV Substations",null,{"$f":"SUMIFS(Sheet1!S71_PPPYearAmount,Sheet1!S71_SA34eCode,$AC:$AC,Sheet1!S71_A5CapexCode,$AD:$AD)","v":0},{"$f":"SUMIFS(Sheet1!S71_PPYearAmount,Sheet1!S71_SA34eCode,$AC:$AC,Sheet1!S71_A5CapexCode,$AD:$AD)","v":0},{"$f":"SUMIFS(Sheet1!S71_PYearAmount,Sheet1!S71_SA34eCode,$AC:$AC,Sheet1!S71_A5CapexCode,$AD:$AD)","v":0},{"$f":"SUMIFS(Sheet1!S71_OriginalBudAmnt,Sheet1!S71_SA34eCode,$AC:$AC,Sheet1!S71_A5CapexCode,$AD:$AD)","v":0},{"$f":"SUMIFS(Sheet1!S71_AdjustmentBudAmnt,Sheet1!S71_SA34eCode,$AC:$AC,Sheet1!S71_A5CapexCode,$AD:$AD)","v":0},{"$f":"SUMIFS(Sheet1!S71_AdjustmentBudAmnt,Sheet1!S71_SA34eCode,$AC:$AC,Sheet1!S71_A5CapexCode,$AD:$AD)","v":0},{"$f":"SUMIFS(Sheet1!S71_ASBudgetAmount,Sheet1!S71_SA34eCode,$AC:$AC,Sheet1!S71_A5CapexCode,$AD:$AD)","v":0},{"$f":"SUMIFS(Sheet1!S71_OY1BudgetAmount,Sheet1!S71_SA34eCode,$AC:$AC,Sheet1!S71_A5CapexCode,$AD:$AD)","v":0},{"$f":"SUMIFS(Sheet1!S71_OY2BudgetAmount,Sheet1!S71_SA34eCode,$AC:$AC,Sheet1!S71_A5CapexCode,$AD:$AD)","v":0},null,null,null,null,null,null,null,null,null,null,null,null,null,null,null,null,null,"0630","CE"]
["LV Networks",null,{"$f":"SUMIFS(Sheet1!S71_PPPYearAmount,Sheet1!S71_SA34eCode,$AC:$AC,Sheet1!S71_A5CapexCode,$AD:$AD)","v":0},{"$f":"SUMIFS(Sheet1!S71_PPYearAmount,Sheet1!S71_SA34eCode,$AC:$AC,Sheet1!S71_A5CapexCode,$AD:$AD)","v":0},{"$f":"SUMIFS(Sheet1!S71_PYearAmount,Sheet1!S71_SA34eCode,$AC:$AC,Sheet1!S71_A5CapexCode,$AD:$AD)","v":0},{"$f":"SUMIFS(Sheet1!S71_OriginalBudAmnt,Sheet1!S71_SA34eCode,$AC:$AC,Sheet1!S71_A5CapexCode,$AD:$AD)","v":0},{"$f":"SUMIFS(Sheet1!S71_AdjustmentBudAmnt,Sheet1!S71_SA34eCode,$AC:$AC,Sheet1!S71_A5CapexCode,$AD:$AD)","v":0},{"$f":"SUMIFS(Sheet1!S71_AdjustmentBudAmnt,Sheet1!S71_SA34eCode,$AC:$AC,Sheet1!S71_A5CapexCode,$AD:$AD)","v":0},{"$f":"SUMIFS(Sheet1!S71_ASBudgetAmount,Sheet1!S71_SA34eCode,$AC:$AC,Sheet1!S71_A5CapexCode,$AD:$AD)","v":0},{"$f":"SUMIFS(Sheet1!S71_OY1BudgetAmount,Sheet1!S71_SA34eCode,$AC:$AC,Sheet1!S71_A5CapexCode,$AD:$AD)","v":0},{"$f":"SUMIFS(Sheet1!S71_OY2BudgetAmount,Sheet1!S71_SA34eCode,$AC:$AC,Sheet1!S71_A5CapexCode,$AD:$AD)","v":0},null,null,null,null,null,null,null,null,null,null,null,null,null,null,null,null,null,"0640","CE"]
["Capital Spares",null,{"$f":"SUMIFS(Sheet1!S71_PPPYearAmount,Sheet1!S71_SA34eCode,$AC:$AC,Sheet1!S71_A5CapexCode,$AD:$AD)","v":0},{"$f":"SUMIFS(Sheet1!S71_PPYearAmount,Sheet1!S71_SA34eCode,$AC:$AC,Sheet1!S71_A5CapexCode,$AD:$AD)","v":0},{"$f":"SUMIFS(Sheet1!S71_PYearAmount,Sheet1!S71_SA34eCode,$AC:$AC,Sheet1!S71_A5CapexCode,$AD:$AD)","v":0},{"$f":"SUMIFS(Sheet1!S71_OriginalBudAmnt,Sheet1!S71_SA34eCode,$AC:$AC,Sheet1!S71_A5CapexCode,$AD:$AD)","v":0},{"$f":"SUMIFS(Sheet1!S71_AdjustmentBudAmnt,Sheet1!S71_SA34eCode,$AC:$AC,Sheet1!S71_A5CapexCode,$AD:$AD)","v":0},{"$f":"SUMIFS(Sheet1!S71_AdjustmentBudAmnt,Sheet1!S71_SA34eCode,$AC:$AC,Sheet1!S71_A5CapexCode,$AD:$AD)","v":0},{"$f":"SUMIFS(Sheet1!S71_ASBudgetAmount,Sheet1!S71_SA34eCode,$AC:$AC,Sheet1!S71_A5CapexCode,$AD:$AD)","v":0},{"$f":"SUMIFS(Sheet1!S71_OY1BudgetAmount,Sheet1!S71_SA34eCode,$AC:$AC,Sheet1!S71_A5CapexCode,$AD:$AD)","v":0},{"$f":"SUMIFS(Sheet1!S71_OY2BudgetAmount,Sheet1!S71_SA34eCode,$AC:$AC,Sheet1!S71_A5CapexCode,$AD:$AD)","v":0},null,null,null,null,null,null,null,null,null,null,null,null,null,null,null,null,null,"0650","CE"]
["Coastal Infrastructure",null,{"$f":"SUM(C63:C67)","v":0},{"$f":"SUM(D63:D67)","v":0},0,0,0,0,0,0,0]
["Sand Pumps",null,{"$f":"SUMIFS(Sheet1!S71_PPPYearAmount,Sheet1!S71_SA34eCode,$AC:$AC,Sheet1!S71_A5CapexCode,$AD:$AD)","v":0},{"$f":"SUMIFS(Sheet1!S71_PPYearAmount,Sheet1!S71_SA34eCode,$AC:$AC,Sheet1!S71_A5CapexCode,$AD:$AD)","v":0},{"$f":"SUMIFS(Sheet1!S71_PYearAmount,Sheet1!S71_SA34eCode,$AC:$AC,Sheet1!S71_A5CapexCode,$AD:$AD)","v":0},{"$f":"SUMIFS(Sheet1!S71_OriginalBudAmnt,Sheet1!S71_SA34eCode,$AC:$AC,Sheet1!S71_A5CapexCode,$AD:$AD)","v":0},{"$f":"SUMIFS(Sheet1!S71_AdjustmentBudAmnt,Sheet1!S71_SA34eCode,$AC:$AC,Sheet1!S71_A5CapexCode,$AD:$AD)","v":0},{"$f":"SUMIFS(Sheet1!S71_AdjustmentBudAmnt,Sheet1!S71_SA34eCode,$AC:$AC,Sheet1!S71_A5CapexCode,$AD:$AD)","v":0},{"$f":"SUMIFS(Sheet1!S71_ASBudgetAmount,Sheet1!S71_SA34eCode,$AC:$AC,Sheet1!S71_A5CapexCode,$AD:$AD)","v":0},{"$f":"SUMIFS(Sheet1!S71_OY1BudgetAmount,Sheet1!S71_SA34eCode,$AC:$AC,Sheet1!S71_A5CapexCode,$AD:$AD)","v":0},{"$f":"SUMIFS(Sheet1!S71_OY2BudgetAmount,Sheet1!S71_SA34eCode,$AC:$AC,Sheet1!S71_A5CapexCode,$AD:$AD)","v":0},null,null,null,null,null,null,null,null,null,null,null,null,null,null,null,null,null,"0670","CE"]
["Piers",null,{"$f":"SUMIFS(Sheet1!S71_PPPYearAmount,Sheet1!S71_SA34eCode,$AC:$AC,Sheet1!S71_A5CapexCode,$AD:$AD)","v":0},{"$f":"SUMIFS(Sheet1!S71_PPYearAmount,Sheet1!S71_SA34eCode,$AC:$AC,Sheet1!S71_A5CapexCode,$AD:$AD)","v":0},{"$f":"SUMIFS(Sheet1!S71_PYearAmount,Sheet1!S71_SA34eCode,$AC:$AC,Sheet1!S71_A5CapexCode,$AD:$AD)","v":0},{"$f":"SUMIFS(Sheet1!S71_OriginalBudAmnt,Sheet1!S71_SA34eCode,$AC:$AC,Sheet1!S71_A5CapexCode,$AD:$AD)","v":0},{"$f":"SUMIFS(Sheet1!S71_AdjustmentBudAmnt,Sheet1!S71_SA34eCode,$AC:$AC,Sheet1!S71_A5CapexCode,$AD:$AD)","v":0},{"$f":"SUMIFS(Sheet1!S71_AdjustmentBudAmnt,Sheet1!S71_SA34eCode,$AC:$AC,Sheet1!S71_A5CapexCode,$AD:$AD)","v":0},{"$f":"SUMIFS(Sheet1!S71_ASBudgetAmount,Sheet1!S71_SA34eCode,$AC:$AC,Sheet1!S71_A5CapexCode,$AD:$AD)","v":0},{"$f":"SUMIFS(Sheet1!S71_OY1BudgetAmount,Sheet1!S71_SA34eCode,$AC:$AC,Sheet1!S71_A5CapexCode,$AD:$AD)","v":0},{"$f":"SUMIFS(Sheet1!S71_OY2BudgetAmount,Sheet1!S71_SA34eCode,$AC:$AC,Sheet1!S71_A5CapexCode,$AD:$AD)","v":0},null,null,null,null,null,null,null,null,null,null,null,null,null,null,null,null,null,"0680","CE"]
["Revetments",null,{"$f":"SUMIFS(Sheet1!S71_PPPYearAmount,Sheet1!S71_SA34eCode,$AC:$AC,Sheet1!S71_A5CapexCode,$AD:$AD)","v":0},{"$f":"SUMIFS(Sheet1!S71_PPYearAmount,Sheet1!S71_SA34eCode,$AC:$AC,Sheet1!S71_A5CapexCode,$AD:$AD)","v":0},{"$f":"SUMIFS(Sheet1!S71_PYearAmount,Sheet1!S71_SA34eCode,$AC:$AC,Sheet1!S71_A5CapexCode,$AD:$AD)","v":0},{"$f":"SUMIFS(Sheet1!S71_OriginalBudAmnt,Sheet1!S71_SA34eCode,$AC:$AC,Sheet1!S71_A5CapexCode,$AD:$AD)","v":0},{"$f":"SUMIFS(Sheet1!S71_AdjustmentBudAmnt,Sheet1!S71_SA34eCode,$AC:$AC,Sheet1!S71_A5CapexCode,$AD:$AD)","v":0},{"$f":"SUMIFS(Sheet1!S71_AdjustmentBudAmnt,Sheet1!S71_SA34eCode,$AC:$AC,Sheet1!S71_A5CapexCode,$AD:$AD)","v":0},{"$f":"SUMIFS(Sheet1!S71_ASBudgetAmount,Sheet1!S71_SA34eCode,$AC:$AC,Sheet1!S71_A5CapexCode,$AD:$AD)","v":0},{"$f":"SUMIFS(Sheet1!S71_OY1BudgetAmount,Sheet1!S71_SA34eCode,$AC:$AC,Sheet1!S71_A5CapexCode,$AD:$AD)","v":0},{"$f":"SUMIFS(Sheet1!S71_OY2BudgetAmount,Sheet1!S71_SA34eCode,$AC:$AC,Sheet1!S71_A5CapexCode,$AD:$AD)","v":0},null,null,null,null,null,null,null,null,null,null,null,null,null,null,null,null,null,"0690","CE"]
["Promenades",null,{"$f":"SUMIFS(Sheet1!S71_PPPYearAmount,Sheet1!S71_SA34eCode,$AC:$AC,Sheet1!S71_A5CapexCode,$AD:$AD)","v":0},{"$f":"SUMIFS(Sheet1!S71_PPYearAmount,Sheet1!S71_SA34eCode,$AC:$AC,Sheet1!S71_A5CapexCode,$AD:$AD)","v":0},{"$f":"SUMIFS(Sheet1!S71_PYearAmount,Sheet1!S71_SA34eCode,$AC:$AC,Sheet1!S71_A5CapexCode,$AD:$AD)","v":0},{"$f":"SUMIFS(Sheet1!S71_OriginalBudAmnt,Sheet1!S71_SA34eCode,$AC:$AC,Sheet1!S71_A5CapexCode,$AD:$AD)","v":0},{"$f":"SUMIFS(Sheet1!S71_AdjustmentBudAmnt,Sheet1!S71_SA34eCode,$AC:$AC,Sheet1!S71_A5CapexCode,$AD:$AD)","v":0},{"$f":"SUMIFS(Sheet1!S71_AdjustmentBudAmnt,Sheet1!S71_SA34eCode,$AC:$AC,Sheet1!S71_A5CapexCode,$AD:$AD)","v":0},{"$f":"SUMIFS(Sheet1!S71_ASBudgetAmount,Sheet1!S71_SA34eCode,$AC:$AC,Sheet1!S71_A5CapexCode,$AD:$AD)","v":0},{"$f":"SUMIFS(Sheet1!S71_OY1BudgetAmount,Sheet1!S71_SA34eCode,$AC:$AC,Sheet1!S71_A5CapexCode,$AD:$AD)","v":0},{"$f":"SUMIFS(Sheet1!S71_OY2BudgetAmount,Sheet1!S71_SA34eCode,$AC:$AC,Sheet1!S71_A5CapexCode,$AD:$AD)","v":0},null,null,null,null,null,null,null,null,null,null,null,null,null,null,null,null,null,"0700","CE"]
["Capital Spares",null,{"$f":"SUMIFS(Sheet1!S71_PPPYearAmount,Sheet1!S71_SA34eCode,$AC:$AC,Sheet1!S71_A5CapexCode,$AD:$AD)","v":0},{"$f":"SUMIFS(Sheet1!S71_PPYearAmount,Sheet1!S71_SA34eCode,$AC:$AC,Sheet1!S71_A5CapexCode,$AD:$AD)","v":0},{"$f":"SUMIFS(Sheet1!S71_PYearAmount,Sheet1!S71_SA34eCode,$AC:$AC,Sheet1!S71_A5CapexCode,$AD:$AD)","v":0},{"$f":"SUMIFS(Sheet1!S71_OriginalBudAmnt,Sheet1!S71_SA34eCode,$AC:$AC,Sheet1!S71_A5CapexCode,$AD:$AD)","v":0},{"$f":"SUMIFS(Sheet1!S71_AdjustmentBudAmnt,Sheet1!S71_SA34eCode,$AC:$AC,Sheet1!S71_A5CapexCode,$AD:$AD)","v":0},{"$f":"SUMIFS(Sheet1!S71_AdjustmentBudAmnt,Sheet1!S71_SA34eCode,$AC:$AC,Sheet1!S71_A5CapexCode,$AD:$AD)","v":0},{"$f":"SUMIFS(Sheet1!S71_ASBudgetAmount,Sheet1!S71_SA34eCode,$AC:$AC,Sheet1!S71_A5CapexCode,$AD:$AD)","v":0},{"$f":"SUMIFS(Sheet1!S71_OY1BudgetAmount,Sheet1!S71_SA34eCode,$AC:$AC,Sheet1!S71_A5CapexCode,$AD:$AD)","v":0},{"$f":"SUMIFS(Sheet1!S71_OY2BudgetAmount,Sheet1!S71_SA34eCode,$AC:$AC,Sheet1!S71_A5CapexCode,$AD:$AD)","v":0},null,null,null,null,null,null,null,null,null,null,null,null,null,null,null,null,null,"0710","CE"]
["Information and Communication Infrastructure",null,{"$f":"SUM(C69:C72)","v":0},{"$f":"SUM(D69:D72)","v":0},0,0,0,0,0,0,0]
["Data Centres",null,{"$f":"SUMIFS(Sheet1!S71_PPPYearAmount,Sheet1!S71_SA34eCode,$AC:$AC,Sheet1!S71_A5CapexCode,$AD:$AD)","v":0},{"$f":"SUMIFS(Sheet1!S71_PPYearAmount,Sheet1!S71_SA34eCode,$AC:$AC,Sheet1!S71_A5CapexCode,$AD:$AD)","v":0},{"$f":"SUMIFS(Sheet1!S71_PYearAmount,Sheet1!S71_SA34eCode,$AC:$AC,Sheet1!S71_A5CapexCode,$AD:$AD)","v":0},{"$f":"SUMIFS(Sheet1!S71_OriginalBudAmnt,Sheet1!S71_SA34eCode,$AC:$AC,Sheet1!S71_A5CapexCode,$AD:$AD)","v":0},{"$f":"SUMIFS(Sheet1!S71_AdjustmentBudAmnt,Sheet1!S71_SA34eCode,$AC:$AC,Sheet1!S71_A5CapexCode,$AD:$AD)","v":0},{"$f":"SUMIFS(Sheet1!S71_AdjustmentBudAmnt,Sheet1!S71_SA34eCode,$AC:$AC,Sheet1!S71_A5CapexCode,$AD:$AD)","v":0},{"$f":"SUMIFS(Sheet1!S71_ASBudgetAmount,Sheet1!S71_SA34eCode,$AC:$AC,Sheet1!S71_A5CapexCode,$AD:$AD)","v":0},{"$f":"SUMIFS(Sheet1!S71_OY1BudgetAmount,Sheet1!S71_SA34eCode,$AC:$AC,Sheet1!S71_A5CapexCode,$AD:$AD)","v":0},{"$f":"SUMIFS(Sheet1!S71_OY2BudgetAmount,Sheet1!S71_SA34eCode,$AC:$AC,Sheet1!S71_A5CapexCode,$AD:$AD)","v":0},null,null,null,null,null,null,null,null,null,null,null,null,null,null,null,null,null,"0730","CE"]
["Core Layers",null,{"$f":"SUMIFS(Sheet1!S71_PPPYearAmount,Sheet1!S71_SA34eCode,$AC:$AC,Sheet1!S71_A5CapexCode,$AD:$AD)","v":0},{"$f":"SUMIFS(Sheet1!S71_PPYearAmount,Sheet1!S71_SA34eCode,$AC:$AC,Sheet1!S71_A5CapexCode,$AD:$AD)","v":0},{"$f":"SUMIFS(Sheet1!S71_PYearAmount,Sheet1!S71_SA34eCode,$AC:$AC,Sheet1!S71_A5CapexCode,$AD:$AD)","v":0},{"$f":"SUMIFS(Sheet1!S71_OriginalBudAmnt,Sheet1!S71_SA34eCode,$AC:$AC,Sheet1!S71_A5CapexCode,$AD:$AD)","v":0},{"$f":"SUMIFS(Sheet1!S71_AdjustmentBudAmnt,Sheet1!S71_SA34eCode,$AC:$AC,Sheet1!S71_A5CapexCode,$AD:$AD)","v":0},{"$f":"SUMIFS(Sheet1!S71_AdjustmentBudAmnt,Sheet1!S71_SA34eCode,$AC:$AC,Sheet1!S71_A5CapexCode,$AD:$AD)","v":0},{"$f":"SUMIFS(Sheet1!S71_ASBudgetAmount,Sheet1!S71_SA34eCode,$AC:$AC,Sheet1!S71_A5CapexCode,$AD:$AD)","v":0},{"$f":"SUMIFS(Sheet1!S71_OY1BudgetAmount,Sheet1!S71_SA34eCode,$AC:$AC,Sheet1!S71_A5CapexCode,$AD:$AD)","v":0},{"$f":"SUMIFS(Sheet1!S71_OY2BudgetAmount,Sheet1!S71_SA34eCode,$AC:$AC,Sheet1!S71_A5CapexCode,$AD:$AD)","v":0},null,null,null,null,null,null,null,null,null,null,null,null,null,null,null,null,null,"0740","CE"]
["Distribution Layers",null,{"$f":"SUMIFS(Sheet1!S71_PPPYearAmount,Sheet1!S71_SA34eCode,$AC:$AC,Sheet1!S71_A5CapexCode,$AD:$AD)","v":0},{"$f":"SUMIFS(Sheet1!S71_PPYearAmount,Sheet1!S71_SA34eCode,$AC:$AC,Sheet1!S71_A5CapexCode,$AD:$AD)","v":0},{"$f":"SUMIFS(Sheet1!S71_PYearAmount,Sheet1!S71_SA34eCode,$AC:$AC,Sheet1!S71_A5CapexCode,$AD:$AD)","v":0},{"$f":"SUMIFS(Sheet1!S71_OriginalBudAmnt,Sheet1!S71_SA34eCode,$AC:$AC,Sheet1!S71_A5CapexCode,$AD:$AD)","v":0},{"$f":"SUMIFS(Sheet1!S71_AdjustmentBudAmnt,Sheet1!S71_SA34eCode,$AC:$AC,Sheet1!S71_A5CapexCode,$AD:$AD)","v":0},{"$f":"SUMIFS(Sheet1!S71_AdjustmentBudAmnt,Sheet1!S71_SA34eCode,$AC:$AC,Sheet1!S71_A5CapexCode,$AD:$AD)","v":0},{"$f":"SUMIFS(Sheet1!S71_ASBudgetAmount,Sheet1!S71_SA34eCode,$AC:$AC,Sheet1!S71_A5CapexCode,$AD:$AD)","v":0},{"$f":"SUMIFS(Sheet1!S71_OY1BudgetAmount,Sheet1!S71_SA34eCode,$AC:$AC,Sheet1!S71_A5CapexCode,$AD:$AD)","v":0},{"$f":"SUMIFS(Sheet1!S71_OY2BudgetAmount,Sheet1!S71_SA34eCode,$AC:$AC,Sheet1!S71_A5CapexCode,$AD:$AD)","v":0},null,null,null,null,null,null,null,null,null,null,null,null,null,null,null,null,null,"0750","CE"]
["Capital Spares",null,{"$f":"SUMIFS(Sheet1!S71_PPPYearAmount,Sheet1!S71_SA34eCode,$AC:$AC,Sheet1!S71_A5CapexCode,$AD:$AD)","v":0},{"$f":"SUMIFS(Sheet1!S71_PPYearAmount,Sheet1!S71_SA34eCode,$AC:$AC,Sheet1!S71_A5CapexCode,$AD:$AD)","v":0},{"$f":"SUMIFS(Sheet1!S71_PYearAmount,Sheet1!S71_SA34eCode,$AC:$AC,Sheet1!S71_A5CapexCode,$AD:$AD)","v":0},{"$f":"SUMIFS(Sheet1!S71_OriginalBudAmnt,Sheet1!S71_SA34eCode,$AC:$AC,Sheet1!S71_A5CapexCode,$AD:$AD)","v":0},{"$f":"SUMIFS(Sheet1!S71_AdjustmentBudAmnt,Sheet1!S71_SA34eCode,$AC:$AC,Sheet1!S71_A5CapexCode,$AD:$AD)","v":0},{"$f":"SUMIFS(Sheet1!S71_AdjustmentBudAmnt,Sheet1!S71_SA34eCode,$AC:$AC,Sheet1!S71_A5CapexCode,$AD:$AD)","v":0},{"$f":"SUMIFS(Sheet1!S71_ASBudgetAmount,Sheet1!S71_SA34eCode,$AC:$AC,Sheet1!S71_A5CapexCode,$AD:$AD)","v":0},{"$f":"SUMIFS(Sheet1!S71_OY1BudgetAmount,Sheet1!S71_SA34eCode,$AC:$AC,Sheet1!S71_A5CapexCode,$AD:$AD)","v":0},{"$f":"SUMIFS(Sheet1!S71_OY2BudgetAmount,Sheet1!S71_SA34eCode,$AC:$AC,Sheet1!S71_A5CapexCode,$AD:$AD)","v":0},null,null,null,null,null,null,null,null,null,null,null,null,null,null,null,null,null,"0760","CE"]
[]
["Community Assets",null,{"$f":"C75+C98","v":0},{"$f":"D75+D98","v":0},0,0,0,0,0,0,0]
["Community Facilities",null,{"$f":"SUM(C76:C97)","v":0},{"$f":"SUM(D76:D97)","v":0},0,0,0,0,0,0,0]
["Halls",null,{"$f":"SUMIFS(Sheet1!S71_PPPYearAmount,Sheet1!S71_SA34eCode,$AC:$AC,Sheet1!S71_A5CapexCode,$AD:$AD)","v":0},{"$f":"SUMIFS(Sheet1!S71_PPYearAmount,Sheet1!S71_SA34eCode,$AC:$AC,Sheet1!S71_A5CapexCode,$AD:$AD)","v":0},{"$f":"SUMIFS(Sheet1!S71_PYearAmount,Sheet1!S71_SA34eCode,$AC:$AC,Sheet1!S71_A5CapexCode,$AD:$AD)","v":0},{"$f":"SUMIFS(Sheet1!S71_OriginalBudAmnt,Sheet1!S71_SA34eCode,$AC:$AC,Sheet1!S71_A5CapexCode,$AD:$AD)","v":0},{"$f":"SUMIFS(Sheet1!S71_AdjustmentBudAmnt,Sheet1!S71_SA34eCode,$AC:$AC,Sheet1!S71_A5CapexCode,$AD:$AD)","v":0},{"$f":"SUMIFS(Sheet1!S71_AdjustmentBudAmnt,Sheet1!S71_SA34eCode,$AC:$AC,Sheet1!S71_A5CapexCode,$AD:$AD)","v":0},{"$f":"SUMIFS(Sheet1!S71_ASBudgetAmount,Sheet1!S71_SA34eCode,$AC:$AC,Sheet1!S71_A5CapexCode,$AD:$AD)","v":0},{"$f":"SUMIFS(Sheet1!S71_OY1BudgetAmount,Sheet1!S71_SA34eCode,$AC:$AC,Sheet1!S71_A5CapexCode,$AD:$AD)","v":0},{"$f":"SUMIFS(Sheet1!S71_OY2BudgetAmount,Sheet1!S71_SA34eCode,$AC:$AC,Sheet1!S71_A5CapexCode,$AD:$AD)","v":0},null,null,null,null,null,null,null,null,null,null,null,null,null,null,null,null,null,"0790","CE"]
["Centres",null,{"$f":"SUMIFS(Sheet1!S71_PPPYearAmount,Sheet1!S71_SA34eCode,$AC:$AC,Sheet1!S71_A5CapexCode,$AD:$AD)","v":0},{"$f":"SUMIFS(Sheet1!S71_PPYearAmount,Sheet1!S71_SA34eCode,$AC:$AC,Sheet1!S71_A5CapexCode,$AD:$AD)","v":0},{"$f":"SUMIFS(Sheet1!S71_PYearAmount,Sheet1!S71_SA34eCode,$AC:$AC,Sheet1!S71_A5CapexCode,$AD:$AD)","v":0},{"$f":"SUMIFS(Sheet1!S71_OriginalBudAmnt,Sheet1!S71_SA34eCode,$AC:$AC,Sheet1!S71_A5CapexCode,$AD:$AD)","v":0},{"$f":"SUMIFS(Sheet1!S71_AdjustmentBudAmnt,Sheet1!S71_SA34eCode,$AC:$AC,Sheet1!S71_A5CapexCode,$AD:$AD)","v":0},{"$f":"SUMIFS(Sheet1!S71_AdjustmentBudAmnt,Sheet1!S71_SA34eCode,$AC:$AC,Sheet1!S71_A5CapexCode,$AD:$AD)","v":0},{"$f":"SUMIFS(Sheet1!S71_ASBudgetAmount,Sheet1!S71_SA34eCode,$AC:$AC,Sheet1!S71_A5CapexCode,$AD:$AD)","v":0},{"$f":"SUMIFS(Sheet1!S71_OY1BudgetAmount,Sheet1!S71_SA34eCode,$AC:$AC,Sheet1!S71_A5CapexCode,$AD:$AD)","v":0},{"$f":"SUMIFS(Sheet1!S71_OY2BudgetAmount,Sheet1!S71_SA34eCode,$AC:$AC,Sheet1!S71_A5CapexCode,$AD:$AD)","v":0},null,null,null,null,null,null,null,null,null,null,null,null,null,null,null,null,null,"0800","CE"]
["Crèches",null,{"$f":"SUMIFS(Sheet1!S71_PPPYearAmount,Sheet1!S71_SA34eCode,$AC:$AC,Sheet1!S71_A5CapexCode,$AD:$AD)","v":0},{"$f":"SUMIFS(Sheet1!S71_PPYearAmount,Sheet1!S71_SA34eCode,$AC:$AC,Sheet1!S71_A5CapexCode,$AD:$AD)","v":0},{"$f":"SUMIFS(Sheet1!S71_PYearAmount,Sheet1!S71_SA34eCode,$AC:$AC,Sheet1!S71_A5CapexCode,$AD:$AD)","v":0},{"$f":"SUMIFS(Sheet1!S71_OriginalBudAmnt,Sheet1!S71_SA34eCode,$AC:$AC,Sheet1!S71_A5CapexCode,$AD:$AD)","v":0},{"$f":"SUMIFS(Sheet1!S71_AdjustmentBudAmnt,Sheet1!S71_SA34eCode,$AC:$AC,Sheet1!S71_A5CapexCode,$AD:$AD)","v":0},{"$f":"SUMIFS(Sheet1!S71_AdjustmentBudAmnt,Sheet1!S71_SA34eCode,$AC:$AC,Sheet1!S71_A5CapexCode,$AD:$AD)","v":0},{"$f":"SUMIFS(Sheet1!S71_ASBudgetAmount,Sheet1!S71_SA34eCode,$AC:$AC,Sheet1!S71_A5CapexCode,$AD:$AD)","v":0},{"$f":"SUMIFS(Sheet1!S71_OY1BudgetAmount,Sheet1!S71_SA34eCode,$AC:$AC,Sheet1!S71_A5CapexCode,$AD:$AD)","v":0},{"$f":"SUMIFS(Sheet1!S71_OY2BudgetAmount,Sheet1!S71_SA34eCode,$AC:$AC,Sheet1!S71_A5CapexCode,$AD:$AD)","v":0},null,null,null,null,null,null,null,null,null,null,null,null,null,null,null,null,null,"0810","CE"]
["Clinics/Care Centres",null,{"$f":"SUMIFS(Sheet1!S71_PPPYearAmount,Sheet1!S71_SA34eCode,$AC:$AC,Sheet1!S71_A5CapexCode,$AD:$AD)","v":0},{"$f":"SUMIFS(Sheet1!S71_PPYearAmount,Sheet1!S71_SA34eCode,$AC:$AC,Sheet1!S71_A5CapexCode,$AD:$AD)","v":0},{"$f":"SUMIFS(Sheet1!S71_PYearAmount,Sheet1!S71_SA34eCode,$AC:$AC,Sheet1!S71_A5CapexCode,$AD:$AD)","v":0},{"$f":"SUMIFS(Sheet1!S71_OriginalBudAmnt,Sheet1!S71_SA34eCode,$AC:$AC,Sheet1!S71_A5CapexCode,$AD:$AD)","v":0},{"$f":"SUMIFS(Sheet1!S71_AdjustmentBudAmnt,Sheet1!S71_SA34eCode,$AC:$AC,Sheet1!S71_A5CapexCode,$AD:$AD)","v":0},{"$f":"SUMIFS(Sheet1!S71_AdjustmentBudAmnt,Sheet1!S71_SA34eCode,$AC:$AC,Sheet1!S71_A5CapexCode,$AD:$AD)","v":0},{"$f":"SUMIFS(Sheet1!S71_ASBudgetAmount,Sheet1!S71_SA34eCode,$AC:$AC,Sheet1!S71_A5CapexCode,$AD:$AD)","v":0},{"$f":"SUMIFS(Sheet1!S71_OY1BudgetAmount,Sheet1!S71_SA34eCode,$AC:$AC,Sheet1!S71_A5CapexCode,$AD:$AD)","v":0},{"$f":"SUMIFS(Sheet1!S71_OY2BudgetAmount,Sheet1!S71_SA34eCode,$AC:$AC,Sheet1!S71_A5CapexCode,$AD:$AD)","v":0},null,null,null,null,null,null,null,null,null,null,null,null,null,null,null,null,null,"0820","CE"]
["Fire/Ambulance Stations",null,{"$f":"SUMIFS(Sheet1!S71_PPPYearAmount,Sheet1!S71_SA34eCode,$AC:$AC,Sheet1!S71_A5CapexCode,$AD:$AD)","v":0},{"$f":"SUMIFS(Sheet1!S71_PPYearAmount,Sheet1!S71_SA34eCode,$AC:$AC,Sheet1!S71_A5CapexCode,$AD:$AD)","v":0},{"$f":"SUMIFS(Sheet1!S71_PYearAmount,Sheet1!S71_SA34eCode,$AC:$AC,Sheet1!S71_A5CapexCode,$AD:$AD)","v":0},{"$f":"SUMIFS(Sheet1!S71_OriginalBudAmnt,Sheet1!S71_SA34eCode,$AC:$AC,Sheet1!S71_A5CapexCode,$AD:$AD)","v":0},{"$f":"SUMIFS(Sheet1!S71_AdjustmentBudAmnt,Sheet1!S71_SA34eCode,$AC:$AC,Sheet1!S71_A5CapexCode,$AD:$AD)","v":0},{"$f":"SUMIFS(Sheet1!S71_AdjustmentBudAmnt,Sheet1!S71_SA34eCode,$AC:$AC,Sheet1!S71_A5CapexCode,$AD:$AD)","v":0},{"$f":"SUMIFS(Sheet1!S71_ASBudgetAmount,Sheet1!S71_SA34eCode,$AC:$AC,Sheet1!S71_A5CapexCode,$AD:$AD)","v":0},{"$f":"SUMIFS(Sheet1!S71_OY1BudgetAmount,Sheet1!S71_SA34eCode,$AC:$AC,Sheet1!S71_A5CapexCode,$AD:$AD)","v":0},{"$f":"SUMIFS(Sheet1!S71_OY2BudgetAmount,Sheet1!S71_SA34eCode,$AC:$AC,Sheet1!S71_A5CapexCode,$AD:$AD)","v":0},null,null,null,null,null,null,null,null,null,null,null,null,null,null,null,null,null,"0830","CE"]
["Testing Stations",null,{"$f":"SUMIFS(Sheet1!S71_PPPYearAmount,Sheet1!S71_SA34eCode,$AC:$AC,Sheet1!S71_A5CapexCode,$AD:$AD)","v":0},{"$f":"SUMIFS(Sheet1!S71_PPYearAmount,Sheet1!S71_SA34eCode,$AC:$AC,Sheet1!S71_A5CapexCode,$AD:$AD)","v":0},{"$f":"SUMIFS(Sheet1!S71_PYearAmount,Sheet1!S71_SA34eCode,$AC:$AC,Sheet1!S71_A5CapexCode,$AD:$AD)","v":0},{"$f":"SUMIFS(Sheet1!S71_OriginalBudAmnt,Sheet1!S71_SA34eCode,$AC:$AC,Sheet1!S71_A5CapexCode,$AD:$AD)","v":0},{"$f":"SUMIFS(Sheet1!S71_AdjustmentBudAmnt,Sheet1!S71_SA34eCode,$AC:$AC,Sheet1!S71_A5CapexCode,$AD:$AD)","v":0},{"$f":"SUMIFS(Sheet1!S71_AdjustmentBudAmnt,Sheet1!S71_SA34eCode,$AC:$AC,Sheet1!S71_A5CapexCode,$AD:$AD)","v":0},{"$f":"SUMIFS(Sheet1!S71_ASBudgetAmount,Sheet1!S71_SA34eCode,$AC:$AC,Sheet1!S71_A5CapexCode,$AD:$AD)","v":0},{"$f":"SUMIFS(Sheet1!S71_OY1BudgetAmount,Sheet1!S71_SA34eCode,$AC:$AC,Sheet1!S71_A5CapexCode,$AD:$AD)","v":0},{"$f":"SUMIFS(Sheet1!S71_OY2BudgetAmount,Sheet1!S71_SA34eCode,$AC:$AC,Sheet1!S71_A5CapexCode,$AD:$AD)","v":0},null,null,null,null,null,null,null,null,null,null,null,null,null,null,null,null,null,"0840","CE"]
["Museums",null,{"$f":"SUMIFS(Sheet1!S71_PPPYearAmount,Sheet1!S71_SA34eCode,$AC:$AC,Sheet1!S71_A5CapexCode,$AD:$AD)","v":0},{"$f":"SUMIFS(Sheet1!S71_PPYearAmount,Sheet1!S71_SA34eCode,$AC:$AC,Sheet1!S71_A5CapexCode,$AD:$AD)","v":0},{"$f":"SUMIFS(Sheet1!S71_PYearAmount,Sheet1!S71_SA34eCode,$AC:$AC,Sheet1!S71_A5CapexCode,$AD:$AD)","v":0},{"$f":"SUMIFS(Sheet1!S71_OriginalBudAmnt,Sheet1!S71_SA34eCode,$AC:$AC,Sheet1!S71_A5CapexCode,$AD:$AD)","v":0},{"$f":"SUMIFS(Sheet1!S71_AdjustmentBudAmnt,Sheet1!S71_SA34eCode,$AC:$AC,Sheet1!S71_A5CapexCode,$AD:$AD)","v":0},{"$f":"SUMIFS(Sheet1!S71_AdjustmentBudAmnt,Sheet1!S71_SA34eCode,$AC:$AC,Sheet1!S71_A5CapexCode,$AD:$AD)","v":0},{"$f":"SUMIFS(Sheet1!S71_ASBudgetAmount,Sheet1!S71_SA34eCode,$AC:$AC,Sheet1!S71_A5CapexCode,$AD:$AD)","v":0},{"$f":"SUMIFS(Sheet1!S71_OY1BudgetAmount,Sheet1!S71_SA34eCode,$AC:$AC,Sheet1!S71_A5CapexCode,$AD:$AD)","v":0},{"$f":"SUMIFS(Sheet1!S71_OY2BudgetAmount,Sheet1!S71_SA34eCode,$AC:$AC,Sheet1!S71_A5CapexCode,$AD:$AD)","v":0},null,null,null,null,null,null,null,null,null,null,null,null,null,null,null,null,null,"0850","CE"]
["Galleries",null,{"$f":"SUMIFS(Sheet1!S71_PPPYearAmount,Sheet1!S71_SA34eCode,$AC:$AC,Sheet1!S71_A5CapexCode,$AD:$AD)","v":0},{"$f":"SUMIFS(Sheet1!S71_PPYearAmount,Sheet1!S71_SA34eCode,$AC:$AC,Sheet1!S71_A5CapexCode,$AD:$AD)","v":0},{"$f":"SUMIFS(Sheet1!S71_PYearAmount,Sheet1!S71_SA34eCode,$AC:$AC,Sheet1!S71_A5CapexCode,$AD:$AD)","v":0},{"$f":"SUMIFS(Sheet1!S71_OriginalBudAmnt,Sheet1!S71_SA34eCode,$AC:$AC,Sheet1!S71_A5CapexCode,$AD:$AD)","v":0},{"$f":"SUMIFS(Sheet1!S71_AdjustmentBudAmnt,Sheet1!S71_SA34eCode,$AC:$AC,Sheet1!S71_A5CapexCode,$AD:$AD)","v":0},{"$f":"SUMIFS(Sheet1!S71_AdjustmentBudAmnt,Sheet1!S71_SA34eCode,$AC:$AC,Sheet1!S71_A5CapexCode,$AD:$AD)","v":0},{"$f":"SUMIFS(Sheet1!S71_ASBudgetAmount,Sheet1!S71_SA34eCode,$AC:$AC,Sheet1!S71_A5CapexCode,$AD:$AD)","v":0},{"$f":"SUMIFS(Sheet1!S71_OY1BudgetAmount,Sheet1!S71_SA34eCode,$AC:$AC,Sheet1!S71_A5CapexCode,$AD:$AD)","v":0},{"$f":"SUMIFS(Sheet1!S71_OY2BudgetAmount,Sheet1!S71_SA34eCode,$AC:$AC,Sheet1!S71_A5CapexCode,$AD:$AD)","v":0},null,null,null,null,null,null,null,null,null,null,null,null,null,null,null,null,null,"0860","CE"]
["Theatres",null,{"$f":"SUMIFS(Sheet1!S71_PPPYearAmount,Sheet1!S71_SA34eCode,$AC:$AC,Sheet1!S71_A5CapexCode,$AD:$AD)","v":0},{"$f":"SUMIFS(Sheet1!S71_PPYearAmount,Sheet1!S71_SA34eCode,$AC:$AC,Sheet1!S71_A5CapexCode,$AD:$AD)","v":0},{"$f":"SUMIFS(Sheet1!S71_PYearAmount,Sheet1!S71_SA34eCode,$AC:$AC,Sheet1!S71_A5CapexCode,$AD:$AD)","v":0},{"$f":"SUMIFS(Sheet1!S71_OriginalBudAmnt,Sheet1!S71_SA34eCode,$AC:$AC,Sheet1!S71_A5CapexCode,$AD:$AD)","v":0},{"$f":"SUMIFS(Sheet1!S71_AdjustmentBudAmnt,Sheet1!S71_SA34eCode,$AC:$AC,Sheet1!S71_A5CapexCode,$AD:$AD)","v":0},{"$f":"SUMIFS(Sheet1!S71_AdjustmentBudAmnt,Sheet1!S71_SA34eCode,$AC:$AC,Sheet1!S71_A5CapexCode,$AD:$AD)","v":0},{"$f":"SUMIFS(Sheet1!S71_ASBudgetAmount,Sheet1!S71_SA34eCode,$AC:$AC,Sheet1!S71_A5CapexCode,$AD:$AD)","v":0},{"$f":"SUMIFS(Sheet1!S71_OY1BudgetAmount,Sheet1!S71_SA34eCode,$AC:$AC,Sheet1!S71_A5CapexCode,$AD:$AD)","v":0},{"$f":"SUMIFS(Sheet1!S71_OY2BudgetAmount,Sheet1!S71_SA34eCode,$AC:$AC,Sheet1!S71_A5CapexCode,$AD:$AD)","v":0},null,null,null,null,null,null,null,null,null,null,null,null,null,null,null,null,null,"0870","CE"]
["Libraries",null,{"$f":"SUMIFS(Sheet1!S71_PPPYearAmount,Sheet1!S71_SA34eCode,$AC:$AC,Sheet1!S71_A5CapexCode,$AD:$AD)","v":0},{"$f":"SUMIFS(Sheet1!S71_PPYearAmount,Sheet1!S71_SA34eCode,$AC:$AC,Sheet1!S71_A5CapexCode,$AD:$AD)","v":0},{"$f":"SUMIFS(Sheet1!S71_PYearAmount,Sheet1!S71_SA34eCode,$AC:$AC,Sheet1!S71_A5CapexCode,$AD:$AD)","v":0},{"$f":"SUMIFS(Sheet1!S71_OriginalBudAmnt,Sheet1!S71_SA34eCode,$AC:$AC,Sheet1!S71_A5CapexCode,$AD:$AD)","v":0},{"$f":"SUMIFS(Sheet1!S71_AdjustmentBudAmnt,Sheet1!S71_SA34eCode,$AC:$AC,Sheet1!S71_A5CapexCode,$AD:$AD)","v":0},{"$f":"SUMIFS(Sheet1!S71_AdjustmentBudAmnt,Sheet1!S71_SA34eCode,$AC:$AC,Sheet1!S71_A5CapexCode,$AD:$AD)","v":0},{"$f":"SUMIFS(Sheet1!S71_ASBudgetAmount,Sheet1!S71_SA34eCode,$AC:$AC,Sheet1!S71_A5CapexCode,$AD:$AD)","v":0},{"$f":"SUMIFS(Sheet1!S71_OY1BudgetAmount,Sheet1!S71_SA34eCode,$AC:$AC,Sheet1!S71_A5CapexCode,$AD:$AD)","v":0},{"$f":"SUMIFS(Sheet1!S71_OY2BudgetAmount,Sheet1!S71_SA34eCode,$AC:$AC,Sheet1!S71_A5CapexCode,$AD:$AD)","v":0},null,null,null,null,null,null,null,null,null,null,null,null,null,null,null,null,null,"0880","CE"]
["Cemeteries/Crematoria",null,{"$f":"SUMIFS(Sheet1!S71_PPPYearAmount,Sheet1!S71_SA34eCode,$AC:$AC,Sheet1!S71_A5CapexCode,$AD:$AD)","v":0},{"$f":"SUMIFS(Sheet1!S71_PPYearAmount,Sheet1!S71_SA34eCode,$AC:$AC,Sheet1!S71_A5CapexCode,$AD:$AD)","v":0},{"$f":"SUMIFS(Sheet1!S71_PYearAmount,Sheet1!S71_SA34eCode,$AC:$AC,Sheet1!S71_A5CapexCode,$AD:$AD)","v":0},{"$f":"SUMIFS(Sheet1!S71_OriginalBudAmnt,Sheet1!S71_SA34eCode,$AC:$AC,Sheet1!S71_A5CapexCode,$AD:$AD)","v":0},{"$f":"SUMIFS(Sheet1!S71_AdjustmentBudAmnt,Sheet1!S71_SA34eCode,$AC:$AC,Sheet1!S71_A5CapexCode,$AD:$AD)","v":0},{"$f":"SUMIFS(Sheet1!S71_AdjustmentBudAmnt,Sheet1!S71_SA34eCode,$AC:$AC,Sheet1!S71_A5CapexCode,$AD:$AD)","v":0},{"$f":"SUMIFS(Sheet1!S71_ASBudgetAmount,Sheet1!S71_SA34eCode,$AC:$AC,Sheet1!S71_A5CapexCode,$AD:$AD)","v":0},{"$f":"SUMIFS(Sheet1!S71_OY1BudgetAmount,Sheet1!S71_SA34eCode,$AC:$AC,Sheet1!S71_A5CapexCode,$AD:$AD)","v":0},{"$f":"SUMIFS(Sheet1!S71_OY2BudgetAmount,Sheet1!S71_SA34eCode,$AC:$AC,Sheet1!S71_A5CapexCode,$AD:$AD)","v":0},null,null,null,null,null,null,null,null,null,null,null,null,null,null,null,null,null,"0890","CE"]
["Police",null,{"$f":"SUMIFS(Sheet1!S71_PPPYearAmount,Sheet1!S71_SA34eCode,$AC:$AC,Sheet1!S71_A5CapexCode,$AD:$AD)","v":0},{"$f":"SUMIFS(Sheet1!S71_PPYearAmount,Sheet1!S71_SA34eCode,$AC:$AC,Sheet1!S71_A5CapexCode,$AD:$AD)","v":0},{"$f":"SUMIFS(Sheet1!S71_PYearAmount,Sheet1!S71_SA34eCode,$AC:$AC,Sheet1!S71_A5CapexCode,$AD:$AD)","v":0},{"$f":"SUMIFS(Sheet1!S71_OriginalBudAmnt,Sheet1!S71_SA34eCode,$AC:$AC,Sheet1!S71_A5CapexCode,$AD:$AD)","v":0},{"$f":"SUMIFS(Sheet1!S71_AdjustmentBudAmnt,Sheet1!S71_SA34eCode,$AC:$AC,Sheet1!S71_A5CapexCode,$AD:$AD)","v":0},{"$f":"SUMIFS(Sheet1!S71_AdjustmentBudAmnt,Sheet1!S71_SA34eCode,$AC:$AC,Sheet1!S71_A5CapexCode,$AD:$AD)","v":0},{"$f":"SUMIFS(Sheet1!S71_ASBudgetAmount,Sheet1!S71_SA34eCode,$AC:$AC,Sheet1!S71_A5CapexCode,$AD:$AD)","v":0},{"$f":"SUMIFS(Sheet1!S71_OY1BudgetAmount,Sheet1!S71_SA34eCode,$AC:$AC,Sheet1!S71_A5CapexCode,$AD:$AD)","v":0},{"$f":"SUMIFS(Sheet1!S71_OY2BudgetAmount,Sheet1!S71_SA34eCode,$AC:$AC,Sheet1!S71_A5CapexCode,$AD:$AD)","v":0},null,null,null,null,null,null,null,null,null,null,null,null,null,null,null,null,null,"0900","CE"]
["Parks",null,{"$f":"SUMIFS(Sheet1!S71_PPPYearAmount,Sheet1!S71_SA34eCode,$AC:$AC,Sheet1!S71_A5CapexCode,$AD:$AD)","v":0},{"$f":"SUMIFS(Sheet1!S71_PPYearAmount,Sheet1!S71_SA34eCode,$AC:$AC,Sheet1!S71_A5CapexCode,$AD:$AD)","v":0},{"$f":"SUMIFS(Sheet1!S71_PYearAmount,Sheet1!S71_SA34eCode,$AC:$AC,Sheet1!S71_A5CapexCode,$AD:$AD)","v":0},{"$f":"SUMIFS(Sheet1!S71_OriginalBudAmnt,Sheet1!S71_SA34eCode,$AC:$AC,Sheet1!S71_A5CapexCode,$AD:$AD)","v":0},{"$f":"SUMIFS(Sheet1!S71_AdjustmentBudAmnt,Sheet1!S71_SA34eCode,$AC:$AC,Sheet1!S71_A5CapexCode,$AD:$AD)","v":0},{"$f":"SUMIFS(Sheet1!S71_AdjustmentBudAmnt,Sheet1!S71_SA34eCode,$AC:$AC,Sheet1!S71_A5CapexCode,$AD:$AD)","v":0},{"$f":"SUMIFS(Sheet1!S71_ASBudgetAmount,Sheet1!S71_SA34eCode,$AC:$AC,Sheet1!S71_A5CapexCode,$AD:$AD)","v":0},{"$f":"SUMIFS(Sheet1!S71_OY1BudgetAmount,Sheet1!S71_SA34eCode,$AC:$AC,Sheet1!S71_A5CapexCode,$AD:$AD)","v":0},{"$f":"SUMIFS(Sheet1!S71_OY2BudgetAmount,Sheet1!S71_SA34eCode,$AC:$AC,Sheet1!S71_A5CapexCode,$AD:$AD)","v":0},null,null,null,null,null,null,null,null,null,null,null,null,null,null,null,null,null,"0910","CE"]
["Public Open Space",null,{"$f":"SUMIFS(Sheet1!S71_PPPYearAmount,Sheet1!S71_SA34eCode,$AC:$AC,Sheet1!S71_A5CapexCode,$AD:$AD)","v":0},{"$f":"SUMIFS(Sheet1!S71_PPYearAmount,Sheet1!S71_SA34eCode,$AC:$AC,Sheet1!S71_A5CapexCode,$AD:$AD)","v":0},{"$f":"SUMIFS(Sheet1!S71_PYearAmount,Sheet1!S71_SA34eCode,$AC:$AC,Sheet1!S71_A5CapexCode,$AD:$AD)","v":0},{"$f":"SUMIFS(Sheet1!S71_OriginalBudAmnt,Sheet1!S71_SA34eCode,$AC:$AC,Sheet1!S71_A5CapexCode,$AD:$AD)","v":0},{"$f":"SUMIFS(Sheet1!S71_AdjustmentBudAmnt,Sheet1!S71_SA34eCode,$AC:$AC,Sheet1!S71_A5CapexCode,$AD:$AD)","v":0},{"$f":"SUMIFS(Sheet1!S71_AdjustmentBudAmnt,Sheet1!S71_SA34eCode,$AC:$AC,Sheet1!S71_A5CapexCode,$AD:$AD)","v":0},{"$f":"SUMIFS(Sheet1!S71_ASBudgetAmount,Sheet1!S71_SA34eCode,$AC:$AC,Sheet1!S71_A5CapexCode,$AD:$AD)","v":0},{"$f":"SUMIFS(Sheet1!S71_OY1BudgetAmount,Sheet1!S71_SA34eCode,$AC:$AC,Sheet1!S71_A5CapexCode,$AD:$AD)","v":0},{"$f":"SUMIFS(Sheet1!S71_OY2BudgetAmount,Sheet1!S71_SA34eCode,$AC:$AC,Sheet1!S71_A5CapexCode,$AD:$AD)","v":0},null,null,null,null,null,null,null,null,null,null,null,null,null,null,null,null,null,"0920","CE"]
["Nature Reserves",null,{"$f":"SUMIFS(Sheet1!S71_PPPYearAmount,Sheet1!S71_SA34eCode,$AC:$AC,Sheet1!S71_A5CapexCode,$AD:$AD)","v":0},{"$f":"SUMIFS(Sheet1!S71_PPYearAmount,Sheet1!S71_SA34eCode,$AC:$AC,Sheet1!S71_A5CapexCode,$AD:$AD)","v":0},{"$f":"SUMIFS(Sheet1!S71_PYearAmount,Sheet1!S71_SA34eCode,$AC:$AC,Sheet1!S71_A5CapexCode,$AD:$AD)","v":0},{"$f":"SUMIFS(Sheet1!S71_OriginalBudAmnt,Sheet1!S71_SA34eCode,$AC:$AC,Sheet1!S71_A5CapexCode,$AD:$AD)","v":0},{"$f":"SUMIFS(Sheet1!S71_AdjustmentBudAmnt,Sheet1!S71_SA34eCode,$AC:$AC,Sheet1!S71_A5CapexCode,$AD:$AD)","v":0},{"$f":"SUMIFS(Sheet1!S71_AdjustmentBudAmnt,Sheet1!S71_SA34eCode,$AC:$AC,Sheet1!S71_A5CapexCode,$AD:$AD)","v":0},{"$f":"SUMIFS(Sheet1!S71_ASBudgetAmount,Sheet1!S71_SA34eCode,$AC:$AC,Sheet1!S71_A5CapexCode,$AD:$AD)","v":0},{"$f":"SUMIFS(Sheet1!S71_OY1BudgetAmount,Sheet1!S71_SA34eCode,$AC:$AC,Sheet1!S71_A5CapexCode,$AD:$AD)","v":0},{"$f":"SUMIFS(Sheet1!S71_OY2BudgetAmount,Sheet1!S71_SA34eCode,$AC:$AC,Sheet1!S71_A5CapexCode,$AD:$AD)","v":0},null,null,null,null,null,null,null,null,null,null,null,null,null,null,null,null,null,"0930","CE"]
["Public Ablution Facilities",null,{"$f":"SUMIFS(Sheet1!S71_PPPYearAmount,Sheet1!S71_SA34eCode,$AC:$AC,Sheet1!S71_A5CapexCode,$AD:$AD)","v":0},{"$f":"SUMIFS(Sheet1!S71_PPYearAmount,Sheet1!S71_SA34eCode,$AC:$AC,Sheet1!S71_A5CapexCode,$AD:$AD)","v":0},{"$f":"SUMIFS(Sheet1!S71_PYearAmount,Sheet1!S71_SA34eCode,$AC:$AC,Sheet1!S71_A5CapexCode,$AD:$AD)","v":0},{"$f":"SUMIFS(Sheet1!S71_OriginalBudAmnt,Sheet1!S71_SA34eCode,$AC:$AC,Sheet1!S71_A5CapexCode,$AD:$AD)","v":0},{"$f":"SUMIFS(Sheet1!S71_AdjustmentBudAmnt,Sheet1!S71_SA34eCode,$AC:$AC,Sheet1!S71_A5CapexCode,$AD:$AD)","v":0},{"$f":"SUMIFS(Sheet1!S71_AdjustmentBudAmnt,Sheet1!S71_SA34eCode,$AC:$AC,Sheet1!S71_A5CapexCode,$AD:$AD)","v":0},{"$f":"SUMIFS(Sheet1!S71_ASBudgetAmount,Sheet1!S71_SA34eCode,$AC:$AC,Sheet1!S71_A5CapexCode,$AD:$AD)","v":0},{"$f":"SUMIFS(Sheet1!S71_OY1BudgetAmount,Sheet1!S71_SA34eCode,$AC:$AC,Sheet1!S71_A5CapexCode,$AD:$AD)","v":0},{"$f":"SUMIFS(Sheet1!S71_OY2BudgetAmount,Sheet1!S71_SA34eCode,$AC:$AC,Sheet1!S71_A5CapexCode,$AD:$AD)","v":0},null,null,null,null,null,null,null,null,null,null,null,null,null,null,null,null,null,"0940","CE"]
["Markets",null,{"$f":"SUMIFS(Sheet1!S71_PPPYearAmount,Sheet1!S71_SA34eCode,$AC:$AC,Sheet1!S71_A5CapexCode,$AD:$AD)","v":0},{"$f":"SUMIFS(Sheet1!S71_PPYearAmount,Sheet1!S71_SA34eCode,$AC:$AC,Sheet1!S71_A5CapexCode,$AD:$AD)","v":0},{"$f":"SUMIFS(Sheet1!S71_PYearAmount,Sheet1!S71_SA34eCode,$AC:$AC,Sheet1!S71_A5CapexCode,$AD:$AD)","v":0},{"$f":"SUMIFS(Sheet1!S71_OriginalBudAmnt,Sheet1!S71_SA34eCode,$AC:$AC,Sheet1!S71_A5CapexCode,$AD:$AD)","v":0},{"$f":"SUMIFS(Sheet1!S71_AdjustmentBudAmnt,Sheet1!S71_SA34eCode,$AC:$AC,Sheet1!S71_A5CapexCode,$AD:$AD)","v":0},{"$f":"SUMIFS(Sheet1!S71_AdjustmentBudAmnt,Sheet1!S71_SA34eCode,$AC:$AC,Sheet1!S71_A5CapexCode,$AD:$AD)","v":0},{"$f":"SUMIFS(Sheet1!S71_ASBudgetAmount,Sheet1!S71_SA34eCode,$AC:$AC,Sheet1!S71_A5CapexCode,$AD:$AD)","v":0},{"$f":"SUMIFS(Sheet1!S71_OY1BudgetAmount,Sheet1!S71_SA34eCode,$AC:$AC,Sheet1!S71_A5CapexCode,$AD:$AD)","v":0},{"$f":"SUMIFS(Sheet1!S71_OY2BudgetAmount,Sheet1!S71_SA34eCode,$AC:$AC,Sheet1!S71_A5CapexCode,$AD:$AD)","v":0},null,null,null,null,null,null,null,null,null,null,null,null,null,null,null,null,null,"0950","CE"]
["Stalls",null,{"$f":"SUMIFS(Sheet1!S71_PPPYearAmount,Sheet1!S71_SA34eCode,$AC:$AC,Sheet1!S71_A5CapexCode,$AD:$AD)","v":0},{"$f":"SUMIFS(Sheet1!S71_PPYearAmount,Sheet1!S71_SA34eCode,$AC:$AC,Sheet1!S71_A5CapexCode,$AD:$AD)","v":0},{"$f":"SUMIFS(Sheet1!S71_PYearAmount,Sheet1!S71_SA34eCode,$AC:$AC,Sheet1!S71_A5CapexCode,$AD:$AD)","v":0},{"$f":"SUMIFS(Sheet1!S71_OriginalBudAmnt,Sheet1!S71_SA34eCode,$AC:$AC,Sheet1!S71_A5CapexCode,$AD:$AD)","v":0},{"$f":"SUMIFS(Sheet1!S71_AdjustmentBudAmnt,Sheet1!S71_SA34eCode,$AC:$AC,Sheet1!S71_A5CapexCode,$AD:$AD)","v":0},{"$f":"SUMIFS(Sheet1!S71_AdjustmentBudAmnt,Sheet1!S71_SA34eCode,$AC:$AC,Sheet1!S71_A5CapexCode,$AD:$AD)","v":0},{"$f":"SUMIFS(Sheet1!S71_ASBudgetAmount,Sheet1!S71_SA34eCode,$AC:$AC,Sheet1!S71_A5CapexCode,$AD:$AD)","v":0},{"$f":"SUMIFS(Sheet1!S71_OY1BudgetAmount,Sheet1!S71_SA34eCode,$AC:$AC,Sheet1!S71_A5CapexCode,$AD:$AD)","v":0},{"$f":"SUMIFS(Sheet1!S71_OY2BudgetAmount,Sheet1!S71_SA34eCode,$AC:$AC,Sheet1!S71_A5CapexCode,$AD:$AD)","v":0},null,null,null,null,null,null,null,null,null,null,null,null,null,null,null,null,null,"0960","CE"]
["Abattoirs",null,{"$f":"SUMIFS(Sheet1!S71_PPPYearAmount,Sheet1!S71_SA34eCode,$AC:$AC,Sheet1!S71_A5CapexCode,$AD:$AD)","v":0},{"$f":"SUMIFS(Sheet1!S71_PPYearAmount,Sheet1!S71_SA34eCode,$AC:$AC,Sheet1!S71_A5CapexCode,$AD:$AD)","v":0},{"$f":"SUMIFS(Sheet1!S71_PYearAmount,Sheet1!S71_SA34eCode,$AC:$AC,Sheet1!S71_A5CapexCode,$AD:$AD)","v":0},{"$f":"SUMIFS(Sheet1!S71_OriginalBudAmnt,Sheet1!S71_SA34eCode,$AC:$AC,Sheet1!S71_A5CapexCode,$AD:$AD)","v":0},{"$f":"SUMIFS(Sheet1!S71_AdjustmentBudAmnt,Sheet1!S71_SA34eCode,$AC:$AC,Sheet1!S71_A5CapexCode,$AD:$AD)","v":0},{"$f":"SUMIFS(Sheet1!S71_AdjustmentBudAmnt,Sheet1!S71_SA34eCode,$AC:$AC,Sheet1!S71_A5CapexCode,$AD:$AD)","v":0},{"$f":"SUMIFS(Sheet1!S71_ASBudgetAmount,Sheet1!S71_SA34eCode,$AC:$AC,Sheet1!S71_A5CapexCode,$AD:$AD)","v":0},{"$f":"SUMIFS(Sheet1!S71_OY1BudgetAmount,Sheet1!S71_SA34eCode,$AC:$AC,Sheet1!S71_A5CapexCode,$AD:$AD)","v":0},{"$f":"SUMIFS(Sheet1!S71_OY2BudgetAmount,Sheet1!S71_SA34eCode,$AC:$AC,Sheet1!S71_A5CapexCode,$AD:$AD)","v":0},null,null,null,null,null,null,null,null,null,null,null,null,null,null,null,null,null,"0970","CE"]
["Airports",null,{"$f":"SUMIFS(Sheet1!S71_PPPYearAmount,Sheet1!S71_SA34eCode,$AC:$AC,Sheet1!S71_A5CapexCode,$AD:$AD)","v":0},{"$f":"SUMIFS(Sheet1!S71_PPYearAmount,Sheet1!S71_SA34eCode,$AC:$AC,Sheet1!S71_A5CapexCode,$AD:$AD)","v":0},{"$f":"SUMIFS(Sheet1!S71_PYearAmount,Sheet1!S71_SA34eCode,$AC:$AC,Sheet1!S71_A5CapexCode,$AD:$AD)","v":0},{"$f":"SUMIFS(Sheet1!S71_OriginalBudAmnt,Sheet1!S71_SA34eCode,$AC:$AC,Sheet1!S71_A5CapexCode,$AD:$AD)","v":0},{"$f":"SUMIFS(Sheet1!S71_AdjustmentBudAmnt,Sheet1!S71_SA34eCode,$AC:$AC,Sheet1!S71_A5CapexCode,$AD:$AD)","v":0},{"$f":"SUMIFS(Sheet1!S71_AdjustmentBudAmnt,Sheet1!S71_SA34eCode,$AC:$AC,Sheet1!S71_A5CapexCode,$AD:$AD)","v":0},{"$f":"SUMIFS(Sheet1!S71_ASBudgetAmount,Sheet1!S71_SA34eCode,$AC:$AC,Sheet1!S71_A5CapexCode,$AD:$AD)","v":0},{"$f":"SUMIFS(Sheet1!S71_OY1BudgetAmount,Sheet1!S71_SA34eCode,$AC:$AC,Sheet1!S71_A5CapexCode,$AD:$AD)","v":0},{"$f":"SUMIFS(Sheet1!S71_OY2BudgetAmount,Sheet1!S71_SA34eCode,$AC:$AC,Sheet1!S71_A5CapexCode,$AD:$AD)","v":0},null,null,null,null,null,null,null,null,null,null,null,null,null,null,null,null,null,"0980","CE"]
["Taxi Ranks/Bus Terminals",null,{"$f":"SUMIFS(Sheet1!S71_PPPYearAmount,Sheet1!S71_SA34eCode,$AC:$AC,Sheet1!S71_A5CapexCode,$AD:$AD)","v":0},{"$f":"SUMIFS(Sheet1!S71_PPYearAmount,Sheet1!S71_SA34eCode,$AC:$AC,Sheet1!S71_A5CapexCode,$AD:$AD)","v":0},{"$f":"SUMIFS(Sheet1!S71_PYearAmount,Sheet1!S71_SA34eCode,$AC:$AC,Sheet1!S71_A5CapexCode,$AD:$AD)","v":0},{"$f":"SUMIFS(Sheet1!S71_OriginalBudAmnt,Sheet1!S71_SA34eCode,$AC:$AC,Sheet1!S71_A5CapexCode,$AD:$AD)","v":0},{"$f":"SUMIFS(Sheet1!S71_AdjustmentBudAmnt,Sheet1!S71_SA34eCode,$AC:$AC,Sheet1!S71_A5CapexCode,$AD:$AD)","v":0},{"$f":"SUMIFS(Sheet1!S71_AdjustmentBudAmnt,Sheet1!S71_SA34eCode,$AC:$AC,Sheet1!S71_A5CapexCode,$AD:$AD)","v":0},{"$f":"SUMIFS(Sheet1!S71_ASBudgetAmount,Sheet1!S71_SA34eCode,$AC:$AC,Sheet1!S71_A5CapexCode,$AD:$AD)","v":0},{"$f":"SUMIFS(Sheet1!S71_OY1BudgetAmount,Sheet1!S71_SA34eCode,$AC:$AC,Sheet1!S71_A5CapexCode,$AD:$AD)","v":0},{"$f":"SUMIFS(Sheet1!S71_OY2BudgetAmount,Sheet1!S71_SA34eCode,$AC:$AC,Sheet1!S71_A5CapexCode,$AD:$AD)","v":0},null,null,null,null,null,null,null,null,null,null,null,null,null,null,null,null,null,"0990","CE"]
["Capital Spares",null,{"$f":"SUMIFS(Sheet1!S71_PPPYearAmount,Sheet1!S71_SA34eCode,$AC:$AC,Sheet1!S71_A5CapexCode,$AD:$AD)","v":0},{"$f":"SUMIFS(Sheet1!S71_PPYearAmount,Sheet1!S71_SA34eCode,$AC:$AC,Sheet1!S71_A5CapexCode,$AD:$AD)","v":0},{"$f":"SUMIFS(Sheet1!S71_PYearAmount,Sheet1!S71_SA34eCode,$AC:$AC,Sheet1!S71_A5CapexCode,$AD:$AD)","v":0},{"$f":"SUMIFS(Sheet1!S71_OriginalBudAmnt,Sheet1!S71_SA34eCode,$AC:$AC,Sheet1!S71_A5CapexCode,$AD:$AD)","v":0},{"$f":"SUMIFS(Sheet1!S71_AdjustmentBudAmnt,Sheet1!S71_SA34eCode,$AC:$AC,Sheet1!S71_A5CapexCode,$AD:$AD)","v":0},{"$f":"SUMIFS(Sheet1!S71_AdjustmentBudAmnt,Sheet1!S71_SA34eCode,$AC:$AC,Sheet1!S71_A5CapexCode,$AD:$AD)","v":0},{"$f":"SUMIFS(Sheet1!S71_ASBudgetAmount,Sheet1!S71_SA34eCode,$AC:$AC,Sheet1!S71_A5CapexCode,$AD:$AD)","v":0},{"$f":"SUMIFS(Sheet1!S71_OY1BudgetAmount,Sheet1!S71_SA34eCode,$AC:$AC,Sheet1!S71_A5CapexCode,$AD:$AD)","v":0},{"$f":"SUMIFS(Sheet1!S71_OY2BudgetAmount,Sheet1!S71_SA34eCode,$AC:$AC,Sheet1!S71_A5CapexCode,$AD:$AD)","v":0},null,null,null,null,null,null,null,null,null,null,null,null,null,null,null,null,null,"1000","CE"]
["Sport and Recreation Facilities",null,{"$f":"SUM(C99:C101)","v":0},{"$f":"SUM(D99:D101)","v":0},0,0,0,0,0,0,0]
["Indoor Facilities",null,{"$f":"SUMIFS(Sheet1!S71_PPPYearAmount,Sheet1!S71_SA34eCode,$AC:$AC,Sheet1!S71_A5CapexCode,$AD:$AD)","v":0},{"$f":"SUMIFS(Sheet1!S71_PPYearAmount,Sheet1!S71_SA34eCode,$AC:$AC,Sheet1!S71_A5CapexCode,$AD:$AD)","v":0},{"$f":"SUMIFS(Sheet1!S71_PYearAmount,Sheet1!S71_SA34eCode,$AC:$AC,Sheet1!S71_A5CapexCode,$AD:$AD)","v":0},{"$f":"SUMIFS(Sheet1!S71_OriginalBudAmnt,Sheet1!S71_SA34eCode,$AC:$AC,Sheet1!S71_A5CapexCode,$AD:$AD)","v":0},{"$f":"SUMIFS(Sheet1!S71_AdjustmentBudAmnt,Sheet1!S71_SA34eCode,$AC:$AC,Sheet1!S71_A5CapexCode,$AD:$AD)","v":0},{"$f":"SUMIFS(Sheet1!S71_AdjustmentBudAmnt,Sheet1!S71_SA34eCode,$AC:$AC,Sheet1!S71_A5CapexCode,$AD:$AD)","v":0},{"$f":"SUMIFS(Sheet1!S71_ASBudgetAmount,Sheet1!S71_SA34eCode,$AC:$AC,Sheet1!S71_A5CapexCode,$AD:$AD)","v":0},{"$f":"SUMIFS(Sheet1!S71_OY1BudgetAmount,Sheet1!S71_SA34eCode,$AC:$AC,Sheet1!S71_A5CapexCode,$AD:$AD)","v":0},{"$f":"SUMIFS(Sheet1!S71_OY2BudgetAmount,Sheet1!S71_SA34eCode,$AC:$AC,Sheet1!S71_A5CapexCode,$AD:$AD)","v":0},null,null,null,null,null,null,null,null,null,null,null,null,null,null,null,null,null,"1020","CE"]
["Outdoor Facilities",null,{"$f":"SUMIFS(Sheet1!S71_PPPYearAmount,Sheet1!S71_SA34eCode,$AC:$AC,Sheet1!S71_A5CapexCode,$AD:$AD)","v":0},{"$f":"SUMIFS(Sheet1!S71_PPYearAmount,Sheet1!S71_SA34eCode,$AC:$AC,Sheet1!S71_A5CapexCode,$AD:$AD)","v":0},{"$f":"SUMIFS(Sheet1!S71_PYearAmount,Sheet1!S71_SA34eCode,$AC:$AC,Sheet1!S71_A5CapexCode,$AD:$AD)","v":0},{"$f":"SUMIFS(Sheet1!S71_OriginalBudAmnt,Sheet1!S71_SA34eCode,$AC:$AC,Sheet1!S71_A5CapexCode,$AD:$AD)","v":0},{"$f":"SUMIFS(Sheet1!S71_AdjustmentBudAmnt,Sheet1!S71_SA34eCode,$AC:$AC,Sheet1!S71_A5CapexCode,$AD:$AD)","v":0},{"$f":"SUMIFS(Sheet1!S71_AdjustmentBudAmnt,Sheet1!S71_SA34eCode,$AC:$AC,Sheet1!S71_A5CapexCode,$AD:$AD)","v":0},{"$f":"SUMIFS(Sheet1!S71_ASBudgetAmount,Sheet1!S71_SA34eCode,$AC:$AC,Sheet1!S71_A5CapexCode,$AD:$AD)","v":0},{"$f":"SUMIFS(Sheet1!S71_OY1BudgetAmount,Sheet1!S71_SA34eCode,$AC:$AC,Sheet1!S71_A5CapexCode,$AD:$AD)","v":0},{"$f":"SUMIFS(Sheet1!S71_OY2BudgetAmount,Sheet1!S71_SA34eCode,$AC:$AC,Sheet1!S71_A5CapexCode,$AD:$AD)","v":0},null,null,null,null,null,null,null,null,null,null,null,null,null,null,null,null,null,"1030","CE"]
["Capital Spares",null,{"$f":"SUMIFS(Sheet1!S71_PPPYearAmount,Sheet1!S71_SA34eCode,$AC:$AC,Sheet1!S71_A5CapexCode,$AD:$AD)","v":0},{"$f":"SUMIFS(Sheet1!S71_PPYearAmount,Sheet1!S71_SA34eCode,$AC:$AC,Sheet1!S71_A5CapexCode,$AD:$AD)","v":0},{"$f":"SUMIFS(Sheet1!S71_PYearAmount,Sheet1!S71_SA34eCode,$AC:$AC,Sheet1!S71_A5CapexCode,$AD:$AD)","v":0},{"$f":"SUMIFS(Sheet1!S71_OriginalBudAmnt,Sheet1!S71_SA34eCode,$AC:$AC,Sheet1!S71_A5CapexCode,$AD:$AD)","v":0},{"$f":"SUMIFS(Sheet1!S71_AdjustmentBudAmnt,Sheet1!S71_SA34eCode,$AC:$AC,Sheet1!S71_A5CapexCode,$AD:$AD)","v":0},{"$f":"SUMIFS(Sheet1!S71_AdjustmentBudAmnt,Sheet1!S71_SA34eCode,$AC:$AC,Sheet1!S71_A5CapexCode,$AD:$AD)","v":0},{"$f":"SUMIFS(Sheet1!S71_ASBudgetAmount,Sheet1!S71_SA34eCode,$AC:$AC,Sheet1!S71_A5CapexCode,$AD:$AD)","v":0},{"$f":"SUMIFS(Sheet1!S71_OY1BudgetAmount,Sheet1!S71_SA34eCode,$AC:$AC,Sheet1!S71_A5CapexCode,$AD:$AD)","v":0},{"$f":"SUMIFS(Sheet1!S71_OY2BudgetAmount,Sheet1!S71_SA34eCode,$AC:$AC,Sheet1!S71_A5CapexCode,$AD:$AD)","v":0},null,null,null,null,null,null,null,null,null,null,null,null,null,null,null,null,null,"1040","CE"]
[]
["Heritage assets",null,{"$f":"SUM(C104:C108)","v":0},{"$f":"SUM(D104:D108)","v":0},0,0,0,0,0,0,0]
["Monuments",null,{"$f":"SUMIFS(Sheet1!S71_PPPYearAmount,Sheet1!S71_SA34eCode,$AC:$AC,Sheet1!S71_A5CapexCode,$AD:$AD)","v":0},{"$f":"SUMIFS(Sheet1!S71_PPYearAmount,Sheet1!S71_SA34eCode,$AC:$AC,Sheet1!S71_A5CapexCode,$AD:$AD)","v":0},{"$f":"SUMIFS(Sheet1!S71_PYearAmount,Sheet1!S71_SA34eCode,$AC:$AC,Sheet1!S71_A5CapexCode,$AD:$AD)","v":0},{"$f":"SUMIFS(Sheet1!S71_OriginalBudAmnt,Sheet1!S71_SA34eCode,$AC:$AC,Sheet1!S71_A5CapexCode,$AD:$AD)","v":0},{"$f":"SUMIFS(Sheet1!S71_AdjustmentBudAmnt,Sheet1!S71_SA34eCode,$AC:$AC,Sheet1!S71_A5CapexCode,$AD:$AD)","v":0},{"$f":"SUMIFS(Sheet1!S71_AdjustmentBudAmnt,Sheet1!S71_SA34eCode,$AC:$AC,Sheet1!S71_A5CapexCode,$AD:$AD)","v":0},{"$f":"SUMIFS(Sheet1!S71_ASBudgetAmount,Sheet1!S71_SA34eCode,$AC:$AC,Sheet1!S71_A5CapexCode,$AD:$AD)","v":0},{"$f":"SUMIFS(Sheet1!S71_OY1BudgetAmount,Sheet1!S71_SA34eCode,$AC:$AC,Sheet1!S71_A5CapexCode,$AD:$AD)","v":0},{"$f":"SUMIFS(Sheet1!S71_OY2BudgetAmount,Sheet1!S71_SA34eCode,$AC:$AC,Sheet1!S71_A5CapexCode,$AD:$AD)","v":0},null,null,null,null,null,null,null,null,null,null,null,null,null,null,null,null,null,"1060","CE"]
["Historic Buildings",null,{"$f":"SUMIFS(Sheet1!S71_PPPYearAmount,Sheet1!S71_SA34eCode,$AC:$AC,Sheet1!S71_A5CapexCode,$AD:$AD)","v":0},{"$f":"SUMIFS(Sheet1!S71_PPYearAmount,Sheet1!S71_SA34eCode,$AC:$AC,Sheet1!S71_A5CapexCode,$AD:$AD)","v":0},{"$f":"SUMIFS(Sheet1!S71_PYearAmount,Sheet1!S71_SA34eCode,$AC:$AC,Sheet1!S71_A5CapexCode,$AD:$AD)","v":0},{"$f":"SUMIFS(Sheet1!S71_OriginalBudAmnt,Sheet1!S71_SA34eCode,$AC:$AC,Sheet1!S71_A5CapexCode,$AD:$AD)","v":0},{"$f":"SUMIFS(Sheet1!S71_AdjustmentBudAmnt,Sheet1!S71_SA34eCode,$AC:$AC,Sheet1!S71_A5CapexCode,$AD:$AD)","v":0},{"$f":"SUMIFS(Sheet1!S71_AdjustmentBudAmnt,Sheet1!S71_SA34eCode,$AC:$AC,Sheet1!S71_A5CapexCode,$AD:$AD)","v":0},{"$f":"SUMIFS(Sheet1!S71_ASBudgetAmount,Sheet1!S71_SA34eCode,$AC:$AC,Sheet1!S71_A5CapexCode,$AD:$AD)","v":0},{"$f":"SUMIFS(Sheet1!S71_OY1BudgetAmount,Sheet1!S71_SA34eCode,$AC:$AC,Sheet1!S71_A5CapexCode,$AD:$AD)","v":0},{"$f":"SUMIFS(Sheet1!S71_OY2BudgetAmount,Sheet1!S71_SA34eCode,$AC:$AC,Sheet1!S71_A5CapexCode,$AD:$AD)","v":0},null,null,null,null,null,null,null,null,null,null,null,null,null,null,null,null,null,"1070","CE"]
["Works of Art",null,{"$f":"SUMIFS(Sheet1!S71_PPPYearAmount,Sheet1!S71_SA34eCode,$AC:$AC,Sheet1!S71_A5CapexCode,$AD:$AD)","v":0},{"$f":"SUMIFS(Sheet1!S71_PPYearAmount,Sheet1!S71_SA34eCode,$AC:$AC,Sheet1!S71_A5CapexCode,$AD:$AD)","v":0},{"$f":"SUMIFS(Sheet1!S71_PYearAmount,Sheet1!S71_SA34eCode,$AC:$AC,Sheet1!S71_A5CapexCode,$AD:$AD)","v":0},{"$f":"SUMIFS(Sheet1!S71_OriginalBudAmnt,Sheet1!S71_SA34eCode,$AC:$AC,Sheet1!S71_A5CapexCode,$AD:$AD)","v":0},{"$f":"SUMIFS(Sheet1!S71_AdjustmentBudAmnt,Sheet1!S71_SA34eCode,$AC:$AC,Sheet1!S71_A5CapexCode,$AD:$AD)","v":0},{"$f":"SUMIFS(Sheet1!S71_AdjustmentBudAmnt,Sheet1!S71_SA34eCode,$AC:$AC,Sheet1!S71_A5CapexCode,$AD:$AD)","v":0},{"$f":"SUMIFS(Sheet1!S71_ASBudgetAmount,Sheet1!S71_SA34eCode,$AC:$AC,Sheet1!S71_A5CapexCode,$AD:$AD)","v":0},{"$f":"SUMIFS(Sheet1!S71_OY1BudgetAmount,Sheet1!S71_SA34eCode,$AC:$AC,Sheet1!S71_A5CapexCode,$AD:$AD)","v":0},{"$f":"SUMIFS(Sheet1!S71_OY2BudgetAmount,Sheet1!S71_SA34eCode,$AC:$AC,Sheet1!S71_A5CapexCode,$AD:$AD)","v":0},null,null,null,null,null,null,null,null,null,null,null,null,null,null,null,null,null,"1080","CE"]
["Conservation Areas",null,{"$f":"SUMIFS(Sheet1!S71_PPPYearAmount,Sheet1!S71_SA34eCode,$AC:$AC,Sheet1!S71_A5CapexCode,$AD:$AD)","v":0},{"$f":"SUMIFS(Sheet1!S71_PPYearAmount,Sheet1!S71_SA34eCode,$AC:$AC,Sheet1!S71_A5CapexCode,$AD:$AD)","v":0},{"$f":"SUMIFS(Sheet1!S71_PYearAmount,Sheet1!S71_SA34eCode,$AC:$AC,Sheet1!S71_A5CapexCode,$AD:$AD)","v":0},{"$f":"SUMIFS(Sheet1!S71_OriginalBudAmnt,Sheet1!S71_SA34eCode,$AC:$AC,Sheet1!S71_A5CapexCode,$AD:$AD)","v":0},{"$f":"SUMIFS(Sheet1!S71_AdjustmentBudAmnt,Sheet1!S71_SA34eCode,$AC:$AC,Sheet1!S71_A5CapexCode,$AD:$AD)","v":0},{"$f":"SUMIFS(Sheet1!S71_AdjustmentBudAmnt,Sheet1!S71_SA34eCode,$AC:$AC,Sheet1!S71_A5CapexCode,$AD:$AD)","v":0},{"$f":"SUMIFS(Sheet1!S71_ASBudgetAmount,Sheet1!S71_SA34eCode,$AC:$AC,Sheet1!S71_A5CapexCode,$AD:$AD)","v":0},{"$f":"SUMIFS(Sheet1!S71_OY1BudgetAmount,Sheet1!S71_SA34eCode,$AC:$AC,Sheet1!S71_A5CapexCode,$AD:$AD)","v":0},{"$f":"SUMIFS(Sheet1!S71_OY2BudgetAmount,Sheet1!S71_SA34eCode,$AC:$AC,Sheet1!S71_A5CapexCode,$AD:$AD)","v":0},null,null,null,null,null,null,null,null,null,null,null,null,null,null,null,null,null,"1090","CE"]
["Other Heritage",null,{"$f":"SUMIFS(Sheet1!S71_PPPYearAmount,Sheet1!S71_SA34eCode,$AC:$AC,Sheet1!S71_A5CapexCode,$AD:$AD)","v":0},{"$f":"SUMIFS(Sheet1!S71_PPYearAmount,Sheet1!S71_SA34eCode,$AC:$AC,Sheet1!S71_A5CapexCode,$AD:$AD)","v":0},{"$f":"SUMIFS(Sheet1!S71_PYearAmount,Sheet1!S71_SA34eCode,$AC:$AC,Sheet1!S71_A5CapexCode,$AD:$AD)","v":0},{"$f":"SUMIFS(Sheet1!S71_OriginalBudAmnt,Sheet1!S71_SA34eCode,$AC:$AC,Sheet1!S71_A5CapexCode,$AD:$AD)","v":0},{"$f":"SUMIFS(Sheet1!S71_AdjustmentBudAmnt,Sheet1!S71_SA34eCode,$AC:$AC,Sheet1!S71_A5CapexCode,$AD:$AD)","v":0},{"$f":"SUMIFS(Sheet1!S71_AdjustmentBudAmnt,Sheet1!S71_SA34eCode,$AC:$AC,Sheet1!S71_A5CapexCode,$AD:$AD)","v":0},{"$f":"SUMIFS(Sheet1!S71_ASBudgetAmount,Sheet1!S71_SA34eCode,$AC:$AC,Sheet1!S71_A5CapexCode,$AD:$AD)","v":0},{"$f":"SUMIFS(Sheet1!S71_OY1BudgetAmount,Sheet1!S71_SA34eCode,$AC:$AC,Sheet1!S71_A5CapexCode,$AD:$AD)","v":0},{"$f":"SUMIFS(Sheet1!S71_OY2BudgetAmount,Sheet1!S71_SA34eCode,$AC:$AC,Sheet1!S71_A5CapexCode,$AD:$AD)","v":0},null,null,null,null,null,null,null,null,null,null,null,null,null,null,null,null,null,"1100","CE"]
[]
["Investment properties",null,{"$f":"+C111+C114","v":0},{"$f":"+D111+D114","v":0},0,0,0,0,0,0,0]
["Revenue Generating",null,{"$f":"SUM(C112:C113)","v":0},0,0,0,0,0,0,0,0]
["Improved Property",null,{"$f":"SUMIFS(Sheet1!S71_PPPYearAmount,Sheet1!S71_SA34eCode,$AC:$AC,Sheet1!S71_A5CapexCode,$AD:$AD)","v":0},{"$f":"SUMIFS(Sheet1!S71_PPYearAmount,Sheet1!S71_SA34eCode,$AC:$AC,Sheet1!S71_A5CapexCode,$AD:$AD)","v":0},{"$f":"SUMIFS(Sheet1!S71_PYearAmount,Sheet1!S71_SA34eCode,$AC:$AC,Sheet1!S71_A5CapexCode,$AD:$AD)","v":0},{"$f":"SUMIFS(Sheet1!S71_OriginalBudAmnt,Sheet1!S71_SA34eCode,$AC:$AC,Sheet1!S71_A5CapexCode,$AD:$AD)","v":0},{"$f":"SUMIFS(Sheet1!S71_AdjustmentBudAmnt,Sheet1!S71_SA34eCode,$AC:$AC,Sheet1!S71_A5CapexCode,$AD:$AD)","v":0},{"$f":"SUMIFS(Sheet1!S71_AdjustmentBudAmnt,Sheet1!S71_SA34eCode,$AC:$AC,Sheet1!S71_A5CapexCode,$AD:$AD)","v":0},{"$f":"SUMIFS(Sheet1!S71_ASBudgetAmount,Sheet1!S71_SA34eCode,$AC:$AC,Sheet1!S71_A5CapexCode,$AD:$AD)","v":0},{"$f":"SUMIFS(Sheet1!S71_OY1BudgetAmount,Sheet1!S71_SA34eCode,$AC:$AC,Sheet1!S71_A5CapexCode,$AD:$AD)","v":0},{"$f":"SUMIFS(Sheet1!S71_OY2BudgetAmount,Sheet1!S71_SA34eCode,$AC:$AC,Sheet1!S71_A5CapexCode,$AD:$AD)","v":0},null,null,null,null,null,null,null,null,null,null,null,null,null,null,null,null,null,"1130","CE"]
["Unimproved Property",null,{"$f":"SUMIFS(Sheet1!S71_PPPYearAmount,Sheet1!S71_SA34eCode,$AC:$AC,Sheet1!S71_A5CapexCode,$AD:$AD)","v":0},{"$f":"SUMIFS(Sheet1!S71_PPYearAmount,Sheet1!S71_SA34eCode,$AC:$AC,Sheet1!S71_A5CapexCode,$AD:$AD)","v":0},{"$f":"SUMIFS(Sheet1!S71_PYearAmount,Sheet1!S71_SA34eCode,$AC:$AC,Sheet1!S71_A5CapexCode,$AD:$AD)","v":0},{"$f":"SUMIFS(Sheet1!S71_OriginalBudAmnt,Sheet1!S71_SA34eCode,$AC:$AC,Sheet1!S71_A5CapexCode,$AD:$AD)","v":0},{"$f":"SUMIFS(Sheet1!S71_AdjustmentBudAmnt,Sheet1!S71_SA34eCode,$AC:$AC,Sheet1!S71_A5CapexCode,$AD:$AD)","v":0},{"$f":"SUMIFS(Sheet1!S71_AdjustmentBudAmnt,Sheet1!S71_SA34eCode,$AC:$AC,Sheet1!S71_A5CapexCode,$AD:$AD)","v":0},{"$f":"SUMIFS(Sheet1!S71_ASBudgetAmount,Sheet1!S71_SA34eCode,$AC:$AC,Sheet1!S71_A5CapexCode,$AD:$AD)","v":0},{"$f":"SUMIFS(Sheet1!S71_OY1BudgetAmount,Sheet1!S71_SA34eCode,$AC:$AC,Sheet1!S71_A5CapexCode,$AD:$AD)","v":0},{"$f":"SUMIFS(Sheet1!S71_OY2BudgetAmount,Sheet1!S71_SA34eCode,$AC:$AC,Sheet1!S71_A5CapexCode,$AD:$AD)","v":0},null,null,null,null,null,null,null,null,null,null,null,null,null,null,null,null,null,"1140","CE"]
["Non-revenue Generating",null,{"$f":"SUM(C115:C116)","v":0},{"$f":"SUM(D115:D116)","v":0},0,0,0,0,0,0,0,null,null,null,null,null,null,null,null,null,null,null,null,null,null,null,null,null,null,"CE"]
["Improved Property",null,{"$f":"SUMIFS(Sheet1!S71_PPPYearAmount,Sheet1!S71_SA34eCode,$AC:$AC,Sheet1!S71_A5CapexCode,$AD:$AD)","v":0},{"$f":"SUMIFS(Sheet1!S71_PPYearAmount,Sheet1!S71_SA34eCode,$AC:$AC,Sheet1!S71_A5CapexCode,$AD:$AD)","v":0},{"$f":"SUMIFS(Sheet1!S71_PYearAmount,Sheet1!S71_SA34eCode,$AC:$AC,Sheet1!S71_A5CapexCode,$AD:$AD)","v":0},{"$f":"SUMIFS(Sheet1!S71_OriginalBudAmnt,Sheet1!S71_SA34eCode,$AC:$AC,Sheet1!S71_A5CapexCode,$AD:$AD)","v":0},{"$f":"SUMIFS(Sheet1!S71_AdjustmentBudAmnt,Sheet1!S71_SA34eCode,$AC:$AC,Sheet1!S71_A5CapexCode,$AD:$AD)","v":0},{"$f":"SUMIFS(Sheet1!S71_AdjustmentBudAmnt,Sheet1!S71_SA34eCode,$AC:$AC,Sheet1!S71_A5CapexCode,$AD:$AD)","v":0},{"$f":"SUMIFS(Sheet1!S71_ASBudgetAmount,Sheet1!S71_SA34eCode,$AC:$AC,Sheet1!S71_A5CapexCode,$AD:$AD)","v":0},{"$f":"SUMIFS(Sheet1!S71_OY1BudgetAmount,Sheet1!S71_SA34eCode,$AC:$AC,Sheet1!S71_A5CapexCode,$AD:$AD)","v":0},{"$f":"SUMIFS(Sheet1!S71_OY2BudgetAmount,Sheet1!S71_SA34eCode,$AC:$AC,Sheet1!S71_A5CapexCode,$AD:$AD)","v":0},null,null,null,null,null,null,null,null,null,null,null,null,null,null,null,null,null,"1160","CE"]
["Unimproved Property",null,{"$f":"SUMIFS(Sheet1!S71_PPPYearAmount,Sheet1!S71_SA34eCode,$AC:$AC,Sheet1!S71_A5CapexCode,$AD:$AD)","v":0},{"$f":"SUMIFS(Sheet1!S71_PPYearAmount,Sheet1!S71_SA34eCode,$AC:$AC,Sheet1!S71_A5CapexCode,$AD:$AD)","v":0},{"$f":"SUMIFS(Sheet1!S71_PYearAmount,Sheet1!S71_SA34eCode,$AC:$AC,Sheet1!S71_A5CapexCode,$AD:$AD)","v":0},{"$f":"SUMIFS(Sheet1!S71_OriginalBudAmnt,Sheet1!S71_SA34eCode,$AC:$AC,Sheet1!S71_A5CapexCode,$AD:$AD)","v":0},{"$f":"SUMIFS(Sheet1!S71_AdjustmentBudAmnt,Sheet1!S71_SA34eCode,$AC:$AC,Sheet1!S71_A5CapexCode,$AD:$AD)","v":0},{"$f":"SUMIFS(Sheet1!S71_AdjustmentBudAmnt,Sheet1!S71_SA34eCode,$AC:$AC,Sheet1!S71_A5CapexCode,$AD:$AD)","v":0},{"$f":"SUMIFS(Sheet1!S71_ASBudgetAmount,Sheet1!S71_SA34eCode,$AC:$AC,Sheet1!S71_A5CapexCode,$AD:$AD)","v":0},{"$f":"SUMIFS(Sheet1!S71_OY1BudgetAmount,Sheet1!S71_SA34eCode,$AC:$AC,Sheet1!S71_A5CapexCode,$AD:$AD)","v":0},{"$f":"SUMIFS(Sheet1!S71_OY2BudgetAmount,Sheet1!S71_SA34eCode,$AC:$AC,Sheet1!S71_A5CapexCode,$AD:$AD)","v":0},null,null,null,null,null,null,null,null,null,null,null,null,null,null,null,null,null,"1170","CE"]
[]
["Other assets",null,{"$f":"+C119+C131","v":0},{"$f":"+D119+D131","v":0},0,0,0,0,0,0,0]
["Operational Buildings",null,{"$f":"SUM(C120:C130)","v":0},{"$f":"SUM(D120:D130)","v":0},0,0,0,0,0,0,0]
["Municipal Offices",null,{"$f":"SUMIFS(Sheet1!S71_PPPYearAmount,Sheet1!S71_SA34eCode,$AC:$AC,Sheet1!S71_A5CapexCode,$AD:$AD)","v":0},{"$f":"SUMIFS(Sheet1!S71_PPYearAmount,Sheet1!S71_SA34eCode,$AC:$AC,Sheet1!S71_A5CapexCode,$AD:$AD)","v":0},{"$f":"SUMIFS(Sheet1!S71_PYearAmount,Sheet1!S71_SA34eCode,$AC:$AC,Sheet1!S71_A5CapexCode,$AD:$AD)","v":0},{"$f":"SUMIFS(Sheet1!S71_OriginalBudAmnt,Sheet1!S71_SA34eCode,$AC:$AC,Sheet1!S71_A5CapexCode,$AD:$AD)","v":0},{"$f":"SUMIFS(Sheet1!S71_AdjustmentBudAmnt,Sheet1!S71_SA34eCode,$AC:$AC,Sheet1!S71_A5CapexCode,$AD:$AD)","v":0},{"$f":"SUMIFS(Sheet1!S71_AdjustmentBudAmnt,Sheet1!S71_SA34eCode,$AC:$AC,Sheet1!S71_A5CapexCode,$AD:$AD)","v":0},{"$f":"SUMIFS(Sheet1!S71_ASBudgetAmount,Sheet1!S71_SA34eCode,$AC:$AC,Sheet1!S71_A5CapexCode,$AD:$AD)","v":0},{"$f":"SUMIFS(Sheet1!S71_OY1BudgetAmount,Sheet1!S71_SA34eCode,$AC:$AC,Sheet1!S71_A5CapexCode,$AD:$AD)","v":0},{"$f":"SUMIFS(Sheet1!S71_OY2BudgetAmount,Sheet1!S71_SA34eCode,$AC:$AC,Sheet1!S71_A5CapexCode,$AD:$AD)","v":0},null,null,null,null,null,null,null,null,null,null,null,null,null,null,null,null,null,"1200","CE"]
["Pay/Enquiry Points",null,{"$f":"SUMIFS(Sheet1!S71_PPPYearAmount,Sheet1!S71_SA34eCode,$AC:$AC,Sheet1!S71_A5CapexCode,$AD:$AD)","v":0},{"$f":"SUMIFS(Sheet1!S71_PPYearAmount,Sheet1!S71_SA34eCode,$AC:$AC,Sheet1!S71_A5CapexCode,$AD:$AD)","v":0},{"$f":"SUMIFS(Sheet1!S71_PYearAmount,Sheet1!S71_SA34eCode,$AC:$AC,Sheet1!S71_A5CapexCode,$AD:$AD)","v":0},{"$f":"SUMIFS(Sheet1!S71_OriginalBudAmnt,Sheet1!S71_SA34eCode,$AC:$AC,Sheet1!S71_A5CapexCode,$AD:$AD)","v":0},{"$f":"SUMIFS(Sheet1!S71_AdjustmentBudAmnt,Sheet1!S71_SA34eCode,$AC:$AC,Sheet1!S71_A5CapexCode,$AD:$AD)","v":0},{"$f":"SUMIFS(Sheet1!S71_AdjustmentBudAmnt,Sheet1!S71_SA34eCode,$AC:$AC,Sheet1!S71_A5CapexCode,$AD:$AD)","v":0},{"$f":"SUMIFS(Sheet1!S71_ASBudgetAmount,Sheet1!S71_SA34eCode,$AC:$AC,Sheet1!S71_A5CapexCode,$AD:$AD)","v":0},{"$f":"SUMIFS(Sheet1!S71_OY1BudgetAmount,Sheet1!S71_SA34eCode,$AC:$AC,Sheet1!S71_A5CapexCode,$AD:$AD)","v":0},{"$f":"SUMIFS(Sheet1!S71_OY2BudgetAmount,Sheet1!S71_SA34eCode,$AC:$AC,Sheet1!S71_A5CapexCode,$AD:$AD)","v":0},null,null,null,null,null,null,null,null,null,null,null,null,null,null,null,null,null,"1210","CE"]
["Building Plan Offices",null,{"$f":"SUMIFS(Sheet1!S71_PPPYearAmount,Sheet1!S71_SA34eCode,$AC:$AC,Sheet1!S71_A5CapexCode,$AD:$AD)","v":0},{"$f":"SUMIFS(Sheet1!S71_PPYearAmount,Sheet1!S71_SA34eCode,$AC:$AC,Sheet1!S71_A5CapexCode,$AD:$AD)","v":0},{"$f":"SUMIFS(Sheet1!S71_PYearAmount,Sheet1!S71_SA34eCode,$AC:$AC,Sheet1!S71_A5CapexCode,$AD:$AD)","v":0},{"$f":"SUMIFS(Sheet1!S71_OriginalBudAmnt,Sheet1!S71_SA34eCode,$AC:$AC,Sheet1!S71_A5CapexCode,$AD:$AD)","v":0},{"$f":"SUMIFS(Sheet1!S71_AdjustmentBudAmnt,Sheet1!S71_SA34eCode,$AC:$AC,Sheet1!S71_A5CapexCode,$AD:$AD)","v":0},{"$f":"SUMIFS(Sheet1!S71_AdjustmentBudAmnt,Sheet1!S71_SA34eCode,$AC:$AC,Sheet1!S71_A5CapexCode,$AD:$AD)","v":0},{"$f":"SUMIFS(Sheet1!S71_ASBudgetAmount,Sheet1!S71_SA34eCode,$AC:$AC,Sheet1!S71_A5CapexCode,$AD:$AD)","v":0},{"$f":"SUMIFS(Sheet1!S71_OY1BudgetAmount,Sheet1!S71_SA34eCode,$AC:$AC,Sheet1!S71_A5CapexCode,$AD:$AD)","v":0},{"$f":"SUMIFS(Sheet1!S71_OY2BudgetAmount,Sheet1!S71_SA34eCode,$AC:$AC,Sheet1!S71_A5CapexCode,$AD:$AD)","v":0},null,null,null,null,null,null,null,null,null,null,null,null,null,null,null,null,null,"1220","CE"]
["Workshops",null,{"$f":"SUMIFS(Sheet1!S71_PPPYearAmount,Sheet1!S71_SA34eCode,$AC:$AC,Sheet1!S71_A5CapexCode,$AD:$AD)","v":0},{"$f":"SUMIFS(Sheet1!S71_PPYearAmount,Sheet1!S71_SA34eCode,$AC:$AC,Sheet1!S71_A5CapexCode,$AD:$AD)","v":0},{"$f":"SUMIFS(Sheet1!S71_PYearAmount,Sheet1!S71_SA34eCode,$AC:$AC,Sheet1!S71_A5CapexCode,$AD:$AD)","v":0},{"$f":"SUMIFS(Sheet1!S71_OriginalBudAmnt,Sheet1!S71_SA34eCode,$AC:$AC,Sheet1!S71_A5CapexCode,$AD:$AD)","v":0},{"$f":"SUMIFS(Sheet1!S71_AdjustmentBudAmnt,Sheet1!S71_SA34eCode,$AC:$AC,Sheet1!S71_A5CapexCode,$AD:$AD)","v":0},{"$f":"SUMIFS(Sheet1!S71_AdjustmentBudAmnt,Sheet1!S71_SA34eCode,$AC:$AC,Sheet1!S71_A5CapexCode,$AD:$AD)","v":0},{"$f":"SUMIFS(Sheet1!S71_ASBudgetAmount,Sheet1!S71_SA34eCode,$AC:$AC,Sheet1!S71_A5CapexCode,$AD:$AD)","v":0},{"$f":"SUMIFS(Sheet1!S71_OY1BudgetAmount,Sheet1!S71_SA34eCode,$AC:$AC,Sheet1!S71_A5CapexCode,$AD:$AD)","v":0},{"$f":"SUMIFS(Sheet1!S71_OY2BudgetAmount,Sheet1!S71_SA34eCode,$AC:$AC,Sheet1!S71_A5CapexCode,$AD:$AD)","v":0},null,null,null,null,null,null,null,null,null,null,null,null,null,null,null,null,null,"1230","CE"]
["Yards",null,{"$f":"SUMIFS(Sheet1!S71_PPPYearAmount,Sheet1!S71_SA34eCode,$AC:$AC,Sheet1!S71_A5CapexCode,$AD:$AD)","v":0},{"$f":"SUMIFS(Sheet1!S71_PPYearAmount,Sheet1!S71_SA34eCode,$AC:$AC,Sheet1!S71_A5CapexCode,$AD:$AD)","v":0},{"$f":"SUMIFS(Sheet1!S71_PYearAmount,Sheet1!S71_SA34eCode,$AC:$AC,Sheet1!S71_A5CapexCode,$AD:$AD)","v":0},{"$f":"SUMIFS(Sheet1!S71_OriginalBudAmnt,Sheet1!S71_SA34eCode,$AC:$AC,Sheet1!S71_A5CapexCode,$AD:$AD)","v":0},{"$f":"SUMIFS(Sheet1!S71_AdjustmentBudAmnt,Sheet1!S71_SA34eCode,$AC:$AC,Sheet1!S71_A5CapexCode,$AD:$AD)","v":0},{"$f":"SUMIFS(Sheet1!S71_AdjustmentBudAmnt,Sheet1!S71_SA34eCode,$AC:$AC,Sheet1!S71_A5CapexCode,$AD:$AD)","v":0},{"$f":"SUMIFS(Sheet1!S71_ASBudgetAmount,Sheet1!S71_SA34eCode,$AC:$AC,Sheet1!S71_A5CapexCode,$AD:$AD)","v":0},{"$f":"SUMIFS(Sheet1!S71_OY1BudgetAmount,Sheet1!S71_SA34eCode,$AC:$AC,Sheet1!S71_A5CapexCode,$AD:$AD)","v":0},{"$f":"SUMIFS(Sheet1!S71_OY2BudgetAmount,Sheet1!S71_SA34eCode,$AC:$AC,Sheet1!S71_A5CapexCode,$AD:$AD)","v":0},null,null,null,null,null,null,null,null,null,null,null,null,null,null,null,null,null,"1240","CE"]
["Stores",null,{"$f":"SUMIFS(Sheet1!S71_PPPYearAmount,Sheet1!S71_SA34eCode,$AC:$AC,Sheet1!S71_A5CapexCode,$AD:$AD)","v":0},{"$f":"SUMIFS(Sheet1!S71_PPYearAmount,Sheet1!S71_SA34eCode,$AC:$AC,Sheet1!S71_A5CapexCode,$AD:$AD)","v":0},{"$f":"SUMIFS(Sheet1!S71_PYearAmount,Sheet1!S71_SA34eCode,$AC:$AC,Sheet1!S71_A5CapexCode,$AD:$AD)","v":0},{"$f":"SUMIFS(Sheet1!S71_OriginalBudAmnt,Sheet1!S71_SA34eCode,$AC:$AC,Sheet1!S71_A5CapexCode,$AD:$AD)","v":0},{"$f":"SUMIFS(Sheet1!S71_AdjustmentBudAmnt,Sheet1!S71_SA34eCode,$AC:$AC,Sheet1!S71_A5CapexCode,$AD:$AD)","v":0},{"$f":"SUMIFS(Sheet1!S71_AdjustmentBudAmnt,Sheet1!S71_SA34eCode,$AC:$AC,Sheet1!S71_A5CapexCode,$AD:$AD)","v":0},{"$f":"SUMIFS(Sheet1!S71_ASBudgetAmount,Sheet1!S71_SA34eCode,$AC:$AC,Sheet1!S71_A5CapexCode,$AD:$AD)","v":0},{"$f":"SUMIFS(Sheet1!S71_OY1BudgetAmount,Sheet1!S71_SA34eCode,$AC:$AC,Sheet1!S71_A5CapexCode,$AD:$AD)","v":0},{"$f":"SUMIFS(Sheet1!S71_OY2BudgetAmount,Sheet1!S71_SA34eCode,$AC:$AC,Sheet1!S71_A5CapexCode,$AD:$AD)","v":0},null,null,null,null,null,null,null,null,null,null,null,null,null,null,null,null,null,"1250","CE"]
["Laboratories",null,{"$f":"SUMIFS(Sheet1!S71_PPPYearAmount,Sheet1!S71_SA34eCode,$AC:$AC,Sheet1!S71_A5CapexCode,$AD:$AD)","v":0},{"$f":"SUMIFS(Sheet1!S71_PPYearAmount,Sheet1!S71_SA34eCode,$AC:$AC,Sheet1!S71_A5CapexCode,$AD:$AD)","v":0},{"$f":"SUMIFS(Sheet1!S71_PYearAmount,Sheet1!S71_SA34eCode,$AC:$AC,Sheet1!S71_A5CapexCode,$AD:$AD)","v":0},{"$f":"SUMIFS(Sheet1!S71_OriginalBudAmnt,Sheet1!S71_SA34eCode,$AC:$AC,Sheet1!S71_A5CapexCode,$AD:$AD)","v":0},{"$f":"SUMIFS(Sheet1!S71_AdjustmentBudAmnt,Sheet1!S71_SA34eCode,$AC:$AC,Sheet1!S71_A5CapexCode,$AD:$AD)","v":0},{"$f":"SUMIFS(Sheet1!S71_AdjustmentBudAmnt,Sheet1!S71_SA34eCode,$AC:$AC,Sheet1!S71_A5CapexCode,$AD:$AD)","v":0},{"$f":"SUMIFS(Sheet1!S71_ASBudgetAmount,Sheet1!S71_SA34eCode,$AC:$AC,Sheet1!S71_A5CapexCode,$AD:$AD)","v":0},{"$f":"SUMIFS(Sheet1!S71_OY1BudgetAmount,Sheet1!S71_SA34eCode,$AC:$AC,Sheet1!S71_A5CapexCode,$AD:$AD)","v":0},{"$f":"SUMIFS(Sheet1!S71_OY2BudgetAmount,Sheet1!S71_SA34eCode,$AC:$AC,Sheet1!S71_A5CapexCode,$AD:$AD)","v":0},null,null,null,null,null,null,null,null,null,null,null,null,null,null,null,null,null,"1260","CE"]
["Training Centres",null,{"$f":"SUMIFS(Sheet1!S71_PPPYearAmount,Sheet1!S71_SA34eCode,$AC:$AC,Sheet1!S71_A5CapexCode,$AD:$AD)","v":0},{"$f":"SUMIFS(Sheet1!S71_PPYearAmount,Sheet1!S71_SA34eCode,$AC:$AC,Sheet1!S71_A5CapexCode,$AD:$AD)","v":0},{"$f":"SUMIFS(Sheet1!S71_PYearAmount,Sheet1!S71_SA34eCode,$AC:$AC,Sheet1!S71_A5CapexCode,$AD:$AD)","v":0},{"$f":"SUMIFS(Sheet1!S71_OriginalBudAmnt,Sheet1!S71_SA34eCode,$AC:$AC,Sheet1!S71_A5CapexCode,$AD:$AD)","v":0},{"$f":"SUMIFS(Sheet1!S71_AdjustmentBudAmnt,Sheet1!S71_SA34eCode,$AC:$AC,Sheet1!S71_A5CapexCode,$AD:$AD)","v":0},{"$f":"SUMIFS(Sheet1!S71_AdjustmentBudAmnt,Sheet1!S71_SA34eCode,$AC:$AC,Sheet1!S71_A5CapexCode,$AD:$AD)","v":0},{"$f":"SUMIFS(Sheet1!S71_ASBudgetAmount,Sheet1!S71_SA34eCode,$AC:$AC,Sheet1!S71_A5CapexCode,$AD:$AD)","v":0},{"$f":"SUMIFS(Sheet1!S71_OY1BudgetAmount,Sheet1!S71_SA34eCode,$AC:$AC,Sheet1!S71_A5CapexCode,$AD:$AD)","v":0},{"$f":"SUMIFS(Sheet1!S71_OY2BudgetAmount,Sheet1!S71_SA34eCode,$AC:$AC,Sheet1!S71_A5CapexCode,$AD:$AD)","v":0},null,null,null,null,null,null,null,null,null,null,null,null,null,null,null,null,null,"1270","CE"]
["Manufacturing Plant",null,{"$f":"SUMIFS(Sheet1!S71_PPPYearAmount,Sheet1!S71_SA34eCode,$AC:$AC,Sheet1!S71_A5CapexCode,$AD:$AD)","v":0},{"$f":"SUMIFS(Sheet1!S71_PPYearAmount,Sheet1!S71_SA34eCode,$AC:$AC,Sheet1!S71_A5CapexCode,$AD:$AD)","v":0},{"$f":"SUMIFS(Sheet1!S71_PYearAmount,Sheet1!S71_SA34eCode,$AC:$AC,Sheet1!S71_A5CapexCode,$AD:$AD)","v":0},{"$f":"SUMIFS(Sheet1!S71_OriginalBudAmnt,Sheet1!S71_SA34eCode,$AC:$AC,Sheet1!S71_A5CapexCode,$AD:$AD)","v":0},{"$f":"SUMIFS(Sheet1!S71_AdjustmentBudAmnt,Sheet1!S71_SA34eCode,$AC:$AC,Sheet1!S71_A5CapexCode,$AD:$AD)","v":0},{"$f":"SUMIFS(Sheet1!S71_AdjustmentBudAmnt,Sheet1!S71_SA34eCode,$AC:$AC,Sheet1!S71_A5CapexCode,$AD:$AD)","v":0},{"$f":"SUMIFS(Sheet1!S71_ASBudgetAmount,Sheet1!S71_SA34eCode,$AC:$AC,Sheet1!S71_A5CapexCode,$AD:$AD)","v":0},{"$f":"SUMIFS(Sheet1!S71_OY1BudgetAmount,Sheet1!S71_SA34eCode,$AC:$AC,Sheet1!S71_A5CapexCode,$AD:$AD)","v":0},{"$f":"SUMIFS(Sheet1!S71_OY2BudgetAmount,Sheet1!S71_SA34eCode,$AC:$AC,Sheet1!S71_A5CapexCode,$AD:$AD)","v":0},null,null,null,null,null,null,null,null,null,null,null,null,null,null,null,null,null,"1280","CE"]
["Depots",null,{"$f":"SUMIFS(Sheet1!S71_PPPYearAmount,Sheet1!S71_SA34eCode,$AC:$AC,Sheet1!S71_A5CapexCode,$AD:$AD)","v":0},{"$f":"SUMIFS(Sheet1!S71_PPYearAmount,Sheet1!S71_SA34eCode,$AC:$AC,Sheet1!S71_A5CapexCode,$AD:$AD)","v":0},{"$f":"SUMIFS(Sheet1!S71_PYearAmount,Sheet1!S71_SA34eCode,$AC:$AC,Sheet1!S71_A5CapexCode,$AD:$AD)","v":0},{"$f":"SUMIFS(Sheet1!S71_OriginalBudAmnt,Sheet1!S71_SA34eCode,$AC:$AC,Sheet1!S71_A5CapexCode,$AD:$AD)","v":0},{"$f":"SUMIFS(Sheet1!S71_AdjustmentBudAmnt,Sheet1!S71_SA34eCode,$AC:$AC,Sheet1!S71_A5CapexCode,$AD:$AD)","v":0},{"$f":"SUMIFS(Sheet1!S71_AdjustmentBudAmnt,Sheet1!S71_SA34eCode,$AC:$AC,Sheet1!S71_A5CapexCode,$AD:$AD)","v":0},{"$f":"SUMIFS(Sheet1!S71_ASBudgetAmount,Sheet1!S71_SA34eCode,$AC:$AC,Sheet1!S71_A5CapexCode,$AD:$AD)","v":0},{"$f":"SUMIFS(Sheet1!S71_OY1BudgetAmount,Sheet1!S71_SA34eCode,$AC:$AC,Sheet1!S71_A5CapexCode,$AD:$AD)","v":0},{"$f":"SUMIFS(Sheet1!S71_OY2BudgetAmount,Sheet1!S71_SA34eCode,$AC:$AC,Sheet1!S71_A5CapexCode,$AD:$AD)","v":0},null,null,null,null,null,null,null,null,null,null,null,null,null,null,null,null,null,"1290","CE"]
["Capital Spares",null,{"$f":"SUMIFS(Sheet1!S71_PPPYearAmount,Sheet1!S71_SA34eCode,$AC:$AC,Sheet1!S71_A5CapexCode,$AD:$AD)","v":0},{"$f":"SUMIFS(Sheet1!S71_PPYearAmount,Sheet1!S71_SA34eCode,$AC:$AC,Sheet1!S71_A5CapexCode,$AD:$AD)","v":0},{"$f":"SUMIFS(Sheet1!S71_PYearAmount,Sheet1!S71_SA34eCode,$AC:$AC,Sheet1!S71_A5CapexCode,$AD:$AD)","v":0},{"$f":"SUMIFS(Sheet1!S71_OriginalBudAmnt,Sheet1!S71_SA34eCode,$AC:$AC,Sheet1!S71_A5CapexCode,$AD:$AD)","v":0},{"$f":"SUMIFS(Sheet1!S71_AdjustmentBudAmnt,Sheet1!S71_SA34eCode,$AC:$AC,Sheet1!S71_A5CapexCode,$AD:$AD)","v":0},{"$f":"SUMIFS(Sheet1!S71_AdjustmentBudAmnt,Sheet1!S71_SA34eCode,$AC:$AC,Sheet1!S71_A5CapexCode,$AD:$AD)","v":0},{"$f":"SUMIFS(Sheet1!S71_ASBudgetAmount,Sheet1!S71_SA34eCode,$AC:$AC,Sheet1!S71_A5CapexCode,$AD:$AD)","v":0},{"$f":"SUMIFS(Sheet1!S71_OY1BudgetAmount,Sheet1!S71_SA34eCode,$AC:$AC,Sheet1!S71_A5CapexCode,$AD:$AD)","v":0},{"$f":"SUMIFS(Sheet1!S71_OY2BudgetAmount,Sheet1!S71_SA34eCode,$AC:$AC,Sheet1!S71_A5CapexCode,$AD:$AD)","v":0},null,null,null,null,null,null,null,null,null,null,null,null,null,null,null,null,null,"1300","CE"]
["Housing",null,{"$f":"SUM(C132:C134)","v":0},{"$f":"SUM(D132:D134)","v":0},0,0,0,0,0,0,0]
["Staff Housing",null,{"$f":"SUMIFS(Sheet1!S71_PPPYearAmount,Sheet1!S71_SA34eCode,$AC:$AC,Sheet1!S71_A5CapexCode,$AD:$AD)","v":0},{"$f":"SUMIFS(Sheet1!S71_PPYearAmount,Sheet1!S71_SA34eCode,$AC:$AC,Sheet1!S71_A5CapexCode,$AD:$AD)","v":0},{"$f":"SUMIFS(Sheet1!S71_PYearAmount,Sheet1!S71_SA34eCode,$AC:$AC,Sheet1!S71_A5CapexCode,$AD:$AD)","v":0},{"$f":"SUMIFS(Sheet1!S71_OriginalBudAmnt,Sheet1!S71_SA34eCode,$AC:$AC,Sheet1!S71_A5CapexCode,$AD:$AD)","v":0},{"$f":"SUMIFS(Sheet1!S71_AdjustmentBudAmnt,Sheet1!S71_SA34eCode,$AC:$AC,Sheet1!S71_A5CapexCode,$AD:$AD)","v":0},{"$f":"SUMIFS(Sheet1!S71_AdjustmentBudAmnt,Sheet1!S71_SA34eCode,$AC:$AC,Sheet1!S71_A5CapexCode,$AD:$AD)","v":0},{"$f":"SUMIFS(Sheet1!S71_ASBudgetAmount,Sheet1!S71_SA34eCode,$AC:$AC,Sheet1!S71_A5CapexCode,$AD:$AD)","v":0},{"$f":"SUMIFS(Sheet1!S71_OY1BudgetAmount,Sheet1!S71_SA34eCode,$AC:$AC,Sheet1!S71_A5CapexCode,$AD:$AD)","v":0},{"$f":"SUMIFS(Sheet1!S71_OY2BudgetAmount,Sheet1!S71_SA34eCode,$AC:$AC,Sheet1!S71_A5CapexCode,$AD:$AD)","v":0},null,null,null,null,null,null,null,null,null,null,null,null,null,null,null,null,null,"1320","CE"]
["Social Housing",null,{"$f":"SUMIFS(Sheet1!S71_PPPYearAmount,Sheet1!S71_SA34eCode,$AC:$AC,Sheet1!S71_A5CapexCode,$AD:$AD)","v":0},{"$f":"SUMIFS(Sheet1!S71_PPYearAmount,Sheet1!S71_SA34eCode,$AC:$AC,Sheet1!S71_A5CapexCode,$AD:$AD)","v":0},{"$f":"SUMIFS(Sheet1!S71_PYearAmount,Sheet1!S71_SA34eCode,$AC:$AC,Sheet1!S71_A5CapexCode,$AD:$AD)","v":0},{"$f":"SUMIFS(Sheet1!S71_OriginalBudAmnt,Sheet1!S71_SA34eCode,$AC:$AC,Sheet1!S71_A5CapexCode,$AD:$AD)","v":0},{"$f":"SUMIFS(Sheet1!S71_AdjustmentBudAmnt,Sheet1!S71_SA34eCode,$AC:$AC,Sheet1!S71_A5CapexCode,$AD:$AD)","v":0},{"$f":"SUMIFS(Sheet1!S71_AdjustmentBudAmnt,Sheet1!S71_SA34eCode,$AC:$AC,Sheet1!S71_A5CapexCode,$AD:$AD)","v":0},{"$f":"SUMIFS(Sheet1!S71_ASBudgetAmount,Sheet1!S71_SA34eCode,$AC:$AC,Sheet1!S71_A5CapexCode,$AD:$AD)","v":0},{"$f":"SUMIFS(Sheet1!S71_OY1BudgetAmount,Sheet1!S71_SA34eCode,$AC:$AC,Sheet1!S71_A5CapexCode,$AD:$AD)","v":0},{"$f":"SUMIFS(Sheet1!S71_OY2BudgetAmount,Sheet1!S71_SA34eCode,$AC:$AC,Sheet1!S71_A5CapexCode,$AD:$AD)","v":0},null,null,null,null,null,null,null,null,null,null,null,null,null,null,null,null,null,"1330","CE"]
["Capital Spares",null,{"$f":"SUMIFS(Sheet1!S71_PPPYearAmount,Sheet1!S71_SA34eCode,$AC:$AC,Sheet1!S71_A5CapexCode,$AD:$AD)","v":0},{"$f":"SUMIFS(Sheet1!S71_PPYearAmount,Sheet1!S71_SA34eCode,$AC:$AC,Sheet1!S71_A5CapexCode,$AD:$AD)","v":0},{"$f":"SUMIFS(Sheet1!S71_PYearAmount,Sheet1!S71_SA34eCode,$AC:$AC,Sheet1!S71_A5CapexCode,$AD:$AD)","v":0},{"$f":"SUMIFS(Sheet1!S71_OriginalBudAmnt,Sheet1!S71_SA34eCode,$AC:$AC,Sheet1!S71_A5CapexCode,$AD:$AD)","v":0},{"$f":"SUMIFS(Sheet1!S71_AdjustmentBudAmnt,Sheet1!S71_SA34eCode,$AC:$AC,Sheet1!S71_A5CapexCode,$AD:$AD)","v":0},{"$f":"SUMIFS(Sheet1!S71_AdjustmentBudAmnt,Sheet1!S71_SA34eCode,$AC:$AC,Sheet1!S71_A5CapexCode,$AD:$AD)","v":0},{"$f":"SUMIFS(Sheet1!S71_ASBudgetAmount,Sheet1!S71_SA34eCode,$AC:$AC,Sheet1!S71_A5CapexCode,$AD:$AD)","v":0},{"$f":"SUMIFS(Sheet1!S71_OY1BudgetAmount,Sheet1!S71_SA34eCode,$AC:$AC,Sheet1!S71_A5CapexCode,$AD:$AD)","v":0},{"$f":"SUMIFS(Sheet1!S71_OY2BudgetAmount,Sheet1!S71_SA34eCode,$AC:$AC,Sheet1!S71_A5CapexCode,$AD:$AD)","v":0},null,null,null,null,null,null,null,null,null,null,null,null,null,null,null,null,null,"1340","CE"]
[]
["Biological or Cultivated Assets",null,{"$f":"SUM(C137:C137)","v":0},0,0,0,0,0,0,0,0]
["Biological or Cultivated Assets",null,{"$f":"SUMIFS(Sheet1!S71_PPPYearAmount,Sheet1!S71_SA34eCode,$AC:$AC,Sheet1!S71_A5CapexCode,$AD:$AD)","v":0},{"$f":"SUMIFS(Sheet1!S71_PPYearAmount,Sheet1!S71_SA34eCode,$AC:$AC,Sheet1!S71_A5CapexCode,$AD:$AD)","v":0},{"$f":"SUMIFS(Sheet1!S71_PYearAmount,Sheet1!S71_SA34eCode,$AC:$AC,Sheet1!S71_A5CapexCode,$AD:$AD)","v":0},{"$f":"SUMIFS(Sheet1!S71_OriginalBudAmnt,Sheet1!S71_SA34eCode,$AC:$AC,Sheet1!S71_A5CapexCode,$AD:$AD)","v":0},{"$f":"SUMIFS(Sheet1!S71_AdjustmentBudAmnt,Sheet1!S71_SA34eCode,$AC:$AC,Sheet1!S71_A5CapexCode,$AD:$AD)","v":0},{"$f":"SUMIFS(Sheet1!S71_AdjustmentBudAmnt,Sheet1!S71_SA34eCode,$AC:$AC,Sheet1!S71_A5CapexCode,$AD:$AD)","v":0},{"$f":"SUMIFS(Sheet1!S71_ASBudgetAmount,Sheet1!S71_SA34eCode,$AC:$AC,Sheet1!S71_A5CapexCode,$AD:$AD)","v":0},{"$f":"SUMIFS(Sheet1!S71_OY1BudgetAmount,Sheet1!S71_SA34eCode,$AC:$AC,Sheet1!S71_A5CapexCode,$AD:$AD)","v":0},{"$f":"SUMIFS(Sheet1!S71_OY2BudgetAmount,Sheet1!S71_SA34eCode,$AC:$AC,Sheet1!S71_A5CapexCode,$AD:$AD)","v":0},null,null,null,null,null,null,null,null,null,null,null,null,null,null,null,null,null,"1360","CE"]
[]
["Intangible Assets",null,{"$f":"+C140+C141","v":0},{"$f":"+D140+D141","v":0},0,0,0,0,0,0,0]
["Servitudes",null,{"$f":"SUMIFS(Sheet1!S71_PPPYearAmount,Sheet1!S71_SA34eCode,$AC:$AC,Sheet1!S71_A5CapexCode,$AD:$AD)","v":0},{"$f":"SUMIFS(Sheet1!S71_PPYearAmount,Sheet1!S71_SA34eCode,$AC:$AC,Sheet1!S71_A5CapexCode,$AD:$AD)","v":0},{"$f":"SUMIFS(Sheet1!S71_PYearAmount,Sheet1!S71_SA34eCode,$AC:$AC,Sheet1!S71_A5CapexCode,$AD:$AD)","v":0},{"$f":"SUMIFS(Sheet1!S71_OriginalBudAmnt,Sheet1!S71_SA34eCode,$AC:$AC,Sheet1!S71_A5CapexCode,$AD:$AD)","v":0},{"$f":"SUMIFS(Sheet1!S71_AdjustmentBudAmnt,Sheet1!S71_SA34eCode,$AC:$AC,Sheet1!S71_A5CapexCode,$AD:$AD)","v":0},{"$f":"SUMIFS(Sheet1!S71_AdjustmentBudAmnt,Sheet1!S71_SA34eCode,$AC:$AC,Sheet1!S71_A5CapexCode,$AD:$AD)","v":0},{"$f":"SUMIFS(Sheet1!S71_ASBudgetAmount,Sheet1!S71_SA34eCode,$AC:$AC,Sheet1!S71_A5CapexCode,$AD:$AD)","v":0},{"$f":"SUMIFS(Sheet1!S71_OY1BudgetAmount,Sheet1!S71_SA34eCode,$AC:$AC,Sheet1!S71_A5CapexCode,$AD:$AD)","v":0},{"$f":"SUMIFS(Sheet1!S71_OY2BudgetAmount,Sheet1!S71_SA34eCode,$AC:$AC,Sheet1!S71_A5CapexCode,$AD:$AD)","v":0},null,null,null,null,null,null,null,null,null,null,null,null,null,null,null,null,null,"1380","CE"]
["Licences and Rights",null,{"$f":"SUM(C142:C147)","v":0},{"$f":"SUM(D142:D147)","v":0},0,0,0,0,0,0,0]
["Water Rights",null,{"$f":"SUMIFS(Sheet1!S71_PPPYearAmount,Sheet1!S71_SA34eCode,$AC:$AC,Sheet1!S71_A5CapexCode,$AD:$AD)","v":0},{"$f":"SUMIFS(Sheet1!S71_PPYearAmount,Sheet1!S71_SA34eCode,$AC:$AC,Sheet1!S71_A5CapexCode,$AD:$AD)","v":0},{"$f":"SUMIFS(Sheet1!S71_PYearAmount,Sheet1!S71_SA34eCode,$AC:$AC,Sheet1!S71_A5CapexCode,$AD:$AD)","v":0},{"$f":"SUMIFS(Sheet1!S71_OriginalBudAmnt,Sheet1!S71_SA34eCode,$AC:$AC,Sheet1!S71_A5CapexCode,$AD:$AD)","v":0},{"$f":"SUMIFS(Sheet1!S71_AdjustmentBudAmnt,Sheet1!S71_SA34eCode,$AC:$AC,Sheet1!S71_A5CapexCode,$AD:$AD)","v":0},{"$f":"SUMIFS(Sheet1!S71_AdjustmentBudAmnt,Sheet1!S71_SA34eCode,$AC:$AC,Sheet1!S71_A5CapexCode,$AD:$AD)","v":0},{"$f":"SUMIFS(Sheet1!S71_ASBudgetAmount,Sheet1!S71_SA34eCode,$AC:$AC,Sheet1!S71_A5CapexCode,$AD:$AD)","v":0},{"$f":"SUMIFS(Sheet1!S71_OY1BudgetAmount,Sheet1!S71_SA34eCode,$AC:$AC,Sheet1!S71_A5CapexCode,$AD:$AD)","v":0},{"$f":"SUMIFS(Sheet1!S71_OY2BudgetAmount,Sheet1!S71_SA34eCode,$AC:$AC,Sheet1!S71_A5CapexCode,$AD:$AD)","v":0},null,null,null,null,null,null,null,null,null,null,null,null,null,null,null,null,null,"1400","CE"]
["Effluent Licenses",null,{"$f":"SUMIFS(Sheet1!S71_PPPYearAmount,Sheet1!S71_SA34eCode,$AC:$AC,Sheet1!S71_A5CapexCode,$AD:$AD)","v":0},{"$f":"SUMIFS(Sheet1!S71_PPYearAmount,Sheet1!S71_SA34eCode,$AC:$AC,Sheet1!S71_A5CapexCode,$AD:$AD)","v":0},{"$f":"SUMIFS(Sheet1!S71_PYearAmount,Sheet1!S71_SA34eCode,$AC:$AC,Sheet1!S71_A5CapexCode,$AD:$AD)","v":0},{"$f":"SUMIFS(Sheet1!S71_OriginalBudAmnt,Sheet1!S71_SA34eCode,$AC:$AC,Sheet1!S71_A5CapexCode,$AD:$AD)","v":0},{"$f":"SUMIFS(Sheet1!S71_AdjustmentBudAmnt,Sheet1!S71_SA34eCode,$AC:$AC,Sheet1!S71_A5CapexCode,$AD:$AD)","v":0},{"$f":"SUMIFS(Sheet1!S71_AdjustmentBudAmnt,Sheet1!S71_SA34eCode,$AC:$AC,Sheet1!S71_A5CapexCode,$AD:$AD)","v":0},{"$f":"SUMIFS(Sheet1!S71_ASBudgetAmount,Sheet1!S71_SA34eCode,$AC:$AC,Sheet1!S71_A5CapexCode,$AD:$AD)","v":0},{"$f":"SUMIFS(Sheet1!S71_OY1BudgetAmount,Sheet1!S71_SA34eCode,$AC:$AC,Sheet1!S71_A5CapexCode,$AD:$AD)","v":0},{"$f":"SUMIFS(Sheet1!S71_OY2BudgetAmount,Sheet1!S71_SA34eCode,$AC:$AC,Sheet1!S71_A5CapexCode,$AD:$AD)","v":0},null,null,null,null,null,null,null,null,null,null,null,null,null,null,null,null,null,"1410","CE"]
["Solid Waste Licenses",null,{"$f":"SUMIFS(Sheet1!S71_PPPYearAmount,Sheet1!S71_SA34eCode,$AC:$AC,Sheet1!S71_A5CapexCode,$AD:$AD)","v":0},{"$f":"SUMIFS(Sheet1!S71_PPYearAmount,Sheet1!S71_SA34eCode,$AC:$AC,Sheet1!S71_A5CapexCode,$AD:$AD)","v":0},{"$f":"SUMIFS(Sheet1!S71_PYearAmount,Sheet1!S71_SA34eCode,$AC:$AC,Sheet1!S71_A5CapexCode,$AD:$AD)","v":0},{"$f":"SUMIFS(Sheet1!S71_OriginalBudAmnt,Sheet1!S71_SA34eCode,$AC:$AC,Sheet1!S71_A5CapexCode,$AD:$AD)","v":0},{"$f":"SUMIFS(Sheet1!S71_AdjustmentBudAmnt,Sheet1!S71_SA34eCode,$AC:$AC,Sheet1!S71_A5CapexCode,$AD:$AD)","v":0},{"$f":"SUMIFS(Sheet1!S71_AdjustmentBudAmnt,Sheet1!S71_SA34eCode,$AC:$AC,Sheet1!S71_A5CapexCode,$AD:$AD)","v":0},{"$f":"SUMIFS(Sheet1!S71_ASBudgetAmount,Sheet1!S71_SA34eCode,$AC:$AC,Sheet1!S71_A5CapexCode,$AD:$AD)","v":0},{"$f":"SUMIFS(Sheet1!S71_OY1BudgetAmount,Sheet1!S71_SA34eCode,$AC:$AC,Sheet1!S71_A5CapexCode,$AD:$AD)","v":0},{"$f":"SUMIFS(Sheet1!S71_OY2BudgetAmount,Sheet1!S71_SA34eCode,$AC:$AC,Sheet1!S71_A5CapexCode,$AD:$AD)","v":0},null,null,null,null,null,null,null,null,null,null,null,null,null,null,null,null,null,"1420","CE"]
["Computer Software and Applications",null,{"$f":"SUMIFS(Sheet1!S71_PPPYearAmount,Sheet1!S71_SA34eCode,$AC:$AC,Sheet1!S71_A5CapexCode,$AD:$AD)","v":0},{"$f":"SUMIFS(Sheet1!S71_PPYearAmount,Sheet1!S71_SA34eCode,$AC:$AC,Sheet1!S71_A5CapexCode,$AD:$AD)","v":0},{"$f":"SUMIFS(Sheet1!S71_PYearAmount,Sheet1!S71_SA34eCode,$AC:$AC,Sheet1!S71_A5CapexCode,$AD:$AD)","v":0},{"$f":"SUMIFS(Sheet1!S71_OriginalBudAmnt,Sheet1!S71_SA34eCode,$AC:$AC,Sheet1!S71_A5CapexCode,$AD:$AD)","v":0},{"$f":"SUMIFS(Sheet1!S71_AdjustmentBudAmnt,Sheet1!S71_SA34eCode,$AC:$AC,Sheet1!S71_A5CapexCode,$AD:$AD)","v":0},{"$f":"SUMIFS(Sheet1!S71_AdjustmentBudAmnt,Sheet1!S71_SA34eCode,$AC:$AC,Sheet1!S71_A5CapexCode,$AD:$AD)","v":0},{"$f":"SUMIFS(Sheet1!S71_ASBudgetAmount,Sheet1!S71_SA34eCode,$AC:$AC,Sheet1!S71_A5CapexCode,$AD:$AD)","v":0},{"$f":"SUMIFS(Sheet1!S71_OY1BudgetAmount,Sheet1!S71_SA34eCode,$AC:$AC,Sheet1!S71_A5CapexCode,$AD:$AD)","v":0},{"$f":"SUMIFS(Sheet1!S71_OY2BudgetAmount,Sheet1!S71_SA34eCode,$AC:$AC,Sheet1!S71_A5CapexCode,$AD:$AD)","v":0},null,null,null,null,null,null,null,null,null,null,null,null,null,null,null,null,null,"1430","CE"]
["Load Settlement Software Applications",null,{"$f":"SUMIFS(Sheet1!S71_PPPYearAmount,Sheet1!S71_SA34eCode,$AC:$AC,Sheet1!S71_A5CapexCode,$AD:$AD)","v":0},{"$f":"SUMIFS(Sheet1!S71_PPYearAmount,Sheet1!S71_SA34eCode,$AC:$AC,Sheet1!S71_A5CapexCode,$AD:$AD)","v":0},{"$f":"SUMIFS(Sheet1!S71_PYearAmount,Sheet1!S71_SA34eCode,$AC:$AC,Sheet1!S71_A5CapexCode,$AD:$AD)","v":0},{"$f":"SUMIFS(Sheet1!S71_OriginalBudAmnt,Sheet1!S71_SA34eCode,$AC:$AC,Sheet1!S71_A5CapexCode,$AD:$AD)","v":0},{"$f":"SUMIFS(Sheet1!S71_AdjustmentBudAmnt,Sheet1!S71_SA34eCode,$AC:$AC,Sheet1!S71_A5CapexCode,$AD:$AD)","v":0},{"$f":"SUMIFS(Sheet1!S71_AdjustmentBudAmnt,Sheet1!S71_SA34eCode,$AC:$AC,Sheet1!S71_A5CapexCode,$AD:$AD)","v":0},{"$f":"SUMIFS(Sheet1!S71_ASBudgetAmount,Sheet1!S71_SA34eCode,$AC:$AC,Sheet1!S71_A5CapexCode,$AD:$AD)","v":0},{"$f":"SUMIFS(Sheet1!S71_OY1BudgetAmount,Sheet1!S71_SA34eCode,$AC:$AC,Sheet1!S71_A5CapexCode,$AD:$AD)","v":0},{"$f":"SUMIFS(Sheet1!S71_OY2BudgetAmount,Sheet1!S71_SA34eCode,$AC:$AC,Sheet1!S71_A5CapexCode,$AD:$AD)","v":0},null,null,null,null,null,null,null,null,null,null,null,null,null,null,null,null,null,"1440","CE"]
["Unspecified",null,{"$f":"SUMIFS(Sheet1!S71_PPPYearAmount,Sheet1!S71_SA34eCode,$AC:$AC,Sheet1!S71_A5CapexCode,$AD:$AD)","v":0},{"$f":"SUMIFS(Sheet1!S71_PPYearAmount,Sheet1!S71_SA34eCode,$AC:$AC,Sheet1!S71_A5CapexCode,$AD:$AD)","v":0},{"$f":"SUMIFS(Sheet1!S71_PYearAmount,Sheet1!S71_SA34eCode,$AC:$AC,Sheet1!S71_A5CapexCode,$AD:$AD)","v":0},{"$f":"SUMIFS(Sheet1!S71_OriginalBudAmnt,Sheet1!S71_SA34eCode,$AC:$AC,Sheet1!S71_A5CapexCode,$AD:$AD)","v":0},{"$f":"SUMIFS(Sheet1!S71_AdjustmentBudAmnt,Sheet1!S71_SA34eCode,$AC:$AC,Sheet1!S71_A5CapexCode,$AD:$AD)","v":0},{"$f":"SUMIFS(Sheet1!S71_AdjustmentBudAmnt,Sheet1!S71_SA34eCode,$AC:$AC,Sheet1!S71_A5CapexCode,$AD:$AD)","v":0},{"$f":"SUMIFS(Sheet1!S71_ASBudgetAmount,Sheet1!S71_SA34eCode,$AC:$AC,Sheet1!S71_A5CapexCode,$AD:$AD)","v":0},{"$f":"SUMIFS(Sheet1!S71_OY1BudgetAmount,Sheet1!S71_SA34eCode,$AC:$AC,Sheet1!S71_A5CapexCode,$AD:$AD)","v":0},{"$f":"SUMIFS(Sheet1!S71_OY2BudgetAmount,Sheet1!S71_SA34eCode,$AC:$AC,Sheet1!S71_A5CapexCode,$AD:$AD)","v":0},null,null,null,null,null,null,null,null,null,null,null,null,null,null,null,null,null,"1450","CE"]
[]
["Computer Equipment",null,{"$f":"SUM(C150:C150)","v":0},0,0,0,0,0,0,0,0]
["Computer Equipment",null,{"$f":"SUMIFS(Sheet1!S71_PPPYearAmount,Sheet1!S71_SA34eCode,$AC:$AC,Sheet1!S71_A5CapexCode,$AD:$AD)","v":0},{"$f":"SUMIFS(Sheet1!S71_PPYearAmount,Sheet1!S71_SA34eCode,$AC:$AC,Sheet1!S71_A5CapexCode,$AD:$AD)","v":0},{"$f":"SUMIFS(Sheet1!S71_PYearAmount,Sheet1!S71_SA34eCode,$AC:$AC,Sheet1!S71_A5CapexCode,$AD:$AD)","v":0},{"$f":"SUMIFS(Sheet1!S71_OriginalBudAmnt,Sheet1!S71_SA34eCode,$AC:$AC,Sheet1!S71_A5CapexCode,$AD:$AD)","v":0},{"$f":"SUMIFS(Sheet1!S71_AdjustmentBudAmnt,Sheet1!S71_SA34eCode,$AC:$AC,Sheet1!S71_A5CapexCode,$AD:$AD)","v":0},{"$f":"SUMIFS(Sheet1!S71_AdjustmentBudAmnt,Sheet1!S71_SA34eCode,$AC:$AC,Sheet1!S71_A5CapexCode,$AD:$AD)","v":0},{"$f":"SUMIFS(Sheet1!S71_ASBudgetAmount,Sheet1!S71_SA34eCode,$AC:$AC,Sheet1!S71_A5CapexCode,$AD:$AD)","v":0},{"$f":"SUMIFS(Sheet1!S71_OY1BudgetAmount,Sheet1!S71_SA34eCode,$AC:$AC,Sheet1!S71_A5CapexCode,$AD:$AD)","v":0},{"$f":"SUMIFS(Sheet1!S71_OY2BudgetAmount,Sheet1!S71_SA34eCode,$AC:$AC,Sheet1!S71_A5CapexCode,$AD:$AD)","v":0},null,null,null,null,null,null,null,null,null,null,null,null,null,null,null,null,null,"1470","CE"]
[]
["Furniture and Office Equipment",null,{"$f":"SUM(C153:C153)","v":0},0,0,0,0,0,0,0,0]
["Furniture and Office Equipment",null,{"$f":"SUMIFS(Sheet1!S71_PPPYearAmount,Sheet1!S71_SA34eCode,$AC:$AC,Sheet1!S71_A5CapexCode,$AD:$AD)","v":0},{"$f":"SUMIFS(Sheet1!S71_PPYearAmount,Sheet1!S71_SA34eCode,$AC:$AC,Sheet1!S71_A5CapexCode,$AD:$AD)","v":0},{"$f":"SUMIFS(Sheet1!S71_PYearAmount,Sheet1!S71_SA34eCode,$AC:$AC,Sheet1!S71_A5CapexCode,$AD:$AD)","v":0},{"$f":"SUMIFS(Sheet1!S71_OriginalBudAmnt,Sheet1!S71_SA34eCode,$AC:$AC,Sheet1!S71_A5CapexCode,$AD:$AD)","v":0},{"$f":"SUMIFS(Sheet1!S71_AdjustmentBudAmnt,Sheet1!S71_SA34eCode,$AC:$AC,Sheet1!S71_A5CapexCode,$AD:$AD)","v":0},{"$f":"SUMIFS(Sheet1!S71_AdjustmentBudAmnt,Sheet1!S71_SA34eCode,$AC:$AC,Sheet1!S71_A5CapexCode,$AD:$AD)","v":0},{"$f":"SUMIFS(Sheet1!S71_ASBudgetAmount,Sheet1!S71_SA34eCode,$AC:$AC,Sheet1!S71_A5CapexCode,$AD:$AD)","v":0},{"$f":"SUMIFS(Sheet1!S71_OY1BudgetAmount,Sheet1!S71_SA34eCode,$AC:$AC,Sheet1!S71_A5CapexCode,$AD:$AD)","v":0},{"$f":"SUMIFS(Sheet1!S71_OY2BudgetAmount,Sheet1!S71_SA34eCode,$AC:$AC,Sheet1!S71_A5CapexCode,$AD:$AD)","v":0},null,null,null,null,null,null,null,null,null,null,null,null,null,null,null,null,null,"1490","CE"]
[]
["Machinery and Equipment",null,{"$f":"SUM(C156:C156)","v":0},0,0,0,0,0,0,0,0]
["Machinery and Equipment",null,{"$f":"SUMIFS(Sheet1!S71_PPPYearAmount,Sheet1!S71_SA34eCode,$AC:$AC,Sheet1!S71_A5CapexCode,$AD:$AD)","v":0},{"$f":"SUMIFS(Sheet1!S71_PPYearAmount,Sheet1!S71_SA34eCode,$AC:$AC,Sheet1!S71_A5CapexCode,$AD:$AD)","v":0},{"$f":"SUMIFS(Sheet1!S71_PYearAmount,Sheet1!S71_SA34eCode,$AC:$AC,Sheet1!S71_A5CapexCode,$AD:$AD)","v":0},{"$f":"SUMIFS(Sheet1!S71_OriginalBudAmnt,Sheet1!S71_SA34eCode,$AC:$AC,Sheet1!S71_A5CapexCode,$AD:$AD)","v":0},{"$f":"SUMIFS(Sheet1!S71_AdjustmentBudAmnt,Sheet1!S71_SA34eCode,$AC:$AC,Sheet1!S71_A5CapexCode,$AD:$AD)","v":0},{"$f":"SUMIFS(Sheet1!S71_AdjustmentBudAmnt,Sheet1!S71_SA34eCode,$AC:$AC,Sheet1!S71_A5CapexCode,$AD:$AD)","v":0},{"$f":"SUMIFS(Sheet1!S71_ASBudgetAmount,Sheet1!S71_SA34eCode,$AC:$AC,Sheet1!S71_A5CapexCode,$AD:$AD)","v":0},{"$f":"SUMIFS(Sheet1!S71_OY1BudgetAmount,Sheet1!S71_SA34eCode,$AC:$AC,Sheet1!S71_A5CapexCode,$AD:$AD)","v":0},{"$f":"SUMIFS(Sheet1!S71_OY2BudgetAmount,Sheet1!S71_SA34eCode,$AC:$AC,Sheet1!S71_A5CapexCode,$AD:$AD)","v":0},null,null,null,null,null,null,null,null,null,null,null,null,null,null,null,null,null,"1510","CE"]
[]
["Transport Assets",null,{"$f":"SUM(C159:C159)","v":0},0,0,0,0,0,0,0,0]
["Transport Assets",null,{"$f":"SUMIFS(Sheet1!S71_PPPYearAmount,Sheet1!S71_SA34eCode,$AC:$AC,Sheet1!S71_A5CapexCode,$AD:$AD)","v":0},{"$f":"SUMIFS(Sheet1!S71_PPYearAmount,Sheet1!S71_SA34eCode,$AC:$AC,Sheet1!S71_A5CapexCode,$AD:$AD)","v":0},{"$f":"SUMIFS(Sheet1!S71_PYearAmount,Sheet1!S71_SA34eCode,$AC:$AC,Sheet1!S71_A5CapexCode,$AD:$AD)","v":0},{"$f":"SUMIFS(Sheet1!S71_OriginalBudAmnt,Sheet1!S71_SA34eCode,$AC:$AC,Sheet1!S71_A5CapexCode,$AD:$AD)","v":0},{"$f":"SUMIFS(Sheet1!S71_AdjustmentBudAmnt,Sheet1!S71_SA34eCode,$AC:$AC,Sheet1!S71_A5CapexCode,$AD:$AD)","v":0},{"$f":"SUMIFS(Sheet1!S71_AdjustmentBudAmnt,Sheet1!S71_SA34eCode,$AC:$AC,Sheet1!S71_A5CapexCode,$AD:$AD)","v":0},{"$f":"SUMIFS(Sheet1!S71_ASBudgetAmount,Sheet1!S71_SA34eCode,$AC:$AC,Sheet1!S71_A5CapexCode,$AD:$AD)","v":0},{"$f":"SUMIFS(Sheet1!S71_OY1BudgetAmount,Sheet1!S71_SA34eCode,$AC:$AC,Sheet1!S71_A5CapexCode,$AD:$AD)","v":0},{"$f":"SUMIFS(Sheet1!S71_OY2BudgetAmount,Sheet1!S71_SA34eCode,$AC:$AC,Sheet1!S71_A5CapexCode,$AD:$AD)","v":0},null,null,null,null,null,null,null,null,null,null,null,null,null,null,null,null,null,"1530","CE"]
[]
["Land",null,{"$f":"SUM(C162:C162)","v":0},0,0,0,0,0,0,0,0]
["Land",null,{"$f":"SUMIFS(Sheet1!S71_PPPYearAmount,Sheet1!S71_SA34eCode,$AC:$AC,Sheet1!S71_A5CapexCode,$AD:$AD)","v":0},{"$f":"SUMIFS(Sheet1!S71_PPYearAmount,Sheet1!S71_SA34eCode,$AC:$AC,Sheet1!S71_A5CapexCode,$AD:$AD)","v":0},{"$f":"SUMIFS(Sheet1!S71_PYearAmount,Sheet1!S71_SA34eCode,$AC:$AC,Sheet1!S71_A5CapexCode,$AD:$AD)","v":0},{"$f":"SUMIFS(Sheet1!S71_OriginalBudAmnt,Sheet1!S71_SA34eCode,$AC:$AC,Sheet1!S71_A5CapexCode,$AD:$AD)","v":0},{"$f":"SUMIFS(Sheet1!S71_AdjustmentBudAmnt,Sheet1!S71_SA34eCode,$AC:$AC,Sheet1!S71_A5CapexCode,$AD:$AD)","v":0},{"$f":"SUMIFS(Sheet1!S71_AdjustmentBudAmnt,Sheet1!S71_SA34eCode,$AC:$AC,Sheet1!S71_A5CapexCode,$AD:$AD)","v":0},{"$f":"SUMIFS(Sheet1!S71_ASBudgetAmount,Sheet1!S71_SA34eCode,$AC:$AC,Sheet1!S71_A5CapexCode,$AD:$AD)","v":0},{"$f":"SUMIFS(Sheet1!S71_OY1BudgetAmount,Sheet1!S71_SA34eCode,$AC:$AC,Sheet1!S71_A5CapexCode,$AD:$AD)","v":0},{"$f":"SUMIFS(Sheet1!S71_OY2BudgetAmount,Sheet1!S71_SA34eCode,$AC:$AC,Sheet1!S71_A5CapexCode,$AD:$AD)","v":0},null,null,null,null,null,null,null,null,null,null,null,null,null,null,null,null,null,"1550","CE"]
[]
["Zoo's, Marine and Non-biological Animals",null,{"$f":"SUM(C165:C165)","v":0},0,0,0,0,0,0,0,0]
["Zoo's, Marine and Non-biological Animals",null,{"$f":"SUMIFS(Sheet1!S71_PPPYearAmount,Sheet1!S71_SA34eCode,$AC:$AC,Sheet1!S71_A5CapexCode,$AD:$AD)","v":0},{"$f":"SUMIFS(Sheet1!S71_PPYearAmount,Sheet1!S71_SA34eCode,$AC:$AC,Sheet1!S71_A5CapexCode,$AD:$AD)","v":0},{"$f":"SUMIFS(Sheet1!S71_PYearAmount,Sheet1!S71_SA34eCode,$AC:$AC,Sheet1!S71_A5CapexCode,$AD:$AD)","v":0},{"$f":"SUMIFS(Sheet1!S71_OriginalBudAmnt,Sheet1!S71_SA34eCode,$AC:$AC,Sheet1!S71_A5CapexCode,$AD:$AD)","v":0},{"$f":"SUMIFS(Sheet1!S71_AdjustmentBudAmnt,Sheet1!S71_SA34eCode,$AC:$AC,Sheet1!S71_A5CapexCode,$AD:$AD)","v":0},{"$f":"SUMIFS(Sheet1!S71_AdjustmentBudAmnt,Sheet1!S71_SA34eCode,$AC:$AC,Sheet1!S71_A5CapexCode,$AD:$AD)","v":0},{"$f":"SUMIFS(Sheet1!S71_ASBudgetAmount,Sheet1!S71_SA34eCode,$AC:$AC,Sheet1!S71_A5CapexCode,$AD:$AD)","v":0},{"$f":"SUMIFS(Sheet1!S71_OY1BudgetAmount,Sheet1!S71_SA34eCode,$AC:$AC,Sheet1!S71_A5CapexCode,$AD:$AD)","v":0},{"$f":"SUMIFS(Sheet1!S71_OY2BudgetAmount,Sheet1!S71_SA34eCode,$AC:$AC,Sheet1!S71_A5CapexCode,$AD:$AD)","v":0},null,null,null,null,null,null,null,null,null,null,null,null,null,null,null,null,null,"1570","CE"]
[]
["Total Capital Expenditure on upgrading of existing assets ",1,{"$f":"C6+C74+C103+C110+C118+C136+C139+C149+C152+C155+C158+C161+C164","v":0},{"$f":"D6+D74+D103+D110+D118+D136+D139+D149+D152+D155+D158+D161+D164","v":0},0,0,0,0,0,0,0]
[]
["Upgrading of Existing Assets as % of total capex",null,{"$f":"IF(ISERROR(C167/'A9-Asset'!C67),0,(C167/'A9-Asset'!C67))","v":0},{"$f":"IF(ISERROR(D167/'A9-Asset'!D132),0,(D167/'A9-Asset'!D132))","v":0},{"$f":"IF(ISERROR(E167/'A9-Asset'!E132),0,(E167/'A9-Asset'!E132))","v":0},{"$f":"IF(ISERROR(F167/'A9-Asset'!F132),0,(F167/'A9-Asset'!F132))","v":0},{"$f":"IF(ISERROR(G167/'A9-Asset'!G132),0,(G167/'A9-Asset'!G132))","v":0},{"$f":"IF(ISERROR(H167/'A9-Asset'!H132),0,(H167/'A9-Asset'!H132))","v":0},{"$f":"IF(ISERROR(I167/'A9-Asset'!I132),0,(I167/'A9-Asset'!I132))","v":0},{"$f":"IF(ISERROR(J167/'A9-Asset'!J132),0,(J167/'A9-Asset'!J132))","v":0},{"$f":"IF(ISERROR(K167/'A9-Asset'!K132),0,(K167/'A9-Asset'!K132))","v":0}]
["Upgrading of Existing Assets as % of deprecn\"",null,{"$f":"IF(ISERROR(C167/'A9-Asset'!C168),0,(C167/'A9-Asset'!C168))","v":0},{"$f":"IF(ISERROR(D167/'A9-Asset'!D168),0,(D167/'A9-Asset'!D168))","v":0},{"$f":"IF(ISERROR(E167/'A9-Asset'!E168),0,(E167/'A9-Asset'!E168))","v":0},{"$f":"IF(ISERROR(F167/'A9-Asset'!F168),0,(F167/'A9-Asset'!F168))","v":0},{"$f":"IF(ISERROR(G167/'A9-Asset'!G168),0,(G167/'A9-Asset'!G168))","v":0},{"$f":"IF(ISERROR(H167/'A9-Asset'!H168),0,(H167/'A9-Asset'!H168))","v":0},{"$f":"IF(ISERROR(I167/'A9-Asset'!I168),0,(I167/'A9-Asset'!I168))","v":0},{"$f":"IF(ISERROR(J167/'A9-Asset'!J168),0,(J167/'A9-Asset'!J168))","v":0},{"$f":"IF(ISERROR(K167/'A9-Asset'!K168),0,(K167/'A9-Asset'!K168))","v":0}]
[{"$f":"head27a","v":"References"}]
["1.  Total Capital Expenditure  on upgrading of existing assets (SA34e) plus Total Capital Expenditure on new assets (SA34a)  plus Total Capital Expenditure  on renewal of existing assets (SA34b) must reconcile to total capital expenditure in Budgeted Capital Expenditure"]
[]
[]
["check balance",null,{"$f":"SUM(C167+SA34a!C167++SA34b!C167)-'A5-Capex'!C40","v":0},{"$f":"SUM(D167+SA34a!D167++SA34b!D167)-'A5-Capex'!D40","v":0},{"$f":"SUM(E167+SA34a!E167++SA34b!E167)-'A5-Capex'!E40","v":0},{"$f":"SUM(F167+SA34a!F167++SA34b!F167)-'A5-Capex'!F40","v":0},{"$f":"SUM(G167+SA34a!G167++SA34b!G167)-'A5-Capex'!G40","v":0},{"$f":"SUM(H167+SA34a!H167++SA34b!H167)-'A5-Capex'!H40","v":0},{"$f":"SUM(I167+SA34a!I167++SA34b!I167)-'A5-Capex'!J40","v":0},{"$f":"SUM(J167+SA34a!J167++SA34b!J167)-'A5-Capex'!K40","v":0},{"$f":"SUM(K167+SA34a!K167++SA34b!K167)-'A5-Capex'!L40","v":0}]

{"sheet":"SA35","index":69,"n_rows":59,"n_cols":9,"rows_kept":59,"cut":false,"hidden":false,"merged":[[1,5,1,8],[1,2,1,4]]}
[{"$f":"muni&\" - \"&TableA35","v":"DC16 Xhariep - Supporting Table SA35 Future financial implications of the capital budget"}]
[{"$f":"Vdesc","v":"Vote Description"},{"$f":"head27","v":"Ref"},{"$f":"Head3","v":"2021/22 Medium Term Revenue & Expenditure Framework"},null,null,"Forecasts"]
["R thousand",null,{"$f":"Head9","v":"Budget Year 2021/22"},{"$f":"Head10","v":"Budget Year +1 2022/23"},{"$f":"Head11","v":"Budget Year +2 2023/24"},{"$f":"Head12","v":"Forecast 2024/25"},{"$f":"Head13","v":"Forecast 2025/26"},{"$f":"Head14","v":"Forecast 2026/27"},{"$f":"Head48","v":"Present value"}]
["Capital expenditure",1]
[{"$f":"'A5-Capex'!A6","v":"Vote 1 - Executive and Council"},null,{"$f":"'A5-Capex'!J6+'A5-Capex'!J24","v":176000},{"$f":"'A5-Capex'!K6+'A5-Capex'!K24","v":21958},{"$f":"'A5-Capex'!L6+'A5-Capex'!L24","v":23144}]
[{"$f":"'A5-Capex'!A7","v":"Vote 2 - Finance and Administration"},null,{"$f":"'A5-Capex'!J7+'A5-Capex'!J25","v":310000},{"$f":"'A5-Capex'!K7+'A5-Capex'!K25","v":0},{"$f":"'A5-Capex'!L7+'A5-Capex'!L25","v":0}]
[{"$f":"'A5-Capex'!A8","v":"Vote 3 - Planning and Development"},null,{"$f":"'A5-Capex'!J8+'A5-Capex'!J26","v":0},{"$f":"'A5-Capex'!K8+'A5-Capex'!K26","v":0},{"$f":"'A5-Capex'!L8+'A5-Capex'!L26","v":0}]
[{"$f":"'A5-Capex'!A9","v":"Vote 4 - Community and Social Services"},null,{"$f":"'A5-Capex'!J9+'A5-Capex'!J27","v":0},{"$f":"'A5-Capex'!K9+'A5-Capex'!K27","v":0},{"$f":"'A5-Capex'!L9+'A5-Capex'!L27","v":0}]
[{"$f":"'A5-Capex'!A10","v":"Vote 5 - Environmental Protection"},null,{"$f":"'A5-Capex'!J10+'A5-Capex'!J28","v":0},{"$f":"'A5-Capex'!K10+'A5-Capex'!K28","v":0},{"$f":"'A5-Capex'!L10+'A5-Capex'!L28","v":0}]
[{"$f":"'A5-Capex'!A11","v":"Vote 6 - [NAME OF VOTE 6]"},null,{"$f":"'A5-Capex'!J11+'A5-Capex'!J29","v":0},{"$f":"'A5-Capex'!K11+'A5-Capex'!K29","v":0},{"$f":"'A5-Capex'!L11+'A5-Capex'!L29","v":0}]
[{"$f":"'A5-Capex'!A12","v":"Vote 7 - [NAME OF VOTE 7]"},null,{"$f":"'A5-Capex'!J12+'A5-Capex'!J30","v":0},{"$f":"'A5-Capex'!K12+'A5-Capex'!K30","v":0},{"$f":"'A5-Capex'!L12+'A5-Capex'!L30","v":0}]
[{"$f":"'A5-Capex'!A13","v":"Vote 8 - [NAME OF VOTE 8]"},null,{"$f":"'A5-Capex'!J13+'A5-Capex'!J31","v":0},{"$f":"'A5-Capex'!K13+'A5-Capex'!K31","v":0},{"$f":"'A5-Capex'!L13+'A5-Capex'!L31","v":0}]
[{"$f":"'A5-Capex'!A14","v":"Vote 9 - [NAME OF VOTE 9]"},null,{"$f":"'A5-Capex'!J14+'A5-Capex'!J32","v":0},{"$f":"'A5-Capex'!K14+'A5-Capex'!K32","v":0},{"$f":"'A5-Capex'!L14+'A5-Capex'!L32","v":0}]
[{"$f":"'A5-Capex'!A15","v":"Vote 10 - [NAME OF VOTE 10]"},null,{"$f":"'A5-Capex'!J15+'A5-Capex'!J33","v":0},{"$f":"'A5-Capex'!K15+'A5-Capex'!K33","v":0},{"$f":"'A5-Capex'!L15+'A5-Capex'!L33","v":0}]
[{"$f":"'A5-Capex'!A16","v":"Vote 11 - [NAME OF VOTE 11]"},null,{"$f":"'A5-Capex'!J16+'A5-Capex'!J34","v":0},{"$f":"'A5-Capex'!K16+'A5-Capex'!K34","v":0},{"$f":"'A5-Capex'!L16+'A5-Capex'!L34","v":0}]
[{"$f":"'A5-Capex'!A17","v":"Vote 12 - [NAME OF VOTE 12]"},null,{"$f":"'A5-Capex'!J17+'A5-Capex'!J35","v":0},{"$f":"'A5-Capex'!K17+'A5-Capex'!K35","v":0},{"$f":"'A5-Capex'!L17+'A5-Capex'!L35","v":0}]
[{"$f":"'A5-Capex'!A18","v":"Vote 13 - [NAME OF VOTE 13]"},null,{"$f":"'A5-Capex'!J18+'A5-Capex'!J36","v":0},{"$f":"'A5-Capex'!K18+'A5-Capex'!K36","v":0},{"$f":"'A5-Capex'!L18+'A5-Capex'!L36","v":0}]
[{"$f":"'A5-Capex'!A19","v":"Vote 14 - [NAME OF VOTE 14]"},null,{"$f":"'A5-Capex'!J19+'A5-Capex'!J37","v":0},{"$f":"'A5-Capex'!K19+'A5-Capex'!K37","v":0},{"$f":"'A5-Capex'!L19+'A5-Capex'!L37","v":0}]
[{"$f":"'A5-Capex'!A20","v":"Vote 15 - [NAME OF VOTE 15]"},null,{"$f":"'A5-Capex'!J20+'A5-Capex'!J38","v":0},{"$f":"'A5-Capex'!K20+'A5-Capex'!K38","v":0},{"$f":"'A5-Capex'!L20+'A5-Capex'!L38","v":0}]
["List entity summary if applicable"]
["Total Capital Expenditure ",null,{"$f":"SUM(C5:C20)","v":486000},{"$f":"SUM(D5:D20)","v":21958},23144,0,0,0,0]
[]
["Future operational costs by vote",2]
[{"$f":"A5","v":"Vote 1 - Executive and Council"}]
[{"$f":"A6","v":"Vote 2 - Finance and Administration"}]
["Vote 3 - Planning and Development"]
["Vote 4 - Community and Social Services"]
["Vote 5 - Environmental Protection"]
["Vote 6 - [NAME OF VOTE 6]"]
["Vote 7 - [NAME OF VOTE 7]"]
["Vote 8 - [NAME OF VOTE 8]"]
["Vote 9 - [NAME OF VOTE 9]"]
["Vote 10 - [NAME OF VOTE 10]"]
["Vote 11 - [NAME OF VOTE 11]"]
["Vote 12 - [NAME OF VOTE 12]"]
["Vote 13 - [NAME OF VOTE 13]"]
["Vote 14 - [NAME OF VOTE 14]"]
["Vote 15 - [NAME OF VOTE 15]"]
["List entity summary if applicable"]
["Total future operational costs",null,{"$f":"SUM(C24:C39)","v":0},{"$f":"SUM(D24:D39)","v":0},0,0,0,0,0]
[]
["Future revenue by source",3]
[{"$f":"'A4-FinPerf RE'!A5","v":"Property rates"}]
[{"$f":"'A4-FinPerf RE'!A6","v":"Service charges - electricity revenue"}]
[{"$f":"'A4-FinPerf RE'!A7","v":"Service charges - water revenue"}]
[{"$f":"'A4-FinPerf RE'!A8","v":"Service charges - sanitation revenue"}]
[{"$f":"'A4-FinPerf RE'!A9","v":"Service charges - refuse revenue"}]
[]
[{"$f":"'A4-FinPerf RE'!A11","v":"Rental of facilities and equipment"}]
["List other revenues sources if applicable"]
["List entity summary if applicable"]
["Total future revenue",null,{"$f":"SUM(C43:C47)+SUM(C49:C51)","v":0},{"$f":"SUM(D43:D47)+SUM(D49:D51)","v":0},0,0,0,0,0]
["Net Financial Implications",null,{"$f":"C21+C40-C52","v":486000},21958,23144,0,0,0,0]
[{"$f":"head27a","v":"References"}]
["1. Summarise the total capital cost until capital project is operational (MFMA s19(2)(a))"]
["2. Summary of future operational costs from when projects operational (present value until the end of each asset's useful life) (MFMA s19(2)(b))"]
["3. Summarise the future revenue from when projects are operational, including municipal tax and tariff implications, (present value until the end of asset's useful life)"]
[]
["check",null,{"$f":"C21-('A5-Capex'!J21+'A5-Capex'!J39)","v":0},{"$f":"D21-('A5-Capex'!K21+'A5-Capex'!K39)","v":0},{"$f":"E21-('A5-Capex'!L21+'A5-Capex'!L39)","v":0}]

{"sheet":"SA36","index":70,"n_rows":44,"n_cols":17,"rows_kept":44,"cut":false,"hidden":false,"merged":[[1,12,1,13],[1,14,1,16]]}
[{"$f":"muni&\" - \"&TableA36","v":"DC16 Xhariep - Supporting Table SA36 Detailed capital budget"}]
["R thousand",null,null,null,null,null,null,null,null,null,null,null,null,null,{"$f":"Head3","v":"2021/22 Medium Term Revenue & Expenditure Framework"}]
["Function","Project Description","Project Number","Type","MTSF Service Outcome","IUDF","Own Strategic Objectives","Asset Class","Asset Sub-Class","Ward Location","GPS Longitude","GPS Lattitude",{"$f":"Head5&\"    \"&Head1","v":"Audited Outcome    2019/20"},{"$f":"Head2 & \"        \"&Head8","v":"Current Year 2020/21        Full Year Forecast"},{"$f":"Head9","v":"Budget Year 2021/22"},{"$f":"Head10","v":"Budget Year +1 2022/23"},{"$f":"Head11","v":"Budget Year +2 2023/24"}]
["Parent municipality:"]
["List all capital projects grouped by Function"]
[]
["0f52d9e5-907f-4d9f-934f-57dc012524d6","Capex - Corporate Services","PC002002001004000000000000000000000000_00002","_","An efficient, effective and development-oriented public service","Governance","Facilitate infrastructure development in the entire district municipality","Computer Equipment","Computer Equipment","cc5e6147-ff75-483c-8c2e-61e72c4d41e8",35,23,177137.36,0,0,0,280000]
["0f52d9e5-907f-4d9f-934f-57dc012524d6","Capex - Corporate Services","PC002002001010000000000000000000000000_00001","_","An efficient, effective and development-oriented public service","Governance","Facilitate infrastructure development in the entire district municipality","Transport Assets","Transport Assets","cc5e6147-ff75-483c-8c2e-61e72c4d41e8",35,23,0,400000,0,0,0]
["0f52d9e5-907f-4d9f-934f-57dc012524d6","Capex - Corporate Services","PC002003005000000000000000000000000000_00001","_","An efficient, effective and development-oriented public service","Growth","Facilitate infrastructure development in the entire district municipality","Furniture and Office Equipment","Furniture and Office Equipment","cc5e6147-ff75-483c-8c2e-61e72c4d41e8",35,23,40908,0,0,0,0]
["67347610-1db2-421f-a89a-f87e772911eb","Capex - BTO","PC002002001003001001000000000000000000_00001","_","An efficient, effective and development-oriented public service","Governance","To accelerate institutional transformation","Operational Buildings","Municipal Offices","cc5e6147-ff75-483c-8c2e-61e72c4d41e8",35,23,53980,0,0,0,0]
["67347610-1db2-421f-a89a-f87e772911eb","Capex - BTO","PC002002001004000000000000000000000000_00004","_","An efficient, effective and development-oriented public service","Governance","To accelerate institutional transformation","Computer Equipment","Computer Equipment","cc5e6147-ff75-483c-8c2e-61e72c4d41e8",35,23,167296.24,220000,0,0,216000]
["67347610-1db2-421f-a89a-f87e772911eb","Capex - BTO","PC002002001005000000000000000000000000_00003","_","An efficient, effective and development-oriented public service","Governance","To accelerate institutional transformation","Furniture and Office Equipment","Furniture and Office Equipment","cc5e6147-ff75-483c-8c2e-61e72c4d41e8",35,23,74345.3,0,0,0,0]
["d322a6d8-8a77-4f3e-b409-e49df0b85989","Capex - Council","PC002002001005000000000000000000000000_00001","_","An efficient, effective and development-oriented public service","Governance","To accelerate institutional transformation","Furniture and Office Equipment","Furniture and Office Equipment","cc5e6147-ff75-483c-8c2e-61e72c4d41e8",35,23,0,352000,43916,46288,0]
["e38be026-aa91-4710-9bdc-3b0f3755cc1a","Capex - PSD","PC002002001004000000000000000000000000_00003","_","An efficient, effective and development-oriented public service","Governance","Facilitate infrastructure development in the entire district municipality","Computer Equipment","Computer Equipment","cc5e6147-ff75-483c-8c2e-61e72c4d41e8",35,23,97551.3,0,0,0,60000]
["f3333fef-376f-4d03-b158-f7050b66056d","Capex - MM","PC002002001004000000000000000000000000_00001","_","An efficient, effective and development-oriented public service","Governance","To accelerate institutional transformation","Computer Equipment","Computer Equipment","cc5e6147-ff75-483c-8c2e-61e72c4d41e8",35,23,0,0,0,0,100000]
["f3333fef-376f-4d03-b158-f7050b66056d","Capex - MM","PC002002001005000000000000000000000000_00002","_","An efficient, effective and development-oriented public service","Governance","To accelerate institutional transformation","Furniture and Office Equipment","Furniture and Office Equipment","cc5e6147-ff75-483c-8c2e-61e72c4d41e8",35,23,25747.919999999998,0,0,0,0]
[]
[]
[]
[]
[]
[]
["Parent Capital expenditure",null,null,null,null,null,null,null,null,null,null,null,{"$f":"SUM(M7:M22)","v":636966.12},{"$f":"SUM(N7:N22)","v":972000},{"$f":"SUM(O7:O22)","v":43916},{"$f":"SUM(P7:P22)","v":46288},{"$f":"SUM(Q7:Q22)","v":656000}]
[]
["Entities:"]
["List all capital projects grouped by Entity"]
[]
["Entity A"]
["Water project A"]
[]
["Entity B"]
["Electricity project B"]
[]
[]
[]
["Entity Capital expenditure",null,null,null,null,null,null,null,null,null,null,null,{"$f":"SUM(M28:M35)","v":0},{"$f":"SUM(N28:N35)","v":0},{"$f":"SUM(O28:O35)","v":0},{"$f":"SUM(P28:P35)","v":0},{"$f":"SUM(Q28:Q35)","v":0}]
["Total Capital expenditure",null,null,null,null,null,null,null,null,null,null,null,{"$f":"SUM(M7:M22)+SUM(M28:M35)","v":636966.12},{"$f":"SUM(N7:N22)+SUM(N28:N35)","v":972000},{"$f":"SUM(O7:O22)+SUM(O28:O35)","v":43916},{"$f":"SUM(P7:P22)+SUM(P28:P35)","v":46288},{"$f":"SUM(Q7:Q22)+SUM(Q28:Q35)","v":656000}]
[{"$f":"head27a","v":"References"}]
["Must reconcile with Budgeted Capital Expenditure"]
["Projects that fall above the threshold values applicable to the municipality as identified in regulation 13 of the Municipal Budget and Reporting Regulations must be listed individually. Other projects by Function"]
["Asset class as per table A9 and asset sub-class as per table SA34"]
["GPS coordinates correct to seconds. Provide a logical starting point on networked infrastructure."]
["Distinguish projects approved in terms of MFMA section 19(1)(b) and MRRR Regulation 13",null,null,null,null,null,null,null,null,null,null,"check",{"$f":"SUM(SA34a!E167+SA34b!E167+SA34e!E167)-'SA36'!M37","v":-318482.12},{"$f":"SUM(SA34a!H167+SA34b!H167+SA34e!H167)-'SA36'!N37","v":-644000},{"$f":"SUM(SA34a!I167+SA34b!I167+SA34e!I167)-'SA36'!O37","v":442084},{"$f":"SUM(SA34a!J167+SA34b!J167+SA34e!J167)-'SA36'!P37","v":-24330},{"$f":"SUM(SA34a!K167+SA34b!K167+SA34e!K167)-'SA36'!Q37","v":-632856}]
["Project Number consists of MSCOA Project Longcode and seq No (sample PC001002006002_00002)"]

{"sheet":"SA37","index":71,"n_rows":27,"n_cols":18,"rows_kept":27,"cut":false,"hidden":false,"merged":[[1,12,2,12],[1,13,1,14],[1,15,1,17]]}
[{"$f":"muni&\" - \"&TableA37","v":"DC16 Xhariep - Supporting Table SA37 Projects delayed from previous financial year/s"}]
["R thousand",null,null,null,null,null,null,null,null,null,null,null,{"$f":"Head47","v":"Previous target year to complete"},{"$f":"Head2","v":"Current Year 2020/21"},null,{"$f":"Head3","v":"2021/22 Medium Term Revenue & Expenditure Framework"}]
["Function","Project name","Project number","Type","MTSF Service Outcome","IUDF","Own Strategic Objectives","Asset Class","Asset Sub-Class","Ward Location","GPS Longitude","GPS Lattitude",null,{"$f":"Head6","v":"Original Budget"},{"$f":"Head8","v":"Full Year Forecast"},{"$f":"Head9","v":"Budget Year 2021/22"},{"$f":"Head10","v":"Budget Year +1 2022/23"},{"$f":"Head11","v":"Budget Year +2 2023/24"}]
["Parent municipality:"]
["List all capital projects grouped by Function"]
[]
["0f52d9e5-907f-4d9f-934f-57dc012524d6","Capex - Corporate Services","PC002002001004000000000000000000000000_00002","_","An efficient, effective and development-oriented public service","Governance","Facilitate infrastructure development in the entire district municipality","Computer Equipment","Computer Equipment","cc5e6147-ff75-483c-8c2e-61e72c4d41e8",35,23,708549.44,0,1120000,0,0]
["0f52d9e5-907f-4d9f-934f-57dc012524d6","Capex - Corporate Services","PC002002001010000000000000000000000000_00001","_","An efficient, effective and development-oriented public service","Governance","Facilitate infrastructure development in the entire district municipality","Transport Assets","Transport Assets","cc5e6147-ff75-483c-8c2e-61e72c4d41e8",35,23,0,1600000,0,0,0]
["0f52d9e5-907f-4d9f-934f-57dc012524d6","Capex - Corporate Services","PC002003005000000000000000000000000000_00001","_","An efficient, effective and development-oriented public service","Growth","Facilitate infrastructure development in the entire district municipality","Furniture and Office Equipment","Furniture and Office Equipment","cc5e6147-ff75-483c-8c2e-61e72c4d41e8",35,23,163632,0,0,0,0]
["67347610-1db2-421f-a89a-f87e772911eb","Capex - BTO","PC002002001003001001000000000000000000_00001","_","An efficient, effective and development-oriented public service","Governance","To accelerate institutional transformation","Operational Buildings","Municipal Offices","cc5e6147-ff75-483c-8c2e-61e72c4d41e8",35,23,215920,0,0,0,0]
["67347610-1db2-421f-a89a-f87e772911eb","Capex - BTO","PC002002001004000000000000000000000000_00004","_","An efficient, effective and development-oriented public service","Governance","To accelerate institutional transformation","Computer Equipment","Computer Equipment","cc5e6147-ff75-483c-8c2e-61e72c4d41e8",35,23,669184.96,880000,864000,0,0]
["67347610-1db2-421f-a89a-f87e772911eb","Capex - BTO","PC002002001005000000000000000000000000_00003","_","An efficient, effective and development-oriented public service","Governance","To accelerate institutional transformation","Furniture and Office Equipment","Furniture and Office Equipment","cc5e6147-ff75-483c-8c2e-61e72c4d41e8",35,23,297381.2,0,0,0,0]
["d322a6d8-8a77-4f3e-b409-e49df0b85989","Capex - Council","PC002002001005000000000000000000000000_00001","_","An efficient, effective and development-oriented public service","Governance","To accelerate institutional transformation","Furniture and Office Equipment","Furniture and Office Equipment","cc5e6147-ff75-483c-8c2e-61e72c4d41e8",35,23,0,1408000,0,175664,185152]
["e38be026-aa91-4710-9bdc-3b0f3755cc1a","Capex - PSD","PC002002001004000000000000000000000000_00003","_","An efficient, effective and development-oriented public service","Governance","Facilitate infrastructure development in the entire district municipality","Computer Equipment","Computer Equipment","cc5e6147-ff75-483c-8c2e-61e72c4d41e8",35,23,390205.20000000007,0,240000,0,0]
["f3333fef-376f-4d03-b158-f7050b66056d","Capex - MM","PC002002001004000000000000000000000000_00001","_","An efficient, effective and development-oriented public service","Governance","To accelerate institutional transformation","Computer Equipment","Computer Equipment","cc5e6147-ff75-483c-8c2e-61e72c4d41e8",35,23,0,0,400000,0,0]
["f3333fef-376f-4d03-b158-f7050b66056d","Capex - MM","PC002002001005000000000000000000000000_00002","_","An efficient, effective and development-oriented public service","Governance","To accelerate institutional transformation","Furniture and Office Equipment","Furniture and Office Equipment","cc5e6147-ff75-483c-8c2e-61e72c4d41e8",35,23,102991.67999999999,0,0,0,0]
["Entity Name"]
["Project name"]
[]
[]
[]
[]
[{"$f":"head27a","v":"References"}]
["List all projects with planned completion dates in current year that have been re-budgeted in the MTREF"]
["Asset class as per table A9 and asset sub-class as per table SA34"]
["GPS coordinates correct to seconds. Provide a logical starting point on networked infrastructure."]
["Project Number consists of MSCOA Project Longcode and seq No (sample PC001002006002_00002)"]

{"sheet":"SA38","index":72,"n_rows":42,"n_cols":17,"rows_kept":42,"cut":false,"hidden":false,"merged":[[1,12,1,13],[1,14,1,16]]}
[{"$f":"muni&\" - \"&TableA38","v":"DC16 Xhariep - Supporting Table SA38 Consolidated detailed operational projects"}]
["R thousand",null,null,null,null,null,null,null,null,null,null,null,"Prior year outcomes",null,{"$f":"Head3","v":"2021/22 Medium Term Revenue & Expenditure Framework"}]
["Function","Project Description","Project Number","Type","MTSF Service Outcome","IUDF","Own Strategic Objectives","Asset Class","Asset Sub-Class","Ward Location","GPS Longitude","GPS Lattitude",{"$f":"Head5&\"    \"&Head1","v":"Audited Outcome    2019/20"},{"$f":"Head2 & \"        \"&Head8","v":"Current Year 2020/21        Full Year Forecast"},{"$f":"Head9","v":"Budget Year 2021/22"},{"$f":"Head10","v":"Budget Year +1 2022/23"},{"$f":"Head11","v":"Budget Year +2 2023/24"}]
["Parent municipality:"]
["List all operational projects grouped by Function"]
[]
["R thousand",null,null,null,null,null,null,null,null,null,null,null,"Previous target year to complete"]
["Function","Project name","Project number","Type","MTSF Service Outcome","IUDF","Own Strategic Objectives","Asset Class","Asset Sub-Class","Ward Location","GPS Longitude","GPS Lattitude"]
["Parent municipality:"]
["List all capital projects grouped by Function"]
[]
[]
[]
[]
[]
[]
[]
[]
[]
[]
[]
[]
["Parent Operational expenditure",null,null,null,null,null,null,null,null,null,null,null,{"$f":"SUM(M7:M22)","v":0},{"$f":"SUM(N7:N22)","v":0},{"$f":"SUM(O7:O22)","v":0},{"$f":"SUM(P7:P22)","v":0},{"$f":"SUM(Q7:Q22)","v":0}]
[]
["Entities:"]
["List all Operational projects grouped by Entity"]
[]
["Entity A"]
["Water project A"]
[]
["Entity B"]
["Electricity project B"]
[]
[]
[]
["Entity Operational expenditure",null,null,null,null,null,null,null,null,null,null,null,{"$f":"SUM(M28:M35)","v":0},{"$f":"SUM(N28:N35)","v":0},{"$f":"SUM(O28:O35)","v":0},{"$f":"SUM(P28:P35)","v":0},{"$f":"SUM(Q28:Q35)","v":0}]
["Total Operational expenditure",null,null,null,null,null,null,null,null,null,null,null,{"$f":"SUM(M7:M22)+SUM(M28:M35)","v":0},{"$f":"SUM(N7:N22)+SUM(N28:N35)","v":0},{"$f":"SUM(O7:O22)+SUM(O28:O35)","v":0},{"$f":"SUM(P7:P22)+SUM(P28:P35)","v":0},{"$f":"SUM(Q7:Q22)+SUM(Q28:Q35)","v":0}]
[{"$f":"head27a","v":"References"}]
["Must reconcile with Budgeted Operating Expenditure"]
["Asset class as per table A9 and asset sub-class as per table SA34"]
["GPS coordinates correct to seconds. Provide a logical starting point on networked infrastructure."]
["Project Number consists of MSCOA Project Longcode and seq No (sample PO001001002001002001002_00066)",null,null,null,null,null,null,null,null,null,null,"check",{"$f":"+'A4-FinPerf RE'!E35-'SA38'!M37","v":67585534},{"$f":"+'A4-FinPerf RE'!H35-'SA38'!N37","v":68896774},{"$f":"+'A4-FinPerf RE'!J35-'SA38'!O37","v":62985185},{"$f":"+'A4-FinPerf RE'!K35-'SA38'!P37","v":68726183},{"$f":"+'A4-FinPerf RE'!L35-'SA38'!Q37","v":70128751}]

{"sheet":"LGDB_EXPORT","index":73,"n_rows":2876,"n_cols":23,"rows_kept":2876,"cut":false,"hidden":false,"merged":[]}
["FORM","YEAR END","MUNCDE","ITEMCODE","SEQ","DESCRIPTION",null,null,null,null,null,null,null,null,null,null,null,null,null,null,null,null,"~"]
["BSD",{"$f":"+MTREF","v":2021},{"$f":"LEFT(muni,(FIND(\" \",muni,1)-1))","v":"DC16"},"1000",1,"Household service targets (000)",null,null,null,null,null,null,null,null,null,null,null,null,null,null,null,null,"~"]
["BSD",2021,"DC16","1100",2,"Water:",null,null,null,null,null,null,null,null,null,null,null,null,null,null,null,null,"~"]
["BSD",2021,"DC16","1101",3,"Piped water inside dwelling",null,null,null,null,null,null,null,null,null,null,null,null,null,null,null,null,"~"]
["BSD",2021,"DC16","1102",4,"Piped water inside yard (but not in dwelling)",null,null,null,null,null,null,null,null,null,null,null,null,null,null,null,null,"~"]
["BSD",2021,"DC16","1103",5,"Using public tap (at least min.service level)",null,null,null,null,null,null,null,null,null,null,null,null,null,null,null,null,"~"]
["BSD",2021,"DC16","1104",6,"Other water supply (at least min.service level)",null,null,null,null,null,null,null,null,null,null,null,null,null,null,null,null,"~"]
["BSD",2021,"DC16","1105",7,"Minimum Service Level and Above sub-total",null,null,null,null,null,null,null,null,null,null,null,null,null,null,null,null,"~"]
["BSD",2021,"DC16","1106",8,"Using public tap (< min.service level)",null,null,null,null,null,null,null,null,null,null,null,null,null,null,null,null,"~"]
["BSD",2021,"DC16","1107",9,"Other water supply (< min.service level)",null,null,null,null,null,null,null,null,null,null,null,null,null,null,null,null,"~"]
["BSD",2021,"DC16","1108",10,"No water supply",null,null,null,null,null,null,null,null,null,null,null,null,null,null,null,null,"~"]
["BSD",2021,"DC16","1109",11,"Below Minimum Service Level sub-total",null,null,null,null,null,null,null,null,null,null,null,null,null,null,null,null,"~"]
["BSD",2021,"DC16","1110",12,"Total number of households",null,null,null,null,null,null,null,null,null,null,null,null,null,null,null,null,"~"]
["BSD",2021,"DC16","1200",13,"Sanitation/sewerage:",null,null,null,null,null,null,null,null,null,null,null,null,null,null,null,null,"~"]
["BSD",2021,"DC16","1201",14,"Flush toilet (connected to sewerage)",null,null,null,null,null,null,null,null,null,null,null,null,null,null,null,null,"~"]
["BSD",2021,"DC16","1202",15,"Flush toilet (with septic tank)",null,null,null,null,null,null,null,null,null,null,null,null,null,null,null,null,"~"]
["BSD",2021,"DC16","1203",16,"Chemical toilet",null,null,null,null,null,null,null,null,null,null,null,null,null,null,null,null,"~"]
["BSD",2021,"DC16","1204",17,"Pit toilet (ventilated)",null,null,null,null,null,null,null,null,null,null,null,null,null,null,null,null,"~"]
["BSD",2021,"DC16","1205",18,"Other toilet provisions (> min.service level)",null,null,null,null,null,null,null,null,null,null,null,null,null,null,null,null,"~"]
["BSD",2021,"DC16","1206",19,"Minimum Service Level and Above sub-total",null,null,null,null,null,null,null,null,null,null,null,null,null,null,null,null,"~"]
["BSD",2021,"DC16","1207",20,"Bucket toilet",null,null,null,null,null,null,null,null,null,null,null,null,null,null,null,null,"~"]
["BSD",2021,"DC16","1208",21,"Other toilet provisions (< min.service level)",null,null,null,null,null,null,null,null,null,null,null,null,null,null,null,null,"~"]
["BSD",2021,"DC16","1209",22,"No toilet provisions",null,null,null,null,null,null,null,null,null,null,null,null,null,null,null,null,"~"]
["BSD",2021,"DC16","1210",23,"Below Minimum Service Level sub-total",null,null,null,null,null,null,null,null,null,null,null,null,null,null,null,null,"~"]
["BSD",2021,"DC16","1211",24,"Total number of households",null,null,null,null,null,null,null,null,null,null,null,null,null,null,null,null,"~"]
["BSD",2021,"DC16","1300",25,"Energy:",null,null,null,null,null,null,null,null,null,null,null,null,null,null,null,null,"~"]
["BSD",2021,"DC16","1301",26,"Electricity (at least min.service level)",null,null,null,null,null,null,null,null,null,null,null,null,null,null,null,null,"~"]
["BSD",2021,"DC16","1302",27,"Electricity - prepaid (min.service level)",null,null,null,null,null,null,null,null,null,null,null,null,null,null,null,null,"~"]
["BSD",2021,"DC16","1303",28,"Minimum Service Level and Above sub-total",null,null,null,null,null,null,null,null,null,null,null,null,null,null,null,null,"~"]
["BSD",2021,"DC16","1304",29,"Electricity (< min.service level)",null,null,null,null,null,null,null,null,null,null,null,null,null,null,null,null,"~"]
["BSD",2021,"DC16","1305",30,"Electricity - prepaid (< min. service level)",null,null,null,null,null,null,null,null,null,null,null,null,null,null,null,null,"~"]
["BSD",2021,"DC16","1306",31,"Other energy sources",null,null,null,null,null,null,null,null,null,null,null,null,null,null,null,null,"~"]
["BSD",2021,"DC16","1307",32,"Below Minimum Service Level sub-total",null,null,null,null,null,null,null,null,null,null,null,null,null,null,null,null,"~"]
["BSD",2021,"DC16","1308",33,"Total number of households",null,null,null,null,null,null,null,null,null,null,null,null,null,null,null,null,"~"]
["BSD",2021,"DC16","1400",34,"Refuse:",null,null,null,null,null,null,null,null,null,null,null,null,null,null,null,null,"~"]
["BSD",2021,"DC16","1401",35,"Removed at least once a week",null,null,null,null,null,null,null,null,null,null,null,null,null,null,null,null,"~"]
["BSD",2021,"DC16","1402",36,"Minimum Service Level and Above sub-total",null,null,null,null,null,null,null,null,null,null,null,null,null,null,null,null,"~"]
["BSD",2021,"DC16","1403",37,"Removed less frequently than once a week",null,null,null,null,null,null,null,null,null,null,null,null,null,null,null,null,"~"]
["BSD",2021,"DC16","1404",38,"Using communal refuse dump",null,null,null,null,null,null,null,null,null,null,null,null,null,null,null,null,"~"]
["BSD",2021,"DC16","1405",39,"Using own refuse dump",null,null,null,null,null,null,null,null,null,null,null,null,null,null,null,null,"~"]
["BSD",2021,"DC16","1406",40,"Other rubbish disposal",null,null,null,null,null,null,null,null,null,null,null,null,null,null,null,null,"~"]
["BSD",2021,"DC16","1407",41,"No rubbish disposal",null,null,null,null,null,null,null,null,null,null,null,null,null,null,null,null,"~"]
["BSD",2021,"DC16","1408",42,"Below Minimum Service Level sub-total",null,null,null,null,null,null,null,null,null,null,null,null,null,null,null,null,"~"]
["BSD",2021,"DC16","1409",43,"Total number of households",null,null,null,null,null,null,null,null,null,null,null,null,null,null,null,null,"~"]
["BSD",2021,"DC16",null,null,null,null,null,null,null,null,null,null,null,null,null,null,null,null,null,null,null,"~"]
["BSD",2021,"DC16","1500",45,"Households receiving Free Basic Service",null,null,null,null,null,null,null,null,null,null,null,null,null,null,null,null,"~"]
["BSD",2021,"DC16","1501",46,"Water (6 kilolitres per household per month)",null,null,null,null,null,null,null,null,null,null,null,null,null,null,null,null,"~"]
["BSD",2021,"DC16","1502",47,"Sanitation (free minimum level service)",null,null,null,null,null,null,null,null,null,null,null,null,null,null,null,null,"~"]
["BSD",2021,"DC16","1503",48,"Electricity/other energy (50kwh per household per month)",null,null,null,null,null,null,null,null,null,null,null,null,null,null,null,null,"~"]
["BSD",2021,"DC16","1504",49,"Refuse (removed at least once a week)",null,null,null,null,null,null,null,null,null,null,null,null,null,null,null,null,"~"]
["BSD",2021,"DC16",null,null,null,null,null,null,null,null,null,null,null,null,null,null,null,null,null,null,null,"~"]
["BSD",2021,"DC16","1600",51,"Cost of Free Basic Services provided - Formal Settlements (R'000)",null,null,null,null,null,null,null,null,null,null,null,null,null,null,null,null,"~"]
["BSD",2021,"DC16","1601",52,"Water (6 kilolitres per indigent household per month)",null,null,null,null,null,null,null,null,null,null,null,null,null,null,null,null,"~"]
["BSD",2021,"DC16","1602",53,"Sanitation (free sanitation service to indigent households)",null,null,null,null,null,null,null,null,null,null,null,null,null,null,null,null,"~"]
["BSD",2021,"DC16","1603",54,"Electricity/other energy (50kwh per indigent household per month)",null,null,null,null,null,null,null,null,null,null,null,null,null,null,null,null,"~"]
["BSD",2021,"DC16","1604",55,"Refuse (removed once a week for indigent households)",null,null,null,null,null,null,null,null,null,null,null,null,null,null,null,null,"~"]
["BSD",2021,"DC16",1606,56,"Cost of Free Basic Services provided - Informal Formal Settlements (R'000)",null,null,null,null,null,null,null,null,null,null,null,null,null,null,null,null,"~"]
["BSD",2021,"DC16",1607,57,"Total cost of FBS provided  ",null,null,null,null,null,null,null,null,null,null,null,null,null,null,null,null,"~"]
["BSD",2021,"DC16",null,null,null,null,null,null,null,null,null,null,null,null,null,null,null,null,null,null,null,"~"]
["BSD",2021,"DC16","1700",58,"Highest level of free service provided per household",null,null,null,null,null,null,null,null,null,null,null,null,null,null,null,null,"~"]
["BSD",2021,"DC16","1701",59,"Property rates (R value threshold)",null,null,null,null,null,null,null,null,null,null,null,null,null,null,null,null,"~"]
["BSD",2021,"DC16","1702",60,"Water (kilolitres per household per month)",null,null,null,null,null,null,null,null,null,null,null,null,null,null,null,null,"~"]
["BSD",2021,"DC16","1703",61,"Sanitation (kilolitres per household per month)",null,null,null,null,null,null,null,null,null,null,null,null,null,null,null,null,"~"]
["BSD",2021,"DC16","1704",62,"Sanitation (Rand per household per month)",null,null,null,null,null,null,null,null,null,null,null,null,null,null,null,null,"~"]
["BSD",2021,"DC16","1705",63,"Electricity (kwh per household per month)",null,null,null,null,null,null,null,null,null,null,null,null,null,null,null,null,"~"]
["BSD",{"$f":"+MTREF","v":2021},{"$f":"LEFT(muni,(FIND(\" \",muni,1)-1))","v":"DC16"},"1706",64,"Refuse (average litres per week)",null,null,null,null,null,null,null,null,null,null,null,null,null,null,null,null,"~"]
["BSD",2021,"DC16","1707",65,"Revenue  cost of subsidised services provided (R'000)",null,null,null,null,null,null,null,null,null,null,null,null,null,null,null,null,"~"]
["BSD",2021,"DC16","1708",66,"Property rates (tariff adjustment) ( impermissable values per section 17 of MPRA)",null,null,null,null,null,null,null,null,null,null,null,null,null,null,null,null,"~"]
["BSD",2021,"DC16","1709",67,"Property rates  exemptions, reductions and rebates and impermissable values in excess of section 17 of MPRA)",null,null,null,null,null,null,null,null,null,null,null,null,null,null,null,null,"~"]
["BSD",2021,"DC16","1710",68,"Water (in excess of 6 kilolitres per indigent household per month)",null,null,null,null,null,null,null,null,null,null,null,null,null,null,null,null,"~"]
["BSD",2021,"DC16","1711",69,"Sanitation (in excess of free sanitation service to indigent households)",null,null,null,null,null,null,null,null,null,null,null,null,null,null,null,null,"~"]
["BSD",2021,"DC16","1712",70,"Electricity/other energy (in excess of 50 kwh per indigent household per month)",null,null,null,null,null,null,null,null,null,null,null,null,null,null,null,null,"~"]
["BSD",2021,"DC16","1713",71,"Refuse (in excess of one removal a week for indigent households)",null,null,null,null,null,null,null,null,null,null,null,null,null,null,null,null,"~"]
["BSD",2021,"DC16","1714",72,"Municipal Housing - rental rebates",null,null,null,null,null,null,null,null,null,null,null,null,null,null,null,null,"~"]
["BSD",2021,"DC16","1715",73,"Housing - top structure subsidies",null,null,null,null,null,null,null,null,null,null,null,null,null,null,null,null,"~"]
["BSD",2021,"DC16","1716",74,"Other",null,null,null,null,null,null,null,null,null,null,null,null,null,null,null,null,"~"]
["BSD",2021,"DC16","1717",75,"Total revenue cost of subsidised services provided ",null,null,null,null,null,null,null,null,null,null,null,null,null,null,null,null,"~"]
["SA11",2021,"DC16",1000,"T","Valuation:",null,null,null,null,null,null,null,null,null,null,null,null,null,null,null,null,"~"]
["SA11",2021,"DC16",1001,"T","Date of valuation:",null,null,null,null,null,null,null,null,null,null,null,null,null,null,null,null,"~"]
["SA11",2021,"DC16",1002,"T","Financial year valuation used",null,null,null,null,null,null,null,null,null,null,null,null,null,null,null,null,"~"]
["SA11",2021,"DC16",1003,"T","Municipal by-laws s6 in place? (Y/N)",null,null,null,null,null,null,null,null,null,null,null,null,null,null,null,null,"~"]
["SA11",2021,"DC16",1004,"T","Municipal/assistant valuer appointed? (Y/N)",null,null,null,null,null,null,null,null,null,null,null,null,null,null,null,null,"~"]
["SA11",2021,"DC16",1005,"T","Municipal partnership s38 used? (Y/N)",null,null,null,null,null,null,null,null,null,null,null,null,null,null,null,null,"~"]
["SA11",2021,"DC16",1006,"V","No. of assistant valuers (FTE)",null,null,null,null,null,null,null,null,null,null,null,null,null,null,null,null,"~"]
["SA11",2021,"DC16",1007,"V","No. of data collectors (FTE)",null,null,null,null,null,null,null,null,null,null,null,null,null,null,null,null,"~"]
["SA11",2021,"DC16",1008,"V","No. of internal valuers (FTE)",null,null,null,null,null,null,null,null,null,null,null,null,null,null,null,null,"~"]
["SA11",2021,"DC16",1009,"V","No. of external valuers (FTE)",null,null,null,null,null,null,null,null,null,null,null,null,null,null,null,null,"~"]
["SA11",2021,"DC16",1010,"V","No. of additional valuers (FTE)",null,null,null,null,null,null,null,null,null,null,null,null,null,null,null,null,"~"]
["SA11",2021,"DC16",1011,"T","Valuation appeal board established? (Y/N)",null,null,null,null,null,null,null,null,null,null,null,null,null,null,null,null,"~"]
["SA11",2021,"DC16",1012,"V","Implementation time of new valuation roll (mths)",null,null,null,null,null,null,null,null,null,null,null,null,null,null,null,null,"~"]
["SA11",2021,"DC16",1020,"V","No. of properties",null,null,null,null,null,null,null,null,null,null,null,null,null,null,null,null,"~"]
["SA11",2021,"DC16",1021,"V","No. of sectional title values",null,null,null,null,null,null,null,null,null,null,null,null,null,null,null,null,"~"]
["SA11",2021,"DC16",1022,"V","No. of unreasonably difficult properties s7(2)",null,null,null,null,null,null,null,null,null,null,null,null,null,null,null,null,"~"]
["SA11",2021,"DC16",1023,"V","No. of supplementary valuations",null,null,null,null,null,null,null,null,null,null,null,null,null,null,null,null,"~"]
["SA11",2021,"DC16",1024,"V","No. of valuation roll amendments",null,null,null,null,null,null,null,null,null,null,null,null,null,null,null,null,"~"]
["SA11",2021,"DC16",1025,"V","No. of objections by rate payers",null,null,null,null,null,null,null,null,null,null,null,null,null,null,null,null,"~"]
["SA11",2021,"DC16",1026,"V","No. of appeals by rate payers",null,null,null,null,null,null,null,null,null,null,null,null,null,null,null,null,"~"]
["SA11",2021,"DC16",1028,"V","No. of successful objections",null,null,null,null,null,null,null,null,null,null,null,null,null,null,null,null,"~"]
["SA11",2021,"DC16",1029,"V","No. of successful objections > 10%",null,null,null,null,null,null,null,null,null,null,null,null,null,null,null,null,"~"]
["SA11",2021,"DC16",1030,"V","Supplementary valuation",null,null,null,null,null,null,null,null,null,null,null,null,null,null,null,null,"~"]
["SA11",2021,"DC16",1031,"V","Public service infrastructure value ",null,null,null,null,null,null,null,null,null,null,null,null,null,null,null,null,"~"]
["SA11",2021,"DC16",1032,"V","Municipality owned property value ",null,null,null,null,null,null,null,null,null,null,null,null,null,null,null,null,"~"]
["SA11",2021,"DC16",1100,"T","Valuation reductions:",null,null,null,null,null,null,null,null,null,null,null,null,null,null,null,null,"~"]
["SA11",2021,"DC16",1101,"V","Valuation reductions-public infrastructure",null,null,null,null,null,null,null,null,null,null,null,null,null,null,null,null,"~"]
["SA11",2021,"DC16",1102,"V","Valuation reductions-nature reserves/park",null,null,null,null,null,null,null,null,null,null,null,null,null,null,null,null,"~"]
["SA11",2021,"DC16",1103,"V","Valuation reductions-mineral rights",null,null,null,null,null,null,null,null,null,null,null,null,null,null,null,null,"~"]
["SA11",2021,"DC16",1104,"V","Valuation reductions-R15,000 threshold",null,null,null,null,null,null,null,null,null,null,null,null,null,null,null,null,"~"]
["SA11",2021,"DC16",1105,"V","Valuation reductions-public worship ",null,null,null,null,null,null,null,null,null,null,null,null,null,null,null,null,"~"]
["SA11",2021,"DC16",1106,"V","Valuation reductions-other",null,null,null,null,null,null,null,null,null,null,null,null,null,null,null,null,"~"]
["SA11",2021,"DC16",1107,"V","Total valuation reductions:",null,null,null,null,null,null,null,null,null,null,null,null,null,null,null,null,"~"]
["SA11",2021,"DC16",1108,"V","Total value used for rating",null,null,null,null,null,null,null,null,null,null,null,null,null,null,null,null,"~"]
["SA11",2021,"DC16",1109,"V","Total land value ",null,null,null,null,null,null,null,null,null,null,null,null,null,null,null,null,"~"]
["SA11",2021,"DC16",1110,"V","Total value of improvements",null,null,null,null,null,null,null,null,null,null,null,null,null,null,null,null,"~"]
["SA11",2021,"DC16",1111,"V","Total market value",null,null,null,null,null,null,null,null,null,null,null,null,null,null,null,null,"~"]
["SA11",2021,"DC16",null,null,null,null,null,null,null,null,null,null,null,null,null,null,null,null,null,null,null,"~"]
["SA11",2021,"DC16",1200,"T","Rating:",null,null,null,null,null,null,null,null,null,null,null,null,null,null,null,null,"~"]
["SA11",2021,"DC16",1202,"T","Residential rate used to determine rate for other categories? (Y/N)",null,null,null,null,null,null,null,null,null,null,null,null,null,null,null,null,"~"]
["SA11",2021,"DC16",1203,"T","Differential rates used? (Y/N)",null,null,null,null,null,null,null,null,null,null,null,null,null,null,null,null,"~"]
["SA11",2021,"DC16",1204,"T","Limit on annual rate increase (s20)? (Y/N)",null,null,null,null,null,null,null,null,null,null,null,null,null,null,null,null,"~"]
["SA11",2021,"DC16",1205,"T","Special rating area used? (Y/N)",null,null,null,null,null,null,null,null,null,null,null,null,null,null,null,null,"~"]
["SA11",2021,"DC16",1206,"V","Phasing-in properties s21 (number)",null,null,null,null,null,null,null,null,null,null,null,null,null,null,null,null,"~"]
["SA11",2021,"DC16",1207,"T","Rates policy accompanying budget? (Y/N)",null,null,null,null,null,null,null,null,null,null,null,null,null,null,null,null,"~"]
["SA11",2021,"DC16",1208,"V","Fixed amount minimum value",null,null,null,null,null,null,null,null,null,null,null,null,null,null,null,null,"~"]
["SA11",2021,"DC16",1209,"P","Non-residential prescribed ratio s19? (%)",null,null,null,null,null,null,null,null,null,null,null,null,null,null,null,null,"~"]
["SA11",2021,"DC16",null,null,null,null,null,null,null,null,null,null,null,null,null,null,null,null,null,null,null,"~"]
["SA11",2021,"DC16",1300,"T","Rate revenue:",null,null,null,null,null,null,null,null,null,null,null,null,null,null,null,null,"~"]
["SA11",2021,"DC16",1301,"V","Rate revenue budget ",null,null,null,null,null,null,null,null,null,null,null,null,null,null,null,null,"~"]
["SA11",2021,"DC16",1302,"V","Rate revenue expected to collect",null,null,null,null,null,null,null,null,null,null,null,null,null,null,null,null,"~"]
["SA11",2021,"DC16",1303,"P","Expected cash collection rate (%)",null,null,null,null,null,null,null,null,null,null,null,null,null,null,null,null,"~"]
["SA11",{"$f":"+MTREF","v":2021},{"$f":"LEFT(muni,(FIND(\" \",muni,1)-1))","v":"DC16"},1304,"V","Special rating areas",null,null,null,null,null,null,null,null,null,null,null,null,null,null,null,null,"~"]
["SA11",2021,"DC16",1305,"V","Rebates, exemptions - indigent",null,null,null,null,null,null,null,null,null,null,null,null,null,null,null,null,"~"]
["SA11",2021,"DC16",1306,"V","Rebates, exemptions - pensioners",null,null,null,null,null,null,null,null,null,null,null,null,null,null,null,null,"~"]
["SA11",2021,"DC16",1307,"V","Rebates, exemptions - bona fide farm",null,null,null,null,null,null,null,null,null,null,null,null,null,null,null,null,"~"]
["SA11",2021,"DC16",1308,"V","Rebates, exemptions - other",null,null,null,null,null,null,null,null,null,null,null,null,null,null,null,null,"~"]
["SA11",2021,"DC16",1309,"V","Phase-in reductions/discounts",null,null,null,null,null,null,null,null,null,null,null,null,null,null,null,null,"~"]
["SA11",2021,"DC16",1310,"V","Total rebates,exemptns,reductns,discs",null,null,null,null,null,null,null,null,null,null,null,null,null,null,null,null,"~"]
["SA12",2021,"DC16",1000,"T","Valuation:",null,null,null,null,null,null,null,null,null,null,null,null,null,null,null,null,"~"]
["SA12",2021,"DC16",1020,"V","No. of properties",null,null,null,null,null,null,null,null,null,null,null,null,null,null,null,null,"~"]
["SA12",2021,"DC16",1021,"V","No. of sectional title property values",null,null,null,null,null,null,null,null,null,null,null,null,null,null,null,null,"~"]
["SA12",2021,"DC16",1022,"V","No. of unreasonably difficult properties s7(2)",null,null,null,null,null,null,null,null,null,null,null,null,null,null,null,null,"~"]
["SA12",2021,"DC16",1023,"V","No. of supplementary valuations",null,null,null,null,null,null,null,null,null,null,null,null,null,null,null,null,"~"]
["SA12",2021,"DC16",1030,"V","Supplementary valuation ",null,null,null,null,null,null,null,null,null,null,null,null,null,null,null,null,"~"]
["SA12",2021,"DC16",1024,"V","No. of valuation roll amendments",null,null,null,null,null,null,null,null,null,null,null,null,null,null,null,null,"~"]
["SA12",2021,"DC16",1025,"V","No. of objections by rate-payers",null,null,null,null,null,null,null,null,null,null,null,null,null,null,null,null,"~"]
["SA12",2021,"DC16",1026,"V","No. of appeals by rate-payers",null,null,null,null,null,null,null,null,null,null,null,null,null,null,null,null,"~"]
["SA12",2021,"DC16",1027,"V","No. of appeals by rate-payers finalised",null,null,null,null,null,null,null,null,null,null,null,null,null,null,null,null,"~"]
["SA12",2021,"DC16",1028,"V","No. of successful objections",null,null,null,null,null,null,null,null,null,null,null,null,null,null,null,null,"~"]
["SA12",2021,"DC16",1029,"V","No. of successful objections > 10%",null,null,null,null,null,null,null,null,null,null,null,null,null,null,null,null,"~"]
["SA12",2021,"DC16",1040,"V","Estimated no. of properties not valued",null,null,null,null,null,null,null,null,null,null,null,null,null,null,null,null,"~"]
["SA12",2021,"DC16",1041,"T","Years since last valuation",null,null,null,null,null,null,null,null,null,null,null,null,null,null,null,null,"~"]
["SA12",2021,"DC16",1042,"T","Frequency of valuation ",null,null,null,null,null,null,null,null,null,null,null,null,null,null,null,null,"~"]
["SA12",2021,"DC16",1043,"T","Method of valuation used",null,null,null,null,null,null,null,null,null,null,null,null,null,null,null,null,"~"]
["SA12",2021,"DC16",1044,"T","Base of valuation",null,null,null,null,null,null,null,null,null,null,null,null,null,null,null,null,"~"]
["SA12",2021,"DC16",1206,"V","Phasing-in properties s21 (number)",null,null,null,null,null,null,null,null,null,null,null,null,null,null,null,null,"~"]
["SA12",2021,"DC16",1046,"T","Combination of rating types used? (Y/N)",null,null,null,null,null,null,null,null,null,null,null,null,null,null,null,null,"~"]
["SA12",2021,"DC16",1047,"T","Flat rate used? (Y/N)",null,null,null,null,null,null,null,null,null,null,null,null,null,null,null,null,"~"]
["SA12",2021,"DC16",1048,"T","Is balance rated by uniform rate/variable rate?",null,null,null,null,null,null,null,null,null,null,null,null,null,null,null,null,"~"]
["SA12",2021,"DC16",1100,"T","Valuation reductions:",null,null,null,null,null,null,null,null,null,null,null,null,null,null,null,null,"~"]
["SA12",2021,"DC16",1101,"V","Valuation reductions-public infrastructure",null,null,null,null,null,null,null,null,null,null,null,null,null,null,null,null,"~"]
["SA12",2021,"DC16",1102,"V","Valuation reductions-nature reserves/park",null,null,null,null,null,null,null,null,null,null,null,null,null,null,null,null,"~"]
["SA12",2021,"DC16",1103,"V","Valuation reductions-mineral rights",null,null,null,null,null,null,null,null,null,null,null,null,null,null,null,null,"~"]
["SA12",2021,"DC16",1104,"V","Valuation reductions-R15,000 threshold ",null,null,null,null,null,null,null,null,null,null,null,null,null,null,null,null,"~"]
["SA12",2021,"DC16",1105,"V","Valuation reductions-public worship",null,null,null,null,null,null,null,null,null,null,null,null,null,null,null,null,"~"]
["SA12",2021,"DC16",1106,"V","Valuation reductions-other",null,null,null,null,null,null,null,null,null,null,null,null,null,null,null,null,"~"]
["SA12",2021,"DC16",1107,"V","Total valuation reductions:",null,null,null,null,null,null,null,null,null,null,null,null,null,null,null,null,"~"]
["SA12",2021,"DC16",1108,"V","Total value used for rating",null,null,null,null,null,null,null,null,null,null,null,null,null,null,null,null,"~"]
["SA12",2021,"DC16",1109,"V","Total land value ",null,null,null,null,null,null,null,null,null,null,null,null,null,null,null,null,"~"]
["SA12",2021,"DC16",1110,"V","Total value of improvements",null,null,null,null,null,null,null,null,null,null,null,null,null,null,null,null,"~"]
["SA12",2021,"DC16",1111,"V","Total market value ",null,null,null,null,null,null,null,null,null,null,null,null,null,null,null,null,"~"]
["SA12",2021,"DC16",1200,"T","Rating:",null,null,null,null,null,null,null,null,null,null,null,null,null,null,null,null,"~"]
["SA12",2021,"DC16",1201,"V","Average rate",null,null,null,null,null,null,null,null,null,null,null,null,null,null,null,null,"~"]
["SA12",2021,"DC16",1301,"V","Rate revenue budget ",null,null,null,null,null,null,null,null,null,null,null,null,null,null,null,null,"~"]
["SA12",2021,"DC16",1302,"V","Rate revenue expected to collect",null,null,null,null,null,null,null,null,null,null,null,null,null,null,null,null,"~"]
["SA12",2021,"DC16",1303,"P","Expected cash collection rate (%)",null,null,null,null,null,null,null,null,null,null,null,null,null,null,null,null,"~"]
["SA12",2021,"DC16",1304,"V","Special rating areas",null,null,null,null,null,null,null,null,null,null,null,null,null,null,null,null,"~"]
["SA12",2021,"DC16",1305,"V","Rebates, exemptions - indigent",null,null,null,null,null,null,null,null,null,null,null,null,null,null,null,null,"~"]
["SA12",2021,"DC16",1306,"V","Rebates, exemptions - pensioners",null,null,null,null,null,null,null,null,null,null,null,null,null,null,null,null,"~"]
["SA12",2021,"DC16",1307,"V","Rebates, exemptions - bona fide farm. ",null,null,null,null,null,null,null,null,null,null,null,null,null,null,null,null,"~"]
["SA12",2021,"DC16",1308,"V","Rebates, exemptions - other ",null,null,null,null,null,null,null,null,null,null,null,null,null,null,null,null,"~"]
["SA12",2021,"DC16",1309,"V","Phase-in reductions/discounts ",null,null,null,null,null,null,null,null,null,null,null,null,null,null,null,null,"~"]
["SA12",2021,"DC16",1310,"V","Total rebates,exemptns,reductns,discs",null,null,null,null,null,null,null,null,null,null,null,null,null,null,null,null,"~"]
["SA12",2021,"DC16",null,null,null,null,null,null,null,null,null,null,null,null,null,null,null,null,null,null,null,"~"]
["SA12",2021,"DC16",null,null,null,null,null,null,null,null,null,null,null,null,null,null,null,null,null,null,null,"~"]
["SA12",2021,"DC16",null,null,null,null,null,null,null,null,null,null,null,null,null,null,null,null,null,null,null,"~"]
["SA12",2021,"DC16",null,null,null,null,null,null,null,null,null,null,null,null,null,null,null,null,null,null,null,"~"]
["SA12",2021,"DC16",1000,"T","Valuation:",null,null,null,null,null,null,null,null,null,null,null,null,null,null,null,null,"~"]
["SA12",2021,"DC16",1020,"V","No. of properties",null,null,null,null,null,null,null,null,null,null,null,null,null,null,null,null,"~"]
["SA12",2021,"DC16",1021,"V","No. of sectional title property values",null,null,null,null,null,null,null,null,null,null,null,null,null,null,null,null,"~"]
["SA12",2021,"DC16",1022,"V","No. of unreasonably difficult properties s7(2)",null,null,null,null,null,null,null,null,null,null,null,null,null,null,null,null,"~"]
["SA12",2021,"DC16",1023,"V","No. of supplementary valuations",null,null,null,null,null,null,null,null,null,null,null,null,null,null,null,null,"~"]
["SA12",2021,"DC16",1030,"V","Supplementary valuation ",null,null,null,null,null,null,null,null,null,null,null,null,null,null,null,null,"~"]
["SA12",2021,"DC16",1024,"V","No. of valuation roll amendments",null,null,null,null,null,null,null,null,null,null,null,null,null,null,null,null,"~"]
["SA12",2021,"DC16",1025,"V","No. of objections by rate-payers",null,null,null,null,null,null,null,null,null,null,null,null,null,null,null,null,"~"]
["SA12",{"$f":"+MTREF","v":2021},{"$f":"LEFT(muni,(FIND(\" \",muni,1)-1))","v":"DC16"},1026,"V","No. of appeals by rate-payers",null,null,null,null,null,null,null,null,null,null,null,null,null,null,null,null,"~"]
["SA12",2021,"DC16",1027,"V","No. of appeals by rate-payers finalised",null,null,null,null,null,null,null,null,null,null,null,null,null,null,null,null,"~"]
["SA12",2021,"DC16",1028,"V","No. of successful objections",null,null,null,null,null,null,null,null,null,null,null,null,null,null,null,null,"~"]
["SA12",2021,"DC16",1029,"V","No. of successful objections > 10%",null,null,null,null,null,null,null,null,null,null,null,null,null,null,null,null,"~"]
["SA12",2021,"DC16",1040,"V","Estimated no. of properties not valued",null,null,null,null,null,null,null,null,null,null,null,null,null,null,null,null,"~"]
["SA12",2021,"DC16",1041,"T","Years since last valuation",null,null,null,null,null,null,null,null,null,null,null,null,null,null,null,null,"~"]
["SA12",2021,"DC16",1042,"T","Frequency of valuation ",null,null,null,null,null,null,null,null,null,null,null,null,null,null,null,null,"~"]
["SA12",2021,"DC16",1043,"T","Method of valuation used",null,null,null,null,null,null,null,null,null,null,null,null,null,null,null,null,"~"]
["SA12",2021,"DC16",1044,"T","Base of valuation",null,null,null,null,null,null,null,null,null,null,null,null,null,null,null,null,"~"]
["SA12",2021,"DC16",1206,"V","Phasing-in properties s21 (number)",null,null,null,null,null,null,null,null,null,null,null,null,null,null,null,null,"~"]
["SA12",2021,"DC16",1046,"T","Combination of rating types used? (Y/N)",null,null,null,null,null,null,null,null,null,null,null,null,null,null,null,null,"~"]
["SA12",2021,"DC16",1047,"T","Flat rate used? (Y/N)",null,null,null,null,null,null,null,null,null,null,null,null,null,null,null,null,"~"]
["SA12",2021,"DC16",1048,"T","Is balance rated by uniform rate/variable rate?",null,null,null,null,null,null,null,null,null,null,null,null,null,null,null,null,"~"]
["SA12",2021,"DC16",1100,"T","Valuation reductions:",null,null,null,null,null,null,null,null,null,null,null,null,null,null,null,null,"~"]
["SA12",2021,"DC16",1101,"V","Valuation reductions-public infrastructure",null,null,null,null,null,null,null,null,null,null,null,null,null,null,null,null,"~"]
["SA12",2021,"DC16",1102,"V","Valuation reductions-nature reserves/park",null,null,null,null,null,null,null,null,null,null,null,null,null,null,null,null,"~"]
["SA12",2021,"DC16",1103,"V","Valuation reductions-mineral rights",null,null,null,null,null,null,null,null,null,null,null,null,null,null,null,null,"~"]
["SA12",2021,"DC16",1104,"V","Valuation reductions-R15,000 threshold ",null,null,null,null,null,null,null,null,null,null,null,null,null,null,null,null,"~"]
["SA12",2021,"DC16",1105,"V","Valuation reductions-public worship",null,null,null,null,null,null,null,null,null,null,null,null,null,null,null,null,"~"]
["SA12",2021,"DC16",1106,"V","Valuation reductions-other",null,null,null,null,null,null,null,null,null,null,null,null,null,null,null,null,"~"]
["SA12",2021,"DC16",1107,"V","Total valuation reductions:",null,null,null,null,null,null,null,null,null,null,null,null,null,null,null,null,"~"]
["SA12",2021,"DC16",1108,"V","Total value used for rating",null,null,null,null,null,null,null,null,null,null,null,null,null,null,null,null,"~"]
["SA12",2021,"DC16",1109,"V","Total land value ",null,null,null,null,null,null,null,null,null,null,null,null,null,null,null,null,"~"]
["SA12",2021,"DC16",1110,"V","Total value of improvements",null,null,null,null,null,null,null,null,null,null,null,null,null,null,null,null,"~"]
["SA12",2021,"DC16",1111,"V","Total market value ",null,null,null,null,null,null,null,null,null,null,null,null,null,null,null,null,"~"]
["SA12",2021,"DC16",1200,"T","Rating:",null,null,null,null,null,null,null,null,null,null,null,null,null,null,null,null,"~"]
["SA12",2021,"DC16",1201,"V","Average rate",null,null,null,null,null,null,null,null,null,null,null,null,null,null,null,null,"~"]
["SA12",2021,"DC16",1301,"V","Rate revenue budget ",null,null,null,null,null,null,null,null,null,null,null,null,null,null,null,null,"~"]
["SA12",2021,"DC16",1302,"V","Rate revenue expected to collect",null,null,null,null,null,null,null,null,null,null,null,null,null,null,null,null,"~"]
["SA12",2021,"DC16",1303,"P","Expected cash collection rate (%)",null,null,null,null,null,null,null,null,null,null,null,null,null,null,null,null,"~"]
["SA12",2021,"DC16",1304,"V","Special rating areas",null,null,null,null,null,null,null,null,null,null,null,null,null,null,null,null,"~"]
["SA12",2021,"DC16",1305,"V","Rebates, exemptions - indigent",null,null,null,null,null,null,null,null,null,null,null,null,null,null,null,null,"~"]
["SA12",2021,"DC16",1306,"V","Rebates, exemptions - pensioners",null,null,null,null,null,null,null,null,null,null,null,null,null,null,null,null,"~"]
["SA12",2021,"DC16",1307,"V","Rebates, exemptions - bona fide farm. ",null,null,null,null,null,null,null,null,null,null,null,null,null,null,null,null,"~"]
["SA12",2021,"DC16",1308,"V","Rebates, exemptions - other ",null,null,null,null,null,null,null,null,null,null,null,null,null,null,null,null,"~"]
["SA12",2021,"DC16",1309,"V","Phase-in reductions/discounts ",null,null,null,null,null,null,null,null,null,null,null,null,null,null,null,null,"~"]
["SA12",2021,"DC16",1310,"V","Total rebates,exemptns,reductns,discs",null,null,null,null,null,null,null,null,null,null,null,null,null,null,null,null,"~"]
["SA13",2021,"DC16",1000,1,"Property rates (rate in the Rand)",null,null,null,null,null,null,null,null,null,null,null,null,null,null,null,null,"~"]
["SA13",2021,"DC16",1001,2,"Residential properties",null,null,null,null,null,null,null,null,null,null,null,null,null,null,null,null,"~"]
["SA13",2021,"DC16",1002,3,"Residential properties - vacant land",null,null,null,null,null,null,null,null,null,null,null,null,null,null,null,null,"~"]
["SA13",2021,"DC16",1003,4,"Formal/informal settlements",null,null,null,null,null,null,null,null,null,null,null,null,null,null,null,null,"~"]
["SA13",2021,"DC16",1004,5,"Small holdings",null,null,null,null,null,null,null,null,null,null,null,null,null,null,null,null,"~"]
["SA13",2021,"DC16",1005,6,"Farm properties - used",null,null,null,null,null,null,null,null,null,null,null,null,null,null,null,null,"~"]
["SA13",2021,"DC16",1006,7,"Farm properties - not used",null,null,null,null,null,null,null,null,null,null,null,null,null,null,null,null,"~"]
["SA13",2021,"DC16",1007,8,"Industrial properties",null,null,null,null,null,null,null,null,null,null,null,null,null,null,null,null,"~"]
["SA13",2021,"DC16",1008,9,"Business and commercial properties",null,null,null,null,null,null,null,null,null,null,null,null,null,null,null,null,"~"]
["SA13",2021,"DC16",1009,10,"Communal land - residential",null,null,null,null,null,null,null,null,null,null,null,null,null,null,null,null,"~"]
["SA13",2021,"DC16",1010,11,"Communal land - small holdings",null,null,null,null,null,null,null,null,null,null,null,null,null,null,null,null,"~"]
["SA13",2021,"DC16",1011,12,"Communal land - farm property",null,null,null,null,null,null,null,null,null,null,null,null,null,null,null,null,"~"]
["SA13",2021,"DC16",1012,13,"Communal land - business and commercial",null,null,null,null,null,null,null,null,null,null,null,null,null,null,null,null,"~"]
["SA13",2021,"DC16",1013,14,"Communal land - other",null,null,null,null,null,null,null,null,null,null,null,null,null,null,null,null,"~"]
["SA13",2021,"DC16",1014,15,"State-owned properties",null,null,null,null,null,null,null,null,null,null,null,null,null,null,null,null,"~"]
["SA13",2021,"DC16",1015,16,"Municipal properties",null,null,null,null,null,null,null,null,null,null,null,null,null,null,null,null,"~"]
["SA13",2021,"DC16",1016,17,"Public service infrastructure",null,null,null,null,null,null,null,null,null,null,null,null,null,null,null,null,"~"]
["SA13",2021,"DC16",1017,18,"Privately owned towns serviced by the owner",null,null,null,null,null,null,null,null,null,null,null,null,null,null,null,null,"~"]
["SA13",2021,"DC16",1018,19,"State trust land",null,null,null,null,null,null,null,null,null,null,null,null,null,null,null,null,"~"]
["SA13",2021,"DC16",1019,20,"Restitution and redistribution properties",null,null,null,null,null,null,null,null,null,null,null,null,null,null,null,null,"~"]
["SA13",2021,"DC16",1020,21,"Protected areas",null,null,null,null,null,null,null,null,null,null,null,null,null,null,null,null,"~"]
["SA13",2021,"DC16",1021,22,"National monuments properties",null,null,null,null,null,null,null,null,null,null,null,null,null,null,null,null,"~"]
["SA13",2021,"DC16",null,null,null,null,null,null,null,null,null,null,null,null,null,null,null,null,null,null,null,"~"]
["SA13",2021,"DC16",1030,23,"Exemptions, reductions and rebates (Rands)",null,null,null,null,null,null,null,null,null,null,null,null,null,null,null,null,"~"]
["SA13",2021,"DC16",1031,24,"Residential properties",null,null,null,null,null,null,null,null,null,null,null,null,null,null,null,null,"~"]
["SA13",2021,"DC16",1032,25,"R15 000 threshhold rebate",null,null,null,null,null,null,null,null,null,null,null,null,null,null,null,null,"~"]
["SA13",2021,"DC16",1033,26,"General residential rebate",null,null,null,null,null,null,null,null,null,null,null,null,null,null,null,null,"~"]
["SA13",{"$f":"+MTREF","v":2021},{"$f":"LEFT(muni,(FIND(\" \",muni,1)-1))","v":"DC16"},1034,27,"Indigent rebate or exemption",null,null,null,null,null,null,null,null,null,null,null,null,null,null,null,null,"~"]
["SA13",2021,"DC16",1035,28,"Pensioners/social grants rebate or exemption ",null,null,null,null,null,null,null,null,null,null,null,null,null,null,null,null,"~"]
["SA13",2021,"DC16",1036,29,"Temporary relief rebate or exemption",null,null,null,null,null,null,null,null,null,null,null,null,null,null,null,null,"~"]
["SA13",2021,"DC16",1037,30," Bona fide farmers rebate or exemption",null,null,null,null,null,null,null,null,null,null,null,null,null,null,null,null,"~"]
["SA13",2021,"DC16",1038,31,"Other rebates or exemptions",null,null,null,null,null,null,null,null,null,null,null,null,null,null,null,null,"~"]
["SA13",2021,"DC16",null,null,null,null,null,null,null,null,null,null,null,null,null,null,null,null,null,null,null,"~"]
["SA13",2021,"DC16",1100,32,"Water tariffs",null,null,null,null,null,null,null,null,null,null,null,null,null,null,null,null,"~"]
["SA13",2021,"DC16",1101,33,"Domestic",null,null,null,null,null,null,null,null,null,null,null,null,null,null,null,null,"~"]
["SA13",2021,"DC16",1102,34,"Basic charge/fixed fee (Rands/month)",null,null,null,null,null,null,null,null,null,null,null,null,null,null,null,null,"~"]
["SA13",2021,"DC16",1103,35,"Service point - vacant land (Rands/month)",null,null,null,null,null,null,null,null,null,null,null,null,null,null,null,null,"~"]
["SA13",2021,"DC16",1104,36,"Water usage - flat rate tariff (c/kl)",null,null,null,null,null,null,null,null,null,null,null,null,null,null,null,null,"~"]
["SA13",2021,"DC16",1105,37,"Water usage - life line tariff",null,null,null,null,null,null,null,null,null,null,null,null,null,null,null,null,"~"]
["SA13",2021,"DC16",1106,38,"Water usage - Block 1 (c/kl)",null,null,null,null,null,null,null,null,null,null,null,null,null,null,null,null,"~"]
["SA13",2021,"DC16",1107,39,"Water usage - Block 2 (c/kl)",null,null,null,null,null,null,null,null,null,null,null,null,null,null,null,null,"~"]
["SA13",2021,"DC16",1108,40,"Water usage - Block 3 (c/kl)",null,null,null,null,null,null,null,null,null,null,null,null,null,null,null,null,"~"]
["SA13",2021,"DC16",1109,41,"Water usage - Block 4 (c/kl)",null,null,null,null,null,null,null,null,null,null,null,null,null,null,null,null,"~"]
["SA13",2021,"DC16",1110,42,"Other",null,null,null,null,null,null,null,null,null,null,null,null,null,null,null,null,"~"]
["SA13",2021,"DC16",null,null,null,null,null,null,null,null,null,null,null,null,null,null,null,null,null,null,null,"~"]
["SA13",2021,"DC16",1200,43,"Waste water tariffs",null,null,null,null,null,null,null,null,null,null,null,null,null,null,null,null,"~"]
["SA13",2021,"DC16",1201,44,"Domestic",null,null,null,null,null,null,null,null,null,null,null,null,null,null,null,null,"~"]
["SA13",2021,"DC16",1202,45,"Basic charge/fixed fee (Rands/month)",null,null,null,null,null,null,null,null,null,null,null,null,null,null,null,null,"~"]
["SA13",2021,"DC16",1203,46,"Service point - vacant land (Rands/month)",null,null,null,null,null,null,null,null,null,null,null,null,null,null,null,null,"~"]
["SA13",2021,"DC16",1204,47,"Waste water - flat rate tariff (c/kl)",null,null,null,null,null,null,null,null,null,null,null,null,null,null,null,null,"~"]
["SA13",2021,"DC16",1205,48,"Volumetric charge - Block 1 (c/kl)",null,null,null,null,null,null,null,null,null,null,null,null,null,null,null,null,"~"]
["SA13",2021,"DC16",1206,49,"Volumetric charge - Block 2 (c/kl)",null,null,null,null,null,null,null,null,null,null,null,null,null,null,null,null,"~"]
["SA13",2021,"DC16",1207,50,"Volumetric charge - Block 3 (c/kl)",null,null,null,null,null,null,null,null,null,null,null,null,null,null,null,null,"~"]
["SA13",2021,"DC16",1208,51,"Volumetric charge - Block 4 (c/kl)",null,null,null,null,null,null,null,null,null,null,null,null,null,null,null,null,"~"]
["SA13",2021,"DC16",1209,52,"Other",null,null,null,null,null,null,null,null,null,null,null,null,null,null,null,null,"~"]
["SA13",2021,"DC16",null,null,null,null,null,null,null,null,null,null,null,null,null,null,null,null,null,null,null,"~"]
["SA13",2021,"DC16",1300,53,"Electricity tariffs",null,null,null,null,null,null,null,null,null,null,null,null,null,null,null,null,"~"]
["SA13",2021,"DC16",1301,54,"Domestic",null,null,null,null,null,null,null,null,null,null,null,null,null,null,null,null,"~"]
["SA13",2021,"DC16",1302,55,"Basic charge/fixed fee (Rands/month)",null,null,null,null,null,null,null,null,null,null,null,null,null,null,null,null,"~"]
["SA13",2021,"DC16",1303,56,"Service point - vacant land (Rands/month)",null,null,null,null,null,null,null,null,null,null,null,null,null,null,null,null,"~"]
["SA13",2021,"DC16",1304,57,"FBE",null,null,null,null,null,null,null,null,null,null,null,null,null,null,null,null,"~"]
["SA13",2021,"DC16",1305,58,"Life-line tariff - meter",null,null,null,null,null,null,null,null,null,null,null,null,null,null,null,null,"~"]
["SA13",2021,"DC16",1306,59,"Life-line tariff - prepaid",null,null,null,null,null,null,null,null,null,null,null,null,null,null,null,null,"~"]
["SA13",2021,"DC16",1307,60,"Flat rate tariff - meter (c/kwh)",null,null,null,null,null,null,null,null,null,null,null,null,null,null,null,null,"~"]
["SA13",2021,"DC16",1308,61,"Flat rate tariff - prepaid(c/kwh)",null,null,null,null,null,null,null,null,null,null,null,null,null,null,null,null,"~"]
["SA13",2021,"DC16",1309,62,"Meter - IBT Block 1 (c/kwh)",null,null,null,null,null,null,null,null,null,null,null,null,null,null,null,null,"~"]
["SA13",2021,"DC16",1310,63,"Meter - IBT Block 2 (c/kwh)",null,null,null,null,null,null,null,null,null,null,null,null,null,null,null,null,"~"]
["SA13",2021,"DC16",1311,64,"Meter - IBT Block 3 (c/kwh)",null,null,null,null,null,null,null,null,null,null,null,null,null,null,null,null,"~"]
["SA13",2021,"DC16",1312,65,"Meter - IBT Block 4 (c/kwh)",null,null,null,null,null,null,null,null,null,null,null,null,null,null,null,null,"~"]
["SA13",2021,"DC16",1313,66,"Meter - IBT Block 5 (c/kwh)",null,null,null,null,null,null,null,null,null,null,null,null,null,null,null,null,"~"]
["SA13",2021,"DC16",1314,67,"Prepaid - IBT Block 1 (c/kwh)",null,null,null,null,null,null,null,null,null,null,null,null,null,null,null,null,"~"]
["SA13",2021,"DC16",1315,68,"Prepaid - IBT Block 2 (c/kwh)",null,null,null,null,null,null,null,null,null,null,null,null,null,null,null,null,"~"]
["SA13",2021,"DC16",1316,69,"Prepaid - IBT Block 3 (c/kwh)",null,null,null,null,null,null,null,null,null,null,null,null,null,null,null,null,"~"]
["SA13",2021,"DC16",1317,70,"Prepaid - IBT Block 4 (c/kwh)",null,null,null,null,null,null,null,null,null,null,null,null,null,null,null,null,"~"]
["SA13",2021,"DC16",1318,71,"Prepaid - IBT Block 5 (c/kwh)",null,null,null,null,null,null,null,null,null,null,null,null,null,null,null,null,"~"]
["SA13",2021,"DC16",1319,72,"Other",null,null,null,null,null,null,null,null,null,null,null,null,null,null,null,null,"~"]
["SA13",2021,"DC16",null,null,null,null,null,null,null,null,null,null,null,null,null,null,null,null,null,null,null,"~"]
["SA13",2021,"DC16",1400,73,"Waste management tariffs",null,null,null,null,null,null,null,null,null,null,null,null,null,null,null,null,"~"]
["SA13",2021,"DC16",1401,74,"Domestic",null,null,null,null,null,null,null,null,null,null,null,null,null,null,null,null,"~"]
["SA13",2021,"DC16",1402,75,"Street cleaning charge",null,null,null,null,null,null,null,null,null,null,null,null,null,null,null,null,"~"]
["SA13",2021,"DC16",1403,76,"Basic charge/fixed fee",null,null,null,null,null,null,null,null,null,null,null,null,null,null,null,null,"~"]
["SA13",2021,"DC16",1404,77,"80l bin - once a week",null,null,null,null,null,null,null,null,null,null,null,null,null,null,null,null,"~"]
["SA13",2021,"DC16",1405,78,"250l bin - once a week",null,null,null,null,null,null,null,null,null,null,null,null,null,null,null,null,"~"]
["SA14",2021,"DC16",1000,1,"Monthly Account for Household - 'Middle Income Range'",null,null,null,null,null,null,null,null,null,null,null,null,null,null,null,null,"~"]
["SA14",2021,"DC16",1001,2,"Rates and services charges:",null,null,null,null,null,null,null,null,null,null,null,null,null,null,null,null,"~"]
["SA14",2021,"DC16",1002,3,"Property rates",null,null,null,null,null,null,null,null,null,null,null,null,null,null,null,null,"~"]
["SA14",2021,"DC16",1003,4,"Electricity: Basic levy",null,null,null,null,null,null,null,null,null,null,null,null,null,null,null,null,"~"]
["SA14",2021,"DC16",1004,5,"Electricity: Consumption",null,null,null,null,null,null,null,null,null,null,null,null,null,null,null,null,"~"]
["SA14",2021,"DC16",1005,6,"Water: Basic levy",null,null,null,null,null,null,null,null,null,null,null,null,null,null,null,null,"~"]
["SA14",2021,"DC16",1006,7,"Water: Consumption",null,null,null,null,null,null,null,null,null,null,null,null,null,null,null,null,"~"]
["SA14",2021,"DC16",1007,8,"Sanitation",null,null,null,null,null,null,null,null,null,null,null,null,null,null,null,null,"~"]
["SA14",{"$f":"+MTREF","v":2021},{"$f":"LEFT(muni,(FIND(\" \",muni,1)-1))","v":"DC16"},1008,9,"Refuse removal",null,null,null,null,null,null,null,null,null,null,null,null,null,null,null,null,"~"]
["SA14",2021,"DC16",1009,10,"Other",null,null,null,null,null,null,null,null,null,null,null,null,null,null,null,null,"~"]
["SA14",2021,"DC16",1090,11,"sub-total",null,null,null,null,null,null,null,null,null,null,null,null,null,null,null,null,"~"]
["SA14",2021,"DC16",1091,12,"VAT on Services",null,null,null,null,null,null,null,null,null,null,null,null,null,null,null,null,"~"]
["SA14",2021,"DC16",1095,13,"Total large household bill:",null,null,null,null,null,null,null,null,null,null,null,null,null,null,null,null,"~"]
["SA14",2021,"DC16",1096,14,"% increase/-decrease",null,null,null,null,null,null,null,null,null,null,null,null,null,null,null,null,"~"]
["SA14",2021,"DC16",null,null,null,null,null,null,null,null,null,null,null,null,null,null,null,null,null,null,null,"~"]
["SA14",2021,"DC16",1100,15,"Monthly Account for Household - 'Affordable Range' ",null,null,null,null,null,null,null,null,null,null,null,null,null,null,null,null,"~"]
["SA14",2021,"DC16",1101,16,"Rates and services charges:",null,null,null,null,null,null,null,null,null,null,null,null,null,null,null,null,"~"]
["SA14",2021,"DC16",1102,17,"Property rates",null,null,null,null,null,null,null,null,null,null,null,null,null,null,null,null,"~"]
["SA14",2021,"DC16",1103,18,"Electricity: Basic levy",null,null,null,null,null,null,null,null,null,null,null,null,null,null,null,null,"~"]
["SA14",2021,"DC16",1110,19,"Electricity: Consumption",null,null,null,null,null,null,null,null,null,null,null,null,null,null,null,null,"~"]
["SA14",2021,"DC16",1107,20,"Water: Basic levy",null,null,null,null,null,null,null,null,null,null,null,null,null,null,null,null,"~"]
["SA14",2021,"DC16",1104,21,"Water: Consumption",null,null,null,null,null,null,null,null,null,null,null,null,null,null,null,null,"~"]
["SA14",2021,"DC16",1105,22,"Sanitation",null,null,null,null,null,null,null,null,null,null,null,null,null,null,null,null,"~"]
["SA14",2021,"DC16",1106,23,"Refuse removal",null,null,null,null,null,null,null,null,null,null,null,null,null,null,null,null,"~"]
["SA14",2021,"DC16",1108,24,"Other",null,null,null,null,null,null,null,null,null,null,null,null,null,null,null,null,"~"]
["SA14",2021,"DC16",1190,25,"sub-total",null,null,null,null,null,null,null,null,null,null,null,null,null,null,null,null,"~"]
["SA14",2021,"DC16",1191,26,"VAT on Services",null,null,null,null,null,null,null,null,null,null,null,null,null,null,null,null,"~"]
["SA14",2021,"DC16",1195,27,"Total small household bill:",null,null,null,null,null,null,null,null,null,null,null,null,null,null,null,null,"~"]
["SA14",2021,"DC16",1196,28,"% increase/-decrease",null,null,null,null,null,null,null,null,null,null,null,null,null,null,null,null,"~"]
["SA14",2021,"DC16",null,null,null,null,null,null,null,null,null,null,null,null,null,null,null,null,null,null,null,"~"]
["SA14",2021,"DC16",1200,29,"Monthly Account for Household - 'Indigent' HH receiving FBS",null,null,null,null,null,null,null,null,null,null,null,null,null,null,null,null,"~"]
["SA14",2021,"DC16",1201,30,"Rates and services charges:",null,null,null,null,null,null,null,null,null,null,null,null,null,null,null,null,"~"]
["SA14",2021,"DC16",1202,31,"Property rates",null,null,null,null,null,null,null,null,null,null,null,null,null,null,null,null,"~"]
["SA14",2021,"DC16",1203,32,"Electricity: Basic levy",null,null,null,null,null,null,null,null,null,null,null,null,null,null,null,null,"~"]
["SA14",2021,"DC16",1207,33,"Electricity: Consumption",null,null,null,null,null,null,null,null,null,null,null,null,null,null,null,null,"~"]
["SA14",2021,"DC16",1208,34,"Water: Basic levy",null,null,null,null,null,null,null,null,null,null,null,null,null,null,null,null,"~"]
["SA14",2021,"DC16",1204,35,"Water: Consumption",null,null,null,null,null,null,null,null,null,null,null,null,null,null,null,null,"~"]
["SA14",2021,"DC16",1205,36,"Sanitation",null,null,null,null,null,null,null,null,null,null,null,null,null,null,null,null,"~"]
["SA14",2021,"DC16",1206,37,"Refuse removal",null,null,null,null,null,null,null,null,null,null,null,null,null,null,null,null,"~"]
["SA14",2021,"DC16",1209,38,"Other",null,null,null,null,null,null,null,null,null,null,null,null,null,null,null,null,"~"]
["SA14",2021,"DC16",1290,39,"sub-total",null,null,null,null,null,null,null,null,null,null,null,null,null,null,null,null,"~"]
["SA14",2021,"DC16",1291,40,"VAT on Services",null,null,null,null,null,null,null,null,null,null,null,null,null,null,null,null,"~"]
["SA14",2021,"DC16",1295,41,"Total small household bill:",null,null,null,null,null,null,null,null,null,null,null,null,null,null,null,null,"~"]
["SA14",2021,"DC16",1296,42,"% increase/-decrease",null,null,null,null,null,null,null,null,null,null,null,null,null,null,null,null,"~"]
["SA22",2021,"DC16",1000,1,"Councillors (Political Office Bearers plus Other)",null,null,null,null,null,null,null,null,null,null,null,null,null,null,null,null,"~"]
["SA22",2021,"DC16",1001,2,"Basic Salaries and Wages",null,null,null,null,null,null,null,null,null,null,null,null,null,null,null,null,"~"]
["SA22",2021,"DC16",1002,3,"Pension and UIF Contributions",null,null,null,null,null,null,null,null,null,null,null,null,null,null,null,null,"~"]
["SA22",2021,"DC16",1003,4,"Medical Aid Contributions",null,null,null,null,null,null,null,null,null,null,null,null,null,null,null,null,"~"]
["SA22",2021,"DC16",1004,5,"Motor Vehicle Allowance",null,null,null,null,null,null,null,null,null,null,null,null,null,null,null,null,"~"]
["SA22",2021,"DC16",1005,6,"Cellphone Allowance",null,null,null,null,null,null,null,null,null,null,null,null,null,null,null,null,"~"]
["SA22",2021,"DC16",1006,7,"Housing Allowances",null,null,null,null,null,null,null,null,null,null,null,null,null,null,null,null,"~"]
["SA22",2021,"DC16",1007,8,"Other benefits and allowances",null,null,null,null,null,null,null,null,null,null,null,null,null,null,null,null,"~"]
["SA22",2021,"DC16",1090,9,"Sub Total - Councillors",null,null,null,null,null,null,null,null,null,null,null,null,null,null,null,null,"~"]
["SA22",2021,"DC16",1091,10,"% increase",null,null,null,null,null,null,null,null,null,null,null,null,null,null,null,null,"~"]
["SA22",2021,"DC16",null,null,null,null,null,null,null,null,null,null,null,null,null,null,null,null,null,null,null,"~"]
["SA22",2021,"DC16",1100,11,"Senior Managers of the Municipality",null,null,null,null,null,null,null,null,null,null,null,null,null,null,null,null,"~"]
["SA22",2021,"DC16",1101,12,"Basic Salaries and Wages",null,null,null,null,null,null,null,null,null,null,null,null,null,null,null,null,"~"]
["SA22",2021,"DC16",1102,13,"Pension and UIF Contributions",null,null,null,null,null,null,null,null,null,null,null,null,null,null,null,null,"~"]
["SA22",2021,"DC16",1103,14,"Medical Aid Contributions",null,null,null,null,null,null,null,null,null,null,null,null,null,null,null,null,"~"]
["SA22",2021,"DC16",1110,15,"Overtime",null,null,null,null,null,null,null,null,null,null,null,null,null,null,null,null,"~"]
["SA22",2021,"DC16",1107,16,"Performance Bonus",null,null,null,null,null,null,null,null,null,null,null,null,null,null,null,null,"~"]
["SA22",2021,"DC16",1104,17,"Motor Vehicle Allowance",null,null,null,null,null,null,null,null,null,null,null,null,null,null,null,null,"~"]
["SA22",2021,"DC16",1105,18,"Cellphone Allowance",null,null,null,null,null,null,null,null,null,null,null,null,null,null,null,null,"~"]
["SA22",2021,"DC16",1106,19,"Housing Allowances",null,null,null,null,null,null,null,null,null,null,null,null,null,null,null,null,"~"]
["SA22",2021,"DC16",1108,20,"Other benefits and allowances",null,null,null,null,null,null,null,null,null,null,null,null,null,null,null,null,"~"]
["SA22",2021,"DC16",1111,21,"Payments in lieu of leave",null,null,null,null,null,null,null,null,null,null,null,null,null,null,null,null,"~"]
["SA22",2021,"DC16",1112,22,"Long service awards",null,null,null,null,null,null,null,null,null,null,null,null,null,null,null,null,"~"]
["SA22",2021,"DC16",1113,23,"Post-retirement benefit obligations",null,null,null,null,null,null,null,null,null,null,null,null,null,null,null,null,"~"]
["SA22",2021,"DC16",1190,24,"Sub Total - Senior Managers of Municipality",null,null,null,null,null,null,null,null,null,null,null,null,null,null,null,null,"~"]
["SA22",2021,"DC16",1191,25,"% increase",null,null,null,null,null,null,null,null,null,null,null,null,null,null,null,null,"~"]
["SA22",2021,"DC16",null,null,null,null,null,null,null,null,null,null,null,null,null,null,null,null,null,null,null,"~"]
["SA22",2021,"DC16",1200,26,"Other Municipal Staff",null,null,null,null,null,null,null,null,null,null,null,null,null,null,null,null,"~"]
["SA22",{"$f":"+MTREF","v":2021},{"$f":"LEFT(muni,(FIND(\" \",muni,1)-1))","v":"DC16"},1201,27,"Basic Salaries and Wages",null,null,null,null,null,null,null,null,null,null,null,null,null,null,null,null,"~"]
["SA22",2021,"DC16",1202,28,"Pension and UIF Contributions",null,null,null,null,null,null,null,null,null,null,null,null,null,null,null,null,"~"]
["SA22",2021,"DC16",1203,29,"Medical Aid Contributions",null,null,null,null,null,null,null,null,null,null,null,null,null,null,null,null,"~"]
["SA22",2021,"DC16",1207,30,"Overtime",null,null,null,null,null,null,null,null,null,null,null,null,null,null,null,null,"~"]
["SA22",2021,"DC16",1208,31,"Performance Bonus",null,null,null,null,null,null,null,null,null,null,null,null,null,null,null,null,"~"]
["SA22",2021,"DC16",1204,32,"Motor Vehicle Allowance",null,null,null,null,null,null,null,null,null,null,null,null,null,null,null,null,"~"]
["SA22",2021,"DC16",1205,33,"Cellphone Allowance",null,null,null,null,null,null,null,null,null,null,null,null,null,null,null,null,"~"]
["SA22",2021,"DC16",1206,34,"Housing Allowances",null,null,null,null,null,null,null,null,null,null,null,null,null,null,null,null,"~"]
["SA22",2021,"DC16",1209,35,"Other benefits and allowances",null,null,null,null,null,null,null,null,null,null,null,null,null,null,null,null,"~"]
["SA22",2021,"DC16",1211,36,"Payments in lieu of leave",null,null,null,null,null,null,null,null,null,null,null,null,null,null,null,null,"~"]
["SA22",2021,"DC16",1212,37,"Long service awards",null,null,null,null,null,null,null,null,null,null,null,null,null,null,null,null,"~"]
["SA22",2021,"DC16",1213,38,"Post-retirement benefit obligations",null,null,null,null,null,null,null,null,null,null,null,null,null,null,null,null,"~"]
["SA22",2021,"DC16",1290,39,"Sub Total - Other Municipal Staff",null,null,null,null,null,null,null,null,null,null,null,null,null,null,null,null,"~"]
["SA22",2021,"DC16",1291,40,"% increase",null,null,null,null,null,null,null,null,null,null,null,null,null,null,null,null,"~"]
["SA22",2021,"DC16",null,null,null,null,null,null,null,null,null,null,null,null,null,null,null,null,null,null,null,"~"]
["SA22",2021,"DC16",1295,41,"Total Parent Municipality",null,null,null,null,null,null,null,null,null,null,null,null,null,null,null,null,"~"]
["SA22",2021,"DC16",1297,42,"% increase",null,null,null,null,null,null,null,null,null,null,null,null,null,null,null,null,"~"]
["SA22",2021,"DC16",null,null,null,null,null,null,null,null,null,null,null,null,null,null,null,null,null,null,null,"~"]
["SA22",2021,"DC16",2000,43,"Board Members of Entities",null,null,null,null,null,null,null,null,null,null,null,null,null,null,null,null,"~"]
["SA22",2021,"DC16",2001,44,"Basic Salaries and Wages",null,null,null,null,null,null,null,null,null,null,null,null,null,null,null,null,"~"]
["SA22",2021,"DC16",2002,45,"Pension and UIF Contributions",null,null,null,null,null,null,null,null,null,null,null,null,null,null,null,null,"~"]
["SA22",2021,"DC16",2003,46,"Medical Aid Contributions",null,null,null,null,null,null,null,null,null,null,null,null,null,null,null,null,"~"]
["SA22",2021,"DC16",2010,47,"Overtime",null,null,null,null,null,null,null,null,null,null,null,null,null,null,null,null,"~"]
["SA22",2021,"DC16",2011,48,"Performance Bonus",null,null,null,null,null,null,null,null,null,null,null,null,null,null,null,null,"~"]
["SA22",2021,"DC16",2004,49,"Motor Vehicle Allowance",null,null,null,null,null,null,null,null,null,null,null,null,null,null,null,null,"~"]
["SA22",2021,"DC16",2005,50,"Cellphone Allowance",null,null,null,null,null,null,null,null,null,null,null,null,null,null,null,null,"~"]
["SA22",2021,"DC16",2006,51,"Housing Allowances",null,null,null,null,null,null,null,null,null,null,null,null,null,null,null,null,"~"]
["SA22",2021,"DC16",2008,52,"Other benefits and allowances",null,null,null,null,null,null,null,null,null,null,null,null,null,null,null,null,"~"]
["SA22",2021,"DC16",2007,53,"Board Fees",null,null,null,null,null,null,null,null,null,null,null,null,null,null,null,null,"~"]
["SA22",2021,"DC16",2012,54,"Payments in lieu of leave",null,null,null,null,null,null,null,null,null,null,null,null,null,null,null,null,"~"]
["SA22",2021,"DC16",2013,55,"Long service awards",null,null,null,null,null,null,null,null,null,null,null,null,null,null,null,null,"~"]
["SA22",2021,"DC16",2014,56,"Post-retirement benefit obligations",null,null,null,null,null,null,null,null,null,null,null,null,null,null,null,null,"~"]
["SA22",2021,"DC16",2090,57,"Sub Total - Board Members of Entities",null,null,null,null,null,null,null,null,null,null,null,null,null,null,null,null,"~"]
["SA22",2021,"DC16",2091,58,"% increase",null,null,null,null,null,null,null,null,null,null,null,null,null,null,null,null,"~"]
["SA22",2021,"DC16",null,null,null,null,null,null,null,null,null,null,null,null,null,null,null,null,null,null,null,"~"]
["SA22",2021,"DC16",2100,59,"Senior Managers of Entities",null,null,null,null,null,null,null,null,null,null,null,null,null,null,null,null,"~"]
["SA22",2021,"DC16",2101,60,"Basic Salaries and Wages",null,null,null,null,null,null,null,null,null,null,null,null,null,null,null,null,"~"]
["SA22",2021,"DC16",2102,61,"Pension and UIF Contributions",null,null,null,null,null,null,null,null,null,null,null,null,null,null,null,null,"~"]
["SA22",2021,"DC16",2103,62,"Medical Aid Contributions",null,null,null,null,null,null,null,null,null,null,null,null,null,null,null,null,"~"]
["SA22",2021,"DC16",2110,63,"Overtime",null,null,null,null,null,null,null,null,null,null,null,null,null,null,null,null,"~"]
["SA22",2021,"DC16",2107,64,"Performance Bonus",null,null,null,null,null,null,null,null,null,null,null,null,null,null,null,null,"~"]
["SA22",2021,"DC16",2104,65,"Motor Vehicle Allowance",null,null,null,null,null,null,null,null,null,null,null,null,null,null,null,null,"~"]
["SA22",2021,"DC16",2105,66,"Cellphone Allowance",null,null,null,null,null,null,null,null,null,null,null,null,null,null,null,null,"~"]
["SA22",2021,"DC16",2106,67,"Housing Allowances",null,null,null,null,null,null,null,null,null,null,null,null,null,null,null,null,"~"]
["SA22",2021,"DC16",2108,68,"Other benefits and allowances",null,null,null,null,null,null,null,null,null,null,null,null,null,null,null,null,"~"]
["SA22",2021,"DC16",2111,69,"Payments in lieu of leave",null,null,null,null,null,null,null,null,null,null,null,null,null,null,null,null,"~"]
["SA22",2021,"DC16",2112,70,"Long service awards",null,null,null,null,null,null,null,null,null,null,null,null,null,null,null,null,"~"]
["SA22",2021,"DC16",2113,71,"Post-retirement benefit obligations",null,null,null,null,null,null,null,null,null,null,null,null,null,null,null,null,"~"]
["SA22",2021,"DC16",2190,72,"Sub Total - Senior Managers of Entities",null,null,null,null,null,null,null,null,null,null,null,null,null,null,null,null,"~"]
["SA22",2021,"DC16",2191,73,"% increase",null,null,null,null,null,null,null,null,null,null,null,null,null,null,null,null,"~"]
["SA22",2021,"DC16",null,null,null,null,null,null,null,null,null,null,null,null,null,null,null,null,null,null,null,"~"]
["SA22",2021,"DC16",2200,74,"Other Staff of Entities",null,null,null,null,null,null,null,null,null,null,null,null,null,null,null,null,"~"]
["SA22",2021,"DC16",2201,75,"Basic Salaries and Wages",null,null,null,null,null,null,null,null,null,null,null,null,null,null,null,null,"~"]
["SA22",2021,"DC16",2202,76,"Pension and UIF Contributions",null,null,null,null,null,null,null,null,null,null,null,null,null,null,null,null,"~"]
["SA22",2021,"DC16",2203,77,"Medical Aid Contributions",null,null,null,null,null,null,null,null,null,null,null,null,null,null,null,null,"~"]
["SA22",2021,"DC16",2207,78,"Overtime",null,null,null,null,null,null,null,null,null,null,null,null,null,null,null,null,"~"]
["SA22",2021,"DC16",2208,79,"Performance Bonus",null,null,null,null,null,null,null,null,null,null,null,null,null,null,null,null,"~"]
["SA22",2021,"DC16",2204,80,"Motor Vehicle Allowance",null,null,null,null,null,null,null,null,null,null,null,null,null,null,null,null,"~"]
["SA22",2021,"DC16",2205,81,"Cellphone Allowance",null,null,null,null,null,null,null,null,null,null,null,null,null,null,null,null,"~"]
["SA22",2021,"DC16",2206,82,"Housing Allowances",null,null,null,null,null,null,null,null,null,null,null,null,null,null,null,null,"~"]
["SA22",2021,"DC16",2209,83,"Other benefits and allowances",null,null,null,null,null,null,null,null,null,null,null,null,null,null,null,null,"~"]
["SA22",2021,"DC16",2211,84,"Payments in lieu of leave",null,null,null,null,null,null,null,null,null,null,null,null,null,null,null,null,"~"]
["SA22",2021,"DC16",2212,85,"Long service awards",null,null,null,null,null,null,null,null,null,null,null,null,null,null,null,null,"~"]
["SA22",2021,"DC16",2213,86,"Post-retirement benefit obligations",null,null,null,null,null,null,null,null,null,null,null,null,null,null,null,null,"~"]
["SA22",{"$f":"+MTREF","v":2021},{"$f":"LEFT(muni,(FIND(\" \",muni,1)-1))","v":"DC16"},2290,87,"Sub Total - Other Staff of Entities",null,null,null,null,null,null,null,null,null,null,null,null,null,null,null,null,"~"]
["SA22",2021,"DC16",2291,89,"% increase",null,null,null,null,null,null,null,null,null,null,null,null,null,null,null,null,"~"]
["SA22",2021,"DC16",null,null,null,null,null,null,null,null,null,null,null,null,null,null,null,null,null,null,null,"~"]
["SA22",2021,"DC16",2295,90,"Total Municipal Entities",null,null,null,null,null,null,null,null,null,null,null,null,null,null,null,null,"~"]
["SA22",2021,"DC16",null,null,null,null,null,null,null,null,null,null,null,null,null,null,null,null,null,null,null,"~"]
["SA22",2021,"DC16",2296,91,"TOTAL SALARY, ALLOWANCES & BENEFITS",null,null,null,null,null,null,null,null,null,null,null,null,null,null,null,null,"~"]
["SA22",2021,"DC16",2297,92,"% increase",null,null,null,null,null,null,null,null,null,null,null,null,null,null,null,null,"~"]
["SA22",2021,"DC16",2298,93,"TOTAL MANAGERS AND STAFF",null,null,null,null,null,null,null,null,null,null,null,null,null,null,null,null,"~"]
["SA23",2021,"DC16",1000,1,null,null,null,null,null,null,null,null,null,null,null,null,null,null,null,null,null,"~"]
["SA23",2021,"DC16",1001,2,null,null,null,null,null,null,null,null,null,null,null,null,null,null,null,null,null,"~"]
["SA23",2021,"DC16",1002,3,null,null,null,null,null,null,null,null,null,null,null,null,null,null,null,null,null,"~"]
["SA23",2021,"DC16",1003,4,null,null,null,null,null,null,null,null,null,null,null,null,null,null,null,null,null,"~"]
["SA23",2021,"DC16",1004,5,null,null,null,null,null,null,null,null,null,null,null,null,null,null,null,null,null,"~"]
["SA23",2021,"DC16",1005,6,null,null,null,null,null,null,null,null,null,null,null,null,null,null,null,null,null,"~"]
["SA23",2021,"DC16",1006,7,null,null,null,null,null,null,null,null,null,null,null,null,null,null,null,null,null,"~"]
["SA23",2021,"DC16",1090,8,null,null,null,null,null,null,null,null,null,null,null,null,null,null,null,null,null,"~"]
["SA23",2021,"DC16",null,null,null,null,null,null,null,null,null,null,null,null,null,null,null,null,null,null,null,"~"]
["SA23",2021,"DC16",null,null,null,null,null,null,null,null,null,null,null,null,null,null,null,null,null,null,null,"~"]
["SA23",2021,"DC16",null,null,null,null,null,null,null,null,null,null,null,null,null,null,null,null,null,null,null,"~"]
["SA23",2021,"DC16",null,null,null,null,null,null,null,null,null,null,null,null,null,null,null,null,null,null,null,"~"]
["SA23",2021,"DC16",null,null,null,null,null,null,null,null,null,null,null,null,null,null,null,null,null,null,null,"~"]
["SA23",2021,"DC16",null,null,null,null,null,null,null,null,null,null,null,null,null,null,null,null,null,null,null,"~"]
["SA23",2021,"DC16",null,null,null,null,null,null,null,null,null,null,null,null,null,null,null,null,null,null,null,"~"]
["SA23",2021,"DC16",null,null,null,null,null,null,null,null,null,null,null,null,null,null,null,null,null,null,null,"~"]
["SA23",2021,"DC16",null,null,null,null,null,null,null,null,null,null,null,null,null,null,null,null,null,null,null,"~"]
["SA23",2021,"DC16",null,null,null,null,null,null,null,null,null,null,null,null,null,null,null,null,null,null,null,"~"]
["SA23",2021,"DC16",null,null,null,null,null,null,null,null,null,null,null,null,null,null,null,null,null,null,null,"~"]
["SA23",2021,"DC16",null,null,null,null,null,null,null,null,null,null,null,null,null,null,null,null,null,null,null,"~"]
["SA23",2021,"DC16",null,null,null,null,null,null,null,null,null,null,null,null,null,null,null,null,null,null,null,"~"]
["SA23",2021,"DC16",null,null,null,null,null,null,null,null,null,null,null,null,null,null,null,null,null,null,null,"~"]
["SA23",2021,"DC16",null,null,null,null,null,null,null,null,null,null,null,null,null,null,null,null,null,null,null,"~"]
["SA23",2021,"DC16",null,null,null,null,null,null,null,null,null,null,null,null,null,null,null,null,null,null,null,"~"]
["SA23",2021,"DC16",null,null,null,null,null,null,null,null,null,null,null,null,null,null,null,null,null,null,null,"~"]
["SA23",2021,"DC16",null,null,null,null,null,null,null,null,null,null,null,null,null,null,null,null,null,null,null,"~"]
["SA23",2021,"DC16",null,null,null,null,null,null,null,null,null,null,null,null,null,null,null,null,null,null,null,"~"]
["SA23",2021,"DC16",null,null,null,null,null,null,null,null,null,null,null,null,null,null,null,null,null,null,null,"~"]
["SA23",2021,"DC16",null,null,null,null,null,null,null,null,null,null,null,null,null,null,null,null,null,null,null,"~"]
["SA23",2021,"DC16",null,null,null,null,null,null,null,null,null,null,null,null,null,null,null,null,null,null,null,"~"]
["SA23",2021,"DC16",null,null,null,null,null,null,null,null,null,null,null,null,null,null,null,null,null,null,null,"~"]
["SA23",2021,"DC16",null,null,null,null,null,null,null,null,null,null,null,null,null,null,null,null,null,null,null,"~"]
["SA23",2021,"DC16",null,null,null,null,null,null,null,null,null,null,null,null,null,null,null,null,null,null,null,"~"]
["SA23",2021,"DC16",null,null,null,null,null,null,null,null,null,null,null,null,null,null,null,null,null,null,null,"~"]
["SA23",2021,"DC16",null,null,null,null,null,null,null,null,null,null,null,null,null,null,null,null,null,null,null,"~"]
["SA23",2021,"DC16",null,null,null,null,null,null,null,null,null,null,null,null,null,null,null,null,null,null,null,"~"]
["SA23",2021,"DC16",null,null,null,null,null,null,null,null,null,null,null,null,null,null,null,null,null,null,null,"~"]
["SA23",2021,"DC16",null,null,null,null,null,null,null,null,null,null,null,null,null,null,null,null,null,null,null,"~"]
["SA23",2021,"DC16",null,null,null,null,null,null,null,null,null,null,null,null,null,null,null,null,null,null,null,"~"]
["SA23",2021,"DC16",null,null,null,null,null,null,null,null,null,null,null,null,null,null,null,null,null,null,null,"~"]
["SA23",2021,"DC16",null,null,null,null,null,null,null,null,null,null,null,null,null,null,null,null,null,null,null,"~"]
["SA23",2021,"DC16",null,null,null,null,null,null,null,null,null,null,null,null,null,null,null,null,null,null,null,"~"]
["SA23",2021,"DC16",null,null,null,null,null,null,null,null,null,null,null,null,null,null,null,null,null,null,null,"~"]
["SA23",2021,"DC16",null,null,null,null,null,null,null,null,null,null,null,null,null,null,null,null,null,null,null,"~"]
["SA23",2021,"DC16",null,null,null,null,null,null,null,null,null,null,null,null,null,null,null,null,null,null,null,"~"]
["SA23",2021,"DC16",null,null,null,null,null,null,null,null,null,null,null,null,null,null,null,null,null,null,null,"~"]
["SA23",2021,"DC16",null,null,null,null,null,null,null,null,null,null,null,null,null,null,null,null,null,null,null,"~"]
["SA23",2021,"DC16",null,null,null,null,null,null,null,null,null,null,null,null,null,null,null,null,null,null,null,"~"]
["SA23",2021,"DC16",null,null,null,null,null,null,null,null,null,null,null,null,null,null,null,null,null,null,null,"~"]
["SA23",2021,"DC16",null,null,null,null,null,null,null,null,null,null,null,null,null,null,null,null,null,null,null,"~"]
["SA23",2021,"DC16",null,null,null,null,null,null,null,null,null,null,null,null,null,null,null,null,null,null,null,"~"]
["SA23",2021,"DC16",null,null,null,null,null,null,null,null,null,null,null,null,null,null,null,null,null,null,null,"~"]
["SA23",2021,"DC16",null,null,null,null,null,null,null,null,null,null,null,null,null,null,null,null,null,null,null,"~"]
["SA23",2021,"DC16",null,null,null,null,null,null,null,null,null,null,null,null,null,null,null,null,null,null,null,"~"]
["SA23",2021,"DC16",null,null,null,null,null,null,null,null,null,null,null,null,null,null,null,null,null,null,null,"~"]
["SA23",2021,"DC16",null,null,null,null,null,null,null,null,null,null,null,null,null,null,null,null,null,null,null,"~"]
["SA23",{"$f":"+MTREF","v":2021},{"$f":"LEFT(muni,(FIND(\" \",muni,1)-1))","v":"DC16"},null,null,null,null,null,null,null,null,null,null,null,null,null,null,null,null,null,null,null,"~"]
["SA23",2021,"DC16",null,null,null,null,null,null,null,null,null,null,null,null,null,null,null,null,null,null,null,"~"]
["SA23",2021,"DC16",null,null,null,null,null,null,null,null,null,null,null,null,null,null,null,null,null,null,null,"~"]
["SA23",2021,"DC16",null,null,null,null,null,null,null,null,null,null,null,null,null,null,null,null,null,null,null,"~"]
["SA23",2021,"DC16",null,null,null,null,null,null,null,null,null,null,null,null,null,null,null,null,null,null,null,"~"]
["SA23",2021,"DC16",null,null,null,null,null,null,null,null,null,null,null,null,null,null,null,null,null,null,null,"~"]
["SA23",2021,"DC16",null,null,null,null,null,null,null,null,null,null,null,null,null,null,null,null,null,null,null,"~"]
["SA23",2021,"DC16",null,null,null,null,null,null,null,null,null,null,null,null,null,null,null,null,null,null,null,"~"]
["SA23",2021,"DC16",null,null,null,null,null,null,null,null,null,null,null,null,null,null,null,null,null,null,null,"~"]
["SA23",2021,"DC16",null,null,null,null,null,null,null,null,null,null,null,null,null,null,null,null,null,null,null,"~"]
["SA23",2021,"DC16",null,null,null,null,null,null,null,null,null,null,null,null,null,null,null,null,null,null,null,"~"]
["SA23",2021,"DC16",null,null,null,null,null,null,null,null,null,null,null,null,null,null,null,null,null,null,null,"~"]
["SA23",2021,"DC16",null,null,null,null,null,null,null,null,null,null,null,null,null,null,null,null,null,null,null,"~"]
["SA23",2021,"DC16",null,null,null,null,null,null,null,null,null,null,null,null,null,null,null,null,null,null,null,"~"]
["SA23",2021,"DC16",null,null,null,null,null,null,null,null,null,null,null,null,null,null,null,null,null,null,null,"~"]
["SA23",2021,"DC16",null,null,null,null,null,null,null,null,null,null,null,null,null,null,null,null,null,null,null,"~"]
["SA23",2021,"DC16",null,null,null,null,null,null,null,null,null,null,null,null,null,null,null,null,null,null,null,"~"]
["SA23",2021,"DC16",null,null,null,null,null,null,null,null,null,null,null,null,null,null,null,null,null,null,null,"~"]
["SA23",2021,"DC16",null,null,null,null,null,null,null,null,null,null,null,null,null,null,null,null,null,null,null,"~"]
["SA23",2021,"DC16",null,null,null,null,null,null,null,null,null,null,null,null,null,null,null,null,null,null,null,"~"]
["SA23",2021,"DC16",null,null,null,null,null,null,null,null,null,null,null,null,null,null,null,null,null,null,null,"~"]
["SA23",2021,"DC16",null,null,null,null,null,null,null,null,null,null,null,null,null,null,null,null,null,null,null,"~"]
["SA23",2021,"DC16",null,null,null,null,null,null,null,null,null,null,null,null,null,null,null,null,null,null,null,"~"]
["SA23",2021,"DC16",null,null,null,null,null,null,null,null,null,null,null,null,null,null,null,null,null,null,null,"~"]
["SA23",2021,"DC16",null,null,null,null,null,null,null,null,null,null,null,null,null,null,null,null,null,null,null,"~"]
["SA23",2021,"DC16",null,null,null,null,null,null,null,null,null,null,null,null,null,null,null,null,null,null,null,"~"]
["SA23",2021,"DC16",null,null,null,null,null,null,null,null,null,null,null,null,null,null,null,null,null,null,null,"~"]
["SA23",2021,"DC16",null,null,null,null,null,null,null,null,null,null,null,null,null,null,null,null,null,null,null,"~"]
["SA23",2021,"DC16",null,null,null,null,null,null,null,null,null,null,null,null,null,null,null,null,null,null,null,"~"]
["SA23",2021,"DC16",null,null,null,null,null,null,null,null,null,null,null,null,null,null,null,null,null,null,null,"~"]
["SA23",2021,"DC16",null,null,null,null,null,null,null,null,null,null,null,null,null,null,null,null,null,null,null,"~"]
["SA23",2021,"DC16",null,null,null,null,null,null,null,null,null,null,null,null,null,null,null,null,null,null,null,"~"]
["SA23",2021,"DC16",null,null,null,null,null,null,null,null,null,null,null,null,null,null,null,null,null,null,null,"~"]
["SA23",2021,"DC16",null,null,null,null,null,null,null,null,null,null,null,null,null,null,null,null,null,null,null,"~"]
["SA23",2021,"DC16",null,null,null,null,null,null,null,null,null,null,null,null,null,null,null,null,null,null,null,"~"]
["SA23",2021,"DC16",null,null,null,null,null,null,null,null,null,null,null,null,null,null,null,null,null,null,null,"~"]
["SA23",2021,"DC16",null,null,null,null,null,null,null,null,null,null,null,null,null,null,null,null,null,null,null,"~"]
["SA23",2021,"DC16",null,null,null,null,null,null,null,null,null,null,null,null,null,null,null,null,null,null,null,"~"]
["SA23",2021,"DC16",null,null,null,null,null,null,null,null,null,null,null,null,null,null,null,null,null,null,null,"~"]
["SA23",2021,"DC16",null,null,null,null,null,null,null,null,null,null,null,null,null,null,null,null,null,null,null,"~"]
["SA23",2021,"DC16",null,null,null,null,null,null,null,null,null,null,null,null,null,null,null,null,null,null,null,"~"]
["SA23",2021,"DC16",null,null,null,null,null,null,null,null,null,null,null,null,null,null,null,null,null,null,null,"~"]
["SA23",2021,"DC16",null,null,null,null,null,null,null,null,null,null,null,null,null,null,null,null,null,null,null,"~"]
["SA24",2021,"DC16",1000,1,"Municipal Council and Boards of Municipal Entities",null,null,null,null,null,null,null,null,null,null,null,null,null,null,null,null,"~"]
["SA24",2021,"DC16",1001,2,"Councillors (Political Office Bearers and Other Councillors)",null,null,null,null,null,null,null,null,null,null,null,null,null,null,null,null,"~"]
["SA24",2021,"DC16",1002,3,"Board Members of municipal entities",null,null,null,null,null,null,null,null,null,null,null,null,null,null,null,null,"~"]
["SA24",2021,"DC16",1100,4,"Municipal employees",null,null,null,null,null,null,null,null,null,null,null,null,null,null,null,null,"~"]
["SA24",2021,"DC16",1101,5,"Municipal Manager and Senior Managers",null,null,null,null,null,null,null,null,null,null,null,null,null,null,null,null,"~"]
["SA24",2021,"DC16",1102,6,"Other Managers",null,null,null,null,null,null,null,null,null,null,null,null,null,null,null,null,"~"]
["SA24",2021,"DC16",1103,7,"Professionals",null,null,null,null,null,null,null,null,null,null,null,null,null,null,null,null,"~"]
["SA24",2021,"DC16",1104,8,"Finance",null,null,null,null,null,null,null,null,null,null,null,null,null,null,null,null,"~"]
["SA24",2021,"DC16",1105,9,"Spatial/town planning",null,null,null,null,null,null,null,null,null,null,null,null,null,null,null,null,"~"]
["SA24",2021,"DC16",1106,10,"Information Technology",null,null,null,null,null,null,null,null,null,null,null,null,null,null,null,null,"~"]
["SA24",2021,"DC16",1107,11,"Roads",null,null,null,null,null,null,null,null,null,null,null,null,null,null,null,null,"~"]
["SA24",2021,"DC16",1108,12,"Electricity",null,null,null,null,null,null,null,null,null,null,null,null,null,null,null,null,"~"]
["SA24",2021,"DC16",1109,13,"Water",null,null,null,null,null,null,null,null,null,null,null,null,null,null,null,null,"~"]
["SA24",2021,"DC16",1110,14,"Sanitation",null,null,null,null,null,null,null,null,null,null,null,null,null,null,null,null,"~"]
["SA24",2021,"DC16",1111,15,"Refuse",null,null,null,null,null,null,null,null,null,null,null,null,null,null,null,null,"~"]
["SA24",2021,"DC16",1112,16,"Other",null,null,null,null,null,null,null,null,null,null,null,null,null,null,null,null,"~"]
["SA24",2021,"DC16",1113,17,"Technicians",null,null,null,null,null,null,null,null,null,null,null,null,null,null,null,null,"~"]
["SA24",2021,"DC16",1114,18,"Finance",null,null,null,null,null,null,null,null,null,null,null,null,null,null,null,null,"~"]
["SA24",2021,"DC16",1115,19,"Spatial/town planning",null,null,null,null,null,null,null,null,null,null,null,null,null,null,null,null,"~"]
["SA24",2021,"DC16",1116,20,"Information Technology",null,null,null,null,null,null,null,null,null,null,null,null,null,null,null,null,"~"]
["SA24",2021,"DC16",1117,21,"Roads",null,null,null,null,null,null,null,null,null,null,null,null,null,null,null,null,"~"]
["SA24",{"$f":"+MTREF","v":2021},{"$f":"LEFT(muni,(FIND(\" \",muni,1)-1))","v":"DC16"},1118,22,"Electricity",null,null,null,null,null,null,null,null,null,null,null,null,null,null,null,null,"~"]
["SA24",2021,"DC16",1119,23,"Water",null,null,null,null,null,null,null,null,null,null,null,null,null,null,null,null,"~"]
["SA24",2021,"DC16",1120,24,"Sanitation",null,null,null,null,null,null,null,null,null,null,null,null,null,null,null,null,"~"]
["SA24",2021,"DC16",1121,25,"Refuse",null,null,null,null,null,null,null,null,null,null,null,null,null,null,null,null,"~"]
["SA24",2021,"DC16",1122,26,"Other",null,null,null,null,null,null,null,null,null,null,null,null,null,null,null,null,"~"]
["SA24",2021,"DC16",1123,27,"Clerks (Clerical and administrative)",null,null,null,null,null,null,null,null,null,null,null,null,null,null,null,null,"~"]
["SA24",2021,"DC16",1124,28,"Service and sales workers",null,null,null,null,null,null,null,null,null,null,null,null,null,null,null,null,"~"]
["SA24",2021,"DC16",1125,29,"Skilled agricultural and fishery workers",null,null,null,null,null,null,null,null,null,null,null,null,null,null,null,null,"~"]
["SA24",2021,"DC16",1126,30,"Craft and related trades",null,null,null,null,null,null,null,null,null,null,null,null,null,null,null,null,"~"]
["SA24",2021,"DC16",1127,31,"Plant and Machine Operators",null,null,null,null,null,null,null,null,null,null,null,null,null,null,null,null,"~"]
["SA24",2021,"DC16",1128,32,"Elementary Occupations",null,null,null,null,null,null,null,null,null,null,null,null,null,null,null,null,"~"]
["SA24",2021,"DC16",1190,33,"TOTAL PERSONNEL NUMBERS",null,null,null,null,null,null,null,null,null,null,null,null,null,null,null,null,"~"]
["SA24",2021,"DC16",1191,34,"% increase",null,null,null,null,null,null,null,null,null,null,null,null,null,null,null,null,"~"]
["SA24",2021,"DC16",null,null,null,null,null,null,null,null,null,null,null,null,null,null,null,null,null,null,null,"~"]
["SA24",2021,"DC16",1200,35,"Total municipal employees headcount",null,null,null,null,null,null,null,null,null,null,null,null,null,null,null,null,"~"]
["SA24",2021,"DC16",1201,36,"Finance personnel headcount",null,null,null,null,null,null,null,null,null,null,null,null,null,null,null,null,"~"]
["SA24",2021,"DC16",1202,37,"Human Resources personnel headcount",null,null,null,null,null,null,null,null,null,null,null,null,null,null,null,null,"~"]
["OTHER",2021,"DC16","1001",1,"Unspent conditional transfers",null,null,null,null,null,null,null,null,null,null,null,null,null,null,null,null,"~"]
["OTHER",2021,"DC16","1002",2,"Unspent borrowing",null,null,null,null,null,null,null,null,null,null,null,null,null,null,null,null,"~"]
["OTHER",2021,"DC16","1003",3,"Statutory requirements",null,null,null,null,null,null,null,null,null,null,null,null,null,null,null,null,"~"]
["OTHER",2021,"DC16","1005",5,"Other provisions",null,null,null,null,null,null,null,null,null,null,null,null,null,null,null,null,"~"]
["OTHER",2021,"DC16","1006",6,"Long term investments committed",null,null,null,null,null,null,null,null,null,null,null,null,null,null,null,null,"~"]
["OTHER",2021,"DC16","1007",7,"Reserves to be backed by cash/investments",null,null,null,null,null,null,null,null,null,null,null,null,null,null,null,null,"~"]
["OTHER",2021,"DC16","1008",8,"Estimate of other debtors > 90 days",null,null,null,null,null,null,null,null,null,null,null,null,null,null,null,null,"~"]
["OTHER",2021,"DC16",2001,9,"Contributions recognised - capital",null,null,null,null,null,null,null,null,null,null,null,null,null,null,null,null,"~"]
["OTHER",2021,"DC16","3001",10,"Depreciation offsets",null,null,null,null,null,null,null,null,null,null,null,null,null,null,null,null,"~"]
["OTHER",2021,"DC16","4001",11,"Fixed operational expenditure % assumption",null,null,null,null,null,null,null,null,null,null,null,null,null,null,null,null,"~"]
["OTHER",2021,"DC16",5000,50,"Repairs and Maintenance by Expenditure Item",null,null,null,null,null,null,null,null,null,null,null,null,null,null,null,null,"~"]
["OTHER",2021,"DC16",5001,51,"Employee related costs",null,null,null,null,null,null,null,null,null,null,null,null,null,null,null,null,"~"]
["OTHER",2021,"DC16",5002,52,"Other materials",null,null,null,null,null,null,null,null,null,null,null,null,null,null,null,null,"~"]
["OTHER",2021,"DC16",5003,53,"Contracted Services",null,null,null,null,null,null,null,null,null,null,null,null,null,null,null,null,"~"]
["OTHER",2021,"DC16",5004,54,"Other Expenditure",null,null,null,null,null,null,null,null,null,null,null,null,null,null,null,null,"~"]
["OTHER",2021,"DC16",5005,55,"Total Repairs and Maintenance Expenditure",null,null,null,null,null,null,null,null,null,null,null,null,null,null,null,null,"~"]
["OTHER",2021,"DC16",6001,61,"Volume Electricity Distribution Losses",null,null,null,null,null,null,null,null,null,null,null,null,null,null,null,null,"~"]
["OTHER",2021,"DC16",6002,62,"Cost Electiricty Distribution Losses",null,null,null,null,null,null,null,null,null,null,null,null,null,null,null,null,"~"]
["OTHER",2021,"DC16",null,null,null,null,null,null,null,null,null,null,null,null,null,null,null,null,null,null,null,"~"]
["OTHER",2021,"DC16",6003,63,"Volume Water Distribution Losses",null,null,null,null,null,null,null,null,null,null,null,null,null,null,null,null,"~"]
["OTHER",2021,"DC16",6004,64,"Cost Water Distribution Losses",null,null,null,null,null,null,null,null,null,null,null,null,null,null,null,null,"~"]
["OTHER",2021,"DC16",null,null,null,null,null,null,null,null,null,null,null,null,null,null,null,null,null,null,null,"~"]
["OTHER",2021,"DC16",7001,71,"Consultant Fees",null,null,null,null,null,null,null,null,null,null,null,null,null,null,null,null,"~"]
["OTHER",2021,"DC16",7002,72,"Audit Fees",null,null,null,null,null,null,null,null,null,null,null,null,null,null,null,null,"~"]
["SA36",2021,"DC16",1,null,null,null,null,null,null,null,null,null,null,null,null,null,null,null,null,null,null,"~"]
["SA36",2021,"DC16",2,null,null,null,null,null,null,null,null,null,null,null,null,null,null,null,null,null,null,"~"]
["SA36",2021,"DC16",3,null,null,null,null,null,null,null,null,null,null,null,null,null,null,null,null,null,null,"~"]
["SA36",2021,"DC16",4,null,null,null,null,null,null,null,null,null,null,null,null,null,null,null,null,null,null,"~"]
["SA36",2021,"DC16",5,null,null,null,null,null,null,null,null,null,null,null,null,null,null,null,null,null,null,"~"]
["SA36",2021,"DC16",6,null,null,null,null,null,null,null,null,null,null,null,null,null,null,null,null,null,null,"~"]
["SA36",2021,"DC16",7,null,null,null,null,null,null,null,null,null,null,null,null,null,null,null,null,null,null,"~"]
["SA36",2021,"DC16",8,null,null,null,null,null,null,null,null,null,null,null,null,null,null,null,null,null,null,"~"]
["SA36",2021,"DC16",9,null,null,null,null,null,null,null,null,null,null,null,null,null,null,null,null,null,null,"~"]
["SA36",2021,"DC16",10,null,null,null,null,null,null,null,null,null,null,null,null,null,null,null,null,null,null,"~"]
["SA36",2021,"DC16",11,null,null,null,null,null,null,null,null,null,null,null,null,null,null,null,null,null,null,"~"]
["SA36",2021,"DC16",12,null,null,null,null,null,null,null,null,null,null,null,null,null,null,null,null,null,null,"~"]
["SA36",2021,"DC16",13,null,null,null,null,null,null,null,null,null,null,null,null,null,null,null,null,null,null,"~"]
["SA36",2021,"DC16",14,null,null,null,null,null,null,null,null,null,null,null,null,null,null,null,null,null,null,"~"]
["SA36",2021,"DC16",15,null,null,null,null,null,null,null,null,null,null,null,null,null,null,null,null,null,null,"~"]
["SA36",2021,"DC16",16,null,null,null,null,null,null,null,null,null,null,null,null,null,null,null,null,null,null,"~"]
["SA36",2021,"DC16",17,null,null,null,null,null,null,null,null,null,null,null,0,0,null,null,0,null,null,"~"]
["SA36",2021,"DC16",18,null,null,null,null,null,null,null,null,null,null,null,null,null,null,null,null,null,null,"~"]
["SA36",2021,"DC16",19,null,null,null,null,null,null,null,null,null,null,null,null,null,null,null,null,null,null,"~"]
["SA36",2021,"DC16",20,null,null,null,null,null,null,null,null,null,null,null,null,null,null,null,null,null,null,"~"]
["SA36",2021,"DC16",21,null,null,null,null,null,null,null,null,null,null,null,null,null,null,null,null,null,null,"~"]
["SA36",2021,"DC16",22,null,null,null,null,null,null,null,null,null,null,null,null,null,null,null,null,null,null,"~"]
["SA36",2021,"DC16",23,null,null,null,null,null,null,null,null,null,null,null,null,null,null,null,null,null,null,"~"]
["SA36",{"$f":"+MTREF","v":2021},{"$f":"LEFT(muni,(FIND(\" \",muni,1)-1))","v":"DC16"},24,null,null,null,null,null,null,null,null,null,null,null,null,null,null,null,null,null,null,"~"]
["SA36",2021,"DC16",25,null,null,null,null,null,null,null,null,null,null,null,null,null,null,null,null,null,null,"~"]
["SA36",2021,"DC16",26,null,null,null,null,null,null,null,null,null,null,null,null,null,null,null,null,null,null,"~"]
["SA36",2021,"DC16",27,null,null,null,null,null,null,null,null,null,null,null,null,null,null,null,null,null,null,"~"]
["SA36",2021,"DC16",28,null,null,null,null,null,null,null,null,null,null,null,null,null,null,null,null,null,null,"~"]
["SA36",2021,"DC16",29,null,null,null,null,null,null,null,null,null,null,null,null,null,null,null,null,null,null,"~"]
["SA36",2021,"DC16",30,null,null,null,null,null,null,null,null,null,0,0,0,0,null,null,null,null,null,"~"]
["SA36",2021,"DC16",31,null,null,null,null,null,null,null,null,null,0,0,0,0,null,null,null,null,null,"~"]
["SA36",2021,"DC16",32,null,null,null,null,null,null,null,null,null,null,null,null,null,null,null,null,null,null,"~"]
["SA36",2021,"DC16",33,null,null,null,null,null,null,null,null,null,null,null,null,null,null,null,null,null,null,"~"]
["SA36",2021,"DC16",34,null,null,null,null,null,null,null,null,null,null,null,null,null,null,null,null,null,null,"~"]
["SA36",2021,"DC16",35,null,null,null,null,null,null,null,null,null,null,null,null,null,null,null,null,null,null,"~"]
["SA36",2021,"DC16",36,null,null,null,null,null,null,null,null,null,null,null,null,null,null,null,null,null,null,"~"]
["SA36",2021,"DC16",37,null,null,null,null,null,null,null,null,null,null,null,null,null,null,null,null,null,null,"~"]
["SA36",2021,"DC16",38,null,null,null,null,null,null,null,null,"Check",0,null,null,null,null,null,null,null,null,"~"]
["SA36",2021,"DC16",39,null,null,null,null,null,null,null,null,null,null,null,null,null,null,null,null,null,null,"~"]
["SA36",2021,"DC16",40,null,null,null,null,null,null,null,null,null,null,null,null,null,null,null,null,null,null,"~"]
["SA36",2021,"DC16",41,null,null,null,null,null,null,null,null,null,null,null,null,null,null,null,null,null,null,"~"]
["SA36",2021,"DC16",42,null,null,null,null,null,null,null,null,null,null,null,null,null,null,null,null,null,null,"~"]
["SA36",2021,"DC16",43,null,null,null,null,null,null,null,null,null,null,null,null,null,null,null,null,null,null,"~"]
["SA36",2021,"DC16",44,null,null,null,null,null,null,null,null,null,null,null,null,null,null,null,null,null,null,"~"]
["SA36",2021,"DC16",45,null,null,null,null,null,null,null,null,null,null,null,null,null,null,null,null,null,null,"~"]
["SA36",2021,"DC16",46,null,null,null,null,null,null,null,null,null,null,null,null,null,null,null,null,null,null,"~"]
["SA36",2021,"DC16",47,null,null,null,null,null,null,null,null,null,null,null,null,null,null,null,null,null,null,"~"]
["SA36",2021,"DC16",48,null,null,null,null,null,null,null,null,null,null,null,null,null,null,null,null,null,null,"~"]
["SA36",2021,"DC16",49,null,null,null,null,null,null,null,null,null,null,null,null,null,null,null,null,null,null,"~"]
["SA36",2021,"DC16",50,null,null,null,null,null,null,null,null,null,null,null,null,null,null,null,null,null,null,"~"]
["SA36",2021,"DC16",51,null,null,null,null,null,null,null,null,null,null,null,null,null,null,null,null,null,null,"~"]
["SA36",2021,"DC16",52,null,null,null,null,null,null,null,null,null,null,null,null,null,null,null,null,null,null,"~"]
["SA36",2021,"DC16",53,null,null,null,null,null,null,null,null,null,null,null,null,null,null,null,null,null,null,"~"]
["SA36",2021,"DC16",54,null,null,null,null,null,null,null,null,null,null,null,null,null,null,null,null,null,null,"~"]
["SA36",2021,"DC16",55,null,null,null,null,null,null,null,null,null,null,null,null,null,null,null,null,null,null,"~"]
["SA36",2021,"DC16",56,null,null,null,null,null,null,null,null,null,null,null,null,null,null,null,null,null,null,"~"]
["SA36",2021,"DC16",57,null,null,null,null,null,null,null,null,null,null,null,null,null,null,null,null,null,null,"~"]
["SA36",2021,"DC16",58,null,null,null,null,null,null,null,null,null,null,null,null,null,null,null,null,null,null,"~"]
["SA36",2021,"DC16",59,null,null,null,null,null,null,null,null,null,null,null,null,null,null,null,null,null,null,"~"]
["SA36",2021,"DC16",60,null,null,null,null,null,null,null,null,null,null,null,null,null,null,null,null,null,null,"~"]
["SA36",2021,"DC16",61,null,null,null,null,null,null,null,null,null,null,null,null,null,null,null,null,null,null,"~"]
["SA36",2021,"DC16",62,null,null,null,null,null,null,null,null,null,null,null,null,null,null,null,null,null,null,"~"]
["SA36",2021,"DC16",63,null,null,null,null,null,null,null,null,null,null,null,null,null,null,null,null,null,null,"~"]
["SA36",2021,"DC16",64,null,null,null,null,null,null,null,null,null,null,null,null,null,null,null,null,null,null,"~"]
["SA36",2021,"DC16",65,null,null,null,null,null,null,null,null,null,null,null,null,null,null,null,null,null,null,"~"]
["SA36",2021,"DC16",66,null,null,null,null,null,null,null,null,null,null,null,null,null,null,null,null,null,null,"~"]
["SA36",2021,"DC16",67,null,null,null,null,null,null,null,null,null,null,null,null,null,null,null,null,null,null,"~"]
["SA36",2021,"DC16",68,null,null,null,null,null,null,null,null,null,null,null,null,null,null,null,null,null,null,"~"]
["SA36",2021,"DC16",69,null,null,null,null,null,null,null,null,null,null,null,null,null,null,null,null,null,null,"~"]
["SA36",2021,"DC16",70,null,null,null,null,null,null,null,null,null,null,null,null,null,null,null,null,null,null,"~"]
["SA36",2021,"DC16",71,null,null,null,null,null,null,null,null,null,null,null,null,null,null,null,null,null,null,"~"]
["SA36",2021,"DC16",72,null,null,null,null,null,null,null,null,null,null,null,null,null,null,null,null,null,null,"~"]
["SA36",2021,"DC16",73,null,null,null,null,null,null,null,null,null,null,null,null,null,null,null,null,null,null,"~"]
["SA36",2021,"DC16",74,null,null,null,null,null,null,null,null,null,null,null,null,null,null,null,null,null,null,"~"]
["SA36",2021,"DC16",75,null,null,null,null,null,null,null,null,null,null,null,null,null,null,null,null,null,null,"~"]
["SA36",2021,"DC16",76,null,null,null,null,null,null,null,null,null,null,null,null,null,null,null,null,null,null,"~"]
["SA36",2021,"DC16",77,null,null,null,null,null,null,null,null,null,null,null,null,null,null,null,null,null,null,"~"]
["SA36",2021,"DC16",78,null,null,null,null,null,null,null,null,null,null,null,null,null,null,null,null,null,null,"~"]
["SA36",2021,"DC16",79,null,null,null,null,null,null,null,null,null,null,null,null,null,null,null,null,null,null,"~"]
["SA36",2021,"DC16",80,null,null,null,null,null,null,null,null,null,null,null,null,null,null,null,null,null,null,"~"]
["SA36",2021,"DC16",81,null,null,null,null,null,null,null,null,null,null,null,null,null,null,null,null,null,null,"~"]
["SA36",2021,"DC16",82,null,null,null,null,null,null,null,null,null,null,null,null,null,null,null,null,null,null,"~"]
["SA36",2021,"DC16",83,null,null,null,null,null,null,null,null,null,null,null,null,null,null,null,null,null,null,"~"]
["SA36",2021,"DC16",84,null,null,null,null,null,null,null,null,null,null,null,null,null,null,null,null,null,null,"~"]
["SA36",2021,"DC16",85,null,null,null,null,null,null,null,null,null,null,null,null,null,null,null,null,null,null,"~"]
["SA36",2021,"DC16",86,null,null,null,null,null,null,null,null,null,null,null,null,null,null,null,null,null,null,"~"]
["SA36",2021,"DC16",87,null,null,null,null,null,null,null,null,null,null,null,null,null,null,null,null,null,null,"~"]
["SA36",{"$f":"+MTREF","v":2021},{"$f":"LEFT(muni,(FIND(\" \",muni,1)-1))","v":"DC16"},88,null,null,null,null,null,null,null,null,null,null,null,null,null,null,null,null,null,null,"~"]
["SA36",2021,"DC16",89,null,null,null,null,null,null,null,null,null,null,null,null,null,null,null,null,null,null,"~"]
["SA36",2021,"DC16",90,null,null,null,null,null,null,null,null,null,null,null,null,null,null,null,null,null,null,"~"]
["SA36",2021,"DC16",91,null,null,null,null,null,null,null,null,null,null,null,null,null,null,null,null,null,null,"~"]
["SA36",2021,"DC16",92,null,null,null,null,null,null,null,null,null,null,null,null,null,null,null,null,null,null,"~"]
["SA36",2021,"DC16",93,null,null,null,null,null,null,null,null,null,null,null,null,null,null,null,null,null,null,"~"]
["SA36",2021,"DC16",94,null,null,null,null,null,null,null,null,null,null,null,null,null,null,null,null,null,null,"~"]
["SA36",2021,"DC16",95,null,null,null,null,null,null,null,null,null,null,null,null,null,null,null,null,null,null,"~"]
["SA36",2021,"DC16",96,null,null,null,null,null,null,null,null,null,null,null,null,null,null,null,null,null,null,"~"]
["SA36",2021,"DC16",97,null,null,null,null,null,null,null,null,null,null,null,null,null,null,null,null,null,null,"~"]
["SA36",2021,"DC16",98,null,null,null,null,null,null,null,null,null,null,null,null,null,null,null,null,null,null,"~"]
["SA36",2021,"DC16",99,null,null,null,null,null,null,null,null,null,null,null,null,null,null,null,null,null,null,"~"]
["SA36",2021,"DC16",100,null,null,null,null,null,null,null,null,null,null,null,null,null,null,null,null,null,null,"~"]
["SA36",2021,"DC16",101,null,null,null,null,null,null,null,null,null,null,null,null,null,null,null,null,null,null,"~"]
["SA36",2021,"DC16",102,null,null,null,null,null,null,null,null,null,null,null,null,null,null,null,null,null,null,"~"]
["SA36",2021,"DC16",103,null,null,null,null,null,null,null,null,null,null,null,null,null,null,null,null,null,null,"~"]
["SA36",2021,"DC16",104,null,null,null,null,null,null,null,null,null,null,null,null,null,null,null,null,null,null,"~"]
["SA36",2021,"DC16",105,null,null,null,null,null,null,null,null,null,null,null,null,null,null,null,null,null,null,"~"]
["SA36",2021,"DC16",106,null,null,null,null,null,null,null,null,null,null,null,null,null,null,null,null,null,null,"~"]
["SA36",2021,"DC16",107,null,null,null,null,null,null,null,null,null,null,null,null,null,null,null,null,null,null,"~"]
["SA36",2021,"DC16",108,null,null,null,null,null,null,null,null,null,null,null,null,null,null,null,null,null,null,"~"]
["SA36",2021,"DC16",109,null,null,null,null,null,null,null,null,null,null,null,null,null,null,null,null,null,null,"~"]
["SA36",2021,"DC16",110,null,null,null,null,null,null,null,null,null,null,null,null,null,null,null,null,null,null,"~"]
["SA36",2021,"DC16",111,null,null,null,null,null,null,null,null,null,null,null,null,null,null,null,null,null,null,"~"]
["SA36",2021,"DC16",112,null,null,null,null,null,null,null,null,null,null,null,null,null,null,null,null,null,null,"~"]
["SA36",2021,"DC16",113,null,null,null,null,null,null,null,null,null,null,null,null,null,null,null,null,null,null,"~"]
["SA36",2021,"DC16",114,null,null,null,null,null,null,null,null,null,null,null,null,null,null,null,null,null,null,"~"]
["SA36",2021,"DC16",115,null,null,null,null,null,null,null,null,null,null,null,null,null,null,null,null,null,null,"~"]
["SA36",2021,"DC16",116,null,null,null,null,null,null,null,null,null,null,null,null,null,null,null,null,null,null,"~"]
["SA36",2021,"DC16",117,null,null,null,null,null,null,null,null,null,null,null,null,null,null,null,null,null,null,"~"]
["SA36",2021,"DC16",118,null,null,null,null,null,null,null,null,null,null,null,null,null,null,null,null,null,null,"~"]
["SA36",2021,"DC16",119,null,null,null,null,null,null,null,null,null,null,null,null,null,null,null,null,null,null,"~"]
["SA36",2021,"DC16",120,null,null,null,null,null,null,null,null,null,null,null,null,null,null,null,null,null,null,"~"]
["SA36",2021,"DC16",121,null,null,null,null,null,null,null,null,null,null,null,null,null,null,null,null,null,null,"~"]
["SA36",2021,"DC16",122,null,null,null,null,null,null,null,null,null,null,null,null,null,null,null,null,null,null,"~"]
["SA36",2021,"DC16",123,null,null,null,null,null,null,null,null,null,null,null,null,null,null,null,null,null,null,"~"]
["SA36",2021,"DC16",124,null,null,null,null,null,null,null,null,null,null,null,null,null,null,null,null,null,null,"~"]
["SA36",2021,"DC16",125,null,null,null,null,null,null,null,null,null,null,null,null,null,null,null,null,null,null,"~"]
["SA36",2021,"DC16",126,null,null,null,null,null,null,null,null,null,null,null,null,null,null,null,null,null,null,"~"]
["SA36",2021,"DC16",127,null,null,null,null,null,null,null,null,null,null,null,null,null,null,null,null,null,null,"~"]
["SA36",2021,"DC16",128,null,null,null,null,null,null,null,null,null,null,null,null,null,null,null,null,null,null,"~"]
["SA36",2021,"DC16",129,null,null,null,null,null,null,null,null,null,null,null,null,null,null,null,null,null,null,"~"]
["SA36",2021,"DC16",130,null,null,null,null,null,null,null,null,null,null,null,null,null,null,null,null,null,null,"~"]
["SA36",2021,"DC16",131,null,null,null,null,null,null,null,null,null,null,null,null,null,null,null,null,null,null,"~"]
["SA36",2021,"DC16",132,null,null,null,null,null,null,null,null,null,null,null,null,null,null,null,null,null,null,"~"]
["SA36",2021,"DC16",133,null,null,null,null,null,null,null,null,null,null,null,null,null,null,null,null,null,null,"~"]
["SA36",2021,"DC16",134,null,null,null,null,null,null,null,null,null,null,null,null,null,null,null,null,null,null,"~"]
["SA36",2021,"DC16",135,null,null,null,null,null,null,null,null,null,null,null,null,null,null,null,null,null,null,"~"]
["SA36",2021,"DC16",136,null,null,null,null,null,null,null,null,null,null,null,null,null,null,null,null,null,null,"~"]
["SA36",2021,"DC16",137,null,null,null,null,null,null,null,null,null,null,null,null,null,null,null,null,null,null,"~"]
["SA36",2021,"DC16",138,null,null,null,null,null,null,null,null,null,null,null,null,null,null,null,null,null,null,"~"]
["SA36",2021,"DC16",139,null,null,null,null,null,null,null,null,null,null,null,null,null,null,null,null,null,null,"~"]
["SA36",2021,"DC16",140,null,null,null,null,null,null,null,null,null,null,null,null,null,null,null,null,null,null,"~"]
["SA36",2021,"DC16",141,null,null,null,null,null,null,null,null,null,null,null,null,null,null,null,null,null,null,"~"]
["SA36",2021,"DC16",142,null,null,null,null,null,null,null,null,null,null,null,null,null,null,null,null,null,null,"~"]
["SA36",2021,"DC16",143,null,null,null,null,null,null,null,null,null,null,null,null,null,null,null,null,null,null,"~"]
["SA36",2021,"DC16",144,null,null,null,null,null,null,null,null,null,null,null,null,null,null,null,null,null,null,"~"]
["SA36",2021,"DC16",145,null,null,null,null,null,null,null,null,null,null,null,null,null,null,null,null,null,null,"~"]
["SA36",2021,"DC16",146,null,null,null,null,null,null,null,null,null,null,null,null,null,null,null,null,null,null,"~"]
["SA36",2021,"DC16",147,null,null,null,null,null,null,null,null,null,null,null,null,null,null,null,null,null,null,"~"]
["SA36",2021,"DC16",148,null,null,null,null,null,null,null,null,null,null,null,null,null,null,null,null,null,null,"~"]
["SA36",2021,"DC16",149,null,null,null,null,null,null,null,null,null,null,null,null,null,null,null,null,null,null,"~"]
["SA36",2021,"DC16",150,null,null,null,null,null,null,null,null,null,null,null,null,null,null,null,null,null,null,"~"]
["SA36",2021,"DC16",151,null,null,null,null,null,null,null,null,null,null,null,null,null,null,null,null,null,null,"~"]
["SA36",{"$f":"+MTREF","v":2021},{"$f":"LEFT(muni,(FIND(\" \",muni,1)-1))","v":"DC16"},152,null,null,null,null,null,null,null,null,null,null,null,null,null,null,null,null,null,null,"~"]
["SA36",2021,"DC16",153,null,null,null,null,null,null,null,null,null,null,null,null,null,null,null,null,null,null,"~"]
["SA36",2021,"DC16",154,null,null,null,null,null,null,null,null,null,null,null,null,null,null,null,null,null,null,"~"]
["SA36",2021,"DC16",155,null,null,null,null,null,null,null,null,null,null,null,null,null,null,null,null,null,null,"~"]
["SA36",2021,"DC16",156,null,null,null,null,null,null,null,null,null,null,null,null,null,null,null,null,null,null,"~"]
["SA36",2021,"DC16",157,null,null,null,null,null,null,null,null,null,null,null,null,null,null,null,null,null,null,"~"]
["SA36",2021,"DC16",158,null,null,null,null,null,null,null,null,null,null,null,null,null,null,null,null,null,null,"~"]
["SA36",2021,"DC16",159,null,null,null,null,null,null,null,null,null,null,null,null,null,null,null,null,null,null,"~"]
["SA36",2021,"DC16",160,null,null,null,null,null,null,null,null,null,null,null,null,null,null,null,null,null,null,"~"]
["SA36",2021,"DC16",161,null,null,null,null,null,null,null,null,null,null,null,null,null,null,null,null,null,null,"~"]
["SA36",2021,"DC16",162,null,null,null,null,null,null,null,null,null,null,null,null,null,null,null,null,null,null,"~"]
["SA36",2021,"DC16",163,null,null,null,null,null,null,null,null,null,null,null,null,null,null,null,null,null,null,"~"]
["SA36",2021,"DC16",164,null,null,null,null,null,null,null,null,null,null,null,null,null,null,null,null,null,null,"~"]
["SA36",2021,"DC16",165,null,null,null,null,null,null,null,null,null,null,null,null,null,null,null,null,null,null,"~"]
["SA36",2021,"DC16",166,null,null,null,null,null,null,null,null,null,null,null,null,null,null,null,null,null,null,"~"]
["SA36",2021,"DC16",167,null,null,null,null,null,null,null,null,null,null,null,null,null,null,null,null,null,null,"~"]
["SA36",2021,"DC16",168,null,null,null,null,null,null,null,null,null,null,null,null,null,null,null,null,null,null,"~"]
["SA36",2021,"DC16",169,null,null,null,null,null,null,null,null,null,null,null,null,null,null,null,null,null,null,"~"]
["SA36",2021,"DC16",170,null,null,null,null,null,null,null,null,null,null,null,null,null,null,null,null,null,null,"~"]
["SA36",2021,"DC16",171,null,null,null,null,null,null,null,null,null,null,null,null,null,null,null,null,null,null,"~"]
["SA36",2021,"DC16",172,null,null,null,null,null,null,null,null,null,null,null,null,null,null,null,null,null,null,"~"]
["SA36",2021,"DC16",173,null,null,null,null,null,null,null,null,null,null,null,null,null,null,null,null,null,null,"~"]
["SA36",2021,"DC16",174,null,null,null,null,null,null,null,null,null,null,null,null,null,null,null,null,null,null,"~"]
["SA36",2021,"DC16",175,null,null,null,null,null,null,null,null,null,null,null,null,null,null,null,null,null,null,"~"]
["SA36",2021,"DC16",176,null,null,null,null,null,null,null,null,null,null,null,null,null,null,null,null,null,null,"~"]
["SA36",2021,"DC16",177,null,null,null,null,null,null,null,null,null,null,null,null,null,null,null,null,null,null,"~"]
["SA36",2021,"DC16",178,null,null,null,null,null,null,null,null,null,null,null,null,null,null,null,null,null,null,"~"]
["SA36",2021,"DC16",179,null,null,null,null,null,null,null,null,null,null,null,null,null,null,null,null,null,null,"~"]
["SA36",2021,"DC16",180,null,null,null,null,null,null,null,null,null,null,null,null,null,null,null,null,null,null,"~"]
["SA36",2021,"DC16",181,null,null,null,null,null,null,null,null,null,null,null,null,null,null,null,null,null,null,"~"]
["SA36",2021,"DC16",182,null,null,null,null,null,null,null,null,null,null,null,null,null,null,null,null,null,null,"~"]
["SA36",2021,"DC16",183,null,null,null,null,null,null,null,null,null,null,null,null,null,null,null,null,null,null,"~"]
["SA36",2021,"DC16",184,null,null,null,null,null,null,null,null,null,null,null,null,null,null,null,null,null,null,"~"]
["SA36",2021,"DC16",185,null,null,null,null,null,null,null,null,null,null,null,null,null,null,null,null,null,null,"~"]
["SA36",2021,"DC16",186,null,null,null,null,null,null,null,null,null,null,null,null,null,null,null,null,null,null,"~"]
["SA36",2021,"DC16",187,null,null,null,null,null,null,null,null,null,null,null,null,null,null,null,null,null,null,"~"]
["SA36",2021,"DC16",188,null,null,null,null,null,null,null,null,null,null,null,null,null,null,null,null,null,null,"~"]
["SA36",2021,"DC16",189,null,null,null,null,null,null,null,null,null,null,null,null,null,null,null,null,null,null,"~"]
["SA36",2021,"DC16",190,null,null,null,null,null,null,null,null,null,null,null,null,null,null,null,null,null,null,"~"]
["SA36",2021,"DC16",191,null,null,null,null,null,null,null,null,null,null,null,null,null,null,null,null,null,null,"~"]
["SA36",2021,"DC16",192,null,null,null,null,null,null,null,null,null,null,null,null,null,null,null,null,null,null,"~"]
["SA36",2021,"DC16",193,null,null,null,null,null,null,null,null,null,null,null,null,null,null,null,null,null,null,"~"]
["SA36",2021,"DC16",194,null,null,null,null,null,null,null,null,null,null,null,null,null,null,null,null,null,null,"~"]
["SA36",2021,"DC16",195,null,null,null,null,null,null,null,null,null,null,null,null,null,null,null,null,null,null,"~"]
["SA36",2021,"DC16",196,null,null,null,null,null,null,null,null,null,null,null,null,null,null,null,null,null,null,"~"]
["SA36",2021,"DC16",197,null,null,null,null,null,null,null,null,null,null,null,null,null,null,null,null,null,null,"~"]
["SA36",2021,"DC16",198,null,null,null,null,null,null,null,null,null,null,null,null,null,null,null,null,null,null,"~"]
["SA36",2021,"DC16",199,null,null,null,null,null,null,null,null,null,null,null,null,null,null,null,null,null,null,"~"]
["SA36",2021,"DC16",200,null,null,null,null,null,null,null,null,null,null,null,null,null,null,null,null,null,null,"~"]
["SA36",2021,"DC16",201,null,null,null,null,null,null,null,null,null,null,null,null,null,null,null,null,null,null,"~"]
["SA36",2021,"DC16",202,null,null,null,null,null,null,null,null,null,null,null,null,null,null,null,null,null,null,"~"]
["SA36",2021,"DC16",203,null,null,null,null,null,null,null,null,null,null,null,null,null,null,null,null,null,null,"~"]
["SA36",2021,"DC16",204,null,null,null,null,null,null,null,null,null,null,null,null,null,null,null,null,null,null,"~"]
["SA36",2021,"DC16",205,null,null,null,null,null,null,null,null,null,null,null,null,null,null,null,null,null,null,"~"]
["SA36",2021,"DC16",206,null,null,null,null,null,null,null,null,null,null,null,null,null,null,null,null,null,null,"~"]
["SA36",2021,"DC16",207,null,null,null,null,null,null,null,null,null,null,null,null,null,null,null,null,null,null,"~"]
["SA36",2021,"DC16",208,null,null,null,null,null,null,null,null,null,null,null,null,null,null,null,null,null,null,"~"]
["SA36",2021,"DC16",209,null,null,null,null,null,null,null,null,null,null,null,null,null,null,null,null,null,null,"~"]
["SA36",2021,"DC16",210,null,null,null,null,null,null,null,null,null,null,null,null,null,null,null,null,null,null,"~"]
["SA36",2021,"DC16",211,null,null,null,null,null,null,null,null,null,null,null,null,null,null,null,null,null,null,"~"]
["SA36",2021,"DC16",212,null,null,null,null,null,null,null,null,null,null,null,null,null,null,null,null,null,null,"~"]
["SA36",2021,"DC16",213,null,null,null,null,null,null,null,null,null,null,null,null,null,null,null,null,null,null,"~"]
["SA36",2021,"DC16",214,null,null,null,null,null,null,null,null,null,null,null,null,null,null,null,null,null,null,"~"]
["SA36",2021,"DC16",215,null,null,null,null,null,null,null,null,null,null,null,null,null,null,null,null,null,null,"~"]
["SA36",{"$f":"+MTREF","v":2021},{"$f":"LEFT(muni,(FIND(\" \",muni,1)-1))","v":"DC16"},216,null,null,null,null,null,null,null,null,null,null,null,null,null,null,null,null,null,null,"~"]
["SA36",2021,"DC16",217,null,null,null,null,null,null,null,null,null,null,null,null,null,null,null,null,null,null,"~"]
["SA36",2021,"DC16",218,null,null,null,null,null,null,null,null,null,null,null,null,null,null,null,null,null,null,"~"]
["SA36",2021,"DC16",219,null,null,null,null,null,null,null,null,null,null,null,null,null,null,null,null,null,null,"~"]
["SA36",2021,"DC16",220,null,null,null,null,null,null,null,null,null,null,null,null,null,null,null,null,null,null,"~"]
["SA36",2021,"DC16",221,null,null,null,null,null,null,null,null,null,null,null,null,null,null,null,null,null,null,"~"]
["SA36",2021,"DC16",222,null,null,null,null,null,null,null,null,null,null,null,null,null,null,null,null,null,null,"~"]
["SA36",2021,"DC16",223,null,null,null,null,null,null,null,null,null,null,null,null,null,null,null,null,null,null,"~"]
["SA36",2021,"DC16",224,null,null,null,null,null,null,null,null,null,null,null,null,null,null,null,null,null,null,"~"]
["SA36",2021,"DC16",225,null,null,null,null,null,null,null,null,null,null,null,null,null,null,null,null,null,null,"~"]
["SA36",2021,"DC16",226,null,null,null,null,null,null,null,null,null,null,null,null,null,null,null,null,null,null,"~"]
["SA36",2021,"DC16",227,null,null,null,null,null,null,null,null,null,null,null,null,null,null,null,null,null,null,"~"]
["SA36",2021,"DC16",228,null,null,null,null,null,null,null,null,null,null,null,null,null,null,null,null,null,null,"~"]
["SA36",2021,"DC16",229,null,null,null,null,null,null,null,null,null,null,null,null,null,null,null,null,null,null,"~"]
["SA36",2021,"DC16",230,null,null,null,null,null,null,null,null,null,null,null,null,null,null,null,null,null,null,"~"]
["SA36",2021,"DC16",231,null,null,null,null,null,null,null,null,null,null,null,null,null,null,null,null,null,null,"~"]
["SA36",2021,"DC16",232,null,null,null,null,null,null,null,null,null,null,null,null,null,null,null,null,null,null,"~"]
["SA36",2021,"DC16",233,null,null,null,null,null,null,null,null,null,null,null,null,null,null,null,null,null,null,"~"]
["SA36",2021,"DC16",234,null,null,null,null,null,null,null,null,null,null,null,null,null,null,null,null,null,null,"~"]
["SA36",2021,"DC16",235,null,null,null,null,null,null,null,null,null,null,null,null,null,null,null,null,null,null,"~"]
["SA36",2021,"DC16",236,null,null,null,null,null,null,null,null,null,null,null,null,null,null,null,null,null,null,"~"]
["SA36",2021,"DC16",237,null,null,null,null,null,null,null,null,null,null,null,null,null,null,null,null,null,null,"~"]
["SA36",2021,"DC16",238,null,null,null,null,null,null,null,null,null,null,null,null,null,null,null,null,null,null,"~"]
["SA36",2021,"DC16",239,null,null,null,null,null,null,null,null,null,null,null,null,null,null,null,null,null,null,"~"]
["SA36",2021,"DC16",240,null,null,null,null,null,null,null,null,null,null,null,null,null,null,null,null,null,null,"~"]
["SA36",2021,"DC16",241,null,null,null,null,null,null,null,null,null,null,null,null,null,null,null,null,null,null,"~"]
["SA36",2021,"DC16",242,null,null,null,null,null,null,null,null,null,null,null,null,null,null,null,null,null,null,"~"]
["SA36",2021,"DC16",243,null,null,null,null,null,null,null,null,null,null,null,null,null,null,null,null,null,null,"~"]
["SA36",2021,"DC16",244,null,null,null,null,null,null,null,null,null,null,null,null,null,null,null,null,null,null,"~"]
["SA36",2021,"DC16",245,null,null,null,null,null,null,null,null,null,null,null,null,null,null,null,null,null,null,"~"]
["SA36",2021,"DC16",246,null,null,null,null,null,null,null,null,null,null,null,null,null,null,null,null,null,null,"~"]
["SA36",2021,"DC16",247,null,null,null,null,null,null,null,null,null,null,null,null,null,null,null,null,null,null,"~"]
["SA36",2021,"DC16",248,null,null,null,null,null,null,null,null,null,null,null,null,null,null,null,null,null,null,"~"]
["SA36",2021,"DC16",249,null,null,null,null,null,null,null,null,null,null,null,null,null,null,null,null,null,null,"~"]
["SA36",2021,"DC16",250,null,null,null,null,null,null,null,null,null,null,null,null,null,null,null,null,null,null,"~"]
["SA36",2021,"DC16",251,null,null,null,null,null,null,null,null,null,null,null,null,null,null,null,null,null,null,"~"]
["SA36",2021,"DC16",252,null,null,null,null,null,null,null,null,null,null,null,null,null,null,null,null,null,null,"~"]
["SA36",2021,"DC16",253,null,null,null,null,null,null,null,null,null,null,null,null,null,null,null,null,null,null,"~"]
["SA36",2021,"DC16",254,null,null,null,null,null,null,null,null,null,null,null,null,null,null,null,null,null,null,"~"]
["SA36",2021,"DC16",255,null,null,null,null,null,null,null,null,null,null,null,null,null,null,null,null,null,null,"~"]
["SA36",2021,"DC16",256,null,null,null,null,null,null,null,null,null,null,null,null,null,null,null,null,null,null,"~"]
["SA36",2021,"DC16",257,null,null,null,null,null,null,null,null,null,null,null,null,null,null,null,null,null,null,"~"]
["SA36",2021,"DC16",258,null,null,null,null,null,null,null,null,null,null,null,null,null,null,null,null,null,null,"~"]
["SA36",2021,"DC16",259,null,null,null,null,null,null,null,null,null,null,null,null,null,null,null,null,null,null,"~"]
["SA36",2021,"DC16",260,null,null,null,null,null,null,null,null,null,null,null,null,null,null,null,null,null,null,"~"]
["SA36",2021,"DC16",261,null,null,null,null,null,null,null,null,null,null,null,null,null,null,null,null,null,null,"~"]
["SA36",2021,"DC16",262,null,null,null,null,null,null,null,null,null,null,null,null,null,null,null,null,null,null,"~"]
["SA36",2021,"DC16",263,null,null,null,null,null,null,null,null,null,null,null,null,null,null,null,null,null,null,"~"]
["SA36",2021,"DC16",264,null,null,null,null,null,null,null,null,null,null,null,null,null,null,null,null,null,null,"~"]
["SA36",2021,"DC16",265,null,null,null,null,null,null,null,null,null,null,null,null,null,null,null,null,null,null,"~"]
["SA36",2021,"DC16",266,null,null,null,null,null,null,null,null,null,null,null,null,null,null,null,null,null,null,"~"]
["SA36",2021,"DC16",267,null,null,null,null,null,null,null,null,null,null,null,null,null,null,null,null,null,null,"~"]
["SA36",2021,"DC16",268,null,null,null,null,null,null,null,null,null,null,null,null,null,null,null,null,null,null,"~"]
["SA36",2021,"DC16",269,null,null,null,null,null,null,null,null,null,null,null,null,null,null,null,null,null,null,"~"]
["SA36",2021,"DC16",270,null,null,null,null,null,null,null,null,null,null,null,null,null,null,null,null,null,null,"~"]
["SA36",2021,"DC16",271,null,null,null,null,null,null,null,null,null,null,null,null,null,null,null,null,null,null,"~"]
["SA36",2021,"DC16",272,null,null,null,null,null,null,null,null,null,null,null,null,null,null,null,null,null,null,"~"]
["SA36",2021,"DC16",273,null,null,null,null,null,null,null,null,null,null,null,null,null,null,null,null,null,null,"~"]
["SA36",2021,"DC16",274,null,null,null,null,null,null,null,null,null,null,null,null,null,null,null,null,null,null,"~"]
["SA36",2021,"DC16",275,null,null,null,null,null,null,null,null,null,null,null,null,null,null,null,null,null,null,"~"]
["SA36",2021,"DC16",276,null,null,null,null,null,null,null,null,null,null,null,null,null,null,null,null,null,null,"~"]
["SA36",2021,"DC16",277,null,null,null,null,null,null,null,null,null,null,null,null,null,null,null,null,null,null,"~"]
["SA36",2021,"DC16",278,null,null,null,null,null,null,null,null,null,null,null,null,null,null,null,null,null,null,"~"]
["SA36",2021,"DC16",279,null,null,null,null,null,null,null,null,null,null,null,null,null,null,null,null,null,null,"~"]
["SA36",{"$f":"+MTREF","v":2021},{"$f":"LEFT(muni,(FIND(\" \",muni,1)-1))","v":"DC16"},280,null,null,null,null,null,null,null,null,null,null,null,null,null,null,null,null,null,null,"~"]
["SA36",2021,"DC16",281,null,null,null,null,null,null,null,null,null,null,null,null,null,null,null,null,null,null,"~"]
["SA36",2021,"DC16",282,null,null,null,null,null,null,null,null,null,null,null,null,null,null,null,null,null,null,"~"]
["SA36",2021,"DC16",283,null,null,null,null,null,null,null,null,null,null,null,null,null,null,null,null,null,null,"~"]
["SA36",2021,"DC16",284,null,null,null,null,null,null,null,null,null,null,null,null,null,null,null,null,null,null,"~"]
["SA36",2021,"DC16",285,null,null,null,null,null,null,null,null,null,null,null,null,null,null,null,null,null,null,"~"]
["SA36",2021,"DC16",286,null,null,null,null,null,null,null,null,null,null,null,null,null,null,null,null,null,null,"~"]
["SA36",2021,"DC16",287,null,null,null,null,null,null,null,null,null,null,null,null,null,null,null,null,null,null,"~"]
["SA36",2021,"DC16",288,null,null,null,null,null,null,null,null,null,null,null,null,null,null,null,null,null,null,"~"]
["SA36",2021,"DC16",289,null,null,null,null,null,null,null,null,null,null,null,null,null,null,null,null,null,null,"~"]
["SA36",2021,"DC16",290,null,null,null,null,null,null,null,null,null,null,null,null,null,null,null,null,null,null,"~"]
["SA36",2021,"DC16",291,null,null,null,null,null,null,null,null,null,null,null,null,null,null,null,null,null,null,"~"]
["SA36",2021,"DC16",292,null,null,null,null,null,null,null,null,null,null,null,null,null,null,null,null,null,null,"~"]
["SA36",2021,"DC16",293,null,null,null,null,null,null,null,null,null,null,null,null,null,null,null,null,null,null,"~"]
["SA36",2021,"DC16",294,null,null,null,null,null,null,null,null,null,null,null,null,null,null,null,null,null,null,"~"]
["SA36",2021,"DC16",295,null,null,null,null,null,null,null,null,null,null,null,null,null,null,null,null,null,null,"~"]
["SA36",2021,"DC16",296,null,null,null,null,null,null,null,null,null,null,null,null,null,null,null,null,null,null,"~"]
["SA36",2021,"DC16",297,null,null,null,null,null,null,null,null,null,null,null,null,null,null,null,null,null,null,"~"]
["SA36",2021,"DC16",298,null,null,null,null,null,null,null,null,null,null,null,null,null,null,null,null,null,null,"~"]
["SA36",2021,"DC16",299,null,null,null,null,null,null,null,null,null,null,null,null,null,null,null,null,null,null,"~"]
["SA36",2021,"DC16",300,null,null,null,null,null,null,null,null,null,null,null,null,null,null,null,null,null,null,"~"]
["SA36",2021,"DC16",301,null,null,null,null,null,null,null,null,null,null,null,null,null,null,null,null,null,null,"~"]
["SA36",2021,"DC16",302,null,null,null,null,null,null,null,null,null,null,null,null,null,null,null,null,null,null,"~"]
["SA36",2021,"DC16",303,null,null,null,null,null,null,null,null,null,null,null,null,null,null,null,null,null,null,"~"]
["SA36",2021,"DC16",304,null,null,null,null,null,null,null,null,null,null,null,null,null,null,null,null,null,null,"~"]
["SA36",2021,"DC16",305,null,null,null,null,null,null,null,null,null,null,null,null,null,null,null,null,null,null,"~"]
["SA36",2021,"DC16",306,null,null,null,null,null,null,null,null,null,null,null,null,null,null,null,null,null,null,"~"]
["SA36",2021,"DC16",307,null,null,null,null,null,null,null,null,null,null,null,null,null,null,null,null,null,null,"~"]
["SA36",2021,"DC16",308,null,null,null,null,null,null,null,null,null,null,null,null,null,null,null,null,null,null,"~"]
["SA36",2021,"DC16",309,null,null,null,null,null,null,null,null,null,null,null,null,null,null,null,null,null,null,"~"]
["SA36",2021,"DC16",310,null,null,null,null,null,null,null,null,null,null,null,null,null,null,null,null,null,null,"~"]
["SA36",2021,"DC16",311,null,null,null,null,null,null,null,null,null,null,null,null,null,null,null,null,null,null,"~"]
["SA36",2021,"DC16",312,null,null,null,null,null,null,null,null,null,null,null,null,null,null,null,null,null,null,"~"]
["SA36",2021,"DC16",313,null,null,null,null,null,null,null,null,null,null,null,null,null,null,null,null,null,null,"~"]
["SA36",2021,"DC16",314,null,null,null,null,null,null,null,null,null,null,null,null,null,null,null,null,null,null,"~"]
["SA36",2021,"DC16",315,null,null,null,null,null,null,null,null,null,null,null,null,null,null,null,null,null,null,"~"]
["SA36",2021,"DC16",316,null,null,null,null,null,null,null,null,null,null,null,null,null,null,null,null,null,null,"~"]
["SA36",2021,"DC16",317,null,null,null,null,null,null,null,null,null,null,null,null,null,null,null,null,null,null,"~"]
["SA36",2021,"DC16",318,null,null,null,null,null,null,null,null,null,null,null,null,null,null,null,null,null,null,"~"]
["SA36",2021,"DC16",319,null,null,null,null,null,null,null,null,null,null,null,null,null,null,null,null,null,null,"~"]
["SA36",2021,"DC16",320,null,null,null,null,null,null,null,null,null,null,null,null,null,null,null,null,null,null,"~"]
["SA36",2021,"DC16",321,null,null,null,null,null,null,null,null,null,null,null,null,null,null,null,null,null,null,"~"]
["SA36",2021,"DC16",322,null,null,null,null,null,null,null,null,null,null,null,null,null,null,null,null,null,null,"~"]
["SA36",2021,"DC16",323,null,null,null,null,null,null,null,null,null,null,null,null,null,null,null,null,null,null,"~"]
["SA36",2021,"DC16",324,null,null,null,null,null,null,null,null,null,null,null,null,null,null,null,null,null,null,"~"]
["SA36",2021,"DC16",325,null,null,null,null,null,null,null,null,null,null,null,null,null,null,null,null,null,null,"~"]
["SA36",2021,"DC16",326,null,null,null,null,null,null,null,null,null,null,null,null,null,null,null,null,null,null,"~"]
["SA36",2021,"DC16",327,null,null,null,null,null,null,null,null,null,null,null,null,null,null,null,null,null,null,"~"]
["SA36",2021,"DC16",328,null,null,null,null,null,null,null,null,null,null,null,null,null,null,null,null,null,null,"~"]
["SA36",2021,"DC16",329,null,null,null,null,null,null,null,null,null,null,null,null,null,null,null,null,null,null,"~"]
["SA36",2021,"DC16",330,null,null,null,null,null,null,null,null,null,null,null,null,null,null,null,null,null,null,"~"]
["SA36",2021,"DC16",331,null,null,null,null,null,null,null,null,null,null,null,null,null,null,null,null,null,null,"~"]
["SA36",2021,"DC16",332,null,null,null,null,null,null,null,null,null,null,null,null,null,null,null,null,null,null,"~"]
["SA36",2021,"DC16",333,null,null,null,null,null,null,null,null,null,null,null,null,null,null,null,null,null,null,"~"]
["SA36",2021,"DC16",334,null,null,null,null,null,null,null,null,null,null,null,null,null,null,null,null,null,null,"~"]
["SA36",2021,"DC16",335,null,null,null,null,null,null,null,null,null,null,null,null,null,null,null,null,null,null,"~"]
["SA36",2021,"DC16",336,null,null,null,null,null,null,null,null,null,null,null,null,null,null,null,null,null,null,"~"]
["SA36",2021,"DC16",337,null,null,null,null,null,null,null,null,null,null,null,null,null,null,null,null,null,null,"~"]
["SA36",2021,"DC16",338,null,null,null,null,null,null,null,null,null,null,null,null,null,null,null,null,null,null,"~"]
["SA36",2021,"DC16",339,null,null,null,null,null,null,null,null,null,null,null,null,null,null,null,null,null,null,"~"]
["SA36",2021,"DC16",340,null,null,null,null,null,null,null,null,null,null,null,null,null,null,null,null,null,null,"~"]
["SA36",2021,"DC16",341,null,null,null,null,null,null,null,null,null,null,null,null,null,null,null,null,null,null,"~"]
["SA36",2021,"DC16",342,null,null,null,null,null,null,null,null,null,null,null,null,null,null,null,null,null,null,"~"]
["SA36",2021,"DC16",343,null,null,null,null,null,null,null,null,null,null,null,null,null,null,null,null,null,null,"~"]
["SA36",{"$f":"+MTREF","v":2021},{"$f":"LEFT(muni,(FIND(\" \",muni,1)-1))","v":"DC16"},344,null,null,null,null,null,null,null,null,null,null,null,null,null,null,null,null,null,null,"~"]
["SA36",2021,"DC16",345,null,null,null,null,null,null,null,null,null,null,null,null,null,null,null,null,null,null,"~"]
["SA36",2021,"DC16",346,null,null,null,null,null,null,null,null,null,null,null,null,null,null,null,null,null,null,"~"]
["SA36",2021,"DC16",347,null,null,null,null,null,null,null,null,null,null,null,null,null,null,null,null,null,null,"~"]
["SA36",2021,"DC16",348,null,null,null,null,null,null,null,null,null,null,null,null,null,null,null,null,null,null,"~"]
["SA36",2021,"DC16",349,null,null,null,null,null,null,null,null,null,null,null,null,null,null,null,null,null,null,"~"]
["SA36",2021,"DC16",350,null,null,null,null,null,null,null,null,null,null,null,null,null,null,null,null,null,null,"~"]
["SA36",2021,"DC16",351,null,null,null,null,null,null,null,null,null,null,null,null,null,null,null,null,null,null,"~"]
["SA36",2021,"DC16",352,null,null,null,null,null,null,null,null,null,null,null,null,null,null,null,null,null,null,"~"]
["SA36",2021,"DC16",353,null,null,null,null,null,null,null,null,null,null,null,null,null,null,null,null,null,null,"~"]
["SA36",2021,"DC16",354,null,null,null,null,null,null,null,null,null,null,null,null,null,null,null,null,null,null,"~"]
["SA36",2021,"DC16",355,null,null,null,null,null,null,null,null,null,null,null,null,null,null,null,null,null,null,"~"]
["SA36",2021,"DC16",356,null,null,null,null,null,null,null,null,null,null,null,null,null,null,null,null,null,null,"~"]
["SA36",2021,"DC16",357,null,null,null,null,null,null,null,null,null,null,null,null,null,null,null,null,null,null,"~"]
["SA36",2021,"DC16",358,null,null,null,null,null,null,null,null,null,null,null,null,null,null,null,null,null,null,"~"]
["SA36",2021,"DC16",359,null,null,null,null,null,null,null,null,null,null,null,null,null,null,null,null,null,null,"~"]
["SA36",2021,"DC16",360,null,null,null,null,null,null,null,null,null,null,null,null,null,null,null,null,null,null,"~"]
["SA36",2021,"DC16",361,null,null,null,null,null,null,null,null,null,null,null,null,null,null,null,null,null,null,"~"]
["SA36",2021,"DC16",362,null,null,null,null,null,null,null,null,null,null,null,null,null,null,null,null,null,null,"~"]
["SA36",2021,"DC16",363,null,null,null,null,null,null,null,null,null,null,null,null,null,null,null,null,null,null,"~"]
["SA36",2021,"DC16",364,null,null,null,null,null,null,null,null,null,null,null,null,null,null,null,null,null,null,"~"]
["SA36",2021,"DC16",365,null,null,null,null,null,null,null,null,null,null,null,null,null,null,null,null,null,null,"~"]
["SA36",2021,"DC16",366,null,null,null,null,null,null,null,null,null,null,null,null,null,null,null,null,null,null,"~"]
["SA36",2021,"DC16",367,null,null,null,null,null,null,null,null,null,null,null,null,null,null,null,null,null,null,"~"]
["SA36",2021,"DC16",368,null,null,null,null,null,null,null,null,null,null,null,null,null,null,null,null,null,null,"~"]
["SA36",2021,"DC16",369,null,null,null,null,null,null,null,null,null,null,null,null,null,null,null,null,null,null,"~"]
["SA36",2021,"DC16",370,null,null,null,null,null,null,null,null,null,null,null,null,null,null,null,null,null,null,"~"]
["SA36",2021,"DC16",371,null,null,null,null,null,null,null,null,null,null,null,null,null,null,null,null,null,null,"~"]
["SA36",2021,"DC16",372,null,null,null,null,null,null,null,null,null,null,null,null,null,null,null,null,null,null,"~"]
["SA36",2021,"DC16",373,null,null,null,null,null,null,null,null,null,null,null,null,null,null,null,null,null,null,"~"]
["SA36",2021,"DC16",374,null,null,null,null,null,null,null,null,null,null,null,null,null,null,null,null,null,null,"~"]
["SA36",2021,"DC16",375,null,null,null,null,null,null,null,null,null,null,null,null,null,null,null,null,null,null,"~"]
["SA36",2021,"DC16",376,null,null,null,null,null,null,null,null,null,null,null,null,null,null,null,null,null,null,"~"]
["SA36",2021,"DC16",377,null,null,null,null,null,null,null,null,null,null,null,null,null,null,null,null,null,null,"~"]
["SA36",2021,"DC16",378,null,null,null,null,null,null,null,null,null,null,null,null,null,null,null,null,null,null,"~"]
["SA36",2021,"DC16",379,null,null,null,null,null,null,null,null,null,null,null,null,null,null,null,null,null,null,"~"]
["SA36",2021,"DC16",380,null,null,null,null,null,null,null,null,null,null,null,null,null,null,null,null,null,null,"~"]
["SA36",2021,"DC16",381,null,null,null,null,null,null,null,null,null,null,null,null,null,null,null,null,null,null,"~"]
["SA36",2021,"DC16",382,null,null,null,null,null,null,null,null,null,null,null,null,null,null,null,null,null,null,"~"]
["SA36",2021,"DC16",383,null,null,null,null,null,null,null,null,null,null,null,null,null,null,null,null,null,null,"~"]
["SA36",2021,"DC16",384,null,null,null,null,null,null,null,null,null,null,null,null,null,null,null,null,null,null,"~"]
["SA36",2021,"DC16",385,null,null,null,null,null,null,null,null,null,null,null,null,null,null,null,null,null,null,"~"]
["SA36",2021,"DC16",386,null,null,null,null,null,null,null,null,null,null,null,null,null,null,null,null,null,null,"~"]
["SA36",2021,"DC16",387,null,null,null,null,null,null,null,null,null,null,null,null,null,null,null,null,null,null,"~"]
["SA36",2021,"DC16",388,null,null,null,null,null,null,null,null,null,null,null,null,null,null,null,null,null,null,"~"]
["SA36",2021,"DC16",389,null,null,null,null,null,null,null,null,null,null,null,null,null,null,null,null,null,null,"~"]
["SA36",2021,"DC16",390,null,null,null,null,null,null,null,null,null,null,null,null,null,null,null,null,null,null,"~"]
["SA36",2021,"DC16",391,null,null,null,null,null,null,null,null,null,null,null,null,null,null,null,null,null,null,"~"]
["SA36",2021,"DC16",392,null,null,null,null,null,null,null,null,null,null,null,null,null,null,null,null,null,null,"~"]
["SA36",2021,"DC16",393,null,null,null,null,null,null,null,null,null,null,null,null,null,null,null,null,null,null,"~"]
["SA36",2021,"DC16",394,null,null,null,null,null,null,null,null,null,null,null,null,null,null,null,null,null,null,"~"]
["SA36",2021,"DC16",395,null,null,null,null,null,null,null,null,null,null,null,null,null,null,null,null,null,null,"~"]
["SA36",2021,"DC16",396,null,null,null,null,null,null,null,null,null,null,null,null,null,null,null,null,null,null,"~"]
["SA36",2021,"DC16",397,null,null,null,null,null,null,null,null,null,null,null,null,null,null,null,null,null,null,"~"]
["SA36",2021,"DC16",398,null,null,null,null,null,null,null,null,null,null,null,null,null,null,null,null,null,null,"~"]
["SA36",2021,"DC16",399,null,null,null,null,null,null,null,null,null,null,null,null,null,null,null,null,null,null,"~"]
["SA36",2021,"DC16",400,null,null,null,null,null,null,null,null,null,null,null,null,null,null,null,null,null,null,"~"]
["SA36",2021,"DC16",401,null,null,null,null,null,null,null,null,null,null,null,null,null,null,null,null,null,null,"~"]
["SA36",2021,"DC16",402,null,null,null,null,null,null,null,null,null,null,null,null,null,null,null,null,null,null,"~"]
["SA36",2021,"DC16",403,null,null,null,null,null,null,null,null,null,null,null,null,null,null,null,null,null,null,"~"]
["SA36",2021,"DC16",404,null,null,null,null,null,null,null,null,null,null,null,null,null,null,null,null,null,null,"~"]
["SA36",2021,"DC16",405,null,null,null,null,null,null,null,null,null,null,null,null,null,null,null,null,null,null,"~"]
["SA36",2021,"DC16",406,null,null,null,null,null,null,null,null,null,null,null,null,null,null,null,null,null,null,"~"]
["SA36",2021,"DC16",407,null,null,null,null,null,null,null,null,null,null,null,null,null,null,null,null,null,null,"~"]
["SA36",{"$f":"+MTREF","v":2021},{"$f":"LEFT(muni,(FIND(\" \",muni,1)-1))","v":"DC16"},408,null,null,null,null,null,null,null,null,null,null,null,null,null,null,null,null,null,null,"~"]
["SA36",2021,"DC16",409,null,null,null,null,null,null,null,null,null,null,null,null,null,null,null,null,null,null,"~"]
["SA36",2021,"DC16",410,null,null,null,null,null,null,null,null,null,null,null,null,null,null,null,null,null,null,"~"]
["SA36",2021,"DC16",411,null,null,null,null,null,null,null,null,null,null,null,null,null,null,null,null,null,null,"~"]
["SA36",2021,"DC16",412,null,null,null,null,null,null,null,null,null,null,null,null,null,null,null,null,null,null,"~"]
["SA36",2021,"DC16",413,null,null,null,null,null,null,null,null,null,null,null,null,null,null,null,null,null,null,"~"]
["SA36",2021,"DC16",414,null,null,null,null,null,null,null,null,null,null,null,null,null,null,null,null,null,null,"~"]
["SA36",2021,"DC16",415,null,null,null,null,null,null,null,null,null,null,null,null,null,null,null,null,null,null,"~"]
["SA36",2021,"DC16",416,null,null,null,null,null,null,null,null,null,null,null,null,null,null,null,null,null,null,"~"]
["SA36",2021,"DC16",417,null,null,null,null,null,null,null,null,null,null,null,null,null,null,null,null,null,null,"~"]
["SA36",2021,"DC16",418,null,null,null,null,null,null,null,null,null,null,null,null,null,null,null,null,null,null,"~"]
["SA36",2021,"DC16",419,null,null,null,null,null,null,null,null,null,null,null,null,null,null,null,null,null,null,"~"]
["SA36",2021,"DC16",420,null,null,null,null,null,null,null,null,null,null,null,null,null,null,null,null,null,null,"~"]
["SA36",2021,"DC16",421,null,null,null,null,null,null,null,null,null,null,null,null,null,null,null,null,null,null,"~"]
["SA36",2021,"DC16",422,null,null,null,null,null,null,null,null,null,null,null,null,null,null,null,null,null,null,"~"]
["SA36",2021,"DC16",423,null,null,null,null,null,null,null,null,null,null,null,null,null,null,null,null,null,null,"~"]
["SA36",2021,"DC16",424,null,null,null,null,null,null,null,null,null,null,null,null,null,null,null,null,null,null,"~"]
["SA36",2021,"DC16",425,null,null,null,null,null,null,null,null,null,null,null,null,null,null,null,null,null,null,"~"]
["SA36",2021,"DC16",426,null,null,null,null,null,null,null,null,null,null,null,null,null,null,null,null,null,null,"~"]
["SA36",2021,"DC16",427,null,null,null,null,null,null,null,null,null,null,null,null,null,null,null,null,null,null,"~"]
["SA36",2021,"DC16",428,null,null,null,null,null,null,null,null,null,null,null,null,null,null,null,null,null,null,"~"]
["SA36",2021,"DC16",429,null,null,null,null,null,null,null,null,null,null,null,null,null,null,null,null,null,null,"~"]
["SA36",2021,"DC16",430,null,null,null,null,null,null,null,null,null,null,null,null,null,null,null,null,null,null,"~"]
["SA36",2021,"DC16",431,null,null,null,null,null,null,null,null,null,null,null,null,null,null,null,null,null,null,"~"]
["SA36",2021,"DC16",432,null,null,null,null,null,null,null,null,null,null,null,null,null,null,null,null,null,null,"~"]
["SA36",2021,"DC16",433,null,null,null,null,null,null,null,null,null,null,null,null,null,null,null,null,null,null,"~"]
["SA36",2021,"DC16",434,null,null,null,null,null,null,null,null,null,null,null,null,null,null,null,null,null,null,"~"]
["SA36",2021,"DC16",435,null,null,null,null,null,null,null,null,null,null,null,null,null,null,null,null,null,null,"~"]
["SA36",2021,"DC16",436,null,null,null,null,null,null,null,null,null,null,null,null,null,null,null,null,null,null,"~"]
["SA36",2021,"DC16",437,null,null,null,null,null,null,null,null,null,null,null,null,null,null,null,null,null,null,"~"]
["SA36",2021,"DC16",438,null,null,null,null,null,null,null,null,null,null,null,null,null,null,null,null,null,null,"~"]
["SA36",2021,"DC16",439,null,null,null,null,null,null,null,null,null,null,null,null,null,null,null,null,null,null,"~"]
["SA36",2021,"DC16",440,null,null,null,null,null,null,null,null,null,null,null,null,null,null,null,null,null,null,"~"]
["SA36",2021,"DC16",441,null,null,null,null,null,null,null,null,null,null,null,null,null,null,null,null,null,null,"~"]
["SA36",2021,"DC16",442,null,null,null,null,null,null,null,null,null,null,null,null,null,null,null,null,null,null,"~"]
["SA36",2021,"DC16",443,null,null,null,null,null,null,null,null,null,null,null,null,null,null,null,null,null,null,"~"]
["SA36",2021,"DC16",444,null,null,null,null,null,null,null,null,null,null,null,null,null,null,null,null,null,null,"~"]
["SA36",2021,"DC16",445,null,null,null,null,null,null,null,null,null,null,null,null,null,null,null,null,null,null,"~"]
["SA36",2021,"DC16",446,null,null,null,null,null,null,null,null,null,null,null,null,null,null,null,null,null,null,"~"]
["SA36",2021,"DC16",447,null,null,null,null,null,null,null,null,null,null,null,null,null,null,null,null,null,null,"~"]
["SA36",2021,"DC16",448,null,null,null,null,null,null,null,null,null,null,null,null,null,null,null,null,null,null,"~"]
["SA36",2021,"DC16",449,null,null,null,null,null,null,null,null,null,null,null,null,null,null,null,null,null,null,"~"]
["SA36",2021,"DC16",450,null,null,null,null,null,null,null,null,null,null,null,null,null,null,null,null,null,null,"~"]
["SA36",2021,"DC16",451,null,null,null,null,null,null,null,null,null,null,null,null,null,null,null,null,null,null,"~"]
["SA36",2021,"DC16",452,null,null,null,null,null,null,null,null,null,null,null,null,null,null,null,null,null,null,"~"]
["SA36",2021,"DC16",453,null,null,null,null,null,null,null,null,null,null,null,null,null,null,null,null,null,null,"~"]
["SA36",2021,"DC16",454,null,null,null,null,null,null,null,null,null,null,null,null,null,null,null,null,null,null,"~"]
["SA36",2021,"DC16",455,null,null,null,null,null,null,null,null,null,null,null,null,null,null,null,null,null,null,"~"]
["SA36",2021,"DC16",456,null,null,null,null,null,null,null,null,null,null,null,null,null,null,null,null,null,null,"~"]
["SA36",2021,"DC16",457,null,null,null,null,null,null,null,null,null,null,null,null,null,null,null,null,null,null,"~"]
["SA36",2021,"DC16",458,null,null,null,null,null,null,null,null,null,null,null,null,null,null,null,null,null,null,"~"]
["SA36",2021,"DC16",459,null,null,null,null,null,null,null,null,null,null,null,null,null,null,null,null,null,null,"~"]
["SA36",2021,"DC16",460,null,null,null,null,null,null,null,null,null,null,null,null,null,null,null,null,null,null,"~"]
["SA36",2021,"DC16",461,null,null,null,null,null,null,null,null,null,null,null,null,null,null,null,null,null,null,"~"]
["SA36",2021,"DC16",462,null,null,null,null,null,null,null,null,null,null,null,null,null,null,null,null,null,null,"~"]
["SA36",2021,"DC16",463,null,null,null,null,null,null,null,null,null,null,null,null,null,null,null,null,null,null,"~"]
["SA36",2021,"DC16",464,null,null,null,null,null,null,null,null,null,null,null,null,null,null,null,null,null,null,"~"]
["SA36",2021,"DC16",465,null,null,null,null,null,null,null,null,null,null,null,null,null,null,null,null,null,null,"~"]
["SA36",2021,"DC16",466,null,null,null,null,null,null,null,null,null,null,null,null,null,null,null,null,null,null,"~"]
["SA36",2021,"DC16",467,null,null,null,null,null,null,null,null,null,null,null,null,null,null,null,null,null,null,"~"]
["SA36",2021,"DC16",468,null,null,null,null,null,null,null,null,null,null,null,null,null,null,null,null,null,null,"~"]
["SA36",2021,"DC16",469,null,null,null,null,null,null,null,null,null,null,null,null,null,null,null,null,null,null,"~"]
["SA36",2021,"DC16",470,null,null,null,null,null,null,null,null,null,null,null,null,null,null,null,null,null,null,"~"]
["SA36",2021,"DC16",471,null,null,null,null,null,null,null,null,null,null,null,null,null,null,null,null,null,null,"~"]
["SA36",{"$f":"+MTREF","v":2021},{"$f":"LEFT(muni,(FIND(\" \",muni,1)-1))","v":"DC16"},472,null,null,null,null,null,null,null,null,null,null,null,null,null,null,null,null,null,null,"~"]
["SA36",2021,"DC16",473,null,null,null,null,null,null,null,null,null,null,null,null,null,null,null,null,null,null,"~"]
["SA36",2021,"DC16",474,null,null,null,null,null,null,null,null,null,null,null,null,null,null,null,null,null,null,"~"]
["SA36",2021,"DC16",475,null,null,null,null,null,null,null,null,null,null,null,null,null,null,null,null,null,null,"~"]
["SA36",2021,"DC16",476,null,null,null,null,null,null,null,null,null,null,null,null,null,null,null,null,null,null,"~"]
["SA36",2021,"DC16",477,null,null,null,null,null,null,null,null,null,null,null,null,null,null,null,null,null,null,"~"]
["SA36",2021,"DC16",478,null,null,null,null,null,null,null,null,null,null,null,null,null,null,null,null,null,null,"~"]
["SA36",2021,"DC16",479,null,null,null,null,null,null,null,null,null,null,null,null,null,null,null,null,null,null,"~"]
["SA36",2021,"DC16",480,null,null,null,null,null,null,null,null,null,null,null,null,null,null,null,null,null,null,"~"]
["SA36",2021,"DC16",481,null,null,null,null,null,null,null,null,null,null,null,null,null,null,null,null,null,null,"~"]
["SA36",2021,"DC16",482,null,null,null,null,null,null,null,null,null,null,null,null,null,null,null,null,null,null,"~"]
["SA36",2021,"DC16",483,null,null,null,null,null,null,null,null,null,null,null,null,null,null,null,null,null,null,"~"]
["SA36",2021,"DC16",484,null,null,null,null,null,null,null,null,null,null,null,null,null,null,null,null,null,null,"~"]
["SA36",2021,"DC16",485,null,null,null,null,null,null,null,null,null,null,null,null,null,null,null,null,null,null,"~"]
["SA36",2021,"DC16",486,null,null,null,null,null,null,null,null,null,null,null,null,null,null,null,null,null,null,"~"]
["SA36",2021,"DC16",487,null,null,null,null,null,null,null,null,null,null,null,null,null,null,null,null,null,null,"~"]
["SA36",2021,"DC16",488,null,null,null,null,null,null,null,null,null,null,null,null,null,null,null,null,null,null,"~"]
["SA36",2021,"DC16",489,null,null,null,null,null,null,null,null,null,null,null,null,null,null,null,null,null,null,"~"]
["SA36",2021,"DC16",490,null,null,null,null,null,null,null,null,null,null,null,null,null,null,null,null,null,null,"~"]
["SA36",2021,"DC16",491,null,null,null,null,null,null,null,null,null,null,null,null,null,null,null,null,null,null,"~"]
["SA36",2021,"DC16",492,null,null,null,null,null,null,null,null,null,null,null,null,null,null,null,null,null,null,"~"]
["SA36",2021,"DC16",493,null,null,null,null,null,null,null,null,null,null,null,null,null,null,null,null,null,null,"~"]
["SA36",2021,"DC16",494,null,null,null,null,null,null,null,null,null,null,null,null,null,null,null,null,null,null,"~"]
["SA36",2021,"DC16",495,null,null,null,null,null,null,null,null,null,null,null,null,null,null,null,null,null,null,"~"]
["SA36",2021,"DC16",496,null,null,null,null,null,null,null,null,null,null,null,null,null,null,null,null,null,null,"~"]
["SA36",2021,"DC16",497,null,null,null,null,null,null,null,null,null,null,null,null,null,null,null,null,null,null,"~"]
["SA36",2021,"DC16",498,null,null,null,null,null,null,null,null,null,null,null,null,null,null,null,null,null,null,"~"]
["SA36",2021,"DC16",499,null,null,null,null,null,null,null,null,null,null,null,null,null,null,null,null,null,null,"~"]
["SA36",2021,"DC16",500,null,null,null,null,null,null,null,null,null,null,null,null,null,null,null,null,null,null,"~"]
["SA36",2021,"DC16",501,null,null,null,null,null,null,null,null,null,null,null,null,null,null,null,null,null,null,"~"]
["SA36",2021,"DC16",502,null,null,null,null,null,null,null,null,null,null,null,null,null,null,null,null,null,null,"~"]
["SA36",2021,"DC16",503,null,null,null,null,null,null,null,null,null,null,null,null,null,null,null,null,null,null,"~"]
["SA36",2021,"DC16",504,null,null,null,null,null,null,null,null,null,null,null,null,null,null,null,null,null,null,"~"]
["SA36",2021,"DC16",505,null,null,null,null,null,null,null,null,null,null,null,null,null,null,null,null,null,null,"~"]
["SA36",2021,"DC16",506,null,null,null,null,null,null,null,null,null,null,null,null,null,null,null,null,null,null,"~"]
["SA36",2021,"DC16",507,null,null,null,null,null,null,null,null,null,null,null,null,null,null,null,null,null,null,"~"]
["SA36",2021,"DC16",508,null,null,null,null,null,null,null,null,null,null,null,null,null,null,null,null,null,null,"~"]
["SA36",2021,"DC16",509,null,null,null,null,null,null,null,null,null,null,null,null,null,null,null,null,null,null,"~"]
["SA36",2021,"DC16",510,null,null,null,null,null,null,null,null,null,null,null,null,null,null,null,null,null,null,"~"]
["SA36",2021,"DC16",511,null,null,null,null,null,null,null,null,null,null,null,null,null,null,null,null,null,null,"~"]
["SA36",2021,"DC16",512,null,null,null,null,null,null,null,null,null,null,null,null,null,null,null,null,null,null,"~"]
["SA36",2021,"DC16",513,null,null,null,null,null,null,null,null,null,null,null,null,null,null,null,null,null,null,"~"]
["SA36",2021,"DC16",514,null,null,null,null,null,null,null,null,null,null,null,null,null,null,null,null,null,null,"~"]
["SA36",2021,"DC16",515,null,null,null,null,null,null,null,null,null,null,null,null,null,null,null,null,null,null,"~"]
["SA36",2021,"DC16",516,null,null,null,null,null,null,null,null,null,null,null,null,null,null,null,null,null,null,"~"]
["SA36",2021,"DC16",517,null,null,null,null,null,null,null,null,null,null,null,null,null,null,null,null,null,null,"~"]
["SA36",2021,"DC16",518,null,null,null,null,null,null,null,null,null,null,null,null,null,null,null,null,null,null,"~"]
["SA36",2021,"DC16",519,null,null,null,null,null,null,null,null,null,null,null,null,null,null,null,null,null,null,"~"]
["SA36",2021,"DC16",520,null,null,null,null,null,null,null,null,null,null,null,null,null,null,null,null,null,null,"~"]
["SA36",2021,"DC16",521,null,null,null,null,null,null,null,null,null,null,null,null,null,null,null,null,null,null,"~"]
["SA36",2021,"DC16",522,null,null,null,null,null,null,null,null,null,null,null,null,null,null,null,null,null,null,"~"]
["SA36",2021,"DC16",523,null,null,null,null,null,null,null,null,null,null,null,null,null,null,null,null,null,null,"~"]
["SA36",2021,"DC16",524,null,null,null,null,null,null,null,null,null,null,null,null,null,null,null,null,null,null,"~"]
["SA36",2021,"DC16",525,null,null,null,null,null,null,null,null,null,null,null,null,null,null,null,null,null,null,"~"]
["SA36",2021,"DC16",526,null,null,null,null,null,null,null,null,null,null,null,null,null,null,null,null,null,null,"~"]
["SA36",2021,"DC16",527,null,null,null,null,null,null,null,null,null,null,null,null,null,null,null,null,null,null,"~"]
["SA36",2021,"DC16",528,null,null,null,null,null,null,null,null,null,null,null,null,null,null,null,null,null,null,"~"]
["SA36",2021,"DC16",529,null,null,null,null,null,null,null,null,null,null,null,null,null,null,null,null,null,null,"~"]
["SA36",2021,"DC16",530,null,null,null,null,null,null,null,null,null,null,null,null,null,null,null,null,null,null,"~"]
["SA36",2021,"DC16",531,null,null,null,null,null,null,null,null,null,null,null,null,null,null,null,null,null,null,"~"]
["SA36",2021,"DC16",532,null,null,null,null,null,null,null,null,null,null,null,null,null,null,null,null,null,null,"~"]
["SA36",2021,"DC16",533,null,null,null,null,null,null,null,null,null,null,null,null,null,null,null,null,null,null,"~"]
["SA36",2021,"DC16",534,null,null,null,null,null,null,null,null,null,null,null,null,null,null,null,null,null,null,"~"]
["SA36",2021,"DC16",535,null,null,null,null,null,null,null,null,null,null,null,null,null,null,null,null,null,null,"~"]
["SA36",{"$f":"+MTREF","v":2021},{"$f":"LEFT(muni,(FIND(\" \",muni,1)-1))","v":"DC16"},536,null,null,null,null,null,null,null,null,null,null,null,null,null,null,null,null,null,null,"~"]
["SA36",2021,"DC16",537,null,null,null,null,null,null,null,null,null,null,null,null,null,null,null,null,null,null,"~"]
["SA36",2021,"DC16",538,null,null,null,null,null,null,null,null,null,null,null,null,null,null,null,null,null,null,"~"]
["SA36",2021,"DC16",539,null,null,null,null,null,null,null,null,null,null,null,null,null,null,null,null,null,null,"~"]
["SA36",2021,"DC16",540,null,null,null,null,null,null,null,null,null,null,null,null,null,null,null,null,null,null,"~"]
["SA36",2021,"DC16",541,null,null,null,null,null,null,null,null,null,null,null,null,null,null,null,null,null,null,"~"]
["SA36",2021,"DC16",542,null,null,null,null,null,null,null,null,null,null,null,null,null,null,null,null,null,null,"~"]
["SA36",2021,"DC16",543,null,null,null,null,null,null,null,null,null,null,null,null,null,null,null,null,null,null,"~"]
["SA36",2021,"DC16",544,null,null,null,null,null,null,null,null,null,null,null,null,null,null,null,null,null,null,"~"]
["SA36",2021,"DC16",545,null,null,null,null,null,null,null,null,null,null,null,null,null,null,null,null,null,null,"~"]
["SA36",2021,"DC16",546,null,null,null,null,null,null,null,null,null,null,null,null,null,null,null,null,null,null,"~"]
["SA36",2021,"DC16",547,null,null,null,null,null,null,null,null,null,null,null,null,null,null,null,null,null,null,"~"]
["SA36",2021,"DC16",548,null,null,null,null,null,null,null,null,null,null,null,null,null,null,null,null,null,null,"~"]
["SA36",2021,"DC16",549,null,null,null,null,null,null,null,null,null,null,null,null,null,null,null,null,null,null,"~"]
["SA36",2021,"DC16",550,null,null,null,null,null,null,null,null,null,null,null,null,null,null,null,null,null,null,"~"]
["SA36",2021,"DC16",551,null,null,null,null,null,null,null,null,null,null,null,null,null,null,null,null,null,null,"~"]
["SA36",2021,"DC16",552,null,null,null,null,null,null,null,null,null,null,null,null,null,null,null,null,null,null,"~"]
["SA36",2021,"DC16",553,null,null,null,null,null,null,null,null,null,null,null,null,null,null,null,null,null,null,"~"]
["SA36",2021,"DC16",554,null,null,null,null,null,null,null,null,null,null,null,null,null,null,null,null,null,null,"~"]
["SA36",2021,"DC16",555,null,null,null,null,null,null,null,null,null,null,null,null,null,null,null,null,null,null,"~"]
["SA36",2021,"DC16",556,null,null,null,null,null,null,null,null,null,null,null,null,null,null,null,null,null,null,"~"]
["SA36",2021,"DC16",557,null,null,null,null,null,null,null,null,null,null,null,null,null,null,null,null,null,null,"~"]
["SA36",2021,"DC16",558,null,null,null,null,null,null,null,null,null,null,null,null,null,null,null,null,null,null,"~"]
["SA36",2021,"DC16",559,null,null,null,null,null,null,null,null,null,null,null,null,null,null,null,null,null,null,"~"]
["SA36",2021,"DC16",560,null,null,null,null,null,null,null,null,null,null,null,null,null,null,null,null,null,null,"~"]
["SA36",2021,"DC16",561,null,null,null,null,null,null,null,null,null,null,null,null,null,null,null,null,null,null,"~"]
["SA36",2021,"DC16",562,null,null,null,null,null,null,null,null,null,null,null,null,null,null,null,null,null,null,"~"]
["SA36",2021,"DC16",563,null,null,null,null,null,null,null,null,null,null,null,null,null,null,null,null,null,null,"~"]
["SA36",2021,"DC16",564,null,null,null,null,null,null,null,null,null,null,null,null,null,null,null,null,null,null,"~"]
["SA36",2021,"DC16",565,null,null,null,null,null,null,null,null,null,null,null,null,null,null,null,null,null,null,"~"]
["SA36",2021,"DC16",566,null,null,null,null,null,null,null,null,null,null,null,null,null,null,null,null,null,null,"~"]
["SA36",2021,"DC16",567,null,null,null,null,null,null,null,null,null,null,null,null,null,null,null,null,null,null,"~"]
["SA36",2021,"DC16",568,null,null,null,null,null,null,null,null,null,null,null,null,null,null,null,null,null,null,"~"]
["SA36",2021,"DC16",569,null,null,null,null,null,null,null,null,null,null,null,null,null,null,null,null,null,null,"~"]
["SA36",2021,"DC16",570,null,null,null,null,null,null,null,null,null,null,null,null,null,null,null,null,null,null,"~"]
["SA36",2021,"DC16",571,null,null,null,null,null,null,null,null,null,null,null,null,null,null,null,null,null,null,"~"]
["SA36",2021,"DC16",572,null,null,null,null,null,null,null,null,null,null,null,null,null,null,null,null,null,null,"~"]
["SA36",2021,"DC16",573,null,null,null,null,null,null,null,null,null,null,null,null,null,null,null,null,null,null,"~"]
["SA36",2021,"DC16",574,null,null,null,null,null,null,null,null,null,null,null,null,null,null,null,null,null,null,"~"]
["SA36",2021,"DC16",575,null,null,null,null,null,null,null,null,null,null,null,null,null,null,null,null,null,null,"~"]
["SA36",2021,"DC16",576,null,null,null,null,null,null,null,null,null,null,null,null,null,null,null,null,null,null,"~"]
["SA36",2021,"DC16",577,null,null,null,null,null,null,null,null,null,null,null,null,null,null,null,null,null,null,"~"]
["SA36",2021,"DC16",578,null,null,null,null,null,null,null,null,null,null,null,null,null,null,null,null,null,null,"~"]
["SA36",2021,"DC16",579,null,null,null,null,null,null,null,null,null,null,null,null,null,null,null,null,null,null,"~"]
["SA36",2021,"DC16",580,null,null,null,null,null,null,null,null,null,null,null,null,null,null,null,null,null,null,"~"]
["SA36",2021,"DC16",581,null,null,null,null,null,null,null,null,null,null,null,null,null,null,null,null,null,null,"~"]
["SA36",2021,"DC16",582,null,null,null,null,null,null,null,null,null,null,null,null,null,null,null,null,null,null,"~"]
["SA36",2021,"DC16",583,null,null,null,null,null,null,null,null,null,null,null,null,null,null,null,null,null,null,"~"]
["SA36",2021,"DC16",584,null,null,null,null,null,null,null,null,null,null,null,null,null,null,null,null,null,null,"~"]
["SA36",2021,"DC16",585,null,null,null,null,null,null,null,null,null,null,null,null,null,null,null,null,null,null,"~"]
["SA36",2021,"DC16",586,null,null,null,null,null,null,null,null,null,null,null,null,null,null,null,null,null,null,"~"]
["SA36",2021,"DC16",587,null,null,null,null,null,null,null,null,null,null,null,null,null,null,null,null,null,null,"~"]
["SA36",2021,"DC16",588,null,null,null,null,null,null,null,null,null,null,null,null,null,null,null,null,null,null,"~"]
["SA36",2021,"DC16",589,null,null,null,null,null,null,null,null,null,null,null,null,null,null,null,null,null,null,"~"]
["SA36",2021,"DC16",590,null,null,null,null,null,null,null,null,null,null,null,null,null,null,null,null,null,null,"~"]
["SA36",2021,"DC16",591,null,null,null,null,null,null,null,null,null,null,null,null,null,null,null,null,null,null,"~"]
["SA36",2021,"DC16",592,null,null,null,null,null,null,null,null,null,null,null,null,null,null,null,null,null,null,"~"]
["SA36",2021,"DC16",593,null,null,null,null,null,null,null,null,null,null,null,null,null,null,null,null,null,null,"~"]
["SA36",2021,"DC16",594,null,null,null,null,null,null,null,null,null,null,null,null,null,null,null,null,null,null,"~"]
["SA36",2021,"DC16",595,null,null,null,null,null,null,null,null,null,null,null,null,null,null,null,null,null,null,"~"]
["SA36",2021,"DC16",596,null,null,null,null,null,null,null,null,null,null,null,null,null,null,null,null,null,null,"~"]
["SA36",2021,"DC16",597,null,null,null,null,null,null,null,null,null,null,null,null,null,null,null,null,null,null,"~"]
["SA36",2021,"DC16",598,null,null,null,null,null,null,null,null,null,null,null,null,null,null,null,null,null,null,"~"]
["SA36",2021,"DC16",599,null,null,null,null,null,null,null,null,null,null,null,null,null,null,null,null,null,null,"~"]
["SA36",{"$f":"+MTREF","v":2021},{"$f":"LEFT(muni,(FIND(\" \",muni,1)-1))","v":"DC16"},600,null,null,null,null,null,null,null,null,null,null,null,null,null,null,null,null,null,null,"~"]
["SA36",2021,"DC16",601,null,null,null,null,null,null,null,null,null,null,null,null,null,null,null,null,null,null,"~"]
["SA36",2021,"DC16",602,null,null,null,null,null,null,null,null,null,null,null,null,null,null,null,null,null,null,"~"]
["SA36",2021,"DC16",603,null,null,null,null,null,null,null,null,null,null,null,null,null,null,null,null,null,null,"~"]
["SA36",2021,"DC16",604,null,null,null,null,null,null,null,null,null,null,null,null,null,null,null,null,null,null,"~"]
["SA36",2021,"DC16",605,null,null,null,null,null,null,null,null,null,null,null,null,null,null,null,null,null,null,"~"]
["SA36",2021,"DC16",606,null,null,null,null,null,null,null,null,null,null,null,null,null,null,null,null,null,null,"~"]
["SA36",2021,"DC16",607,null,null,null,null,null,null,null,null,null,null,null,null,null,null,null,null,null,null,"~"]
["SA36",2021,"DC16",608,null,null,null,null,null,null,null,null,null,null,null,null,null,null,null,null,null,null,"~"]
["SA36",2021,"DC16",609,null,null,null,null,null,null,null,null,null,null,null,null,null,null,null,null,null,null,"~"]
["SA36",2021,"DC16",610,null,null,null,null,null,null,null,null,null,null,null,null,null,null,null,null,null,null,"~"]
["SA36",2021,"DC16",611,null,null,null,null,null,null,null,null,null,null,null,null,null,null,null,null,null,null,"~"]
["SA36",2021,"DC16",612,null,null,null,null,null,null,null,null,null,null,null,null,null,null,null,null,null,null,"~"]
["SA36",2021,"DC16",613,null,null,null,null,null,null,null,null,null,null,null,null,null,null,null,null,null,null,"~"]
["SA36",2021,"DC16",614,null,null,null,null,null,null,null,null,null,null,null,null,null,null,null,null,null,null,"~"]
["SA36",2021,"DC16",615,null,null,null,null,null,null,null,null,null,null,null,null,null,null,null,null,null,null,"~"]
["SA36",2021,"DC16",616,null,null,null,null,null,null,null,null,null,null,null,null,null,null,null,null,null,null,"~"]
["SA36",2021,"DC16",617,null,null,null,null,null,null,null,null,null,null,null,null,null,null,null,null,null,null,"~"]
["SA36",2021,"DC16",618,null,null,null,null,null,null,null,null,null,null,null,null,null,null,null,null,null,null,"~"]
["SA36",2021,"DC16",619,null,null,null,null,null,null,null,null,null,null,null,null,null,null,null,null,null,null,"~"]
["SA36",2021,"DC16",620,null,null,null,null,null,null,null,null,null,null,null,null,null,null,null,null,null,null,"~"]
["SA36",2021,"DC16",621,null,null,null,null,null,null,null,null,null,null,null,null,null,null,null,null,null,null,"~"]
["SA36",2021,"DC16",622,null,null,null,null,null,null,null,null,null,null,null,null,null,null,null,null,null,null,"~"]
["SA36",2021,"DC16",623,null,null,null,null,null,null,null,null,null,null,null,null,null,null,null,null,null,null,"~"]
["SA36",2021,"DC16",624,null,null,null,null,null,null,null,null,null,null,null,null,null,null,null,null,null,null,"~"]
["SA36",2021,"DC16",625,null,null,null,null,null,null,null,null,null,null,null,null,null,null,null,null,null,null,"~"]
["SA36",2021,"DC16",626,null,null,null,null,null,null,null,null,null,null,null,null,null,null,null,null,null,null,"~"]
["SA36",2021,"DC16",627,null,null,null,null,null,null,null,null,null,null,null,null,null,null,null,null,null,null,"~"]
["SA36",2021,"DC16",628,null,null,null,null,null,null,null,null,null,null,null,null,null,null,null,null,null,null,"~"]
["SA36",2021,"DC16",629,null,null,null,null,null,null,null,null,null,null,null,null,null,null,null,null,null,null,"~"]
["SA36",2021,"DC16",630,null,null,null,null,null,null,null,null,null,null,null,null,null,null,null,null,null,null,"~"]
["SA36",2021,"DC16",631,null,null,null,null,null,null,null,null,null,null,null,null,null,null,null,null,null,null,"~"]
["SA36",2021,"DC16",632,null,null,null,null,null,null,null,null,null,null,null,null,null,null,null,null,null,null,"~"]
["SA36",2021,"DC16",633,null,null,null,null,null,null,null,null,null,null,null,null,null,null,null,null,null,null,"~"]
["SA36",2021,"DC16",634,null,null,null,null,null,null,null,null,null,null,null,null,null,null,null,null,null,null,"~"]
["SA36",2021,"DC16",635,null,null,null,null,null,null,null,null,null,null,null,null,null,null,null,null,null,null,"~"]
["SA36",2021,"DC16",636,null,null,null,null,null,null,null,null,null,null,null,null,null,null,null,null,null,null,"~"]
["SA36",2021,"DC16",637,null,null,null,null,null,null,null,null,null,null,null,null,null,null,null,null,null,null,"~"]
["SA36",2021,"DC16",638,null,null,null,null,null,null,null,null,null,null,null,null,null,null,null,null,null,null,"~"]
["SA36",2021,"DC16",639,null,null,null,null,null,null,null,null,null,null,null,null,null,null,null,null,null,null,"~"]
["SA36",2021,"DC16",640,null,null,null,null,null,null,null,null,null,null,null,null,null,null,null,null,null,null,"~"]
["SA36",2021,"DC16",641,null,null,null,null,null,null,null,null,null,null,null,null,null,null,null,null,null,null,"~"]
["SA36",2021,"DC16",642,null,null,null,null,null,null,null,null,null,null,null,null,null,null,null,null,null,null,"~"]
["SA36",2021,"DC16",643,null,null,null,null,null,null,null,null,null,null,null,null,null,null,null,null,null,null,"~"]
["SA36",2021,"DC16",644,null,null,null,null,null,null,null,null,null,null,null,null,null,null,null,null,null,null,"~"]
["SA36",2021,"DC16",645,null,null,null,null,null,null,null,null,null,null,null,null,null,null,null,null,null,null,"~"]
["SA36",2021,"DC16",646,null,null,null,null,null,null,null,null,null,null,null,null,null,null,null,null,null,null,"~"]
["SA36",2021,"DC16",647,null,null,null,null,null,null,null,null,null,null,null,null,null,null,null,null,null,null,"~"]
["SA36",2021,"DC16",648,null,null,null,null,null,null,null,null,null,null,null,null,null,null,null,null,null,null,"~"]
["SA36",2021,"DC16",649,null,null,null,null,null,null,null,null,null,null,null,null,null,null,null,null,null,null,"~"]
["SA36",2021,"DC16",650,null,null,null,null,null,null,null,null,null,null,null,null,null,null,null,null,null,null,"~"]
["SA36",2021,"DC16",651,null,null,null,null,null,null,null,null,null,null,null,null,null,null,null,null,null,null,"~"]
["SA36",2021,"DC16",652,null,null,null,null,null,null,null,null,null,null,null,null,null,null,null,null,null,null,"~"]
["SA36",2021,"DC16",653,null,null,null,null,null,null,null,null,null,null,null,null,null,null,null,null,null,null,"~"]
["SA36",2021,"DC16",654,null,null,null,null,null,null,null,null,null,null,null,null,null,null,null,null,null,null,"~"]
["SA36",2021,"DC16",655,null,null,null,null,null,null,null,null,null,null,null,null,null,null,null,null,null,null,"~"]
["SA36",2021,"DC16",656,null,null,null,null,null,null,null,null,null,null,null,null,null,null,null,null,null,null,"~"]
["SA36",2021,"DC16",657,null,null,null,null,null,null,null,null,null,null,null,null,null,null,null,null,null,null,"~"]
["SA36",2021,"DC16",658,null,null,null,null,null,null,null,null,null,null,null,null,null,null,null,null,null,null,"~"]
["SA36",2021,"DC16",659,null,null,null,null,null,null,null,null,null,null,null,null,null,null,null,null,null,null,"~"]
["SA36",2021,"DC16",660,null,null,null,null,null,null,null,null,null,null,null,null,null,null,null,null,null,null,"~"]
["SA36",2021,"DC16",661,null,null,null,null,null,null,null,null,null,null,null,null,null,null,null,null,null,null,"~"]
["SA36",2021,"DC16",662,null,null,null,null,null,null,null,null,null,null,null,null,null,null,null,null,null,null,"~"]
["SA36",2021,"DC16",663,null,null,null,null,null,null,null,null,null,null,null,null,null,null,null,null,null,null,"~"]
["SA36",{"$f":"+MTREF","v":2021},{"$f":"LEFT(muni,(FIND(\" \",muni,1)-1))","v":"DC16"},664,null,null,null,null,null,null,null,null,null,null,null,null,null,null,null,null,null,null,"~"]
["SA36",2021,"DC16",665,null,null,null,null,null,null,null,null,null,null,null,null,null,null,null,null,null,null,"~"]
["SA36",2021,"DC16",666,null,null,null,null,null,null,null,null,null,null,null,null,null,null,null,null,null,null,"~"]
["SA36",2021,"DC16",667,null,null,null,null,null,null,null,null,null,null,null,null,null,null,null,null,null,null,"~"]
["SA36",2021,"DC16",668,null,null,null,null,null,null,null,null,null,null,null,null,null,null,null,null,null,null,"~"]
["SA36",2021,"DC16",669,null,null,null,null,null,null,null,null,null,null,null,null,null,null,null,null,null,null,"~"]
["SA36",2021,"DC16",670,null,null,null,null,null,null,null,null,null,null,null,null,null,null,null,null,null,null,"~"]
["SA36",2021,"DC16",671,null,null,null,null,null,null,null,null,null,null,null,null,null,null,null,null,null,null,"~"]
["SA36",2021,"DC16",672,null,null,null,null,null,null,null,null,null,null,null,null,null,null,null,null,null,null,"~"]
["SA36",2021,"DC16",673,null,null,null,null,null,null,null,null,null,null,null,null,null,null,null,null,null,null,"~"]
["SA36",2021,"DC16",674,null,null,null,null,null,null,null,null,null,null,null,null,null,null,null,null,null,null,"~"]
["SA36",2021,"DC16",675,null,null,null,null,null,null,null,null,null,null,null,null,null,null,null,null,null,null,"~"]
["SA36",2021,"DC16",676,null,null,null,null,null,null,null,null,null,null,null,null,null,null,null,null,null,null,"~"]
["SA36",2021,"DC16",677,null,null,null,null,null,null,null,null,null,null,null,null,null,null,null,null,null,null,"~"]
["SA36",2021,"DC16",678,null,null,null,null,null,null,null,null,null,null,null,null,null,null,null,null,null,null,"~"]
["SA36",2021,"DC16",679,null,null,null,null,null,null,null,null,null,null,null,null,null,null,null,null,null,null,"~"]
["SA36",2021,"DC16",680,null,null,null,null,null,null,null,null,null,null,null,null,null,null,null,null,null,null,"~"]
["SA36",2021,"DC16",681,null,null,null,null,null,null,null,null,null,null,null,null,null,null,null,null,null,null,"~"]
["SA36",2021,"DC16",682,null,null,null,null,null,null,null,null,null,null,null,null,null,null,null,null,null,null,"~"]
["SA36",2021,"DC16",683,null,null,null,null,null,null,null,null,null,null,null,null,null,null,null,null,null,null,"~"]
["SA36",2021,"DC16",684,null,null,null,null,null,null,null,null,null,null,null,null,null,null,null,null,null,null,"~"]
["SA36",2021,"DC16",685,null,null,null,null,null,null,null,null,null,null,null,null,null,null,null,null,null,null,"~"]
["SA36",2021,"DC16",686,null,null,null,null,null,null,null,null,null,null,null,null,null,null,null,null,null,null,"~"]
["SA36",2021,"DC16",687,null,null,null,null,null,null,null,null,null,null,null,null,null,null,null,null,null,null,"~"]
["SA36",2021,"DC16",688,null,null,null,null,null,null,null,null,null,null,null,null,null,null,null,null,null,null,"~"]
["SA36",2021,"DC16",689,null,null,null,null,null,null,null,null,null,null,null,null,null,null,null,null,null,null,"~"]
["SA36",2021,"DC16",690,null,null,null,null,null,null,null,null,null,null,null,null,null,null,null,null,null,null,"~"]
["SA36",2021,"DC16",691,null,null,null,null,null,null,null,null,null,null,null,null,null,null,null,null,null,null,"~"]
["SA36",2021,"DC16",692,null,null,null,null,null,null,null,null,null,null,null,null,null,null,null,null,null,null,"~"]
["SA36",2021,"DC16",693,null,null,null,null,null,null,null,null,null,null,null,null,null,null,null,null,null,null,"~"]
["SA36",2021,"DC16",694,null,null,null,null,null,null,null,null,null,null,null,null,null,null,null,null,null,null,"~"]
["SA36",2021,"DC16",695,null,null,null,null,null,null,null,null,null,null,null,null,null,null,null,null,null,null,"~"]
["SA36",2021,"DC16",696,null,null,null,null,null,null,null,null,null,null,null,null,null,null,null,null,null,null,"~"]
["SA36",2021,"DC16",697,null,null,null,null,null,null,null,null,null,null,null,null,null,null,null,null,null,null,"~"]
["SA36",2021,"DC16",698,null,null,null,null,null,null,null,null,null,null,null,null,null,null,null,null,null,null,"~"]
["SA36",2021,"DC16",699,null,null,null,null,null,null,null,null,null,null,null,null,null,null,null,null,null,null,"~"]
["SA36",2021,"DC16",700,null,null,null,null,null,null,null,null,null,null,null,null,null,null,null,null,null,null,"~"]
["SA36",2021,"DC16",701,null,null,null,null,null,null,null,null,null,null,null,null,null,null,null,null,null,null,"~"]
["SA36",2021,"DC16",702,null,null,null,null,null,null,null,null,null,null,null,null,null,null,null,null,null,null,"~"]
["SA36",2021,"DC16",703,null,null,null,null,null,null,null,null,null,null,null,null,null,null,null,null,null,null,"~"]
["SA36",2021,"DC16",704,null,null,null,null,null,null,null,null,null,null,null,null,null,null,null,null,null,null,"~"]
["SA36",2021,"DC16",705,null,null,null,null,null,null,null,null,null,null,null,null,null,null,null,null,null,null,"~"]
["SA36",2021,"DC16",706,null,null,null,null,null,null,null,null,null,null,null,null,null,null,null,null,null,null,"~"]
["SA36",2021,"DC16",707,null,null,null,null,null,null,null,null,null,null,null,null,null,null,null,null,null,null,"~"]
["SA36",2021,"DC16",708,null,null,null,null,null,null,null,null,null,null,null,null,null,null,null,null,null,null,"~"]
["SA36",2021,"DC16",709,null,null,null,null,null,null,null,null,null,null,null,null,null,null,null,null,null,null,"~"]
["SA36",2021,"DC16",710,null,null,null,null,null,null,null,null,null,null,null,null,null,null,null,null,null,null,"~"]
["SA36",2021,"DC16",711,null,null,null,null,null,null,null,null,null,null,null,null,null,null,null,null,null,null,"~"]
["SA36",2021,"DC16",712,null,null,null,null,null,null,null,null,null,null,null,null,null,null,null,null,null,null,"~"]
["SA36",2021,"DC16",713,null,null,null,null,null,null,null,null,null,null,null,null,null,null,null,null,null,null,"~"]
["SA36",2021,"DC16",714,null,null,null,null,null,null,null,null,null,null,null,null,null,null,null,null,null,null,"~"]
["SA36",2021,"DC16",715,null,null,null,null,null,null,null,null,null,null,null,null,null,null,null,null,null,null,"~"]
["SA36",2021,"DC16",716,null,null,null,null,null,null,null,null,null,null,null,null,null,null,null,null,null,null,"~"]
["SA36",2021,"DC16",717,null,null,null,null,null,null,null,null,null,null,null,null,null,null,null,null,null,null,"~"]
["SA36",2021,"DC16",718,null,null,null,null,null,null,null,null,null,null,null,null,null,null,null,null,null,null,"~"]
["SA36",2021,"DC16",719,null,null,null,null,null,null,null,null,null,null,null,null,null,null,null,null,null,null,"~"]
["SA36",2021,"DC16",720,null,null,null,null,null,null,null,null,null,null,null,null,null,null,null,null,null,null,"~"]
["SA36",2021,"DC16",721,null,null,null,null,null,null,null,null,null,null,null,null,null,null,null,null,null,null,"~"]
["SA36",2021,"DC16",722,null,null,null,null,null,null,null,null,null,null,null,null,null,null,null,null,null,null,"~"]
["SA36",2021,"DC16",723,null,null,null,null,null,null,null,null,null,null,null,null,null,null,null,null,null,null,"~"]
["SA36",2021,"DC16",724,null,null,null,null,null,null,null,null,null,null,null,null,null,null,null,null,null,null,"~"]
["SA36",2021,"DC16",725,null,null,null,null,null,null,null,null,null,null,null,null,null,null,null,null,null,null,"~"]
["SA36",2021,"DC16",726,null,null,null,null,null,null,null,null,null,null,null,null,null,null,null,null,null,null,"~"]
["SA36",2021,"DC16",727,null,null,null,null,null,null,null,null,null,null,null,null,null,null,null,null,null,null,"~"]
["SA36",{"$f":"+MTREF","v":2021},{"$f":"LEFT(muni,(FIND(\" \",muni,1)-1))","v":"DC16"},728,null,null,null,null,null,null,null,null,null,null,null,null,null,null,null,null,null,null,"~"]
["SA36",2021,"DC16",729,null,null,null,null,null,null,null,null,null,null,null,null,null,null,null,null,null,null,"~"]
["SA36",2021,"DC16",730,null,null,null,null,null,null,null,null,null,null,null,null,null,null,null,null,null,null,"~"]
["SA36",2021,"DC16",731,null,null,null,null,null,null,null,null,null,null,null,null,null,null,null,null,null,null,"~"]
["SA36",2021,"DC16",732,null,null,null,null,null,null,null,null,null,null,null,null,null,null,null,null,null,null,"~"]
["SA36",2021,"DC16",733,null,null,null,null,null,null,null,null,null,null,null,null,null,null,null,null,null,null,"~"]
["SA36",2021,"DC16",734,null,null,null,null,null,null,null,null,null,null,null,null,null,null,null,null,null,null,"~"]
["SA36",2021,"DC16",735,null,null,null,null,null,null,null,null,null,null,null,null,null,null,null,null,null,null,"~"]
["SA36",2021,"DC16",736,null,null,null,null,null,null,null,null,null,null,null,null,null,null,null,null,null,null,"~"]
["SA36",2021,"DC16",737,null,null,null,null,null,null,null,null,null,null,null,null,null,null,null,null,null,null,"~"]
["SA36",2021,"DC16",738,null,null,null,null,null,null,null,null,null,null,null,null,null,null,null,null,null,null,"~"]
["SA36",2021,"DC16",739,null,null,null,null,null,null,null,null,null,null,null,null,null,null,null,null,null,null,"~"]
["SA36",2021,"DC16",740,null,null,null,null,null,null,null,null,null,null,null,null,null,null,null,null,null,null,"~"]
["SA36",2021,"DC16",741,null,null,null,null,null,null,null,null,null,null,null,null,null,null,null,null,null,null,"~"]
["SA36",2021,"DC16",742,null,null,null,null,null,null,null,null,null,null,null,null,null,null,null,null,null,null,"~"]
["SA36",2021,"DC16",743,null,null,null,null,null,null,null,null,null,null,null,null,null,null,null,null,null,null,"~"]
["SA36",2021,"DC16",744,null,null,null,null,null,null,null,null,null,null,null,null,null,null,null,null,null,null,"~"]
["SA36",2021,"DC16",745,null,null,null,null,null,null,null,null,null,null,null,null,null,null,null,null,null,null,"~"]
["SA36",2021,"DC16",746,null,null,null,null,null,null,null,null,null,null,null,null,null,null,null,null,null,null,"~"]
["SA36",2021,"DC16",747,null,null,null,null,null,null,null,null,null,null,null,null,null,null,null,null,null,null,"~"]
["SA36",2021,"DC16",748,null,null,null,null,null,null,null,null,null,null,null,null,null,null,null,null,null,null,"~"]
["SA36",2021,"DC16",749,null,null,null,null,null,null,null,null,null,null,null,null,null,null,null,null,null,null,"~"]
["SA36",2021,"DC16",750,null,null,null,null,null,null,null,null,null,null,null,null,null,null,null,null,null,null,"~"]
["SA36",2021,"DC16",751,null,null,null,null,null,null,null,null,null,null,null,null,null,null,null,null,null,null,"~"]
["SA36",2021,"DC16",752,null,null,null,null,null,null,null,null,null,null,null,null,null,null,null,null,null,null,"~"]
["SA36",2021,"DC16",753,null,null,null,null,null,null,null,null,null,null,null,null,null,null,null,null,null,null,"~"]
["SA36",2021,"DC16",754,null,null,null,null,null,null,null,null,null,null,null,null,null,null,null,null,null,null,"~"]
["SA36",2021,"DC16",755,null,null,null,null,null,null,null,null,null,null,null,null,null,null,null,null,null,null,"~"]
["SA36",2021,"DC16",756,null,null,null,null,null,null,null,null,null,null,null,null,null,null,null,null,null,null,"~"]
["SA36",2021,"DC16",757,null,null,null,null,null,null,null,null,null,null,null,null,null,null,null,null,null,null,"~"]
["SA36",2021,"DC16",758,null,null,null,null,null,null,null,null,null,null,null,null,null,null,null,null,null,null,"~"]
["SA36",2021,"DC16",759,null,null,null,null,null,null,null,null,null,null,null,null,null,null,null,null,null,null,"~"]
["SA36",2021,"DC16",760,null,null,null,null,null,null,null,null,null,null,null,null,null,null,null,null,null,null,"~"]
["SA36",2021,"DC16",761,null,null,null,null,null,null,null,null,null,null,null,null,null,null,null,null,null,null,"~"]
["SA36",2021,"DC16",762,null,null,null,null,null,null,null,null,null,null,null,null,null,null,null,null,null,null,"~"]
["SA36",2021,"DC16",763,null,null,null,null,null,null,null,null,null,null,null,null,null,null,null,null,null,null,"~"]
["SA36",2021,"DC16",764,null,null,null,null,null,null,null,null,null,null,null,null,null,null,null,null,null,null,"~"]
["SA36",2021,"DC16",765,null,null,null,null,null,null,null,null,null,null,null,null,null,null,null,null,null,null,"~"]
["SA36",2021,"DC16",766,null,null,null,null,null,null,null,null,null,null,null,null,null,null,null,null,null,null,"~"]
["SA36",2021,"DC16",767,null,null,null,null,null,null,null,null,null,null,null,null,null,null,null,null,null,null,"~"]
["SA36",2021,"DC16",768,null,null,null,null,null,null,null,null,null,null,null,null,null,null,null,null,null,null,"~"]
["SA36",2021,"DC16",769,null,null,null,null,null,null,null,null,null,null,null,null,null,null,null,null,null,null,"~"]
["SA36",2021,"DC16",770,null,null,null,null,null,null,null,null,null,null,null,null,null,null,null,null,null,null,"~"]
["SA36",2021,"DC16",771,null,null,null,null,null,null,null,null,null,null,null,null,null,null,null,null,null,null,"~"]
["SA36",2021,"DC16",772,null,null,null,null,null,null,null,null,null,null,null,null,null,null,null,null,null,null,"~"]
["SA36",2021,"DC16",773,null,null,null,null,null,null,null,null,null,null,null,null,null,null,null,null,null,null,"~"]
["SA36",2021,"DC16",774,null,null,null,null,null,null,null,null,null,null,null,null,null,null,null,null,null,null,"~"]
["SA36",2021,"DC16",775,null,null,null,null,null,null,null,null,null,null,null,null,null,null,null,null,null,null,"~"]
["SA36",2021,"DC16",776,null,null,null,null,null,null,null,null,null,null,null,null,null,null,null,null,null,null,"~"]
["SA36",2021,"DC16",777,null,null,null,null,null,null,null,null,null,null,null,null,null,null,null,null,null,null,"~"]
["SA36",2021,"DC16",778,null,null,null,null,null,null,null,null,null,null,null,null,null,null,null,null,null,null,"~"]
["SA36",2021,"DC16",779,null,null,null,null,null,null,null,null,null,null,null,null,null,null,null,null,null,null,"~"]
["SA36",2021,"DC16",780,null,null,null,null,null,null,null,null,null,null,null,null,null,null,null,null,null,null,"~"]
["SA36",2021,"DC16",781,null,null,null,null,null,null,null,null,null,null,null,null,null,null,null,null,null,null,"~"]
["SA36",2021,"DC16",782,null,null,null,null,null,null,null,null,null,null,null,null,null,null,null,null,null,null,"~"]
["SA36",2021,"DC16",783,null,null,null,null,null,null,null,null,null,null,null,null,null,null,null,null,null,null,"~"]
["SA36",2021,"DC16",784,null,null,null,null,null,null,null,null,null,null,null,null,null,null,null,null,null,null,"~"]
["SA36",2021,"DC16",785,null,null,null,null,null,null,null,null,null,null,null,null,null,null,null,null,null,null,"~"]
["SA36",2021,"DC16",786,null,null,null,null,null,null,null,null,null,null,null,null,null,null,null,null,null,null,"~"]
["SA36",2021,"DC16",787,null,null,null,null,null,null,null,null,null,null,null,null,null,null,null,null,null,null,"~"]
["SA36",2021,"DC16",788,null,null,null,null,null,null,null,null,null,null,null,null,null,null,null,null,null,null,"~"]
["SA36",2021,"DC16",789,null,null,null,null,null,null,null,null,null,null,null,null,null,null,null,null,null,null,"~"]
["SA36",2021,"DC16",790,null,null,null,null,null,null,null,null,null,null,null,null,null,null,null,null,null,null,"~"]
["SA36",2021,"DC16",791,null,null,null,null,null,null,null,null,null,null,null,null,null,null,null,null,null,null,"~"]
["SA36",{"$f":"+MTREF","v":2021},{"$f":"LEFT(muni,(FIND(\" \",muni,1)-1))","v":"DC16"},792,null,null,null,null,null,null,null,null,null,null,null,null,null,null,null,null,null,null,"~"]
["SA36",2021,"DC16",793,null,null,null,null,null,null,null,null,null,null,null,null,null,null,null,null,null,null,"~"]
["SA36",2021,"DC16",794,null,null,null,null,null,null,null,null,null,null,null,null,null,null,null,null,null,null,"~"]
["SA36",2021,"DC16",795,null,null,null,null,null,null,null,null,null,null,null,null,null,null,null,null,null,null,"~"]
["SA36",2021,"DC16",796,null,null,null,null,null,null,null,null,null,null,null,null,null,null,null,null,null,null,"~"]
["SA36",2021,"DC16",797,null,null,null,null,null,null,null,null,null,null,null,null,null,null,null,null,null,null,"~"]
["SA36",2021,"DC16",798,null,null,null,null,null,null,null,null,null,null,null,null,null,null,null,null,null,null,"~"]
["SA36",2021,"DC16",799,null,null,null,null,null,null,null,null,null,null,null,null,null,null,null,null,null,null,"~"]
["SA36",2021,"DC16",800,null,null,null,null,null,null,null,null,null,null,null,null,null,null,null,null,null,null,"~"]
["SA36",2021,"DC16",801,null,null,null,null,null,null,null,null,null,null,null,null,null,null,null,null,null,null,"~"]
["SA36",2021,"DC16",802,null,null,null,null,null,null,null,null,null,null,null,null,null,null,null,null,null,null,"~"]
["SA36",2021,"DC16",803,null,null,null,null,null,null,null,null,null,null,null,null,null,null,null,null,null,null,"~"]
["SA36",2021,"DC16",804,null,null,null,null,null,null,null,null,null,null,null,null,null,null,null,null,null,null,"~"]
["SA36",2021,"DC16",805,null,null,null,null,null,null,null,null,null,null,null,null,null,null,null,null,null,null,"~"]
["SA36",2021,"DC16",806,null,null,null,null,null,null,null,null,null,null,null,null,null,null,null,null,null,null,"~"]
["SA36",2021,"DC16",807,null,null,null,null,null,null,null,null,null,null,null,null,null,null,null,null,null,null,"~"]
["SA36",2021,"DC16",808,null,null,null,null,null,null,null,null,null,null,null,null,null,null,null,null,null,null,"~"]
["SA36",2021,"DC16",809,null,null,null,null,null,null,null,null,null,null,null,null,null,null,null,null,null,null,"~"]
["SA36",2021,"DC16",810,null,null,null,null,null,null,null,null,null,null,null,null,null,null,null,null,null,null,"~"]
["SA36",2021,"DC16",811,null,null,null,null,null,null,null,null,null,null,null,null,null,null,null,null,null,null,"~"]
["SA36",2021,"DC16",812,null,null,null,null,null,null,null,null,null,null,null,null,null,null,null,null,null,null,"~"]
["SA36",2021,"DC16",813,null,null,null,null,null,null,null,null,null,null,null,null,null,null,null,null,null,null,"~"]
["SA36",2021,"DC16",814,null,null,null,null,null,null,null,null,null,null,null,null,null,null,null,null,null,null,"~"]
["SA36",2021,"DC16",815,null,null,null,null,null,null,null,null,null,null,null,null,null,null,null,null,null,null,"~"]
["SA36",2021,"DC16",816,null,null,null,null,null,null,null,null,null,null,null,null,null,null,null,null,null,null,"~"]
["SA36",2021,"DC16",817,null,null,null,null,null,null,null,null,null,null,null,null,null,null,null,null,null,null,"~"]
["SA36",2021,"DC16",818,null,null,null,null,null,null,null,null,null,null,null,null,null,null,null,null,null,null,"~"]
["SA36",2021,"DC16",819,null,null,null,null,null,null,null,null,null,null,null,null,null,null,null,null,null,null,"~"]
["SA36",2021,"DC16",820,null,null,null,null,null,null,null,null,null,null,null,null,null,null,null,null,null,null,"~"]
["SA36",2021,"DC16",821,null,null,null,null,null,null,null,null,null,null,null,null,null,null,null,null,null,null,"~"]
["SA36",2021,"DC16",822,null,null,null,null,null,null,null,null,null,null,null,null,null,null,null,null,null,null,"~"]
["SA36",2021,"DC16",823,null,null,null,null,null,null,null,null,null,null,null,null,null,null,null,null,null,null,"~"]
["SA36",2021,"DC16",824,null,null,null,null,null,null,null,null,null,null,null,null,null,null,null,null,null,null,"~"]
["SA36",2021,"DC16",825,null,null,null,null,null,null,null,null,null,null,null,null,null,null,null,null,null,null,"~"]
["SA36",2021,"DC16",826,null,null,null,null,null,null,null,null,null,null,null,null,null,null,null,null,null,null,"~"]
["SA36",2021,"DC16",827,null,null,null,null,null,null,null,null,null,null,null,null,null,null,null,null,null,null,"~"]
["SA36",2021,"DC16",828,null,null,null,null,null,null,null,null,null,null,null,null,null,null,null,null,null,null,"~"]
["SA36",2021,"DC16",829,null,null,null,null,null,null,null,null,null,null,null,null,null,null,null,null,null,null,"~"]
["SA36",2021,"DC16",830,null,null,null,null,null,null,null,null,null,null,null,null,null,null,null,null,null,null,"~"]
["SA36",2021,"DC16",831,null,null,null,null,null,null,null,null,null,null,null,null,null,null,null,null,null,null,"~"]
["SA36",2021,"DC16",832,null,null,null,null,null,null,null,null,null,null,null,null,null,null,null,null,null,null,"~"]
["SA36",2021,"DC16",833,null,null,null,null,null,null,null,null,null,null,null,null,null,null,null,null,null,null,"~"]
["SA36",2021,"DC16",834,null,null,null,null,null,null,null,null,null,null,null,null,null,null,null,null,null,null,"~"]
["SA36",2021,"DC16",835,null,null,null,null,null,null,null,null,null,null,null,null,null,null,null,null,null,null,"~"]
["SA36",2021,"DC16",836,null,null,null,null,null,null,null,null,null,null,null,null,null,null,null,null,null,null,"~"]
["SA36",2021,"DC16",837,null,null,null,null,null,null,null,null,null,null,null,null,null,null,null,null,null,null,"~"]
["SA36",2021,"DC16",838,null,null,null,null,null,null,null,null,null,null,null,null,null,null,null,null,null,null,"~"]
["SA36",2021,"DC16",839,null,null,null,null,null,null,null,null,null,null,null,null,null,null,null,null,null,null,"~"]
["SA36",2021,"DC16",840,null,null,null,null,null,null,null,null,null,null,null,null,null,null,null,null,null,null,"~"]
["SA36",2021,"DC16",841,null,null,null,null,null,null,null,null,null,null,null,null,null,null,null,null,null,null,"~"]
["SA36",2021,"DC16",842,null,null,null,null,null,null,null,null,null,null,null,null,null,null,null,null,null,null,"~"]
["SA36",2021,"DC16",843,null,null,null,null,null,null,null,null,null,null,null,null,null,null,null,null,null,null,"~"]
["SA36",2021,"DC16",844,null,null,null,null,null,null,null,null,null,null,null,null,null,null,null,null,null,null,"~"]
["SA36",2021,"DC16",845,null,null,null,null,null,null,null,null,null,null,null,null,null,null,null,null,null,null,"~"]
["SA36",2021,"DC16",846,null,null,null,null,null,null,null,null,null,null,null,null,null,null,null,null,null,null,"~"]
["SA36",2021,"DC16",847,null,null,null,null,null,null,null,null,null,null,null,null,null,null,null,null,null,null,"~"]
["SA36",2021,"DC16",848,null,null,null,null,null,null,null,null,null,null,null,null,null,null,null,null,null,null,"~"]
["SA36",2021,"DC16",849,null,null,null,null,null,null,null,null,null,null,null,null,null,null,null,null,null,null,"~"]
["SA36",2021,"DC16",850,null,null,null,null,null,null,null,null,null,null,null,null,null,null,null,null,null,null,"~"]
["SA36",2021,"DC16",851,null,null,null,null,null,null,null,null,null,null,null,null,null,null,null,null,null,null,"~"]
["SA36",2021,"DC16",852,null,null,null,null,null,null,null,null,null,null,null,null,null,null,null,null,null,null,"~"]
["SA36",2021,"DC16",853,null,null,null,null,null,null,null,null,null,null,null,null,null,null,null,null,null,null,"~"]
["SA36",2021,"DC16",854,null,null,null,null,null,null,null,null,null,null,null,null,null,null,null,null,null,null,"~"]
["SA36",2021,"DC16",855,null,null,null,null,null,null,null,null,null,null,null,null,null,null,null,null,null,null,"~"]
["SA36",{"$f":"+MTREF","v":2021},{"$f":"LEFT(muni,(FIND(\" \",muni,1)-1))","v":"DC16"},856,null,null,null,null,null,null,null,null,null,null,null,null,null,null,null,null,null,null,"~"]
["SA36",2021,"DC16",857,null,null,null,null,null,null,null,null,null,null,null,null,null,null,null,null,null,null,"~"]
["SA36",2021,"DC16",858,null,null,null,null,null,null,null,null,null,null,null,null,null,null,null,null,null,null,"~"]
["SA36",2021,"DC16",859,null,null,null,null,null,null,null,null,null,null,null,null,null,null,null,null,null,null,"~"]
["SA36",2021,"DC16",860,null,null,null,null,null,null,null,null,null,null,null,null,null,null,null,null,null,null,"~"]
["SA36",2021,"DC16",861,null,null,null,null,null,null,null,null,null,null,null,null,null,null,null,null,null,null,"~"]
["SA36",2021,"DC16",862,null,null,null,null,null,null,null,null,null,null,null,null,null,null,null,null,null,null,"~"]
["SA36",2021,"DC16",863,null,null,null,null,null,null,null,null,null,null,null,null,null,null,null,null,null,null,"~"]
["SA36",2021,"DC16",864,null,null,null,null,null,null,null,null,null,null,null,null,null,null,null,null,null,null,"~"]
["SA36",2021,"DC16",865,null,null,null,null,null,null,null,null,null,null,null,null,null,null,null,null,null,null,"~"]
["SA36",2021,"DC16",866,null,null,null,null,null,null,null,null,null,null,null,null,null,null,null,null,null,null,"~"]
["SA36",2021,"DC16",867,null,null,null,null,null,null,null,null,null,null,null,null,null,null,null,null,null,null,"~"]
["SA36",2021,"DC16",868,null,null,null,null,null,null,null,null,null,null,null,null,null,null,null,null,null,null,"~"]
["SA36",2021,"DC16",869,null,null,null,null,null,null,null,null,null,null,null,null,null,null,null,null,null,null,"~"]
["SA36",2021,"DC16",870,null,null,null,null,null,null,null,null,null,null,null,null,null,null,null,null,null,null,"~"]
["SA36",2021,"DC16",871,null,null,null,null,null,null,null,null,null,null,null,null,null,null,null,null,null,null,"~"]
["SA36",2021,"DC16",872,null,null,null,null,null,null,null,null,null,null,null,null,null,null,null,null,null,null,"~"]
["SA36",2021,"DC16",873,null,null,null,null,null,null,null,null,null,null,null,null,null,null,null,null,null,null,"~"]
["SA36",2021,"DC16",874,null,null,null,null,null,null,null,null,null,null,null,null,null,null,null,null,null,null,"~"]
["SA36",2021,"DC16",875,null,null,null,null,null,null,null,null,null,null,null,null,null,null,null,null,null,null,"~"]
["SA36",2021,"DC16",876,null,null,null,null,null,null,null,null,null,null,null,null,null,null,null,null,null,null,"~"]
["SA36",2021,"DC16",877,null,null,null,null,null,null,null,null,null,null,null,null,null,null,null,null,null,null,"~"]
["SA36",2021,"DC16",878,null,null,null,null,null,null,null,null,null,null,null,null,null,null,null,null,null,null,"~"]
["SA36",2021,"DC16",879,null,null,null,null,null,null,null,null,null,null,null,null,null,null,null,null,null,null,"~"]
["SA36",2021,"DC16",880,null,null,null,null,null,null,null,null,null,null,null,null,null,null,null,null,null,null,"~"]
["SA36",2021,"DC16",881,null,null,null,null,null,null,null,null,null,null,null,null,null,null,null,null,null,null,"~"]
["SA36",2021,"DC16",882,null,null,null,null,null,null,null,null,null,null,null,null,null,null,null,null,null,null,"~"]
["SA36",2021,"DC16",883,null,null,null,null,null,null,null,null,null,null,null,null,null,null,null,null,null,null,"~"]
["SA36",2021,"DC16",884,null,null,null,null,null,null,null,null,null,null,null,null,null,null,null,null,null,null,"~"]
["SA36",2021,"DC16",885,null,null,null,null,null,null,null,null,null,null,null,null,null,null,null,null,null,null,"~"]
["SA36",2021,"DC16",886,null,null,null,null,null,null,null,null,null,null,null,null,null,null,null,null,null,null,"~"]
["SA36",2021,"DC16",887,null,null,null,null,null,null,null,null,null,null,null,null,null,null,null,null,null,null,"~"]
["SA36",2021,"DC16",888,null,null,null,null,null,null,null,null,null,null,null,null,null,null,null,null,null,null,"~"]
["SA36",2021,"DC16",889,null,null,null,null,null,null,null,null,null,null,null,null,null,null,null,null,null,null,"~"]
["SA36",2021,"DC16",890,null,null,null,null,null,null,null,null,null,null,null,null,null,null,null,null,null,null,"~"]
["SA36",2021,"DC16",891,null,null,null,null,null,null,null,null,null,null,null,null,null,null,null,null,null,null,"~"]
["SA36",2021,"DC16",892,null,null,null,null,null,null,null,null,null,null,null,null,null,null,null,null,null,null,"~"]
["SA36",2021,"DC16",893,null,null,null,null,null,null,null,null,null,null,null,null,null,null,null,null,null,null,"~"]
["SA36",2021,"DC16",894,null,null,null,null,null,null,null,null,null,null,null,null,null,null,null,null,null,null,"~"]
["SA36",2021,"DC16",895,null,null,null,null,null,null,null,null,null,null,null,null,null,null,null,null,null,null,"~"]
["SA36",2021,"DC16",896,null,null,null,null,null,null,null,null,null,null,null,null,null,null,null,null,null,null,"~"]
["SA36",2021,"DC16",897,null,null,null,null,null,null,null,null,null,null,null,null,null,null,null,null,null,null,"~"]
["SA36",2021,"DC16",898,null,null,null,null,null,null,null,null,null,null,null,null,null,null,null,null,null,null,"~"]
["SA36",2021,"DC16",899,null,null,null,null,null,null,null,null,null,null,null,null,null,null,null,null,null,null,"~"]
["SA36",2021,"DC16",900,null,null,null,null,null,null,null,null,null,null,null,null,null,null,null,null,null,null,"~"]
["SA36",2021,"DC16",901,null,null,null,null,null,null,null,null,null,null,null,null,null,null,null,null,null,null,"~"]
["SA36",2021,"DC16",902,null,null,null,null,null,null,null,null,null,null,null,null,null,null,null,null,null,null,"~"]
["SA36",2021,"DC16",903,null,null,null,null,null,null,null,null,null,null,null,null,null,null,null,null,null,null,"~"]
["SA36",2021,"DC16",904,null,null,null,null,null,null,null,null,null,null,null,null,null,null,null,null,null,null,"~"]
["SA36",2021,"DC16",905,null,null,null,null,null,null,null,null,null,null,null,null,null,null,null,null,null,null,"~"]
["SA36",2021,"DC16",906,null,null,null,null,null,null,null,null,null,null,null,null,null,null,null,null,null,null,"~"]
["SA36",2021,"DC16",907,null,null,null,null,null,null,null,null,null,null,null,null,null,null,null,null,null,null,"~"]
["SA36",2021,"DC16",908,null,null,null,null,null,null,null,null,null,null,null,null,null,null,null,null,null,null,"~"]
["SA36",2021,"DC16",909,null,null,null,null,null,null,null,null,null,null,null,null,null,null,null,null,null,null,"~"]
["SA36",2021,"DC16",910,null,null,null,null,null,null,null,null,null,null,null,null,null,null,null,null,null,null,"~"]
["SA36",2021,"DC16",911,null,null,null,null,null,null,null,null,null,null,null,null,null,null,null,null,null,null,"~"]
["SA36",2021,"DC16",912,null,null,null,null,null,null,null,null,null,null,null,null,null,null,null,null,null,null,"~"]
["SA36",2021,"DC16",913,null,null,null,null,null,null,null,null,null,null,null,null,null,null,null,null,null,null,"~"]
["SA36",2021,"DC16",914,null,null,null,null,null,null,null,null,null,null,null,null,null,null,null,null,null,null,"~"]
["SA36",2021,"DC16",915,null,null,null,null,null,null,null,null,null,null,null,null,null,null,null,null,null,null,"~"]
["SA36",2021,"DC16",916,null,null,null,null,null,null,null,null,null,null,null,null,null,null,null,null,null,null,"~"]
["SA36",2021,"DC16",917,null,null,null,null,null,null,null,null,null,null,null,null,null,null,null,null,null,null,"~"]
["SA36",2021,"DC16",918,null,null,null,null,null,null,null,null,null,null,null,null,null,null,null,null,null,null,"~"]
["SA36",2021,"DC16",919,null,null,null,null,null,null,null,null,null,null,null,null,null,null,null,null,null,null,"~"]
["SA36",{"$f":"+MTREF","v":2021},{"$f":"LEFT(muni,(FIND(\" \",muni,1)-1))","v":"DC16"},920,null,null,null,null,null,null,null,null,null,null,null,null,null,null,null,null,null,null,"~"]
["SA36",2021,"DC16",921,null,null,null,null,null,null,null,null,null,null,null,null,null,null,null,null,null,null,"~"]
["SA36",2021,"DC16",922,null,null,null,null,null,null,null,null,null,null,null,null,null,null,null,null,null,null,"~"]
["SA36",2021,"DC16",923,null,null,null,null,null,null,null,null,null,null,null,null,null,null,null,null,null,null,"~"]
["SA36",2021,"DC16",924,null,null,null,null,null,null,null,null,null,null,null,null,null,null,null,null,null,null,"~"]
["SA36",2021,"DC16",925,null,null,null,null,null,null,null,null,null,null,null,null,null,null,null,null,null,null,"~"]
["SA36",2021,"DC16",926,null,null,null,null,null,null,null,null,null,null,null,null,null,null,null,null,null,null,"~"]
["SA36",2021,"DC16",927,null,null,null,null,null,null,null,null,null,null,null,null,null,null,null,null,null,null,"~"]
["SA36",2021,"DC16",928,null,null,null,null,null,null,null,null,null,null,null,null,null,null,null,null,null,null,"~"]
["SA36",2021,"DC16",929,null,null,null,null,null,null,null,null,null,null,null,null,null,null,null,null,null,null,"~"]
["SA36",2021,"DC16",930,null,null,null,null,null,null,null,null,null,null,null,null,null,null,null,null,null,null,"~"]
["SA36",2021,"DC16",931,null,null,null,null,null,null,null,null,null,null,null,null,null,null,null,null,null,null,"~"]
["SA36",2021,"DC16",932,null,null,null,null,null,null,null,null,null,null,null,null,null,null,null,null,null,null,"~"]
["SA36",2021,"DC16",933,null,null,null,null,null,null,null,null,null,null,null,null,null,null,null,null,null,null,"~"]
["SA36",2021,"DC16",934,null,null,null,null,null,null,null,null,null,null,null,null,null,null,null,null,null,null,"~"]
["SA36",2021,"DC16",935,null,null,null,null,null,null,null,null,null,null,null,null,null,null,null,null,null,null,"~"]
["SA36",2021,"DC16",936,null,null,null,null,null,null,null,null,null,null,null,null,null,null,null,null,null,null,"~"]
["SA36",2021,"DC16",937,null,null,null,null,null,null,null,null,null,null,null,null,null,null,null,null,null,null,"~"]
["SA36",2021,"DC16",938,null,null,null,null,null,null,null,null,null,null,null,null,null,null,null,null,null,null,"~"]
["SA36",2021,"DC16",939,null,null,null,null,null,null,null,null,null,null,null,null,null,null,null,null,null,null,"~"]
["SA36",2021,"DC16",940,null,null,null,null,null,null,null,null,null,null,null,null,null,null,null,null,null,null,"~"]
["SA36",2021,"DC16",941,null,null,null,null,null,null,null,null,null,null,null,null,null,null,null,null,null,null,"~"]
["SA36",2021,"DC16",942,null,null,null,null,null,null,null,null,null,null,null,null,null,null,null,null,null,null,"~"]
["SA36",2021,"DC16",943,null,null,null,null,null,null,null,null,null,null,null,null,null,null,null,null,null,null,"~"]
["SA36",2021,"DC16",944,null,null,null,null,null,null,null,null,null,null,null,null,null,null,null,null,null,null,"~"]
["SA36",2021,"DC16",945,null,null,null,null,null,null,null,null,null,null,null,null,null,null,null,null,null,null,"~"]
["SA36",2021,"DC16",946,null,null,null,null,null,null,null,null,null,null,null,null,null,null,null,null,null,null,"~"]
["SA36",2021,"DC16",947,null,null,null,null,null,null,null,null,null,null,null,null,null,null,null,null,null,null,"~"]
["SA36",2021,"DC16",948,null,null,null,null,null,null,null,null,null,null,null,null,null,null,null,null,null,null,"~"]
["SA36",2021,"DC16",949,null,null,null,null,null,null,null,null,null,null,null,null,null,null,null,null,null,null,"~"]
["SA36",2021,"DC16",950,null,null,null,null,null,null,null,null,null,null,null,null,null,null,null,null,null,null,"~"]
["SA36",2021,"DC16",951,null,null,null,null,null,null,null,null,null,null,null,null,null,null,null,null,null,null,"~"]
["SA36",2021,"DC16",952,null,null,null,null,null,null,null,null,null,null,null,null,null,null,null,null,null,null,"~"]
["SA36",2021,"DC16",953,null,null,null,null,null,null,null,null,null,null,null,null,null,null,null,null,null,null,"~"]
["SA36",2021,"DC16",954,null,null,null,null,null,null,null,null,null,null,null,null,null,null,null,null,null,null,"~"]
["SA36",2021,"DC16",955,null,null,null,null,null,null,null,null,null,null,null,null,null,null,null,null,null,null,"~"]
["SA36",2021,"DC16",956,null,null,null,null,null,null,null,null,null,null,null,null,null,null,null,null,null,null,"~"]
["SA36",2021,"DC16",957,null,null,null,null,null,null,null,null,null,null,null,null,null,null,null,null,null,null,"~"]
["SA36",2021,"DC16",958,null,null,null,null,null,null,null,null,null,null,null,null,null,null,null,null,null,null,"~"]
["SA36",2021,"DC16",959,null,null,null,null,null,null,null,null,null,null,null,null,null,null,null,null,null,null,"~"]
["SA36",2021,"DC16",960,null,null,null,null,null,null,null,null,null,null,null,null,null,null,null,null,null,null,"~"]
["SA36",2021,"DC16",961,null,null,null,null,null,null,null,null,null,null,null,null,null,null,null,null,null,null,"~"]
["SA36",2021,"DC16",962,null,null,null,null,null,null,null,null,null,null,null,null,null,null,null,null,null,null,"~"]
["SA36",2021,"DC16",963,null,null,null,null,null,null,null,null,null,null,null,null,null,null,null,null,null,null,"~"]
["SA36",2021,"DC16",964,null,null,null,null,null,null,null,null,null,null,null,null,null,null,null,null,null,null,"~"]
["SA36",2021,"DC16",965,null,null,null,null,null,null,null,null,null,null,null,null,null,null,null,null,null,null,"~"]
["SA36",2021,"DC16",966,null,null,null,null,null,null,null,null,null,null,null,null,null,null,null,null,null,null,"~"]
["SA36",2021,"DC16",967,null,null,null,null,null,null,null,null,null,null,null,null,null,null,null,null,null,null,"~"]
["SA36",2021,"DC16",968,null,null,null,null,null,null,null,null,null,null,null,null,null,null,null,null,null,null,"~"]
["SA36",2021,"DC16",969,null,null,null,null,null,null,null,null,null,null,null,null,null,null,null,null,null,null,"~"]
["SA36",2021,"DC16",970,null,null,null,null,null,null,null,null,null,null,null,null,null,null,null,null,null,null,"~"]
["SA36",2021,"DC16",971,null,null,null,null,null,null,null,null,null,null,null,null,null,null,null,null,null,null,"~"]
["SA36",2021,"DC16",972,null,null,null,null,null,null,null,null,null,null,null,null,null,null,null,null,null,null,"~"]
["SA36",2021,"DC16",973,null,null,null,null,null,null,null,null,null,null,null,null,null,null,null,null,null,null,"~"]
["SA36",2021,"DC16",974,null,null,null,null,null,null,null,null,null,null,null,null,null,null,null,null,null,null,"~"]
["SA36",2021,"DC16",975,null,null,null,null,null,null,null,null,null,null,null,null,null,null,null,null,null,null,"~"]
["SA36",2021,"DC16",976,null,null,null,null,null,null,null,null,null,null,null,null,null,null,null,null,null,null,"~"]
["SA36",2021,"DC16",977,null,null,null,null,null,null,null,null,null,null,null,null,null,null,null,null,null,null,"~"]
["SA36",2021,"DC16",978,null,null,null,null,null,null,null,null,null,null,null,null,null,null,null,null,null,null,"~"]
["SA36",2021,"DC16",979,null,null,null,null,null,null,null,null,null,null,null,null,null,null,null,null,null,null,"~"]
["SA36",2021,"DC16",980,null,null,null,null,null,null,null,null,null,null,null,null,null,null,null,null,null,null,"~"]
["SA36",2021,"DC16",981,null,null,null,null,null,null,null,null,null,null,null,null,null,null,null,null,null,null,"~"]
["SA36",2021,"DC16",982,null,null,null,null,null,null,null,null,null,null,null,null,null,null,null,null,null,null,"~"]
["SA36",2021,"DC16",983,null,null,null,null,null,null,null,null,null,null,null,null,null,null,null,null,null,null,"~"]
["SA36",{"$f":"+MTREF","v":2021},{"$f":"LEFT(muni,(FIND(\" \",muni,1)-1))","v":"DC16"},984,null,null,null,null,null,null,null,null,null,null,null,null,null,null,null,null,null,null,"~"]
["SA36",2021,"DC16",985,null,null,null,null,null,null,null,null,null,null,null,null,null,null,null,null,null,null,"~"]
["SA36",2021,"DC16",986,null,null,null,null,null,null,null,null,null,null,null,null,null,null,null,null,null,null,"~"]
["SA36",2021,"DC16",987,null,null,null,null,null,null,null,null,null,null,null,null,null,null,null,null,null,null,"~"]
["SA36",2021,"DC16",988,null,null,null,null,null,null,null,null,null,null,null,null,null,null,null,null,null,null,"~"]
["SA36",2021,"DC16",989,null,null,null,null,null,null,null,null,null,null,null,null,null,null,null,null,null,null,"~"]
["SA36",2021,"DC16",990,null,null,null,null,null,null,null,null,null,null,null,null,null,null,null,null,null,null,"~"]
["SA36",2021,"DC16",991,null,null,null,null,null,null,null,null,null,null,null,null,null,null,null,null,null,null,"~"]
["SA36",2021,"DC16",992,null,null,null,null,null,null,null,null,null,null,null,null,null,null,null,null,null,null,"~"]
["SA36",2021,"DC16",993,null,null,null,null,null,null,null,null,null,null,null,null,null,null,null,null,null,null,"~"]
["SA36",2021,"DC16",994,null,null,null,null,null,null,null,null,null,null,null,null,null,null,null,null,null,null,"~"]
["SA36",2021,"DC16",995,null,null,null,null,null,null,null,null,null,null,null,null,null,null,null,null,null,null,"~"]
["SA36",2021,"DC16",996,null,null,null,null,null,null,null,null,null,null,null,null,null,null,null,null,null,null,"~"]
["SA36",2021,"DC16",997,null,null,null,null,null,null,null,null,null,null,null,null,null,null,null,null,null,null,"~"]
["SA36",2021,"DC16",998,null,null,null,null,null,null,null,null,null,null,null,null,null,null,null,null,null,null,"~"]
["SA36",2021,"DC16",999,null,null,null,null,null,null,null,null,null,null,null,null,null,null,null,null,null,null,"~"]
["SA36",2021,"DC16",1000,null,null,null,null,null,null,null,null,null,null,null,null,null,null,null,null,null,null,"~"]
["SA37",2021,"DC16",1,null,null,null,null,null,null,null,null,null,null,null,null,null,null,null,null,null,null,"~"]
["SA37",2021,"DC16",2,null,null,null,null,null,null,null,null,null,null,null,null,null,null,null,null,null,null,"~"]
["SA37",2021,"DC16",3,null,null,null,null,null,null,null,null,null,null,null,null,null,null,null,null,null,null,"~"]
["SA37",2021,"DC16",4,null,null,null,null,null,null,null,null,null,null,null,null,null,null,null,null,null,null,"~"]
["SA37",2021,"DC16",5,null,null,null,null,null,null,null,null,null,null,null,null,null,null,null,null,null,null,"~"]
["SA37",2021,"DC16",6,null,null,null,null,null,null,null,null,null,null,null,null,null,null,null,null,null,null,"~"]
["SA37",2021,"DC16",7,null,null,null,null,null,null,null,null,null,null,null,null,null,null,null,null,null,null,"~"]
["SA37",2021,"DC16",8,null,null,null,null,null,null,null,null,null,null,null,null,null,null,null,null,null,null,"~"]
["SA37",2021,"DC16",9,null,null,null,null,null,null,null,null,null,null,null,null,null,null,null,null,null,null,"~"]
["SA37",2021,"DC16",10,null,null,null,null,null,null,null,null,null,null,null,null,null,null,null,null,null,null,"~"]
["SA37",2021,"DC16",11,null,null,null,null,null,null,null,null,null,null,null,null,null,null,null,null,null,null,"~"]
["SA37",2021,"DC16",12,null,null,null,null,null,null,null,null,null,null,null,null,null,null,null,null,null,null,"~"]
["SA37",2021,"DC16",13,null,null,null,null,null,null,null,null,null,null,null,null,null,null,null,null,null,null,"~"]
["SA37",2021,"DC16",14,null,null,null,null,null,null,null,null,null,null,null,null,null,null,null,null,null,null,"~"]
["SA37",2021,"DC16",15,null,null,null,null,null,null,null,null,null,null,null,null,null,null,null,null,null,null,"~"]
["SA37",2021,"DC16",16,null,null,null,null,null,null,null,null,null,null,null,null,null,null,null,null,null,null,"~"]
["SA37",2021,"DC16",17,null,null,null,null,null,null,null,null,null,null,null,null,null,null,null,null,null,null,"~"]
["SA37",2021,"DC16",18,null,null,null,null,null,null,null,null,null,null,null,null,null,null,null,null,null,null,"~"]
["SA37",2021,"DC16",19,null,null,null,null,null,null,null,null,null,null,null,null,null,null,null,null,null,null,"~"]
["SA37",2021,"DC16",20,null,null,null,null,null,null,null,null,null,null,null,null,null,null,null,null,null,null,"~"]
["SA37",2021,"DC16",21,null,null,null,null,null,null,null,null,null,null,null,null,null,null,null,null,null,null,"~"]
["SA37",2021,"DC16",22,null,null,null,null,null,null,null,null,null,null,null,null,null,null,null,null,null,null,"~"]
["SA37",2021,"DC16",23,null,null,null,null,null,null,null,null,null,null,null,null,null,null,null,null,null,null,"~"]
["SA37",2021,"DC16",24,null,null,null,null,null,null,null,null,null,null,null,null,null,null,null,null,null,null,"~"]
["SA37",2021,"DC16",25,null,null,null,null,null,null,null,null,null,null,null,null,null,null,null,null,null,null,"~"]
["SA37",2021,"DC16",26,null,null,null,null,null,null,null,null,null,null,null,null,null,null,null,null,null,null,"~"]
["SA37",2021,"DC16",27,null,null,null,null,null,null,null,null,null,null,null,null,null,null,null,null,null,null,"~"]
["SA37",2021,"DC16",28,null,null,null,null,null,null,null,null,null,null,null,null,null,null,null,null,null,null,"~"]
["SA37",2021,"DC16",29,null,null,null,null,null,null,null,null,null,null,null,null,null,null,null,null,null,null,"~"]
["SA37",2021,"DC16",30,null,null,null,null,null,null,null,null,null,null,null,null,null,null,null,null,null,null,"~"]
["SA37",2021,"DC16",31,null,null,null,null,null,null,null,null,null,null,null,null,null,null,null,null,null,null,"~"]
["SA37",2021,"DC16",32,null,null,null,null,null,null,null,null,null,null,null,null,null,null,null,null,null,null,"~"]
["SA37",2021,"DC16",33,null,null,null,null,null,null,null,null,null,null,null,null,null,null,null,null,null,null,"~"]
["SA37",2021,"DC16",34,null,null,null,null,null,null,null,null,null,null,null,null,null,null,null,null,null,null,"~"]
["SA37",2021,"DC16",35,null,null,null,null,null,null,null,null,null,null,null,null,null,null,null,null,null,null,"~"]
["SA37",2021,"DC16",36,null,null,null,null,null,null,null,null,null,null,null,null,null,null,null,null,null,null,"~"]
["SA37",2021,"DC16",37,null,null,null,null,null,null,null,null,null,null,null,null,null,null,null,null,null,null,"~"]
["SA37",2021,"DC16",38,null,null,null,null,null,null,null,null,null,null,null,null,null,null,null,null,null,null,"~"]
["SA37",2021,"DC16",39,null,null,null,null,null,null,null,null,null,null,null,null,null,null,null,null,null,null,"~"]
["SA37",2021,"DC16",40,null,null,null,null,null,null,null,null,null,null,null,null,null,null,null,null,null,null,"~"]
["SA37",2021,"DC16",41,null,null,null,null,null,null,null,null,null,null,null,null,null,null,null,null,null,null,"~"]
["SA37",2021,"DC16",42,null,null,null,null,null,null,null,null,null,null,null,null,null,null,null,null,null,null,"~"]
["SA37",2021,"DC16",43,null,null,null,null,null,null,null,null,null,null,null,null,null,null,null,null,null,null,"~"]
["SA37",2021,"DC16",44,null,null,null,null,null,null,null,null,null,null,null,null,null,null,null,null,null,null,"~"]
["SA37",2021,"DC16",45,null,null,null,null,null,null,null,null,null,null,null,null,null,null,null,null,null,null,"~"]
["SA37",2021,"DC16",46,null,null,null,null,null,null,null,null,null,null,null,null,null,null,null,null,null,null,"~"]
["SA37",2021,"DC16",47,null,null,null,null,null,null,null,null,null,null,null,null,null,null,null,null,null,null,"~"]
["SA37",{"$f":"+MTREF","v":2021},{"$f":"LEFT(muni,(FIND(\" \",muni,1)-1))","v":"DC16"},48,null,null,null,null,null,null,null,null,null,null,null,null,null,null,null,null,null,null,"~"]
["SA37",2021,"DC16",49,null,null,null,null,null,null,null,null,null,null,null,null,null,null,null,null,null,null,"~"]
["SA37",2021,"DC16",50,null,null,null,null,null,null,null,null,null,null,null,null,null,null,null,null,null,null,"~"]
["SA37",2021,"DC16",51,null,null,null,null,null,null,null,null,null,null,null,null,null,null,null,null,null,null,"~"]
["SA37",2021,"DC16",52,null,null,null,null,null,null,null,null,null,null,null,null,null,null,null,null,null,null,"~"]
["SA37",2021,"DC16",53,null,null,null,null,null,null,null,null,null,null,null,null,null,null,null,null,null,null,"~"]
["SA37",2021,"DC16",54,null,null,null,null,null,null,null,null,null,null,null,null,null,null,null,null,null,null,"~"]
["SA37",2021,"DC16",55,null,null,null,null,null,null,null,null,null,null,null,null,null,null,null,null,null,null,"~"]
["SA37",2021,"DC16",56,null,null,null,null,null,null,null,null,null,null,null,null,null,null,null,null,null,null,"~"]
["SA37",2021,"DC16",57,null,null,null,null,null,null,null,null,null,null,null,null,null,null,null,null,null,null,"~"]
["SA37",2021,"DC16",58,null,null,null,null,null,null,null,null,null,null,null,null,null,null,null,null,null,null,"~"]
["SA37",2021,"DC16",59,null,null,null,null,null,null,null,null,null,null,null,null,null,null,null,null,null,null,"~"]
["SA37",2021,"DC16",60,null,null,null,null,null,null,null,null,null,null,null,null,null,null,null,null,null,null,"~"]
["SA37",2021,"DC16",61,null,null,null,null,null,null,null,null,null,null,null,null,null,null,null,null,null,null,"~"]
["SA37",2021,"DC16",62,null,null,null,null,null,null,null,null,null,null,null,null,null,null,null,null,null,null,"~"]
["SA37",2021,"DC16",63,null,null,null,null,null,null,null,null,null,null,null,null,null,null,null,null,null,null,"~"]
["SA37",2021,"DC16",64,null,null,null,null,null,null,null,null,null,null,null,null,null,null,null,null,null,null,"~"]
["SA37",2021,"DC16",65,null,null,null,null,null,null,null,null,null,null,null,null,null,null,null,null,null,null,"~"]
["SA37",2021,"DC16",66,null,null,null,null,null,null,null,null,null,null,null,null,null,null,null,null,null,null,"~"]
["SA37",2021,"DC16",67,null,null,null,null,null,null,null,null,null,null,null,null,null,null,null,null,null,null,"~"]
["SA37",2021,"DC16",68,null,null,null,null,null,null,null,null,null,null,null,null,null,null,null,null,null,null,"~"]
["SA37",2021,"DC16",69,null,null,null,null,null,null,null,null,null,null,null,null,null,null,null,null,null,null,"~"]
["SA37",2021,"DC16",70,null,null,null,null,null,null,null,null,null,null,null,null,null,null,null,null,null,null,"~"]
["SA37",2021,"DC16",71,null,null,null,null,null,null,null,null,null,null,null,null,null,null,null,null,null,null,"~"]
["SA37",2021,"DC16",72,null,null,null,null,null,null,null,null,null,null,null,null,null,null,null,null,null,null,"~"]
["SA37",2021,"DC16",73,null,null,null,null,null,null,null,null,null,null,null,null,null,null,null,null,null,null,"~"]
["SA37",2021,"DC16",74,null,null,null,null,null,null,null,null,null,null,null,null,null,null,null,null,null,null,"~"]
["SA37",2021,"DC16",75,null,null,null,null,null,null,null,null,null,null,null,null,null,null,null,null,null,null,"~"]
["SA37",2021,"DC16",76,null,null,null,null,null,null,null,null,null,null,null,null,null,null,null,null,null,null,"~"]
["SA37",2021,"DC16",77,null,null,null,null,null,null,null,null,null,null,null,null,null,null,null,null,null,null,"~"]
["SA37",2021,"DC16",78,null,null,null,null,null,null,null,null,null,null,null,null,null,null,null,null,null,null,"~"]
["SA37",2021,"DC16",79,null,null,null,null,null,null,null,null,null,null,null,null,null,null,null,null,null,null,"~"]
["SA37",2021,"DC16",80,null,null,null,null,null,null,null,null,null,null,null,null,null,null,null,null,null,null,"~"]
["SA37",2021,"DC16",81,null,null,null,null,null,null,null,null,null,null,null,null,null,null,null,null,null,null,"~"]
["SA37",2021,"DC16",82,null,null,null,null,null,null,null,null,null,null,null,null,null,null,null,null,null,null,"~"]
["SA37",2021,"DC16",83,null,null,null,null,null,null,null,null,null,null,null,null,null,null,null,null,null,null,"~"]
["SA37",2021,"DC16",84,null,null,null,null,null,null,null,null,null,null,null,null,null,null,null,null,null,null,"~"]
["SA37",2021,"DC16",85,null,null,null,null,null,null,null,null,null,null,null,null,null,null,null,null,null,null,"~"]
["SA37",2021,"DC16",86,null,null,null,null,null,null,null,null,null,null,null,null,null,null,null,null,null,null,"~"]
["SA37",2021,"DC16",87,null,null,null,null,null,null,null,null,null,null,null,null,null,null,null,null,null,null,"~"]
["SA37",2021,"DC16",88,null,null,null,null,null,null,null,null,null,null,null,null,null,null,null,null,null,null,"~"]
["SA37",2021,"DC16",89,null,null,null,null,null,null,null,null,null,null,null,null,null,null,null,null,null,null,"~"]
["SA37",2021,"DC16",90,null,null,null,null,null,null,null,null,null,null,null,null,null,null,null,null,null,null,"~"]
["SA37",2021,"DC16",91,null,null,null,null,null,null,null,null,null,null,null,null,null,null,null,null,null,null,"~"]
["SA37",2021,"DC16",92,null,null,null,null,null,null,null,null,null,null,null,null,null,null,null,null,null,null,"~"]
["SA37",2021,"DC16",93,null,null,null,null,null,null,null,null,null,null,null,null,null,null,null,null,null,null,"~"]
["SA37",2021,"DC16",94,null,null,null,null,null,null,null,null,null,null,null,null,null,null,null,null,null,null,"~"]
["SA37",2021,"DC16",95,null,null,null,null,null,null,null,null,null,null,null,null,null,null,null,null,null,null,"~"]
["SA37",2021,"DC16",96,null,null,null,null,null,null,null,null,null,null,null,null,null,null,null,null,null,null,"~"]
["SA37",2021,"DC16",97,null,null,null,null,null,null,null,null,null,null,null,null,null,null,null,null,null,null,"~"]
["SA37",2021,"DC16",98,null,null,null,null,null,null,null,null,null,null,null,null,null,null,null,null,null,null,"~"]
["SA37",2021,"DC16",99,null,null,null,null,null,null,null,null,null,null,null,null,null,null,null,null,null,null,"~"]
["SA37",2021,"DC16",100,null,null,null,null,null,null,null,null,null,null,null,null,null,null,null,null,null,null,"~"]
["SA37",2021,"DC16",101,null,null,null,null,null,null,null,null,null,null,null,null,null,null,null,null,null,null,"~"]
["SA37",2021,"DC16",102,null,null,null,null,null,null,null,null,null,null,null,null,null,null,null,null,null,null,"~"]
["SA37",2021,"DC16",103,null,null,null,null,null,null,null,null,null,null,null,null,null,null,null,null,null,null,"~"]
["SA37",2021,"DC16",104,null,null,null,null,null,null,null,null,null,null,null,null,null,null,null,null,null,null,"~"]
["SA37",2021,"DC16",105,null,null,null,null,null,null,null,null,null,null,null,null,null,null,null,null,null,null,"~"]
["SA37",2021,"DC16",106,null,null,null,null,null,null,null,null,null,null,null,null,null,null,null,null,null,null,"~"]
["SA37",2021,"DC16",107,null,null,null,null,null,null,null,null,null,null,null,null,null,null,null,null,null,null,"~"]
["SA37",2021,"DC16",108,null,null,null,null,null,null,null,null,null,null,null,null,null,null,null,null,null,null,"~"]
["SA37",2021,"DC16",109,null,null,null,null,null,null,null,null,null,null,null,null,null,null,null,null,null,null,"~"]
["SA37",2021,"DC16",110,null,null,null,null,null,null,null,null,null,null,null,null,null,null,null,null,null,null,"~"]
["SA37",2021,"DC16",111,null,null,null,null,null,null,null,null,null,null,null,null,null,null,null,null,null,null,"~"]
["SA37",{"$f":"+MTREF","v":2021},{"$f":"LEFT(muni,(FIND(\" \",muni,1)-1))","v":"DC16"},112,null,null,null,null,null,null,null,null,null,null,null,null,null,null,null,null,null,null,"~"]
["SA37",2021,"DC16",113,null,null,null,null,null,null,null,null,null,null,null,null,null,null,null,null,null,null,"~"]
["SA37",2021,"DC16",114,null,null,null,null,null,null,null,null,null,null,null,null,null,null,null,null,null,null,"~"]
["SA37",2021,"DC16",115,null,null,null,null,null,null,null,null,null,null,null,null,null,null,null,null,null,null,"~"]
["SA37",2021,"DC16",116,null,null,null,null,null,null,null,null,null,null,null,null,null,null,null,null,null,null,"~"]
["SA37",2021,"DC16",117,null,null,null,null,null,null,null,null,null,null,null,null,null,null,null,null,null,null,"~"]
["SA37",2021,"DC16",118,null,null,null,null,null,null,null,null,null,null,null,null,null,null,null,null,null,null,"~"]
["SA37",2021,"DC16",119,null,null,null,null,null,null,null,null,null,null,null,null,null,null,null,null,null,null,"~"]
["SA37",2021,"DC16",120,null,null,null,null,null,null,null,null,null,null,null,null,null,null,null,null,null,null,"~"]
["SA37",2021,"DC16",121,null,null,null,null,null,null,null,null,null,null,null,null,null,null,null,null,null,null,"~"]
["SA37",2021,"DC16",122,null,null,null,null,null,null,null,null,null,null,null,null,null,null,null,null,null,null,"~"]
["SA37",2021,"DC16",123,null,null,null,null,null,null,null,null,null,null,null,null,null,null,null,null,null,null,"~"]
["SA37",2021,"DC16",124,null,null,null,null,null,null,null,null,null,null,null,null,null,null,null,null,null,null,"~"]
["SA37",2021,"DC16",125,null,null,null,null,null,null,null,null,null,null,null,null,null,null,null,null,null,null,"~"]
["SA37",2021,"DC16",126,null,null,null,null,null,null,null,null,null,null,null,null,null,null,null,null,null,null,"~"]
["SA37",2021,"DC16",127,null,null,null,null,null,null,null,null,null,null,null,null,null,null,null,null,null,null,"~"]
["SA37",2021,"DC16",128,null,null,null,null,null,null,null,null,null,null,null,null,null,null,null,null,null,null,"~"]
["SA37",2021,"DC16",129,null,null,null,null,null,null,null,null,null,null,null,null,null,null,null,null,null,null,"~"]
["SA37",2021,"DC16",130,null,null,null,null,null,null,null,null,null,null,null,null,null,null,null,null,null,null,"~"]
["SA37",2021,"DC16",131,null,null,null,null,null,null,null,null,null,null,null,null,null,null,null,null,null,null,"~"]
["SA37",2021,"DC16",132,null,null,null,null,null,null,null,null,null,null,null,null,null,null,null,null,null,null,"~"]
["SA37",2021,"DC16",133,null,null,null,null,null,null,null,null,null,null,null,null,null,null,null,null,null,null,"~"]
["SA37",2021,"DC16",134,null,null,null,null,null,null,null,null,null,null,null,null,null,null,null,null,null,null,"~"]
["SA37",2021,"DC16",135,null,null,null,null,null,null,null,null,null,null,null,null,null,null,null,null,null,null,"~"]
["SA37",2021,"DC16",136,null,null,null,null,null,null,null,null,null,null,null,null,null,null,null,null,null,null,"~"]
["SA37",2021,"DC16",137,null,null,null,null,null,null,null,null,null,null,null,null,null,null,null,null,null,null,"~"]
["SA37",2021,"DC16",138,null,null,null,null,null,null,null,null,null,null,null,null,null,null,null,null,null,null,"~"]
["SA37",2021,"DC16",139,null,null,null,null,null,null,null,null,null,null,null,null,null,null,null,null,null,null,"~"]
["SA37",2021,"DC16",140,null,null,null,null,null,null,null,null,null,null,null,null,null,null,null,null,null,null,"~"]
["SA37",2021,"DC16",141,null,null,null,null,null,null,null,null,null,null,null,null,null,null,null,null,null,null,"~"]
["SA37",2021,"DC16",142,null,null,null,null,null,null,null,null,null,null,null,null,null,null,null,null,null,null,"~"]
["SA37",2021,"DC16",143,null,null,null,null,null,null,null,null,null,null,null,null,null,null,null,null,null,null,"~"]
["SA37",2021,"DC16",144,null,null,null,null,null,null,null,null,null,null,null,null,null,null,null,null,null,null,"~"]
["SA37",2021,"DC16",145,null,null,null,null,null,null,null,null,null,null,null,null,null,null,null,null,null,null,"~"]
["SA37",2021,"DC16",146,null,null,null,null,null,null,null,null,null,null,null,null,null,null,null,null,null,null,"~"]
["SA37",2021,"DC16",147,null,null,null,null,null,null,null,null,null,null,null,null,null,null,null,null,null,null,"~"]
["SA37",2021,"DC16",148,null,null,null,null,null,null,null,null,null,null,null,null,null,null,null,null,null,null,"~"]
["SA37",2021,"DC16",149,null,null,null,null,null,null,null,null,null,null,null,null,null,null,null,null,null,null,"~"]
["SA37",2021,"DC16",150,null,null,null,null,null,null,null,null,null,null,null,null,null,null,null,null,null,null,"~"]
["SA37",2021,"DC16",151,null,null,null,null,null,null,null,null,null,null,null,null,null,null,null,null,null,null,"~"]
["SA37",2021,"DC16",152,null,null,null,null,null,null,null,null,null,null,null,null,null,null,null,null,null,null,"~"]
["SA37",2021,"DC16",153,null,null,null,null,null,null,null,null,null,null,null,null,null,null,null,null,null,null,"~"]
["SA37",2021,"DC16",154,null,null,null,null,null,null,null,null,null,null,null,null,null,null,null,null,null,null,"~"]
["SA37",2021,"DC16",155,null,null,null,null,null,null,null,null,null,null,null,null,null,null,null,null,null,null,"~"]
["SA37",2021,"DC16",156,null,null,null,null,null,null,null,null,null,null,null,null,null,null,null,null,null,null,"~"]
["SA37",2021,"DC16",157,null,null,null,null,null,null,null,null,null,null,null,null,null,null,null,null,null,null,"~"]
["SA37",2021,"DC16",158,null,null,null,null,null,null,null,null,null,null,null,null,null,null,null,null,null,null,"~"]
["SA37",2021,"DC16",159,null,null,null,null,null,null,null,null,null,null,null,null,null,null,null,null,null,null,"~"]
["SA37",2021,"DC16",160,null,null,null,null,null,null,null,null,null,null,null,null,null,null,null,null,null,null,"~"]
["SA37",2021,"DC16",161,null,null,null,null,null,null,null,null,null,null,null,null,null,null,null,null,null,null,"~"]
["SA37",2021,"DC16",162,null,null,null,null,null,null,null,null,null,null,null,null,null,null,null,null,null,null,"~"]
["SA37",2021,"DC16",163,null,null,null,null,null,null,null,null,null,null,null,null,null,null,null,null,null,null,"~"]
["SA37",2021,"DC16",164,null,null,null,null,null,null,null,null,null,null,null,null,null,null,null,null,null,null,"~"]
["SA37",2021,"DC16",165,null,null,null,null,null,null,null,null,null,null,null,null,null,null,null,null,null,null,"~"]
["SA37",2021,"DC16",166,null,null,null,null,null,null,null,null,null,null,null,null,null,null,null,null,null,null,"~"]
["SA37",2021,"DC16",167,null,null,null,null,null,null,null,null,null,null,null,null,null,null,null,null,null,null,"~"]
["SA37",2021,"DC16",168,null,null,null,null,null,null,null,null,null,null,null,null,null,null,null,null,null,null,"~"]
["SA37",2021,"DC16",169,null,null,null,null,null,null,null,null,null,null,null,null,null,null,null,null,null,null,"~"]
["SA37",2021,"DC16",170,null,null,null,null,null,null,null,null,null,null,null,null,null,null,null,null,null,null,"~"]
["SA37",2021,"DC16",171,null,null,null,null,null,null,null,null,null,null,null,null,null,null,null,null,null,null,"~"]
["SA37",2021,"DC16",172,null,null,null,null,null,null,null,null,null,null,null,null,null,null,null,null,null,null,"~"]
["SA37",2021,"DC16",173,null,null,null,null,null,null,null,null,null,null,null,null,null,null,null,null,null,null,"~"]
["SA37",2021,"DC16",174,null,null,null,null,null,null,null,null,null,null,null,null,null,null,null,null,null,null,"~"]
["SA37",2021,"DC16",175,null,null,null,null,null,null,null,null,null,null,null,null,null,null,null,null,null,null,"~"]
["SA37",{"$f":"+MTREF","v":2021},{"$f":"LEFT(muni,(FIND(\" \",muni,1)-1))","v":"DC16"},176,null,null,null,null,null,null,null,null,null,null,null,null,null,null,null,null,null,null,"~"]
["SA37",2021,"DC16",177,null,null,null,null,null,null,null,null,null,null,null,null,null,null,null,null,null,null,"~"]
["SA37",2021,"DC16",178,null,null,null,null,null,null,null,null,null,null,null,null,null,null,null,null,null,null,"~"]
["SA37",2021,"DC16",179,null,null,null,null,null,null,null,null,null,null,null,null,null,null,null,null,null,null,"~"]
["SA37",2021,"DC16",180,null,null,null,null,null,null,null,null,null,null,null,null,null,null,null,null,null,null,"~"]
["SA37",2021,"DC16",181,null,null,null,null,null,null,null,null,null,null,null,null,null,null,null,null,null,null,"~"]
["SA37",2021,"DC16",182,null,null,null,null,null,null,null,null,null,null,null,null,null,null,null,null,null,null,"~"]
["SA37",2021,"DC16",183,null,null,null,null,null,null,null,null,null,null,null,null,null,null,null,null,null,null,"~"]
["SA37",2021,"DC16",184,null,null,null,null,null,null,null,null,null,null,null,null,null,null,null,null,null,null,"~"]
["SA37",2021,"DC16",185,null,null,null,null,null,null,null,null,null,null,null,null,null,null,null,null,null,null,"~"]
["SA37",2021,"DC16",186,null,null,null,null,null,null,null,null,null,null,null,null,null,null,null,null,null,null,"~"]
["SA37",2021,"DC16",187,null,null,null,null,null,null,null,null,null,null,null,null,null,null,null,null,null,null,"~"]
["SA37",2021,"DC16",188,null,null,null,null,null,null,null,null,null,null,null,null,null,null,null,null,null,null,"~"]
["SA37",2021,"DC16",189,null,null,null,null,null,null,null,null,null,null,null,null,null,null,null,null,null,null,"~"]
["SA37",2021,"DC16",190,null,null,null,null,null,null,null,null,null,null,null,null,null,null,null,null,null,null,"~"]
["SA37",2021,"DC16",191,null,null,null,null,null,null,null,null,null,null,null,null,null,null,null,null,null,null,"~"]
["SA37",2021,"DC16",192,null,null,null,null,null,null,null,null,null,null,null,null,null,null,null,null,null,null,"~"]
["SA37",2021,"DC16",193,null,null,null,null,null,null,null,null,null,null,null,null,null,null,null,null,null,null,"~"]
["SA37",2021,"DC16",194,null,null,null,null,null,null,null,null,null,null,null,null,null,null,null,null,null,null,"~"]
["SA37",2021,"DC16",195,null,null,null,null,null,null,null,null,null,null,null,null,null,null,null,null,null,null,"~"]
["SA37",2021,"DC16",196,null,null,null,null,null,null,null,null,null,null,null,null,null,null,null,null,null,null,"~"]
["SA37",2021,"DC16",197,null,null,null,null,null,null,null,null,null,null,null,null,null,null,null,null,null,null,"~"]
["SA37",2021,"DC16",198,null,null,null,null,null,null,null,null,null,null,null,null,null,null,null,null,null,null,"~"]
["SA37",2021,"DC16",199,null,null,null,null,null,null,null,null,null,null,null,null,null,null,null,null,null,null,"~"]
["SA37",2021,"DC16",200,null,null,null,null,null,null,null,null,null,null,null,null,null,null,null,null,null,null,"~"]
["SA37",2021,"DC16",201,null,null,null,null,null,null,null,null,null,null,null,null,null,null,null,null,null,null,"~"]
["SA37",2021,"DC16",202,null,null,null,null,null,null,null,null,null,null,null,null,null,null,null,null,null,null,"~"]
["SA37",2021,"DC16",203,null,null,null,null,null,null,null,null,null,null,null,null,null,null,null,null,null,null,"~"]
["SA37",2021,"DC16",204,null,null,null,null,null,null,null,null,null,null,null,null,null,null,null,null,null,null,"~"]
["SA37",2021,"DC16",205,null,null,null,null,null,null,null,null,null,null,null,null,null,null,null,null,null,null,"~"]
["SA37",2021,"DC16",206,null,null,null,null,null,null,null,null,null,null,null,null,null,null,null,null,null,null,"~"]
["SA37",2021,"DC16",207,null,null,null,null,null,null,null,null,null,null,null,null,null,null,null,null,null,null,"~"]
["SA37",2021,"DC16",208,null,null,null,null,null,null,null,null,null,null,null,null,null,null,null,null,null,null,"~"]
["SA37",2021,"DC16",209,null,null,null,null,null,null,null,null,null,null,null,null,null,null,null,null,null,null,"~"]
["SA37",2021,"DC16",210,null,null,null,null,null,null,null,null,null,null,null,null,null,null,null,null,null,null,"~"]
["SA37",2021,"DC16",211,null,null,null,null,null,null,null,null,null,null,null,null,null,null,null,null,null,null,"~"]
["SA37",2021,"DC16",212,null,null,null,null,null,null,null,null,null,null,null,null,null,null,null,null,null,null,"~"]
["SA37",2021,"DC16",213,null,null,null,null,null,null,null,null,null,null,null,null,null,null,null,null,null,null,"~"]
["SA37",2021,"DC16",214,null,null,null,null,null,null,null,null,null,null,null,null,null,null,null,null,null,null,"~"]
["SA37",2021,"DC16",215,null,null,null,null,null,null,null,null,null,null,null,null,null,null,null,null,null,null,"~"]
["SA37",2021,"DC16",216,null,null,null,null,null,null,null,null,null,null,null,null,null,null,null,null,null,null,"~"]
["SA37",2021,"DC16",217,null,null,null,null,null,null,null,null,null,null,null,null,null,null,null,null,null,null,"~"]
["SA37",2021,"DC16",218,null,null,null,null,null,null,null,null,null,null,null,null,null,null,null,null,null,null,"~"]
["SA37",2021,"DC16",219,null,null,null,null,null,null,null,null,null,null,null,null,null,null,null,null,null,null,"~"]
["SA37",2021,"DC16",220,null,null,null,null,null,null,null,null,null,null,null,null,null,null,null,null,null,null,"~"]
["SA37",2021,"DC16",221,null,null,null,null,null,null,null,null,null,null,null,null,null,null,null,null,null,null,"~"]
["SA37",2021,"DC16",222,null,null,null,null,null,null,null,null,null,null,null,null,null,null,null,null,null,null,"~"]
["SA37",2021,"DC16",223,null,null,null,null,null,null,null,null,null,null,null,null,null,null,null,null,null,null,"~"]
["SA37",2021,"DC16",224,null,null,null,null,null,null,null,null,null,null,null,null,null,null,null,null,null,null,"~"]
["SA37",2021,"DC16",225,null,null,null,null,null,null,null,null,null,null,null,null,null,null,null,null,null,null,"~"]
["SA37",2021,"DC16",226,null,null,null,null,null,null,null,null,null,null,null,null,null,null,null,null,null,null,"~"]
["SA37",2021,"DC16",227,null,null,null,null,null,null,null,null,null,null,null,null,null,null,null,null,null,null,"~"]
["SA37",2021,"DC16",228,null,null,null,null,null,null,null,null,null,null,null,null,null,null,null,null,null,null,"~"]
["SA37",2021,"DC16",229,null,null,null,null,null,null,null,null,null,null,null,null,null,null,null,null,null,null,"~"]
["SA37",2021,"DC16",230,null,null,null,null,null,null,null,null,null,null,null,null,null,null,null,null,null,null,"~"]
["SA37",2021,"DC16",231,null,null,null,null,null,null,null,null,null,null,null,null,null,null,null,null,null,null,"~"]
["SA37",2021,"DC16",232,null,null,null,null,null,null,null,null,null,null,null,null,null,null,null,null,null,null,"~"]
["SA37",2021,"DC16",233,null,null,null,null,null,null,null,null,null,null,null,null,null,null,null,null,null,null,"~"]
["SA37",2021,"DC16",234,null,null,null,null,null,null,null,null,null,null,null,null,null,null,null,null,null,null,"~"]
["SA37",2021,"DC16",235,null,null,null,null,null,null,null,null,null,null,null,null,null,null,null,null,null,null,"~"]
["SA37",2021,"DC16",236,null,null,null,null,null,null,null,null,null,null,null,null,null,null,null,null,null,null,"~"]
["SA37",2021,"DC16",237,null,null,null,null,null,null,null,null,null,null,null,null,null,null,null,null,null,null,"~"]
["SA37",2021,"DC16",238,null,null,null,null,null,null,null,null,null,null,null,null,null,null,null,null,null,null,"~"]
["SA37",2021,"DC16",239,null,null,null,null,null,null,null,null,null,null,null,null,null,null,null,null,null,null,"~"]
["SA37",{"$f":"+MTREF","v":2021},{"$f":"LEFT(muni,(FIND(\" \",muni,1)-1))","v":"DC16"},240,null,null,null,null,null,null,null,null,null,null,null,null,null,null,null,null,null,null,"~"]
["SA37",2021,"DC16",241,null,null,null,null,null,null,null,null,null,null,null,null,null,null,null,null,null,null,"~"]
["SA37",2021,"DC16",242,null,null,null,null,null,null,null,null,null,null,null,null,null,null,null,null,null,null,"~"]
["SA37",2021,"DC16",243,null,null,null,null,null,null,null,null,null,null,null,null,null,null,null,null,null,null,"~"]
["SA37",2021,"DC16",244,null,null,null,null,null,null,null,null,null,null,null,null,null,null,null,null,null,null,"~"]
["SA37",2021,"DC16",245,null,null,null,null,null,null,null,null,null,null,null,null,null,null,null,null,null,null,"~"]
["SA37",2021,"DC16",246,null,null,null,null,null,null,null,null,null,null,null,null,null,null,null,null,null,null,"~"]
["SA37",2021,"DC16",247,null,null,null,null,null,null,null,null,null,null,null,null,null,null,null,null,null,null,"~"]
["SA37",2021,"DC16",248,null,null,null,null,null,null,null,null,null,null,null,null,null,null,null,null,null,null,"~"]
["SA37",2021,"DC16",249,null,null,null,null,null,null,null,null,null,null,null,null,null,null,null,null,null,null,"~"]
["SA37",2021,"DC16",250,null,null,null,null,null,null,null,null,null,null,null,null,null,null,null,null,null,null,"~"]
["SA37",2021,"DC16",251,null,null,null,null,null,null,null,null,null,null,null,null,null,null,null,null,null,null,"~"]
["SA37",2021,"DC16",252,null,null,null,null,null,null,null,null,null,null,null,null,null,null,null,null,null,null,"~"]
["SA37",2021,"DC16",253,null,null,null,null,null,null,null,null,null,null,null,null,null,null,null,null,null,null,"~"]
["SA37",2021,"DC16",254,null,null,null,null,null,null,null,null,null,null,null,null,null,null,null,null,null,null,"~"]
["SA37",2021,"DC16",255,null,null,null,null,null,null,null,null,null,null,null,null,null,null,null,null,null,null,"~"]
["SA37",2021,"DC16",256,null,null,null,null,null,null,null,null,null,null,null,null,null,null,null,null,null,null,"~"]
["SA37",2021,"DC16",257,null,null,null,null,null,null,null,null,null,null,null,null,null,null,null,null,null,null,"~"]
["SA37",2021,"DC16",258,null,null,null,null,null,null,null,null,null,null,null,null,null,null,null,null,null,null,"~"]
["SA37",2021,"DC16",259,null,null,null,null,null,null,null,null,null,null,null,null,null,null,null,null,null,null,"~"]
["SA37",2021,"DC16",260,null,null,null,null,null,null,null,null,null,null,null,null,null,null,null,null,null,null,"~"]
["SA37",2021,"DC16",261,null,null,null,null,null,null,null,null,null,null,null,null,null,null,null,null,null,null,"~"]
["SA37",2021,"DC16",262,null,null,null,null,null,null,null,null,null,null,null,null,null,null,null,null,null,null,"~"]
["SA37",2021,"DC16",263,null,null,null,null,null,null,null,null,null,null,null,null,null,null,null,null,null,null,"~"]
["SA37",2021,"DC16",264,null,null,null,null,null,null,null,null,null,null,null,null,null,null,null,null,null,null,"~"]
["SA37",2021,"DC16",265,null,null,null,null,null,null,null,null,null,null,null,null,null,null,null,null,null,null,"~"]
["SA37",2021,"DC16",266,null,null,null,null,null,null,null,null,null,null,null,null,null,null,null,null,null,null,"~"]
["SA37",2021,"DC16",267,null,null,null,null,null,null,null,null,null,null,null,null,null,null,null,null,null,null,"~"]
["SA37",2021,"DC16",268,null,null,null,null,null,null,null,null,null,null,null,null,null,null,null,null,null,null,"~"]
["SA37",2021,"DC16",269,null,null,null,null,null,null,null,null,null,null,null,null,null,null,null,null,null,null,"~"]
["SA37",2021,"DC16",270,null,null,null,null,null,null,null,null,null,null,null,null,null,null,null,null,null,null,"~"]
["SA37",2021,"DC16",271,null,null,null,null,null,null,null,null,null,null,null,null,null,null,null,null,null,null,"~"]
["SA37",2021,"DC16",272,null,null,null,null,null,null,null,null,null,null,null,null,null,null,null,null,null,null,"~"]
["SA37",2021,"DC16",273,null,null,null,null,null,null,null,null,null,null,null,null,null,null,null,null,null,null,"~"]
["SA37",2021,"DC16",274,null,null,null,null,null,null,null,null,null,null,null,null,null,null,null,null,null,null,"~"]
["SA37",2021,"DC16",275,null,null,null,null,null,null,null,null,null,null,null,null,null,null,null,null,null,null,"~"]
["SA37",2021,"DC16",276,null,null,null,null,null,null,null,null,null,null,null,null,null,null,null,null,null,null,"~"]
["SA37",2021,"DC16",277,null,null,null,null,null,null,null,null,null,null,null,null,null,null,null,null,null,null,"~"]
["SA37",2021,"DC16",278,null,null,null,null,null,null,null,null,null,null,null,null,null,null,null,null,null,null,"~"]
["SA37",2021,"DC16",279,null,null,null,null,null,null,null,null,null,null,null,null,null,null,null,null,null,null,"~"]
["SA37",2021,"DC16",280,null,null,null,null,null,null,null,null,null,null,null,null,null,null,null,null,null,null,"~"]
["SA37",2021,"DC16",281,null,null,null,null,null,null,null,null,null,null,null,null,null,null,null,null,null,null,"~"]
["SA37",2021,"DC16",282,null,null,null,null,null,null,null,null,null,null,null,null,null,null,null,null,null,null,"~"]
["SA37",2021,"DC16",283,null,null,null,null,null,null,null,null,null,null,null,null,null,null,null,null,null,null,"~"]
["SA37",2021,"DC16",284,null,null,null,null,null,null,null,null,null,null,null,null,null,null,null,null,null,null,"~"]
["SA37",2021,"DC16",285,null,null,null,null,null,null,null,null,null,null,null,null,null,null,null,null,null,null,"~"]
["SA37",2021,"DC16",286,null,null,null,null,null,null,null,null,null,null,null,null,null,null,null,null,null,null,"~"]
["SA37",2021,"DC16",287,null,null,null,null,null,null,null,null,null,null,null,null,null,null,null,null,null,null,"~"]
["SA37",2021,"DC16",288,null,null,null,null,null,null,null,null,null,null,null,null,null,null,null,null,null,null,"~"]
["SA37",2021,"DC16",289,null,null,null,null,null,null,null,null,null,null,null,null,null,null,null,null,null,null,"~"]
["SA37",2021,"DC16",290,null,null,null,null,null,null,null,null,null,null,null,null,null,null,null,null,null,null,"~"]
["SA37",2021,"DC16",291,null,null,null,null,null,null,null,null,null,null,null,null,null,null,null,null,null,null,"~"]
["SA37",2021,"DC16",292,null,null,null,null,null,null,null,null,null,null,null,null,null,null,null,null,null,null,"~"]
["SA37",2021,"DC16",293,null,null,null,null,null,null,null,null,null,null,null,null,null,null,null,null,null,null,"~"]
["SA37",2021,"DC16",294,null,null,null,null,null,null,null,null,null,null,null,null,null,null,null,null,null,null,"~"]
["SA37",2021,"DC16",295,null,null,null,null,null,null,null,null,null,null,null,null,null,null,null,null,null,null,"~"]
["SA37",2021,"DC16",296,null,null,null,null,null,null,null,null,null,null,null,null,null,null,null,null,null,null,"~"]
["SA37",2021,"DC16",297,null,null,null,null,null,null,null,null,null,null,null,null,null,null,null,null,null,null,"~"]
["SA37",2021,"DC16",298,null,null,null,null,null,null,null,null,null,null,null,null,null,null,null,null,null,null,"~"]
["SA37",2021,"DC16",299,null,null,null,null,null,null,null,null,null,null,null,null,null,null,null,null,null,null,"~"]
["SA37",2021,"DC16",300,null,null,null,null,null,null,null,null,null,null,null,null,null,null,null,null,null,null,"~"]
["SA37",2021,"DC16",301,null,null,null,null,null,null,null,null,null,null,null,null,null,null,null,null,null,null,"~"]
["SA37",2021,"DC16",302,null,null,null,null,null,null,null,null,null,null,null,null,null,null,null,null,null,null,"~"]
["SA37",2021,"DC16",303,null,null,null,null,null,null,null,null,null,null,null,null,null,null,null,null,null,null,"~"]
["SA37",{"$f":"+MTREF","v":2021},{"$f":"LEFT(muni,(FIND(\" \",muni,1)-1))","v":"DC16"},304,null,null,null,null,null,null,null,null,null,null,null,null,null,null,null,null,null,null,"~"]
["SA37",2021,"DC16",305,null,null,null,null,null,null,null,null,null,null,null,null,null,null,null,null,null,null,"~"]
["SA37",2021,"DC16",306,null,null,null,null,null,null,null,null,null,null,null,null,null,null,null,null,null,null,"~"]
["SA37",2021,"DC16",307,null,null,null,null,null,null,null,null,null,null,null,null,null,null,null,null,null,null,"~"]
["SA37",2021,"DC16",308,null,null,null,null,null,null,null,null,null,null,null,null,null,null,null,null,null,null,"~"]
["SA37",2021,"DC16",309,null,null,null,null,null,null,null,null,null,null,null,null,null,null,null,null,null,null,"~"]
["SA37",2021,"DC16",310,null,null,null,null,null,null,null,null,null,null,null,null,null,null,null,null,null,null,"~"]
["SA37",2021,"DC16",311,null,null,null,null,null,null,null,null,null,null,null,null,null,null,null,null,null,null,"~"]
["SA37",2021,"DC16",312,null,null,null,null,null,null,null,null,null,null,null,null,null,null,null,null,null,null,"~"]
["SA37",2021,"DC16",313,null,null,null,null,null,null,null,null,null,null,null,null,null,null,null,null,null,null,"~"]
["SA37",2021,"DC16",314,null,null,null,null,null,null,null,null,null,null,null,null,null,null,null,null,null,null,"~"]
["SA37",2021,"DC16",315,null,null,null,null,null,null,null,null,null,null,null,null,null,null,null,null,null,null,"~"]
["SA37",2021,"DC16",316,null,null,null,null,null,null,null,null,null,null,null,null,null,null,null,null,null,null,"~"]
["SA37",2021,"DC16",317,null,null,null,null,null,null,null,null,null,null,null,null,null,null,null,null,null,null,"~"]
["SA37",2021,"DC16",318,null,null,null,null,null,null,null,null,null,null,null,null,null,null,null,null,null,null,"~"]
["SA37",2021,"DC16",319,null,null,null,null,null,null,null,null,null,null,null,null,null,null,null,null,null,null,"~"]
["SA37",2021,"DC16",320,null,null,null,null,null,null,null,null,null,null,null,null,null,null,null,null,null,null,"~"]
["SA37",2021,"DC16",321,null,null,null,null,null,null,null,null,null,null,null,null,null,null,null,null,null,null,"~"]
["SA37",2021,"DC16",322,null,null,null,null,null,null,null,null,null,null,null,null,null,null,null,null,null,null,"~"]
["SA37",2021,"DC16",323,null,null,null,null,null,null,null,null,null,null,null,null,null,null,null,null,null,null,"~"]
["SA37",2021,"DC16",324,null,null,null,null,null,null,null,null,null,null,null,null,null,null,null,null,null,null,"~"]
["SA37",2021,"DC16",325,null,null,null,null,null,null,null,null,null,null,null,null,null,null,null,null,null,null,"~"]
["SA37",2021,"DC16",326,null,null,null,null,null,null,null,null,null,null,null,null,null,null,null,null,null,null,"~"]
["SA37",2021,"DC16",327,null,null,null,null,null,null,null,null,null,null,null,null,null,null,null,null,null,null,"~"]
["SA37",2021,"DC16",328,null,null,null,null,null,null,null,null,null,null,null,null,null,null,null,null,null,null,"~"]
["SA37",2021,"DC16",329,null,null,null,null,null,null,null,null,null,null,null,null,null,null,null,null,null,null,"~"]
["SA37",2021,"DC16",330,null,null,null,null,null,null,null,null,null,null,null,null,null,null,null,null,null,null,"~"]
["SA37",2021,"DC16",331,null,null,null,null,null,null,null,null,null,null,null,null,null,null,null,null,null,null,"~"]
["SA37",2021,"DC16",332,null,null,null,null,null,null,null,null,null,null,null,null,null,null,null,null,null,null,"~"]
["SA37",2021,"DC16",333,null,null,null,null,null,null,null,null,null,null,null,null,null,null,null,null,null,null,"~"]
["SA37",2021,"DC16",334,null,null,null,null,null,null,null,null,null,null,null,null,null,null,null,null,null,null,"~"]
["SA37",2021,"DC16",335,null,null,null,null,null,null,null,null,null,null,null,null,null,null,null,null,null,null,"~"]
["SA37",2021,"DC16",336,null,null,null,null,null,null,null,null,null,null,null,null,null,null,null,null,null,null,"~"]
["SA37",2021,"DC16",337,null,null,null,null,null,null,null,null,null,null,null,null,null,null,null,null,null,null,"~"]
["SA37",2021,"DC16",338,null,null,null,null,null,null,null,null,null,null,null,null,null,null,null,null,null,null,"~"]
["SA37",2021,"DC16",339,null,null,null,null,null,null,null,null,null,null,null,null,null,null,null,null,null,null,"~"]
["SA37",2021,"DC16",340,null,null,null,null,null,null,null,null,null,null,null,null,null,null,null,null,null,null,"~"]
["SA37",2021,"DC16",341,null,null,null,null,null,null,null,null,null,null,null,null,null,null,null,null,null,null,"~"]
["SA37",2021,"DC16",342,null,null,null,null,null,null,null,null,null,null,null,null,null,null,null,null,null,null,"~"]
["SA37",2021,"DC16",343,null,null,null,null,null,null,null,null,null,null,null,null,null,null,null,null,null,null,"~"]
["SA37",2021,"DC16",344,null,null,null,null,null,null,null,null,null,null,null,null,null,null,null,null,null,null,"~"]
["SA37",2021,"DC16",345,null,null,null,null,null,null,null,null,null,null,null,null,null,null,null,null,null,null,"~"]
["SA37",2021,"DC16",346,null,null,null,null,null,null,null,null,null,null,null,null,null,null,null,null,null,null,"~"]
["SA37",2021,"DC16",347,null,null,null,null,null,null,null,null,null,null,null,null,null,null,null,null,null,null,"~"]
["SA37",2021,"DC16",348,null,null,null,null,null,null,null,null,null,null,null,null,null,null,null,null,null,null,"~"]
["SA37",2021,"DC16",349,null,null,null,null,null,null,null,null,null,null,null,null,null,null,null,null,null,null,"~"]
["SA37",2021,"DC16",350,null,null,null,null,null,null,null,null,null,null,null,null,null,null,null,null,null,null,"~"]
["SA37",2021,"DC16",351,null,null,null,null,null,null,null,null,null,null,null,null,null,null,null,null,null,null,"~"]
["SA37",2021,"DC16",352,null,null,null,null,null,null,null,null,null,null,null,null,null,null,null,null,null,null,"~"]
["SA37",2021,"DC16",353,null,null,null,null,null,null,null,null,null,null,null,null,null,null,null,null,null,null,"~"]
["SA37",2021,"DC16",354,null,null,null,null,null,null,null,null,null,null,null,null,null,null,null,null,null,null,"~"]
["SA37",2021,"DC16",355,null,null,null,null,null,null,null,null,null,null,null,null,null,null,null,null,null,null,"~"]
["SA37",2021,"DC16",356,null,null,null,null,null,null,null,null,null,null,null,null,null,null,null,null,null,null,"~"]
["SA37",2021,"DC16",357,null,null,null,null,null,null,null,null,null,null,null,null,null,null,null,null,null,null,"~"]
["SA37",2021,"DC16",358,null,null,null,null,null,null,null,null,null,null,null,null,null,null,null,null,null,null,"~"]
["SA37",2021,"DC16",359,null,null,null,null,null,null,null,null,null,null,null,null,null,null,null,null,null,null,"~"]
["SA37",2021,"DC16",360,null,null,null,null,null,null,null,null,null,null,null,null,null,null,null,null,null,null,"~"]
["SA37",2021,"DC16",361,null,null,null,null,null,null,null,null,null,null,null,null,null,null,null,null,null,null,"~"]
["SA37",2021,"DC16",362,null,null,null,null,null,null,null,null,null,null,null,null,null,null,null,null,null,null,"~"]
["SA37",2021,"DC16",363,null,null,null,null,null,null,null,null,null,null,null,null,null,null,null,null,null,null,"~"]
["SA37",2021,"DC16",364,null,null,null,null,null,null,null,null,null,null,null,null,null,null,null,null,null,null,"~"]
["SA37",2021,"DC16",365,null,null,null,null,null,null,null,null,null,null,null,null,null,null,null,null,null,null,"~"]
["SA37",2021,"DC16",366,null,null,null,null,null,null,null,null,null,null,null,null,null,null,null,null,null,null,"~"]
["SA37",2021,"DC16",367,null,null,null,null,null,null,null,null,null,null,null,null,null,null,null,null,null,null,"~"]
["SA37",{"$f":"+MTREF","v":2021},{"$f":"LEFT(muni,(FIND(\" \",muni,1)-1))","v":"DC16"},368,null,null,null,null,null,null,null,null,null,null,null,null,null,null,null,null,null,null,"~"]
["SA37",2021,"DC16",369,null,null,null,null,null,null,null,null,null,null,null,null,null,null,null,null,null,null,"~"]
["SA37",2021,"DC16",370,null,null,null,null,null,null,null,null,null,null,null,null,null,null,null,null,null,null,"~"]
["SA37",2021,"DC16",371,null,null,null,null,null,null,null,null,null,null,null,null,null,null,null,null,null,null,"~"]
["SA37",2021,"DC16",372,null,null,null,null,null,null,null,null,null,null,null,null,null,null,null,null,null,null,"~"]
["SA37",2021,"DC16",373,null,null,null,null,null,null,null,null,null,null,null,null,null,null,null,null,null,null,"~"]
["SA37",2021,"DC16",374,null,null,null,null,null,null,null,null,null,null,null,null,null,null,null,null,null,null,"~"]
["SA37",2021,"DC16",375,null,null,null,null,null,null,null,null,null,null,null,null,null,null,null,null,null,null,"~"]
["SA37",2021,"DC16",376,null,null,null,null,null,null,null,null,null,null,null,null,null,null,null,null,null,null,"~"]
["SA37",2021,"DC16",377,null,null,null,null,null,null,null,null,null,null,null,null,null,null,null,null,null,null,"~"]
["SA37",2021,"DC16",378,null,null,null,null,null,null,null,null,null,null,null,null,null,null,null,null,null,null,"~"]
["SA37",2021,"DC16",379,null,null,null,null,null,null,null,null,null,null,null,null,null,null,null,null,null,null,"~"]
["SA37",2021,"DC16",380,null,null,null,null,null,null,null,null,null,null,null,null,null,null,null,null,null,null,"~"]
["SA37",2021,"DC16",381,null,null,null,null,null,null,null,null,null,null,null,null,null,null,null,null,null,null,"~"]
["SA37",2021,"DC16",382,null,null,null,null,null,null,null,null,null,null,null,null,null,null,null,null,null,null,"~"]
["SA37",2021,"DC16",383,null,null,null,null,null,null,null,null,null,null,null,null,null,null,null,null,null,null,"~"]
["SA37",2021,"DC16",384,null,null,null,null,null,null,null,null,null,null,null,null,null,null,null,null,null,null,"~"]
["SA37",2021,"DC16",385,null,null,null,null,null,null,null,null,null,null,null,null,null,null,null,null,null,null,"~"]
["SA37",2021,"DC16",386,null,null,null,null,null,null,null,null,null,null,null,null,null,null,null,null,null,null,"~"]
["SA37",2021,"DC16",387,null,null,null,null,null,null,null,null,null,null,null,null,null,null,null,null,null,null,"~"]
["SA37",2021,"DC16",388,null,null,null,null,null,null,null,null,null,null,null,null,null,null,null,null,null,null,"~"]
["SA37",2021,"DC16",389,null,null,null,null,null,null,null,null,null,null,null,null,null,null,null,null,null,null,"~"]
["SA37",2021,"DC16",390,null,null,null,null,null,null,null,null,null,null,null,null,null,null,null,null,null,null,"~"]
["SA37",2021,"DC16",391,null,null,null,null,null,null,null,null,null,null,null,null,null,null,null,null,null,null,"~"]
["SA37",2021,"DC16",392,null,null,null,null,null,null,null,null,null,null,null,null,null,null,null,null,null,null,"~"]
["SA37",2021,"DC16",393,null,null,null,null,null,null,null,null,null,null,null,null,null,null,null,null,null,null,"~"]
["SA37",2021,"DC16",394,null,null,null,null,null,null,null,null,null,null,null,null,null,null,null,null,null,null,"~"]
["SA37",2021,"DC16",395,null,null,null,null,null,null,null,null,null,null,null,null,null,null,null,null,null,null,"~"]
["SA37",2021,"DC16",396,null,null,null,null,null,null,null,null,null,null,null,null,null,null,null,null,null,null,"~"]
["SA37",2021,"DC16",397,null,null,null,null,null,null,null,null,null,null,null,null,null,null,null,null,null,null,"~"]
["SA37",2021,"DC16",398,null,null,null,null,null,null,null,null,null,null,null,null,null,null,null,null,null,null,"~"]
["SA37",2021,"DC16",399,null,null,null,null,null,null,null,null,null,null,null,null,null,null,null,null,null,null,"~"]
["SA37",2021,"DC16",400,null,null,null,null,null,null,null,null,null,null,null,null,null,null,null,null,null,null,"~"]
["SA37",2021,"DC16",401,null,null,null,null,null,null,null,null,null,null,null,null,null,null,null,null,null,null,"~"]
["SA37",2021,"DC16",402,null,null,null,null,null,null,null,null,null,null,null,null,null,null,null,null,null,null,"~"]
["SA37",2021,"DC16",403,null,null,null,null,null,null,null,null,null,null,null,null,null,null,null,null,null,null,"~"]
["SA37",2021,"DC16",404,null,null,null,null,null,null,null,null,null,null,null,null,null,null,null,null,null,null,"~"]
["SA37",2021,"DC16",405,null,null,null,null,null,null,null,null,null,null,null,null,null,null,null,null,null,null,"~"]
["SA37",2021,"DC16",406,null,null,null,null,null,null,null,null,null,null,null,null,null,null,null,null,null,null,"~"]
["SA37",2021,"DC16",407,null,null,null,null,null,null,null,null,null,null,null,null,null,null,null,null,null,null,"~"]
["SA37",2021,"DC16",408,null,null,null,null,null,null,null,null,null,null,null,null,null,null,null,null,null,null,"~"]
["SA37",2021,"DC16",409,null,null,null,null,null,null,null,null,null,null,null,null,null,null,null,null,null,null,"~"]
["SA37",2021,"DC16",410,null,null,null,null,null,null,null,null,null,null,null,null,null,null,null,null,null,null,"~"]
["SA37",2021,"DC16",411,null,null,null,null,null,null,null,null,null,null,null,null,null,null,null,null,null,null,"~"]
["SA37",2021,"DC16",412,null,null,null,null,null,null,null,null,null,null,null,null,null,null,null,null,null,null,"~"]
["SA37",2021,"DC16",413,null,null,null,null,null,null,null,null,null,null,null,null,null,null,null,null,null,null,"~"]
["SA37",2021,"DC16",414,null,null,null,null,null,null,null,null,null,null,null,null,null,null,null,null,null,null,"~"]
["SA37",2021,"DC16",415,null,null,null,null,null,null,null,null,null,null,null,null,null,null,null,null,null,null,"~"]
["SA37",2021,"DC16",416,null,null,null,null,null,null,null,null,null,null,null,null,null,null,null,null,null,null,"~"]
["SA37",2021,"DC16",417,null,null,null,null,null,null,null,null,null,null,null,null,null,null,null,null,null,null,"~"]
["SA37",2021,"DC16",418,null,null,null,null,null,null,null,null,null,null,null,null,null,null,null,null,null,null,"~"]
["SA37",2021,"DC16",419,null,null,null,null,null,null,null,null,null,null,null,null,null,null,null,null,null,null,"~"]
["SA37",2021,"DC16",420,null,null,null,null,null,null,null,null,null,null,null,null,null,null,null,null,null,null,"~"]
["SA37",2021,"DC16",421,null,null,null,null,null,null,null,null,null,null,null,null,null,null,null,null,null,null,"~"]
["SA37",2021,"DC16",422,null,null,null,null,null,null,null,null,null,null,null,null,null,null,null,null,null,null,"~"]
["SA37",2021,"DC16",423,null,null,null,null,null,null,null,null,null,null,null,null,null,null,null,null,null,null,"~"]
["SA37",2021,"DC16",424,null,null,null,null,null,null,null,null,null,null,null,null,null,null,null,null,null,null,"~"]
["SA37",2021,"DC16",425,null,null,null,null,null,null,null,null,null,null,null,null,null,null,null,null,null,null,"~"]
["SA37",2021,"DC16",426,null,null,null,null,null,null,null,null,null,null,null,null,null,null,null,null,null,null,"~"]
["SA37",2021,"DC16",427,null,null,null,null,null,null,null,null,null,null,null,null,null,null,null,null,null,null,"~"]
["SA37",2021,"DC16",428,null,null,null,null,null,null,null,null,null,null,null,null,null,null,null,null,null,null,"~"]
["SA37",2021,"DC16",429,null,null,null,null,null,null,null,null,null,null,null,null,null,null,null,null,null,null,"~"]
["SA37",2021,"DC16",430,null,null,null,null,null,null,null,null,null,null,null,null,null,null,null,null,null,null,"~"]
["SA37",2021,"DC16",431,null,null,null,null,null,null,null,null,null,null,null,null,null,null,null,null,null,null,"~"]
["SA37",{"$f":"+MTREF","v":2021},{"$f":"LEFT(muni,(FIND(\" \",muni,1)-1))","v":"DC16"},432,null,null,null,null,null,null,null,null,null,null,null,null,null,null,null,null,null,null,"~"]
["SA37",2021,"DC16",433,null,null,null,null,null,null,null,null,null,null,null,null,null,null,null,null,null,null,"~"]
["SA37",2021,"DC16",434,null,null,null,null,null,null,null,null,null,null,null,null,null,null,null,null,null,null,"~"]
["SA37",2021,"DC16",435,null,null,null,null,null,null,null,null,null,null,null,null,null,null,null,null,null,null,"~"]
["SA37",2021,"DC16",436,null,null,null,null,null,null,null,null,null,null,null,null,null,null,null,null,null,null,"~"]
["SA37",2021,"DC16",437,null,null,null,null,null,null,null,null,null,null,null,null,null,null,null,null,null,null,"~"]
["SA37",2021,"DC16",438,null,null,null,null,null,null,null,null,null,null,null,null,null,null,null,null,null,null,"~"]
["SA37",2021,"DC16",439,null,null,null,null,null,null,null,null,null,null,null,null,null,null,null,null,null,null,"~"]
["SA37",2021,"DC16",440,null,null,null,null,null,null,null,null,null,null,null,null,null,null,null,null,null,null,"~"]
["SA37",2021,"DC16",441,null,null,null,null,null,null,null,null,null,null,null,null,null,null,null,null,null,null,"~"]
["SA37",2021,"DC16",442,null,null,null,null,null,null,null,null,null,null,null,null,null,null,null,null,null,null,"~"]
["SA37",2021,"DC16",443,null,null,null,null,null,null,null,null,null,null,null,null,null,null,null,null,null,null,"~"]
["SA37",2021,"DC16",444,null,null,null,null,null,null,null,null,null,null,null,null,null,null,null,null,null,null,"~"]
["SA37",2021,"DC16",445,null,null,null,null,null,null,null,null,null,null,null,null,null,null,null,null,null,null,"~"]
["SA37",2021,"DC16",446,null,null,null,null,null,null,null,null,null,null,null,null,null,null,null,null,null,null,"~"]
["SA37",2021,"DC16",447,null,null,null,null,null,null,null,null,null,null,null,null,null,null,null,null,null,null,"~"]
["SA37",2021,"DC16",448,null,null,null,null,null,null,null,null,null,null,null,null,null,null,null,null,null,null,"~"]
["SA37",2021,"DC16",449,null,null,null,null,null,null,null,null,null,null,null,null,null,null,null,null,null,null,"~"]
["SA37",2021,"DC16",450,null,null,null,null,null,null,null,null,null,null,null,null,null,null,null,null,null,null,"~"]
["SA37",2021,"DC16",451,null,null,null,null,null,null,null,null,null,null,null,null,null,null,null,null,null,null,"~"]
["SA37",2021,"DC16",452,null,null,null,null,null,null,null,null,null,null,null,null,null,null,null,null,null,null,"~"]
["SA37",2021,"DC16",453,null,null,null,null,null,null,null,null,null,null,null,null,null,null,null,null,null,null,"~"]
["SA37",2021,"DC16",454,null,null,null,null,null,null,null,null,null,null,null,null,null,null,null,null,null,null,"~"]
["SA37",2021,"DC16",455,null,null,null,null,null,null,null,null,null,null,null,null,null,null,null,null,null,null,"~"]
["SA37",2021,"DC16",456,null,null,null,null,null,null,null,null,null,null,null,null,null,null,null,null,null,null,"~"]
["SA37",2021,"DC16",457,null,null,null,null,null,null,null,null,null,null,null,null,null,null,null,null,null,null,"~"]
["SA37",2021,"DC16",458,null,null,null,null,null,null,null,null,null,null,null,null,null,null,null,null,null,null,"~"]
["SA37",2021,"DC16",459,null,null,null,null,null,null,null,null,null,null,null,null,null,null,null,null,null,null,"~"]
["SA37",2021,"DC16",460,null,null,null,null,null,null,null,null,null,null,null,null,null,null,null,null,null,null,"~"]
["SA37",2021,"DC16",461,null,null,null,null,null,null,null,null,null,null,null,null,null,null,null,null,null,null,"~"]
["SA37",2021,"DC16",462,null,null,null,null,null,null,null,null,null,null,null,null,null,null,null,null,null,null,"~"]
["SA37",2021,"DC16",463,null,null,null,null,null,null,null,null,null,null,null,null,null,null,null,null,null,null,"~"]
["SA37",2021,"DC16",464,null,null,null,null,null,null,null,null,null,null,null,null,null,null,null,null,null,null,"~"]
["SA37",2021,"DC16",465,null,null,null,null,null,null,null,null,null,null,null,null,null,null,null,null,null,null,"~"]
["SA37",2021,"DC16",466,null,null,null,null,null,null,null,null,null,null,null,null,null,null,null,null,null,null,"~"]
["SA37",2021,"DC16",467,null,null,null,null,null,null,null,null,null,null,null,null,null,null,null,null,null,null,"~"]
["SA37",2021,"DC16",468,null,null,null,null,null,null,null,null,null,null,null,null,null,null,null,null,null,null,"~"]
["SA37",2021,"DC16",469,null,null,null,null,null,null,null,null,null,null,null,null,null,null,null,null,null,null,"~"]
["SA37",2021,"DC16",470,null,null,null,null,null,null,null,null,null,null,null,null,null,null,null,null,null,null,"~"]
["SA37",2021,"DC16",471,null,null,null,null,null,null,null,null,null,null,null,null,null,null,null,null,null,null,"~"]
["SA37",2021,"DC16",472,null,null,null,null,null,null,null,null,null,null,null,null,null,null,null,null,null,null,"~"]
["SA37",2021,"DC16",473,null,null,null,null,null,null,null,null,null,null,null,null,null,null,null,null,null,null,"~"]
["SA37",2021,"DC16",474,null,null,null,null,null,null,null,null,null,null,null,null,null,null,null,null,null,null,"~"]
["SA37",2021,"DC16",475,null,null,null,null,null,null,null,null,null,null,null,null,null,null,null,null,null,null,"~"]
["SA37",2021,"DC16",476,null,null,null,null,null,null,null,null,null,null,null,null,null,null,null,null,null,null,"~"]
["SA37",2021,"DC16",477,null,null,null,null,null,null,null,null,null,null,null,null,null,null,null,null,null,null,"~"]
["SA37",2021,"DC16",478,null,null,null,null,null,null,null,null,null,null,null,null,null,null,null,null,null,null,"~"]
["SA37",2021,"DC16",479,null,null,null,null,null,null,null,null,null,null,null,null,null,null,null,null,null,null,"~"]
["SA37",2021,"DC16",480,null,null,null,null,null,null,null,null,null,null,null,null,null,null,null,null,null,null,"~"]
["SA37",2021,"DC16",481,null,null,null,null,null,null,null,null,null,null,null,null,null,null,null,null,null,null,"~"]
["SA37",2021,"DC16",482,null,null,null,null,null,null,null,null,null,null,null,null,null,null,null,null,null,null,"~"]
["SA37",2021,"DC16",483,null,null,null,null,null,null,null,null,null,null,null,null,null,null,null,null,null,null,"~"]
["SA37",2021,"DC16",484,null,null,null,null,null,null,null,null,null,null,null,null,null,null,null,null,null,null,"~"]
["SA37",2021,"DC16",485,null,null,null,null,null,null,null,null,null,null,null,null,null,null,null,null,null,null,"~"]
["SA37",2021,"DC16",486,null,null,null,null,null,null,null,null,null,null,null,null,null,null,null,null,null,null,"~"]
["SA37",2021,"DC16",487,null,null,null,null,null,null,null,null,null,null,null,null,null,null,null,null,null,null,"~"]
["SA37",2021,"DC16",488,null,null,null,null,null,null,null,null,null,null,null,null,null,null,null,null,null,null,"~"]
["SA37",2021,"DC16",489,null,null,null,null,null,null,null,null,null,null,null,null,null,null,null,null,null,null,"~"]
["SA37",2021,"DC16",490,null,null,null,null,null,null,null,null,null,null,null,null,null,null,null,null,null,null,"~"]
["SA37",2021,"DC16",491,null,null,null,null,null,null,null,null,null,null,null,null,null,null,null,null,null,null,"~"]
["SA37",2021,"DC16",492,null,null,null,null,null,null,null,null,null,null,null,null,null,null,null,null,null,null,"~"]
["SA37",2021,"DC16",493,null,null,null,null,null,null,null,null,null,null,null,null,null,null,null,null,null,null,"~"]
["SA37",2021,"DC16",494,null,null,null,null,null,null,null,null,null,null,null,null,null,null,null,null,null,null,"~"]
["SA37",2021,"DC16",495,null,null,null,null,null,null,null,null,null,null,null,null,null,null,null,null,null,null,"~"]
["SA37",{"$f":"+MTREF","v":2021},{"$f":"LEFT(muni,(FIND(\" \",muni,1)-1))","v":"DC16"},496,null,null,null,null,null,null,null,null,null,null,null,null,null,null,null,null,null,null,"~"]
["SA37",2021,"DC16",497,null,null,null,null,null,null,null,null,null,null,null,null,null,null,null,null,null,null,"~"]
["SA37",2021,"DC16",498,null,null,null,null,null,null,null,null,null,null,null,null,null,null,null,null,null,null,"~"]
["SA37",2021,"DC16",499,null,null,null,null,null,null,null,null,null,null,null,null,null,null,null,null,null,null,"~"]
["SA37",2021,"DC16",500,null,null,null,null,null,null,null,null,null,null,null,null,null,null,null,null,null,null,"~"]
["SA37",2021,"DC16",501,null,null,null,null,null,null,null,null,null,null,null,null,null,null,null,null,null,null,"~"]
["SA37",2021,"DC16",502,null,null,null,null,null,null,null,null,null,null,null,null,null,null,null,null,null,null,"~"]
["SA37",2021,"DC16",503,null,null,null,null,null,null,null,null,null,null,null,null,null,null,null,null,null,null,"~"]
["SA37",2021,"DC16",504,null,null,null,null,null,null,null,null,null,null,null,null,null,null,null,null,null,null,"~"]
["SA37",2021,"DC16",505,null,null,null,null,null,null,null,null,null,null,null,null,null,null,null,null,null,null,"~"]
["SA37",2021,"DC16",506,null,null,null,null,null,null,null,null,null,null,null,null,null,null,null,null,null,null,"~"]
["SA37",2021,"DC16",507,null,null,null,null,null,null,null,null,null,null,null,null,null,null,null,null,null,null,"~"]
["SA37",2021,"DC16",508,null,null,null,null,null,null,null,null,null,null,null,null,null,null,null,null,null,null,"~"]
["SA37",2021,"DC16",509,null,null,null,null,null,null,null,null,null,null,null,null,null,null,null,null,null,null,"~"]
["SA37",2021,"DC16",510,null,null,null,null,null,null,null,null,null,null,null,null,null,null,null,null,null,null,"~"]
["SA37",2021,"DC16",511,null,null,null,null,null,null,null,null,null,null,null,null,null,null,null,null,null,null,"~"]
["SA37",2021,"DC16",512,null,null,null,null,null,null,null,null,null,null,null,null,null,null,null,null,null,null,"~"]
["SA37",2021,"DC16",513,null,null,null,null,null,null,null,null,null,null,null,null,null,null,null,null,null,null,"~"]
["SA37",2021,"DC16",514,null,null,null,null,null,null,null,null,null,null,null,null,null,null,null,null,null,null,"~"]
["SA37",2021,"DC16",515,null,null,null,null,null,null,null,null,null,null,null,null,null,null,null,null,null,null,"~"]
["SA37",2021,"DC16",516,null,null,null,null,null,null,null,null,null,null,null,null,null,null,null,null,null,null,"~"]
["SA37",2021,"DC16",517,null,null,null,null,null,null,null,null,null,null,null,null,null,null,null,null,null,null,"~"]
["SA37",2021,"DC16",518,null,null,null,null,null,null,null,null,null,null,null,null,null,null,null,null,null,null,"~"]
["SA37",2021,"DC16",519,null,null,null,null,null,null,null,null,null,null,null,null,null,null,null,null,null,null,"~"]
["SA37",2021,"DC16",520,null,null,null,null,null,null,null,null,null,null,null,null,null,null,null,null,null,null,"~"]
["SA37",2021,"DC16",521,null,null,null,null,null,null,null,null,null,null,null,null,null,null,null,null,null,null,"~"]
["SA37",2021,"DC16",522,null,null,null,null,null,null,null,null,null,null,null,null,null,null,null,null,null,null,"~"]
["SA37",2021,"DC16",523,null,null,null,null,null,null,null,null,null,null,null,null,null,null,null,null,null,null,"~"]
["SA37",2021,"DC16",524,null,null,null,null,null,null,null,null,null,null,null,null,null,null,null,null,null,null,"~"]
["SA37",2021,"DC16",525,null,null,null,null,null,null,null,null,null,null,null,null,null,null,null,null,null,null,"~"]
["SA37",2021,"DC16",526,null,null,null,null,null,null,null,null,null,null,null,null,null,null,null,null,null,null,"~"]
["SA37",2021,"DC16",527,null,null,null,null,null,null,null,null,null,null,null,null,null,null,null,null,null,null,"~"]
["SA37",2021,"DC16",528,null,null,null,null,null,null,null,null,null,null,null,null,null,null,null,null,null,null,"~"]
["SA37",2021,"DC16",529,null,null,null,null,null,null,null,null,null,null,null,null,null,null,null,null,null,null,"~"]
["SA37",2021,"DC16",530,null,null,null,null,null,null,null,null,null,null,null,null,null,null,null,null,null,null,"~"]
["SA37",2021,"DC16",531,null,null,null,null,null,null,null,null,null,null,null,null,null,null,null,null,null,null,"~"]
["SA37",2021,"DC16",532,null,null,null,null,null,null,null,null,null,null,null,null,null,null,null,null,null,null,"~"]
["SA37",2021,"DC16",533,null,null,null,null,null,null,null,null,null,null,null,null,null,null,null,null,null,null,"~"]
["SA37",2021,"DC16",534,null,null,null,null,null,null,null,null,null,null,null,null,null,null,null,null,null,null,"~"]
["SA37",2021,"DC16",535,null,null,null,null,null,null,null,null,null,null,null,null,null,null,null,null,null,null,"~"]
["SA37",2021,"DC16",536,null,null,null,null,null,null,null,null,null,null,null,null,null,null,null,null,null,null,"~"]
["SA37",2021,"DC16",537,null,null,null,null,null,null,null,null,null,null,null,null,null,null,null,null,null,null,"~"]
["SA37",2021,"DC16",538,null,null,null,null,null,null,null,null,null,null,null,null,null,null,null,null,null,null,"~"]
["SA37",2021,"DC16",539,null,null,null,null,null,null,null,null,null,null,null,null,null,null,null,null,null,null,"~"]
["SA37",2021,"DC16",540,null,null,null,null,null,null,null,null,null,null,null,null,null,null,null,null,null,null,"~"]
["SA37",2021,"DC16",541,null,null,null,null,null,null,null,null,null,null,null,null,null,null,null,null,null,null,"~"]
["SA37",2021,"DC16",542,null,null,null,null,null,null,null,null,null,null,null,null,null,null,null,null,null,null,"~"]
["SA37",2021,"DC16",543,null,null,null,null,null,null,null,null,null,null,null,null,null,null,null,null,null,null,"~"]
["SA37",2021,"DC16",544,null,null,null,null,null,null,null,null,null,null,null,null,null,null,null,null,null,null,"~"]
["SA37",2021,"DC16",545,null,null,null,null,null,null,null,null,null,null,null,null,null,null,null,null,null,null,"~"]
["SA37",2021,"DC16",546,null,null,null,null,null,null,null,null,null,null,null,null,null,null,null,null,null,null,"~"]
["SA37",2021,"DC16",547,null,null,null,null,null,null,null,null,null,null,null,null,null,null,null,null,null,null,"~"]
["SA37",2021,"DC16",548,null,null,null,null,null,null,null,null,null,null,null,null,null,null,null,null,null,null,"~"]
["SA37",2021,"DC16",549,null,null,null,null,null,null,null,null,null,null,null,null,null,null,null,null,null,null,"~"]
["SA37",2021,"DC16",550,null,null,null,null,null,null,null,null,null,null,null,null,null,null,null,null,null,null,"~"]
["SA37",2021,"DC16",551,null,null,null,null,null,null,null,null,null,null,null,null,null,null,null,null,null,null,"~"]
["SA37",2021,"DC16",552,null,null,null,null,null,null,null,null,null,null,null,null,null,null,null,null,null,null,"~"]
["SA37",2021,"DC16",553,null,null,null,null,null,null,null,null,null,null,null,null,null,null,null,null,null,null,"~"]
["SA37",2021,"DC16",554,null,null,null,null,null,null,null,null,null,null,null,null,null,null,null,null,null,null,"~"]
["SA37",2021,"DC16",555,null,null,null,null,null,null,null,null,null,null,null,null,null,null,null,null,null,null,"~"]
["SA37",2021,"DC16",556,null,null,null,null,null,null,null,null,null,null,null,null,null,null,null,null,null,null,"~"]
["SA37",2021,"DC16",557,null,null,null,null,null,null,null,null,null,null,null,null,null,null,null,null,null,null,"~"]
["SA37",2021,"DC16",558,null,null,null,null,null,null,null,null,null,null,null,null,null,null,null,null,null,null,"~"]
["SA37",2021,"DC16",559,null,null,null,null,null,null,null,null,null,null,null,null,null,null,null,null,null,null,"~"]
["SA37",{"$f":"+MTREF","v":2021},{"$f":"LEFT(muni,(FIND(\" \",muni,1)-1))","v":"DC16"},560,null,null,null,null,null,null,null,null,null,null,null,null,null,null,null,null,null,null,"~"]
["SA37",2021,"DC16",561,null,null,null,null,null,null,null,null,null,null,null,null,null,null,null,null,null,null,"~"]
["SA37",2021,"DC16",562,null,null,null,null,null,null,null,null,null,null,null,null,null,null,null,null,null,null,"~"]
["SA37",2021,"DC16",563,null,null,null,null,null,null,null,null,null,null,null,null,null,null,null,null,null,null,"~"]
["SA37",2021,"DC16",564,null,null,null,null,null,null,null,null,null,null,null,null,null,null,null,null,null,null,"~"]
["SA37",2021,"DC16",565,null,null,null,null,null,null,null,null,null,null,null,null,null,null,null,null,null,null,"~"]
["SA37",2021,"DC16",566,null,null,null,null,null,null,null,null,null,null,null,null,null,null,null,null,null,null,"~"]
["SA37",2021,"DC16",567,null,null,null,null,null,null,null,null,null,null,null,null,null,null,null,null,null,null,"~"]
["SA37",2021,"DC16",568,null,null,null,null,null,null,null,null,null,null,null,null,null,null,null,null,null,null,"~"]
["SA37",2021,"DC16",569,null,null,null,null,null,null,null,null,null,null,null,null,null,null,null,null,null,null,"~"]
["SA37",2021,"DC16",570,null,null,null,null,null,null,null,null,null,null,null,null,null,null,null,null,null,null,"~"]
["SA37",2021,"DC16",571,null,null,null,null,null,null,null,null,null,null,null,null,null,null,null,null,null,null,"~"]
["SA37",2021,"DC16",572,null,null,null,null,null,null,null,null,null,null,null,null,null,null,null,null,null,null,"~"]
["SA37",2021,"DC16",573,null,null,null,null,null,null,null,null,null,null,null,null,null,null,null,null,null,null,"~"]
["SA37",2021,"DC16",574,null,null,null,null,null,null,null,null,null,null,null,null,null,null,null,null,null,null,"~"]
["SA37",2021,"DC16",575,null,null,null,null,null,null,null,null,null,null,null,null,null,null,null,null,null,null,"~"]
["SA37",2021,"DC16",576,null,null,null,null,null,null,null,null,null,null,null,null,null,null,null,null,null,null,"~"]
["SA37",2021,"DC16",577,null,null,null,null,null,null,null,null,null,null,null,null,null,null,null,null,null,null,"~"]
["SA37",2021,"DC16",578,null,null,null,null,null,null,null,null,null,null,null,null,null,null,null,null,null,null,"~"]
["SA37",2021,"DC16",579,null,null,null,null,null,null,null,null,null,null,null,null,null,null,null,null,null,null,"~"]
["SA37",2021,"DC16",580,null,null,null,null,null,null,null,null,null,null,null,null,null,null,null,null,null,null,"~"]
["SA37",2021,"DC16",581,null,null,null,null,null,null,null,null,null,null,null,null,null,null,null,null,null,null,"~"]
["SA37",2021,"DC16",582,null,null,null,null,null,null,null,null,null,null,null,null,null,null,null,null,null,null,"~"]
["SA37",2021,"DC16",583,null,null,null,null,null,null,null,null,null,null,null,null,null,null,null,null,null,null,"~"]
["SA37",2021,"DC16",584,null,null,null,null,null,null,null,null,null,null,null,null,null,null,null,null,null,null,"~"]
["SA37",2021,"DC16",585,null,null,null,null,null,null,null,null,null,null,null,null,null,null,null,null,null,null,"~"]
["SA37",2021,"DC16",586,null,null,null,null,null,null,null,null,null,null,null,null,null,null,null,null,null,null,"~"]
["SA37",2021,"DC16",587,null,null,null,null,null,null,null,null,null,null,null,null,null,null,null,null,null,null,"~"]
["SA37",2021,"DC16",588,null,null,null,null,null,null,null,null,null,null,null,null,null,null,null,null,null,null,"~"]
["SA37",2021,"DC16",589,null,null,null,null,null,null,null,null,null,null,null,null,null,null,null,null,null,null,"~"]
["SA37",2021,"DC16",590,null,null,null,null,null,null,null,null,null,null,null,null,null,null,null,null,null,null,"~"]
["SA37",2021,"DC16",591,null,null,null,null,null,null,null,null,null,null,null,null,null,null,null,null,null,null,"~"]
["SA37",2021,"DC16",592,null,null,null,null,null,null,null,null,null,null,null,null,null,null,null,null,null,null,"~"]
["SA37",2021,"DC16",593,null,null,null,null,null,null,null,null,null,null,null,null,null,null,null,null,null,null,"~"]
["SA37",2021,"DC16",594,null,null,null,null,null,null,null,null,null,null,null,null,null,null,null,null,null,null,"~"]
["SA37",2021,"DC16",595,null,null,null,null,null,null,null,null,null,null,null,null,null,null,null,null,null,null,"~"]
["SA37",2021,"DC16",596,null,null,null,null,null,null,null,null,null,null,null,null,null,null,null,null,null,null,"~"]
["SA37",2021,"DC16",597,null,null,null,null,null,null,null,null,null,null,null,null,null,null,null,null,null,null,"~"]
["SA37",2021,"DC16",598,null,null,null,null,null,null,null,null,null,null,null,null,null,null,null,null,null,null,"~"]
["SA37",2021,"DC16",599,null,null,null,null,null,null,null,null,null,null,null,null,null,null,null,null,null,null,"~"]
["SA37",2021,"DC16",600,null,null,null,null,null,null,null,null,null,null,null,null,null,null,null,null,null,null,"~"]
["SA37",2021,"DC16",601,null,null,null,null,null,null,null,null,null,null,null,null,null,null,null,null,null,null,"~"]
["SA37",2021,"DC16",602,null,null,null,null,null,null,null,null,null,null,null,null,null,null,null,null,null,null,"~"]
["SA37",2021,"DC16",603,null,null,null,null,null,null,null,null,null,null,null,null,null,null,null,null,null,null,"~"]
["SA37",2021,"DC16",604,null,null,null,null,null,null,null,null,null,null,null,null,null,null,null,null,null,null,"~"]
["SA37",2021,"DC16",605,null,null,null,null,null,null,null,null,null,null,null,null,null,null,null,null,null,null,"~"]
["SA37",2021,"DC16",606,null,null,null,null,null,null,null,null,null,null,null,null,null,null,null,null,null,null,"~"]
["SA37",2021,"DC16",607,null,null,null,null,null,null,null,null,null,null,null,null,null,null,null,null,null,null,"~"]
["SA37",2021,"DC16",608,null,null,null,null,null,null,null,null,null,null,null,null,null,null,null,null,null,null,"~"]
["SA37",2021,"DC16",609,null,null,null,null,null,null,null,null,null,null,null,null,null,null,null,null,null,null,"~"]
["SA37",2021,"DC16",610,null,null,null,null,null,null,null,null,null,null,null,null,null,null,null,null,null,null,"~"]
["SA37",2021,"DC16",611,null,null,null,null,null,null,null,null,null,null,null,null,null,null,null,null,null,null,"~"]
["SA37",2021,"DC16",612,null,null,null,null,null,null,null,null,null,null,null,null,null,null,null,null,null,null,"~"]
["SA37",2021,"DC16",613,null,null,null,null,null,null,null,null,null,null,null,null,null,null,null,null,null,null,"~"]
["SA37",2021,"DC16",614,null,null,null,null,null,null,null,null,null,null,null,null,null,null,null,null,null,null,"~"]
["SA37",2021,"DC16",615,null,null,null,null,null,null,null,null,null,null,null,null,null,null,null,null,null,null,"~"]
["SA37",2021,"DC16",616,null,null,null,null,null,null,null,null,null,null,null,null,null,null,null,null,null,null,"~"]
["SA37",2021,"DC16",617,null,null,null,null,null,null,null,null,null,null,null,null,null,null,null,null,null,null,"~"]
["SA37",2021,"DC16",618,null,null,null,null,null,null,null,null,null,null,null,null,null,null,null,null,null,null,"~"]
["SA37",2021,"DC16",619,null,null,null,null,null,null,null,null,null,null,null,null,null,null,null,null,null,null,"~"]
["SA37",2021,"DC16",620,null,null,null,null,null,null,null,null,null,null,null,null,null,null,null,null,null,null,"~"]
["SA37",2021,"DC16",621,null,null,null,null,null,null,null,null,null,null,null,null,null,null,null,null,null,null,"~"]
["SA37",2021,"DC16",622,null,null,null,null,null,null,null,null,null,null,null,null,null,null,null,null,null,null,"~"]
["SA37",2021,"DC16",623,null,null,null,null,null,null,null,null,null,null,null,null,null,null,null,null,null,null,"~"]
["SA37",{"$f":"+MTREF","v":2021},{"$f":"LEFT(muni,(FIND(\" \",muni,1)-1))","v":"DC16"},624,null,null,null,null,null,null,null,null,null,null,null,null,null,null,null,null,null,null,"~"]
["SA37",2021,"DC16",625,null,null,null,null,null,null,null,null,null,null,null,null,null,null,null,null,null,null,"~"]
["SA37",2021,"DC16",626,null,null,null,null,null,null,null,null,null,null,null,null,null,null,null,null,null,null,"~"]
["SA37",2021,"DC16",627,null,null,null,null,null,null,null,null,null,null,null,null,null,null,null,null,null,null,"~"]
["SA37",2021,"DC16",628,null,null,null,null,null,null,null,null,null,null,null,null,null,null,null,null,null,null,"~"]
["SA37",2021,"DC16",629,null,null,null,null,null,null,null,null,null,null,null,null,null,null,null,null,null,null,"~"]
["SA37",2021,"DC16",630,null,null,null,null,null,null,null,null,null,null,null,null,null,null,null,null,null,null,"~"]
["SA37",2021,"DC16",631,null,null,null,null,null,null,null,null,null,null,null,null,null,null,null,null,null,null,"~"]
["SA37",2021,"DC16",632,null,null,null,null,null,null,null,null,null,null,null,null,null,null,null,null,null,null,"~"]
["SA37",2021,"DC16",633,null,null,null,null,null,null,null,null,null,null,null,null,null,null,null,null,null,null,"~"]
["SA37",2021,"DC16",634,null,null,null,null,null,null,null,null,null,null,null,null,null,null,null,null,null,null,"~"]
["SA37",2021,"DC16",635,null,null,null,null,null,null,null,null,null,null,null,null,null,null,null,null,null,null,"~"]
["SA37",2021,"DC16",636,null,null,null,null,null,null,null,null,null,null,null,null,null,null,null,null,null,null,"~"]
["SA37",2021,"DC16",637,null,null,null,null,null,null,null,null,null,null,null,null,null,null,null,null,null,null,"~"]
["SA37",2021,"DC16",638,null,null,null,null,null,null,null,null,null,null,null,null,null,null,null,null,null,null,"~"]
["SA37",2021,"DC16",639,null,null,null,null,null,null,null,null,null,null,null,null,null,null,null,null,null,null,"~"]
["SA37",2021,"DC16",640,null,null,null,null,null,null,null,null,null,null,null,null,null,null,null,null,null,null,"~"]
["SA37",2021,"DC16",641,null,null,null,null,null,null,null,null,null,null,null,null,null,null,null,null,null,null,"~"]
["SA37",2021,"DC16",642,null,null,null,null,null,null,null,null,null,null,null,null,null,null,null,null,null,null,"~"]
["SA37",2021,"DC16",643,null,null,null,null,null,null,null,null,null,null,null,null,null,null,null,null,null,null,"~"]
["SA37",2021,"DC16",644,null,null,null,null,null,null,null,null,null,null,null,null,null,null,null,null,null,null,"~"]
["SA37",2021,"DC16",645,null,null,null,null,null,null,null,null,null,null,null,null,null,null,null,null,null,null,"~"]
["SA37",2021,"DC16",646,null,null,null,null,null,null,null,null,null,null,null,null,null,null,null,null,null,null,"~"]
["SA37",2021,"DC16",647,null,null,null,null,null,null,null,null,null,null,null,null,null,null,null,null,null,null,"~"]
["SA37",2021,"DC16",648,null,null,null,null,null,null,null,null,null,null,null,null,null,null,null,null,null,null,"~"]
["SA37",2021,"DC16",649,null,null,null,null,null,null,null,null,null,null,null,null,null,null,null,null,null,null,"~"]
["SA37",2021,"DC16",650,null,null,null,null,null,null,null,null,null,null,null,null,null,null,null,null,null,null,"~"]
["SA37",2021,"DC16",651,null,null,null,null,null,null,null,null,null,null,null,null,null,null,null,null,null,null,"~"]
["SA37",2021,"DC16",652,null,null,null,null,null,null,null,null,null,null,null,null,null,null,null,null,null,null,"~"]
["SA37",2021,"DC16",653,null,null,null,null,null,null,null,null,null,null,null,null,null,null,null,null,null,null,"~"]
["SA37",2021,"DC16",654,null,null,null,null,null,null,null,null,null,null,null,null,null,null,null,null,null,null,"~"]
["SA37",2021,"DC16",655,null,null,null,null,null,null,null,null,null,null,null,null,null,null,null,null,null,null,"~"]
["SA37",2021,"DC16",656,null,null,null,null,null,null,null,null,null,null,null,null,null,null,null,null,null,null,"~"]
["SA37",2021,"DC16",657,null,null,null,null,null,null,null,null,null,null,null,null,null,null,null,null,null,null,"~"]
["SA37",2021,"DC16",658,null,null,null,null,null,null,null,null,null,null,null,null,null,null,null,null,null,null,"~"]
["SA37",2021,"DC16",659,null,null,null,null,null,null,null,null,null,null,null,null,null,null,null,null,null,null,"~"]
["SA37",2021,"DC16",660,null,null,null,null,null,null,null,null,null,null,null,null,null,null,null,null,null,null,"~"]
["SA37",2021,"DC16",661,null,null,null,null,null,null,null,null,null,null,null,null,null,null,null,null,null,null,"~"]
["SA37",2021,"DC16",662,null,null,null,null,null,null,null,null,null,null,null,null,null,null,null,null,null,null,"~"]
["SA37",2021,"DC16",663,null,null,null,null,null,null,null,null,null,null,null,null,null,null,null,null,null,null,"~"]
["SA37",2021,"DC16",664,null,null,null,null,null,null,null,null,null,null,null,null,null,null,null,null,null,null,"~"]
["SA37",2021,"DC16",665,null,null,null,null,null,null,null,null,null,null,null,null,null,null,null,null,null,null,"~"]
["SA37",2021,"DC16",666,null,null,null,null,null,null,null,null,null,null,null,null,null,null,null,null,null,null,"~"]
["SA37",2021,"DC16",667,null,null,null,null,null,null,null,null,null,null,null,null,null,null,null,null,null,null,"~"]
["SA37",2021,"DC16",668,null,null,null,null,null,null,null,null,null,null,null,null,null,null,null,null,null,null,"~"]
["SA37",2021,"DC16",669,null,null,null,null,null,null,null,null,null,null,null,null,null,null,null,null,null,null,"~"]
["SA37",2021,"DC16",670,null,null,null,null,null,null,null,null,null,null,null,null,null,null,null,null,null,null,"~"]
["SA37",2021,"DC16",671,null,null,null,null,null,null,null,null,null,null,null,null,null,null,null,null,null,null,"~"]
["SA37",2021,"DC16",672,null,null,null,null,null,null,null,null,null,null,null,null,null,null,null,null,null,null,"~"]
["SA37",2021,"DC16",673,null,null,null,null,null,null,null,null,null,null,null,null,null,null,null,null,null,null,"~"]
["SA37",2021,"DC16",674,null,null,null,null,null,null,null,null,null,null,null,null,null,null,null,null,null,null,"~"]
["SA37",2021,"DC16",675,null,null,null,null,null,null,null,null,null,null,null,null,null,null,null,null,null,null,"~"]
["SA37",2021,"DC16",676,null,null,null,null,null,null,null,null,null,null,null,null,null,null,null,null,null,null,"~"]
["SA37",2021,"DC16",677,null,null,null,null,null,null,null,null,null,null,null,null,null,null,null,null,null,null,"~"]
["SA37",2021,"DC16",678,null,null,null,null,null,null,null,null,null,null,null,null,null,null,null,null,null,null,"~"]
["SA37",2021,"DC16",679,null,null,null,null,null,null,null,null,null,null,null,null,null,null,null,null,null,null,"~"]
["SA37",2021,"DC16",680,null,null,null,null,null,null,null,null,null,null,null,null,null,null,null,null,null,null,"~"]
["SA37",2021,"DC16",681,null,null,null,null,null,null,null,null,null,null,null,null,null,null,null,null,null,null,"~"]
["SA37",2021,"DC16",682,null,null,null,null,null,null,null,null,null,null,null,null,null,null,null,null,null,null,"~"]
["SA37",2021,"DC16",683,null,null,null,null,null,null,null,null,null,null,null,null,null,null,null,null,null,null,"~"]
["SA37",2021,"DC16",684,null,null,null,null,null,null,null,null,null,null,null,null,null,null,null,null,null,null,"~"]
["SA37",2021,"DC16",685,null,null,null,null,null,null,null,null,null,null,null,null,null,null,null,null,null,null,"~"]
["SA37",2021,"DC16",686,null,null,null,null,null,null,null,null,null,null,null,null,null,null,null,null,null,null,"~"]
["SA37",2021,"DC16",687,null,null,null,null,null,null,null,null,null,null,null,null,null,null,null,null,null,null,"~"]
["SA37",{"$f":"+MTREF","v":2021},{"$f":"LEFT(muni,(FIND(\" \",muni,1)-1))","v":"DC16"},688,null,null,null,null,null,null,null,null,null,null,null,null,null,null,null,null,null,null,"~"]
["SA37",2021,"DC16",689,null,null,null,null,null,null,null,null,null,null,null,null,null,null,null,null,null,null,"~"]
["SA37",2021,"DC16",690,null,null,null,null,null,null,null,null,null,null,null,null,null,null,null,null,null,null,"~"]
["SA37",2021,"DC16",691,null,null,null,null,null,null,null,null,null,null,null,null,null,null,null,null,null,null,"~"]
["SA37",2021,"DC16",692,null,null,null,null,null,null,null,null,null,null,null,null,null,null,null,null,null,null,"~"]
["SA37",2021,"DC16",693,null,null,null,null,null,null,null,null,null,null,null,null,null,null,null,null,null,null,"~"]
["SA37",2021,"DC16",694,null,null,null,null,null,null,null,null,null,null,null,null,null,null,null,null,null,null,"~"]
["SA37",2021,"DC16",695,null,null,null,null,null,null,null,null,null,null,null,null,null,null,null,null,null,null,"~"]
["SA37",2021,"DC16",696,null,null,null,null,null,null,null,null,null,null,null,null,null,null,null,null,null,null,"~"]
["SA37",2021,"DC16",697,null,null,null,null,null,null,null,null,null,null,null,null,null,null,null,null,null,null,"~"]
["SA37",2021,"DC16",698,null,null,null,null,null,null,null,null,null,null,null,null,null,null,null,null,null,null,"~"]
["SA37",2021,"DC16",699,null,null,null,null,null,null,null,null,null,null,null,null,null,null,null,null,null,null,"~"]
["SA37",2021,"DC16",700,null,null,null,null,null,null,null,null,null,null,null,null,null,null,null,null,null,null,"~"]
["SA37",2021,"DC16",701,null,null,null,null,null,null,null,null,null,null,null,null,null,null,null,null,null,null,"~"]
["SA37",2021,"DC16",702,null,null,null,null,null,null,null,null,null,null,null,null,null,null,null,null,null,null,"~"]
["SA37",2021,"DC16",703,null,null,null,null,null,null,null,null,null,null,null,null,null,null,null,null,null,null,"~"]
["SA37",2021,"DC16",704,null,null,null,null,null,null,null,null,null,null,null,null,null,null,null,null,null,null,"~"]
["SA37",2021,"DC16",705,null,null,null,null,null,null,null,null,null,null,null,null,null,null,null,null,null,null,"~"]
["SA37",2021,"DC16",706,null,null,null,null,null,null,null,null,null,null,null,null,null,null,null,null,null,null,"~"]
["SA37",2021,"DC16",707,null,null,null,null,null,null,null,null,null,null,null,null,null,null,null,null,null,null,"~"]
["SA37",2021,"DC16",708,null,null,null,null,null,null,null,null,null,null,null,null,null,null,null,null,null,null,"~"]
["SA37",2021,"DC16",709,null,null,null,null,null,null,null,null,null,null,null,null,null,null,null,null,null,null,"~"]
["SA37",2021,"DC16",710,null,null,null,null,null,null,null,null,null,null,null,null,null,null,null,null,null,null,"~"]
["SA37",2021,"DC16",711,null,null,null,null,null,null,null,null,null,null,null,null,null,null,null,null,null,null,"~"]
["SA37",2021,"DC16",712,null,null,null,null,null,null,null,null,null,null,null,null,null,null,null,null,null,null,"~"]
["SA37",2021,"DC16",713,null,null,null,null,null,null,null,null,null,null,null,null,null,null,null,null,null,null,"~"]
["SA37",2021,"DC16",714,null,null,null,null,null,null,null,null,null,null,null,null,null,null,null,null,null,null,"~"]
["SA37",2021,"DC16",715,null,null,null,null,null,null,null,null,null,null,null,null,null,null,null,null,null,null,"~"]
["SA37",2021,"DC16",716,null,null,null,null,null,null,null,null,null,null,null,null,null,null,null,null,null,null,"~"]
["SA37",2021,"DC16",717,null,null,null,null,null,null,null,null,null,null,null,null,null,null,null,null,null,null,"~"]
["SA37",2021,"DC16",718,null,null,null,null,null,null,null,null,null,null,null,null,null,null,null,null,null,null,"~"]
["SA37",2021,"DC16",719,null,null,null,null,null,null,null,null,null,null,null,null,null,null,null,null,null,null,"~"]
["SA37",2021,"DC16",720,null,null,null,null,null,null,null,null,null,null,null,null,null,null,null,null,null,null,"~"]
["SA37",2021,"DC16",721,null,null,null,null,null,null,null,null,null,null,null,null,null,null,null,null,null,null,"~"]
["SA37",2021,"DC16",722,null,null,null,null,null,null,null,null,null,null,null,null,null,null,null,null,null,null,"~"]
["SA37",2021,"DC16",723,null,null,null,null,null,null,null,null,null,null,null,null,null,null,null,null,null,null,"~"]
["SA37",2021,"DC16",724,null,null,null,null,null,null,null,null,null,null,null,null,null,null,null,null,null,null,"~"]
["SA37",2021,"DC16",725,null,null,null,null,null,null,null,null,null,null,null,null,null,null,null,null,null,null,"~"]
["SA37",2021,"DC16",726,null,null,null,null,null,null,null,null,null,null,null,null,null,null,null,null,null,null,"~"]
["SA37",2021,"DC16",727,null,null,null,null,null,null,null,null,null,null,null,null,null,null,null,null,null,null,"~"]
["SA37",2021,"DC16",728,null,null,null,null,null,null,null,null,null,null,null,null,null,null,null,null,null,null,"~"]
["SA37",2021,"DC16",729,null,null,null,null,null,null,null,null,null,null,null,null,null,null,null,null,null,null,"~"]
["SA37",2021,"DC16",730,null,null,null,null,null,null,null,null,null,null,null,null,null,null,null,null,null,null,"~"]
["SA37",2021,"DC16",731,null,null,null,null,null,null,null,null,null,null,null,null,null,null,null,null,null,null,"~"]
["SA37",2021,"DC16",732,null,null,null,null,null,null,null,null,null,null,null,null,null,null,null,null,null,null,"~"]
["SA37",2021,"DC16",733,null,null,null,null,null,null,null,null,null,null,null,null,null,null,null,null,null,null,"~"]
["SA37",2021,"DC16",734,null,null,null,null,null,null,null,null,null,null,null,null,null,null,null,null,null,null,"~"]
["SA37",2021,"DC16",735,null,null,null,null,null,null,null,null,null,null,null,null,null,null,null,null,null,null,"~"]
["SA37",2021,"DC16",736,null,null,null,null,null,null,null,null,null,null,null,null,null,null,null,null,null,null,"~"]
["SA37",2021,"DC16",737,null,null,null,null,null,null,null,null,null,null,null,null,null,null,null,null,null,null,"~"]
["SA37",2021,"DC16",738,null,null,null,null,null,null,null,null,null,null,null,null,null,null,null,null,null,null,"~"]
["SA37",2021,"DC16",739,null,null,null,null,null,null,null,null,null,null,null,null,null,null,null,null,null,null,"~"]
["SA37",2021,"DC16",740,null,null,null,null,null,null,null,null,null,null,null,null,null,null,null,null,null,null,"~"]
["SA37",2021,"DC16",741,null,null,null,null,null,null,null,null,null,null,null,null,null,null,null,null,null,null,"~"]
["SA37",2021,"DC16",742,null,null,null,null,null,null,null,null,null,null,null,null,null,null,null,null,null,null,"~"]
["SA37",2021,"DC16",743,null,null,null,null,null,null,null,null,null,null,null,null,null,null,null,null,null,null,"~"]
["SA37",2021,"DC16",744,null,null,null,null,null,null,null,null,null,null,null,null,null,null,null,null,null,null,"~"]
["SA37",2021,"DC16",745,null,null,null,null,null,null,null,null,null,null,null,null,null,null,null,null,null,null,"~"]
["SA37",2021,"DC16",746,null,null,null,null,null,null,null,null,null,null,null,null,null,null,null,null,null,null,"~"]
["SA37",2021,"DC16",747,null,null,null,null,null,null,null,null,null,null,null,null,null,null,null,null,null,null,"~"]
["SA37",2021,"DC16",748,null,null,null,null,null,null,null,null,null,null,null,null,null,null,null,null,null,null,"~"]
["SA37",2021,"DC16",749,null,null,null,null,null,null,null,null,null,null,null,null,null,null,null,null,null,null,"~"]
["SA37",2021,"DC16",750,null,null,null,null,null,null,null,null,null,null,null,null,null,null,null,null,null,null,"~"]
["SA37",2021,"DC16",751,null,null,null,null,null,null,null,null,null,null,null,null,null,null,null,null,null,null,"~"]
["SA37",{"$f":"+MTREF","v":2021},{"$f":"LEFT(muni,(FIND(\" \",muni,1)-1))","v":"DC16"},752,null,null,null,null,null,null,null,null,null,null,null,null,null,null,null,null,null,null,"~"]
["SA37",2021,"DC16",753,null,null,null,null,null,null,null,null,null,null,null,null,null,null,null,null,null,null,"~"]
["SA37",2021,"DC16",754,null,null,null,null,null,null,null,null,null,null,null,null,null,null,null,null,null,null,"~"]
["SA37",2021,"DC16",755,null,null,null,null,null,null,null,null,null,null,null,null,null,null,null,null,null,null,"~"]
["SA37",2021,"DC16",756,null,null,null,null,null,null,null,null,null,null,null,null,null,null,null,null,null,null,"~"]
["SA37",2021,"DC16",757,null,null,null,null,null,null,null,null,null,null,null,null,null,null,null,null,null,null,"~"]
["SA37",2021,"DC16",758,null,null,null,null,null,null,null,null,null,null,null,null,null,null,null,null,null,null,"~"]
["SA37",2021,"DC16",759,null,null,null,null,null,null,null,null,null,null,null,null,null,null,null,null,null,null,"~"]
["SA37",2021,"DC16",760,null,null,null,null,null,null,null,null,null,null,null,null,null,null,null,null,null,null,"~"]
["SA37",2021,"DC16",761,null,null,null,null,null,null,null,null,null,null,null,null,null,null,null,null,null,null,"~"]
["SA37",2021,"DC16",762,null,null,null,null,null,null,null,null,null,null,null,null,null,null,null,null,null,null,"~"]
["SA37",2021,"DC16",763,null,null,null,null,null,null,null,null,null,null,null,null,null,null,null,null,null,null,"~"]
["SA37",2021,"DC16",764,null,null,null,null,null,null,null,null,null,null,null,null,null,null,null,null,null,null,"~"]
["SA37",2021,"DC16",765,null,null,null,null,null,null,null,null,null,null,null,null,null,null,null,null,null,null,"~"]
["SA37",2021,"DC16",766,null,null,null,null,null,null,null,null,null,null,null,null,null,null,null,null,null,null,"~"]
["SA37",2021,"DC16",767,null,null,null,null,null,null,null,null,null,null,null,null,null,null,null,null,null,null,"~"]
["SA37",2021,"DC16",768,null,null,null,null,null,null,null,null,null,null,null,null,null,null,null,null,null,null,"~"]
["SA37",2021,"DC16",769,null,null,null,null,null,null,null,null,null,null,null,null,null,null,null,null,null,null,"~"]
["SA37",2021,"DC16",770,null,null,null,null,null,null,null,null,null,null,null,null,null,null,null,null,null,null,"~"]
["SA37",2021,"DC16",771,null,null,null,null,null,null,null,null,null,null,null,null,null,null,null,null,null,null,"~"]
["SA37",2021,"DC16",772,null,null,null,null,null,null,null,null,null,null,null,null,null,null,null,null,null,null,"~"]
["SA37",2021,"DC16",773,null,null,null,null,null,null,null,null,null,null,null,null,null,null,null,null,null,null,"~"]
["SA37",2021,"DC16",774,null,null,null,null,null,null,null,null,null,null,null,null,null,null,null,null,null,null,"~"]
["SA37",2021,"DC16",775,null,null,null,null,null,null,null,null,null,null,null,null,null,null,null,null,null,null,"~"]
["SA37",2021,"DC16",776,null,null,null,null,null,null,null,null,null,null,null,null,null,null,null,null,null,null,"~"]
["SA37",2021,"DC16",777,null,null,null,null,null,null,null,null,null,null,null,null,null,null,null,null,null,null,"~"]
["SA37",2021,"DC16",778,null,null,null,null,null,null,null,null,null,null,null,null,null,null,null,null,null,null,"~"]
["SA37",2021,"DC16",779,null,null,null,null,null,null,null,null,null,null,null,null,null,null,null,null,null,null,"~"]
["SA37",2021,"DC16",780,null,null,null,null,null,null,null,null,null,null,null,null,null,null,null,null,null,null,"~"]
["SA37",2021,"DC16",781,null,null,null,null,null,null,null,null,null,null,null,null,null,null,null,null,null,null,"~"]
["SA37",2021,"DC16",782,null,null,null,null,null,null,null,null,null,null,null,null,null,null,null,null,null,null,"~"]
["SA37",2021,"DC16",783,null,null,null,null,null,null,null,null,null,null,null,null,null,null,null,null,null,null,"~"]
["SA37",2021,"DC16",784,null,null,null,null,null,null,null,null,null,null,null,null,null,null,null,null,null,null,"~"]
["SA37",2021,"DC16",785,null,null,null,null,null,null,null,null,null,null,null,null,null,null,null,null,null,null,"~"]
["SA37",2021,"DC16",786,null,null,null,null,null,null,null,null,null,null,null,null,null,null,null,null,null,null,"~"]
["SA37",2021,"DC16",787,null,null,null,null,null,null,null,null,null,null,null,null,null,null,null,null,null,null,"~"]
["SA37",2021,"DC16",788,null,null,null,null,null,null,null,null,null,null,null,null,null,null,null,null,null,null,"~"]
["SA37",2021,"DC16",789,null,null,null,null,null,null,null,null,null,null,null,null,null,null,null,null,null,null,"~"]
["SA37",2021,"DC16",790,null,null,null,null,null,null,null,null,null,null,null,null,null,null,null,null,null,null,"~"]
["SA37",2021,"DC16",791,null,null,null,null,null,null,null,null,null,null,null,null,null,null,null,null,null,null,"~"]
["SA37",2021,"DC16",792,null,null,null,null,null,null,null,null,null,null,null,null,null,null,null,null,null,null,"~"]
["SA37",2021,"DC16",793,null,null,null,null,null,null,null,null,null,null,null,null,null,null,null,null,null,null,"~"]
["SA37",2021,"DC16",794,null,null,null,null,null,null,null,null,null,null,null,null,null,null,null,null,null,null,"~"]
["SA37",2021,"DC16",795,null,null,null,null,null,null,null,null,null,null,null,null,null,null,null,null,null,null,"~"]
["SA37",2021,"DC16",796,null,null,null,null,null,null,null,null,null,null,null,null,null,null,null,null,null,null,"~"]
["SA37",2021,"DC16",797,null,null,null,null,null,null,null,null,null,null,null,null,null,null,null,null,null,null,"~"]
["SA37",2021,"DC16",798,null,null,null,null,null,null,null,null,null,null,null,null,null,null,null,null,null,null,"~"]
["SA37",2021,"DC16",799,null,null,null,null,null,null,null,null,null,null,null,null,null,null,null,null,null,null,"~"]
["SA37",2021,"DC16",800,null,null,null,null,null,null,null,null,null,null,null,null,null,null,null,null,null,null,"~"]
["SA37",2021,"DC16",801,null,null,null,null,null,null,null,null,null,null,null,null,null,null,null,null,null,null,"~"]
["SA37",2021,"DC16",802,null,null,null,null,null,null,null,null,null,null,null,null,null,null,null,null,null,null,"~"]
["SA37",2021,"DC16",803,null,null,null,null,null,null,null,null,null,null,null,null,null,null,null,null,null,null,"~"]
["SA37",2021,"DC16",804,null,null,null,null,null,null,null,null,null,null,null,null,null,null,null,null,null,null,"~"]
["SA37",2021,"DC16",805,null,null,null,null,null,null,null,null,null,null,null,null,null,null,null,null,null,null,"~"]
["SA37",2021,"DC16",806,null,null,null,null,null,null,null,null,null,null,null,null,null,null,null,null,null,null,"~"]
["SA37",2021,"DC16",807,null,null,null,null,null,null,null,null,null,null,null,null,null,null,null,null,null,null,"~"]
["SA37",2021,"DC16",808,null,null,null,null,null,null,null,null,null,null,null,null,null,null,null,null,null,null,"~"]
["SA37",2021,"DC16",809,null,null,null,null,null,null,null,null,null,null,null,null,null,null,null,null,null,null,"~"]
["SA37",2021,"DC16",810,null,null,null,null,null,null,null,null,null,null,null,null,null,null,null,null,null,null,"~"]
["SA37",2021,"DC16",811,null,null,null,null,null,null,null,null,null,null,null,null,null,null,null,null,null,null,"~"]
["SA37",2021,"DC16",812,null,null,null,null,null,null,null,null,null,null,null,null,null,null,null,null,null,null,"~"]
["SA37",2021,"DC16",813,null,null,null,null,null,null,null,null,null,null,null,null,null,null,null,null,null,null,"~"]
["SA37",2021,"DC16",814,null,null,null,null,null,null,null,null,null,null,null,null,null,null,null,null,null,null,"~"]
["SA37",2021,"DC16",815,null,null,null,null,null,null,null,null,null,null,null,null,null,null,null,null,null,null,"~"]
["SA37",{"$f":"+MTREF","v":2021},{"$f":"LEFT(muni,(FIND(\" \",muni,1)-1))","v":"DC16"},816,null,null,null,null,null,null,null,null,null,null,null,null,null,null,null,null,null,null,"~"]
["SA37",2021,"DC16",817,null,null,null,null,null,null,null,null,null,null,null,null,null,null,null,null,null,null,"~"]
["SA37",2021,"DC16",818,null,null,null,null,null,null,null,null,null,null,null,null,null,null,null,null,null,null,"~"]
["SA37",2021,"DC16",819,null,null,null,null,null,null,null,null,null,null,null,null,null,null,null,null,null,null,"~"]
["SA37",2021,"DC16",820,null,null,null,null,null,null,null,null,null,null,null,null,null,null,null,null,null,null,"~"]
["SA37",2021,"DC16",821,null,null,null,null,null,null,null,null,null,null,null,null,null,null,null,null,null,null,"~"]
["SA37",2021,"DC16",822,null,null,null,null,null,null,null,null,null,null,null,null,null,null,null,null,null,null,"~"]
["SA37",2021,"DC16",823,null,null,null,null,null,null,null,null,null,null,null,null,null,null,null,null,null,null,"~"]
["SA37",2021,"DC16",824,null,null,null,null,null,null,null,null,null,null,null,null,null,null,null,null,null,null,"~"]
["SA37",2021,"DC16",825,null,null,null,null,null,null,null,null,null,null,null,null,null,null,null,null,null,null,"~"]
["SA37",2021,"DC16",826,null,null,null,null,null,null,null,null,null,null,null,null,null,null,null,null,null,null,"~"]
["SA37",2021,"DC16",827,null,null,null,null,null,null,null,null,null,null,null,null,null,null,null,null,null,null,"~"]
["SA37",2021,"DC16",828,null,null,null,null,null,null,null,null,null,null,null,null,null,null,null,null,null,null,"~"]
["SA37",2021,"DC16",829,null,null,null,null,null,null,null,null,null,null,null,null,null,null,null,null,null,null,"~"]
["SA37",2021,"DC16",830,null,null,null,null,null,null,null,null,null,null,null,null,null,null,null,null,null,null,"~"]
["SA37",2021,"DC16",831,null,null,null,null,null,null,null,null,null,null,null,null,null,null,null,null,null,null,"~"]
["SA37",2021,"DC16",832,null,null,null,null,null,null,null,null,null,null,null,null,null,null,null,null,null,null,"~"]
["SA37",2021,"DC16",833,null,null,null,null,null,null,null,null,null,null,null,null,null,null,null,null,null,null,"~"]
["SA37",2021,"DC16",834,null,null,null,null,null,null,null,null,null,null,null,null,null,null,null,null,null,null,"~"]
["SA37",2021,"DC16",835,null,null,null,null,null,null,null,null,null,null,null,null,null,null,null,null,null,null,"~"]
["SA37",2021,"DC16",836,null,null,null,null,null,null,null,null,null,null,null,null,null,null,null,null,null,null,"~"]
["SA37",2021,"DC16",837,null,null,null,null,null,null,null,null,null,null,null,null,null,null,null,null,null,null,"~"]
["SA37",2021,"DC16",838,null,null,null,null,null,null,null,null,null,null,null,null,null,null,null,null,null,null,"~"]
["SA37",2021,"DC16",839,null,null,null,null,null,null,null,null,null,null,null,null,null,null,null,null,null,null,"~"]
["SA37",2021,"DC16",840,null,null,null,null,null,null,null,null,null,null,null,null,null,null,null,null,null,null,"~"]
["SA37",2021,"DC16",841,null,null,null,null,null,null,null,null,null,null,null,null,null,null,null,null,null,null,"~"]
["SA37",2021,"DC16",842,null,null,null,null,null,null,null,null,null,null,null,null,null,null,null,null,null,null,"~"]
["SA37",2021,"DC16",843,null,null,null,null,null,null,null,null,null,null,null,null,null,null,null,null,null,null,"~"]
["SA37",2021,"DC16",844,null,null,null,null,null,null,null,null,null,null,null,null,null,null,null,null,null,null,"~"]
["SA37",2021,"DC16",845,null,null,null,null,null,null,null,null,null,null,null,null,null,null,null,null,null,null,"~"]
["SA37",2021,"DC16",846,null,null,null,null,null,null,null,null,null,null,null,null,null,null,null,null,null,null,"~"]
["SA37",2021,"DC16",847,null,null,null,null,null,null,null,null,null,null,null,null,null,null,null,null,null,null,"~"]
["SA37",2021,"DC16",848,null,null,null,null,null,null,null,null,null,null,null,null,null,null,null,null,null,null,"~"]
["SA37",2021,"DC16",849,null,null,null,null,null,null,null,null,null,null,null,null,null,null,null,null,null,null,"~"]
["SA37",2021,"DC16",850,null,null,null,null,null,null,null,null,null,null,null,null,null,null,null,null,null,null,"~"]
["SA37",2021,"DC16",851,null,null,null,null,null,null,null,null,null,null,null,null,null,null,null,null,null,null,"~"]
["SA37",2021,"DC16",852,null,null,null,null,null,null,null,null,null,null,null,null,null,null,null,null,null,null,"~"]
["SA37",2021,"DC16",853,null,null,null,null,null,null,null,null,null,null,null,null,null,null,null,null,null,null,"~"]
["SA37",2021,"DC16",854,null,null,null,null,null,null,null,null,null,null,null,null,null,null,null,null,null,null,"~"]
["SA37",2021,"DC16",855,null,null,null,null,null,null,null,null,null,null,null,null,null,null,null,null,null,null,"~"]
["SA37",2021,"DC16",856,null,null,null,null,null,null,null,null,null,null,null,null,null,null,null,null,null,null,"~"]
["SA37",2021,"DC16",857,null,null,null,null,null,null,null,null,null,null,null,null,null,null,null,null,null,null,"~"]
["SA37",2021,"DC16",858,null,null,null,null,null,null,null,null,null,null,null,null,null,null,null,null,null,null,"~"]
["SA37",2021,"DC16",859,null,null,null,null,null,null,null,null,null,null,null,null,null,null,null,null,null,null,"~"]
["SA37",2021,"DC16",860,null,null,null,null,null,null,null,null,null,null,null,null,null,null,null,null,null,null,"~"]
["SA37",2021,"DC16",861,null,null,null,null,null,null,null,null,null,null,null,null,null,null,null,null,null,null,"~"]
["SA37",2021,"DC16",862,null,null,null,null,null,null,null,null,null,null,null,null,null,null,null,null,null,null,"~"]
["SA37",2021,"DC16",863,null,null,null,null,null,null,null,null,null,null,null,null,null,null,null,null,null,null,"~"]
["SA37",2021,"DC16",864,null,null,null,null,null,null,null,null,null,null,null,null,null,null,null,null,null,null,"~"]
["SA37",2021,"DC16",865,null,null,null,null,null,null,null,null,null,null,null,null,null,null,null,null,null,null,"~"]
["SA37",2021,"DC16",866,null,null,null,null,null,null,null,null,null,null,null,null,null,null,null,null,null,null,"~"]
["SA37",2021,"DC16",867,null,null,null,null,null,null,null,null,null,null,null,null,null,null,null,null,null,null,"~"]
["SA37",2021,"DC16",868,null,null,null,null,null,null,null,null,null,null,null,null,null,null,null,null,null,null,"~"]
["SA37",2021,"DC16",869,null,null,null,null,null,null,null,null,null,null,null,null,null,null,null,null,null,null,"~"]
["SA37",2021,"DC16",870,null,null,null,null,null,null,null,null,null,null,null,null,null,null,null,null,null,null,"~"]
["SA37",2021,"DC16",871,null,null,null,null,null,null,null,null,null,null,null,null,null,null,null,null,null,null,"~"]
["SA37",2021,"DC16",872,null,null,null,null,null,null,null,null,null,null,null,null,null,null,null,null,null,null,"~"]
["SA37",2021,"DC16",873,null,null,null,null,null,null,null,null,null,null,null,null,null,null,null,null,null,null,"~"]
["SA37",2021,"DC16",874,null,null,null,null,null,null,null,null,null,null,null,null,null,null,null,null,null,null,"~"]
["SA37",2021,"DC16",875,null,null,null,null,null,null,null,null,null,null,null,null,null,null,null,null,null,null,"~"]
["SA37",2021,"DC16",876,null,null,null,null,null,null,null,null,null,null,null,null,null,null,null,null,null,null,"~"]
["SA37",2021,"DC16",877,null,null,null,null,null,null,null,null,null,null,null,null,null,null,null,null,null,null,"~"]
["SA37",2021,"DC16",878,null,null,null,null,null,null,null,null,null,null,null,null,null,null,null,null,null,null,"~"]
["SA37",2021,"DC16",879,null,null,null,null,null,null,null,null,null,null,null,null,null,null,null,null,null,null,"~"]
["SA37",{"$f":"+MTREF","v":2021},{"$f":"LEFT(muni,(FIND(\" \",muni,1)-1))","v":"DC16"},880,null,null,null,null,null,null,null,null,null,null,null,null,null,null,null,null,null,null,"~"]
["SA37",2021,"DC16",881,null,null,null,null,null,null,null,null,null,null,null,null,null,null,null,null,null,null,"~"]
["SA37",2021,"DC16",882,null,null,null,null,null,null,null,null,null,null,null,null,null,null,null,null,null,null,"~"]
["SA37",2021,"DC16",883,null,null,null,null,null,null,null,null,null,null,null,null,null,null,null,null,null,null,"~"]
["SA37",2021,"DC16",884,null,null,null,null,null,null,null,null,null,null,null,null,null,null,null,null,null,null,"~"]
["SA37",2021,"DC16",885,null,null,null,null,null,null,null,null,null,null,null,null,null,null,null,null,null,null,"~"]
["SA37",2021,"DC16",886,null,null,null,null,null,null,null,null,null,null,null,null,null,null,null,null,null,null,"~"]
["SA37",2021,"DC16",887,null,null,null,null,null,null,null,null,null,null,null,null,null,null,null,null,null,null,"~"]
["SA37",2021,"DC16",888,null,null,null,null,null,null,null,null,null,null,null,null,null,null,null,null,null,null,"~"]
["SA37",2021,"DC16",889,null,null,null,null,null,null,null,null,null,null,null,null,null,null,null,null,null,null,"~"]
["SA37",2021,"DC16",890,null,null,null,null,null,null,null,null,null,null,null,null,null,null,null,null,null,null,"~"]
["SA37",2021,"DC16",891,null,null,null,null,null,null,null,null,null,null,null,null,null,null,null,null,null,null,"~"]
["SA37",2021,"DC16",892,null,null,null,null,null,null,null,null,null,null,null,null,null,null,null,null,null,null,"~"]
["SA37",2021,"DC16",893,null,null,null,null,null,null,null,null,null,null,null,null,null,null,null,null,null,null,"~"]
["SA37",2021,"DC16",894,null,null,null,null,null,null,null,null,null,null,null,null,null,null,null,null,null,null,"~"]
["SA37",2021,"DC16",895,null,null,null,null,null,null,null,null,null,null,null,null,null,null,null,null,null,null,"~"]
["SA37",2021,"DC16",896,null,null,null,null,null,null,null,null,null,null,null,null,null,null,null,null,null,null,"~"]
["SA37",2021,"DC16",897,null,null,null,null,null,null,null,null,null,null,null,null,null,null,null,null,null,null,"~"]
["SA37",2021,"DC16",898,null,null,null,null,null,null,null,null,null,null,null,null,null,null,null,null,null,null,"~"]
["SA37",2021,"DC16",899,null,null,null,null,null,null,null,null,null,null,null,null,null,null,null,null,null,null,"~"]
["SA37",2021,"DC16",900,null,null,null,null,null,null,null,null,null,null,null,null,null,null,null,null,null,null,"~"]
["SA37",2021,"DC16",901,null,null,null,null,null,null,null,null,null,null,null,null,null,null,null,null,null,null,"~"]
["SA37",2021,"DC16",902,null,null,null,null,null,null,null,null,null,null,null,null,null,null,null,null,null,null,"~"]
["SA37",2021,"DC16",903,null,null,null,null,null,null,null,null,null,null,null,null,null,null,null,null,null,null,"~"]
["SA37",2021,"DC16",904,null,null,null,null,null,null,null,null,null,null,null,null,null,null,null,null,null,null,"~"]
["SA37",2021,"DC16",905,null,null,null,null,null,null,null,null,null,null,null,null,null,null,null,null,null,null,"~"]
["SA37",2021,"DC16",906,null,null,null,null,null,null,null,null,null,null,null,null,null,null,null,null,null,null,"~"]
["SA37",2021,"DC16",907,null,null,null,null,null,null,null,null,null,null,null,null,null,null,null,null,null,null,"~"]
["SA37",2021,"DC16",908,null,null,null,null,null,null,null,null,null,null,null,null,null,null,null,null,null,null,"~"]
["SA37",2021,"DC16",909,null,null,null,null,null,null,null,null,null,null,null,null,null,null,null,null,null,null,"~"]
["SA37",2021,"DC16",910,null,null,null,null,null,null,null,null,null,null,null,null,null,null,null,null,null,null,"~"]
["SA37",2021,"DC16",911,null,null,null,null,null,null,null,null,null,null,null,null,null,null,null,null,null,null,"~"]
["SA37",2021,"DC16",912,null,null,null,null,null,null,null,null,null,null,null,null,null,null,null,null,null,null,"~"]
["SA37",2021,"DC16",913,null,null,null,null,null,null,null,null,null,null,null,null,null,null,null,null,null,null,"~"]
["SA37",2021,"DC16",914,null,null,null,null,null,null,null,null,null,null,null,null,null,null,null,null,null,null,"~"]
["SA37",2021,"DC16",915,null,null,null,null,null,null,null,null,null,null,null,null,null,null,null,null,null,null,"~"]
["SA37",2021,"DC16",916,null,null,null,null,null,null,null,null,null,null,null,null,null,null,null,null,null,null,"~"]
["SA37",2021,"DC16",917,null,null,null,null,null,null,null,null,null,null,null,null,null,null,null,null,null,null,"~"]
["SA37",2021,"DC16",918,null,null,null,null,null,null,null,null,null,null,null,null,null,null,null,null,null,null,"~"]
["SA37",2021,"DC16",919,null,null,null,null,null,null,null,null,null,null,null,null,null,null,null,null,null,null,"~"]
["SA37",2021,"DC16",920,null,null,null,null,null,null,null,null,null,null,null,null,null,null,null,null,null,null,"~"]
["SA37",2021,"DC16",921,null,null,null,null,null,null,null,null,null,null,null,null,null,null,null,null,null,null,"~"]
["SA37",2021,"DC16",922,null,null,null,null,null,null,null,null,null,null,null,null,null,null,null,null,null,null,"~"]
["SA37",2021,"DC16",923,null,null,null,null,null,null,null,null,null,null,null,null,null,null,null,null,null,null,"~"]
["SA37",2021,"DC16",924,null,null,null,null,null,null,null,null,null,null,null,null,null,null,null,null,null,null,"~"]
["SA37",2021,"DC16",925,null,null,null,null,null,null,null,null,null,null,null,null,null,null,null,null,null,null,"~"]
["SA37",2021,"DC16",926,null,null,null,null,null,null,null,null,null,null,null,null,null,null,null,null,null,null,"~"]
["SA37",2021,"DC16",927,null,null,null,null,null,null,null,null,null,null,null,null,null,null,null,null,null,null,"~"]
["SA37",2021,"DC16",928,null,null,null,null,null,null,null,null,null,null,null,null,null,null,null,null,null,null,"~"]
["SA37",2021,"DC16",929,null,null,null,null,null,null,null,null,null,null,null,null,null,null,null,null,null,null,"~"]
["SA37",2021,"DC16",930,null,null,null,null,null,null,null,null,null,null,null,null,null,null,null,null,null,null,"~"]
["SA37",2021,"DC16",931,null,null,null,null,null,null,null,null,null,null,null,null,null,null,null,null,null,null,"~"]
["SA37",2021,"DC16",932,null,null,null,null,null,null,null,null,null,null,null,null,null,null,null,null,null,null,"~"]
["SA37",2021,"DC16",933,null,null,null,null,null,null,null,null,null,null,null,null,null,null,null,null,null,null,"~"]
["SA37",2021,"DC16",934,null,null,null,null,null,null,null,null,null,null,null,null,null,null,null,null,null,null,"~"]
["SA37",2021,"DC16",935,null,null,null,null,null,null,null,null,null,null,null,null,null,null,null,null,null,null,"~"]
["SA37",2021,"DC16",936,null,null,null,null,null,null,null,null,null,null,null,null,null,null,null,null,null,null,"~"]
["SA37",2021,"DC16",937,null,null,null,null,null,null,null,null,null,null,null,null,null,null,null,null,null,null,"~"]
["SA37",2021,"DC16",938,null,null,null,null,null,null,null,null,null,null,null,null,null,null,null,null,null,null,"~"]
["SA37",2021,"DC16",939,null,null,null,null,null,null,null,null,null,null,null,null,null,null,null,null,null,null,"~"]
["SA37",2021,"DC16",940,null,null,null,null,null,null,null,null,null,null,null,null,null,null,null,null,null,null,"~"]
["SA37",2021,"DC16",941,null,null,null,null,null,null,null,null,null,null,null,null,null,null,null,null,null,null,"~"]
["SA37",2021,"DC16",942,null,null,null,null,null,null,null,null,null,null,null,null,null,null,null,null,null,null,"~"]
["SA37",2021,"DC16",943,null,null,null,null,null,null,null,null,null,null,null,null,null,null,null,null,null,null,"~"]
["SA37",{"$f":"+MTREF","v":2021},{"$f":"LEFT(muni,(FIND(\" \",muni,1)-1))","v":"DC16"},944,null,null,null,null,null,null,null,null,null,null,null,null,null,null,null,null,null,null,"~"]
["SA37",2021,"DC16",945,null,null,null,null,null,null,null,null,null,null,null,null,null,null,null,null,null,null,"~"]
["SA37",2021,"DC16",946,null,null,null,null,null,null,null,null,null,null,null,null,null,null,null,null,null,null,"~"]
["SA37",2021,"DC16",947,null,null,null,null,null,null,null,null,null,null,null,null,null,null,null,null,null,null,"~"]
["SA37",2021,"DC16",948,null,null,null,null,null,null,null,null,null,null,null,null,null,null,null,null,null,null,"~"]
["SA37",2021,"DC16",949,null,null,null,null,null,null,null,null,null,null,null,null,null,null,null,null,null,null,"~"]
["SA37",2021,"DC16",950,null,null,null,null,null,null,null,null,null,null,null,null,null,null,null,null,null,null,"~"]
["SA37",2021,"DC16",951,null,null,null,null,null,null,null,null,null,null,null,null,null,null,null,null,null,null,"~"]
["SA37",2021,"DC16",952,null,null,null,null,null,null,null,null,null,null,null,null,null,null,null,null,null,null,"~"]
["SA37",2021,"DC16",953,null,null,null,null,null,null,null,null,null,null,null,null,null,null,null,null,null,null,"~"]
["SA37",2021,"DC16",954,null,null,null,null,null,null,null,null,null,null,null,null,null,null,null,null,null,null,"~"]
["SA37",2021,"DC16",955,null,null,null,null,null,null,null,null,null,null,null,null,null,null,null,null,null,null,"~"]
["SA37",2021,"DC16",956,null,null,null,null,null,null,null,null,null,null,null,null,null,null,null,null,null,null,"~"]
["SA37",2021,"DC16",957,null,null,null,null,null,null,null,null,null,null,null,null,null,null,null,null,null,null,"~"]
["SA37",2021,"DC16",958,null,null,null,null,null,null,null,null,null,null,null,null,null,null,null,null,null,null,"~"]
["SA37",2021,"DC16",959,null,null,null,null,null,null,null,null,null,null,null,null,null,null,null,null,null,null,"~"]
["SA37",2021,"DC16",960,null,null,null,null,null,null,null,null,null,null,null,null,null,null,null,null,null,null,"~"]
["SA37",2021,"DC16",961,null,null,null,null,null,null,null,null,null,null,null,null,null,null,null,null,null,null,"~"]
["SA37",2021,"DC16",962,null,null,null,null,null,null,null,null,null,null,null,null,null,null,null,null,null,null,"~"]
["SA37",2021,"DC16",963,null,null,null,null,null,null,null,null,null,null,null,null,null,null,null,null,null,null,"~"]
["SA37",2021,"DC16",964,null,null,null,null,null,null,null,null,null,null,null,null,null,null,null,null,null,null,"~"]
["SA37",2021,"DC16",965,null,null,null,null,null,null,null,null,null,null,null,null,null,null,null,null,null,null,"~"]
["SA37",2021,"DC16",966,null,null,null,null,null,null,null,null,null,null,null,null,null,null,null,null,null,null,"~"]
["SA37",2021,"DC16",967,null,null,null,null,null,null,null,null,null,null,null,null,null,null,null,null,null,null,"~"]
["SA37",2021,"DC16",968,null,null,null,null,null,null,null,null,null,null,null,null,null,null,null,null,null,null,"~"]
["SA37",2021,"DC16",969,null,null,null,null,null,null,null,null,null,null,null,null,null,null,null,null,null,null,"~"]
["SA37",2021,"DC16",970,null,null,null,null,null,null,null,null,null,null,null,null,null,null,null,null,null,null,"~"]
["SA37",2021,"DC16",971,null,null,null,null,null,null,null,null,null,null,null,null,null,null,null,null,null,null,"~"]
["SA37",2021,"DC16",972,null,null,null,null,null,null,null,null,null,null,null,null,null,null,null,null,null,null,"~"]
["SA37",2021,"DC16",973,null,null,null,null,null,null,null,null,null,null,null,null,null,null,null,null,null,null,"~"]
["SA37",2021,"DC16",974,null,null,null,null,null,null,null,null,null,null,null,null,null,null,null,null,null,null,"~"]
["SA37",2021,"DC16",975,null,null,null,null,null,null,null,null,null,null,null,null,null,null,null,null,null,null,"~"]
["SA37",2021,"DC16",976,null,null,null,null,null,null,null,null,null,null,null,null,null,null,null,null,null,null,"~"]
["SA37",2021,"DC16",977,null,null,null,null,null,null,null,null,null,null,null,null,null,null,null,null,null,null,"~"]
["SA37",2021,"DC16",978,null,null,null,null,null,null,null,null,null,null,null,null,null,null,null,null,null,null,"~"]
["SA37",2021,"DC16",979,null,null,null,null,null,null,null,null,null,null,null,null,null,null,null,null,null,null,"~"]
["SA37",2021,"DC16",980,null,null,null,null,null,null,null,null,null,null,null,null,null,null,null,null,null,null,"~"]
["SA37",2021,"DC16",981,null,null,null,null,null,null,null,null,null,null,null,null,null,null,null,null,null,null,"~"]
["SA37",2021,"DC16",982,null,null,null,null,null,null,null,null,null,null,null,null,null,null,null,null,null,null,"~"]
["SA37",2021,"DC16",983,null,null,null,null,null,null,null,null,null,null,null,null,null,null,null,null,null,null,"~"]
["SA37",2021,"DC16",984,null,null,null,null,null,null,null,null,null,null,null,null,null,null,null,null,null,null,"~"]
["SA37",2021,"DC16",985,null,null,null,null,null,null,null,null,null,null,null,null,null,null,null,null,null,null,"~"]
["SA37",2021,"DC16",986,null,null,null,null,null,null,null,null,null,null,null,null,null,null,null,null,null,null,"~"]
["SA37",2021,"DC16",987,null,null,null,null,null,null,null,null,null,null,null,null,null,null,null,null,null,null,"~"]
["SA37",2021,"DC16",988,null,null,null,null,null,null,null,null,null,null,null,null,null,null,null,null,null,null,"~"]
["SA37",2021,"DC16",989,null,null,null,null,null,null,null,null,null,null,null,null,null,null,null,null,null,null,"~"]
["SA37",2021,"DC16",990,null,null,null,null,null,null,null,null,null,null,null,null,null,null,null,null,null,null,"~"]
["SA37",2021,"DC16",991,null,null,null,null,null,null,null,null,null,null,null,null,null,null,null,null,null,null,"~"]
["SA37",2021,"DC16",992,null,null,null,null,null,null,null,null,null,null,null,null,null,null,null,null,null,null,"~"]
["SA37",2021,"DC16",993,null,null,null,null,null,null,null,null,null,null,null,null,null,null,null,null,null,null,"~"]
["SA37",2021,"DC16",994,null,null,null,null,null,null,null,null,null,null,null,null,null,null,null,null,null,null,"~"]
["SA37",2021,"DC16",995,null,null,null,null,null,null,null,null,null,null,null,null,null,null,null,null,null,null,"~"]
["SA37",2021,"DC16",996,null,null,null,null,null,null,null,null,null,null,null,null,null,null,null,null,null,null,"~"]
["SA37",2021,"DC16",997,null,null,null,null,null,null,null,null,null,null,null,null,null,null,null,null,null,null,"~"]
["SA37",2021,"DC16",998,null,null,null,null,null,null,null,null,null,null,null,null,null,null,null,null,null,null,"~"]
["SA37",2021,"DC16",999,null,null,null,null,null,null,null,null,null,null,null,null,null,null,null,null,null,null,"~"]
["SA37",2021,"DC16",1000,null,null,null,null,null,null,null,null,null,null,null,null,null,null,null,null,null,null,"~"]
["CONTACT",2021,"DC16",1,null,null,null,null,null,null,null,null,null,null,null,null,null,null,null,null,null,null,"~"]
["CONTACT",2021,"DC16",2,null,null,null,null,null,null,null,null,null,null,null,null,null,null,null,null,null,null,"~"]
["CONTACT",2021,"DC16",3,null,null,null,null,null,null,null,null,null,null,null,null,null,null,null,null,null,null,"~"]
["CONTACT",2021,"DC16",4,null,null,null,null,null,null,null,null,null,null,null,null,null,null,null,null,null,null,"~"]
["CONTACT",2021,"DC16",5,null,null,null,null,null,null,null,null,null,null,null,null,null,null,null,null,null,null,"~"]
["CONTACT",2021,"DC16",6,null,null,null,null,null,null,null,null,null,null,null,null,null,null,null,null,null,null,"~"]
["CONTACT",2021,"DC16",7,null,null,null,null,null,null,null,null,null,null,null,null,null,null,null,null,null,null,"~"]
["CONTACT",{"$f":"+MTREF","v":2021},{"$f":"LEFT(muni,(FIND(\" \",muni,1)-1))","v":"DC16"},8,null,null,null,null,null,null,null,null,null,null,null,null,null,null,null,null,null,null,"~"]
["CONTACT",2021,"DC16",9,null,null,null,null,null,null,null,null,null,null,null,null,null,null,null,null,null,null,"~"]
["CONTACT",2021,"DC16",10,null,null,null,null,null,null,null,null,null,null,null,null,null,null,null,null,null,null,"~"]
["CONTACT",2021,"DC16",11,null,null,null,null,null,null,null,null,null,null,null,null,null,null,null,null,null,null,"~"]
["CONTACT",2021,"DC16",12,null,null,null,null,null,null,null,null,null,null,null,null,null,null,null,null,null,null,"~"]
["CONTACT",2021,"DC16",13,null,null,null,null,null,null,null,null,null,null,null,null,null,null,null,null,null,null,"~"]
["CONTACT",2021,"DC16",14,null,null,null,null,null,null,null,null,null,null,null,null,null,null,null,null,null,null,"~"]
["CONTACT",2021,"DC16",15,null,null,null,null,null,null,null,null,null,null,null,null,null,null,null,null,null,null,"~"]
["CONTACT",2021,"DC16",16,null,null,null,null,null,null,null,null,null,null,null,null,null,null,null,null,null,null,"~"]
["CONTACT",2021,"DC16",17,null,null,null,null,null,null,null,null,null,null,null,null,null,null,null,null,null,null,"~"]
["CONTACT",2021,"DC16",18,null,null,null,null,null,null,null,null,null,null,null,null,null,null,null,null,null,null,"~"]
["CONTACT",2021,"DC16",19,null,null,null,null,null,null,null,null,null,null,null,null,null,null,null,null,null,null,"~"]
["CONTACT",2021,"DC16",20,null,null,null,null,null,null,null,null,null,null,null,null,null,null,null,null,null,null,"~"]
["CONTACT",2021,"DC16",21,null,null,null,null,null,null,null,null,null,null,null,null,null,null,null,null,null,null,"~"]
["CONTACT",2021,"DC16",22,null,null,null,null,null,null,null,null,null,null,null,null,null,null,null,null,null,null,"~"]
["CONTACT",2021,"DC16",23,null,null,null,null,null,null,null,null,null,null,null,null,null,null,null,null,null,null,"~"]
["CONTACT",2021,"DC16",24,null,null,null,null,null,null,null,null,null,null,null,null,null,null,null,null,null,null,"~"]
["CONTACT",2021,"DC16",25,null,null,null,null,null,null,null,null,null,null,null,null,null,null,null,null,null,null,"~"]
["CONTACT",2021,"DC16",26,null,null,null,null,null,null,null,null,null,null,null,null,null,null,null,null,null,null,"~"]
["CONTACT",2021,"DC16",27,null,null,null,null,null,null,null,null,null,null,null,null,null,null,null,null,null,null,"~"]
["CONTACT",2021,"DC16",28,null,null,null,null,null,null,null,null,null,null,null,null,null,null,null,null,null,null,"~"]
["CONTACT",2021,"DC16",29,null,null,null,null,null,null,null,null,null,null,null,null,null,null,null,null,null,null,"~"]
["CONTACT",2021,"DC16",30,null,null,null,null,null,null,null,null,null,null,null,null,null,null,null,null,null,null,"~"]
["CONTACT",2021,"DC16",31,null,null,null,null,null,null,null,null,null,null,null,null,null,null,null,null,null,null,"~"]
["CONTACT",2021,"DC16",32,null,null,null,null,null,null,null,null,null,null,null,null,null,null,null,null,null,null,"~"]
["CONTACT",2021,"DC16",33,null,null,null,null,null,null,null,null,null,null,null,null,null,null,null,null,null,null,"~"]
["CONTACT",2021,"DC16",34,null,null,null,null,null,null,null,null,null,null,null,null,null,null,null,null,null,null,"~"]
["CONTACT",2021,"DC16",35,null,null,null,null,null,null,null,null,null,null,null,null,null,null,null,null,null,null,"~"]
["CONTACT",2021,"DC16",36,null,null,null,null,null,null,null,null,null,null,null,null,null,null,null,null,null,null,"~"]
["CONTACT",2021,"DC16",37,null,null,null,null,null,null,null,null,null,null,null,null,null,null,null,null,null,null,"~"]
["CONTACT",2021,"DC16",38,null,null,null,null,null,null,null,null,null,null,null,null,null,null,null,null,null,null,"~"]
["CONTACT",2021,"DC16",39,null,null,null,null,null,null,null,null,null,null,null,null,null,null,null,null,null,null,"~"]
["CONTACT",2021,"DC16",40,null,null,null,null,null,null,null,null,null,null,null,null,null,null,null,null,null,null,"~"]
["CONTACT",2021,"DC16",41,null,null,null,null,null,null,null,null,null,null,null,null,null,null,null,null,null,null,"~"]
["CONTACT",2021,"DC16",42,null,null,null,null,null,null,null,null,null,null,null,null,null,null,null,null,null,null,"~"]
["CONTACT",2021,"DC16",43,null,null,null,null,null,null,null,null,null,null,null,null,null,null,null,null,null,null,"~"]
["CONTACT",2021,"DC16",44,null,null,null,null,null,null,null,null,null,null,null,null,null,null,null,null,null,null,"~"]
["CONTACT",2021,"DC16",45,null,null,null,null,null,null,null,null,null,null,null,null,null,null,null,null,null,null,"~"]
["CONTACT",2021,"DC16",46,null,null,null,null,null,null,null,null,null,null,null,null,null,null,null,null,null,null,"~"]
["CONTACT",2021,"DC16",47,null,null,null,null,null,null,null,null,null,null,null,null,null,null,null,null,null,null,"~"]
["CONTACT",2021,"DC16",48,null,null,null,null,null,null,null,null,null,null,null,null,null,null,null,null,null,null,"~"]
["CONTACT",2021,"DC16",49,null,null,null,null,null,null,null,null,null,null,null,null,null,null,null,null,null,null,"~"]
["CONTACT",2021,"DC16",50,null,null,null,null,null,null,null,null,null,null,null,null,null,null,null,null,null,null,"~"]
["CONTACT",2021,"DC16",51,null,null,null,null,null,null,null,null,null,null,null,null,null,null,null,null,null,null,"~"]
["CONTACT",2021,"DC16",52,null,null,null,null,null,null,null,null,null,null,null,null,null,null,null,null,null,null,"~"]
["CONTACT",2021,"DC16",53,null,null,null,null,null,null,null,null,null,null,null,null,null,null,null,null,null,null,"~"]
["CONTACT",2021,"DC16",54,null,null,null,null,null,null,null,null,null,null,null,null,null,null,null,null,null,null,"~"]
["CONTACT",2021,"DC16",55,null,null,null,null,null,null,null,null,null,null,null,null,null,null,null,null,null,null,"~"]
["CONTACT",2021,"DC16",56,null,null,null,null,null,null,null,null,null,null,null,null,null,null,null,null,null,null,"~"]
["CONTACT",2021,"DC16",57,null,null,null,null,null,null,null,null,null,null,null,null,null,null,null,null,null,null,"~"]
["CONTACT",2021,"DC16",58,null,null,null,null,null,null,null,null,null,null,null,null,null,null,null,null,null,null,"~"]
["CONTACT",2021,"DC16",59,null,null,null,null,null,null,null,null,null,null,null,null,null,null,null,null,null,null,"~"]
["CONTACT",2021,"DC16",60,null,null,null,null,null,null,null,null,null,null,null,null,null,null,null,null,null,null,"~"]
["CONTACT",2021,"DC16",61,null,null,null,null,null,null,null,null,null,null,null,null,null,null,null,null,null,null,"~"]
["CONTACT",2021,"DC16",62,null,null,null,null,null,null,null,null,null,null,null,null,null,null,null,null,null,null,"~"]
["CONTACT",2021,"DC16",63,null,null,null,null,null,null,null,null,null,null,null,null,null,null,null,null,null,null,"~"]
["CONTACT",2021,"DC16",64,null,null,null,null,null,null,null,null,null,null,null,null,null,null,null,null,null,null,"~"]
["CONTACT",2021,"DC16",65,null,null,null,null,null,null,null,null,null,null,null,null,null,null,null,null,null,null,"~"]
["CONTACT",2021,"DC16",66,null,null,null,null,null,null,null,null,null,null,null,null,null,null,null,null,null,null,"~"]
["CONTACT",2021,"DC16",67,null,null,null,null,null,null,null,null,null,null,null,null,null,null,null,null,null,null,"~"]
["CONTACT",2021,"DC16",68,null,null,null,null,null,null,null,null,null,null,null,null,null,null,null,null,null,null,"~"]
["CONTACT",2021,"DC16",69,null,null,null,null,null,null,null,null,null,null,null,null,null,null,null,null,null,null,"~"]
["CONTACT",2021,"DC16",70,null,null,null,null,null,null,null,null,null,null,null,null,null,null,null,null,null,null,"~"]
["CONTACT",2021,"DC16",71,null,null,null,null,null,null,null,null,null,null,null,null,null,null,null,null,null,null,"~"]
["CONTACT",{"$f":"+MTREF","v":2021},{"$f":"LEFT(muni,(FIND(\" \",muni,1)-1))","v":"DC16"},72,null,null,null,null,null,null,null,null,null,null,null,null,null,null,null,null,null,null,"~"]
["CONTACT",2021,"DC16",73,null,null,null,null,null,null,null,null,null,null,null,null,null,null,null,null,null,null,"~"]
["CONTACT",2021,"DC16",74,null,null,null,null,null,null,null,null,null,null,null,null,null,null,null,null,null,null,"~"]
["CONTACT",2021,"DC16",75,null,null,null,null,null,null,null,null,null,null,null,null,null,null,null,null,null,null,"~"]
["CONTACT",2021,"DC16",76,null,null,null,null,null,null,null,null,null,null,null,null,null,null,null,null,null,null,"~"]
["CONTACT",2021,"DC16",77,null,null,null,null,null,null,null,null,null,null,null,null,null,null,null,null,null,null,"~"]
["CONTACT",2021,"DC16",78,null,null,null,null,null,null,null,null,null,null,null,null,null,null,null,null,null,null,"~"]
["CONTACT",2021,"DC16",79,null,null,null,null,null,null,null,null,null,null,null,null,null,null,null,null,null,null,"~"]
["CONTACT",2021,"DC16",80,null,null,null,null,null,null,null,null,null,null,null,null,null,null,null,null,null,null,"~"]
["CONTACT",2021,"DC16",81,null,null,null,null,null,null,null,null,null,null,null,null,null,null,null,null,null,null,"~"]
["CONTACT",2021,"DC16",82,null,null,null,null,null,null,null,null,null,null,null,null,null,null,null,null,null,null,"~"]
["CONTACT",2021,"DC16",83,null,null,null,null,null,null,null,null,null,null,null,null,null,null,null,null,null,null,"~"]
["CONTACT",2021,"DC16",84,null,null,null,null,null,null,null,null,null,null,null,null,null,null,null,null,null,null,"~"]
["CONTACT",2021,"DC16",85,null,null,null,null,null,null,null,null,null,null,null,null,null,null,null,null,null,null,"~"]
["CONTACT",2021,"DC16",86,null,null,null,null,null,null,null,null,null,null,null,null,null,null,null,null,null,null,"~"]
["CONTACT",2021,"DC16",87,null,null,null,null,null,null,null,null,null,null,null,null,null,null,null,null,null,null,"~"]
["CONTACT",2021,"DC16",88,null,null,null,null,null,null,null,null,null,null,null,null,null,null,null,null,null,null,"~"]
["CONTACT",2021,"DC16",89,null,null,null,null,null,null,null,null,null,null,null,null,null,null,null,null,null,null,"~"]
["CONTACT",2021,"DC16",90,null,null,null,null,null,null,null,null,null,null,null,null,null,null,null,null,null,null,"~"]
["CONTACT",2021,"DC16",91,null,null,null,null,null,null,null,null,null,null,null,null,null,null,null,null,null,null,"~"]
["CONTACT",2021,"DC16",92,null,null,null,null,null,null,null,null,null,null,null,null,null,null,null,null,null,null,"~"]
["CONTACT",2021,"DC16",93,null,null,null,null,null,null,null,null,null,null,null,null,null,null,null,null,null,null,"~"]
["CONTACT",2021,"DC16",94,null,null,null,null,null,null,null,null,null,null,null,null,null,null,null,null,null,null,"~"]
["CONTACT",2021,"DC16",95,null,null,null,null,null,null,null,null,null,null,null,null,null,null,null,null,null,null,"~"]
["CONTACT",2021,"DC16",96,null,null,null,null,null,null,null,null,null,null,null,null,null,null,null,null,null,null,"~"]
["CONTACT",2021,"DC16",97,null,null,null,null,null,null,null,null,null,null,null,null,null,null,null,null,null,null,"~"]
["CONTACT",2021,"DC16",98,null,null,null,null,null,null,null,null,null,null,null,null,null,null,null,null,null,null,"~"]
["CONTACT",2021,"DC16",99,null,null,null,null,null,null,null,null,null,null,null,null,null,null,null,null,null,null,"~"]
["CONTACT",2021,"DC16",100,null,null,null,null,null,null,null,null,null,null,null,null,null,null,null,null,null,null,"~"]
["CONTACT",2021,"DC16",101,null,null,null,null,null,null,null,null,null,null,null,null,null,null,null,null,null,null,"~"]
["CONTACT",2021,"DC16",102,null,null,null,null,null,null,null,null,null,null,null,null,null,null,null,null,null,null,"~"]
["CONTACT",2021,"DC16",103,null,null,null,null,null,null,null,null,null,null,null,null,null,null,null,null,null,null,"~"]
["CONTACT",2021,"DC16",104,null,null,null,null,null,null,null,null,null,null,null,null,null,null,null,null,null,null,"~"]
["CONTACT",2021,"DC16",105,null,null,null,null,null,null,null,null,null,null,null,null,null,null,null,null,null,null,"~"]
["CONTACT",2021,"DC16",106,null,null,null,null,null,null,null,null,null,null,null,null,null,null,null,null,null,null,"~"]
["CONTACT",2021,"DC16",107,null,null,null,null,null,null,null,null,null,null,null,null,null,null,null,null,null,null,"~"]
["CONTACT",2021,"DC16",108,null,null,null,null,null,null,null,null,null,null,null,null,null,null,null,null,null,null,"~"]
["CONTACT",2021,"DC16",109,null,null,null,null,null,null,null,null,null,null,null,null,null,null,null,null,null,null,"~"]
["CONTACT",2021,"DC16",110,null,null,null,null,null,null,null,null,null,null,null,null,null,null,null,null,null,null,"~"]
["CONTACT",2021,"DC16",111,null,null,null,null,null,null,null,null,null,null,null,null,null,null,null,null,null,null,"~"]
["CONTACT",2021,"DC16",112,null,null,null,null,null,null,null,null,null,null,null,null,null,null,null,null,null,null,"~"]
["CONTACT",2021,"DC16",113,null,null,null,null,null,null,null,null,null,null,null,null,null,null,null,null,null,null,"~"]
["CONTACT",2021,"DC16",114,null,null,null,null,null,null,null,null,null,null,null,null,null,null,null,null,null,null,"~"]
["CONTACT",2021,"DC16",115,null,null,null,null,null,null,null,null,null,null,null,null,null,null,null,null,null,null,"~"]
["CONTACT",2021,"DC16",116,null,null,null,null,null,null,null,null,null,null,null,null,null,null,null,null,null,null,"~"]
["CONTACT",2021,"DC16",117,null,null,null,null,null,null,null,null,null,null,null,null,null,null,null,null,null,null,"~"]
["CONTACT",2021,"DC16",118,null,null,null,null,null,null,null,null,null,null,null,null,null,null,null,null,null,null,"~"]
["CONTACT",2021,"DC16",119,null,null,null,null,null,null,null,null,null,null,null,null,null,null,null,null,null,null,"~"]
["CONTACT",2021,"DC16",120,null,null,null,null,null,null,null,null,null,null,null,null,null,null,null,null,null,null,"~"]
["CONTACT",2021,"DC16",121,null,null,null,null,null,null,null,null,null,null,null,null,null,null,null,null,null,null,"~"]
["CONTACT",2021,"DC16",122,null,null,null,null,null,null,null,null,null,null,null,null,null,null,null,null,null,null,"~"]
["CONTACT",2021,"DC16",123,null,null,null,null,null,null,null,null,null,null,null,null,null,null,null,null,null,null,"~"]
["CONTACT",2021,"DC16",124,null,null,null,null,null,null,null,null,null,null,null,null,null,null,null,null,null,null,"~"]
["CONTACT",2021,"DC16",125,null,null,null,null,null,null,null,null,null,null,null,null,null,null,null,null,null,null,"~"]
["CONTACT",2021,"DC16",126,null,null,null,null,null,null,null,null,null,null,null,null,null,null,null,null,null,null,"~"]
["CONTACT",2021,"DC16",127,null,null,null,null,null,null,null,null,null,null,null,null,null,null,null,null,null,null,"~"]
["CONTACT",2021,"DC16",128,null,null,null,null,null,null,null,null,null,null,null,null,null,null,null,null,null,null,"~"]
["CONTACT",2021,"DC16",129,null,null,null,null,null,null,null,null,null,null,null,null,null,null,null,null,null,null,"~"]
["CONTACT",2021,"DC16",130,null,null,null,null,null,null,null,null,null,null,null,null,null,null,null,null,null,null,"~"]
["CONTACT",2021,"DC16",131,null,null,null,null,null,null,null,null,null,null,null,null,null,null,null,null,null,null,"~"]
["CONTACT",2021,"DC16",132,null,null,null,null,null,null,null,null,null,null,null,null,null,null,null,null,null,null,"~"]
["CONTACT",2021,"DC16",133,null,null,null,null,null,null,null,null,null,null,null,null,null,null,null,null,null,null,"~"]
["CONTACT",2021,"DC16",134,null,null,null,null,null,null,null,null,null,null,null,null,null,null,null,null,null,null,"~"]
["CONTACT",2021,"DC16",135,null,null,null,null,null,null,null,null,null,null,null,null,null,null,null,null,null,null,"~"]
["CONTACT",2021,"DC16",136,null,null,null,null,null,null,null,null,null,null,null,null,null,null,null,null,null,null,"~"]
["CONTACT",2021,"DC16",137,null,null,null,null,null,null,null,null,null,null,null,null,null,null,null,null,null,null,"~"]
["CONTACT",2021,"DC16",138,null,null,null,null,null,null,null,null,null,null,null,null,null,null,null,null,null,null,"~"]
["SA25",2021,"DC16",0,1,"Revenue By Source",null,null,null,null,null,null,null,null,null,null,null,null,null,null,null,null,"~"]
["SA25",2021,"DC16",0,2,"Property rates",null,null,null,null,null,null,null,null,null,null,null,null,null,null,null,null,"~"]
["SA25",2021,"DC16",0,3,"Property rates - penalties & collection charges",null,null,null,null,null,null,null,null,null,null,null,null,null,null,null,null,"~"]
["SA25",2021,"DC16",0,4,"Service charges - electricity revenue",null,null,null,null,null,null,null,null,null,null,null,null,null,null,null,null,"~"]
["SA25",2021,"DC16",0,5,"Service charges - water revenue",null,null,null,null,null,null,null,null,null,null,null,null,null,null,null,null,"~"]
["SA25",2021,"DC16",0,6,"Service charges - sanitation revenue",null,null,null,null,null,null,null,null,null,null,null,null,null,null,null,null,"~"]
["SA25",2021,"DC16",0,7,"Service charges - refuse revenue",null,null,null,null,null,null,null,null,null,null,null,null,null,null,null,null,"~"]
["SA25",2021,"DC16",0,8,"Service charges - other",null,null,null,null,null,null,null,null,null,null,null,null,null,null,null,null,"~"]
["SA25",2021,"DC16",0,9,"Rental of facilities and equipment",null,null,null,null,null,null,null,null,null,null,null,null,null,null,null,null,"~"]
["SA25",2021,"DC16",0,10,"Interest earned - external investments",null,null,null,null,null,null,null,null,null,null,null,null,null,null,null,null,"~"]
["SA25",2021,"DC16",0,11,"Interest earned - outstanding debtors",null,null,null,null,null,null,null,null,null,null,null,null,null,null,null,null,"~"]
["SA25",2021,"DC16",0,12,"Dividends received",null,null,null,null,null,null,null,null,null,null,null,null,null,null,null,null,"~"]
["SA25",2021,"DC16",0,13,"Fines",null,null,null,null,null,null,null,null,null,null,null,null,null,null,null,null,"~"]
["SA25",2021,"DC16",0,14,"Licences and permits",null,null,null,null,null,null,null,null,null,null,null,null,null,null,null,null,"~"]
["SA25",2021,"DC16",0,15,"Agency services",null,null,null,null,null,null,null,null,null,null,null,null,null,null,null,null,"~"]
["SA25",2021,"DC16",0,16,"Transfers recognised - operational",null,null,null,null,null,null,null,null,null,null,null,null,null,null,null,null,"~"]
["SA25",2021,"DC16",0,17,"Other revenue",null,null,null,null,null,null,null,null,null,null,null,null,null,null,null,null,"~"]
["SA25",2021,"DC16",0,18,"Gains on disposal of PPE",null,null,null,null,null,null,null,null,null,null,null,null,null,null,null,null,"~"]
["SA25",2021,"DC16",0,19,"Total Revenue (excluding capital transfers and contributions)",null,null,null,null,null,null,null,null,null,null,null,null,null,null,null,null,"~"]
["SA25",2021,"DC16",0,20,null,null,null,null,null,null,null,null,null,null,null,null,null,null,null,null,null,"~"]
["SA25",2021,"DC16",0,21,"Expenditure By Type",null,null,null,null,null,null,null,null,null,null,null,null,null,null,null,null,"~"]
["SA25",2021,"DC16",0,22,"Employee related costs",null,null,null,null,null,null,null,null,null,null,null,null,null,null,null,null,"~"]
["SA25",2021,"DC16",0,23,"Remuneration of councillors",null,null,null,null,null,null,null,null,null,null,null,null,null,null,null,null,"~"]
["SA25",2021,"DC16",0,24,"Debt impairment",null,null,null,null,null,null,null,null,null,null,null,null,null,null,null,null,"~"]
["SA25",2021,"DC16",0,25,"Depreciation & asset impairment",null,null,null,null,null,null,null,null,null,null,null,null,null,null,null,null,"~"]
["SA25",2021,"DC16",0,26,"Finance charges",null,null,null,null,null,null,null,null,null,null,null,null,null,null,null,null,"~"]
["SA25",2021,"DC16",0,27,"Bulk purchases",null,null,null,null,null,null,null,null,null,null,null,null,null,null,null,null,"~"]
["SA25",2021,"DC16",0,28,"Other materials",null,null,null,null,null,null,null,null,null,null,null,null,null,null,null,null,"~"]
["SA25",2021,"DC16",0,29,"Contracted services",null,null,null,null,null,null,null,null,null,null,null,null,null,null,null,null,"~"]
["SA25",2021,"DC16",0,30,"Transfers and grants",null,null,null,null,null,null,null,null,null,null,null,null,null,null,null,null,"~"]
["SA25",2021,"DC16",0,31,"Other expenditure",null,null,null,null,null,null,null,null,null,null,null,null,null,null,null,null,"~"]
["SA25",2021,"DC16",0,32,"Loss on disposal of PPE",null,null,null,null,null,null,null,null,null,null,null,null,null,null,null,null,"~"]
["SA25",2021,"DC16",0,33,"Total Expenditure",null,null,null,null,null,null,null,null,null,null,null,null,null,null,null,null,"~"]
["SA25",2021,"DC16",0,34,null,null,null,null,null,null,null,null,null,null,null,null,null,null,null,null,null,"~"]
["SA25",2021,"DC16",0,35,"Surplus/(Deficit)",null,null,null,null,null,null,null,null,null,null,null,null,null,null,null,null,"~"]
["SA25",{"$f":"+MTREF","v":2021},{"$f":"LEFT(muni,(FIND(\" \",muni,1)-1))","v":"DC16"},0,36,"Transfers recognised - capital",null,null,null,null,null,null,null,null,null,null,null,null,null,null,null,null,"~"]
["SA25",2021,"DC16",0,37,"Contributions recognised - capital",null,null,null,null,null,null,null,null,null,null,null,null,null,null,null,null,"~"]
["SA25",2021,"DC16",0,38,"Contributed assets",null,null,null,null,null,null,null,null,null,null,null,null,null,null,null,null,"~"]
["SA25",2021,"DC16",0,39,"Surplus/(Deficit) after capital transfers & contributions",null,null,null,null,null,null,null,null,null,null,null,null,null,null,null,null,"~"]
["SA25",2021,"DC16",0,40,"Taxation",null,null,null,null,null,null,null,null,null,null,null,null,null,null,null,null,"~"]
["SA25",2021,"DC16",0,41,"Attributable to minorities",null,null,null,null,null,null,null,null,null,null,null,null,null,null,null,null,"~"]
["SA25",2021,"DC16",0,44,"Share of surplus/ (deficit) of associate",null,null,null,null,null,null,null,null,null,null,null,null,null,null,null,null,"~"]
["SA27",2021,"DC16",null,null,"Revenue - Standard",null,null,null,null,null,null,null,null,null,null,null,null,null,null,null,null,"~"]
["SA27",2021,"DC16",null,null,"Governance and administration",null,null,null,null,null,null,null,null,null,null,null,null,null,null,null,null,"~"]
["SA27",2021,"DC16",1,11,"Executive and council",null,null,null,null,null,null,null,null,null,null,null,null,null,null,null,null,"~"]
["SA27",2021,"DC16",1,12,"Budget and treasury office",null,null,null,null,null,null,null,null,null,null,null,null,null,null,null,null,"~"]
["SA27",2021,"DC16",1,13,"Corporate services",null,null,null,null,null,null,null,null,null,null,null,null,null,null,null,null,"~"]
["SA27",2021,"DC16",null,null,"Community and public safety",null,null,null,null,null,null,null,null,null,null,null,null,null,null,null,null,"~"]
["SA27",2021,"DC16",1,21,"Community and social services",null,null,null,null,null,null,null,null,null,null,null,null,null,null,null,null,"~"]
["SA27",2021,"DC16",1,22,"Sport and recreation",null,null,null,null,null,null,null,null,null,null,null,null,null,null,null,null,"~"]
["SA27",2021,"DC16",1,23,"Public safety",null,null,null,null,null,null,null,null,null,null,null,null,null,null,null,null,"~"]
["SA27",2021,"DC16",1,24,"Housing",null,null,null,null,null,null,null,null,null,null,null,null,null,null,null,null,"~"]
["SA27",2021,"DC16",1,25,"Health",null,null,null,null,null,null,null,null,null,null,null,null,null,null,null,null,"~"]
["SA27",2021,"DC16",null,null,"Economic and environmental services",null,null,null,null,null,null,null,null,null,null,null,null,null,null,null,null,"~"]
["SA27",2021,"DC16",1,31,"Planning and development",null,null,null,null,null,null,null,null,null,null,null,null,null,null,null,null,"~"]
["SA27",2021,"DC16",1,32,"Road transport",null,null,null,null,null,null,null,null,null,null,null,null,null,null,null,null,"~"]
["SA27",2021,"DC16",1,33,"Environmental protection",null,null,null,null,null,null,null,null,null,null,null,null,null,null,null,null,"~"]
["SA27",2021,"DC16",null,null,"Trading services",null,null,null,null,null,null,null,null,null,null,null,null,null,null,null,null,"~"]
["SA27",2021,"DC16",1,41,"Electricity",null,null,null,null,null,null,null,null,null,null,null,null,null,null,null,null,"~"]
["SA27",2021,"DC16",1,42,"Water",null,null,null,null,null,null,null,null,null,null,null,null,null,null,null,null,"~"]
["SA27",2021,"DC16",1,43,"Waste water management",null,null,null,null,null,null,null,null,null,null,null,null,null,null,null,null,"~"]
["SA27",2021,"DC16",1,44,"Waste management",null,null,null,null,null,null,null,null,null,null,null,null,null,null,null,null,"~"]
["SA27",2021,"DC16",1,45,"Other",null,null,null,null,null,null,null,null,null,null,null,null,null,null,null,null,"~"]
["SA27",2021,"DC16",null,null,"Total Revenue - Standard",null,null,null,null,null,null,null,null,null,null,null,null,null,null,null,null,"~"]
["SA27",2021,"DC16",null,null,null,null,null,null,null,null,null,null,null,null,null,null,null,null,null,null,null,"~"]
["SA27",2021,"DC16",null,null,"Expenditure - Standard",null,null,null,null,null,null,null,null,null,null,null,null,null,null,null,null,"~"]
["SA27",2021,"DC16",null,null,"Governance and administration",null,null,null,null,null,null,null,null,null,null,null,null,null,null,null,null,"~"]
["SA27",2021,"DC16",2,11,"Executive and council",null,null,null,null,null,null,null,null,null,null,null,null,null,null,null,null,"~"]
["SA27",2021,"DC16",2,12,"Budget and treasury office",null,null,null,null,null,null,null,null,null,null,null,null,null,null,null,null,"~"]
["SA27",2021,"DC16",2,13,"Corporate services",null,null,null,null,null,null,null,null,null,null,null,null,null,null,null,null,"~"]
["SA27",2021,"DC16",null,null,"Community and public safety",null,null,null,null,null,null,null,null,null,null,null,null,null,null,null,null,"~"]
["SA27",2021,"DC16",2,21,"Community and social services",null,null,null,null,null,null,null,null,null,null,null,null,null,null,null,null,"~"]
["SA27",2021,"DC16",2,22,"Sport and recreation",null,null,null,null,null,null,null,null,null,null,null,null,null,null,null,null,"~"]
["SA27",2021,"DC16",2,23,"Public safety",null,null,null,null,null,null,null,null,null,null,null,null,null,null,null,null,"~"]
["SA27",2021,"DC16",2,24,"Housing",null,null,null,null,null,null,null,null,null,null,null,null,null,null,null,null,"~"]
["SA27",2021,"DC16",2,25,"Health",null,null,null,null,null,null,null,null,null,null,null,null,null,null,null,null,"~"]
["SA27",2021,"DC16",null,null,"Economic and environmental services",null,null,null,null,null,null,null,null,null,null,null,null,null,null,null,null,"~"]
["SA27",2021,"DC16",2,31,"Planning and development",null,null,null,null,null,null,null,null,null,null,null,null,null,null,null,null,"~"]
["SA27",2021,"DC16",2,32,"Road transport",null,null,null,null,null,null,null,null,null,null,null,null,null,null,null,null,"~"]
["SA27",2021,"DC16",2,33,"Environmental protection",null,null,null,null,null,null,null,null,null,null,null,null,null,null,null,null,"~"]
["SA27",2021,"DC16",null,null,"Trading services",null,null,null,null,null,null,null,null,null,null,null,null,null,null,null,null,"~"]
["SA27",2021,"DC16",2,41,"Electricity",null,null,null,null,null,null,null,null,null,null,null,null,null,null,null,null,"~"]
["SA27",2021,"DC16",2,42,"Water",null,null,null,null,null,null,null,null,null,null,null,null,null,null,null,null,"~"]
["SA27",2021,"DC16",2,43,"Waste water management",null,null,null,null,null,null,null,null,null,null,null,null,null,null,null,null,"~"]
["SA27",2021,"DC16",2,44,"Waste management",null,null,null,null,null,null,null,null,null,null,null,null,null,null,null,null,"~"]
["SA27",2021,"DC16",2,45,"Other",null,null,null,null,null,null,null,null,null,null,null,null,null,null,null,null,"~"]
["SA27",2021,"DC16",null,null,"Total Expenditure - Standard",null,null,null,null,null,null,null,null,null,null,null,null,null,null,null,null,"~"]
["SA29",2021,"DC16",null,null,"Capital Expenditure - Standard",null,null,null,null,null,null,null,null,null,null,null,null,null,null,null,null,"~"]
["SA29",2021,"DC16",null,null,"Governance and administration",null,null,null,null,null,null,null,null,null,null,null,null,null,null,null,null,"~"]
["SA29",2021,"DC16",1,11,"Executive and council",null,null,null,null,null,null,null,null,null,null,null,null,null,null,null,null,"~"]
["SA29",2021,"DC16",1,12,"Budget and treasury office",null,null,null,null,null,null,null,null,null,null,null,null,null,null,null,null,"~"]
["SA29",2021,"DC16",1,13,"Corporate services",null,null,null,null,null,null,null,null,null,null,null,null,null,null,null,null,"~"]
["SA29",2021,"DC16",null,null,"Community and public safety",null,null,null,null,null,null,null,null,null,null,null,null,null,null,null,null,"~"]
["SA29",2021,"DC16",1,21,"Community and social services",null,null,null,null,null,null,null,null,null,null,null,null,null,null,null,null,"~"]
["SA29",2021,"DC16",1,22,"Sport and recreation",null,null,null,null,null,null,null,null,null,null,null,null,null,null,null,null,"~"]
["SA29",2021,"DC16",1,23,"Public safety",null,null,null,null,null,null,null,null,null,null,null,null,null,null,null,null,"~"]
["SA29",2021,"DC16",1,24,"Housing",null,null,null,null,null,null,null,null,null,null,null,null,null,null,null,null,"~"]
["SA29",2021,"DC16",1,25,"Health",null,null,null,null,null,null,null,null,null,null,null,null,null,null,null,null,"~"]
["SA29",2021,"DC16",null,null,"Economic and environmental services",null,null,null,null,null,null,null,null,null,null,null,null,null,null,null,null,"~"]
["SA29",{"$f":"+MTREF","v":2021},{"$f":"LEFT(muni,(FIND(\" \",muni,1)-1))","v":"DC16"},1,31,"Planning and development",null,null,null,null,null,null,null,null,null,null,null,null,null,null,null,null,"~"]
["SA29",2021,"DC16",1,32,"Road transport",null,null,null,null,null,null,null,null,null,null,null,null,null,null,null,null,"~"]
["SA29",2021,"DC16",1,33,"Environmental protection",null,null,null,null,null,null,null,null,null,null,null,null,null,null,null,null,"~"]
["SA29",2021,"DC16",null,null,"Trading services",null,null,null,null,null,null,null,null,null,null,null,null,null,null,null,null,"~"]
["SA29",2021,"DC16",1,41,"Electricity",null,null,null,null,null,null,null,null,null,null,null,null,null,null,null,null,"~"]
["SA29",2021,"DC16",1,42,"Water",null,null,null,null,null,null,null,null,null,null,null,null,null,null,null,null,"~"]
["SA29",2021,"DC16",1,43,"Waste water management",null,null,null,null,null,null,null,null,null,null,null,null,null,null,null,null,"~"]
["SA29",2021,"DC16",1,44,"Waste management",null,null,null,null,null,null,null,null,null,null,null,null,null,null,null,null,"~"]
["SA29",2021,"DC16",1,45,"Other",null,null,null,null,null,null,null,null,null,null,null,null,null,null,null,null,"~"]
["SA29",2021,"DC16",null,null,"Total Capital Expenditure - Standard",null,null,null,null,null,null,null,null,null,null,null,null,null,null,null,null,"~"]
["SA29",2021,"DC16",null,null,null,null,null,null,null,null,null,null,null,null,null,null,null,null,null,null,null,"~"]
["SA29",2021,"DC16",2,50,"Funded by:",null,null,null,null,null,null,null,null,null,null,null,null,null,null,null,null,"~"]
["SA29",2021,"DC16",2,51,"National Government",null,null,null,null,null,null,null,null,null,null,null,null,null,null,null,null,"~"]
["SA29",2021,"DC16",2,52,"Provincial Government",null,null,null,null,null,null,null,null,null,null,null,null,null,null,null,null,"~"]
["SA29",2021,"DC16",2,53,"District Municipality",null,null,null,null,null,null,null,null,null,null,null,null,null,null,null,null,"~"]
["SA29",2021,"DC16",2,54,"Other transfers and grants",null,null,null,null,null,null,null,null,null,null,null,null,null,null,null,null,"~"]
["SA29",2021,"DC16",2,55,"Transfers recognised - capital",null,null,null,null,null,null,null,null,null,null,null,null,null,null,null,null,"~"]
["SA29",2021,"DC16",2,56,"Public contributions & donations",null,null,null,null,null,null,null,null,null,null,null,null,null,null,null,null,"~"]
["SA29",2021,"DC16",2,57,"Borrowing",null,null,null,null,null,null,null,null,null,null,null,null,null,null,null,null,"~"]
["SA29",2021,"DC16",2,58,"Internally generated funds",null,null,null,null,null,null,null,null,null,null,null,null,null,null,null,null,"~"]
["SA29",2021,"DC16",2,59,"Total Capital Funding",null,null,null,null,null,null,null,null,null,null,null,null,null,null,null,null,"~"]